{"text_format":"1","workbook":"xlsx","n_sheets":15,"sheets":["Menu","Messages","Instructions","Calculating skill levels","ICT skill levels - example","ICT skills mapping old to new","Notes","1a","2a","2b","2c","2d","2e","Flat","Options"],"not_rendered":{"charts":0,"images":1,"macros":1,"external_links":0,"defined_names":20,"comments":0,"pivot_tables":0},"unopened":[],"bounds":{"document_bytes":16777216,"sheet_cells":100000,"rows_first":2000,"rows_last":500,"rows_between":2000,"halvings":0,"cell_chars":16384,"cell_head_chars":4096},"cells_cut":0,"cells_raw":0,"read":"whole","date_system":"1900"}

{"sheet":"Menu","index":0,"n_rows":29,"n_cols":64,"rows_kept":29,"cut":false,"hidden":false,"merged":[[2,5,2,13],[28,5,28,6],[28,7,28,8],[22,4,22,11],[26,3,26,12],[27,2,27,13],[24,8,24,9],[4,2,4,7]]}
["A","B","C","D","E","F","G","H","I","J","K","L","M","N","O","P","Q","R","S","T","U","V","W","X","Y","Z","AA","AB","AC","AD","AE","AF","AG","AH","AI","AJ","AK","AL","AM","AN","AO","AP","AQ","AR","AS","AT","AU","AV","AW","AX","AY","AZ","BA","BB","BC","BD","BE","BF","BG","BH","BI","BJ","BK","BL"]
[]
[null,null,null,null,null,"Questionnaire on Information and Communication Technology (ICT) Access and Use by Households and Individuals"]
[]
[null,null,"<Double click> on top of  the chapter to open it"]
[]
[null,null,null,"Instructions"]
[]
[null,null,"1a","ICT Access by urban/rural and household composition"]
[]
[null,null,"2a","ICT Usage by gender and urban/rural"]
[]
[null,null,"2b","ICT Usage by age and gender"]
[]
[null,null,"2c","ICT Usage by highest education level received and gender"]
[]
[null,null,"2d","ICT Usage by labour force status and gender"]
[]
[null,null,"2e","ICT Usage by occupation and gender"]
[]
[null,null,null,"Notes"]
[]
[null,null,null,null,"<Double click> on \"check data\" to verify the consistency of your data "]
[]
[null,null,null,null,null,null,null,null,"Check data",null,null,"Parameter -->",1]
[]
[null,null,null,"Enter country name and reference year of your survey"]
[]
[null,null,null,"Country:",null,"X",null,"Year (YYYY):",null,2020]

{"sheet":"Messages","index":1,"n_rows":1,"n_cols":1,"rows_kept":1,"cut":false,"hidden":true,"merged":[]}
["There are no errors."]

{"sheet":"Instructions","index":2,"n_rows":20,"n_cols":4,"rows_kept":20,"cut":false,"hidden":false,"merged":[[1,1,1,3],[3,1,3,3],[4,1,4,3],[5,1,5,3],[19,1,19,3],[6,1,6,3],[7,1,7,3]]}
[]
[null,"Instructions to fill out the questionnaire"]
[]
[]
[null,"If you are sending ICT data of more than one survey/year, please use separate ITU questionnaires (excel files) for each survey/year."]
[null,"The numbers included here should be population estimates (i.e. weighted sampling values)."]
[null,"If required, you may add notes for every figure entered in this questionnaire (see instructions on « Notes » below)"]
[null,"This file includes the following worksheets:"]
[null,"Name of sheet:",null,"Description/Instructions:"]
[null,null,"Menu","In this sheet you can check the consistency of your data by double-clicking \"Check data\". A new sheet will then open up showing messages on all errors and inconsistencies across all sheets. Please correct any errors before submitting the data to ITU. You can also save your file with your country name and year of the survey in this sheet. "]
[null,null,"Instructions","This sheet gives instructions on how to fill in this questionnaire."]
[null,"1a","ICT Access by urban/rural and household composition","In this sheet, please indicate the number of households for each indicator on ICT access, and also broken down by urban/rural and household composition."]
[null,"2a","ICT Usage by gender and urban/rural","In this sheet, please indicate the number of individuals for each indicator on ICT usage broken down by location type (urban or rural) and gender."]
[null,"2b","ICT Usage by age and gender","In this sheet, please indicate the number of individuals for each indicator on ICT usage broken down by age and gender."]
[null,"2c","ICT Usage by highest education level received and gender","In this sheet, please indicate the number of individuals for each indicator on ICT usage broken down by highest education level received and gender."]
[null,"2d","ICT Usage by labour force status and gender","In this sheet, please indicate the number of individuals for each indicator on ICT usage broken down by labour force status and gender. "]
[null,"2e","ICT Usage by occupation and gender","In this sheet, please indicate the number of individuals for each indicator on ICT usage broken down by occupation and gender. "]
[null,null,"Notes","In this sheet please introduce notes that apply to your data, including differences in the definitions of the indicators and classificatory variables with regard to the standards set by the Partnership on Measuring ICT for Development. Please enter the note code (e.g. a, b, c or 1, 2, 3, etc.) in each data worksheet, and provide the corresponding explanation in this worksheet. You may use the same code in different sheets/cells, whenever the same note applies to various data. Please do not modify the structure of the file by adding extra columns or rows, simply add notes whenever you need to add clarifications. Otherwise, the file can not be read."]
[null,"Reference Material:"]
[null,"ITU Manual for Measuring ICT Access and Use by Households and Individuals, 2020 edition"]

{"sheet":"Calculating skill levels","index":3,"n_rows":46,"n_cols":4,"rows_kept":46,"cut":false,"hidden":false,"merged":[[43,2,43,3],[44,2,44,3],[45,2,45,3],[28,2,28,3],[29,2,29,3],[15,2,15,3],[16,2,16,3],[23,2,23,3],[24,2,24,3],[25,2,25,3],[40,2,40,3],[41,2,41,3],[42,2,42,3],[22,2,22,3],[27,2,27,3],[26,2,26,3],[1,1,1,3],[19,2,19,3],[20,2,20,3],[21,2,21,3],[10,2,10,3],[12,2,12,3],[13,2,13,3],[14,2,14,3],[18,2,18,3],[17,2,17,3],[5,2,5,3],[6,2,6,3],[7,2,7,3],[8,2,8,3],[9,2,9,3],[11,2,11,3]]}
[]
[null,"Instructions to add data on individual ICT skill levels"]
[]
[null,"ICT skill levels should be calculated for a skill area where at least two activities in the skill area have been collected in the survey"]
[]
[null,null,"Information and data literacy"]
[null,1,"Verifying the truthfulness of information found online (HH15)"]
[null,2,"Finding information about goods or services (HH9)"]
[null,3,"Accessing news or books in a digital format (e.g. reading online news, watching news videos online, reading e-books on an e-reading device) (HH9)"]
[null,4,"Finding health information (HH9)"]
[null,null,"Communication and collaboration"]
[null,1,"Sending content (e.g. document, picture, video through attached files, embedded content, hyperlinks) in messages (e.g. e-mail, messaging service, MMS) (HH15)"]
[null,2,"Making calls (Telephoning over the Internet/VoIP, using Skype, Whatsapp, Viber, iTalk, etc.; includes video calls via webcam) (HH9)"]
[null,3,"Participating on social networking platforms (e.g. creating user profile, reading or posting messages and other contributions to Facebook, X, Instagram, Snapchat, TikTok) (HH9)"]
[null,4,"Taking part in consultations via the Internet to define civic or social issues (e.g. urban planning, signing a petition, voting) (HH9)"]
[null,null,"Digital content creation"]
[null,1,"Editing text documents, spreadsheets or presentations using digital tools (e.g. Google Docs, Sharepoint, Apple iCloud, etc.)  (HH9)"]
[null,2,"Duplicating or moving data, information and content in digital environments (e.g. within a document, between devices, on the cloud) (HH15)"]
[null,3,"Creating content combining different digital media (including text, images, sound, video or charts) (HH15)"]
[null,4,"Using spreadsheet software (e.g. using basic arithmetic formulae, functions, macros) (HH15)"]
[null,5,"Programming or coding in digital environments (HH15)"]
[null,null,"Safety"]
[null,1,"Taking security measures to protect devices and online accounts (e.g. changing passwords, avoiding unsecure links or downloads, setting up two-factor authentication) (HH15)"]
[null,2,"Taking measures to protect privacy on your device, account or app (e.g. to limit the sharing of personal data and information, restrict access to social network profiles or geolocation, prevent targeted marketing) (HH15)"]
[null,null,"Problem solving"]
[null,1,"Connecting new devices (e.g. camera, printer, wireless speakers or wireless headphones) (HH15)"]
[null,2,"Installing software or apps (HH15)"]
[null,3,"Using Internet or mobile banking (includes electronic transactions with a bank for payment, transfers, etc. such as M-Pesa, or for looking up account information) (HH9)"]
[null,4,"Doing an online course or accessing online learning material (e.g. video tutorials, webinars, learning apps) (HH9)"]
[null,5,"Purchasing or ordering goods or services (via the Internet whether or not payment was made online; includes purchasing of products such as music, travel and accommodation via the Internet) (HH9)"]
[]
[null,"An individual's skill level in each skill area should be calculated as below:"]
[null," "]
[null,null,"Skill level","Activities reported by individual"]
[null,null,"Basic",1]
[null,null,"Above basic","2 or more"]
[]
[null,"Overall ICT skill levels should be calculated where skill levels are calculated for ALL FIVE skill areas"]
[]
[null,null,"Overall skill level"]
[null,null,"Basic skills in 0-1 of 5 skill areas"]
[null,null,"Basic skills in 2 of 5 skill areas"]
[null,null,"Basic skills in 3 of 5 skill areas"]
[null,null,"Basic skills in 4 of 5 skill areas"]
[null,null,"Basic skills in 5 of 5 skill areas"]
[null,null,"Above basic skills in 5 of 5 skill areas"]

{"sheet":"ICT skill levels - example","index":4,"n_rows":23,"n_cols":52,"rows_kept":23,"cut":false,"hidden":false,"merged":[[11,44,11,45],[11,46,11,51],[2,0,2,25],[3,0,3,25],[4,0,4,25],[5,0,5,25],[7,0,7,25],[10,29,10,34],[11,14,11,15],[11,16,11,20],[11,40,11,41],[11,42,11,43],[11,38,11,39],[12,1,12,4],[12,5,12,8],[12,9,12,13],[12,14,12,15],[12,16,12,20],[0,0,0,25],[11,1,11,4],[11,5,11,8],[11,9,11,13],[11,36,11,37]]}
["The example below shows the responses of 8 individuals to a theoretical ICT household survey as well as a theoretical sampling weight (column V) for each respondent. "]
[]
["Raw Data section, cells with 1 note that an individuals has done an activity and 0 shows that they have not. "]
["Sums of raw scores section counts how many activities each individual has done in each skill area. "]
["Raw scores converted to levels section converts these counts for each skill area into the following levels: N = no skills (0 activities), B = basic skills (1 activity), AB = above basic skills (2 or more activities). Overall skill level is calculated based on how many skill areas in which the individuals has basic or above basic skills"]
["Levels converted to Y/N section converts skill levels into yes/no indicators which can be aggregated and reported in the questionnaire."]
[]
["Rows 22 and 23 demonstrate how weighted totals and shares can be calculated"]
[]
[]
[null,"Raw data",null,null,null,null,null,null,null,null,null,null,null,null,null,null,null,null,null,null,null,null,null,"Sums of raw scores",null,null,null,null,null,"Raw scores converted to levels ",null,null,null,null,null,null,"Levels converted to Y/N"]
[null,null,null,null,null,null,null,null,null,null,null,null,null,null,null,null,null,null,null,null,null,null,null,null,null,null,null,null,null,null,null,null,null,null,null,null,"INFO",null,"COM",null,"CONT",null,"SAFE",null,"PROB",null,"OVERALL"]
["Person","Information and Data (INFO)\n",null,null,null,"Communication & Collaboration (COM)\n",null,null,null,"Content creation (CONT)\n",null,null,null,null,"Safety (SAFE)\n",null,"Problem solving (PROB)\n",null,null,null,null,"Sampling weight\n",null,"  INFO","  COM","  CONT","  SAFE","  PROB",null,"  INFO","  COM","  CONT","  SAFE","  PROB","OVERALL\n",null,"Basic","Above basic","Basic","Above basic","Basic","Above basic","Basic","Above basic","Basic","Above basic","0-1 out of 5","2 out of 5","3 out of 5","\n4 out of 5","Basic","Above basic"]
["A",1,1,1,1,1,0,1,1,1,1,1,1,0,1,1,0,1,1,1,1,1,null,{"$f":"SUM(B14:E14)","v":4},{"$f":"SUM(F14:I14)","v":3},{"$f":"SUM(J14:N14)","v":4},{"$f":"SUM(O14:P14)","v":2},{"$f":"SUM(Q14:U14)","v":4},null,{"$f":"IF(SUM(B14:E14)>1,\"AB\",IF(SUM(B14:E14)=1,\"B\",\"N\"))","v":"AB"},{"$f":"IF(SUM(F14:I14)>1,\"AB\",IF(SUM(F14:I14)=1,\"B\",\"N\"))","v":"AB"},{"$f":"IF(SUM(J14:N14)>1,\"AB\",IF(SUM(J14:N14)=1,\"B\",\"N\"))","v":"AB"},{"$f":"IF(SUM(O14:P14)>1,\"AB\",IF(SUM(O14:P14)=1,\"B\",\"N\"))","v":"AB"},{"$f":"IF(SUM(Q14:U14)>1,\"AB\",IF(SUM(Q14:U14)=1,\"B\",\"N\"))","v":"AB"},{"$f":"IF(COUNTIF(AD14:AH14,\"AB\")=5,\"Above basic\",IF(COUNTIF(AD14:AH14,\"AB\")+COUNTIF(AD14:AH14,\"B\")=5,\"Basic\",IF(COUNTIF(AD14:AH14,\"AB\")+COUNTIF(AD14:AH14,\"B\")=4,\"4 out of 5\",IF(COUNTIF(AD14:AH14,\"AB\")+COUNTIF(AD14:AH14,\"B\")=3,\"3 out of 5\",IF(COUNTIF(AD14:AH14,\"AB\")+COUNTIF(AD14:AH14,\"B\")=2,\"2 out of 5\",\"0-1 out of 5\")))))","v":"Above basic"},null,{"$f":"IF(AD14=\"B\",1,0)","v":0},{"$f":"IF(AD14=\"AB\",1,0)","v":1},{"$f":"IF(AE14=\"B\",1,0)","v":0},{"$f":"IF(AE14=\"AB\",1,0)","v":1},{"$f":"IF(AF14=\"B\",1,0)","v":0},{"$f":"IF(AF14=\"AB\",1,0)","v":1},{"$f":"IF(AG14=\"B\",1,0)","v":0},{"$f":"IF(AG14=\"AB\",1,0)","v":1},{"$f":"IF(AH14=\"B\",1,0)","v":0},{"$f":"IF(AH14=\"AB\",1,0)","v":1},{"$f":"IF($AI14=\"0-1 out of 5\",1,0)","v":0},{"$f":"IF($AI14=\"2 out of 5\",1,0)","v":0},{"$f":"IF($AI14=\"3 out of 5\",1,0)","v":0},{"$f":"IF($AI14=\"4 out of 5\",1,0)","v":0},{"$f":"IF(AI14=\"Basic\",1,0)","v":0},{"$f":"IF(AI14=\"Above basic\",1,0)","v":1}]
["B",1,0,0,0,1,0,0,0,1,0,0,0,0,1,0,1,0,0,0,0,1.5,null,1,1,1,1,1,null,{"$f":"IF(SUM(B15:E15)>1,\"AB\",IF(SUM(B15:E15)=1,\"B\",\"N\"))","v":"B"},{"$f":"IF(SUM(F15:I15)>1,\"AB\",IF(SUM(F15:I15)=1,\"B\",\"N\"))","v":"B"},{"$f":"IF(SUM(J15:N15)>1,\"AB\",IF(SUM(J15:N15)=1,\"B\",\"N\"))","v":"B"},{"$f":"IF(SUM(O15:P15)>1,\"AB\",IF(SUM(O15:P15)=1,\"B\",\"N\"))","v":"B"},{"$f":"IF(SUM(Q15:U15)>1,\"AB\",IF(SUM(Q15:U15)=1,\"B\",\"N\"))","v":"B"},"Basic",null,{"$f":"IF(AD15=\"B\",1,0)","v":1},{"$f":"IF(AD15=\"AB\",1,0)","v":0},{"$f":"IF(AE15=\"B\",1,0)","v":1},{"$f":"IF(AE15=\"AB\",1,0)","v":0},{"$f":"IF(AF15=\"B\",1,0)","v":1},{"$f":"IF(AF15=\"AB\",1,0)","v":0},{"$f":"IF(AG15=\"B\",1,0)","v":1},{"$f":"IF(AG15=\"AB\",1,0)","v":0},{"$f":"IF(AH15=\"B\",1,0)","v":1},{"$f":"IF(AH15=\"AB\",1,0)","v":0},{"$f":"IF($AI15=\"0-1 out of 5\",1,0)","v":0},{"$f":"IF($AI15=\"2 out of 5\",1,0)","v":0},{"$f":"IF($AI15=\"3 out of 5\",1,0)","v":0},{"$f":"IF($AI15=\"4 out of 5\",1,0)","v":0},1,0]
["C",1,0,0,1,1,0,0,1,1,0,0,1,0,1,0,1,0,0,1,1,1.25,null,2,2,2,1,3,null,"AB","AB","AB","B","AB","Basic",null,0,1,0,1,0,1,1,0,0,1,0,0,0,0,1,0]
["D",1,1,0,0,1,1,1,0,1,1,0,0,0,0,0,0,1,0,0,1,0.75,null,2,3,2,0,2,null,"AB","AB","AB","N","AB","4 out of 5",null,0,1,0,1,0,1,0,0,0,1,0,0,0,1,0,0]
["E",1,1,0,0,0,0,0,0,0,0,0,0,0,1,0,1,0,0,0,0,1.33,null,2,0,0,1,1,null,"AB","N","N","B","B","3 out of 5",null,0,1,0,0,0,0,1,0,1,0,0,0,1,0,0,0]
["F",0,0,0,0,0,1,0,0,0,0,0,0,0,0,0,0,0,1,0,0,0.5,null,0,1,0,0,1,null,"N","B","N","N","B","2 out of 5",null,0,0,1,0,0,0,0,0,1,0,0,1,0,0,0,0]
["G",0,0,0,0,0,0,0,1,0,0,0,0,0,0,0,0,0,0,0,0,2,null,0,1,0,0,0,null,"N","B","N","N","N","0-1 out of 5",null,0,0,1,0,0,0,0,0,0,0,1,0,0,0,0,0]
["H",0,0,0,0,0,0,0,0,0,0,0,0,0,0,0,0,0,0,0,0,0.67,null,0,0,0,0,0,null,"N","N","N","N","N",{"$f":"IF(COUNTIF(AD21:AH21,\"AB\")=5,\"Above basic\",IF(COUNTIF(AD21:AH21,\"AB\")+COUNTIF(AD21:AH21,\"B\")=5,\"Basic\",IF(COUNTIF(AD21:AH21,\"AB\")+COUNTIF(AD21:AH21,\"B\")=4,\"4 out of 5\",IF(COUNTIF(AD21:AH21,\"AB\")+COUNTIF(AD21:AH21,\"B\")=3,\"3 out of 5\",IF(COUNTIF(AD21:AH21,\"AB\")+COUNTIF(AD21:AH21,\"B\")=2,\"2 out of 5\",\"0-1 out of 5\")))))","v":"0-1 out of 5"},null,0,0,0,0,0,0,0,0,0,0,1,0,0,0,0,0]
["Total",{"$f":"SUMPRODUCT(B14:B21,$V$14:$V$21)","v":5.83},3.08,1,2.25,4.5,1.25,1.75,4.25,4.5,1.75,1,2.25,0,5.08,1,4.08,1.75,1.5,2.25,3,null,null,null,null,null,null,null,null,null,null,null,null,null,null,null,{"$f":"SUMPRODUCT(AK14:AK21,$V$14:$V$21)","v":1.5},4.33,4,3,1.5,3,4.08,1,3.33,3,2.67,0.5,1.33,0.75,2.75,1]
["Share",{"$f":"B22/SUM($V$14:$V$21)","v":0.64777777777777779},0.34222222222222221,0.1111111111111111,0.25,0.5,0.1388888888888889,0.19444444444444445,0.47222222222222221,0.5,0.19444444444444445,0.1111111111111111,0.25,0,0.56444444444444442,0.1111111111111111,0.45333333333333337,0.19444444444444445,0.16666666666666666,0.25,0.33333333333333331,null,null,null,null,null,null,null,null,null,null,null,null,null,null,null,{"$f":"AK22/SUM($V$14:$V$21)","v":0.16666666666666666},0.4811111111111111,0.44444444444444442,0.33333333333333331,0.16666666666666666,0.33333333333333331,0.45333333333333337,0.1111111111111111,0.37,0.33333333333333331,0.29666666666666663,5.5555555555555552E-2,0.14777777777777779,8.3333333333333329E-2,0.30555555555555558,0.1111111111111111]

{"sheet":"ICT skills mapping old to new","index":5,"n_rows":29,"n_cols":3,"rows_kept":29,"cut":false,"hidden":false,"merged":[[2,1,2,2],[7,1,7,2],[12,1,12,2],[19,1,19,2],[22,1,22,2]]}
[]
[null,"Previous indicator","New indicator"]
[null,"Information and data literacy"]
[null,"Verifying the reliability of information found online  ","Verifying the truthfulness of information found online"]
[null,"Getting information about goods or services  ","Finding information about goods or services (using the Internet or other ICTs)"]
[null,"Reading or downloading newspapers, magazines or electronic books in a digital format  ","Accessing news or books in a digital format (e.g. reading online news, watching news videos online, reading e-books on an e-reading device)"]
[null,"Seeking health-related information (on injury, disease, nutrition etc.)  ","Finding health information (using the Internet or other ICTs)"]
[null,"Communication and collaboration"]
[null,"Sending messages (e.g. e-mail, messaging service, SMS) with attached files (e.g. document, picture, video)  ","Sending content (e.g. document, picture, video through attached files, embedded content, hyperlinks) in messages (e.g. e-mail, messaging service, MMS)"]
[null,"Making calls (telephoning over the Internet/VoIP using Skype, WhatsApp, Viber, iTalk, etc.; includes video calls via webcam)  ","Making calls (telephoning over the Internet/VoIP using Skype, WhatsApp, Viber, iTalk, etc.; includes video calls via webcam)  "]
[null,"Participating in social networks (creating user profile, posting messages or other contributions to Facebook, Twitter, Instagram, Snapchat, etc.)  ","Participating on social networking platforms (e.g. creating user profile, reading or posting messages and other contributions to Facebook, X, Instagram, Snapchat, TikTok)"]
[null,"Taking part in consultations or voting via the Internet to define civic or political issues (urban planning, signing a petition etc.)  ","Taking part in consultations via the Internet to define civic or social issues (e.g. urban planning, signing a petition, voting)"]
[null,"Digital content creation"]
[null,"Using software run over the Internet for editing text documents, spreadsheets or presentations","Editing text documents, spreadsheets or presentations using digital tools (e.g. Google Docs, Sharepoint, Apple iCloud, etc.) "]
[null,"Using copy and paste tools to duplicate or move data, information and content in digital environments (e.g. within a document, between devices, on the cloud)     ","Duplicating or moving data, information and content in digital environments (e.g. within a document, between devices, on the cloud)"]
[null,"Creating electronic presentations with presentation software (including text, images, sound, video or charts)  ","Creating content combining different digital media (including text, images, sound, video or charts)"]
[null,"Using basic arithmetic formulae in a spreadsheet  ","Using spreadsheet software (e.g. using basic arithmetic formulae, functions, macros)"]
[null,"Programming or coding in digital environments (e.g. computer software, app development)  ","Programming or coding in digital environments"]
[null,"Uploading self/user-created content to a website to be shared (text, images, photos, videos, music, software, etc.)  ","[Removed from digital skills indicators - included in HH9]"]
[null,"Safety"]
[null,"Setting up effective security measures (e.g. strong passwords, log-in attempt notification) to protect devices and online accounts  ","Taking security measures to protect devices and online accounts (e.g. changing passwords, avoiding unsecure links or downloads, setting up two-factor authentication)"]
[null,"Changing privacy settings on your device, account or app to limit the sharing of personal data and information (e.g. name, contact information, photos)  ","Taking measures to protect privacy on your device, account or app (e.g. to limit the sharing of personal data and information, restrict access to social network profiles or geolocation, prevent targeted marketing)"]
[null,"Problem solving"]
[null,"Connecting and installing new devices (e.g. a modem, camera, printer) through wired or wireless technologies  ","Connecting new devices (e.g. camera, printer, wireless speakers or wireless headphones)"]
[null,"Finding, downloading, installing and configuring software and apps  ","Installing software or apps"]
[null,"Internet banking (includes electronic transactions with a bank for payment, transfers, etc. such as M-Pesa, or for looking up account information; excludes electronic transactions via the Internet for other types of financial services such as share purchases, financial services and insurance)  ","Using Internet or mobile banking (includes electronic transactions with a bank for payment, transfers, etc. such as M-Pesa, or for looking up account information)"]
[null,"Doing an online course (in any subject)  ","Doing an online course or accessing online learning material (e.g. video tutorials, webinars, learning apps)"]
[null,"Purchasing or ordering goods or services (purchase orders placed via the Internet whether or not payment was made online; excludes orders that were cancelled or not completed; includes purchasing of products such as music, travel and accommodation via the Internet)  ","Purchasing or ordering goods or services (via the Internet whether or not payment was made online; includes purchasing of products such as music, travel and accommodation via the Internet)"]
[null,"Transferring files or applications between devices (including via cloud-storage)    ","[Removed from questionnaire]"]

{"sheet":"Notes","index":6,"n_rows":55,"n_cols":3,"rows_kept":55,"cut":false,"hidden":false,"merged":[]}
[null,"Notes:"]
[null,"Please enter the corresponding explanation of the note codes used in every worksheet:"]
[]
[null,"Note code","Note text"]
[]
[]
[]
[]
[]
[]
[]
[]
[]
[]
[]
[]
[]
[]
[]
[]
[]
[]
[]
[]
[]
[]
[null,"",""]
[null,"",""]
[null,"",""]
[null,"",""]
[null,"",""]
[null,"",""]
[]
[]
[]
[]
[]
[]
[]
[]
[]
[]
[]
[]
[]
[]
[]
[]
[]
[]
[]
[null,"",""]
[null,"",""]
[null,"",""]
[null,"",""]

{"sheet":"1a","index":7,"n_rows":217,"n_cols":41,"rows_kept":217,"cut":false,"hidden":false,"merged":[[8,10,8,11],[8,12,8,13],[29,0,51,0],[52,0,57,0],[11,0,17,0],[18,0,24,0],[25,0,28,0],[6,1,8,2],[7,8,8,9],[1,10,1,12],[0,10,0,21],[2,10,2,21],[4,10,4,21],[7,10,7,15],[6,4,8,5],[8,14,8,15],[6,10,6,21],[6,6,6,9],[7,16,7,21],[7,6,8,7],[8,16,8,17],[8,18,8,19],[8,20,8,21]]}
[null,"1a)   ICT Access by urban/rural and household composition",null,null,null,null,null,null,null,null,"1a)   ICT Access by urban/rural and household composition"]
[]
[null,"The numbers included here should be population estimates (i.e. weighted sampling values).",null,null,null,null,null,null,null,null,"The numbers included here should be population estimates (i.e. weighted sampling values)."]
[]
[null,"For definitions and further information on the indicators see the ITU Manual for Measuring ICT Access and Use by Households and Individuals",null,null,null,null,null,null,null,null,"For definitions and further information on the indicators see the ITU Manual for Measuring ICT Access and Use by Households and Individuals"]
[]
[null,"No.",null,null,"All households",null,"Urban/Rural",null,null,null,"Household composition"]
[null,null,null,null,null,null,"Urban",null,"Rural",null,"has children under 15",null,null,null,null,null,"does not have children under 15"]
[null,null,null,"Indicators",null,null,null,null,null,null,"Total",null,"Urban",null,"Rural",null,"Total",null,"Urban",null,"Rural"]
[null,null,null,null,"Value","Note","Value","Note","Value","Note","Value","Note","Value","Note","Value","Note","Value","Note","Value","Note","Value","Note"]
[null,"TOTAL NUMBER OF HOUSEHOLDS",null,"TOTAL NUMBER OF HOUSEHOLDS:"]
["RADIO AND TELEVISION","HH1",0,"Number of households with a radio"]
[null,"HH2",0,"Number of households with a television"]
[null,"HH13",0,"Number of households with multichannel television by type"]
[null,"HH13.1: Cable TV (CATV)",1,"Cable TV (CATV)"]
[null,"HH13.2: Direct-to-home (DTH) satellite services",2,"Direct-to-home (DTH) satellite services"]
[null,"HH13.3: Internet-protocol TV (IPTV)",3,"Internet-protocol TV (IPTV)"]
[null,"HH13.4: Digital terrestrial TV (DTT)",4,"Digital terrestrial TV (DTT)"]
["PHONE","HH3",0,"Number of households with telephone (fixed or mobile)"]
[null,"HH3.1: Number of households with a fixed telephone (regardless of whether they have a mobile telephone)",1,"Number of households with a fixed telephone (regardless of whether they have a mobile telephone)"]
[null,"HH3.2: Number of households with a mobile phone (regardless of whether they have a fixed telephone)",2,"Number of households with a mobile phone (regardless of whether they have a fixed telephone)"]
[null,"HH3.3: Number of households with fixed telephone only",3,"Number of households with fixed telephone only"]
[null,"HH3.4: Number of households with mobile cellular telephone only",4,"Number of households with mobile cellular telephone only"]
[null,"HH3.5: Number of households with both fixed and mobile telephone",5,"Number of households with both fixed and mobile telephone"]
[null,"HH3.6: Number of households with a smart phone",6,"Number of households with a smart phone"]
["COMPUTER","HH4",0,"Number of households with a computer (all types of computer)"]
[null,"HH4.1: Desktop",1,"Desktop"]
[null,"HH4.2: Laptop (portable) computer",2,"Laptop (portable) computer"]
[null,"HH4.3: Tablet (or similar handheld computer)",3,"Tablet (or similar handheld computer)"]
["INTERNET","HH6",0,"Number of households with Internet access"]
[null,"HH11",0,"Number of households with access to Internet, by type of service\n"]
[null,"HH11.1: Fixed narrowband network",1,"Fixed narrowband network"]
[null,"HH11.2: Total broadband (fixed and/or mobile) network",2,"Total broadband (fixed and/or mobile) network"]
[null,"HH11.3: Fixed broadband network only (regardless of the type of fixed broadband connection)",3,"Fixed broadband network only (regardless of the type of fixed broadband connection)"]
[null,"HH11.4: Mobile broadband network only (regardless of the type of mobile broadband connection)",4,"Mobile broadband network only (regardless of the type of mobile broadband connection)"]
[null,"HH11.5: Both fixed broadband and mobile broadband network (regardless of the type of connection)",5,"Both fixed broadband and mobile broadband network (regardless of the type of connection)"]
[null,"HH11.6: Fixed (wired) broadband network",6,"Fixed (wired) broadband network"]
[null,"HH11.7: Terrestrial fixed (wireless) broadband network",7,"Terrestrial fixed (wireless) broadband network"]
[null,"HH11.8: Satellite broadband network",8,"Satellite broadband network"]
[null,"HH11.9: Mobile broadband network via a handset",9,"Mobile broadband network via a handset"]
[null,"HH11.10: Mobile broadband network via a card or USB modem",10,"Mobile broadband network via a card or USB modem"]
[null,"HH14",0,"Reasons for not having Internet access (i.e. Barriers)"]
[null,"HH14.1: Do not need the Internet (not useful, not interesting)",1,"Do not need the Internet (not useful, not interesting, lack of local content)"]
[null,"HH14.2: Have access to the Internet elsewhere",2,"Have access to the Internet elsewhere"]
[null,"HH14.3: Cost of the equipment is too high",3,"Cost of the equipment is too high"]
[null,"HH14.4: Cost of the service is too high",4,"Cost of the service is too high"]
[null,"HH14.5: Privacy or security concerns",5,"Privacy or security concerns"]
[null,"HH14.6: Internet service is not available in the area",6,"Internet service is not available in the area"]
[null,"HH14.7: Internet service is available but it does not correspond to household needs (e.g. quality, speed)",7,"Internet service is available but it does not correspond to household needs (e.g. quality, speed)"]
[null,"HH14.8: Cultural reasons (e.g. exposure to harmful content)",8,"Cultural reasons (e.g. exposure to harmful content)"]
[null,"HH14.10: No electricity in the household",10,"No electricity in the household"]
[null,"HH14.11: Other reason",11,"Other reason"]
["ICT EXPENDITURE","HH16",0,"Total household expenditure on ICT"]
[null,null,null,"Information and communication equipment (COICOP 08.1)"]
[null,null,null,"Software excluding games computer software packages, such as operating systems, applications, programming languages, etc. (COICOP 08.2)"]
[null,null,null,"Information and communication services (COICOP 08.3)"]
[null,null,null," Games toys and hobbies (COICOP 09.2.1)"]
[null,"HH16.6: TOTAL HOUSEHOLD EXPENDITURE:",6,"TOTAL HOUSEHOLD EXPENDITURE:"]
[null,"HHR1",0,"Number of households with electricity"]
[]
[null,null,null,null,null,null,null,null,null,null,null,null,null,null,null,null,null,null,null,null,null,null,null,null,{"$f":"EXACT(E61,X61)","v":true},null,{"$f":"EXACT(G61,Z61)","v":true},null,{"$f":"EXACT(I61,AB61)","v":true},null,{"$f":"EXACT(K61,AD61)","v":true},null,{"$f":"EXACT(M61,AF61)","v":true},null,{"$f":"EXACT(O61,AH61)","v":true},null,{"$f":"EXACT(Q61,AJ61)","v":true},null,{"$f":"EXACT(S61,AL61)","v":true},null,{"$f":"EXACT(U61,AN61)","v":true}]
[null,null,null,null,null,null,null,null,null,null,null,null,null,null,null,null,null,null,null,null,null,null,null,null,true,null,true,null,true,null,true,null,true,null,true,null,true,null,true,null,true]
[null,null,null,null,null,null,null,null,null,null,null,null,null,null,null,null,null,null,null,null,null,null,null,null,true,null,true,null,true,null,true,null,true,null,true,null,true,null,true,null,true]
[null,null,null,null,null,null,null,null,null,null,null,null,null,null,null,null,null,null,null,null,null,null,null,null,true,null,true,null,true,null,true,null,true,null,true,null,true,null,true,null,true]
[null,null,null,null,null,null,null,null,null,null,null,null,null,null,null,null,null,null,null,null,null,null,null,null,true,null,true,null,true,null,true,null,true,null,true,null,true,null,true,null,true]
[null,null,null,null,null,null,null,null,null,null,null,null,null,null,null,null,null,null,null,null,null,null,null,null,true,null,true,null,true,null,true,null,true,null,true,null,true,null,true,null,true]
[null,null,null,null,null,null,null,null,null,null,null,null,null,null,null,null,null,null,null,null,null,null,null,null,true,null,true,null,true,null,true,null,true,null,true,null,true,null,true,null,true]
[null,null,null,null,null,null,null,null,null,null,null,null,null,null,null,null,null,null,null,null,null,null,null,null,true,null,true,null,true,null,true,null,true,null,true,null,true,null,true,null,true]
[null,null,null,null,null,null,null,null,null,null,null,null,null,null,null,null,null,null,null,null,null,null,null,null,true,null,true,null,true,null,true,null,true,null,true,null,true,null,true,null,true]
[null,null,null,null,null,null,null,null,null,null,null,null,null,null,null,null,null,null,null,null,null,null,null,null,true,null,true,null,true,null,true,null,true,null,true,null,true,null,true,null,true]
[null,null,null,null,null,null,null,null,null,null,null,null,null,null,null,null,null,null,null,null,null,null,null,null,true,null,true,null,true,null,true,null,true,null,true,null,true,null,true,null,true]
[null,null,null,null,null,null,null,null,null,null,null,null,null,null,null,null,null,null,null,null,null,null,null,null,true,null,true,null,true,null,true,null,true,null,true,null,true,null,true,null,true]
[null,null,null,null,null,null,null,null,null,null,null,null,null,null,null,null,null,null,null,null,null,null,null,null,true,null,true,null,true,null,true,null,true,null,true,null,true,null,true,null,true]
[null,null,null,null,null,null,null,null,null,null,null,null,null,null,null,null,null,null,null,null,null,null,null,null,true,null,true,null,true,null,true,null,true,null,true,null,true,null,true,null,true]
[null,null,null,null,null,null,null,null,null,null,null,null,null,null,null,null,null,null,null,null,null,null,null,null,true,null,true,null,true,null,true,null,true,null,true,null,true,null,true,null,true]
[null,null,null,null,null,null,null,null,null,null,null,null,null,null,null,null,null,null,null,null,null,null,null,null,true,null,true,null,true,null,true,null,true,null,true,null,true,null,true,null,true]
[null,null,null,null,null,null,null,null,null,null,null,null,null,null,null,null,null,null,null,null,null,null,null,null,true,null,true,null,true,null,true,null,true,null,true,null,true,null,true,null,true]
[null,null,null,null,null,null,null,null,null,null,null,null,null,null,null,null,null,null,null,null,null,null,null,null,true,null,true,null,true,null,true,null,true,null,true,null,true,null,true,null,true]
[null,null,null,null,null,null,null,null,null,null,null,null,null,null,null,null,null,null,null,null,null,null,null,null,true,null,true,null,true,null,true,null,true,null,true,null,true,null,true,null,true]
[null,null,null,null,null,null,null,null,null,null,null,null,null,null,null,null,null,null,null,null,null,null,null,null,true,null,true,null,true,null,true,null,true,null,true,null,true,null,true,null,true]
[null,null,null,null,null,null,null,null,null,null,null,null,null,null,null,null,null,null,null,null,null,null,null,null,true,null,true,null,true,null,true,null,true,null,true,null,true,null,true,null,true]
[null,null,null,null,null,null,null,null,null,null,null,null,null,null,null,null,null,null,null,null,null,null,null,null,true,null,true,null,true,null,true,null,true,null,true,null,true,null,true,null,true]
[null,null,null,null,null,null,null,null,null,null,null,null,null,null,null,null,null,null,null,null,null,null,null,null,true,null,true,null,true,null,true,null,true,null,true,null,true,null,true,null,true]
[null,null,null,null,null,null,null,null,null,null,null,null,null,null,null,null,null,null,null,null,null,null,null,null,true,null,true,null,true,null,true,null,true,null,true,null,true,null,true,null,true]
[null,null,null,null,null,null,null,null,null,null,null,null,null,null,null,null,null,null,null,null,null,null,null,null,true,null,true,null,true,null,true,null,true,null,true,null,true,null,true,null,true]
[null,null,null,null,null,null,null,null,null,null,null,null,null,null,null,null,null,null,null,null,null,null,null,null,true,null,true,null,true,null,true,null,true,null,true,null,true,null,true,null,true]
[null,null,null,null,null,null,null,null,null,null,null,null,null,null,null,null,null,null,null,null,null,null,null,null,true,null,true,null,true,null,true,null,true,null,true,null,true,null,true,null,true]
[null,null,null,null,null,null,null,null,null,null,null,null,null,null,null,null,null,null,null,null,null,null,null,null,true,null,true,null,true,null,true,null,true,null,true,null,true,null,true,null,true]
[null,null,null,null,null,null,null,null,null,null,null,null,null,null,null,null,null,null,null,null,null,null,null,null,true,null,true,null,true,null,true,null,true,null,true,null,true,null,true,null,true]
[null,null,null,null,null,null,null,null,null,null,null,null,null,null,null,null,null,null,null,null,null,null,null,null,true,null,true,null,true,null,true,null,true,null,true,null,true,null,true,null,true]
[null,null,null,null,null,null,null,null,null,null,null,null,null,null,null,null,null,null,null,null,null,null,null,null,true,null,true,null,true,null,true,null,true,null,true,null,true,null,true,null,true]
[null,null,null,null,null,null,null,null,null,null,null,null,null,null,null,null,null,null,null,null,null,null,null,null,true,null,true,null,true,null,true,null,true,null,true,null,true,null,true,null,true]
[null,null,null,null,null,null,null,null,null,null,null,null,null,null,null,null,null,null,null,null,null,null,null,null,{"$f":"EXACT(E93,X93)","v":true},null,{"$f":"EXACT(G93,Z93)","v":true},null,{"$f":"EXACT(I93,AB93)","v":true},null,{"$f":"EXACT(K93,AD93)","v":true},null,{"$f":"EXACT(M93,AF93)","v":true},null,{"$f":"EXACT(O93,AH93)","v":true},null,{"$f":"EXACT(Q93,AJ93)","v":true},null,{"$f":"EXACT(S93,AL93)","v":true},null,{"$f":"EXACT(U93,AN93)","v":true}]
[null,null,null,null,null,null,null,null,null,null,null,null,null,null,null,null,null,null,null,null,null,null,null,null,true,null,true,null,true,null,true,null,true,null,true,null,true,null,true,null,true]
[null,null,null,null,null,null,null,null,null,null,null,null,null,null,null,null,null,null,null,null,null,null,null,null,true,null,true,null,true,null,true,null,true,null,true,null,true,null,true,null,true]
[null,null,null,null,null,null,null,null,null,null,null,null,null,null,null,null,null,null,null,null,null,null,null,null,true,null,true,null,true,null,true,null,true,null,true,null,true,null,true,null,true]
[null,null,null,null,null,null,null,null,null,null,null,null,null,null,null,null,null,null,null,null,null,null,null,null,true,null,true,null,true,null,true,null,true,null,true,null,true,null,true,null,true]
[null,null,null,null,null,null,null,null,null,null,null,null,null,null,null,null,null,null,null,null,null,null,null,null,true,null,true,null,true,null,true,null,true,null,true,null,true,null,true,null,true]
[null,null,null,null,null,null,null,null,null,null,null,null,null,null,null,null,null,null,null,null,null,null,null,null,true,null,true,null,true,null,true,null,true,null,true,null,true,null,true,null,true]
[null,null,null,null,null,null,null,null,null,null,null,null,null,null,null,null,null,null,null,null,null,null,null,null,true,null,true,null,true,null,true,null,true,null,true,null,true,null,true,null,true]
[null,null,null,null,null,null,null,null,null,null,null,null,null,null,null,null,null,null,null,null,null,null,null,null,true,null,true,null,true,null,true,null,true,null,true,null,true,null,true,null,true]
[null,null,null,null,null,null,null,null,null,null,null,null,null,null,null,null,null,null,null,null,null,null,null,null,true,null,true,null,true,null,true,null,true,null,true,null,true,null,true,null,true]
[null,null,null,null,null,null,null,null,null,null,null,null,null,null,null,null,null,null,null,null,null,null,null,null,true,null,true,null,true,null,true,null,true,null,true,null,true,null,true,null,true]
[null,null,null,null,null,null,null,null,null,null,null,null,null,null,null,null,null,null,null,null,null,null,null,null,true,null,true,null,true,null,true,null,true,null,true,null,true,null,true,null,true]
[null,null,null,null,null,null,null,null,null,null,null,null,null,null,null,null,null,null,null,null,null,null,null,null,true,null,true,null,true,null,true,null,true,null,true,null,true,null,true,null,true]
[null,null,null,null,null,null,null,null,null,null,null,null,null,null,null,null,null,null,null,null,null,null,null,null,true,null,true,null,true,null,true,null,true,null,true,null,true,null,true,null,true]
[null,null,null,null,null,null,null,null,null,null,null,null,null,null,null,null,null,null,null,null,null,null,null,null,true,null,true,null,true,null,true,null,true,null,true,null,true,null,true,null,true]
[null,null,null,null,null,null,null,null,null,null,null,null,null,null,null,null,null,null,null,null,null,null,null,null,true,null,true,null,true,null,true,null,true,null,true,null,true,null,true,null,true]
[null,null,null,null,null,null,null,null,null,null,null,null,null,null,null,null,null,null,null,null,null,null,null,null,true,null,true,null,true,null,true,null,true,null,true,null,true,null,true,null,true]
[null,null,null,null,null,null,null,null,null,null,null,null,null,null,null,null,null,null,null,null,null,null,null,null,true,null,true,null,true,null,true,null,true,null,true,null,true,null,true,null,true]
[null,null,null,null,null,null,null,null,null,null,null,null,null,null,null,null,null,null,null,null,null,null,null,null,true,null,true,null,true,null,true,null,true,null,true,null,true,null,true,null,true]
[null,null,null,null,null,null,null,null,null,null,null,null,null,null,null,null,null,null,null,null,null,null,null,null,true,null,true,null,true,null,true,null,true,null,true,null,true,null,true,null,true]
[null,null,null,null,null,null,null,null,null,null,null,null,null,null,null,null,null,null,null,null,null,null,null,null,true,null,true,null,true,null,true,null,true,null,true,null,true,null,true,null,true]
[null,null,null,null,null,null,null,null,null,null,null,null,null,null,null,null,null,null,null,null,null,null,null,null,true,null,true,null,true,null,true,null,true,null,true,null,true,null,true,null,true]
[null,null,null,null,null,null,null,null,null,null,null,null,null,null,null,null,null,null,null,null,null,null,null,null,true,null,true,null,true,null,true,null,true,null,true,null,true,null,true,null,true]
[null,null,null,null,null,null,null,null,null,null,null,null,null,null,null,null,null,null,null,null,null,null,null,null,true,null,true,null,true,null,true,null,true,null,true,null,true,null,true,null,true]
[null,null,null,null,null,null,null,null,null,null,null,null,null,null,null,null,null,null,null,null,null,null,null,null,true,null,true,null,true,null,true,null,true,null,true,null,true,null,true,null,true]
[null,null,null,null,null,null,null,null,null,null,null,null,null,null,null,null,null,null,null,null,null,null,null,null,true,null,true,null,true,null,true,null,true,null,true,null,true,null,true,null,true]
[null,null,null,null,null,null,null,null,null,null,null,null,null,null,null,null,null,null,null,null,null,null,null,null,true,null,true,null,true,null,true,null,true,null,true,null,true,null,true,null,true]
[null,null,null,null,null,null,null,null,null,null,null,null,null,null,null,null,null,null,null,null,null,null,null,null,true,null,true,null,true,null,true,null,true,null,true,null,true,null,true,null,true]
[null,null,null,null,null,null,null,null,null,null,null,null,null,null,null,null,null,null,null,null,null,null,null,null,true,null,true,null,true,null,true,null,true,null,true,null,true,null,true,null,true]
[null,null,null,null,null,null,null,null,null,null,null,null,null,null,null,null,null,null,null,null,null,null,null,null,true,null,true,null,true,null,true,null,true,null,true,null,true,null,true,null,true]
[null,null,null,null,null,null,null,null,null,null,null,null,null,null,null,null,null,null,null,null,null,null,null,null,true,null,true,null,true,null,true,null,true,null,true,null,true,null,true,null,true]
[null,null,null,null,null,null,null,null,null,null,null,null,null,null,null,null,null,null,null,null,null,null,null,null,true,null,true,null,true,null,true,null,true,null,true,null,true,null,true,null,true]
[null,null,null,null,null,null,null,null,null,null,null,null,null,null,null,null,null,null,null,null,null,null,null,null,{"$f":"EXACT(E125,X125)","v":true},null,{"$f":"EXACT(G125,Z125)","v":true},null,{"$f":"EXACT(I125,AB125)","v":true},null,{"$f":"EXACT(K125,AD125)","v":true},null,{"$f":"EXACT(M125,AF125)","v":true},null,{"$f":"EXACT(O125,AH125)","v":true},null,{"$f":"EXACT(Q125,AJ125)","v":true},null,{"$f":"EXACT(S125,AL125)","v":true},null,{"$f":"EXACT(U125,AN125)","v":true}]
[null,null,null,null,null,null,null,null,null,null,null,null,null,null,null,null,null,null,null,null,null,null,null,null,true,null,true,null,true,null,true,null,true,null,true,null,true,null,true,null,true]
[null,null,null,null,null,null,null,null,null,null,null,null,null,null,null,null,null,null,null,null,null,null,null,null,true,null,true,null,true,null,true,null,true,null,true,null,true,null,true,null,true]
[null,null,null,null,null,null,null,null,null,null,null,null,null,null,null,null,null,null,null,null,null,null,null,null,true,null,true,null,true,null,true,null,true,null,true,null,true,null,true,null,true]
[null,null,null,null,null,null,null,null,null,null,null,null,null,null,null,null,null,null,null,null,null,null,null,null,true,null,true,null,true,null,true,null,true,null,true,null,true,null,true,null,true]
[null,null,null,null,null,null,null,null,null,null,null,null,null,null,null,null,null,null,null,null,null,null,null,null,true,null,true,null,true,null,true,null,true,null,true,null,true,null,true,null,true]
[null,null,null,null,null,null,null,null,null,null,null,null,null,null,null,null,null,null,null,null,null,null,null,null,true,null,true,null,true,null,true,null,true,null,true,null,true,null,true,null,true]
[null,null,null,null,null,null,null,null,null,null,null,null,null,null,null,null,null,null,null,null,null,null,null,null,true,null,true,null,true,null,true,null,true,null,true,null,true,null,true,null,true]
[null,null,null,null,null,null,null,null,null,null,null,null,null,null,null,null,null,null,null,null,null,null,null,null,true,null,true,null,true,null,true,null,true,null,true,null,true,null,true,null,true]
[null,null,null,null,null,null,null,null,null,null,null,null,null,null,null,null,null,null,null,null,null,null,null,null,true,null,true,null,true,null,true,null,true,null,true,null,true,null,true,null,true]
[null,null,null,null,null,null,null,null,null,null,null,null,null,null,null,null,null,null,null,null,null,null,null,null,true,null,true,null,true,null,true,null,true,null,true,null,true,null,true,null,true]
[null,null,null,null,null,null,null,null,null,null,null,null,null,null,null,null,null,null,null,null,null,null,null,null,true,null,true,null,true,null,true,null,true,null,true,null,true,null,true,null,true]
[null,null,null,null,null,null,null,null,null,null,null,null,null,null,null,null,null,null,null,null,null,null,null,null,true,null,true,null,true,null,true,null,true,null,true,null,true,null,true,null,true]
[null,null,null,null,null,null,null,null,null,null,null,null,null,null,null,null,null,null,null,null,null,null,null,null,true,null,true,null,true,null,true,null,true,null,true,null,true,null,true,null,true]
[null,null,null,null,null,null,null,null,null,null,null,null,null,null,null,null,null,null,null,null,null,null,null,null,true,null,true,null,true,null,true,null,true,null,true,null,true,null,true,null,true]
[null,null,null,null,null,null,null,null,null,null,null,null,null,null,null,null,null,null,null,null,null,null,null,null,true,null,true,null,true,null,true,null,true,null,true,null,true,null,true,null,true]
[null,null,null,null,null,null,null,null,null,null,null,null,null,null,null,null,null,null,null,null,null,null,null,null,true,null,true,null,true,null,true,null,true,null,true,null,true,null,true,null,true]
[null,null,null,null,null,null,null,null,null,null,null,null,null,null,null,null,null,null,null,null,null,null,null,null,true,null,true,null,true,null,true,null,true,null,true,null,true,null,true,null,true]
[null,null,null,null,null,null,null,null,null,null,null,null,null,null,null,null,null,null,null,null,null,null,null,null,true,null,true,null,true,null,true,null,true,null,true,null,true,null,true,null,true]
[null,null,null,null,null,null,null,null,null,null,null,null,null,null,null,null,null,null,null,null,null,null,null,null,true,null,true,null,true,null,true,null,true,null,true,null,true,null,true,null,true]
[null,null,null,null,null,null,null,null,null,null,null,null,null,null,null,null,null,null,null,null,null,null,null,null,true,null,true,null,true,null,true,null,true,null,true,null,true,null,true,null,true]
[null,null,null,null,null,null,null,null,null,null,null,null,null,null,null,null,null,null,null,null,null,null,null,null,true,null,true,null,true,null,true,null,true,null,true,null,true,null,true,null,true]
[null,null,null,null,null,null,null,null,null,null,null,null,null,null,null,null,null,null,null,null,null,null,null,null,true,null,true,null,true,null,true,null,true,null,true,null,true,null,true,null,true]
[null,null,null,null,null,null,null,null,null,null,null,null,null,null,null,null,null,null,null,null,null,null,null,null,true,null,true,null,true,null,true,null,true,null,true,null,true,null,true,null,true]
[null,null,null,null,null,null,null,null,null,null,null,null,null,null,null,null,null,null,null,null,null,null,null,null,true,null,true,null,true,null,true,null,true,null,true,null,true,null,true,null,true]
[null,null,null,null,null,null,null,null,null,null,null,null,null,null,null,null,null,null,null,null,null,null,null,null,true,null,true,null,true,null,true,null,true,null,true,null,true,null,true,null,true]
[null,null,null,null,null,null,null,null,null,null,null,null,null,null,null,null,null,null,null,null,null,null,null,null,true,null,true,null,true,null,true,null,true,null,true,null,true,null,true,null,true]
[null,null,null,null,null,null,null,null,null,null,null,null,null,null,null,null,null,null,null,null,null,null,null,null,true,null,true,null,true,null,true,null,true,null,true,null,true,null,true,null,true]
[null,null,null,null,null,null,null,null,null,null,null,null,null,null,null,null,null,null,null,null,null,null,null,null,true,null,true,null,true,null,true,null,true,null,true,null,true,null,true,null,true]
[null,null,null,null,null,null,null,null,null,null,null,null,null,null,null,null,null,null,null,null,null,null,null,null,true,null,true,null,true,null,true,null,true,null,true,null,true,null,true,null,true]
[null,null,null,null,null,null,null,null,null,null,null,null,null,null,null,null,null,null,null,null,null,null,null,null,true,null,true,null,true,null,true,null,true,null,true,null,true,null,true,null,true]
[null,null,null,null,null,null,null,null,null,null,null,null,null,null,null,null,null,null,null,null,null,null,null,null,true,null,true,null,true,null,true,null,true,null,true,null,true,null,true,null,true]
[null,null,null,null,null,null,null,null,null,null,null,null,null,null,null,null,null,null,null,null,null,null,null,null,{"$f":"EXACT(E157,X157)","v":true},null,{"$f":"EXACT(G157,Z157)","v":true},null,{"$f":"EXACT(I157,AB157)","v":true},null,{"$f":"EXACT(K157,AD157)","v":true},null,{"$f":"EXACT(M157,AF157)","v":true},null,{"$f":"EXACT(O157,AH157)","v":true},null,{"$f":"EXACT(Q157,AJ157)","v":true},null,{"$f":"EXACT(S157,AL157)","v":true},null,{"$f":"EXACT(U157,AN157)","v":true}]
[null,null,null,null,null,null,null,null,null,null,null,null,null,null,null,null,null,null,null,null,null,null,null,null,true,null,true,null,true,null,true,null,true,null,true,null,true,null,true,null,true]
[null,null,null,null,null,null,null,null,null,null,null,null,null,null,null,null,null,null,null,null,null,null,null,null,true,null,true,null,true,null,true,null,true,null,true,null,true,null,true,null,true]
[null,null,null,null,null,null,null,null,null,null,null,null,null,null,null,null,null,null,null,null,null,null,null,null,true,null,true,null,true,null,true,null,true,null,true,null,true,null,true,null,true]
[null,null,null,null,null,null,null,null,null,null,null,null,null,null,null,null,null,null,null,null,null,null,null,null,true,null,true,null,true,null,true,null,true,null,true,null,true,null,true,null,true]
[null,null,null,null,null,null,null,null,null,null,null,null,null,null,null,null,null,null,null,null,null,null,null,null,true,null,true,null,true,null,true,null,true,null,true,null,true,null,true,null,true]
[null,null,null,null,null,null,null,null,null,null,null,null,null,null,null,null,null,null,null,null,null,null,null,null,true,null,true,null,true,null,true,null,true,null,true,null,true,null,true,null,true]
[null,null,null,null,null,null,null,null,null,null,null,null,null,null,null,null,null,null,null,null,null,null,null,null,true,null,true,null,true,null,true,null,true,null,true,null,true,null,true,null,true]
[null,null,null,null,null,null,null,null,null,null,null,null,null,null,null,null,null,null,null,null,null,null,null,null,true,null,true,null,true,null,true,null,true,null,true,null,true,null,true,null,true]
[null,null,null,null,null,null,null,null,null,null,null,null,null,null,null,null,null,null,null,null,null,null,null,null,true,null,true,null,true,null,true,null,true,null,true,null,true,null,true,null,true]
[null,null,null,null,null,null,null,null,null,null,null,null,null,null,null,null,null,null,null,null,null,null,null,null,true,null,true,null,true,null,true,null,true,null,true,null,true,null,true,null,true]
[null,null,null,null,null,null,null,null,null,null,null,null,null,null,null,null,null,null,null,null,null,null,null,null,true,null,true,null,true,null,true,null,true,null,true,null,true,null,true,null,true]
[null,null,null,null,null,null,null,null,null,null,null,null,null,null,null,null,null,null,null,null,null,null,null,null,true,null,true,null,true,null,true,null,true,null,true,null,true,null,true,null,true]
[null,null,null,null,null,null,null,null,null,null,null,null,null,null,null,null,null,null,null,null,null,null,null,null,true,null,true,null,true,null,true,null,true,null,true,null,true,null,true,null,true]
[null,null,null,null,null,null,null,null,null,null,null,null,null,null,null,null,null,null,null,null,null,null,null,null,true,null,true,null,true,null,true,null,true,null,true,null,true,null,true,null,true]
[null,null,null,null,null,null,null,null,null,null,null,null,null,null,null,null,null,null,null,null,null,null,null,null,true,null,true,null,true,null,true,null,true,null,true,null,true,null,true,null,true]
[null,null,null,null,null,null,null,null,null,null,null,null,null,null,null,null,null,null,null,null,null,null,null,null,true,null,true,null,true,null,true,null,true,null,true,null,true,null,true,null,true]
[null,null,null,null,null,null,null,null,null,null,null,null,null,null,null,null,null,null,null,null,null,null,null,null,true,null,true,null,true,null,true,null,true,null,true,null,true,null,true,null,true]
[null,null,null,null,null,null,null,null,null,null,null,null,null,null,null,null,null,null,null,null,null,null,null,null,true,null,true,null,true,null,true,null,true,null,true,null,true,null,true,null,true]
[null,null,null,null,null,null,null,null,null,null,null,null,null,null,null,null,null,null,null,null,null,null,null,null,true,null,true,null,true,null,true,null,true,null,true,null,true,null,true,null,true]
[null,null,null,null,null,null,null,null,null,null,null,null,null,null,null,null,null,null,null,null,null,null,null,null,true,null,true,null,true,null,true,null,true,null,true,null,true,null,true,null,true]
[null,null,null,null,null,null,null,null,null,null,null,null,null,null,null,null,null,null,null,null,null,null,null,null,true,null,true,null,true,null,true,null,true,null,true,null,true,null,true,null,true]
[null,null,null,null,null,null,null,null,null,null,null,null,null,null,null,null,null,null,null,null,null,null,null,null,true,null,true,null,true,null,true,null,true,null,true,null,true,null,true,null,true]
[null,null,null,null,null,null,null,null,null,null,null,null,null,null,null,null,null,null,null,null,null,null,null,null,true,null,true,null,true,null,true,null,true,null,true,null,true,null,true,null,true]
[null,null,null,null,null,null,null,null,null,null,null,null,null,null,null,null,null,null,null,null,null,null,null,null,true,null,true,null,true,null,true,null,true,null,true,null,true,null,true,null,true]
[null,null,null,null,null,null,null,null,null,null,null,null,null,null,null,null,null,null,null,null,null,null,null,null,true,null,true,null,true,null,true,null,true,null,true,null,true,null,true,null,true]
[null,null,null,null,null,null,null,null,null,null,null,null,null,null,null,null,null,null,null,null,null,null,null,null,true,null,true,null,true,null,true,null,true,null,true,null,true,null,true,null,true]
[null,null,null,null,null,null,null,null,null,null,null,null,null,null,null,null,null,null,null,null,null,null,null,null,true,null,true,null,true,null,true,null,true,null,true,null,true,null,true,null,true]
[null,null,null,null,null,null,null,null,null,null,null,null,null,null,null,null,null,null,null,null,null,null,null,null,true,null,true,null,true,null,true,null,true,null,true,null,true,null,true,null,true]
[null,null,null,null,null,null,null,null,null,null,null,null,null,null,null,null,null,null,null,null,null,null,null,null,true,null,true,null,true,null,true,null,true,null,true,null,true,null,true,null,true]
[null,null,null,null,null,null,null,null,null,null,null,null,null,null,null,null,null,null,null,null,null,null,null,null,true,null,true,null,true,null,true,null,true,null,true,null,true,null,true,null,true]
[null,null,null,null,null,null,null,null,null,null,null,null,null,null,null,null,null,null,null,null,null,null,null,null,true,null,true,null,true,null,true,null,true,null,true,null,true,null,true,null,true]
[null,null,null,null,null,null,null,null,null,null,null,null,null,null,null,null,null,null,null,null,null,null,null,null,{"$f":"EXACT(E189,X189)","v":true},null,{"$f":"EXACT(G189,Z189)","v":true},null,{"$f":"EXACT(I189,AB189)","v":true},null,{"$f":"EXACT(K189,AD189)","v":true},null,{"$f":"EXACT(M189,AF189)","v":true},null,{"$f":"EXACT(O189,AH189)","v":true},null,{"$f":"EXACT(Q189,AJ189)","v":true},null,{"$f":"EXACT(S189,AL189)","v":true},null,{"$f":"EXACT(U189,AN189)","v":true}]
[null,null,null,null,null,null,null,null,null,null,null,null,null,null,null,null,null,null,null,null,null,null,null,null,true,null,true,null,true,null,true,null,true,null,true,null,true,null,true,null,true]
[null,null,null,null,null,null,null,null,null,null,null,null,null,null,null,null,null,null,null,null,null,null,null,null,true,null,true,null,true,null,true,null,true,null,true,null,true,null,true,null,true]
[null,null,null,null,null,null,null,null,null,null,null,null,null,null,null,null,null,null,null,null,null,null,null,null,true,null,true,null,true,null,true,null,true,null,true,null,true,null,true,null,true]
[null,null,null,null,null,null,null,null,null,null,null,null,null,null,null,null,null,null,null,null,null,null,null,null,true,null,true,null,true,null,true,null,true,null,true,null,true,null,true,null,true]
[null,null,null,null,null,null,null,null,null,null,null,null,null,null,null,null,null,null,null,null,null,null,null,null,true,null,true,null,true,null,true,null,true,null,true,null,true,null,true,null,true]
[null,null,null,null,null,null,null,null,null,null,null,null,null,null,null,null,null,null,null,null,null,null,null,null,true,null,true,null,true,null,true,null,true,null,true,null,true,null,true,null,true]
[null,null,null,null,null,null,null,null,null,null,null,null,null,null,null,null,null,null,null,null,null,null,null,null,true,null,true,null,true,null,true,null,true,null,true,null,true,null,true,null,true]
[null,null,null,null,null,null,null,null,null,null,null,null,null,null,null,null,null,null,null,null,null,null,null,null,true,null,true,null,true,null,true,null,true,null,true,null,true,null,true,null,true]
[null,null,null,null,null,null,null,null,null,null,null,null,null,null,null,null,null,null,null,null,null,null,null,null,true,null,true,null,true,null,true,null,true,null,true,null,true,null,true,null,true]
[null,null,null,null,null,null,null,null,null,null,null,null,null,null,null,null,null,null,null,null,null,null,null,null,true,null,true,null,true,null,true,null,true,null,true,null,true,null,true,null,true]
[null,null,null,null,null,null,null,null,null,null,null,null,null,null,null,null,null,null,null,null,null,null,null,null,true,null,true,null,true,null,true,null,true,null,true,null,true,null,true,null,true]
[null,null,null,null,null,null,null,null,null,null,null,null,null,null,null,null,null,null,null,null,null,null,null,null,true,null,true,null,true,null,true,null,true,null,true,null,true,null,true,null,true]
[null,null,null,null,null,null,null,null,null,null,null,null,null,null,null,null,null,null,null,null,null,null,null,null,true,null,true,null,true,null,true,null,true,null,true,null,true,null,true,null,true]
[null,null,null,null,null,null,null,null,null,null,null,null,null,null,null,null,null,null,null,null,null,null,null,null,true,null,true,null,true,null,true,null,true,null,true,null,true,null,true,null,true]
[null,null,null,null,null,null,null,null,null,null,null,null,null,null,null,null,null,null,null,null,null,null,null,null,true,null,true,null,true,null,true,null,true,null,true,null,true,null,true,null,true]
[null,null,null,null,null,null,null,null,null,null,null,null,null,null,null,null,null,null,null,null,null,null,null,null,true,null,true,null,true,null,true,null,true,null,true,null,true,null,true,null,true]
[null,null,null,null,null,null,null,null,null,null,null,null,null,null,null,null,null,null,null,null,null,null,null,null,true,null,true,null,true,null,true,null,true,null,true,null,true,null,true,null,true]
[null,null,null,null,null,null,null,null,null,null,null,null,null,null,null,null,null,null,null,null,null,null,null,null,true,null,true,null,true,null,true,null,true,null,true,null,true,null,true,null,true]
[null,null,null,null,null,null,null,null,null,null,null,null,null,null,null,null,null,null,null,null,null,null,null,null,true,null,true,null,true,null,true,null,true,null,true,null,true,null,true,null,true]
[null,null,null,null,null,null,null,null,null,null,null,null,null,null,null,null,null,null,null,null,null,null,null,null,true,null,true,null,true,null,true,null,true,null,true,null,true,null,true,null,true]
[null,null,null,null,null,null,null,null,null,null,null,null,null,null,null,null,null,null,null,null,null,null,null,null,true,null,true,null,true,null,true,null,true,null,true,null,true,null,true,null,true]
[null,null,null,null,null,null,null,null,null,null,null,null,null,null,null,null,null,null,null,null,null,null,null,null,true,null,true,null,true,null,true,null,true,null,true,null,true,null,true,null,true]
[null,null,null,null,null,null,null,null,null,null,null,null,null,null,null,null,null,null,null,null,null,null,null,null,true,null,true,null,true,null,true,null,true,null,true,null,true,null,true,null,true]
[null,null,null,null,null,null,null,null,null,null,null,null,null,null,null,null,null,null,null,null,null,null,null,null,true,null,true,null,true,null,true,null,true,null,true,null,true,null,true,null,true]
[null,null,null,null,null,null,null,null,null,null,null,null,null,null,null,null,null,null,null,null,null,null,null,null,true,null,true,null,true,null,true,null,true,null,true,null,true,null,true,null,true]
[null,null,null,null,null,null,null,null,null,null,null,null,null,null,null,null,null,null,null,null,null,null,null,null,true,null,true,null,true,null,true,null,true,null,true,null,true,null,true,null,true]
[null,null,null,null,null,null,null,null,null,null,null,null,null,null,null,null,null,null,null,null,null,null,null,null,true,null,true,null,true,null,true,null,true,null,true,null,true,null,true,null,true]
[null,null,null,null,null,null,null,null,null,null,null,null,null,null,null,null,null,null,null,null,null,null,null,null,true,null,true,null,true,null,true,null,true,null,true,null,true,null,true,null,true]

{"sheet":"2a","index":8,"n_rows":156,"n_cols":22,"rows_kept":156,"cut":false,"hidden":false,"merged":[[6,10,7,11],[5,16,5,21],[85,0,105,0],[106,0,116,0],[0,4,0,21],[2,4,2,21],[3,4,3,21],[6,18,7,19],[6,20,7,21],[5,4,7,5],[6,12,7,13],[6,14,7,15],[6,16,7,17],[5,10,5,15],[117,0,154,0],[10,0,13,0],[14,0,17,0],[62,0,84,0],[5,6,5,9],[19,0,61,0],[6,6,7,7],[6,8,7,9]]}
[null,"2a) ICT Usage by gender and urban/rural",null,null,"2a) ICT Usage by gender and urban/rural"]
[]
[null,"The numbers included here should be population estimates (i.e. weighted sampling values).",null,null,"The numbers included here should be population estimates (i.e. weighted sampling values)."]
[null,"For definitions and further information on the indicators see the ITU Manual for Measuring ICT Access and Use by Households and Individuals",null,null,"For definitions and further information on the indicators see the ITU Manual for Measuring ICT Access and Use by Households and Individuals"]
[]
[null,null,null,null,"All individuals",null,"Gender",null,null,null,"Urban",null,null,null,null,null,"Rural"]
[null,"No.",null,"Indicators",null,null,"Male",null,"Female",null,"Total",null,"Male",null,"Female",null,"Total",null,"Male",null,"Female"]
[]
[null,null,null,null,"Value","Note","Value","Note","Value","Note","Value","Note","Value","Note","Value","Note","Value","Note","Value","Note","Value","Note"]
[null,"TOTAL TARGET POPULATION\n (NUMBER OF IN-SCOPE INDIVIDUALS)",null,"TOTAL TARGET POPULATION\n (NUMBER OF IN-SCOPE INDIVIDUALS):"]
["COMPUTER","HH5",0,"Number of individuals who used a computer (from any location) in the last three months"]
[null,null,1,"Desktop"]
[null,null,2,"Laptop (portable) computer"]
[null,null,3,"Tablet (or similar handheld computer)"]
["MOBILE PHONE","HH10",0,"Number of individuals who used a mobile cellular telephone in the last three months"]
[null,null,1,"Number of individuals who used a smart phone in the last three months"]
[null,"HH18",0,"Number of individuals who own a mobile cellular telephone (SDG Indicator)"]
[null,null,1,"Number of individuals who own a smart phone"]
["INTERNET","HH7",0,"Number of individuals who used the Internet (from any location) in the last three months (SDG Indicator)"]
["ICT SKILLS","HH15/HH9",0,"Number of individuals with ICT skills, by type of skills  (SDG Indicator)"]
[null,null,null,"Information and data literacy"]
[null,null,null,"Basic skills (number of individuals doing exactly one of the following activities)"]
[null,null,null,"Above basic skills (number of individuals doing at least two of the following activities)"]
[null,null,null,"Verifying the truthfulness of information found online (HH15)"]
[null,null,2,"Finding information about goods or services (HH9)"]
[null,null,7,"Accessing news or books in a digital format (e.g. reading online news, watching news videos online, reading e-books on an e-reading device) (HH9)"]
[null,null,3,"Finding health information (HH9)"]
[null,null,null,"Communication and collaboration"]
[null,null,null,"Basic skills (number of individuals doing exactly one of the following activities)"]
[null,null,null,"Above basic skills (number of individuals doing at least two of the following activities)"]
[null,null,null,"Sending content (e.g. document, picture, video through attached files, embedded content, hyperlinks) in messages (e.g. e-mail, messaging service, MMS) (HH15)"]
[null,null,10,"Making calls (Telephoning over the Internet/VoIP, using Skype, Whatsapp, Viber, iTalk, etc.; includes video calls via webcam) (HH9)"]
[null,null,11,"Participating on social networking platforms (e.g. creating user profile, reading or posting messages and other contributions to Facebook, X, Instagram, Snapchat, TikTok) (HH9)"]
[null,null,14,"Taking part in consultations via the Internet to define civic or social issues (e.g. urban planning, signing a petition, voting) (HH9)"]
[null,null,null,"Digital content creation"]
[null,null,null,"Basic skills (number of individuals doing exactly one of the following activities)"]
[null,null,null,"Above basic skills (number of individuals doing at least two of the following activities)"]
[null,null,33,"Editing text documents, spreadsheets or presentations using digital tools (e.g. Google Docs, Sharepoint, Apple iCloud, etc.)  (HH9)"]
[null,null,null,"Duplicating or moving data, information and content in digital environments (e.g. within a document, between devices, on the cloud) (HH15)"]
[null,null,null,"Creating content combining different digital media (including text, images, sound, video or charts) (HH15)"]
[null,null,null,"Using spreadsheet software (e.g. using basic arithmetic formulae, functions, macros) (HH15)"]
[null,null,null,"Programming or coding in digital environments (HH15)"]
[null,null,null,"Safety"]
[null,null,null,"Basic skills (number of individuals doing exactly one of the following activities)"]
[null,null,null,"Above basic skills (number of individuals doing two of the following activities)"]
[null,null,null,"Taking security measures to protect devices and online accounts (e.g. changing passwords, avoiding unsecure links or downloads, setting up two-factor authentication) (HH15)"]
[null,null,null,"Taking measures to protect privacy on your device, account or app (e.g. to limit the sharing of personal data and information, restrict access to social network profiles or geolocation, prevent targeted marketing) (HH15)"]
[null,null,null,"Problem solving"]
[null,null,null,"Basic skills (number of individuals doing exactly one of the following activities)"]
[null,null,null,"Above basic skills (number of individuals doing at least two of the following activities)"]
[null,null,null,"Connecting new devices (e.g. camera, printer, wireless speakers or wireless headphones) (HH15)"]
[null,null,null,"Installing software or apps (HH15)"]
[null,null,19,"Using Internet or mobile banking (includes electronic transactions with a bank for payment, transfers, etc. such as M-Pesa, or for looking up account information) (HH9)"]
[null,null,21,"Doing an online course or accessing online learning material (e.g. video tutorials, webinars, learning apps) (HH9)"]
[null,null,17,"Purchasing or ordering goods or services (via the Internet whether or not payment was made online; includes purchasing of products such as music, travel and accommodation via the Internet) (HH9)"]
[null,null,null,"Overall ICT skills"]
[null,null,null,"Basic skills in 0-1 of 5 skill areas"]
[null,null,null,"Basic skills in 2 of 5 skill areas"]
[null,null,null,"Basic skills in 3 of 5 skill areas"]
[null,null,null,"Basic skills in 4 of 5 skill areas"]
[null,null,null,"Basic skills in 5 of 5 skill areas"]
[null,null,null,"Above basic skills in 5 of 5 skill areas"]
["INTERNET USE","HH8",0,"Number of individuals who used the Internet in the last three months, by location of use"]
[null,null,1,"at home"]
[null,null,2,"at work"]
[null,null,3,"at place of education"]
[null,null,4,"at another person's home"]
[null,null,10,"at facility open to the public"]
[null,null,5,"at community Internet access facility"]
[null,null,7,"While commuting, in transport or walking"]
[null,"HH12",0,"Number of individuals who used the Internet (from any location) in the last three months, by frequency"]
[null,null,1,"at least once a day"]
[null,null,2,"at least once a week but not every day"]
[null,null,3,"less than once a week"]
[null,"HH19",0,"Number of individuals not using the Internet, by type of reason"]
[null,null,1,"Do not need the Internet"]
[null,null,2,"Do not know how to use it"]
[null,null,3,"Cost of Internet use is too high (service charges, etc.)"]
[null,null,4,"Privacy or security concerns"]
[null,null,5,"Internet service is not available in the area"]
[null,null,6,"Cultural reasons (e.g. exposure to harmful content)"]
[null,null,7,"Don’t know what Internet is"]
[null,null,8,"Not allowed to use the Internet"]
[null,null,9,"Lack of local content"]
[null,null,10,"Other reason"]
["INTERNET ACTIVITIES\nNon-ICT skills","HH9",0,"Number of individuals using the Internet in the last three months, by type of activity"]
[null,null,1,"Access to information"]
[null,null,4,"Getting information from general government organizations"]
[null,null,5,"Using services related to travel or travel-related accommodation"]
[null,null,8,"Communication, civic participation and collaboration"]
[null,null,9,"Sending or receiving e-mail"]
[null,null,12,"Making an appointment with a health practitioner via the Internet (i.e. website, app, software)"]
[null,null,13,"Interacting with general government organizations"]
[null,null,15,"Accessing or posting opinions via any device on chat sites, blogs, newsgroups or online discussions that may be created by any individual or organization"]
[null,null,16,"Electronic commerce, trade, and transactions"]
[null,null,18,"Selling goods or services"]
[null,null,23,"Professional life"]
[null,null,24,"Looking for a job or sending/submitting a job application"]
[null,null,25,"Participating in professional networks"]
[null,null,26,"Entertainment, digital content consumption"]
[null,null,27,"Listening to web radio"]
[null,null,28,"Watching web television"]
[null,null,29,"Streaming or downloading images, movies, videos or music, playing or downloading games"]
[null,null,30,"Digital content creation"]
[null,null,31,"Uploading self/user-created content to a website to be shared"]
[null,null,32,"Using storage space on the Internet to save documents, pictures, music, video or other files"]
["INTERNET CONNECTION","HH17",0,"Number of individuals using the Internet in the last three months, by type of portable device and network used to access the Internet"]
[null,null,1,"a. Mobile phone"]
[null,null,2,"a1) via mobile cellular network"]
[null,null,3,"a2) via other wireless networks (e.g. WiFi)"]
[null,null,4,"b. Tablet"]
[null,null,5,"b1) via mobile cellular network, using USB key/dongle or integrated data SIM card"]
[null,null,6,"b2) via other wireless networks (e.g. WiFi)"]
[null,null,7,"c. Portable computer (laptop, notebook, netbook)"]
[null,null,8,"c1) via mobile cellular network, using USB key/dongle or integrated data SIM card or mobile cellular telephone as modem"]
[null,null,9,"c2) via other wireless networks (e.g. WiFi)"]
[null,null,10,"d. Other portable devices (e.g. portable games consoles, watches, e-book readers etc.)"]
["E-COMMERCE","HH20",0,"Number of individuals who purchased goods or servies online in the last three months, by type of goods and services purchased online"]
[null,null,1,"Books, magazines or newspapers"]
[null,null,2,"Clothing, footwear, sporting goods or accessories"]
[null,null,3,"Computer equipment or parts (including peripheral equipment)"]
[null,null,4,"Computer or video games"]
[null,null,5,"Computer software (includes upgrades and paid apps; not games)"]
[null,null,6,"Cosmetics"]
[null,null,7,"Financial products (including shares and insurance)"]
[null,null,8,"Food, groceries, alcohol or tobacco"]
[null,null,9,"Household goods (e.g. furniture, toys, etc.; excluding consumer electronics)"]
[null,null,10,"ICT services (excluding software)"]
[null,null,11,"Medicine"]
[null,null,12,"Movies, short films or images"]
[null,null,13,"Music products"]
[null,null,14,"Photographic, telecommunications or optical equipment"]
[null,null,15,"Tickets or bookings for entertainment events (sports, theatre, concerts, etc.)"]
[null,null,16,"Travel products (travel tickets, accommodation, vehicle hire, transport services etc.)"]
[null,"HH21",0,"Number of individuals who purchased goods or services online in the last three months, by type of payment channel"]
[null,null,1,"Cash on delivery"]
[null,null,2,"Credit card online"]
[null,null,3,"Debit card or electronic bank transfer online"]
[null,null,4,"Mobile money account (account connected to the mobile number)"]
[null,null,5,"Online payment service (e.g. PayPal, Google Checkout)"]
[null,null,6,"Prepaid gift card or online voucher"]
[null,null,7,"Points from rewards or redemption program (e.g. Air Miles)"]
[null,null,8,"Other (e.g. bank check by post, etc.)"]
[null,"HH22",0,"Number of individuals who purchased goods or services online in the last three months, by method of delivery"]
[null,null,1,"Delivery directly to the buyer using regular postal services or other forms of delivery"]
[null,null,2,"Picked up from point of sale or service point"]
[null,null,3,"Online / electronic delivery by downloading from a website or through an application, software or other device (e.g. in-app purchases, streaming services etc.)"]
[null,"HH23",0,"Number of individuals who did not purchase goods or services online in the last three months, by reason"]
[null,null,1,"Not interested"]
[null,null,2,"Prefer to shop in person"]
[null,null,3,"Security concerns (e.g. about giving personal details)"]
[null,null,4,"Privacy concerns (e.g. about giving personal details)"]
[null,null,5,"Technical concerns (e.g. about websites, payment or delivery)"]
[null,null,6,"Trust concerns (e.g. about warranties, receiving or returning products)"]
[null,null,7,"Lack of confidence, knowledge or skills"]
[null,null,null,"TOTAL POPULATION"]

{"sheet":"2b","index":9,"n_rows":156,"n_cols":28,"rows_kept":156,"cut":false,"hidden":false,"merged":[[10,0,13,0],[14,0,17,0],[62,0,84,0],[85,0,105,0],[6,14,7,15],[19,0,61,0],[6,24,7,25],[5,4,5,9],[3,4,3,15],[2,4,2,15],[5,10,5,15],[2,16,2,27],[3,16,3,27],[0,16,0,27],[106,0,116,0],[117,0,154,0],[0,4,0,15],[6,10,7,11],[6,12,7,13],[6,4,7,5],[6,6,7,7],[6,8,7,9],[6,16,7,17],[6,18,7,19],[5,22,5,27],[5,16,5,21],[6,26,7,27],[6,20,7,21],[6,22,7,23]]}
[null,"2b) ICT Usage by age and gender",null,null,"2b) ICT Usage by age and gender",null,null,null,null,null,null,null,null,null,null,null,"2b) ICT Usage by age and gender"]
[]
[null,null,null,null,"The numbers included here should be population estimates (i.e. weighted sampling values).",null,null,null,null,null,null,null,null,null,null,null,"The numbers included here should be population estimates (i.e. weighted sampling values)."]
[null,null,null,null,"For definitions and further information on the indicators see the ITU Manual for Measuring ICT Access and Use by Households and Individuals",null,null,null,null,null,null,null,null,null,null,null,"For definitions and further information on the indicators see the ITU Manual for Measuring ICT Access and Use by Households and Individuals"]
[]
[null,null,null,null,"Age less than 15",null,null,null,null,null,"Age 15-24",null,null,null,null,null,"Age 25-74",null,null,null,null,null,"Age 75 and over"]
[null,"No.",null,"Indicators","Total",null,"Male",null,"Female",null,"Total",null,"Male",null,"Female",null,"Total",null,"Male",null,"Female",null,"Total",null,"Male",null,"Female"]
[]
[null,null,null,null,"Value","Note","Value","Note","Value","Note","Value","Note","Value","Note","Value","Note","Value","Note","Value","Note","Value","Note","Value","Note","Value","Note","Value","Note"]
[null,"TOTAL TARGET POPULATION\n (NUMBER OF IN-SCOPE INDIVIDUALS)",null,"TOTAL TARGET POPULATION\n (NUMBER OF IN-SCOPE INDIVIDUALS):"]
["COMPUTER","HH5",0,"Number of individuals who used a computer (from any location) in the last three months"]
[null,null,1,"Desktop"]
[null,null,2,"Laptop (portable) computer"]
[null,null,3,"Tablet (or similar handheld computer)"]
["MOBILE PHONE","HH10",0,"Number of individuals who used a mobile cellular telephone in the last three months"]
[null,null,1,"Number of individuals who used a smart phone in the last three months"]
[null,"HH18",0,"Number of individuals who own a mobile cellular telephone (SDG Indicator)"]
[null,null,1,"Number of individuals who own a smart phone"]
["INTERNET","HH7",0,"Number of individuals who used the Internet (from any location) in the last three months (SDG Indicator)"]
["ICT SKILLS","HH15/HH9",0,"Number of individuals with ICT skills, by type of skills  (SDG Indicator)"]
[null,null,null,"Information and data literacy"]
[null,null,null,"Basic skills (number of individuals doing exactly one of the following activities)"]
[null,null,null,"Above basic skills (number of individuals doing at least two of the following activities)"]
[null,null,null,"Verifying the truthfulness of information found online (HH15)"]
[null,null,2,"Finding information about goods or services (HH9)"]
[null,null,7,"Accessing news or books in a digital format (e.g. reading online news, watching news videos online, reading e-books on an e-reading device) (HH9)"]
[null,null,3,"Finding health information (HH9)"]
[null,null,null,"Communication and collaboration"]
[null,null,null,"Basic skills (number of individuals doing exactly one of the following activities)"]
[null,null,null,"Above basic skills (number of individuals doing at least two of the following activities)"]
[null,null,null,"Sending content (e.g. document, picture, video through attached files, embedded content, hyperlinks) in messages (e.g. e-mail, messaging service, MMS) (HH15)"]
[null,null,10,"Making calls (Telephoning over the Internet/VoIP, using Skype, Whatsapp, Viber, iTalk, etc.; includes video calls via webcam) (HH9)"]
[null,null,11,"Participating on social networking platforms (e.g. creating user profile, reading or posting messages and other contributions to Facebook, X, Instagram, Snapchat, TikTok) (HH9)"]
[null,null,14,"Taking part in consultations via the Internet to define civic or social issues (e.g. urban planning, signing a petition, voting) (HH9)"]
[null,null,null,"Digital content creation"]
[null,null,null,"Basic skills (number of individuals doing exactly one of the following activities)"]
[null,null,null,"Above basic skills (number of individuals doing at least two of the following activities)"]
[null,null,33,"Editing text documents, spreadsheets or presentations using digital tools (e.g. Google Docs, Sharepoint, Apple iCloud, etc.)  (HH9)"]
[null,null,null,"Duplicating or moving data, information and content in digital environments (e.g. within a document, between devices, on the cloud) (HH15)"]
[null,null,null,"Creating content combining different digital media (including text, images, sound, video or charts) (HH15)"]
[null,null,null,"Using spreadsheet software (e.g. using basic arithmetic formulae, functions, macros) (HH15)"]
[null,null,null,"Programming or coding in digital environments (HH15)"]
[null,null,null,"Safety"]
[null,null,null,"Basic skills (number of individuals doing exactly one of the following activities)"]
[null,null,null,"Above basic skills (number of individuals doing two of the following activities)"]
[null,null,null,"Taking security measures to protect devices and online accounts (e.g. changing passwords, avoiding unsecure links or downloads, setting up two-factor authentication) (HH15)"]
[null,null,null,"Taking measures to protect privacy on your device, account or app (e.g. to limit the sharing of personal data and information, restrict access to social network profiles or geolocation, prevent targeted marketing) (HH15)"]
[null,null,null,"Problem solving"]
[null,null,null,"Basic skills (number of individuals doing exactly one of the following activities)"]
[null,null,null,"Above basic skills (number of individuals doing at least two of the following activities)"]
[null,null,null,"Connecting new devices (e.g. camera, printer, wireless speakers or wireless headphones) (HH15)"]
[null,null,null,"Installing software or apps (HH15)"]
[null,null,19,"Using Internet or mobile banking (includes electronic transactions with a bank for payment, transfers, etc. such as M-Pesa, or for looking up account information) (HH9)"]
[null,null,21,"Doing an online course or accessing online learning material (e.g. video tutorials, webinars, learning apps) (HH9)"]
[null,null,17,"Purchasing or ordering goods or services (via the Internet whether or not payment was made online; includes purchasing of products such as music, travel and accommodation via the Internet) (HH9)"]
[null,null,null,"Overall ICT skills"]
[null,null,null,"Basic skills in 0-1 of 5 skill areas"]
[null,null,null,"Basic skills in 2 of 5 skill areas"]
[null,null,null,"Basic skills in 3 of 5 skill areas"]
[null,null,null,"Basic skills in 4 of 5 skill areas"]
[null,null,null,"Basic skills in 5 of 5 skill areas"]
[null,null,null,"Above basic skills in 5 of 5 skill areas"]
["INTERNET USE","HH8",0,"Number of individuals who used the Internet in the last three months, by location of use"]
[null,null,1,"at home"]
[null,null,2,"at work"]
[null,null,3,"at place of education"]
[null,null,4,"at another person's home"]
[null,null,10,"at facility open to the public"]
[null,null,5,"at community Internet access facility"]
[null,null,7,"While commuting, in transport or walking"]
[null,"HH12",0,"Number of individuals who used the Internet (from any location) in the last three months, by frequency"]
[null,null,1,"at least once a day"]
[null,null,2,"at least once a week but not every day"]
[null,null,3,"less than once a week"]
[null,"HH19",0,"Number of individuals not using the Internet, by type of reason"]
[null,null,1,"Do not need the Internet"]
[null,null,2,"Do not know how to use it"]
[null,null,3,"Cost of Internet use is too high (service charges, etc.)"]
[null,null,4,"Privacy or security concerns"]
[null,null,5,"Internet service is not available in the area"]
[null,null,6,"Cultural reasons (e.g. exposure to harmful content)"]
[null,null,7,"Don’t know what Internet is"]
[null,null,8,"Not allowed to use the Internet"]
[null,null,9,"Lack of local content"]
[null,null,10,"Other reason"]
["INTERNET ACTIVITIES\nNon-ICT skills","HH9",0,"Number of individuals using the Internet in the last three months, by type of activity"]
[null,null,1,"Access to information"]
[null,null,4,"Getting information from general government organizations"]
[null,null,5,"Using services related to travel or travel-related accommodation"]
[null,null,8,"Communication, civic participation and collaboration"]
[null,null,9,"Sending or receiving e-mail"]
[null,null,12,"Making an appointment with a health practitioner via the Internet (i.e. website, app, software)"]
[null,null,13,"Interacting with general government organizations"]
[null,null,15,"Accessing or posting opinions via any device on chat sites, blogs, newsgroups or online discussions that may be created by any individual or organization"]
[null,null,16,"Electronic commerce, trade, and transactions"]
[null,null,18,"Selling goods or services"]
[null,null,23,"Professional life"]
[null,null,24,"Looking for a job or sending/submitting a job application"]
[null,null,25,"Participating in professional networks"]
[null,null,26,"Entertainment, digital content consumption"]
[null,null,27,"Listening to web radio"]
[null,null,28,"Watching web television"]
[null,null,29,"Streaming or downloading images, movies, videos or music, playing or downloading games"]
[null,null,30,"Digital content creation"]
[null,null,31,"Uploading self/user-created content to a website to be shared"]
[null,null,32,"Using storage space on the Internet to save documents, pictures, music, video or other files"]
["INTERNET CONNECTION","HH17",0,"Number of individuals using the Internet in the last three months, by type of portable device and network used to access the Internet"]
[null,null,1,"a. Mobile phone"]
[null,null,2,"a1) via mobile cellular network"]
[null,null,3,"a2) via other wireless networks (e.g. WiFi)"]
[null,null,4,"b. Tablet"]
[null,null,5,"b1) via mobile cellular network, using USB key/dongle or integrated data SIM card"]
[null,null,6,"b2) via other wireless networks (e.g. WiFi)"]
[null,null,7,"c. Portable computer (laptop, notebook, netbook)"]
[null,null,8,"c1) via mobile cellular network, using USB key/dongle or integrated data SIM card or mobile cellular telephone as modem"]
[null,null,9,"c2) via other wireless networks (e.g. WiFi)"]
[null,null,10,"d. Other portable devices (e.g. portable games consoles, watches, e-book readers etc.)"]
["E-COMMERCE","HH20",0,"Number of individuals who purchased goods or servies online in the last three months, by type of goods and services purchased online"]
[null,null,1,"Books, magazines or newspapers"]
[null,null,2,"Clothing, footwear, sporting goods or accessories"]
[null,null,3,"Computer equipment or parts (including peripheral equipment)"]
[null,null,4,"Computer or video games"]
[null,null,5,"Computer software (includes upgrades and paid apps; not games)"]
[null,null,6,"Cosmetics"]
[null,null,7,"Financial products (including shares and insurance)"]
[null,null,8,"Food, groceries, alcohol or tobacco"]
[null,null,9,"Household goods (e.g. furniture, toys, etc.; excluding consumer electronics)"]
[null,null,10,"ICT services (excluding software)"]
[null,null,11,"Medicine"]
[null,null,12,"Movies, short films or images"]
[null,null,13,"Music products"]
[null,null,14,"Photographic, telecommunications or optical equipment"]
[null,null,15,"Tickets or bookings for entertainment events (sports, theatre, concerts, etc.)"]
[null,null,16,"Travel products (travel tickets, accommodation, vehicle hire, transport services etc.)"]
[null,"HH21",0,"Number of individuals who purchased goods or services online in the last three months, by type of payment channel"]
[null,null,1,"Cash on delivery"]
[null,null,2,"Credit card online"]
[null,null,3,"Debit card or electronic bank transfer online"]
[null,null,4,"Mobile money account (account connected to the mobile number)"]
[null,null,5,"Online payment service (e.g. PayPal, Google Checkout)"]
[null,null,6,"Prepaid gift card or online voucher"]
[null,null,7,"Points from rewards or redemption program (e.g. Air Miles)"]
[null,null,8,"Other (e.g. bank check by post, etc.)"]
[null,"HH22",0,"Number of individuals who purchased goods or services online in the last three months, by method of delivery"]
[null,null,1,"Delivery directly to the buyer using regular postal services or other forms of delivery"]
[null,null,2,"Picked up from point of sale or service point"]
[null,null,3,"Online / electronic delivery by downloading from a website or through an application, software or other device (e.g. in-app purchases, streaming services etc.)"]
[null,"HH23",0,"Number of individuals who did not purchase goods or services online in the last three months, by reason"]
[null,null,1,"Not interested"]
[null,null,2,"Prefer to shop in person"]
[null,null,3,"Security concerns (e.g. about giving personal details)"]
[null,null,4,"Privacy concerns (e.g. about giving personal details)"]
[null,null,5,"Technical concerns (e.g. about websites, payment or delivery)"]
[null,null,6,"Trust concerns (e.g. about warranties, receiving or returning products)"]
[null,null,7,"Lack of confidence, knowledge or skills"]
[null,"TOTAL POPULATION",null,"TOTAL POPULATION"]

{"sheet":"2c","index":10,"n_rows":155,"n_cols":28,"rows_kept":155,"cut":false,"hidden":false,"merged":[[6,14,7,15],[6,16,7,17],[6,18,7,19],[19,0,61,0],[0,16,0,27],[6,26,7,27],[5,22,5,27],[6,10,7,11],[5,16,5,21],[5,10,5,15],[2,4,2,15],[3,4,3,15],[2,16,2,27],[3,16,3,27],[0,4,0,15],[5,4,5,9],[6,20,7,21],[6,22,7,23],[6,24,7,25],[6,12,7,13],[106,0,116,0],[117,0,154,0],[6,4,7,5],[6,6,7,7],[6,8,7,9],[10,0,13,0],[14,0,17,0],[62,0,84,0],[85,0,105,0]]}
[null,"2c)  ICT Usage by highest education level received and gender",null,null,"2c)  ICT Usage by highest education level received and gender",null,null,null,null,null,null,null,null,null,null,null,"2c)  ICT Usage by highest education level received and gender"]
[]
[null,null,null,null,"The numbers included here should be population estimates (i.e. weighted sampling values).",null,null,null,null,null,null,null,null,null,null,null,"The numbers included here should be population estimates (i.e. weighted sampling values)."]
[null,null,null,null,"For definitions and further information on the indicators see the ITU Manual for Measuring ICT Access and Use by Households and Individuals",null,null,null,null,null,null,null,null,null,null,null,"For definitions and further information on the indicators see the ITU Manual for Measuring ICT Access and Use by Households and Individuals"]
[]
[null,null,null,null,"Primary education or lower\n(ISCED 0,1)",null,null,null,null,null,"Lower secondary education\n(ISCED 2)",null,null,null,null,null,"Upper secondary or post-secondary non-tertiary \n(ISCED 3,4)",null,null,null,null,null,"Tertiary or post-tertiary education \n(ISCED 5,6,7,8)"]
[null,"No.",null,"Indicators","Total",null,"Male",null,"Female",null,"Total",null,"Male",null,"Female",null,"Total",null,"Male",null,"Female",null,"Total",null,"Male",null,"Female"]
[]
[null,null,null,null,"Value","Note","Value","Note","Value","Note","Value","Note","Value","Note","Value","Note","Value","Note","Value","Note","Value","Note","Value","Note","Value","Note","Value","Note"]
[null,"TOTAL TARGET POPULATION\n (NUMBER OF IN-SCOPE INDIVIDUALS)",null,"TOTAL TARGET POPULATION\n (NUMBER OF IN-SCOPE INDIVIDUALS):"]
["COMPUTER","HH5",0,"Number of individuals who used a computer (from any location) in the last three months"]
[null,null,1,"Desktop"]
[null,null,2,"Laptop (portable) computer"]
[null,null,3,"Tablet (or similar handheld computer)"]
["MOBILE PHONE","HH10",0,"Number of individuals who used a mobile cellular telephone in the last three months"]
[null,null,1,"Number of individuals who used a smart phone in the last three months"]
[null,"HH18",0,"Number of individuals who own a mobile cellular telephone (SDG Indicator)"]
[null,null,1,"Number of individuals who own a smart phone"]
["INTERNET","HH7",0,"Number of individuals who used the Internet (from any location) in the last three months (SDG Indicator)"]
["ICT SKILLS","HH15/HH9",0,"Number of individuals with ICT skills, by type of skills  (SDG Indicator)"]
[null,null,null,"Information and data literacy"]
[null,null,null,"Basic skills (number of individuals doing exactly one of the following activities)"]
[null,null,null,"Above basic skills (number of individuals doing at least two of the following activities)"]
[null,null,null,"Verifying the truthfulness of information found online (HH15)"]
[null,null,2,"Finding information about goods or services (HH9)"]
[null,null,7,"Accessing news or books in a digital format (e.g. reading online news, watching news videos online, reading e-books on an e-reading device) (HH9)"]
[null,null,3,"Finding health information (HH9)"]
[null,null,null,"Communication and collaboration"]
[null,null,null,"Basic skills (number of individuals doing exactly one of the following activities)"]
[null,null,null,"Above basic skills (number of individuals doing at least two of the following activities)"]
[null,null,null,"Sending content (e.g. document, picture, video through attached files, embedded content, hyperlinks) in messages (e.g. e-mail, messaging service, MMS) (HH15)"]
[null,null,10,"Making calls (Telephoning over the Internet/VoIP, using Skype, Whatsapp, Viber, iTalk, etc.; includes video calls via webcam) (HH9)"]
[null,null,11,"Participating on social networking platforms (e.g. creating user profile, reading or posting messages and other contributions to Facebook, X, Instagram, Snapchat, TikTok) (HH9)"]
[null,null,14,"Taking part in consultations via the Internet to define civic or social issues (e.g. urban planning, signing a petition, voting) (HH9)"]
[null,null,null,"Digital content creation"]
[null,null,null,"Basic skills (number of individuals doing exactly one of the following activities)"]
[null,null,null,"Above basic skills (number of individuals doing at least two of the following activities)"]
[null,null,33,"Editing text documents, spreadsheets or presentations using digital tools (e.g. Google Docs, Sharepoint, Apple iCloud, etc.)  (HH9)"]
[null,null,null,"Duplicating or moving data, information and content in digital environments (e.g. within a document, between devices, on the cloud) (HH15)"]
[null,null,null,"Creating content combining different digital media (including text, images, sound, video or charts) (HH15)"]
[null,null,null,"Using spreadsheet software (e.g. using basic arithmetic formulae, functions, macros) (HH15)"]
[null,null,null,"Programming or coding in digital environments (HH15)"]
[null,null,null,"Safety"]
[null,null,null,"Basic skills (number of individuals doing exactly one of the following activities)"]
[null,null,null,"Above basic skills (number of individuals doing two of the following activities)"]
[null,null,null,"Taking security measures to protect devices and online accounts (e.g. changing passwords, avoiding unsecure links or downloads, setting up two-factor authentication) (HH15)"]
[null,null,null,"Taking measures to protect privacy on your device, account or app (e.g. to limit the sharing of personal data and information, restrict access to social network profiles or geolocation, prevent targeted marketing) (HH15)"]
[null,null,null,"Problem solving"]
[null,null,null,"Basic skills (number of individuals doing exactly one of the following activities)"]
[null,null,null,"Above basic skills (number of individuals doing at least two of the following activities)"]
[null,null,null,"Connecting new devices (e.g. camera, printer, wireless speakers or wireless headphones) (HH15)"]
[null,null,null,"Installing software or apps (HH15)"]
[null,null,19,"Using Internet or mobile banking (includes electronic transactions with a bank for payment, transfers, etc. such as M-Pesa, or for looking up account information) (HH9)"]
[null,null,21,"Doing an online course or accessing online learning material (e.g. video tutorials, webinars, learning apps) (HH9)"]
[null,null,17,"Purchasing or ordering goods or services (via the Internet whether or not payment was made online; includes purchasing of products such as music, travel and accommodation via the Internet) (HH9)"]
[null,null,null,"Overall ICT skills"]
[null,null,null,"Basic skills in 0-1 of 5 skill areas"]
[null,null,null,"Basic skills in 2 of 5 skill areas"]
[null,null,null,"Basic skills in 3 of 5 skill areas"]
[null,null,null,"Basic skills in 4 of 5 skill areas"]
[null,null,null,"Basic skills in 5 of 5 skill areas"]
[null,null,null,"Above basic skills in 5 of 5 skill areas"]
["INTERNET USE","HH8",0,"Number of individuals who used the Internet in the last three months, by location of use"]
[null,null,1,"at home"]
[null,null,2,"at work"]
[null,null,3,"at place of education"]
[null,null,4,"at another person's home"]
[null,null,10,"at facility open to the public"]
[null,null,5,"at community Internet access facility"]
[null,null,7,"While commuting, in transport or walking"]
[null,"HH12",0,"Number of individuals who used the Internet (from any location) in the last three months, by frequency"]
[null,null,1,"at least once a day"]
[null,null,2,"at least once a week but not every day"]
[null,null,3,"less than once a week"]
[null,"HH19",0,"Number of individuals not using the Internet, by type of reason"]
[null,null,1,"Do not need the Internet"]
[null,null,2,"Do not know how to use it"]
[null,null,3,"Cost of Internet use is too high (service charges, etc.)"]
[null,null,4,"Privacy or security concerns"]
[null,null,5,"Internet service is not available in the area"]
[null,null,6,"Cultural reasons (e.g. exposure to harmful content)"]
[null,null,7,"Don’t know what Internet is"]
[null,null,8,"Not allowed to use the Internet"]
[null,null,9,"Lack of local content"]
[null,null,10,"Other reason"]
["INTERNET ACTIVITIES\nNon-ICT skills","HH9",0,"Number of individuals using the Internet in the last three months, by type of activity"]
[null,null,1,"Access to information"]
[null,null,4,"Getting information from general government organizations"]
[null,null,5,"Using services related to travel or travel-related accommodation"]
[null,null,8,"Communication, civic participation and collaboration"]
[null,null,9,"Sending or receiving e-mail"]
[null,null,12,"Making an appointment with a health practitioner via the Internet (i.e. website, app, software)"]
[null,null,13,"Interacting with general government organizations"]
[null,null,15,"Accessing or posting opinions via any device on chat sites, blogs, newsgroups or online discussions that may be created by any individual or organization"]
[null,null,16,"Electronic commerce, trade, and transactions"]
[null,null,18,"Selling goods or services"]
[null,null,23,"Professional life"]
[null,null,24,"Looking for a job or sending/submitting a job application"]
[null,null,25,"Participating in professional networks"]
[null,null,26,"Entertainment, digital content consumption"]
[null,null,27,"Listening to web radio"]
[null,null,28,"Watching web television"]
[null,null,29,"Streaming or downloading images, movies, videos or music, playing or downloading games"]
[null,null,30,"Digital content creation"]
[null,null,31,"Uploading self/user-created content to a website to be shared (SDG indicator - ICT skills)"]
[null,null,32,"Using storage space on the Internet to save documents, pictures, music, video or other files"]
["INTERNET CONNECTION","HH17",0,"Number of individuals using the Internet in the last three months, by type of portable device and network used to access the Internet"]
[null,null,1,"a. Mobile phone"]
[null,null,2,"a1) via mobile cellular network"]
[null,null,3,"a2) via other wireless networks (e.g. WiFi)"]
[null,null,4,"b. Tablet"]
[null,null,5,"b1) via mobile cellular network, using USB key/dongle or integrated data SIM card"]
[null,null,6,"b2) via other wireless networks (e.g. WiFi)"]
[null,null,7,"c. Portable computer (laptop, notebook, netbook)"]
[null,null,8,"c1) via mobile cellular network, using USB key/dongle or integrated data SIM card or mobile cellular telephone as modem"]
[null,null,9,"c2) via other wireless networks (e.g. WiFi)"]
[null,null,10,"d. Other portable devices (e.g. portable games consoles, watches, e-book readers etc.)"]
["E-COMMERCE","HH20",0,"Number of individuals who purchased goods or servies online in the last three months, by type of goods and services purchased online"]
[null,null,1,"Books, magazines or newspapers"]
[null,null,2,"Clothing, footwear, sporting goods or accessories"]
[null,null,3,"Computer equipment or parts (including peripheral equipment)"]
[null,null,4,"Computer or video games"]
[null,null,5,"Computer software (includes upgrades and paid apps; not games)"]
[null,null,6,"Cosmetics"]
[null,null,7,"Financial products (including shares and insurance)"]
[null,null,8,"Food, groceries, alcohol or tobacco"]
[null,null,9,"Household goods (e.g. furniture, toys, etc.; excluding consumer electronics)"]
[null,null,10,"ICT services (excluding software)"]
[null,null,11,"Medicine"]
[null,null,12,"Movies, short films or images"]
[null,null,13,"Music products"]
[null,null,14,"Photographic, telecommunications or optical equipment"]
[null,null,15,"Tickets or bookings for entertainment events (sports, theatre, concerts, etc.)"]
[null,null,16,"Travel products (travel tickets, accommodation, vehicle hire, transport services etc.)"]
[null,"HH21",0,"Number of individuals who purchased goods or services online in the last three months, by type of payment channel"]
[null,null,1,"Cash on delivery"]
[null,null,2,"Credit card online"]
[null,null,3,"Debit card or electronic bank transfer online"]
[null,null,4,"Mobile money account (account connected to the mobile number)"]
[null,null,5,"Online payment service (e.g. PayPal, Google Checkout)"]
[null,null,6,"Prepaid gift card or online voucher"]
[null,null,7,"Points from rewards or redemption program (e.g. Air Miles)"]
[null,null,8,"Other (e.g. bank check by post, etc.)"]
[null,"HH22",0,"Number of individuals who purchased goods or services online in the last three months, by method of delivery"]
[null,null,1,"Delivery directly to the buyer using regular postal services or other forms of delivery"]
[null,null,2,"Picked up from point of sale or service point"]
[null,null,3,"Online / electronic delivery by downloading from a website or through an application, software or other device (e.g. in-app purchases, streaming services etc.)"]
[null,"HH23",0,"Number of individuals who did not purchase goods or services online in the last three months, by reason"]
[null,null,1,"Not interested"]
[null,null,2,"Prefer to shop in person"]
[null,null,3,"Security concerns (e.g. about giving personal details)"]
[null,null,4,"Privacy concerns (e.g. about giving personal details)"]
[null,null,5,"Technical concerns (e.g. about websites, payment or delivery)"]
[null,null,6,"Trust concerns (e.g. about warranties, receiving or returning products)"]
[null,null,7,"Lack of confidence, knowledge or skills"]

{"sheet":"2d","index":11,"n_rows":159,"n_cols":34,"rows_kept":159,"cut":false,"hidden":false,"merged":[[19,0,61,0],[0,4,0,21],[6,8,7,9],[10,0,13,0],[6,32,7,33],[6,14,7,15],[6,28,7,29],[0,22,0,33],[5,10,5,15],[5,4,5,9],[2,22,2,33],[3,22,3,33],[5,16,5,21],[2,4,2,21],[3,4,3,21],[5,22,5,27],[5,28,5,33],[85,0,105,0],[106,0,116,0],[117,0,154,0],[6,10,7,11],[6,30,7,31],[6,26,7,27],[6,16,7,17],[6,18,7,19],[6,22,7,23],[6,24,7,25],[14,0,17,0],[62,0,84,0],[6,4,7,5],[6,6,7,7],[6,20,7,21],[6,12,7,13]]}
[null,"2d)   ICT Usage by labour force status and gender",null,null,"2d)   ICT Usage by labour force status and gender",null,null,null,null,null,null,null,null,null,null,null,null,null,null,null,null,null,"2d)   ICT Usage by labour force status and gender"]
[]
[null,null,null,null,"The numbers included here should be population estimates (i.e. weighted sampling values).",null,null,null,null,null,null,null,null,null,null,null,null,null,null,null,null,null,"The numbers included here should be population estimates (i.e. weighted sampling values)."]
[null,null,null,null,"For definitions and further information on the indicators see the ITU Manual for Measuring ICT Access and Use by Households and Individuals",null,null,null,null,null,null,null,null,null,null,null,null,null,null,null,null,null,"For definitions and further information on the indicators see the ITU Manual for Measuring ICT Access and Use by Households and Individuals"]
[]
[null,null,null,null,"Paid employee ",null,null,null,null,null,"Self-employed (*)",null,null,null,null,null,"Unemployed",null,null,null,null,null,"Not in the labour force (**)",null,null,null,null,null,"Not classifiable by status (***)"]
[null,"No.",null,"Indicators","Total",null,"Male",null,"Female",null,"Total",null,"Male",null,"Female",null,"Total",null,"Male",null,"Female",null,"Total",null,"Male",null,"Female",null,"Total",null,"Male",null,"Female"]
[]
[null,null,null,null,"Value","Note","Value","Note","Value","Note","Value","Note","Value","Note","Value","Note","Value","Note","Value","Note","Value","Note","Value","Note","Value","Note","Value","Note","Value","Note","Value","Note","Value","Note"]
[null,"TOTAL TARGET POPULATION\n (NUMBER OF IN-SCOPE INDIVIDUALS)",null,"TOTAL TARGET POPULATION\n (NUMBER OF IN-SCOPE INDIVIDUALS):"]
["COMPUTER","HH5",0,"Number of individuals who used a computer (from any location) in the last three months"]
[null,null,1,"Desktop"]
[null,null,2,"Laptop (portable) computer"]
[null,null,3,"Tablet (or similar handheld computer)"]
["MOBILE PHONE","HH10",0,"Number of individuals who used a mobile cellular telephone in the last three months"]
[null,null,1,"Number of individuals who used a smart phone in the last three months"]
[null,"HH18",0,"Number of individuals who own a mobile cellular telephone (SDG Indicator)"]
[null,null,1,"Number of individuals who own a smart phone"]
["INTERNET","HH7",0,"Number of individuals who used the Internet (from any location) in the last three months (SDG Indicator)"]
["ICT SKILLS","HH15/HH9",0,"Number of individuals with ICT skills, by type of skills  (SDG Indicator)"]
[null,null,null,"Information and data literacy"]
[null,null,null,"Basic skills (number of individuals doing exactly one of the following activities)"]
[null,null,null,"Above basic skills (number of individuals doing at least two of the following activities)"]
[null,null,null,"Verifying the truthfulness of information found online (HH15)"]
[null,null,2,"Finding information about goods or services (HH9)"]
[null,null,7,"Accessing news or books in a digital format (e.g. reading online news, watching news videos online, reading e-books on an e-reading device) (HH9)"]
[null,null,3,"Finding health information (HH9)"]
[null,null,null,"Communication and collaboration"]
[null,null,null,"Basic skills (number of individuals doing exactly one of the following activities)"]
[null,null,null,"Above basic skills (number of individuals doing at least two of the following activities)"]
[null,null,null,"Sending content (e.g. document, picture, video through attached files, embedded content, hyperlinks) in messages (e.g. e-mail, messaging service, MMS) (HH15)"]
[null,null,10,"Making calls (Telephoning over the Internet/VoIP, using Skype, Whatsapp, Viber, iTalk, etc.; includes video calls via webcam) (HH9)"]
[null,null,11,"Participating on social networking platforms (e.g. creating user profile, reading or posting messages and other contributions to Facebook, X, Instagram, Snapchat, TikTok) (HH9)"]
[null,null,14,"Taking part in consultations via the Internet to define civic or social issues (e.g. urban planning, signing a petition, voting) (HH9)"]
[null,null,null,"Digital content creation"]
[null,null,null,"Basic skills (number of individuals doing exactly one of the following activities)"]
[null,null,null,"Above basic skills (number of individuals doing at least two of the following activities)"]
[null,null,33,"Editing text documents, spreadsheets or presentations using digital tools (e.g. Google Docs, Sharepoint, Apple iCloud, etc.)  (HH9)"]
[null,null,null,"Duplicating or moving data, information and content in digital environments (e.g. within a document, between devices, on the cloud) (HH15)"]
[null,null,null,"Creating content combining different digital media (including text, images, sound, video or charts) (HH15)"]
[null,null,null,"Using spreadsheet software (e.g. using basic arithmetic formulae, functions, macros) (HH15)"]
[null,null,null,"Programming or coding in digital environments (HH15)"]
[null,null,null,"Safety"]
[null,null,null,"Basic skills (number of individuals doing exactly one of the following activities)"]
[null,null,null,"Above basic skills (number of individuals doing two of the following activities)"]
[null,null,null,"Taking security measures to protect devices and online accounts (e.g. changing passwords, avoiding unsecure links or downloads, setting up two-factor authentication) (HH15)"]
[null,null,null,"Taking measures to protect privacy on your device, account or app (e.g. to limit the sharing of personal data and information, restrict access to social network profiles or geolocation, prevent targeted marketing) (HH15)"]
[null,null,null,"Problem solving"]
[null,null,null,"Basic skills (number of individuals doing exactly one of the following activities)"]
[null,null,null,"Above basic skills (number of individuals doing at least two of the following activities)"]
[null,null,null,"Connecting new devices (e.g. camera, printer, wireless speakers or wireless headphones) (HH15)"]
[null,null,null,"Installing software or apps (HH15)"]
[null,null,19,"Using Internet or mobile banking (includes electronic transactions with a bank for payment, transfers, etc. such as M-Pesa, or for looking up account information) (HH9)"]
[null,null,21,"Doing an online course or accessing online learning material (e.g. video tutorials, webinars, learning apps) (HH9)"]
[null,null,17,"Purchasing or ordering goods or services (via the Internet whether or not payment was made online; includes purchasing of products such as music, travel and accommodation via the Internet) (HH9)"]
[null,null,null,"Overall ICT skills"]
[null,null,null,"Basic skills in 0-1 of 5 skill areas"]
[null,null,null,"Basic skills in 2 of 5 skill areas"]
[null,null,null,"Basic skills in 3 of 5 skill areas"]
[null,null,null,"Basic skills in 4 of 5 skill areas"]
[null,null,null,"Basic skills in 5 of 5 skill areas"]
[null,null,null,"Above basic skills in 5 of 5 skill areas"]
["INTERNET USE","HH8",0,"Number of individuals who used the Internet in the last three months, by location of use"]
[null,null,1,"at home"]
[null,null,2,"at work"]
[null,null,3,"at place of education"]
[null,null,4,"at another person's home"]
[null,null,10,"at facility open to the public"]
[null,null,5,"at community Internet access facility"]
[null,null,7,"While commuting, in transport or walking"]
[null,"HH12",0,"Number of individuals who used the Internet (from any location) in the last three months, by frequency"]
[null,null,1,"at least once a day"]
[null,null,2,"at least once a week but not every day"]
[null,null,3,"less than once a week"]
[null,"HH19",0,"Number of individuals not using the Internet, by type of reason"]
[null,null,1,"Do not need the Internet"]
[null,null,2,"Do not know how to use it"]
[null,null,3,"Cost of Internet use is too high (service charges, etc.)"]
[null,null,4,"Privacy or security concerns"]
[null,null,5,"Internet service is not available in the area"]
[null,null,6,"Cultural reasons (e.g. exposure to harmful content)"]
[null,null,7,"Don’t know what Internet is"]
[null,null,8,"Not allowed to use the Internet"]
[null,null,9,"Lack of local content"]
[null,null,10,"Other reason"]
["INTERNET ACTIVITIES\nNon-ICT skills","HH9",0,"Number of individuals using the Internet in the last three months, by type of activity"]
[null,null,1,"Access to information"]
[null,null,4,"Getting information from general government organizations"]
[null,null,5,"Using services related to travel or travel-related accommodation"]
[null,null,8,"Communication, civic participation and collaboration"]
[null,null,9,"Sending or receiving e-mail"]
[null,null,12,"Making an appointment with a health practitioner via the Internet (i.e. website, app, software)"]
[null,null,13,"Interacting with general government organizations"]
[null,null,15,"Accessing or posting opinions via any device on chat sites, blogs, newsgroups or online discussions that may be created by any individual or organization"]
[null,null,16,"Electronic commerce, trade, and transactions"]
[null,null,18,"Selling goods or services"]
[null,null,23,"Professional life"]
[null,null,24,"Looking for a job or sending/submitting a job application"]
[null,null,25,"Participating in professional networks"]
[null,null,26,"Entertainment, digital content consumption"]
[null,null,27,"Listening to web radio"]
[null,null,28,"Watching web television"]
[null,null,29,"Streaming or downloading images, movies, videos or music, playing or downloading games"]
[null,null,30,"Digital content creation"]
[null,null,31,"Uploading self/user-created content to a website to be shared (SDG indicator - ICT skills)"]
[null,null,32,"Using storage space on the Internet to save documents, pictures, music, video or other files"]
["INTERNET CONNECTION","HH17",0,"Number of individuals using the Internet in the last three months, by type of portable device and network used to access the Internet"]
[null,null,1,"a. Mobile phone"]
[null,null,2,"a1) via mobile cellular network"]
[null,null,3,"a2) via other wireless networks (e.g. WiFi)"]
[null,null,4,"b. Tablet"]
[null,null,5,"b1) via mobile cellular network, using USB key/dongle or integrated data SIM card"]
[null,null,6,"b2) via other wireless networks (e.g. WiFi)"]
[null,null,7,"c. Portable computer (laptop, notebook, netbook)"]
[null,null,8,"c1) via mobile cellular network, using USB key/dongle or integrated data SIM card or mobile cellular telephone as modem"]
[null,null,9,"c2) via other wireless networks (e.g. WiFi)"]
[null,null,10,"d. Other portable devices (e.g. portable games consoles, watches, e-book readers etc.)"]
["E-COMMERCE","HH20",0,"Number of individuals who purchased goods or servies online in the last three months, by type of goods and services purchased online"]
[null,null,1,"Books, magazines or newspapers"]
[null,null,2,"Clothing, footwear, sporting goods or accessories"]
[null,null,3,"Computer equipment or parts (including peripheral equipment)"]
[null,null,4,"Computer or video games"]
[null,null,5,"Computer software (includes upgrades and paid apps; not games)"]
[null,null,6,"Cosmetics"]
[null,null,7,"Financial products (including shares and insurance)"]
[null,null,8,"Food, groceries, alcohol or tobacco"]
[null,null,9,"Household goods (e.g. furniture, toys, etc.; excluding consumer electronics)"]
[null,null,10,"ICT services (excluding software)"]
[null,null,11,"Medicine"]
[null,null,12,"Movies, short films or images"]
[null,null,13,"Music products"]
[null,null,14,"Photographic, telecommunications or optical equipment"]
[null,null,15,"Tickets or bookings for entertainment events (sports, theatre, concerts, etc.)"]
[null,null,16,"Travel products (travel tickets, accommodation, vehicle hire, transport services etc.)"]
[null,"HH21",0,"Number of individuals who purchased goods or services online in the last three months, by type of payment channel"]
[null,null,1,"Cash on delivery"]
[null,null,2,"Credit card online"]
[null,null,3,"Debit card or electronic bank transfer online"]
[null,null,4,"Mobile money account (account connected to the mobile number)"]
[null,null,5,"Online payment service (e.g. PayPal, Google Checkout)"]
[null,null,6,"Prepaid gift card or online voucher"]
[null,null,7,"Points from rewards or redemption program (e.g. Air Miles)"]
[null,null,8,"Other (e.g. bank check by post, etc.)"]
[null,"HH22",0,"Number of individuals who purchased goods or services online in the last three months, by method of delivery"]
[null,null,1,"Delivery directly to the buyer using regular postal services or other forms of delivery"]
[null,null,2,"Picked up from point of sale or service point"]
[null,null,3,"Online / electronic delivery by downloading from a website or through an application, software or other device (e.g. in-app purchases, streaming services etc.)"]
[null,"HH23",0,"Number of individuals who did not purchase goods or services online in the last three months, by reason"]
[null,null,1,"Not interested"]
[null,null,2,"Prefer to shop in person"]
[null,null,3,"Security concerns (e.g. about giving personal details)"]
[null,null,4,"Privacy concerns (e.g. about giving personal details)"]
[null,null,5,"Technical concerns (e.g. about websites, payment or delivery)"]
[null,null,6,"Trust concerns (e.g. about warranties, receiving or returning products)"]
[null,null,7,"Lack of confidence, knowledge or skills"]
[]
[null,null,null,"(*) The ICSE-93 categories map to the Partnership core indicators categories for those in the labour force.  The category self-employed includes the following ICSE-93 categories: employers, own account workers, members of producers' cooperatives and contributing family workers."]
[null,null,null,"(**) The category not in the labour force includes individuals who are not economically active, that is those who are neither employed nor unemployed. They mainly consist of students (except those who also have a job), people undertaking home duties only, and those who are retired or sick. This category is not a component of the ICSE-93."]
[null,null,null,"(***) The category workers not classifiable by status, for whom insufficient relevant information is available, and/or who cannot be included in any of the status in employment categories. This cathegory is part of the ICSE-93"]

{"sheet":"2e","index":12,"n_rows":156,"n_cols":64,"rows_kept":156,"cut":false,"hidden":false,"merged":[[8,8,8,9],[8,18,8,19],[8,20,8,21],[8,24,8,25],[8,22,8,23],[8,10,8,11],[0,52,0,63],[2,52,2,63],[4,52,4,63],[0,28,0,39],[2,28,2,39],[4,28,4,39],[0,40,0,51],[2,40,2,51],[4,40,4,51],[0,4,0,15],[0,16,0,27],[2,16,2,27],[4,16,4,27],[7,28,7,33],[2,4,2,15],[4,4,4,15],[7,4,7,9],[7,10,7,15],[6,10,6,15],[6,22,6,27],[7,16,7,21],[6,16,6,21],[7,22,7,27],[6,4,6,9],[6,58,6,63],[7,58,7,63],[6,34,6,39],[7,34,7,39],[8,44,8,45],[8,48,8,49],[6,52,6,57],[8,46,8,47],[7,40,7,45],[7,52,7,57],[6,46,6,51],[7,46,7,51],[8,16,8,17],[20,0,62,0],[8,34,8,35],[8,38,8,39],[8,40,8,41],[6,28,6,33],[8,42,8,43],[8,50,8,51],[8,36,8,37],[6,40,6,45],[8,26,8,27],[11,0,14,0],[8,4,8,5],[8,6,8,7],[8,32,8,33],[118,0,155,0],[8,62,8,63],[8,52,8,53],[8,54,8,55],[8,56,8,57],[8,58,8,59],[107,0,117,0],[63,0,85,0],[8,28,8,29],[8,30,8,31],[86,0,106,0],[15,0,18,0],[8,12,8,13],[8,14,8,15],[8,60,8,61]]}
[null,"2e) ICT Usage by occupation and gender",null,null,"2e) ICT Usage by occupation and gender",null,null,null,null,null,null,null,null,null,null,null,"2e) ICT Usage by occupation and gender",null,null,null,null,null,null,null,null,null,null,null,"2e) ICT Usage by occupation and gender",null,null,null,null,null,null,null,null,null,null,null,"2e) ICT Usage by occupation and gender",null,null,null,null,null,null,null,null,null,null,null,"2e) ICT Usage by occupation and gender"]
[]
[null,null,null,null,"The numbers included here should be population estimates (i.e. weighted sampling values).",null,null,null,null,null,null,null,null,null,null,null,"The numbers included here should be population estimates (i.e. weighted sampling values).",null,null,null,null,null,null,null,null,null,null,null,"The numbers included here should be population estimates (i.e. weighted sampling values).",null,null,null,null,null,null,null,null,null,null,null,"The numbers included here should be population estimates (i.e. weighted sampling values).",null,null,null,null,null,null,null,null,null,null,null,"The numbers included here should be population estimates (i.e. weighted sampling values)."]
[]
[null,null,null,null,"For definitions and further information on the indicators see the ITU Manual for Measuring ICT Access and Use by Households and Individuals",null,null,null,null,null,null,null,null,null,null,null,"For definitions and further information on the indicators see the ITU Manual for Measuring ICT Access and Use by Households and Individuals",null,null,null,null,null,null,null,null,null,null,null,"For definitions and further information on the indicators see the ITU Manual for Measuring ICT Access and Use by Households and Individuals",null,null,null,null,null,null,null,null,null,null,null,"For definitions and further information on the indicators see the ITU Manual for Measuring ICT Access and Use by Households and Individuals",null,null,null,null,null,null,null,null,null,null,null,"For definitions and further information on the indicators see the ITU Manual for Measuring ICT Access and Use by Households and Individuals"]
[]
[null,null,null,null,"legislators, senior officials and managers",null,null,null,null,null,"professionals",null,null,null,null,null,"technicians and associate professionals",null,null,null,null,null,"clerical support workers",null,null,null,null,null,"service and sales workers",null,null,null,null,null,"skilled agricultural, forestry and fishery workers",null,null,null,null,null,"craft and related trades workers",null,null,null,null,null,"plant and machine operators and assemblers",null,null,null,null,null,"elementary occupations",null,null,null,null,null,"armed forces occupations"]
[null,null,null,null,"ISCO-08 (1)",null,null,null,null,null,"ISCO-08 (2)",null,null,null,null,null,"ISCO-08 (3)",null,null,null,null,null,"ISCO-08 (4)",null,null,null,null,null,"ISCO-08 (5)",null,null,null,null,null,"ISCO-08 (6)",null,null,null,null,null,"ISCO-08 (7)",null,null,null,null,null,"ISCO-08 (8)",null,null,null,null,null,"ISCO-08 (9)",null,null,null,null,null,"ISCO-08 (10)"]
[null,"No.",null,"Indicators","Total",null,"Male",null,"Female",null,"Total",null,"Male",null,"Female",null,"Total",null,"Male",null,"Female",null,"Total",null,"Male",null,"Female",null,"Total",null,"Male",null,"Female",null,"Total",null,"Male",null,"Female",null,"Total",null,"Male",null,"Female",null,"Total",null,"Male",null,"Female",null,"Total",null,"Male",null,"Female",null,"Total",null,"Male",null,"Female"]
[null,null,null,null,"Value","Note","Value","Note","Value","Note","Value","Note","Value","Note","Value","Note","Value","Note","Value","Note","Value","Note","Value","Note","Value","Note","Value","Note","Value","Note","Value","Note","Value","Note","Value","Note","Value","Note","Value","Note","Value","Note","Value","Note","Value","Note","Value","Note","Value","Note","Value","Note","Value","Note","Value","Note","Value","Note","Value","Note","Value","Note","Value","Note"]
[null,"TOTAL TARGET POPULATION\n (NUMBER OF IN-SCOPE INDIVIDUALS)",null,"TOTAL TARGET POPULATION\n (NUMBER OF IN-SCOPE INDIVIDUALS):"]
["COMPUTER","HH5",0,"Number of individuals who used a computer (from any location) in the last three months"]
[null,null,1,"Desktop"]
[null,null,2,"Laptop (portable) computer"]
[null,null,3,"Tablet (or similar handheld computer)"]
["MOBILE PHONE","HH10",0,"Number of individuals who used a mobile cellular telephone in the last three months"]
[null,null,1,"Number of individuals who used a smart phone in the last three months"]
[null,"HH18",0,"Number of individuals who own a mobile cellular telephone (SDG Indicator)"]
[null,null,1,"Number of individuals who own a smart phone"]
["INTERNET","HH7",0,"Number of individuals who used the Internet (from any location) in the last three months (SDG Indicator)"]
["ICT SKILLS","HH15/HH9",0,"Number of individuals with ICT skills, by type of skills  (SDG Indicator)"]
[null,null,null,"Information and data literacy"]
[null,null,null,"Basic skills (number of individuals doing exactly one of the following activities)"]
[null,null,null,"Above basic skills (number of individuals doing at least two of the following activities)"]
[null,null,null,"Verifying the truthfulness of information found online (HH15)"]
[null,null,2,"Finding information about goods or services (HH9)"]
[null,null,7,"Accessing news or books in a digital format (e.g. reading online news, watching news videos online, reading e-books on an e-reading device) (HH9)"]
[null,null,3,"Finding health information (HH9)"]
[null,null,null,"Communication and collaboration"]
[null,null,null,"Basic skills (number of individuals doing exactly one of the following activities)"]
[null,null,null,"Above basic skills (number of individuals doing at least two of the following activities)"]
[null,null,null,"Sending content (e.g. document, picture, video through attached files, embedded content, hyperlinks) in messages (e.g. e-mail, messaging service, MMS) (HH15)"]
[null,null,10,"Making calls (Telephoning over the Internet/VoIP, using Skype, Whatsapp, Viber, iTalk, etc.; includes video calls via webcam) (HH9)"]
[null,null,11,"Participating on social networking platforms (e.g. creating user profile, reading or posting messages and other contributions to Facebook, X, Instagram, Snapchat, TikTok) (HH9)"]
[null,null,14,"Taking part in consultations via the Internet to define civic or social issues (e.g. urban planning, signing a petition, voting) (HH9)"]
[null,null,null,"Digital content creation"]
[null,null,null,"Basic skills (number of individuals doing exactly one of the following activities)"]
[null,null,null,"Above basic skills (number of individuals doing at least two of the following activities)"]
[null,null,33,"Editing text documents, spreadsheets or presentations using digital tools (e.g. Google Docs, Sharepoint, Apple iCloud, etc.)  (HH9)"]
[null,null,null,"Duplicating or moving data, information and content in digital environments (e.g. within a document, between devices, on the cloud) (HH15)"]
[null,null,null,"Creating content combining different digital media (including text, images, sound, video or charts) (HH15)"]
[null,null,null,"Using spreadsheet software (e.g. using basic arithmetic formulae, functions, macros) (HH15)"]
[null,null,null,"Programming or coding in digital environments (HH15)"]
[null,null,null,"Safety"]
[null,null,null,"Basic skills (number of individuals doing exactly one of the following activities)"]
[null,null,null,"Above basic skills (number of individuals doing two of the following activities)"]
[null,null,null,"Taking security measures to protect devices and online accounts (e.g. changing passwords, avoiding unsecure links or downloads, setting up two-factor authentication) (HH15)"]
[null,null,null,"Taking measures to protect privacy on your device, account or app (e.g. to limit the sharing of personal data and information, restrict access to social network profiles or geolocation, prevent targeted marketing) (HH15)"]
[null,null,null,"Problem solving"]
[null,null,null,"Basic skills (number of individuals doing exactly one of the following activities)"]
[null,null,null,"Above basic skills (number of individuals doing at least two of the following activities)"]
[null,null,null,"Connecting new devices (e.g. camera, printer, wireless speakers or wireless headphones) (HH15)"]
[null,null,null,"Installing software or apps (HH15)"]
[null,null,19,"Using Internet or mobile banking (includes electronic transactions with a bank for payment, transfers, etc. such as M-Pesa, or for looking up account information) (HH9)"]
[null,null,21,"Doing an online course or accessing online learning material (e.g. video tutorials, webinars, learning apps) (HH9)"]
[null,null,17,"Purchasing or ordering goods or services (via the Internet whether or not payment was made online; includes purchasing of products such as music, travel and accommodation via the Internet) (HH9)"]
[null,null,null,"Overall ICT skills"]
[null,null,null,"Basic skills in 0-1 of 5 skill areas"]
[null,null,null,"Basic skills in 2 of 5 skill areas"]
[null,null,null,"Basic skills in 3 of 5 skill areas"]
[null,null,null,"Basic skills in 4 of 5 skill areas"]
[null,null,null,"Basic skills in 5 of 5 skill areas"]
[null,null,null,"Above basic skills in 5 of 5 skill areas"]
["INTERNET USE","HH8",0,"Number of individuals who used the Internet in the last three months, by location of use"]
[null,null,1,"at home"]
[null,null,2,"at work"]
[null,null,3,"at place of education"]
[null,null,4,"at another person's home"]
[null,null,10,"at facility open to the public"]
[null,null,5,"at community Internet access facility"]
[null,null,7,"While commuting, in transport or walking"]
[null,"HH12",0,"Number of individuals who used the Internet (from any location) in the last three months, by frequency"]
[null,null,1,"at least once a day"]
[null,null,2,"at least once a week but not every day"]
[null,null,3,"less than once a week"]
[null,"HH19",0,"Number of individuals not using the Internet, by type of reason"]
[null,null,1,"Do not need the Internet"]
[null,null,2,"Do not know how to use it"]
[null,null,3,"Cost of Internet use is too high (service charges, etc.)"]
[null,null,4,"Privacy or security concerns"]
[null,null,5,"Internet service is not available in the area"]
[null,null,6,"Cultural reasons (e.g. exposure to harmful content)"]
[null,null,7,"Don’t know what Internet is"]
[null,null,8,"Not allowed to use the Internet"]
[null,null,9,"Lack of local content"]
[null,null,10,"Other reason"]
["INTERNET ACTIVITIES\nNon-ICT skills","HH9",0,"Number of individuals using the Internet in the last three months, by type of activity"]
[null,null,1,"Access to information"]
[null,null,4,"Getting information from general government organizations"]
[null,null,5,"Using services related to travel or travel-related accommodation"]
[null,null,8,"Communication, civic participation and collaboration"]
[null,null,9,"Sending or receiving e-mail"]
[null,null,12,"Making an appointment with a health practitioner via the Internet (i.e. website, app, software)"]
[null,null,13,"Interacting with general government organizations"]
[null,null,15,"Accessing or posting opinions via any device on chat sites, blogs, newsgroups or online discussions that may be created by any individual or organization"]
[null,null,16,"Electronic commerce, trade, and transactions"]
[null,null,18,"Selling goods or services"]
[null,null,23,"Professional life"]
[null,null,24,"Looking for a job or sending/submitting a job application"]
[null,null,25,"Participating in professional networks"]
[null,null,26,"Entertainment, digital content consumption"]
[null,null,27,"Listening to web radio"]
[null,null,28,"Watching web television"]
[null,null,29,"Streaming or downloading images, movies, videos or music, playing or downloading games"]
[null,null,30,"Digital content creation"]
[null,null,31,"Uploading self/user-created content to a website to be shared (SDG indicator - ICT skills)"]
[null,null,32,"Using storage space on the Internet to save documents, pictures, music, video or other files"]
["INTERNET CONNECTION","HH17",0,"Number of individuals using the Internet in the last three months, by type of portable device and network used to access the Internet"]
[null,null,1,"a. Mobile phone"]
[null,null,2,"a1) via mobile cellular network"]
[null,null,3,"a2) via other wireless networks (e.g. WiFi)"]
[null,null,4,"b. Tablet"]
[null,null,5,"b1) via mobile cellular network, using USB key/dongle or integrated data SIM card"]
[null,null,6,"b2) via other wireless networks (e.g. WiFi)"]
[null,null,7,"c. Portable computer (laptop, notebook, netbook)"]
[null,null,8,"c1) via mobile cellular network, using USB key/dongle or integrated data SIM card or mobile cellular telephone as modem"]
[null,null,9,"c2) via other wireless networks (e.g. WiFi)"]
[null,null,10,"d. Other portable devices (e.g. portable games consoles, watches, e-book readers etc.)"]
["E-COMMERCE","HH20",0,"Number of individuals who purchased goods or servies online in the last three months, by type of goods and services purchased online"]
[null,null,1,"Books, magazines or newspapers"]
[null,null,2,"Clothing, footwear, sporting goods or accessories"]
[null,null,3,"Computer equipment or parts (including peripheral equipment)"]
[null,null,4,"Computer or video games"]
[null,null,5,"Computer software (includes upgrades and paid apps; not games)"]
[null,null,6,"Cosmetics"]
[null,null,7,"Financial products (including shares and insurance)"]
[null,null,8,"Food, groceries, alcohol or tobacco"]
[null,null,9,"Household goods (e.g. furniture, toys, etc.; excluding consumer electronics)"]
[null,null,10,"ICT services (excluding software)"]
[null,null,11,"Medicine"]
[null,null,12,"Movies, short films or images"]
[null,null,13,"Music products"]
[null,null,14,"Photographic, telecommunications or optical equipment"]
[null,null,15,"Tickets or bookings for entertainment events (sports, theatre, concerts, etc.)"]
[null,null,16,"Travel products (travel tickets, accommodation, vehicle hire, transport services etc.)"]
[null,"HH21",0,"Number of individuals who purchased goods or services online in the last three months, by type of payment channel"]
[null,null,1,"Cash on delivery"]
[null,null,2,"Credit card online"]
[null,null,3,"Debit card or electronic bank transfer online"]
[null,null,4,"Mobile money account (account connected to the mobile number)"]
[null,null,5,"Online payment service (e.g. PayPal, Google Checkout)"]
[null,null,6,"Prepaid gift card or online voucher"]
[null,null,7,"Points from rewards or redemption program (e.g. Air Miles)"]
[null,null,8,"Other (e.g. bank check by post, etc.)"]
[null,"HH22",0,"Number of individuals who purchased goods or services online in the last three months, by method of delivery"]
[null,null,1,"Delivery directly to the buyer using regular postal services or other forms of delivery"]
[null,null,2,"Picked up from point of sale or service point"]
[null,null,3,"Online / electronic delivery by downloading from a website or through an application, software or other device (e.g. in-app purchases, streaming services etc.)"]
[null,"HH23",0,"Number of individuals who did not purchase goods or services online in the last three months, by reason"]
[null,null,1,"Not interested"]
[null,null,2,"Prefer to shop in person"]
[null,null,3,"Security concerns (e.g. about giving personal details)"]
[null,null,4,"Privacy concerns (e.g. about giving personal details)"]
[null,null,5,"Technical concerns (e.g. about websites, payment or delivery)"]
[null,null,6,"Trust concerns (e.g. about warranties, receiving or returning products)"]
[null,null,7,"Lack of confidence, knowledge or skills"]

{"sheet":"Flat","index":13,"n_rows":10099,"n_cols":8,"rows_kept":10099,"cut":false,"hidden":true,"merged":[]}
["CodeID","Country","DataYear","Value","Notes","Sheet","ValueAddress","NotesAddress"]
[5589,{"$f":"Menu!$F$29","v":"X"},{"$f":"Menu!$J$29","v":2020},{"$f":"IF(ISBLANK(INDIRECT(\"'\"&F2&\"'!\"&G2)),\"\",INDIRECT(\"'\"&F2&\"'!\"&G2))","v":""},{"$f":"IF(ISBLANK(INDIRECT(\"'\"&F2&\"'!\"&H2)),\"\",IFERROR(VLOOKUP(TEXT(INDIRECT(\"'\"&F2&\"'!\"&H2),\"0\"),Notes!$B$5:$C$100,2,FALSE),\"\"))","v":""},"1a","$E$11",{"$f":"IF(LEN(TRIM(MID(G2,4,10)))-LEN(SUBSTITUTE(TRIM(MID(G2,4,10)),\"$\",\"\"))=0,\"$\"&CHAR(CODE(MID(G2,2,1))+1)&\"$\"&TRIM(MID(G2,4,10)),\"$\"&MID(G2,2,1)&CHAR(CODE(MID(G2,3,1))+1)&\"$\"&TRIM(MID(G2,5,11)))","v":"$F$11"}]
[5590,{"$f":"Menu!$F$29","v":"X"},{"$f":"Menu!$J$29","v":2020},{"$f":"IF(ISBLANK(INDIRECT(\"'\"&F3&\"'!\"&G3)),\"\",INDIRECT(\"'\"&F3&\"'!\"&G3))","v":""},{"$f":"IF(ISBLANK(INDIRECT(\"'\"&F3&\"'!\"&H3)),\"\",IFERROR(VLOOKUP(TEXT(INDIRECT(\"'\"&F3&\"'!\"&H3),\"0\"),Notes!$B$5:$C$100,2,FALSE),\"\"))","v":""},"1a","$G$11","$H$11"]
[5591,{"$f":"Menu!$F$29","v":"X"},{"$f":"Menu!$J$29","v":2020},{"$f":"IF(ISBLANK(INDIRECT(\"'\"&F4&\"'!\"&G4)),\"\",INDIRECT(\"'\"&F4&\"'!\"&G4))","v":""},{"$f":"IF(ISBLANK(INDIRECT(\"'\"&F4&\"'!\"&H4)),\"\",IFERROR(VLOOKUP(TEXT(INDIRECT(\"'\"&F4&\"'!\"&H4),\"0\"),Notes!$B$5:$C$100,2,FALSE),\"\"))","v":""},"1a","$I$11","$J$11"]
[5592,{"$f":"Menu!$F$29","v":"X"},{"$f":"Menu!$J$29","v":2020},{"$f":"IF(ISBLANK(INDIRECT(\"'\"&F5&\"'!\"&G5)),\"\",INDIRECT(\"'\"&F5&\"'!\"&G5))","v":""},{"$f":"IF(ISBLANK(INDIRECT(\"'\"&F5&\"'!\"&H5)),\"\",IFERROR(VLOOKUP(TEXT(INDIRECT(\"'\"&F5&\"'!\"&H5),\"0\"),Notes!$B$5:$C$100,2,FALSE),\"\"))","v":""},"1a","$K$11","$L$11"]
[5593,{"$f":"Menu!$F$29","v":"X"},{"$f":"Menu!$J$29","v":2020},{"$f":"IF(ISBLANK(INDIRECT(\"'\"&F6&\"'!\"&G6)),\"\",INDIRECT(\"'\"&F6&\"'!\"&G6))","v":""},{"$f":"IF(ISBLANK(INDIRECT(\"'\"&F6&\"'!\"&H6)),\"\",IFERROR(VLOOKUP(TEXT(INDIRECT(\"'\"&F6&\"'!\"&H6),\"0\"),Notes!$B$5:$C$100,2,FALSE),\"\"))","v":""},"1a","$M$11","$N$11"]
[5594,{"$f":"Menu!$F$29","v":"X"},{"$f":"Menu!$J$29","v":2020},{"$f":"IF(ISBLANK(INDIRECT(\"'\"&F7&\"'!\"&G7)),\"\",INDIRECT(\"'\"&F7&\"'!\"&G7))","v":""},{"$f":"IF(ISBLANK(INDIRECT(\"'\"&F7&\"'!\"&H7)),\"\",IFERROR(VLOOKUP(TEXT(INDIRECT(\"'\"&F7&\"'!\"&H7),\"0\"),Notes!$B$5:$C$100,2,FALSE),\"\"))","v":""},"1a","$O$11","$P$11"]
[5595,{"$f":"Menu!$F$29","v":"X"},{"$f":"Menu!$J$29","v":2020},{"$f":"IF(ISBLANK(INDIRECT(\"'\"&F8&\"'!\"&G8)),\"\",INDIRECT(\"'\"&F8&\"'!\"&G8))","v":""},{"$f":"IF(ISBLANK(INDIRECT(\"'\"&F8&\"'!\"&H8)),\"\",IFERROR(VLOOKUP(TEXT(INDIRECT(\"'\"&F8&\"'!\"&H8),\"0\"),Notes!$B$5:$C$100,2,FALSE),\"\"))","v":""},"1a","$Q$11","$R$11"]
[5596,{"$f":"Menu!$F$29","v":"X"},{"$f":"Menu!$J$29","v":2020},{"$f":"IF(ISBLANK(INDIRECT(\"'\"&F9&\"'!\"&G9)),\"\",INDIRECT(\"'\"&F9&\"'!\"&G9))","v":""},{"$f":"IF(ISBLANK(INDIRECT(\"'\"&F9&\"'!\"&H9)),\"\",IFERROR(VLOOKUP(TEXT(INDIRECT(\"'\"&F9&\"'!\"&H9),\"0\"),Notes!$B$5:$C$100,2,FALSE),\"\"))","v":""},"1a","$S$11","$T$11"]
[5597,{"$f":"Menu!$F$29","v":"X"},{"$f":"Menu!$J$29","v":2020},{"$f":"IF(ISBLANK(INDIRECT(\"'\"&F10&\"'!\"&G10)),\"\",INDIRECT(\"'\"&F10&\"'!\"&G10))","v":""},{"$f":"IF(ISBLANK(INDIRECT(\"'\"&F10&\"'!\"&H10)),\"\",IFERROR(VLOOKUP(TEXT(INDIRECT(\"'\"&F10&\"'!\"&H10),\"0\"),Notes!$B$5:$C$100,2,FALSE),\"\"))","v":""},"1a","$U$11","$V$11"]
[5598,{"$f":"Menu!$F$29","v":"X"},{"$f":"Menu!$J$29","v":2020},{"$f":"IF(ISBLANK(INDIRECT(\"'\"&F11&\"'!\"&G11)),\"\",INDIRECT(\"'\"&F11&\"'!\"&G11))","v":""},{"$f":"IF(ISBLANK(INDIRECT(\"'\"&F11&\"'!\"&H11)),\"\",IFERROR(VLOOKUP(TEXT(INDIRECT(\"'\"&F11&\"'!\"&H11),\"0\"),Notes!$B$5:$C$100,2,FALSE),\"\"))","v":""},"1a","$E$12","$F$12"]
[5599,{"$f":"Menu!$F$29","v":"X"},{"$f":"Menu!$J$29","v":2020},{"$f":"IF(ISBLANK(INDIRECT(\"'\"&F12&\"'!\"&G12)),\"\",INDIRECT(\"'\"&F12&\"'!\"&G12))","v":""},{"$f":"IF(ISBLANK(INDIRECT(\"'\"&F12&\"'!\"&H12)),\"\",IFERROR(VLOOKUP(TEXT(INDIRECT(\"'\"&F12&\"'!\"&H12),\"0\"),Notes!$B$5:$C$100,2,FALSE),\"\"))","v":""},"1a","$G$12","$H$12"]
[5600,{"$f":"Menu!$F$29","v":"X"},{"$f":"Menu!$J$29","v":2020},{"$f":"IF(ISBLANK(INDIRECT(\"'\"&F13&\"'!\"&G13)),\"\",INDIRECT(\"'\"&F13&\"'!\"&G13))","v":""},{"$f":"IF(ISBLANK(INDIRECT(\"'\"&F13&\"'!\"&H13)),\"\",IFERROR(VLOOKUP(TEXT(INDIRECT(\"'\"&F13&\"'!\"&H13),\"0\"),Notes!$B$5:$C$100,2,FALSE),\"\"))","v":""},"1a","$I$12","$J$12"]
[5601,{"$f":"Menu!$F$29","v":"X"},{"$f":"Menu!$J$29","v":2020},{"$f":"IF(ISBLANK(INDIRECT(\"'\"&F14&\"'!\"&G14)),\"\",INDIRECT(\"'\"&F14&\"'!\"&G14))","v":""},{"$f":"IF(ISBLANK(INDIRECT(\"'\"&F14&\"'!\"&H14)),\"\",IFERROR(VLOOKUP(TEXT(INDIRECT(\"'\"&F14&\"'!\"&H14),\"0\"),Notes!$B$5:$C$100,2,FALSE),\"\"))","v":""},"1a","$K$12","$L$12"]
[5602,{"$f":"Menu!$F$29","v":"X"},{"$f":"Menu!$J$29","v":2020},{"$f":"IF(ISBLANK(INDIRECT(\"'\"&F15&\"'!\"&G15)),\"\",INDIRECT(\"'\"&F15&\"'!\"&G15))","v":""},{"$f":"IF(ISBLANK(INDIRECT(\"'\"&F15&\"'!\"&H15)),\"\",IFERROR(VLOOKUP(TEXT(INDIRECT(\"'\"&F15&\"'!\"&H15),\"0\"),Notes!$B$5:$C$100,2,FALSE),\"\"))","v":""},"1a","$M$12","$N$12"]
[5603,{"$f":"Menu!$F$29","v":"X"},{"$f":"Menu!$J$29","v":2020},{"$f":"IF(ISBLANK(INDIRECT(\"'\"&F16&\"'!\"&G16)),\"\",INDIRECT(\"'\"&F16&\"'!\"&G16))","v":""},{"$f":"IF(ISBLANK(INDIRECT(\"'\"&F16&\"'!\"&H16)),\"\",IFERROR(VLOOKUP(TEXT(INDIRECT(\"'\"&F16&\"'!\"&H16),\"0\"),Notes!$B$5:$C$100,2,FALSE),\"\"))","v":""},"1a","$O$12","$P$12"]
[5604,{"$f":"Menu!$F$29","v":"X"},{"$f":"Menu!$J$29","v":2020},{"$f":"IF(ISBLANK(INDIRECT(\"'\"&F17&\"'!\"&G17)),\"\",INDIRECT(\"'\"&F17&\"'!\"&G17))","v":""},{"$f":"IF(ISBLANK(INDIRECT(\"'\"&F17&\"'!\"&H17)),\"\",IFERROR(VLOOKUP(TEXT(INDIRECT(\"'\"&F17&\"'!\"&H17),\"0\"),Notes!$B$5:$C$100,2,FALSE),\"\"))","v":""},"1a","$Q$12","$R$12"]
[5605,{"$f":"Menu!$F$29","v":"X"},{"$f":"Menu!$J$29","v":2020},{"$f":"IF(ISBLANK(INDIRECT(\"'\"&F18&\"'!\"&G18)),\"\",INDIRECT(\"'\"&F18&\"'!\"&G18))","v":""},{"$f":"IF(ISBLANK(INDIRECT(\"'\"&F18&\"'!\"&H18)),\"\",IFERROR(VLOOKUP(TEXT(INDIRECT(\"'\"&F18&\"'!\"&H18),\"0\"),Notes!$B$5:$C$100,2,FALSE),\"\"))","v":""},"1a","$S$12","$T$12"]
[5606,{"$f":"Menu!$F$29","v":"X"},{"$f":"Menu!$J$29","v":2020},{"$f":"IF(ISBLANK(INDIRECT(\"'\"&F19&\"'!\"&G19)),\"\",INDIRECT(\"'\"&F19&\"'!\"&G19))","v":""},{"$f":"IF(ISBLANK(INDIRECT(\"'\"&F19&\"'!\"&H19)),\"\",IFERROR(VLOOKUP(TEXT(INDIRECT(\"'\"&F19&\"'!\"&H19),\"0\"),Notes!$B$5:$C$100,2,FALSE),\"\"))","v":""},"1a","$U$12","$V$12"]
[5607,{"$f":"Menu!$F$29","v":"X"},{"$f":"Menu!$J$29","v":2020},{"$f":"IF(ISBLANK(INDIRECT(\"'\"&F20&\"'!\"&G20)),\"\",INDIRECT(\"'\"&F20&\"'!\"&G20))","v":""},{"$f":"IF(ISBLANK(INDIRECT(\"'\"&F20&\"'!\"&H20)),\"\",IFERROR(VLOOKUP(TEXT(INDIRECT(\"'\"&F20&\"'!\"&H20),\"0\"),Notes!$B$5:$C$100,2,FALSE),\"\"))","v":""},"1a","$E$13","$F$13"]
[5608,{"$f":"Menu!$F$29","v":"X"},{"$f":"Menu!$J$29","v":2020},{"$f":"IF(ISBLANK(INDIRECT(\"'\"&F21&\"'!\"&G21)),\"\",INDIRECT(\"'\"&F21&\"'!\"&G21))","v":""},{"$f":"IF(ISBLANK(INDIRECT(\"'\"&F21&\"'!\"&H21)),\"\",IFERROR(VLOOKUP(TEXT(INDIRECT(\"'\"&F21&\"'!\"&H21),\"0\"),Notes!$B$5:$C$100,2,FALSE),\"\"))","v":""},"1a","$G$13","$H$13"]
[5609,{"$f":"Menu!$F$29","v":"X"},{"$f":"Menu!$J$29","v":2020},{"$f":"IF(ISBLANK(INDIRECT(\"'\"&F22&\"'!\"&G22)),\"\",INDIRECT(\"'\"&F22&\"'!\"&G22))","v":""},{"$f":"IF(ISBLANK(INDIRECT(\"'\"&F22&\"'!\"&H22)),\"\",IFERROR(VLOOKUP(TEXT(INDIRECT(\"'\"&F22&\"'!\"&H22),\"0\"),Notes!$B$5:$C$100,2,FALSE),\"\"))","v":""},"1a","$I$13","$J$13"]
[5610,{"$f":"Menu!$F$29","v":"X"},{"$f":"Menu!$J$29","v":2020},{"$f":"IF(ISBLANK(INDIRECT(\"'\"&F23&\"'!\"&G23)),\"\",INDIRECT(\"'\"&F23&\"'!\"&G23))","v":""},{"$f":"IF(ISBLANK(INDIRECT(\"'\"&F23&\"'!\"&H23)),\"\",IFERROR(VLOOKUP(TEXT(INDIRECT(\"'\"&F23&\"'!\"&H23),\"0\"),Notes!$B$5:$C$100,2,FALSE),\"\"))","v":""},"1a","$K$13","$L$13"]
[5611,{"$f":"Menu!$F$29","v":"X"},{"$f":"Menu!$J$29","v":2020},{"$f":"IF(ISBLANK(INDIRECT(\"'\"&F24&\"'!\"&G24)),\"\",INDIRECT(\"'\"&F24&\"'!\"&G24))","v":""},{"$f":"IF(ISBLANK(INDIRECT(\"'\"&F24&\"'!\"&H24)),\"\",IFERROR(VLOOKUP(TEXT(INDIRECT(\"'\"&F24&\"'!\"&H24),\"0\"),Notes!$B$5:$C$100,2,FALSE),\"\"))","v":""},"1a","$M$13","$N$13"]
[5612,{"$f":"Menu!$F$29","v":"X"},{"$f":"Menu!$J$29","v":2020},{"$f":"IF(ISBLANK(INDIRECT(\"'\"&F25&\"'!\"&G25)),\"\",INDIRECT(\"'\"&F25&\"'!\"&G25))","v":""},{"$f":"IF(ISBLANK(INDIRECT(\"'\"&F25&\"'!\"&H25)),\"\",IFERROR(VLOOKUP(TEXT(INDIRECT(\"'\"&F25&\"'!\"&H25),\"0\"),Notes!$B$5:$C$100,2,FALSE),\"\"))","v":""},"1a","$O$13","$P$13"]
[5613,{"$f":"Menu!$F$29","v":"X"},{"$f":"Menu!$J$29","v":2020},{"$f":"IF(ISBLANK(INDIRECT(\"'\"&F26&\"'!\"&G26)),\"\",INDIRECT(\"'\"&F26&\"'!\"&G26))","v":""},{"$f":"IF(ISBLANK(INDIRECT(\"'\"&F26&\"'!\"&H26)),\"\",IFERROR(VLOOKUP(TEXT(INDIRECT(\"'\"&F26&\"'!\"&H26),\"0\"),Notes!$B$5:$C$100,2,FALSE),\"\"))","v":""},"1a","$Q$13","$R$13"]
[5614,{"$f":"Menu!$F$29","v":"X"},{"$f":"Menu!$J$29","v":2020},{"$f":"IF(ISBLANK(INDIRECT(\"'\"&F27&\"'!\"&G27)),\"\",INDIRECT(\"'\"&F27&\"'!\"&G27))","v":""},{"$f":"IF(ISBLANK(INDIRECT(\"'\"&F27&\"'!\"&H27)),\"\",IFERROR(VLOOKUP(TEXT(INDIRECT(\"'\"&F27&\"'!\"&H27),\"0\"),Notes!$B$5:$C$100,2,FALSE),\"\"))","v":""},"1a","$S$13","$T$13"]
[5615,{"$f":"Menu!$F$29","v":"X"},{"$f":"Menu!$J$29","v":2020},{"$f":"IF(ISBLANK(INDIRECT(\"'\"&F28&\"'!\"&G28)),\"\",INDIRECT(\"'\"&F28&\"'!\"&G28))","v":""},{"$f":"IF(ISBLANK(INDIRECT(\"'\"&F28&\"'!\"&H28)),\"\",IFERROR(VLOOKUP(TEXT(INDIRECT(\"'\"&F28&\"'!\"&H28),\"0\"),Notes!$B$5:$C$100,2,FALSE),\"\"))","v":""},"1a","$U$13","$V$13"]
[5616,{"$f":"Menu!$F$29","v":"X"},{"$f":"Menu!$J$29","v":2020},{"$f":"IF(ISBLANK(INDIRECT(\"'\"&F29&\"'!\"&G29)),\"\",INDIRECT(\"'\"&F29&\"'!\"&G29))","v":""},{"$f":"IF(ISBLANK(INDIRECT(\"'\"&F29&\"'!\"&H29)),\"\",IFERROR(VLOOKUP(TEXT(INDIRECT(\"'\"&F29&\"'!\"&H29),\"0\"),Notes!$B$5:$C$100,2,FALSE),\"\"))","v":""},"1a","$E$19","$F$19"]
[5617,{"$f":"Menu!$F$29","v":"X"},{"$f":"Menu!$J$29","v":2020},{"$f":"IF(ISBLANK(INDIRECT(\"'\"&F30&\"'!\"&G30)),\"\",INDIRECT(\"'\"&F30&\"'!\"&G30))","v":""},{"$f":"IF(ISBLANK(INDIRECT(\"'\"&F30&\"'!\"&H30)),\"\",IFERROR(VLOOKUP(TEXT(INDIRECT(\"'\"&F30&\"'!\"&H30),\"0\"),Notes!$B$5:$C$100,2,FALSE),\"\"))","v":""},"1a","$G$19","$H$19"]
[5618,{"$f":"Menu!$F$29","v":"X"},{"$f":"Menu!$J$29","v":2020},{"$f":"IF(ISBLANK(INDIRECT(\"'\"&F31&\"'!\"&G31)),\"\",INDIRECT(\"'\"&F31&\"'!\"&G31))","v":""},{"$f":"IF(ISBLANK(INDIRECT(\"'\"&F31&\"'!\"&H31)),\"\",IFERROR(VLOOKUP(TEXT(INDIRECT(\"'\"&F31&\"'!\"&H31),\"0\"),Notes!$B$5:$C$100,2,FALSE),\"\"))","v":""},"1a","$I$19","$J$19"]
[5619,{"$f":"Menu!$F$29","v":"X"},{"$f":"Menu!$J$29","v":2020},{"$f":"IF(ISBLANK(INDIRECT(\"'\"&F32&\"'!\"&G32)),\"\",INDIRECT(\"'\"&F32&\"'!\"&G32))","v":""},{"$f":"IF(ISBLANK(INDIRECT(\"'\"&F32&\"'!\"&H32)),\"\",IFERROR(VLOOKUP(TEXT(INDIRECT(\"'\"&F32&\"'!\"&H32),\"0\"),Notes!$B$5:$C$100,2,FALSE),\"\"))","v":""},"1a","$K$19","$L$19"]
[5620,{"$f":"Menu!$F$29","v":"X"},{"$f":"Menu!$J$29","v":2020},{"$f":"IF(ISBLANK(INDIRECT(\"'\"&F33&\"'!\"&G33)),\"\",INDIRECT(\"'\"&F33&\"'!\"&G33))","v":""},{"$f":"IF(ISBLANK(INDIRECT(\"'\"&F33&\"'!\"&H33)),\"\",IFERROR(VLOOKUP(TEXT(INDIRECT(\"'\"&F33&\"'!\"&H33),\"0\"),Notes!$B$5:$C$100,2,FALSE),\"\"))","v":""},"1a","$M$19","$N$19"]
[5621,{"$f":"Menu!$F$29","v":"X"},{"$f":"Menu!$J$29","v":2020},{"$f":"IF(ISBLANK(INDIRECT(\"'\"&F34&\"'!\"&G34)),\"\",INDIRECT(\"'\"&F34&\"'!\"&G34))","v":""},{"$f":"IF(ISBLANK(INDIRECT(\"'\"&F34&\"'!\"&H34)),\"\",IFERROR(VLOOKUP(TEXT(INDIRECT(\"'\"&F34&\"'!\"&H34),\"0\"),Notes!$B$5:$C$100,2,FALSE),\"\"))","v":""},"1a","$O$19","$P$19"]
[5622,{"$f":"Menu!$F$29","v":"X"},{"$f":"Menu!$J$29","v":2020},{"$f":"IF(ISBLANK(INDIRECT(\"'\"&F35&\"'!\"&G35)),\"\",INDIRECT(\"'\"&F35&\"'!\"&G35))","v":""},{"$f":"IF(ISBLANK(INDIRECT(\"'\"&F35&\"'!\"&H35)),\"\",IFERROR(VLOOKUP(TEXT(INDIRECT(\"'\"&F35&\"'!\"&H35),\"0\"),Notes!$B$5:$C$100,2,FALSE),\"\"))","v":""},"1a","$Q$19","$R$19"]
[5623,{"$f":"Menu!$F$29","v":"X"},{"$f":"Menu!$J$29","v":2020},{"$f":"IF(ISBLANK(INDIRECT(\"'\"&F36&\"'!\"&G36)),\"\",INDIRECT(\"'\"&F36&\"'!\"&G36))","v":""},{"$f":"IF(ISBLANK(INDIRECT(\"'\"&F36&\"'!\"&H36)),\"\",IFERROR(VLOOKUP(TEXT(INDIRECT(\"'\"&F36&\"'!\"&H36),\"0\"),Notes!$B$5:$C$100,2,FALSE),\"\"))","v":""},"1a","$S$19","$T$19"]
[5624,{"$f":"Menu!$F$29","v":"X"},{"$f":"Menu!$J$29","v":2020},{"$f":"IF(ISBLANK(INDIRECT(\"'\"&F37&\"'!\"&G37)),\"\",INDIRECT(\"'\"&F37&\"'!\"&G37))","v":""},{"$f":"IF(ISBLANK(INDIRECT(\"'\"&F37&\"'!\"&H37)),\"\",IFERROR(VLOOKUP(TEXT(INDIRECT(\"'\"&F37&\"'!\"&H37),\"0\"),Notes!$B$5:$C$100,2,FALSE),\"\"))","v":""},"1a","$U$19","$V$19"]
[5625,{"$f":"Menu!$F$29","v":"X"},{"$f":"Menu!$J$29","v":2020},{"$f":"IF(ISBLANK(INDIRECT(\"'\"&F38&\"'!\"&G38)),\"\",INDIRECT(\"'\"&F38&\"'!\"&G38))","v":""},{"$f":"IF(ISBLANK(INDIRECT(\"'\"&F38&\"'!\"&H38)),\"\",IFERROR(VLOOKUP(TEXT(INDIRECT(\"'\"&F38&\"'!\"&H38),\"0\"),Notes!$B$5:$C$100,2,FALSE),\"\"))","v":""},"1a","$E$22","$F$22"]
[5626,{"$f":"Menu!$F$29","v":"X"},{"$f":"Menu!$J$29","v":2020},{"$f":"IF(ISBLANK(INDIRECT(\"'\"&F39&\"'!\"&G39)),\"\",INDIRECT(\"'\"&F39&\"'!\"&G39))","v":""},{"$f":"IF(ISBLANK(INDIRECT(\"'\"&F39&\"'!\"&H39)),\"\",IFERROR(VLOOKUP(TEXT(INDIRECT(\"'\"&F39&\"'!\"&H39),\"0\"),Notes!$B$5:$C$100,2,FALSE),\"\"))","v":""},"1a","$G$22","$H$22"]
[5627,{"$f":"Menu!$F$29","v":"X"},{"$f":"Menu!$J$29","v":2020},{"$f":"IF(ISBLANK(INDIRECT(\"'\"&F40&\"'!\"&G40)),\"\",INDIRECT(\"'\"&F40&\"'!\"&G40))","v":""},{"$f":"IF(ISBLANK(INDIRECT(\"'\"&F40&\"'!\"&H40)),\"\",IFERROR(VLOOKUP(TEXT(INDIRECT(\"'\"&F40&\"'!\"&H40),\"0\"),Notes!$B$5:$C$100,2,FALSE),\"\"))","v":""},"1a","$I$22","$J$22"]
[5628,{"$f":"Menu!$F$29","v":"X"},{"$f":"Menu!$J$29","v":2020},{"$f":"IF(ISBLANK(INDIRECT(\"'\"&F41&\"'!\"&G41)),\"\",INDIRECT(\"'\"&F41&\"'!\"&G41))","v":""},{"$f":"IF(ISBLANK(INDIRECT(\"'\"&F41&\"'!\"&H41)),\"\",IFERROR(VLOOKUP(TEXT(INDIRECT(\"'\"&F41&\"'!\"&H41),\"0\"),Notes!$B$5:$C$100,2,FALSE),\"\"))","v":""},"1a","$K$22","$L$22"]
[5629,{"$f":"Menu!$F$29","v":"X"},{"$f":"Menu!$J$29","v":2020},{"$f":"IF(ISBLANK(INDIRECT(\"'\"&F42&\"'!\"&G42)),\"\",INDIRECT(\"'\"&F42&\"'!\"&G42))","v":""},{"$f":"IF(ISBLANK(INDIRECT(\"'\"&F42&\"'!\"&H42)),\"\",IFERROR(VLOOKUP(TEXT(INDIRECT(\"'\"&F42&\"'!\"&H42),\"0\"),Notes!$B$5:$C$100,2,FALSE),\"\"))","v":""},"1a","$M$22","$N$22"]
[5630,{"$f":"Menu!$F$29","v":"X"},{"$f":"Menu!$J$29","v":2020},{"$f":"IF(ISBLANK(INDIRECT(\"'\"&F43&\"'!\"&G43)),\"\",INDIRECT(\"'\"&F43&\"'!\"&G43))","v":""},{"$f":"IF(ISBLANK(INDIRECT(\"'\"&F43&\"'!\"&H43)),\"\",IFERROR(VLOOKUP(TEXT(INDIRECT(\"'\"&F43&\"'!\"&H43),\"0\"),Notes!$B$5:$C$100,2,FALSE),\"\"))","v":""},"1a","$O$22","$P$22"]
[5631,{"$f":"Menu!$F$29","v":"X"},{"$f":"Menu!$J$29","v":2020},{"$f":"IF(ISBLANK(INDIRECT(\"'\"&F44&\"'!\"&G44)),\"\",INDIRECT(\"'\"&F44&\"'!\"&G44))","v":""},{"$f":"IF(ISBLANK(INDIRECT(\"'\"&F44&\"'!\"&H44)),\"\",IFERROR(VLOOKUP(TEXT(INDIRECT(\"'\"&F44&\"'!\"&H44),\"0\"),Notes!$B$5:$C$100,2,FALSE),\"\"))","v":""},"1a","$Q$22","$R$22"]
[5632,{"$f":"Menu!$F$29","v":"X"},{"$f":"Menu!$J$29","v":2020},{"$f":"IF(ISBLANK(INDIRECT(\"'\"&F45&\"'!\"&G45)),\"\",INDIRECT(\"'\"&F45&\"'!\"&G45))","v":""},{"$f":"IF(ISBLANK(INDIRECT(\"'\"&F45&\"'!\"&H45)),\"\",IFERROR(VLOOKUP(TEXT(INDIRECT(\"'\"&F45&\"'!\"&H45),\"0\"),Notes!$B$5:$C$100,2,FALSE),\"\"))","v":""},"1a","$S$22","$T$22"]
[5633,{"$f":"Menu!$F$29","v":"X"},{"$f":"Menu!$J$29","v":2020},{"$f":"IF(ISBLANK(INDIRECT(\"'\"&F46&\"'!\"&G46)),\"\",INDIRECT(\"'\"&F46&\"'!\"&G46))","v":""},{"$f":"IF(ISBLANK(INDIRECT(\"'\"&F46&\"'!\"&H46)),\"\",IFERROR(VLOOKUP(TEXT(INDIRECT(\"'\"&F46&\"'!\"&H46),\"0\"),Notes!$B$5:$C$100,2,FALSE),\"\"))","v":""},"1a","$U$22","$V$22"]
[5634,{"$f":"Menu!$F$29","v":"X"},{"$f":"Menu!$J$29","v":2020},{"$f":"IF(ISBLANK(INDIRECT(\"'\"&F47&\"'!\"&G47)),\"\",INDIRECT(\"'\"&F47&\"'!\"&G47))","v":""},{"$f":"IF(ISBLANK(INDIRECT(\"'\"&F47&\"'!\"&H47)),\"\",IFERROR(VLOOKUP(TEXT(INDIRECT(\"'\"&F47&\"'!\"&H47),\"0\"),Notes!$B$5:$C$100,2,FALSE),\"\"))","v":""},"1a","$E$23","$F$23"]
[5635,{"$f":"Menu!$F$29","v":"X"},{"$f":"Menu!$J$29","v":2020},{"$f":"IF(ISBLANK(INDIRECT(\"'\"&F48&\"'!\"&G48)),\"\",INDIRECT(\"'\"&F48&\"'!\"&G48))","v":""},{"$f":"IF(ISBLANK(INDIRECT(\"'\"&F48&\"'!\"&H48)),\"\",IFERROR(VLOOKUP(TEXT(INDIRECT(\"'\"&F48&\"'!\"&H48),\"0\"),Notes!$B$5:$C$100,2,FALSE),\"\"))","v":""},"1a","$G$23","$H$23"]
[5636,{"$f":"Menu!$F$29","v":"X"},{"$f":"Menu!$J$29","v":2020},{"$f":"IF(ISBLANK(INDIRECT(\"'\"&F49&\"'!\"&G49)),\"\",INDIRECT(\"'\"&F49&\"'!\"&G49))","v":""},{"$f":"IF(ISBLANK(INDIRECT(\"'\"&F49&\"'!\"&H49)),\"\",IFERROR(VLOOKUP(TEXT(INDIRECT(\"'\"&F49&\"'!\"&H49),\"0\"),Notes!$B$5:$C$100,2,FALSE),\"\"))","v":""},"1a","$I$23","$J$23"]
[5637,{"$f":"Menu!$F$29","v":"X"},{"$f":"Menu!$J$29","v":2020},{"$f":"IF(ISBLANK(INDIRECT(\"'\"&F50&\"'!\"&G50)),\"\",INDIRECT(\"'\"&F50&\"'!\"&G50))","v":""},{"$f":"IF(ISBLANK(INDIRECT(\"'\"&F50&\"'!\"&H50)),\"\",IFERROR(VLOOKUP(TEXT(INDIRECT(\"'\"&F50&\"'!\"&H50),\"0\"),Notes!$B$5:$C$100,2,FALSE),\"\"))","v":""},"1a","$K$23","$L$23"]
[5638,{"$f":"Menu!$F$29","v":"X"},{"$f":"Menu!$J$29","v":2020},{"$f":"IF(ISBLANK(INDIRECT(\"'\"&F51&\"'!\"&G51)),\"\",INDIRECT(\"'\"&F51&\"'!\"&G51))","v":""},{"$f":"IF(ISBLANK(INDIRECT(\"'\"&F51&\"'!\"&H51)),\"\",IFERROR(VLOOKUP(TEXT(INDIRECT(\"'\"&F51&\"'!\"&H51),\"0\"),Notes!$B$5:$C$100,2,FALSE),\"\"))","v":""},"1a","$M$23","$N$23"]
[5639,{"$f":"Menu!$F$29","v":"X"},{"$f":"Menu!$J$29","v":2020},{"$f":"IF(ISBLANK(INDIRECT(\"'\"&F52&\"'!\"&G52)),\"\",INDIRECT(\"'\"&F52&\"'!\"&G52))","v":""},{"$f":"IF(ISBLANK(INDIRECT(\"'\"&F52&\"'!\"&H52)),\"\",IFERROR(VLOOKUP(TEXT(INDIRECT(\"'\"&F52&\"'!\"&H52),\"0\"),Notes!$B$5:$C$100,2,FALSE),\"\"))","v":""},"1a","$O$23","$P$23"]
[5640,{"$f":"Menu!$F$29","v":"X"},{"$f":"Menu!$J$29","v":2020},{"$f":"IF(ISBLANK(INDIRECT(\"'\"&F53&\"'!\"&G53)),\"\",INDIRECT(\"'\"&F53&\"'!\"&G53))","v":""},{"$f":"IF(ISBLANK(INDIRECT(\"'\"&F53&\"'!\"&H53)),\"\",IFERROR(VLOOKUP(TEXT(INDIRECT(\"'\"&F53&\"'!\"&H53),\"0\"),Notes!$B$5:$C$100,2,FALSE),\"\"))","v":""},"1a","$Q$23","$R$23"]
[5641,{"$f":"Menu!$F$29","v":"X"},{"$f":"Menu!$J$29","v":2020},{"$f":"IF(ISBLANK(INDIRECT(\"'\"&F54&\"'!\"&G54)),\"\",INDIRECT(\"'\"&F54&\"'!\"&G54))","v":""},{"$f":"IF(ISBLANK(INDIRECT(\"'\"&F54&\"'!\"&H54)),\"\",IFERROR(VLOOKUP(TEXT(INDIRECT(\"'\"&F54&\"'!\"&H54),\"0\"),Notes!$B$5:$C$100,2,FALSE),\"\"))","v":""},"1a","$S$23","$T$23"]
[5642,{"$f":"Menu!$F$29","v":"X"},{"$f":"Menu!$J$29","v":2020},{"$f":"IF(ISBLANK(INDIRECT(\"'\"&F55&\"'!\"&G55)),\"\",INDIRECT(\"'\"&F55&\"'!\"&G55))","v":""},{"$f":"IF(ISBLANK(INDIRECT(\"'\"&F55&\"'!\"&H55)),\"\",IFERROR(VLOOKUP(TEXT(INDIRECT(\"'\"&F55&\"'!\"&H55),\"0\"),Notes!$B$5:$C$100,2,FALSE),\"\"))","v":""},"1a","$U$23","$V$23"]
[5643,{"$f":"Menu!$F$29","v":"X"},{"$f":"Menu!$J$29","v":2020},{"$f":"IF(ISBLANK(INDIRECT(\"'\"&F56&\"'!\"&G56)),\"\",INDIRECT(\"'\"&F56&\"'!\"&G56))","v":""},{"$f":"IF(ISBLANK(INDIRECT(\"'\"&F56&\"'!\"&H56)),\"\",IFERROR(VLOOKUP(TEXT(INDIRECT(\"'\"&F56&\"'!\"&H56),\"0\"),Notes!$B$5:$C$100,2,FALSE),\"\"))","v":""},"1a","$E$24","$F$24"]
[5644,{"$f":"Menu!$F$29","v":"X"},{"$f":"Menu!$J$29","v":2020},{"$f":"IF(ISBLANK(INDIRECT(\"'\"&F57&\"'!\"&G57)),\"\",INDIRECT(\"'\"&F57&\"'!\"&G57))","v":""},{"$f":"IF(ISBLANK(INDIRECT(\"'\"&F57&\"'!\"&H57)),\"\",IFERROR(VLOOKUP(TEXT(INDIRECT(\"'\"&F57&\"'!\"&H57),\"0\"),Notes!$B$5:$C$100,2,FALSE),\"\"))","v":""},"1a","$G$24","$H$24"]
[5645,{"$f":"Menu!$F$29","v":"X"},{"$f":"Menu!$J$29","v":2020},{"$f":"IF(ISBLANK(INDIRECT(\"'\"&F58&\"'!\"&G58)),\"\",INDIRECT(\"'\"&F58&\"'!\"&G58))","v":""},{"$f":"IF(ISBLANK(INDIRECT(\"'\"&F58&\"'!\"&H58)),\"\",IFERROR(VLOOKUP(TEXT(INDIRECT(\"'\"&F58&\"'!\"&H58),\"0\"),Notes!$B$5:$C$100,2,FALSE),\"\"))","v":""},"1a","$I$24","$J$24"]
[5646,{"$f":"Menu!$F$29","v":"X"},{"$f":"Menu!$J$29","v":2020},{"$f":"IF(ISBLANK(INDIRECT(\"'\"&F59&\"'!\"&G59)),\"\",INDIRECT(\"'\"&F59&\"'!\"&G59))","v":""},{"$f":"IF(ISBLANK(INDIRECT(\"'\"&F59&\"'!\"&H59)),\"\",IFERROR(VLOOKUP(TEXT(INDIRECT(\"'\"&F59&\"'!\"&H59),\"0\"),Notes!$B$5:$C$100,2,FALSE),\"\"))","v":""},"1a","$K$24","$L$24"]
[5647,{"$f":"Menu!$F$29","v":"X"},{"$f":"Menu!$J$29","v":2020},{"$f":"IF(ISBLANK(INDIRECT(\"'\"&F60&\"'!\"&G60)),\"\",INDIRECT(\"'\"&F60&\"'!\"&G60))","v":""},{"$f":"IF(ISBLANK(INDIRECT(\"'\"&F60&\"'!\"&H60)),\"\",IFERROR(VLOOKUP(TEXT(INDIRECT(\"'\"&F60&\"'!\"&H60),\"0\"),Notes!$B$5:$C$100,2,FALSE),\"\"))","v":""},"1a","$M$24","$N$24"]
[5648,{"$f":"Menu!$F$29","v":"X"},{"$f":"Menu!$J$29","v":2020},{"$f":"IF(ISBLANK(INDIRECT(\"'\"&F61&\"'!\"&G61)),\"\",INDIRECT(\"'\"&F61&\"'!\"&G61))","v":""},{"$f":"IF(ISBLANK(INDIRECT(\"'\"&F61&\"'!\"&H61)),\"\",IFERROR(VLOOKUP(TEXT(INDIRECT(\"'\"&F61&\"'!\"&H61),\"0\"),Notes!$B$5:$C$100,2,FALSE),\"\"))","v":""},"1a","$O$24","$P$24"]
[5649,{"$f":"Menu!$F$29","v":"X"},{"$f":"Menu!$J$29","v":2020},{"$f":"IF(ISBLANK(INDIRECT(\"'\"&F62&\"'!\"&G62)),\"\",INDIRECT(\"'\"&F62&\"'!\"&G62))","v":""},{"$f":"IF(ISBLANK(INDIRECT(\"'\"&F62&\"'!\"&H62)),\"\",IFERROR(VLOOKUP(TEXT(INDIRECT(\"'\"&F62&\"'!\"&H62),\"0\"),Notes!$B$5:$C$100,2,FALSE),\"\"))","v":""},"1a","$Q$24","$R$24"]
[5650,{"$f":"Menu!$F$29","v":"X"},{"$f":"Menu!$J$29","v":2020},{"$f":"IF(ISBLANK(INDIRECT(\"'\"&F63&\"'!\"&G63)),\"\",INDIRECT(\"'\"&F63&\"'!\"&G63))","v":""},{"$f":"IF(ISBLANK(INDIRECT(\"'\"&F63&\"'!\"&H63)),\"\",IFERROR(VLOOKUP(TEXT(INDIRECT(\"'\"&F63&\"'!\"&H63),\"0\"),Notes!$B$5:$C$100,2,FALSE),\"\"))","v":""},"1a","$S$24","$T$24"]
[5651,{"$f":"Menu!$F$29","v":"X"},{"$f":"Menu!$J$29","v":2020},{"$f":"IF(ISBLANK(INDIRECT(\"'\"&F64&\"'!\"&G64)),\"\",INDIRECT(\"'\"&F64&\"'!\"&G64))","v":""},{"$f":"IF(ISBLANK(INDIRECT(\"'\"&F64&\"'!\"&H64)),\"\",IFERROR(VLOOKUP(TEXT(INDIRECT(\"'\"&F64&\"'!\"&H64),\"0\"),Notes!$B$5:$C$100,2,FALSE),\"\"))","v":""},"1a","$U$24","$V$24"]
[5652,{"$f":"Menu!$F$29","v":"X"},{"$f":"Menu!$J$29","v":2020},{"$f":"IF(ISBLANK(INDIRECT(\"'\"&F65&\"'!\"&G65)),\"\",INDIRECT(\"'\"&F65&\"'!\"&G65))","v":""},{"$f":"IF(ISBLANK(INDIRECT(\"'\"&F65&\"'!\"&H65)),\"\",IFERROR(VLOOKUP(TEXT(INDIRECT(\"'\"&F65&\"'!\"&H65),\"0\"),Notes!$B$5:$C$100,2,FALSE),\"\"))","v":""},"1a","$E$26","$F$26"]
[5653,{"$f":"Menu!$F$29","v":"X"},{"$f":"Menu!$J$29","v":2020},{"$f":"IF(ISBLANK(INDIRECT(\"'\"&F66&\"'!\"&G66)),\"\",INDIRECT(\"'\"&F66&\"'!\"&G66))","v":""},{"$f":"IF(ISBLANK(INDIRECT(\"'\"&F66&\"'!\"&H66)),\"\",IFERROR(VLOOKUP(TEXT(INDIRECT(\"'\"&F66&\"'!\"&H66),\"0\"),Notes!$B$5:$C$100,2,FALSE),\"\"))","v":""},"1a","$G$26",{"$f":"IF(LEN(TRIM(MID(G66,4,10)))-LEN(SUBSTITUTE(TRIM(MID(G66,4,10)),\"$\",\"\"))=0,\"$\"&CHAR(CODE(MID(G66,2,1))+1)&\"$\"&TRIM(MID(G66,4,10)),\"$\"&MID(G66,2,1)&CHAR(CODE(MID(G66,3,1))+1)&\"$\"&TRIM(MID(G66,5,11)))","v":"$H$26"}]
[5654,{"$f":"Menu!$F$29","v":"X"},{"$f":"Menu!$J$29","v":2020},{"$f":"IF(ISBLANK(INDIRECT(\"'\"&F67&\"'!\"&G67)),\"\",INDIRECT(\"'\"&F67&\"'!\"&G67))","v":""},{"$f":"IF(ISBLANK(INDIRECT(\"'\"&F67&\"'!\"&H67)),\"\",IFERROR(VLOOKUP(TEXT(INDIRECT(\"'\"&F67&\"'!\"&H67),\"0\"),Notes!$B$5:$C$100,2,FALSE),\"\"))","v":""},"1a","$I$26","$J$26"]
[5655,{"$f":"Menu!$F$29","v":"X"},{"$f":"Menu!$J$29","v":2020},{"$f":"IF(ISBLANK(INDIRECT(\"'\"&F68&\"'!\"&G68)),\"\",INDIRECT(\"'\"&F68&\"'!\"&G68))","v":""},{"$f":"IF(ISBLANK(INDIRECT(\"'\"&F68&\"'!\"&H68)),\"\",IFERROR(VLOOKUP(TEXT(INDIRECT(\"'\"&F68&\"'!\"&H68),\"0\"),Notes!$B$5:$C$100,2,FALSE),\"\"))","v":""},"1a","$K$26","$L$26"]
[5656,{"$f":"Menu!$F$29","v":"X"},{"$f":"Menu!$J$29","v":2020},{"$f":"IF(ISBLANK(INDIRECT(\"'\"&F69&\"'!\"&G69)),\"\",INDIRECT(\"'\"&F69&\"'!\"&G69))","v":""},{"$f":"IF(ISBLANK(INDIRECT(\"'\"&F69&\"'!\"&H69)),\"\",IFERROR(VLOOKUP(TEXT(INDIRECT(\"'\"&F69&\"'!\"&H69),\"0\"),Notes!$B$5:$C$100,2,FALSE),\"\"))","v":""},"1a","$M$26","$N$26"]
[5657,{"$f":"Menu!$F$29","v":"X"},{"$f":"Menu!$J$29","v":2020},{"$f":"IF(ISBLANK(INDIRECT(\"'\"&F70&\"'!\"&G70)),\"\",INDIRECT(\"'\"&F70&\"'!\"&G70))","v":""},{"$f":"IF(ISBLANK(INDIRECT(\"'\"&F70&\"'!\"&H70)),\"\",IFERROR(VLOOKUP(TEXT(INDIRECT(\"'\"&F70&\"'!\"&H70),\"0\"),Notes!$B$5:$C$100,2,FALSE),\"\"))","v":""},"1a","$O$26","$P$26"]
[5658,{"$f":"Menu!$F$29","v":"X"},{"$f":"Menu!$J$29","v":2020},{"$f":"IF(ISBLANK(INDIRECT(\"'\"&F71&\"'!\"&G71)),\"\",INDIRECT(\"'\"&F71&\"'!\"&G71))","v":""},{"$f":"IF(ISBLANK(INDIRECT(\"'\"&F71&\"'!\"&H71)),\"\",IFERROR(VLOOKUP(TEXT(INDIRECT(\"'\"&F71&\"'!\"&H71),\"0\"),Notes!$B$5:$C$100,2,FALSE),\"\"))","v":""},"1a","$Q$26","$R$26"]
[5659,{"$f":"Menu!$F$29","v":"X"},{"$f":"Menu!$J$29","v":2020},{"$f":"IF(ISBLANK(INDIRECT(\"'\"&F72&\"'!\"&G72)),\"\",INDIRECT(\"'\"&F72&\"'!\"&G72))","v":""},{"$f":"IF(ISBLANK(INDIRECT(\"'\"&F72&\"'!\"&H72)),\"\",IFERROR(VLOOKUP(TEXT(INDIRECT(\"'\"&F72&\"'!\"&H72),\"0\"),Notes!$B$5:$C$100,2,FALSE),\"\"))","v":""},"1a","$S$26","$T$26"]
[5660,{"$f":"Menu!$F$29","v":"X"},{"$f":"Menu!$J$29","v":2020},{"$f":"IF(ISBLANK(INDIRECT(\"'\"&F73&\"'!\"&G73)),\"\",INDIRECT(\"'\"&F73&\"'!\"&G73))","v":""},{"$f":"IF(ISBLANK(INDIRECT(\"'\"&F73&\"'!\"&H73)),\"\",IFERROR(VLOOKUP(TEXT(INDIRECT(\"'\"&F73&\"'!\"&H73),\"0\"),Notes!$B$5:$C$100,2,FALSE),\"\"))","v":""},"1a","$U$26","$V$26"]
[5661,{"$f":"Menu!$F$29","v":"X"},{"$f":"Menu!$J$29","v":2020},{"$f":"IF(ISBLANK(INDIRECT(\"'\"&F74&\"'!\"&G74)),\"\",INDIRECT(\"'\"&F74&\"'!\"&G74))","v":""},{"$f":"IF(ISBLANK(INDIRECT(\"'\"&F74&\"'!\"&H74)),\"\",IFERROR(VLOOKUP(TEXT(INDIRECT(\"'\"&F74&\"'!\"&H74),\"0\"),Notes!$B$5:$C$100,2,FALSE),\"\"))","v":""},"1a","$E$30","$F$30"]
[5662,{"$f":"Menu!$F$29","v":"X"},{"$f":"Menu!$J$29","v":2020},{"$f":"IF(ISBLANK(INDIRECT(\"'\"&F75&\"'!\"&G75)),\"\",INDIRECT(\"'\"&F75&\"'!\"&G75))","v":""},{"$f":"IF(ISBLANK(INDIRECT(\"'\"&F75&\"'!\"&H75)),\"\",IFERROR(VLOOKUP(TEXT(INDIRECT(\"'\"&F75&\"'!\"&H75),\"0\"),Notes!$B$5:$C$100,2,FALSE),\"\"))","v":""},"1a","$G$30","$H$30"]
[5663,{"$f":"Menu!$F$29","v":"X"},{"$f":"Menu!$J$29","v":2020},{"$f":"IF(ISBLANK(INDIRECT(\"'\"&F76&\"'!\"&G76)),\"\",INDIRECT(\"'\"&F76&\"'!\"&G76))","v":""},{"$f":"IF(ISBLANK(INDIRECT(\"'\"&F76&\"'!\"&H76)),\"\",IFERROR(VLOOKUP(TEXT(INDIRECT(\"'\"&F76&\"'!\"&H76),\"0\"),Notes!$B$5:$C$100,2,FALSE),\"\"))","v":""},"1a","$I$30","$J$30"]
[5664,{"$f":"Menu!$F$29","v":"X"},{"$f":"Menu!$J$29","v":2020},{"$f":"IF(ISBLANK(INDIRECT(\"'\"&F77&\"'!\"&G77)),\"\",INDIRECT(\"'\"&F77&\"'!\"&G77))","v":""},{"$f":"IF(ISBLANK(INDIRECT(\"'\"&F77&\"'!\"&H77)),\"\",IFERROR(VLOOKUP(TEXT(INDIRECT(\"'\"&F77&\"'!\"&H77),\"0\"),Notes!$B$5:$C$100,2,FALSE),\"\"))","v":""},"1a","$K$30","$L$30"]
[5665,{"$f":"Menu!$F$29","v":"X"},{"$f":"Menu!$J$29","v":2020},{"$f":"IF(ISBLANK(INDIRECT(\"'\"&F78&\"'!\"&G78)),\"\",INDIRECT(\"'\"&F78&\"'!\"&G78))","v":""},{"$f":"IF(ISBLANK(INDIRECT(\"'\"&F78&\"'!\"&H78)),\"\",IFERROR(VLOOKUP(TEXT(INDIRECT(\"'\"&F78&\"'!\"&H78),\"0\"),Notes!$B$5:$C$100,2,FALSE),\"\"))","v":""},"1a","$M$30","$N$30"]
[5666,{"$f":"Menu!$F$29","v":"X"},{"$f":"Menu!$J$29","v":2020},{"$f":"IF(ISBLANK(INDIRECT(\"'\"&F79&\"'!\"&G79)),\"\",INDIRECT(\"'\"&F79&\"'!\"&G79))","v":""},{"$f":"IF(ISBLANK(INDIRECT(\"'\"&F79&\"'!\"&H79)),\"\",IFERROR(VLOOKUP(TEXT(INDIRECT(\"'\"&F79&\"'!\"&H79),\"0\"),Notes!$B$5:$C$100,2,FALSE),\"\"))","v":""},"1a","$O$30","$P$30"]
[5667,{"$f":"Menu!$F$29","v":"X"},{"$f":"Menu!$J$29","v":2020},{"$f":"IF(ISBLANK(INDIRECT(\"'\"&F80&\"'!\"&G80)),\"\",INDIRECT(\"'\"&F80&\"'!\"&G80))","v":""},{"$f":"IF(ISBLANK(INDIRECT(\"'\"&F80&\"'!\"&H80)),\"\",IFERROR(VLOOKUP(TEXT(INDIRECT(\"'\"&F80&\"'!\"&H80),\"0\"),Notes!$B$5:$C$100,2,FALSE),\"\"))","v":""},"1a","$Q$30","$R$30"]
[5668,{"$f":"Menu!$F$29","v":"X"},{"$f":"Menu!$J$29","v":2020},{"$f":"IF(ISBLANK(INDIRECT(\"'\"&F81&\"'!\"&G81)),\"\",INDIRECT(\"'\"&F81&\"'!\"&G81))","v":""},{"$f":"IF(ISBLANK(INDIRECT(\"'\"&F81&\"'!\"&H81)),\"\",IFERROR(VLOOKUP(TEXT(INDIRECT(\"'\"&F81&\"'!\"&H81),\"0\"),Notes!$B$5:$C$100,2,FALSE),\"\"))","v":""},"1a","$S$30","$T$30"]
[5669,{"$f":"Menu!$F$29","v":"X"},{"$f":"Menu!$J$29","v":2020},{"$f":"IF(ISBLANK(INDIRECT(\"'\"&F82&\"'!\"&G82)),\"\",INDIRECT(\"'\"&F82&\"'!\"&G82))","v":""},{"$f":"IF(ISBLANK(INDIRECT(\"'\"&F82&\"'!\"&H82)),\"\",IFERROR(VLOOKUP(TEXT(INDIRECT(\"'\"&F82&\"'!\"&H82),\"0\"),Notes!$B$5:$C$100,2,FALSE),\"\"))","v":""},"1a","$U$30","$V$30"]
[5679,{"$f":"Menu!$F$29","v":"X"},{"$f":"Menu!$J$29","v":2020},{"$f":"IF(ISBLANK(INDIRECT(\"'\"&F83&\"'!\"&G83)),\"\",INDIRECT(\"'\"&F83&\"'!\"&G83))","v":""},{"$f":"IF(ISBLANK(INDIRECT(\"'\"&F83&\"'!\"&H83)),\"\",IFERROR(VLOOKUP(TEXT(INDIRECT(\"'\"&F83&\"'!\"&H83),\"0\"),Notes!$B$5:$C$100,2,FALSE),\"\"))","v":""},"1a","$E$32","$F$32"]
[5680,{"$f":"Menu!$F$29","v":"X"},{"$f":"Menu!$J$29","v":2020},{"$f":"IF(ISBLANK(INDIRECT(\"'\"&F84&\"'!\"&G84)),\"\",INDIRECT(\"'\"&F84&\"'!\"&G84))","v":""},{"$f":"IF(ISBLANK(INDIRECT(\"'\"&F84&\"'!\"&H84)),\"\",IFERROR(VLOOKUP(TEXT(INDIRECT(\"'\"&F84&\"'!\"&H84),\"0\"),Notes!$B$5:$C$100,2,FALSE),\"\"))","v":""},"1a","$G$32","$H$32"]
[5681,{"$f":"Menu!$F$29","v":"X"},{"$f":"Menu!$J$29","v":2020},{"$f":"IF(ISBLANK(INDIRECT(\"'\"&F85&\"'!\"&G85)),\"\",INDIRECT(\"'\"&F85&\"'!\"&G85))","v":""},{"$f":"IF(ISBLANK(INDIRECT(\"'\"&F85&\"'!\"&H85)),\"\",IFERROR(VLOOKUP(TEXT(INDIRECT(\"'\"&F85&\"'!\"&H85),\"0\"),Notes!$B$5:$C$100,2,FALSE),\"\"))","v":""},"1a","$I$32","$J$32"]
[5682,{"$f":"Menu!$F$29","v":"X"},{"$f":"Menu!$J$29","v":2020},{"$f":"IF(ISBLANK(INDIRECT(\"'\"&F86&\"'!\"&G86)),\"\",INDIRECT(\"'\"&F86&\"'!\"&G86))","v":""},{"$f":"IF(ISBLANK(INDIRECT(\"'\"&F86&\"'!\"&H86)),\"\",IFERROR(VLOOKUP(TEXT(INDIRECT(\"'\"&F86&\"'!\"&H86),\"0\"),Notes!$B$5:$C$100,2,FALSE),\"\"))","v":""},"1a","$K$32","$L$32"]
[5683,{"$f":"Menu!$F$29","v":"X"},{"$f":"Menu!$J$29","v":2020},{"$f":"IF(ISBLANK(INDIRECT(\"'\"&F87&\"'!\"&G87)),\"\",INDIRECT(\"'\"&F87&\"'!\"&G87))","v":""},{"$f":"IF(ISBLANK(INDIRECT(\"'\"&F87&\"'!\"&H87)),\"\",IFERROR(VLOOKUP(TEXT(INDIRECT(\"'\"&F87&\"'!\"&H87),\"0\"),Notes!$B$5:$C$100,2,FALSE),\"\"))","v":""},"1a","$M$32","$N$32"]
[5684,{"$f":"Menu!$F$29","v":"X"},{"$f":"Menu!$J$29","v":2020},{"$f":"IF(ISBLANK(INDIRECT(\"'\"&F88&\"'!\"&G88)),\"\",INDIRECT(\"'\"&F88&\"'!\"&G88))","v":""},{"$f":"IF(ISBLANK(INDIRECT(\"'\"&F88&\"'!\"&H88)),\"\",IFERROR(VLOOKUP(TEXT(INDIRECT(\"'\"&F88&\"'!\"&H88),\"0\"),Notes!$B$5:$C$100,2,FALSE),\"\"))","v":""},"1a","$O$32","$P$32"]
[5685,{"$f":"Menu!$F$29","v":"X"},{"$f":"Menu!$J$29","v":2020},{"$f":"IF(ISBLANK(INDIRECT(\"'\"&F89&\"'!\"&G89)),\"\",INDIRECT(\"'\"&F89&\"'!\"&G89))","v":""},{"$f":"IF(ISBLANK(INDIRECT(\"'\"&F89&\"'!\"&H89)),\"\",IFERROR(VLOOKUP(TEXT(INDIRECT(\"'\"&F89&\"'!\"&H89),\"0\"),Notes!$B$5:$C$100,2,FALSE),\"\"))","v":""},"1a","$Q$32","$R$32"]
[5686,{"$f":"Menu!$F$29","v":"X"},{"$f":"Menu!$J$29","v":2020},{"$f":"IF(ISBLANK(INDIRECT(\"'\"&F90&\"'!\"&G90)),\"\",INDIRECT(\"'\"&F90&\"'!\"&G90))","v":""},{"$f":"IF(ISBLANK(INDIRECT(\"'\"&F90&\"'!\"&H90)),\"\",IFERROR(VLOOKUP(TEXT(INDIRECT(\"'\"&F90&\"'!\"&H90),\"0\"),Notes!$B$5:$C$100,2,FALSE),\"\"))","v":""},"1a","$S$32","$T$32"]
[5687,{"$f":"Menu!$F$29","v":"X"},{"$f":"Menu!$J$29","v":2020},{"$f":"IF(ISBLANK(INDIRECT(\"'\"&F91&\"'!\"&G91)),\"\",INDIRECT(\"'\"&F91&\"'!\"&G91))","v":""},{"$f":"IF(ISBLANK(INDIRECT(\"'\"&F91&\"'!\"&H91)),\"\",IFERROR(VLOOKUP(TEXT(INDIRECT(\"'\"&F91&\"'!\"&H91),\"0\"),Notes!$B$5:$C$100,2,FALSE),\"\"))","v":""},"1a","$U$32","$V$32"]
[5688,{"$f":"Menu!$F$29","v":"X"},{"$f":"Menu!$J$29","v":2020},{"$f":"IF(ISBLANK(INDIRECT(\"'\"&F92&\"'!\"&G92)),\"\",INDIRECT(\"'\"&F92&\"'!\"&G92))","v":""},{"$f":"IF(ISBLANK(INDIRECT(\"'\"&F92&\"'!\"&H92)),\"\",IFERROR(VLOOKUP(TEXT(INDIRECT(\"'\"&F92&\"'!\"&H92),\"0\"),Notes!$B$5:$C$100,2,FALSE),\"\"))","v":""},"1a","$E$37","$F$37"]
[5689,{"$f":"Menu!$F$29","v":"X"},{"$f":"Menu!$J$29","v":2020},{"$f":"IF(ISBLANK(INDIRECT(\"'\"&F93&\"'!\"&G93)),\"\",INDIRECT(\"'\"&F93&\"'!\"&G93))","v":""},{"$f":"IF(ISBLANK(INDIRECT(\"'\"&F93&\"'!\"&H93)),\"\",IFERROR(VLOOKUP(TEXT(INDIRECT(\"'\"&F93&\"'!\"&H93),\"0\"),Notes!$B$5:$C$100,2,FALSE),\"\"))","v":""},"1a","$G$37","$H$37"]
[5690,{"$f":"Menu!$F$29","v":"X"},{"$f":"Menu!$J$29","v":2020},{"$f":"IF(ISBLANK(INDIRECT(\"'\"&F94&\"'!\"&G94)),\"\",INDIRECT(\"'\"&F94&\"'!\"&G94))","v":""},{"$f":"IF(ISBLANK(INDIRECT(\"'\"&F94&\"'!\"&H94)),\"\",IFERROR(VLOOKUP(TEXT(INDIRECT(\"'\"&F94&\"'!\"&H94),\"0\"),Notes!$B$5:$C$100,2,FALSE),\"\"))","v":""},"1a","$I$37","$J$37"]
[5691,{"$f":"Menu!$F$29","v":"X"},{"$f":"Menu!$J$29","v":2020},{"$f":"IF(ISBLANK(INDIRECT(\"'\"&F95&\"'!\"&G95)),\"\",INDIRECT(\"'\"&F95&\"'!\"&G95))","v":""},{"$f":"IF(ISBLANK(INDIRECT(\"'\"&F95&\"'!\"&H95)),\"\",IFERROR(VLOOKUP(TEXT(INDIRECT(\"'\"&F95&\"'!\"&H95),\"0\"),Notes!$B$5:$C$100,2,FALSE),\"\"))","v":""},"1a","$K$37","$L$37"]
[5692,{"$f":"Menu!$F$29","v":"X"},{"$f":"Menu!$J$29","v":2020},{"$f":"IF(ISBLANK(INDIRECT(\"'\"&F96&\"'!\"&G96)),\"\",INDIRECT(\"'\"&F96&\"'!\"&G96))","v":""},{"$f":"IF(ISBLANK(INDIRECT(\"'\"&F96&\"'!\"&H96)),\"\",IFERROR(VLOOKUP(TEXT(INDIRECT(\"'\"&F96&\"'!\"&H96),\"0\"),Notes!$B$5:$C$100,2,FALSE),\"\"))","v":""},"1a","$M$37","$N$37"]
[5693,{"$f":"Menu!$F$29","v":"X"},{"$f":"Menu!$J$29","v":2020},{"$f":"IF(ISBLANK(INDIRECT(\"'\"&F97&\"'!\"&G97)),\"\",INDIRECT(\"'\"&F97&\"'!\"&G97))","v":""},{"$f":"IF(ISBLANK(INDIRECT(\"'\"&F97&\"'!\"&H97)),\"\",IFERROR(VLOOKUP(TEXT(INDIRECT(\"'\"&F97&\"'!\"&H97),\"0\"),Notes!$B$5:$C$100,2,FALSE),\"\"))","v":""},"1a","$O$37","$P$37"]
[5694,{"$f":"Menu!$F$29","v":"X"},{"$f":"Menu!$J$29","v":2020},{"$f":"IF(ISBLANK(INDIRECT(\"'\"&F98&\"'!\"&G98)),\"\",INDIRECT(\"'\"&F98&\"'!\"&G98))","v":""},{"$f":"IF(ISBLANK(INDIRECT(\"'\"&F98&\"'!\"&H98)),\"\",IFERROR(VLOOKUP(TEXT(INDIRECT(\"'\"&F98&\"'!\"&H98),\"0\"),Notes!$B$5:$C$100,2,FALSE),\"\"))","v":""},"1a","$Q$37","$R$37"]
[5695,{"$f":"Menu!$F$29","v":"X"},{"$f":"Menu!$J$29","v":2020},{"$f":"IF(ISBLANK(INDIRECT(\"'\"&F99&\"'!\"&G99)),\"\",INDIRECT(\"'\"&F99&\"'!\"&G99))","v":""},{"$f":"IF(ISBLANK(INDIRECT(\"'\"&F99&\"'!\"&H99)),\"\",IFERROR(VLOOKUP(TEXT(INDIRECT(\"'\"&F99&\"'!\"&H99),\"0\"),Notes!$B$5:$C$100,2,FALSE),\"\"))","v":""},"1a","$S$37","$T$37"]
[5696,{"$f":"Menu!$F$29","v":"X"},{"$f":"Menu!$J$29","v":2020},{"$f":"IF(ISBLANK(INDIRECT(\"'\"&F100&\"'!\"&G100)),\"\",INDIRECT(\"'\"&F100&\"'!\"&G100))","v":""},{"$f":"IF(ISBLANK(INDIRECT(\"'\"&F100&\"'!\"&H100)),\"\",IFERROR(VLOOKUP(TEXT(INDIRECT(\"'\"&F100&\"'!\"&H100),\"0\"),Notes!$B$5:$C$100,2,FALSE),\"\"))","v":""},"1a","$U$37","$V$37"]
[5925,{"$f":"Menu!$F$29","v":"X"},{"$f":"Menu!$J$29","v":2020},{"$f":"IF(ISBLANK(INDIRECT(\"'\"&F101&\"'!\"&G101)),\"\",INDIRECT(\"'\"&F101&\"'!\"&G101))","v":""},{"$f":"IF(ISBLANK(INDIRECT(\"'\"&F101&\"'!\"&H101)),\"\",IFERROR(VLOOKUP(TEXT(INDIRECT(\"'\"&F101&\"'!\"&H101),\"0\"),Notes!$B$5:$C$100,2,FALSE),\"\"))","v":""},"2a","$E$10","$F$10"]
[5926,{"$f":"Menu!$F$29","v":"X"},{"$f":"Menu!$J$29","v":2020},{"$f":"IF(ISBLANK(INDIRECT(\"'\"&F102&\"'!\"&G102)),\"\",INDIRECT(\"'\"&F102&\"'!\"&G102))","v":""},{"$f":"IF(ISBLANK(INDIRECT(\"'\"&F102&\"'!\"&H102)),\"\",IFERROR(VLOOKUP(TEXT(INDIRECT(\"'\"&F102&\"'!\"&H102),\"0\"),Notes!$B$5:$C$100,2,FALSE),\"\"))","v":""},"2a","$G$10","$H$10"]
[5927,{"$f":"Menu!$F$29","v":"X"},{"$f":"Menu!$J$29","v":2020},{"$f":"IF(ISBLANK(INDIRECT(\"'\"&F103&\"'!\"&G103)),\"\",INDIRECT(\"'\"&F103&\"'!\"&G103))","v":""},{"$f":"IF(ISBLANK(INDIRECT(\"'\"&F103&\"'!\"&H103)),\"\",IFERROR(VLOOKUP(TEXT(INDIRECT(\"'\"&F103&\"'!\"&H103),\"0\"),Notes!$B$5:$C$100,2,FALSE),\"\"))","v":""},"2a","$I$10","$J$10"]
[5928,{"$f":"Menu!$F$29","v":"X"},{"$f":"Menu!$J$29","v":2020},{"$f":"IF(ISBLANK(INDIRECT(\"'\"&F104&\"'!\"&G104)),\"\",INDIRECT(\"'\"&F104&\"'!\"&G104))","v":""},{"$f":"IF(ISBLANK(INDIRECT(\"'\"&F104&\"'!\"&H104)),\"\",IFERROR(VLOOKUP(TEXT(INDIRECT(\"'\"&F104&\"'!\"&H104),\"0\"),Notes!$B$5:$C$100,2,FALSE),\"\"))","v":""},"2a","$K$10","$L$10"]
[5929,{"$f":"Menu!$F$29","v":"X"},{"$f":"Menu!$J$29","v":2020},{"$f":"IF(ISBLANK(INDIRECT(\"'\"&F105&\"'!\"&G105)),\"\",INDIRECT(\"'\"&F105&\"'!\"&G105))","v":""},{"$f":"IF(ISBLANK(INDIRECT(\"'\"&F105&\"'!\"&H105)),\"\",IFERROR(VLOOKUP(TEXT(INDIRECT(\"'\"&F105&\"'!\"&H105),\"0\"),Notes!$B$5:$C$100,2,FALSE),\"\"))","v":""},"2a","$M$10","$N$10"]
[5930,{"$f":"Menu!$F$29","v":"X"},{"$f":"Menu!$J$29","v":2020},{"$f":"IF(ISBLANK(INDIRECT(\"'\"&F106&\"'!\"&G106)),\"\",INDIRECT(\"'\"&F106&\"'!\"&G106))","v":""},{"$f":"IF(ISBLANK(INDIRECT(\"'\"&F106&\"'!\"&H106)),\"\",IFERROR(VLOOKUP(TEXT(INDIRECT(\"'\"&F106&\"'!\"&H106),\"0\"),Notes!$B$5:$C$100,2,FALSE),\"\"))","v":""},"2a","$O$10","$P$10"]
[5931,{"$f":"Menu!$F$29","v":"X"},{"$f":"Menu!$J$29","v":2020},{"$f":"IF(ISBLANK(INDIRECT(\"'\"&F107&\"'!\"&G107)),\"\",INDIRECT(\"'\"&F107&\"'!\"&G107))","v":""},{"$f":"IF(ISBLANK(INDIRECT(\"'\"&F107&\"'!\"&H107)),\"\",IFERROR(VLOOKUP(TEXT(INDIRECT(\"'\"&F107&\"'!\"&H107),\"0\"),Notes!$B$5:$C$100,2,FALSE),\"\"))","v":""},"2a","$Q$10","$R$10"]
[5932,{"$f":"Menu!$F$29","v":"X"},{"$f":"Menu!$J$29","v":2020},{"$f":"IF(ISBLANK(INDIRECT(\"'\"&F108&\"'!\"&G108)),\"\",INDIRECT(\"'\"&F108&\"'!\"&G108))","v":""},{"$f":"IF(ISBLANK(INDIRECT(\"'\"&F108&\"'!\"&H108)),\"\",IFERROR(VLOOKUP(TEXT(INDIRECT(\"'\"&F108&\"'!\"&H108),\"0\"),Notes!$B$5:$C$100,2,FALSE),\"\"))","v":""},"2a","$S$10","$T$10"]
[5933,{"$f":"Menu!$F$29","v":"X"},{"$f":"Menu!$J$29","v":2020},{"$f":"IF(ISBLANK(INDIRECT(\"'\"&F109&\"'!\"&G109)),\"\",INDIRECT(\"'\"&F109&\"'!\"&G109))","v":""},{"$f":"IF(ISBLANK(INDIRECT(\"'\"&F109&\"'!\"&H109)),\"\",IFERROR(VLOOKUP(TEXT(INDIRECT(\"'\"&F109&\"'!\"&H109),\"0\"),Notes!$B$5:$C$100,2,FALSE),\"\"))","v":""},"2a","$U$10","$V$10"]
[5934,{"$f":"Menu!$F$29","v":"X"},{"$f":"Menu!$J$29","v":2020},{"$f":"IF(ISBLANK(INDIRECT(\"'\"&F110&\"'!\"&G110)),\"\",INDIRECT(\"'\"&F110&\"'!\"&G110))","v":""},{"$f":"IF(ISBLANK(INDIRECT(\"'\"&F110&\"'!\"&H110)),\"\",IFERROR(VLOOKUP(TEXT(INDIRECT(\"'\"&F110&\"'!\"&H110),\"0\"),Notes!$B$5:$C$100,2,FALSE),\"\"))","v":""},"2a","$E$11","$F$11"]
[5935,{"$f":"Menu!$F$29","v":"X"},{"$f":"Menu!$J$29","v":2020},{"$f":"IF(ISBLANK(INDIRECT(\"'\"&F111&\"'!\"&G111)),\"\",INDIRECT(\"'\"&F111&\"'!\"&G111))","v":""},{"$f":"IF(ISBLANK(INDIRECT(\"'\"&F111&\"'!\"&H111)),\"\",IFERROR(VLOOKUP(TEXT(INDIRECT(\"'\"&F111&\"'!\"&H111),\"0\"),Notes!$B$5:$C$100,2,FALSE),\"\"))","v":""},"2a","$G$11","$H$11"]
[5936,{"$f":"Menu!$F$29","v":"X"},{"$f":"Menu!$J$29","v":2020},{"$f":"IF(ISBLANK(INDIRECT(\"'\"&F112&\"'!\"&G112)),\"\",INDIRECT(\"'\"&F112&\"'!\"&G112))","v":""},{"$f":"IF(ISBLANK(INDIRECT(\"'\"&F112&\"'!\"&H112)),\"\",IFERROR(VLOOKUP(TEXT(INDIRECT(\"'\"&F112&\"'!\"&H112),\"0\"),Notes!$B$5:$C$100,2,FALSE),\"\"))","v":""},"2a","$I$11","$J$11"]
[5937,{"$f":"Menu!$F$29","v":"X"},{"$f":"Menu!$J$29","v":2020},{"$f":"IF(ISBLANK(INDIRECT(\"'\"&F113&\"'!\"&G113)),\"\",INDIRECT(\"'\"&F113&\"'!\"&G113))","v":""},{"$f":"IF(ISBLANK(INDIRECT(\"'\"&F113&\"'!\"&H113)),\"\",IFERROR(VLOOKUP(TEXT(INDIRECT(\"'\"&F113&\"'!\"&H113),\"0\"),Notes!$B$5:$C$100,2,FALSE),\"\"))","v":""},"2a","$K$11","$L$11"]
[5938,{"$f":"Menu!$F$29","v":"X"},{"$f":"Menu!$J$29","v":2020},{"$f":"IF(ISBLANK(INDIRECT(\"'\"&F114&\"'!\"&G114)),\"\",INDIRECT(\"'\"&F114&\"'!\"&G114))","v":""},{"$f":"IF(ISBLANK(INDIRECT(\"'\"&F114&\"'!\"&H114)),\"\",IFERROR(VLOOKUP(TEXT(INDIRECT(\"'\"&F114&\"'!\"&H114),\"0\"),Notes!$B$5:$C$100,2,FALSE),\"\"))","v":""},"2a","$M$11","$N$11"]
[5939,{"$f":"Menu!$F$29","v":"X"},{"$f":"Menu!$J$29","v":2020},{"$f":"IF(ISBLANK(INDIRECT(\"'\"&F115&\"'!\"&G115)),\"\",INDIRECT(\"'\"&F115&\"'!\"&G115))","v":""},{"$f":"IF(ISBLANK(INDIRECT(\"'\"&F115&\"'!\"&H115)),\"\",IFERROR(VLOOKUP(TEXT(INDIRECT(\"'\"&F115&\"'!\"&H115),\"0\"),Notes!$B$5:$C$100,2,FALSE),\"\"))","v":""},"2a","$O$11","$P$11"]
[5940,{"$f":"Menu!$F$29","v":"X"},{"$f":"Menu!$J$29","v":2020},{"$f":"IF(ISBLANK(INDIRECT(\"'\"&F116&\"'!\"&G116)),\"\",INDIRECT(\"'\"&F116&\"'!\"&G116))","v":""},{"$f":"IF(ISBLANK(INDIRECT(\"'\"&F116&\"'!\"&H116)),\"\",IFERROR(VLOOKUP(TEXT(INDIRECT(\"'\"&F116&\"'!\"&H116),\"0\"),Notes!$B$5:$C$100,2,FALSE),\"\"))","v":""},"2a","$Q$11","$R$11"]
[5941,{"$f":"Menu!$F$29","v":"X"},{"$f":"Menu!$J$29","v":2020},{"$f":"IF(ISBLANK(INDIRECT(\"'\"&F117&\"'!\"&G117)),\"\",INDIRECT(\"'\"&F117&\"'!\"&G117))","v":""},{"$f":"IF(ISBLANK(INDIRECT(\"'\"&F117&\"'!\"&H117)),\"\",IFERROR(VLOOKUP(TEXT(INDIRECT(\"'\"&F117&\"'!\"&H117),\"0\"),Notes!$B$5:$C$100,2,FALSE),\"\"))","v":""},"2a","$S$11","$T$11"]
[5942,{"$f":"Menu!$F$29","v":"X"},{"$f":"Menu!$J$29","v":2020},{"$f":"IF(ISBLANK(INDIRECT(\"'\"&F118&\"'!\"&G118)),\"\",INDIRECT(\"'\"&F118&\"'!\"&G118))","v":""},{"$f":"IF(ISBLANK(INDIRECT(\"'\"&F118&\"'!\"&H118)),\"\",IFERROR(VLOOKUP(TEXT(INDIRECT(\"'\"&F118&\"'!\"&H118),\"0\"),Notes!$B$5:$C$100,2,FALSE),\"\"))","v":""},"2a","$U$11","$V$11"]
[5943,{"$f":"Menu!$F$29","v":"X"},{"$f":"Menu!$J$29","v":2020},{"$f":"IF(ISBLANK(INDIRECT(\"'\"&F119&\"'!\"&G119)),\"\",INDIRECT(\"'\"&F119&\"'!\"&G119))","v":""},{"$f":"IF(ISBLANK(INDIRECT(\"'\"&F119&\"'!\"&H119)),\"\",IFERROR(VLOOKUP(TEXT(INDIRECT(\"'\"&F119&\"'!\"&H119),\"0\"),Notes!$B$5:$C$100,2,FALSE),\"\"))","v":""},"2a","$E$19","$F$19"]
[5944,{"$f":"Menu!$F$29","v":"X"},{"$f":"Menu!$J$29","v":2020},{"$f":"IF(ISBLANK(INDIRECT(\"'\"&F120&\"'!\"&G120)),\"\",INDIRECT(\"'\"&F120&\"'!\"&G120))","v":""},{"$f":"IF(ISBLANK(INDIRECT(\"'\"&F120&\"'!\"&H120)),\"\",IFERROR(VLOOKUP(TEXT(INDIRECT(\"'\"&F120&\"'!\"&H120),\"0\"),Notes!$B$5:$C$100,2,FALSE),\"\"))","v":""},"2a","$G$19","$H$19"]
[5945,{"$f":"Menu!$F$29","v":"X"},{"$f":"Menu!$J$29","v":2020},{"$f":"IF(ISBLANK(INDIRECT(\"'\"&F121&\"'!\"&G121)),\"\",INDIRECT(\"'\"&F121&\"'!\"&G121))","v":""},{"$f":"IF(ISBLANK(INDIRECT(\"'\"&F121&\"'!\"&H121)),\"\",IFERROR(VLOOKUP(TEXT(INDIRECT(\"'\"&F121&\"'!\"&H121),\"0\"),Notes!$B$5:$C$100,2,FALSE),\"\"))","v":""},"2a","$I$19","$J$19"]
[5946,{"$f":"Menu!$F$29","v":"X"},{"$f":"Menu!$J$29","v":2020},{"$f":"IF(ISBLANK(INDIRECT(\"'\"&F122&\"'!\"&G122)),\"\",INDIRECT(\"'\"&F122&\"'!\"&G122))","v":""},{"$f":"IF(ISBLANK(INDIRECT(\"'\"&F122&\"'!\"&H122)),\"\",IFERROR(VLOOKUP(TEXT(INDIRECT(\"'\"&F122&\"'!\"&H122),\"0\"),Notes!$B$5:$C$100,2,FALSE),\"\"))","v":""},"2a","$K$19","$L$19"]
[5947,{"$f":"Menu!$F$29","v":"X"},{"$f":"Menu!$J$29","v":2020},{"$f":"IF(ISBLANK(INDIRECT(\"'\"&F123&\"'!\"&G123)),\"\",INDIRECT(\"'\"&F123&\"'!\"&G123))","v":""},{"$f":"IF(ISBLANK(INDIRECT(\"'\"&F123&\"'!\"&H123)),\"\",IFERROR(VLOOKUP(TEXT(INDIRECT(\"'\"&F123&\"'!\"&H123),\"0\"),Notes!$B$5:$C$100,2,FALSE),\"\"))","v":""},"2a","$M$19","$N$19"]
[5948,{"$f":"Menu!$F$29","v":"X"},{"$f":"Menu!$J$29","v":2020},{"$f":"IF(ISBLANK(INDIRECT(\"'\"&F124&\"'!\"&G124)),\"\",INDIRECT(\"'\"&F124&\"'!\"&G124))","v":""},{"$f":"IF(ISBLANK(INDIRECT(\"'\"&F124&\"'!\"&H124)),\"\",IFERROR(VLOOKUP(TEXT(INDIRECT(\"'\"&F124&\"'!\"&H124),\"0\"),Notes!$B$5:$C$100,2,FALSE),\"\"))","v":""},"2a","$O$19","$P$19"]
[5949,{"$f":"Menu!$F$29","v":"X"},{"$f":"Menu!$J$29","v":2020},{"$f":"IF(ISBLANK(INDIRECT(\"'\"&F125&\"'!\"&G125)),\"\",INDIRECT(\"'\"&F125&\"'!\"&G125))","v":""},{"$f":"IF(ISBLANK(INDIRECT(\"'\"&F125&\"'!\"&H125)),\"\",IFERROR(VLOOKUP(TEXT(INDIRECT(\"'\"&F125&\"'!\"&H125),\"0\"),Notes!$B$5:$C$100,2,FALSE),\"\"))","v":""},"2a","$Q$19","$R$19"]
[5950,{"$f":"Menu!$F$29","v":"X"},{"$f":"Menu!$J$29","v":2020},{"$f":"IF(ISBLANK(INDIRECT(\"'\"&F126&\"'!\"&G126)),\"\",INDIRECT(\"'\"&F126&\"'!\"&G126))","v":""},{"$f":"IF(ISBLANK(INDIRECT(\"'\"&F126&\"'!\"&H126)),\"\",IFERROR(VLOOKUP(TEXT(INDIRECT(\"'\"&F126&\"'!\"&H126),\"0\"),Notes!$B$5:$C$100,2,FALSE),\"\"))","v":""},"2a","$S$19","$T$19"]
[5951,{"$f":"Menu!$F$29","v":"X"},{"$f":"Menu!$J$29","v":2020},{"$f":"IF(ISBLANK(INDIRECT(\"'\"&F127&\"'!\"&G127)),\"\",INDIRECT(\"'\"&F127&\"'!\"&G127))","v":""},{"$f":"IF(ISBLANK(INDIRECT(\"'\"&F127&\"'!\"&H127)),\"\",IFERROR(VLOOKUP(TEXT(INDIRECT(\"'\"&F127&\"'!\"&H127),\"0\"),Notes!$B$5:$C$100,2,FALSE),\"\"))","v":""},"2a","$U$19","$V$19"]
[5961,{"$f":"Menu!$F$29","v":"X"},{"$f":"Menu!$J$29","v":2020},{"$f":"IF(ISBLANK(INDIRECT(\"'\"&F128&\"'!\"&G128)),\"\",INDIRECT(\"'\"&F128&\"'!\"&G128))","v":""},{"$f":"IF(ISBLANK(INDIRECT(\"'\"&F128&\"'!\"&H128)),\"\",IFERROR(VLOOKUP(TEXT(INDIRECT(\"'\"&F128&\"'!\"&H128),\"0\"),Notes!$B$5:$C$100,2,FALSE),\"\"))","v":""},"2a","$E$64","$F$64"]
[5962,{"$f":"Menu!$F$29","v":"X"},{"$f":"Menu!$J$29","v":2020},{"$f":"IF(ISBLANK(INDIRECT(\"'\"&F129&\"'!\"&G129)),\"\",INDIRECT(\"'\"&F129&\"'!\"&G129))","v":""},{"$f":"IF(ISBLANK(INDIRECT(\"'\"&F129&\"'!\"&H129)),\"\",IFERROR(VLOOKUP(TEXT(INDIRECT(\"'\"&F129&\"'!\"&H129),\"0\"),Notes!$B$5:$C$100,2,FALSE),\"\"))","v":""},"2a","$G$64","$H$64"]
[5963,{"$f":"Menu!$F$29","v":"X"},{"$f":"Menu!$J$29","v":2020},{"$f":"IF(ISBLANK(INDIRECT(\"'\"&F130&\"'!\"&G130)),\"\",INDIRECT(\"'\"&F130&\"'!\"&G130))","v":""},{"$f":"IF(ISBLANK(INDIRECT(\"'\"&F130&\"'!\"&H130)),\"\",IFERROR(VLOOKUP(TEXT(INDIRECT(\"'\"&F130&\"'!\"&H130),\"0\"),Notes!$B$5:$C$100,2,FALSE),\"\"))","v":""},"2a","$I$64",{"$f":"IF(LEN(TRIM(MID(G130,4,10)))-LEN(SUBSTITUTE(TRIM(MID(G130,4,10)),\"$\",\"\"))=0,\"$\"&CHAR(CODE(MID(G130,2,1))+1)&\"$\"&TRIM(MID(G130,4,10)),\"$\"&MID(G130,2,1)&CHAR(CODE(MID(G130,3,1))+1)&\"$\"&TRIM(MID(G130,5,11)))","v":"$J$64"}]
[5964,{"$f":"Menu!$F$29","v":"X"},{"$f":"Menu!$J$29","v":2020},{"$f":"IF(ISBLANK(INDIRECT(\"'\"&F131&\"'!\"&G131)),\"\",INDIRECT(\"'\"&F131&\"'!\"&G131))","v":""},{"$f":"IF(ISBLANK(INDIRECT(\"'\"&F131&\"'!\"&H131)),\"\",IFERROR(VLOOKUP(TEXT(INDIRECT(\"'\"&F131&\"'!\"&H131),\"0\"),Notes!$B$5:$C$100,2,FALSE),\"\"))","v":""},"2a","$K$64","$L$64"]
[5965,{"$f":"Menu!$F$29","v":"X"},{"$f":"Menu!$J$29","v":2020},{"$f":"IF(ISBLANK(INDIRECT(\"'\"&F132&\"'!\"&G132)),\"\",INDIRECT(\"'\"&F132&\"'!\"&G132))","v":""},{"$f":"IF(ISBLANK(INDIRECT(\"'\"&F132&\"'!\"&H132)),\"\",IFERROR(VLOOKUP(TEXT(INDIRECT(\"'\"&F132&\"'!\"&H132),\"0\"),Notes!$B$5:$C$100,2,FALSE),\"\"))","v":""},"2a","$M$64","$N$64"]
[5966,{"$f":"Menu!$F$29","v":"X"},{"$f":"Menu!$J$29","v":2020},{"$f":"IF(ISBLANK(INDIRECT(\"'\"&F133&\"'!\"&G133)),\"\",INDIRECT(\"'\"&F133&\"'!\"&G133))","v":""},{"$f":"IF(ISBLANK(INDIRECT(\"'\"&F133&\"'!\"&H133)),\"\",IFERROR(VLOOKUP(TEXT(INDIRECT(\"'\"&F133&\"'!\"&H133),\"0\"),Notes!$B$5:$C$100,2,FALSE),\"\"))","v":""},"2a","$O$64","$P$64"]
[5967,{"$f":"Menu!$F$29","v":"X"},{"$f":"Menu!$J$29","v":2020},{"$f":"IF(ISBLANK(INDIRECT(\"'\"&F134&\"'!\"&G134)),\"\",INDIRECT(\"'\"&F134&\"'!\"&G134))","v":""},{"$f":"IF(ISBLANK(INDIRECT(\"'\"&F134&\"'!\"&H134)),\"\",IFERROR(VLOOKUP(TEXT(INDIRECT(\"'\"&F134&\"'!\"&H134),\"0\"),Notes!$B$5:$C$100,2,FALSE),\"\"))","v":""},"2a","$Q$64","$R$64"]
[5968,{"$f":"Menu!$F$29","v":"X"},{"$f":"Menu!$J$29","v":2020},{"$f":"IF(ISBLANK(INDIRECT(\"'\"&F135&\"'!\"&G135)),\"\",INDIRECT(\"'\"&F135&\"'!\"&G135))","v":""},{"$f":"IF(ISBLANK(INDIRECT(\"'\"&F135&\"'!\"&H135)),\"\",IFERROR(VLOOKUP(TEXT(INDIRECT(\"'\"&F135&\"'!\"&H135),\"0\"),Notes!$B$5:$C$100,2,FALSE),\"\"))","v":""},"2a","$S$64","$T$64"]
[5969,{"$f":"Menu!$F$29","v":"X"},{"$f":"Menu!$J$29","v":2020},{"$f":"IF(ISBLANK(INDIRECT(\"'\"&F136&\"'!\"&G136)),\"\",INDIRECT(\"'\"&F136&\"'!\"&G136))","v":""},{"$f":"IF(ISBLANK(INDIRECT(\"'\"&F136&\"'!\"&H136)),\"\",IFERROR(VLOOKUP(TEXT(INDIRECT(\"'\"&F136&\"'!\"&H136),\"0\"),Notes!$B$5:$C$100,2,FALSE),\"\"))","v":""},"2a","$U$64","$V$64"]
[5970,{"$f":"Menu!$F$29","v":"X"},{"$f":"Menu!$J$29","v":2020},{"$f":"IF(ISBLANK(INDIRECT(\"'\"&F137&\"'!\"&G137)),\"\",INDIRECT(\"'\"&F137&\"'!\"&G137))","v":""},{"$f":"IF(ISBLANK(INDIRECT(\"'\"&F137&\"'!\"&H137)),\"\",IFERROR(VLOOKUP(TEXT(INDIRECT(\"'\"&F137&\"'!\"&H137),\"0\"),Notes!$B$5:$C$100,2,FALSE),\"\"))","v":""},"2a","$E$65","$F$65"]
[5971,{"$f":"Menu!$F$29","v":"X"},{"$f":"Menu!$J$29","v":2020},{"$f":"IF(ISBLANK(INDIRECT(\"'\"&F138&\"'!\"&G138)),\"\",INDIRECT(\"'\"&F138&\"'!\"&G138))","v":""},{"$f":"IF(ISBLANK(INDIRECT(\"'\"&F138&\"'!\"&H138)),\"\",IFERROR(VLOOKUP(TEXT(INDIRECT(\"'\"&F138&\"'!\"&H138),\"0\"),Notes!$B$5:$C$100,2,FALSE),\"\"))","v":""},"2a","$G$65","$H$65"]
[5972,{"$f":"Menu!$F$29","v":"X"},{"$f":"Menu!$J$29","v":2020},{"$f":"IF(ISBLANK(INDIRECT(\"'\"&F139&\"'!\"&G139)),\"\",INDIRECT(\"'\"&F139&\"'!\"&G139))","v":""},{"$f":"IF(ISBLANK(INDIRECT(\"'\"&F139&\"'!\"&H139)),\"\",IFERROR(VLOOKUP(TEXT(INDIRECT(\"'\"&F139&\"'!\"&H139),\"0\"),Notes!$B$5:$C$100,2,FALSE),\"\"))","v":""},"2a","$I$65","$J$65"]
[5973,{"$f":"Menu!$F$29","v":"X"},{"$f":"Menu!$J$29","v":2020},{"$f":"IF(ISBLANK(INDIRECT(\"'\"&F140&\"'!\"&G140)),\"\",INDIRECT(\"'\"&F140&\"'!\"&G140))","v":""},{"$f":"IF(ISBLANK(INDIRECT(\"'\"&F140&\"'!\"&H140)),\"\",IFERROR(VLOOKUP(TEXT(INDIRECT(\"'\"&F140&\"'!\"&H140),\"0\"),Notes!$B$5:$C$100,2,FALSE),\"\"))","v":""},"2a","$K$65","$L$65"]
[5974,{"$f":"Menu!$F$29","v":"X"},{"$f":"Menu!$J$29","v":2020},{"$f":"IF(ISBLANK(INDIRECT(\"'\"&F141&\"'!\"&G141)),\"\",INDIRECT(\"'\"&F141&\"'!\"&G141))","v":""},{"$f":"IF(ISBLANK(INDIRECT(\"'\"&F141&\"'!\"&H141)),\"\",IFERROR(VLOOKUP(TEXT(INDIRECT(\"'\"&F141&\"'!\"&H141),\"0\"),Notes!$B$5:$C$100,2,FALSE),\"\"))","v":""},"2a","$M$65","$N$65"]
[5975,{"$f":"Menu!$F$29","v":"X"},{"$f":"Menu!$J$29","v":2020},{"$f":"IF(ISBLANK(INDIRECT(\"'\"&F142&\"'!\"&G142)),\"\",INDIRECT(\"'\"&F142&\"'!\"&G142))","v":""},{"$f":"IF(ISBLANK(INDIRECT(\"'\"&F142&\"'!\"&H142)),\"\",IFERROR(VLOOKUP(TEXT(INDIRECT(\"'\"&F142&\"'!\"&H142),\"0\"),Notes!$B$5:$C$100,2,FALSE),\"\"))","v":""},"2a","$O$65","$P$65"]
[5976,{"$f":"Menu!$F$29","v":"X"},{"$f":"Menu!$J$29","v":2020},{"$f":"IF(ISBLANK(INDIRECT(\"'\"&F143&\"'!\"&G143)),\"\",INDIRECT(\"'\"&F143&\"'!\"&G143))","v":""},{"$f":"IF(ISBLANK(INDIRECT(\"'\"&F143&\"'!\"&H143)),\"\",IFERROR(VLOOKUP(TEXT(INDIRECT(\"'\"&F143&\"'!\"&H143),\"0\"),Notes!$B$5:$C$100,2,FALSE),\"\"))","v":""},"2a","$Q$65","$R$65"]
[5977,{"$f":"Menu!$F$29","v":"X"},{"$f":"Menu!$J$29","v":2020},{"$f":"IF(ISBLANK(INDIRECT(\"'\"&F144&\"'!\"&G144)),\"\",INDIRECT(\"'\"&F144&\"'!\"&G144))","v":""},{"$f":"IF(ISBLANK(INDIRECT(\"'\"&F144&\"'!\"&H144)),\"\",IFERROR(VLOOKUP(TEXT(INDIRECT(\"'\"&F144&\"'!\"&H144),\"0\"),Notes!$B$5:$C$100,2,FALSE),\"\"))","v":""},"2a","$S$65","$T$65"]
[5978,{"$f":"Menu!$F$29","v":"X"},{"$f":"Menu!$J$29","v":2020},{"$f":"IF(ISBLANK(INDIRECT(\"'\"&F145&\"'!\"&G145)),\"\",INDIRECT(\"'\"&F145&\"'!\"&G145))","v":""},{"$f":"IF(ISBLANK(INDIRECT(\"'\"&F145&\"'!\"&H145)),\"\",IFERROR(VLOOKUP(TEXT(INDIRECT(\"'\"&F145&\"'!\"&H145),\"0\"),Notes!$B$5:$C$100,2,FALSE),\"\"))","v":""},"2a","$U$65","$V$65"]
[5979,{"$f":"Menu!$F$29","v":"X"},{"$f":"Menu!$J$29","v":2020},{"$f":"IF(ISBLANK(INDIRECT(\"'\"&F146&\"'!\"&G146)),\"\",INDIRECT(\"'\"&F146&\"'!\"&G146))","v":""},{"$f":"IF(ISBLANK(INDIRECT(\"'\"&F146&\"'!\"&H146)),\"\",IFERROR(VLOOKUP(TEXT(INDIRECT(\"'\"&F146&\"'!\"&H146),\"0\"),Notes!$B$5:$C$100,2,FALSE),\"\"))","v":""},"2a","$E$66","$F$66"]
[5980,{"$f":"Menu!$F$29","v":"X"},{"$f":"Menu!$J$29","v":2020},{"$f":"IF(ISBLANK(INDIRECT(\"'\"&F147&\"'!\"&G147)),\"\",INDIRECT(\"'\"&F147&\"'!\"&G147))","v":""},{"$f":"IF(ISBLANK(INDIRECT(\"'\"&F147&\"'!\"&H147)),\"\",IFERROR(VLOOKUP(TEXT(INDIRECT(\"'\"&F147&\"'!\"&H147),\"0\"),Notes!$B$5:$C$100,2,FALSE),\"\"))","v":""},"2a","$G$66","$H$66"]
[5981,{"$f":"Menu!$F$29","v":"X"},{"$f":"Menu!$J$29","v":2020},{"$f":"IF(ISBLANK(INDIRECT(\"'\"&F148&\"'!\"&G148)),\"\",INDIRECT(\"'\"&F148&\"'!\"&G148))","v":""},{"$f":"IF(ISBLANK(INDIRECT(\"'\"&F148&\"'!\"&H148)),\"\",IFERROR(VLOOKUP(TEXT(INDIRECT(\"'\"&F148&\"'!\"&H148),\"0\"),Notes!$B$5:$C$100,2,FALSE),\"\"))","v":""},"2a","$I$66","$J$66"]
[5982,{"$f":"Menu!$F$29","v":"X"},{"$f":"Menu!$J$29","v":2020},{"$f":"IF(ISBLANK(INDIRECT(\"'\"&F149&\"'!\"&G149)),\"\",INDIRECT(\"'\"&F149&\"'!\"&G149))","v":""},{"$f":"IF(ISBLANK(INDIRECT(\"'\"&F149&\"'!\"&H149)),\"\",IFERROR(VLOOKUP(TEXT(INDIRECT(\"'\"&F149&\"'!\"&H149),\"0\"),Notes!$B$5:$C$100,2,FALSE),\"\"))","v":""},"2a","$K$66","$L$66"]
[5983,{"$f":"Menu!$F$29","v":"X"},{"$f":"Menu!$J$29","v":2020},{"$f":"IF(ISBLANK(INDIRECT(\"'\"&F150&\"'!\"&G150)),\"\",INDIRECT(\"'\"&F150&\"'!\"&G150))","v":""},{"$f":"IF(ISBLANK(INDIRECT(\"'\"&F150&\"'!\"&H150)),\"\",IFERROR(VLOOKUP(TEXT(INDIRECT(\"'\"&F150&\"'!\"&H150),\"0\"),Notes!$B$5:$C$100,2,FALSE),\"\"))","v":""},"2a","$M$66","$N$66"]
[5984,{"$f":"Menu!$F$29","v":"X"},{"$f":"Menu!$J$29","v":2020},{"$f":"IF(ISBLANK(INDIRECT(\"'\"&F151&\"'!\"&G151)),\"\",INDIRECT(\"'\"&F151&\"'!\"&G151))","v":""},{"$f":"IF(ISBLANK(INDIRECT(\"'\"&F151&\"'!\"&H151)),\"\",IFERROR(VLOOKUP(TEXT(INDIRECT(\"'\"&F151&\"'!\"&H151),\"0\"),Notes!$B$5:$C$100,2,FALSE),\"\"))","v":""},"2a","$O$66","$P$66"]
[5985,{"$f":"Menu!$F$29","v":"X"},{"$f":"Menu!$J$29","v":2020},{"$f":"IF(ISBLANK(INDIRECT(\"'\"&F152&\"'!\"&G152)),\"\",INDIRECT(\"'\"&F152&\"'!\"&G152))","v":""},{"$f":"IF(ISBLANK(INDIRECT(\"'\"&F152&\"'!\"&H152)),\"\",IFERROR(VLOOKUP(TEXT(INDIRECT(\"'\"&F152&\"'!\"&H152),\"0\"),Notes!$B$5:$C$100,2,FALSE),\"\"))","v":""},"2a","$Q$66","$R$66"]
[5986,{"$f":"Menu!$F$29","v":"X"},{"$f":"Menu!$J$29","v":2020},{"$f":"IF(ISBLANK(INDIRECT(\"'\"&F153&\"'!\"&G153)),\"\",INDIRECT(\"'\"&F153&\"'!\"&G153))","v":""},{"$f":"IF(ISBLANK(INDIRECT(\"'\"&F153&\"'!\"&H153)),\"\",IFERROR(VLOOKUP(TEXT(INDIRECT(\"'\"&F153&\"'!\"&H153),\"0\"),Notes!$B$5:$C$100,2,FALSE),\"\"))","v":""},"2a","$S$66","$T$66"]
[5987,{"$f":"Menu!$F$29","v":"X"},{"$f":"Menu!$J$29","v":2020},{"$f":"IF(ISBLANK(INDIRECT(\"'\"&F154&\"'!\"&G154)),\"\",INDIRECT(\"'\"&F154&\"'!\"&G154))","v":""},{"$f":"IF(ISBLANK(INDIRECT(\"'\"&F154&\"'!\"&H154)),\"\",IFERROR(VLOOKUP(TEXT(INDIRECT(\"'\"&F154&\"'!\"&H154),\"0\"),Notes!$B$5:$C$100,2,FALSE),\"\"))","v":""},"2a","$U$66","$V$66"]
[5988,{"$f":"Menu!$F$29","v":"X"},{"$f":"Menu!$J$29","v":2020},{"$f":"IF(ISBLANK(INDIRECT(\"'\"&F155&\"'!\"&G155)),\"\",INDIRECT(\"'\"&F155&\"'!\"&G155))","v":""},{"$f":"IF(ISBLANK(INDIRECT(\"'\"&F155&\"'!\"&H155)),\"\",IFERROR(VLOOKUP(TEXT(INDIRECT(\"'\"&F155&\"'!\"&H155),\"0\"),Notes!$B$5:$C$100,2,FALSE),\"\"))","v":""},"2a","$E$67","$F$67"]
[5989,{"$f":"Menu!$F$29","v":"X"},{"$f":"Menu!$J$29","v":2020},{"$f":"IF(ISBLANK(INDIRECT(\"'\"&F156&\"'!\"&G156)),\"\",INDIRECT(\"'\"&F156&\"'!\"&G156))","v":""},{"$f":"IF(ISBLANK(INDIRECT(\"'\"&F156&\"'!\"&H156)),\"\",IFERROR(VLOOKUP(TEXT(INDIRECT(\"'\"&F156&\"'!\"&H156),\"0\"),Notes!$B$5:$C$100,2,FALSE),\"\"))","v":""},"2a","$G$67","$H$67"]
[5990,{"$f":"Menu!$F$29","v":"X"},{"$f":"Menu!$J$29","v":2020},{"$f":"IF(ISBLANK(INDIRECT(\"'\"&F157&\"'!\"&G157)),\"\",INDIRECT(\"'\"&F157&\"'!\"&G157))","v":""},{"$f":"IF(ISBLANK(INDIRECT(\"'\"&F157&\"'!\"&H157)),\"\",IFERROR(VLOOKUP(TEXT(INDIRECT(\"'\"&F157&\"'!\"&H157),\"0\"),Notes!$B$5:$C$100,2,FALSE),\"\"))","v":""},"2a","$I$67","$J$67"]
[5991,{"$f":"Menu!$F$29","v":"X"},{"$f":"Menu!$J$29","v":2020},{"$f":"IF(ISBLANK(INDIRECT(\"'\"&F158&\"'!\"&G158)),\"\",INDIRECT(\"'\"&F158&\"'!\"&G158))","v":""},{"$f":"IF(ISBLANK(INDIRECT(\"'\"&F158&\"'!\"&H158)),\"\",IFERROR(VLOOKUP(TEXT(INDIRECT(\"'\"&F158&\"'!\"&H158),\"0\"),Notes!$B$5:$C$100,2,FALSE),\"\"))","v":""},"2a","$K$67","$L$67"]
[5992,{"$f":"Menu!$F$29","v":"X"},{"$f":"Menu!$J$29","v":2020},{"$f":"IF(ISBLANK(INDIRECT(\"'\"&F159&\"'!\"&G159)),\"\",INDIRECT(\"'\"&F159&\"'!\"&G159))","v":""},{"$f":"IF(ISBLANK(INDIRECT(\"'\"&F159&\"'!\"&H159)),\"\",IFERROR(VLOOKUP(TEXT(INDIRECT(\"'\"&F159&\"'!\"&H159),\"0\"),Notes!$B$5:$C$100,2,FALSE),\"\"))","v":""},"2a","$M$67","$N$67"]
[5993,{"$f":"Menu!$F$29","v":"X"},{"$f":"Menu!$J$29","v":2020},{"$f":"IF(ISBLANK(INDIRECT(\"'\"&F160&\"'!\"&G160)),\"\",INDIRECT(\"'\"&F160&\"'!\"&G160))","v":""},{"$f":"IF(ISBLANK(INDIRECT(\"'\"&F160&\"'!\"&H160)),\"\",IFERROR(VLOOKUP(TEXT(INDIRECT(\"'\"&F160&\"'!\"&H160),\"0\"),Notes!$B$5:$C$100,2,FALSE),\"\"))","v":""},"2a","$O$67","$P$67"]
[5994,{"$f":"Menu!$F$29","v":"X"},{"$f":"Menu!$J$29","v":2020},{"$f":"IF(ISBLANK(INDIRECT(\"'\"&F161&\"'!\"&G161)),\"\",INDIRECT(\"'\"&F161&\"'!\"&G161))","v":""},{"$f":"IF(ISBLANK(INDIRECT(\"'\"&F161&\"'!\"&H161)),\"\",IFERROR(VLOOKUP(TEXT(INDIRECT(\"'\"&F161&\"'!\"&H161),\"0\"),Notes!$B$5:$C$100,2,FALSE),\"\"))","v":""},"2a","$Q$67","$R$67"]
[5995,{"$f":"Menu!$F$29","v":"X"},{"$f":"Menu!$J$29","v":2020},{"$f":"IF(ISBLANK(INDIRECT(\"'\"&F162&\"'!\"&G162)),\"\",INDIRECT(\"'\"&F162&\"'!\"&G162))","v":""},{"$f":"IF(ISBLANK(INDIRECT(\"'\"&F162&\"'!\"&H162)),\"\",IFERROR(VLOOKUP(TEXT(INDIRECT(\"'\"&F162&\"'!\"&H162),\"0\"),Notes!$B$5:$C$100,2,FALSE),\"\"))","v":""},"2a","$S$67","$T$67"]
[5996,{"$f":"Menu!$F$29","v":"X"},{"$f":"Menu!$J$29","v":2020},{"$f":"IF(ISBLANK(INDIRECT(\"'\"&F163&\"'!\"&G163)),\"\",INDIRECT(\"'\"&F163&\"'!\"&G163))","v":""},{"$f":"IF(ISBLANK(INDIRECT(\"'\"&F163&\"'!\"&H163)),\"\",IFERROR(VLOOKUP(TEXT(INDIRECT(\"'\"&F163&\"'!\"&H163),\"0\"),Notes!$B$5:$C$100,2,FALSE),\"\"))","v":""},"2a","$U$67","$V$67"]
[5997,{"$f":"Menu!$F$29","v":"X"},{"$f":"Menu!$J$29","v":2020},{"$f":"IF(ISBLANK(INDIRECT(\"'\"&F164&\"'!\"&G164)),\"\",INDIRECT(\"'\"&F164&\"'!\"&G164))","v":""},{"$f":"IF(ISBLANK(INDIRECT(\"'\"&F164&\"'!\"&H164)),\"\",IFERROR(VLOOKUP(TEXT(INDIRECT(\"'\"&F164&\"'!\"&H164),\"0\"),Notes!$B$5:$C$100,2,FALSE),\"\"))","v":""},"2a","$E$69","$F$69"]
[5998,{"$f":"Menu!$F$29","v":"X"},{"$f":"Menu!$J$29","v":2020},{"$f":"IF(ISBLANK(INDIRECT(\"'\"&F165&\"'!\"&G165)),\"\",INDIRECT(\"'\"&F165&\"'!\"&G165))","v":""},{"$f":"IF(ISBLANK(INDIRECT(\"'\"&F165&\"'!\"&H165)),\"\",IFERROR(VLOOKUP(TEXT(INDIRECT(\"'\"&F165&\"'!\"&H165),\"0\"),Notes!$B$5:$C$100,2,FALSE),\"\"))","v":""},"2a","$G$69","$H$69"]
[5999,{"$f":"Menu!$F$29","v":"X"},{"$f":"Menu!$J$29","v":2020},{"$f":"IF(ISBLANK(INDIRECT(\"'\"&F166&\"'!\"&G166)),\"\",INDIRECT(\"'\"&F166&\"'!\"&G166))","v":""},{"$f":"IF(ISBLANK(INDIRECT(\"'\"&F166&\"'!\"&H166)),\"\",IFERROR(VLOOKUP(TEXT(INDIRECT(\"'\"&F166&\"'!\"&H166),\"0\"),Notes!$B$5:$C$100,2,FALSE),\"\"))","v":""},"2a","$I$69","$J$69"]
[6000,{"$f":"Menu!$F$29","v":"X"},{"$f":"Menu!$J$29","v":2020},{"$f":"IF(ISBLANK(INDIRECT(\"'\"&F167&\"'!\"&G167)),\"\",INDIRECT(\"'\"&F167&\"'!\"&G167))","v":""},{"$f":"IF(ISBLANK(INDIRECT(\"'\"&F167&\"'!\"&H167)),\"\",IFERROR(VLOOKUP(TEXT(INDIRECT(\"'\"&F167&\"'!\"&H167),\"0\"),Notes!$B$5:$C$100,2,FALSE),\"\"))","v":""},"2a","$K$69","$L$69"]
[6001,{"$f":"Menu!$F$29","v":"X"},{"$f":"Menu!$J$29","v":2020},{"$f":"IF(ISBLANK(INDIRECT(\"'\"&F168&\"'!\"&G168)),\"\",INDIRECT(\"'\"&F168&\"'!\"&G168))","v":""},{"$f":"IF(ISBLANK(INDIRECT(\"'\"&F168&\"'!\"&H168)),\"\",IFERROR(VLOOKUP(TEXT(INDIRECT(\"'\"&F168&\"'!\"&H168),\"0\"),Notes!$B$5:$C$100,2,FALSE),\"\"))","v":""},"2a","$M$69","$N$69"]
[6002,{"$f":"Menu!$F$29","v":"X"},{"$f":"Menu!$J$29","v":2020},{"$f":"IF(ISBLANK(INDIRECT(\"'\"&F169&\"'!\"&G169)),\"\",INDIRECT(\"'\"&F169&\"'!\"&G169))","v":""},{"$f":"IF(ISBLANK(INDIRECT(\"'\"&F169&\"'!\"&H169)),\"\",IFERROR(VLOOKUP(TEXT(INDIRECT(\"'\"&F169&\"'!\"&H169),\"0\"),Notes!$B$5:$C$100,2,FALSE),\"\"))","v":""},"2a","$O$69","$P$69"]
[6003,{"$f":"Menu!$F$29","v":"X"},{"$f":"Menu!$J$29","v":2020},{"$f":"IF(ISBLANK(INDIRECT(\"'\"&F170&\"'!\"&G170)),\"\",INDIRECT(\"'\"&F170&\"'!\"&G170))","v":""},{"$f":"IF(ISBLANK(INDIRECT(\"'\"&F170&\"'!\"&H170)),\"\",IFERROR(VLOOKUP(TEXT(INDIRECT(\"'\"&F170&\"'!\"&H170),\"0\"),Notes!$B$5:$C$100,2,FALSE),\"\"))","v":""},"2a","$Q$69","$R$69"]
[6004,{"$f":"Menu!$F$29","v":"X"},{"$f":"Menu!$J$29","v":2020},{"$f":"IF(ISBLANK(INDIRECT(\"'\"&F171&\"'!\"&G171)),\"\",INDIRECT(\"'\"&F171&\"'!\"&G171))","v":""},{"$f":"IF(ISBLANK(INDIRECT(\"'\"&F171&\"'!\"&H171)),\"\",IFERROR(VLOOKUP(TEXT(INDIRECT(\"'\"&F171&\"'!\"&H171),\"0\"),Notes!$B$5:$C$100,2,FALSE),\"\"))","v":""},"2a","$S$69","$T$69"]
[6005,{"$f":"Menu!$F$29","v":"X"},{"$f":"Menu!$J$29","v":2020},{"$f":"IF(ISBLANK(INDIRECT(\"'\"&F172&\"'!\"&G172)),\"\",INDIRECT(\"'\"&F172&\"'!\"&G172))","v":""},{"$f":"IF(ISBLANK(INDIRECT(\"'\"&F172&\"'!\"&H172)),\"\",IFERROR(VLOOKUP(TEXT(INDIRECT(\"'\"&F172&\"'!\"&H172),\"0\"),Notes!$B$5:$C$100,2,FALSE),\"\"))","v":""},"2a","$U$69","$V$69"]
[6042,{"$f":"Menu!$F$29","v":"X"},{"$f":"Menu!$J$29","v":2020},{"$f":"IF(ISBLANK(INDIRECT(\"'\"&F173&\"'!\"&G173)),\"\",INDIRECT(\"'\"&F173&\"'!\"&G173))","v":""},{"$f":"IF(ISBLANK(INDIRECT(\"'\"&F173&\"'!\"&H173)),\"\",IFERROR(VLOOKUP(TEXT(INDIRECT(\"'\"&F173&\"'!\"&H173),\"0\"),Notes!$B$5:$C$100,2,FALSE),\"\"))","v":""},"2a","$E$25","$F$25"]
[6043,{"$f":"Menu!$F$29","v":"X"},{"$f":"Menu!$J$29","v":2020},{"$f":"IF(ISBLANK(INDIRECT(\"'\"&F174&\"'!\"&G174)),\"\",INDIRECT(\"'\"&F174&\"'!\"&G174))","v":""},{"$f":"IF(ISBLANK(INDIRECT(\"'\"&F174&\"'!\"&H174)),\"\",IFERROR(VLOOKUP(TEXT(INDIRECT(\"'\"&F174&\"'!\"&H174),\"0\"),Notes!$B$5:$C$100,2,FALSE),\"\"))","v":""},"2a","$G$25","$H$25"]
[6044,{"$f":"Menu!$F$29","v":"X"},{"$f":"Menu!$J$29","v":2020},{"$f":"IF(ISBLANK(INDIRECT(\"'\"&F175&\"'!\"&G175)),\"\",INDIRECT(\"'\"&F175&\"'!\"&G175))","v":""},{"$f":"IF(ISBLANK(INDIRECT(\"'\"&F175&\"'!\"&H175)),\"\",IFERROR(VLOOKUP(TEXT(INDIRECT(\"'\"&F175&\"'!\"&H175),\"0\"),Notes!$B$5:$C$100,2,FALSE),\"\"))","v":""},"2a","$I$25","$J$25"]
[6045,{"$f":"Menu!$F$29","v":"X"},{"$f":"Menu!$J$29","v":2020},{"$f":"IF(ISBLANK(INDIRECT(\"'\"&F176&\"'!\"&G176)),\"\",INDIRECT(\"'\"&F176&\"'!\"&G176))","v":""},{"$f":"IF(ISBLANK(INDIRECT(\"'\"&F176&\"'!\"&H176)),\"\",IFERROR(VLOOKUP(TEXT(INDIRECT(\"'\"&F176&\"'!\"&H176),\"0\"),Notes!$B$5:$C$100,2,FALSE),\"\"))","v":""},"2a","$K$25","$L$25"]
[6046,{"$f":"Menu!$F$29","v":"X"},{"$f":"Menu!$J$29","v":2020},{"$f":"IF(ISBLANK(INDIRECT(\"'\"&F177&\"'!\"&G177)),\"\",INDIRECT(\"'\"&F177&\"'!\"&G177))","v":""},{"$f":"IF(ISBLANK(INDIRECT(\"'\"&F177&\"'!\"&H177)),\"\",IFERROR(VLOOKUP(TEXT(INDIRECT(\"'\"&F177&\"'!\"&H177),\"0\"),Notes!$B$5:$C$100,2,FALSE),\"\"))","v":""},"2a","$M$25","$N$25"]
[6047,{"$f":"Menu!$F$29","v":"X"},{"$f":"Menu!$J$29","v":2020},{"$f":"IF(ISBLANK(INDIRECT(\"'\"&F178&\"'!\"&G178)),\"\",INDIRECT(\"'\"&F178&\"'!\"&G178))","v":""},{"$f":"IF(ISBLANK(INDIRECT(\"'\"&F178&\"'!\"&H178)),\"\",IFERROR(VLOOKUP(TEXT(INDIRECT(\"'\"&F178&\"'!\"&H178),\"0\"),Notes!$B$5:$C$100,2,FALSE),\"\"))","v":""},"2a","$O$25","$P$25"]
[6048,{"$f":"Menu!$F$29","v":"X"},{"$f":"Menu!$J$29","v":2020},{"$f":"IF(ISBLANK(INDIRECT(\"'\"&F179&\"'!\"&G179)),\"\",INDIRECT(\"'\"&F179&\"'!\"&G179))","v":""},{"$f":"IF(ISBLANK(INDIRECT(\"'\"&F179&\"'!\"&H179)),\"\",IFERROR(VLOOKUP(TEXT(INDIRECT(\"'\"&F179&\"'!\"&H179),\"0\"),Notes!$B$5:$C$100,2,FALSE),\"\"))","v":""},"2a","$Q$25","$R$25"]
[6049,{"$f":"Menu!$F$29","v":"X"},{"$f":"Menu!$J$29","v":2020},{"$f":"IF(ISBLANK(INDIRECT(\"'\"&F180&\"'!\"&G180)),\"\",INDIRECT(\"'\"&F180&\"'!\"&G180))","v":""},{"$f":"IF(ISBLANK(INDIRECT(\"'\"&F180&\"'!\"&H180)),\"\",IFERROR(VLOOKUP(TEXT(INDIRECT(\"'\"&F180&\"'!\"&H180),\"0\"),Notes!$B$5:$C$100,2,FALSE),\"\"))","v":""},"2a","$S$25","$T$25"]
[6050,{"$f":"Menu!$F$29","v":"X"},{"$f":"Menu!$J$29","v":2020},{"$f":"IF(ISBLANK(INDIRECT(\"'\"&F181&\"'!\"&G181)),\"\",INDIRECT(\"'\"&F181&\"'!\"&G181))","v":""},{"$f":"IF(ISBLANK(INDIRECT(\"'\"&F181&\"'!\"&H181)),\"\",IFERROR(VLOOKUP(TEXT(INDIRECT(\"'\"&F181&\"'!\"&H181),\"0\"),Notes!$B$5:$C$100,2,FALSE),\"\"))","v":""},"2a","$U$25","$V$25"]
[6060,{"$f":"Menu!$F$29","v":"X"},{"$f":"Menu!$J$29","v":2020},{"$f":"IF(ISBLANK(INDIRECT(\"'\"&F182&\"'!\"&G182)),\"\",INDIRECT(\"'\"&F182&\"'!\"&G182))","v":""},{"$f":"IF(ISBLANK(INDIRECT(\"'\"&F182&\"'!\"&H182)),\"\",IFERROR(VLOOKUP(TEXT(INDIRECT(\"'\"&F182&\"'!\"&H182),\"0\"),Notes!$B$5:$C$100,2,FALSE),\"\"))","v":""},"2a","$E$88","$F$88"]
[6061,{"$f":"Menu!$F$29","v":"X"},{"$f":"Menu!$J$29","v":2020},{"$f":"IF(ISBLANK(INDIRECT(\"'\"&F183&\"'!\"&G183)),\"\",INDIRECT(\"'\"&F183&\"'!\"&G183))","v":""},{"$f":"IF(ISBLANK(INDIRECT(\"'\"&F183&\"'!\"&H183)),\"\",IFERROR(VLOOKUP(TEXT(INDIRECT(\"'\"&F183&\"'!\"&H183),\"0\"),Notes!$B$5:$C$100,2,FALSE),\"\"))","v":""},"2a","$G$88","$H$88"]
[6062,{"$f":"Menu!$F$29","v":"X"},{"$f":"Menu!$J$29","v":2020},{"$f":"IF(ISBLANK(INDIRECT(\"'\"&F184&\"'!\"&G184)),\"\",INDIRECT(\"'\"&F184&\"'!\"&G184))","v":""},{"$f":"IF(ISBLANK(INDIRECT(\"'\"&F184&\"'!\"&H184)),\"\",IFERROR(VLOOKUP(TEXT(INDIRECT(\"'\"&F184&\"'!\"&H184),\"0\"),Notes!$B$5:$C$100,2,FALSE),\"\"))","v":""},"2a","$I$88","$J$88"]
[6063,{"$f":"Menu!$F$29","v":"X"},{"$f":"Menu!$J$29","v":2020},{"$f":"IF(ISBLANK(INDIRECT(\"'\"&F185&\"'!\"&G185)),\"\",INDIRECT(\"'\"&F185&\"'!\"&G185))","v":""},{"$f":"IF(ISBLANK(INDIRECT(\"'\"&F185&\"'!\"&H185)),\"\",IFERROR(VLOOKUP(TEXT(INDIRECT(\"'\"&F185&\"'!\"&H185),\"0\"),Notes!$B$5:$C$100,2,FALSE),\"\"))","v":""},"2a","$K$88","$L$88"]
[6064,{"$f":"Menu!$F$29","v":"X"},{"$f":"Menu!$J$29","v":2020},{"$f":"IF(ISBLANK(INDIRECT(\"'\"&F186&\"'!\"&G186)),\"\",INDIRECT(\"'\"&F186&\"'!\"&G186))","v":""},{"$f":"IF(ISBLANK(INDIRECT(\"'\"&F186&\"'!\"&H186)),\"\",IFERROR(VLOOKUP(TEXT(INDIRECT(\"'\"&F186&\"'!\"&H186),\"0\"),Notes!$B$5:$C$100,2,FALSE),\"\"))","v":""},"2a","$M$88","$N$88"]
[6065,{"$f":"Menu!$F$29","v":"X"},{"$f":"Menu!$J$29","v":2020},{"$f":"IF(ISBLANK(INDIRECT(\"'\"&F187&\"'!\"&G187)),\"\",INDIRECT(\"'\"&F187&\"'!\"&G187))","v":""},{"$f":"IF(ISBLANK(INDIRECT(\"'\"&F187&\"'!\"&H187)),\"\",IFERROR(VLOOKUP(TEXT(INDIRECT(\"'\"&F187&\"'!\"&H187),\"0\"),Notes!$B$5:$C$100,2,FALSE),\"\"))","v":""},"2a","$O$88","$P$88"]
[6066,{"$f":"Menu!$F$29","v":"X"},{"$f":"Menu!$J$29","v":2020},{"$f":"IF(ISBLANK(INDIRECT(\"'\"&F188&\"'!\"&G188)),\"\",INDIRECT(\"'\"&F188&\"'!\"&G188))","v":""},{"$f":"IF(ISBLANK(INDIRECT(\"'\"&F188&\"'!\"&H188)),\"\",IFERROR(VLOOKUP(TEXT(INDIRECT(\"'\"&F188&\"'!\"&H188),\"0\"),Notes!$B$5:$C$100,2,FALSE),\"\"))","v":""},"2a","$Q$88","$R$88"]
[6067,{"$f":"Menu!$F$29","v":"X"},{"$f":"Menu!$J$29","v":2020},{"$f":"IF(ISBLANK(INDIRECT(\"'\"&F189&\"'!\"&G189)),\"\",INDIRECT(\"'\"&F189&\"'!\"&G189))","v":""},{"$f":"IF(ISBLANK(INDIRECT(\"'\"&F189&\"'!\"&H189)),\"\",IFERROR(VLOOKUP(TEXT(INDIRECT(\"'\"&F189&\"'!\"&H189),\"0\"),Notes!$B$5:$C$100,2,FALSE),\"\"))","v":""},"2a","$S$88","$T$88"]
[6068,{"$f":"Menu!$F$29","v":"X"},{"$f":"Menu!$J$29","v":2020},{"$f":"IF(ISBLANK(INDIRECT(\"'\"&F190&\"'!\"&G190)),\"\",INDIRECT(\"'\"&F190&\"'!\"&G190))","v":""},{"$f":"IF(ISBLANK(INDIRECT(\"'\"&F190&\"'!\"&H190)),\"\",IFERROR(VLOOKUP(TEXT(INDIRECT(\"'\"&F190&\"'!\"&H190),\"0\"),Notes!$B$5:$C$100,2,FALSE),\"\"))","v":""},"2a","$U$88","$V$88"]
[6069,{"$f":"Menu!$F$29","v":"X"},{"$f":"Menu!$J$29","v":2020},{"$f":"IF(ISBLANK(INDIRECT(\"'\"&F191&\"'!\"&G191)),\"\",INDIRECT(\"'\"&F191&\"'!\"&G191))","v":""},{"$f":"IF(ISBLANK(INDIRECT(\"'\"&F191&\"'!\"&H191)),\"\",IFERROR(VLOOKUP(TEXT(INDIRECT(\"'\"&F191&\"'!\"&H191),\"0\"),Notes!$B$5:$C$100,2,FALSE),\"\"))","v":""},"2a","$E$93","$F$93"]
[6070,{"$f":"Menu!$F$29","v":"X"},{"$f":"Menu!$J$29","v":2020},{"$f":"IF(ISBLANK(INDIRECT(\"'\"&F192&\"'!\"&G192)),\"\",INDIRECT(\"'\"&F192&\"'!\"&G192))","v":""},{"$f":"IF(ISBLANK(INDIRECT(\"'\"&F192&\"'!\"&H192)),\"\",IFERROR(VLOOKUP(TEXT(INDIRECT(\"'\"&F192&\"'!\"&H192),\"0\"),Notes!$B$5:$C$100,2,FALSE),\"\"))","v":""},"2a","$G$93","$H$93"]
[6071,{"$f":"Menu!$F$29","v":"X"},{"$f":"Menu!$J$29","v":2020},{"$f":"IF(ISBLANK(INDIRECT(\"'\"&F193&\"'!\"&G193)),\"\",INDIRECT(\"'\"&F193&\"'!\"&G193))","v":""},{"$f":"IF(ISBLANK(INDIRECT(\"'\"&F193&\"'!\"&H193)),\"\",IFERROR(VLOOKUP(TEXT(INDIRECT(\"'\"&F193&\"'!\"&H193),\"0\"),Notes!$B$5:$C$100,2,FALSE),\"\"))","v":""},"2a","$I$93","$J$93"]
[6072,{"$f":"Menu!$F$29","v":"X"},{"$f":"Menu!$J$29","v":2020},{"$f":"IF(ISBLANK(INDIRECT(\"'\"&F194&\"'!\"&G194)),\"\",INDIRECT(\"'\"&F194&\"'!\"&G194))","v":""},{"$f":"IF(ISBLANK(INDIRECT(\"'\"&F194&\"'!\"&H194)),\"\",IFERROR(VLOOKUP(TEXT(INDIRECT(\"'\"&F194&\"'!\"&H194),\"0\"),Notes!$B$5:$C$100,2,FALSE),\"\"))","v":""},"2a","$K$93",{"$f":"IF(LEN(TRIM(MID(G194,4,10)))-LEN(SUBSTITUTE(TRIM(MID(G194,4,10)),\"$\",\"\"))=0,\"$\"&CHAR(CODE(MID(G194,2,1))+1)&\"$\"&TRIM(MID(G194,4,10)),\"$\"&MID(G194,2,1)&CHAR(CODE(MID(G194,3,1))+1)&\"$\"&TRIM(MID(G194,5,11)))","v":"$L$93"}]
[6073,{"$f":"Menu!$F$29","v":"X"},{"$f":"Menu!$J$29","v":2020},{"$f":"IF(ISBLANK(INDIRECT(\"'\"&F195&\"'!\"&G195)),\"\",INDIRECT(\"'\"&F195&\"'!\"&G195))","v":""},{"$f":"IF(ISBLANK(INDIRECT(\"'\"&F195&\"'!\"&H195)),\"\",IFERROR(VLOOKUP(TEXT(INDIRECT(\"'\"&F195&\"'!\"&H195),\"0\"),Notes!$B$5:$C$100,2,FALSE),\"\"))","v":""},"2a","$M$93","$N$93"]
[6074,{"$f":"Menu!$F$29","v":"X"},{"$f":"Menu!$J$29","v":2020},{"$f":"IF(ISBLANK(INDIRECT(\"'\"&F196&\"'!\"&G196)),\"\",INDIRECT(\"'\"&F196&\"'!\"&G196))","v":""},{"$f":"IF(ISBLANK(INDIRECT(\"'\"&F196&\"'!\"&H196)),\"\",IFERROR(VLOOKUP(TEXT(INDIRECT(\"'\"&F196&\"'!\"&H196),\"0\"),Notes!$B$5:$C$100,2,FALSE),\"\"))","v":""},"2a","$O$93","$P$93"]
[6075,{"$f":"Menu!$F$29","v":"X"},{"$f":"Menu!$J$29","v":2020},{"$f":"IF(ISBLANK(INDIRECT(\"'\"&F197&\"'!\"&G197)),\"\",INDIRECT(\"'\"&F197&\"'!\"&G197))","v":""},{"$f":"IF(ISBLANK(INDIRECT(\"'\"&F197&\"'!\"&H197)),\"\",IFERROR(VLOOKUP(TEXT(INDIRECT(\"'\"&F197&\"'!\"&H197),\"0\"),Notes!$B$5:$C$100,2,FALSE),\"\"))","v":""},"2a","$Q$93","$R$93"]
[6076,{"$f":"Menu!$F$29","v":"X"},{"$f":"Menu!$J$29","v":2020},{"$f":"IF(ISBLANK(INDIRECT(\"'\"&F198&\"'!\"&G198)),\"\",INDIRECT(\"'\"&F198&\"'!\"&G198))","v":""},{"$f":"IF(ISBLANK(INDIRECT(\"'\"&F198&\"'!\"&H198)),\"\",IFERROR(VLOOKUP(TEXT(INDIRECT(\"'\"&F198&\"'!\"&H198),\"0\"),Notes!$B$5:$C$100,2,FALSE),\"\"))","v":""},"2a","$S$93","$T$93"]
[6077,{"$f":"Menu!$F$29","v":"X"},{"$f":"Menu!$J$29","v":2020},{"$f":"IF(ISBLANK(INDIRECT(\"'\"&F199&\"'!\"&G199)),\"\",INDIRECT(\"'\"&F199&\"'!\"&G199))","v":""},{"$f":"IF(ISBLANK(INDIRECT(\"'\"&F199&\"'!\"&H199)),\"\",IFERROR(VLOOKUP(TEXT(INDIRECT(\"'\"&F199&\"'!\"&H199),\"0\"),Notes!$B$5:$C$100,2,FALSE),\"\"))","v":""},"2a","$U$93","$V$93"]
[6078,{"$f":"Menu!$F$29","v":"X"},{"$f":"Menu!$J$29","v":2020},{"$f":"IF(ISBLANK(INDIRECT(\"'\"&F200&\"'!\"&G200)),\"\",INDIRECT(\"'\"&F200&\"'!\"&G200))","v":""},{"$f":"IF(ISBLANK(INDIRECT(\"'\"&F200&\"'!\"&H200)),\"\",IFERROR(VLOOKUP(TEXT(INDIRECT(\"'\"&F200&\"'!\"&H200),\"0\"),Notes!$B$5:$C$100,2,FALSE),\"\"))","v":""},"2a","$E$91","$F$91"]
[6079,{"$f":"Menu!$F$29","v":"X"},{"$f":"Menu!$J$29","v":2020},{"$f":"IF(ISBLANK(INDIRECT(\"'\"&F201&\"'!\"&G201)),\"\",INDIRECT(\"'\"&F201&\"'!\"&G201))","v":""},{"$f":"IF(ISBLANK(INDIRECT(\"'\"&F201&\"'!\"&H201)),\"\",IFERROR(VLOOKUP(TEXT(INDIRECT(\"'\"&F201&\"'!\"&H201),\"0\"),Notes!$B$5:$C$100,2,FALSE),\"\"))","v":""},"2a","$G$91","$H$91"]
[6080,{"$f":"Menu!$F$29","v":"X"},{"$f":"Menu!$J$29","v":2020},{"$f":"IF(ISBLANK(INDIRECT(\"'\"&F202&\"'!\"&G202)),\"\",INDIRECT(\"'\"&F202&\"'!\"&G202))","v":""},{"$f":"IF(ISBLANK(INDIRECT(\"'\"&F202&\"'!\"&H202)),\"\",IFERROR(VLOOKUP(TEXT(INDIRECT(\"'\"&F202&\"'!\"&H202),\"0\"),Notes!$B$5:$C$100,2,FALSE),\"\"))","v":""},"2a","$I$91","$J$91"]
[6081,{"$f":"Menu!$F$29","v":"X"},{"$f":"Menu!$J$29","v":2020},{"$f":"IF(ISBLANK(INDIRECT(\"'\"&F203&\"'!\"&G203)),\"\",INDIRECT(\"'\"&F203&\"'!\"&G203))","v":""},{"$f":"IF(ISBLANK(INDIRECT(\"'\"&F203&\"'!\"&H203)),\"\",IFERROR(VLOOKUP(TEXT(INDIRECT(\"'\"&F203&\"'!\"&H203),\"0\"),Notes!$B$5:$C$100,2,FALSE),\"\"))","v":""},"2a","$K$91","$L$91"]
[6082,{"$f":"Menu!$F$29","v":"X"},{"$f":"Menu!$J$29","v":2020},{"$f":"IF(ISBLANK(INDIRECT(\"'\"&F204&\"'!\"&G204)),\"\",INDIRECT(\"'\"&F204&\"'!\"&G204))","v":""},{"$f":"IF(ISBLANK(INDIRECT(\"'\"&F204&\"'!\"&H204)),\"\",IFERROR(VLOOKUP(TEXT(INDIRECT(\"'\"&F204&\"'!\"&H204),\"0\"),Notes!$B$5:$C$100,2,FALSE),\"\"))","v":""},"2a","$M$91","$N$91"]
[6083,{"$f":"Menu!$F$29","v":"X"},{"$f":"Menu!$J$29","v":2020},{"$f":"IF(ISBLANK(INDIRECT(\"'\"&F205&\"'!\"&G205)),\"\",INDIRECT(\"'\"&F205&\"'!\"&G205))","v":""},{"$f":"IF(ISBLANK(INDIRECT(\"'\"&F205&\"'!\"&H205)),\"\",IFERROR(VLOOKUP(TEXT(INDIRECT(\"'\"&F205&\"'!\"&H205),\"0\"),Notes!$B$5:$C$100,2,FALSE),\"\"))","v":""},"2a","$O$91","$P$91"]
[6084,{"$f":"Menu!$F$29","v":"X"},{"$f":"Menu!$J$29","v":2020},{"$f":"IF(ISBLANK(INDIRECT(\"'\"&F206&\"'!\"&G206)),\"\",INDIRECT(\"'\"&F206&\"'!\"&G206))","v":""},{"$f":"IF(ISBLANK(INDIRECT(\"'\"&F206&\"'!\"&H206)),\"\",IFERROR(VLOOKUP(TEXT(INDIRECT(\"'\"&F206&\"'!\"&H206),\"0\"),Notes!$B$5:$C$100,2,FALSE),\"\"))","v":""},"2a","$Q$91","$R$91"]
[6085,{"$f":"Menu!$F$29","v":"X"},{"$f":"Menu!$J$29","v":2020},{"$f":"IF(ISBLANK(INDIRECT(\"'\"&F207&\"'!\"&G207)),\"\",INDIRECT(\"'\"&F207&\"'!\"&G207))","v":""},{"$f":"IF(ISBLANK(INDIRECT(\"'\"&F207&\"'!\"&H207)),\"\",IFERROR(VLOOKUP(TEXT(INDIRECT(\"'\"&F207&\"'!\"&H207),\"0\"),Notes!$B$5:$C$100,2,FALSE),\"\"))","v":""},"2a","$S$91","$T$91"]
[6086,{"$f":"Menu!$F$29","v":"X"},{"$f":"Menu!$J$29","v":2020},{"$f":"IF(ISBLANK(INDIRECT(\"'\"&F208&\"'!\"&G208)),\"\",INDIRECT(\"'\"&F208&\"'!\"&G208))","v":""},{"$f":"IF(ISBLANK(INDIRECT(\"'\"&F208&\"'!\"&H208)),\"\",IFERROR(VLOOKUP(TEXT(INDIRECT(\"'\"&F208&\"'!\"&H208),\"0\"),Notes!$B$5:$C$100,2,FALSE),\"\"))","v":""},"2a","$U$91","$V$91"]
[6087,{"$f":"Menu!$F$29","v":"X"},{"$f":"Menu!$J$29","v":2020},{"$f":"IF(ISBLANK(INDIRECT(\"'\"&F209&\"'!\"&G209)),\"\",INDIRECT(\"'\"&F209&\"'!\"&G209))","v":""},{"$f":"IF(ISBLANK(INDIRECT(\"'\"&F209&\"'!\"&H209)),\"\",IFERROR(VLOOKUP(TEXT(INDIRECT(\"'\"&F209&\"'!\"&H209),\"0\"),Notes!$B$5:$C$100,2,FALSE),\"\"))","v":""},"2a","$E$32","$F$32"]
[6088,{"$f":"Menu!$F$29","v":"X"},{"$f":"Menu!$J$29","v":2020},{"$f":"IF(ISBLANK(INDIRECT(\"'\"&F210&\"'!\"&G210)),\"\",INDIRECT(\"'\"&F210&\"'!\"&G210))","v":""},{"$f":"IF(ISBLANK(INDIRECT(\"'\"&F210&\"'!\"&H210)),\"\",IFERROR(VLOOKUP(TEXT(INDIRECT(\"'\"&F210&\"'!\"&H210),\"0\"),Notes!$B$5:$C$100,2,FALSE),\"\"))","v":""},"2a","$G$32","$H$32"]
[6089,{"$f":"Menu!$F$29","v":"X"},{"$f":"Menu!$J$29","v":2020},{"$f":"IF(ISBLANK(INDIRECT(\"'\"&F211&\"'!\"&G211)),\"\",INDIRECT(\"'\"&F211&\"'!\"&G211))","v":""},{"$f":"IF(ISBLANK(INDIRECT(\"'\"&F211&\"'!\"&H211)),\"\",IFERROR(VLOOKUP(TEXT(INDIRECT(\"'\"&F211&\"'!\"&H211),\"0\"),Notes!$B$5:$C$100,2,FALSE),\"\"))","v":""},"2a","$I$32","$J$32"]
[6090,{"$f":"Menu!$F$29","v":"X"},{"$f":"Menu!$J$29","v":2020},{"$f":"IF(ISBLANK(INDIRECT(\"'\"&F212&\"'!\"&G212)),\"\",INDIRECT(\"'\"&F212&\"'!\"&G212))","v":""},{"$f":"IF(ISBLANK(INDIRECT(\"'\"&F212&\"'!\"&H212)),\"\",IFERROR(VLOOKUP(TEXT(INDIRECT(\"'\"&F212&\"'!\"&H212),\"0\"),Notes!$B$5:$C$100,2,FALSE),\"\"))","v":""},"2a","$K$32","$L$32"]
[6091,{"$f":"Menu!$F$29","v":"X"},{"$f":"Menu!$J$29","v":2020},{"$f":"IF(ISBLANK(INDIRECT(\"'\"&F213&\"'!\"&G213)),\"\",INDIRECT(\"'\"&F213&\"'!\"&G213))","v":""},{"$f":"IF(ISBLANK(INDIRECT(\"'\"&F213&\"'!\"&H213)),\"\",IFERROR(VLOOKUP(TEXT(INDIRECT(\"'\"&F213&\"'!\"&H213),\"0\"),Notes!$B$5:$C$100,2,FALSE),\"\"))","v":""},"2a","$M$32","$N$32"]
[6092,{"$f":"Menu!$F$29","v":"X"},{"$f":"Menu!$J$29","v":2020},{"$f":"IF(ISBLANK(INDIRECT(\"'\"&F214&\"'!\"&G214)),\"\",INDIRECT(\"'\"&F214&\"'!\"&G214))","v":""},{"$f":"IF(ISBLANK(INDIRECT(\"'\"&F214&\"'!\"&H214)),\"\",IFERROR(VLOOKUP(TEXT(INDIRECT(\"'\"&F214&\"'!\"&H214),\"0\"),Notes!$B$5:$C$100,2,FALSE),\"\"))","v":""},"2a","$O$32","$P$32"]
[6093,{"$f":"Menu!$F$29","v":"X"},{"$f":"Menu!$J$29","v":2020},{"$f":"IF(ISBLANK(INDIRECT(\"'\"&F215&\"'!\"&G215)),\"\",INDIRECT(\"'\"&F215&\"'!\"&G215))","v":""},{"$f":"IF(ISBLANK(INDIRECT(\"'\"&F215&\"'!\"&H215)),\"\",IFERROR(VLOOKUP(TEXT(INDIRECT(\"'\"&F215&\"'!\"&H215),\"0\"),Notes!$B$5:$C$100,2,FALSE),\"\"))","v":""},"2a","$Q$32","$R$32"]
[6094,{"$f":"Menu!$F$29","v":"X"},{"$f":"Menu!$J$29","v":2020},{"$f":"IF(ISBLANK(INDIRECT(\"'\"&F216&\"'!\"&G216)),\"\",INDIRECT(\"'\"&F216&\"'!\"&G216))","v":""},{"$f":"IF(ISBLANK(INDIRECT(\"'\"&F216&\"'!\"&H216)),\"\",IFERROR(VLOOKUP(TEXT(INDIRECT(\"'\"&F216&\"'!\"&H216),\"0\"),Notes!$B$5:$C$100,2,FALSE),\"\"))","v":""},"2a","$S$32","$T$32"]
[6095,{"$f":"Menu!$F$29","v":"X"},{"$f":"Menu!$J$29","v":2020},{"$f":"IF(ISBLANK(INDIRECT(\"'\"&F217&\"'!\"&G217)),\"\",INDIRECT(\"'\"&F217&\"'!\"&G217))","v":""},{"$f":"IF(ISBLANK(INDIRECT(\"'\"&F217&\"'!\"&H217)),\"\",IFERROR(VLOOKUP(TEXT(INDIRECT(\"'\"&F217&\"'!\"&H217),\"0\"),Notes!$B$5:$C$100,2,FALSE),\"\"))","v":""},"2a","$U$32","$V$32"]
[6105,{"$f":"Menu!$F$29","v":"X"},{"$f":"Menu!$J$29","v":2020},{"$f":"IF(ISBLANK(INDIRECT(\"'\"&F218&\"'!\"&G218)),\"\",INDIRECT(\"'\"&F218&\"'!\"&G218))","v":""},{"$f":"IF(ISBLANK(INDIRECT(\"'\"&F218&\"'!\"&H218)),\"\",IFERROR(VLOOKUP(TEXT(INDIRECT(\"'\"&F218&\"'!\"&H218),\"0\"),Notes!$B$5:$C$100,2,FALSE),\"\"))","v":""},"2a","$E$55","$F$55"]
[6106,{"$f":"Menu!$F$29","v":"X"},{"$f":"Menu!$J$29","v":2020},{"$f":"IF(ISBLANK(INDIRECT(\"'\"&F219&\"'!\"&G219)),\"\",INDIRECT(\"'\"&F219&\"'!\"&G219))","v":""},{"$f":"IF(ISBLANK(INDIRECT(\"'\"&F219&\"'!\"&H219)),\"\",IFERROR(VLOOKUP(TEXT(INDIRECT(\"'\"&F219&\"'!\"&H219),\"0\"),Notes!$B$5:$C$100,2,FALSE),\"\"))","v":""},"2a","$G$55","$H$55"]
[6107,{"$f":"Menu!$F$29","v":"X"},{"$f":"Menu!$J$29","v":2020},{"$f":"IF(ISBLANK(INDIRECT(\"'\"&F220&\"'!\"&G220)),\"\",INDIRECT(\"'\"&F220&\"'!\"&G220))","v":""},{"$f":"IF(ISBLANK(INDIRECT(\"'\"&F220&\"'!\"&H220)),\"\",IFERROR(VLOOKUP(TEXT(INDIRECT(\"'\"&F220&\"'!\"&H220),\"0\"),Notes!$B$5:$C$100,2,FALSE),\"\"))","v":""},"2a","$I$55","$J$55"]
[6108,{"$f":"Menu!$F$29","v":"X"},{"$f":"Menu!$J$29","v":2020},{"$f":"IF(ISBLANK(INDIRECT(\"'\"&F221&\"'!\"&G221)),\"\",INDIRECT(\"'\"&F221&\"'!\"&G221))","v":""},{"$f":"IF(ISBLANK(INDIRECT(\"'\"&F221&\"'!\"&H221)),\"\",IFERROR(VLOOKUP(TEXT(INDIRECT(\"'\"&F221&\"'!\"&H221),\"0\"),Notes!$B$5:$C$100,2,FALSE),\"\"))","v":""},"2a","$K$55","$L$55"]
[6109,{"$f":"Menu!$F$29","v":"X"},{"$f":"Menu!$J$29","v":2020},{"$f":"IF(ISBLANK(INDIRECT(\"'\"&F222&\"'!\"&G222)),\"\",INDIRECT(\"'\"&F222&\"'!\"&G222))","v":""},{"$f":"IF(ISBLANK(INDIRECT(\"'\"&F222&\"'!\"&H222)),\"\",IFERROR(VLOOKUP(TEXT(INDIRECT(\"'\"&F222&\"'!\"&H222),\"0\"),Notes!$B$5:$C$100,2,FALSE),\"\"))","v":""},"2a","$M$55","$N$55"]
[6110,{"$f":"Menu!$F$29","v":"X"},{"$f":"Menu!$J$29","v":2020},{"$f":"IF(ISBLANK(INDIRECT(\"'\"&F223&\"'!\"&G223)),\"\",INDIRECT(\"'\"&F223&\"'!\"&G223))","v":""},{"$f":"IF(ISBLANK(INDIRECT(\"'\"&F223&\"'!\"&H223)),\"\",IFERROR(VLOOKUP(TEXT(INDIRECT(\"'\"&F223&\"'!\"&H223),\"0\"),Notes!$B$5:$C$100,2,FALSE),\"\"))","v":""},"2a","$O$55","$P$55"]
[6111,{"$f":"Menu!$F$29","v":"X"},{"$f":"Menu!$J$29","v":2020},{"$f":"IF(ISBLANK(INDIRECT(\"'\"&F224&\"'!\"&G224)),\"\",INDIRECT(\"'\"&F224&\"'!\"&G224))","v":""},{"$f":"IF(ISBLANK(INDIRECT(\"'\"&F224&\"'!\"&H224)),\"\",IFERROR(VLOOKUP(TEXT(INDIRECT(\"'\"&F224&\"'!\"&H224),\"0\"),Notes!$B$5:$C$100,2,FALSE),\"\"))","v":""},"2a","$Q$55","$R$55"]
[6112,{"$f":"Menu!$F$29","v":"X"},{"$f":"Menu!$J$29","v":2020},{"$f":"IF(ISBLANK(INDIRECT(\"'\"&F225&\"'!\"&G225)),\"\",INDIRECT(\"'\"&F225&\"'!\"&G225))","v":""},{"$f":"IF(ISBLANK(INDIRECT(\"'\"&F225&\"'!\"&H225)),\"\",IFERROR(VLOOKUP(TEXT(INDIRECT(\"'\"&F225&\"'!\"&H225),\"0\"),Notes!$B$5:$C$100,2,FALSE),\"\"))","v":""},"2a","$S$55","$T$55"]
[6113,{"$f":"Menu!$F$29","v":"X"},{"$f":"Menu!$J$29","v":2020},{"$f":"IF(ISBLANK(INDIRECT(\"'\"&F226&\"'!\"&G226)),\"\",INDIRECT(\"'\"&F226&\"'!\"&G226))","v":""},{"$f":"IF(ISBLANK(INDIRECT(\"'\"&F226&\"'!\"&H226)),\"\",IFERROR(VLOOKUP(TEXT(INDIRECT(\"'\"&F226&\"'!\"&H226),\"0\"),Notes!$B$5:$C$100,2,FALSE),\"\"))","v":""},"2a","$U$55","$V$55"]
[6114,{"$f":"Menu!$F$29","v":"X"},{"$f":"Menu!$J$29","v":2020},{"$f":"IF(ISBLANK(INDIRECT(\"'\"&F227&\"'!\"&G227)),\"\",INDIRECT(\"'\"&F227&\"'!\"&G227))","v":""},{"$f":"IF(ISBLANK(INDIRECT(\"'\"&F227&\"'!\"&H227)),\"\",IFERROR(VLOOKUP(TEXT(INDIRECT(\"'\"&F227&\"'!\"&H227),\"0\"),Notes!$B$5:$C$100,2,FALSE),\"\"))","v":""},"2a","$E$53","$F$53"]
[6115,{"$f":"Menu!$F$29","v":"X"},{"$f":"Menu!$J$29","v":2020},{"$f":"IF(ISBLANK(INDIRECT(\"'\"&F228&\"'!\"&G228)),\"\",INDIRECT(\"'\"&F228&\"'!\"&G228))","v":""},{"$f":"IF(ISBLANK(INDIRECT(\"'\"&F228&\"'!\"&H228)),\"\",IFERROR(VLOOKUP(TEXT(INDIRECT(\"'\"&F228&\"'!\"&H228),\"0\"),Notes!$B$5:$C$100,2,FALSE),\"\"))","v":""},"2a","$G$53","$H$53"]
[6116,{"$f":"Menu!$F$29","v":"X"},{"$f":"Menu!$J$29","v":2020},{"$f":"IF(ISBLANK(INDIRECT(\"'\"&F229&\"'!\"&G229)),\"\",INDIRECT(\"'\"&F229&\"'!\"&G229))","v":""},{"$f":"IF(ISBLANK(INDIRECT(\"'\"&F229&\"'!\"&H229)),\"\",IFERROR(VLOOKUP(TEXT(INDIRECT(\"'\"&F229&\"'!\"&H229),\"0\"),Notes!$B$5:$C$100,2,FALSE),\"\"))","v":""},"2a","$I$53","$J$53"]
[6117,{"$f":"Menu!$F$29","v":"X"},{"$f":"Menu!$J$29","v":2020},{"$f":"IF(ISBLANK(INDIRECT(\"'\"&F230&\"'!\"&G230)),\"\",INDIRECT(\"'\"&F230&\"'!\"&G230))","v":""},{"$f":"IF(ISBLANK(INDIRECT(\"'\"&F230&\"'!\"&H230)),\"\",IFERROR(VLOOKUP(TEXT(INDIRECT(\"'\"&F230&\"'!\"&H230),\"0\"),Notes!$B$5:$C$100,2,FALSE),\"\"))","v":""},"2a","$K$53","$L$53"]
[6118,{"$f":"Menu!$F$29","v":"X"},{"$f":"Menu!$J$29","v":2020},{"$f":"IF(ISBLANK(INDIRECT(\"'\"&F231&\"'!\"&G231)),\"\",INDIRECT(\"'\"&F231&\"'!\"&G231))","v":""},{"$f":"IF(ISBLANK(INDIRECT(\"'\"&F231&\"'!\"&H231)),\"\",IFERROR(VLOOKUP(TEXT(INDIRECT(\"'\"&F231&\"'!\"&H231),\"0\"),Notes!$B$5:$C$100,2,FALSE),\"\"))","v":""},"2a","$M$53","$N$53"]
[6119,{"$f":"Menu!$F$29","v":"X"},{"$f":"Menu!$J$29","v":2020},{"$f":"IF(ISBLANK(INDIRECT(\"'\"&F232&\"'!\"&G232)),\"\",INDIRECT(\"'\"&F232&\"'!\"&G232))","v":""},{"$f":"IF(ISBLANK(INDIRECT(\"'\"&F232&\"'!\"&H232)),\"\",IFERROR(VLOOKUP(TEXT(INDIRECT(\"'\"&F232&\"'!\"&H232),\"0\"),Notes!$B$5:$C$100,2,FALSE),\"\"))","v":""},"2a","$O$53","$P$53"]
[6120,{"$f":"Menu!$F$29","v":"X"},{"$f":"Menu!$J$29","v":2020},{"$f":"IF(ISBLANK(INDIRECT(\"'\"&F233&\"'!\"&G233)),\"\",INDIRECT(\"'\"&F233&\"'!\"&G233))","v":""},{"$f":"IF(ISBLANK(INDIRECT(\"'\"&F233&\"'!\"&H233)),\"\",IFERROR(VLOOKUP(TEXT(INDIRECT(\"'\"&F233&\"'!\"&H233),\"0\"),Notes!$B$5:$C$100,2,FALSE),\"\"))","v":""},"2a","$Q$53","$R$53"]
[6121,{"$f":"Menu!$F$29","v":"X"},{"$f":"Menu!$J$29","v":2020},{"$f":"IF(ISBLANK(INDIRECT(\"'\"&F234&\"'!\"&G234)),\"\",INDIRECT(\"'\"&F234&\"'!\"&G234))","v":""},{"$f":"IF(ISBLANK(INDIRECT(\"'\"&F234&\"'!\"&H234)),\"\",IFERROR(VLOOKUP(TEXT(INDIRECT(\"'\"&F234&\"'!\"&H234),\"0\"),Notes!$B$5:$C$100,2,FALSE),\"\"))","v":""},"2a","$S$53","$T$53"]
[6122,{"$f":"Menu!$F$29","v":"X"},{"$f":"Menu!$J$29","v":2020},{"$f":"IF(ISBLANK(INDIRECT(\"'\"&F235&\"'!\"&G235)),\"\",INDIRECT(\"'\"&F235&\"'!\"&G235))","v":""},{"$f":"IF(ISBLANK(INDIRECT(\"'\"&F235&\"'!\"&H235)),\"\",IFERROR(VLOOKUP(TEXT(INDIRECT(\"'\"&F235&\"'!\"&H235),\"0\"),Notes!$B$5:$C$100,2,FALSE),\"\"))","v":""},"2a","$U$53","$V$53"]
[6159,{"$f":"Menu!$F$29","v":"X"},{"$f":"Menu!$J$29","v":2020},{"$f":"IF(ISBLANK(INDIRECT(\"'\"&F236&\"'!\"&G236)),\"\",INDIRECT(\"'\"&F236&\"'!\"&G236))","v":""},{"$f":"IF(ISBLANK(INDIRECT(\"'\"&F236&\"'!\"&H236)),\"\",IFERROR(VLOOKUP(TEXT(INDIRECT(\"'\"&F236&\"'!\"&H236),\"0\"),Notes!$B$5:$C$100,2,FALSE),\"\"))","v":""},"2a","$E$26","$F$26"]
[6160,{"$f":"Menu!$F$29","v":"X"},{"$f":"Menu!$J$29","v":2020},{"$f":"IF(ISBLANK(INDIRECT(\"'\"&F237&\"'!\"&G237)),\"\",INDIRECT(\"'\"&F237&\"'!\"&G237))","v":""},{"$f":"IF(ISBLANK(INDIRECT(\"'\"&F237&\"'!\"&H237)),\"\",IFERROR(VLOOKUP(TEXT(INDIRECT(\"'\"&F237&\"'!\"&H237),\"0\"),Notes!$B$5:$C$100,2,FALSE),\"\"))","v":""},"2a","$G$26","$H$26"]
[6161,{"$f":"Menu!$F$29","v":"X"},{"$f":"Menu!$J$29","v":2020},{"$f":"IF(ISBLANK(INDIRECT(\"'\"&F238&\"'!\"&G238)),\"\",INDIRECT(\"'\"&F238&\"'!\"&G238))","v":""},{"$f":"IF(ISBLANK(INDIRECT(\"'\"&F238&\"'!\"&H238)),\"\",IFERROR(VLOOKUP(TEXT(INDIRECT(\"'\"&F238&\"'!\"&H238),\"0\"),Notes!$B$5:$C$100,2,FALSE),\"\"))","v":""},"2a","$I$26","$J$26"]
[6162,{"$f":"Menu!$F$29","v":"X"},{"$f":"Menu!$J$29","v":2020},{"$f":"IF(ISBLANK(INDIRECT(\"'\"&F239&\"'!\"&G239)),\"\",INDIRECT(\"'\"&F239&\"'!\"&G239))","v":""},{"$f":"IF(ISBLANK(INDIRECT(\"'\"&F239&\"'!\"&H239)),\"\",IFERROR(VLOOKUP(TEXT(INDIRECT(\"'\"&F239&\"'!\"&H239),\"0\"),Notes!$B$5:$C$100,2,FALSE),\"\"))","v":""},"2a","$K$26","$L$26"]
[6163,{"$f":"Menu!$F$29","v":"X"},{"$f":"Menu!$J$29","v":2020},{"$f":"IF(ISBLANK(INDIRECT(\"'\"&F240&\"'!\"&G240)),\"\",INDIRECT(\"'\"&F240&\"'!\"&G240))","v":""},{"$f":"IF(ISBLANK(INDIRECT(\"'\"&F240&\"'!\"&H240)),\"\",IFERROR(VLOOKUP(TEXT(INDIRECT(\"'\"&F240&\"'!\"&H240),\"0\"),Notes!$B$5:$C$100,2,FALSE),\"\"))","v":""},"2a","$M$26","$N$26"]
[6164,{"$f":"Menu!$F$29","v":"X"},{"$f":"Menu!$J$29","v":2020},{"$f":"IF(ISBLANK(INDIRECT(\"'\"&F241&\"'!\"&G241)),\"\",INDIRECT(\"'\"&F241&\"'!\"&G241))","v":""},{"$f":"IF(ISBLANK(INDIRECT(\"'\"&F241&\"'!\"&H241)),\"\",IFERROR(VLOOKUP(TEXT(INDIRECT(\"'\"&F241&\"'!\"&H241),\"0\"),Notes!$B$5:$C$100,2,FALSE),\"\"))","v":""},"2a","$O$26","$P$26"]
[6165,{"$f":"Menu!$F$29","v":"X"},{"$f":"Menu!$J$29","v":2020},{"$f":"IF(ISBLANK(INDIRECT(\"'\"&F242&\"'!\"&G242)),\"\",INDIRECT(\"'\"&F242&\"'!\"&G242))","v":""},{"$f":"IF(ISBLANK(INDIRECT(\"'\"&F242&\"'!\"&H242)),\"\",IFERROR(VLOOKUP(TEXT(INDIRECT(\"'\"&F242&\"'!\"&H242),\"0\"),Notes!$B$5:$C$100,2,FALSE),\"\"))","v":""},"2a","$Q$26","$R$26"]
[6166,{"$f":"Menu!$F$29","v":"X"},{"$f":"Menu!$J$29","v":2020},{"$f":"IF(ISBLANK(INDIRECT(\"'\"&F243&\"'!\"&G243)),\"\",INDIRECT(\"'\"&F243&\"'!\"&G243))","v":""},{"$f":"IF(ISBLANK(INDIRECT(\"'\"&F243&\"'!\"&H243)),\"\",IFERROR(VLOOKUP(TEXT(INDIRECT(\"'\"&F243&\"'!\"&H243),\"0\"),Notes!$B$5:$C$100,2,FALSE),\"\"))","v":""},"2a","$S$26","$T$26"]
[6167,{"$f":"Menu!$F$29","v":"X"},{"$f":"Menu!$J$29","v":2020},{"$f":"IF(ISBLANK(INDIRECT(\"'\"&F244&\"'!\"&G244)),\"\",INDIRECT(\"'\"&F244&\"'!\"&G244))","v":""},{"$f":"IF(ISBLANK(INDIRECT(\"'\"&F244&\"'!\"&H244)),\"\",IFERROR(VLOOKUP(TEXT(INDIRECT(\"'\"&F244&\"'!\"&H244),\"0\"),Notes!$B$5:$C$100,2,FALSE),\"\"))","v":""},"2a","$U$26","$V$26"]
[6168,{"$f":"Menu!$F$29","v":"X"},{"$f":"Menu!$J$29","v":2020},{"$f":"IF(ISBLANK(INDIRECT(\"'\"&F245&\"'!\"&G245)),\"\",INDIRECT(\"'\"&F245&\"'!\"&G245))","v":""},{"$f":"IF(ISBLANK(INDIRECT(\"'\"&F245&\"'!\"&H245)),\"\",IFERROR(VLOOKUP(TEXT(INDIRECT(\"'\"&F245&\"'!\"&H245),\"0\"),Notes!$B$5:$C$100,2,FALSE),\"\"))","v":""},"2a","$E$15","$F$15"]
[6169,{"$f":"Menu!$F$29","v":"X"},{"$f":"Menu!$J$29","v":2020},{"$f":"IF(ISBLANK(INDIRECT(\"'\"&F246&\"'!\"&G246)),\"\",INDIRECT(\"'\"&F246&\"'!\"&G246))","v":""},null,"2a","$G$15","$H$15"]
[6170,{"$f":"Menu!$F$29","v":"X"},{"$f":"Menu!$J$29","v":2020},{"$f":"IF(ISBLANK(INDIRECT(\"'\"&F247&\"'!\"&G247)),\"\",INDIRECT(\"'\"&F247&\"'!\"&G247))","v":""},{"$f":"IF(ISBLANK(INDIRECT(\"'\"&F247&\"'!\"&H247)),\"\",IFERROR(VLOOKUP(TEXT(INDIRECT(\"'\"&F247&\"'!\"&H247),\"0\"),Notes!$B$5:$C$100,2,FALSE),\"\"))","v":""},"2a","$I$15","$J$15"]
[6171,{"$f":"Menu!$F$29","v":"X"},{"$f":"Menu!$J$29","v":2020},{"$f":"IF(ISBLANK(INDIRECT(\"'\"&F248&\"'!\"&G248)),\"\",INDIRECT(\"'\"&F248&\"'!\"&G248))","v":""},{"$f":"IF(ISBLANK(INDIRECT(\"'\"&F248&\"'!\"&H248)),\"\",IFERROR(VLOOKUP(TEXT(INDIRECT(\"'\"&F248&\"'!\"&H248),\"0\"),Notes!$B$5:$C$100,2,FALSE),\"\"))","v":""},"2a","$K$15","$L$15"]
[6172,{"$f":"Menu!$F$29","v":"X"},{"$f":"Menu!$J$29","v":2020},{"$f":"IF(ISBLANK(INDIRECT(\"'\"&F249&\"'!\"&G249)),\"\",INDIRECT(\"'\"&F249&\"'!\"&G249))","v":""},{"$f":"IF(ISBLANK(INDIRECT(\"'\"&F249&\"'!\"&H249)),\"\",IFERROR(VLOOKUP(TEXT(INDIRECT(\"'\"&F249&\"'!\"&H249),\"0\"),Notes!$B$5:$C$100,2,FALSE),\"\"))","v":""},"2a","$M$15","$N$15"]
[6173,{"$f":"Menu!$F$29","v":"X"},{"$f":"Menu!$J$29","v":2020},{"$f":"IF(ISBLANK(INDIRECT(\"'\"&F250&\"'!\"&G250)),\"\",INDIRECT(\"'\"&F250&\"'!\"&G250))","v":""},{"$f":"IF(ISBLANK(INDIRECT(\"'\"&F250&\"'!\"&H250)),\"\",IFERROR(VLOOKUP(TEXT(INDIRECT(\"'\"&F250&\"'!\"&H250),\"0\"),Notes!$B$5:$C$100,2,FALSE),\"\"))","v":""},"2a","$O$15","$P$15"]
[6174,{"$f":"Menu!$F$29","v":"X"},{"$f":"Menu!$J$29","v":2020},{"$f":"IF(ISBLANK(INDIRECT(\"'\"&F251&\"'!\"&G251)),\"\",INDIRECT(\"'\"&F251&\"'!\"&G251))","v":""},{"$f":"IF(ISBLANK(INDIRECT(\"'\"&F251&\"'!\"&H251)),\"\",IFERROR(VLOOKUP(TEXT(INDIRECT(\"'\"&F251&\"'!\"&H251),\"0\"),Notes!$B$5:$C$100,2,FALSE),\"\"))","v":""},"2a","$Q$15","$R$15"]
[6175,{"$f":"Menu!$F$29","v":"X"},{"$f":"Menu!$J$29","v":2020},{"$f":"IF(ISBLANK(INDIRECT(\"'\"&F252&\"'!\"&G252)),\"\",INDIRECT(\"'\"&F252&\"'!\"&G252))","v":""},{"$f":"IF(ISBLANK(INDIRECT(\"'\"&F252&\"'!\"&H252)),\"\",IFERROR(VLOOKUP(TEXT(INDIRECT(\"'\"&F252&\"'!\"&H252),\"0\"),Notes!$B$5:$C$100,2,FALSE),\"\"))","v":""},"2a","$S$15","$T$15"]
[6176,{"$f":"Menu!$F$29","v":"X"},{"$f":"Menu!$J$29","v":2020},{"$f":"IF(ISBLANK(INDIRECT(\"'\"&F253&\"'!\"&G253)),\"\",INDIRECT(\"'\"&F253&\"'!\"&G253))","v":""},{"$f":"IF(ISBLANK(INDIRECT(\"'\"&F253&\"'!\"&H253)),\"\",IFERROR(VLOOKUP(TEXT(INDIRECT(\"'\"&F253&\"'!\"&H253),\"0\"),Notes!$B$5:$C$100,2,FALSE),\"\"))","v":""},"2a","$U$15","$V$15"]
[6186,{"$f":"Menu!$F$29","v":"X"},{"$f":"Menu!$J$29","v":2020},{"$f":"IF(ISBLANK(INDIRECT(\"'\"&F254&\"'!\"&G254)),\"\",INDIRECT(\"'\"&F254&\"'!\"&G254))","v":""},{"$f":"IF(ISBLANK(INDIRECT(\"'\"&F254&\"'!\"&H254)),\"\",IFERROR(VLOOKUP(TEXT(INDIRECT(\"'\"&F254&\"'!\"&H254),\"0\"),Notes!$B$5:$C$100,2,FALSE),\"\"))","v":""},"2a","$E$72","$F$72"]
[6187,{"$f":"Menu!$F$29","v":"X"},{"$f":"Menu!$J$29","v":2020},{"$f":"IF(ISBLANK(INDIRECT(\"'\"&F255&\"'!\"&G255)),\"\",INDIRECT(\"'\"&F255&\"'!\"&G255))","v":""},{"$f":"IF(ISBLANK(INDIRECT(\"'\"&F255&\"'!\"&H255)),\"\",IFERROR(VLOOKUP(TEXT(INDIRECT(\"'\"&F255&\"'!\"&H255),\"0\"),Notes!$B$5:$C$100,2,FALSE),\"\"))","v":""},"2a","$G$72","$H$72"]
[6188,{"$f":"Menu!$F$29","v":"X"},{"$f":"Menu!$J$29","v":2020},{"$f":"IF(ISBLANK(INDIRECT(\"'\"&F256&\"'!\"&G256)),\"\",INDIRECT(\"'\"&F256&\"'!\"&G256))","v":""},{"$f":"IF(ISBLANK(INDIRECT(\"'\"&F256&\"'!\"&H256)),\"\",IFERROR(VLOOKUP(TEXT(INDIRECT(\"'\"&F256&\"'!\"&H256),\"0\"),Notes!$B$5:$C$100,2,FALSE),\"\"))","v":""},"2a","$I$72","$J$72"]
[6189,{"$f":"Menu!$F$29","v":"X"},{"$f":"Menu!$J$29","v":2020},{"$f":"IF(ISBLANK(INDIRECT(\"'\"&F257&\"'!\"&G257)),\"\",INDIRECT(\"'\"&F257&\"'!\"&G257))","v":""},{"$f":"IF(ISBLANK(INDIRECT(\"'\"&F257&\"'!\"&H257)),\"\",IFERROR(VLOOKUP(TEXT(INDIRECT(\"'\"&F257&\"'!\"&H257),\"0\"),Notes!$B$5:$C$100,2,FALSE),\"\"))","v":""},"2a","$K$72","$L$72"]
[6190,{"$f":"Menu!$F$29","v":"X"},{"$f":"Menu!$J$29","v":2020},{"$f":"IF(ISBLANK(INDIRECT(\"'\"&F258&\"'!\"&G258)),\"\",INDIRECT(\"'\"&F258&\"'!\"&G258))","v":""},{"$f":"IF(ISBLANK(INDIRECT(\"'\"&F258&\"'!\"&H258)),\"\",IFERROR(VLOOKUP(TEXT(INDIRECT(\"'\"&F258&\"'!\"&H258),\"0\"),Notes!$B$5:$C$100,2,FALSE),\"\"))","v":""},"2a","$M$72",{"$f":"IF(LEN(TRIM(MID(G258,4,10)))-LEN(SUBSTITUTE(TRIM(MID(G258,4,10)),\"$\",\"\"))=0,\"$\"&CHAR(CODE(MID(G258,2,1))+1)&\"$\"&TRIM(MID(G258,4,10)),\"$\"&MID(G258,2,1)&CHAR(CODE(MID(G258,3,1))+1)&\"$\"&TRIM(MID(G258,5,11)))","v":"$N$72"}]
[6191,{"$f":"Menu!$F$29","v":"X"},{"$f":"Menu!$J$29","v":2020},{"$f":"IF(ISBLANK(INDIRECT(\"'\"&F259&\"'!\"&G259)),\"\",INDIRECT(\"'\"&F259&\"'!\"&G259))","v":""},{"$f":"IF(ISBLANK(INDIRECT(\"'\"&F259&\"'!\"&H259)),\"\",IFERROR(VLOOKUP(TEXT(INDIRECT(\"'\"&F259&\"'!\"&H259),\"0\"),Notes!$B$5:$C$100,2,FALSE),\"\"))","v":""},"2a","$O$72","$P$72"]
[6192,{"$f":"Menu!$F$29","v":"X"},{"$f":"Menu!$J$29","v":2020},{"$f":"IF(ISBLANK(INDIRECT(\"'\"&F260&\"'!\"&G260)),\"\",INDIRECT(\"'\"&F260&\"'!\"&G260))","v":""},{"$f":"IF(ISBLANK(INDIRECT(\"'\"&F260&\"'!\"&H260)),\"\",IFERROR(VLOOKUP(TEXT(INDIRECT(\"'\"&F260&\"'!\"&H260),\"0\"),Notes!$B$5:$C$100,2,FALSE),\"\"))","v":""},"2a","$Q$72","$R$72"]
[6193,{"$f":"Menu!$F$29","v":"X"},{"$f":"Menu!$J$29","v":2020},{"$f":"IF(ISBLANK(INDIRECT(\"'\"&F261&\"'!\"&G261)),\"\",INDIRECT(\"'\"&F261&\"'!\"&G261))","v":""},{"$f":"IF(ISBLANK(INDIRECT(\"'\"&F261&\"'!\"&H261)),\"\",IFERROR(VLOOKUP(TEXT(INDIRECT(\"'\"&F261&\"'!\"&H261),\"0\"),Notes!$B$5:$C$100,2,FALSE),\"\"))","v":""},"2a","$S$72","$T$72"]
[6194,{"$f":"Menu!$F$29","v":"X"},{"$f":"Menu!$J$29","v":2020},{"$f":"IF(ISBLANK(INDIRECT(\"'\"&F262&\"'!\"&G262)),\"\",INDIRECT(\"'\"&F262&\"'!\"&G262))","v":""},{"$f":"IF(ISBLANK(INDIRECT(\"'\"&F262&\"'!\"&H262)),\"\",IFERROR(VLOOKUP(TEXT(INDIRECT(\"'\"&F262&\"'!\"&H262),\"0\"),Notes!$B$5:$C$100,2,FALSE),\"\"))","v":""},"2a","$U$72","$V$72"]
[6195,{"$f":"Menu!$F$29","v":"X"},{"$f":"Menu!$J$29","v":2020},{"$f":"IF(ISBLANK(INDIRECT(\"'\"&F263&\"'!\"&G263)),\"\",INDIRECT(\"'\"&F263&\"'!\"&G263))","v":""},{"$f":"IF(ISBLANK(INDIRECT(\"'\"&F263&\"'!\"&H263)),\"\",IFERROR(VLOOKUP(TEXT(INDIRECT(\"'\"&F263&\"'!\"&H263),\"0\"),Notes!$B$5:$C$100,2,FALSE),\"\"))","v":""},"2a","$E$73","$F$73"]
[6196,{"$f":"Menu!$F$29","v":"X"},{"$f":"Menu!$J$29","v":2020},{"$f":"IF(ISBLANK(INDIRECT(\"'\"&F264&\"'!\"&G264)),\"\",INDIRECT(\"'\"&F264&\"'!\"&G264))","v":""},{"$f":"IF(ISBLANK(INDIRECT(\"'\"&F264&\"'!\"&H264)),\"\",IFERROR(VLOOKUP(TEXT(INDIRECT(\"'\"&F264&\"'!\"&H264),\"0\"),Notes!$B$5:$C$100,2,FALSE),\"\"))","v":""},"2a","$G$73","$H$73"]
[6197,{"$f":"Menu!$F$29","v":"X"},{"$f":"Menu!$J$29","v":2020},{"$f":"IF(ISBLANK(INDIRECT(\"'\"&F265&\"'!\"&G265)),\"\",INDIRECT(\"'\"&F265&\"'!\"&G265))","v":""},{"$f":"IF(ISBLANK(INDIRECT(\"'\"&F265&\"'!\"&H265)),\"\",IFERROR(VLOOKUP(TEXT(INDIRECT(\"'\"&F265&\"'!\"&H265),\"0\"),Notes!$B$5:$C$100,2,FALSE),\"\"))","v":""},"2a","$I$73","$J$73"]
[6198,{"$f":"Menu!$F$29","v":"X"},{"$f":"Menu!$J$29","v":2020},{"$f":"IF(ISBLANK(INDIRECT(\"'\"&F266&\"'!\"&G266)),\"\",INDIRECT(\"'\"&F266&\"'!\"&G266))","v":""},{"$f":"IF(ISBLANK(INDIRECT(\"'\"&F266&\"'!\"&H266)),\"\",IFERROR(VLOOKUP(TEXT(INDIRECT(\"'\"&F266&\"'!\"&H266),\"0\"),Notes!$B$5:$C$100,2,FALSE),\"\"))","v":""},"2a","$K$73","$L$73"]
[6199,{"$f":"Menu!$F$29","v":"X"},{"$f":"Menu!$J$29","v":2020},{"$f":"IF(ISBLANK(INDIRECT(\"'\"&F267&\"'!\"&G267)),\"\",INDIRECT(\"'\"&F267&\"'!\"&G267))","v":""},{"$f":"IF(ISBLANK(INDIRECT(\"'\"&F267&\"'!\"&H267)),\"\",IFERROR(VLOOKUP(TEXT(INDIRECT(\"'\"&F267&\"'!\"&H267),\"0\"),Notes!$B$5:$C$100,2,FALSE),\"\"))","v":""},"2a","$M$73","$N$73"]
[6200,{"$f":"Menu!$F$29","v":"X"},{"$f":"Menu!$J$29","v":2020},{"$f":"IF(ISBLANK(INDIRECT(\"'\"&F268&\"'!\"&G268)),\"\",INDIRECT(\"'\"&F268&\"'!\"&G268))","v":""},{"$f":"IF(ISBLANK(INDIRECT(\"'\"&F268&\"'!\"&H268)),\"\",IFERROR(VLOOKUP(TEXT(INDIRECT(\"'\"&F268&\"'!\"&H268),\"0\"),Notes!$B$5:$C$100,2,FALSE),\"\"))","v":""},"2a","$O$73","$P$73"]
[6201,{"$f":"Menu!$F$29","v":"X"},{"$f":"Menu!$J$29","v":2020},{"$f":"IF(ISBLANK(INDIRECT(\"'\"&F269&\"'!\"&G269)),\"\",INDIRECT(\"'\"&F269&\"'!\"&G269))","v":""},{"$f":"IF(ISBLANK(INDIRECT(\"'\"&F269&\"'!\"&H269)),\"\",IFERROR(VLOOKUP(TEXT(INDIRECT(\"'\"&F269&\"'!\"&H269),\"0\"),Notes!$B$5:$C$100,2,FALSE),\"\"))","v":""},"2a","$Q$73","$R$73"]
[6202,{"$f":"Menu!$F$29","v":"X"},{"$f":"Menu!$J$29","v":2020},{"$f":"IF(ISBLANK(INDIRECT(\"'\"&F270&\"'!\"&G270)),\"\",INDIRECT(\"'\"&F270&\"'!\"&G270))","v":""},{"$f":"IF(ISBLANK(INDIRECT(\"'\"&F270&\"'!\"&H270)),\"\",IFERROR(VLOOKUP(TEXT(INDIRECT(\"'\"&F270&\"'!\"&H270),\"0\"),Notes!$B$5:$C$100,2,FALSE),\"\"))","v":""},"2a","$S$73","$T$73"]
[6203,{"$f":"Menu!$F$29","v":"X"},{"$f":"Menu!$J$29","v":2020},{"$f":"IF(ISBLANK(INDIRECT(\"'\"&F271&\"'!\"&G271)),\"\",INDIRECT(\"'\"&F271&\"'!\"&G271))","v":""},{"$f":"IF(ISBLANK(INDIRECT(\"'\"&F271&\"'!\"&H271)),\"\",IFERROR(VLOOKUP(TEXT(INDIRECT(\"'\"&F271&\"'!\"&H271),\"0\"),Notes!$B$5:$C$100,2,FALSE),\"\"))","v":""},"2a","$U$73","$V$73"]
[6204,{"$f":"Menu!$F$29","v":"X"},{"$f":"Menu!$J$29","v":2020},{"$f":"IF(ISBLANK(INDIRECT(\"'\"&F272&\"'!\"&G272)),\"\",INDIRECT(\"'\"&F272&\"'!\"&G272))","v":""},{"$f":"IF(ISBLANK(INDIRECT(\"'\"&F272&\"'!\"&H272)),\"\",IFERROR(VLOOKUP(TEXT(INDIRECT(\"'\"&F272&\"'!\"&H272),\"0\"),Notes!$B$5:$C$100,2,FALSE),\"\"))","v":""},"2a","$E$74","$F$74"]
[6205,{"$f":"Menu!$F$29","v":"X"},{"$f":"Menu!$J$29","v":2020},{"$f":"IF(ISBLANK(INDIRECT(\"'\"&F273&\"'!\"&G273)),\"\",INDIRECT(\"'\"&F273&\"'!\"&G273))","v":""},{"$f":"IF(ISBLANK(INDIRECT(\"'\"&F273&\"'!\"&H273)),\"\",IFERROR(VLOOKUP(TEXT(INDIRECT(\"'\"&F273&\"'!\"&H273),\"0\"),Notes!$B$5:$C$100,2,FALSE),\"\"))","v":""},"2a","$G$74","$H$74"]
[6206,{"$f":"Menu!$F$29","v":"X"},{"$f":"Menu!$J$29","v":2020},{"$f":"IF(ISBLANK(INDIRECT(\"'\"&F274&\"'!\"&G274)),\"\",INDIRECT(\"'\"&F274&\"'!\"&G274))","v":""},{"$f":"IF(ISBLANK(INDIRECT(\"'\"&F274&\"'!\"&H274)),\"\",IFERROR(VLOOKUP(TEXT(INDIRECT(\"'\"&F274&\"'!\"&H274),\"0\"),Notes!$B$5:$C$100,2,FALSE),\"\"))","v":""},"2a","$I$74","$J$74"]
[6207,{"$f":"Menu!$F$29","v":"X"},{"$f":"Menu!$J$29","v":2020},{"$f":"IF(ISBLANK(INDIRECT(\"'\"&F275&\"'!\"&G275)),\"\",INDIRECT(\"'\"&F275&\"'!\"&G275))","v":""},{"$f":"IF(ISBLANK(INDIRECT(\"'\"&F275&\"'!\"&H275)),\"\",IFERROR(VLOOKUP(TEXT(INDIRECT(\"'\"&F275&\"'!\"&H275),\"0\"),Notes!$B$5:$C$100,2,FALSE),\"\"))","v":""},"2a","$K$74","$L$74"]
[6208,{"$f":"Menu!$F$29","v":"X"},{"$f":"Menu!$J$29","v":2020},{"$f":"IF(ISBLANK(INDIRECT(\"'\"&F276&\"'!\"&G276)),\"\",INDIRECT(\"'\"&F276&\"'!\"&G276))","v":""},{"$f":"IF(ISBLANK(INDIRECT(\"'\"&F276&\"'!\"&H276)),\"\",IFERROR(VLOOKUP(TEXT(INDIRECT(\"'\"&F276&\"'!\"&H276),\"0\"),Notes!$B$5:$C$100,2,FALSE),\"\"))","v":""},"2a","$M$74","$N$74"]
[6209,{"$f":"Menu!$F$29","v":"X"},{"$f":"Menu!$J$29","v":2020},{"$f":"IF(ISBLANK(INDIRECT(\"'\"&F277&\"'!\"&G277)),\"\",INDIRECT(\"'\"&F277&\"'!\"&G277))","v":""},{"$f":"IF(ISBLANK(INDIRECT(\"'\"&F277&\"'!\"&H277)),\"\",IFERROR(VLOOKUP(TEXT(INDIRECT(\"'\"&F277&\"'!\"&H277),\"0\"),Notes!$B$5:$C$100,2,FALSE),\"\"))","v":""},"2a","$O$74","$P$74"]
[6210,{"$f":"Menu!$F$29","v":"X"},{"$f":"Menu!$J$29","v":2020},{"$f":"IF(ISBLANK(INDIRECT(\"'\"&F278&\"'!\"&G278)),\"\",INDIRECT(\"'\"&F278&\"'!\"&G278))","v":""},{"$f":"IF(ISBLANK(INDIRECT(\"'\"&F278&\"'!\"&H278)),\"\",IFERROR(VLOOKUP(TEXT(INDIRECT(\"'\"&F278&\"'!\"&H278),\"0\"),Notes!$B$5:$C$100,2,FALSE),\"\"))","v":""},"2a","$Q$74","$R$74"]
[6211,{"$f":"Menu!$F$29","v":"X"},{"$f":"Menu!$J$29","v":2020},{"$f":"IF(ISBLANK(INDIRECT(\"'\"&F279&\"'!\"&G279)),\"\",INDIRECT(\"'\"&F279&\"'!\"&G279))","v":""},{"$f":"IF(ISBLANK(INDIRECT(\"'\"&F279&\"'!\"&H279)),\"\",IFERROR(VLOOKUP(TEXT(INDIRECT(\"'\"&F279&\"'!\"&H279),\"0\"),Notes!$B$5:$C$100,2,FALSE),\"\"))","v":""},"2a","$S$74","$T$74"]
[6212,{"$f":"Menu!$F$29","v":"X"},{"$f":"Menu!$J$29","v":2020},{"$f":"IF(ISBLANK(INDIRECT(\"'\"&F280&\"'!\"&G280)),\"\",INDIRECT(\"'\"&F280&\"'!\"&G280))","v":""},{"$f":"IF(ISBLANK(INDIRECT(\"'\"&F280&\"'!\"&H280)),\"\",IFERROR(VLOOKUP(TEXT(INDIRECT(\"'\"&F280&\"'!\"&H280),\"0\"),Notes!$B$5:$C$100,2,FALSE),\"\"))","v":""},"2a","$U$74","$V$74"]
[6213,{"$f":"Menu!$F$29","v":"X"},{"$f":"Menu!$J$29","v":2020},{"$f":"IF(ISBLANK(INDIRECT(\"'\"&F281&\"'!\"&G281)),\"\",INDIRECT(\"'\"&F281&\"'!\"&G281))","v":""},{"$f":"IF(ISBLANK(INDIRECT(\"'\"&F281&\"'!\"&H281)),\"\",IFERROR(VLOOKUP(TEXT(INDIRECT(\"'\"&F281&\"'!\"&H281),\"0\"),Notes!$B$5:$C$100,2,FALSE),\"\"))","v":""},"2b","$E$10","$F$10"]
[6214,{"$f":"Menu!$F$29","v":"X"},{"$f":"Menu!$J$29","v":2020},{"$f":"IF(ISBLANK(INDIRECT(\"'\"&F282&\"'!\"&G282)),\"\",INDIRECT(\"'\"&F282&\"'!\"&G282))","v":""},{"$f":"IF(ISBLANK(INDIRECT(\"'\"&F282&\"'!\"&H282)),\"\",IFERROR(VLOOKUP(TEXT(INDIRECT(\"'\"&F282&\"'!\"&H282),\"0\"),Notes!$B$5:$C$100,2,FALSE),\"\"))","v":""},"2b","$G$10","$H$10"]
[6215,{"$f":"Menu!$F$29","v":"X"},{"$f":"Menu!$J$29","v":2020},{"$f":"IF(ISBLANK(INDIRECT(\"'\"&F283&\"'!\"&G283)),\"\",INDIRECT(\"'\"&F283&\"'!\"&G283))","v":""},{"$f":"IF(ISBLANK(INDIRECT(\"'\"&F283&\"'!\"&H283)),\"\",IFERROR(VLOOKUP(TEXT(INDIRECT(\"'\"&F283&\"'!\"&H283),\"0\"),Notes!$B$5:$C$100,2,FALSE),\"\"))","v":""},"2b","$I$10","$J$10"]
[6216,{"$f":"Menu!$F$29","v":"X"},{"$f":"Menu!$J$29","v":2020},{"$f":"IF(ISBLANK(INDIRECT(\"'\"&F284&\"'!\"&G284)),\"\",INDIRECT(\"'\"&F284&\"'!\"&G284))","v":""},{"$f":"IF(ISBLANK(INDIRECT(\"'\"&F284&\"'!\"&H284)),\"\",IFERROR(VLOOKUP(TEXT(INDIRECT(\"'\"&F284&\"'!\"&H284),\"0\"),Notes!$B$5:$C$100,2,FALSE),\"\"))","v":""},"2b","$K$10","$L$10"]
[6217,{"$f":"Menu!$F$29","v":"X"},{"$f":"Menu!$J$29","v":2020},{"$f":"IF(ISBLANK(INDIRECT(\"'\"&F285&\"'!\"&G285)),\"\",INDIRECT(\"'\"&F285&\"'!\"&G285))","v":""},{"$f":"IF(ISBLANK(INDIRECT(\"'\"&F285&\"'!\"&H285)),\"\",IFERROR(VLOOKUP(TEXT(INDIRECT(\"'\"&F285&\"'!\"&H285),\"0\"),Notes!$B$5:$C$100,2,FALSE),\"\"))","v":""},"2b","$M$10","$N$10"]
[6218,{"$f":"Menu!$F$29","v":"X"},{"$f":"Menu!$J$29","v":2020},{"$f":"IF(ISBLANK(INDIRECT(\"'\"&F286&\"'!\"&G286)),\"\",INDIRECT(\"'\"&F286&\"'!\"&G286))","v":""},{"$f":"IF(ISBLANK(INDIRECT(\"'\"&F286&\"'!\"&H286)),\"\",IFERROR(VLOOKUP(TEXT(INDIRECT(\"'\"&F286&\"'!\"&H286),\"0\"),Notes!$B$5:$C$100,2,FALSE),\"\"))","v":""},"2b","$O$10","$P$10"]
[6219,{"$f":"Menu!$F$29","v":"X"},{"$f":"Menu!$J$29","v":2020},{"$f":"IF(ISBLANK(INDIRECT(\"'\"&F287&\"'!\"&G287)),\"\",INDIRECT(\"'\"&F287&\"'!\"&G287))","v":""},{"$f":"IF(ISBLANK(INDIRECT(\"'\"&F287&\"'!\"&H287)),\"\",IFERROR(VLOOKUP(TEXT(INDIRECT(\"'\"&F287&\"'!\"&H287),\"0\"),Notes!$B$5:$C$100,2,FALSE),\"\"))","v":""},"2b","$Q$10","$R$10"]
[6220,{"$f":"Menu!$F$29","v":"X"},{"$f":"Menu!$J$29","v":2020},{"$f":"IF(ISBLANK(INDIRECT(\"'\"&F288&\"'!\"&G288)),\"\",INDIRECT(\"'\"&F288&\"'!\"&G288))","v":""},{"$f":"IF(ISBLANK(INDIRECT(\"'\"&F288&\"'!\"&H288)),\"\",IFERROR(VLOOKUP(TEXT(INDIRECT(\"'\"&F288&\"'!\"&H288),\"0\"),Notes!$B$5:$C$100,2,FALSE),\"\"))","v":""},"2b","$S$10","$T$10"]
[6221,{"$f":"Menu!$F$29","v":"X"},{"$f":"Menu!$J$29","v":2020},{"$f":"IF(ISBLANK(INDIRECT(\"'\"&F289&\"'!\"&G289)),\"\",INDIRECT(\"'\"&F289&\"'!\"&G289))","v":""},{"$f":"IF(ISBLANK(INDIRECT(\"'\"&F289&\"'!\"&H289)),\"\",IFERROR(VLOOKUP(TEXT(INDIRECT(\"'\"&F289&\"'!\"&H289),\"0\"),Notes!$B$5:$C$100,2,FALSE),\"\"))","v":""},"2b","$U$10","$V$10"]
[6222,{"$f":"Menu!$F$29","v":"X"},{"$f":"Menu!$J$29","v":2020},{"$f":"IF(ISBLANK(INDIRECT(\"'\"&F290&\"'!\"&G290)),\"\",INDIRECT(\"'\"&F290&\"'!\"&G290))","v":""},{"$f":"IF(ISBLANK(INDIRECT(\"'\"&F290&\"'!\"&H290)),\"\",IFERROR(VLOOKUP(TEXT(INDIRECT(\"'\"&F290&\"'!\"&H290),\"0\"),Notes!$B$5:$C$100,2,FALSE),\"\"))","v":""},"2b","$W$10","$X$10"]
[6223,{"$f":"Menu!$F$29","v":"X"},{"$f":"Menu!$J$29","v":2020},{"$f":"IF(ISBLANK(INDIRECT(\"'\"&F291&\"'!\"&G291)),\"\",INDIRECT(\"'\"&F291&\"'!\"&G291))","v":""},{"$f":"IF(ISBLANK(INDIRECT(\"'\"&F291&\"'!\"&H291)),\"\",IFERROR(VLOOKUP(TEXT(INDIRECT(\"'\"&F291&\"'!\"&H291),\"0\"),Notes!$B$5:$C$100,2,FALSE),\"\"))","v":""},"2b","$Y$10","$Z$10"]
[6224,{"$f":"Menu!$F$29","v":"X"},{"$f":"Menu!$J$29","v":2020},{"$f":"IF(ISBLANK(INDIRECT(\"'\"&F292&\"'!\"&G292)),\"\",INDIRECT(\"'\"&F292&\"'!\"&G292))","v":""},{"$f":"IF(ISBLANK(INDIRECT(\"'\"&F292&\"'!\"&H292)),\"\",IFERROR(VLOOKUP(TEXT(INDIRECT(\"'\"&F292&\"'!\"&H292),\"0\"),Notes!$B$5:$C$100,2,FALSE),\"\"))","v":""},"2b","$AA$10","$AB$10"]
[6225,{"$f":"Menu!$F$29","v":"X"},{"$f":"Menu!$J$29","v":2020},{"$f":"IF(ISBLANK(INDIRECT(\"'\"&F293&\"'!\"&G293)),\"\",INDIRECT(\"'\"&F293&\"'!\"&G293))","v":""},{"$f":"IF(ISBLANK(INDIRECT(\"'\"&F293&\"'!\"&H293)),\"\",IFERROR(VLOOKUP(TEXT(INDIRECT(\"'\"&F293&\"'!\"&H293),\"0\"),Notes!$B$5:$C$100,2,FALSE),\"\"))","v":""},"2b","$E$11","$F$11"]
[6226,{"$f":"Menu!$F$29","v":"X"},{"$f":"Menu!$J$29","v":2020},{"$f":"IF(ISBLANK(INDIRECT(\"'\"&F294&\"'!\"&G294)),\"\",INDIRECT(\"'\"&F294&\"'!\"&G294))","v":""},{"$f":"IF(ISBLANK(INDIRECT(\"'\"&F294&\"'!\"&H294)),\"\",IFERROR(VLOOKUP(TEXT(INDIRECT(\"'\"&F294&\"'!\"&H294),\"0\"),Notes!$B$5:$C$100,2,FALSE),\"\"))","v":""},"2b","$G$11","$H$11"]
[6227,{"$f":"Menu!$F$29","v":"X"},{"$f":"Menu!$J$29","v":2020},{"$f":"IF(ISBLANK(INDIRECT(\"'\"&F295&\"'!\"&G295)),\"\",INDIRECT(\"'\"&F295&\"'!\"&G295))","v":""},{"$f":"IF(ISBLANK(INDIRECT(\"'\"&F295&\"'!\"&H295)),\"\",IFERROR(VLOOKUP(TEXT(INDIRECT(\"'\"&F295&\"'!\"&H295),\"0\"),Notes!$B$5:$C$100,2,FALSE),\"\"))","v":""},"2b","$I$11","$J$11"]
[6228,{"$f":"Menu!$F$29","v":"X"},{"$f":"Menu!$J$29","v":2020},{"$f":"IF(ISBLANK(INDIRECT(\"'\"&F296&\"'!\"&G296)),\"\",INDIRECT(\"'\"&F296&\"'!\"&G296))","v":""},{"$f":"IF(ISBLANK(INDIRECT(\"'\"&F296&\"'!\"&H296)),\"\",IFERROR(VLOOKUP(TEXT(INDIRECT(\"'\"&F296&\"'!\"&H296),\"0\"),Notes!$B$5:$C$100,2,FALSE),\"\"))","v":""},"2b","$K$11","$L$11"]
[6229,{"$f":"Menu!$F$29","v":"X"},{"$f":"Menu!$J$29","v":2020},{"$f":"IF(ISBLANK(INDIRECT(\"'\"&F297&\"'!\"&G297)),\"\",INDIRECT(\"'\"&F297&\"'!\"&G297))","v":""},{"$f":"IF(ISBLANK(INDIRECT(\"'\"&F297&\"'!\"&H297)),\"\",IFERROR(VLOOKUP(TEXT(INDIRECT(\"'\"&F297&\"'!\"&H297),\"0\"),Notes!$B$5:$C$100,2,FALSE),\"\"))","v":""},"2b","$M$11","$N$11"]
[6230,{"$f":"Menu!$F$29","v":"X"},{"$f":"Menu!$J$29","v":2020},{"$f":"IF(ISBLANK(INDIRECT(\"'\"&F298&\"'!\"&G298)),\"\",INDIRECT(\"'\"&F298&\"'!\"&G298))","v":""},{"$f":"IF(ISBLANK(INDIRECT(\"'\"&F298&\"'!\"&H298)),\"\",IFERROR(VLOOKUP(TEXT(INDIRECT(\"'\"&F298&\"'!\"&H298),\"0\"),Notes!$B$5:$C$100,2,FALSE),\"\"))","v":""},"2b","$O$11","$P$11"]
[6231,{"$f":"Menu!$F$29","v":"X"},{"$f":"Menu!$J$29","v":2020},{"$f":"IF(ISBLANK(INDIRECT(\"'\"&F299&\"'!\"&G299)),\"\",INDIRECT(\"'\"&F299&\"'!\"&G299))","v":""},{"$f":"IF(ISBLANK(INDIRECT(\"'\"&F299&\"'!\"&H299)),\"\",IFERROR(VLOOKUP(TEXT(INDIRECT(\"'\"&F299&\"'!\"&H299),\"0\"),Notes!$B$5:$C$100,2,FALSE),\"\"))","v":""},"2b","$Q$11","$R$11"]
[6232,{"$f":"Menu!$F$29","v":"X"},{"$f":"Menu!$J$29","v":2020},{"$f":"IF(ISBLANK(INDIRECT(\"'\"&F300&\"'!\"&G300)),\"\",INDIRECT(\"'\"&F300&\"'!\"&G300))","v":""},{"$f":"IF(ISBLANK(INDIRECT(\"'\"&F300&\"'!\"&H300)),\"\",IFERROR(VLOOKUP(TEXT(INDIRECT(\"'\"&F300&\"'!\"&H300),\"0\"),Notes!$B$5:$C$100,2,FALSE),\"\"))","v":""},"2b","$S$11","$T$11"]
[6233,{"$f":"Menu!$F$29","v":"X"},{"$f":"Menu!$J$29","v":2020},{"$f":"IF(ISBLANK(INDIRECT(\"'\"&F301&\"'!\"&G301)),\"\",INDIRECT(\"'\"&F301&\"'!\"&G301))","v":""},{"$f":"IF(ISBLANK(INDIRECT(\"'\"&F301&\"'!\"&H301)),\"\",IFERROR(VLOOKUP(TEXT(INDIRECT(\"'\"&F301&\"'!\"&H301),\"0\"),Notes!$B$5:$C$100,2,FALSE),\"\"))","v":""},"2b","$U$11","$V$11"]
[6234,{"$f":"Menu!$F$29","v":"X"},{"$f":"Menu!$J$29","v":2020},{"$f":"IF(ISBLANK(INDIRECT(\"'\"&F302&\"'!\"&G302)),\"\",INDIRECT(\"'\"&F302&\"'!\"&G302))","v":""},{"$f":"IF(ISBLANK(INDIRECT(\"'\"&F302&\"'!\"&H302)),\"\",IFERROR(VLOOKUP(TEXT(INDIRECT(\"'\"&F302&\"'!\"&H302),\"0\"),Notes!$B$5:$C$100,2,FALSE),\"\"))","v":""},"2b","$W$11","$X$11"]
[6235,{"$f":"Menu!$F$29","v":"X"},{"$f":"Menu!$J$29","v":2020},{"$f":"IF(ISBLANK(INDIRECT(\"'\"&F303&\"'!\"&G303)),\"\",INDIRECT(\"'\"&F303&\"'!\"&G303))","v":""},{"$f":"IF(ISBLANK(INDIRECT(\"'\"&F303&\"'!\"&H303)),\"\",IFERROR(VLOOKUP(TEXT(INDIRECT(\"'\"&F303&\"'!\"&H303),\"0\"),Notes!$B$5:$C$100,2,FALSE),\"\"))","v":""},"2b","$Y$11","$Z$11"]
[6236,{"$f":"Menu!$F$29","v":"X"},{"$f":"Menu!$J$29","v":2020},{"$f":"IF(ISBLANK(INDIRECT(\"'\"&F304&\"'!\"&G304)),\"\",INDIRECT(\"'\"&F304&\"'!\"&G304))","v":""},{"$f":"IF(ISBLANK(INDIRECT(\"'\"&F304&\"'!\"&H304)),\"\",IFERROR(VLOOKUP(TEXT(INDIRECT(\"'\"&F304&\"'!\"&H304),\"0\"),Notes!$B$5:$C$100,2,FALSE),\"\"))","v":""},"2b","$AA$11","$AB$11"]
[6237,{"$f":"Menu!$F$29","v":"X"},{"$f":"Menu!$J$29","v":2020},{"$f":"IF(ISBLANK(INDIRECT(\"'\"&F305&\"'!\"&G305)),\"\",INDIRECT(\"'\"&F305&\"'!\"&G305))","v":""},{"$f":"IF(ISBLANK(INDIRECT(\"'\"&F305&\"'!\"&H305)),\"\",IFERROR(VLOOKUP(TEXT(INDIRECT(\"'\"&F305&\"'!\"&H305),\"0\"),Notes!$B$5:$C$100,2,FALSE),\"\"))","v":""},"2b","$E$19","$F$19"]
[6238,{"$f":"Menu!$F$29","v":"X"},{"$f":"Menu!$J$29","v":2020},{"$f":"IF(ISBLANK(INDIRECT(\"'\"&F306&\"'!\"&G306)),\"\",INDIRECT(\"'\"&F306&\"'!\"&G306))","v":""},{"$f":"IF(ISBLANK(INDIRECT(\"'\"&F306&\"'!\"&H306)),\"\",IFERROR(VLOOKUP(TEXT(INDIRECT(\"'\"&F306&\"'!\"&H306),\"0\"),Notes!$B$5:$C$100,2,FALSE),\"\"))","v":""},"2b","$G$19","$H$19"]
[6239,{"$f":"Menu!$F$29","v":"X"},{"$f":"Menu!$J$29","v":2020},{"$f":"IF(ISBLANK(INDIRECT(\"'\"&F307&\"'!\"&G307)),\"\",INDIRECT(\"'\"&F307&\"'!\"&G307))","v":""},{"$f":"IF(ISBLANK(INDIRECT(\"'\"&F307&\"'!\"&H307)),\"\",IFERROR(VLOOKUP(TEXT(INDIRECT(\"'\"&F307&\"'!\"&H307),\"0\"),Notes!$B$5:$C$100,2,FALSE),\"\"))","v":""},"2b","$I$19","$J$19"]
[6240,{"$f":"Menu!$F$29","v":"X"},{"$f":"Menu!$J$29","v":2020},{"$f":"IF(ISBLANK(INDIRECT(\"'\"&F308&\"'!\"&G308)),\"\",INDIRECT(\"'\"&F308&\"'!\"&G308))","v":""},{"$f":"IF(ISBLANK(INDIRECT(\"'\"&F308&\"'!\"&H308)),\"\",IFERROR(VLOOKUP(TEXT(INDIRECT(\"'\"&F308&\"'!\"&H308),\"0\"),Notes!$B$5:$C$100,2,FALSE),\"\"))","v":""},"2b","$K$19","$L$19"]
[6241,{"$f":"Menu!$F$29","v":"X"},{"$f":"Menu!$J$29","v":2020},{"$f":"IF(ISBLANK(INDIRECT(\"'\"&F309&\"'!\"&G309)),\"\",INDIRECT(\"'\"&F309&\"'!\"&G309))","v":""},{"$f":"IF(ISBLANK(INDIRECT(\"'\"&F309&\"'!\"&H309)),\"\",IFERROR(VLOOKUP(TEXT(INDIRECT(\"'\"&F309&\"'!\"&H309),\"0\"),Notes!$B$5:$C$100,2,FALSE),\"\"))","v":""},"2b","$M$19","$N$19"]
[6242,{"$f":"Menu!$F$29","v":"X"},{"$f":"Menu!$J$29","v":2020},{"$f":"IF(ISBLANK(INDIRECT(\"'\"&F310&\"'!\"&G310)),\"\",INDIRECT(\"'\"&F310&\"'!\"&G310))","v":""},{"$f":"IF(ISBLANK(INDIRECT(\"'\"&F310&\"'!\"&H310)),\"\",IFERROR(VLOOKUP(TEXT(INDIRECT(\"'\"&F310&\"'!\"&H310),\"0\"),Notes!$B$5:$C$100,2,FALSE),\"\"))","v":""},"2b","$O$19","$P$19"]
[6243,{"$f":"Menu!$F$29","v":"X"},{"$f":"Menu!$J$29","v":2020},{"$f":"IF(ISBLANK(INDIRECT(\"'\"&F311&\"'!\"&G311)),\"\",INDIRECT(\"'\"&F311&\"'!\"&G311))","v":""},{"$f":"IF(ISBLANK(INDIRECT(\"'\"&F311&\"'!\"&H311)),\"\",IFERROR(VLOOKUP(TEXT(INDIRECT(\"'\"&F311&\"'!\"&H311),\"0\"),Notes!$B$5:$C$100,2,FALSE),\"\"))","v":""},"2b","$Q$19","$R$19"]
[6244,{"$f":"Menu!$F$29","v":"X"},{"$f":"Menu!$J$29","v":2020},{"$f":"IF(ISBLANK(INDIRECT(\"'\"&F312&\"'!\"&G312)),\"\",INDIRECT(\"'\"&F312&\"'!\"&G312))","v":""},{"$f":"IF(ISBLANK(INDIRECT(\"'\"&F312&\"'!\"&H312)),\"\",IFERROR(VLOOKUP(TEXT(INDIRECT(\"'\"&F312&\"'!\"&H312),\"0\"),Notes!$B$5:$C$100,2,FALSE),\"\"))","v":""},"2b","$S$19","$T$19"]
[6245,{"$f":"Menu!$F$29","v":"X"},{"$f":"Menu!$J$29","v":2020},{"$f":"IF(ISBLANK(INDIRECT(\"'\"&F313&\"'!\"&G313)),\"\",INDIRECT(\"'\"&F313&\"'!\"&G313))","v":""},{"$f":"IF(ISBLANK(INDIRECT(\"'\"&F313&\"'!\"&H313)),\"\",IFERROR(VLOOKUP(TEXT(INDIRECT(\"'\"&F313&\"'!\"&H313),\"0\"),Notes!$B$5:$C$100,2,FALSE),\"\"))","v":""},"2b","$U$19","$V$19"]
[6246,{"$f":"Menu!$F$29","v":"X"},{"$f":"Menu!$J$29","v":2020},{"$f":"IF(ISBLANK(INDIRECT(\"'\"&F314&\"'!\"&G314)),\"\",INDIRECT(\"'\"&F314&\"'!\"&G314))","v":""},{"$f":"IF(ISBLANK(INDIRECT(\"'\"&F314&\"'!\"&H314)),\"\",IFERROR(VLOOKUP(TEXT(INDIRECT(\"'\"&F314&\"'!\"&H314),\"0\"),Notes!$B$5:$C$100,2,FALSE),\"\"))","v":""},"2b","$W$19","$X$19"]
[6247,{"$f":"Menu!$F$29","v":"X"},{"$f":"Menu!$J$29","v":2020},{"$f":"IF(ISBLANK(INDIRECT(\"'\"&F315&\"'!\"&G315)),\"\",INDIRECT(\"'\"&F315&\"'!\"&G315))","v":""},{"$f":"IF(ISBLANK(INDIRECT(\"'\"&F315&\"'!\"&H315)),\"\",IFERROR(VLOOKUP(TEXT(INDIRECT(\"'\"&F315&\"'!\"&H315),\"0\"),Notes!$B$5:$C$100,2,FALSE),\"\"))","v":""},"2b","$Y$19","$Z$19"]
[6248,{"$f":"Menu!$F$29","v":"X"},{"$f":"Menu!$J$29","v":2020},{"$f":"IF(ISBLANK(INDIRECT(\"'\"&F316&\"'!\"&G316)),\"\",INDIRECT(\"'\"&F316&\"'!\"&G316))","v":""},{"$f":"IF(ISBLANK(INDIRECT(\"'\"&F316&\"'!\"&H316)),\"\",IFERROR(VLOOKUP(TEXT(INDIRECT(\"'\"&F316&\"'!\"&H316),\"0\"),Notes!$B$5:$C$100,2,FALSE),\"\"))","v":""},"2b","$AA$19","$AB$19"]
[6261,{"$f":"Menu!$F$29","v":"X"},{"$f":"Menu!$J$29","v":2020},{"$f":"IF(ISBLANK(INDIRECT(\"'\"&F317&\"'!\"&G317)),\"\",INDIRECT(\"'\"&F317&\"'!\"&G317))","v":""},{"$f":"IF(ISBLANK(INDIRECT(\"'\"&F317&\"'!\"&H317)),\"\",IFERROR(VLOOKUP(TEXT(INDIRECT(\"'\"&F317&\"'!\"&H317),\"0\"),Notes!$B$5:$C$100,2,FALSE),\"\"))","v":""},"2b","$E$64","$F$64"]
[6262,{"$f":"Menu!$F$29","v":"X"},{"$f":"Menu!$J$29","v":2020},{"$f":"IF(ISBLANK(INDIRECT(\"'\"&F318&\"'!\"&G318)),\"\",INDIRECT(\"'\"&F318&\"'!\"&G318))","v":""},{"$f":"IF(ISBLANK(INDIRECT(\"'\"&F318&\"'!\"&H318)),\"\",IFERROR(VLOOKUP(TEXT(INDIRECT(\"'\"&F318&\"'!\"&H318),\"0\"),Notes!$B$5:$C$100,2,FALSE),\"\"))","v":""},"2b","$G$64","$H$64"]
[6263,{"$f":"Menu!$F$29","v":"X"},{"$f":"Menu!$J$29","v":2020},{"$f":"IF(ISBLANK(INDIRECT(\"'\"&F319&\"'!\"&G319)),\"\",INDIRECT(\"'\"&F319&\"'!\"&G319))","v":""},{"$f":"IF(ISBLANK(INDIRECT(\"'\"&F319&\"'!\"&H319)),\"\",IFERROR(VLOOKUP(TEXT(INDIRECT(\"'\"&F319&\"'!\"&H319),\"0\"),Notes!$B$5:$C$100,2,FALSE),\"\"))","v":""},"2b","$I$64","$J$64"]
[6264,{"$f":"Menu!$F$29","v":"X"},{"$f":"Menu!$J$29","v":2020},{"$f":"IF(ISBLANK(INDIRECT(\"'\"&F320&\"'!\"&G320)),\"\",INDIRECT(\"'\"&F320&\"'!\"&G320))","v":""},{"$f":"IF(ISBLANK(INDIRECT(\"'\"&F320&\"'!\"&H320)),\"\",IFERROR(VLOOKUP(TEXT(INDIRECT(\"'\"&F320&\"'!\"&H320),\"0\"),Notes!$B$5:$C$100,2,FALSE),\"\"))","v":""},"2b","$K$64","$L$64"]
[6265,{"$f":"Menu!$F$29","v":"X"},{"$f":"Menu!$J$29","v":2020},{"$f":"IF(ISBLANK(INDIRECT(\"'\"&F321&\"'!\"&G321)),\"\",INDIRECT(\"'\"&F321&\"'!\"&G321))","v":""},{"$f":"IF(ISBLANK(INDIRECT(\"'\"&F321&\"'!\"&H321)),\"\",IFERROR(VLOOKUP(TEXT(INDIRECT(\"'\"&F321&\"'!\"&H321),\"0\"),Notes!$B$5:$C$100,2,FALSE),\"\"))","v":""},"2b","$M$64","$N$64"]
[6266,{"$f":"Menu!$F$29","v":"X"},{"$f":"Menu!$J$29","v":2020},{"$f":"IF(ISBLANK(INDIRECT(\"'\"&F322&\"'!\"&G322)),\"\",INDIRECT(\"'\"&F322&\"'!\"&G322))","v":""},{"$f":"IF(ISBLANK(INDIRECT(\"'\"&F322&\"'!\"&H322)),\"\",IFERROR(VLOOKUP(TEXT(INDIRECT(\"'\"&F322&\"'!\"&H322),\"0\"),Notes!$B$5:$C$100,2,FALSE),\"\"))","v":""},"2b","$O$64",{"$f":"IF(LEN(TRIM(MID(G322,4,10)))-LEN(SUBSTITUTE(TRIM(MID(G322,4,10)),\"$\",\"\"))=0,\"$\"&CHAR(CODE(MID(G322,2,1))+1)&\"$\"&TRIM(MID(G322,4,10)),\"$\"&MID(G322,2,1)&CHAR(CODE(MID(G322,3,1))+1)&\"$\"&TRIM(MID(G322,5,11)))","v":"$P$64"}]
[6267,{"$f":"Menu!$F$29","v":"X"},{"$f":"Menu!$J$29","v":2020},{"$f":"IF(ISBLANK(INDIRECT(\"'\"&F323&\"'!\"&G323)),\"\",INDIRECT(\"'\"&F323&\"'!\"&G323))","v":""},{"$f":"IF(ISBLANK(INDIRECT(\"'\"&F323&\"'!\"&H323)),\"\",IFERROR(VLOOKUP(TEXT(INDIRECT(\"'\"&F323&\"'!\"&H323),\"0\"),Notes!$B$5:$C$100,2,FALSE),\"\"))","v":""},"2b","$Q$64","$R$64"]
[6268,{"$f":"Menu!$F$29","v":"X"},{"$f":"Menu!$J$29","v":2020},{"$f":"IF(ISBLANK(INDIRECT(\"'\"&F324&\"'!\"&G324)),\"\",INDIRECT(\"'\"&F324&\"'!\"&G324))","v":""},{"$f":"IF(ISBLANK(INDIRECT(\"'\"&F324&\"'!\"&H324)),\"\",IFERROR(VLOOKUP(TEXT(INDIRECT(\"'\"&F324&\"'!\"&H324),\"0\"),Notes!$B$5:$C$100,2,FALSE),\"\"))","v":""},"2b","$S$64","$T$64"]
[6269,{"$f":"Menu!$F$29","v":"X"},{"$f":"Menu!$J$29","v":2020},{"$f":"IF(ISBLANK(INDIRECT(\"'\"&F325&\"'!\"&G325)),\"\",INDIRECT(\"'\"&F325&\"'!\"&G325))","v":""},{"$f":"IF(ISBLANK(INDIRECT(\"'\"&F325&\"'!\"&H325)),\"\",IFERROR(VLOOKUP(TEXT(INDIRECT(\"'\"&F325&\"'!\"&H325),\"0\"),Notes!$B$5:$C$100,2,FALSE),\"\"))","v":""},"2b","$U$64","$V$64"]
[6270,{"$f":"Menu!$F$29","v":"X"},{"$f":"Menu!$J$29","v":2020},{"$f":"IF(ISBLANK(INDIRECT(\"'\"&F326&\"'!\"&G326)),\"\",INDIRECT(\"'\"&F326&\"'!\"&G326))","v":""},{"$f":"IF(ISBLANK(INDIRECT(\"'\"&F326&\"'!\"&H326)),\"\",IFERROR(VLOOKUP(TEXT(INDIRECT(\"'\"&F326&\"'!\"&H326),\"0\"),Notes!$B$5:$C$100,2,FALSE),\"\"))","v":""},"2b","$W$64","$X$64"]
[6271,{"$f":"Menu!$F$29","v":"X"},{"$f":"Menu!$J$29","v":2020},{"$f":"IF(ISBLANK(INDIRECT(\"'\"&F327&\"'!\"&G327)),\"\",INDIRECT(\"'\"&F327&\"'!\"&G327))","v":""},{"$f":"IF(ISBLANK(INDIRECT(\"'\"&F327&\"'!\"&H327)),\"\",IFERROR(VLOOKUP(TEXT(INDIRECT(\"'\"&F327&\"'!\"&H327),\"0\"),Notes!$B$5:$C$100,2,FALSE),\"\"))","v":""},"2b","$Y$64","$Z$64"]
[6272,{"$f":"Menu!$F$29","v":"X"},{"$f":"Menu!$J$29","v":2020},{"$f":"IF(ISBLANK(INDIRECT(\"'\"&F328&\"'!\"&G328)),\"\",INDIRECT(\"'\"&F328&\"'!\"&G328))","v":""},{"$f":"IF(ISBLANK(INDIRECT(\"'\"&F328&\"'!\"&H328)),\"\",IFERROR(VLOOKUP(TEXT(INDIRECT(\"'\"&F328&\"'!\"&H328),\"0\"),Notes!$B$5:$C$100,2,FALSE),\"\"))","v":""},"2b","$AA$64","$AB$64"]
[6273,{"$f":"Menu!$F$29","v":"X"},{"$f":"Menu!$J$29","v":2020},{"$f":"IF(ISBLANK(INDIRECT(\"'\"&F329&\"'!\"&G329)),\"\",INDIRECT(\"'\"&F329&\"'!\"&G329))","v":""},{"$f":"IF(ISBLANK(INDIRECT(\"'\"&F329&\"'!\"&H329)),\"\",IFERROR(VLOOKUP(TEXT(INDIRECT(\"'\"&F329&\"'!\"&H329),\"0\"),Notes!$B$5:$C$100,2,FALSE),\"\"))","v":""},"2b","$E$65","$F$65"]
[6274,{"$f":"Menu!$F$29","v":"X"},{"$f":"Menu!$J$29","v":2020},{"$f":"IF(ISBLANK(INDIRECT(\"'\"&F330&\"'!\"&G330)),\"\",INDIRECT(\"'\"&F330&\"'!\"&G330))","v":""},{"$f":"IF(ISBLANK(INDIRECT(\"'\"&F330&\"'!\"&H330)),\"\",IFERROR(VLOOKUP(TEXT(INDIRECT(\"'\"&F330&\"'!\"&H330),\"0\"),Notes!$B$5:$C$100,2,FALSE),\"\"))","v":""},"2b","$G$65","$H$65"]
[6275,{"$f":"Menu!$F$29","v":"X"},{"$f":"Menu!$J$29","v":2020},{"$f":"IF(ISBLANK(INDIRECT(\"'\"&F331&\"'!\"&G331)),\"\",INDIRECT(\"'\"&F331&\"'!\"&G331))","v":""},{"$f":"IF(ISBLANK(INDIRECT(\"'\"&F331&\"'!\"&H331)),\"\",IFERROR(VLOOKUP(TEXT(INDIRECT(\"'\"&F331&\"'!\"&H331),\"0\"),Notes!$B$5:$C$100,2,FALSE),\"\"))","v":""},"2b","$I$65","$J$65"]
[6276,{"$f":"Menu!$F$29","v":"X"},{"$f":"Menu!$J$29","v":2020},{"$f":"IF(ISBLANK(INDIRECT(\"'\"&F332&\"'!\"&G332)),\"\",INDIRECT(\"'\"&F332&\"'!\"&G332))","v":""},{"$f":"IF(ISBLANK(INDIRECT(\"'\"&F332&\"'!\"&H332)),\"\",IFERROR(VLOOKUP(TEXT(INDIRECT(\"'\"&F332&\"'!\"&H332),\"0\"),Notes!$B$5:$C$100,2,FALSE),\"\"))","v":""},"2b","$K$65","$L$65"]
[6277,{"$f":"Menu!$F$29","v":"X"},{"$f":"Menu!$J$29","v":2020},{"$f":"IF(ISBLANK(INDIRECT(\"'\"&F333&\"'!\"&G333)),\"\",INDIRECT(\"'\"&F333&\"'!\"&G333))","v":""},{"$f":"IF(ISBLANK(INDIRECT(\"'\"&F333&\"'!\"&H333)),\"\",IFERROR(VLOOKUP(TEXT(INDIRECT(\"'\"&F333&\"'!\"&H333),\"0\"),Notes!$B$5:$C$100,2,FALSE),\"\"))","v":""},"2b","$M$65","$N$65"]
[6278,{"$f":"Menu!$F$29","v":"X"},{"$f":"Menu!$J$29","v":2020},{"$f":"IF(ISBLANK(INDIRECT(\"'\"&F334&\"'!\"&G334)),\"\",INDIRECT(\"'\"&F334&\"'!\"&G334))","v":""},{"$f":"IF(ISBLANK(INDIRECT(\"'\"&F334&\"'!\"&H334)),\"\",IFERROR(VLOOKUP(TEXT(INDIRECT(\"'\"&F334&\"'!\"&H334),\"0\"),Notes!$B$5:$C$100,2,FALSE),\"\"))","v":""},"2b","$O$65","$P$65"]
[6279,{"$f":"Menu!$F$29","v":"X"},{"$f":"Menu!$J$29","v":2020},{"$f":"IF(ISBLANK(INDIRECT(\"'\"&F335&\"'!\"&G335)),\"\",INDIRECT(\"'\"&F335&\"'!\"&G335))","v":""},{"$f":"IF(ISBLANK(INDIRECT(\"'\"&F335&\"'!\"&H335)),\"\",IFERROR(VLOOKUP(TEXT(INDIRECT(\"'\"&F335&\"'!\"&H335),\"0\"),Notes!$B$5:$C$100,2,FALSE),\"\"))","v":""},"2b","$Q$65","$R$65"]
[6280,{"$f":"Menu!$F$29","v":"X"},{"$f":"Menu!$J$29","v":2020},{"$f":"IF(ISBLANK(INDIRECT(\"'\"&F336&\"'!\"&G336)),\"\",INDIRECT(\"'\"&F336&\"'!\"&G336))","v":""},{"$f":"IF(ISBLANK(INDIRECT(\"'\"&F336&\"'!\"&H336)),\"\",IFERROR(VLOOKUP(TEXT(INDIRECT(\"'\"&F336&\"'!\"&H336),\"0\"),Notes!$B$5:$C$100,2,FALSE),\"\"))","v":""},"2b","$S$65","$T$65"]
[6281,{"$f":"Menu!$F$29","v":"X"},{"$f":"Menu!$J$29","v":2020},{"$f":"IF(ISBLANK(INDIRECT(\"'\"&F337&\"'!\"&G337)),\"\",INDIRECT(\"'\"&F337&\"'!\"&G337))","v":""},{"$f":"IF(ISBLANK(INDIRECT(\"'\"&F337&\"'!\"&H337)),\"\",IFERROR(VLOOKUP(TEXT(INDIRECT(\"'\"&F337&\"'!\"&H337),\"0\"),Notes!$B$5:$C$100,2,FALSE),\"\"))","v":""},"2b","$U$65","$V$65"]
[6282,{"$f":"Menu!$F$29","v":"X"},{"$f":"Menu!$J$29","v":2020},{"$f":"IF(ISBLANK(INDIRECT(\"'\"&F338&\"'!\"&G338)),\"\",INDIRECT(\"'\"&F338&\"'!\"&G338))","v":""},{"$f":"IF(ISBLANK(INDIRECT(\"'\"&F338&\"'!\"&H338)),\"\",IFERROR(VLOOKUP(TEXT(INDIRECT(\"'\"&F338&\"'!\"&H338),\"0\"),Notes!$B$5:$C$100,2,FALSE),\"\"))","v":""},"2b","$W$65","$X$65"]
[6283,{"$f":"Menu!$F$29","v":"X"},{"$f":"Menu!$J$29","v":2020},{"$f":"IF(ISBLANK(INDIRECT(\"'\"&F339&\"'!\"&G339)),\"\",INDIRECT(\"'\"&F339&\"'!\"&G339))","v":""},{"$f":"IF(ISBLANK(INDIRECT(\"'\"&F339&\"'!\"&H339)),\"\",IFERROR(VLOOKUP(TEXT(INDIRECT(\"'\"&F339&\"'!\"&H339),\"0\"),Notes!$B$5:$C$100,2,FALSE),\"\"))","v":""},"2b","$Y$65","$Z$65"]
[6284,{"$f":"Menu!$F$29","v":"X"},{"$f":"Menu!$J$29","v":2020},{"$f":"IF(ISBLANK(INDIRECT(\"'\"&F340&\"'!\"&G340)),\"\",INDIRECT(\"'\"&F340&\"'!\"&G340))","v":""},{"$f":"IF(ISBLANK(INDIRECT(\"'\"&F340&\"'!\"&H340)),\"\",IFERROR(VLOOKUP(TEXT(INDIRECT(\"'\"&F340&\"'!\"&H340),\"0\"),Notes!$B$5:$C$100,2,FALSE),\"\"))","v":""},"2b","$AA$65","$AB$65"]
[6285,{"$f":"Menu!$F$29","v":"X"},{"$f":"Menu!$J$29","v":2020},{"$f":"IF(ISBLANK(INDIRECT(\"'\"&F341&\"'!\"&G341)),\"\",INDIRECT(\"'\"&F341&\"'!\"&G341))","v":""},{"$f":"IF(ISBLANK(INDIRECT(\"'\"&F341&\"'!\"&H341)),\"\",IFERROR(VLOOKUP(TEXT(INDIRECT(\"'\"&F341&\"'!\"&H341),\"0\"),Notes!$B$5:$C$100,2,FALSE),\"\"))","v":""},"2b","$E$66","$F$66"]
[6286,{"$f":"Menu!$F$29","v":"X"},{"$f":"Menu!$J$29","v":2020},{"$f":"IF(ISBLANK(INDIRECT(\"'\"&F342&\"'!\"&G342)),\"\",INDIRECT(\"'\"&F342&\"'!\"&G342))","v":""},{"$f":"IF(ISBLANK(INDIRECT(\"'\"&F342&\"'!\"&H342)),\"\",IFERROR(VLOOKUP(TEXT(INDIRECT(\"'\"&F342&\"'!\"&H342),\"0\"),Notes!$B$5:$C$100,2,FALSE),\"\"))","v":""},"2b","$G$66","$H$66"]
[6287,{"$f":"Menu!$F$29","v":"X"},{"$f":"Menu!$J$29","v":2020},{"$f":"IF(ISBLANK(INDIRECT(\"'\"&F343&\"'!\"&G343)),\"\",INDIRECT(\"'\"&F343&\"'!\"&G343))","v":""},{"$f":"IF(ISBLANK(INDIRECT(\"'\"&F343&\"'!\"&H343)),\"\",IFERROR(VLOOKUP(TEXT(INDIRECT(\"'\"&F343&\"'!\"&H343),\"0\"),Notes!$B$5:$C$100,2,FALSE),\"\"))","v":""},"2b","$I$66","$J$66"]
[6288,{"$f":"Menu!$F$29","v":"X"},{"$f":"Menu!$J$29","v":2020},{"$f":"IF(ISBLANK(INDIRECT(\"'\"&F344&\"'!\"&G344)),\"\",INDIRECT(\"'\"&F344&\"'!\"&G344))","v":""},{"$f":"IF(ISBLANK(INDIRECT(\"'\"&F344&\"'!\"&H344)),\"\",IFERROR(VLOOKUP(TEXT(INDIRECT(\"'\"&F344&\"'!\"&H344),\"0\"),Notes!$B$5:$C$100,2,FALSE),\"\"))","v":""},"2b","$K$66","$L$66"]
[6289,{"$f":"Menu!$F$29","v":"X"},{"$f":"Menu!$J$29","v":2020},{"$f":"IF(ISBLANK(INDIRECT(\"'\"&F345&\"'!\"&G345)),\"\",INDIRECT(\"'\"&F345&\"'!\"&G345))","v":""},{"$f":"IF(ISBLANK(INDIRECT(\"'\"&F345&\"'!\"&H345)),\"\",IFERROR(VLOOKUP(TEXT(INDIRECT(\"'\"&F345&\"'!\"&H345),\"0\"),Notes!$B$5:$C$100,2,FALSE),\"\"))","v":""},"2b","$M$66","$N$66"]
[6290,{"$f":"Menu!$F$29","v":"X"},{"$f":"Menu!$J$29","v":2020},{"$f":"IF(ISBLANK(INDIRECT(\"'\"&F346&\"'!\"&G346)),\"\",INDIRECT(\"'\"&F346&\"'!\"&G346))","v":""},{"$f":"IF(ISBLANK(INDIRECT(\"'\"&F346&\"'!\"&H346)),\"\",IFERROR(VLOOKUP(TEXT(INDIRECT(\"'\"&F346&\"'!\"&H346),\"0\"),Notes!$B$5:$C$100,2,FALSE),\"\"))","v":""},"2b","$O$66","$P$66"]
[6291,{"$f":"Menu!$F$29","v":"X"},{"$f":"Menu!$J$29","v":2020},{"$f":"IF(ISBLANK(INDIRECT(\"'\"&F347&\"'!\"&G347)),\"\",INDIRECT(\"'\"&F347&\"'!\"&G347))","v":""},{"$f":"IF(ISBLANK(INDIRECT(\"'\"&F347&\"'!\"&H347)),\"\",IFERROR(VLOOKUP(TEXT(INDIRECT(\"'\"&F347&\"'!\"&H347),\"0\"),Notes!$B$5:$C$100,2,FALSE),\"\"))","v":""},"2b","$Q$66","$R$66"]
[6292,{"$f":"Menu!$F$29","v":"X"},{"$f":"Menu!$J$29","v":2020},{"$f":"IF(ISBLANK(INDIRECT(\"'\"&F348&\"'!\"&G348)),\"\",INDIRECT(\"'\"&F348&\"'!\"&G348))","v":""},{"$f":"IF(ISBLANK(INDIRECT(\"'\"&F348&\"'!\"&H348)),\"\",IFERROR(VLOOKUP(TEXT(INDIRECT(\"'\"&F348&\"'!\"&H348),\"0\"),Notes!$B$5:$C$100,2,FALSE),\"\"))","v":""},"2b","$S$66","$T$66"]
[6293,{"$f":"Menu!$F$29","v":"X"},{"$f":"Menu!$J$29","v":2020},{"$f":"IF(ISBLANK(INDIRECT(\"'\"&F349&\"'!\"&G349)),\"\",INDIRECT(\"'\"&F349&\"'!\"&G349))","v":""},{"$f":"IF(ISBLANK(INDIRECT(\"'\"&F349&\"'!\"&H349)),\"\",IFERROR(VLOOKUP(TEXT(INDIRECT(\"'\"&F349&\"'!\"&H349),\"0\"),Notes!$B$5:$C$100,2,FALSE),\"\"))","v":""},"2b","$U$66","$V$66"]
[6294,{"$f":"Menu!$F$29","v":"X"},{"$f":"Menu!$J$29","v":2020},{"$f":"IF(ISBLANK(INDIRECT(\"'\"&F350&\"'!\"&G350)),\"\",INDIRECT(\"'\"&F350&\"'!\"&G350))","v":""},{"$f":"IF(ISBLANK(INDIRECT(\"'\"&F350&\"'!\"&H350)),\"\",IFERROR(VLOOKUP(TEXT(INDIRECT(\"'\"&F350&\"'!\"&H350),\"0\"),Notes!$B$5:$C$100,2,FALSE),\"\"))","v":""},"2b","$W$66","$X$66"]
[6295,{"$f":"Menu!$F$29","v":"X"},{"$f":"Menu!$J$29","v":2020},{"$f":"IF(ISBLANK(INDIRECT(\"'\"&F351&\"'!\"&G351)),\"\",INDIRECT(\"'\"&F351&\"'!\"&G351))","v":""},{"$f":"IF(ISBLANK(INDIRECT(\"'\"&F351&\"'!\"&H351)),\"\",IFERROR(VLOOKUP(TEXT(INDIRECT(\"'\"&F351&\"'!\"&H351),\"0\"),Notes!$B$5:$C$100,2,FALSE),\"\"))","v":""},"2b","$Y$66","$Z$66"]
[6296,{"$f":"Menu!$F$29","v":"X"},{"$f":"Menu!$J$29","v":2020},{"$f":"IF(ISBLANK(INDIRECT(\"'\"&F352&\"'!\"&G352)),\"\",INDIRECT(\"'\"&F352&\"'!\"&G352))","v":""},{"$f":"IF(ISBLANK(INDIRECT(\"'\"&F352&\"'!\"&H352)),\"\",IFERROR(VLOOKUP(TEXT(INDIRECT(\"'\"&F352&\"'!\"&H352),\"0\"),Notes!$B$5:$C$100,2,FALSE),\"\"))","v":""},"2b","$AA$66","$AB$66"]
[6297,{"$f":"Menu!$F$29","v":"X"},{"$f":"Menu!$J$29","v":2020},{"$f":"IF(ISBLANK(INDIRECT(\"'\"&F353&\"'!\"&G353)),\"\",INDIRECT(\"'\"&F353&\"'!\"&G353))","v":""},{"$f":"IF(ISBLANK(INDIRECT(\"'\"&F353&\"'!\"&H353)),\"\",IFERROR(VLOOKUP(TEXT(INDIRECT(\"'\"&F353&\"'!\"&H353),\"0\"),Notes!$B$5:$C$100,2,FALSE),\"\"))","v":""},"2b","$E$67","$F$67"]
[6298,{"$f":"Menu!$F$29","v":"X"},{"$f":"Menu!$J$29","v":2020},{"$f":"IF(ISBLANK(INDIRECT(\"'\"&F354&\"'!\"&G354)),\"\",INDIRECT(\"'\"&F354&\"'!\"&G354))","v":""},{"$f":"IF(ISBLANK(INDIRECT(\"'\"&F354&\"'!\"&H354)),\"\",IFERROR(VLOOKUP(TEXT(INDIRECT(\"'\"&F354&\"'!\"&H354),\"0\"),Notes!$B$5:$C$100,2,FALSE),\"\"))","v":""},"2b","$G$67","$H$67"]
[6299,{"$f":"Menu!$F$29","v":"X"},{"$f":"Menu!$J$29","v":2020},{"$f":"IF(ISBLANK(INDIRECT(\"'\"&F355&\"'!\"&G355)),\"\",INDIRECT(\"'\"&F355&\"'!\"&G355))","v":""},{"$f":"IF(ISBLANK(INDIRECT(\"'\"&F355&\"'!\"&H355)),\"\",IFERROR(VLOOKUP(TEXT(INDIRECT(\"'\"&F355&\"'!\"&H355),\"0\"),Notes!$B$5:$C$100,2,FALSE),\"\"))","v":""},"2b","$I$67","$J$67"]
[6300,{"$f":"Menu!$F$29","v":"X"},{"$f":"Menu!$J$29","v":2020},{"$f":"IF(ISBLANK(INDIRECT(\"'\"&F356&\"'!\"&G356)),\"\",INDIRECT(\"'\"&F356&\"'!\"&G356))","v":""},{"$f":"IF(ISBLANK(INDIRECT(\"'\"&F356&\"'!\"&H356)),\"\",IFERROR(VLOOKUP(TEXT(INDIRECT(\"'\"&F356&\"'!\"&H356),\"0\"),Notes!$B$5:$C$100,2,FALSE),\"\"))","v":""},"2b","$K$67","$L$67"]
[6301,{"$f":"Menu!$F$29","v":"X"},{"$f":"Menu!$J$29","v":2020},{"$f":"IF(ISBLANK(INDIRECT(\"'\"&F357&\"'!\"&G357)),\"\",INDIRECT(\"'\"&F357&\"'!\"&G357))","v":""},{"$f":"IF(ISBLANK(INDIRECT(\"'\"&F357&\"'!\"&H357)),\"\",IFERROR(VLOOKUP(TEXT(INDIRECT(\"'\"&F357&\"'!\"&H357),\"0\"),Notes!$B$5:$C$100,2,FALSE),\"\"))","v":""},"2b","$M$67","$N$67"]
[6302,{"$f":"Menu!$F$29","v":"X"},{"$f":"Menu!$J$29","v":2020},{"$f":"IF(ISBLANK(INDIRECT(\"'\"&F358&\"'!\"&G358)),\"\",INDIRECT(\"'\"&F358&\"'!\"&G358))","v":""},{"$f":"IF(ISBLANK(INDIRECT(\"'\"&F358&\"'!\"&H358)),\"\",IFERROR(VLOOKUP(TEXT(INDIRECT(\"'\"&F358&\"'!\"&H358),\"0\"),Notes!$B$5:$C$100,2,FALSE),\"\"))","v":""},"2b","$O$67","$P$67"]
[6303,{"$f":"Menu!$F$29","v":"X"},{"$f":"Menu!$J$29","v":2020},{"$f":"IF(ISBLANK(INDIRECT(\"'\"&F359&\"'!\"&G359)),\"\",INDIRECT(\"'\"&F359&\"'!\"&G359))","v":""},{"$f":"IF(ISBLANK(INDIRECT(\"'\"&F359&\"'!\"&H359)),\"\",IFERROR(VLOOKUP(TEXT(INDIRECT(\"'\"&F359&\"'!\"&H359),\"0\"),Notes!$B$5:$C$100,2,FALSE),\"\"))","v":""},"2b","$Q$67","$R$67"]
[6304,{"$f":"Menu!$F$29","v":"X"},{"$f":"Menu!$J$29","v":2020},{"$f":"IF(ISBLANK(INDIRECT(\"'\"&F360&\"'!\"&G360)),\"\",INDIRECT(\"'\"&F360&\"'!\"&G360))","v":""},{"$f":"IF(ISBLANK(INDIRECT(\"'\"&F360&\"'!\"&H360)),\"\",IFERROR(VLOOKUP(TEXT(INDIRECT(\"'\"&F360&\"'!\"&H360),\"0\"),Notes!$B$5:$C$100,2,FALSE),\"\"))","v":""},"2b","$S$67","$T$67"]
[6305,{"$f":"Menu!$F$29","v":"X"},{"$f":"Menu!$J$29","v":2020},{"$f":"IF(ISBLANK(INDIRECT(\"'\"&F361&\"'!\"&G361)),\"\",INDIRECT(\"'\"&F361&\"'!\"&G361))","v":""},{"$f":"IF(ISBLANK(INDIRECT(\"'\"&F361&\"'!\"&H361)),\"\",IFERROR(VLOOKUP(TEXT(INDIRECT(\"'\"&F361&\"'!\"&H361),\"0\"),Notes!$B$5:$C$100,2,FALSE),\"\"))","v":""},"2b","$U$67","$V$67"]
[6306,{"$f":"Menu!$F$29","v":"X"},{"$f":"Menu!$J$29","v":2020},{"$f":"IF(ISBLANK(INDIRECT(\"'\"&F362&\"'!\"&G362)),\"\",INDIRECT(\"'\"&F362&\"'!\"&G362))","v":""},{"$f":"IF(ISBLANK(INDIRECT(\"'\"&F362&\"'!\"&H362)),\"\",IFERROR(VLOOKUP(TEXT(INDIRECT(\"'\"&F362&\"'!\"&H362),\"0\"),Notes!$B$5:$C$100,2,FALSE),\"\"))","v":""},"2b","$W$67","$X$67"]
[6307,{"$f":"Menu!$F$29","v":"X"},{"$f":"Menu!$J$29","v":2020},{"$f":"IF(ISBLANK(INDIRECT(\"'\"&F363&\"'!\"&G363)),\"\",INDIRECT(\"'\"&F363&\"'!\"&G363))","v":""},{"$f":"IF(ISBLANK(INDIRECT(\"'\"&F363&\"'!\"&H363)),\"\",IFERROR(VLOOKUP(TEXT(INDIRECT(\"'\"&F363&\"'!\"&H363),\"0\"),Notes!$B$5:$C$100,2,FALSE),\"\"))","v":""},"2b","$Y$67","$Z$67"]
[6308,{"$f":"Menu!$F$29","v":"X"},{"$f":"Menu!$J$29","v":2020},{"$f":"IF(ISBLANK(INDIRECT(\"'\"&F364&\"'!\"&G364)),\"\",INDIRECT(\"'\"&F364&\"'!\"&G364))","v":""},{"$f":"IF(ISBLANK(INDIRECT(\"'\"&F364&\"'!\"&H364)),\"\",IFERROR(VLOOKUP(TEXT(INDIRECT(\"'\"&F364&\"'!\"&H364),\"0\"),Notes!$B$5:$C$100,2,FALSE),\"\"))","v":""},"2b","$AA$67","$AB$67"]
[6309,{"$f":"Menu!$F$29","v":"X"},{"$f":"Menu!$J$29","v":2020},{"$f":"IF(ISBLANK(INDIRECT(\"'\"&F365&\"'!\"&G365)),\"\",INDIRECT(\"'\"&F365&\"'!\"&G365))","v":""},{"$f":"IF(ISBLANK(INDIRECT(\"'\"&F365&\"'!\"&H365)),\"\",IFERROR(VLOOKUP(TEXT(INDIRECT(\"'\"&F365&\"'!\"&H365),\"0\"),Notes!$B$5:$C$100,2,FALSE),\"\"))","v":""},"2b","$E$69","$F$69"]
[6310,{"$f":"Menu!$F$29","v":"X"},{"$f":"Menu!$J$29","v":2020},{"$f":"IF(ISBLANK(INDIRECT(\"'\"&F366&\"'!\"&G366)),\"\",INDIRECT(\"'\"&F366&\"'!\"&G366))","v":""},{"$f":"IF(ISBLANK(INDIRECT(\"'\"&F366&\"'!\"&H366)),\"\",IFERROR(VLOOKUP(TEXT(INDIRECT(\"'\"&F366&\"'!\"&H366),\"0\"),Notes!$B$5:$C$100,2,FALSE),\"\"))","v":""},"2b","$G$69","$H$69"]
[6311,{"$f":"Menu!$F$29","v":"X"},{"$f":"Menu!$J$29","v":2020},{"$f":"IF(ISBLANK(INDIRECT(\"'\"&F367&\"'!\"&G367)),\"\",INDIRECT(\"'\"&F367&\"'!\"&G367))","v":""},{"$f":"IF(ISBLANK(INDIRECT(\"'\"&F367&\"'!\"&H367)),\"\",IFERROR(VLOOKUP(TEXT(INDIRECT(\"'\"&F367&\"'!\"&H367),\"0\"),Notes!$B$5:$C$100,2,FALSE),\"\"))","v":""},"2b","$I$69","$J$69"]
[6312,{"$f":"Menu!$F$29","v":"X"},{"$f":"Menu!$J$29","v":2020},{"$f":"IF(ISBLANK(INDIRECT(\"'\"&F368&\"'!\"&G368)),\"\",INDIRECT(\"'\"&F368&\"'!\"&G368))","v":""},{"$f":"IF(ISBLANK(INDIRECT(\"'\"&F368&\"'!\"&H368)),\"\",IFERROR(VLOOKUP(TEXT(INDIRECT(\"'\"&F368&\"'!\"&H368),\"0\"),Notes!$B$5:$C$100,2,FALSE),\"\"))","v":""},"2b","$K$69","$L$69"]
[6313,{"$f":"Menu!$F$29","v":"X"},{"$f":"Menu!$J$29","v":2020},{"$f":"IF(ISBLANK(INDIRECT(\"'\"&F369&\"'!\"&G369)),\"\",INDIRECT(\"'\"&F369&\"'!\"&G369))","v":""},{"$f":"IF(ISBLANK(INDIRECT(\"'\"&F369&\"'!\"&H369)),\"\",IFERROR(VLOOKUP(TEXT(INDIRECT(\"'\"&F369&\"'!\"&H369),\"0\"),Notes!$B$5:$C$100,2,FALSE),\"\"))","v":""},"2b","$M$69","$N$69"]
[6314,{"$f":"Menu!$F$29","v":"X"},{"$f":"Menu!$J$29","v":2020},{"$f":"IF(ISBLANK(INDIRECT(\"'\"&F370&\"'!\"&G370)),\"\",INDIRECT(\"'\"&F370&\"'!\"&G370))","v":""},{"$f":"IF(ISBLANK(INDIRECT(\"'\"&F370&\"'!\"&H370)),\"\",IFERROR(VLOOKUP(TEXT(INDIRECT(\"'\"&F370&\"'!\"&H370),\"0\"),Notes!$B$5:$C$100,2,FALSE),\"\"))","v":""},"2b","$O$69","$P$69"]
[6315,{"$f":"Menu!$F$29","v":"X"},{"$f":"Menu!$J$29","v":2020},{"$f":"IF(ISBLANK(INDIRECT(\"'\"&F371&\"'!\"&G371)),\"\",INDIRECT(\"'\"&F371&\"'!\"&G371))","v":""},{"$f":"IF(ISBLANK(INDIRECT(\"'\"&F371&\"'!\"&H371)),\"\",IFERROR(VLOOKUP(TEXT(INDIRECT(\"'\"&F371&\"'!\"&H371),\"0\"),Notes!$B$5:$C$100,2,FALSE),\"\"))","v":""},"2b","$Q$69","$R$69"]
[6316,{"$f":"Menu!$F$29","v":"X"},{"$f":"Menu!$J$29","v":2020},{"$f":"IF(ISBLANK(INDIRECT(\"'\"&F372&\"'!\"&G372)),\"\",INDIRECT(\"'\"&F372&\"'!\"&G372))","v":""},{"$f":"IF(ISBLANK(INDIRECT(\"'\"&F372&\"'!\"&H372)),\"\",IFERROR(VLOOKUP(TEXT(INDIRECT(\"'\"&F372&\"'!\"&H372),\"0\"),Notes!$B$5:$C$100,2,FALSE),\"\"))","v":""},"2b","$S$69","$T$69"]
[6317,{"$f":"Menu!$F$29","v":"X"},{"$f":"Menu!$J$29","v":2020},{"$f":"IF(ISBLANK(INDIRECT(\"'\"&F373&\"'!\"&G373)),\"\",INDIRECT(\"'\"&F373&\"'!\"&G373))","v":""},{"$f":"IF(ISBLANK(INDIRECT(\"'\"&F373&\"'!\"&H373)),\"\",IFERROR(VLOOKUP(TEXT(INDIRECT(\"'\"&F373&\"'!\"&H373),\"0\"),Notes!$B$5:$C$100,2,FALSE),\"\"))","v":""},"2b","$U$69","$V$69"]
[6318,{"$f":"Menu!$F$29","v":"X"},{"$f":"Menu!$J$29","v":2020},{"$f":"IF(ISBLANK(INDIRECT(\"'\"&F374&\"'!\"&G374)),\"\",INDIRECT(\"'\"&F374&\"'!\"&G374))","v":""},{"$f":"IF(ISBLANK(INDIRECT(\"'\"&F374&\"'!\"&H374)),\"\",IFERROR(VLOOKUP(TEXT(INDIRECT(\"'\"&F374&\"'!\"&H374),\"0\"),Notes!$B$5:$C$100,2,FALSE),\"\"))","v":""},"2b","$W$69","$X$69"]
[6319,{"$f":"Menu!$F$29","v":"X"},{"$f":"Menu!$J$29","v":2020},{"$f":"IF(ISBLANK(INDIRECT(\"'\"&F375&\"'!\"&G375)),\"\",INDIRECT(\"'\"&F375&\"'!\"&G375))","v":""},{"$f":"IF(ISBLANK(INDIRECT(\"'\"&F375&\"'!\"&H375)),\"\",IFERROR(VLOOKUP(TEXT(INDIRECT(\"'\"&F375&\"'!\"&H375),\"0\"),Notes!$B$5:$C$100,2,FALSE),\"\"))","v":""},"2b","$Y$69","$Z$69"]
[6320,{"$f":"Menu!$F$29","v":"X"},{"$f":"Menu!$J$29","v":2020},{"$f":"IF(ISBLANK(INDIRECT(\"'\"&F376&\"'!\"&G376)),\"\",INDIRECT(\"'\"&F376&\"'!\"&G376))","v":""},{"$f":"IF(ISBLANK(INDIRECT(\"'\"&F376&\"'!\"&H376)),\"\",IFERROR(VLOOKUP(TEXT(INDIRECT(\"'\"&F376&\"'!\"&H376),\"0\"),Notes!$B$5:$C$100,2,FALSE),\"\"))","v":""},"2b","$AA$69","$AB$69"]
[6369,{"$f":"Menu!$F$29","v":"X"},{"$f":"Menu!$J$29","v":2020},{"$f":"IF(ISBLANK(INDIRECT(\"'\"&F377&\"'!\"&G377)),\"\",INDIRECT(\"'\"&F377&\"'!\"&G377))","v":""},{"$f":"IF(ISBLANK(INDIRECT(\"'\"&F377&\"'!\"&H377)),\"\",IFERROR(VLOOKUP(TEXT(INDIRECT(\"'\"&F377&\"'!\"&H377),\"0\"),Notes!$B$5:$C$100,2,FALSE),\"\"))","v":""},"2b","$E$25","$F$25"]
[6370,{"$f":"Menu!$F$29","v":"X"},{"$f":"Menu!$J$29","v":2020},{"$f":"IF(ISBLANK(INDIRECT(\"'\"&F378&\"'!\"&G378)),\"\",INDIRECT(\"'\"&F378&\"'!\"&G378))","v":""},{"$f":"IF(ISBLANK(INDIRECT(\"'\"&F378&\"'!\"&H378)),\"\",IFERROR(VLOOKUP(TEXT(INDIRECT(\"'\"&F378&\"'!\"&H378),\"0\"),Notes!$B$5:$C$100,2,FALSE),\"\"))","v":""},"2b","$G$25","$H$25"]
[6371,{"$f":"Menu!$F$29","v":"X"},{"$f":"Menu!$J$29","v":2020},{"$f":"IF(ISBLANK(INDIRECT(\"'\"&F379&\"'!\"&G379)),\"\",INDIRECT(\"'\"&F379&\"'!\"&G379))","v":""},{"$f":"IF(ISBLANK(INDIRECT(\"'\"&F379&\"'!\"&H379)),\"\",IFERROR(VLOOKUP(TEXT(INDIRECT(\"'\"&F379&\"'!\"&H379),\"0\"),Notes!$B$5:$C$100,2,FALSE),\"\"))","v":""},"2b","$I$25","$J$25"]
[6372,{"$f":"Menu!$F$29","v":"X"},{"$f":"Menu!$J$29","v":2020},{"$f":"IF(ISBLANK(INDIRECT(\"'\"&F380&\"'!\"&G380)),\"\",INDIRECT(\"'\"&F380&\"'!\"&G380))","v":""},{"$f":"IF(ISBLANK(INDIRECT(\"'\"&F380&\"'!\"&H380)),\"\",IFERROR(VLOOKUP(TEXT(INDIRECT(\"'\"&F380&\"'!\"&H380),\"0\"),Notes!$B$5:$C$100,2,FALSE),\"\"))","v":""},"2b","$K$25","$L$25"]
[6373,{"$f":"Menu!$F$29","v":"X"},{"$f":"Menu!$J$29","v":2020},{"$f":"IF(ISBLANK(INDIRECT(\"'\"&F381&\"'!\"&G381)),\"\",INDIRECT(\"'\"&F381&\"'!\"&G381))","v":""},{"$f":"IF(ISBLANK(INDIRECT(\"'\"&F381&\"'!\"&H381)),\"\",IFERROR(VLOOKUP(TEXT(INDIRECT(\"'\"&F381&\"'!\"&H381),\"0\"),Notes!$B$5:$C$100,2,FALSE),\"\"))","v":""},"2b","$M$25","$N$25"]
[6374,{"$f":"Menu!$F$29","v":"X"},{"$f":"Menu!$J$29","v":2020},{"$f":"IF(ISBLANK(INDIRECT(\"'\"&F382&\"'!\"&G382)),\"\",INDIRECT(\"'\"&F382&\"'!\"&G382))","v":""},{"$f":"IF(ISBLANK(INDIRECT(\"'\"&F382&\"'!\"&H382)),\"\",IFERROR(VLOOKUP(TEXT(INDIRECT(\"'\"&F382&\"'!\"&H382),\"0\"),Notes!$B$5:$C$100,2,FALSE),\"\"))","v":""},"2b","$O$25","$P$25"]
[6375,{"$f":"Menu!$F$29","v":"X"},{"$f":"Menu!$J$29","v":2020},{"$f":"IF(ISBLANK(INDIRECT(\"'\"&F383&\"'!\"&G383)),\"\",INDIRECT(\"'\"&F383&\"'!\"&G383))","v":""},{"$f":"IF(ISBLANK(INDIRECT(\"'\"&F383&\"'!\"&H383)),\"\",IFERROR(VLOOKUP(TEXT(INDIRECT(\"'\"&F383&\"'!\"&H383),\"0\"),Notes!$B$5:$C$100,2,FALSE),\"\"))","v":""},"2b","$Q$25","$R$25"]
[6376,{"$f":"Menu!$F$29","v":"X"},{"$f":"Menu!$J$29","v":2020},{"$f":"IF(ISBLANK(INDIRECT(\"'\"&F384&\"'!\"&G384)),\"\",INDIRECT(\"'\"&F384&\"'!\"&G384))","v":""},{"$f":"IF(ISBLANK(INDIRECT(\"'\"&F384&\"'!\"&H384)),\"\",IFERROR(VLOOKUP(TEXT(INDIRECT(\"'\"&F384&\"'!\"&H384),\"0\"),Notes!$B$5:$C$100,2,FALSE),\"\"))","v":""},"2b","$S$25","$T$25"]
[6377,{"$f":"Menu!$F$29","v":"X"},{"$f":"Menu!$J$29","v":2020},{"$f":"IF(ISBLANK(INDIRECT(\"'\"&F385&\"'!\"&G385)),\"\",INDIRECT(\"'\"&F385&\"'!\"&G385))","v":""},{"$f":"IF(ISBLANK(INDIRECT(\"'\"&F385&\"'!\"&H385)),\"\",IFERROR(VLOOKUP(TEXT(INDIRECT(\"'\"&F385&\"'!\"&H385),\"0\"),Notes!$B$5:$C$100,2,FALSE),\"\"))","v":""},"2b","$U$25","$V$25"]
[6378,{"$f":"Menu!$F$29","v":"X"},{"$f":"Menu!$J$29","v":2020},{"$f":"IF(ISBLANK(INDIRECT(\"'\"&F386&\"'!\"&G386)),\"\",INDIRECT(\"'\"&F386&\"'!\"&G386))","v":""},{"$f":"IF(ISBLANK(INDIRECT(\"'\"&F386&\"'!\"&H386)),\"\",IFERROR(VLOOKUP(TEXT(INDIRECT(\"'\"&F386&\"'!\"&H386),\"0\"),Notes!$B$5:$C$100,2,FALSE),\"\"))","v":""},"2b","$W$25",{"$f":"IF(LEN(TRIM(MID(G386,4,10)))-LEN(SUBSTITUTE(TRIM(MID(G386,4,10)),\"$\",\"\"))=0,\"$\"&CHAR(CODE(MID(G386,2,1))+1)&\"$\"&TRIM(MID(G386,4,10)),\"$\"&MID(G386,2,1)&CHAR(CODE(MID(G386,3,1))+1)&\"$\"&TRIM(MID(G386,5,11)))","v":"$X$25"}]
[6379,{"$f":"Menu!$F$29","v":"X"},{"$f":"Menu!$J$29","v":2020},{"$f":"IF(ISBLANK(INDIRECT(\"'\"&F387&\"'!\"&G387)),\"\",INDIRECT(\"'\"&F387&\"'!\"&G387))","v":""},{"$f":"IF(ISBLANK(INDIRECT(\"'\"&F387&\"'!\"&H387)),\"\",IFERROR(VLOOKUP(TEXT(INDIRECT(\"'\"&F387&\"'!\"&H387),\"0\"),Notes!$B$5:$C$100,2,FALSE),\"\"))","v":""},"2b","$Y$25","$Z$25"]
[6380,{"$f":"Menu!$F$29","v":"X"},{"$f":"Menu!$J$29","v":2020},{"$f":"IF(ISBLANK(INDIRECT(\"'\"&F388&\"'!\"&G388)),\"\",INDIRECT(\"'\"&F388&\"'!\"&G388))","v":""},{"$f":"IF(ISBLANK(INDIRECT(\"'\"&F388&\"'!\"&H388)),\"\",IFERROR(VLOOKUP(TEXT(INDIRECT(\"'\"&F388&\"'!\"&H388),\"0\"),Notes!$B$5:$C$100,2,FALSE),\"\"))","v":""},"2b","$AA$25","$AB$25"]
[6393,{"$f":"Menu!$F$29","v":"X"},{"$f":"Menu!$J$29","v":2020},{"$f":"IF(ISBLANK(INDIRECT(\"'\"&F389&\"'!\"&G389)),\"\",INDIRECT(\"'\"&F389&\"'!\"&G389))","v":""},{"$f":"IF(ISBLANK(INDIRECT(\"'\"&F389&\"'!\"&H389)),\"\",IFERROR(VLOOKUP(TEXT(INDIRECT(\"'\"&F389&\"'!\"&H389),\"0\"),Notes!$B$5:$C$100,2,FALSE),\"\"))","v":""},"2b","$E$88","$F$88"]
[6394,{"$f":"Menu!$F$29","v":"X"},{"$f":"Menu!$J$29","v":2020},{"$f":"IF(ISBLANK(INDIRECT(\"'\"&F390&\"'!\"&G390)),\"\",INDIRECT(\"'\"&F390&\"'!\"&G390))","v":""},{"$f":"IF(ISBLANK(INDIRECT(\"'\"&F390&\"'!\"&H390)),\"\",IFERROR(VLOOKUP(TEXT(INDIRECT(\"'\"&F390&\"'!\"&H390),\"0\"),Notes!$B$5:$C$100,2,FALSE),\"\"))","v":""},"2b","$G$88","$H$88"]
[6395,{"$f":"Menu!$F$29","v":"X"},{"$f":"Menu!$J$29","v":2020},{"$f":"IF(ISBLANK(INDIRECT(\"'\"&F391&\"'!\"&G391)),\"\",INDIRECT(\"'\"&F391&\"'!\"&G391))","v":""},{"$f":"IF(ISBLANK(INDIRECT(\"'\"&F391&\"'!\"&H391)),\"\",IFERROR(VLOOKUP(TEXT(INDIRECT(\"'\"&F391&\"'!\"&H391),\"0\"),Notes!$B$5:$C$100,2,FALSE),\"\"))","v":""},"2b","$I$88","$J$88"]
[6396,{"$f":"Menu!$F$29","v":"X"},{"$f":"Menu!$J$29","v":2020},{"$f":"IF(ISBLANK(INDIRECT(\"'\"&F392&\"'!\"&G392)),\"\",INDIRECT(\"'\"&F392&\"'!\"&G392))","v":""},{"$f":"IF(ISBLANK(INDIRECT(\"'\"&F392&\"'!\"&H392)),\"\",IFERROR(VLOOKUP(TEXT(INDIRECT(\"'\"&F392&\"'!\"&H392),\"0\"),Notes!$B$5:$C$100,2,FALSE),\"\"))","v":""},"2b","$K$88","$L$88"]
[6397,{"$f":"Menu!$F$29","v":"X"},{"$f":"Menu!$J$29","v":2020},{"$f":"IF(ISBLANK(INDIRECT(\"'\"&F393&\"'!\"&G393)),\"\",INDIRECT(\"'\"&F393&\"'!\"&G393))","v":""},{"$f":"IF(ISBLANK(INDIRECT(\"'\"&F393&\"'!\"&H393)),\"\",IFERROR(VLOOKUP(TEXT(INDIRECT(\"'\"&F393&\"'!\"&H393),\"0\"),Notes!$B$5:$C$100,2,FALSE),\"\"))","v":""},"2b","$M$88","$N$88"]
[6398,{"$f":"Menu!$F$29","v":"X"},{"$f":"Menu!$J$29","v":2020},{"$f":"IF(ISBLANK(INDIRECT(\"'\"&F394&\"'!\"&G394)),\"\",INDIRECT(\"'\"&F394&\"'!\"&G394))","v":""},{"$f":"IF(ISBLANK(INDIRECT(\"'\"&F394&\"'!\"&H394)),\"\",IFERROR(VLOOKUP(TEXT(INDIRECT(\"'\"&F394&\"'!\"&H394),\"0\"),Notes!$B$5:$C$100,2,FALSE),\"\"))","v":""},"2b","$O$88","$P$88"]
[6399,{"$f":"Menu!$F$29","v":"X"},{"$f":"Menu!$J$29","v":2020},{"$f":"IF(ISBLANK(INDIRECT(\"'\"&F395&\"'!\"&G395)),\"\",INDIRECT(\"'\"&F395&\"'!\"&G395))","v":""},{"$f":"IF(ISBLANK(INDIRECT(\"'\"&F395&\"'!\"&H395)),\"\",IFERROR(VLOOKUP(TEXT(INDIRECT(\"'\"&F395&\"'!\"&H395),\"0\"),Notes!$B$5:$C$100,2,FALSE),\"\"))","v":""},"2b","$Q$88","$R$88"]
[6400,{"$f":"Menu!$F$29","v":"X"},{"$f":"Menu!$J$29","v":2020},{"$f":"IF(ISBLANK(INDIRECT(\"'\"&F396&\"'!\"&G396)),\"\",INDIRECT(\"'\"&F396&\"'!\"&G396))","v":""},{"$f":"IF(ISBLANK(INDIRECT(\"'\"&F396&\"'!\"&H396)),\"\",IFERROR(VLOOKUP(TEXT(INDIRECT(\"'\"&F396&\"'!\"&H396),\"0\"),Notes!$B$5:$C$100,2,FALSE),\"\"))","v":""},"2b","$S$88","$T$88"]
[6401,{"$f":"Menu!$F$29","v":"X"},{"$f":"Menu!$J$29","v":2020},{"$f":"IF(ISBLANK(INDIRECT(\"'\"&F397&\"'!\"&G397)),\"\",INDIRECT(\"'\"&F397&\"'!\"&G397))","v":""},{"$f":"IF(ISBLANK(INDIRECT(\"'\"&F397&\"'!\"&H397)),\"\",IFERROR(VLOOKUP(TEXT(INDIRECT(\"'\"&F397&\"'!\"&H397),\"0\"),Notes!$B$5:$C$100,2,FALSE),\"\"))","v":""},"2b","$U$88","$V$88"]
[6402,{"$f":"Menu!$F$29","v":"X"},{"$f":"Menu!$J$29","v":2020},{"$f":"IF(ISBLANK(INDIRECT(\"'\"&F398&\"'!\"&G398)),\"\",INDIRECT(\"'\"&F398&\"'!\"&G398))","v":""},{"$f":"IF(ISBLANK(INDIRECT(\"'\"&F398&\"'!\"&H398)),\"\",IFERROR(VLOOKUP(TEXT(INDIRECT(\"'\"&F398&\"'!\"&H398),\"0\"),Notes!$B$5:$C$100,2,FALSE),\"\"))","v":""},"2b","$W$88","$X$88"]
[6403,{"$f":"Menu!$F$29","v":"X"},{"$f":"Menu!$J$29","v":2020},{"$f":"IF(ISBLANK(INDIRECT(\"'\"&F399&\"'!\"&G399)),\"\",INDIRECT(\"'\"&F399&\"'!\"&G399))","v":""},{"$f":"IF(ISBLANK(INDIRECT(\"'\"&F399&\"'!\"&H399)),\"\",IFERROR(VLOOKUP(TEXT(INDIRECT(\"'\"&F399&\"'!\"&H399),\"0\"),Notes!$B$5:$C$100,2,FALSE),\"\"))","v":""},"2b","$Y$88","$Z$88"]
[6404,{"$f":"Menu!$F$29","v":"X"},{"$f":"Menu!$J$29","v":2020},{"$f":"IF(ISBLANK(INDIRECT(\"'\"&F400&\"'!\"&G400)),\"\",INDIRECT(\"'\"&F400&\"'!\"&G400))","v":""},{"$f":"IF(ISBLANK(INDIRECT(\"'\"&F400&\"'!\"&H400)),\"\",IFERROR(VLOOKUP(TEXT(INDIRECT(\"'\"&F400&\"'!\"&H400),\"0\"),Notes!$B$5:$C$100,2,FALSE),\"\"))","v":""},"2b","$AA$88","$AB$88"]
[6405,{"$f":"Menu!$F$29","v":"X"},{"$f":"Menu!$J$29","v":2020},{"$f":"IF(ISBLANK(INDIRECT(\"'\"&F401&\"'!\"&G401)),\"\",INDIRECT(\"'\"&F401&\"'!\"&G401))","v":""},{"$f":"IF(ISBLANK(INDIRECT(\"'\"&F401&\"'!\"&H401)),\"\",IFERROR(VLOOKUP(TEXT(INDIRECT(\"'\"&F401&\"'!\"&H401),\"0\"),Notes!$B$5:$C$100,2,FALSE),\"\"))","v":""},"2b","$E$93","$F$93"]
[6406,{"$f":"Menu!$F$29","v":"X"},{"$f":"Menu!$J$29","v":2020},{"$f":"IF(ISBLANK(INDIRECT(\"'\"&F402&\"'!\"&G402)),\"\",INDIRECT(\"'\"&F402&\"'!\"&G402))","v":""},{"$f":"IF(ISBLANK(INDIRECT(\"'\"&F402&\"'!\"&H402)),\"\",IFERROR(VLOOKUP(TEXT(INDIRECT(\"'\"&F402&\"'!\"&H402),\"0\"),Notes!$B$5:$C$100,2,FALSE),\"\"))","v":""},"2b","$G$93","$H$93"]
[6407,{"$f":"Menu!$F$29","v":"X"},{"$f":"Menu!$J$29","v":2020},{"$f":"IF(ISBLANK(INDIRECT(\"'\"&F403&\"'!\"&G403)),\"\",INDIRECT(\"'\"&F403&\"'!\"&G403))","v":""},{"$f":"IF(ISBLANK(INDIRECT(\"'\"&F403&\"'!\"&H403)),\"\",IFERROR(VLOOKUP(TEXT(INDIRECT(\"'\"&F403&\"'!\"&H403),\"0\"),Notes!$B$5:$C$100,2,FALSE),\"\"))","v":""},"2b","$I$93","$J$93"]
[6408,{"$f":"Menu!$F$29","v":"X"},{"$f":"Menu!$J$29","v":2020},{"$f":"IF(ISBLANK(INDIRECT(\"'\"&F404&\"'!\"&G404)),\"\",INDIRECT(\"'\"&F404&\"'!\"&G404))","v":""},{"$f":"IF(ISBLANK(INDIRECT(\"'\"&F404&\"'!\"&H404)),\"\",IFERROR(VLOOKUP(TEXT(INDIRECT(\"'\"&F404&\"'!\"&H404),\"0\"),Notes!$B$5:$C$100,2,FALSE),\"\"))","v":""},"2b","$K$93","$L$93"]
[6409,{"$f":"Menu!$F$29","v":"X"},{"$f":"Menu!$J$29","v":2020},{"$f":"IF(ISBLANK(INDIRECT(\"'\"&F405&\"'!\"&G405)),\"\",INDIRECT(\"'\"&F405&\"'!\"&G405))","v":""},{"$f":"IF(ISBLANK(INDIRECT(\"'\"&F405&\"'!\"&H405)),\"\",IFERROR(VLOOKUP(TEXT(INDIRECT(\"'\"&F405&\"'!\"&H405),\"0\"),Notes!$B$5:$C$100,2,FALSE),\"\"))","v":""},"2b","$M$93","$N$93"]
[6410,{"$f":"Menu!$F$29","v":"X"},{"$f":"Menu!$J$29","v":2020},{"$f":"IF(ISBLANK(INDIRECT(\"'\"&F406&\"'!\"&G406)),\"\",INDIRECT(\"'\"&F406&\"'!\"&G406))","v":""},{"$f":"IF(ISBLANK(INDIRECT(\"'\"&F406&\"'!\"&H406)),\"\",IFERROR(VLOOKUP(TEXT(INDIRECT(\"'\"&F406&\"'!\"&H406),\"0\"),Notes!$B$5:$C$100,2,FALSE),\"\"))","v":""},"2b","$O$93","$P$93"]
[6411,{"$f":"Menu!$F$29","v":"X"},{"$f":"Menu!$J$29","v":2020},{"$f":"IF(ISBLANK(INDIRECT(\"'\"&F407&\"'!\"&G407)),\"\",INDIRECT(\"'\"&F407&\"'!\"&G407))","v":""},{"$f":"IF(ISBLANK(INDIRECT(\"'\"&F407&\"'!\"&H407)),\"\",IFERROR(VLOOKUP(TEXT(INDIRECT(\"'\"&F407&\"'!\"&H407),\"0\"),Notes!$B$5:$C$100,2,FALSE),\"\"))","v":""},"2b","$Q$93","$R$93"]
[6412,{"$f":"Menu!$F$29","v":"X"},{"$f":"Menu!$J$29","v":2020},{"$f":"IF(ISBLANK(INDIRECT(\"'\"&F408&\"'!\"&G408)),\"\",INDIRECT(\"'\"&F408&\"'!\"&G408))","v":""},{"$f":"IF(ISBLANK(INDIRECT(\"'\"&F408&\"'!\"&H408)),\"\",IFERROR(VLOOKUP(TEXT(INDIRECT(\"'\"&F408&\"'!\"&H408),\"0\"),Notes!$B$5:$C$100,2,FALSE),\"\"))","v":""},"2b","$S$93","$T$93"]
[6413,{"$f":"Menu!$F$29","v":"X"},{"$f":"Menu!$J$29","v":2020},{"$f":"IF(ISBLANK(INDIRECT(\"'\"&F409&\"'!\"&G409)),\"\",INDIRECT(\"'\"&F409&\"'!\"&G409))","v":""},{"$f":"IF(ISBLANK(INDIRECT(\"'\"&F409&\"'!\"&H409)),\"\",IFERROR(VLOOKUP(TEXT(INDIRECT(\"'\"&F409&\"'!\"&H409),\"0\"),Notes!$B$5:$C$100,2,FALSE),\"\"))","v":""},"2b","$U$93","$V$93"]
[6414,{"$f":"Menu!$F$29","v":"X"},{"$f":"Menu!$J$29","v":2020},{"$f":"IF(ISBLANK(INDIRECT(\"'\"&F410&\"'!\"&G410)),\"\",INDIRECT(\"'\"&F410&\"'!\"&G410))","v":""},{"$f":"IF(ISBLANK(INDIRECT(\"'\"&F410&\"'!\"&H410)),\"\",IFERROR(VLOOKUP(TEXT(INDIRECT(\"'\"&F410&\"'!\"&H410),\"0\"),Notes!$B$5:$C$100,2,FALSE),\"\"))","v":""},"2b","$W$93","$X$93"]
[6415,{"$f":"Menu!$F$29","v":"X"},{"$f":"Menu!$J$29","v":2020},{"$f":"IF(ISBLANK(INDIRECT(\"'\"&F411&\"'!\"&G411)),\"\",INDIRECT(\"'\"&F411&\"'!\"&G411))","v":""},{"$f":"IF(ISBLANK(INDIRECT(\"'\"&F411&\"'!\"&H411)),\"\",IFERROR(VLOOKUP(TEXT(INDIRECT(\"'\"&F411&\"'!\"&H411),\"0\"),Notes!$B$5:$C$100,2,FALSE),\"\"))","v":""},"2b","$Y$93","$Z$93"]
[6416,{"$f":"Menu!$F$29","v":"X"},{"$f":"Menu!$J$29","v":2020},{"$f":"IF(ISBLANK(INDIRECT(\"'\"&F412&\"'!\"&G412)),\"\",INDIRECT(\"'\"&F412&\"'!\"&G412))","v":""},{"$f":"IF(ISBLANK(INDIRECT(\"'\"&F412&\"'!\"&H412)),\"\",IFERROR(VLOOKUP(TEXT(INDIRECT(\"'\"&F412&\"'!\"&H412),\"0\"),Notes!$B$5:$C$100,2,FALSE),\"\"))","v":""},"2b","$AA$93","$AB$93"]
[6417,{"$f":"Menu!$F$29","v":"X"},{"$f":"Menu!$J$29","v":2020},{"$f":"IF(ISBLANK(INDIRECT(\"'\"&F413&\"'!\"&G413)),\"\",INDIRECT(\"'\"&F413&\"'!\"&G413))","v":""},{"$f":"IF(ISBLANK(INDIRECT(\"'\"&F413&\"'!\"&H413)),\"\",IFERROR(VLOOKUP(TEXT(INDIRECT(\"'\"&F413&\"'!\"&H413),\"0\"),Notes!$B$5:$C$100,2,FALSE),\"\"))","v":""},"2b","$E$91","$F$91"]
[6418,{"$f":"Menu!$F$29","v":"X"},{"$f":"Menu!$J$29","v":2020},{"$f":"IF(ISBLANK(INDIRECT(\"'\"&F414&\"'!\"&G414)),\"\",INDIRECT(\"'\"&F414&\"'!\"&G414))","v":""},{"$f":"IF(ISBLANK(INDIRECT(\"'\"&F414&\"'!\"&H414)),\"\",IFERROR(VLOOKUP(TEXT(INDIRECT(\"'\"&F414&\"'!\"&H414),\"0\"),Notes!$B$5:$C$100,2,FALSE),\"\"))","v":""},"2b","$G$91","$H$91"]
[6419,{"$f":"Menu!$F$29","v":"X"},{"$f":"Menu!$J$29","v":2020},{"$f":"IF(ISBLANK(INDIRECT(\"'\"&F415&\"'!\"&G415)),\"\",INDIRECT(\"'\"&F415&\"'!\"&G415))","v":""},{"$f":"IF(ISBLANK(INDIRECT(\"'\"&F415&\"'!\"&H415)),\"\",IFERROR(VLOOKUP(TEXT(INDIRECT(\"'\"&F415&\"'!\"&H415),\"0\"),Notes!$B$5:$C$100,2,FALSE),\"\"))","v":""},"2b","$I$91","$J$91"]
[6420,{"$f":"Menu!$F$29","v":"X"},{"$f":"Menu!$J$29","v":2020},{"$f":"IF(ISBLANK(INDIRECT(\"'\"&F416&\"'!\"&G416)),\"\",INDIRECT(\"'\"&F416&\"'!\"&G416))","v":""},{"$f":"IF(ISBLANK(INDIRECT(\"'\"&F416&\"'!\"&H416)),\"\",IFERROR(VLOOKUP(TEXT(INDIRECT(\"'\"&F416&\"'!\"&H416),\"0\"),Notes!$B$5:$C$100,2,FALSE),\"\"))","v":""},"2b","$K$91","$L$91"]
[6421,{"$f":"Menu!$F$29","v":"X"},{"$f":"Menu!$J$29","v":2020},{"$f":"IF(ISBLANK(INDIRECT(\"'\"&F417&\"'!\"&G417)),\"\",INDIRECT(\"'\"&F417&\"'!\"&G417))","v":""},{"$f":"IF(ISBLANK(INDIRECT(\"'\"&F417&\"'!\"&H417)),\"\",IFERROR(VLOOKUP(TEXT(INDIRECT(\"'\"&F417&\"'!\"&H417),\"0\"),Notes!$B$5:$C$100,2,FALSE),\"\"))","v":""},"2b","$M$91","$N$91"]
[6422,{"$f":"Menu!$F$29","v":"X"},{"$f":"Menu!$J$29","v":2020},{"$f":"IF(ISBLANK(INDIRECT(\"'\"&F418&\"'!\"&G418)),\"\",INDIRECT(\"'\"&F418&\"'!\"&G418))","v":""},{"$f":"IF(ISBLANK(INDIRECT(\"'\"&F418&\"'!\"&H418)),\"\",IFERROR(VLOOKUP(TEXT(INDIRECT(\"'\"&F418&\"'!\"&H418),\"0\"),Notes!$B$5:$C$100,2,FALSE),\"\"))","v":""},"2b","$O$91","$P$91"]
[6423,{"$f":"Menu!$F$29","v":"X"},{"$f":"Menu!$J$29","v":2020},{"$f":"IF(ISBLANK(INDIRECT(\"'\"&F419&\"'!\"&G419)),\"\",INDIRECT(\"'\"&F419&\"'!\"&G419))","v":""},{"$f":"IF(ISBLANK(INDIRECT(\"'\"&F419&\"'!\"&H419)),\"\",IFERROR(VLOOKUP(TEXT(INDIRECT(\"'\"&F419&\"'!\"&H419),\"0\"),Notes!$B$5:$C$100,2,FALSE),\"\"))","v":""},"2b","$Q$91","$R$91"]
[6424,{"$f":"Menu!$F$29","v":"X"},{"$f":"Menu!$J$29","v":2020},{"$f":"IF(ISBLANK(INDIRECT(\"'\"&F420&\"'!\"&G420)),\"\",INDIRECT(\"'\"&F420&\"'!\"&G420))","v":""},{"$f":"IF(ISBLANK(INDIRECT(\"'\"&F420&\"'!\"&H420)),\"\",IFERROR(VLOOKUP(TEXT(INDIRECT(\"'\"&F420&\"'!\"&H420),\"0\"),Notes!$B$5:$C$100,2,FALSE),\"\"))","v":""},"2b","$S$91","$T$91"]
[6425,{"$f":"Menu!$F$29","v":"X"},{"$f":"Menu!$J$29","v":2020},{"$f":"IF(ISBLANK(INDIRECT(\"'\"&F421&\"'!\"&G421)),\"\",INDIRECT(\"'\"&F421&\"'!\"&G421))","v":""},{"$f":"IF(ISBLANK(INDIRECT(\"'\"&F421&\"'!\"&H421)),\"\",IFERROR(VLOOKUP(TEXT(INDIRECT(\"'\"&F421&\"'!\"&H421),\"0\"),Notes!$B$5:$C$100,2,FALSE),\"\"))","v":""},"2b","$U$91","$V$91"]
[6426,{"$f":"Menu!$F$29","v":"X"},{"$f":"Menu!$J$29","v":2020},{"$f":"IF(ISBLANK(INDIRECT(\"'\"&F422&\"'!\"&G422)),\"\",INDIRECT(\"'\"&F422&\"'!\"&G422))","v":""},{"$f":"IF(ISBLANK(INDIRECT(\"'\"&F422&\"'!\"&H422)),\"\",IFERROR(VLOOKUP(TEXT(INDIRECT(\"'\"&F422&\"'!\"&H422),\"0\"),Notes!$B$5:$C$100,2,FALSE),\"\"))","v":""},"2b","$W$91","$X$91"]
[6427,{"$f":"Menu!$F$29","v":"X"},{"$f":"Menu!$J$29","v":2020},{"$f":"IF(ISBLANK(INDIRECT(\"'\"&F423&\"'!\"&G423)),\"\",INDIRECT(\"'\"&F423&\"'!\"&G423))","v":""},{"$f":"IF(ISBLANK(INDIRECT(\"'\"&F423&\"'!\"&H423)),\"\",IFERROR(VLOOKUP(TEXT(INDIRECT(\"'\"&F423&\"'!\"&H423),\"0\"),Notes!$B$5:$C$100,2,FALSE),\"\"))","v":""},"2b","$Y$91","$Z$91"]
[6428,{"$f":"Menu!$F$29","v":"X"},{"$f":"Menu!$J$29","v":2020},{"$f":"IF(ISBLANK(INDIRECT(\"'\"&F424&\"'!\"&G424)),\"\",INDIRECT(\"'\"&F424&\"'!\"&G424))","v":""},{"$f":"IF(ISBLANK(INDIRECT(\"'\"&F424&\"'!\"&H424)),\"\",IFERROR(VLOOKUP(TEXT(INDIRECT(\"'\"&F424&\"'!\"&H424),\"0\"),Notes!$B$5:$C$100,2,FALSE),\"\"))","v":""},"2b","$AA$91","$AB$91"]
[6429,{"$f":"Menu!$F$29","v":"X"},{"$f":"Menu!$J$29","v":2020},{"$f":"IF(ISBLANK(INDIRECT(\"'\"&F425&\"'!\"&G425)),\"\",INDIRECT(\"'\"&F425&\"'!\"&G425))","v":""},{"$f":"IF(ISBLANK(INDIRECT(\"'\"&F425&\"'!\"&H425)),\"\",IFERROR(VLOOKUP(TEXT(INDIRECT(\"'\"&F425&\"'!\"&H425),\"0\"),Notes!$B$5:$C$100,2,FALSE),\"\"))","v":""},"2b","$E$32","$F$32"]
[6430,{"$f":"Menu!$F$29","v":"X"},{"$f":"Menu!$J$29","v":2020},{"$f":"IF(ISBLANK(INDIRECT(\"'\"&F426&\"'!\"&G426)),\"\",INDIRECT(\"'\"&F426&\"'!\"&G426))","v":""},{"$f":"IF(ISBLANK(INDIRECT(\"'\"&F426&\"'!\"&H426)),\"\",IFERROR(VLOOKUP(TEXT(INDIRECT(\"'\"&F426&\"'!\"&H426),\"0\"),Notes!$B$5:$C$100,2,FALSE),\"\"))","v":""},"2b","$G$32","$H$32"]
[6431,{"$f":"Menu!$F$29","v":"X"},{"$f":"Menu!$J$29","v":2020},{"$f":"IF(ISBLANK(INDIRECT(\"'\"&F427&\"'!\"&G427)),\"\",INDIRECT(\"'\"&F427&\"'!\"&G427))","v":""},{"$f":"IF(ISBLANK(INDIRECT(\"'\"&F427&\"'!\"&H427)),\"\",IFERROR(VLOOKUP(TEXT(INDIRECT(\"'\"&F427&\"'!\"&H427),\"0\"),Notes!$B$5:$C$100,2,FALSE),\"\"))","v":""},"2b","$I$32","$J$32"]
[6432,{"$f":"Menu!$F$29","v":"X"},{"$f":"Menu!$J$29","v":2020},{"$f":"IF(ISBLANK(INDIRECT(\"'\"&F428&\"'!\"&G428)),\"\",INDIRECT(\"'\"&F428&\"'!\"&G428))","v":""},{"$f":"IF(ISBLANK(INDIRECT(\"'\"&F428&\"'!\"&H428)),\"\",IFERROR(VLOOKUP(TEXT(INDIRECT(\"'\"&F428&\"'!\"&H428),\"0\"),Notes!$B$5:$C$100,2,FALSE),\"\"))","v":""},"2b","$K$32","$L$32"]
[6433,{"$f":"Menu!$F$29","v":"X"},{"$f":"Menu!$J$29","v":2020},{"$f":"IF(ISBLANK(INDIRECT(\"'\"&F429&\"'!\"&G429)),\"\",INDIRECT(\"'\"&F429&\"'!\"&G429))","v":""},{"$f":"IF(ISBLANK(INDIRECT(\"'\"&F429&\"'!\"&H429)),\"\",IFERROR(VLOOKUP(TEXT(INDIRECT(\"'\"&F429&\"'!\"&H429),\"0\"),Notes!$B$5:$C$100,2,FALSE),\"\"))","v":""},"2b","$M$32","$N$32"]
[6434,{"$f":"Menu!$F$29","v":"X"},{"$f":"Menu!$J$29","v":2020},{"$f":"IF(ISBLANK(INDIRECT(\"'\"&F430&\"'!\"&G430)),\"\",INDIRECT(\"'\"&F430&\"'!\"&G430))","v":""},{"$f":"IF(ISBLANK(INDIRECT(\"'\"&F430&\"'!\"&H430)),\"\",IFERROR(VLOOKUP(TEXT(INDIRECT(\"'\"&F430&\"'!\"&H430),\"0\"),Notes!$B$5:$C$100,2,FALSE),\"\"))","v":""},"2b","$O$32","$P$32"]
[6435,{"$f":"Menu!$F$29","v":"X"},{"$f":"Menu!$J$29","v":2020},{"$f":"IF(ISBLANK(INDIRECT(\"'\"&F431&\"'!\"&G431)),\"\",INDIRECT(\"'\"&F431&\"'!\"&G431))","v":""},{"$f":"IF(ISBLANK(INDIRECT(\"'\"&F431&\"'!\"&H431)),\"\",IFERROR(VLOOKUP(TEXT(INDIRECT(\"'\"&F431&\"'!\"&H431),\"0\"),Notes!$B$5:$C$100,2,FALSE),\"\"))","v":""},"2b","$Q$32","$R$32"]
[6436,{"$f":"Menu!$F$29","v":"X"},{"$f":"Menu!$J$29","v":2020},{"$f":"IF(ISBLANK(INDIRECT(\"'\"&F432&\"'!\"&G432)),\"\",INDIRECT(\"'\"&F432&\"'!\"&G432))","v":""},{"$f":"IF(ISBLANK(INDIRECT(\"'\"&F432&\"'!\"&H432)),\"\",IFERROR(VLOOKUP(TEXT(INDIRECT(\"'\"&F432&\"'!\"&H432),\"0\"),Notes!$B$5:$C$100,2,FALSE),\"\"))","v":""},"2b","$S$32","$T$32"]
[6437,{"$f":"Menu!$F$29","v":"X"},{"$f":"Menu!$J$29","v":2020},{"$f":"IF(ISBLANK(INDIRECT(\"'\"&F433&\"'!\"&G433)),\"\",INDIRECT(\"'\"&F433&\"'!\"&G433))","v":""},{"$f":"IF(ISBLANK(INDIRECT(\"'\"&F433&\"'!\"&H433)),\"\",IFERROR(VLOOKUP(TEXT(INDIRECT(\"'\"&F433&\"'!\"&H433),\"0\"),Notes!$B$5:$C$100,2,FALSE),\"\"))","v":""},"2b","$U$32","$V$32"]
[6438,{"$f":"Menu!$F$29","v":"X"},{"$f":"Menu!$J$29","v":2020},{"$f":"IF(ISBLANK(INDIRECT(\"'\"&F434&\"'!\"&G434)),\"\",INDIRECT(\"'\"&F434&\"'!\"&G434))","v":""},{"$f":"IF(ISBLANK(INDIRECT(\"'\"&F434&\"'!\"&H434)),\"\",IFERROR(VLOOKUP(TEXT(INDIRECT(\"'\"&F434&\"'!\"&H434),\"0\"),Notes!$B$5:$C$100,2,FALSE),\"\"))","v":""},"2b","$W$32","$X$32"]
[6439,{"$f":"Menu!$F$29","v":"X"},{"$f":"Menu!$J$29","v":2020},{"$f":"IF(ISBLANK(INDIRECT(\"'\"&F435&\"'!\"&G435)),\"\",INDIRECT(\"'\"&F435&\"'!\"&G435))","v":""},{"$f":"IF(ISBLANK(INDIRECT(\"'\"&F435&\"'!\"&H435)),\"\",IFERROR(VLOOKUP(TEXT(INDIRECT(\"'\"&F435&\"'!\"&H435),\"0\"),Notes!$B$5:$C$100,2,FALSE),\"\"))","v":""},"2b","$Y$32","$Z$32"]
[6440,{"$f":"Menu!$F$29","v":"X"},{"$f":"Menu!$J$29","v":2020},{"$f":"IF(ISBLANK(INDIRECT(\"'\"&F436&\"'!\"&G436)),\"\",INDIRECT(\"'\"&F436&\"'!\"&G436))","v":""},{"$f":"IF(ISBLANK(INDIRECT(\"'\"&F436&\"'!\"&H436)),\"\",IFERROR(VLOOKUP(TEXT(INDIRECT(\"'\"&F436&\"'!\"&H436),\"0\"),Notes!$B$5:$C$100,2,FALSE),\"\"))","v":""},"2b","$AA$32","$AB$32"]
[6453,{"$f":"Menu!$F$29","v":"X"},{"$f":"Menu!$J$29","v":2020},{"$f":"IF(ISBLANK(INDIRECT(\"'\"&F437&\"'!\"&G437)),\"\",INDIRECT(\"'\"&F437&\"'!\"&G437))","v":""},{"$f":"IF(ISBLANK(INDIRECT(\"'\"&F437&\"'!\"&H437)),\"\",IFERROR(VLOOKUP(TEXT(INDIRECT(\"'\"&F437&\"'!\"&H437),\"0\"),Notes!$B$5:$C$100,2,FALSE),\"\"))","v":""},"2b","$E$55","$F$55"]
[6454,{"$f":"Menu!$F$29","v":"X"},{"$f":"Menu!$J$29","v":2020},{"$f":"IF(ISBLANK(INDIRECT(\"'\"&F438&\"'!\"&G438)),\"\",INDIRECT(\"'\"&F438&\"'!\"&G438))","v":""},{"$f":"IF(ISBLANK(INDIRECT(\"'\"&F438&\"'!\"&H438)),\"\",IFERROR(VLOOKUP(TEXT(INDIRECT(\"'\"&F438&\"'!\"&H438),\"0\"),Notes!$B$5:$C$100,2,FALSE),\"\"))","v":""},"2b","$G$55","$H$55"]
[6455,{"$f":"Menu!$F$29","v":"X"},{"$f":"Menu!$J$29","v":2020},{"$f":"IF(ISBLANK(INDIRECT(\"'\"&F439&\"'!\"&G439)),\"\",INDIRECT(\"'\"&F439&\"'!\"&G439))","v":""},{"$f":"IF(ISBLANK(INDIRECT(\"'\"&F439&\"'!\"&H439)),\"\",IFERROR(VLOOKUP(TEXT(INDIRECT(\"'\"&F439&\"'!\"&H439),\"0\"),Notes!$B$5:$C$100,2,FALSE),\"\"))","v":""},"2b","$I$55","$J$55"]
[6456,{"$f":"Menu!$F$29","v":"X"},{"$f":"Menu!$J$29","v":2020},{"$f":"IF(ISBLANK(INDIRECT(\"'\"&F440&\"'!\"&G440)),\"\",INDIRECT(\"'\"&F440&\"'!\"&G440))","v":""},{"$f":"IF(ISBLANK(INDIRECT(\"'\"&F440&\"'!\"&H440)),\"\",IFERROR(VLOOKUP(TEXT(INDIRECT(\"'\"&F440&\"'!\"&H440),\"0\"),Notes!$B$5:$C$100,2,FALSE),\"\"))","v":""},"2b","$K$55","$L$55"]
[6457,{"$f":"Menu!$F$29","v":"X"},{"$f":"Menu!$J$29","v":2020},{"$f":"IF(ISBLANK(INDIRECT(\"'\"&F441&\"'!\"&G441)),\"\",INDIRECT(\"'\"&F441&\"'!\"&G441))","v":""},{"$f":"IF(ISBLANK(INDIRECT(\"'\"&F441&\"'!\"&H441)),\"\",IFERROR(VLOOKUP(TEXT(INDIRECT(\"'\"&F441&\"'!\"&H441),\"0\"),Notes!$B$5:$C$100,2,FALSE),\"\"))","v":""},"2b","$M$55","$N$55"]
[6458,{"$f":"Menu!$F$29","v":"X"},{"$f":"Menu!$J$29","v":2020},{"$f":"IF(ISBLANK(INDIRECT(\"'\"&F442&\"'!\"&G442)),\"\",INDIRECT(\"'\"&F442&\"'!\"&G442))","v":""},{"$f":"IF(ISBLANK(INDIRECT(\"'\"&F442&\"'!\"&H442)),\"\",IFERROR(VLOOKUP(TEXT(INDIRECT(\"'\"&F442&\"'!\"&H442),\"0\"),Notes!$B$5:$C$100,2,FALSE),\"\"))","v":""},"2b","$O$55","$P$55"]
[6459,{"$f":"Menu!$F$29","v":"X"},{"$f":"Menu!$J$29","v":2020},{"$f":"IF(ISBLANK(INDIRECT(\"'\"&F443&\"'!\"&G443)),\"\",INDIRECT(\"'\"&F443&\"'!\"&G443))","v":""},{"$f":"IF(ISBLANK(INDIRECT(\"'\"&F443&\"'!\"&H443)),\"\",IFERROR(VLOOKUP(TEXT(INDIRECT(\"'\"&F443&\"'!\"&H443),\"0\"),Notes!$B$5:$C$100,2,FALSE),\"\"))","v":""},"2b","$Q$55","$R$55"]
[6460,{"$f":"Menu!$F$29","v":"X"},{"$f":"Menu!$J$29","v":2020},{"$f":"IF(ISBLANK(INDIRECT(\"'\"&F444&\"'!\"&G444)),\"\",INDIRECT(\"'\"&F444&\"'!\"&G444))","v":""},{"$f":"IF(ISBLANK(INDIRECT(\"'\"&F444&\"'!\"&H444)),\"\",IFERROR(VLOOKUP(TEXT(INDIRECT(\"'\"&F444&\"'!\"&H444),\"0\"),Notes!$B$5:$C$100,2,FALSE),\"\"))","v":""},"2b","$S$55","$T$55"]
[6461,{"$f":"Menu!$F$29","v":"X"},{"$f":"Menu!$J$29","v":2020},{"$f":"IF(ISBLANK(INDIRECT(\"'\"&F445&\"'!\"&G445)),\"\",INDIRECT(\"'\"&F445&\"'!\"&G445))","v":""},{"$f":"IF(ISBLANK(INDIRECT(\"'\"&F445&\"'!\"&H445)),\"\",IFERROR(VLOOKUP(TEXT(INDIRECT(\"'\"&F445&\"'!\"&H445),\"0\"),Notes!$B$5:$C$100,2,FALSE),\"\"))","v":""},"2b","$U$55","$V$55"]
[6462,{"$f":"Menu!$F$29","v":"X"},{"$f":"Menu!$J$29","v":2020},{"$f":"IF(ISBLANK(INDIRECT(\"'\"&F446&\"'!\"&G446)),\"\",INDIRECT(\"'\"&F446&\"'!\"&G446))","v":""},{"$f":"IF(ISBLANK(INDIRECT(\"'\"&F446&\"'!\"&H446)),\"\",IFERROR(VLOOKUP(TEXT(INDIRECT(\"'\"&F446&\"'!\"&H446),\"0\"),Notes!$B$5:$C$100,2,FALSE),\"\"))","v":""},"2b","$W$55","$X$55"]
[6463,{"$f":"Menu!$F$29","v":"X"},{"$f":"Menu!$J$29","v":2020},{"$f":"IF(ISBLANK(INDIRECT(\"'\"&F447&\"'!\"&G447)),\"\",INDIRECT(\"'\"&F447&\"'!\"&G447))","v":""},{"$f":"IF(ISBLANK(INDIRECT(\"'\"&F447&\"'!\"&H447)),\"\",IFERROR(VLOOKUP(TEXT(INDIRECT(\"'\"&F447&\"'!\"&H447),\"0\"),Notes!$B$5:$C$100,2,FALSE),\"\"))","v":""},"2b","$Y$55","$Z$55"]
[6464,{"$f":"Menu!$F$29","v":"X"},{"$f":"Menu!$J$29","v":2020},{"$f":"IF(ISBLANK(INDIRECT(\"'\"&F448&\"'!\"&G448)),\"\",INDIRECT(\"'\"&F448&\"'!\"&G448))","v":""},{"$f":"IF(ISBLANK(INDIRECT(\"'\"&F448&\"'!\"&H448)),\"\",IFERROR(VLOOKUP(TEXT(INDIRECT(\"'\"&F448&\"'!\"&H448),\"0\"),Notes!$B$5:$C$100,2,FALSE),\"\"))","v":""},"2b","$AA$55","$AB$55"]
[6465,{"$f":"Menu!$F$29","v":"X"},{"$f":"Menu!$J$29","v":2020},{"$f":"IF(ISBLANK(INDIRECT(\"'\"&F449&\"'!\"&G449)),\"\",INDIRECT(\"'\"&F449&\"'!\"&G449))","v":""},{"$f":"IF(ISBLANK(INDIRECT(\"'\"&F449&\"'!\"&H449)),\"\",IFERROR(VLOOKUP(TEXT(INDIRECT(\"'\"&F449&\"'!\"&H449),\"0\"),Notes!$B$5:$C$100,2,FALSE),\"\"))","v":""},"2b","$E$53","$F$53"]
[6466,{"$f":"Menu!$F$29","v":"X"},{"$f":"Menu!$J$29","v":2020},{"$f":"IF(ISBLANK(INDIRECT(\"'\"&F450&\"'!\"&G450)),\"\",INDIRECT(\"'\"&F450&\"'!\"&G450))","v":""},{"$f":"IF(ISBLANK(INDIRECT(\"'\"&F450&\"'!\"&H450)),\"\",IFERROR(VLOOKUP(TEXT(INDIRECT(\"'\"&F450&\"'!\"&H450),\"0\"),Notes!$B$5:$C$100,2,FALSE),\"\"))","v":""},"2b","$G$53",{"$f":"IF(LEN(TRIM(MID(G450,4,10)))-LEN(SUBSTITUTE(TRIM(MID(G450,4,10)),\"$\",\"\"))=0,\"$\"&CHAR(CODE(MID(G450,2,1))+1)&\"$\"&TRIM(MID(G450,4,10)),\"$\"&MID(G450,2,1)&CHAR(CODE(MID(G450,3,1))+1)&\"$\"&TRIM(MID(G450,5,11)))","v":"$H$53"}]
[6467,{"$f":"Menu!$F$29","v":"X"},{"$f":"Menu!$J$29","v":2020},{"$f":"IF(ISBLANK(INDIRECT(\"'\"&F451&\"'!\"&G451)),\"\",INDIRECT(\"'\"&F451&\"'!\"&G451))","v":""},{"$f":"IF(ISBLANK(INDIRECT(\"'\"&F451&\"'!\"&H451)),\"\",IFERROR(VLOOKUP(TEXT(INDIRECT(\"'\"&F451&\"'!\"&H451),\"0\"),Notes!$B$5:$C$100,2,FALSE),\"\"))","v":""},"2b","$I$53","$J$53"]
[6468,{"$f":"Menu!$F$29","v":"X"},{"$f":"Menu!$J$29","v":2020},{"$f":"IF(ISBLANK(INDIRECT(\"'\"&F452&\"'!\"&G452)),\"\",INDIRECT(\"'\"&F452&\"'!\"&G452))","v":""},{"$f":"IF(ISBLANK(INDIRECT(\"'\"&F452&\"'!\"&H452)),\"\",IFERROR(VLOOKUP(TEXT(INDIRECT(\"'\"&F452&\"'!\"&H452),\"0\"),Notes!$B$5:$C$100,2,FALSE),\"\"))","v":""},"2b","$K$53","$L$53"]
[6469,{"$f":"Menu!$F$29","v":"X"},{"$f":"Menu!$J$29","v":2020},{"$f":"IF(ISBLANK(INDIRECT(\"'\"&F453&\"'!\"&G453)),\"\",INDIRECT(\"'\"&F453&\"'!\"&G453))","v":""},{"$f":"IF(ISBLANK(INDIRECT(\"'\"&F453&\"'!\"&H453)),\"\",IFERROR(VLOOKUP(TEXT(INDIRECT(\"'\"&F453&\"'!\"&H453),\"0\"),Notes!$B$5:$C$100,2,FALSE),\"\"))","v":""},"2b","$M$53","$N$53"]
[6470,{"$f":"Menu!$F$29","v":"X"},{"$f":"Menu!$J$29","v":2020},{"$f":"IF(ISBLANK(INDIRECT(\"'\"&F454&\"'!\"&G454)),\"\",INDIRECT(\"'\"&F454&\"'!\"&G454))","v":""},{"$f":"IF(ISBLANK(INDIRECT(\"'\"&F454&\"'!\"&H454)),\"\",IFERROR(VLOOKUP(TEXT(INDIRECT(\"'\"&F454&\"'!\"&H454),\"0\"),Notes!$B$5:$C$100,2,FALSE),\"\"))","v":""},"2b","$O$53","$P$53"]
[6471,{"$f":"Menu!$F$29","v":"X"},{"$f":"Menu!$J$29","v":2020},{"$f":"IF(ISBLANK(INDIRECT(\"'\"&F455&\"'!\"&G455)),\"\",INDIRECT(\"'\"&F455&\"'!\"&G455))","v":""},{"$f":"IF(ISBLANK(INDIRECT(\"'\"&F455&\"'!\"&H455)),\"\",IFERROR(VLOOKUP(TEXT(INDIRECT(\"'\"&F455&\"'!\"&H455),\"0\"),Notes!$B$5:$C$100,2,FALSE),\"\"))","v":""},"2b","$Q$53","$R$53"]
[6472,{"$f":"Menu!$F$29","v":"X"},{"$f":"Menu!$J$29","v":2020},{"$f":"IF(ISBLANK(INDIRECT(\"'\"&F456&\"'!\"&G456)),\"\",INDIRECT(\"'\"&F456&\"'!\"&G456))","v":""},{"$f":"IF(ISBLANK(INDIRECT(\"'\"&F456&\"'!\"&H456)),\"\",IFERROR(VLOOKUP(TEXT(INDIRECT(\"'\"&F456&\"'!\"&H456),\"0\"),Notes!$B$5:$C$100,2,FALSE),\"\"))","v":""},"2b","$S$53","$T$53"]
[6473,{"$f":"Menu!$F$29","v":"X"},{"$f":"Menu!$J$29","v":2020},{"$f":"IF(ISBLANK(INDIRECT(\"'\"&F457&\"'!\"&G457)),\"\",INDIRECT(\"'\"&F457&\"'!\"&G457))","v":""},{"$f":"IF(ISBLANK(INDIRECT(\"'\"&F457&\"'!\"&H457)),\"\",IFERROR(VLOOKUP(TEXT(INDIRECT(\"'\"&F457&\"'!\"&H457),\"0\"),Notes!$B$5:$C$100,2,FALSE),\"\"))","v":""},"2b","$U$53","$V$53"]
[6474,{"$f":"Menu!$F$29","v":"X"},{"$f":"Menu!$J$29","v":2020},{"$f":"IF(ISBLANK(INDIRECT(\"'\"&F458&\"'!\"&G458)),\"\",INDIRECT(\"'\"&F458&\"'!\"&G458))","v":""},{"$f":"IF(ISBLANK(INDIRECT(\"'\"&F458&\"'!\"&H458)),\"\",IFERROR(VLOOKUP(TEXT(INDIRECT(\"'\"&F458&\"'!\"&H458),\"0\"),Notes!$B$5:$C$100,2,FALSE),\"\"))","v":""},"2b","$W$53","$X$53"]
[6475,{"$f":"Menu!$F$29","v":"X"},{"$f":"Menu!$J$29","v":2020},{"$f":"IF(ISBLANK(INDIRECT(\"'\"&F459&\"'!\"&G459)),\"\",INDIRECT(\"'\"&F459&\"'!\"&G459))","v":""},{"$f":"IF(ISBLANK(INDIRECT(\"'\"&F459&\"'!\"&H459)),\"\",IFERROR(VLOOKUP(TEXT(INDIRECT(\"'\"&F459&\"'!\"&H459),\"0\"),Notes!$B$5:$C$100,2,FALSE),\"\"))","v":""},"2b","$Y$53","$Z$53"]
[6476,{"$f":"Menu!$F$29","v":"X"},{"$f":"Menu!$J$29","v":2020},{"$f":"IF(ISBLANK(INDIRECT(\"'\"&F460&\"'!\"&G460)),\"\",INDIRECT(\"'\"&F460&\"'!\"&G460))","v":""},{"$f":"IF(ISBLANK(INDIRECT(\"'\"&F460&\"'!\"&H460)),\"\",IFERROR(VLOOKUP(TEXT(INDIRECT(\"'\"&F460&\"'!\"&H460),\"0\"),Notes!$B$5:$C$100,2,FALSE),\"\"))","v":""},"2b","$AA$53","$AB$53"]
[6525,{"$f":"Menu!$F$29","v":"X"},{"$f":"Menu!$J$29","v":2020},{"$f":"IF(ISBLANK(INDIRECT(\"'\"&F461&\"'!\"&G461)),\"\",INDIRECT(\"'\"&F461&\"'!\"&G461))","v":""},{"$f":"IF(ISBLANK(INDIRECT(\"'\"&F461&\"'!\"&H461)),\"\",IFERROR(VLOOKUP(TEXT(INDIRECT(\"'\"&F461&\"'!\"&H461),\"0\"),Notes!$B$5:$C$100,2,FALSE),\"\"))","v":""},"2b","$E$26","$F$26"]
[6526,{"$f":"Menu!$F$29","v":"X"},{"$f":"Menu!$J$29","v":2020},{"$f":"IF(ISBLANK(INDIRECT(\"'\"&F462&\"'!\"&G462)),\"\",INDIRECT(\"'\"&F462&\"'!\"&G462))","v":""},{"$f":"IF(ISBLANK(INDIRECT(\"'\"&F462&\"'!\"&H462)),\"\",IFERROR(VLOOKUP(TEXT(INDIRECT(\"'\"&F462&\"'!\"&H462),\"0\"),Notes!$B$5:$C$100,2,FALSE),\"\"))","v":""},"2b","$G$26","$H$26"]
[6527,{"$f":"Menu!$F$29","v":"X"},{"$f":"Menu!$J$29","v":2020},{"$f":"IF(ISBLANK(INDIRECT(\"'\"&F463&\"'!\"&G463)),\"\",INDIRECT(\"'\"&F463&\"'!\"&G463))","v":""},{"$f":"IF(ISBLANK(INDIRECT(\"'\"&F463&\"'!\"&H463)),\"\",IFERROR(VLOOKUP(TEXT(INDIRECT(\"'\"&F463&\"'!\"&H463),\"0\"),Notes!$B$5:$C$100,2,FALSE),\"\"))","v":""},"2b","$I$26","$J$26"]
[6528,{"$f":"Menu!$F$29","v":"X"},{"$f":"Menu!$J$29","v":2020},{"$f":"IF(ISBLANK(INDIRECT(\"'\"&F464&\"'!\"&G464)),\"\",INDIRECT(\"'\"&F464&\"'!\"&G464))","v":""},{"$f":"IF(ISBLANK(INDIRECT(\"'\"&F464&\"'!\"&H464)),\"\",IFERROR(VLOOKUP(TEXT(INDIRECT(\"'\"&F464&\"'!\"&H464),\"0\"),Notes!$B$5:$C$100,2,FALSE),\"\"))","v":""},"2b","$K$26","$L$26"]
[6529,{"$f":"Menu!$F$29","v":"X"},{"$f":"Menu!$J$29","v":2020},{"$f":"IF(ISBLANK(INDIRECT(\"'\"&F465&\"'!\"&G465)),\"\",INDIRECT(\"'\"&F465&\"'!\"&G465))","v":""},{"$f":"IF(ISBLANK(INDIRECT(\"'\"&F465&\"'!\"&H465)),\"\",IFERROR(VLOOKUP(TEXT(INDIRECT(\"'\"&F465&\"'!\"&H465),\"0\"),Notes!$B$5:$C$100,2,FALSE),\"\"))","v":""},"2b","$M$26","$N$26"]
[6530,{"$f":"Menu!$F$29","v":"X"},{"$f":"Menu!$J$29","v":2020},{"$f":"IF(ISBLANK(INDIRECT(\"'\"&F466&\"'!\"&G466)),\"\",INDIRECT(\"'\"&F466&\"'!\"&G466))","v":""},{"$f":"IF(ISBLANK(INDIRECT(\"'\"&F466&\"'!\"&H466)),\"\",IFERROR(VLOOKUP(TEXT(INDIRECT(\"'\"&F466&\"'!\"&H466),\"0\"),Notes!$B$5:$C$100,2,FALSE),\"\"))","v":""},"2b","$O$26","$P$26"]
[6531,{"$f":"Menu!$F$29","v":"X"},{"$f":"Menu!$J$29","v":2020},{"$f":"IF(ISBLANK(INDIRECT(\"'\"&F467&\"'!\"&G467)),\"\",INDIRECT(\"'\"&F467&\"'!\"&G467))","v":""},{"$f":"IF(ISBLANK(INDIRECT(\"'\"&F467&\"'!\"&H467)),\"\",IFERROR(VLOOKUP(TEXT(INDIRECT(\"'\"&F467&\"'!\"&H467),\"0\"),Notes!$B$5:$C$100,2,FALSE),\"\"))","v":""},"2b","$Q$26","$R$26"]
[6532,{"$f":"Menu!$F$29","v":"X"},{"$f":"Menu!$J$29","v":2020},{"$f":"IF(ISBLANK(INDIRECT(\"'\"&F468&\"'!\"&G468)),\"\",INDIRECT(\"'\"&F468&\"'!\"&G468))","v":""},{"$f":"IF(ISBLANK(INDIRECT(\"'\"&F468&\"'!\"&H468)),\"\",IFERROR(VLOOKUP(TEXT(INDIRECT(\"'\"&F468&\"'!\"&H468),\"0\"),Notes!$B$5:$C$100,2,FALSE),\"\"))","v":""},"2b","$S$26","$T$26"]
[6533,{"$f":"Menu!$F$29","v":"X"},{"$f":"Menu!$J$29","v":2020},{"$f":"IF(ISBLANK(INDIRECT(\"'\"&F469&\"'!\"&G469)),\"\",INDIRECT(\"'\"&F469&\"'!\"&G469))","v":""},{"$f":"IF(ISBLANK(INDIRECT(\"'\"&F469&\"'!\"&H469)),\"\",IFERROR(VLOOKUP(TEXT(INDIRECT(\"'\"&F469&\"'!\"&H469),\"0\"),Notes!$B$5:$C$100,2,FALSE),\"\"))","v":""},"2b","$U$26","$V$26"]
[6534,{"$f":"Menu!$F$29","v":"X"},{"$f":"Menu!$J$29","v":2020},{"$f":"IF(ISBLANK(INDIRECT(\"'\"&F470&\"'!\"&G470)),\"\",INDIRECT(\"'\"&F470&\"'!\"&G470))","v":""},{"$f":"IF(ISBLANK(INDIRECT(\"'\"&F470&\"'!\"&H470)),\"\",IFERROR(VLOOKUP(TEXT(INDIRECT(\"'\"&F470&\"'!\"&H470),\"0\"),Notes!$B$5:$C$100,2,FALSE),\"\"))","v":""},"2b","$W$26","$X$26"]
[6535,{"$f":"Menu!$F$29","v":"X"},{"$f":"Menu!$J$29","v":2020},{"$f":"IF(ISBLANK(INDIRECT(\"'\"&F471&\"'!\"&G471)),\"\",INDIRECT(\"'\"&F471&\"'!\"&G471))","v":""},{"$f":"IF(ISBLANK(INDIRECT(\"'\"&F471&\"'!\"&H471)),\"\",IFERROR(VLOOKUP(TEXT(INDIRECT(\"'\"&F471&\"'!\"&H471),\"0\"),Notes!$B$5:$C$100,2,FALSE),\"\"))","v":""},"2b","$Y$26","$Z$26"]
[6536,{"$f":"Menu!$F$29","v":"X"},{"$f":"Menu!$J$29","v":2020},{"$f":"IF(ISBLANK(INDIRECT(\"'\"&F472&\"'!\"&G472)),\"\",INDIRECT(\"'\"&F472&\"'!\"&G472))","v":""},{"$f":"IF(ISBLANK(INDIRECT(\"'\"&F472&\"'!\"&H472)),\"\",IFERROR(VLOOKUP(TEXT(INDIRECT(\"'\"&F472&\"'!\"&H472),\"0\"),Notes!$B$5:$C$100,2,FALSE),\"\"))","v":""},"2b","$AA$26","$AB$26"]
[6537,{"$f":"Menu!$F$29","v":"X"},{"$f":"Menu!$J$29","v":2020},{"$f":"IF(ISBLANK(INDIRECT(\"'\"&F473&\"'!\"&G473)),\"\",INDIRECT(\"'\"&F473&\"'!\"&G473))","v":""},{"$f":"IF(ISBLANK(INDIRECT(\"'\"&F473&\"'!\"&H473)),\"\",IFERROR(VLOOKUP(TEXT(INDIRECT(\"'\"&F473&\"'!\"&H473),\"0\"),Notes!$B$5:$C$100,2,FALSE),\"\"))","v":""},"2b","$E$15","$F$15"]
[6538,{"$f":"Menu!$F$29","v":"X"},{"$f":"Menu!$J$29","v":2020},{"$f":"IF(ISBLANK(INDIRECT(\"'\"&F474&\"'!\"&G474)),\"\",INDIRECT(\"'\"&F474&\"'!\"&G474))","v":""},{"$f":"IF(ISBLANK(INDIRECT(\"'\"&F474&\"'!\"&H474)),\"\",IFERROR(VLOOKUP(TEXT(INDIRECT(\"'\"&F474&\"'!\"&H474),\"0\"),Notes!$B$5:$C$100,2,FALSE),\"\"))","v":""},"2b","$G$15","$H$15"]
[6539,{"$f":"Menu!$F$29","v":"X"},{"$f":"Menu!$J$29","v":2020},{"$f":"IF(ISBLANK(INDIRECT(\"'\"&F475&\"'!\"&G475)),\"\",INDIRECT(\"'\"&F475&\"'!\"&G475))","v":""},{"$f":"IF(ISBLANK(INDIRECT(\"'\"&F475&\"'!\"&H475)),\"\",IFERROR(VLOOKUP(TEXT(INDIRECT(\"'\"&F475&\"'!\"&H475),\"0\"),Notes!$B$5:$C$100,2,FALSE),\"\"))","v":""},"2b","$I$15","$J$15"]
[6540,{"$f":"Menu!$F$29","v":"X"},{"$f":"Menu!$J$29","v":2020},{"$f":"IF(ISBLANK(INDIRECT(\"'\"&F476&\"'!\"&G476)),\"\",INDIRECT(\"'\"&F476&\"'!\"&G476))","v":""},{"$f":"IF(ISBLANK(INDIRECT(\"'\"&F476&\"'!\"&H476)),\"\",IFERROR(VLOOKUP(TEXT(INDIRECT(\"'\"&F476&\"'!\"&H476),\"0\"),Notes!$B$5:$C$100,2,FALSE),\"\"))","v":""},"2b","$K$15","$L$15"]
[6541,{"$f":"Menu!$F$29","v":"X"},{"$f":"Menu!$J$29","v":2020},{"$f":"IF(ISBLANK(INDIRECT(\"'\"&F477&\"'!\"&G477)),\"\",INDIRECT(\"'\"&F477&\"'!\"&G477))","v":""},{"$f":"IF(ISBLANK(INDIRECT(\"'\"&F477&\"'!\"&H477)),\"\",IFERROR(VLOOKUP(TEXT(INDIRECT(\"'\"&F477&\"'!\"&H477),\"0\"),Notes!$B$5:$C$100,2,FALSE),\"\"))","v":""},"2b","$M$15","$N$15"]
[6542,{"$f":"Menu!$F$29","v":"X"},{"$f":"Menu!$J$29","v":2020},{"$f":"IF(ISBLANK(INDIRECT(\"'\"&F478&\"'!\"&G478)),\"\",INDIRECT(\"'\"&F478&\"'!\"&G478))","v":""},{"$f":"IF(ISBLANK(INDIRECT(\"'\"&F478&\"'!\"&H478)),\"\",IFERROR(VLOOKUP(TEXT(INDIRECT(\"'\"&F478&\"'!\"&H478),\"0\"),Notes!$B$5:$C$100,2,FALSE),\"\"))","v":""},"2b","$O$15","$P$15"]
[6543,{"$f":"Menu!$F$29","v":"X"},{"$f":"Menu!$J$29","v":2020},{"$f":"IF(ISBLANK(INDIRECT(\"'\"&F479&\"'!\"&G479)),\"\",INDIRECT(\"'\"&F479&\"'!\"&G479))","v":""},{"$f":"IF(ISBLANK(INDIRECT(\"'\"&F479&\"'!\"&H479)),\"\",IFERROR(VLOOKUP(TEXT(INDIRECT(\"'\"&F479&\"'!\"&H479),\"0\"),Notes!$B$5:$C$100,2,FALSE),\"\"))","v":""},"2b","$Q$15","$R$15"]
[6544,{"$f":"Menu!$F$29","v":"X"},{"$f":"Menu!$J$29","v":2020},{"$f":"IF(ISBLANK(INDIRECT(\"'\"&F480&\"'!\"&G480)),\"\",INDIRECT(\"'\"&F480&\"'!\"&G480))","v":""},{"$f":"IF(ISBLANK(INDIRECT(\"'\"&F480&\"'!\"&H480)),\"\",IFERROR(VLOOKUP(TEXT(INDIRECT(\"'\"&F480&\"'!\"&H480),\"0\"),Notes!$B$5:$C$100,2,FALSE),\"\"))","v":""},"2b","$S$15","$T$15"]
[6545,{"$f":"Menu!$F$29","v":"X"},{"$f":"Menu!$J$29","v":2020},{"$f":"IF(ISBLANK(INDIRECT(\"'\"&F481&\"'!\"&G481)),\"\",INDIRECT(\"'\"&F481&\"'!\"&G481))","v":""},{"$f":"IF(ISBLANK(INDIRECT(\"'\"&F481&\"'!\"&H481)),\"\",IFERROR(VLOOKUP(TEXT(INDIRECT(\"'\"&F481&\"'!\"&H481),\"0\"),Notes!$B$5:$C$100,2,FALSE),\"\"))","v":""},"2b","$U$15","$V$15"]
[6546,{"$f":"Menu!$F$29","v":"X"},{"$f":"Menu!$J$29","v":2020},{"$f":"IF(ISBLANK(INDIRECT(\"'\"&F482&\"'!\"&G482)),\"\",INDIRECT(\"'\"&F482&\"'!\"&G482))","v":""},{"$f":"IF(ISBLANK(INDIRECT(\"'\"&F482&\"'!\"&H482)),\"\",IFERROR(VLOOKUP(TEXT(INDIRECT(\"'\"&F482&\"'!\"&H482),\"0\"),Notes!$B$5:$C$100,2,FALSE),\"\"))","v":""},"2b","$W$15","$X$15"]
[6547,{"$f":"Menu!$F$29","v":"X"},{"$f":"Menu!$J$29","v":2020},{"$f":"IF(ISBLANK(INDIRECT(\"'\"&F483&\"'!\"&G483)),\"\",INDIRECT(\"'\"&F483&\"'!\"&G483))","v":""},{"$f":"IF(ISBLANK(INDIRECT(\"'\"&F483&\"'!\"&H483)),\"\",IFERROR(VLOOKUP(TEXT(INDIRECT(\"'\"&F483&\"'!\"&H483),\"0\"),Notes!$B$5:$C$100,2,FALSE),\"\"))","v":""},"2b","$Y$15","$Z$15"]
[6548,{"$f":"Menu!$F$29","v":"X"},{"$f":"Menu!$J$29","v":2020},{"$f":"IF(ISBLANK(INDIRECT(\"'\"&F484&\"'!\"&G484)),\"\",INDIRECT(\"'\"&F484&\"'!\"&G484))","v":""},{"$f":"IF(ISBLANK(INDIRECT(\"'\"&F484&\"'!\"&H484)),\"\",IFERROR(VLOOKUP(TEXT(INDIRECT(\"'\"&F484&\"'!\"&H484),\"0\"),Notes!$B$5:$C$100,2,FALSE),\"\"))","v":""},"2b","$AA$15","$AB$15"]
[6561,{"$f":"Menu!$F$29","v":"X"},{"$f":"Menu!$J$29","v":2020},{"$f":"IF(ISBLANK(INDIRECT(\"'\"&F485&\"'!\"&G485)),\"\",INDIRECT(\"'\"&F485&\"'!\"&G485))","v":""},{"$f":"IF(ISBLANK(INDIRECT(\"'\"&F485&\"'!\"&H485)),\"\",IFERROR(VLOOKUP(TEXT(INDIRECT(\"'\"&F485&\"'!\"&H485),\"0\"),Notes!$B$5:$C$100,2,FALSE),\"\"))","v":""},"2b","$E$72","$F$72"]
[6562,{"$f":"Menu!$F$29","v":"X"},{"$f":"Menu!$J$29","v":2020},{"$f":"IF(ISBLANK(INDIRECT(\"'\"&F486&\"'!\"&G486)),\"\",INDIRECT(\"'\"&F486&\"'!\"&G486))","v":""},{"$f":"IF(ISBLANK(INDIRECT(\"'\"&F486&\"'!\"&H486)),\"\",IFERROR(VLOOKUP(TEXT(INDIRECT(\"'\"&F486&\"'!\"&H486),\"0\"),Notes!$B$5:$C$100,2,FALSE),\"\"))","v":""},"2b","$G$72","$H$72"]
[6563,{"$f":"Menu!$F$29","v":"X"},{"$f":"Menu!$J$29","v":2020},{"$f":"IF(ISBLANK(INDIRECT(\"'\"&F487&\"'!\"&G487)),\"\",INDIRECT(\"'\"&F487&\"'!\"&G487))","v":""},{"$f":"IF(ISBLANK(INDIRECT(\"'\"&F487&\"'!\"&H487)),\"\",IFERROR(VLOOKUP(TEXT(INDIRECT(\"'\"&F487&\"'!\"&H487),\"0\"),Notes!$B$5:$C$100,2,FALSE),\"\"))","v":""},"2b","$I$72","$J$72"]
[6564,{"$f":"Menu!$F$29","v":"X"},{"$f":"Menu!$J$29","v":2020},{"$f":"IF(ISBLANK(INDIRECT(\"'\"&F488&\"'!\"&G488)),\"\",INDIRECT(\"'\"&F488&\"'!\"&G488))","v":""},{"$f":"IF(ISBLANK(INDIRECT(\"'\"&F488&\"'!\"&H488)),\"\",IFERROR(VLOOKUP(TEXT(INDIRECT(\"'\"&F488&\"'!\"&H488),\"0\"),Notes!$B$5:$C$100,2,FALSE),\"\"))","v":""},"2b","$K$72","$L$72"]
[6565,{"$f":"Menu!$F$29","v":"X"},{"$f":"Menu!$J$29","v":2020},{"$f":"IF(ISBLANK(INDIRECT(\"'\"&F489&\"'!\"&G489)),\"\",INDIRECT(\"'\"&F489&\"'!\"&G489))","v":""},{"$f":"IF(ISBLANK(INDIRECT(\"'\"&F489&\"'!\"&H489)),\"\",IFERROR(VLOOKUP(TEXT(INDIRECT(\"'\"&F489&\"'!\"&H489),\"0\"),Notes!$B$5:$C$100,2,FALSE),\"\"))","v":""},"2b","$M$72","$N$72"]
[6566,{"$f":"Menu!$F$29","v":"X"},{"$f":"Menu!$J$29","v":2020},{"$f":"IF(ISBLANK(INDIRECT(\"'\"&F490&\"'!\"&G490)),\"\",INDIRECT(\"'\"&F490&\"'!\"&G490))","v":""},{"$f":"IF(ISBLANK(INDIRECT(\"'\"&F490&\"'!\"&H490)),\"\",IFERROR(VLOOKUP(TEXT(INDIRECT(\"'\"&F490&\"'!\"&H490),\"0\"),Notes!$B$5:$C$100,2,FALSE),\"\"))","v":""},"2b","$O$72","$P$72"]
[6567,{"$f":"Menu!$F$29","v":"X"},{"$f":"Menu!$J$29","v":2020},{"$f":"IF(ISBLANK(INDIRECT(\"'\"&F491&\"'!\"&G491)),\"\",INDIRECT(\"'\"&F491&\"'!\"&G491))","v":""},{"$f":"IF(ISBLANK(INDIRECT(\"'\"&F491&\"'!\"&H491)),\"\",IFERROR(VLOOKUP(TEXT(INDIRECT(\"'\"&F491&\"'!\"&H491),\"0\"),Notes!$B$5:$C$100,2,FALSE),\"\"))","v":""},"2b","$Q$72","$R$72"]
[6568,{"$f":"Menu!$F$29","v":"X"},{"$f":"Menu!$J$29","v":2020},{"$f":"IF(ISBLANK(INDIRECT(\"'\"&F492&\"'!\"&G492)),\"\",INDIRECT(\"'\"&F492&\"'!\"&G492))","v":""},{"$f":"IF(ISBLANK(INDIRECT(\"'\"&F492&\"'!\"&H492)),\"\",IFERROR(VLOOKUP(TEXT(INDIRECT(\"'\"&F492&\"'!\"&H492),\"0\"),Notes!$B$5:$C$100,2,FALSE),\"\"))","v":""},"2b","$S$72","$T$72"]
[6569,{"$f":"Menu!$F$29","v":"X"},{"$f":"Menu!$J$29","v":2020},{"$f":"IF(ISBLANK(INDIRECT(\"'\"&F493&\"'!\"&G493)),\"\",INDIRECT(\"'\"&F493&\"'!\"&G493))","v":""},{"$f":"IF(ISBLANK(INDIRECT(\"'\"&F493&\"'!\"&H493)),\"\",IFERROR(VLOOKUP(TEXT(INDIRECT(\"'\"&F493&\"'!\"&H493),\"0\"),Notes!$B$5:$C$100,2,FALSE),\"\"))","v":""},"2b","$U$72","$V$72"]
[6570,{"$f":"Menu!$F$29","v":"X"},{"$f":"Menu!$J$29","v":2020},{"$f":"IF(ISBLANK(INDIRECT(\"'\"&F494&\"'!\"&G494)),\"\",INDIRECT(\"'\"&F494&\"'!\"&G494))","v":""},{"$f":"IF(ISBLANK(INDIRECT(\"'\"&F494&\"'!\"&H494)),\"\",IFERROR(VLOOKUP(TEXT(INDIRECT(\"'\"&F494&\"'!\"&H494),\"0\"),Notes!$B$5:$C$100,2,FALSE),\"\"))","v":""},"2b","$W$72","$X$72"]
[6571,{"$f":"Menu!$F$29","v":"X"},{"$f":"Menu!$J$29","v":2020},{"$f":"IF(ISBLANK(INDIRECT(\"'\"&F495&\"'!\"&G495)),\"\",INDIRECT(\"'\"&F495&\"'!\"&G495))","v":""},{"$f":"IF(ISBLANK(INDIRECT(\"'\"&F495&\"'!\"&H495)),\"\",IFERROR(VLOOKUP(TEXT(INDIRECT(\"'\"&F495&\"'!\"&H495),\"0\"),Notes!$B$5:$C$100,2,FALSE),\"\"))","v":""},"2b","$Y$72","$Z$72"]
[6572,{"$f":"Menu!$F$29","v":"X"},{"$f":"Menu!$J$29","v":2020},{"$f":"IF(ISBLANK(INDIRECT(\"'\"&F496&\"'!\"&G496)),\"\",INDIRECT(\"'\"&F496&\"'!\"&G496))","v":""},{"$f":"IF(ISBLANK(INDIRECT(\"'\"&F496&\"'!\"&H496)),\"\",IFERROR(VLOOKUP(TEXT(INDIRECT(\"'\"&F496&\"'!\"&H496),\"0\"),Notes!$B$5:$C$100,2,FALSE),\"\"))","v":""},"2b","$AA$72","$AB$72"]
[6573,{"$f":"Menu!$F$29","v":"X"},{"$f":"Menu!$J$29","v":2020},{"$f":"IF(ISBLANK(INDIRECT(\"'\"&F497&\"'!\"&G497)),\"\",INDIRECT(\"'\"&F497&\"'!\"&G497))","v":""},{"$f":"IF(ISBLANK(INDIRECT(\"'\"&F497&\"'!\"&H497)),\"\",IFERROR(VLOOKUP(TEXT(INDIRECT(\"'\"&F497&\"'!\"&H497),\"0\"),Notes!$B$5:$C$100,2,FALSE),\"\"))","v":""},"2b","$E$73","$F$73"]
[6574,{"$f":"Menu!$F$29","v":"X"},{"$f":"Menu!$J$29","v":2020},{"$f":"IF(ISBLANK(INDIRECT(\"'\"&F498&\"'!\"&G498)),\"\",INDIRECT(\"'\"&F498&\"'!\"&G498))","v":""},{"$f":"IF(ISBLANK(INDIRECT(\"'\"&F498&\"'!\"&H498)),\"\",IFERROR(VLOOKUP(TEXT(INDIRECT(\"'\"&F498&\"'!\"&H498),\"0\"),Notes!$B$5:$C$100,2,FALSE),\"\"))","v":""},"2b","$G$73","$H$73"]
[6575,{"$f":"Menu!$F$29","v":"X"},{"$f":"Menu!$J$29","v":2020},{"$f":"IF(ISBLANK(INDIRECT(\"'\"&F499&\"'!\"&G499)),\"\",INDIRECT(\"'\"&F499&\"'!\"&G499))","v":""},{"$f":"IF(ISBLANK(INDIRECT(\"'\"&F499&\"'!\"&H499)),\"\",IFERROR(VLOOKUP(TEXT(INDIRECT(\"'\"&F499&\"'!\"&H499),\"0\"),Notes!$B$5:$C$100,2,FALSE),\"\"))","v":""},"2b","$I$73","$J$73"]
[6576,{"$f":"Menu!$F$29","v":"X"},{"$f":"Menu!$J$29","v":2020},{"$f":"IF(ISBLANK(INDIRECT(\"'\"&F500&\"'!\"&G500)),\"\",INDIRECT(\"'\"&F500&\"'!\"&G500))","v":""},{"$f":"IF(ISBLANK(INDIRECT(\"'\"&F500&\"'!\"&H500)),\"\",IFERROR(VLOOKUP(TEXT(INDIRECT(\"'\"&F500&\"'!\"&H500),\"0\"),Notes!$B$5:$C$100,2,FALSE),\"\"))","v":""},"2b","$K$73","$L$73"]
[6577,{"$f":"Menu!$F$29","v":"X"},{"$f":"Menu!$J$29","v":2020},{"$f":"IF(ISBLANK(INDIRECT(\"'\"&F501&\"'!\"&G501)),\"\",INDIRECT(\"'\"&F501&\"'!\"&G501))","v":""},{"$f":"IF(ISBLANK(INDIRECT(\"'\"&F501&\"'!\"&H501)),\"\",IFERROR(VLOOKUP(TEXT(INDIRECT(\"'\"&F501&\"'!\"&H501),\"0\"),Notes!$B$5:$C$100,2,FALSE),\"\"))","v":""},"2b","$M$73","$N$73"]
[6578,{"$f":"Menu!$F$29","v":"X"},{"$f":"Menu!$J$29","v":2020},{"$f":"IF(ISBLANK(INDIRECT(\"'\"&F502&\"'!\"&G502)),\"\",INDIRECT(\"'\"&F502&\"'!\"&G502))","v":""},{"$f":"IF(ISBLANK(INDIRECT(\"'\"&F502&\"'!\"&H502)),\"\",IFERROR(VLOOKUP(TEXT(INDIRECT(\"'\"&F502&\"'!\"&H502),\"0\"),Notes!$B$5:$C$100,2,FALSE),\"\"))","v":""},"2b","$O$73","$P$73"]
[6579,{"$f":"Menu!$F$29","v":"X"},{"$f":"Menu!$J$29","v":2020},{"$f":"IF(ISBLANK(INDIRECT(\"'\"&F503&\"'!\"&G503)),\"\",INDIRECT(\"'\"&F503&\"'!\"&G503))","v":""},{"$f":"IF(ISBLANK(INDIRECT(\"'\"&F503&\"'!\"&H503)),\"\",IFERROR(VLOOKUP(TEXT(INDIRECT(\"'\"&F503&\"'!\"&H503),\"0\"),Notes!$B$5:$C$100,2,FALSE),\"\"))","v":""},"2b","$Q$73","$R$73"]
[6580,{"$f":"Menu!$F$29","v":"X"},{"$f":"Menu!$J$29","v":2020},{"$f":"IF(ISBLANK(INDIRECT(\"'\"&F504&\"'!\"&G504)),\"\",INDIRECT(\"'\"&F504&\"'!\"&G504))","v":""},{"$f":"IF(ISBLANK(INDIRECT(\"'\"&F504&\"'!\"&H504)),\"\",IFERROR(VLOOKUP(TEXT(INDIRECT(\"'\"&F504&\"'!\"&H504),\"0\"),Notes!$B$5:$C$100,2,FALSE),\"\"))","v":""},"2b","$S$73","$T$73"]
[6581,{"$f":"Menu!$F$29","v":"X"},{"$f":"Menu!$J$29","v":2020},{"$f":"IF(ISBLANK(INDIRECT(\"'\"&F505&\"'!\"&G505)),\"\",INDIRECT(\"'\"&F505&\"'!\"&G505))","v":""},{"$f":"IF(ISBLANK(INDIRECT(\"'\"&F505&\"'!\"&H505)),\"\",IFERROR(VLOOKUP(TEXT(INDIRECT(\"'\"&F505&\"'!\"&H505),\"0\"),Notes!$B$5:$C$100,2,FALSE),\"\"))","v":""},"2b","$U$73","$V$73"]
[6582,{"$f":"Menu!$F$29","v":"X"},{"$f":"Menu!$J$29","v":2020},{"$f":"IF(ISBLANK(INDIRECT(\"'\"&F506&\"'!\"&G506)),\"\",INDIRECT(\"'\"&F506&\"'!\"&G506))","v":""},{"$f":"IF(ISBLANK(INDIRECT(\"'\"&F506&\"'!\"&H506)),\"\",IFERROR(VLOOKUP(TEXT(INDIRECT(\"'\"&F506&\"'!\"&H506),\"0\"),Notes!$B$5:$C$100,2,FALSE),\"\"))","v":""},"2b","$W$73","$X$73"]
[6583,{"$f":"Menu!$F$29","v":"X"},{"$f":"Menu!$J$29","v":2020},{"$f":"IF(ISBLANK(INDIRECT(\"'\"&F507&\"'!\"&G507)),\"\",INDIRECT(\"'\"&F507&\"'!\"&G507))","v":""},{"$f":"IF(ISBLANK(INDIRECT(\"'\"&F507&\"'!\"&H507)),\"\",IFERROR(VLOOKUP(TEXT(INDIRECT(\"'\"&F507&\"'!\"&H507),\"0\"),Notes!$B$5:$C$100,2,FALSE),\"\"))","v":""},"2b","$Y$73","$Z$73"]
[6584,{"$f":"Menu!$F$29","v":"X"},{"$f":"Menu!$J$29","v":2020},{"$f":"IF(ISBLANK(INDIRECT(\"'\"&F508&\"'!\"&G508)),\"\",INDIRECT(\"'\"&F508&\"'!\"&G508))","v":""},{"$f":"IF(ISBLANK(INDIRECT(\"'\"&F508&\"'!\"&H508)),\"\",IFERROR(VLOOKUP(TEXT(INDIRECT(\"'\"&F508&\"'!\"&H508),\"0\"),Notes!$B$5:$C$100,2,FALSE),\"\"))","v":""},"2b","$AA$73","$AB$73"]
[6585,{"$f":"Menu!$F$29","v":"X"},{"$f":"Menu!$J$29","v":2020},{"$f":"IF(ISBLANK(INDIRECT(\"'\"&F509&\"'!\"&G509)),\"\",INDIRECT(\"'\"&F509&\"'!\"&G509))","v":""},{"$f":"IF(ISBLANK(INDIRECT(\"'\"&F509&\"'!\"&H509)),\"\",IFERROR(VLOOKUP(TEXT(INDIRECT(\"'\"&F509&\"'!\"&H509),\"0\"),Notes!$B$5:$C$100,2,FALSE),\"\"))","v":""},"2b","$E$74","$F$74"]
[6586,{"$f":"Menu!$F$29","v":"X"},{"$f":"Menu!$J$29","v":2020},{"$f":"IF(ISBLANK(INDIRECT(\"'\"&F510&\"'!\"&G510)),\"\",INDIRECT(\"'\"&F510&\"'!\"&G510))","v":""},{"$f":"IF(ISBLANK(INDIRECT(\"'\"&F510&\"'!\"&H510)),\"\",IFERROR(VLOOKUP(TEXT(INDIRECT(\"'\"&F510&\"'!\"&H510),\"0\"),Notes!$B$5:$C$100,2,FALSE),\"\"))","v":""},"2b","$G$74","$H$74"]
[6587,{"$f":"Menu!$F$29","v":"X"},{"$f":"Menu!$J$29","v":2020},{"$f":"IF(ISBLANK(INDIRECT(\"'\"&F511&\"'!\"&G511)),\"\",INDIRECT(\"'\"&F511&\"'!\"&G511))","v":""},{"$f":"IF(ISBLANK(INDIRECT(\"'\"&F511&\"'!\"&H511)),\"\",IFERROR(VLOOKUP(TEXT(INDIRECT(\"'\"&F511&\"'!\"&H511),\"0\"),Notes!$B$5:$C$100,2,FALSE),\"\"))","v":""},"2b","$I$74","$J$74"]
[6588,{"$f":"Menu!$F$29","v":"X"},{"$f":"Menu!$J$29","v":2020},{"$f":"IF(ISBLANK(INDIRECT(\"'\"&F512&\"'!\"&G512)),\"\",INDIRECT(\"'\"&F512&\"'!\"&G512))","v":""},{"$f":"IF(ISBLANK(INDIRECT(\"'\"&F512&\"'!\"&H512)),\"\",IFERROR(VLOOKUP(TEXT(INDIRECT(\"'\"&F512&\"'!\"&H512),\"0\"),Notes!$B$5:$C$100,2,FALSE),\"\"))","v":""},"2b","$K$74","$L$74"]
[6589,{"$f":"Menu!$F$29","v":"X"},{"$f":"Menu!$J$29","v":2020},{"$f":"IF(ISBLANK(INDIRECT(\"'\"&F513&\"'!\"&G513)),\"\",INDIRECT(\"'\"&F513&\"'!\"&G513))","v":""},{"$f":"IF(ISBLANK(INDIRECT(\"'\"&F513&\"'!\"&H513)),\"\",IFERROR(VLOOKUP(TEXT(INDIRECT(\"'\"&F513&\"'!\"&H513),\"0\"),Notes!$B$5:$C$100,2,FALSE),\"\"))","v":""},"2b","$M$74","$N$74"]
[6590,{"$f":"Menu!$F$29","v":"X"},{"$f":"Menu!$J$29","v":2020},{"$f":"IF(ISBLANK(INDIRECT(\"'\"&F514&\"'!\"&G514)),\"\",INDIRECT(\"'\"&F514&\"'!\"&G514))","v":""},{"$f":"IF(ISBLANK(INDIRECT(\"'\"&F514&\"'!\"&H514)),\"\",IFERROR(VLOOKUP(TEXT(INDIRECT(\"'\"&F514&\"'!\"&H514),\"0\"),Notes!$B$5:$C$100,2,FALSE),\"\"))","v":""},"2b","$O$74",{"$f":"IF(LEN(TRIM(MID(G514,4,10)))-LEN(SUBSTITUTE(TRIM(MID(G514,4,10)),\"$\",\"\"))=0,\"$\"&CHAR(CODE(MID(G514,2,1))+1)&\"$\"&TRIM(MID(G514,4,10)),\"$\"&MID(G514,2,1)&CHAR(CODE(MID(G514,3,1))+1)&\"$\"&TRIM(MID(G514,5,11)))","v":"$P$74"}]
[6591,{"$f":"Menu!$F$29","v":"X"},{"$f":"Menu!$J$29","v":2020},{"$f":"IF(ISBLANK(INDIRECT(\"'\"&F515&\"'!\"&G515)),\"\",INDIRECT(\"'\"&F515&\"'!\"&G515))","v":""},{"$f":"IF(ISBLANK(INDIRECT(\"'\"&F515&\"'!\"&H515)),\"\",IFERROR(VLOOKUP(TEXT(INDIRECT(\"'\"&F515&\"'!\"&H515),\"0\"),Notes!$B$5:$C$100,2,FALSE),\"\"))","v":""},"2b","$Q$74","$R$74"]
[6592,{"$f":"Menu!$F$29","v":"X"},{"$f":"Menu!$J$29","v":2020},{"$f":"IF(ISBLANK(INDIRECT(\"'\"&F516&\"'!\"&G516)),\"\",INDIRECT(\"'\"&F516&\"'!\"&G516))","v":""},{"$f":"IF(ISBLANK(INDIRECT(\"'\"&F516&\"'!\"&H516)),\"\",IFERROR(VLOOKUP(TEXT(INDIRECT(\"'\"&F516&\"'!\"&H516),\"0\"),Notes!$B$5:$C$100,2,FALSE),\"\"))","v":""},"2b","$S$74","$T$74"]
[6593,{"$f":"Menu!$F$29","v":"X"},{"$f":"Menu!$J$29","v":2020},{"$f":"IF(ISBLANK(INDIRECT(\"'\"&F517&\"'!\"&G517)),\"\",INDIRECT(\"'\"&F517&\"'!\"&G517))","v":""},{"$f":"IF(ISBLANK(INDIRECT(\"'\"&F517&\"'!\"&H517)),\"\",IFERROR(VLOOKUP(TEXT(INDIRECT(\"'\"&F517&\"'!\"&H517),\"0\"),Notes!$B$5:$C$100,2,FALSE),\"\"))","v":""},"2b","$U$74","$V$74"]
[6594,{"$f":"Menu!$F$29","v":"X"},{"$f":"Menu!$J$29","v":2020},{"$f":"IF(ISBLANK(INDIRECT(\"'\"&F518&\"'!\"&G518)),\"\",INDIRECT(\"'\"&F518&\"'!\"&G518))","v":""},{"$f":"IF(ISBLANK(INDIRECT(\"'\"&F518&\"'!\"&H518)),\"\",IFERROR(VLOOKUP(TEXT(INDIRECT(\"'\"&F518&\"'!\"&H518),\"0\"),Notes!$B$5:$C$100,2,FALSE),\"\"))","v":""},"2b","$W$74","$X$74"]
[6595,{"$f":"Menu!$F$29","v":"X"},{"$f":"Menu!$J$29","v":2020},{"$f":"IF(ISBLANK(INDIRECT(\"'\"&F519&\"'!\"&G519)),\"\",INDIRECT(\"'\"&F519&\"'!\"&G519))","v":""},{"$f":"IF(ISBLANK(INDIRECT(\"'\"&F519&\"'!\"&H519)),\"\",IFERROR(VLOOKUP(TEXT(INDIRECT(\"'\"&F519&\"'!\"&H519),\"0\"),Notes!$B$5:$C$100,2,FALSE),\"\"))","v":""},"2b","$Y$74","$Z$74"]
[6596,{"$f":"Menu!$F$29","v":"X"},{"$f":"Menu!$J$29","v":2020},{"$f":"IF(ISBLANK(INDIRECT(\"'\"&F520&\"'!\"&G520)),\"\",INDIRECT(\"'\"&F520&\"'!\"&G520))","v":""},{"$f":"IF(ISBLANK(INDIRECT(\"'\"&F520&\"'!\"&H520)),\"\",IFERROR(VLOOKUP(TEXT(INDIRECT(\"'\"&F520&\"'!\"&H520),\"0\"),Notes!$B$5:$C$100,2,FALSE),\"\"))","v":""},"2b","$AA$74","$AB$74"]
[6597,{"$f":"Menu!$F$29","v":"X"},{"$f":"Menu!$J$29","v":2020},{"$f":"IF(ISBLANK(INDIRECT(\"'\"&F521&\"'!\"&G521)),\"\",INDIRECT(\"'\"&F521&\"'!\"&G521))","v":""},{"$f":"IF(ISBLANK(INDIRECT(\"'\"&F521&\"'!\"&H521)),\"\",IFERROR(VLOOKUP(TEXT(INDIRECT(\"'\"&F521&\"'!\"&H521),\"0\"),Notes!$B$5:$C$100,2,FALSE),\"\"))","v":""},"2c","$E$10","$F$10"]
[6598,{"$f":"Menu!$F$29","v":"X"},{"$f":"Menu!$J$29","v":2020},{"$f":"IF(ISBLANK(INDIRECT(\"'\"&F522&\"'!\"&G522)),\"\",INDIRECT(\"'\"&F522&\"'!\"&G522))","v":""},{"$f":"IF(ISBLANK(INDIRECT(\"'\"&F522&\"'!\"&H522)),\"\",IFERROR(VLOOKUP(TEXT(INDIRECT(\"'\"&F522&\"'!\"&H522),\"0\"),Notes!$B$5:$C$100,2,FALSE),\"\"))","v":""},"2c","$G$10","$H$10"]
[6599,{"$f":"Menu!$F$29","v":"X"},{"$f":"Menu!$J$29","v":2020},{"$f":"IF(ISBLANK(INDIRECT(\"'\"&F523&\"'!\"&G523)),\"\",INDIRECT(\"'\"&F523&\"'!\"&G523))","v":""},{"$f":"IF(ISBLANK(INDIRECT(\"'\"&F523&\"'!\"&H523)),\"\",IFERROR(VLOOKUP(TEXT(INDIRECT(\"'\"&F523&\"'!\"&H523),\"0\"),Notes!$B$5:$C$100,2,FALSE),\"\"))","v":""},"2c","$I$10","$J$10"]
[6600,{"$f":"Menu!$F$29","v":"X"},{"$f":"Menu!$J$29","v":2020},{"$f":"IF(ISBLANK(INDIRECT(\"'\"&F524&\"'!\"&G524)),\"\",INDIRECT(\"'\"&F524&\"'!\"&G524))","v":""},{"$f":"IF(ISBLANK(INDIRECT(\"'\"&F524&\"'!\"&H524)),\"\",IFERROR(VLOOKUP(TEXT(INDIRECT(\"'\"&F524&\"'!\"&H524),\"0\"),Notes!$B$5:$C$100,2,FALSE),\"\"))","v":""},"2c","$K$10","$L$10"]
[6601,{"$f":"Menu!$F$29","v":"X"},{"$f":"Menu!$J$29","v":2020},{"$f":"IF(ISBLANK(INDIRECT(\"'\"&F525&\"'!\"&G525)),\"\",INDIRECT(\"'\"&F525&\"'!\"&G525))","v":""},{"$f":"IF(ISBLANK(INDIRECT(\"'\"&F525&\"'!\"&H525)),\"\",IFERROR(VLOOKUP(TEXT(INDIRECT(\"'\"&F525&\"'!\"&H525),\"0\"),Notes!$B$5:$C$100,2,FALSE),\"\"))","v":""},"2c","$M$10","$N$10"]
[6602,{"$f":"Menu!$F$29","v":"X"},{"$f":"Menu!$J$29","v":2020},{"$f":"IF(ISBLANK(INDIRECT(\"'\"&F526&\"'!\"&G526)),\"\",INDIRECT(\"'\"&F526&\"'!\"&G526))","v":""},{"$f":"IF(ISBLANK(INDIRECT(\"'\"&F526&\"'!\"&H526)),\"\",IFERROR(VLOOKUP(TEXT(INDIRECT(\"'\"&F526&\"'!\"&H526),\"0\"),Notes!$B$5:$C$100,2,FALSE),\"\"))","v":""},"2c","$O$10","$P$10"]
[6603,{"$f":"Menu!$F$29","v":"X"},{"$f":"Menu!$J$29","v":2020},{"$f":"IF(ISBLANK(INDIRECT(\"'\"&F527&\"'!\"&G527)),\"\",INDIRECT(\"'\"&F527&\"'!\"&G527))","v":""},{"$f":"IF(ISBLANK(INDIRECT(\"'\"&F527&\"'!\"&H527)),\"\",IFERROR(VLOOKUP(TEXT(INDIRECT(\"'\"&F527&\"'!\"&H527),\"0\"),Notes!$B$5:$C$100,2,FALSE),\"\"))","v":""},"2c","$Q$10","$R$10"]
[6604,{"$f":"Menu!$F$29","v":"X"},{"$f":"Menu!$J$29","v":2020},{"$f":"IF(ISBLANK(INDIRECT(\"'\"&F528&\"'!\"&G528)),\"\",INDIRECT(\"'\"&F528&\"'!\"&G528))","v":""},{"$f":"IF(ISBLANK(INDIRECT(\"'\"&F528&\"'!\"&H528)),\"\",IFERROR(VLOOKUP(TEXT(INDIRECT(\"'\"&F528&\"'!\"&H528),\"0\"),Notes!$B$5:$C$100,2,FALSE),\"\"))","v":""},"2c","$S$10","$T$10"]
[6605,{"$f":"Menu!$F$29","v":"X"},{"$f":"Menu!$J$29","v":2020},{"$f":"IF(ISBLANK(INDIRECT(\"'\"&F529&\"'!\"&G529)),\"\",INDIRECT(\"'\"&F529&\"'!\"&G529))","v":""},{"$f":"IF(ISBLANK(INDIRECT(\"'\"&F529&\"'!\"&H529)),\"\",IFERROR(VLOOKUP(TEXT(INDIRECT(\"'\"&F529&\"'!\"&H529),\"0\"),Notes!$B$5:$C$100,2,FALSE),\"\"))","v":""},"2c","$U$10","$V$10"]
[6606,{"$f":"Menu!$F$29","v":"X"},{"$f":"Menu!$J$29","v":2020},{"$f":"IF(ISBLANK(INDIRECT(\"'\"&F530&\"'!\"&G530)),\"\",INDIRECT(\"'\"&F530&\"'!\"&G530))","v":""},{"$f":"IF(ISBLANK(INDIRECT(\"'\"&F530&\"'!\"&H530)),\"\",IFERROR(VLOOKUP(TEXT(INDIRECT(\"'\"&F530&\"'!\"&H530),\"0\"),Notes!$B$5:$C$100,2,FALSE),\"\"))","v":""},"2c","$W$10","$X$10"]
[6607,{"$f":"Menu!$F$29","v":"X"},{"$f":"Menu!$J$29","v":2020},{"$f":"IF(ISBLANK(INDIRECT(\"'\"&F531&\"'!\"&G531)),\"\",INDIRECT(\"'\"&F531&\"'!\"&G531))","v":""},{"$f":"IF(ISBLANK(INDIRECT(\"'\"&F531&\"'!\"&H531)),\"\",IFERROR(VLOOKUP(TEXT(INDIRECT(\"'\"&F531&\"'!\"&H531),\"0\"),Notes!$B$5:$C$100,2,FALSE),\"\"))","v":""},"2c","$Y$10","$Z$10"]
[6608,{"$f":"Menu!$F$29","v":"X"},{"$f":"Menu!$J$29","v":2020},{"$f":"IF(ISBLANK(INDIRECT(\"'\"&F532&\"'!\"&G532)),\"\",INDIRECT(\"'\"&F532&\"'!\"&G532))","v":""},{"$f":"IF(ISBLANK(INDIRECT(\"'\"&F532&\"'!\"&H532)),\"\",IFERROR(VLOOKUP(TEXT(INDIRECT(\"'\"&F532&\"'!\"&H532),\"0\"),Notes!$B$5:$C$100,2,FALSE),\"\"))","v":""},"2c","$AA$10","$AB$10"]
[6609,{"$f":"Menu!$F$29","v":"X"},{"$f":"Menu!$J$29","v":2020},{"$f":"IF(ISBLANK(INDIRECT(\"'\"&F533&\"'!\"&G533)),\"\",INDIRECT(\"'\"&F533&\"'!\"&G533))","v":""},{"$f":"IF(ISBLANK(INDIRECT(\"'\"&F533&\"'!\"&H533)),\"\",IFERROR(VLOOKUP(TEXT(INDIRECT(\"'\"&F533&\"'!\"&H533),\"0\"),Notes!$B$5:$C$100,2,FALSE),\"\"))","v":""},"2c","$E$11","$F$11"]
[6610,{"$f":"Menu!$F$29","v":"X"},{"$f":"Menu!$J$29","v":2020},{"$f":"IF(ISBLANK(INDIRECT(\"'\"&F534&\"'!\"&G534)),\"\",INDIRECT(\"'\"&F534&\"'!\"&G534))","v":""},{"$f":"IF(ISBLANK(INDIRECT(\"'\"&F534&\"'!\"&H534)),\"\",IFERROR(VLOOKUP(TEXT(INDIRECT(\"'\"&F534&\"'!\"&H534),\"0\"),Notes!$B$5:$C$100,2,FALSE),\"\"))","v":""},"2c","$G$11","$H$11"]
[6611,{"$f":"Menu!$F$29","v":"X"},{"$f":"Menu!$J$29","v":2020},{"$f":"IF(ISBLANK(INDIRECT(\"'\"&F535&\"'!\"&G535)),\"\",INDIRECT(\"'\"&F535&\"'!\"&G535))","v":""},{"$f":"IF(ISBLANK(INDIRECT(\"'\"&F535&\"'!\"&H535)),\"\",IFERROR(VLOOKUP(TEXT(INDIRECT(\"'\"&F535&\"'!\"&H535),\"0\"),Notes!$B$5:$C$100,2,FALSE),\"\"))","v":""},"2c","$I$11","$J$11"]
[6612,{"$f":"Menu!$F$29","v":"X"},{"$f":"Menu!$J$29","v":2020},{"$f":"IF(ISBLANK(INDIRECT(\"'\"&F536&\"'!\"&G536)),\"\",INDIRECT(\"'\"&F536&\"'!\"&G536))","v":""},{"$f":"IF(ISBLANK(INDIRECT(\"'\"&F536&\"'!\"&H536)),\"\",IFERROR(VLOOKUP(TEXT(INDIRECT(\"'\"&F536&\"'!\"&H536),\"0\"),Notes!$B$5:$C$100,2,FALSE),\"\"))","v":""},"2c","$K$11","$L$11"]
[6613,{"$f":"Menu!$F$29","v":"X"},{"$f":"Menu!$J$29","v":2020},{"$f":"IF(ISBLANK(INDIRECT(\"'\"&F537&\"'!\"&G537)),\"\",INDIRECT(\"'\"&F537&\"'!\"&G537))","v":""},{"$f":"IF(ISBLANK(INDIRECT(\"'\"&F537&\"'!\"&H537)),\"\",IFERROR(VLOOKUP(TEXT(INDIRECT(\"'\"&F537&\"'!\"&H537),\"0\"),Notes!$B$5:$C$100,2,FALSE),\"\"))","v":""},"2c","$M$11","$N$11"]
[6614,{"$f":"Menu!$F$29","v":"X"},{"$f":"Menu!$J$29","v":2020},{"$f":"IF(ISBLANK(INDIRECT(\"'\"&F538&\"'!\"&G538)),\"\",INDIRECT(\"'\"&F538&\"'!\"&G538))","v":""},{"$f":"IF(ISBLANK(INDIRECT(\"'\"&F538&\"'!\"&H538)),\"\",IFERROR(VLOOKUP(TEXT(INDIRECT(\"'\"&F538&\"'!\"&H538),\"0\"),Notes!$B$5:$C$100,2,FALSE),\"\"))","v":""},"2c","$O$11","$P$11"]
[6615,{"$f":"Menu!$F$29","v":"X"},{"$f":"Menu!$J$29","v":2020},{"$f":"IF(ISBLANK(INDIRECT(\"'\"&F539&\"'!\"&G539)),\"\",INDIRECT(\"'\"&F539&\"'!\"&G539))","v":""},{"$f":"IF(ISBLANK(INDIRECT(\"'\"&F539&\"'!\"&H539)),\"\",IFERROR(VLOOKUP(TEXT(INDIRECT(\"'\"&F539&\"'!\"&H539),\"0\"),Notes!$B$5:$C$100,2,FALSE),\"\"))","v":""},"2c","$Q$11","$R$11"]
[6616,{"$f":"Menu!$F$29","v":"X"},{"$f":"Menu!$J$29","v":2020},{"$f":"IF(ISBLANK(INDIRECT(\"'\"&F540&\"'!\"&G540)),\"\",INDIRECT(\"'\"&F540&\"'!\"&G540))","v":""},{"$f":"IF(ISBLANK(INDIRECT(\"'\"&F540&\"'!\"&H540)),\"\",IFERROR(VLOOKUP(TEXT(INDIRECT(\"'\"&F540&\"'!\"&H540),\"0\"),Notes!$B$5:$C$100,2,FALSE),\"\"))","v":""},"2c","$S$11","$T$11"]
[6617,{"$f":"Menu!$F$29","v":"X"},{"$f":"Menu!$J$29","v":2020},{"$f":"IF(ISBLANK(INDIRECT(\"'\"&F541&\"'!\"&G541)),\"\",INDIRECT(\"'\"&F541&\"'!\"&G541))","v":""},{"$f":"IF(ISBLANK(INDIRECT(\"'\"&F541&\"'!\"&H541)),\"\",IFERROR(VLOOKUP(TEXT(INDIRECT(\"'\"&F541&\"'!\"&H541),\"0\"),Notes!$B$5:$C$100,2,FALSE),\"\"))","v":""},"2c","$U$11","$V$11"]
[6618,{"$f":"Menu!$F$29","v":"X"},{"$f":"Menu!$J$29","v":2020},{"$f":"IF(ISBLANK(INDIRECT(\"'\"&F542&\"'!\"&G542)),\"\",INDIRECT(\"'\"&F542&\"'!\"&G542))","v":""},{"$f":"IF(ISBLANK(INDIRECT(\"'\"&F542&\"'!\"&H542)),\"\",IFERROR(VLOOKUP(TEXT(INDIRECT(\"'\"&F542&\"'!\"&H542),\"0\"),Notes!$B$5:$C$100,2,FALSE),\"\"))","v":""},"2c","$W$11","$X$11"]
[6619,{"$f":"Menu!$F$29","v":"X"},{"$f":"Menu!$J$29","v":2020},{"$f":"IF(ISBLANK(INDIRECT(\"'\"&F543&\"'!\"&G543)),\"\",INDIRECT(\"'\"&F543&\"'!\"&G543))","v":""},{"$f":"IF(ISBLANK(INDIRECT(\"'\"&F543&\"'!\"&H543)),\"\",IFERROR(VLOOKUP(TEXT(INDIRECT(\"'\"&F543&\"'!\"&H543),\"0\"),Notes!$B$5:$C$100,2,FALSE),\"\"))","v":""},"2c","$Y$11","$Z$11"]
[6620,{"$f":"Menu!$F$29","v":"X"},{"$f":"Menu!$J$29","v":2020},{"$f":"IF(ISBLANK(INDIRECT(\"'\"&F544&\"'!\"&G544)),\"\",INDIRECT(\"'\"&F544&\"'!\"&G544))","v":""},{"$f":"IF(ISBLANK(INDIRECT(\"'\"&F544&\"'!\"&H544)),\"\",IFERROR(VLOOKUP(TEXT(INDIRECT(\"'\"&F544&\"'!\"&H544),\"0\"),Notes!$B$5:$C$100,2,FALSE),\"\"))","v":""},"2c","$AA$11","$AB$11"]
[6621,{"$f":"Menu!$F$29","v":"X"},{"$f":"Menu!$J$29","v":2020},{"$f":"IF(ISBLANK(INDIRECT(\"'\"&F545&\"'!\"&G545)),\"\",INDIRECT(\"'\"&F545&\"'!\"&G545))","v":""},{"$f":"IF(ISBLANK(INDIRECT(\"'\"&F545&\"'!\"&H545)),\"\",IFERROR(VLOOKUP(TEXT(INDIRECT(\"'\"&F545&\"'!\"&H545),\"0\"),Notes!$B$5:$C$100,2,FALSE),\"\"))","v":""},"2c","$E$19","$F$19"]
[6622,{"$f":"Menu!$F$29","v":"X"},{"$f":"Menu!$J$29","v":2020},{"$f":"IF(ISBLANK(INDIRECT(\"'\"&F546&\"'!\"&G546)),\"\",INDIRECT(\"'\"&F546&\"'!\"&G546))","v":""},{"$f":"IF(ISBLANK(INDIRECT(\"'\"&F546&\"'!\"&H546)),\"\",IFERROR(VLOOKUP(TEXT(INDIRECT(\"'\"&F546&\"'!\"&H546),\"0\"),Notes!$B$5:$C$100,2,FALSE),\"\"))","v":""},"2c","$G$19","$H$19"]
[6623,{"$f":"Menu!$F$29","v":"X"},{"$f":"Menu!$J$29","v":2020},{"$f":"IF(ISBLANK(INDIRECT(\"'\"&F547&\"'!\"&G547)),\"\",INDIRECT(\"'\"&F547&\"'!\"&G547))","v":""},{"$f":"IF(ISBLANK(INDIRECT(\"'\"&F547&\"'!\"&H547)),\"\",IFERROR(VLOOKUP(TEXT(INDIRECT(\"'\"&F547&\"'!\"&H547),\"0\"),Notes!$B$5:$C$100,2,FALSE),\"\"))","v":""},"2c","$I$19","$J$19"]
[6624,{"$f":"Menu!$F$29","v":"X"},{"$f":"Menu!$J$29","v":2020},{"$f":"IF(ISBLANK(INDIRECT(\"'\"&F548&\"'!\"&G548)),\"\",INDIRECT(\"'\"&F548&\"'!\"&G548))","v":""},{"$f":"IF(ISBLANK(INDIRECT(\"'\"&F548&\"'!\"&H548)),\"\",IFERROR(VLOOKUP(TEXT(INDIRECT(\"'\"&F548&\"'!\"&H548),\"0\"),Notes!$B$5:$C$100,2,FALSE),\"\"))","v":""},"2c","$K$19","$L$19"]
[6625,{"$f":"Menu!$F$29","v":"X"},{"$f":"Menu!$J$29","v":2020},{"$f":"IF(ISBLANK(INDIRECT(\"'\"&F549&\"'!\"&G549)),\"\",INDIRECT(\"'\"&F549&\"'!\"&G549))","v":""},{"$f":"IF(ISBLANK(INDIRECT(\"'\"&F549&\"'!\"&H549)),\"\",IFERROR(VLOOKUP(TEXT(INDIRECT(\"'\"&F549&\"'!\"&H549),\"0\"),Notes!$B$5:$C$100,2,FALSE),\"\"))","v":""},"2c","$M$19","$N$19"]
[6626,{"$f":"Menu!$F$29","v":"X"},{"$f":"Menu!$J$29","v":2020},{"$f":"IF(ISBLANK(INDIRECT(\"'\"&F550&\"'!\"&G550)),\"\",INDIRECT(\"'\"&F550&\"'!\"&G550))","v":""},{"$f":"IF(ISBLANK(INDIRECT(\"'\"&F550&\"'!\"&H550)),\"\",IFERROR(VLOOKUP(TEXT(INDIRECT(\"'\"&F550&\"'!\"&H550),\"0\"),Notes!$B$5:$C$100,2,FALSE),\"\"))","v":""},"2c","$O$19","$P$19"]
[6627,{"$f":"Menu!$F$29","v":"X"},{"$f":"Menu!$J$29","v":2020},{"$f":"IF(ISBLANK(INDIRECT(\"'\"&F551&\"'!\"&G551)),\"\",INDIRECT(\"'\"&F551&\"'!\"&G551))","v":""},{"$f":"IF(ISBLANK(INDIRECT(\"'\"&F551&\"'!\"&H551)),\"\",IFERROR(VLOOKUP(TEXT(INDIRECT(\"'\"&F551&\"'!\"&H551),\"0\"),Notes!$B$5:$C$100,2,FALSE),\"\"))","v":""},"2c","$Q$19","$R$19"]
[6628,{"$f":"Menu!$F$29","v":"X"},{"$f":"Menu!$J$29","v":2020},{"$f":"IF(ISBLANK(INDIRECT(\"'\"&F552&\"'!\"&G552)),\"\",INDIRECT(\"'\"&F552&\"'!\"&G552))","v":""},{"$f":"IF(ISBLANK(INDIRECT(\"'\"&F552&\"'!\"&H552)),\"\",IFERROR(VLOOKUP(TEXT(INDIRECT(\"'\"&F552&\"'!\"&H552),\"0\"),Notes!$B$5:$C$100,2,FALSE),\"\"))","v":""},"2c","$S$19","$T$19"]
[6629,{"$f":"Menu!$F$29","v":"X"},{"$f":"Menu!$J$29","v":2020},{"$f":"IF(ISBLANK(INDIRECT(\"'\"&F553&\"'!\"&G553)),\"\",INDIRECT(\"'\"&F553&\"'!\"&G553))","v":""},{"$f":"IF(ISBLANK(INDIRECT(\"'\"&F553&\"'!\"&H553)),\"\",IFERROR(VLOOKUP(TEXT(INDIRECT(\"'\"&F553&\"'!\"&H553),\"0\"),Notes!$B$5:$C$100,2,FALSE),\"\"))","v":""},"2c","$U$19","$V$19"]
[6630,{"$f":"Menu!$F$29","v":"X"},{"$f":"Menu!$J$29","v":2020},{"$f":"IF(ISBLANK(INDIRECT(\"'\"&F554&\"'!\"&G554)),\"\",INDIRECT(\"'\"&F554&\"'!\"&G554))","v":""},{"$f":"IF(ISBLANK(INDIRECT(\"'\"&F554&\"'!\"&H554)),\"\",IFERROR(VLOOKUP(TEXT(INDIRECT(\"'\"&F554&\"'!\"&H554),\"0\"),Notes!$B$5:$C$100,2,FALSE),\"\"))","v":""},"2c","$W$19","$X$19"]
[6631,{"$f":"Menu!$F$29","v":"X"},{"$f":"Menu!$J$29","v":2020},{"$f":"IF(ISBLANK(INDIRECT(\"'\"&F555&\"'!\"&G555)),\"\",INDIRECT(\"'\"&F555&\"'!\"&G555))","v":""},{"$f":"IF(ISBLANK(INDIRECT(\"'\"&F555&\"'!\"&H555)),\"\",IFERROR(VLOOKUP(TEXT(INDIRECT(\"'\"&F555&\"'!\"&H555),\"0\"),Notes!$B$5:$C$100,2,FALSE),\"\"))","v":""},"2c","$Y$19","$Z$19"]
[6632,{"$f":"Menu!$F$29","v":"X"},{"$f":"Menu!$J$29","v":2020},{"$f":"IF(ISBLANK(INDIRECT(\"'\"&F556&\"'!\"&G556)),\"\",INDIRECT(\"'\"&F556&\"'!\"&G556))","v":""},{"$f":"IF(ISBLANK(INDIRECT(\"'\"&F556&\"'!\"&H556)),\"\",IFERROR(VLOOKUP(TEXT(INDIRECT(\"'\"&F556&\"'!\"&H556),\"0\"),Notes!$B$5:$C$100,2,FALSE),\"\"))","v":""},"2c","$AA$19","$AB$19"]
[6645,{"$f":"Menu!$F$29","v":"X"},{"$f":"Menu!$J$29","v":2020},{"$f":"IF(ISBLANK(INDIRECT(\"'\"&F557&\"'!\"&G557)),\"\",INDIRECT(\"'\"&F557&\"'!\"&G557))","v":""},{"$f":"IF(ISBLANK(INDIRECT(\"'\"&F557&\"'!\"&H557)),\"\",IFERROR(VLOOKUP(TEXT(INDIRECT(\"'\"&F557&\"'!\"&H557),\"0\"),Notes!$B$5:$C$100,2,FALSE),\"\"))","v":""},"2c","$E$64","$F$64"]
[6646,{"$f":"Menu!$F$29","v":"X"},{"$f":"Menu!$J$29","v":2020},{"$f":"IF(ISBLANK(INDIRECT(\"'\"&F558&\"'!\"&G558)),\"\",INDIRECT(\"'\"&F558&\"'!\"&G558))","v":""},{"$f":"IF(ISBLANK(INDIRECT(\"'\"&F558&\"'!\"&H558)),\"\",IFERROR(VLOOKUP(TEXT(INDIRECT(\"'\"&F558&\"'!\"&H558),\"0\"),Notes!$B$5:$C$100,2,FALSE),\"\"))","v":""},"2c","$G$64","$H$64"]
[6647,{"$f":"Menu!$F$29","v":"X"},{"$f":"Menu!$J$29","v":2020},{"$f":"IF(ISBLANK(INDIRECT(\"'\"&F559&\"'!\"&G559)),\"\",INDIRECT(\"'\"&F559&\"'!\"&G559))","v":""},{"$f":"IF(ISBLANK(INDIRECT(\"'\"&F559&\"'!\"&H559)),\"\",IFERROR(VLOOKUP(TEXT(INDIRECT(\"'\"&F559&\"'!\"&H559),\"0\"),Notes!$B$5:$C$100,2,FALSE),\"\"))","v":""},"2c","$I$64","$J$64"]
[6648,{"$f":"Menu!$F$29","v":"X"},{"$f":"Menu!$J$29","v":2020},{"$f":"IF(ISBLANK(INDIRECT(\"'\"&F560&\"'!\"&G560)),\"\",INDIRECT(\"'\"&F560&\"'!\"&G560))","v":""},{"$f":"IF(ISBLANK(INDIRECT(\"'\"&F560&\"'!\"&H560)),\"\",IFERROR(VLOOKUP(TEXT(INDIRECT(\"'\"&F560&\"'!\"&H560),\"0\"),Notes!$B$5:$C$100,2,FALSE),\"\"))","v":""},"2c","$K$64","$L$64"]
[6649,{"$f":"Menu!$F$29","v":"X"},{"$f":"Menu!$J$29","v":2020},{"$f":"IF(ISBLANK(INDIRECT(\"'\"&F561&\"'!\"&G561)),\"\",INDIRECT(\"'\"&F561&\"'!\"&G561))","v":""},{"$f":"IF(ISBLANK(INDIRECT(\"'\"&F561&\"'!\"&H561)),\"\",IFERROR(VLOOKUP(TEXT(INDIRECT(\"'\"&F561&\"'!\"&H561),\"0\"),Notes!$B$5:$C$100,2,FALSE),\"\"))","v":""},"2c","$M$64","$N$64"]
[6650,{"$f":"Menu!$F$29","v":"X"},{"$f":"Menu!$J$29","v":2020},{"$f":"IF(ISBLANK(INDIRECT(\"'\"&F562&\"'!\"&G562)),\"\",INDIRECT(\"'\"&F562&\"'!\"&G562))","v":""},{"$f":"IF(ISBLANK(INDIRECT(\"'\"&F562&\"'!\"&H562)),\"\",IFERROR(VLOOKUP(TEXT(INDIRECT(\"'\"&F562&\"'!\"&H562),\"0\"),Notes!$B$5:$C$100,2,FALSE),\"\"))","v":""},"2c","$O$64","$P$64"]
[6651,{"$f":"Menu!$F$29","v":"X"},{"$f":"Menu!$J$29","v":2020},{"$f":"IF(ISBLANK(INDIRECT(\"'\"&F563&\"'!\"&G563)),\"\",INDIRECT(\"'\"&F563&\"'!\"&G563))","v":""},{"$f":"IF(ISBLANK(INDIRECT(\"'\"&F563&\"'!\"&H563)),\"\",IFERROR(VLOOKUP(TEXT(INDIRECT(\"'\"&F563&\"'!\"&H563),\"0\"),Notes!$B$5:$C$100,2,FALSE),\"\"))","v":""},"2c","$Q$64","$R$64"]
[6652,{"$f":"Menu!$F$29","v":"X"},{"$f":"Menu!$J$29","v":2020},{"$f":"IF(ISBLANK(INDIRECT(\"'\"&F564&\"'!\"&G564)),\"\",INDIRECT(\"'\"&F564&\"'!\"&G564))","v":""},{"$f":"IF(ISBLANK(INDIRECT(\"'\"&F564&\"'!\"&H564)),\"\",IFERROR(VLOOKUP(TEXT(INDIRECT(\"'\"&F564&\"'!\"&H564),\"0\"),Notes!$B$5:$C$100,2,FALSE),\"\"))","v":""},"2c","$S$64","$T$64"]
[6653,{"$f":"Menu!$F$29","v":"X"},{"$f":"Menu!$J$29","v":2020},{"$f":"IF(ISBLANK(INDIRECT(\"'\"&F565&\"'!\"&G565)),\"\",INDIRECT(\"'\"&F565&\"'!\"&G565))","v":""},{"$f":"IF(ISBLANK(INDIRECT(\"'\"&F565&\"'!\"&H565)),\"\",IFERROR(VLOOKUP(TEXT(INDIRECT(\"'\"&F565&\"'!\"&H565),\"0\"),Notes!$B$5:$C$100,2,FALSE),\"\"))","v":""},"2c","$U$64","$V$64"]
[6654,{"$f":"Menu!$F$29","v":"X"},{"$f":"Menu!$J$29","v":2020},{"$f":"IF(ISBLANK(INDIRECT(\"'\"&F566&\"'!\"&G566)),\"\",INDIRECT(\"'\"&F566&\"'!\"&G566))","v":""},{"$f":"IF(ISBLANK(INDIRECT(\"'\"&F566&\"'!\"&H566)),\"\",IFERROR(VLOOKUP(TEXT(INDIRECT(\"'\"&F566&\"'!\"&H566),\"0\"),Notes!$B$5:$C$100,2,FALSE),\"\"))","v":""},"2c","$W$64","$X$64"]
[6655,{"$f":"Menu!$F$29","v":"X"},{"$f":"Menu!$J$29","v":2020},{"$f":"IF(ISBLANK(INDIRECT(\"'\"&F567&\"'!\"&G567)),\"\",INDIRECT(\"'\"&F567&\"'!\"&G567))","v":""},{"$f":"IF(ISBLANK(INDIRECT(\"'\"&F567&\"'!\"&H567)),\"\",IFERROR(VLOOKUP(TEXT(INDIRECT(\"'\"&F567&\"'!\"&H567),\"0\"),Notes!$B$5:$C$100,2,FALSE),\"\"))","v":""},"2c","$Y$64","$Z$64"]
[6656,{"$f":"Menu!$F$29","v":"X"},{"$f":"Menu!$J$29","v":2020},{"$f":"IF(ISBLANK(INDIRECT(\"'\"&F568&\"'!\"&G568)),\"\",INDIRECT(\"'\"&F568&\"'!\"&G568))","v":""},{"$f":"IF(ISBLANK(INDIRECT(\"'\"&F568&\"'!\"&H568)),\"\",IFERROR(VLOOKUP(TEXT(INDIRECT(\"'\"&F568&\"'!\"&H568),\"0\"),Notes!$B$5:$C$100,2,FALSE),\"\"))","v":""},"2c","$AA$64","$AB$64"]
[6657,{"$f":"Menu!$F$29","v":"X"},{"$f":"Menu!$J$29","v":2020},{"$f":"IF(ISBLANK(INDIRECT(\"'\"&F569&\"'!\"&G569)),\"\",INDIRECT(\"'\"&F569&\"'!\"&G569))","v":""},{"$f":"IF(ISBLANK(INDIRECT(\"'\"&F569&\"'!\"&H569)),\"\",IFERROR(VLOOKUP(TEXT(INDIRECT(\"'\"&F569&\"'!\"&H569),\"0\"),Notes!$B$5:$C$100,2,FALSE),\"\"))","v":""},"2c","$E$65","$F$65"]
[6658,{"$f":"Menu!$F$29","v":"X"},{"$f":"Menu!$J$29","v":2020},{"$f":"IF(ISBLANK(INDIRECT(\"'\"&F570&\"'!\"&G570)),\"\",INDIRECT(\"'\"&F570&\"'!\"&G570))","v":""},{"$f":"IF(ISBLANK(INDIRECT(\"'\"&F570&\"'!\"&H570)),\"\",IFERROR(VLOOKUP(TEXT(INDIRECT(\"'\"&F570&\"'!\"&H570),\"0\"),Notes!$B$5:$C$100,2,FALSE),\"\"))","v":""},"2c","$G$65","$H$65"]
[6659,{"$f":"Menu!$F$29","v":"X"},{"$f":"Menu!$J$29","v":2020},{"$f":"IF(ISBLANK(INDIRECT(\"'\"&F571&\"'!\"&G571)),\"\",INDIRECT(\"'\"&F571&\"'!\"&G571))","v":""},{"$f":"IF(ISBLANK(INDIRECT(\"'\"&F571&\"'!\"&H571)),\"\",IFERROR(VLOOKUP(TEXT(INDIRECT(\"'\"&F571&\"'!\"&H571),\"0\"),Notes!$B$5:$C$100,2,FALSE),\"\"))","v":""},"2c","$I$65","$J$65"]
[6660,{"$f":"Menu!$F$29","v":"X"},{"$f":"Menu!$J$29","v":2020},{"$f":"IF(ISBLANK(INDIRECT(\"'\"&F572&\"'!\"&G572)),\"\",INDIRECT(\"'\"&F572&\"'!\"&G572))","v":""},{"$f":"IF(ISBLANK(INDIRECT(\"'\"&F572&\"'!\"&H572)),\"\",IFERROR(VLOOKUP(TEXT(INDIRECT(\"'\"&F572&\"'!\"&H572),\"0\"),Notes!$B$5:$C$100,2,FALSE),\"\"))","v":""},"2c","$K$65","$L$65"]
[6661,{"$f":"Menu!$F$29","v":"X"},{"$f":"Menu!$J$29","v":2020},{"$f":"IF(ISBLANK(INDIRECT(\"'\"&F573&\"'!\"&G573)),\"\",INDIRECT(\"'\"&F573&\"'!\"&G573))","v":""},{"$f":"IF(ISBLANK(INDIRECT(\"'\"&F573&\"'!\"&H573)),\"\",IFERROR(VLOOKUP(TEXT(INDIRECT(\"'\"&F573&\"'!\"&H573),\"0\"),Notes!$B$5:$C$100,2,FALSE),\"\"))","v":""},"2c","$M$65","$N$65"]
[6662,{"$f":"Menu!$F$29","v":"X"},{"$f":"Menu!$J$29","v":2020},{"$f":"IF(ISBLANK(INDIRECT(\"'\"&F574&\"'!\"&G574)),\"\",INDIRECT(\"'\"&F574&\"'!\"&G574))","v":""},{"$f":"IF(ISBLANK(INDIRECT(\"'\"&F574&\"'!\"&H574)),\"\",IFERROR(VLOOKUP(TEXT(INDIRECT(\"'\"&F574&\"'!\"&H574),\"0\"),Notes!$B$5:$C$100,2,FALSE),\"\"))","v":""},"2c","$O$65","$P$65"]
[6663,{"$f":"Menu!$F$29","v":"X"},{"$f":"Menu!$J$29","v":2020},{"$f":"IF(ISBLANK(INDIRECT(\"'\"&F575&\"'!\"&G575)),\"\",INDIRECT(\"'\"&F575&\"'!\"&G575))","v":""},{"$f":"IF(ISBLANK(INDIRECT(\"'\"&F575&\"'!\"&H575)),\"\",IFERROR(VLOOKUP(TEXT(INDIRECT(\"'\"&F575&\"'!\"&H575),\"0\"),Notes!$B$5:$C$100,2,FALSE),\"\"))","v":""},"2c","$Q$65","$R$65"]
[6664,{"$f":"Menu!$F$29","v":"X"},{"$f":"Menu!$J$29","v":2020},{"$f":"IF(ISBLANK(INDIRECT(\"'\"&F576&\"'!\"&G576)),\"\",INDIRECT(\"'\"&F576&\"'!\"&G576))","v":""},{"$f":"IF(ISBLANK(INDIRECT(\"'\"&F576&\"'!\"&H576)),\"\",IFERROR(VLOOKUP(TEXT(INDIRECT(\"'\"&F576&\"'!\"&H576),\"0\"),Notes!$B$5:$C$100,2,FALSE),\"\"))","v":""},"2c","$S$65","$T$65"]
[6665,{"$f":"Menu!$F$29","v":"X"},{"$f":"Menu!$J$29","v":2020},{"$f":"IF(ISBLANK(INDIRECT(\"'\"&F577&\"'!\"&G577)),\"\",INDIRECT(\"'\"&F577&\"'!\"&G577))","v":""},{"$f":"IF(ISBLANK(INDIRECT(\"'\"&F577&\"'!\"&H577)),\"\",IFERROR(VLOOKUP(TEXT(INDIRECT(\"'\"&F577&\"'!\"&H577),\"0\"),Notes!$B$5:$C$100,2,FALSE),\"\"))","v":""},"2c","$U$65","$V$65"]
[6666,{"$f":"Menu!$F$29","v":"X"},{"$f":"Menu!$J$29","v":2020},{"$f":"IF(ISBLANK(INDIRECT(\"'\"&F578&\"'!\"&G578)),\"\",INDIRECT(\"'\"&F578&\"'!\"&G578))","v":""},{"$f":"IF(ISBLANK(INDIRECT(\"'\"&F578&\"'!\"&H578)),\"\",IFERROR(VLOOKUP(TEXT(INDIRECT(\"'\"&F578&\"'!\"&H578),\"0\"),Notes!$B$5:$C$100,2,FALSE),\"\"))","v":""},"2c","$W$65",{"$f":"IF(LEN(TRIM(MID(G578,4,10)))-LEN(SUBSTITUTE(TRIM(MID(G578,4,10)),\"$\",\"\"))=0,\"$\"&CHAR(CODE(MID(G578,2,1))+1)&\"$\"&TRIM(MID(G578,4,10)),\"$\"&MID(G578,2,1)&CHAR(CODE(MID(G578,3,1))+1)&\"$\"&TRIM(MID(G578,5,11)))","v":"$X$65"}]
[6667,{"$f":"Menu!$F$29","v":"X"},{"$f":"Menu!$J$29","v":2020},{"$f":"IF(ISBLANK(INDIRECT(\"'\"&F579&\"'!\"&G579)),\"\",INDIRECT(\"'\"&F579&\"'!\"&G579))","v":""},{"$f":"IF(ISBLANK(INDIRECT(\"'\"&F579&\"'!\"&H579)),\"\",IFERROR(VLOOKUP(TEXT(INDIRECT(\"'\"&F579&\"'!\"&H579),\"0\"),Notes!$B$5:$C$100,2,FALSE),\"\"))","v":""},"2c","$Y$65","$Z$65"]
[6668,{"$f":"Menu!$F$29","v":"X"},{"$f":"Menu!$J$29","v":2020},{"$f":"IF(ISBLANK(INDIRECT(\"'\"&F580&\"'!\"&G580)),\"\",INDIRECT(\"'\"&F580&\"'!\"&G580))","v":""},{"$f":"IF(ISBLANK(INDIRECT(\"'\"&F580&\"'!\"&H580)),\"\",IFERROR(VLOOKUP(TEXT(INDIRECT(\"'\"&F580&\"'!\"&H580),\"0\"),Notes!$B$5:$C$100,2,FALSE),\"\"))","v":""},"2c","$AA$65","$AB$65"]
[6669,{"$f":"Menu!$F$29","v":"X"},{"$f":"Menu!$J$29","v":2020},{"$f":"IF(ISBLANK(INDIRECT(\"'\"&F581&\"'!\"&G581)),\"\",INDIRECT(\"'\"&F581&\"'!\"&G581))","v":""},{"$f":"IF(ISBLANK(INDIRECT(\"'\"&F581&\"'!\"&H581)),\"\",IFERROR(VLOOKUP(TEXT(INDIRECT(\"'\"&F581&\"'!\"&H581),\"0\"),Notes!$B$5:$C$100,2,FALSE),\"\"))","v":""},"2c","$E$66","$F$66"]
[6670,{"$f":"Menu!$F$29","v":"X"},{"$f":"Menu!$J$29","v":2020},{"$f":"IF(ISBLANK(INDIRECT(\"'\"&F582&\"'!\"&G582)),\"\",INDIRECT(\"'\"&F582&\"'!\"&G582))","v":""},{"$f":"IF(ISBLANK(INDIRECT(\"'\"&F582&\"'!\"&H582)),\"\",IFERROR(VLOOKUP(TEXT(INDIRECT(\"'\"&F582&\"'!\"&H582),\"0\"),Notes!$B$5:$C$100,2,FALSE),\"\"))","v":""},"2c","$G$66","$H$66"]
[6671,{"$f":"Menu!$F$29","v":"X"},{"$f":"Menu!$J$29","v":2020},{"$f":"IF(ISBLANK(INDIRECT(\"'\"&F583&\"'!\"&G583)),\"\",INDIRECT(\"'\"&F583&\"'!\"&G583))","v":""},{"$f":"IF(ISBLANK(INDIRECT(\"'\"&F583&\"'!\"&H583)),\"\",IFERROR(VLOOKUP(TEXT(INDIRECT(\"'\"&F583&\"'!\"&H583),\"0\"),Notes!$B$5:$C$100,2,FALSE),\"\"))","v":""},"2c","$I$66","$J$66"]
[6672,{"$f":"Menu!$F$29","v":"X"},{"$f":"Menu!$J$29","v":2020},{"$f":"IF(ISBLANK(INDIRECT(\"'\"&F584&\"'!\"&G584)),\"\",INDIRECT(\"'\"&F584&\"'!\"&G584))","v":""},{"$f":"IF(ISBLANK(INDIRECT(\"'\"&F584&\"'!\"&H584)),\"\",IFERROR(VLOOKUP(TEXT(INDIRECT(\"'\"&F584&\"'!\"&H584),\"0\"),Notes!$B$5:$C$100,2,FALSE),\"\"))","v":""},"2c","$K$66","$L$66"]
[6673,{"$f":"Menu!$F$29","v":"X"},{"$f":"Menu!$J$29","v":2020},{"$f":"IF(ISBLANK(INDIRECT(\"'\"&F585&\"'!\"&G585)),\"\",INDIRECT(\"'\"&F585&\"'!\"&G585))","v":""},{"$f":"IF(ISBLANK(INDIRECT(\"'\"&F585&\"'!\"&H585)),\"\",IFERROR(VLOOKUP(TEXT(INDIRECT(\"'\"&F585&\"'!\"&H585),\"0\"),Notes!$B$5:$C$100,2,FALSE),\"\"))","v":""},"2c","$M$66","$N$66"]
[6674,{"$f":"Menu!$F$29","v":"X"},{"$f":"Menu!$J$29","v":2020},{"$f":"IF(ISBLANK(INDIRECT(\"'\"&F586&\"'!\"&G586)),\"\",INDIRECT(\"'\"&F586&\"'!\"&G586))","v":""},{"$f":"IF(ISBLANK(INDIRECT(\"'\"&F586&\"'!\"&H586)),\"\",IFERROR(VLOOKUP(TEXT(INDIRECT(\"'\"&F586&\"'!\"&H586),\"0\"),Notes!$B$5:$C$100,2,FALSE),\"\"))","v":""},"2c","$O$66","$P$66"]
[6675,{"$f":"Menu!$F$29","v":"X"},{"$f":"Menu!$J$29","v":2020},{"$f":"IF(ISBLANK(INDIRECT(\"'\"&F587&\"'!\"&G587)),\"\",INDIRECT(\"'\"&F587&\"'!\"&G587))","v":""},{"$f":"IF(ISBLANK(INDIRECT(\"'\"&F587&\"'!\"&H587)),\"\",IFERROR(VLOOKUP(TEXT(INDIRECT(\"'\"&F587&\"'!\"&H587),\"0\"),Notes!$B$5:$C$100,2,FALSE),\"\"))","v":""},"2c","$Q$66","$R$66"]
[6676,{"$f":"Menu!$F$29","v":"X"},{"$f":"Menu!$J$29","v":2020},{"$f":"IF(ISBLANK(INDIRECT(\"'\"&F588&\"'!\"&G588)),\"\",INDIRECT(\"'\"&F588&\"'!\"&G588))","v":""},{"$f":"IF(ISBLANK(INDIRECT(\"'\"&F588&\"'!\"&H588)),\"\",IFERROR(VLOOKUP(TEXT(INDIRECT(\"'\"&F588&\"'!\"&H588),\"0\"),Notes!$B$5:$C$100,2,FALSE),\"\"))","v":""},"2c","$S$66","$T$66"]
[6677,{"$f":"Menu!$F$29","v":"X"},{"$f":"Menu!$J$29","v":2020},{"$f":"IF(ISBLANK(INDIRECT(\"'\"&F589&\"'!\"&G589)),\"\",INDIRECT(\"'\"&F589&\"'!\"&G589))","v":""},{"$f":"IF(ISBLANK(INDIRECT(\"'\"&F589&\"'!\"&H589)),\"\",IFERROR(VLOOKUP(TEXT(INDIRECT(\"'\"&F589&\"'!\"&H589),\"0\"),Notes!$B$5:$C$100,2,FALSE),\"\"))","v":""},"2c","$U$66","$V$66"]
[6678,{"$f":"Menu!$F$29","v":"X"},{"$f":"Menu!$J$29","v":2020},{"$f":"IF(ISBLANK(INDIRECT(\"'\"&F590&\"'!\"&G590)),\"\",INDIRECT(\"'\"&F590&\"'!\"&G590))","v":""},{"$f":"IF(ISBLANK(INDIRECT(\"'\"&F590&\"'!\"&H590)),\"\",IFERROR(VLOOKUP(TEXT(INDIRECT(\"'\"&F590&\"'!\"&H590),\"0\"),Notes!$B$5:$C$100,2,FALSE),\"\"))","v":""},"2c","$W$66","$X$66"]
[6679,{"$f":"Menu!$F$29","v":"X"},{"$f":"Menu!$J$29","v":2020},{"$f":"IF(ISBLANK(INDIRECT(\"'\"&F591&\"'!\"&G591)),\"\",INDIRECT(\"'\"&F591&\"'!\"&G591))","v":""},{"$f":"IF(ISBLANK(INDIRECT(\"'\"&F591&\"'!\"&H591)),\"\",IFERROR(VLOOKUP(TEXT(INDIRECT(\"'\"&F591&\"'!\"&H591),\"0\"),Notes!$B$5:$C$100,2,FALSE),\"\"))","v":""},"2c","$Y$66","$Z$66"]
[6680,{"$f":"Menu!$F$29","v":"X"},{"$f":"Menu!$J$29","v":2020},{"$f":"IF(ISBLANK(INDIRECT(\"'\"&F592&\"'!\"&G592)),\"\",INDIRECT(\"'\"&F592&\"'!\"&G592))","v":""},{"$f":"IF(ISBLANK(INDIRECT(\"'\"&F592&\"'!\"&H592)),\"\",IFERROR(VLOOKUP(TEXT(INDIRECT(\"'\"&F592&\"'!\"&H592),\"0\"),Notes!$B$5:$C$100,2,FALSE),\"\"))","v":""},"2c","$AA$66","$AB$66"]
[6681,{"$f":"Menu!$F$29","v":"X"},{"$f":"Menu!$J$29","v":2020},{"$f":"IF(ISBLANK(INDIRECT(\"'\"&F593&\"'!\"&G593)),\"\",INDIRECT(\"'\"&F593&\"'!\"&G593))","v":""},{"$f":"IF(ISBLANK(INDIRECT(\"'\"&F593&\"'!\"&H593)),\"\",IFERROR(VLOOKUP(TEXT(INDIRECT(\"'\"&F593&\"'!\"&H593),\"0\"),Notes!$B$5:$C$100,2,FALSE),\"\"))","v":""},"2c","$E$67","$F$67"]
[6682,{"$f":"Menu!$F$29","v":"X"},{"$f":"Menu!$J$29","v":2020},{"$f":"IF(ISBLANK(INDIRECT(\"'\"&F594&\"'!\"&G594)),\"\",INDIRECT(\"'\"&F594&\"'!\"&G594))","v":""},{"$f":"IF(ISBLANK(INDIRECT(\"'\"&F594&\"'!\"&H594)),\"\",IFERROR(VLOOKUP(TEXT(INDIRECT(\"'\"&F594&\"'!\"&H594),\"0\"),Notes!$B$5:$C$100,2,FALSE),\"\"))","v":""},"2c","$G$67","$H$67"]
[6683,{"$f":"Menu!$F$29","v":"X"},{"$f":"Menu!$J$29","v":2020},{"$f":"IF(ISBLANK(INDIRECT(\"'\"&F595&\"'!\"&G595)),\"\",INDIRECT(\"'\"&F595&\"'!\"&G595))","v":""},{"$f":"IF(ISBLANK(INDIRECT(\"'\"&F595&\"'!\"&H595)),\"\",IFERROR(VLOOKUP(TEXT(INDIRECT(\"'\"&F595&\"'!\"&H595),\"0\"),Notes!$B$5:$C$100,2,FALSE),\"\"))","v":""},"2c","$I$67","$J$67"]
[6684,{"$f":"Menu!$F$29","v":"X"},{"$f":"Menu!$J$29","v":2020},{"$f":"IF(ISBLANK(INDIRECT(\"'\"&F596&\"'!\"&G596)),\"\",INDIRECT(\"'\"&F596&\"'!\"&G596))","v":""},{"$f":"IF(ISBLANK(INDIRECT(\"'\"&F596&\"'!\"&H596)),\"\",IFERROR(VLOOKUP(TEXT(INDIRECT(\"'\"&F596&\"'!\"&H596),\"0\"),Notes!$B$5:$C$100,2,FALSE),\"\"))","v":""},"2c","$K$67","$L$67"]
[6685,{"$f":"Menu!$F$29","v":"X"},{"$f":"Menu!$J$29","v":2020},{"$f":"IF(ISBLANK(INDIRECT(\"'\"&F597&\"'!\"&G597)),\"\",INDIRECT(\"'\"&F597&\"'!\"&G597))","v":""},{"$f":"IF(ISBLANK(INDIRECT(\"'\"&F597&\"'!\"&H597)),\"\",IFERROR(VLOOKUP(TEXT(INDIRECT(\"'\"&F597&\"'!\"&H597),\"0\"),Notes!$B$5:$C$100,2,FALSE),\"\"))","v":""},"2c","$M$67","$N$67"]
[6686,{"$f":"Menu!$F$29","v":"X"},{"$f":"Menu!$J$29","v":2020},{"$f":"IF(ISBLANK(INDIRECT(\"'\"&F598&\"'!\"&G598)),\"\",INDIRECT(\"'\"&F598&\"'!\"&G598))","v":""},{"$f":"IF(ISBLANK(INDIRECT(\"'\"&F598&\"'!\"&H598)),\"\",IFERROR(VLOOKUP(TEXT(INDIRECT(\"'\"&F598&\"'!\"&H598),\"0\"),Notes!$B$5:$C$100,2,FALSE),\"\"))","v":""},"2c","$O$67","$P$67"]
[6687,{"$f":"Menu!$F$29","v":"X"},{"$f":"Menu!$J$29","v":2020},{"$f":"IF(ISBLANK(INDIRECT(\"'\"&F599&\"'!\"&G599)),\"\",INDIRECT(\"'\"&F599&\"'!\"&G599))","v":""},{"$f":"IF(ISBLANK(INDIRECT(\"'\"&F599&\"'!\"&H599)),\"\",IFERROR(VLOOKUP(TEXT(INDIRECT(\"'\"&F599&\"'!\"&H599),\"0\"),Notes!$B$5:$C$100,2,FALSE),\"\"))","v":""},"2c","$Q$67","$R$67"]
[6688,{"$f":"Menu!$F$29","v":"X"},{"$f":"Menu!$J$29","v":2020},{"$f":"IF(ISBLANK(INDIRECT(\"'\"&F600&\"'!\"&G600)),\"\",INDIRECT(\"'\"&F600&\"'!\"&G600))","v":""},{"$f":"IF(ISBLANK(INDIRECT(\"'\"&F600&\"'!\"&H600)),\"\",IFERROR(VLOOKUP(TEXT(INDIRECT(\"'\"&F600&\"'!\"&H600),\"0\"),Notes!$B$5:$C$100,2,FALSE),\"\"))","v":""},"2c","$S$67","$T$67"]
[6689,{"$f":"Menu!$F$29","v":"X"},{"$f":"Menu!$J$29","v":2020},{"$f":"IF(ISBLANK(INDIRECT(\"'\"&F601&\"'!\"&G601)),\"\",INDIRECT(\"'\"&F601&\"'!\"&G601))","v":""},{"$f":"IF(ISBLANK(INDIRECT(\"'\"&F601&\"'!\"&H601)),\"\",IFERROR(VLOOKUP(TEXT(INDIRECT(\"'\"&F601&\"'!\"&H601),\"0\"),Notes!$B$5:$C$100,2,FALSE),\"\"))","v":""},"2c","$U$67","$V$67"]
[6690,{"$f":"Menu!$F$29","v":"X"},{"$f":"Menu!$J$29","v":2020},{"$f":"IF(ISBLANK(INDIRECT(\"'\"&F602&\"'!\"&G602)),\"\",INDIRECT(\"'\"&F602&\"'!\"&G602))","v":""},{"$f":"IF(ISBLANK(INDIRECT(\"'\"&F602&\"'!\"&H602)),\"\",IFERROR(VLOOKUP(TEXT(INDIRECT(\"'\"&F602&\"'!\"&H602),\"0\"),Notes!$B$5:$C$100,2,FALSE),\"\"))","v":""},"2c","$W$67","$X$67"]
[6691,{"$f":"Menu!$F$29","v":"X"},{"$f":"Menu!$J$29","v":2020},{"$f":"IF(ISBLANK(INDIRECT(\"'\"&F603&\"'!\"&G603)),\"\",INDIRECT(\"'\"&F603&\"'!\"&G603))","v":""},{"$f":"IF(ISBLANK(INDIRECT(\"'\"&F603&\"'!\"&H603)),\"\",IFERROR(VLOOKUP(TEXT(INDIRECT(\"'\"&F603&\"'!\"&H603),\"0\"),Notes!$B$5:$C$100,2,FALSE),\"\"))","v":""},"2c","$Y$67","$Z$67"]
[6692,{"$f":"Menu!$F$29","v":"X"},{"$f":"Menu!$J$29","v":2020},{"$f":"IF(ISBLANK(INDIRECT(\"'\"&F604&\"'!\"&G604)),\"\",INDIRECT(\"'\"&F604&\"'!\"&G604))","v":""},{"$f":"IF(ISBLANK(INDIRECT(\"'\"&F604&\"'!\"&H604)),\"\",IFERROR(VLOOKUP(TEXT(INDIRECT(\"'\"&F604&\"'!\"&H604),\"0\"),Notes!$B$5:$C$100,2,FALSE),\"\"))","v":""},"2c","$AA$67","$AB$67"]
[6693,{"$f":"Menu!$F$29","v":"X"},{"$f":"Menu!$J$29","v":2020},{"$f":"IF(ISBLANK(INDIRECT(\"'\"&F605&\"'!\"&G605)),\"\",INDIRECT(\"'\"&F605&\"'!\"&G605))","v":""},{"$f":"IF(ISBLANK(INDIRECT(\"'\"&F605&\"'!\"&H605)),\"\",IFERROR(VLOOKUP(TEXT(INDIRECT(\"'\"&F605&\"'!\"&H605),\"0\"),Notes!$B$5:$C$100,2,FALSE),\"\"))","v":""},"2c","$E$69","$F$69"]
[6694,{"$f":"Menu!$F$29","v":"X"},{"$f":"Menu!$J$29","v":2020},{"$f":"IF(ISBLANK(INDIRECT(\"'\"&F606&\"'!\"&G606)),\"\",INDIRECT(\"'\"&F606&\"'!\"&G606))","v":""},{"$f":"IF(ISBLANK(INDIRECT(\"'\"&F606&\"'!\"&H606)),\"\",IFERROR(VLOOKUP(TEXT(INDIRECT(\"'\"&F606&\"'!\"&H606),\"0\"),Notes!$B$5:$C$100,2,FALSE),\"\"))","v":""},"2c","$G$69","$H$69"]
[6695,{"$f":"Menu!$F$29","v":"X"},{"$f":"Menu!$J$29","v":2020},{"$f":"IF(ISBLANK(INDIRECT(\"'\"&F607&\"'!\"&G607)),\"\",INDIRECT(\"'\"&F607&\"'!\"&G607))","v":""},{"$f":"IF(ISBLANK(INDIRECT(\"'\"&F607&\"'!\"&H607)),\"\",IFERROR(VLOOKUP(TEXT(INDIRECT(\"'\"&F607&\"'!\"&H607),\"0\"),Notes!$B$5:$C$100,2,FALSE),\"\"))","v":""},"2c","$I$69","$J$69"]
[6696,{"$f":"Menu!$F$29","v":"X"},{"$f":"Menu!$J$29","v":2020},{"$f":"IF(ISBLANK(INDIRECT(\"'\"&F608&\"'!\"&G608)),\"\",INDIRECT(\"'\"&F608&\"'!\"&G608))","v":""},{"$f":"IF(ISBLANK(INDIRECT(\"'\"&F608&\"'!\"&H608)),\"\",IFERROR(VLOOKUP(TEXT(INDIRECT(\"'\"&F608&\"'!\"&H608),\"0\"),Notes!$B$5:$C$100,2,FALSE),\"\"))","v":""},"2c","$K$69","$L$69"]
[6697,{"$f":"Menu!$F$29","v":"X"},{"$f":"Menu!$J$29","v":2020},{"$f":"IF(ISBLANK(INDIRECT(\"'\"&F609&\"'!\"&G609)),\"\",INDIRECT(\"'\"&F609&\"'!\"&G609))","v":""},{"$f":"IF(ISBLANK(INDIRECT(\"'\"&F609&\"'!\"&H609)),\"\",IFERROR(VLOOKUP(TEXT(INDIRECT(\"'\"&F609&\"'!\"&H609),\"0\"),Notes!$B$5:$C$100,2,FALSE),\"\"))","v":""},"2c","$M$69","$N$69"]
[6698,{"$f":"Menu!$F$29","v":"X"},{"$f":"Menu!$J$29","v":2020},{"$f":"IF(ISBLANK(INDIRECT(\"'\"&F610&\"'!\"&G610)),\"\",INDIRECT(\"'\"&F610&\"'!\"&G610))","v":""},{"$f":"IF(ISBLANK(INDIRECT(\"'\"&F610&\"'!\"&H610)),\"\",IFERROR(VLOOKUP(TEXT(INDIRECT(\"'\"&F610&\"'!\"&H610),\"0\"),Notes!$B$5:$C$100,2,FALSE),\"\"))","v":""},"2c","$O$69","$P$69"]
[6699,{"$f":"Menu!$F$29","v":"X"},{"$f":"Menu!$J$29","v":2020},{"$f":"IF(ISBLANK(INDIRECT(\"'\"&F611&\"'!\"&G611)),\"\",INDIRECT(\"'\"&F611&\"'!\"&G611))","v":""},{"$f":"IF(ISBLANK(INDIRECT(\"'\"&F611&\"'!\"&H611)),\"\",IFERROR(VLOOKUP(TEXT(INDIRECT(\"'\"&F611&\"'!\"&H611),\"0\"),Notes!$B$5:$C$100,2,FALSE),\"\"))","v":""},"2c","$Q$69","$R$69"]
[6700,{"$f":"Menu!$F$29","v":"X"},{"$f":"Menu!$J$29","v":2020},{"$f":"IF(ISBLANK(INDIRECT(\"'\"&F612&\"'!\"&G612)),\"\",INDIRECT(\"'\"&F612&\"'!\"&G612))","v":""},{"$f":"IF(ISBLANK(INDIRECT(\"'\"&F612&\"'!\"&H612)),\"\",IFERROR(VLOOKUP(TEXT(INDIRECT(\"'\"&F612&\"'!\"&H612),\"0\"),Notes!$B$5:$C$100,2,FALSE),\"\"))","v":""},"2c","$S$69","$T$69"]
[6701,{"$f":"Menu!$F$29","v":"X"},{"$f":"Menu!$J$29","v":2020},{"$f":"IF(ISBLANK(INDIRECT(\"'\"&F613&\"'!\"&G613)),\"\",INDIRECT(\"'\"&F613&\"'!\"&G613))","v":""},{"$f":"IF(ISBLANK(INDIRECT(\"'\"&F613&\"'!\"&H613)),\"\",IFERROR(VLOOKUP(TEXT(INDIRECT(\"'\"&F613&\"'!\"&H613),\"0\"),Notes!$B$5:$C$100,2,FALSE),\"\"))","v":""},"2c","$U$69","$V$69"]
[6702,{"$f":"Menu!$F$29","v":"X"},{"$f":"Menu!$J$29","v":2020},{"$f":"IF(ISBLANK(INDIRECT(\"'\"&F614&\"'!\"&G614)),\"\",INDIRECT(\"'\"&F614&\"'!\"&G614))","v":""},{"$f":"IF(ISBLANK(INDIRECT(\"'\"&F614&\"'!\"&H614)),\"\",IFERROR(VLOOKUP(TEXT(INDIRECT(\"'\"&F614&\"'!\"&H614),\"0\"),Notes!$B$5:$C$100,2,FALSE),\"\"))","v":""},"2c","$W$69","$X$69"]
[6703,{"$f":"Menu!$F$29","v":"X"},{"$f":"Menu!$J$29","v":2020},{"$f":"IF(ISBLANK(INDIRECT(\"'\"&F615&\"'!\"&G615)),\"\",INDIRECT(\"'\"&F615&\"'!\"&G615))","v":""},{"$f":"IF(ISBLANK(INDIRECT(\"'\"&F615&\"'!\"&H615)),\"\",IFERROR(VLOOKUP(TEXT(INDIRECT(\"'\"&F615&\"'!\"&H615),\"0\"),Notes!$B$5:$C$100,2,FALSE),\"\"))","v":""},"2c","$Y$69","$Z$69"]
[6704,{"$f":"Menu!$F$29","v":"X"},{"$f":"Menu!$J$29","v":2020},{"$f":"IF(ISBLANK(INDIRECT(\"'\"&F616&\"'!\"&G616)),\"\",INDIRECT(\"'\"&F616&\"'!\"&G616))","v":""},{"$f":"IF(ISBLANK(INDIRECT(\"'\"&F616&\"'!\"&H616)),\"\",IFERROR(VLOOKUP(TEXT(INDIRECT(\"'\"&F616&\"'!\"&H616),\"0\"),Notes!$B$5:$C$100,2,FALSE),\"\"))","v":""},"2c","$AA$69","$AB$69"]
[6753,{"$f":"Menu!$F$29","v":"X"},{"$f":"Menu!$J$29","v":2020},{"$f":"IF(ISBLANK(INDIRECT(\"'\"&F617&\"'!\"&G617)),\"\",INDIRECT(\"'\"&F617&\"'!\"&G617))","v":""},{"$f":"IF(ISBLANK(INDIRECT(\"'\"&F617&\"'!\"&H617)),\"\",IFERROR(VLOOKUP(TEXT(INDIRECT(\"'\"&F617&\"'!\"&H617),\"0\"),Notes!$B$5:$C$100,2,FALSE),\"\"))","v":""},"2c","$E$25","$F$25"]
[6754,{"$f":"Menu!$F$29","v":"X"},{"$f":"Menu!$J$29","v":2020},{"$f":"IF(ISBLANK(INDIRECT(\"'\"&F618&\"'!\"&G618)),\"\",INDIRECT(\"'\"&F618&\"'!\"&G618))","v":""},{"$f":"IF(ISBLANK(INDIRECT(\"'\"&F618&\"'!\"&H618)),\"\",IFERROR(VLOOKUP(TEXT(INDIRECT(\"'\"&F618&\"'!\"&H618),\"0\"),Notes!$B$5:$C$100,2,FALSE),\"\"))","v":""},"2c","$G$25","$H$25"]
[6755,{"$f":"Menu!$F$29","v":"X"},{"$f":"Menu!$J$29","v":2020},{"$f":"IF(ISBLANK(INDIRECT(\"'\"&F619&\"'!\"&G619)),\"\",INDIRECT(\"'\"&F619&\"'!\"&G619))","v":""},{"$f":"IF(ISBLANK(INDIRECT(\"'\"&F619&\"'!\"&H619)),\"\",IFERROR(VLOOKUP(TEXT(INDIRECT(\"'\"&F619&\"'!\"&H619),\"0\"),Notes!$B$5:$C$100,2,FALSE),\"\"))","v":""},"2c","$I$25","$J$25"]
[6756,{"$f":"Menu!$F$29","v":"X"},{"$f":"Menu!$J$29","v":2020},{"$f":"IF(ISBLANK(INDIRECT(\"'\"&F620&\"'!\"&G620)),\"\",INDIRECT(\"'\"&F620&\"'!\"&G620))","v":""},{"$f":"IF(ISBLANK(INDIRECT(\"'\"&F620&\"'!\"&H620)),\"\",IFERROR(VLOOKUP(TEXT(INDIRECT(\"'\"&F620&\"'!\"&H620),\"0\"),Notes!$B$5:$C$100,2,FALSE),\"\"))","v":""},"2c","$K$25","$L$25"]
[6757,{"$f":"Menu!$F$29","v":"X"},{"$f":"Menu!$J$29","v":2020},{"$f":"IF(ISBLANK(INDIRECT(\"'\"&F621&\"'!\"&G621)),\"\",INDIRECT(\"'\"&F621&\"'!\"&G621))","v":""},{"$f":"IF(ISBLANK(INDIRECT(\"'\"&F621&\"'!\"&H621)),\"\",IFERROR(VLOOKUP(TEXT(INDIRECT(\"'\"&F621&\"'!\"&H621),\"0\"),Notes!$B$5:$C$100,2,FALSE),\"\"))","v":""},"2c","$M$25","$N$25"]
[6758,{"$f":"Menu!$F$29","v":"X"},{"$f":"Menu!$J$29","v":2020},{"$f":"IF(ISBLANK(INDIRECT(\"'\"&F622&\"'!\"&G622)),\"\",INDIRECT(\"'\"&F622&\"'!\"&G622))","v":""},{"$f":"IF(ISBLANK(INDIRECT(\"'\"&F622&\"'!\"&H622)),\"\",IFERROR(VLOOKUP(TEXT(INDIRECT(\"'\"&F622&\"'!\"&H622),\"0\"),Notes!$B$5:$C$100,2,FALSE),\"\"))","v":""},"2c","$O$25","$P$25"]
[6759,{"$f":"Menu!$F$29","v":"X"},{"$f":"Menu!$J$29","v":2020},{"$f":"IF(ISBLANK(INDIRECT(\"'\"&F623&\"'!\"&G623)),\"\",INDIRECT(\"'\"&F623&\"'!\"&G623))","v":""},{"$f":"IF(ISBLANK(INDIRECT(\"'\"&F623&\"'!\"&H623)),\"\",IFERROR(VLOOKUP(TEXT(INDIRECT(\"'\"&F623&\"'!\"&H623),\"0\"),Notes!$B$5:$C$100,2,FALSE),\"\"))","v":""},"2c","$Q$25","$R$25"]
[6760,{"$f":"Menu!$F$29","v":"X"},{"$f":"Menu!$J$29","v":2020},{"$f":"IF(ISBLANK(INDIRECT(\"'\"&F624&\"'!\"&G624)),\"\",INDIRECT(\"'\"&F624&\"'!\"&G624))","v":""},{"$f":"IF(ISBLANK(INDIRECT(\"'\"&F624&\"'!\"&H624)),\"\",IFERROR(VLOOKUP(TEXT(INDIRECT(\"'\"&F624&\"'!\"&H624),\"0\"),Notes!$B$5:$C$100,2,FALSE),\"\"))","v":""},"2c","$S$25","$T$25"]
[6761,{"$f":"Menu!$F$29","v":"X"},{"$f":"Menu!$J$29","v":2020},{"$f":"IF(ISBLANK(INDIRECT(\"'\"&F625&\"'!\"&G625)),\"\",INDIRECT(\"'\"&F625&\"'!\"&G625))","v":""},{"$f":"IF(ISBLANK(INDIRECT(\"'\"&F625&\"'!\"&H625)),\"\",IFERROR(VLOOKUP(TEXT(INDIRECT(\"'\"&F625&\"'!\"&H625),\"0\"),Notes!$B$5:$C$100,2,FALSE),\"\"))","v":""},"2c","$U$25","$V$25"]
[6762,{"$f":"Menu!$F$29","v":"X"},{"$f":"Menu!$J$29","v":2020},{"$f":"IF(ISBLANK(INDIRECT(\"'\"&F626&\"'!\"&G626)),\"\",INDIRECT(\"'\"&F626&\"'!\"&G626))","v":""},{"$f":"IF(ISBLANK(INDIRECT(\"'\"&F626&\"'!\"&H626)),\"\",IFERROR(VLOOKUP(TEXT(INDIRECT(\"'\"&F626&\"'!\"&H626),\"0\"),Notes!$B$5:$C$100,2,FALSE),\"\"))","v":""},"2c","$W$25","$X$25"]
[6763,{"$f":"Menu!$F$29","v":"X"},{"$f":"Menu!$J$29","v":2020},{"$f":"IF(ISBLANK(INDIRECT(\"'\"&F627&\"'!\"&G627)),\"\",INDIRECT(\"'\"&F627&\"'!\"&G627))","v":""},{"$f":"IF(ISBLANK(INDIRECT(\"'\"&F627&\"'!\"&H627)),\"\",IFERROR(VLOOKUP(TEXT(INDIRECT(\"'\"&F627&\"'!\"&H627),\"0\"),Notes!$B$5:$C$100,2,FALSE),\"\"))","v":""},"2c","$Y$25","$Z$25"]
[6764,{"$f":"Menu!$F$29","v":"X"},{"$f":"Menu!$J$29","v":2020},{"$f":"IF(ISBLANK(INDIRECT(\"'\"&F628&\"'!\"&G628)),\"\",INDIRECT(\"'\"&F628&\"'!\"&G628))","v":""},{"$f":"IF(ISBLANK(INDIRECT(\"'\"&F628&\"'!\"&H628)),\"\",IFERROR(VLOOKUP(TEXT(INDIRECT(\"'\"&F628&\"'!\"&H628),\"0\"),Notes!$B$5:$C$100,2,FALSE),\"\"))","v":""},"2c","$AA$25","$AB$25"]
[6777,{"$f":"Menu!$F$29","v":"X"},{"$f":"Menu!$J$29","v":2020},{"$f":"IF(ISBLANK(INDIRECT(\"'\"&F629&\"'!\"&G629)),\"\",INDIRECT(\"'\"&F629&\"'!\"&G629))","v":""},{"$f":"IF(ISBLANK(INDIRECT(\"'\"&F629&\"'!\"&H629)),\"\",IFERROR(VLOOKUP(TEXT(INDIRECT(\"'\"&F629&\"'!\"&H629),\"0\"),Notes!$B$5:$C$100,2,FALSE),\"\"))","v":""},"2c","$E$88","$F$88"]
[6778,{"$f":"Menu!$F$29","v":"X"},{"$f":"Menu!$J$29","v":2020},{"$f":"IF(ISBLANK(INDIRECT(\"'\"&F630&\"'!\"&G630)),\"\",INDIRECT(\"'\"&F630&\"'!\"&G630))","v":""},{"$f":"IF(ISBLANK(INDIRECT(\"'\"&F630&\"'!\"&H630)),\"\",IFERROR(VLOOKUP(TEXT(INDIRECT(\"'\"&F630&\"'!\"&H630),\"0\"),Notes!$B$5:$C$100,2,FALSE),\"\"))","v":""},"2c","$G$88","$H$88"]
[6779,{"$f":"Menu!$F$29","v":"X"},{"$f":"Menu!$J$29","v":2020},{"$f":"IF(ISBLANK(INDIRECT(\"'\"&F631&\"'!\"&G631)),\"\",INDIRECT(\"'\"&F631&\"'!\"&G631))","v":""},{"$f":"IF(ISBLANK(INDIRECT(\"'\"&F631&\"'!\"&H631)),\"\",IFERROR(VLOOKUP(TEXT(INDIRECT(\"'\"&F631&\"'!\"&H631),\"0\"),Notes!$B$5:$C$100,2,FALSE),\"\"))","v":""},"2c","$I$88","$J$88"]
[6780,{"$f":"Menu!$F$29","v":"X"},{"$f":"Menu!$J$29","v":2020},{"$f":"IF(ISBLANK(INDIRECT(\"'\"&F632&\"'!\"&G632)),\"\",INDIRECT(\"'\"&F632&\"'!\"&G632))","v":""},{"$f":"IF(ISBLANK(INDIRECT(\"'\"&F632&\"'!\"&H632)),\"\",IFERROR(VLOOKUP(TEXT(INDIRECT(\"'\"&F632&\"'!\"&H632),\"0\"),Notes!$B$5:$C$100,2,FALSE),\"\"))","v":""},"2c","$K$88","$L$88"]
[6781,{"$f":"Menu!$F$29","v":"X"},{"$f":"Menu!$J$29","v":2020},{"$f":"IF(ISBLANK(INDIRECT(\"'\"&F633&\"'!\"&G633)),\"\",INDIRECT(\"'\"&F633&\"'!\"&G633))","v":""},{"$f":"IF(ISBLANK(INDIRECT(\"'\"&F633&\"'!\"&H633)),\"\",IFERROR(VLOOKUP(TEXT(INDIRECT(\"'\"&F633&\"'!\"&H633),\"0\"),Notes!$B$5:$C$100,2,FALSE),\"\"))","v":""},"2c","$M$88","$N$88"]
[6782,{"$f":"Menu!$F$29","v":"X"},{"$f":"Menu!$J$29","v":2020},{"$f":"IF(ISBLANK(INDIRECT(\"'\"&F634&\"'!\"&G634)),\"\",INDIRECT(\"'\"&F634&\"'!\"&G634))","v":""},{"$f":"IF(ISBLANK(INDIRECT(\"'\"&F634&\"'!\"&H634)),\"\",IFERROR(VLOOKUP(TEXT(INDIRECT(\"'\"&F634&\"'!\"&H634),\"0\"),Notes!$B$5:$C$100,2,FALSE),\"\"))","v":""},"2c","$O$88","$P$88"]
[6783,{"$f":"Menu!$F$29","v":"X"},{"$f":"Menu!$J$29","v":2020},{"$f":"IF(ISBLANK(INDIRECT(\"'\"&F635&\"'!\"&G635)),\"\",INDIRECT(\"'\"&F635&\"'!\"&G635))","v":""},{"$f":"IF(ISBLANK(INDIRECT(\"'\"&F635&\"'!\"&H635)),\"\",IFERROR(VLOOKUP(TEXT(INDIRECT(\"'\"&F635&\"'!\"&H635),\"0\"),Notes!$B$5:$C$100,2,FALSE),\"\"))","v":""},"2c","$Q$88","$R$88"]
[6784,{"$f":"Menu!$F$29","v":"X"},{"$f":"Menu!$J$29","v":2020},{"$f":"IF(ISBLANK(INDIRECT(\"'\"&F636&\"'!\"&G636)),\"\",INDIRECT(\"'\"&F636&\"'!\"&G636))","v":""},{"$f":"IF(ISBLANK(INDIRECT(\"'\"&F636&\"'!\"&H636)),\"\",IFERROR(VLOOKUP(TEXT(INDIRECT(\"'\"&F636&\"'!\"&H636),\"0\"),Notes!$B$5:$C$100,2,FALSE),\"\"))","v":""},"2c","$S$88","$T$88"]
[6785,{"$f":"Menu!$F$29","v":"X"},{"$f":"Menu!$J$29","v":2020},{"$f":"IF(ISBLANK(INDIRECT(\"'\"&F637&\"'!\"&G637)),\"\",INDIRECT(\"'\"&F637&\"'!\"&G637))","v":""},{"$f":"IF(ISBLANK(INDIRECT(\"'\"&F637&\"'!\"&H637)),\"\",IFERROR(VLOOKUP(TEXT(INDIRECT(\"'\"&F637&\"'!\"&H637),\"0\"),Notes!$B$5:$C$100,2,FALSE),\"\"))","v":""},"2c","$U$88","$V$88"]
[6786,{"$f":"Menu!$F$29","v":"X"},{"$f":"Menu!$J$29","v":2020},{"$f":"IF(ISBLANK(INDIRECT(\"'\"&F638&\"'!\"&G638)),\"\",INDIRECT(\"'\"&F638&\"'!\"&G638))","v":""},{"$f":"IF(ISBLANK(INDIRECT(\"'\"&F638&\"'!\"&H638)),\"\",IFERROR(VLOOKUP(TEXT(INDIRECT(\"'\"&F638&\"'!\"&H638),\"0\"),Notes!$B$5:$C$100,2,FALSE),\"\"))","v":""},"2c","$W$88","$X$88"]
[6787,{"$f":"Menu!$F$29","v":"X"},{"$f":"Menu!$J$29","v":2020},{"$f":"IF(ISBLANK(INDIRECT(\"'\"&F639&\"'!\"&G639)),\"\",INDIRECT(\"'\"&F639&\"'!\"&G639))","v":""},{"$f":"IF(ISBLANK(INDIRECT(\"'\"&F639&\"'!\"&H639)),\"\",IFERROR(VLOOKUP(TEXT(INDIRECT(\"'\"&F639&\"'!\"&H639),\"0\"),Notes!$B$5:$C$100,2,FALSE),\"\"))","v":""},"2c","$Y$88","$Z$88"]
[6788,{"$f":"Menu!$F$29","v":"X"},{"$f":"Menu!$J$29","v":2020},{"$f":"IF(ISBLANK(INDIRECT(\"'\"&F640&\"'!\"&G640)),\"\",INDIRECT(\"'\"&F640&\"'!\"&G640))","v":""},{"$f":"IF(ISBLANK(INDIRECT(\"'\"&F640&\"'!\"&H640)),\"\",IFERROR(VLOOKUP(TEXT(INDIRECT(\"'\"&F640&\"'!\"&H640),\"0\"),Notes!$B$5:$C$100,2,FALSE),\"\"))","v":""},"2c","$AA$88","$AB$88"]
[6789,{"$f":"Menu!$F$29","v":"X"},{"$f":"Menu!$J$29","v":2020},{"$f":"IF(ISBLANK(INDIRECT(\"'\"&F641&\"'!\"&G641)),\"\",INDIRECT(\"'\"&F641&\"'!\"&G641))","v":""},{"$f":"IF(ISBLANK(INDIRECT(\"'\"&F641&\"'!\"&H641)),\"\",IFERROR(VLOOKUP(TEXT(INDIRECT(\"'\"&F641&\"'!\"&H641),\"0\"),Notes!$B$5:$C$100,2,FALSE),\"\"))","v":""},"2c","$E$93","$F$93"]
[6790,{"$f":"Menu!$F$29","v":"X"},{"$f":"Menu!$J$29","v":2020},{"$f":"IF(ISBLANK(INDIRECT(\"'\"&F642&\"'!\"&G642)),\"\",INDIRECT(\"'\"&F642&\"'!\"&G642))","v":""},{"$f":"IF(ISBLANK(INDIRECT(\"'\"&F642&\"'!\"&H642)),\"\",IFERROR(VLOOKUP(TEXT(INDIRECT(\"'\"&F642&\"'!\"&H642),\"0\"),Notes!$B$5:$C$100,2,FALSE),\"\"))","v":""},"2c","$G$93",{"$f":"IF(LEN(TRIM(MID(G642,4,10)))-LEN(SUBSTITUTE(TRIM(MID(G642,4,10)),\"$\",\"\"))=0,\"$\"&CHAR(CODE(MID(G642,2,1))+1)&\"$\"&TRIM(MID(G642,4,10)),\"$\"&MID(G642,2,1)&CHAR(CODE(MID(G642,3,1))+1)&\"$\"&TRIM(MID(G642,5,11)))","v":"$H$93"}]
[6791,{"$f":"Menu!$F$29","v":"X"},{"$f":"Menu!$J$29","v":2020},{"$f":"IF(ISBLANK(INDIRECT(\"'\"&F643&\"'!\"&G643)),\"\",INDIRECT(\"'\"&F643&\"'!\"&G643))","v":""},{"$f":"IF(ISBLANK(INDIRECT(\"'\"&F643&\"'!\"&H643)),\"\",IFERROR(VLOOKUP(TEXT(INDIRECT(\"'\"&F643&\"'!\"&H643),\"0\"),Notes!$B$5:$C$100,2,FALSE),\"\"))","v":""},"2c","$I$93","$J$93"]
[6792,{"$f":"Menu!$F$29","v":"X"},{"$f":"Menu!$J$29","v":2020},{"$f":"IF(ISBLANK(INDIRECT(\"'\"&F644&\"'!\"&G644)),\"\",INDIRECT(\"'\"&F644&\"'!\"&G644))","v":""},{"$f":"IF(ISBLANK(INDIRECT(\"'\"&F644&\"'!\"&H644)),\"\",IFERROR(VLOOKUP(TEXT(INDIRECT(\"'\"&F644&\"'!\"&H644),\"0\"),Notes!$B$5:$C$100,2,FALSE),\"\"))","v":""},"2c","$K$93","$L$93"]
[6793,{"$f":"Menu!$F$29","v":"X"},{"$f":"Menu!$J$29","v":2020},{"$f":"IF(ISBLANK(INDIRECT(\"'\"&F645&\"'!\"&G645)),\"\",INDIRECT(\"'\"&F645&\"'!\"&G645))","v":""},{"$f":"IF(ISBLANK(INDIRECT(\"'\"&F645&\"'!\"&H645)),\"\",IFERROR(VLOOKUP(TEXT(INDIRECT(\"'\"&F645&\"'!\"&H645),\"0\"),Notes!$B$5:$C$100,2,FALSE),\"\"))","v":""},"2c","$M$93","$N$93"]
[6794,{"$f":"Menu!$F$29","v":"X"},{"$f":"Menu!$J$29","v":2020},{"$f":"IF(ISBLANK(INDIRECT(\"'\"&F646&\"'!\"&G646)),\"\",INDIRECT(\"'\"&F646&\"'!\"&G646))","v":""},{"$f":"IF(ISBLANK(INDIRECT(\"'\"&F646&\"'!\"&H646)),\"\",IFERROR(VLOOKUP(TEXT(INDIRECT(\"'\"&F646&\"'!\"&H646),\"0\"),Notes!$B$5:$C$100,2,FALSE),\"\"))","v":""},"2c","$O$93","$P$93"]
[6795,{"$f":"Menu!$F$29","v":"X"},{"$f":"Menu!$J$29","v":2020},{"$f":"IF(ISBLANK(INDIRECT(\"'\"&F647&\"'!\"&G647)),\"\",INDIRECT(\"'\"&F647&\"'!\"&G647))","v":""},{"$f":"IF(ISBLANK(INDIRECT(\"'\"&F647&\"'!\"&H647)),\"\",IFERROR(VLOOKUP(TEXT(INDIRECT(\"'\"&F647&\"'!\"&H647),\"0\"),Notes!$B$5:$C$100,2,FALSE),\"\"))","v":""},"2c","$Q$93","$R$93"]
[6796,{"$f":"Menu!$F$29","v":"X"},{"$f":"Menu!$J$29","v":2020},{"$f":"IF(ISBLANK(INDIRECT(\"'\"&F648&\"'!\"&G648)),\"\",INDIRECT(\"'\"&F648&\"'!\"&G648))","v":""},{"$f":"IF(ISBLANK(INDIRECT(\"'\"&F648&\"'!\"&H648)),\"\",IFERROR(VLOOKUP(TEXT(INDIRECT(\"'\"&F648&\"'!\"&H648),\"0\"),Notes!$B$5:$C$100,2,FALSE),\"\"))","v":""},"2c","$S$93","$T$93"]
[6797,{"$f":"Menu!$F$29","v":"X"},{"$f":"Menu!$J$29","v":2020},{"$f":"IF(ISBLANK(INDIRECT(\"'\"&F649&\"'!\"&G649)),\"\",INDIRECT(\"'\"&F649&\"'!\"&G649))","v":""},{"$f":"IF(ISBLANK(INDIRECT(\"'\"&F649&\"'!\"&H649)),\"\",IFERROR(VLOOKUP(TEXT(INDIRECT(\"'\"&F649&\"'!\"&H649),\"0\"),Notes!$B$5:$C$100,2,FALSE),\"\"))","v":""},"2c","$U$93","$V$93"]
[6798,{"$f":"Menu!$F$29","v":"X"},{"$f":"Menu!$J$29","v":2020},{"$f":"IF(ISBLANK(INDIRECT(\"'\"&F650&\"'!\"&G650)),\"\",INDIRECT(\"'\"&F650&\"'!\"&G650))","v":""},{"$f":"IF(ISBLANK(INDIRECT(\"'\"&F650&\"'!\"&H650)),\"\",IFERROR(VLOOKUP(TEXT(INDIRECT(\"'\"&F650&\"'!\"&H650),\"0\"),Notes!$B$5:$C$100,2,FALSE),\"\"))","v":""},"2c","$W$93","$X$93"]
[6799,{"$f":"Menu!$F$29","v":"X"},{"$f":"Menu!$J$29","v":2020},{"$f":"IF(ISBLANK(INDIRECT(\"'\"&F651&\"'!\"&G651)),\"\",INDIRECT(\"'\"&F651&\"'!\"&G651))","v":""},{"$f":"IF(ISBLANK(INDIRECT(\"'\"&F651&\"'!\"&H651)),\"\",IFERROR(VLOOKUP(TEXT(INDIRECT(\"'\"&F651&\"'!\"&H651),\"0\"),Notes!$B$5:$C$100,2,FALSE),\"\"))","v":""},"2c","$Y$93","$Z$93"]
[6800,{"$f":"Menu!$F$29","v":"X"},{"$f":"Menu!$J$29","v":2020},{"$f":"IF(ISBLANK(INDIRECT(\"'\"&F652&\"'!\"&G652)),\"\",INDIRECT(\"'\"&F652&\"'!\"&G652))","v":""},{"$f":"IF(ISBLANK(INDIRECT(\"'\"&F652&\"'!\"&H652)),\"\",IFERROR(VLOOKUP(TEXT(INDIRECT(\"'\"&F652&\"'!\"&H652),\"0\"),Notes!$B$5:$C$100,2,FALSE),\"\"))","v":""},"2c","$AA$93","$AB$93"]
[6801,{"$f":"Menu!$F$29","v":"X"},{"$f":"Menu!$J$29","v":2020},{"$f":"IF(ISBLANK(INDIRECT(\"'\"&F653&\"'!\"&G653)),\"\",INDIRECT(\"'\"&F653&\"'!\"&G653))","v":""},{"$f":"IF(ISBLANK(INDIRECT(\"'\"&F653&\"'!\"&H653)),\"\",IFERROR(VLOOKUP(TEXT(INDIRECT(\"'\"&F653&\"'!\"&H653),\"0\"),Notes!$B$5:$C$100,2,FALSE),\"\"))","v":""},"2c","$E$91","$F$91"]
[6802,{"$f":"Menu!$F$29","v":"X"},{"$f":"Menu!$J$29","v":2020},{"$f":"IF(ISBLANK(INDIRECT(\"'\"&F654&\"'!\"&G654)),\"\",INDIRECT(\"'\"&F654&\"'!\"&G654))","v":""},{"$f":"IF(ISBLANK(INDIRECT(\"'\"&F654&\"'!\"&H654)),\"\",IFERROR(VLOOKUP(TEXT(INDIRECT(\"'\"&F654&\"'!\"&H654),\"0\"),Notes!$B$5:$C$100,2,FALSE),\"\"))","v":""},"2c","$G$91","$H$91"]
[6803,{"$f":"Menu!$F$29","v":"X"},{"$f":"Menu!$J$29","v":2020},{"$f":"IF(ISBLANK(INDIRECT(\"'\"&F655&\"'!\"&G655)),\"\",INDIRECT(\"'\"&F655&\"'!\"&G655))","v":""},{"$f":"IF(ISBLANK(INDIRECT(\"'\"&F655&\"'!\"&H655)),\"\",IFERROR(VLOOKUP(TEXT(INDIRECT(\"'\"&F655&\"'!\"&H655),\"0\"),Notes!$B$5:$C$100,2,FALSE),\"\"))","v":""},"2c","$I$91","$J$91"]
[6804,{"$f":"Menu!$F$29","v":"X"},{"$f":"Menu!$J$29","v":2020},{"$f":"IF(ISBLANK(INDIRECT(\"'\"&F656&\"'!\"&G656)),\"\",INDIRECT(\"'\"&F656&\"'!\"&G656))","v":""},{"$f":"IF(ISBLANK(INDIRECT(\"'\"&F656&\"'!\"&H656)),\"\",IFERROR(VLOOKUP(TEXT(INDIRECT(\"'\"&F656&\"'!\"&H656),\"0\"),Notes!$B$5:$C$100,2,FALSE),\"\"))","v":""},"2c","$K$91","$L$91"]
[6805,{"$f":"Menu!$F$29","v":"X"},{"$f":"Menu!$J$29","v":2020},{"$f":"IF(ISBLANK(INDIRECT(\"'\"&F657&\"'!\"&G657)),\"\",INDIRECT(\"'\"&F657&\"'!\"&G657))","v":""},{"$f":"IF(ISBLANK(INDIRECT(\"'\"&F657&\"'!\"&H657)),\"\",IFERROR(VLOOKUP(TEXT(INDIRECT(\"'\"&F657&\"'!\"&H657),\"0\"),Notes!$B$5:$C$100,2,FALSE),\"\"))","v":""},"2c","$M$91","$N$91"]
[6806,{"$f":"Menu!$F$29","v":"X"},{"$f":"Menu!$J$29","v":2020},{"$f":"IF(ISBLANK(INDIRECT(\"'\"&F658&\"'!\"&G658)),\"\",INDIRECT(\"'\"&F658&\"'!\"&G658))","v":""},{"$f":"IF(ISBLANK(INDIRECT(\"'\"&F658&\"'!\"&H658)),\"\",IFERROR(VLOOKUP(TEXT(INDIRECT(\"'\"&F658&\"'!\"&H658),\"0\"),Notes!$B$5:$C$100,2,FALSE),\"\"))","v":""},"2c","$O$91","$P$91"]
[6807,{"$f":"Menu!$F$29","v":"X"},{"$f":"Menu!$J$29","v":2020},{"$f":"IF(ISBLANK(INDIRECT(\"'\"&F659&\"'!\"&G659)),\"\",INDIRECT(\"'\"&F659&\"'!\"&G659))","v":""},{"$f":"IF(ISBLANK(INDIRECT(\"'\"&F659&\"'!\"&H659)),\"\",IFERROR(VLOOKUP(TEXT(INDIRECT(\"'\"&F659&\"'!\"&H659),\"0\"),Notes!$B$5:$C$100,2,FALSE),\"\"))","v":""},"2c","$Q$91","$R$91"]
[6808,{"$f":"Menu!$F$29","v":"X"},{"$f":"Menu!$J$29","v":2020},{"$f":"IF(ISBLANK(INDIRECT(\"'\"&F660&\"'!\"&G660)),\"\",INDIRECT(\"'\"&F660&\"'!\"&G660))","v":""},{"$f":"IF(ISBLANK(INDIRECT(\"'\"&F660&\"'!\"&H660)),\"\",IFERROR(VLOOKUP(TEXT(INDIRECT(\"'\"&F660&\"'!\"&H660),\"0\"),Notes!$B$5:$C$100,2,FALSE),\"\"))","v":""},"2c","$S$91","$T$91"]
[6809,{"$f":"Menu!$F$29","v":"X"},{"$f":"Menu!$J$29","v":2020},{"$f":"IF(ISBLANK(INDIRECT(\"'\"&F661&\"'!\"&G661)),\"\",INDIRECT(\"'\"&F661&\"'!\"&G661))","v":""},{"$f":"IF(ISBLANK(INDIRECT(\"'\"&F661&\"'!\"&H661)),\"\",IFERROR(VLOOKUP(TEXT(INDIRECT(\"'\"&F661&\"'!\"&H661),\"0\"),Notes!$B$5:$C$100,2,FALSE),\"\"))","v":""},"2c","$U$91","$V$91"]
[6810,{"$f":"Menu!$F$29","v":"X"},{"$f":"Menu!$J$29","v":2020},{"$f":"IF(ISBLANK(INDIRECT(\"'\"&F662&\"'!\"&G662)),\"\",INDIRECT(\"'\"&F662&\"'!\"&G662))","v":""},{"$f":"IF(ISBLANK(INDIRECT(\"'\"&F662&\"'!\"&H662)),\"\",IFERROR(VLOOKUP(TEXT(INDIRECT(\"'\"&F662&\"'!\"&H662),\"0\"),Notes!$B$5:$C$100,2,FALSE),\"\"))","v":""},"2c","$W$91","$X$91"]
[6811,{"$f":"Menu!$F$29","v":"X"},{"$f":"Menu!$J$29","v":2020},{"$f":"IF(ISBLANK(INDIRECT(\"'\"&F663&\"'!\"&G663)),\"\",INDIRECT(\"'\"&F663&\"'!\"&G663))","v":""},{"$f":"IF(ISBLANK(INDIRECT(\"'\"&F663&\"'!\"&H663)),\"\",IFERROR(VLOOKUP(TEXT(INDIRECT(\"'\"&F663&\"'!\"&H663),\"0\"),Notes!$B$5:$C$100,2,FALSE),\"\"))","v":""},"2c","$Y$91","$Z$91"]
[6812,{"$f":"Menu!$F$29","v":"X"},{"$f":"Menu!$J$29","v":2020},{"$f":"IF(ISBLANK(INDIRECT(\"'\"&F664&\"'!\"&G664)),\"\",INDIRECT(\"'\"&F664&\"'!\"&G664))","v":""},{"$f":"IF(ISBLANK(INDIRECT(\"'\"&F664&\"'!\"&H664)),\"\",IFERROR(VLOOKUP(TEXT(INDIRECT(\"'\"&F664&\"'!\"&H664),\"0\"),Notes!$B$5:$C$100,2,FALSE),\"\"))","v":""},"2c","$AA$91","$AB$91"]
[6813,{"$f":"Menu!$F$29","v":"X"},{"$f":"Menu!$J$29","v":2020},{"$f":"IF(ISBLANK(INDIRECT(\"'\"&F665&\"'!\"&G665)),\"\",INDIRECT(\"'\"&F665&\"'!\"&G665))","v":""},{"$f":"IF(ISBLANK(INDIRECT(\"'\"&F665&\"'!\"&H665)),\"\",IFERROR(VLOOKUP(TEXT(INDIRECT(\"'\"&F665&\"'!\"&H665),\"0\"),Notes!$B$5:$C$100,2,FALSE),\"\"))","v":""},"2c","$E$32","$F$32"]
[6814,{"$f":"Menu!$F$29","v":"X"},{"$f":"Menu!$J$29","v":2020},{"$f":"IF(ISBLANK(INDIRECT(\"'\"&F666&\"'!\"&G666)),\"\",INDIRECT(\"'\"&F666&\"'!\"&G666))","v":""},{"$f":"IF(ISBLANK(INDIRECT(\"'\"&F666&\"'!\"&H666)),\"\",IFERROR(VLOOKUP(TEXT(INDIRECT(\"'\"&F666&\"'!\"&H666),\"0\"),Notes!$B$5:$C$100,2,FALSE),\"\"))","v":""},"2c","$G$32","$H$32"]
[6815,{"$f":"Menu!$F$29","v":"X"},{"$f":"Menu!$J$29","v":2020},{"$f":"IF(ISBLANK(INDIRECT(\"'\"&F667&\"'!\"&G667)),\"\",INDIRECT(\"'\"&F667&\"'!\"&G667))","v":""},{"$f":"IF(ISBLANK(INDIRECT(\"'\"&F667&\"'!\"&H667)),\"\",IFERROR(VLOOKUP(TEXT(INDIRECT(\"'\"&F667&\"'!\"&H667),\"0\"),Notes!$B$5:$C$100,2,FALSE),\"\"))","v":""},"2c","$I$32","$J$32"]
[6816,{"$f":"Menu!$F$29","v":"X"},{"$f":"Menu!$J$29","v":2020},{"$f":"IF(ISBLANK(INDIRECT(\"'\"&F668&\"'!\"&G668)),\"\",INDIRECT(\"'\"&F668&\"'!\"&G668))","v":""},{"$f":"IF(ISBLANK(INDIRECT(\"'\"&F668&\"'!\"&H668)),\"\",IFERROR(VLOOKUP(TEXT(INDIRECT(\"'\"&F668&\"'!\"&H668),\"0\"),Notes!$B$5:$C$100,2,FALSE),\"\"))","v":""},"2c","$K$32","$L$32"]
[6817,{"$f":"Menu!$F$29","v":"X"},{"$f":"Menu!$J$29","v":2020},{"$f":"IF(ISBLANK(INDIRECT(\"'\"&F669&\"'!\"&G669)),\"\",INDIRECT(\"'\"&F669&\"'!\"&G669))","v":""},{"$f":"IF(ISBLANK(INDIRECT(\"'\"&F669&\"'!\"&H669)),\"\",IFERROR(VLOOKUP(TEXT(INDIRECT(\"'\"&F669&\"'!\"&H669),\"0\"),Notes!$B$5:$C$100,2,FALSE),\"\"))","v":""},"2c","$M$32","$N$32"]
[6818,{"$f":"Menu!$F$29","v":"X"},{"$f":"Menu!$J$29","v":2020},{"$f":"IF(ISBLANK(INDIRECT(\"'\"&F670&\"'!\"&G670)),\"\",INDIRECT(\"'\"&F670&\"'!\"&G670))","v":""},{"$f":"IF(ISBLANK(INDIRECT(\"'\"&F670&\"'!\"&H670)),\"\",IFERROR(VLOOKUP(TEXT(INDIRECT(\"'\"&F670&\"'!\"&H670),\"0\"),Notes!$B$5:$C$100,2,FALSE),\"\"))","v":""},"2c","$O$32","$P$32"]
[6819,{"$f":"Menu!$F$29","v":"X"},{"$f":"Menu!$J$29","v":2020},{"$f":"IF(ISBLANK(INDIRECT(\"'\"&F671&\"'!\"&G671)),\"\",INDIRECT(\"'\"&F671&\"'!\"&G671))","v":""},{"$f":"IF(ISBLANK(INDIRECT(\"'\"&F671&\"'!\"&H671)),\"\",IFERROR(VLOOKUP(TEXT(INDIRECT(\"'\"&F671&\"'!\"&H671),\"0\"),Notes!$B$5:$C$100,2,FALSE),\"\"))","v":""},"2c","$Q$32","$R$32"]
[6820,{"$f":"Menu!$F$29","v":"X"},{"$f":"Menu!$J$29","v":2020},{"$f":"IF(ISBLANK(INDIRECT(\"'\"&F672&\"'!\"&G672)),\"\",INDIRECT(\"'\"&F672&\"'!\"&G672))","v":""},{"$f":"IF(ISBLANK(INDIRECT(\"'\"&F672&\"'!\"&H672)),\"\",IFERROR(VLOOKUP(TEXT(INDIRECT(\"'\"&F672&\"'!\"&H672),\"0\"),Notes!$B$5:$C$100,2,FALSE),\"\"))","v":""},"2c","$S$32","$T$32"]
[6821,{"$f":"Menu!$F$29","v":"X"},{"$f":"Menu!$J$29","v":2020},{"$f":"IF(ISBLANK(INDIRECT(\"'\"&F673&\"'!\"&G673)),\"\",INDIRECT(\"'\"&F673&\"'!\"&G673))","v":""},{"$f":"IF(ISBLANK(INDIRECT(\"'\"&F673&\"'!\"&H673)),\"\",IFERROR(VLOOKUP(TEXT(INDIRECT(\"'\"&F673&\"'!\"&H673),\"0\"),Notes!$B$5:$C$100,2,FALSE),\"\"))","v":""},"2c","$U$32","$V$32"]
[6822,{"$f":"Menu!$F$29","v":"X"},{"$f":"Menu!$J$29","v":2020},{"$f":"IF(ISBLANK(INDIRECT(\"'\"&F674&\"'!\"&G674)),\"\",INDIRECT(\"'\"&F674&\"'!\"&G674))","v":""},{"$f":"IF(ISBLANK(INDIRECT(\"'\"&F674&\"'!\"&H674)),\"\",IFERROR(VLOOKUP(TEXT(INDIRECT(\"'\"&F674&\"'!\"&H674),\"0\"),Notes!$B$5:$C$100,2,FALSE),\"\"))","v":""},"2c","$W$32","$X$32"]
[6823,{"$f":"Menu!$F$29","v":"X"},{"$f":"Menu!$J$29","v":2020},{"$f":"IF(ISBLANK(INDIRECT(\"'\"&F675&\"'!\"&G675)),\"\",INDIRECT(\"'\"&F675&\"'!\"&G675))","v":""},{"$f":"IF(ISBLANK(INDIRECT(\"'\"&F675&\"'!\"&H675)),\"\",IFERROR(VLOOKUP(TEXT(INDIRECT(\"'\"&F675&\"'!\"&H675),\"0\"),Notes!$B$5:$C$100,2,FALSE),\"\"))","v":""},"2c","$Y$32","$Z$32"]
[6824,{"$f":"Menu!$F$29","v":"X"},{"$f":"Menu!$J$29","v":2020},{"$f":"IF(ISBLANK(INDIRECT(\"'\"&F676&\"'!\"&G676)),\"\",INDIRECT(\"'\"&F676&\"'!\"&G676))","v":""},{"$f":"IF(ISBLANK(INDIRECT(\"'\"&F676&\"'!\"&H676)),\"\",IFERROR(VLOOKUP(TEXT(INDIRECT(\"'\"&F676&\"'!\"&H676),\"0\"),Notes!$B$5:$C$100,2,FALSE),\"\"))","v":""},"2c","$AA$32","$AB$32"]
[6837,{"$f":"Menu!$F$29","v":"X"},{"$f":"Menu!$J$29","v":2020},{"$f":"IF(ISBLANK(INDIRECT(\"'\"&F677&\"'!\"&G677)),\"\",INDIRECT(\"'\"&F677&\"'!\"&G677))","v":""},{"$f":"IF(ISBLANK(INDIRECT(\"'\"&F677&\"'!\"&H677)),\"\",IFERROR(VLOOKUP(TEXT(INDIRECT(\"'\"&F677&\"'!\"&H677),\"0\"),Notes!$B$5:$C$100,2,FALSE),\"\"))","v":""},"2c","$E$55","$F$55"]
[6838,{"$f":"Menu!$F$29","v":"X"},{"$f":"Menu!$J$29","v":2020},{"$f":"IF(ISBLANK(INDIRECT(\"'\"&F678&\"'!\"&G678)),\"\",INDIRECT(\"'\"&F678&\"'!\"&G678))","v":""},{"$f":"IF(ISBLANK(INDIRECT(\"'\"&F678&\"'!\"&H678)),\"\",IFERROR(VLOOKUP(TEXT(INDIRECT(\"'\"&F678&\"'!\"&H678),\"0\"),Notes!$B$5:$C$100,2,FALSE),\"\"))","v":""},"2c","$G$55","$H$55"]
[6839,{"$f":"Menu!$F$29","v":"X"},{"$f":"Menu!$J$29","v":2020},{"$f":"IF(ISBLANK(INDIRECT(\"'\"&F679&\"'!\"&G679)),\"\",INDIRECT(\"'\"&F679&\"'!\"&G679))","v":""},{"$f":"IF(ISBLANK(INDIRECT(\"'\"&F679&\"'!\"&H679)),\"\",IFERROR(VLOOKUP(TEXT(INDIRECT(\"'\"&F679&\"'!\"&H679),\"0\"),Notes!$B$5:$C$100,2,FALSE),\"\"))","v":""},"2c","$I$55","$J$55"]
[6840,{"$f":"Menu!$F$29","v":"X"},{"$f":"Menu!$J$29","v":2020},{"$f":"IF(ISBLANK(INDIRECT(\"'\"&F680&\"'!\"&G680)),\"\",INDIRECT(\"'\"&F680&\"'!\"&G680))","v":""},{"$f":"IF(ISBLANK(INDIRECT(\"'\"&F680&\"'!\"&H680)),\"\",IFERROR(VLOOKUP(TEXT(INDIRECT(\"'\"&F680&\"'!\"&H680),\"0\"),Notes!$B$5:$C$100,2,FALSE),\"\"))","v":""},"2c","$K$55","$L$55"]
[6841,{"$f":"Menu!$F$29","v":"X"},{"$f":"Menu!$J$29","v":2020},{"$f":"IF(ISBLANK(INDIRECT(\"'\"&F681&\"'!\"&G681)),\"\",INDIRECT(\"'\"&F681&\"'!\"&G681))","v":""},{"$f":"IF(ISBLANK(INDIRECT(\"'\"&F681&\"'!\"&H681)),\"\",IFERROR(VLOOKUP(TEXT(INDIRECT(\"'\"&F681&\"'!\"&H681),\"0\"),Notes!$B$5:$C$100,2,FALSE),\"\"))","v":""},"2c","$M$55","$N$55"]
[6842,{"$f":"Menu!$F$29","v":"X"},{"$f":"Menu!$J$29","v":2020},{"$f":"IF(ISBLANK(INDIRECT(\"'\"&F682&\"'!\"&G682)),\"\",INDIRECT(\"'\"&F682&\"'!\"&G682))","v":""},{"$f":"IF(ISBLANK(INDIRECT(\"'\"&F682&\"'!\"&H682)),\"\",IFERROR(VLOOKUP(TEXT(INDIRECT(\"'\"&F682&\"'!\"&H682),\"0\"),Notes!$B$5:$C$100,2,FALSE),\"\"))","v":""},"2c","$O$55","$P$55"]
[6843,{"$f":"Menu!$F$29","v":"X"},{"$f":"Menu!$J$29","v":2020},{"$f":"IF(ISBLANK(INDIRECT(\"'\"&F683&\"'!\"&G683)),\"\",INDIRECT(\"'\"&F683&\"'!\"&G683))","v":""},{"$f":"IF(ISBLANK(INDIRECT(\"'\"&F683&\"'!\"&H683)),\"\",IFERROR(VLOOKUP(TEXT(INDIRECT(\"'\"&F683&\"'!\"&H683),\"0\"),Notes!$B$5:$C$100,2,FALSE),\"\"))","v":""},"2c","$Q$55","$R$55"]
[6844,{"$f":"Menu!$F$29","v":"X"},{"$f":"Menu!$J$29","v":2020},{"$f":"IF(ISBLANK(INDIRECT(\"'\"&F684&\"'!\"&G684)),\"\",INDIRECT(\"'\"&F684&\"'!\"&G684))","v":""},{"$f":"IF(ISBLANK(INDIRECT(\"'\"&F684&\"'!\"&H684)),\"\",IFERROR(VLOOKUP(TEXT(INDIRECT(\"'\"&F684&\"'!\"&H684),\"0\"),Notes!$B$5:$C$100,2,FALSE),\"\"))","v":""},"2c","$S$55","$T$55"]
[6845,{"$f":"Menu!$F$29","v":"X"},{"$f":"Menu!$J$29","v":2020},{"$f":"IF(ISBLANK(INDIRECT(\"'\"&F685&\"'!\"&G685)),\"\",INDIRECT(\"'\"&F685&\"'!\"&G685))","v":""},{"$f":"IF(ISBLANK(INDIRECT(\"'\"&F685&\"'!\"&H685)),\"\",IFERROR(VLOOKUP(TEXT(INDIRECT(\"'\"&F685&\"'!\"&H685),\"0\"),Notes!$B$5:$C$100,2,FALSE),\"\"))","v":""},"2c","$U$55","$V$55"]
[6846,{"$f":"Menu!$F$29","v":"X"},{"$f":"Menu!$J$29","v":2020},{"$f":"IF(ISBLANK(INDIRECT(\"'\"&F686&\"'!\"&G686)),\"\",INDIRECT(\"'\"&F686&\"'!\"&G686))","v":""},{"$f":"IF(ISBLANK(INDIRECT(\"'\"&F686&\"'!\"&H686)),\"\",IFERROR(VLOOKUP(TEXT(INDIRECT(\"'\"&F686&\"'!\"&H686),\"0\"),Notes!$B$5:$C$100,2,FALSE),\"\"))","v":""},"2c","$W$55","$X$55"]
[6847,{"$f":"Menu!$F$29","v":"X"},{"$f":"Menu!$J$29","v":2020},{"$f":"IF(ISBLANK(INDIRECT(\"'\"&F687&\"'!\"&G687)),\"\",INDIRECT(\"'\"&F687&\"'!\"&G687))","v":""},{"$f":"IF(ISBLANK(INDIRECT(\"'\"&F687&\"'!\"&H687)),\"\",IFERROR(VLOOKUP(TEXT(INDIRECT(\"'\"&F687&\"'!\"&H687),\"0\"),Notes!$B$5:$C$100,2,FALSE),\"\"))","v":""},"2c","$Y$55","$Z$55"]
[6848,{"$f":"Menu!$F$29","v":"X"},{"$f":"Menu!$J$29","v":2020},{"$f":"IF(ISBLANK(INDIRECT(\"'\"&F688&\"'!\"&G688)),\"\",INDIRECT(\"'\"&F688&\"'!\"&G688))","v":""},{"$f":"IF(ISBLANK(INDIRECT(\"'\"&F688&\"'!\"&H688)),\"\",IFERROR(VLOOKUP(TEXT(INDIRECT(\"'\"&F688&\"'!\"&H688),\"0\"),Notes!$B$5:$C$100,2,FALSE),\"\"))","v":""},"2c","$AA$55","$AB$55"]
[6849,{"$f":"Menu!$F$29","v":"X"},{"$f":"Menu!$J$29","v":2020},{"$f":"IF(ISBLANK(INDIRECT(\"'\"&F689&\"'!\"&G689)),\"\",INDIRECT(\"'\"&F689&\"'!\"&G689))","v":""},{"$f":"IF(ISBLANK(INDIRECT(\"'\"&F689&\"'!\"&H689)),\"\",IFERROR(VLOOKUP(TEXT(INDIRECT(\"'\"&F689&\"'!\"&H689),\"0\"),Notes!$B$5:$C$100,2,FALSE),\"\"))","v":""},"2c","$E$53","$F$53"]
[6850,{"$f":"Menu!$F$29","v":"X"},{"$f":"Menu!$J$29","v":2020},{"$f":"IF(ISBLANK(INDIRECT(\"'\"&F690&\"'!\"&G690)),\"\",INDIRECT(\"'\"&F690&\"'!\"&G690))","v":""},{"$f":"IF(ISBLANK(INDIRECT(\"'\"&F690&\"'!\"&H690)),\"\",IFERROR(VLOOKUP(TEXT(INDIRECT(\"'\"&F690&\"'!\"&H690),\"0\"),Notes!$B$5:$C$100,2,FALSE),\"\"))","v":""},"2c","$G$53","$H$53"]
[6851,{"$f":"Menu!$F$29","v":"X"},{"$f":"Menu!$J$29","v":2020},{"$f":"IF(ISBLANK(INDIRECT(\"'\"&F691&\"'!\"&G691)),\"\",INDIRECT(\"'\"&F691&\"'!\"&G691))","v":""},{"$f":"IF(ISBLANK(INDIRECT(\"'\"&F691&\"'!\"&H691)),\"\",IFERROR(VLOOKUP(TEXT(INDIRECT(\"'\"&F691&\"'!\"&H691),\"0\"),Notes!$B$5:$C$100,2,FALSE),\"\"))","v":""},"2c","$I$53","$J$53"]
[6852,{"$f":"Menu!$F$29","v":"X"},{"$f":"Menu!$J$29","v":2020},{"$f":"IF(ISBLANK(INDIRECT(\"'\"&F692&\"'!\"&G692)),\"\",INDIRECT(\"'\"&F692&\"'!\"&G692))","v":""},{"$f":"IF(ISBLANK(INDIRECT(\"'\"&F692&\"'!\"&H692)),\"\",IFERROR(VLOOKUP(TEXT(INDIRECT(\"'\"&F692&\"'!\"&H692),\"0\"),Notes!$B$5:$C$100,2,FALSE),\"\"))","v":""},"2c","$K$53","$L$53"]
[6853,{"$f":"Menu!$F$29","v":"X"},{"$f":"Menu!$J$29","v":2020},{"$f":"IF(ISBLANK(INDIRECT(\"'\"&F693&\"'!\"&G693)),\"\",INDIRECT(\"'\"&F693&\"'!\"&G693))","v":""},{"$f":"IF(ISBLANK(INDIRECT(\"'\"&F693&\"'!\"&H693)),\"\",IFERROR(VLOOKUP(TEXT(INDIRECT(\"'\"&F693&\"'!\"&H693),\"0\"),Notes!$B$5:$C$100,2,FALSE),\"\"))","v":""},"2c","$M$53","$N$53"]
[6854,{"$f":"Menu!$F$29","v":"X"},{"$f":"Menu!$J$29","v":2020},{"$f":"IF(ISBLANK(INDIRECT(\"'\"&F694&\"'!\"&G694)),\"\",INDIRECT(\"'\"&F694&\"'!\"&G694))","v":""},{"$f":"IF(ISBLANK(INDIRECT(\"'\"&F694&\"'!\"&H694)),\"\",IFERROR(VLOOKUP(TEXT(INDIRECT(\"'\"&F694&\"'!\"&H694),\"0\"),Notes!$B$5:$C$100,2,FALSE),\"\"))","v":""},"2c","$O$53","$P$53"]
[6855,{"$f":"Menu!$F$29","v":"X"},{"$f":"Menu!$J$29","v":2020},{"$f":"IF(ISBLANK(INDIRECT(\"'\"&F695&\"'!\"&G695)),\"\",INDIRECT(\"'\"&F695&\"'!\"&G695))","v":""},{"$f":"IF(ISBLANK(INDIRECT(\"'\"&F695&\"'!\"&H695)),\"\",IFERROR(VLOOKUP(TEXT(INDIRECT(\"'\"&F695&\"'!\"&H695),\"0\"),Notes!$B$5:$C$100,2,FALSE),\"\"))","v":""},"2c","$Q$53","$R$53"]
[6856,{"$f":"Menu!$F$29","v":"X"},{"$f":"Menu!$J$29","v":2020},{"$f":"IF(ISBLANK(INDIRECT(\"'\"&F696&\"'!\"&G696)),\"\",INDIRECT(\"'\"&F696&\"'!\"&G696))","v":""},{"$f":"IF(ISBLANK(INDIRECT(\"'\"&F696&\"'!\"&H696)),\"\",IFERROR(VLOOKUP(TEXT(INDIRECT(\"'\"&F696&\"'!\"&H696),\"0\"),Notes!$B$5:$C$100,2,FALSE),\"\"))","v":""},"2c","$S$53","$T$53"]
[6857,{"$f":"Menu!$F$29","v":"X"},{"$f":"Menu!$J$29","v":2020},{"$f":"IF(ISBLANK(INDIRECT(\"'\"&F697&\"'!\"&G697)),\"\",INDIRECT(\"'\"&F697&\"'!\"&G697))","v":""},{"$f":"IF(ISBLANK(INDIRECT(\"'\"&F697&\"'!\"&H697)),\"\",IFERROR(VLOOKUP(TEXT(INDIRECT(\"'\"&F697&\"'!\"&H697),\"0\"),Notes!$B$5:$C$100,2,FALSE),\"\"))","v":""},"2c","$U$53","$V$53"]
[6858,{"$f":"Menu!$F$29","v":"X"},{"$f":"Menu!$J$29","v":2020},{"$f":"IF(ISBLANK(INDIRECT(\"'\"&F698&\"'!\"&G698)),\"\",INDIRECT(\"'\"&F698&\"'!\"&G698))","v":""},{"$f":"IF(ISBLANK(INDIRECT(\"'\"&F698&\"'!\"&H698)),\"\",IFERROR(VLOOKUP(TEXT(INDIRECT(\"'\"&F698&\"'!\"&H698),\"0\"),Notes!$B$5:$C$100,2,FALSE),\"\"))","v":""},"2c","$W$53","$X$53"]
[6859,{"$f":"Menu!$F$29","v":"X"},{"$f":"Menu!$J$29","v":2020},{"$f":"IF(ISBLANK(INDIRECT(\"'\"&F699&\"'!\"&G699)),\"\",INDIRECT(\"'\"&F699&\"'!\"&G699))","v":""},{"$f":"IF(ISBLANK(INDIRECT(\"'\"&F699&\"'!\"&H699)),\"\",IFERROR(VLOOKUP(TEXT(INDIRECT(\"'\"&F699&\"'!\"&H699),\"0\"),Notes!$B$5:$C$100,2,FALSE),\"\"))","v":""},"2c","$Y$53","$Z$53"]
[6860,{"$f":"Menu!$F$29","v":"X"},{"$f":"Menu!$J$29","v":2020},{"$f":"IF(ISBLANK(INDIRECT(\"'\"&F700&\"'!\"&G700)),\"\",INDIRECT(\"'\"&F700&\"'!\"&G700))","v":""},{"$f":"IF(ISBLANK(INDIRECT(\"'\"&F700&\"'!\"&H700)),\"\",IFERROR(VLOOKUP(TEXT(INDIRECT(\"'\"&F700&\"'!\"&H700),\"0\"),Notes!$B$5:$C$100,2,FALSE),\"\"))","v":""},"2c","$AA$53","$AB$53"]
[6909,{"$f":"Menu!$F$29","v":"X"},{"$f":"Menu!$J$29","v":2020},{"$f":"IF(ISBLANK(INDIRECT(\"'\"&F701&\"'!\"&G701)),\"\",INDIRECT(\"'\"&F701&\"'!\"&G701))","v":""},{"$f":"IF(ISBLANK(INDIRECT(\"'\"&F701&\"'!\"&H701)),\"\",IFERROR(VLOOKUP(TEXT(INDIRECT(\"'\"&F701&\"'!\"&H701),\"0\"),Notes!$B$5:$C$100,2,FALSE),\"\"))","v":""},"2c","$E$26","$F$26"]
[6910,{"$f":"Menu!$F$29","v":"X"},{"$f":"Menu!$J$29","v":2020},{"$f":"IF(ISBLANK(INDIRECT(\"'\"&F702&\"'!\"&G702)),\"\",INDIRECT(\"'\"&F702&\"'!\"&G702))","v":""},{"$f":"IF(ISBLANK(INDIRECT(\"'\"&F702&\"'!\"&H702)),\"\",IFERROR(VLOOKUP(TEXT(INDIRECT(\"'\"&F702&\"'!\"&H702),\"0\"),Notes!$B$5:$C$100,2,FALSE),\"\"))","v":""},"2c","$G$26","$H$26"]
[6911,{"$f":"Menu!$F$29","v":"X"},{"$f":"Menu!$J$29","v":2020},{"$f":"IF(ISBLANK(INDIRECT(\"'\"&F703&\"'!\"&G703)),\"\",INDIRECT(\"'\"&F703&\"'!\"&G703))","v":""},{"$f":"IF(ISBLANK(INDIRECT(\"'\"&F703&\"'!\"&H703)),\"\",IFERROR(VLOOKUP(TEXT(INDIRECT(\"'\"&F703&\"'!\"&H703),\"0\"),Notes!$B$5:$C$100,2,FALSE),\"\"))","v":""},"2c","$I$26","$J$26"]
[6912,{"$f":"Menu!$F$29","v":"X"},{"$f":"Menu!$J$29","v":2020},{"$f":"IF(ISBLANK(INDIRECT(\"'\"&F704&\"'!\"&G704)),\"\",INDIRECT(\"'\"&F704&\"'!\"&G704))","v":""},{"$f":"IF(ISBLANK(INDIRECT(\"'\"&F704&\"'!\"&H704)),\"\",IFERROR(VLOOKUP(TEXT(INDIRECT(\"'\"&F704&\"'!\"&H704),\"0\"),Notes!$B$5:$C$100,2,FALSE),\"\"))","v":""},"2c","$K$26","$L$26"]
[6913,{"$f":"Menu!$F$29","v":"X"},{"$f":"Menu!$J$29","v":2020},{"$f":"IF(ISBLANK(INDIRECT(\"'\"&F705&\"'!\"&G705)),\"\",INDIRECT(\"'\"&F705&\"'!\"&G705))","v":""},{"$f":"IF(ISBLANK(INDIRECT(\"'\"&F705&\"'!\"&H705)),\"\",IFERROR(VLOOKUP(TEXT(INDIRECT(\"'\"&F705&\"'!\"&H705),\"0\"),Notes!$B$5:$C$100,2,FALSE),\"\"))","v":""},"2c","$M$26","$N$26"]
[6914,{"$f":"Menu!$F$29","v":"X"},{"$f":"Menu!$J$29","v":2020},{"$f":"IF(ISBLANK(INDIRECT(\"'\"&F706&\"'!\"&G706)),\"\",INDIRECT(\"'\"&F706&\"'!\"&G706))","v":""},{"$f":"IF(ISBLANK(INDIRECT(\"'\"&F706&\"'!\"&H706)),\"\",IFERROR(VLOOKUP(TEXT(INDIRECT(\"'\"&F706&\"'!\"&H706),\"0\"),Notes!$B$5:$C$100,2,FALSE),\"\"))","v":""},"2c","$O$26",{"$f":"IF(LEN(TRIM(MID(G706,4,10)))-LEN(SUBSTITUTE(TRIM(MID(G706,4,10)),\"$\",\"\"))=0,\"$\"&CHAR(CODE(MID(G706,2,1))+1)&\"$\"&TRIM(MID(G706,4,10)),\"$\"&MID(G706,2,1)&CHAR(CODE(MID(G706,3,1))+1)&\"$\"&TRIM(MID(G706,5,11)))","v":"$P$26"}]
[6915,{"$f":"Menu!$F$29","v":"X"},{"$f":"Menu!$J$29","v":2020},{"$f":"IF(ISBLANK(INDIRECT(\"'\"&F707&\"'!\"&G707)),\"\",INDIRECT(\"'\"&F707&\"'!\"&G707))","v":""},{"$f":"IF(ISBLANK(INDIRECT(\"'\"&F707&\"'!\"&H707)),\"\",IFERROR(VLOOKUP(TEXT(INDIRECT(\"'\"&F707&\"'!\"&H707),\"0\"),Notes!$B$5:$C$100,2,FALSE),\"\"))","v":""},"2c","$Q$26","$R$26"]
[6916,{"$f":"Menu!$F$29","v":"X"},{"$f":"Menu!$J$29","v":2020},{"$f":"IF(ISBLANK(INDIRECT(\"'\"&F708&\"'!\"&G708)),\"\",INDIRECT(\"'\"&F708&\"'!\"&G708))","v":""},{"$f":"IF(ISBLANK(INDIRECT(\"'\"&F708&\"'!\"&H708)),\"\",IFERROR(VLOOKUP(TEXT(INDIRECT(\"'\"&F708&\"'!\"&H708),\"0\"),Notes!$B$5:$C$100,2,FALSE),\"\"))","v":""},"2c","$S$26","$T$26"]
[6917,{"$f":"Menu!$F$29","v":"X"},{"$f":"Menu!$J$29","v":2020},{"$f":"IF(ISBLANK(INDIRECT(\"'\"&F709&\"'!\"&G709)),\"\",INDIRECT(\"'\"&F709&\"'!\"&G709))","v":""},{"$f":"IF(ISBLANK(INDIRECT(\"'\"&F709&\"'!\"&H709)),\"\",IFERROR(VLOOKUP(TEXT(INDIRECT(\"'\"&F709&\"'!\"&H709),\"0\"),Notes!$B$5:$C$100,2,FALSE),\"\"))","v":""},"2c","$U$26","$V$26"]
[6918,{"$f":"Menu!$F$29","v":"X"},{"$f":"Menu!$J$29","v":2020},{"$f":"IF(ISBLANK(INDIRECT(\"'\"&F710&\"'!\"&G710)),\"\",INDIRECT(\"'\"&F710&\"'!\"&G710))","v":""},{"$f":"IF(ISBLANK(INDIRECT(\"'\"&F710&\"'!\"&H710)),\"\",IFERROR(VLOOKUP(TEXT(INDIRECT(\"'\"&F710&\"'!\"&H710),\"0\"),Notes!$B$5:$C$100,2,FALSE),\"\"))","v":""},"2c","$W$26","$X$26"]
[6919,{"$f":"Menu!$F$29","v":"X"},{"$f":"Menu!$J$29","v":2020},{"$f":"IF(ISBLANK(INDIRECT(\"'\"&F711&\"'!\"&G711)),\"\",INDIRECT(\"'\"&F711&\"'!\"&G711))","v":""},{"$f":"IF(ISBLANK(INDIRECT(\"'\"&F711&\"'!\"&H711)),\"\",IFERROR(VLOOKUP(TEXT(INDIRECT(\"'\"&F711&\"'!\"&H711),\"0\"),Notes!$B$5:$C$100,2,FALSE),\"\"))","v":""},"2c","$Y$26","$Z$26"]
[6920,{"$f":"Menu!$F$29","v":"X"},{"$f":"Menu!$J$29","v":2020},{"$f":"IF(ISBLANK(INDIRECT(\"'\"&F712&\"'!\"&G712)),\"\",INDIRECT(\"'\"&F712&\"'!\"&G712))","v":""},{"$f":"IF(ISBLANK(INDIRECT(\"'\"&F712&\"'!\"&H712)),\"\",IFERROR(VLOOKUP(TEXT(INDIRECT(\"'\"&F712&\"'!\"&H712),\"0\"),Notes!$B$5:$C$100,2,FALSE),\"\"))","v":""},"2c","$AA$26","$AB$26"]
[6921,{"$f":"Menu!$F$29","v":"X"},{"$f":"Menu!$J$29","v":2020},{"$f":"IF(ISBLANK(INDIRECT(\"'\"&F713&\"'!\"&G713)),\"\",INDIRECT(\"'\"&F713&\"'!\"&G713))","v":""},{"$f":"IF(ISBLANK(INDIRECT(\"'\"&F713&\"'!\"&H713)),\"\",IFERROR(VLOOKUP(TEXT(INDIRECT(\"'\"&F713&\"'!\"&H713),\"0\"),Notes!$B$5:$C$100,2,FALSE),\"\"))","v":""},"2c","$E$15","$F$15"]
[6922,{"$f":"Menu!$F$29","v":"X"},{"$f":"Menu!$J$29","v":2020},{"$f":"IF(ISBLANK(INDIRECT(\"'\"&F714&\"'!\"&G714)),\"\",INDIRECT(\"'\"&F714&\"'!\"&G714))","v":""},{"$f":"IF(ISBLANK(INDIRECT(\"'\"&F714&\"'!\"&H714)),\"\",IFERROR(VLOOKUP(TEXT(INDIRECT(\"'\"&F714&\"'!\"&H714),\"0\"),Notes!$B$5:$C$100,2,FALSE),\"\"))","v":""},"2c","$G$15","$H$15"]
[6923,{"$f":"Menu!$F$29","v":"X"},{"$f":"Menu!$J$29","v":2020},{"$f":"IF(ISBLANK(INDIRECT(\"'\"&F715&\"'!\"&G715)),\"\",INDIRECT(\"'\"&F715&\"'!\"&G715))","v":""},{"$f":"IF(ISBLANK(INDIRECT(\"'\"&F715&\"'!\"&H715)),\"\",IFERROR(VLOOKUP(TEXT(INDIRECT(\"'\"&F715&\"'!\"&H715),\"0\"),Notes!$B$5:$C$100,2,FALSE),\"\"))","v":""},"2c","$I$15","$J$15"]
[6924,{"$f":"Menu!$F$29","v":"X"},{"$f":"Menu!$J$29","v":2020},{"$f":"IF(ISBLANK(INDIRECT(\"'\"&F716&\"'!\"&G716)),\"\",INDIRECT(\"'\"&F716&\"'!\"&G716))","v":""},{"$f":"IF(ISBLANK(INDIRECT(\"'\"&F716&\"'!\"&H716)),\"\",IFERROR(VLOOKUP(TEXT(INDIRECT(\"'\"&F716&\"'!\"&H716),\"0\"),Notes!$B$5:$C$100,2,FALSE),\"\"))","v":""},"2c","$K$15","$L$15"]
[6925,{"$f":"Menu!$F$29","v":"X"},{"$f":"Menu!$J$29","v":2020},{"$f":"IF(ISBLANK(INDIRECT(\"'\"&F717&\"'!\"&G717)),\"\",INDIRECT(\"'\"&F717&\"'!\"&G717))","v":""},{"$f":"IF(ISBLANK(INDIRECT(\"'\"&F717&\"'!\"&H717)),\"\",IFERROR(VLOOKUP(TEXT(INDIRECT(\"'\"&F717&\"'!\"&H717),\"0\"),Notes!$B$5:$C$100,2,FALSE),\"\"))","v":""},"2c","$M$15","$N$15"]
[6926,{"$f":"Menu!$F$29","v":"X"},{"$f":"Menu!$J$29","v":2020},{"$f":"IF(ISBLANK(INDIRECT(\"'\"&F718&\"'!\"&G718)),\"\",INDIRECT(\"'\"&F718&\"'!\"&G718))","v":""},{"$f":"IF(ISBLANK(INDIRECT(\"'\"&F718&\"'!\"&H718)),\"\",IFERROR(VLOOKUP(TEXT(INDIRECT(\"'\"&F718&\"'!\"&H718),\"0\"),Notes!$B$5:$C$100,2,FALSE),\"\"))","v":""},"2c","$O$15","$P$15"]
[6927,{"$f":"Menu!$F$29","v":"X"},{"$f":"Menu!$J$29","v":2020},{"$f":"IF(ISBLANK(INDIRECT(\"'\"&F719&\"'!\"&G719)),\"\",INDIRECT(\"'\"&F719&\"'!\"&G719))","v":""},{"$f":"IF(ISBLANK(INDIRECT(\"'\"&F719&\"'!\"&H719)),\"\",IFERROR(VLOOKUP(TEXT(INDIRECT(\"'\"&F719&\"'!\"&H719),\"0\"),Notes!$B$5:$C$100,2,FALSE),\"\"))","v":""},"2c","$Q$15","$R$15"]
[6928,{"$f":"Menu!$F$29","v":"X"},{"$f":"Menu!$J$29","v":2020},{"$f":"IF(ISBLANK(INDIRECT(\"'\"&F720&\"'!\"&G720)),\"\",INDIRECT(\"'\"&F720&\"'!\"&G720))","v":""},{"$f":"IF(ISBLANK(INDIRECT(\"'\"&F720&\"'!\"&H720)),\"\",IFERROR(VLOOKUP(TEXT(INDIRECT(\"'\"&F720&\"'!\"&H720),\"0\"),Notes!$B$5:$C$100,2,FALSE),\"\"))","v":""},"2c","$S$15","$T$15"]
[6929,{"$f":"Menu!$F$29","v":"X"},{"$f":"Menu!$J$29","v":2020},{"$f":"IF(ISBLANK(INDIRECT(\"'\"&F721&\"'!\"&G721)),\"\",INDIRECT(\"'\"&F721&\"'!\"&G721))","v":""},{"$f":"IF(ISBLANK(INDIRECT(\"'\"&F721&\"'!\"&H721)),\"\",IFERROR(VLOOKUP(TEXT(INDIRECT(\"'\"&F721&\"'!\"&H721),\"0\"),Notes!$B$5:$C$100,2,FALSE),\"\"))","v":""},"2c","$U$15","$V$15"]
[6930,{"$f":"Menu!$F$29","v":"X"},{"$f":"Menu!$J$29","v":2020},{"$f":"IF(ISBLANK(INDIRECT(\"'\"&F722&\"'!\"&G722)),\"\",INDIRECT(\"'\"&F722&\"'!\"&G722))","v":""},{"$f":"IF(ISBLANK(INDIRECT(\"'\"&F722&\"'!\"&H722)),\"\",IFERROR(VLOOKUP(TEXT(INDIRECT(\"'\"&F722&\"'!\"&H722),\"0\"),Notes!$B$5:$C$100,2,FALSE),\"\"))","v":""},"2c","$W$15","$X$15"]
[6931,{"$f":"Menu!$F$29","v":"X"},{"$f":"Menu!$J$29","v":2020},{"$f":"IF(ISBLANK(INDIRECT(\"'\"&F723&\"'!\"&G723)),\"\",INDIRECT(\"'\"&F723&\"'!\"&G723))","v":""},{"$f":"IF(ISBLANK(INDIRECT(\"'\"&F723&\"'!\"&H723)),\"\",IFERROR(VLOOKUP(TEXT(INDIRECT(\"'\"&F723&\"'!\"&H723),\"0\"),Notes!$B$5:$C$100,2,FALSE),\"\"))","v":""},"2c","$Y$15","$Z$15"]
[6932,{"$f":"Menu!$F$29","v":"X"},{"$f":"Menu!$J$29","v":2020},{"$f":"IF(ISBLANK(INDIRECT(\"'\"&F724&\"'!\"&G724)),\"\",INDIRECT(\"'\"&F724&\"'!\"&G724))","v":""},{"$f":"IF(ISBLANK(INDIRECT(\"'\"&F724&\"'!\"&H724)),\"\",IFERROR(VLOOKUP(TEXT(INDIRECT(\"'\"&F724&\"'!\"&H724),\"0\"),Notes!$B$5:$C$100,2,FALSE),\"\"))","v":""},"2c","$AA$15","$AB$15"]
[6945,{"$f":"Menu!$F$29","v":"X"},{"$f":"Menu!$J$29","v":2020},{"$f":"IF(ISBLANK(INDIRECT(\"'\"&F725&\"'!\"&G725)),\"\",INDIRECT(\"'\"&F725&\"'!\"&G725))","v":""},{"$f":"IF(ISBLANK(INDIRECT(\"'\"&F725&\"'!\"&H725)),\"\",IFERROR(VLOOKUP(TEXT(INDIRECT(\"'\"&F725&\"'!\"&H725),\"0\"),Notes!$B$5:$C$100,2,FALSE),\"\"))","v":""},"2c","$E$72","$F$72"]
[6946,{"$f":"Menu!$F$29","v":"X"},{"$f":"Menu!$J$29","v":2020},{"$f":"IF(ISBLANK(INDIRECT(\"'\"&F726&\"'!\"&G726)),\"\",INDIRECT(\"'\"&F726&\"'!\"&G726))","v":""},{"$f":"IF(ISBLANK(INDIRECT(\"'\"&F726&\"'!\"&H726)),\"\",IFERROR(VLOOKUP(TEXT(INDIRECT(\"'\"&F726&\"'!\"&H726),\"0\"),Notes!$B$5:$C$100,2,FALSE),\"\"))","v":""},"2c","$G$72","$H$72"]
[6947,{"$f":"Menu!$F$29","v":"X"},{"$f":"Menu!$J$29","v":2020},{"$f":"IF(ISBLANK(INDIRECT(\"'\"&F727&\"'!\"&G727)),\"\",INDIRECT(\"'\"&F727&\"'!\"&G727))","v":""},{"$f":"IF(ISBLANK(INDIRECT(\"'\"&F727&\"'!\"&H727)),\"\",IFERROR(VLOOKUP(TEXT(INDIRECT(\"'\"&F727&\"'!\"&H727),\"0\"),Notes!$B$5:$C$100,2,FALSE),\"\"))","v":""},"2c","$I$72","$J$72"]
[6948,{"$f":"Menu!$F$29","v":"X"},{"$f":"Menu!$J$29","v":2020},{"$f":"IF(ISBLANK(INDIRECT(\"'\"&F728&\"'!\"&G728)),\"\",INDIRECT(\"'\"&F728&\"'!\"&G728))","v":""},{"$f":"IF(ISBLANK(INDIRECT(\"'\"&F728&\"'!\"&H728)),\"\",IFERROR(VLOOKUP(TEXT(INDIRECT(\"'\"&F728&\"'!\"&H728),\"0\"),Notes!$B$5:$C$100,2,FALSE),\"\"))","v":""},"2c","$K$72","$L$72"]
[6949,{"$f":"Menu!$F$29","v":"X"},{"$f":"Menu!$J$29","v":2020},{"$f":"IF(ISBLANK(INDIRECT(\"'\"&F729&\"'!\"&G729)),\"\",INDIRECT(\"'\"&F729&\"'!\"&G729))","v":""},{"$f":"IF(ISBLANK(INDIRECT(\"'\"&F729&\"'!\"&H729)),\"\",IFERROR(VLOOKUP(TEXT(INDIRECT(\"'\"&F729&\"'!\"&H729),\"0\"),Notes!$B$5:$C$100,2,FALSE),\"\"))","v":""},"2c","$M$72","$N$72"]
[6950,{"$f":"Menu!$F$29","v":"X"},{"$f":"Menu!$J$29","v":2020},{"$f":"IF(ISBLANK(INDIRECT(\"'\"&F730&\"'!\"&G730)),\"\",INDIRECT(\"'\"&F730&\"'!\"&G730))","v":""},{"$f":"IF(ISBLANK(INDIRECT(\"'\"&F730&\"'!\"&H730)),\"\",IFERROR(VLOOKUP(TEXT(INDIRECT(\"'\"&F730&\"'!\"&H730),\"0\"),Notes!$B$5:$C$100,2,FALSE),\"\"))","v":""},"2c","$O$72","$P$72"]
[6951,{"$f":"Menu!$F$29","v":"X"},{"$f":"Menu!$J$29","v":2020},{"$f":"IF(ISBLANK(INDIRECT(\"'\"&F731&\"'!\"&G731)),\"\",INDIRECT(\"'\"&F731&\"'!\"&G731))","v":""},{"$f":"IF(ISBLANK(INDIRECT(\"'\"&F731&\"'!\"&H731)),\"\",IFERROR(VLOOKUP(TEXT(INDIRECT(\"'\"&F731&\"'!\"&H731),\"0\"),Notes!$B$5:$C$100,2,FALSE),\"\"))","v":""},"2c","$Q$72","$R$72"]
[6952,{"$f":"Menu!$F$29","v":"X"},{"$f":"Menu!$J$29","v":2020},{"$f":"IF(ISBLANK(INDIRECT(\"'\"&F732&\"'!\"&G732)),\"\",INDIRECT(\"'\"&F732&\"'!\"&G732))","v":""},{"$f":"IF(ISBLANK(INDIRECT(\"'\"&F732&\"'!\"&H732)),\"\",IFERROR(VLOOKUP(TEXT(INDIRECT(\"'\"&F732&\"'!\"&H732),\"0\"),Notes!$B$5:$C$100,2,FALSE),\"\"))","v":""},"2c","$S$72","$T$72"]
[6953,{"$f":"Menu!$F$29","v":"X"},{"$f":"Menu!$J$29","v":2020},{"$f":"IF(ISBLANK(INDIRECT(\"'\"&F733&\"'!\"&G733)),\"\",INDIRECT(\"'\"&F733&\"'!\"&G733))","v":""},{"$f":"IF(ISBLANK(INDIRECT(\"'\"&F733&\"'!\"&H733)),\"\",IFERROR(VLOOKUP(TEXT(INDIRECT(\"'\"&F733&\"'!\"&H733),\"0\"),Notes!$B$5:$C$100,2,FALSE),\"\"))","v":""},"2c","$U$72","$V$72"]
[6954,{"$f":"Menu!$F$29","v":"X"},{"$f":"Menu!$J$29","v":2020},{"$f":"IF(ISBLANK(INDIRECT(\"'\"&F734&\"'!\"&G734)),\"\",INDIRECT(\"'\"&F734&\"'!\"&G734))","v":""},{"$f":"IF(ISBLANK(INDIRECT(\"'\"&F734&\"'!\"&H734)),\"\",IFERROR(VLOOKUP(TEXT(INDIRECT(\"'\"&F734&\"'!\"&H734),\"0\"),Notes!$B$5:$C$100,2,FALSE),\"\"))","v":""},"2c","$W$72","$X$72"]
[6955,{"$f":"Menu!$F$29","v":"X"},{"$f":"Menu!$J$29","v":2020},{"$f":"IF(ISBLANK(INDIRECT(\"'\"&F735&\"'!\"&G735)),\"\",INDIRECT(\"'\"&F735&\"'!\"&G735))","v":""},{"$f":"IF(ISBLANK(INDIRECT(\"'\"&F735&\"'!\"&H735)),\"\",IFERROR(VLOOKUP(TEXT(INDIRECT(\"'\"&F735&\"'!\"&H735),\"0\"),Notes!$B$5:$C$100,2,FALSE),\"\"))","v":""},"2c","$Y$72","$Z$72"]
[6956,{"$f":"Menu!$F$29","v":"X"},{"$f":"Menu!$J$29","v":2020},{"$f":"IF(ISBLANK(INDIRECT(\"'\"&F736&\"'!\"&G736)),\"\",INDIRECT(\"'\"&F736&\"'!\"&G736))","v":""},{"$f":"IF(ISBLANK(INDIRECT(\"'\"&F736&\"'!\"&H736)),\"\",IFERROR(VLOOKUP(TEXT(INDIRECT(\"'\"&F736&\"'!\"&H736),\"0\"),Notes!$B$5:$C$100,2,FALSE),\"\"))","v":""},"2c","$AA$72","$AB$72"]
[6957,{"$f":"Menu!$F$29","v":"X"},{"$f":"Menu!$J$29","v":2020},{"$f":"IF(ISBLANK(INDIRECT(\"'\"&F737&\"'!\"&G737)),\"\",INDIRECT(\"'\"&F737&\"'!\"&G737))","v":""},{"$f":"IF(ISBLANK(INDIRECT(\"'\"&F737&\"'!\"&H737)),\"\",IFERROR(VLOOKUP(TEXT(INDIRECT(\"'\"&F737&\"'!\"&H737),\"0\"),Notes!$B$5:$C$100,2,FALSE),\"\"))","v":""},"2c","$E$73","$F$73"]
[6958,{"$f":"Menu!$F$29","v":"X"},{"$f":"Menu!$J$29","v":2020},{"$f":"IF(ISBLANK(INDIRECT(\"'\"&F738&\"'!\"&G738)),\"\",INDIRECT(\"'\"&F738&\"'!\"&G738))","v":""},{"$f":"IF(ISBLANK(INDIRECT(\"'\"&F738&\"'!\"&H738)),\"\",IFERROR(VLOOKUP(TEXT(INDIRECT(\"'\"&F738&\"'!\"&H738),\"0\"),Notes!$B$5:$C$100,2,FALSE),\"\"))","v":""},"2c","$G$73","$H$73"]
[6959,{"$f":"Menu!$F$29","v":"X"},{"$f":"Menu!$J$29","v":2020},{"$f":"IF(ISBLANK(INDIRECT(\"'\"&F739&\"'!\"&G739)),\"\",INDIRECT(\"'\"&F739&\"'!\"&G739))","v":""},{"$f":"IF(ISBLANK(INDIRECT(\"'\"&F739&\"'!\"&H739)),\"\",IFERROR(VLOOKUP(TEXT(INDIRECT(\"'\"&F739&\"'!\"&H739),\"0\"),Notes!$B$5:$C$100,2,FALSE),\"\"))","v":""},"2c","$I$73","$J$73"]
[6960,{"$f":"Menu!$F$29","v":"X"},{"$f":"Menu!$J$29","v":2020},{"$f":"IF(ISBLANK(INDIRECT(\"'\"&F740&\"'!\"&G740)),\"\",INDIRECT(\"'\"&F740&\"'!\"&G740))","v":""},{"$f":"IF(ISBLANK(INDIRECT(\"'\"&F740&\"'!\"&H740)),\"\",IFERROR(VLOOKUP(TEXT(INDIRECT(\"'\"&F740&\"'!\"&H740),\"0\"),Notes!$B$5:$C$100,2,FALSE),\"\"))","v":""},"2c","$K$73","$L$73"]
[6961,{"$f":"Menu!$F$29","v":"X"},{"$f":"Menu!$J$29","v":2020},{"$f":"IF(ISBLANK(INDIRECT(\"'\"&F741&\"'!\"&G741)),\"\",INDIRECT(\"'\"&F741&\"'!\"&G741))","v":""},{"$f":"IF(ISBLANK(INDIRECT(\"'\"&F741&\"'!\"&H741)),\"\",IFERROR(VLOOKUP(TEXT(INDIRECT(\"'\"&F741&\"'!\"&H741),\"0\"),Notes!$B$5:$C$100,2,FALSE),\"\"))","v":""},"2c","$M$73","$N$73"]
[6962,{"$f":"Menu!$F$29","v":"X"},{"$f":"Menu!$J$29","v":2020},{"$f":"IF(ISBLANK(INDIRECT(\"'\"&F742&\"'!\"&G742)),\"\",INDIRECT(\"'\"&F742&\"'!\"&G742))","v":""},{"$f":"IF(ISBLANK(INDIRECT(\"'\"&F742&\"'!\"&H742)),\"\",IFERROR(VLOOKUP(TEXT(INDIRECT(\"'\"&F742&\"'!\"&H742),\"0\"),Notes!$B$5:$C$100,2,FALSE),\"\"))","v":""},"2c","$O$73","$P$73"]
[6963,{"$f":"Menu!$F$29","v":"X"},{"$f":"Menu!$J$29","v":2020},{"$f":"IF(ISBLANK(INDIRECT(\"'\"&F743&\"'!\"&G743)),\"\",INDIRECT(\"'\"&F743&\"'!\"&G743))","v":""},{"$f":"IF(ISBLANK(INDIRECT(\"'\"&F743&\"'!\"&H743)),\"\",IFERROR(VLOOKUP(TEXT(INDIRECT(\"'\"&F743&\"'!\"&H743),\"0\"),Notes!$B$5:$C$100,2,FALSE),\"\"))","v":""},"2c","$Q$73","$R$73"]
[6964,{"$f":"Menu!$F$29","v":"X"},{"$f":"Menu!$J$29","v":2020},{"$f":"IF(ISBLANK(INDIRECT(\"'\"&F744&\"'!\"&G744)),\"\",INDIRECT(\"'\"&F744&\"'!\"&G744))","v":""},{"$f":"IF(ISBLANK(INDIRECT(\"'\"&F744&\"'!\"&H744)),\"\",IFERROR(VLOOKUP(TEXT(INDIRECT(\"'\"&F744&\"'!\"&H744),\"0\"),Notes!$B$5:$C$100,2,FALSE),\"\"))","v":""},"2c","$S$73","$T$73"]
[6965,{"$f":"Menu!$F$29","v":"X"},{"$f":"Menu!$J$29","v":2020},{"$f":"IF(ISBLANK(INDIRECT(\"'\"&F745&\"'!\"&G745)),\"\",INDIRECT(\"'\"&F745&\"'!\"&G745))","v":""},{"$f":"IF(ISBLANK(INDIRECT(\"'\"&F745&\"'!\"&H745)),\"\",IFERROR(VLOOKUP(TEXT(INDIRECT(\"'\"&F745&\"'!\"&H745),\"0\"),Notes!$B$5:$C$100,2,FALSE),\"\"))","v":""},"2c","$U$73","$V$73"]
[6966,{"$f":"Menu!$F$29","v":"X"},{"$f":"Menu!$J$29","v":2020},{"$f":"IF(ISBLANK(INDIRECT(\"'\"&F746&\"'!\"&G746)),\"\",INDIRECT(\"'\"&F746&\"'!\"&G746))","v":""},{"$f":"IF(ISBLANK(INDIRECT(\"'\"&F746&\"'!\"&H746)),\"\",IFERROR(VLOOKUP(TEXT(INDIRECT(\"'\"&F746&\"'!\"&H746),\"0\"),Notes!$B$5:$C$100,2,FALSE),\"\"))","v":""},"2c","$W$73","$X$73"]
[6967,{"$f":"Menu!$F$29","v":"X"},{"$f":"Menu!$J$29","v":2020},{"$f":"IF(ISBLANK(INDIRECT(\"'\"&F747&\"'!\"&G747)),\"\",INDIRECT(\"'\"&F747&\"'!\"&G747))","v":""},{"$f":"IF(ISBLANK(INDIRECT(\"'\"&F747&\"'!\"&H747)),\"\",IFERROR(VLOOKUP(TEXT(INDIRECT(\"'\"&F747&\"'!\"&H747),\"0\"),Notes!$B$5:$C$100,2,FALSE),\"\"))","v":""},"2c","$Y$73","$Z$73"]
[6968,{"$f":"Menu!$F$29","v":"X"},{"$f":"Menu!$J$29","v":2020},{"$f":"IF(ISBLANK(INDIRECT(\"'\"&F748&\"'!\"&G748)),\"\",INDIRECT(\"'\"&F748&\"'!\"&G748))","v":""},{"$f":"IF(ISBLANK(INDIRECT(\"'\"&F748&\"'!\"&H748)),\"\",IFERROR(VLOOKUP(TEXT(INDIRECT(\"'\"&F748&\"'!\"&H748),\"0\"),Notes!$B$5:$C$100,2,FALSE),\"\"))","v":""},"2c","$AA$73","$AB$73"]
[6969,{"$f":"Menu!$F$29","v":"X"},{"$f":"Menu!$J$29","v":2020},{"$f":"IF(ISBLANK(INDIRECT(\"'\"&F749&\"'!\"&G749)),\"\",INDIRECT(\"'\"&F749&\"'!\"&G749))","v":""},{"$f":"IF(ISBLANK(INDIRECT(\"'\"&F749&\"'!\"&H749)),\"\",IFERROR(VLOOKUP(TEXT(INDIRECT(\"'\"&F749&\"'!\"&H749),\"0\"),Notes!$B$5:$C$100,2,FALSE),\"\"))","v":""},"2c","$E$74","$F$74"]
[6970,{"$f":"Menu!$F$29","v":"X"},{"$f":"Menu!$J$29","v":2020},{"$f":"IF(ISBLANK(INDIRECT(\"'\"&F750&\"'!\"&G750)),\"\",INDIRECT(\"'\"&F750&\"'!\"&G750))","v":""},{"$f":"IF(ISBLANK(INDIRECT(\"'\"&F750&\"'!\"&H750)),\"\",IFERROR(VLOOKUP(TEXT(INDIRECT(\"'\"&F750&\"'!\"&H750),\"0\"),Notes!$B$5:$C$100,2,FALSE),\"\"))","v":""},"2c","$G$74","$H$74"]
[6971,{"$f":"Menu!$F$29","v":"X"},{"$f":"Menu!$J$29","v":2020},{"$f":"IF(ISBLANK(INDIRECT(\"'\"&F751&\"'!\"&G751)),\"\",INDIRECT(\"'\"&F751&\"'!\"&G751))","v":""},{"$f":"IF(ISBLANK(INDIRECT(\"'\"&F751&\"'!\"&H751)),\"\",IFERROR(VLOOKUP(TEXT(INDIRECT(\"'\"&F751&\"'!\"&H751),\"0\"),Notes!$B$5:$C$100,2,FALSE),\"\"))","v":""},"2c","$I$74","$J$74"]
[6972,{"$f":"Menu!$F$29","v":"X"},{"$f":"Menu!$J$29","v":2020},{"$f":"IF(ISBLANK(INDIRECT(\"'\"&F752&\"'!\"&G752)),\"\",INDIRECT(\"'\"&F752&\"'!\"&G752))","v":""},{"$f":"IF(ISBLANK(INDIRECT(\"'\"&F752&\"'!\"&H752)),\"\",IFERROR(VLOOKUP(TEXT(INDIRECT(\"'\"&F752&\"'!\"&H752),\"0\"),Notes!$B$5:$C$100,2,FALSE),\"\"))","v":""},"2c","$K$74","$L$74"]
[6973,{"$f":"Menu!$F$29","v":"X"},{"$f":"Menu!$J$29","v":2020},{"$f":"IF(ISBLANK(INDIRECT(\"'\"&F753&\"'!\"&G753)),\"\",INDIRECT(\"'\"&F753&\"'!\"&G753))","v":""},{"$f":"IF(ISBLANK(INDIRECT(\"'\"&F753&\"'!\"&H753)),\"\",IFERROR(VLOOKUP(TEXT(INDIRECT(\"'\"&F753&\"'!\"&H753),\"0\"),Notes!$B$5:$C$100,2,FALSE),\"\"))","v":""},"2c","$M$74","$N$74"]
[6974,{"$f":"Menu!$F$29","v":"X"},{"$f":"Menu!$J$29","v":2020},{"$f":"IF(ISBLANK(INDIRECT(\"'\"&F754&\"'!\"&G754)),\"\",INDIRECT(\"'\"&F754&\"'!\"&G754))","v":""},{"$f":"IF(ISBLANK(INDIRECT(\"'\"&F754&\"'!\"&H754)),\"\",IFERROR(VLOOKUP(TEXT(INDIRECT(\"'\"&F754&\"'!\"&H754),\"0\"),Notes!$B$5:$C$100,2,FALSE),\"\"))","v":""},"2c","$O$74","$P$74"]
[6975,{"$f":"Menu!$F$29","v":"X"},{"$f":"Menu!$J$29","v":2020},{"$f":"IF(ISBLANK(INDIRECT(\"'\"&F755&\"'!\"&G755)),\"\",INDIRECT(\"'\"&F755&\"'!\"&G755))","v":""},{"$f":"IF(ISBLANK(INDIRECT(\"'\"&F755&\"'!\"&H755)),\"\",IFERROR(VLOOKUP(TEXT(INDIRECT(\"'\"&F755&\"'!\"&H755),\"0\"),Notes!$B$5:$C$100,2,FALSE),\"\"))","v":""},"2c","$Q$74","$R$74"]
[6976,{"$f":"Menu!$F$29","v":"X"},{"$f":"Menu!$J$29","v":2020},{"$f":"IF(ISBLANK(INDIRECT(\"'\"&F756&\"'!\"&G756)),\"\",INDIRECT(\"'\"&F756&\"'!\"&G756))","v":""},{"$f":"IF(ISBLANK(INDIRECT(\"'\"&F756&\"'!\"&H756)),\"\",IFERROR(VLOOKUP(TEXT(INDIRECT(\"'\"&F756&\"'!\"&H756),\"0\"),Notes!$B$5:$C$100,2,FALSE),\"\"))","v":""},"2c","$S$74","$T$74"]
[6977,{"$f":"Menu!$F$29","v":"X"},{"$f":"Menu!$J$29","v":2020},{"$f":"IF(ISBLANK(INDIRECT(\"'\"&F757&\"'!\"&G757)),\"\",INDIRECT(\"'\"&F757&\"'!\"&G757))","v":""},{"$f":"IF(ISBLANK(INDIRECT(\"'\"&F757&\"'!\"&H757)),\"\",IFERROR(VLOOKUP(TEXT(INDIRECT(\"'\"&F757&\"'!\"&H757),\"0\"),Notes!$B$5:$C$100,2,FALSE),\"\"))","v":""},"2c","$U$74","$V$74"]
[6978,{"$f":"Menu!$F$29","v":"X"},{"$f":"Menu!$J$29","v":2020},{"$f":"IF(ISBLANK(INDIRECT(\"'\"&F758&\"'!\"&G758)),\"\",INDIRECT(\"'\"&F758&\"'!\"&G758))","v":""},{"$f":"IF(ISBLANK(INDIRECT(\"'\"&F758&\"'!\"&H758)),\"\",IFERROR(VLOOKUP(TEXT(INDIRECT(\"'\"&F758&\"'!\"&H758),\"0\"),Notes!$B$5:$C$100,2,FALSE),\"\"))","v":""},"2c","$W$74","$X$74"]
[6979,{"$f":"Menu!$F$29","v":"X"},{"$f":"Menu!$J$29","v":2020},{"$f":"IF(ISBLANK(INDIRECT(\"'\"&F759&\"'!\"&G759)),\"\",INDIRECT(\"'\"&F759&\"'!\"&G759))","v":""},{"$f":"IF(ISBLANK(INDIRECT(\"'\"&F759&\"'!\"&H759)),\"\",IFERROR(VLOOKUP(TEXT(INDIRECT(\"'\"&F759&\"'!\"&H759),\"0\"),Notes!$B$5:$C$100,2,FALSE),\"\"))","v":""},"2c","$Y$74","$Z$74"]
[6980,{"$f":"Menu!$F$29","v":"X"},{"$f":"Menu!$J$29","v":2020},{"$f":"IF(ISBLANK(INDIRECT(\"'\"&F760&\"'!\"&G760)),\"\",INDIRECT(\"'\"&F760&\"'!\"&G760))","v":""},{"$f":"IF(ISBLANK(INDIRECT(\"'\"&F760&\"'!\"&H760)),\"\",IFERROR(VLOOKUP(TEXT(INDIRECT(\"'\"&F760&\"'!\"&H760),\"0\"),Notes!$B$5:$C$100,2,FALSE),\"\"))","v":""},"2c","$AA$74","$AB$74"]
[6981,{"$f":"Menu!$F$29","v":"X"},{"$f":"Menu!$J$29","v":2020},{"$f":"IF(ISBLANK(INDIRECT(\"'\"&F761&\"'!\"&G761)),\"\",INDIRECT(\"'\"&F761&\"'!\"&G761))","v":""},{"$f":"IF(ISBLANK(INDIRECT(\"'\"&F761&\"'!\"&H761)),\"\",IFERROR(VLOOKUP(TEXT(INDIRECT(\"'\"&F761&\"'!\"&H761),\"0\"),Notes!$B$5:$C$100,2,FALSE),\"\"))","v":""},"2d","$E$10","$F$10"]
[6982,{"$f":"Menu!$F$29","v":"X"},{"$f":"Menu!$J$29","v":2020},{"$f":"IF(ISBLANK(INDIRECT(\"'\"&F762&\"'!\"&G762)),\"\",INDIRECT(\"'\"&F762&\"'!\"&G762))","v":""},{"$f":"IF(ISBLANK(INDIRECT(\"'\"&F762&\"'!\"&H762)),\"\",IFERROR(VLOOKUP(TEXT(INDIRECT(\"'\"&F762&\"'!\"&H762),\"0\"),Notes!$B$5:$C$100,2,FALSE),\"\"))","v":""},"2d","$G$10","$H$10"]
[6983,{"$f":"Menu!$F$29","v":"X"},{"$f":"Menu!$J$29","v":2020},{"$f":"IF(ISBLANK(INDIRECT(\"'\"&F763&\"'!\"&G763)),\"\",INDIRECT(\"'\"&F763&\"'!\"&G763))","v":""},{"$f":"IF(ISBLANK(INDIRECT(\"'\"&F763&\"'!\"&H763)),\"\",IFERROR(VLOOKUP(TEXT(INDIRECT(\"'\"&F763&\"'!\"&H763),\"0\"),Notes!$B$5:$C$100,2,FALSE),\"\"))","v":""},"2d","$I$10","$J$10"]
[6984,{"$f":"Menu!$F$29","v":"X"},{"$f":"Menu!$J$29","v":2020},{"$f":"IF(ISBLANK(INDIRECT(\"'\"&F764&\"'!\"&G764)),\"\",INDIRECT(\"'\"&F764&\"'!\"&G764))","v":""},{"$f":"IF(ISBLANK(INDIRECT(\"'\"&F764&\"'!\"&H764)),\"\",IFERROR(VLOOKUP(TEXT(INDIRECT(\"'\"&F764&\"'!\"&H764),\"0\"),Notes!$B$5:$C$100,2,FALSE),\"\"))","v":""},"2d","$K$10","$L$10"]
[6985,{"$f":"Menu!$F$29","v":"X"},{"$f":"Menu!$J$29","v":2020},{"$f":"IF(ISBLANK(INDIRECT(\"'\"&F765&\"'!\"&G765)),\"\",INDIRECT(\"'\"&F765&\"'!\"&G765))","v":""},{"$f":"IF(ISBLANK(INDIRECT(\"'\"&F765&\"'!\"&H765)),\"\",IFERROR(VLOOKUP(TEXT(INDIRECT(\"'\"&F765&\"'!\"&H765),\"0\"),Notes!$B$5:$C$100,2,FALSE),\"\"))","v":""},"2d","$M$10","$N$10"]
[6986,{"$f":"Menu!$F$29","v":"X"},{"$f":"Menu!$J$29","v":2020},{"$f":"IF(ISBLANK(INDIRECT(\"'\"&F766&\"'!\"&G766)),\"\",INDIRECT(\"'\"&F766&\"'!\"&G766))","v":""},{"$f":"IF(ISBLANK(INDIRECT(\"'\"&F766&\"'!\"&H766)),\"\",IFERROR(VLOOKUP(TEXT(INDIRECT(\"'\"&F766&\"'!\"&H766),\"0\"),Notes!$B$5:$C$100,2,FALSE),\"\"))","v":""},"2d","$O$10","$P$10"]
[6987,{"$f":"Menu!$F$29","v":"X"},{"$f":"Menu!$J$29","v":2020},{"$f":"IF(ISBLANK(INDIRECT(\"'\"&F767&\"'!\"&G767)),\"\",INDIRECT(\"'\"&F767&\"'!\"&G767))","v":""},{"$f":"IF(ISBLANK(INDIRECT(\"'\"&F767&\"'!\"&H767)),\"\",IFERROR(VLOOKUP(TEXT(INDIRECT(\"'\"&F767&\"'!\"&H767),\"0\"),Notes!$B$5:$C$100,2,FALSE),\"\"))","v":""},"2d","$Q$10","$R$10"]
[6988,{"$f":"Menu!$F$29","v":"X"},{"$f":"Menu!$J$29","v":2020},{"$f":"IF(ISBLANK(INDIRECT(\"'\"&F768&\"'!\"&G768)),\"\",INDIRECT(\"'\"&F768&\"'!\"&G768))","v":""},{"$f":"IF(ISBLANK(INDIRECT(\"'\"&F768&\"'!\"&H768)),\"\",IFERROR(VLOOKUP(TEXT(INDIRECT(\"'\"&F768&\"'!\"&H768),\"0\"),Notes!$B$5:$C$100,2,FALSE),\"\"))","v":""},"2d","$S$10","$T$10"]
[6989,{"$f":"Menu!$F$29","v":"X"},{"$f":"Menu!$J$29","v":2020},{"$f":"IF(ISBLANK(INDIRECT(\"'\"&F769&\"'!\"&G769)),\"\",INDIRECT(\"'\"&F769&\"'!\"&G769))","v":""},{"$f":"IF(ISBLANK(INDIRECT(\"'\"&F769&\"'!\"&H769)),\"\",IFERROR(VLOOKUP(TEXT(INDIRECT(\"'\"&F769&\"'!\"&H769),\"0\"),Notes!$B$5:$C$100,2,FALSE),\"\"))","v":""},"2d","$U$10","$V$10"]
[6990,{"$f":"Menu!$F$29","v":"X"},{"$f":"Menu!$J$29","v":2020},{"$f":"IF(ISBLANK(INDIRECT(\"'\"&F770&\"'!\"&G770)),\"\",INDIRECT(\"'\"&F770&\"'!\"&G770))","v":""},{"$f":"IF(ISBLANK(INDIRECT(\"'\"&F770&\"'!\"&H770)),\"\",IFERROR(VLOOKUP(TEXT(INDIRECT(\"'\"&F770&\"'!\"&H770),\"0\"),Notes!$B$5:$C$100,2,FALSE),\"\"))","v":""},"2d","$W$10",{"$f":"IF(LEN(TRIM(MID(G770,4,10)))-LEN(SUBSTITUTE(TRIM(MID(G770,4,10)),\"$\",\"\"))=0,\"$\"&CHAR(CODE(MID(G770,2,1))+1)&\"$\"&TRIM(MID(G770,4,10)),\"$\"&MID(G770,2,1)&CHAR(CODE(MID(G770,3,1))+1)&\"$\"&TRIM(MID(G770,5,11)))","v":"$X$10"}]
[6991,{"$f":"Menu!$F$29","v":"X"},{"$f":"Menu!$J$29","v":2020},{"$f":"IF(ISBLANK(INDIRECT(\"'\"&F771&\"'!\"&G771)),\"\",INDIRECT(\"'\"&F771&\"'!\"&G771))","v":""},{"$f":"IF(ISBLANK(INDIRECT(\"'\"&F771&\"'!\"&H771)),\"\",IFERROR(VLOOKUP(TEXT(INDIRECT(\"'\"&F771&\"'!\"&H771),\"0\"),Notes!$B$5:$C$100,2,FALSE),\"\"))","v":""},"2d","$Y$10","$Z$10"]
[6992,{"$f":"Menu!$F$29","v":"X"},{"$f":"Menu!$J$29","v":2020},{"$f":"IF(ISBLANK(INDIRECT(\"'\"&F772&\"'!\"&G772)),\"\",INDIRECT(\"'\"&F772&\"'!\"&G772))","v":""},{"$f":"IF(ISBLANK(INDIRECT(\"'\"&F772&\"'!\"&H772)),\"\",IFERROR(VLOOKUP(TEXT(INDIRECT(\"'\"&F772&\"'!\"&H772),\"0\"),Notes!$B$5:$C$100,2,FALSE),\"\"))","v":""},"2d","$AA$10","$AB$10"]
[6993,{"$f":"Menu!$F$29","v":"X"},{"$f":"Menu!$J$29","v":2020},{"$f":"IF(ISBLANK(INDIRECT(\"'\"&F773&\"'!\"&G773)),\"\",INDIRECT(\"'\"&F773&\"'!\"&G773))","v":""},{"$f":"IF(ISBLANK(INDIRECT(\"'\"&F773&\"'!\"&H773)),\"\",IFERROR(VLOOKUP(TEXT(INDIRECT(\"'\"&F773&\"'!\"&H773),\"0\"),Notes!$B$5:$C$100,2,FALSE),\"\"))","v":""},"2d","$AC$10","$AD$10"]
[6994,{"$f":"Menu!$F$29","v":"X"},{"$f":"Menu!$J$29","v":2020},{"$f":"IF(ISBLANK(INDIRECT(\"'\"&F774&\"'!\"&G774)),\"\",INDIRECT(\"'\"&F774&\"'!\"&G774))","v":""},{"$f":"IF(ISBLANK(INDIRECT(\"'\"&F774&\"'!\"&H774)),\"\",IFERROR(VLOOKUP(TEXT(INDIRECT(\"'\"&F774&\"'!\"&H774),\"0\"),Notes!$B$5:$C$100,2,FALSE),\"\"))","v":""},"2d","$AE$10","$AF$10"]
[6995,{"$f":"Menu!$F$29","v":"X"},{"$f":"Menu!$J$29","v":2020},{"$f":"IF(ISBLANK(INDIRECT(\"'\"&F775&\"'!\"&G775)),\"\",INDIRECT(\"'\"&F775&\"'!\"&G775))","v":""},{"$f":"IF(ISBLANK(INDIRECT(\"'\"&F775&\"'!\"&H775)),\"\",IFERROR(VLOOKUP(TEXT(INDIRECT(\"'\"&F775&\"'!\"&H775),\"0\"),Notes!$B$5:$C$100,2,FALSE),\"\"))","v":""},"2d","$AG$10","$AH$10"]
[6996,{"$f":"Menu!$F$29","v":"X"},{"$f":"Menu!$J$29","v":2020},{"$f":"IF(ISBLANK(INDIRECT(\"'\"&F776&\"'!\"&G776)),\"\",INDIRECT(\"'\"&F776&\"'!\"&G776))","v":""},{"$f":"IF(ISBLANK(INDIRECT(\"'\"&F776&\"'!\"&H776)),\"\",IFERROR(VLOOKUP(TEXT(INDIRECT(\"'\"&F776&\"'!\"&H776),\"0\"),Notes!$B$5:$C$100,2,FALSE),\"\"))","v":""},"2d","$E$11","$F$11"]
[6997,{"$f":"Menu!$F$29","v":"X"},{"$f":"Menu!$J$29","v":2020},{"$f":"IF(ISBLANK(INDIRECT(\"'\"&F777&\"'!\"&G777)),\"\",INDIRECT(\"'\"&F777&\"'!\"&G777))","v":""},{"$f":"IF(ISBLANK(INDIRECT(\"'\"&F777&\"'!\"&H777)),\"\",IFERROR(VLOOKUP(TEXT(INDIRECT(\"'\"&F777&\"'!\"&H777),\"0\"),Notes!$B$5:$C$100,2,FALSE),\"\"))","v":""},"2d","$G$11","$H$11"]
[6998,{"$f":"Menu!$F$29","v":"X"},{"$f":"Menu!$J$29","v":2020},{"$f":"IF(ISBLANK(INDIRECT(\"'\"&F778&\"'!\"&G778)),\"\",INDIRECT(\"'\"&F778&\"'!\"&G778))","v":""},{"$f":"IF(ISBLANK(INDIRECT(\"'\"&F778&\"'!\"&H778)),\"\",IFERROR(VLOOKUP(TEXT(INDIRECT(\"'\"&F778&\"'!\"&H778),\"0\"),Notes!$B$5:$C$100,2,FALSE),\"\"))","v":""},"2d","$I$11","$J$11"]
[6999,{"$f":"Menu!$F$29","v":"X"},{"$f":"Menu!$J$29","v":2020},{"$f":"IF(ISBLANK(INDIRECT(\"'\"&F779&\"'!\"&G779)),\"\",INDIRECT(\"'\"&F779&\"'!\"&G779))","v":""},{"$f":"IF(ISBLANK(INDIRECT(\"'\"&F779&\"'!\"&H779)),\"\",IFERROR(VLOOKUP(TEXT(INDIRECT(\"'\"&F779&\"'!\"&H779),\"0\"),Notes!$B$5:$C$100,2,FALSE),\"\"))","v":""},"2d","$K$11","$L$11"]
[7000,{"$f":"Menu!$F$29","v":"X"},{"$f":"Menu!$J$29","v":2020},{"$f":"IF(ISBLANK(INDIRECT(\"'\"&F780&\"'!\"&G780)),\"\",INDIRECT(\"'\"&F780&\"'!\"&G780))","v":""},{"$f":"IF(ISBLANK(INDIRECT(\"'\"&F780&\"'!\"&H780)),\"\",IFERROR(VLOOKUP(TEXT(INDIRECT(\"'\"&F780&\"'!\"&H780),\"0\"),Notes!$B$5:$C$100,2,FALSE),\"\"))","v":""},"2d","$M$11","$N$11"]
[7001,{"$f":"Menu!$F$29","v":"X"},{"$f":"Menu!$J$29","v":2020},{"$f":"IF(ISBLANK(INDIRECT(\"'\"&F781&\"'!\"&G781)),\"\",INDIRECT(\"'\"&F781&\"'!\"&G781))","v":""},{"$f":"IF(ISBLANK(INDIRECT(\"'\"&F781&\"'!\"&H781)),\"\",IFERROR(VLOOKUP(TEXT(INDIRECT(\"'\"&F781&\"'!\"&H781),\"0\"),Notes!$B$5:$C$100,2,FALSE),\"\"))","v":""},"2d","$O$11","$P$11"]
[7002,{"$f":"Menu!$F$29","v":"X"},{"$f":"Menu!$J$29","v":2020},{"$f":"IF(ISBLANK(INDIRECT(\"'\"&F782&\"'!\"&G782)),\"\",INDIRECT(\"'\"&F782&\"'!\"&G782))","v":""},{"$f":"IF(ISBLANK(INDIRECT(\"'\"&F782&\"'!\"&H782)),\"\",IFERROR(VLOOKUP(TEXT(INDIRECT(\"'\"&F782&\"'!\"&H782),\"0\"),Notes!$B$5:$C$100,2,FALSE),\"\"))","v":""},"2d","$Q$11","$R$11"]
[7003,{"$f":"Menu!$F$29","v":"X"},{"$f":"Menu!$J$29","v":2020},{"$f":"IF(ISBLANK(INDIRECT(\"'\"&F783&\"'!\"&G783)),\"\",INDIRECT(\"'\"&F783&\"'!\"&G783))","v":""},{"$f":"IF(ISBLANK(INDIRECT(\"'\"&F783&\"'!\"&H783)),\"\",IFERROR(VLOOKUP(TEXT(INDIRECT(\"'\"&F783&\"'!\"&H783),\"0\"),Notes!$B$5:$C$100,2,FALSE),\"\"))","v":""},"2d","$S$11","$T$11"]
[7004,{"$f":"Menu!$F$29","v":"X"},{"$f":"Menu!$J$29","v":2020},{"$f":"IF(ISBLANK(INDIRECT(\"'\"&F784&\"'!\"&G784)),\"\",INDIRECT(\"'\"&F784&\"'!\"&G784))","v":""},{"$f":"IF(ISBLANK(INDIRECT(\"'\"&F784&\"'!\"&H784)),\"\",IFERROR(VLOOKUP(TEXT(INDIRECT(\"'\"&F784&\"'!\"&H784),\"0\"),Notes!$B$5:$C$100,2,FALSE),\"\"))","v":""},"2d","$U$11","$V$11"]
[7005,{"$f":"Menu!$F$29","v":"X"},{"$f":"Menu!$J$29","v":2020},{"$f":"IF(ISBLANK(INDIRECT(\"'\"&F785&\"'!\"&G785)),\"\",INDIRECT(\"'\"&F785&\"'!\"&G785))","v":""},{"$f":"IF(ISBLANK(INDIRECT(\"'\"&F785&\"'!\"&H785)),\"\",IFERROR(VLOOKUP(TEXT(INDIRECT(\"'\"&F785&\"'!\"&H785),\"0\"),Notes!$B$5:$C$100,2,FALSE),\"\"))","v":""},"2d","$W$11","$X$11"]
[7006,{"$f":"Menu!$F$29","v":"X"},{"$f":"Menu!$J$29","v":2020},{"$f":"IF(ISBLANK(INDIRECT(\"'\"&F786&\"'!\"&G786)),\"\",INDIRECT(\"'\"&F786&\"'!\"&G786))","v":""},{"$f":"IF(ISBLANK(INDIRECT(\"'\"&F786&\"'!\"&H786)),\"\",IFERROR(VLOOKUP(TEXT(INDIRECT(\"'\"&F786&\"'!\"&H786),\"0\"),Notes!$B$5:$C$100,2,FALSE),\"\"))","v":""},"2d","$Y$11","$Z$11"]
[7007,{"$f":"Menu!$F$29","v":"X"},{"$f":"Menu!$J$29","v":2020},{"$f":"IF(ISBLANK(INDIRECT(\"'\"&F787&\"'!\"&G787)),\"\",INDIRECT(\"'\"&F787&\"'!\"&G787))","v":""},{"$f":"IF(ISBLANK(INDIRECT(\"'\"&F787&\"'!\"&H787)),\"\",IFERROR(VLOOKUP(TEXT(INDIRECT(\"'\"&F787&\"'!\"&H787),\"0\"),Notes!$B$5:$C$100,2,FALSE),\"\"))","v":""},"2d","$AA$11","$AB$11"]
[7008,{"$f":"Menu!$F$29","v":"X"},{"$f":"Menu!$J$29","v":2020},{"$f":"IF(ISBLANK(INDIRECT(\"'\"&F788&\"'!\"&G788)),\"\",INDIRECT(\"'\"&F788&\"'!\"&G788))","v":""},{"$f":"IF(ISBLANK(INDIRECT(\"'\"&F788&\"'!\"&H788)),\"\",IFERROR(VLOOKUP(TEXT(INDIRECT(\"'\"&F788&\"'!\"&H788),\"0\"),Notes!$B$5:$C$100,2,FALSE),\"\"))","v":""},"2d","$AC$11","$AD$11"]
[7009,{"$f":"Menu!$F$29","v":"X"},{"$f":"Menu!$J$29","v":2020},{"$f":"IF(ISBLANK(INDIRECT(\"'\"&F789&\"'!\"&G789)),\"\",INDIRECT(\"'\"&F789&\"'!\"&G789))","v":""},{"$f":"IF(ISBLANK(INDIRECT(\"'\"&F789&\"'!\"&H789)),\"\",IFERROR(VLOOKUP(TEXT(INDIRECT(\"'\"&F789&\"'!\"&H789),\"0\"),Notes!$B$5:$C$100,2,FALSE),\"\"))","v":""},"2d","$AE$11","$AF$11"]
[7010,{"$f":"Menu!$F$29","v":"X"},{"$f":"Menu!$J$29","v":2020},{"$f":"IF(ISBLANK(INDIRECT(\"'\"&F790&\"'!\"&G790)),\"\",INDIRECT(\"'\"&F790&\"'!\"&G790))","v":""},{"$f":"IF(ISBLANK(INDIRECT(\"'\"&F790&\"'!\"&H790)),\"\",IFERROR(VLOOKUP(TEXT(INDIRECT(\"'\"&F790&\"'!\"&H790),\"0\"),Notes!$B$5:$C$100,2,FALSE),\"\"))","v":""},"2d","$AG$11","$AH$11"]
[7011,{"$f":"Menu!$F$29","v":"X"},{"$f":"Menu!$J$29","v":2020},{"$f":"IF(ISBLANK(INDIRECT(\"'\"&F791&\"'!\"&G791)),\"\",INDIRECT(\"'\"&F791&\"'!\"&G791))","v":""},{"$f":"IF(ISBLANK(INDIRECT(\"'\"&F791&\"'!\"&H791)),\"\",IFERROR(VLOOKUP(TEXT(INDIRECT(\"'\"&F791&\"'!\"&H791),\"0\"),Notes!$B$5:$C$100,2,FALSE),\"\"))","v":""},"2d","$E$19","$F$19"]
[7012,{"$f":"Menu!$F$29","v":"X"},{"$f":"Menu!$J$29","v":2020},{"$f":"IF(ISBLANK(INDIRECT(\"'\"&F792&\"'!\"&G792)),\"\",INDIRECT(\"'\"&F792&\"'!\"&G792))","v":""},{"$f":"IF(ISBLANK(INDIRECT(\"'\"&F792&\"'!\"&H792)),\"\",IFERROR(VLOOKUP(TEXT(INDIRECT(\"'\"&F792&\"'!\"&H792),\"0\"),Notes!$B$5:$C$100,2,FALSE),\"\"))","v":""},"2d","$G$19","$H$19"]
[7013,{"$f":"Menu!$F$29","v":"X"},{"$f":"Menu!$J$29","v":2020},{"$f":"IF(ISBLANK(INDIRECT(\"'\"&F793&\"'!\"&G793)),\"\",INDIRECT(\"'\"&F793&\"'!\"&G793))","v":""},{"$f":"IF(ISBLANK(INDIRECT(\"'\"&F793&\"'!\"&H793)),\"\",IFERROR(VLOOKUP(TEXT(INDIRECT(\"'\"&F793&\"'!\"&H793),\"0\"),Notes!$B$5:$C$100,2,FALSE),\"\"))","v":""},"2d","$I$19","$J$19"]
[7014,{"$f":"Menu!$F$29","v":"X"},{"$f":"Menu!$J$29","v":2020},{"$f":"IF(ISBLANK(INDIRECT(\"'\"&F794&\"'!\"&G794)),\"\",INDIRECT(\"'\"&F794&\"'!\"&G794))","v":""},{"$f":"IF(ISBLANK(INDIRECT(\"'\"&F794&\"'!\"&H794)),\"\",IFERROR(VLOOKUP(TEXT(INDIRECT(\"'\"&F794&\"'!\"&H794),\"0\"),Notes!$B$5:$C$100,2,FALSE),\"\"))","v":""},"2d","$K$19","$L$19"]
[7015,{"$f":"Menu!$F$29","v":"X"},{"$f":"Menu!$J$29","v":2020},{"$f":"IF(ISBLANK(INDIRECT(\"'\"&F795&\"'!\"&G795)),\"\",INDIRECT(\"'\"&F795&\"'!\"&G795))","v":""},{"$f":"IF(ISBLANK(INDIRECT(\"'\"&F795&\"'!\"&H795)),\"\",IFERROR(VLOOKUP(TEXT(INDIRECT(\"'\"&F795&\"'!\"&H795),\"0\"),Notes!$B$5:$C$100,2,FALSE),\"\"))","v":""},"2d","$M$19","$N$19"]
[7016,{"$f":"Menu!$F$29","v":"X"},{"$f":"Menu!$J$29","v":2020},{"$f":"IF(ISBLANK(INDIRECT(\"'\"&F796&\"'!\"&G796)),\"\",INDIRECT(\"'\"&F796&\"'!\"&G796))","v":""},{"$f":"IF(ISBLANK(INDIRECT(\"'\"&F796&\"'!\"&H796)),\"\",IFERROR(VLOOKUP(TEXT(INDIRECT(\"'\"&F796&\"'!\"&H796),\"0\"),Notes!$B$5:$C$100,2,FALSE),\"\"))","v":""},"2d","$O$19","$P$19"]
[7017,{"$f":"Menu!$F$29","v":"X"},{"$f":"Menu!$J$29","v":2020},{"$f":"IF(ISBLANK(INDIRECT(\"'\"&F797&\"'!\"&G797)),\"\",INDIRECT(\"'\"&F797&\"'!\"&G797))","v":""},{"$f":"IF(ISBLANK(INDIRECT(\"'\"&F797&\"'!\"&H797)),\"\",IFERROR(VLOOKUP(TEXT(INDIRECT(\"'\"&F797&\"'!\"&H797),\"0\"),Notes!$B$5:$C$100,2,FALSE),\"\"))","v":""},"2d","$Q$19","$R$19"]
[7018,{"$f":"Menu!$F$29","v":"X"},{"$f":"Menu!$J$29","v":2020},{"$f":"IF(ISBLANK(INDIRECT(\"'\"&F798&\"'!\"&G798)),\"\",INDIRECT(\"'\"&F798&\"'!\"&G798))","v":""},{"$f":"IF(ISBLANK(INDIRECT(\"'\"&F798&\"'!\"&H798)),\"\",IFERROR(VLOOKUP(TEXT(INDIRECT(\"'\"&F798&\"'!\"&H798),\"0\"),Notes!$B$5:$C$100,2,FALSE),\"\"))","v":""},"2d","$S$19","$T$19"]
[7019,{"$f":"Menu!$F$29","v":"X"},{"$f":"Menu!$J$29","v":2020},{"$f":"IF(ISBLANK(INDIRECT(\"'\"&F799&\"'!\"&G799)),\"\",INDIRECT(\"'\"&F799&\"'!\"&G799))","v":""},{"$f":"IF(ISBLANK(INDIRECT(\"'\"&F799&\"'!\"&H799)),\"\",IFERROR(VLOOKUP(TEXT(INDIRECT(\"'\"&F799&\"'!\"&H799),\"0\"),Notes!$B$5:$C$100,2,FALSE),\"\"))","v":""},"2d","$U$19","$V$19"]
[7020,{"$f":"Menu!$F$29","v":"X"},{"$f":"Menu!$J$29","v":2020},{"$f":"IF(ISBLANK(INDIRECT(\"'\"&F800&\"'!\"&G800)),\"\",INDIRECT(\"'\"&F800&\"'!\"&G800))","v":""},{"$f":"IF(ISBLANK(INDIRECT(\"'\"&F800&\"'!\"&H800)),\"\",IFERROR(VLOOKUP(TEXT(INDIRECT(\"'\"&F800&\"'!\"&H800),\"0\"),Notes!$B$5:$C$100,2,FALSE),\"\"))","v":""},"2d","$W$19","$X$19"]
[7021,{"$f":"Menu!$F$29","v":"X"},{"$f":"Menu!$J$29","v":2020},{"$f":"IF(ISBLANK(INDIRECT(\"'\"&F801&\"'!\"&G801)),\"\",INDIRECT(\"'\"&F801&\"'!\"&G801))","v":""},{"$f":"IF(ISBLANK(INDIRECT(\"'\"&F801&\"'!\"&H801)),\"\",IFERROR(VLOOKUP(TEXT(INDIRECT(\"'\"&F801&\"'!\"&H801),\"0\"),Notes!$B$5:$C$100,2,FALSE),\"\"))","v":""},"2d","$Y$19","$Z$19"]
[7022,{"$f":"Menu!$F$29","v":"X"},{"$f":"Menu!$J$29","v":2020},{"$f":"IF(ISBLANK(INDIRECT(\"'\"&F802&\"'!\"&G802)),\"\",INDIRECT(\"'\"&F802&\"'!\"&G802))","v":""},{"$f":"IF(ISBLANK(INDIRECT(\"'\"&F802&\"'!\"&H802)),\"\",IFERROR(VLOOKUP(TEXT(INDIRECT(\"'\"&F802&\"'!\"&H802),\"0\"),Notes!$B$5:$C$100,2,FALSE),\"\"))","v":""},"2d","$AA$19","$AB$19"]
[7023,{"$f":"Menu!$F$29","v":"X"},{"$f":"Menu!$J$29","v":2020},{"$f":"IF(ISBLANK(INDIRECT(\"'\"&F803&\"'!\"&G803)),\"\",INDIRECT(\"'\"&F803&\"'!\"&G803))","v":""},{"$f":"IF(ISBLANK(INDIRECT(\"'\"&F803&\"'!\"&H803)),\"\",IFERROR(VLOOKUP(TEXT(INDIRECT(\"'\"&F803&\"'!\"&H803),\"0\"),Notes!$B$5:$C$100,2,FALSE),\"\"))","v":""},"2d","$AC$19","$AD$19"]
[7024,{"$f":"Menu!$F$29","v":"X"},{"$f":"Menu!$J$29","v":2020},{"$f":"IF(ISBLANK(INDIRECT(\"'\"&F804&\"'!\"&G804)),\"\",INDIRECT(\"'\"&F804&\"'!\"&G804))","v":""},{"$f":"IF(ISBLANK(INDIRECT(\"'\"&F804&\"'!\"&H804)),\"\",IFERROR(VLOOKUP(TEXT(INDIRECT(\"'\"&F804&\"'!\"&H804),\"0\"),Notes!$B$5:$C$100,2,FALSE),\"\"))","v":""},"2d","$AE$19","$AF$19"]
[7025,{"$f":"Menu!$F$29","v":"X"},{"$f":"Menu!$J$29","v":2020},{"$f":"IF(ISBLANK(INDIRECT(\"'\"&F805&\"'!\"&G805)),\"\",INDIRECT(\"'\"&F805&\"'!\"&G805))","v":""},{"$f":"IF(ISBLANK(INDIRECT(\"'\"&F805&\"'!\"&H805)),\"\",IFERROR(VLOOKUP(TEXT(INDIRECT(\"'\"&F805&\"'!\"&H805),\"0\"),Notes!$B$5:$C$100,2,FALSE),\"\"))","v":""},"2d","$AG$19","$AH$19"]
[7041,{"$f":"Menu!$F$29","v":"X"},{"$f":"Menu!$J$29","v":2020},{"$f":"IF(ISBLANK(INDIRECT(\"'\"&F806&\"'!\"&G806)),\"\",INDIRECT(\"'\"&F806&\"'!\"&G806))","v":""},{"$f":"IF(ISBLANK(INDIRECT(\"'\"&F806&\"'!\"&H806)),\"\",IFERROR(VLOOKUP(TEXT(INDIRECT(\"'\"&F806&\"'!\"&H806),\"0\"),Notes!$B$5:$C$100,2,FALSE),\"\"))","v":""},"2d","$E$64","$F$64"]
[7042,{"$f":"Menu!$F$29","v":"X"},{"$f":"Menu!$J$29","v":2020},{"$f":"IF(ISBLANK(INDIRECT(\"'\"&F807&\"'!\"&G807)),\"\",INDIRECT(\"'\"&F807&\"'!\"&G807))","v":""},{"$f":"IF(ISBLANK(INDIRECT(\"'\"&F807&\"'!\"&H807)),\"\",IFERROR(VLOOKUP(TEXT(INDIRECT(\"'\"&F807&\"'!\"&H807),\"0\"),Notes!$B$5:$C$100,2,FALSE),\"\"))","v":""},"2d","$G$64","$H$64"]
[7043,{"$f":"Menu!$F$29","v":"X"},{"$f":"Menu!$J$29","v":2020},{"$f":"IF(ISBLANK(INDIRECT(\"'\"&F808&\"'!\"&G808)),\"\",INDIRECT(\"'\"&F808&\"'!\"&G808))","v":""},{"$f":"IF(ISBLANK(INDIRECT(\"'\"&F808&\"'!\"&H808)),\"\",IFERROR(VLOOKUP(TEXT(INDIRECT(\"'\"&F808&\"'!\"&H808),\"0\"),Notes!$B$5:$C$100,2,FALSE),\"\"))","v":""},"2d","$I$64","$J$64"]
[7044,{"$f":"Menu!$F$29","v":"X"},{"$f":"Menu!$J$29","v":2020},{"$f":"IF(ISBLANK(INDIRECT(\"'\"&F809&\"'!\"&G809)),\"\",INDIRECT(\"'\"&F809&\"'!\"&G809))","v":""},{"$f":"IF(ISBLANK(INDIRECT(\"'\"&F809&\"'!\"&H809)),\"\",IFERROR(VLOOKUP(TEXT(INDIRECT(\"'\"&F809&\"'!\"&H809),\"0\"),Notes!$B$5:$C$100,2,FALSE),\"\"))","v":""},"2d","$K$64","$L$64"]
[7045,{"$f":"Menu!$F$29","v":"X"},{"$f":"Menu!$J$29","v":2020},{"$f":"IF(ISBLANK(INDIRECT(\"'\"&F810&\"'!\"&G810)),\"\",INDIRECT(\"'\"&F810&\"'!\"&G810))","v":""},{"$f":"IF(ISBLANK(INDIRECT(\"'\"&F810&\"'!\"&H810)),\"\",IFERROR(VLOOKUP(TEXT(INDIRECT(\"'\"&F810&\"'!\"&H810),\"0\"),Notes!$B$5:$C$100,2,FALSE),\"\"))","v":""},"2d","$M$64","$N$64"]
[7046,{"$f":"Menu!$F$29","v":"X"},{"$f":"Menu!$J$29","v":2020},{"$f":"IF(ISBLANK(INDIRECT(\"'\"&F811&\"'!\"&G811)),\"\",INDIRECT(\"'\"&F811&\"'!\"&G811))","v":""},{"$f":"IF(ISBLANK(INDIRECT(\"'\"&F811&\"'!\"&H811)),\"\",IFERROR(VLOOKUP(TEXT(INDIRECT(\"'\"&F811&\"'!\"&H811),\"0\"),Notes!$B$5:$C$100,2,FALSE),\"\"))","v":""},"2d","$O$64","$P$64"]
[7047,{"$f":"Menu!$F$29","v":"X"},{"$f":"Menu!$J$29","v":2020},{"$f":"IF(ISBLANK(INDIRECT(\"'\"&F812&\"'!\"&G812)),\"\",INDIRECT(\"'\"&F812&\"'!\"&G812))","v":""},{"$f":"IF(ISBLANK(INDIRECT(\"'\"&F812&\"'!\"&H812)),\"\",IFERROR(VLOOKUP(TEXT(INDIRECT(\"'\"&F812&\"'!\"&H812),\"0\"),Notes!$B$5:$C$100,2,FALSE),\"\"))","v":""},"2d","$Q$64","$R$64"]
[7048,{"$f":"Menu!$F$29","v":"X"},{"$f":"Menu!$J$29","v":2020},{"$f":"IF(ISBLANK(INDIRECT(\"'\"&F813&\"'!\"&G813)),\"\",INDIRECT(\"'\"&F813&\"'!\"&G813))","v":""},{"$f":"IF(ISBLANK(INDIRECT(\"'\"&F813&\"'!\"&H813)),\"\",IFERROR(VLOOKUP(TEXT(INDIRECT(\"'\"&F813&\"'!\"&H813),\"0\"),Notes!$B$5:$C$100,2,FALSE),\"\"))","v":""},"2d","$S$64","$T$64"]
[7049,{"$f":"Menu!$F$29","v":"X"},{"$f":"Menu!$J$29","v":2020},{"$f":"IF(ISBLANK(INDIRECT(\"'\"&F814&\"'!\"&G814)),\"\",INDIRECT(\"'\"&F814&\"'!\"&G814))","v":""},{"$f":"IF(ISBLANK(INDIRECT(\"'\"&F814&\"'!\"&H814)),\"\",IFERROR(VLOOKUP(TEXT(INDIRECT(\"'\"&F814&\"'!\"&H814),\"0\"),Notes!$B$5:$C$100,2,FALSE),\"\"))","v":""},"2d","$U$64","$V$64"]
[7050,{"$f":"Menu!$F$29","v":"X"},{"$f":"Menu!$J$29","v":2020},{"$f":"IF(ISBLANK(INDIRECT(\"'\"&F815&\"'!\"&G815)),\"\",INDIRECT(\"'\"&F815&\"'!\"&G815))","v":""},{"$f":"IF(ISBLANK(INDIRECT(\"'\"&F815&\"'!\"&H815)),\"\",IFERROR(VLOOKUP(TEXT(INDIRECT(\"'\"&F815&\"'!\"&H815),\"0\"),Notes!$B$5:$C$100,2,FALSE),\"\"))","v":""},"2d","$W$64","$X$64"]
[7051,{"$f":"Menu!$F$29","v":"X"},{"$f":"Menu!$J$29","v":2020},{"$f":"IF(ISBLANK(INDIRECT(\"'\"&F816&\"'!\"&G816)),\"\",INDIRECT(\"'\"&F816&\"'!\"&G816))","v":""},{"$f":"IF(ISBLANK(INDIRECT(\"'\"&F816&\"'!\"&H816)),\"\",IFERROR(VLOOKUP(TEXT(INDIRECT(\"'\"&F816&\"'!\"&H816),\"0\"),Notes!$B$5:$C$100,2,FALSE),\"\"))","v":""},"2d","$Y$64","$Z$64"]
[7052,{"$f":"Menu!$F$29","v":"X"},{"$f":"Menu!$J$29","v":2020},{"$f":"IF(ISBLANK(INDIRECT(\"'\"&F817&\"'!\"&G817)),\"\",INDIRECT(\"'\"&F817&\"'!\"&G817))","v":""},{"$f":"IF(ISBLANK(INDIRECT(\"'\"&F817&\"'!\"&H817)),\"\",IFERROR(VLOOKUP(TEXT(INDIRECT(\"'\"&F817&\"'!\"&H817),\"0\"),Notes!$B$5:$C$100,2,FALSE),\"\"))","v":""},"2d","$AA$64","$AB$64"]
[7053,{"$f":"Menu!$F$29","v":"X"},{"$f":"Menu!$J$29","v":2020},{"$f":"IF(ISBLANK(INDIRECT(\"'\"&F818&\"'!\"&G818)),\"\",INDIRECT(\"'\"&F818&\"'!\"&G818))","v":""},{"$f":"IF(ISBLANK(INDIRECT(\"'\"&F818&\"'!\"&H818)),\"\",IFERROR(VLOOKUP(TEXT(INDIRECT(\"'\"&F818&\"'!\"&H818),\"0\"),Notes!$B$5:$C$100,2,FALSE),\"\"))","v":""},"2d","$AC$64","$AD$64"]
[7054,{"$f":"Menu!$F$29","v":"X"},{"$f":"Menu!$J$29","v":2020},{"$f":"IF(ISBLANK(INDIRECT(\"'\"&F819&\"'!\"&G819)),\"\",INDIRECT(\"'\"&F819&\"'!\"&G819))","v":""},{"$f":"IF(ISBLANK(INDIRECT(\"'\"&F819&\"'!\"&H819)),\"\",IFERROR(VLOOKUP(TEXT(INDIRECT(\"'\"&F819&\"'!\"&H819),\"0\"),Notes!$B$5:$C$100,2,FALSE),\"\"))","v":""},"2d","$AE$64","$AF$64"]
[7055,{"$f":"Menu!$F$29","v":"X"},{"$f":"Menu!$J$29","v":2020},{"$f":"IF(ISBLANK(INDIRECT(\"'\"&F820&\"'!\"&G820)),\"\",INDIRECT(\"'\"&F820&\"'!\"&G820))","v":""},{"$f":"IF(ISBLANK(INDIRECT(\"'\"&F820&\"'!\"&H820)),\"\",IFERROR(VLOOKUP(TEXT(INDIRECT(\"'\"&F820&\"'!\"&H820),\"0\"),Notes!$B$5:$C$100,2,FALSE),\"\"))","v":""},"2d","$AG$64","$AH$64"]
[7056,{"$f":"Menu!$F$29","v":"X"},{"$f":"Menu!$J$29","v":2020},{"$f":"IF(ISBLANK(INDIRECT(\"'\"&F821&\"'!\"&G821)),\"\",INDIRECT(\"'\"&F821&\"'!\"&G821))","v":""},{"$f":"IF(ISBLANK(INDIRECT(\"'\"&F821&\"'!\"&H821)),\"\",IFERROR(VLOOKUP(TEXT(INDIRECT(\"'\"&F821&\"'!\"&H821),\"0\"),Notes!$B$5:$C$100,2,FALSE),\"\"))","v":""},"2d","$E$65","$F$65"]
[7057,{"$f":"Menu!$F$29","v":"X"},{"$f":"Menu!$J$29","v":2020},{"$f":"IF(ISBLANK(INDIRECT(\"'\"&F822&\"'!\"&G822)),\"\",INDIRECT(\"'\"&F822&\"'!\"&G822))","v":""},{"$f":"IF(ISBLANK(INDIRECT(\"'\"&F822&\"'!\"&H822)),\"\",IFERROR(VLOOKUP(TEXT(INDIRECT(\"'\"&F822&\"'!\"&H822),\"0\"),Notes!$B$5:$C$100,2,FALSE),\"\"))","v":""},"2d","$G$65","$H$65"]
[7058,{"$f":"Menu!$F$29","v":"X"},{"$f":"Menu!$J$29","v":2020},{"$f":"IF(ISBLANK(INDIRECT(\"'\"&F823&\"'!\"&G823)),\"\",INDIRECT(\"'\"&F823&\"'!\"&G823))","v":""},{"$f":"IF(ISBLANK(INDIRECT(\"'\"&F823&\"'!\"&H823)),\"\",IFERROR(VLOOKUP(TEXT(INDIRECT(\"'\"&F823&\"'!\"&H823),\"0\"),Notes!$B$5:$C$100,2,FALSE),\"\"))","v":""},"2d","$I$65","$J$65"]
[7059,{"$f":"Menu!$F$29","v":"X"},{"$f":"Menu!$J$29","v":2020},{"$f":"IF(ISBLANK(INDIRECT(\"'\"&F824&\"'!\"&G824)),\"\",INDIRECT(\"'\"&F824&\"'!\"&G824))","v":""},{"$f":"IF(ISBLANK(INDIRECT(\"'\"&F824&\"'!\"&H824)),\"\",IFERROR(VLOOKUP(TEXT(INDIRECT(\"'\"&F824&\"'!\"&H824),\"0\"),Notes!$B$5:$C$100,2,FALSE),\"\"))","v":""},"2d","$K$65","$L$65"]
[7060,{"$f":"Menu!$F$29","v":"X"},{"$f":"Menu!$J$29","v":2020},{"$f":"IF(ISBLANK(INDIRECT(\"'\"&F825&\"'!\"&G825)),\"\",INDIRECT(\"'\"&F825&\"'!\"&G825))","v":""},{"$f":"IF(ISBLANK(INDIRECT(\"'\"&F825&\"'!\"&H825)),\"\",IFERROR(VLOOKUP(TEXT(INDIRECT(\"'\"&F825&\"'!\"&H825),\"0\"),Notes!$B$5:$C$100,2,FALSE),\"\"))","v":""},"2d","$M$65","$N$65"]
[7061,{"$f":"Menu!$F$29","v":"X"},{"$f":"Menu!$J$29","v":2020},{"$f":"IF(ISBLANK(INDIRECT(\"'\"&F826&\"'!\"&G826)),\"\",INDIRECT(\"'\"&F826&\"'!\"&G826))","v":""},{"$f":"IF(ISBLANK(INDIRECT(\"'\"&F826&\"'!\"&H826)),\"\",IFERROR(VLOOKUP(TEXT(INDIRECT(\"'\"&F826&\"'!\"&H826),\"0\"),Notes!$B$5:$C$100,2,FALSE),\"\"))","v":""},"2d","$O$65","$P$65"]
[7062,{"$f":"Menu!$F$29","v":"X"},{"$f":"Menu!$J$29","v":2020},{"$f":"IF(ISBLANK(INDIRECT(\"'\"&F827&\"'!\"&G827)),\"\",INDIRECT(\"'\"&F827&\"'!\"&G827))","v":""},{"$f":"IF(ISBLANK(INDIRECT(\"'\"&F827&\"'!\"&H827)),\"\",IFERROR(VLOOKUP(TEXT(INDIRECT(\"'\"&F827&\"'!\"&H827),\"0\"),Notes!$B$5:$C$100,2,FALSE),\"\"))","v":""},"2d","$Q$65","$R$65"]
[7063,{"$f":"Menu!$F$29","v":"X"},{"$f":"Menu!$J$29","v":2020},{"$f":"IF(ISBLANK(INDIRECT(\"'\"&F828&\"'!\"&G828)),\"\",INDIRECT(\"'\"&F828&\"'!\"&G828))","v":""},{"$f":"IF(ISBLANK(INDIRECT(\"'\"&F828&\"'!\"&H828)),\"\",IFERROR(VLOOKUP(TEXT(INDIRECT(\"'\"&F828&\"'!\"&H828),\"0\"),Notes!$B$5:$C$100,2,FALSE),\"\"))","v":""},"2d","$S$65","$T$65"]
[7064,{"$f":"Menu!$F$29","v":"X"},{"$f":"Menu!$J$29","v":2020},{"$f":"IF(ISBLANK(INDIRECT(\"'\"&F829&\"'!\"&G829)),\"\",INDIRECT(\"'\"&F829&\"'!\"&G829))","v":""},{"$f":"IF(ISBLANK(INDIRECT(\"'\"&F829&\"'!\"&H829)),\"\",IFERROR(VLOOKUP(TEXT(INDIRECT(\"'\"&F829&\"'!\"&H829),\"0\"),Notes!$B$5:$C$100,2,FALSE),\"\"))","v":""},"2d","$U$65","$V$65"]
[7065,{"$f":"Menu!$F$29","v":"X"},{"$f":"Menu!$J$29","v":2020},{"$f":"IF(ISBLANK(INDIRECT(\"'\"&F830&\"'!\"&G830)),\"\",INDIRECT(\"'\"&F830&\"'!\"&G830))","v":""},{"$f":"IF(ISBLANK(INDIRECT(\"'\"&F830&\"'!\"&H830)),\"\",IFERROR(VLOOKUP(TEXT(INDIRECT(\"'\"&F830&\"'!\"&H830),\"0\"),Notes!$B$5:$C$100,2,FALSE),\"\"))","v":""},"2d","$W$65","$X$65"]
[7066,{"$f":"Menu!$F$29","v":"X"},{"$f":"Menu!$J$29","v":2020},{"$f":"IF(ISBLANK(INDIRECT(\"'\"&F831&\"'!\"&G831)),\"\",INDIRECT(\"'\"&F831&\"'!\"&G831))","v":""},{"$f":"IF(ISBLANK(INDIRECT(\"'\"&F831&\"'!\"&H831)),\"\",IFERROR(VLOOKUP(TEXT(INDIRECT(\"'\"&F831&\"'!\"&H831),\"0\"),Notes!$B$5:$C$100,2,FALSE),\"\"))","v":""},"2d","$Y$65","$Z$65"]
[7067,{"$f":"Menu!$F$29","v":"X"},{"$f":"Menu!$J$29","v":2020},{"$f":"IF(ISBLANK(INDIRECT(\"'\"&F832&\"'!\"&G832)),\"\",INDIRECT(\"'\"&F832&\"'!\"&G832))","v":""},{"$f":"IF(ISBLANK(INDIRECT(\"'\"&F832&\"'!\"&H832)),\"\",IFERROR(VLOOKUP(TEXT(INDIRECT(\"'\"&F832&\"'!\"&H832),\"0\"),Notes!$B$5:$C$100,2,FALSE),\"\"))","v":""},"2d","$AA$65","$AB$65"]
[7068,{"$f":"Menu!$F$29","v":"X"},{"$f":"Menu!$J$29","v":2020},{"$f":"IF(ISBLANK(INDIRECT(\"'\"&F833&\"'!\"&G833)),\"\",INDIRECT(\"'\"&F833&\"'!\"&G833))","v":""},{"$f":"IF(ISBLANK(INDIRECT(\"'\"&F833&\"'!\"&H833)),\"\",IFERROR(VLOOKUP(TEXT(INDIRECT(\"'\"&F833&\"'!\"&H833),\"0\"),Notes!$B$5:$C$100,2,FALSE),\"\"))","v":""},"2d","$AC$65","$AD$65"]
[7069,{"$f":"Menu!$F$29","v":"X"},{"$f":"Menu!$J$29","v":2020},{"$f":"IF(ISBLANK(INDIRECT(\"'\"&F834&\"'!\"&G834)),\"\",INDIRECT(\"'\"&F834&\"'!\"&G834))","v":""},{"$f":"IF(ISBLANK(INDIRECT(\"'\"&F834&\"'!\"&H834)),\"\",IFERROR(VLOOKUP(TEXT(INDIRECT(\"'\"&F834&\"'!\"&H834),\"0\"),Notes!$B$5:$C$100,2,FALSE),\"\"))","v":""},"2d","$AE$65",{"$f":"IF(LEN(TRIM(MID(G834,4,10)))-LEN(SUBSTITUTE(TRIM(MID(G834,4,10)),\"$\",\"\"))=0,\"$\"&CHAR(CODE(MID(G834,2,1))+1)&\"$\"&TRIM(MID(G834,4,10)),\"$\"&MID(G834,2,1)&CHAR(CODE(MID(G834,3,1))+1)&\"$\"&TRIM(MID(G834,5,11)))","v":"$AF$65"}]
[7070,{"$f":"Menu!$F$29","v":"X"},{"$f":"Menu!$J$29","v":2020},{"$f":"IF(ISBLANK(INDIRECT(\"'\"&F835&\"'!\"&G835)),\"\",INDIRECT(\"'\"&F835&\"'!\"&G835))","v":""},{"$f":"IF(ISBLANK(INDIRECT(\"'\"&F835&\"'!\"&H835)),\"\",IFERROR(VLOOKUP(TEXT(INDIRECT(\"'\"&F835&\"'!\"&H835),\"0\"),Notes!$B$5:$C$100,2,FALSE),\"\"))","v":""},"2d","$AG$65","$AH$65"]
[7071,{"$f":"Menu!$F$29","v":"X"},{"$f":"Menu!$J$29","v":2020},{"$f":"IF(ISBLANK(INDIRECT(\"'\"&F836&\"'!\"&G836)),\"\",INDIRECT(\"'\"&F836&\"'!\"&G836))","v":""},{"$f":"IF(ISBLANK(INDIRECT(\"'\"&F836&\"'!\"&H836)),\"\",IFERROR(VLOOKUP(TEXT(INDIRECT(\"'\"&F836&\"'!\"&H836),\"0\"),Notes!$B$5:$C$100,2,FALSE),\"\"))","v":""},"2d","$E$66","$F$66"]
[7072,{"$f":"Menu!$F$29","v":"X"},{"$f":"Menu!$J$29","v":2020},{"$f":"IF(ISBLANK(INDIRECT(\"'\"&F837&\"'!\"&G837)),\"\",INDIRECT(\"'\"&F837&\"'!\"&G837))","v":""},{"$f":"IF(ISBLANK(INDIRECT(\"'\"&F837&\"'!\"&H837)),\"\",IFERROR(VLOOKUP(TEXT(INDIRECT(\"'\"&F837&\"'!\"&H837),\"0\"),Notes!$B$5:$C$100,2,FALSE),\"\"))","v":""},"2d","$G$66","$H$66"]
[7073,{"$f":"Menu!$F$29","v":"X"},{"$f":"Menu!$J$29","v":2020},{"$f":"IF(ISBLANK(INDIRECT(\"'\"&F838&\"'!\"&G838)),\"\",INDIRECT(\"'\"&F838&\"'!\"&G838))","v":""},{"$f":"IF(ISBLANK(INDIRECT(\"'\"&F838&\"'!\"&H838)),\"\",IFERROR(VLOOKUP(TEXT(INDIRECT(\"'\"&F838&\"'!\"&H838),\"0\"),Notes!$B$5:$C$100,2,FALSE),\"\"))","v":""},"2d","$I$66","$J$66"]
[7074,{"$f":"Menu!$F$29","v":"X"},{"$f":"Menu!$J$29","v":2020},{"$f":"IF(ISBLANK(INDIRECT(\"'\"&F839&\"'!\"&G839)),\"\",INDIRECT(\"'\"&F839&\"'!\"&G839))","v":""},{"$f":"IF(ISBLANK(INDIRECT(\"'\"&F839&\"'!\"&H839)),\"\",IFERROR(VLOOKUP(TEXT(INDIRECT(\"'\"&F839&\"'!\"&H839),\"0\"),Notes!$B$5:$C$100,2,FALSE),\"\"))","v":""},"2d","$K$66","$L$66"]
[7075,{"$f":"Menu!$F$29","v":"X"},{"$f":"Menu!$J$29","v":2020},{"$f":"IF(ISBLANK(INDIRECT(\"'\"&F840&\"'!\"&G840)),\"\",INDIRECT(\"'\"&F840&\"'!\"&G840))","v":""},{"$f":"IF(ISBLANK(INDIRECT(\"'\"&F840&\"'!\"&H840)),\"\",IFERROR(VLOOKUP(TEXT(INDIRECT(\"'\"&F840&\"'!\"&H840),\"0\"),Notes!$B$5:$C$100,2,FALSE),\"\"))","v":""},"2d","$M$66","$N$66"]
[7076,{"$f":"Menu!$F$29","v":"X"},{"$f":"Menu!$J$29","v":2020},{"$f":"IF(ISBLANK(INDIRECT(\"'\"&F841&\"'!\"&G841)),\"\",INDIRECT(\"'\"&F841&\"'!\"&G841))","v":""},{"$f":"IF(ISBLANK(INDIRECT(\"'\"&F841&\"'!\"&H841)),\"\",IFERROR(VLOOKUP(TEXT(INDIRECT(\"'\"&F841&\"'!\"&H841),\"0\"),Notes!$B$5:$C$100,2,FALSE),\"\"))","v":""},"2d","$O$66","$P$66"]
[7077,{"$f":"Menu!$F$29","v":"X"},{"$f":"Menu!$J$29","v":2020},{"$f":"IF(ISBLANK(INDIRECT(\"'\"&F842&\"'!\"&G842)),\"\",INDIRECT(\"'\"&F842&\"'!\"&G842))","v":""},{"$f":"IF(ISBLANK(INDIRECT(\"'\"&F842&\"'!\"&H842)),\"\",IFERROR(VLOOKUP(TEXT(INDIRECT(\"'\"&F842&\"'!\"&H842),\"0\"),Notes!$B$5:$C$100,2,FALSE),\"\"))","v":""},"2d","$Q$66","$R$66"]
[7078,{"$f":"Menu!$F$29","v":"X"},{"$f":"Menu!$J$29","v":2020},{"$f":"IF(ISBLANK(INDIRECT(\"'\"&F843&\"'!\"&G843)),\"\",INDIRECT(\"'\"&F843&\"'!\"&G843))","v":""},{"$f":"IF(ISBLANK(INDIRECT(\"'\"&F843&\"'!\"&H843)),\"\",IFERROR(VLOOKUP(TEXT(INDIRECT(\"'\"&F843&\"'!\"&H843),\"0\"),Notes!$B$5:$C$100,2,FALSE),\"\"))","v":""},"2d","$S$66","$T$66"]
[7079,{"$f":"Menu!$F$29","v":"X"},{"$f":"Menu!$J$29","v":2020},{"$f":"IF(ISBLANK(INDIRECT(\"'\"&F844&\"'!\"&G844)),\"\",INDIRECT(\"'\"&F844&\"'!\"&G844))","v":""},{"$f":"IF(ISBLANK(INDIRECT(\"'\"&F844&\"'!\"&H844)),\"\",IFERROR(VLOOKUP(TEXT(INDIRECT(\"'\"&F844&\"'!\"&H844),\"0\"),Notes!$B$5:$C$100,2,FALSE),\"\"))","v":""},"2d","$U$66","$V$66"]
[7080,{"$f":"Menu!$F$29","v":"X"},{"$f":"Menu!$J$29","v":2020},{"$f":"IF(ISBLANK(INDIRECT(\"'\"&F845&\"'!\"&G845)),\"\",INDIRECT(\"'\"&F845&\"'!\"&G845))","v":""},{"$f":"IF(ISBLANK(INDIRECT(\"'\"&F845&\"'!\"&H845)),\"\",IFERROR(VLOOKUP(TEXT(INDIRECT(\"'\"&F845&\"'!\"&H845),\"0\"),Notes!$B$5:$C$100,2,FALSE),\"\"))","v":""},"2d","$W$66","$X$66"]
[7081,{"$f":"Menu!$F$29","v":"X"},{"$f":"Menu!$J$29","v":2020},{"$f":"IF(ISBLANK(INDIRECT(\"'\"&F846&\"'!\"&G846)),\"\",INDIRECT(\"'\"&F846&\"'!\"&G846))","v":""},{"$f":"IF(ISBLANK(INDIRECT(\"'\"&F846&\"'!\"&H846)),\"\",IFERROR(VLOOKUP(TEXT(INDIRECT(\"'\"&F846&\"'!\"&H846),\"0\"),Notes!$B$5:$C$100,2,FALSE),\"\"))","v":""},"2d","$Y$66","$Z$66"]
[7082,{"$f":"Menu!$F$29","v":"X"},{"$f":"Menu!$J$29","v":2020},{"$f":"IF(ISBLANK(INDIRECT(\"'\"&F847&\"'!\"&G847)),\"\",INDIRECT(\"'\"&F847&\"'!\"&G847))","v":""},{"$f":"IF(ISBLANK(INDIRECT(\"'\"&F847&\"'!\"&H847)),\"\",IFERROR(VLOOKUP(TEXT(INDIRECT(\"'\"&F847&\"'!\"&H847),\"0\"),Notes!$B$5:$C$100,2,FALSE),\"\"))","v":""},"2d","$AA$66","$AB$66"]
[7083,{"$f":"Menu!$F$29","v":"X"},{"$f":"Menu!$J$29","v":2020},{"$f":"IF(ISBLANK(INDIRECT(\"'\"&F848&\"'!\"&G848)),\"\",INDIRECT(\"'\"&F848&\"'!\"&G848))","v":""},{"$f":"IF(ISBLANK(INDIRECT(\"'\"&F848&\"'!\"&H848)),\"\",IFERROR(VLOOKUP(TEXT(INDIRECT(\"'\"&F848&\"'!\"&H848),\"0\"),Notes!$B$5:$C$100,2,FALSE),\"\"))","v":""},"2d","$AC$66","$AD$66"]
[7084,{"$f":"Menu!$F$29","v":"X"},{"$f":"Menu!$J$29","v":2020},{"$f":"IF(ISBLANK(INDIRECT(\"'\"&F849&\"'!\"&G849)),\"\",INDIRECT(\"'\"&F849&\"'!\"&G849))","v":""},{"$f":"IF(ISBLANK(INDIRECT(\"'\"&F849&\"'!\"&H849)),\"\",IFERROR(VLOOKUP(TEXT(INDIRECT(\"'\"&F849&\"'!\"&H849),\"0\"),Notes!$B$5:$C$100,2,FALSE),\"\"))","v":""},"2d","$AE$66","$AF$66"]
[7085,{"$f":"Menu!$F$29","v":"X"},{"$f":"Menu!$J$29","v":2020},{"$f":"IF(ISBLANK(INDIRECT(\"'\"&F850&\"'!\"&G850)),\"\",INDIRECT(\"'\"&F850&\"'!\"&G850))","v":""},{"$f":"IF(ISBLANK(INDIRECT(\"'\"&F850&\"'!\"&H850)),\"\",IFERROR(VLOOKUP(TEXT(INDIRECT(\"'\"&F850&\"'!\"&H850),\"0\"),Notes!$B$5:$C$100,2,FALSE),\"\"))","v":""},"2d","$AG$66","$AH$66"]
[7086,{"$f":"Menu!$F$29","v":"X"},{"$f":"Menu!$J$29","v":2020},{"$f":"IF(ISBLANK(INDIRECT(\"'\"&F851&\"'!\"&G851)),\"\",INDIRECT(\"'\"&F851&\"'!\"&G851))","v":""},{"$f":"IF(ISBLANK(INDIRECT(\"'\"&F851&\"'!\"&H851)),\"\",IFERROR(VLOOKUP(TEXT(INDIRECT(\"'\"&F851&\"'!\"&H851),\"0\"),Notes!$B$5:$C$100,2,FALSE),\"\"))","v":""},"2d","$E$67","$F$67"]
[7087,{"$f":"Menu!$F$29","v":"X"},{"$f":"Menu!$J$29","v":2020},{"$f":"IF(ISBLANK(INDIRECT(\"'\"&F852&\"'!\"&G852)),\"\",INDIRECT(\"'\"&F852&\"'!\"&G852))","v":""},{"$f":"IF(ISBLANK(INDIRECT(\"'\"&F852&\"'!\"&H852)),\"\",IFERROR(VLOOKUP(TEXT(INDIRECT(\"'\"&F852&\"'!\"&H852),\"0\"),Notes!$B$5:$C$100,2,FALSE),\"\"))","v":""},"2d","$G$67","$H$67"]
[7088,{"$f":"Menu!$F$29","v":"X"},{"$f":"Menu!$J$29","v":2020},{"$f":"IF(ISBLANK(INDIRECT(\"'\"&F853&\"'!\"&G853)),\"\",INDIRECT(\"'\"&F853&\"'!\"&G853))","v":""},{"$f":"IF(ISBLANK(INDIRECT(\"'\"&F853&\"'!\"&H853)),\"\",IFERROR(VLOOKUP(TEXT(INDIRECT(\"'\"&F853&\"'!\"&H853),\"0\"),Notes!$B$5:$C$100,2,FALSE),\"\"))","v":""},"2d","$I$67","$J$67"]
[7089,{"$f":"Menu!$F$29","v":"X"},{"$f":"Menu!$J$29","v":2020},{"$f":"IF(ISBLANK(INDIRECT(\"'\"&F854&\"'!\"&G854)),\"\",INDIRECT(\"'\"&F854&\"'!\"&G854))","v":""},{"$f":"IF(ISBLANK(INDIRECT(\"'\"&F854&\"'!\"&H854)),\"\",IFERROR(VLOOKUP(TEXT(INDIRECT(\"'\"&F854&\"'!\"&H854),\"0\"),Notes!$B$5:$C$100,2,FALSE),\"\"))","v":""},"2d","$K$67","$L$67"]
[7090,{"$f":"Menu!$F$29","v":"X"},{"$f":"Menu!$J$29","v":2020},{"$f":"IF(ISBLANK(INDIRECT(\"'\"&F855&\"'!\"&G855)),\"\",INDIRECT(\"'\"&F855&\"'!\"&G855))","v":""},{"$f":"IF(ISBLANK(INDIRECT(\"'\"&F855&\"'!\"&H855)),\"\",IFERROR(VLOOKUP(TEXT(INDIRECT(\"'\"&F855&\"'!\"&H855),\"0\"),Notes!$B$5:$C$100,2,FALSE),\"\"))","v":""},"2d","$M$67","$N$67"]
[7091,{"$f":"Menu!$F$29","v":"X"},{"$f":"Menu!$J$29","v":2020},{"$f":"IF(ISBLANK(INDIRECT(\"'\"&F856&\"'!\"&G856)),\"\",INDIRECT(\"'\"&F856&\"'!\"&G856))","v":""},{"$f":"IF(ISBLANK(INDIRECT(\"'\"&F856&\"'!\"&H856)),\"\",IFERROR(VLOOKUP(TEXT(INDIRECT(\"'\"&F856&\"'!\"&H856),\"0\"),Notes!$B$5:$C$100,2,FALSE),\"\"))","v":""},"2d","$O$67","$P$67"]
[7092,{"$f":"Menu!$F$29","v":"X"},{"$f":"Menu!$J$29","v":2020},{"$f":"IF(ISBLANK(INDIRECT(\"'\"&F857&\"'!\"&G857)),\"\",INDIRECT(\"'\"&F857&\"'!\"&G857))","v":""},{"$f":"IF(ISBLANK(INDIRECT(\"'\"&F857&\"'!\"&H857)),\"\",IFERROR(VLOOKUP(TEXT(INDIRECT(\"'\"&F857&\"'!\"&H857),\"0\"),Notes!$B$5:$C$100,2,FALSE),\"\"))","v":""},"2d","$Q$67","$R$67"]
[7093,{"$f":"Menu!$F$29","v":"X"},{"$f":"Menu!$J$29","v":2020},{"$f":"IF(ISBLANK(INDIRECT(\"'\"&F858&\"'!\"&G858)),\"\",INDIRECT(\"'\"&F858&\"'!\"&G858))","v":""},{"$f":"IF(ISBLANK(INDIRECT(\"'\"&F858&\"'!\"&H858)),\"\",IFERROR(VLOOKUP(TEXT(INDIRECT(\"'\"&F858&\"'!\"&H858),\"0\"),Notes!$B$5:$C$100,2,FALSE),\"\"))","v":""},"2d","$S$67","$T$67"]
[7094,{"$f":"Menu!$F$29","v":"X"},{"$f":"Menu!$J$29","v":2020},{"$f":"IF(ISBLANK(INDIRECT(\"'\"&F859&\"'!\"&G859)),\"\",INDIRECT(\"'\"&F859&\"'!\"&G859))","v":""},{"$f":"IF(ISBLANK(INDIRECT(\"'\"&F859&\"'!\"&H859)),\"\",IFERROR(VLOOKUP(TEXT(INDIRECT(\"'\"&F859&\"'!\"&H859),\"0\"),Notes!$B$5:$C$100,2,FALSE),\"\"))","v":""},"2d","$U$67","$V$67"]
[7095,{"$f":"Menu!$F$29","v":"X"},{"$f":"Menu!$J$29","v":2020},{"$f":"IF(ISBLANK(INDIRECT(\"'\"&F860&\"'!\"&G860)),\"\",INDIRECT(\"'\"&F860&\"'!\"&G860))","v":""},{"$f":"IF(ISBLANK(INDIRECT(\"'\"&F860&\"'!\"&H860)),\"\",IFERROR(VLOOKUP(TEXT(INDIRECT(\"'\"&F860&\"'!\"&H860),\"0\"),Notes!$B$5:$C$100,2,FALSE),\"\"))","v":""},"2d","$W$67","$X$67"]
[7096,{"$f":"Menu!$F$29","v":"X"},{"$f":"Menu!$J$29","v":2020},{"$f":"IF(ISBLANK(INDIRECT(\"'\"&F861&\"'!\"&G861)),\"\",INDIRECT(\"'\"&F861&\"'!\"&G861))","v":""},{"$f":"IF(ISBLANK(INDIRECT(\"'\"&F861&\"'!\"&H861)),\"\",IFERROR(VLOOKUP(TEXT(INDIRECT(\"'\"&F861&\"'!\"&H861),\"0\"),Notes!$B$5:$C$100,2,FALSE),\"\"))","v":""},"2d","$Y$67","$Z$67"]
[7097,{"$f":"Menu!$F$29","v":"X"},{"$f":"Menu!$J$29","v":2020},{"$f":"IF(ISBLANK(INDIRECT(\"'\"&F862&\"'!\"&G862)),\"\",INDIRECT(\"'\"&F862&\"'!\"&G862))","v":""},{"$f":"IF(ISBLANK(INDIRECT(\"'\"&F862&\"'!\"&H862)),\"\",IFERROR(VLOOKUP(TEXT(INDIRECT(\"'\"&F862&\"'!\"&H862),\"0\"),Notes!$B$5:$C$100,2,FALSE),\"\"))","v":""},"2d","$AA$67","$AB$67"]
[7098,{"$f":"Menu!$F$29","v":"X"},{"$f":"Menu!$J$29","v":2020},{"$f":"IF(ISBLANK(INDIRECT(\"'\"&F863&\"'!\"&G863)),\"\",INDIRECT(\"'\"&F863&\"'!\"&G863))","v":""},{"$f":"IF(ISBLANK(INDIRECT(\"'\"&F863&\"'!\"&H863)),\"\",IFERROR(VLOOKUP(TEXT(INDIRECT(\"'\"&F863&\"'!\"&H863),\"0\"),Notes!$B$5:$C$100,2,FALSE),\"\"))","v":""},"2d","$AC$67","$AD$67"]
[7099,{"$f":"Menu!$F$29","v":"X"},{"$f":"Menu!$J$29","v":2020},{"$f":"IF(ISBLANK(INDIRECT(\"'\"&F864&\"'!\"&G864)),\"\",INDIRECT(\"'\"&F864&\"'!\"&G864))","v":""},{"$f":"IF(ISBLANK(INDIRECT(\"'\"&F864&\"'!\"&H864)),\"\",IFERROR(VLOOKUP(TEXT(INDIRECT(\"'\"&F864&\"'!\"&H864),\"0\"),Notes!$B$5:$C$100,2,FALSE),\"\"))","v":""},"2d","$AE$67","$AF$67"]
[7100,{"$f":"Menu!$F$29","v":"X"},{"$f":"Menu!$J$29","v":2020},{"$f":"IF(ISBLANK(INDIRECT(\"'\"&F865&\"'!\"&G865)),\"\",INDIRECT(\"'\"&F865&\"'!\"&G865))","v":""},{"$f":"IF(ISBLANK(INDIRECT(\"'\"&F865&\"'!\"&H865)),\"\",IFERROR(VLOOKUP(TEXT(INDIRECT(\"'\"&F865&\"'!\"&H865),\"0\"),Notes!$B$5:$C$100,2,FALSE),\"\"))","v":""},"2d","$AG$67","$AH$67"]
[7101,{"$f":"Menu!$F$29","v":"X"},{"$f":"Menu!$J$29","v":2020},{"$f":"IF(ISBLANK(INDIRECT(\"'\"&F866&\"'!\"&G866)),\"\",INDIRECT(\"'\"&F866&\"'!\"&G866))","v":""},{"$f":"IF(ISBLANK(INDIRECT(\"'\"&F866&\"'!\"&H866)),\"\",IFERROR(VLOOKUP(TEXT(INDIRECT(\"'\"&F866&\"'!\"&H866),\"0\"),Notes!$B$5:$C$100,2,FALSE),\"\"))","v":""},"2d","$E$69","$F$69"]
[7102,{"$f":"Menu!$F$29","v":"X"},{"$f":"Menu!$J$29","v":2020},{"$f":"IF(ISBLANK(INDIRECT(\"'\"&F867&\"'!\"&G867)),\"\",INDIRECT(\"'\"&F867&\"'!\"&G867))","v":""},{"$f":"IF(ISBLANK(INDIRECT(\"'\"&F867&\"'!\"&H867)),\"\",IFERROR(VLOOKUP(TEXT(INDIRECT(\"'\"&F867&\"'!\"&H867),\"0\"),Notes!$B$5:$C$100,2,FALSE),\"\"))","v":""},"2d","$G$69","$H$69"]
[7103,{"$f":"Menu!$F$29","v":"X"},{"$f":"Menu!$J$29","v":2020},{"$f":"IF(ISBLANK(INDIRECT(\"'\"&F868&\"'!\"&G868)),\"\",INDIRECT(\"'\"&F868&\"'!\"&G868))","v":""},{"$f":"IF(ISBLANK(INDIRECT(\"'\"&F868&\"'!\"&H868)),\"\",IFERROR(VLOOKUP(TEXT(INDIRECT(\"'\"&F868&\"'!\"&H868),\"0\"),Notes!$B$5:$C$100,2,FALSE),\"\"))","v":""},"2d","$I$69","$J$69"]
[7104,{"$f":"Menu!$F$29","v":"X"},{"$f":"Menu!$J$29","v":2020},{"$f":"IF(ISBLANK(INDIRECT(\"'\"&F869&\"'!\"&G869)),\"\",INDIRECT(\"'\"&F869&\"'!\"&G869))","v":""},{"$f":"IF(ISBLANK(INDIRECT(\"'\"&F869&\"'!\"&H869)),\"\",IFERROR(VLOOKUP(TEXT(INDIRECT(\"'\"&F869&\"'!\"&H869),\"0\"),Notes!$B$5:$C$100,2,FALSE),\"\"))","v":""},"2d","$K$69","$L$69"]
[7105,{"$f":"Menu!$F$29","v":"X"},{"$f":"Menu!$J$29","v":2020},{"$f":"IF(ISBLANK(INDIRECT(\"'\"&F870&\"'!\"&G870)),\"\",INDIRECT(\"'\"&F870&\"'!\"&G870))","v":""},{"$f":"IF(ISBLANK(INDIRECT(\"'\"&F870&\"'!\"&H870)),\"\",IFERROR(VLOOKUP(TEXT(INDIRECT(\"'\"&F870&\"'!\"&H870),\"0\"),Notes!$B$5:$C$100,2,FALSE),\"\"))","v":""},"2d","$M$69","$N$69"]
[7106,{"$f":"Menu!$F$29","v":"X"},{"$f":"Menu!$J$29","v":2020},{"$f":"IF(ISBLANK(INDIRECT(\"'\"&F871&\"'!\"&G871)),\"\",INDIRECT(\"'\"&F871&\"'!\"&G871))","v":""},{"$f":"IF(ISBLANK(INDIRECT(\"'\"&F871&\"'!\"&H871)),\"\",IFERROR(VLOOKUP(TEXT(INDIRECT(\"'\"&F871&\"'!\"&H871),\"0\"),Notes!$B$5:$C$100,2,FALSE),\"\"))","v":""},"2d","$O$69","$P$69"]
[7107,{"$f":"Menu!$F$29","v":"X"},{"$f":"Menu!$J$29","v":2020},{"$f":"IF(ISBLANK(INDIRECT(\"'\"&F872&\"'!\"&G872)),\"\",INDIRECT(\"'\"&F872&\"'!\"&G872))","v":""},{"$f":"IF(ISBLANK(INDIRECT(\"'\"&F872&\"'!\"&H872)),\"\",IFERROR(VLOOKUP(TEXT(INDIRECT(\"'\"&F872&\"'!\"&H872),\"0\"),Notes!$B$5:$C$100,2,FALSE),\"\"))","v":""},"2d","$Q$69","$R$69"]
[7108,{"$f":"Menu!$F$29","v":"X"},{"$f":"Menu!$J$29","v":2020},{"$f":"IF(ISBLANK(INDIRECT(\"'\"&F873&\"'!\"&G873)),\"\",INDIRECT(\"'\"&F873&\"'!\"&G873))","v":""},{"$f":"IF(ISBLANK(INDIRECT(\"'\"&F873&\"'!\"&H873)),\"\",IFERROR(VLOOKUP(TEXT(INDIRECT(\"'\"&F873&\"'!\"&H873),\"0\"),Notes!$B$5:$C$100,2,FALSE),\"\"))","v":""},"2d","$S$69","$T$69"]
[7109,{"$f":"Menu!$F$29","v":"X"},{"$f":"Menu!$J$29","v":2020},{"$f":"IF(ISBLANK(INDIRECT(\"'\"&F874&\"'!\"&G874)),\"\",INDIRECT(\"'\"&F874&\"'!\"&G874))","v":""},{"$f":"IF(ISBLANK(INDIRECT(\"'\"&F874&\"'!\"&H874)),\"\",IFERROR(VLOOKUP(TEXT(INDIRECT(\"'\"&F874&\"'!\"&H874),\"0\"),Notes!$B$5:$C$100,2,FALSE),\"\"))","v":""},"2d","$U$69","$V$69"]
[7110,{"$f":"Menu!$F$29","v":"X"},{"$f":"Menu!$J$29","v":2020},{"$f":"IF(ISBLANK(INDIRECT(\"'\"&F875&\"'!\"&G875)),\"\",INDIRECT(\"'\"&F875&\"'!\"&G875))","v":""},{"$f":"IF(ISBLANK(INDIRECT(\"'\"&F875&\"'!\"&H875)),\"\",IFERROR(VLOOKUP(TEXT(INDIRECT(\"'\"&F875&\"'!\"&H875),\"0\"),Notes!$B$5:$C$100,2,FALSE),\"\"))","v":""},"2d","$W$69","$X$69"]
[7111,{"$f":"Menu!$F$29","v":"X"},{"$f":"Menu!$J$29","v":2020},{"$f":"IF(ISBLANK(INDIRECT(\"'\"&F876&\"'!\"&G876)),\"\",INDIRECT(\"'\"&F876&\"'!\"&G876))","v":""},{"$f":"IF(ISBLANK(INDIRECT(\"'\"&F876&\"'!\"&H876)),\"\",IFERROR(VLOOKUP(TEXT(INDIRECT(\"'\"&F876&\"'!\"&H876),\"0\"),Notes!$B$5:$C$100,2,FALSE),\"\"))","v":""},"2d","$Y$69","$Z$69"]
[7112,{"$f":"Menu!$F$29","v":"X"},{"$f":"Menu!$J$29","v":2020},{"$f":"IF(ISBLANK(INDIRECT(\"'\"&F877&\"'!\"&G877)),\"\",INDIRECT(\"'\"&F877&\"'!\"&G877))","v":""},{"$f":"IF(ISBLANK(INDIRECT(\"'\"&F877&\"'!\"&H877)),\"\",IFERROR(VLOOKUP(TEXT(INDIRECT(\"'\"&F877&\"'!\"&H877),\"0\"),Notes!$B$5:$C$100,2,FALSE),\"\"))","v":""},"2d","$AA$69","$AB$69"]
[7113,{"$f":"Menu!$F$29","v":"X"},{"$f":"Menu!$J$29","v":2020},{"$f":"IF(ISBLANK(INDIRECT(\"'\"&F878&\"'!\"&G878)),\"\",INDIRECT(\"'\"&F878&\"'!\"&G878))","v":""},{"$f":"IF(ISBLANK(INDIRECT(\"'\"&F878&\"'!\"&H878)),\"\",IFERROR(VLOOKUP(TEXT(INDIRECT(\"'\"&F878&\"'!\"&H878),\"0\"),Notes!$B$5:$C$100,2,FALSE),\"\"))","v":""},"2d","$AC$69","$AD$69"]
[7114,{"$f":"Menu!$F$29","v":"X"},{"$f":"Menu!$J$29","v":2020},{"$f":"IF(ISBLANK(INDIRECT(\"'\"&F879&\"'!\"&G879)),\"\",INDIRECT(\"'\"&F879&\"'!\"&G879))","v":""},{"$f":"IF(ISBLANK(INDIRECT(\"'\"&F879&\"'!\"&H879)),\"\",IFERROR(VLOOKUP(TEXT(INDIRECT(\"'\"&F879&\"'!\"&H879),\"0\"),Notes!$B$5:$C$100,2,FALSE),\"\"))","v":""},"2d","$AE$69","$AF$69"]
[7115,{"$f":"Menu!$F$29","v":"X"},{"$f":"Menu!$J$29","v":2020},{"$f":"IF(ISBLANK(INDIRECT(\"'\"&F880&\"'!\"&G880)),\"\",INDIRECT(\"'\"&F880&\"'!\"&G880))","v":""},{"$f":"IF(ISBLANK(INDIRECT(\"'\"&F880&\"'!\"&H880)),\"\",IFERROR(VLOOKUP(TEXT(INDIRECT(\"'\"&F880&\"'!\"&H880),\"0\"),Notes!$B$5:$C$100,2,FALSE),\"\"))","v":""},"2d","$AG$69","$AH$69"]
[7176,{"$f":"Menu!$F$29","v":"X"},{"$f":"Menu!$J$29","v":2020},{"$f":"IF(ISBLANK(INDIRECT(\"'\"&F881&\"'!\"&G881)),\"\",INDIRECT(\"'\"&F881&\"'!\"&G881))","v":""},{"$f":"IF(ISBLANK(INDIRECT(\"'\"&F881&\"'!\"&H881)),\"\",IFERROR(VLOOKUP(TEXT(INDIRECT(\"'\"&F881&\"'!\"&H881),\"0\"),Notes!$B$5:$C$100,2,FALSE),\"\"))","v":""},"2d","$E$25","$F$25"]
[7177,{"$f":"Menu!$F$29","v":"X"},{"$f":"Menu!$J$29","v":2020},{"$f":"IF(ISBLANK(INDIRECT(\"'\"&F882&\"'!\"&G882)),\"\",INDIRECT(\"'\"&F882&\"'!\"&G882))","v":""},{"$f":"IF(ISBLANK(INDIRECT(\"'\"&F882&\"'!\"&H882)),\"\",IFERROR(VLOOKUP(TEXT(INDIRECT(\"'\"&F882&\"'!\"&H882),\"0\"),Notes!$B$5:$C$100,2,FALSE),\"\"))","v":""},"2d","$G$25","$H$25"]
[7178,{"$f":"Menu!$F$29","v":"X"},{"$f":"Menu!$J$29","v":2020},{"$f":"IF(ISBLANK(INDIRECT(\"'\"&F883&\"'!\"&G883)),\"\",INDIRECT(\"'\"&F883&\"'!\"&G883))","v":""},{"$f":"IF(ISBLANK(INDIRECT(\"'\"&F883&\"'!\"&H883)),\"\",IFERROR(VLOOKUP(TEXT(INDIRECT(\"'\"&F883&\"'!\"&H883),\"0\"),Notes!$B$5:$C$100,2,FALSE),\"\"))","v":""},"2d","$I$25","$J$25"]
[7179,{"$f":"Menu!$F$29","v":"X"},{"$f":"Menu!$J$29","v":2020},{"$f":"IF(ISBLANK(INDIRECT(\"'\"&F884&\"'!\"&G884)),\"\",INDIRECT(\"'\"&F884&\"'!\"&G884))","v":""},{"$f":"IF(ISBLANK(INDIRECT(\"'\"&F884&\"'!\"&H884)),\"\",IFERROR(VLOOKUP(TEXT(INDIRECT(\"'\"&F884&\"'!\"&H884),\"0\"),Notes!$B$5:$C$100,2,FALSE),\"\"))","v":""},"2d","$K$25","$L$25"]
[7180,{"$f":"Menu!$F$29","v":"X"},{"$f":"Menu!$J$29","v":2020},{"$f":"IF(ISBLANK(INDIRECT(\"'\"&F885&\"'!\"&G885)),\"\",INDIRECT(\"'\"&F885&\"'!\"&G885))","v":""},{"$f":"IF(ISBLANK(INDIRECT(\"'\"&F885&\"'!\"&H885)),\"\",IFERROR(VLOOKUP(TEXT(INDIRECT(\"'\"&F885&\"'!\"&H885),\"0\"),Notes!$B$5:$C$100,2,FALSE),\"\"))","v":""},"2d","$M$25","$N$25"]
[7181,{"$f":"Menu!$F$29","v":"X"},{"$f":"Menu!$J$29","v":2020},{"$f":"IF(ISBLANK(INDIRECT(\"'\"&F886&\"'!\"&G886)),\"\",INDIRECT(\"'\"&F886&\"'!\"&G886))","v":""},{"$f":"IF(ISBLANK(INDIRECT(\"'\"&F886&\"'!\"&H886)),\"\",IFERROR(VLOOKUP(TEXT(INDIRECT(\"'\"&F886&\"'!\"&H886),\"0\"),Notes!$B$5:$C$100,2,FALSE),\"\"))","v":""},"2d","$O$25","$P$25"]
[7182,{"$f":"Menu!$F$29","v":"X"},{"$f":"Menu!$J$29","v":2020},{"$f":"IF(ISBLANK(INDIRECT(\"'\"&F887&\"'!\"&G887)),\"\",INDIRECT(\"'\"&F887&\"'!\"&G887))","v":""},{"$f":"IF(ISBLANK(INDIRECT(\"'\"&F887&\"'!\"&H887)),\"\",IFERROR(VLOOKUP(TEXT(INDIRECT(\"'\"&F887&\"'!\"&H887),\"0\"),Notes!$B$5:$C$100,2,FALSE),\"\"))","v":""},"2d","$Q$25","$R$25"]
[7183,{"$f":"Menu!$F$29","v":"X"},{"$f":"Menu!$J$29","v":2020},{"$f":"IF(ISBLANK(INDIRECT(\"'\"&F888&\"'!\"&G888)),\"\",INDIRECT(\"'\"&F888&\"'!\"&G888))","v":""},{"$f":"IF(ISBLANK(INDIRECT(\"'\"&F888&\"'!\"&H888)),\"\",IFERROR(VLOOKUP(TEXT(INDIRECT(\"'\"&F888&\"'!\"&H888),\"0\"),Notes!$B$5:$C$100,2,FALSE),\"\"))","v":""},"2d","$S$25","$T$25"]
[7184,{"$f":"Menu!$F$29","v":"X"},{"$f":"Menu!$J$29","v":2020},{"$f":"IF(ISBLANK(INDIRECT(\"'\"&F889&\"'!\"&G889)),\"\",INDIRECT(\"'\"&F889&\"'!\"&G889))","v":""},{"$f":"IF(ISBLANK(INDIRECT(\"'\"&F889&\"'!\"&H889)),\"\",IFERROR(VLOOKUP(TEXT(INDIRECT(\"'\"&F889&\"'!\"&H889),\"0\"),Notes!$B$5:$C$100,2,FALSE),\"\"))","v":""},"2d","$U$25","$V$25"]
[7185,{"$f":"Menu!$F$29","v":"X"},{"$f":"Menu!$J$29","v":2020},{"$f":"IF(ISBLANK(INDIRECT(\"'\"&F890&\"'!\"&G890)),\"\",INDIRECT(\"'\"&F890&\"'!\"&G890))","v":""},{"$f":"IF(ISBLANK(INDIRECT(\"'\"&F890&\"'!\"&H890)),\"\",IFERROR(VLOOKUP(TEXT(INDIRECT(\"'\"&F890&\"'!\"&H890),\"0\"),Notes!$B$5:$C$100,2,FALSE),\"\"))","v":""},"2d","$W$25","$X$25"]
[7186,{"$f":"Menu!$F$29","v":"X"},{"$f":"Menu!$J$29","v":2020},{"$f":"IF(ISBLANK(INDIRECT(\"'\"&F891&\"'!\"&G891)),\"\",INDIRECT(\"'\"&F891&\"'!\"&G891))","v":""},{"$f":"IF(ISBLANK(INDIRECT(\"'\"&F891&\"'!\"&H891)),\"\",IFERROR(VLOOKUP(TEXT(INDIRECT(\"'\"&F891&\"'!\"&H891),\"0\"),Notes!$B$5:$C$100,2,FALSE),\"\"))","v":""},"2d","$Y$25","$Z$25"]
[7187,{"$f":"Menu!$F$29","v":"X"},{"$f":"Menu!$J$29","v":2020},{"$f":"IF(ISBLANK(INDIRECT(\"'\"&F892&\"'!\"&G892)),\"\",INDIRECT(\"'\"&F892&\"'!\"&G892))","v":""},{"$f":"IF(ISBLANK(INDIRECT(\"'\"&F892&\"'!\"&H892)),\"\",IFERROR(VLOOKUP(TEXT(INDIRECT(\"'\"&F892&\"'!\"&H892),\"0\"),Notes!$B$5:$C$100,2,FALSE),\"\"))","v":""},"2d","$AA$25","$AB$25"]
[7188,{"$f":"Menu!$F$29","v":"X"},{"$f":"Menu!$J$29","v":2020},{"$f":"IF(ISBLANK(INDIRECT(\"'\"&F893&\"'!\"&G893)),\"\",INDIRECT(\"'\"&F893&\"'!\"&G893))","v":""},{"$f":"IF(ISBLANK(INDIRECT(\"'\"&F893&\"'!\"&H893)),\"\",IFERROR(VLOOKUP(TEXT(INDIRECT(\"'\"&F893&\"'!\"&H893),\"0\"),Notes!$B$5:$C$100,2,FALSE),\"\"))","v":""},"2d","$AC$25","$AD$25"]
[7189,{"$f":"Menu!$F$29","v":"X"},{"$f":"Menu!$J$29","v":2020},{"$f":"IF(ISBLANK(INDIRECT(\"'\"&F894&\"'!\"&G894)),\"\",INDIRECT(\"'\"&F894&\"'!\"&G894))","v":""},{"$f":"IF(ISBLANK(INDIRECT(\"'\"&F894&\"'!\"&H894)),\"\",IFERROR(VLOOKUP(TEXT(INDIRECT(\"'\"&F894&\"'!\"&H894),\"0\"),Notes!$B$5:$C$100,2,FALSE),\"\"))","v":""},"2d","$AE$25","$AF$25"]
[7190,{"$f":"Menu!$F$29","v":"X"},{"$f":"Menu!$J$29","v":2020},{"$f":"IF(ISBLANK(INDIRECT(\"'\"&F895&\"'!\"&G895)),\"\",INDIRECT(\"'\"&F895&\"'!\"&G895))","v":""},{"$f":"IF(ISBLANK(INDIRECT(\"'\"&F895&\"'!\"&H895)),\"\",IFERROR(VLOOKUP(TEXT(INDIRECT(\"'\"&F895&\"'!\"&H895),\"0\"),Notes!$B$5:$C$100,2,FALSE),\"\"))","v":""},"2d","$AG$25","$AH$25"]
[7206,{"$f":"Menu!$F$29","v":"X"},{"$f":"Menu!$J$29","v":2020},{"$f":"IF(ISBLANK(INDIRECT(\"'\"&F896&\"'!\"&G896)),\"\",INDIRECT(\"'\"&F896&\"'!\"&G896))","v":""},{"$f":"IF(ISBLANK(INDIRECT(\"'\"&F896&\"'!\"&H896)),\"\",IFERROR(VLOOKUP(TEXT(INDIRECT(\"'\"&F896&\"'!\"&H896),\"0\"),Notes!$B$5:$C$100,2,FALSE),\"\"))","v":""},"2d","$E$88","$F$88"]
[7207,{"$f":"Menu!$F$29","v":"X"},{"$f":"Menu!$J$29","v":2020},{"$f":"IF(ISBLANK(INDIRECT(\"'\"&F897&\"'!\"&G897)),\"\",INDIRECT(\"'\"&F897&\"'!\"&G897))","v":""},{"$f":"IF(ISBLANK(INDIRECT(\"'\"&F897&\"'!\"&H897)),\"\",IFERROR(VLOOKUP(TEXT(INDIRECT(\"'\"&F897&\"'!\"&H897),\"0\"),Notes!$B$5:$C$100,2,FALSE),\"\"))","v":""},"2d","$G$88","$H$88"]
[7208,{"$f":"Menu!$F$29","v":"X"},{"$f":"Menu!$J$29","v":2020},{"$f":"IF(ISBLANK(INDIRECT(\"'\"&F898&\"'!\"&G898)),\"\",INDIRECT(\"'\"&F898&\"'!\"&G898))","v":""},{"$f":"IF(ISBLANK(INDIRECT(\"'\"&F898&\"'!\"&H898)),\"\",IFERROR(VLOOKUP(TEXT(INDIRECT(\"'\"&F898&\"'!\"&H898),\"0\"),Notes!$B$5:$C$100,2,FALSE),\"\"))","v":""},"2d","$I$88",{"$f":"IF(LEN(TRIM(MID(G898,4,10)))-LEN(SUBSTITUTE(TRIM(MID(G898,4,10)),\"$\",\"\"))=0,\"$\"&CHAR(CODE(MID(G898,2,1))+1)&\"$\"&TRIM(MID(G898,4,10)),\"$\"&MID(G898,2,1)&CHAR(CODE(MID(G898,3,1))+1)&\"$\"&TRIM(MID(G898,5,11)))","v":"$J$88"}]
[7209,{"$f":"Menu!$F$29","v":"X"},{"$f":"Menu!$J$29","v":2020},{"$f":"IF(ISBLANK(INDIRECT(\"'\"&F899&\"'!\"&G899)),\"\",INDIRECT(\"'\"&F899&\"'!\"&G899))","v":""},{"$f":"IF(ISBLANK(INDIRECT(\"'\"&F899&\"'!\"&H899)),\"\",IFERROR(VLOOKUP(TEXT(INDIRECT(\"'\"&F899&\"'!\"&H899),\"0\"),Notes!$B$5:$C$100,2,FALSE),\"\"))","v":""},"2d","$K$88","$L$88"]
[7210,{"$f":"Menu!$F$29","v":"X"},{"$f":"Menu!$J$29","v":2020},{"$f":"IF(ISBLANK(INDIRECT(\"'\"&F900&\"'!\"&G900)),\"\",INDIRECT(\"'\"&F900&\"'!\"&G900))","v":""},{"$f":"IF(ISBLANK(INDIRECT(\"'\"&F900&\"'!\"&H900)),\"\",IFERROR(VLOOKUP(TEXT(INDIRECT(\"'\"&F900&\"'!\"&H900),\"0\"),Notes!$B$5:$C$100,2,FALSE),\"\"))","v":""},"2d","$M$88","$N$88"]
[7211,{"$f":"Menu!$F$29","v":"X"},{"$f":"Menu!$J$29","v":2020},{"$f":"IF(ISBLANK(INDIRECT(\"'\"&F901&\"'!\"&G901)),\"\",INDIRECT(\"'\"&F901&\"'!\"&G901))","v":""},{"$f":"IF(ISBLANK(INDIRECT(\"'\"&F901&\"'!\"&H901)),\"\",IFERROR(VLOOKUP(TEXT(INDIRECT(\"'\"&F901&\"'!\"&H901),\"0\"),Notes!$B$5:$C$100,2,FALSE),\"\"))","v":""},"2d","$O$88","$P$88"]
[7212,{"$f":"Menu!$F$29","v":"X"},{"$f":"Menu!$J$29","v":2020},{"$f":"IF(ISBLANK(INDIRECT(\"'\"&F902&\"'!\"&G902)),\"\",INDIRECT(\"'\"&F902&\"'!\"&G902))","v":""},{"$f":"IF(ISBLANK(INDIRECT(\"'\"&F902&\"'!\"&H902)),\"\",IFERROR(VLOOKUP(TEXT(INDIRECT(\"'\"&F902&\"'!\"&H902),\"0\"),Notes!$B$5:$C$100,2,FALSE),\"\"))","v":""},"2d","$Q$88","$R$88"]
[7213,{"$f":"Menu!$F$29","v":"X"},{"$f":"Menu!$J$29","v":2020},{"$f":"IF(ISBLANK(INDIRECT(\"'\"&F903&\"'!\"&G903)),\"\",INDIRECT(\"'\"&F903&\"'!\"&G903))","v":""},{"$f":"IF(ISBLANK(INDIRECT(\"'\"&F903&\"'!\"&H903)),\"\",IFERROR(VLOOKUP(TEXT(INDIRECT(\"'\"&F903&\"'!\"&H903),\"0\"),Notes!$B$5:$C$100,2,FALSE),\"\"))","v":""},"2d","$S$88","$T$88"]
[7214,{"$f":"Menu!$F$29","v":"X"},{"$f":"Menu!$J$29","v":2020},{"$f":"IF(ISBLANK(INDIRECT(\"'\"&F904&\"'!\"&G904)),\"\",INDIRECT(\"'\"&F904&\"'!\"&G904))","v":""},{"$f":"IF(ISBLANK(INDIRECT(\"'\"&F904&\"'!\"&H904)),\"\",IFERROR(VLOOKUP(TEXT(INDIRECT(\"'\"&F904&\"'!\"&H904),\"0\"),Notes!$B$5:$C$100,2,FALSE),\"\"))","v":""},"2d","$U$88","$V$88"]
[7215,{"$f":"Menu!$F$29","v":"X"},{"$f":"Menu!$J$29","v":2020},{"$f":"IF(ISBLANK(INDIRECT(\"'\"&F905&\"'!\"&G905)),\"\",INDIRECT(\"'\"&F905&\"'!\"&G905))","v":""},{"$f":"IF(ISBLANK(INDIRECT(\"'\"&F905&\"'!\"&H905)),\"\",IFERROR(VLOOKUP(TEXT(INDIRECT(\"'\"&F905&\"'!\"&H905),\"0\"),Notes!$B$5:$C$100,2,FALSE),\"\"))","v":""},"2d","$W$88","$X$88"]
[7216,{"$f":"Menu!$F$29","v":"X"},{"$f":"Menu!$J$29","v":2020},{"$f":"IF(ISBLANK(INDIRECT(\"'\"&F906&\"'!\"&G906)),\"\",INDIRECT(\"'\"&F906&\"'!\"&G906))","v":""},{"$f":"IF(ISBLANK(INDIRECT(\"'\"&F906&\"'!\"&H906)),\"\",IFERROR(VLOOKUP(TEXT(INDIRECT(\"'\"&F906&\"'!\"&H906),\"0\"),Notes!$B$5:$C$100,2,FALSE),\"\"))","v":""},"2d","$Y$88","$Z$88"]
[7217,{"$f":"Menu!$F$29","v":"X"},{"$f":"Menu!$J$29","v":2020},{"$f":"IF(ISBLANK(INDIRECT(\"'\"&F907&\"'!\"&G907)),\"\",INDIRECT(\"'\"&F907&\"'!\"&G907))","v":""},{"$f":"IF(ISBLANK(INDIRECT(\"'\"&F907&\"'!\"&H907)),\"\",IFERROR(VLOOKUP(TEXT(INDIRECT(\"'\"&F907&\"'!\"&H907),\"0\"),Notes!$B$5:$C$100,2,FALSE),\"\"))","v":""},"2d","$AA$88","$AB$88"]
[7218,{"$f":"Menu!$F$29","v":"X"},{"$f":"Menu!$J$29","v":2020},{"$f":"IF(ISBLANK(INDIRECT(\"'\"&F908&\"'!\"&G908)),\"\",INDIRECT(\"'\"&F908&\"'!\"&G908))","v":""},{"$f":"IF(ISBLANK(INDIRECT(\"'\"&F908&\"'!\"&H908)),\"\",IFERROR(VLOOKUP(TEXT(INDIRECT(\"'\"&F908&\"'!\"&H908),\"0\"),Notes!$B$5:$C$100,2,FALSE),\"\"))","v":""},"2d","$AC$88","$AD$88"]
[7219,{"$f":"Menu!$F$29","v":"X"},{"$f":"Menu!$J$29","v":2020},{"$f":"IF(ISBLANK(INDIRECT(\"'\"&F909&\"'!\"&G909)),\"\",INDIRECT(\"'\"&F909&\"'!\"&G909))","v":""},{"$f":"IF(ISBLANK(INDIRECT(\"'\"&F909&\"'!\"&H909)),\"\",IFERROR(VLOOKUP(TEXT(INDIRECT(\"'\"&F909&\"'!\"&H909),\"0\"),Notes!$B$5:$C$100,2,FALSE),\"\"))","v":""},"2d","$AE$88","$AF$88"]
[7220,{"$f":"Menu!$F$29","v":"X"},{"$f":"Menu!$J$29","v":2020},{"$f":"IF(ISBLANK(INDIRECT(\"'\"&F910&\"'!\"&G910)),\"\",INDIRECT(\"'\"&F910&\"'!\"&G910))","v":""},{"$f":"IF(ISBLANK(INDIRECT(\"'\"&F910&\"'!\"&H910)),\"\",IFERROR(VLOOKUP(TEXT(INDIRECT(\"'\"&F910&\"'!\"&H910),\"0\"),Notes!$B$5:$C$100,2,FALSE),\"\"))","v":""},"2d","$AG$88","$AH$88"]
[7221,{"$f":"Menu!$F$29","v":"X"},{"$f":"Menu!$J$29","v":2020},{"$f":"IF(ISBLANK(INDIRECT(\"'\"&F911&\"'!\"&G911)),\"\",INDIRECT(\"'\"&F911&\"'!\"&G911))","v":""},{"$f":"IF(ISBLANK(INDIRECT(\"'\"&F911&\"'!\"&H911)),\"\",IFERROR(VLOOKUP(TEXT(INDIRECT(\"'\"&F911&\"'!\"&H911),\"0\"),Notes!$B$5:$C$100,2,FALSE),\"\"))","v":""},"2d","$E$93","$F$93"]
[7222,{"$f":"Menu!$F$29","v":"X"},{"$f":"Menu!$J$29","v":2020},{"$f":"IF(ISBLANK(INDIRECT(\"'\"&F912&\"'!\"&G912)),\"\",INDIRECT(\"'\"&F912&\"'!\"&G912))","v":""},{"$f":"IF(ISBLANK(INDIRECT(\"'\"&F912&\"'!\"&H912)),\"\",IFERROR(VLOOKUP(TEXT(INDIRECT(\"'\"&F912&\"'!\"&H912),\"0\"),Notes!$B$5:$C$100,2,FALSE),\"\"))","v":""},"2d","$G$93","$H$93"]
[7223,{"$f":"Menu!$F$29","v":"X"},{"$f":"Menu!$J$29","v":2020},{"$f":"IF(ISBLANK(INDIRECT(\"'\"&F913&\"'!\"&G913)),\"\",INDIRECT(\"'\"&F913&\"'!\"&G913))","v":""},{"$f":"IF(ISBLANK(INDIRECT(\"'\"&F913&\"'!\"&H913)),\"\",IFERROR(VLOOKUP(TEXT(INDIRECT(\"'\"&F913&\"'!\"&H913),\"0\"),Notes!$B$5:$C$100,2,FALSE),\"\"))","v":""},"2d","$I$93","$J$93"]
[7224,{"$f":"Menu!$F$29","v":"X"},{"$f":"Menu!$J$29","v":2020},{"$f":"IF(ISBLANK(INDIRECT(\"'\"&F914&\"'!\"&G914)),\"\",INDIRECT(\"'\"&F914&\"'!\"&G914))","v":""},{"$f":"IF(ISBLANK(INDIRECT(\"'\"&F914&\"'!\"&H914)),\"\",IFERROR(VLOOKUP(TEXT(INDIRECT(\"'\"&F914&\"'!\"&H914),\"0\"),Notes!$B$5:$C$100,2,FALSE),\"\"))","v":""},"2d","$K$93","$L$93"]
[7225,{"$f":"Menu!$F$29","v":"X"},{"$f":"Menu!$J$29","v":2020},{"$f":"IF(ISBLANK(INDIRECT(\"'\"&F915&\"'!\"&G915)),\"\",INDIRECT(\"'\"&F915&\"'!\"&G915))","v":""},{"$f":"IF(ISBLANK(INDIRECT(\"'\"&F915&\"'!\"&H915)),\"\",IFERROR(VLOOKUP(TEXT(INDIRECT(\"'\"&F915&\"'!\"&H915),\"0\"),Notes!$B$5:$C$100,2,FALSE),\"\"))","v":""},"2d","$M$93","$N$93"]
[7226,{"$f":"Menu!$F$29","v":"X"},{"$f":"Menu!$J$29","v":2020},{"$f":"IF(ISBLANK(INDIRECT(\"'\"&F916&\"'!\"&G916)),\"\",INDIRECT(\"'\"&F916&\"'!\"&G916))","v":""},{"$f":"IF(ISBLANK(INDIRECT(\"'\"&F916&\"'!\"&H916)),\"\",IFERROR(VLOOKUP(TEXT(INDIRECT(\"'\"&F916&\"'!\"&H916),\"0\"),Notes!$B$5:$C$100,2,FALSE),\"\"))","v":""},"2d","$O$93","$P$93"]
[7227,{"$f":"Menu!$F$29","v":"X"},{"$f":"Menu!$J$29","v":2020},{"$f":"IF(ISBLANK(INDIRECT(\"'\"&F917&\"'!\"&G917)),\"\",INDIRECT(\"'\"&F917&\"'!\"&G917))","v":""},{"$f":"IF(ISBLANK(INDIRECT(\"'\"&F917&\"'!\"&H917)),\"\",IFERROR(VLOOKUP(TEXT(INDIRECT(\"'\"&F917&\"'!\"&H917),\"0\"),Notes!$B$5:$C$100,2,FALSE),\"\"))","v":""},"2d","$Q$93","$R$93"]
[7228,{"$f":"Menu!$F$29","v":"X"},{"$f":"Menu!$J$29","v":2020},{"$f":"IF(ISBLANK(INDIRECT(\"'\"&F918&\"'!\"&G918)),\"\",INDIRECT(\"'\"&F918&\"'!\"&G918))","v":""},{"$f":"IF(ISBLANK(INDIRECT(\"'\"&F918&\"'!\"&H918)),\"\",IFERROR(VLOOKUP(TEXT(INDIRECT(\"'\"&F918&\"'!\"&H918),\"0\"),Notes!$B$5:$C$100,2,FALSE),\"\"))","v":""},"2d","$S$93","$T$93"]
[7229,{"$f":"Menu!$F$29","v":"X"},{"$f":"Menu!$J$29","v":2020},{"$f":"IF(ISBLANK(INDIRECT(\"'\"&F919&\"'!\"&G919)),\"\",INDIRECT(\"'\"&F919&\"'!\"&G919))","v":""},{"$f":"IF(ISBLANK(INDIRECT(\"'\"&F919&\"'!\"&H919)),\"\",IFERROR(VLOOKUP(TEXT(INDIRECT(\"'\"&F919&\"'!\"&H919),\"0\"),Notes!$B$5:$C$100,2,FALSE),\"\"))","v":""},"2d","$U$93","$V$93"]
[7230,{"$f":"Menu!$F$29","v":"X"},{"$f":"Menu!$J$29","v":2020},{"$f":"IF(ISBLANK(INDIRECT(\"'\"&F920&\"'!\"&G920)),\"\",INDIRECT(\"'\"&F920&\"'!\"&G920))","v":""},{"$f":"IF(ISBLANK(INDIRECT(\"'\"&F920&\"'!\"&H920)),\"\",IFERROR(VLOOKUP(TEXT(INDIRECT(\"'\"&F920&\"'!\"&H920),\"0\"),Notes!$B$5:$C$100,2,FALSE),\"\"))","v":""},"2d","$W$93","$X$93"]
[7231,{"$f":"Menu!$F$29","v":"X"},{"$f":"Menu!$J$29","v":2020},{"$f":"IF(ISBLANK(INDIRECT(\"'\"&F921&\"'!\"&G921)),\"\",INDIRECT(\"'\"&F921&\"'!\"&G921))","v":""},{"$f":"IF(ISBLANK(INDIRECT(\"'\"&F921&\"'!\"&H921)),\"\",IFERROR(VLOOKUP(TEXT(INDIRECT(\"'\"&F921&\"'!\"&H921),\"0\"),Notes!$B$5:$C$100,2,FALSE),\"\"))","v":""},"2d","$Y$93","$Z$93"]
[7232,{"$f":"Menu!$F$29","v":"X"},{"$f":"Menu!$J$29","v":2020},{"$f":"IF(ISBLANK(INDIRECT(\"'\"&F922&\"'!\"&G922)),\"\",INDIRECT(\"'\"&F922&\"'!\"&G922))","v":""},{"$f":"IF(ISBLANK(INDIRECT(\"'\"&F922&\"'!\"&H922)),\"\",IFERROR(VLOOKUP(TEXT(INDIRECT(\"'\"&F922&\"'!\"&H922),\"0\"),Notes!$B$5:$C$100,2,FALSE),\"\"))","v":""},"2d","$AA$93","$AB$93"]
[7233,{"$f":"Menu!$F$29","v":"X"},{"$f":"Menu!$J$29","v":2020},{"$f":"IF(ISBLANK(INDIRECT(\"'\"&F923&\"'!\"&G923)),\"\",INDIRECT(\"'\"&F923&\"'!\"&G923))","v":""},{"$f":"IF(ISBLANK(INDIRECT(\"'\"&F923&\"'!\"&H923)),\"\",IFERROR(VLOOKUP(TEXT(INDIRECT(\"'\"&F923&\"'!\"&H923),\"0\"),Notes!$B$5:$C$100,2,FALSE),\"\"))","v":""},"2d","$AC$93","$AD$93"]
[7234,{"$f":"Menu!$F$29","v":"X"},{"$f":"Menu!$J$29","v":2020},{"$f":"IF(ISBLANK(INDIRECT(\"'\"&F924&\"'!\"&G924)),\"\",INDIRECT(\"'\"&F924&\"'!\"&G924))","v":""},{"$f":"IF(ISBLANK(INDIRECT(\"'\"&F924&\"'!\"&H924)),\"\",IFERROR(VLOOKUP(TEXT(INDIRECT(\"'\"&F924&\"'!\"&H924),\"0\"),Notes!$B$5:$C$100,2,FALSE),\"\"))","v":""},"2d","$AE$93","$AF$93"]
[7235,{"$f":"Menu!$F$29","v":"X"},{"$f":"Menu!$J$29","v":2020},{"$f":"IF(ISBLANK(INDIRECT(\"'\"&F925&\"'!\"&G925)),\"\",INDIRECT(\"'\"&F925&\"'!\"&G925))","v":""},{"$f":"IF(ISBLANK(INDIRECT(\"'\"&F925&\"'!\"&H925)),\"\",IFERROR(VLOOKUP(TEXT(INDIRECT(\"'\"&F925&\"'!\"&H925),\"0\"),Notes!$B$5:$C$100,2,FALSE),\"\"))","v":""},"2d","$AG$93","$AH$93"]
[7236,{"$f":"Menu!$F$29","v":"X"},{"$f":"Menu!$J$29","v":2020},{"$f":"IF(ISBLANK(INDIRECT(\"'\"&F926&\"'!\"&G926)),\"\",INDIRECT(\"'\"&F926&\"'!\"&G926))","v":""},{"$f":"IF(ISBLANK(INDIRECT(\"'\"&F926&\"'!\"&H926)),\"\",IFERROR(VLOOKUP(TEXT(INDIRECT(\"'\"&F926&\"'!\"&H926),\"0\"),Notes!$B$5:$C$100,2,FALSE),\"\"))","v":""},"2d","$E$91","$F$91"]
[7237,{"$f":"Menu!$F$29","v":"X"},{"$f":"Menu!$J$29","v":2020},{"$f":"IF(ISBLANK(INDIRECT(\"'\"&F927&\"'!\"&G927)),\"\",INDIRECT(\"'\"&F927&\"'!\"&G927))","v":""},{"$f":"IF(ISBLANK(INDIRECT(\"'\"&F927&\"'!\"&H927)),\"\",IFERROR(VLOOKUP(TEXT(INDIRECT(\"'\"&F927&\"'!\"&H927),\"0\"),Notes!$B$5:$C$100,2,FALSE),\"\"))","v":""},"2d","$G$91","$H$91"]
[7238,{"$f":"Menu!$F$29","v":"X"},{"$f":"Menu!$J$29","v":2020},{"$f":"IF(ISBLANK(INDIRECT(\"'\"&F928&\"'!\"&G928)),\"\",INDIRECT(\"'\"&F928&\"'!\"&G928))","v":""},{"$f":"IF(ISBLANK(INDIRECT(\"'\"&F928&\"'!\"&H928)),\"\",IFERROR(VLOOKUP(TEXT(INDIRECT(\"'\"&F928&\"'!\"&H928),\"0\"),Notes!$B$5:$C$100,2,FALSE),\"\"))","v":""},"2d","$I$91","$J$91"]
[7239,{"$f":"Menu!$F$29","v":"X"},{"$f":"Menu!$J$29","v":2020},{"$f":"IF(ISBLANK(INDIRECT(\"'\"&F929&\"'!\"&G929)),\"\",INDIRECT(\"'\"&F929&\"'!\"&G929))","v":""},{"$f":"IF(ISBLANK(INDIRECT(\"'\"&F929&\"'!\"&H929)),\"\",IFERROR(VLOOKUP(TEXT(INDIRECT(\"'\"&F929&\"'!\"&H929),\"0\"),Notes!$B$5:$C$100,2,FALSE),\"\"))","v":""},"2d","$K$91","$L$91"]
[7240,{"$f":"Menu!$F$29","v":"X"},{"$f":"Menu!$J$29","v":2020},{"$f":"IF(ISBLANK(INDIRECT(\"'\"&F930&\"'!\"&G930)),\"\",INDIRECT(\"'\"&F930&\"'!\"&G930))","v":""},{"$f":"IF(ISBLANK(INDIRECT(\"'\"&F930&\"'!\"&H930)),\"\",IFERROR(VLOOKUP(TEXT(INDIRECT(\"'\"&F930&\"'!\"&H930),\"0\"),Notes!$B$5:$C$100,2,FALSE),\"\"))","v":""},"2d","$M$91","$N$91"]
[7241,{"$f":"Menu!$F$29","v":"X"},{"$f":"Menu!$J$29","v":2020},{"$f":"IF(ISBLANK(INDIRECT(\"'\"&F931&\"'!\"&G931)),\"\",INDIRECT(\"'\"&F931&\"'!\"&G931))","v":""},{"$f":"IF(ISBLANK(INDIRECT(\"'\"&F931&\"'!\"&H931)),\"\",IFERROR(VLOOKUP(TEXT(INDIRECT(\"'\"&F931&\"'!\"&H931),\"0\"),Notes!$B$5:$C$100,2,FALSE),\"\"))","v":""},"2d","$O$91","$P$91"]
[7242,{"$f":"Menu!$F$29","v":"X"},{"$f":"Menu!$J$29","v":2020},{"$f":"IF(ISBLANK(INDIRECT(\"'\"&F932&\"'!\"&G932)),\"\",INDIRECT(\"'\"&F932&\"'!\"&G932))","v":""},{"$f":"IF(ISBLANK(INDIRECT(\"'\"&F932&\"'!\"&H932)),\"\",IFERROR(VLOOKUP(TEXT(INDIRECT(\"'\"&F932&\"'!\"&H932),\"0\"),Notes!$B$5:$C$100,2,FALSE),\"\"))","v":""},"2d","$Q$91","$R$91"]
[7243,{"$f":"Menu!$F$29","v":"X"},{"$f":"Menu!$J$29","v":2020},{"$f":"IF(ISBLANK(INDIRECT(\"'\"&F933&\"'!\"&G933)),\"\",INDIRECT(\"'\"&F933&\"'!\"&G933))","v":""},{"$f":"IF(ISBLANK(INDIRECT(\"'\"&F933&\"'!\"&H933)),\"\",IFERROR(VLOOKUP(TEXT(INDIRECT(\"'\"&F933&\"'!\"&H933),\"0\"),Notes!$B$5:$C$100,2,FALSE),\"\"))","v":""},"2d","$S$91","$T$91"]
[7244,{"$f":"Menu!$F$29","v":"X"},{"$f":"Menu!$J$29","v":2020},{"$f":"IF(ISBLANK(INDIRECT(\"'\"&F934&\"'!\"&G934)),\"\",INDIRECT(\"'\"&F934&\"'!\"&G934))","v":""},{"$f":"IF(ISBLANK(INDIRECT(\"'\"&F934&\"'!\"&H934)),\"\",IFERROR(VLOOKUP(TEXT(INDIRECT(\"'\"&F934&\"'!\"&H934),\"0\"),Notes!$B$5:$C$100,2,FALSE),\"\"))","v":""},"2d","$U$91","$V$91"]
[7245,{"$f":"Menu!$F$29","v":"X"},{"$f":"Menu!$J$29","v":2020},{"$f":"IF(ISBLANK(INDIRECT(\"'\"&F935&\"'!\"&G935)),\"\",INDIRECT(\"'\"&F935&\"'!\"&G935))","v":""},{"$f":"IF(ISBLANK(INDIRECT(\"'\"&F935&\"'!\"&H935)),\"\",IFERROR(VLOOKUP(TEXT(INDIRECT(\"'\"&F935&\"'!\"&H935),\"0\"),Notes!$B$5:$C$100,2,FALSE),\"\"))","v":""},"2d","$W$91","$X$91"]
[7246,{"$f":"Menu!$F$29","v":"X"},{"$f":"Menu!$J$29","v":2020},{"$f":"IF(ISBLANK(INDIRECT(\"'\"&F936&\"'!\"&G936)),\"\",INDIRECT(\"'\"&F936&\"'!\"&G936))","v":""},{"$f":"IF(ISBLANK(INDIRECT(\"'\"&F936&\"'!\"&H936)),\"\",IFERROR(VLOOKUP(TEXT(INDIRECT(\"'\"&F936&\"'!\"&H936),\"0\"),Notes!$B$5:$C$100,2,FALSE),\"\"))","v":""},"2d","$Y$91","$Z$91"]
[7247,{"$f":"Menu!$F$29","v":"X"},{"$f":"Menu!$J$29","v":2020},{"$f":"IF(ISBLANK(INDIRECT(\"'\"&F937&\"'!\"&G937)),\"\",INDIRECT(\"'\"&F937&\"'!\"&G937))","v":""},{"$f":"IF(ISBLANK(INDIRECT(\"'\"&F937&\"'!\"&H937)),\"\",IFERROR(VLOOKUP(TEXT(INDIRECT(\"'\"&F937&\"'!\"&H937),\"0\"),Notes!$B$5:$C$100,2,FALSE),\"\"))","v":""},"2d","$AA$91","$AB$91"]
[7248,{"$f":"Menu!$F$29","v":"X"},{"$f":"Menu!$J$29","v":2020},{"$f":"IF(ISBLANK(INDIRECT(\"'\"&F938&\"'!\"&G938)),\"\",INDIRECT(\"'\"&F938&\"'!\"&G938))","v":""},{"$f":"IF(ISBLANK(INDIRECT(\"'\"&F938&\"'!\"&H938)),\"\",IFERROR(VLOOKUP(TEXT(INDIRECT(\"'\"&F938&\"'!\"&H938),\"0\"),Notes!$B$5:$C$100,2,FALSE),\"\"))","v":""},"2d","$AC$91","$AD$91"]
[7249,{"$f":"Menu!$F$29","v":"X"},{"$f":"Menu!$J$29","v":2020},{"$f":"IF(ISBLANK(INDIRECT(\"'\"&F939&\"'!\"&G939)),\"\",INDIRECT(\"'\"&F939&\"'!\"&G939))","v":""},{"$f":"IF(ISBLANK(INDIRECT(\"'\"&F939&\"'!\"&H939)),\"\",IFERROR(VLOOKUP(TEXT(INDIRECT(\"'\"&F939&\"'!\"&H939),\"0\"),Notes!$B$5:$C$100,2,FALSE),\"\"))","v":""},"2d","$AE$91","$AF$91"]
[7250,{"$f":"Menu!$F$29","v":"X"},{"$f":"Menu!$J$29","v":2020},{"$f":"IF(ISBLANK(INDIRECT(\"'\"&F940&\"'!\"&G940)),\"\",INDIRECT(\"'\"&F940&\"'!\"&G940))","v":""},{"$f":"IF(ISBLANK(INDIRECT(\"'\"&F940&\"'!\"&H940)),\"\",IFERROR(VLOOKUP(TEXT(INDIRECT(\"'\"&F940&\"'!\"&H940),\"0\"),Notes!$B$5:$C$100,2,FALSE),\"\"))","v":""},"2d","$AG$91","$AH$91"]
[7251,{"$f":"Menu!$F$29","v":"X"},{"$f":"Menu!$J$29","v":2020},{"$f":"IF(ISBLANK(INDIRECT(\"'\"&F941&\"'!\"&G941)),\"\",INDIRECT(\"'\"&F941&\"'!\"&G941))","v":""},{"$f":"IF(ISBLANK(INDIRECT(\"'\"&F941&\"'!\"&H941)),\"\",IFERROR(VLOOKUP(TEXT(INDIRECT(\"'\"&F941&\"'!\"&H941),\"0\"),Notes!$B$5:$C$100,2,FALSE),\"\"))","v":""},"2d","$E$32","$F$32"]
[7252,{"$f":"Menu!$F$29","v":"X"},{"$f":"Menu!$J$29","v":2020},{"$f":"IF(ISBLANK(INDIRECT(\"'\"&F942&\"'!\"&G942)),\"\",INDIRECT(\"'\"&F942&\"'!\"&G942))","v":""},{"$f":"IF(ISBLANK(INDIRECT(\"'\"&F942&\"'!\"&H942)),\"\",IFERROR(VLOOKUP(TEXT(INDIRECT(\"'\"&F942&\"'!\"&H942),\"0\"),Notes!$B$5:$C$100,2,FALSE),\"\"))","v":""},"2d","$G$32","$H$32"]
[7253,{"$f":"Menu!$F$29","v":"X"},{"$f":"Menu!$J$29","v":2020},{"$f":"IF(ISBLANK(INDIRECT(\"'\"&F943&\"'!\"&G943)),\"\",INDIRECT(\"'\"&F943&\"'!\"&G943))","v":""},{"$f":"IF(ISBLANK(INDIRECT(\"'\"&F943&\"'!\"&H943)),\"\",IFERROR(VLOOKUP(TEXT(INDIRECT(\"'\"&F943&\"'!\"&H943),\"0\"),Notes!$B$5:$C$100,2,FALSE),\"\"))","v":""},"2d","$I$32","$J$32"]
[7254,{"$f":"Menu!$F$29","v":"X"},{"$f":"Menu!$J$29","v":2020},{"$f":"IF(ISBLANK(INDIRECT(\"'\"&F944&\"'!\"&G944)),\"\",INDIRECT(\"'\"&F944&\"'!\"&G944))","v":""},{"$f":"IF(ISBLANK(INDIRECT(\"'\"&F944&\"'!\"&H944)),\"\",IFERROR(VLOOKUP(TEXT(INDIRECT(\"'\"&F944&\"'!\"&H944),\"0\"),Notes!$B$5:$C$100,2,FALSE),\"\"))","v":""},"2d","$K$32","$L$32"]
[7255,{"$f":"Menu!$F$29","v":"X"},{"$f":"Menu!$J$29","v":2020},{"$f":"IF(ISBLANK(INDIRECT(\"'\"&F945&\"'!\"&G945)),\"\",INDIRECT(\"'\"&F945&\"'!\"&G945))","v":""},{"$f":"IF(ISBLANK(INDIRECT(\"'\"&F945&\"'!\"&H945)),\"\",IFERROR(VLOOKUP(TEXT(INDIRECT(\"'\"&F945&\"'!\"&H945),\"0\"),Notes!$B$5:$C$100,2,FALSE),\"\"))","v":""},"2d","$M$32","$N$32"]
[7256,{"$f":"Menu!$F$29","v":"X"},{"$f":"Menu!$J$29","v":2020},{"$f":"IF(ISBLANK(INDIRECT(\"'\"&F946&\"'!\"&G946)),\"\",INDIRECT(\"'\"&F946&\"'!\"&G946))","v":""},{"$f":"IF(ISBLANK(INDIRECT(\"'\"&F946&\"'!\"&H946)),\"\",IFERROR(VLOOKUP(TEXT(INDIRECT(\"'\"&F946&\"'!\"&H946),\"0\"),Notes!$B$5:$C$100,2,FALSE),\"\"))","v":""},"2d","$O$32","$P$32"]
[7257,{"$f":"Menu!$F$29","v":"X"},{"$f":"Menu!$J$29","v":2020},{"$f":"IF(ISBLANK(INDIRECT(\"'\"&F947&\"'!\"&G947)),\"\",INDIRECT(\"'\"&F947&\"'!\"&G947))","v":""},{"$f":"IF(ISBLANK(INDIRECT(\"'\"&F947&\"'!\"&H947)),\"\",IFERROR(VLOOKUP(TEXT(INDIRECT(\"'\"&F947&\"'!\"&H947),\"0\"),Notes!$B$5:$C$100,2,FALSE),\"\"))","v":""},"2d","$Q$32","$R$32"]
[7258,{"$f":"Menu!$F$29","v":"X"},{"$f":"Menu!$J$29","v":2020},{"$f":"IF(ISBLANK(INDIRECT(\"'\"&F948&\"'!\"&G948)),\"\",INDIRECT(\"'\"&F948&\"'!\"&G948))","v":""},{"$f":"IF(ISBLANK(INDIRECT(\"'\"&F948&\"'!\"&H948)),\"\",IFERROR(VLOOKUP(TEXT(INDIRECT(\"'\"&F948&\"'!\"&H948),\"0\"),Notes!$B$5:$C$100,2,FALSE),\"\"))","v":""},"2d","$S$32","$T$32"]
[7259,{"$f":"Menu!$F$29","v":"X"},{"$f":"Menu!$J$29","v":2020},{"$f":"IF(ISBLANK(INDIRECT(\"'\"&F949&\"'!\"&G949)),\"\",INDIRECT(\"'\"&F949&\"'!\"&G949))","v":""},{"$f":"IF(ISBLANK(INDIRECT(\"'\"&F949&\"'!\"&H949)),\"\",IFERROR(VLOOKUP(TEXT(INDIRECT(\"'\"&F949&\"'!\"&H949),\"0\"),Notes!$B$5:$C$100,2,FALSE),\"\"))","v":""},"2d","$U$32","$V$32"]
[7260,{"$f":"Menu!$F$29","v":"X"},{"$f":"Menu!$J$29","v":2020},{"$f":"IF(ISBLANK(INDIRECT(\"'\"&F950&\"'!\"&G950)),\"\",INDIRECT(\"'\"&F950&\"'!\"&G950))","v":""},{"$f":"IF(ISBLANK(INDIRECT(\"'\"&F950&\"'!\"&H950)),\"\",IFERROR(VLOOKUP(TEXT(INDIRECT(\"'\"&F950&\"'!\"&H950),\"0\"),Notes!$B$5:$C$100,2,FALSE),\"\"))","v":""},"2d","$W$32","$X$32"]
[7261,{"$f":"Menu!$F$29","v":"X"},{"$f":"Menu!$J$29","v":2020},{"$f":"IF(ISBLANK(INDIRECT(\"'\"&F951&\"'!\"&G951)),\"\",INDIRECT(\"'\"&F951&\"'!\"&G951))","v":""},{"$f":"IF(ISBLANK(INDIRECT(\"'\"&F951&\"'!\"&H951)),\"\",IFERROR(VLOOKUP(TEXT(INDIRECT(\"'\"&F951&\"'!\"&H951),\"0\"),Notes!$B$5:$C$100,2,FALSE),\"\"))","v":""},"2d","$Y$32","$Z$32"]
[7262,{"$f":"Menu!$F$29","v":"X"},{"$f":"Menu!$J$29","v":2020},{"$f":"IF(ISBLANK(INDIRECT(\"'\"&F952&\"'!\"&G952)),\"\",INDIRECT(\"'\"&F952&\"'!\"&G952))","v":""},{"$f":"IF(ISBLANK(INDIRECT(\"'\"&F952&\"'!\"&H952)),\"\",IFERROR(VLOOKUP(TEXT(INDIRECT(\"'\"&F952&\"'!\"&H952),\"0\"),Notes!$B$5:$C$100,2,FALSE),\"\"))","v":""},"2d","$AA$32","$AB$32"]
[7263,{"$f":"Menu!$F$29","v":"X"},{"$f":"Menu!$J$29","v":2020},{"$f":"IF(ISBLANK(INDIRECT(\"'\"&F953&\"'!\"&G953)),\"\",INDIRECT(\"'\"&F953&\"'!\"&G953))","v":""},{"$f":"IF(ISBLANK(INDIRECT(\"'\"&F953&\"'!\"&H953)),\"\",IFERROR(VLOOKUP(TEXT(INDIRECT(\"'\"&F953&\"'!\"&H953),\"0\"),Notes!$B$5:$C$100,2,FALSE),\"\"))","v":""},"2d","$AC$32","$AD$32"]
[7264,{"$f":"Menu!$F$29","v":"X"},{"$f":"Menu!$J$29","v":2020},{"$f":"IF(ISBLANK(INDIRECT(\"'\"&F954&\"'!\"&G954)),\"\",INDIRECT(\"'\"&F954&\"'!\"&G954))","v":""},{"$f":"IF(ISBLANK(INDIRECT(\"'\"&F954&\"'!\"&H954)),\"\",IFERROR(VLOOKUP(TEXT(INDIRECT(\"'\"&F954&\"'!\"&H954),\"0\"),Notes!$B$5:$C$100,2,FALSE),\"\"))","v":""},"2d","$AE$32","$AF$32"]
[7265,{"$f":"Menu!$F$29","v":"X"},{"$f":"Menu!$J$29","v":2020},{"$f":"IF(ISBLANK(INDIRECT(\"'\"&F955&\"'!\"&G955)),\"\",INDIRECT(\"'\"&F955&\"'!\"&G955))","v":""},{"$f":"IF(ISBLANK(INDIRECT(\"'\"&F955&\"'!\"&H955)),\"\",IFERROR(VLOOKUP(TEXT(INDIRECT(\"'\"&F955&\"'!\"&H955),\"0\"),Notes!$B$5:$C$100,2,FALSE),\"\"))","v":""},"2d","$AG$32","$AH$32"]
[7281,{"$f":"Menu!$F$29","v":"X"},{"$f":"Menu!$J$29","v":2020},{"$f":"IF(ISBLANK(INDIRECT(\"'\"&F956&\"'!\"&G956)),\"\",INDIRECT(\"'\"&F956&\"'!\"&G956))","v":""},{"$f":"IF(ISBLANK(INDIRECT(\"'\"&F956&\"'!\"&H956)),\"\",IFERROR(VLOOKUP(TEXT(INDIRECT(\"'\"&F956&\"'!\"&H956),\"0\"),Notes!$B$5:$C$100,2,FALSE),\"\"))","v":""},"2d","$E$55","$F$55"]
[7282,{"$f":"Menu!$F$29","v":"X"},{"$f":"Menu!$J$29","v":2020},{"$f":"IF(ISBLANK(INDIRECT(\"'\"&F957&\"'!\"&G957)),\"\",INDIRECT(\"'\"&F957&\"'!\"&G957))","v":""},{"$f":"IF(ISBLANK(INDIRECT(\"'\"&F957&\"'!\"&H957)),\"\",IFERROR(VLOOKUP(TEXT(INDIRECT(\"'\"&F957&\"'!\"&H957),\"0\"),Notes!$B$5:$C$100,2,FALSE),\"\"))","v":""},"2d","$G$55","$H$55"]
[7283,{"$f":"Menu!$F$29","v":"X"},{"$f":"Menu!$J$29","v":2020},{"$f":"IF(ISBLANK(INDIRECT(\"'\"&F958&\"'!\"&G958)),\"\",INDIRECT(\"'\"&F958&\"'!\"&G958))","v":""},{"$f":"IF(ISBLANK(INDIRECT(\"'\"&F958&\"'!\"&H958)),\"\",IFERROR(VLOOKUP(TEXT(INDIRECT(\"'\"&F958&\"'!\"&H958),\"0\"),Notes!$B$5:$C$100,2,FALSE),\"\"))","v":""},"2d","$I$55","$J$55"]
[7284,{"$f":"Menu!$F$29","v":"X"},{"$f":"Menu!$J$29","v":2020},{"$f":"IF(ISBLANK(INDIRECT(\"'\"&F959&\"'!\"&G959)),\"\",INDIRECT(\"'\"&F959&\"'!\"&G959))","v":""},{"$f":"IF(ISBLANK(INDIRECT(\"'\"&F959&\"'!\"&H959)),\"\",IFERROR(VLOOKUP(TEXT(INDIRECT(\"'\"&F959&\"'!\"&H959),\"0\"),Notes!$B$5:$C$100,2,FALSE),\"\"))","v":""},"2d","$K$55","$L$55"]
[7285,{"$f":"Menu!$F$29","v":"X"},{"$f":"Menu!$J$29","v":2020},{"$f":"IF(ISBLANK(INDIRECT(\"'\"&F960&\"'!\"&G960)),\"\",INDIRECT(\"'\"&F960&\"'!\"&G960))","v":""},{"$f":"IF(ISBLANK(INDIRECT(\"'\"&F960&\"'!\"&H960)),\"\",IFERROR(VLOOKUP(TEXT(INDIRECT(\"'\"&F960&\"'!\"&H960),\"0\"),Notes!$B$5:$C$100,2,FALSE),\"\"))","v":""},"2d","$M$55","$N$55"]
[7286,{"$f":"Menu!$F$29","v":"X"},{"$f":"Menu!$J$29","v":2020},{"$f":"IF(ISBLANK(INDIRECT(\"'\"&F961&\"'!\"&G961)),\"\",INDIRECT(\"'\"&F961&\"'!\"&G961))","v":""},{"$f":"IF(ISBLANK(INDIRECT(\"'\"&F961&\"'!\"&H961)),\"\",IFERROR(VLOOKUP(TEXT(INDIRECT(\"'\"&F961&\"'!\"&H961),\"0\"),Notes!$B$5:$C$100,2,FALSE),\"\"))","v":""},"2d","$O$55","$P$55"]
[7287,{"$f":"Menu!$F$29","v":"X"},{"$f":"Menu!$J$29","v":2020},{"$f":"IF(ISBLANK(INDIRECT(\"'\"&F962&\"'!\"&G962)),\"\",INDIRECT(\"'\"&F962&\"'!\"&G962))","v":""},{"$f":"IF(ISBLANK(INDIRECT(\"'\"&F962&\"'!\"&H962)),\"\",IFERROR(VLOOKUP(TEXT(INDIRECT(\"'\"&F962&\"'!\"&H962),\"0\"),Notes!$B$5:$C$100,2,FALSE),\"\"))","v":""},"2d","$Q$55",{"$f":"IF(LEN(TRIM(MID(G962,4,10)))-LEN(SUBSTITUTE(TRIM(MID(G962,4,10)),\"$\",\"\"))=0,\"$\"&CHAR(CODE(MID(G962,2,1))+1)&\"$\"&TRIM(MID(G962,4,10)),\"$\"&MID(G962,2,1)&CHAR(CODE(MID(G962,3,1))+1)&\"$\"&TRIM(MID(G962,5,11)))","v":"$R$55"}]
[7288,{"$f":"Menu!$F$29","v":"X"},{"$f":"Menu!$J$29","v":2020},{"$f":"IF(ISBLANK(INDIRECT(\"'\"&F963&\"'!\"&G963)),\"\",INDIRECT(\"'\"&F963&\"'!\"&G963))","v":""},{"$f":"IF(ISBLANK(INDIRECT(\"'\"&F963&\"'!\"&H963)),\"\",IFERROR(VLOOKUP(TEXT(INDIRECT(\"'\"&F963&\"'!\"&H963),\"0\"),Notes!$B$5:$C$100,2,FALSE),\"\"))","v":""},"2d","$S$55","$T$55"]
[7289,{"$f":"Menu!$F$29","v":"X"},{"$f":"Menu!$J$29","v":2020},{"$f":"IF(ISBLANK(INDIRECT(\"'\"&F964&\"'!\"&G964)),\"\",INDIRECT(\"'\"&F964&\"'!\"&G964))","v":""},{"$f":"IF(ISBLANK(INDIRECT(\"'\"&F964&\"'!\"&H964)),\"\",IFERROR(VLOOKUP(TEXT(INDIRECT(\"'\"&F964&\"'!\"&H964),\"0\"),Notes!$B$5:$C$100,2,FALSE),\"\"))","v":""},"2d","$U$55","$V$55"]
[7290,{"$f":"Menu!$F$29","v":"X"},{"$f":"Menu!$J$29","v":2020},{"$f":"IF(ISBLANK(INDIRECT(\"'\"&F965&\"'!\"&G965)),\"\",INDIRECT(\"'\"&F965&\"'!\"&G965))","v":""},{"$f":"IF(ISBLANK(INDIRECT(\"'\"&F965&\"'!\"&H965)),\"\",IFERROR(VLOOKUP(TEXT(INDIRECT(\"'\"&F965&\"'!\"&H965),\"0\"),Notes!$B$5:$C$100,2,FALSE),\"\"))","v":""},"2d","$W$55","$X$55"]
[7291,{"$f":"Menu!$F$29","v":"X"},{"$f":"Menu!$J$29","v":2020},{"$f":"IF(ISBLANK(INDIRECT(\"'\"&F966&\"'!\"&G966)),\"\",INDIRECT(\"'\"&F966&\"'!\"&G966))","v":""},{"$f":"IF(ISBLANK(INDIRECT(\"'\"&F966&\"'!\"&H966)),\"\",IFERROR(VLOOKUP(TEXT(INDIRECT(\"'\"&F966&\"'!\"&H966),\"0\"),Notes!$B$5:$C$100,2,FALSE),\"\"))","v":""},"2d","$Y$55","$Z$55"]
[7292,{"$f":"Menu!$F$29","v":"X"},{"$f":"Menu!$J$29","v":2020},{"$f":"IF(ISBLANK(INDIRECT(\"'\"&F967&\"'!\"&G967)),\"\",INDIRECT(\"'\"&F967&\"'!\"&G967))","v":""},{"$f":"IF(ISBLANK(INDIRECT(\"'\"&F967&\"'!\"&H967)),\"\",IFERROR(VLOOKUP(TEXT(INDIRECT(\"'\"&F967&\"'!\"&H967),\"0\"),Notes!$B$5:$C$100,2,FALSE),\"\"))","v":""},"2d","$AA$55","$AB$55"]
[7293,{"$f":"Menu!$F$29","v":"X"},{"$f":"Menu!$J$29","v":2020},{"$f":"IF(ISBLANK(INDIRECT(\"'\"&F968&\"'!\"&G968)),\"\",INDIRECT(\"'\"&F968&\"'!\"&G968))","v":""},{"$f":"IF(ISBLANK(INDIRECT(\"'\"&F968&\"'!\"&H968)),\"\",IFERROR(VLOOKUP(TEXT(INDIRECT(\"'\"&F968&\"'!\"&H968),\"0\"),Notes!$B$5:$C$100,2,FALSE),\"\"))","v":""},"2d","$AC$55","$AD$55"]
[7294,{"$f":"Menu!$F$29","v":"X"},{"$f":"Menu!$J$29","v":2020},{"$f":"IF(ISBLANK(INDIRECT(\"'\"&F969&\"'!\"&G969)),\"\",INDIRECT(\"'\"&F969&\"'!\"&G969))","v":""},{"$f":"IF(ISBLANK(INDIRECT(\"'\"&F969&\"'!\"&H969)),\"\",IFERROR(VLOOKUP(TEXT(INDIRECT(\"'\"&F969&\"'!\"&H969),\"0\"),Notes!$B$5:$C$100,2,FALSE),\"\"))","v":""},"2d","$AE$55","$AF$55"]
[7295,{"$f":"Menu!$F$29","v":"X"},{"$f":"Menu!$J$29","v":2020},{"$f":"IF(ISBLANK(INDIRECT(\"'\"&F970&\"'!\"&G970)),\"\",INDIRECT(\"'\"&F970&\"'!\"&G970))","v":""},{"$f":"IF(ISBLANK(INDIRECT(\"'\"&F970&\"'!\"&H970)),\"\",IFERROR(VLOOKUP(TEXT(INDIRECT(\"'\"&F970&\"'!\"&H970),\"0\"),Notes!$B$5:$C$100,2,FALSE),\"\"))","v":""},"2d","$AG$55","$AH$55"]
[7296,{"$f":"Menu!$F$29","v":"X"},{"$f":"Menu!$J$29","v":2020},{"$f":"IF(ISBLANK(INDIRECT(\"'\"&F971&\"'!\"&G971)),\"\",INDIRECT(\"'\"&F971&\"'!\"&G971))","v":""},{"$f":"IF(ISBLANK(INDIRECT(\"'\"&F971&\"'!\"&H971)),\"\",IFERROR(VLOOKUP(TEXT(INDIRECT(\"'\"&F971&\"'!\"&H971),\"0\"),Notes!$B$5:$C$100,2,FALSE),\"\"))","v":""},"2d","$E$53","$F$53"]
[7297,{"$f":"Menu!$F$29","v":"X"},{"$f":"Menu!$J$29","v":2020},{"$f":"IF(ISBLANK(INDIRECT(\"'\"&F972&\"'!\"&G972)),\"\",INDIRECT(\"'\"&F972&\"'!\"&G972))","v":""},{"$f":"IF(ISBLANK(INDIRECT(\"'\"&F972&\"'!\"&H972)),\"\",IFERROR(VLOOKUP(TEXT(INDIRECT(\"'\"&F972&\"'!\"&H972),\"0\"),Notes!$B$5:$C$100,2,FALSE),\"\"))","v":""},"2d","$G$53","$H$53"]
[7298,{"$f":"Menu!$F$29","v":"X"},{"$f":"Menu!$J$29","v":2020},{"$f":"IF(ISBLANK(INDIRECT(\"'\"&F973&\"'!\"&G973)),\"\",INDIRECT(\"'\"&F973&\"'!\"&G973))","v":""},{"$f":"IF(ISBLANK(INDIRECT(\"'\"&F973&\"'!\"&H973)),\"\",IFERROR(VLOOKUP(TEXT(INDIRECT(\"'\"&F973&\"'!\"&H973),\"0\"),Notes!$B$5:$C$100,2,FALSE),\"\"))","v":""},"2d","$I$53","$J$53"]
[7299,{"$f":"Menu!$F$29","v":"X"},{"$f":"Menu!$J$29","v":2020},{"$f":"IF(ISBLANK(INDIRECT(\"'\"&F974&\"'!\"&G974)),\"\",INDIRECT(\"'\"&F974&\"'!\"&G974))","v":""},{"$f":"IF(ISBLANK(INDIRECT(\"'\"&F974&\"'!\"&H974)),\"\",IFERROR(VLOOKUP(TEXT(INDIRECT(\"'\"&F974&\"'!\"&H974),\"0\"),Notes!$B$5:$C$100,2,FALSE),\"\"))","v":""},"2d","$K$53","$L$53"]
[7300,{"$f":"Menu!$F$29","v":"X"},{"$f":"Menu!$J$29","v":2020},{"$f":"IF(ISBLANK(INDIRECT(\"'\"&F975&\"'!\"&G975)),\"\",INDIRECT(\"'\"&F975&\"'!\"&G975))","v":""},{"$f":"IF(ISBLANK(INDIRECT(\"'\"&F975&\"'!\"&H975)),\"\",IFERROR(VLOOKUP(TEXT(INDIRECT(\"'\"&F975&\"'!\"&H975),\"0\"),Notes!$B$5:$C$100,2,FALSE),\"\"))","v":""},"2d","$M$53","$N$53"]
[7301,{"$f":"Menu!$F$29","v":"X"},{"$f":"Menu!$J$29","v":2020},{"$f":"IF(ISBLANK(INDIRECT(\"'\"&F976&\"'!\"&G976)),\"\",INDIRECT(\"'\"&F976&\"'!\"&G976))","v":""},{"$f":"IF(ISBLANK(INDIRECT(\"'\"&F976&\"'!\"&H976)),\"\",IFERROR(VLOOKUP(TEXT(INDIRECT(\"'\"&F976&\"'!\"&H976),\"0\"),Notes!$B$5:$C$100,2,FALSE),\"\"))","v":""},"2d","$O$53","$P$53"]
[7302,{"$f":"Menu!$F$29","v":"X"},{"$f":"Menu!$J$29","v":2020},{"$f":"IF(ISBLANK(INDIRECT(\"'\"&F977&\"'!\"&G977)),\"\",INDIRECT(\"'\"&F977&\"'!\"&G977))","v":""},{"$f":"IF(ISBLANK(INDIRECT(\"'\"&F977&\"'!\"&H977)),\"\",IFERROR(VLOOKUP(TEXT(INDIRECT(\"'\"&F977&\"'!\"&H977),\"0\"),Notes!$B$5:$C$100,2,FALSE),\"\"))","v":""},"2d","$Q$53","$R$53"]
[7303,{"$f":"Menu!$F$29","v":"X"},{"$f":"Menu!$J$29","v":2020},{"$f":"IF(ISBLANK(INDIRECT(\"'\"&F978&\"'!\"&G978)),\"\",INDIRECT(\"'\"&F978&\"'!\"&G978))","v":""},{"$f":"IF(ISBLANK(INDIRECT(\"'\"&F978&\"'!\"&H978)),\"\",IFERROR(VLOOKUP(TEXT(INDIRECT(\"'\"&F978&\"'!\"&H978),\"0\"),Notes!$B$5:$C$100,2,FALSE),\"\"))","v":""},"2d","$S$53","$T$53"]
[7304,{"$f":"Menu!$F$29","v":"X"},{"$f":"Menu!$J$29","v":2020},{"$f":"IF(ISBLANK(INDIRECT(\"'\"&F979&\"'!\"&G979)),\"\",INDIRECT(\"'\"&F979&\"'!\"&G979))","v":""},{"$f":"IF(ISBLANK(INDIRECT(\"'\"&F979&\"'!\"&H979)),\"\",IFERROR(VLOOKUP(TEXT(INDIRECT(\"'\"&F979&\"'!\"&H979),\"0\"),Notes!$B$5:$C$100,2,FALSE),\"\"))","v":""},"2d","$U$53","$V$53"]
[7305,{"$f":"Menu!$F$29","v":"X"},{"$f":"Menu!$J$29","v":2020},{"$f":"IF(ISBLANK(INDIRECT(\"'\"&F980&\"'!\"&G980)),\"\",INDIRECT(\"'\"&F980&\"'!\"&G980))","v":""},{"$f":"IF(ISBLANK(INDIRECT(\"'\"&F980&\"'!\"&H980)),\"\",IFERROR(VLOOKUP(TEXT(INDIRECT(\"'\"&F980&\"'!\"&H980),\"0\"),Notes!$B$5:$C$100,2,FALSE),\"\"))","v":""},"2d","$W$53","$X$53"]
[7306,{"$f":"Menu!$F$29","v":"X"},{"$f":"Menu!$J$29","v":2020},{"$f":"IF(ISBLANK(INDIRECT(\"'\"&F981&\"'!\"&G981)),\"\",INDIRECT(\"'\"&F981&\"'!\"&G981))","v":""},{"$f":"IF(ISBLANK(INDIRECT(\"'\"&F981&\"'!\"&H981)),\"\",IFERROR(VLOOKUP(TEXT(INDIRECT(\"'\"&F981&\"'!\"&H981),\"0\"),Notes!$B$5:$C$100,2,FALSE),\"\"))","v":""},"2d","$Y$53","$Z$53"]
[7307,{"$f":"Menu!$F$29","v":"X"},{"$f":"Menu!$J$29","v":2020},{"$f":"IF(ISBLANK(INDIRECT(\"'\"&F982&\"'!\"&G982)),\"\",INDIRECT(\"'\"&F982&\"'!\"&G982))","v":""},{"$f":"IF(ISBLANK(INDIRECT(\"'\"&F982&\"'!\"&H982)),\"\",IFERROR(VLOOKUP(TEXT(INDIRECT(\"'\"&F982&\"'!\"&H982),\"0\"),Notes!$B$5:$C$100,2,FALSE),\"\"))","v":""},"2d","$AA$53","$AB$53"]
[7308,{"$f":"Menu!$F$29","v":"X"},{"$f":"Menu!$J$29","v":2020},{"$f":"IF(ISBLANK(INDIRECT(\"'\"&F983&\"'!\"&G983)),\"\",INDIRECT(\"'\"&F983&\"'!\"&G983))","v":""},{"$f":"IF(ISBLANK(INDIRECT(\"'\"&F983&\"'!\"&H983)),\"\",IFERROR(VLOOKUP(TEXT(INDIRECT(\"'\"&F983&\"'!\"&H983),\"0\"),Notes!$B$5:$C$100,2,FALSE),\"\"))","v":""},"2d","$AC$53","$AD$53"]
[7309,{"$f":"Menu!$F$29","v":"X"},{"$f":"Menu!$J$29","v":2020},{"$f":"IF(ISBLANK(INDIRECT(\"'\"&F984&\"'!\"&G984)),\"\",INDIRECT(\"'\"&F984&\"'!\"&G984))","v":""},{"$f":"IF(ISBLANK(INDIRECT(\"'\"&F984&\"'!\"&H984)),\"\",IFERROR(VLOOKUP(TEXT(INDIRECT(\"'\"&F984&\"'!\"&H984),\"0\"),Notes!$B$5:$C$100,2,FALSE),\"\"))","v":""},"2d","$AE$53","$AF$53"]
[7310,{"$f":"Menu!$F$29","v":"X"},{"$f":"Menu!$J$29","v":2020},{"$f":"IF(ISBLANK(INDIRECT(\"'\"&F985&\"'!\"&G985)),\"\",INDIRECT(\"'\"&F985&\"'!\"&G985))","v":""},{"$f":"IF(ISBLANK(INDIRECT(\"'\"&F985&\"'!\"&H985)),\"\",IFERROR(VLOOKUP(TEXT(INDIRECT(\"'\"&F985&\"'!\"&H985),\"0\"),Notes!$B$5:$C$100,2,FALSE),\"\"))","v":""},"2d","$AG$53","$AH$53"]
[7371,{"$f":"Menu!$F$29","v":"X"},{"$f":"Menu!$J$29","v":2020},{"$f":"IF(ISBLANK(INDIRECT(\"'\"&F986&\"'!\"&G986)),\"\",INDIRECT(\"'\"&F986&\"'!\"&G986))","v":""},{"$f":"IF(ISBLANK(INDIRECT(\"'\"&F986&\"'!\"&H986)),\"\",IFERROR(VLOOKUP(TEXT(INDIRECT(\"'\"&F986&\"'!\"&H986),\"0\"),Notes!$B$5:$C$100,2,FALSE),\"\"))","v":""},"2d","$E$26","$F$26"]
[7372,{"$f":"Menu!$F$29","v":"X"},{"$f":"Menu!$J$29","v":2020},{"$f":"IF(ISBLANK(INDIRECT(\"'\"&F987&\"'!\"&G987)),\"\",INDIRECT(\"'\"&F987&\"'!\"&G987))","v":""},{"$f":"IF(ISBLANK(INDIRECT(\"'\"&F987&\"'!\"&H987)),\"\",IFERROR(VLOOKUP(TEXT(INDIRECT(\"'\"&F987&\"'!\"&H987),\"0\"),Notes!$B$5:$C$100,2,FALSE),\"\"))","v":""},"2d","$G$26","$H$26"]
[7373,{"$f":"Menu!$F$29","v":"X"},{"$f":"Menu!$J$29","v":2020},{"$f":"IF(ISBLANK(INDIRECT(\"'\"&F988&\"'!\"&G988)),\"\",INDIRECT(\"'\"&F988&\"'!\"&G988))","v":""},{"$f":"IF(ISBLANK(INDIRECT(\"'\"&F988&\"'!\"&H988)),\"\",IFERROR(VLOOKUP(TEXT(INDIRECT(\"'\"&F988&\"'!\"&H988),\"0\"),Notes!$B$5:$C$100,2,FALSE),\"\"))","v":""},"2d","$I$26","$J$26"]
[7374,{"$f":"Menu!$F$29","v":"X"},{"$f":"Menu!$J$29","v":2020},{"$f":"IF(ISBLANK(INDIRECT(\"'\"&F989&\"'!\"&G989)),\"\",INDIRECT(\"'\"&F989&\"'!\"&G989))","v":""},{"$f":"IF(ISBLANK(INDIRECT(\"'\"&F989&\"'!\"&H989)),\"\",IFERROR(VLOOKUP(TEXT(INDIRECT(\"'\"&F989&\"'!\"&H989),\"0\"),Notes!$B$5:$C$100,2,FALSE),\"\"))","v":""},"2d","$K$26","$L$26"]
[7375,{"$f":"Menu!$F$29","v":"X"},{"$f":"Menu!$J$29","v":2020},{"$f":"IF(ISBLANK(INDIRECT(\"'\"&F990&\"'!\"&G990)),\"\",INDIRECT(\"'\"&F990&\"'!\"&G990))","v":""},{"$f":"IF(ISBLANK(INDIRECT(\"'\"&F990&\"'!\"&H990)),\"\",IFERROR(VLOOKUP(TEXT(INDIRECT(\"'\"&F990&\"'!\"&H990),\"0\"),Notes!$B$5:$C$100,2,FALSE),\"\"))","v":""},"2d","$M$26","$N$26"]
[7376,{"$f":"Menu!$F$29","v":"X"},{"$f":"Menu!$J$29","v":2020},{"$f":"IF(ISBLANK(INDIRECT(\"'\"&F991&\"'!\"&G991)),\"\",INDIRECT(\"'\"&F991&\"'!\"&G991))","v":""},{"$f":"IF(ISBLANK(INDIRECT(\"'\"&F991&\"'!\"&H991)),\"\",IFERROR(VLOOKUP(TEXT(INDIRECT(\"'\"&F991&\"'!\"&H991),\"0\"),Notes!$B$5:$C$100,2,FALSE),\"\"))","v":""},"2d","$O$26","$P$26"]
[7377,{"$f":"Menu!$F$29","v":"X"},{"$f":"Menu!$J$29","v":2020},{"$f":"IF(ISBLANK(INDIRECT(\"'\"&F992&\"'!\"&G992)),\"\",INDIRECT(\"'\"&F992&\"'!\"&G992))","v":""},{"$f":"IF(ISBLANK(INDIRECT(\"'\"&F992&\"'!\"&H992)),\"\",IFERROR(VLOOKUP(TEXT(INDIRECT(\"'\"&F992&\"'!\"&H992),\"0\"),Notes!$B$5:$C$100,2,FALSE),\"\"))","v":""},"2d","$Q$26","$R$26"]
[7378,{"$f":"Menu!$F$29","v":"X"},{"$f":"Menu!$J$29","v":2020},{"$f":"IF(ISBLANK(INDIRECT(\"'\"&F993&\"'!\"&G993)),\"\",INDIRECT(\"'\"&F993&\"'!\"&G993))","v":""},{"$f":"IF(ISBLANK(INDIRECT(\"'\"&F993&\"'!\"&H993)),\"\",IFERROR(VLOOKUP(TEXT(INDIRECT(\"'\"&F993&\"'!\"&H993),\"0\"),Notes!$B$5:$C$100,2,FALSE),\"\"))","v":""},"2d","$S$26","$T$26"]
[7379,{"$f":"Menu!$F$29","v":"X"},{"$f":"Menu!$J$29","v":2020},{"$f":"IF(ISBLANK(INDIRECT(\"'\"&F994&\"'!\"&G994)),\"\",INDIRECT(\"'\"&F994&\"'!\"&G994))","v":""},{"$f":"IF(ISBLANK(INDIRECT(\"'\"&F994&\"'!\"&H994)),\"\",IFERROR(VLOOKUP(TEXT(INDIRECT(\"'\"&F994&\"'!\"&H994),\"0\"),Notes!$B$5:$C$100,2,FALSE),\"\"))","v":""},"2d","$U$26","$V$26"]
[7380,{"$f":"Menu!$F$29","v":"X"},{"$f":"Menu!$J$29","v":2020},{"$f":"IF(ISBLANK(INDIRECT(\"'\"&F995&\"'!\"&G995)),\"\",INDIRECT(\"'\"&F995&\"'!\"&G995))","v":""},{"$f":"IF(ISBLANK(INDIRECT(\"'\"&F995&\"'!\"&H995)),\"\",IFERROR(VLOOKUP(TEXT(INDIRECT(\"'\"&F995&\"'!\"&H995),\"0\"),Notes!$B$5:$C$100,2,FALSE),\"\"))","v":""},"2d","$W$26","$X$26"]
[7381,{"$f":"Menu!$F$29","v":"X"},{"$f":"Menu!$J$29","v":2020},{"$f":"IF(ISBLANK(INDIRECT(\"'\"&F996&\"'!\"&G996)),\"\",INDIRECT(\"'\"&F996&\"'!\"&G996))","v":""},{"$f":"IF(ISBLANK(INDIRECT(\"'\"&F996&\"'!\"&H996)),\"\",IFERROR(VLOOKUP(TEXT(INDIRECT(\"'\"&F996&\"'!\"&H996),\"0\"),Notes!$B$5:$C$100,2,FALSE),\"\"))","v":""},"2d","$Y$26","$Z$26"]
[7382,{"$f":"Menu!$F$29","v":"X"},{"$f":"Menu!$J$29","v":2020},{"$f":"IF(ISBLANK(INDIRECT(\"'\"&F997&\"'!\"&G997)),\"\",INDIRECT(\"'\"&F997&\"'!\"&G997))","v":""},{"$f":"IF(ISBLANK(INDIRECT(\"'\"&F997&\"'!\"&H997)),\"\",IFERROR(VLOOKUP(TEXT(INDIRECT(\"'\"&F997&\"'!\"&H997),\"0\"),Notes!$B$5:$C$100,2,FALSE),\"\"))","v":""},"2d","$AA$26","$AB$26"]
[7383,{"$f":"Menu!$F$29","v":"X"},{"$f":"Menu!$J$29","v":2020},{"$f":"IF(ISBLANK(INDIRECT(\"'\"&F998&\"'!\"&G998)),\"\",INDIRECT(\"'\"&F998&\"'!\"&G998))","v":""},{"$f":"IF(ISBLANK(INDIRECT(\"'\"&F998&\"'!\"&H998)),\"\",IFERROR(VLOOKUP(TEXT(INDIRECT(\"'\"&F998&\"'!\"&H998),\"0\"),Notes!$B$5:$C$100,2,FALSE),\"\"))","v":""},"2d","$AC$26","$AD$26"]
[7384,{"$f":"Menu!$F$29","v":"X"},{"$f":"Menu!$J$29","v":2020},{"$f":"IF(ISBLANK(INDIRECT(\"'\"&F999&\"'!\"&G999)),\"\",INDIRECT(\"'\"&F999&\"'!\"&G999))","v":""},{"$f":"IF(ISBLANK(INDIRECT(\"'\"&F999&\"'!\"&H999)),\"\",IFERROR(VLOOKUP(TEXT(INDIRECT(\"'\"&F999&\"'!\"&H999),\"0\"),Notes!$B$5:$C$100,2,FALSE),\"\"))","v":""},"2d","$AE$26","$AF$26"]
[7385,{"$f":"Menu!$F$29","v":"X"},{"$f":"Menu!$J$29","v":2020},{"$f":"IF(ISBLANK(INDIRECT(\"'\"&F1000&\"'!\"&G1000)),\"\",INDIRECT(\"'\"&F1000&\"'!\"&G1000))","v":""},{"$f":"IF(ISBLANK(INDIRECT(\"'\"&F1000&\"'!\"&H1000)),\"\",IFERROR(VLOOKUP(TEXT(INDIRECT(\"'\"&F1000&\"'!\"&H1000),\"0\"),Notes!$B$5:$C$100,2,FALSE),\"\"))","v":""},"2d","$AG$26","$AH$26"]
[7386,{"$f":"Menu!$F$29","v":"X"},{"$f":"Menu!$J$29","v":2020},{"$f":"IF(ISBLANK(INDIRECT(\"'\"&F1001&\"'!\"&G1001)),\"\",INDIRECT(\"'\"&F1001&\"'!\"&G1001))","v":""},{"$f":"IF(ISBLANK(INDIRECT(\"'\"&F1001&\"'!\"&H1001)),\"\",IFERROR(VLOOKUP(TEXT(INDIRECT(\"'\"&F1001&\"'!\"&H1001),\"0\"),Notes!$B$5:$C$100,2,FALSE),\"\"))","v":""},"2d","$E$15","$F$15"]
[7387,{"$f":"Menu!$F$29","v":"X"},{"$f":"Menu!$J$29","v":2020},{"$f":"IF(ISBLANK(INDIRECT(\"'\"&F1002&\"'!\"&G1002)),\"\",INDIRECT(\"'\"&F1002&\"'!\"&G1002))","v":""},{"$f":"IF(ISBLANK(INDIRECT(\"'\"&F1002&\"'!\"&H1002)),\"\",IFERROR(VLOOKUP(TEXT(INDIRECT(\"'\"&F1002&\"'!\"&H1002),\"0\"),Notes!$B$5:$C$100,2,FALSE),\"\"))","v":""},"2d","$G$15","$H$15"]
[7388,{"$f":"Menu!$F$29","v":"X"},{"$f":"Menu!$J$29","v":2020},{"$f":"IF(ISBLANK(INDIRECT(\"'\"&F1003&\"'!\"&G1003)),\"\",INDIRECT(\"'\"&F1003&\"'!\"&G1003))","v":""},{"$f":"IF(ISBLANK(INDIRECT(\"'\"&F1003&\"'!\"&H1003)),\"\",IFERROR(VLOOKUP(TEXT(INDIRECT(\"'\"&F1003&\"'!\"&H1003),\"0\"),Notes!$B$5:$C$100,2,FALSE),\"\"))","v":""},"2d","$I$15","$J$15"]
[7389,{"$f":"Menu!$F$29","v":"X"},{"$f":"Menu!$J$29","v":2020},{"$f":"IF(ISBLANK(INDIRECT(\"'\"&F1004&\"'!\"&G1004)),\"\",INDIRECT(\"'\"&F1004&\"'!\"&G1004))","v":""},{"$f":"IF(ISBLANK(INDIRECT(\"'\"&F1004&\"'!\"&H1004)),\"\",IFERROR(VLOOKUP(TEXT(INDIRECT(\"'\"&F1004&\"'!\"&H1004),\"0\"),Notes!$B$5:$C$100,2,FALSE),\"\"))","v":""},"2d","$K$15","$L$15"]
[7390,{"$f":"Menu!$F$29","v":"X"},{"$f":"Menu!$J$29","v":2020},{"$f":"IF(ISBLANK(INDIRECT(\"'\"&F1005&\"'!\"&G1005)),\"\",INDIRECT(\"'\"&F1005&\"'!\"&G1005))","v":""},{"$f":"IF(ISBLANK(INDIRECT(\"'\"&F1005&\"'!\"&H1005)),\"\",IFERROR(VLOOKUP(TEXT(INDIRECT(\"'\"&F1005&\"'!\"&H1005),\"0\"),Notes!$B$5:$C$100,2,FALSE),\"\"))","v":""},"2d","$M$15","$N$15"]
[7391,{"$f":"Menu!$F$29","v":"X"},{"$f":"Menu!$J$29","v":2020},{"$f":"IF(ISBLANK(INDIRECT(\"'\"&F1006&\"'!\"&G1006)),\"\",INDIRECT(\"'\"&F1006&\"'!\"&G1006))","v":""},{"$f":"IF(ISBLANK(INDIRECT(\"'\"&F1006&\"'!\"&H1006)),\"\",IFERROR(VLOOKUP(TEXT(INDIRECT(\"'\"&F1006&\"'!\"&H1006),\"0\"),Notes!$B$5:$C$100,2,FALSE),\"\"))","v":""},"2d","$O$15","$P$15"]
[7392,{"$f":"Menu!$F$29","v":"X"},{"$f":"Menu!$J$29","v":2020},{"$f":"IF(ISBLANK(INDIRECT(\"'\"&F1007&\"'!\"&G1007)),\"\",INDIRECT(\"'\"&F1007&\"'!\"&G1007))","v":""},{"$f":"IF(ISBLANK(INDIRECT(\"'\"&F1007&\"'!\"&H1007)),\"\",IFERROR(VLOOKUP(TEXT(INDIRECT(\"'\"&F1007&\"'!\"&H1007),\"0\"),Notes!$B$5:$C$100,2,FALSE),\"\"))","v":""},"2d","$Q$15","$R$15"]
[7393,{"$f":"Menu!$F$29","v":"X"},{"$f":"Menu!$J$29","v":2020},{"$f":"IF(ISBLANK(INDIRECT(\"'\"&F1008&\"'!\"&G1008)),\"\",INDIRECT(\"'\"&F1008&\"'!\"&G1008))","v":""},{"$f":"IF(ISBLANK(INDIRECT(\"'\"&F1008&\"'!\"&H1008)),\"\",IFERROR(VLOOKUP(TEXT(INDIRECT(\"'\"&F1008&\"'!\"&H1008),\"0\"),Notes!$B$5:$C$100,2,FALSE),\"\"))","v":""},"2d","$S$15","$T$15"]
[7394,{"$f":"Menu!$F$29","v":"X"},{"$f":"Menu!$J$29","v":2020},{"$f":"IF(ISBLANK(INDIRECT(\"'\"&F1009&\"'!\"&G1009)),\"\",INDIRECT(\"'\"&F1009&\"'!\"&G1009))","v":""},{"$f":"IF(ISBLANK(INDIRECT(\"'\"&F1009&\"'!\"&H1009)),\"\",IFERROR(VLOOKUP(TEXT(INDIRECT(\"'\"&F1009&\"'!\"&H1009),\"0\"),Notes!$B$5:$C$100,2,FALSE),\"\"))","v":""},"2d","$U$15","$V$15"]
[7395,{"$f":"Menu!$F$29","v":"X"},{"$f":"Menu!$J$29","v":2020},{"$f":"IF(ISBLANK(INDIRECT(\"'\"&F1010&\"'!\"&G1010)),\"\",INDIRECT(\"'\"&F1010&\"'!\"&G1010))","v":""},{"$f":"IF(ISBLANK(INDIRECT(\"'\"&F1010&\"'!\"&H1010)),\"\",IFERROR(VLOOKUP(TEXT(INDIRECT(\"'\"&F1010&\"'!\"&H1010),\"0\"),Notes!$B$5:$C$100,2,FALSE),\"\"))","v":""},"2d","$W$15","$X$15"]
[7396,{"$f":"Menu!$F$29","v":"X"},{"$f":"Menu!$J$29","v":2020},{"$f":"IF(ISBLANK(INDIRECT(\"'\"&F1011&\"'!\"&G1011)),\"\",INDIRECT(\"'\"&F1011&\"'!\"&G1011))","v":""},{"$f":"IF(ISBLANK(INDIRECT(\"'\"&F1011&\"'!\"&H1011)),\"\",IFERROR(VLOOKUP(TEXT(INDIRECT(\"'\"&F1011&\"'!\"&H1011),\"0\"),Notes!$B$5:$C$100,2,FALSE),\"\"))","v":""},"2d","$Y$15","$Z$15"]
[7397,{"$f":"Menu!$F$29","v":"X"},{"$f":"Menu!$J$29","v":2020},{"$f":"IF(ISBLANK(INDIRECT(\"'\"&F1012&\"'!\"&G1012)),\"\",INDIRECT(\"'\"&F1012&\"'!\"&G1012))","v":""},{"$f":"IF(ISBLANK(INDIRECT(\"'\"&F1012&\"'!\"&H1012)),\"\",IFERROR(VLOOKUP(TEXT(INDIRECT(\"'\"&F1012&\"'!\"&H1012),\"0\"),Notes!$B$5:$C$100,2,FALSE),\"\"))","v":""},"2d","$AA$15","$AB$15"]
[7398,{"$f":"Menu!$F$29","v":"X"},{"$f":"Menu!$J$29","v":2020},{"$f":"IF(ISBLANK(INDIRECT(\"'\"&F1013&\"'!\"&G1013)),\"\",INDIRECT(\"'\"&F1013&\"'!\"&G1013))","v":""},{"$f":"IF(ISBLANK(INDIRECT(\"'\"&F1013&\"'!\"&H1013)),\"\",IFERROR(VLOOKUP(TEXT(INDIRECT(\"'\"&F1013&\"'!\"&H1013),\"0\"),Notes!$B$5:$C$100,2,FALSE),\"\"))","v":""},"2d","$AC$15","$AD$15"]
[7399,{"$f":"Menu!$F$29","v":"X"},{"$f":"Menu!$J$29","v":2020},{"$f":"IF(ISBLANK(INDIRECT(\"'\"&F1014&\"'!\"&G1014)),\"\",INDIRECT(\"'\"&F1014&\"'!\"&G1014))","v":""},{"$f":"IF(ISBLANK(INDIRECT(\"'\"&F1014&\"'!\"&H1014)),\"\",IFERROR(VLOOKUP(TEXT(INDIRECT(\"'\"&F1014&\"'!\"&H1014),\"0\"),Notes!$B$5:$C$100,2,FALSE),\"\"))","v":""},"2d","$AE$15","$AF$15"]
[7400,{"$f":"Menu!$F$29","v":"X"},{"$f":"Menu!$J$29","v":2020},{"$f":"IF(ISBLANK(INDIRECT(\"'\"&F1015&\"'!\"&G1015)),\"\",INDIRECT(\"'\"&F1015&\"'!\"&G1015))","v":""},{"$f":"IF(ISBLANK(INDIRECT(\"'\"&F1015&\"'!\"&H1015)),\"\",IFERROR(VLOOKUP(TEXT(INDIRECT(\"'\"&F1015&\"'!\"&H1015),\"0\"),Notes!$B$5:$C$100,2,FALSE),\"\"))","v":""},"2d","$AG$15","$AH$15"]
[7416,{"$f":"Menu!$F$29","v":"X"},{"$f":"Menu!$J$29","v":2020},{"$f":"IF(ISBLANK(INDIRECT(\"'\"&F1016&\"'!\"&G1016)),\"\",INDIRECT(\"'\"&F1016&\"'!\"&G1016))","v":""},{"$f":"IF(ISBLANK(INDIRECT(\"'\"&F1016&\"'!\"&H1016)),\"\",IFERROR(VLOOKUP(TEXT(INDIRECT(\"'\"&F1016&\"'!\"&H1016),\"0\"),Notes!$B$5:$C$100,2,FALSE),\"\"))","v":""},"2d","$E$72","$F$72"]
[7417,{"$f":"Menu!$F$29","v":"X"},{"$f":"Menu!$J$29","v":2020},{"$f":"IF(ISBLANK(INDIRECT(\"'\"&F1017&\"'!\"&G1017)),\"\",INDIRECT(\"'\"&F1017&\"'!\"&G1017))","v":""},{"$f":"IF(ISBLANK(INDIRECT(\"'\"&F1017&\"'!\"&H1017)),\"\",IFERROR(VLOOKUP(TEXT(INDIRECT(\"'\"&F1017&\"'!\"&H1017),\"0\"),Notes!$B$5:$C$100,2,FALSE),\"\"))","v":""},"2d","$G$72","$H$72"]
[7418,{"$f":"Menu!$F$29","v":"X"},{"$f":"Menu!$J$29","v":2020},{"$f":"IF(ISBLANK(INDIRECT(\"'\"&F1018&\"'!\"&G1018)),\"\",INDIRECT(\"'\"&F1018&\"'!\"&G1018))","v":""},{"$f":"IF(ISBLANK(INDIRECT(\"'\"&F1018&\"'!\"&H1018)),\"\",IFERROR(VLOOKUP(TEXT(INDIRECT(\"'\"&F1018&\"'!\"&H1018),\"0\"),Notes!$B$5:$C$100,2,FALSE),\"\"))","v":""},"2d","$I$72","$J$72"]
[7419,{"$f":"Menu!$F$29","v":"X"},{"$f":"Menu!$J$29","v":2020},{"$f":"IF(ISBLANK(INDIRECT(\"'\"&F1019&\"'!\"&G1019)),\"\",INDIRECT(\"'\"&F1019&\"'!\"&G1019))","v":""},{"$f":"IF(ISBLANK(INDIRECT(\"'\"&F1019&\"'!\"&H1019)),\"\",IFERROR(VLOOKUP(TEXT(INDIRECT(\"'\"&F1019&\"'!\"&H1019),\"0\"),Notes!$B$5:$C$100,2,FALSE),\"\"))","v":""},"2d","$K$72","$L$72"]
[7420,{"$f":"Menu!$F$29","v":"X"},{"$f":"Menu!$J$29","v":2020},{"$f":"IF(ISBLANK(INDIRECT(\"'\"&F1020&\"'!\"&G1020)),\"\",INDIRECT(\"'\"&F1020&\"'!\"&G1020))","v":""},{"$f":"IF(ISBLANK(INDIRECT(\"'\"&F1020&\"'!\"&H1020)),\"\",IFERROR(VLOOKUP(TEXT(INDIRECT(\"'\"&F1020&\"'!\"&H1020),\"0\"),Notes!$B$5:$C$100,2,FALSE),\"\"))","v":""},"2d","$M$72","$N$72"]
[7421,{"$f":"Menu!$F$29","v":"X"},{"$f":"Menu!$J$29","v":2020},{"$f":"IF(ISBLANK(INDIRECT(\"'\"&F1021&\"'!\"&G1021)),\"\",INDIRECT(\"'\"&F1021&\"'!\"&G1021))","v":""},{"$f":"IF(ISBLANK(INDIRECT(\"'\"&F1021&\"'!\"&H1021)),\"\",IFERROR(VLOOKUP(TEXT(INDIRECT(\"'\"&F1021&\"'!\"&H1021),\"0\"),Notes!$B$5:$C$100,2,FALSE),\"\"))","v":""},"2d","$O$72","$P$72"]
[7422,{"$f":"Menu!$F$29","v":"X"},{"$f":"Menu!$J$29","v":2020},{"$f":"IF(ISBLANK(INDIRECT(\"'\"&F1022&\"'!\"&G1022)),\"\",INDIRECT(\"'\"&F1022&\"'!\"&G1022))","v":""},{"$f":"IF(ISBLANK(INDIRECT(\"'\"&F1022&\"'!\"&H1022)),\"\",IFERROR(VLOOKUP(TEXT(INDIRECT(\"'\"&F1022&\"'!\"&H1022),\"0\"),Notes!$B$5:$C$100,2,FALSE),\"\"))","v":""},"2d","$Q$72","$R$72"]
[7423,{"$f":"Menu!$F$29","v":"X"},{"$f":"Menu!$J$29","v":2020},{"$f":"IF(ISBLANK(INDIRECT(\"'\"&F1023&\"'!\"&G1023)),\"\",INDIRECT(\"'\"&F1023&\"'!\"&G1023))","v":""},{"$f":"IF(ISBLANK(INDIRECT(\"'\"&F1023&\"'!\"&H1023)),\"\",IFERROR(VLOOKUP(TEXT(INDIRECT(\"'\"&F1023&\"'!\"&H1023),\"0\"),Notes!$B$5:$C$100,2,FALSE),\"\"))","v":""},"2d","$S$72","$T$72"]
[7424,{"$f":"Menu!$F$29","v":"X"},{"$f":"Menu!$J$29","v":2020},{"$f":"IF(ISBLANK(INDIRECT(\"'\"&F1024&\"'!\"&G1024)),\"\",INDIRECT(\"'\"&F1024&\"'!\"&G1024))","v":""},{"$f":"IF(ISBLANK(INDIRECT(\"'\"&F1024&\"'!\"&H1024)),\"\",IFERROR(VLOOKUP(TEXT(INDIRECT(\"'\"&F1024&\"'!\"&H1024),\"0\"),Notes!$B$5:$C$100,2,FALSE),\"\"))","v":""},"2d","$U$72","$V$72"]
[7425,{"$f":"Menu!$F$29","v":"X"},{"$f":"Menu!$J$29","v":2020},{"$f":"IF(ISBLANK(INDIRECT(\"'\"&F1025&\"'!\"&G1025)),\"\",INDIRECT(\"'\"&F1025&\"'!\"&G1025))","v":""},{"$f":"IF(ISBLANK(INDIRECT(\"'\"&F1025&\"'!\"&H1025)),\"\",IFERROR(VLOOKUP(TEXT(INDIRECT(\"'\"&F1025&\"'!\"&H1025),\"0\"),Notes!$B$5:$C$100,2,FALSE),\"\"))","v":""},"2d","$W$72","$X$72"]
[7426,{"$f":"Menu!$F$29","v":"X"},{"$f":"Menu!$J$29","v":2020},{"$f":"IF(ISBLANK(INDIRECT(\"'\"&F1026&\"'!\"&G1026)),\"\",INDIRECT(\"'\"&F1026&\"'!\"&G1026))","v":""},{"$f":"IF(ISBLANK(INDIRECT(\"'\"&F1026&\"'!\"&H1026)),\"\",IFERROR(VLOOKUP(TEXT(INDIRECT(\"'\"&F1026&\"'!\"&H1026),\"0\"),Notes!$B$5:$C$100,2,FALSE),\"\"))","v":""},"2d","$Y$72",{"$f":"IF(LEN(TRIM(MID(G1026,4,10)))-LEN(SUBSTITUTE(TRIM(MID(G1026,4,10)),\"$\",\"\"))=0,\"$\"&CHAR(CODE(MID(G1026,2,1))+1)&\"$\"&TRIM(MID(G1026,4,10)),\"$\"&MID(G1026,2,1)&CHAR(CODE(MID(G1026,3,1))+1)&\"$\"&TRIM(MID(G1026,5,11)))","v":"$Z$72"}]
[7427,{"$f":"Menu!$F$29","v":"X"},{"$f":"Menu!$J$29","v":2020},{"$f":"IF(ISBLANK(INDIRECT(\"'\"&F1027&\"'!\"&G1027)),\"\",INDIRECT(\"'\"&F1027&\"'!\"&G1027))","v":""},{"$f":"IF(ISBLANK(INDIRECT(\"'\"&F1027&\"'!\"&H1027)),\"\",IFERROR(VLOOKUP(TEXT(INDIRECT(\"'\"&F1027&\"'!\"&H1027),\"0\"),Notes!$B$5:$C$100,2,FALSE),\"\"))","v":""},"2d","$AA$72","$AB$72"]
[7428,{"$f":"Menu!$F$29","v":"X"},{"$f":"Menu!$J$29","v":2020},{"$f":"IF(ISBLANK(INDIRECT(\"'\"&F1028&\"'!\"&G1028)),\"\",INDIRECT(\"'\"&F1028&\"'!\"&G1028))","v":""},{"$f":"IF(ISBLANK(INDIRECT(\"'\"&F1028&\"'!\"&H1028)),\"\",IFERROR(VLOOKUP(TEXT(INDIRECT(\"'\"&F1028&\"'!\"&H1028),\"0\"),Notes!$B$5:$C$100,2,FALSE),\"\"))","v":""},"2d","$AC$72","$AD$72"]
[7429,{"$f":"Menu!$F$29","v":"X"},{"$f":"Menu!$J$29","v":2020},{"$f":"IF(ISBLANK(INDIRECT(\"'\"&F1029&\"'!\"&G1029)),\"\",INDIRECT(\"'\"&F1029&\"'!\"&G1029))","v":""},{"$f":"IF(ISBLANK(INDIRECT(\"'\"&F1029&\"'!\"&H1029)),\"\",IFERROR(VLOOKUP(TEXT(INDIRECT(\"'\"&F1029&\"'!\"&H1029),\"0\"),Notes!$B$5:$C$100,2,FALSE),\"\"))","v":""},"2d","$AE$72","$AF$72"]
[7430,{"$f":"Menu!$F$29","v":"X"},{"$f":"Menu!$J$29","v":2020},{"$f":"IF(ISBLANK(INDIRECT(\"'\"&F1030&\"'!\"&G1030)),\"\",INDIRECT(\"'\"&F1030&\"'!\"&G1030))","v":""},{"$f":"IF(ISBLANK(INDIRECT(\"'\"&F1030&\"'!\"&H1030)),\"\",IFERROR(VLOOKUP(TEXT(INDIRECT(\"'\"&F1030&\"'!\"&H1030),\"0\"),Notes!$B$5:$C$100,2,FALSE),\"\"))","v":""},"2d","$AG$72","$AH$72"]
[7431,{"$f":"Menu!$F$29","v":"X"},{"$f":"Menu!$J$29","v":2020},{"$f":"IF(ISBLANK(INDIRECT(\"'\"&F1031&\"'!\"&G1031)),\"\",INDIRECT(\"'\"&F1031&\"'!\"&G1031))","v":""},{"$f":"IF(ISBLANK(INDIRECT(\"'\"&F1031&\"'!\"&H1031)),\"\",IFERROR(VLOOKUP(TEXT(INDIRECT(\"'\"&F1031&\"'!\"&H1031),\"0\"),Notes!$B$5:$C$100,2,FALSE),\"\"))","v":""},"2d","$E$73","$F$73"]
[7432,{"$f":"Menu!$F$29","v":"X"},{"$f":"Menu!$J$29","v":2020},{"$f":"IF(ISBLANK(INDIRECT(\"'\"&F1032&\"'!\"&G1032)),\"\",INDIRECT(\"'\"&F1032&\"'!\"&G1032))","v":""},{"$f":"IF(ISBLANK(INDIRECT(\"'\"&F1032&\"'!\"&H1032)),\"\",IFERROR(VLOOKUP(TEXT(INDIRECT(\"'\"&F1032&\"'!\"&H1032),\"0\"),Notes!$B$5:$C$100,2,FALSE),\"\"))","v":""},"2d","$G$73","$H$73"]
[7433,{"$f":"Menu!$F$29","v":"X"},{"$f":"Menu!$J$29","v":2020},{"$f":"IF(ISBLANK(INDIRECT(\"'\"&F1033&\"'!\"&G1033)),\"\",INDIRECT(\"'\"&F1033&\"'!\"&G1033))","v":""},{"$f":"IF(ISBLANK(INDIRECT(\"'\"&F1033&\"'!\"&H1033)),\"\",IFERROR(VLOOKUP(TEXT(INDIRECT(\"'\"&F1033&\"'!\"&H1033),\"0\"),Notes!$B$5:$C$100,2,FALSE),\"\"))","v":""},"2d","$I$73","$J$73"]
[7434,{"$f":"Menu!$F$29","v":"X"},{"$f":"Menu!$J$29","v":2020},{"$f":"IF(ISBLANK(INDIRECT(\"'\"&F1034&\"'!\"&G1034)),\"\",INDIRECT(\"'\"&F1034&\"'!\"&G1034))","v":""},{"$f":"IF(ISBLANK(INDIRECT(\"'\"&F1034&\"'!\"&H1034)),\"\",IFERROR(VLOOKUP(TEXT(INDIRECT(\"'\"&F1034&\"'!\"&H1034),\"0\"),Notes!$B$5:$C$100,2,FALSE),\"\"))","v":""},"2d","$K$73","$L$73"]
[7435,{"$f":"Menu!$F$29","v":"X"},{"$f":"Menu!$J$29","v":2020},{"$f":"IF(ISBLANK(INDIRECT(\"'\"&F1035&\"'!\"&G1035)),\"\",INDIRECT(\"'\"&F1035&\"'!\"&G1035))","v":""},{"$f":"IF(ISBLANK(INDIRECT(\"'\"&F1035&\"'!\"&H1035)),\"\",IFERROR(VLOOKUP(TEXT(INDIRECT(\"'\"&F1035&\"'!\"&H1035),\"0\"),Notes!$B$5:$C$100,2,FALSE),\"\"))","v":""},"2d","$M$73","$N$73"]
[7436,{"$f":"Menu!$F$29","v":"X"},{"$f":"Menu!$J$29","v":2020},{"$f":"IF(ISBLANK(INDIRECT(\"'\"&F1036&\"'!\"&G1036)),\"\",INDIRECT(\"'\"&F1036&\"'!\"&G1036))","v":""},{"$f":"IF(ISBLANK(INDIRECT(\"'\"&F1036&\"'!\"&H1036)),\"\",IFERROR(VLOOKUP(TEXT(INDIRECT(\"'\"&F1036&\"'!\"&H1036),\"0\"),Notes!$B$5:$C$100,2,FALSE),\"\"))","v":""},"2d","$O$73","$P$73"]
[7437,{"$f":"Menu!$F$29","v":"X"},{"$f":"Menu!$J$29","v":2020},{"$f":"IF(ISBLANK(INDIRECT(\"'\"&F1037&\"'!\"&G1037)),\"\",INDIRECT(\"'\"&F1037&\"'!\"&G1037))","v":""},{"$f":"IF(ISBLANK(INDIRECT(\"'\"&F1037&\"'!\"&H1037)),\"\",IFERROR(VLOOKUP(TEXT(INDIRECT(\"'\"&F1037&\"'!\"&H1037),\"0\"),Notes!$B$5:$C$100,2,FALSE),\"\"))","v":""},"2d","$Q$73","$R$73"]
[7438,{"$f":"Menu!$F$29","v":"X"},{"$f":"Menu!$J$29","v":2020},{"$f":"IF(ISBLANK(INDIRECT(\"'\"&F1038&\"'!\"&G1038)),\"\",INDIRECT(\"'\"&F1038&\"'!\"&G1038))","v":""},{"$f":"IF(ISBLANK(INDIRECT(\"'\"&F1038&\"'!\"&H1038)),\"\",IFERROR(VLOOKUP(TEXT(INDIRECT(\"'\"&F1038&\"'!\"&H1038),\"0\"),Notes!$B$5:$C$100,2,FALSE),\"\"))","v":""},"2d","$S$73","$T$73"]
[7439,{"$f":"Menu!$F$29","v":"X"},{"$f":"Menu!$J$29","v":2020},{"$f":"IF(ISBLANK(INDIRECT(\"'\"&F1039&\"'!\"&G1039)),\"\",INDIRECT(\"'\"&F1039&\"'!\"&G1039))","v":""},{"$f":"IF(ISBLANK(INDIRECT(\"'\"&F1039&\"'!\"&H1039)),\"\",IFERROR(VLOOKUP(TEXT(INDIRECT(\"'\"&F1039&\"'!\"&H1039),\"0\"),Notes!$B$5:$C$100,2,FALSE),\"\"))","v":""},"2d","$U$73","$V$73"]
[7440,{"$f":"Menu!$F$29","v":"X"},{"$f":"Menu!$J$29","v":2020},{"$f":"IF(ISBLANK(INDIRECT(\"'\"&F1040&\"'!\"&G1040)),\"\",INDIRECT(\"'\"&F1040&\"'!\"&G1040))","v":""},{"$f":"IF(ISBLANK(INDIRECT(\"'\"&F1040&\"'!\"&H1040)),\"\",IFERROR(VLOOKUP(TEXT(INDIRECT(\"'\"&F1040&\"'!\"&H1040),\"0\"),Notes!$B$5:$C$100,2,FALSE),\"\"))","v":""},"2d","$W$73","$X$73"]
[7441,{"$f":"Menu!$F$29","v":"X"},{"$f":"Menu!$J$29","v":2020},{"$f":"IF(ISBLANK(INDIRECT(\"'\"&F1041&\"'!\"&G1041)),\"\",INDIRECT(\"'\"&F1041&\"'!\"&G1041))","v":""},{"$f":"IF(ISBLANK(INDIRECT(\"'\"&F1041&\"'!\"&H1041)),\"\",IFERROR(VLOOKUP(TEXT(INDIRECT(\"'\"&F1041&\"'!\"&H1041),\"0\"),Notes!$B$5:$C$100,2,FALSE),\"\"))","v":""},"2d","$Y$73","$Z$73"]
[7442,{"$f":"Menu!$F$29","v":"X"},{"$f":"Menu!$J$29","v":2020},{"$f":"IF(ISBLANK(INDIRECT(\"'\"&F1042&\"'!\"&G1042)),\"\",INDIRECT(\"'\"&F1042&\"'!\"&G1042))","v":""},{"$f":"IF(ISBLANK(INDIRECT(\"'\"&F1042&\"'!\"&H1042)),\"\",IFERROR(VLOOKUP(TEXT(INDIRECT(\"'\"&F1042&\"'!\"&H1042),\"0\"),Notes!$B$5:$C$100,2,FALSE),\"\"))","v":""},"2d","$AA$73","$AB$73"]
[7443,{"$f":"Menu!$F$29","v":"X"},{"$f":"Menu!$J$29","v":2020},{"$f":"IF(ISBLANK(INDIRECT(\"'\"&F1043&\"'!\"&G1043)),\"\",INDIRECT(\"'\"&F1043&\"'!\"&G1043))","v":""},{"$f":"IF(ISBLANK(INDIRECT(\"'\"&F1043&\"'!\"&H1043)),\"\",IFERROR(VLOOKUP(TEXT(INDIRECT(\"'\"&F1043&\"'!\"&H1043),\"0\"),Notes!$B$5:$C$100,2,FALSE),\"\"))","v":""},"2d","$AC$73","$AD$73"]
[7444,{"$f":"Menu!$F$29","v":"X"},{"$f":"Menu!$J$29","v":2020},{"$f":"IF(ISBLANK(INDIRECT(\"'\"&F1044&\"'!\"&G1044)),\"\",INDIRECT(\"'\"&F1044&\"'!\"&G1044))","v":""},{"$f":"IF(ISBLANK(INDIRECT(\"'\"&F1044&\"'!\"&H1044)),\"\",IFERROR(VLOOKUP(TEXT(INDIRECT(\"'\"&F1044&\"'!\"&H1044),\"0\"),Notes!$B$5:$C$100,2,FALSE),\"\"))","v":""},"2d","$AE$73","$AF$73"]
[7445,{"$f":"Menu!$F$29","v":"X"},{"$f":"Menu!$J$29","v":2020},{"$f":"IF(ISBLANK(INDIRECT(\"'\"&F1045&\"'!\"&G1045)),\"\",INDIRECT(\"'\"&F1045&\"'!\"&G1045))","v":""},{"$f":"IF(ISBLANK(INDIRECT(\"'\"&F1045&\"'!\"&H1045)),\"\",IFERROR(VLOOKUP(TEXT(INDIRECT(\"'\"&F1045&\"'!\"&H1045),\"0\"),Notes!$B$5:$C$100,2,FALSE),\"\"))","v":""},"2d","$AG$73","$AH$73"]
[7446,{"$f":"Menu!$F$29","v":"X"},{"$f":"Menu!$J$29","v":2020},{"$f":"IF(ISBLANK(INDIRECT(\"'\"&F1046&\"'!\"&G1046)),\"\",INDIRECT(\"'\"&F1046&\"'!\"&G1046))","v":""},{"$f":"IF(ISBLANK(INDIRECT(\"'\"&F1046&\"'!\"&H1046)),\"\",IFERROR(VLOOKUP(TEXT(INDIRECT(\"'\"&F1046&\"'!\"&H1046),\"0\"),Notes!$B$5:$C$100,2,FALSE),\"\"))","v":""},"2d","$E$74","$F$74"]
[7447,{"$f":"Menu!$F$29","v":"X"},{"$f":"Menu!$J$29","v":2020},{"$f":"IF(ISBLANK(INDIRECT(\"'\"&F1047&\"'!\"&G1047)),\"\",INDIRECT(\"'\"&F1047&\"'!\"&G1047))","v":""},{"$f":"IF(ISBLANK(INDIRECT(\"'\"&F1047&\"'!\"&H1047)),\"\",IFERROR(VLOOKUP(TEXT(INDIRECT(\"'\"&F1047&\"'!\"&H1047),\"0\"),Notes!$B$5:$C$100,2,FALSE),\"\"))","v":""},"2d","$G$74","$H$74"]
[7448,{"$f":"Menu!$F$29","v":"X"},{"$f":"Menu!$J$29","v":2020},{"$f":"IF(ISBLANK(INDIRECT(\"'\"&F1048&\"'!\"&G1048)),\"\",INDIRECT(\"'\"&F1048&\"'!\"&G1048))","v":""},{"$f":"IF(ISBLANK(INDIRECT(\"'\"&F1048&\"'!\"&H1048)),\"\",IFERROR(VLOOKUP(TEXT(INDIRECT(\"'\"&F1048&\"'!\"&H1048),\"0\"),Notes!$B$5:$C$100,2,FALSE),\"\"))","v":""},"2d","$I$74","$J$74"]
[7449,{"$f":"Menu!$F$29","v":"X"},{"$f":"Menu!$J$29","v":2020},{"$f":"IF(ISBLANK(INDIRECT(\"'\"&F1049&\"'!\"&G1049)),\"\",INDIRECT(\"'\"&F1049&\"'!\"&G1049))","v":""},{"$f":"IF(ISBLANK(INDIRECT(\"'\"&F1049&\"'!\"&H1049)),\"\",IFERROR(VLOOKUP(TEXT(INDIRECT(\"'\"&F1049&\"'!\"&H1049),\"0\"),Notes!$B$5:$C$100,2,FALSE),\"\"))","v":""},"2d","$K$74","$L$74"]
[7450,{"$f":"Menu!$F$29","v":"X"},{"$f":"Menu!$J$29","v":2020},{"$f":"IF(ISBLANK(INDIRECT(\"'\"&F1050&\"'!\"&G1050)),\"\",INDIRECT(\"'\"&F1050&\"'!\"&G1050))","v":""},{"$f":"IF(ISBLANK(INDIRECT(\"'\"&F1050&\"'!\"&H1050)),\"\",IFERROR(VLOOKUP(TEXT(INDIRECT(\"'\"&F1050&\"'!\"&H1050),\"0\"),Notes!$B$5:$C$100,2,FALSE),\"\"))","v":""},"2d","$M$74","$N$74"]
[7451,{"$f":"Menu!$F$29","v":"X"},{"$f":"Menu!$J$29","v":2020},{"$f":"IF(ISBLANK(INDIRECT(\"'\"&F1051&\"'!\"&G1051)),\"\",INDIRECT(\"'\"&F1051&\"'!\"&G1051))","v":""},{"$f":"IF(ISBLANK(INDIRECT(\"'\"&F1051&\"'!\"&H1051)),\"\",IFERROR(VLOOKUP(TEXT(INDIRECT(\"'\"&F1051&\"'!\"&H1051),\"0\"),Notes!$B$5:$C$100,2,FALSE),\"\"))","v":""},"2d","$O$74","$P$74"]
[7452,{"$f":"Menu!$F$29","v":"X"},{"$f":"Menu!$J$29","v":2020},{"$f":"IF(ISBLANK(INDIRECT(\"'\"&F1052&\"'!\"&G1052)),\"\",INDIRECT(\"'\"&F1052&\"'!\"&G1052))","v":""},{"$f":"IF(ISBLANK(INDIRECT(\"'\"&F1052&\"'!\"&H1052)),\"\",IFERROR(VLOOKUP(TEXT(INDIRECT(\"'\"&F1052&\"'!\"&H1052),\"0\"),Notes!$B$5:$C$100,2,FALSE),\"\"))","v":""},"2d","$Q$74","$R$74"]
[7453,{"$f":"Menu!$F$29","v":"X"},{"$f":"Menu!$J$29","v":2020},{"$f":"IF(ISBLANK(INDIRECT(\"'\"&F1053&\"'!\"&G1053)),\"\",INDIRECT(\"'\"&F1053&\"'!\"&G1053))","v":""},{"$f":"IF(ISBLANK(INDIRECT(\"'\"&F1053&\"'!\"&H1053)),\"\",IFERROR(VLOOKUP(TEXT(INDIRECT(\"'\"&F1053&\"'!\"&H1053),\"0\"),Notes!$B$5:$C$100,2,FALSE),\"\"))","v":""},"2d","$S$74","$T$74"]
[7454,{"$f":"Menu!$F$29","v":"X"},{"$f":"Menu!$J$29","v":2020},{"$f":"IF(ISBLANK(INDIRECT(\"'\"&F1054&\"'!\"&G1054)),\"\",INDIRECT(\"'\"&F1054&\"'!\"&G1054))","v":""},{"$f":"IF(ISBLANK(INDIRECT(\"'\"&F1054&\"'!\"&H1054)),\"\",IFERROR(VLOOKUP(TEXT(INDIRECT(\"'\"&F1054&\"'!\"&H1054),\"0\"),Notes!$B$5:$C$100,2,FALSE),\"\"))","v":""},"2d","$U$74","$V$74"]
[7455,{"$f":"Menu!$F$29","v":"X"},{"$f":"Menu!$J$29","v":2020},{"$f":"IF(ISBLANK(INDIRECT(\"'\"&F1055&\"'!\"&G1055)),\"\",INDIRECT(\"'\"&F1055&\"'!\"&G1055))","v":""},{"$f":"IF(ISBLANK(INDIRECT(\"'\"&F1055&\"'!\"&H1055)),\"\",IFERROR(VLOOKUP(TEXT(INDIRECT(\"'\"&F1055&\"'!\"&H1055),\"0\"),Notes!$B$5:$C$100,2,FALSE),\"\"))","v":""},"2d","$W$74","$X$74"]
[7456,{"$f":"Menu!$F$29","v":"X"},{"$f":"Menu!$J$29","v":2020},{"$f":"IF(ISBLANK(INDIRECT(\"'\"&F1056&\"'!\"&G1056)),\"\",INDIRECT(\"'\"&F1056&\"'!\"&G1056))","v":""},{"$f":"IF(ISBLANK(INDIRECT(\"'\"&F1056&\"'!\"&H1056)),\"\",IFERROR(VLOOKUP(TEXT(INDIRECT(\"'\"&F1056&\"'!\"&H1056),\"0\"),Notes!$B$5:$C$100,2,FALSE),\"\"))","v":""},"2d","$Y$74","$Z$74"]
[7457,{"$f":"Menu!$F$29","v":"X"},{"$f":"Menu!$J$29","v":2020},{"$f":"IF(ISBLANK(INDIRECT(\"'\"&F1057&\"'!\"&G1057)),\"\",INDIRECT(\"'\"&F1057&\"'!\"&G1057))","v":""},{"$f":"IF(ISBLANK(INDIRECT(\"'\"&F1057&\"'!\"&H1057)),\"\",IFERROR(VLOOKUP(TEXT(INDIRECT(\"'\"&F1057&\"'!\"&H1057),\"0\"),Notes!$B$5:$C$100,2,FALSE),\"\"))","v":""},"2d","$AA$74","$AB$74"]
[7458,{"$f":"Menu!$F$29","v":"X"},{"$f":"Menu!$J$29","v":2020},{"$f":"IF(ISBLANK(INDIRECT(\"'\"&F1058&\"'!\"&G1058)),\"\",INDIRECT(\"'\"&F1058&\"'!\"&G1058))","v":""},{"$f":"IF(ISBLANK(INDIRECT(\"'\"&F1058&\"'!\"&H1058)),\"\",IFERROR(VLOOKUP(TEXT(INDIRECT(\"'\"&F1058&\"'!\"&H1058),\"0\"),Notes!$B$5:$C$100,2,FALSE),\"\"))","v":""},"2d","$AC$74","$AD$74"]
[7459,{"$f":"Menu!$F$29","v":"X"},{"$f":"Menu!$J$29","v":2020},{"$f":"IF(ISBLANK(INDIRECT(\"'\"&F1059&\"'!\"&G1059)),\"\",INDIRECT(\"'\"&F1059&\"'!\"&G1059))","v":""},{"$f":"IF(ISBLANK(INDIRECT(\"'\"&F1059&\"'!\"&H1059)),\"\",IFERROR(VLOOKUP(TEXT(INDIRECT(\"'\"&F1059&\"'!\"&H1059),\"0\"),Notes!$B$5:$C$100,2,FALSE),\"\"))","v":""},"2d","$AE$74","$AF$74"]
[7460,{"$f":"Menu!$F$29","v":"X"},{"$f":"Menu!$J$29","v":2020},{"$f":"IF(ISBLANK(INDIRECT(\"'\"&F1060&\"'!\"&G1060)),\"\",INDIRECT(\"'\"&F1060&\"'!\"&G1060))","v":""},{"$f":"IF(ISBLANK(INDIRECT(\"'\"&F1060&\"'!\"&H1060)),\"\",IFERROR(VLOOKUP(TEXT(INDIRECT(\"'\"&F1060&\"'!\"&H1060),\"0\"),Notes!$B$5:$C$100,2,FALSE),\"\"))","v":""},"2d","$AG$74","$AH$74"]
[7461,{"$f":"Menu!$F$29","v":"X"},{"$f":"Menu!$J$29","v":2020},{"$f":"IF(ISBLANK(INDIRECT(\"'\"&F1061&\"'!\"&G1061)),\"\",INDIRECT(\"'\"&F1061&\"'!\"&G1061))","v":""},{"$f":"IF(ISBLANK(INDIRECT(\"'\"&F1061&\"'!\"&H1061)),\"\",IFERROR(VLOOKUP(TEXT(INDIRECT(\"'\"&F1061&\"'!\"&H1061),\"0\"),Notes!$B$5:$C$100,2,FALSE),\"\"))","v":""},"2e","$E$11","$F$11"]
[7462,{"$f":"Menu!$F$29","v":"X"},{"$f":"Menu!$J$29","v":2020},{"$f":"IF(ISBLANK(INDIRECT(\"'\"&F1062&\"'!\"&G1062)),\"\",INDIRECT(\"'\"&F1062&\"'!\"&G1062))","v":""},{"$f":"IF(ISBLANK(INDIRECT(\"'\"&F1062&\"'!\"&H1062)),\"\",IFERROR(VLOOKUP(TEXT(INDIRECT(\"'\"&F1062&\"'!\"&H1062),\"0\"),Notes!$B$5:$C$100,2,FALSE),\"\"))","v":""},"2e","$G$11","$H$11"]
[7463,{"$f":"Menu!$F$29","v":"X"},{"$f":"Menu!$J$29","v":2020},{"$f":"IF(ISBLANK(INDIRECT(\"'\"&F1063&\"'!\"&G1063)),\"\",INDIRECT(\"'\"&F1063&\"'!\"&G1063))","v":""},{"$f":"IF(ISBLANK(INDIRECT(\"'\"&F1063&\"'!\"&H1063)),\"\",IFERROR(VLOOKUP(TEXT(INDIRECT(\"'\"&F1063&\"'!\"&H1063),\"0\"),Notes!$B$5:$C$100,2,FALSE),\"\"))","v":""},"2e","$I$11","$J$11"]
[7464,{"$f":"Menu!$F$29","v":"X"},{"$f":"Menu!$J$29","v":2020},{"$f":"IF(ISBLANK(INDIRECT(\"'\"&F1064&\"'!\"&G1064)),\"\",INDIRECT(\"'\"&F1064&\"'!\"&G1064))","v":""},{"$f":"IF(ISBLANK(INDIRECT(\"'\"&F1064&\"'!\"&H1064)),\"\",IFERROR(VLOOKUP(TEXT(INDIRECT(\"'\"&F1064&\"'!\"&H1064),\"0\"),Notes!$B$5:$C$100,2,FALSE),\"\"))","v":""},"2e","$K$11","$L$11"]
[7465,{"$f":"Menu!$F$29","v":"X"},{"$f":"Menu!$J$29","v":2020},{"$f":"IF(ISBLANK(INDIRECT(\"'\"&F1065&\"'!\"&G1065)),\"\",INDIRECT(\"'\"&F1065&\"'!\"&G1065))","v":""},{"$f":"IF(ISBLANK(INDIRECT(\"'\"&F1065&\"'!\"&H1065)),\"\",IFERROR(VLOOKUP(TEXT(INDIRECT(\"'\"&F1065&\"'!\"&H1065),\"0\"),Notes!$B$5:$C$100,2,FALSE),\"\"))","v":""},"2e","$M$11","$N$11"]
[7466,{"$f":"Menu!$F$29","v":"X"},{"$f":"Menu!$J$29","v":2020},{"$f":"IF(ISBLANK(INDIRECT(\"'\"&F1066&\"'!\"&G1066)),\"\",INDIRECT(\"'\"&F1066&\"'!\"&G1066))","v":""},{"$f":"IF(ISBLANK(INDIRECT(\"'\"&F1066&\"'!\"&H1066)),\"\",IFERROR(VLOOKUP(TEXT(INDIRECT(\"'\"&F1066&\"'!\"&H1066),\"0\"),Notes!$B$5:$C$100,2,FALSE),\"\"))","v":""},"2e","$O$11","$P$11"]
[7467,{"$f":"Menu!$F$29","v":"X"},{"$f":"Menu!$J$29","v":2020},{"$f":"IF(ISBLANK(INDIRECT(\"'\"&F1067&\"'!\"&G1067)),\"\",INDIRECT(\"'\"&F1067&\"'!\"&G1067))","v":""},{"$f":"IF(ISBLANK(INDIRECT(\"'\"&F1067&\"'!\"&H1067)),\"\",IFERROR(VLOOKUP(TEXT(INDIRECT(\"'\"&F1067&\"'!\"&H1067),\"0\"),Notes!$B$5:$C$100,2,FALSE),\"\"))","v":""},"2e","$Q$11","$R$11"]
[7468,{"$f":"Menu!$F$29","v":"X"},{"$f":"Menu!$J$29","v":2020},{"$f":"IF(ISBLANK(INDIRECT(\"'\"&F1068&\"'!\"&G1068)),\"\",INDIRECT(\"'\"&F1068&\"'!\"&G1068))","v":""},{"$f":"IF(ISBLANK(INDIRECT(\"'\"&F1068&\"'!\"&H1068)),\"\",IFERROR(VLOOKUP(TEXT(INDIRECT(\"'\"&F1068&\"'!\"&H1068),\"0\"),Notes!$B$5:$C$100,2,FALSE),\"\"))","v":""},"2e","$S$11","$T$11"]
[7469,{"$f":"Menu!$F$29","v":"X"},{"$f":"Menu!$J$29","v":2020},{"$f":"IF(ISBLANK(INDIRECT(\"'\"&F1069&\"'!\"&G1069)),\"\",INDIRECT(\"'\"&F1069&\"'!\"&G1069))","v":""},{"$f":"IF(ISBLANK(INDIRECT(\"'\"&F1069&\"'!\"&H1069)),\"\",IFERROR(VLOOKUP(TEXT(INDIRECT(\"'\"&F1069&\"'!\"&H1069),\"0\"),Notes!$B$5:$C$100,2,FALSE),\"\"))","v":""},"2e","$U$11","$V$11"]
[7470,{"$f":"Menu!$F$29","v":"X"},{"$f":"Menu!$J$29","v":2020},{"$f":"IF(ISBLANK(INDIRECT(\"'\"&F1070&\"'!\"&G1070)),\"\",INDIRECT(\"'\"&F1070&\"'!\"&G1070))","v":""},{"$f":"IF(ISBLANK(INDIRECT(\"'\"&F1070&\"'!\"&H1070)),\"\",IFERROR(VLOOKUP(TEXT(INDIRECT(\"'\"&F1070&\"'!\"&H1070),\"0\"),Notes!$B$5:$C$100,2,FALSE),\"\"))","v":""},"2e","$W$11","$X$11"]
[7471,{"$f":"Menu!$F$29","v":"X"},{"$f":"Menu!$J$29","v":2020},{"$f":"IF(ISBLANK(INDIRECT(\"'\"&F1071&\"'!\"&G1071)),\"\",INDIRECT(\"'\"&F1071&\"'!\"&G1071))","v":""},{"$f":"IF(ISBLANK(INDIRECT(\"'\"&F1071&\"'!\"&H1071)),\"\",IFERROR(VLOOKUP(TEXT(INDIRECT(\"'\"&F1071&\"'!\"&H1071),\"0\"),Notes!$B$5:$C$100,2,FALSE),\"\"))","v":""},"2e","$Y$11","$Z$11"]
[7472,{"$f":"Menu!$F$29","v":"X"},{"$f":"Menu!$J$29","v":2020},{"$f":"IF(ISBLANK(INDIRECT(\"'\"&F1072&\"'!\"&G1072)),\"\",INDIRECT(\"'\"&F1072&\"'!\"&G1072))","v":""},{"$f":"IF(ISBLANK(INDIRECT(\"'\"&F1072&\"'!\"&H1072)),\"\",IFERROR(VLOOKUP(TEXT(INDIRECT(\"'\"&F1072&\"'!\"&H1072),\"0\"),Notes!$B$5:$C$100,2,FALSE),\"\"))","v":""},"2e","$AA$11","$AB$11"]
[7473,{"$f":"Menu!$F$29","v":"X"},{"$f":"Menu!$J$29","v":2020},{"$f":"IF(ISBLANK(INDIRECT(\"'\"&F1073&\"'!\"&G1073)),\"\",INDIRECT(\"'\"&F1073&\"'!\"&G1073))","v":""},{"$f":"IF(ISBLANK(INDIRECT(\"'\"&F1073&\"'!\"&H1073)),\"\",IFERROR(VLOOKUP(TEXT(INDIRECT(\"'\"&F1073&\"'!\"&H1073),\"0\"),Notes!$B$5:$C$100,2,FALSE),\"\"))","v":""},"2e","$AC$11","$AD$11"]
[7474,{"$f":"Menu!$F$29","v":"X"},{"$f":"Menu!$J$29","v":2020},{"$f":"IF(ISBLANK(INDIRECT(\"'\"&F1074&\"'!\"&G1074)),\"\",INDIRECT(\"'\"&F1074&\"'!\"&G1074))","v":""},{"$f":"IF(ISBLANK(INDIRECT(\"'\"&F1074&\"'!\"&H1074)),\"\",IFERROR(VLOOKUP(TEXT(INDIRECT(\"'\"&F1074&\"'!\"&H1074),\"0\"),Notes!$B$5:$C$100,2,FALSE),\"\"))","v":""},"2e","$AE$11","$AF$11"]
[7475,{"$f":"Menu!$F$29","v":"X"},{"$f":"Menu!$J$29","v":2020},{"$f":"IF(ISBLANK(INDIRECT(\"'\"&F1075&\"'!\"&G1075)),\"\",INDIRECT(\"'\"&F1075&\"'!\"&G1075))","v":""},{"$f":"IF(ISBLANK(INDIRECT(\"'\"&F1075&\"'!\"&H1075)),\"\",IFERROR(VLOOKUP(TEXT(INDIRECT(\"'\"&F1075&\"'!\"&H1075),\"0\"),Notes!$B$5:$C$100,2,FALSE),\"\"))","v":""},"2e","$AG$11","$AH$11"]
[7476,{"$f":"Menu!$F$29","v":"X"},{"$f":"Menu!$J$29","v":2020},{"$f":"IF(ISBLANK(INDIRECT(\"'\"&F1076&\"'!\"&G1076)),\"\",INDIRECT(\"'\"&F1076&\"'!\"&G1076))","v":""},{"$f":"IF(ISBLANK(INDIRECT(\"'\"&F1076&\"'!\"&H1076)),\"\",IFERROR(VLOOKUP(TEXT(INDIRECT(\"'\"&F1076&\"'!\"&H1076),\"0\"),Notes!$B$5:$C$100,2,FALSE),\"\"))","v":""},"2e","$AI$11","$AJ$11"]
[7477,{"$f":"Menu!$F$29","v":"X"},{"$f":"Menu!$J$29","v":2020},{"$f":"IF(ISBLANK(INDIRECT(\"'\"&F1077&\"'!\"&G1077)),\"\",INDIRECT(\"'\"&F1077&\"'!\"&G1077))","v":""},{"$f":"IF(ISBLANK(INDIRECT(\"'\"&F1077&\"'!\"&H1077)),\"\",IFERROR(VLOOKUP(TEXT(INDIRECT(\"'\"&F1077&\"'!\"&H1077),\"0\"),Notes!$B$5:$C$100,2,FALSE),\"\"))","v":""},"2e","$AK$11","$AL$11"]
[7478,{"$f":"Menu!$F$29","v":"X"},{"$f":"Menu!$J$29","v":2020},{"$f":"IF(ISBLANK(INDIRECT(\"'\"&F1078&\"'!\"&G1078)),\"\",INDIRECT(\"'\"&F1078&\"'!\"&G1078))","v":""},{"$f":"IF(ISBLANK(INDIRECT(\"'\"&F1078&\"'!\"&H1078)),\"\",IFERROR(VLOOKUP(TEXT(INDIRECT(\"'\"&F1078&\"'!\"&H1078),\"0\"),Notes!$B$5:$C$100,2,FALSE),\"\"))","v":""},"2e","$AM$11","$AN$11"]
[7479,{"$f":"Menu!$F$29","v":"X"},{"$f":"Menu!$J$29","v":2020},{"$f":"IF(ISBLANK(INDIRECT(\"'\"&F1079&\"'!\"&G1079)),\"\",INDIRECT(\"'\"&F1079&\"'!\"&G1079))","v":""},{"$f":"IF(ISBLANK(INDIRECT(\"'\"&F1079&\"'!\"&H1079)),\"\",IFERROR(VLOOKUP(TEXT(INDIRECT(\"'\"&F1079&\"'!\"&H1079),\"0\"),Notes!$B$5:$C$100,2,FALSE),\"\"))","v":""},"2e","$AO$11","$AP$11"]
[7480,{"$f":"Menu!$F$29","v":"X"},{"$f":"Menu!$J$29","v":2020},{"$f":"IF(ISBLANK(INDIRECT(\"'\"&F1080&\"'!\"&G1080)),\"\",INDIRECT(\"'\"&F1080&\"'!\"&G1080))","v":""},{"$f":"IF(ISBLANK(INDIRECT(\"'\"&F1080&\"'!\"&H1080)),\"\",IFERROR(VLOOKUP(TEXT(INDIRECT(\"'\"&F1080&\"'!\"&H1080),\"0\"),Notes!$B$5:$C$100,2,FALSE),\"\"))","v":""},"2e","$AQ$11","$AR$11"]
[7481,{"$f":"Menu!$F$29","v":"X"},{"$f":"Menu!$J$29","v":2020},{"$f":"IF(ISBLANK(INDIRECT(\"'\"&F1081&\"'!\"&G1081)),\"\",INDIRECT(\"'\"&F1081&\"'!\"&G1081))","v":""},{"$f":"IF(ISBLANK(INDIRECT(\"'\"&F1081&\"'!\"&H1081)),\"\",IFERROR(VLOOKUP(TEXT(INDIRECT(\"'\"&F1081&\"'!\"&H1081),\"0\"),Notes!$B$5:$C$100,2,FALSE),\"\"))","v":""},"2e","$AS$11","$AT$11"]
[7482,{"$f":"Menu!$F$29","v":"X"},{"$f":"Menu!$J$29","v":2020},{"$f":"IF(ISBLANK(INDIRECT(\"'\"&F1082&\"'!\"&G1082)),\"\",INDIRECT(\"'\"&F1082&\"'!\"&G1082))","v":""},{"$f":"IF(ISBLANK(INDIRECT(\"'\"&F1082&\"'!\"&H1082)),\"\",IFERROR(VLOOKUP(TEXT(INDIRECT(\"'\"&F1082&\"'!\"&H1082),\"0\"),Notes!$B$5:$C$100,2,FALSE),\"\"))","v":""},"2e","$AU$11","$AV$11"]
[7483,{"$f":"Menu!$F$29","v":"X"},{"$f":"Menu!$J$29","v":2020},{"$f":"IF(ISBLANK(INDIRECT(\"'\"&F1083&\"'!\"&G1083)),\"\",INDIRECT(\"'\"&F1083&\"'!\"&G1083))","v":""},{"$f":"IF(ISBLANK(INDIRECT(\"'\"&F1083&\"'!\"&H1083)),\"\",IFERROR(VLOOKUP(TEXT(INDIRECT(\"'\"&F1083&\"'!\"&H1083),\"0\"),Notes!$B$5:$C$100,2,FALSE),\"\"))","v":""},"2e","$AW$11","$AX$11"]
[7484,{"$f":"Menu!$F$29","v":"X"},{"$f":"Menu!$J$29","v":2020},{"$f":"IF(ISBLANK(INDIRECT(\"'\"&F1084&\"'!\"&G1084)),\"\",INDIRECT(\"'\"&F1084&\"'!\"&G1084))","v":""},{"$f":"IF(ISBLANK(INDIRECT(\"'\"&F1084&\"'!\"&H1084)),\"\",IFERROR(VLOOKUP(TEXT(INDIRECT(\"'\"&F1084&\"'!\"&H1084),\"0\"),Notes!$B$5:$C$100,2,FALSE),\"\"))","v":""},"2e","$AY$11","$AZ$11"]
[7485,{"$f":"Menu!$F$29","v":"X"},{"$f":"Menu!$J$29","v":2020},{"$f":"IF(ISBLANK(INDIRECT(\"'\"&F1085&\"'!\"&G1085)),\"\",INDIRECT(\"'\"&F1085&\"'!\"&G1085))","v":""},{"$f":"IF(ISBLANK(INDIRECT(\"'\"&F1085&\"'!\"&H1085)),\"\",IFERROR(VLOOKUP(TEXT(INDIRECT(\"'\"&F1085&\"'!\"&H1085),\"0\"),Notes!$B$5:$C$100,2,FALSE),\"\"))","v":""},"2e","$BA$11","$BB$11"]
[7486,{"$f":"Menu!$F$29","v":"X"},{"$f":"Menu!$J$29","v":2020},{"$f":"IF(ISBLANK(INDIRECT(\"'\"&F1086&\"'!\"&G1086)),\"\",INDIRECT(\"'\"&F1086&\"'!\"&G1086))","v":""},{"$f":"IF(ISBLANK(INDIRECT(\"'\"&F1086&\"'!\"&H1086)),\"\",IFERROR(VLOOKUP(TEXT(INDIRECT(\"'\"&F1086&\"'!\"&H1086),\"0\"),Notes!$B$5:$C$100,2,FALSE),\"\"))","v":""},"2e","$BC$11","$BD$11"]
[7487,{"$f":"Menu!$F$29","v":"X"},{"$f":"Menu!$J$29","v":2020},{"$f":"IF(ISBLANK(INDIRECT(\"'\"&F1087&\"'!\"&G1087)),\"\",INDIRECT(\"'\"&F1087&\"'!\"&G1087))","v":""},{"$f":"IF(ISBLANK(INDIRECT(\"'\"&F1087&\"'!\"&H1087)),\"\",IFERROR(VLOOKUP(TEXT(INDIRECT(\"'\"&F1087&\"'!\"&H1087),\"0\"),Notes!$B$5:$C$100,2,FALSE),\"\"))","v":""},"2e","$BE$11","$BF$11"]
[7488,{"$f":"Menu!$F$29","v":"X"},{"$f":"Menu!$J$29","v":2020},{"$f":"IF(ISBLANK(INDIRECT(\"'\"&F1088&\"'!\"&G1088)),\"\",INDIRECT(\"'\"&F1088&\"'!\"&G1088))","v":""},{"$f":"IF(ISBLANK(INDIRECT(\"'\"&F1088&\"'!\"&H1088)),\"\",IFERROR(VLOOKUP(TEXT(INDIRECT(\"'\"&F1088&\"'!\"&H1088),\"0\"),Notes!$B$5:$C$100,2,FALSE),\"\"))","v":""},"2e","$BG$11","$BH$11"]
[7489,{"$f":"Menu!$F$29","v":"X"},{"$f":"Menu!$J$29","v":2020},{"$f":"IF(ISBLANK(INDIRECT(\"'\"&F1089&\"'!\"&G1089)),\"\",INDIRECT(\"'\"&F1089&\"'!\"&G1089))","v":""},{"$f":"IF(ISBLANK(INDIRECT(\"'\"&F1089&\"'!\"&H1089)),\"\",IFERROR(VLOOKUP(TEXT(INDIRECT(\"'\"&F1089&\"'!\"&H1089),\"0\"),Notes!$B$5:$C$100,2,FALSE),\"\"))","v":""},"2e","$BI$11","$BJ$11"]
[7490,{"$f":"Menu!$F$29","v":"X"},{"$f":"Menu!$J$29","v":2020},{"$f":"IF(ISBLANK(INDIRECT(\"'\"&F1090&\"'!\"&G1090)),\"\",INDIRECT(\"'\"&F1090&\"'!\"&G1090))","v":""},{"$f":"IF(ISBLANK(INDIRECT(\"'\"&F1090&\"'!\"&H1090)),\"\",IFERROR(VLOOKUP(TEXT(INDIRECT(\"'\"&F1090&\"'!\"&H1090),\"0\"),Notes!$B$5:$C$100,2,FALSE),\"\"))","v":""},"2e","$BK$11",{"$f":"IF(LEN(TRIM(MID(G1090,4,10)))-LEN(SUBSTITUTE(TRIM(MID(G1090,4,10)),\"$\",\"\"))=0,\"$\"&CHAR(CODE(MID(G1090,2,1))+1)&\"$\"&TRIM(MID(G1090,4,10)),\"$\"&MID(G1090,2,1)&CHAR(CODE(MID(G1090,3,1))+1)&\"$\"&TRIM(MID(G1090,5,11)))","v":"$BL$11"}]
[7491,{"$f":"Menu!$F$29","v":"X"},{"$f":"Menu!$J$29","v":2020},{"$f":"IF(ISBLANK(INDIRECT(\"'\"&F1091&\"'!\"&G1091)),\"\",INDIRECT(\"'\"&F1091&\"'!\"&G1091))","v":""},{"$f":"IF(ISBLANK(INDIRECT(\"'\"&F1091&\"'!\"&H1091)),\"\",IFERROR(VLOOKUP(TEXT(INDIRECT(\"'\"&F1091&\"'!\"&H1091),\"0\"),Notes!$B$5:$C$100,2,FALSE),\"\"))","v":""},"2e","$E$12","$F$12"]
[7492,{"$f":"Menu!$F$29","v":"X"},{"$f":"Menu!$J$29","v":2020},{"$f":"IF(ISBLANK(INDIRECT(\"'\"&F1092&\"'!\"&G1092)),\"\",INDIRECT(\"'\"&F1092&\"'!\"&G1092))","v":""},{"$f":"IF(ISBLANK(INDIRECT(\"'\"&F1092&\"'!\"&H1092)),\"\",IFERROR(VLOOKUP(TEXT(INDIRECT(\"'\"&F1092&\"'!\"&H1092),\"0\"),Notes!$B$5:$C$100,2,FALSE),\"\"))","v":""},"2e","$G$12","$H$12"]
[7493,{"$f":"Menu!$F$29","v":"X"},{"$f":"Menu!$J$29","v":2020},{"$f":"IF(ISBLANK(INDIRECT(\"'\"&F1093&\"'!\"&G1093)),\"\",INDIRECT(\"'\"&F1093&\"'!\"&G1093))","v":""},{"$f":"IF(ISBLANK(INDIRECT(\"'\"&F1093&\"'!\"&H1093)),\"\",IFERROR(VLOOKUP(TEXT(INDIRECT(\"'\"&F1093&\"'!\"&H1093),\"0\"),Notes!$B$5:$C$100,2,FALSE),\"\"))","v":""},"2e","$I$12","$J$12"]
[7494,{"$f":"Menu!$F$29","v":"X"},{"$f":"Menu!$J$29","v":2020},{"$f":"IF(ISBLANK(INDIRECT(\"'\"&F1094&\"'!\"&G1094)),\"\",INDIRECT(\"'\"&F1094&\"'!\"&G1094))","v":""},{"$f":"IF(ISBLANK(INDIRECT(\"'\"&F1094&\"'!\"&H1094)),\"\",IFERROR(VLOOKUP(TEXT(INDIRECT(\"'\"&F1094&\"'!\"&H1094),\"0\"),Notes!$B$5:$C$100,2,FALSE),\"\"))","v":""},"2e","$K$12","$L$12"]
[7495,{"$f":"Menu!$F$29","v":"X"},{"$f":"Menu!$J$29","v":2020},{"$f":"IF(ISBLANK(INDIRECT(\"'\"&F1095&\"'!\"&G1095)),\"\",INDIRECT(\"'\"&F1095&\"'!\"&G1095))","v":""},{"$f":"IF(ISBLANK(INDIRECT(\"'\"&F1095&\"'!\"&H1095)),\"\",IFERROR(VLOOKUP(TEXT(INDIRECT(\"'\"&F1095&\"'!\"&H1095),\"0\"),Notes!$B$5:$C$100,2,FALSE),\"\"))","v":""},"2e","$M$12","$N$12"]
[7496,{"$f":"Menu!$F$29","v":"X"},{"$f":"Menu!$J$29","v":2020},{"$f":"IF(ISBLANK(INDIRECT(\"'\"&F1096&\"'!\"&G1096)),\"\",INDIRECT(\"'\"&F1096&\"'!\"&G1096))","v":""},{"$f":"IF(ISBLANK(INDIRECT(\"'\"&F1096&\"'!\"&H1096)),\"\",IFERROR(VLOOKUP(TEXT(INDIRECT(\"'\"&F1096&\"'!\"&H1096),\"0\"),Notes!$B$5:$C$100,2,FALSE),\"\"))","v":""},"2e","$O$12","$P$12"]
[7497,{"$f":"Menu!$F$29","v":"X"},{"$f":"Menu!$J$29","v":2020},{"$f":"IF(ISBLANK(INDIRECT(\"'\"&F1097&\"'!\"&G1097)),\"\",INDIRECT(\"'\"&F1097&\"'!\"&G1097))","v":""},{"$f":"IF(ISBLANK(INDIRECT(\"'\"&F1097&\"'!\"&H1097)),\"\",IFERROR(VLOOKUP(TEXT(INDIRECT(\"'\"&F1097&\"'!\"&H1097),\"0\"),Notes!$B$5:$C$100,2,FALSE),\"\"))","v":""},"2e","$Q$12","$R$12"]
[7498,{"$f":"Menu!$F$29","v":"X"},{"$f":"Menu!$J$29","v":2020},{"$f":"IF(ISBLANK(INDIRECT(\"'\"&F1098&\"'!\"&G1098)),\"\",INDIRECT(\"'\"&F1098&\"'!\"&G1098))","v":""},{"$f":"IF(ISBLANK(INDIRECT(\"'\"&F1098&\"'!\"&H1098)),\"\",IFERROR(VLOOKUP(TEXT(INDIRECT(\"'\"&F1098&\"'!\"&H1098),\"0\"),Notes!$B$5:$C$100,2,FALSE),\"\"))","v":""},"2e","$S$12","$T$12"]
[7499,{"$f":"Menu!$F$29","v":"X"},{"$f":"Menu!$J$29","v":2020},{"$f":"IF(ISBLANK(INDIRECT(\"'\"&F1099&\"'!\"&G1099)),\"\",INDIRECT(\"'\"&F1099&\"'!\"&G1099))","v":""},{"$f":"IF(ISBLANK(INDIRECT(\"'\"&F1099&\"'!\"&H1099)),\"\",IFERROR(VLOOKUP(TEXT(INDIRECT(\"'\"&F1099&\"'!\"&H1099),\"0\"),Notes!$B$5:$C$100,2,FALSE),\"\"))","v":""},"2e","$U$12","$V$12"]
[7500,{"$f":"Menu!$F$29","v":"X"},{"$f":"Menu!$J$29","v":2020},{"$f":"IF(ISBLANK(INDIRECT(\"'\"&F1100&\"'!\"&G1100)),\"\",INDIRECT(\"'\"&F1100&\"'!\"&G1100))","v":""},{"$f":"IF(ISBLANK(INDIRECT(\"'\"&F1100&\"'!\"&H1100)),\"\",IFERROR(VLOOKUP(TEXT(INDIRECT(\"'\"&F1100&\"'!\"&H1100),\"0\"),Notes!$B$5:$C$100,2,FALSE),\"\"))","v":""},"2e","$W$12","$X$12"]
[7501,{"$f":"Menu!$F$29","v":"X"},{"$f":"Menu!$J$29","v":2020},{"$f":"IF(ISBLANK(INDIRECT(\"'\"&F1101&\"'!\"&G1101)),\"\",INDIRECT(\"'\"&F1101&\"'!\"&G1101))","v":""},{"$f":"IF(ISBLANK(INDIRECT(\"'\"&F1101&\"'!\"&H1101)),\"\",IFERROR(VLOOKUP(TEXT(INDIRECT(\"'\"&F1101&\"'!\"&H1101),\"0\"),Notes!$B$5:$C$100,2,FALSE),\"\"))","v":""},"2e","$Y$12","$Z$12"]
[7502,{"$f":"Menu!$F$29","v":"X"},{"$f":"Menu!$J$29","v":2020},{"$f":"IF(ISBLANK(INDIRECT(\"'\"&F1102&\"'!\"&G1102)),\"\",INDIRECT(\"'\"&F1102&\"'!\"&G1102))","v":""},{"$f":"IF(ISBLANK(INDIRECT(\"'\"&F1102&\"'!\"&H1102)),\"\",IFERROR(VLOOKUP(TEXT(INDIRECT(\"'\"&F1102&\"'!\"&H1102),\"0\"),Notes!$B$5:$C$100,2,FALSE),\"\"))","v":""},"2e","$AA$12","$AB$12"]
[7503,{"$f":"Menu!$F$29","v":"X"},{"$f":"Menu!$J$29","v":2020},{"$f":"IF(ISBLANK(INDIRECT(\"'\"&F1103&\"'!\"&G1103)),\"\",INDIRECT(\"'\"&F1103&\"'!\"&G1103))","v":""},{"$f":"IF(ISBLANK(INDIRECT(\"'\"&F1103&\"'!\"&H1103)),\"\",IFERROR(VLOOKUP(TEXT(INDIRECT(\"'\"&F1103&\"'!\"&H1103),\"0\"),Notes!$B$5:$C$100,2,FALSE),\"\"))","v":""},"2e","$AC$12","$AD$12"]
[7504,{"$f":"Menu!$F$29","v":"X"},{"$f":"Menu!$J$29","v":2020},{"$f":"IF(ISBLANK(INDIRECT(\"'\"&F1104&\"'!\"&G1104)),\"\",INDIRECT(\"'\"&F1104&\"'!\"&G1104))","v":""},{"$f":"IF(ISBLANK(INDIRECT(\"'\"&F1104&\"'!\"&H1104)),\"\",IFERROR(VLOOKUP(TEXT(INDIRECT(\"'\"&F1104&\"'!\"&H1104),\"0\"),Notes!$B$5:$C$100,2,FALSE),\"\"))","v":""},"2e","$AE$12","$AF$12"]
[7505,{"$f":"Menu!$F$29","v":"X"},{"$f":"Menu!$J$29","v":2020},{"$f":"IF(ISBLANK(INDIRECT(\"'\"&F1105&\"'!\"&G1105)),\"\",INDIRECT(\"'\"&F1105&\"'!\"&G1105))","v":""},{"$f":"IF(ISBLANK(INDIRECT(\"'\"&F1105&\"'!\"&H1105)),\"\",IFERROR(VLOOKUP(TEXT(INDIRECT(\"'\"&F1105&\"'!\"&H1105),\"0\"),Notes!$B$5:$C$100,2,FALSE),\"\"))","v":""},"2e","$AG$12","$AH$12"]
[7506,{"$f":"Menu!$F$29","v":"X"},{"$f":"Menu!$J$29","v":2020},{"$f":"IF(ISBLANK(INDIRECT(\"'\"&F1106&\"'!\"&G1106)),\"\",INDIRECT(\"'\"&F1106&\"'!\"&G1106))","v":""},{"$f":"IF(ISBLANK(INDIRECT(\"'\"&F1106&\"'!\"&H1106)),\"\",IFERROR(VLOOKUP(TEXT(INDIRECT(\"'\"&F1106&\"'!\"&H1106),\"0\"),Notes!$B$5:$C$100,2,FALSE),\"\"))","v":""},"2e","$AI$12","$AJ$12"]
[7507,{"$f":"Menu!$F$29","v":"X"},{"$f":"Menu!$J$29","v":2020},{"$f":"IF(ISBLANK(INDIRECT(\"'\"&F1107&\"'!\"&G1107)),\"\",INDIRECT(\"'\"&F1107&\"'!\"&G1107))","v":""},{"$f":"IF(ISBLANK(INDIRECT(\"'\"&F1107&\"'!\"&H1107)),\"\",IFERROR(VLOOKUP(TEXT(INDIRECT(\"'\"&F1107&\"'!\"&H1107),\"0\"),Notes!$B$5:$C$100,2,FALSE),\"\"))","v":""},"2e","$AK$12","$AL$12"]
[7508,{"$f":"Menu!$F$29","v":"X"},{"$f":"Menu!$J$29","v":2020},{"$f":"IF(ISBLANK(INDIRECT(\"'\"&F1108&\"'!\"&G1108)),\"\",INDIRECT(\"'\"&F1108&\"'!\"&G1108))","v":""},{"$f":"IF(ISBLANK(INDIRECT(\"'\"&F1108&\"'!\"&H1108)),\"\",IFERROR(VLOOKUP(TEXT(INDIRECT(\"'\"&F1108&\"'!\"&H1108),\"0\"),Notes!$B$5:$C$100,2,FALSE),\"\"))","v":""},"2e","$AM$12","$AN$12"]
[7509,{"$f":"Menu!$F$29","v":"X"},{"$f":"Menu!$J$29","v":2020},{"$f":"IF(ISBLANK(INDIRECT(\"'\"&F1109&\"'!\"&G1109)),\"\",INDIRECT(\"'\"&F1109&\"'!\"&G1109))","v":""},{"$f":"IF(ISBLANK(INDIRECT(\"'\"&F1109&\"'!\"&H1109)),\"\",IFERROR(VLOOKUP(TEXT(INDIRECT(\"'\"&F1109&\"'!\"&H1109),\"0\"),Notes!$B$5:$C$100,2,FALSE),\"\"))","v":""},"2e","$AO$12","$AP$12"]
[7510,{"$f":"Menu!$F$29","v":"X"},{"$f":"Menu!$J$29","v":2020},{"$f":"IF(ISBLANK(INDIRECT(\"'\"&F1110&\"'!\"&G1110)),\"\",INDIRECT(\"'\"&F1110&\"'!\"&G1110))","v":""},{"$f":"IF(ISBLANK(INDIRECT(\"'\"&F1110&\"'!\"&H1110)),\"\",IFERROR(VLOOKUP(TEXT(INDIRECT(\"'\"&F1110&\"'!\"&H1110),\"0\"),Notes!$B$5:$C$100,2,FALSE),\"\"))","v":""},"2e","$AQ$12","$AR$12"]
[7511,{"$f":"Menu!$F$29","v":"X"},{"$f":"Menu!$J$29","v":2020},{"$f":"IF(ISBLANK(INDIRECT(\"'\"&F1111&\"'!\"&G1111)),\"\",INDIRECT(\"'\"&F1111&\"'!\"&G1111))","v":""},{"$f":"IF(ISBLANK(INDIRECT(\"'\"&F1111&\"'!\"&H1111)),\"\",IFERROR(VLOOKUP(TEXT(INDIRECT(\"'\"&F1111&\"'!\"&H1111),\"0\"),Notes!$B$5:$C$100,2,FALSE),\"\"))","v":""},"2e","$AS$12","$AT$12"]
[7512,{"$f":"Menu!$F$29","v":"X"},{"$f":"Menu!$J$29","v":2020},{"$f":"IF(ISBLANK(INDIRECT(\"'\"&F1112&\"'!\"&G1112)),\"\",INDIRECT(\"'\"&F1112&\"'!\"&G1112))","v":""},{"$f":"IF(ISBLANK(INDIRECT(\"'\"&F1112&\"'!\"&H1112)),\"\",IFERROR(VLOOKUP(TEXT(INDIRECT(\"'\"&F1112&\"'!\"&H1112),\"0\"),Notes!$B$5:$C$100,2,FALSE),\"\"))","v":""},"2e","$AU$12","$AV$12"]
[7513,{"$f":"Menu!$F$29","v":"X"},{"$f":"Menu!$J$29","v":2020},{"$f":"IF(ISBLANK(INDIRECT(\"'\"&F1113&\"'!\"&G1113)),\"\",INDIRECT(\"'\"&F1113&\"'!\"&G1113))","v":""},{"$f":"IF(ISBLANK(INDIRECT(\"'\"&F1113&\"'!\"&H1113)),\"\",IFERROR(VLOOKUP(TEXT(INDIRECT(\"'\"&F1113&\"'!\"&H1113),\"0\"),Notes!$B$5:$C$100,2,FALSE),\"\"))","v":""},"2e","$AW$12","$AX$12"]
[7514,{"$f":"Menu!$F$29","v":"X"},{"$f":"Menu!$J$29","v":2020},{"$f":"IF(ISBLANK(INDIRECT(\"'\"&F1114&\"'!\"&G1114)),\"\",INDIRECT(\"'\"&F1114&\"'!\"&G1114))","v":""},{"$f":"IF(ISBLANK(INDIRECT(\"'\"&F1114&\"'!\"&H1114)),\"\",IFERROR(VLOOKUP(TEXT(INDIRECT(\"'\"&F1114&\"'!\"&H1114),\"0\"),Notes!$B$5:$C$100,2,FALSE),\"\"))","v":""},"2e","$AY$12","$AZ$12"]
[7515,{"$f":"Menu!$F$29","v":"X"},{"$f":"Menu!$J$29","v":2020},{"$f":"IF(ISBLANK(INDIRECT(\"'\"&F1115&\"'!\"&G1115)),\"\",INDIRECT(\"'\"&F1115&\"'!\"&G1115))","v":""},{"$f":"IF(ISBLANK(INDIRECT(\"'\"&F1115&\"'!\"&H1115)),\"\",IFERROR(VLOOKUP(TEXT(INDIRECT(\"'\"&F1115&\"'!\"&H1115),\"0\"),Notes!$B$5:$C$100,2,FALSE),\"\"))","v":""},"2e","$BA$12","$BB$12"]
[7516,{"$f":"Menu!$F$29","v":"X"},{"$f":"Menu!$J$29","v":2020},{"$f":"IF(ISBLANK(INDIRECT(\"'\"&F1116&\"'!\"&G1116)),\"\",INDIRECT(\"'\"&F1116&\"'!\"&G1116))","v":""},{"$f":"IF(ISBLANK(INDIRECT(\"'\"&F1116&\"'!\"&H1116)),\"\",IFERROR(VLOOKUP(TEXT(INDIRECT(\"'\"&F1116&\"'!\"&H1116),\"0\"),Notes!$B$5:$C$100,2,FALSE),\"\"))","v":""},"2e","$BC$12","$BD$12"]
[7517,{"$f":"Menu!$F$29","v":"X"},{"$f":"Menu!$J$29","v":2020},{"$f":"IF(ISBLANK(INDIRECT(\"'\"&F1117&\"'!\"&G1117)),\"\",INDIRECT(\"'\"&F1117&\"'!\"&G1117))","v":""},{"$f":"IF(ISBLANK(INDIRECT(\"'\"&F1117&\"'!\"&H1117)),\"\",IFERROR(VLOOKUP(TEXT(INDIRECT(\"'\"&F1117&\"'!\"&H1117),\"0\"),Notes!$B$5:$C$100,2,FALSE),\"\"))","v":""},"2e","$BE$12","$BF$12"]
[7518,{"$f":"Menu!$F$29","v":"X"},{"$f":"Menu!$J$29","v":2020},{"$f":"IF(ISBLANK(INDIRECT(\"'\"&F1118&\"'!\"&G1118)),\"\",INDIRECT(\"'\"&F1118&\"'!\"&G1118))","v":""},{"$f":"IF(ISBLANK(INDIRECT(\"'\"&F1118&\"'!\"&H1118)),\"\",IFERROR(VLOOKUP(TEXT(INDIRECT(\"'\"&F1118&\"'!\"&H1118),\"0\"),Notes!$B$5:$C$100,2,FALSE),\"\"))","v":""},"2e","$BG$12","$BH$12"]
[7519,{"$f":"Menu!$F$29","v":"X"},{"$f":"Menu!$J$29","v":2020},{"$f":"IF(ISBLANK(INDIRECT(\"'\"&F1119&\"'!\"&G1119)),\"\",INDIRECT(\"'\"&F1119&\"'!\"&G1119))","v":""},{"$f":"IF(ISBLANK(INDIRECT(\"'\"&F1119&\"'!\"&H1119)),\"\",IFERROR(VLOOKUP(TEXT(INDIRECT(\"'\"&F1119&\"'!\"&H1119),\"0\"),Notes!$B$5:$C$100,2,FALSE),\"\"))","v":""},"2e","$BI$12","$BJ$12"]
[7520,{"$f":"Menu!$F$29","v":"X"},{"$f":"Menu!$J$29","v":2020},{"$f":"IF(ISBLANK(INDIRECT(\"'\"&F1120&\"'!\"&G1120)),\"\",INDIRECT(\"'\"&F1120&\"'!\"&G1120))","v":""},{"$f":"IF(ISBLANK(INDIRECT(\"'\"&F1120&\"'!\"&H1120)),\"\",IFERROR(VLOOKUP(TEXT(INDIRECT(\"'\"&F1120&\"'!\"&H1120),\"0\"),Notes!$B$5:$C$100,2,FALSE),\"\"))","v":""},"2e","$BK$12","$BL$12"]
[7521,{"$f":"Menu!$F$29","v":"X"},{"$f":"Menu!$J$29","v":2020},{"$f":"IF(ISBLANK(INDIRECT(\"'\"&F1121&\"'!\"&G1121)),\"\",INDIRECT(\"'\"&F1121&\"'!\"&G1121))","v":""},{"$f":"IF(ISBLANK(INDIRECT(\"'\"&F1121&\"'!\"&H1121)),\"\",IFERROR(VLOOKUP(TEXT(INDIRECT(\"'\"&F1121&\"'!\"&H1121),\"0\"),Notes!$B$5:$C$100,2,FALSE),\"\"))","v":""},"2e","$E$20","$F$20"]
[7522,{"$f":"Menu!$F$29","v":"X"},{"$f":"Menu!$J$29","v":2020},{"$f":"IF(ISBLANK(INDIRECT(\"'\"&F1122&\"'!\"&G1122)),\"\",INDIRECT(\"'\"&F1122&\"'!\"&G1122))","v":""},{"$f":"IF(ISBLANK(INDIRECT(\"'\"&F1122&\"'!\"&H1122)),\"\",IFERROR(VLOOKUP(TEXT(INDIRECT(\"'\"&F1122&\"'!\"&H1122),\"0\"),Notes!$B$5:$C$100,2,FALSE),\"\"))","v":""},"2e","$G$20","$H$20"]
[7523,{"$f":"Menu!$F$29","v":"X"},{"$f":"Menu!$J$29","v":2020},{"$f":"IF(ISBLANK(INDIRECT(\"'\"&F1123&\"'!\"&G1123)),\"\",INDIRECT(\"'\"&F1123&\"'!\"&G1123))","v":""},{"$f":"IF(ISBLANK(INDIRECT(\"'\"&F1123&\"'!\"&H1123)),\"\",IFERROR(VLOOKUP(TEXT(INDIRECT(\"'\"&F1123&\"'!\"&H1123),\"0\"),Notes!$B$5:$C$100,2,FALSE),\"\"))","v":""},"2e","$I$20","$J$20"]
[7524,{"$f":"Menu!$F$29","v":"X"},{"$f":"Menu!$J$29","v":2020},{"$f":"IF(ISBLANK(INDIRECT(\"'\"&F1124&\"'!\"&G1124)),\"\",INDIRECT(\"'\"&F1124&\"'!\"&G1124))","v":""},{"$f":"IF(ISBLANK(INDIRECT(\"'\"&F1124&\"'!\"&H1124)),\"\",IFERROR(VLOOKUP(TEXT(INDIRECT(\"'\"&F1124&\"'!\"&H1124),\"0\"),Notes!$B$5:$C$100,2,FALSE),\"\"))","v":""},"2e","$K$20","$L$20"]
[7525,{"$f":"Menu!$F$29","v":"X"},{"$f":"Menu!$J$29","v":2020},{"$f":"IF(ISBLANK(INDIRECT(\"'\"&F1125&\"'!\"&G1125)),\"\",INDIRECT(\"'\"&F1125&\"'!\"&G1125))","v":""},{"$f":"IF(ISBLANK(INDIRECT(\"'\"&F1125&\"'!\"&H1125)),\"\",IFERROR(VLOOKUP(TEXT(INDIRECT(\"'\"&F1125&\"'!\"&H1125),\"0\"),Notes!$B$5:$C$100,2,FALSE),\"\"))","v":""},"2e","$M$20","$N$20"]
[7526,{"$f":"Menu!$F$29","v":"X"},{"$f":"Menu!$J$29","v":2020},{"$f":"IF(ISBLANK(INDIRECT(\"'\"&F1126&\"'!\"&G1126)),\"\",INDIRECT(\"'\"&F1126&\"'!\"&G1126))","v":""},{"$f":"IF(ISBLANK(INDIRECT(\"'\"&F1126&\"'!\"&H1126)),\"\",IFERROR(VLOOKUP(TEXT(INDIRECT(\"'\"&F1126&\"'!\"&H1126),\"0\"),Notes!$B$5:$C$100,2,FALSE),\"\"))","v":""},"2e","$O$20","$P$20"]
[7527,{"$f":"Menu!$F$29","v":"X"},{"$f":"Menu!$J$29","v":2020},{"$f":"IF(ISBLANK(INDIRECT(\"'\"&F1127&\"'!\"&G1127)),\"\",INDIRECT(\"'\"&F1127&\"'!\"&G1127))","v":""},{"$f":"IF(ISBLANK(INDIRECT(\"'\"&F1127&\"'!\"&H1127)),\"\",IFERROR(VLOOKUP(TEXT(INDIRECT(\"'\"&F1127&\"'!\"&H1127),\"0\"),Notes!$B$5:$C$100,2,FALSE),\"\"))","v":""},"2e","$Q$20","$R$20"]
[7528,{"$f":"Menu!$F$29","v":"X"},{"$f":"Menu!$J$29","v":2020},{"$f":"IF(ISBLANK(INDIRECT(\"'\"&F1128&\"'!\"&G1128)),\"\",INDIRECT(\"'\"&F1128&\"'!\"&G1128))","v":""},{"$f":"IF(ISBLANK(INDIRECT(\"'\"&F1128&\"'!\"&H1128)),\"\",IFERROR(VLOOKUP(TEXT(INDIRECT(\"'\"&F1128&\"'!\"&H1128),\"0\"),Notes!$B$5:$C$100,2,FALSE),\"\"))","v":""},"2e","$S$20","$T$20"]
[7529,{"$f":"Menu!$F$29","v":"X"},{"$f":"Menu!$J$29","v":2020},{"$f":"IF(ISBLANK(INDIRECT(\"'\"&F1129&\"'!\"&G1129)),\"\",INDIRECT(\"'\"&F1129&\"'!\"&G1129))","v":""},{"$f":"IF(ISBLANK(INDIRECT(\"'\"&F1129&\"'!\"&H1129)),\"\",IFERROR(VLOOKUP(TEXT(INDIRECT(\"'\"&F1129&\"'!\"&H1129),\"0\"),Notes!$B$5:$C$100,2,FALSE),\"\"))","v":""},"2e","$U$20","$V$20"]
[7530,{"$f":"Menu!$F$29","v":"X"},{"$f":"Menu!$J$29","v":2020},{"$f":"IF(ISBLANK(INDIRECT(\"'\"&F1130&\"'!\"&G1130)),\"\",INDIRECT(\"'\"&F1130&\"'!\"&G1130))","v":""},{"$f":"IF(ISBLANK(INDIRECT(\"'\"&F1130&\"'!\"&H1130)),\"\",IFERROR(VLOOKUP(TEXT(INDIRECT(\"'\"&F1130&\"'!\"&H1130),\"0\"),Notes!$B$5:$C$100,2,FALSE),\"\"))","v":""},"2e","$W$20","$X$20"]
[7531,{"$f":"Menu!$F$29","v":"X"},{"$f":"Menu!$J$29","v":2020},{"$f":"IF(ISBLANK(INDIRECT(\"'\"&F1131&\"'!\"&G1131)),\"\",INDIRECT(\"'\"&F1131&\"'!\"&G1131))","v":""},{"$f":"IF(ISBLANK(INDIRECT(\"'\"&F1131&\"'!\"&H1131)),\"\",IFERROR(VLOOKUP(TEXT(INDIRECT(\"'\"&F1131&\"'!\"&H1131),\"0\"),Notes!$B$5:$C$100,2,FALSE),\"\"))","v":""},"2e","$Y$20","$Z$20"]
[7532,{"$f":"Menu!$F$29","v":"X"},{"$f":"Menu!$J$29","v":2020},{"$f":"IF(ISBLANK(INDIRECT(\"'\"&F1132&\"'!\"&G1132)),\"\",INDIRECT(\"'\"&F1132&\"'!\"&G1132))","v":""},{"$f":"IF(ISBLANK(INDIRECT(\"'\"&F1132&\"'!\"&H1132)),\"\",IFERROR(VLOOKUP(TEXT(INDIRECT(\"'\"&F1132&\"'!\"&H1132),\"0\"),Notes!$B$5:$C$100,2,FALSE),\"\"))","v":""},"2e","$AA$20","$AB$20"]
[7533,{"$f":"Menu!$F$29","v":"X"},{"$f":"Menu!$J$29","v":2020},{"$f":"IF(ISBLANK(INDIRECT(\"'\"&F1133&\"'!\"&G1133)),\"\",INDIRECT(\"'\"&F1133&\"'!\"&G1133))","v":""},{"$f":"IF(ISBLANK(INDIRECT(\"'\"&F1133&\"'!\"&H1133)),\"\",IFERROR(VLOOKUP(TEXT(INDIRECT(\"'\"&F1133&\"'!\"&H1133),\"0\"),Notes!$B$5:$C$100,2,FALSE),\"\"))","v":""},"2e","$AC$20","$AD$20"]
[7534,{"$f":"Menu!$F$29","v":"X"},{"$f":"Menu!$J$29","v":2020},{"$f":"IF(ISBLANK(INDIRECT(\"'\"&F1134&\"'!\"&G1134)),\"\",INDIRECT(\"'\"&F1134&\"'!\"&G1134))","v":""},{"$f":"IF(ISBLANK(INDIRECT(\"'\"&F1134&\"'!\"&H1134)),\"\",IFERROR(VLOOKUP(TEXT(INDIRECT(\"'\"&F1134&\"'!\"&H1134),\"0\"),Notes!$B$5:$C$100,2,FALSE),\"\"))","v":""},"2e","$AE$20","$AF$20"]
[7535,{"$f":"Menu!$F$29","v":"X"},{"$f":"Menu!$J$29","v":2020},{"$f":"IF(ISBLANK(INDIRECT(\"'\"&F1135&\"'!\"&G1135)),\"\",INDIRECT(\"'\"&F1135&\"'!\"&G1135))","v":""},{"$f":"IF(ISBLANK(INDIRECT(\"'\"&F1135&\"'!\"&H1135)),\"\",IFERROR(VLOOKUP(TEXT(INDIRECT(\"'\"&F1135&\"'!\"&H1135),\"0\"),Notes!$B$5:$C$100,2,FALSE),\"\"))","v":""},"2e","$AG$20","$AH$20"]
[7536,{"$f":"Menu!$F$29","v":"X"},{"$f":"Menu!$J$29","v":2020},{"$f":"IF(ISBLANK(INDIRECT(\"'\"&F1136&\"'!\"&G1136)),\"\",INDIRECT(\"'\"&F1136&\"'!\"&G1136))","v":""},{"$f":"IF(ISBLANK(INDIRECT(\"'\"&F1136&\"'!\"&H1136)),\"\",IFERROR(VLOOKUP(TEXT(INDIRECT(\"'\"&F1136&\"'!\"&H1136),\"0\"),Notes!$B$5:$C$100,2,FALSE),\"\"))","v":""},"2e","$AI$20","$AJ$20"]
[7537,{"$f":"Menu!$F$29","v":"X"},{"$f":"Menu!$J$29","v":2020},{"$f":"IF(ISBLANK(INDIRECT(\"'\"&F1137&\"'!\"&G1137)),\"\",INDIRECT(\"'\"&F1137&\"'!\"&G1137))","v":""},{"$f":"IF(ISBLANK(INDIRECT(\"'\"&F1137&\"'!\"&H1137)),\"\",IFERROR(VLOOKUP(TEXT(INDIRECT(\"'\"&F1137&\"'!\"&H1137),\"0\"),Notes!$B$5:$C$100,2,FALSE),\"\"))","v":""},"2e","$AK$20","$AL$20"]
[7538,{"$f":"Menu!$F$29","v":"X"},{"$f":"Menu!$J$29","v":2020},{"$f":"IF(ISBLANK(INDIRECT(\"'\"&F1138&\"'!\"&G1138)),\"\",INDIRECT(\"'\"&F1138&\"'!\"&G1138))","v":""},{"$f":"IF(ISBLANK(INDIRECT(\"'\"&F1138&\"'!\"&H1138)),\"\",IFERROR(VLOOKUP(TEXT(INDIRECT(\"'\"&F1138&\"'!\"&H1138),\"0\"),Notes!$B$5:$C$100,2,FALSE),\"\"))","v":""},"2e","$AM$20","$AN$20"]
[7539,{"$f":"Menu!$F$29","v":"X"},{"$f":"Menu!$J$29","v":2020},{"$f":"IF(ISBLANK(INDIRECT(\"'\"&F1139&\"'!\"&G1139)),\"\",INDIRECT(\"'\"&F1139&\"'!\"&G1139))","v":""},{"$f":"IF(ISBLANK(INDIRECT(\"'\"&F1139&\"'!\"&H1139)),\"\",IFERROR(VLOOKUP(TEXT(INDIRECT(\"'\"&F1139&\"'!\"&H1139),\"0\"),Notes!$B$5:$C$100,2,FALSE),\"\"))","v":""},"2e","$AO$20","$AP$20"]
[7540,{"$f":"Menu!$F$29","v":"X"},{"$f":"Menu!$J$29","v":2020},{"$f":"IF(ISBLANK(INDIRECT(\"'\"&F1140&\"'!\"&G1140)),\"\",INDIRECT(\"'\"&F1140&\"'!\"&G1140))","v":""},{"$f":"IF(ISBLANK(INDIRECT(\"'\"&F1140&\"'!\"&H1140)),\"\",IFERROR(VLOOKUP(TEXT(INDIRECT(\"'\"&F1140&\"'!\"&H1140),\"0\"),Notes!$B$5:$C$100,2,FALSE),\"\"))","v":""},"2e","$AQ$20","$AR$20"]
[7541,{"$f":"Menu!$F$29","v":"X"},{"$f":"Menu!$J$29","v":2020},{"$f":"IF(ISBLANK(INDIRECT(\"'\"&F1141&\"'!\"&G1141)),\"\",INDIRECT(\"'\"&F1141&\"'!\"&G1141))","v":""},{"$f":"IF(ISBLANK(INDIRECT(\"'\"&F1141&\"'!\"&H1141)),\"\",IFERROR(VLOOKUP(TEXT(INDIRECT(\"'\"&F1141&\"'!\"&H1141),\"0\"),Notes!$B$5:$C$100,2,FALSE),\"\"))","v":""},"2e","$AS$20","$AT$20"]
[7542,{"$f":"Menu!$F$29","v":"X"},{"$f":"Menu!$J$29","v":2020},{"$f":"IF(ISBLANK(INDIRECT(\"'\"&F1142&\"'!\"&G1142)),\"\",INDIRECT(\"'\"&F1142&\"'!\"&G1142))","v":""},{"$f":"IF(ISBLANK(INDIRECT(\"'\"&F1142&\"'!\"&H1142)),\"\",IFERROR(VLOOKUP(TEXT(INDIRECT(\"'\"&F1142&\"'!\"&H1142),\"0\"),Notes!$B$5:$C$100,2,FALSE),\"\"))","v":""},"2e","$AU$20","$AV$20"]
[7543,{"$f":"Menu!$F$29","v":"X"},{"$f":"Menu!$J$29","v":2020},{"$f":"IF(ISBLANK(INDIRECT(\"'\"&F1143&\"'!\"&G1143)),\"\",INDIRECT(\"'\"&F1143&\"'!\"&G1143))","v":""},{"$f":"IF(ISBLANK(INDIRECT(\"'\"&F1143&\"'!\"&H1143)),\"\",IFERROR(VLOOKUP(TEXT(INDIRECT(\"'\"&F1143&\"'!\"&H1143),\"0\"),Notes!$B$5:$C$100,2,FALSE),\"\"))","v":""},"2e","$AW$20","$AX$20"]
[7544,{"$f":"Menu!$F$29","v":"X"},{"$f":"Menu!$J$29","v":2020},{"$f":"IF(ISBLANK(INDIRECT(\"'\"&F1144&\"'!\"&G1144)),\"\",INDIRECT(\"'\"&F1144&\"'!\"&G1144))","v":""},{"$f":"IF(ISBLANK(INDIRECT(\"'\"&F1144&\"'!\"&H1144)),\"\",IFERROR(VLOOKUP(TEXT(INDIRECT(\"'\"&F1144&\"'!\"&H1144),\"0\"),Notes!$B$5:$C$100,2,FALSE),\"\"))","v":""},"2e","$AY$20","$AZ$20"]
[7545,{"$f":"Menu!$F$29","v":"X"},{"$f":"Menu!$J$29","v":2020},{"$f":"IF(ISBLANK(INDIRECT(\"'\"&F1145&\"'!\"&G1145)),\"\",INDIRECT(\"'\"&F1145&\"'!\"&G1145))","v":""},{"$f":"IF(ISBLANK(INDIRECT(\"'\"&F1145&\"'!\"&H1145)),\"\",IFERROR(VLOOKUP(TEXT(INDIRECT(\"'\"&F1145&\"'!\"&H1145),\"0\"),Notes!$B$5:$C$100,2,FALSE),\"\"))","v":""},"2e","$BA$20","$BB$20"]
[7546,{"$f":"Menu!$F$29","v":"X"},{"$f":"Menu!$J$29","v":2020},{"$f":"IF(ISBLANK(INDIRECT(\"'\"&F1146&\"'!\"&G1146)),\"\",INDIRECT(\"'\"&F1146&\"'!\"&G1146))","v":""},{"$f":"IF(ISBLANK(INDIRECT(\"'\"&F1146&\"'!\"&H1146)),\"\",IFERROR(VLOOKUP(TEXT(INDIRECT(\"'\"&F1146&\"'!\"&H1146),\"0\"),Notes!$B$5:$C$100,2,FALSE),\"\"))","v":""},"2e","$BC$20","$BD$20"]
[7547,{"$f":"Menu!$F$29","v":"X"},{"$f":"Menu!$J$29","v":2020},{"$f":"IF(ISBLANK(INDIRECT(\"'\"&F1147&\"'!\"&G1147)),\"\",INDIRECT(\"'\"&F1147&\"'!\"&G1147))","v":""},{"$f":"IF(ISBLANK(INDIRECT(\"'\"&F1147&\"'!\"&H1147)),\"\",IFERROR(VLOOKUP(TEXT(INDIRECT(\"'\"&F1147&\"'!\"&H1147),\"0\"),Notes!$B$5:$C$100,2,FALSE),\"\"))","v":""},"2e","$BE$20","$BF$20"]
[7548,{"$f":"Menu!$F$29","v":"X"},{"$f":"Menu!$J$29","v":2020},{"$f":"IF(ISBLANK(INDIRECT(\"'\"&F1148&\"'!\"&G1148)),\"\",INDIRECT(\"'\"&F1148&\"'!\"&G1148))","v":""},{"$f":"IF(ISBLANK(INDIRECT(\"'\"&F1148&\"'!\"&H1148)),\"\",IFERROR(VLOOKUP(TEXT(INDIRECT(\"'\"&F1148&\"'!\"&H1148),\"0\"),Notes!$B$5:$C$100,2,FALSE),\"\"))","v":""},"2e","$BG$20","$BH$20"]
[7549,{"$f":"Menu!$F$29","v":"X"},{"$f":"Menu!$J$29","v":2020},{"$f":"IF(ISBLANK(INDIRECT(\"'\"&F1149&\"'!\"&G1149)),\"\",INDIRECT(\"'\"&F1149&\"'!\"&G1149))","v":""},{"$f":"IF(ISBLANK(INDIRECT(\"'\"&F1149&\"'!\"&H1149)),\"\",IFERROR(VLOOKUP(TEXT(INDIRECT(\"'\"&F1149&\"'!\"&H1149),\"0\"),Notes!$B$5:$C$100,2,FALSE),\"\"))","v":""},"2e","$BI$20","$BJ$20"]
[7550,{"$f":"Menu!$F$29","v":"X"},{"$f":"Menu!$J$29","v":2020},{"$f":"IF(ISBLANK(INDIRECT(\"'\"&F1150&\"'!\"&G1150)),\"\",INDIRECT(\"'\"&F1150&\"'!\"&G1150))","v":""},{"$f":"IF(ISBLANK(INDIRECT(\"'\"&F1150&\"'!\"&H1150)),\"\",IFERROR(VLOOKUP(TEXT(INDIRECT(\"'\"&F1150&\"'!\"&H1150),\"0\"),Notes!$B$5:$C$100,2,FALSE),\"\"))","v":""},"2e","$BK$20","$BL$20"]
[7581,{"$f":"Menu!$F$29","v":"X"},{"$f":"Menu!$J$29","v":2020},{"$f":"IF(ISBLANK(INDIRECT(\"'\"&F1151&\"'!\"&G1151)),\"\",INDIRECT(\"'\"&F1151&\"'!\"&G1151))","v":""},{"$f":"IF(ISBLANK(INDIRECT(\"'\"&F1151&\"'!\"&H1151)),\"\",IFERROR(VLOOKUP(TEXT(INDIRECT(\"'\"&F1151&\"'!\"&H1151),\"0\"),Notes!$B$5:$C$100,2,FALSE),\"\"))","v":""},"2e","$E$65","$F$65"]
[7582,{"$f":"Menu!$F$29","v":"X"},{"$f":"Menu!$J$29","v":2020},{"$f":"IF(ISBLANK(INDIRECT(\"'\"&F1152&\"'!\"&G1152)),\"\",INDIRECT(\"'\"&F1152&\"'!\"&G1152))","v":""},{"$f":"IF(ISBLANK(INDIRECT(\"'\"&F1152&\"'!\"&H1152)),\"\",IFERROR(VLOOKUP(TEXT(INDIRECT(\"'\"&F1152&\"'!\"&H1152),\"0\"),Notes!$B$5:$C$100,2,FALSE),\"\"))","v":""},"2e","$G$65","$H$65"]
[7583,{"$f":"Menu!$F$29","v":"X"},{"$f":"Menu!$J$29","v":2020},{"$f":"IF(ISBLANK(INDIRECT(\"'\"&F1153&\"'!\"&G1153)),\"\",INDIRECT(\"'\"&F1153&\"'!\"&G1153))","v":""},{"$f":"IF(ISBLANK(INDIRECT(\"'\"&F1153&\"'!\"&H1153)),\"\",IFERROR(VLOOKUP(TEXT(INDIRECT(\"'\"&F1153&\"'!\"&H1153),\"0\"),Notes!$B$5:$C$100,2,FALSE),\"\"))","v":""},"2e","$I$65","$J$65"]
[7584,{"$f":"Menu!$F$29","v":"X"},{"$f":"Menu!$J$29","v":2020},{"$f":"IF(ISBLANK(INDIRECT(\"'\"&F1154&\"'!\"&G1154)),\"\",INDIRECT(\"'\"&F1154&\"'!\"&G1154))","v":""},{"$f":"IF(ISBLANK(INDIRECT(\"'\"&F1154&\"'!\"&H1154)),\"\",IFERROR(VLOOKUP(TEXT(INDIRECT(\"'\"&F1154&\"'!\"&H1154),\"0\"),Notes!$B$5:$C$100,2,FALSE),\"\"))","v":""},"2e","$K$65",{"$f":"IF(LEN(TRIM(MID(G1154,4,10)))-LEN(SUBSTITUTE(TRIM(MID(G1154,4,10)),\"$\",\"\"))=0,\"$\"&CHAR(CODE(MID(G1154,2,1))+1)&\"$\"&TRIM(MID(G1154,4,10)),\"$\"&MID(G1154,2,1)&CHAR(CODE(MID(G1154,3,1))+1)&\"$\"&TRIM(MID(G1154,5,11)))","v":"$L$65"}]
[7585,{"$f":"Menu!$F$29","v":"X"},{"$f":"Menu!$J$29","v":2020},{"$f":"IF(ISBLANK(INDIRECT(\"'\"&F1155&\"'!\"&G1155)),\"\",INDIRECT(\"'\"&F1155&\"'!\"&G1155))","v":""},{"$f":"IF(ISBLANK(INDIRECT(\"'\"&F1155&\"'!\"&H1155)),\"\",IFERROR(VLOOKUP(TEXT(INDIRECT(\"'\"&F1155&\"'!\"&H1155),\"0\"),Notes!$B$5:$C$100,2,FALSE),\"\"))","v":""},"2e","$M$65","$N$65"]
[7586,{"$f":"Menu!$F$29","v":"X"},{"$f":"Menu!$J$29","v":2020},{"$f":"IF(ISBLANK(INDIRECT(\"'\"&F1156&\"'!\"&G1156)),\"\",INDIRECT(\"'\"&F1156&\"'!\"&G1156))","v":""},{"$f":"IF(ISBLANK(INDIRECT(\"'\"&F1156&\"'!\"&H1156)),\"\",IFERROR(VLOOKUP(TEXT(INDIRECT(\"'\"&F1156&\"'!\"&H1156),\"0\"),Notes!$B$5:$C$100,2,FALSE),\"\"))","v":""},"2e","$O$65","$P$65"]
[7587,{"$f":"Menu!$F$29","v":"X"},{"$f":"Menu!$J$29","v":2020},{"$f":"IF(ISBLANK(INDIRECT(\"'\"&F1157&\"'!\"&G1157)),\"\",INDIRECT(\"'\"&F1157&\"'!\"&G1157))","v":""},{"$f":"IF(ISBLANK(INDIRECT(\"'\"&F1157&\"'!\"&H1157)),\"\",IFERROR(VLOOKUP(TEXT(INDIRECT(\"'\"&F1157&\"'!\"&H1157),\"0\"),Notes!$B$5:$C$100,2,FALSE),\"\"))","v":""},"2e","$Q$65","$R$65"]
[7588,{"$f":"Menu!$F$29","v":"X"},{"$f":"Menu!$J$29","v":2020},{"$f":"IF(ISBLANK(INDIRECT(\"'\"&F1158&\"'!\"&G1158)),\"\",INDIRECT(\"'\"&F1158&\"'!\"&G1158))","v":""},{"$f":"IF(ISBLANK(INDIRECT(\"'\"&F1158&\"'!\"&H1158)),\"\",IFERROR(VLOOKUP(TEXT(INDIRECT(\"'\"&F1158&\"'!\"&H1158),\"0\"),Notes!$B$5:$C$100,2,FALSE),\"\"))","v":""},"2e","$S$65","$T$65"]
[7589,{"$f":"Menu!$F$29","v":"X"},{"$f":"Menu!$J$29","v":2020},{"$f":"IF(ISBLANK(INDIRECT(\"'\"&F1159&\"'!\"&G1159)),\"\",INDIRECT(\"'\"&F1159&\"'!\"&G1159))","v":""},{"$f":"IF(ISBLANK(INDIRECT(\"'\"&F1159&\"'!\"&H1159)),\"\",IFERROR(VLOOKUP(TEXT(INDIRECT(\"'\"&F1159&\"'!\"&H1159),\"0\"),Notes!$B$5:$C$100,2,FALSE),\"\"))","v":""},"2e","$U$65","$V$65"]
[7590,{"$f":"Menu!$F$29","v":"X"},{"$f":"Menu!$J$29","v":2020},{"$f":"IF(ISBLANK(INDIRECT(\"'\"&F1160&\"'!\"&G1160)),\"\",INDIRECT(\"'\"&F1160&\"'!\"&G1160))","v":""},{"$f":"IF(ISBLANK(INDIRECT(\"'\"&F1160&\"'!\"&H1160)),\"\",IFERROR(VLOOKUP(TEXT(INDIRECT(\"'\"&F1160&\"'!\"&H1160),\"0\"),Notes!$B$5:$C$100,2,FALSE),\"\"))","v":""},"2e","$W$65","$X$65"]
[7591,{"$f":"Menu!$F$29","v":"X"},{"$f":"Menu!$J$29","v":2020},{"$f":"IF(ISBLANK(INDIRECT(\"'\"&F1161&\"'!\"&G1161)),\"\",INDIRECT(\"'\"&F1161&\"'!\"&G1161))","v":""},{"$f":"IF(ISBLANK(INDIRECT(\"'\"&F1161&\"'!\"&H1161)),\"\",IFERROR(VLOOKUP(TEXT(INDIRECT(\"'\"&F1161&\"'!\"&H1161),\"0\"),Notes!$B$5:$C$100,2,FALSE),\"\"))","v":""},"2e","$Y$65","$Z$65"]
[7592,{"$f":"Menu!$F$29","v":"X"},{"$f":"Menu!$J$29","v":2020},{"$f":"IF(ISBLANK(INDIRECT(\"'\"&F1162&\"'!\"&G1162)),\"\",INDIRECT(\"'\"&F1162&\"'!\"&G1162))","v":""},{"$f":"IF(ISBLANK(INDIRECT(\"'\"&F1162&\"'!\"&H1162)),\"\",IFERROR(VLOOKUP(TEXT(INDIRECT(\"'\"&F1162&\"'!\"&H1162),\"0\"),Notes!$B$5:$C$100,2,FALSE),\"\"))","v":""},"2e","$AA$65","$AB$65"]
[7593,{"$f":"Menu!$F$29","v":"X"},{"$f":"Menu!$J$29","v":2020},{"$f":"IF(ISBLANK(INDIRECT(\"'\"&F1163&\"'!\"&G1163)),\"\",INDIRECT(\"'\"&F1163&\"'!\"&G1163))","v":""},{"$f":"IF(ISBLANK(INDIRECT(\"'\"&F1163&\"'!\"&H1163)),\"\",IFERROR(VLOOKUP(TEXT(INDIRECT(\"'\"&F1163&\"'!\"&H1163),\"0\"),Notes!$B$5:$C$100,2,FALSE),\"\"))","v":""},"2e","$AC$65","$AD$65"]
[7594,{"$f":"Menu!$F$29","v":"X"},{"$f":"Menu!$J$29","v":2020},{"$f":"IF(ISBLANK(INDIRECT(\"'\"&F1164&\"'!\"&G1164)),\"\",INDIRECT(\"'\"&F1164&\"'!\"&G1164))","v":""},{"$f":"IF(ISBLANK(INDIRECT(\"'\"&F1164&\"'!\"&H1164)),\"\",IFERROR(VLOOKUP(TEXT(INDIRECT(\"'\"&F1164&\"'!\"&H1164),\"0\"),Notes!$B$5:$C$100,2,FALSE),\"\"))","v":""},"2e","$AE$65","$AF$65"]
[7595,{"$f":"Menu!$F$29","v":"X"},{"$f":"Menu!$J$29","v":2020},{"$f":"IF(ISBLANK(INDIRECT(\"'\"&F1165&\"'!\"&G1165)),\"\",INDIRECT(\"'\"&F1165&\"'!\"&G1165))","v":""},{"$f":"IF(ISBLANK(INDIRECT(\"'\"&F1165&\"'!\"&H1165)),\"\",IFERROR(VLOOKUP(TEXT(INDIRECT(\"'\"&F1165&\"'!\"&H1165),\"0\"),Notes!$B$5:$C$100,2,FALSE),\"\"))","v":""},"2e","$AG$65","$AH$65"]
[7596,{"$f":"Menu!$F$29","v":"X"},{"$f":"Menu!$J$29","v":2020},{"$f":"IF(ISBLANK(INDIRECT(\"'\"&F1166&\"'!\"&G1166)),\"\",INDIRECT(\"'\"&F1166&\"'!\"&G1166))","v":""},{"$f":"IF(ISBLANK(INDIRECT(\"'\"&F1166&\"'!\"&H1166)),\"\",IFERROR(VLOOKUP(TEXT(INDIRECT(\"'\"&F1166&\"'!\"&H1166),\"0\"),Notes!$B$5:$C$100,2,FALSE),\"\"))","v":""},"2e","$AI$65","$AJ$65"]
[7597,{"$f":"Menu!$F$29","v":"X"},{"$f":"Menu!$J$29","v":2020},{"$f":"IF(ISBLANK(INDIRECT(\"'\"&F1167&\"'!\"&G1167)),\"\",INDIRECT(\"'\"&F1167&\"'!\"&G1167))","v":""},{"$f":"IF(ISBLANK(INDIRECT(\"'\"&F1167&\"'!\"&H1167)),\"\",IFERROR(VLOOKUP(TEXT(INDIRECT(\"'\"&F1167&\"'!\"&H1167),\"0\"),Notes!$B$5:$C$100,2,FALSE),\"\"))","v":""},"2e","$AK$65","$AL$65"]
[7598,{"$f":"Menu!$F$29","v":"X"},{"$f":"Menu!$J$29","v":2020},{"$f":"IF(ISBLANK(INDIRECT(\"'\"&F1168&\"'!\"&G1168)),\"\",INDIRECT(\"'\"&F1168&\"'!\"&G1168))","v":""},{"$f":"IF(ISBLANK(INDIRECT(\"'\"&F1168&\"'!\"&H1168)),\"\",IFERROR(VLOOKUP(TEXT(INDIRECT(\"'\"&F1168&\"'!\"&H1168),\"0\"),Notes!$B$5:$C$100,2,FALSE),\"\"))","v":""},"2e","$AM$65","$AN$65"]
[7599,{"$f":"Menu!$F$29","v":"X"},{"$f":"Menu!$J$29","v":2020},{"$f":"IF(ISBLANK(INDIRECT(\"'\"&F1169&\"'!\"&G1169)),\"\",INDIRECT(\"'\"&F1169&\"'!\"&G1169))","v":""},{"$f":"IF(ISBLANK(INDIRECT(\"'\"&F1169&\"'!\"&H1169)),\"\",IFERROR(VLOOKUP(TEXT(INDIRECT(\"'\"&F1169&\"'!\"&H1169),\"0\"),Notes!$B$5:$C$100,2,FALSE),\"\"))","v":""},"2e","$AO$65","$AP$65"]
[7600,{"$f":"Menu!$F$29","v":"X"},{"$f":"Menu!$J$29","v":2020},{"$f":"IF(ISBLANK(INDIRECT(\"'\"&F1170&\"'!\"&G1170)),\"\",INDIRECT(\"'\"&F1170&\"'!\"&G1170))","v":""},{"$f":"IF(ISBLANK(INDIRECT(\"'\"&F1170&\"'!\"&H1170)),\"\",IFERROR(VLOOKUP(TEXT(INDIRECT(\"'\"&F1170&\"'!\"&H1170),\"0\"),Notes!$B$5:$C$100,2,FALSE),\"\"))","v":""},"2e","$AQ$65","$AR$65"]
[7601,{"$f":"Menu!$F$29","v":"X"},{"$f":"Menu!$J$29","v":2020},{"$f":"IF(ISBLANK(INDIRECT(\"'\"&F1171&\"'!\"&G1171)),\"\",INDIRECT(\"'\"&F1171&\"'!\"&G1171))","v":""},{"$f":"IF(ISBLANK(INDIRECT(\"'\"&F1171&\"'!\"&H1171)),\"\",IFERROR(VLOOKUP(TEXT(INDIRECT(\"'\"&F1171&\"'!\"&H1171),\"0\"),Notes!$B$5:$C$100,2,FALSE),\"\"))","v":""},"2e","$AS$65","$AT$65"]
[7602,{"$f":"Menu!$F$29","v":"X"},{"$f":"Menu!$J$29","v":2020},{"$f":"IF(ISBLANK(INDIRECT(\"'\"&F1172&\"'!\"&G1172)),\"\",INDIRECT(\"'\"&F1172&\"'!\"&G1172))","v":""},{"$f":"IF(ISBLANK(INDIRECT(\"'\"&F1172&\"'!\"&H1172)),\"\",IFERROR(VLOOKUP(TEXT(INDIRECT(\"'\"&F1172&\"'!\"&H1172),\"0\"),Notes!$B$5:$C$100,2,FALSE),\"\"))","v":""},"2e","$AU$65","$AV$65"]
[7603,{"$f":"Menu!$F$29","v":"X"},{"$f":"Menu!$J$29","v":2020},{"$f":"IF(ISBLANK(INDIRECT(\"'\"&F1173&\"'!\"&G1173)),\"\",INDIRECT(\"'\"&F1173&\"'!\"&G1173))","v":""},{"$f":"IF(ISBLANK(INDIRECT(\"'\"&F1173&\"'!\"&H1173)),\"\",IFERROR(VLOOKUP(TEXT(INDIRECT(\"'\"&F1173&\"'!\"&H1173),\"0\"),Notes!$B$5:$C$100,2,FALSE),\"\"))","v":""},"2e","$AW$65","$AX$65"]
[7604,{"$f":"Menu!$F$29","v":"X"},{"$f":"Menu!$J$29","v":2020},{"$f":"IF(ISBLANK(INDIRECT(\"'\"&F1174&\"'!\"&G1174)),\"\",INDIRECT(\"'\"&F1174&\"'!\"&G1174))","v":""},{"$f":"IF(ISBLANK(INDIRECT(\"'\"&F1174&\"'!\"&H1174)),\"\",IFERROR(VLOOKUP(TEXT(INDIRECT(\"'\"&F1174&\"'!\"&H1174),\"0\"),Notes!$B$5:$C$100,2,FALSE),\"\"))","v":""},"2e","$AY$65","$AZ$65"]
[7605,{"$f":"Menu!$F$29","v":"X"},{"$f":"Menu!$J$29","v":2020},{"$f":"IF(ISBLANK(INDIRECT(\"'\"&F1175&\"'!\"&G1175)),\"\",INDIRECT(\"'\"&F1175&\"'!\"&G1175))","v":""},{"$f":"IF(ISBLANK(INDIRECT(\"'\"&F1175&\"'!\"&H1175)),\"\",IFERROR(VLOOKUP(TEXT(INDIRECT(\"'\"&F1175&\"'!\"&H1175),\"0\"),Notes!$B$5:$C$100,2,FALSE),\"\"))","v":""},"2e","$BA$65","$BB$65"]
[7606,{"$f":"Menu!$F$29","v":"X"},{"$f":"Menu!$J$29","v":2020},{"$f":"IF(ISBLANK(INDIRECT(\"'\"&F1176&\"'!\"&G1176)),\"\",INDIRECT(\"'\"&F1176&\"'!\"&G1176))","v":""},{"$f":"IF(ISBLANK(INDIRECT(\"'\"&F1176&\"'!\"&H1176)),\"\",IFERROR(VLOOKUP(TEXT(INDIRECT(\"'\"&F1176&\"'!\"&H1176),\"0\"),Notes!$B$5:$C$100,2,FALSE),\"\"))","v":""},"2e","$BC$65","$BD$65"]
[7607,{"$f":"Menu!$F$29","v":"X"},{"$f":"Menu!$J$29","v":2020},{"$f":"IF(ISBLANK(INDIRECT(\"'\"&F1177&\"'!\"&G1177)),\"\",INDIRECT(\"'\"&F1177&\"'!\"&G1177))","v":""},{"$f":"IF(ISBLANK(INDIRECT(\"'\"&F1177&\"'!\"&H1177)),\"\",IFERROR(VLOOKUP(TEXT(INDIRECT(\"'\"&F1177&\"'!\"&H1177),\"0\"),Notes!$B$5:$C$100,2,FALSE),\"\"))","v":""},"2e","$BE$65","$BF$65"]
[7608,{"$f":"Menu!$F$29","v":"X"},{"$f":"Menu!$J$29","v":2020},{"$f":"IF(ISBLANK(INDIRECT(\"'\"&F1178&\"'!\"&G1178)),\"\",INDIRECT(\"'\"&F1178&\"'!\"&G1178))","v":""},{"$f":"IF(ISBLANK(INDIRECT(\"'\"&F1178&\"'!\"&H1178)),\"\",IFERROR(VLOOKUP(TEXT(INDIRECT(\"'\"&F1178&\"'!\"&H1178),\"0\"),Notes!$B$5:$C$100,2,FALSE),\"\"))","v":""},"2e","$BG$65","$BH$65"]
[7609,{"$f":"Menu!$F$29","v":"X"},{"$f":"Menu!$J$29","v":2020},{"$f":"IF(ISBLANK(INDIRECT(\"'\"&F1179&\"'!\"&G1179)),\"\",INDIRECT(\"'\"&F1179&\"'!\"&G1179))","v":""},{"$f":"IF(ISBLANK(INDIRECT(\"'\"&F1179&\"'!\"&H1179)),\"\",IFERROR(VLOOKUP(TEXT(INDIRECT(\"'\"&F1179&\"'!\"&H1179),\"0\"),Notes!$B$5:$C$100,2,FALSE),\"\"))","v":""},"2e","$BI$65","$BJ$65"]
[7610,{"$f":"Menu!$F$29","v":"X"},{"$f":"Menu!$J$29","v":2020},{"$f":"IF(ISBLANK(INDIRECT(\"'\"&F1180&\"'!\"&G1180)),\"\",INDIRECT(\"'\"&F1180&\"'!\"&G1180))","v":""},{"$f":"IF(ISBLANK(INDIRECT(\"'\"&F1180&\"'!\"&H1180)),\"\",IFERROR(VLOOKUP(TEXT(INDIRECT(\"'\"&F1180&\"'!\"&H1180),\"0\"),Notes!$B$5:$C$100,2,FALSE),\"\"))","v":""},"2e","$BK$65","$BL$65"]
[7611,{"$f":"Menu!$F$29","v":"X"},{"$f":"Menu!$J$29","v":2020},{"$f":"IF(ISBLANK(INDIRECT(\"'\"&F1181&\"'!\"&G1181)),\"\",INDIRECT(\"'\"&F1181&\"'!\"&G1181))","v":""},{"$f":"IF(ISBLANK(INDIRECT(\"'\"&F1181&\"'!\"&H1181)),\"\",IFERROR(VLOOKUP(TEXT(INDIRECT(\"'\"&F1181&\"'!\"&H1181),\"0\"),Notes!$B$5:$C$100,2,FALSE),\"\"))","v":""},"2e","$E$66","$F$66"]
[7612,{"$f":"Menu!$F$29","v":"X"},{"$f":"Menu!$J$29","v":2020},{"$f":"IF(ISBLANK(INDIRECT(\"'\"&F1182&\"'!\"&G1182)),\"\",INDIRECT(\"'\"&F1182&\"'!\"&G1182))","v":""},{"$f":"IF(ISBLANK(INDIRECT(\"'\"&F1182&\"'!\"&H1182)),\"\",IFERROR(VLOOKUP(TEXT(INDIRECT(\"'\"&F1182&\"'!\"&H1182),\"0\"),Notes!$B$5:$C$100,2,FALSE),\"\"))","v":""},"2e","$G$66","$H$66"]
[7613,{"$f":"Menu!$F$29","v":"X"},{"$f":"Menu!$J$29","v":2020},{"$f":"IF(ISBLANK(INDIRECT(\"'\"&F1183&\"'!\"&G1183)),\"\",INDIRECT(\"'\"&F1183&\"'!\"&G1183))","v":""},{"$f":"IF(ISBLANK(INDIRECT(\"'\"&F1183&\"'!\"&H1183)),\"\",IFERROR(VLOOKUP(TEXT(INDIRECT(\"'\"&F1183&\"'!\"&H1183),\"0\"),Notes!$B$5:$C$100,2,FALSE),\"\"))","v":""},"2e","$I$66","$J$66"]
[7614,{"$f":"Menu!$F$29","v":"X"},{"$f":"Menu!$J$29","v":2020},{"$f":"IF(ISBLANK(INDIRECT(\"'\"&F1184&\"'!\"&G1184)),\"\",INDIRECT(\"'\"&F1184&\"'!\"&G1184))","v":""},{"$f":"IF(ISBLANK(INDIRECT(\"'\"&F1184&\"'!\"&H1184)),\"\",IFERROR(VLOOKUP(TEXT(INDIRECT(\"'\"&F1184&\"'!\"&H1184),\"0\"),Notes!$B$5:$C$100,2,FALSE),\"\"))","v":""},"2e","$K$66","$L$66"]
[7615,{"$f":"Menu!$F$29","v":"X"},{"$f":"Menu!$J$29","v":2020},{"$f":"IF(ISBLANK(INDIRECT(\"'\"&F1185&\"'!\"&G1185)),\"\",INDIRECT(\"'\"&F1185&\"'!\"&G1185))","v":""},{"$f":"IF(ISBLANK(INDIRECT(\"'\"&F1185&\"'!\"&H1185)),\"\",IFERROR(VLOOKUP(TEXT(INDIRECT(\"'\"&F1185&\"'!\"&H1185),\"0\"),Notes!$B$5:$C$100,2,FALSE),\"\"))","v":""},"2e","$M$66","$N$66"]
[7616,{"$f":"Menu!$F$29","v":"X"},{"$f":"Menu!$J$29","v":2020},{"$f":"IF(ISBLANK(INDIRECT(\"'\"&F1186&\"'!\"&G1186)),\"\",INDIRECT(\"'\"&F1186&\"'!\"&G1186))","v":""},{"$f":"IF(ISBLANK(INDIRECT(\"'\"&F1186&\"'!\"&H1186)),\"\",IFERROR(VLOOKUP(TEXT(INDIRECT(\"'\"&F1186&\"'!\"&H1186),\"0\"),Notes!$B$5:$C$100,2,FALSE),\"\"))","v":""},"2e","$O$66","$P$66"]
[7617,{"$f":"Menu!$F$29","v":"X"},{"$f":"Menu!$J$29","v":2020},{"$f":"IF(ISBLANK(INDIRECT(\"'\"&F1187&\"'!\"&G1187)),\"\",INDIRECT(\"'\"&F1187&\"'!\"&G1187))","v":""},{"$f":"IF(ISBLANK(INDIRECT(\"'\"&F1187&\"'!\"&H1187)),\"\",IFERROR(VLOOKUP(TEXT(INDIRECT(\"'\"&F1187&\"'!\"&H1187),\"0\"),Notes!$B$5:$C$100,2,FALSE),\"\"))","v":""},"2e","$Q$66","$R$66"]
[7618,{"$f":"Menu!$F$29","v":"X"},{"$f":"Menu!$J$29","v":2020},{"$f":"IF(ISBLANK(INDIRECT(\"'\"&F1188&\"'!\"&G1188)),\"\",INDIRECT(\"'\"&F1188&\"'!\"&G1188))","v":""},{"$f":"IF(ISBLANK(INDIRECT(\"'\"&F1188&\"'!\"&H1188)),\"\",IFERROR(VLOOKUP(TEXT(INDIRECT(\"'\"&F1188&\"'!\"&H1188),\"0\"),Notes!$B$5:$C$100,2,FALSE),\"\"))","v":""},"2e","$S$66","$T$66"]
[7619,{"$f":"Menu!$F$29","v":"X"},{"$f":"Menu!$J$29","v":2020},{"$f":"IF(ISBLANK(INDIRECT(\"'\"&F1189&\"'!\"&G1189)),\"\",INDIRECT(\"'\"&F1189&\"'!\"&G1189))","v":""},{"$f":"IF(ISBLANK(INDIRECT(\"'\"&F1189&\"'!\"&H1189)),\"\",IFERROR(VLOOKUP(TEXT(INDIRECT(\"'\"&F1189&\"'!\"&H1189),\"0\"),Notes!$B$5:$C$100,2,FALSE),\"\"))","v":""},"2e","$U$66","$V$66"]
[7620,{"$f":"Menu!$F$29","v":"X"},{"$f":"Menu!$J$29","v":2020},{"$f":"IF(ISBLANK(INDIRECT(\"'\"&F1190&\"'!\"&G1190)),\"\",INDIRECT(\"'\"&F1190&\"'!\"&G1190))","v":""},{"$f":"IF(ISBLANK(INDIRECT(\"'\"&F1190&\"'!\"&H1190)),\"\",IFERROR(VLOOKUP(TEXT(INDIRECT(\"'\"&F1190&\"'!\"&H1190),\"0\"),Notes!$B$5:$C$100,2,FALSE),\"\"))","v":""},"2e","$W$66","$X$66"]
[7621,{"$f":"Menu!$F$29","v":"X"},{"$f":"Menu!$J$29","v":2020},{"$f":"IF(ISBLANK(INDIRECT(\"'\"&F1191&\"'!\"&G1191)),\"\",INDIRECT(\"'\"&F1191&\"'!\"&G1191))","v":""},{"$f":"IF(ISBLANK(INDIRECT(\"'\"&F1191&\"'!\"&H1191)),\"\",IFERROR(VLOOKUP(TEXT(INDIRECT(\"'\"&F1191&\"'!\"&H1191),\"0\"),Notes!$B$5:$C$100,2,FALSE),\"\"))","v":""},"2e","$Y$66","$Z$66"]
[7622,{"$f":"Menu!$F$29","v":"X"},{"$f":"Menu!$J$29","v":2020},{"$f":"IF(ISBLANK(INDIRECT(\"'\"&F1192&\"'!\"&G1192)),\"\",INDIRECT(\"'\"&F1192&\"'!\"&G1192))","v":""},{"$f":"IF(ISBLANK(INDIRECT(\"'\"&F1192&\"'!\"&H1192)),\"\",IFERROR(VLOOKUP(TEXT(INDIRECT(\"'\"&F1192&\"'!\"&H1192),\"0\"),Notes!$B$5:$C$100,2,FALSE),\"\"))","v":""},"2e","$AA$66","$AB$66"]
[7623,{"$f":"Menu!$F$29","v":"X"},{"$f":"Menu!$J$29","v":2020},{"$f":"IF(ISBLANK(INDIRECT(\"'\"&F1193&\"'!\"&G1193)),\"\",INDIRECT(\"'\"&F1193&\"'!\"&G1193))","v":""},{"$f":"IF(ISBLANK(INDIRECT(\"'\"&F1193&\"'!\"&H1193)),\"\",IFERROR(VLOOKUP(TEXT(INDIRECT(\"'\"&F1193&\"'!\"&H1193),\"0\"),Notes!$B$5:$C$100,2,FALSE),\"\"))","v":""},"2e","$AC$66","$AD$66"]
[7624,{"$f":"Menu!$F$29","v":"X"},{"$f":"Menu!$J$29","v":2020},{"$f":"IF(ISBLANK(INDIRECT(\"'\"&F1194&\"'!\"&G1194)),\"\",INDIRECT(\"'\"&F1194&\"'!\"&G1194))","v":""},{"$f":"IF(ISBLANK(INDIRECT(\"'\"&F1194&\"'!\"&H1194)),\"\",IFERROR(VLOOKUP(TEXT(INDIRECT(\"'\"&F1194&\"'!\"&H1194),\"0\"),Notes!$B$5:$C$100,2,FALSE),\"\"))","v":""},"2e","$AE$66","$AF$66"]
[7625,{"$f":"Menu!$F$29","v":"X"},{"$f":"Menu!$J$29","v":2020},{"$f":"IF(ISBLANK(INDIRECT(\"'\"&F1195&\"'!\"&G1195)),\"\",INDIRECT(\"'\"&F1195&\"'!\"&G1195))","v":""},{"$f":"IF(ISBLANK(INDIRECT(\"'\"&F1195&\"'!\"&H1195)),\"\",IFERROR(VLOOKUP(TEXT(INDIRECT(\"'\"&F1195&\"'!\"&H1195),\"0\"),Notes!$B$5:$C$100,2,FALSE),\"\"))","v":""},"2e","$AG$66","$AH$66"]
[7626,{"$f":"Menu!$F$29","v":"X"},{"$f":"Menu!$J$29","v":2020},{"$f":"IF(ISBLANK(INDIRECT(\"'\"&F1196&\"'!\"&G1196)),\"\",INDIRECT(\"'\"&F1196&\"'!\"&G1196))","v":""},{"$f":"IF(ISBLANK(INDIRECT(\"'\"&F1196&\"'!\"&H1196)),\"\",IFERROR(VLOOKUP(TEXT(INDIRECT(\"'\"&F1196&\"'!\"&H1196),\"0\"),Notes!$B$5:$C$100,2,FALSE),\"\"))","v":""},"2e","$AI$66","$AJ$66"]
[7627,{"$f":"Menu!$F$29","v":"X"},{"$f":"Menu!$J$29","v":2020},{"$f":"IF(ISBLANK(INDIRECT(\"'\"&F1197&\"'!\"&G1197)),\"\",INDIRECT(\"'\"&F1197&\"'!\"&G1197))","v":""},{"$f":"IF(ISBLANK(INDIRECT(\"'\"&F1197&\"'!\"&H1197)),\"\",IFERROR(VLOOKUP(TEXT(INDIRECT(\"'\"&F1197&\"'!\"&H1197),\"0\"),Notes!$B$5:$C$100,2,FALSE),\"\"))","v":""},"2e","$AK$66","$AL$66"]
[7628,{"$f":"Menu!$F$29","v":"X"},{"$f":"Menu!$J$29","v":2020},{"$f":"IF(ISBLANK(INDIRECT(\"'\"&F1198&\"'!\"&G1198)),\"\",INDIRECT(\"'\"&F1198&\"'!\"&G1198))","v":""},{"$f":"IF(ISBLANK(INDIRECT(\"'\"&F1198&\"'!\"&H1198)),\"\",IFERROR(VLOOKUP(TEXT(INDIRECT(\"'\"&F1198&\"'!\"&H1198),\"0\"),Notes!$B$5:$C$100,2,FALSE),\"\"))","v":""},"2e","$AM$66","$AN$66"]
[7629,{"$f":"Menu!$F$29","v":"X"},{"$f":"Menu!$J$29","v":2020},{"$f":"IF(ISBLANK(INDIRECT(\"'\"&F1199&\"'!\"&G1199)),\"\",INDIRECT(\"'\"&F1199&\"'!\"&G1199))","v":""},{"$f":"IF(ISBLANK(INDIRECT(\"'\"&F1199&\"'!\"&H1199)),\"\",IFERROR(VLOOKUP(TEXT(INDIRECT(\"'\"&F1199&\"'!\"&H1199),\"0\"),Notes!$B$5:$C$100,2,FALSE),\"\"))","v":""},"2e","$AO$66","$AP$66"]
[7630,{"$f":"Menu!$F$29","v":"X"},{"$f":"Menu!$J$29","v":2020},{"$f":"IF(ISBLANK(INDIRECT(\"'\"&F1200&\"'!\"&G1200)),\"\",INDIRECT(\"'\"&F1200&\"'!\"&G1200))","v":""},{"$f":"IF(ISBLANK(INDIRECT(\"'\"&F1200&\"'!\"&H1200)),\"\",IFERROR(VLOOKUP(TEXT(INDIRECT(\"'\"&F1200&\"'!\"&H1200),\"0\"),Notes!$B$5:$C$100,2,FALSE),\"\"))","v":""},"2e","$AQ$66","$AR$66"]
[7631,{"$f":"Menu!$F$29","v":"X"},{"$f":"Menu!$J$29","v":2020},{"$f":"IF(ISBLANK(INDIRECT(\"'\"&F1201&\"'!\"&G1201)),\"\",INDIRECT(\"'\"&F1201&\"'!\"&G1201))","v":""},{"$f":"IF(ISBLANK(INDIRECT(\"'\"&F1201&\"'!\"&H1201)),\"\",IFERROR(VLOOKUP(TEXT(INDIRECT(\"'\"&F1201&\"'!\"&H1201),\"0\"),Notes!$B$5:$C$100,2,FALSE),\"\"))","v":""},"2e","$AS$66","$AT$66"]
[7632,{"$f":"Menu!$F$29","v":"X"},{"$f":"Menu!$J$29","v":2020},{"$f":"IF(ISBLANK(INDIRECT(\"'\"&F1202&\"'!\"&G1202)),\"\",INDIRECT(\"'\"&F1202&\"'!\"&G1202))","v":""},{"$f":"IF(ISBLANK(INDIRECT(\"'\"&F1202&\"'!\"&H1202)),\"\",IFERROR(VLOOKUP(TEXT(INDIRECT(\"'\"&F1202&\"'!\"&H1202),\"0\"),Notes!$B$5:$C$100,2,FALSE),\"\"))","v":""},"2e","$AU$66","$AV$66"]
[7633,{"$f":"Menu!$F$29","v":"X"},{"$f":"Menu!$J$29","v":2020},{"$f":"IF(ISBLANK(INDIRECT(\"'\"&F1203&\"'!\"&G1203)),\"\",INDIRECT(\"'\"&F1203&\"'!\"&G1203))","v":""},{"$f":"IF(ISBLANK(INDIRECT(\"'\"&F1203&\"'!\"&H1203)),\"\",IFERROR(VLOOKUP(TEXT(INDIRECT(\"'\"&F1203&\"'!\"&H1203),\"0\"),Notes!$B$5:$C$100,2,FALSE),\"\"))","v":""},"2e","$AW$66","$AX$66"]
[7634,{"$f":"Menu!$F$29","v":"X"},{"$f":"Menu!$J$29","v":2020},{"$f":"IF(ISBLANK(INDIRECT(\"'\"&F1204&\"'!\"&G1204)),\"\",INDIRECT(\"'\"&F1204&\"'!\"&G1204))","v":""},{"$f":"IF(ISBLANK(INDIRECT(\"'\"&F1204&\"'!\"&H1204)),\"\",IFERROR(VLOOKUP(TEXT(INDIRECT(\"'\"&F1204&\"'!\"&H1204),\"0\"),Notes!$B$5:$C$100,2,FALSE),\"\"))","v":""},"2e","$AY$66","$AZ$66"]
[7635,{"$f":"Menu!$F$29","v":"X"},{"$f":"Menu!$J$29","v":2020},{"$f":"IF(ISBLANK(INDIRECT(\"'\"&F1205&\"'!\"&G1205)),\"\",INDIRECT(\"'\"&F1205&\"'!\"&G1205))","v":""},{"$f":"IF(ISBLANK(INDIRECT(\"'\"&F1205&\"'!\"&H1205)),\"\",IFERROR(VLOOKUP(TEXT(INDIRECT(\"'\"&F1205&\"'!\"&H1205),\"0\"),Notes!$B$5:$C$100,2,FALSE),\"\"))","v":""},"2e","$BA$66","$BB$66"]
[7636,{"$f":"Menu!$F$29","v":"X"},{"$f":"Menu!$J$29","v":2020},{"$f":"IF(ISBLANK(INDIRECT(\"'\"&F1206&\"'!\"&G1206)),\"\",INDIRECT(\"'\"&F1206&\"'!\"&G1206))","v":""},{"$f":"IF(ISBLANK(INDIRECT(\"'\"&F1206&\"'!\"&H1206)),\"\",IFERROR(VLOOKUP(TEXT(INDIRECT(\"'\"&F1206&\"'!\"&H1206),\"0\"),Notes!$B$5:$C$100,2,FALSE),\"\"))","v":""},"2e","$BC$66","$BD$66"]
[7637,{"$f":"Menu!$F$29","v":"X"},{"$f":"Menu!$J$29","v":2020},{"$f":"IF(ISBLANK(INDIRECT(\"'\"&F1207&\"'!\"&G1207)),\"\",INDIRECT(\"'\"&F1207&\"'!\"&G1207))","v":""},{"$f":"IF(ISBLANK(INDIRECT(\"'\"&F1207&\"'!\"&H1207)),\"\",IFERROR(VLOOKUP(TEXT(INDIRECT(\"'\"&F1207&\"'!\"&H1207),\"0\"),Notes!$B$5:$C$100,2,FALSE),\"\"))","v":""},"2e","$BE$66","$BF$66"]
[7638,{"$f":"Menu!$F$29","v":"X"},{"$f":"Menu!$J$29","v":2020},{"$f":"IF(ISBLANK(INDIRECT(\"'\"&F1208&\"'!\"&G1208)),\"\",INDIRECT(\"'\"&F1208&\"'!\"&G1208))","v":""},{"$f":"IF(ISBLANK(INDIRECT(\"'\"&F1208&\"'!\"&H1208)),\"\",IFERROR(VLOOKUP(TEXT(INDIRECT(\"'\"&F1208&\"'!\"&H1208),\"0\"),Notes!$B$5:$C$100,2,FALSE),\"\"))","v":""},"2e","$BG$66","$BH$66"]
[7639,{"$f":"Menu!$F$29","v":"X"},{"$f":"Menu!$J$29","v":2020},{"$f":"IF(ISBLANK(INDIRECT(\"'\"&F1209&\"'!\"&G1209)),\"\",INDIRECT(\"'\"&F1209&\"'!\"&G1209))","v":""},{"$f":"IF(ISBLANK(INDIRECT(\"'\"&F1209&\"'!\"&H1209)),\"\",IFERROR(VLOOKUP(TEXT(INDIRECT(\"'\"&F1209&\"'!\"&H1209),\"0\"),Notes!$B$5:$C$100,2,FALSE),\"\"))","v":""},"2e","$BI$66","$BJ$66"]
[7640,{"$f":"Menu!$F$29","v":"X"},{"$f":"Menu!$J$29","v":2020},{"$f":"IF(ISBLANK(INDIRECT(\"'\"&F1210&\"'!\"&G1210)),\"\",INDIRECT(\"'\"&F1210&\"'!\"&G1210))","v":""},{"$f":"IF(ISBLANK(INDIRECT(\"'\"&F1210&\"'!\"&H1210)),\"\",IFERROR(VLOOKUP(TEXT(INDIRECT(\"'\"&F1210&\"'!\"&H1210),\"0\"),Notes!$B$5:$C$100,2,FALSE),\"\"))","v":""},"2e","$BK$66","$BL$66"]
[7641,{"$f":"Menu!$F$29","v":"X"},{"$f":"Menu!$J$29","v":2020},{"$f":"IF(ISBLANK(INDIRECT(\"'\"&F1211&\"'!\"&G1211)),\"\",INDIRECT(\"'\"&F1211&\"'!\"&G1211))","v":""},{"$f":"IF(ISBLANK(INDIRECT(\"'\"&F1211&\"'!\"&H1211)),\"\",IFERROR(VLOOKUP(TEXT(INDIRECT(\"'\"&F1211&\"'!\"&H1211),\"0\"),Notes!$B$5:$C$100,2,FALSE),\"\"))","v":""},"2e","$E$67","$F$67"]
[7642,{"$f":"Menu!$F$29","v":"X"},{"$f":"Menu!$J$29","v":2020},{"$f":"IF(ISBLANK(INDIRECT(\"'\"&F1212&\"'!\"&G1212)),\"\",INDIRECT(\"'\"&F1212&\"'!\"&G1212))","v":""},{"$f":"IF(ISBLANK(INDIRECT(\"'\"&F1212&\"'!\"&H1212)),\"\",IFERROR(VLOOKUP(TEXT(INDIRECT(\"'\"&F1212&\"'!\"&H1212),\"0\"),Notes!$B$5:$C$100,2,FALSE),\"\"))","v":""},"2e","$G$67","$H$67"]
[7643,{"$f":"Menu!$F$29","v":"X"},{"$f":"Menu!$J$29","v":2020},{"$f":"IF(ISBLANK(INDIRECT(\"'\"&F1213&\"'!\"&G1213)),\"\",INDIRECT(\"'\"&F1213&\"'!\"&G1213))","v":""},{"$f":"IF(ISBLANK(INDIRECT(\"'\"&F1213&\"'!\"&H1213)),\"\",IFERROR(VLOOKUP(TEXT(INDIRECT(\"'\"&F1213&\"'!\"&H1213),\"0\"),Notes!$B$5:$C$100,2,FALSE),\"\"))","v":""},"2e","$I$67","$J$67"]
[7644,{"$f":"Menu!$F$29","v":"X"},{"$f":"Menu!$J$29","v":2020},{"$f":"IF(ISBLANK(INDIRECT(\"'\"&F1214&\"'!\"&G1214)),\"\",INDIRECT(\"'\"&F1214&\"'!\"&G1214))","v":""},{"$f":"IF(ISBLANK(INDIRECT(\"'\"&F1214&\"'!\"&H1214)),\"\",IFERROR(VLOOKUP(TEXT(INDIRECT(\"'\"&F1214&\"'!\"&H1214),\"0\"),Notes!$B$5:$C$100,2,FALSE),\"\"))","v":""},"2e","$K$67","$L$67"]
[7645,{"$f":"Menu!$F$29","v":"X"},{"$f":"Menu!$J$29","v":2020},{"$f":"IF(ISBLANK(INDIRECT(\"'\"&F1215&\"'!\"&G1215)),\"\",INDIRECT(\"'\"&F1215&\"'!\"&G1215))","v":""},{"$f":"IF(ISBLANK(INDIRECT(\"'\"&F1215&\"'!\"&H1215)),\"\",IFERROR(VLOOKUP(TEXT(INDIRECT(\"'\"&F1215&\"'!\"&H1215),\"0\"),Notes!$B$5:$C$100,2,FALSE),\"\"))","v":""},"2e","$M$67","$N$67"]
[7646,{"$f":"Menu!$F$29","v":"X"},{"$f":"Menu!$J$29","v":2020},{"$f":"IF(ISBLANK(INDIRECT(\"'\"&F1216&\"'!\"&G1216)),\"\",INDIRECT(\"'\"&F1216&\"'!\"&G1216))","v":""},{"$f":"IF(ISBLANK(INDIRECT(\"'\"&F1216&\"'!\"&H1216)),\"\",IFERROR(VLOOKUP(TEXT(INDIRECT(\"'\"&F1216&\"'!\"&H1216),\"0\"),Notes!$B$5:$C$100,2,FALSE),\"\"))","v":""},"2e","$O$67","$P$67"]
[7647,{"$f":"Menu!$F$29","v":"X"},{"$f":"Menu!$J$29","v":2020},{"$f":"IF(ISBLANK(INDIRECT(\"'\"&F1217&\"'!\"&G1217)),\"\",INDIRECT(\"'\"&F1217&\"'!\"&G1217))","v":""},{"$f":"IF(ISBLANK(INDIRECT(\"'\"&F1217&\"'!\"&H1217)),\"\",IFERROR(VLOOKUP(TEXT(INDIRECT(\"'\"&F1217&\"'!\"&H1217),\"0\"),Notes!$B$5:$C$100,2,FALSE),\"\"))","v":""},"2e","$Q$67","$R$67"]
[7648,{"$f":"Menu!$F$29","v":"X"},{"$f":"Menu!$J$29","v":2020},{"$f":"IF(ISBLANK(INDIRECT(\"'\"&F1218&\"'!\"&G1218)),\"\",INDIRECT(\"'\"&F1218&\"'!\"&G1218))","v":""},{"$f":"IF(ISBLANK(INDIRECT(\"'\"&F1218&\"'!\"&H1218)),\"\",IFERROR(VLOOKUP(TEXT(INDIRECT(\"'\"&F1218&\"'!\"&H1218),\"0\"),Notes!$B$5:$C$100,2,FALSE),\"\"))","v":""},"2e","$S$67",{"$f":"IF(LEN(TRIM(MID(G1218,4,10)))-LEN(SUBSTITUTE(TRIM(MID(G1218,4,10)),\"$\",\"\"))=0,\"$\"&CHAR(CODE(MID(G1218,2,1))+1)&\"$\"&TRIM(MID(G1218,4,10)),\"$\"&MID(G1218,2,1)&CHAR(CODE(MID(G1218,3,1))+1)&\"$\"&TRIM(MID(G1218,5,11)))","v":"$T$67"}]
[7649,{"$f":"Menu!$F$29","v":"X"},{"$f":"Menu!$J$29","v":2020},{"$f":"IF(ISBLANK(INDIRECT(\"'\"&F1219&\"'!\"&G1219)),\"\",INDIRECT(\"'\"&F1219&\"'!\"&G1219))","v":""},{"$f":"IF(ISBLANK(INDIRECT(\"'\"&F1219&\"'!\"&H1219)),\"\",IFERROR(VLOOKUP(TEXT(INDIRECT(\"'\"&F1219&\"'!\"&H1219),\"0\"),Notes!$B$5:$C$100,2,FALSE),\"\"))","v":""},"2e","$U$67","$V$67"]
[7650,{"$f":"Menu!$F$29","v":"X"},{"$f":"Menu!$J$29","v":2020},{"$f":"IF(ISBLANK(INDIRECT(\"'\"&F1220&\"'!\"&G1220)),\"\",INDIRECT(\"'\"&F1220&\"'!\"&G1220))","v":""},{"$f":"IF(ISBLANK(INDIRECT(\"'\"&F1220&\"'!\"&H1220)),\"\",IFERROR(VLOOKUP(TEXT(INDIRECT(\"'\"&F1220&\"'!\"&H1220),\"0\"),Notes!$B$5:$C$100,2,FALSE),\"\"))","v":""},"2e","$W$67","$X$67"]
[7651,{"$f":"Menu!$F$29","v":"X"},{"$f":"Menu!$J$29","v":2020},{"$f":"IF(ISBLANK(INDIRECT(\"'\"&F1221&\"'!\"&G1221)),\"\",INDIRECT(\"'\"&F1221&\"'!\"&G1221))","v":""},{"$f":"IF(ISBLANK(INDIRECT(\"'\"&F1221&\"'!\"&H1221)),\"\",IFERROR(VLOOKUP(TEXT(INDIRECT(\"'\"&F1221&\"'!\"&H1221),\"0\"),Notes!$B$5:$C$100,2,FALSE),\"\"))","v":""},"2e","$Y$67","$Z$67"]
[7652,{"$f":"Menu!$F$29","v":"X"},{"$f":"Menu!$J$29","v":2020},{"$f":"IF(ISBLANK(INDIRECT(\"'\"&F1222&\"'!\"&G1222)),\"\",INDIRECT(\"'\"&F1222&\"'!\"&G1222))","v":""},{"$f":"IF(ISBLANK(INDIRECT(\"'\"&F1222&\"'!\"&H1222)),\"\",IFERROR(VLOOKUP(TEXT(INDIRECT(\"'\"&F1222&\"'!\"&H1222),\"0\"),Notes!$B$5:$C$100,2,FALSE),\"\"))","v":""},"2e","$AA$67","$AB$67"]
[7653,{"$f":"Menu!$F$29","v":"X"},{"$f":"Menu!$J$29","v":2020},{"$f":"IF(ISBLANK(INDIRECT(\"'\"&F1223&\"'!\"&G1223)),\"\",INDIRECT(\"'\"&F1223&\"'!\"&G1223))","v":""},{"$f":"IF(ISBLANK(INDIRECT(\"'\"&F1223&\"'!\"&H1223)),\"\",IFERROR(VLOOKUP(TEXT(INDIRECT(\"'\"&F1223&\"'!\"&H1223),\"0\"),Notes!$B$5:$C$100,2,FALSE),\"\"))","v":""},"2e","$AC$67","$AD$67"]
[7654,{"$f":"Menu!$F$29","v":"X"},{"$f":"Menu!$J$29","v":2020},{"$f":"IF(ISBLANK(INDIRECT(\"'\"&F1224&\"'!\"&G1224)),\"\",INDIRECT(\"'\"&F1224&\"'!\"&G1224))","v":""},{"$f":"IF(ISBLANK(INDIRECT(\"'\"&F1224&\"'!\"&H1224)),\"\",IFERROR(VLOOKUP(TEXT(INDIRECT(\"'\"&F1224&\"'!\"&H1224),\"0\"),Notes!$B$5:$C$100,2,FALSE),\"\"))","v":""},"2e","$AE$67","$AF$67"]
[7655,{"$f":"Menu!$F$29","v":"X"},{"$f":"Menu!$J$29","v":2020},{"$f":"IF(ISBLANK(INDIRECT(\"'\"&F1225&\"'!\"&G1225)),\"\",INDIRECT(\"'\"&F1225&\"'!\"&G1225))","v":""},{"$f":"IF(ISBLANK(INDIRECT(\"'\"&F1225&\"'!\"&H1225)),\"\",IFERROR(VLOOKUP(TEXT(INDIRECT(\"'\"&F1225&\"'!\"&H1225),\"0\"),Notes!$B$5:$C$100,2,FALSE),\"\"))","v":""},"2e","$AG$67","$AH$67"]
[7656,{"$f":"Menu!$F$29","v":"X"},{"$f":"Menu!$J$29","v":2020},{"$f":"IF(ISBLANK(INDIRECT(\"'\"&F1226&\"'!\"&G1226)),\"\",INDIRECT(\"'\"&F1226&\"'!\"&G1226))","v":""},{"$f":"IF(ISBLANK(INDIRECT(\"'\"&F1226&\"'!\"&H1226)),\"\",IFERROR(VLOOKUP(TEXT(INDIRECT(\"'\"&F1226&\"'!\"&H1226),\"0\"),Notes!$B$5:$C$100,2,FALSE),\"\"))","v":""},"2e","$AI$67","$AJ$67"]
[7657,{"$f":"Menu!$F$29","v":"X"},{"$f":"Menu!$J$29","v":2020},{"$f":"IF(ISBLANK(INDIRECT(\"'\"&F1227&\"'!\"&G1227)),\"\",INDIRECT(\"'\"&F1227&\"'!\"&G1227))","v":""},{"$f":"IF(ISBLANK(INDIRECT(\"'\"&F1227&\"'!\"&H1227)),\"\",IFERROR(VLOOKUP(TEXT(INDIRECT(\"'\"&F1227&\"'!\"&H1227),\"0\"),Notes!$B$5:$C$100,2,FALSE),\"\"))","v":""},"2e","$AK$67","$AL$67"]
[7658,{"$f":"Menu!$F$29","v":"X"},{"$f":"Menu!$J$29","v":2020},{"$f":"IF(ISBLANK(INDIRECT(\"'\"&F1228&\"'!\"&G1228)),\"\",INDIRECT(\"'\"&F1228&\"'!\"&G1228))","v":""},{"$f":"IF(ISBLANK(INDIRECT(\"'\"&F1228&\"'!\"&H1228)),\"\",IFERROR(VLOOKUP(TEXT(INDIRECT(\"'\"&F1228&\"'!\"&H1228),\"0\"),Notes!$B$5:$C$100,2,FALSE),\"\"))","v":""},"2e","$AM$67","$AN$67"]
[7659,{"$f":"Menu!$F$29","v":"X"},{"$f":"Menu!$J$29","v":2020},{"$f":"IF(ISBLANK(INDIRECT(\"'\"&F1229&\"'!\"&G1229)),\"\",INDIRECT(\"'\"&F1229&\"'!\"&G1229))","v":""},{"$f":"IF(ISBLANK(INDIRECT(\"'\"&F1229&\"'!\"&H1229)),\"\",IFERROR(VLOOKUP(TEXT(INDIRECT(\"'\"&F1229&\"'!\"&H1229),\"0\"),Notes!$B$5:$C$100,2,FALSE),\"\"))","v":""},"2e","$AO$67","$AP$67"]
[7660,{"$f":"Menu!$F$29","v":"X"},{"$f":"Menu!$J$29","v":2020},{"$f":"IF(ISBLANK(INDIRECT(\"'\"&F1230&\"'!\"&G1230)),\"\",INDIRECT(\"'\"&F1230&\"'!\"&G1230))","v":""},{"$f":"IF(ISBLANK(INDIRECT(\"'\"&F1230&\"'!\"&H1230)),\"\",IFERROR(VLOOKUP(TEXT(INDIRECT(\"'\"&F1230&\"'!\"&H1230),\"0\"),Notes!$B$5:$C$100,2,FALSE),\"\"))","v":""},"2e","$AQ$67","$AR$67"]
[7661,{"$f":"Menu!$F$29","v":"X"},{"$f":"Menu!$J$29","v":2020},{"$f":"IF(ISBLANK(INDIRECT(\"'\"&F1231&\"'!\"&G1231)),\"\",INDIRECT(\"'\"&F1231&\"'!\"&G1231))","v":""},{"$f":"IF(ISBLANK(INDIRECT(\"'\"&F1231&\"'!\"&H1231)),\"\",IFERROR(VLOOKUP(TEXT(INDIRECT(\"'\"&F1231&\"'!\"&H1231),\"0\"),Notes!$B$5:$C$100,2,FALSE),\"\"))","v":""},"2e","$AS$67","$AT$67"]
[7662,{"$f":"Menu!$F$29","v":"X"},{"$f":"Menu!$J$29","v":2020},{"$f":"IF(ISBLANK(INDIRECT(\"'\"&F1232&\"'!\"&G1232)),\"\",INDIRECT(\"'\"&F1232&\"'!\"&G1232))","v":""},{"$f":"IF(ISBLANK(INDIRECT(\"'\"&F1232&\"'!\"&H1232)),\"\",IFERROR(VLOOKUP(TEXT(INDIRECT(\"'\"&F1232&\"'!\"&H1232),\"0\"),Notes!$B$5:$C$100,2,FALSE),\"\"))","v":""},"2e","$AU$67","$AV$67"]
[7663,{"$f":"Menu!$F$29","v":"X"},{"$f":"Menu!$J$29","v":2020},{"$f":"IF(ISBLANK(INDIRECT(\"'\"&F1233&\"'!\"&G1233)),\"\",INDIRECT(\"'\"&F1233&\"'!\"&G1233))","v":""},{"$f":"IF(ISBLANK(INDIRECT(\"'\"&F1233&\"'!\"&H1233)),\"\",IFERROR(VLOOKUP(TEXT(INDIRECT(\"'\"&F1233&\"'!\"&H1233),\"0\"),Notes!$B$5:$C$100,2,FALSE),\"\"))","v":""},"2e","$AW$67","$AX$67"]
[7664,{"$f":"Menu!$F$29","v":"X"},{"$f":"Menu!$J$29","v":2020},{"$f":"IF(ISBLANK(INDIRECT(\"'\"&F1234&\"'!\"&G1234)),\"\",INDIRECT(\"'\"&F1234&\"'!\"&G1234))","v":""},{"$f":"IF(ISBLANK(INDIRECT(\"'\"&F1234&\"'!\"&H1234)),\"\",IFERROR(VLOOKUP(TEXT(INDIRECT(\"'\"&F1234&\"'!\"&H1234),\"0\"),Notes!$B$5:$C$100,2,FALSE),\"\"))","v":""},"2e","$AY$67","$AZ$67"]
[7665,{"$f":"Menu!$F$29","v":"X"},{"$f":"Menu!$J$29","v":2020},{"$f":"IF(ISBLANK(INDIRECT(\"'\"&F1235&\"'!\"&G1235)),\"\",INDIRECT(\"'\"&F1235&\"'!\"&G1235))","v":""},{"$f":"IF(ISBLANK(INDIRECT(\"'\"&F1235&\"'!\"&H1235)),\"\",IFERROR(VLOOKUP(TEXT(INDIRECT(\"'\"&F1235&\"'!\"&H1235),\"0\"),Notes!$B$5:$C$100,2,FALSE),\"\"))","v":""},"2e","$BA$67","$BB$67"]
[7666,{"$f":"Menu!$F$29","v":"X"},{"$f":"Menu!$J$29","v":2020},{"$f":"IF(ISBLANK(INDIRECT(\"'\"&F1236&\"'!\"&G1236)),\"\",INDIRECT(\"'\"&F1236&\"'!\"&G1236))","v":""},{"$f":"IF(ISBLANK(INDIRECT(\"'\"&F1236&\"'!\"&H1236)),\"\",IFERROR(VLOOKUP(TEXT(INDIRECT(\"'\"&F1236&\"'!\"&H1236),\"0\"),Notes!$B$5:$C$100,2,FALSE),\"\"))","v":""},"2e","$BC$67","$BD$67"]
[7667,{"$f":"Menu!$F$29","v":"X"},{"$f":"Menu!$J$29","v":2020},{"$f":"IF(ISBLANK(INDIRECT(\"'\"&F1237&\"'!\"&G1237)),\"\",INDIRECT(\"'\"&F1237&\"'!\"&G1237))","v":""},{"$f":"IF(ISBLANK(INDIRECT(\"'\"&F1237&\"'!\"&H1237)),\"\",IFERROR(VLOOKUP(TEXT(INDIRECT(\"'\"&F1237&\"'!\"&H1237),\"0\"),Notes!$B$5:$C$100,2,FALSE),\"\"))","v":""},"2e","$BE$67","$BF$67"]
[7668,{"$f":"Menu!$F$29","v":"X"},{"$f":"Menu!$J$29","v":2020},{"$f":"IF(ISBLANK(INDIRECT(\"'\"&F1238&\"'!\"&G1238)),\"\",INDIRECT(\"'\"&F1238&\"'!\"&G1238))","v":""},{"$f":"IF(ISBLANK(INDIRECT(\"'\"&F1238&\"'!\"&H1238)),\"\",IFERROR(VLOOKUP(TEXT(INDIRECT(\"'\"&F1238&\"'!\"&H1238),\"0\"),Notes!$B$5:$C$100,2,FALSE),\"\"))","v":""},"2e","$BG$67","$BH$67"]
[7669,{"$f":"Menu!$F$29","v":"X"},{"$f":"Menu!$J$29","v":2020},{"$f":"IF(ISBLANK(INDIRECT(\"'\"&F1239&\"'!\"&G1239)),\"\",INDIRECT(\"'\"&F1239&\"'!\"&G1239))","v":""},{"$f":"IF(ISBLANK(INDIRECT(\"'\"&F1239&\"'!\"&H1239)),\"\",IFERROR(VLOOKUP(TEXT(INDIRECT(\"'\"&F1239&\"'!\"&H1239),\"0\"),Notes!$B$5:$C$100,2,FALSE),\"\"))","v":""},"2e","$BI$67","$BJ$67"]
[7670,{"$f":"Menu!$F$29","v":"X"},{"$f":"Menu!$J$29","v":2020},{"$f":"IF(ISBLANK(INDIRECT(\"'\"&F1240&\"'!\"&G1240)),\"\",INDIRECT(\"'\"&F1240&\"'!\"&G1240))","v":""},{"$f":"IF(ISBLANK(INDIRECT(\"'\"&F1240&\"'!\"&H1240)),\"\",IFERROR(VLOOKUP(TEXT(INDIRECT(\"'\"&F1240&\"'!\"&H1240),\"0\"),Notes!$B$5:$C$100,2,FALSE),\"\"))","v":""},"2e","$BK$67","$BL$67"]
[7671,{"$f":"Menu!$F$29","v":"X"},{"$f":"Menu!$J$29","v":2020},{"$f":"IF(ISBLANK(INDIRECT(\"'\"&F1241&\"'!\"&G1241)),\"\",INDIRECT(\"'\"&F1241&\"'!\"&G1241))","v":""},{"$f":"IF(ISBLANK(INDIRECT(\"'\"&F1241&\"'!\"&H1241)),\"\",IFERROR(VLOOKUP(TEXT(INDIRECT(\"'\"&F1241&\"'!\"&H1241),\"0\"),Notes!$B$5:$C$100,2,FALSE),\"\"))","v":""},"2e","$E$68","$F$68"]
[7672,{"$f":"Menu!$F$29","v":"X"},{"$f":"Menu!$J$29","v":2020},{"$f":"IF(ISBLANK(INDIRECT(\"'\"&F1242&\"'!\"&G1242)),\"\",INDIRECT(\"'\"&F1242&\"'!\"&G1242))","v":""},{"$f":"IF(ISBLANK(INDIRECT(\"'\"&F1242&\"'!\"&H1242)),\"\",IFERROR(VLOOKUP(TEXT(INDIRECT(\"'\"&F1242&\"'!\"&H1242),\"0\"),Notes!$B$5:$C$100,2,FALSE),\"\"))","v":""},"2e","$G$68","$H$68"]
[7673,{"$f":"Menu!$F$29","v":"X"},{"$f":"Menu!$J$29","v":2020},{"$f":"IF(ISBLANK(INDIRECT(\"'\"&F1243&\"'!\"&G1243)),\"\",INDIRECT(\"'\"&F1243&\"'!\"&G1243))","v":""},{"$f":"IF(ISBLANK(INDIRECT(\"'\"&F1243&\"'!\"&H1243)),\"\",IFERROR(VLOOKUP(TEXT(INDIRECT(\"'\"&F1243&\"'!\"&H1243),\"0\"),Notes!$B$5:$C$100,2,FALSE),\"\"))","v":""},"2e","$I$68","$J$68"]
[7674,{"$f":"Menu!$F$29","v":"X"},{"$f":"Menu!$J$29","v":2020},{"$f":"IF(ISBLANK(INDIRECT(\"'\"&F1244&\"'!\"&G1244)),\"\",INDIRECT(\"'\"&F1244&\"'!\"&G1244))","v":""},{"$f":"IF(ISBLANK(INDIRECT(\"'\"&F1244&\"'!\"&H1244)),\"\",IFERROR(VLOOKUP(TEXT(INDIRECT(\"'\"&F1244&\"'!\"&H1244),\"0\"),Notes!$B$5:$C$100,2,FALSE),\"\"))","v":""},"2e","$K$68","$L$68"]
[7675,{"$f":"Menu!$F$29","v":"X"},{"$f":"Menu!$J$29","v":2020},{"$f":"IF(ISBLANK(INDIRECT(\"'\"&F1245&\"'!\"&G1245)),\"\",INDIRECT(\"'\"&F1245&\"'!\"&G1245))","v":""},{"$f":"IF(ISBLANK(INDIRECT(\"'\"&F1245&\"'!\"&H1245)),\"\",IFERROR(VLOOKUP(TEXT(INDIRECT(\"'\"&F1245&\"'!\"&H1245),\"0\"),Notes!$B$5:$C$100,2,FALSE),\"\"))","v":""},"2e","$M$68","$N$68"]
[7676,{"$f":"Menu!$F$29","v":"X"},{"$f":"Menu!$J$29","v":2020},{"$f":"IF(ISBLANK(INDIRECT(\"'\"&F1246&\"'!\"&G1246)),\"\",INDIRECT(\"'\"&F1246&\"'!\"&G1246))","v":""},{"$f":"IF(ISBLANK(INDIRECT(\"'\"&F1246&\"'!\"&H1246)),\"\",IFERROR(VLOOKUP(TEXT(INDIRECT(\"'\"&F1246&\"'!\"&H1246),\"0\"),Notes!$B$5:$C$100,2,FALSE),\"\"))","v":""},"2e","$O$68","$P$68"]
[7677,{"$f":"Menu!$F$29","v":"X"},{"$f":"Menu!$J$29","v":2020},{"$f":"IF(ISBLANK(INDIRECT(\"'\"&F1247&\"'!\"&G1247)),\"\",INDIRECT(\"'\"&F1247&\"'!\"&G1247))","v":""},{"$f":"IF(ISBLANK(INDIRECT(\"'\"&F1247&\"'!\"&H1247)),\"\",IFERROR(VLOOKUP(TEXT(INDIRECT(\"'\"&F1247&\"'!\"&H1247),\"0\"),Notes!$B$5:$C$100,2,FALSE),\"\"))","v":""},"2e","$Q$68","$R$68"]
[7678,{"$f":"Menu!$F$29","v":"X"},{"$f":"Menu!$J$29","v":2020},{"$f":"IF(ISBLANK(INDIRECT(\"'\"&F1248&\"'!\"&G1248)),\"\",INDIRECT(\"'\"&F1248&\"'!\"&G1248))","v":""},{"$f":"IF(ISBLANK(INDIRECT(\"'\"&F1248&\"'!\"&H1248)),\"\",IFERROR(VLOOKUP(TEXT(INDIRECT(\"'\"&F1248&\"'!\"&H1248),\"0\"),Notes!$B$5:$C$100,2,FALSE),\"\"))","v":""},"2e","$S$68","$T$68"]
[7679,{"$f":"Menu!$F$29","v":"X"},{"$f":"Menu!$J$29","v":2020},{"$f":"IF(ISBLANK(INDIRECT(\"'\"&F1249&\"'!\"&G1249)),\"\",INDIRECT(\"'\"&F1249&\"'!\"&G1249))","v":""},{"$f":"IF(ISBLANK(INDIRECT(\"'\"&F1249&\"'!\"&H1249)),\"\",IFERROR(VLOOKUP(TEXT(INDIRECT(\"'\"&F1249&\"'!\"&H1249),\"0\"),Notes!$B$5:$C$100,2,FALSE),\"\"))","v":""},"2e","$U$68","$V$68"]
[7680,{"$f":"Menu!$F$29","v":"X"},{"$f":"Menu!$J$29","v":2020},{"$f":"IF(ISBLANK(INDIRECT(\"'\"&F1250&\"'!\"&G1250)),\"\",INDIRECT(\"'\"&F1250&\"'!\"&G1250))","v":""},{"$f":"IF(ISBLANK(INDIRECT(\"'\"&F1250&\"'!\"&H1250)),\"\",IFERROR(VLOOKUP(TEXT(INDIRECT(\"'\"&F1250&\"'!\"&H1250),\"0\"),Notes!$B$5:$C$100,2,FALSE),\"\"))","v":""},"2e","$W$68","$X$68"]
[7681,{"$f":"Menu!$F$29","v":"X"},{"$f":"Menu!$J$29","v":2020},{"$f":"IF(ISBLANK(INDIRECT(\"'\"&F1251&\"'!\"&G1251)),\"\",INDIRECT(\"'\"&F1251&\"'!\"&G1251))","v":""},{"$f":"IF(ISBLANK(INDIRECT(\"'\"&F1251&\"'!\"&H1251)),\"\",IFERROR(VLOOKUP(TEXT(INDIRECT(\"'\"&F1251&\"'!\"&H1251),\"0\"),Notes!$B$5:$C$100,2,FALSE),\"\"))","v":""},"2e","$Y$68","$Z$68"]
[7682,{"$f":"Menu!$F$29","v":"X"},{"$f":"Menu!$J$29","v":2020},{"$f":"IF(ISBLANK(INDIRECT(\"'\"&F1252&\"'!\"&G1252)),\"\",INDIRECT(\"'\"&F1252&\"'!\"&G1252))","v":""},{"$f":"IF(ISBLANK(INDIRECT(\"'\"&F1252&\"'!\"&H1252)),\"\",IFERROR(VLOOKUP(TEXT(INDIRECT(\"'\"&F1252&\"'!\"&H1252),\"0\"),Notes!$B$5:$C$100,2,FALSE),\"\"))","v":""},"2e","$AA$68","$AB$68"]
[7683,{"$f":"Menu!$F$29","v":"X"},{"$f":"Menu!$J$29","v":2020},{"$f":"IF(ISBLANK(INDIRECT(\"'\"&F1253&\"'!\"&G1253)),\"\",INDIRECT(\"'\"&F1253&\"'!\"&G1253))","v":""},{"$f":"IF(ISBLANK(INDIRECT(\"'\"&F1253&\"'!\"&H1253)),\"\",IFERROR(VLOOKUP(TEXT(INDIRECT(\"'\"&F1253&\"'!\"&H1253),\"0\"),Notes!$B$5:$C$100,2,FALSE),\"\"))","v":""},"2e","$AC$68","$AD$68"]
[7684,{"$f":"Menu!$F$29","v":"X"},{"$f":"Menu!$J$29","v":2020},{"$f":"IF(ISBLANK(INDIRECT(\"'\"&F1254&\"'!\"&G1254)),\"\",INDIRECT(\"'\"&F1254&\"'!\"&G1254))","v":""},{"$f":"IF(ISBLANK(INDIRECT(\"'\"&F1254&\"'!\"&H1254)),\"\",IFERROR(VLOOKUP(TEXT(INDIRECT(\"'\"&F1254&\"'!\"&H1254),\"0\"),Notes!$B$5:$C$100,2,FALSE),\"\"))","v":""},"2e","$AE$68","$AF$68"]
[7685,{"$f":"Menu!$F$29","v":"X"},{"$f":"Menu!$J$29","v":2020},{"$f":"IF(ISBLANK(INDIRECT(\"'\"&F1255&\"'!\"&G1255)),\"\",INDIRECT(\"'\"&F1255&\"'!\"&G1255))","v":""},{"$f":"IF(ISBLANK(INDIRECT(\"'\"&F1255&\"'!\"&H1255)),\"\",IFERROR(VLOOKUP(TEXT(INDIRECT(\"'\"&F1255&\"'!\"&H1255),\"0\"),Notes!$B$5:$C$100,2,FALSE),\"\"))","v":""},"2e","$AG$68","$AH$68"]
[7686,{"$f":"Menu!$F$29","v":"X"},{"$f":"Menu!$J$29","v":2020},{"$f":"IF(ISBLANK(INDIRECT(\"'\"&F1256&\"'!\"&G1256)),\"\",INDIRECT(\"'\"&F1256&\"'!\"&G1256))","v":""},{"$f":"IF(ISBLANK(INDIRECT(\"'\"&F1256&\"'!\"&H1256)),\"\",IFERROR(VLOOKUP(TEXT(INDIRECT(\"'\"&F1256&\"'!\"&H1256),\"0\"),Notes!$B$5:$C$100,2,FALSE),\"\"))","v":""},"2e","$AI$68","$AJ$68"]
[7687,{"$f":"Menu!$F$29","v":"X"},{"$f":"Menu!$J$29","v":2020},{"$f":"IF(ISBLANK(INDIRECT(\"'\"&F1257&\"'!\"&G1257)),\"\",INDIRECT(\"'\"&F1257&\"'!\"&G1257))","v":""},{"$f":"IF(ISBLANK(INDIRECT(\"'\"&F1257&\"'!\"&H1257)),\"\",IFERROR(VLOOKUP(TEXT(INDIRECT(\"'\"&F1257&\"'!\"&H1257),\"0\"),Notes!$B$5:$C$100,2,FALSE),\"\"))","v":""},"2e","$AK$68","$AL$68"]
[7688,{"$f":"Menu!$F$29","v":"X"},{"$f":"Menu!$J$29","v":2020},{"$f":"IF(ISBLANK(INDIRECT(\"'\"&F1258&\"'!\"&G1258)),\"\",INDIRECT(\"'\"&F1258&\"'!\"&G1258))","v":""},{"$f":"IF(ISBLANK(INDIRECT(\"'\"&F1258&\"'!\"&H1258)),\"\",IFERROR(VLOOKUP(TEXT(INDIRECT(\"'\"&F1258&\"'!\"&H1258),\"0\"),Notes!$B$5:$C$100,2,FALSE),\"\"))","v":""},"2e","$AM$68","$AN$68"]
[7689,{"$f":"Menu!$F$29","v":"X"},{"$f":"Menu!$J$29","v":2020},{"$f":"IF(ISBLANK(INDIRECT(\"'\"&F1259&\"'!\"&G1259)),\"\",INDIRECT(\"'\"&F1259&\"'!\"&G1259))","v":""},{"$f":"IF(ISBLANK(INDIRECT(\"'\"&F1259&\"'!\"&H1259)),\"\",IFERROR(VLOOKUP(TEXT(INDIRECT(\"'\"&F1259&\"'!\"&H1259),\"0\"),Notes!$B$5:$C$100,2,FALSE),\"\"))","v":""},"2e","$AO$68","$AP$68"]
[7690,{"$f":"Menu!$F$29","v":"X"},{"$f":"Menu!$J$29","v":2020},{"$f":"IF(ISBLANK(INDIRECT(\"'\"&F1260&\"'!\"&G1260)),\"\",INDIRECT(\"'\"&F1260&\"'!\"&G1260))","v":""},{"$f":"IF(ISBLANK(INDIRECT(\"'\"&F1260&\"'!\"&H1260)),\"\",IFERROR(VLOOKUP(TEXT(INDIRECT(\"'\"&F1260&\"'!\"&H1260),\"0\"),Notes!$B$5:$C$100,2,FALSE),\"\"))","v":""},"2e","$AQ$68","$AR$68"]
[7691,{"$f":"Menu!$F$29","v":"X"},{"$f":"Menu!$J$29","v":2020},{"$f":"IF(ISBLANK(INDIRECT(\"'\"&F1261&\"'!\"&G1261)),\"\",INDIRECT(\"'\"&F1261&\"'!\"&G1261))","v":""},{"$f":"IF(ISBLANK(INDIRECT(\"'\"&F1261&\"'!\"&H1261)),\"\",IFERROR(VLOOKUP(TEXT(INDIRECT(\"'\"&F1261&\"'!\"&H1261),\"0\"),Notes!$B$5:$C$100,2,FALSE),\"\"))","v":""},"2e","$AS$68","$AT$68"]
[7692,{"$f":"Menu!$F$29","v":"X"},{"$f":"Menu!$J$29","v":2020},{"$f":"IF(ISBLANK(INDIRECT(\"'\"&F1262&\"'!\"&G1262)),\"\",INDIRECT(\"'\"&F1262&\"'!\"&G1262))","v":""},{"$f":"IF(ISBLANK(INDIRECT(\"'\"&F1262&\"'!\"&H1262)),\"\",IFERROR(VLOOKUP(TEXT(INDIRECT(\"'\"&F1262&\"'!\"&H1262),\"0\"),Notes!$B$5:$C$100,2,FALSE),\"\"))","v":""},"2e","$AU$68","$AV$68"]
[7693,{"$f":"Menu!$F$29","v":"X"},{"$f":"Menu!$J$29","v":2020},{"$f":"IF(ISBLANK(INDIRECT(\"'\"&F1263&\"'!\"&G1263)),\"\",INDIRECT(\"'\"&F1263&\"'!\"&G1263))","v":""},{"$f":"IF(ISBLANK(INDIRECT(\"'\"&F1263&\"'!\"&H1263)),\"\",IFERROR(VLOOKUP(TEXT(INDIRECT(\"'\"&F1263&\"'!\"&H1263),\"0\"),Notes!$B$5:$C$100,2,FALSE),\"\"))","v":""},"2e","$AW$68","$AX$68"]
[7694,{"$f":"Menu!$F$29","v":"X"},{"$f":"Menu!$J$29","v":2020},{"$f":"IF(ISBLANK(INDIRECT(\"'\"&F1264&\"'!\"&G1264)),\"\",INDIRECT(\"'\"&F1264&\"'!\"&G1264))","v":""},{"$f":"IF(ISBLANK(INDIRECT(\"'\"&F1264&\"'!\"&H1264)),\"\",IFERROR(VLOOKUP(TEXT(INDIRECT(\"'\"&F1264&\"'!\"&H1264),\"0\"),Notes!$B$5:$C$100,2,FALSE),\"\"))","v":""},"2e","$AY$68","$AZ$68"]
[7695,{"$f":"Menu!$F$29","v":"X"},{"$f":"Menu!$J$29","v":2020},{"$f":"IF(ISBLANK(INDIRECT(\"'\"&F1265&\"'!\"&G1265)),\"\",INDIRECT(\"'\"&F1265&\"'!\"&G1265))","v":""},{"$f":"IF(ISBLANK(INDIRECT(\"'\"&F1265&\"'!\"&H1265)),\"\",IFERROR(VLOOKUP(TEXT(INDIRECT(\"'\"&F1265&\"'!\"&H1265),\"0\"),Notes!$B$5:$C$100,2,FALSE),\"\"))","v":""},"2e","$BA$68","$BB$68"]
[7696,{"$f":"Menu!$F$29","v":"X"},{"$f":"Menu!$J$29","v":2020},{"$f":"IF(ISBLANK(INDIRECT(\"'\"&F1266&\"'!\"&G1266)),\"\",INDIRECT(\"'\"&F1266&\"'!\"&G1266))","v":""},{"$f":"IF(ISBLANK(INDIRECT(\"'\"&F1266&\"'!\"&H1266)),\"\",IFERROR(VLOOKUP(TEXT(INDIRECT(\"'\"&F1266&\"'!\"&H1266),\"0\"),Notes!$B$5:$C$100,2,FALSE),\"\"))","v":""},"2e","$BC$68","$BD$68"]
[7697,{"$f":"Menu!$F$29","v":"X"},{"$f":"Menu!$J$29","v":2020},{"$f":"IF(ISBLANK(INDIRECT(\"'\"&F1267&\"'!\"&G1267)),\"\",INDIRECT(\"'\"&F1267&\"'!\"&G1267))","v":""},{"$f":"IF(ISBLANK(INDIRECT(\"'\"&F1267&\"'!\"&H1267)),\"\",IFERROR(VLOOKUP(TEXT(INDIRECT(\"'\"&F1267&\"'!\"&H1267),\"0\"),Notes!$B$5:$C$100,2,FALSE),\"\"))","v":""},"2e","$BE$68","$BF$68"]
[7698,{"$f":"Menu!$F$29","v":"X"},{"$f":"Menu!$J$29","v":2020},{"$f":"IF(ISBLANK(INDIRECT(\"'\"&F1268&\"'!\"&G1268)),\"\",INDIRECT(\"'\"&F1268&\"'!\"&G1268))","v":""},{"$f":"IF(ISBLANK(INDIRECT(\"'\"&F1268&\"'!\"&H1268)),\"\",IFERROR(VLOOKUP(TEXT(INDIRECT(\"'\"&F1268&\"'!\"&H1268),\"0\"),Notes!$B$5:$C$100,2,FALSE),\"\"))","v":""},"2e","$BG$68","$BH$68"]
[7699,{"$f":"Menu!$F$29","v":"X"},{"$f":"Menu!$J$29","v":2020},{"$f":"IF(ISBLANK(INDIRECT(\"'\"&F1269&\"'!\"&G1269)),\"\",INDIRECT(\"'\"&F1269&\"'!\"&G1269))","v":""},{"$f":"IF(ISBLANK(INDIRECT(\"'\"&F1269&\"'!\"&H1269)),\"\",IFERROR(VLOOKUP(TEXT(INDIRECT(\"'\"&F1269&\"'!\"&H1269),\"0\"),Notes!$B$5:$C$100,2,FALSE),\"\"))","v":""},"2e","$BI$68","$BJ$68"]
[7700,{"$f":"Menu!$F$29","v":"X"},{"$f":"Menu!$J$29","v":2020},{"$f":"IF(ISBLANK(INDIRECT(\"'\"&F1270&\"'!\"&G1270)),\"\",INDIRECT(\"'\"&F1270&\"'!\"&G1270))","v":""},{"$f":"IF(ISBLANK(INDIRECT(\"'\"&F1270&\"'!\"&H1270)),\"\",IFERROR(VLOOKUP(TEXT(INDIRECT(\"'\"&F1270&\"'!\"&H1270),\"0\"),Notes!$B$5:$C$100,2,FALSE),\"\"))","v":""},"2e","$BK$68","$BL$68"]
[7701,{"$f":"Menu!$F$29","v":"X"},{"$f":"Menu!$J$29","v":2020},{"$f":"IF(ISBLANK(INDIRECT(\"'\"&F1271&\"'!\"&G1271)),\"\",INDIRECT(\"'\"&F1271&\"'!\"&G1271))","v":""},{"$f":"IF(ISBLANK(INDIRECT(\"'\"&F1271&\"'!\"&H1271)),\"\",IFERROR(VLOOKUP(TEXT(INDIRECT(\"'\"&F1271&\"'!\"&H1271),\"0\"),Notes!$B$5:$C$100,2,FALSE),\"\"))","v":""},"2e","$E$70","$F$70"]
[7702,{"$f":"Menu!$F$29","v":"X"},{"$f":"Menu!$J$29","v":2020},{"$f":"IF(ISBLANK(INDIRECT(\"'\"&F1272&\"'!\"&G1272)),\"\",INDIRECT(\"'\"&F1272&\"'!\"&G1272))","v":""},{"$f":"IF(ISBLANK(INDIRECT(\"'\"&F1272&\"'!\"&H1272)),\"\",IFERROR(VLOOKUP(TEXT(INDIRECT(\"'\"&F1272&\"'!\"&H1272),\"0\"),Notes!$B$5:$C$100,2,FALSE),\"\"))","v":""},"2e","$G$70","$H$70"]
[7703,{"$f":"Menu!$F$29","v":"X"},{"$f":"Menu!$J$29","v":2020},{"$f":"IF(ISBLANK(INDIRECT(\"'\"&F1273&\"'!\"&G1273)),\"\",INDIRECT(\"'\"&F1273&\"'!\"&G1273))","v":""},{"$f":"IF(ISBLANK(INDIRECT(\"'\"&F1273&\"'!\"&H1273)),\"\",IFERROR(VLOOKUP(TEXT(INDIRECT(\"'\"&F1273&\"'!\"&H1273),\"0\"),Notes!$B$5:$C$100,2,FALSE),\"\"))","v":""},"2e","$I$70","$J$70"]
[7704,{"$f":"Menu!$F$29","v":"X"},{"$f":"Menu!$J$29","v":2020},{"$f":"IF(ISBLANK(INDIRECT(\"'\"&F1274&\"'!\"&G1274)),\"\",INDIRECT(\"'\"&F1274&\"'!\"&G1274))","v":""},{"$f":"IF(ISBLANK(INDIRECT(\"'\"&F1274&\"'!\"&H1274)),\"\",IFERROR(VLOOKUP(TEXT(INDIRECT(\"'\"&F1274&\"'!\"&H1274),\"0\"),Notes!$B$5:$C$100,2,FALSE),\"\"))","v":""},"2e","$K$70","$L$70"]
[7705,{"$f":"Menu!$F$29","v":"X"},{"$f":"Menu!$J$29","v":2020},{"$f":"IF(ISBLANK(INDIRECT(\"'\"&F1275&\"'!\"&G1275)),\"\",INDIRECT(\"'\"&F1275&\"'!\"&G1275))","v":""},{"$f":"IF(ISBLANK(INDIRECT(\"'\"&F1275&\"'!\"&H1275)),\"\",IFERROR(VLOOKUP(TEXT(INDIRECT(\"'\"&F1275&\"'!\"&H1275),\"0\"),Notes!$B$5:$C$100,2,FALSE),\"\"))","v":""},"2e","$M$70","$N$70"]
[7706,{"$f":"Menu!$F$29","v":"X"},{"$f":"Menu!$J$29","v":2020},{"$f":"IF(ISBLANK(INDIRECT(\"'\"&F1276&\"'!\"&G1276)),\"\",INDIRECT(\"'\"&F1276&\"'!\"&G1276))","v":""},{"$f":"IF(ISBLANK(INDIRECT(\"'\"&F1276&\"'!\"&H1276)),\"\",IFERROR(VLOOKUP(TEXT(INDIRECT(\"'\"&F1276&\"'!\"&H1276),\"0\"),Notes!$B$5:$C$100,2,FALSE),\"\"))","v":""},"2e","$O$70","$P$70"]
[7707,{"$f":"Menu!$F$29","v":"X"},{"$f":"Menu!$J$29","v":2020},{"$f":"IF(ISBLANK(INDIRECT(\"'\"&F1277&\"'!\"&G1277)),\"\",INDIRECT(\"'\"&F1277&\"'!\"&G1277))","v":""},{"$f":"IF(ISBLANK(INDIRECT(\"'\"&F1277&\"'!\"&H1277)),\"\",IFERROR(VLOOKUP(TEXT(INDIRECT(\"'\"&F1277&\"'!\"&H1277),\"0\"),Notes!$B$5:$C$100,2,FALSE),\"\"))","v":""},"2e","$Q$70","$R$70"]
[7708,{"$f":"Menu!$F$29","v":"X"},{"$f":"Menu!$J$29","v":2020},{"$f":"IF(ISBLANK(INDIRECT(\"'\"&F1278&\"'!\"&G1278)),\"\",INDIRECT(\"'\"&F1278&\"'!\"&G1278))","v":""},{"$f":"IF(ISBLANK(INDIRECT(\"'\"&F1278&\"'!\"&H1278)),\"\",IFERROR(VLOOKUP(TEXT(INDIRECT(\"'\"&F1278&\"'!\"&H1278),\"0\"),Notes!$B$5:$C$100,2,FALSE),\"\"))","v":""},"2e","$S$70","$T$70"]
[7709,{"$f":"Menu!$F$29","v":"X"},{"$f":"Menu!$J$29","v":2020},{"$f":"IF(ISBLANK(INDIRECT(\"'\"&F1279&\"'!\"&G1279)),\"\",INDIRECT(\"'\"&F1279&\"'!\"&G1279))","v":""},{"$f":"IF(ISBLANK(INDIRECT(\"'\"&F1279&\"'!\"&H1279)),\"\",IFERROR(VLOOKUP(TEXT(INDIRECT(\"'\"&F1279&\"'!\"&H1279),\"0\"),Notes!$B$5:$C$100,2,FALSE),\"\"))","v":""},"2e","$U$70","$V$70"]
[7710,{"$f":"Menu!$F$29","v":"X"},{"$f":"Menu!$J$29","v":2020},{"$f":"IF(ISBLANK(INDIRECT(\"'\"&F1280&\"'!\"&G1280)),\"\",INDIRECT(\"'\"&F1280&\"'!\"&G1280))","v":""},{"$f":"IF(ISBLANK(INDIRECT(\"'\"&F1280&\"'!\"&H1280)),\"\",IFERROR(VLOOKUP(TEXT(INDIRECT(\"'\"&F1280&\"'!\"&H1280),\"0\"),Notes!$B$5:$C$100,2,FALSE),\"\"))","v":""},"2e","$W$70","$X$70"]
[7711,{"$f":"Menu!$F$29","v":"X"},{"$f":"Menu!$J$29","v":2020},{"$f":"IF(ISBLANK(INDIRECT(\"'\"&F1281&\"'!\"&G1281)),\"\",INDIRECT(\"'\"&F1281&\"'!\"&G1281))","v":""},{"$f":"IF(ISBLANK(INDIRECT(\"'\"&F1281&\"'!\"&H1281)),\"\",IFERROR(VLOOKUP(TEXT(INDIRECT(\"'\"&F1281&\"'!\"&H1281),\"0\"),Notes!$B$5:$C$100,2,FALSE),\"\"))","v":""},"2e","$Y$70","$Z$70"]
[7712,{"$f":"Menu!$F$29","v":"X"},{"$f":"Menu!$J$29","v":2020},{"$f":"IF(ISBLANK(INDIRECT(\"'\"&F1282&\"'!\"&G1282)),\"\",INDIRECT(\"'\"&F1282&\"'!\"&G1282))","v":""},{"$f":"IF(ISBLANK(INDIRECT(\"'\"&F1282&\"'!\"&H1282)),\"\",IFERROR(VLOOKUP(TEXT(INDIRECT(\"'\"&F1282&\"'!\"&H1282),\"0\"),Notes!$B$5:$C$100,2,FALSE),\"\"))","v":""},"2e","$AA$70",{"$f":"IF(LEN(TRIM(MID(G1282,4,10)))-LEN(SUBSTITUTE(TRIM(MID(G1282,4,10)),\"$\",\"\"))=0,\"$\"&CHAR(CODE(MID(G1282,2,1))+1)&\"$\"&TRIM(MID(G1282,4,10)),\"$\"&MID(G1282,2,1)&CHAR(CODE(MID(G1282,3,1))+1)&\"$\"&TRIM(MID(G1282,5,11)))","v":"$AB$70"}]
[7713,{"$f":"Menu!$F$29","v":"X"},{"$f":"Menu!$J$29","v":2020},{"$f":"IF(ISBLANK(INDIRECT(\"'\"&F1283&\"'!\"&G1283)),\"\",INDIRECT(\"'\"&F1283&\"'!\"&G1283))","v":""},{"$f":"IF(ISBLANK(INDIRECT(\"'\"&F1283&\"'!\"&H1283)),\"\",IFERROR(VLOOKUP(TEXT(INDIRECT(\"'\"&F1283&\"'!\"&H1283),\"0\"),Notes!$B$5:$C$100,2,FALSE),\"\"))","v":""},"2e","$AC$70","$AD$70"]
[7714,{"$f":"Menu!$F$29","v":"X"},{"$f":"Menu!$J$29","v":2020},{"$f":"IF(ISBLANK(INDIRECT(\"'\"&F1284&\"'!\"&G1284)),\"\",INDIRECT(\"'\"&F1284&\"'!\"&G1284))","v":""},{"$f":"IF(ISBLANK(INDIRECT(\"'\"&F1284&\"'!\"&H1284)),\"\",IFERROR(VLOOKUP(TEXT(INDIRECT(\"'\"&F1284&\"'!\"&H1284),\"0\"),Notes!$B$5:$C$100,2,FALSE),\"\"))","v":""},"2e","$AE$70","$AF$70"]
[7715,{"$f":"Menu!$F$29","v":"X"},{"$f":"Menu!$J$29","v":2020},{"$f":"IF(ISBLANK(INDIRECT(\"'\"&F1285&\"'!\"&G1285)),\"\",INDIRECT(\"'\"&F1285&\"'!\"&G1285))","v":""},{"$f":"IF(ISBLANK(INDIRECT(\"'\"&F1285&\"'!\"&H1285)),\"\",IFERROR(VLOOKUP(TEXT(INDIRECT(\"'\"&F1285&\"'!\"&H1285),\"0\"),Notes!$B$5:$C$100,2,FALSE),\"\"))","v":""},"2e","$AG$70","$AH$70"]
[7716,{"$f":"Menu!$F$29","v":"X"},{"$f":"Menu!$J$29","v":2020},{"$f":"IF(ISBLANK(INDIRECT(\"'\"&F1286&\"'!\"&G1286)),\"\",INDIRECT(\"'\"&F1286&\"'!\"&G1286))","v":""},{"$f":"IF(ISBLANK(INDIRECT(\"'\"&F1286&\"'!\"&H1286)),\"\",IFERROR(VLOOKUP(TEXT(INDIRECT(\"'\"&F1286&\"'!\"&H1286),\"0\"),Notes!$B$5:$C$100,2,FALSE),\"\"))","v":""},"2e","$AI$70","$AJ$70"]
[7717,{"$f":"Menu!$F$29","v":"X"},{"$f":"Menu!$J$29","v":2020},{"$f":"IF(ISBLANK(INDIRECT(\"'\"&F1287&\"'!\"&G1287)),\"\",INDIRECT(\"'\"&F1287&\"'!\"&G1287))","v":""},{"$f":"IF(ISBLANK(INDIRECT(\"'\"&F1287&\"'!\"&H1287)),\"\",IFERROR(VLOOKUP(TEXT(INDIRECT(\"'\"&F1287&\"'!\"&H1287),\"0\"),Notes!$B$5:$C$100,2,FALSE),\"\"))","v":""},"2e","$AK$70","$AL$70"]
[7718,{"$f":"Menu!$F$29","v":"X"},{"$f":"Menu!$J$29","v":2020},{"$f":"IF(ISBLANK(INDIRECT(\"'\"&F1288&\"'!\"&G1288)),\"\",INDIRECT(\"'\"&F1288&\"'!\"&G1288))","v":""},{"$f":"IF(ISBLANK(INDIRECT(\"'\"&F1288&\"'!\"&H1288)),\"\",IFERROR(VLOOKUP(TEXT(INDIRECT(\"'\"&F1288&\"'!\"&H1288),\"0\"),Notes!$B$5:$C$100,2,FALSE),\"\"))","v":""},"2e","$AM$70","$AN$70"]
[7719,{"$f":"Menu!$F$29","v":"X"},{"$f":"Menu!$J$29","v":2020},{"$f":"IF(ISBLANK(INDIRECT(\"'\"&F1289&\"'!\"&G1289)),\"\",INDIRECT(\"'\"&F1289&\"'!\"&G1289))","v":""},{"$f":"IF(ISBLANK(INDIRECT(\"'\"&F1289&\"'!\"&H1289)),\"\",IFERROR(VLOOKUP(TEXT(INDIRECT(\"'\"&F1289&\"'!\"&H1289),\"0\"),Notes!$B$5:$C$100,2,FALSE),\"\"))","v":""},"2e","$AO$70","$AP$70"]
[7720,{"$f":"Menu!$F$29","v":"X"},{"$f":"Menu!$J$29","v":2020},{"$f":"IF(ISBLANK(INDIRECT(\"'\"&F1290&\"'!\"&G1290)),\"\",INDIRECT(\"'\"&F1290&\"'!\"&G1290))","v":""},{"$f":"IF(ISBLANK(INDIRECT(\"'\"&F1290&\"'!\"&H1290)),\"\",IFERROR(VLOOKUP(TEXT(INDIRECT(\"'\"&F1290&\"'!\"&H1290),\"0\"),Notes!$B$5:$C$100,2,FALSE),\"\"))","v":""},"2e","$AQ$70","$AR$70"]
[7721,{"$f":"Menu!$F$29","v":"X"},{"$f":"Menu!$J$29","v":2020},{"$f":"IF(ISBLANK(INDIRECT(\"'\"&F1291&\"'!\"&G1291)),\"\",INDIRECT(\"'\"&F1291&\"'!\"&G1291))","v":""},{"$f":"IF(ISBLANK(INDIRECT(\"'\"&F1291&\"'!\"&H1291)),\"\",IFERROR(VLOOKUP(TEXT(INDIRECT(\"'\"&F1291&\"'!\"&H1291),\"0\"),Notes!$B$5:$C$100,2,FALSE),\"\"))","v":""},"2e","$AS$70","$AT$70"]
[7722,{"$f":"Menu!$F$29","v":"X"},{"$f":"Menu!$J$29","v":2020},{"$f":"IF(ISBLANK(INDIRECT(\"'\"&F1292&\"'!\"&G1292)),\"\",INDIRECT(\"'\"&F1292&\"'!\"&G1292))","v":""},{"$f":"IF(ISBLANK(INDIRECT(\"'\"&F1292&\"'!\"&H1292)),\"\",IFERROR(VLOOKUP(TEXT(INDIRECT(\"'\"&F1292&\"'!\"&H1292),\"0\"),Notes!$B$5:$C$100,2,FALSE),\"\"))","v":""},"2e","$AU$70","$AV$70"]
[7723,{"$f":"Menu!$F$29","v":"X"},{"$f":"Menu!$J$29","v":2020},{"$f":"IF(ISBLANK(INDIRECT(\"'\"&F1293&\"'!\"&G1293)),\"\",INDIRECT(\"'\"&F1293&\"'!\"&G1293))","v":""},{"$f":"IF(ISBLANK(INDIRECT(\"'\"&F1293&\"'!\"&H1293)),\"\",IFERROR(VLOOKUP(TEXT(INDIRECT(\"'\"&F1293&\"'!\"&H1293),\"0\"),Notes!$B$5:$C$100,2,FALSE),\"\"))","v":""},"2e","$AW$70","$AX$70"]
[7724,{"$f":"Menu!$F$29","v":"X"},{"$f":"Menu!$J$29","v":2020},{"$f":"IF(ISBLANK(INDIRECT(\"'\"&F1294&\"'!\"&G1294)),\"\",INDIRECT(\"'\"&F1294&\"'!\"&G1294))","v":""},{"$f":"IF(ISBLANK(INDIRECT(\"'\"&F1294&\"'!\"&H1294)),\"\",IFERROR(VLOOKUP(TEXT(INDIRECT(\"'\"&F1294&\"'!\"&H1294),\"0\"),Notes!$B$5:$C$100,2,FALSE),\"\"))","v":""},"2e","$AY$70","$AZ$70"]
[7725,{"$f":"Menu!$F$29","v":"X"},{"$f":"Menu!$J$29","v":2020},{"$f":"IF(ISBLANK(INDIRECT(\"'\"&F1295&\"'!\"&G1295)),\"\",INDIRECT(\"'\"&F1295&\"'!\"&G1295))","v":""},{"$f":"IF(ISBLANK(INDIRECT(\"'\"&F1295&\"'!\"&H1295)),\"\",IFERROR(VLOOKUP(TEXT(INDIRECT(\"'\"&F1295&\"'!\"&H1295),\"0\"),Notes!$B$5:$C$100,2,FALSE),\"\"))","v":""},"2e","$BA$70","$BB$70"]
[7726,{"$f":"Menu!$F$29","v":"X"},{"$f":"Menu!$J$29","v":2020},{"$f":"IF(ISBLANK(INDIRECT(\"'\"&F1296&\"'!\"&G1296)),\"\",INDIRECT(\"'\"&F1296&\"'!\"&G1296))","v":""},{"$f":"IF(ISBLANK(INDIRECT(\"'\"&F1296&\"'!\"&H1296)),\"\",IFERROR(VLOOKUP(TEXT(INDIRECT(\"'\"&F1296&\"'!\"&H1296),\"0\"),Notes!$B$5:$C$100,2,FALSE),\"\"))","v":""},"2e","$BC$70","$BD$70"]
[7727,{"$f":"Menu!$F$29","v":"X"},{"$f":"Menu!$J$29","v":2020},{"$f":"IF(ISBLANK(INDIRECT(\"'\"&F1297&\"'!\"&G1297)),\"\",INDIRECT(\"'\"&F1297&\"'!\"&G1297))","v":""},{"$f":"IF(ISBLANK(INDIRECT(\"'\"&F1297&\"'!\"&H1297)),\"\",IFERROR(VLOOKUP(TEXT(INDIRECT(\"'\"&F1297&\"'!\"&H1297),\"0\"),Notes!$B$5:$C$100,2,FALSE),\"\"))","v":""},"2e","$BE$70","$BF$70"]
[7728,{"$f":"Menu!$F$29","v":"X"},{"$f":"Menu!$J$29","v":2020},{"$f":"IF(ISBLANK(INDIRECT(\"'\"&F1298&\"'!\"&G1298)),\"\",INDIRECT(\"'\"&F1298&\"'!\"&G1298))","v":""},{"$f":"IF(ISBLANK(INDIRECT(\"'\"&F1298&\"'!\"&H1298)),\"\",IFERROR(VLOOKUP(TEXT(INDIRECT(\"'\"&F1298&\"'!\"&H1298),\"0\"),Notes!$B$5:$C$100,2,FALSE),\"\"))","v":""},"2e","$BG$70","$BH$70"]
[7729,{"$f":"Menu!$F$29","v":"X"},{"$f":"Menu!$J$29","v":2020},{"$f":"IF(ISBLANK(INDIRECT(\"'\"&F1299&\"'!\"&G1299)),\"\",INDIRECT(\"'\"&F1299&\"'!\"&G1299))","v":""},{"$f":"IF(ISBLANK(INDIRECT(\"'\"&F1299&\"'!\"&H1299)),\"\",IFERROR(VLOOKUP(TEXT(INDIRECT(\"'\"&F1299&\"'!\"&H1299),\"0\"),Notes!$B$5:$C$100,2,FALSE),\"\"))","v":""},"2e","$BI$70","$BJ$70"]
[7730,{"$f":"Menu!$F$29","v":"X"},{"$f":"Menu!$J$29","v":2020},{"$f":"IF(ISBLANK(INDIRECT(\"'\"&F1300&\"'!\"&G1300)),\"\",INDIRECT(\"'\"&F1300&\"'!\"&G1300))","v":""},{"$f":"IF(ISBLANK(INDIRECT(\"'\"&F1300&\"'!\"&H1300)),\"\",IFERROR(VLOOKUP(TEXT(INDIRECT(\"'\"&F1300&\"'!\"&H1300),\"0\"),Notes!$B$5:$C$100,2,FALSE),\"\"))","v":""},"2e","$BK$70","$BL$70"]
[7851,{"$f":"Menu!$F$29","v":"X"},{"$f":"Menu!$J$29","v":2020},{"$f":"IF(ISBLANK(INDIRECT(\"'\"&F1301&\"'!\"&G1301)),\"\",INDIRECT(\"'\"&F1301&\"'!\"&G1301))","v":""},{"$f":"IF(ISBLANK(INDIRECT(\"'\"&F1301&\"'!\"&H1301)),\"\",IFERROR(VLOOKUP(TEXT(INDIRECT(\"'\"&F1301&\"'!\"&H1301),\"0\"),Notes!$B$5:$C$100,2,FALSE),\"\"))","v":""},"2e","$E$26","$F$26"]
[7852,{"$f":"Menu!$F$29","v":"X"},{"$f":"Menu!$J$29","v":2020},{"$f":"IF(ISBLANK(INDIRECT(\"'\"&F1302&\"'!\"&G1302)),\"\",INDIRECT(\"'\"&F1302&\"'!\"&G1302))","v":""},{"$f":"IF(ISBLANK(INDIRECT(\"'\"&F1302&\"'!\"&H1302)),\"\",IFERROR(VLOOKUP(TEXT(INDIRECT(\"'\"&F1302&\"'!\"&H1302),\"0\"),Notes!$B$5:$C$100,2,FALSE),\"\"))","v":""},"2e","$G$26","$H$26"]
[7853,{"$f":"Menu!$F$29","v":"X"},{"$f":"Menu!$J$29","v":2020},{"$f":"IF(ISBLANK(INDIRECT(\"'\"&F1303&\"'!\"&G1303)),\"\",INDIRECT(\"'\"&F1303&\"'!\"&G1303))","v":""},{"$f":"IF(ISBLANK(INDIRECT(\"'\"&F1303&\"'!\"&H1303)),\"\",IFERROR(VLOOKUP(TEXT(INDIRECT(\"'\"&F1303&\"'!\"&H1303),\"0\"),Notes!$B$5:$C$100,2,FALSE),\"\"))","v":""},"2e","$I$26","$J$26"]
[7854,{"$f":"Menu!$F$29","v":"X"},{"$f":"Menu!$J$29","v":2020},{"$f":"IF(ISBLANK(INDIRECT(\"'\"&F1304&\"'!\"&G1304)),\"\",INDIRECT(\"'\"&F1304&\"'!\"&G1304))","v":""},{"$f":"IF(ISBLANK(INDIRECT(\"'\"&F1304&\"'!\"&H1304)),\"\",IFERROR(VLOOKUP(TEXT(INDIRECT(\"'\"&F1304&\"'!\"&H1304),\"0\"),Notes!$B$5:$C$100,2,FALSE),\"\"))","v":""},"2e","$K$26","$L$26"]
[7855,{"$f":"Menu!$F$29","v":"X"},{"$f":"Menu!$J$29","v":2020},{"$f":"IF(ISBLANK(INDIRECT(\"'\"&F1305&\"'!\"&G1305)),\"\",INDIRECT(\"'\"&F1305&\"'!\"&G1305))","v":""},{"$f":"IF(ISBLANK(INDIRECT(\"'\"&F1305&\"'!\"&H1305)),\"\",IFERROR(VLOOKUP(TEXT(INDIRECT(\"'\"&F1305&\"'!\"&H1305),\"0\"),Notes!$B$5:$C$100,2,FALSE),\"\"))","v":""},"2e","$M$26","$N$26"]
[7856,{"$f":"Menu!$F$29","v":"X"},{"$f":"Menu!$J$29","v":2020},{"$f":"IF(ISBLANK(INDIRECT(\"'\"&F1306&\"'!\"&G1306)),\"\",INDIRECT(\"'\"&F1306&\"'!\"&G1306))","v":""},{"$f":"IF(ISBLANK(INDIRECT(\"'\"&F1306&\"'!\"&H1306)),\"\",IFERROR(VLOOKUP(TEXT(INDIRECT(\"'\"&F1306&\"'!\"&H1306),\"0\"),Notes!$B$5:$C$100,2,FALSE),\"\"))","v":""},"2e","$O$26","$P$26"]
[7857,{"$f":"Menu!$F$29","v":"X"},{"$f":"Menu!$J$29","v":2020},{"$f":"IF(ISBLANK(INDIRECT(\"'\"&F1307&\"'!\"&G1307)),\"\",INDIRECT(\"'\"&F1307&\"'!\"&G1307))","v":""},{"$f":"IF(ISBLANK(INDIRECT(\"'\"&F1307&\"'!\"&H1307)),\"\",IFERROR(VLOOKUP(TEXT(INDIRECT(\"'\"&F1307&\"'!\"&H1307),\"0\"),Notes!$B$5:$C$100,2,FALSE),\"\"))","v":""},"2e","$Q$26","$R$26"]
[7858,{"$f":"Menu!$F$29","v":"X"},{"$f":"Menu!$J$29","v":2020},{"$f":"IF(ISBLANK(INDIRECT(\"'\"&F1308&\"'!\"&G1308)),\"\",INDIRECT(\"'\"&F1308&\"'!\"&G1308))","v":""},{"$f":"IF(ISBLANK(INDIRECT(\"'\"&F1308&\"'!\"&H1308)),\"\",IFERROR(VLOOKUP(TEXT(INDIRECT(\"'\"&F1308&\"'!\"&H1308),\"0\"),Notes!$B$5:$C$100,2,FALSE),\"\"))","v":""},"2e","$S$26","$T$26"]
[7859,{"$f":"Menu!$F$29","v":"X"},{"$f":"Menu!$J$29","v":2020},{"$f":"IF(ISBLANK(INDIRECT(\"'\"&F1309&\"'!\"&G1309)),\"\",INDIRECT(\"'\"&F1309&\"'!\"&G1309))","v":""},{"$f":"IF(ISBLANK(INDIRECT(\"'\"&F1309&\"'!\"&H1309)),\"\",IFERROR(VLOOKUP(TEXT(INDIRECT(\"'\"&F1309&\"'!\"&H1309),\"0\"),Notes!$B$5:$C$100,2,FALSE),\"\"))","v":""},"2e","$U$26","$V$26"]
[7860,{"$f":"Menu!$F$29","v":"X"},{"$f":"Menu!$J$29","v":2020},{"$f":"IF(ISBLANK(INDIRECT(\"'\"&F1310&\"'!\"&G1310)),\"\",INDIRECT(\"'\"&F1310&\"'!\"&G1310))","v":""},{"$f":"IF(ISBLANK(INDIRECT(\"'\"&F1310&\"'!\"&H1310)),\"\",IFERROR(VLOOKUP(TEXT(INDIRECT(\"'\"&F1310&\"'!\"&H1310),\"0\"),Notes!$B$5:$C$100,2,FALSE),\"\"))","v":""},"2e","$W$26","$X$26"]
[7861,{"$f":"Menu!$F$29","v":"X"},{"$f":"Menu!$J$29","v":2020},{"$f":"IF(ISBLANK(INDIRECT(\"'\"&F1311&\"'!\"&G1311)),\"\",INDIRECT(\"'\"&F1311&\"'!\"&G1311))","v":""},{"$f":"IF(ISBLANK(INDIRECT(\"'\"&F1311&\"'!\"&H1311)),\"\",IFERROR(VLOOKUP(TEXT(INDIRECT(\"'\"&F1311&\"'!\"&H1311),\"0\"),Notes!$B$5:$C$100,2,FALSE),\"\"))","v":""},"2e","$Y$26","$Z$26"]
[7862,{"$f":"Menu!$F$29","v":"X"},{"$f":"Menu!$J$29","v":2020},{"$f":"IF(ISBLANK(INDIRECT(\"'\"&F1312&\"'!\"&G1312)),\"\",INDIRECT(\"'\"&F1312&\"'!\"&G1312))","v":""},{"$f":"IF(ISBLANK(INDIRECT(\"'\"&F1312&\"'!\"&H1312)),\"\",IFERROR(VLOOKUP(TEXT(INDIRECT(\"'\"&F1312&\"'!\"&H1312),\"0\"),Notes!$B$5:$C$100,2,FALSE),\"\"))","v":""},"2e","$AA$26","$AB$26"]
[7863,{"$f":"Menu!$F$29","v":"X"},{"$f":"Menu!$J$29","v":2020},{"$f":"IF(ISBLANK(INDIRECT(\"'\"&F1313&\"'!\"&G1313)),\"\",INDIRECT(\"'\"&F1313&\"'!\"&G1313))","v":""},{"$f":"IF(ISBLANK(INDIRECT(\"'\"&F1313&\"'!\"&H1313)),\"\",IFERROR(VLOOKUP(TEXT(INDIRECT(\"'\"&F1313&\"'!\"&H1313),\"0\"),Notes!$B$5:$C$100,2,FALSE),\"\"))","v":""},"2e","$AC$26","$AD$26"]
[7864,{"$f":"Menu!$F$29","v":"X"},{"$f":"Menu!$J$29","v":2020},{"$f":"IF(ISBLANK(INDIRECT(\"'\"&F1314&\"'!\"&G1314)),\"\",INDIRECT(\"'\"&F1314&\"'!\"&G1314))","v":""},{"$f":"IF(ISBLANK(INDIRECT(\"'\"&F1314&\"'!\"&H1314)),\"\",IFERROR(VLOOKUP(TEXT(INDIRECT(\"'\"&F1314&\"'!\"&H1314),\"0\"),Notes!$B$5:$C$100,2,FALSE),\"\"))","v":""},"2e","$AE$26","$AF$26"]
[7865,{"$f":"Menu!$F$29","v":"X"},{"$f":"Menu!$J$29","v":2020},{"$f":"IF(ISBLANK(INDIRECT(\"'\"&F1315&\"'!\"&G1315)),\"\",INDIRECT(\"'\"&F1315&\"'!\"&G1315))","v":""},{"$f":"IF(ISBLANK(INDIRECT(\"'\"&F1315&\"'!\"&H1315)),\"\",IFERROR(VLOOKUP(TEXT(INDIRECT(\"'\"&F1315&\"'!\"&H1315),\"0\"),Notes!$B$5:$C$100,2,FALSE),\"\"))","v":""},"2e","$AG$26","$AH$26"]
[7866,{"$f":"Menu!$F$29","v":"X"},{"$f":"Menu!$J$29","v":2020},{"$f":"IF(ISBLANK(INDIRECT(\"'\"&F1316&\"'!\"&G1316)),\"\",INDIRECT(\"'\"&F1316&\"'!\"&G1316))","v":""},{"$f":"IF(ISBLANK(INDIRECT(\"'\"&F1316&\"'!\"&H1316)),\"\",IFERROR(VLOOKUP(TEXT(INDIRECT(\"'\"&F1316&\"'!\"&H1316),\"0\"),Notes!$B$5:$C$100,2,FALSE),\"\"))","v":""},"2e","$AI$26","$AJ$26"]
[7867,{"$f":"Menu!$F$29","v":"X"},{"$f":"Menu!$J$29","v":2020},{"$f":"IF(ISBLANK(INDIRECT(\"'\"&F1317&\"'!\"&G1317)),\"\",INDIRECT(\"'\"&F1317&\"'!\"&G1317))","v":""},{"$f":"IF(ISBLANK(INDIRECT(\"'\"&F1317&\"'!\"&H1317)),\"\",IFERROR(VLOOKUP(TEXT(INDIRECT(\"'\"&F1317&\"'!\"&H1317),\"0\"),Notes!$B$5:$C$100,2,FALSE),\"\"))","v":""},"2e","$AK$26","$AL$26"]
[7868,{"$f":"Menu!$F$29","v":"X"},{"$f":"Menu!$J$29","v":2020},{"$f":"IF(ISBLANK(INDIRECT(\"'\"&F1318&\"'!\"&G1318)),\"\",INDIRECT(\"'\"&F1318&\"'!\"&G1318))","v":""},{"$f":"IF(ISBLANK(INDIRECT(\"'\"&F1318&\"'!\"&H1318)),\"\",IFERROR(VLOOKUP(TEXT(INDIRECT(\"'\"&F1318&\"'!\"&H1318),\"0\"),Notes!$B$5:$C$100,2,FALSE),\"\"))","v":""},"2e","$AM$26","$AN$26"]
[7869,{"$f":"Menu!$F$29","v":"X"},{"$f":"Menu!$J$29","v":2020},{"$f":"IF(ISBLANK(INDIRECT(\"'\"&F1319&\"'!\"&G1319)),\"\",INDIRECT(\"'\"&F1319&\"'!\"&G1319))","v":""},{"$f":"IF(ISBLANK(INDIRECT(\"'\"&F1319&\"'!\"&H1319)),\"\",IFERROR(VLOOKUP(TEXT(INDIRECT(\"'\"&F1319&\"'!\"&H1319),\"0\"),Notes!$B$5:$C$100,2,FALSE),\"\"))","v":""},"2e","$AO$26","$AP$26"]
[7870,{"$f":"Menu!$F$29","v":"X"},{"$f":"Menu!$J$29","v":2020},{"$f":"IF(ISBLANK(INDIRECT(\"'\"&F1320&\"'!\"&G1320)),\"\",INDIRECT(\"'\"&F1320&\"'!\"&G1320))","v":""},{"$f":"IF(ISBLANK(INDIRECT(\"'\"&F1320&\"'!\"&H1320)),\"\",IFERROR(VLOOKUP(TEXT(INDIRECT(\"'\"&F1320&\"'!\"&H1320),\"0\"),Notes!$B$5:$C$100,2,FALSE),\"\"))","v":""},"2e","$AQ$26","$AR$26"]
[7871,{"$f":"Menu!$F$29","v":"X"},{"$f":"Menu!$J$29","v":2020},{"$f":"IF(ISBLANK(INDIRECT(\"'\"&F1321&\"'!\"&G1321)),\"\",INDIRECT(\"'\"&F1321&\"'!\"&G1321))","v":""},{"$f":"IF(ISBLANK(INDIRECT(\"'\"&F1321&\"'!\"&H1321)),\"\",IFERROR(VLOOKUP(TEXT(INDIRECT(\"'\"&F1321&\"'!\"&H1321),\"0\"),Notes!$B$5:$C$100,2,FALSE),\"\"))","v":""},"2e","$AS$26","$AT$26"]
[7872,{"$f":"Menu!$F$29","v":"X"},{"$f":"Menu!$J$29","v":2020},{"$f":"IF(ISBLANK(INDIRECT(\"'\"&F1322&\"'!\"&G1322)),\"\",INDIRECT(\"'\"&F1322&\"'!\"&G1322))","v":""},{"$f":"IF(ISBLANK(INDIRECT(\"'\"&F1322&\"'!\"&H1322)),\"\",IFERROR(VLOOKUP(TEXT(INDIRECT(\"'\"&F1322&\"'!\"&H1322),\"0\"),Notes!$B$5:$C$100,2,FALSE),\"\"))","v":""},"2e","$AU$26","$AV$26"]
[7873,{"$f":"Menu!$F$29","v":"X"},{"$f":"Menu!$J$29","v":2020},{"$f":"IF(ISBLANK(INDIRECT(\"'\"&F1323&\"'!\"&G1323)),\"\",INDIRECT(\"'\"&F1323&\"'!\"&G1323))","v":""},{"$f":"IF(ISBLANK(INDIRECT(\"'\"&F1323&\"'!\"&H1323)),\"\",IFERROR(VLOOKUP(TEXT(INDIRECT(\"'\"&F1323&\"'!\"&H1323),\"0\"),Notes!$B$5:$C$100,2,FALSE),\"\"))","v":""},"2e","$AW$26","$AX$26"]
[7874,{"$f":"Menu!$F$29","v":"X"},{"$f":"Menu!$J$29","v":2020},{"$f":"IF(ISBLANK(INDIRECT(\"'\"&F1324&\"'!\"&G1324)),\"\",INDIRECT(\"'\"&F1324&\"'!\"&G1324))","v":""},{"$f":"IF(ISBLANK(INDIRECT(\"'\"&F1324&\"'!\"&H1324)),\"\",IFERROR(VLOOKUP(TEXT(INDIRECT(\"'\"&F1324&\"'!\"&H1324),\"0\"),Notes!$B$5:$C$100,2,FALSE),\"\"))","v":""},"2e","$AY$26","$AZ$26"]
[7875,{"$f":"Menu!$F$29","v":"X"},{"$f":"Menu!$J$29","v":2020},{"$f":"IF(ISBLANK(INDIRECT(\"'\"&F1325&\"'!\"&G1325)),\"\",INDIRECT(\"'\"&F1325&\"'!\"&G1325))","v":""},{"$f":"IF(ISBLANK(INDIRECT(\"'\"&F1325&\"'!\"&H1325)),\"\",IFERROR(VLOOKUP(TEXT(INDIRECT(\"'\"&F1325&\"'!\"&H1325),\"0\"),Notes!$B$5:$C$100,2,FALSE),\"\"))","v":""},"2e","$BA$26","$BB$26"]
[7876,{"$f":"Menu!$F$29","v":"X"},{"$f":"Menu!$J$29","v":2020},{"$f":"IF(ISBLANK(INDIRECT(\"'\"&F1326&\"'!\"&G1326)),\"\",INDIRECT(\"'\"&F1326&\"'!\"&G1326))","v":""},{"$f":"IF(ISBLANK(INDIRECT(\"'\"&F1326&\"'!\"&H1326)),\"\",IFERROR(VLOOKUP(TEXT(INDIRECT(\"'\"&F1326&\"'!\"&H1326),\"0\"),Notes!$B$5:$C$100,2,FALSE),\"\"))","v":""},"2e","$BC$26","$BD$26"]
[7877,{"$f":"Menu!$F$29","v":"X"},{"$f":"Menu!$J$29","v":2020},{"$f":"IF(ISBLANK(INDIRECT(\"'\"&F1327&\"'!\"&G1327)),\"\",INDIRECT(\"'\"&F1327&\"'!\"&G1327))","v":""},{"$f":"IF(ISBLANK(INDIRECT(\"'\"&F1327&\"'!\"&H1327)),\"\",IFERROR(VLOOKUP(TEXT(INDIRECT(\"'\"&F1327&\"'!\"&H1327),\"0\"),Notes!$B$5:$C$100,2,FALSE),\"\"))","v":""},"2e","$BE$26","$BF$26"]
[7878,{"$f":"Menu!$F$29","v":"X"},{"$f":"Menu!$J$29","v":2020},{"$f":"IF(ISBLANK(INDIRECT(\"'\"&F1328&\"'!\"&G1328)),\"\",INDIRECT(\"'\"&F1328&\"'!\"&G1328))","v":""},{"$f":"IF(ISBLANK(INDIRECT(\"'\"&F1328&\"'!\"&H1328)),\"\",IFERROR(VLOOKUP(TEXT(INDIRECT(\"'\"&F1328&\"'!\"&H1328),\"0\"),Notes!$B$5:$C$100,2,FALSE),\"\"))","v":""},"2e","$BG$26","$BH$26"]
[7879,{"$f":"Menu!$F$29","v":"X"},{"$f":"Menu!$J$29","v":2020},{"$f":"IF(ISBLANK(INDIRECT(\"'\"&F1329&\"'!\"&G1329)),\"\",INDIRECT(\"'\"&F1329&\"'!\"&G1329))","v":""},{"$f":"IF(ISBLANK(INDIRECT(\"'\"&F1329&\"'!\"&H1329)),\"\",IFERROR(VLOOKUP(TEXT(INDIRECT(\"'\"&F1329&\"'!\"&H1329),\"0\"),Notes!$B$5:$C$100,2,FALSE),\"\"))","v":""},"2e","$BI$26","$BJ$26"]
[7880,{"$f":"Menu!$F$29","v":"X"},{"$f":"Menu!$J$29","v":2020},{"$f":"IF(ISBLANK(INDIRECT(\"'\"&F1330&\"'!\"&G1330)),\"\",INDIRECT(\"'\"&F1330&\"'!\"&G1330))","v":""},{"$f":"IF(ISBLANK(INDIRECT(\"'\"&F1330&\"'!\"&H1330)),\"\",IFERROR(VLOOKUP(TEXT(INDIRECT(\"'\"&F1330&\"'!\"&H1330),\"0\"),Notes!$B$5:$C$100,2,FALSE),\"\"))","v":""},"2e","$BK$26","$BL$26"]
[7911,{"$f":"Menu!$F$29","v":"X"},{"$f":"Menu!$J$29","v":2020},{"$f":"IF(ISBLANK(INDIRECT(\"'\"&F1331&\"'!\"&G1331)),\"\",INDIRECT(\"'\"&F1331&\"'!\"&G1331))","v":""},{"$f":"IF(ISBLANK(INDIRECT(\"'\"&F1331&\"'!\"&H1331)),\"\",IFERROR(VLOOKUP(TEXT(INDIRECT(\"'\"&F1331&\"'!\"&H1331),\"0\"),Notes!$B$5:$C$100,2,FALSE),\"\"))","v":""},"2e","$E$89","$F$89"]
[7912,{"$f":"Menu!$F$29","v":"X"},{"$f":"Menu!$J$29","v":2020},{"$f":"IF(ISBLANK(INDIRECT(\"'\"&F1332&\"'!\"&G1332)),\"\",INDIRECT(\"'\"&F1332&\"'!\"&G1332))","v":""},{"$f":"IF(ISBLANK(INDIRECT(\"'\"&F1332&\"'!\"&H1332)),\"\",IFERROR(VLOOKUP(TEXT(INDIRECT(\"'\"&F1332&\"'!\"&H1332),\"0\"),Notes!$B$5:$C$100,2,FALSE),\"\"))","v":""},"2e","$G$89","$H$89"]
[7913,{"$f":"Menu!$F$29","v":"X"},{"$f":"Menu!$J$29","v":2020},{"$f":"IF(ISBLANK(INDIRECT(\"'\"&F1333&\"'!\"&G1333)),\"\",INDIRECT(\"'\"&F1333&\"'!\"&G1333))","v":""},{"$f":"IF(ISBLANK(INDIRECT(\"'\"&F1333&\"'!\"&H1333)),\"\",IFERROR(VLOOKUP(TEXT(INDIRECT(\"'\"&F1333&\"'!\"&H1333),\"0\"),Notes!$B$5:$C$100,2,FALSE),\"\"))","v":""},"2e","$I$89","$J$89"]
[7914,{"$f":"Menu!$F$29","v":"X"},{"$f":"Menu!$J$29","v":2020},{"$f":"IF(ISBLANK(INDIRECT(\"'\"&F1334&\"'!\"&G1334)),\"\",INDIRECT(\"'\"&F1334&\"'!\"&G1334))","v":""},{"$f":"IF(ISBLANK(INDIRECT(\"'\"&F1334&\"'!\"&H1334)),\"\",IFERROR(VLOOKUP(TEXT(INDIRECT(\"'\"&F1334&\"'!\"&H1334),\"0\"),Notes!$B$5:$C$100,2,FALSE),\"\"))","v":""},"2e","$K$89","$L$89"]
[7915,{"$f":"Menu!$F$29","v":"X"},{"$f":"Menu!$J$29","v":2020},{"$f":"IF(ISBLANK(INDIRECT(\"'\"&F1335&\"'!\"&G1335)),\"\",INDIRECT(\"'\"&F1335&\"'!\"&G1335))","v":""},{"$f":"IF(ISBLANK(INDIRECT(\"'\"&F1335&\"'!\"&H1335)),\"\",IFERROR(VLOOKUP(TEXT(INDIRECT(\"'\"&F1335&\"'!\"&H1335),\"0\"),Notes!$B$5:$C$100,2,FALSE),\"\"))","v":""},"2e","$M$89","$N$89"]
[7916,{"$f":"Menu!$F$29","v":"X"},{"$f":"Menu!$J$29","v":2020},{"$f":"IF(ISBLANK(INDIRECT(\"'\"&F1336&\"'!\"&G1336)),\"\",INDIRECT(\"'\"&F1336&\"'!\"&G1336))","v":""},{"$f":"IF(ISBLANK(INDIRECT(\"'\"&F1336&\"'!\"&H1336)),\"\",IFERROR(VLOOKUP(TEXT(INDIRECT(\"'\"&F1336&\"'!\"&H1336),\"0\"),Notes!$B$5:$C$100,2,FALSE),\"\"))","v":""},"2e","$O$89","$P$89"]
[7917,{"$f":"Menu!$F$29","v":"X"},{"$f":"Menu!$J$29","v":2020},{"$f":"IF(ISBLANK(INDIRECT(\"'\"&F1337&\"'!\"&G1337)),\"\",INDIRECT(\"'\"&F1337&\"'!\"&G1337))","v":""},{"$f":"IF(ISBLANK(INDIRECT(\"'\"&F1337&\"'!\"&H1337)),\"\",IFERROR(VLOOKUP(TEXT(INDIRECT(\"'\"&F1337&\"'!\"&H1337),\"0\"),Notes!$B$5:$C$100,2,FALSE),\"\"))","v":""},"2e","$Q$89","$R$89"]
[7918,{"$f":"Menu!$F$29","v":"X"},{"$f":"Menu!$J$29","v":2020},{"$f":"IF(ISBLANK(INDIRECT(\"'\"&F1338&\"'!\"&G1338)),\"\",INDIRECT(\"'\"&F1338&\"'!\"&G1338))","v":""},{"$f":"IF(ISBLANK(INDIRECT(\"'\"&F1338&\"'!\"&H1338)),\"\",IFERROR(VLOOKUP(TEXT(INDIRECT(\"'\"&F1338&\"'!\"&H1338),\"0\"),Notes!$B$5:$C$100,2,FALSE),\"\"))","v":""},"2e","$S$89","$T$89"]
[7919,{"$f":"Menu!$F$29","v":"X"},{"$f":"Menu!$J$29","v":2020},{"$f":"IF(ISBLANK(INDIRECT(\"'\"&F1339&\"'!\"&G1339)),\"\",INDIRECT(\"'\"&F1339&\"'!\"&G1339))","v":""},{"$f":"IF(ISBLANK(INDIRECT(\"'\"&F1339&\"'!\"&H1339)),\"\",IFERROR(VLOOKUP(TEXT(INDIRECT(\"'\"&F1339&\"'!\"&H1339),\"0\"),Notes!$B$5:$C$100,2,FALSE),\"\"))","v":""},"2e","$U$89","$V$89"]
[7920,{"$f":"Menu!$F$29","v":"X"},{"$f":"Menu!$J$29","v":2020},{"$f":"IF(ISBLANK(INDIRECT(\"'\"&F1340&\"'!\"&G1340)),\"\",INDIRECT(\"'\"&F1340&\"'!\"&G1340))","v":""},{"$f":"IF(ISBLANK(INDIRECT(\"'\"&F1340&\"'!\"&H1340)),\"\",IFERROR(VLOOKUP(TEXT(INDIRECT(\"'\"&F1340&\"'!\"&H1340),\"0\"),Notes!$B$5:$C$100,2,FALSE),\"\"))","v":""},"2e","$W$89","$X$89"]
[7921,{"$f":"Menu!$F$29","v":"X"},{"$f":"Menu!$J$29","v":2020},{"$f":"IF(ISBLANK(INDIRECT(\"'\"&F1341&\"'!\"&G1341)),\"\",INDIRECT(\"'\"&F1341&\"'!\"&G1341))","v":""},{"$f":"IF(ISBLANK(INDIRECT(\"'\"&F1341&\"'!\"&H1341)),\"\",IFERROR(VLOOKUP(TEXT(INDIRECT(\"'\"&F1341&\"'!\"&H1341),\"0\"),Notes!$B$5:$C$100,2,FALSE),\"\"))","v":""},"2e","$Y$89","$Z$89"]
[7922,{"$f":"Menu!$F$29","v":"X"},{"$f":"Menu!$J$29","v":2020},{"$f":"IF(ISBLANK(INDIRECT(\"'\"&F1342&\"'!\"&G1342)),\"\",INDIRECT(\"'\"&F1342&\"'!\"&G1342))","v":""},{"$f":"IF(ISBLANK(INDIRECT(\"'\"&F1342&\"'!\"&H1342)),\"\",IFERROR(VLOOKUP(TEXT(INDIRECT(\"'\"&F1342&\"'!\"&H1342),\"0\"),Notes!$B$5:$C$100,2,FALSE),\"\"))","v":""},"2e","$AA$89","$AB$89"]
[7923,{"$f":"Menu!$F$29","v":"X"},{"$f":"Menu!$J$29","v":2020},{"$f":"IF(ISBLANK(INDIRECT(\"'\"&F1343&\"'!\"&G1343)),\"\",INDIRECT(\"'\"&F1343&\"'!\"&G1343))","v":""},{"$f":"IF(ISBLANK(INDIRECT(\"'\"&F1343&\"'!\"&H1343)),\"\",IFERROR(VLOOKUP(TEXT(INDIRECT(\"'\"&F1343&\"'!\"&H1343),\"0\"),Notes!$B$5:$C$100,2,FALSE),\"\"))","v":""},"2e","$AC$89","$AD$89"]
[7924,{"$f":"Menu!$F$29","v":"X"},{"$f":"Menu!$J$29","v":2020},{"$f":"IF(ISBLANK(INDIRECT(\"'\"&F1344&\"'!\"&G1344)),\"\",INDIRECT(\"'\"&F1344&\"'!\"&G1344))","v":""},{"$f":"IF(ISBLANK(INDIRECT(\"'\"&F1344&\"'!\"&H1344)),\"\",IFERROR(VLOOKUP(TEXT(INDIRECT(\"'\"&F1344&\"'!\"&H1344),\"0\"),Notes!$B$5:$C$100,2,FALSE),\"\"))","v":""},"2e","$AE$89","$AF$89"]
[7925,{"$f":"Menu!$F$29","v":"X"},{"$f":"Menu!$J$29","v":2020},{"$f":"IF(ISBLANK(INDIRECT(\"'\"&F1345&\"'!\"&G1345)),\"\",INDIRECT(\"'\"&F1345&\"'!\"&G1345))","v":""},{"$f":"IF(ISBLANK(INDIRECT(\"'\"&F1345&\"'!\"&H1345)),\"\",IFERROR(VLOOKUP(TEXT(INDIRECT(\"'\"&F1345&\"'!\"&H1345),\"0\"),Notes!$B$5:$C$100,2,FALSE),\"\"))","v":""},"2e","$AG$89","$AH$89"]
[7926,{"$f":"Menu!$F$29","v":"X"},{"$f":"Menu!$J$29","v":2020},{"$f":"IF(ISBLANK(INDIRECT(\"'\"&F1346&\"'!\"&G1346)),\"\",INDIRECT(\"'\"&F1346&\"'!\"&G1346))","v":""},{"$f":"IF(ISBLANK(INDIRECT(\"'\"&F1346&\"'!\"&H1346)),\"\",IFERROR(VLOOKUP(TEXT(INDIRECT(\"'\"&F1346&\"'!\"&H1346),\"0\"),Notes!$B$5:$C$100,2,FALSE),\"\"))","v":""},"2e","$AI$89",{"$f":"IF(LEN(TRIM(MID(G1346,4,10)))-LEN(SUBSTITUTE(TRIM(MID(G1346,4,10)),\"$\",\"\"))=0,\"$\"&CHAR(CODE(MID(G1346,2,1))+1)&\"$\"&TRIM(MID(G1346,4,10)),\"$\"&MID(G1346,2,1)&CHAR(CODE(MID(G1346,3,1))+1)&\"$\"&TRIM(MID(G1346,5,11)))","v":"$AJ$89"}]
[7927,{"$f":"Menu!$F$29","v":"X"},{"$f":"Menu!$J$29","v":2020},{"$f":"IF(ISBLANK(INDIRECT(\"'\"&F1347&\"'!\"&G1347)),\"\",INDIRECT(\"'\"&F1347&\"'!\"&G1347))","v":""},{"$f":"IF(ISBLANK(INDIRECT(\"'\"&F1347&\"'!\"&H1347)),\"\",IFERROR(VLOOKUP(TEXT(INDIRECT(\"'\"&F1347&\"'!\"&H1347),\"0\"),Notes!$B$5:$C$100,2,FALSE),\"\"))","v":""},"2e","$AK$89","$AL$89"]
[7928,{"$f":"Menu!$F$29","v":"X"},{"$f":"Menu!$J$29","v":2020},{"$f":"IF(ISBLANK(INDIRECT(\"'\"&F1348&\"'!\"&G1348)),\"\",INDIRECT(\"'\"&F1348&\"'!\"&G1348))","v":""},{"$f":"IF(ISBLANK(INDIRECT(\"'\"&F1348&\"'!\"&H1348)),\"\",IFERROR(VLOOKUP(TEXT(INDIRECT(\"'\"&F1348&\"'!\"&H1348),\"0\"),Notes!$B$5:$C$100,2,FALSE),\"\"))","v":""},"2e","$AM$89","$AN$89"]
[7929,{"$f":"Menu!$F$29","v":"X"},{"$f":"Menu!$J$29","v":2020},{"$f":"IF(ISBLANK(INDIRECT(\"'\"&F1349&\"'!\"&G1349)),\"\",INDIRECT(\"'\"&F1349&\"'!\"&G1349))","v":""},{"$f":"IF(ISBLANK(INDIRECT(\"'\"&F1349&\"'!\"&H1349)),\"\",IFERROR(VLOOKUP(TEXT(INDIRECT(\"'\"&F1349&\"'!\"&H1349),\"0\"),Notes!$B$5:$C$100,2,FALSE),\"\"))","v":""},"2e","$AO$89","$AP$89"]
[7930,{"$f":"Menu!$F$29","v":"X"},{"$f":"Menu!$J$29","v":2020},{"$f":"IF(ISBLANK(INDIRECT(\"'\"&F1350&\"'!\"&G1350)),\"\",INDIRECT(\"'\"&F1350&\"'!\"&G1350))","v":""},{"$f":"IF(ISBLANK(INDIRECT(\"'\"&F1350&\"'!\"&H1350)),\"\",IFERROR(VLOOKUP(TEXT(INDIRECT(\"'\"&F1350&\"'!\"&H1350),\"0\"),Notes!$B$5:$C$100,2,FALSE),\"\"))","v":""},"2e","$AQ$89","$AR$89"]
[7931,{"$f":"Menu!$F$29","v":"X"},{"$f":"Menu!$J$29","v":2020},{"$f":"IF(ISBLANK(INDIRECT(\"'\"&F1351&\"'!\"&G1351)),\"\",INDIRECT(\"'\"&F1351&\"'!\"&G1351))","v":""},{"$f":"IF(ISBLANK(INDIRECT(\"'\"&F1351&\"'!\"&H1351)),\"\",IFERROR(VLOOKUP(TEXT(INDIRECT(\"'\"&F1351&\"'!\"&H1351),\"0\"),Notes!$B$5:$C$100,2,FALSE),\"\"))","v":""},"2e","$AS$89","$AT$89"]
[7932,{"$f":"Menu!$F$29","v":"X"},{"$f":"Menu!$J$29","v":2020},{"$f":"IF(ISBLANK(INDIRECT(\"'\"&F1352&\"'!\"&G1352)),\"\",INDIRECT(\"'\"&F1352&\"'!\"&G1352))","v":""},{"$f":"IF(ISBLANK(INDIRECT(\"'\"&F1352&\"'!\"&H1352)),\"\",IFERROR(VLOOKUP(TEXT(INDIRECT(\"'\"&F1352&\"'!\"&H1352),\"0\"),Notes!$B$5:$C$100,2,FALSE),\"\"))","v":""},"2e","$AU$89","$AV$89"]
[7933,{"$f":"Menu!$F$29","v":"X"},{"$f":"Menu!$J$29","v":2020},{"$f":"IF(ISBLANK(INDIRECT(\"'\"&F1353&\"'!\"&G1353)),\"\",INDIRECT(\"'\"&F1353&\"'!\"&G1353))","v":""},{"$f":"IF(ISBLANK(INDIRECT(\"'\"&F1353&\"'!\"&H1353)),\"\",IFERROR(VLOOKUP(TEXT(INDIRECT(\"'\"&F1353&\"'!\"&H1353),\"0\"),Notes!$B$5:$C$100,2,FALSE),\"\"))","v":""},"2e","$AW$89","$AX$89"]
[7934,{"$f":"Menu!$F$29","v":"X"},{"$f":"Menu!$J$29","v":2020},{"$f":"IF(ISBLANK(INDIRECT(\"'\"&F1354&\"'!\"&G1354)),\"\",INDIRECT(\"'\"&F1354&\"'!\"&G1354))","v":""},{"$f":"IF(ISBLANK(INDIRECT(\"'\"&F1354&\"'!\"&H1354)),\"\",IFERROR(VLOOKUP(TEXT(INDIRECT(\"'\"&F1354&\"'!\"&H1354),\"0\"),Notes!$B$5:$C$100,2,FALSE),\"\"))","v":""},"2e","$AY$89","$AZ$89"]
[7935,{"$f":"Menu!$F$29","v":"X"},{"$f":"Menu!$J$29","v":2020},{"$f":"IF(ISBLANK(INDIRECT(\"'\"&F1355&\"'!\"&G1355)),\"\",INDIRECT(\"'\"&F1355&\"'!\"&G1355))","v":""},{"$f":"IF(ISBLANK(INDIRECT(\"'\"&F1355&\"'!\"&H1355)),\"\",IFERROR(VLOOKUP(TEXT(INDIRECT(\"'\"&F1355&\"'!\"&H1355),\"0\"),Notes!$B$5:$C$100,2,FALSE),\"\"))","v":""},"2e","$BA$89","$BB$89"]
[7936,{"$f":"Menu!$F$29","v":"X"},{"$f":"Menu!$J$29","v":2020},{"$f":"IF(ISBLANK(INDIRECT(\"'\"&F1356&\"'!\"&G1356)),\"\",INDIRECT(\"'\"&F1356&\"'!\"&G1356))","v":""},{"$f":"IF(ISBLANK(INDIRECT(\"'\"&F1356&\"'!\"&H1356)),\"\",IFERROR(VLOOKUP(TEXT(INDIRECT(\"'\"&F1356&\"'!\"&H1356),\"0\"),Notes!$B$5:$C$100,2,FALSE),\"\"))","v":""},"2e","$BC$89","$BD$89"]
[7937,{"$f":"Menu!$F$29","v":"X"},{"$f":"Menu!$J$29","v":2020},{"$f":"IF(ISBLANK(INDIRECT(\"'\"&F1357&\"'!\"&G1357)),\"\",INDIRECT(\"'\"&F1357&\"'!\"&G1357))","v":""},{"$f":"IF(ISBLANK(INDIRECT(\"'\"&F1357&\"'!\"&H1357)),\"\",IFERROR(VLOOKUP(TEXT(INDIRECT(\"'\"&F1357&\"'!\"&H1357),\"0\"),Notes!$B$5:$C$100,2,FALSE),\"\"))","v":""},"2e","$BE$89","$BF$89"]
[7938,{"$f":"Menu!$F$29","v":"X"},{"$f":"Menu!$J$29","v":2020},{"$f":"IF(ISBLANK(INDIRECT(\"'\"&F1358&\"'!\"&G1358)),\"\",INDIRECT(\"'\"&F1358&\"'!\"&G1358))","v":""},{"$f":"IF(ISBLANK(INDIRECT(\"'\"&F1358&\"'!\"&H1358)),\"\",IFERROR(VLOOKUP(TEXT(INDIRECT(\"'\"&F1358&\"'!\"&H1358),\"0\"),Notes!$B$5:$C$100,2,FALSE),\"\"))","v":""},"2e","$BG$89","$BH$89"]
[7939,{"$f":"Menu!$F$29","v":"X"},{"$f":"Menu!$J$29","v":2020},{"$f":"IF(ISBLANK(INDIRECT(\"'\"&F1359&\"'!\"&G1359)),\"\",INDIRECT(\"'\"&F1359&\"'!\"&G1359))","v":""},{"$f":"IF(ISBLANK(INDIRECT(\"'\"&F1359&\"'!\"&H1359)),\"\",IFERROR(VLOOKUP(TEXT(INDIRECT(\"'\"&F1359&\"'!\"&H1359),\"0\"),Notes!$B$5:$C$100,2,FALSE),\"\"))","v":""},"2e","$BI$89","$BJ$89"]
[7940,{"$f":"Menu!$F$29","v":"X"},{"$f":"Menu!$J$29","v":2020},{"$f":"IF(ISBLANK(INDIRECT(\"'\"&F1360&\"'!\"&G1360)),\"\",INDIRECT(\"'\"&F1360&\"'!\"&G1360))","v":""},{"$f":"IF(ISBLANK(INDIRECT(\"'\"&F1360&\"'!\"&H1360)),\"\",IFERROR(VLOOKUP(TEXT(INDIRECT(\"'\"&F1360&\"'!\"&H1360),\"0\"),Notes!$B$5:$C$100,2,FALSE),\"\"))","v":""},"2e","$BK$89","$BL$89"]
[7941,{"$f":"Menu!$F$29","v":"X"},{"$f":"Menu!$J$29","v":2020},{"$f":"IF(ISBLANK(INDIRECT(\"'\"&F1361&\"'!\"&G1361)),\"\",INDIRECT(\"'\"&F1361&\"'!\"&G1361))","v":""},{"$f":"IF(ISBLANK(INDIRECT(\"'\"&F1361&\"'!\"&H1361)),\"\",IFERROR(VLOOKUP(TEXT(INDIRECT(\"'\"&F1361&\"'!\"&H1361),\"0\"),Notes!$B$5:$C$100,2,FALSE),\"\"))","v":""},"2e","$E$94","$F$94"]
[7942,{"$f":"Menu!$F$29","v":"X"},{"$f":"Menu!$J$29","v":2020},{"$f":"IF(ISBLANK(INDIRECT(\"'\"&F1362&\"'!\"&G1362)),\"\",INDIRECT(\"'\"&F1362&\"'!\"&G1362))","v":""},{"$f":"IF(ISBLANK(INDIRECT(\"'\"&F1362&\"'!\"&H1362)),\"\",IFERROR(VLOOKUP(TEXT(INDIRECT(\"'\"&F1362&\"'!\"&H1362),\"0\"),Notes!$B$5:$C$100,2,FALSE),\"\"))","v":""},"2e","$G$94","$H$94"]
[7943,{"$f":"Menu!$F$29","v":"X"},{"$f":"Menu!$J$29","v":2020},{"$f":"IF(ISBLANK(INDIRECT(\"'\"&F1363&\"'!\"&G1363)),\"\",INDIRECT(\"'\"&F1363&\"'!\"&G1363))","v":""},{"$f":"IF(ISBLANK(INDIRECT(\"'\"&F1363&\"'!\"&H1363)),\"\",IFERROR(VLOOKUP(TEXT(INDIRECT(\"'\"&F1363&\"'!\"&H1363),\"0\"),Notes!$B$5:$C$100,2,FALSE),\"\"))","v":""},"2e","$I$94","$J$94"]
[7944,{"$f":"Menu!$F$29","v":"X"},{"$f":"Menu!$J$29","v":2020},{"$f":"IF(ISBLANK(INDIRECT(\"'\"&F1364&\"'!\"&G1364)),\"\",INDIRECT(\"'\"&F1364&\"'!\"&G1364))","v":""},{"$f":"IF(ISBLANK(INDIRECT(\"'\"&F1364&\"'!\"&H1364)),\"\",IFERROR(VLOOKUP(TEXT(INDIRECT(\"'\"&F1364&\"'!\"&H1364),\"0\"),Notes!$B$5:$C$100,2,FALSE),\"\"))","v":""},"2e","$K$94","$L$94"]
[7945,{"$f":"Menu!$F$29","v":"X"},{"$f":"Menu!$J$29","v":2020},{"$f":"IF(ISBLANK(INDIRECT(\"'\"&F1365&\"'!\"&G1365)),\"\",INDIRECT(\"'\"&F1365&\"'!\"&G1365))","v":""},{"$f":"IF(ISBLANK(INDIRECT(\"'\"&F1365&\"'!\"&H1365)),\"\",IFERROR(VLOOKUP(TEXT(INDIRECT(\"'\"&F1365&\"'!\"&H1365),\"0\"),Notes!$B$5:$C$100,2,FALSE),\"\"))","v":""},"2e","$M$94","$N$94"]
[7946,{"$f":"Menu!$F$29","v":"X"},{"$f":"Menu!$J$29","v":2020},{"$f":"IF(ISBLANK(INDIRECT(\"'\"&F1366&\"'!\"&G1366)),\"\",INDIRECT(\"'\"&F1366&\"'!\"&G1366))","v":""},{"$f":"IF(ISBLANK(INDIRECT(\"'\"&F1366&\"'!\"&H1366)),\"\",IFERROR(VLOOKUP(TEXT(INDIRECT(\"'\"&F1366&\"'!\"&H1366),\"0\"),Notes!$B$5:$C$100,2,FALSE),\"\"))","v":""},"2e","$O$94","$P$94"]
[7947,{"$f":"Menu!$F$29","v":"X"},{"$f":"Menu!$J$29","v":2020},{"$f":"IF(ISBLANK(INDIRECT(\"'\"&F1367&\"'!\"&G1367)),\"\",INDIRECT(\"'\"&F1367&\"'!\"&G1367))","v":""},{"$f":"IF(ISBLANK(INDIRECT(\"'\"&F1367&\"'!\"&H1367)),\"\",IFERROR(VLOOKUP(TEXT(INDIRECT(\"'\"&F1367&\"'!\"&H1367),\"0\"),Notes!$B$5:$C$100,2,FALSE),\"\"))","v":""},"2e","$Q$94","$R$94"]
[7948,{"$f":"Menu!$F$29","v":"X"},{"$f":"Menu!$J$29","v":2020},{"$f":"IF(ISBLANK(INDIRECT(\"'\"&F1368&\"'!\"&G1368)),\"\",INDIRECT(\"'\"&F1368&\"'!\"&G1368))","v":""},{"$f":"IF(ISBLANK(INDIRECT(\"'\"&F1368&\"'!\"&H1368)),\"\",IFERROR(VLOOKUP(TEXT(INDIRECT(\"'\"&F1368&\"'!\"&H1368),\"0\"),Notes!$B$5:$C$100,2,FALSE),\"\"))","v":""},"2e","$S$94","$T$94"]
[7949,{"$f":"Menu!$F$29","v":"X"},{"$f":"Menu!$J$29","v":2020},{"$f":"IF(ISBLANK(INDIRECT(\"'\"&F1369&\"'!\"&G1369)),\"\",INDIRECT(\"'\"&F1369&\"'!\"&G1369))","v":""},{"$f":"IF(ISBLANK(INDIRECT(\"'\"&F1369&\"'!\"&H1369)),\"\",IFERROR(VLOOKUP(TEXT(INDIRECT(\"'\"&F1369&\"'!\"&H1369),\"0\"),Notes!$B$5:$C$100,2,FALSE),\"\"))","v":""},"2e","$U$94","$V$94"]
[7950,{"$f":"Menu!$F$29","v":"X"},{"$f":"Menu!$J$29","v":2020},{"$f":"IF(ISBLANK(INDIRECT(\"'\"&F1370&\"'!\"&G1370)),\"\",INDIRECT(\"'\"&F1370&\"'!\"&G1370))","v":""},{"$f":"IF(ISBLANK(INDIRECT(\"'\"&F1370&\"'!\"&H1370)),\"\",IFERROR(VLOOKUP(TEXT(INDIRECT(\"'\"&F1370&\"'!\"&H1370),\"0\"),Notes!$B$5:$C$100,2,FALSE),\"\"))","v":""},"2e","$W$94","$X$94"]
[7951,{"$f":"Menu!$F$29","v":"X"},{"$f":"Menu!$J$29","v":2020},{"$f":"IF(ISBLANK(INDIRECT(\"'\"&F1371&\"'!\"&G1371)),\"\",INDIRECT(\"'\"&F1371&\"'!\"&G1371))","v":""},{"$f":"IF(ISBLANK(INDIRECT(\"'\"&F1371&\"'!\"&H1371)),\"\",IFERROR(VLOOKUP(TEXT(INDIRECT(\"'\"&F1371&\"'!\"&H1371),\"0\"),Notes!$B$5:$C$100,2,FALSE),\"\"))","v":""},"2e","$Y$94","$Z$94"]
[7952,{"$f":"Menu!$F$29","v":"X"},{"$f":"Menu!$J$29","v":2020},{"$f":"IF(ISBLANK(INDIRECT(\"'\"&F1372&\"'!\"&G1372)),\"\",INDIRECT(\"'\"&F1372&\"'!\"&G1372))","v":""},{"$f":"IF(ISBLANK(INDIRECT(\"'\"&F1372&\"'!\"&H1372)),\"\",IFERROR(VLOOKUP(TEXT(INDIRECT(\"'\"&F1372&\"'!\"&H1372),\"0\"),Notes!$B$5:$C$100,2,FALSE),\"\"))","v":""},"2e","$AA$94","$AB$94"]
[7953,{"$f":"Menu!$F$29","v":"X"},{"$f":"Menu!$J$29","v":2020},{"$f":"IF(ISBLANK(INDIRECT(\"'\"&F1373&\"'!\"&G1373)),\"\",INDIRECT(\"'\"&F1373&\"'!\"&G1373))","v":""},{"$f":"IF(ISBLANK(INDIRECT(\"'\"&F1373&\"'!\"&H1373)),\"\",IFERROR(VLOOKUP(TEXT(INDIRECT(\"'\"&F1373&\"'!\"&H1373),\"0\"),Notes!$B$5:$C$100,2,FALSE),\"\"))","v":""},"2e","$AC$94","$AD$94"]
[7954,{"$f":"Menu!$F$29","v":"X"},{"$f":"Menu!$J$29","v":2020},{"$f":"IF(ISBLANK(INDIRECT(\"'\"&F1374&\"'!\"&G1374)),\"\",INDIRECT(\"'\"&F1374&\"'!\"&G1374))","v":""},{"$f":"IF(ISBLANK(INDIRECT(\"'\"&F1374&\"'!\"&H1374)),\"\",IFERROR(VLOOKUP(TEXT(INDIRECT(\"'\"&F1374&\"'!\"&H1374),\"0\"),Notes!$B$5:$C$100,2,FALSE),\"\"))","v":""},"2e","$AE$94","$AF$94"]
[7955,{"$f":"Menu!$F$29","v":"X"},{"$f":"Menu!$J$29","v":2020},{"$f":"IF(ISBLANK(INDIRECT(\"'\"&F1375&\"'!\"&G1375)),\"\",INDIRECT(\"'\"&F1375&\"'!\"&G1375))","v":""},{"$f":"IF(ISBLANK(INDIRECT(\"'\"&F1375&\"'!\"&H1375)),\"\",IFERROR(VLOOKUP(TEXT(INDIRECT(\"'\"&F1375&\"'!\"&H1375),\"0\"),Notes!$B$5:$C$100,2,FALSE),\"\"))","v":""},"2e","$AG$94","$AH$94"]
[7956,{"$f":"Menu!$F$29","v":"X"},{"$f":"Menu!$J$29","v":2020},{"$f":"IF(ISBLANK(INDIRECT(\"'\"&F1376&\"'!\"&G1376)),\"\",INDIRECT(\"'\"&F1376&\"'!\"&G1376))","v":""},{"$f":"IF(ISBLANK(INDIRECT(\"'\"&F1376&\"'!\"&H1376)),\"\",IFERROR(VLOOKUP(TEXT(INDIRECT(\"'\"&F1376&\"'!\"&H1376),\"0\"),Notes!$B$5:$C$100,2,FALSE),\"\"))","v":""},"2e","$AI$94","$AJ$94"]
[7957,{"$f":"Menu!$F$29","v":"X"},{"$f":"Menu!$J$29","v":2020},{"$f":"IF(ISBLANK(INDIRECT(\"'\"&F1377&\"'!\"&G1377)),\"\",INDIRECT(\"'\"&F1377&\"'!\"&G1377))","v":""},{"$f":"IF(ISBLANK(INDIRECT(\"'\"&F1377&\"'!\"&H1377)),\"\",IFERROR(VLOOKUP(TEXT(INDIRECT(\"'\"&F1377&\"'!\"&H1377),\"0\"),Notes!$B$5:$C$100,2,FALSE),\"\"))","v":""},"2e","$AK$94","$AL$94"]
[7958,{"$f":"Menu!$F$29","v":"X"},{"$f":"Menu!$J$29","v":2020},{"$f":"IF(ISBLANK(INDIRECT(\"'\"&F1378&\"'!\"&G1378)),\"\",INDIRECT(\"'\"&F1378&\"'!\"&G1378))","v":""},{"$f":"IF(ISBLANK(INDIRECT(\"'\"&F1378&\"'!\"&H1378)),\"\",IFERROR(VLOOKUP(TEXT(INDIRECT(\"'\"&F1378&\"'!\"&H1378),\"0\"),Notes!$B$5:$C$100,2,FALSE),\"\"))","v":""},"2e","$AM$94","$AN$94"]
[7959,{"$f":"Menu!$F$29","v":"X"},{"$f":"Menu!$J$29","v":2020},{"$f":"IF(ISBLANK(INDIRECT(\"'\"&F1379&\"'!\"&G1379)),\"\",INDIRECT(\"'\"&F1379&\"'!\"&G1379))","v":""},{"$f":"IF(ISBLANK(INDIRECT(\"'\"&F1379&\"'!\"&H1379)),\"\",IFERROR(VLOOKUP(TEXT(INDIRECT(\"'\"&F1379&\"'!\"&H1379),\"0\"),Notes!$B$5:$C$100,2,FALSE),\"\"))","v":""},"2e","$AO$94","$AP$94"]
[7960,{"$f":"Menu!$F$29","v":"X"},{"$f":"Menu!$J$29","v":2020},{"$f":"IF(ISBLANK(INDIRECT(\"'\"&F1380&\"'!\"&G1380)),\"\",INDIRECT(\"'\"&F1380&\"'!\"&G1380))","v":""},{"$f":"IF(ISBLANK(INDIRECT(\"'\"&F1380&\"'!\"&H1380)),\"\",IFERROR(VLOOKUP(TEXT(INDIRECT(\"'\"&F1380&\"'!\"&H1380),\"0\"),Notes!$B$5:$C$100,2,FALSE),\"\"))","v":""},"2e","$AQ$94","$AR$94"]
[7961,{"$f":"Menu!$F$29","v":"X"},{"$f":"Menu!$J$29","v":2020},{"$f":"IF(ISBLANK(INDIRECT(\"'\"&F1381&\"'!\"&G1381)),\"\",INDIRECT(\"'\"&F1381&\"'!\"&G1381))","v":""},{"$f":"IF(ISBLANK(INDIRECT(\"'\"&F1381&\"'!\"&H1381)),\"\",IFERROR(VLOOKUP(TEXT(INDIRECT(\"'\"&F1381&\"'!\"&H1381),\"0\"),Notes!$B$5:$C$100,2,FALSE),\"\"))","v":""},"2e","$AS$94","$AT$94"]
[7962,{"$f":"Menu!$F$29","v":"X"},{"$f":"Menu!$J$29","v":2020},{"$f":"IF(ISBLANK(INDIRECT(\"'\"&F1382&\"'!\"&G1382)),\"\",INDIRECT(\"'\"&F1382&\"'!\"&G1382))","v":""},{"$f":"IF(ISBLANK(INDIRECT(\"'\"&F1382&\"'!\"&H1382)),\"\",IFERROR(VLOOKUP(TEXT(INDIRECT(\"'\"&F1382&\"'!\"&H1382),\"0\"),Notes!$B$5:$C$100,2,FALSE),\"\"))","v":""},"2e","$AU$94","$AV$94"]
[7963,{"$f":"Menu!$F$29","v":"X"},{"$f":"Menu!$J$29","v":2020},{"$f":"IF(ISBLANK(INDIRECT(\"'\"&F1383&\"'!\"&G1383)),\"\",INDIRECT(\"'\"&F1383&\"'!\"&G1383))","v":""},{"$f":"IF(ISBLANK(INDIRECT(\"'\"&F1383&\"'!\"&H1383)),\"\",IFERROR(VLOOKUP(TEXT(INDIRECT(\"'\"&F1383&\"'!\"&H1383),\"0\"),Notes!$B$5:$C$100,2,FALSE),\"\"))","v":""},"2e","$AW$94","$AX$94"]
[7964,{"$f":"Menu!$F$29","v":"X"},{"$f":"Menu!$J$29","v":2020},{"$f":"IF(ISBLANK(INDIRECT(\"'\"&F1384&\"'!\"&G1384)),\"\",INDIRECT(\"'\"&F1384&\"'!\"&G1384))","v":""},{"$f":"IF(ISBLANK(INDIRECT(\"'\"&F1384&\"'!\"&H1384)),\"\",IFERROR(VLOOKUP(TEXT(INDIRECT(\"'\"&F1384&\"'!\"&H1384),\"0\"),Notes!$B$5:$C$100,2,FALSE),\"\"))","v":""},"2e","$AY$94","$AZ$94"]
[7965,{"$f":"Menu!$F$29","v":"X"},{"$f":"Menu!$J$29","v":2020},{"$f":"IF(ISBLANK(INDIRECT(\"'\"&F1385&\"'!\"&G1385)),\"\",INDIRECT(\"'\"&F1385&\"'!\"&G1385))","v":""},{"$f":"IF(ISBLANK(INDIRECT(\"'\"&F1385&\"'!\"&H1385)),\"\",IFERROR(VLOOKUP(TEXT(INDIRECT(\"'\"&F1385&\"'!\"&H1385),\"0\"),Notes!$B$5:$C$100,2,FALSE),\"\"))","v":""},"2e","$BA$94","$BB$94"]
[7966,{"$f":"Menu!$F$29","v":"X"},{"$f":"Menu!$J$29","v":2020},{"$f":"IF(ISBLANK(INDIRECT(\"'\"&F1386&\"'!\"&G1386)),\"\",INDIRECT(\"'\"&F1386&\"'!\"&G1386))","v":""},{"$f":"IF(ISBLANK(INDIRECT(\"'\"&F1386&\"'!\"&H1386)),\"\",IFERROR(VLOOKUP(TEXT(INDIRECT(\"'\"&F1386&\"'!\"&H1386),\"0\"),Notes!$B$5:$C$100,2,FALSE),\"\"))","v":""},"2e","$BC$94","$BD$94"]
[7967,{"$f":"Menu!$F$29","v":"X"},{"$f":"Menu!$J$29","v":2020},{"$f":"IF(ISBLANK(INDIRECT(\"'\"&F1387&\"'!\"&G1387)),\"\",INDIRECT(\"'\"&F1387&\"'!\"&G1387))","v":""},{"$f":"IF(ISBLANK(INDIRECT(\"'\"&F1387&\"'!\"&H1387)),\"\",IFERROR(VLOOKUP(TEXT(INDIRECT(\"'\"&F1387&\"'!\"&H1387),\"0\"),Notes!$B$5:$C$100,2,FALSE),\"\"))","v":""},"2e","$BE$94","$BF$94"]
[7968,{"$f":"Menu!$F$29","v":"X"},{"$f":"Menu!$J$29","v":2020},{"$f":"IF(ISBLANK(INDIRECT(\"'\"&F1388&\"'!\"&G1388)),\"\",INDIRECT(\"'\"&F1388&\"'!\"&G1388))","v":""},{"$f":"IF(ISBLANK(INDIRECT(\"'\"&F1388&\"'!\"&H1388)),\"\",IFERROR(VLOOKUP(TEXT(INDIRECT(\"'\"&F1388&\"'!\"&H1388),\"0\"),Notes!$B$5:$C$100,2,FALSE),\"\"))","v":""},"2e","$BG$94","$BH$94"]
[7969,{"$f":"Menu!$F$29","v":"X"},{"$f":"Menu!$J$29","v":2020},{"$f":"IF(ISBLANK(INDIRECT(\"'\"&F1389&\"'!\"&G1389)),\"\",INDIRECT(\"'\"&F1389&\"'!\"&G1389))","v":""},{"$f":"IF(ISBLANK(INDIRECT(\"'\"&F1389&\"'!\"&H1389)),\"\",IFERROR(VLOOKUP(TEXT(INDIRECT(\"'\"&F1389&\"'!\"&H1389),\"0\"),Notes!$B$5:$C$100,2,FALSE),\"\"))","v":""},"2e","$BI$94","$BJ$94"]
[7970,{"$f":"Menu!$F$29","v":"X"},{"$f":"Menu!$J$29","v":2020},{"$f":"IF(ISBLANK(INDIRECT(\"'\"&F1390&\"'!\"&G1390)),\"\",INDIRECT(\"'\"&F1390&\"'!\"&G1390))","v":""},{"$f":"IF(ISBLANK(INDIRECT(\"'\"&F1390&\"'!\"&H1390)),\"\",IFERROR(VLOOKUP(TEXT(INDIRECT(\"'\"&F1390&\"'!\"&H1390),\"0\"),Notes!$B$5:$C$100,2,FALSE),\"\"))","v":""},"2e","$BK$94","$BL$94"]
[7971,{"$f":"Menu!$F$29","v":"X"},{"$f":"Menu!$J$29","v":2020},{"$f":"IF(ISBLANK(INDIRECT(\"'\"&F1391&\"'!\"&G1391)),\"\",INDIRECT(\"'\"&F1391&\"'!\"&G1391))","v":""},{"$f":"IF(ISBLANK(INDIRECT(\"'\"&F1391&\"'!\"&H1391)),\"\",IFERROR(VLOOKUP(TEXT(INDIRECT(\"'\"&F1391&\"'!\"&H1391),\"0\"),Notes!$B$5:$C$100,2,FALSE),\"\"))","v":""},"2e","$E$92","$F$92"]
[7972,{"$f":"Menu!$F$29","v":"X"},{"$f":"Menu!$J$29","v":2020},{"$f":"IF(ISBLANK(INDIRECT(\"'\"&F1392&\"'!\"&G1392)),\"\",INDIRECT(\"'\"&F1392&\"'!\"&G1392))","v":""},{"$f":"IF(ISBLANK(INDIRECT(\"'\"&F1392&\"'!\"&H1392)),\"\",IFERROR(VLOOKUP(TEXT(INDIRECT(\"'\"&F1392&\"'!\"&H1392),\"0\"),Notes!$B$5:$C$100,2,FALSE),\"\"))","v":""},"2e","$G$92","$H$92"]
[7973,{"$f":"Menu!$F$29","v":"X"},{"$f":"Menu!$J$29","v":2020},{"$f":"IF(ISBLANK(INDIRECT(\"'\"&F1393&\"'!\"&G1393)),\"\",INDIRECT(\"'\"&F1393&\"'!\"&G1393))","v":""},{"$f":"IF(ISBLANK(INDIRECT(\"'\"&F1393&\"'!\"&H1393)),\"\",IFERROR(VLOOKUP(TEXT(INDIRECT(\"'\"&F1393&\"'!\"&H1393),\"0\"),Notes!$B$5:$C$100,2,FALSE),\"\"))","v":""},"2e","$I$92","$J$92"]
[7974,{"$f":"Menu!$F$29","v":"X"},{"$f":"Menu!$J$29","v":2020},{"$f":"IF(ISBLANK(INDIRECT(\"'\"&F1394&\"'!\"&G1394)),\"\",INDIRECT(\"'\"&F1394&\"'!\"&G1394))","v":""},{"$f":"IF(ISBLANK(INDIRECT(\"'\"&F1394&\"'!\"&H1394)),\"\",IFERROR(VLOOKUP(TEXT(INDIRECT(\"'\"&F1394&\"'!\"&H1394),\"0\"),Notes!$B$5:$C$100,2,FALSE),\"\"))","v":""},"2e","$K$92","$L$92"]
[7975,{"$f":"Menu!$F$29","v":"X"},{"$f":"Menu!$J$29","v":2020},{"$f":"IF(ISBLANK(INDIRECT(\"'\"&F1395&\"'!\"&G1395)),\"\",INDIRECT(\"'\"&F1395&\"'!\"&G1395))","v":""},{"$f":"IF(ISBLANK(INDIRECT(\"'\"&F1395&\"'!\"&H1395)),\"\",IFERROR(VLOOKUP(TEXT(INDIRECT(\"'\"&F1395&\"'!\"&H1395),\"0\"),Notes!$B$5:$C$100,2,FALSE),\"\"))","v":""},"2e","$M$92","$N$92"]
[7976,{"$f":"Menu!$F$29","v":"X"},{"$f":"Menu!$J$29","v":2020},{"$f":"IF(ISBLANK(INDIRECT(\"'\"&F1396&\"'!\"&G1396)),\"\",INDIRECT(\"'\"&F1396&\"'!\"&G1396))","v":""},{"$f":"IF(ISBLANK(INDIRECT(\"'\"&F1396&\"'!\"&H1396)),\"\",IFERROR(VLOOKUP(TEXT(INDIRECT(\"'\"&F1396&\"'!\"&H1396),\"0\"),Notes!$B$5:$C$100,2,FALSE),\"\"))","v":""},"2e","$O$92","$P$92"]
[7977,{"$f":"Menu!$F$29","v":"X"},{"$f":"Menu!$J$29","v":2020},{"$f":"IF(ISBLANK(INDIRECT(\"'\"&F1397&\"'!\"&G1397)),\"\",INDIRECT(\"'\"&F1397&\"'!\"&G1397))","v":""},{"$f":"IF(ISBLANK(INDIRECT(\"'\"&F1397&\"'!\"&H1397)),\"\",IFERROR(VLOOKUP(TEXT(INDIRECT(\"'\"&F1397&\"'!\"&H1397),\"0\"),Notes!$B$5:$C$100,2,FALSE),\"\"))","v":""},"2e","$Q$92","$R$92"]
[7978,{"$f":"Menu!$F$29","v":"X"},{"$f":"Menu!$J$29","v":2020},{"$f":"IF(ISBLANK(INDIRECT(\"'\"&F1398&\"'!\"&G1398)),\"\",INDIRECT(\"'\"&F1398&\"'!\"&G1398))","v":""},{"$f":"IF(ISBLANK(INDIRECT(\"'\"&F1398&\"'!\"&H1398)),\"\",IFERROR(VLOOKUP(TEXT(INDIRECT(\"'\"&F1398&\"'!\"&H1398),\"0\"),Notes!$B$5:$C$100,2,FALSE),\"\"))","v":""},"2e","$S$92","$T$92"]
[7979,{"$f":"Menu!$F$29","v":"X"},{"$f":"Menu!$J$29","v":2020},{"$f":"IF(ISBLANK(INDIRECT(\"'\"&F1399&\"'!\"&G1399)),\"\",INDIRECT(\"'\"&F1399&\"'!\"&G1399))","v":""},{"$f":"IF(ISBLANK(INDIRECT(\"'\"&F1399&\"'!\"&H1399)),\"\",IFERROR(VLOOKUP(TEXT(INDIRECT(\"'\"&F1399&\"'!\"&H1399),\"0\"),Notes!$B$5:$C$100,2,FALSE),\"\"))","v":""},"2e","$U$92","$V$92"]
[7980,{"$f":"Menu!$F$29","v":"X"},{"$f":"Menu!$J$29","v":2020},{"$f":"IF(ISBLANK(INDIRECT(\"'\"&F1400&\"'!\"&G1400)),\"\",INDIRECT(\"'\"&F1400&\"'!\"&G1400))","v":""},{"$f":"IF(ISBLANK(INDIRECT(\"'\"&F1400&\"'!\"&H1400)),\"\",IFERROR(VLOOKUP(TEXT(INDIRECT(\"'\"&F1400&\"'!\"&H1400),\"0\"),Notes!$B$5:$C$100,2,FALSE),\"\"))","v":""},"2e","$W$92","$X$92"]
[7981,{"$f":"Menu!$F$29","v":"X"},{"$f":"Menu!$J$29","v":2020},{"$f":"IF(ISBLANK(INDIRECT(\"'\"&F1401&\"'!\"&G1401)),\"\",INDIRECT(\"'\"&F1401&\"'!\"&G1401))","v":""},{"$f":"IF(ISBLANK(INDIRECT(\"'\"&F1401&\"'!\"&H1401)),\"\",IFERROR(VLOOKUP(TEXT(INDIRECT(\"'\"&F1401&\"'!\"&H1401),\"0\"),Notes!$B$5:$C$100,2,FALSE),\"\"))","v":""},"2e","$Y$92","$Z$92"]
[7982,{"$f":"Menu!$F$29","v":"X"},{"$f":"Menu!$J$29","v":2020},{"$f":"IF(ISBLANK(INDIRECT(\"'\"&F1402&\"'!\"&G1402)),\"\",INDIRECT(\"'\"&F1402&\"'!\"&G1402))","v":""},{"$f":"IF(ISBLANK(INDIRECT(\"'\"&F1402&\"'!\"&H1402)),\"\",IFERROR(VLOOKUP(TEXT(INDIRECT(\"'\"&F1402&\"'!\"&H1402),\"0\"),Notes!$B$5:$C$100,2,FALSE),\"\"))","v":""},"2e","$AA$92","$AB$92"]
[7983,{"$f":"Menu!$F$29","v":"X"},{"$f":"Menu!$J$29","v":2020},{"$f":"IF(ISBLANK(INDIRECT(\"'\"&F1403&\"'!\"&G1403)),\"\",INDIRECT(\"'\"&F1403&\"'!\"&G1403))","v":""},{"$f":"IF(ISBLANK(INDIRECT(\"'\"&F1403&\"'!\"&H1403)),\"\",IFERROR(VLOOKUP(TEXT(INDIRECT(\"'\"&F1403&\"'!\"&H1403),\"0\"),Notes!$B$5:$C$100,2,FALSE),\"\"))","v":""},"2e","$AC$92","$AD$92"]
[7984,{"$f":"Menu!$F$29","v":"X"},{"$f":"Menu!$J$29","v":2020},{"$f":"IF(ISBLANK(INDIRECT(\"'\"&F1404&\"'!\"&G1404)),\"\",INDIRECT(\"'\"&F1404&\"'!\"&G1404))","v":""},{"$f":"IF(ISBLANK(INDIRECT(\"'\"&F1404&\"'!\"&H1404)),\"\",IFERROR(VLOOKUP(TEXT(INDIRECT(\"'\"&F1404&\"'!\"&H1404),\"0\"),Notes!$B$5:$C$100,2,FALSE),\"\"))","v":""},"2e","$AE$92","$AF$92"]
[7985,{"$f":"Menu!$F$29","v":"X"},{"$f":"Menu!$J$29","v":2020},{"$f":"IF(ISBLANK(INDIRECT(\"'\"&F1405&\"'!\"&G1405)),\"\",INDIRECT(\"'\"&F1405&\"'!\"&G1405))","v":""},{"$f":"IF(ISBLANK(INDIRECT(\"'\"&F1405&\"'!\"&H1405)),\"\",IFERROR(VLOOKUP(TEXT(INDIRECT(\"'\"&F1405&\"'!\"&H1405),\"0\"),Notes!$B$5:$C$100,2,FALSE),\"\"))","v":""},"2e","$AG$92","$AH$92"]
[7986,{"$f":"Menu!$F$29","v":"X"},{"$f":"Menu!$J$29","v":2020},{"$f":"IF(ISBLANK(INDIRECT(\"'\"&F1406&\"'!\"&G1406)),\"\",INDIRECT(\"'\"&F1406&\"'!\"&G1406))","v":""},{"$f":"IF(ISBLANK(INDIRECT(\"'\"&F1406&\"'!\"&H1406)),\"\",IFERROR(VLOOKUP(TEXT(INDIRECT(\"'\"&F1406&\"'!\"&H1406),\"0\"),Notes!$B$5:$C$100,2,FALSE),\"\"))","v":""},"2e","$AI$92","$AJ$92"]
[7987,{"$f":"Menu!$F$29","v":"X"},{"$f":"Menu!$J$29","v":2020},{"$f":"IF(ISBLANK(INDIRECT(\"'\"&F1407&\"'!\"&G1407)),\"\",INDIRECT(\"'\"&F1407&\"'!\"&G1407))","v":""},{"$f":"IF(ISBLANK(INDIRECT(\"'\"&F1407&\"'!\"&H1407)),\"\",IFERROR(VLOOKUP(TEXT(INDIRECT(\"'\"&F1407&\"'!\"&H1407),\"0\"),Notes!$B$5:$C$100,2,FALSE),\"\"))","v":""},"2e","$AK$92","$AL$92"]
[7988,{"$f":"Menu!$F$29","v":"X"},{"$f":"Menu!$J$29","v":2020},{"$f":"IF(ISBLANK(INDIRECT(\"'\"&F1408&\"'!\"&G1408)),\"\",INDIRECT(\"'\"&F1408&\"'!\"&G1408))","v":""},{"$f":"IF(ISBLANK(INDIRECT(\"'\"&F1408&\"'!\"&H1408)),\"\",IFERROR(VLOOKUP(TEXT(INDIRECT(\"'\"&F1408&\"'!\"&H1408),\"0\"),Notes!$B$5:$C$100,2,FALSE),\"\"))","v":""},"2e","$AM$92","$AN$92"]
[7989,{"$f":"Menu!$F$29","v":"X"},{"$f":"Menu!$J$29","v":2020},{"$f":"IF(ISBLANK(INDIRECT(\"'\"&F1409&\"'!\"&G1409)),\"\",INDIRECT(\"'\"&F1409&\"'!\"&G1409))","v":""},{"$f":"IF(ISBLANK(INDIRECT(\"'\"&F1409&\"'!\"&H1409)),\"\",IFERROR(VLOOKUP(TEXT(INDIRECT(\"'\"&F1409&\"'!\"&H1409),\"0\"),Notes!$B$5:$C$100,2,FALSE),\"\"))","v":""},"2e","$AO$92","$AP$92"]
[7990,{"$f":"Menu!$F$29","v":"X"},{"$f":"Menu!$J$29","v":2020},{"$f":"IF(ISBLANK(INDIRECT(\"'\"&F1410&\"'!\"&G1410)),\"\",INDIRECT(\"'\"&F1410&\"'!\"&G1410))","v":""},{"$f":"IF(ISBLANK(INDIRECT(\"'\"&F1410&\"'!\"&H1410)),\"\",IFERROR(VLOOKUP(TEXT(INDIRECT(\"'\"&F1410&\"'!\"&H1410),\"0\"),Notes!$B$5:$C$100,2,FALSE),\"\"))","v":""},"2e","$AQ$92",{"$f":"IF(LEN(TRIM(MID(G1410,4,10)))-LEN(SUBSTITUTE(TRIM(MID(G1410,4,10)),\"$\",\"\"))=0,\"$\"&CHAR(CODE(MID(G1410,2,1))+1)&\"$\"&TRIM(MID(G1410,4,10)),\"$\"&MID(G1410,2,1)&CHAR(CODE(MID(G1410,3,1))+1)&\"$\"&TRIM(MID(G1410,5,11)))","v":"$AR$92"}]
[7991,{"$f":"Menu!$F$29","v":"X"},{"$f":"Menu!$J$29","v":2020},{"$f":"IF(ISBLANK(INDIRECT(\"'\"&F1411&\"'!\"&G1411)),\"\",INDIRECT(\"'\"&F1411&\"'!\"&G1411))","v":""},{"$f":"IF(ISBLANK(INDIRECT(\"'\"&F1411&\"'!\"&H1411)),\"\",IFERROR(VLOOKUP(TEXT(INDIRECT(\"'\"&F1411&\"'!\"&H1411),\"0\"),Notes!$B$5:$C$100,2,FALSE),\"\"))","v":""},"2e","$AS$92","$AT$92"]
[7992,{"$f":"Menu!$F$29","v":"X"},{"$f":"Menu!$J$29","v":2020},{"$f":"IF(ISBLANK(INDIRECT(\"'\"&F1412&\"'!\"&G1412)),\"\",INDIRECT(\"'\"&F1412&\"'!\"&G1412))","v":""},{"$f":"IF(ISBLANK(INDIRECT(\"'\"&F1412&\"'!\"&H1412)),\"\",IFERROR(VLOOKUP(TEXT(INDIRECT(\"'\"&F1412&\"'!\"&H1412),\"0\"),Notes!$B$5:$C$100,2,FALSE),\"\"))","v":""},"2e","$AU$92","$AV$92"]
[7993,{"$f":"Menu!$F$29","v":"X"},{"$f":"Menu!$J$29","v":2020},{"$f":"IF(ISBLANK(INDIRECT(\"'\"&F1413&\"'!\"&G1413)),\"\",INDIRECT(\"'\"&F1413&\"'!\"&G1413))","v":""},{"$f":"IF(ISBLANK(INDIRECT(\"'\"&F1413&\"'!\"&H1413)),\"\",IFERROR(VLOOKUP(TEXT(INDIRECT(\"'\"&F1413&\"'!\"&H1413),\"0\"),Notes!$B$5:$C$100,2,FALSE),\"\"))","v":""},"2e","$AW$92","$AX$92"]
[7994,{"$f":"Menu!$F$29","v":"X"},{"$f":"Menu!$J$29","v":2020},{"$f":"IF(ISBLANK(INDIRECT(\"'\"&F1414&\"'!\"&G1414)),\"\",INDIRECT(\"'\"&F1414&\"'!\"&G1414))","v":""},{"$f":"IF(ISBLANK(INDIRECT(\"'\"&F1414&\"'!\"&H1414)),\"\",IFERROR(VLOOKUP(TEXT(INDIRECT(\"'\"&F1414&\"'!\"&H1414),\"0\"),Notes!$B$5:$C$100,2,FALSE),\"\"))","v":""},"2e","$AY$92","$AZ$92"]
[7995,{"$f":"Menu!$F$29","v":"X"},{"$f":"Menu!$J$29","v":2020},{"$f":"IF(ISBLANK(INDIRECT(\"'\"&F1415&\"'!\"&G1415)),\"\",INDIRECT(\"'\"&F1415&\"'!\"&G1415))","v":""},{"$f":"IF(ISBLANK(INDIRECT(\"'\"&F1415&\"'!\"&H1415)),\"\",IFERROR(VLOOKUP(TEXT(INDIRECT(\"'\"&F1415&\"'!\"&H1415),\"0\"),Notes!$B$5:$C$100,2,FALSE),\"\"))","v":""},"2e","$BA$92","$BB$92"]
[7996,{"$f":"Menu!$F$29","v":"X"},{"$f":"Menu!$J$29","v":2020},{"$f":"IF(ISBLANK(INDIRECT(\"'\"&F1416&\"'!\"&G1416)),\"\",INDIRECT(\"'\"&F1416&\"'!\"&G1416))","v":""},{"$f":"IF(ISBLANK(INDIRECT(\"'\"&F1416&\"'!\"&H1416)),\"\",IFERROR(VLOOKUP(TEXT(INDIRECT(\"'\"&F1416&\"'!\"&H1416),\"0\"),Notes!$B$5:$C$100,2,FALSE),\"\"))","v":""},"2e","$BC$92","$BD$92"]
[7997,{"$f":"Menu!$F$29","v":"X"},{"$f":"Menu!$J$29","v":2020},{"$f":"IF(ISBLANK(INDIRECT(\"'\"&F1417&\"'!\"&G1417)),\"\",INDIRECT(\"'\"&F1417&\"'!\"&G1417))","v":""},{"$f":"IF(ISBLANK(INDIRECT(\"'\"&F1417&\"'!\"&H1417)),\"\",IFERROR(VLOOKUP(TEXT(INDIRECT(\"'\"&F1417&\"'!\"&H1417),\"0\"),Notes!$B$5:$C$100,2,FALSE),\"\"))","v":""},"2e","$BE$92","$BF$92"]
[7998,{"$f":"Menu!$F$29","v":"X"},{"$f":"Menu!$J$29","v":2020},{"$f":"IF(ISBLANK(INDIRECT(\"'\"&F1418&\"'!\"&G1418)),\"\",INDIRECT(\"'\"&F1418&\"'!\"&G1418))","v":""},{"$f":"IF(ISBLANK(INDIRECT(\"'\"&F1418&\"'!\"&H1418)),\"\",IFERROR(VLOOKUP(TEXT(INDIRECT(\"'\"&F1418&\"'!\"&H1418),\"0\"),Notes!$B$5:$C$100,2,FALSE),\"\"))","v":""},"2e","$BG$92","$BH$92"]
[7999,{"$f":"Menu!$F$29","v":"X"},{"$f":"Menu!$J$29","v":2020},{"$f":"IF(ISBLANK(INDIRECT(\"'\"&F1419&\"'!\"&G1419)),\"\",INDIRECT(\"'\"&F1419&\"'!\"&G1419))","v":""},{"$f":"IF(ISBLANK(INDIRECT(\"'\"&F1419&\"'!\"&H1419)),\"\",IFERROR(VLOOKUP(TEXT(INDIRECT(\"'\"&F1419&\"'!\"&H1419),\"0\"),Notes!$B$5:$C$100,2,FALSE),\"\"))","v":""},"2e","$BI$92","$BJ$92"]
[8000,{"$f":"Menu!$F$29","v":"X"},{"$f":"Menu!$J$29","v":2020},{"$f":"IF(ISBLANK(INDIRECT(\"'\"&F1420&\"'!\"&G1420)),\"\",INDIRECT(\"'\"&F1420&\"'!\"&G1420))","v":""},{"$f":"IF(ISBLANK(INDIRECT(\"'\"&F1420&\"'!\"&H1420)),\"\",IFERROR(VLOOKUP(TEXT(INDIRECT(\"'\"&F1420&\"'!\"&H1420),\"0\"),Notes!$B$5:$C$100,2,FALSE),\"\"))","v":""},"2e","$BK$92","$BL$92"]
[8001,{"$f":"Menu!$F$29","v":"X"},{"$f":"Menu!$J$29","v":2020},{"$f":"IF(ISBLANK(INDIRECT(\"'\"&F1421&\"'!\"&G1421)),\"\",INDIRECT(\"'\"&F1421&\"'!\"&G1421))","v":""},{"$f":"IF(ISBLANK(INDIRECT(\"'\"&F1421&\"'!\"&H1421)),\"\",IFERROR(VLOOKUP(TEXT(INDIRECT(\"'\"&F1421&\"'!\"&H1421),\"0\"),Notes!$B$5:$C$100,2,FALSE),\"\"))","v":""},"2e","$E$33","$F$33"]
[8002,{"$f":"Menu!$F$29","v":"X"},{"$f":"Menu!$J$29","v":2020},{"$f":"IF(ISBLANK(INDIRECT(\"'\"&F1422&\"'!\"&G1422)),\"\",INDIRECT(\"'\"&F1422&\"'!\"&G1422))","v":""},{"$f":"IF(ISBLANK(INDIRECT(\"'\"&F1422&\"'!\"&H1422)),\"\",IFERROR(VLOOKUP(TEXT(INDIRECT(\"'\"&F1422&\"'!\"&H1422),\"0\"),Notes!$B$5:$C$100,2,FALSE),\"\"))","v":""},"2e","$G$33","$H$33"]
[8003,{"$f":"Menu!$F$29","v":"X"},{"$f":"Menu!$J$29","v":2020},{"$f":"IF(ISBLANK(INDIRECT(\"'\"&F1423&\"'!\"&G1423)),\"\",INDIRECT(\"'\"&F1423&\"'!\"&G1423))","v":""},{"$f":"IF(ISBLANK(INDIRECT(\"'\"&F1423&\"'!\"&H1423)),\"\",IFERROR(VLOOKUP(TEXT(INDIRECT(\"'\"&F1423&\"'!\"&H1423),\"0\"),Notes!$B$5:$C$100,2,FALSE),\"\"))","v":""},"2e","$I$33","$J$33"]
[8004,{"$f":"Menu!$F$29","v":"X"},{"$f":"Menu!$J$29","v":2020},{"$f":"IF(ISBLANK(INDIRECT(\"'\"&F1424&\"'!\"&G1424)),\"\",INDIRECT(\"'\"&F1424&\"'!\"&G1424))","v":""},{"$f":"IF(ISBLANK(INDIRECT(\"'\"&F1424&\"'!\"&H1424)),\"\",IFERROR(VLOOKUP(TEXT(INDIRECT(\"'\"&F1424&\"'!\"&H1424),\"0\"),Notes!$B$5:$C$100,2,FALSE),\"\"))","v":""},"2e","$K$33","$L$33"]
[8005,{"$f":"Menu!$F$29","v":"X"},{"$f":"Menu!$J$29","v":2020},{"$f":"IF(ISBLANK(INDIRECT(\"'\"&F1425&\"'!\"&G1425)),\"\",INDIRECT(\"'\"&F1425&\"'!\"&G1425))","v":""},{"$f":"IF(ISBLANK(INDIRECT(\"'\"&F1425&\"'!\"&H1425)),\"\",IFERROR(VLOOKUP(TEXT(INDIRECT(\"'\"&F1425&\"'!\"&H1425),\"0\"),Notes!$B$5:$C$100,2,FALSE),\"\"))","v":""},"2e","$M$33","$N$33"]
[8006,{"$f":"Menu!$F$29","v":"X"},{"$f":"Menu!$J$29","v":2020},{"$f":"IF(ISBLANK(INDIRECT(\"'\"&F1426&\"'!\"&G1426)),\"\",INDIRECT(\"'\"&F1426&\"'!\"&G1426))","v":""},{"$f":"IF(ISBLANK(INDIRECT(\"'\"&F1426&\"'!\"&H1426)),\"\",IFERROR(VLOOKUP(TEXT(INDIRECT(\"'\"&F1426&\"'!\"&H1426),\"0\"),Notes!$B$5:$C$100,2,FALSE),\"\"))","v":""},"2e","$O$33","$P$33"]
[8007,{"$f":"Menu!$F$29","v":"X"},{"$f":"Menu!$J$29","v":2020},{"$f":"IF(ISBLANK(INDIRECT(\"'\"&F1427&\"'!\"&G1427)),\"\",INDIRECT(\"'\"&F1427&\"'!\"&G1427))","v":""},{"$f":"IF(ISBLANK(INDIRECT(\"'\"&F1427&\"'!\"&H1427)),\"\",IFERROR(VLOOKUP(TEXT(INDIRECT(\"'\"&F1427&\"'!\"&H1427),\"0\"),Notes!$B$5:$C$100,2,FALSE),\"\"))","v":""},"2e","$Q$33","$R$33"]
[8008,{"$f":"Menu!$F$29","v":"X"},{"$f":"Menu!$J$29","v":2020},{"$f":"IF(ISBLANK(INDIRECT(\"'\"&F1428&\"'!\"&G1428)),\"\",INDIRECT(\"'\"&F1428&\"'!\"&G1428))","v":""},{"$f":"IF(ISBLANK(INDIRECT(\"'\"&F1428&\"'!\"&H1428)),\"\",IFERROR(VLOOKUP(TEXT(INDIRECT(\"'\"&F1428&\"'!\"&H1428),\"0\"),Notes!$B$5:$C$100,2,FALSE),\"\"))","v":""},"2e","$S$33","$T$33"]
[8009,{"$f":"Menu!$F$29","v":"X"},{"$f":"Menu!$J$29","v":2020},{"$f":"IF(ISBLANK(INDIRECT(\"'\"&F1429&\"'!\"&G1429)),\"\",INDIRECT(\"'\"&F1429&\"'!\"&G1429))","v":""},{"$f":"IF(ISBLANK(INDIRECT(\"'\"&F1429&\"'!\"&H1429)),\"\",IFERROR(VLOOKUP(TEXT(INDIRECT(\"'\"&F1429&\"'!\"&H1429),\"0\"),Notes!$B$5:$C$100,2,FALSE),\"\"))","v":""},"2e","$U$33","$V$33"]
[8010,{"$f":"Menu!$F$29","v":"X"},{"$f":"Menu!$J$29","v":2020},{"$f":"IF(ISBLANK(INDIRECT(\"'\"&F1430&\"'!\"&G1430)),\"\",INDIRECT(\"'\"&F1430&\"'!\"&G1430))","v":""},{"$f":"IF(ISBLANK(INDIRECT(\"'\"&F1430&\"'!\"&H1430)),\"\",IFERROR(VLOOKUP(TEXT(INDIRECT(\"'\"&F1430&\"'!\"&H1430),\"0\"),Notes!$B$5:$C$100,2,FALSE),\"\"))","v":""},"2e","$W$33","$X$33"]
[8011,{"$f":"Menu!$F$29","v":"X"},{"$f":"Menu!$J$29","v":2020},{"$f":"IF(ISBLANK(INDIRECT(\"'\"&F1431&\"'!\"&G1431)),\"\",INDIRECT(\"'\"&F1431&\"'!\"&G1431))","v":""},{"$f":"IF(ISBLANK(INDIRECT(\"'\"&F1431&\"'!\"&H1431)),\"\",IFERROR(VLOOKUP(TEXT(INDIRECT(\"'\"&F1431&\"'!\"&H1431),\"0\"),Notes!$B$5:$C$100,2,FALSE),\"\"))","v":""},"2e","$Y$33","$Z$33"]
[8012,{"$f":"Menu!$F$29","v":"X"},{"$f":"Menu!$J$29","v":2020},{"$f":"IF(ISBLANK(INDIRECT(\"'\"&F1432&\"'!\"&G1432)),\"\",INDIRECT(\"'\"&F1432&\"'!\"&G1432))","v":""},{"$f":"IF(ISBLANK(INDIRECT(\"'\"&F1432&\"'!\"&H1432)),\"\",IFERROR(VLOOKUP(TEXT(INDIRECT(\"'\"&F1432&\"'!\"&H1432),\"0\"),Notes!$B$5:$C$100,2,FALSE),\"\"))","v":""},"2e","$AA$33","$AB$33"]
[8013,{"$f":"Menu!$F$29","v":"X"},{"$f":"Menu!$J$29","v":2020},{"$f":"IF(ISBLANK(INDIRECT(\"'\"&F1433&\"'!\"&G1433)),\"\",INDIRECT(\"'\"&F1433&\"'!\"&G1433))","v":""},{"$f":"IF(ISBLANK(INDIRECT(\"'\"&F1433&\"'!\"&H1433)),\"\",IFERROR(VLOOKUP(TEXT(INDIRECT(\"'\"&F1433&\"'!\"&H1433),\"0\"),Notes!$B$5:$C$100,2,FALSE),\"\"))","v":""},"2e","$AC$33","$AD$33"]
[8014,{"$f":"Menu!$F$29","v":"X"},{"$f":"Menu!$J$29","v":2020},{"$f":"IF(ISBLANK(INDIRECT(\"'\"&F1434&\"'!\"&G1434)),\"\",INDIRECT(\"'\"&F1434&\"'!\"&G1434))","v":""},{"$f":"IF(ISBLANK(INDIRECT(\"'\"&F1434&\"'!\"&H1434)),\"\",IFERROR(VLOOKUP(TEXT(INDIRECT(\"'\"&F1434&\"'!\"&H1434),\"0\"),Notes!$B$5:$C$100,2,FALSE),\"\"))","v":""},"2e","$AE$33","$AF$33"]
[8015,{"$f":"Menu!$F$29","v":"X"},{"$f":"Menu!$J$29","v":2020},{"$f":"IF(ISBLANK(INDIRECT(\"'\"&F1435&\"'!\"&G1435)),\"\",INDIRECT(\"'\"&F1435&\"'!\"&G1435))","v":""},{"$f":"IF(ISBLANK(INDIRECT(\"'\"&F1435&\"'!\"&H1435)),\"\",IFERROR(VLOOKUP(TEXT(INDIRECT(\"'\"&F1435&\"'!\"&H1435),\"0\"),Notes!$B$5:$C$100,2,FALSE),\"\"))","v":""},"2e","$AG$33","$AH$33"]
[8016,{"$f":"Menu!$F$29","v":"X"},{"$f":"Menu!$J$29","v":2020},{"$f":"IF(ISBLANK(INDIRECT(\"'\"&F1436&\"'!\"&G1436)),\"\",INDIRECT(\"'\"&F1436&\"'!\"&G1436))","v":""},{"$f":"IF(ISBLANK(INDIRECT(\"'\"&F1436&\"'!\"&H1436)),\"\",IFERROR(VLOOKUP(TEXT(INDIRECT(\"'\"&F1436&\"'!\"&H1436),\"0\"),Notes!$B$5:$C$100,2,FALSE),\"\"))","v":""},"2e","$AI$33","$AJ$33"]
[8017,{"$f":"Menu!$F$29","v":"X"},{"$f":"Menu!$J$29","v":2020},{"$f":"IF(ISBLANK(INDIRECT(\"'\"&F1437&\"'!\"&G1437)),\"\",INDIRECT(\"'\"&F1437&\"'!\"&G1437))","v":""},{"$f":"IF(ISBLANK(INDIRECT(\"'\"&F1437&\"'!\"&H1437)),\"\",IFERROR(VLOOKUP(TEXT(INDIRECT(\"'\"&F1437&\"'!\"&H1437),\"0\"),Notes!$B$5:$C$100,2,FALSE),\"\"))","v":""},"2e","$AK$33","$AL$33"]
[8018,{"$f":"Menu!$F$29","v":"X"},{"$f":"Menu!$J$29","v":2020},{"$f":"IF(ISBLANK(INDIRECT(\"'\"&F1438&\"'!\"&G1438)),\"\",INDIRECT(\"'\"&F1438&\"'!\"&G1438))","v":""},{"$f":"IF(ISBLANK(INDIRECT(\"'\"&F1438&\"'!\"&H1438)),\"\",IFERROR(VLOOKUP(TEXT(INDIRECT(\"'\"&F1438&\"'!\"&H1438),\"0\"),Notes!$B$5:$C$100,2,FALSE),\"\"))","v":""},"2e","$AM$33","$AN$33"]
[8019,{"$f":"Menu!$F$29","v":"X"},{"$f":"Menu!$J$29","v":2020},{"$f":"IF(ISBLANK(INDIRECT(\"'\"&F1439&\"'!\"&G1439)),\"\",INDIRECT(\"'\"&F1439&\"'!\"&G1439))","v":""},{"$f":"IF(ISBLANK(INDIRECT(\"'\"&F1439&\"'!\"&H1439)),\"\",IFERROR(VLOOKUP(TEXT(INDIRECT(\"'\"&F1439&\"'!\"&H1439),\"0\"),Notes!$B$5:$C$100,2,FALSE),\"\"))","v":""},"2e","$AO$33","$AP$33"]
[8020,{"$f":"Menu!$F$29","v":"X"},{"$f":"Menu!$J$29","v":2020},{"$f":"IF(ISBLANK(INDIRECT(\"'\"&F1440&\"'!\"&G1440)),\"\",INDIRECT(\"'\"&F1440&\"'!\"&G1440))","v":""},{"$f":"IF(ISBLANK(INDIRECT(\"'\"&F1440&\"'!\"&H1440)),\"\",IFERROR(VLOOKUP(TEXT(INDIRECT(\"'\"&F1440&\"'!\"&H1440),\"0\"),Notes!$B$5:$C$100,2,FALSE),\"\"))","v":""},"2e","$AQ$33","$AR$33"]
[8021,{"$f":"Menu!$F$29","v":"X"},{"$f":"Menu!$J$29","v":2020},{"$f":"IF(ISBLANK(INDIRECT(\"'\"&F1441&\"'!\"&G1441)),\"\",INDIRECT(\"'\"&F1441&\"'!\"&G1441))","v":""},{"$f":"IF(ISBLANK(INDIRECT(\"'\"&F1441&\"'!\"&H1441)),\"\",IFERROR(VLOOKUP(TEXT(INDIRECT(\"'\"&F1441&\"'!\"&H1441),\"0\"),Notes!$B$5:$C$100,2,FALSE),\"\"))","v":""},"2e","$AS$33","$AT$33"]
[8022,{"$f":"Menu!$F$29","v":"X"},{"$f":"Menu!$J$29","v":2020},{"$f":"IF(ISBLANK(INDIRECT(\"'\"&F1442&\"'!\"&G1442)),\"\",INDIRECT(\"'\"&F1442&\"'!\"&G1442))","v":""},{"$f":"IF(ISBLANK(INDIRECT(\"'\"&F1442&\"'!\"&H1442)),\"\",IFERROR(VLOOKUP(TEXT(INDIRECT(\"'\"&F1442&\"'!\"&H1442),\"0\"),Notes!$B$5:$C$100,2,FALSE),\"\"))","v":""},"2e","$AU$33","$AV$33"]
[8023,{"$f":"Menu!$F$29","v":"X"},{"$f":"Menu!$J$29","v":2020},{"$f":"IF(ISBLANK(INDIRECT(\"'\"&F1443&\"'!\"&G1443)),\"\",INDIRECT(\"'\"&F1443&\"'!\"&G1443))","v":""},{"$f":"IF(ISBLANK(INDIRECT(\"'\"&F1443&\"'!\"&H1443)),\"\",IFERROR(VLOOKUP(TEXT(INDIRECT(\"'\"&F1443&\"'!\"&H1443),\"0\"),Notes!$B$5:$C$100,2,FALSE),\"\"))","v":""},"2e","$AW$33","$AX$33"]
[8024,{"$f":"Menu!$F$29","v":"X"},{"$f":"Menu!$J$29","v":2020},{"$f":"IF(ISBLANK(INDIRECT(\"'\"&F1444&\"'!\"&G1444)),\"\",INDIRECT(\"'\"&F1444&\"'!\"&G1444))","v":""},{"$f":"IF(ISBLANK(INDIRECT(\"'\"&F1444&\"'!\"&H1444)),\"\",IFERROR(VLOOKUP(TEXT(INDIRECT(\"'\"&F1444&\"'!\"&H1444),\"0\"),Notes!$B$5:$C$100,2,FALSE),\"\"))","v":""},"2e","$AY$33","$AZ$33"]
[8025,{"$f":"Menu!$F$29","v":"X"},{"$f":"Menu!$J$29","v":2020},{"$f":"IF(ISBLANK(INDIRECT(\"'\"&F1445&\"'!\"&G1445)),\"\",INDIRECT(\"'\"&F1445&\"'!\"&G1445))","v":""},{"$f":"IF(ISBLANK(INDIRECT(\"'\"&F1445&\"'!\"&H1445)),\"\",IFERROR(VLOOKUP(TEXT(INDIRECT(\"'\"&F1445&\"'!\"&H1445),\"0\"),Notes!$B$5:$C$100,2,FALSE),\"\"))","v":""},"2e","$BA$33","$BB$33"]
[8026,{"$f":"Menu!$F$29","v":"X"},{"$f":"Menu!$J$29","v":2020},{"$f":"IF(ISBLANK(INDIRECT(\"'\"&F1446&\"'!\"&G1446)),\"\",INDIRECT(\"'\"&F1446&\"'!\"&G1446))","v":""},{"$f":"IF(ISBLANK(INDIRECT(\"'\"&F1446&\"'!\"&H1446)),\"\",IFERROR(VLOOKUP(TEXT(INDIRECT(\"'\"&F1446&\"'!\"&H1446),\"0\"),Notes!$B$5:$C$100,2,FALSE),\"\"))","v":""},"2e","$BC$33","$BD$33"]
[8027,{"$f":"Menu!$F$29","v":"X"},{"$f":"Menu!$J$29","v":2020},{"$f":"IF(ISBLANK(INDIRECT(\"'\"&F1447&\"'!\"&G1447)),\"\",INDIRECT(\"'\"&F1447&\"'!\"&G1447))","v":""},{"$f":"IF(ISBLANK(INDIRECT(\"'\"&F1447&\"'!\"&H1447)),\"\",IFERROR(VLOOKUP(TEXT(INDIRECT(\"'\"&F1447&\"'!\"&H1447),\"0\"),Notes!$B$5:$C$100,2,FALSE),\"\"))","v":""},"2e","$BE$33","$BF$33"]
[8028,{"$f":"Menu!$F$29","v":"X"},{"$f":"Menu!$J$29","v":2020},{"$f":"IF(ISBLANK(INDIRECT(\"'\"&F1448&\"'!\"&G1448)),\"\",INDIRECT(\"'\"&F1448&\"'!\"&G1448))","v":""},{"$f":"IF(ISBLANK(INDIRECT(\"'\"&F1448&\"'!\"&H1448)),\"\",IFERROR(VLOOKUP(TEXT(INDIRECT(\"'\"&F1448&\"'!\"&H1448),\"0\"),Notes!$B$5:$C$100,2,FALSE),\"\"))","v":""},"2e","$BG$33","$BH$33"]
[8029,{"$f":"Menu!$F$29","v":"X"},{"$f":"Menu!$J$29","v":2020},{"$f":"IF(ISBLANK(INDIRECT(\"'\"&F1449&\"'!\"&G1449)),\"\",INDIRECT(\"'\"&F1449&\"'!\"&G1449))","v":""},{"$f":"IF(ISBLANK(INDIRECT(\"'\"&F1449&\"'!\"&H1449)),\"\",IFERROR(VLOOKUP(TEXT(INDIRECT(\"'\"&F1449&\"'!\"&H1449),\"0\"),Notes!$B$5:$C$100,2,FALSE),\"\"))","v":""},"2e","$BI$33","$BJ$33"]
[8030,{"$f":"Menu!$F$29","v":"X"},{"$f":"Menu!$J$29","v":2020},{"$f":"IF(ISBLANK(INDIRECT(\"'\"&F1450&\"'!\"&G1450)),\"\",INDIRECT(\"'\"&F1450&\"'!\"&G1450))","v":""},{"$f":"IF(ISBLANK(INDIRECT(\"'\"&F1450&\"'!\"&H1450)),\"\",IFERROR(VLOOKUP(TEXT(INDIRECT(\"'\"&F1450&\"'!\"&H1450),\"0\"),Notes!$B$5:$C$100,2,FALSE),\"\"))","v":""},"2e","$BK$33","$BL$33"]
[8061,{"$f":"Menu!$F$29","v":"X"},{"$f":"Menu!$J$29","v":2020},{"$f":"IF(ISBLANK(INDIRECT(\"'\"&F1451&\"'!\"&G1451)),\"\",INDIRECT(\"'\"&F1451&\"'!\"&G1451))","v":""},{"$f":"IF(ISBLANK(INDIRECT(\"'\"&F1451&\"'!\"&H1451)),\"\",IFERROR(VLOOKUP(TEXT(INDIRECT(\"'\"&F1451&\"'!\"&H1451),\"0\"),Notes!$B$5:$C$100,2,FALSE),\"\"))","v":""},"2e","$E$56","$F$56"]
[8062,{"$f":"Menu!$F$29","v":"X"},{"$f":"Menu!$J$29","v":2020},{"$f":"IF(ISBLANK(INDIRECT(\"'\"&F1452&\"'!\"&G1452)),\"\",INDIRECT(\"'\"&F1452&\"'!\"&G1452))","v":""},{"$f":"IF(ISBLANK(INDIRECT(\"'\"&F1452&\"'!\"&H1452)),\"\",IFERROR(VLOOKUP(TEXT(INDIRECT(\"'\"&F1452&\"'!\"&H1452),\"0\"),Notes!$B$5:$C$100,2,FALSE),\"\"))","v":""},"2e","$G$56","$H$56"]
[8063,{"$f":"Menu!$F$29","v":"X"},{"$f":"Menu!$J$29","v":2020},{"$f":"IF(ISBLANK(INDIRECT(\"'\"&F1453&\"'!\"&G1453)),\"\",INDIRECT(\"'\"&F1453&\"'!\"&G1453))","v":""},{"$f":"IF(ISBLANK(INDIRECT(\"'\"&F1453&\"'!\"&H1453)),\"\",IFERROR(VLOOKUP(TEXT(INDIRECT(\"'\"&F1453&\"'!\"&H1453),\"0\"),Notes!$B$5:$C$100,2,FALSE),\"\"))","v":""},"2e","$I$56","$J$56"]
[8064,{"$f":"Menu!$F$29","v":"X"},{"$f":"Menu!$J$29","v":2020},{"$f":"IF(ISBLANK(INDIRECT(\"'\"&F1454&\"'!\"&G1454)),\"\",INDIRECT(\"'\"&F1454&\"'!\"&G1454))","v":""},{"$f":"IF(ISBLANK(INDIRECT(\"'\"&F1454&\"'!\"&H1454)),\"\",IFERROR(VLOOKUP(TEXT(INDIRECT(\"'\"&F1454&\"'!\"&H1454),\"0\"),Notes!$B$5:$C$100,2,FALSE),\"\"))","v":""},"2e","$K$56","$L$56"]
[8065,{"$f":"Menu!$F$29","v":"X"},{"$f":"Menu!$J$29","v":2020},{"$f":"IF(ISBLANK(INDIRECT(\"'\"&F1455&\"'!\"&G1455)),\"\",INDIRECT(\"'\"&F1455&\"'!\"&G1455))","v":""},{"$f":"IF(ISBLANK(INDIRECT(\"'\"&F1455&\"'!\"&H1455)),\"\",IFERROR(VLOOKUP(TEXT(INDIRECT(\"'\"&F1455&\"'!\"&H1455),\"0\"),Notes!$B$5:$C$100,2,FALSE),\"\"))","v":""},"2e","$M$56","$N$56"]
[8066,{"$f":"Menu!$F$29","v":"X"},{"$f":"Menu!$J$29","v":2020},{"$f":"IF(ISBLANK(INDIRECT(\"'\"&F1456&\"'!\"&G1456)),\"\",INDIRECT(\"'\"&F1456&\"'!\"&G1456))","v":""},{"$f":"IF(ISBLANK(INDIRECT(\"'\"&F1456&\"'!\"&H1456)),\"\",IFERROR(VLOOKUP(TEXT(INDIRECT(\"'\"&F1456&\"'!\"&H1456),\"0\"),Notes!$B$5:$C$100,2,FALSE),\"\"))","v":""},"2e","$O$56","$P$56"]
[8067,{"$f":"Menu!$F$29","v":"X"},{"$f":"Menu!$J$29","v":2020},{"$f":"IF(ISBLANK(INDIRECT(\"'\"&F1457&\"'!\"&G1457)),\"\",INDIRECT(\"'\"&F1457&\"'!\"&G1457))","v":""},{"$f":"IF(ISBLANK(INDIRECT(\"'\"&F1457&\"'!\"&H1457)),\"\",IFERROR(VLOOKUP(TEXT(INDIRECT(\"'\"&F1457&\"'!\"&H1457),\"0\"),Notes!$B$5:$C$100,2,FALSE),\"\"))","v":""},"2e","$Q$56","$R$56"]
[8068,{"$f":"Menu!$F$29","v":"X"},{"$f":"Menu!$J$29","v":2020},{"$f":"IF(ISBLANK(INDIRECT(\"'\"&F1458&\"'!\"&G1458)),\"\",INDIRECT(\"'\"&F1458&\"'!\"&G1458))","v":""},{"$f":"IF(ISBLANK(INDIRECT(\"'\"&F1458&\"'!\"&H1458)),\"\",IFERROR(VLOOKUP(TEXT(INDIRECT(\"'\"&F1458&\"'!\"&H1458),\"0\"),Notes!$B$5:$C$100,2,FALSE),\"\"))","v":""},"2e","$S$56","$T$56"]
[8069,{"$f":"Menu!$F$29","v":"X"},{"$f":"Menu!$J$29","v":2020},{"$f":"IF(ISBLANK(INDIRECT(\"'\"&F1459&\"'!\"&G1459)),\"\",INDIRECT(\"'\"&F1459&\"'!\"&G1459))","v":""},{"$f":"IF(ISBLANK(INDIRECT(\"'\"&F1459&\"'!\"&H1459)),\"\",IFERROR(VLOOKUP(TEXT(INDIRECT(\"'\"&F1459&\"'!\"&H1459),\"0\"),Notes!$B$5:$C$100,2,FALSE),\"\"))","v":""},"2e","$U$56","$V$56"]
[8070,{"$f":"Menu!$F$29","v":"X"},{"$f":"Menu!$J$29","v":2020},{"$f":"IF(ISBLANK(INDIRECT(\"'\"&F1460&\"'!\"&G1460)),\"\",INDIRECT(\"'\"&F1460&\"'!\"&G1460))","v":""},{"$f":"IF(ISBLANK(INDIRECT(\"'\"&F1460&\"'!\"&H1460)),\"\",IFERROR(VLOOKUP(TEXT(INDIRECT(\"'\"&F1460&\"'!\"&H1460),\"0\"),Notes!$B$5:$C$100,2,FALSE),\"\"))","v":""},"2e","$W$56","$X$56"]
[8071,{"$f":"Menu!$F$29","v":"X"},{"$f":"Menu!$J$29","v":2020},{"$f":"IF(ISBLANK(INDIRECT(\"'\"&F1461&\"'!\"&G1461)),\"\",INDIRECT(\"'\"&F1461&\"'!\"&G1461))","v":""},{"$f":"IF(ISBLANK(INDIRECT(\"'\"&F1461&\"'!\"&H1461)),\"\",IFERROR(VLOOKUP(TEXT(INDIRECT(\"'\"&F1461&\"'!\"&H1461),\"0\"),Notes!$B$5:$C$100,2,FALSE),\"\"))","v":""},"2e","$Y$56","$Z$56"]
[8072,{"$f":"Menu!$F$29","v":"X"},{"$f":"Menu!$J$29","v":2020},{"$f":"IF(ISBLANK(INDIRECT(\"'\"&F1462&\"'!\"&G1462)),\"\",INDIRECT(\"'\"&F1462&\"'!\"&G1462))","v":""},{"$f":"IF(ISBLANK(INDIRECT(\"'\"&F1462&\"'!\"&H1462)),\"\",IFERROR(VLOOKUP(TEXT(INDIRECT(\"'\"&F1462&\"'!\"&H1462),\"0\"),Notes!$B$5:$C$100,2,FALSE),\"\"))","v":""},"2e","$AA$56","$AB$56"]
[8073,{"$f":"Menu!$F$29","v":"X"},{"$f":"Menu!$J$29","v":2020},{"$f":"IF(ISBLANK(INDIRECT(\"'\"&F1463&\"'!\"&G1463)),\"\",INDIRECT(\"'\"&F1463&\"'!\"&G1463))","v":""},{"$f":"IF(ISBLANK(INDIRECT(\"'\"&F1463&\"'!\"&H1463)),\"\",IFERROR(VLOOKUP(TEXT(INDIRECT(\"'\"&F1463&\"'!\"&H1463),\"0\"),Notes!$B$5:$C$100,2,FALSE),\"\"))","v":""},"2e","$AC$56","$AD$56"]
[8074,{"$f":"Menu!$F$29","v":"X"},{"$f":"Menu!$J$29","v":2020},{"$f":"IF(ISBLANK(INDIRECT(\"'\"&F1464&\"'!\"&G1464)),\"\",INDIRECT(\"'\"&F1464&\"'!\"&G1464))","v":""},{"$f":"IF(ISBLANK(INDIRECT(\"'\"&F1464&\"'!\"&H1464)),\"\",IFERROR(VLOOKUP(TEXT(INDIRECT(\"'\"&F1464&\"'!\"&H1464),\"0\"),Notes!$B$5:$C$100,2,FALSE),\"\"))","v":""},"2e","$AE$56","$AF$56"]
[8075,{"$f":"Menu!$F$29","v":"X"},{"$f":"Menu!$J$29","v":2020},{"$f":"IF(ISBLANK(INDIRECT(\"'\"&F1465&\"'!\"&G1465)),\"\",INDIRECT(\"'\"&F1465&\"'!\"&G1465))","v":""},{"$f":"IF(ISBLANK(INDIRECT(\"'\"&F1465&\"'!\"&H1465)),\"\",IFERROR(VLOOKUP(TEXT(INDIRECT(\"'\"&F1465&\"'!\"&H1465),\"0\"),Notes!$B$5:$C$100,2,FALSE),\"\"))","v":""},"2e","$AG$56","$AH$56"]
[8076,{"$f":"Menu!$F$29","v":"X"},{"$f":"Menu!$J$29","v":2020},{"$f":"IF(ISBLANK(INDIRECT(\"'\"&F1466&\"'!\"&G1466)),\"\",INDIRECT(\"'\"&F1466&\"'!\"&G1466))","v":""},{"$f":"IF(ISBLANK(INDIRECT(\"'\"&F1466&\"'!\"&H1466)),\"\",IFERROR(VLOOKUP(TEXT(INDIRECT(\"'\"&F1466&\"'!\"&H1466),\"0\"),Notes!$B$5:$C$100,2,FALSE),\"\"))","v":""},"2e","$AI$56","$AJ$56"]
[8077,{"$f":"Menu!$F$29","v":"X"},{"$f":"Menu!$J$29","v":2020},{"$f":"IF(ISBLANK(INDIRECT(\"'\"&F1467&\"'!\"&G1467)),\"\",INDIRECT(\"'\"&F1467&\"'!\"&G1467))","v":""},{"$f":"IF(ISBLANK(INDIRECT(\"'\"&F1467&\"'!\"&H1467)),\"\",IFERROR(VLOOKUP(TEXT(INDIRECT(\"'\"&F1467&\"'!\"&H1467),\"0\"),Notes!$B$5:$C$100,2,FALSE),\"\"))","v":""},"2e","$AK$56","$AL$56"]
[8078,{"$f":"Menu!$F$29","v":"X"},{"$f":"Menu!$J$29","v":2020},{"$f":"IF(ISBLANK(INDIRECT(\"'\"&F1468&\"'!\"&G1468)),\"\",INDIRECT(\"'\"&F1468&\"'!\"&G1468))","v":""},{"$f":"IF(ISBLANK(INDIRECT(\"'\"&F1468&\"'!\"&H1468)),\"\",IFERROR(VLOOKUP(TEXT(INDIRECT(\"'\"&F1468&\"'!\"&H1468),\"0\"),Notes!$B$5:$C$100,2,FALSE),\"\"))","v":""},"2e","$AM$56","$AN$56"]
[8079,{"$f":"Menu!$F$29","v":"X"},{"$f":"Menu!$J$29","v":2020},{"$f":"IF(ISBLANK(INDIRECT(\"'\"&F1469&\"'!\"&G1469)),\"\",INDIRECT(\"'\"&F1469&\"'!\"&G1469))","v":""},{"$f":"IF(ISBLANK(INDIRECT(\"'\"&F1469&\"'!\"&H1469)),\"\",IFERROR(VLOOKUP(TEXT(INDIRECT(\"'\"&F1469&\"'!\"&H1469),\"0\"),Notes!$B$5:$C$100,2,FALSE),\"\"))","v":""},"2e","$AO$56","$AP$56"]
[8080,{"$f":"Menu!$F$29","v":"X"},{"$f":"Menu!$J$29","v":2020},{"$f":"IF(ISBLANK(INDIRECT(\"'\"&F1470&\"'!\"&G1470)),\"\",INDIRECT(\"'\"&F1470&\"'!\"&G1470))","v":""},{"$f":"IF(ISBLANK(INDIRECT(\"'\"&F1470&\"'!\"&H1470)),\"\",IFERROR(VLOOKUP(TEXT(INDIRECT(\"'\"&F1470&\"'!\"&H1470),\"0\"),Notes!$B$5:$C$100,2,FALSE),\"\"))","v":""},"2e","$AQ$56","$AR$56"]
[8081,{"$f":"Menu!$F$29","v":"X"},{"$f":"Menu!$J$29","v":2020},{"$f":"IF(ISBLANK(INDIRECT(\"'\"&F1471&\"'!\"&G1471)),\"\",INDIRECT(\"'\"&F1471&\"'!\"&G1471))","v":""},{"$f":"IF(ISBLANK(INDIRECT(\"'\"&F1471&\"'!\"&H1471)),\"\",IFERROR(VLOOKUP(TEXT(INDIRECT(\"'\"&F1471&\"'!\"&H1471),\"0\"),Notes!$B$5:$C$100,2,FALSE),\"\"))","v":""},"2e","$AS$56","$AT$56"]
[8082,{"$f":"Menu!$F$29","v":"X"},{"$f":"Menu!$J$29","v":2020},{"$f":"IF(ISBLANK(INDIRECT(\"'\"&F1472&\"'!\"&G1472)),\"\",INDIRECT(\"'\"&F1472&\"'!\"&G1472))","v":""},{"$f":"IF(ISBLANK(INDIRECT(\"'\"&F1472&\"'!\"&H1472)),\"\",IFERROR(VLOOKUP(TEXT(INDIRECT(\"'\"&F1472&\"'!\"&H1472),\"0\"),Notes!$B$5:$C$100,2,FALSE),\"\"))","v":""},"2e","$AU$56","$AV$56"]
[8083,{"$f":"Menu!$F$29","v":"X"},{"$f":"Menu!$J$29","v":2020},{"$f":"IF(ISBLANK(INDIRECT(\"'\"&F1473&\"'!\"&G1473)),\"\",INDIRECT(\"'\"&F1473&\"'!\"&G1473))","v":""},{"$f":"IF(ISBLANK(INDIRECT(\"'\"&F1473&\"'!\"&H1473)),\"\",IFERROR(VLOOKUP(TEXT(INDIRECT(\"'\"&F1473&\"'!\"&H1473),\"0\"),Notes!$B$5:$C$100,2,FALSE),\"\"))","v":""},"2e","$AW$56","$AX$56"]
[8084,{"$f":"Menu!$F$29","v":"X"},{"$f":"Menu!$J$29","v":2020},{"$f":"IF(ISBLANK(INDIRECT(\"'\"&F1474&\"'!\"&G1474)),\"\",INDIRECT(\"'\"&F1474&\"'!\"&G1474))","v":""},{"$f":"IF(ISBLANK(INDIRECT(\"'\"&F1474&\"'!\"&H1474)),\"\",IFERROR(VLOOKUP(TEXT(INDIRECT(\"'\"&F1474&\"'!\"&H1474),\"0\"),Notes!$B$5:$C$100,2,FALSE),\"\"))","v":""},"2e","$AY$56",{"$f":"IF(LEN(TRIM(MID(G1474,4,10)))-LEN(SUBSTITUTE(TRIM(MID(G1474,4,10)),\"$\",\"\"))=0,\"$\"&CHAR(CODE(MID(G1474,2,1))+1)&\"$\"&TRIM(MID(G1474,4,10)),\"$\"&MID(G1474,2,1)&CHAR(CODE(MID(G1474,3,1))+1)&\"$\"&TRIM(MID(G1474,5,11)))","v":"$AZ$56"}]
[8085,{"$f":"Menu!$F$29","v":"X"},{"$f":"Menu!$J$29","v":2020},{"$f":"IF(ISBLANK(INDIRECT(\"'\"&F1475&\"'!\"&G1475)),\"\",INDIRECT(\"'\"&F1475&\"'!\"&G1475))","v":""},{"$f":"IF(ISBLANK(INDIRECT(\"'\"&F1475&\"'!\"&H1475)),\"\",IFERROR(VLOOKUP(TEXT(INDIRECT(\"'\"&F1475&\"'!\"&H1475),\"0\"),Notes!$B$5:$C$100,2,FALSE),\"\"))","v":""},"2e","$BA$56","$BB$56"]
[8086,{"$f":"Menu!$F$29","v":"X"},{"$f":"Menu!$J$29","v":2020},{"$f":"IF(ISBLANK(INDIRECT(\"'\"&F1476&\"'!\"&G1476)),\"\",INDIRECT(\"'\"&F1476&\"'!\"&G1476))","v":""},{"$f":"IF(ISBLANK(INDIRECT(\"'\"&F1476&\"'!\"&H1476)),\"\",IFERROR(VLOOKUP(TEXT(INDIRECT(\"'\"&F1476&\"'!\"&H1476),\"0\"),Notes!$B$5:$C$100,2,FALSE),\"\"))","v":""},"2e","$BC$56","$BD$56"]
[8087,{"$f":"Menu!$F$29","v":"X"},{"$f":"Menu!$J$29","v":2020},{"$f":"IF(ISBLANK(INDIRECT(\"'\"&F1477&\"'!\"&G1477)),\"\",INDIRECT(\"'\"&F1477&\"'!\"&G1477))","v":""},{"$f":"IF(ISBLANK(INDIRECT(\"'\"&F1477&\"'!\"&H1477)),\"\",IFERROR(VLOOKUP(TEXT(INDIRECT(\"'\"&F1477&\"'!\"&H1477),\"0\"),Notes!$B$5:$C$100,2,FALSE),\"\"))","v":""},"2e","$BE$56","$BF$56"]
[8088,{"$f":"Menu!$F$29","v":"X"},{"$f":"Menu!$J$29","v":2020},{"$f":"IF(ISBLANK(INDIRECT(\"'\"&F1478&\"'!\"&G1478)),\"\",INDIRECT(\"'\"&F1478&\"'!\"&G1478))","v":""},{"$f":"IF(ISBLANK(INDIRECT(\"'\"&F1478&\"'!\"&H1478)),\"\",IFERROR(VLOOKUP(TEXT(INDIRECT(\"'\"&F1478&\"'!\"&H1478),\"0\"),Notes!$B$5:$C$100,2,FALSE),\"\"))","v":""},"2e","$BG$56","$BH$56"]
[8089,{"$f":"Menu!$F$29","v":"X"},{"$f":"Menu!$J$29","v":2020},{"$f":"IF(ISBLANK(INDIRECT(\"'\"&F1479&\"'!\"&G1479)),\"\",INDIRECT(\"'\"&F1479&\"'!\"&G1479))","v":""},{"$f":"IF(ISBLANK(INDIRECT(\"'\"&F1479&\"'!\"&H1479)),\"\",IFERROR(VLOOKUP(TEXT(INDIRECT(\"'\"&F1479&\"'!\"&H1479),\"0\"),Notes!$B$5:$C$100,2,FALSE),\"\"))","v":""},"2e","$BI$56","$BJ$56"]
[8090,{"$f":"Menu!$F$29","v":"X"},{"$f":"Menu!$J$29","v":2020},{"$f":"IF(ISBLANK(INDIRECT(\"'\"&F1480&\"'!\"&G1480)),\"\",INDIRECT(\"'\"&F1480&\"'!\"&G1480))","v":""},{"$f":"IF(ISBLANK(INDIRECT(\"'\"&F1480&\"'!\"&H1480)),\"\",IFERROR(VLOOKUP(TEXT(INDIRECT(\"'\"&F1480&\"'!\"&H1480),\"0\"),Notes!$B$5:$C$100,2,FALSE),\"\"))","v":""},"2e","$BK$56","$BL$56"]
[8091,{"$f":"Menu!$F$29","v":"X"},{"$f":"Menu!$J$29","v":2020},{"$f":"IF(ISBLANK(INDIRECT(\"'\"&F1481&\"'!\"&G1481)),\"\",INDIRECT(\"'\"&F1481&\"'!\"&G1481))","v":""},{"$f":"IF(ISBLANK(INDIRECT(\"'\"&F1481&\"'!\"&H1481)),\"\",IFERROR(VLOOKUP(TEXT(INDIRECT(\"'\"&F1481&\"'!\"&H1481),\"0\"),Notes!$B$5:$C$100,2,FALSE),\"\"))","v":""},"2e","$E$54","$F$54"]
[8092,{"$f":"Menu!$F$29","v":"X"},{"$f":"Menu!$J$29","v":2020},{"$f":"IF(ISBLANK(INDIRECT(\"'\"&F1482&\"'!\"&G1482)),\"\",INDIRECT(\"'\"&F1482&\"'!\"&G1482))","v":""},{"$f":"IF(ISBLANK(INDIRECT(\"'\"&F1482&\"'!\"&H1482)),\"\",IFERROR(VLOOKUP(TEXT(INDIRECT(\"'\"&F1482&\"'!\"&H1482),\"0\"),Notes!$B$5:$C$100,2,FALSE),\"\"))","v":""},"2e","$G$54","$H$54"]
[8093,{"$f":"Menu!$F$29","v":"X"},{"$f":"Menu!$J$29","v":2020},{"$f":"IF(ISBLANK(INDIRECT(\"'\"&F1483&\"'!\"&G1483)),\"\",INDIRECT(\"'\"&F1483&\"'!\"&G1483))","v":""},{"$f":"IF(ISBLANK(INDIRECT(\"'\"&F1483&\"'!\"&H1483)),\"\",IFERROR(VLOOKUP(TEXT(INDIRECT(\"'\"&F1483&\"'!\"&H1483),\"0\"),Notes!$B$5:$C$100,2,FALSE),\"\"))","v":""},"2e","$I$54","$J$54"]
[8094,{"$f":"Menu!$F$29","v":"X"},{"$f":"Menu!$J$29","v":2020},{"$f":"IF(ISBLANK(INDIRECT(\"'\"&F1484&\"'!\"&G1484)),\"\",INDIRECT(\"'\"&F1484&\"'!\"&G1484))","v":""},{"$f":"IF(ISBLANK(INDIRECT(\"'\"&F1484&\"'!\"&H1484)),\"\",IFERROR(VLOOKUP(TEXT(INDIRECT(\"'\"&F1484&\"'!\"&H1484),\"0\"),Notes!$B$5:$C$100,2,FALSE),\"\"))","v":""},"2e","$K$54","$L$54"]
[8095,{"$f":"Menu!$F$29","v":"X"},{"$f":"Menu!$J$29","v":2020},{"$f":"IF(ISBLANK(INDIRECT(\"'\"&F1485&\"'!\"&G1485)),\"\",INDIRECT(\"'\"&F1485&\"'!\"&G1485))","v":""},{"$f":"IF(ISBLANK(INDIRECT(\"'\"&F1485&\"'!\"&H1485)),\"\",IFERROR(VLOOKUP(TEXT(INDIRECT(\"'\"&F1485&\"'!\"&H1485),\"0\"),Notes!$B$5:$C$100,2,FALSE),\"\"))","v":""},"2e","$M$54","$N$54"]
[8096,{"$f":"Menu!$F$29","v":"X"},{"$f":"Menu!$J$29","v":2020},{"$f":"IF(ISBLANK(INDIRECT(\"'\"&F1486&\"'!\"&G1486)),\"\",INDIRECT(\"'\"&F1486&\"'!\"&G1486))","v":""},{"$f":"IF(ISBLANK(INDIRECT(\"'\"&F1486&\"'!\"&H1486)),\"\",IFERROR(VLOOKUP(TEXT(INDIRECT(\"'\"&F1486&\"'!\"&H1486),\"0\"),Notes!$B$5:$C$100,2,FALSE),\"\"))","v":""},"2e","$O$54","$P$54"]
[8097,{"$f":"Menu!$F$29","v":"X"},{"$f":"Menu!$J$29","v":2020},{"$f":"IF(ISBLANK(INDIRECT(\"'\"&F1487&\"'!\"&G1487)),\"\",INDIRECT(\"'\"&F1487&\"'!\"&G1487))","v":""},{"$f":"IF(ISBLANK(INDIRECT(\"'\"&F1487&\"'!\"&H1487)),\"\",IFERROR(VLOOKUP(TEXT(INDIRECT(\"'\"&F1487&\"'!\"&H1487),\"0\"),Notes!$B$5:$C$100,2,FALSE),\"\"))","v":""},"2e","$Q$54","$R$54"]
[8098,{"$f":"Menu!$F$29","v":"X"},{"$f":"Menu!$J$29","v":2020},{"$f":"IF(ISBLANK(INDIRECT(\"'\"&F1488&\"'!\"&G1488)),\"\",INDIRECT(\"'\"&F1488&\"'!\"&G1488))","v":""},{"$f":"IF(ISBLANK(INDIRECT(\"'\"&F1488&\"'!\"&H1488)),\"\",IFERROR(VLOOKUP(TEXT(INDIRECT(\"'\"&F1488&\"'!\"&H1488),\"0\"),Notes!$B$5:$C$100,2,FALSE),\"\"))","v":""},"2e","$S$54","$T$54"]
[8099,{"$f":"Menu!$F$29","v":"X"},{"$f":"Menu!$J$29","v":2020},{"$f":"IF(ISBLANK(INDIRECT(\"'\"&F1489&\"'!\"&G1489)),\"\",INDIRECT(\"'\"&F1489&\"'!\"&G1489))","v":""},{"$f":"IF(ISBLANK(INDIRECT(\"'\"&F1489&\"'!\"&H1489)),\"\",IFERROR(VLOOKUP(TEXT(INDIRECT(\"'\"&F1489&\"'!\"&H1489),\"0\"),Notes!$B$5:$C$100,2,FALSE),\"\"))","v":""},"2e","$U$54","$V$54"]
[8100,{"$f":"Menu!$F$29","v":"X"},{"$f":"Menu!$J$29","v":2020},{"$f":"IF(ISBLANK(INDIRECT(\"'\"&F1490&\"'!\"&G1490)),\"\",INDIRECT(\"'\"&F1490&\"'!\"&G1490))","v":""},{"$f":"IF(ISBLANK(INDIRECT(\"'\"&F1490&\"'!\"&H1490)),\"\",IFERROR(VLOOKUP(TEXT(INDIRECT(\"'\"&F1490&\"'!\"&H1490),\"0\"),Notes!$B$5:$C$100,2,FALSE),\"\"))","v":""},"2e","$W$54","$X$54"]
[8101,{"$f":"Menu!$F$29","v":"X"},{"$f":"Menu!$J$29","v":2020},{"$f":"IF(ISBLANK(INDIRECT(\"'\"&F1491&\"'!\"&G1491)),\"\",INDIRECT(\"'\"&F1491&\"'!\"&G1491))","v":""},{"$f":"IF(ISBLANK(INDIRECT(\"'\"&F1491&\"'!\"&H1491)),\"\",IFERROR(VLOOKUP(TEXT(INDIRECT(\"'\"&F1491&\"'!\"&H1491),\"0\"),Notes!$B$5:$C$100,2,FALSE),\"\"))","v":""},"2e","$Y$54","$Z$54"]
[8102,{"$f":"Menu!$F$29","v":"X"},{"$f":"Menu!$J$29","v":2020},{"$f":"IF(ISBLANK(INDIRECT(\"'\"&F1492&\"'!\"&G1492)),\"\",INDIRECT(\"'\"&F1492&\"'!\"&G1492))","v":""},{"$f":"IF(ISBLANK(INDIRECT(\"'\"&F1492&\"'!\"&H1492)),\"\",IFERROR(VLOOKUP(TEXT(INDIRECT(\"'\"&F1492&\"'!\"&H1492),\"0\"),Notes!$B$5:$C$100,2,FALSE),\"\"))","v":""},"2e","$AA$54","$AB$54"]
[8103,{"$f":"Menu!$F$29","v":"X"},{"$f":"Menu!$J$29","v":2020},{"$f":"IF(ISBLANK(INDIRECT(\"'\"&F1493&\"'!\"&G1493)),\"\",INDIRECT(\"'\"&F1493&\"'!\"&G1493))","v":""},{"$f":"IF(ISBLANK(INDIRECT(\"'\"&F1493&\"'!\"&H1493)),\"\",IFERROR(VLOOKUP(TEXT(INDIRECT(\"'\"&F1493&\"'!\"&H1493),\"0\"),Notes!$B$5:$C$100,2,FALSE),\"\"))","v":""},"2e","$AC$54","$AD$54"]
[8104,{"$f":"Menu!$F$29","v":"X"},{"$f":"Menu!$J$29","v":2020},{"$f":"IF(ISBLANK(INDIRECT(\"'\"&F1494&\"'!\"&G1494)),\"\",INDIRECT(\"'\"&F1494&\"'!\"&G1494))","v":""},{"$f":"IF(ISBLANK(INDIRECT(\"'\"&F1494&\"'!\"&H1494)),\"\",IFERROR(VLOOKUP(TEXT(INDIRECT(\"'\"&F1494&\"'!\"&H1494),\"0\"),Notes!$B$5:$C$100,2,FALSE),\"\"))","v":""},"2e","$AE$54","$AF$54"]
[8105,{"$f":"Menu!$F$29","v":"X"},{"$f":"Menu!$J$29","v":2020},{"$f":"IF(ISBLANK(INDIRECT(\"'\"&F1495&\"'!\"&G1495)),\"\",INDIRECT(\"'\"&F1495&\"'!\"&G1495))","v":""},{"$f":"IF(ISBLANK(INDIRECT(\"'\"&F1495&\"'!\"&H1495)),\"\",IFERROR(VLOOKUP(TEXT(INDIRECT(\"'\"&F1495&\"'!\"&H1495),\"0\"),Notes!$B$5:$C$100,2,FALSE),\"\"))","v":""},"2e","$AG$54","$AH$54"]
[8106,{"$f":"Menu!$F$29","v":"X"},{"$f":"Menu!$J$29","v":2020},{"$f":"IF(ISBLANK(INDIRECT(\"'\"&F1496&\"'!\"&G1496)),\"\",INDIRECT(\"'\"&F1496&\"'!\"&G1496))","v":""},{"$f":"IF(ISBLANK(INDIRECT(\"'\"&F1496&\"'!\"&H1496)),\"\",IFERROR(VLOOKUP(TEXT(INDIRECT(\"'\"&F1496&\"'!\"&H1496),\"0\"),Notes!$B$5:$C$100,2,FALSE),\"\"))","v":""},"2e","$AI$54","$AJ$54"]
[8107,{"$f":"Menu!$F$29","v":"X"},{"$f":"Menu!$J$29","v":2020},{"$f":"IF(ISBLANK(INDIRECT(\"'\"&F1497&\"'!\"&G1497)),\"\",INDIRECT(\"'\"&F1497&\"'!\"&G1497))","v":""},{"$f":"IF(ISBLANK(INDIRECT(\"'\"&F1497&\"'!\"&H1497)),\"\",IFERROR(VLOOKUP(TEXT(INDIRECT(\"'\"&F1497&\"'!\"&H1497),\"0\"),Notes!$B$5:$C$100,2,FALSE),\"\"))","v":""},"2e","$AK$54","$AL$54"]
[8108,{"$f":"Menu!$F$29","v":"X"},{"$f":"Menu!$J$29","v":2020},{"$f":"IF(ISBLANK(INDIRECT(\"'\"&F1498&\"'!\"&G1498)),\"\",INDIRECT(\"'\"&F1498&\"'!\"&G1498))","v":""},{"$f":"IF(ISBLANK(INDIRECT(\"'\"&F1498&\"'!\"&H1498)),\"\",IFERROR(VLOOKUP(TEXT(INDIRECT(\"'\"&F1498&\"'!\"&H1498),\"0\"),Notes!$B$5:$C$100,2,FALSE),\"\"))","v":""},"2e","$AM$54","$AN$54"]
[8109,{"$f":"Menu!$F$29","v":"X"},{"$f":"Menu!$J$29","v":2020},{"$f":"IF(ISBLANK(INDIRECT(\"'\"&F1499&\"'!\"&G1499)),\"\",INDIRECT(\"'\"&F1499&\"'!\"&G1499))","v":""},{"$f":"IF(ISBLANK(INDIRECT(\"'\"&F1499&\"'!\"&H1499)),\"\",IFERROR(VLOOKUP(TEXT(INDIRECT(\"'\"&F1499&\"'!\"&H1499),\"0\"),Notes!$B$5:$C$100,2,FALSE),\"\"))","v":""},"2e","$AO$54","$AP$54"]
[8110,{"$f":"Menu!$F$29","v":"X"},{"$f":"Menu!$J$29","v":2020},{"$f":"IF(ISBLANK(INDIRECT(\"'\"&F1500&\"'!\"&G1500)),\"\",INDIRECT(\"'\"&F1500&\"'!\"&G1500))","v":""},{"$f":"IF(ISBLANK(INDIRECT(\"'\"&F1500&\"'!\"&H1500)),\"\",IFERROR(VLOOKUP(TEXT(INDIRECT(\"'\"&F1500&\"'!\"&H1500),\"0\"),Notes!$B$5:$C$100,2,FALSE),\"\"))","v":""},"2e","$AQ$54","$AR$54"]
[8111,{"$f":"Menu!$F$29","v":"X"},{"$f":"Menu!$J$29","v":2020},{"$f":"IF(ISBLANK(INDIRECT(\"'\"&F1501&\"'!\"&G1501)),\"\",INDIRECT(\"'\"&F1501&\"'!\"&G1501))","v":""},{"$f":"IF(ISBLANK(INDIRECT(\"'\"&F1501&\"'!\"&H1501)),\"\",IFERROR(VLOOKUP(TEXT(INDIRECT(\"'\"&F1501&\"'!\"&H1501),\"0\"),Notes!$B$5:$C$100,2,FALSE),\"\"))","v":""},"2e","$AS$54","$AT$54"]
[8112,{"$f":"Menu!$F$29","v":"X"},{"$f":"Menu!$J$29","v":2020},{"$f":"IF(ISBLANK(INDIRECT(\"'\"&F1502&\"'!\"&G1502)),\"\",INDIRECT(\"'\"&F1502&\"'!\"&G1502))","v":""},{"$f":"IF(ISBLANK(INDIRECT(\"'\"&F1502&\"'!\"&H1502)),\"\",IFERROR(VLOOKUP(TEXT(INDIRECT(\"'\"&F1502&\"'!\"&H1502),\"0\"),Notes!$B$5:$C$100,2,FALSE),\"\"))","v":""},"2e","$AU$54","$AV$54"]
[8113,{"$f":"Menu!$F$29","v":"X"},{"$f":"Menu!$J$29","v":2020},{"$f":"IF(ISBLANK(INDIRECT(\"'\"&F1503&\"'!\"&G1503)),\"\",INDIRECT(\"'\"&F1503&\"'!\"&G1503))","v":""},{"$f":"IF(ISBLANK(INDIRECT(\"'\"&F1503&\"'!\"&H1503)),\"\",IFERROR(VLOOKUP(TEXT(INDIRECT(\"'\"&F1503&\"'!\"&H1503),\"0\"),Notes!$B$5:$C$100,2,FALSE),\"\"))","v":""},"2e","$AW$54","$AX$54"]
[8114,{"$f":"Menu!$F$29","v":"X"},{"$f":"Menu!$J$29","v":2020},{"$f":"IF(ISBLANK(INDIRECT(\"'\"&F1504&\"'!\"&G1504)),\"\",INDIRECT(\"'\"&F1504&\"'!\"&G1504))","v":""},{"$f":"IF(ISBLANK(INDIRECT(\"'\"&F1504&\"'!\"&H1504)),\"\",IFERROR(VLOOKUP(TEXT(INDIRECT(\"'\"&F1504&\"'!\"&H1504),\"0\"),Notes!$B$5:$C$100,2,FALSE),\"\"))","v":""},"2e","$AY$54","$AZ$54"]
[8115,{"$f":"Menu!$F$29","v":"X"},{"$f":"Menu!$J$29","v":2020},{"$f":"IF(ISBLANK(INDIRECT(\"'\"&F1505&\"'!\"&G1505)),\"\",INDIRECT(\"'\"&F1505&\"'!\"&G1505))","v":""},{"$f":"IF(ISBLANK(INDIRECT(\"'\"&F1505&\"'!\"&H1505)),\"\",IFERROR(VLOOKUP(TEXT(INDIRECT(\"'\"&F1505&\"'!\"&H1505),\"0\"),Notes!$B$5:$C$100,2,FALSE),\"\"))","v":""},"2e","$BA$54","$BB$54"]
[8116,{"$f":"Menu!$F$29","v":"X"},{"$f":"Menu!$J$29","v":2020},{"$f":"IF(ISBLANK(INDIRECT(\"'\"&F1506&\"'!\"&G1506)),\"\",INDIRECT(\"'\"&F1506&\"'!\"&G1506))","v":""},{"$f":"IF(ISBLANK(INDIRECT(\"'\"&F1506&\"'!\"&H1506)),\"\",IFERROR(VLOOKUP(TEXT(INDIRECT(\"'\"&F1506&\"'!\"&H1506),\"0\"),Notes!$B$5:$C$100,2,FALSE),\"\"))","v":""},"2e","$BC$54","$BD$54"]
[8117,{"$f":"Menu!$F$29","v":"X"},{"$f":"Menu!$J$29","v":2020},{"$f":"IF(ISBLANK(INDIRECT(\"'\"&F1507&\"'!\"&G1507)),\"\",INDIRECT(\"'\"&F1507&\"'!\"&G1507))","v":""},{"$f":"IF(ISBLANK(INDIRECT(\"'\"&F1507&\"'!\"&H1507)),\"\",IFERROR(VLOOKUP(TEXT(INDIRECT(\"'\"&F1507&\"'!\"&H1507),\"0\"),Notes!$B$5:$C$100,2,FALSE),\"\"))","v":""},"2e","$BE$54","$BF$54"]
[8118,{"$f":"Menu!$F$29","v":"X"},{"$f":"Menu!$J$29","v":2020},{"$f":"IF(ISBLANK(INDIRECT(\"'\"&F1508&\"'!\"&G1508)),\"\",INDIRECT(\"'\"&F1508&\"'!\"&G1508))","v":""},{"$f":"IF(ISBLANK(INDIRECT(\"'\"&F1508&\"'!\"&H1508)),\"\",IFERROR(VLOOKUP(TEXT(INDIRECT(\"'\"&F1508&\"'!\"&H1508),\"0\"),Notes!$B$5:$C$100,2,FALSE),\"\"))","v":""},"2e","$BG$54","$BH$54"]
[8119,{"$f":"Menu!$F$29","v":"X"},{"$f":"Menu!$J$29","v":2020},{"$f":"IF(ISBLANK(INDIRECT(\"'\"&F1509&\"'!\"&G1509)),\"\",INDIRECT(\"'\"&F1509&\"'!\"&G1509))","v":""},{"$f":"IF(ISBLANK(INDIRECT(\"'\"&F1509&\"'!\"&H1509)),\"\",IFERROR(VLOOKUP(TEXT(INDIRECT(\"'\"&F1509&\"'!\"&H1509),\"0\"),Notes!$B$5:$C$100,2,FALSE),\"\"))","v":""},"2e","$BI$54","$BJ$54"]
[8120,{"$f":"Menu!$F$29","v":"X"},{"$f":"Menu!$J$29","v":2020},{"$f":"IF(ISBLANK(INDIRECT(\"'\"&F1510&\"'!\"&G1510)),\"\",INDIRECT(\"'\"&F1510&\"'!\"&G1510))","v":""},{"$f":"IF(ISBLANK(INDIRECT(\"'\"&F1510&\"'!\"&H1510)),\"\",IFERROR(VLOOKUP(TEXT(INDIRECT(\"'\"&F1510&\"'!\"&H1510),\"0\"),Notes!$B$5:$C$100,2,FALSE),\"\"))","v":""},"2e","$BK$54","$BL$54"]
[8241,{"$f":"Menu!$F$29","v":"X"},{"$f":"Menu!$J$29","v":2020},{"$f":"IF(ISBLANK(INDIRECT(\"'\"&F1511&\"'!\"&G1511)),\"\",INDIRECT(\"'\"&F1511&\"'!\"&G1511))","v":""},{"$f":"IF(ISBLANK(INDIRECT(\"'\"&F1511&\"'!\"&H1511)),\"\",IFERROR(VLOOKUP(TEXT(INDIRECT(\"'\"&F1511&\"'!\"&H1511),\"0\"),Notes!$B$5:$C$100,2,FALSE),\"\"))","v":""},"2e","$E$27","$F$27"]
[8242,{"$f":"Menu!$F$29","v":"X"},{"$f":"Menu!$J$29","v":2020},{"$f":"IF(ISBLANK(INDIRECT(\"'\"&F1512&\"'!\"&G1512)),\"\",INDIRECT(\"'\"&F1512&\"'!\"&G1512))","v":""},{"$f":"IF(ISBLANK(INDIRECT(\"'\"&F1512&\"'!\"&H1512)),\"\",IFERROR(VLOOKUP(TEXT(INDIRECT(\"'\"&F1512&\"'!\"&H1512),\"0\"),Notes!$B$5:$C$100,2,FALSE),\"\"))","v":""},"2e","$G$27","$H$27"]
[8243,{"$f":"Menu!$F$29","v":"X"},{"$f":"Menu!$J$29","v":2020},{"$f":"IF(ISBLANK(INDIRECT(\"'\"&F1513&\"'!\"&G1513)),\"\",INDIRECT(\"'\"&F1513&\"'!\"&G1513))","v":""},{"$f":"IF(ISBLANK(INDIRECT(\"'\"&F1513&\"'!\"&H1513)),\"\",IFERROR(VLOOKUP(TEXT(INDIRECT(\"'\"&F1513&\"'!\"&H1513),\"0\"),Notes!$B$5:$C$100,2,FALSE),\"\"))","v":""},"2e","$I$27","$J$27"]
[8244,{"$f":"Menu!$F$29","v":"X"},{"$f":"Menu!$J$29","v":2020},{"$f":"IF(ISBLANK(INDIRECT(\"'\"&F1514&\"'!\"&G1514)),\"\",INDIRECT(\"'\"&F1514&\"'!\"&G1514))","v":""},{"$f":"IF(ISBLANK(INDIRECT(\"'\"&F1514&\"'!\"&H1514)),\"\",IFERROR(VLOOKUP(TEXT(INDIRECT(\"'\"&F1514&\"'!\"&H1514),\"0\"),Notes!$B$5:$C$100,2,FALSE),\"\"))","v":""},"2e","$K$27","$L$27"]
[8245,{"$f":"Menu!$F$29","v":"X"},{"$f":"Menu!$J$29","v":2020},{"$f":"IF(ISBLANK(INDIRECT(\"'\"&F1515&\"'!\"&G1515)),\"\",INDIRECT(\"'\"&F1515&\"'!\"&G1515))","v":""},{"$f":"IF(ISBLANK(INDIRECT(\"'\"&F1515&\"'!\"&H1515)),\"\",IFERROR(VLOOKUP(TEXT(INDIRECT(\"'\"&F1515&\"'!\"&H1515),\"0\"),Notes!$B$5:$C$100,2,FALSE),\"\"))","v":""},"2e","$M$27","$N$27"]
[8246,{"$f":"Menu!$F$29","v":"X"},{"$f":"Menu!$J$29","v":2020},{"$f":"IF(ISBLANK(INDIRECT(\"'\"&F1516&\"'!\"&G1516)),\"\",INDIRECT(\"'\"&F1516&\"'!\"&G1516))","v":""},{"$f":"IF(ISBLANK(INDIRECT(\"'\"&F1516&\"'!\"&H1516)),\"\",IFERROR(VLOOKUP(TEXT(INDIRECT(\"'\"&F1516&\"'!\"&H1516),\"0\"),Notes!$B$5:$C$100,2,FALSE),\"\"))","v":""},"2e","$O$27","$P$27"]
[8247,{"$f":"Menu!$F$29","v":"X"},{"$f":"Menu!$J$29","v":2020},{"$f":"IF(ISBLANK(INDIRECT(\"'\"&F1517&\"'!\"&G1517)),\"\",INDIRECT(\"'\"&F1517&\"'!\"&G1517))","v":""},{"$f":"IF(ISBLANK(INDIRECT(\"'\"&F1517&\"'!\"&H1517)),\"\",IFERROR(VLOOKUP(TEXT(INDIRECT(\"'\"&F1517&\"'!\"&H1517),\"0\"),Notes!$B$5:$C$100,2,FALSE),\"\"))","v":""},"2e","$Q$27","$R$27"]
[8248,{"$f":"Menu!$F$29","v":"X"},{"$f":"Menu!$J$29","v":2020},{"$f":"IF(ISBLANK(INDIRECT(\"'\"&F1518&\"'!\"&G1518)),\"\",INDIRECT(\"'\"&F1518&\"'!\"&G1518))","v":""},{"$f":"IF(ISBLANK(INDIRECT(\"'\"&F1518&\"'!\"&H1518)),\"\",IFERROR(VLOOKUP(TEXT(INDIRECT(\"'\"&F1518&\"'!\"&H1518),\"0\"),Notes!$B$5:$C$100,2,FALSE),\"\"))","v":""},"2e","$S$27","$T$27"]
[8249,{"$f":"Menu!$F$29","v":"X"},{"$f":"Menu!$J$29","v":2020},{"$f":"IF(ISBLANK(INDIRECT(\"'\"&F1519&\"'!\"&G1519)),\"\",INDIRECT(\"'\"&F1519&\"'!\"&G1519))","v":""},{"$f":"IF(ISBLANK(INDIRECT(\"'\"&F1519&\"'!\"&H1519)),\"\",IFERROR(VLOOKUP(TEXT(INDIRECT(\"'\"&F1519&\"'!\"&H1519),\"0\"),Notes!$B$5:$C$100,2,FALSE),\"\"))","v":""},"2e","$U$27","$V$27"]
[8250,{"$f":"Menu!$F$29","v":"X"},{"$f":"Menu!$J$29","v":2020},{"$f":"IF(ISBLANK(INDIRECT(\"'\"&F1520&\"'!\"&G1520)),\"\",INDIRECT(\"'\"&F1520&\"'!\"&G1520))","v":""},{"$f":"IF(ISBLANK(INDIRECT(\"'\"&F1520&\"'!\"&H1520)),\"\",IFERROR(VLOOKUP(TEXT(INDIRECT(\"'\"&F1520&\"'!\"&H1520),\"0\"),Notes!$B$5:$C$100,2,FALSE),\"\"))","v":""},"2e","$W$27","$X$27"]
[8251,{"$f":"Menu!$F$29","v":"X"},{"$f":"Menu!$J$29","v":2020},{"$f":"IF(ISBLANK(INDIRECT(\"'\"&F1521&\"'!\"&G1521)),\"\",INDIRECT(\"'\"&F1521&\"'!\"&G1521))","v":""},{"$f":"IF(ISBLANK(INDIRECT(\"'\"&F1521&\"'!\"&H1521)),\"\",IFERROR(VLOOKUP(TEXT(INDIRECT(\"'\"&F1521&\"'!\"&H1521),\"0\"),Notes!$B$5:$C$100,2,FALSE),\"\"))","v":""},"2e","$Y$27","$Z$27"]
[8252,{"$f":"Menu!$F$29","v":"X"},{"$f":"Menu!$J$29","v":2020},{"$f":"IF(ISBLANK(INDIRECT(\"'\"&F1522&\"'!\"&G1522)),\"\",INDIRECT(\"'\"&F1522&\"'!\"&G1522))","v":""},{"$f":"IF(ISBLANK(INDIRECT(\"'\"&F1522&\"'!\"&H1522)),\"\",IFERROR(VLOOKUP(TEXT(INDIRECT(\"'\"&F1522&\"'!\"&H1522),\"0\"),Notes!$B$5:$C$100,2,FALSE),\"\"))","v":""},"2e","$AA$27","$AB$27"]
[8253,{"$f":"Menu!$F$29","v":"X"},{"$f":"Menu!$J$29","v":2020},{"$f":"IF(ISBLANK(INDIRECT(\"'\"&F1523&\"'!\"&G1523)),\"\",INDIRECT(\"'\"&F1523&\"'!\"&G1523))","v":""},{"$f":"IF(ISBLANK(INDIRECT(\"'\"&F1523&\"'!\"&H1523)),\"\",IFERROR(VLOOKUP(TEXT(INDIRECT(\"'\"&F1523&\"'!\"&H1523),\"0\"),Notes!$B$5:$C$100,2,FALSE),\"\"))","v":""},"2e","$AC$27","$AD$27"]
[8254,{"$f":"Menu!$F$29","v":"X"},{"$f":"Menu!$J$29","v":2020},{"$f":"IF(ISBLANK(INDIRECT(\"'\"&F1524&\"'!\"&G1524)),\"\",INDIRECT(\"'\"&F1524&\"'!\"&G1524))","v":""},{"$f":"IF(ISBLANK(INDIRECT(\"'\"&F1524&\"'!\"&H1524)),\"\",IFERROR(VLOOKUP(TEXT(INDIRECT(\"'\"&F1524&\"'!\"&H1524),\"0\"),Notes!$B$5:$C$100,2,FALSE),\"\"))","v":""},"2e","$AE$27","$AF$27"]
[8255,{"$f":"Menu!$F$29","v":"X"},{"$f":"Menu!$J$29","v":2020},{"$f":"IF(ISBLANK(INDIRECT(\"'\"&F1525&\"'!\"&G1525)),\"\",INDIRECT(\"'\"&F1525&\"'!\"&G1525))","v":""},{"$f":"IF(ISBLANK(INDIRECT(\"'\"&F1525&\"'!\"&H1525)),\"\",IFERROR(VLOOKUP(TEXT(INDIRECT(\"'\"&F1525&\"'!\"&H1525),\"0\"),Notes!$B$5:$C$100,2,FALSE),\"\"))","v":""},"2e","$AG$27","$AH$27"]
[8256,{"$f":"Menu!$F$29","v":"X"},{"$f":"Menu!$J$29","v":2020},{"$f":"IF(ISBLANK(INDIRECT(\"'\"&F1526&\"'!\"&G1526)),\"\",INDIRECT(\"'\"&F1526&\"'!\"&G1526))","v":""},{"$f":"IF(ISBLANK(INDIRECT(\"'\"&F1526&\"'!\"&H1526)),\"\",IFERROR(VLOOKUP(TEXT(INDIRECT(\"'\"&F1526&\"'!\"&H1526),\"0\"),Notes!$B$5:$C$100,2,FALSE),\"\"))","v":""},"2e","$AI$27","$AJ$27"]
[8257,{"$f":"Menu!$F$29","v":"X"},{"$f":"Menu!$J$29","v":2020},{"$f":"IF(ISBLANK(INDIRECT(\"'\"&F1527&\"'!\"&G1527)),\"\",INDIRECT(\"'\"&F1527&\"'!\"&G1527))","v":""},{"$f":"IF(ISBLANK(INDIRECT(\"'\"&F1527&\"'!\"&H1527)),\"\",IFERROR(VLOOKUP(TEXT(INDIRECT(\"'\"&F1527&\"'!\"&H1527),\"0\"),Notes!$B$5:$C$100,2,FALSE),\"\"))","v":""},"2e","$AK$27","$AL$27"]
[8258,{"$f":"Menu!$F$29","v":"X"},{"$f":"Menu!$J$29","v":2020},{"$f":"IF(ISBLANK(INDIRECT(\"'\"&F1528&\"'!\"&G1528)),\"\",INDIRECT(\"'\"&F1528&\"'!\"&G1528))","v":""},{"$f":"IF(ISBLANK(INDIRECT(\"'\"&F1528&\"'!\"&H1528)),\"\",IFERROR(VLOOKUP(TEXT(INDIRECT(\"'\"&F1528&\"'!\"&H1528),\"0\"),Notes!$B$5:$C$100,2,FALSE),\"\"))","v":""},"2e","$AM$27","$AN$27"]
[8259,{"$f":"Menu!$F$29","v":"X"},{"$f":"Menu!$J$29","v":2020},{"$f":"IF(ISBLANK(INDIRECT(\"'\"&F1529&\"'!\"&G1529)),\"\",INDIRECT(\"'\"&F1529&\"'!\"&G1529))","v":""},{"$f":"IF(ISBLANK(INDIRECT(\"'\"&F1529&\"'!\"&H1529)),\"\",IFERROR(VLOOKUP(TEXT(INDIRECT(\"'\"&F1529&\"'!\"&H1529),\"0\"),Notes!$B$5:$C$100,2,FALSE),\"\"))","v":""},"2e","$AO$27","$AP$27"]
[8260,{"$f":"Menu!$F$29","v":"X"},{"$f":"Menu!$J$29","v":2020},{"$f":"IF(ISBLANK(INDIRECT(\"'\"&F1530&\"'!\"&G1530)),\"\",INDIRECT(\"'\"&F1530&\"'!\"&G1530))","v":""},{"$f":"IF(ISBLANK(INDIRECT(\"'\"&F1530&\"'!\"&H1530)),\"\",IFERROR(VLOOKUP(TEXT(INDIRECT(\"'\"&F1530&\"'!\"&H1530),\"0\"),Notes!$B$5:$C$100,2,FALSE),\"\"))","v":""},"2e","$AQ$27","$AR$27"]
[8261,{"$f":"Menu!$F$29","v":"X"},{"$f":"Menu!$J$29","v":2020},{"$f":"IF(ISBLANK(INDIRECT(\"'\"&F1531&\"'!\"&G1531)),\"\",INDIRECT(\"'\"&F1531&\"'!\"&G1531))","v":""},{"$f":"IF(ISBLANK(INDIRECT(\"'\"&F1531&\"'!\"&H1531)),\"\",IFERROR(VLOOKUP(TEXT(INDIRECT(\"'\"&F1531&\"'!\"&H1531),\"0\"),Notes!$B$5:$C$100,2,FALSE),\"\"))","v":""},"2e","$AS$27","$AT$27"]
[8262,{"$f":"Menu!$F$29","v":"X"},{"$f":"Menu!$J$29","v":2020},{"$f":"IF(ISBLANK(INDIRECT(\"'\"&F1532&\"'!\"&G1532)),\"\",INDIRECT(\"'\"&F1532&\"'!\"&G1532))","v":""},{"$f":"IF(ISBLANK(INDIRECT(\"'\"&F1532&\"'!\"&H1532)),\"\",IFERROR(VLOOKUP(TEXT(INDIRECT(\"'\"&F1532&\"'!\"&H1532),\"0\"),Notes!$B$5:$C$100,2,FALSE),\"\"))","v":""},"2e","$AU$27","$AV$27"]
[8263,{"$f":"Menu!$F$29","v":"X"},{"$f":"Menu!$J$29","v":2020},{"$f":"IF(ISBLANK(INDIRECT(\"'\"&F1533&\"'!\"&G1533)),\"\",INDIRECT(\"'\"&F1533&\"'!\"&G1533))","v":""},{"$f":"IF(ISBLANK(INDIRECT(\"'\"&F1533&\"'!\"&H1533)),\"\",IFERROR(VLOOKUP(TEXT(INDIRECT(\"'\"&F1533&\"'!\"&H1533),\"0\"),Notes!$B$5:$C$100,2,FALSE),\"\"))","v":""},"2e","$AW$27","$AX$27"]
[8264,{"$f":"Menu!$F$29","v":"X"},{"$f":"Menu!$J$29","v":2020},{"$f":"IF(ISBLANK(INDIRECT(\"'\"&F1534&\"'!\"&G1534)),\"\",INDIRECT(\"'\"&F1534&\"'!\"&G1534))","v":""},{"$f":"IF(ISBLANK(INDIRECT(\"'\"&F1534&\"'!\"&H1534)),\"\",IFERROR(VLOOKUP(TEXT(INDIRECT(\"'\"&F1534&\"'!\"&H1534),\"0\"),Notes!$B$5:$C$100,2,FALSE),\"\"))","v":""},"2e","$AY$27","$AZ$27"]
[8265,{"$f":"Menu!$F$29","v":"X"},{"$f":"Menu!$J$29","v":2020},{"$f":"IF(ISBLANK(INDIRECT(\"'\"&F1535&\"'!\"&G1535)),\"\",INDIRECT(\"'\"&F1535&\"'!\"&G1535))","v":""},{"$f":"IF(ISBLANK(INDIRECT(\"'\"&F1535&\"'!\"&H1535)),\"\",IFERROR(VLOOKUP(TEXT(INDIRECT(\"'\"&F1535&\"'!\"&H1535),\"0\"),Notes!$B$5:$C$100,2,FALSE),\"\"))","v":""},"2e","$BA$27","$BB$27"]
[8266,{"$f":"Menu!$F$29","v":"X"},{"$f":"Menu!$J$29","v":2020},{"$f":"IF(ISBLANK(INDIRECT(\"'\"&F1536&\"'!\"&G1536)),\"\",INDIRECT(\"'\"&F1536&\"'!\"&G1536))","v":""},{"$f":"IF(ISBLANK(INDIRECT(\"'\"&F1536&\"'!\"&H1536)),\"\",IFERROR(VLOOKUP(TEXT(INDIRECT(\"'\"&F1536&\"'!\"&H1536),\"0\"),Notes!$B$5:$C$100,2,FALSE),\"\"))","v":""},"2e","$BC$27","$BD$27"]
[8267,{"$f":"Menu!$F$29","v":"X"},{"$f":"Menu!$J$29","v":2020},{"$f":"IF(ISBLANK(INDIRECT(\"'\"&F1537&\"'!\"&G1537)),\"\",INDIRECT(\"'\"&F1537&\"'!\"&G1537))","v":""},{"$f":"IF(ISBLANK(INDIRECT(\"'\"&F1537&\"'!\"&H1537)),\"\",IFERROR(VLOOKUP(TEXT(INDIRECT(\"'\"&F1537&\"'!\"&H1537),\"0\"),Notes!$B$5:$C$100,2,FALSE),\"\"))","v":""},"2e","$BE$27","$BF$27"]
[8268,{"$f":"Menu!$F$29","v":"X"},{"$f":"Menu!$J$29","v":2020},{"$f":"IF(ISBLANK(INDIRECT(\"'\"&F1538&\"'!\"&G1538)),\"\",INDIRECT(\"'\"&F1538&\"'!\"&G1538))","v":""},{"$f":"IF(ISBLANK(INDIRECT(\"'\"&F1538&\"'!\"&H1538)),\"\",IFERROR(VLOOKUP(TEXT(INDIRECT(\"'\"&F1538&\"'!\"&H1538),\"0\"),Notes!$B$5:$C$100,2,FALSE),\"\"))","v":""},"2e","$BG$27",{"$f":"IF(LEN(TRIM(MID(G1538,4,10)))-LEN(SUBSTITUTE(TRIM(MID(G1538,4,10)),\"$\",\"\"))=0,\"$\"&CHAR(CODE(MID(G1538,2,1))+1)&\"$\"&TRIM(MID(G1538,4,10)),\"$\"&MID(G1538,2,1)&CHAR(CODE(MID(G1538,3,1))+1)&\"$\"&TRIM(MID(G1538,5,11)))","v":"$BH$27"}]
[8269,{"$f":"Menu!$F$29","v":"X"},{"$f":"Menu!$J$29","v":2020},{"$f":"IF(ISBLANK(INDIRECT(\"'\"&F1539&\"'!\"&G1539)),\"\",INDIRECT(\"'\"&F1539&\"'!\"&G1539))","v":""},{"$f":"IF(ISBLANK(INDIRECT(\"'\"&F1539&\"'!\"&H1539)),\"\",IFERROR(VLOOKUP(TEXT(INDIRECT(\"'\"&F1539&\"'!\"&H1539),\"0\"),Notes!$B$5:$C$100,2,FALSE),\"\"))","v":""},"2e","$BI$27","$BJ$27"]
[8270,{"$f":"Menu!$F$29","v":"X"},{"$f":"Menu!$J$29","v":2020},{"$f":"IF(ISBLANK(INDIRECT(\"'\"&F1540&\"'!\"&G1540)),\"\",INDIRECT(\"'\"&F1540&\"'!\"&G1540))","v":""},{"$f":"IF(ISBLANK(INDIRECT(\"'\"&F1540&\"'!\"&H1540)),\"\",IFERROR(VLOOKUP(TEXT(INDIRECT(\"'\"&F1540&\"'!\"&H1540),\"0\"),Notes!$B$5:$C$100,2,FALSE),\"\"))","v":""},"2e","$BK$27","$BL$27"]
[8271,{"$f":"Menu!$F$29","v":"X"},{"$f":"Menu!$J$29","v":2020},{"$f":"IF(ISBLANK(INDIRECT(\"'\"&F1541&\"'!\"&G1541)),\"\",INDIRECT(\"'\"&F1541&\"'!\"&G1541))","v":""},{"$f":"IF(ISBLANK(INDIRECT(\"'\"&F1541&\"'!\"&H1541)),\"\",IFERROR(VLOOKUP(TEXT(INDIRECT(\"'\"&F1541&\"'!\"&H1541),\"0\"),Notes!$B$5:$C$100,2,FALSE),\"\"))","v":""},"2e","$E$16","$F$16"]
[8272,{"$f":"Menu!$F$29","v":"X"},{"$f":"Menu!$J$29","v":2020},{"$f":"IF(ISBLANK(INDIRECT(\"'\"&F1542&\"'!\"&G1542)),\"\",INDIRECT(\"'\"&F1542&\"'!\"&G1542))","v":""},{"$f":"IF(ISBLANK(INDIRECT(\"'\"&F1542&\"'!\"&H1542)),\"\",IFERROR(VLOOKUP(TEXT(INDIRECT(\"'\"&F1542&\"'!\"&H1542),\"0\"),Notes!$B$5:$C$100,2,FALSE),\"\"))","v":""},"2e","$G$16","$H$16"]
[8273,{"$f":"Menu!$F$29","v":"X"},{"$f":"Menu!$J$29","v":2020},{"$f":"IF(ISBLANK(INDIRECT(\"'\"&F1543&\"'!\"&G1543)),\"\",INDIRECT(\"'\"&F1543&\"'!\"&G1543))","v":""},{"$f":"IF(ISBLANK(INDIRECT(\"'\"&F1543&\"'!\"&H1543)),\"\",IFERROR(VLOOKUP(TEXT(INDIRECT(\"'\"&F1543&\"'!\"&H1543),\"0\"),Notes!$B$5:$C$100,2,FALSE),\"\"))","v":""},"2e","$I$16","$J$16"]
[8274,{"$f":"Menu!$F$29","v":"X"},{"$f":"Menu!$J$29","v":2020},{"$f":"IF(ISBLANK(INDIRECT(\"'\"&F1544&\"'!\"&G1544)),\"\",INDIRECT(\"'\"&F1544&\"'!\"&G1544))","v":""},{"$f":"IF(ISBLANK(INDIRECT(\"'\"&F1544&\"'!\"&H1544)),\"\",IFERROR(VLOOKUP(TEXT(INDIRECT(\"'\"&F1544&\"'!\"&H1544),\"0\"),Notes!$B$5:$C$100,2,FALSE),\"\"))","v":""},"2e","$K$16","$L$16"]
[8275,{"$f":"Menu!$F$29","v":"X"},{"$f":"Menu!$J$29","v":2020},{"$f":"IF(ISBLANK(INDIRECT(\"'\"&F1545&\"'!\"&G1545)),\"\",INDIRECT(\"'\"&F1545&\"'!\"&G1545))","v":""},{"$f":"IF(ISBLANK(INDIRECT(\"'\"&F1545&\"'!\"&H1545)),\"\",IFERROR(VLOOKUP(TEXT(INDIRECT(\"'\"&F1545&\"'!\"&H1545),\"0\"),Notes!$B$5:$C$100,2,FALSE),\"\"))","v":""},"2e","$M$16","$N$16"]
[8276,{"$f":"Menu!$F$29","v":"X"},{"$f":"Menu!$J$29","v":2020},{"$f":"IF(ISBLANK(INDIRECT(\"'\"&F1546&\"'!\"&G1546)),\"\",INDIRECT(\"'\"&F1546&\"'!\"&G1546))","v":""},{"$f":"IF(ISBLANK(INDIRECT(\"'\"&F1546&\"'!\"&H1546)),\"\",IFERROR(VLOOKUP(TEXT(INDIRECT(\"'\"&F1546&\"'!\"&H1546),\"0\"),Notes!$B$5:$C$100,2,FALSE),\"\"))","v":""},"2e","$O$16","$P$16"]
[8277,{"$f":"Menu!$F$29","v":"X"},{"$f":"Menu!$J$29","v":2020},{"$f":"IF(ISBLANK(INDIRECT(\"'\"&F1547&\"'!\"&G1547)),\"\",INDIRECT(\"'\"&F1547&\"'!\"&G1547))","v":""},{"$f":"IF(ISBLANK(INDIRECT(\"'\"&F1547&\"'!\"&H1547)),\"\",IFERROR(VLOOKUP(TEXT(INDIRECT(\"'\"&F1547&\"'!\"&H1547),\"0\"),Notes!$B$5:$C$100,2,FALSE),\"\"))","v":""},"2e","$Q$16","$R$16"]
[8278,{"$f":"Menu!$F$29","v":"X"},{"$f":"Menu!$J$29","v":2020},{"$f":"IF(ISBLANK(INDIRECT(\"'\"&F1548&\"'!\"&G1548)),\"\",INDIRECT(\"'\"&F1548&\"'!\"&G1548))","v":""},{"$f":"IF(ISBLANK(INDIRECT(\"'\"&F1548&\"'!\"&H1548)),\"\",IFERROR(VLOOKUP(TEXT(INDIRECT(\"'\"&F1548&\"'!\"&H1548),\"0\"),Notes!$B$5:$C$100,2,FALSE),\"\"))","v":""},"2e","$S$16","$T$16"]
[8279,{"$f":"Menu!$F$29","v":"X"},{"$f":"Menu!$J$29","v":2020},{"$f":"IF(ISBLANK(INDIRECT(\"'\"&F1549&\"'!\"&G1549)),\"\",INDIRECT(\"'\"&F1549&\"'!\"&G1549))","v":""},{"$f":"IF(ISBLANK(INDIRECT(\"'\"&F1549&\"'!\"&H1549)),\"\",IFERROR(VLOOKUP(TEXT(INDIRECT(\"'\"&F1549&\"'!\"&H1549),\"0\"),Notes!$B$5:$C$100,2,FALSE),\"\"))","v":""},"2e","$U$16","$V$16"]
[8280,{"$f":"Menu!$F$29","v":"X"},{"$f":"Menu!$J$29","v":2020},{"$f":"IF(ISBLANK(INDIRECT(\"'\"&F1550&\"'!\"&G1550)),\"\",INDIRECT(\"'\"&F1550&\"'!\"&G1550))","v":""},{"$f":"IF(ISBLANK(INDIRECT(\"'\"&F1550&\"'!\"&H1550)),\"\",IFERROR(VLOOKUP(TEXT(INDIRECT(\"'\"&F1550&\"'!\"&H1550),\"0\"),Notes!$B$5:$C$100,2,FALSE),\"\"))","v":""},"2e","$W$16","$X$16"]
[8281,{"$f":"Menu!$F$29","v":"X"},{"$f":"Menu!$J$29","v":2020},{"$f":"IF(ISBLANK(INDIRECT(\"'\"&F1551&\"'!\"&G1551)),\"\",INDIRECT(\"'\"&F1551&\"'!\"&G1551))","v":""},{"$f":"IF(ISBLANK(INDIRECT(\"'\"&F1551&\"'!\"&H1551)),\"\",IFERROR(VLOOKUP(TEXT(INDIRECT(\"'\"&F1551&\"'!\"&H1551),\"0\"),Notes!$B$5:$C$100,2,FALSE),\"\"))","v":""},"2e","$Y$16","$Z$16"]
[8282,{"$f":"Menu!$F$29","v":"X"},{"$f":"Menu!$J$29","v":2020},{"$f":"IF(ISBLANK(INDIRECT(\"'\"&F1552&\"'!\"&G1552)),\"\",INDIRECT(\"'\"&F1552&\"'!\"&G1552))","v":""},{"$f":"IF(ISBLANK(INDIRECT(\"'\"&F1552&\"'!\"&H1552)),\"\",IFERROR(VLOOKUP(TEXT(INDIRECT(\"'\"&F1552&\"'!\"&H1552),\"0\"),Notes!$B$5:$C$100,2,FALSE),\"\"))","v":""},"2e","$AA$16","$AB$16"]
[8283,{"$f":"Menu!$F$29","v":"X"},{"$f":"Menu!$J$29","v":2020},{"$f":"IF(ISBLANK(INDIRECT(\"'\"&F1553&\"'!\"&G1553)),\"\",INDIRECT(\"'\"&F1553&\"'!\"&G1553))","v":""},{"$f":"IF(ISBLANK(INDIRECT(\"'\"&F1553&\"'!\"&H1553)),\"\",IFERROR(VLOOKUP(TEXT(INDIRECT(\"'\"&F1553&\"'!\"&H1553),\"0\"),Notes!$B$5:$C$100,2,FALSE),\"\"))","v":""},"2e","$AC$16","$AD$16"]
[8284,{"$f":"Menu!$F$29","v":"X"},{"$f":"Menu!$J$29","v":2020},{"$f":"IF(ISBLANK(INDIRECT(\"'\"&F1554&\"'!\"&G1554)),\"\",INDIRECT(\"'\"&F1554&\"'!\"&G1554))","v":""},{"$f":"IF(ISBLANK(INDIRECT(\"'\"&F1554&\"'!\"&H1554)),\"\",IFERROR(VLOOKUP(TEXT(INDIRECT(\"'\"&F1554&\"'!\"&H1554),\"0\"),Notes!$B$5:$C$100,2,FALSE),\"\"))","v":""},"2e","$AE$16","$AF$16"]
[8285,{"$f":"Menu!$F$29","v":"X"},{"$f":"Menu!$J$29","v":2020},{"$f":"IF(ISBLANK(INDIRECT(\"'\"&F1555&\"'!\"&G1555)),\"\",INDIRECT(\"'\"&F1555&\"'!\"&G1555))","v":""},{"$f":"IF(ISBLANK(INDIRECT(\"'\"&F1555&\"'!\"&H1555)),\"\",IFERROR(VLOOKUP(TEXT(INDIRECT(\"'\"&F1555&\"'!\"&H1555),\"0\"),Notes!$B$5:$C$100,2,FALSE),\"\"))","v":""},"2e","$AG$16","$AH$16"]
[8286,{"$f":"Menu!$F$29","v":"X"},{"$f":"Menu!$J$29","v":2020},{"$f":"IF(ISBLANK(INDIRECT(\"'\"&F1556&\"'!\"&G1556)),\"\",INDIRECT(\"'\"&F1556&\"'!\"&G1556))","v":""},{"$f":"IF(ISBLANK(INDIRECT(\"'\"&F1556&\"'!\"&H1556)),\"\",IFERROR(VLOOKUP(TEXT(INDIRECT(\"'\"&F1556&\"'!\"&H1556),\"0\"),Notes!$B$5:$C$100,2,FALSE),\"\"))","v":""},"2e","$AI$16","$AJ$16"]
[8287,{"$f":"Menu!$F$29","v":"X"},{"$f":"Menu!$J$29","v":2020},{"$f":"IF(ISBLANK(INDIRECT(\"'\"&F1557&\"'!\"&G1557)),\"\",INDIRECT(\"'\"&F1557&\"'!\"&G1557))","v":""},{"$f":"IF(ISBLANK(INDIRECT(\"'\"&F1557&\"'!\"&H1557)),\"\",IFERROR(VLOOKUP(TEXT(INDIRECT(\"'\"&F1557&\"'!\"&H1557),\"0\"),Notes!$B$5:$C$100,2,FALSE),\"\"))","v":""},"2e","$AK$16","$AL$16"]
[8288,{"$f":"Menu!$F$29","v":"X"},{"$f":"Menu!$J$29","v":2020},{"$f":"IF(ISBLANK(INDIRECT(\"'\"&F1558&\"'!\"&G1558)),\"\",INDIRECT(\"'\"&F1558&\"'!\"&G1558))","v":""},{"$f":"IF(ISBLANK(INDIRECT(\"'\"&F1558&\"'!\"&H1558)),\"\",IFERROR(VLOOKUP(TEXT(INDIRECT(\"'\"&F1558&\"'!\"&H1558),\"0\"),Notes!$B$5:$C$100,2,FALSE),\"\"))","v":""},"2e","$AM$16","$AN$16"]
[8289,{"$f":"Menu!$F$29","v":"X"},{"$f":"Menu!$J$29","v":2020},{"$f":"IF(ISBLANK(INDIRECT(\"'\"&F1559&\"'!\"&G1559)),\"\",INDIRECT(\"'\"&F1559&\"'!\"&G1559))","v":""},{"$f":"IF(ISBLANK(INDIRECT(\"'\"&F1559&\"'!\"&H1559)),\"\",IFERROR(VLOOKUP(TEXT(INDIRECT(\"'\"&F1559&\"'!\"&H1559),\"0\"),Notes!$B$5:$C$100,2,FALSE),\"\"))","v":""},"2e","$AO$16","$AP$16"]
[8290,{"$f":"Menu!$F$29","v":"X"},{"$f":"Menu!$J$29","v":2020},{"$f":"IF(ISBLANK(INDIRECT(\"'\"&F1560&\"'!\"&G1560)),\"\",INDIRECT(\"'\"&F1560&\"'!\"&G1560))","v":""},{"$f":"IF(ISBLANK(INDIRECT(\"'\"&F1560&\"'!\"&H1560)),\"\",IFERROR(VLOOKUP(TEXT(INDIRECT(\"'\"&F1560&\"'!\"&H1560),\"0\"),Notes!$B$5:$C$100,2,FALSE),\"\"))","v":""},"2e","$AQ$16","$AR$16"]
[8291,{"$f":"Menu!$F$29","v":"X"},{"$f":"Menu!$J$29","v":2020},{"$f":"IF(ISBLANK(INDIRECT(\"'\"&F1561&\"'!\"&G1561)),\"\",INDIRECT(\"'\"&F1561&\"'!\"&G1561))","v":""},{"$f":"IF(ISBLANK(INDIRECT(\"'\"&F1561&\"'!\"&H1561)),\"\",IFERROR(VLOOKUP(TEXT(INDIRECT(\"'\"&F1561&\"'!\"&H1561),\"0\"),Notes!$B$5:$C$100,2,FALSE),\"\"))","v":""},"2e","$AS$16","$AT$16"]
[8292,{"$f":"Menu!$F$29","v":"X"},{"$f":"Menu!$J$29","v":2020},{"$f":"IF(ISBLANK(INDIRECT(\"'\"&F1562&\"'!\"&G1562)),\"\",INDIRECT(\"'\"&F1562&\"'!\"&G1562))","v":""},{"$f":"IF(ISBLANK(INDIRECT(\"'\"&F1562&\"'!\"&H1562)),\"\",IFERROR(VLOOKUP(TEXT(INDIRECT(\"'\"&F1562&\"'!\"&H1562),\"0\"),Notes!$B$5:$C$100,2,FALSE),\"\"))","v":""},"2e","$AU$16","$AV$16"]
[8293,{"$f":"Menu!$F$29","v":"X"},{"$f":"Menu!$J$29","v":2020},{"$f":"IF(ISBLANK(INDIRECT(\"'\"&F1563&\"'!\"&G1563)),\"\",INDIRECT(\"'\"&F1563&\"'!\"&G1563))","v":""},{"$f":"IF(ISBLANK(INDIRECT(\"'\"&F1563&\"'!\"&H1563)),\"\",IFERROR(VLOOKUP(TEXT(INDIRECT(\"'\"&F1563&\"'!\"&H1563),\"0\"),Notes!$B$5:$C$100,2,FALSE),\"\"))","v":""},"2e","$AW$16","$AX$16"]
[8294,{"$f":"Menu!$F$29","v":"X"},{"$f":"Menu!$J$29","v":2020},{"$f":"IF(ISBLANK(INDIRECT(\"'\"&F1564&\"'!\"&G1564)),\"\",INDIRECT(\"'\"&F1564&\"'!\"&G1564))","v":""},{"$f":"IF(ISBLANK(INDIRECT(\"'\"&F1564&\"'!\"&H1564)),\"\",IFERROR(VLOOKUP(TEXT(INDIRECT(\"'\"&F1564&\"'!\"&H1564),\"0\"),Notes!$B$5:$C$100,2,FALSE),\"\"))","v":""},"2e","$AY$16","$AZ$16"]
[8295,{"$f":"Menu!$F$29","v":"X"},{"$f":"Menu!$J$29","v":2020},{"$f":"IF(ISBLANK(INDIRECT(\"'\"&F1565&\"'!\"&G1565)),\"\",INDIRECT(\"'\"&F1565&\"'!\"&G1565))","v":""},{"$f":"IF(ISBLANK(INDIRECT(\"'\"&F1565&\"'!\"&H1565)),\"\",IFERROR(VLOOKUP(TEXT(INDIRECT(\"'\"&F1565&\"'!\"&H1565),\"0\"),Notes!$B$5:$C$100,2,FALSE),\"\"))","v":""},"2e","$BA$16","$BB$16"]
[8296,{"$f":"Menu!$F$29","v":"X"},{"$f":"Menu!$J$29","v":2020},{"$f":"IF(ISBLANK(INDIRECT(\"'\"&F1566&\"'!\"&G1566)),\"\",INDIRECT(\"'\"&F1566&\"'!\"&G1566))","v":""},{"$f":"IF(ISBLANK(INDIRECT(\"'\"&F1566&\"'!\"&H1566)),\"\",IFERROR(VLOOKUP(TEXT(INDIRECT(\"'\"&F1566&\"'!\"&H1566),\"0\"),Notes!$B$5:$C$100,2,FALSE),\"\"))","v":""},"2e","$BC$16","$BD$16"]
[8297,{"$f":"Menu!$F$29","v":"X"},{"$f":"Menu!$J$29","v":2020},{"$f":"IF(ISBLANK(INDIRECT(\"'\"&F1567&\"'!\"&G1567)),\"\",INDIRECT(\"'\"&F1567&\"'!\"&G1567))","v":""},{"$f":"IF(ISBLANK(INDIRECT(\"'\"&F1567&\"'!\"&H1567)),\"\",IFERROR(VLOOKUP(TEXT(INDIRECT(\"'\"&F1567&\"'!\"&H1567),\"0\"),Notes!$B$5:$C$100,2,FALSE),\"\"))","v":""},"2e","$BE$16","$BF$16"]
[8298,{"$f":"Menu!$F$29","v":"X"},{"$f":"Menu!$J$29","v":2020},{"$f":"IF(ISBLANK(INDIRECT(\"'\"&F1568&\"'!\"&G1568)),\"\",INDIRECT(\"'\"&F1568&\"'!\"&G1568))","v":""},{"$f":"IF(ISBLANK(INDIRECT(\"'\"&F1568&\"'!\"&H1568)),\"\",IFERROR(VLOOKUP(TEXT(INDIRECT(\"'\"&F1568&\"'!\"&H1568),\"0\"),Notes!$B$5:$C$100,2,FALSE),\"\"))","v":""},"2e","$BG$16","$BH$16"]
[8299,{"$f":"Menu!$F$29","v":"X"},{"$f":"Menu!$J$29","v":2020},{"$f":"IF(ISBLANK(INDIRECT(\"'\"&F1569&\"'!\"&G1569)),\"\",INDIRECT(\"'\"&F1569&\"'!\"&G1569))","v":""},{"$f":"IF(ISBLANK(INDIRECT(\"'\"&F1569&\"'!\"&H1569)),\"\",IFERROR(VLOOKUP(TEXT(INDIRECT(\"'\"&F1569&\"'!\"&H1569),\"0\"),Notes!$B$5:$C$100,2,FALSE),\"\"))","v":""},"2e","$BI$16","$BJ$16"]
[8300,{"$f":"Menu!$F$29","v":"X"},{"$f":"Menu!$J$29","v":2020},{"$f":"IF(ISBLANK(INDIRECT(\"'\"&F1570&\"'!\"&G1570)),\"\",INDIRECT(\"'\"&F1570&\"'!\"&G1570))","v":""},{"$f":"IF(ISBLANK(INDIRECT(\"'\"&F1570&\"'!\"&H1570)),\"\",IFERROR(VLOOKUP(TEXT(INDIRECT(\"'\"&F1570&\"'!\"&H1570),\"0\"),Notes!$B$5:$C$100,2,FALSE),\"\"))","v":""},"2e","$BK$16","$BL$16"]
[8331,{"$f":"Menu!$F$29","v":"X"},{"$f":"Menu!$J$29","v":2020},{"$f":"IF(ISBLANK(INDIRECT(\"'\"&F1571&\"'!\"&G1571)),\"\",INDIRECT(\"'\"&F1571&\"'!\"&G1571))","v":""},{"$f":"IF(ISBLANK(INDIRECT(\"'\"&F1571&\"'!\"&H1571)),\"\",IFERROR(VLOOKUP(TEXT(INDIRECT(\"'\"&F1571&\"'!\"&H1571),\"0\"),Notes!$B$5:$C$100,2,FALSE),\"\"))","v":""},"2e","$E$73","$F$73"]
[8332,{"$f":"Menu!$F$29","v":"X"},{"$f":"Menu!$J$29","v":2020},{"$f":"IF(ISBLANK(INDIRECT(\"'\"&F1572&\"'!\"&G1572)),\"\",INDIRECT(\"'\"&F1572&\"'!\"&G1572))","v":""},{"$f":"IF(ISBLANK(INDIRECT(\"'\"&F1572&\"'!\"&H1572)),\"\",IFERROR(VLOOKUP(TEXT(INDIRECT(\"'\"&F1572&\"'!\"&H1572),\"0\"),Notes!$B$5:$C$100,2,FALSE),\"\"))","v":""},"2e","$G$73","$H$73"]
[8333,{"$f":"Menu!$F$29","v":"X"},{"$f":"Menu!$J$29","v":2020},{"$f":"IF(ISBLANK(INDIRECT(\"'\"&F1573&\"'!\"&G1573)),\"\",INDIRECT(\"'\"&F1573&\"'!\"&G1573))","v":""},{"$f":"IF(ISBLANK(INDIRECT(\"'\"&F1573&\"'!\"&H1573)),\"\",IFERROR(VLOOKUP(TEXT(INDIRECT(\"'\"&F1573&\"'!\"&H1573),\"0\"),Notes!$B$5:$C$100,2,FALSE),\"\"))","v":""},"2e","$I$73","$J$73"]
[8334,{"$f":"Menu!$F$29","v":"X"},{"$f":"Menu!$J$29","v":2020},{"$f":"IF(ISBLANK(INDIRECT(\"'\"&F1574&\"'!\"&G1574)),\"\",INDIRECT(\"'\"&F1574&\"'!\"&G1574))","v":""},{"$f":"IF(ISBLANK(INDIRECT(\"'\"&F1574&\"'!\"&H1574)),\"\",IFERROR(VLOOKUP(TEXT(INDIRECT(\"'\"&F1574&\"'!\"&H1574),\"0\"),Notes!$B$5:$C$100,2,FALSE),\"\"))","v":""},"2e","$K$73","$L$73"]
[8335,{"$f":"Menu!$F$29","v":"X"},{"$f":"Menu!$J$29","v":2020},{"$f":"IF(ISBLANK(INDIRECT(\"'\"&F1575&\"'!\"&G1575)),\"\",INDIRECT(\"'\"&F1575&\"'!\"&G1575))","v":""},{"$f":"IF(ISBLANK(INDIRECT(\"'\"&F1575&\"'!\"&H1575)),\"\",IFERROR(VLOOKUP(TEXT(INDIRECT(\"'\"&F1575&\"'!\"&H1575),\"0\"),Notes!$B$5:$C$100,2,FALSE),\"\"))","v":""},"2e","$M$73","$N$73"]
[8336,{"$f":"Menu!$F$29","v":"X"},{"$f":"Menu!$J$29","v":2020},{"$f":"IF(ISBLANK(INDIRECT(\"'\"&F1576&\"'!\"&G1576)),\"\",INDIRECT(\"'\"&F1576&\"'!\"&G1576))","v":""},{"$f":"IF(ISBLANK(INDIRECT(\"'\"&F1576&\"'!\"&H1576)),\"\",IFERROR(VLOOKUP(TEXT(INDIRECT(\"'\"&F1576&\"'!\"&H1576),\"0\"),Notes!$B$5:$C$100,2,FALSE),\"\"))","v":""},"2e","$O$73","$P$73"]
[8337,{"$f":"Menu!$F$29","v":"X"},{"$f":"Menu!$J$29","v":2020},{"$f":"IF(ISBLANK(INDIRECT(\"'\"&F1577&\"'!\"&G1577)),\"\",INDIRECT(\"'\"&F1577&\"'!\"&G1577))","v":""},{"$f":"IF(ISBLANK(INDIRECT(\"'\"&F1577&\"'!\"&H1577)),\"\",IFERROR(VLOOKUP(TEXT(INDIRECT(\"'\"&F1577&\"'!\"&H1577),\"0\"),Notes!$B$5:$C$100,2,FALSE),\"\"))","v":""},"2e","$Q$73","$R$73"]
[8338,{"$f":"Menu!$F$29","v":"X"},{"$f":"Menu!$J$29","v":2020},{"$f":"IF(ISBLANK(INDIRECT(\"'\"&F1578&\"'!\"&G1578)),\"\",INDIRECT(\"'\"&F1578&\"'!\"&G1578))","v":""},{"$f":"IF(ISBLANK(INDIRECT(\"'\"&F1578&\"'!\"&H1578)),\"\",IFERROR(VLOOKUP(TEXT(INDIRECT(\"'\"&F1578&\"'!\"&H1578),\"0\"),Notes!$B$5:$C$100,2,FALSE),\"\"))","v":""},"2e","$S$73","$T$73"]
[8339,{"$f":"Menu!$F$29","v":"X"},{"$f":"Menu!$J$29","v":2020},{"$f":"IF(ISBLANK(INDIRECT(\"'\"&F1579&\"'!\"&G1579)),\"\",INDIRECT(\"'\"&F1579&\"'!\"&G1579))","v":""},{"$f":"IF(ISBLANK(INDIRECT(\"'\"&F1579&\"'!\"&H1579)),\"\",IFERROR(VLOOKUP(TEXT(INDIRECT(\"'\"&F1579&\"'!\"&H1579),\"0\"),Notes!$B$5:$C$100,2,FALSE),\"\"))","v":""},"2e","$U$73","$V$73"]
[8340,{"$f":"Menu!$F$29","v":"X"},{"$f":"Menu!$J$29","v":2020},{"$f":"IF(ISBLANK(INDIRECT(\"'\"&F1580&\"'!\"&G1580)),\"\",INDIRECT(\"'\"&F1580&\"'!\"&G1580))","v":""},{"$f":"IF(ISBLANK(INDIRECT(\"'\"&F1580&\"'!\"&H1580)),\"\",IFERROR(VLOOKUP(TEXT(INDIRECT(\"'\"&F1580&\"'!\"&H1580),\"0\"),Notes!$B$5:$C$100,2,FALSE),\"\"))","v":""},"2e","$W$73","$X$73"]
[8341,{"$f":"Menu!$F$29","v":"X"},{"$f":"Menu!$J$29","v":2020},{"$f":"IF(ISBLANK(INDIRECT(\"'\"&F1581&\"'!\"&G1581)),\"\",INDIRECT(\"'\"&F1581&\"'!\"&G1581))","v":""},{"$f":"IF(ISBLANK(INDIRECT(\"'\"&F1581&\"'!\"&H1581)),\"\",IFERROR(VLOOKUP(TEXT(INDIRECT(\"'\"&F1581&\"'!\"&H1581),\"0\"),Notes!$B$5:$C$100,2,FALSE),\"\"))","v":""},"2e","$Y$73","$Z$73"]
[8342,{"$f":"Menu!$F$29","v":"X"},{"$f":"Menu!$J$29","v":2020},{"$f":"IF(ISBLANK(INDIRECT(\"'\"&F1582&\"'!\"&G1582)),\"\",INDIRECT(\"'\"&F1582&\"'!\"&G1582))","v":""},{"$f":"IF(ISBLANK(INDIRECT(\"'\"&F1582&\"'!\"&H1582)),\"\",IFERROR(VLOOKUP(TEXT(INDIRECT(\"'\"&F1582&\"'!\"&H1582),\"0\"),Notes!$B$5:$C$100,2,FALSE),\"\"))","v":""},"2e","$AA$73","$AB$73"]
[8343,{"$f":"Menu!$F$29","v":"X"},{"$f":"Menu!$J$29","v":2020},{"$f":"IF(ISBLANK(INDIRECT(\"'\"&F1583&\"'!\"&G1583)),\"\",INDIRECT(\"'\"&F1583&\"'!\"&G1583))","v":""},{"$f":"IF(ISBLANK(INDIRECT(\"'\"&F1583&\"'!\"&H1583)),\"\",IFERROR(VLOOKUP(TEXT(INDIRECT(\"'\"&F1583&\"'!\"&H1583),\"0\"),Notes!$B$5:$C$100,2,FALSE),\"\"))","v":""},"2e","$AC$73","$AD$73"]
[8344,{"$f":"Menu!$F$29","v":"X"},{"$f":"Menu!$J$29","v":2020},{"$f":"IF(ISBLANK(INDIRECT(\"'\"&F1584&\"'!\"&G1584)),\"\",INDIRECT(\"'\"&F1584&\"'!\"&G1584))","v":""},{"$f":"IF(ISBLANK(INDIRECT(\"'\"&F1584&\"'!\"&H1584)),\"\",IFERROR(VLOOKUP(TEXT(INDIRECT(\"'\"&F1584&\"'!\"&H1584),\"0\"),Notes!$B$5:$C$100,2,FALSE),\"\"))","v":""},"2e","$AE$73","$AF$73"]
[8345,{"$f":"Menu!$F$29","v":"X"},{"$f":"Menu!$J$29","v":2020},{"$f":"IF(ISBLANK(INDIRECT(\"'\"&F1585&\"'!\"&G1585)),\"\",INDIRECT(\"'\"&F1585&\"'!\"&G1585))","v":""},{"$f":"IF(ISBLANK(INDIRECT(\"'\"&F1585&\"'!\"&H1585)),\"\",IFERROR(VLOOKUP(TEXT(INDIRECT(\"'\"&F1585&\"'!\"&H1585),\"0\"),Notes!$B$5:$C$100,2,FALSE),\"\"))","v":""},"2e","$AG$73","$AH$73"]
[8346,{"$f":"Menu!$F$29","v":"X"},{"$f":"Menu!$J$29","v":2020},{"$f":"IF(ISBLANK(INDIRECT(\"'\"&F1586&\"'!\"&G1586)),\"\",INDIRECT(\"'\"&F1586&\"'!\"&G1586))","v":""},{"$f":"IF(ISBLANK(INDIRECT(\"'\"&F1586&\"'!\"&H1586)),\"\",IFERROR(VLOOKUP(TEXT(INDIRECT(\"'\"&F1586&\"'!\"&H1586),\"0\"),Notes!$B$5:$C$100,2,FALSE),\"\"))","v":""},"2e","$AI$73","$AJ$73"]
[8347,{"$f":"Menu!$F$29","v":"X"},{"$f":"Menu!$J$29","v":2020},{"$f":"IF(ISBLANK(INDIRECT(\"'\"&F1587&\"'!\"&G1587)),\"\",INDIRECT(\"'\"&F1587&\"'!\"&G1587))","v":""},{"$f":"IF(ISBLANK(INDIRECT(\"'\"&F1587&\"'!\"&H1587)),\"\",IFERROR(VLOOKUP(TEXT(INDIRECT(\"'\"&F1587&\"'!\"&H1587),\"0\"),Notes!$B$5:$C$100,2,FALSE),\"\"))","v":""},"2e","$AK$73","$AL$73"]
[8348,{"$f":"Menu!$F$29","v":"X"},{"$f":"Menu!$J$29","v":2020},{"$f":"IF(ISBLANK(INDIRECT(\"'\"&F1588&\"'!\"&G1588)),\"\",INDIRECT(\"'\"&F1588&\"'!\"&G1588))","v":""},{"$f":"IF(ISBLANK(INDIRECT(\"'\"&F1588&\"'!\"&H1588)),\"\",IFERROR(VLOOKUP(TEXT(INDIRECT(\"'\"&F1588&\"'!\"&H1588),\"0\"),Notes!$B$5:$C$100,2,FALSE),\"\"))","v":""},"2e","$AM$73","$AN$73"]
[8349,{"$f":"Menu!$F$29","v":"X"},{"$f":"Menu!$J$29","v":2020},{"$f":"IF(ISBLANK(INDIRECT(\"'\"&F1589&\"'!\"&G1589)),\"\",INDIRECT(\"'\"&F1589&\"'!\"&G1589))","v":""},{"$f":"IF(ISBLANK(INDIRECT(\"'\"&F1589&\"'!\"&H1589)),\"\",IFERROR(VLOOKUP(TEXT(INDIRECT(\"'\"&F1589&\"'!\"&H1589),\"0\"),Notes!$B$5:$C$100,2,FALSE),\"\"))","v":""},"2e","$AO$73","$AP$73"]
[8350,{"$f":"Menu!$F$29","v":"X"},{"$f":"Menu!$J$29","v":2020},{"$f":"IF(ISBLANK(INDIRECT(\"'\"&F1590&\"'!\"&G1590)),\"\",INDIRECT(\"'\"&F1590&\"'!\"&G1590))","v":""},{"$f":"IF(ISBLANK(INDIRECT(\"'\"&F1590&\"'!\"&H1590)),\"\",IFERROR(VLOOKUP(TEXT(INDIRECT(\"'\"&F1590&\"'!\"&H1590),\"0\"),Notes!$B$5:$C$100,2,FALSE),\"\"))","v":""},"2e","$AQ$73","$AR$73"]
[8351,{"$f":"Menu!$F$29","v":"X"},{"$f":"Menu!$J$29","v":2020},{"$f":"IF(ISBLANK(INDIRECT(\"'\"&F1591&\"'!\"&G1591)),\"\",INDIRECT(\"'\"&F1591&\"'!\"&G1591))","v":""},{"$f":"IF(ISBLANK(INDIRECT(\"'\"&F1591&\"'!\"&H1591)),\"\",IFERROR(VLOOKUP(TEXT(INDIRECT(\"'\"&F1591&\"'!\"&H1591),\"0\"),Notes!$B$5:$C$100,2,FALSE),\"\"))","v":""},"2e","$AS$73","$AT$73"]
[8352,{"$f":"Menu!$F$29","v":"X"},{"$f":"Menu!$J$29","v":2020},{"$f":"IF(ISBLANK(INDIRECT(\"'\"&F1592&\"'!\"&G1592)),\"\",INDIRECT(\"'\"&F1592&\"'!\"&G1592))","v":""},{"$f":"IF(ISBLANK(INDIRECT(\"'\"&F1592&\"'!\"&H1592)),\"\",IFERROR(VLOOKUP(TEXT(INDIRECT(\"'\"&F1592&\"'!\"&H1592),\"0\"),Notes!$B$5:$C$100,2,FALSE),\"\"))","v":""},"2e","$AU$73","$AV$73"]
[8353,{"$f":"Menu!$F$29","v":"X"},{"$f":"Menu!$J$29","v":2020},{"$f":"IF(ISBLANK(INDIRECT(\"'\"&F1593&\"'!\"&G1593)),\"\",INDIRECT(\"'\"&F1593&\"'!\"&G1593))","v":""},{"$f":"IF(ISBLANK(INDIRECT(\"'\"&F1593&\"'!\"&H1593)),\"\",IFERROR(VLOOKUP(TEXT(INDIRECT(\"'\"&F1593&\"'!\"&H1593),\"0\"),Notes!$B$5:$C$100,2,FALSE),\"\"))","v":""},"2e","$AW$73","$AX$73"]
[8354,{"$f":"Menu!$F$29","v":"X"},{"$f":"Menu!$J$29","v":2020},{"$f":"IF(ISBLANK(INDIRECT(\"'\"&F1594&\"'!\"&G1594)),\"\",INDIRECT(\"'\"&F1594&\"'!\"&G1594))","v":""},{"$f":"IF(ISBLANK(INDIRECT(\"'\"&F1594&\"'!\"&H1594)),\"\",IFERROR(VLOOKUP(TEXT(INDIRECT(\"'\"&F1594&\"'!\"&H1594),\"0\"),Notes!$B$5:$C$100,2,FALSE),\"\"))","v":""},"2e","$AY$73","$AZ$73"]
[8355,{"$f":"Menu!$F$29","v":"X"},{"$f":"Menu!$J$29","v":2020},{"$f":"IF(ISBLANK(INDIRECT(\"'\"&F1595&\"'!\"&G1595)),\"\",INDIRECT(\"'\"&F1595&\"'!\"&G1595))","v":""},{"$f":"IF(ISBLANK(INDIRECT(\"'\"&F1595&\"'!\"&H1595)),\"\",IFERROR(VLOOKUP(TEXT(INDIRECT(\"'\"&F1595&\"'!\"&H1595),\"0\"),Notes!$B$5:$C$100,2,FALSE),\"\"))","v":""},"2e","$BA$73","$BB$73"]
[8356,{"$f":"Menu!$F$29","v":"X"},{"$f":"Menu!$J$29","v":2020},{"$f":"IF(ISBLANK(INDIRECT(\"'\"&F1596&\"'!\"&G1596)),\"\",INDIRECT(\"'\"&F1596&\"'!\"&G1596))","v":""},{"$f":"IF(ISBLANK(INDIRECT(\"'\"&F1596&\"'!\"&H1596)),\"\",IFERROR(VLOOKUP(TEXT(INDIRECT(\"'\"&F1596&\"'!\"&H1596),\"0\"),Notes!$B$5:$C$100,2,FALSE),\"\"))","v":""},"2e","$BC$73","$BD$73"]
[8357,{"$f":"Menu!$F$29","v":"X"},{"$f":"Menu!$J$29","v":2020},{"$f":"IF(ISBLANK(INDIRECT(\"'\"&F1597&\"'!\"&G1597)),\"\",INDIRECT(\"'\"&F1597&\"'!\"&G1597))","v":""},{"$f":"IF(ISBLANK(INDIRECT(\"'\"&F1597&\"'!\"&H1597)),\"\",IFERROR(VLOOKUP(TEXT(INDIRECT(\"'\"&F1597&\"'!\"&H1597),\"0\"),Notes!$B$5:$C$100,2,FALSE),\"\"))","v":""},"2e","$BE$73","$BF$73"]
[8358,{"$f":"Menu!$F$29","v":"X"},{"$f":"Menu!$J$29","v":2020},{"$f":"IF(ISBLANK(INDIRECT(\"'\"&F1598&\"'!\"&G1598)),\"\",INDIRECT(\"'\"&F1598&\"'!\"&G1598))","v":""},{"$f":"IF(ISBLANK(INDIRECT(\"'\"&F1598&\"'!\"&H1598)),\"\",IFERROR(VLOOKUP(TEXT(INDIRECT(\"'\"&F1598&\"'!\"&H1598),\"0\"),Notes!$B$5:$C$100,2,FALSE),\"\"))","v":""},"2e","$BG$73","$BH$73"]
[8359,{"$f":"Menu!$F$29","v":"X"},{"$f":"Menu!$J$29","v":2020},{"$f":"IF(ISBLANK(INDIRECT(\"'\"&F1599&\"'!\"&G1599)),\"\",INDIRECT(\"'\"&F1599&\"'!\"&G1599))","v":""},{"$f":"IF(ISBLANK(INDIRECT(\"'\"&F1599&\"'!\"&H1599)),\"\",IFERROR(VLOOKUP(TEXT(INDIRECT(\"'\"&F1599&\"'!\"&H1599),\"0\"),Notes!$B$5:$C$100,2,FALSE),\"\"))","v":""},"2e","$BI$73","$BJ$73"]
[8360,{"$f":"Menu!$F$29","v":"X"},{"$f":"Menu!$J$29","v":2020},{"$f":"IF(ISBLANK(INDIRECT(\"'\"&F1600&\"'!\"&G1600)),\"\",INDIRECT(\"'\"&F1600&\"'!\"&G1600))","v":""},{"$f":"IF(ISBLANK(INDIRECT(\"'\"&F1600&\"'!\"&H1600)),\"\",IFERROR(VLOOKUP(TEXT(INDIRECT(\"'\"&F1600&\"'!\"&H1600),\"0\"),Notes!$B$5:$C$100,2,FALSE),\"\"))","v":""},"2e","$BK$73","$BL$73"]
[8361,{"$f":"Menu!$F$29","v":"X"},{"$f":"Menu!$J$29","v":2020},{"$f":"IF(ISBLANK(INDIRECT(\"'\"&F1601&\"'!\"&G1601)),\"\",INDIRECT(\"'\"&F1601&\"'!\"&G1601))","v":""},{"$f":"IF(ISBLANK(INDIRECT(\"'\"&F1601&\"'!\"&H1601)),\"\",IFERROR(VLOOKUP(TEXT(INDIRECT(\"'\"&F1601&\"'!\"&H1601),\"0\"),Notes!$B$5:$C$100,2,FALSE),\"\"))","v":""},"2e","$E$74","$F$74"]
[8362,{"$f":"Menu!$F$29","v":"X"},{"$f":"Menu!$J$29","v":2020},{"$f":"IF(ISBLANK(INDIRECT(\"'\"&F1602&\"'!\"&G1602)),\"\",INDIRECT(\"'\"&F1602&\"'!\"&G1602))","v":""},{"$f":"IF(ISBLANK(INDIRECT(\"'\"&F1602&\"'!\"&H1602)),\"\",IFERROR(VLOOKUP(TEXT(INDIRECT(\"'\"&F1602&\"'!\"&H1602),\"0\"),Notes!$B$5:$C$100,2,FALSE),\"\"))","v":""},"2e","$G$74",{"$f":"IF(LEN(TRIM(MID(G1602,4,10)))-LEN(SUBSTITUTE(TRIM(MID(G1602,4,10)),\"$\",\"\"))=0,\"$\"&CHAR(CODE(MID(G1602,2,1))+1)&\"$\"&TRIM(MID(G1602,4,10)),\"$\"&MID(G1602,2,1)&CHAR(CODE(MID(G1602,3,1))+1)&\"$\"&TRIM(MID(G1602,5,11)))","v":"$H$74"}]
[8363,{"$f":"Menu!$F$29","v":"X"},{"$f":"Menu!$J$29","v":2020},{"$f":"IF(ISBLANK(INDIRECT(\"'\"&F1603&\"'!\"&G1603)),\"\",INDIRECT(\"'\"&F1603&\"'!\"&G1603))","v":""},{"$f":"IF(ISBLANK(INDIRECT(\"'\"&F1603&\"'!\"&H1603)),\"\",IFERROR(VLOOKUP(TEXT(INDIRECT(\"'\"&F1603&\"'!\"&H1603),\"0\"),Notes!$B$5:$C$100,2,FALSE),\"\"))","v":""},"2e","$I$74","$J$74"]
[8364,{"$f":"Menu!$F$29","v":"X"},{"$f":"Menu!$J$29","v":2020},{"$f":"IF(ISBLANK(INDIRECT(\"'\"&F1604&\"'!\"&G1604)),\"\",INDIRECT(\"'\"&F1604&\"'!\"&G1604))","v":""},{"$f":"IF(ISBLANK(INDIRECT(\"'\"&F1604&\"'!\"&H1604)),\"\",IFERROR(VLOOKUP(TEXT(INDIRECT(\"'\"&F1604&\"'!\"&H1604),\"0\"),Notes!$B$5:$C$100,2,FALSE),\"\"))","v":""},"2e","$K$74","$L$74"]
[8365,{"$f":"Menu!$F$29","v":"X"},{"$f":"Menu!$J$29","v":2020},{"$f":"IF(ISBLANK(INDIRECT(\"'\"&F1605&\"'!\"&G1605)),\"\",INDIRECT(\"'\"&F1605&\"'!\"&G1605))","v":""},{"$f":"IF(ISBLANK(INDIRECT(\"'\"&F1605&\"'!\"&H1605)),\"\",IFERROR(VLOOKUP(TEXT(INDIRECT(\"'\"&F1605&\"'!\"&H1605),\"0\"),Notes!$B$5:$C$100,2,FALSE),\"\"))","v":""},"2e","$M$74","$N$74"]
[8366,{"$f":"Menu!$F$29","v":"X"},{"$f":"Menu!$J$29","v":2020},{"$f":"IF(ISBLANK(INDIRECT(\"'\"&F1606&\"'!\"&G1606)),\"\",INDIRECT(\"'\"&F1606&\"'!\"&G1606))","v":""},{"$f":"IF(ISBLANK(INDIRECT(\"'\"&F1606&\"'!\"&H1606)),\"\",IFERROR(VLOOKUP(TEXT(INDIRECT(\"'\"&F1606&\"'!\"&H1606),\"0\"),Notes!$B$5:$C$100,2,FALSE),\"\"))","v":""},"2e","$O$74","$P$74"]
[8367,{"$f":"Menu!$F$29","v":"X"},{"$f":"Menu!$J$29","v":2020},{"$f":"IF(ISBLANK(INDIRECT(\"'\"&F1607&\"'!\"&G1607)),\"\",INDIRECT(\"'\"&F1607&\"'!\"&G1607))","v":""},{"$f":"IF(ISBLANK(INDIRECT(\"'\"&F1607&\"'!\"&H1607)),\"\",IFERROR(VLOOKUP(TEXT(INDIRECT(\"'\"&F1607&\"'!\"&H1607),\"0\"),Notes!$B$5:$C$100,2,FALSE),\"\"))","v":""},"2e","$Q$74","$R$74"]
[8368,{"$f":"Menu!$F$29","v":"X"},{"$f":"Menu!$J$29","v":2020},{"$f":"IF(ISBLANK(INDIRECT(\"'\"&F1608&\"'!\"&G1608)),\"\",INDIRECT(\"'\"&F1608&\"'!\"&G1608))","v":""},{"$f":"IF(ISBLANK(INDIRECT(\"'\"&F1608&\"'!\"&H1608)),\"\",IFERROR(VLOOKUP(TEXT(INDIRECT(\"'\"&F1608&\"'!\"&H1608),\"0\"),Notes!$B$5:$C$100,2,FALSE),\"\"))","v":""},"2e","$S$74","$T$74"]
[8369,{"$f":"Menu!$F$29","v":"X"},{"$f":"Menu!$J$29","v":2020},{"$f":"IF(ISBLANK(INDIRECT(\"'\"&F1609&\"'!\"&G1609)),\"\",INDIRECT(\"'\"&F1609&\"'!\"&G1609))","v":""},{"$f":"IF(ISBLANK(INDIRECT(\"'\"&F1609&\"'!\"&H1609)),\"\",IFERROR(VLOOKUP(TEXT(INDIRECT(\"'\"&F1609&\"'!\"&H1609),\"0\"),Notes!$B$5:$C$100,2,FALSE),\"\"))","v":""},"2e","$U$74","$V$74"]
[8370,{"$f":"Menu!$F$29","v":"X"},{"$f":"Menu!$J$29","v":2020},{"$f":"IF(ISBLANK(INDIRECT(\"'\"&F1610&\"'!\"&G1610)),\"\",INDIRECT(\"'\"&F1610&\"'!\"&G1610))","v":""},{"$f":"IF(ISBLANK(INDIRECT(\"'\"&F1610&\"'!\"&H1610)),\"\",IFERROR(VLOOKUP(TEXT(INDIRECT(\"'\"&F1610&\"'!\"&H1610),\"0\"),Notes!$B$5:$C$100,2,FALSE),\"\"))","v":""},"2e","$W$74","$X$74"]
[8371,{"$f":"Menu!$F$29","v":"X"},{"$f":"Menu!$J$29","v":2020},{"$f":"IF(ISBLANK(INDIRECT(\"'\"&F1611&\"'!\"&G1611)),\"\",INDIRECT(\"'\"&F1611&\"'!\"&G1611))","v":""},{"$f":"IF(ISBLANK(INDIRECT(\"'\"&F1611&\"'!\"&H1611)),\"\",IFERROR(VLOOKUP(TEXT(INDIRECT(\"'\"&F1611&\"'!\"&H1611),\"0\"),Notes!$B$5:$C$100,2,FALSE),\"\"))","v":""},"2e","$Y$74","$Z$74"]
[8372,{"$f":"Menu!$F$29","v":"X"},{"$f":"Menu!$J$29","v":2020},{"$f":"IF(ISBLANK(INDIRECT(\"'\"&F1612&\"'!\"&G1612)),\"\",INDIRECT(\"'\"&F1612&\"'!\"&G1612))","v":""},{"$f":"IF(ISBLANK(INDIRECT(\"'\"&F1612&\"'!\"&H1612)),\"\",IFERROR(VLOOKUP(TEXT(INDIRECT(\"'\"&F1612&\"'!\"&H1612),\"0\"),Notes!$B$5:$C$100,2,FALSE),\"\"))","v":""},"2e","$AA$74","$AB$74"]
[8373,{"$f":"Menu!$F$29","v":"X"},{"$f":"Menu!$J$29","v":2020},{"$f":"IF(ISBLANK(INDIRECT(\"'\"&F1613&\"'!\"&G1613)),\"\",INDIRECT(\"'\"&F1613&\"'!\"&G1613))","v":""},{"$f":"IF(ISBLANK(INDIRECT(\"'\"&F1613&\"'!\"&H1613)),\"\",IFERROR(VLOOKUP(TEXT(INDIRECT(\"'\"&F1613&\"'!\"&H1613),\"0\"),Notes!$B$5:$C$100,2,FALSE),\"\"))","v":""},"2e","$AC$74","$AD$74"]
[8374,{"$f":"Menu!$F$29","v":"X"},{"$f":"Menu!$J$29","v":2020},{"$f":"IF(ISBLANK(INDIRECT(\"'\"&F1614&\"'!\"&G1614)),\"\",INDIRECT(\"'\"&F1614&\"'!\"&G1614))","v":""},{"$f":"IF(ISBLANK(INDIRECT(\"'\"&F1614&\"'!\"&H1614)),\"\",IFERROR(VLOOKUP(TEXT(INDIRECT(\"'\"&F1614&\"'!\"&H1614),\"0\"),Notes!$B$5:$C$100,2,FALSE),\"\"))","v":""},"2e","$AE$74","$AF$74"]
[8375,{"$f":"Menu!$F$29","v":"X"},{"$f":"Menu!$J$29","v":2020},{"$f":"IF(ISBLANK(INDIRECT(\"'\"&F1615&\"'!\"&G1615)),\"\",INDIRECT(\"'\"&F1615&\"'!\"&G1615))","v":""},{"$f":"IF(ISBLANK(INDIRECT(\"'\"&F1615&\"'!\"&H1615)),\"\",IFERROR(VLOOKUP(TEXT(INDIRECT(\"'\"&F1615&\"'!\"&H1615),\"0\"),Notes!$B$5:$C$100,2,FALSE),\"\"))","v":""},"2e","$AG$74","$AH$74"]
[8376,{"$f":"Menu!$F$29","v":"X"},{"$f":"Menu!$J$29","v":2020},{"$f":"IF(ISBLANK(INDIRECT(\"'\"&F1616&\"'!\"&G1616)),\"\",INDIRECT(\"'\"&F1616&\"'!\"&G1616))","v":""},{"$f":"IF(ISBLANK(INDIRECT(\"'\"&F1616&\"'!\"&H1616)),\"\",IFERROR(VLOOKUP(TEXT(INDIRECT(\"'\"&F1616&\"'!\"&H1616),\"0\"),Notes!$B$5:$C$100,2,FALSE),\"\"))","v":""},"2e","$AI$74","$AJ$74"]
[8377,{"$f":"Menu!$F$29","v":"X"},{"$f":"Menu!$J$29","v":2020},{"$f":"IF(ISBLANK(INDIRECT(\"'\"&F1617&\"'!\"&G1617)),\"\",INDIRECT(\"'\"&F1617&\"'!\"&G1617))","v":""},{"$f":"IF(ISBLANK(INDIRECT(\"'\"&F1617&\"'!\"&H1617)),\"\",IFERROR(VLOOKUP(TEXT(INDIRECT(\"'\"&F1617&\"'!\"&H1617),\"0\"),Notes!$B$5:$C$100,2,FALSE),\"\"))","v":""},"2e","$AK$74","$AL$74"]
[8378,{"$f":"Menu!$F$29","v":"X"},{"$f":"Menu!$J$29","v":2020},{"$f":"IF(ISBLANK(INDIRECT(\"'\"&F1618&\"'!\"&G1618)),\"\",INDIRECT(\"'\"&F1618&\"'!\"&G1618))","v":""},{"$f":"IF(ISBLANK(INDIRECT(\"'\"&F1618&\"'!\"&H1618)),\"\",IFERROR(VLOOKUP(TEXT(INDIRECT(\"'\"&F1618&\"'!\"&H1618),\"0\"),Notes!$B$5:$C$100,2,FALSE),\"\"))","v":""},"2e","$AM$74","$AN$74"]
[8379,{"$f":"Menu!$F$29","v":"X"},{"$f":"Menu!$J$29","v":2020},{"$f":"IF(ISBLANK(INDIRECT(\"'\"&F1619&\"'!\"&G1619)),\"\",INDIRECT(\"'\"&F1619&\"'!\"&G1619))","v":""},{"$f":"IF(ISBLANK(INDIRECT(\"'\"&F1619&\"'!\"&H1619)),\"\",IFERROR(VLOOKUP(TEXT(INDIRECT(\"'\"&F1619&\"'!\"&H1619),\"0\"),Notes!$B$5:$C$100,2,FALSE),\"\"))","v":""},"2e","$AO$74","$AP$74"]
[8380,{"$f":"Menu!$F$29","v":"X"},{"$f":"Menu!$J$29","v":2020},{"$f":"IF(ISBLANK(INDIRECT(\"'\"&F1620&\"'!\"&G1620)),\"\",INDIRECT(\"'\"&F1620&\"'!\"&G1620))","v":""},{"$f":"IF(ISBLANK(INDIRECT(\"'\"&F1620&\"'!\"&H1620)),\"\",IFERROR(VLOOKUP(TEXT(INDIRECT(\"'\"&F1620&\"'!\"&H1620),\"0\"),Notes!$B$5:$C$100,2,FALSE),\"\"))","v":""},"2e","$AQ$74","$AR$74"]
[8381,{"$f":"Menu!$F$29","v":"X"},{"$f":"Menu!$J$29","v":2020},{"$f":"IF(ISBLANK(INDIRECT(\"'\"&F1621&\"'!\"&G1621)),\"\",INDIRECT(\"'\"&F1621&\"'!\"&G1621))","v":""},{"$f":"IF(ISBLANK(INDIRECT(\"'\"&F1621&\"'!\"&H1621)),\"\",IFERROR(VLOOKUP(TEXT(INDIRECT(\"'\"&F1621&\"'!\"&H1621),\"0\"),Notes!$B$5:$C$100,2,FALSE),\"\"))","v":""},"2e","$AS$74","$AT$74"]
[8382,{"$f":"Menu!$F$29","v":"X"},{"$f":"Menu!$J$29","v":2020},{"$f":"IF(ISBLANK(INDIRECT(\"'\"&F1622&\"'!\"&G1622)),\"\",INDIRECT(\"'\"&F1622&\"'!\"&G1622))","v":""},{"$f":"IF(ISBLANK(INDIRECT(\"'\"&F1622&\"'!\"&H1622)),\"\",IFERROR(VLOOKUP(TEXT(INDIRECT(\"'\"&F1622&\"'!\"&H1622),\"0\"),Notes!$B$5:$C$100,2,FALSE),\"\"))","v":""},"2e","$AU$74","$AV$74"]
[8383,{"$f":"Menu!$F$29","v":"X"},{"$f":"Menu!$J$29","v":2020},{"$f":"IF(ISBLANK(INDIRECT(\"'\"&F1623&\"'!\"&G1623)),\"\",INDIRECT(\"'\"&F1623&\"'!\"&G1623))","v":""},{"$f":"IF(ISBLANK(INDIRECT(\"'\"&F1623&\"'!\"&H1623)),\"\",IFERROR(VLOOKUP(TEXT(INDIRECT(\"'\"&F1623&\"'!\"&H1623),\"0\"),Notes!$B$5:$C$100,2,FALSE),\"\"))","v":""},"2e","$AW$74","$AX$74"]
[8384,{"$f":"Menu!$F$29","v":"X"},{"$f":"Menu!$J$29","v":2020},{"$f":"IF(ISBLANK(INDIRECT(\"'\"&F1624&\"'!\"&G1624)),\"\",INDIRECT(\"'\"&F1624&\"'!\"&G1624))","v":""},{"$f":"IF(ISBLANK(INDIRECT(\"'\"&F1624&\"'!\"&H1624)),\"\",IFERROR(VLOOKUP(TEXT(INDIRECT(\"'\"&F1624&\"'!\"&H1624),\"0\"),Notes!$B$5:$C$100,2,FALSE),\"\"))","v":""},"2e","$AY$74","$AZ$74"]
[8385,{"$f":"Menu!$F$29","v":"X"},{"$f":"Menu!$J$29","v":2020},{"$f":"IF(ISBLANK(INDIRECT(\"'\"&F1625&\"'!\"&G1625)),\"\",INDIRECT(\"'\"&F1625&\"'!\"&G1625))","v":""},{"$f":"IF(ISBLANK(INDIRECT(\"'\"&F1625&\"'!\"&H1625)),\"\",IFERROR(VLOOKUP(TEXT(INDIRECT(\"'\"&F1625&\"'!\"&H1625),\"0\"),Notes!$B$5:$C$100,2,FALSE),\"\"))","v":""},"2e","$BA$74","$BB$74"]
[8386,{"$f":"Menu!$F$29","v":"X"},{"$f":"Menu!$J$29","v":2020},{"$f":"IF(ISBLANK(INDIRECT(\"'\"&F1626&\"'!\"&G1626)),\"\",INDIRECT(\"'\"&F1626&\"'!\"&G1626))","v":""},{"$f":"IF(ISBLANK(INDIRECT(\"'\"&F1626&\"'!\"&H1626)),\"\",IFERROR(VLOOKUP(TEXT(INDIRECT(\"'\"&F1626&\"'!\"&H1626),\"0\"),Notes!$B$5:$C$100,2,FALSE),\"\"))","v":""},"2e","$BC$74","$BD$74"]
[8387,{"$f":"Menu!$F$29","v":"X"},{"$f":"Menu!$J$29","v":2020},{"$f":"IF(ISBLANK(INDIRECT(\"'\"&F1627&\"'!\"&G1627)),\"\",INDIRECT(\"'\"&F1627&\"'!\"&G1627))","v":""},{"$f":"IF(ISBLANK(INDIRECT(\"'\"&F1627&\"'!\"&H1627)),\"\",IFERROR(VLOOKUP(TEXT(INDIRECT(\"'\"&F1627&\"'!\"&H1627),\"0\"),Notes!$B$5:$C$100,2,FALSE),\"\"))","v":""},"2e","$BE$74","$BF$74"]
[8388,{"$f":"Menu!$F$29","v":"X"},{"$f":"Menu!$J$29","v":2020},{"$f":"IF(ISBLANK(INDIRECT(\"'\"&F1628&\"'!\"&G1628)),\"\",INDIRECT(\"'\"&F1628&\"'!\"&G1628))","v":""},{"$f":"IF(ISBLANK(INDIRECT(\"'\"&F1628&\"'!\"&H1628)),\"\",IFERROR(VLOOKUP(TEXT(INDIRECT(\"'\"&F1628&\"'!\"&H1628),\"0\"),Notes!$B$5:$C$100,2,FALSE),\"\"))","v":""},"2e","$BG$74","$BH$74"]
[8389,{"$f":"Menu!$F$29","v":"X"},{"$f":"Menu!$J$29","v":2020},{"$f":"IF(ISBLANK(INDIRECT(\"'\"&F1629&\"'!\"&G1629)),\"\",INDIRECT(\"'\"&F1629&\"'!\"&G1629))","v":""},{"$f":"IF(ISBLANK(INDIRECT(\"'\"&F1629&\"'!\"&H1629)),\"\",IFERROR(VLOOKUP(TEXT(INDIRECT(\"'\"&F1629&\"'!\"&H1629),\"0\"),Notes!$B$5:$C$100,2,FALSE),\"\"))","v":""},"2e","$BI$74","$BJ$74"]
[8390,{"$f":"Menu!$F$29","v":"X"},{"$f":"Menu!$J$29","v":2020},{"$f":"IF(ISBLANK(INDIRECT(\"'\"&F1630&\"'!\"&G1630)),\"\",INDIRECT(\"'\"&F1630&\"'!\"&G1630))","v":""},{"$f":"IF(ISBLANK(INDIRECT(\"'\"&F1630&\"'!\"&H1630)),\"\",IFERROR(VLOOKUP(TEXT(INDIRECT(\"'\"&F1630&\"'!\"&H1630),\"0\"),Notes!$B$5:$C$100,2,FALSE),\"\"))","v":""},"2e","$BK$74","$BL$74"]
[8391,{"$f":"Menu!$F$29","v":"X"},{"$f":"Menu!$J$29","v":2020},{"$f":"IF(ISBLANK(INDIRECT(\"'\"&F1631&\"'!\"&G1631)),\"\",INDIRECT(\"'\"&F1631&\"'!\"&G1631))","v":""},{"$f":"IF(ISBLANK(INDIRECT(\"'\"&F1631&\"'!\"&H1631)),\"\",IFERROR(VLOOKUP(TEXT(INDIRECT(\"'\"&F1631&\"'!\"&H1631),\"0\"),Notes!$B$5:$C$100,2,FALSE),\"\"))","v":""},"2e","$E$75","$F$75"]
[8392,{"$f":"Menu!$F$29","v":"X"},{"$f":"Menu!$J$29","v":2020},{"$f":"IF(ISBLANK(INDIRECT(\"'\"&F1632&\"'!\"&G1632)),\"\",INDIRECT(\"'\"&F1632&\"'!\"&G1632))","v":""},{"$f":"IF(ISBLANK(INDIRECT(\"'\"&F1632&\"'!\"&H1632)),\"\",IFERROR(VLOOKUP(TEXT(INDIRECT(\"'\"&F1632&\"'!\"&H1632),\"0\"),Notes!$B$5:$C$100,2,FALSE),\"\"))","v":""},"2e","$G$75","$H$75"]
[8393,{"$f":"Menu!$F$29","v":"X"},{"$f":"Menu!$J$29","v":2020},{"$f":"IF(ISBLANK(INDIRECT(\"'\"&F1633&\"'!\"&G1633)),\"\",INDIRECT(\"'\"&F1633&\"'!\"&G1633))","v":""},{"$f":"IF(ISBLANK(INDIRECT(\"'\"&F1633&\"'!\"&H1633)),\"\",IFERROR(VLOOKUP(TEXT(INDIRECT(\"'\"&F1633&\"'!\"&H1633),\"0\"),Notes!$B$5:$C$100,2,FALSE),\"\"))","v":""},"2e","$I$75","$J$75"]
[8394,{"$f":"Menu!$F$29","v":"X"},{"$f":"Menu!$J$29","v":2020},{"$f":"IF(ISBLANK(INDIRECT(\"'\"&F1634&\"'!\"&G1634)),\"\",INDIRECT(\"'\"&F1634&\"'!\"&G1634))","v":""},{"$f":"IF(ISBLANK(INDIRECT(\"'\"&F1634&\"'!\"&H1634)),\"\",IFERROR(VLOOKUP(TEXT(INDIRECT(\"'\"&F1634&\"'!\"&H1634),\"0\"),Notes!$B$5:$C$100,2,FALSE),\"\"))","v":""},"2e","$K$75","$L$75"]
[8395,{"$f":"Menu!$F$29","v":"X"},{"$f":"Menu!$J$29","v":2020},{"$f":"IF(ISBLANK(INDIRECT(\"'\"&F1635&\"'!\"&G1635)),\"\",INDIRECT(\"'\"&F1635&\"'!\"&G1635))","v":""},{"$f":"IF(ISBLANK(INDIRECT(\"'\"&F1635&\"'!\"&H1635)),\"\",IFERROR(VLOOKUP(TEXT(INDIRECT(\"'\"&F1635&\"'!\"&H1635),\"0\"),Notes!$B$5:$C$100,2,FALSE),\"\"))","v":""},"2e","$M$75","$N$75"]
[8396,{"$f":"Menu!$F$29","v":"X"},{"$f":"Menu!$J$29","v":2020},{"$f":"IF(ISBLANK(INDIRECT(\"'\"&F1636&\"'!\"&G1636)),\"\",INDIRECT(\"'\"&F1636&\"'!\"&G1636))","v":""},{"$f":"IF(ISBLANK(INDIRECT(\"'\"&F1636&\"'!\"&H1636)),\"\",IFERROR(VLOOKUP(TEXT(INDIRECT(\"'\"&F1636&\"'!\"&H1636),\"0\"),Notes!$B$5:$C$100,2,FALSE),\"\"))","v":""},"2e","$O$75","$P$75"]
[8397,{"$f":"Menu!$F$29","v":"X"},{"$f":"Menu!$J$29","v":2020},{"$f":"IF(ISBLANK(INDIRECT(\"'\"&F1637&\"'!\"&G1637)),\"\",INDIRECT(\"'\"&F1637&\"'!\"&G1637))","v":""},{"$f":"IF(ISBLANK(INDIRECT(\"'\"&F1637&\"'!\"&H1637)),\"\",IFERROR(VLOOKUP(TEXT(INDIRECT(\"'\"&F1637&\"'!\"&H1637),\"0\"),Notes!$B$5:$C$100,2,FALSE),\"\"))","v":""},"2e","$Q$75","$R$75"]
[8398,{"$f":"Menu!$F$29","v":"X"},{"$f":"Menu!$J$29","v":2020},{"$f":"IF(ISBLANK(INDIRECT(\"'\"&F1638&\"'!\"&G1638)),\"\",INDIRECT(\"'\"&F1638&\"'!\"&G1638))","v":""},{"$f":"IF(ISBLANK(INDIRECT(\"'\"&F1638&\"'!\"&H1638)),\"\",IFERROR(VLOOKUP(TEXT(INDIRECT(\"'\"&F1638&\"'!\"&H1638),\"0\"),Notes!$B$5:$C$100,2,FALSE),\"\"))","v":""},"2e","$S$75","$T$75"]
[8399,{"$f":"Menu!$F$29","v":"X"},{"$f":"Menu!$J$29","v":2020},{"$f":"IF(ISBLANK(INDIRECT(\"'\"&F1639&\"'!\"&G1639)),\"\",INDIRECT(\"'\"&F1639&\"'!\"&G1639))","v":""},{"$f":"IF(ISBLANK(INDIRECT(\"'\"&F1639&\"'!\"&H1639)),\"\",IFERROR(VLOOKUP(TEXT(INDIRECT(\"'\"&F1639&\"'!\"&H1639),\"0\"),Notes!$B$5:$C$100,2,FALSE),\"\"))","v":""},"2e","$U$75","$V$75"]
[8400,{"$f":"Menu!$F$29","v":"X"},{"$f":"Menu!$J$29","v":2020},{"$f":"IF(ISBLANK(INDIRECT(\"'\"&F1640&\"'!\"&G1640)),\"\",INDIRECT(\"'\"&F1640&\"'!\"&G1640))","v":""},{"$f":"IF(ISBLANK(INDIRECT(\"'\"&F1640&\"'!\"&H1640)),\"\",IFERROR(VLOOKUP(TEXT(INDIRECT(\"'\"&F1640&\"'!\"&H1640),\"0\"),Notes!$B$5:$C$100,2,FALSE),\"\"))","v":""},"2e","$W$75","$X$75"]
[8401,{"$f":"Menu!$F$29","v":"X"},{"$f":"Menu!$J$29","v":2020},{"$f":"IF(ISBLANK(INDIRECT(\"'\"&F1641&\"'!\"&G1641)),\"\",INDIRECT(\"'\"&F1641&\"'!\"&G1641))","v":""},{"$f":"IF(ISBLANK(INDIRECT(\"'\"&F1641&\"'!\"&H1641)),\"\",IFERROR(VLOOKUP(TEXT(INDIRECT(\"'\"&F1641&\"'!\"&H1641),\"0\"),Notes!$B$5:$C$100,2,FALSE),\"\"))","v":""},"2e","$Y$75","$Z$75"]
[8402,{"$f":"Menu!$F$29","v":"X"},{"$f":"Menu!$J$29","v":2020},{"$f":"IF(ISBLANK(INDIRECT(\"'\"&F1642&\"'!\"&G1642)),\"\",INDIRECT(\"'\"&F1642&\"'!\"&G1642))","v":""},{"$f":"IF(ISBLANK(INDIRECT(\"'\"&F1642&\"'!\"&H1642)),\"\",IFERROR(VLOOKUP(TEXT(INDIRECT(\"'\"&F1642&\"'!\"&H1642),\"0\"),Notes!$B$5:$C$100,2,FALSE),\"\"))","v":""},"2e","$AA$75","$AB$75"]
[8403,{"$f":"Menu!$F$29","v":"X"},{"$f":"Menu!$J$29","v":2020},{"$f":"IF(ISBLANK(INDIRECT(\"'\"&F1643&\"'!\"&G1643)),\"\",INDIRECT(\"'\"&F1643&\"'!\"&G1643))","v":""},{"$f":"IF(ISBLANK(INDIRECT(\"'\"&F1643&\"'!\"&H1643)),\"\",IFERROR(VLOOKUP(TEXT(INDIRECT(\"'\"&F1643&\"'!\"&H1643),\"0\"),Notes!$B$5:$C$100,2,FALSE),\"\"))","v":""},"2e","$AC$75","$AD$75"]
[8404,{"$f":"Menu!$F$29","v":"X"},{"$f":"Menu!$J$29","v":2020},{"$f":"IF(ISBLANK(INDIRECT(\"'\"&F1644&\"'!\"&G1644)),\"\",INDIRECT(\"'\"&F1644&\"'!\"&G1644))","v":""},{"$f":"IF(ISBLANK(INDIRECT(\"'\"&F1644&\"'!\"&H1644)),\"\",IFERROR(VLOOKUP(TEXT(INDIRECT(\"'\"&F1644&\"'!\"&H1644),\"0\"),Notes!$B$5:$C$100,2,FALSE),\"\"))","v":""},"2e","$AE$75","$AF$75"]
[8405,{"$f":"Menu!$F$29","v":"X"},{"$f":"Menu!$J$29","v":2020},{"$f":"IF(ISBLANK(INDIRECT(\"'\"&F1645&\"'!\"&G1645)),\"\",INDIRECT(\"'\"&F1645&\"'!\"&G1645))","v":""},{"$f":"IF(ISBLANK(INDIRECT(\"'\"&F1645&\"'!\"&H1645)),\"\",IFERROR(VLOOKUP(TEXT(INDIRECT(\"'\"&F1645&\"'!\"&H1645),\"0\"),Notes!$B$5:$C$100,2,FALSE),\"\"))","v":""},"2e","$AG$75","$AH$75"]
[8406,{"$f":"Menu!$F$29","v":"X"},{"$f":"Menu!$J$29","v":2020},{"$f":"IF(ISBLANK(INDIRECT(\"'\"&F1646&\"'!\"&G1646)),\"\",INDIRECT(\"'\"&F1646&\"'!\"&G1646))","v":""},{"$f":"IF(ISBLANK(INDIRECT(\"'\"&F1646&\"'!\"&H1646)),\"\",IFERROR(VLOOKUP(TEXT(INDIRECT(\"'\"&F1646&\"'!\"&H1646),\"0\"),Notes!$B$5:$C$100,2,FALSE),\"\"))","v":""},"2e","$AI$75","$AJ$75"]
[8407,{"$f":"Menu!$F$29","v":"X"},{"$f":"Menu!$J$29","v":2020},{"$f":"IF(ISBLANK(INDIRECT(\"'\"&F1647&\"'!\"&G1647)),\"\",INDIRECT(\"'\"&F1647&\"'!\"&G1647))","v":""},{"$f":"IF(ISBLANK(INDIRECT(\"'\"&F1647&\"'!\"&H1647)),\"\",IFERROR(VLOOKUP(TEXT(INDIRECT(\"'\"&F1647&\"'!\"&H1647),\"0\"),Notes!$B$5:$C$100,2,FALSE),\"\"))","v":""},"2e","$AK$75","$AL$75"]
[8408,{"$f":"Menu!$F$29","v":"X"},{"$f":"Menu!$J$29","v":2020},{"$f":"IF(ISBLANK(INDIRECT(\"'\"&F1648&\"'!\"&G1648)),\"\",INDIRECT(\"'\"&F1648&\"'!\"&G1648))","v":""},{"$f":"IF(ISBLANK(INDIRECT(\"'\"&F1648&\"'!\"&H1648)),\"\",IFERROR(VLOOKUP(TEXT(INDIRECT(\"'\"&F1648&\"'!\"&H1648),\"0\"),Notes!$B$5:$C$100,2,FALSE),\"\"))","v":""},"2e","$AM$75","$AN$75"]
[8409,{"$f":"Menu!$F$29","v":"X"},{"$f":"Menu!$J$29","v":2020},{"$f":"IF(ISBLANK(INDIRECT(\"'\"&F1649&\"'!\"&G1649)),\"\",INDIRECT(\"'\"&F1649&\"'!\"&G1649))","v":""},{"$f":"IF(ISBLANK(INDIRECT(\"'\"&F1649&\"'!\"&H1649)),\"\",IFERROR(VLOOKUP(TEXT(INDIRECT(\"'\"&F1649&\"'!\"&H1649),\"0\"),Notes!$B$5:$C$100,2,FALSE),\"\"))","v":""},"2e","$AO$75","$AP$75"]
[8410,{"$f":"Menu!$F$29","v":"X"},{"$f":"Menu!$J$29","v":2020},{"$f":"IF(ISBLANK(INDIRECT(\"'\"&F1650&\"'!\"&G1650)),\"\",INDIRECT(\"'\"&F1650&\"'!\"&G1650))","v":""},{"$f":"IF(ISBLANK(INDIRECT(\"'\"&F1650&\"'!\"&H1650)),\"\",IFERROR(VLOOKUP(TEXT(INDIRECT(\"'\"&F1650&\"'!\"&H1650),\"0\"),Notes!$B$5:$C$100,2,FALSE),\"\"))","v":""},"2e","$AQ$75","$AR$75"]
[8411,{"$f":"Menu!$F$29","v":"X"},{"$f":"Menu!$J$29","v":2020},{"$f":"IF(ISBLANK(INDIRECT(\"'\"&F1651&\"'!\"&G1651)),\"\",INDIRECT(\"'\"&F1651&\"'!\"&G1651))","v":""},{"$f":"IF(ISBLANK(INDIRECT(\"'\"&F1651&\"'!\"&H1651)),\"\",IFERROR(VLOOKUP(TEXT(INDIRECT(\"'\"&F1651&\"'!\"&H1651),\"0\"),Notes!$B$5:$C$100,2,FALSE),\"\"))","v":""},"2e","$AS$75","$AT$75"]
[8412,{"$f":"Menu!$F$29","v":"X"},{"$f":"Menu!$J$29","v":2020},{"$f":"IF(ISBLANK(INDIRECT(\"'\"&F1652&\"'!\"&G1652)),\"\",INDIRECT(\"'\"&F1652&\"'!\"&G1652))","v":""},{"$f":"IF(ISBLANK(INDIRECT(\"'\"&F1652&\"'!\"&H1652)),\"\",IFERROR(VLOOKUP(TEXT(INDIRECT(\"'\"&F1652&\"'!\"&H1652),\"0\"),Notes!$B$5:$C$100,2,FALSE),\"\"))","v":""},"2e","$AU$75","$AV$75"]
[8413,{"$f":"Menu!$F$29","v":"X"},{"$f":"Menu!$J$29","v":2020},{"$f":"IF(ISBLANK(INDIRECT(\"'\"&F1653&\"'!\"&G1653)),\"\",INDIRECT(\"'\"&F1653&\"'!\"&G1653))","v":""},{"$f":"IF(ISBLANK(INDIRECT(\"'\"&F1653&\"'!\"&H1653)),\"\",IFERROR(VLOOKUP(TEXT(INDIRECT(\"'\"&F1653&\"'!\"&H1653),\"0\"),Notes!$B$5:$C$100,2,FALSE),\"\"))","v":""},"2e","$AW$75","$AX$75"]
[8414,{"$f":"Menu!$F$29","v":"X"},{"$f":"Menu!$J$29","v":2020},{"$f":"IF(ISBLANK(INDIRECT(\"'\"&F1654&\"'!\"&G1654)),\"\",INDIRECT(\"'\"&F1654&\"'!\"&G1654))","v":""},{"$f":"IF(ISBLANK(INDIRECT(\"'\"&F1654&\"'!\"&H1654)),\"\",IFERROR(VLOOKUP(TEXT(INDIRECT(\"'\"&F1654&\"'!\"&H1654),\"0\"),Notes!$B$5:$C$100,2,FALSE),\"\"))","v":""},"2e","$AY$75","$AZ$75"]
[8415,{"$f":"Menu!$F$29","v":"X"},{"$f":"Menu!$J$29","v":2020},{"$f":"IF(ISBLANK(INDIRECT(\"'\"&F1655&\"'!\"&G1655)),\"\",INDIRECT(\"'\"&F1655&\"'!\"&G1655))","v":""},{"$f":"IF(ISBLANK(INDIRECT(\"'\"&F1655&\"'!\"&H1655)),\"\",IFERROR(VLOOKUP(TEXT(INDIRECT(\"'\"&F1655&\"'!\"&H1655),\"0\"),Notes!$B$5:$C$100,2,FALSE),\"\"))","v":""},"2e","$BA$75","$BB$75"]
[8416,{"$f":"Menu!$F$29","v":"X"},{"$f":"Menu!$J$29","v":2020},{"$f":"IF(ISBLANK(INDIRECT(\"'\"&F1656&\"'!\"&G1656)),\"\",INDIRECT(\"'\"&F1656&\"'!\"&G1656))","v":""},{"$f":"IF(ISBLANK(INDIRECT(\"'\"&F1656&\"'!\"&H1656)),\"\",IFERROR(VLOOKUP(TEXT(INDIRECT(\"'\"&F1656&\"'!\"&H1656),\"0\"),Notes!$B$5:$C$100,2,FALSE),\"\"))","v":""},"2e","$BC$75","$BD$75"]
[8417,{"$f":"Menu!$F$29","v":"X"},{"$f":"Menu!$J$29","v":2020},{"$f":"IF(ISBLANK(INDIRECT(\"'\"&F1657&\"'!\"&G1657)),\"\",INDIRECT(\"'\"&F1657&\"'!\"&G1657))","v":""},{"$f":"IF(ISBLANK(INDIRECT(\"'\"&F1657&\"'!\"&H1657)),\"\",IFERROR(VLOOKUP(TEXT(INDIRECT(\"'\"&F1657&\"'!\"&H1657),\"0\"),Notes!$B$5:$C$100,2,FALSE),\"\"))","v":""},"2e","$BE$75","$BF$75"]
[8418,{"$f":"Menu!$F$29","v":"X"},{"$f":"Menu!$J$29","v":2020},{"$f":"IF(ISBLANK(INDIRECT(\"'\"&F1658&\"'!\"&G1658)),\"\",INDIRECT(\"'\"&F1658&\"'!\"&G1658))","v":""},{"$f":"IF(ISBLANK(INDIRECT(\"'\"&F1658&\"'!\"&H1658)),\"\",IFERROR(VLOOKUP(TEXT(INDIRECT(\"'\"&F1658&\"'!\"&H1658),\"0\"),Notes!$B$5:$C$100,2,FALSE),\"\"))","v":""},"2e","$BG$75","$BH$75"]
[8419,{"$f":"Menu!$F$29","v":"X"},{"$f":"Menu!$J$29","v":2020},{"$f":"IF(ISBLANK(INDIRECT(\"'\"&F1659&\"'!\"&G1659)),\"\",INDIRECT(\"'\"&F1659&\"'!\"&G1659))","v":""},{"$f":"IF(ISBLANK(INDIRECT(\"'\"&F1659&\"'!\"&H1659)),\"\",IFERROR(VLOOKUP(TEXT(INDIRECT(\"'\"&F1659&\"'!\"&H1659),\"0\"),Notes!$B$5:$C$100,2,FALSE),\"\"))","v":""},"2e","$BI$75","$BJ$75"]
[8420,{"$f":"Menu!$F$29","v":"X"},{"$f":"Menu!$J$29","v":2020},{"$f":"IF(ISBLANK(INDIRECT(\"'\"&F1660&\"'!\"&G1660)),\"\",INDIRECT(\"'\"&F1660&\"'!\"&G1660))","v":""},{"$f":"IF(ISBLANK(INDIRECT(\"'\"&F1660&\"'!\"&H1660)),\"\",IFERROR(VLOOKUP(TEXT(INDIRECT(\"'\"&F1660&\"'!\"&H1660),\"0\"),Notes!$B$5:$C$100,2,FALSE),\"\"))","v":""},"2e","$BK$75","$BL$75"]
[11536,{"$f":"Menu!$F$29","v":"X"},{"$f":"Menu!$J$29","v":2020},{"$f":"IF(ISBLANK(INDIRECT(\"'\"&F1661&\"'!\"&G1661)),\"\",INDIRECT(\"'\"&F1661&\"'!\"&G1661))","v":""},{"$f":"IF(ISBLANK(INDIRECT(\"'\"&F1661&\"'!\"&H1661)),\"\",IFERROR(VLOOKUP(TEXT(INDIRECT(\"'\"&F1661&\"'!\"&H1661),\"0\"),Notes!$B$5:$C$100,2,FALSE),\"\"))","v":""},"1a","$E$20","$F$20"]
[11537,{"$f":"Menu!$F$29","v":"X"},{"$f":"Menu!$J$29","v":2020},{"$f":"IF(ISBLANK(INDIRECT(\"'\"&F1662&\"'!\"&G1662)),\"\",INDIRECT(\"'\"&F1662&\"'!\"&G1662))","v":""},{"$f":"IF(ISBLANK(INDIRECT(\"'\"&F1662&\"'!\"&H1662)),\"\",IFERROR(VLOOKUP(TEXT(INDIRECT(\"'\"&F1662&\"'!\"&H1662),\"0\"),Notes!$B$5:$C$100,2,FALSE),\"\"))","v":""},"1a","$G$20","$H$20"]
[11538,{"$f":"Menu!$F$29","v":"X"},{"$f":"Menu!$J$29","v":2020},{"$f":"IF(ISBLANK(INDIRECT(\"'\"&F1663&\"'!\"&G1663)),\"\",INDIRECT(\"'\"&F1663&\"'!\"&G1663))","v":""},{"$f":"IF(ISBLANK(INDIRECT(\"'\"&F1663&\"'!\"&H1663)),\"\",IFERROR(VLOOKUP(TEXT(INDIRECT(\"'\"&F1663&\"'!\"&H1663),\"0\"),Notes!$B$5:$C$100,2,FALSE),\"\"))","v":""},"1a","$I$20","$J$20"]
[11539,{"$f":"Menu!$F$29","v":"X"},{"$f":"Menu!$J$29","v":2020},{"$f":"IF(ISBLANK(INDIRECT(\"'\"&F1664&\"'!\"&G1664)),\"\",INDIRECT(\"'\"&F1664&\"'!\"&G1664))","v":""},{"$f":"IF(ISBLANK(INDIRECT(\"'\"&F1664&\"'!\"&H1664)),\"\",IFERROR(VLOOKUP(TEXT(INDIRECT(\"'\"&F1664&\"'!\"&H1664),\"0\"),Notes!$B$5:$C$100,2,FALSE),\"\"))","v":""},"1a","$K$20","$L$20"]
[11540,{"$f":"Menu!$F$29","v":"X"},{"$f":"Menu!$J$29","v":2020},{"$f":"IF(ISBLANK(INDIRECT(\"'\"&F1665&\"'!\"&G1665)),\"\",INDIRECT(\"'\"&F1665&\"'!\"&G1665))","v":""},{"$f":"IF(ISBLANK(INDIRECT(\"'\"&F1665&\"'!\"&H1665)),\"\",IFERROR(VLOOKUP(TEXT(INDIRECT(\"'\"&F1665&\"'!\"&H1665),\"0\"),Notes!$B$5:$C$100,2,FALSE),\"\"))","v":""},"1a","$M$20","$N$20"]
[11541,{"$f":"Menu!$F$29","v":"X"},{"$f":"Menu!$J$29","v":2020},{"$f":"IF(ISBLANK(INDIRECT(\"'\"&F1666&\"'!\"&G1666)),\"\",INDIRECT(\"'\"&F1666&\"'!\"&G1666))","v":""},{"$f":"IF(ISBLANK(INDIRECT(\"'\"&F1666&\"'!\"&H1666)),\"\",IFERROR(VLOOKUP(TEXT(INDIRECT(\"'\"&F1666&\"'!\"&H1666),\"0\"),Notes!$B$5:$C$100,2,FALSE),\"\"))","v":""},"1a","$O$20",{"$f":"IF(LEN(TRIM(MID(G1666,4,10)))-LEN(SUBSTITUTE(TRIM(MID(G1666,4,10)),\"$\",\"\"))=0,\"$\"&CHAR(CODE(MID(G1666,2,1))+1)&\"$\"&TRIM(MID(G1666,4,10)),\"$\"&MID(G1666,2,1)&CHAR(CODE(MID(G1666,3,1))+1)&\"$\"&TRIM(MID(G1666,5,11)))","v":"$P$20"}]
[11542,{"$f":"Menu!$F$29","v":"X"},{"$f":"Menu!$J$29","v":2020},{"$f":"IF(ISBLANK(INDIRECT(\"'\"&F1667&\"'!\"&G1667)),\"\",INDIRECT(\"'\"&F1667&\"'!\"&G1667))","v":""},{"$f":"IF(ISBLANK(INDIRECT(\"'\"&F1667&\"'!\"&H1667)),\"\",IFERROR(VLOOKUP(TEXT(INDIRECT(\"'\"&F1667&\"'!\"&H1667),\"0\"),Notes!$B$5:$C$100,2,FALSE),\"\"))","v":""},"1a","$Q$20","$R$20"]
[11543,{"$f":"Menu!$F$29","v":"X"},{"$f":"Menu!$J$29","v":2020},{"$f":"IF(ISBLANK(INDIRECT(\"'\"&F1668&\"'!\"&G1668)),\"\",INDIRECT(\"'\"&F1668&\"'!\"&G1668))","v":""},{"$f":"IF(ISBLANK(INDIRECT(\"'\"&F1668&\"'!\"&H1668)),\"\",IFERROR(VLOOKUP(TEXT(INDIRECT(\"'\"&F1668&\"'!\"&H1668),\"0\"),Notes!$B$5:$C$100,2,FALSE),\"\"))","v":""},"1a","$S$20","$T$20"]
[11544,{"$f":"Menu!$F$29","v":"X"},{"$f":"Menu!$J$29","v":2020},{"$f":"IF(ISBLANK(INDIRECT(\"'\"&F1669&\"'!\"&G1669)),\"\",INDIRECT(\"'\"&F1669&\"'!\"&G1669))","v":""},{"$f":"IF(ISBLANK(INDIRECT(\"'\"&F1669&\"'!\"&H1669)),\"\",IFERROR(VLOOKUP(TEXT(INDIRECT(\"'\"&F1669&\"'!\"&H1669),\"0\"),Notes!$B$5:$C$100,2,FALSE),\"\"))","v":""},"1a","$U$20","$V$20"]
[11545,{"$f":"Menu!$F$29","v":"X"},{"$f":"Menu!$J$29","v":2020},{"$f":"IF(ISBLANK(INDIRECT(\"'\"&F1670&\"'!\"&G1670)),\"\",INDIRECT(\"'\"&F1670&\"'!\"&G1670))","v":""},{"$f":"IF(ISBLANK(INDIRECT(\"'\"&F1670&\"'!\"&H1670)),\"\",IFERROR(VLOOKUP(TEXT(INDIRECT(\"'\"&F1670&\"'!\"&H1670),\"0\"),Notes!$B$5:$C$100,2,FALSE),\"\"))","v":""},"1a","$E$21","$F$21"]
[11546,{"$f":"Menu!$F$29","v":"X"},{"$f":"Menu!$J$29","v":2020},{"$f":"IF(ISBLANK(INDIRECT(\"'\"&F1671&\"'!\"&G1671)),\"\",INDIRECT(\"'\"&F1671&\"'!\"&G1671))","v":""},{"$f":"IF(ISBLANK(INDIRECT(\"'\"&F1671&\"'!\"&H1671)),\"\",IFERROR(VLOOKUP(TEXT(INDIRECT(\"'\"&F1671&\"'!\"&H1671),\"0\"),Notes!$B$5:$C$100,2,FALSE),\"\"))","v":""},"1a","$G$21","$H$21"]
[11547,{"$f":"Menu!$F$29","v":"X"},{"$f":"Menu!$J$29","v":2020},{"$f":"IF(ISBLANK(INDIRECT(\"'\"&F1672&\"'!\"&G1672)),\"\",INDIRECT(\"'\"&F1672&\"'!\"&G1672))","v":""},{"$f":"IF(ISBLANK(INDIRECT(\"'\"&F1672&\"'!\"&H1672)),\"\",IFERROR(VLOOKUP(TEXT(INDIRECT(\"'\"&F1672&\"'!\"&H1672),\"0\"),Notes!$B$5:$C$100,2,FALSE),\"\"))","v":""},"1a","$I$21","$J$21"]
[11548,{"$f":"Menu!$F$29","v":"X"},{"$f":"Menu!$J$29","v":2020},{"$f":"IF(ISBLANK(INDIRECT(\"'\"&F1673&\"'!\"&G1673)),\"\",INDIRECT(\"'\"&F1673&\"'!\"&G1673))","v":""},{"$f":"IF(ISBLANK(INDIRECT(\"'\"&F1673&\"'!\"&H1673)),\"\",IFERROR(VLOOKUP(TEXT(INDIRECT(\"'\"&F1673&\"'!\"&H1673),\"0\"),Notes!$B$5:$C$100,2,FALSE),\"\"))","v":""},"1a","$K$21","$L$21"]
[11549,{"$f":"Menu!$F$29","v":"X"},{"$f":"Menu!$J$29","v":2020},{"$f":"IF(ISBLANK(INDIRECT(\"'\"&F1674&\"'!\"&G1674)),\"\",INDIRECT(\"'\"&F1674&\"'!\"&G1674))","v":""},{"$f":"IF(ISBLANK(INDIRECT(\"'\"&F1674&\"'!\"&H1674)),\"\",IFERROR(VLOOKUP(TEXT(INDIRECT(\"'\"&F1674&\"'!\"&H1674),\"0\"),Notes!$B$5:$C$100,2,FALSE),\"\"))","v":""},"1a","$M$21","$N$21"]
[11550,{"$f":"Menu!$F$29","v":"X"},{"$f":"Menu!$J$29","v":2020},{"$f":"IF(ISBLANK(INDIRECT(\"'\"&F1675&\"'!\"&G1675)),\"\",INDIRECT(\"'\"&F1675&\"'!\"&G1675))","v":""},{"$f":"IF(ISBLANK(INDIRECT(\"'\"&F1675&\"'!\"&H1675)),\"\",IFERROR(VLOOKUP(TEXT(INDIRECT(\"'\"&F1675&\"'!\"&H1675),\"0\"),Notes!$B$5:$C$100,2,FALSE),\"\"))","v":""},"1a","$O$21","$P$21"]
[11551,{"$f":"Menu!$F$29","v":"X"},{"$f":"Menu!$J$29","v":2020},{"$f":"IF(ISBLANK(INDIRECT(\"'\"&F1676&\"'!\"&G1676)),\"\",INDIRECT(\"'\"&F1676&\"'!\"&G1676))","v":""},{"$f":"IF(ISBLANK(INDIRECT(\"'\"&F1676&\"'!\"&H1676)),\"\",IFERROR(VLOOKUP(TEXT(INDIRECT(\"'\"&F1676&\"'!\"&H1676),\"0\"),Notes!$B$5:$C$100,2,FALSE),\"\"))","v":""},"1a","$Q$21","$R$21"]
[11552,{"$f":"Menu!$F$29","v":"X"},{"$f":"Menu!$J$29","v":2020},{"$f":"IF(ISBLANK(INDIRECT(\"'\"&F1677&\"'!\"&G1677)),\"\",INDIRECT(\"'\"&F1677&\"'!\"&G1677))","v":""},{"$f":"IF(ISBLANK(INDIRECT(\"'\"&F1677&\"'!\"&H1677)),\"\",IFERROR(VLOOKUP(TEXT(INDIRECT(\"'\"&F1677&\"'!\"&H1677),\"0\"),Notes!$B$5:$C$100,2,FALSE),\"\"))","v":""},"1a","$S$21","$T$21"]
[11553,{"$f":"Menu!$F$29","v":"X"},{"$f":"Menu!$J$29","v":2020},{"$f":"IF(ISBLANK(INDIRECT(\"'\"&F1678&\"'!\"&G1678)),\"\",INDIRECT(\"'\"&F1678&\"'!\"&G1678))","v":""},{"$f":"IF(ISBLANK(INDIRECT(\"'\"&F1678&\"'!\"&H1678)),\"\",IFERROR(VLOOKUP(TEXT(INDIRECT(\"'\"&F1678&\"'!\"&H1678),\"0\"),Notes!$B$5:$C$100,2,FALSE),\"\"))","v":""},"1a","$U$21","$V$21"]
[12429,{"$f":"Menu!$F$29","v":"X"},{"$f":"Menu!$J$29","v":2020},{"$f":"IF(ISBLANK(INDIRECT(\"'\"&F1679&\"'!\"&G1679)),\"\",INDIRECT(\"'\"&F1679&\"'!\"&G1679))","v":""},{"$f":"IF(ISBLANK(INDIRECT(\"'\"&F1679&\"'!\"&H1679)),\"\",IFERROR(VLOOKUP(TEXT(INDIRECT(\"'\"&F1679&\"'!\"&H1679),\"0\"),Notes!$B$5:$C$100,2,FALSE),\"\"))","v":""},"1a","$Q$33","$R$33"]
[12430,{"$f":"Menu!$F$29","v":"X"},{"$f":"Menu!$J$29","v":2020},{"$f":"IF(ISBLANK(INDIRECT(\"'\"&F1680&\"'!\"&G1680)),\"\",INDIRECT(\"'\"&F1680&\"'!\"&G1680))","v":""},{"$f":"IF(ISBLANK(INDIRECT(\"'\"&F1680&\"'!\"&H1680)),\"\",IFERROR(VLOOKUP(TEXT(INDIRECT(\"'\"&F1680&\"'!\"&H1680),\"0\"),Notes!$B$5:$C$100,2,FALSE),\"\"))","v":""},"1a","$E$33","$F$33"]
[12508,{"$f":"Menu!$F$29","v":"X"},{"$f":"Menu!$J$29","v":2020},{"$f":"IF(ISBLANK(INDIRECT(\"'\"&F1681&\"'!\"&G1681)),\"\",INDIRECT(\"'\"&F1681&\"'!\"&G1681))","v":""},{"$f":"IF(ISBLANK(INDIRECT(\"'\"&F1681&\"'!\"&H1681)),\"\",IFERROR(VLOOKUP(TEXT(INDIRECT(\"'\"&F1681&\"'!\"&H1681),\"0\"),Notes!$B$5:$C$100,2,FALSE),\"\"))","v":""},"1a","$K$33","$L$33"]
[13172,{"$f":"Menu!$F$29","v":"X"},{"$f":"Menu!$J$29","v":2020},{"$f":"IF(ISBLANK(INDIRECT(\"'\"&F1682&\"'!\"&G1682)),\"\",INDIRECT(\"'\"&F1682&\"'!\"&G1682))","v":""},{"$f":"IF(ISBLANK(INDIRECT(\"'\"&F1682&\"'!\"&H1682)),\"\",IFERROR(VLOOKUP(TEXT(INDIRECT(\"'\"&F1682&\"'!\"&H1682),\"0\"),Notes!$B$5:$C$100,2,FALSE),\"\"))","v":""},"1a","$E$27","$F$27"]
[13173,{"$f":"Menu!$F$29","v":"X"},{"$f":"Menu!$J$29","v":2020},{"$f":"IF(ISBLANK(INDIRECT(\"'\"&F1683&\"'!\"&G1683)),\"\",INDIRECT(\"'\"&F1683&\"'!\"&G1683))","v":""},{"$f":"IF(ISBLANK(INDIRECT(\"'\"&F1683&\"'!\"&H1683)),\"\",IFERROR(VLOOKUP(TEXT(INDIRECT(\"'\"&F1683&\"'!\"&H1683),\"0\"),Notes!$B$5:$C$100,2,FALSE),\"\"))","v":""},"1a","$G$27","$H$27"]
[13174,{"$f":"Menu!$F$29","v":"X"},{"$f":"Menu!$J$29","v":2020},{"$f":"IF(ISBLANK(INDIRECT(\"'\"&F1684&\"'!\"&G1684)),\"\",INDIRECT(\"'\"&F1684&\"'!\"&G1684))","v":""},{"$f":"IF(ISBLANK(INDIRECT(\"'\"&F1684&\"'!\"&H1684)),\"\",IFERROR(VLOOKUP(TEXT(INDIRECT(\"'\"&F1684&\"'!\"&H1684),\"0\"),Notes!$B$5:$C$100,2,FALSE),\"\"))","v":""},"1a","$I$27","$J$27"]
[13175,{"$f":"Menu!$F$29","v":"X"},{"$f":"Menu!$J$29","v":2020},{"$f":"IF(ISBLANK(INDIRECT(\"'\"&F1685&\"'!\"&G1685)),\"\",INDIRECT(\"'\"&F1685&\"'!\"&G1685))","v":""},{"$f":"IF(ISBLANK(INDIRECT(\"'\"&F1685&\"'!\"&H1685)),\"\",IFERROR(VLOOKUP(TEXT(INDIRECT(\"'\"&F1685&\"'!\"&H1685),\"0\"),Notes!$B$5:$C$100,2,FALSE),\"\"))","v":""},"1a","$E$28","$F$28"]
[13176,{"$f":"Menu!$F$29","v":"X"},{"$f":"Menu!$J$29","v":2020},{"$f":"IF(ISBLANK(INDIRECT(\"'\"&F1686&\"'!\"&G1686)),\"\",INDIRECT(\"'\"&F1686&\"'!\"&G1686))","v":""},{"$f":"IF(ISBLANK(INDIRECT(\"'\"&F1686&\"'!\"&H1686)),\"\",IFERROR(VLOOKUP(TEXT(INDIRECT(\"'\"&F1686&\"'!\"&H1686),\"0\"),Notes!$B$5:$C$100,2,FALSE),\"\"))","v":""},"1a","$G$28","$H$28"]
[13177,{"$f":"Menu!$F$29","v":"X"},{"$f":"Menu!$J$29","v":2020},{"$f":"IF(ISBLANK(INDIRECT(\"'\"&F1687&\"'!\"&G1687)),\"\",INDIRECT(\"'\"&F1687&\"'!\"&G1687))","v":""},{"$f":"IF(ISBLANK(INDIRECT(\"'\"&F1687&\"'!\"&H1687)),\"\",IFERROR(VLOOKUP(TEXT(INDIRECT(\"'\"&F1687&\"'!\"&H1687),\"0\"),Notes!$B$5:$C$100,2,FALSE),\"\"))","v":""},"1a","$I$28","$J$28"]
[13178,{"$f":"Menu!$F$29","v":"X"},{"$f":"Menu!$J$29","v":2020},{"$f":"IF(ISBLANK(INDIRECT(\"'\"&F1688&\"'!\"&G1688)),\"\",INDIRECT(\"'\"&F1688&\"'!\"&G1688))","v":""},{"$f":"IF(ISBLANK(INDIRECT(\"'\"&F1688&\"'!\"&H1688)),\"\",IFERROR(VLOOKUP(TEXT(INDIRECT(\"'\"&F1688&\"'!\"&H1688),\"0\"),Notes!$B$5:$C$100,2,FALSE),\"\"))","v":""},"1a","$E$29","$F$29"]
[13179,{"$f":"Menu!$F$29","v":"X"},{"$f":"Menu!$J$29","v":2020},{"$f":"IF(ISBLANK(INDIRECT(\"'\"&F1689&\"'!\"&G1689)),\"\",INDIRECT(\"'\"&F1689&\"'!\"&G1689))","v":""},{"$f":"IF(ISBLANK(INDIRECT(\"'\"&F1689&\"'!\"&H1689)),\"\",IFERROR(VLOOKUP(TEXT(INDIRECT(\"'\"&F1689&\"'!\"&H1689),\"0\"),Notes!$B$5:$C$100,2,FALSE),\"\"))","v":""},"1a","$G$29","$H$29"]
[13180,{"$f":"Menu!$F$29","v":"X"},{"$f":"Menu!$J$29","v":2020},{"$f":"IF(ISBLANK(INDIRECT(\"'\"&F1690&\"'!\"&G1690)),\"\",INDIRECT(\"'\"&F1690&\"'!\"&G1690))","v":""},{"$f":"IF(ISBLANK(INDIRECT(\"'\"&F1690&\"'!\"&H1690)),\"\",IFERROR(VLOOKUP(TEXT(INDIRECT(\"'\"&F1690&\"'!\"&H1690),\"0\"),Notes!$B$5:$C$100,2,FALSE),\"\"))","v":""},"1a","$I$29","$J$29"]
[13181,{"$f":"Menu!$F$29","v":"X"},{"$f":"Menu!$J$29","v":2020},{"$f":"IF(ISBLANK(INDIRECT(\"'\"&F1691&\"'!\"&G1691)),\"\",INDIRECT(\"'\"&F1691&\"'!\"&G1691))","v":""},{"$f":"IF(ISBLANK(INDIRECT(\"'\"&F1691&\"'!\"&H1691)),\"\",IFERROR(VLOOKUP(TEXT(INDIRECT(\"'\"&F1691&\"'!\"&H1691),\"0\"),Notes!$B$5:$C$100,2,FALSE),\"\"))","v":""},"1a","$K$27","$L$27"]
[13182,{"$f":"Menu!$F$29","v":"X"},{"$f":"Menu!$J$29","v":2020},{"$f":"IF(ISBLANK(INDIRECT(\"'\"&F1692&\"'!\"&G1692)),\"\",INDIRECT(\"'\"&F1692&\"'!\"&G1692))","v":""},{"$f":"IF(ISBLANK(INDIRECT(\"'\"&F1692&\"'!\"&H1692)),\"\",IFERROR(VLOOKUP(TEXT(INDIRECT(\"'\"&F1692&\"'!\"&H1692),\"0\"),Notes!$B$5:$C$100,2,FALSE),\"\"))","v":""},"1a","$M$27","$N$27"]
[13183,{"$f":"Menu!$F$29","v":"X"},{"$f":"Menu!$J$29","v":2020},{"$f":"IF(ISBLANK(INDIRECT(\"'\"&F1693&\"'!\"&G1693)),\"\",INDIRECT(\"'\"&F1693&\"'!\"&G1693))","v":""},{"$f":"IF(ISBLANK(INDIRECT(\"'\"&F1693&\"'!\"&H1693)),\"\",IFERROR(VLOOKUP(TEXT(INDIRECT(\"'\"&F1693&\"'!\"&H1693),\"0\"),Notes!$B$5:$C$100,2,FALSE),\"\"))","v":""},"1a","$O$27","$P$27"]
[13184,{"$f":"Menu!$F$29","v":"X"},{"$f":"Menu!$J$29","v":2020},{"$f":"IF(ISBLANK(INDIRECT(\"'\"&F1694&\"'!\"&G1694)),\"\",INDIRECT(\"'\"&F1694&\"'!\"&G1694))","v":""},{"$f":"IF(ISBLANK(INDIRECT(\"'\"&F1694&\"'!\"&H1694)),\"\",IFERROR(VLOOKUP(TEXT(INDIRECT(\"'\"&F1694&\"'!\"&H1694),\"0\"),Notes!$B$5:$C$100,2,FALSE),\"\"))","v":""},"1a","$K$28","$L$28"]
[13185,{"$f":"Menu!$F$29","v":"X"},{"$f":"Menu!$J$29","v":2020},{"$f":"IF(ISBLANK(INDIRECT(\"'\"&F1695&\"'!\"&G1695)),\"\",INDIRECT(\"'\"&F1695&\"'!\"&G1695))","v":""},{"$f":"IF(ISBLANK(INDIRECT(\"'\"&F1695&\"'!\"&H1695)),\"\",IFERROR(VLOOKUP(TEXT(INDIRECT(\"'\"&F1695&\"'!\"&H1695),\"0\"),Notes!$B$5:$C$100,2,FALSE),\"\"))","v":""},"1a","$M$28","$N$28"]
[13186,{"$f":"Menu!$F$29","v":"X"},{"$f":"Menu!$J$29","v":2020},{"$f":"IF(ISBLANK(INDIRECT(\"'\"&F1696&\"'!\"&G1696)),\"\",INDIRECT(\"'\"&F1696&\"'!\"&G1696))","v":""},{"$f":"IF(ISBLANK(INDIRECT(\"'\"&F1696&\"'!\"&H1696)),\"\",IFERROR(VLOOKUP(TEXT(INDIRECT(\"'\"&F1696&\"'!\"&H1696),\"0\"),Notes!$B$5:$C$100,2,FALSE),\"\"))","v":""},"1a","$O$28","$P$28"]
[13187,{"$f":"Menu!$F$29","v":"X"},{"$f":"Menu!$J$29","v":2020},{"$f":"IF(ISBLANK(INDIRECT(\"'\"&F1697&\"'!\"&G1697)),\"\",INDIRECT(\"'\"&F1697&\"'!\"&G1697))","v":""},{"$f":"IF(ISBLANK(INDIRECT(\"'\"&F1697&\"'!\"&H1697)),\"\",IFERROR(VLOOKUP(TEXT(INDIRECT(\"'\"&F1697&\"'!\"&H1697),\"0\"),Notes!$B$5:$C$100,2,FALSE),\"\"))","v":""},"1a","$K$29","$L$29"]
[13188,{"$f":"Menu!$F$29","v":"X"},{"$f":"Menu!$J$29","v":2020},{"$f":"IF(ISBLANK(INDIRECT(\"'\"&F1698&\"'!\"&G1698)),\"\",INDIRECT(\"'\"&F1698&\"'!\"&G1698))","v":""},{"$f":"IF(ISBLANK(INDIRECT(\"'\"&F1698&\"'!\"&H1698)),\"\",IFERROR(VLOOKUP(TEXT(INDIRECT(\"'\"&F1698&\"'!\"&H1698),\"0\"),Notes!$B$5:$C$100,2,FALSE),\"\"))","v":""},"1a","$M$29","$N$29"]
[13189,{"$f":"Menu!$F$29","v":"X"},{"$f":"Menu!$J$29","v":2020},{"$f":"IF(ISBLANK(INDIRECT(\"'\"&F1699&\"'!\"&G1699)),\"\",INDIRECT(\"'\"&F1699&\"'!\"&G1699))","v":""},{"$f":"IF(ISBLANK(INDIRECT(\"'\"&F1699&\"'!\"&H1699)),\"\",IFERROR(VLOOKUP(TEXT(INDIRECT(\"'\"&F1699&\"'!\"&H1699),\"0\"),Notes!$B$5:$C$100,2,FALSE),\"\"))","v":""},"1a","$O$29","$P$29"]
[13190,{"$f":"Menu!$F$29","v":"X"},{"$f":"Menu!$J$29","v":2020},{"$f":"IF(ISBLANK(INDIRECT(\"'\"&F1700&\"'!\"&G1700)),\"\",INDIRECT(\"'\"&F1700&\"'!\"&G1700))","v":""},{"$f":"IF(ISBLANK(INDIRECT(\"'\"&F1700&\"'!\"&H1700)),\"\",IFERROR(VLOOKUP(TEXT(INDIRECT(\"'\"&F1700&\"'!\"&H1700),\"0\"),Notes!$B$5:$C$100,2,FALSE),\"\"))","v":""},"1a","$Q$27","$R$27"]
[13191,{"$f":"Menu!$F$29","v":"X"},{"$f":"Menu!$J$29","v":2020},{"$f":"IF(ISBLANK(INDIRECT(\"'\"&F1701&\"'!\"&G1701)),\"\",INDIRECT(\"'\"&F1701&\"'!\"&G1701))","v":""},{"$f":"IF(ISBLANK(INDIRECT(\"'\"&F1701&\"'!\"&H1701)),\"\",IFERROR(VLOOKUP(TEXT(INDIRECT(\"'\"&F1701&\"'!\"&H1701),\"0\"),Notes!$B$5:$C$100,2,FALSE),\"\"))","v":""},"1a","$S$27","$T$27"]
[13192,{"$f":"Menu!$F$29","v":"X"},{"$f":"Menu!$J$29","v":2020},{"$f":"IF(ISBLANK(INDIRECT(\"'\"&F1702&\"'!\"&G1702)),\"\",INDIRECT(\"'\"&F1702&\"'!\"&G1702))","v":""},{"$f":"IF(ISBLANK(INDIRECT(\"'\"&F1702&\"'!\"&H1702)),\"\",IFERROR(VLOOKUP(TEXT(INDIRECT(\"'\"&F1702&\"'!\"&H1702),\"0\"),Notes!$B$5:$C$100,2,FALSE),\"\"))","v":""},"1a","$U$27","$V$27"]
[13193,{"$f":"Menu!$F$29","v":"X"},{"$f":"Menu!$J$29","v":2020},{"$f":"IF(ISBLANK(INDIRECT(\"'\"&F1703&\"'!\"&G1703)),\"\",INDIRECT(\"'\"&F1703&\"'!\"&G1703))","v":""},{"$f":"IF(ISBLANK(INDIRECT(\"'\"&F1703&\"'!\"&H1703)),\"\",IFERROR(VLOOKUP(TEXT(INDIRECT(\"'\"&F1703&\"'!\"&H1703),\"0\"),Notes!$B$5:$C$100,2,FALSE),\"\"))","v":""},"1a","$Q$28","$R$28"]
[13194,{"$f":"Menu!$F$29","v":"X"},{"$f":"Menu!$J$29","v":2020},{"$f":"IF(ISBLANK(INDIRECT(\"'\"&F1704&\"'!\"&G1704)),\"\",INDIRECT(\"'\"&F1704&\"'!\"&G1704))","v":""},{"$f":"IF(ISBLANK(INDIRECT(\"'\"&F1704&\"'!\"&H1704)),\"\",IFERROR(VLOOKUP(TEXT(INDIRECT(\"'\"&F1704&\"'!\"&H1704),\"0\"),Notes!$B$5:$C$100,2,FALSE),\"\"))","v":""},"1a","$S$28","$T$28"]
[13195,{"$f":"Menu!$F$29","v":"X"},{"$f":"Menu!$J$29","v":2020},{"$f":"IF(ISBLANK(INDIRECT(\"'\"&F1705&\"'!\"&G1705)),\"\",INDIRECT(\"'\"&F1705&\"'!\"&G1705))","v":""},{"$f":"IF(ISBLANK(INDIRECT(\"'\"&F1705&\"'!\"&H1705)),\"\",IFERROR(VLOOKUP(TEXT(INDIRECT(\"'\"&F1705&\"'!\"&H1705),\"0\"),Notes!$B$5:$C$100,2,FALSE),\"\"))","v":""},"1a","$U$28","$V$28"]
[13196,{"$f":"Menu!$F$29","v":"X"},{"$f":"Menu!$J$29","v":2020},{"$f":"IF(ISBLANK(INDIRECT(\"'\"&F1706&\"'!\"&G1706)),\"\",INDIRECT(\"'\"&F1706&\"'!\"&G1706))","v":""},{"$f":"IF(ISBLANK(INDIRECT(\"'\"&F1706&\"'!\"&H1706)),\"\",IFERROR(VLOOKUP(TEXT(INDIRECT(\"'\"&F1706&\"'!\"&H1706),\"0\"),Notes!$B$5:$C$100,2,FALSE),\"\"))","v":""},"1a","$Q$29","$R$29"]
[13197,{"$f":"Menu!$F$29","v":"X"},{"$f":"Menu!$J$29","v":2020},{"$f":"IF(ISBLANK(INDIRECT(\"'\"&F1707&\"'!\"&G1707)),\"\",INDIRECT(\"'\"&F1707&\"'!\"&G1707))","v":""},{"$f":"IF(ISBLANK(INDIRECT(\"'\"&F1707&\"'!\"&H1707)),\"\",IFERROR(VLOOKUP(TEXT(INDIRECT(\"'\"&F1707&\"'!\"&H1707),\"0\"),Notes!$B$5:$C$100,2,FALSE),\"\"))","v":""},"1a","$S$29","$T$29"]
[13198,{"$f":"Menu!$F$29","v":"X"},{"$f":"Menu!$J$29","v":2020},{"$f":"IF(ISBLANK(INDIRECT(\"'\"&F1708&\"'!\"&G1708)),\"\",INDIRECT(\"'\"&F1708&\"'!\"&G1708))","v":""},{"$f":"IF(ISBLANK(INDIRECT(\"'\"&F1708&\"'!\"&H1708)),\"\",IFERROR(VLOOKUP(TEXT(INDIRECT(\"'\"&F1708&\"'!\"&H1708),\"0\"),Notes!$B$5:$C$100,2,FALSE),\"\"))","v":""},"1a","$U$29","$V$29"]
[13199,{"$f":"Menu!$F$29","v":"X"},{"$f":"Menu!$J$29","v":2020},{"$f":"IF(ISBLANK(INDIRECT(\"'\"&F1709&\"'!\"&G1709)),\"\",INDIRECT(\"'\"&F1709&\"'!\"&G1709))","v":""},{"$f":"IF(ISBLANK(INDIRECT(\"'\"&F1709&\"'!\"&H1709)),\"\",IFERROR(VLOOKUP(TEXT(INDIRECT(\"'\"&F1709&\"'!\"&H1709),\"0\"),Notes!$B$5:$C$100,2,FALSE),\"\"))","v":""},"1a","$E$40","$F$40"]
[13200,{"$f":"Menu!$F$29","v":"X"},{"$f":"Menu!$J$29","v":2020},{"$f":"IF(ISBLANK(INDIRECT(\"'\"&F1710&\"'!\"&G1710)),\"\",INDIRECT(\"'\"&F1710&\"'!\"&G1710))","v":""},{"$f":"IF(ISBLANK(INDIRECT(\"'\"&F1710&\"'!\"&H1710)),\"\",IFERROR(VLOOKUP(TEXT(INDIRECT(\"'\"&F1710&\"'!\"&H1710),\"0\"),Notes!$B$5:$C$100,2,FALSE),\"\"))","v":""},"1a","$G$40","$H$40"]
[13201,{"$f":"Menu!$F$29","v":"X"},{"$f":"Menu!$J$29","v":2020},{"$f":"IF(ISBLANK(INDIRECT(\"'\"&F1711&\"'!\"&G1711)),\"\",INDIRECT(\"'\"&F1711&\"'!\"&G1711))","v":""},{"$f":"IF(ISBLANK(INDIRECT(\"'\"&F1711&\"'!\"&H1711)),\"\",IFERROR(VLOOKUP(TEXT(INDIRECT(\"'\"&F1711&\"'!\"&H1711),\"0\"),Notes!$B$5:$C$100,2,FALSE),\"\"))","v":""},"1a","$I$40","$J$40"]
[13202,{"$f":"Menu!$F$29","v":"X"},{"$f":"Menu!$J$29","v":2020},{"$f":"IF(ISBLANK(INDIRECT(\"'\"&F1712&\"'!\"&G1712)),\"\",INDIRECT(\"'\"&F1712&\"'!\"&G1712))","v":""},{"$f":"IF(ISBLANK(INDIRECT(\"'\"&F1712&\"'!\"&H1712)),\"\",IFERROR(VLOOKUP(TEXT(INDIRECT(\"'\"&F1712&\"'!\"&H1712),\"0\"),Notes!$B$5:$C$100,2,FALSE),\"\"))","v":""},"1a","$K$40","$L$40"]
[13203,{"$f":"Menu!$F$29","v":"X"},{"$f":"Menu!$J$29","v":2020},{"$f":"IF(ISBLANK(INDIRECT(\"'\"&F1713&\"'!\"&G1713)),\"\",INDIRECT(\"'\"&F1713&\"'!\"&G1713))","v":""},{"$f":"IF(ISBLANK(INDIRECT(\"'\"&F1713&\"'!\"&H1713)),\"\",IFERROR(VLOOKUP(TEXT(INDIRECT(\"'\"&F1713&\"'!\"&H1713),\"0\"),Notes!$B$5:$C$100,2,FALSE),\"\"))","v":""},"1a","$M$40","$N$40"]
[13204,{"$f":"Menu!$F$29","v":"X"},{"$f":"Menu!$J$29","v":2020},{"$f":"IF(ISBLANK(INDIRECT(\"'\"&F1714&\"'!\"&G1714)),\"\",INDIRECT(\"'\"&F1714&\"'!\"&G1714))","v":""},{"$f":"IF(ISBLANK(INDIRECT(\"'\"&F1714&\"'!\"&H1714)),\"\",IFERROR(VLOOKUP(TEXT(INDIRECT(\"'\"&F1714&\"'!\"&H1714),\"0\"),Notes!$B$5:$C$100,2,FALSE),\"\"))","v":""},"1a","$O$40","$P$40"]
[13205,{"$f":"Menu!$F$29","v":"X"},{"$f":"Menu!$J$29","v":2020},{"$f":"IF(ISBLANK(INDIRECT(\"'\"&F1715&\"'!\"&G1715)),\"\",INDIRECT(\"'\"&F1715&\"'!\"&G1715))","v":""},{"$f":"IF(ISBLANK(INDIRECT(\"'\"&F1715&\"'!\"&H1715)),\"\",IFERROR(VLOOKUP(TEXT(INDIRECT(\"'\"&F1715&\"'!\"&H1715),\"0\"),Notes!$B$5:$C$100,2,FALSE),\"\"))","v":""},"1a","$Q$40","$R$40"]
[13206,{"$f":"Menu!$F$29","v":"X"},{"$f":"Menu!$J$29","v":2020},{"$f":"IF(ISBLANK(INDIRECT(\"'\"&F1716&\"'!\"&G1716)),\"\",INDIRECT(\"'\"&F1716&\"'!\"&G1716))","v":""},{"$f":"IF(ISBLANK(INDIRECT(\"'\"&F1716&\"'!\"&H1716)),\"\",IFERROR(VLOOKUP(TEXT(INDIRECT(\"'\"&F1716&\"'!\"&H1716),\"0\"),Notes!$B$5:$C$100,2,FALSE),\"\"))","v":""},"1a","$S$40","$T$40"]
[13207,{"$f":"Menu!$F$29","v":"X"},{"$f":"Menu!$J$29","v":2020},{"$f":"IF(ISBLANK(INDIRECT(\"'\"&F1717&\"'!\"&G1717)),\"\",INDIRECT(\"'\"&F1717&\"'!\"&G1717))","v":""},{"$f":"IF(ISBLANK(INDIRECT(\"'\"&F1717&\"'!\"&H1717)),\"\",IFERROR(VLOOKUP(TEXT(INDIRECT(\"'\"&F1717&\"'!\"&H1717),\"0\"),Notes!$B$5:$C$100,2,FALSE),\"\"))","v":""},"1a","$U$40","$V$40"]
[13208,{"$f":"Menu!$F$29","v":"X"},{"$f":"Menu!$J$29","v":2020},{"$f":"IF(ISBLANK(INDIRECT(\"'\"&F1718&\"'!\"&G1718)),\"\",INDIRECT(\"'\"&F1718&\"'!\"&G1718))","v":""},{"$f":"IF(ISBLANK(INDIRECT(\"'\"&F1718&\"'!\"&H1718)),\"\",IFERROR(VLOOKUP(TEXT(INDIRECT(\"'\"&F1718&\"'!\"&H1718),\"0\"),Notes!$B$5:$C$100,2,FALSE),\"\"))","v":""},"1a","$E$41","$F$41"]
[13209,{"$f":"Menu!$F$29","v":"X"},{"$f":"Menu!$J$29","v":2020},{"$f":"IF(ISBLANK(INDIRECT(\"'\"&F1719&\"'!\"&G1719)),\"\",INDIRECT(\"'\"&F1719&\"'!\"&G1719))","v":""},{"$f":"IF(ISBLANK(INDIRECT(\"'\"&F1719&\"'!\"&H1719)),\"\",IFERROR(VLOOKUP(TEXT(INDIRECT(\"'\"&F1719&\"'!\"&H1719),\"0\"),Notes!$B$5:$C$100,2,FALSE),\"\"))","v":""},"1a","$G$41","$H$41"]
[13210,{"$f":"Menu!$F$29","v":"X"},{"$f":"Menu!$J$29","v":2020},{"$f":"IF(ISBLANK(INDIRECT(\"'\"&F1720&\"'!\"&G1720)),\"\",INDIRECT(\"'\"&F1720&\"'!\"&G1720))","v":""},{"$f":"IF(ISBLANK(INDIRECT(\"'\"&F1720&\"'!\"&H1720)),\"\",IFERROR(VLOOKUP(TEXT(INDIRECT(\"'\"&F1720&\"'!\"&H1720),\"0\"),Notes!$B$5:$C$100,2,FALSE),\"\"))","v":""},"1a","$I$41","$J$41"]
[13211,{"$f":"Menu!$F$29","v":"X"},{"$f":"Menu!$J$29","v":2020},{"$f":"IF(ISBLANK(INDIRECT(\"'\"&F1721&\"'!\"&G1721)),\"\",INDIRECT(\"'\"&F1721&\"'!\"&G1721))","v":""},{"$f":"IF(ISBLANK(INDIRECT(\"'\"&F1721&\"'!\"&H1721)),\"\",IFERROR(VLOOKUP(TEXT(INDIRECT(\"'\"&F1721&\"'!\"&H1721),\"0\"),Notes!$B$5:$C$100,2,FALSE),\"\"))","v":""},"1a","$K$41","$L$41"]
[13212,{"$f":"Menu!$F$29","v":"X"},{"$f":"Menu!$J$29","v":2020},{"$f":"IF(ISBLANK(INDIRECT(\"'\"&F1722&\"'!\"&G1722)),\"\",INDIRECT(\"'\"&F1722&\"'!\"&G1722))","v":""},{"$f":"IF(ISBLANK(INDIRECT(\"'\"&F1722&\"'!\"&H1722)),\"\",IFERROR(VLOOKUP(TEXT(INDIRECT(\"'\"&F1722&\"'!\"&H1722),\"0\"),Notes!$B$5:$C$100,2,FALSE),\"\"))","v":""},"1a","$M$41","$N$41"]
[13213,{"$f":"Menu!$F$29","v":"X"},{"$f":"Menu!$J$29","v":2020},{"$f":"IF(ISBLANK(INDIRECT(\"'\"&F1723&\"'!\"&G1723)),\"\",INDIRECT(\"'\"&F1723&\"'!\"&G1723))","v":""},{"$f":"IF(ISBLANK(INDIRECT(\"'\"&F1723&\"'!\"&H1723)),\"\",IFERROR(VLOOKUP(TEXT(INDIRECT(\"'\"&F1723&\"'!\"&H1723),\"0\"),Notes!$B$5:$C$100,2,FALSE),\"\"))","v":""},"1a","$O$41","$P$41"]
[13214,{"$f":"Menu!$F$29","v":"X"},{"$f":"Menu!$J$29","v":2020},{"$f":"IF(ISBLANK(INDIRECT(\"'\"&F1724&\"'!\"&G1724)),\"\",INDIRECT(\"'\"&F1724&\"'!\"&G1724))","v":""},{"$f":"IF(ISBLANK(INDIRECT(\"'\"&F1724&\"'!\"&H1724)),\"\",IFERROR(VLOOKUP(TEXT(INDIRECT(\"'\"&F1724&\"'!\"&H1724),\"0\"),Notes!$B$5:$C$100,2,FALSE),\"\"))","v":""},"1a","$Q$41","$R$41"]
[13215,{"$f":"Menu!$F$29","v":"X"},{"$f":"Menu!$J$29","v":2020},{"$f":"IF(ISBLANK(INDIRECT(\"'\"&F1725&\"'!\"&G1725)),\"\",INDIRECT(\"'\"&F1725&\"'!\"&G1725))","v":""},{"$f":"IF(ISBLANK(INDIRECT(\"'\"&F1725&\"'!\"&H1725)),\"\",IFERROR(VLOOKUP(TEXT(INDIRECT(\"'\"&F1725&\"'!\"&H1725),\"0\"),Notes!$B$5:$C$100,2,FALSE),\"\"))","v":""},"1a","$S$41","$T$41"]
[13216,{"$f":"Menu!$F$29","v":"X"},{"$f":"Menu!$J$29","v":2020},{"$f":"IF(ISBLANK(INDIRECT(\"'\"&F1726&\"'!\"&G1726)),\"\",INDIRECT(\"'\"&F1726&\"'!\"&G1726))","v":""},{"$f":"IF(ISBLANK(INDIRECT(\"'\"&F1726&\"'!\"&H1726)),\"\",IFERROR(VLOOKUP(TEXT(INDIRECT(\"'\"&F1726&\"'!\"&H1726),\"0\"),Notes!$B$5:$C$100,2,FALSE),\"\"))","v":""},"1a","$U$41","$V$41"]
[13217,{"$f":"Menu!$F$29","v":"X"},{"$f":"Menu!$J$29","v":2020},{"$f":"IF(ISBLANK(INDIRECT(\"'\"&F1727&\"'!\"&G1727)),\"\",INDIRECT(\"'\"&F1727&\"'!\"&G1727))","v":""},{"$f":"IF(ISBLANK(INDIRECT(\"'\"&F1727&\"'!\"&H1727)),\"\",IFERROR(VLOOKUP(TEXT(INDIRECT(\"'\"&F1727&\"'!\"&H1727),\"0\"),Notes!$B$5:$C$100,2,FALSE),\"\"))","v":""},"1a","$E$39","$F$39"]
[13218,{"$f":"Menu!$F$29","v":"X"},{"$f":"Menu!$J$29","v":2020},{"$f":"IF(ISBLANK(INDIRECT(\"'\"&F1728&\"'!\"&G1728)),\"\",INDIRECT(\"'\"&F1728&\"'!\"&G1728))","v":""},{"$f":"IF(ISBLANK(INDIRECT(\"'\"&F1728&\"'!\"&H1728)),\"\",IFERROR(VLOOKUP(TEXT(INDIRECT(\"'\"&F1728&\"'!\"&H1728),\"0\"),Notes!$B$5:$C$100,2,FALSE),\"\"))","v":""},"1a","$G$39","$H$39"]
[13219,{"$f":"Menu!$F$29","v":"X"},{"$f":"Menu!$J$29","v":2020},{"$f":"IF(ISBLANK(INDIRECT(\"'\"&F1729&\"'!\"&G1729)),\"\",INDIRECT(\"'\"&F1729&\"'!\"&G1729))","v":""},{"$f":"IF(ISBLANK(INDIRECT(\"'\"&F1729&\"'!\"&H1729)),\"\",IFERROR(VLOOKUP(TEXT(INDIRECT(\"'\"&F1729&\"'!\"&H1729),\"0\"),Notes!$B$5:$C$100,2,FALSE),\"\"))","v":""},"1a","$I$39","$J$39"]
[13220,{"$f":"Menu!$F$29","v":"X"},{"$f":"Menu!$J$29","v":2020},{"$f":"IF(ISBLANK(INDIRECT(\"'\"&F1730&\"'!\"&G1730)),\"\",INDIRECT(\"'\"&F1730&\"'!\"&G1730))","v":""},{"$f":"IF(ISBLANK(INDIRECT(\"'\"&F1730&\"'!\"&H1730)),\"\",IFERROR(VLOOKUP(TEXT(INDIRECT(\"'\"&F1730&\"'!\"&H1730),\"0\"),Notes!$B$5:$C$100,2,FALSE),\"\"))","v":""},"1a","$K$39",{"$f":"IF(LEN(TRIM(MID(G1730,4,10)))-LEN(SUBSTITUTE(TRIM(MID(G1730,4,10)),\"$\",\"\"))=0,\"$\"&CHAR(CODE(MID(G1730,2,1))+1)&\"$\"&TRIM(MID(G1730,4,10)),\"$\"&MID(G1730,2,1)&CHAR(CODE(MID(G1730,3,1))+1)&\"$\"&TRIM(MID(G1730,5,11)))","v":"$L$39"}]
[13221,{"$f":"Menu!$F$29","v":"X"},{"$f":"Menu!$J$29","v":2020},{"$f":"IF(ISBLANK(INDIRECT(\"'\"&F1731&\"'!\"&G1731)),\"\",INDIRECT(\"'\"&F1731&\"'!\"&G1731))","v":""},{"$f":"IF(ISBLANK(INDIRECT(\"'\"&F1731&\"'!\"&H1731)),\"\",IFERROR(VLOOKUP(TEXT(INDIRECT(\"'\"&F1731&\"'!\"&H1731),\"0\"),Notes!$B$5:$C$100,2,FALSE),\"\"))","v":""},"1a","$M$39","$N$39"]
[13222,{"$f":"Menu!$F$29","v":"X"},{"$f":"Menu!$J$29","v":2020},{"$f":"IF(ISBLANK(INDIRECT(\"'\"&F1732&\"'!\"&G1732)),\"\",INDIRECT(\"'\"&F1732&\"'!\"&G1732))","v":""},{"$f":"IF(ISBLANK(INDIRECT(\"'\"&F1732&\"'!\"&H1732)),\"\",IFERROR(VLOOKUP(TEXT(INDIRECT(\"'\"&F1732&\"'!\"&H1732),\"0\"),Notes!$B$5:$C$100,2,FALSE),\"\"))","v":""},"1a","$O$39","$P$39"]
[13223,{"$f":"Menu!$F$29","v":"X"},{"$f":"Menu!$J$29","v":2020},{"$f":"IF(ISBLANK(INDIRECT(\"'\"&F1733&\"'!\"&G1733)),\"\",INDIRECT(\"'\"&F1733&\"'!\"&G1733))","v":""},{"$f":"IF(ISBLANK(INDIRECT(\"'\"&F1733&\"'!\"&H1733)),\"\",IFERROR(VLOOKUP(TEXT(INDIRECT(\"'\"&F1733&\"'!\"&H1733),\"0\"),Notes!$B$5:$C$100,2,FALSE),\"\"))","v":""},"1a","$Q$39","$R$39"]
[13224,{"$f":"Menu!$F$29","v":"X"},{"$f":"Menu!$J$29","v":2020},{"$f":"IF(ISBLANK(INDIRECT(\"'\"&F1734&\"'!\"&G1734)),\"\",INDIRECT(\"'\"&F1734&\"'!\"&G1734))","v":""},{"$f":"IF(ISBLANK(INDIRECT(\"'\"&F1734&\"'!\"&H1734)),\"\",IFERROR(VLOOKUP(TEXT(INDIRECT(\"'\"&F1734&\"'!\"&H1734),\"0\"),Notes!$B$5:$C$100,2,FALSE),\"\"))","v":""},"1a","$S$39","$T$39"]
[13225,{"$f":"Menu!$F$29","v":"X"},{"$f":"Menu!$J$29","v":2020},{"$f":"IF(ISBLANK(INDIRECT(\"'\"&F1735&\"'!\"&G1735)),\"\",INDIRECT(\"'\"&F1735&\"'!\"&G1735))","v":""},{"$f":"IF(ISBLANK(INDIRECT(\"'\"&F1735&\"'!\"&H1735)),\"\",IFERROR(VLOOKUP(TEXT(INDIRECT(\"'\"&F1735&\"'!\"&H1735),\"0\"),Notes!$B$5:$C$100,2,FALSE),\"\"))","v":""},"1a","$U$39","$V$39"]
[13226,{"$f":"Menu!$F$29","v":"X"},{"$f":"Menu!$J$29","v":2020},{"$f":"IF(ISBLANK(INDIRECT(\"'\"&F1736&\"'!\"&G1736)),\"\",INDIRECT(\"'\"&F1736&\"'!\"&G1736))","v":""},{"$f":"IF(ISBLANK(INDIRECT(\"'\"&F1736&\"'!\"&H1736)),\"\",IFERROR(VLOOKUP(TEXT(INDIRECT(\"'\"&F1736&\"'!\"&H1736),\"0\"),Notes!$B$5:$C$100,2,FALSE),\"\"))","v":""},"1a","$E$38","$F$38"]
[13227,{"$f":"Menu!$F$29","v":"X"},{"$f":"Menu!$J$29","v":2020},{"$f":"IF(ISBLANK(INDIRECT(\"'\"&F1737&\"'!\"&G1737)),\"\",INDIRECT(\"'\"&F1737&\"'!\"&G1737))","v":""},{"$f":"IF(ISBLANK(INDIRECT(\"'\"&F1737&\"'!\"&H1737)),\"\",IFERROR(VLOOKUP(TEXT(INDIRECT(\"'\"&F1737&\"'!\"&H1737),\"0\"),Notes!$B$5:$C$100,2,FALSE),\"\"))","v":""},"1a","$G$38","$H$38"]
[13228,{"$f":"Menu!$F$29","v":"X"},{"$f":"Menu!$J$29","v":2020},{"$f":"IF(ISBLANK(INDIRECT(\"'\"&F1738&\"'!\"&G1738)),\"\",INDIRECT(\"'\"&F1738&\"'!\"&G1738))","v":""},{"$f":"IF(ISBLANK(INDIRECT(\"'\"&F1738&\"'!\"&H1738)),\"\",IFERROR(VLOOKUP(TEXT(INDIRECT(\"'\"&F1738&\"'!\"&H1738),\"0\"),Notes!$B$5:$C$100,2,FALSE),\"\"))","v":""},"1a","$I$38","$J$38"]
[13229,{"$f":"Menu!$F$29","v":"X"},{"$f":"Menu!$J$29","v":2020},{"$f":"IF(ISBLANK(INDIRECT(\"'\"&F1739&\"'!\"&G1739)),\"\",INDIRECT(\"'\"&F1739&\"'!\"&G1739))","v":""},{"$f":"IF(ISBLANK(INDIRECT(\"'\"&F1739&\"'!\"&H1739)),\"\",IFERROR(VLOOKUP(TEXT(INDIRECT(\"'\"&F1739&\"'!\"&H1739),\"0\"),Notes!$B$5:$C$100,2,FALSE),\"\"))","v":""},"1a","$K$38","$L$38"]
[13230,{"$f":"Menu!$F$29","v":"X"},{"$f":"Menu!$J$29","v":2020},{"$f":"IF(ISBLANK(INDIRECT(\"'\"&F1740&\"'!\"&G1740)),\"\",INDIRECT(\"'\"&F1740&\"'!\"&G1740))","v":""},{"$f":"IF(ISBLANK(INDIRECT(\"'\"&F1740&\"'!\"&H1740)),\"\",IFERROR(VLOOKUP(TEXT(INDIRECT(\"'\"&F1740&\"'!\"&H1740),\"0\"),Notes!$B$5:$C$100,2,FALSE),\"\"))","v":""},"1a","$M$38","$N$38"]
[13231,{"$f":"Menu!$F$29","v":"X"},{"$f":"Menu!$J$29","v":2020},{"$f":"IF(ISBLANK(INDIRECT(\"'\"&F1741&\"'!\"&G1741)),\"\",INDIRECT(\"'\"&F1741&\"'!\"&G1741))","v":""},{"$f":"IF(ISBLANK(INDIRECT(\"'\"&F1741&\"'!\"&H1741)),\"\",IFERROR(VLOOKUP(TEXT(INDIRECT(\"'\"&F1741&\"'!\"&H1741),\"0\"),Notes!$B$5:$C$100,2,FALSE),\"\"))","v":""},"1a","$O$38","$P$38"]
[13232,{"$f":"Menu!$F$29","v":"X"},{"$f":"Menu!$J$29","v":2020},{"$f":"IF(ISBLANK(INDIRECT(\"'\"&F1742&\"'!\"&G1742)),\"\",INDIRECT(\"'\"&F1742&\"'!\"&G1742))","v":""},{"$f":"IF(ISBLANK(INDIRECT(\"'\"&F1742&\"'!\"&H1742)),\"\",IFERROR(VLOOKUP(TEXT(INDIRECT(\"'\"&F1742&\"'!\"&H1742),\"0\"),Notes!$B$5:$C$100,2,FALSE),\"\"))","v":""},"1a","$Q$38","$R$38"]
[13233,{"$f":"Menu!$F$29","v":"X"},{"$f":"Menu!$J$29","v":2020},{"$f":"IF(ISBLANK(INDIRECT(\"'\"&F1743&\"'!\"&G1743)),\"\",INDIRECT(\"'\"&F1743&\"'!\"&G1743))","v":""},{"$f":"IF(ISBLANK(INDIRECT(\"'\"&F1743&\"'!\"&H1743)),\"\",IFERROR(VLOOKUP(TEXT(INDIRECT(\"'\"&F1743&\"'!\"&H1743),\"0\"),Notes!$B$5:$C$100,2,FALSE),\"\"))","v":""},"1a","$S$38","$T$38"]
[13234,{"$f":"Menu!$F$29","v":"X"},{"$f":"Menu!$J$29","v":2020},{"$f":"IF(ISBLANK(INDIRECT(\"'\"&F1744&\"'!\"&G1744)),\"\",INDIRECT(\"'\"&F1744&\"'!\"&G1744))","v":""},{"$f":"IF(ISBLANK(INDIRECT(\"'\"&F1744&\"'!\"&H1744)),\"\",IFERROR(VLOOKUP(TEXT(INDIRECT(\"'\"&F1744&\"'!\"&H1744),\"0\"),Notes!$B$5:$C$100,2,FALSE),\"\"))","v":""},"1a","$U$38","$V$38"]
[13235,{"$f":"Menu!$F$29","v":"X"},{"$f":"Menu!$J$29","v":2020},{"$f":"IF(ISBLANK(INDIRECT(\"'\"&F1745&\"'!\"&G1745)),\"\",INDIRECT(\"'\"&F1745&\"'!\"&G1745))","v":""},{"$f":"IF(ISBLANK(INDIRECT(\"'\"&F1745&\"'!\"&H1745)),\"\",IFERROR(VLOOKUP(TEXT(INDIRECT(\"'\"&F1745&\"'!\"&H1745),\"0\"),Notes!$B$5:$C$100,2,FALSE),\"\"))","v":""},"1a","$E$14","$F$14"]
[13236,{"$f":"Menu!$F$29","v":"X"},{"$f":"Menu!$J$29","v":2020},{"$f":"IF(ISBLANK(INDIRECT(\"'\"&F1746&\"'!\"&G1746)),\"\",INDIRECT(\"'\"&F1746&\"'!\"&G1746))","v":""},{"$f":"IF(ISBLANK(INDIRECT(\"'\"&F1746&\"'!\"&H1746)),\"\",IFERROR(VLOOKUP(TEXT(INDIRECT(\"'\"&F1746&\"'!\"&H1746),\"0\"),Notes!$B$5:$C$100,2,FALSE),\"\"))","v":""},"1a","$G$14","$H$14"]
[13237,{"$f":"Menu!$F$29","v":"X"},{"$f":"Menu!$J$29","v":2020},{"$f":"IF(ISBLANK(INDIRECT(\"'\"&F1747&\"'!\"&G1747)),\"\",INDIRECT(\"'\"&F1747&\"'!\"&G1747))","v":""},{"$f":"IF(ISBLANK(INDIRECT(\"'\"&F1747&\"'!\"&H1747)),\"\",IFERROR(VLOOKUP(TEXT(INDIRECT(\"'\"&F1747&\"'!\"&H1747),\"0\"),Notes!$B$5:$C$100,2,FALSE),\"\"))","v":""},"1a","$I$14","$J$14"]
[13238,{"$f":"Menu!$F$29","v":"X"},{"$f":"Menu!$J$29","v":2020},{"$f":"IF(ISBLANK(INDIRECT(\"'\"&F1748&\"'!\"&G1748)),\"\",INDIRECT(\"'\"&F1748&\"'!\"&G1748))","v":""},{"$f":"IF(ISBLANK(INDIRECT(\"'\"&F1748&\"'!\"&H1748)),\"\",IFERROR(VLOOKUP(TEXT(INDIRECT(\"'\"&F1748&\"'!\"&H1748),\"0\"),Notes!$B$5:$C$100,2,FALSE),\"\"))","v":""},"1a","$K$14","$L$14"]
[13239,{"$f":"Menu!$F$29","v":"X"},{"$f":"Menu!$J$29","v":2020},{"$f":"IF(ISBLANK(INDIRECT(\"'\"&F1749&\"'!\"&G1749)),\"\",INDIRECT(\"'\"&F1749&\"'!\"&G1749))","v":""},{"$f":"IF(ISBLANK(INDIRECT(\"'\"&F1749&\"'!\"&H1749)),\"\",IFERROR(VLOOKUP(TEXT(INDIRECT(\"'\"&F1749&\"'!\"&H1749),\"0\"),Notes!$B$5:$C$100,2,FALSE),\"\"))","v":""},"1a","$M$14","$N$14"]
[13240,{"$f":"Menu!$F$29","v":"X"},{"$f":"Menu!$J$29","v":2020},{"$f":"IF(ISBLANK(INDIRECT(\"'\"&F1750&\"'!\"&G1750)),\"\",INDIRECT(\"'\"&F1750&\"'!\"&G1750))","v":""},{"$f":"IF(ISBLANK(INDIRECT(\"'\"&F1750&\"'!\"&H1750)),\"\",IFERROR(VLOOKUP(TEXT(INDIRECT(\"'\"&F1750&\"'!\"&H1750),\"0\"),Notes!$B$5:$C$100,2,FALSE),\"\"))","v":""},"1a","$O$14","$P$14"]
[13241,{"$f":"Menu!$F$29","v":"X"},{"$f":"Menu!$J$29","v":2020},{"$f":"IF(ISBLANK(INDIRECT(\"'\"&F1751&\"'!\"&G1751)),\"\",INDIRECT(\"'\"&F1751&\"'!\"&G1751))","v":""},{"$f":"IF(ISBLANK(INDIRECT(\"'\"&F1751&\"'!\"&H1751)),\"\",IFERROR(VLOOKUP(TEXT(INDIRECT(\"'\"&F1751&\"'!\"&H1751),\"0\"),Notes!$B$5:$C$100,2,FALSE),\"\"))","v":""},"1a","$Q$14","$R$14"]
[13242,{"$f":"Menu!$F$29","v":"X"},{"$f":"Menu!$J$29","v":2020},{"$f":"IF(ISBLANK(INDIRECT(\"'\"&F1752&\"'!\"&G1752)),\"\",INDIRECT(\"'\"&F1752&\"'!\"&G1752))","v":""},{"$f":"IF(ISBLANK(INDIRECT(\"'\"&F1752&\"'!\"&H1752)),\"\",IFERROR(VLOOKUP(TEXT(INDIRECT(\"'\"&F1752&\"'!\"&H1752),\"0\"),Notes!$B$5:$C$100,2,FALSE),\"\"))","v":""},"1a","$S$14","$T$14"]
[13243,{"$f":"Menu!$F$29","v":"X"},{"$f":"Menu!$J$29","v":2020},{"$f":"IF(ISBLANK(INDIRECT(\"'\"&F1753&\"'!\"&G1753)),\"\",INDIRECT(\"'\"&F1753&\"'!\"&G1753))","v":""},{"$f":"IF(ISBLANK(INDIRECT(\"'\"&F1753&\"'!\"&H1753)),\"\",IFERROR(VLOOKUP(TEXT(INDIRECT(\"'\"&F1753&\"'!\"&H1753),\"0\"),Notes!$B$5:$C$100,2,FALSE),\"\"))","v":""},"1a","$U$14","$V$14"]
[13244,{"$f":"Menu!$F$29","v":"X"},{"$f":"Menu!$J$29","v":2020},{"$f":"IF(ISBLANK(INDIRECT(\"'\"&F1754&\"'!\"&G1754)),\"\",INDIRECT(\"'\"&F1754&\"'!\"&G1754))","v":""},{"$f":"IF(ISBLANK(INDIRECT(\"'\"&F1754&\"'!\"&H1754)),\"\",IFERROR(VLOOKUP(TEXT(INDIRECT(\"'\"&F1754&\"'!\"&H1754),\"0\"),Notes!$B$5:$C$100,2,FALSE),\"\"))","v":""},"1a","$E$15","$F$15"]
[13245,{"$f":"Menu!$F$29","v":"X"},{"$f":"Menu!$J$29","v":2020},{"$f":"IF(ISBLANK(INDIRECT(\"'\"&F1755&\"'!\"&G1755)),\"\",INDIRECT(\"'\"&F1755&\"'!\"&G1755))","v":""},{"$f":"IF(ISBLANK(INDIRECT(\"'\"&F1755&\"'!\"&H1755)),\"\",IFERROR(VLOOKUP(TEXT(INDIRECT(\"'\"&F1755&\"'!\"&H1755),\"0\"),Notes!$B$5:$C$100,2,FALSE),\"\"))","v":""},"1a","$G$15","$H$15"]
[13246,{"$f":"Menu!$F$29","v":"X"},{"$f":"Menu!$J$29","v":2020},{"$f":"IF(ISBLANK(INDIRECT(\"'\"&F1756&\"'!\"&G1756)),\"\",INDIRECT(\"'\"&F1756&\"'!\"&G1756))","v":""},{"$f":"IF(ISBLANK(INDIRECT(\"'\"&F1756&\"'!\"&H1756)),\"\",IFERROR(VLOOKUP(TEXT(INDIRECT(\"'\"&F1756&\"'!\"&H1756),\"0\"),Notes!$B$5:$C$100,2,FALSE),\"\"))","v":""},"1a","$I$15","$J$15"]
[13247,{"$f":"Menu!$F$29","v":"X"},{"$f":"Menu!$J$29","v":2020},{"$f":"IF(ISBLANK(INDIRECT(\"'\"&F1757&\"'!\"&G1757)),\"\",INDIRECT(\"'\"&F1757&\"'!\"&G1757))","v":""},{"$f":"IF(ISBLANK(INDIRECT(\"'\"&F1757&\"'!\"&H1757)),\"\",IFERROR(VLOOKUP(TEXT(INDIRECT(\"'\"&F1757&\"'!\"&H1757),\"0\"),Notes!$B$5:$C$100,2,FALSE),\"\"))","v":""},"1a","$K$15","$L$15"]
[13248,{"$f":"Menu!$F$29","v":"X"},{"$f":"Menu!$J$29","v":2020},{"$f":"IF(ISBLANK(INDIRECT(\"'\"&F1758&\"'!\"&G1758)),\"\",INDIRECT(\"'\"&F1758&\"'!\"&G1758))","v":""},{"$f":"IF(ISBLANK(INDIRECT(\"'\"&F1758&\"'!\"&H1758)),\"\",IFERROR(VLOOKUP(TEXT(INDIRECT(\"'\"&F1758&\"'!\"&H1758),\"0\"),Notes!$B$5:$C$100,2,FALSE),\"\"))","v":""},"1a","$M$15","$N$15"]
[13249,{"$f":"Menu!$F$29","v":"X"},{"$f":"Menu!$J$29","v":2020},{"$f":"IF(ISBLANK(INDIRECT(\"'\"&F1759&\"'!\"&G1759)),\"\",INDIRECT(\"'\"&F1759&\"'!\"&G1759))","v":""},{"$f":"IF(ISBLANK(INDIRECT(\"'\"&F1759&\"'!\"&H1759)),\"\",IFERROR(VLOOKUP(TEXT(INDIRECT(\"'\"&F1759&\"'!\"&H1759),\"0\"),Notes!$B$5:$C$100,2,FALSE),\"\"))","v":""},"1a","$O$15","$P$15"]
[13250,{"$f":"Menu!$F$29","v":"X"},{"$f":"Menu!$J$29","v":2020},{"$f":"IF(ISBLANK(INDIRECT(\"'\"&F1760&\"'!\"&G1760)),\"\",INDIRECT(\"'\"&F1760&\"'!\"&G1760))","v":""},{"$f":"IF(ISBLANK(INDIRECT(\"'\"&F1760&\"'!\"&H1760)),\"\",IFERROR(VLOOKUP(TEXT(INDIRECT(\"'\"&F1760&\"'!\"&H1760),\"0\"),Notes!$B$5:$C$100,2,FALSE),\"\"))","v":""},"1a","$Q$15","$R$15"]
[13251,{"$f":"Menu!$F$29","v":"X"},{"$f":"Menu!$J$29","v":2020},{"$f":"IF(ISBLANK(INDIRECT(\"'\"&F1761&\"'!\"&G1761)),\"\",INDIRECT(\"'\"&F1761&\"'!\"&G1761))","v":""},{"$f":"IF(ISBLANK(INDIRECT(\"'\"&F1761&\"'!\"&H1761)),\"\",IFERROR(VLOOKUP(TEXT(INDIRECT(\"'\"&F1761&\"'!\"&H1761),\"0\"),Notes!$B$5:$C$100,2,FALSE),\"\"))","v":""},"1a","$S$15","$T$15"]
[13252,{"$f":"Menu!$F$29","v":"X"},{"$f":"Menu!$J$29","v":2020},{"$f":"IF(ISBLANK(INDIRECT(\"'\"&F1762&\"'!\"&G1762)),\"\",INDIRECT(\"'\"&F1762&\"'!\"&G1762))","v":""},{"$f":"IF(ISBLANK(INDIRECT(\"'\"&F1762&\"'!\"&H1762)),\"\",IFERROR(VLOOKUP(TEXT(INDIRECT(\"'\"&F1762&\"'!\"&H1762),\"0\"),Notes!$B$5:$C$100,2,FALSE),\"\"))","v":""},"1a","$U$15","$V$15"]
[13253,{"$f":"Menu!$F$29","v":"X"},{"$f":"Menu!$J$29","v":2020},{"$f":"IF(ISBLANK(INDIRECT(\"'\"&F1763&\"'!\"&G1763)),\"\",INDIRECT(\"'\"&F1763&\"'!\"&G1763))","v":""},{"$f":"IF(ISBLANK(INDIRECT(\"'\"&F1763&\"'!\"&H1763)),\"\",IFERROR(VLOOKUP(TEXT(INDIRECT(\"'\"&F1763&\"'!\"&H1763),\"0\"),Notes!$B$5:$C$100,2,FALSE),\"\"))","v":""},"1a","$E$16","$F$16"]
[13254,{"$f":"Menu!$F$29","v":"X"},{"$f":"Menu!$J$29","v":2020},{"$f":"IF(ISBLANK(INDIRECT(\"'\"&F1764&\"'!\"&G1764)),\"\",INDIRECT(\"'\"&F1764&\"'!\"&G1764))","v":""},{"$f":"IF(ISBLANK(INDIRECT(\"'\"&F1764&\"'!\"&H1764)),\"\",IFERROR(VLOOKUP(TEXT(INDIRECT(\"'\"&F1764&\"'!\"&H1764),\"0\"),Notes!$B$5:$C$100,2,FALSE),\"\"))","v":""},"1a","$G$16","$H$16"]
[13255,{"$f":"Menu!$F$29","v":"X"},{"$f":"Menu!$J$29","v":2020},{"$f":"IF(ISBLANK(INDIRECT(\"'\"&F1765&\"'!\"&G1765)),\"\",INDIRECT(\"'\"&F1765&\"'!\"&G1765))","v":""},{"$f":"IF(ISBLANK(INDIRECT(\"'\"&F1765&\"'!\"&H1765)),\"\",IFERROR(VLOOKUP(TEXT(INDIRECT(\"'\"&F1765&\"'!\"&H1765),\"0\"),Notes!$B$5:$C$100,2,FALSE),\"\"))","v":""},"1a","$I$16","$J$16"]
[13256,{"$f":"Menu!$F$29","v":"X"},{"$f":"Menu!$J$29","v":2020},{"$f":"IF(ISBLANK(INDIRECT(\"'\"&F1766&\"'!\"&G1766)),\"\",INDIRECT(\"'\"&F1766&\"'!\"&G1766))","v":""},{"$f":"IF(ISBLANK(INDIRECT(\"'\"&F1766&\"'!\"&H1766)),\"\",IFERROR(VLOOKUP(TEXT(INDIRECT(\"'\"&F1766&\"'!\"&H1766),\"0\"),Notes!$B$5:$C$100,2,FALSE),\"\"))","v":""},"1a","$K$16","$L$16"]
[13257,{"$f":"Menu!$F$29","v":"X"},{"$f":"Menu!$J$29","v":2020},{"$f":"IF(ISBLANK(INDIRECT(\"'\"&F1767&\"'!\"&G1767)),\"\",INDIRECT(\"'\"&F1767&\"'!\"&G1767))","v":""},{"$f":"IF(ISBLANK(INDIRECT(\"'\"&F1767&\"'!\"&H1767)),\"\",IFERROR(VLOOKUP(TEXT(INDIRECT(\"'\"&F1767&\"'!\"&H1767),\"0\"),Notes!$B$5:$C$100,2,FALSE),\"\"))","v":""},"1a","$M$16","$N$16"]
[13258,{"$f":"Menu!$F$29","v":"X"},{"$f":"Menu!$J$29","v":2020},{"$f":"IF(ISBLANK(INDIRECT(\"'\"&F1768&\"'!\"&G1768)),\"\",INDIRECT(\"'\"&F1768&\"'!\"&G1768))","v":""},{"$f":"IF(ISBLANK(INDIRECT(\"'\"&F1768&\"'!\"&H1768)),\"\",IFERROR(VLOOKUP(TEXT(INDIRECT(\"'\"&F1768&\"'!\"&H1768),\"0\"),Notes!$B$5:$C$100,2,FALSE),\"\"))","v":""},"1a","$O$16","$P$16"]
[13259,{"$f":"Menu!$F$29","v":"X"},{"$f":"Menu!$J$29","v":2020},{"$f":"IF(ISBLANK(INDIRECT(\"'\"&F1769&\"'!\"&G1769)),\"\",INDIRECT(\"'\"&F1769&\"'!\"&G1769))","v":""},{"$f":"IF(ISBLANK(INDIRECT(\"'\"&F1769&\"'!\"&H1769)),\"\",IFERROR(VLOOKUP(TEXT(INDIRECT(\"'\"&F1769&\"'!\"&H1769),\"0\"),Notes!$B$5:$C$100,2,FALSE),\"\"))","v":""},"1a","$Q$16","$R$16"]
[13260,{"$f":"Menu!$F$29","v":"X"},{"$f":"Menu!$J$29","v":2020},{"$f":"IF(ISBLANK(INDIRECT(\"'\"&F1770&\"'!\"&G1770)),\"\",INDIRECT(\"'\"&F1770&\"'!\"&G1770))","v":""},{"$f":"IF(ISBLANK(INDIRECT(\"'\"&F1770&\"'!\"&H1770)),\"\",IFERROR(VLOOKUP(TEXT(INDIRECT(\"'\"&F1770&\"'!\"&H1770),\"0\"),Notes!$B$5:$C$100,2,FALSE),\"\"))","v":""},"1a","$S$16","$T$16"]
[13261,{"$f":"Menu!$F$29","v":"X"},{"$f":"Menu!$J$29","v":2020},{"$f":"IF(ISBLANK(INDIRECT(\"'\"&F1771&\"'!\"&G1771)),\"\",INDIRECT(\"'\"&F1771&\"'!\"&G1771))","v":""},{"$f":"IF(ISBLANK(INDIRECT(\"'\"&F1771&\"'!\"&H1771)),\"\",IFERROR(VLOOKUP(TEXT(INDIRECT(\"'\"&F1771&\"'!\"&H1771),\"0\"),Notes!$B$5:$C$100,2,FALSE),\"\"))","v":""},"1a","$U$16","$V$16"]
[13262,{"$f":"Menu!$F$29","v":"X"},{"$f":"Menu!$J$29","v":2020},{"$f":"IF(ISBLANK(INDIRECT(\"'\"&F1772&\"'!\"&G1772)),\"\",INDIRECT(\"'\"&F1772&\"'!\"&G1772))","v":""},{"$f":"IF(ISBLANK(INDIRECT(\"'\"&F1772&\"'!\"&H1772)),\"\",IFERROR(VLOOKUP(TEXT(INDIRECT(\"'\"&F1772&\"'!\"&H1772),\"0\"),Notes!$B$5:$C$100,2,FALSE),\"\"))","v":""},"1a","$E$17","$F$17"]
[13263,{"$f":"Menu!$F$29","v":"X"},{"$f":"Menu!$J$29","v":2020},{"$f":"IF(ISBLANK(INDIRECT(\"'\"&F1773&\"'!\"&G1773)),\"\",INDIRECT(\"'\"&F1773&\"'!\"&G1773))","v":""},{"$f":"IF(ISBLANK(INDIRECT(\"'\"&F1773&\"'!\"&H1773)),\"\",IFERROR(VLOOKUP(TEXT(INDIRECT(\"'\"&F1773&\"'!\"&H1773),\"0\"),Notes!$B$5:$C$100,2,FALSE),\"\"))","v":""},"1a","$G$17","$H$17"]
[13264,{"$f":"Menu!$F$29","v":"X"},{"$f":"Menu!$J$29","v":2020},{"$f":"IF(ISBLANK(INDIRECT(\"'\"&F1774&\"'!\"&G1774)),\"\",INDIRECT(\"'\"&F1774&\"'!\"&G1774))","v":""},{"$f":"IF(ISBLANK(INDIRECT(\"'\"&F1774&\"'!\"&H1774)),\"\",IFERROR(VLOOKUP(TEXT(INDIRECT(\"'\"&F1774&\"'!\"&H1774),\"0\"),Notes!$B$5:$C$100,2,FALSE),\"\"))","v":""},"1a","$I$17","$J$17"]
[13265,{"$f":"Menu!$F$29","v":"X"},{"$f":"Menu!$J$29","v":2020},{"$f":"IF(ISBLANK(INDIRECT(\"'\"&F1775&\"'!\"&G1775)),\"\",INDIRECT(\"'\"&F1775&\"'!\"&G1775))","v":""},{"$f":"IF(ISBLANK(INDIRECT(\"'\"&F1775&\"'!\"&H1775)),\"\",IFERROR(VLOOKUP(TEXT(INDIRECT(\"'\"&F1775&\"'!\"&H1775),\"0\"),Notes!$B$5:$C$100,2,FALSE),\"\"))","v":""},"1a","$K$17","$L$17"]
[13266,{"$f":"Menu!$F$29","v":"X"},{"$f":"Menu!$J$29","v":2020},{"$f":"IF(ISBLANK(INDIRECT(\"'\"&F1776&\"'!\"&G1776)),\"\",INDIRECT(\"'\"&F1776&\"'!\"&G1776))","v":""},{"$f":"IF(ISBLANK(INDIRECT(\"'\"&F1776&\"'!\"&H1776)),\"\",IFERROR(VLOOKUP(TEXT(INDIRECT(\"'\"&F1776&\"'!\"&H1776),\"0\"),Notes!$B$5:$C$100,2,FALSE),\"\"))","v":""},"1a","$M$17","$N$17"]
[13267,{"$f":"Menu!$F$29","v":"X"},{"$f":"Menu!$J$29","v":2020},{"$f":"IF(ISBLANK(INDIRECT(\"'\"&F1777&\"'!\"&G1777)),\"\",INDIRECT(\"'\"&F1777&\"'!\"&G1777))","v":""},{"$f":"IF(ISBLANK(INDIRECT(\"'\"&F1777&\"'!\"&H1777)),\"\",IFERROR(VLOOKUP(TEXT(INDIRECT(\"'\"&F1777&\"'!\"&H1777),\"0\"),Notes!$B$5:$C$100,2,FALSE),\"\"))","v":""},"1a","$O$17","$P$17"]
[13268,{"$f":"Menu!$F$29","v":"X"},{"$f":"Menu!$J$29","v":2020},{"$f":"IF(ISBLANK(INDIRECT(\"'\"&F1778&\"'!\"&G1778)),\"\",INDIRECT(\"'\"&F1778&\"'!\"&G1778))","v":""},{"$f":"IF(ISBLANK(INDIRECT(\"'\"&F1778&\"'!\"&H1778)),\"\",IFERROR(VLOOKUP(TEXT(INDIRECT(\"'\"&F1778&\"'!\"&H1778),\"0\"),Notes!$B$5:$C$100,2,FALSE),\"\"))","v":""},"1a","$Q$17","$R$17"]
[13269,{"$f":"Menu!$F$29","v":"X"},{"$f":"Menu!$J$29","v":2020},{"$f":"IF(ISBLANK(INDIRECT(\"'\"&F1779&\"'!\"&G1779)),\"\",INDIRECT(\"'\"&F1779&\"'!\"&G1779))","v":""},{"$f":"IF(ISBLANK(INDIRECT(\"'\"&F1779&\"'!\"&H1779)),\"\",IFERROR(VLOOKUP(TEXT(INDIRECT(\"'\"&F1779&\"'!\"&H1779),\"0\"),Notes!$B$5:$C$100,2,FALSE),\"\"))","v":""},"1a","$S$17","$T$17"]
[13270,{"$f":"Menu!$F$29","v":"X"},{"$f":"Menu!$J$29","v":2020},{"$f":"IF(ISBLANK(INDIRECT(\"'\"&F1780&\"'!\"&G1780)),\"\",INDIRECT(\"'\"&F1780&\"'!\"&G1780))","v":""},{"$f":"IF(ISBLANK(INDIRECT(\"'\"&F1780&\"'!\"&H1780)),\"\",IFERROR(VLOOKUP(TEXT(INDIRECT(\"'\"&F1780&\"'!\"&H1780),\"0\"),Notes!$B$5:$C$100,2,FALSE),\"\"))","v":""},"1a","$U$17","$V$17"]
[13271,{"$f":"Menu!$F$29","v":"X"},{"$f":"Menu!$J$29","v":2020},{"$f":"IF(ISBLANK(INDIRECT(\"'\"&F1781&\"'!\"&G1781)),\"\",INDIRECT(\"'\"&F1781&\"'!\"&G1781))","v":""},{"$f":"IF(ISBLANK(INDIRECT(\"'\"&F1781&\"'!\"&H1781)),\"\",IFERROR(VLOOKUP(TEXT(INDIRECT(\"'\"&F1781&\"'!\"&H1781),\"0\"),Notes!$B$5:$C$100,2,FALSE),\"\"))","v":""},"1a","$E$18","$F$18"]
[13272,{"$f":"Menu!$F$29","v":"X"},{"$f":"Menu!$J$29","v":2020},{"$f":"IF(ISBLANK(INDIRECT(\"'\"&F1782&\"'!\"&G1782)),\"\",INDIRECT(\"'\"&F1782&\"'!\"&G1782))","v":""},{"$f":"IF(ISBLANK(INDIRECT(\"'\"&F1782&\"'!\"&H1782)),\"\",IFERROR(VLOOKUP(TEXT(INDIRECT(\"'\"&F1782&\"'!\"&H1782),\"0\"),Notes!$B$5:$C$100,2,FALSE),\"\"))","v":""},"1a","$G$18","$H$18"]
[13273,{"$f":"Menu!$F$29","v":"X"},{"$f":"Menu!$J$29","v":2020},{"$f":"IF(ISBLANK(INDIRECT(\"'\"&F1783&\"'!\"&G1783)),\"\",INDIRECT(\"'\"&F1783&\"'!\"&G1783))","v":""},{"$f":"IF(ISBLANK(INDIRECT(\"'\"&F1783&\"'!\"&H1783)),\"\",IFERROR(VLOOKUP(TEXT(INDIRECT(\"'\"&F1783&\"'!\"&H1783),\"0\"),Notes!$B$5:$C$100,2,FALSE),\"\"))","v":""},"1a","$I$18","$J$18"]
[13274,{"$f":"Menu!$F$29","v":"X"},{"$f":"Menu!$J$29","v":2020},{"$f":"IF(ISBLANK(INDIRECT(\"'\"&F1784&\"'!\"&G1784)),\"\",INDIRECT(\"'\"&F1784&\"'!\"&G1784))","v":""},{"$f":"IF(ISBLANK(INDIRECT(\"'\"&F1784&\"'!\"&H1784)),\"\",IFERROR(VLOOKUP(TEXT(INDIRECT(\"'\"&F1784&\"'!\"&H1784),\"0\"),Notes!$B$5:$C$100,2,FALSE),\"\"))","v":""},"1a","$K$18","$L$18"]
[13275,{"$f":"Menu!$F$29","v":"X"},{"$f":"Menu!$J$29","v":2020},{"$f":"IF(ISBLANK(INDIRECT(\"'\"&F1785&\"'!\"&G1785)),\"\",INDIRECT(\"'\"&F1785&\"'!\"&G1785))","v":""},{"$f":"IF(ISBLANK(INDIRECT(\"'\"&F1785&\"'!\"&H1785)),\"\",IFERROR(VLOOKUP(TEXT(INDIRECT(\"'\"&F1785&\"'!\"&H1785),\"0\"),Notes!$B$5:$C$100,2,FALSE),\"\"))","v":""},"1a","$M$18","$N$18"]
[13276,{"$f":"Menu!$F$29","v":"X"},{"$f":"Menu!$J$29","v":2020},{"$f":"IF(ISBLANK(INDIRECT(\"'\"&F1786&\"'!\"&G1786)),\"\",INDIRECT(\"'\"&F1786&\"'!\"&G1786))","v":""},{"$f":"IF(ISBLANK(INDIRECT(\"'\"&F1786&\"'!\"&H1786)),\"\",IFERROR(VLOOKUP(TEXT(INDIRECT(\"'\"&F1786&\"'!\"&H1786),\"0\"),Notes!$B$5:$C$100,2,FALSE),\"\"))","v":""},"1a","$O$18","$P$18"]
[13277,{"$f":"Menu!$F$29","v":"X"},{"$f":"Menu!$J$29","v":2020},{"$f":"IF(ISBLANK(INDIRECT(\"'\"&F1787&\"'!\"&G1787)),\"\",INDIRECT(\"'\"&F1787&\"'!\"&G1787))","v":""},{"$f":"IF(ISBLANK(INDIRECT(\"'\"&F1787&\"'!\"&H1787)),\"\",IFERROR(VLOOKUP(TEXT(INDIRECT(\"'\"&F1787&\"'!\"&H1787),\"0\"),Notes!$B$5:$C$100,2,FALSE),\"\"))","v":""},"1a","$Q$18","$R$18"]
[13278,{"$f":"Menu!$F$29","v":"X"},{"$f":"Menu!$J$29","v":2020},{"$f":"IF(ISBLANK(INDIRECT(\"'\"&F1788&\"'!\"&G1788)),\"\",INDIRECT(\"'\"&F1788&\"'!\"&G1788))","v":""},{"$f":"IF(ISBLANK(INDIRECT(\"'\"&F1788&\"'!\"&H1788)),\"\",IFERROR(VLOOKUP(TEXT(INDIRECT(\"'\"&F1788&\"'!\"&H1788),\"0\"),Notes!$B$5:$C$100,2,FALSE),\"\"))","v":""},"1a","$S$18","$T$18"]
[13279,{"$f":"Menu!$F$29","v":"X"},{"$f":"Menu!$J$29","v":2020},{"$f":"IF(ISBLANK(INDIRECT(\"'\"&F1789&\"'!\"&G1789)),\"\",INDIRECT(\"'\"&F1789&\"'!\"&G1789))","v":""},{"$f":"IF(ISBLANK(INDIRECT(\"'\"&F1789&\"'!\"&H1789)),\"\",IFERROR(VLOOKUP(TEXT(INDIRECT(\"'\"&F1789&\"'!\"&H1789),\"0\"),Notes!$B$5:$C$100,2,FALSE),\"\"))","v":""},"1a","$U$18","$V$18"]
[13280,{"$f":"Menu!$F$29","v":"X"},{"$f":"Menu!$J$29","v":2020},{"$f":"IF(ISBLANK(INDIRECT(\"'\"&F1790&\"'!\"&G1790)),\"\",INDIRECT(\"'\"&F1790&\"'!\"&G1790))","v":""},{"$f":"IF(ISBLANK(INDIRECT(\"'\"&F1790&\"'!\"&H1790)),\"\",IFERROR(VLOOKUP(TEXT(INDIRECT(\"'\"&F1790&\"'!\"&H1790),\"0\"),Notes!$B$5:$C$100,2,FALSE),\"\"))","v":""},"1a","$E$43","$F$43"]
[13281,{"$f":"Menu!$F$29","v":"X"},{"$f":"Menu!$J$29","v":2020},{"$f":"IF(ISBLANK(INDIRECT(\"'\"&F1791&\"'!\"&G1791)),\"\",INDIRECT(\"'\"&F1791&\"'!\"&G1791))","v":""},{"$f":"IF(ISBLANK(INDIRECT(\"'\"&F1791&\"'!\"&H1791)),\"\",IFERROR(VLOOKUP(TEXT(INDIRECT(\"'\"&F1791&\"'!\"&H1791),\"0\"),Notes!$B$5:$C$100,2,FALSE),\"\"))","v":""},"1a","$G$43","$H$43"]
[13282,{"$f":"Menu!$F$29","v":"X"},{"$f":"Menu!$J$29","v":2020},{"$f":"IF(ISBLANK(INDIRECT(\"'\"&F1792&\"'!\"&G1792)),\"\",INDIRECT(\"'\"&F1792&\"'!\"&G1792))","v":""},{"$f":"IF(ISBLANK(INDIRECT(\"'\"&F1792&\"'!\"&H1792)),\"\",IFERROR(VLOOKUP(TEXT(INDIRECT(\"'\"&F1792&\"'!\"&H1792),\"0\"),Notes!$B$5:$C$100,2,FALSE),\"\"))","v":""},"1a","$I$43","$J$43"]
[13283,{"$f":"Menu!$F$29","v":"X"},{"$f":"Menu!$J$29","v":2020},{"$f":"IF(ISBLANK(INDIRECT(\"'\"&F1793&\"'!\"&G1793)),\"\",INDIRECT(\"'\"&F1793&\"'!\"&G1793))","v":""},{"$f":"IF(ISBLANK(INDIRECT(\"'\"&F1793&\"'!\"&H1793)),\"\",IFERROR(VLOOKUP(TEXT(INDIRECT(\"'\"&F1793&\"'!\"&H1793),\"0\"),Notes!$B$5:$C$100,2,FALSE),\"\"))","v":""},"1a","$K$43","$L$43"]
[13284,{"$f":"Menu!$F$29","v":"X"},{"$f":"Menu!$J$29","v":2020},{"$f":"IF(ISBLANK(INDIRECT(\"'\"&F1794&\"'!\"&G1794)),\"\",INDIRECT(\"'\"&F1794&\"'!\"&G1794))","v":""},{"$f":"IF(ISBLANK(INDIRECT(\"'\"&F1794&\"'!\"&H1794)),\"\",IFERROR(VLOOKUP(TEXT(INDIRECT(\"'\"&F1794&\"'!\"&H1794),\"0\"),Notes!$B$5:$C$100,2,FALSE),\"\"))","v":""},"1a","$M$43",{"$f":"IF(LEN(TRIM(MID(G1794,4,10)))-LEN(SUBSTITUTE(TRIM(MID(G1794,4,10)),\"$\",\"\"))=0,\"$\"&CHAR(CODE(MID(G1794,2,1))+1)&\"$\"&TRIM(MID(G1794,4,10)),\"$\"&MID(G1794,2,1)&CHAR(CODE(MID(G1794,3,1))+1)&\"$\"&TRIM(MID(G1794,5,11)))","v":"$N$43"}]
[13285,{"$f":"Menu!$F$29","v":"X"},{"$f":"Menu!$J$29","v":2020},{"$f":"IF(ISBLANK(INDIRECT(\"'\"&F1795&\"'!\"&G1795)),\"\",INDIRECT(\"'\"&F1795&\"'!\"&G1795))","v":""},{"$f":"IF(ISBLANK(INDIRECT(\"'\"&F1795&\"'!\"&H1795)),\"\",IFERROR(VLOOKUP(TEXT(INDIRECT(\"'\"&F1795&\"'!\"&H1795),\"0\"),Notes!$B$5:$C$100,2,FALSE),\"\"))","v":""},"1a","$O$43","$P$43"]
[13286,{"$f":"Menu!$F$29","v":"X"},{"$f":"Menu!$J$29","v":2020},{"$f":"IF(ISBLANK(INDIRECT(\"'\"&F1796&\"'!\"&G1796)),\"\",INDIRECT(\"'\"&F1796&\"'!\"&G1796))","v":""},{"$f":"IF(ISBLANK(INDIRECT(\"'\"&F1796&\"'!\"&H1796)),\"\",IFERROR(VLOOKUP(TEXT(INDIRECT(\"'\"&F1796&\"'!\"&H1796),\"0\"),Notes!$B$5:$C$100,2,FALSE),\"\"))","v":""},"1a","$Q$43","$R$43"]
[13287,{"$f":"Menu!$F$29","v":"X"},{"$f":"Menu!$J$29","v":2020},{"$f":"IF(ISBLANK(INDIRECT(\"'\"&F1797&\"'!\"&G1797)),\"\",INDIRECT(\"'\"&F1797&\"'!\"&G1797))","v":""},{"$f":"IF(ISBLANK(INDIRECT(\"'\"&F1797&\"'!\"&H1797)),\"\",IFERROR(VLOOKUP(TEXT(INDIRECT(\"'\"&F1797&\"'!\"&H1797),\"0\"),Notes!$B$5:$C$100,2,FALSE),\"\"))","v":""},"1a","$S$43","$T$43"]
[13288,{"$f":"Menu!$F$29","v":"X"},{"$f":"Menu!$J$29","v":2020},{"$f":"IF(ISBLANK(INDIRECT(\"'\"&F1798&\"'!\"&G1798)),\"\",INDIRECT(\"'\"&F1798&\"'!\"&G1798))","v":""},{"$f":"IF(ISBLANK(INDIRECT(\"'\"&F1798&\"'!\"&H1798)),\"\",IFERROR(VLOOKUP(TEXT(INDIRECT(\"'\"&F1798&\"'!\"&H1798),\"0\"),Notes!$B$5:$C$100,2,FALSE),\"\"))","v":""},"1a","$U$43","$V$43"]
[13289,{"$f":"Menu!$F$29","v":"X"},{"$f":"Menu!$J$29","v":2020},{"$f":"IF(ISBLANK(INDIRECT(\"'\"&F1799&\"'!\"&G1799)),\"\",INDIRECT(\"'\"&F1799&\"'!\"&G1799))","v":""},{"$f":"IF(ISBLANK(INDIRECT(\"'\"&F1799&\"'!\"&H1799)),\"\",IFERROR(VLOOKUP(TEXT(INDIRECT(\"'\"&F1799&\"'!\"&H1799),\"0\"),Notes!$B$5:$C$100,2,FALSE),\"\"))","v":""},"1a","$E$44","$F$44"]
[13290,{"$f":"Menu!$F$29","v":"X"},{"$f":"Menu!$J$29","v":2020},{"$f":"IF(ISBLANK(INDIRECT(\"'\"&F1800&\"'!\"&G1800)),\"\",INDIRECT(\"'\"&F1800&\"'!\"&G1800))","v":""},{"$f":"IF(ISBLANK(INDIRECT(\"'\"&F1800&\"'!\"&H1800)),\"\",IFERROR(VLOOKUP(TEXT(INDIRECT(\"'\"&F1800&\"'!\"&H1800),\"0\"),Notes!$B$5:$C$100,2,FALSE),\"\"))","v":""},"1a","$G$44","$H$44"]
[13291,{"$f":"Menu!$F$29","v":"X"},{"$f":"Menu!$J$29","v":2020},{"$f":"IF(ISBLANK(INDIRECT(\"'\"&F1801&\"'!\"&G1801)),\"\",INDIRECT(\"'\"&F1801&\"'!\"&G1801))","v":""},{"$f":"IF(ISBLANK(INDIRECT(\"'\"&F1801&\"'!\"&H1801)),\"\",IFERROR(VLOOKUP(TEXT(INDIRECT(\"'\"&F1801&\"'!\"&H1801),\"0\"),Notes!$B$5:$C$100,2,FALSE),\"\"))","v":""},"1a","$I$44","$J$44"]
[13292,{"$f":"Menu!$F$29","v":"X"},{"$f":"Menu!$J$29","v":2020},{"$f":"IF(ISBLANK(INDIRECT(\"'\"&F1802&\"'!\"&G1802)),\"\",INDIRECT(\"'\"&F1802&\"'!\"&G1802))","v":""},{"$f":"IF(ISBLANK(INDIRECT(\"'\"&F1802&\"'!\"&H1802)),\"\",IFERROR(VLOOKUP(TEXT(INDIRECT(\"'\"&F1802&\"'!\"&H1802),\"0\"),Notes!$B$5:$C$100,2,FALSE),\"\"))","v":""},"1a","$K$44","$L$44"]
[13293,{"$f":"Menu!$F$29","v":"X"},{"$f":"Menu!$J$29","v":2020},{"$f":"IF(ISBLANK(INDIRECT(\"'\"&F1803&\"'!\"&G1803)),\"\",INDIRECT(\"'\"&F1803&\"'!\"&G1803))","v":""},{"$f":"IF(ISBLANK(INDIRECT(\"'\"&F1803&\"'!\"&H1803)),\"\",IFERROR(VLOOKUP(TEXT(INDIRECT(\"'\"&F1803&\"'!\"&H1803),\"0\"),Notes!$B$5:$C$100,2,FALSE),\"\"))","v":""},"1a","$M$44","$N$44"]
[13294,{"$f":"Menu!$F$29","v":"X"},{"$f":"Menu!$J$29","v":2020},{"$f":"IF(ISBLANK(INDIRECT(\"'\"&F1804&\"'!\"&G1804)),\"\",INDIRECT(\"'\"&F1804&\"'!\"&G1804))","v":""},{"$f":"IF(ISBLANK(INDIRECT(\"'\"&F1804&\"'!\"&H1804)),\"\",IFERROR(VLOOKUP(TEXT(INDIRECT(\"'\"&F1804&\"'!\"&H1804),\"0\"),Notes!$B$5:$C$100,2,FALSE),\"\"))","v":""},"1a","$O$44","$P$44"]
[13295,{"$f":"Menu!$F$29","v":"X"},{"$f":"Menu!$J$29","v":2020},{"$f":"IF(ISBLANK(INDIRECT(\"'\"&F1805&\"'!\"&G1805)),\"\",INDIRECT(\"'\"&F1805&\"'!\"&G1805))","v":""},{"$f":"IF(ISBLANK(INDIRECT(\"'\"&F1805&\"'!\"&H1805)),\"\",IFERROR(VLOOKUP(TEXT(INDIRECT(\"'\"&F1805&\"'!\"&H1805),\"0\"),Notes!$B$5:$C$100,2,FALSE),\"\"))","v":""},"1a","$Q$44","$R$44"]
[13296,{"$f":"Menu!$F$29","v":"X"},{"$f":"Menu!$J$29","v":2020},{"$f":"IF(ISBLANK(INDIRECT(\"'\"&F1806&\"'!\"&G1806)),\"\",INDIRECT(\"'\"&F1806&\"'!\"&G1806))","v":""},{"$f":"IF(ISBLANK(INDIRECT(\"'\"&F1806&\"'!\"&H1806)),\"\",IFERROR(VLOOKUP(TEXT(INDIRECT(\"'\"&F1806&\"'!\"&H1806),\"0\"),Notes!$B$5:$C$100,2,FALSE),\"\"))","v":""},"1a","$S$44","$T$44"]
[13297,{"$f":"Menu!$F$29","v":"X"},{"$f":"Menu!$J$29","v":2020},{"$f":"IF(ISBLANK(INDIRECT(\"'\"&F1807&\"'!\"&G1807)),\"\",INDIRECT(\"'\"&F1807&\"'!\"&G1807))","v":""},{"$f":"IF(ISBLANK(INDIRECT(\"'\"&F1807&\"'!\"&H1807)),\"\",IFERROR(VLOOKUP(TEXT(INDIRECT(\"'\"&F1807&\"'!\"&H1807),\"0\"),Notes!$B$5:$C$100,2,FALSE),\"\"))","v":""},"1a","$U$44","$V$44"]
[13307,{"$f":"Menu!$F$29","v":"X"},{"$f":"Menu!$J$29","v":2020},{"$f":"IF(ISBLANK(INDIRECT(\"'\"&F1808&\"'!\"&G1808)),\"\",INDIRECT(\"'\"&F1808&\"'!\"&G1808))","v":""},{"$f":"IF(ISBLANK(INDIRECT(\"'\"&F1808&\"'!\"&H1808)),\"\",IFERROR(VLOOKUP(TEXT(INDIRECT(\"'\"&F1808&\"'!\"&H1808),\"0\"),Notes!$B$5:$C$100,2,FALSE),\"\"))","v":""},"1a","$E$45","$F$45"]
[13308,{"$f":"Menu!$F$29","v":"X"},{"$f":"Menu!$J$29","v":2020},{"$f":"IF(ISBLANK(INDIRECT(\"'\"&F1809&\"'!\"&G1809)),\"\",INDIRECT(\"'\"&F1809&\"'!\"&G1809))","v":""},{"$f":"IF(ISBLANK(INDIRECT(\"'\"&F1809&\"'!\"&H1809)),\"\",IFERROR(VLOOKUP(TEXT(INDIRECT(\"'\"&F1809&\"'!\"&H1809),\"0\"),Notes!$B$5:$C$100,2,FALSE),\"\"))","v":""},"1a","$G$45","$H$45"]
[13309,{"$f":"Menu!$F$29","v":"X"},{"$f":"Menu!$J$29","v":2020},{"$f":"IF(ISBLANK(INDIRECT(\"'\"&F1810&\"'!\"&G1810)),\"\",INDIRECT(\"'\"&F1810&\"'!\"&G1810))","v":""},{"$f":"IF(ISBLANK(INDIRECT(\"'\"&F1810&\"'!\"&H1810)),\"\",IFERROR(VLOOKUP(TEXT(INDIRECT(\"'\"&F1810&\"'!\"&H1810),\"0\"),Notes!$B$5:$C$100,2,FALSE),\"\"))","v":""},"1a","$I$45","$J$45"]
[13310,{"$f":"Menu!$F$29","v":"X"},{"$f":"Menu!$J$29","v":2020},{"$f":"IF(ISBLANK(INDIRECT(\"'\"&F1811&\"'!\"&G1811)),\"\",INDIRECT(\"'\"&F1811&\"'!\"&G1811))","v":""},{"$f":"IF(ISBLANK(INDIRECT(\"'\"&F1811&\"'!\"&H1811)),\"\",IFERROR(VLOOKUP(TEXT(INDIRECT(\"'\"&F1811&\"'!\"&H1811),\"0\"),Notes!$B$5:$C$100,2,FALSE),\"\"))","v":""},"1a","$K$45","$L$45"]
[13311,{"$f":"Menu!$F$29","v":"X"},{"$f":"Menu!$J$29","v":2020},{"$f":"IF(ISBLANK(INDIRECT(\"'\"&F1812&\"'!\"&G1812)),\"\",INDIRECT(\"'\"&F1812&\"'!\"&G1812))","v":""},{"$f":"IF(ISBLANK(INDIRECT(\"'\"&F1812&\"'!\"&H1812)),\"\",IFERROR(VLOOKUP(TEXT(INDIRECT(\"'\"&F1812&\"'!\"&H1812),\"0\"),Notes!$B$5:$C$100,2,FALSE),\"\"))","v":""},"1a","$M$45","$N$45"]
[13312,{"$f":"Menu!$F$29","v":"X"},{"$f":"Menu!$J$29","v":2020},{"$f":"IF(ISBLANK(INDIRECT(\"'\"&F1813&\"'!\"&G1813)),\"\",INDIRECT(\"'\"&F1813&\"'!\"&G1813))","v":""},{"$f":"IF(ISBLANK(INDIRECT(\"'\"&F1813&\"'!\"&H1813)),\"\",IFERROR(VLOOKUP(TEXT(INDIRECT(\"'\"&F1813&\"'!\"&H1813),\"0\"),Notes!$B$5:$C$100,2,FALSE),\"\"))","v":""},"1a","$O$45","$P$45"]
[13313,{"$f":"Menu!$F$29","v":"X"},{"$f":"Menu!$J$29","v":2020},{"$f":"IF(ISBLANK(INDIRECT(\"'\"&F1814&\"'!\"&G1814)),\"\",INDIRECT(\"'\"&F1814&\"'!\"&G1814))","v":""},{"$f":"IF(ISBLANK(INDIRECT(\"'\"&F1814&\"'!\"&H1814)),\"\",IFERROR(VLOOKUP(TEXT(INDIRECT(\"'\"&F1814&\"'!\"&H1814),\"0\"),Notes!$B$5:$C$100,2,FALSE),\"\"))","v":""},"1a","$Q$45","$R$45"]
[13314,{"$f":"Menu!$F$29","v":"X"},{"$f":"Menu!$J$29","v":2020},{"$f":"IF(ISBLANK(INDIRECT(\"'\"&F1815&\"'!\"&G1815)),\"\",INDIRECT(\"'\"&F1815&\"'!\"&G1815))","v":""},{"$f":"IF(ISBLANK(INDIRECT(\"'\"&F1815&\"'!\"&H1815)),\"\",IFERROR(VLOOKUP(TEXT(INDIRECT(\"'\"&F1815&\"'!\"&H1815),\"0\"),Notes!$B$5:$C$100,2,FALSE),\"\"))","v":""},"1a","$S$45","$T$45"]
[13315,{"$f":"Menu!$F$29","v":"X"},{"$f":"Menu!$J$29","v":2020},{"$f":"IF(ISBLANK(INDIRECT(\"'\"&F1816&\"'!\"&G1816)),\"\",INDIRECT(\"'\"&F1816&\"'!\"&G1816))","v":""},{"$f":"IF(ISBLANK(INDIRECT(\"'\"&F1816&\"'!\"&H1816)),\"\",IFERROR(VLOOKUP(TEXT(INDIRECT(\"'\"&F1816&\"'!\"&H1816),\"0\"),Notes!$B$5:$C$100,2,FALSE),\"\"))","v":""},"1a","$U$45","$V$45"]
[13316,{"$f":"Menu!$F$29","v":"X"},{"$f":"Menu!$J$29","v":2020},{"$f":"IF(ISBLANK(INDIRECT(\"'\"&F1817&\"'!\"&G1817)),\"\",INDIRECT(\"'\"&F1817&\"'!\"&G1817))","v":""},{"$f":"IF(ISBLANK(INDIRECT(\"'\"&F1817&\"'!\"&H1817)),\"\",IFERROR(VLOOKUP(TEXT(INDIRECT(\"'\"&F1817&\"'!\"&H1817),\"0\"),Notes!$B$5:$C$100,2,FALSE),\"\"))","v":""},"1a","$E$46","$F$46"]
[13317,{"$f":"Menu!$F$29","v":"X"},{"$f":"Menu!$J$29","v":2020},{"$f":"IF(ISBLANK(INDIRECT(\"'\"&F1818&\"'!\"&G1818)),\"\",INDIRECT(\"'\"&F1818&\"'!\"&G1818))","v":""},{"$f":"IF(ISBLANK(INDIRECT(\"'\"&F1818&\"'!\"&H1818)),\"\",IFERROR(VLOOKUP(TEXT(INDIRECT(\"'\"&F1818&\"'!\"&H1818),\"0\"),Notes!$B$5:$C$100,2,FALSE),\"\"))","v":""},"1a","$G$46","$H$46"]
[13318,{"$f":"Menu!$F$29","v":"X"},{"$f":"Menu!$J$29","v":2020},{"$f":"IF(ISBLANK(INDIRECT(\"'\"&F1819&\"'!\"&G1819)),\"\",INDIRECT(\"'\"&F1819&\"'!\"&G1819))","v":""},{"$f":"IF(ISBLANK(INDIRECT(\"'\"&F1819&\"'!\"&H1819)),\"\",IFERROR(VLOOKUP(TEXT(INDIRECT(\"'\"&F1819&\"'!\"&H1819),\"0\"),Notes!$B$5:$C$100,2,FALSE),\"\"))","v":""},"1a","$I$46","$J$46"]
[13319,{"$f":"Menu!$F$29","v":"X"},{"$f":"Menu!$J$29","v":2020},{"$f":"IF(ISBLANK(INDIRECT(\"'\"&F1820&\"'!\"&G1820)),\"\",INDIRECT(\"'\"&F1820&\"'!\"&G1820))","v":""},{"$f":"IF(ISBLANK(INDIRECT(\"'\"&F1820&\"'!\"&H1820)),\"\",IFERROR(VLOOKUP(TEXT(INDIRECT(\"'\"&F1820&\"'!\"&H1820),\"0\"),Notes!$B$5:$C$100,2,FALSE),\"\"))","v":""},"1a","$K$46","$L$46"]
[13320,{"$f":"Menu!$F$29","v":"X"},{"$f":"Menu!$J$29","v":2020},{"$f":"IF(ISBLANK(INDIRECT(\"'\"&F1821&\"'!\"&G1821)),\"\",INDIRECT(\"'\"&F1821&\"'!\"&G1821))","v":""},{"$f":"IF(ISBLANK(INDIRECT(\"'\"&F1821&\"'!\"&H1821)),\"\",IFERROR(VLOOKUP(TEXT(INDIRECT(\"'\"&F1821&\"'!\"&H1821),\"0\"),Notes!$B$5:$C$100,2,FALSE),\"\"))","v":""},"1a","$M$46","$N$46"]
[13321,{"$f":"Menu!$F$29","v":"X"},{"$f":"Menu!$J$29","v":2020},{"$f":"IF(ISBLANK(INDIRECT(\"'\"&F1822&\"'!\"&G1822)),\"\",INDIRECT(\"'\"&F1822&\"'!\"&G1822))","v":""},{"$f":"IF(ISBLANK(INDIRECT(\"'\"&F1822&\"'!\"&H1822)),\"\",IFERROR(VLOOKUP(TEXT(INDIRECT(\"'\"&F1822&\"'!\"&H1822),\"0\"),Notes!$B$5:$C$100,2,FALSE),\"\"))","v":""},"1a","$O$46","$P$46"]
[13322,{"$f":"Menu!$F$29","v":"X"},{"$f":"Menu!$J$29","v":2020},{"$f":"IF(ISBLANK(INDIRECT(\"'\"&F1823&\"'!\"&G1823)),\"\",INDIRECT(\"'\"&F1823&\"'!\"&G1823))","v":""},{"$f":"IF(ISBLANK(INDIRECT(\"'\"&F1823&\"'!\"&H1823)),\"\",IFERROR(VLOOKUP(TEXT(INDIRECT(\"'\"&F1823&\"'!\"&H1823),\"0\"),Notes!$B$5:$C$100,2,FALSE),\"\"))","v":""},"1a","$Q$46","$R$46"]
[13323,{"$f":"Menu!$F$29","v":"X"},{"$f":"Menu!$J$29","v":2020},{"$f":"IF(ISBLANK(INDIRECT(\"'\"&F1824&\"'!\"&G1824)),\"\",INDIRECT(\"'\"&F1824&\"'!\"&G1824))","v":""},{"$f":"IF(ISBLANK(INDIRECT(\"'\"&F1824&\"'!\"&H1824)),\"\",IFERROR(VLOOKUP(TEXT(INDIRECT(\"'\"&F1824&\"'!\"&H1824),\"0\"),Notes!$B$5:$C$100,2,FALSE),\"\"))","v":""},"1a","$S$46","$T$46"]
[13324,{"$f":"Menu!$F$29","v":"X"},{"$f":"Menu!$J$29","v":2020},{"$f":"IF(ISBLANK(INDIRECT(\"'\"&F1825&\"'!\"&G1825)),\"\",INDIRECT(\"'\"&F1825&\"'!\"&G1825))","v":""},{"$f":"IF(ISBLANK(INDIRECT(\"'\"&F1825&\"'!\"&H1825)),\"\",IFERROR(VLOOKUP(TEXT(INDIRECT(\"'\"&F1825&\"'!\"&H1825),\"0\"),Notes!$B$5:$C$100,2,FALSE),\"\"))","v":""},"1a","$U$46","$V$46"]
[13325,{"$f":"Menu!$F$29","v":"X"},{"$f":"Menu!$J$29","v":2020},{"$f":"IF(ISBLANK(INDIRECT(\"'\"&F1826&\"'!\"&G1826)),\"\",INDIRECT(\"'\"&F1826&\"'!\"&G1826))","v":""},{"$f":"IF(ISBLANK(INDIRECT(\"'\"&F1826&\"'!\"&H1826)),\"\",IFERROR(VLOOKUP(TEXT(INDIRECT(\"'\"&F1826&\"'!\"&H1826),\"0\"),Notes!$B$5:$C$100,2,FALSE),\"\"))","v":""},"1a","$E$47","$F$47"]
[13326,{"$f":"Menu!$F$29","v":"X"},{"$f":"Menu!$J$29","v":2020},{"$f":"IF(ISBLANK(INDIRECT(\"'\"&F1827&\"'!\"&G1827)),\"\",INDIRECT(\"'\"&F1827&\"'!\"&G1827))","v":""},{"$f":"IF(ISBLANK(INDIRECT(\"'\"&F1827&\"'!\"&H1827)),\"\",IFERROR(VLOOKUP(TEXT(INDIRECT(\"'\"&F1827&\"'!\"&H1827),\"0\"),Notes!$B$5:$C$100,2,FALSE),\"\"))","v":""},"1a","$G$47","$H$47"]
[13327,{"$f":"Menu!$F$29","v":"X"},{"$f":"Menu!$J$29","v":2020},{"$f":"IF(ISBLANK(INDIRECT(\"'\"&F1828&\"'!\"&G1828)),\"\",INDIRECT(\"'\"&F1828&\"'!\"&G1828))","v":""},{"$f":"IF(ISBLANK(INDIRECT(\"'\"&F1828&\"'!\"&H1828)),\"\",IFERROR(VLOOKUP(TEXT(INDIRECT(\"'\"&F1828&\"'!\"&H1828),\"0\"),Notes!$B$5:$C$100,2,FALSE),\"\"))","v":""},"1a","$I$47","$J$47"]
[13328,{"$f":"Menu!$F$29","v":"X"},{"$f":"Menu!$J$29","v":2020},{"$f":"IF(ISBLANK(INDIRECT(\"'\"&F1829&\"'!\"&G1829)),\"\",INDIRECT(\"'\"&F1829&\"'!\"&G1829))","v":""},{"$f":"IF(ISBLANK(INDIRECT(\"'\"&F1829&\"'!\"&H1829)),\"\",IFERROR(VLOOKUP(TEXT(INDIRECT(\"'\"&F1829&\"'!\"&H1829),\"0\"),Notes!$B$5:$C$100,2,FALSE),\"\"))","v":""},"1a","$K$47","$L$47"]
[13329,{"$f":"Menu!$F$29","v":"X"},{"$f":"Menu!$J$29","v":2020},{"$f":"IF(ISBLANK(INDIRECT(\"'\"&F1830&\"'!\"&G1830)),\"\",INDIRECT(\"'\"&F1830&\"'!\"&G1830))","v":""},{"$f":"IF(ISBLANK(INDIRECT(\"'\"&F1830&\"'!\"&H1830)),\"\",IFERROR(VLOOKUP(TEXT(INDIRECT(\"'\"&F1830&\"'!\"&H1830),\"0\"),Notes!$B$5:$C$100,2,FALSE),\"\"))","v":""},"1a","$M$47","$N$47"]
[13330,{"$f":"Menu!$F$29","v":"X"},{"$f":"Menu!$J$29","v":2020},{"$f":"IF(ISBLANK(INDIRECT(\"'\"&F1831&\"'!\"&G1831)),\"\",INDIRECT(\"'\"&F1831&\"'!\"&G1831))","v":""},{"$f":"IF(ISBLANK(INDIRECT(\"'\"&F1831&\"'!\"&H1831)),\"\",IFERROR(VLOOKUP(TEXT(INDIRECT(\"'\"&F1831&\"'!\"&H1831),\"0\"),Notes!$B$5:$C$100,2,FALSE),\"\"))","v":""},"1a","$O$47","$P$47"]
[13331,{"$f":"Menu!$F$29","v":"X"},{"$f":"Menu!$J$29","v":2020},{"$f":"IF(ISBLANK(INDIRECT(\"'\"&F1832&\"'!\"&G1832)),\"\",INDIRECT(\"'\"&F1832&\"'!\"&G1832))","v":""},{"$f":"IF(ISBLANK(INDIRECT(\"'\"&F1832&\"'!\"&H1832)),\"\",IFERROR(VLOOKUP(TEXT(INDIRECT(\"'\"&F1832&\"'!\"&H1832),\"0\"),Notes!$B$5:$C$100,2,FALSE),\"\"))","v":""},"1a","$Q$47","$R$47"]
[13332,{"$f":"Menu!$F$29","v":"X"},{"$f":"Menu!$J$29","v":2020},{"$f":"IF(ISBLANK(INDIRECT(\"'\"&F1833&\"'!\"&G1833)),\"\",INDIRECT(\"'\"&F1833&\"'!\"&G1833))","v":""},{"$f":"IF(ISBLANK(INDIRECT(\"'\"&F1833&\"'!\"&H1833)),\"\",IFERROR(VLOOKUP(TEXT(INDIRECT(\"'\"&F1833&\"'!\"&H1833),\"0\"),Notes!$B$5:$C$100,2,FALSE),\"\"))","v":""},"1a","$S$47","$T$47"]
[13333,{"$f":"Menu!$F$29","v":"X"},{"$f":"Menu!$J$29","v":2020},{"$f":"IF(ISBLANK(INDIRECT(\"'\"&F1834&\"'!\"&G1834)),\"\",INDIRECT(\"'\"&F1834&\"'!\"&G1834))","v":""},{"$f":"IF(ISBLANK(INDIRECT(\"'\"&F1834&\"'!\"&H1834)),\"\",IFERROR(VLOOKUP(TEXT(INDIRECT(\"'\"&F1834&\"'!\"&H1834),\"0\"),Notes!$B$5:$C$100,2,FALSE),\"\"))","v":""},"1a","$U$47","$V$47"]
[13334,{"$f":"Menu!$F$29","v":"X"},{"$f":"Menu!$J$29","v":2020},{"$f":"IF(ISBLANK(INDIRECT(\"'\"&F1835&\"'!\"&G1835)),\"\",INDIRECT(\"'\"&F1835&\"'!\"&G1835))","v":""},{"$f":"IF(ISBLANK(INDIRECT(\"'\"&F1835&\"'!\"&H1835)),\"\",IFERROR(VLOOKUP(TEXT(INDIRECT(\"'\"&F1835&\"'!\"&H1835),\"0\"),Notes!$B$5:$C$100,2,FALSE),\"\"))","v":""},"1a","$E$48","$F$48"]
[13335,{"$f":"Menu!$F$29","v":"X"},{"$f":"Menu!$J$29","v":2020},{"$f":"IF(ISBLANK(INDIRECT(\"'\"&F1836&\"'!\"&G1836)),\"\",INDIRECT(\"'\"&F1836&\"'!\"&G1836))","v":""},{"$f":"IF(ISBLANK(INDIRECT(\"'\"&F1836&\"'!\"&H1836)),\"\",IFERROR(VLOOKUP(TEXT(INDIRECT(\"'\"&F1836&\"'!\"&H1836),\"0\"),Notes!$B$5:$C$100,2,FALSE),\"\"))","v":""},"1a","$G$48","$H$48"]
[13336,{"$f":"Menu!$F$29","v":"X"},{"$f":"Menu!$J$29","v":2020},{"$f":"IF(ISBLANK(INDIRECT(\"'\"&F1837&\"'!\"&G1837)),\"\",INDIRECT(\"'\"&F1837&\"'!\"&G1837))","v":""},{"$f":"IF(ISBLANK(INDIRECT(\"'\"&F1837&\"'!\"&H1837)),\"\",IFERROR(VLOOKUP(TEXT(INDIRECT(\"'\"&F1837&\"'!\"&H1837),\"0\"),Notes!$B$5:$C$100,2,FALSE),\"\"))","v":""},"1a","$I$48","$J$48"]
[13337,{"$f":"Menu!$F$29","v":"X"},{"$f":"Menu!$J$29","v":2020},{"$f":"IF(ISBLANK(INDIRECT(\"'\"&F1838&\"'!\"&G1838)),\"\",INDIRECT(\"'\"&F1838&\"'!\"&G1838))","v":""},{"$f":"IF(ISBLANK(INDIRECT(\"'\"&F1838&\"'!\"&H1838)),\"\",IFERROR(VLOOKUP(TEXT(INDIRECT(\"'\"&F1838&\"'!\"&H1838),\"0\"),Notes!$B$5:$C$100,2,FALSE),\"\"))","v":""},"1a","$K$48","$L$48"]
[13338,{"$f":"Menu!$F$29","v":"X"},{"$f":"Menu!$J$29","v":2020},{"$f":"IF(ISBLANK(INDIRECT(\"'\"&F1839&\"'!\"&G1839)),\"\",INDIRECT(\"'\"&F1839&\"'!\"&G1839))","v":""},{"$f":"IF(ISBLANK(INDIRECT(\"'\"&F1839&\"'!\"&H1839)),\"\",IFERROR(VLOOKUP(TEXT(INDIRECT(\"'\"&F1839&\"'!\"&H1839),\"0\"),Notes!$B$5:$C$100,2,FALSE),\"\"))","v":""},"1a","$M$48","$N$48"]
[13339,{"$f":"Menu!$F$29","v":"X"},{"$f":"Menu!$J$29","v":2020},{"$f":"IF(ISBLANK(INDIRECT(\"'\"&F1840&\"'!\"&G1840)),\"\",INDIRECT(\"'\"&F1840&\"'!\"&G1840))","v":""},{"$f":"IF(ISBLANK(INDIRECT(\"'\"&F1840&\"'!\"&H1840)),\"\",IFERROR(VLOOKUP(TEXT(INDIRECT(\"'\"&F1840&\"'!\"&H1840),\"0\"),Notes!$B$5:$C$100,2,FALSE),\"\"))","v":""},"1a","$O$48","$P$48"]
[13340,{"$f":"Menu!$F$29","v":"X"},{"$f":"Menu!$J$29","v":2020},{"$f":"IF(ISBLANK(INDIRECT(\"'\"&F1841&\"'!\"&G1841)),\"\",INDIRECT(\"'\"&F1841&\"'!\"&G1841))","v":""},{"$f":"IF(ISBLANK(INDIRECT(\"'\"&F1841&\"'!\"&H1841)),\"\",IFERROR(VLOOKUP(TEXT(INDIRECT(\"'\"&F1841&\"'!\"&H1841),\"0\"),Notes!$B$5:$C$100,2,FALSE),\"\"))","v":""},"1a","$Q$48","$R$48"]
[13341,{"$f":"Menu!$F$29","v":"X"},{"$f":"Menu!$J$29","v":2020},{"$f":"IF(ISBLANK(INDIRECT(\"'\"&F1842&\"'!\"&G1842)),\"\",INDIRECT(\"'\"&F1842&\"'!\"&G1842))","v":""},{"$f":"IF(ISBLANK(INDIRECT(\"'\"&F1842&\"'!\"&H1842)),\"\",IFERROR(VLOOKUP(TEXT(INDIRECT(\"'\"&F1842&\"'!\"&H1842),\"0\"),Notes!$B$5:$C$100,2,FALSE),\"\"))","v":""},"1a","$S$48","$T$48"]
[13342,{"$f":"Menu!$F$29","v":"X"},{"$f":"Menu!$J$29","v":2020},{"$f":"IF(ISBLANK(INDIRECT(\"'\"&F1843&\"'!\"&G1843)),\"\",INDIRECT(\"'\"&F1843&\"'!\"&G1843))","v":""},{"$f":"IF(ISBLANK(INDIRECT(\"'\"&F1843&\"'!\"&H1843)),\"\",IFERROR(VLOOKUP(TEXT(INDIRECT(\"'\"&F1843&\"'!\"&H1843),\"0\"),Notes!$B$5:$C$100,2,FALSE),\"\"))","v":""},"1a","$U$48","$V$48"]
[13343,{"$f":"Menu!$F$29","v":"X"},{"$f":"Menu!$J$29","v":2020},{"$f":"IF(ISBLANK(INDIRECT(\"'\"&F1844&\"'!\"&G1844)),\"\",INDIRECT(\"'\"&F1844&\"'!\"&G1844))","v":""},{"$f":"IF(ISBLANK(INDIRECT(\"'\"&F1844&\"'!\"&H1844)),\"\",IFERROR(VLOOKUP(TEXT(INDIRECT(\"'\"&F1844&\"'!\"&H1844),\"0\"),Notes!$B$5:$C$100,2,FALSE),\"\"))","v":""},"1a","$E$49","$F$49"]
[13344,{"$f":"Menu!$F$29","v":"X"},{"$f":"Menu!$J$29","v":2020},{"$f":"IF(ISBLANK(INDIRECT(\"'\"&F1845&\"'!\"&G1845)),\"\",INDIRECT(\"'\"&F1845&\"'!\"&G1845))","v":""},{"$f":"IF(ISBLANK(INDIRECT(\"'\"&F1845&\"'!\"&H1845)),\"\",IFERROR(VLOOKUP(TEXT(INDIRECT(\"'\"&F1845&\"'!\"&H1845),\"0\"),Notes!$B$5:$C$100,2,FALSE),\"\"))","v":""},"1a","$G$49","$H$49"]
[13345,{"$f":"Menu!$F$29","v":"X"},{"$f":"Menu!$J$29","v":2020},{"$f":"IF(ISBLANK(INDIRECT(\"'\"&F1846&\"'!\"&G1846)),\"\",INDIRECT(\"'\"&F1846&\"'!\"&G1846))","v":""},{"$f":"IF(ISBLANK(INDIRECT(\"'\"&F1846&\"'!\"&H1846)),\"\",IFERROR(VLOOKUP(TEXT(INDIRECT(\"'\"&F1846&\"'!\"&H1846),\"0\"),Notes!$B$5:$C$100,2,FALSE),\"\"))","v":""},"1a","$I$49","$J$49"]
[13346,{"$f":"Menu!$F$29","v":"X"},{"$f":"Menu!$J$29","v":2020},{"$f":"IF(ISBLANK(INDIRECT(\"'\"&F1847&\"'!\"&G1847)),\"\",INDIRECT(\"'\"&F1847&\"'!\"&G1847))","v":""},{"$f":"IF(ISBLANK(INDIRECT(\"'\"&F1847&\"'!\"&H1847)),\"\",IFERROR(VLOOKUP(TEXT(INDIRECT(\"'\"&F1847&\"'!\"&H1847),\"0\"),Notes!$B$5:$C$100,2,FALSE),\"\"))","v":""},"1a","$K$49","$L$49"]
[13347,{"$f":"Menu!$F$29","v":"X"},{"$f":"Menu!$J$29","v":2020},{"$f":"IF(ISBLANK(INDIRECT(\"'\"&F1848&\"'!\"&G1848)),\"\",INDIRECT(\"'\"&F1848&\"'!\"&G1848))","v":""},{"$f":"IF(ISBLANK(INDIRECT(\"'\"&F1848&\"'!\"&H1848)),\"\",IFERROR(VLOOKUP(TEXT(INDIRECT(\"'\"&F1848&\"'!\"&H1848),\"0\"),Notes!$B$5:$C$100,2,FALSE),\"\"))","v":""},"1a","$M$49","$N$49"]
[13348,{"$f":"Menu!$F$29","v":"X"},{"$f":"Menu!$J$29","v":2020},{"$f":"IF(ISBLANK(INDIRECT(\"'\"&F1849&\"'!\"&G1849)),\"\",INDIRECT(\"'\"&F1849&\"'!\"&G1849))","v":""},{"$f":"IF(ISBLANK(INDIRECT(\"'\"&F1849&\"'!\"&H1849)),\"\",IFERROR(VLOOKUP(TEXT(INDIRECT(\"'\"&F1849&\"'!\"&H1849),\"0\"),Notes!$B$5:$C$100,2,FALSE),\"\"))","v":""},"1a","$O$49","$P$49"]
[13349,{"$f":"Menu!$F$29","v":"X"},{"$f":"Menu!$J$29","v":2020},{"$f":"IF(ISBLANK(INDIRECT(\"'\"&F1850&\"'!\"&G1850)),\"\",INDIRECT(\"'\"&F1850&\"'!\"&G1850))","v":""},{"$f":"IF(ISBLANK(INDIRECT(\"'\"&F1850&\"'!\"&H1850)),\"\",IFERROR(VLOOKUP(TEXT(INDIRECT(\"'\"&F1850&\"'!\"&H1850),\"0\"),Notes!$B$5:$C$100,2,FALSE),\"\"))","v":""},"1a","$Q$49","$R$49"]
[13350,{"$f":"Menu!$F$29","v":"X"},{"$f":"Menu!$J$29","v":2020},{"$f":"IF(ISBLANK(INDIRECT(\"'\"&F1851&\"'!\"&G1851)),\"\",INDIRECT(\"'\"&F1851&\"'!\"&G1851))","v":""},{"$f":"IF(ISBLANK(INDIRECT(\"'\"&F1851&\"'!\"&H1851)),\"\",IFERROR(VLOOKUP(TEXT(INDIRECT(\"'\"&F1851&\"'!\"&H1851),\"0\"),Notes!$B$5:$C$100,2,FALSE),\"\"))","v":""},"1a","$S$49","$T$49"]
[13351,{"$f":"Menu!$F$29","v":"X"},{"$f":"Menu!$J$29","v":2020},{"$f":"IF(ISBLANK(INDIRECT(\"'\"&F1852&\"'!\"&G1852)),\"\",INDIRECT(\"'\"&F1852&\"'!\"&G1852))","v":""},{"$f":"IF(ISBLANK(INDIRECT(\"'\"&F1852&\"'!\"&H1852)),\"\",IFERROR(VLOOKUP(TEXT(INDIRECT(\"'\"&F1852&\"'!\"&H1852),\"0\"),Notes!$B$5:$C$100,2,FALSE),\"\"))","v":""},"1a","$U$49","$V$49"]
[13352,{"$f":"Menu!$F$29","v":"X"},{"$f":"Menu!$J$29","v":2020},{"$f":"IF(ISBLANK(INDIRECT(\"'\"&F1853&\"'!\"&G1853)),\"\",INDIRECT(\"'\"&F1853&\"'!\"&G1853))","v":""},{"$f":"IF(ISBLANK(INDIRECT(\"'\"&F1853&\"'!\"&H1853)),\"\",IFERROR(VLOOKUP(TEXT(INDIRECT(\"'\"&F1853&\"'!\"&H1853),\"0\"),Notes!$B$5:$C$100,2,FALSE),\"\"))","v":""},"1a","$E$50","$F$50"]
[13353,{"$f":"Menu!$F$29","v":"X"},{"$f":"Menu!$J$29","v":2020},{"$f":"IF(ISBLANK(INDIRECT(\"'\"&F1854&\"'!\"&G1854)),\"\",INDIRECT(\"'\"&F1854&\"'!\"&G1854))","v":""},{"$f":"IF(ISBLANK(INDIRECT(\"'\"&F1854&\"'!\"&H1854)),\"\",IFERROR(VLOOKUP(TEXT(INDIRECT(\"'\"&F1854&\"'!\"&H1854),\"0\"),Notes!$B$5:$C$100,2,FALSE),\"\"))","v":""},"1a","$G$50","$H$50"]
[13354,{"$f":"Menu!$F$29","v":"X"},{"$f":"Menu!$J$29","v":2020},{"$f":"IF(ISBLANK(INDIRECT(\"'\"&F1855&\"'!\"&G1855)),\"\",INDIRECT(\"'\"&F1855&\"'!\"&G1855))","v":""},{"$f":"IF(ISBLANK(INDIRECT(\"'\"&F1855&\"'!\"&H1855)),\"\",IFERROR(VLOOKUP(TEXT(INDIRECT(\"'\"&F1855&\"'!\"&H1855),\"0\"),Notes!$B$5:$C$100,2,FALSE),\"\"))","v":""},"1a","$I$50","$J$50"]
[13355,{"$f":"Menu!$F$29","v":"X"},{"$f":"Menu!$J$29","v":2020},{"$f":"IF(ISBLANK(INDIRECT(\"'\"&F1856&\"'!\"&G1856)),\"\",INDIRECT(\"'\"&F1856&\"'!\"&G1856))","v":""},{"$f":"IF(ISBLANK(INDIRECT(\"'\"&F1856&\"'!\"&H1856)),\"\",IFERROR(VLOOKUP(TEXT(INDIRECT(\"'\"&F1856&\"'!\"&H1856),\"0\"),Notes!$B$5:$C$100,2,FALSE),\"\"))","v":""},"1a","$K$50","$L$50"]
[13356,{"$f":"Menu!$F$29","v":"X"},{"$f":"Menu!$J$29","v":2020},{"$f":"IF(ISBLANK(INDIRECT(\"'\"&F1857&\"'!\"&G1857)),\"\",INDIRECT(\"'\"&F1857&\"'!\"&G1857))","v":""},{"$f":"IF(ISBLANK(INDIRECT(\"'\"&F1857&\"'!\"&H1857)),\"\",IFERROR(VLOOKUP(TEXT(INDIRECT(\"'\"&F1857&\"'!\"&H1857),\"0\"),Notes!$B$5:$C$100,2,FALSE),\"\"))","v":""},"1a","$M$50","$N$50"]
[13357,{"$f":"Menu!$F$29","v":"X"},{"$f":"Menu!$J$29","v":2020},{"$f":"IF(ISBLANK(INDIRECT(\"'\"&F1858&\"'!\"&G1858)),\"\",INDIRECT(\"'\"&F1858&\"'!\"&G1858))","v":""},{"$f":"IF(ISBLANK(INDIRECT(\"'\"&F1858&\"'!\"&H1858)),\"\",IFERROR(VLOOKUP(TEXT(INDIRECT(\"'\"&F1858&\"'!\"&H1858),\"0\"),Notes!$B$5:$C$100,2,FALSE),\"\"))","v":""},"1a","$O$50",{"$f":"IF(LEN(TRIM(MID(G1858,4,10)))-LEN(SUBSTITUTE(TRIM(MID(G1858,4,10)),\"$\",\"\"))=0,\"$\"&CHAR(CODE(MID(G1858,2,1))+1)&\"$\"&TRIM(MID(G1858,4,10)),\"$\"&MID(G1858,2,1)&CHAR(CODE(MID(G1858,3,1))+1)&\"$\"&TRIM(MID(G1858,5,11)))","v":"$P$50"}]
[13358,{"$f":"Menu!$F$29","v":"X"},{"$f":"Menu!$J$29","v":2020},{"$f":"IF(ISBLANK(INDIRECT(\"'\"&F1859&\"'!\"&G1859)),\"\",INDIRECT(\"'\"&F1859&\"'!\"&G1859))","v":""},{"$f":"IF(ISBLANK(INDIRECT(\"'\"&F1859&\"'!\"&H1859)),\"\",IFERROR(VLOOKUP(TEXT(INDIRECT(\"'\"&F1859&\"'!\"&H1859),\"0\"),Notes!$B$5:$C$100,2,FALSE),\"\"))","v":""},"1a","$Q$50","$R$50"]
[13359,{"$f":"Menu!$F$29","v":"X"},{"$f":"Menu!$J$29","v":2020},{"$f":"IF(ISBLANK(INDIRECT(\"'\"&F1860&\"'!\"&G1860)),\"\",INDIRECT(\"'\"&F1860&\"'!\"&G1860))","v":""},{"$f":"IF(ISBLANK(INDIRECT(\"'\"&F1860&\"'!\"&H1860)),\"\",IFERROR(VLOOKUP(TEXT(INDIRECT(\"'\"&F1860&\"'!\"&H1860),\"0\"),Notes!$B$5:$C$100,2,FALSE),\"\"))","v":""},"1a","$S$50","$T$50"]
[13360,{"$f":"Menu!$F$29","v":"X"},{"$f":"Menu!$J$29","v":2020},{"$f":"IF(ISBLANK(INDIRECT(\"'\"&F1861&\"'!\"&G1861)),\"\",INDIRECT(\"'\"&F1861&\"'!\"&G1861))","v":""},{"$f":"IF(ISBLANK(INDIRECT(\"'\"&F1861&\"'!\"&H1861)),\"\",IFERROR(VLOOKUP(TEXT(INDIRECT(\"'\"&F1861&\"'!\"&H1861),\"0\"),Notes!$B$5:$C$100,2,FALSE),\"\"))","v":""},"1a","$U$50","$V$50"]
[13361,{"$f":"Menu!$F$29","v":"X"},{"$f":"Menu!$J$29","v":2020},{"$f":"IF(ISBLANK(INDIRECT(\"'\"&F1862&\"'!\"&G1862)),\"\",INDIRECT(\"'\"&F1862&\"'!\"&G1862))","v":""},{"$f":"IF(ISBLANK(INDIRECT(\"'\"&F1862&\"'!\"&H1862)),\"\",IFERROR(VLOOKUP(TEXT(INDIRECT(\"'\"&F1862&\"'!\"&H1862),\"0\"),Notes!$B$5:$C$100,2,FALSE),\"\"))","v":""},"1a","$E$53","$F$53"]
[13362,{"$f":"Menu!$F$29","v":"X"},{"$f":"Menu!$J$29","v":2020},{"$f":"IF(ISBLANK(INDIRECT(\"'\"&F1863&\"'!\"&G1863)),\"\",INDIRECT(\"'\"&F1863&\"'!\"&G1863))","v":""},{"$f":"IF(ISBLANK(INDIRECT(\"'\"&F1863&\"'!\"&H1863)),\"\",IFERROR(VLOOKUP(TEXT(INDIRECT(\"'\"&F1863&\"'!\"&H1863),\"0\"),Notes!$B$5:$C$100,2,FALSE),\"\"))","v":""},"1a","$G$53","$H$53"]
[13363,{"$f":"Menu!$F$29","v":"X"},{"$f":"Menu!$J$29","v":2020},{"$f":"IF(ISBLANK(INDIRECT(\"'\"&F1864&\"'!\"&G1864)),\"\",INDIRECT(\"'\"&F1864&\"'!\"&G1864))","v":""},{"$f":"IF(ISBLANK(INDIRECT(\"'\"&F1864&\"'!\"&H1864)),\"\",IFERROR(VLOOKUP(TEXT(INDIRECT(\"'\"&F1864&\"'!\"&H1864),\"0\"),Notes!$B$5:$C$100,2,FALSE),\"\"))","v":""},"1a","$I$53","$J$53"]
[13364,{"$f":"Menu!$F$29","v":"X"},{"$f":"Menu!$J$29","v":2020},{"$f":"IF(ISBLANK(INDIRECT(\"'\"&F1865&\"'!\"&G1865)),\"\",INDIRECT(\"'\"&F1865&\"'!\"&G1865))","v":""},{"$f":"IF(ISBLANK(INDIRECT(\"'\"&F1865&\"'!\"&H1865)),\"\",IFERROR(VLOOKUP(TEXT(INDIRECT(\"'\"&F1865&\"'!\"&H1865),\"0\"),Notes!$B$5:$C$100,2,FALSE),\"\"))","v":""},"1a","$K$53","$L$53"]
[13365,{"$f":"Menu!$F$29","v":"X"},{"$f":"Menu!$J$29","v":2020},{"$f":"IF(ISBLANK(INDIRECT(\"'\"&F1866&\"'!\"&G1866)),\"\",INDIRECT(\"'\"&F1866&\"'!\"&G1866))","v":""},{"$f":"IF(ISBLANK(INDIRECT(\"'\"&F1866&\"'!\"&H1866)),\"\",IFERROR(VLOOKUP(TEXT(INDIRECT(\"'\"&F1866&\"'!\"&H1866),\"0\"),Notes!$B$5:$C$100,2,FALSE),\"\"))","v":""},"1a","$M$53","$N$53"]
[13366,{"$f":"Menu!$F$29","v":"X"},{"$f":"Menu!$J$29","v":2020},{"$f":"IF(ISBLANK(INDIRECT(\"'\"&F1867&\"'!\"&G1867)),\"\",INDIRECT(\"'\"&F1867&\"'!\"&G1867))","v":""},{"$f":"IF(ISBLANK(INDIRECT(\"'\"&F1867&\"'!\"&H1867)),\"\",IFERROR(VLOOKUP(TEXT(INDIRECT(\"'\"&F1867&\"'!\"&H1867),\"0\"),Notes!$B$5:$C$100,2,FALSE),\"\"))","v":""},"1a","$O$53","$P$53"]
[13367,{"$f":"Menu!$F$29","v":"X"},{"$f":"Menu!$J$29","v":2020},{"$f":"IF(ISBLANK(INDIRECT(\"'\"&F1868&\"'!\"&G1868)),\"\",INDIRECT(\"'\"&F1868&\"'!\"&G1868))","v":""},{"$f":"IF(ISBLANK(INDIRECT(\"'\"&F1868&\"'!\"&H1868)),\"\",IFERROR(VLOOKUP(TEXT(INDIRECT(\"'\"&F1868&\"'!\"&H1868),\"0\"),Notes!$B$5:$C$100,2,FALSE),\"\"))","v":""},"1a","$Q$53","$R$53"]
[13368,{"$f":"Menu!$F$29","v":"X"},{"$f":"Menu!$J$29","v":2020},{"$f":"IF(ISBLANK(INDIRECT(\"'\"&F1869&\"'!\"&G1869)),\"\",INDIRECT(\"'\"&F1869&\"'!\"&G1869))","v":""},{"$f":"IF(ISBLANK(INDIRECT(\"'\"&F1869&\"'!\"&H1869)),\"\",IFERROR(VLOOKUP(TEXT(INDIRECT(\"'\"&F1869&\"'!\"&H1869),\"0\"),Notes!$B$5:$C$100,2,FALSE),\"\"))","v":""},"1a","$S$53","$T$53"]
[13369,{"$f":"Menu!$F$29","v":"X"},{"$f":"Menu!$J$29","v":2020},{"$f":"IF(ISBLANK(INDIRECT(\"'\"&F1870&\"'!\"&G1870)),\"\",INDIRECT(\"'\"&F1870&\"'!\"&G1870))","v":""},{"$f":"IF(ISBLANK(INDIRECT(\"'\"&F1870&\"'!\"&H1870)),\"\",IFERROR(VLOOKUP(TEXT(INDIRECT(\"'\"&F1870&\"'!\"&H1870),\"0\"),Notes!$B$5:$C$100,2,FALSE),\"\"))","v":""},"1a","$U$53","$V$53"]
[13430,{"$f":"Menu!$F$29","v":"X"},{"$f":"Menu!$J$29","v":2020},{"$f":"IF(ISBLANK(INDIRECT(\"'\"&F1871&\"'!\"&G1871)),\"\",INDIRECT(\"'\"&F1871&\"'!\"&G1871))","v":""},{"$f":"IF(ISBLANK(INDIRECT(\"'\"&F1871&\"'!\"&H1871)),\"\",IFERROR(VLOOKUP(TEXT(INDIRECT(\"'\"&F1871&\"'!\"&H1871),\"0\"),Notes!$B$5:$C$100,2,FALSE),\"\"))","v":""},"2a","$E$12","$F$12"]
[13431,{"$f":"Menu!$F$29","v":"X"},{"$f":"Menu!$J$29","v":2020},{"$f":"IF(ISBLANK(INDIRECT(\"'\"&F1872&\"'!\"&G1872)),\"\",INDIRECT(\"'\"&F1872&\"'!\"&G1872))","v":""},{"$f":"IF(ISBLANK(INDIRECT(\"'\"&F1872&\"'!\"&H1872)),\"\",IFERROR(VLOOKUP(TEXT(INDIRECT(\"'\"&F1872&\"'!\"&H1872),\"0\"),Notes!$B$5:$C$100,2,FALSE),\"\"))","v":""},"2a","$G$12","$H$12"]
[13432,{"$f":"Menu!$F$29","v":"X"},{"$f":"Menu!$J$29","v":2020},{"$f":"IF(ISBLANK(INDIRECT(\"'\"&F1873&\"'!\"&G1873)),\"\",INDIRECT(\"'\"&F1873&\"'!\"&G1873))","v":""},{"$f":"IF(ISBLANK(INDIRECT(\"'\"&F1873&\"'!\"&H1873)),\"\",IFERROR(VLOOKUP(TEXT(INDIRECT(\"'\"&F1873&\"'!\"&H1873),\"0\"),Notes!$B$5:$C$100,2,FALSE),\"\"))","v":""},"2a","$I$12","$J$12"]
[13433,{"$f":"Menu!$F$29","v":"X"},{"$f":"Menu!$J$29","v":2020},{"$f":"IF(ISBLANK(INDIRECT(\"'\"&F1874&\"'!\"&G1874)),\"\",INDIRECT(\"'\"&F1874&\"'!\"&G1874))","v":""},{"$f":"IF(ISBLANK(INDIRECT(\"'\"&F1874&\"'!\"&H1874)),\"\",IFERROR(VLOOKUP(TEXT(INDIRECT(\"'\"&F1874&\"'!\"&H1874),\"0\"),Notes!$B$5:$C$100,2,FALSE),\"\"))","v":""},"2a","$K$12","$L$12"]
[13434,{"$f":"Menu!$F$29","v":"X"},{"$f":"Menu!$J$29","v":2020},{"$f":"IF(ISBLANK(INDIRECT(\"'\"&F1875&\"'!\"&G1875)),\"\",INDIRECT(\"'\"&F1875&\"'!\"&G1875))","v":""},{"$f":"IF(ISBLANK(INDIRECT(\"'\"&F1875&\"'!\"&H1875)),\"\",IFERROR(VLOOKUP(TEXT(INDIRECT(\"'\"&F1875&\"'!\"&H1875),\"0\"),Notes!$B$5:$C$100,2,FALSE),\"\"))","v":""},"2a","$M$12","$N$12"]
[13435,{"$f":"Menu!$F$29","v":"X"},{"$f":"Menu!$J$29","v":2020},{"$f":"IF(ISBLANK(INDIRECT(\"'\"&F1876&\"'!\"&G1876)),\"\",INDIRECT(\"'\"&F1876&\"'!\"&G1876))","v":""},{"$f":"IF(ISBLANK(INDIRECT(\"'\"&F1876&\"'!\"&H1876)),\"\",IFERROR(VLOOKUP(TEXT(INDIRECT(\"'\"&F1876&\"'!\"&H1876),\"0\"),Notes!$B$5:$C$100,2,FALSE),\"\"))","v":""},"2a","$O$12","$P$12"]
[13436,{"$f":"Menu!$F$29","v":"X"},{"$f":"Menu!$J$29","v":2020},{"$f":"IF(ISBLANK(INDIRECT(\"'\"&F1877&\"'!\"&G1877)),\"\",INDIRECT(\"'\"&F1877&\"'!\"&G1877))","v":""},{"$f":"IF(ISBLANK(INDIRECT(\"'\"&F1877&\"'!\"&H1877)),\"\",IFERROR(VLOOKUP(TEXT(INDIRECT(\"'\"&F1877&\"'!\"&H1877),\"0\"),Notes!$B$5:$C$100,2,FALSE),\"\"))","v":""},"2a","$Q$12","$R$12"]
[13437,{"$f":"Menu!$F$29","v":"X"},{"$f":"Menu!$J$29","v":2020},{"$f":"IF(ISBLANK(INDIRECT(\"'\"&F1878&\"'!\"&G1878)),\"\",INDIRECT(\"'\"&F1878&\"'!\"&G1878))","v":""},{"$f":"IF(ISBLANK(INDIRECT(\"'\"&F1878&\"'!\"&H1878)),\"\",IFERROR(VLOOKUP(TEXT(INDIRECT(\"'\"&F1878&\"'!\"&H1878),\"0\"),Notes!$B$5:$C$100,2,FALSE),\"\"))","v":""},"2a","$S$12","$T$12"]
[13438,{"$f":"Menu!$F$29","v":"X"},{"$f":"Menu!$J$29","v":2020},{"$f":"IF(ISBLANK(INDIRECT(\"'\"&F1879&\"'!\"&G1879)),\"\",INDIRECT(\"'\"&F1879&\"'!\"&G1879))","v":""},{"$f":"IF(ISBLANK(INDIRECT(\"'\"&F1879&\"'!\"&H1879)),\"\",IFERROR(VLOOKUP(TEXT(INDIRECT(\"'\"&F1879&\"'!\"&H1879),\"0\"),Notes!$B$5:$C$100,2,FALSE),\"\"))","v":""},"2a","$U$12","$V$12"]
[13439,{"$f":"Menu!$F$29","v":"X"},{"$f":"Menu!$J$29","v":2020},{"$f":"IF(ISBLANK(INDIRECT(\"'\"&F1880&\"'!\"&G1880)),\"\",INDIRECT(\"'\"&F1880&\"'!\"&G1880))","v":""},{"$f":"IF(ISBLANK(INDIRECT(\"'\"&F1880&\"'!\"&H1880)),\"\",IFERROR(VLOOKUP(TEXT(INDIRECT(\"'\"&F1880&\"'!\"&H1880),\"0\"),Notes!$B$5:$C$100,2,FALSE),\"\"))","v":""},"2a","$E$13","$F$13"]
[13440,{"$f":"Menu!$F$29","v":"X"},{"$f":"Menu!$J$29","v":2020},{"$f":"IF(ISBLANK(INDIRECT(\"'\"&F1881&\"'!\"&G1881)),\"\",INDIRECT(\"'\"&F1881&\"'!\"&G1881))","v":""},{"$f":"IF(ISBLANK(INDIRECT(\"'\"&F1881&\"'!\"&H1881)),\"\",IFERROR(VLOOKUP(TEXT(INDIRECT(\"'\"&F1881&\"'!\"&H1881),\"0\"),Notes!$B$5:$C$100,2,FALSE),\"\"))","v":""},"2a","$G$13","$H$13"]
[13441,{"$f":"Menu!$F$29","v":"X"},{"$f":"Menu!$J$29","v":2020},{"$f":"IF(ISBLANK(INDIRECT(\"'\"&F1882&\"'!\"&G1882)),\"\",INDIRECT(\"'\"&F1882&\"'!\"&G1882))","v":""},{"$f":"IF(ISBLANK(INDIRECT(\"'\"&F1882&\"'!\"&H1882)),\"\",IFERROR(VLOOKUP(TEXT(INDIRECT(\"'\"&F1882&\"'!\"&H1882),\"0\"),Notes!$B$5:$C$100,2,FALSE),\"\"))","v":""},"2a","$I$13","$J$13"]
[13442,{"$f":"Menu!$F$29","v":"X"},{"$f":"Menu!$J$29","v":2020},{"$f":"IF(ISBLANK(INDIRECT(\"'\"&F1883&\"'!\"&G1883)),\"\",INDIRECT(\"'\"&F1883&\"'!\"&G1883))","v":""},{"$f":"IF(ISBLANK(INDIRECT(\"'\"&F1883&\"'!\"&H1883)),\"\",IFERROR(VLOOKUP(TEXT(INDIRECT(\"'\"&F1883&\"'!\"&H1883),\"0\"),Notes!$B$5:$C$100,2,FALSE),\"\"))","v":""},"2a","$K$13","$L$13"]
[13443,{"$f":"Menu!$F$29","v":"X"},{"$f":"Menu!$J$29","v":2020},{"$f":"IF(ISBLANK(INDIRECT(\"'\"&F1884&\"'!\"&G1884)),\"\",INDIRECT(\"'\"&F1884&\"'!\"&G1884))","v":""},{"$f":"IF(ISBLANK(INDIRECT(\"'\"&F1884&\"'!\"&H1884)),\"\",IFERROR(VLOOKUP(TEXT(INDIRECT(\"'\"&F1884&\"'!\"&H1884),\"0\"),Notes!$B$5:$C$100,2,FALSE),\"\"))","v":""},"2a","$M$13","$N$13"]
[13444,{"$f":"Menu!$F$29","v":"X"},{"$f":"Menu!$J$29","v":2020},{"$f":"IF(ISBLANK(INDIRECT(\"'\"&F1885&\"'!\"&G1885)),\"\",INDIRECT(\"'\"&F1885&\"'!\"&G1885))","v":""},{"$f":"IF(ISBLANK(INDIRECT(\"'\"&F1885&\"'!\"&H1885)),\"\",IFERROR(VLOOKUP(TEXT(INDIRECT(\"'\"&F1885&\"'!\"&H1885),\"0\"),Notes!$B$5:$C$100,2,FALSE),\"\"))","v":""},"2a","$O$13","$P$13"]
[13445,{"$f":"Menu!$F$29","v":"X"},{"$f":"Menu!$J$29","v":2020},{"$f":"IF(ISBLANK(INDIRECT(\"'\"&F1886&\"'!\"&G1886)),\"\",INDIRECT(\"'\"&F1886&\"'!\"&G1886))","v":""},{"$f":"IF(ISBLANK(INDIRECT(\"'\"&F1886&\"'!\"&H1886)),\"\",IFERROR(VLOOKUP(TEXT(INDIRECT(\"'\"&F1886&\"'!\"&H1886),\"0\"),Notes!$B$5:$C$100,2,FALSE),\"\"))","v":""},"2a","$Q$13","$R$13"]
[13446,{"$f":"Menu!$F$29","v":"X"},{"$f":"Menu!$J$29","v":2020},{"$f":"IF(ISBLANK(INDIRECT(\"'\"&F1887&\"'!\"&G1887)),\"\",INDIRECT(\"'\"&F1887&\"'!\"&G1887))","v":""},{"$f":"IF(ISBLANK(INDIRECT(\"'\"&F1887&\"'!\"&H1887)),\"\",IFERROR(VLOOKUP(TEXT(INDIRECT(\"'\"&F1887&\"'!\"&H1887),\"0\"),Notes!$B$5:$C$100,2,FALSE),\"\"))","v":""},"2a","$S$13","$T$13"]
[13447,{"$f":"Menu!$F$29","v":"X"},{"$f":"Menu!$J$29","v":2020},{"$f":"IF(ISBLANK(INDIRECT(\"'\"&F1888&\"'!\"&G1888)),\"\",INDIRECT(\"'\"&F1888&\"'!\"&G1888))","v":""},{"$f":"IF(ISBLANK(INDIRECT(\"'\"&F1888&\"'!\"&H1888)),\"\",IFERROR(VLOOKUP(TEXT(INDIRECT(\"'\"&F1888&\"'!\"&H1888),\"0\"),Notes!$B$5:$C$100,2,FALSE),\"\"))","v":""},"2a","$U$13","$V$13"]
[13448,{"$f":"Menu!$F$29","v":"X"},{"$f":"Menu!$J$29","v":2020},{"$f":"IF(ISBLANK(INDIRECT(\"'\"&F1889&\"'!\"&G1889)),\"\",INDIRECT(\"'\"&F1889&\"'!\"&G1889))","v":""},{"$f":"IF(ISBLANK(INDIRECT(\"'\"&F1889&\"'!\"&H1889)),\"\",IFERROR(VLOOKUP(TEXT(INDIRECT(\"'\"&F1889&\"'!\"&H1889),\"0\"),Notes!$B$5:$C$100,2,FALSE),\"\"))","v":""},"2a","$E$14","$F$14"]
[13449,{"$f":"Menu!$F$29","v":"X"},{"$f":"Menu!$J$29","v":2020},{"$f":"IF(ISBLANK(INDIRECT(\"'\"&F1890&\"'!\"&G1890)),\"\",INDIRECT(\"'\"&F1890&\"'!\"&G1890))","v":""},null,"2a","$G$14","$H$14"]
[13450,{"$f":"Menu!$F$29","v":"X"},{"$f":"Menu!$J$29","v":2020},{"$f":"IF(ISBLANK(INDIRECT(\"'\"&F1891&\"'!\"&G1891)),\"\",INDIRECT(\"'\"&F1891&\"'!\"&G1891))","v":""},null,"2a","$I$14","$J$14"]
[13451,{"$f":"Menu!$F$29","v":"X"},{"$f":"Menu!$J$29","v":2020},{"$f":"IF(ISBLANK(INDIRECT(\"'\"&F1892&\"'!\"&G1892)),\"\",INDIRECT(\"'\"&F1892&\"'!\"&G1892))","v":""},{"$f":"IF(ISBLANK(INDIRECT(\"'\"&F1892&\"'!\"&H1892)),\"\",IFERROR(VLOOKUP(TEXT(INDIRECT(\"'\"&F1892&\"'!\"&H1892),\"0\"),Notes!$B$5:$C$100,2,FALSE),\"\"))","v":""},"2a","$K$14","$L$14"]
[13452,{"$f":"Menu!$F$29","v":"X"},{"$f":"Menu!$J$29","v":2020},{"$f":"IF(ISBLANK(INDIRECT(\"'\"&F1893&\"'!\"&G1893)),\"\",INDIRECT(\"'\"&F1893&\"'!\"&G1893))","v":""},{"$f":"IF(ISBLANK(INDIRECT(\"'\"&F1893&\"'!\"&H1893)),\"\",IFERROR(VLOOKUP(TEXT(INDIRECT(\"'\"&F1893&\"'!\"&H1893),\"0\"),Notes!$B$5:$C$100,2,FALSE),\"\"))","v":""},"2a","$M$14","$N$14"]
[13453,{"$f":"Menu!$F$29","v":"X"},{"$f":"Menu!$J$29","v":2020},{"$f":"IF(ISBLANK(INDIRECT(\"'\"&F1894&\"'!\"&G1894)),\"\",INDIRECT(\"'\"&F1894&\"'!\"&G1894))","v":""},{"$f":"IF(ISBLANK(INDIRECT(\"'\"&F1894&\"'!\"&H1894)),\"\",IFERROR(VLOOKUP(TEXT(INDIRECT(\"'\"&F1894&\"'!\"&H1894),\"0\"),Notes!$B$5:$C$100,2,FALSE),\"\"))","v":""},"2a","$O$14","$P$14"]
[13454,{"$f":"Menu!$F$29","v":"X"},{"$f":"Menu!$J$29","v":2020},{"$f":"IF(ISBLANK(INDIRECT(\"'\"&F1895&\"'!\"&G1895)),\"\",INDIRECT(\"'\"&F1895&\"'!\"&G1895))","v":""},{"$f":"IF(ISBLANK(INDIRECT(\"'\"&F1895&\"'!\"&H1895)),\"\",IFERROR(VLOOKUP(TEXT(INDIRECT(\"'\"&F1895&\"'!\"&H1895),\"0\"),Notes!$B$5:$C$100,2,FALSE),\"\"))","v":""},"2a","$Q$14","$R$14"]
[13455,{"$f":"Menu!$F$29","v":"X"},{"$f":"Menu!$J$29","v":2020},{"$f":"IF(ISBLANK(INDIRECT(\"'\"&F1896&\"'!\"&G1896)),\"\",INDIRECT(\"'\"&F1896&\"'!\"&G1896))","v":""},{"$f":"IF(ISBLANK(INDIRECT(\"'\"&F1896&\"'!\"&H1896)),\"\",IFERROR(VLOOKUP(TEXT(INDIRECT(\"'\"&F1896&\"'!\"&H1896),\"0\"),Notes!$B$5:$C$100,2,FALSE),\"\"))","v":""},"2a","$S$14","$T$14"]
[13456,{"$f":"Menu!$F$29","v":"X"},{"$f":"Menu!$J$29","v":2020},{"$f":"IF(ISBLANK(INDIRECT(\"'\"&F1897&\"'!\"&G1897)),\"\",INDIRECT(\"'\"&F1897&\"'!\"&G1897))","v":""},{"$f":"IF(ISBLANK(INDIRECT(\"'\"&F1897&\"'!\"&H1897)),\"\",IFERROR(VLOOKUP(TEXT(INDIRECT(\"'\"&F1897&\"'!\"&H1897),\"0\"),Notes!$B$5:$C$100,2,FALSE),\"\"))","v":""},"2a","$U$14","$V$14"]
[13457,{"$f":"Menu!$F$29","v":"X"},{"$f":"Menu!$J$29","v":2020},{"$f":"IF(ISBLANK(INDIRECT(\"'\"&F1898&\"'!\"&G1898)),\"\",INDIRECT(\"'\"&F1898&\"'!\"&G1898))","v":""},{"$f":"IF(ISBLANK(INDIRECT(\"'\"&F1898&\"'!\"&H1898)),\"\",IFERROR(VLOOKUP(TEXT(INDIRECT(\"'\"&F1898&\"'!\"&H1898),\"0\"),Notes!$B$5:$C$100,2,FALSE),\"\"))","v":""},"2a","$E$70","$F$70"]
[13458,{"$f":"Menu!$F$29","v":"X"},{"$f":"Menu!$J$29","v":2020},{"$f":"IF(ISBLANK(INDIRECT(\"'\"&F1899&\"'!\"&G1899)),\"\",INDIRECT(\"'\"&F1899&\"'!\"&G1899))","v":""},{"$f":"IF(ISBLANK(INDIRECT(\"'\"&F1899&\"'!\"&H1899)),\"\",IFERROR(VLOOKUP(TEXT(INDIRECT(\"'\"&F1899&\"'!\"&H1899),\"0\"),Notes!$B$5:$C$100,2,FALSE),\"\"))","v":""},"2a","$G$70","$H$70"]
[13459,{"$f":"Menu!$F$29","v":"X"},{"$f":"Menu!$J$29","v":2020},{"$f":"IF(ISBLANK(INDIRECT(\"'\"&F1900&\"'!\"&G1900)),\"\",INDIRECT(\"'\"&F1900&\"'!\"&G1900))","v":""},{"$f":"IF(ISBLANK(INDIRECT(\"'\"&F1900&\"'!\"&H1900)),\"\",IFERROR(VLOOKUP(TEXT(INDIRECT(\"'\"&F1900&\"'!\"&H1900),\"0\"),Notes!$B$5:$C$100,2,FALSE),\"\"))","v":""},"2a","$I$70","$J$70"]
[13460,{"$f":"Menu!$F$29","v":"X"},{"$f":"Menu!$J$29","v":2020},{"$f":"IF(ISBLANK(INDIRECT(\"'\"&F1901&\"'!\"&G1901)),\"\",INDIRECT(\"'\"&F1901&\"'!\"&G1901))","v":""},{"$f":"IF(ISBLANK(INDIRECT(\"'\"&F1901&\"'!\"&H1901)),\"\",IFERROR(VLOOKUP(TEXT(INDIRECT(\"'\"&F1901&\"'!\"&H1901),\"0\"),Notes!$B$5:$C$100,2,FALSE),\"\"))","v":""},"2a","$K$70","$L$70"]
[13461,{"$f":"Menu!$F$29","v":"X"},{"$f":"Menu!$J$29","v":2020},{"$f":"IF(ISBLANK(INDIRECT(\"'\"&F1902&\"'!\"&G1902)),\"\",INDIRECT(\"'\"&F1902&\"'!\"&G1902))","v":""},{"$f":"IF(ISBLANK(INDIRECT(\"'\"&F1902&\"'!\"&H1902)),\"\",IFERROR(VLOOKUP(TEXT(INDIRECT(\"'\"&F1902&\"'!\"&H1902),\"0\"),Notes!$B$5:$C$100,2,FALSE),\"\"))","v":""},"2a","$M$70","$N$70"]
[13462,{"$f":"Menu!$F$29","v":"X"},{"$f":"Menu!$J$29","v":2020},{"$f":"IF(ISBLANK(INDIRECT(\"'\"&F1903&\"'!\"&G1903)),\"\",INDIRECT(\"'\"&F1903&\"'!\"&G1903))","v":""},{"$f":"IF(ISBLANK(INDIRECT(\"'\"&F1903&\"'!\"&H1903)),\"\",IFERROR(VLOOKUP(TEXT(INDIRECT(\"'\"&F1903&\"'!\"&H1903),\"0\"),Notes!$B$5:$C$100,2,FALSE),\"\"))","v":""},"2a","$O$70","$P$70"]
[13463,{"$f":"Menu!$F$29","v":"X"},{"$f":"Menu!$J$29","v":2020},{"$f":"IF(ISBLANK(INDIRECT(\"'\"&F1904&\"'!\"&G1904)),\"\",INDIRECT(\"'\"&F1904&\"'!\"&G1904))","v":""},{"$f":"IF(ISBLANK(INDIRECT(\"'\"&F1904&\"'!\"&H1904)),\"\",IFERROR(VLOOKUP(TEXT(INDIRECT(\"'\"&F1904&\"'!\"&H1904),\"0\"),Notes!$B$5:$C$100,2,FALSE),\"\"))","v":""},"2a","$Q$70","$R$70"]
[13464,{"$f":"Menu!$F$29","v":"X"},{"$f":"Menu!$J$29","v":2020},{"$f":"IF(ISBLANK(INDIRECT(\"'\"&F1905&\"'!\"&G1905)),\"\",INDIRECT(\"'\"&F1905&\"'!\"&G1905))","v":""},{"$f":"IF(ISBLANK(INDIRECT(\"'\"&F1905&\"'!\"&H1905)),\"\",IFERROR(VLOOKUP(TEXT(INDIRECT(\"'\"&F1905&\"'!\"&H1905),\"0\"),Notes!$B$5:$C$100,2,FALSE),\"\"))","v":""},"2a","$S$70","$T$70"]
[13465,{"$f":"Menu!$F$29","v":"X"},{"$f":"Menu!$J$29","v":2020},{"$f":"IF(ISBLANK(INDIRECT(\"'\"&F1906&\"'!\"&G1906)),\"\",INDIRECT(\"'\"&F1906&\"'!\"&G1906))","v":""},{"$f":"IF(ISBLANK(INDIRECT(\"'\"&F1906&\"'!\"&H1906)),\"\",IFERROR(VLOOKUP(TEXT(INDIRECT(\"'\"&F1906&\"'!\"&H1906),\"0\"),Notes!$B$5:$C$100,2,FALSE),\"\"))","v":""},"2a","$U$70","$V$70"]
[13466,{"$f":"Menu!$F$29","v":"X"},{"$f":"Menu!$J$29","v":2020},{"$f":"IF(ISBLANK(INDIRECT(\"'\"&F1907&\"'!\"&G1907)),\"\",INDIRECT(\"'\"&F1907&\"'!\"&G1907))","v":""},{"$f":"IF(ISBLANK(INDIRECT(\"'\"&F1907&\"'!\"&H1907)),\"\",IFERROR(VLOOKUP(TEXT(INDIRECT(\"'\"&F1907&\"'!\"&H1907),\"0\"),Notes!$B$5:$C$100,2,FALSE),\"\"))","v":""},"2a","$E$27","$F$27"]
[13467,{"$f":"Menu!$F$29","v":"X"},{"$f":"Menu!$J$29","v":2020},{"$f":"IF(ISBLANK(INDIRECT(\"'\"&F1908&\"'!\"&G1908)),\"\",INDIRECT(\"'\"&F1908&\"'!\"&G1908))","v":""},{"$f":"IF(ISBLANK(INDIRECT(\"'\"&F1908&\"'!\"&H1908)),\"\",IFERROR(VLOOKUP(TEXT(INDIRECT(\"'\"&F1908&\"'!\"&H1908),\"0\"),Notes!$B$5:$C$100,2,FALSE),\"\"))","v":""},"2a","$G$27","$H$27"]
[13468,{"$f":"Menu!$F$29","v":"X"},{"$f":"Menu!$J$29","v":2020},{"$f":"IF(ISBLANK(INDIRECT(\"'\"&F1909&\"'!\"&G1909)),\"\",INDIRECT(\"'\"&F1909&\"'!\"&G1909))","v":""},{"$f":"IF(ISBLANK(INDIRECT(\"'\"&F1909&\"'!\"&H1909)),\"\",IFERROR(VLOOKUP(TEXT(INDIRECT(\"'\"&F1909&\"'!\"&H1909),\"0\"),Notes!$B$5:$C$100,2,FALSE),\"\"))","v":""},"2a","$I$27","$J$27"]
[13469,{"$f":"Menu!$F$29","v":"X"},{"$f":"Menu!$J$29","v":2020},{"$f":"IF(ISBLANK(INDIRECT(\"'\"&F1910&\"'!\"&G1910)),\"\",INDIRECT(\"'\"&F1910&\"'!\"&G1910))","v":""},{"$f":"IF(ISBLANK(INDIRECT(\"'\"&F1910&\"'!\"&H1910)),\"\",IFERROR(VLOOKUP(TEXT(INDIRECT(\"'\"&F1910&\"'!\"&H1910),\"0\"),Notes!$B$5:$C$100,2,FALSE),\"\"))","v":""},"2a","$K$27","$L$27"]
[13470,{"$f":"Menu!$F$29","v":"X"},{"$f":"Menu!$J$29","v":2020},{"$f":"IF(ISBLANK(INDIRECT(\"'\"&F1911&\"'!\"&G1911)),\"\",INDIRECT(\"'\"&F1911&\"'!\"&G1911))","v":""},{"$f":"IF(ISBLANK(INDIRECT(\"'\"&F1911&\"'!\"&H1911)),\"\",IFERROR(VLOOKUP(TEXT(INDIRECT(\"'\"&F1911&\"'!\"&H1911),\"0\"),Notes!$B$5:$C$100,2,FALSE),\"\"))","v":""},"2a","$M$27","$N$27"]
[13471,{"$f":"Menu!$F$29","v":"X"},{"$f":"Menu!$J$29","v":2020},{"$f":"IF(ISBLANK(INDIRECT(\"'\"&F1912&\"'!\"&G1912)),\"\",INDIRECT(\"'\"&F1912&\"'!\"&G1912))","v":""},{"$f":"IF(ISBLANK(INDIRECT(\"'\"&F1912&\"'!\"&H1912)),\"\",IFERROR(VLOOKUP(TEXT(INDIRECT(\"'\"&F1912&\"'!\"&H1912),\"0\"),Notes!$B$5:$C$100,2,FALSE),\"\"))","v":""},"2a","$O$27","$P$27"]
[13472,{"$f":"Menu!$F$29","v":"X"},{"$f":"Menu!$J$29","v":2020},{"$f":"IF(ISBLANK(INDIRECT(\"'\"&F1913&\"'!\"&G1913)),\"\",INDIRECT(\"'\"&F1913&\"'!\"&G1913))","v":""},{"$f":"IF(ISBLANK(INDIRECT(\"'\"&F1913&\"'!\"&H1913)),\"\",IFERROR(VLOOKUP(TEXT(INDIRECT(\"'\"&F1913&\"'!\"&H1913),\"0\"),Notes!$B$5:$C$100,2,FALSE),\"\"))","v":""},"2a","$Q$27","$R$27"]
[13473,{"$f":"Menu!$F$29","v":"X"},{"$f":"Menu!$J$29","v":2020},{"$f":"IF(ISBLANK(INDIRECT(\"'\"&F1914&\"'!\"&G1914)),\"\",INDIRECT(\"'\"&F1914&\"'!\"&G1914))","v":""},{"$f":"IF(ISBLANK(INDIRECT(\"'\"&F1914&\"'!\"&H1914)),\"\",IFERROR(VLOOKUP(TEXT(INDIRECT(\"'\"&F1914&\"'!\"&H1914),\"0\"),Notes!$B$5:$C$100,2,FALSE),\"\"))","v":""},"2a","$S$27","$T$27"]
[13474,{"$f":"Menu!$F$29","v":"X"},{"$f":"Menu!$J$29","v":2020},{"$f":"IF(ISBLANK(INDIRECT(\"'\"&F1915&\"'!\"&G1915)),\"\",INDIRECT(\"'\"&F1915&\"'!\"&G1915))","v":""},{"$f":"IF(ISBLANK(INDIRECT(\"'\"&F1915&\"'!\"&H1915)),\"\",IFERROR(VLOOKUP(TEXT(INDIRECT(\"'\"&F1915&\"'!\"&H1915),\"0\"),Notes!$B$5:$C$100,2,FALSE),\"\"))","v":""},"2a","$U$27","$V$27"]
[13475,{"$f":"Menu!$F$29","v":"X"},{"$f":"Menu!$J$29","v":2020},{"$f":"IF(ISBLANK(INDIRECT(\"'\"&F1916&\"'!\"&G1916)),\"\",INDIRECT(\"'\"&F1916&\"'!\"&G1916))","v":""},{"$f":"IF(ISBLANK(INDIRECT(\"'\"&F1916&\"'!\"&H1916)),\"\",IFERROR(VLOOKUP(TEXT(INDIRECT(\"'\"&F1916&\"'!\"&H1916),\"0\"),Notes!$B$5:$C$100,2,FALSE),\"\"))","v":""},"2a","$E$92","$F$92"]
[13476,{"$f":"Menu!$F$29","v":"X"},{"$f":"Menu!$J$29","v":2020},{"$f":"IF(ISBLANK(INDIRECT(\"'\"&F1917&\"'!\"&G1917)),\"\",INDIRECT(\"'\"&F1917&\"'!\"&G1917))","v":""},{"$f":"IF(ISBLANK(INDIRECT(\"'\"&F1917&\"'!\"&H1917)),\"\",IFERROR(VLOOKUP(TEXT(INDIRECT(\"'\"&F1917&\"'!\"&H1917),\"0\"),Notes!$B$5:$C$100,2,FALSE),\"\"))","v":""},"2a","$G$92","$H$92"]
[13477,{"$f":"Menu!$F$29","v":"X"},{"$f":"Menu!$J$29","v":2020},{"$f":"IF(ISBLANK(INDIRECT(\"'\"&F1918&\"'!\"&G1918)),\"\",INDIRECT(\"'\"&F1918&\"'!\"&G1918))","v":""},{"$f":"IF(ISBLANK(INDIRECT(\"'\"&F1918&\"'!\"&H1918)),\"\",IFERROR(VLOOKUP(TEXT(INDIRECT(\"'\"&F1918&\"'!\"&H1918),\"0\"),Notes!$B$5:$C$100,2,FALSE),\"\"))","v":""},"2a","$I$92","$J$92"]
[13478,{"$f":"Menu!$F$29","v":"X"},{"$f":"Menu!$J$29","v":2020},{"$f":"IF(ISBLANK(INDIRECT(\"'\"&F1919&\"'!\"&G1919)),\"\",INDIRECT(\"'\"&F1919&\"'!\"&G1919))","v":""},{"$f":"IF(ISBLANK(INDIRECT(\"'\"&F1919&\"'!\"&H1919)),\"\",IFERROR(VLOOKUP(TEXT(INDIRECT(\"'\"&F1919&\"'!\"&H1919),\"0\"),Notes!$B$5:$C$100,2,FALSE),\"\"))","v":""},"2a","$K$92","$L$92"]
[13479,{"$f":"Menu!$F$29","v":"X"},{"$f":"Menu!$J$29","v":2020},{"$f":"IF(ISBLANK(INDIRECT(\"'\"&F1920&\"'!\"&G1920)),\"\",INDIRECT(\"'\"&F1920&\"'!\"&G1920))","v":""},{"$f":"IF(ISBLANK(INDIRECT(\"'\"&F1920&\"'!\"&H1920)),\"\",IFERROR(VLOOKUP(TEXT(INDIRECT(\"'\"&F1920&\"'!\"&H1920),\"0\"),Notes!$B$5:$C$100,2,FALSE),\"\"))","v":""},"2a","$M$92","$N$92"]
[13480,{"$f":"Menu!$F$29","v":"X"},{"$f":"Menu!$J$29","v":2020},{"$f":"IF(ISBLANK(INDIRECT(\"'\"&F1921&\"'!\"&G1921)),\"\",INDIRECT(\"'\"&F1921&\"'!\"&G1921))","v":""},{"$f":"IF(ISBLANK(INDIRECT(\"'\"&F1921&\"'!\"&H1921)),\"\",IFERROR(VLOOKUP(TEXT(INDIRECT(\"'\"&F1921&\"'!\"&H1921),\"0\"),Notes!$B$5:$C$100,2,FALSE),\"\"))","v":""},"2a","$O$92","$P$92"]
[13481,{"$f":"Menu!$F$29","v":"X"},{"$f":"Menu!$J$29","v":2020},{"$f":"IF(ISBLANK(INDIRECT(\"'\"&F1922&\"'!\"&G1922)),\"\",INDIRECT(\"'\"&F1922&\"'!\"&G1922))","v":""},{"$f":"IF(ISBLANK(INDIRECT(\"'\"&F1922&\"'!\"&H1922)),\"\",IFERROR(VLOOKUP(TEXT(INDIRECT(\"'\"&F1922&\"'!\"&H1922),\"0\"),Notes!$B$5:$C$100,2,FALSE),\"\"))","v":""},"2a","$Q$92",{"$f":"IF(LEN(TRIM(MID(G1922,4,10)))-LEN(SUBSTITUTE(TRIM(MID(G1922,4,10)),\"$\",\"\"))=0,\"$\"&CHAR(CODE(MID(G1922,2,1))+1)&\"$\"&TRIM(MID(G1922,4,10)),\"$\"&MID(G1922,2,1)&CHAR(CODE(MID(G1922,3,1))+1)&\"$\"&TRIM(MID(G1922,5,11)))","v":"$R$92"}]
[13482,{"$f":"Menu!$F$29","v":"X"},{"$f":"Menu!$J$29","v":2020},{"$f":"IF(ISBLANK(INDIRECT(\"'\"&F1923&\"'!\"&G1923)),\"\",INDIRECT(\"'\"&F1923&\"'!\"&G1923))","v":""},{"$f":"IF(ISBLANK(INDIRECT(\"'\"&F1923&\"'!\"&H1923)),\"\",IFERROR(VLOOKUP(TEXT(INDIRECT(\"'\"&F1923&\"'!\"&H1923),\"0\"),Notes!$B$5:$C$100,2,FALSE),\"\"))","v":""},"2a","$S$92","$T$92"]
[13483,{"$f":"Menu!$F$29","v":"X"},{"$f":"Menu!$J$29","v":2020},{"$f":"IF(ISBLANK(INDIRECT(\"'\"&F1924&\"'!\"&G1924)),\"\",INDIRECT(\"'\"&F1924&\"'!\"&G1924))","v":""},{"$f":"IF(ISBLANK(INDIRECT(\"'\"&F1924&\"'!\"&H1924)),\"\",IFERROR(VLOOKUP(TEXT(INDIRECT(\"'\"&F1924&\"'!\"&H1924),\"0\"),Notes!$B$5:$C$100,2,FALSE),\"\"))","v":""},"2a","$U$92","$V$92"]
[13484,{"$f":"Menu!$F$29","v":"X"},{"$f":"Menu!$J$29","v":2020},{"$f":"IF(ISBLANK(INDIRECT(\"'\"&F1925&\"'!\"&G1925)),\"\",INDIRECT(\"'\"&F1925&\"'!\"&G1925))","v":""},{"$f":"IF(ISBLANK(INDIRECT(\"'\"&F1925&\"'!\"&H1925)),\"\",IFERROR(VLOOKUP(TEXT(INDIRECT(\"'\"&F1925&\"'!\"&H1925),\"0\"),Notes!$B$5:$C$100,2,FALSE),\"\"))","v":""},"2a","$E$33","$F$33"]
[13485,{"$f":"Menu!$F$29","v":"X"},{"$f":"Menu!$J$29","v":2020},{"$f":"IF(ISBLANK(INDIRECT(\"'\"&F1926&\"'!\"&G1926)),\"\",INDIRECT(\"'\"&F1926&\"'!\"&G1926))","v":""},{"$f":"IF(ISBLANK(INDIRECT(\"'\"&F1926&\"'!\"&H1926)),\"\",IFERROR(VLOOKUP(TEXT(INDIRECT(\"'\"&F1926&\"'!\"&H1926),\"0\"),Notes!$B$5:$C$100,2,FALSE),\"\"))","v":""},"2a","$G$33","$H$33"]
[13486,{"$f":"Menu!$F$29","v":"X"},{"$f":"Menu!$J$29","v":2020},{"$f":"IF(ISBLANK(INDIRECT(\"'\"&F1927&\"'!\"&G1927)),\"\",INDIRECT(\"'\"&F1927&\"'!\"&G1927))","v":""},{"$f":"IF(ISBLANK(INDIRECT(\"'\"&F1927&\"'!\"&H1927)),\"\",IFERROR(VLOOKUP(TEXT(INDIRECT(\"'\"&F1927&\"'!\"&H1927),\"0\"),Notes!$B$5:$C$100,2,FALSE),\"\"))","v":""},"2a","$I$33","$J$33"]
[13487,{"$f":"Menu!$F$29","v":"X"},{"$f":"Menu!$J$29","v":2020},{"$f":"IF(ISBLANK(INDIRECT(\"'\"&F1928&\"'!\"&G1928)),\"\",INDIRECT(\"'\"&F1928&\"'!\"&G1928))","v":""},{"$f":"IF(ISBLANK(INDIRECT(\"'\"&F1928&\"'!\"&H1928)),\"\",IFERROR(VLOOKUP(TEXT(INDIRECT(\"'\"&F1928&\"'!\"&H1928),\"0\"),Notes!$B$5:$C$100,2,FALSE),\"\"))","v":""},"2a","$K$33","$L$33"]
[13488,{"$f":"Menu!$F$29","v":"X"},{"$f":"Menu!$J$29","v":2020},{"$f":"IF(ISBLANK(INDIRECT(\"'\"&F1929&\"'!\"&G1929)),\"\",INDIRECT(\"'\"&F1929&\"'!\"&G1929))","v":""},{"$f":"IF(ISBLANK(INDIRECT(\"'\"&F1929&\"'!\"&H1929)),\"\",IFERROR(VLOOKUP(TEXT(INDIRECT(\"'\"&F1929&\"'!\"&H1929),\"0\"),Notes!$B$5:$C$100,2,FALSE),\"\"))","v":""},"2a","$M$33","$N$33"]
[13489,{"$f":"Menu!$F$29","v":"X"},{"$f":"Menu!$J$29","v":2020},{"$f":"IF(ISBLANK(INDIRECT(\"'\"&F1930&\"'!\"&G1930)),\"\",INDIRECT(\"'\"&F1930&\"'!\"&G1930))","v":""},{"$f":"IF(ISBLANK(INDIRECT(\"'\"&F1930&\"'!\"&H1930)),\"\",IFERROR(VLOOKUP(TEXT(INDIRECT(\"'\"&F1930&\"'!\"&H1930),\"0\"),Notes!$B$5:$C$100,2,FALSE),\"\"))","v":""},"2a","$O$33","$P$33"]
[13490,{"$f":"Menu!$F$29","v":"X"},{"$f":"Menu!$J$29","v":2020},{"$f":"IF(ISBLANK(INDIRECT(\"'\"&F1931&\"'!\"&G1931)),\"\",INDIRECT(\"'\"&F1931&\"'!\"&G1931))","v":""},{"$f":"IF(ISBLANK(INDIRECT(\"'\"&F1931&\"'!\"&H1931)),\"\",IFERROR(VLOOKUP(TEXT(INDIRECT(\"'\"&F1931&\"'!\"&H1931),\"0\"),Notes!$B$5:$C$100,2,FALSE),\"\"))","v":""},"2a","$Q$33","$R$33"]
[13491,{"$f":"Menu!$F$29","v":"X"},{"$f":"Menu!$J$29","v":2020},{"$f":"IF(ISBLANK(INDIRECT(\"'\"&F1932&\"'!\"&G1932)),\"\",INDIRECT(\"'\"&F1932&\"'!\"&G1932))","v":""},{"$f":"IF(ISBLANK(INDIRECT(\"'\"&F1932&\"'!\"&H1932)),\"\",IFERROR(VLOOKUP(TEXT(INDIRECT(\"'\"&F1932&\"'!\"&H1932),\"0\"),Notes!$B$5:$C$100,2,FALSE),\"\"))","v":""},"2a","$S$33","$T$33"]
[13492,{"$f":"Menu!$F$29","v":"X"},{"$f":"Menu!$J$29","v":2020},{"$f":"IF(ISBLANK(INDIRECT(\"'\"&F1933&\"'!\"&G1933)),\"\",INDIRECT(\"'\"&F1933&\"'!\"&G1933))","v":""},{"$f":"IF(ISBLANK(INDIRECT(\"'\"&F1933&\"'!\"&H1933)),\"\",IFERROR(VLOOKUP(TEXT(INDIRECT(\"'\"&F1933&\"'!\"&H1933),\"0\"),Notes!$B$5:$C$100,2,FALSE),\"\"))","v":""},"2a","$U$33","$V$33"]
[13493,{"$f":"Menu!$F$29","v":"X"},{"$f":"Menu!$J$29","v":2020},{"$f":"IF(ISBLANK(INDIRECT(\"'\"&F1934&\"'!\"&G1934)),\"\",INDIRECT(\"'\"&F1934&\"'!\"&G1934))","v":""},{"$f":"IF(ISBLANK(INDIRECT(\"'\"&F1934&\"'!\"&H1934)),\"\",IFERROR(VLOOKUP(TEXT(INDIRECT(\"'\"&F1934&\"'!\"&H1934),\"0\"),Notes!$B$5:$C$100,2,FALSE),\"\"))","v":""},"2a","$E$94","$F$94"]
[13494,{"$f":"Menu!$F$29","v":"X"},{"$f":"Menu!$J$29","v":2020},{"$f":"IF(ISBLANK(INDIRECT(\"'\"&F1935&\"'!\"&G1935)),\"\",INDIRECT(\"'\"&F1935&\"'!\"&G1935))","v":""},{"$f":"IF(ISBLANK(INDIRECT(\"'\"&F1935&\"'!\"&H1935)),\"\",IFERROR(VLOOKUP(TEXT(INDIRECT(\"'\"&F1935&\"'!\"&H1935),\"0\"),Notes!$B$5:$C$100,2,FALSE),\"\"))","v":""},"2a","$G$94","$H$94"]
[13495,{"$f":"Menu!$F$29","v":"X"},{"$f":"Menu!$J$29","v":2020},{"$f":"IF(ISBLANK(INDIRECT(\"'\"&F1936&\"'!\"&G1936)),\"\",INDIRECT(\"'\"&F1936&\"'!\"&G1936))","v":""},{"$f":"IF(ISBLANK(INDIRECT(\"'\"&F1936&\"'!\"&H1936)),\"\",IFERROR(VLOOKUP(TEXT(INDIRECT(\"'\"&F1936&\"'!\"&H1936),\"0\"),Notes!$B$5:$C$100,2,FALSE),\"\"))","v":""},"2a","$I$94","$J$94"]
[13496,{"$f":"Menu!$F$29","v":"X"},{"$f":"Menu!$J$29","v":2020},{"$f":"IF(ISBLANK(INDIRECT(\"'\"&F1937&\"'!\"&G1937)),\"\",INDIRECT(\"'\"&F1937&\"'!\"&G1937))","v":""},{"$f":"IF(ISBLANK(INDIRECT(\"'\"&F1937&\"'!\"&H1937)),\"\",IFERROR(VLOOKUP(TEXT(INDIRECT(\"'\"&F1937&\"'!\"&H1937),\"0\"),Notes!$B$5:$C$100,2,FALSE),\"\"))","v":""},"2a","$K$94","$L$94"]
[13497,{"$f":"Menu!$F$29","v":"X"},{"$f":"Menu!$J$29","v":2020},{"$f":"IF(ISBLANK(INDIRECT(\"'\"&F1938&\"'!\"&G1938)),\"\",INDIRECT(\"'\"&F1938&\"'!\"&G1938))","v":""},{"$f":"IF(ISBLANK(INDIRECT(\"'\"&F1938&\"'!\"&H1938)),\"\",IFERROR(VLOOKUP(TEXT(INDIRECT(\"'\"&F1938&\"'!\"&H1938),\"0\"),Notes!$B$5:$C$100,2,FALSE),\"\"))","v":""},"2a","$M$94","$N$94"]
[13498,{"$f":"Menu!$F$29","v":"X"},{"$f":"Menu!$J$29","v":2020},{"$f":"IF(ISBLANK(INDIRECT(\"'\"&F1939&\"'!\"&G1939)),\"\",INDIRECT(\"'\"&F1939&\"'!\"&G1939))","v":""},{"$f":"IF(ISBLANK(INDIRECT(\"'\"&F1939&\"'!\"&H1939)),\"\",IFERROR(VLOOKUP(TEXT(INDIRECT(\"'\"&F1939&\"'!\"&H1939),\"0\"),Notes!$B$5:$C$100,2,FALSE),\"\"))","v":""},"2a","$O$94","$P$94"]
[13499,{"$f":"Menu!$F$29","v":"X"},{"$f":"Menu!$J$29","v":2020},{"$f":"IF(ISBLANK(INDIRECT(\"'\"&F1940&\"'!\"&G1940)),\"\",INDIRECT(\"'\"&F1940&\"'!\"&G1940))","v":""},{"$f":"IF(ISBLANK(INDIRECT(\"'\"&F1940&\"'!\"&H1940)),\"\",IFERROR(VLOOKUP(TEXT(INDIRECT(\"'\"&F1940&\"'!\"&H1940),\"0\"),Notes!$B$5:$C$100,2,FALSE),\"\"))","v":""},"2a","$Q$94","$R$94"]
[13500,{"$f":"Menu!$F$29","v":"X"},{"$f":"Menu!$J$29","v":2020},{"$f":"IF(ISBLANK(INDIRECT(\"'\"&F1941&\"'!\"&G1941)),\"\",INDIRECT(\"'\"&F1941&\"'!\"&G1941))","v":""},{"$f":"IF(ISBLANK(INDIRECT(\"'\"&F1941&\"'!\"&H1941)),\"\",IFERROR(VLOOKUP(TEXT(INDIRECT(\"'\"&F1941&\"'!\"&H1941),\"0\"),Notes!$B$5:$C$100,2,FALSE),\"\"))","v":""},"2a","$S$94","$T$94"]
[13501,{"$f":"Menu!$F$29","v":"X"},{"$f":"Menu!$J$29","v":2020},{"$f":"IF(ISBLANK(INDIRECT(\"'\"&F1942&\"'!\"&G1942)),\"\",INDIRECT(\"'\"&F1942&\"'!\"&G1942))","v":""},{"$f":"IF(ISBLANK(INDIRECT(\"'\"&F1942&\"'!\"&H1942)),\"\",IFERROR(VLOOKUP(TEXT(INDIRECT(\"'\"&F1942&\"'!\"&H1942),\"0\"),Notes!$B$5:$C$100,2,FALSE),\"\"))","v":""},"2a","$U$94","$V$94"]
[13502,{"$f":"Menu!$F$29","v":"X"},{"$f":"Menu!$J$29","v":2020},{"$f":"IF(ISBLANK(INDIRECT(\"'\"&F1943&\"'!\"&G1943)),\"\",INDIRECT(\"'\"&F1943&\"'!\"&G1943))","v":""},{"$f":"IF(ISBLANK(INDIRECT(\"'\"&F1943&\"'!\"&H1943)),\"\",IFERROR(VLOOKUP(TEXT(INDIRECT(\"'\"&F1943&\"'!\"&H1943),\"0\"),Notes!$B$5:$C$100,2,FALSE),\"\"))","v":""},"2a","$E$96","$F$96"]
[13503,{"$f":"Menu!$F$29","v":"X"},{"$f":"Menu!$J$29","v":2020},{"$f":"IF(ISBLANK(INDIRECT(\"'\"&F1944&\"'!\"&G1944)),\"\",INDIRECT(\"'\"&F1944&\"'!\"&G1944))","v":""},{"$f":"IF(ISBLANK(INDIRECT(\"'\"&F1944&\"'!\"&H1944)),\"\",IFERROR(VLOOKUP(TEXT(INDIRECT(\"'\"&F1944&\"'!\"&H1944),\"0\"),Notes!$B$5:$C$100,2,FALSE),\"\"))","v":""},"2a","$G$96","$H$96"]
[13504,{"$f":"Menu!$F$29","v":"X"},{"$f":"Menu!$J$29","v":2020},{"$f":"IF(ISBLANK(INDIRECT(\"'\"&F1945&\"'!\"&G1945)),\"\",INDIRECT(\"'\"&F1945&\"'!\"&G1945))","v":""},{"$f":"IF(ISBLANK(INDIRECT(\"'\"&F1945&\"'!\"&H1945)),\"\",IFERROR(VLOOKUP(TEXT(INDIRECT(\"'\"&F1945&\"'!\"&H1945),\"0\"),Notes!$B$5:$C$100,2,FALSE),\"\"))","v":""},"2a","$I$96","$J$96"]
[13505,{"$f":"Menu!$F$29","v":"X"},{"$f":"Menu!$J$29","v":2020},{"$f":"IF(ISBLANK(INDIRECT(\"'\"&F1946&\"'!\"&G1946)),\"\",INDIRECT(\"'\"&F1946&\"'!\"&G1946))","v":""},{"$f":"IF(ISBLANK(INDIRECT(\"'\"&F1946&\"'!\"&H1946)),\"\",IFERROR(VLOOKUP(TEXT(INDIRECT(\"'\"&F1946&\"'!\"&H1946),\"0\"),Notes!$B$5:$C$100,2,FALSE),\"\"))","v":""},"2a","$K$96","$L$96"]
[13506,{"$f":"Menu!$F$29","v":"X"},{"$f":"Menu!$J$29","v":2020},{"$f":"IF(ISBLANK(INDIRECT(\"'\"&F1947&\"'!\"&G1947)),\"\",INDIRECT(\"'\"&F1947&\"'!\"&G1947))","v":""},{"$f":"IF(ISBLANK(INDIRECT(\"'\"&F1947&\"'!\"&H1947)),\"\",IFERROR(VLOOKUP(TEXT(INDIRECT(\"'\"&F1947&\"'!\"&H1947),\"0\"),Notes!$B$5:$C$100,2,FALSE),\"\"))","v":""},"2a","$M$96","$N$96"]
[13507,{"$f":"Menu!$F$29","v":"X"},{"$f":"Menu!$J$29","v":2020},{"$f":"IF(ISBLANK(INDIRECT(\"'\"&F1948&\"'!\"&G1948)),\"\",INDIRECT(\"'\"&F1948&\"'!\"&G1948))","v":""},{"$f":"IF(ISBLANK(INDIRECT(\"'\"&F1948&\"'!\"&H1948)),\"\",IFERROR(VLOOKUP(TEXT(INDIRECT(\"'\"&F1948&\"'!\"&H1948),\"0\"),Notes!$B$5:$C$100,2,FALSE),\"\"))","v":""},"2a","$O$96","$P$96"]
[13508,{"$f":"Menu!$F$29","v":"X"},{"$f":"Menu!$J$29","v":2020},{"$f":"IF(ISBLANK(INDIRECT(\"'\"&F1949&\"'!\"&G1949)),\"\",INDIRECT(\"'\"&F1949&\"'!\"&G1949))","v":""},{"$f":"IF(ISBLANK(INDIRECT(\"'\"&F1949&\"'!\"&H1949)),\"\",IFERROR(VLOOKUP(TEXT(INDIRECT(\"'\"&F1949&\"'!\"&H1949),\"0\"),Notes!$B$5:$C$100,2,FALSE),\"\"))","v":""},"2a","$Q$96","$R$96"]
[13509,{"$f":"Menu!$F$29","v":"X"},{"$f":"Menu!$J$29","v":2020},{"$f":"IF(ISBLANK(INDIRECT(\"'\"&F1950&\"'!\"&G1950)),\"\",INDIRECT(\"'\"&F1950&\"'!\"&G1950))","v":""},{"$f":"IF(ISBLANK(INDIRECT(\"'\"&F1950&\"'!\"&H1950)),\"\",IFERROR(VLOOKUP(TEXT(INDIRECT(\"'\"&F1950&\"'!\"&H1950),\"0\"),Notes!$B$5:$C$100,2,FALSE),\"\"))","v":""},"2a","$S$96","$T$96"]
[13510,{"$f":"Menu!$F$29","v":"X"},{"$f":"Menu!$J$29","v":2020},{"$f":"IF(ISBLANK(INDIRECT(\"'\"&F1951&\"'!\"&G1951)),\"\",INDIRECT(\"'\"&F1951&\"'!\"&G1951))","v":""},{"$f":"IF(ISBLANK(INDIRECT(\"'\"&F1951&\"'!\"&H1951)),\"\",IFERROR(VLOOKUP(TEXT(INDIRECT(\"'\"&F1951&\"'!\"&H1951),\"0\"),Notes!$B$5:$C$100,2,FALSE),\"\"))","v":""},"2a","$U$96","$V$96"]
[13511,{"$f":"Menu!$F$29","v":"X"},{"$f":"Menu!$J$29","v":2020},{"$f":"IF(ISBLANK(INDIRECT(\"'\"&F1952&\"'!\"&G1952)),\"\",INDIRECT(\"'\"&F1952&\"'!\"&G1952))","v":""},{"$f":"IF(ISBLANK(INDIRECT(\"'\"&F1952&\"'!\"&H1952)),\"\",IFERROR(VLOOKUP(TEXT(INDIRECT(\"'\"&F1952&\"'!\"&H1952),\"0\"),Notes!$B$5:$C$100,2,FALSE),\"\"))","v":""},"2a","$E$89","$F$89"]
[13512,{"$f":"Menu!$F$29","v":"X"},{"$f":"Menu!$J$29","v":2020},{"$f":"IF(ISBLANK(INDIRECT(\"'\"&F1953&\"'!\"&G1953)),\"\",INDIRECT(\"'\"&F1953&\"'!\"&G1953))","v":""},{"$f":"IF(ISBLANK(INDIRECT(\"'\"&F1953&\"'!\"&H1953)),\"\",IFERROR(VLOOKUP(TEXT(INDIRECT(\"'\"&F1953&\"'!\"&H1953),\"0\"),Notes!$B$5:$C$100,2,FALSE),\"\"))","v":""},"2a","$G$89","$H$89"]
[13513,{"$f":"Menu!$F$29","v":"X"},{"$f":"Menu!$J$29","v":2020},{"$f":"IF(ISBLANK(INDIRECT(\"'\"&F1954&\"'!\"&G1954)),\"\",INDIRECT(\"'\"&F1954&\"'!\"&G1954))","v":""},{"$f":"IF(ISBLANK(INDIRECT(\"'\"&F1954&\"'!\"&H1954)),\"\",IFERROR(VLOOKUP(TEXT(INDIRECT(\"'\"&F1954&\"'!\"&H1954),\"0\"),Notes!$B$5:$C$100,2,FALSE),\"\"))","v":""},"2a","$I$89","$J$89"]
[13514,{"$f":"Menu!$F$29","v":"X"},{"$f":"Menu!$J$29","v":2020},{"$f":"IF(ISBLANK(INDIRECT(\"'\"&F1955&\"'!\"&G1955)),\"\",INDIRECT(\"'\"&F1955&\"'!\"&G1955))","v":""},{"$f":"IF(ISBLANK(INDIRECT(\"'\"&F1955&\"'!\"&H1955)),\"\",IFERROR(VLOOKUP(TEXT(INDIRECT(\"'\"&F1955&\"'!\"&H1955),\"0\"),Notes!$B$5:$C$100,2,FALSE),\"\"))","v":""},"2a","$K$89","$L$89"]
[13515,{"$f":"Menu!$F$29","v":"X"},{"$f":"Menu!$J$29","v":2020},{"$f":"IF(ISBLANK(INDIRECT(\"'\"&F1956&\"'!\"&G1956)),\"\",INDIRECT(\"'\"&F1956&\"'!\"&G1956))","v":""},{"$f":"IF(ISBLANK(INDIRECT(\"'\"&F1956&\"'!\"&H1956)),\"\",IFERROR(VLOOKUP(TEXT(INDIRECT(\"'\"&F1956&\"'!\"&H1956),\"0\"),Notes!$B$5:$C$100,2,FALSE),\"\"))","v":""},"2a","$M$89","$N$89"]
[13516,{"$f":"Menu!$F$29","v":"X"},{"$f":"Menu!$J$29","v":2020},{"$f":"IF(ISBLANK(INDIRECT(\"'\"&F1957&\"'!\"&G1957)),\"\",INDIRECT(\"'\"&F1957&\"'!\"&G1957))","v":""},{"$f":"IF(ISBLANK(INDIRECT(\"'\"&F1957&\"'!\"&H1957)),\"\",IFERROR(VLOOKUP(TEXT(INDIRECT(\"'\"&F1957&\"'!\"&H1957),\"0\"),Notes!$B$5:$C$100,2,FALSE),\"\"))","v":""},"2a","$O$89","$P$89"]
[13517,{"$f":"Menu!$F$29","v":"X"},{"$f":"Menu!$J$29","v":2020},{"$f":"IF(ISBLANK(INDIRECT(\"'\"&F1958&\"'!\"&G1958)),\"\",INDIRECT(\"'\"&F1958&\"'!\"&G1958))","v":""},{"$f":"IF(ISBLANK(INDIRECT(\"'\"&F1958&\"'!\"&H1958)),\"\",IFERROR(VLOOKUP(TEXT(INDIRECT(\"'\"&F1958&\"'!\"&H1958),\"0\"),Notes!$B$5:$C$100,2,FALSE),\"\"))","v":""},"2a","$Q$89","$R$89"]
[13518,{"$f":"Menu!$F$29","v":"X"},{"$f":"Menu!$J$29","v":2020},{"$f":"IF(ISBLANK(INDIRECT(\"'\"&F1959&\"'!\"&G1959)),\"\",INDIRECT(\"'\"&F1959&\"'!\"&G1959))","v":""},{"$f":"IF(ISBLANK(INDIRECT(\"'\"&F1959&\"'!\"&H1959)),\"\",IFERROR(VLOOKUP(TEXT(INDIRECT(\"'\"&F1959&\"'!\"&H1959),\"0\"),Notes!$B$5:$C$100,2,FALSE),\"\"))","v":""},"2a","$S$89","$T$89"]
[13519,{"$f":"Menu!$F$29","v":"X"},{"$f":"Menu!$J$29","v":2020},{"$f":"IF(ISBLANK(INDIRECT(\"'\"&F1960&\"'!\"&G1960)),\"\",INDIRECT(\"'\"&F1960&\"'!\"&G1960))","v":""},{"$f":"IF(ISBLANK(INDIRECT(\"'\"&F1960&\"'!\"&H1960)),\"\",IFERROR(VLOOKUP(TEXT(INDIRECT(\"'\"&F1960&\"'!\"&H1960),\"0\"),Notes!$B$5:$C$100,2,FALSE),\"\"))","v":""},"2a","$U$89","$V$89"]
[13520,{"$f":"Menu!$F$29","v":"X"},{"$f":"Menu!$J$29","v":2020},{"$f":"IF(ISBLANK(INDIRECT(\"'\"&F1961&\"'!\"&G1961)),\"\",INDIRECT(\"'\"&F1961&\"'!\"&G1961))","v":""},{"$f":"IF(ISBLANK(INDIRECT(\"'\"&F1961&\"'!\"&H1961)),\"\",IFERROR(VLOOKUP(TEXT(INDIRECT(\"'\"&F1961&\"'!\"&H1961),\"0\"),Notes!$B$5:$C$100,2,FALSE),\"\"))","v":""},"2a","$E$54","$F$54"]
[13521,{"$f":"Menu!$F$29","v":"X"},{"$f":"Menu!$J$29","v":2020},{"$f":"IF(ISBLANK(INDIRECT(\"'\"&F1962&\"'!\"&G1962)),\"\",INDIRECT(\"'\"&F1962&\"'!\"&G1962))","v":""},{"$f":"IF(ISBLANK(INDIRECT(\"'\"&F1962&\"'!\"&H1962)),\"\",IFERROR(VLOOKUP(TEXT(INDIRECT(\"'\"&F1962&\"'!\"&H1962),\"0\"),Notes!$B$5:$C$100,2,FALSE),\"\"))","v":""},"2a","$G$54","$H$54"]
[13522,{"$f":"Menu!$F$29","v":"X"},{"$f":"Menu!$J$29","v":2020},{"$f":"IF(ISBLANK(INDIRECT(\"'\"&F1963&\"'!\"&G1963)),\"\",INDIRECT(\"'\"&F1963&\"'!\"&G1963))","v":""},{"$f":"IF(ISBLANK(INDIRECT(\"'\"&F1963&\"'!\"&H1963)),\"\",IFERROR(VLOOKUP(TEXT(INDIRECT(\"'\"&F1963&\"'!\"&H1963),\"0\"),Notes!$B$5:$C$100,2,FALSE),\"\"))","v":""},"2a","$I$54","$J$54"]
[13523,{"$f":"Menu!$F$29","v":"X"},{"$f":"Menu!$J$29","v":2020},{"$f":"IF(ISBLANK(INDIRECT(\"'\"&F1964&\"'!\"&G1964)),\"\",INDIRECT(\"'\"&F1964&\"'!\"&G1964))","v":""},{"$f":"IF(ISBLANK(INDIRECT(\"'\"&F1964&\"'!\"&H1964)),\"\",IFERROR(VLOOKUP(TEXT(INDIRECT(\"'\"&F1964&\"'!\"&H1964),\"0\"),Notes!$B$5:$C$100,2,FALSE),\"\"))","v":""},"2a","$K$54","$L$54"]
[13524,{"$f":"Menu!$F$29","v":"X"},{"$f":"Menu!$J$29","v":2020},{"$f":"IF(ISBLANK(INDIRECT(\"'\"&F1965&\"'!\"&G1965)),\"\",INDIRECT(\"'\"&F1965&\"'!\"&G1965))","v":""},{"$f":"IF(ISBLANK(INDIRECT(\"'\"&F1965&\"'!\"&H1965)),\"\",IFERROR(VLOOKUP(TEXT(INDIRECT(\"'\"&F1965&\"'!\"&H1965),\"0\"),Notes!$B$5:$C$100,2,FALSE),\"\"))","v":""},"2a","$M$54","$N$54"]
[13525,{"$f":"Menu!$F$29","v":"X"},{"$f":"Menu!$J$29","v":2020},{"$f":"IF(ISBLANK(INDIRECT(\"'\"&F1966&\"'!\"&G1966)),\"\",INDIRECT(\"'\"&F1966&\"'!\"&G1966))","v":""},{"$f":"IF(ISBLANK(INDIRECT(\"'\"&F1966&\"'!\"&H1966)),\"\",IFERROR(VLOOKUP(TEXT(INDIRECT(\"'\"&F1966&\"'!\"&H1966),\"0\"),Notes!$B$5:$C$100,2,FALSE),\"\"))","v":""},"2a","$O$54","$P$54"]
[13526,{"$f":"Menu!$F$29","v":"X"},{"$f":"Menu!$J$29","v":2020},{"$f":"IF(ISBLANK(INDIRECT(\"'\"&F1967&\"'!\"&G1967)),\"\",INDIRECT(\"'\"&F1967&\"'!\"&G1967))","v":""},{"$f":"IF(ISBLANK(INDIRECT(\"'\"&F1967&\"'!\"&H1967)),\"\",IFERROR(VLOOKUP(TEXT(INDIRECT(\"'\"&F1967&\"'!\"&H1967),\"0\"),Notes!$B$5:$C$100,2,FALSE),\"\"))","v":""},"2a","$Q$54","$R$54"]
[13527,{"$f":"Menu!$F$29","v":"X"},{"$f":"Menu!$J$29","v":2020},{"$f":"IF(ISBLANK(INDIRECT(\"'\"&F1968&\"'!\"&G1968)),\"\",INDIRECT(\"'\"&F1968&\"'!\"&G1968))","v":""},{"$f":"IF(ISBLANK(INDIRECT(\"'\"&F1968&\"'!\"&H1968)),\"\",IFERROR(VLOOKUP(TEXT(INDIRECT(\"'\"&F1968&\"'!\"&H1968),\"0\"),Notes!$B$5:$C$100,2,FALSE),\"\"))","v":""},"2a","$S$54","$T$54"]
[13528,{"$f":"Menu!$F$29","v":"X"},{"$f":"Menu!$J$29","v":2020},{"$f":"IF(ISBLANK(INDIRECT(\"'\"&F1969&\"'!\"&G1969)),\"\",INDIRECT(\"'\"&F1969&\"'!\"&G1969))","v":""},{"$f":"IF(ISBLANK(INDIRECT(\"'\"&F1969&\"'!\"&H1969)),\"\",IFERROR(VLOOKUP(TEXT(INDIRECT(\"'\"&F1969&\"'!\"&H1969),\"0\"),Notes!$B$5:$C$100,2,FALSE),\"\"))","v":""},"2a","$U$54","$V$54"]
[13538,{"$f":"Menu!$F$29","v":"X"},{"$f":"Menu!$J$29","v":2020},{"$f":"IF(ISBLANK(INDIRECT(\"'\"&F1970&\"'!\"&G1970)),\"\",INDIRECT(\"'\"&F1970&\"'!\"&G1970))","v":""},{"$f":"IF(ISBLANK(INDIRECT(\"'\"&F1970&\"'!\"&H1970)),\"\",IFERROR(VLOOKUP(TEXT(INDIRECT(\"'\"&F1970&\"'!\"&H1970),\"0\"),Notes!$B$5:$C$100,2,FALSE),\"\"))","v":""},"2a","$E$101","$F$101"]
[13539,{"$f":"Menu!$F$29","v":"X"},{"$f":"Menu!$J$29","v":2020},{"$f":"IF(ISBLANK(INDIRECT(\"'\"&F1971&\"'!\"&G1971)),\"\",INDIRECT(\"'\"&F1971&\"'!\"&G1971))","v":""},{"$f":"IF(ISBLANK(INDIRECT(\"'\"&F1971&\"'!\"&H1971)),\"\",IFERROR(VLOOKUP(TEXT(INDIRECT(\"'\"&F1971&\"'!\"&H1971),\"0\"),Notes!$B$5:$C$100,2,FALSE),\"\"))","v":""},"2a","$G$101","$H$101"]
[13540,{"$f":"Menu!$F$29","v":"X"},{"$f":"Menu!$J$29","v":2020},{"$f":"IF(ISBLANK(INDIRECT(\"'\"&F1972&\"'!\"&G1972)),\"\",INDIRECT(\"'\"&F1972&\"'!\"&G1972))","v":""},{"$f":"IF(ISBLANK(INDIRECT(\"'\"&F1972&\"'!\"&H1972)),\"\",IFERROR(VLOOKUP(TEXT(INDIRECT(\"'\"&F1972&\"'!\"&H1972),\"0\"),Notes!$B$5:$C$100,2,FALSE),\"\"))","v":""},"2a","$I$101","$J$101"]
[13541,{"$f":"Menu!$F$29","v":"X"},{"$f":"Menu!$J$29","v":2020},{"$f":"IF(ISBLANK(INDIRECT(\"'\"&F1973&\"'!\"&G1973)),\"\",INDIRECT(\"'\"&F1973&\"'!\"&G1973))","v":""},{"$f":"IF(ISBLANK(INDIRECT(\"'\"&F1973&\"'!\"&H1973)),\"\",IFERROR(VLOOKUP(TEXT(INDIRECT(\"'\"&F1973&\"'!\"&H1973),\"0\"),Notes!$B$5:$C$100,2,FALSE),\"\"))","v":""},"2a","$K$101","$L$101"]
[13542,{"$f":"Menu!$F$29","v":"X"},{"$f":"Menu!$J$29","v":2020},{"$f":"IF(ISBLANK(INDIRECT(\"'\"&F1974&\"'!\"&G1974)),\"\",INDIRECT(\"'\"&F1974&\"'!\"&G1974))","v":""},{"$f":"IF(ISBLANK(INDIRECT(\"'\"&F1974&\"'!\"&H1974)),\"\",IFERROR(VLOOKUP(TEXT(INDIRECT(\"'\"&F1974&\"'!\"&H1974),\"0\"),Notes!$B$5:$C$100,2,FALSE),\"\"))","v":""},"2a","$M$101","$N$101"]
[13543,{"$f":"Menu!$F$29","v":"X"},{"$f":"Menu!$J$29","v":2020},{"$f":"IF(ISBLANK(INDIRECT(\"'\"&F1975&\"'!\"&G1975)),\"\",INDIRECT(\"'\"&F1975&\"'!\"&G1975))","v":""},{"$f":"IF(ISBLANK(INDIRECT(\"'\"&F1975&\"'!\"&H1975)),\"\",IFERROR(VLOOKUP(TEXT(INDIRECT(\"'\"&F1975&\"'!\"&H1975),\"0\"),Notes!$B$5:$C$100,2,FALSE),\"\"))","v":""},"2a","$O$101","$P$101"]
[13544,{"$f":"Menu!$F$29","v":"X"},{"$f":"Menu!$J$29","v":2020},{"$f":"IF(ISBLANK(INDIRECT(\"'\"&F1976&\"'!\"&G1976)),\"\",INDIRECT(\"'\"&F1976&\"'!\"&G1976))","v":""},{"$f":"IF(ISBLANK(INDIRECT(\"'\"&F1976&\"'!\"&H1976)),\"\",IFERROR(VLOOKUP(TEXT(INDIRECT(\"'\"&F1976&\"'!\"&H1976),\"0\"),Notes!$B$5:$C$100,2,FALSE),\"\"))","v":""},"2a","$Q$101","$R$101"]
[13545,{"$f":"Menu!$F$29","v":"X"},{"$f":"Menu!$J$29","v":2020},{"$f":"IF(ISBLANK(INDIRECT(\"'\"&F1977&\"'!\"&G1977)),\"\",INDIRECT(\"'\"&F1977&\"'!\"&G1977))","v":""},{"$f":"IF(ISBLANK(INDIRECT(\"'\"&F1977&\"'!\"&H1977)),\"\",IFERROR(VLOOKUP(TEXT(INDIRECT(\"'\"&F1977&\"'!\"&H1977),\"0\"),Notes!$B$5:$C$100,2,FALSE),\"\"))","v":""},"2a","$S$101","$T$101"]
[13546,{"$f":"Menu!$F$29","v":"X"},{"$f":"Menu!$J$29","v":2020},{"$f":"IF(ISBLANK(INDIRECT(\"'\"&F1978&\"'!\"&G1978)),\"\",INDIRECT(\"'\"&F1978&\"'!\"&G1978))","v":""},{"$f":"IF(ISBLANK(INDIRECT(\"'\"&F1978&\"'!\"&H1978)),\"\",IFERROR(VLOOKUP(TEXT(INDIRECT(\"'\"&F1978&\"'!\"&H1978),\"0\"),Notes!$B$5:$C$100,2,FALSE),\"\"))","v":""},"2a","$U$101","$V$101"]
[13547,{"$f":"Menu!$F$29","v":"X"},{"$f":"Menu!$J$29","v":2020},{"$f":"IF(ISBLANK(INDIRECT(\"'\"&F1979&\"'!\"&G1979)),\"\",INDIRECT(\"'\"&F1979&\"'!\"&G1979))","v":""},{"$f":"IF(ISBLANK(INDIRECT(\"'\"&F1979&\"'!\"&H1979)),\"\",IFERROR(VLOOKUP(TEXT(INDIRECT(\"'\"&F1979&\"'!\"&H1979),\"0\"),Notes!$B$5:$C$100,2,FALSE),\"\"))","v":""},"2a","$E$102","$F$102"]
[13548,{"$f":"Menu!$F$29","v":"X"},{"$f":"Menu!$J$29","v":2020},{"$f":"IF(ISBLANK(INDIRECT(\"'\"&F1980&\"'!\"&G1980)),\"\",INDIRECT(\"'\"&F1980&\"'!\"&G1980))","v":""},{"$f":"IF(ISBLANK(INDIRECT(\"'\"&F1980&\"'!\"&H1980)),\"\",IFERROR(VLOOKUP(TEXT(INDIRECT(\"'\"&F1980&\"'!\"&H1980),\"0\"),Notes!$B$5:$C$100,2,FALSE),\"\"))","v":""},"2a","$G$102","$H$102"]
[13549,{"$f":"Menu!$F$29","v":"X"},{"$f":"Menu!$J$29","v":2020},{"$f":"IF(ISBLANK(INDIRECT(\"'\"&F1981&\"'!\"&G1981)),\"\",INDIRECT(\"'\"&F1981&\"'!\"&G1981))","v":""},{"$f":"IF(ISBLANK(INDIRECT(\"'\"&F1981&\"'!\"&H1981)),\"\",IFERROR(VLOOKUP(TEXT(INDIRECT(\"'\"&F1981&\"'!\"&H1981),\"0\"),Notes!$B$5:$C$100,2,FALSE),\"\"))","v":""},"2a","$I$102","$J$102"]
[13550,{"$f":"Menu!$F$29","v":"X"},{"$f":"Menu!$J$29","v":2020},{"$f":"IF(ISBLANK(INDIRECT(\"'\"&F1982&\"'!\"&G1982)),\"\",INDIRECT(\"'\"&F1982&\"'!\"&G1982))","v":""},{"$f":"IF(ISBLANK(INDIRECT(\"'\"&F1982&\"'!\"&H1982)),\"\",IFERROR(VLOOKUP(TEXT(INDIRECT(\"'\"&F1982&\"'!\"&H1982),\"0\"),Notes!$B$5:$C$100,2,FALSE),\"\"))","v":""},"2a","$K$102","$L$102"]
[13551,{"$f":"Menu!$F$29","v":"X"},{"$f":"Menu!$J$29","v":2020},{"$f":"IF(ISBLANK(INDIRECT(\"'\"&F1983&\"'!\"&G1983)),\"\",INDIRECT(\"'\"&F1983&\"'!\"&G1983))","v":""},{"$f":"IF(ISBLANK(INDIRECT(\"'\"&F1983&\"'!\"&H1983)),\"\",IFERROR(VLOOKUP(TEXT(INDIRECT(\"'\"&F1983&\"'!\"&H1983),\"0\"),Notes!$B$5:$C$100,2,FALSE),\"\"))","v":""},"2a","$M$102","$N$102"]
[13552,{"$f":"Menu!$F$29","v":"X"},{"$f":"Menu!$J$29","v":2020},{"$f":"IF(ISBLANK(INDIRECT(\"'\"&F1984&\"'!\"&G1984)),\"\",INDIRECT(\"'\"&F1984&\"'!\"&G1984))","v":""},{"$f":"IF(ISBLANK(INDIRECT(\"'\"&F1984&\"'!\"&H1984)),\"\",IFERROR(VLOOKUP(TEXT(INDIRECT(\"'\"&F1984&\"'!\"&H1984),\"0\"),Notes!$B$5:$C$100,2,FALSE),\"\"))","v":""},"2a","$O$102","$P$102"]
[13553,{"$f":"Menu!$F$29","v":"X"},{"$f":"Menu!$J$29","v":2020},{"$f":"IF(ISBLANK(INDIRECT(\"'\"&F1985&\"'!\"&G1985)),\"\",INDIRECT(\"'\"&F1985&\"'!\"&G1985))","v":""},{"$f":"IF(ISBLANK(INDIRECT(\"'\"&F1985&\"'!\"&H1985)),\"\",IFERROR(VLOOKUP(TEXT(INDIRECT(\"'\"&F1985&\"'!\"&H1985),\"0\"),Notes!$B$5:$C$100,2,FALSE),\"\"))","v":""},"2a","$Q$102","$R$102"]
[13554,{"$f":"Menu!$F$29","v":"X"},{"$f":"Menu!$J$29","v":2020},{"$f":"IF(ISBLANK(INDIRECT(\"'\"&F1986&\"'!\"&G1986)),\"\",INDIRECT(\"'\"&F1986&\"'!\"&G1986))","v":""},{"$f":"IF(ISBLANK(INDIRECT(\"'\"&F1986&\"'!\"&H1986)),\"\",IFERROR(VLOOKUP(TEXT(INDIRECT(\"'\"&F1986&\"'!\"&H1986),\"0\"),Notes!$B$5:$C$100,2,FALSE),\"\"))","v":""},"2a","$S$102",{"$f":"IF(LEN(TRIM(MID(G1986,4,10)))-LEN(SUBSTITUTE(TRIM(MID(G1986,4,10)),\"$\",\"\"))=0,\"$\"&CHAR(CODE(MID(G1986,2,1))+1)&\"$\"&TRIM(MID(G1986,4,10)),\"$\"&MID(G1986,2,1)&CHAR(CODE(MID(G1986,3,1))+1)&\"$\"&TRIM(MID(G1986,5,11)))","v":"$T$102"}]
[13555,{"$f":"Menu!$F$29","v":"X"},{"$f":"Menu!$J$29","v":2020},{"$f":"IF(ISBLANK(INDIRECT(\"'\"&F1987&\"'!\"&G1987)),\"\",INDIRECT(\"'\"&F1987&\"'!\"&G1987))","v":""},{"$f":"IF(ISBLANK(INDIRECT(\"'\"&F1987&\"'!\"&H1987)),\"\",IFERROR(VLOOKUP(TEXT(INDIRECT(\"'\"&F1987&\"'!\"&H1987),\"0\"),Notes!$B$5:$C$100,2,FALSE),\"\"))","v":""},"2a","$U$102","$V$102"]
[13556,{"$f":"Menu!$F$29","v":"X"},{"$f":"Menu!$J$29","v":2020},{"$f":"IF(ISBLANK(INDIRECT(\"'\"&F1988&\"'!\"&G1988)),\"\",INDIRECT(\"'\"&F1988&\"'!\"&G1988))","v":""},{"$f":"IF(ISBLANK(INDIRECT(\"'\"&F1988&\"'!\"&H1988)),\"\",IFERROR(VLOOKUP(TEXT(INDIRECT(\"'\"&F1988&\"'!\"&H1988),\"0\"),Notes!$B$5:$C$100,2,FALSE),\"\"))","v":""},"2a","$E$103","$F$103"]
[13557,{"$f":"Menu!$F$29","v":"X"},{"$f":"Menu!$J$29","v":2020},{"$f":"IF(ISBLANK(INDIRECT(\"'\"&F1989&\"'!\"&G1989)),\"\",INDIRECT(\"'\"&F1989&\"'!\"&G1989))","v":""},{"$f":"IF(ISBLANK(INDIRECT(\"'\"&F1989&\"'!\"&H1989)),\"\",IFERROR(VLOOKUP(TEXT(INDIRECT(\"'\"&F1989&\"'!\"&H1989),\"0\"),Notes!$B$5:$C$100,2,FALSE),\"\"))","v":""},"2a","$G$103","$H$103"]
[13558,{"$f":"Menu!$F$29","v":"X"},{"$f":"Menu!$J$29","v":2020},{"$f":"IF(ISBLANK(INDIRECT(\"'\"&F1990&\"'!\"&G1990)),\"\",INDIRECT(\"'\"&F1990&\"'!\"&G1990))","v":""},{"$f":"IF(ISBLANK(INDIRECT(\"'\"&F1990&\"'!\"&H1990)),\"\",IFERROR(VLOOKUP(TEXT(INDIRECT(\"'\"&F1990&\"'!\"&H1990),\"0\"),Notes!$B$5:$C$100,2,FALSE),\"\"))","v":""},"2a","$I$103","$J$103"]
[13559,{"$f":"Menu!$F$29","v":"X"},{"$f":"Menu!$J$29","v":2020},{"$f":"IF(ISBLANK(INDIRECT(\"'\"&F1991&\"'!\"&G1991)),\"\",INDIRECT(\"'\"&F1991&\"'!\"&G1991))","v":""},{"$f":"IF(ISBLANK(INDIRECT(\"'\"&F1991&\"'!\"&H1991)),\"\",IFERROR(VLOOKUP(TEXT(INDIRECT(\"'\"&F1991&\"'!\"&H1991),\"0\"),Notes!$B$5:$C$100,2,FALSE),\"\"))","v":""},"2a","$K$103","$L$103"]
[13560,{"$f":"Menu!$F$29","v":"X"},{"$f":"Menu!$J$29","v":2020},{"$f":"IF(ISBLANK(INDIRECT(\"'\"&F1992&\"'!\"&G1992)),\"\",INDIRECT(\"'\"&F1992&\"'!\"&G1992))","v":""},{"$f":"IF(ISBLANK(INDIRECT(\"'\"&F1992&\"'!\"&H1992)),\"\",IFERROR(VLOOKUP(TEXT(INDIRECT(\"'\"&F1992&\"'!\"&H1992),\"0\"),Notes!$B$5:$C$100,2,FALSE),\"\"))","v":""},"2a","$M$103","$N$103"]
[13561,{"$f":"Menu!$F$29","v":"X"},{"$f":"Menu!$J$29","v":2020},{"$f":"IF(ISBLANK(INDIRECT(\"'\"&F1993&\"'!\"&G1993)),\"\",INDIRECT(\"'\"&F1993&\"'!\"&G1993))","v":""},{"$f":"IF(ISBLANK(INDIRECT(\"'\"&F1993&\"'!\"&H1993)),\"\",IFERROR(VLOOKUP(TEXT(INDIRECT(\"'\"&F1993&\"'!\"&H1993),\"0\"),Notes!$B$5:$C$100,2,FALSE),\"\"))","v":""},"2a","$O$103","$P$103"]
[13562,{"$f":"Menu!$F$29","v":"X"},{"$f":"Menu!$J$29","v":2020},{"$f":"IF(ISBLANK(INDIRECT(\"'\"&F1994&\"'!\"&G1994)),\"\",INDIRECT(\"'\"&F1994&\"'!\"&G1994))","v":""},{"$f":"IF(ISBLANK(INDIRECT(\"'\"&F1994&\"'!\"&H1994)),\"\",IFERROR(VLOOKUP(TEXT(INDIRECT(\"'\"&F1994&\"'!\"&H1994),\"0\"),Notes!$B$5:$C$100,2,FALSE),\"\"))","v":""},"2a","$Q$103","$R$103"]
[13563,{"$f":"Menu!$F$29","v":"X"},{"$f":"Menu!$J$29","v":2020},{"$f":"IF(ISBLANK(INDIRECT(\"'\"&F1995&\"'!\"&G1995)),\"\",INDIRECT(\"'\"&F1995&\"'!\"&G1995))","v":""},{"$f":"IF(ISBLANK(INDIRECT(\"'\"&F1995&\"'!\"&H1995)),\"\",IFERROR(VLOOKUP(TEXT(INDIRECT(\"'\"&F1995&\"'!\"&H1995),\"0\"),Notes!$B$5:$C$100,2,FALSE),\"\"))","v":""},"2a","$S$103","$T$103"]
[13564,{"$f":"Menu!$F$29","v":"X"},{"$f":"Menu!$J$29","v":2020},{"$f":"IF(ISBLANK(INDIRECT(\"'\"&F1996&\"'!\"&G1996)),\"\",INDIRECT(\"'\"&F1996&\"'!\"&G1996))","v":""},{"$f":"IF(ISBLANK(INDIRECT(\"'\"&F1996&\"'!\"&H1996)),\"\",IFERROR(VLOOKUP(TEXT(INDIRECT(\"'\"&F1996&\"'!\"&H1996),\"0\"),Notes!$B$5:$C$100,2,FALSE),\"\"))","v":""},"2a","$U$103","$V$103"]
[13574,{"$f":"Menu!$F$29","v":"X"},{"$f":"Menu!$J$29","v":2020},{"$f":"IF(ISBLANK(INDIRECT(\"'\"&F1997&\"'!\"&G1997)),\"\",INDIRECT(\"'\"&F1997&\"'!\"&G1997))","v":""},{"$f":"IF(ISBLANK(INDIRECT(\"'\"&F1997&\"'!\"&H1997)),\"\",IFERROR(VLOOKUP(TEXT(INDIRECT(\"'\"&F1997&\"'!\"&H1997),\"0\"),Notes!$B$5:$C$100,2,FALSE),\"\"))","v":""},"2a","$E$98","$F$98"]
[13575,{"$f":"Menu!$F$29","v":"X"},{"$f":"Menu!$J$29","v":2020},{"$f":"IF(ISBLANK(INDIRECT(\"'\"&F1998&\"'!\"&G1998)),\"\",INDIRECT(\"'\"&F1998&\"'!\"&G1998))","v":""},{"$f":"IF(ISBLANK(INDIRECT(\"'\"&F1998&\"'!\"&H1998)),\"\",IFERROR(VLOOKUP(TEXT(INDIRECT(\"'\"&F1998&\"'!\"&H1998),\"0\"),Notes!$B$5:$C$100,2,FALSE),\"\"))","v":""},"2a","$G$98","$H$98"]
[13576,{"$f":"Menu!$F$29","v":"X"},{"$f":"Menu!$J$29","v":2020},{"$f":"IF(ISBLANK(INDIRECT(\"'\"&F1999&\"'!\"&G1999)),\"\",INDIRECT(\"'\"&F1999&\"'!\"&G1999))","v":""},{"$f":"IF(ISBLANK(INDIRECT(\"'\"&F1999&\"'!\"&H1999)),\"\",IFERROR(VLOOKUP(TEXT(INDIRECT(\"'\"&F1999&\"'!\"&H1999),\"0\"),Notes!$B$5:$C$100,2,FALSE),\"\"))","v":""},"2a","$I$98","$J$98"]
[13577,{"$f":"Menu!$F$29","v":"X"},{"$f":"Menu!$J$29","v":2020},{"$f":"IF(ISBLANK(INDIRECT(\"'\"&F2000&\"'!\"&G2000)),\"\",INDIRECT(\"'\"&F2000&\"'!\"&G2000))","v":""},{"$f":"IF(ISBLANK(INDIRECT(\"'\"&F2000&\"'!\"&H2000)),\"\",IFERROR(VLOOKUP(TEXT(INDIRECT(\"'\"&F2000&\"'!\"&H2000),\"0\"),Notes!$B$5:$C$100,2,FALSE),\"\"))","v":""},"2a","$K$98","$L$98"]
[13578,{"$f":"Menu!$F$29","v":"X"},{"$f":"Menu!$J$29","v":2020},{"$f":"IF(ISBLANK(INDIRECT(\"'\"&F2001&\"'!\"&G2001)),\"\",INDIRECT(\"'\"&F2001&\"'!\"&G2001))","v":""},{"$f":"IF(ISBLANK(INDIRECT(\"'\"&F2001&\"'!\"&H2001)),\"\",IFERROR(VLOOKUP(TEXT(INDIRECT(\"'\"&F2001&\"'!\"&H2001),\"0\"),Notes!$B$5:$C$100,2,FALSE),\"\"))","v":""},"2a","$M$98","$N$98"]
[13579,{"$f":"Menu!$F$29","v":"X"},{"$f":"Menu!$J$29","v":2020},{"$f":"IF(ISBLANK(INDIRECT(\"'\"&F2002&\"'!\"&G2002)),\"\",INDIRECT(\"'\"&F2002&\"'!\"&G2002))","v":""},{"$f":"IF(ISBLANK(INDIRECT(\"'\"&F2002&\"'!\"&H2002)),\"\",IFERROR(VLOOKUP(TEXT(INDIRECT(\"'\"&F2002&\"'!\"&H2002),\"0\"),Notes!$B$5:$C$100,2,FALSE),\"\"))","v":""},"2a","$O$98","$P$98"]
[13580,{"$f":"Menu!$F$29","v":"X"},{"$f":"Menu!$J$29","v":2020},{"$f":"IF(ISBLANK(INDIRECT(\"'\"&F2003&\"'!\"&G2003)),\"\",INDIRECT(\"'\"&F2003&\"'!\"&G2003))","v":""},{"$f":"IF(ISBLANK(INDIRECT(\"'\"&F2003&\"'!\"&H2003)),\"\",IFERROR(VLOOKUP(TEXT(INDIRECT(\"'\"&F2003&\"'!\"&H2003),\"0\"),Notes!$B$5:$C$100,2,FALSE),\"\"))","v":""},"2a","$Q$98","$R$98"]
[13581,{"$f":"Menu!$F$29","v":"X"},{"$f":"Menu!$J$29","v":2020},{"$f":"IF(ISBLANK(INDIRECT(\"'\"&F2004&\"'!\"&G2004)),\"\",INDIRECT(\"'\"&F2004&\"'!\"&G2004))","v":""},{"$f":"IF(ISBLANK(INDIRECT(\"'\"&F2004&\"'!\"&H2004)),\"\",IFERROR(VLOOKUP(TEXT(INDIRECT(\"'\"&F2004&\"'!\"&H2004),\"0\"),Notes!$B$5:$C$100,2,FALSE),\"\"))","v":""},"2a","$S$98","$T$98"]
[13582,{"$f":"Menu!$F$29","v":"X"},{"$f":"Menu!$J$29","v":2020},{"$f":"IF(ISBLANK(INDIRECT(\"'\"&F2005&\"'!\"&G2005)),\"\",INDIRECT(\"'\"&F2005&\"'!\"&G2005))","v":""},{"$f":"IF(ISBLANK(INDIRECT(\"'\"&F2005&\"'!\"&H2005)),\"\",IFERROR(VLOOKUP(TEXT(INDIRECT(\"'\"&F2005&\"'!\"&H2005),\"0\"),Notes!$B$5:$C$100,2,FALSE),\"\"))","v":""},"2a","$U$98","$V$98"]
[13583,{"$f":"Menu!$F$29","v":"X"},{"$f":"Menu!$J$29","v":2020},{"$f":"IF(ISBLANK(INDIRECT(\"'\"&F2006&\"'!\"&G2006)),\"\",INDIRECT(\"'\"&F2006&\"'!\"&G2006))","v":""},{"$f":"IF(ISBLANK(INDIRECT(\"'\"&F2006&\"'!\"&H2006)),\"\",IFERROR(VLOOKUP(TEXT(INDIRECT(\"'\"&F2006&\"'!\"&H2006),\"0\"),Notes!$B$5:$C$100,2,FALSE),\"\"))","v":""},"2a","$E$99","$F$99"]
[13584,{"$f":"Menu!$F$29","v":"X"},{"$f":"Menu!$J$29","v":2020},{"$f":"IF(ISBLANK(INDIRECT(\"'\"&F2007&\"'!\"&G2007)),\"\",INDIRECT(\"'\"&F2007&\"'!\"&G2007))","v":""},{"$f":"IF(ISBLANK(INDIRECT(\"'\"&F2007&\"'!\"&H2007)),\"\",IFERROR(VLOOKUP(TEXT(INDIRECT(\"'\"&F2007&\"'!\"&H2007),\"0\"),Notes!$B$5:$C$100,2,FALSE),\"\"))","v":""},"2a","$G$99","$H$99"]
[13585,{"$f":"Menu!$F$29","v":"X"},{"$f":"Menu!$J$29","v":2020},{"$f":"IF(ISBLANK(INDIRECT(\"'\"&F2008&\"'!\"&G2008)),\"\",INDIRECT(\"'\"&F2008&\"'!\"&G2008))","v":""},{"$f":"IF(ISBLANK(INDIRECT(\"'\"&F2008&\"'!\"&H2008)),\"\",IFERROR(VLOOKUP(TEXT(INDIRECT(\"'\"&F2008&\"'!\"&H2008),\"0\"),Notes!$B$5:$C$100,2,FALSE),\"\"))","v":""},"2a","$I$99","$J$99"]
[13586,{"$f":"Menu!$F$29","v":"X"},{"$f":"Menu!$J$29","v":2020},{"$f":"IF(ISBLANK(INDIRECT(\"'\"&F2009&\"'!\"&G2009)),\"\",INDIRECT(\"'\"&F2009&\"'!\"&G2009))","v":""},{"$f":"IF(ISBLANK(INDIRECT(\"'\"&F2009&\"'!\"&H2009)),\"\",IFERROR(VLOOKUP(TEXT(INDIRECT(\"'\"&F2009&\"'!\"&H2009),\"0\"),Notes!$B$5:$C$100,2,FALSE),\"\"))","v":""},"2a","$K$99","$L$99"]
[13587,{"$f":"Menu!$F$29","v":"X"},{"$f":"Menu!$J$29","v":2020},{"$f":"IF(ISBLANK(INDIRECT(\"'\"&F2010&\"'!\"&G2010)),\"\",INDIRECT(\"'\"&F2010&\"'!\"&G2010))","v":""},{"$f":"IF(ISBLANK(INDIRECT(\"'\"&F2010&\"'!\"&H2010)),\"\",IFERROR(VLOOKUP(TEXT(INDIRECT(\"'\"&F2010&\"'!\"&H2010),\"0\"),Notes!$B$5:$C$100,2,FALSE),\"\"))","v":""},"2a","$M$99","$N$99"]
[13588,{"$f":"Menu!$F$29","v":"X"},{"$f":"Menu!$J$29","v":2020},{"$f":"IF(ISBLANK(INDIRECT(\"'\"&F2011&\"'!\"&G2011)),\"\",INDIRECT(\"'\"&F2011&\"'!\"&G2011))","v":""},{"$f":"IF(ISBLANK(INDIRECT(\"'\"&F2011&\"'!\"&H2011)),\"\",IFERROR(VLOOKUP(TEXT(INDIRECT(\"'\"&F2011&\"'!\"&H2011),\"0\"),Notes!$B$5:$C$100,2,FALSE),\"\"))","v":""},"2a","$O$99","$P$99"]
[13589,{"$f":"Menu!$F$29","v":"X"},{"$f":"Menu!$J$29","v":2020},{"$f":"IF(ISBLANK(INDIRECT(\"'\"&F2012&\"'!\"&G2012)),\"\",INDIRECT(\"'\"&F2012&\"'!\"&G2012))","v":""},{"$f":"IF(ISBLANK(INDIRECT(\"'\"&F2012&\"'!\"&H2012)),\"\",IFERROR(VLOOKUP(TEXT(INDIRECT(\"'\"&F2012&\"'!\"&H2012),\"0\"),Notes!$B$5:$C$100,2,FALSE),\"\"))","v":""},"2a","$Q$99","$R$99"]
[13590,{"$f":"Menu!$F$29","v":"X"},{"$f":"Menu!$J$29","v":2020},{"$f":"IF(ISBLANK(INDIRECT(\"'\"&F2013&\"'!\"&G2013)),\"\",INDIRECT(\"'\"&F2013&\"'!\"&G2013))","v":""},{"$f":"IF(ISBLANK(INDIRECT(\"'\"&F2013&\"'!\"&H2013)),\"\",IFERROR(VLOOKUP(TEXT(INDIRECT(\"'\"&F2013&\"'!\"&H2013),\"0\"),Notes!$B$5:$C$100,2,FALSE),\"\"))","v":""},"2a","$S$99","$T$99"]
[13591,{"$f":"Menu!$F$29","v":"X"},{"$f":"Menu!$J$29","v":2020},{"$f":"IF(ISBLANK(INDIRECT(\"'\"&F2014&\"'!\"&G2014)),\"\",INDIRECT(\"'\"&F2014&\"'!\"&G2014))","v":""},{"$f":"IF(ISBLANK(INDIRECT(\"'\"&F2014&\"'!\"&H2014)),\"\",IFERROR(VLOOKUP(TEXT(INDIRECT(\"'\"&F2014&\"'!\"&H2014),\"0\"),Notes!$B$5:$C$100,2,FALSE),\"\"))","v":""},"2a","$U$99","$V$99"]
[13601,{"$f":"Menu!$F$29","v":"X"},{"$f":"Menu!$J$29","v":2020},{"$f":"IF(ISBLANK(INDIRECT(\"'\"&F2015&\"'!\"&G2015)),\"\",INDIRECT(\"'\"&F2015&\"'!\"&G2015))","v":""},{"$f":"IF(ISBLANK(INDIRECT(\"'\"&F2015&\"'!\"&H2015)),\"\",IFERROR(VLOOKUP(TEXT(INDIRECT(\"'\"&F2015&\"'!\"&H2015),\"0\"),Notes!$B$5:$C$100,2,FALSE),\"\"))","v":""},"2a","$E$105","$F$105"]
[13602,{"$f":"Menu!$F$29","v":"X"},{"$f":"Menu!$J$29","v":2020},{"$f":"IF(ISBLANK(INDIRECT(\"'\"&F2016&\"'!\"&G2016)),\"\",INDIRECT(\"'\"&F2016&\"'!\"&G2016))","v":""},{"$f":"IF(ISBLANK(INDIRECT(\"'\"&F2016&\"'!\"&H2016)),\"\",IFERROR(VLOOKUP(TEXT(INDIRECT(\"'\"&F2016&\"'!\"&H2016),\"0\"),Notes!$B$5:$C$100,2,FALSE),\"\"))","v":""},"2a","$G$105","$H$105"]
[13603,{"$f":"Menu!$F$29","v":"X"},{"$f":"Menu!$J$29","v":2020},{"$f":"IF(ISBLANK(INDIRECT(\"'\"&F2017&\"'!\"&G2017)),\"\",INDIRECT(\"'\"&F2017&\"'!\"&G2017))","v":""},{"$f":"IF(ISBLANK(INDIRECT(\"'\"&F2017&\"'!\"&H2017)),\"\",IFERROR(VLOOKUP(TEXT(INDIRECT(\"'\"&F2017&\"'!\"&H2017),\"0\"),Notes!$B$5:$C$100,2,FALSE),\"\"))","v":""},"2a","$I$105","$J$105"]
[13604,{"$f":"Menu!$F$29","v":"X"},{"$f":"Menu!$J$29","v":2020},{"$f":"IF(ISBLANK(INDIRECT(\"'\"&F2018&\"'!\"&G2018)),\"\",INDIRECT(\"'\"&F2018&\"'!\"&G2018))","v":""},{"$f":"IF(ISBLANK(INDIRECT(\"'\"&F2018&\"'!\"&H2018)),\"\",IFERROR(VLOOKUP(TEXT(INDIRECT(\"'\"&F2018&\"'!\"&H2018),\"0\"),Notes!$B$5:$C$100,2,FALSE),\"\"))","v":""},"2a","$K$105","$L$105"]
[13605,{"$f":"Menu!$F$29","v":"X"},{"$f":"Menu!$J$29","v":2020},{"$f":"IF(ISBLANK(INDIRECT(\"'\"&F2019&\"'!\"&G2019)),\"\",INDIRECT(\"'\"&F2019&\"'!\"&G2019))","v":""},{"$f":"IF(ISBLANK(INDIRECT(\"'\"&F2019&\"'!\"&H2019)),\"\",IFERROR(VLOOKUP(TEXT(INDIRECT(\"'\"&F2019&\"'!\"&H2019),\"0\"),Notes!$B$5:$C$100,2,FALSE),\"\"))","v":""},"2a","$M$105","$N$105"]
[13606,{"$f":"Menu!$F$29","v":"X"},{"$f":"Menu!$J$29","v":2020},{"$f":"IF(ISBLANK(INDIRECT(\"'\"&F2020&\"'!\"&G2020)),\"\",INDIRECT(\"'\"&F2020&\"'!\"&G2020))","v":""},{"$f":"IF(ISBLANK(INDIRECT(\"'\"&F2020&\"'!\"&H2020)),\"\",IFERROR(VLOOKUP(TEXT(INDIRECT(\"'\"&F2020&\"'!\"&H2020),\"0\"),Notes!$B$5:$C$100,2,FALSE),\"\"))","v":""},"2a","$O$105","$P$105"]
[13607,{"$f":"Menu!$F$29","v":"X"},{"$f":"Menu!$J$29","v":2020},{"$f":"IF(ISBLANK(INDIRECT(\"'\"&F2021&\"'!\"&G2021)),\"\",INDIRECT(\"'\"&F2021&\"'!\"&G2021))","v":""},{"$f":"IF(ISBLANK(INDIRECT(\"'\"&F2021&\"'!\"&H2021)),\"\",IFERROR(VLOOKUP(TEXT(INDIRECT(\"'\"&F2021&\"'!\"&H2021),\"0\"),Notes!$B$5:$C$100,2,FALSE),\"\"))","v":""},"2a","$Q$105","$R$105"]
[13608,{"$f":"Menu!$F$29","v":"X"},{"$f":"Menu!$J$29","v":2020},{"$f":"IF(ISBLANK(INDIRECT(\"'\"&F2022&\"'!\"&G2022)),\"\",INDIRECT(\"'\"&F2022&\"'!\"&G2022))","v":""},{"$f":"IF(ISBLANK(INDIRECT(\"'\"&F2022&\"'!\"&H2022)),\"\",IFERROR(VLOOKUP(TEXT(INDIRECT(\"'\"&F2022&\"'!\"&H2022),\"0\"),Notes!$B$5:$C$100,2,FALSE),\"\"))","v":""},"2a","$S$105","$T$105"]
[13609,{"$f":"Menu!$F$29","v":"X"},{"$f":"Menu!$J$29","v":2020},{"$f":"IF(ISBLANK(INDIRECT(\"'\"&F2023&\"'!\"&G2023)),\"\",INDIRECT(\"'\"&F2023&\"'!\"&G2023))","v":""},{"$f":"IF(ISBLANK(INDIRECT(\"'\"&F2023&\"'!\"&H2023)),\"\",IFERROR(VLOOKUP(TEXT(INDIRECT(\"'\"&F2023&\"'!\"&H2023),\"0\"),Notes!$B$5:$C$100,2,FALSE),\"\"))","v":""},"2a","$U$105","$V$105"]
[13628,{"$f":"Menu!$F$29","v":"X"},{"$f":"Menu!$J$29","v":2020},{"$f":"IF(ISBLANK(INDIRECT(\"'\"&F2024&\"'!\"&G2024)),\"\",INDIRECT(\"'\"&F2024&\"'!\"&G2024))","v":""},{"$f":"IF(ISBLANK(INDIRECT(\"'\"&F2024&\"'!\"&H2024)),\"\",IFERROR(VLOOKUP(TEXT(INDIRECT(\"'\"&F2024&\"'!\"&H2024),\"0\"),Notes!$B$5:$C$100,2,FALSE),\"\"))","v":""},"2a","$E$34","$F$34"]
[13629,{"$f":"Menu!$F$29","v":"X"},{"$f":"Menu!$J$29","v":2020},{"$f":"IF(ISBLANK(INDIRECT(\"'\"&F2025&\"'!\"&G2025)),\"\",INDIRECT(\"'\"&F2025&\"'!\"&G2025))","v":""},{"$f":"IF(ISBLANK(INDIRECT(\"'\"&F2025&\"'!\"&H2025)),\"\",IFERROR(VLOOKUP(TEXT(INDIRECT(\"'\"&F2025&\"'!\"&H2025),\"0\"),Notes!$B$5:$C$100,2,FALSE),\"\"))","v":""},"2a","$G$34","$H$34"]
[13630,{"$f":"Menu!$F$29","v":"X"},{"$f":"Menu!$J$29","v":2020},{"$f":"IF(ISBLANK(INDIRECT(\"'\"&F2026&\"'!\"&G2026)),\"\",INDIRECT(\"'\"&F2026&\"'!\"&G2026))","v":""},{"$f":"IF(ISBLANK(INDIRECT(\"'\"&F2026&\"'!\"&H2026)),\"\",IFERROR(VLOOKUP(TEXT(INDIRECT(\"'\"&F2026&\"'!\"&H2026),\"0\"),Notes!$B$5:$C$100,2,FALSE),\"\"))","v":""},"2a","$I$34","$J$34"]
[13631,{"$f":"Menu!$F$29","v":"X"},{"$f":"Menu!$J$29","v":2020},{"$f":"IF(ISBLANK(INDIRECT(\"'\"&F2027&\"'!\"&G2027)),\"\",INDIRECT(\"'\"&F2027&\"'!\"&G2027))","v":""},{"$f":"IF(ISBLANK(INDIRECT(\"'\"&F2027&\"'!\"&H2027)),\"\",IFERROR(VLOOKUP(TEXT(INDIRECT(\"'\"&F2027&\"'!\"&H2027),\"0\"),Notes!$B$5:$C$100,2,FALSE),\"\"))","v":""},"2a","$K$34","$L$34"]
[13632,{"$f":"Menu!$F$29","v":"X"},{"$f":"Menu!$J$29","v":2020},{"$f":"IF(ISBLANK(INDIRECT(\"'\"&F2028&\"'!\"&G2028)),\"\",INDIRECT(\"'\"&F2028&\"'!\"&G2028))","v":""},{"$f":"IF(ISBLANK(INDIRECT(\"'\"&F2028&\"'!\"&H2028)),\"\",IFERROR(VLOOKUP(TEXT(INDIRECT(\"'\"&F2028&\"'!\"&H2028),\"0\"),Notes!$B$5:$C$100,2,FALSE),\"\"))","v":""},"2a","$M$34","$N$34"]
[13633,{"$f":"Menu!$F$29","v":"X"},{"$f":"Menu!$J$29","v":2020},{"$f":"IF(ISBLANK(INDIRECT(\"'\"&F2029&\"'!\"&G2029)),\"\",INDIRECT(\"'\"&F2029&\"'!\"&G2029))","v":""},{"$f":"IF(ISBLANK(INDIRECT(\"'\"&F2029&\"'!\"&H2029)),\"\",IFERROR(VLOOKUP(TEXT(INDIRECT(\"'\"&F2029&\"'!\"&H2029),\"0\"),Notes!$B$5:$C$100,2,FALSE),\"\"))","v":""},"2a","$O$34","$P$34"]
[13634,{"$f":"Menu!$F$29","v":"X"},{"$f":"Menu!$J$29","v":2020},{"$f":"IF(ISBLANK(INDIRECT(\"'\"&F2030&\"'!\"&G2030)),\"\",INDIRECT(\"'\"&F2030&\"'!\"&G2030))","v":""},{"$f":"IF(ISBLANK(INDIRECT(\"'\"&F2030&\"'!\"&H2030)),\"\",IFERROR(VLOOKUP(TEXT(INDIRECT(\"'\"&F2030&\"'!\"&H2030),\"0\"),Notes!$B$5:$C$100,2,FALSE),\"\"))","v":""},"2a","$Q$34","$R$34"]
[13635,{"$f":"Menu!$F$29","v":"X"},{"$f":"Menu!$J$29","v":2020},{"$f":"IF(ISBLANK(INDIRECT(\"'\"&F2031&\"'!\"&G2031)),\"\",INDIRECT(\"'\"&F2031&\"'!\"&G2031))","v":""},{"$f":"IF(ISBLANK(INDIRECT(\"'\"&F2031&\"'!\"&H2031)),\"\",IFERROR(VLOOKUP(TEXT(INDIRECT(\"'\"&F2031&\"'!\"&H2031),\"0\"),Notes!$B$5:$C$100,2,FALSE),\"\"))","v":""},"2a","$S$34","$T$34"]
[13636,{"$f":"Menu!$F$29","v":"X"},{"$f":"Menu!$J$29","v":2020},{"$f":"IF(ISBLANK(INDIRECT(\"'\"&F2032&\"'!\"&G2032)),\"\",INDIRECT(\"'\"&F2032&\"'!\"&G2032))","v":""},{"$f":"IF(ISBLANK(INDIRECT(\"'\"&F2032&\"'!\"&H2032)),\"\",IFERROR(VLOOKUP(TEXT(INDIRECT(\"'\"&F2032&\"'!\"&H2032),\"0\"),Notes!$B$5:$C$100,2,FALSE),\"\"))","v":""},"2a","$U$34","$V$34"]
[13637,{"$f":"Menu!$F$29","v":"X"},{"$f":"Menu!$J$29","v":2020},{"$f":"IF(ISBLANK(INDIRECT(\"'\"&F2033&\"'!\"&G2033)),\"\",INDIRECT(\"'\"&F2033&\"'!\"&G2033))","v":""},{"$f":"IF(ISBLANK(INDIRECT(\"'\"&F2033&\"'!\"&H2033)),\"\",IFERROR(VLOOKUP(TEXT(INDIRECT(\"'\"&F2033&\"'!\"&H2033),\"0\"),Notes!$B$5:$C$100,2,FALSE),\"\"))","v":""},"2a","$E$106","$F$106"]
[13638,{"$f":"Menu!$F$29","v":"X"},{"$f":"Menu!$J$29","v":2020},{"$f":"IF(ISBLANK(INDIRECT(\"'\"&F2034&\"'!\"&G2034)),\"\",INDIRECT(\"'\"&F2034&\"'!\"&G2034))","v":""},{"$f":"IF(ISBLANK(INDIRECT(\"'\"&F2034&\"'!\"&H2034)),\"\",IFERROR(VLOOKUP(TEXT(INDIRECT(\"'\"&F2034&\"'!\"&H2034),\"0\"),Notes!$B$5:$C$100,2,FALSE),\"\"))","v":""},"2a","$G$106","$H$106"]
[13639,{"$f":"Menu!$F$29","v":"X"},{"$f":"Menu!$J$29","v":2020},{"$f":"IF(ISBLANK(INDIRECT(\"'\"&F2035&\"'!\"&G2035)),\"\",INDIRECT(\"'\"&F2035&\"'!\"&G2035))","v":""},{"$f":"IF(ISBLANK(INDIRECT(\"'\"&F2035&\"'!\"&H2035)),\"\",IFERROR(VLOOKUP(TEXT(INDIRECT(\"'\"&F2035&\"'!\"&H2035),\"0\"),Notes!$B$5:$C$100,2,FALSE),\"\"))","v":""},"2a","$I$106","$J$106"]
[13640,{"$f":"Menu!$F$29","v":"X"},{"$f":"Menu!$J$29","v":2020},{"$f":"IF(ISBLANK(INDIRECT(\"'\"&F2036&\"'!\"&G2036)),\"\",INDIRECT(\"'\"&F2036&\"'!\"&G2036))","v":""},{"$f":"IF(ISBLANK(INDIRECT(\"'\"&F2036&\"'!\"&H2036)),\"\",IFERROR(VLOOKUP(TEXT(INDIRECT(\"'\"&F2036&\"'!\"&H2036),\"0\"),Notes!$B$5:$C$100,2,FALSE),\"\"))","v":""},"2a","$K$106","$L$106"]
[13641,{"$f":"Menu!$F$29","v":"X"},{"$f":"Menu!$J$29","v":2020},{"$f":"IF(ISBLANK(INDIRECT(\"'\"&F2037&\"'!\"&G2037)),\"\",INDIRECT(\"'\"&F2037&\"'!\"&G2037))","v":""},{"$f":"IF(ISBLANK(INDIRECT(\"'\"&F2037&\"'!\"&H2037)),\"\",IFERROR(VLOOKUP(TEXT(INDIRECT(\"'\"&F2037&\"'!\"&H2037),\"0\"),Notes!$B$5:$C$100,2,FALSE),\"\"))","v":""},"2a","$M$106","$N$106"]
[13642,{"$f":"Menu!$F$29","v":"X"},{"$f":"Menu!$J$29","v":2020},{"$f":"IF(ISBLANK(INDIRECT(\"'\"&F2038&\"'!\"&G2038)),\"\",INDIRECT(\"'\"&F2038&\"'!\"&G2038))","v":""},{"$f":"IF(ISBLANK(INDIRECT(\"'\"&F2038&\"'!\"&H2038)),\"\",IFERROR(VLOOKUP(TEXT(INDIRECT(\"'\"&F2038&\"'!\"&H2038),\"0\"),Notes!$B$5:$C$100,2,FALSE),\"\"))","v":""},"2a","$O$106","$P$106"]
[13643,{"$f":"Menu!$F$29","v":"X"},{"$f":"Menu!$J$29","v":2020},{"$f":"IF(ISBLANK(INDIRECT(\"'\"&F2039&\"'!\"&G2039)),\"\",INDIRECT(\"'\"&F2039&\"'!\"&G2039))","v":""},{"$f":"IF(ISBLANK(INDIRECT(\"'\"&F2039&\"'!\"&H2039)),\"\",IFERROR(VLOOKUP(TEXT(INDIRECT(\"'\"&F2039&\"'!\"&H2039),\"0\"),Notes!$B$5:$C$100,2,FALSE),\"\"))","v":""},"2a","$Q$106","$R$106"]
[13644,{"$f":"Menu!$F$29","v":"X"},{"$f":"Menu!$J$29","v":2020},{"$f":"IF(ISBLANK(INDIRECT(\"'\"&F2040&\"'!\"&G2040)),\"\",INDIRECT(\"'\"&F2040&\"'!\"&G2040))","v":""},{"$f":"IF(ISBLANK(INDIRECT(\"'\"&F2040&\"'!\"&H2040)),\"\",IFERROR(VLOOKUP(TEXT(INDIRECT(\"'\"&F2040&\"'!\"&H2040),\"0\"),Notes!$B$5:$C$100,2,FALSE),\"\"))","v":""},"2a","$S$106","$T$106"]
[13645,{"$f":"Menu!$F$29","v":"X"},{"$f":"Menu!$J$29","v":2020},{"$f":"IF(ISBLANK(INDIRECT(\"'\"&F2041&\"'!\"&G2041)),\"\",INDIRECT(\"'\"&F2041&\"'!\"&G2041))","v":""},{"$f":"IF(ISBLANK(INDIRECT(\"'\"&F2041&\"'!\"&H2041)),\"\",IFERROR(VLOOKUP(TEXT(INDIRECT(\"'\"&F2041&\"'!\"&H2041),\"0\"),Notes!$B$5:$C$100,2,FALSE),\"\"))","v":""},"2a","$U$106","$V$106"]
[13646,{"$f":"Menu!$F$29","v":"X"},{"$f":"Menu!$J$29","v":2020},{"$f":"IF(ISBLANK(INDIRECT(\"'\"&F2042&\"'!\"&G2042)),\"\",INDIRECT(\"'\"&F2042&\"'!\"&G2042))","v":""},{"$f":"IF(ISBLANK(INDIRECT(\"'\"&F2042&\"'!\"&H2042)),\"\",IFERROR(VLOOKUP(TEXT(INDIRECT(\"'\"&F2042&\"'!\"&H2042),\"0\"),Notes!$B$5:$C$100,2,FALSE),\"\"))","v":""},"2a","$E$38","$F$38"]
[13647,{"$f":"Menu!$F$29","v":"X"},{"$f":"Menu!$J$29","v":2020},{"$f":"IF(ISBLANK(INDIRECT(\"'\"&F2043&\"'!\"&G2043)),\"\",INDIRECT(\"'\"&F2043&\"'!\"&G2043))","v":""},{"$f":"IF(ISBLANK(INDIRECT(\"'\"&F2043&\"'!\"&H2043)),\"\",IFERROR(VLOOKUP(TEXT(INDIRECT(\"'\"&F2043&\"'!\"&H2043),\"0\"),Notes!$B$5:$C$100,2,FALSE),\"\"))","v":""},"2a","$G$38","$H$38"]
[13648,{"$f":"Menu!$F$29","v":"X"},{"$f":"Menu!$J$29","v":2020},{"$f":"IF(ISBLANK(INDIRECT(\"'\"&F2044&\"'!\"&G2044)),\"\",INDIRECT(\"'\"&F2044&\"'!\"&G2044))","v":""},{"$f":"IF(ISBLANK(INDIRECT(\"'\"&F2044&\"'!\"&H2044)),\"\",IFERROR(VLOOKUP(TEXT(INDIRECT(\"'\"&F2044&\"'!\"&H2044),\"0\"),Notes!$B$5:$C$100,2,FALSE),\"\"))","v":""},"2a","$I$38","$J$38"]
[13649,{"$f":"Menu!$F$29","v":"X"},{"$f":"Menu!$J$29","v":2020},{"$f":"IF(ISBLANK(INDIRECT(\"'\"&F2045&\"'!\"&G2045)),\"\",INDIRECT(\"'\"&F2045&\"'!\"&G2045))","v":""},{"$f":"IF(ISBLANK(INDIRECT(\"'\"&F2045&\"'!\"&H2045)),\"\",IFERROR(VLOOKUP(TEXT(INDIRECT(\"'\"&F2045&\"'!\"&H2045),\"0\"),Notes!$B$5:$C$100,2,FALSE),\"\"))","v":""},"2a","$K$38","$L$38"]
[13650,{"$f":"Menu!$F$29","v":"X"},{"$f":"Menu!$J$29","v":2020},{"$f":"IF(ISBLANK(INDIRECT(\"'\"&F2046&\"'!\"&G2046)),\"\",INDIRECT(\"'\"&F2046&\"'!\"&G2046))","v":""},{"$f":"IF(ISBLANK(INDIRECT(\"'\"&F2046&\"'!\"&H2046)),\"\",IFERROR(VLOOKUP(TEXT(INDIRECT(\"'\"&F2046&\"'!\"&H2046),\"0\"),Notes!$B$5:$C$100,2,FALSE),\"\"))","v":""},"2a","$M$38","$N$38"]
[13651,{"$f":"Menu!$F$29","v":"X"},{"$f":"Menu!$J$29","v":2020},{"$f":"IF(ISBLANK(INDIRECT(\"'\"&F2047&\"'!\"&G2047)),\"\",INDIRECT(\"'\"&F2047&\"'!\"&G2047))","v":""},{"$f":"IF(ISBLANK(INDIRECT(\"'\"&F2047&\"'!\"&H2047)),\"\",IFERROR(VLOOKUP(TEXT(INDIRECT(\"'\"&F2047&\"'!\"&H2047),\"0\"),Notes!$B$5:$C$100,2,FALSE),\"\"))","v":""},"2a","$O$38","$P$38"]
[13652,{"$f":"Menu!$F$29","v":"X"},{"$f":"Menu!$J$29","v":2020},{"$f":"IF(ISBLANK(INDIRECT(\"'\"&F2048&\"'!\"&G2048)),\"\",INDIRECT(\"'\"&F2048&\"'!\"&G2048))","v":""},{"$f":"IF(ISBLANK(INDIRECT(\"'\"&F2048&\"'!\"&H2048)),\"\",IFERROR(VLOOKUP(TEXT(INDIRECT(\"'\"&F2048&\"'!\"&H2048),\"0\"),Notes!$B$5:$C$100,2,FALSE),\"\"))","v":""},"2a","$Q$38","$R$38"]
[13653,{"$f":"Menu!$F$29","v":"X"},{"$f":"Menu!$J$29","v":2020},{"$f":"IF(ISBLANK(INDIRECT(\"'\"&F2049&\"'!\"&G2049)),\"\",INDIRECT(\"'\"&F2049&\"'!\"&G2049))","v":""},{"$f":"IF(ISBLANK(INDIRECT(\"'\"&F2049&\"'!\"&H2049)),\"\",IFERROR(VLOOKUP(TEXT(INDIRECT(\"'\"&F2049&\"'!\"&H2049),\"0\"),Notes!$B$5:$C$100,2,FALSE),\"\"))","v":""},"2a","$S$38","$T$38"]
[13654,{"$f":"Menu!$F$29","v":"X"},{"$f":"Menu!$J$29","v":2020},{"$f":"IF(ISBLANK(INDIRECT(\"'\"&F2050&\"'!\"&G2050)),\"\",INDIRECT(\"'\"&F2050&\"'!\"&G2050))","v":""},{"$f":"IF(ISBLANK(INDIRECT(\"'\"&F2050&\"'!\"&H2050)),\"\",IFERROR(VLOOKUP(TEXT(INDIRECT(\"'\"&F2050&\"'!\"&H2050),\"0\"),Notes!$B$5:$C$100,2,FALSE),\"\"))","v":""},"2a","$U$38",{"$f":"IF(LEN(TRIM(MID(G2050,4,10)))-LEN(SUBSTITUTE(TRIM(MID(G2050,4,10)),\"$\",\"\"))=0,\"$\"&CHAR(CODE(MID(G2050,2,1))+1)&\"$\"&TRIM(MID(G2050,4,10)),\"$\"&MID(G2050,2,1)&CHAR(CODE(MID(G2050,3,1))+1)&\"$\"&TRIM(MID(G2050,5,11)))","v":"$V$38"}]
[13673,{"$f":"Menu!$F$29","v":"X"},{"$f":"Menu!$J$29","v":2020},{"$f":"IF(ISBLANK(INDIRECT(\"'\"&F2051&\"'!\"&G2051)),\"\",INDIRECT(\"'\"&F2051&\"'!\"&G2051))","v":""},{"$f":"IF(ISBLANK(INDIRECT(\"'\"&F2051&\"'!\"&H2051)),\"\",IFERROR(VLOOKUP(TEXT(INDIRECT(\"'\"&F2051&\"'!\"&H2051),\"0\"),Notes!$B$5:$C$100,2,FALSE),\"\"))","v":""},"2a","$E$39","$F$39"]
[13674,{"$f":"Menu!$F$29","v":"X"},{"$f":"Menu!$J$29","v":2020},{"$f":"IF(ISBLANK(INDIRECT(\"'\"&F2052&\"'!\"&G2052)),\"\",INDIRECT(\"'\"&F2052&\"'!\"&G2052))","v":""},{"$f":"IF(ISBLANK(INDIRECT(\"'\"&F2052&\"'!\"&H2052)),\"\",IFERROR(VLOOKUP(TEXT(INDIRECT(\"'\"&F2052&\"'!\"&H2052),\"0\"),Notes!$B$5:$C$100,2,FALSE),\"\"))","v":""},"2a","$G$39","$H$39"]
[13675,{"$f":"Menu!$F$29","v":"X"},{"$f":"Menu!$J$29","v":2020},{"$f":"IF(ISBLANK(INDIRECT(\"'\"&F2053&\"'!\"&G2053)),\"\",INDIRECT(\"'\"&F2053&\"'!\"&G2053))","v":""},{"$f":"IF(ISBLANK(INDIRECT(\"'\"&F2053&\"'!\"&H2053)),\"\",IFERROR(VLOOKUP(TEXT(INDIRECT(\"'\"&F2053&\"'!\"&H2053),\"0\"),Notes!$B$5:$C$100,2,FALSE),\"\"))","v":""},"2a","$I$39","$J$39"]
[13676,{"$f":"Menu!$F$29","v":"X"},{"$f":"Menu!$J$29","v":2020},{"$f":"IF(ISBLANK(INDIRECT(\"'\"&F2054&\"'!\"&G2054)),\"\",INDIRECT(\"'\"&F2054&\"'!\"&G2054))","v":""},{"$f":"IF(ISBLANK(INDIRECT(\"'\"&F2054&\"'!\"&H2054)),\"\",IFERROR(VLOOKUP(TEXT(INDIRECT(\"'\"&F2054&\"'!\"&H2054),\"0\"),Notes!$B$5:$C$100,2,FALSE),\"\"))","v":""},"2a","$K$39","$L$39"]
[13677,{"$f":"Menu!$F$29","v":"X"},{"$f":"Menu!$J$29","v":2020},{"$f":"IF(ISBLANK(INDIRECT(\"'\"&F2055&\"'!\"&G2055)),\"\",INDIRECT(\"'\"&F2055&\"'!\"&G2055))","v":""},{"$f":"IF(ISBLANK(INDIRECT(\"'\"&F2055&\"'!\"&H2055)),\"\",IFERROR(VLOOKUP(TEXT(INDIRECT(\"'\"&F2055&\"'!\"&H2055),\"0\"),Notes!$B$5:$C$100,2,FALSE),\"\"))","v":""},"2a","$M$39","$N$39"]
[13678,{"$f":"Menu!$F$29","v":"X"},{"$f":"Menu!$J$29","v":2020},{"$f":"IF(ISBLANK(INDIRECT(\"'\"&F2056&\"'!\"&G2056)),\"\",INDIRECT(\"'\"&F2056&\"'!\"&G2056))","v":""},{"$f":"IF(ISBLANK(INDIRECT(\"'\"&F2056&\"'!\"&H2056)),\"\",IFERROR(VLOOKUP(TEXT(INDIRECT(\"'\"&F2056&\"'!\"&H2056),\"0\"),Notes!$B$5:$C$100,2,FALSE),\"\"))","v":""},"2a","$O$39","$P$39"]
[13679,{"$f":"Menu!$F$29","v":"X"},{"$f":"Menu!$J$29","v":2020},{"$f":"IF(ISBLANK(INDIRECT(\"'\"&F2057&\"'!\"&G2057)),\"\",INDIRECT(\"'\"&F2057&\"'!\"&G2057))","v":""},{"$f":"IF(ISBLANK(INDIRECT(\"'\"&F2057&\"'!\"&H2057)),\"\",IFERROR(VLOOKUP(TEXT(INDIRECT(\"'\"&F2057&\"'!\"&H2057),\"0\"),Notes!$B$5:$C$100,2,FALSE),\"\"))","v":""},"2a","$Q$39","$R$39"]
[13680,{"$f":"Menu!$F$29","v":"X"},{"$f":"Menu!$J$29","v":2020},{"$f":"IF(ISBLANK(INDIRECT(\"'\"&F2058&\"'!\"&G2058)),\"\",INDIRECT(\"'\"&F2058&\"'!\"&G2058))","v":""},{"$f":"IF(ISBLANK(INDIRECT(\"'\"&F2058&\"'!\"&H2058)),\"\",IFERROR(VLOOKUP(TEXT(INDIRECT(\"'\"&F2058&\"'!\"&H2058),\"0\"),Notes!$B$5:$C$100,2,FALSE),\"\"))","v":""},"2a","$S$39","$T$39"]
[13681,{"$f":"Menu!$F$29","v":"X"},{"$f":"Menu!$J$29","v":2020},{"$f":"IF(ISBLANK(INDIRECT(\"'\"&F2059&\"'!\"&G2059)),\"\",INDIRECT(\"'\"&F2059&\"'!\"&G2059))","v":""},{"$f":"IF(ISBLANK(INDIRECT(\"'\"&F2059&\"'!\"&H2059)),\"\",IFERROR(VLOOKUP(TEXT(INDIRECT(\"'\"&F2059&\"'!\"&H2059),\"0\"),Notes!$B$5:$C$100,2,FALSE),\"\"))","v":""},"2a","$U$39","$V$39"]
[13682,{"$f":"Menu!$F$29","v":"X"},{"$f":"Menu!$J$29","v":2020},{"$f":"IF(ISBLANK(INDIRECT(\"'\"&F2060&\"'!\"&G2060)),\"\",INDIRECT(\"'\"&F2060&\"'!\"&G2060))","v":""},{"$f":"IF(ISBLANK(INDIRECT(\"'\"&F2060&\"'!\"&H2060)),\"\",IFERROR(VLOOKUP(TEXT(INDIRECT(\"'\"&F2060&\"'!\"&H2060),\"0\"),Notes!$B$5:$C$100,2,FALSE),\"\"))","v":""},"2a","$E$31","$F$31"]
[13683,{"$f":"Menu!$F$29","v":"X"},{"$f":"Menu!$J$29","v":2020},{"$f":"IF(ISBLANK(INDIRECT(\"'\"&F2061&\"'!\"&G2061)),\"\",INDIRECT(\"'\"&F2061&\"'!\"&G2061))","v":""},{"$f":"IF(ISBLANK(INDIRECT(\"'\"&F2061&\"'!\"&H2061)),\"\",IFERROR(VLOOKUP(TEXT(INDIRECT(\"'\"&F2061&\"'!\"&H2061),\"0\"),Notes!$B$5:$C$100,2,FALSE),\"\"))","v":""},"2a","$G$31","$H$31"]
[13684,{"$f":"Menu!$F$29","v":"X"},{"$f":"Menu!$J$29","v":2020},{"$f":"IF(ISBLANK(INDIRECT(\"'\"&F2062&\"'!\"&G2062)),\"\",INDIRECT(\"'\"&F2062&\"'!\"&G2062))","v":""},{"$f":"IF(ISBLANK(INDIRECT(\"'\"&F2062&\"'!\"&H2062)),\"\",IFERROR(VLOOKUP(TEXT(INDIRECT(\"'\"&F2062&\"'!\"&H2062),\"0\"),Notes!$B$5:$C$100,2,FALSE),\"\"))","v":""},"2a","$I$31","$J$31"]
[13685,{"$f":"Menu!$F$29","v":"X"},{"$f":"Menu!$J$29","v":2020},{"$f":"IF(ISBLANK(INDIRECT(\"'\"&F2063&\"'!\"&G2063)),\"\",INDIRECT(\"'\"&F2063&\"'!\"&G2063))","v":""},{"$f":"IF(ISBLANK(INDIRECT(\"'\"&F2063&\"'!\"&H2063)),\"\",IFERROR(VLOOKUP(TEXT(INDIRECT(\"'\"&F2063&\"'!\"&H2063),\"0\"),Notes!$B$5:$C$100,2,FALSE),\"\"))","v":""},"2a","$K$31","$L$31"]
[13686,{"$f":"Menu!$F$29","v":"X"},{"$f":"Menu!$J$29","v":2020},{"$f":"IF(ISBLANK(INDIRECT(\"'\"&F2064&\"'!\"&G2064)),\"\",INDIRECT(\"'\"&F2064&\"'!\"&G2064))","v":""},{"$f":"IF(ISBLANK(INDIRECT(\"'\"&F2064&\"'!\"&H2064)),\"\",IFERROR(VLOOKUP(TEXT(INDIRECT(\"'\"&F2064&\"'!\"&H2064),\"0\"),Notes!$B$5:$C$100,2,FALSE),\"\"))","v":""},"2a","$M$31","$N$31"]
[13687,{"$f":"Menu!$F$29","v":"X"},{"$f":"Menu!$J$29","v":2020},{"$f":"IF(ISBLANK(INDIRECT(\"'\"&F2065&\"'!\"&G2065)),\"\",INDIRECT(\"'\"&F2065&\"'!\"&G2065))","v":""},{"$f":"IF(ISBLANK(INDIRECT(\"'\"&F2065&\"'!\"&H2065)),\"\",IFERROR(VLOOKUP(TEXT(INDIRECT(\"'\"&F2065&\"'!\"&H2065),\"0\"),Notes!$B$5:$C$100,2,FALSE),\"\"))","v":""},"2a","$O$31","$P$31"]
[13688,{"$f":"Menu!$F$29","v":"X"},{"$f":"Menu!$J$29","v":2020},{"$f":"IF(ISBLANK(INDIRECT(\"'\"&F2066&\"'!\"&G2066)),\"\",INDIRECT(\"'\"&F2066&\"'!\"&G2066))","v":""},{"$f":"IF(ISBLANK(INDIRECT(\"'\"&F2066&\"'!\"&H2066)),\"\",IFERROR(VLOOKUP(TEXT(INDIRECT(\"'\"&F2066&\"'!\"&H2066),\"0\"),Notes!$B$5:$C$100,2,FALSE),\"\"))","v":""},"2a","$Q$31","$R$31"]
[13689,{"$f":"Menu!$F$29","v":"X"},{"$f":"Menu!$J$29","v":2020},{"$f":"IF(ISBLANK(INDIRECT(\"'\"&F2067&\"'!\"&G2067)),\"\",INDIRECT(\"'\"&F2067&\"'!\"&G2067))","v":""},{"$f":"IF(ISBLANK(INDIRECT(\"'\"&F2067&\"'!\"&H2067)),\"\",IFERROR(VLOOKUP(TEXT(INDIRECT(\"'\"&F2067&\"'!\"&H2067),\"0\"),Notes!$B$5:$C$100,2,FALSE),\"\"))","v":""},"2a","$S$31","$T$31"]
[13690,{"$f":"Menu!$F$29","v":"X"},{"$f":"Menu!$J$29","v":2020},{"$f":"IF(ISBLANK(INDIRECT(\"'\"&F2068&\"'!\"&G2068)),\"\",INDIRECT(\"'\"&F2068&\"'!\"&G2068))","v":""},{"$f":"IF(ISBLANK(INDIRECT(\"'\"&F2068&\"'!\"&H2068)),\"\",IFERROR(VLOOKUP(TEXT(INDIRECT(\"'\"&F2068&\"'!\"&H2068),\"0\"),Notes!$B$5:$C$100,2,FALSE),\"\"))","v":""},"2a","$U$31","$V$31"]
[13691,{"$f":"Menu!$F$29","v":"X"},{"$f":"Menu!$J$29","v":2020},{"$f":"IF(ISBLANK(INDIRECT(\"'\"&F2069&\"'!\"&G2069)),\"\",INDIRECT(\"'\"&F2069&\"'!\"&G2069))","v":""},{"$f":"IF(ISBLANK(INDIRECT(\"'\"&F2069&\"'!\"&H2069)),\"\",IFERROR(VLOOKUP(TEXT(INDIRECT(\"'\"&F2069&\"'!\"&H2069),\"0\"),Notes!$B$5:$C$100,2,FALSE),\"\"))","v":""},"2a","$E$41","$F$41"]
[13692,{"$f":"Menu!$F$29","v":"X"},{"$f":"Menu!$J$29","v":2020},{"$f":"IF(ISBLANK(INDIRECT(\"'\"&F2070&\"'!\"&G2070)),\"\",INDIRECT(\"'\"&F2070&\"'!\"&G2070))","v":""},{"$f":"IF(ISBLANK(INDIRECT(\"'\"&F2070&\"'!\"&H2070)),\"\",IFERROR(VLOOKUP(TEXT(INDIRECT(\"'\"&F2070&\"'!\"&H2070),\"0\"),Notes!$B$5:$C$100,2,FALSE),\"\"))","v":""},"2a","$G$41","$H$41"]
[13693,{"$f":"Menu!$F$29","v":"X"},{"$f":"Menu!$J$29","v":2020},{"$f":"IF(ISBLANK(INDIRECT(\"'\"&F2071&\"'!\"&G2071)),\"\",INDIRECT(\"'\"&F2071&\"'!\"&G2071))","v":""},{"$f":"IF(ISBLANK(INDIRECT(\"'\"&F2071&\"'!\"&H2071)),\"\",IFERROR(VLOOKUP(TEXT(INDIRECT(\"'\"&F2071&\"'!\"&H2071),\"0\"),Notes!$B$5:$C$100,2,FALSE),\"\"))","v":""},"2a","$I$41","$J$41"]
[13694,{"$f":"Menu!$F$29","v":"X"},{"$f":"Menu!$J$29","v":2020},{"$f":"IF(ISBLANK(INDIRECT(\"'\"&F2072&\"'!\"&G2072)),\"\",INDIRECT(\"'\"&F2072&\"'!\"&G2072))","v":""},{"$f":"IF(ISBLANK(INDIRECT(\"'\"&F2072&\"'!\"&H2072)),\"\",IFERROR(VLOOKUP(TEXT(INDIRECT(\"'\"&F2072&\"'!\"&H2072),\"0\"),Notes!$B$5:$C$100,2,FALSE),\"\"))","v":""},"2a","$K$41","$L$41"]
[13695,{"$f":"Menu!$F$29","v":"X"},{"$f":"Menu!$J$29","v":2020},{"$f":"IF(ISBLANK(INDIRECT(\"'\"&F2073&\"'!\"&G2073)),\"\",INDIRECT(\"'\"&F2073&\"'!\"&G2073))","v":""},{"$f":"IF(ISBLANK(INDIRECT(\"'\"&F2073&\"'!\"&H2073)),\"\",IFERROR(VLOOKUP(TEXT(INDIRECT(\"'\"&F2073&\"'!\"&H2073),\"0\"),Notes!$B$5:$C$100,2,FALSE),\"\"))","v":""},"2a","$M$41","$N$41"]
[13696,{"$f":"Menu!$F$29","v":"X"},{"$f":"Menu!$J$29","v":2020},{"$f":"IF(ISBLANK(INDIRECT(\"'\"&F2074&\"'!\"&G2074)),\"\",INDIRECT(\"'\"&F2074&\"'!\"&G2074))","v":""},{"$f":"IF(ISBLANK(INDIRECT(\"'\"&F2074&\"'!\"&H2074)),\"\",IFERROR(VLOOKUP(TEXT(INDIRECT(\"'\"&F2074&\"'!\"&H2074),\"0\"),Notes!$B$5:$C$100,2,FALSE),\"\"))","v":""},"2a","$O$41","$P$41"]
[13697,{"$f":"Menu!$F$29","v":"X"},{"$f":"Menu!$J$29","v":2020},{"$f":"IF(ISBLANK(INDIRECT(\"'\"&F2075&\"'!\"&G2075)),\"\",INDIRECT(\"'\"&F2075&\"'!\"&G2075))","v":""},{"$f":"IF(ISBLANK(INDIRECT(\"'\"&F2075&\"'!\"&H2075)),\"\",IFERROR(VLOOKUP(TEXT(INDIRECT(\"'\"&F2075&\"'!\"&H2075),\"0\"),Notes!$B$5:$C$100,2,FALSE),\"\"))","v":""},"2a","$Q$41","$R$41"]
[13698,{"$f":"Menu!$F$29","v":"X"},{"$f":"Menu!$J$29","v":2020},{"$f":"IF(ISBLANK(INDIRECT(\"'\"&F2076&\"'!\"&G2076)),\"\",INDIRECT(\"'\"&F2076&\"'!\"&G2076))","v":""},{"$f":"IF(ISBLANK(INDIRECT(\"'\"&F2076&\"'!\"&H2076)),\"\",IFERROR(VLOOKUP(TEXT(INDIRECT(\"'\"&F2076&\"'!\"&H2076),\"0\"),Notes!$B$5:$C$100,2,FALSE),\"\"))","v":""},"2a","$S$41","$T$41"]
[13699,{"$f":"Menu!$F$29","v":"X"},{"$f":"Menu!$J$29","v":2020},{"$f":"IF(ISBLANK(INDIRECT(\"'\"&F2077&\"'!\"&G2077)),\"\",INDIRECT(\"'\"&F2077&\"'!\"&G2077))","v":""},{"$f":"IF(ISBLANK(INDIRECT(\"'\"&F2077&\"'!\"&H2077)),\"\",IFERROR(VLOOKUP(TEXT(INDIRECT(\"'\"&F2077&\"'!\"&H2077),\"0\"),Notes!$B$5:$C$100,2,FALSE),\"\"))","v":""},"2a","$U$41","$V$41"]
[13700,{"$f":"Menu!$F$29","v":"X"},{"$f":"Menu!$J$29","v":2020},{"$f":"IF(ISBLANK(INDIRECT(\"'\"&F2078&\"'!\"&G2078)),\"\",INDIRECT(\"'\"&F2078&\"'!\"&G2078))","v":""},{"$f":"IF(ISBLANK(INDIRECT(\"'\"&F2078&\"'!\"&H2078)),\"\",IFERROR(VLOOKUP(TEXT(INDIRECT(\"'\"&F2078&\"'!\"&H2078),\"0\"),Notes!$B$5:$C$100,2,FALSE),\"\"))","v":""},"2a","$E$51","$F$51"]
[13701,{"$f":"Menu!$F$29","v":"X"},{"$f":"Menu!$J$29","v":2020},{"$f":"IF(ISBLANK(INDIRECT(\"'\"&F2079&\"'!\"&G2079)),\"\",INDIRECT(\"'\"&F2079&\"'!\"&G2079))","v":""},{"$f":"IF(ISBLANK(INDIRECT(\"'\"&F2079&\"'!\"&H2079)),\"\",IFERROR(VLOOKUP(TEXT(INDIRECT(\"'\"&F2079&\"'!\"&H2079),\"0\"),Notes!$B$5:$C$100,2,FALSE),\"\"))","v":""},"2a","$G$51","$H$51"]
[13702,{"$f":"Menu!$F$29","v":"X"},{"$f":"Menu!$J$29","v":2020},{"$f":"IF(ISBLANK(INDIRECT(\"'\"&F2080&\"'!\"&G2080)),\"\",INDIRECT(\"'\"&F2080&\"'!\"&G2080))","v":""},{"$f":"IF(ISBLANK(INDIRECT(\"'\"&F2080&\"'!\"&H2080)),\"\",IFERROR(VLOOKUP(TEXT(INDIRECT(\"'\"&F2080&\"'!\"&H2080),\"0\"),Notes!$B$5:$C$100,2,FALSE),\"\"))","v":""},"2a","$I$51","$J$51"]
[13703,{"$f":"Menu!$F$29","v":"X"},{"$f":"Menu!$J$29","v":2020},{"$f":"IF(ISBLANK(INDIRECT(\"'\"&F2081&\"'!\"&G2081)),\"\",INDIRECT(\"'\"&F2081&\"'!\"&G2081))","v":""},{"$f":"IF(ISBLANK(INDIRECT(\"'\"&F2081&\"'!\"&H2081)),\"\",IFERROR(VLOOKUP(TEXT(INDIRECT(\"'\"&F2081&\"'!\"&H2081),\"0\"),Notes!$B$5:$C$100,2,FALSE),\"\"))","v":""},"2a","$K$51","$L$51"]
[13704,{"$f":"Menu!$F$29","v":"X"},{"$f":"Menu!$J$29","v":2020},{"$f":"IF(ISBLANK(INDIRECT(\"'\"&F2082&\"'!\"&G2082)),\"\",INDIRECT(\"'\"&F2082&\"'!\"&G2082))","v":""},{"$f":"IF(ISBLANK(INDIRECT(\"'\"&F2082&\"'!\"&H2082)),\"\",IFERROR(VLOOKUP(TEXT(INDIRECT(\"'\"&F2082&\"'!\"&H2082),\"0\"),Notes!$B$5:$C$100,2,FALSE),\"\"))","v":""},"2a","$M$51","$N$51"]
[13705,{"$f":"Menu!$F$29","v":"X"},{"$f":"Menu!$J$29","v":2020},{"$f":"IF(ISBLANK(INDIRECT(\"'\"&F2083&\"'!\"&G2083)),\"\",INDIRECT(\"'\"&F2083&\"'!\"&G2083))","v":""},{"$f":"IF(ISBLANK(INDIRECT(\"'\"&F2083&\"'!\"&H2083)),\"\",IFERROR(VLOOKUP(TEXT(INDIRECT(\"'\"&F2083&\"'!\"&H2083),\"0\"),Notes!$B$5:$C$100,2,FALSE),\"\"))","v":""},"2a","$O$51","$P$51"]
[13706,{"$f":"Menu!$F$29","v":"X"},{"$f":"Menu!$J$29","v":2020},{"$f":"IF(ISBLANK(INDIRECT(\"'\"&F2084&\"'!\"&G2084)),\"\",INDIRECT(\"'\"&F2084&\"'!\"&G2084))","v":""},{"$f":"IF(ISBLANK(INDIRECT(\"'\"&F2084&\"'!\"&H2084)),\"\",IFERROR(VLOOKUP(TEXT(INDIRECT(\"'\"&F2084&\"'!\"&H2084),\"0\"),Notes!$B$5:$C$100,2,FALSE),\"\"))","v":""},"2a","$Q$51","$R$51"]
[13707,{"$f":"Menu!$F$29","v":"X"},{"$f":"Menu!$J$29","v":2020},{"$f":"IF(ISBLANK(INDIRECT(\"'\"&F2085&\"'!\"&G2085)),\"\",INDIRECT(\"'\"&F2085&\"'!\"&G2085))","v":""},{"$f":"IF(ISBLANK(INDIRECT(\"'\"&F2085&\"'!\"&H2085)),\"\",IFERROR(VLOOKUP(TEXT(INDIRECT(\"'\"&F2085&\"'!\"&H2085),\"0\"),Notes!$B$5:$C$100,2,FALSE),\"\"))","v":""},"2a","$S$51","$T$51"]
[13708,{"$f":"Menu!$F$29","v":"X"},{"$f":"Menu!$J$29","v":2020},{"$f":"IF(ISBLANK(INDIRECT(\"'\"&F2086&\"'!\"&G2086)),\"\",INDIRECT(\"'\"&F2086&\"'!\"&G2086))","v":""},{"$f":"IF(ISBLANK(INDIRECT(\"'\"&F2086&\"'!\"&H2086)),\"\",IFERROR(VLOOKUP(TEXT(INDIRECT(\"'\"&F2086&\"'!\"&H2086),\"0\"),Notes!$B$5:$C$100,2,FALSE),\"\"))","v":""},"2a","$U$51","$V$51"]
[13709,{"$f":"Menu!$F$29","v":"X"},{"$f":"Menu!$J$29","v":2020},{"$f":"IF(ISBLANK(INDIRECT(\"'\"&F2087&\"'!\"&G2087)),\"\",INDIRECT(\"'\"&F2087&\"'!\"&G2087))","v":""},{"$f":"IF(ISBLANK(INDIRECT(\"'\"&F2087&\"'!\"&H2087)),\"\",IFERROR(VLOOKUP(TEXT(INDIRECT(\"'\"&F2087&\"'!\"&H2087),\"0\"),Notes!$B$5:$C$100,2,FALSE),\"\"))","v":""},"2a","$E$52","$F$52"]
[13710,{"$f":"Menu!$F$29","v":"X"},{"$f":"Menu!$J$29","v":2020},{"$f":"IF(ISBLANK(INDIRECT(\"'\"&F2088&\"'!\"&G2088)),\"\",INDIRECT(\"'\"&F2088&\"'!\"&G2088))","v":""},{"$f":"IF(ISBLANK(INDIRECT(\"'\"&F2088&\"'!\"&H2088)),\"\",IFERROR(VLOOKUP(TEXT(INDIRECT(\"'\"&F2088&\"'!\"&H2088),\"0\"),Notes!$B$5:$C$100,2,FALSE),\"\"))","v":""},"2a","$G$52","$H$52"]
[13711,{"$f":"Menu!$F$29","v":"X"},{"$f":"Menu!$J$29","v":2020},{"$f":"IF(ISBLANK(INDIRECT(\"'\"&F2089&\"'!\"&G2089)),\"\",INDIRECT(\"'\"&F2089&\"'!\"&G2089))","v":""},{"$f":"IF(ISBLANK(INDIRECT(\"'\"&F2089&\"'!\"&H2089)),\"\",IFERROR(VLOOKUP(TEXT(INDIRECT(\"'\"&F2089&\"'!\"&H2089),\"0\"),Notes!$B$5:$C$100,2,FALSE),\"\"))","v":""},"2a","$I$52","$J$52"]
[13712,{"$f":"Menu!$F$29","v":"X"},{"$f":"Menu!$J$29","v":2020},{"$f":"IF(ISBLANK(INDIRECT(\"'\"&F2090&\"'!\"&G2090)),\"\",INDIRECT(\"'\"&F2090&\"'!\"&G2090))","v":""},{"$f":"IF(ISBLANK(INDIRECT(\"'\"&F2090&\"'!\"&H2090)),\"\",IFERROR(VLOOKUP(TEXT(INDIRECT(\"'\"&F2090&\"'!\"&H2090),\"0\"),Notes!$B$5:$C$100,2,FALSE),\"\"))","v":""},"2a","$K$52","$L$52"]
[13713,{"$f":"Menu!$F$29","v":"X"},{"$f":"Menu!$J$29","v":2020},{"$f":"IF(ISBLANK(INDIRECT(\"'\"&F2091&\"'!\"&G2091)),\"\",INDIRECT(\"'\"&F2091&\"'!\"&G2091))","v":""},{"$f":"IF(ISBLANK(INDIRECT(\"'\"&F2091&\"'!\"&H2091)),\"\",IFERROR(VLOOKUP(TEXT(INDIRECT(\"'\"&F2091&\"'!\"&H2091),\"0\"),Notes!$B$5:$C$100,2,FALSE),\"\"))","v":""},"2a","$M$52","$N$52"]
[13714,{"$f":"Menu!$F$29","v":"X"},{"$f":"Menu!$J$29","v":2020},{"$f":"IF(ISBLANK(INDIRECT(\"'\"&F2092&\"'!\"&G2092)),\"\",INDIRECT(\"'\"&F2092&\"'!\"&G2092))","v":""},{"$f":"IF(ISBLANK(INDIRECT(\"'\"&F2092&\"'!\"&H2092)),\"\",IFERROR(VLOOKUP(TEXT(INDIRECT(\"'\"&F2092&\"'!\"&H2092),\"0\"),Notes!$B$5:$C$100,2,FALSE),\"\"))","v":""},"2a","$O$52","$P$52"]
[13715,{"$f":"Menu!$F$29","v":"X"},{"$f":"Menu!$J$29","v":2020},{"$f":"IF(ISBLANK(INDIRECT(\"'\"&F2093&\"'!\"&G2093)),\"\",INDIRECT(\"'\"&F2093&\"'!\"&G2093))","v":""},{"$f":"IF(ISBLANK(INDIRECT(\"'\"&F2093&\"'!\"&H2093)),\"\",IFERROR(VLOOKUP(TEXT(INDIRECT(\"'\"&F2093&\"'!\"&H2093),\"0\"),Notes!$B$5:$C$100,2,FALSE),\"\"))","v":""},"2a","$Q$52","$R$52"]
[13716,{"$f":"Menu!$F$29","v":"X"},{"$f":"Menu!$J$29","v":2020},{"$f":"IF(ISBLANK(INDIRECT(\"'\"&F2094&\"'!\"&G2094)),\"\",INDIRECT(\"'\"&F2094&\"'!\"&G2094))","v":""},{"$f":"IF(ISBLANK(INDIRECT(\"'\"&F2094&\"'!\"&H2094)),\"\",IFERROR(VLOOKUP(TEXT(INDIRECT(\"'\"&F2094&\"'!\"&H2094),\"0\"),Notes!$B$5:$C$100,2,FALSE),\"\"))","v":""},"2a","$S$52","$T$52"]
[13717,{"$f":"Menu!$F$29","v":"X"},{"$f":"Menu!$J$29","v":2020},{"$f":"IF(ISBLANK(INDIRECT(\"'\"&F2095&\"'!\"&G2095)),\"\",INDIRECT(\"'\"&F2095&\"'!\"&G2095))","v":""},{"$f":"IF(ISBLANK(INDIRECT(\"'\"&F2095&\"'!\"&H2095)),\"\",IFERROR(VLOOKUP(TEXT(INDIRECT(\"'\"&F2095&\"'!\"&H2095),\"0\"),Notes!$B$5:$C$100,2,FALSE),\"\"))","v":""},"2a","$U$52","$V$52"]
[13718,{"$f":"Menu!$F$29","v":"X"},{"$f":"Menu!$J$29","v":2020},{"$f":"IF(ISBLANK(INDIRECT(\"'\"&F2096&\"'!\"&G2096)),\"\",INDIRECT(\"'\"&F2096&\"'!\"&G2096))","v":""},{"$f":"IF(ISBLANK(INDIRECT(\"'\"&F2096&\"'!\"&H2096)),\"\",IFERROR(VLOOKUP(TEXT(INDIRECT(\"'\"&F2096&\"'!\"&H2096),\"0\"),Notes!$B$5:$C$100,2,FALSE),\"\"))","v":""},"2a","$E$40","$F$40"]
[13719,{"$f":"Menu!$F$29","v":"X"},{"$f":"Menu!$J$29","v":2020},{"$f":"IF(ISBLANK(INDIRECT(\"'\"&F2097&\"'!\"&G2097)),\"\",INDIRECT(\"'\"&F2097&\"'!\"&G2097))","v":""},{"$f":"IF(ISBLANK(INDIRECT(\"'\"&F2097&\"'!\"&H2097)),\"\",IFERROR(VLOOKUP(TEXT(INDIRECT(\"'\"&F2097&\"'!\"&H2097),\"0\"),Notes!$B$5:$C$100,2,FALSE),\"\"))","v":""},"2a","$G$40","$H$40"]
[13720,{"$f":"Menu!$F$29","v":"X"},{"$f":"Menu!$J$29","v":2020},{"$f":"IF(ISBLANK(INDIRECT(\"'\"&F2098&\"'!\"&G2098)),\"\",INDIRECT(\"'\"&F2098&\"'!\"&G2098))","v":""},{"$f":"IF(ISBLANK(INDIRECT(\"'\"&F2098&\"'!\"&H2098)),\"\",IFERROR(VLOOKUP(TEXT(INDIRECT(\"'\"&F2098&\"'!\"&H2098),\"0\"),Notes!$B$5:$C$100,2,FALSE),\"\"))","v":""},"2a","$I$40","$J$40"]
[13721,{"$f":"Menu!$F$29","v":"X"},{"$f":"Menu!$J$29","v":2020},{"$f":"IF(ISBLANK(INDIRECT(\"'\"&F2099&\"'!\"&G2099)),\"\",INDIRECT(\"'\"&F2099&\"'!\"&G2099))","v":""},{"$f":"IF(ISBLANK(INDIRECT(\"'\"&F2099&\"'!\"&H2099)),\"\",IFERROR(VLOOKUP(TEXT(INDIRECT(\"'\"&F2099&\"'!\"&H2099),\"0\"),Notes!$B$5:$C$100,2,FALSE),\"\"))","v":""},"2a","$K$40","$L$40"]
[13722,{"$f":"Menu!$F$29","v":"X"},{"$f":"Menu!$J$29","v":2020},{"$f":"IF(ISBLANK(INDIRECT(\"'\"&F2100&\"'!\"&G2100)),\"\",INDIRECT(\"'\"&F2100&\"'!\"&G2100))","v":""},{"$f":"IF(ISBLANK(INDIRECT(\"'\"&F2100&\"'!\"&H2100)),\"\",IFERROR(VLOOKUP(TEXT(INDIRECT(\"'\"&F2100&\"'!\"&H2100),\"0\"),Notes!$B$5:$C$100,2,FALSE),\"\"))","v":""},"2a","$M$40","$N$40"]
[13723,{"$f":"Menu!$F$29","v":"X"},{"$f":"Menu!$J$29","v":2020},{"$f":"IF(ISBLANK(INDIRECT(\"'\"&F2101&\"'!\"&G2101)),\"\",INDIRECT(\"'\"&F2101&\"'!\"&G2101))","v":""},{"$f":"IF(ISBLANK(INDIRECT(\"'\"&F2101&\"'!\"&H2101)),\"\",IFERROR(VLOOKUP(TEXT(INDIRECT(\"'\"&F2101&\"'!\"&H2101),\"0\"),Notes!$B$5:$C$100,2,FALSE),\"\"))","v":""},"2a","$O$40","$P$40"]
[13724,{"$f":"Menu!$F$29","v":"X"},{"$f":"Menu!$J$29","v":2020},{"$f":"IF(ISBLANK(INDIRECT(\"'\"&F2102&\"'!\"&G2102)),\"\",INDIRECT(\"'\"&F2102&\"'!\"&G2102))","v":""},{"$f":"IF(ISBLANK(INDIRECT(\"'\"&F2102&\"'!\"&H2102)),\"\",IFERROR(VLOOKUP(TEXT(INDIRECT(\"'\"&F2102&\"'!\"&H2102),\"0\"),Notes!$B$5:$C$100,2,FALSE),\"\"))","v":""},"2a","$Q$40","$R$40"]
[13725,{"$f":"Menu!$F$29","v":"X"},{"$f":"Menu!$J$29","v":2020},{"$f":"IF(ISBLANK(INDIRECT(\"'\"&F2103&\"'!\"&G2103)),\"\",INDIRECT(\"'\"&F2103&\"'!\"&G2103))","v":""},{"$f":"IF(ISBLANK(INDIRECT(\"'\"&F2103&\"'!\"&H2103)),\"\",IFERROR(VLOOKUP(TEXT(INDIRECT(\"'\"&F2103&\"'!\"&H2103),\"0\"),Notes!$B$5:$C$100,2,FALSE),\"\"))","v":""},"2a","$S$40","$T$40"]
[13726,{"$f":"Menu!$F$29","v":"X"},{"$f":"Menu!$J$29","v":2020},{"$f":"IF(ISBLANK(INDIRECT(\"'\"&F2104&\"'!\"&G2104)),\"\",INDIRECT(\"'\"&F2104&\"'!\"&G2104))","v":""},{"$f":"IF(ISBLANK(INDIRECT(\"'\"&F2104&\"'!\"&H2104)),\"\",IFERROR(VLOOKUP(TEXT(INDIRECT(\"'\"&F2104&\"'!\"&H2104),\"0\"),Notes!$B$5:$C$100,2,FALSE),\"\"))","v":""},"2a","$U$40","$V$40"]
[13736,{"$f":"Menu!$F$29","v":"X"},{"$f":"Menu!$J$29","v":2020},{"$f":"IF(ISBLANK(INDIRECT(\"'\"&F2105&\"'!\"&G2105)),\"\",INDIRECT(\"'\"&F2105&\"'!\"&G2105))","v":""},{"$f":"IF(ISBLANK(INDIRECT(\"'\"&F2105&\"'!\"&H2105)),\"\",IFERROR(VLOOKUP(TEXT(INDIRECT(\"'\"&F2105&\"'!\"&H2105),\"0\"),Notes!$B$5:$C$100,2,FALSE),\"\"))","v":""},"2a","$E$42","$F$42"]
[13737,{"$f":"Menu!$F$29","v":"X"},{"$f":"Menu!$J$29","v":2020},{"$f":"IF(ISBLANK(INDIRECT(\"'\"&F2106&\"'!\"&G2106)),\"\",INDIRECT(\"'\"&F2106&\"'!\"&G2106))","v":""},{"$f":"IF(ISBLANK(INDIRECT(\"'\"&F2106&\"'!\"&H2106)),\"\",IFERROR(VLOOKUP(TEXT(INDIRECT(\"'\"&F2106&\"'!\"&H2106),\"0\"),Notes!$B$5:$C$100,2,FALSE),\"\"))","v":""},"2a","$G$42","$H$42"]
[13738,{"$f":"Menu!$F$29","v":"X"},{"$f":"Menu!$J$29","v":2020},{"$f":"IF(ISBLANK(INDIRECT(\"'\"&F2107&\"'!\"&G2107)),\"\",INDIRECT(\"'\"&F2107&\"'!\"&G2107))","v":""},{"$f":"IF(ISBLANK(INDIRECT(\"'\"&F2107&\"'!\"&H2107)),\"\",IFERROR(VLOOKUP(TEXT(INDIRECT(\"'\"&F2107&\"'!\"&H2107),\"0\"),Notes!$B$5:$C$100,2,FALSE),\"\"))","v":""},"2a","$I$42","$J$42"]
[13739,{"$f":"Menu!$F$29","v":"X"},{"$f":"Menu!$J$29","v":2020},{"$f":"IF(ISBLANK(INDIRECT(\"'\"&F2108&\"'!\"&G2108)),\"\",INDIRECT(\"'\"&F2108&\"'!\"&G2108))","v":""},{"$f":"IF(ISBLANK(INDIRECT(\"'\"&F2108&\"'!\"&H2108)),\"\",IFERROR(VLOOKUP(TEXT(INDIRECT(\"'\"&F2108&\"'!\"&H2108),\"0\"),Notes!$B$5:$C$100,2,FALSE),\"\"))","v":""},"2a","$K$42","$L$42"]
[13740,{"$f":"Menu!$F$29","v":"X"},{"$f":"Menu!$J$29","v":2020},{"$f":"IF(ISBLANK(INDIRECT(\"'\"&F2109&\"'!\"&G2109)),\"\",INDIRECT(\"'\"&F2109&\"'!\"&G2109))","v":""},{"$f":"IF(ISBLANK(INDIRECT(\"'\"&F2109&\"'!\"&H2109)),\"\",IFERROR(VLOOKUP(TEXT(INDIRECT(\"'\"&F2109&\"'!\"&H2109),\"0\"),Notes!$B$5:$C$100,2,FALSE),\"\"))","v":""},"2a","$M$42","$N$42"]
[13741,{"$f":"Menu!$F$29","v":"X"},{"$f":"Menu!$J$29","v":2020},{"$f":"IF(ISBLANK(INDIRECT(\"'\"&F2110&\"'!\"&G2110)),\"\",INDIRECT(\"'\"&F2110&\"'!\"&G2110))","v":""},{"$f":"IF(ISBLANK(INDIRECT(\"'\"&F2110&\"'!\"&H2110)),\"\",IFERROR(VLOOKUP(TEXT(INDIRECT(\"'\"&F2110&\"'!\"&H2110),\"0\"),Notes!$B$5:$C$100,2,FALSE),\"\"))","v":""},"2a","$O$42","$P$42"]
[13742,{"$f":"Menu!$F$29","v":"X"},{"$f":"Menu!$J$29","v":2020},{"$f":"IF(ISBLANK(INDIRECT(\"'\"&F2111&\"'!\"&G2111)),\"\",INDIRECT(\"'\"&F2111&\"'!\"&G2111))","v":""},{"$f":"IF(ISBLANK(INDIRECT(\"'\"&F2111&\"'!\"&H2111)),\"\",IFERROR(VLOOKUP(TEXT(INDIRECT(\"'\"&F2111&\"'!\"&H2111),\"0\"),Notes!$B$5:$C$100,2,FALSE),\"\"))","v":""},"2a","$Q$42","$R$42"]
[13743,{"$f":"Menu!$F$29","v":"X"},{"$f":"Menu!$J$29","v":2020},{"$f":"IF(ISBLANK(INDIRECT(\"'\"&F2112&\"'!\"&G2112)),\"\",INDIRECT(\"'\"&F2112&\"'!\"&G2112))","v":""},{"$f":"IF(ISBLANK(INDIRECT(\"'\"&F2112&\"'!\"&H2112)),\"\",IFERROR(VLOOKUP(TEXT(INDIRECT(\"'\"&F2112&\"'!\"&H2112),\"0\"),Notes!$B$5:$C$100,2,FALSE),\"\"))","v":""},"2a","$S$42","$T$42"]
[13744,{"$f":"Menu!$F$29","v":"X"},{"$f":"Menu!$J$29","v":2020},{"$f":"IF(ISBLANK(INDIRECT(\"'\"&F2113&\"'!\"&G2113)),\"\",INDIRECT(\"'\"&F2113&\"'!\"&G2113))","v":""},{"$f":"IF(ISBLANK(INDIRECT(\"'\"&F2113&\"'!\"&H2113)),\"\",IFERROR(VLOOKUP(TEXT(INDIRECT(\"'\"&F2113&\"'!\"&H2113),\"0\"),Notes!$B$5:$C$100,2,FALSE),\"\"))","v":""},"2a","$U$42","$V$42"]
[13745,{"$f":"Menu!$F$29","v":"X"},{"$f":"Menu!$J$29","v":2020},{"$f":"IF(ISBLANK(INDIRECT(\"'\"&F2114&\"'!\"&G2114)),\"\",INDIRECT(\"'\"&F2114&\"'!\"&G2114))","v":""},{"$f":"IF(ISBLANK(INDIRECT(\"'\"&F2114&\"'!\"&H2114)),\"\",IFERROR(VLOOKUP(TEXT(INDIRECT(\"'\"&F2114&\"'!\"&H2114),\"0\"),Notes!$B$5:$C$100,2,FALSE),\"\"))","v":""},"2b","$E$12",{"$f":"IF(LEN(TRIM(MID(G2114,4,10)))-LEN(SUBSTITUTE(TRIM(MID(G2114,4,10)),\"$\",\"\"))=0,\"$\"&CHAR(CODE(MID(G2114,2,1))+1)&\"$\"&TRIM(MID(G2114,4,10)),\"$\"&MID(G2114,2,1)&CHAR(CODE(MID(G2114,3,1))+1)&\"$\"&TRIM(MID(G2114,5,11)))","v":"$F$12"}]
[13746,{"$f":"Menu!$F$29","v":"X"},{"$f":"Menu!$J$29","v":2020},{"$f":"IF(ISBLANK(INDIRECT(\"'\"&F2115&\"'!\"&G2115)),\"\",INDIRECT(\"'\"&F2115&\"'!\"&G2115))","v":""},{"$f":"IF(ISBLANK(INDIRECT(\"'\"&F2115&\"'!\"&H2115)),\"\",IFERROR(VLOOKUP(TEXT(INDIRECT(\"'\"&F2115&\"'!\"&H2115),\"0\"),Notes!$B$5:$C$100,2,FALSE),\"\"))","v":""},"2b","$G$12","$H$12"]
[13747,{"$f":"Menu!$F$29","v":"X"},{"$f":"Menu!$J$29","v":2020},{"$f":"IF(ISBLANK(INDIRECT(\"'\"&F2116&\"'!\"&G2116)),\"\",INDIRECT(\"'\"&F2116&\"'!\"&G2116))","v":""},{"$f":"IF(ISBLANK(INDIRECT(\"'\"&F2116&\"'!\"&H2116)),\"\",IFERROR(VLOOKUP(TEXT(INDIRECT(\"'\"&F2116&\"'!\"&H2116),\"0\"),Notes!$B$5:$C$100,2,FALSE),\"\"))","v":""},"2b","$I$12","$J$12"]
[13748,{"$f":"Menu!$F$29","v":"X"},{"$f":"Menu!$J$29","v":2020},{"$f":"IF(ISBLANK(INDIRECT(\"'\"&F2117&\"'!\"&G2117)),\"\",INDIRECT(\"'\"&F2117&\"'!\"&G2117))","v":""},{"$f":"IF(ISBLANK(INDIRECT(\"'\"&F2117&\"'!\"&H2117)),\"\",IFERROR(VLOOKUP(TEXT(INDIRECT(\"'\"&F2117&\"'!\"&H2117),\"0\"),Notes!$B$5:$C$100,2,FALSE),\"\"))","v":""},"2b","$K$12","$L$12"]
[13749,{"$f":"Menu!$F$29","v":"X"},{"$f":"Menu!$J$29","v":2020},{"$f":"IF(ISBLANK(INDIRECT(\"'\"&F2118&\"'!\"&G2118)),\"\",INDIRECT(\"'\"&F2118&\"'!\"&G2118))","v":""},{"$f":"IF(ISBLANK(INDIRECT(\"'\"&F2118&\"'!\"&H2118)),\"\",IFERROR(VLOOKUP(TEXT(INDIRECT(\"'\"&F2118&\"'!\"&H2118),\"0\"),Notes!$B$5:$C$100,2,FALSE),\"\"))","v":""},"2b","$M$12","$N$12"]
[13750,{"$f":"Menu!$F$29","v":"X"},{"$f":"Menu!$J$29","v":2020},{"$f":"IF(ISBLANK(INDIRECT(\"'\"&F2119&\"'!\"&G2119)),\"\",INDIRECT(\"'\"&F2119&\"'!\"&G2119))","v":""},{"$f":"IF(ISBLANK(INDIRECT(\"'\"&F2119&\"'!\"&H2119)),\"\",IFERROR(VLOOKUP(TEXT(INDIRECT(\"'\"&F2119&\"'!\"&H2119),\"0\"),Notes!$B$5:$C$100,2,FALSE),\"\"))","v":""},"2b","$O$12","$P$12"]
[13751,{"$f":"Menu!$F$29","v":"X"},{"$f":"Menu!$J$29","v":2020},{"$f":"IF(ISBLANK(INDIRECT(\"'\"&F2120&\"'!\"&G2120)),\"\",INDIRECT(\"'\"&F2120&\"'!\"&G2120))","v":""},{"$f":"IF(ISBLANK(INDIRECT(\"'\"&F2120&\"'!\"&H2120)),\"\",IFERROR(VLOOKUP(TEXT(INDIRECT(\"'\"&F2120&\"'!\"&H2120),\"0\"),Notes!$B$5:$C$100,2,FALSE),\"\"))","v":""},"2b","$Q$12","$R$12"]
[13752,{"$f":"Menu!$F$29","v":"X"},{"$f":"Menu!$J$29","v":2020},{"$f":"IF(ISBLANK(INDIRECT(\"'\"&F2121&\"'!\"&G2121)),\"\",INDIRECT(\"'\"&F2121&\"'!\"&G2121))","v":""},{"$f":"IF(ISBLANK(INDIRECT(\"'\"&F2121&\"'!\"&H2121)),\"\",IFERROR(VLOOKUP(TEXT(INDIRECT(\"'\"&F2121&\"'!\"&H2121),\"0\"),Notes!$B$5:$C$100,2,FALSE),\"\"))","v":""},"2b","$S$12","$T$12"]
[13753,{"$f":"Menu!$F$29","v":"X"},{"$f":"Menu!$J$29","v":2020},{"$f":"IF(ISBLANK(INDIRECT(\"'\"&F2122&\"'!\"&G2122)),\"\",INDIRECT(\"'\"&F2122&\"'!\"&G2122))","v":""},{"$f":"IF(ISBLANK(INDIRECT(\"'\"&F2122&\"'!\"&H2122)),\"\",IFERROR(VLOOKUP(TEXT(INDIRECT(\"'\"&F2122&\"'!\"&H2122),\"0\"),Notes!$B$5:$C$100,2,FALSE),\"\"))","v":""},"2b","$U$12","$V$12"]
[13754,{"$f":"Menu!$F$29","v":"X"},{"$f":"Menu!$J$29","v":2020},{"$f":"IF(ISBLANK(INDIRECT(\"'\"&F2123&\"'!\"&G2123)),\"\",INDIRECT(\"'\"&F2123&\"'!\"&G2123))","v":""},{"$f":"IF(ISBLANK(INDIRECT(\"'\"&F2123&\"'!\"&H2123)),\"\",IFERROR(VLOOKUP(TEXT(INDIRECT(\"'\"&F2123&\"'!\"&H2123),\"0\"),Notes!$B$5:$C$100,2,FALSE),\"\"))","v":""},"2b","$W$12","$X$12"]
[13755,{"$f":"Menu!$F$29","v":"X"},{"$f":"Menu!$J$29","v":2020},{"$f":"IF(ISBLANK(INDIRECT(\"'\"&F2124&\"'!\"&G2124)),\"\",INDIRECT(\"'\"&F2124&\"'!\"&G2124))","v":""},{"$f":"IF(ISBLANK(INDIRECT(\"'\"&F2124&\"'!\"&H2124)),\"\",IFERROR(VLOOKUP(TEXT(INDIRECT(\"'\"&F2124&\"'!\"&H2124),\"0\"),Notes!$B$5:$C$100,2,FALSE),\"\"))","v":""},"2b","$Y$12","$Z$12"]
[13756,{"$f":"Menu!$F$29","v":"X"},{"$f":"Menu!$J$29","v":2020},{"$f":"IF(ISBLANK(INDIRECT(\"'\"&F2125&\"'!\"&G2125)),\"\",INDIRECT(\"'\"&F2125&\"'!\"&G2125))","v":""},{"$f":"IF(ISBLANK(INDIRECT(\"'\"&F2125&\"'!\"&H2125)),\"\",IFERROR(VLOOKUP(TEXT(INDIRECT(\"'\"&F2125&\"'!\"&H2125),\"0\"),Notes!$B$5:$C$100,2,FALSE),\"\"))","v":""},"2b","$AA$12","$AB$12"]
[13757,{"$f":"Menu!$F$29","v":"X"},{"$f":"Menu!$J$29","v":2020},{"$f":"IF(ISBLANK(INDIRECT(\"'\"&F2126&\"'!\"&G2126)),\"\",INDIRECT(\"'\"&F2126&\"'!\"&G2126))","v":""},{"$f":"IF(ISBLANK(INDIRECT(\"'\"&F2126&\"'!\"&H2126)),\"\",IFERROR(VLOOKUP(TEXT(INDIRECT(\"'\"&F2126&\"'!\"&H2126),\"0\"),Notes!$B$5:$C$100,2,FALSE),\"\"))","v":""},"2b","$E$13","$F$13"]
[13758,{"$f":"Menu!$F$29","v":"X"},{"$f":"Menu!$J$29","v":2020},{"$f":"IF(ISBLANK(INDIRECT(\"'\"&F2127&\"'!\"&G2127)),\"\",INDIRECT(\"'\"&F2127&\"'!\"&G2127))","v":""},{"$f":"IF(ISBLANK(INDIRECT(\"'\"&F2127&\"'!\"&H2127)),\"\",IFERROR(VLOOKUP(TEXT(INDIRECT(\"'\"&F2127&\"'!\"&H2127),\"0\"),Notes!$B$5:$C$100,2,FALSE),\"\"))","v":""},"2b","$G$13","$H$13"]
[13759,{"$f":"Menu!$F$29","v":"X"},{"$f":"Menu!$J$29","v":2020},{"$f":"IF(ISBLANK(INDIRECT(\"'\"&F2128&\"'!\"&G2128)),\"\",INDIRECT(\"'\"&F2128&\"'!\"&G2128))","v":""},{"$f":"IF(ISBLANK(INDIRECT(\"'\"&F2128&\"'!\"&H2128)),\"\",IFERROR(VLOOKUP(TEXT(INDIRECT(\"'\"&F2128&\"'!\"&H2128),\"0\"),Notes!$B$5:$C$100,2,FALSE),\"\"))","v":""},"2b","$I$13","$J$13"]
[13760,{"$f":"Menu!$F$29","v":"X"},{"$f":"Menu!$J$29","v":2020},{"$f":"IF(ISBLANK(INDIRECT(\"'\"&F2129&\"'!\"&G2129)),\"\",INDIRECT(\"'\"&F2129&\"'!\"&G2129))","v":""},{"$f":"IF(ISBLANK(INDIRECT(\"'\"&F2129&\"'!\"&H2129)),\"\",IFERROR(VLOOKUP(TEXT(INDIRECT(\"'\"&F2129&\"'!\"&H2129),\"0\"),Notes!$B$5:$C$100,2,FALSE),\"\"))","v":""},"2b","$K$13","$L$13"]
[13761,{"$f":"Menu!$F$29","v":"X"},{"$f":"Menu!$J$29","v":2020},{"$f":"IF(ISBLANK(INDIRECT(\"'\"&F2130&\"'!\"&G2130)),\"\",INDIRECT(\"'\"&F2130&\"'!\"&G2130))","v":""},{"$f":"IF(ISBLANK(INDIRECT(\"'\"&F2130&\"'!\"&H2130)),\"\",IFERROR(VLOOKUP(TEXT(INDIRECT(\"'\"&F2130&\"'!\"&H2130),\"0\"),Notes!$B$5:$C$100,2,FALSE),\"\"))","v":""},"2b","$M$13","$N$13"]
[13762,{"$f":"Menu!$F$29","v":"X"},{"$f":"Menu!$J$29","v":2020},{"$f":"IF(ISBLANK(INDIRECT(\"'\"&F2131&\"'!\"&G2131)),\"\",INDIRECT(\"'\"&F2131&\"'!\"&G2131))","v":""},{"$f":"IF(ISBLANK(INDIRECT(\"'\"&F2131&\"'!\"&H2131)),\"\",IFERROR(VLOOKUP(TEXT(INDIRECT(\"'\"&F2131&\"'!\"&H2131),\"0\"),Notes!$B$5:$C$100,2,FALSE),\"\"))","v":""},"2b","$O$13","$P$13"]
[13763,{"$f":"Menu!$F$29","v":"X"},{"$f":"Menu!$J$29","v":2020},{"$f":"IF(ISBLANK(INDIRECT(\"'\"&F2132&\"'!\"&G2132)),\"\",INDIRECT(\"'\"&F2132&\"'!\"&G2132))","v":""},{"$f":"IF(ISBLANK(INDIRECT(\"'\"&F2132&\"'!\"&H2132)),\"\",IFERROR(VLOOKUP(TEXT(INDIRECT(\"'\"&F2132&\"'!\"&H2132),\"0\"),Notes!$B$5:$C$100,2,FALSE),\"\"))","v":""},"2b","$Q$13","$R$13"]
[13764,{"$f":"Menu!$F$29","v":"X"},{"$f":"Menu!$J$29","v":2020},{"$f":"IF(ISBLANK(INDIRECT(\"'\"&F2133&\"'!\"&G2133)),\"\",INDIRECT(\"'\"&F2133&\"'!\"&G2133))","v":""},{"$f":"IF(ISBLANK(INDIRECT(\"'\"&F2133&\"'!\"&H2133)),\"\",IFERROR(VLOOKUP(TEXT(INDIRECT(\"'\"&F2133&\"'!\"&H2133),\"0\"),Notes!$B$5:$C$100,2,FALSE),\"\"))","v":""},"2b","$S$13","$T$13"]
[13765,{"$f":"Menu!$F$29","v":"X"},{"$f":"Menu!$J$29","v":2020},{"$f":"IF(ISBLANK(INDIRECT(\"'\"&F2134&\"'!\"&G2134)),\"\",INDIRECT(\"'\"&F2134&\"'!\"&G2134))","v":""},{"$f":"IF(ISBLANK(INDIRECT(\"'\"&F2134&\"'!\"&H2134)),\"\",IFERROR(VLOOKUP(TEXT(INDIRECT(\"'\"&F2134&\"'!\"&H2134),\"0\"),Notes!$B$5:$C$100,2,FALSE),\"\"))","v":""},"2b","$U$13","$V$13"]
[13766,{"$f":"Menu!$F$29","v":"X"},{"$f":"Menu!$J$29","v":2020},{"$f":"IF(ISBLANK(INDIRECT(\"'\"&F2135&\"'!\"&G2135)),\"\",INDIRECT(\"'\"&F2135&\"'!\"&G2135))","v":""},{"$f":"IF(ISBLANK(INDIRECT(\"'\"&F2135&\"'!\"&H2135)),\"\",IFERROR(VLOOKUP(TEXT(INDIRECT(\"'\"&F2135&\"'!\"&H2135),\"0\"),Notes!$B$5:$C$100,2,FALSE),\"\"))","v":""},"2b","$W$13","$X$13"]
[13767,{"$f":"Menu!$F$29","v":"X"},{"$f":"Menu!$J$29","v":2020},{"$f":"IF(ISBLANK(INDIRECT(\"'\"&F2136&\"'!\"&G2136)),\"\",INDIRECT(\"'\"&F2136&\"'!\"&G2136))","v":""},{"$f":"IF(ISBLANK(INDIRECT(\"'\"&F2136&\"'!\"&H2136)),\"\",IFERROR(VLOOKUP(TEXT(INDIRECT(\"'\"&F2136&\"'!\"&H2136),\"0\"),Notes!$B$5:$C$100,2,FALSE),\"\"))","v":""},"2b","$Y$13","$Z$13"]
[13768,{"$f":"Menu!$F$29","v":"X"},{"$f":"Menu!$J$29","v":2020},{"$f":"IF(ISBLANK(INDIRECT(\"'\"&F2137&\"'!\"&G2137)),\"\",INDIRECT(\"'\"&F2137&\"'!\"&G2137))","v":""},{"$f":"IF(ISBLANK(INDIRECT(\"'\"&F2137&\"'!\"&H2137)),\"\",IFERROR(VLOOKUP(TEXT(INDIRECT(\"'\"&F2137&\"'!\"&H2137),\"0\"),Notes!$B$5:$C$100,2,FALSE),\"\"))","v":""},"2b","$AA$13","$AB$13"]
[13769,{"$f":"Menu!$F$29","v":"X"},{"$f":"Menu!$J$29","v":2020},{"$f":"IF(ISBLANK(INDIRECT(\"'\"&F2138&\"'!\"&G2138)),\"\",INDIRECT(\"'\"&F2138&\"'!\"&G2138))","v":""},{"$f":"IF(ISBLANK(INDIRECT(\"'\"&F2138&\"'!\"&H2138)),\"\",IFERROR(VLOOKUP(TEXT(INDIRECT(\"'\"&F2138&\"'!\"&H2138),\"0\"),Notes!$B$5:$C$100,2,FALSE),\"\"))","v":""},"2b","$E$14","$F$14"]
[13770,{"$f":"Menu!$F$29","v":"X"},{"$f":"Menu!$J$29","v":2020},{"$f":"IF(ISBLANK(INDIRECT(\"'\"&F2139&\"'!\"&G2139)),\"\",INDIRECT(\"'\"&F2139&\"'!\"&G2139))","v":""},{"$f":"IF(ISBLANK(INDIRECT(\"'\"&F2139&\"'!\"&H2139)),\"\",IFERROR(VLOOKUP(TEXT(INDIRECT(\"'\"&F2139&\"'!\"&H2139),\"0\"),Notes!$B$5:$C$100,2,FALSE),\"\"))","v":""},"2b","$G$14","$H$14"]
[13771,{"$f":"Menu!$F$29","v":"X"},{"$f":"Menu!$J$29","v":2020},{"$f":"IF(ISBLANK(INDIRECT(\"'\"&F2140&\"'!\"&G2140)),\"\",INDIRECT(\"'\"&F2140&\"'!\"&G2140))","v":""},{"$f":"IF(ISBLANK(INDIRECT(\"'\"&F2140&\"'!\"&H2140)),\"\",IFERROR(VLOOKUP(TEXT(INDIRECT(\"'\"&F2140&\"'!\"&H2140),\"0\"),Notes!$B$5:$C$100,2,FALSE),\"\"))","v":""},"2b","$I$14","$J$14"]
[13772,{"$f":"Menu!$F$29","v":"X"},{"$f":"Menu!$J$29","v":2020},{"$f":"IF(ISBLANK(INDIRECT(\"'\"&F2141&\"'!\"&G2141)),\"\",INDIRECT(\"'\"&F2141&\"'!\"&G2141))","v":""},{"$f":"IF(ISBLANK(INDIRECT(\"'\"&F2141&\"'!\"&H2141)),\"\",IFERROR(VLOOKUP(TEXT(INDIRECT(\"'\"&F2141&\"'!\"&H2141),\"0\"),Notes!$B$5:$C$100,2,FALSE),\"\"))","v":""},"2b","$K$14","$L$14"]
[13773,{"$f":"Menu!$F$29","v":"X"},{"$f":"Menu!$J$29","v":2020},{"$f":"IF(ISBLANK(INDIRECT(\"'\"&F2142&\"'!\"&G2142)),\"\",INDIRECT(\"'\"&F2142&\"'!\"&G2142))","v":""},{"$f":"IF(ISBLANK(INDIRECT(\"'\"&F2142&\"'!\"&H2142)),\"\",IFERROR(VLOOKUP(TEXT(INDIRECT(\"'\"&F2142&\"'!\"&H2142),\"0\"),Notes!$B$5:$C$100,2,FALSE),\"\"))","v":""},"2b","$M$14","$N$14"]
[13774,{"$f":"Menu!$F$29","v":"X"},{"$f":"Menu!$J$29","v":2020},{"$f":"IF(ISBLANK(INDIRECT(\"'\"&F2143&\"'!\"&G2143)),\"\",INDIRECT(\"'\"&F2143&\"'!\"&G2143))","v":""},{"$f":"IF(ISBLANK(INDIRECT(\"'\"&F2143&\"'!\"&H2143)),\"\",IFERROR(VLOOKUP(TEXT(INDIRECT(\"'\"&F2143&\"'!\"&H2143),\"0\"),Notes!$B$5:$C$100,2,FALSE),\"\"))","v":""},"2b","$O$14","$P$14"]
[13775,{"$f":"Menu!$F$29","v":"X"},{"$f":"Menu!$J$29","v":2020},{"$f":"IF(ISBLANK(INDIRECT(\"'\"&F2144&\"'!\"&G2144)),\"\",INDIRECT(\"'\"&F2144&\"'!\"&G2144))","v":""},{"$f":"IF(ISBLANK(INDIRECT(\"'\"&F2144&\"'!\"&H2144)),\"\",IFERROR(VLOOKUP(TEXT(INDIRECT(\"'\"&F2144&\"'!\"&H2144),\"0\"),Notes!$B$5:$C$100,2,FALSE),\"\"))","v":""},"2b","$Q$14","$R$14"]
[13776,{"$f":"Menu!$F$29","v":"X"},{"$f":"Menu!$J$29","v":2020},{"$f":"IF(ISBLANK(INDIRECT(\"'\"&F2145&\"'!\"&G2145)),\"\",INDIRECT(\"'\"&F2145&\"'!\"&G2145))","v":""},{"$f":"IF(ISBLANK(INDIRECT(\"'\"&F2145&\"'!\"&H2145)),\"\",IFERROR(VLOOKUP(TEXT(INDIRECT(\"'\"&F2145&\"'!\"&H2145),\"0\"),Notes!$B$5:$C$100,2,FALSE),\"\"))","v":""},"2b","$S$14","$T$14"]
[13777,{"$f":"Menu!$F$29","v":"X"},{"$f":"Menu!$J$29","v":2020},{"$f":"IF(ISBLANK(INDIRECT(\"'\"&F2146&\"'!\"&G2146)),\"\",INDIRECT(\"'\"&F2146&\"'!\"&G2146))","v":""},{"$f":"IF(ISBLANK(INDIRECT(\"'\"&F2146&\"'!\"&H2146)),\"\",IFERROR(VLOOKUP(TEXT(INDIRECT(\"'\"&F2146&\"'!\"&H2146),\"0\"),Notes!$B$5:$C$100,2,FALSE),\"\"))","v":""},"2b","$U$14","$V$14"]
[13778,{"$f":"Menu!$F$29","v":"X"},{"$f":"Menu!$J$29","v":2020},{"$f":"IF(ISBLANK(INDIRECT(\"'\"&F2147&\"'!\"&G2147)),\"\",INDIRECT(\"'\"&F2147&\"'!\"&G2147))","v":""},{"$f":"IF(ISBLANK(INDIRECT(\"'\"&F2147&\"'!\"&H2147)),\"\",IFERROR(VLOOKUP(TEXT(INDIRECT(\"'\"&F2147&\"'!\"&H2147),\"0\"),Notes!$B$5:$C$100,2,FALSE),\"\"))","v":""},"2b","$W$14","$X$14"]
[13779,{"$f":"Menu!$F$29","v":"X"},{"$f":"Menu!$J$29","v":2020},{"$f":"IF(ISBLANK(INDIRECT(\"'\"&F2148&\"'!\"&G2148)),\"\",INDIRECT(\"'\"&F2148&\"'!\"&G2148))","v":""},{"$f":"IF(ISBLANK(INDIRECT(\"'\"&F2148&\"'!\"&H2148)),\"\",IFERROR(VLOOKUP(TEXT(INDIRECT(\"'\"&F2148&\"'!\"&H2148),\"0\"),Notes!$B$5:$C$100,2,FALSE),\"\"))","v":""},"2b","$Y$14","$Z$14"]
[13780,{"$f":"Menu!$F$29","v":"X"},{"$f":"Menu!$J$29","v":2020},{"$f":"IF(ISBLANK(INDIRECT(\"'\"&F2149&\"'!\"&G2149)),\"\",INDIRECT(\"'\"&F2149&\"'!\"&G2149))","v":""},{"$f":"IF(ISBLANK(INDIRECT(\"'\"&F2149&\"'!\"&H2149)),\"\",IFERROR(VLOOKUP(TEXT(INDIRECT(\"'\"&F2149&\"'!\"&H2149),\"0\"),Notes!$B$5:$C$100,2,FALSE),\"\"))","v":""},"2b","$AA$14","$AB$14"]
[13781,{"$f":"Menu!$F$29","v":"X"},{"$f":"Menu!$J$29","v":2020},{"$f":"IF(ISBLANK(INDIRECT(\"'\"&F2150&\"'!\"&G2150)),\"\",INDIRECT(\"'\"&F2150&\"'!\"&G2150))","v":""},{"$f":"IF(ISBLANK(INDIRECT(\"'\"&F2150&\"'!\"&H2150)),\"\",IFERROR(VLOOKUP(TEXT(INDIRECT(\"'\"&F2150&\"'!\"&H2150),\"0\"),Notes!$B$5:$C$100,2,FALSE),\"\"))","v":""},"2b","$E$70","$F$70"]
[13782,{"$f":"Menu!$F$29","v":"X"},{"$f":"Menu!$J$29","v":2020},{"$f":"IF(ISBLANK(INDIRECT(\"'\"&F2151&\"'!\"&G2151)),\"\",INDIRECT(\"'\"&F2151&\"'!\"&G2151))","v":""},{"$f":"IF(ISBLANK(INDIRECT(\"'\"&F2151&\"'!\"&H2151)),\"\",IFERROR(VLOOKUP(TEXT(INDIRECT(\"'\"&F2151&\"'!\"&H2151),\"0\"),Notes!$B$5:$C$100,2,FALSE),\"\"))","v":""},"2b","$G$70","$H$70"]
[13783,{"$f":"Menu!$F$29","v":"X"},{"$f":"Menu!$J$29","v":2020},{"$f":"IF(ISBLANK(INDIRECT(\"'\"&F2152&\"'!\"&G2152)),\"\",INDIRECT(\"'\"&F2152&\"'!\"&G2152))","v":""},{"$f":"IF(ISBLANK(INDIRECT(\"'\"&F2152&\"'!\"&H2152)),\"\",IFERROR(VLOOKUP(TEXT(INDIRECT(\"'\"&F2152&\"'!\"&H2152),\"0\"),Notes!$B$5:$C$100,2,FALSE),\"\"))","v":""},"2b","$I$70","$J$70"]
[13784,{"$f":"Menu!$F$29","v":"X"},{"$f":"Menu!$J$29","v":2020},{"$f":"IF(ISBLANK(INDIRECT(\"'\"&F2153&\"'!\"&G2153)),\"\",INDIRECT(\"'\"&F2153&\"'!\"&G2153))","v":""},{"$f":"IF(ISBLANK(INDIRECT(\"'\"&F2153&\"'!\"&H2153)),\"\",IFERROR(VLOOKUP(TEXT(INDIRECT(\"'\"&F2153&\"'!\"&H2153),\"0\"),Notes!$B$5:$C$100,2,FALSE),\"\"))","v":""},"2b","$K$70","$L$70"]
[13785,{"$f":"Menu!$F$29","v":"X"},{"$f":"Menu!$J$29","v":2020},{"$f":"IF(ISBLANK(INDIRECT(\"'\"&F2154&\"'!\"&G2154)),\"\",INDIRECT(\"'\"&F2154&\"'!\"&G2154))","v":""},{"$f":"IF(ISBLANK(INDIRECT(\"'\"&F2154&\"'!\"&H2154)),\"\",IFERROR(VLOOKUP(TEXT(INDIRECT(\"'\"&F2154&\"'!\"&H2154),\"0\"),Notes!$B$5:$C$100,2,FALSE),\"\"))","v":""},"2b","$M$70","$N$70"]
[13786,{"$f":"Menu!$F$29","v":"X"},{"$f":"Menu!$J$29","v":2020},{"$f":"IF(ISBLANK(INDIRECT(\"'\"&F2155&\"'!\"&G2155)),\"\",INDIRECT(\"'\"&F2155&\"'!\"&G2155))","v":""},{"$f":"IF(ISBLANK(INDIRECT(\"'\"&F2155&\"'!\"&H2155)),\"\",IFERROR(VLOOKUP(TEXT(INDIRECT(\"'\"&F2155&\"'!\"&H2155),\"0\"),Notes!$B$5:$C$100,2,FALSE),\"\"))","v":""},"2b","$O$70","$P$70"]
[13787,{"$f":"Menu!$F$29","v":"X"},{"$f":"Menu!$J$29","v":2020},{"$f":"IF(ISBLANK(INDIRECT(\"'\"&F2156&\"'!\"&G2156)),\"\",INDIRECT(\"'\"&F2156&\"'!\"&G2156))","v":""},{"$f":"IF(ISBLANK(INDIRECT(\"'\"&F2156&\"'!\"&H2156)),\"\",IFERROR(VLOOKUP(TEXT(INDIRECT(\"'\"&F2156&\"'!\"&H2156),\"0\"),Notes!$B$5:$C$100,2,FALSE),\"\"))","v":""},"2b","$Q$70","$R$70"]
[13788,{"$f":"Menu!$F$29","v":"X"},{"$f":"Menu!$J$29","v":2020},{"$f":"IF(ISBLANK(INDIRECT(\"'\"&F2157&\"'!\"&G2157)),\"\",INDIRECT(\"'\"&F2157&\"'!\"&G2157))","v":""},{"$f":"IF(ISBLANK(INDIRECT(\"'\"&F2157&\"'!\"&H2157)),\"\",IFERROR(VLOOKUP(TEXT(INDIRECT(\"'\"&F2157&\"'!\"&H2157),\"0\"),Notes!$B$5:$C$100,2,FALSE),\"\"))","v":""},"2b","$S$70","$T$70"]
[13789,{"$f":"Menu!$F$29","v":"X"},{"$f":"Menu!$J$29","v":2020},{"$f":"IF(ISBLANK(INDIRECT(\"'\"&F2158&\"'!\"&G2158)),\"\",INDIRECT(\"'\"&F2158&\"'!\"&G2158))","v":""},{"$f":"IF(ISBLANK(INDIRECT(\"'\"&F2158&\"'!\"&H2158)),\"\",IFERROR(VLOOKUP(TEXT(INDIRECT(\"'\"&F2158&\"'!\"&H2158),\"0\"),Notes!$B$5:$C$100,2,FALSE),\"\"))","v":""},"2b","$U$70","$V$70"]
[13790,{"$f":"Menu!$F$29","v":"X"},{"$f":"Menu!$J$29","v":2020},{"$f":"IF(ISBLANK(INDIRECT(\"'\"&F2159&\"'!\"&G2159)),\"\",INDIRECT(\"'\"&F2159&\"'!\"&G2159))","v":""},{"$f":"IF(ISBLANK(INDIRECT(\"'\"&F2159&\"'!\"&H2159)),\"\",IFERROR(VLOOKUP(TEXT(INDIRECT(\"'\"&F2159&\"'!\"&H2159),\"0\"),Notes!$B$5:$C$100,2,FALSE),\"\"))","v":""},"2b","$W$70","$X$70"]
[13791,{"$f":"Menu!$F$29","v":"X"},{"$f":"Menu!$J$29","v":2020},{"$f":"IF(ISBLANK(INDIRECT(\"'\"&F2160&\"'!\"&G2160)),\"\",INDIRECT(\"'\"&F2160&\"'!\"&G2160))","v":""},{"$f":"IF(ISBLANK(INDIRECT(\"'\"&F2160&\"'!\"&H2160)),\"\",IFERROR(VLOOKUP(TEXT(INDIRECT(\"'\"&F2160&\"'!\"&H2160),\"0\"),Notes!$B$5:$C$100,2,FALSE),\"\"))","v":""},"2b","$Y$70","$Z$70"]
[13792,{"$f":"Menu!$F$29","v":"X"},{"$f":"Menu!$J$29","v":2020},{"$f":"IF(ISBLANK(INDIRECT(\"'\"&F2161&\"'!\"&G2161)),\"\",INDIRECT(\"'\"&F2161&\"'!\"&G2161))","v":""},{"$f":"IF(ISBLANK(INDIRECT(\"'\"&F2161&\"'!\"&H2161)),\"\",IFERROR(VLOOKUP(TEXT(INDIRECT(\"'\"&F2161&\"'!\"&H2161),\"0\"),Notes!$B$5:$C$100,2,FALSE),\"\"))","v":""},"2b","$AA$70","$AB$70"]
[13793,{"$f":"Menu!$F$29","v":"X"},{"$f":"Menu!$J$29","v":2020},{"$f":"IF(ISBLANK(INDIRECT(\"'\"&F2162&\"'!\"&G2162)),\"\",INDIRECT(\"'\"&F2162&\"'!\"&G2162))","v":""},{"$f":"IF(ISBLANK(INDIRECT(\"'\"&F2162&\"'!\"&H2162)),\"\",IFERROR(VLOOKUP(TEXT(INDIRECT(\"'\"&F2162&\"'!\"&H2162),\"0\"),Notes!$B$5:$C$100,2,FALSE),\"\"))","v":""},"2b","$E$27","$F$27"]
[13794,{"$f":"Menu!$F$29","v":"X"},{"$f":"Menu!$J$29","v":2020},{"$f":"IF(ISBLANK(INDIRECT(\"'\"&F2163&\"'!\"&G2163)),\"\",INDIRECT(\"'\"&F2163&\"'!\"&G2163))","v":""},{"$f":"IF(ISBLANK(INDIRECT(\"'\"&F2163&\"'!\"&H2163)),\"\",IFERROR(VLOOKUP(TEXT(INDIRECT(\"'\"&F2163&\"'!\"&H2163),\"0\"),Notes!$B$5:$C$100,2,FALSE),\"\"))","v":""},"2b","$G$27","$H$27"]
[13795,{"$f":"Menu!$F$29","v":"X"},{"$f":"Menu!$J$29","v":2020},{"$f":"IF(ISBLANK(INDIRECT(\"'\"&F2164&\"'!\"&G2164)),\"\",INDIRECT(\"'\"&F2164&\"'!\"&G2164))","v":""},{"$f":"IF(ISBLANK(INDIRECT(\"'\"&F2164&\"'!\"&H2164)),\"\",IFERROR(VLOOKUP(TEXT(INDIRECT(\"'\"&F2164&\"'!\"&H2164),\"0\"),Notes!$B$5:$C$100,2,FALSE),\"\"))","v":""},"2b","$I$27","$J$27"]
[13796,{"$f":"Menu!$F$29","v":"X"},{"$f":"Menu!$J$29","v":2020},{"$f":"IF(ISBLANK(INDIRECT(\"'\"&F2165&\"'!\"&G2165)),\"\",INDIRECT(\"'\"&F2165&\"'!\"&G2165))","v":""},{"$f":"IF(ISBLANK(INDIRECT(\"'\"&F2165&\"'!\"&H2165)),\"\",IFERROR(VLOOKUP(TEXT(INDIRECT(\"'\"&F2165&\"'!\"&H2165),\"0\"),Notes!$B$5:$C$100,2,FALSE),\"\"))","v":""},"2b","$K$27","$L$27"]
[13797,{"$f":"Menu!$F$29","v":"X"},{"$f":"Menu!$J$29","v":2020},{"$f":"IF(ISBLANK(INDIRECT(\"'\"&F2166&\"'!\"&G2166)),\"\",INDIRECT(\"'\"&F2166&\"'!\"&G2166))","v":""},{"$f":"IF(ISBLANK(INDIRECT(\"'\"&F2166&\"'!\"&H2166)),\"\",IFERROR(VLOOKUP(TEXT(INDIRECT(\"'\"&F2166&\"'!\"&H2166),\"0\"),Notes!$B$5:$C$100,2,FALSE),\"\"))","v":""},"2b","$M$27","$N$27"]
[13798,{"$f":"Menu!$F$29","v":"X"},{"$f":"Menu!$J$29","v":2020},{"$f":"IF(ISBLANK(INDIRECT(\"'\"&F2167&\"'!\"&G2167)),\"\",INDIRECT(\"'\"&F2167&\"'!\"&G2167))","v":""},{"$f":"IF(ISBLANK(INDIRECT(\"'\"&F2167&\"'!\"&H2167)),\"\",IFERROR(VLOOKUP(TEXT(INDIRECT(\"'\"&F2167&\"'!\"&H2167),\"0\"),Notes!$B$5:$C$100,2,FALSE),\"\"))","v":""},"2b","$O$27","$P$27"]
[13799,{"$f":"Menu!$F$29","v":"X"},{"$f":"Menu!$J$29","v":2020},{"$f":"IF(ISBLANK(INDIRECT(\"'\"&F2168&\"'!\"&G2168)),\"\",INDIRECT(\"'\"&F2168&\"'!\"&G2168))","v":""},{"$f":"IF(ISBLANK(INDIRECT(\"'\"&F2168&\"'!\"&H2168)),\"\",IFERROR(VLOOKUP(TEXT(INDIRECT(\"'\"&F2168&\"'!\"&H2168),\"0\"),Notes!$B$5:$C$100,2,FALSE),\"\"))","v":""},"2b","$Q$27","$R$27"]
[13800,{"$f":"Menu!$F$29","v":"X"},{"$f":"Menu!$J$29","v":2020},{"$f":"IF(ISBLANK(INDIRECT(\"'\"&F2169&\"'!\"&G2169)),\"\",INDIRECT(\"'\"&F2169&\"'!\"&G2169))","v":""},{"$f":"IF(ISBLANK(INDIRECT(\"'\"&F2169&\"'!\"&H2169)),\"\",IFERROR(VLOOKUP(TEXT(INDIRECT(\"'\"&F2169&\"'!\"&H2169),\"0\"),Notes!$B$5:$C$100,2,FALSE),\"\"))","v":""},"2b","$S$27","$T$27"]
[13801,{"$f":"Menu!$F$29","v":"X"},{"$f":"Menu!$J$29","v":2020},{"$f":"IF(ISBLANK(INDIRECT(\"'\"&F2170&\"'!\"&G2170)),\"\",INDIRECT(\"'\"&F2170&\"'!\"&G2170))","v":""},{"$f":"IF(ISBLANK(INDIRECT(\"'\"&F2170&\"'!\"&H2170)),\"\",IFERROR(VLOOKUP(TEXT(INDIRECT(\"'\"&F2170&\"'!\"&H2170),\"0\"),Notes!$B$5:$C$100,2,FALSE),\"\"))","v":""},"2b","$U$27","$V$27"]
[13802,{"$f":"Menu!$F$29","v":"X"},{"$f":"Menu!$J$29","v":2020},{"$f":"IF(ISBLANK(INDIRECT(\"'\"&F2171&\"'!\"&G2171)),\"\",INDIRECT(\"'\"&F2171&\"'!\"&G2171))","v":""},{"$f":"IF(ISBLANK(INDIRECT(\"'\"&F2171&\"'!\"&H2171)),\"\",IFERROR(VLOOKUP(TEXT(INDIRECT(\"'\"&F2171&\"'!\"&H2171),\"0\"),Notes!$B$5:$C$100,2,FALSE),\"\"))","v":""},"2b","$W$27","$X$27"]
[13803,{"$f":"Menu!$F$29","v":"X"},{"$f":"Menu!$J$29","v":2020},{"$f":"IF(ISBLANK(INDIRECT(\"'\"&F2172&\"'!\"&G2172)),\"\",INDIRECT(\"'\"&F2172&\"'!\"&G2172))","v":""},{"$f":"IF(ISBLANK(INDIRECT(\"'\"&F2172&\"'!\"&H2172)),\"\",IFERROR(VLOOKUP(TEXT(INDIRECT(\"'\"&F2172&\"'!\"&H2172),\"0\"),Notes!$B$5:$C$100,2,FALSE),\"\"))","v":""},"2b","$Y$27","$Z$27"]
[13804,{"$f":"Menu!$F$29","v":"X"},{"$f":"Menu!$J$29","v":2020},{"$f":"IF(ISBLANK(INDIRECT(\"'\"&F2173&\"'!\"&G2173)),\"\",INDIRECT(\"'\"&F2173&\"'!\"&G2173))","v":""},{"$f":"IF(ISBLANK(INDIRECT(\"'\"&F2173&\"'!\"&H2173)),\"\",IFERROR(VLOOKUP(TEXT(INDIRECT(\"'\"&F2173&\"'!\"&H2173),\"0\"),Notes!$B$5:$C$100,2,FALSE),\"\"))","v":""},"2b","$AA$27","$AB$27"]
[13805,{"$f":"Menu!$F$29","v":"X"},{"$f":"Menu!$J$29","v":2020},{"$f":"IF(ISBLANK(INDIRECT(\"'\"&F2174&\"'!\"&G2174)),\"\",INDIRECT(\"'\"&F2174&\"'!\"&G2174))","v":""},{"$f":"IF(ISBLANK(INDIRECT(\"'\"&F2174&\"'!\"&H2174)),\"\",IFERROR(VLOOKUP(TEXT(INDIRECT(\"'\"&F2174&\"'!\"&H2174),\"0\"),Notes!$B$5:$C$100,2,FALSE),\"\"))","v":""},"2b","$E$92","$F$92"]
[13806,{"$f":"Menu!$F$29","v":"X"},{"$f":"Menu!$J$29","v":2020},{"$f":"IF(ISBLANK(INDIRECT(\"'\"&F2175&\"'!\"&G2175)),\"\",INDIRECT(\"'\"&F2175&\"'!\"&G2175))","v":""},{"$f":"IF(ISBLANK(INDIRECT(\"'\"&F2175&\"'!\"&H2175)),\"\",IFERROR(VLOOKUP(TEXT(INDIRECT(\"'\"&F2175&\"'!\"&H2175),\"0\"),Notes!$B$5:$C$100,2,FALSE),\"\"))","v":""},"2b","$G$92","$H$92"]
[13807,{"$f":"Menu!$F$29","v":"X"},{"$f":"Menu!$J$29","v":2020},{"$f":"IF(ISBLANK(INDIRECT(\"'\"&F2176&\"'!\"&G2176)),\"\",INDIRECT(\"'\"&F2176&\"'!\"&G2176))","v":""},{"$f":"IF(ISBLANK(INDIRECT(\"'\"&F2176&\"'!\"&H2176)),\"\",IFERROR(VLOOKUP(TEXT(INDIRECT(\"'\"&F2176&\"'!\"&H2176),\"0\"),Notes!$B$5:$C$100,2,FALSE),\"\"))","v":""},"2b","$I$92","$J$92"]
[13808,{"$f":"Menu!$F$29","v":"X"},{"$f":"Menu!$J$29","v":2020},{"$f":"IF(ISBLANK(INDIRECT(\"'\"&F2177&\"'!\"&G2177)),\"\",INDIRECT(\"'\"&F2177&\"'!\"&G2177))","v":""},{"$f":"IF(ISBLANK(INDIRECT(\"'\"&F2177&\"'!\"&H2177)),\"\",IFERROR(VLOOKUP(TEXT(INDIRECT(\"'\"&F2177&\"'!\"&H2177),\"0\"),Notes!$B$5:$C$100,2,FALSE),\"\"))","v":""},"2b","$K$92","$L$92"]
[13809,{"$f":"Menu!$F$29","v":"X"},{"$f":"Menu!$J$29","v":2020},{"$f":"IF(ISBLANK(INDIRECT(\"'\"&F2178&\"'!\"&G2178)),\"\",INDIRECT(\"'\"&F2178&\"'!\"&G2178))","v":""},{"$f":"IF(ISBLANK(INDIRECT(\"'\"&F2178&\"'!\"&H2178)),\"\",IFERROR(VLOOKUP(TEXT(INDIRECT(\"'\"&F2178&\"'!\"&H2178),\"0\"),Notes!$B$5:$C$100,2,FALSE),\"\"))","v":""},"2b","$M$92",{"$f":"IF(LEN(TRIM(MID(G2178,4,10)))-LEN(SUBSTITUTE(TRIM(MID(G2178,4,10)),\"$\",\"\"))=0,\"$\"&CHAR(CODE(MID(G2178,2,1))+1)&\"$\"&TRIM(MID(G2178,4,10)),\"$\"&MID(G2178,2,1)&CHAR(CODE(MID(G2178,3,1))+1)&\"$\"&TRIM(MID(G2178,5,11)))","v":"$N$92"}]
[13810,{"$f":"Menu!$F$29","v":"X"},{"$f":"Menu!$J$29","v":2020},{"$f":"IF(ISBLANK(INDIRECT(\"'\"&F2179&\"'!\"&G2179)),\"\",INDIRECT(\"'\"&F2179&\"'!\"&G2179))","v":""},{"$f":"IF(ISBLANK(INDIRECT(\"'\"&F2179&\"'!\"&H2179)),\"\",IFERROR(VLOOKUP(TEXT(INDIRECT(\"'\"&F2179&\"'!\"&H2179),\"0\"),Notes!$B$5:$C$100,2,FALSE),\"\"))","v":""},"2b","$O$92","$P$92"]
[13811,{"$f":"Menu!$F$29","v":"X"},{"$f":"Menu!$J$29","v":2020},{"$f":"IF(ISBLANK(INDIRECT(\"'\"&F2180&\"'!\"&G2180)),\"\",INDIRECT(\"'\"&F2180&\"'!\"&G2180))","v":""},{"$f":"IF(ISBLANK(INDIRECT(\"'\"&F2180&\"'!\"&H2180)),\"\",IFERROR(VLOOKUP(TEXT(INDIRECT(\"'\"&F2180&\"'!\"&H2180),\"0\"),Notes!$B$5:$C$100,2,FALSE),\"\"))","v":""},"2b","$Q$92","$R$92"]
[13812,{"$f":"Menu!$F$29","v":"X"},{"$f":"Menu!$J$29","v":2020},{"$f":"IF(ISBLANK(INDIRECT(\"'\"&F2181&\"'!\"&G2181)),\"\",INDIRECT(\"'\"&F2181&\"'!\"&G2181))","v":""},{"$f":"IF(ISBLANK(INDIRECT(\"'\"&F2181&\"'!\"&H2181)),\"\",IFERROR(VLOOKUP(TEXT(INDIRECT(\"'\"&F2181&\"'!\"&H2181),\"0\"),Notes!$B$5:$C$100,2,FALSE),\"\"))","v":""},"2b","$S$92","$T$92"]
[13813,{"$f":"Menu!$F$29","v":"X"},{"$f":"Menu!$J$29","v":2020},{"$f":"IF(ISBLANK(INDIRECT(\"'\"&F2182&\"'!\"&G2182)),\"\",INDIRECT(\"'\"&F2182&\"'!\"&G2182))","v":""},{"$f":"IF(ISBLANK(INDIRECT(\"'\"&F2182&\"'!\"&H2182)),\"\",IFERROR(VLOOKUP(TEXT(INDIRECT(\"'\"&F2182&\"'!\"&H2182),\"0\"),Notes!$B$5:$C$100,2,FALSE),\"\"))","v":""},"2b","$U$92","$V$92"]
[13814,{"$f":"Menu!$F$29","v":"X"},{"$f":"Menu!$J$29","v":2020},{"$f":"IF(ISBLANK(INDIRECT(\"'\"&F2183&\"'!\"&G2183)),\"\",INDIRECT(\"'\"&F2183&\"'!\"&G2183))","v":""},{"$f":"IF(ISBLANK(INDIRECT(\"'\"&F2183&\"'!\"&H2183)),\"\",IFERROR(VLOOKUP(TEXT(INDIRECT(\"'\"&F2183&\"'!\"&H2183),\"0\"),Notes!$B$5:$C$100,2,FALSE),\"\"))","v":""},"2b","$W$92","$X$92"]
[13815,{"$f":"Menu!$F$29","v":"X"},{"$f":"Menu!$J$29","v":2020},{"$f":"IF(ISBLANK(INDIRECT(\"'\"&F2184&\"'!\"&G2184)),\"\",INDIRECT(\"'\"&F2184&\"'!\"&G2184))","v":""},{"$f":"IF(ISBLANK(INDIRECT(\"'\"&F2184&\"'!\"&H2184)),\"\",IFERROR(VLOOKUP(TEXT(INDIRECT(\"'\"&F2184&\"'!\"&H2184),\"0\"),Notes!$B$5:$C$100,2,FALSE),\"\"))","v":""},"2b","$Y$92","$Z$92"]
[13816,{"$f":"Menu!$F$29","v":"X"},{"$f":"Menu!$J$29","v":2020},{"$f":"IF(ISBLANK(INDIRECT(\"'\"&F2185&\"'!\"&G2185)),\"\",INDIRECT(\"'\"&F2185&\"'!\"&G2185))","v":""},{"$f":"IF(ISBLANK(INDIRECT(\"'\"&F2185&\"'!\"&H2185)),\"\",IFERROR(VLOOKUP(TEXT(INDIRECT(\"'\"&F2185&\"'!\"&H2185),\"0\"),Notes!$B$5:$C$100,2,FALSE),\"\"))","v":""},"2b","$AA$92","$AB$92"]
[13817,{"$f":"Menu!$F$29","v":"X"},{"$f":"Menu!$J$29","v":2020},{"$f":"IF(ISBLANK(INDIRECT(\"'\"&F2186&\"'!\"&G2186)),\"\",INDIRECT(\"'\"&F2186&\"'!\"&G2186))","v":""},{"$f":"IF(ISBLANK(INDIRECT(\"'\"&F2186&\"'!\"&H2186)),\"\",IFERROR(VLOOKUP(TEXT(INDIRECT(\"'\"&F2186&\"'!\"&H2186),\"0\"),Notes!$B$5:$C$100,2,FALSE),\"\"))","v":""},"2b","$E$33","$F$33"]
[13818,{"$f":"Menu!$F$29","v":"X"},{"$f":"Menu!$J$29","v":2020},{"$f":"IF(ISBLANK(INDIRECT(\"'\"&F2187&\"'!\"&G2187)),\"\",INDIRECT(\"'\"&F2187&\"'!\"&G2187))","v":""},{"$f":"IF(ISBLANK(INDIRECT(\"'\"&F2187&\"'!\"&H2187)),\"\",IFERROR(VLOOKUP(TEXT(INDIRECT(\"'\"&F2187&\"'!\"&H2187),\"0\"),Notes!$B$5:$C$100,2,FALSE),\"\"))","v":""},"2b","$G$33","$H$33"]
[13819,{"$f":"Menu!$F$29","v":"X"},{"$f":"Menu!$J$29","v":2020},{"$f":"IF(ISBLANK(INDIRECT(\"'\"&F2188&\"'!\"&G2188)),\"\",INDIRECT(\"'\"&F2188&\"'!\"&G2188))","v":""},{"$f":"IF(ISBLANK(INDIRECT(\"'\"&F2188&\"'!\"&H2188)),\"\",IFERROR(VLOOKUP(TEXT(INDIRECT(\"'\"&F2188&\"'!\"&H2188),\"0\"),Notes!$B$5:$C$100,2,FALSE),\"\"))","v":""},"2b","$I$33","$J$33"]
[13820,{"$f":"Menu!$F$29","v":"X"},{"$f":"Menu!$J$29","v":2020},{"$f":"IF(ISBLANK(INDIRECT(\"'\"&F2189&\"'!\"&G2189)),\"\",INDIRECT(\"'\"&F2189&\"'!\"&G2189))","v":""},{"$f":"IF(ISBLANK(INDIRECT(\"'\"&F2189&\"'!\"&H2189)),\"\",IFERROR(VLOOKUP(TEXT(INDIRECT(\"'\"&F2189&\"'!\"&H2189),\"0\"),Notes!$B$5:$C$100,2,FALSE),\"\"))","v":""},"2b","$K$33","$L$33"]
[13821,{"$f":"Menu!$F$29","v":"X"},{"$f":"Menu!$J$29","v":2020},{"$f":"IF(ISBLANK(INDIRECT(\"'\"&F2190&\"'!\"&G2190)),\"\",INDIRECT(\"'\"&F2190&\"'!\"&G2190))","v":""},{"$f":"IF(ISBLANK(INDIRECT(\"'\"&F2190&\"'!\"&H2190)),\"\",IFERROR(VLOOKUP(TEXT(INDIRECT(\"'\"&F2190&\"'!\"&H2190),\"0\"),Notes!$B$5:$C$100,2,FALSE),\"\"))","v":""},"2b","$M$33","$N$33"]
[13822,{"$f":"Menu!$F$29","v":"X"},{"$f":"Menu!$J$29","v":2020},{"$f":"IF(ISBLANK(INDIRECT(\"'\"&F2191&\"'!\"&G2191)),\"\",INDIRECT(\"'\"&F2191&\"'!\"&G2191))","v":""},{"$f":"IF(ISBLANK(INDIRECT(\"'\"&F2191&\"'!\"&H2191)),\"\",IFERROR(VLOOKUP(TEXT(INDIRECT(\"'\"&F2191&\"'!\"&H2191),\"0\"),Notes!$B$5:$C$100,2,FALSE),\"\"))","v":""},"2b","$O$33","$P$33"]
[13823,{"$f":"Menu!$F$29","v":"X"},{"$f":"Menu!$J$29","v":2020},{"$f":"IF(ISBLANK(INDIRECT(\"'\"&F2192&\"'!\"&G2192)),\"\",INDIRECT(\"'\"&F2192&\"'!\"&G2192))","v":""},{"$f":"IF(ISBLANK(INDIRECT(\"'\"&F2192&\"'!\"&H2192)),\"\",IFERROR(VLOOKUP(TEXT(INDIRECT(\"'\"&F2192&\"'!\"&H2192),\"0\"),Notes!$B$5:$C$100,2,FALSE),\"\"))","v":""},"2b","$Q$33","$R$33"]
[13824,{"$f":"Menu!$F$29","v":"X"},{"$f":"Menu!$J$29","v":2020},{"$f":"IF(ISBLANK(INDIRECT(\"'\"&F2193&\"'!\"&G2193)),\"\",INDIRECT(\"'\"&F2193&\"'!\"&G2193))","v":""},{"$f":"IF(ISBLANK(INDIRECT(\"'\"&F2193&\"'!\"&H2193)),\"\",IFERROR(VLOOKUP(TEXT(INDIRECT(\"'\"&F2193&\"'!\"&H2193),\"0\"),Notes!$B$5:$C$100,2,FALSE),\"\"))","v":""},"2b","$S$33","$T$33"]
[13825,{"$f":"Menu!$F$29","v":"X"},{"$f":"Menu!$J$29","v":2020},{"$f":"IF(ISBLANK(INDIRECT(\"'\"&F2194&\"'!\"&G2194)),\"\",INDIRECT(\"'\"&F2194&\"'!\"&G2194))","v":""},{"$f":"IF(ISBLANK(INDIRECT(\"'\"&F2194&\"'!\"&H2194)),\"\",IFERROR(VLOOKUP(TEXT(INDIRECT(\"'\"&F2194&\"'!\"&H2194),\"0\"),Notes!$B$5:$C$100,2,FALSE),\"\"))","v":""},"2b","$U$33","$V$33"]
[13826,{"$f":"Menu!$F$29","v":"X"},{"$f":"Menu!$J$29","v":2020},{"$f":"IF(ISBLANK(INDIRECT(\"'\"&F2195&\"'!\"&G2195)),\"\",INDIRECT(\"'\"&F2195&\"'!\"&G2195))","v":""},{"$f":"IF(ISBLANK(INDIRECT(\"'\"&F2195&\"'!\"&H2195)),\"\",IFERROR(VLOOKUP(TEXT(INDIRECT(\"'\"&F2195&\"'!\"&H2195),\"0\"),Notes!$B$5:$C$100,2,FALSE),\"\"))","v":""},"2b","$W$33","$X$33"]
[13827,{"$f":"Menu!$F$29","v":"X"},{"$f":"Menu!$J$29","v":2020},{"$f":"IF(ISBLANK(INDIRECT(\"'\"&F2196&\"'!\"&G2196)),\"\",INDIRECT(\"'\"&F2196&\"'!\"&G2196))","v":""},{"$f":"IF(ISBLANK(INDIRECT(\"'\"&F2196&\"'!\"&H2196)),\"\",IFERROR(VLOOKUP(TEXT(INDIRECT(\"'\"&F2196&\"'!\"&H2196),\"0\"),Notes!$B$5:$C$100,2,FALSE),\"\"))","v":""},"2b","$Y$33","$Z$33"]
[13828,{"$f":"Menu!$F$29","v":"X"},{"$f":"Menu!$J$29","v":2020},{"$f":"IF(ISBLANK(INDIRECT(\"'\"&F2197&\"'!\"&G2197)),\"\",INDIRECT(\"'\"&F2197&\"'!\"&G2197))","v":""},{"$f":"IF(ISBLANK(INDIRECT(\"'\"&F2197&\"'!\"&H2197)),\"\",IFERROR(VLOOKUP(TEXT(INDIRECT(\"'\"&F2197&\"'!\"&H2197),\"0\"),Notes!$B$5:$C$100,2,FALSE),\"\"))","v":""},"2b","$AA$33","$AB$33"]
[13829,{"$f":"Menu!$F$29","v":"X"},{"$f":"Menu!$J$29","v":2020},{"$f":"IF(ISBLANK(INDIRECT(\"'\"&F2198&\"'!\"&G2198)),\"\",INDIRECT(\"'\"&F2198&\"'!\"&G2198))","v":""},{"$f":"IF(ISBLANK(INDIRECT(\"'\"&F2198&\"'!\"&H2198)),\"\",IFERROR(VLOOKUP(TEXT(INDIRECT(\"'\"&F2198&\"'!\"&H2198),\"0\"),Notes!$B$5:$C$100,2,FALSE),\"\"))","v":""},"2b","$E$94","$F$94"]
[13830,{"$f":"Menu!$F$29","v":"X"},{"$f":"Menu!$J$29","v":2020},{"$f":"IF(ISBLANK(INDIRECT(\"'\"&F2199&\"'!\"&G2199)),\"\",INDIRECT(\"'\"&F2199&\"'!\"&G2199))","v":""},{"$f":"IF(ISBLANK(INDIRECT(\"'\"&F2199&\"'!\"&H2199)),\"\",IFERROR(VLOOKUP(TEXT(INDIRECT(\"'\"&F2199&\"'!\"&H2199),\"0\"),Notes!$B$5:$C$100,2,FALSE),\"\"))","v":""},"2b","$G$94","$H$94"]
[13831,{"$f":"Menu!$F$29","v":"X"},{"$f":"Menu!$J$29","v":2020},{"$f":"IF(ISBLANK(INDIRECT(\"'\"&F2200&\"'!\"&G2200)),\"\",INDIRECT(\"'\"&F2200&\"'!\"&G2200))","v":""},{"$f":"IF(ISBLANK(INDIRECT(\"'\"&F2200&\"'!\"&H2200)),\"\",IFERROR(VLOOKUP(TEXT(INDIRECT(\"'\"&F2200&\"'!\"&H2200),\"0\"),Notes!$B$5:$C$100,2,FALSE),\"\"))","v":""},"2b","$I$94","$J$94"]
[13832,{"$f":"Menu!$F$29","v":"X"},{"$f":"Menu!$J$29","v":2020},{"$f":"IF(ISBLANK(INDIRECT(\"'\"&F2201&\"'!\"&G2201)),\"\",INDIRECT(\"'\"&F2201&\"'!\"&G2201))","v":""},{"$f":"IF(ISBLANK(INDIRECT(\"'\"&F2201&\"'!\"&H2201)),\"\",IFERROR(VLOOKUP(TEXT(INDIRECT(\"'\"&F2201&\"'!\"&H2201),\"0\"),Notes!$B$5:$C$100,2,FALSE),\"\"))","v":""},"2b","$K$94","$L$94"]
[13833,{"$f":"Menu!$F$29","v":"X"},{"$f":"Menu!$J$29","v":2020},{"$f":"IF(ISBLANK(INDIRECT(\"'\"&F2202&\"'!\"&G2202)),\"\",INDIRECT(\"'\"&F2202&\"'!\"&G2202))","v":""},{"$f":"IF(ISBLANK(INDIRECT(\"'\"&F2202&\"'!\"&H2202)),\"\",IFERROR(VLOOKUP(TEXT(INDIRECT(\"'\"&F2202&\"'!\"&H2202),\"0\"),Notes!$B$5:$C$100,2,FALSE),\"\"))","v":""},"2b","$M$94","$N$94"]
[13834,{"$f":"Menu!$F$29","v":"X"},{"$f":"Menu!$J$29","v":2020},{"$f":"IF(ISBLANK(INDIRECT(\"'\"&F2203&\"'!\"&G2203)),\"\",INDIRECT(\"'\"&F2203&\"'!\"&G2203))","v":""},{"$f":"IF(ISBLANK(INDIRECT(\"'\"&F2203&\"'!\"&H2203)),\"\",IFERROR(VLOOKUP(TEXT(INDIRECT(\"'\"&F2203&\"'!\"&H2203),\"0\"),Notes!$B$5:$C$100,2,FALSE),\"\"))","v":""},"2b","$O$94","$P$94"]
[13835,{"$f":"Menu!$F$29","v":"X"},{"$f":"Menu!$J$29","v":2020},{"$f":"IF(ISBLANK(INDIRECT(\"'\"&F2204&\"'!\"&G2204)),\"\",INDIRECT(\"'\"&F2204&\"'!\"&G2204))","v":""},{"$f":"IF(ISBLANK(INDIRECT(\"'\"&F2204&\"'!\"&H2204)),\"\",IFERROR(VLOOKUP(TEXT(INDIRECT(\"'\"&F2204&\"'!\"&H2204),\"0\"),Notes!$B$5:$C$100,2,FALSE),\"\"))","v":""},"2b","$Q$94","$R$94"]
[13836,{"$f":"Menu!$F$29","v":"X"},{"$f":"Menu!$J$29","v":2020},{"$f":"IF(ISBLANK(INDIRECT(\"'\"&F2205&\"'!\"&G2205)),\"\",INDIRECT(\"'\"&F2205&\"'!\"&G2205))","v":""},{"$f":"IF(ISBLANK(INDIRECT(\"'\"&F2205&\"'!\"&H2205)),\"\",IFERROR(VLOOKUP(TEXT(INDIRECT(\"'\"&F2205&\"'!\"&H2205),\"0\"),Notes!$B$5:$C$100,2,FALSE),\"\"))","v":""},"2b","$S$94","$T$94"]
[13837,{"$f":"Menu!$F$29","v":"X"},{"$f":"Menu!$J$29","v":2020},{"$f":"IF(ISBLANK(INDIRECT(\"'\"&F2206&\"'!\"&G2206)),\"\",INDIRECT(\"'\"&F2206&\"'!\"&G2206))","v":""},{"$f":"IF(ISBLANK(INDIRECT(\"'\"&F2206&\"'!\"&H2206)),\"\",IFERROR(VLOOKUP(TEXT(INDIRECT(\"'\"&F2206&\"'!\"&H2206),\"0\"),Notes!$B$5:$C$100,2,FALSE),\"\"))","v":""},"2b","$U$94","$V$94"]
[13838,{"$f":"Menu!$F$29","v":"X"},{"$f":"Menu!$J$29","v":2020},{"$f":"IF(ISBLANK(INDIRECT(\"'\"&F2207&\"'!\"&G2207)),\"\",INDIRECT(\"'\"&F2207&\"'!\"&G2207))","v":""},{"$f":"IF(ISBLANK(INDIRECT(\"'\"&F2207&\"'!\"&H2207)),\"\",IFERROR(VLOOKUP(TEXT(INDIRECT(\"'\"&F2207&\"'!\"&H2207),\"0\"),Notes!$B$5:$C$100,2,FALSE),\"\"))","v":""},"2b","$W$94","$X$94"]
[13839,{"$f":"Menu!$F$29","v":"X"},{"$f":"Menu!$J$29","v":2020},{"$f":"IF(ISBLANK(INDIRECT(\"'\"&F2208&\"'!\"&G2208)),\"\",INDIRECT(\"'\"&F2208&\"'!\"&G2208))","v":""},{"$f":"IF(ISBLANK(INDIRECT(\"'\"&F2208&\"'!\"&H2208)),\"\",IFERROR(VLOOKUP(TEXT(INDIRECT(\"'\"&F2208&\"'!\"&H2208),\"0\"),Notes!$B$5:$C$100,2,FALSE),\"\"))","v":""},"2b","$Y$94","$Z$94"]
[13840,{"$f":"Menu!$F$29","v":"X"},{"$f":"Menu!$J$29","v":2020},{"$f":"IF(ISBLANK(INDIRECT(\"'\"&F2209&\"'!\"&G2209)),\"\",INDIRECT(\"'\"&F2209&\"'!\"&G2209))","v":""},{"$f":"IF(ISBLANK(INDIRECT(\"'\"&F2209&\"'!\"&H2209)),\"\",IFERROR(VLOOKUP(TEXT(INDIRECT(\"'\"&F2209&\"'!\"&H2209),\"0\"),Notes!$B$5:$C$100,2,FALSE),\"\"))","v":""},"2b","$AA$94","$AB$94"]
[13841,{"$f":"Menu!$F$29","v":"X"},{"$f":"Menu!$J$29","v":2020},{"$f":"IF(ISBLANK(INDIRECT(\"'\"&F2210&\"'!\"&G2210)),\"\",INDIRECT(\"'\"&F2210&\"'!\"&G2210))","v":""},{"$f":"IF(ISBLANK(INDIRECT(\"'\"&F2210&\"'!\"&H2210)),\"\",IFERROR(VLOOKUP(TEXT(INDIRECT(\"'\"&F2210&\"'!\"&H2210),\"0\"),Notes!$B$5:$C$100,2,FALSE),\"\"))","v":""},"2b","$E$96","$F$96"]
[13842,{"$f":"Menu!$F$29","v":"X"},{"$f":"Menu!$J$29","v":2020},{"$f":"IF(ISBLANK(INDIRECT(\"'\"&F2211&\"'!\"&G2211)),\"\",INDIRECT(\"'\"&F2211&\"'!\"&G2211))","v":""},{"$f":"IF(ISBLANK(INDIRECT(\"'\"&F2211&\"'!\"&H2211)),\"\",IFERROR(VLOOKUP(TEXT(INDIRECT(\"'\"&F2211&\"'!\"&H2211),\"0\"),Notes!$B$5:$C$100,2,FALSE),\"\"))","v":""},"2b","$G$96","$H$96"]
[13843,{"$f":"Menu!$F$29","v":"X"},{"$f":"Menu!$J$29","v":2020},{"$f":"IF(ISBLANK(INDIRECT(\"'\"&F2212&\"'!\"&G2212)),\"\",INDIRECT(\"'\"&F2212&\"'!\"&G2212))","v":""},{"$f":"IF(ISBLANK(INDIRECT(\"'\"&F2212&\"'!\"&H2212)),\"\",IFERROR(VLOOKUP(TEXT(INDIRECT(\"'\"&F2212&\"'!\"&H2212),\"0\"),Notes!$B$5:$C$100,2,FALSE),\"\"))","v":""},"2b","$I$96","$J$96"]
[13844,{"$f":"Menu!$F$29","v":"X"},{"$f":"Menu!$J$29","v":2020},{"$f":"IF(ISBLANK(INDIRECT(\"'\"&F2213&\"'!\"&G2213)),\"\",INDIRECT(\"'\"&F2213&\"'!\"&G2213))","v":""},{"$f":"IF(ISBLANK(INDIRECT(\"'\"&F2213&\"'!\"&H2213)),\"\",IFERROR(VLOOKUP(TEXT(INDIRECT(\"'\"&F2213&\"'!\"&H2213),\"0\"),Notes!$B$5:$C$100,2,FALSE),\"\"))","v":""},"2b","$K$96","$L$96"]
[13845,{"$f":"Menu!$F$29","v":"X"},{"$f":"Menu!$J$29","v":2020},{"$f":"IF(ISBLANK(INDIRECT(\"'\"&F2214&\"'!\"&G2214)),\"\",INDIRECT(\"'\"&F2214&\"'!\"&G2214))","v":""},{"$f":"IF(ISBLANK(INDIRECT(\"'\"&F2214&\"'!\"&H2214)),\"\",IFERROR(VLOOKUP(TEXT(INDIRECT(\"'\"&F2214&\"'!\"&H2214),\"0\"),Notes!$B$5:$C$100,2,FALSE),\"\"))","v":""},"2b","$M$96","$N$96"]
[13846,{"$f":"Menu!$F$29","v":"X"},{"$f":"Menu!$J$29","v":2020},{"$f":"IF(ISBLANK(INDIRECT(\"'\"&F2215&\"'!\"&G2215)),\"\",INDIRECT(\"'\"&F2215&\"'!\"&G2215))","v":""},{"$f":"IF(ISBLANK(INDIRECT(\"'\"&F2215&\"'!\"&H2215)),\"\",IFERROR(VLOOKUP(TEXT(INDIRECT(\"'\"&F2215&\"'!\"&H2215),\"0\"),Notes!$B$5:$C$100,2,FALSE),\"\"))","v":""},"2b","$O$96","$P$96"]
[13847,{"$f":"Menu!$F$29","v":"X"},{"$f":"Menu!$J$29","v":2020},{"$f":"IF(ISBLANK(INDIRECT(\"'\"&F2216&\"'!\"&G2216)),\"\",INDIRECT(\"'\"&F2216&\"'!\"&G2216))","v":""},{"$f":"IF(ISBLANK(INDIRECT(\"'\"&F2216&\"'!\"&H2216)),\"\",IFERROR(VLOOKUP(TEXT(INDIRECT(\"'\"&F2216&\"'!\"&H2216),\"0\"),Notes!$B$5:$C$100,2,FALSE),\"\"))","v":""},"2b","$Q$96","$R$96"]
[13848,{"$f":"Menu!$F$29","v":"X"},{"$f":"Menu!$J$29","v":2020},{"$f":"IF(ISBLANK(INDIRECT(\"'\"&F2217&\"'!\"&G2217)),\"\",INDIRECT(\"'\"&F2217&\"'!\"&G2217))","v":""},{"$f":"IF(ISBLANK(INDIRECT(\"'\"&F2217&\"'!\"&H2217)),\"\",IFERROR(VLOOKUP(TEXT(INDIRECT(\"'\"&F2217&\"'!\"&H2217),\"0\"),Notes!$B$5:$C$100,2,FALSE),\"\"))","v":""},"2b","$S$96","$T$96"]
[13849,{"$f":"Menu!$F$29","v":"X"},{"$f":"Menu!$J$29","v":2020},{"$f":"IF(ISBLANK(INDIRECT(\"'\"&F2218&\"'!\"&G2218)),\"\",INDIRECT(\"'\"&F2218&\"'!\"&G2218))","v":""},{"$f":"IF(ISBLANK(INDIRECT(\"'\"&F2218&\"'!\"&H2218)),\"\",IFERROR(VLOOKUP(TEXT(INDIRECT(\"'\"&F2218&\"'!\"&H2218),\"0\"),Notes!$B$5:$C$100,2,FALSE),\"\"))","v":""},"2b","$U$96","$V$96"]
[13850,{"$f":"Menu!$F$29","v":"X"},{"$f":"Menu!$J$29","v":2020},{"$f":"IF(ISBLANK(INDIRECT(\"'\"&F2219&\"'!\"&G2219)),\"\",INDIRECT(\"'\"&F2219&\"'!\"&G2219))","v":""},{"$f":"IF(ISBLANK(INDIRECT(\"'\"&F2219&\"'!\"&H2219)),\"\",IFERROR(VLOOKUP(TEXT(INDIRECT(\"'\"&F2219&\"'!\"&H2219),\"0\"),Notes!$B$5:$C$100,2,FALSE),\"\"))","v":""},"2b","$W$96","$X$96"]
[13851,{"$f":"Menu!$F$29","v":"X"},{"$f":"Menu!$J$29","v":2020},{"$f":"IF(ISBLANK(INDIRECT(\"'\"&F2220&\"'!\"&G2220)),\"\",INDIRECT(\"'\"&F2220&\"'!\"&G2220))","v":""},{"$f":"IF(ISBLANK(INDIRECT(\"'\"&F2220&\"'!\"&H2220)),\"\",IFERROR(VLOOKUP(TEXT(INDIRECT(\"'\"&F2220&\"'!\"&H2220),\"0\"),Notes!$B$5:$C$100,2,FALSE),\"\"))","v":""},"2b","$Y$96","$Z$96"]
[13852,{"$f":"Menu!$F$29","v":"X"},{"$f":"Menu!$J$29","v":2020},{"$f":"IF(ISBLANK(INDIRECT(\"'\"&F2221&\"'!\"&G2221)),\"\",INDIRECT(\"'\"&F2221&\"'!\"&G2221))","v":""},{"$f":"IF(ISBLANK(INDIRECT(\"'\"&F2221&\"'!\"&H2221)),\"\",IFERROR(VLOOKUP(TEXT(INDIRECT(\"'\"&F2221&\"'!\"&H2221),\"0\"),Notes!$B$5:$C$100,2,FALSE),\"\"))","v":""},"2b","$AA$96","$AB$96"]
[13853,{"$f":"Menu!$F$29","v":"X"},{"$f":"Menu!$J$29","v":2020},{"$f":"IF(ISBLANK(INDIRECT(\"'\"&F2222&\"'!\"&G2222)),\"\",INDIRECT(\"'\"&F2222&\"'!\"&G2222))","v":""},{"$f":"IF(ISBLANK(INDIRECT(\"'\"&F2222&\"'!\"&H2222)),\"\",IFERROR(VLOOKUP(TEXT(INDIRECT(\"'\"&F2222&\"'!\"&H2222),\"0\"),Notes!$B$5:$C$100,2,FALSE),\"\"))","v":""},"2b","$E$89","$F$89"]
[13854,{"$f":"Menu!$F$29","v":"X"},{"$f":"Menu!$J$29","v":2020},{"$f":"IF(ISBLANK(INDIRECT(\"'\"&F2223&\"'!\"&G2223)),\"\",INDIRECT(\"'\"&F2223&\"'!\"&G2223))","v":""},{"$f":"IF(ISBLANK(INDIRECT(\"'\"&F2223&\"'!\"&H2223)),\"\",IFERROR(VLOOKUP(TEXT(INDIRECT(\"'\"&F2223&\"'!\"&H2223),\"0\"),Notes!$B$5:$C$100,2,FALSE),\"\"))","v":""},"2b","$G$89","$H$89"]
[13855,{"$f":"Menu!$F$29","v":"X"},{"$f":"Menu!$J$29","v":2020},{"$f":"IF(ISBLANK(INDIRECT(\"'\"&F2224&\"'!\"&G2224)),\"\",INDIRECT(\"'\"&F2224&\"'!\"&G2224))","v":""},{"$f":"IF(ISBLANK(INDIRECT(\"'\"&F2224&\"'!\"&H2224)),\"\",IFERROR(VLOOKUP(TEXT(INDIRECT(\"'\"&F2224&\"'!\"&H2224),\"0\"),Notes!$B$5:$C$100,2,FALSE),\"\"))","v":""},"2b","$I$89","$J$89"]
[13856,{"$f":"Menu!$F$29","v":"X"},{"$f":"Menu!$J$29","v":2020},{"$f":"IF(ISBLANK(INDIRECT(\"'\"&F2225&\"'!\"&G2225)),\"\",INDIRECT(\"'\"&F2225&\"'!\"&G2225))","v":""},{"$f":"IF(ISBLANK(INDIRECT(\"'\"&F2225&\"'!\"&H2225)),\"\",IFERROR(VLOOKUP(TEXT(INDIRECT(\"'\"&F2225&\"'!\"&H2225),\"0\"),Notes!$B$5:$C$100,2,FALSE),\"\"))","v":""},"2b","$K$89","$L$89"]
[13857,{"$f":"Menu!$F$29","v":"X"},{"$f":"Menu!$J$29","v":2020},{"$f":"IF(ISBLANK(INDIRECT(\"'\"&F2226&\"'!\"&G2226)),\"\",INDIRECT(\"'\"&F2226&\"'!\"&G2226))","v":""},{"$f":"IF(ISBLANK(INDIRECT(\"'\"&F2226&\"'!\"&H2226)),\"\",IFERROR(VLOOKUP(TEXT(INDIRECT(\"'\"&F2226&\"'!\"&H2226),\"0\"),Notes!$B$5:$C$100,2,FALSE),\"\"))","v":""},"2b","$M$89","$N$89"]
[13858,{"$f":"Menu!$F$29","v":"X"},{"$f":"Menu!$J$29","v":2020},{"$f":"IF(ISBLANK(INDIRECT(\"'\"&F2227&\"'!\"&G2227)),\"\",INDIRECT(\"'\"&F2227&\"'!\"&G2227))","v":""},{"$f":"IF(ISBLANK(INDIRECT(\"'\"&F2227&\"'!\"&H2227)),\"\",IFERROR(VLOOKUP(TEXT(INDIRECT(\"'\"&F2227&\"'!\"&H2227),\"0\"),Notes!$B$5:$C$100,2,FALSE),\"\"))","v":""},"2b","$O$89","$P$89"]
[13859,{"$f":"Menu!$F$29","v":"X"},{"$f":"Menu!$J$29","v":2020},{"$f":"IF(ISBLANK(INDIRECT(\"'\"&F2228&\"'!\"&G2228)),\"\",INDIRECT(\"'\"&F2228&\"'!\"&G2228))","v":""},{"$f":"IF(ISBLANK(INDIRECT(\"'\"&F2228&\"'!\"&H2228)),\"\",IFERROR(VLOOKUP(TEXT(INDIRECT(\"'\"&F2228&\"'!\"&H2228),\"0\"),Notes!$B$5:$C$100,2,FALSE),\"\"))","v":""},"2b","$Q$89","$R$89"]
[13860,{"$f":"Menu!$F$29","v":"X"},{"$f":"Menu!$J$29","v":2020},{"$f":"IF(ISBLANK(INDIRECT(\"'\"&F2229&\"'!\"&G2229)),\"\",INDIRECT(\"'\"&F2229&\"'!\"&G2229))","v":""},{"$f":"IF(ISBLANK(INDIRECT(\"'\"&F2229&\"'!\"&H2229)),\"\",IFERROR(VLOOKUP(TEXT(INDIRECT(\"'\"&F2229&\"'!\"&H2229),\"0\"),Notes!$B$5:$C$100,2,FALSE),\"\"))","v":""},"2b","$S$89","$T$89"]
[13861,{"$f":"Menu!$F$29","v":"X"},{"$f":"Menu!$J$29","v":2020},{"$f":"IF(ISBLANK(INDIRECT(\"'\"&F2230&\"'!\"&G2230)),\"\",INDIRECT(\"'\"&F2230&\"'!\"&G2230))","v":""},{"$f":"IF(ISBLANK(INDIRECT(\"'\"&F2230&\"'!\"&H2230)),\"\",IFERROR(VLOOKUP(TEXT(INDIRECT(\"'\"&F2230&\"'!\"&H2230),\"0\"),Notes!$B$5:$C$100,2,FALSE),\"\"))","v":""},"2b","$U$89","$V$89"]
[13862,{"$f":"Menu!$F$29","v":"X"},{"$f":"Menu!$J$29","v":2020},{"$f":"IF(ISBLANK(INDIRECT(\"'\"&F2231&\"'!\"&G2231)),\"\",INDIRECT(\"'\"&F2231&\"'!\"&G2231))","v":""},{"$f":"IF(ISBLANK(INDIRECT(\"'\"&F2231&\"'!\"&H2231)),\"\",IFERROR(VLOOKUP(TEXT(INDIRECT(\"'\"&F2231&\"'!\"&H2231),\"0\"),Notes!$B$5:$C$100,2,FALSE),\"\"))","v":""},"2b","$W$89","$X$89"]
[13863,{"$f":"Menu!$F$29","v":"X"},{"$f":"Menu!$J$29","v":2020},{"$f":"IF(ISBLANK(INDIRECT(\"'\"&F2232&\"'!\"&G2232)),\"\",INDIRECT(\"'\"&F2232&\"'!\"&G2232))","v":""},{"$f":"IF(ISBLANK(INDIRECT(\"'\"&F2232&\"'!\"&H2232)),\"\",IFERROR(VLOOKUP(TEXT(INDIRECT(\"'\"&F2232&\"'!\"&H2232),\"0\"),Notes!$B$5:$C$100,2,FALSE),\"\"))","v":""},"2b","$Y$89","$Z$89"]
[13864,{"$f":"Menu!$F$29","v":"X"},{"$f":"Menu!$J$29","v":2020},{"$f":"IF(ISBLANK(INDIRECT(\"'\"&F2233&\"'!\"&G2233)),\"\",INDIRECT(\"'\"&F2233&\"'!\"&G2233))","v":""},{"$f":"IF(ISBLANK(INDIRECT(\"'\"&F2233&\"'!\"&H2233)),\"\",IFERROR(VLOOKUP(TEXT(INDIRECT(\"'\"&F2233&\"'!\"&H2233),\"0\"),Notes!$B$5:$C$100,2,FALSE),\"\"))","v":""},"2b","$AA$89","$AB$89"]
[13865,{"$f":"Menu!$F$29","v":"X"},{"$f":"Menu!$J$29","v":2020},{"$f":"IF(ISBLANK(INDIRECT(\"'\"&F2234&\"'!\"&G2234)),\"\",INDIRECT(\"'\"&F2234&\"'!\"&G2234))","v":""},{"$f":"IF(ISBLANK(INDIRECT(\"'\"&F2234&\"'!\"&H2234)),\"\",IFERROR(VLOOKUP(TEXT(INDIRECT(\"'\"&F2234&\"'!\"&H2234),\"0\"),Notes!$B$5:$C$100,2,FALSE),\"\"))","v":""},"2b","$E$54","$F$54"]
[13866,{"$f":"Menu!$F$29","v":"X"},{"$f":"Menu!$J$29","v":2020},{"$f":"IF(ISBLANK(INDIRECT(\"'\"&F2235&\"'!\"&G2235)),\"\",INDIRECT(\"'\"&F2235&\"'!\"&G2235))","v":""},{"$f":"IF(ISBLANK(INDIRECT(\"'\"&F2235&\"'!\"&H2235)),\"\",IFERROR(VLOOKUP(TEXT(INDIRECT(\"'\"&F2235&\"'!\"&H2235),\"0\"),Notes!$B$5:$C$100,2,FALSE),\"\"))","v":""},"2b","$G$54","$H$54"]
[13867,{"$f":"Menu!$F$29","v":"X"},{"$f":"Menu!$J$29","v":2020},{"$f":"IF(ISBLANK(INDIRECT(\"'\"&F2236&\"'!\"&G2236)),\"\",INDIRECT(\"'\"&F2236&\"'!\"&G2236))","v":""},{"$f":"IF(ISBLANK(INDIRECT(\"'\"&F2236&\"'!\"&H2236)),\"\",IFERROR(VLOOKUP(TEXT(INDIRECT(\"'\"&F2236&\"'!\"&H2236),\"0\"),Notes!$B$5:$C$100,2,FALSE),\"\"))","v":""},"2b","$I$54","$J$54"]
[13868,{"$f":"Menu!$F$29","v":"X"},{"$f":"Menu!$J$29","v":2020},{"$f":"IF(ISBLANK(INDIRECT(\"'\"&F2237&\"'!\"&G2237)),\"\",INDIRECT(\"'\"&F2237&\"'!\"&G2237))","v":""},{"$f":"IF(ISBLANK(INDIRECT(\"'\"&F2237&\"'!\"&H2237)),\"\",IFERROR(VLOOKUP(TEXT(INDIRECT(\"'\"&F2237&\"'!\"&H2237),\"0\"),Notes!$B$5:$C$100,2,FALSE),\"\"))","v":""},"2b","$K$54","$L$54"]
[13869,{"$f":"Menu!$F$29","v":"X"},{"$f":"Menu!$J$29","v":2020},{"$f":"IF(ISBLANK(INDIRECT(\"'\"&F2238&\"'!\"&G2238)),\"\",INDIRECT(\"'\"&F2238&\"'!\"&G2238))","v":""},{"$f":"IF(ISBLANK(INDIRECT(\"'\"&F2238&\"'!\"&H2238)),\"\",IFERROR(VLOOKUP(TEXT(INDIRECT(\"'\"&F2238&\"'!\"&H2238),\"0\"),Notes!$B$5:$C$100,2,FALSE),\"\"))","v":""},"2b","$M$54","$N$54"]
[13870,{"$f":"Menu!$F$29","v":"X"},{"$f":"Menu!$J$29","v":2020},{"$f":"IF(ISBLANK(INDIRECT(\"'\"&F2239&\"'!\"&G2239)),\"\",INDIRECT(\"'\"&F2239&\"'!\"&G2239))","v":""},{"$f":"IF(ISBLANK(INDIRECT(\"'\"&F2239&\"'!\"&H2239)),\"\",IFERROR(VLOOKUP(TEXT(INDIRECT(\"'\"&F2239&\"'!\"&H2239),\"0\"),Notes!$B$5:$C$100,2,FALSE),\"\"))","v":""},"2b","$O$54","$P$54"]
[13871,{"$f":"Menu!$F$29","v":"X"},{"$f":"Menu!$J$29","v":2020},{"$f":"IF(ISBLANK(INDIRECT(\"'\"&F2240&\"'!\"&G2240)),\"\",INDIRECT(\"'\"&F2240&\"'!\"&G2240))","v":""},{"$f":"IF(ISBLANK(INDIRECT(\"'\"&F2240&\"'!\"&H2240)),\"\",IFERROR(VLOOKUP(TEXT(INDIRECT(\"'\"&F2240&\"'!\"&H2240),\"0\"),Notes!$B$5:$C$100,2,FALSE),\"\"))","v":""},"2b","$Q$54","$R$54"]
[13872,{"$f":"Menu!$F$29","v":"X"},{"$f":"Menu!$J$29","v":2020},{"$f":"IF(ISBLANK(INDIRECT(\"'\"&F2241&\"'!\"&G2241)),\"\",INDIRECT(\"'\"&F2241&\"'!\"&G2241))","v":""},{"$f":"IF(ISBLANK(INDIRECT(\"'\"&F2241&\"'!\"&H2241)),\"\",IFERROR(VLOOKUP(TEXT(INDIRECT(\"'\"&F2241&\"'!\"&H2241),\"0\"),Notes!$B$5:$C$100,2,FALSE),\"\"))","v":""},"2b","$S$54","$T$54"]
[13873,{"$f":"Menu!$F$29","v":"X"},{"$f":"Menu!$J$29","v":2020},{"$f":"IF(ISBLANK(INDIRECT(\"'\"&F2242&\"'!\"&G2242)),\"\",INDIRECT(\"'\"&F2242&\"'!\"&G2242))","v":""},{"$f":"IF(ISBLANK(INDIRECT(\"'\"&F2242&\"'!\"&H2242)),\"\",IFERROR(VLOOKUP(TEXT(INDIRECT(\"'\"&F2242&\"'!\"&H2242),\"0\"),Notes!$B$5:$C$100,2,FALSE),\"\"))","v":""},"2b","$U$54",{"$f":"IF(LEN(TRIM(MID(G2242,4,10)))-LEN(SUBSTITUTE(TRIM(MID(G2242,4,10)),\"$\",\"\"))=0,\"$\"&CHAR(CODE(MID(G2242,2,1))+1)&\"$\"&TRIM(MID(G2242,4,10)),\"$\"&MID(G2242,2,1)&CHAR(CODE(MID(G2242,3,1))+1)&\"$\"&TRIM(MID(G2242,5,11)))","v":"$V$54"}]
[13874,{"$f":"Menu!$F$29","v":"X"},{"$f":"Menu!$J$29","v":2020},{"$f":"IF(ISBLANK(INDIRECT(\"'\"&F2243&\"'!\"&G2243)),\"\",INDIRECT(\"'\"&F2243&\"'!\"&G2243))","v":""},{"$f":"IF(ISBLANK(INDIRECT(\"'\"&F2243&\"'!\"&H2243)),\"\",IFERROR(VLOOKUP(TEXT(INDIRECT(\"'\"&F2243&\"'!\"&H2243),\"0\"),Notes!$B$5:$C$100,2,FALSE),\"\"))","v":""},"2b","$W$54","$X$54"]
[13875,{"$f":"Menu!$F$29","v":"X"},{"$f":"Menu!$J$29","v":2020},{"$f":"IF(ISBLANK(INDIRECT(\"'\"&F2244&\"'!\"&G2244)),\"\",INDIRECT(\"'\"&F2244&\"'!\"&G2244))","v":""},{"$f":"IF(ISBLANK(INDIRECT(\"'\"&F2244&\"'!\"&H2244)),\"\",IFERROR(VLOOKUP(TEXT(INDIRECT(\"'\"&F2244&\"'!\"&H2244),\"0\"),Notes!$B$5:$C$100,2,FALSE),\"\"))","v":""},"2b","$Y$54","$Z$54"]
[13876,{"$f":"Menu!$F$29","v":"X"},{"$f":"Menu!$J$29","v":2020},{"$f":"IF(ISBLANK(INDIRECT(\"'\"&F2245&\"'!\"&G2245)),\"\",INDIRECT(\"'\"&F2245&\"'!\"&G2245))","v":""},{"$f":"IF(ISBLANK(INDIRECT(\"'\"&F2245&\"'!\"&H2245)),\"\",IFERROR(VLOOKUP(TEXT(INDIRECT(\"'\"&F2245&\"'!\"&H2245),\"0\"),Notes!$B$5:$C$100,2,FALSE),\"\"))","v":""},"2b","$AA$54","$AB$54"]
[13889,{"$f":"Menu!$F$29","v":"X"},{"$f":"Menu!$J$29","v":2020},{"$f":"IF(ISBLANK(INDIRECT(\"'\"&F2246&\"'!\"&G2246)),\"\",INDIRECT(\"'\"&F2246&\"'!\"&G2246))","v":""},{"$f":"IF(ISBLANK(INDIRECT(\"'\"&F2246&\"'!\"&H2246)),\"\",IFERROR(VLOOKUP(TEXT(INDIRECT(\"'\"&F2246&\"'!\"&H2246),\"0\"),Notes!$B$5:$C$100,2,FALSE),\"\"))","v":""},"2b","$E$101","$F$101"]
[13890,{"$f":"Menu!$F$29","v":"X"},{"$f":"Menu!$J$29","v":2020},{"$f":"IF(ISBLANK(INDIRECT(\"'\"&F2247&\"'!\"&G2247)),\"\",INDIRECT(\"'\"&F2247&\"'!\"&G2247))","v":""},{"$f":"IF(ISBLANK(INDIRECT(\"'\"&F2247&\"'!\"&H2247)),\"\",IFERROR(VLOOKUP(TEXT(INDIRECT(\"'\"&F2247&\"'!\"&H2247),\"0\"),Notes!$B$5:$C$100,2,FALSE),\"\"))","v":""},"2b","$G$101","$H$101"]
[13891,{"$f":"Menu!$F$29","v":"X"},{"$f":"Menu!$J$29","v":2020},{"$f":"IF(ISBLANK(INDIRECT(\"'\"&F2248&\"'!\"&G2248)),\"\",INDIRECT(\"'\"&F2248&\"'!\"&G2248))","v":""},{"$f":"IF(ISBLANK(INDIRECT(\"'\"&F2248&\"'!\"&H2248)),\"\",IFERROR(VLOOKUP(TEXT(INDIRECT(\"'\"&F2248&\"'!\"&H2248),\"0\"),Notes!$B$5:$C$100,2,FALSE),\"\"))","v":""},"2b","$I$101","$J$101"]
[13892,{"$f":"Menu!$F$29","v":"X"},{"$f":"Menu!$J$29","v":2020},{"$f":"IF(ISBLANK(INDIRECT(\"'\"&F2249&\"'!\"&G2249)),\"\",INDIRECT(\"'\"&F2249&\"'!\"&G2249))","v":""},{"$f":"IF(ISBLANK(INDIRECT(\"'\"&F2249&\"'!\"&H2249)),\"\",IFERROR(VLOOKUP(TEXT(INDIRECT(\"'\"&F2249&\"'!\"&H2249),\"0\"),Notes!$B$5:$C$100,2,FALSE),\"\"))","v":""},"2b","$K$101","$L$101"]
[13893,{"$f":"Menu!$F$29","v":"X"},{"$f":"Menu!$J$29","v":2020},{"$f":"IF(ISBLANK(INDIRECT(\"'\"&F2250&\"'!\"&G2250)),\"\",INDIRECT(\"'\"&F2250&\"'!\"&G2250))","v":""},{"$f":"IF(ISBLANK(INDIRECT(\"'\"&F2250&\"'!\"&H2250)),\"\",IFERROR(VLOOKUP(TEXT(INDIRECT(\"'\"&F2250&\"'!\"&H2250),\"0\"),Notes!$B$5:$C$100,2,FALSE),\"\"))","v":""},"2b","$M$101","$N$101"]
[13894,{"$f":"Menu!$F$29","v":"X"},{"$f":"Menu!$J$29","v":2020},{"$f":"IF(ISBLANK(INDIRECT(\"'\"&F2251&\"'!\"&G2251)),\"\",INDIRECT(\"'\"&F2251&\"'!\"&G2251))","v":""},{"$f":"IF(ISBLANK(INDIRECT(\"'\"&F2251&\"'!\"&H2251)),\"\",IFERROR(VLOOKUP(TEXT(INDIRECT(\"'\"&F2251&\"'!\"&H2251),\"0\"),Notes!$B$5:$C$100,2,FALSE),\"\"))","v":""},"2b","$O$101","$P$101"]
[13895,{"$f":"Menu!$F$29","v":"X"},{"$f":"Menu!$J$29","v":2020},{"$f":"IF(ISBLANK(INDIRECT(\"'\"&F2252&\"'!\"&G2252)),\"\",INDIRECT(\"'\"&F2252&\"'!\"&G2252))","v":""},{"$f":"IF(ISBLANK(INDIRECT(\"'\"&F2252&\"'!\"&H2252)),\"\",IFERROR(VLOOKUP(TEXT(INDIRECT(\"'\"&F2252&\"'!\"&H2252),\"0\"),Notes!$B$5:$C$100,2,FALSE),\"\"))","v":""},"2b","$Q$101","$R$101"]
[13896,{"$f":"Menu!$F$29","v":"X"},{"$f":"Menu!$J$29","v":2020},{"$f":"IF(ISBLANK(INDIRECT(\"'\"&F2253&\"'!\"&G2253)),\"\",INDIRECT(\"'\"&F2253&\"'!\"&G2253))","v":""},{"$f":"IF(ISBLANK(INDIRECT(\"'\"&F2253&\"'!\"&H2253)),\"\",IFERROR(VLOOKUP(TEXT(INDIRECT(\"'\"&F2253&\"'!\"&H2253),\"0\"),Notes!$B$5:$C$100,2,FALSE),\"\"))","v":""},"2b","$S$101","$T$101"]
[13897,{"$f":"Menu!$F$29","v":"X"},{"$f":"Menu!$J$29","v":2020},{"$f":"IF(ISBLANK(INDIRECT(\"'\"&F2254&\"'!\"&G2254)),\"\",INDIRECT(\"'\"&F2254&\"'!\"&G2254))","v":""},{"$f":"IF(ISBLANK(INDIRECT(\"'\"&F2254&\"'!\"&H2254)),\"\",IFERROR(VLOOKUP(TEXT(INDIRECT(\"'\"&F2254&\"'!\"&H2254),\"0\"),Notes!$B$5:$C$100,2,FALSE),\"\"))","v":""},"2b","$U$101","$V$101"]
[13898,{"$f":"Menu!$F$29","v":"X"},{"$f":"Menu!$J$29","v":2020},{"$f":"IF(ISBLANK(INDIRECT(\"'\"&F2255&\"'!\"&G2255)),\"\",INDIRECT(\"'\"&F2255&\"'!\"&G2255))","v":""},{"$f":"IF(ISBLANK(INDIRECT(\"'\"&F2255&\"'!\"&H2255)),\"\",IFERROR(VLOOKUP(TEXT(INDIRECT(\"'\"&F2255&\"'!\"&H2255),\"0\"),Notes!$B$5:$C$100,2,FALSE),\"\"))","v":""},"2b","$W$101","$X$101"]
[13899,{"$f":"Menu!$F$29","v":"X"},{"$f":"Menu!$J$29","v":2020},{"$f":"IF(ISBLANK(INDIRECT(\"'\"&F2256&\"'!\"&G2256)),\"\",INDIRECT(\"'\"&F2256&\"'!\"&G2256))","v":""},{"$f":"IF(ISBLANK(INDIRECT(\"'\"&F2256&\"'!\"&H2256)),\"\",IFERROR(VLOOKUP(TEXT(INDIRECT(\"'\"&F2256&\"'!\"&H2256),\"0\"),Notes!$B$5:$C$100,2,FALSE),\"\"))","v":""},"2b","$Y$101","$Z$101"]
[13900,{"$f":"Menu!$F$29","v":"X"},{"$f":"Menu!$J$29","v":2020},{"$f":"IF(ISBLANK(INDIRECT(\"'\"&F2257&\"'!\"&G2257)),\"\",INDIRECT(\"'\"&F2257&\"'!\"&G2257))","v":""},{"$f":"IF(ISBLANK(INDIRECT(\"'\"&F2257&\"'!\"&H2257)),\"\",IFERROR(VLOOKUP(TEXT(INDIRECT(\"'\"&F2257&\"'!\"&H2257),\"0\"),Notes!$B$5:$C$100,2,FALSE),\"\"))","v":""},"2b","$AA$101","$AB$101"]
[13901,{"$f":"Menu!$F$29","v":"X"},{"$f":"Menu!$J$29","v":2020},{"$f":"IF(ISBLANK(INDIRECT(\"'\"&F2258&\"'!\"&G2258)),\"\",INDIRECT(\"'\"&F2258&\"'!\"&G2258))","v":""},{"$f":"IF(ISBLANK(INDIRECT(\"'\"&F2258&\"'!\"&H2258)),\"\",IFERROR(VLOOKUP(TEXT(INDIRECT(\"'\"&F2258&\"'!\"&H2258),\"0\"),Notes!$B$5:$C$100,2,FALSE),\"\"))","v":""},"2b","$E$102","$F$102"]
[13902,{"$f":"Menu!$F$29","v":"X"},{"$f":"Menu!$J$29","v":2020},{"$f":"IF(ISBLANK(INDIRECT(\"'\"&F2259&\"'!\"&G2259)),\"\",INDIRECT(\"'\"&F2259&\"'!\"&G2259))","v":""},{"$f":"IF(ISBLANK(INDIRECT(\"'\"&F2259&\"'!\"&H2259)),\"\",IFERROR(VLOOKUP(TEXT(INDIRECT(\"'\"&F2259&\"'!\"&H2259),\"0\"),Notes!$B$5:$C$100,2,FALSE),\"\"))","v":""},"2b","$G$102","$H$102"]
[13903,{"$f":"Menu!$F$29","v":"X"},{"$f":"Menu!$J$29","v":2020},{"$f":"IF(ISBLANK(INDIRECT(\"'\"&F2260&\"'!\"&G2260)),\"\",INDIRECT(\"'\"&F2260&\"'!\"&G2260))","v":""},{"$f":"IF(ISBLANK(INDIRECT(\"'\"&F2260&\"'!\"&H2260)),\"\",IFERROR(VLOOKUP(TEXT(INDIRECT(\"'\"&F2260&\"'!\"&H2260),\"0\"),Notes!$B$5:$C$100,2,FALSE),\"\"))","v":""},"2b","$I$102","$J$102"]
[13904,{"$f":"Menu!$F$29","v":"X"},{"$f":"Menu!$J$29","v":2020},{"$f":"IF(ISBLANK(INDIRECT(\"'\"&F2261&\"'!\"&G2261)),\"\",INDIRECT(\"'\"&F2261&\"'!\"&G2261))","v":""},{"$f":"IF(ISBLANK(INDIRECT(\"'\"&F2261&\"'!\"&H2261)),\"\",IFERROR(VLOOKUP(TEXT(INDIRECT(\"'\"&F2261&\"'!\"&H2261),\"0\"),Notes!$B$5:$C$100,2,FALSE),\"\"))","v":""},"2b","$K$102","$L$102"]
[13905,{"$f":"Menu!$F$29","v":"X"},{"$f":"Menu!$J$29","v":2020},{"$f":"IF(ISBLANK(INDIRECT(\"'\"&F2262&\"'!\"&G2262)),\"\",INDIRECT(\"'\"&F2262&\"'!\"&G2262))","v":""},{"$f":"IF(ISBLANK(INDIRECT(\"'\"&F2262&\"'!\"&H2262)),\"\",IFERROR(VLOOKUP(TEXT(INDIRECT(\"'\"&F2262&\"'!\"&H2262),\"0\"),Notes!$B$5:$C$100,2,FALSE),\"\"))","v":""},"2b","$M$102","$N$102"]
[13906,{"$f":"Menu!$F$29","v":"X"},{"$f":"Menu!$J$29","v":2020},{"$f":"IF(ISBLANK(INDIRECT(\"'\"&F2263&\"'!\"&G2263)),\"\",INDIRECT(\"'\"&F2263&\"'!\"&G2263))","v":""},{"$f":"IF(ISBLANK(INDIRECT(\"'\"&F2263&\"'!\"&H2263)),\"\",IFERROR(VLOOKUP(TEXT(INDIRECT(\"'\"&F2263&\"'!\"&H2263),\"0\"),Notes!$B$5:$C$100,2,FALSE),\"\"))","v":""},"2b","$O$102","$P$102"]
[13907,{"$f":"Menu!$F$29","v":"X"},{"$f":"Menu!$J$29","v":2020},{"$f":"IF(ISBLANK(INDIRECT(\"'\"&F2264&\"'!\"&G2264)),\"\",INDIRECT(\"'\"&F2264&\"'!\"&G2264))","v":""},{"$f":"IF(ISBLANK(INDIRECT(\"'\"&F2264&\"'!\"&H2264)),\"\",IFERROR(VLOOKUP(TEXT(INDIRECT(\"'\"&F2264&\"'!\"&H2264),\"0\"),Notes!$B$5:$C$100,2,FALSE),\"\"))","v":""},"2b","$Q$102","$R$102"]
[13908,{"$f":"Menu!$F$29","v":"X"},{"$f":"Menu!$J$29","v":2020},{"$f":"IF(ISBLANK(INDIRECT(\"'\"&F2265&\"'!\"&G2265)),\"\",INDIRECT(\"'\"&F2265&\"'!\"&G2265))","v":""},{"$f":"IF(ISBLANK(INDIRECT(\"'\"&F2265&\"'!\"&H2265)),\"\",IFERROR(VLOOKUP(TEXT(INDIRECT(\"'\"&F2265&\"'!\"&H2265),\"0\"),Notes!$B$5:$C$100,2,FALSE),\"\"))","v":""},"2b","$S$102","$T$102"]
[13909,{"$f":"Menu!$F$29","v":"X"},{"$f":"Menu!$J$29","v":2020},{"$f":"IF(ISBLANK(INDIRECT(\"'\"&F2266&\"'!\"&G2266)),\"\",INDIRECT(\"'\"&F2266&\"'!\"&G2266))","v":""},{"$f":"IF(ISBLANK(INDIRECT(\"'\"&F2266&\"'!\"&H2266)),\"\",IFERROR(VLOOKUP(TEXT(INDIRECT(\"'\"&F2266&\"'!\"&H2266),\"0\"),Notes!$B$5:$C$100,2,FALSE),\"\"))","v":""},"2b","$U$102","$V$102"]
[13910,{"$f":"Menu!$F$29","v":"X"},{"$f":"Menu!$J$29","v":2020},{"$f":"IF(ISBLANK(INDIRECT(\"'\"&F2267&\"'!\"&G2267)),\"\",INDIRECT(\"'\"&F2267&\"'!\"&G2267))","v":""},{"$f":"IF(ISBLANK(INDIRECT(\"'\"&F2267&\"'!\"&H2267)),\"\",IFERROR(VLOOKUP(TEXT(INDIRECT(\"'\"&F2267&\"'!\"&H2267),\"0\"),Notes!$B$5:$C$100,2,FALSE),\"\"))","v":""},"2b","$W$102","$X$102"]
[13911,{"$f":"Menu!$F$29","v":"X"},{"$f":"Menu!$J$29","v":2020},{"$f":"IF(ISBLANK(INDIRECT(\"'\"&F2268&\"'!\"&G2268)),\"\",INDIRECT(\"'\"&F2268&\"'!\"&G2268))","v":""},{"$f":"IF(ISBLANK(INDIRECT(\"'\"&F2268&\"'!\"&H2268)),\"\",IFERROR(VLOOKUP(TEXT(INDIRECT(\"'\"&F2268&\"'!\"&H2268),\"0\"),Notes!$B$5:$C$100,2,FALSE),\"\"))","v":""},"2b","$Y$102","$Z$102"]
[13912,{"$f":"Menu!$F$29","v":"X"},{"$f":"Menu!$J$29","v":2020},{"$f":"IF(ISBLANK(INDIRECT(\"'\"&F2269&\"'!\"&G2269)),\"\",INDIRECT(\"'\"&F2269&\"'!\"&G2269))","v":""},{"$f":"IF(ISBLANK(INDIRECT(\"'\"&F2269&\"'!\"&H2269)),\"\",IFERROR(VLOOKUP(TEXT(INDIRECT(\"'\"&F2269&\"'!\"&H2269),\"0\"),Notes!$B$5:$C$100,2,FALSE),\"\"))","v":""},"2b","$AA$102","$AB$102"]
[13913,{"$f":"Menu!$F$29","v":"X"},{"$f":"Menu!$J$29","v":2020},{"$f":"IF(ISBLANK(INDIRECT(\"'\"&F2270&\"'!\"&G2270)),\"\",INDIRECT(\"'\"&F2270&\"'!\"&G2270))","v":""},{"$f":"IF(ISBLANK(INDIRECT(\"'\"&F2270&\"'!\"&H2270)),\"\",IFERROR(VLOOKUP(TEXT(INDIRECT(\"'\"&F2270&\"'!\"&H2270),\"0\"),Notes!$B$5:$C$100,2,FALSE),\"\"))","v":""},"2b","$E$103","$F$103"]
[13914,{"$f":"Menu!$F$29","v":"X"},{"$f":"Menu!$J$29","v":2020},{"$f":"IF(ISBLANK(INDIRECT(\"'\"&F2271&\"'!\"&G2271)),\"\",INDIRECT(\"'\"&F2271&\"'!\"&G2271))","v":""},{"$f":"IF(ISBLANK(INDIRECT(\"'\"&F2271&\"'!\"&H2271)),\"\",IFERROR(VLOOKUP(TEXT(INDIRECT(\"'\"&F2271&\"'!\"&H2271),\"0\"),Notes!$B$5:$C$100,2,FALSE),\"\"))","v":""},"2b","$G$103","$H$103"]
[13915,{"$f":"Menu!$F$29","v":"X"},{"$f":"Menu!$J$29","v":2020},{"$f":"IF(ISBLANK(INDIRECT(\"'\"&F2272&\"'!\"&G2272)),\"\",INDIRECT(\"'\"&F2272&\"'!\"&G2272))","v":""},{"$f":"IF(ISBLANK(INDIRECT(\"'\"&F2272&\"'!\"&H2272)),\"\",IFERROR(VLOOKUP(TEXT(INDIRECT(\"'\"&F2272&\"'!\"&H2272),\"0\"),Notes!$B$5:$C$100,2,FALSE),\"\"))","v":""},"2b","$I$103","$J$103"]
[13916,{"$f":"Menu!$F$29","v":"X"},{"$f":"Menu!$J$29","v":2020},{"$f":"IF(ISBLANK(INDIRECT(\"'\"&F2273&\"'!\"&G2273)),\"\",INDIRECT(\"'\"&F2273&\"'!\"&G2273))","v":""},{"$f":"IF(ISBLANK(INDIRECT(\"'\"&F2273&\"'!\"&H2273)),\"\",IFERROR(VLOOKUP(TEXT(INDIRECT(\"'\"&F2273&\"'!\"&H2273),\"0\"),Notes!$B$5:$C$100,2,FALSE),\"\"))","v":""},"2b","$K$103","$L$103"]
[13917,{"$f":"Menu!$F$29","v":"X"},{"$f":"Menu!$J$29","v":2020},{"$f":"IF(ISBLANK(INDIRECT(\"'\"&F2274&\"'!\"&G2274)),\"\",INDIRECT(\"'\"&F2274&\"'!\"&G2274))","v":""},{"$f":"IF(ISBLANK(INDIRECT(\"'\"&F2274&\"'!\"&H2274)),\"\",IFERROR(VLOOKUP(TEXT(INDIRECT(\"'\"&F2274&\"'!\"&H2274),\"0\"),Notes!$B$5:$C$100,2,FALSE),\"\"))","v":""},"2b","$M$103","$N$103"]
[13918,{"$f":"Menu!$F$29","v":"X"},{"$f":"Menu!$J$29","v":2020},{"$f":"IF(ISBLANK(INDIRECT(\"'\"&F2275&\"'!\"&G2275)),\"\",INDIRECT(\"'\"&F2275&\"'!\"&G2275))","v":""},{"$f":"IF(ISBLANK(INDIRECT(\"'\"&F2275&\"'!\"&H2275)),\"\",IFERROR(VLOOKUP(TEXT(INDIRECT(\"'\"&F2275&\"'!\"&H2275),\"0\"),Notes!$B$5:$C$100,2,FALSE),\"\"))","v":""},"2b","$O$103","$P$103"]
[13919,{"$f":"Menu!$F$29","v":"X"},{"$f":"Menu!$J$29","v":2020},{"$f":"IF(ISBLANK(INDIRECT(\"'\"&F2276&\"'!\"&G2276)),\"\",INDIRECT(\"'\"&F2276&\"'!\"&G2276))","v":""},{"$f":"IF(ISBLANK(INDIRECT(\"'\"&F2276&\"'!\"&H2276)),\"\",IFERROR(VLOOKUP(TEXT(INDIRECT(\"'\"&F2276&\"'!\"&H2276),\"0\"),Notes!$B$5:$C$100,2,FALSE),\"\"))","v":""},"2b","$Q$103","$R$103"]
[13920,{"$f":"Menu!$F$29","v":"X"},{"$f":"Menu!$J$29","v":2020},{"$f":"IF(ISBLANK(INDIRECT(\"'\"&F2277&\"'!\"&G2277)),\"\",INDIRECT(\"'\"&F2277&\"'!\"&G2277))","v":""},{"$f":"IF(ISBLANK(INDIRECT(\"'\"&F2277&\"'!\"&H2277)),\"\",IFERROR(VLOOKUP(TEXT(INDIRECT(\"'\"&F2277&\"'!\"&H2277),\"0\"),Notes!$B$5:$C$100,2,FALSE),\"\"))","v":""},"2b","$S$103","$T$103"]
[13921,{"$f":"Menu!$F$29","v":"X"},{"$f":"Menu!$J$29","v":2020},{"$f":"IF(ISBLANK(INDIRECT(\"'\"&F2278&\"'!\"&G2278)),\"\",INDIRECT(\"'\"&F2278&\"'!\"&G2278))","v":""},{"$f":"IF(ISBLANK(INDIRECT(\"'\"&F2278&\"'!\"&H2278)),\"\",IFERROR(VLOOKUP(TEXT(INDIRECT(\"'\"&F2278&\"'!\"&H2278),\"0\"),Notes!$B$5:$C$100,2,FALSE),\"\"))","v":""},"2b","$U$103","$V$103"]
[13922,{"$f":"Menu!$F$29","v":"X"},{"$f":"Menu!$J$29","v":2020},{"$f":"IF(ISBLANK(INDIRECT(\"'\"&F2279&\"'!\"&G2279)),\"\",INDIRECT(\"'\"&F2279&\"'!\"&G2279))","v":""},{"$f":"IF(ISBLANK(INDIRECT(\"'\"&F2279&\"'!\"&H2279)),\"\",IFERROR(VLOOKUP(TEXT(INDIRECT(\"'\"&F2279&\"'!\"&H2279),\"0\"),Notes!$B$5:$C$100,2,FALSE),\"\"))","v":""},"2b","$W$103","$X$103"]
[13923,{"$f":"Menu!$F$29","v":"X"},{"$f":"Menu!$J$29","v":2020},{"$f":"IF(ISBLANK(INDIRECT(\"'\"&F2280&\"'!\"&G2280)),\"\",INDIRECT(\"'\"&F2280&\"'!\"&G2280))","v":""},{"$f":"IF(ISBLANK(INDIRECT(\"'\"&F2280&\"'!\"&H2280)),\"\",IFERROR(VLOOKUP(TEXT(INDIRECT(\"'\"&F2280&\"'!\"&H2280),\"0\"),Notes!$B$5:$C$100,2,FALSE),\"\"))","v":""},"2b","$Y$103","$Z$103"]
[13924,{"$f":"Menu!$F$29","v":"X"},{"$f":"Menu!$J$29","v":2020},{"$f":"IF(ISBLANK(INDIRECT(\"'\"&F2281&\"'!\"&G2281)),\"\",INDIRECT(\"'\"&F2281&\"'!\"&G2281))","v":""},{"$f":"IF(ISBLANK(INDIRECT(\"'\"&F2281&\"'!\"&H2281)),\"\",IFERROR(VLOOKUP(TEXT(INDIRECT(\"'\"&F2281&\"'!\"&H2281),\"0\"),Notes!$B$5:$C$100,2,FALSE),\"\"))","v":""},"2b","$AA$103","$AB$103"]
[13937,{"$f":"Menu!$F$29","v":"X"},{"$f":"Menu!$J$29","v":2020},{"$f":"IF(ISBLANK(INDIRECT(\"'\"&F2282&\"'!\"&G2282)),\"\",INDIRECT(\"'\"&F2282&\"'!\"&G2282))","v":""},{"$f":"IF(ISBLANK(INDIRECT(\"'\"&F2282&\"'!\"&H2282)),\"\",IFERROR(VLOOKUP(TEXT(INDIRECT(\"'\"&F2282&\"'!\"&H2282),\"0\"),Notes!$B$5:$C$100,2,FALSE),\"\"))","v":""},"2b","$E$98","$F$98"]
[13938,{"$f":"Menu!$F$29","v":"X"},{"$f":"Menu!$J$29","v":2020},{"$f":"IF(ISBLANK(INDIRECT(\"'\"&F2283&\"'!\"&G2283)),\"\",INDIRECT(\"'\"&F2283&\"'!\"&G2283))","v":""},{"$f":"IF(ISBLANK(INDIRECT(\"'\"&F2283&\"'!\"&H2283)),\"\",IFERROR(VLOOKUP(TEXT(INDIRECT(\"'\"&F2283&\"'!\"&H2283),\"0\"),Notes!$B$5:$C$100,2,FALSE),\"\"))","v":""},"2b","$G$98","$H$98"]
[13939,{"$f":"Menu!$F$29","v":"X"},{"$f":"Menu!$J$29","v":2020},{"$f":"IF(ISBLANK(INDIRECT(\"'\"&F2284&\"'!\"&G2284)),\"\",INDIRECT(\"'\"&F2284&\"'!\"&G2284))","v":""},{"$f":"IF(ISBLANK(INDIRECT(\"'\"&F2284&\"'!\"&H2284)),\"\",IFERROR(VLOOKUP(TEXT(INDIRECT(\"'\"&F2284&\"'!\"&H2284),\"0\"),Notes!$B$5:$C$100,2,FALSE),\"\"))","v":""},"2b","$I$98","$J$98"]
[13940,{"$f":"Menu!$F$29","v":"X"},{"$f":"Menu!$J$29","v":2020},{"$f":"IF(ISBLANK(INDIRECT(\"'\"&F2285&\"'!\"&G2285)),\"\",INDIRECT(\"'\"&F2285&\"'!\"&G2285))","v":""},{"$f":"IF(ISBLANK(INDIRECT(\"'\"&F2285&\"'!\"&H2285)),\"\",IFERROR(VLOOKUP(TEXT(INDIRECT(\"'\"&F2285&\"'!\"&H2285),\"0\"),Notes!$B$5:$C$100,2,FALSE),\"\"))","v":""},"2b","$K$98","$L$98"]
[13941,{"$f":"Menu!$F$29","v":"X"},{"$f":"Menu!$J$29","v":2020},{"$f":"IF(ISBLANK(INDIRECT(\"'\"&F2286&\"'!\"&G2286)),\"\",INDIRECT(\"'\"&F2286&\"'!\"&G2286))","v":""},{"$f":"IF(ISBLANK(INDIRECT(\"'\"&F2286&\"'!\"&H2286)),\"\",IFERROR(VLOOKUP(TEXT(INDIRECT(\"'\"&F2286&\"'!\"&H2286),\"0\"),Notes!$B$5:$C$100,2,FALSE),\"\"))","v":""},"2b","$M$98","$N$98"]
[13942,{"$f":"Menu!$F$29","v":"X"},{"$f":"Menu!$J$29","v":2020},{"$f":"IF(ISBLANK(INDIRECT(\"'\"&F2287&\"'!\"&G2287)),\"\",INDIRECT(\"'\"&F2287&\"'!\"&G2287))","v":""},{"$f":"IF(ISBLANK(INDIRECT(\"'\"&F2287&\"'!\"&H2287)),\"\",IFERROR(VLOOKUP(TEXT(INDIRECT(\"'\"&F2287&\"'!\"&H2287),\"0\"),Notes!$B$5:$C$100,2,FALSE),\"\"))","v":""},"2b","$O$98","$P$98"]
[13943,{"$f":"Menu!$F$29","v":"X"},{"$f":"Menu!$J$29","v":2020},{"$f":"IF(ISBLANK(INDIRECT(\"'\"&F2288&\"'!\"&G2288)),\"\",INDIRECT(\"'\"&F2288&\"'!\"&G2288))","v":""},{"$f":"IF(ISBLANK(INDIRECT(\"'\"&F2288&\"'!\"&H2288)),\"\",IFERROR(VLOOKUP(TEXT(INDIRECT(\"'\"&F2288&\"'!\"&H2288),\"0\"),Notes!$B$5:$C$100,2,FALSE),\"\"))","v":""},"2b","$Q$98","$R$98"]
[13944,{"$f":"Menu!$F$29","v":"X"},{"$f":"Menu!$J$29","v":2020},{"$f":"IF(ISBLANK(INDIRECT(\"'\"&F2289&\"'!\"&G2289)),\"\",INDIRECT(\"'\"&F2289&\"'!\"&G2289))","v":""},{"$f":"IF(ISBLANK(INDIRECT(\"'\"&F2289&\"'!\"&H2289)),\"\",IFERROR(VLOOKUP(TEXT(INDIRECT(\"'\"&F2289&\"'!\"&H2289),\"0\"),Notes!$B$5:$C$100,2,FALSE),\"\"))","v":""},"2b","$S$98","$T$98"]
[13945,{"$f":"Menu!$F$29","v":"X"},{"$f":"Menu!$J$29","v":2020},{"$f":"IF(ISBLANK(INDIRECT(\"'\"&F2290&\"'!\"&G2290)),\"\",INDIRECT(\"'\"&F2290&\"'!\"&G2290))","v":""},{"$f":"IF(ISBLANK(INDIRECT(\"'\"&F2290&\"'!\"&H2290)),\"\",IFERROR(VLOOKUP(TEXT(INDIRECT(\"'\"&F2290&\"'!\"&H2290),\"0\"),Notes!$B$5:$C$100,2,FALSE),\"\"))","v":""},"2b","$U$98","$V$98"]
[13946,{"$f":"Menu!$F$29","v":"X"},{"$f":"Menu!$J$29","v":2020},{"$f":"IF(ISBLANK(INDIRECT(\"'\"&F2291&\"'!\"&G2291)),\"\",INDIRECT(\"'\"&F2291&\"'!\"&G2291))","v":""},{"$f":"IF(ISBLANK(INDIRECT(\"'\"&F2291&\"'!\"&H2291)),\"\",IFERROR(VLOOKUP(TEXT(INDIRECT(\"'\"&F2291&\"'!\"&H2291),\"0\"),Notes!$B$5:$C$100,2,FALSE),\"\"))","v":""},"2b","$W$98","$X$98"]
[13947,{"$f":"Menu!$F$29","v":"X"},{"$f":"Menu!$J$29","v":2020},{"$f":"IF(ISBLANK(INDIRECT(\"'\"&F2292&\"'!\"&G2292)),\"\",INDIRECT(\"'\"&F2292&\"'!\"&G2292))","v":""},{"$f":"IF(ISBLANK(INDIRECT(\"'\"&F2292&\"'!\"&H2292)),\"\",IFERROR(VLOOKUP(TEXT(INDIRECT(\"'\"&F2292&\"'!\"&H2292),\"0\"),Notes!$B$5:$C$100,2,FALSE),\"\"))","v":""},"2b","$Y$98","$Z$98"]
[13948,{"$f":"Menu!$F$29","v":"X"},{"$f":"Menu!$J$29","v":2020},{"$f":"IF(ISBLANK(INDIRECT(\"'\"&F2293&\"'!\"&G2293)),\"\",INDIRECT(\"'\"&F2293&\"'!\"&G2293))","v":""},{"$f":"IF(ISBLANK(INDIRECT(\"'\"&F2293&\"'!\"&H2293)),\"\",IFERROR(VLOOKUP(TEXT(INDIRECT(\"'\"&F2293&\"'!\"&H2293),\"0\"),Notes!$B$5:$C$100,2,FALSE),\"\"))","v":""},"2b","$AA$98","$AB$98"]
[13949,{"$f":"Menu!$F$29","v":"X"},{"$f":"Menu!$J$29","v":2020},{"$f":"IF(ISBLANK(INDIRECT(\"'\"&F2294&\"'!\"&G2294)),\"\",INDIRECT(\"'\"&F2294&\"'!\"&G2294))","v":""},{"$f":"IF(ISBLANK(INDIRECT(\"'\"&F2294&\"'!\"&H2294)),\"\",IFERROR(VLOOKUP(TEXT(INDIRECT(\"'\"&F2294&\"'!\"&H2294),\"0\"),Notes!$B$5:$C$100,2,FALSE),\"\"))","v":""},"2b","$E$99","$F$99"]
[13950,{"$f":"Menu!$F$29","v":"X"},{"$f":"Menu!$J$29","v":2020},{"$f":"IF(ISBLANK(INDIRECT(\"'\"&F2295&\"'!\"&G2295)),\"\",INDIRECT(\"'\"&F2295&\"'!\"&G2295))","v":""},{"$f":"IF(ISBLANK(INDIRECT(\"'\"&F2295&\"'!\"&H2295)),\"\",IFERROR(VLOOKUP(TEXT(INDIRECT(\"'\"&F2295&\"'!\"&H2295),\"0\"),Notes!$B$5:$C$100,2,FALSE),\"\"))","v":""},"2b","$G$99","$H$99"]
[13951,{"$f":"Menu!$F$29","v":"X"},{"$f":"Menu!$J$29","v":2020},{"$f":"IF(ISBLANK(INDIRECT(\"'\"&F2296&\"'!\"&G2296)),\"\",INDIRECT(\"'\"&F2296&\"'!\"&G2296))","v":""},{"$f":"IF(ISBLANK(INDIRECT(\"'\"&F2296&\"'!\"&H2296)),\"\",IFERROR(VLOOKUP(TEXT(INDIRECT(\"'\"&F2296&\"'!\"&H2296),\"0\"),Notes!$B$5:$C$100,2,FALSE),\"\"))","v":""},"2b","$I$99","$J$99"]
[13952,{"$f":"Menu!$F$29","v":"X"},{"$f":"Menu!$J$29","v":2020},{"$f":"IF(ISBLANK(INDIRECT(\"'\"&F2297&\"'!\"&G2297)),\"\",INDIRECT(\"'\"&F2297&\"'!\"&G2297))","v":""},{"$f":"IF(ISBLANK(INDIRECT(\"'\"&F2297&\"'!\"&H2297)),\"\",IFERROR(VLOOKUP(TEXT(INDIRECT(\"'\"&F2297&\"'!\"&H2297),\"0\"),Notes!$B$5:$C$100,2,FALSE),\"\"))","v":""},"2b","$K$99","$L$99"]
[13953,{"$f":"Menu!$F$29","v":"X"},{"$f":"Menu!$J$29","v":2020},{"$f":"IF(ISBLANK(INDIRECT(\"'\"&F2298&\"'!\"&G2298)),\"\",INDIRECT(\"'\"&F2298&\"'!\"&G2298))","v":""},{"$f":"IF(ISBLANK(INDIRECT(\"'\"&F2298&\"'!\"&H2298)),\"\",IFERROR(VLOOKUP(TEXT(INDIRECT(\"'\"&F2298&\"'!\"&H2298),\"0\"),Notes!$B$5:$C$100,2,FALSE),\"\"))","v":""},"2b","$M$99","$N$99"]
[13954,{"$f":"Menu!$F$29","v":"X"},{"$f":"Menu!$J$29","v":2020},{"$f":"IF(ISBLANK(INDIRECT(\"'\"&F2299&\"'!\"&G2299)),\"\",INDIRECT(\"'\"&F2299&\"'!\"&G2299))","v":""},{"$f":"IF(ISBLANK(INDIRECT(\"'\"&F2299&\"'!\"&H2299)),\"\",IFERROR(VLOOKUP(TEXT(INDIRECT(\"'\"&F2299&\"'!\"&H2299),\"0\"),Notes!$B$5:$C$100,2,FALSE),\"\"))","v":""},"2b","$O$99","$P$99"]
[13955,{"$f":"Menu!$F$29","v":"X"},{"$f":"Menu!$J$29","v":2020},{"$f":"IF(ISBLANK(INDIRECT(\"'\"&F2300&\"'!\"&G2300)),\"\",INDIRECT(\"'\"&F2300&\"'!\"&G2300))","v":""},{"$f":"IF(ISBLANK(INDIRECT(\"'\"&F2300&\"'!\"&H2300)),\"\",IFERROR(VLOOKUP(TEXT(INDIRECT(\"'\"&F2300&\"'!\"&H2300),\"0\"),Notes!$B$5:$C$100,2,FALSE),\"\"))","v":""},"2b","$Q$99","$R$99"]
[13956,{"$f":"Menu!$F$29","v":"X"},{"$f":"Menu!$J$29","v":2020},{"$f":"IF(ISBLANK(INDIRECT(\"'\"&F2301&\"'!\"&G2301)),\"\",INDIRECT(\"'\"&F2301&\"'!\"&G2301))","v":""},{"$f":"IF(ISBLANK(INDIRECT(\"'\"&F2301&\"'!\"&H2301)),\"\",IFERROR(VLOOKUP(TEXT(INDIRECT(\"'\"&F2301&\"'!\"&H2301),\"0\"),Notes!$B$5:$C$100,2,FALSE),\"\"))","v":""},"2b","$S$99","$T$99"]
[13957,{"$f":"Menu!$F$29","v":"X"},{"$f":"Menu!$J$29","v":2020},{"$f":"IF(ISBLANK(INDIRECT(\"'\"&F2302&\"'!\"&G2302)),\"\",INDIRECT(\"'\"&F2302&\"'!\"&G2302))","v":""},{"$f":"IF(ISBLANK(INDIRECT(\"'\"&F2302&\"'!\"&H2302)),\"\",IFERROR(VLOOKUP(TEXT(INDIRECT(\"'\"&F2302&\"'!\"&H2302),\"0\"),Notes!$B$5:$C$100,2,FALSE),\"\"))","v":""},"2b","$U$99","$V$99"]
[13958,{"$f":"Menu!$F$29","v":"X"},{"$f":"Menu!$J$29","v":2020},{"$f":"IF(ISBLANK(INDIRECT(\"'\"&F2303&\"'!\"&G2303)),\"\",INDIRECT(\"'\"&F2303&\"'!\"&G2303))","v":""},{"$f":"IF(ISBLANK(INDIRECT(\"'\"&F2303&\"'!\"&H2303)),\"\",IFERROR(VLOOKUP(TEXT(INDIRECT(\"'\"&F2303&\"'!\"&H2303),\"0\"),Notes!$B$5:$C$100,2,FALSE),\"\"))","v":""},"2b","$W$99","$X$99"]
[13959,{"$f":"Menu!$F$29","v":"X"},{"$f":"Menu!$J$29","v":2020},{"$f":"IF(ISBLANK(INDIRECT(\"'\"&F2304&\"'!\"&G2304)),\"\",INDIRECT(\"'\"&F2304&\"'!\"&G2304))","v":""},{"$f":"IF(ISBLANK(INDIRECT(\"'\"&F2304&\"'!\"&H2304)),\"\",IFERROR(VLOOKUP(TEXT(INDIRECT(\"'\"&F2304&\"'!\"&H2304),\"0\"),Notes!$B$5:$C$100,2,FALSE),\"\"))","v":""},"2b","$Y$99","$Z$99"]
[13960,{"$f":"Menu!$F$29","v":"X"},{"$f":"Menu!$J$29","v":2020},{"$f":"IF(ISBLANK(INDIRECT(\"'\"&F2305&\"'!\"&G2305)),\"\",INDIRECT(\"'\"&F2305&\"'!\"&G2305))","v":""},{"$f":"IF(ISBLANK(INDIRECT(\"'\"&F2305&\"'!\"&H2305)),\"\",IFERROR(VLOOKUP(TEXT(INDIRECT(\"'\"&F2305&\"'!\"&H2305),\"0\"),Notes!$B$5:$C$100,2,FALSE),\"\"))","v":""},"2b","$AA$99","$AB$99"]
[13973,{"$f":"Menu!$F$29","v":"X"},{"$f":"Menu!$J$29","v":2020},{"$f":"IF(ISBLANK(INDIRECT(\"'\"&F2306&\"'!\"&G2306)),\"\",INDIRECT(\"'\"&F2306&\"'!\"&G2306))","v":""},{"$f":"IF(ISBLANK(INDIRECT(\"'\"&F2306&\"'!\"&H2306)),\"\",IFERROR(VLOOKUP(TEXT(INDIRECT(\"'\"&F2306&\"'!\"&H2306),\"0\"),Notes!$B$5:$C$100,2,FALSE),\"\"))","v":""},"2b","$E$105",{"$f":"IF(LEN(TRIM(MID(G2306,4,10)))-LEN(SUBSTITUTE(TRIM(MID(G2306,4,10)),\"$\",\"\"))=0,\"$\"&CHAR(CODE(MID(G2306,2,1))+1)&\"$\"&TRIM(MID(G2306,4,10)),\"$\"&MID(G2306,2,1)&CHAR(CODE(MID(G2306,3,1))+1)&\"$\"&TRIM(MID(G2306,5,11)))","v":"$F$105"}]
[13974,{"$f":"Menu!$F$29","v":"X"},{"$f":"Menu!$J$29","v":2020},{"$f":"IF(ISBLANK(INDIRECT(\"'\"&F2307&\"'!\"&G2307)),\"\",INDIRECT(\"'\"&F2307&\"'!\"&G2307))","v":""},{"$f":"IF(ISBLANK(INDIRECT(\"'\"&F2307&\"'!\"&H2307)),\"\",IFERROR(VLOOKUP(TEXT(INDIRECT(\"'\"&F2307&\"'!\"&H2307),\"0\"),Notes!$B$5:$C$100,2,FALSE),\"\"))","v":""},"2b","$G$105","$H$105"]
[13975,{"$f":"Menu!$F$29","v":"X"},{"$f":"Menu!$J$29","v":2020},{"$f":"IF(ISBLANK(INDIRECT(\"'\"&F2308&\"'!\"&G2308)),\"\",INDIRECT(\"'\"&F2308&\"'!\"&G2308))","v":""},{"$f":"IF(ISBLANK(INDIRECT(\"'\"&F2308&\"'!\"&H2308)),\"\",IFERROR(VLOOKUP(TEXT(INDIRECT(\"'\"&F2308&\"'!\"&H2308),\"0\"),Notes!$B$5:$C$100,2,FALSE),\"\"))","v":""},"2b","$I$105","$J$105"]
[13976,{"$f":"Menu!$F$29","v":"X"},{"$f":"Menu!$J$29","v":2020},{"$f":"IF(ISBLANK(INDIRECT(\"'\"&F2309&\"'!\"&G2309)),\"\",INDIRECT(\"'\"&F2309&\"'!\"&G2309))","v":""},{"$f":"IF(ISBLANK(INDIRECT(\"'\"&F2309&\"'!\"&H2309)),\"\",IFERROR(VLOOKUP(TEXT(INDIRECT(\"'\"&F2309&\"'!\"&H2309),\"0\"),Notes!$B$5:$C$100,2,FALSE),\"\"))","v":""},"2b","$K$105","$L$105"]
[13977,{"$f":"Menu!$F$29","v":"X"},{"$f":"Menu!$J$29","v":2020},{"$f":"IF(ISBLANK(INDIRECT(\"'\"&F2310&\"'!\"&G2310)),\"\",INDIRECT(\"'\"&F2310&\"'!\"&G2310))","v":""},{"$f":"IF(ISBLANK(INDIRECT(\"'\"&F2310&\"'!\"&H2310)),\"\",IFERROR(VLOOKUP(TEXT(INDIRECT(\"'\"&F2310&\"'!\"&H2310),\"0\"),Notes!$B$5:$C$100,2,FALSE),\"\"))","v":""},"2b","$M$105","$N$105"]
[13978,{"$f":"Menu!$F$29","v":"X"},{"$f":"Menu!$J$29","v":2020},{"$f":"IF(ISBLANK(INDIRECT(\"'\"&F2311&\"'!\"&G2311)),\"\",INDIRECT(\"'\"&F2311&\"'!\"&G2311))","v":""},{"$f":"IF(ISBLANK(INDIRECT(\"'\"&F2311&\"'!\"&H2311)),\"\",IFERROR(VLOOKUP(TEXT(INDIRECT(\"'\"&F2311&\"'!\"&H2311),\"0\"),Notes!$B$5:$C$100,2,FALSE),\"\"))","v":""},"2b","$O$105","$P$105"]
[13979,{"$f":"Menu!$F$29","v":"X"},{"$f":"Menu!$J$29","v":2020},{"$f":"IF(ISBLANK(INDIRECT(\"'\"&F2312&\"'!\"&G2312)),\"\",INDIRECT(\"'\"&F2312&\"'!\"&G2312))","v":""},{"$f":"IF(ISBLANK(INDIRECT(\"'\"&F2312&\"'!\"&H2312)),\"\",IFERROR(VLOOKUP(TEXT(INDIRECT(\"'\"&F2312&\"'!\"&H2312),\"0\"),Notes!$B$5:$C$100,2,FALSE),\"\"))","v":""},"2b","$Q$105","$R$105"]
[13980,{"$f":"Menu!$F$29","v":"X"},{"$f":"Menu!$J$29","v":2020},{"$f":"IF(ISBLANK(INDIRECT(\"'\"&F2313&\"'!\"&G2313)),\"\",INDIRECT(\"'\"&F2313&\"'!\"&G2313))","v":""},{"$f":"IF(ISBLANK(INDIRECT(\"'\"&F2313&\"'!\"&H2313)),\"\",IFERROR(VLOOKUP(TEXT(INDIRECT(\"'\"&F2313&\"'!\"&H2313),\"0\"),Notes!$B$5:$C$100,2,FALSE),\"\"))","v":""},"2b","$S$105","$T$105"]
[13981,{"$f":"Menu!$F$29","v":"X"},{"$f":"Menu!$J$29","v":2020},{"$f":"IF(ISBLANK(INDIRECT(\"'\"&F2314&\"'!\"&G2314)),\"\",INDIRECT(\"'\"&F2314&\"'!\"&G2314))","v":""},{"$f":"IF(ISBLANK(INDIRECT(\"'\"&F2314&\"'!\"&H2314)),\"\",IFERROR(VLOOKUP(TEXT(INDIRECT(\"'\"&F2314&\"'!\"&H2314),\"0\"),Notes!$B$5:$C$100,2,FALSE),\"\"))","v":""},"2b","$U$105","$V$105"]
[13982,{"$f":"Menu!$F$29","v":"X"},{"$f":"Menu!$J$29","v":2020},{"$f":"IF(ISBLANK(INDIRECT(\"'\"&F2315&\"'!\"&G2315)),\"\",INDIRECT(\"'\"&F2315&\"'!\"&G2315))","v":""},{"$f":"IF(ISBLANK(INDIRECT(\"'\"&F2315&\"'!\"&H2315)),\"\",IFERROR(VLOOKUP(TEXT(INDIRECT(\"'\"&F2315&\"'!\"&H2315),\"0\"),Notes!$B$5:$C$100,2,FALSE),\"\"))","v":""},"2b","$W$105","$X$105"]
[13983,{"$f":"Menu!$F$29","v":"X"},{"$f":"Menu!$J$29","v":2020},{"$f":"IF(ISBLANK(INDIRECT(\"'\"&F2316&\"'!\"&G2316)),\"\",INDIRECT(\"'\"&F2316&\"'!\"&G2316))","v":""},{"$f":"IF(ISBLANK(INDIRECT(\"'\"&F2316&\"'!\"&H2316)),\"\",IFERROR(VLOOKUP(TEXT(INDIRECT(\"'\"&F2316&\"'!\"&H2316),\"0\"),Notes!$B$5:$C$100,2,FALSE),\"\"))","v":""},"2b","$Y$105","$Z$105"]
[13984,{"$f":"Menu!$F$29","v":"X"},{"$f":"Menu!$J$29","v":2020},{"$f":"IF(ISBLANK(INDIRECT(\"'\"&F2317&\"'!\"&G2317)),\"\",INDIRECT(\"'\"&F2317&\"'!\"&G2317))","v":""},{"$f":"IF(ISBLANK(INDIRECT(\"'\"&F2317&\"'!\"&H2317)),\"\",IFERROR(VLOOKUP(TEXT(INDIRECT(\"'\"&F2317&\"'!\"&H2317),\"0\"),Notes!$B$5:$C$100,2,FALSE),\"\"))","v":""},"2b","$AA$105","$AB$105"]
[14009,{"$f":"Menu!$F$29","v":"X"},{"$f":"Menu!$J$29","v":2020},{"$f":"IF(ISBLANK(INDIRECT(\"'\"&F2318&\"'!\"&G2318)),\"\",INDIRECT(\"'\"&F2318&\"'!\"&G2318))","v":""},{"$f":"IF(ISBLANK(INDIRECT(\"'\"&F2318&\"'!\"&H2318)),\"\",IFERROR(VLOOKUP(TEXT(INDIRECT(\"'\"&F2318&\"'!\"&H2318),\"0\"),Notes!$B$5:$C$100,2,FALSE),\"\"))","v":""},"2b","$E$34","$F$34"]
[14010,{"$f":"Menu!$F$29","v":"X"},{"$f":"Menu!$J$29","v":2020},{"$f":"IF(ISBLANK(INDIRECT(\"'\"&F2319&\"'!\"&G2319)),\"\",INDIRECT(\"'\"&F2319&\"'!\"&G2319))","v":""},{"$f":"IF(ISBLANK(INDIRECT(\"'\"&F2319&\"'!\"&H2319)),\"\",IFERROR(VLOOKUP(TEXT(INDIRECT(\"'\"&F2319&\"'!\"&H2319),\"0\"),Notes!$B$5:$C$100,2,FALSE),\"\"))","v":""},"2b","$G$34","$H$34"]
[14011,{"$f":"Menu!$F$29","v":"X"},{"$f":"Menu!$J$29","v":2020},{"$f":"IF(ISBLANK(INDIRECT(\"'\"&F2320&\"'!\"&G2320)),\"\",INDIRECT(\"'\"&F2320&\"'!\"&G2320))","v":""},{"$f":"IF(ISBLANK(INDIRECT(\"'\"&F2320&\"'!\"&H2320)),\"\",IFERROR(VLOOKUP(TEXT(INDIRECT(\"'\"&F2320&\"'!\"&H2320),\"0\"),Notes!$B$5:$C$100,2,FALSE),\"\"))","v":""},"2b","$I$34","$J$34"]
[14012,{"$f":"Menu!$F$29","v":"X"},{"$f":"Menu!$J$29","v":2020},{"$f":"IF(ISBLANK(INDIRECT(\"'\"&F2321&\"'!\"&G2321)),\"\",INDIRECT(\"'\"&F2321&\"'!\"&G2321))","v":""},{"$f":"IF(ISBLANK(INDIRECT(\"'\"&F2321&\"'!\"&H2321)),\"\",IFERROR(VLOOKUP(TEXT(INDIRECT(\"'\"&F2321&\"'!\"&H2321),\"0\"),Notes!$B$5:$C$100,2,FALSE),\"\"))","v":""},"2b","$K$34","$L$34"]
[14013,{"$f":"Menu!$F$29","v":"X"},{"$f":"Menu!$J$29","v":2020},{"$f":"IF(ISBLANK(INDIRECT(\"'\"&F2322&\"'!\"&G2322)),\"\",INDIRECT(\"'\"&F2322&\"'!\"&G2322))","v":""},{"$f":"IF(ISBLANK(INDIRECT(\"'\"&F2322&\"'!\"&H2322)),\"\",IFERROR(VLOOKUP(TEXT(INDIRECT(\"'\"&F2322&\"'!\"&H2322),\"0\"),Notes!$B$5:$C$100,2,FALSE),\"\"))","v":""},"2b","$M$34","$N$34"]
[14014,{"$f":"Menu!$F$29","v":"X"},{"$f":"Menu!$J$29","v":2020},{"$f":"IF(ISBLANK(INDIRECT(\"'\"&F2323&\"'!\"&G2323)),\"\",INDIRECT(\"'\"&F2323&\"'!\"&G2323))","v":""},{"$f":"IF(ISBLANK(INDIRECT(\"'\"&F2323&\"'!\"&H2323)),\"\",IFERROR(VLOOKUP(TEXT(INDIRECT(\"'\"&F2323&\"'!\"&H2323),\"0\"),Notes!$B$5:$C$100,2,FALSE),\"\"))","v":""},"2b","$O$34","$P$34"]
[14015,{"$f":"Menu!$F$29","v":"X"},{"$f":"Menu!$J$29","v":2020},{"$f":"IF(ISBLANK(INDIRECT(\"'\"&F2324&\"'!\"&G2324)),\"\",INDIRECT(\"'\"&F2324&\"'!\"&G2324))","v":""},{"$f":"IF(ISBLANK(INDIRECT(\"'\"&F2324&\"'!\"&H2324)),\"\",IFERROR(VLOOKUP(TEXT(INDIRECT(\"'\"&F2324&\"'!\"&H2324),\"0\"),Notes!$B$5:$C$100,2,FALSE),\"\"))","v":""},"2b","$Q$34","$R$34"]
[14016,{"$f":"Menu!$F$29","v":"X"},{"$f":"Menu!$J$29","v":2020},{"$f":"IF(ISBLANK(INDIRECT(\"'\"&F2325&\"'!\"&G2325)),\"\",INDIRECT(\"'\"&F2325&\"'!\"&G2325))","v":""},{"$f":"IF(ISBLANK(INDIRECT(\"'\"&F2325&\"'!\"&H2325)),\"\",IFERROR(VLOOKUP(TEXT(INDIRECT(\"'\"&F2325&\"'!\"&H2325),\"0\"),Notes!$B$5:$C$100,2,FALSE),\"\"))","v":""},"2b","$S$34","$T$34"]
[14017,{"$f":"Menu!$F$29","v":"X"},{"$f":"Menu!$J$29","v":2020},{"$f":"IF(ISBLANK(INDIRECT(\"'\"&F2326&\"'!\"&G2326)),\"\",INDIRECT(\"'\"&F2326&\"'!\"&G2326))","v":""},{"$f":"IF(ISBLANK(INDIRECT(\"'\"&F2326&\"'!\"&H2326)),\"\",IFERROR(VLOOKUP(TEXT(INDIRECT(\"'\"&F2326&\"'!\"&H2326),\"0\"),Notes!$B$5:$C$100,2,FALSE),\"\"))","v":""},"2b","$U$34","$V$34"]
[14018,{"$f":"Menu!$F$29","v":"X"},{"$f":"Menu!$J$29","v":2020},{"$f":"IF(ISBLANK(INDIRECT(\"'\"&F2327&\"'!\"&G2327)),\"\",INDIRECT(\"'\"&F2327&\"'!\"&G2327))","v":""},{"$f":"IF(ISBLANK(INDIRECT(\"'\"&F2327&\"'!\"&H2327)),\"\",IFERROR(VLOOKUP(TEXT(INDIRECT(\"'\"&F2327&\"'!\"&H2327),\"0\"),Notes!$B$5:$C$100,2,FALSE),\"\"))","v":""},"2b","$W$34","$X$34"]
[14019,{"$f":"Menu!$F$29","v":"X"},{"$f":"Menu!$J$29","v":2020},{"$f":"IF(ISBLANK(INDIRECT(\"'\"&F2328&\"'!\"&G2328)),\"\",INDIRECT(\"'\"&F2328&\"'!\"&G2328))","v":""},{"$f":"IF(ISBLANK(INDIRECT(\"'\"&F2328&\"'!\"&H2328)),\"\",IFERROR(VLOOKUP(TEXT(INDIRECT(\"'\"&F2328&\"'!\"&H2328),\"0\"),Notes!$B$5:$C$100,2,FALSE),\"\"))","v":""},"2b","$Y$34","$Z$34"]
[14020,{"$f":"Menu!$F$29","v":"X"},{"$f":"Menu!$J$29","v":2020},{"$f":"IF(ISBLANK(INDIRECT(\"'\"&F2329&\"'!\"&G2329)),\"\",INDIRECT(\"'\"&F2329&\"'!\"&G2329))","v":""},{"$f":"IF(ISBLANK(INDIRECT(\"'\"&F2329&\"'!\"&H2329)),\"\",IFERROR(VLOOKUP(TEXT(INDIRECT(\"'\"&F2329&\"'!\"&H2329),\"0\"),Notes!$B$5:$C$100,2,FALSE),\"\"))","v":""},"2b","$AA$34","$AB$34"]
[14021,{"$f":"Menu!$F$29","v":"X"},{"$f":"Menu!$J$29","v":2020},{"$f":"IF(ISBLANK(INDIRECT(\"'\"&F2330&\"'!\"&G2330)),\"\",INDIRECT(\"'\"&F2330&\"'!\"&G2330))","v":""},{"$f":"IF(ISBLANK(INDIRECT(\"'\"&F2330&\"'!\"&H2330)),\"\",IFERROR(VLOOKUP(TEXT(INDIRECT(\"'\"&F2330&\"'!\"&H2330),\"0\"),Notes!$B$5:$C$100,2,FALSE),\"\"))","v":""},"2b","$E$106","$F$106"]
[14022,{"$f":"Menu!$F$29","v":"X"},{"$f":"Menu!$J$29","v":2020},{"$f":"IF(ISBLANK(INDIRECT(\"'\"&F2331&\"'!\"&G2331)),\"\",INDIRECT(\"'\"&F2331&\"'!\"&G2331))","v":""},{"$f":"IF(ISBLANK(INDIRECT(\"'\"&F2331&\"'!\"&H2331)),\"\",IFERROR(VLOOKUP(TEXT(INDIRECT(\"'\"&F2331&\"'!\"&H2331),\"0\"),Notes!$B$5:$C$100,2,FALSE),\"\"))","v":""},"2b","$G$106","$H$106"]
[14023,{"$f":"Menu!$F$29","v":"X"},{"$f":"Menu!$J$29","v":2020},{"$f":"IF(ISBLANK(INDIRECT(\"'\"&F2332&\"'!\"&G2332)),\"\",INDIRECT(\"'\"&F2332&\"'!\"&G2332))","v":""},{"$f":"IF(ISBLANK(INDIRECT(\"'\"&F2332&\"'!\"&H2332)),\"\",IFERROR(VLOOKUP(TEXT(INDIRECT(\"'\"&F2332&\"'!\"&H2332),\"0\"),Notes!$B$5:$C$100,2,FALSE),\"\"))","v":""},"2b","$I$106","$J$106"]
[14024,{"$f":"Menu!$F$29","v":"X"},{"$f":"Menu!$J$29","v":2020},{"$f":"IF(ISBLANK(INDIRECT(\"'\"&F2333&\"'!\"&G2333)),\"\",INDIRECT(\"'\"&F2333&\"'!\"&G2333))","v":""},{"$f":"IF(ISBLANK(INDIRECT(\"'\"&F2333&\"'!\"&H2333)),\"\",IFERROR(VLOOKUP(TEXT(INDIRECT(\"'\"&F2333&\"'!\"&H2333),\"0\"),Notes!$B$5:$C$100,2,FALSE),\"\"))","v":""},"2b","$K$106","$L$106"]
[14025,{"$f":"Menu!$F$29","v":"X"},{"$f":"Menu!$J$29","v":2020},{"$f":"IF(ISBLANK(INDIRECT(\"'\"&F2334&\"'!\"&G2334)),\"\",INDIRECT(\"'\"&F2334&\"'!\"&G2334))","v":""},{"$f":"IF(ISBLANK(INDIRECT(\"'\"&F2334&\"'!\"&H2334)),\"\",IFERROR(VLOOKUP(TEXT(INDIRECT(\"'\"&F2334&\"'!\"&H2334),\"0\"),Notes!$B$5:$C$100,2,FALSE),\"\"))","v":""},"2b","$M$106","$N$106"]
[14026,{"$f":"Menu!$F$29","v":"X"},{"$f":"Menu!$J$29","v":2020},{"$f":"IF(ISBLANK(INDIRECT(\"'\"&F2335&\"'!\"&G2335)),\"\",INDIRECT(\"'\"&F2335&\"'!\"&G2335))","v":""},{"$f":"IF(ISBLANK(INDIRECT(\"'\"&F2335&\"'!\"&H2335)),\"\",IFERROR(VLOOKUP(TEXT(INDIRECT(\"'\"&F2335&\"'!\"&H2335),\"0\"),Notes!$B$5:$C$100,2,FALSE),\"\"))","v":""},"2b","$O$106","$P$106"]
[14027,{"$f":"Menu!$F$29","v":"X"},{"$f":"Menu!$J$29","v":2020},{"$f":"IF(ISBLANK(INDIRECT(\"'\"&F2336&\"'!\"&G2336)),\"\",INDIRECT(\"'\"&F2336&\"'!\"&G2336))","v":""},{"$f":"IF(ISBLANK(INDIRECT(\"'\"&F2336&\"'!\"&H2336)),\"\",IFERROR(VLOOKUP(TEXT(INDIRECT(\"'\"&F2336&\"'!\"&H2336),\"0\"),Notes!$B$5:$C$100,2,FALSE),\"\"))","v":""},"2b","$Q$106","$R$106"]
[14028,{"$f":"Menu!$F$29","v":"X"},{"$f":"Menu!$J$29","v":2020},{"$f":"IF(ISBLANK(INDIRECT(\"'\"&F2337&\"'!\"&G2337)),\"\",INDIRECT(\"'\"&F2337&\"'!\"&G2337))","v":""},{"$f":"IF(ISBLANK(INDIRECT(\"'\"&F2337&\"'!\"&H2337)),\"\",IFERROR(VLOOKUP(TEXT(INDIRECT(\"'\"&F2337&\"'!\"&H2337),\"0\"),Notes!$B$5:$C$100,2,FALSE),\"\"))","v":""},"2b","$S$106","$T$106"]
[14029,{"$f":"Menu!$F$29","v":"X"},{"$f":"Menu!$J$29","v":2020},{"$f":"IF(ISBLANK(INDIRECT(\"'\"&F2338&\"'!\"&G2338)),\"\",INDIRECT(\"'\"&F2338&\"'!\"&G2338))","v":""},{"$f":"IF(ISBLANK(INDIRECT(\"'\"&F2338&\"'!\"&H2338)),\"\",IFERROR(VLOOKUP(TEXT(INDIRECT(\"'\"&F2338&\"'!\"&H2338),\"0\"),Notes!$B$5:$C$100,2,FALSE),\"\"))","v":""},"2b","$U$106","$V$106"]
[14030,{"$f":"Menu!$F$29","v":"X"},{"$f":"Menu!$J$29","v":2020},{"$f":"IF(ISBLANK(INDIRECT(\"'\"&F2339&\"'!\"&G2339)),\"\",INDIRECT(\"'\"&F2339&\"'!\"&G2339))","v":""},{"$f":"IF(ISBLANK(INDIRECT(\"'\"&F2339&\"'!\"&H2339)),\"\",IFERROR(VLOOKUP(TEXT(INDIRECT(\"'\"&F2339&\"'!\"&H2339),\"0\"),Notes!$B$5:$C$100,2,FALSE),\"\"))","v":""},"2b","$W$106","$X$106"]
[14031,{"$f":"Menu!$F$29","v":"X"},{"$f":"Menu!$J$29","v":2020},{"$f":"IF(ISBLANK(INDIRECT(\"'\"&F2340&\"'!\"&G2340)),\"\",INDIRECT(\"'\"&F2340&\"'!\"&G2340))","v":""},{"$f":"IF(ISBLANK(INDIRECT(\"'\"&F2340&\"'!\"&H2340)),\"\",IFERROR(VLOOKUP(TEXT(INDIRECT(\"'\"&F2340&\"'!\"&H2340),\"0\"),Notes!$B$5:$C$100,2,FALSE),\"\"))","v":""},"2b","$Y$106","$Z$106"]
[14032,{"$f":"Menu!$F$29","v":"X"},{"$f":"Menu!$J$29","v":2020},{"$f":"IF(ISBLANK(INDIRECT(\"'\"&F2341&\"'!\"&G2341)),\"\",INDIRECT(\"'\"&F2341&\"'!\"&G2341))","v":""},{"$f":"IF(ISBLANK(INDIRECT(\"'\"&F2341&\"'!\"&H2341)),\"\",IFERROR(VLOOKUP(TEXT(INDIRECT(\"'\"&F2341&\"'!\"&H2341),\"0\"),Notes!$B$5:$C$100,2,FALSE),\"\"))","v":""},"2b","$AA$106","$AB$106"]
[14033,{"$f":"Menu!$F$29","v":"X"},{"$f":"Menu!$J$29","v":2020},{"$f":"IF(ISBLANK(INDIRECT(\"'\"&F2342&\"'!\"&G2342)),\"\",INDIRECT(\"'\"&F2342&\"'!\"&G2342))","v":""},{"$f":"IF(ISBLANK(INDIRECT(\"'\"&F2342&\"'!\"&H2342)),\"\",IFERROR(VLOOKUP(TEXT(INDIRECT(\"'\"&F2342&\"'!\"&H2342),\"0\"),Notes!$B$5:$C$100,2,FALSE),\"\"))","v":""},"2b","$E$38","$F$38"]
[14034,{"$f":"Menu!$F$29","v":"X"},{"$f":"Menu!$J$29","v":2020},{"$f":"IF(ISBLANK(INDIRECT(\"'\"&F2343&\"'!\"&G2343)),\"\",INDIRECT(\"'\"&F2343&\"'!\"&G2343))","v":""},{"$f":"IF(ISBLANK(INDIRECT(\"'\"&F2343&\"'!\"&H2343)),\"\",IFERROR(VLOOKUP(TEXT(INDIRECT(\"'\"&F2343&\"'!\"&H2343),\"0\"),Notes!$B$5:$C$100,2,FALSE),\"\"))","v":""},"2b","$G$38","$H$38"]
[14035,{"$f":"Menu!$F$29","v":"X"},{"$f":"Menu!$J$29","v":2020},{"$f":"IF(ISBLANK(INDIRECT(\"'\"&F2344&\"'!\"&G2344)),\"\",INDIRECT(\"'\"&F2344&\"'!\"&G2344))","v":""},{"$f":"IF(ISBLANK(INDIRECT(\"'\"&F2344&\"'!\"&H2344)),\"\",IFERROR(VLOOKUP(TEXT(INDIRECT(\"'\"&F2344&\"'!\"&H2344),\"0\"),Notes!$B$5:$C$100,2,FALSE),\"\"))","v":""},"2b","$I$38","$J$38"]
[14036,{"$f":"Menu!$F$29","v":"X"},{"$f":"Menu!$J$29","v":2020},{"$f":"IF(ISBLANK(INDIRECT(\"'\"&F2345&\"'!\"&G2345)),\"\",INDIRECT(\"'\"&F2345&\"'!\"&G2345))","v":""},{"$f":"IF(ISBLANK(INDIRECT(\"'\"&F2345&\"'!\"&H2345)),\"\",IFERROR(VLOOKUP(TEXT(INDIRECT(\"'\"&F2345&\"'!\"&H2345),\"0\"),Notes!$B$5:$C$100,2,FALSE),\"\"))","v":""},"2b","$K$38","$L$38"]
[14037,{"$f":"Menu!$F$29","v":"X"},{"$f":"Menu!$J$29","v":2020},{"$f":"IF(ISBLANK(INDIRECT(\"'\"&F2346&\"'!\"&G2346)),\"\",INDIRECT(\"'\"&F2346&\"'!\"&G2346))","v":""},{"$f":"IF(ISBLANK(INDIRECT(\"'\"&F2346&\"'!\"&H2346)),\"\",IFERROR(VLOOKUP(TEXT(INDIRECT(\"'\"&F2346&\"'!\"&H2346),\"0\"),Notes!$B$5:$C$100,2,FALSE),\"\"))","v":""},"2b","$M$38","$N$38"]
[14038,{"$f":"Menu!$F$29","v":"X"},{"$f":"Menu!$J$29","v":2020},{"$f":"IF(ISBLANK(INDIRECT(\"'\"&F2347&\"'!\"&G2347)),\"\",INDIRECT(\"'\"&F2347&\"'!\"&G2347))","v":""},{"$f":"IF(ISBLANK(INDIRECT(\"'\"&F2347&\"'!\"&H2347)),\"\",IFERROR(VLOOKUP(TEXT(INDIRECT(\"'\"&F2347&\"'!\"&H2347),\"0\"),Notes!$B$5:$C$100,2,FALSE),\"\"))","v":""},"2b","$O$38","$P$38"]
[14039,{"$f":"Menu!$F$29","v":"X"},{"$f":"Menu!$J$29","v":2020},{"$f":"IF(ISBLANK(INDIRECT(\"'\"&F2348&\"'!\"&G2348)),\"\",INDIRECT(\"'\"&F2348&\"'!\"&G2348))","v":""},{"$f":"IF(ISBLANK(INDIRECT(\"'\"&F2348&\"'!\"&H2348)),\"\",IFERROR(VLOOKUP(TEXT(INDIRECT(\"'\"&F2348&\"'!\"&H2348),\"0\"),Notes!$B$5:$C$100,2,FALSE),\"\"))","v":""},"2b","$Q$38","$R$38"]
[14040,{"$f":"Menu!$F$29","v":"X"},{"$f":"Menu!$J$29","v":2020},{"$f":"IF(ISBLANK(INDIRECT(\"'\"&F2349&\"'!\"&G2349)),\"\",INDIRECT(\"'\"&F2349&\"'!\"&G2349))","v":""},{"$f":"IF(ISBLANK(INDIRECT(\"'\"&F2349&\"'!\"&H2349)),\"\",IFERROR(VLOOKUP(TEXT(INDIRECT(\"'\"&F2349&\"'!\"&H2349),\"0\"),Notes!$B$5:$C$100,2,FALSE),\"\"))","v":""},"2b","$S$38","$T$38"]
[14041,{"$f":"Menu!$F$29","v":"X"},{"$f":"Menu!$J$29","v":2020},{"$f":"IF(ISBLANK(INDIRECT(\"'\"&F2350&\"'!\"&G2350)),\"\",INDIRECT(\"'\"&F2350&\"'!\"&G2350))","v":""},{"$f":"IF(ISBLANK(INDIRECT(\"'\"&F2350&\"'!\"&H2350)),\"\",IFERROR(VLOOKUP(TEXT(INDIRECT(\"'\"&F2350&\"'!\"&H2350),\"0\"),Notes!$B$5:$C$100,2,FALSE),\"\"))","v":""},"2b","$U$38","$V$38"]
[14042,{"$f":"Menu!$F$29","v":"X"},{"$f":"Menu!$J$29","v":2020},{"$f":"IF(ISBLANK(INDIRECT(\"'\"&F2351&\"'!\"&G2351)),\"\",INDIRECT(\"'\"&F2351&\"'!\"&G2351))","v":""},{"$f":"IF(ISBLANK(INDIRECT(\"'\"&F2351&\"'!\"&H2351)),\"\",IFERROR(VLOOKUP(TEXT(INDIRECT(\"'\"&F2351&\"'!\"&H2351),\"0\"),Notes!$B$5:$C$100,2,FALSE),\"\"))","v":""},"2b","$W$38","$X$38"]
[14043,{"$f":"Menu!$F$29","v":"X"},{"$f":"Menu!$J$29","v":2020},{"$f":"IF(ISBLANK(INDIRECT(\"'\"&F2352&\"'!\"&G2352)),\"\",INDIRECT(\"'\"&F2352&\"'!\"&G2352))","v":""},{"$f":"IF(ISBLANK(INDIRECT(\"'\"&F2352&\"'!\"&H2352)),\"\",IFERROR(VLOOKUP(TEXT(INDIRECT(\"'\"&F2352&\"'!\"&H2352),\"0\"),Notes!$B$5:$C$100,2,FALSE),\"\"))","v":""},"2b","$Y$38","$Z$38"]
[14044,{"$f":"Menu!$F$29","v":"X"},{"$f":"Menu!$J$29","v":2020},{"$f":"IF(ISBLANK(INDIRECT(\"'\"&F2353&\"'!\"&G2353)),\"\",INDIRECT(\"'\"&F2353&\"'!\"&G2353))","v":""},{"$f":"IF(ISBLANK(INDIRECT(\"'\"&F2353&\"'!\"&H2353)),\"\",IFERROR(VLOOKUP(TEXT(INDIRECT(\"'\"&F2353&\"'!\"&H2353),\"0\"),Notes!$B$5:$C$100,2,FALSE),\"\"))","v":""},"2b","$AA$38","$AB$38"]
[14069,{"$f":"Menu!$F$29","v":"X"},{"$f":"Menu!$J$29","v":2020},{"$f":"IF(ISBLANK(INDIRECT(\"'\"&F2354&\"'!\"&G2354)),\"\",INDIRECT(\"'\"&F2354&\"'!\"&G2354))","v":""},{"$f":"IF(ISBLANK(INDIRECT(\"'\"&F2354&\"'!\"&H2354)),\"\",IFERROR(VLOOKUP(TEXT(INDIRECT(\"'\"&F2354&\"'!\"&H2354),\"0\"),Notes!$B$5:$C$100,2,FALSE),\"\"))","v":""},"2b","$E$39","$F$39"]
[14070,{"$f":"Menu!$F$29","v":"X"},{"$f":"Menu!$J$29","v":2020},{"$f":"IF(ISBLANK(INDIRECT(\"'\"&F2355&\"'!\"&G2355)),\"\",INDIRECT(\"'\"&F2355&\"'!\"&G2355))","v":""},{"$f":"IF(ISBLANK(INDIRECT(\"'\"&F2355&\"'!\"&H2355)),\"\",IFERROR(VLOOKUP(TEXT(INDIRECT(\"'\"&F2355&\"'!\"&H2355),\"0\"),Notes!$B$5:$C$100,2,FALSE),\"\"))","v":""},"2b","$G$39","$H$39"]
[14071,{"$f":"Menu!$F$29","v":"X"},{"$f":"Menu!$J$29","v":2020},{"$f":"IF(ISBLANK(INDIRECT(\"'\"&F2356&\"'!\"&G2356)),\"\",INDIRECT(\"'\"&F2356&\"'!\"&G2356))","v":""},{"$f":"IF(ISBLANK(INDIRECT(\"'\"&F2356&\"'!\"&H2356)),\"\",IFERROR(VLOOKUP(TEXT(INDIRECT(\"'\"&F2356&\"'!\"&H2356),\"0\"),Notes!$B$5:$C$100,2,FALSE),\"\"))","v":""},"2b","$I$39","$J$39"]
[14072,{"$f":"Menu!$F$29","v":"X"},{"$f":"Menu!$J$29","v":2020},{"$f":"IF(ISBLANK(INDIRECT(\"'\"&F2357&\"'!\"&G2357)),\"\",INDIRECT(\"'\"&F2357&\"'!\"&G2357))","v":""},{"$f":"IF(ISBLANK(INDIRECT(\"'\"&F2357&\"'!\"&H2357)),\"\",IFERROR(VLOOKUP(TEXT(INDIRECT(\"'\"&F2357&\"'!\"&H2357),\"0\"),Notes!$B$5:$C$100,2,FALSE),\"\"))","v":""},"2b","$K$39","$L$39"]
[14073,{"$f":"Menu!$F$29","v":"X"},{"$f":"Menu!$J$29","v":2020},{"$f":"IF(ISBLANK(INDIRECT(\"'\"&F2358&\"'!\"&G2358)),\"\",INDIRECT(\"'\"&F2358&\"'!\"&G2358))","v":""},{"$f":"IF(ISBLANK(INDIRECT(\"'\"&F2358&\"'!\"&H2358)),\"\",IFERROR(VLOOKUP(TEXT(INDIRECT(\"'\"&F2358&\"'!\"&H2358),\"0\"),Notes!$B$5:$C$100,2,FALSE),\"\"))","v":""},"2b","$M$39","$N$39"]
[14074,{"$f":"Menu!$F$29","v":"X"},{"$f":"Menu!$J$29","v":2020},{"$f":"IF(ISBLANK(INDIRECT(\"'\"&F2359&\"'!\"&G2359)),\"\",INDIRECT(\"'\"&F2359&\"'!\"&G2359))","v":""},{"$f":"IF(ISBLANK(INDIRECT(\"'\"&F2359&\"'!\"&H2359)),\"\",IFERROR(VLOOKUP(TEXT(INDIRECT(\"'\"&F2359&\"'!\"&H2359),\"0\"),Notes!$B$5:$C$100,2,FALSE),\"\"))","v":""},"2b","$O$39","$P$39"]
[14075,{"$f":"Menu!$F$29","v":"X"},{"$f":"Menu!$J$29","v":2020},{"$f":"IF(ISBLANK(INDIRECT(\"'\"&F2360&\"'!\"&G2360)),\"\",INDIRECT(\"'\"&F2360&\"'!\"&G2360))","v":""},{"$f":"IF(ISBLANK(INDIRECT(\"'\"&F2360&\"'!\"&H2360)),\"\",IFERROR(VLOOKUP(TEXT(INDIRECT(\"'\"&F2360&\"'!\"&H2360),\"0\"),Notes!$B$5:$C$100,2,FALSE),\"\"))","v":""},"2b","$Q$39","$R$39"]
[14076,{"$f":"Menu!$F$29","v":"X"},{"$f":"Menu!$J$29","v":2020},{"$f":"IF(ISBLANK(INDIRECT(\"'\"&F2361&\"'!\"&G2361)),\"\",INDIRECT(\"'\"&F2361&\"'!\"&G2361))","v":""},{"$f":"IF(ISBLANK(INDIRECT(\"'\"&F2361&\"'!\"&H2361)),\"\",IFERROR(VLOOKUP(TEXT(INDIRECT(\"'\"&F2361&\"'!\"&H2361),\"0\"),Notes!$B$5:$C$100,2,FALSE),\"\"))","v":""},"2b","$S$39","$T$39"]
[14077,{"$f":"Menu!$F$29","v":"X"},{"$f":"Menu!$J$29","v":2020},{"$f":"IF(ISBLANK(INDIRECT(\"'\"&F2362&\"'!\"&G2362)),\"\",INDIRECT(\"'\"&F2362&\"'!\"&G2362))","v":""},{"$f":"IF(ISBLANK(INDIRECT(\"'\"&F2362&\"'!\"&H2362)),\"\",IFERROR(VLOOKUP(TEXT(INDIRECT(\"'\"&F2362&\"'!\"&H2362),\"0\"),Notes!$B$5:$C$100,2,FALSE),\"\"))","v":""},"2b","$U$39","$V$39"]
[14078,{"$f":"Menu!$F$29","v":"X"},{"$f":"Menu!$J$29","v":2020},{"$f":"IF(ISBLANK(INDIRECT(\"'\"&F2363&\"'!\"&G2363)),\"\",INDIRECT(\"'\"&F2363&\"'!\"&G2363))","v":""},{"$f":"IF(ISBLANK(INDIRECT(\"'\"&F2363&\"'!\"&H2363)),\"\",IFERROR(VLOOKUP(TEXT(INDIRECT(\"'\"&F2363&\"'!\"&H2363),\"0\"),Notes!$B$5:$C$100,2,FALSE),\"\"))","v":""},"2b","$W$39","$X$39"]
[14079,{"$f":"Menu!$F$29","v":"X"},{"$f":"Menu!$J$29","v":2020},{"$f":"IF(ISBLANK(INDIRECT(\"'\"&F2364&\"'!\"&G2364)),\"\",INDIRECT(\"'\"&F2364&\"'!\"&G2364))","v":""},{"$f":"IF(ISBLANK(INDIRECT(\"'\"&F2364&\"'!\"&H2364)),\"\",IFERROR(VLOOKUP(TEXT(INDIRECT(\"'\"&F2364&\"'!\"&H2364),\"0\"),Notes!$B$5:$C$100,2,FALSE),\"\"))","v":""},"2b","$Y$39","$Z$39"]
[14080,{"$f":"Menu!$F$29","v":"X"},{"$f":"Menu!$J$29","v":2020},{"$f":"IF(ISBLANK(INDIRECT(\"'\"&F2365&\"'!\"&G2365)),\"\",INDIRECT(\"'\"&F2365&\"'!\"&G2365))","v":""},{"$f":"IF(ISBLANK(INDIRECT(\"'\"&F2365&\"'!\"&H2365)),\"\",IFERROR(VLOOKUP(TEXT(INDIRECT(\"'\"&F2365&\"'!\"&H2365),\"0\"),Notes!$B$5:$C$100,2,FALSE),\"\"))","v":""},"2b","$AA$39","$AB$39"]
[14081,{"$f":"Menu!$F$29","v":"X"},{"$f":"Menu!$J$29","v":2020},{"$f":"IF(ISBLANK(INDIRECT(\"'\"&F2366&\"'!\"&G2366)),\"\",INDIRECT(\"'\"&F2366&\"'!\"&G2366))","v":""},{"$f":"IF(ISBLANK(INDIRECT(\"'\"&F2366&\"'!\"&H2366)),\"\",IFERROR(VLOOKUP(TEXT(INDIRECT(\"'\"&F2366&\"'!\"&H2366),\"0\"),Notes!$B$5:$C$100,2,FALSE),\"\"))","v":""},"2b","$E$31","$F$31"]
[14082,{"$f":"Menu!$F$29","v":"X"},{"$f":"Menu!$J$29","v":2020},{"$f":"IF(ISBLANK(INDIRECT(\"'\"&F2367&\"'!\"&G2367)),\"\",INDIRECT(\"'\"&F2367&\"'!\"&G2367))","v":""},{"$f":"IF(ISBLANK(INDIRECT(\"'\"&F2367&\"'!\"&H2367)),\"\",IFERROR(VLOOKUP(TEXT(INDIRECT(\"'\"&F2367&\"'!\"&H2367),\"0\"),Notes!$B$5:$C$100,2,FALSE),\"\"))","v":""},"2b","$G$31","$H$31"]
[14083,{"$f":"Menu!$F$29","v":"X"},{"$f":"Menu!$J$29","v":2020},{"$f":"IF(ISBLANK(INDIRECT(\"'\"&F2368&\"'!\"&G2368)),\"\",INDIRECT(\"'\"&F2368&\"'!\"&G2368))","v":""},{"$f":"IF(ISBLANK(INDIRECT(\"'\"&F2368&\"'!\"&H2368)),\"\",IFERROR(VLOOKUP(TEXT(INDIRECT(\"'\"&F2368&\"'!\"&H2368),\"0\"),Notes!$B$5:$C$100,2,FALSE),\"\"))","v":""},"2b","$I$31","$J$31"]
[14084,{"$f":"Menu!$F$29","v":"X"},{"$f":"Menu!$J$29","v":2020},{"$f":"IF(ISBLANK(INDIRECT(\"'\"&F2369&\"'!\"&G2369)),\"\",INDIRECT(\"'\"&F2369&\"'!\"&G2369))","v":""},{"$f":"IF(ISBLANK(INDIRECT(\"'\"&F2369&\"'!\"&H2369)),\"\",IFERROR(VLOOKUP(TEXT(INDIRECT(\"'\"&F2369&\"'!\"&H2369),\"0\"),Notes!$B$5:$C$100,2,FALSE),\"\"))","v":""},"2b","$K$31","$L$31"]
[14085,{"$f":"Menu!$F$29","v":"X"},{"$f":"Menu!$J$29","v":2020},{"$f":"IF(ISBLANK(INDIRECT(\"'\"&F2370&\"'!\"&G2370)),\"\",INDIRECT(\"'\"&F2370&\"'!\"&G2370))","v":""},{"$f":"IF(ISBLANK(INDIRECT(\"'\"&F2370&\"'!\"&H2370)),\"\",IFERROR(VLOOKUP(TEXT(INDIRECT(\"'\"&F2370&\"'!\"&H2370),\"0\"),Notes!$B$5:$C$100,2,FALSE),\"\"))","v":""},"2b","$M$31",{"$f":"IF(LEN(TRIM(MID(G2370,4,10)))-LEN(SUBSTITUTE(TRIM(MID(G2370,4,10)),\"$\",\"\"))=0,\"$\"&CHAR(CODE(MID(G2370,2,1))+1)&\"$\"&TRIM(MID(G2370,4,10)),\"$\"&MID(G2370,2,1)&CHAR(CODE(MID(G2370,3,1))+1)&\"$\"&TRIM(MID(G2370,5,11)))","v":"$N$31"}]
[14086,{"$f":"Menu!$F$29","v":"X"},{"$f":"Menu!$J$29","v":2020},{"$f":"IF(ISBLANK(INDIRECT(\"'\"&F2371&\"'!\"&G2371)),\"\",INDIRECT(\"'\"&F2371&\"'!\"&G2371))","v":""},{"$f":"IF(ISBLANK(INDIRECT(\"'\"&F2371&\"'!\"&H2371)),\"\",IFERROR(VLOOKUP(TEXT(INDIRECT(\"'\"&F2371&\"'!\"&H2371),\"0\"),Notes!$B$5:$C$100,2,FALSE),\"\"))","v":""},"2b","$O$31","$P$31"]
[14087,{"$f":"Menu!$F$29","v":"X"},{"$f":"Menu!$J$29","v":2020},{"$f":"IF(ISBLANK(INDIRECT(\"'\"&F2372&\"'!\"&G2372)),\"\",INDIRECT(\"'\"&F2372&\"'!\"&G2372))","v":""},{"$f":"IF(ISBLANK(INDIRECT(\"'\"&F2372&\"'!\"&H2372)),\"\",IFERROR(VLOOKUP(TEXT(INDIRECT(\"'\"&F2372&\"'!\"&H2372),\"0\"),Notes!$B$5:$C$100,2,FALSE),\"\"))","v":""},"2b","$Q$31","$R$31"]
[14088,{"$f":"Menu!$F$29","v":"X"},{"$f":"Menu!$J$29","v":2020},{"$f":"IF(ISBLANK(INDIRECT(\"'\"&F2373&\"'!\"&G2373)),\"\",INDIRECT(\"'\"&F2373&\"'!\"&G2373))","v":""},{"$f":"IF(ISBLANK(INDIRECT(\"'\"&F2373&\"'!\"&H2373)),\"\",IFERROR(VLOOKUP(TEXT(INDIRECT(\"'\"&F2373&\"'!\"&H2373),\"0\"),Notes!$B$5:$C$100,2,FALSE),\"\"))","v":""},"2b","$S$31","$T$31"]
[14089,{"$f":"Menu!$F$29","v":"X"},{"$f":"Menu!$J$29","v":2020},{"$f":"IF(ISBLANK(INDIRECT(\"'\"&F2374&\"'!\"&G2374)),\"\",INDIRECT(\"'\"&F2374&\"'!\"&G2374))","v":""},{"$f":"IF(ISBLANK(INDIRECT(\"'\"&F2374&\"'!\"&H2374)),\"\",IFERROR(VLOOKUP(TEXT(INDIRECT(\"'\"&F2374&\"'!\"&H2374),\"0\"),Notes!$B$5:$C$100,2,FALSE),\"\"))","v":""},"2b","$U$31","$V$31"]
[14090,{"$f":"Menu!$F$29","v":"X"},{"$f":"Menu!$J$29","v":2020},{"$f":"IF(ISBLANK(INDIRECT(\"'\"&F2375&\"'!\"&G2375)),\"\",INDIRECT(\"'\"&F2375&\"'!\"&G2375))","v":""},{"$f":"IF(ISBLANK(INDIRECT(\"'\"&F2375&\"'!\"&H2375)),\"\",IFERROR(VLOOKUP(TEXT(INDIRECT(\"'\"&F2375&\"'!\"&H2375),\"0\"),Notes!$B$5:$C$100,2,FALSE),\"\"))","v":""},"2b","$W$31","$X$31"]
[14091,{"$f":"Menu!$F$29","v":"X"},{"$f":"Menu!$J$29","v":2020},{"$f":"IF(ISBLANK(INDIRECT(\"'\"&F2376&\"'!\"&G2376)),\"\",INDIRECT(\"'\"&F2376&\"'!\"&G2376))","v":""},{"$f":"IF(ISBLANK(INDIRECT(\"'\"&F2376&\"'!\"&H2376)),\"\",IFERROR(VLOOKUP(TEXT(INDIRECT(\"'\"&F2376&\"'!\"&H2376),\"0\"),Notes!$B$5:$C$100,2,FALSE),\"\"))","v":""},"2b","$Y$31","$Z$31"]
[14092,{"$f":"Menu!$F$29","v":"X"},{"$f":"Menu!$J$29","v":2020},{"$f":"IF(ISBLANK(INDIRECT(\"'\"&F2377&\"'!\"&G2377)),\"\",INDIRECT(\"'\"&F2377&\"'!\"&G2377))","v":""},{"$f":"IF(ISBLANK(INDIRECT(\"'\"&F2377&\"'!\"&H2377)),\"\",IFERROR(VLOOKUP(TEXT(INDIRECT(\"'\"&F2377&\"'!\"&H2377),\"0\"),Notes!$B$5:$C$100,2,FALSE),\"\"))","v":""},"2b","$AA$31","$AB$31"]
[14093,{"$f":"Menu!$F$29","v":"X"},{"$f":"Menu!$J$29","v":2020},{"$f":"IF(ISBLANK(INDIRECT(\"'\"&F2378&\"'!\"&G2378)),\"\",INDIRECT(\"'\"&F2378&\"'!\"&G2378))","v":""},{"$f":"IF(ISBLANK(INDIRECT(\"'\"&F2378&\"'!\"&H2378)),\"\",IFERROR(VLOOKUP(TEXT(INDIRECT(\"'\"&F2378&\"'!\"&H2378),\"0\"),Notes!$B$5:$C$100,2,FALSE),\"\"))","v":""},"2b","$E$41","$F$41"]
[14094,{"$f":"Menu!$F$29","v":"X"},{"$f":"Menu!$J$29","v":2020},{"$f":"IF(ISBLANK(INDIRECT(\"'\"&F2379&\"'!\"&G2379)),\"\",INDIRECT(\"'\"&F2379&\"'!\"&G2379))","v":""},{"$f":"IF(ISBLANK(INDIRECT(\"'\"&F2379&\"'!\"&H2379)),\"\",IFERROR(VLOOKUP(TEXT(INDIRECT(\"'\"&F2379&\"'!\"&H2379),\"0\"),Notes!$B$5:$C$100,2,FALSE),\"\"))","v":""},"2b","$G$41","$H$41"]
[14095,{"$f":"Menu!$F$29","v":"X"},{"$f":"Menu!$J$29","v":2020},{"$f":"IF(ISBLANK(INDIRECT(\"'\"&F2380&\"'!\"&G2380)),\"\",INDIRECT(\"'\"&F2380&\"'!\"&G2380))","v":""},{"$f":"IF(ISBLANK(INDIRECT(\"'\"&F2380&\"'!\"&H2380)),\"\",IFERROR(VLOOKUP(TEXT(INDIRECT(\"'\"&F2380&\"'!\"&H2380),\"0\"),Notes!$B$5:$C$100,2,FALSE),\"\"))","v":""},"2b","$I$41","$J$41"]
[14096,{"$f":"Menu!$F$29","v":"X"},{"$f":"Menu!$J$29","v":2020},{"$f":"IF(ISBLANK(INDIRECT(\"'\"&F2381&\"'!\"&G2381)),\"\",INDIRECT(\"'\"&F2381&\"'!\"&G2381))","v":""},{"$f":"IF(ISBLANK(INDIRECT(\"'\"&F2381&\"'!\"&H2381)),\"\",IFERROR(VLOOKUP(TEXT(INDIRECT(\"'\"&F2381&\"'!\"&H2381),\"0\"),Notes!$B$5:$C$100,2,FALSE),\"\"))","v":""},"2b","$K$41","$L$41"]
[14097,{"$f":"Menu!$F$29","v":"X"},{"$f":"Menu!$J$29","v":2020},{"$f":"IF(ISBLANK(INDIRECT(\"'\"&F2382&\"'!\"&G2382)),\"\",INDIRECT(\"'\"&F2382&\"'!\"&G2382))","v":""},{"$f":"IF(ISBLANK(INDIRECT(\"'\"&F2382&\"'!\"&H2382)),\"\",IFERROR(VLOOKUP(TEXT(INDIRECT(\"'\"&F2382&\"'!\"&H2382),\"0\"),Notes!$B$5:$C$100,2,FALSE),\"\"))","v":""},"2b","$M$41","$N$41"]
[14098,{"$f":"Menu!$F$29","v":"X"},{"$f":"Menu!$J$29","v":2020},{"$f":"IF(ISBLANK(INDIRECT(\"'\"&F2383&\"'!\"&G2383)),\"\",INDIRECT(\"'\"&F2383&\"'!\"&G2383))","v":""},{"$f":"IF(ISBLANK(INDIRECT(\"'\"&F2383&\"'!\"&H2383)),\"\",IFERROR(VLOOKUP(TEXT(INDIRECT(\"'\"&F2383&\"'!\"&H2383),\"0\"),Notes!$B$5:$C$100,2,FALSE),\"\"))","v":""},"2b","$O$41","$P$41"]
[14099,{"$f":"Menu!$F$29","v":"X"},{"$f":"Menu!$J$29","v":2020},{"$f":"IF(ISBLANK(INDIRECT(\"'\"&F2384&\"'!\"&G2384)),\"\",INDIRECT(\"'\"&F2384&\"'!\"&G2384))","v":""},{"$f":"IF(ISBLANK(INDIRECT(\"'\"&F2384&\"'!\"&H2384)),\"\",IFERROR(VLOOKUP(TEXT(INDIRECT(\"'\"&F2384&\"'!\"&H2384),\"0\"),Notes!$B$5:$C$100,2,FALSE),\"\"))","v":""},"2b","$Q$41","$R$41"]
[14100,{"$f":"Menu!$F$29","v":"X"},{"$f":"Menu!$J$29","v":2020},{"$f":"IF(ISBLANK(INDIRECT(\"'\"&F2385&\"'!\"&G2385)),\"\",INDIRECT(\"'\"&F2385&\"'!\"&G2385))","v":""},{"$f":"IF(ISBLANK(INDIRECT(\"'\"&F2385&\"'!\"&H2385)),\"\",IFERROR(VLOOKUP(TEXT(INDIRECT(\"'\"&F2385&\"'!\"&H2385),\"0\"),Notes!$B$5:$C$100,2,FALSE),\"\"))","v":""},"2b","$S$41","$T$41"]
[14101,{"$f":"Menu!$F$29","v":"X"},{"$f":"Menu!$J$29","v":2020},{"$f":"IF(ISBLANK(INDIRECT(\"'\"&F2386&\"'!\"&G2386)),\"\",INDIRECT(\"'\"&F2386&\"'!\"&G2386))","v":""},{"$f":"IF(ISBLANK(INDIRECT(\"'\"&F2386&\"'!\"&H2386)),\"\",IFERROR(VLOOKUP(TEXT(INDIRECT(\"'\"&F2386&\"'!\"&H2386),\"0\"),Notes!$B$5:$C$100,2,FALSE),\"\"))","v":""},"2b","$U$41","$V$41"]
[14102,{"$f":"Menu!$F$29","v":"X"},{"$f":"Menu!$J$29","v":2020},{"$f":"IF(ISBLANK(INDIRECT(\"'\"&F2387&\"'!\"&G2387)),\"\",INDIRECT(\"'\"&F2387&\"'!\"&G2387))","v":""},{"$f":"IF(ISBLANK(INDIRECT(\"'\"&F2387&\"'!\"&H2387)),\"\",IFERROR(VLOOKUP(TEXT(INDIRECT(\"'\"&F2387&\"'!\"&H2387),\"0\"),Notes!$B$5:$C$100,2,FALSE),\"\"))","v":""},"2b","$W$41","$X$41"]
[14103,{"$f":"Menu!$F$29","v":"X"},{"$f":"Menu!$J$29","v":2020},{"$f":"IF(ISBLANK(INDIRECT(\"'\"&F2388&\"'!\"&G2388)),\"\",INDIRECT(\"'\"&F2388&\"'!\"&G2388))","v":""},{"$f":"IF(ISBLANK(INDIRECT(\"'\"&F2388&\"'!\"&H2388)),\"\",IFERROR(VLOOKUP(TEXT(INDIRECT(\"'\"&F2388&\"'!\"&H2388),\"0\"),Notes!$B$5:$C$100,2,FALSE),\"\"))","v":""},"2b","$Y$41","$Z$41"]
[14104,{"$f":"Menu!$F$29","v":"X"},{"$f":"Menu!$J$29","v":2020},{"$f":"IF(ISBLANK(INDIRECT(\"'\"&F2389&\"'!\"&G2389)),\"\",INDIRECT(\"'\"&F2389&\"'!\"&G2389))","v":""},{"$f":"IF(ISBLANK(INDIRECT(\"'\"&F2389&\"'!\"&H2389)),\"\",IFERROR(VLOOKUP(TEXT(INDIRECT(\"'\"&F2389&\"'!\"&H2389),\"0\"),Notes!$B$5:$C$100,2,FALSE),\"\"))","v":""},"2b","$AA$41","$AB$41"]
[14105,{"$f":"Menu!$F$29","v":"X"},{"$f":"Menu!$J$29","v":2020},{"$f":"IF(ISBLANK(INDIRECT(\"'\"&F2390&\"'!\"&G2390)),\"\",INDIRECT(\"'\"&F2390&\"'!\"&G2390))","v":""},{"$f":"IF(ISBLANK(INDIRECT(\"'\"&F2390&\"'!\"&H2390)),\"\",IFERROR(VLOOKUP(TEXT(INDIRECT(\"'\"&F2390&\"'!\"&H2390),\"0\"),Notes!$B$5:$C$100,2,FALSE),\"\"))","v":""},"2b","$E$51","$F$51"]
[14106,{"$f":"Menu!$F$29","v":"X"},{"$f":"Menu!$J$29","v":2020},{"$f":"IF(ISBLANK(INDIRECT(\"'\"&F2391&\"'!\"&G2391)),\"\",INDIRECT(\"'\"&F2391&\"'!\"&G2391))","v":""},{"$f":"IF(ISBLANK(INDIRECT(\"'\"&F2391&\"'!\"&H2391)),\"\",IFERROR(VLOOKUP(TEXT(INDIRECT(\"'\"&F2391&\"'!\"&H2391),\"0\"),Notes!$B$5:$C$100,2,FALSE),\"\"))","v":""},"2b","$G$51","$H$51"]
[14107,{"$f":"Menu!$F$29","v":"X"},{"$f":"Menu!$J$29","v":2020},{"$f":"IF(ISBLANK(INDIRECT(\"'\"&F2392&\"'!\"&G2392)),\"\",INDIRECT(\"'\"&F2392&\"'!\"&G2392))","v":""},{"$f":"IF(ISBLANK(INDIRECT(\"'\"&F2392&\"'!\"&H2392)),\"\",IFERROR(VLOOKUP(TEXT(INDIRECT(\"'\"&F2392&\"'!\"&H2392),\"0\"),Notes!$B$5:$C$100,2,FALSE),\"\"))","v":""},"2b","$I$51","$J$51"]
[14108,{"$f":"Menu!$F$29","v":"X"},{"$f":"Menu!$J$29","v":2020},{"$f":"IF(ISBLANK(INDIRECT(\"'\"&F2393&\"'!\"&G2393)),\"\",INDIRECT(\"'\"&F2393&\"'!\"&G2393))","v":""},{"$f":"IF(ISBLANK(INDIRECT(\"'\"&F2393&\"'!\"&H2393)),\"\",IFERROR(VLOOKUP(TEXT(INDIRECT(\"'\"&F2393&\"'!\"&H2393),\"0\"),Notes!$B$5:$C$100,2,FALSE),\"\"))","v":""},"2b","$K$51","$L$51"]
[14109,{"$f":"Menu!$F$29","v":"X"},{"$f":"Menu!$J$29","v":2020},{"$f":"IF(ISBLANK(INDIRECT(\"'\"&F2394&\"'!\"&G2394)),\"\",INDIRECT(\"'\"&F2394&\"'!\"&G2394))","v":""},{"$f":"IF(ISBLANK(INDIRECT(\"'\"&F2394&\"'!\"&H2394)),\"\",IFERROR(VLOOKUP(TEXT(INDIRECT(\"'\"&F2394&\"'!\"&H2394),\"0\"),Notes!$B$5:$C$100,2,FALSE),\"\"))","v":""},"2b","$M$51","$N$51"]
[14110,{"$f":"Menu!$F$29","v":"X"},{"$f":"Menu!$J$29","v":2020},{"$f":"IF(ISBLANK(INDIRECT(\"'\"&F2395&\"'!\"&G2395)),\"\",INDIRECT(\"'\"&F2395&\"'!\"&G2395))","v":""},{"$f":"IF(ISBLANK(INDIRECT(\"'\"&F2395&\"'!\"&H2395)),\"\",IFERROR(VLOOKUP(TEXT(INDIRECT(\"'\"&F2395&\"'!\"&H2395),\"0\"),Notes!$B$5:$C$100,2,FALSE),\"\"))","v":""},"2b","$O$51","$P$51"]
[14111,{"$f":"Menu!$F$29","v":"X"},{"$f":"Menu!$J$29","v":2020},{"$f":"IF(ISBLANK(INDIRECT(\"'\"&F2396&\"'!\"&G2396)),\"\",INDIRECT(\"'\"&F2396&\"'!\"&G2396))","v":""},{"$f":"IF(ISBLANK(INDIRECT(\"'\"&F2396&\"'!\"&H2396)),\"\",IFERROR(VLOOKUP(TEXT(INDIRECT(\"'\"&F2396&\"'!\"&H2396),\"0\"),Notes!$B$5:$C$100,2,FALSE),\"\"))","v":""},"2b","$Q$51","$R$51"]
[14112,{"$f":"Menu!$F$29","v":"X"},{"$f":"Menu!$J$29","v":2020},{"$f":"IF(ISBLANK(INDIRECT(\"'\"&F2397&\"'!\"&G2397)),\"\",INDIRECT(\"'\"&F2397&\"'!\"&G2397))","v":""},{"$f":"IF(ISBLANK(INDIRECT(\"'\"&F2397&\"'!\"&H2397)),\"\",IFERROR(VLOOKUP(TEXT(INDIRECT(\"'\"&F2397&\"'!\"&H2397),\"0\"),Notes!$B$5:$C$100,2,FALSE),\"\"))","v":""},"2b","$S$51","$T$51"]
[14113,{"$f":"Menu!$F$29","v":"X"},{"$f":"Menu!$J$29","v":2020},{"$f":"IF(ISBLANK(INDIRECT(\"'\"&F2398&\"'!\"&G2398)),\"\",INDIRECT(\"'\"&F2398&\"'!\"&G2398))","v":""},{"$f":"IF(ISBLANK(INDIRECT(\"'\"&F2398&\"'!\"&H2398)),\"\",IFERROR(VLOOKUP(TEXT(INDIRECT(\"'\"&F2398&\"'!\"&H2398),\"0\"),Notes!$B$5:$C$100,2,FALSE),\"\"))","v":""},"2b","$U$51","$V$51"]
[14114,{"$f":"Menu!$F$29","v":"X"},{"$f":"Menu!$J$29","v":2020},{"$f":"IF(ISBLANK(INDIRECT(\"'\"&F2399&\"'!\"&G2399)),\"\",INDIRECT(\"'\"&F2399&\"'!\"&G2399))","v":""},{"$f":"IF(ISBLANK(INDIRECT(\"'\"&F2399&\"'!\"&H2399)),\"\",IFERROR(VLOOKUP(TEXT(INDIRECT(\"'\"&F2399&\"'!\"&H2399),\"0\"),Notes!$B$5:$C$100,2,FALSE),\"\"))","v":""},"2b","$W$51","$X$51"]
[14115,{"$f":"Menu!$F$29","v":"X"},{"$f":"Menu!$J$29","v":2020},{"$f":"IF(ISBLANK(INDIRECT(\"'\"&F2400&\"'!\"&G2400)),\"\",INDIRECT(\"'\"&F2400&\"'!\"&G2400))","v":""},{"$f":"IF(ISBLANK(INDIRECT(\"'\"&F2400&\"'!\"&H2400)),\"\",IFERROR(VLOOKUP(TEXT(INDIRECT(\"'\"&F2400&\"'!\"&H2400),\"0\"),Notes!$B$5:$C$100,2,FALSE),\"\"))","v":""},"2b","$Y$51","$Z$51"]
[14116,{"$f":"Menu!$F$29","v":"X"},{"$f":"Menu!$J$29","v":2020},{"$f":"IF(ISBLANK(INDIRECT(\"'\"&F2401&\"'!\"&G2401)),\"\",INDIRECT(\"'\"&F2401&\"'!\"&G2401))","v":""},{"$f":"IF(ISBLANK(INDIRECT(\"'\"&F2401&\"'!\"&H2401)),\"\",IFERROR(VLOOKUP(TEXT(INDIRECT(\"'\"&F2401&\"'!\"&H2401),\"0\"),Notes!$B$5:$C$100,2,FALSE),\"\"))","v":""},"2b","$AA$51","$AB$51"]
[14117,{"$f":"Menu!$F$29","v":"X"},{"$f":"Menu!$J$29","v":2020},{"$f":"IF(ISBLANK(INDIRECT(\"'\"&F2402&\"'!\"&G2402)),\"\",INDIRECT(\"'\"&F2402&\"'!\"&G2402))","v":""},{"$f":"IF(ISBLANK(INDIRECT(\"'\"&F2402&\"'!\"&H2402)),\"\",IFERROR(VLOOKUP(TEXT(INDIRECT(\"'\"&F2402&\"'!\"&H2402),\"0\"),Notes!$B$5:$C$100,2,FALSE),\"\"))","v":""},"2b","$E$52","$F$52"]
[14118,{"$f":"Menu!$F$29","v":"X"},{"$f":"Menu!$J$29","v":2020},{"$f":"IF(ISBLANK(INDIRECT(\"'\"&F2403&\"'!\"&G2403)),\"\",INDIRECT(\"'\"&F2403&\"'!\"&G2403))","v":""},{"$f":"IF(ISBLANK(INDIRECT(\"'\"&F2403&\"'!\"&H2403)),\"\",IFERROR(VLOOKUP(TEXT(INDIRECT(\"'\"&F2403&\"'!\"&H2403),\"0\"),Notes!$B$5:$C$100,2,FALSE),\"\"))","v":""},"2b","$G$52","$H$52"]
[14119,{"$f":"Menu!$F$29","v":"X"},{"$f":"Menu!$J$29","v":2020},{"$f":"IF(ISBLANK(INDIRECT(\"'\"&F2404&\"'!\"&G2404)),\"\",INDIRECT(\"'\"&F2404&\"'!\"&G2404))","v":""},{"$f":"IF(ISBLANK(INDIRECT(\"'\"&F2404&\"'!\"&H2404)),\"\",IFERROR(VLOOKUP(TEXT(INDIRECT(\"'\"&F2404&\"'!\"&H2404),\"0\"),Notes!$B$5:$C$100,2,FALSE),\"\"))","v":""},"2b","$I$52","$J$52"]
[14120,{"$f":"Menu!$F$29","v":"X"},{"$f":"Menu!$J$29","v":2020},{"$f":"IF(ISBLANK(INDIRECT(\"'\"&F2405&\"'!\"&G2405)),\"\",INDIRECT(\"'\"&F2405&\"'!\"&G2405))","v":""},{"$f":"IF(ISBLANK(INDIRECT(\"'\"&F2405&\"'!\"&H2405)),\"\",IFERROR(VLOOKUP(TEXT(INDIRECT(\"'\"&F2405&\"'!\"&H2405),\"0\"),Notes!$B$5:$C$100,2,FALSE),\"\"))","v":""},"2b","$K$52","$L$52"]
[14121,{"$f":"Menu!$F$29","v":"X"},{"$f":"Menu!$J$29","v":2020},{"$f":"IF(ISBLANK(INDIRECT(\"'\"&F2406&\"'!\"&G2406)),\"\",INDIRECT(\"'\"&F2406&\"'!\"&G2406))","v":""},{"$f":"IF(ISBLANK(INDIRECT(\"'\"&F2406&\"'!\"&H2406)),\"\",IFERROR(VLOOKUP(TEXT(INDIRECT(\"'\"&F2406&\"'!\"&H2406),\"0\"),Notes!$B$5:$C$100,2,FALSE),\"\"))","v":""},"2b","$M$52","$N$52"]
[14122,{"$f":"Menu!$F$29","v":"X"},{"$f":"Menu!$J$29","v":2020},{"$f":"IF(ISBLANK(INDIRECT(\"'\"&F2407&\"'!\"&G2407)),\"\",INDIRECT(\"'\"&F2407&\"'!\"&G2407))","v":""},{"$f":"IF(ISBLANK(INDIRECT(\"'\"&F2407&\"'!\"&H2407)),\"\",IFERROR(VLOOKUP(TEXT(INDIRECT(\"'\"&F2407&\"'!\"&H2407),\"0\"),Notes!$B$5:$C$100,2,FALSE),\"\"))","v":""},"2b","$O$52","$P$52"]
[14123,{"$f":"Menu!$F$29","v":"X"},{"$f":"Menu!$J$29","v":2020},{"$f":"IF(ISBLANK(INDIRECT(\"'\"&F2408&\"'!\"&G2408)),\"\",INDIRECT(\"'\"&F2408&\"'!\"&G2408))","v":""},{"$f":"IF(ISBLANK(INDIRECT(\"'\"&F2408&\"'!\"&H2408)),\"\",IFERROR(VLOOKUP(TEXT(INDIRECT(\"'\"&F2408&\"'!\"&H2408),\"0\"),Notes!$B$5:$C$100,2,FALSE),\"\"))","v":""},"2b","$Q$52","$R$52"]
[14124,{"$f":"Menu!$F$29","v":"X"},{"$f":"Menu!$J$29","v":2020},{"$f":"IF(ISBLANK(INDIRECT(\"'\"&F2409&\"'!\"&G2409)),\"\",INDIRECT(\"'\"&F2409&\"'!\"&G2409))","v":""},{"$f":"IF(ISBLANK(INDIRECT(\"'\"&F2409&\"'!\"&H2409)),\"\",IFERROR(VLOOKUP(TEXT(INDIRECT(\"'\"&F2409&\"'!\"&H2409),\"0\"),Notes!$B$5:$C$100,2,FALSE),\"\"))","v":""},"2b","$S$52","$T$52"]
[14125,{"$f":"Menu!$F$29","v":"X"},{"$f":"Menu!$J$29","v":2020},{"$f":"IF(ISBLANK(INDIRECT(\"'\"&F2410&\"'!\"&G2410)),\"\",INDIRECT(\"'\"&F2410&\"'!\"&G2410))","v":""},{"$f":"IF(ISBLANK(INDIRECT(\"'\"&F2410&\"'!\"&H2410)),\"\",IFERROR(VLOOKUP(TEXT(INDIRECT(\"'\"&F2410&\"'!\"&H2410),\"0\"),Notes!$B$5:$C$100,2,FALSE),\"\"))","v":""},"2b","$U$52","$V$52"]
[14126,{"$f":"Menu!$F$29","v":"X"},{"$f":"Menu!$J$29","v":2020},{"$f":"IF(ISBLANK(INDIRECT(\"'\"&F2411&\"'!\"&G2411)),\"\",INDIRECT(\"'\"&F2411&\"'!\"&G2411))","v":""},{"$f":"IF(ISBLANK(INDIRECT(\"'\"&F2411&\"'!\"&H2411)),\"\",IFERROR(VLOOKUP(TEXT(INDIRECT(\"'\"&F2411&\"'!\"&H2411),\"0\"),Notes!$B$5:$C$100,2,FALSE),\"\"))","v":""},"2b","$W$52","$X$52"]
[14127,{"$f":"Menu!$F$29","v":"X"},{"$f":"Menu!$J$29","v":2020},{"$f":"IF(ISBLANK(INDIRECT(\"'\"&F2412&\"'!\"&G2412)),\"\",INDIRECT(\"'\"&F2412&\"'!\"&G2412))","v":""},{"$f":"IF(ISBLANK(INDIRECT(\"'\"&F2412&\"'!\"&H2412)),\"\",IFERROR(VLOOKUP(TEXT(INDIRECT(\"'\"&F2412&\"'!\"&H2412),\"0\"),Notes!$B$5:$C$100,2,FALSE),\"\"))","v":""},"2b","$Y$52","$Z$52"]
[14128,{"$f":"Menu!$F$29","v":"X"},{"$f":"Menu!$J$29","v":2020},{"$f":"IF(ISBLANK(INDIRECT(\"'\"&F2413&\"'!\"&G2413)),\"\",INDIRECT(\"'\"&F2413&\"'!\"&G2413))","v":""},{"$f":"IF(ISBLANK(INDIRECT(\"'\"&F2413&\"'!\"&H2413)),\"\",IFERROR(VLOOKUP(TEXT(INDIRECT(\"'\"&F2413&\"'!\"&H2413),\"0\"),Notes!$B$5:$C$100,2,FALSE),\"\"))","v":""},"2b","$AA$52","$AB$52"]
[14129,{"$f":"Menu!$F$29","v":"X"},{"$f":"Menu!$J$29","v":2020},{"$f":"IF(ISBLANK(INDIRECT(\"'\"&F2414&\"'!\"&G2414)),\"\",INDIRECT(\"'\"&F2414&\"'!\"&G2414))","v":""},{"$f":"IF(ISBLANK(INDIRECT(\"'\"&F2414&\"'!\"&H2414)),\"\",IFERROR(VLOOKUP(TEXT(INDIRECT(\"'\"&F2414&\"'!\"&H2414),\"0\"),Notes!$B$5:$C$100,2,FALSE),\"\"))","v":""},"2b","$E$40","$F$40"]
[14130,{"$f":"Menu!$F$29","v":"X"},{"$f":"Menu!$J$29","v":2020},{"$f":"IF(ISBLANK(INDIRECT(\"'\"&F2415&\"'!\"&G2415)),\"\",INDIRECT(\"'\"&F2415&\"'!\"&G2415))","v":""},{"$f":"IF(ISBLANK(INDIRECT(\"'\"&F2415&\"'!\"&H2415)),\"\",IFERROR(VLOOKUP(TEXT(INDIRECT(\"'\"&F2415&\"'!\"&H2415),\"0\"),Notes!$B$5:$C$100,2,FALSE),\"\"))","v":""},"2b","$G$40","$H$40"]
[14131,{"$f":"Menu!$F$29","v":"X"},{"$f":"Menu!$J$29","v":2020},{"$f":"IF(ISBLANK(INDIRECT(\"'\"&F2416&\"'!\"&G2416)),\"\",INDIRECT(\"'\"&F2416&\"'!\"&G2416))","v":""},{"$f":"IF(ISBLANK(INDIRECT(\"'\"&F2416&\"'!\"&H2416)),\"\",IFERROR(VLOOKUP(TEXT(INDIRECT(\"'\"&F2416&\"'!\"&H2416),\"0\"),Notes!$B$5:$C$100,2,FALSE),\"\"))","v":""},"2b","$I$40","$J$40"]
[14132,{"$f":"Menu!$F$29","v":"X"},{"$f":"Menu!$J$29","v":2020},{"$f":"IF(ISBLANK(INDIRECT(\"'\"&F2417&\"'!\"&G2417)),\"\",INDIRECT(\"'\"&F2417&\"'!\"&G2417))","v":""},{"$f":"IF(ISBLANK(INDIRECT(\"'\"&F2417&\"'!\"&H2417)),\"\",IFERROR(VLOOKUP(TEXT(INDIRECT(\"'\"&F2417&\"'!\"&H2417),\"0\"),Notes!$B$5:$C$100,2,FALSE),\"\"))","v":""},"2b","$K$40","$L$40"]
[14133,{"$f":"Menu!$F$29","v":"X"},{"$f":"Menu!$J$29","v":2020},{"$f":"IF(ISBLANK(INDIRECT(\"'\"&F2418&\"'!\"&G2418)),\"\",INDIRECT(\"'\"&F2418&\"'!\"&G2418))","v":""},{"$f":"IF(ISBLANK(INDIRECT(\"'\"&F2418&\"'!\"&H2418)),\"\",IFERROR(VLOOKUP(TEXT(INDIRECT(\"'\"&F2418&\"'!\"&H2418),\"0\"),Notes!$B$5:$C$100,2,FALSE),\"\"))","v":""},"2b","$M$40","$N$40"]
[14134,{"$f":"Menu!$F$29","v":"X"},{"$f":"Menu!$J$29","v":2020},{"$f":"IF(ISBLANK(INDIRECT(\"'\"&F2419&\"'!\"&G2419)),\"\",INDIRECT(\"'\"&F2419&\"'!\"&G2419))","v":""},{"$f":"IF(ISBLANK(INDIRECT(\"'\"&F2419&\"'!\"&H2419)),\"\",IFERROR(VLOOKUP(TEXT(INDIRECT(\"'\"&F2419&\"'!\"&H2419),\"0\"),Notes!$B$5:$C$100,2,FALSE),\"\"))","v":""},"2b","$O$40","$P$40"]
[14135,{"$f":"Menu!$F$29","v":"X"},{"$f":"Menu!$J$29","v":2020},{"$f":"IF(ISBLANK(INDIRECT(\"'\"&F2420&\"'!\"&G2420)),\"\",INDIRECT(\"'\"&F2420&\"'!\"&G2420))","v":""},{"$f":"IF(ISBLANK(INDIRECT(\"'\"&F2420&\"'!\"&H2420)),\"\",IFERROR(VLOOKUP(TEXT(INDIRECT(\"'\"&F2420&\"'!\"&H2420),\"0\"),Notes!$B$5:$C$100,2,FALSE),\"\"))","v":""},"2b","$Q$40","$R$40"]
[14136,{"$f":"Menu!$F$29","v":"X"},{"$f":"Menu!$J$29","v":2020},{"$f":"IF(ISBLANK(INDIRECT(\"'\"&F2421&\"'!\"&G2421)),\"\",INDIRECT(\"'\"&F2421&\"'!\"&G2421))","v":""},{"$f":"IF(ISBLANK(INDIRECT(\"'\"&F2421&\"'!\"&H2421)),\"\",IFERROR(VLOOKUP(TEXT(INDIRECT(\"'\"&F2421&\"'!\"&H2421),\"0\"),Notes!$B$5:$C$100,2,FALSE),\"\"))","v":""},"2b","$S$40","$T$40"]
[14137,{"$f":"Menu!$F$29","v":"X"},{"$f":"Menu!$J$29","v":2020},{"$f":"IF(ISBLANK(INDIRECT(\"'\"&F2422&\"'!\"&G2422)),\"\",INDIRECT(\"'\"&F2422&\"'!\"&G2422))","v":""},{"$f":"IF(ISBLANK(INDIRECT(\"'\"&F2422&\"'!\"&H2422)),\"\",IFERROR(VLOOKUP(TEXT(INDIRECT(\"'\"&F2422&\"'!\"&H2422),\"0\"),Notes!$B$5:$C$100,2,FALSE),\"\"))","v":""},"2b","$U$40","$V$40"]
[14138,{"$f":"Menu!$F$29","v":"X"},{"$f":"Menu!$J$29","v":2020},{"$f":"IF(ISBLANK(INDIRECT(\"'\"&F2423&\"'!\"&G2423)),\"\",INDIRECT(\"'\"&F2423&\"'!\"&G2423))","v":""},{"$f":"IF(ISBLANK(INDIRECT(\"'\"&F2423&\"'!\"&H2423)),\"\",IFERROR(VLOOKUP(TEXT(INDIRECT(\"'\"&F2423&\"'!\"&H2423),\"0\"),Notes!$B$5:$C$100,2,FALSE),\"\"))","v":""},"2b","$W$40","$X$40"]
[14139,{"$f":"Menu!$F$29","v":"X"},{"$f":"Menu!$J$29","v":2020},{"$f":"IF(ISBLANK(INDIRECT(\"'\"&F2424&\"'!\"&G2424)),\"\",INDIRECT(\"'\"&F2424&\"'!\"&G2424))","v":""},{"$f":"IF(ISBLANK(INDIRECT(\"'\"&F2424&\"'!\"&H2424)),\"\",IFERROR(VLOOKUP(TEXT(INDIRECT(\"'\"&F2424&\"'!\"&H2424),\"0\"),Notes!$B$5:$C$100,2,FALSE),\"\"))","v":""},"2b","$Y$40","$Z$40"]
[14140,{"$f":"Menu!$F$29","v":"X"},{"$f":"Menu!$J$29","v":2020},{"$f":"IF(ISBLANK(INDIRECT(\"'\"&F2425&\"'!\"&G2425)),\"\",INDIRECT(\"'\"&F2425&\"'!\"&G2425))","v":""},{"$f":"IF(ISBLANK(INDIRECT(\"'\"&F2425&\"'!\"&H2425)),\"\",IFERROR(VLOOKUP(TEXT(INDIRECT(\"'\"&F2425&\"'!\"&H2425),\"0\"),Notes!$B$5:$C$100,2,FALSE),\"\"))","v":""},"2b","$AA$40","$AB$40"]
[14153,{"$f":"Menu!$F$29","v":"X"},{"$f":"Menu!$J$29","v":2020},{"$f":"IF(ISBLANK(INDIRECT(\"'\"&F2426&\"'!\"&G2426)),\"\",INDIRECT(\"'\"&F2426&\"'!\"&G2426))","v":""},{"$f":"IF(ISBLANK(INDIRECT(\"'\"&F2426&\"'!\"&H2426)),\"\",IFERROR(VLOOKUP(TEXT(INDIRECT(\"'\"&F2426&\"'!\"&H2426),\"0\"),Notes!$B$5:$C$100,2,FALSE),\"\"))","v":""},"2b","$E$42","$F$42"]
[14154,{"$f":"Menu!$F$29","v":"X"},{"$f":"Menu!$J$29","v":2020},{"$f":"IF(ISBLANK(INDIRECT(\"'\"&F2427&\"'!\"&G2427)),\"\",INDIRECT(\"'\"&F2427&\"'!\"&G2427))","v":""},{"$f":"IF(ISBLANK(INDIRECT(\"'\"&F2427&\"'!\"&H2427)),\"\",IFERROR(VLOOKUP(TEXT(INDIRECT(\"'\"&F2427&\"'!\"&H2427),\"0\"),Notes!$B$5:$C$100,2,FALSE),\"\"))","v":""},"2b","$G$42","$H$42"]
[14155,{"$f":"Menu!$F$29","v":"X"},{"$f":"Menu!$J$29","v":2020},{"$f":"IF(ISBLANK(INDIRECT(\"'\"&F2428&\"'!\"&G2428)),\"\",INDIRECT(\"'\"&F2428&\"'!\"&G2428))","v":""},{"$f":"IF(ISBLANK(INDIRECT(\"'\"&F2428&\"'!\"&H2428)),\"\",IFERROR(VLOOKUP(TEXT(INDIRECT(\"'\"&F2428&\"'!\"&H2428),\"0\"),Notes!$B$5:$C$100,2,FALSE),\"\"))","v":""},"2b","$I$42","$J$42"]
[14156,{"$f":"Menu!$F$29","v":"X"},{"$f":"Menu!$J$29","v":2020},{"$f":"IF(ISBLANK(INDIRECT(\"'\"&F2429&\"'!\"&G2429)),\"\",INDIRECT(\"'\"&F2429&\"'!\"&G2429))","v":""},{"$f":"IF(ISBLANK(INDIRECT(\"'\"&F2429&\"'!\"&H2429)),\"\",IFERROR(VLOOKUP(TEXT(INDIRECT(\"'\"&F2429&\"'!\"&H2429),\"0\"),Notes!$B$5:$C$100,2,FALSE),\"\"))","v":""},"2b","$K$42","$L$42"]
[14157,{"$f":"Menu!$F$29","v":"X"},{"$f":"Menu!$J$29","v":2020},{"$f":"IF(ISBLANK(INDIRECT(\"'\"&F2430&\"'!\"&G2430)),\"\",INDIRECT(\"'\"&F2430&\"'!\"&G2430))","v":""},{"$f":"IF(ISBLANK(INDIRECT(\"'\"&F2430&\"'!\"&H2430)),\"\",IFERROR(VLOOKUP(TEXT(INDIRECT(\"'\"&F2430&\"'!\"&H2430),\"0\"),Notes!$B$5:$C$100,2,FALSE),\"\"))","v":""},"2b","$M$42","$N$42"]
[14158,{"$f":"Menu!$F$29","v":"X"},{"$f":"Menu!$J$29","v":2020},{"$f":"IF(ISBLANK(INDIRECT(\"'\"&F2431&\"'!\"&G2431)),\"\",INDIRECT(\"'\"&F2431&\"'!\"&G2431))","v":""},{"$f":"IF(ISBLANK(INDIRECT(\"'\"&F2431&\"'!\"&H2431)),\"\",IFERROR(VLOOKUP(TEXT(INDIRECT(\"'\"&F2431&\"'!\"&H2431),\"0\"),Notes!$B$5:$C$100,2,FALSE),\"\"))","v":""},"2b","$O$42","$P$42"]
[14159,{"$f":"Menu!$F$29","v":"X"},{"$f":"Menu!$J$29","v":2020},{"$f":"IF(ISBLANK(INDIRECT(\"'\"&F2432&\"'!\"&G2432)),\"\",INDIRECT(\"'\"&F2432&\"'!\"&G2432))","v":""},{"$f":"IF(ISBLANK(INDIRECT(\"'\"&F2432&\"'!\"&H2432)),\"\",IFERROR(VLOOKUP(TEXT(INDIRECT(\"'\"&F2432&\"'!\"&H2432),\"0\"),Notes!$B$5:$C$100,2,FALSE),\"\"))","v":""},"2b","$Q$42","$R$42"]
[14160,{"$f":"Menu!$F$29","v":"X"},{"$f":"Menu!$J$29","v":2020},{"$f":"IF(ISBLANK(INDIRECT(\"'\"&F2433&\"'!\"&G2433)),\"\",INDIRECT(\"'\"&F2433&\"'!\"&G2433))","v":""},{"$f":"IF(ISBLANK(INDIRECT(\"'\"&F2433&\"'!\"&H2433)),\"\",IFERROR(VLOOKUP(TEXT(INDIRECT(\"'\"&F2433&\"'!\"&H2433),\"0\"),Notes!$B$5:$C$100,2,FALSE),\"\"))","v":""},"2b","$S$42","$T$42"]
[14161,{"$f":"Menu!$F$29","v":"X"},{"$f":"Menu!$J$29","v":2020},{"$f":"IF(ISBLANK(INDIRECT(\"'\"&F2434&\"'!\"&G2434)),\"\",INDIRECT(\"'\"&F2434&\"'!\"&G2434))","v":""},{"$f":"IF(ISBLANK(INDIRECT(\"'\"&F2434&\"'!\"&H2434)),\"\",IFERROR(VLOOKUP(TEXT(INDIRECT(\"'\"&F2434&\"'!\"&H2434),\"0\"),Notes!$B$5:$C$100,2,FALSE),\"\"))","v":""},"2b","$U$42",{"$f":"IF(LEN(TRIM(MID(G2434,4,10)))-LEN(SUBSTITUTE(TRIM(MID(G2434,4,10)),\"$\",\"\"))=0,\"$\"&CHAR(CODE(MID(G2434,2,1))+1)&\"$\"&TRIM(MID(G2434,4,10)),\"$\"&MID(G2434,2,1)&CHAR(CODE(MID(G2434,3,1))+1)&\"$\"&TRIM(MID(G2434,5,11)))","v":"$V$42"}]
[14162,{"$f":"Menu!$F$29","v":"X"},{"$f":"Menu!$J$29","v":2020},{"$f":"IF(ISBLANK(INDIRECT(\"'\"&F2435&\"'!\"&G2435)),\"\",INDIRECT(\"'\"&F2435&\"'!\"&G2435))","v":""},{"$f":"IF(ISBLANK(INDIRECT(\"'\"&F2435&\"'!\"&H2435)),\"\",IFERROR(VLOOKUP(TEXT(INDIRECT(\"'\"&F2435&\"'!\"&H2435),\"0\"),Notes!$B$5:$C$100,2,FALSE),\"\"))","v":""},"2b","$W$42","$X$42"]
[14163,{"$f":"Menu!$F$29","v":"X"},{"$f":"Menu!$J$29","v":2020},{"$f":"IF(ISBLANK(INDIRECT(\"'\"&F2436&\"'!\"&G2436)),\"\",INDIRECT(\"'\"&F2436&\"'!\"&G2436))","v":""},{"$f":"IF(ISBLANK(INDIRECT(\"'\"&F2436&\"'!\"&H2436)),\"\",IFERROR(VLOOKUP(TEXT(INDIRECT(\"'\"&F2436&\"'!\"&H2436),\"0\"),Notes!$B$5:$C$100,2,FALSE),\"\"))","v":""},"2b","$Y$42","$Z$42"]
[14164,{"$f":"Menu!$F$29","v":"X"},{"$f":"Menu!$J$29","v":2020},{"$f":"IF(ISBLANK(INDIRECT(\"'\"&F2437&\"'!\"&G2437)),\"\",INDIRECT(\"'\"&F2437&\"'!\"&G2437))","v":""},{"$f":"IF(ISBLANK(INDIRECT(\"'\"&F2437&\"'!\"&H2437)),\"\",IFERROR(VLOOKUP(TEXT(INDIRECT(\"'\"&F2437&\"'!\"&H2437),\"0\"),Notes!$B$5:$C$100,2,FALSE),\"\"))","v":""},"2b","$AA$42","$AB$42"]
[14165,{"$f":"Menu!$F$29","v":"X"},{"$f":"Menu!$J$29","v":2020},{"$f":"IF(ISBLANK(INDIRECT(\"'\"&F2438&\"'!\"&G2438)),\"\",INDIRECT(\"'\"&F2438&\"'!\"&G2438))","v":""},{"$f":"IF(ISBLANK(INDIRECT(\"'\"&F2438&\"'!\"&H2438)),\"\",IFERROR(VLOOKUP(TEXT(INDIRECT(\"'\"&F2438&\"'!\"&H2438),\"0\"),Notes!$B$5:$C$100,2,FALSE),\"\"))","v":""},"2c","$E$12","$F$12"]
[14166,{"$f":"Menu!$F$29","v":"X"},{"$f":"Menu!$J$29","v":2020},{"$f":"IF(ISBLANK(INDIRECT(\"'\"&F2439&\"'!\"&G2439)),\"\",INDIRECT(\"'\"&F2439&\"'!\"&G2439))","v":""},{"$f":"IF(ISBLANK(INDIRECT(\"'\"&F2439&\"'!\"&H2439)),\"\",IFERROR(VLOOKUP(TEXT(INDIRECT(\"'\"&F2439&\"'!\"&H2439),\"0\"),Notes!$B$5:$C$100,2,FALSE),\"\"))","v":""},"2c","$G$12","$H$12"]
[14167,{"$f":"Menu!$F$29","v":"X"},{"$f":"Menu!$J$29","v":2020},{"$f":"IF(ISBLANK(INDIRECT(\"'\"&F2440&\"'!\"&G2440)),\"\",INDIRECT(\"'\"&F2440&\"'!\"&G2440))","v":""},{"$f":"IF(ISBLANK(INDIRECT(\"'\"&F2440&\"'!\"&H2440)),\"\",IFERROR(VLOOKUP(TEXT(INDIRECT(\"'\"&F2440&\"'!\"&H2440),\"0\"),Notes!$B$5:$C$100,2,FALSE),\"\"))","v":""},"2c","$I$12","$J$12"]
[14168,{"$f":"Menu!$F$29","v":"X"},{"$f":"Menu!$J$29","v":2020},{"$f":"IF(ISBLANK(INDIRECT(\"'\"&F2441&\"'!\"&G2441)),\"\",INDIRECT(\"'\"&F2441&\"'!\"&G2441))","v":""},{"$f":"IF(ISBLANK(INDIRECT(\"'\"&F2441&\"'!\"&H2441)),\"\",IFERROR(VLOOKUP(TEXT(INDIRECT(\"'\"&F2441&\"'!\"&H2441),\"0\"),Notes!$B$5:$C$100,2,FALSE),\"\"))","v":""},"2c","$K$12","$L$12"]
[14169,{"$f":"Menu!$F$29","v":"X"},{"$f":"Menu!$J$29","v":2020},{"$f":"IF(ISBLANK(INDIRECT(\"'\"&F2442&\"'!\"&G2442)),\"\",INDIRECT(\"'\"&F2442&\"'!\"&G2442))","v":""},{"$f":"IF(ISBLANK(INDIRECT(\"'\"&F2442&\"'!\"&H2442)),\"\",IFERROR(VLOOKUP(TEXT(INDIRECT(\"'\"&F2442&\"'!\"&H2442),\"0\"),Notes!$B$5:$C$100,2,FALSE),\"\"))","v":""},"2c","$M$12","$N$12"]
[14170,{"$f":"Menu!$F$29","v":"X"},{"$f":"Menu!$J$29","v":2020},{"$f":"IF(ISBLANK(INDIRECT(\"'\"&F2443&\"'!\"&G2443)),\"\",INDIRECT(\"'\"&F2443&\"'!\"&G2443))","v":""},{"$f":"IF(ISBLANK(INDIRECT(\"'\"&F2443&\"'!\"&H2443)),\"\",IFERROR(VLOOKUP(TEXT(INDIRECT(\"'\"&F2443&\"'!\"&H2443),\"0\"),Notes!$B$5:$C$100,2,FALSE),\"\"))","v":""},"2c","$O$12","$P$12"]
[14171,{"$f":"Menu!$F$29","v":"X"},{"$f":"Menu!$J$29","v":2020},{"$f":"IF(ISBLANK(INDIRECT(\"'\"&F2444&\"'!\"&G2444)),\"\",INDIRECT(\"'\"&F2444&\"'!\"&G2444))","v":""},{"$f":"IF(ISBLANK(INDIRECT(\"'\"&F2444&\"'!\"&H2444)),\"\",IFERROR(VLOOKUP(TEXT(INDIRECT(\"'\"&F2444&\"'!\"&H2444),\"0\"),Notes!$B$5:$C$100,2,FALSE),\"\"))","v":""},"2c","$Q$12","$R$12"]
[14172,{"$f":"Menu!$F$29","v":"X"},{"$f":"Menu!$J$29","v":2020},{"$f":"IF(ISBLANK(INDIRECT(\"'\"&F2445&\"'!\"&G2445)),\"\",INDIRECT(\"'\"&F2445&\"'!\"&G2445))","v":""},{"$f":"IF(ISBLANK(INDIRECT(\"'\"&F2445&\"'!\"&H2445)),\"\",IFERROR(VLOOKUP(TEXT(INDIRECT(\"'\"&F2445&\"'!\"&H2445),\"0\"),Notes!$B$5:$C$100,2,FALSE),\"\"))","v":""},"2c","$S$12","$T$12"]
[14173,{"$f":"Menu!$F$29","v":"X"},{"$f":"Menu!$J$29","v":2020},{"$f":"IF(ISBLANK(INDIRECT(\"'\"&F2446&\"'!\"&G2446)),\"\",INDIRECT(\"'\"&F2446&\"'!\"&G2446))","v":""},{"$f":"IF(ISBLANK(INDIRECT(\"'\"&F2446&\"'!\"&H2446)),\"\",IFERROR(VLOOKUP(TEXT(INDIRECT(\"'\"&F2446&\"'!\"&H2446),\"0\"),Notes!$B$5:$C$100,2,FALSE),\"\"))","v":""},"2c","$U$12","$V$12"]
[14174,{"$f":"Menu!$F$29","v":"X"},{"$f":"Menu!$J$29","v":2020},{"$f":"IF(ISBLANK(INDIRECT(\"'\"&F2447&\"'!\"&G2447)),\"\",INDIRECT(\"'\"&F2447&\"'!\"&G2447))","v":""},{"$f":"IF(ISBLANK(INDIRECT(\"'\"&F2447&\"'!\"&H2447)),\"\",IFERROR(VLOOKUP(TEXT(INDIRECT(\"'\"&F2447&\"'!\"&H2447),\"0\"),Notes!$B$5:$C$100,2,FALSE),\"\"))","v":""},"2c","$W$12","$X$12"]
[14175,{"$f":"Menu!$F$29","v":"X"},{"$f":"Menu!$J$29","v":2020},{"$f":"IF(ISBLANK(INDIRECT(\"'\"&F2448&\"'!\"&G2448)),\"\",INDIRECT(\"'\"&F2448&\"'!\"&G2448))","v":""},{"$f":"IF(ISBLANK(INDIRECT(\"'\"&F2448&\"'!\"&H2448)),\"\",IFERROR(VLOOKUP(TEXT(INDIRECT(\"'\"&F2448&\"'!\"&H2448),\"0\"),Notes!$B$5:$C$100,2,FALSE),\"\"))","v":""},"2c","$Y$12","$Z$12"]
[14176,{"$f":"Menu!$F$29","v":"X"},{"$f":"Menu!$J$29","v":2020},{"$f":"IF(ISBLANK(INDIRECT(\"'\"&F2449&\"'!\"&G2449)),\"\",INDIRECT(\"'\"&F2449&\"'!\"&G2449))","v":""},{"$f":"IF(ISBLANK(INDIRECT(\"'\"&F2449&\"'!\"&H2449)),\"\",IFERROR(VLOOKUP(TEXT(INDIRECT(\"'\"&F2449&\"'!\"&H2449),\"0\"),Notes!$B$5:$C$100,2,FALSE),\"\"))","v":""},"2c","$AA$12","$AB$12"]
[14177,{"$f":"Menu!$F$29","v":"X"},{"$f":"Menu!$J$29","v":2020},{"$f":"IF(ISBLANK(INDIRECT(\"'\"&F2450&\"'!\"&G2450)),\"\",INDIRECT(\"'\"&F2450&\"'!\"&G2450))","v":""},{"$f":"IF(ISBLANK(INDIRECT(\"'\"&F2450&\"'!\"&H2450)),\"\",IFERROR(VLOOKUP(TEXT(INDIRECT(\"'\"&F2450&\"'!\"&H2450),\"0\"),Notes!$B$5:$C$100,2,FALSE),\"\"))","v":""},"2c","$E$13","$F$13"]
[14178,{"$f":"Menu!$F$29","v":"X"},{"$f":"Menu!$J$29","v":2020},{"$f":"IF(ISBLANK(INDIRECT(\"'\"&F2451&\"'!\"&G2451)),\"\",INDIRECT(\"'\"&F2451&\"'!\"&G2451))","v":""},{"$f":"IF(ISBLANK(INDIRECT(\"'\"&F2451&\"'!\"&H2451)),\"\",IFERROR(VLOOKUP(TEXT(INDIRECT(\"'\"&F2451&\"'!\"&H2451),\"0\"),Notes!$B$5:$C$100,2,FALSE),\"\"))","v":""},"2c","$G$13","$H$13"]
[14179,{"$f":"Menu!$F$29","v":"X"},{"$f":"Menu!$J$29","v":2020},{"$f":"IF(ISBLANK(INDIRECT(\"'\"&F2452&\"'!\"&G2452)),\"\",INDIRECT(\"'\"&F2452&\"'!\"&G2452))","v":""},{"$f":"IF(ISBLANK(INDIRECT(\"'\"&F2452&\"'!\"&H2452)),\"\",IFERROR(VLOOKUP(TEXT(INDIRECT(\"'\"&F2452&\"'!\"&H2452),\"0\"),Notes!$B$5:$C$100,2,FALSE),\"\"))","v":""},"2c","$I$13","$J$13"]
[14180,{"$f":"Menu!$F$29","v":"X"},{"$f":"Menu!$J$29","v":2020},{"$f":"IF(ISBLANK(INDIRECT(\"'\"&F2453&\"'!\"&G2453)),\"\",INDIRECT(\"'\"&F2453&\"'!\"&G2453))","v":""},{"$f":"IF(ISBLANK(INDIRECT(\"'\"&F2453&\"'!\"&H2453)),\"\",IFERROR(VLOOKUP(TEXT(INDIRECT(\"'\"&F2453&\"'!\"&H2453),\"0\"),Notes!$B$5:$C$100,2,FALSE),\"\"))","v":""},"2c","$K$13","$L$13"]
[14181,{"$f":"Menu!$F$29","v":"X"},{"$f":"Menu!$J$29","v":2020},{"$f":"IF(ISBLANK(INDIRECT(\"'\"&F2454&\"'!\"&G2454)),\"\",INDIRECT(\"'\"&F2454&\"'!\"&G2454))","v":""},{"$f":"IF(ISBLANK(INDIRECT(\"'\"&F2454&\"'!\"&H2454)),\"\",IFERROR(VLOOKUP(TEXT(INDIRECT(\"'\"&F2454&\"'!\"&H2454),\"0\"),Notes!$B$5:$C$100,2,FALSE),\"\"))","v":""},"2c","$M$13","$N$13"]
[14182,{"$f":"Menu!$F$29","v":"X"},{"$f":"Menu!$J$29","v":2020},{"$f":"IF(ISBLANK(INDIRECT(\"'\"&F2455&\"'!\"&G2455)),\"\",INDIRECT(\"'\"&F2455&\"'!\"&G2455))","v":""},{"$f":"IF(ISBLANK(INDIRECT(\"'\"&F2455&\"'!\"&H2455)),\"\",IFERROR(VLOOKUP(TEXT(INDIRECT(\"'\"&F2455&\"'!\"&H2455),\"0\"),Notes!$B$5:$C$100,2,FALSE),\"\"))","v":""},"2c","$O$13","$P$13"]
[14183,{"$f":"Menu!$F$29","v":"X"},{"$f":"Menu!$J$29","v":2020},{"$f":"IF(ISBLANK(INDIRECT(\"'\"&F2456&\"'!\"&G2456)),\"\",INDIRECT(\"'\"&F2456&\"'!\"&G2456))","v":""},{"$f":"IF(ISBLANK(INDIRECT(\"'\"&F2456&\"'!\"&H2456)),\"\",IFERROR(VLOOKUP(TEXT(INDIRECT(\"'\"&F2456&\"'!\"&H2456),\"0\"),Notes!$B$5:$C$100,2,FALSE),\"\"))","v":""},"2c","$Q$13","$R$13"]
[14184,{"$f":"Menu!$F$29","v":"X"},{"$f":"Menu!$J$29","v":2020},{"$f":"IF(ISBLANK(INDIRECT(\"'\"&F2457&\"'!\"&G2457)),\"\",INDIRECT(\"'\"&F2457&\"'!\"&G2457))","v":""},{"$f":"IF(ISBLANK(INDIRECT(\"'\"&F2457&\"'!\"&H2457)),\"\",IFERROR(VLOOKUP(TEXT(INDIRECT(\"'\"&F2457&\"'!\"&H2457),\"0\"),Notes!$B$5:$C$100,2,FALSE),\"\"))","v":""},"2c","$S$13","$T$13"]
[14185,{"$f":"Menu!$F$29","v":"X"},{"$f":"Menu!$J$29","v":2020},{"$f":"IF(ISBLANK(INDIRECT(\"'\"&F2458&\"'!\"&G2458)),\"\",INDIRECT(\"'\"&F2458&\"'!\"&G2458))","v":""},{"$f":"IF(ISBLANK(INDIRECT(\"'\"&F2458&\"'!\"&H2458)),\"\",IFERROR(VLOOKUP(TEXT(INDIRECT(\"'\"&F2458&\"'!\"&H2458),\"0\"),Notes!$B$5:$C$100,2,FALSE),\"\"))","v":""},"2c","$U$13","$V$13"]
[14186,{"$f":"Menu!$F$29","v":"X"},{"$f":"Menu!$J$29","v":2020},{"$f":"IF(ISBLANK(INDIRECT(\"'\"&F2459&\"'!\"&G2459)),\"\",INDIRECT(\"'\"&F2459&\"'!\"&G2459))","v":""},{"$f":"IF(ISBLANK(INDIRECT(\"'\"&F2459&\"'!\"&H2459)),\"\",IFERROR(VLOOKUP(TEXT(INDIRECT(\"'\"&F2459&\"'!\"&H2459),\"0\"),Notes!$B$5:$C$100,2,FALSE),\"\"))","v":""},"2c","$W$13","$X$13"]
[14187,{"$f":"Menu!$F$29","v":"X"},{"$f":"Menu!$J$29","v":2020},{"$f":"IF(ISBLANK(INDIRECT(\"'\"&F2460&\"'!\"&G2460)),\"\",INDIRECT(\"'\"&F2460&\"'!\"&G2460))","v":""},{"$f":"IF(ISBLANK(INDIRECT(\"'\"&F2460&\"'!\"&H2460)),\"\",IFERROR(VLOOKUP(TEXT(INDIRECT(\"'\"&F2460&\"'!\"&H2460),\"0\"),Notes!$B$5:$C$100,2,FALSE),\"\"))","v":""},"2c","$Y$13","$Z$13"]
[14188,{"$f":"Menu!$F$29","v":"X"},{"$f":"Menu!$J$29","v":2020},{"$f":"IF(ISBLANK(INDIRECT(\"'\"&F2461&\"'!\"&G2461)),\"\",INDIRECT(\"'\"&F2461&\"'!\"&G2461))","v":""},{"$f":"IF(ISBLANK(INDIRECT(\"'\"&F2461&\"'!\"&H2461)),\"\",IFERROR(VLOOKUP(TEXT(INDIRECT(\"'\"&F2461&\"'!\"&H2461),\"0\"),Notes!$B$5:$C$100,2,FALSE),\"\"))","v":""},"2c","$AA$13","$AB$13"]
[14189,{"$f":"Menu!$F$29","v":"X"},{"$f":"Menu!$J$29","v":2020},{"$f":"IF(ISBLANK(INDIRECT(\"'\"&F2462&\"'!\"&G2462)),\"\",INDIRECT(\"'\"&F2462&\"'!\"&G2462))","v":""},{"$f":"IF(ISBLANK(INDIRECT(\"'\"&F2462&\"'!\"&H2462)),\"\",IFERROR(VLOOKUP(TEXT(INDIRECT(\"'\"&F2462&\"'!\"&H2462),\"0\"),Notes!$B$5:$C$100,2,FALSE),\"\"))","v":""},"2c","$E$14","$F$14"]
[14190,{"$f":"Menu!$F$29","v":"X"},{"$f":"Menu!$J$29","v":2020},{"$f":"IF(ISBLANK(INDIRECT(\"'\"&F2463&\"'!\"&G2463)),\"\",INDIRECT(\"'\"&F2463&\"'!\"&G2463))","v":""},{"$f":"IF(ISBLANK(INDIRECT(\"'\"&F2463&\"'!\"&H2463)),\"\",IFERROR(VLOOKUP(TEXT(INDIRECT(\"'\"&F2463&\"'!\"&H2463),\"0\"),Notes!$B$5:$C$100,2,FALSE),\"\"))","v":""},"2c","$G$14","$H$14"]
[14191,{"$f":"Menu!$F$29","v":"X"},{"$f":"Menu!$J$29","v":2020},{"$f":"IF(ISBLANK(INDIRECT(\"'\"&F2464&\"'!\"&G2464)),\"\",INDIRECT(\"'\"&F2464&\"'!\"&G2464))","v":""},{"$f":"IF(ISBLANK(INDIRECT(\"'\"&F2464&\"'!\"&H2464)),\"\",IFERROR(VLOOKUP(TEXT(INDIRECT(\"'\"&F2464&\"'!\"&H2464),\"0\"),Notes!$B$5:$C$100,2,FALSE),\"\"))","v":""},"2c","$I$14","$J$14"]
[14192,{"$f":"Menu!$F$29","v":"X"},{"$f":"Menu!$J$29","v":2020},{"$f":"IF(ISBLANK(INDIRECT(\"'\"&F2465&\"'!\"&G2465)),\"\",INDIRECT(\"'\"&F2465&\"'!\"&G2465))","v":""},{"$f":"IF(ISBLANK(INDIRECT(\"'\"&F2465&\"'!\"&H2465)),\"\",IFERROR(VLOOKUP(TEXT(INDIRECT(\"'\"&F2465&\"'!\"&H2465),\"0\"),Notes!$B$5:$C$100,2,FALSE),\"\"))","v":""},"2c","$K$14","$L$14"]
[14193,{"$f":"Menu!$F$29","v":"X"},{"$f":"Menu!$J$29","v":2020},{"$f":"IF(ISBLANK(INDIRECT(\"'\"&F2466&\"'!\"&G2466)),\"\",INDIRECT(\"'\"&F2466&\"'!\"&G2466))","v":""},{"$f":"IF(ISBLANK(INDIRECT(\"'\"&F2466&\"'!\"&H2466)),\"\",IFERROR(VLOOKUP(TEXT(INDIRECT(\"'\"&F2466&\"'!\"&H2466),\"0\"),Notes!$B$5:$C$100,2,FALSE),\"\"))","v":""},"2c","$M$14","$N$14"]
[14194,{"$f":"Menu!$F$29","v":"X"},{"$f":"Menu!$J$29","v":2020},{"$f":"IF(ISBLANK(INDIRECT(\"'\"&F2467&\"'!\"&G2467)),\"\",INDIRECT(\"'\"&F2467&\"'!\"&G2467))","v":""},{"$f":"IF(ISBLANK(INDIRECT(\"'\"&F2467&\"'!\"&H2467)),\"\",IFERROR(VLOOKUP(TEXT(INDIRECT(\"'\"&F2467&\"'!\"&H2467),\"0\"),Notes!$B$5:$C$100,2,FALSE),\"\"))","v":""},"2c","$O$14","$P$14"]
[14195,{"$f":"Menu!$F$29","v":"X"},{"$f":"Menu!$J$29","v":2020},{"$f":"IF(ISBLANK(INDIRECT(\"'\"&F2468&\"'!\"&G2468)),\"\",INDIRECT(\"'\"&F2468&\"'!\"&G2468))","v":""},{"$f":"IF(ISBLANK(INDIRECT(\"'\"&F2468&\"'!\"&H2468)),\"\",IFERROR(VLOOKUP(TEXT(INDIRECT(\"'\"&F2468&\"'!\"&H2468),\"0\"),Notes!$B$5:$C$100,2,FALSE),\"\"))","v":""},"2c","$Q$14","$R$14"]
[14196,{"$f":"Menu!$F$29","v":"X"},{"$f":"Menu!$J$29","v":2020},{"$f":"IF(ISBLANK(INDIRECT(\"'\"&F2469&\"'!\"&G2469)),\"\",INDIRECT(\"'\"&F2469&\"'!\"&G2469))","v":""},{"$f":"IF(ISBLANK(INDIRECT(\"'\"&F2469&\"'!\"&H2469)),\"\",IFERROR(VLOOKUP(TEXT(INDIRECT(\"'\"&F2469&\"'!\"&H2469),\"0\"),Notes!$B$5:$C$100,2,FALSE),\"\"))","v":""},"2c","$S$14","$T$14"]
[14197,{"$f":"Menu!$F$29","v":"X"},{"$f":"Menu!$J$29","v":2020},{"$f":"IF(ISBLANK(INDIRECT(\"'\"&F2470&\"'!\"&G2470)),\"\",INDIRECT(\"'\"&F2470&\"'!\"&G2470))","v":""},{"$f":"IF(ISBLANK(INDIRECT(\"'\"&F2470&\"'!\"&H2470)),\"\",IFERROR(VLOOKUP(TEXT(INDIRECT(\"'\"&F2470&\"'!\"&H2470),\"0\"),Notes!$B$5:$C$100,2,FALSE),\"\"))","v":""},"2c","$U$14","$V$14"]
[14198,{"$f":"Menu!$F$29","v":"X"},{"$f":"Menu!$J$29","v":2020},{"$f":"IF(ISBLANK(INDIRECT(\"'\"&F2471&\"'!\"&G2471)),\"\",INDIRECT(\"'\"&F2471&\"'!\"&G2471))","v":""},{"$f":"IF(ISBLANK(INDIRECT(\"'\"&F2471&\"'!\"&H2471)),\"\",IFERROR(VLOOKUP(TEXT(INDIRECT(\"'\"&F2471&\"'!\"&H2471),\"0\"),Notes!$B$5:$C$100,2,FALSE),\"\"))","v":""},"2c","$W$14","$X$14"]
[14199,{"$f":"Menu!$F$29","v":"X"},{"$f":"Menu!$J$29","v":2020},{"$f":"IF(ISBLANK(INDIRECT(\"'\"&F2472&\"'!\"&G2472)),\"\",INDIRECT(\"'\"&F2472&\"'!\"&G2472))","v":""},{"$f":"IF(ISBLANK(INDIRECT(\"'\"&F2472&\"'!\"&H2472)),\"\",IFERROR(VLOOKUP(TEXT(INDIRECT(\"'\"&F2472&\"'!\"&H2472),\"0\"),Notes!$B$5:$C$100,2,FALSE),\"\"))","v":""},"2c","$Y$14","$Z$14"]
[14200,{"$f":"Menu!$F$29","v":"X"},{"$f":"Menu!$J$29","v":2020},{"$f":"IF(ISBLANK(INDIRECT(\"'\"&F2473&\"'!\"&G2473)),\"\",INDIRECT(\"'\"&F2473&\"'!\"&G2473))","v":""},{"$f":"IF(ISBLANK(INDIRECT(\"'\"&F2473&\"'!\"&H2473)),\"\",IFERROR(VLOOKUP(TEXT(INDIRECT(\"'\"&F2473&\"'!\"&H2473),\"0\"),Notes!$B$5:$C$100,2,FALSE),\"\"))","v":""},"2c","$AA$14","$AB$14"]
[14201,{"$f":"Menu!$F$29","v":"X"},{"$f":"Menu!$J$29","v":2020},{"$f":"IF(ISBLANK(INDIRECT(\"'\"&F2474&\"'!\"&G2474)),\"\",INDIRECT(\"'\"&F2474&\"'!\"&G2474))","v":""},{"$f":"IF(ISBLANK(INDIRECT(\"'\"&F2474&\"'!\"&H2474)),\"\",IFERROR(VLOOKUP(TEXT(INDIRECT(\"'\"&F2474&\"'!\"&H2474),\"0\"),Notes!$B$5:$C$100,2,FALSE),\"\"))","v":""},"2c","$E$70","$F$70"]
[14202,{"$f":"Menu!$F$29","v":"X"},{"$f":"Menu!$J$29","v":2020},{"$f":"IF(ISBLANK(INDIRECT(\"'\"&F2475&\"'!\"&G2475)),\"\",INDIRECT(\"'\"&F2475&\"'!\"&G2475))","v":""},{"$f":"IF(ISBLANK(INDIRECT(\"'\"&F2475&\"'!\"&H2475)),\"\",IFERROR(VLOOKUP(TEXT(INDIRECT(\"'\"&F2475&\"'!\"&H2475),\"0\"),Notes!$B$5:$C$100,2,FALSE),\"\"))","v":""},"2c","$G$70","$H$70"]
[14203,{"$f":"Menu!$F$29","v":"X"},{"$f":"Menu!$J$29","v":2020},{"$f":"IF(ISBLANK(INDIRECT(\"'\"&F2476&\"'!\"&G2476)),\"\",INDIRECT(\"'\"&F2476&\"'!\"&G2476))","v":""},{"$f":"IF(ISBLANK(INDIRECT(\"'\"&F2476&\"'!\"&H2476)),\"\",IFERROR(VLOOKUP(TEXT(INDIRECT(\"'\"&F2476&\"'!\"&H2476),\"0\"),Notes!$B$5:$C$100,2,FALSE),\"\"))","v":""},"2c","$I$70","$J$70"]
[14204,{"$f":"Menu!$F$29","v":"X"},{"$f":"Menu!$J$29","v":2020},{"$f":"IF(ISBLANK(INDIRECT(\"'\"&F2477&\"'!\"&G2477)),\"\",INDIRECT(\"'\"&F2477&\"'!\"&G2477))","v":""},{"$f":"IF(ISBLANK(INDIRECT(\"'\"&F2477&\"'!\"&H2477)),\"\",IFERROR(VLOOKUP(TEXT(INDIRECT(\"'\"&F2477&\"'!\"&H2477),\"0\"),Notes!$B$5:$C$100,2,FALSE),\"\"))","v":""},"2c","$K$70","$L$70"]
[14205,{"$f":"Menu!$F$29","v":"X"},{"$f":"Menu!$J$29","v":2020},{"$f":"IF(ISBLANK(INDIRECT(\"'\"&F2478&\"'!\"&G2478)),\"\",INDIRECT(\"'\"&F2478&\"'!\"&G2478))","v":""},{"$f":"IF(ISBLANK(INDIRECT(\"'\"&F2478&\"'!\"&H2478)),\"\",IFERROR(VLOOKUP(TEXT(INDIRECT(\"'\"&F2478&\"'!\"&H2478),\"0\"),Notes!$B$5:$C$100,2,FALSE),\"\"))","v":""},"2c","$M$70","$N$70"]
[14206,{"$f":"Menu!$F$29","v":"X"},{"$f":"Menu!$J$29","v":2020},{"$f":"IF(ISBLANK(INDIRECT(\"'\"&F2479&\"'!\"&G2479)),\"\",INDIRECT(\"'\"&F2479&\"'!\"&G2479))","v":""},{"$f":"IF(ISBLANK(INDIRECT(\"'\"&F2479&\"'!\"&H2479)),\"\",IFERROR(VLOOKUP(TEXT(INDIRECT(\"'\"&F2479&\"'!\"&H2479),\"0\"),Notes!$B$5:$C$100,2,FALSE),\"\"))","v":""},"2c","$O$70","$P$70"]
[14207,{"$f":"Menu!$F$29","v":"X"},{"$f":"Menu!$J$29","v":2020},{"$f":"IF(ISBLANK(INDIRECT(\"'\"&F2480&\"'!\"&G2480)),\"\",INDIRECT(\"'\"&F2480&\"'!\"&G2480))","v":""},{"$f":"IF(ISBLANK(INDIRECT(\"'\"&F2480&\"'!\"&H2480)),\"\",IFERROR(VLOOKUP(TEXT(INDIRECT(\"'\"&F2480&\"'!\"&H2480),\"0\"),Notes!$B$5:$C$100,2,FALSE),\"\"))","v":""},"2c","$Q$70","$R$70"]
[14208,{"$f":"Menu!$F$29","v":"X"},{"$f":"Menu!$J$29","v":2020},{"$f":"IF(ISBLANK(INDIRECT(\"'\"&F2481&\"'!\"&G2481)),\"\",INDIRECT(\"'\"&F2481&\"'!\"&G2481))","v":""},{"$f":"IF(ISBLANK(INDIRECT(\"'\"&F2481&\"'!\"&H2481)),\"\",IFERROR(VLOOKUP(TEXT(INDIRECT(\"'\"&F2481&\"'!\"&H2481),\"0\"),Notes!$B$5:$C$100,2,FALSE),\"\"))","v":""},"2c","$S$70","$T$70"]
[14209,{"$f":"Menu!$F$29","v":"X"},{"$f":"Menu!$J$29","v":2020},{"$f":"IF(ISBLANK(INDIRECT(\"'\"&F2482&\"'!\"&G2482)),\"\",INDIRECT(\"'\"&F2482&\"'!\"&G2482))","v":""},{"$f":"IF(ISBLANK(INDIRECT(\"'\"&F2482&\"'!\"&H2482)),\"\",IFERROR(VLOOKUP(TEXT(INDIRECT(\"'\"&F2482&\"'!\"&H2482),\"0\"),Notes!$B$5:$C$100,2,FALSE),\"\"))","v":""},"2c","$U$70","$V$70"]
[14210,{"$f":"Menu!$F$29","v":"X"},{"$f":"Menu!$J$29","v":2020},{"$f":"IF(ISBLANK(INDIRECT(\"'\"&F2483&\"'!\"&G2483)),\"\",INDIRECT(\"'\"&F2483&\"'!\"&G2483))","v":""},{"$f":"IF(ISBLANK(INDIRECT(\"'\"&F2483&\"'!\"&H2483)),\"\",IFERROR(VLOOKUP(TEXT(INDIRECT(\"'\"&F2483&\"'!\"&H2483),\"0\"),Notes!$B$5:$C$100,2,FALSE),\"\"))","v":""},"2c","$W$70","$X$70"]
[14211,{"$f":"Menu!$F$29","v":"X"},{"$f":"Menu!$J$29","v":2020},{"$f":"IF(ISBLANK(INDIRECT(\"'\"&F2484&\"'!\"&G2484)),\"\",INDIRECT(\"'\"&F2484&\"'!\"&G2484))","v":""},{"$f":"IF(ISBLANK(INDIRECT(\"'\"&F2484&\"'!\"&H2484)),\"\",IFERROR(VLOOKUP(TEXT(INDIRECT(\"'\"&F2484&\"'!\"&H2484),\"0\"),Notes!$B$5:$C$100,2,FALSE),\"\"))","v":""},"2c","$Y$70","$Z$70"]
[14212,{"$f":"Menu!$F$29","v":"X"},{"$f":"Menu!$J$29","v":2020},{"$f":"IF(ISBLANK(INDIRECT(\"'\"&F2485&\"'!\"&G2485)),\"\",INDIRECT(\"'\"&F2485&\"'!\"&G2485))","v":""},{"$f":"IF(ISBLANK(INDIRECT(\"'\"&F2485&\"'!\"&H2485)),\"\",IFERROR(VLOOKUP(TEXT(INDIRECT(\"'\"&F2485&\"'!\"&H2485),\"0\"),Notes!$B$5:$C$100,2,FALSE),\"\"))","v":""},"2c","$AA$70","$AB$70"]
[14213,{"$f":"Menu!$F$29","v":"X"},{"$f":"Menu!$J$29","v":2020},{"$f":"IF(ISBLANK(INDIRECT(\"'\"&F2486&\"'!\"&G2486)),\"\",INDIRECT(\"'\"&F2486&\"'!\"&G2486))","v":""},{"$f":"IF(ISBLANK(INDIRECT(\"'\"&F2486&\"'!\"&H2486)),\"\",IFERROR(VLOOKUP(TEXT(INDIRECT(\"'\"&F2486&\"'!\"&H2486),\"0\"),Notes!$B$5:$C$100,2,FALSE),\"\"))","v":""},"2c","$E$27","$F$27"]
[14214,{"$f":"Menu!$F$29","v":"X"},{"$f":"Menu!$J$29","v":2020},{"$f":"IF(ISBLANK(INDIRECT(\"'\"&F2487&\"'!\"&G2487)),\"\",INDIRECT(\"'\"&F2487&\"'!\"&G2487))","v":""},{"$f":"IF(ISBLANK(INDIRECT(\"'\"&F2487&\"'!\"&H2487)),\"\",IFERROR(VLOOKUP(TEXT(INDIRECT(\"'\"&F2487&\"'!\"&H2487),\"0\"),Notes!$B$5:$C$100,2,FALSE),\"\"))","v":""},"2c","$G$27","$H$27"]
[14215,{"$f":"Menu!$F$29","v":"X"},{"$f":"Menu!$J$29","v":2020},{"$f":"IF(ISBLANK(INDIRECT(\"'\"&F2488&\"'!\"&G2488)),\"\",INDIRECT(\"'\"&F2488&\"'!\"&G2488))","v":""},{"$f":"IF(ISBLANK(INDIRECT(\"'\"&F2488&\"'!\"&H2488)),\"\",IFERROR(VLOOKUP(TEXT(INDIRECT(\"'\"&F2488&\"'!\"&H2488),\"0\"),Notes!$B$5:$C$100,2,FALSE),\"\"))","v":""},"2c","$I$27","$J$27"]
[14216,{"$f":"Menu!$F$29","v":"X"},{"$f":"Menu!$J$29","v":2020},{"$f":"IF(ISBLANK(INDIRECT(\"'\"&F2489&\"'!\"&G2489)),\"\",INDIRECT(\"'\"&F2489&\"'!\"&G2489))","v":""},{"$f":"IF(ISBLANK(INDIRECT(\"'\"&F2489&\"'!\"&H2489)),\"\",IFERROR(VLOOKUP(TEXT(INDIRECT(\"'\"&F2489&\"'!\"&H2489),\"0\"),Notes!$B$5:$C$100,2,FALSE),\"\"))","v":""},"2c","$K$27","$L$27"]
[14217,{"$f":"Menu!$F$29","v":"X"},{"$f":"Menu!$J$29","v":2020},{"$f":"IF(ISBLANK(INDIRECT(\"'\"&F2490&\"'!\"&G2490)),\"\",INDIRECT(\"'\"&F2490&\"'!\"&G2490))","v":""},{"$f":"IF(ISBLANK(INDIRECT(\"'\"&F2490&\"'!\"&H2490)),\"\",IFERROR(VLOOKUP(TEXT(INDIRECT(\"'\"&F2490&\"'!\"&H2490),\"0\"),Notes!$B$5:$C$100,2,FALSE),\"\"))","v":""},"2c","$M$27","$N$27"]
[14218,{"$f":"Menu!$F$29","v":"X"},{"$f":"Menu!$J$29","v":2020},{"$f":"IF(ISBLANK(INDIRECT(\"'\"&F2491&\"'!\"&G2491)),\"\",INDIRECT(\"'\"&F2491&\"'!\"&G2491))","v":""},{"$f":"IF(ISBLANK(INDIRECT(\"'\"&F2491&\"'!\"&H2491)),\"\",IFERROR(VLOOKUP(TEXT(INDIRECT(\"'\"&F2491&\"'!\"&H2491),\"0\"),Notes!$B$5:$C$100,2,FALSE),\"\"))","v":""},"2c","$O$27","$P$27"]
[14219,{"$f":"Menu!$F$29","v":"X"},{"$f":"Menu!$J$29","v":2020},{"$f":"IF(ISBLANK(INDIRECT(\"'\"&F2492&\"'!\"&G2492)),\"\",INDIRECT(\"'\"&F2492&\"'!\"&G2492))","v":""},{"$f":"IF(ISBLANK(INDIRECT(\"'\"&F2492&\"'!\"&H2492)),\"\",IFERROR(VLOOKUP(TEXT(INDIRECT(\"'\"&F2492&\"'!\"&H2492),\"0\"),Notes!$B$5:$C$100,2,FALSE),\"\"))","v":""},"2c","$Q$27","$R$27"]
[14220,{"$f":"Menu!$F$29","v":"X"},{"$f":"Menu!$J$29","v":2020},{"$f":"IF(ISBLANK(INDIRECT(\"'\"&F2493&\"'!\"&G2493)),\"\",INDIRECT(\"'\"&F2493&\"'!\"&G2493))","v":""},{"$f":"IF(ISBLANK(INDIRECT(\"'\"&F2493&\"'!\"&H2493)),\"\",IFERROR(VLOOKUP(TEXT(INDIRECT(\"'\"&F2493&\"'!\"&H2493),\"0\"),Notes!$B$5:$C$100,2,FALSE),\"\"))","v":""},"2c","$S$27","$T$27"]
[14221,{"$f":"Menu!$F$29","v":"X"},{"$f":"Menu!$J$29","v":2020},{"$f":"IF(ISBLANK(INDIRECT(\"'\"&F2494&\"'!\"&G2494)),\"\",INDIRECT(\"'\"&F2494&\"'!\"&G2494))","v":""},{"$f":"IF(ISBLANK(INDIRECT(\"'\"&F2494&\"'!\"&H2494)),\"\",IFERROR(VLOOKUP(TEXT(INDIRECT(\"'\"&F2494&\"'!\"&H2494),\"0\"),Notes!$B$5:$C$100,2,FALSE),\"\"))","v":""},"2c","$U$27","$V$27"]
[14222,{"$f":"Menu!$F$29","v":"X"},{"$f":"Menu!$J$29","v":2020},{"$f":"IF(ISBLANK(INDIRECT(\"'\"&F2495&\"'!\"&G2495)),\"\",INDIRECT(\"'\"&F2495&\"'!\"&G2495))","v":""},{"$f":"IF(ISBLANK(INDIRECT(\"'\"&F2495&\"'!\"&H2495)),\"\",IFERROR(VLOOKUP(TEXT(INDIRECT(\"'\"&F2495&\"'!\"&H2495),\"0\"),Notes!$B$5:$C$100,2,FALSE),\"\"))","v":""},"2c","$W$27","$X$27"]
[14223,{"$f":"Menu!$F$29","v":"X"},{"$f":"Menu!$J$29","v":2020},{"$f":"IF(ISBLANK(INDIRECT(\"'\"&F2496&\"'!\"&G2496)),\"\",INDIRECT(\"'\"&F2496&\"'!\"&G2496))","v":""},{"$f":"IF(ISBLANK(INDIRECT(\"'\"&F2496&\"'!\"&H2496)),\"\",IFERROR(VLOOKUP(TEXT(INDIRECT(\"'\"&F2496&\"'!\"&H2496),\"0\"),Notes!$B$5:$C$100,2,FALSE),\"\"))","v":""},"2c","$Y$27","$Z$27"]
[14224,{"$f":"Menu!$F$29","v":"X"},{"$f":"Menu!$J$29","v":2020},{"$f":"IF(ISBLANK(INDIRECT(\"'\"&F2497&\"'!\"&G2497)),\"\",INDIRECT(\"'\"&F2497&\"'!\"&G2497))","v":""},{"$f":"IF(ISBLANK(INDIRECT(\"'\"&F2497&\"'!\"&H2497)),\"\",IFERROR(VLOOKUP(TEXT(INDIRECT(\"'\"&F2497&\"'!\"&H2497),\"0\"),Notes!$B$5:$C$100,2,FALSE),\"\"))","v":""},"2c","$AA$27","$AB$27"]
[14225,{"$f":"Menu!$F$29","v":"X"},{"$f":"Menu!$J$29","v":2020},{"$f":"IF(ISBLANK(INDIRECT(\"'\"&F2498&\"'!\"&G2498)),\"\",INDIRECT(\"'\"&F2498&\"'!\"&G2498))","v":""},{"$f":"IF(ISBLANK(INDIRECT(\"'\"&F2498&\"'!\"&H2498)),\"\",IFERROR(VLOOKUP(TEXT(INDIRECT(\"'\"&F2498&\"'!\"&H2498),\"0\"),Notes!$B$5:$C$100,2,FALSE),\"\"))","v":""},"2c","$E$92",{"$f":"IF(LEN(TRIM(MID(G2498,4,10)))-LEN(SUBSTITUTE(TRIM(MID(G2498,4,10)),\"$\",\"\"))=0,\"$\"&CHAR(CODE(MID(G2498,2,1))+1)&\"$\"&TRIM(MID(G2498,4,10)),\"$\"&MID(G2498,2,1)&CHAR(CODE(MID(G2498,3,1))+1)&\"$\"&TRIM(MID(G2498,5,11)))","v":"$F$92"}]
[14226,{"$f":"Menu!$F$29","v":"X"},{"$f":"Menu!$J$29","v":2020},{"$f":"IF(ISBLANK(INDIRECT(\"'\"&F2499&\"'!\"&G2499)),\"\",INDIRECT(\"'\"&F2499&\"'!\"&G2499))","v":""},{"$f":"IF(ISBLANK(INDIRECT(\"'\"&F2499&\"'!\"&H2499)),\"\",IFERROR(VLOOKUP(TEXT(INDIRECT(\"'\"&F2499&\"'!\"&H2499),\"0\"),Notes!$B$5:$C$100,2,FALSE),\"\"))","v":""},"2c","$G$92","$H$92"]
[14227,{"$f":"Menu!$F$29","v":"X"},{"$f":"Menu!$J$29","v":2020},{"$f":"IF(ISBLANK(INDIRECT(\"'\"&F2500&\"'!\"&G2500)),\"\",INDIRECT(\"'\"&F2500&\"'!\"&G2500))","v":""},{"$f":"IF(ISBLANK(INDIRECT(\"'\"&F2500&\"'!\"&H2500)),\"\",IFERROR(VLOOKUP(TEXT(INDIRECT(\"'\"&F2500&\"'!\"&H2500),\"0\"),Notes!$B$5:$C$100,2,FALSE),\"\"))","v":""},"2c","$I$92","$J$92"]
[14228,{"$f":"Menu!$F$29","v":"X"},{"$f":"Menu!$J$29","v":2020},{"$f":"IF(ISBLANK(INDIRECT(\"'\"&F2501&\"'!\"&G2501)),\"\",INDIRECT(\"'\"&F2501&\"'!\"&G2501))","v":""},{"$f":"IF(ISBLANK(INDIRECT(\"'\"&F2501&\"'!\"&H2501)),\"\",IFERROR(VLOOKUP(TEXT(INDIRECT(\"'\"&F2501&\"'!\"&H2501),\"0\"),Notes!$B$5:$C$100,2,FALSE),\"\"))","v":""},"2c","$K$92","$L$92"]
[14229,{"$f":"Menu!$F$29","v":"X"},{"$f":"Menu!$J$29","v":2020},{"$f":"IF(ISBLANK(INDIRECT(\"'\"&F2502&\"'!\"&G2502)),\"\",INDIRECT(\"'\"&F2502&\"'!\"&G2502))","v":""},{"$f":"IF(ISBLANK(INDIRECT(\"'\"&F2502&\"'!\"&H2502)),\"\",IFERROR(VLOOKUP(TEXT(INDIRECT(\"'\"&F2502&\"'!\"&H2502),\"0\"),Notes!$B$5:$C$100,2,FALSE),\"\"))","v":""},"2c","$M$92","$N$92"]
[14230,{"$f":"Menu!$F$29","v":"X"},{"$f":"Menu!$J$29","v":2020},{"$f":"IF(ISBLANK(INDIRECT(\"'\"&F2503&\"'!\"&G2503)),\"\",INDIRECT(\"'\"&F2503&\"'!\"&G2503))","v":""},{"$f":"IF(ISBLANK(INDIRECT(\"'\"&F2503&\"'!\"&H2503)),\"\",IFERROR(VLOOKUP(TEXT(INDIRECT(\"'\"&F2503&\"'!\"&H2503),\"0\"),Notes!$B$5:$C$100,2,FALSE),\"\"))","v":""},"2c","$O$92","$P$92"]
[14231,{"$f":"Menu!$F$29","v":"X"},{"$f":"Menu!$J$29","v":2020},{"$f":"IF(ISBLANK(INDIRECT(\"'\"&F2504&\"'!\"&G2504)),\"\",INDIRECT(\"'\"&F2504&\"'!\"&G2504))","v":""},{"$f":"IF(ISBLANK(INDIRECT(\"'\"&F2504&\"'!\"&H2504)),\"\",IFERROR(VLOOKUP(TEXT(INDIRECT(\"'\"&F2504&\"'!\"&H2504),\"0\"),Notes!$B$5:$C$100,2,FALSE),\"\"))","v":""},"2c","$Q$92","$R$92"]
[14232,{"$f":"Menu!$F$29","v":"X"},{"$f":"Menu!$J$29","v":2020},{"$f":"IF(ISBLANK(INDIRECT(\"'\"&F2505&\"'!\"&G2505)),\"\",INDIRECT(\"'\"&F2505&\"'!\"&G2505))","v":""},{"$f":"IF(ISBLANK(INDIRECT(\"'\"&F2505&\"'!\"&H2505)),\"\",IFERROR(VLOOKUP(TEXT(INDIRECT(\"'\"&F2505&\"'!\"&H2505),\"0\"),Notes!$B$5:$C$100,2,FALSE),\"\"))","v":""},"2c","$S$92","$T$92"]
[14233,{"$f":"Menu!$F$29","v":"X"},{"$f":"Menu!$J$29","v":2020},{"$f":"IF(ISBLANK(INDIRECT(\"'\"&F2506&\"'!\"&G2506)),\"\",INDIRECT(\"'\"&F2506&\"'!\"&G2506))","v":""},{"$f":"IF(ISBLANK(INDIRECT(\"'\"&F2506&\"'!\"&H2506)),\"\",IFERROR(VLOOKUP(TEXT(INDIRECT(\"'\"&F2506&\"'!\"&H2506),\"0\"),Notes!$B$5:$C$100,2,FALSE),\"\"))","v":""},"2c","$U$92","$V$92"]
[14234,{"$f":"Menu!$F$29","v":"X"},{"$f":"Menu!$J$29","v":2020},{"$f":"IF(ISBLANK(INDIRECT(\"'\"&F2507&\"'!\"&G2507)),\"\",INDIRECT(\"'\"&F2507&\"'!\"&G2507))","v":""},{"$f":"IF(ISBLANK(INDIRECT(\"'\"&F2507&\"'!\"&H2507)),\"\",IFERROR(VLOOKUP(TEXT(INDIRECT(\"'\"&F2507&\"'!\"&H2507),\"0\"),Notes!$B$5:$C$100,2,FALSE),\"\"))","v":""},"2c","$W$92","$X$92"]
[14235,{"$f":"Menu!$F$29","v":"X"},{"$f":"Menu!$J$29","v":2020},{"$f":"IF(ISBLANK(INDIRECT(\"'\"&F2508&\"'!\"&G2508)),\"\",INDIRECT(\"'\"&F2508&\"'!\"&G2508))","v":""},{"$f":"IF(ISBLANK(INDIRECT(\"'\"&F2508&\"'!\"&H2508)),\"\",IFERROR(VLOOKUP(TEXT(INDIRECT(\"'\"&F2508&\"'!\"&H2508),\"0\"),Notes!$B$5:$C$100,2,FALSE),\"\"))","v":""},"2c","$Y$92","$Z$92"]
[14236,{"$f":"Menu!$F$29","v":"X"},{"$f":"Menu!$J$29","v":2020},{"$f":"IF(ISBLANK(INDIRECT(\"'\"&F2509&\"'!\"&G2509)),\"\",INDIRECT(\"'\"&F2509&\"'!\"&G2509))","v":""},{"$f":"IF(ISBLANK(INDIRECT(\"'\"&F2509&\"'!\"&H2509)),\"\",IFERROR(VLOOKUP(TEXT(INDIRECT(\"'\"&F2509&\"'!\"&H2509),\"0\"),Notes!$B$5:$C$100,2,FALSE),\"\"))","v":""},"2c","$AA$92","$AB$92"]
[14237,{"$f":"Menu!$F$29","v":"X"},{"$f":"Menu!$J$29","v":2020},{"$f":"IF(ISBLANK(INDIRECT(\"'\"&F2510&\"'!\"&G2510)),\"\",INDIRECT(\"'\"&F2510&\"'!\"&G2510))","v":""},{"$f":"IF(ISBLANK(INDIRECT(\"'\"&F2510&\"'!\"&H2510)),\"\",IFERROR(VLOOKUP(TEXT(INDIRECT(\"'\"&F2510&\"'!\"&H2510),\"0\"),Notes!$B$5:$C$100,2,FALSE),\"\"))","v":""},"2c","$E$33","$F$33"]
[14238,{"$f":"Menu!$F$29","v":"X"},{"$f":"Menu!$J$29","v":2020},{"$f":"IF(ISBLANK(INDIRECT(\"'\"&F2511&\"'!\"&G2511)),\"\",INDIRECT(\"'\"&F2511&\"'!\"&G2511))","v":""},{"$f":"IF(ISBLANK(INDIRECT(\"'\"&F2511&\"'!\"&H2511)),\"\",IFERROR(VLOOKUP(TEXT(INDIRECT(\"'\"&F2511&\"'!\"&H2511),\"0\"),Notes!$B$5:$C$100,2,FALSE),\"\"))","v":""},"2c","$G$33","$H$33"]
[14239,{"$f":"Menu!$F$29","v":"X"},{"$f":"Menu!$J$29","v":2020},{"$f":"IF(ISBLANK(INDIRECT(\"'\"&F2512&\"'!\"&G2512)),\"\",INDIRECT(\"'\"&F2512&\"'!\"&G2512))","v":""},{"$f":"IF(ISBLANK(INDIRECT(\"'\"&F2512&\"'!\"&H2512)),\"\",IFERROR(VLOOKUP(TEXT(INDIRECT(\"'\"&F2512&\"'!\"&H2512),\"0\"),Notes!$B$5:$C$100,2,FALSE),\"\"))","v":""},"2c","$I$33","$J$33"]
[14240,{"$f":"Menu!$F$29","v":"X"},{"$f":"Menu!$J$29","v":2020},{"$f":"IF(ISBLANK(INDIRECT(\"'\"&F2513&\"'!\"&G2513)),\"\",INDIRECT(\"'\"&F2513&\"'!\"&G2513))","v":""},{"$f":"IF(ISBLANK(INDIRECT(\"'\"&F2513&\"'!\"&H2513)),\"\",IFERROR(VLOOKUP(TEXT(INDIRECT(\"'\"&F2513&\"'!\"&H2513),\"0\"),Notes!$B$5:$C$100,2,FALSE),\"\"))","v":""},"2c","$K$33","$L$33"]
[14241,{"$f":"Menu!$F$29","v":"X"},{"$f":"Menu!$J$29","v":2020},{"$f":"IF(ISBLANK(INDIRECT(\"'\"&F2514&\"'!\"&G2514)),\"\",INDIRECT(\"'\"&F2514&\"'!\"&G2514))","v":""},{"$f":"IF(ISBLANK(INDIRECT(\"'\"&F2514&\"'!\"&H2514)),\"\",IFERROR(VLOOKUP(TEXT(INDIRECT(\"'\"&F2514&\"'!\"&H2514),\"0\"),Notes!$B$5:$C$100,2,FALSE),\"\"))","v":""},"2c","$M$33","$N$33"]
[14242,{"$f":"Menu!$F$29","v":"X"},{"$f":"Menu!$J$29","v":2020},{"$f":"IF(ISBLANK(INDIRECT(\"'\"&F2515&\"'!\"&G2515)),\"\",INDIRECT(\"'\"&F2515&\"'!\"&G2515))","v":""},{"$f":"IF(ISBLANK(INDIRECT(\"'\"&F2515&\"'!\"&H2515)),\"\",IFERROR(VLOOKUP(TEXT(INDIRECT(\"'\"&F2515&\"'!\"&H2515),\"0\"),Notes!$B$5:$C$100,2,FALSE),\"\"))","v":""},"2c","$O$33","$P$33"]
[14243,{"$f":"Menu!$F$29","v":"X"},{"$f":"Menu!$J$29","v":2020},{"$f":"IF(ISBLANK(INDIRECT(\"'\"&F2516&\"'!\"&G2516)),\"\",INDIRECT(\"'\"&F2516&\"'!\"&G2516))","v":""},{"$f":"IF(ISBLANK(INDIRECT(\"'\"&F2516&\"'!\"&H2516)),\"\",IFERROR(VLOOKUP(TEXT(INDIRECT(\"'\"&F2516&\"'!\"&H2516),\"0\"),Notes!$B$5:$C$100,2,FALSE),\"\"))","v":""},"2c","$Q$33","$R$33"]
[14244,{"$f":"Menu!$F$29","v":"X"},{"$f":"Menu!$J$29","v":2020},{"$f":"IF(ISBLANK(INDIRECT(\"'\"&F2517&\"'!\"&G2517)),\"\",INDIRECT(\"'\"&F2517&\"'!\"&G2517))","v":""},{"$f":"IF(ISBLANK(INDIRECT(\"'\"&F2517&\"'!\"&H2517)),\"\",IFERROR(VLOOKUP(TEXT(INDIRECT(\"'\"&F2517&\"'!\"&H2517),\"0\"),Notes!$B$5:$C$100,2,FALSE),\"\"))","v":""},"2c","$S$33","$T$33"]
[14245,{"$f":"Menu!$F$29","v":"X"},{"$f":"Menu!$J$29","v":2020},{"$f":"IF(ISBLANK(INDIRECT(\"'\"&F2518&\"'!\"&G2518)),\"\",INDIRECT(\"'\"&F2518&\"'!\"&G2518))","v":""},{"$f":"IF(ISBLANK(INDIRECT(\"'\"&F2518&\"'!\"&H2518)),\"\",IFERROR(VLOOKUP(TEXT(INDIRECT(\"'\"&F2518&\"'!\"&H2518),\"0\"),Notes!$B$5:$C$100,2,FALSE),\"\"))","v":""},"2c","$U$33","$V$33"]
[14246,{"$f":"Menu!$F$29","v":"X"},{"$f":"Menu!$J$29","v":2020},{"$f":"IF(ISBLANK(INDIRECT(\"'\"&F2519&\"'!\"&G2519)),\"\",INDIRECT(\"'\"&F2519&\"'!\"&G2519))","v":""},{"$f":"IF(ISBLANK(INDIRECT(\"'\"&F2519&\"'!\"&H2519)),\"\",IFERROR(VLOOKUP(TEXT(INDIRECT(\"'\"&F2519&\"'!\"&H2519),\"0\"),Notes!$B$5:$C$100,2,FALSE),\"\"))","v":""},"2c","$W$33","$X$33"]
[14247,{"$f":"Menu!$F$29","v":"X"},{"$f":"Menu!$J$29","v":2020},{"$f":"IF(ISBLANK(INDIRECT(\"'\"&F2520&\"'!\"&G2520)),\"\",INDIRECT(\"'\"&F2520&\"'!\"&G2520))","v":""},{"$f":"IF(ISBLANK(INDIRECT(\"'\"&F2520&\"'!\"&H2520)),\"\",IFERROR(VLOOKUP(TEXT(INDIRECT(\"'\"&F2520&\"'!\"&H2520),\"0\"),Notes!$B$5:$C$100,2,FALSE),\"\"))","v":""},"2c","$Y$33","$Z$33"]
[14248,{"$f":"Menu!$F$29","v":"X"},{"$f":"Menu!$J$29","v":2020},{"$f":"IF(ISBLANK(INDIRECT(\"'\"&F2521&\"'!\"&G2521)),\"\",INDIRECT(\"'\"&F2521&\"'!\"&G2521))","v":""},{"$f":"IF(ISBLANK(INDIRECT(\"'\"&F2521&\"'!\"&H2521)),\"\",IFERROR(VLOOKUP(TEXT(INDIRECT(\"'\"&F2521&\"'!\"&H2521),\"0\"),Notes!$B$5:$C$100,2,FALSE),\"\"))","v":""},"2c","$AA$33","$AB$33"]
[14249,{"$f":"Menu!$F$29","v":"X"},{"$f":"Menu!$J$29","v":2020},{"$f":"IF(ISBLANK(INDIRECT(\"'\"&F2522&\"'!\"&G2522)),\"\",INDIRECT(\"'\"&F2522&\"'!\"&G2522))","v":""},{"$f":"IF(ISBLANK(INDIRECT(\"'\"&F2522&\"'!\"&H2522)),\"\",IFERROR(VLOOKUP(TEXT(INDIRECT(\"'\"&F2522&\"'!\"&H2522),\"0\"),Notes!$B$5:$C$100,2,FALSE),\"\"))","v":""},"2c","$E$94","$F$94"]
[14250,{"$f":"Menu!$F$29","v":"X"},{"$f":"Menu!$J$29","v":2020},{"$f":"IF(ISBLANK(INDIRECT(\"'\"&F2523&\"'!\"&G2523)),\"\",INDIRECT(\"'\"&F2523&\"'!\"&G2523))","v":""},{"$f":"IF(ISBLANK(INDIRECT(\"'\"&F2523&\"'!\"&H2523)),\"\",IFERROR(VLOOKUP(TEXT(INDIRECT(\"'\"&F2523&\"'!\"&H2523),\"0\"),Notes!$B$5:$C$100,2,FALSE),\"\"))","v":""},"2c","$G$94","$H$94"]
[14251,{"$f":"Menu!$F$29","v":"X"},{"$f":"Menu!$J$29","v":2020},{"$f":"IF(ISBLANK(INDIRECT(\"'\"&F2524&\"'!\"&G2524)),\"\",INDIRECT(\"'\"&F2524&\"'!\"&G2524))","v":""},{"$f":"IF(ISBLANK(INDIRECT(\"'\"&F2524&\"'!\"&H2524)),\"\",IFERROR(VLOOKUP(TEXT(INDIRECT(\"'\"&F2524&\"'!\"&H2524),\"0\"),Notes!$B$5:$C$100,2,FALSE),\"\"))","v":""},"2c","$I$94","$J$94"]
[14252,{"$f":"Menu!$F$29","v":"X"},{"$f":"Menu!$J$29","v":2020},{"$f":"IF(ISBLANK(INDIRECT(\"'\"&F2525&\"'!\"&G2525)),\"\",INDIRECT(\"'\"&F2525&\"'!\"&G2525))","v":""},{"$f":"IF(ISBLANK(INDIRECT(\"'\"&F2525&\"'!\"&H2525)),\"\",IFERROR(VLOOKUP(TEXT(INDIRECT(\"'\"&F2525&\"'!\"&H2525),\"0\"),Notes!$B$5:$C$100,2,FALSE),\"\"))","v":""},"2c","$K$94","$L$94"]
[14253,{"$f":"Menu!$F$29","v":"X"},{"$f":"Menu!$J$29","v":2020},{"$f":"IF(ISBLANK(INDIRECT(\"'\"&F2526&\"'!\"&G2526)),\"\",INDIRECT(\"'\"&F2526&\"'!\"&G2526))","v":""},{"$f":"IF(ISBLANK(INDIRECT(\"'\"&F2526&\"'!\"&H2526)),\"\",IFERROR(VLOOKUP(TEXT(INDIRECT(\"'\"&F2526&\"'!\"&H2526),\"0\"),Notes!$B$5:$C$100,2,FALSE),\"\"))","v":""},"2c","$M$94","$N$94"]
[14254,{"$f":"Menu!$F$29","v":"X"},{"$f":"Menu!$J$29","v":2020},{"$f":"IF(ISBLANK(INDIRECT(\"'\"&F2527&\"'!\"&G2527)),\"\",INDIRECT(\"'\"&F2527&\"'!\"&G2527))","v":""},{"$f":"IF(ISBLANK(INDIRECT(\"'\"&F2527&\"'!\"&H2527)),\"\",IFERROR(VLOOKUP(TEXT(INDIRECT(\"'\"&F2527&\"'!\"&H2527),\"0\"),Notes!$B$5:$C$100,2,FALSE),\"\"))","v":""},"2c","$O$94","$P$94"]
[14255,{"$f":"Menu!$F$29","v":"X"},{"$f":"Menu!$J$29","v":2020},{"$f":"IF(ISBLANK(INDIRECT(\"'\"&F2528&\"'!\"&G2528)),\"\",INDIRECT(\"'\"&F2528&\"'!\"&G2528))","v":""},{"$f":"IF(ISBLANK(INDIRECT(\"'\"&F2528&\"'!\"&H2528)),\"\",IFERROR(VLOOKUP(TEXT(INDIRECT(\"'\"&F2528&\"'!\"&H2528),\"0\"),Notes!$B$5:$C$100,2,FALSE),\"\"))","v":""},"2c","$Q$94","$R$94"]
[14256,{"$f":"Menu!$F$29","v":"X"},{"$f":"Menu!$J$29","v":2020},{"$f":"IF(ISBLANK(INDIRECT(\"'\"&F2529&\"'!\"&G2529)),\"\",INDIRECT(\"'\"&F2529&\"'!\"&G2529))","v":""},{"$f":"IF(ISBLANK(INDIRECT(\"'\"&F2529&\"'!\"&H2529)),\"\",IFERROR(VLOOKUP(TEXT(INDIRECT(\"'\"&F2529&\"'!\"&H2529),\"0\"),Notes!$B$5:$C$100,2,FALSE),\"\"))","v":""},"2c","$S$94","$T$94"]
[14257,{"$f":"Menu!$F$29","v":"X"},{"$f":"Menu!$J$29","v":2020},{"$f":"IF(ISBLANK(INDIRECT(\"'\"&F2530&\"'!\"&G2530)),\"\",INDIRECT(\"'\"&F2530&\"'!\"&G2530))","v":""},{"$f":"IF(ISBLANK(INDIRECT(\"'\"&F2530&\"'!\"&H2530)),\"\",IFERROR(VLOOKUP(TEXT(INDIRECT(\"'\"&F2530&\"'!\"&H2530),\"0\"),Notes!$B$5:$C$100,2,FALSE),\"\"))","v":""},"2c","$U$94","$V$94"]
[14258,{"$f":"Menu!$F$29","v":"X"},{"$f":"Menu!$J$29","v":2020},{"$f":"IF(ISBLANK(INDIRECT(\"'\"&F2531&\"'!\"&G2531)),\"\",INDIRECT(\"'\"&F2531&\"'!\"&G2531))","v":""},{"$f":"IF(ISBLANK(INDIRECT(\"'\"&F2531&\"'!\"&H2531)),\"\",IFERROR(VLOOKUP(TEXT(INDIRECT(\"'\"&F2531&\"'!\"&H2531),\"0\"),Notes!$B$5:$C$100,2,FALSE),\"\"))","v":""},"2c","$W$94","$X$94"]
[14259,{"$f":"Menu!$F$29","v":"X"},{"$f":"Menu!$J$29","v":2020},{"$f":"IF(ISBLANK(INDIRECT(\"'\"&F2532&\"'!\"&G2532)),\"\",INDIRECT(\"'\"&F2532&\"'!\"&G2532))","v":""},{"$f":"IF(ISBLANK(INDIRECT(\"'\"&F2532&\"'!\"&H2532)),\"\",IFERROR(VLOOKUP(TEXT(INDIRECT(\"'\"&F2532&\"'!\"&H2532),\"0\"),Notes!$B$5:$C$100,2,FALSE),\"\"))","v":""},"2c","$Y$94","$Z$94"]
[14260,{"$f":"Menu!$F$29","v":"X"},{"$f":"Menu!$J$29","v":2020},{"$f":"IF(ISBLANK(INDIRECT(\"'\"&F2533&\"'!\"&G2533)),\"\",INDIRECT(\"'\"&F2533&\"'!\"&G2533))","v":""},{"$f":"IF(ISBLANK(INDIRECT(\"'\"&F2533&\"'!\"&H2533)),\"\",IFERROR(VLOOKUP(TEXT(INDIRECT(\"'\"&F2533&\"'!\"&H2533),\"0\"),Notes!$B$5:$C$100,2,FALSE),\"\"))","v":""},"2c","$AA$94","$AB$94"]
[14261,{"$f":"Menu!$F$29","v":"X"},{"$f":"Menu!$J$29","v":2020},{"$f":"IF(ISBLANK(INDIRECT(\"'\"&F2534&\"'!\"&G2534)),\"\",INDIRECT(\"'\"&F2534&\"'!\"&G2534))","v":""},{"$f":"IF(ISBLANK(INDIRECT(\"'\"&F2534&\"'!\"&H2534)),\"\",IFERROR(VLOOKUP(TEXT(INDIRECT(\"'\"&F2534&\"'!\"&H2534),\"0\"),Notes!$B$5:$C$100,2,FALSE),\"\"))","v":""},"2c","$E$96","$F$96"]
[14262,{"$f":"Menu!$F$29","v":"X"},{"$f":"Menu!$J$29","v":2020},{"$f":"IF(ISBLANK(INDIRECT(\"'\"&F2535&\"'!\"&G2535)),\"\",INDIRECT(\"'\"&F2535&\"'!\"&G2535))","v":""},{"$f":"IF(ISBLANK(INDIRECT(\"'\"&F2535&\"'!\"&H2535)),\"\",IFERROR(VLOOKUP(TEXT(INDIRECT(\"'\"&F2535&\"'!\"&H2535),\"0\"),Notes!$B$5:$C$100,2,FALSE),\"\"))","v":""},"2c","$G$96","$H$96"]
[14263,{"$f":"Menu!$F$29","v":"X"},{"$f":"Menu!$J$29","v":2020},{"$f":"IF(ISBLANK(INDIRECT(\"'\"&F2536&\"'!\"&G2536)),\"\",INDIRECT(\"'\"&F2536&\"'!\"&G2536))","v":""},{"$f":"IF(ISBLANK(INDIRECT(\"'\"&F2536&\"'!\"&H2536)),\"\",IFERROR(VLOOKUP(TEXT(INDIRECT(\"'\"&F2536&\"'!\"&H2536),\"0\"),Notes!$B$5:$C$100,2,FALSE),\"\"))","v":""},"2c","$I$96","$J$96"]
[14264,{"$f":"Menu!$F$29","v":"X"},{"$f":"Menu!$J$29","v":2020},{"$f":"IF(ISBLANK(INDIRECT(\"'\"&F2537&\"'!\"&G2537)),\"\",INDIRECT(\"'\"&F2537&\"'!\"&G2537))","v":""},{"$f":"IF(ISBLANK(INDIRECT(\"'\"&F2537&\"'!\"&H2537)),\"\",IFERROR(VLOOKUP(TEXT(INDIRECT(\"'\"&F2537&\"'!\"&H2537),\"0\"),Notes!$B$5:$C$100,2,FALSE),\"\"))","v":""},"2c","$K$96","$L$96"]
[14265,{"$f":"Menu!$F$29","v":"X"},{"$f":"Menu!$J$29","v":2020},{"$f":"IF(ISBLANK(INDIRECT(\"'\"&F2538&\"'!\"&G2538)),\"\",INDIRECT(\"'\"&F2538&\"'!\"&G2538))","v":""},{"$f":"IF(ISBLANK(INDIRECT(\"'\"&F2538&\"'!\"&H2538)),\"\",IFERROR(VLOOKUP(TEXT(INDIRECT(\"'\"&F2538&\"'!\"&H2538),\"0\"),Notes!$B$5:$C$100,2,FALSE),\"\"))","v":""},"2c","$M$96","$N$96"]
[14266,{"$f":"Menu!$F$29","v":"X"},{"$f":"Menu!$J$29","v":2020},{"$f":"IF(ISBLANK(INDIRECT(\"'\"&F2539&\"'!\"&G2539)),\"\",INDIRECT(\"'\"&F2539&\"'!\"&G2539))","v":""},{"$f":"IF(ISBLANK(INDIRECT(\"'\"&F2539&\"'!\"&H2539)),\"\",IFERROR(VLOOKUP(TEXT(INDIRECT(\"'\"&F2539&\"'!\"&H2539),\"0\"),Notes!$B$5:$C$100,2,FALSE),\"\"))","v":""},"2c","$O$96","$P$96"]
[14267,{"$f":"Menu!$F$29","v":"X"},{"$f":"Menu!$J$29","v":2020},{"$f":"IF(ISBLANK(INDIRECT(\"'\"&F2540&\"'!\"&G2540)),\"\",INDIRECT(\"'\"&F2540&\"'!\"&G2540))","v":""},{"$f":"IF(ISBLANK(INDIRECT(\"'\"&F2540&\"'!\"&H2540)),\"\",IFERROR(VLOOKUP(TEXT(INDIRECT(\"'\"&F2540&\"'!\"&H2540),\"0\"),Notes!$B$5:$C$100,2,FALSE),\"\"))","v":""},"2c","$Q$96","$R$96"]
[14268,{"$f":"Menu!$F$29","v":"X"},{"$f":"Menu!$J$29","v":2020},{"$f":"IF(ISBLANK(INDIRECT(\"'\"&F2541&\"'!\"&G2541)),\"\",INDIRECT(\"'\"&F2541&\"'!\"&G2541))","v":""},{"$f":"IF(ISBLANK(INDIRECT(\"'\"&F2541&\"'!\"&H2541)),\"\",IFERROR(VLOOKUP(TEXT(INDIRECT(\"'\"&F2541&\"'!\"&H2541),\"0\"),Notes!$B$5:$C$100,2,FALSE),\"\"))","v":""},"2c","$S$96","$T$96"]
[14269,{"$f":"Menu!$F$29","v":"X"},{"$f":"Menu!$J$29","v":2020},{"$f":"IF(ISBLANK(INDIRECT(\"'\"&F2542&\"'!\"&G2542)),\"\",INDIRECT(\"'\"&F2542&\"'!\"&G2542))","v":""},{"$f":"IF(ISBLANK(INDIRECT(\"'\"&F2542&\"'!\"&H2542)),\"\",IFERROR(VLOOKUP(TEXT(INDIRECT(\"'\"&F2542&\"'!\"&H2542),\"0\"),Notes!$B$5:$C$100,2,FALSE),\"\"))","v":""},"2c","$U$96","$V$96"]
[14270,{"$f":"Menu!$F$29","v":"X"},{"$f":"Menu!$J$29","v":2020},{"$f":"IF(ISBLANK(INDIRECT(\"'\"&F2543&\"'!\"&G2543)),\"\",INDIRECT(\"'\"&F2543&\"'!\"&G2543))","v":""},{"$f":"IF(ISBLANK(INDIRECT(\"'\"&F2543&\"'!\"&H2543)),\"\",IFERROR(VLOOKUP(TEXT(INDIRECT(\"'\"&F2543&\"'!\"&H2543),\"0\"),Notes!$B$5:$C$100,2,FALSE),\"\"))","v":""},"2c","$W$96","$X$96"]
[14271,{"$f":"Menu!$F$29","v":"X"},{"$f":"Menu!$J$29","v":2020},{"$f":"IF(ISBLANK(INDIRECT(\"'\"&F2544&\"'!\"&G2544)),\"\",INDIRECT(\"'\"&F2544&\"'!\"&G2544))","v":""},{"$f":"IF(ISBLANK(INDIRECT(\"'\"&F2544&\"'!\"&H2544)),\"\",IFERROR(VLOOKUP(TEXT(INDIRECT(\"'\"&F2544&\"'!\"&H2544),\"0\"),Notes!$B$5:$C$100,2,FALSE),\"\"))","v":""},"2c","$Y$96","$Z$96"]
[14272,{"$f":"Menu!$F$29","v":"X"},{"$f":"Menu!$J$29","v":2020},{"$f":"IF(ISBLANK(INDIRECT(\"'\"&F2545&\"'!\"&G2545)),\"\",INDIRECT(\"'\"&F2545&\"'!\"&G2545))","v":""},{"$f":"IF(ISBLANK(INDIRECT(\"'\"&F2545&\"'!\"&H2545)),\"\",IFERROR(VLOOKUP(TEXT(INDIRECT(\"'\"&F2545&\"'!\"&H2545),\"0\"),Notes!$B$5:$C$100,2,FALSE),\"\"))","v":""},"2c","$AA$96","$AB$96"]
[14273,{"$f":"Menu!$F$29","v":"X"},{"$f":"Menu!$J$29","v":2020},{"$f":"IF(ISBLANK(INDIRECT(\"'\"&F2546&\"'!\"&G2546)),\"\",INDIRECT(\"'\"&F2546&\"'!\"&G2546))","v":""},{"$f":"IF(ISBLANK(INDIRECT(\"'\"&F2546&\"'!\"&H2546)),\"\",IFERROR(VLOOKUP(TEXT(INDIRECT(\"'\"&F2546&\"'!\"&H2546),\"0\"),Notes!$B$5:$C$100,2,FALSE),\"\"))","v":""},"2c","$E$89","$F$89"]
[14274,{"$f":"Menu!$F$29","v":"X"},{"$f":"Menu!$J$29","v":2020},{"$f":"IF(ISBLANK(INDIRECT(\"'\"&F2547&\"'!\"&G2547)),\"\",INDIRECT(\"'\"&F2547&\"'!\"&G2547))","v":""},{"$f":"IF(ISBLANK(INDIRECT(\"'\"&F2547&\"'!\"&H2547)),\"\",IFERROR(VLOOKUP(TEXT(INDIRECT(\"'\"&F2547&\"'!\"&H2547),\"0\"),Notes!$B$5:$C$100,2,FALSE),\"\"))","v":""},"2c","$G$89","$H$89"]
[14275,{"$f":"Menu!$F$29","v":"X"},{"$f":"Menu!$J$29","v":2020},{"$f":"IF(ISBLANK(INDIRECT(\"'\"&F2548&\"'!\"&G2548)),\"\",INDIRECT(\"'\"&F2548&\"'!\"&G2548))","v":""},{"$f":"IF(ISBLANK(INDIRECT(\"'\"&F2548&\"'!\"&H2548)),\"\",IFERROR(VLOOKUP(TEXT(INDIRECT(\"'\"&F2548&\"'!\"&H2548),\"0\"),Notes!$B$5:$C$100,2,FALSE),\"\"))","v":""},"2c","$I$89","$J$89"]
[14276,{"$f":"Menu!$F$29","v":"X"},{"$f":"Menu!$J$29","v":2020},{"$f":"IF(ISBLANK(INDIRECT(\"'\"&F2549&\"'!\"&G2549)),\"\",INDIRECT(\"'\"&F2549&\"'!\"&G2549))","v":""},{"$f":"IF(ISBLANK(INDIRECT(\"'\"&F2549&\"'!\"&H2549)),\"\",IFERROR(VLOOKUP(TEXT(INDIRECT(\"'\"&F2549&\"'!\"&H2549),\"0\"),Notes!$B$5:$C$100,2,FALSE),\"\"))","v":""},"2c","$K$89","$L$89"]
[14277,{"$f":"Menu!$F$29","v":"X"},{"$f":"Menu!$J$29","v":2020},{"$f":"IF(ISBLANK(INDIRECT(\"'\"&F2550&\"'!\"&G2550)),\"\",INDIRECT(\"'\"&F2550&\"'!\"&G2550))","v":""},{"$f":"IF(ISBLANK(INDIRECT(\"'\"&F2550&\"'!\"&H2550)),\"\",IFERROR(VLOOKUP(TEXT(INDIRECT(\"'\"&F2550&\"'!\"&H2550),\"0\"),Notes!$B$5:$C$100,2,FALSE),\"\"))","v":""},"2c","$M$89","$N$89"]
[14278,{"$f":"Menu!$F$29","v":"X"},{"$f":"Menu!$J$29","v":2020},{"$f":"IF(ISBLANK(INDIRECT(\"'\"&F2551&\"'!\"&G2551)),\"\",INDIRECT(\"'\"&F2551&\"'!\"&G2551))","v":""},{"$f":"IF(ISBLANK(INDIRECT(\"'\"&F2551&\"'!\"&H2551)),\"\",IFERROR(VLOOKUP(TEXT(INDIRECT(\"'\"&F2551&\"'!\"&H2551),\"0\"),Notes!$B$5:$C$100,2,FALSE),\"\"))","v":""},"2c","$O$89","$P$89"]
[14279,{"$f":"Menu!$F$29","v":"X"},{"$f":"Menu!$J$29","v":2020},{"$f":"IF(ISBLANK(INDIRECT(\"'\"&F2552&\"'!\"&G2552)),\"\",INDIRECT(\"'\"&F2552&\"'!\"&G2552))","v":""},{"$f":"IF(ISBLANK(INDIRECT(\"'\"&F2552&\"'!\"&H2552)),\"\",IFERROR(VLOOKUP(TEXT(INDIRECT(\"'\"&F2552&\"'!\"&H2552),\"0\"),Notes!$B$5:$C$100,2,FALSE),\"\"))","v":""},"2c","$Q$89","$R$89"]
[14280,{"$f":"Menu!$F$29","v":"X"},{"$f":"Menu!$J$29","v":2020},{"$f":"IF(ISBLANK(INDIRECT(\"'\"&F2553&\"'!\"&G2553)),\"\",INDIRECT(\"'\"&F2553&\"'!\"&G2553))","v":""},{"$f":"IF(ISBLANK(INDIRECT(\"'\"&F2553&\"'!\"&H2553)),\"\",IFERROR(VLOOKUP(TEXT(INDIRECT(\"'\"&F2553&\"'!\"&H2553),\"0\"),Notes!$B$5:$C$100,2,FALSE),\"\"))","v":""},"2c","$S$89","$T$89"]
[14281,{"$f":"Menu!$F$29","v":"X"},{"$f":"Menu!$J$29","v":2020},{"$f":"IF(ISBLANK(INDIRECT(\"'\"&F2554&\"'!\"&G2554)),\"\",INDIRECT(\"'\"&F2554&\"'!\"&G2554))","v":""},{"$f":"IF(ISBLANK(INDIRECT(\"'\"&F2554&\"'!\"&H2554)),\"\",IFERROR(VLOOKUP(TEXT(INDIRECT(\"'\"&F2554&\"'!\"&H2554),\"0\"),Notes!$B$5:$C$100,2,FALSE),\"\"))","v":""},"2c","$U$89","$V$89"]
[14282,{"$f":"Menu!$F$29","v":"X"},{"$f":"Menu!$J$29","v":2020},{"$f":"IF(ISBLANK(INDIRECT(\"'\"&F2555&\"'!\"&G2555)),\"\",INDIRECT(\"'\"&F2555&\"'!\"&G2555))","v":""},{"$f":"IF(ISBLANK(INDIRECT(\"'\"&F2555&\"'!\"&H2555)),\"\",IFERROR(VLOOKUP(TEXT(INDIRECT(\"'\"&F2555&\"'!\"&H2555),\"0\"),Notes!$B$5:$C$100,2,FALSE),\"\"))","v":""},"2c","$W$89","$X$89"]
[14283,{"$f":"Menu!$F$29","v":"X"},{"$f":"Menu!$J$29","v":2020},{"$f":"IF(ISBLANK(INDIRECT(\"'\"&F2556&\"'!\"&G2556)),\"\",INDIRECT(\"'\"&F2556&\"'!\"&G2556))","v":""},{"$f":"IF(ISBLANK(INDIRECT(\"'\"&F2556&\"'!\"&H2556)),\"\",IFERROR(VLOOKUP(TEXT(INDIRECT(\"'\"&F2556&\"'!\"&H2556),\"0\"),Notes!$B$5:$C$100,2,FALSE),\"\"))","v":""},"2c","$Y$89","$Z$89"]
[14284,{"$f":"Menu!$F$29","v":"X"},{"$f":"Menu!$J$29","v":2020},{"$f":"IF(ISBLANK(INDIRECT(\"'\"&F2557&\"'!\"&G2557)),\"\",INDIRECT(\"'\"&F2557&\"'!\"&G2557))","v":""},{"$f":"IF(ISBLANK(INDIRECT(\"'\"&F2557&\"'!\"&H2557)),\"\",IFERROR(VLOOKUP(TEXT(INDIRECT(\"'\"&F2557&\"'!\"&H2557),\"0\"),Notes!$B$5:$C$100,2,FALSE),\"\"))","v":""},"2c","$AA$89","$AB$89"]
[14285,{"$f":"Menu!$F$29","v":"X"},{"$f":"Menu!$J$29","v":2020},{"$f":"IF(ISBLANK(INDIRECT(\"'\"&F2558&\"'!\"&G2558)),\"\",INDIRECT(\"'\"&F2558&\"'!\"&G2558))","v":""},{"$f":"IF(ISBLANK(INDIRECT(\"'\"&F2558&\"'!\"&H2558)),\"\",IFERROR(VLOOKUP(TEXT(INDIRECT(\"'\"&F2558&\"'!\"&H2558),\"0\"),Notes!$B$5:$C$100,2,FALSE),\"\"))","v":""},"2c","$E$54","$F$54"]
[14286,{"$f":"Menu!$F$29","v":"X"},{"$f":"Menu!$J$29","v":2020},{"$f":"IF(ISBLANK(INDIRECT(\"'\"&F2559&\"'!\"&G2559)),\"\",INDIRECT(\"'\"&F2559&\"'!\"&G2559))","v":""},{"$f":"IF(ISBLANK(INDIRECT(\"'\"&F2559&\"'!\"&H2559)),\"\",IFERROR(VLOOKUP(TEXT(INDIRECT(\"'\"&F2559&\"'!\"&H2559),\"0\"),Notes!$B$5:$C$100,2,FALSE),\"\"))","v":""},"2c","$G$54","$H$54"]
[14287,{"$f":"Menu!$F$29","v":"X"},{"$f":"Menu!$J$29","v":2020},{"$f":"IF(ISBLANK(INDIRECT(\"'\"&F2560&\"'!\"&G2560)),\"\",INDIRECT(\"'\"&F2560&\"'!\"&G2560))","v":""},{"$f":"IF(ISBLANK(INDIRECT(\"'\"&F2560&\"'!\"&H2560)),\"\",IFERROR(VLOOKUP(TEXT(INDIRECT(\"'\"&F2560&\"'!\"&H2560),\"0\"),Notes!$B$5:$C$100,2,FALSE),\"\"))","v":""},"2c","$I$54","$J$54"]
[14288,{"$f":"Menu!$F$29","v":"X"},{"$f":"Menu!$J$29","v":2020},{"$f":"IF(ISBLANK(INDIRECT(\"'\"&F2561&\"'!\"&G2561)),\"\",INDIRECT(\"'\"&F2561&\"'!\"&G2561))","v":""},{"$f":"IF(ISBLANK(INDIRECT(\"'\"&F2561&\"'!\"&H2561)),\"\",IFERROR(VLOOKUP(TEXT(INDIRECT(\"'\"&F2561&\"'!\"&H2561),\"0\"),Notes!$B$5:$C$100,2,FALSE),\"\"))","v":""},"2c","$K$54","$L$54"]
[14289,{"$f":"Menu!$F$29","v":"X"},{"$f":"Menu!$J$29","v":2020},{"$f":"IF(ISBLANK(INDIRECT(\"'\"&F2562&\"'!\"&G2562)),\"\",INDIRECT(\"'\"&F2562&\"'!\"&G2562))","v":""},{"$f":"IF(ISBLANK(INDIRECT(\"'\"&F2562&\"'!\"&H2562)),\"\",IFERROR(VLOOKUP(TEXT(INDIRECT(\"'\"&F2562&\"'!\"&H2562),\"0\"),Notes!$B$5:$C$100,2,FALSE),\"\"))","v":""},"2c","$M$54",{"$f":"IF(LEN(TRIM(MID(G2562,4,10)))-LEN(SUBSTITUTE(TRIM(MID(G2562,4,10)),\"$\",\"\"))=0,\"$\"&CHAR(CODE(MID(G2562,2,1))+1)&\"$\"&TRIM(MID(G2562,4,10)),\"$\"&MID(G2562,2,1)&CHAR(CODE(MID(G2562,3,1))+1)&\"$\"&TRIM(MID(G2562,5,11)))","v":"$N$54"}]
[14290,{"$f":"Menu!$F$29","v":"X"},{"$f":"Menu!$J$29","v":2020},{"$f":"IF(ISBLANK(INDIRECT(\"'\"&F2563&\"'!\"&G2563)),\"\",INDIRECT(\"'\"&F2563&\"'!\"&G2563))","v":""},{"$f":"IF(ISBLANK(INDIRECT(\"'\"&F2563&\"'!\"&H2563)),\"\",IFERROR(VLOOKUP(TEXT(INDIRECT(\"'\"&F2563&\"'!\"&H2563),\"0\"),Notes!$B$5:$C$100,2,FALSE),\"\"))","v":""},"2c","$O$54","$P$54"]
[14291,{"$f":"Menu!$F$29","v":"X"},{"$f":"Menu!$J$29","v":2020},{"$f":"IF(ISBLANK(INDIRECT(\"'\"&F2564&\"'!\"&G2564)),\"\",INDIRECT(\"'\"&F2564&\"'!\"&G2564))","v":""},{"$f":"IF(ISBLANK(INDIRECT(\"'\"&F2564&\"'!\"&H2564)),\"\",IFERROR(VLOOKUP(TEXT(INDIRECT(\"'\"&F2564&\"'!\"&H2564),\"0\"),Notes!$B$5:$C$100,2,FALSE),\"\"))","v":""},"2c","$Q$54","$R$54"]
[14292,{"$f":"Menu!$F$29","v":"X"},{"$f":"Menu!$J$29","v":2020},{"$f":"IF(ISBLANK(INDIRECT(\"'\"&F2565&\"'!\"&G2565)),\"\",INDIRECT(\"'\"&F2565&\"'!\"&G2565))","v":""},{"$f":"IF(ISBLANK(INDIRECT(\"'\"&F2565&\"'!\"&H2565)),\"\",IFERROR(VLOOKUP(TEXT(INDIRECT(\"'\"&F2565&\"'!\"&H2565),\"0\"),Notes!$B$5:$C$100,2,FALSE),\"\"))","v":""},"2c","$S$54","$T$54"]
[14293,{"$f":"Menu!$F$29","v":"X"},{"$f":"Menu!$J$29","v":2020},{"$f":"IF(ISBLANK(INDIRECT(\"'\"&F2566&\"'!\"&G2566)),\"\",INDIRECT(\"'\"&F2566&\"'!\"&G2566))","v":""},{"$f":"IF(ISBLANK(INDIRECT(\"'\"&F2566&\"'!\"&H2566)),\"\",IFERROR(VLOOKUP(TEXT(INDIRECT(\"'\"&F2566&\"'!\"&H2566),\"0\"),Notes!$B$5:$C$100,2,FALSE),\"\"))","v":""},"2c","$U$54","$V$54"]
[14294,{"$f":"Menu!$F$29","v":"X"},{"$f":"Menu!$J$29","v":2020},{"$f":"IF(ISBLANK(INDIRECT(\"'\"&F2567&\"'!\"&G2567)),\"\",INDIRECT(\"'\"&F2567&\"'!\"&G2567))","v":""},{"$f":"IF(ISBLANK(INDIRECT(\"'\"&F2567&\"'!\"&H2567)),\"\",IFERROR(VLOOKUP(TEXT(INDIRECT(\"'\"&F2567&\"'!\"&H2567),\"0\"),Notes!$B$5:$C$100,2,FALSE),\"\"))","v":""},"2c","$W$54","$X$54"]
[14295,{"$f":"Menu!$F$29","v":"X"},{"$f":"Menu!$J$29","v":2020},{"$f":"IF(ISBLANK(INDIRECT(\"'\"&F2568&\"'!\"&G2568)),\"\",INDIRECT(\"'\"&F2568&\"'!\"&G2568))","v":""},{"$f":"IF(ISBLANK(INDIRECT(\"'\"&F2568&\"'!\"&H2568)),\"\",IFERROR(VLOOKUP(TEXT(INDIRECT(\"'\"&F2568&\"'!\"&H2568),\"0\"),Notes!$B$5:$C$100,2,FALSE),\"\"))","v":""},"2c","$Y$54","$Z$54"]
[14296,{"$f":"Menu!$F$29","v":"X"},{"$f":"Menu!$J$29","v":2020},{"$f":"IF(ISBLANK(INDIRECT(\"'\"&F2569&\"'!\"&G2569)),\"\",INDIRECT(\"'\"&F2569&\"'!\"&G2569))","v":""},{"$f":"IF(ISBLANK(INDIRECT(\"'\"&F2569&\"'!\"&H2569)),\"\",IFERROR(VLOOKUP(TEXT(INDIRECT(\"'\"&F2569&\"'!\"&H2569),\"0\"),Notes!$B$5:$C$100,2,FALSE),\"\"))","v":""},"2c","$AA$54","$AB$54"]
[14309,{"$f":"Menu!$F$29","v":"X"},{"$f":"Menu!$J$29","v":2020},{"$f":"IF(ISBLANK(INDIRECT(\"'\"&F2570&\"'!\"&G2570)),\"\",INDIRECT(\"'\"&F2570&\"'!\"&G2570))","v":""},{"$f":"IF(ISBLANK(INDIRECT(\"'\"&F2570&\"'!\"&H2570)),\"\",IFERROR(VLOOKUP(TEXT(INDIRECT(\"'\"&F2570&\"'!\"&H2570),\"0\"),Notes!$B$5:$C$100,2,FALSE),\"\"))","v":""},"2c","$E$101","$F$101"]
[14310,{"$f":"Menu!$F$29","v":"X"},{"$f":"Menu!$J$29","v":2020},{"$f":"IF(ISBLANK(INDIRECT(\"'\"&F2571&\"'!\"&G2571)),\"\",INDIRECT(\"'\"&F2571&\"'!\"&G2571))","v":""},{"$f":"IF(ISBLANK(INDIRECT(\"'\"&F2571&\"'!\"&H2571)),\"\",IFERROR(VLOOKUP(TEXT(INDIRECT(\"'\"&F2571&\"'!\"&H2571),\"0\"),Notes!$B$5:$C$100,2,FALSE),\"\"))","v":""},"2c","$G$101","$H$101"]
[14311,{"$f":"Menu!$F$29","v":"X"},{"$f":"Menu!$J$29","v":2020},{"$f":"IF(ISBLANK(INDIRECT(\"'\"&F2572&\"'!\"&G2572)),\"\",INDIRECT(\"'\"&F2572&\"'!\"&G2572))","v":""},{"$f":"IF(ISBLANK(INDIRECT(\"'\"&F2572&\"'!\"&H2572)),\"\",IFERROR(VLOOKUP(TEXT(INDIRECT(\"'\"&F2572&\"'!\"&H2572),\"0\"),Notes!$B$5:$C$100,2,FALSE),\"\"))","v":""},"2c","$I$101","$J$101"]
[14312,{"$f":"Menu!$F$29","v":"X"},{"$f":"Menu!$J$29","v":2020},{"$f":"IF(ISBLANK(INDIRECT(\"'\"&F2573&\"'!\"&G2573)),\"\",INDIRECT(\"'\"&F2573&\"'!\"&G2573))","v":""},{"$f":"IF(ISBLANK(INDIRECT(\"'\"&F2573&\"'!\"&H2573)),\"\",IFERROR(VLOOKUP(TEXT(INDIRECT(\"'\"&F2573&\"'!\"&H2573),\"0\"),Notes!$B$5:$C$100,2,FALSE),\"\"))","v":""},"2c","$K$101","$L$101"]
[14313,{"$f":"Menu!$F$29","v":"X"},{"$f":"Menu!$J$29","v":2020},{"$f":"IF(ISBLANK(INDIRECT(\"'\"&F2574&\"'!\"&G2574)),\"\",INDIRECT(\"'\"&F2574&\"'!\"&G2574))","v":""},{"$f":"IF(ISBLANK(INDIRECT(\"'\"&F2574&\"'!\"&H2574)),\"\",IFERROR(VLOOKUP(TEXT(INDIRECT(\"'\"&F2574&\"'!\"&H2574),\"0\"),Notes!$B$5:$C$100,2,FALSE),\"\"))","v":""},"2c","$M$101","$N$101"]
[14314,{"$f":"Menu!$F$29","v":"X"},{"$f":"Menu!$J$29","v":2020},{"$f":"IF(ISBLANK(INDIRECT(\"'\"&F2575&\"'!\"&G2575)),\"\",INDIRECT(\"'\"&F2575&\"'!\"&G2575))","v":""},{"$f":"IF(ISBLANK(INDIRECT(\"'\"&F2575&\"'!\"&H2575)),\"\",IFERROR(VLOOKUP(TEXT(INDIRECT(\"'\"&F2575&\"'!\"&H2575),\"0\"),Notes!$B$5:$C$100,2,FALSE),\"\"))","v":""},"2c","$O$101","$P$101"]
[14315,{"$f":"Menu!$F$29","v":"X"},{"$f":"Menu!$J$29","v":2020},{"$f":"IF(ISBLANK(INDIRECT(\"'\"&F2576&\"'!\"&G2576)),\"\",INDIRECT(\"'\"&F2576&\"'!\"&G2576))","v":""},{"$f":"IF(ISBLANK(INDIRECT(\"'\"&F2576&\"'!\"&H2576)),\"\",IFERROR(VLOOKUP(TEXT(INDIRECT(\"'\"&F2576&\"'!\"&H2576),\"0\"),Notes!$B$5:$C$100,2,FALSE),\"\"))","v":""},"2c","$Q$101","$R$101"]
[14316,{"$f":"Menu!$F$29","v":"X"},{"$f":"Menu!$J$29","v":2020},{"$f":"IF(ISBLANK(INDIRECT(\"'\"&F2577&\"'!\"&G2577)),\"\",INDIRECT(\"'\"&F2577&\"'!\"&G2577))","v":""},{"$f":"IF(ISBLANK(INDIRECT(\"'\"&F2577&\"'!\"&H2577)),\"\",IFERROR(VLOOKUP(TEXT(INDIRECT(\"'\"&F2577&\"'!\"&H2577),\"0\"),Notes!$B$5:$C$100,2,FALSE),\"\"))","v":""},"2c","$S$101","$T$101"]
[14317,{"$f":"Menu!$F$29","v":"X"},{"$f":"Menu!$J$29","v":2020},{"$f":"IF(ISBLANK(INDIRECT(\"'\"&F2578&\"'!\"&G2578)),\"\",INDIRECT(\"'\"&F2578&\"'!\"&G2578))","v":""},{"$f":"IF(ISBLANK(INDIRECT(\"'\"&F2578&\"'!\"&H2578)),\"\",IFERROR(VLOOKUP(TEXT(INDIRECT(\"'\"&F2578&\"'!\"&H2578),\"0\"),Notes!$B$5:$C$100,2,FALSE),\"\"))","v":""},"2c","$U$101","$V$101"]
[14318,{"$f":"Menu!$F$29","v":"X"},{"$f":"Menu!$J$29","v":2020},{"$f":"IF(ISBLANK(INDIRECT(\"'\"&F2579&\"'!\"&G2579)),\"\",INDIRECT(\"'\"&F2579&\"'!\"&G2579))","v":""},{"$f":"IF(ISBLANK(INDIRECT(\"'\"&F2579&\"'!\"&H2579)),\"\",IFERROR(VLOOKUP(TEXT(INDIRECT(\"'\"&F2579&\"'!\"&H2579),\"0\"),Notes!$B$5:$C$100,2,FALSE),\"\"))","v":""},"2c","$W$101","$X$101"]
[14319,{"$f":"Menu!$F$29","v":"X"},{"$f":"Menu!$J$29","v":2020},{"$f":"IF(ISBLANK(INDIRECT(\"'\"&F2580&\"'!\"&G2580)),\"\",INDIRECT(\"'\"&F2580&\"'!\"&G2580))","v":""},{"$f":"IF(ISBLANK(INDIRECT(\"'\"&F2580&\"'!\"&H2580)),\"\",IFERROR(VLOOKUP(TEXT(INDIRECT(\"'\"&F2580&\"'!\"&H2580),\"0\"),Notes!$B$5:$C$100,2,FALSE),\"\"))","v":""},"2c","$Y$101","$Z$101"]
[14320,{"$f":"Menu!$F$29","v":"X"},{"$f":"Menu!$J$29","v":2020},{"$f":"IF(ISBLANK(INDIRECT(\"'\"&F2581&\"'!\"&G2581)),\"\",INDIRECT(\"'\"&F2581&\"'!\"&G2581))","v":""},{"$f":"IF(ISBLANK(INDIRECT(\"'\"&F2581&\"'!\"&H2581)),\"\",IFERROR(VLOOKUP(TEXT(INDIRECT(\"'\"&F2581&\"'!\"&H2581),\"0\"),Notes!$B$5:$C$100,2,FALSE),\"\"))","v":""},"2c","$AA$101","$AB$101"]
[14321,{"$f":"Menu!$F$29","v":"X"},{"$f":"Menu!$J$29","v":2020},{"$f":"IF(ISBLANK(INDIRECT(\"'\"&F2582&\"'!\"&G2582)),\"\",INDIRECT(\"'\"&F2582&\"'!\"&G2582))","v":""},{"$f":"IF(ISBLANK(INDIRECT(\"'\"&F2582&\"'!\"&H2582)),\"\",IFERROR(VLOOKUP(TEXT(INDIRECT(\"'\"&F2582&\"'!\"&H2582),\"0\"),Notes!$B$5:$C$100,2,FALSE),\"\"))","v":""},"2c","$E$102","$F$102"]
[14322,{"$f":"Menu!$F$29","v":"X"},{"$f":"Menu!$J$29","v":2020},{"$f":"IF(ISBLANK(INDIRECT(\"'\"&F2583&\"'!\"&G2583)),\"\",INDIRECT(\"'\"&F2583&\"'!\"&G2583))","v":""},{"$f":"IF(ISBLANK(INDIRECT(\"'\"&F2583&\"'!\"&H2583)),\"\",IFERROR(VLOOKUP(TEXT(INDIRECT(\"'\"&F2583&\"'!\"&H2583),\"0\"),Notes!$B$5:$C$100,2,FALSE),\"\"))","v":""},"2c","$G$102","$H$102"]
[14323,{"$f":"Menu!$F$29","v":"X"},{"$f":"Menu!$J$29","v":2020},{"$f":"IF(ISBLANK(INDIRECT(\"'\"&F2584&\"'!\"&G2584)),\"\",INDIRECT(\"'\"&F2584&\"'!\"&G2584))","v":""},{"$f":"IF(ISBLANK(INDIRECT(\"'\"&F2584&\"'!\"&H2584)),\"\",IFERROR(VLOOKUP(TEXT(INDIRECT(\"'\"&F2584&\"'!\"&H2584),\"0\"),Notes!$B$5:$C$100,2,FALSE),\"\"))","v":""},"2c","$I$102","$J$102"]
[14324,{"$f":"Menu!$F$29","v":"X"},{"$f":"Menu!$J$29","v":2020},{"$f":"IF(ISBLANK(INDIRECT(\"'\"&F2585&\"'!\"&G2585)),\"\",INDIRECT(\"'\"&F2585&\"'!\"&G2585))","v":""},{"$f":"IF(ISBLANK(INDIRECT(\"'\"&F2585&\"'!\"&H2585)),\"\",IFERROR(VLOOKUP(TEXT(INDIRECT(\"'\"&F2585&\"'!\"&H2585),\"0\"),Notes!$B$5:$C$100,2,FALSE),\"\"))","v":""},"2c","$K$102","$L$102"]
[14325,{"$f":"Menu!$F$29","v":"X"},{"$f":"Menu!$J$29","v":2020},{"$f":"IF(ISBLANK(INDIRECT(\"'\"&F2586&\"'!\"&G2586)),\"\",INDIRECT(\"'\"&F2586&\"'!\"&G2586))","v":""},{"$f":"IF(ISBLANK(INDIRECT(\"'\"&F2586&\"'!\"&H2586)),\"\",IFERROR(VLOOKUP(TEXT(INDIRECT(\"'\"&F2586&\"'!\"&H2586),\"0\"),Notes!$B$5:$C$100,2,FALSE),\"\"))","v":""},"2c","$M$102","$N$102"]
[14326,{"$f":"Menu!$F$29","v":"X"},{"$f":"Menu!$J$29","v":2020},{"$f":"IF(ISBLANK(INDIRECT(\"'\"&F2587&\"'!\"&G2587)),\"\",INDIRECT(\"'\"&F2587&\"'!\"&G2587))","v":""},{"$f":"IF(ISBLANK(INDIRECT(\"'\"&F2587&\"'!\"&H2587)),\"\",IFERROR(VLOOKUP(TEXT(INDIRECT(\"'\"&F2587&\"'!\"&H2587),\"0\"),Notes!$B$5:$C$100,2,FALSE),\"\"))","v":""},"2c","$O$102","$P$102"]
[14327,{"$f":"Menu!$F$29","v":"X"},{"$f":"Menu!$J$29","v":2020},{"$f":"IF(ISBLANK(INDIRECT(\"'\"&F2588&\"'!\"&G2588)),\"\",INDIRECT(\"'\"&F2588&\"'!\"&G2588))","v":""},{"$f":"IF(ISBLANK(INDIRECT(\"'\"&F2588&\"'!\"&H2588)),\"\",IFERROR(VLOOKUP(TEXT(INDIRECT(\"'\"&F2588&\"'!\"&H2588),\"0\"),Notes!$B$5:$C$100,2,FALSE),\"\"))","v":""},"2c","$Q$102","$R$102"]
[14328,{"$f":"Menu!$F$29","v":"X"},{"$f":"Menu!$J$29","v":2020},{"$f":"IF(ISBLANK(INDIRECT(\"'\"&F2589&\"'!\"&G2589)),\"\",INDIRECT(\"'\"&F2589&\"'!\"&G2589))","v":""},{"$f":"IF(ISBLANK(INDIRECT(\"'\"&F2589&\"'!\"&H2589)),\"\",IFERROR(VLOOKUP(TEXT(INDIRECT(\"'\"&F2589&\"'!\"&H2589),\"0\"),Notes!$B$5:$C$100,2,FALSE),\"\"))","v":""},"2c","$S$102","$T$102"]
[14329,{"$f":"Menu!$F$29","v":"X"},{"$f":"Menu!$J$29","v":2020},{"$f":"IF(ISBLANK(INDIRECT(\"'\"&F2590&\"'!\"&G2590)),\"\",INDIRECT(\"'\"&F2590&\"'!\"&G2590))","v":""},{"$f":"IF(ISBLANK(INDIRECT(\"'\"&F2590&\"'!\"&H2590)),\"\",IFERROR(VLOOKUP(TEXT(INDIRECT(\"'\"&F2590&\"'!\"&H2590),\"0\"),Notes!$B$5:$C$100,2,FALSE),\"\"))","v":""},"2c","$U$102","$V$102"]
[14330,{"$f":"Menu!$F$29","v":"X"},{"$f":"Menu!$J$29","v":2020},{"$f":"IF(ISBLANK(INDIRECT(\"'\"&F2591&\"'!\"&G2591)),\"\",INDIRECT(\"'\"&F2591&\"'!\"&G2591))","v":""},{"$f":"IF(ISBLANK(INDIRECT(\"'\"&F2591&\"'!\"&H2591)),\"\",IFERROR(VLOOKUP(TEXT(INDIRECT(\"'\"&F2591&\"'!\"&H2591),\"0\"),Notes!$B$5:$C$100,2,FALSE),\"\"))","v":""},"2c","$W$102","$X$102"]
[14331,{"$f":"Menu!$F$29","v":"X"},{"$f":"Menu!$J$29","v":2020},{"$f":"IF(ISBLANK(INDIRECT(\"'\"&F2592&\"'!\"&G2592)),\"\",INDIRECT(\"'\"&F2592&\"'!\"&G2592))","v":""},{"$f":"IF(ISBLANK(INDIRECT(\"'\"&F2592&\"'!\"&H2592)),\"\",IFERROR(VLOOKUP(TEXT(INDIRECT(\"'\"&F2592&\"'!\"&H2592),\"0\"),Notes!$B$5:$C$100,2,FALSE),\"\"))","v":""},"2c","$Y$102","$Z$102"]
[14332,{"$f":"Menu!$F$29","v":"X"},{"$f":"Menu!$J$29","v":2020},{"$f":"IF(ISBLANK(INDIRECT(\"'\"&F2593&\"'!\"&G2593)),\"\",INDIRECT(\"'\"&F2593&\"'!\"&G2593))","v":""},{"$f":"IF(ISBLANK(INDIRECT(\"'\"&F2593&\"'!\"&H2593)),\"\",IFERROR(VLOOKUP(TEXT(INDIRECT(\"'\"&F2593&\"'!\"&H2593),\"0\"),Notes!$B$5:$C$100,2,FALSE),\"\"))","v":""},"2c","$AA$102","$AB$102"]
[14333,{"$f":"Menu!$F$29","v":"X"},{"$f":"Menu!$J$29","v":2020},{"$f":"IF(ISBLANK(INDIRECT(\"'\"&F2594&\"'!\"&G2594)),\"\",INDIRECT(\"'\"&F2594&\"'!\"&G2594))","v":""},{"$f":"IF(ISBLANK(INDIRECT(\"'\"&F2594&\"'!\"&H2594)),\"\",IFERROR(VLOOKUP(TEXT(INDIRECT(\"'\"&F2594&\"'!\"&H2594),\"0\"),Notes!$B$5:$C$100,2,FALSE),\"\"))","v":""},"2c","$E$103","$F$103"]
[14334,{"$f":"Menu!$F$29","v":"X"},{"$f":"Menu!$J$29","v":2020},{"$f":"IF(ISBLANK(INDIRECT(\"'\"&F2595&\"'!\"&G2595)),\"\",INDIRECT(\"'\"&F2595&\"'!\"&G2595))","v":""},{"$f":"IF(ISBLANK(INDIRECT(\"'\"&F2595&\"'!\"&H2595)),\"\",IFERROR(VLOOKUP(TEXT(INDIRECT(\"'\"&F2595&\"'!\"&H2595),\"0\"),Notes!$B$5:$C$100,2,FALSE),\"\"))","v":""},"2c","$G$103","$H$103"]
[14335,{"$f":"Menu!$F$29","v":"X"},{"$f":"Menu!$J$29","v":2020},{"$f":"IF(ISBLANK(INDIRECT(\"'\"&F2596&\"'!\"&G2596)),\"\",INDIRECT(\"'\"&F2596&\"'!\"&G2596))","v":""},{"$f":"IF(ISBLANK(INDIRECT(\"'\"&F2596&\"'!\"&H2596)),\"\",IFERROR(VLOOKUP(TEXT(INDIRECT(\"'\"&F2596&\"'!\"&H2596),\"0\"),Notes!$B$5:$C$100,2,FALSE),\"\"))","v":""},"2c","$I$103","$J$103"]
[14336,{"$f":"Menu!$F$29","v":"X"},{"$f":"Menu!$J$29","v":2020},{"$f":"IF(ISBLANK(INDIRECT(\"'\"&F2597&\"'!\"&G2597)),\"\",INDIRECT(\"'\"&F2597&\"'!\"&G2597))","v":""},{"$f":"IF(ISBLANK(INDIRECT(\"'\"&F2597&\"'!\"&H2597)),\"\",IFERROR(VLOOKUP(TEXT(INDIRECT(\"'\"&F2597&\"'!\"&H2597),\"0\"),Notes!$B$5:$C$100,2,FALSE),\"\"))","v":""},"2c","$K$103","$L$103"]
[14337,{"$f":"Menu!$F$29","v":"X"},{"$f":"Menu!$J$29","v":2020},{"$f":"IF(ISBLANK(INDIRECT(\"'\"&F2598&\"'!\"&G2598)),\"\",INDIRECT(\"'\"&F2598&\"'!\"&G2598))","v":""},{"$f":"IF(ISBLANK(INDIRECT(\"'\"&F2598&\"'!\"&H2598)),\"\",IFERROR(VLOOKUP(TEXT(INDIRECT(\"'\"&F2598&\"'!\"&H2598),\"0\"),Notes!$B$5:$C$100,2,FALSE),\"\"))","v":""},"2c","$M$103","$N$103"]
[14338,{"$f":"Menu!$F$29","v":"X"},{"$f":"Menu!$J$29","v":2020},{"$f":"IF(ISBLANK(INDIRECT(\"'\"&F2599&\"'!\"&G2599)),\"\",INDIRECT(\"'\"&F2599&\"'!\"&G2599))","v":""},{"$f":"IF(ISBLANK(INDIRECT(\"'\"&F2599&\"'!\"&H2599)),\"\",IFERROR(VLOOKUP(TEXT(INDIRECT(\"'\"&F2599&\"'!\"&H2599),\"0\"),Notes!$B$5:$C$100,2,FALSE),\"\"))","v":""},"2c","$O$103","$P$103"]
[14339,{"$f":"Menu!$F$29","v":"X"},{"$f":"Menu!$J$29","v":2020},{"$f":"IF(ISBLANK(INDIRECT(\"'\"&F2600&\"'!\"&G2600)),\"\",INDIRECT(\"'\"&F2600&\"'!\"&G2600))","v":""},{"$f":"IF(ISBLANK(INDIRECT(\"'\"&F2600&\"'!\"&H2600)),\"\",IFERROR(VLOOKUP(TEXT(INDIRECT(\"'\"&F2600&\"'!\"&H2600),\"0\"),Notes!$B$5:$C$100,2,FALSE),\"\"))","v":""},"2c","$Q$103","$R$103"]
[14340,{"$f":"Menu!$F$29","v":"X"},{"$f":"Menu!$J$29","v":2020},{"$f":"IF(ISBLANK(INDIRECT(\"'\"&F2601&\"'!\"&G2601)),\"\",INDIRECT(\"'\"&F2601&\"'!\"&G2601))","v":""},{"$f":"IF(ISBLANK(INDIRECT(\"'\"&F2601&\"'!\"&H2601)),\"\",IFERROR(VLOOKUP(TEXT(INDIRECT(\"'\"&F2601&\"'!\"&H2601),\"0\"),Notes!$B$5:$C$100,2,FALSE),\"\"))","v":""},"2c","$S$103","$T$103"]
[14341,{"$f":"Menu!$F$29","v":"X"},{"$f":"Menu!$J$29","v":2020},{"$f":"IF(ISBLANK(INDIRECT(\"'\"&F2602&\"'!\"&G2602)),\"\",INDIRECT(\"'\"&F2602&\"'!\"&G2602))","v":""},{"$f":"IF(ISBLANK(INDIRECT(\"'\"&F2602&\"'!\"&H2602)),\"\",IFERROR(VLOOKUP(TEXT(INDIRECT(\"'\"&F2602&\"'!\"&H2602),\"0\"),Notes!$B$5:$C$100,2,FALSE),\"\"))","v":""},"2c","$U$103","$V$103"]
[14342,{"$f":"Menu!$F$29","v":"X"},{"$f":"Menu!$J$29","v":2020},{"$f":"IF(ISBLANK(INDIRECT(\"'\"&F2603&\"'!\"&G2603)),\"\",INDIRECT(\"'\"&F2603&\"'!\"&G2603))","v":""},{"$f":"IF(ISBLANK(INDIRECT(\"'\"&F2603&\"'!\"&H2603)),\"\",IFERROR(VLOOKUP(TEXT(INDIRECT(\"'\"&F2603&\"'!\"&H2603),\"0\"),Notes!$B$5:$C$100,2,FALSE),\"\"))","v":""},"2c","$W$103","$X$103"]
[14343,{"$f":"Menu!$F$29","v":"X"},{"$f":"Menu!$J$29","v":2020},{"$f":"IF(ISBLANK(INDIRECT(\"'\"&F2604&\"'!\"&G2604)),\"\",INDIRECT(\"'\"&F2604&\"'!\"&G2604))","v":""},{"$f":"IF(ISBLANK(INDIRECT(\"'\"&F2604&\"'!\"&H2604)),\"\",IFERROR(VLOOKUP(TEXT(INDIRECT(\"'\"&F2604&\"'!\"&H2604),\"0\"),Notes!$B$5:$C$100,2,FALSE),\"\"))","v":""},"2c","$Y$103","$Z$103"]
[14344,{"$f":"Menu!$F$29","v":"X"},{"$f":"Menu!$J$29","v":2020},{"$f":"IF(ISBLANK(INDIRECT(\"'\"&F2605&\"'!\"&G2605)),\"\",INDIRECT(\"'\"&F2605&\"'!\"&G2605))","v":""},{"$f":"IF(ISBLANK(INDIRECT(\"'\"&F2605&\"'!\"&H2605)),\"\",IFERROR(VLOOKUP(TEXT(INDIRECT(\"'\"&F2605&\"'!\"&H2605),\"0\"),Notes!$B$5:$C$100,2,FALSE),\"\"))","v":""},"2c","$AA$103","$AB$103"]
[14357,{"$f":"Menu!$F$29","v":"X"},{"$f":"Menu!$J$29","v":2020},{"$f":"IF(ISBLANK(INDIRECT(\"'\"&F2606&\"'!\"&G2606)),\"\",INDIRECT(\"'\"&F2606&\"'!\"&G2606))","v":""},{"$f":"IF(ISBLANK(INDIRECT(\"'\"&F2606&\"'!\"&H2606)),\"\",IFERROR(VLOOKUP(TEXT(INDIRECT(\"'\"&F2606&\"'!\"&H2606),\"0\"),Notes!$B$5:$C$100,2,FALSE),\"\"))","v":""},"2c","$E$98","$F$98"]
[14358,{"$f":"Menu!$F$29","v":"X"},{"$f":"Menu!$J$29","v":2020},{"$f":"IF(ISBLANK(INDIRECT(\"'\"&F2607&\"'!\"&G2607)),\"\",INDIRECT(\"'\"&F2607&\"'!\"&G2607))","v":""},{"$f":"IF(ISBLANK(INDIRECT(\"'\"&F2607&\"'!\"&H2607)),\"\",IFERROR(VLOOKUP(TEXT(INDIRECT(\"'\"&F2607&\"'!\"&H2607),\"0\"),Notes!$B$5:$C$100,2,FALSE),\"\"))","v":""},"2c","$G$98","$H$98"]
[14359,{"$f":"Menu!$F$29","v":"X"},{"$f":"Menu!$J$29","v":2020},{"$f":"IF(ISBLANK(INDIRECT(\"'\"&F2608&\"'!\"&G2608)),\"\",INDIRECT(\"'\"&F2608&\"'!\"&G2608))","v":""},{"$f":"IF(ISBLANK(INDIRECT(\"'\"&F2608&\"'!\"&H2608)),\"\",IFERROR(VLOOKUP(TEXT(INDIRECT(\"'\"&F2608&\"'!\"&H2608),\"0\"),Notes!$B$5:$C$100,2,FALSE),\"\"))","v":""},"2c","$I$98","$J$98"]
[14360,{"$f":"Menu!$F$29","v":"X"},{"$f":"Menu!$J$29","v":2020},{"$f":"IF(ISBLANK(INDIRECT(\"'\"&F2609&\"'!\"&G2609)),\"\",INDIRECT(\"'\"&F2609&\"'!\"&G2609))","v":""},{"$f":"IF(ISBLANK(INDIRECT(\"'\"&F2609&\"'!\"&H2609)),\"\",IFERROR(VLOOKUP(TEXT(INDIRECT(\"'\"&F2609&\"'!\"&H2609),\"0\"),Notes!$B$5:$C$100,2,FALSE),\"\"))","v":""},"2c","$K$98","$L$98"]
[14361,{"$f":"Menu!$F$29","v":"X"},{"$f":"Menu!$J$29","v":2020},{"$f":"IF(ISBLANK(INDIRECT(\"'\"&F2610&\"'!\"&G2610)),\"\",INDIRECT(\"'\"&F2610&\"'!\"&G2610))","v":""},{"$f":"IF(ISBLANK(INDIRECT(\"'\"&F2610&\"'!\"&H2610)),\"\",IFERROR(VLOOKUP(TEXT(INDIRECT(\"'\"&F2610&\"'!\"&H2610),\"0\"),Notes!$B$5:$C$100,2,FALSE),\"\"))","v":""},"2c","$M$98","$N$98"]
[14362,{"$f":"Menu!$F$29","v":"X"},{"$f":"Menu!$J$29","v":2020},{"$f":"IF(ISBLANK(INDIRECT(\"'\"&F2611&\"'!\"&G2611)),\"\",INDIRECT(\"'\"&F2611&\"'!\"&G2611))","v":""},{"$f":"IF(ISBLANK(INDIRECT(\"'\"&F2611&\"'!\"&H2611)),\"\",IFERROR(VLOOKUP(TEXT(INDIRECT(\"'\"&F2611&\"'!\"&H2611),\"0\"),Notes!$B$5:$C$100,2,FALSE),\"\"))","v":""},"2c","$O$98","$P$98"]
[14363,{"$f":"Menu!$F$29","v":"X"},{"$f":"Menu!$J$29","v":2020},{"$f":"IF(ISBLANK(INDIRECT(\"'\"&F2612&\"'!\"&G2612)),\"\",INDIRECT(\"'\"&F2612&\"'!\"&G2612))","v":""},{"$f":"IF(ISBLANK(INDIRECT(\"'\"&F2612&\"'!\"&H2612)),\"\",IFERROR(VLOOKUP(TEXT(INDIRECT(\"'\"&F2612&\"'!\"&H2612),\"0\"),Notes!$B$5:$C$100,2,FALSE),\"\"))","v":""},"2c","$Q$98","$R$98"]
[14364,{"$f":"Menu!$F$29","v":"X"},{"$f":"Menu!$J$29","v":2020},{"$f":"IF(ISBLANK(INDIRECT(\"'\"&F2613&\"'!\"&G2613)),\"\",INDIRECT(\"'\"&F2613&\"'!\"&G2613))","v":""},{"$f":"IF(ISBLANK(INDIRECT(\"'\"&F2613&\"'!\"&H2613)),\"\",IFERROR(VLOOKUP(TEXT(INDIRECT(\"'\"&F2613&\"'!\"&H2613),\"0\"),Notes!$B$5:$C$100,2,FALSE),\"\"))","v":""},"2c","$S$98","$T$98"]
[14365,{"$f":"Menu!$F$29","v":"X"},{"$f":"Menu!$J$29","v":2020},{"$f":"IF(ISBLANK(INDIRECT(\"'\"&F2614&\"'!\"&G2614)),\"\",INDIRECT(\"'\"&F2614&\"'!\"&G2614))","v":""},{"$f":"IF(ISBLANK(INDIRECT(\"'\"&F2614&\"'!\"&H2614)),\"\",IFERROR(VLOOKUP(TEXT(INDIRECT(\"'\"&F2614&\"'!\"&H2614),\"0\"),Notes!$B$5:$C$100,2,FALSE),\"\"))","v":""},"2c","$U$98","$V$98"]
[14366,{"$f":"Menu!$F$29","v":"X"},{"$f":"Menu!$J$29","v":2020},{"$f":"IF(ISBLANK(INDIRECT(\"'\"&F2615&\"'!\"&G2615)),\"\",INDIRECT(\"'\"&F2615&\"'!\"&G2615))","v":""},{"$f":"IF(ISBLANK(INDIRECT(\"'\"&F2615&\"'!\"&H2615)),\"\",IFERROR(VLOOKUP(TEXT(INDIRECT(\"'\"&F2615&\"'!\"&H2615),\"0\"),Notes!$B$5:$C$100,2,FALSE),\"\"))","v":""},"2c","$W$98","$X$98"]
[14367,{"$f":"Menu!$F$29","v":"X"},{"$f":"Menu!$J$29","v":2020},{"$f":"IF(ISBLANK(INDIRECT(\"'\"&F2616&\"'!\"&G2616)),\"\",INDIRECT(\"'\"&F2616&\"'!\"&G2616))","v":""},{"$f":"IF(ISBLANK(INDIRECT(\"'\"&F2616&\"'!\"&H2616)),\"\",IFERROR(VLOOKUP(TEXT(INDIRECT(\"'\"&F2616&\"'!\"&H2616),\"0\"),Notes!$B$5:$C$100,2,FALSE),\"\"))","v":""},"2c","$Y$98","$Z$98"]
[14368,{"$f":"Menu!$F$29","v":"X"},{"$f":"Menu!$J$29","v":2020},{"$f":"IF(ISBLANK(INDIRECT(\"'\"&F2617&\"'!\"&G2617)),\"\",INDIRECT(\"'\"&F2617&\"'!\"&G2617))","v":""},{"$f":"IF(ISBLANK(INDIRECT(\"'\"&F2617&\"'!\"&H2617)),\"\",IFERROR(VLOOKUP(TEXT(INDIRECT(\"'\"&F2617&\"'!\"&H2617),\"0\"),Notes!$B$5:$C$100,2,FALSE),\"\"))","v":""},"2c","$AA$98","$AB$98"]
[14369,{"$f":"Menu!$F$29","v":"X"},{"$f":"Menu!$J$29","v":2020},{"$f":"IF(ISBLANK(INDIRECT(\"'\"&F2618&\"'!\"&G2618)),\"\",INDIRECT(\"'\"&F2618&\"'!\"&G2618))","v":""},{"$f":"IF(ISBLANK(INDIRECT(\"'\"&F2618&\"'!\"&H2618)),\"\",IFERROR(VLOOKUP(TEXT(INDIRECT(\"'\"&F2618&\"'!\"&H2618),\"0\"),Notes!$B$5:$C$100,2,FALSE),\"\"))","v":""},"2c","$E$99","$F$99"]
[14370,{"$f":"Menu!$F$29","v":"X"},{"$f":"Menu!$J$29","v":2020},{"$f":"IF(ISBLANK(INDIRECT(\"'\"&F2619&\"'!\"&G2619)),\"\",INDIRECT(\"'\"&F2619&\"'!\"&G2619))","v":""},{"$f":"IF(ISBLANK(INDIRECT(\"'\"&F2619&\"'!\"&H2619)),\"\",IFERROR(VLOOKUP(TEXT(INDIRECT(\"'\"&F2619&\"'!\"&H2619),\"0\"),Notes!$B$5:$C$100,2,FALSE),\"\"))","v":""},"2c","$G$99","$H$99"]
[14371,{"$f":"Menu!$F$29","v":"X"},{"$f":"Menu!$J$29","v":2020},{"$f":"IF(ISBLANK(INDIRECT(\"'\"&F2620&\"'!\"&G2620)),\"\",INDIRECT(\"'\"&F2620&\"'!\"&G2620))","v":""},{"$f":"IF(ISBLANK(INDIRECT(\"'\"&F2620&\"'!\"&H2620)),\"\",IFERROR(VLOOKUP(TEXT(INDIRECT(\"'\"&F2620&\"'!\"&H2620),\"0\"),Notes!$B$5:$C$100,2,FALSE),\"\"))","v":""},"2c","$I$99","$J$99"]
[14372,{"$f":"Menu!$F$29","v":"X"},{"$f":"Menu!$J$29","v":2020},{"$f":"IF(ISBLANK(INDIRECT(\"'\"&F2621&\"'!\"&G2621)),\"\",INDIRECT(\"'\"&F2621&\"'!\"&G2621))","v":""},{"$f":"IF(ISBLANK(INDIRECT(\"'\"&F2621&\"'!\"&H2621)),\"\",IFERROR(VLOOKUP(TEXT(INDIRECT(\"'\"&F2621&\"'!\"&H2621),\"0\"),Notes!$B$5:$C$100,2,FALSE),\"\"))","v":""},"2c","$K$99","$L$99"]
[14373,{"$f":"Menu!$F$29","v":"X"},{"$f":"Menu!$J$29","v":2020},{"$f":"IF(ISBLANK(INDIRECT(\"'\"&F2622&\"'!\"&G2622)),\"\",INDIRECT(\"'\"&F2622&\"'!\"&G2622))","v":""},{"$f":"IF(ISBLANK(INDIRECT(\"'\"&F2622&\"'!\"&H2622)),\"\",IFERROR(VLOOKUP(TEXT(INDIRECT(\"'\"&F2622&\"'!\"&H2622),\"0\"),Notes!$B$5:$C$100,2,FALSE),\"\"))","v":""},"2c","$M$99","$N$99"]
[14374,{"$f":"Menu!$F$29","v":"X"},{"$f":"Menu!$J$29","v":2020},{"$f":"IF(ISBLANK(INDIRECT(\"'\"&F2623&\"'!\"&G2623)),\"\",INDIRECT(\"'\"&F2623&\"'!\"&G2623))","v":""},{"$f":"IF(ISBLANK(INDIRECT(\"'\"&F2623&\"'!\"&H2623)),\"\",IFERROR(VLOOKUP(TEXT(INDIRECT(\"'\"&F2623&\"'!\"&H2623),\"0\"),Notes!$B$5:$C$100,2,FALSE),\"\"))","v":""},"2c","$O$99","$P$99"]
[14375,{"$f":"Menu!$F$29","v":"X"},{"$f":"Menu!$J$29","v":2020},{"$f":"IF(ISBLANK(INDIRECT(\"'\"&F2624&\"'!\"&G2624)),\"\",INDIRECT(\"'\"&F2624&\"'!\"&G2624))","v":""},{"$f":"IF(ISBLANK(INDIRECT(\"'\"&F2624&\"'!\"&H2624)),\"\",IFERROR(VLOOKUP(TEXT(INDIRECT(\"'\"&F2624&\"'!\"&H2624),\"0\"),Notes!$B$5:$C$100,2,FALSE),\"\"))","v":""},"2c","$Q$99","$R$99"]
[14376,{"$f":"Menu!$F$29","v":"X"},{"$f":"Menu!$J$29","v":2020},{"$f":"IF(ISBLANK(INDIRECT(\"'\"&F2625&\"'!\"&G2625)),\"\",INDIRECT(\"'\"&F2625&\"'!\"&G2625))","v":""},{"$f":"IF(ISBLANK(INDIRECT(\"'\"&F2625&\"'!\"&H2625)),\"\",IFERROR(VLOOKUP(TEXT(INDIRECT(\"'\"&F2625&\"'!\"&H2625),\"0\"),Notes!$B$5:$C$100,2,FALSE),\"\"))","v":""},"2c","$S$99","$T$99"]
[14377,{"$f":"Menu!$F$29","v":"X"},{"$f":"Menu!$J$29","v":2020},{"$f":"IF(ISBLANK(INDIRECT(\"'\"&F2626&\"'!\"&G2626)),\"\",INDIRECT(\"'\"&F2626&\"'!\"&G2626))","v":""},{"$f":"IF(ISBLANK(INDIRECT(\"'\"&F2626&\"'!\"&H2626)),\"\",IFERROR(VLOOKUP(TEXT(INDIRECT(\"'\"&F2626&\"'!\"&H2626),\"0\"),Notes!$B$5:$C$100,2,FALSE),\"\"))","v":""},"2c","$U$99",{"$f":"IF(LEN(TRIM(MID(G2626,4,10)))-LEN(SUBSTITUTE(TRIM(MID(G2626,4,10)),\"$\",\"\"))=0,\"$\"&CHAR(CODE(MID(G2626,2,1))+1)&\"$\"&TRIM(MID(G2626,4,10)),\"$\"&MID(G2626,2,1)&CHAR(CODE(MID(G2626,3,1))+1)&\"$\"&TRIM(MID(G2626,5,11)))","v":"$V$99"}]
[14378,{"$f":"Menu!$F$29","v":"X"},{"$f":"Menu!$J$29","v":2020},{"$f":"IF(ISBLANK(INDIRECT(\"'\"&F2627&\"'!\"&G2627)),\"\",INDIRECT(\"'\"&F2627&\"'!\"&G2627))","v":""},{"$f":"IF(ISBLANK(INDIRECT(\"'\"&F2627&\"'!\"&H2627)),\"\",IFERROR(VLOOKUP(TEXT(INDIRECT(\"'\"&F2627&\"'!\"&H2627),\"0\"),Notes!$B$5:$C$100,2,FALSE),\"\"))","v":""},"2c","$W$99","$X$99"]
[14379,{"$f":"Menu!$F$29","v":"X"},{"$f":"Menu!$J$29","v":2020},{"$f":"IF(ISBLANK(INDIRECT(\"'\"&F2628&\"'!\"&G2628)),\"\",INDIRECT(\"'\"&F2628&\"'!\"&G2628))","v":""},{"$f":"IF(ISBLANK(INDIRECT(\"'\"&F2628&\"'!\"&H2628)),\"\",IFERROR(VLOOKUP(TEXT(INDIRECT(\"'\"&F2628&\"'!\"&H2628),\"0\"),Notes!$B$5:$C$100,2,FALSE),\"\"))","v":""},"2c","$Y$99","$Z$99"]
[14380,{"$f":"Menu!$F$29","v":"X"},{"$f":"Menu!$J$29","v":2020},{"$f":"IF(ISBLANK(INDIRECT(\"'\"&F2629&\"'!\"&G2629)),\"\",INDIRECT(\"'\"&F2629&\"'!\"&G2629))","v":""},{"$f":"IF(ISBLANK(INDIRECT(\"'\"&F2629&\"'!\"&H2629)),\"\",IFERROR(VLOOKUP(TEXT(INDIRECT(\"'\"&F2629&\"'!\"&H2629),\"0\"),Notes!$B$5:$C$100,2,FALSE),\"\"))","v":""},"2c","$AA$99","$AB$99"]
[14393,{"$f":"Menu!$F$29","v":"X"},{"$f":"Menu!$J$29","v":2020},{"$f":"IF(ISBLANK(INDIRECT(\"'\"&F2630&\"'!\"&G2630)),\"\",INDIRECT(\"'\"&F2630&\"'!\"&G2630))","v":""},{"$f":"IF(ISBLANK(INDIRECT(\"'\"&F2630&\"'!\"&H2630)),\"\",IFERROR(VLOOKUP(TEXT(INDIRECT(\"'\"&F2630&\"'!\"&H2630),\"0\"),Notes!$B$5:$C$100,2,FALSE),\"\"))","v":""},"2c","$E$105","$F$105"]
[14394,{"$f":"Menu!$F$29","v":"X"},{"$f":"Menu!$J$29","v":2020},{"$f":"IF(ISBLANK(INDIRECT(\"'\"&F2631&\"'!\"&G2631)),\"\",INDIRECT(\"'\"&F2631&\"'!\"&G2631))","v":""},{"$f":"IF(ISBLANK(INDIRECT(\"'\"&F2631&\"'!\"&H2631)),\"\",IFERROR(VLOOKUP(TEXT(INDIRECT(\"'\"&F2631&\"'!\"&H2631),\"0\"),Notes!$B$5:$C$100,2,FALSE),\"\"))","v":""},"2c","$G$105","$H$105"]
[14395,{"$f":"Menu!$F$29","v":"X"},{"$f":"Menu!$J$29","v":2020},{"$f":"IF(ISBLANK(INDIRECT(\"'\"&F2632&\"'!\"&G2632)),\"\",INDIRECT(\"'\"&F2632&\"'!\"&G2632))","v":""},{"$f":"IF(ISBLANK(INDIRECT(\"'\"&F2632&\"'!\"&H2632)),\"\",IFERROR(VLOOKUP(TEXT(INDIRECT(\"'\"&F2632&\"'!\"&H2632),\"0\"),Notes!$B$5:$C$100,2,FALSE),\"\"))","v":""},"2c","$I$105","$J$105"]
[14396,{"$f":"Menu!$F$29","v":"X"},{"$f":"Menu!$J$29","v":2020},{"$f":"IF(ISBLANK(INDIRECT(\"'\"&F2633&\"'!\"&G2633)),\"\",INDIRECT(\"'\"&F2633&\"'!\"&G2633))","v":""},{"$f":"IF(ISBLANK(INDIRECT(\"'\"&F2633&\"'!\"&H2633)),\"\",IFERROR(VLOOKUP(TEXT(INDIRECT(\"'\"&F2633&\"'!\"&H2633),\"0\"),Notes!$B$5:$C$100,2,FALSE),\"\"))","v":""},"2c","$K$105","$L$105"]
[14397,{"$f":"Menu!$F$29","v":"X"},{"$f":"Menu!$J$29","v":2020},{"$f":"IF(ISBLANK(INDIRECT(\"'\"&F2634&\"'!\"&G2634)),\"\",INDIRECT(\"'\"&F2634&\"'!\"&G2634))","v":""},{"$f":"IF(ISBLANK(INDIRECT(\"'\"&F2634&\"'!\"&H2634)),\"\",IFERROR(VLOOKUP(TEXT(INDIRECT(\"'\"&F2634&\"'!\"&H2634),\"0\"),Notes!$B$5:$C$100,2,FALSE),\"\"))","v":""},"2c","$M$105","$N$105"]
[14398,{"$f":"Menu!$F$29","v":"X"},{"$f":"Menu!$J$29","v":2020},{"$f":"IF(ISBLANK(INDIRECT(\"'\"&F2635&\"'!\"&G2635)),\"\",INDIRECT(\"'\"&F2635&\"'!\"&G2635))","v":""},{"$f":"IF(ISBLANK(INDIRECT(\"'\"&F2635&\"'!\"&H2635)),\"\",IFERROR(VLOOKUP(TEXT(INDIRECT(\"'\"&F2635&\"'!\"&H2635),\"0\"),Notes!$B$5:$C$100,2,FALSE),\"\"))","v":""},"2c","$O$105","$P$105"]
[14399,{"$f":"Menu!$F$29","v":"X"},{"$f":"Menu!$J$29","v":2020},{"$f":"IF(ISBLANK(INDIRECT(\"'\"&F2636&\"'!\"&G2636)),\"\",INDIRECT(\"'\"&F2636&\"'!\"&G2636))","v":""},{"$f":"IF(ISBLANK(INDIRECT(\"'\"&F2636&\"'!\"&H2636)),\"\",IFERROR(VLOOKUP(TEXT(INDIRECT(\"'\"&F2636&\"'!\"&H2636),\"0\"),Notes!$B$5:$C$100,2,FALSE),\"\"))","v":""},"2c","$Q$105","$R$105"]
[14400,{"$f":"Menu!$F$29","v":"X"},{"$f":"Menu!$J$29","v":2020},{"$f":"IF(ISBLANK(INDIRECT(\"'\"&F2637&\"'!\"&G2637)),\"\",INDIRECT(\"'\"&F2637&\"'!\"&G2637))","v":""},{"$f":"IF(ISBLANK(INDIRECT(\"'\"&F2637&\"'!\"&H2637)),\"\",IFERROR(VLOOKUP(TEXT(INDIRECT(\"'\"&F2637&\"'!\"&H2637),\"0\"),Notes!$B$5:$C$100,2,FALSE),\"\"))","v":""},"2c","$S$105","$T$105"]
[14401,{"$f":"Menu!$F$29","v":"X"},{"$f":"Menu!$J$29","v":2020},{"$f":"IF(ISBLANK(INDIRECT(\"'\"&F2638&\"'!\"&G2638)),\"\",INDIRECT(\"'\"&F2638&\"'!\"&G2638))","v":""},{"$f":"IF(ISBLANK(INDIRECT(\"'\"&F2638&\"'!\"&H2638)),\"\",IFERROR(VLOOKUP(TEXT(INDIRECT(\"'\"&F2638&\"'!\"&H2638),\"0\"),Notes!$B$5:$C$100,2,FALSE),\"\"))","v":""},"2c","$U$105","$V$105"]
[14402,{"$f":"Menu!$F$29","v":"X"},{"$f":"Menu!$J$29","v":2020},{"$f":"IF(ISBLANK(INDIRECT(\"'\"&F2639&\"'!\"&G2639)),\"\",INDIRECT(\"'\"&F2639&\"'!\"&G2639))","v":""},{"$f":"IF(ISBLANK(INDIRECT(\"'\"&F2639&\"'!\"&H2639)),\"\",IFERROR(VLOOKUP(TEXT(INDIRECT(\"'\"&F2639&\"'!\"&H2639),\"0\"),Notes!$B$5:$C$100,2,FALSE),\"\"))","v":""},"2c","$W$105","$X$105"]
[14403,{"$f":"Menu!$F$29","v":"X"},{"$f":"Menu!$J$29","v":2020},{"$f":"IF(ISBLANK(INDIRECT(\"'\"&F2640&\"'!\"&G2640)),\"\",INDIRECT(\"'\"&F2640&\"'!\"&G2640))","v":""},{"$f":"IF(ISBLANK(INDIRECT(\"'\"&F2640&\"'!\"&H2640)),\"\",IFERROR(VLOOKUP(TEXT(INDIRECT(\"'\"&F2640&\"'!\"&H2640),\"0\"),Notes!$B$5:$C$100,2,FALSE),\"\"))","v":""},"2c","$Y$105","$Z$105"]
[14404,{"$f":"Menu!$F$29","v":"X"},{"$f":"Menu!$J$29","v":2020},{"$f":"IF(ISBLANK(INDIRECT(\"'\"&F2641&\"'!\"&G2641)),\"\",INDIRECT(\"'\"&F2641&\"'!\"&G2641))","v":""},{"$f":"IF(ISBLANK(INDIRECT(\"'\"&F2641&\"'!\"&H2641)),\"\",IFERROR(VLOOKUP(TEXT(INDIRECT(\"'\"&F2641&\"'!\"&H2641),\"0\"),Notes!$B$5:$C$100,2,FALSE),\"\"))","v":""},"2c","$AA$105","$AB$105"]
[14429,{"$f":"Menu!$F$29","v":"X"},{"$f":"Menu!$J$29","v":2020},{"$f":"IF(ISBLANK(INDIRECT(\"'\"&F2642&\"'!\"&G2642)),\"\",INDIRECT(\"'\"&F2642&\"'!\"&G2642))","v":""},{"$f":"IF(ISBLANK(INDIRECT(\"'\"&F2642&\"'!\"&H2642)),\"\",IFERROR(VLOOKUP(TEXT(INDIRECT(\"'\"&F2642&\"'!\"&H2642),\"0\"),Notes!$B$5:$C$100,2,FALSE),\"\"))","v":""},"2c","$E$34","$F$34"]
[14430,{"$f":"Menu!$F$29","v":"X"},{"$f":"Menu!$J$29","v":2020},{"$f":"IF(ISBLANK(INDIRECT(\"'\"&F2643&\"'!\"&G2643)),\"\",INDIRECT(\"'\"&F2643&\"'!\"&G2643))","v":""},{"$f":"IF(ISBLANK(INDIRECT(\"'\"&F2643&\"'!\"&H2643)),\"\",IFERROR(VLOOKUP(TEXT(INDIRECT(\"'\"&F2643&\"'!\"&H2643),\"0\"),Notes!$B$5:$C$100,2,FALSE),\"\"))","v":""},"2c","$G$34","$H$34"]
[14431,{"$f":"Menu!$F$29","v":"X"},{"$f":"Menu!$J$29","v":2020},{"$f":"IF(ISBLANK(INDIRECT(\"'\"&F2644&\"'!\"&G2644)),\"\",INDIRECT(\"'\"&F2644&\"'!\"&G2644))","v":""},{"$f":"IF(ISBLANK(INDIRECT(\"'\"&F2644&\"'!\"&H2644)),\"\",IFERROR(VLOOKUP(TEXT(INDIRECT(\"'\"&F2644&\"'!\"&H2644),\"0\"),Notes!$B$5:$C$100,2,FALSE),\"\"))","v":""},"2c","$I$34","$J$34"]
[14432,{"$f":"Menu!$F$29","v":"X"},{"$f":"Menu!$J$29","v":2020},{"$f":"IF(ISBLANK(INDIRECT(\"'\"&F2645&\"'!\"&G2645)),\"\",INDIRECT(\"'\"&F2645&\"'!\"&G2645))","v":""},{"$f":"IF(ISBLANK(INDIRECT(\"'\"&F2645&\"'!\"&H2645)),\"\",IFERROR(VLOOKUP(TEXT(INDIRECT(\"'\"&F2645&\"'!\"&H2645),\"0\"),Notes!$B$5:$C$100,2,FALSE),\"\"))","v":""},"2c","$K$34","$L$34"]
[14433,{"$f":"Menu!$F$29","v":"X"},{"$f":"Menu!$J$29","v":2020},{"$f":"IF(ISBLANK(INDIRECT(\"'\"&F2646&\"'!\"&G2646)),\"\",INDIRECT(\"'\"&F2646&\"'!\"&G2646))","v":""},{"$f":"IF(ISBLANK(INDIRECT(\"'\"&F2646&\"'!\"&H2646)),\"\",IFERROR(VLOOKUP(TEXT(INDIRECT(\"'\"&F2646&\"'!\"&H2646),\"0\"),Notes!$B$5:$C$100,2,FALSE),\"\"))","v":""},"2c","$M$34","$N$34"]
[14434,{"$f":"Menu!$F$29","v":"X"},{"$f":"Menu!$J$29","v":2020},{"$f":"IF(ISBLANK(INDIRECT(\"'\"&F2647&\"'!\"&G2647)),\"\",INDIRECT(\"'\"&F2647&\"'!\"&G2647))","v":""},{"$f":"IF(ISBLANK(INDIRECT(\"'\"&F2647&\"'!\"&H2647)),\"\",IFERROR(VLOOKUP(TEXT(INDIRECT(\"'\"&F2647&\"'!\"&H2647),\"0\"),Notes!$B$5:$C$100,2,FALSE),\"\"))","v":""},"2c","$O$34","$P$34"]
[14435,{"$f":"Menu!$F$29","v":"X"},{"$f":"Menu!$J$29","v":2020},{"$f":"IF(ISBLANK(INDIRECT(\"'\"&F2648&\"'!\"&G2648)),\"\",INDIRECT(\"'\"&F2648&\"'!\"&G2648))","v":""},{"$f":"IF(ISBLANK(INDIRECT(\"'\"&F2648&\"'!\"&H2648)),\"\",IFERROR(VLOOKUP(TEXT(INDIRECT(\"'\"&F2648&\"'!\"&H2648),\"0\"),Notes!$B$5:$C$100,2,FALSE),\"\"))","v":""},"2c","$Q$34","$R$34"]
[14436,{"$f":"Menu!$F$29","v":"X"},{"$f":"Menu!$J$29","v":2020},{"$f":"IF(ISBLANK(INDIRECT(\"'\"&F2649&\"'!\"&G2649)),\"\",INDIRECT(\"'\"&F2649&\"'!\"&G2649))","v":""},{"$f":"IF(ISBLANK(INDIRECT(\"'\"&F2649&\"'!\"&H2649)),\"\",IFERROR(VLOOKUP(TEXT(INDIRECT(\"'\"&F2649&\"'!\"&H2649),\"0\"),Notes!$B$5:$C$100,2,FALSE),\"\"))","v":""},"2c","$S$34","$T$34"]
[14437,{"$f":"Menu!$F$29","v":"X"},{"$f":"Menu!$J$29","v":2020},{"$f":"IF(ISBLANK(INDIRECT(\"'\"&F2650&\"'!\"&G2650)),\"\",INDIRECT(\"'\"&F2650&\"'!\"&G2650))","v":""},{"$f":"IF(ISBLANK(INDIRECT(\"'\"&F2650&\"'!\"&H2650)),\"\",IFERROR(VLOOKUP(TEXT(INDIRECT(\"'\"&F2650&\"'!\"&H2650),\"0\"),Notes!$B$5:$C$100,2,FALSE),\"\"))","v":""},"2c","$U$34","$V$34"]
[14438,{"$f":"Menu!$F$29","v":"X"},{"$f":"Menu!$J$29","v":2020},{"$f":"IF(ISBLANK(INDIRECT(\"'\"&F2651&\"'!\"&G2651)),\"\",INDIRECT(\"'\"&F2651&\"'!\"&G2651))","v":""},{"$f":"IF(ISBLANK(INDIRECT(\"'\"&F2651&\"'!\"&H2651)),\"\",IFERROR(VLOOKUP(TEXT(INDIRECT(\"'\"&F2651&\"'!\"&H2651),\"0\"),Notes!$B$5:$C$100,2,FALSE),\"\"))","v":""},"2c","$W$34","$X$34"]
[14439,{"$f":"Menu!$F$29","v":"X"},{"$f":"Menu!$J$29","v":2020},{"$f":"IF(ISBLANK(INDIRECT(\"'\"&F2652&\"'!\"&G2652)),\"\",INDIRECT(\"'\"&F2652&\"'!\"&G2652))","v":""},{"$f":"IF(ISBLANK(INDIRECT(\"'\"&F2652&\"'!\"&H2652)),\"\",IFERROR(VLOOKUP(TEXT(INDIRECT(\"'\"&F2652&\"'!\"&H2652),\"0\"),Notes!$B$5:$C$100,2,FALSE),\"\"))","v":""},"2c","$Y$34","$Z$34"]
[14440,{"$f":"Menu!$F$29","v":"X"},{"$f":"Menu!$J$29","v":2020},{"$f":"IF(ISBLANK(INDIRECT(\"'\"&F2653&\"'!\"&G2653)),\"\",INDIRECT(\"'\"&F2653&\"'!\"&G2653))","v":""},{"$f":"IF(ISBLANK(INDIRECT(\"'\"&F2653&\"'!\"&H2653)),\"\",IFERROR(VLOOKUP(TEXT(INDIRECT(\"'\"&F2653&\"'!\"&H2653),\"0\"),Notes!$B$5:$C$100,2,FALSE),\"\"))","v":""},"2c","$AA$34","$AB$34"]
[14441,{"$f":"Menu!$F$29","v":"X"},{"$f":"Menu!$J$29","v":2020},{"$f":"IF(ISBLANK(INDIRECT(\"'\"&F2654&\"'!\"&G2654)),\"\",INDIRECT(\"'\"&F2654&\"'!\"&G2654))","v":""},{"$f":"IF(ISBLANK(INDIRECT(\"'\"&F2654&\"'!\"&H2654)),\"\",IFERROR(VLOOKUP(TEXT(INDIRECT(\"'\"&F2654&\"'!\"&H2654),\"0\"),Notes!$B$5:$C$100,2,FALSE),\"\"))","v":""},"2c","$E$106","$F$106"]
[14442,{"$f":"Menu!$F$29","v":"X"},{"$f":"Menu!$J$29","v":2020},{"$f":"IF(ISBLANK(INDIRECT(\"'\"&F2655&\"'!\"&G2655)),\"\",INDIRECT(\"'\"&F2655&\"'!\"&G2655))","v":""},{"$f":"IF(ISBLANK(INDIRECT(\"'\"&F2655&\"'!\"&H2655)),\"\",IFERROR(VLOOKUP(TEXT(INDIRECT(\"'\"&F2655&\"'!\"&H2655),\"0\"),Notes!$B$5:$C$100,2,FALSE),\"\"))","v":""},"2c","$G$106","$H$106"]
[14443,{"$f":"Menu!$F$29","v":"X"},{"$f":"Menu!$J$29","v":2020},{"$f":"IF(ISBLANK(INDIRECT(\"'\"&F2656&\"'!\"&G2656)),\"\",INDIRECT(\"'\"&F2656&\"'!\"&G2656))","v":""},{"$f":"IF(ISBLANK(INDIRECT(\"'\"&F2656&\"'!\"&H2656)),\"\",IFERROR(VLOOKUP(TEXT(INDIRECT(\"'\"&F2656&\"'!\"&H2656),\"0\"),Notes!$B$5:$C$100,2,FALSE),\"\"))","v":""},"2c","$I$106","$J$106"]
[14444,{"$f":"Menu!$F$29","v":"X"},{"$f":"Menu!$J$29","v":2020},{"$f":"IF(ISBLANK(INDIRECT(\"'\"&F2657&\"'!\"&G2657)),\"\",INDIRECT(\"'\"&F2657&\"'!\"&G2657))","v":""},{"$f":"IF(ISBLANK(INDIRECT(\"'\"&F2657&\"'!\"&H2657)),\"\",IFERROR(VLOOKUP(TEXT(INDIRECT(\"'\"&F2657&\"'!\"&H2657),\"0\"),Notes!$B$5:$C$100,2,FALSE),\"\"))","v":""},"2c","$K$106","$L$106"]
[14445,{"$f":"Menu!$F$29","v":"X"},{"$f":"Menu!$J$29","v":2020},{"$f":"IF(ISBLANK(INDIRECT(\"'\"&F2658&\"'!\"&G2658)),\"\",INDIRECT(\"'\"&F2658&\"'!\"&G2658))","v":""},{"$f":"IF(ISBLANK(INDIRECT(\"'\"&F2658&\"'!\"&H2658)),\"\",IFERROR(VLOOKUP(TEXT(INDIRECT(\"'\"&F2658&\"'!\"&H2658),\"0\"),Notes!$B$5:$C$100,2,FALSE),\"\"))","v":""},"2c","$M$106","$N$106"]
[14446,{"$f":"Menu!$F$29","v":"X"},{"$f":"Menu!$J$29","v":2020},{"$f":"IF(ISBLANK(INDIRECT(\"'\"&F2659&\"'!\"&G2659)),\"\",INDIRECT(\"'\"&F2659&\"'!\"&G2659))","v":""},{"$f":"IF(ISBLANK(INDIRECT(\"'\"&F2659&\"'!\"&H2659)),\"\",IFERROR(VLOOKUP(TEXT(INDIRECT(\"'\"&F2659&\"'!\"&H2659),\"0\"),Notes!$B$5:$C$100,2,FALSE),\"\"))","v":""},"2c","$O$106","$P$106"]
[14447,{"$f":"Menu!$F$29","v":"X"},{"$f":"Menu!$J$29","v":2020},{"$f":"IF(ISBLANK(INDIRECT(\"'\"&F2660&\"'!\"&G2660)),\"\",INDIRECT(\"'\"&F2660&\"'!\"&G2660))","v":""},{"$f":"IF(ISBLANK(INDIRECT(\"'\"&F2660&\"'!\"&H2660)),\"\",IFERROR(VLOOKUP(TEXT(INDIRECT(\"'\"&F2660&\"'!\"&H2660),\"0\"),Notes!$B$5:$C$100,2,FALSE),\"\"))","v":""},"2c","$Q$106","$R$106"]
[14448,{"$f":"Menu!$F$29","v":"X"},{"$f":"Menu!$J$29","v":2020},{"$f":"IF(ISBLANK(INDIRECT(\"'\"&F2661&\"'!\"&G2661)),\"\",INDIRECT(\"'\"&F2661&\"'!\"&G2661))","v":""},{"$f":"IF(ISBLANK(INDIRECT(\"'\"&F2661&\"'!\"&H2661)),\"\",IFERROR(VLOOKUP(TEXT(INDIRECT(\"'\"&F2661&\"'!\"&H2661),\"0\"),Notes!$B$5:$C$100,2,FALSE),\"\"))","v":""},"2c","$S$106","$T$106"]
[14449,{"$f":"Menu!$F$29","v":"X"},{"$f":"Menu!$J$29","v":2020},{"$f":"IF(ISBLANK(INDIRECT(\"'\"&F2662&\"'!\"&G2662)),\"\",INDIRECT(\"'\"&F2662&\"'!\"&G2662))","v":""},{"$f":"IF(ISBLANK(INDIRECT(\"'\"&F2662&\"'!\"&H2662)),\"\",IFERROR(VLOOKUP(TEXT(INDIRECT(\"'\"&F2662&\"'!\"&H2662),\"0\"),Notes!$B$5:$C$100,2,FALSE),\"\"))","v":""},"2c","$U$106","$V$106"]
[14450,{"$f":"Menu!$F$29","v":"X"},{"$f":"Menu!$J$29","v":2020},{"$f":"IF(ISBLANK(INDIRECT(\"'\"&F2663&\"'!\"&G2663)),\"\",INDIRECT(\"'\"&F2663&\"'!\"&G2663))","v":""},{"$f":"IF(ISBLANK(INDIRECT(\"'\"&F2663&\"'!\"&H2663)),\"\",IFERROR(VLOOKUP(TEXT(INDIRECT(\"'\"&F2663&\"'!\"&H2663),\"0\"),Notes!$B$5:$C$100,2,FALSE),\"\"))","v":""},"2c","$W$106","$X$106"]
[14451,{"$f":"Menu!$F$29","v":"X"},{"$f":"Menu!$J$29","v":2020},{"$f":"IF(ISBLANK(INDIRECT(\"'\"&F2664&\"'!\"&G2664)),\"\",INDIRECT(\"'\"&F2664&\"'!\"&G2664))","v":""},{"$f":"IF(ISBLANK(INDIRECT(\"'\"&F2664&\"'!\"&H2664)),\"\",IFERROR(VLOOKUP(TEXT(INDIRECT(\"'\"&F2664&\"'!\"&H2664),\"0\"),Notes!$B$5:$C$100,2,FALSE),\"\"))","v":""},"2c","$Y$106","$Z$106"]
[14452,{"$f":"Menu!$F$29","v":"X"},{"$f":"Menu!$J$29","v":2020},{"$f":"IF(ISBLANK(INDIRECT(\"'\"&F2665&\"'!\"&G2665)),\"\",INDIRECT(\"'\"&F2665&\"'!\"&G2665))","v":""},{"$f":"IF(ISBLANK(INDIRECT(\"'\"&F2665&\"'!\"&H2665)),\"\",IFERROR(VLOOKUP(TEXT(INDIRECT(\"'\"&F2665&\"'!\"&H2665),\"0\"),Notes!$B$5:$C$100,2,FALSE),\"\"))","v":""},"2c","$AA$106","$AB$106"]
[14453,{"$f":"Menu!$F$29","v":"X"},{"$f":"Menu!$J$29","v":2020},{"$f":"IF(ISBLANK(INDIRECT(\"'\"&F2666&\"'!\"&G2666)),\"\",INDIRECT(\"'\"&F2666&\"'!\"&G2666))","v":""},{"$f":"IF(ISBLANK(INDIRECT(\"'\"&F2666&\"'!\"&H2666)),\"\",IFERROR(VLOOKUP(TEXT(INDIRECT(\"'\"&F2666&\"'!\"&H2666),\"0\"),Notes!$B$5:$C$100,2,FALSE),\"\"))","v":""},"2c","$E$38","$F$38"]
[14454,{"$f":"Menu!$F$29","v":"X"},{"$f":"Menu!$J$29","v":2020},{"$f":"IF(ISBLANK(INDIRECT(\"'\"&F2667&\"'!\"&G2667)),\"\",INDIRECT(\"'\"&F2667&\"'!\"&G2667))","v":""},{"$f":"IF(ISBLANK(INDIRECT(\"'\"&F2667&\"'!\"&H2667)),\"\",IFERROR(VLOOKUP(TEXT(INDIRECT(\"'\"&F2667&\"'!\"&H2667),\"0\"),Notes!$B$5:$C$100,2,FALSE),\"\"))","v":""},"2c","$G$38","$H$38"]
[14455,{"$f":"Menu!$F$29","v":"X"},{"$f":"Menu!$J$29","v":2020},{"$f":"IF(ISBLANK(INDIRECT(\"'\"&F2668&\"'!\"&G2668)),\"\",INDIRECT(\"'\"&F2668&\"'!\"&G2668))","v":""},{"$f":"IF(ISBLANK(INDIRECT(\"'\"&F2668&\"'!\"&H2668)),\"\",IFERROR(VLOOKUP(TEXT(INDIRECT(\"'\"&F2668&\"'!\"&H2668),\"0\"),Notes!$B$5:$C$100,2,FALSE),\"\"))","v":""},"2c","$I$38","$J$38"]
[14456,{"$f":"Menu!$F$29","v":"X"},{"$f":"Menu!$J$29","v":2020},{"$f":"IF(ISBLANK(INDIRECT(\"'\"&F2669&\"'!\"&G2669)),\"\",INDIRECT(\"'\"&F2669&\"'!\"&G2669))","v":""},{"$f":"IF(ISBLANK(INDIRECT(\"'\"&F2669&\"'!\"&H2669)),\"\",IFERROR(VLOOKUP(TEXT(INDIRECT(\"'\"&F2669&\"'!\"&H2669),\"0\"),Notes!$B$5:$C$100,2,FALSE),\"\"))","v":""},"2c","$K$38","$L$38"]
[14457,{"$f":"Menu!$F$29","v":"X"},{"$f":"Menu!$J$29","v":2020},{"$f":"IF(ISBLANK(INDIRECT(\"'\"&F2670&\"'!\"&G2670)),\"\",INDIRECT(\"'\"&F2670&\"'!\"&G2670))","v":""},{"$f":"IF(ISBLANK(INDIRECT(\"'\"&F2670&\"'!\"&H2670)),\"\",IFERROR(VLOOKUP(TEXT(INDIRECT(\"'\"&F2670&\"'!\"&H2670),\"0\"),Notes!$B$5:$C$100,2,FALSE),\"\"))","v":""},"2c","$M$38","$N$38"]
[14458,{"$f":"Menu!$F$29","v":"X"},{"$f":"Menu!$J$29","v":2020},{"$f":"IF(ISBLANK(INDIRECT(\"'\"&F2671&\"'!\"&G2671)),\"\",INDIRECT(\"'\"&F2671&\"'!\"&G2671))","v":""},{"$f":"IF(ISBLANK(INDIRECT(\"'\"&F2671&\"'!\"&H2671)),\"\",IFERROR(VLOOKUP(TEXT(INDIRECT(\"'\"&F2671&\"'!\"&H2671),\"0\"),Notes!$B$5:$C$100,2,FALSE),\"\"))","v":""},"2c","$O$38","$P$38"]
[14459,{"$f":"Menu!$F$29","v":"X"},{"$f":"Menu!$J$29","v":2020},{"$f":"IF(ISBLANK(INDIRECT(\"'\"&F2672&\"'!\"&G2672)),\"\",INDIRECT(\"'\"&F2672&\"'!\"&G2672))","v":""},{"$f":"IF(ISBLANK(INDIRECT(\"'\"&F2672&\"'!\"&H2672)),\"\",IFERROR(VLOOKUP(TEXT(INDIRECT(\"'\"&F2672&\"'!\"&H2672),\"0\"),Notes!$B$5:$C$100,2,FALSE),\"\"))","v":""},"2c","$Q$38","$R$38"]
[14460,{"$f":"Menu!$F$29","v":"X"},{"$f":"Menu!$J$29","v":2020},{"$f":"IF(ISBLANK(INDIRECT(\"'\"&F2673&\"'!\"&G2673)),\"\",INDIRECT(\"'\"&F2673&\"'!\"&G2673))","v":""},{"$f":"IF(ISBLANK(INDIRECT(\"'\"&F2673&\"'!\"&H2673)),\"\",IFERROR(VLOOKUP(TEXT(INDIRECT(\"'\"&F2673&\"'!\"&H2673),\"0\"),Notes!$B$5:$C$100,2,FALSE),\"\"))","v":""},"2c","$S$38","$T$38"]
[14461,{"$f":"Menu!$F$29","v":"X"},{"$f":"Menu!$J$29","v":2020},{"$f":"IF(ISBLANK(INDIRECT(\"'\"&F2674&\"'!\"&G2674)),\"\",INDIRECT(\"'\"&F2674&\"'!\"&G2674))","v":""},{"$f":"IF(ISBLANK(INDIRECT(\"'\"&F2674&\"'!\"&H2674)),\"\",IFERROR(VLOOKUP(TEXT(INDIRECT(\"'\"&F2674&\"'!\"&H2674),\"0\"),Notes!$B$5:$C$100,2,FALSE),\"\"))","v":""},"2c","$U$38","$V$38"]
[14462,{"$f":"Menu!$F$29","v":"X"},{"$f":"Menu!$J$29","v":2020},{"$f":"IF(ISBLANK(INDIRECT(\"'\"&F2675&\"'!\"&G2675)),\"\",INDIRECT(\"'\"&F2675&\"'!\"&G2675))","v":""},{"$f":"IF(ISBLANK(INDIRECT(\"'\"&F2675&\"'!\"&H2675)),\"\",IFERROR(VLOOKUP(TEXT(INDIRECT(\"'\"&F2675&\"'!\"&H2675),\"0\"),Notes!$B$5:$C$100,2,FALSE),\"\"))","v":""},"2c","$W$38","$X$38"]
[14463,{"$f":"Menu!$F$29","v":"X"},{"$f":"Menu!$J$29","v":2020},{"$f":"IF(ISBLANK(INDIRECT(\"'\"&F2676&\"'!\"&G2676)),\"\",INDIRECT(\"'\"&F2676&\"'!\"&G2676))","v":""},{"$f":"IF(ISBLANK(INDIRECT(\"'\"&F2676&\"'!\"&H2676)),\"\",IFERROR(VLOOKUP(TEXT(INDIRECT(\"'\"&F2676&\"'!\"&H2676),\"0\"),Notes!$B$5:$C$100,2,FALSE),\"\"))","v":""},"2c","$Y$38","$Z$38"]
[14464,{"$f":"Menu!$F$29","v":"X"},{"$f":"Menu!$J$29","v":2020},{"$f":"IF(ISBLANK(INDIRECT(\"'\"&F2677&\"'!\"&G2677)),\"\",INDIRECT(\"'\"&F2677&\"'!\"&G2677))","v":""},{"$f":"IF(ISBLANK(INDIRECT(\"'\"&F2677&\"'!\"&H2677)),\"\",IFERROR(VLOOKUP(TEXT(INDIRECT(\"'\"&F2677&\"'!\"&H2677),\"0\"),Notes!$B$5:$C$100,2,FALSE),\"\"))","v":""},"2c","$AA$38","$AB$38"]
[14489,{"$f":"Menu!$F$29","v":"X"},{"$f":"Menu!$J$29","v":2020},{"$f":"IF(ISBLANK(INDIRECT(\"'\"&F2678&\"'!\"&G2678)),\"\",INDIRECT(\"'\"&F2678&\"'!\"&G2678))","v":""},{"$f":"IF(ISBLANK(INDIRECT(\"'\"&F2678&\"'!\"&H2678)),\"\",IFERROR(VLOOKUP(TEXT(INDIRECT(\"'\"&F2678&\"'!\"&H2678),\"0\"),Notes!$B$5:$C$100,2,FALSE),\"\"))","v":""},"2c","$E$39","$F$39"]
[14490,{"$f":"Menu!$F$29","v":"X"},{"$f":"Menu!$J$29","v":2020},{"$f":"IF(ISBLANK(INDIRECT(\"'\"&F2679&\"'!\"&G2679)),\"\",INDIRECT(\"'\"&F2679&\"'!\"&G2679))","v":""},{"$f":"IF(ISBLANK(INDIRECT(\"'\"&F2679&\"'!\"&H2679)),\"\",IFERROR(VLOOKUP(TEXT(INDIRECT(\"'\"&F2679&\"'!\"&H2679),\"0\"),Notes!$B$5:$C$100,2,FALSE),\"\"))","v":""},"2c","$G$39","$H$39"]
[14491,{"$f":"Menu!$F$29","v":"X"},{"$f":"Menu!$J$29","v":2020},{"$f":"IF(ISBLANK(INDIRECT(\"'\"&F2680&\"'!\"&G2680)),\"\",INDIRECT(\"'\"&F2680&\"'!\"&G2680))","v":""},{"$f":"IF(ISBLANK(INDIRECT(\"'\"&F2680&\"'!\"&H2680)),\"\",IFERROR(VLOOKUP(TEXT(INDIRECT(\"'\"&F2680&\"'!\"&H2680),\"0\"),Notes!$B$5:$C$100,2,FALSE),\"\"))","v":""},"2c","$I$39","$J$39"]
[14492,{"$f":"Menu!$F$29","v":"X"},{"$f":"Menu!$J$29","v":2020},{"$f":"IF(ISBLANK(INDIRECT(\"'\"&F2681&\"'!\"&G2681)),\"\",INDIRECT(\"'\"&F2681&\"'!\"&G2681))","v":""},{"$f":"IF(ISBLANK(INDIRECT(\"'\"&F2681&\"'!\"&H2681)),\"\",IFERROR(VLOOKUP(TEXT(INDIRECT(\"'\"&F2681&\"'!\"&H2681),\"0\"),Notes!$B$5:$C$100,2,FALSE),\"\"))","v":""},"2c","$K$39","$L$39"]
[14493,{"$f":"Menu!$F$29","v":"X"},{"$f":"Menu!$J$29","v":2020},{"$f":"IF(ISBLANK(INDIRECT(\"'\"&F2682&\"'!\"&G2682)),\"\",INDIRECT(\"'\"&F2682&\"'!\"&G2682))","v":""},{"$f":"IF(ISBLANK(INDIRECT(\"'\"&F2682&\"'!\"&H2682)),\"\",IFERROR(VLOOKUP(TEXT(INDIRECT(\"'\"&F2682&\"'!\"&H2682),\"0\"),Notes!$B$5:$C$100,2,FALSE),\"\"))","v":""},"2c","$M$39","$N$39"]
[14494,{"$f":"Menu!$F$29","v":"X"},{"$f":"Menu!$J$29","v":2020},{"$f":"IF(ISBLANK(INDIRECT(\"'\"&F2683&\"'!\"&G2683)),\"\",INDIRECT(\"'\"&F2683&\"'!\"&G2683))","v":""},{"$f":"IF(ISBLANK(INDIRECT(\"'\"&F2683&\"'!\"&H2683)),\"\",IFERROR(VLOOKUP(TEXT(INDIRECT(\"'\"&F2683&\"'!\"&H2683),\"0\"),Notes!$B$5:$C$100,2,FALSE),\"\"))","v":""},"2c","$O$39","$P$39"]
[14495,{"$f":"Menu!$F$29","v":"X"},{"$f":"Menu!$J$29","v":2020},{"$f":"IF(ISBLANK(INDIRECT(\"'\"&F2684&\"'!\"&G2684)),\"\",INDIRECT(\"'\"&F2684&\"'!\"&G2684))","v":""},{"$f":"IF(ISBLANK(INDIRECT(\"'\"&F2684&\"'!\"&H2684)),\"\",IFERROR(VLOOKUP(TEXT(INDIRECT(\"'\"&F2684&\"'!\"&H2684),\"0\"),Notes!$B$5:$C$100,2,FALSE),\"\"))","v":""},"2c","$Q$39","$R$39"]
[14496,{"$f":"Menu!$F$29","v":"X"},{"$f":"Menu!$J$29","v":2020},{"$f":"IF(ISBLANK(INDIRECT(\"'\"&F2685&\"'!\"&G2685)),\"\",INDIRECT(\"'\"&F2685&\"'!\"&G2685))","v":""},{"$f":"IF(ISBLANK(INDIRECT(\"'\"&F2685&\"'!\"&H2685)),\"\",IFERROR(VLOOKUP(TEXT(INDIRECT(\"'\"&F2685&\"'!\"&H2685),\"0\"),Notes!$B$5:$C$100,2,FALSE),\"\"))","v":""},"2c","$S$39","$T$39"]
[14497,{"$f":"Menu!$F$29","v":"X"},{"$f":"Menu!$J$29","v":2020},{"$f":"IF(ISBLANK(INDIRECT(\"'\"&F2686&\"'!\"&G2686)),\"\",INDIRECT(\"'\"&F2686&\"'!\"&G2686))","v":""},{"$f":"IF(ISBLANK(INDIRECT(\"'\"&F2686&\"'!\"&H2686)),\"\",IFERROR(VLOOKUP(TEXT(INDIRECT(\"'\"&F2686&\"'!\"&H2686),\"0\"),Notes!$B$5:$C$100,2,FALSE),\"\"))","v":""},"2c","$U$39","$V$39"]
[14498,{"$f":"Menu!$F$29","v":"X"},{"$f":"Menu!$J$29","v":2020},{"$f":"IF(ISBLANK(INDIRECT(\"'\"&F2687&\"'!\"&G2687)),\"\",INDIRECT(\"'\"&F2687&\"'!\"&G2687))","v":""},{"$f":"IF(ISBLANK(INDIRECT(\"'\"&F2687&\"'!\"&H2687)),\"\",IFERROR(VLOOKUP(TEXT(INDIRECT(\"'\"&F2687&\"'!\"&H2687),\"0\"),Notes!$B$5:$C$100,2,FALSE),\"\"))","v":""},"2c","$W$39","$X$39"]
[14499,{"$f":"Menu!$F$29","v":"X"},{"$f":"Menu!$J$29","v":2020},{"$f":"IF(ISBLANK(INDIRECT(\"'\"&F2688&\"'!\"&G2688)),\"\",INDIRECT(\"'\"&F2688&\"'!\"&G2688))","v":""},{"$f":"IF(ISBLANK(INDIRECT(\"'\"&F2688&\"'!\"&H2688)),\"\",IFERROR(VLOOKUP(TEXT(INDIRECT(\"'\"&F2688&\"'!\"&H2688),\"0\"),Notes!$B$5:$C$100,2,FALSE),\"\"))","v":""},"2c","$Y$39","$Z$39"]
[14500,{"$f":"Menu!$F$29","v":"X"},{"$f":"Menu!$J$29","v":2020},{"$f":"IF(ISBLANK(INDIRECT(\"'\"&F2689&\"'!\"&G2689)),\"\",INDIRECT(\"'\"&F2689&\"'!\"&G2689))","v":""},{"$f":"IF(ISBLANK(INDIRECT(\"'\"&F2689&\"'!\"&H2689)),\"\",IFERROR(VLOOKUP(TEXT(INDIRECT(\"'\"&F2689&\"'!\"&H2689),\"0\"),Notes!$B$5:$C$100,2,FALSE),\"\"))","v":""},"2c","$AA$39","$AB$39"]
[14501,{"$f":"Menu!$F$29","v":"X"},{"$f":"Menu!$J$29","v":2020},{"$f":"IF(ISBLANK(INDIRECT(\"'\"&F2690&\"'!\"&G2690)),\"\",INDIRECT(\"'\"&F2690&\"'!\"&G2690))","v":""},{"$f":"IF(ISBLANK(INDIRECT(\"'\"&F2690&\"'!\"&H2690)),\"\",IFERROR(VLOOKUP(TEXT(INDIRECT(\"'\"&F2690&\"'!\"&H2690),\"0\"),Notes!$B$5:$C$100,2,FALSE),\"\"))","v":""},"2c","$E$31",{"$f":"IF(LEN(TRIM(MID(G2690,4,10)))-LEN(SUBSTITUTE(TRIM(MID(G2690,4,10)),\"$\",\"\"))=0,\"$\"&CHAR(CODE(MID(G2690,2,1))+1)&\"$\"&TRIM(MID(G2690,4,10)),\"$\"&MID(G2690,2,1)&CHAR(CODE(MID(G2690,3,1))+1)&\"$\"&TRIM(MID(G2690,5,11)))","v":"$F$31"}]
[14502,{"$f":"Menu!$F$29","v":"X"},{"$f":"Menu!$J$29","v":2020},{"$f":"IF(ISBLANK(INDIRECT(\"'\"&F2691&\"'!\"&G2691)),\"\",INDIRECT(\"'\"&F2691&\"'!\"&G2691))","v":""},{"$f":"IF(ISBLANK(INDIRECT(\"'\"&F2691&\"'!\"&H2691)),\"\",IFERROR(VLOOKUP(TEXT(INDIRECT(\"'\"&F2691&\"'!\"&H2691),\"0\"),Notes!$B$5:$C$100,2,FALSE),\"\"))","v":""},"2c","$G$31","$H$31"]
[14503,{"$f":"Menu!$F$29","v":"X"},{"$f":"Menu!$J$29","v":2020},{"$f":"IF(ISBLANK(INDIRECT(\"'\"&F2692&\"'!\"&G2692)),\"\",INDIRECT(\"'\"&F2692&\"'!\"&G2692))","v":""},{"$f":"IF(ISBLANK(INDIRECT(\"'\"&F2692&\"'!\"&H2692)),\"\",IFERROR(VLOOKUP(TEXT(INDIRECT(\"'\"&F2692&\"'!\"&H2692),\"0\"),Notes!$B$5:$C$100,2,FALSE),\"\"))","v":""},"2c","$I$31","$J$31"]
[14504,{"$f":"Menu!$F$29","v":"X"},{"$f":"Menu!$J$29","v":2020},{"$f":"IF(ISBLANK(INDIRECT(\"'\"&F2693&\"'!\"&G2693)),\"\",INDIRECT(\"'\"&F2693&\"'!\"&G2693))","v":""},{"$f":"IF(ISBLANK(INDIRECT(\"'\"&F2693&\"'!\"&H2693)),\"\",IFERROR(VLOOKUP(TEXT(INDIRECT(\"'\"&F2693&\"'!\"&H2693),\"0\"),Notes!$B$5:$C$100,2,FALSE),\"\"))","v":""},"2c","$K$31","$L$31"]
[14505,{"$f":"Menu!$F$29","v":"X"},{"$f":"Menu!$J$29","v":2020},{"$f":"IF(ISBLANK(INDIRECT(\"'\"&F2694&\"'!\"&G2694)),\"\",INDIRECT(\"'\"&F2694&\"'!\"&G2694))","v":""},{"$f":"IF(ISBLANK(INDIRECT(\"'\"&F2694&\"'!\"&H2694)),\"\",IFERROR(VLOOKUP(TEXT(INDIRECT(\"'\"&F2694&\"'!\"&H2694),\"0\"),Notes!$B$5:$C$100,2,FALSE),\"\"))","v":""},"2c","$M$31","$N$31"]
[14506,{"$f":"Menu!$F$29","v":"X"},{"$f":"Menu!$J$29","v":2020},{"$f":"IF(ISBLANK(INDIRECT(\"'\"&F2695&\"'!\"&G2695)),\"\",INDIRECT(\"'\"&F2695&\"'!\"&G2695))","v":""},{"$f":"IF(ISBLANK(INDIRECT(\"'\"&F2695&\"'!\"&H2695)),\"\",IFERROR(VLOOKUP(TEXT(INDIRECT(\"'\"&F2695&\"'!\"&H2695),\"0\"),Notes!$B$5:$C$100,2,FALSE),\"\"))","v":""},"2c","$O$31","$P$31"]
[14507,{"$f":"Menu!$F$29","v":"X"},{"$f":"Menu!$J$29","v":2020},{"$f":"IF(ISBLANK(INDIRECT(\"'\"&F2696&\"'!\"&G2696)),\"\",INDIRECT(\"'\"&F2696&\"'!\"&G2696))","v":""},{"$f":"IF(ISBLANK(INDIRECT(\"'\"&F2696&\"'!\"&H2696)),\"\",IFERROR(VLOOKUP(TEXT(INDIRECT(\"'\"&F2696&\"'!\"&H2696),\"0\"),Notes!$B$5:$C$100,2,FALSE),\"\"))","v":""},"2c","$Q$31","$R$31"]
[14508,{"$f":"Menu!$F$29","v":"X"},{"$f":"Menu!$J$29","v":2020},{"$f":"IF(ISBLANK(INDIRECT(\"'\"&F2697&\"'!\"&G2697)),\"\",INDIRECT(\"'\"&F2697&\"'!\"&G2697))","v":""},{"$f":"IF(ISBLANK(INDIRECT(\"'\"&F2697&\"'!\"&H2697)),\"\",IFERROR(VLOOKUP(TEXT(INDIRECT(\"'\"&F2697&\"'!\"&H2697),\"0\"),Notes!$B$5:$C$100,2,FALSE),\"\"))","v":""},"2c","$S$31","$T$31"]
[14509,{"$f":"Menu!$F$29","v":"X"},{"$f":"Menu!$J$29","v":2020},{"$f":"IF(ISBLANK(INDIRECT(\"'\"&F2698&\"'!\"&G2698)),\"\",INDIRECT(\"'\"&F2698&\"'!\"&G2698))","v":""},{"$f":"IF(ISBLANK(INDIRECT(\"'\"&F2698&\"'!\"&H2698)),\"\",IFERROR(VLOOKUP(TEXT(INDIRECT(\"'\"&F2698&\"'!\"&H2698),\"0\"),Notes!$B$5:$C$100,2,FALSE),\"\"))","v":""},"2c","$U$31","$V$31"]
[14510,{"$f":"Menu!$F$29","v":"X"},{"$f":"Menu!$J$29","v":2020},{"$f":"IF(ISBLANK(INDIRECT(\"'\"&F2699&\"'!\"&G2699)),\"\",INDIRECT(\"'\"&F2699&\"'!\"&G2699))","v":""},{"$f":"IF(ISBLANK(INDIRECT(\"'\"&F2699&\"'!\"&H2699)),\"\",IFERROR(VLOOKUP(TEXT(INDIRECT(\"'\"&F2699&\"'!\"&H2699),\"0\"),Notes!$B$5:$C$100,2,FALSE),\"\"))","v":""},"2c","$W$31","$X$31"]
[14511,{"$f":"Menu!$F$29","v":"X"},{"$f":"Menu!$J$29","v":2020},{"$f":"IF(ISBLANK(INDIRECT(\"'\"&F2700&\"'!\"&G2700)),\"\",INDIRECT(\"'\"&F2700&\"'!\"&G2700))","v":""},{"$f":"IF(ISBLANK(INDIRECT(\"'\"&F2700&\"'!\"&H2700)),\"\",IFERROR(VLOOKUP(TEXT(INDIRECT(\"'\"&F2700&\"'!\"&H2700),\"0\"),Notes!$B$5:$C$100,2,FALSE),\"\"))","v":""},"2c","$Y$31","$Z$31"]
[14512,{"$f":"Menu!$F$29","v":"X"},{"$f":"Menu!$J$29","v":2020},{"$f":"IF(ISBLANK(INDIRECT(\"'\"&F2701&\"'!\"&G2701)),\"\",INDIRECT(\"'\"&F2701&\"'!\"&G2701))","v":""},{"$f":"IF(ISBLANK(INDIRECT(\"'\"&F2701&\"'!\"&H2701)),\"\",IFERROR(VLOOKUP(TEXT(INDIRECT(\"'\"&F2701&\"'!\"&H2701),\"0\"),Notes!$B$5:$C$100,2,FALSE),\"\"))","v":""},"2c","$AA$31","$AB$31"]
[14513,{"$f":"Menu!$F$29","v":"X"},{"$f":"Menu!$J$29","v":2020},{"$f":"IF(ISBLANK(INDIRECT(\"'\"&F2702&\"'!\"&G2702)),\"\",INDIRECT(\"'\"&F2702&\"'!\"&G2702))","v":""},{"$f":"IF(ISBLANK(INDIRECT(\"'\"&F2702&\"'!\"&H2702)),\"\",IFERROR(VLOOKUP(TEXT(INDIRECT(\"'\"&F2702&\"'!\"&H2702),\"0\"),Notes!$B$5:$C$100,2,FALSE),\"\"))","v":""},"2c","$E$41","$F$41"]
[14514,{"$f":"Menu!$F$29","v":"X"},{"$f":"Menu!$J$29","v":2020},{"$f":"IF(ISBLANK(INDIRECT(\"'\"&F2703&\"'!\"&G2703)),\"\",INDIRECT(\"'\"&F2703&\"'!\"&G2703))","v":""},{"$f":"IF(ISBLANK(INDIRECT(\"'\"&F2703&\"'!\"&H2703)),\"\",IFERROR(VLOOKUP(TEXT(INDIRECT(\"'\"&F2703&\"'!\"&H2703),\"0\"),Notes!$B$5:$C$100,2,FALSE),\"\"))","v":""},"2c","$G$41","$H$41"]
[14515,{"$f":"Menu!$F$29","v":"X"},{"$f":"Menu!$J$29","v":2020},{"$f":"IF(ISBLANK(INDIRECT(\"'\"&F2704&\"'!\"&G2704)),\"\",INDIRECT(\"'\"&F2704&\"'!\"&G2704))","v":""},{"$f":"IF(ISBLANK(INDIRECT(\"'\"&F2704&\"'!\"&H2704)),\"\",IFERROR(VLOOKUP(TEXT(INDIRECT(\"'\"&F2704&\"'!\"&H2704),\"0\"),Notes!$B$5:$C$100,2,FALSE),\"\"))","v":""},"2c","$I$41","$J$41"]
[14516,{"$f":"Menu!$F$29","v":"X"},{"$f":"Menu!$J$29","v":2020},{"$f":"IF(ISBLANK(INDIRECT(\"'\"&F2705&\"'!\"&G2705)),\"\",INDIRECT(\"'\"&F2705&\"'!\"&G2705))","v":""},{"$f":"IF(ISBLANK(INDIRECT(\"'\"&F2705&\"'!\"&H2705)),\"\",IFERROR(VLOOKUP(TEXT(INDIRECT(\"'\"&F2705&\"'!\"&H2705),\"0\"),Notes!$B$5:$C$100,2,FALSE),\"\"))","v":""},"2c","$K$41","$L$41"]
[14517,{"$f":"Menu!$F$29","v":"X"},{"$f":"Menu!$J$29","v":2020},{"$f":"IF(ISBLANK(INDIRECT(\"'\"&F2706&\"'!\"&G2706)),\"\",INDIRECT(\"'\"&F2706&\"'!\"&G2706))","v":""},{"$f":"IF(ISBLANK(INDIRECT(\"'\"&F2706&\"'!\"&H2706)),\"\",IFERROR(VLOOKUP(TEXT(INDIRECT(\"'\"&F2706&\"'!\"&H2706),\"0\"),Notes!$B$5:$C$100,2,FALSE),\"\"))","v":""},"2c","$M$41","$N$41"]
[14518,{"$f":"Menu!$F$29","v":"X"},{"$f":"Menu!$J$29","v":2020},{"$f":"IF(ISBLANK(INDIRECT(\"'\"&F2707&\"'!\"&G2707)),\"\",INDIRECT(\"'\"&F2707&\"'!\"&G2707))","v":""},{"$f":"IF(ISBLANK(INDIRECT(\"'\"&F2707&\"'!\"&H2707)),\"\",IFERROR(VLOOKUP(TEXT(INDIRECT(\"'\"&F2707&\"'!\"&H2707),\"0\"),Notes!$B$5:$C$100,2,FALSE),\"\"))","v":""},"2c","$O$41","$P$41"]
[14519,{"$f":"Menu!$F$29","v":"X"},{"$f":"Menu!$J$29","v":2020},{"$f":"IF(ISBLANK(INDIRECT(\"'\"&F2708&\"'!\"&G2708)),\"\",INDIRECT(\"'\"&F2708&\"'!\"&G2708))","v":""},{"$f":"IF(ISBLANK(INDIRECT(\"'\"&F2708&\"'!\"&H2708)),\"\",IFERROR(VLOOKUP(TEXT(INDIRECT(\"'\"&F2708&\"'!\"&H2708),\"0\"),Notes!$B$5:$C$100,2,FALSE),\"\"))","v":""},"2c","$Q$41","$R$41"]
[14520,{"$f":"Menu!$F$29","v":"X"},{"$f":"Menu!$J$29","v":2020},{"$f":"IF(ISBLANK(INDIRECT(\"'\"&F2709&\"'!\"&G2709)),\"\",INDIRECT(\"'\"&F2709&\"'!\"&G2709))","v":""},{"$f":"IF(ISBLANK(INDIRECT(\"'\"&F2709&\"'!\"&H2709)),\"\",IFERROR(VLOOKUP(TEXT(INDIRECT(\"'\"&F2709&\"'!\"&H2709),\"0\"),Notes!$B$5:$C$100,2,FALSE),\"\"))","v":""},"2c","$S$41","$T$41"]
[14521,{"$f":"Menu!$F$29","v":"X"},{"$f":"Menu!$J$29","v":2020},{"$f":"IF(ISBLANK(INDIRECT(\"'\"&F2710&\"'!\"&G2710)),\"\",INDIRECT(\"'\"&F2710&\"'!\"&G2710))","v":""},{"$f":"IF(ISBLANK(INDIRECT(\"'\"&F2710&\"'!\"&H2710)),\"\",IFERROR(VLOOKUP(TEXT(INDIRECT(\"'\"&F2710&\"'!\"&H2710),\"0\"),Notes!$B$5:$C$100,2,FALSE),\"\"))","v":""},"2c","$U$41","$V$41"]
[14522,{"$f":"Menu!$F$29","v":"X"},{"$f":"Menu!$J$29","v":2020},{"$f":"IF(ISBLANK(INDIRECT(\"'\"&F2711&\"'!\"&G2711)),\"\",INDIRECT(\"'\"&F2711&\"'!\"&G2711))","v":""},{"$f":"IF(ISBLANK(INDIRECT(\"'\"&F2711&\"'!\"&H2711)),\"\",IFERROR(VLOOKUP(TEXT(INDIRECT(\"'\"&F2711&\"'!\"&H2711),\"0\"),Notes!$B$5:$C$100,2,FALSE),\"\"))","v":""},"2c","$W$41","$X$41"]
[14523,{"$f":"Menu!$F$29","v":"X"},{"$f":"Menu!$J$29","v":2020},{"$f":"IF(ISBLANK(INDIRECT(\"'\"&F2712&\"'!\"&G2712)),\"\",INDIRECT(\"'\"&F2712&\"'!\"&G2712))","v":""},{"$f":"IF(ISBLANK(INDIRECT(\"'\"&F2712&\"'!\"&H2712)),\"\",IFERROR(VLOOKUP(TEXT(INDIRECT(\"'\"&F2712&\"'!\"&H2712),\"0\"),Notes!$B$5:$C$100,2,FALSE),\"\"))","v":""},"2c","$Y$41","$Z$41"]
[14524,{"$f":"Menu!$F$29","v":"X"},{"$f":"Menu!$J$29","v":2020},{"$f":"IF(ISBLANK(INDIRECT(\"'\"&F2713&\"'!\"&G2713)),\"\",INDIRECT(\"'\"&F2713&\"'!\"&G2713))","v":""},{"$f":"IF(ISBLANK(INDIRECT(\"'\"&F2713&\"'!\"&H2713)),\"\",IFERROR(VLOOKUP(TEXT(INDIRECT(\"'\"&F2713&\"'!\"&H2713),\"0\"),Notes!$B$5:$C$100,2,FALSE),\"\"))","v":""},"2c","$AA$41","$AB$41"]
[14525,{"$f":"Menu!$F$29","v":"X"},{"$f":"Menu!$J$29","v":2020},{"$f":"IF(ISBLANK(INDIRECT(\"'\"&F2714&\"'!\"&G2714)),\"\",INDIRECT(\"'\"&F2714&\"'!\"&G2714))","v":""},{"$f":"IF(ISBLANK(INDIRECT(\"'\"&F2714&\"'!\"&H2714)),\"\",IFERROR(VLOOKUP(TEXT(INDIRECT(\"'\"&F2714&\"'!\"&H2714),\"0\"),Notes!$B$5:$C$100,2,FALSE),\"\"))","v":""},"2c","$E$51","$F$51"]
[14526,{"$f":"Menu!$F$29","v":"X"},{"$f":"Menu!$J$29","v":2020},{"$f":"IF(ISBLANK(INDIRECT(\"'\"&F2715&\"'!\"&G2715)),\"\",INDIRECT(\"'\"&F2715&\"'!\"&G2715))","v":""},{"$f":"IF(ISBLANK(INDIRECT(\"'\"&F2715&\"'!\"&H2715)),\"\",IFERROR(VLOOKUP(TEXT(INDIRECT(\"'\"&F2715&\"'!\"&H2715),\"0\"),Notes!$B$5:$C$100,2,FALSE),\"\"))","v":""},"2c","$G$51","$H$51"]
[14527,{"$f":"Menu!$F$29","v":"X"},{"$f":"Menu!$J$29","v":2020},{"$f":"IF(ISBLANK(INDIRECT(\"'\"&F2716&\"'!\"&G2716)),\"\",INDIRECT(\"'\"&F2716&\"'!\"&G2716))","v":""},{"$f":"IF(ISBLANK(INDIRECT(\"'\"&F2716&\"'!\"&H2716)),\"\",IFERROR(VLOOKUP(TEXT(INDIRECT(\"'\"&F2716&\"'!\"&H2716),\"0\"),Notes!$B$5:$C$100,2,FALSE),\"\"))","v":""},"2c","$I$51","$J$51"]
[14528,{"$f":"Menu!$F$29","v":"X"},{"$f":"Menu!$J$29","v":2020},{"$f":"IF(ISBLANK(INDIRECT(\"'\"&F2717&\"'!\"&G2717)),\"\",INDIRECT(\"'\"&F2717&\"'!\"&G2717))","v":""},{"$f":"IF(ISBLANK(INDIRECT(\"'\"&F2717&\"'!\"&H2717)),\"\",IFERROR(VLOOKUP(TEXT(INDIRECT(\"'\"&F2717&\"'!\"&H2717),\"0\"),Notes!$B$5:$C$100,2,FALSE),\"\"))","v":""},"2c","$K$51","$L$51"]
[14529,{"$f":"Menu!$F$29","v":"X"},{"$f":"Menu!$J$29","v":2020},{"$f":"IF(ISBLANK(INDIRECT(\"'\"&F2718&\"'!\"&G2718)),\"\",INDIRECT(\"'\"&F2718&\"'!\"&G2718))","v":""},{"$f":"IF(ISBLANK(INDIRECT(\"'\"&F2718&\"'!\"&H2718)),\"\",IFERROR(VLOOKUP(TEXT(INDIRECT(\"'\"&F2718&\"'!\"&H2718),\"0\"),Notes!$B$5:$C$100,2,FALSE),\"\"))","v":""},"2c","$M$51","$N$51"]
[14530,{"$f":"Menu!$F$29","v":"X"},{"$f":"Menu!$J$29","v":2020},{"$f":"IF(ISBLANK(INDIRECT(\"'\"&F2719&\"'!\"&G2719)),\"\",INDIRECT(\"'\"&F2719&\"'!\"&G2719))","v":""},{"$f":"IF(ISBLANK(INDIRECT(\"'\"&F2719&\"'!\"&H2719)),\"\",IFERROR(VLOOKUP(TEXT(INDIRECT(\"'\"&F2719&\"'!\"&H2719),\"0\"),Notes!$B$5:$C$100,2,FALSE),\"\"))","v":""},"2c","$O$51","$P$51"]
[14531,{"$f":"Menu!$F$29","v":"X"},{"$f":"Menu!$J$29","v":2020},{"$f":"IF(ISBLANK(INDIRECT(\"'\"&F2720&\"'!\"&G2720)),\"\",INDIRECT(\"'\"&F2720&\"'!\"&G2720))","v":""},{"$f":"IF(ISBLANK(INDIRECT(\"'\"&F2720&\"'!\"&H2720)),\"\",IFERROR(VLOOKUP(TEXT(INDIRECT(\"'\"&F2720&\"'!\"&H2720),\"0\"),Notes!$B$5:$C$100,2,FALSE),\"\"))","v":""},"2c","$Q$51","$R$51"]
[14532,{"$f":"Menu!$F$29","v":"X"},{"$f":"Menu!$J$29","v":2020},{"$f":"IF(ISBLANK(INDIRECT(\"'\"&F2721&\"'!\"&G2721)),\"\",INDIRECT(\"'\"&F2721&\"'!\"&G2721))","v":""},{"$f":"IF(ISBLANK(INDIRECT(\"'\"&F2721&\"'!\"&H2721)),\"\",IFERROR(VLOOKUP(TEXT(INDIRECT(\"'\"&F2721&\"'!\"&H2721),\"0\"),Notes!$B$5:$C$100,2,FALSE),\"\"))","v":""},"2c","$S$51","$T$51"]
[14533,{"$f":"Menu!$F$29","v":"X"},{"$f":"Menu!$J$29","v":2020},{"$f":"IF(ISBLANK(INDIRECT(\"'\"&F2722&\"'!\"&G2722)),\"\",INDIRECT(\"'\"&F2722&\"'!\"&G2722))","v":""},{"$f":"IF(ISBLANK(INDIRECT(\"'\"&F2722&\"'!\"&H2722)),\"\",IFERROR(VLOOKUP(TEXT(INDIRECT(\"'\"&F2722&\"'!\"&H2722),\"0\"),Notes!$B$5:$C$100,2,FALSE),\"\"))","v":""},"2c","$U$51","$V$51"]
[14534,{"$f":"Menu!$F$29","v":"X"},{"$f":"Menu!$J$29","v":2020},{"$f":"IF(ISBLANK(INDIRECT(\"'\"&F2723&\"'!\"&G2723)),\"\",INDIRECT(\"'\"&F2723&\"'!\"&G2723))","v":""},{"$f":"IF(ISBLANK(INDIRECT(\"'\"&F2723&\"'!\"&H2723)),\"\",IFERROR(VLOOKUP(TEXT(INDIRECT(\"'\"&F2723&\"'!\"&H2723),\"0\"),Notes!$B$5:$C$100,2,FALSE),\"\"))","v":""},"2c","$W$51","$X$51"]
[14535,{"$f":"Menu!$F$29","v":"X"},{"$f":"Menu!$J$29","v":2020},{"$f":"IF(ISBLANK(INDIRECT(\"'\"&F2724&\"'!\"&G2724)),\"\",INDIRECT(\"'\"&F2724&\"'!\"&G2724))","v":""},{"$f":"IF(ISBLANK(INDIRECT(\"'\"&F2724&\"'!\"&H2724)),\"\",IFERROR(VLOOKUP(TEXT(INDIRECT(\"'\"&F2724&\"'!\"&H2724),\"0\"),Notes!$B$5:$C$100,2,FALSE),\"\"))","v":""},"2c","$Y$51","$Z$51"]
[14536,{"$f":"Menu!$F$29","v":"X"},{"$f":"Menu!$J$29","v":2020},{"$f":"IF(ISBLANK(INDIRECT(\"'\"&F2725&\"'!\"&G2725)),\"\",INDIRECT(\"'\"&F2725&\"'!\"&G2725))","v":""},{"$f":"IF(ISBLANK(INDIRECT(\"'\"&F2725&\"'!\"&H2725)),\"\",IFERROR(VLOOKUP(TEXT(INDIRECT(\"'\"&F2725&\"'!\"&H2725),\"0\"),Notes!$B$5:$C$100,2,FALSE),\"\"))","v":""},"2c","$AA$51","$AB$51"]
[14537,{"$f":"Menu!$F$29","v":"X"},{"$f":"Menu!$J$29","v":2020},{"$f":"IF(ISBLANK(INDIRECT(\"'\"&F2726&\"'!\"&G2726)),\"\",INDIRECT(\"'\"&F2726&\"'!\"&G2726))","v":""},{"$f":"IF(ISBLANK(INDIRECT(\"'\"&F2726&\"'!\"&H2726)),\"\",IFERROR(VLOOKUP(TEXT(INDIRECT(\"'\"&F2726&\"'!\"&H2726),\"0\"),Notes!$B$5:$C$100,2,FALSE),\"\"))","v":""},"2c","$E$52","$F$52"]
[14538,{"$f":"Menu!$F$29","v":"X"},{"$f":"Menu!$J$29","v":2020},{"$f":"IF(ISBLANK(INDIRECT(\"'\"&F2727&\"'!\"&G2727)),\"\",INDIRECT(\"'\"&F2727&\"'!\"&G2727))","v":""},{"$f":"IF(ISBLANK(INDIRECT(\"'\"&F2727&\"'!\"&H2727)),\"\",IFERROR(VLOOKUP(TEXT(INDIRECT(\"'\"&F2727&\"'!\"&H2727),\"0\"),Notes!$B$5:$C$100,2,FALSE),\"\"))","v":""},"2c","$G$52","$H$52"]
[14539,{"$f":"Menu!$F$29","v":"X"},{"$f":"Menu!$J$29","v":2020},{"$f":"IF(ISBLANK(INDIRECT(\"'\"&F2728&\"'!\"&G2728)),\"\",INDIRECT(\"'\"&F2728&\"'!\"&G2728))","v":""},{"$f":"IF(ISBLANK(INDIRECT(\"'\"&F2728&\"'!\"&H2728)),\"\",IFERROR(VLOOKUP(TEXT(INDIRECT(\"'\"&F2728&\"'!\"&H2728),\"0\"),Notes!$B$5:$C$100,2,FALSE),\"\"))","v":""},"2c","$I$52","$J$52"]
[14540,{"$f":"Menu!$F$29","v":"X"},{"$f":"Menu!$J$29","v":2020},{"$f":"IF(ISBLANK(INDIRECT(\"'\"&F2729&\"'!\"&G2729)),\"\",INDIRECT(\"'\"&F2729&\"'!\"&G2729))","v":""},{"$f":"IF(ISBLANK(INDIRECT(\"'\"&F2729&\"'!\"&H2729)),\"\",IFERROR(VLOOKUP(TEXT(INDIRECT(\"'\"&F2729&\"'!\"&H2729),\"0\"),Notes!$B$5:$C$100,2,FALSE),\"\"))","v":""},"2c","$K$52","$L$52"]
[14541,{"$f":"Menu!$F$29","v":"X"},{"$f":"Menu!$J$29","v":2020},{"$f":"IF(ISBLANK(INDIRECT(\"'\"&F2730&\"'!\"&G2730)),\"\",INDIRECT(\"'\"&F2730&\"'!\"&G2730))","v":""},{"$f":"IF(ISBLANK(INDIRECT(\"'\"&F2730&\"'!\"&H2730)),\"\",IFERROR(VLOOKUP(TEXT(INDIRECT(\"'\"&F2730&\"'!\"&H2730),\"0\"),Notes!$B$5:$C$100,2,FALSE),\"\"))","v":""},"2c","$M$52","$N$52"]
[14542,{"$f":"Menu!$F$29","v":"X"},{"$f":"Menu!$J$29","v":2020},{"$f":"IF(ISBLANK(INDIRECT(\"'\"&F2731&\"'!\"&G2731)),\"\",INDIRECT(\"'\"&F2731&\"'!\"&G2731))","v":""},{"$f":"IF(ISBLANK(INDIRECT(\"'\"&F2731&\"'!\"&H2731)),\"\",IFERROR(VLOOKUP(TEXT(INDIRECT(\"'\"&F2731&\"'!\"&H2731),\"0\"),Notes!$B$5:$C$100,2,FALSE),\"\"))","v":""},"2c","$O$52","$P$52"]
[14543,{"$f":"Menu!$F$29","v":"X"},{"$f":"Menu!$J$29","v":2020},{"$f":"IF(ISBLANK(INDIRECT(\"'\"&F2732&\"'!\"&G2732)),\"\",INDIRECT(\"'\"&F2732&\"'!\"&G2732))","v":""},{"$f":"IF(ISBLANK(INDIRECT(\"'\"&F2732&\"'!\"&H2732)),\"\",IFERROR(VLOOKUP(TEXT(INDIRECT(\"'\"&F2732&\"'!\"&H2732),\"0\"),Notes!$B$5:$C$100,2,FALSE),\"\"))","v":""},"2c","$Q$52","$R$52"]
[14544,{"$f":"Menu!$F$29","v":"X"},{"$f":"Menu!$J$29","v":2020},{"$f":"IF(ISBLANK(INDIRECT(\"'\"&F2733&\"'!\"&G2733)),\"\",INDIRECT(\"'\"&F2733&\"'!\"&G2733))","v":""},{"$f":"IF(ISBLANK(INDIRECT(\"'\"&F2733&\"'!\"&H2733)),\"\",IFERROR(VLOOKUP(TEXT(INDIRECT(\"'\"&F2733&\"'!\"&H2733),\"0\"),Notes!$B$5:$C$100,2,FALSE),\"\"))","v":""},"2c","$S$52","$T$52"]
[14545,{"$f":"Menu!$F$29","v":"X"},{"$f":"Menu!$J$29","v":2020},{"$f":"IF(ISBLANK(INDIRECT(\"'\"&F2734&\"'!\"&G2734)),\"\",INDIRECT(\"'\"&F2734&\"'!\"&G2734))","v":""},{"$f":"IF(ISBLANK(INDIRECT(\"'\"&F2734&\"'!\"&H2734)),\"\",IFERROR(VLOOKUP(TEXT(INDIRECT(\"'\"&F2734&\"'!\"&H2734),\"0\"),Notes!$B$5:$C$100,2,FALSE),\"\"))","v":""},"2c","$U$52","$V$52"]
[14546,{"$f":"Menu!$F$29","v":"X"},{"$f":"Menu!$J$29","v":2020},{"$f":"IF(ISBLANK(INDIRECT(\"'\"&F2735&\"'!\"&G2735)),\"\",INDIRECT(\"'\"&F2735&\"'!\"&G2735))","v":""},{"$f":"IF(ISBLANK(INDIRECT(\"'\"&F2735&\"'!\"&H2735)),\"\",IFERROR(VLOOKUP(TEXT(INDIRECT(\"'\"&F2735&\"'!\"&H2735),\"0\"),Notes!$B$5:$C$100,2,FALSE),\"\"))","v":""},"2c","$W$52","$X$52"]
[14547,{"$f":"Menu!$F$29","v":"X"},{"$f":"Menu!$J$29","v":2020},{"$f":"IF(ISBLANK(INDIRECT(\"'\"&F2736&\"'!\"&G2736)),\"\",INDIRECT(\"'\"&F2736&\"'!\"&G2736))","v":""},{"$f":"IF(ISBLANK(INDIRECT(\"'\"&F2736&\"'!\"&H2736)),\"\",IFERROR(VLOOKUP(TEXT(INDIRECT(\"'\"&F2736&\"'!\"&H2736),\"0\"),Notes!$B$5:$C$100,2,FALSE),\"\"))","v":""},"2c","$Y$52","$Z$52"]
[14548,{"$f":"Menu!$F$29","v":"X"},{"$f":"Menu!$J$29","v":2020},{"$f":"IF(ISBLANK(INDIRECT(\"'\"&F2737&\"'!\"&G2737)),\"\",INDIRECT(\"'\"&F2737&\"'!\"&G2737))","v":""},{"$f":"IF(ISBLANK(INDIRECT(\"'\"&F2737&\"'!\"&H2737)),\"\",IFERROR(VLOOKUP(TEXT(INDIRECT(\"'\"&F2737&\"'!\"&H2737),\"0\"),Notes!$B$5:$C$100,2,FALSE),\"\"))","v":""},"2c","$AA$52","$AB$52"]
[14549,{"$f":"Menu!$F$29","v":"X"},{"$f":"Menu!$J$29","v":2020},{"$f":"IF(ISBLANK(INDIRECT(\"'\"&F2738&\"'!\"&G2738)),\"\",INDIRECT(\"'\"&F2738&\"'!\"&G2738))","v":""},{"$f":"IF(ISBLANK(INDIRECT(\"'\"&F2738&\"'!\"&H2738)),\"\",IFERROR(VLOOKUP(TEXT(INDIRECT(\"'\"&F2738&\"'!\"&H2738),\"0\"),Notes!$B$5:$C$100,2,FALSE),\"\"))","v":""},"2c","$E$40","$F$40"]
[14550,{"$f":"Menu!$F$29","v":"X"},{"$f":"Menu!$J$29","v":2020},{"$f":"IF(ISBLANK(INDIRECT(\"'\"&F2739&\"'!\"&G2739)),\"\",INDIRECT(\"'\"&F2739&\"'!\"&G2739))","v":""},{"$f":"IF(ISBLANK(INDIRECT(\"'\"&F2739&\"'!\"&H2739)),\"\",IFERROR(VLOOKUP(TEXT(INDIRECT(\"'\"&F2739&\"'!\"&H2739),\"0\"),Notes!$B$5:$C$100,2,FALSE),\"\"))","v":""},"2c","$G$40","$H$40"]
[14551,{"$f":"Menu!$F$29","v":"X"},{"$f":"Menu!$J$29","v":2020},{"$f":"IF(ISBLANK(INDIRECT(\"'\"&F2740&\"'!\"&G2740)),\"\",INDIRECT(\"'\"&F2740&\"'!\"&G2740))","v":""},{"$f":"IF(ISBLANK(INDIRECT(\"'\"&F2740&\"'!\"&H2740)),\"\",IFERROR(VLOOKUP(TEXT(INDIRECT(\"'\"&F2740&\"'!\"&H2740),\"0\"),Notes!$B$5:$C$100,2,FALSE),\"\"))","v":""},"2c","$I$40","$J$40"]
[14552,{"$f":"Menu!$F$29","v":"X"},{"$f":"Menu!$J$29","v":2020},{"$f":"IF(ISBLANK(INDIRECT(\"'\"&F2741&\"'!\"&G2741)),\"\",INDIRECT(\"'\"&F2741&\"'!\"&G2741))","v":""},{"$f":"IF(ISBLANK(INDIRECT(\"'\"&F2741&\"'!\"&H2741)),\"\",IFERROR(VLOOKUP(TEXT(INDIRECT(\"'\"&F2741&\"'!\"&H2741),\"0\"),Notes!$B$5:$C$100,2,FALSE),\"\"))","v":""},"2c","$K$40","$L$40"]
[14553,{"$f":"Menu!$F$29","v":"X"},{"$f":"Menu!$J$29","v":2020},{"$f":"IF(ISBLANK(INDIRECT(\"'\"&F2742&\"'!\"&G2742)),\"\",INDIRECT(\"'\"&F2742&\"'!\"&G2742))","v":""},{"$f":"IF(ISBLANK(INDIRECT(\"'\"&F2742&\"'!\"&H2742)),\"\",IFERROR(VLOOKUP(TEXT(INDIRECT(\"'\"&F2742&\"'!\"&H2742),\"0\"),Notes!$B$5:$C$100,2,FALSE),\"\"))","v":""},"2c","$M$40","$N$40"]
[14554,{"$f":"Menu!$F$29","v":"X"},{"$f":"Menu!$J$29","v":2020},{"$f":"IF(ISBLANK(INDIRECT(\"'\"&F2743&\"'!\"&G2743)),\"\",INDIRECT(\"'\"&F2743&\"'!\"&G2743))","v":""},{"$f":"IF(ISBLANK(INDIRECT(\"'\"&F2743&\"'!\"&H2743)),\"\",IFERROR(VLOOKUP(TEXT(INDIRECT(\"'\"&F2743&\"'!\"&H2743),\"0\"),Notes!$B$5:$C$100,2,FALSE),\"\"))","v":""},"2c","$O$40","$P$40"]
[14555,{"$f":"Menu!$F$29","v":"X"},{"$f":"Menu!$J$29","v":2020},{"$f":"IF(ISBLANK(INDIRECT(\"'\"&F2744&\"'!\"&G2744)),\"\",INDIRECT(\"'\"&F2744&\"'!\"&G2744))","v":""},{"$f":"IF(ISBLANK(INDIRECT(\"'\"&F2744&\"'!\"&H2744)),\"\",IFERROR(VLOOKUP(TEXT(INDIRECT(\"'\"&F2744&\"'!\"&H2744),\"0\"),Notes!$B$5:$C$100,2,FALSE),\"\"))","v":""},"2c","$Q$40","$R$40"]
[14556,{"$f":"Menu!$F$29","v":"X"},{"$f":"Menu!$J$29","v":2020},{"$f":"IF(ISBLANK(INDIRECT(\"'\"&F2745&\"'!\"&G2745)),\"\",INDIRECT(\"'\"&F2745&\"'!\"&G2745))","v":""},{"$f":"IF(ISBLANK(INDIRECT(\"'\"&F2745&\"'!\"&H2745)),\"\",IFERROR(VLOOKUP(TEXT(INDIRECT(\"'\"&F2745&\"'!\"&H2745),\"0\"),Notes!$B$5:$C$100,2,FALSE),\"\"))","v":""},"2c","$S$40","$T$40"]
[14557,{"$f":"Menu!$F$29","v":"X"},{"$f":"Menu!$J$29","v":2020},{"$f":"IF(ISBLANK(INDIRECT(\"'\"&F2746&\"'!\"&G2746)),\"\",INDIRECT(\"'\"&F2746&\"'!\"&G2746))","v":""},{"$f":"IF(ISBLANK(INDIRECT(\"'\"&F2746&\"'!\"&H2746)),\"\",IFERROR(VLOOKUP(TEXT(INDIRECT(\"'\"&F2746&\"'!\"&H2746),\"0\"),Notes!$B$5:$C$100,2,FALSE),\"\"))","v":""},"2c","$U$40","$V$40"]
[14558,{"$f":"Menu!$F$29","v":"X"},{"$f":"Menu!$J$29","v":2020},{"$f":"IF(ISBLANK(INDIRECT(\"'\"&F2747&\"'!\"&G2747)),\"\",INDIRECT(\"'\"&F2747&\"'!\"&G2747))","v":""},{"$f":"IF(ISBLANK(INDIRECT(\"'\"&F2747&\"'!\"&H2747)),\"\",IFERROR(VLOOKUP(TEXT(INDIRECT(\"'\"&F2747&\"'!\"&H2747),\"0\"),Notes!$B$5:$C$100,2,FALSE),\"\"))","v":""},"2c","$W$40","$X$40"]
[14559,{"$f":"Menu!$F$29","v":"X"},{"$f":"Menu!$J$29","v":2020},{"$f":"IF(ISBLANK(INDIRECT(\"'\"&F2748&\"'!\"&G2748)),\"\",INDIRECT(\"'\"&F2748&\"'!\"&G2748))","v":""},{"$f":"IF(ISBLANK(INDIRECT(\"'\"&F2748&\"'!\"&H2748)),\"\",IFERROR(VLOOKUP(TEXT(INDIRECT(\"'\"&F2748&\"'!\"&H2748),\"0\"),Notes!$B$5:$C$100,2,FALSE),\"\"))","v":""},"2c","$Y$40","$Z$40"]
[14560,{"$f":"Menu!$F$29","v":"X"},{"$f":"Menu!$J$29","v":2020},{"$f":"IF(ISBLANK(INDIRECT(\"'\"&F2749&\"'!\"&G2749)),\"\",INDIRECT(\"'\"&F2749&\"'!\"&G2749))","v":""},{"$f":"IF(ISBLANK(INDIRECT(\"'\"&F2749&\"'!\"&H2749)),\"\",IFERROR(VLOOKUP(TEXT(INDIRECT(\"'\"&F2749&\"'!\"&H2749),\"0\"),Notes!$B$5:$C$100,2,FALSE),\"\"))","v":""},"2c","$AA$40","$AB$40"]
[14573,{"$f":"Menu!$F$29","v":"X"},{"$f":"Menu!$J$29","v":2020},{"$f":"IF(ISBLANK(INDIRECT(\"'\"&F2750&\"'!\"&G2750)),\"\",INDIRECT(\"'\"&F2750&\"'!\"&G2750))","v":""},{"$f":"IF(ISBLANK(INDIRECT(\"'\"&F2750&\"'!\"&H2750)),\"\",IFERROR(VLOOKUP(TEXT(INDIRECT(\"'\"&F2750&\"'!\"&H2750),\"0\"),Notes!$B$5:$C$100,2,FALSE),\"\"))","v":""},"2c","$E$42","$F$42"]
[14574,{"$f":"Menu!$F$29","v":"X"},{"$f":"Menu!$J$29","v":2020},{"$f":"IF(ISBLANK(INDIRECT(\"'\"&F2751&\"'!\"&G2751)),\"\",INDIRECT(\"'\"&F2751&\"'!\"&G2751))","v":""},{"$f":"IF(ISBLANK(INDIRECT(\"'\"&F2751&\"'!\"&H2751)),\"\",IFERROR(VLOOKUP(TEXT(INDIRECT(\"'\"&F2751&\"'!\"&H2751),\"0\"),Notes!$B$5:$C$100,2,FALSE),\"\"))","v":""},"2c","$G$42","$H$42"]
[14575,{"$f":"Menu!$F$29","v":"X"},{"$f":"Menu!$J$29","v":2020},{"$f":"IF(ISBLANK(INDIRECT(\"'\"&F2752&\"'!\"&G2752)),\"\",INDIRECT(\"'\"&F2752&\"'!\"&G2752))","v":""},{"$f":"IF(ISBLANK(INDIRECT(\"'\"&F2752&\"'!\"&H2752)),\"\",IFERROR(VLOOKUP(TEXT(INDIRECT(\"'\"&F2752&\"'!\"&H2752),\"0\"),Notes!$B$5:$C$100,2,FALSE),\"\"))","v":""},"2c","$I$42","$J$42"]
[14576,{"$f":"Menu!$F$29","v":"X"},{"$f":"Menu!$J$29","v":2020},{"$f":"IF(ISBLANK(INDIRECT(\"'\"&F2753&\"'!\"&G2753)),\"\",INDIRECT(\"'\"&F2753&\"'!\"&G2753))","v":""},{"$f":"IF(ISBLANK(INDIRECT(\"'\"&F2753&\"'!\"&H2753)),\"\",IFERROR(VLOOKUP(TEXT(INDIRECT(\"'\"&F2753&\"'!\"&H2753),\"0\"),Notes!$B$5:$C$100,2,FALSE),\"\"))","v":""},"2c","$K$42","$L$42"]
[14577,{"$f":"Menu!$F$29","v":"X"},{"$f":"Menu!$J$29","v":2020},{"$f":"IF(ISBLANK(INDIRECT(\"'\"&F2754&\"'!\"&G2754)),\"\",INDIRECT(\"'\"&F2754&\"'!\"&G2754))","v":""},{"$f":"IF(ISBLANK(INDIRECT(\"'\"&F2754&\"'!\"&H2754)),\"\",IFERROR(VLOOKUP(TEXT(INDIRECT(\"'\"&F2754&\"'!\"&H2754),\"0\"),Notes!$B$5:$C$100,2,FALSE),\"\"))","v":""},"2c","$M$42",{"$f":"IF(LEN(TRIM(MID(G2754,4,10)))-LEN(SUBSTITUTE(TRIM(MID(G2754,4,10)),\"$\",\"\"))=0,\"$\"&CHAR(CODE(MID(G2754,2,1))+1)&\"$\"&TRIM(MID(G2754,4,10)),\"$\"&MID(G2754,2,1)&CHAR(CODE(MID(G2754,3,1))+1)&\"$\"&TRIM(MID(G2754,5,11)))","v":"$N$42"}]
[14578,{"$f":"Menu!$F$29","v":"X"},{"$f":"Menu!$J$29","v":2020},{"$f":"IF(ISBLANK(INDIRECT(\"'\"&F2755&\"'!\"&G2755)),\"\",INDIRECT(\"'\"&F2755&\"'!\"&G2755))","v":""},{"$f":"IF(ISBLANK(INDIRECT(\"'\"&F2755&\"'!\"&H2755)),\"\",IFERROR(VLOOKUP(TEXT(INDIRECT(\"'\"&F2755&\"'!\"&H2755),\"0\"),Notes!$B$5:$C$100,2,FALSE),\"\"))","v":""},"2c","$O$42","$P$42"]
[14579,{"$f":"Menu!$F$29","v":"X"},{"$f":"Menu!$J$29","v":2020},{"$f":"IF(ISBLANK(INDIRECT(\"'\"&F2756&\"'!\"&G2756)),\"\",INDIRECT(\"'\"&F2756&\"'!\"&G2756))","v":""},{"$f":"IF(ISBLANK(INDIRECT(\"'\"&F2756&\"'!\"&H2756)),\"\",IFERROR(VLOOKUP(TEXT(INDIRECT(\"'\"&F2756&\"'!\"&H2756),\"0\"),Notes!$B$5:$C$100,2,FALSE),\"\"))","v":""},"2c","$Q$42","$R$42"]
[14580,{"$f":"Menu!$F$29","v":"X"},{"$f":"Menu!$J$29","v":2020},{"$f":"IF(ISBLANK(INDIRECT(\"'\"&F2757&\"'!\"&G2757)),\"\",INDIRECT(\"'\"&F2757&\"'!\"&G2757))","v":""},{"$f":"IF(ISBLANK(INDIRECT(\"'\"&F2757&\"'!\"&H2757)),\"\",IFERROR(VLOOKUP(TEXT(INDIRECT(\"'\"&F2757&\"'!\"&H2757),\"0\"),Notes!$B$5:$C$100,2,FALSE),\"\"))","v":""},"2c","$S$42","$T$42"]
[14581,{"$f":"Menu!$F$29","v":"X"},{"$f":"Menu!$J$29","v":2020},{"$f":"IF(ISBLANK(INDIRECT(\"'\"&F2758&\"'!\"&G2758)),\"\",INDIRECT(\"'\"&F2758&\"'!\"&G2758))","v":""},{"$f":"IF(ISBLANK(INDIRECT(\"'\"&F2758&\"'!\"&H2758)),\"\",IFERROR(VLOOKUP(TEXT(INDIRECT(\"'\"&F2758&\"'!\"&H2758),\"0\"),Notes!$B$5:$C$100,2,FALSE),\"\"))","v":""},"2c","$U$42","$V$42"]
[14582,{"$f":"Menu!$F$29","v":"X"},{"$f":"Menu!$J$29","v":2020},{"$f":"IF(ISBLANK(INDIRECT(\"'\"&F2759&\"'!\"&G2759)),\"\",INDIRECT(\"'\"&F2759&\"'!\"&G2759))","v":""},{"$f":"IF(ISBLANK(INDIRECT(\"'\"&F2759&\"'!\"&H2759)),\"\",IFERROR(VLOOKUP(TEXT(INDIRECT(\"'\"&F2759&\"'!\"&H2759),\"0\"),Notes!$B$5:$C$100,2,FALSE),\"\"))","v":""},"2c","$W$42","$X$42"]
[14583,{"$f":"Menu!$F$29","v":"X"},{"$f":"Menu!$J$29","v":2020},{"$f":"IF(ISBLANK(INDIRECT(\"'\"&F2760&\"'!\"&G2760)),\"\",INDIRECT(\"'\"&F2760&\"'!\"&G2760))","v":""},{"$f":"IF(ISBLANK(INDIRECT(\"'\"&F2760&\"'!\"&H2760)),\"\",IFERROR(VLOOKUP(TEXT(INDIRECT(\"'\"&F2760&\"'!\"&H2760),\"0\"),Notes!$B$5:$C$100,2,FALSE),\"\"))","v":""},"2c","$Y$42","$Z$42"]
[14584,{"$f":"Menu!$F$29","v":"X"},{"$f":"Menu!$J$29","v":2020},{"$f":"IF(ISBLANK(INDIRECT(\"'\"&F2761&\"'!\"&G2761)),\"\",INDIRECT(\"'\"&F2761&\"'!\"&G2761))","v":""},{"$f":"IF(ISBLANK(INDIRECT(\"'\"&F2761&\"'!\"&H2761)),\"\",IFERROR(VLOOKUP(TEXT(INDIRECT(\"'\"&F2761&\"'!\"&H2761),\"0\"),Notes!$B$5:$C$100,2,FALSE),\"\"))","v":""},"2c","$AA$42","$AB$42"]
[14585,{"$f":"Menu!$F$29","v":"X"},{"$f":"Menu!$J$29","v":2020},{"$f":"IF(ISBLANK(INDIRECT(\"'\"&F2762&\"'!\"&G2762)),\"\",INDIRECT(\"'\"&F2762&\"'!\"&G2762))","v":""},{"$f":"IF(ISBLANK(INDIRECT(\"'\"&F2762&\"'!\"&H2762)),\"\",IFERROR(VLOOKUP(TEXT(INDIRECT(\"'\"&F2762&\"'!\"&H2762),\"0\"),Notes!$B$5:$C$100,2,FALSE),\"\"))","v":""},"2d","$E$12","$F$12"]
[14586,{"$f":"Menu!$F$29","v":"X"},{"$f":"Menu!$J$29","v":2020},{"$f":"IF(ISBLANK(INDIRECT(\"'\"&F2763&\"'!\"&G2763)),\"\",INDIRECT(\"'\"&F2763&\"'!\"&G2763))","v":""},{"$f":"IF(ISBLANK(INDIRECT(\"'\"&F2763&\"'!\"&H2763)),\"\",IFERROR(VLOOKUP(TEXT(INDIRECT(\"'\"&F2763&\"'!\"&H2763),\"0\"),Notes!$B$5:$C$100,2,FALSE),\"\"))","v":""},"2d","$G$12","$H$12"]
[14587,{"$f":"Menu!$F$29","v":"X"},{"$f":"Menu!$J$29","v":2020},{"$f":"IF(ISBLANK(INDIRECT(\"'\"&F2764&\"'!\"&G2764)),\"\",INDIRECT(\"'\"&F2764&\"'!\"&G2764))","v":""},{"$f":"IF(ISBLANK(INDIRECT(\"'\"&F2764&\"'!\"&H2764)),\"\",IFERROR(VLOOKUP(TEXT(INDIRECT(\"'\"&F2764&\"'!\"&H2764),\"0\"),Notes!$B$5:$C$100,2,FALSE),\"\"))","v":""},"2d","$I$12","$J$12"]
[14588,{"$f":"Menu!$F$29","v":"X"},{"$f":"Menu!$J$29","v":2020},{"$f":"IF(ISBLANK(INDIRECT(\"'\"&F2765&\"'!\"&G2765)),\"\",INDIRECT(\"'\"&F2765&\"'!\"&G2765))","v":""},{"$f":"IF(ISBLANK(INDIRECT(\"'\"&F2765&\"'!\"&H2765)),\"\",IFERROR(VLOOKUP(TEXT(INDIRECT(\"'\"&F2765&\"'!\"&H2765),\"0\"),Notes!$B$5:$C$100,2,FALSE),\"\"))","v":""},"2d","$K$12","$L$12"]
[14589,{"$f":"Menu!$F$29","v":"X"},{"$f":"Menu!$J$29","v":2020},{"$f":"IF(ISBLANK(INDIRECT(\"'\"&F2766&\"'!\"&G2766)),\"\",INDIRECT(\"'\"&F2766&\"'!\"&G2766))","v":""},{"$f":"IF(ISBLANK(INDIRECT(\"'\"&F2766&\"'!\"&H2766)),\"\",IFERROR(VLOOKUP(TEXT(INDIRECT(\"'\"&F2766&\"'!\"&H2766),\"0\"),Notes!$B$5:$C$100,2,FALSE),\"\"))","v":""},"2d","$M$12","$N$12"]
[14590,{"$f":"Menu!$F$29","v":"X"},{"$f":"Menu!$J$29","v":2020},{"$f":"IF(ISBLANK(INDIRECT(\"'\"&F2767&\"'!\"&G2767)),\"\",INDIRECT(\"'\"&F2767&\"'!\"&G2767))","v":""},{"$f":"IF(ISBLANK(INDIRECT(\"'\"&F2767&\"'!\"&H2767)),\"\",IFERROR(VLOOKUP(TEXT(INDIRECT(\"'\"&F2767&\"'!\"&H2767),\"0\"),Notes!$B$5:$C$100,2,FALSE),\"\"))","v":""},"2d","$O$12","$P$12"]
[14591,{"$f":"Menu!$F$29","v":"X"},{"$f":"Menu!$J$29","v":2020},{"$f":"IF(ISBLANK(INDIRECT(\"'\"&F2768&\"'!\"&G2768)),\"\",INDIRECT(\"'\"&F2768&\"'!\"&G2768))","v":""},{"$f":"IF(ISBLANK(INDIRECT(\"'\"&F2768&\"'!\"&H2768)),\"\",IFERROR(VLOOKUP(TEXT(INDIRECT(\"'\"&F2768&\"'!\"&H2768),\"0\"),Notes!$B$5:$C$100,2,FALSE),\"\"))","v":""},"2d","$Q$12","$R$12"]
[14592,{"$f":"Menu!$F$29","v":"X"},{"$f":"Menu!$J$29","v":2020},{"$f":"IF(ISBLANK(INDIRECT(\"'\"&F2769&\"'!\"&G2769)),\"\",INDIRECT(\"'\"&F2769&\"'!\"&G2769))","v":""},{"$f":"IF(ISBLANK(INDIRECT(\"'\"&F2769&\"'!\"&H2769)),\"\",IFERROR(VLOOKUP(TEXT(INDIRECT(\"'\"&F2769&\"'!\"&H2769),\"0\"),Notes!$B$5:$C$100,2,FALSE),\"\"))","v":""},"2d","$S$12","$T$12"]
[14593,{"$f":"Menu!$F$29","v":"X"},{"$f":"Menu!$J$29","v":2020},{"$f":"IF(ISBLANK(INDIRECT(\"'\"&F2770&\"'!\"&G2770)),\"\",INDIRECT(\"'\"&F2770&\"'!\"&G2770))","v":""},{"$f":"IF(ISBLANK(INDIRECT(\"'\"&F2770&\"'!\"&H2770)),\"\",IFERROR(VLOOKUP(TEXT(INDIRECT(\"'\"&F2770&\"'!\"&H2770),\"0\"),Notes!$B$5:$C$100,2,FALSE),\"\"))","v":""},"2d","$U$12","$V$12"]
[14594,{"$f":"Menu!$F$29","v":"X"},{"$f":"Menu!$J$29","v":2020},{"$f":"IF(ISBLANK(INDIRECT(\"'\"&F2771&\"'!\"&G2771)),\"\",INDIRECT(\"'\"&F2771&\"'!\"&G2771))","v":""},{"$f":"IF(ISBLANK(INDIRECT(\"'\"&F2771&\"'!\"&H2771)),\"\",IFERROR(VLOOKUP(TEXT(INDIRECT(\"'\"&F2771&\"'!\"&H2771),\"0\"),Notes!$B$5:$C$100,2,FALSE),\"\"))","v":""},"2d","$W$12","$X$12"]
[14595,{"$f":"Menu!$F$29","v":"X"},{"$f":"Menu!$J$29","v":2020},{"$f":"IF(ISBLANK(INDIRECT(\"'\"&F2772&\"'!\"&G2772)),\"\",INDIRECT(\"'\"&F2772&\"'!\"&G2772))","v":""},{"$f":"IF(ISBLANK(INDIRECT(\"'\"&F2772&\"'!\"&H2772)),\"\",IFERROR(VLOOKUP(TEXT(INDIRECT(\"'\"&F2772&\"'!\"&H2772),\"0\"),Notes!$B$5:$C$100,2,FALSE),\"\"))","v":""},"2d","$Y$12","$Z$12"]
[14596,{"$f":"Menu!$F$29","v":"X"},{"$f":"Menu!$J$29","v":2020},{"$f":"IF(ISBLANK(INDIRECT(\"'\"&F2773&\"'!\"&G2773)),\"\",INDIRECT(\"'\"&F2773&\"'!\"&G2773))","v":""},{"$f":"IF(ISBLANK(INDIRECT(\"'\"&F2773&\"'!\"&H2773)),\"\",IFERROR(VLOOKUP(TEXT(INDIRECT(\"'\"&F2773&\"'!\"&H2773),\"0\"),Notes!$B$5:$C$100,2,FALSE),\"\"))","v":""},"2d","$AA$12","$AB$12"]
[14597,{"$f":"Menu!$F$29","v":"X"},{"$f":"Menu!$J$29","v":2020},{"$f":"IF(ISBLANK(INDIRECT(\"'\"&F2774&\"'!\"&G2774)),\"\",INDIRECT(\"'\"&F2774&\"'!\"&G2774))","v":""},{"$f":"IF(ISBLANK(INDIRECT(\"'\"&F2774&\"'!\"&H2774)),\"\",IFERROR(VLOOKUP(TEXT(INDIRECT(\"'\"&F2774&\"'!\"&H2774),\"0\"),Notes!$B$5:$C$100,2,FALSE),\"\"))","v":""},"2d","$AC$12","$AD$12"]
[14598,{"$f":"Menu!$F$29","v":"X"},{"$f":"Menu!$J$29","v":2020},{"$f":"IF(ISBLANK(INDIRECT(\"'\"&F2775&\"'!\"&G2775)),\"\",INDIRECT(\"'\"&F2775&\"'!\"&G2775))","v":""},{"$f":"IF(ISBLANK(INDIRECT(\"'\"&F2775&\"'!\"&H2775)),\"\",IFERROR(VLOOKUP(TEXT(INDIRECT(\"'\"&F2775&\"'!\"&H2775),\"0\"),Notes!$B$5:$C$100,2,FALSE),\"\"))","v":""},"2d","$AE$12","$AF$12"]
[14599,{"$f":"Menu!$F$29","v":"X"},{"$f":"Menu!$J$29","v":2020},{"$f":"IF(ISBLANK(INDIRECT(\"'\"&F2776&\"'!\"&G2776)),\"\",INDIRECT(\"'\"&F2776&\"'!\"&G2776))","v":""},{"$f":"IF(ISBLANK(INDIRECT(\"'\"&F2776&\"'!\"&H2776)),\"\",IFERROR(VLOOKUP(TEXT(INDIRECT(\"'\"&F2776&\"'!\"&H2776),\"0\"),Notes!$B$5:$C$100,2,FALSE),\"\"))","v":""},"2d","$AG$12","$AH$12"]
[14600,{"$f":"Menu!$F$29","v":"X"},{"$f":"Menu!$J$29","v":2020},{"$f":"IF(ISBLANK(INDIRECT(\"'\"&F2777&\"'!\"&G2777)),\"\",INDIRECT(\"'\"&F2777&\"'!\"&G2777))","v":""},{"$f":"IF(ISBLANK(INDIRECT(\"'\"&F2777&\"'!\"&H2777)),\"\",IFERROR(VLOOKUP(TEXT(INDIRECT(\"'\"&F2777&\"'!\"&H2777),\"0\"),Notes!$B$5:$C$100,2,FALSE),\"\"))","v":""},"2d","$E$13","$F$13"]
[14601,{"$f":"Menu!$F$29","v":"X"},{"$f":"Menu!$J$29","v":2020},{"$f":"IF(ISBLANK(INDIRECT(\"'\"&F2778&\"'!\"&G2778)),\"\",INDIRECT(\"'\"&F2778&\"'!\"&G2778))","v":""},{"$f":"IF(ISBLANK(INDIRECT(\"'\"&F2778&\"'!\"&H2778)),\"\",IFERROR(VLOOKUP(TEXT(INDIRECT(\"'\"&F2778&\"'!\"&H2778),\"0\"),Notes!$B$5:$C$100,2,FALSE),\"\"))","v":""},"2d","$G$13","$H$13"]
[14602,{"$f":"Menu!$F$29","v":"X"},{"$f":"Menu!$J$29","v":2020},{"$f":"IF(ISBLANK(INDIRECT(\"'\"&F2779&\"'!\"&G2779)),\"\",INDIRECT(\"'\"&F2779&\"'!\"&G2779))","v":""},{"$f":"IF(ISBLANK(INDIRECT(\"'\"&F2779&\"'!\"&H2779)),\"\",IFERROR(VLOOKUP(TEXT(INDIRECT(\"'\"&F2779&\"'!\"&H2779),\"0\"),Notes!$B$5:$C$100,2,FALSE),\"\"))","v":""},"2d","$I$13","$J$13"]
[14603,{"$f":"Menu!$F$29","v":"X"},{"$f":"Menu!$J$29","v":2020},{"$f":"IF(ISBLANK(INDIRECT(\"'\"&F2780&\"'!\"&G2780)),\"\",INDIRECT(\"'\"&F2780&\"'!\"&G2780))","v":""},{"$f":"IF(ISBLANK(INDIRECT(\"'\"&F2780&\"'!\"&H2780)),\"\",IFERROR(VLOOKUP(TEXT(INDIRECT(\"'\"&F2780&\"'!\"&H2780),\"0\"),Notes!$B$5:$C$100,2,FALSE),\"\"))","v":""},"2d","$K$13","$L$13"]
[14604,{"$f":"Menu!$F$29","v":"X"},{"$f":"Menu!$J$29","v":2020},{"$f":"IF(ISBLANK(INDIRECT(\"'\"&F2781&\"'!\"&G2781)),\"\",INDIRECT(\"'\"&F2781&\"'!\"&G2781))","v":""},{"$f":"IF(ISBLANK(INDIRECT(\"'\"&F2781&\"'!\"&H2781)),\"\",IFERROR(VLOOKUP(TEXT(INDIRECT(\"'\"&F2781&\"'!\"&H2781),\"0\"),Notes!$B$5:$C$100,2,FALSE),\"\"))","v":""},"2d","$M$13","$N$13"]
[14605,{"$f":"Menu!$F$29","v":"X"},{"$f":"Menu!$J$29","v":2020},{"$f":"IF(ISBLANK(INDIRECT(\"'\"&F2782&\"'!\"&G2782)),\"\",INDIRECT(\"'\"&F2782&\"'!\"&G2782))","v":""},{"$f":"IF(ISBLANK(INDIRECT(\"'\"&F2782&\"'!\"&H2782)),\"\",IFERROR(VLOOKUP(TEXT(INDIRECT(\"'\"&F2782&\"'!\"&H2782),\"0\"),Notes!$B$5:$C$100,2,FALSE),\"\"))","v":""},"2d","$O$13","$P$13"]
[14606,{"$f":"Menu!$F$29","v":"X"},{"$f":"Menu!$J$29","v":2020},{"$f":"IF(ISBLANK(INDIRECT(\"'\"&F2783&\"'!\"&G2783)),\"\",INDIRECT(\"'\"&F2783&\"'!\"&G2783))","v":""},{"$f":"IF(ISBLANK(INDIRECT(\"'\"&F2783&\"'!\"&H2783)),\"\",IFERROR(VLOOKUP(TEXT(INDIRECT(\"'\"&F2783&\"'!\"&H2783),\"0\"),Notes!$B$5:$C$100,2,FALSE),\"\"))","v":""},"2d","$Q$13","$R$13"]
[14607,{"$f":"Menu!$F$29","v":"X"},{"$f":"Menu!$J$29","v":2020},{"$f":"IF(ISBLANK(INDIRECT(\"'\"&F2784&\"'!\"&G2784)),\"\",INDIRECT(\"'\"&F2784&\"'!\"&G2784))","v":""},{"$f":"IF(ISBLANK(INDIRECT(\"'\"&F2784&\"'!\"&H2784)),\"\",IFERROR(VLOOKUP(TEXT(INDIRECT(\"'\"&F2784&\"'!\"&H2784),\"0\"),Notes!$B$5:$C$100,2,FALSE),\"\"))","v":""},"2d","$S$13","$T$13"]
[14608,{"$f":"Menu!$F$29","v":"X"},{"$f":"Menu!$J$29","v":2020},{"$f":"IF(ISBLANK(INDIRECT(\"'\"&F2785&\"'!\"&G2785)),\"\",INDIRECT(\"'\"&F2785&\"'!\"&G2785))","v":""},{"$f":"IF(ISBLANK(INDIRECT(\"'\"&F2785&\"'!\"&H2785)),\"\",IFERROR(VLOOKUP(TEXT(INDIRECT(\"'\"&F2785&\"'!\"&H2785),\"0\"),Notes!$B$5:$C$100,2,FALSE),\"\"))","v":""},"2d","$U$13","$V$13"]
[14609,{"$f":"Menu!$F$29","v":"X"},{"$f":"Menu!$J$29","v":2020},{"$f":"IF(ISBLANK(INDIRECT(\"'\"&F2786&\"'!\"&G2786)),\"\",INDIRECT(\"'\"&F2786&\"'!\"&G2786))","v":""},{"$f":"IF(ISBLANK(INDIRECT(\"'\"&F2786&\"'!\"&H2786)),\"\",IFERROR(VLOOKUP(TEXT(INDIRECT(\"'\"&F2786&\"'!\"&H2786),\"0\"),Notes!$B$5:$C$100,2,FALSE),\"\"))","v":""},"2d","$W$13","$X$13"]
[14610,{"$f":"Menu!$F$29","v":"X"},{"$f":"Menu!$J$29","v":2020},{"$f":"IF(ISBLANK(INDIRECT(\"'\"&F2787&\"'!\"&G2787)),\"\",INDIRECT(\"'\"&F2787&\"'!\"&G2787))","v":""},{"$f":"IF(ISBLANK(INDIRECT(\"'\"&F2787&\"'!\"&H2787)),\"\",IFERROR(VLOOKUP(TEXT(INDIRECT(\"'\"&F2787&\"'!\"&H2787),\"0\"),Notes!$B$5:$C$100,2,FALSE),\"\"))","v":""},"2d","$Y$13","$Z$13"]
[14611,{"$f":"Menu!$F$29","v":"X"},{"$f":"Menu!$J$29","v":2020},{"$f":"IF(ISBLANK(INDIRECT(\"'\"&F2788&\"'!\"&G2788)),\"\",INDIRECT(\"'\"&F2788&\"'!\"&G2788))","v":""},{"$f":"IF(ISBLANK(INDIRECT(\"'\"&F2788&\"'!\"&H2788)),\"\",IFERROR(VLOOKUP(TEXT(INDIRECT(\"'\"&F2788&\"'!\"&H2788),\"0\"),Notes!$B$5:$C$100,2,FALSE),\"\"))","v":""},"2d","$AA$13","$AB$13"]
[14612,{"$f":"Menu!$F$29","v":"X"},{"$f":"Menu!$J$29","v":2020},{"$f":"IF(ISBLANK(INDIRECT(\"'\"&F2789&\"'!\"&G2789)),\"\",INDIRECT(\"'\"&F2789&\"'!\"&G2789))","v":""},{"$f":"IF(ISBLANK(INDIRECT(\"'\"&F2789&\"'!\"&H2789)),\"\",IFERROR(VLOOKUP(TEXT(INDIRECT(\"'\"&F2789&\"'!\"&H2789),\"0\"),Notes!$B$5:$C$100,2,FALSE),\"\"))","v":""},"2d","$AC$13","$AD$13"]
[14613,{"$f":"Menu!$F$29","v":"X"},{"$f":"Menu!$J$29","v":2020},{"$f":"IF(ISBLANK(INDIRECT(\"'\"&F2790&\"'!\"&G2790)),\"\",INDIRECT(\"'\"&F2790&\"'!\"&G2790))","v":""},{"$f":"IF(ISBLANK(INDIRECT(\"'\"&F2790&\"'!\"&H2790)),\"\",IFERROR(VLOOKUP(TEXT(INDIRECT(\"'\"&F2790&\"'!\"&H2790),\"0\"),Notes!$B$5:$C$100,2,FALSE),\"\"))","v":""},"2d","$AE$13","$AF$13"]
[14614,{"$f":"Menu!$F$29","v":"X"},{"$f":"Menu!$J$29","v":2020},{"$f":"IF(ISBLANK(INDIRECT(\"'\"&F2791&\"'!\"&G2791)),\"\",INDIRECT(\"'\"&F2791&\"'!\"&G2791))","v":""},{"$f":"IF(ISBLANK(INDIRECT(\"'\"&F2791&\"'!\"&H2791)),\"\",IFERROR(VLOOKUP(TEXT(INDIRECT(\"'\"&F2791&\"'!\"&H2791),\"0\"),Notes!$B$5:$C$100,2,FALSE),\"\"))","v":""},"2d","$AG$13","$AH$13"]
[14615,{"$f":"Menu!$F$29","v":"X"},{"$f":"Menu!$J$29","v":2020},{"$f":"IF(ISBLANK(INDIRECT(\"'\"&F2792&\"'!\"&G2792)),\"\",INDIRECT(\"'\"&F2792&\"'!\"&G2792))","v":""},{"$f":"IF(ISBLANK(INDIRECT(\"'\"&F2792&\"'!\"&H2792)),\"\",IFERROR(VLOOKUP(TEXT(INDIRECT(\"'\"&F2792&\"'!\"&H2792),\"0\"),Notes!$B$5:$C$100,2,FALSE),\"\"))","v":""},"2d","$E$14","$F$14"]
[14616,{"$f":"Menu!$F$29","v":"X"},{"$f":"Menu!$J$29","v":2020},{"$f":"IF(ISBLANK(INDIRECT(\"'\"&F2793&\"'!\"&G2793)),\"\",INDIRECT(\"'\"&F2793&\"'!\"&G2793))","v":""},{"$f":"IF(ISBLANK(INDIRECT(\"'\"&F2793&\"'!\"&H2793)),\"\",IFERROR(VLOOKUP(TEXT(INDIRECT(\"'\"&F2793&\"'!\"&H2793),\"0\"),Notes!$B$5:$C$100,2,FALSE),\"\"))","v":""},"2d","$G$14","$H$14"]
[14617,{"$f":"Menu!$F$29","v":"X"},{"$f":"Menu!$J$29","v":2020},{"$f":"IF(ISBLANK(INDIRECT(\"'\"&F2794&\"'!\"&G2794)),\"\",INDIRECT(\"'\"&F2794&\"'!\"&G2794))","v":""},{"$f":"IF(ISBLANK(INDIRECT(\"'\"&F2794&\"'!\"&H2794)),\"\",IFERROR(VLOOKUP(TEXT(INDIRECT(\"'\"&F2794&\"'!\"&H2794),\"0\"),Notes!$B$5:$C$100,2,FALSE),\"\"))","v":""},"2d","$I$14","$J$14"]
[14618,{"$f":"Menu!$F$29","v":"X"},{"$f":"Menu!$J$29","v":2020},{"$f":"IF(ISBLANK(INDIRECT(\"'\"&F2795&\"'!\"&G2795)),\"\",INDIRECT(\"'\"&F2795&\"'!\"&G2795))","v":""},{"$f":"IF(ISBLANK(INDIRECT(\"'\"&F2795&\"'!\"&H2795)),\"\",IFERROR(VLOOKUP(TEXT(INDIRECT(\"'\"&F2795&\"'!\"&H2795),\"0\"),Notes!$B$5:$C$100,2,FALSE),\"\"))","v":""},"2d","$K$14","$L$14"]
[14619,{"$f":"Menu!$F$29","v":"X"},{"$f":"Menu!$J$29","v":2020},{"$f":"IF(ISBLANK(INDIRECT(\"'\"&F2796&\"'!\"&G2796)),\"\",INDIRECT(\"'\"&F2796&\"'!\"&G2796))","v":""},{"$f":"IF(ISBLANK(INDIRECT(\"'\"&F2796&\"'!\"&H2796)),\"\",IFERROR(VLOOKUP(TEXT(INDIRECT(\"'\"&F2796&\"'!\"&H2796),\"0\"),Notes!$B$5:$C$100,2,FALSE),\"\"))","v":""},"2d","$M$14","$N$14"]
[14620,{"$f":"Menu!$F$29","v":"X"},{"$f":"Menu!$J$29","v":2020},{"$f":"IF(ISBLANK(INDIRECT(\"'\"&F2797&\"'!\"&G2797)),\"\",INDIRECT(\"'\"&F2797&\"'!\"&G2797))","v":""},{"$f":"IF(ISBLANK(INDIRECT(\"'\"&F2797&\"'!\"&H2797)),\"\",IFERROR(VLOOKUP(TEXT(INDIRECT(\"'\"&F2797&\"'!\"&H2797),\"0\"),Notes!$B$5:$C$100,2,FALSE),\"\"))","v":""},"2d","$O$14","$P$14"]
[14621,{"$f":"Menu!$F$29","v":"X"},{"$f":"Menu!$J$29","v":2020},{"$f":"IF(ISBLANK(INDIRECT(\"'\"&F2798&\"'!\"&G2798)),\"\",INDIRECT(\"'\"&F2798&\"'!\"&G2798))","v":""},{"$f":"IF(ISBLANK(INDIRECT(\"'\"&F2798&\"'!\"&H2798)),\"\",IFERROR(VLOOKUP(TEXT(INDIRECT(\"'\"&F2798&\"'!\"&H2798),\"0\"),Notes!$B$5:$C$100,2,FALSE),\"\"))","v":""},"2d","$Q$14","$R$14"]
[14622,{"$f":"Menu!$F$29","v":"X"},{"$f":"Menu!$J$29","v":2020},{"$f":"IF(ISBLANK(INDIRECT(\"'\"&F2799&\"'!\"&G2799)),\"\",INDIRECT(\"'\"&F2799&\"'!\"&G2799))","v":""},{"$f":"IF(ISBLANK(INDIRECT(\"'\"&F2799&\"'!\"&H2799)),\"\",IFERROR(VLOOKUP(TEXT(INDIRECT(\"'\"&F2799&\"'!\"&H2799),\"0\"),Notes!$B$5:$C$100,2,FALSE),\"\"))","v":""},"2d","$S$14","$T$14"]
[14623,{"$f":"Menu!$F$29","v":"X"},{"$f":"Menu!$J$29","v":2020},{"$f":"IF(ISBLANK(INDIRECT(\"'\"&F2800&\"'!\"&G2800)),\"\",INDIRECT(\"'\"&F2800&\"'!\"&G2800))","v":""},{"$f":"IF(ISBLANK(INDIRECT(\"'\"&F2800&\"'!\"&H2800)),\"\",IFERROR(VLOOKUP(TEXT(INDIRECT(\"'\"&F2800&\"'!\"&H2800),\"0\"),Notes!$B$5:$C$100,2,FALSE),\"\"))","v":""},"2d","$U$14","$V$14"]
[14624,{"$f":"Menu!$F$29","v":"X"},{"$f":"Menu!$J$29","v":2020},{"$f":"IF(ISBLANK(INDIRECT(\"'\"&F2801&\"'!\"&G2801)),\"\",INDIRECT(\"'\"&F2801&\"'!\"&G2801))","v":""},{"$f":"IF(ISBLANK(INDIRECT(\"'\"&F2801&\"'!\"&H2801)),\"\",IFERROR(VLOOKUP(TEXT(INDIRECT(\"'\"&F2801&\"'!\"&H2801),\"0\"),Notes!$B$5:$C$100,2,FALSE),\"\"))","v":""},"2d","$W$14","$X$14"]
[14625,{"$f":"Menu!$F$29","v":"X"},{"$f":"Menu!$J$29","v":2020},{"$f":"IF(ISBLANK(INDIRECT(\"'\"&F2802&\"'!\"&G2802)),\"\",INDIRECT(\"'\"&F2802&\"'!\"&G2802))","v":""},{"$f":"IF(ISBLANK(INDIRECT(\"'\"&F2802&\"'!\"&H2802)),\"\",IFERROR(VLOOKUP(TEXT(INDIRECT(\"'\"&F2802&\"'!\"&H2802),\"0\"),Notes!$B$5:$C$100,2,FALSE),\"\"))","v":""},"2d","$Y$14","$Z$14"]
[14626,{"$f":"Menu!$F$29","v":"X"},{"$f":"Menu!$J$29","v":2020},{"$f":"IF(ISBLANK(INDIRECT(\"'\"&F2803&\"'!\"&G2803)),\"\",INDIRECT(\"'\"&F2803&\"'!\"&G2803))","v":""},{"$f":"IF(ISBLANK(INDIRECT(\"'\"&F2803&\"'!\"&H2803)),\"\",IFERROR(VLOOKUP(TEXT(INDIRECT(\"'\"&F2803&\"'!\"&H2803),\"0\"),Notes!$B$5:$C$100,2,FALSE),\"\"))","v":""},"2d","$AA$14","$AB$14"]
[14627,{"$f":"Menu!$F$29","v":"X"},{"$f":"Menu!$J$29","v":2020},{"$f":"IF(ISBLANK(INDIRECT(\"'\"&F2804&\"'!\"&G2804)),\"\",INDIRECT(\"'\"&F2804&\"'!\"&G2804))","v":""},{"$f":"IF(ISBLANK(INDIRECT(\"'\"&F2804&\"'!\"&H2804)),\"\",IFERROR(VLOOKUP(TEXT(INDIRECT(\"'\"&F2804&\"'!\"&H2804),\"0\"),Notes!$B$5:$C$100,2,FALSE),\"\"))","v":""},"2d","$AC$14","$AD$14"]
[14628,{"$f":"Menu!$F$29","v":"X"},{"$f":"Menu!$J$29","v":2020},{"$f":"IF(ISBLANK(INDIRECT(\"'\"&F2805&\"'!\"&G2805)),\"\",INDIRECT(\"'\"&F2805&\"'!\"&G2805))","v":""},{"$f":"IF(ISBLANK(INDIRECT(\"'\"&F2805&\"'!\"&H2805)),\"\",IFERROR(VLOOKUP(TEXT(INDIRECT(\"'\"&F2805&\"'!\"&H2805),\"0\"),Notes!$B$5:$C$100,2,FALSE),\"\"))","v":""},"2d","$AE$14","$AF$14"]
[14629,{"$f":"Menu!$F$29","v":"X"},{"$f":"Menu!$J$29","v":2020},{"$f":"IF(ISBLANK(INDIRECT(\"'\"&F2806&\"'!\"&G2806)),\"\",INDIRECT(\"'\"&F2806&\"'!\"&G2806))","v":""},{"$f":"IF(ISBLANK(INDIRECT(\"'\"&F2806&\"'!\"&H2806)),\"\",IFERROR(VLOOKUP(TEXT(INDIRECT(\"'\"&F2806&\"'!\"&H2806),\"0\"),Notes!$B$5:$C$100,2,FALSE),\"\"))","v":""},"2d","$AG$14","$AH$14"]
[14630,{"$f":"Menu!$F$29","v":"X"},{"$f":"Menu!$J$29","v":2020},{"$f":"IF(ISBLANK(INDIRECT(\"'\"&F2807&\"'!\"&G2807)),\"\",INDIRECT(\"'\"&F2807&\"'!\"&G2807))","v":""},{"$f":"IF(ISBLANK(INDIRECT(\"'\"&F2807&\"'!\"&H2807)),\"\",IFERROR(VLOOKUP(TEXT(INDIRECT(\"'\"&F2807&\"'!\"&H2807),\"0\"),Notes!$B$5:$C$100,2,FALSE),\"\"))","v":""},"2d","$E$70","$F$70"]
[14631,{"$f":"Menu!$F$29","v":"X"},{"$f":"Menu!$J$29","v":2020},{"$f":"IF(ISBLANK(INDIRECT(\"'\"&F2808&\"'!\"&G2808)),\"\",INDIRECT(\"'\"&F2808&\"'!\"&G2808))","v":""},{"$f":"IF(ISBLANK(INDIRECT(\"'\"&F2808&\"'!\"&H2808)),\"\",IFERROR(VLOOKUP(TEXT(INDIRECT(\"'\"&F2808&\"'!\"&H2808),\"0\"),Notes!$B$5:$C$100,2,FALSE),\"\"))","v":""},"2d","$G$70","$H$70"]
[14632,{"$f":"Menu!$F$29","v":"X"},{"$f":"Menu!$J$29","v":2020},{"$f":"IF(ISBLANK(INDIRECT(\"'\"&F2809&\"'!\"&G2809)),\"\",INDIRECT(\"'\"&F2809&\"'!\"&G2809))","v":""},{"$f":"IF(ISBLANK(INDIRECT(\"'\"&F2809&\"'!\"&H2809)),\"\",IFERROR(VLOOKUP(TEXT(INDIRECT(\"'\"&F2809&\"'!\"&H2809),\"0\"),Notes!$B$5:$C$100,2,FALSE),\"\"))","v":""},"2d","$I$70","$J$70"]
[14633,{"$f":"Menu!$F$29","v":"X"},{"$f":"Menu!$J$29","v":2020},{"$f":"IF(ISBLANK(INDIRECT(\"'\"&F2810&\"'!\"&G2810)),\"\",INDIRECT(\"'\"&F2810&\"'!\"&G2810))","v":""},{"$f":"IF(ISBLANK(INDIRECT(\"'\"&F2810&\"'!\"&H2810)),\"\",IFERROR(VLOOKUP(TEXT(INDIRECT(\"'\"&F2810&\"'!\"&H2810),\"0\"),Notes!$B$5:$C$100,2,FALSE),\"\"))","v":""},"2d","$K$70","$L$70"]
[14634,{"$f":"Menu!$F$29","v":"X"},{"$f":"Menu!$J$29","v":2020},{"$f":"IF(ISBLANK(INDIRECT(\"'\"&F2811&\"'!\"&G2811)),\"\",INDIRECT(\"'\"&F2811&\"'!\"&G2811))","v":""},{"$f":"IF(ISBLANK(INDIRECT(\"'\"&F2811&\"'!\"&H2811)),\"\",IFERROR(VLOOKUP(TEXT(INDIRECT(\"'\"&F2811&\"'!\"&H2811),\"0\"),Notes!$B$5:$C$100,2,FALSE),\"\"))","v":""},"2d","$M$70","$N$70"]
[14635,{"$f":"Menu!$F$29","v":"X"},{"$f":"Menu!$J$29","v":2020},{"$f":"IF(ISBLANK(INDIRECT(\"'\"&F2812&\"'!\"&G2812)),\"\",INDIRECT(\"'\"&F2812&\"'!\"&G2812))","v":""},{"$f":"IF(ISBLANK(INDIRECT(\"'\"&F2812&\"'!\"&H2812)),\"\",IFERROR(VLOOKUP(TEXT(INDIRECT(\"'\"&F2812&\"'!\"&H2812),\"0\"),Notes!$B$5:$C$100,2,FALSE),\"\"))","v":""},"2d","$O$70","$P$70"]
[14636,{"$f":"Menu!$F$29","v":"X"},{"$f":"Menu!$J$29","v":2020},{"$f":"IF(ISBLANK(INDIRECT(\"'\"&F2813&\"'!\"&G2813)),\"\",INDIRECT(\"'\"&F2813&\"'!\"&G2813))","v":""},{"$f":"IF(ISBLANK(INDIRECT(\"'\"&F2813&\"'!\"&H2813)),\"\",IFERROR(VLOOKUP(TEXT(INDIRECT(\"'\"&F2813&\"'!\"&H2813),\"0\"),Notes!$B$5:$C$100,2,FALSE),\"\"))","v":""},"2d","$Q$70","$R$70"]
[14637,{"$f":"Menu!$F$29","v":"X"},{"$f":"Menu!$J$29","v":2020},{"$f":"IF(ISBLANK(INDIRECT(\"'\"&F2814&\"'!\"&G2814)),\"\",INDIRECT(\"'\"&F2814&\"'!\"&G2814))","v":""},{"$f":"IF(ISBLANK(INDIRECT(\"'\"&F2814&\"'!\"&H2814)),\"\",IFERROR(VLOOKUP(TEXT(INDIRECT(\"'\"&F2814&\"'!\"&H2814),\"0\"),Notes!$B$5:$C$100,2,FALSE),\"\"))","v":""},"2d","$S$70","$T$70"]
[14638,{"$f":"Menu!$F$29","v":"X"},{"$f":"Menu!$J$29","v":2020},{"$f":"IF(ISBLANK(INDIRECT(\"'\"&F2815&\"'!\"&G2815)),\"\",INDIRECT(\"'\"&F2815&\"'!\"&G2815))","v":""},{"$f":"IF(ISBLANK(INDIRECT(\"'\"&F2815&\"'!\"&H2815)),\"\",IFERROR(VLOOKUP(TEXT(INDIRECT(\"'\"&F2815&\"'!\"&H2815),\"0\"),Notes!$B$5:$C$100,2,FALSE),\"\"))","v":""},"2d","$U$70","$V$70"]
[14639,{"$f":"Menu!$F$29","v":"X"},{"$f":"Menu!$J$29","v":2020},{"$f":"IF(ISBLANK(INDIRECT(\"'\"&F2816&\"'!\"&G2816)),\"\",INDIRECT(\"'\"&F2816&\"'!\"&G2816))","v":""},{"$f":"IF(ISBLANK(INDIRECT(\"'\"&F2816&\"'!\"&H2816)),\"\",IFERROR(VLOOKUP(TEXT(INDIRECT(\"'\"&F2816&\"'!\"&H2816),\"0\"),Notes!$B$5:$C$100,2,FALSE),\"\"))","v":""},"2d","$W$70","$X$70"]
[14640,{"$f":"Menu!$F$29","v":"X"},{"$f":"Menu!$J$29","v":2020},{"$f":"IF(ISBLANK(INDIRECT(\"'\"&F2817&\"'!\"&G2817)),\"\",INDIRECT(\"'\"&F2817&\"'!\"&G2817))","v":""},{"$f":"IF(ISBLANK(INDIRECT(\"'\"&F2817&\"'!\"&H2817)),\"\",IFERROR(VLOOKUP(TEXT(INDIRECT(\"'\"&F2817&\"'!\"&H2817),\"0\"),Notes!$B$5:$C$100,2,FALSE),\"\"))","v":""},"2d","$Y$70","$Z$70"]
[14641,{"$f":"Menu!$F$29","v":"X"},{"$f":"Menu!$J$29","v":2020},{"$f":"IF(ISBLANK(INDIRECT(\"'\"&F2818&\"'!\"&G2818)),\"\",INDIRECT(\"'\"&F2818&\"'!\"&G2818))","v":""},{"$f":"IF(ISBLANK(INDIRECT(\"'\"&F2818&\"'!\"&H2818)),\"\",IFERROR(VLOOKUP(TEXT(INDIRECT(\"'\"&F2818&\"'!\"&H2818),\"0\"),Notes!$B$5:$C$100,2,FALSE),\"\"))","v":""},"2d","$AA$70",{"$f":"IF(LEN(TRIM(MID(G2818,4,10)))-LEN(SUBSTITUTE(TRIM(MID(G2818,4,10)),\"$\",\"\"))=0,\"$\"&CHAR(CODE(MID(G2818,2,1))+1)&\"$\"&TRIM(MID(G2818,4,10)),\"$\"&MID(G2818,2,1)&CHAR(CODE(MID(G2818,3,1))+1)&\"$\"&TRIM(MID(G2818,5,11)))","v":"$AB$70"}]
[14642,{"$f":"Menu!$F$29","v":"X"},{"$f":"Menu!$J$29","v":2020},{"$f":"IF(ISBLANK(INDIRECT(\"'\"&F2819&\"'!\"&G2819)),\"\",INDIRECT(\"'\"&F2819&\"'!\"&G2819))","v":""},{"$f":"IF(ISBLANK(INDIRECT(\"'\"&F2819&\"'!\"&H2819)),\"\",IFERROR(VLOOKUP(TEXT(INDIRECT(\"'\"&F2819&\"'!\"&H2819),\"0\"),Notes!$B$5:$C$100,2,FALSE),\"\"))","v":""},"2d","$AC$70","$AD$70"]
[14643,{"$f":"Menu!$F$29","v":"X"},{"$f":"Menu!$J$29","v":2020},{"$f":"IF(ISBLANK(INDIRECT(\"'\"&F2820&\"'!\"&G2820)),\"\",INDIRECT(\"'\"&F2820&\"'!\"&G2820))","v":""},{"$f":"IF(ISBLANK(INDIRECT(\"'\"&F2820&\"'!\"&H2820)),\"\",IFERROR(VLOOKUP(TEXT(INDIRECT(\"'\"&F2820&\"'!\"&H2820),\"0\"),Notes!$B$5:$C$100,2,FALSE),\"\"))","v":""},"2d","$AE$70","$AF$70"]
[14644,{"$f":"Menu!$F$29","v":"X"},{"$f":"Menu!$J$29","v":2020},{"$f":"IF(ISBLANK(INDIRECT(\"'\"&F2821&\"'!\"&G2821)),\"\",INDIRECT(\"'\"&F2821&\"'!\"&G2821))","v":""},{"$f":"IF(ISBLANK(INDIRECT(\"'\"&F2821&\"'!\"&H2821)),\"\",IFERROR(VLOOKUP(TEXT(INDIRECT(\"'\"&F2821&\"'!\"&H2821),\"0\"),Notes!$B$5:$C$100,2,FALSE),\"\"))","v":""},"2d","$AG$70","$AH$70"]
[14645,{"$f":"Menu!$F$29","v":"X"},{"$f":"Menu!$J$29","v":2020},{"$f":"IF(ISBLANK(INDIRECT(\"'\"&F2822&\"'!\"&G2822)),\"\",INDIRECT(\"'\"&F2822&\"'!\"&G2822))","v":""},{"$f":"IF(ISBLANK(INDIRECT(\"'\"&F2822&\"'!\"&H2822)),\"\",IFERROR(VLOOKUP(TEXT(INDIRECT(\"'\"&F2822&\"'!\"&H2822),\"0\"),Notes!$B$5:$C$100,2,FALSE),\"\"))","v":""},"2d","$E$27","$F$27"]
[14646,{"$f":"Menu!$F$29","v":"X"},{"$f":"Menu!$J$29","v":2020},{"$f":"IF(ISBLANK(INDIRECT(\"'\"&F2823&\"'!\"&G2823)),\"\",INDIRECT(\"'\"&F2823&\"'!\"&G2823))","v":""},{"$f":"IF(ISBLANK(INDIRECT(\"'\"&F2823&\"'!\"&H2823)),\"\",IFERROR(VLOOKUP(TEXT(INDIRECT(\"'\"&F2823&\"'!\"&H2823),\"0\"),Notes!$B$5:$C$100,2,FALSE),\"\"))","v":""},"2d","$G$27","$H$27"]
[14647,{"$f":"Menu!$F$29","v":"X"},{"$f":"Menu!$J$29","v":2020},{"$f":"IF(ISBLANK(INDIRECT(\"'\"&F2824&\"'!\"&G2824)),\"\",INDIRECT(\"'\"&F2824&\"'!\"&G2824))","v":""},{"$f":"IF(ISBLANK(INDIRECT(\"'\"&F2824&\"'!\"&H2824)),\"\",IFERROR(VLOOKUP(TEXT(INDIRECT(\"'\"&F2824&\"'!\"&H2824),\"0\"),Notes!$B$5:$C$100,2,FALSE),\"\"))","v":""},"2d","$I$27","$J$27"]
[14648,{"$f":"Menu!$F$29","v":"X"},{"$f":"Menu!$J$29","v":2020},{"$f":"IF(ISBLANK(INDIRECT(\"'\"&F2825&\"'!\"&G2825)),\"\",INDIRECT(\"'\"&F2825&\"'!\"&G2825))","v":""},{"$f":"IF(ISBLANK(INDIRECT(\"'\"&F2825&\"'!\"&H2825)),\"\",IFERROR(VLOOKUP(TEXT(INDIRECT(\"'\"&F2825&\"'!\"&H2825),\"0\"),Notes!$B$5:$C$100,2,FALSE),\"\"))","v":""},"2d","$K$27","$L$27"]
[14649,{"$f":"Menu!$F$29","v":"X"},{"$f":"Menu!$J$29","v":2020},{"$f":"IF(ISBLANK(INDIRECT(\"'\"&F2826&\"'!\"&G2826)),\"\",INDIRECT(\"'\"&F2826&\"'!\"&G2826))","v":""},{"$f":"IF(ISBLANK(INDIRECT(\"'\"&F2826&\"'!\"&H2826)),\"\",IFERROR(VLOOKUP(TEXT(INDIRECT(\"'\"&F2826&\"'!\"&H2826),\"0\"),Notes!$B$5:$C$100,2,FALSE),\"\"))","v":""},"2d","$M$27","$N$27"]
[14650,{"$f":"Menu!$F$29","v":"X"},{"$f":"Menu!$J$29","v":2020},{"$f":"IF(ISBLANK(INDIRECT(\"'\"&F2827&\"'!\"&G2827)),\"\",INDIRECT(\"'\"&F2827&\"'!\"&G2827))","v":""},{"$f":"IF(ISBLANK(INDIRECT(\"'\"&F2827&\"'!\"&H2827)),\"\",IFERROR(VLOOKUP(TEXT(INDIRECT(\"'\"&F2827&\"'!\"&H2827),\"0\"),Notes!$B$5:$C$100,2,FALSE),\"\"))","v":""},"2d","$O$27","$P$27"]
[14651,{"$f":"Menu!$F$29","v":"X"},{"$f":"Menu!$J$29","v":2020},{"$f":"IF(ISBLANK(INDIRECT(\"'\"&F2828&\"'!\"&G2828)),\"\",INDIRECT(\"'\"&F2828&\"'!\"&G2828))","v":""},{"$f":"IF(ISBLANK(INDIRECT(\"'\"&F2828&\"'!\"&H2828)),\"\",IFERROR(VLOOKUP(TEXT(INDIRECT(\"'\"&F2828&\"'!\"&H2828),\"0\"),Notes!$B$5:$C$100,2,FALSE),\"\"))","v":""},"2d","$Q$27","$R$27"]
[14652,{"$f":"Menu!$F$29","v":"X"},{"$f":"Menu!$J$29","v":2020},{"$f":"IF(ISBLANK(INDIRECT(\"'\"&F2829&\"'!\"&G2829)),\"\",INDIRECT(\"'\"&F2829&\"'!\"&G2829))","v":""},{"$f":"IF(ISBLANK(INDIRECT(\"'\"&F2829&\"'!\"&H2829)),\"\",IFERROR(VLOOKUP(TEXT(INDIRECT(\"'\"&F2829&\"'!\"&H2829),\"0\"),Notes!$B$5:$C$100,2,FALSE),\"\"))","v":""},"2d","$S$27","$T$27"]
[14653,{"$f":"Menu!$F$29","v":"X"},{"$f":"Menu!$J$29","v":2020},{"$f":"IF(ISBLANK(INDIRECT(\"'\"&F2830&\"'!\"&G2830)),\"\",INDIRECT(\"'\"&F2830&\"'!\"&G2830))","v":""},{"$f":"IF(ISBLANK(INDIRECT(\"'\"&F2830&\"'!\"&H2830)),\"\",IFERROR(VLOOKUP(TEXT(INDIRECT(\"'\"&F2830&\"'!\"&H2830),\"0\"),Notes!$B$5:$C$100,2,FALSE),\"\"))","v":""},"2d","$U$27","$V$27"]
[14654,{"$f":"Menu!$F$29","v":"X"},{"$f":"Menu!$J$29","v":2020},{"$f":"IF(ISBLANK(INDIRECT(\"'\"&F2831&\"'!\"&G2831)),\"\",INDIRECT(\"'\"&F2831&\"'!\"&G2831))","v":""},{"$f":"IF(ISBLANK(INDIRECT(\"'\"&F2831&\"'!\"&H2831)),\"\",IFERROR(VLOOKUP(TEXT(INDIRECT(\"'\"&F2831&\"'!\"&H2831),\"0\"),Notes!$B$5:$C$100,2,FALSE),\"\"))","v":""},"2d","$W$27","$X$27"]
[14655,{"$f":"Menu!$F$29","v":"X"},{"$f":"Menu!$J$29","v":2020},{"$f":"IF(ISBLANK(INDIRECT(\"'\"&F2832&\"'!\"&G2832)),\"\",INDIRECT(\"'\"&F2832&\"'!\"&G2832))","v":""},{"$f":"IF(ISBLANK(INDIRECT(\"'\"&F2832&\"'!\"&H2832)),\"\",IFERROR(VLOOKUP(TEXT(INDIRECT(\"'\"&F2832&\"'!\"&H2832),\"0\"),Notes!$B$5:$C$100,2,FALSE),\"\"))","v":""},"2d","$Y$27","$Z$27"]
[14656,{"$f":"Menu!$F$29","v":"X"},{"$f":"Menu!$J$29","v":2020},{"$f":"IF(ISBLANK(INDIRECT(\"'\"&F2833&\"'!\"&G2833)),\"\",INDIRECT(\"'\"&F2833&\"'!\"&G2833))","v":""},{"$f":"IF(ISBLANK(INDIRECT(\"'\"&F2833&\"'!\"&H2833)),\"\",IFERROR(VLOOKUP(TEXT(INDIRECT(\"'\"&F2833&\"'!\"&H2833),\"0\"),Notes!$B$5:$C$100,2,FALSE),\"\"))","v":""},"2d","$AA$27","$AB$27"]
[14657,{"$f":"Menu!$F$29","v":"X"},{"$f":"Menu!$J$29","v":2020},{"$f":"IF(ISBLANK(INDIRECT(\"'\"&F2834&\"'!\"&G2834)),\"\",INDIRECT(\"'\"&F2834&\"'!\"&G2834))","v":""},{"$f":"IF(ISBLANK(INDIRECT(\"'\"&F2834&\"'!\"&H2834)),\"\",IFERROR(VLOOKUP(TEXT(INDIRECT(\"'\"&F2834&\"'!\"&H2834),\"0\"),Notes!$B$5:$C$100,2,FALSE),\"\"))","v":""},"2d","$AC$27","$AD$27"]
[14658,{"$f":"Menu!$F$29","v":"X"},{"$f":"Menu!$J$29","v":2020},{"$f":"IF(ISBLANK(INDIRECT(\"'\"&F2835&\"'!\"&G2835)),\"\",INDIRECT(\"'\"&F2835&\"'!\"&G2835))","v":""},{"$f":"IF(ISBLANK(INDIRECT(\"'\"&F2835&\"'!\"&H2835)),\"\",IFERROR(VLOOKUP(TEXT(INDIRECT(\"'\"&F2835&\"'!\"&H2835),\"0\"),Notes!$B$5:$C$100,2,FALSE),\"\"))","v":""},"2d","$AE$27","$AF$27"]
[14659,{"$f":"Menu!$F$29","v":"X"},{"$f":"Menu!$J$29","v":2020},{"$f":"IF(ISBLANK(INDIRECT(\"'\"&F2836&\"'!\"&G2836)),\"\",INDIRECT(\"'\"&F2836&\"'!\"&G2836))","v":""},{"$f":"IF(ISBLANK(INDIRECT(\"'\"&F2836&\"'!\"&H2836)),\"\",IFERROR(VLOOKUP(TEXT(INDIRECT(\"'\"&F2836&\"'!\"&H2836),\"0\"),Notes!$B$5:$C$100,2,FALSE),\"\"))","v":""},"2d","$AG$27","$AH$27"]
[14660,{"$f":"Menu!$F$29","v":"X"},{"$f":"Menu!$J$29","v":2020},{"$f":"IF(ISBLANK(INDIRECT(\"'\"&F2837&\"'!\"&G2837)),\"\",INDIRECT(\"'\"&F2837&\"'!\"&G2837))","v":""},{"$f":"IF(ISBLANK(INDIRECT(\"'\"&F2837&\"'!\"&H2837)),\"\",IFERROR(VLOOKUP(TEXT(INDIRECT(\"'\"&F2837&\"'!\"&H2837),\"0\"),Notes!$B$5:$C$100,2,FALSE),\"\"))","v":""},"2d","$E$92","$F$92"]
[14661,{"$f":"Menu!$F$29","v":"X"},{"$f":"Menu!$J$29","v":2020},{"$f":"IF(ISBLANK(INDIRECT(\"'\"&F2838&\"'!\"&G2838)),\"\",INDIRECT(\"'\"&F2838&\"'!\"&G2838))","v":""},{"$f":"IF(ISBLANK(INDIRECT(\"'\"&F2838&\"'!\"&H2838)),\"\",IFERROR(VLOOKUP(TEXT(INDIRECT(\"'\"&F2838&\"'!\"&H2838),\"0\"),Notes!$B$5:$C$100,2,FALSE),\"\"))","v":""},"2d","$G$92","$H$92"]
[14662,{"$f":"Menu!$F$29","v":"X"},{"$f":"Menu!$J$29","v":2020},{"$f":"IF(ISBLANK(INDIRECT(\"'\"&F2839&\"'!\"&G2839)),\"\",INDIRECT(\"'\"&F2839&\"'!\"&G2839))","v":""},{"$f":"IF(ISBLANK(INDIRECT(\"'\"&F2839&\"'!\"&H2839)),\"\",IFERROR(VLOOKUP(TEXT(INDIRECT(\"'\"&F2839&\"'!\"&H2839),\"0\"),Notes!$B$5:$C$100,2,FALSE),\"\"))","v":""},"2d","$I$92","$J$92"]
[14663,{"$f":"Menu!$F$29","v":"X"},{"$f":"Menu!$J$29","v":2020},{"$f":"IF(ISBLANK(INDIRECT(\"'\"&F2840&\"'!\"&G2840)),\"\",INDIRECT(\"'\"&F2840&\"'!\"&G2840))","v":""},{"$f":"IF(ISBLANK(INDIRECT(\"'\"&F2840&\"'!\"&H2840)),\"\",IFERROR(VLOOKUP(TEXT(INDIRECT(\"'\"&F2840&\"'!\"&H2840),\"0\"),Notes!$B$5:$C$100,2,FALSE),\"\"))","v":""},"2d","$K$92","$L$92"]
[14664,{"$f":"Menu!$F$29","v":"X"},{"$f":"Menu!$J$29","v":2020},{"$f":"IF(ISBLANK(INDIRECT(\"'\"&F2841&\"'!\"&G2841)),\"\",INDIRECT(\"'\"&F2841&\"'!\"&G2841))","v":""},{"$f":"IF(ISBLANK(INDIRECT(\"'\"&F2841&\"'!\"&H2841)),\"\",IFERROR(VLOOKUP(TEXT(INDIRECT(\"'\"&F2841&\"'!\"&H2841),\"0\"),Notes!$B$5:$C$100,2,FALSE),\"\"))","v":""},"2d","$M$92","$N$92"]
[14665,{"$f":"Menu!$F$29","v":"X"},{"$f":"Menu!$J$29","v":2020},{"$f":"IF(ISBLANK(INDIRECT(\"'\"&F2842&\"'!\"&G2842)),\"\",INDIRECT(\"'\"&F2842&\"'!\"&G2842))","v":""},{"$f":"IF(ISBLANK(INDIRECT(\"'\"&F2842&\"'!\"&H2842)),\"\",IFERROR(VLOOKUP(TEXT(INDIRECT(\"'\"&F2842&\"'!\"&H2842),\"0\"),Notes!$B$5:$C$100,2,FALSE),\"\"))","v":""},"2d","$O$92","$P$92"]
[14666,{"$f":"Menu!$F$29","v":"X"},{"$f":"Menu!$J$29","v":2020},{"$f":"IF(ISBLANK(INDIRECT(\"'\"&F2843&\"'!\"&G2843)),\"\",INDIRECT(\"'\"&F2843&\"'!\"&G2843))","v":""},{"$f":"IF(ISBLANK(INDIRECT(\"'\"&F2843&\"'!\"&H2843)),\"\",IFERROR(VLOOKUP(TEXT(INDIRECT(\"'\"&F2843&\"'!\"&H2843),\"0\"),Notes!$B$5:$C$100,2,FALSE),\"\"))","v":""},"2d","$Q$92","$R$92"]
[14667,{"$f":"Menu!$F$29","v":"X"},{"$f":"Menu!$J$29","v":2020},{"$f":"IF(ISBLANK(INDIRECT(\"'\"&F2844&\"'!\"&G2844)),\"\",INDIRECT(\"'\"&F2844&\"'!\"&G2844))","v":""},{"$f":"IF(ISBLANK(INDIRECT(\"'\"&F2844&\"'!\"&H2844)),\"\",IFERROR(VLOOKUP(TEXT(INDIRECT(\"'\"&F2844&\"'!\"&H2844),\"0\"),Notes!$B$5:$C$100,2,FALSE),\"\"))","v":""},"2d","$S$92","$T$92"]
[14668,{"$f":"Menu!$F$29","v":"X"},{"$f":"Menu!$J$29","v":2020},{"$f":"IF(ISBLANK(INDIRECT(\"'\"&F2845&\"'!\"&G2845)),\"\",INDIRECT(\"'\"&F2845&\"'!\"&G2845))","v":""},{"$f":"IF(ISBLANK(INDIRECT(\"'\"&F2845&\"'!\"&H2845)),\"\",IFERROR(VLOOKUP(TEXT(INDIRECT(\"'\"&F2845&\"'!\"&H2845),\"0\"),Notes!$B$5:$C$100,2,FALSE),\"\"))","v":""},"2d","$U$92","$V$92"]
[14669,{"$f":"Menu!$F$29","v":"X"},{"$f":"Menu!$J$29","v":2020},{"$f":"IF(ISBLANK(INDIRECT(\"'\"&F2846&\"'!\"&G2846)),\"\",INDIRECT(\"'\"&F2846&\"'!\"&G2846))","v":""},{"$f":"IF(ISBLANK(INDIRECT(\"'\"&F2846&\"'!\"&H2846)),\"\",IFERROR(VLOOKUP(TEXT(INDIRECT(\"'\"&F2846&\"'!\"&H2846),\"0\"),Notes!$B$5:$C$100,2,FALSE),\"\"))","v":""},"2d","$W$92","$X$92"]
[14670,{"$f":"Menu!$F$29","v":"X"},{"$f":"Menu!$J$29","v":2020},{"$f":"IF(ISBLANK(INDIRECT(\"'\"&F2847&\"'!\"&G2847)),\"\",INDIRECT(\"'\"&F2847&\"'!\"&G2847))","v":""},{"$f":"IF(ISBLANK(INDIRECT(\"'\"&F2847&\"'!\"&H2847)),\"\",IFERROR(VLOOKUP(TEXT(INDIRECT(\"'\"&F2847&\"'!\"&H2847),\"0\"),Notes!$B$5:$C$100,2,FALSE),\"\"))","v":""},"2d","$Y$92","$Z$92"]
[14671,{"$f":"Menu!$F$29","v":"X"},{"$f":"Menu!$J$29","v":2020},{"$f":"IF(ISBLANK(INDIRECT(\"'\"&F2848&\"'!\"&G2848)),\"\",INDIRECT(\"'\"&F2848&\"'!\"&G2848))","v":""},{"$f":"IF(ISBLANK(INDIRECT(\"'\"&F2848&\"'!\"&H2848)),\"\",IFERROR(VLOOKUP(TEXT(INDIRECT(\"'\"&F2848&\"'!\"&H2848),\"0\"),Notes!$B$5:$C$100,2,FALSE),\"\"))","v":""},"2d","$AA$92","$AB$92"]
[14672,{"$f":"Menu!$F$29","v":"X"},{"$f":"Menu!$J$29","v":2020},{"$f":"IF(ISBLANK(INDIRECT(\"'\"&F2849&\"'!\"&G2849)),\"\",INDIRECT(\"'\"&F2849&\"'!\"&G2849))","v":""},{"$f":"IF(ISBLANK(INDIRECT(\"'\"&F2849&\"'!\"&H2849)),\"\",IFERROR(VLOOKUP(TEXT(INDIRECT(\"'\"&F2849&\"'!\"&H2849),\"0\"),Notes!$B$5:$C$100,2,FALSE),\"\"))","v":""},"2d","$AC$92","$AD$92"]
[14673,{"$f":"Menu!$F$29","v":"X"},{"$f":"Menu!$J$29","v":2020},{"$f":"IF(ISBLANK(INDIRECT(\"'\"&F2850&\"'!\"&G2850)),\"\",INDIRECT(\"'\"&F2850&\"'!\"&G2850))","v":""},{"$f":"IF(ISBLANK(INDIRECT(\"'\"&F2850&\"'!\"&H2850)),\"\",IFERROR(VLOOKUP(TEXT(INDIRECT(\"'\"&F2850&\"'!\"&H2850),\"0\"),Notes!$B$5:$C$100,2,FALSE),\"\"))","v":""},"2d","$AE$92","$AF$92"]
[14674,{"$f":"Menu!$F$29","v":"X"},{"$f":"Menu!$J$29","v":2020},{"$f":"IF(ISBLANK(INDIRECT(\"'\"&F2851&\"'!\"&G2851)),\"\",INDIRECT(\"'\"&F2851&\"'!\"&G2851))","v":""},{"$f":"IF(ISBLANK(INDIRECT(\"'\"&F2851&\"'!\"&H2851)),\"\",IFERROR(VLOOKUP(TEXT(INDIRECT(\"'\"&F2851&\"'!\"&H2851),\"0\"),Notes!$B$5:$C$100,2,FALSE),\"\"))","v":""},"2d","$AG$92","$AH$92"]
[14675,{"$f":"Menu!$F$29","v":"X"},{"$f":"Menu!$J$29","v":2020},{"$f":"IF(ISBLANK(INDIRECT(\"'\"&F2852&\"'!\"&G2852)),\"\",INDIRECT(\"'\"&F2852&\"'!\"&G2852))","v":""},{"$f":"IF(ISBLANK(INDIRECT(\"'\"&F2852&\"'!\"&H2852)),\"\",IFERROR(VLOOKUP(TEXT(INDIRECT(\"'\"&F2852&\"'!\"&H2852),\"0\"),Notes!$B$5:$C$100,2,FALSE),\"\"))","v":""},"2d","$E$33","$F$33"]
[14676,{"$f":"Menu!$F$29","v":"X"},{"$f":"Menu!$J$29","v":2020},{"$f":"IF(ISBLANK(INDIRECT(\"'\"&F2853&\"'!\"&G2853)),\"\",INDIRECT(\"'\"&F2853&\"'!\"&G2853))","v":""},{"$f":"IF(ISBLANK(INDIRECT(\"'\"&F2853&\"'!\"&H2853)),\"\",IFERROR(VLOOKUP(TEXT(INDIRECT(\"'\"&F2853&\"'!\"&H2853),\"0\"),Notes!$B$5:$C$100,2,FALSE),\"\"))","v":""},"2d","$G$33","$H$33"]
[14677,{"$f":"Menu!$F$29","v":"X"},{"$f":"Menu!$J$29","v":2020},{"$f":"IF(ISBLANK(INDIRECT(\"'\"&F2854&\"'!\"&G2854)),\"\",INDIRECT(\"'\"&F2854&\"'!\"&G2854))","v":""},{"$f":"IF(ISBLANK(INDIRECT(\"'\"&F2854&\"'!\"&H2854)),\"\",IFERROR(VLOOKUP(TEXT(INDIRECT(\"'\"&F2854&\"'!\"&H2854),\"0\"),Notes!$B$5:$C$100,2,FALSE),\"\"))","v":""},"2d","$I$33","$J$33"]
[14678,{"$f":"Menu!$F$29","v":"X"},{"$f":"Menu!$J$29","v":2020},{"$f":"IF(ISBLANK(INDIRECT(\"'\"&F2855&\"'!\"&G2855)),\"\",INDIRECT(\"'\"&F2855&\"'!\"&G2855))","v":""},{"$f":"IF(ISBLANK(INDIRECT(\"'\"&F2855&\"'!\"&H2855)),\"\",IFERROR(VLOOKUP(TEXT(INDIRECT(\"'\"&F2855&\"'!\"&H2855),\"0\"),Notes!$B$5:$C$100,2,FALSE),\"\"))","v":""},"2d","$K$33","$L$33"]
[14679,{"$f":"Menu!$F$29","v":"X"},{"$f":"Menu!$J$29","v":2020},{"$f":"IF(ISBLANK(INDIRECT(\"'\"&F2856&\"'!\"&G2856)),\"\",INDIRECT(\"'\"&F2856&\"'!\"&G2856))","v":""},{"$f":"IF(ISBLANK(INDIRECT(\"'\"&F2856&\"'!\"&H2856)),\"\",IFERROR(VLOOKUP(TEXT(INDIRECT(\"'\"&F2856&\"'!\"&H2856),\"0\"),Notes!$B$5:$C$100,2,FALSE),\"\"))","v":""},"2d","$M$33","$N$33"]
[14680,{"$f":"Menu!$F$29","v":"X"},{"$f":"Menu!$J$29","v":2020},{"$f":"IF(ISBLANK(INDIRECT(\"'\"&F2857&\"'!\"&G2857)),\"\",INDIRECT(\"'\"&F2857&\"'!\"&G2857))","v":""},{"$f":"IF(ISBLANK(INDIRECT(\"'\"&F2857&\"'!\"&H2857)),\"\",IFERROR(VLOOKUP(TEXT(INDIRECT(\"'\"&F2857&\"'!\"&H2857),\"0\"),Notes!$B$5:$C$100,2,FALSE),\"\"))","v":""},"2d","$O$33","$P$33"]
[14681,{"$f":"Menu!$F$29","v":"X"},{"$f":"Menu!$J$29","v":2020},{"$f":"IF(ISBLANK(INDIRECT(\"'\"&F2858&\"'!\"&G2858)),\"\",INDIRECT(\"'\"&F2858&\"'!\"&G2858))","v":""},{"$f":"IF(ISBLANK(INDIRECT(\"'\"&F2858&\"'!\"&H2858)),\"\",IFERROR(VLOOKUP(TEXT(INDIRECT(\"'\"&F2858&\"'!\"&H2858),\"0\"),Notes!$B$5:$C$100,2,FALSE),\"\"))","v":""},"2d","$Q$33","$R$33"]
[14682,{"$f":"Menu!$F$29","v":"X"},{"$f":"Menu!$J$29","v":2020},{"$f":"IF(ISBLANK(INDIRECT(\"'\"&F2859&\"'!\"&G2859)),\"\",INDIRECT(\"'\"&F2859&\"'!\"&G2859))","v":""},{"$f":"IF(ISBLANK(INDIRECT(\"'\"&F2859&\"'!\"&H2859)),\"\",IFERROR(VLOOKUP(TEXT(INDIRECT(\"'\"&F2859&\"'!\"&H2859),\"0\"),Notes!$B$5:$C$100,2,FALSE),\"\"))","v":""},"2d","$S$33","$T$33"]
[14683,{"$f":"Menu!$F$29","v":"X"},{"$f":"Menu!$J$29","v":2020},{"$f":"IF(ISBLANK(INDIRECT(\"'\"&F2860&\"'!\"&G2860)),\"\",INDIRECT(\"'\"&F2860&\"'!\"&G2860))","v":""},{"$f":"IF(ISBLANK(INDIRECT(\"'\"&F2860&\"'!\"&H2860)),\"\",IFERROR(VLOOKUP(TEXT(INDIRECT(\"'\"&F2860&\"'!\"&H2860),\"0\"),Notes!$B$5:$C$100,2,FALSE),\"\"))","v":""},"2d","$U$33","$V$33"]
[14684,{"$f":"Menu!$F$29","v":"X"},{"$f":"Menu!$J$29","v":2020},{"$f":"IF(ISBLANK(INDIRECT(\"'\"&F2861&\"'!\"&G2861)),\"\",INDIRECT(\"'\"&F2861&\"'!\"&G2861))","v":""},{"$f":"IF(ISBLANK(INDIRECT(\"'\"&F2861&\"'!\"&H2861)),\"\",IFERROR(VLOOKUP(TEXT(INDIRECT(\"'\"&F2861&\"'!\"&H2861),\"0\"),Notes!$B$5:$C$100,2,FALSE),\"\"))","v":""},"2d","$W$33","$X$33"]
[14685,{"$f":"Menu!$F$29","v":"X"},{"$f":"Menu!$J$29","v":2020},{"$f":"IF(ISBLANK(INDIRECT(\"'\"&F2862&\"'!\"&G2862)),\"\",INDIRECT(\"'\"&F2862&\"'!\"&G2862))","v":""},{"$f":"IF(ISBLANK(INDIRECT(\"'\"&F2862&\"'!\"&H2862)),\"\",IFERROR(VLOOKUP(TEXT(INDIRECT(\"'\"&F2862&\"'!\"&H2862),\"0\"),Notes!$B$5:$C$100,2,FALSE),\"\"))","v":""},"2d","$Y$33","$Z$33"]
[14686,{"$f":"Menu!$F$29","v":"X"},{"$f":"Menu!$J$29","v":2020},{"$f":"IF(ISBLANK(INDIRECT(\"'\"&F2863&\"'!\"&G2863)),\"\",INDIRECT(\"'\"&F2863&\"'!\"&G2863))","v":""},{"$f":"IF(ISBLANK(INDIRECT(\"'\"&F2863&\"'!\"&H2863)),\"\",IFERROR(VLOOKUP(TEXT(INDIRECT(\"'\"&F2863&\"'!\"&H2863),\"0\"),Notes!$B$5:$C$100,2,FALSE),\"\"))","v":""},"2d","$AA$33","$AB$33"]
[14687,{"$f":"Menu!$F$29","v":"X"},{"$f":"Menu!$J$29","v":2020},{"$f":"IF(ISBLANK(INDIRECT(\"'\"&F2864&\"'!\"&G2864)),\"\",INDIRECT(\"'\"&F2864&\"'!\"&G2864))","v":""},{"$f":"IF(ISBLANK(INDIRECT(\"'\"&F2864&\"'!\"&H2864)),\"\",IFERROR(VLOOKUP(TEXT(INDIRECT(\"'\"&F2864&\"'!\"&H2864),\"0\"),Notes!$B$5:$C$100,2,FALSE),\"\"))","v":""},"2d","$AC$33","$AD$33"]
[14688,{"$f":"Menu!$F$29","v":"X"},{"$f":"Menu!$J$29","v":2020},{"$f":"IF(ISBLANK(INDIRECT(\"'\"&F2865&\"'!\"&G2865)),\"\",INDIRECT(\"'\"&F2865&\"'!\"&G2865))","v":""},{"$f":"IF(ISBLANK(INDIRECT(\"'\"&F2865&\"'!\"&H2865)),\"\",IFERROR(VLOOKUP(TEXT(INDIRECT(\"'\"&F2865&\"'!\"&H2865),\"0\"),Notes!$B$5:$C$100,2,FALSE),\"\"))","v":""},"2d","$AE$33","$AF$33"]
[14689,{"$f":"Menu!$F$29","v":"X"},{"$f":"Menu!$J$29","v":2020},{"$f":"IF(ISBLANK(INDIRECT(\"'\"&F2866&\"'!\"&G2866)),\"\",INDIRECT(\"'\"&F2866&\"'!\"&G2866))","v":""},{"$f":"IF(ISBLANK(INDIRECT(\"'\"&F2866&\"'!\"&H2866)),\"\",IFERROR(VLOOKUP(TEXT(INDIRECT(\"'\"&F2866&\"'!\"&H2866),\"0\"),Notes!$B$5:$C$100,2,FALSE),\"\"))","v":""},"2d","$AG$33","$AH$33"]
[14690,{"$f":"Menu!$F$29","v":"X"},{"$f":"Menu!$J$29","v":2020},{"$f":"IF(ISBLANK(INDIRECT(\"'\"&F2867&\"'!\"&G2867)),\"\",INDIRECT(\"'\"&F2867&\"'!\"&G2867))","v":""},{"$f":"IF(ISBLANK(INDIRECT(\"'\"&F2867&\"'!\"&H2867)),\"\",IFERROR(VLOOKUP(TEXT(INDIRECT(\"'\"&F2867&\"'!\"&H2867),\"0\"),Notes!$B$5:$C$100,2,FALSE),\"\"))","v":""},"2d","$E$94","$F$94"]
[14691,{"$f":"Menu!$F$29","v":"X"},{"$f":"Menu!$J$29","v":2020},{"$f":"IF(ISBLANK(INDIRECT(\"'\"&F2868&\"'!\"&G2868)),\"\",INDIRECT(\"'\"&F2868&\"'!\"&G2868))","v":""},{"$f":"IF(ISBLANK(INDIRECT(\"'\"&F2868&\"'!\"&H2868)),\"\",IFERROR(VLOOKUP(TEXT(INDIRECT(\"'\"&F2868&\"'!\"&H2868),\"0\"),Notes!$B$5:$C$100,2,FALSE),\"\"))","v":""},"2d","$G$94","$H$94"]
[14692,{"$f":"Menu!$F$29","v":"X"},{"$f":"Menu!$J$29","v":2020},{"$f":"IF(ISBLANK(INDIRECT(\"'\"&F2869&\"'!\"&G2869)),\"\",INDIRECT(\"'\"&F2869&\"'!\"&G2869))","v":""},{"$f":"IF(ISBLANK(INDIRECT(\"'\"&F2869&\"'!\"&H2869)),\"\",IFERROR(VLOOKUP(TEXT(INDIRECT(\"'\"&F2869&\"'!\"&H2869),\"0\"),Notes!$B$5:$C$100,2,FALSE),\"\"))","v":""},"2d","$I$94","$J$94"]
[14693,{"$f":"Menu!$F$29","v":"X"},{"$f":"Menu!$J$29","v":2020},{"$f":"IF(ISBLANK(INDIRECT(\"'\"&F2870&\"'!\"&G2870)),\"\",INDIRECT(\"'\"&F2870&\"'!\"&G2870))","v":""},{"$f":"IF(ISBLANK(INDIRECT(\"'\"&F2870&\"'!\"&H2870)),\"\",IFERROR(VLOOKUP(TEXT(INDIRECT(\"'\"&F2870&\"'!\"&H2870),\"0\"),Notes!$B$5:$C$100,2,FALSE),\"\"))","v":""},"2d","$K$94","$L$94"]
[14694,{"$f":"Menu!$F$29","v":"X"},{"$f":"Menu!$J$29","v":2020},{"$f":"IF(ISBLANK(INDIRECT(\"'\"&F2871&\"'!\"&G2871)),\"\",INDIRECT(\"'\"&F2871&\"'!\"&G2871))","v":""},{"$f":"IF(ISBLANK(INDIRECT(\"'\"&F2871&\"'!\"&H2871)),\"\",IFERROR(VLOOKUP(TEXT(INDIRECT(\"'\"&F2871&\"'!\"&H2871),\"0\"),Notes!$B$5:$C$100,2,FALSE),\"\"))","v":""},"2d","$M$94","$N$94"]
[14695,{"$f":"Menu!$F$29","v":"X"},{"$f":"Menu!$J$29","v":2020},{"$f":"IF(ISBLANK(INDIRECT(\"'\"&F2872&\"'!\"&G2872)),\"\",INDIRECT(\"'\"&F2872&\"'!\"&G2872))","v":""},{"$f":"IF(ISBLANK(INDIRECT(\"'\"&F2872&\"'!\"&H2872)),\"\",IFERROR(VLOOKUP(TEXT(INDIRECT(\"'\"&F2872&\"'!\"&H2872),\"0\"),Notes!$B$5:$C$100,2,FALSE),\"\"))","v":""},"2d","$O$94","$P$94"]
[14696,{"$f":"Menu!$F$29","v":"X"},{"$f":"Menu!$J$29","v":2020},{"$f":"IF(ISBLANK(INDIRECT(\"'\"&F2873&\"'!\"&G2873)),\"\",INDIRECT(\"'\"&F2873&\"'!\"&G2873))","v":""},{"$f":"IF(ISBLANK(INDIRECT(\"'\"&F2873&\"'!\"&H2873)),\"\",IFERROR(VLOOKUP(TEXT(INDIRECT(\"'\"&F2873&\"'!\"&H2873),\"0\"),Notes!$B$5:$C$100,2,FALSE),\"\"))","v":""},"2d","$Q$94","$R$94"]
[14697,{"$f":"Menu!$F$29","v":"X"},{"$f":"Menu!$J$29","v":2020},{"$f":"IF(ISBLANK(INDIRECT(\"'\"&F2874&\"'!\"&G2874)),\"\",INDIRECT(\"'\"&F2874&\"'!\"&G2874))","v":""},{"$f":"IF(ISBLANK(INDIRECT(\"'\"&F2874&\"'!\"&H2874)),\"\",IFERROR(VLOOKUP(TEXT(INDIRECT(\"'\"&F2874&\"'!\"&H2874),\"0\"),Notes!$B$5:$C$100,2,FALSE),\"\"))","v":""},"2d","$S$94","$T$94"]
[14698,{"$f":"Menu!$F$29","v":"X"},{"$f":"Menu!$J$29","v":2020},{"$f":"IF(ISBLANK(INDIRECT(\"'\"&F2875&\"'!\"&G2875)),\"\",INDIRECT(\"'\"&F2875&\"'!\"&G2875))","v":""},{"$f":"IF(ISBLANK(INDIRECT(\"'\"&F2875&\"'!\"&H2875)),\"\",IFERROR(VLOOKUP(TEXT(INDIRECT(\"'\"&F2875&\"'!\"&H2875),\"0\"),Notes!$B$5:$C$100,2,FALSE),\"\"))","v":""},"2d","$U$94","$V$94"]
[14699,{"$f":"Menu!$F$29","v":"X"},{"$f":"Menu!$J$29","v":2020},{"$f":"IF(ISBLANK(INDIRECT(\"'\"&F2876&\"'!\"&G2876)),\"\",INDIRECT(\"'\"&F2876&\"'!\"&G2876))","v":""},{"$f":"IF(ISBLANK(INDIRECT(\"'\"&F2876&\"'!\"&H2876)),\"\",IFERROR(VLOOKUP(TEXT(INDIRECT(\"'\"&F2876&\"'!\"&H2876),\"0\"),Notes!$B$5:$C$100,2,FALSE),\"\"))","v":""},"2d","$W$94","$X$94"]
[14700,{"$f":"Menu!$F$29","v":"X"},{"$f":"Menu!$J$29","v":2020},{"$f":"IF(ISBLANK(INDIRECT(\"'\"&F2877&\"'!\"&G2877)),\"\",INDIRECT(\"'\"&F2877&\"'!\"&G2877))","v":""},{"$f":"IF(ISBLANK(INDIRECT(\"'\"&F2877&\"'!\"&H2877)),\"\",IFERROR(VLOOKUP(TEXT(INDIRECT(\"'\"&F2877&\"'!\"&H2877),\"0\"),Notes!$B$5:$C$100,2,FALSE),\"\"))","v":""},"2d","$Y$94","$Z$94"]
[14701,{"$f":"Menu!$F$29","v":"X"},{"$f":"Menu!$J$29","v":2020},{"$f":"IF(ISBLANK(INDIRECT(\"'\"&F2878&\"'!\"&G2878)),\"\",INDIRECT(\"'\"&F2878&\"'!\"&G2878))","v":""},{"$f":"IF(ISBLANK(INDIRECT(\"'\"&F2878&\"'!\"&H2878)),\"\",IFERROR(VLOOKUP(TEXT(INDIRECT(\"'\"&F2878&\"'!\"&H2878),\"0\"),Notes!$B$5:$C$100,2,FALSE),\"\"))","v":""},"2d","$AA$94","$AB$94"]
[14702,{"$f":"Menu!$F$29","v":"X"},{"$f":"Menu!$J$29","v":2020},{"$f":"IF(ISBLANK(INDIRECT(\"'\"&F2879&\"'!\"&G2879)),\"\",INDIRECT(\"'\"&F2879&\"'!\"&G2879))","v":""},{"$f":"IF(ISBLANK(INDIRECT(\"'\"&F2879&\"'!\"&H2879)),\"\",IFERROR(VLOOKUP(TEXT(INDIRECT(\"'\"&F2879&\"'!\"&H2879),\"0\"),Notes!$B$5:$C$100,2,FALSE),\"\"))","v":""},"2d","$AC$94","$AD$94"]
[14703,{"$f":"Menu!$F$29","v":"X"},{"$f":"Menu!$J$29","v":2020},{"$f":"IF(ISBLANK(INDIRECT(\"'\"&F2880&\"'!\"&G2880)),\"\",INDIRECT(\"'\"&F2880&\"'!\"&G2880))","v":""},{"$f":"IF(ISBLANK(INDIRECT(\"'\"&F2880&\"'!\"&H2880)),\"\",IFERROR(VLOOKUP(TEXT(INDIRECT(\"'\"&F2880&\"'!\"&H2880),\"0\"),Notes!$B$5:$C$100,2,FALSE),\"\"))","v":""},"2d","$AE$94","$AF$94"]
[14704,{"$f":"Menu!$F$29","v":"X"},{"$f":"Menu!$J$29","v":2020},{"$f":"IF(ISBLANK(INDIRECT(\"'\"&F2881&\"'!\"&G2881)),\"\",INDIRECT(\"'\"&F2881&\"'!\"&G2881))","v":""},{"$f":"IF(ISBLANK(INDIRECT(\"'\"&F2881&\"'!\"&H2881)),\"\",IFERROR(VLOOKUP(TEXT(INDIRECT(\"'\"&F2881&\"'!\"&H2881),\"0\"),Notes!$B$5:$C$100,2,FALSE),\"\"))","v":""},"2d","$AG$94","$AH$94"]
[14705,{"$f":"Menu!$F$29","v":"X"},{"$f":"Menu!$J$29","v":2020},{"$f":"IF(ISBLANK(INDIRECT(\"'\"&F2882&\"'!\"&G2882)),\"\",INDIRECT(\"'\"&F2882&\"'!\"&G2882))","v":""},{"$f":"IF(ISBLANK(INDIRECT(\"'\"&F2882&\"'!\"&H2882)),\"\",IFERROR(VLOOKUP(TEXT(INDIRECT(\"'\"&F2882&\"'!\"&H2882),\"0\"),Notes!$B$5:$C$100,2,FALSE),\"\"))","v":""},"2d","$E$96",{"$f":"IF(LEN(TRIM(MID(G2882,4,10)))-LEN(SUBSTITUTE(TRIM(MID(G2882,4,10)),\"$\",\"\"))=0,\"$\"&CHAR(CODE(MID(G2882,2,1))+1)&\"$\"&TRIM(MID(G2882,4,10)),\"$\"&MID(G2882,2,1)&CHAR(CODE(MID(G2882,3,1))+1)&\"$\"&TRIM(MID(G2882,5,11)))","v":"$F$96"}]
[14706,{"$f":"Menu!$F$29","v":"X"},{"$f":"Menu!$J$29","v":2020},{"$f":"IF(ISBLANK(INDIRECT(\"'\"&F2883&\"'!\"&G2883)),\"\",INDIRECT(\"'\"&F2883&\"'!\"&G2883))","v":""},{"$f":"IF(ISBLANK(INDIRECT(\"'\"&F2883&\"'!\"&H2883)),\"\",IFERROR(VLOOKUP(TEXT(INDIRECT(\"'\"&F2883&\"'!\"&H2883),\"0\"),Notes!$B$5:$C$100,2,FALSE),\"\"))","v":""},"2d","$G$96","$H$96"]
[14707,{"$f":"Menu!$F$29","v":"X"},{"$f":"Menu!$J$29","v":2020},{"$f":"IF(ISBLANK(INDIRECT(\"'\"&F2884&\"'!\"&G2884)),\"\",INDIRECT(\"'\"&F2884&\"'!\"&G2884))","v":""},{"$f":"IF(ISBLANK(INDIRECT(\"'\"&F2884&\"'!\"&H2884)),\"\",IFERROR(VLOOKUP(TEXT(INDIRECT(\"'\"&F2884&\"'!\"&H2884),\"0\"),Notes!$B$5:$C$100,2,FALSE),\"\"))","v":""},"2d","$I$96","$J$96"]
[14708,{"$f":"Menu!$F$29","v":"X"},{"$f":"Menu!$J$29","v":2020},{"$f":"IF(ISBLANK(INDIRECT(\"'\"&F2885&\"'!\"&G2885)),\"\",INDIRECT(\"'\"&F2885&\"'!\"&G2885))","v":""},{"$f":"IF(ISBLANK(INDIRECT(\"'\"&F2885&\"'!\"&H2885)),\"\",IFERROR(VLOOKUP(TEXT(INDIRECT(\"'\"&F2885&\"'!\"&H2885),\"0\"),Notes!$B$5:$C$100,2,FALSE),\"\"))","v":""},"2d","$K$96","$L$96"]
[14709,{"$f":"Menu!$F$29","v":"X"},{"$f":"Menu!$J$29","v":2020},{"$f":"IF(ISBLANK(INDIRECT(\"'\"&F2886&\"'!\"&G2886)),\"\",INDIRECT(\"'\"&F2886&\"'!\"&G2886))","v":""},{"$f":"IF(ISBLANK(INDIRECT(\"'\"&F2886&\"'!\"&H2886)),\"\",IFERROR(VLOOKUP(TEXT(INDIRECT(\"'\"&F2886&\"'!\"&H2886),\"0\"),Notes!$B$5:$C$100,2,FALSE),\"\"))","v":""},"2d","$M$96","$N$96"]
[14710,{"$f":"Menu!$F$29","v":"X"},{"$f":"Menu!$J$29","v":2020},{"$f":"IF(ISBLANK(INDIRECT(\"'\"&F2887&\"'!\"&G2887)),\"\",INDIRECT(\"'\"&F2887&\"'!\"&G2887))","v":""},{"$f":"IF(ISBLANK(INDIRECT(\"'\"&F2887&\"'!\"&H2887)),\"\",IFERROR(VLOOKUP(TEXT(INDIRECT(\"'\"&F2887&\"'!\"&H2887),\"0\"),Notes!$B$5:$C$100,2,FALSE),\"\"))","v":""},"2d","$O$96","$P$96"]
[14711,{"$f":"Menu!$F$29","v":"X"},{"$f":"Menu!$J$29","v":2020},{"$f":"IF(ISBLANK(INDIRECT(\"'\"&F2888&\"'!\"&G2888)),\"\",INDIRECT(\"'\"&F2888&\"'!\"&G2888))","v":""},{"$f":"IF(ISBLANK(INDIRECT(\"'\"&F2888&\"'!\"&H2888)),\"\",IFERROR(VLOOKUP(TEXT(INDIRECT(\"'\"&F2888&\"'!\"&H2888),\"0\"),Notes!$B$5:$C$100,2,FALSE),\"\"))","v":""},"2d","$Q$96","$R$96"]
[14712,{"$f":"Menu!$F$29","v":"X"},{"$f":"Menu!$J$29","v":2020},{"$f":"IF(ISBLANK(INDIRECT(\"'\"&F2889&\"'!\"&G2889)),\"\",INDIRECT(\"'\"&F2889&\"'!\"&G2889))","v":""},{"$f":"IF(ISBLANK(INDIRECT(\"'\"&F2889&\"'!\"&H2889)),\"\",IFERROR(VLOOKUP(TEXT(INDIRECT(\"'\"&F2889&\"'!\"&H2889),\"0\"),Notes!$B$5:$C$100,2,FALSE),\"\"))","v":""},"2d","$S$96","$T$96"]
[14713,{"$f":"Menu!$F$29","v":"X"},{"$f":"Menu!$J$29","v":2020},{"$f":"IF(ISBLANK(INDIRECT(\"'\"&F2890&\"'!\"&G2890)),\"\",INDIRECT(\"'\"&F2890&\"'!\"&G2890))","v":""},{"$f":"IF(ISBLANK(INDIRECT(\"'\"&F2890&\"'!\"&H2890)),\"\",IFERROR(VLOOKUP(TEXT(INDIRECT(\"'\"&F2890&\"'!\"&H2890),\"0\"),Notes!$B$5:$C$100,2,FALSE),\"\"))","v":""},"2d","$U$96","$V$96"]
[14714,{"$f":"Menu!$F$29","v":"X"},{"$f":"Menu!$J$29","v":2020},{"$f":"IF(ISBLANK(INDIRECT(\"'\"&F2891&\"'!\"&G2891)),\"\",INDIRECT(\"'\"&F2891&\"'!\"&G2891))","v":""},{"$f":"IF(ISBLANK(INDIRECT(\"'\"&F2891&\"'!\"&H2891)),\"\",IFERROR(VLOOKUP(TEXT(INDIRECT(\"'\"&F2891&\"'!\"&H2891),\"0\"),Notes!$B$5:$C$100,2,FALSE),\"\"))","v":""},"2d","$W$96","$X$96"]
[14715,{"$f":"Menu!$F$29","v":"X"},{"$f":"Menu!$J$29","v":2020},{"$f":"IF(ISBLANK(INDIRECT(\"'\"&F2892&\"'!\"&G2892)),\"\",INDIRECT(\"'\"&F2892&\"'!\"&G2892))","v":""},{"$f":"IF(ISBLANK(INDIRECT(\"'\"&F2892&\"'!\"&H2892)),\"\",IFERROR(VLOOKUP(TEXT(INDIRECT(\"'\"&F2892&\"'!\"&H2892),\"0\"),Notes!$B$5:$C$100,2,FALSE),\"\"))","v":""},"2d","$Y$96","$Z$96"]
[14716,{"$f":"Menu!$F$29","v":"X"},{"$f":"Menu!$J$29","v":2020},{"$f":"IF(ISBLANK(INDIRECT(\"'\"&F2893&\"'!\"&G2893)),\"\",INDIRECT(\"'\"&F2893&\"'!\"&G2893))","v":""},{"$f":"IF(ISBLANK(INDIRECT(\"'\"&F2893&\"'!\"&H2893)),\"\",IFERROR(VLOOKUP(TEXT(INDIRECT(\"'\"&F2893&\"'!\"&H2893),\"0\"),Notes!$B$5:$C$100,2,FALSE),\"\"))","v":""},"2d","$AA$96","$AB$96"]
[14717,{"$f":"Menu!$F$29","v":"X"},{"$f":"Menu!$J$29","v":2020},{"$f":"IF(ISBLANK(INDIRECT(\"'\"&F2894&\"'!\"&G2894)),\"\",INDIRECT(\"'\"&F2894&\"'!\"&G2894))","v":""},{"$f":"IF(ISBLANK(INDIRECT(\"'\"&F2894&\"'!\"&H2894)),\"\",IFERROR(VLOOKUP(TEXT(INDIRECT(\"'\"&F2894&\"'!\"&H2894),\"0\"),Notes!$B$5:$C$100,2,FALSE),\"\"))","v":""},"2d","$AC$96","$AD$96"]
[14718,{"$f":"Menu!$F$29","v":"X"},{"$f":"Menu!$J$29","v":2020},{"$f":"IF(ISBLANK(INDIRECT(\"'\"&F2895&\"'!\"&G2895)),\"\",INDIRECT(\"'\"&F2895&\"'!\"&G2895))","v":""},{"$f":"IF(ISBLANK(INDIRECT(\"'\"&F2895&\"'!\"&H2895)),\"\",IFERROR(VLOOKUP(TEXT(INDIRECT(\"'\"&F2895&\"'!\"&H2895),\"0\"),Notes!$B$5:$C$100,2,FALSE),\"\"))","v":""},"2d","$AE$96","$AF$96"]
[14719,{"$f":"Menu!$F$29","v":"X"},{"$f":"Menu!$J$29","v":2020},{"$f":"IF(ISBLANK(INDIRECT(\"'\"&F2896&\"'!\"&G2896)),\"\",INDIRECT(\"'\"&F2896&\"'!\"&G2896))","v":""},{"$f":"IF(ISBLANK(INDIRECT(\"'\"&F2896&\"'!\"&H2896)),\"\",IFERROR(VLOOKUP(TEXT(INDIRECT(\"'\"&F2896&\"'!\"&H2896),\"0\"),Notes!$B$5:$C$100,2,FALSE),\"\"))","v":""},"2d","$AG$96","$AH$96"]
[14720,{"$f":"Menu!$F$29","v":"X"},{"$f":"Menu!$J$29","v":2020},{"$f":"IF(ISBLANK(INDIRECT(\"'\"&F2897&\"'!\"&G2897)),\"\",INDIRECT(\"'\"&F2897&\"'!\"&G2897))","v":""},{"$f":"IF(ISBLANK(INDIRECT(\"'\"&F2897&\"'!\"&H2897)),\"\",IFERROR(VLOOKUP(TEXT(INDIRECT(\"'\"&F2897&\"'!\"&H2897),\"0\"),Notes!$B$5:$C$100,2,FALSE),\"\"))","v":""},"2d","$E$89","$F$89"]
[14721,{"$f":"Menu!$F$29","v":"X"},{"$f":"Menu!$J$29","v":2020},{"$f":"IF(ISBLANK(INDIRECT(\"'\"&F2898&\"'!\"&G2898)),\"\",INDIRECT(\"'\"&F2898&\"'!\"&G2898))","v":""},{"$f":"IF(ISBLANK(INDIRECT(\"'\"&F2898&\"'!\"&H2898)),\"\",IFERROR(VLOOKUP(TEXT(INDIRECT(\"'\"&F2898&\"'!\"&H2898),\"0\"),Notes!$B$5:$C$100,2,FALSE),\"\"))","v":""},"2d","$G$89","$H$89"]
[14722,{"$f":"Menu!$F$29","v":"X"},{"$f":"Menu!$J$29","v":2020},{"$f":"IF(ISBLANK(INDIRECT(\"'\"&F2899&\"'!\"&G2899)),\"\",INDIRECT(\"'\"&F2899&\"'!\"&G2899))","v":""},{"$f":"IF(ISBLANK(INDIRECT(\"'\"&F2899&\"'!\"&H2899)),\"\",IFERROR(VLOOKUP(TEXT(INDIRECT(\"'\"&F2899&\"'!\"&H2899),\"0\"),Notes!$B$5:$C$100,2,FALSE),\"\"))","v":""},"2d","$I$89","$J$89"]
[14723,{"$f":"Menu!$F$29","v":"X"},{"$f":"Menu!$J$29","v":2020},{"$f":"IF(ISBLANK(INDIRECT(\"'\"&F2900&\"'!\"&G2900)),\"\",INDIRECT(\"'\"&F2900&\"'!\"&G2900))","v":""},{"$f":"IF(ISBLANK(INDIRECT(\"'\"&F2900&\"'!\"&H2900)),\"\",IFERROR(VLOOKUP(TEXT(INDIRECT(\"'\"&F2900&\"'!\"&H2900),\"0\"),Notes!$B$5:$C$100,2,FALSE),\"\"))","v":""},"2d","$K$89","$L$89"]
[14724,{"$f":"Menu!$F$29","v":"X"},{"$f":"Menu!$J$29","v":2020},{"$f":"IF(ISBLANK(INDIRECT(\"'\"&F2901&\"'!\"&G2901)),\"\",INDIRECT(\"'\"&F2901&\"'!\"&G2901))","v":""},{"$f":"IF(ISBLANK(INDIRECT(\"'\"&F2901&\"'!\"&H2901)),\"\",IFERROR(VLOOKUP(TEXT(INDIRECT(\"'\"&F2901&\"'!\"&H2901),\"0\"),Notes!$B$5:$C$100,2,FALSE),\"\"))","v":""},"2d","$M$89","$N$89"]
[14725,{"$f":"Menu!$F$29","v":"X"},{"$f":"Menu!$J$29","v":2020},{"$f":"IF(ISBLANK(INDIRECT(\"'\"&F2902&\"'!\"&G2902)),\"\",INDIRECT(\"'\"&F2902&\"'!\"&G2902))","v":""},{"$f":"IF(ISBLANK(INDIRECT(\"'\"&F2902&\"'!\"&H2902)),\"\",IFERROR(VLOOKUP(TEXT(INDIRECT(\"'\"&F2902&\"'!\"&H2902),\"0\"),Notes!$B$5:$C$100,2,FALSE),\"\"))","v":""},"2d","$O$89","$P$89"]
[14726,{"$f":"Menu!$F$29","v":"X"},{"$f":"Menu!$J$29","v":2020},{"$f":"IF(ISBLANK(INDIRECT(\"'\"&F2903&\"'!\"&G2903)),\"\",INDIRECT(\"'\"&F2903&\"'!\"&G2903))","v":""},{"$f":"IF(ISBLANK(INDIRECT(\"'\"&F2903&\"'!\"&H2903)),\"\",IFERROR(VLOOKUP(TEXT(INDIRECT(\"'\"&F2903&\"'!\"&H2903),\"0\"),Notes!$B$5:$C$100,2,FALSE),\"\"))","v":""},"2d","$Q$89","$R$89"]
[14727,{"$f":"Menu!$F$29","v":"X"},{"$f":"Menu!$J$29","v":2020},{"$f":"IF(ISBLANK(INDIRECT(\"'\"&F2904&\"'!\"&G2904)),\"\",INDIRECT(\"'\"&F2904&\"'!\"&G2904))","v":""},{"$f":"IF(ISBLANK(INDIRECT(\"'\"&F2904&\"'!\"&H2904)),\"\",IFERROR(VLOOKUP(TEXT(INDIRECT(\"'\"&F2904&\"'!\"&H2904),\"0\"),Notes!$B$5:$C$100,2,FALSE),\"\"))","v":""},"2d","$S$89","$T$89"]
[14728,{"$f":"Menu!$F$29","v":"X"},{"$f":"Menu!$J$29","v":2020},{"$f":"IF(ISBLANK(INDIRECT(\"'\"&F2905&\"'!\"&G2905)),\"\",INDIRECT(\"'\"&F2905&\"'!\"&G2905))","v":""},{"$f":"IF(ISBLANK(INDIRECT(\"'\"&F2905&\"'!\"&H2905)),\"\",IFERROR(VLOOKUP(TEXT(INDIRECT(\"'\"&F2905&\"'!\"&H2905),\"0\"),Notes!$B$5:$C$100,2,FALSE),\"\"))","v":""},"2d","$U$89","$V$89"]
[14729,{"$f":"Menu!$F$29","v":"X"},{"$f":"Menu!$J$29","v":2020},{"$f":"IF(ISBLANK(INDIRECT(\"'\"&F2906&\"'!\"&G2906)),\"\",INDIRECT(\"'\"&F2906&\"'!\"&G2906))","v":""},{"$f":"IF(ISBLANK(INDIRECT(\"'\"&F2906&\"'!\"&H2906)),\"\",IFERROR(VLOOKUP(TEXT(INDIRECT(\"'\"&F2906&\"'!\"&H2906),\"0\"),Notes!$B$5:$C$100,2,FALSE),\"\"))","v":""},"2d","$W$89","$X$89"]
[14730,{"$f":"Menu!$F$29","v":"X"},{"$f":"Menu!$J$29","v":2020},{"$f":"IF(ISBLANK(INDIRECT(\"'\"&F2907&\"'!\"&G2907)),\"\",INDIRECT(\"'\"&F2907&\"'!\"&G2907))","v":""},{"$f":"IF(ISBLANK(INDIRECT(\"'\"&F2907&\"'!\"&H2907)),\"\",IFERROR(VLOOKUP(TEXT(INDIRECT(\"'\"&F2907&\"'!\"&H2907),\"0\"),Notes!$B$5:$C$100,2,FALSE),\"\"))","v":""},"2d","$Y$89","$Z$89"]
[14731,{"$f":"Menu!$F$29","v":"X"},{"$f":"Menu!$J$29","v":2020},{"$f":"IF(ISBLANK(INDIRECT(\"'\"&F2908&\"'!\"&G2908)),\"\",INDIRECT(\"'\"&F2908&\"'!\"&G2908))","v":""},{"$f":"IF(ISBLANK(INDIRECT(\"'\"&F2908&\"'!\"&H2908)),\"\",IFERROR(VLOOKUP(TEXT(INDIRECT(\"'\"&F2908&\"'!\"&H2908),\"0\"),Notes!$B$5:$C$100,2,FALSE),\"\"))","v":""},"2d","$AA$89","$AB$89"]
[14732,{"$f":"Menu!$F$29","v":"X"},{"$f":"Menu!$J$29","v":2020},{"$f":"IF(ISBLANK(INDIRECT(\"'\"&F2909&\"'!\"&G2909)),\"\",INDIRECT(\"'\"&F2909&\"'!\"&G2909))","v":""},{"$f":"IF(ISBLANK(INDIRECT(\"'\"&F2909&\"'!\"&H2909)),\"\",IFERROR(VLOOKUP(TEXT(INDIRECT(\"'\"&F2909&\"'!\"&H2909),\"0\"),Notes!$B$5:$C$100,2,FALSE),\"\"))","v":""},"2d","$AC$89","$AD$89"]
[14733,{"$f":"Menu!$F$29","v":"X"},{"$f":"Menu!$J$29","v":2020},{"$f":"IF(ISBLANK(INDIRECT(\"'\"&F2910&\"'!\"&G2910)),\"\",INDIRECT(\"'\"&F2910&\"'!\"&G2910))","v":""},{"$f":"IF(ISBLANK(INDIRECT(\"'\"&F2910&\"'!\"&H2910)),\"\",IFERROR(VLOOKUP(TEXT(INDIRECT(\"'\"&F2910&\"'!\"&H2910),\"0\"),Notes!$B$5:$C$100,2,FALSE),\"\"))","v":""},"2d","$AE$89","$AF$89"]
[14734,{"$f":"Menu!$F$29","v":"X"},{"$f":"Menu!$J$29","v":2020},{"$f":"IF(ISBLANK(INDIRECT(\"'\"&F2911&\"'!\"&G2911)),\"\",INDIRECT(\"'\"&F2911&\"'!\"&G2911))","v":""},{"$f":"IF(ISBLANK(INDIRECT(\"'\"&F2911&\"'!\"&H2911)),\"\",IFERROR(VLOOKUP(TEXT(INDIRECT(\"'\"&F2911&\"'!\"&H2911),\"0\"),Notes!$B$5:$C$100,2,FALSE),\"\"))","v":""},"2d","$AG$89","$AH$89"]
[14735,{"$f":"Menu!$F$29","v":"X"},{"$f":"Menu!$J$29","v":2020},{"$f":"IF(ISBLANK(INDIRECT(\"'\"&F2912&\"'!\"&G2912)),\"\",INDIRECT(\"'\"&F2912&\"'!\"&G2912))","v":""},{"$f":"IF(ISBLANK(INDIRECT(\"'\"&F2912&\"'!\"&H2912)),\"\",IFERROR(VLOOKUP(TEXT(INDIRECT(\"'\"&F2912&\"'!\"&H2912),\"0\"),Notes!$B$5:$C$100,2,FALSE),\"\"))","v":""},"2d","$E$54","$F$54"]
[14736,{"$f":"Menu!$F$29","v":"X"},{"$f":"Menu!$J$29","v":2020},{"$f":"IF(ISBLANK(INDIRECT(\"'\"&F2913&\"'!\"&G2913)),\"\",INDIRECT(\"'\"&F2913&\"'!\"&G2913))","v":""},{"$f":"IF(ISBLANK(INDIRECT(\"'\"&F2913&\"'!\"&H2913)),\"\",IFERROR(VLOOKUP(TEXT(INDIRECT(\"'\"&F2913&\"'!\"&H2913),\"0\"),Notes!$B$5:$C$100,2,FALSE),\"\"))","v":""},"2d","$G$54","$H$54"]
[14737,{"$f":"Menu!$F$29","v":"X"},{"$f":"Menu!$J$29","v":2020},{"$f":"IF(ISBLANK(INDIRECT(\"'\"&F2914&\"'!\"&G2914)),\"\",INDIRECT(\"'\"&F2914&\"'!\"&G2914))","v":""},{"$f":"IF(ISBLANK(INDIRECT(\"'\"&F2914&\"'!\"&H2914)),\"\",IFERROR(VLOOKUP(TEXT(INDIRECT(\"'\"&F2914&\"'!\"&H2914),\"0\"),Notes!$B$5:$C$100,2,FALSE),\"\"))","v":""},"2d","$I$54","$J$54"]
[14738,{"$f":"Menu!$F$29","v":"X"},{"$f":"Menu!$J$29","v":2020},{"$f":"IF(ISBLANK(INDIRECT(\"'\"&F2915&\"'!\"&G2915)),\"\",INDIRECT(\"'\"&F2915&\"'!\"&G2915))","v":""},{"$f":"IF(ISBLANK(INDIRECT(\"'\"&F2915&\"'!\"&H2915)),\"\",IFERROR(VLOOKUP(TEXT(INDIRECT(\"'\"&F2915&\"'!\"&H2915),\"0\"),Notes!$B$5:$C$100,2,FALSE),\"\"))","v":""},"2d","$K$54","$L$54"]
[14739,{"$f":"Menu!$F$29","v":"X"},{"$f":"Menu!$J$29","v":2020},{"$f":"IF(ISBLANK(INDIRECT(\"'\"&F2916&\"'!\"&G2916)),\"\",INDIRECT(\"'\"&F2916&\"'!\"&G2916))","v":""},{"$f":"IF(ISBLANK(INDIRECT(\"'\"&F2916&\"'!\"&H2916)),\"\",IFERROR(VLOOKUP(TEXT(INDIRECT(\"'\"&F2916&\"'!\"&H2916),\"0\"),Notes!$B$5:$C$100,2,FALSE),\"\"))","v":""},"2d","$M$54","$N$54"]
[14740,{"$f":"Menu!$F$29","v":"X"},{"$f":"Menu!$J$29","v":2020},{"$f":"IF(ISBLANK(INDIRECT(\"'\"&F2917&\"'!\"&G2917)),\"\",INDIRECT(\"'\"&F2917&\"'!\"&G2917))","v":""},{"$f":"IF(ISBLANK(INDIRECT(\"'\"&F2917&\"'!\"&H2917)),\"\",IFERROR(VLOOKUP(TEXT(INDIRECT(\"'\"&F2917&\"'!\"&H2917),\"0\"),Notes!$B$5:$C$100,2,FALSE),\"\"))","v":""},"2d","$O$54","$P$54"]
[14741,{"$f":"Menu!$F$29","v":"X"},{"$f":"Menu!$J$29","v":2020},{"$f":"IF(ISBLANK(INDIRECT(\"'\"&F2918&\"'!\"&G2918)),\"\",INDIRECT(\"'\"&F2918&\"'!\"&G2918))","v":""},{"$f":"IF(ISBLANK(INDIRECT(\"'\"&F2918&\"'!\"&H2918)),\"\",IFERROR(VLOOKUP(TEXT(INDIRECT(\"'\"&F2918&\"'!\"&H2918),\"0\"),Notes!$B$5:$C$100,2,FALSE),\"\"))","v":""},"2d","$Q$54","$R$54"]
[14742,{"$f":"Menu!$F$29","v":"X"},{"$f":"Menu!$J$29","v":2020},{"$f":"IF(ISBLANK(INDIRECT(\"'\"&F2919&\"'!\"&G2919)),\"\",INDIRECT(\"'\"&F2919&\"'!\"&G2919))","v":""},{"$f":"IF(ISBLANK(INDIRECT(\"'\"&F2919&\"'!\"&H2919)),\"\",IFERROR(VLOOKUP(TEXT(INDIRECT(\"'\"&F2919&\"'!\"&H2919),\"0\"),Notes!$B$5:$C$100,2,FALSE),\"\"))","v":""},"2d","$S$54","$T$54"]
[14743,{"$f":"Menu!$F$29","v":"X"},{"$f":"Menu!$J$29","v":2020},{"$f":"IF(ISBLANK(INDIRECT(\"'\"&F2920&\"'!\"&G2920)),\"\",INDIRECT(\"'\"&F2920&\"'!\"&G2920))","v":""},{"$f":"IF(ISBLANK(INDIRECT(\"'\"&F2920&\"'!\"&H2920)),\"\",IFERROR(VLOOKUP(TEXT(INDIRECT(\"'\"&F2920&\"'!\"&H2920),\"0\"),Notes!$B$5:$C$100,2,FALSE),\"\"))","v":""},"2d","$U$54","$V$54"]
[14744,{"$f":"Menu!$F$29","v":"X"},{"$f":"Menu!$J$29","v":2020},{"$f":"IF(ISBLANK(INDIRECT(\"'\"&F2921&\"'!\"&G2921)),\"\",INDIRECT(\"'\"&F2921&\"'!\"&G2921))","v":""},{"$f":"IF(ISBLANK(INDIRECT(\"'\"&F2921&\"'!\"&H2921)),\"\",IFERROR(VLOOKUP(TEXT(INDIRECT(\"'\"&F2921&\"'!\"&H2921),\"0\"),Notes!$B$5:$C$100,2,FALSE),\"\"))","v":""},"2d","$W$54","$X$54"]
[14745,{"$f":"Menu!$F$29","v":"X"},{"$f":"Menu!$J$29","v":2020},{"$f":"IF(ISBLANK(INDIRECT(\"'\"&F2922&\"'!\"&G2922)),\"\",INDIRECT(\"'\"&F2922&\"'!\"&G2922))","v":""},{"$f":"IF(ISBLANK(INDIRECT(\"'\"&F2922&\"'!\"&H2922)),\"\",IFERROR(VLOOKUP(TEXT(INDIRECT(\"'\"&F2922&\"'!\"&H2922),\"0\"),Notes!$B$5:$C$100,2,FALSE),\"\"))","v":""},"2d","$Y$54","$Z$54"]
[14746,{"$f":"Menu!$F$29","v":"X"},{"$f":"Menu!$J$29","v":2020},{"$f":"IF(ISBLANK(INDIRECT(\"'\"&F2923&\"'!\"&G2923)),\"\",INDIRECT(\"'\"&F2923&\"'!\"&G2923))","v":""},{"$f":"IF(ISBLANK(INDIRECT(\"'\"&F2923&\"'!\"&H2923)),\"\",IFERROR(VLOOKUP(TEXT(INDIRECT(\"'\"&F2923&\"'!\"&H2923),\"0\"),Notes!$B$5:$C$100,2,FALSE),\"\"))","v":""},"2d","$AA$54","$AB$54"]
[14747,{"$f":"Menu!$F$29","v":"X"},{"$f":"Menu!$J$29","v":2020},{"$f":"IF(ISBLANK(INDIRECT(\"'\"&F2924&\"'!\"&G2924)),\"\",INDIRECT(\"'\"&F2924&\"'!\"&G2924))","v":""},{"$f":"IF(ISBLANK(INDIRECT(\"'\"&F2924&\"'!\"&H2924)),\"\",IFERROR(VLOOKUP(TEXT(INDIRECT(\"'\"&F2924&\"'!\"&H2924),\"0\"),Notes!$B$5:$C$100,2,FALSE),\"\"))","v":""},"2d","$AC$54","$AD$54"]
[14748,{"$f":"Menu!$F$29","v":"X"},{"$f":"Menu!$J$29","v":2020},{"$f":"IF(ISBLANK(INDIRECT(\"'\"&F2925&\"'!\"&G2925)),\"\",INDIRECT(\"'\"&F2925&\"'!\"&G2925))","v":""},{"$f":"IF(ISBLANK(INDIRECT(\"'\"&F2925&\"'!\"&H2925)),\"\",IFERROR(VLOOKUP(TEXT(INDIRECT(\"'\"&F2925&\"'!\"&H2925),\"0\"),Notes!$B$5:$C$100,2,FALSE),\"\"))","v":""},"2d","$AE$54","$AF$54"]
[14749,{"$f":"Menu!$F$29","v":"X"},{"$f":"Menu!$J$29","v":2020},{"$f":"IF(ISBLANK(INDIRECT(\"'\"&F2926&\"'!\"&G2926)),\"\",INDIRECT(\"'\"&F2926&\"'!\"&G2926))","v":""},{"$f":"IF(ISBLANK(INDIRECT(\"'\"&F2926&\"'!\"&H2926)),\"\",IFERROR(VLOOKUP(TEXT(INDIRECT(\"'\"&F2926&\"'!\"&H2926),\"0\"),Notes!$B$5:$C$100,2,FALSE),\"\"))","v":""},"2d","$AG$54","$AH$54"]
[14765,{"$f":"Menu!$F$29","v":"X"},{"$f":"Menu!$J$29","v":2020},{"$f":"IF(ISBLANK(INDIRECT(\"'\"&F2927&\"'!\"&G2927)),\"\",INDIRECT(\"'\"&F2927&\"'!\"&G2927))","v":""},{"$f":"IF(ISBLANK(INDIRECT(\"'\"&F2927&\"'!\"&H2927)),\"\",IFERROR(VLOOKUP(TEXT(INDIRECT(\"'\"&F2927&\"'!\"&H2927),\"0\"),Notes!$B$5:$C$100,2,FALSE),\"\"))","v":""},"2d","$E$101","$F$101"]
[14766,{"$f":"Menu!$F$29","v":"X"},{"$f":"Menu!$J$29","v":2020},{"$f":"IF(ISBLANK(INDIRECT(\"'\"&F2928&\"'!\"&G2928)),\"\",INDIRECT(\"'\"&F2928&\"'!\"&G2928))","v":""},{"$f":"IF(ISBLANK(INDIRECT(\"'\"&F2928&\"'!\"&H2928)),\"\",IFERROR(VLOOKUP(TEXT(INDIRECT(\"'\"&F2928&\"'!\"&H2928),\"0\"),Notes!$B$5:$C$100,2,FALSE),\"\"))","v":""},"2d","$G$101","$H$101"]
[14767,{"$f":"Menu!$F$29","v":"X"},{"$f":"Menu!$J$29","v":2020},{"$f":"IF(ISBLANK(INDIRECT(\"'\"&F2929&\"'!\"&G2929)),\"\",INDIRECT(\"'\"&F2929&\"'!\"&G2929))","v":""},{"$f":"IF(ISBLANK(INDIRECT(\"'\"&F2929&\"'!\"&H2929)),\"\",IFERROR(VLOOKUP(TEXT(INDIRECT(\"'\"&F2929&\"'!\"&H2929),\"0\"),Notes!$B$5:$C$100,2,FALSE),\"\"))","v":""},"2d","$I$101","$J$101"]
[14768,{"$f":"Menu!$F$29","v":"X"},{"$f":"Menu!$J$29","v":2020},{"$f":"IF(ISBLANK(INDIRECT(\"'\"&F2930&\"'!\"&G2930)),\"\",INDIRECT(\"'\"&F2930&\"'!\"&G2930))","v":""},{"$f":"IF(ISBLANK(INDIRECT(\"'\"&F2930&\"'!\"&H2930)),\"\",IFERROR(VLOOKUP(TEXT(INDIRECT(\"'\"&F2930&\"'!\"&H2930),\"0\"),Notes!$B$5:$C$100,2,FALSE),\"\"))","v":""},"2d","$K$101","$L$101"]
[14769,{"$f":"Menu!$F$29","v":"X"},{"$f":"Menu!$J$29","v":2020},{"$f":"IF(ISBLANK(INDIRECT(\"'\"&F2931&\"'!\"&G2931)),\"\",INDIRECT(\"'\"&F2931&\"'!\"&G2931))","v":""},{"$f":"IF(ISBLANK(INDIRECT(\"'\"&F2931&\"'!\"&H2931)),\"\",IFERROR(VLOOKUP(TEXT(INDIRECT(\"'\"&F2931&\"'!\"&H2931),\"0\"),Notes!$B$5:$C$100,2,FALSE),\"\"))","v":""},"2d","$M$101","$N$101"]
[14770,{"$f":"Menu!$F$29","v":"X"},{"$f":"Menu!$J$29","v":2020},{"$f":"IF(ISBLANK(INDIRECT(\"'\"&F2932&\"'!\"&G2932)),\"\",INDIRECT(\"'\"&F2932&\"'!\"&G2932))","v":""},{"$f":"IF(ISBLANK(INDIRECT(\"'\"&F2932&\"'!\"&H2932)),\"\",IFERROR(VLOOKUP(TEXT(INDIRECT(\"'\"&F2932&\"'!\"&H2932),\"0\"),Notes!$B$5:$C$100,2,FALSE),\"\"))","v":""},"2d","$O$101","$P$101"]
[14771,{"$f":"Menu!$F$29","v":"X"},{"$f":"Menu!$J$29","v":2020},{"$f":"IF(ISBLANK(INDIRECT(\"'\"&F2933&\"'!\"&G2933)),\"\",INDIRECT(\"'\"&F2933&\"'!\"&G2933))","v":""},{"$f":"IF(ISBLANK(INDIRECT(\"'\"&F2933&\"'!\"&H2933)),\"\",IFERROR(VLOOKUP(TEXT(INDIRECT(\"'\"&F2933&\"'!\"&H2933),\"0\"),Notes!$B$5:$C$100,2,FALSE),\"\"))","v":""},"2d","$Q$101","$R$101"]
[14772,{"$f":"Menu!$F$29","v":"X"},{"$f":"Menu!$J$29","v":2020},{"$f":"IF(ISBLANK(INDIRECT(\"'\"&F2934&\"'!\"&G2934)),\"\",INDIRECT(\"'\"&F2934&\"'!\"&G2934))","v":""},{"$f":"IF(ISBLANK(INDIRECT(\"'\"&F2934&\"'!\"&H2934)),\"\",IFERROR(VLOOKUP(TEXT(INDIRECT(\"'\"&F2934&\"'!\"&H2934),\"0\"),Notes!$B$5:$C$100,2,FALSE),\"\"))","v":""},"2d","$S$101","$T$101"]
[14773,{"$f":"Menu!$F$29","v":"X"},{"$f":"Menu!$J$29","v":2020},{"$f":"IF(ISBLANK(INDIRECT(\"'\"&F2935&\"'!\"&G2935)),\"\",INDIRECT(\"'\"&F2935&\"'!\"&G2935))","v":""},{"$f":"IF(ISBLANK(INDIRECT(\"'\"&F2935&\"'!\"&H2935)),\"\",IFERROR(VLOOKUP(TEXT(INDIRECT(\"'\"&F2935&\"'!\"&H2935),\"0\"),Notes!$B$5:$C$100,2,FALSE),\"\"))","v":""},"2d","$U$101","$V$101"]
[14774,{"$f":"Menu!$F$29","v":"X"},{"$f":"Menu!$J$29","v":2020},{"$f":"IF(ISBLANK(INDIRECT(\"'\"&F2936&\"'!\"&G2936)),\"\",INDIRECT(\"'\"&F2936&\"'!\"&G2936))","v":""},{"$f":"IF(ISBLANK(INDIRECT(\"'\"&F2936&\"'!\"&H2936)),\"\",IFERROR(VLOOKUP(TEXT(INDIRECT(\"'\"&F2936&\"'!\"&H2936),\"0\"),Notes!$B$5:$C$100,2,FALSE),\"\"))","v":""},"2d","$W$101","$X$101"]
[14775,{"$f":"Menu!$F$29","v":"X"},{"$f":"Menu!$J$29","v":2020},{"$f":"IF(ISBLANK(INDIRECT(\"'\"&F2937&\"'!\"&G2937)),\"\",INDIRECT(\"'\"&F2937&\"'!\"&G2937))","v":""},{"$f":"IF(ISBLANK(INDIRECT(\"'\"&F2937&\"'!\"&H2937)),\"\",IFERROR(VLOOKUP(TEXT(INDIRECT(\"'\"&F2937&\"'!\"&H2937),\"0\"),Notes!$B$5:$C$100,2,FALSE),\"\"))","v":""},"2d","$Y$101","$Z$101"]
[14776,{"$f":"Menu!$F$29","v":"X"},{"$f":"Menu!$J$29","v":2020},{"$f":"IF(ISBLANK(INDIRECT(\"'\"&F2938&\"'!\"&G2938)),\"\",INDIRECT(\"'\"&F2938&\"'!\"&G2938))","v":""},{"$f":"IF(ISBLANK(INDIRECT(\"'\"&F2938&\"'!\"&H2938)),\"\",IFERROR(VLOOKUP(TEXT(INDIRECT(\"'\"&F2938&\"'!\"&H2938),\"0\"),Notes!$B$5:$C$100,2,FALSE),\"\"))","v":""},"2d","$AA$101","$AB$101"]
[14777,{"$f":"Menu!$F$29","v":"X"},{"$f":"Menu!$J$29","v":2020},{"$f":"IF(ISBLANK(INDIRECT(\"'\"&F2939&\"'!\"&G2939)),\"\",INDIRECT(\"'\"&F2939&\"'!\"&G2939))","v":""},{"$f":"IF(ISBLANK(INDIRECT(\"'\"&F2939&\"'!\"&H2939)),\"\",IFERROR(VLOOKUP(TEXT(INDIRECT(\"'\"&F2939&\"'!\"&H2939),\"0\"),Notes!$B$5:$C$100,2,FALSE),\"\"))","v":""},"2d","$AC$101","$AD$101"]
[14778,{"$f":"Menu!$F$29","v":"X"},{"$f":"Menu!$J$29","v":2020},{"$f":"IF(ISBLANK(INDIRECT(\"'\"&F2940&\"'!\"&G2940)),\"\",INDIRECT(\"'\"&F2940&\"'!\"&G2940))","v":""},{"$f":"IF(ISBLANK(INDIRECT(\"'\"&F2940&\"'!\"&H2940)),\"\",IFERROR(VLOOKUP(TEXT(INDIRECT(\"'\"&F2940&\"'!\"&H2940),\"0\"),Notes!$B$5:$C$100,2,FALSE),\"\"))","v":""},"2d","$AE$101","$AF$101"]
[14779,{"$f":"Menu!$F$29","v":"X"},{"$f":"Menu!$J$29","v":2020},{"$f":"IF(ISBLANK(INDIRECT(\"'\"&F2941&\"'!\"&G2941)),\"\",INDIRECT(\"'\"&F2941&\"'!\"&G2941))","v":""},{"$f":"IF(ISBLANK(INDIRECT(\"'\"&F2941&\"'!\"&H2941)),\"\",IFERROR(VLOOKUP(TEXT(INDIRECT(\"'\"&F2941&\"'!\"&H2941),\"0\"),Notes!$B$5:$C$100,2,FALSE),\"\"))","v":""},"2d","$AG$101","$AH$101"]
[14780,{"$f":"Menu!$F$29","v":"X"},{"$f":"Menu!$J$29","v":2020},{"$f":"IF(ISBLANK(INDIRECT(\"'\"&F2942&\"'!\"&G2942)),\"\",INDIRECT(\"'\"&F2942&\"'!\"&G2942))","v":""},{"$f":"IF(ISBLANK(INDIRECT(\"'\"&F2942&\"'!\"&H2942)),\"\",IFERROR(VLOOKUP(TEXT(INDIRECT(\"'\"&F2942&\"'!\"&H2942),\"0\"),Notes!$B$5:$C$100,2,FALSE),\"\"))","v":""},"2d","$E$102","$F$102"]
[14781,{"$f":"Menu!$F$29","v":"X"},{"$f":"Menu!$J$29","v":2020},{"$f":"IF(ISBLANK(INDIRECT(\"'\"&F2943&\"'!\"&G2943)),\"\",INDIRECT(\"'\"&F2943&\"'!\"&G2943))","v":""},{"$f":"IF(ISBLANK(INDIRECT(\"'\"&F2943&\"'!\"&H2943)),\"\",IFERROR(VLOOKUP(TEXT(INDIRECT(\"'\"&F2943&\"'!\"&H2943),\"0\"),Notes!$B$5:$C$100,2,FALSE),\"\"))","v":""},"2d","$G$102","$H$102"]
[14782,{"$f":"Menu!$F$29","v":"X"},{"$f":"Menu!$J$29","v":2020},{"$f":"IF(ISBLANK(INDIRECT(\"'\"&F2944&\"'!\"&G2944)),\"\",INDIRECT(\"'\"&F2944&\"'!\"&G2944))","v":""},{"$f":"IF(ISBLANK(INDIRECT(\"'\"&F2944&\"'!\"&H2944)),\"\",IFERROR(VLOOKUP(TEXT(INDIRECT(\"'\"&F2944&\"'!\"&H2944),\"0\"),Notes!$B$5:$C$100,2,FALSE),\"\"))","v":""},"2d","$I$102","$J$102"]
[14783,{"$f":"Menu!$F$29","v":"X"},{"$f":"Menu!$J$29","v":2020},{"$f":"IF(ISBLANK(INDIRECT(\"'\"&F2945&\"'!\"&G2945)),\"\",INDIRECT(\"'\"&F2945&\"'!\"&G2945))","v":""},{"$f":"IF(ISBLANK(INDIRECT(\"'\"&F2945&\"'!\"&H2945)),\"\",IFERROR(VLOOKUP(TEXT(INDIRECT(\"'\"&F2945&\"'!\"&H2945),\"0\"),Notes!$B$5:$C$100,2,FALSE),\"\"))","v":""},"2d","$K$102","$L$102"]
[14784,{"$f":"Menu!$F$29","v":"X"},{"$f":"Menu!$J$29","v":2020},{"$f":"IF(ISBLANK(INDIRECT(\"'\"&F2946&\"'!\"&G2946)),\"\",INDIRECT(\"'\"&F2946&\"'!\"&G2946))","v":""},{"$f":"IF(ISBLANK(INDIRECT(\"'\"&F2946&\"'!\"&H2946)),\"\",IFERROR(VLOOKUP(TEXT(INDIRECT(\"'\"&F2946&\"'!\"&H2946),\"0\"),Notes!$B$5:$C$100,2,FALSE),\"\"))","v":""},"2d","$M$102",{"$f":"IF(LEN(TRIM(MID(G2946,4,10)))-LEN(SUBSTITUTE(TRIM(MID(G2946,4,10)),\"$\",\"\"))=0,\"$\"&CHAR(CODE(MID(G2946,2,1))+1)&\"$\"&TRIM(MID(G2946,4,10)),\"$\"&MID(G2946,2,1)&CHAR(CODE(MID(G2946,3,1))+1)&\"$\"&TRIM(MID(G2946,5,11)))","v":"$N$102"}]
[14785,{"$f":"Menu!$F$29","v":"X"},{"$f":"Menu!$J$29","v":2020},{"$f":"IF(ISBLANK(INDIRECT(\"'\"&F2947&\"'!\"&G2947)),\"\",INDIRECT(\"'\"&F2947&\"'!\"&G2947))","v":""},{"$f":"IF(ISBLANK(INDIRECT(\"'\"&F2947&\"'!\"&H2947)),\"\",IFERROR(VLOOKUP(TEXT(INDIRECT(\"'\"&F2947&\"'!\"&H2947),\"0\"),Notes!$B$5:$C$100,2,FALSE),\"\"))","v":""},"2d","$O$102","$P$102"]
[14786,{"$f":"Menu!$F$29","v":"X"},{"$f":"Menu!$J$29","v":2020},{"$f":"IF(ISBLANK(INDIRECT(\"'\"&F2948&\"'!\"&G2948)),\"\",INDIRECT(\"'\"&F2948&\"'!\"&G2948))","v":""},{"$f":"IF(ISBLANK(INDIRECT(\"'\"&F2948&\"'!\"&H2948)),\"\",IFERROR(VLOOKUP(TEXT(INDIRECT(\"'\"&F2948&\"'!\"&H2948),\"0\"),Notes!$B$5:$C$100,2,FALSE),\"\"))","v":""},"2d","$Q$102","$R$102"]
[14787,{"$f":"Menu!$F$29","v":"X"},{"$f":"Menu!$J$29","v":2020},{"$f":"IF(ISBLANK(INDIRECT(\"'\"&F2949&\"'!\"&G2949)),\"\",INDIRECT(\"'\"&F2949&\"'!\"&G2949))","v":""},{"$f":"IF(ISBLANK(INDIRECT(\"'\"&F2949&\"'!\"&H2949)),\"\",IFERROR(VLOOKUP(TEXT(INDIRECT(\"'\"&F2949&\"'!\"&H2949),\"0\"),Notes!$B$5:$C$100,2,FALSE),\"\"))","v":""},"2d","$S$102","$T$102"]
[14788,{"$f":"Menu!$F$29","v":"X"},{"$f":"Menu!$J$29","v":2020},{"$f":"IF(ISBLANK(INDIRECT(\"'\"&F2950&\"'!\"&G2950)),\"\",INDIRECT(\"'\"&F2950&\"'!\"&G2950))","v":""},{"$f":"IF(ISBLANK(INDIRECT(\"'\"&F2950&\"'!\"&H2950)),\"\",IFERROR(VLOOKUP(TEXT(INDIRECT(\"'\"&F2950&\"'!\"&H2950),\"0\"),Notes!$B$5:$C$100,2,FALSE),\"\"))","v":""},"2d","$U$102","$V$102"]
[14789,{"$f":"Menu!$F$29","v":"X"},{"$f":"Menu!$J$29","v":2020},{"$f":"IF(ISBLANK(INDIRECT(\"'\"&F2951&\"'!\"&G2951)),\"\",INDIRECT(\"'\"&F2951&\"'!\"&G2951))","v":""},{"$f":"IF(ISBLANK(INDIRECT(\"'\"&F2951&\"'!\"&H2951)),\"\",IFERROR(VLOOKUP(TEXT(INDIRECT(\"'\"&F2951&\"'!\"&H2951),\"0\"),Notes!$B$5:$C$100,2,FALSE),\"\"))","v":""},"2d","$W$102","$X$102"]
[14790,{"$f":"Menu!$F$29","v":"X"},{"$f":"Menu!$J$29","v":2020},{"$f":"IF(ISBLANK(INDIRECT(\"'\"&F2952&\"'!\"&G2952)),\"\",INDIRECT(\"'\"&F2952&\"'!\"&G2952))","v":""},{"$f":"IF(ISBLANK(INDIRECT(\"'\"&F2952&\"'!\"&H2952)),\"\",IFERROR(VLOOKUP(TEXT(INDIRECT(\"'\"&F2952&\"'!\"&H2952),\"0\"),Notes!$B$5:$C$100,2,FALSE),\"\"))","v":""},"2d","$Y$102","$Z$102"]
[14791,{"$f":"Menu!$F$29","v":"X"},{"$f":"Menu!$J$29","v":2020},{"$f":"IF(ISBLANK(INDIRECT(\"'\"&F2953&\"'!\"&G2953)),\"\",INDIRECT(\"'\"&F2953&\"'!\"&G2953))","v":""},{"$f":"IF(ISBLANK(INDIRECT(\"'\"&F2953&\"'!\"&H2953)),\"\",IFERROR(VLOOKUP(TEXT(INDIRECT(\"'\"&F2953&\"'!\"&H2953),\"0\"),Notes!$B$5:$C$100,2,FALSE),\"\"))","v":""},"2d","$AA$102","$AB$102"]
[14792,{"$f":"Menu!$F$29","v":"X"},{"$f":"Menu!$J$29","v":2020},{"$f":"IF(ISBLANK(INDIRECT(\"'\"&F2954&\"'!\"&G2954)),\"\",INDIRECT(\"'\"&F2954&\"'!\"&G2954))","v":""},{"$f":"IF(ISBLANK(INDIRECT(\"'\"&F2954&\"'!\"&H2954)),\"\",IFERROR(VLOOKUP(TEXT(INDIRECT(\"'\"&F2954&\"'!\"&H2954),\"0\"),Notes!$B$5:$C$100,2,FALSE),\"\"))","v":""},"2d","$AC$102","$AD$102"]
[14793,{"$f":"Menu!$F$29","v":"X"},{"$f":"Menu!$J$29","v":2020},{"$f":"IF(ISBLANK(INDIRECT(\"'\"&F2955&\"'!\"&G2955)),\"\",INDIRECT(\"'\"&F2955&\"'!\"&G2955))","v":""},{"$f":"IF(ISBLANK(INDIRECT(\"'\"&F2955&\"'!\"&H2955)),\"\",IFERROR(VLOOKUP(TEXT(INDIRECT(\"'\"&F2955&\"'!\"&H2955),\"0\"),Notes!$B$5:$C$100,2,FALSE),\"\"))","v":""},"2d","$AE$102","$AF$102"]
[14794,{"$f":"Menu!$F$29","v":"X"},{"$f":"Menu!$J$29","v":2020},{"$f":"IF(ISBLANK(INDIRECT(\"'\"&F2956&\"'!\"&G2956)),\"\",INDIRECT(\"'\"&F2956&\"'!\"&G2956))","v":""},{"$f":"IF(ISBLANK(INDIRECT(\"'\"&F2956&\"'!\"&H2956)),\"\",IFERROR(VLOOKUP(TEXT(INDIRECT(\"'\"&F2956&\"'!\"&H2956),\"0\"),Notes!$B$5:$C$100,2,FALSE),\"\"))","v":""},"2d","$AG$102","$AH$102"]
[14795,{"$f":"Menu!$F$29","v":"X"},{"$f":"Menu!$J$29","v":2020},{"$f":"IF(ISBLANK(INDIRECT(\"'\"&F2957&\"'!\"&G2957)),\"\",INDIRECT(\"'\"&F2957&\"'!\"&G2957))","v":""},{"$f":"IF(ISBLANK(INDIRECT(\"'\"&F2957&\"'!\"&H2957)),\"\",IFERROR(VLOOKUP(TEXT(INDIRECT(\"'\"&F2957&\"'!\"&H2957),\"0\"),Notes!$B$5:$C$100,2,FALSE),\"\"))","v":""},"2d","$E$103","$F$103"]
[14796,{"$f":"Menu!$F$29","v":"X"},{"$f":"Menu!$J$29","v":2020},{"$f":"IF(ISBLANK(INDIRECT(\"'\"&F2958&\"'!\"&G2958)),\"\",INDIRECT(\"'\"&F2958&\"'!\"&G2958))","v":""},{"$f":"IF(ISBLANK(INDIRECT(\"'\"&F2958&\"'!\"&H2958)),\"\",IFERROR(VLOOKUP(TEXT(INDIRECT(\"'\"&F2958&\"'!\"&H2958),\"0\"),Notes!$B$5:$C$100,2,FALSE),\"\"))","v":""},"2d","$G$103","$H$103"]
[14797,{"$f":"Menu!$F$29","v":"X"},{"$f":"Menu!$J$29","v":2020},{"$f":"IF(ISBLANK(INDIRECT(\"'\"&F2959&\"'!\"&G2959)),\"\",INDIRECT(\"'\"&F2959&\"'!\"&G2959))","v":""},{"$f":"IF(ISBLANK(INDIRECT(\"'\"&F2959&\"'!\"&H2959)),\"\",IFERROR(VLOOKUP(TEXT(INDIRECT(\"'\"&F2959&\"'!\"&H2959),\"0\"),Notes!$B$5:$C$100,2,FALSE),\"\"))","v":""},"2d","$I$103","$J$103"]
[14798,{"$f":"Menu!$F$29","v":"X"},{"$f":"Menu!$J$29","v":2020},{"$f":"IF(ISBLANK(INDIRECT(\"'\"&F2960&\"'!\"&G2960)),\"\",INDIRECT(\"'\"&F2960&\"'!\"&G2960))","v":""},{"$f":"IF(ISBLANK(INDIRECT(\"'\"&F2960&\"'!\"&H2960)),\"\",IFERROR(VLOOKUP(TEXT(INDIRECT(\"'\"&F2960&\"'!\"&H2960),\"0\"),Notes!$B$5:$C$100,2,FALSE),\"\"))","v":""},"2d","$K$103","$L$103"]
[14799,{"$f":"Menu!$F$29","v":"X"},{"$f":"Menu!$J$29","v":2020},{"$f":"IF(ISBLANK(INDIRECT(\"'\"&F2961&\"'!\"&G2961)),\"\",INDIRECT(\"'\"&F2961&\"'!\"&G2961))","v":""},{"$f":"IF(ISBLANK(INDIRECT(\"'\"&F2961&\"'!\"&H2961)),\"\",IFERROR(VLOOKUP(TEXT(INDIRECT(\"'\"&F2961&\"'!\"&H2961),\"0\"),Notes!$B$5:$C$100,2,FALSE),\"\"))","v":""},"2d","$M$103","$N$103"]
[14800,{"$f":"Menu!$F$29","v":"X"},{"$f":"Menu!$J$29","v":2020},{"$f":"IF(ISBLANK(INDIRECT(\"'\"&F2962&\"'!\"&G2962)),\"\",INDIRECT(\"'\"&F2962&\"'!\"&G2962))","v":""},{"$f":"IF(ISBLANK(INDIRECT(\"'\"&F2962&\"'!\"&H2962)),\"\",IFERROR(VLOOKUP(TEXT(INDIRECT(\"'\"&F2962&\"'!\"&H2962),\"0\"),Notes!$B$5:$C$100,2,FALSE),\"\"))","v":""},"2d","$O$103","$P$103"]
[14801,{"$f":"Menu!$F$29","v":"X"},{"$f":"Menu!$J$29","v":2020},{"$f":"IF(ISBLANK(INDIRECT(\"'\"&F2963&\"'!\"&G2963)),\"\",INDIRECT(\"'\"&F2963&\"'!\"&G2963))","v":""},{"$f":"IF(ISBLANK(INDIRECT(\"'\"&F2963&\"'!\"&H2963)),\"\",IFERROR(VLOOKUP(TEXT(INDIRECT(\"'\"&F2963&\"'!\"&H2963),\"0\"),Notes!$B$5:$C$100,2,FALSE),\"\"))","v":""},"2d","$Q$103","$R$103"]
[14802,{"$f":"Menu!$F$29","v":"X"},{"$f":"Menu!$J$29","v":2020},{"$f":"IF(ISBLANK(INDIRECT(\"'\"&F2964&\"'!\"&G2964)),\"\",INDIRECT(\"'\"&F2964&\"'!\"&G2964))","v":""},{"$f":"IF(ISBLANK(INDIRECT(\"'\"&F2964&\"'!\"&H2964)),\"\",IFERROR(VLOOKUP(TEXT(INDIRECT(\"'\"&F2964&\"'!\"&H2964),\"0\"),Notes!$B$5:$C$100,2,FALSE),\"\"))","v":""},"2d","$S$103","$T$103"]
[14803,{"$f":"Menu!$F$29","v":"X"},{"$f":"Menu!$J$29","v":2020},{"$f":"IF(ISBLANK(INDIRECT(\"'\"&F2965&\"'!\"&G2965)),\"\",INDIRECT(\"'\"&F2965&\"'!\"&G2965))","v":""},{"$f":"IF(ISBLANK(INDIRECT(\"'\"&F2965&\"'!\"&H2965)),\"\",IFERROR(VLOOKUP(TEXT(INDIRECT(\"'\"&F2965&\"'!\"&H2965),\"0\"),Notes!$B$5:$C$100,2,FALSE),\"\"))","v":""},"2d","$U$103","$V$103"]
[14804,{"$f":"Menu!$F$29","v":"X"},{"$f":"Menu!$J$29","v":2020},{"$f":"IF(ISBLANK(INDIRECT(\"'\"&F2966&\"'!\"&G2966)),\"\",INDIRECT(\"'\"&F2966&\"'!\"&G2966))","v":""},{"$f":"IF(ISBLANK(INDIRECT(\"'\"&F2966&\"'!\"&H2966)),\"\",IFERROR(VLOOKUP(TEXT(INDIRECT(\"'\"&F2966&\"'!\"&H2966),\"0\"),Notes!$B$5:$C$100,2,FALSE),\"\"))","v":""},"2d","$W$103","$X$103"]
[14805,{"$f":"Menu!$F$29","v":"X"},{"$f":"Menu!$J$29","v":2020},{"$f":"IF(ISBLANK(INDIRECT(\"'\"&F2967&\"'!\"&G2967)),\"\",INDIRECT(\"'\"&F2967&\"'!\"&G2967))","v":""},{"$f":"IF(ISBLANK(INDIRECT(\"'\"&F2967&\"'!\"&H2967)),\"\",IFERROR(VLOOKUP(TEXT(INDIRECT(\"'\"&F2967&\"'!\"&H2967),\"0\"),Notes!$B$5:$C$100,2,FALSE),\"\"))","v":""},"2d","$Y$103","$Z$103"]
[14806,{"$f":"Menu!$F$29","v":"X"},{"$f":"Menu!$J$29","v":2020},{"$f":"IF(ISBLANK(INDIRECT(\"'\"&F2968&\"'!\"&G2968)),\"\",INDIRECT(\"'\"&F2968&\"'!\"&G2968))","v":""},{"$f":"IF(ISBLANK(INDIRECT(\"'\"&F2968&\"'!\"&H2968)),\"\",IFERROR(VLOOKUP(TEXT(INDIRECT(\"'\"&F2968&\"'!\"&H2968),\"0\"),Notes!$B$5:$C$100,2,FALSE),\"\"))","v":""},"2d","$AA$103","$AB$103"]
[14807,{"$f":"Menu!$F$29","v":"X"},{"$f":"Menu!$J$29","v":2020},{"$f":"IF(ISBLANK(INDIRECT(\"'\"&F2969&\"'!\"&G2969)),\"\",INDIRECT(\"'\"&F2969&\"'!\"&G2969))","v":""},{"$f":"IF(ISBLANK(INDIRECT(\"'\"&F2969&\"'!\"&H2969)),\"\",IFERROR(VLOOKUP(TEXT(INDIRECT(\"'\"&F2969&\"'!\"&H2969),\"0\"),Notes!$B$5:$C$100,2,FALSE),\"\"))","v":""},"2d","$AC$103","$AD$103"]
[14808,{"$f":"Menu!$F$29","v":"X"},{"$f":"Menu!$J$29","v":2020},{"$f":"IF(ISBLANK(INDIRECT(\"'\"&F2970&\"'!\"&G2970)),\"\",INDIRECT(\"'\"&F2970&\"'!\"&G2970))","v":""},{"$f":"IF(ISBLANK(INDIRECT(\"'\"&F2970&\"'!\"&H2970)),\"\",IFERROR(VLOOKUP(TEXT(INDIRECT(\"'\"&F2970&\"'!\"&H2970),\"0\"),Notes!$B$5:$C$100,2,FALSE),\"\"))","v":""},"2d","$AE$103","$AF$103"]
[14809,{"$f":"Menu!$F$29","v":"X"},{"$f":"Menu!$J$29","v":2020},{"$f":"IF(ISBLANK(INDIRECT(\"'\"&F2971&\"'!\"&G2971)),\"\",INDIRECT(\"'\"&F2971&\"'!\"&G2971))","v":""},{"$f":"IF(ISBLANK(INDIRECT(\"'\"&F2971&\"'!\"&H2971)),\"\",IFERROR(VLOOKUP(TEXT(INDIRECT(\"'\"&F2971&\"'!\"&H2971),\"0\"),Notes!$B$5:$C$100,2,FALSE),\"\"))","v":""},"2d","$AG$103","$AH$103"]
[14825,{"$f":"Menu!$F$29","v":"X"},{"$f":"Menu!$J$29","v":2020},{"$f":"IF(ISBLANK(INDIRECT(\"'\"&F2972&\"'!\"&G2972)),\"\",INDIRECT(\"'\"&F2972&\"'!\"&G2972))","v":""},{"$f":"IF(ISBLANK(INDIRECT(\"'\"&F2972&\"'!\"&H2972)),\"\",IFERROR(VLOOKUP(TEXT(INDIRECT(\"'\"&F2972&\"'!\"&H2972),\"0\"),Notes!$B$5:$C$100,2,FALSE),\"\"))","v":""},"2d","$E$98","$F$98"]
[14826,{"$f":"Menu!$F$29","v":"X"},{"$f":"Menu!$J$29","v":2020},{"$f":"IF(ISBLANK(INDIRECT(\"'\"&F2973&\"'!\"&G2973)),\"\",INDIRECT(\"'\"&F2973&\"'!\"&G2973))","v":""},{"$f":"IF(ISBLANK(INDIRECT(\"'\"&F2973&\"'!\"&H2973)),\"\",IFERROR(VLOOKUP(TEXT(INDIRECT(\"'\"&F2973&\"'!\"&H2973),\"0\"),Notes!$B$5:$C$100,2,FALSE),\"\"))","v":""},"2d","$G$98","$H$98"]
[14827,{"$f":"Menu!$F$29","v":"X"},{"$f":"Menu!$J$29","v":2020},{"$f":"IF(ISBLANK(INDIRECT(\"'\"&F2974&\"'!\"&G2974)),\"\",INDIRECT(\"'\"&F2974&\"'!\"&G2974))","v":""},{"$f":"IF(ISBLANK(INDIRECT(\"'\"&F2974&\"'!\"&H2974)),\"\",IFERROR(VLOOKUP(TEXT(INDIRECT(\"'\"&F2974&\"'!\"&H2974),\"0\"),Notes!$B$5:$C$100,2,FALSE),\"\"))","v":""},"2d","$I$98","$J$98"]
[14828,{"$f":"Menu!$F$29","v":"X"},{"$f":"Menu!$J$29","v":2020},{"$f":"IF(ISBLANK(INDIRECT(\"'\"&F2975&\"'!\"&G2975)),\"\",INDIRECT(\"'\"&F2975&\"'!\"&G2975))","v":""},{"$f":"IF(ISBLANK(INDIRECT(\"'\"&F2975&\"'!\"&H2975)),\"\",IFERROR(VLOOKUP(TEXT(INDIRECT(\"'\"&F2975&\"'!\"&H2975),\"0\"),Notes!$B$5:$C$100,2,FALSE),\"\"))","v":""},"2d","$K$98","$L$98"]
[14829,{"$f":"Menu!$F$29","v":"X"},{"$f":"Menu!$J$29","v":2020},{"$f":"IF(ISBLANK(INDIRECT(\"'\"&F2976&\"'!\"&G2976)),\"\",INDIRECT(\"'\"&F2976&\"'!\"&G2976))","v":""},{"$f":"IF(ISBLANK(INDIRECT(\"'\"&F2976&\"'!\"&H2976)),\"\",IFERROR(VLOOKUP(TEXT(INDIRECT(\"'\"&F2976&\"'!\"&H2976),\"0\"),Notes!$B$5:$C$100,2,FALSE),\"\"))","v":""},"2d","$M$98","$N$98"]
[14830,{"$f":"Menu!$F$29","v":"X"},{"$f":"Menu!$J$29","v":2020},{"$f":"IF(ISBLANK(INDIRECT(\"'\"&F2977&\"'!\"&G2977)),\"\",INDIRECT(\"'\"&F2977&\"'!\"&G2977))","v":""},{"$f":"IF(ISBLANK(INDIRECT(\"'\"&F2977&\"'!\"&H2977)),\"\",IFERROR(VLOOKUP(TEXT(INDIRECT(\"'\"&F2977&\"'!\"&H2977),\"0\"),Notes!$B$5:$C$100,2,FALSE),\"\"))","v":""},"2d","$O$98","$P$98"]
[14831,{"$f":"Menu!$F$29","v":"X"},{"$f":"Menu!$J$29","v":2020},{"$f":"IF(ISBLANK(INDIRECT(\"'\"&F2978&\"'!\"&G2978)),\"\",INDIRECT(\"'\"&F2978&\"'!\"&G2978))","v":""},{"$f":"IF(ISBLANK(INDIRECT(\"'\"&F2978&\"'!\"&H2978)),\"\",IFERROR(VLOOKUP(TEXT(INDIRECT(\"'\"&F2978&\"'!\"&H2978),\"0\"),Notes!$B$5:$C$100,2,FALSE),\"\"))","v":""},"2d","$Q$98","$R$98"]
[14832,{"$f":"Menu!$F$29","v":"X"},{"$f":"Menu!$J$29","v":2020},{"$f":"IF(ISBLANK(INDIRECT(\"'\"&F2979&\"'!\"&G2979)),\"\",INDIRECT(\"'\"&F2979&\"'!\"&G2979))","v":""},{"$f":"IF(ISBLANK(INDIRECT(\"'\"&F2979&\"'!\"&H2979)),\"\",IFERROR(VLOOKUP(TEXT(INDIRECT(\"'\"&F2979&\"'!\"&H2979),\"0\"),Notes!$B$5:$C$100,2,FALSE),\"\"))","v":""},"2d","$S$98","$T$98"]
[14833,{"$f":"Menu!$F$29","v":"X"},{"$f":"Menu!$J$29","v":2020},{"$f":"IF(ISBLANK(INDIRECT(\"'\"&F2980&\"'!\"&G2980)),\"\",INDIRECT(\"'\"&F2980&\"'!\"&G2980))","v":""},{"$f":"IF(ISBLANK(INDIRECT(\"'\"&F2980&\"'!\"&H2980)),\"\",IFERROR(VLOOKUP(TEXT(INDIRECT(\"'\"&F2980&\"'!\"&H2980),\"0\"),Notes!$B$5:$C$100,2,FALSE),\"\"))","v":""},"2d","$U$98","$V$98"]
[14834,{"$f":"Menu!$F$29","v":"X"},{"$f":"Menu!$J$29","v":2020},{"$f":"IF(ISBLANK(INDIRECT(\"'\"&F2981&\"'!\"&G2981)),\"\",INDIRECT(\"'\"&F2981&\"'!\"&G2981))","v":""},{"$f":"IF(ISBLANK(INDIRECT(\"'\"&F2981&\"'!\"&H2981)),\"\",IFERROR(VLOOKUP(TEXT(INDIRECT(\"'\"&F2981&\"'!\"&H2981),\"0\"),Notes!$B$5:$C$100,2,FALSE),\"\"))","v":""},"2d","$W$98","$X$98"]
[14835,{"$f":"Menu!$F$29","v":"X"},{"$f":"Menu!$J$29","v":2020},{"$f":"IF(ISBLANK(INDIRECT(\"'\"&F2982&\"'!\"&G2982)),\"\",INDIRECT(\"'\"&F2982&\"'!\"&G2982))","v":""},{"$f":"IF(ISBLANK(INDIRECT(\"'\"&F2982&\"'!\"&H2982)),\"\",IFERROR(VLOOKUP(TEXT(INDIRECT(\"'\"&F2982&\"'!\"&H2982),\"0\"),Notes!$B$5:$C$100,2,FALSE),\"\"))","v":""},"2d","$Y$98","$Z$98"]
[14836,{"$f":"Menu!$F$29","v":"X"},{"$f":"Menu!$J$29","v":2020},{"$f":"IF(ISBLANK(INDIRECT(\"'\"&F2983&\"'!\"&G2983)),\"\",INDIRECT(\"'\"&F2983&\"'!\"&G2983))","v":""},{"$f":"IF(ISBLANK(INDIRECT(\"'\"&F2983&\"'!\"&H2983)),\"\",IFERROR(VLOOKUP(TEXT(INDIRECT(\"'\"&F2983&\"'!\"&H2983),\"0\"),Notes!$B$5:$C$100,2,FALSE),\"\"))","v":""},"2d","$AA$98","$AB$98"]
[14837,{"$f":"Menu!$F$29","v":"X"},{"$f":"Menu!$J$29","v":2020},{"$f":"IF(ISBLANK(INDIRECT(\"'\"&F2984&\"'!\"&G2984)),\"\",INDIRECT(\"'\"&F2984&\"'!\"&G2984))","v":""},{"$f":"IF(ISBLANK(INDIRECT(\"'\"&F2984&\"'!\"&H2984)),\"\",IFERROR(VLOOKUP(TEXT(INDIRECT(\"'\"&F2984&\"'!\"&H2984),\"0\"),Notes!$B$5:$C$100,2,FALSE),\"\"))","v":""},"2d","$AC$98","$AD$98"]
[14838,{"$f":"Menu!$F$29","v":"X"},{"$f":"Menu!$J$29","v":2020},{"$f":"IF(ISBLANK(INDIRECT(\"'\"&F2985&\"'!\"&G2985)),\"\",INDIRECT(\"'\"&F2985&\"'!\"&G2985))","v":""},{"$f":"IF(ISBLANK(INDIRECT(\"'\"&F2985&\"'!\"&H2985)),\"\",IFERROR(VLOOKUP(TEXT(INDIRECT(\"'\"&F2985&\"'!\"&H2985),\"0\"),Notes!$B$5:$C$100,2,FALSE),\"\"))","v":""},"2d","$AE$98","$AF$98"]
[14839,{"$f":"Menu!$F$29","v":"X"},{"$f":"Menu!$J$29","v":2020},{"$f":"IF(ISBLANK(INDIRECT(\"'\"&F2986&\"'!\"&G2986)),\"\",INDIRECT(\"'\"&F2986&\"'!\"&G2986))","v":""},{"$f":"IF(ISBLANK(INDIRECT(\"'\"&F2986&\"'!\"&H2986)),\"\",IFERROR(VLOOKUP(TEXT(INDIRECT(\"'\"&F2986&\"'!\"&H2986),\"0\"),Notes!$B$5:$C$100,2,FALSE),\"\"))","v":""},"2d","$AG$98","$AH$98"]
[14840,{"$f":"Menu!$F$29","v":"X"},{"$f":"Menu!$J$29","v":2020},{"$f":"IF(ISBLANK(INDIRECT(\"'\"&F2987&\"'!\"&G2987)),\"\",INDIRECT(\"'\"&F2987&\"'!\"&G2987))","v":""},{"$f":"IF(ISBLANK(INDIRECT(\"'\"&F2987&\"'!\"&H2987)),\"\",IFERROR(VLOOKUP(TEXT(INDIRECT(\"'\"&F2987&\"'!\"&H2987),\"0\"),Notes!$B$5:$C$100,2,FALSE),\"\"))","v":""},"2d","$E$99","$F$99"]
[14841,{"$f":"Menu!$F$29","v":"X"},{"$f":"Menu!$J$29","v":2020},{"$f":"IF(ISBLANK(INDIRECT(\"'\"&F2988&\"'!\"&G2988)),\"\",INDIRECT(\"'\"&F2988&\"'!\"&G2988))","v":""},{"$f":"IF(ISBLANK(INDIRECT(\"'\"&F2988&\"'!\"&H2988)),\"\",IFERROR(VLOOKUP(TEXT(INDIRECT(\"'\"&F2988&\"'!\"&H2988),\"0\"),Notes!$B$5:$C$100,2,FALSE),\"\"))","v":""},"2d","$G$99","$H$99"]
[14842,{"$f":"Menu!$F$29","v":"X"},{"$f":"Menu!$J$29","v":2020},{"$f":"IF(ISBLANK(INDIRECT(\"'\"&F2989&\"'!\"&G2989)),\"\",INDIRECT(\"'\"&F2989&\"'!\"&G2989))","v":""},{"$f":"IF(ISBLANK(INDIRECT(\"'\"&F2989&\"'!\"&H2989)),\"\",IFERROR(VLOOKUP(TEXT(INDIRECT(\"'\"&F2989&\"'!\"&H2989),\"0\"),Notes!$B$5:$C$100,2,FALSE),\"\"))","v":""},"2d","$I$99","$J$99"]
[14843,{"$f":"Menu!$F$29","v":"X"},{"$f":"Menu!$J$29","v":2020},{"$f":"IF(ISBLANK(INDIRECT(\"'\"&F2990&\"'!\"&G2990)),\"\",INDIRECT(\"'\"&F2990&\"'!\"&G2990))","v":""},{"$f":"IF(ISBLANK(INDIRECT(\"'\"&F2990&\"'!\"&H2990)),\"\",IFERROR(VLOOKUP(TEXT(INDIRECT(\"'\"&F2990&\"'!\"&H2990),\"0\"),Notes!$B$5:$C$100,2,FALSE),\"\"))","v":""},"2d","$K$99","$L$99"]
[14844,{"$f":"Menu!$F$29","v":"X"},{"$f":"Menu!$J$29","v":2020},{"$f":"IF(ISBLANK(INDIRECT(\"'\"&F2991&\"'!\"&G2991)),\"\",INDIRECT(\"'\"&F2991&\"'!\"&G2991))","v":""},{"$f":"IF(ISBLANK(INDIRECT(\"'\"&F2991&\"'!\"&H2991)),\"\",IFERROR(VLOOKUP(TEXT(INDIRECT(\"'\"&F2991&\"'!\"&H2991),\"0\"),Notes!$B$5:$C$100,2,FALSE),\"\"))","v":""},"2d","$M$99","$N$99"]
[14845,{"$f":"Menu!$F$29","v":"X"},{"$f":"Menu!$J$29","v":2020},{"$f":"IF(ISBLANK(INDIRECT(\"'\"&F2992&\"'!\"&G2992)),\"\",INDIRECT(\"'\"&F2992&\"'!\"&G2992))","v":""},{"$f":"IF(ISBLANK(INDIRECT(\"'\"&F2992&\"'!\"&H2992)),\"\",IFERROR(VLOOKUP(TEXT(INDIRECT(\"'\"&F2992&\"'!\"&H2992),\"0\"),Notes!$B$5:$C$100,2,FALSE),\"\"))","v":""},"2d","$O$99","$P$99"]
[14846,{"$f":"Menu!$F$29","v":"X"},{"$f":"Menu!$J$29","v":2020},{"$f":"IF(ISBLANK(INDIRECT(\"'\"&F2993&\"'!\"&G2993)),\"\",INDIRECT(\"'\"&F2993&\"'!\"&G2993))","v":""},{"$f":"IF(ISBLANK(INDIRECT(\"'\"&F2993&\"'!\"&H2993)),\"\",IFERROR(VLOOKUP(TEXT(INDIRECT(\"'\"&F2993&\"'!\"&H2993),\"0\"),Notes!$B$5:$C$100,2,FALSE),\"\"))","v":""},"2d","$Q$99","$R$99"]
[14847,{"$f":"Menu!$F$29","v":"X"},{"$f":"Menu!$J$29","v":2020},{"$f":"IF(ISBLANK(INDIRECT(\"'\"&F2994&\"'!\"&G2994)),\"\",INDIRECT(\"'\"&F2994&\"'!\"&G2994))","v":""},{"$f":"IF(ISBLANK(INDIRECT(\"'\"&F2994&\"'!\"&H2994)),\"\",IFERROR(VLOOKUP(TEXT(INDIRECT(\"'\"&F2994&\"'!\"&H2994),\"0\"),Notes!$B$5:$C$100,2,FALSE),\"\"))","v":""},"2d","$S$99","$T$99"]
[14848,{"$f":"Menu!$F$29","v":"X"},{"$f":"Menu!$J$29","v":2020},{"$f":"IF(ISBLANK(INDIRECT(\"'\"&F2995&\"'!\"&G2995)),\"\",INDIRECT(\"'\"&F2995&\"'!\"&G2995))","v":""},{"$f":"IF(ISBLANK(INDIRECT(\"'\"&F2995&\"'!\"&H2995)),\"\",IFERROR(VLOOKUP(TEXT(INDIRECT(\"'\"&F2995&\"'!\"&H2995),\"0\"),Notes!$B$5:$C$100,2,FALSE),\"\"))","v":""},"2d","$U$99","$V$99"]
[14849,{"$f":"Menu!$F$29","v":"X"},{"$f":"Menu!$J$29","v":2020},{"$f":"IF(ISBLANK(INDIRECT(\"'\"&F2996&\"'!\"&G2996)),\"\",INDIRECT(\"'\"&F2996&\"'!\"&G2996))","v":""},{"$f":"IF(ISBLANK(INDIRECT(\"'\"&F2996&\"'!\"&H2996)),\"\",IFERROR(VLOOKUP(TEXT(INDIRECT(\"'\"&F2996&\"'!\"&H2996),\"0\"),Notes!$B$5:$C$100,2,FALSE),\"\"))","v":""},"2d","$W$99","$X$99"]
[14850,{"$f":"Menu!$F$29","v":"X"},{"$f":"Menu!$J$29","v":2020},{"$f":"IF(ISBLANK(INDIRECT(\"'\"&F2997&\"'!\"&G2997)),\"\",INDIRECT(\"'\"&F2997&\"'!\"&G2997))","v":""},{"$f":"IF(ISBLANK(INDIRECT(\"'\"&F2997&\"'!\"&H2997)),\"\",IFERROR(VLOOKUP(TEXT(INDIRECT(\"'\"&F2997&\"'!\"&H2997),\"0\"),Notes!$B$5:$C$100,2,FALSE),\"\"))","v":""},"2d","$Y$99","$Z$99"]
[14851,{"$f":"Menu!$F$29","v":"X"},{"$f":"Menu!$J$29","v":2020},{"$f":"IF(ISBLANK(INDIRECT(\"'\"&F2998&\"'!\"&G2998)),\"\",INDIRECT(\"'\"&F2998&\"'!\"&G2998))","v":""},{"$f":"IF(ISBLANK(INDIRECT(\"'\"&F2998&\"'!\"&H2998)),\"\",IFERROR(VLOOKUP(TEXT(INDIRECT(\"'\"&F2998&\"'!\"&H2998),\"0\"),Notes!$B$5:$C$100,2,FALSE),\"\"))","v":""},"2d","$AA$99","$AB$99"]
[14852,{"$f":"Menu!$F$29","v":"X"},{"$f":"Menu!$J$29","v":2020},{"$f":"IF(ISBLANK(INDIRECT(\"'\"&F2999&\"'!\"&G2999)),\"\",INDIRECT(\"'\"&F2999&\"'!\"&G2999))","v":""},{"$f":"IF(ISBLANK(INDIRECT(\"'\"&F2999&\"'!\"&H2999)),\"\",IFERROR(VLOOKUP(TEXT(INDIRECT(\"'\"&F2999&\"'!\"&H2999),\"0\"),Notes!$B$5:$C$100,2,FALSE),\"\"))","v":""},"2d","$AC$99","$AD$99"]
[14853,{"$f":"Menu!$F$29","v":"X"},{"$f":"Menu!$J$29","v":2020},{"$f":"IF(ISBLANK(INDIRECT(\"'\"&F3000&\"'!\"&G3000)),\"\",INDIRECT(\"'\"&F3000&\"'!\"&G3000))","v":""},{"$f":"IF(ISBLANK(INDIRECT(\"'\"&F3000&\"'!\"&H3000)),\"\",IFERROR(VLOOKUP(TEXT(INDIRECT(\"'\"&F3000&\"'!\"&H3000),\"0\"),Notes!$B$5:$C$100,2,FALSE),\"\"))","v":""},"2d","$AE$99","$AF$99"]
[14854,{"$f":"Menu!$F$29","v":"X"},{"$f":"Menu!$J$29","v":2020},{"$f":"IF(ISBLANK(INDIRECT(\"'\"&F3001&\"'!\"&G3001)),\"\",INDIRECT(\"'\"&F3001&\"'!\"&G3001))","v":""},{"$f":"IF(ISBLANK(INDIRECT(\"'\"&F3001&\"'!\"&H3001)),\"\",IFERROR(VLOOKUP(TEXT(INDIRECT(\"'\"&F3001&\"'!\"&H3001),\"0\"),Notes!$B$5:$C$100,2,FALSE),\"\"))","v":""},"2d","$AG$99","$AH$99"]
[14870,{"$f":"Menu!$F$29","v":"X"},{"$f":"Menu!$J$29","v":2020},{"$f":"IF(ISBLANK(INDIRECT(\"'\"&F3002&\"'!\"&G3002)),\"\",INDIRECT(\"'\"&F3002&\"'!\"&G3002))","v":""},{"$f":"IF(ISBLANK(INDIRECT(\"'\"&F3002&\"'!\"&H3002)),\"\",IFERROR(VLOOKUP(TEXT(INDIRECT(\"'\"&F3002&\"'!\"&H3002),\"0\"),Notes!$B$5:$C$100,2,FALSE),\"\"))","v":""},"2d","$E$105","$F$105"]
[14871,{"$f":"Menu!$F$29","v":"X"},{"$f":"Menu!$J$29","v":2020},{"$f":"IF(ISBLANK(INDIRECT(\"'\"&F3003&\"'!\"&G3003)),\"\",INDIRECT(\"'\"&F3003&\"'!\"&G3003))","v":""},{"$f":"IF(ISBLANK(INDIRECT(\"'\"&F3003&\"'!\"&H3003)),\"\",IFERROR(VLOOKUP(TEXT(INDIRECT(\"'\"&F3003&\"'!\"&H3003),\"0\"),Notes!$B$5:$C$100,2,FALSE),\"\"))","v":""},"2d","$G$105","$H$105"]
[14872,{"$f":"Menu!$F$29","v":"X"},{"$f":"Menu!$J$29","v":2020},{"$f":"IF(ISBLANK(INDIRECT(\"'\"&F3004&\"'!\"&G3004)),\"\",INDIRECT(\"'\"&F3004&\"'!\"&G3004))","v":""},{"$f":"IF(ISBLANK(INDIRECT(\"'\"&F3004&\"'!\"&H3004)),\"\",IFERROR(VLOOKUP(TEXT(INDIRECT(\"'\"&F3004&\"'!\"&H3004),\"0\"),Notes!$B$5:$C$100,2,FALSE),\"\"))","v":""},"2d","$I$105","$J$105"]
[14873,{"$f":"Menu!$F$29","v":"X"},{"$f":"Menu!$J$29","v":2020},{"$f":"IF(ISBLANK(INDIRECT(\"'\"&F3005&\"'!\"&G3005)),\"\",INDIRECT(\"'\"&F3005&\"'!\"&G3005))","v":""},{"$f":"IF(ISBLANK(INDIRECT(\"'\"&F3005&\"'!\"&H3005)),\"\",IFERROR(VLOOKUP(TEXT(INDIRECT(\"'\"&F3005&\"'!\"&H3005),\"0\"),Notes!$B$5:$C$100,2,FALSE),\"\"))","v":""},"2d","$K$105","$L$105"]
[14874,{"$f":"Menu!$F$29","v":"X"},{"$f":"Menu!$J$29","v":2020},{"$f":"IF(ISBLANK(INDIRECT(\"'\"&F3006&\"'!\"&G3006)),\"\",INDIRECT(\"'\"&F3006&\"'!\"&G3006))","v":""},{"$f":"IF(ISBLANK(INDIRECT(\"'\"&F3006&\"'!\"&H3006)),\"\",IFERROR(VLOOKUP(TEXT(INDIRECT(\"'\"&F3006&\"'!\"&H3006),\"0\"),Notes!$B$5:$C$100,2,FALSE),\"\"))","v":""},"2d","$M$105","$N$105"]
[14875,{"$f":"Menu!$F$29","v":"X"},{"$f":"Menu!$J$29","v":2020},{"$f":"IF(ISBLANK(INDIRECT(\"'\"&F3007&\"'!\"&G3007)),\"\",INDIRECT(\"'\"&F3007&\"'!\"&G3007))","v":""},{"$f":"IF(ISBLANK(INDIRECT(\"'\"&F3007&\"'!\"&H3007)),\"\",IFERROR(VLOOKUP(TEXT(INDIRECT(\"'\"&F3007&\"'!\"&H3007),\"0\"),Notes!$B$5:$C$100,2,FALSE),\"\"))","v":""},"2d","$O$105","$P$105"]
[14876,{"$f":"Menu!$F$29","v":"X"},{"$f":"Menu!$J$29","v":2020},{"$f":"IF(ISBLANK(INDIRECT(\"'\"&F3008&\"'!\"&G3008)),\"\",INDIRECT(\"'\"&F3008&\"'!\"&G3008))","v":""},{"$f":"IF(ISBLANK(INDIRECT(\"'\"&F3008&\"'!\"&H3008)),\"\",IFERROR(VLOOKUP(TEXT(INDIRECT(\"'\"&F3008&\"'!\"&H3008),\"0\"),Notes!$B$5:$C$100,2,FALSE),\"\"))","v":""},"2d","$Q$105","$R$105"]
[14877,{"$f":"Menu!$F$29","v":"X"},{"$f":"Menu!$J$29","v":2020},{"$f":"IF(ISBLANK(INDIRECT(\"'\"&F3009&\"'!\"&G3009)),\"\",INDIRECT(\"'\"&F3009&\"'!\"&G3009))","v":""},{"$f":"IF(ISBLANK(INDIRECT(\"'\"&F3009&\"'!\"&H3009)),\"\",IFERROR(VLOOKUP(TEXT(INDIRECT(\"'\"&F3009&\"'!\"&H3009),\"0\"),Notes!$B$5:$C$100,2,FALSE),\"\"))","v":""},"2d","$S$105","$T$105"]
[14878,{"$f":"Menu!$F$29","v":"X"},{"$f":"Menu!$J$29","v":2020},{"$f":"IF(ISBLANK(INDIRECT(\"'\"&F3010&\"'!\"&G3010)),\"\",INDIRECT(\"'\"&F3010&\"'!\"&G3010))","v":""},{"$f":"IF(ISBLANK(INDIRECT(\"'\"&F3010&\"'!\"&H3010)),\"\",IFERROR(VLOOKUP(TEXT(INDIRECT(\"'\"&F3010&\"'!\"&H3010),\"0\"),Notes!$B$5:$C$100,2,FALSE),\"\"))","v":""},"2d","$U$105",{"$f":"IF(LEN(TRIM(MID(G3010,4,10)))-LEN(SUBSTITUTE(TRIM(MID(G3010,4,10)),\"$\",\"\"))=0,\"$\"&CHAR(CODE(MID(G3010,2,1))+1)&\"$\"&TRIM(MID(G3010,4,10)),\"$\"&MID(G3010,2,1)&CHAR(CODE(MID(G3010,3,1))+1)&\"$\"&TRIM(MID(G3010,5,11)))","v":"$V$105"}]
[14879,{"$f":"Menu!$F$29","v":"X"},{"$f":"Menu!$J$29","v":2020},{"$f":"IF(ISBLANK(INDIRECT(\"'\"&F3011&\"'!\"&G3011)),\"\",INDIRECT(\"'\"&F3011&\"'!\"&G3011))","v":""},{"$f":"IF(ISBLANK(INDIRECT(\"'\"&F3011&\"'!\"&H3011)),\"\",IFERROR(VLOOKUP(TEXT(INDIRECT(\"'\"&F3011&\"'!\"&H3011),\"0\"),Notes!$B$5:$C$100,2,FALSE),\"\"))","v":""},"2d","$W$105","$X$105"]
[14880,{"$f":"Menu!$F$29","v":"X"},{"$f":"Menu!$J$29","v":2020},{"$f":"IF(ISBLANK(INDIRECT(\"'\"&F3012&\"'!\"&G3012)),\"\",INDIRECT(\"'\"&F3012&\"'!\"&G3012))","v":""},{"$f":"IF(ISBLANK(INDIRECT(\"'\"&F3012&\"'!\"&H3012)),\"\",IFERROR(VLOOKUP(TEXT(INDIRECT(\"'\"&F3012&\"'!\"&H3012),\"0\"),Notes!$B$5:$C$100,2,FALSE),\"\"))","v":""},"2d","$Y$105","$Z$105"]
[14881,{"$f":"Menu!$F$29","v":"X"},{"$f":"Menu!$J$29","v":2020},{"$f":"IF(ISBLANK(INDIRECT(\"'\"&F3013&\"'!\"&G3013)),\"\",INDIRECT(\"'\"&F3013&\"'!\"&G3013))","v":""},{"$f":"IF(ISBLANK(INDIRECT(\"'\"&F3013&\"'!\"&H3013)),\"\",IFERROR(VLOOKUP(TEXT(INDIRECT(\"'\"&F3013&\"'!\"&H3013),\"0\"),Notes!$B$5:$C$100,2,FALSE),\"\"))","v":""},"2d","$AA$105","$AB$105"]
[14882,{"$f":"Menu!$F$29","v":"X"},{"$f":"Menu!$J$29","v":2020},{"$f":"IF(ISBLANK(INDIRECT(\"'\"&F3014&\"'!\"&G3014)),\"\",INDIRECT(\"'\"&F3014&\"'!\"&G3014))","v":""},{"$f":"IF(ISBLANK(INDIRECT(\"'\"&F3014&\"'!\"&H3014)),\"\",IFERROR(VLOOKUP(TEXT(INDIRECT(\"'\"&F3014&\"'!\"&H3014),\"0\"),Notes!$B$5:$C$100,2,FALSE),\"\"))","v":""},"2d","$AC$105","$AD$105"]
[14883,{"$f":"Menu!$F$29","v":"X"},{"$f":"Menu!$J$29","v":2020},{"$f":"IF(ISBLANK(INDIRECT(\"'\"&F3015&\"'!\"&G3015)),\"\",INDIRECT(\"'\"&F3015&\"'!\"&G3015))","v":""},{"$f":"IF(ISBLANK(INDIRECT(\"'\"&F3015&\"'!\"&H3015)),\"\",IFERROR(VLOOKUP(TEXT(INDIRECT(\"'\"&F3015&\"'!\"&H3015),\"0\"),Notes!$B$5:$C$100,2,FALSE),\"\"))","v":""},"2d","$AE$105","$AF$105"]
[14884,{"$f":"Menu!$F$29","v":"X"},{"$f":"Menu!$J$29","v":2020},{"$f":"IF(ISBLANK(INDIRECT(\"'\"&F3016&\"'!\"&G3016)),\"\",INDIRECT(\"'\"&F3016&\"'!\"&G3016))","v":""},{"$f":"IF(ISBLANK(INDIRECT(\"'\"&F3016&\"'!\"&H3016)),\"\",IFERROR(VLOOKUP(TEXT(INDIRECT(\"'\"&F3016&\"'!\"&H3016),\"0\"),Notes!$B$5:$C$100,2,FALSE),\"\"))","v":""},"2d","$AG$105","$AH$105"]
[14915,{"$f":"Menu!$F$29","v":"X"},{"$f":"Menu!$J$29","v":2020},{"$f":"IF(ISBLANK(INDIRECT(\"'\"&F3017&\"'!\"&G3017)),\"\",INDIRECT(\"'\"&F3017&\"'!\"&G3017))","v":""},{"$f":"IF(ISBLANK(INDIRECT(\"'\"&F3017&\"'!\"&H3017)),\"\",IFERROR(VLOOKUP(TEXT(INDIRECT(\"'\"&F3017&\"'!\"&H3017),\"0\"),Notes!$B$5:$C$100,2,FALSE),\"\"))","v":""},"2d","$E$34","$F$34"]
[14916,{"$f":"Menu!$F$29","v":"X"},{"$f":"Menu!$J$29","v":2020},{"$f":"IF(ISBLANK(INDIRECT(\"'\"&F3018&\"'!\"&G3018)),\"\",INDIRECT(\"'\"&F3018&\"'!\"&G3018))","v":""},{"$f":"IF(ISBLANK(INDIRECT(\"'\"&F3018&\"'!\"&H3018)),\"\",IFERROR(VLOOKUP(TEXT(INDIRECT(\"'\"&F3018&\"'!\"&H3018),\"0\"),Notes!$B$5:$C$100,2,FALSE),\"\"))","v":""},"2d","$G$34","$H$34"]
[14917,{"$f":"Menu!$F$29","v":"X"},{"$f":"Menu!$J$29","v":2020},{"$f":"IF(ISBLANK(INDIRECT(\"'\"&F3019&\"'!\"&G3019)),\"\",INDIRECT(\"'\"&F3019&\"'!\"&G3019))","v":""},{"$f":"IF(ISBLANK(INDIRECT(\"'\"&F3019&\"'!\"&H3019)),\"\",IFERROR(VLOOKUP(TEXT(INDIRECT(\"'\"&F3019&\"'!\"&H3019),\"0\"),Notes!$B$5:$C$100,2,FALSE),\"\"))","v":""},"2d","$I$34","$J$34"]
[14918,{"$f":"Menu!$F$29","v":"X"},{"$f":"Menu!$J$29","v":2020},{"$f":"IF(ISBLANK(INDIRECT(\"'\"&F3020&\"'!\"&G3020)),\"\",INDIRECT(\"'\"&F3020&\"'!\"&G3020))","v":""},{"$f":"IF(ISBLANK(INDIRECT(\"'\"&F3020&\"'!\"&H3020)),\"\",IFERROR(VLOOKUP(TEXT(INDIRECT(\"'\"&F3020&\"'!\"&H3020),\"0\"),Notes!$B$5:$C$100,2,FALSE),\"\"))","v":""},"2d","$K$34","$L$34"]
[14919,{"$f":"Menu!$F$29","v":"X"},{"$f":"Menu!$J$29","v":2020},{"$f":"IF(ISBLANK(INDIRECT(\"'\"&F3021&\"'!\"&G3021)),\"\",INDIRECT(\"'\"&F3021&\"'!\"&G3021))","v":""},{"$f":"IF(ISBLANK(INDIRECT(\"'\"&F3021&\"'!\"&H3021)),\"\",IFERROR(VLOOKUP(TEXT(INDIRECT(\"'\"&F3021&\"'!\"&H3021),\"0\"),Notes!$B$5:$C$100,2,FALSE),\"\"))","v":""},"2d","$M$34","$N$34"]
[14920,{"$f":"Menu!$F$29","v":"X"},{"$f":"Menu!$J$29","v":2020},{"$f":"IF(ISBLANK(INDIRECT(\"'\"&F3022&\"'!\"&G3022)),\"\",INDIRECT(\"'\"&F3022&\"'!\"&G3022))","v":""},{"$f":"IF(ISBLANK(INDIRECT(\"'\"&F3022&\"'!\"&H3022)),\"\",IFERROR(VLOOKUP(TEXT(INDIRECT(\"'\"&F3022&\"'!\"&H3022),\"0\"),Notes!$B$5:$C$100,2,FALSE),\"\"))","v":""},"2d","$O$34","$P$34"]
[14921,{"$f":"Menu!$F$29","v":"X"},{"$f":"Menu!$J$29","v":2020},{"$f":"IF(ISBLANK(INDIRECT(\"'\"&F3023&\"'!\"&G3023)),\"\",INDIRECT(\"'\"&F3023&\"'!\"&G3023))","v":""},{"$f":"IF(ISBLANK(INDIRECT(\"'\"&F3023&\"'!\"&H3023)),\"\",IFERROR(VLOOKUP(TEXT(INDIRECT(\"'\"&F3023&\"'!\"&H3023),\"0\"),Notes!$B$5:$C$100,2,FALSE),\"\"))","v":""},"2d","$Q$34","$R$34"]
[14922,{"$f":"Menu!$F$29","v":"X"},{"$f":"Menu!$J$29","v":2020},{"$f":"IF(ISBLANK(INDIRECT(\"'\"&F3024&\"'!\"&G3024)),\"\",INDIRECT(\"'\"&F3024&\"'!\"&G3024))","v":""},{"$f":"IF(ISBLANK(INDIRECT(\"'\"&F3024&\"'!\"&H3024)),\"\",IFERROR(VLOOKUP(TEXT(INDIRECT(\"'\"&F3024&\"'!\"&H3024),\"0\"),Notes!$B$5:$C$100,2,FALSE),\"\"))","v":""},"2d","$S$34","$T$34"]
[14923,{"$f":"Menu!$F$29","v":"X"},{"$f":"Menu!$J$29","v":2020},{"$f":"IF(ISBLANK(INDIRECT(\"'\"&F3025&\"'!\"&G3025)),\"\",INDIRECT(\"'\"&F3025&\"'!\"&G3025))","v":""},{"$f":"IF(ISBLANK(INDIRECT(\"'\"&F3025&\"'!\"&H3025)),\"\",IFERROR(VLOOKUP(TEXT(INDIRECT(\"'\"&F3025&\"'!\"&H3025),\"0\"),Notes!$B$5:$C$100,2,FALSE),\"\"))","v":""},"2d","$U$34","$V$34"]
[14924,{"$f":"Menu!$F$29","v":"X"},{"$f":"Menu!$J$29","v":2020},{"$f":"IF(ISBLANK(INDIRECT(\"'\"&F3026&\"'!\"&G3026)),\"\",INDIRECT(\"'\"&F3026&\"'!\"&G3026))","v":""},{"$f":"IF(ISBLANK(INDIRECT(\"'\"&F3026&\"'!\"&H3026)),\"\",IFERROR(VLOOKUP(TEXT(INDIRECT(\"'\"&F3026&\"'!\"&H3026),\"0\"),Notes!$B$5:$C$100,2,FALSE),\"\"))","v":""},"2d","$W$34","$X$34"]
[14925,{"$f":"Menu!$F$29","v":"X"},{"$f":"Menu!$J$29","v":2020},{"$f":"IF(ISBLANK(INDIRECT(\"'\"&F3027&\"'!\"&G3027)),\"\",INDIRECT(\"'\"&F3027&\"'!\"&G3027))","v":""},{"$f":"IF(ISBLANK(INDIRECT(\"'\"&F3027&\"'!\"&H3027)),\"\",IFERROR(VLOOKUP(TEXT(INDIRECT(\"'\"&F3027&\"'!\"&H3027),\"0\"),Notes!$B$5:$C$100,2,FALSE),\"\"))","v":""},"2d","$Y$34","$Z$34"]
[14926,{"$f":"Menu!$F$29","v":"X"},{"$f":"Menu!$J$29","v":2020},{"$f":"IF(ISBLANK(INDIRECT(\"'\"&F3028&\"'!\"&G3028)),\"\",INDIRECT(\"'\"&F3028&\"'!\"&G3028))","v":""},{"$f":"IF(ISBLANK(INDIRECT(\"'\"&F3028&\"'!\"&H3028)),\"\",IFERROR(VLOOKUP(TEXT(INDIRECT(\"'\"&F3028&\"'!\"&H3028),\"0\"),Notes!$B$5:$C$100,2,FALSE),\"\"))","v":""},"2d","$AA$34","$AB$34"]
[14927,{"$f":"Menu!$F$29","v":"X"},{"$f":"Menu!$J$29","v":2020},{"$f":"IF(ISBLANK(INDIRECT(\"'\"&F3029&\"'!\"&G3029)),\"\",INDIRECT(\"'\"&F3029&\"'!\"&G3029))","v":""},{"$f":"IF(ISBLANK(INDIRECT(\"'\"&F3029&\"'!\"&H3029)),\"\",IFERROR(VLOOKUP(TEXT(INDIRECT(\"'\"&F3029&\"'!\"&H3029),\"0\"),Notes!$B$5:$C$100,2,FALSE),\"\"))","v":""},"2d","$AC$34","$AD$34"]
[14928,{"$f":"Menu!$F$29","v":"X"},{"$f":"Menu!$J$29","v":2020},{"$f":"IF(ISBLANK(INDIRECT(\"'\"&F3030&\"'!\"&G3030)),\"\",INDIRECT(\"'\"&F3030&\"'!\"&G3030))","v":""},{"$f":"IF(ISBLANK(INDIRECT(\"'\"&F3030&\"'!\"&H3030)),\"\",IFERROR(VLOOKUP(TEXT(INDIRECT(\"'\"&F3030&\"'!\"&H3030),\"0\"),Notes!$B$5:$C$100,2,FALSE),\"\"))","v":""},"2d","$AE$34","$AF$34"]
[14929,{"$f":"Menu!$F$29","v":"X"},{"$f":"Menu!$J$29","v":2020},{"$f":"IF(ISBLANK(INDIRECT(\"'\"&F3031&\"'!\"&G3031)),\"\",INDIRECT(\"'\"&F3031&\"'!\"&G3031))","v":""},{"$f":"IF(ISBLANK(INDIRECT(\"'\"&F3031&\"'!\"&H3031)),\"\",IFERROR(VLOOKUP(TEXT(INDIRECT(\"'\"&F3031&\"'!\"&H3031),\"0\"),Notes!$B$5:$C$100,2,FALSE),\"\"))","v":""},"2d","$AG$34","$AH$34"]
[14930,{"$f":"Menu!$F$29","v":"X"},{"$f":"Menu!$J$29","v":2020},{"$f":"IF(ISBLANK(INDIRECT(\"'\"&F3032&\"'!\"&G3032)),\"\",INDIRECT(\"'\"&F3032&\"'!\"&G3032))","v":""},{"$f":"IF(ISBLANK(INDIRECT(\"'\"&F3032&\"'!\"&H3032)),\"\",IFERROR(VLOOKUP(TEXT(INDIRECT(\"'\"&F3032&\"'!\"&H3032),\"0\"),Notes!$B$5:$C$100,2,FALSE),\"\"))","v":""},"2d","$E$106","$F$106"]
[14931,{"$f":"Menu!$F$29","v":"X"},{"$f":"Menu!$J$29","v":2020},{"$f":"IF(ISBLANK(INDIRECT(\"'\"&F3033&\"'!\"&G3033)),\"\",INDIRECT(\"'\"&F3033&\"'!\"&G3033))","v":""},{"$f":"IF(ISBLANK(INDIRECT(\"'\"&F3033&\"'!\"&H3033)),\"\",IFERROR(VLOOKUP(TEXT(INDIRECT(\"'\"&F3033&\"'!\"&H3033),\"0\"),Notes!$B$5:$C$100,2,FALSE),\"\"))","v":""},"2d","$G$106","$H$106"]
[14932,{"$f":"Menu!$F$29","v":"X"},{"$f":"Menu!$J$29","v":2020},{"$f":"IF(ISBLANK(INDIRECT(\"'\"&F3034&\"'!\"&G3034)),\"\",INDIRECT(\"'\"&F3034&\"'!\"&G3034))","v":""},{"$f":"IF(ISBLANK(INDIRECT(\"'\"&F3034&\"'!\"&H3034)),\"\",IFERROR(VLOOKUP(TEXT(INDIRECT(\"'\"&F3034&\"'!\"&H3034),\"0\"),Notes!$B$5:$C$100,2,FALSE),\"\"))","v":""},"2d","$I$106","$J$106"]
[14933,{"$f":"Menu!$F$29","v":"X"},{"$f":"Menu!$J$29","v":2020},{"$f":"IF(ISBLANK(INDIRECT(\"'\"&F3035&\"'!\"&G3035)),\"\",INDIRECT(\"'\"&F3035&\"'!\"&G3035))","v":""},{"$f":"IF(ISBLANK(INDIRECT(\"'\"&F3035&\"'!\"&H3035)),\"\",IFERROR(VLOOKUP(TEXT(INDIRECT(\"'\"&F3035&\"'!\"&H3035),\"0\"),Notes!$B$5:$C$100,2,FALSE),\"\"))","v":""},"2d","$K$106","$L$106"]
[14934,{"$f":"Menu!$F$29","v":"X"},{"$f":"Menu!$J$29","v":2020},{"$f":"IF(ISBLANK(INDIRECT(\"'\"&F3036&\"'!\"&G3036)),\"\",INDIRECT(\"'\"&F3036&\"'!\"&G3036))","v":""},{"$f":"IF(ISBLANK(INDIRECT(\"'\"&F3036&\"'!\"&H3036)),\"\",IFERROR(VLOOKUP(TEXT(INDIRECT(\"'\"&F3036&\"'!\"&H3036),\"0\"),Notes!$B$5:$C$100,2,FALSE),\"\"))","v":""},"2d","$M$106","$N$106"]
[14935,{"$f":"Menu!$F$29","v":"X"},{"$f":"Menu!$J$29","v":2020},{"$f":"IF(ISBLANK(INDIRECT(\"'\"&F3037&\"'!\"&G3037)),\"\",INDIRECT(\"'\"&F3037&\"'!\"&G3037))","v":""},{"$f":"IF(ISBLANK(INDIRECT(\"'\"&F3037&\"'!\"&H3037)),\"\",IFERROR(VLOOKUP(TEXT(INDIRECT(\"'\"&F3037&\"'!\"&H3037),\"0\"),Notes!$B$5:$C$100,2,FALSE),\"\"))","v":""},"2d","$O$106","$P$106"]
[14936,{"$f":"Menu!$F$29","v":"X"},{"$f":"Menu!$J$29","v":2020},{"$f":"IF(ISBLANK(INDIRECT(\"'\"&F3038&\"'!\"&G3038)),\"\",INDIRECT(\"'\"&F3038&\"'!\"&G3038))","v":""},{"$f":"IF(ISBLANK(INDIRECT(\"'\"&F3038&\"'!\"&H3038)),\"\",IFERROR(VLOOKUP(TEXT(INDIRECT(\"'\"&F3038&\"'!\"&H3038),\"0\"),Notes!$B$5:$C$100,2,FALSE),\"\"))","v":""},"2d","$Q$106","$R$106"]
[14937,{"$f":"Menu!$F$29","v":"X"},{"$f":"Menu!$J$29","v":2020},{"$f":"IF(ISBLANK(INDIRECT(\"'\"&F3039&\"'!\"&G3039)),\"\",INDIRECT(\"'\"&F3039&\"'!\"&G3039))","v":""},{"$f":"IF(ISBLANK(INDIRECT(\"'\"&F3039&\"'!\"&H3039)),\"\",IFERROR(VLOOKUP(TEXT(INDIRECT(\"'\"&F3039&\"'!\"&H3039),\"0\"),Notes!$B$5:$C$100,2,FALSE),\"\"))","v":""},"2d","$S$106","$T$106"]
[14938,{"$f":"Menu!$F$29","v":"X"},{"$f":"Menu!$J$29","v":2020},{"$f":"IF(ISBLANK(INDIRECT(\"'\"&F3040&\"'!\"&G3040)),\"\",INDIRECT(\"'\"&F3040&\"'!\"&G3040))","v":""},{"$f":"IF(ISBLANK(INDIRECT(\"'\"&F3040&\"'!\"&H3040)),\"\",IFERROR(VLOOKUP(TEXT(INDIRECT(\"'\"&F3040&\"'!\"&H3040),\"0\"),Notes!$B$5:$C$100,2,FALSE),\"\"))","v":""},"2d","$U$106","$V$106"]
[14939,{"$f":"Menu!$F$29","v":"X"},{"$f":"Menu!$J$29","v":2020},{"$f":"IF(ISBLANK(INDIRECT(\"'\"&F3041&\"'!\"&G3041)),\"\",INDIRECT(\"'\"&F3041&\"'!\"&G3041))","v":""},{"$f":"IF(ISBLANK(INDIRECT(\"'\"&F3041&\"'!\"&H3041)),\"\",IFERROR(VLOOKUP(TEXT(INDIRECT(\"'\"&F3041&\"'!\"&H3041),\"0\"),Notes!$B$5:$C$100,2,FALSE),\"\"))","v":""},"2d","$W$106","$X$106"]
[14940,{"$f":"Menu!$F$29","v":"X"},{"$f":"Menu!$J$29","v":2020},{"$f":"IF(ISBLANK(INDIRECT(\"'\"&F3042&\"'!\"&G3042)),\"\",INDIRECT(\"'\"&F3042&\"'!\"&G3042))","v":""},{"$f":"IF(ISBLANK(INDIRECT(\"'\"&F3042&\"'!\"&H3042)),\"\",IFERROR(VLOOKUP(TEXT(INDIRECT(\"'\"&F3042&\"'!\"&H3042),\"0\"),Notes!$B$5:$C$100,2,FALSE),\"\"))","v":""},"2d","$Y$106","$Z$106"]
[14941,{"$f":"Menu!$F$29","v":"X"},{"$f":"Menu!$J$29","v":2020},{"$f":"IF(ISBLANK(INDIRECT(\"'\"&F3043&\"'!\"&G3043)),\"\",INDIRECT(\"'\"&F3043&\"'!\"&G3043))","v":""},{"$f":"IF(ISBLANK(INDIRECT(\"'\"&F3043&\"'!\"&H3043)),\"\",IFERROR(VLOOKUP(TEXT(INDIRECT(\"'\"&F3043&\"'!\"&H3043),\"0\"),Notes!$B$5:$C$100,2,FALSE),\"\"))","v":""},"2d","$AA$106","$AB$106"]
[14942,{"$f":"Menu!$F$29","v":"X"},{"$f":"Menu!$J$29","v":2020},{"$f":"IF(ISBLANK(INDIRECT(\"'\"&F3044&\"'!\"&G3044)),\"\",INDIRECT(\"'\"&F3044&\"'!\"&G3044))","v":""},{"$f":"IF(ISBLANK(INDIRECT(\"'\"&F3044&\"'!\"&H3044)),\"\",IFERROR(VLOOKUP(TEXT(INDIRECT(\"'\"&F3044&\"'!\"&H3044),\"0\"),Notes!$B$5:$C$100,2,FALSE),\"\"))","v":""},"2d","$AC$106","$AD$106"]
[14943,{"$f":"Menu!$F$29","v":"X"},{"$f":"Menu!$J$29","v":2020},{"$f":"IF(ISBLANK(INDIRECT(\"'\"&F3045&\"'!\"&G3045)),\"\",INDIRECT(\"'\"&F3045&\"'!\"&G3045))","v":""},{"$f":"IF(ISBLANK(INDIRECT(\"'\"&F3045&\"'!\"&H3045)),\"\",IFERROR(VLOOKUP(TEXT(INDIRECT(\"'\"&F3045&\"'!\"&H3045),\"0\"),Notes!$B$5:$C$100,2,FALSE),\"\"))","v":""},"2d","$AE$106","$AF$106"]
[14944,{"$f":"Menu!$F$29","v":"X"},{"$f":"Menu!$J$29","v":2020},{"$f":"IF(ISBLANK(INDIRECT(\"'\"&F3046&\"'!\"&G3046)),\"\",INDIRECT(\"'\"&F3046&\"'!\"&G3046))","v":""},{"$f":"IF(ISBLANK(INDIRECT(\"'\"&F3046&\"'!\"&H3046)),\"\",IFERROR(VLOOKUP(TEXT(INDIRECT(\"'\"&F3046&\"'!\"&H3046),\"0\"),Notes!$B$5:$C$100,2,FALSE),\"\"))","v":""},"2d","$AG$106","$AH$106"]
[14945,{"$f":"Menu!$F$29","v":"X"},{"$f":"Menu!$J$29","v":2020},{"$f":"IF(ISBLANK(INDIRECT(\"'\"&F3047&\"'!\"&G3047)),\"\",INDIRECT(\"'\"&F3047&\"'!\"&G3047))","v":""},{"$f":"IF(ISBLANK(INDIRECT(\"'\"&F3047&\"'!\"&H3047)),\"\",IFERROR(VLOOKUP(TEXT(INDIRECT(\"'\"&F3047&\"'!\"&H3047),\"0\"),Notes!$B$5:$C$100,2,FALSE),\"\"))","v":""},"2d","$E$38","$F$38"]
[14946,{"$f":"Menu!$F$29","v":"X"},{"$f":"Menu!$J$29","v":2020},{"$f":"IF(ISBLANK(INDIRECT(\"'\"&F3048&\"'!\"&G3048)),\"\",INDIRECT(\"'\"&F3048&\"'!\"&G3048))","v":""},{"$f":"IF(ISBLANK(INDIRECT(\"'\"&F3048&\"'!\"&H3048)),\"\",IFERROR(VLOOKUP(TEXT(INDIRECT(\"'\"&F3048&\"'!\"&H3048),\"0\"),Notes!$B$5:$C$100,2,FALSE),\"\"))","v":""},"2d","$G$38","$H$38"]
[14947,{"$f":"Menu!$F$29","v":"X"},{"$f":"Menu!$J$29","v":2020},{"$f":"IF(ISBLANK(INDIRECT(\"'\"&F3049&\"'!\"&G3049)),\"\",INDIRECT(\"'\"&F3049&\"'!\"&G3049))","v":""},{"$f":"IF(ISBLANK(INDIRECT(\"'\"&F3049&\"'!\"&H3049)),\"\",IFERROR(VLOOKUP(TEXT(INDIRECT(\"'\"&F3049&\"'!\"&H3049),\"0\"),Notes!$B$5:$C$100,2,FALSE),\"\"))","v":""},"2d","$I$38","$J$38"]
[14948,{"$f":"Menu!$F$29","v":"X"},{"$f":"Menu!$J$29","v":2020},{"$f":"IF(ISBLANK(INDIRECT(\"'\"&F3050&\"'!\"&G3050)),\"\",INDIRECT(\"'\"&F3050&\"'!\"&G3050))","v":""},{"$f":"IF(ISBLANK(INDIRECT(\"'\"&F3050&\"'!\"&H3050)),\"\",IFERROR(VLOOKUP(TEXT(INDIRECT(\"'\"&F3050&\"'!\"&H3050),\"0\"),Notes!$B$5:$C$100,2,FALSE),\"\"))","v":""},"2d","$K$38","$L$38"]
[14949,{"$f":"Menu!$F$29","v":"X"},{"$f":"Menu!$J$29","v":2020},{"$f":"IF(ISBLANK(INDIRECT(\"'\"&F3051&\"'!\"&G3051)),\"\",INDIRECT(\"'\"&F3051&\"'!\"&G3051))","v":""},{"$f":"IF(ISBLANK(INDIRECT(\"'\"&F3051&\"'!\"&H3051)),\"\",IFERROR(VLOOKUP(TEXT(INDIRECT(\"'\"&F3051&\"'!\"&H3051),\"0\"),Notes!$B$5:$C$100,2,FALSE),\"\"))","v":""},"2d","$M$38","$N$38"]
[14950,{"$f":"Menu!$F$29","v":"X"},{"$f":"Menu!$J$29","v":2020},{"$f":"IF(ISBLANK(INDIRECT(\"'\"&F3052&\"'!\"&G3052)),\"\",INDIRECT(\"'\"&F3052&\"'!\"&G3052))","v":""},{"$f":"IF(ISBLANK(INDIRECT(\"'\"&F3052&\"'!\"&H3052)),\"\",IFERROR(VLOOKUP(TEXT(INDIRECT(\"'\"&F3052&\"'!\"&H3052),\"0\"),Notes!$B$5:$C$100,2,FALSE),\"\"))","v":""},"2d","$O$38","$P$38"]
[14951,{"$f":"Menu!$F$29","v":"X"},{"$f":"Menu!$J$29","v":2020},{"$f":"IF(ISBLANK(INDIRECT(\"'\"&F3053&\"'!\"&G3053)),\"\",INDIRECT(\"'\"&F3053&\"'!\"&G3053))","v":""},{"$f":"IF(ISBLANK(INDIRECT(\"'\"&F3053&\"'!\"&H3053)),\"\",IFERROR(VLOOKUP(TEXT(INDIRECT(\"'\"&F3053&\"'!\"&H3053),\"0\"),Notes!$B$5:$C$100,2,FALSE),\"\"))","v":""},"2d","$Q$38","$R$38"]
[14952,{"$f":"Menu!$F$29","v":"X"},{"$f":"Menu!$J$29","v":2020},{"$f":"IF(ISBLANK(INDIRECT(\"'\"&F3054&\"'!\"&G3054)),\"\",INDIRECT(\"'\"&F3054&\"'!\"&G3054))","v":""},{"$f":"IF(ISBLANK(INDIRECT(\"'\"&F3054&\"'!\"&H3054)),\"\",IFERROR(VLOOKUP(TEXT(INDIRECT(\"'\"&F3054&\"'!\"&H3054),\"0\"),Notes!$B$5:$C$100,2,FALSE),\"\"))","v":""},"2d","$S$38","$T$38"]
[14953,{"$f":"Menu!$F$29","v":"X"},{"$f":"Menu!$J$29","v":2020},{"$f":"IF(ISBLANK(INDIRECT(\"'\"&F3055&\"'!\"&G3055)),\"\",INDIRECT(\"'\"&F3055&\"'!\"&G3055))","v":""},{"$f":"IF(ISBLANK(INDIRECT(\"'\"&F3055&\"'!\"&H3055)),\"\",IFERROR(VLOOKUP(TEXT(INDIRECT(\"'\"&F3055&\"'!\"&H3055),\"0\"),Notes!$B$5:$C$100,2,FALSE),\"\"))","v":""},"2d","$U$38","$V$38"]
[14954,{"$f":"Menu!$F$29","v":"X"},{"$f":"Menu!$J$29","v":2020},{"$f":"IF(ISBLANK(INDIRECT(\"'\"&F3056&\"'!\"&G3056)),\"\",INDIRECT(\"'\"&F3056&\"'!\"&G3056))","v":""},{"$f":"IF(ISBLANK(INDIRECT(\"'\"&F3056&\"'!\"&H3056)),\"\",IFERROR(VLOOKUP(TEXT(INDIRECT(\"'\"&F3056&\"'!\"&H3056),\"0\"),Notes!$B$5:$C$100,2,FALSE),\"\"))","v":""},"2d","$W$38","$X$38"]
[14955,{"$f":"Menu!$F$29","v":"X"},{"$f":"Menu!$J$29","v":2020},{"$f":"IF(ISBLANK(INDIRECT(\"'\"&F3057&\"'!\"&G3057)),\"\",INDIRECT(\"'\"&F3057&\"'!\"&G3057))","v":""},{"$f":"IF(ISBLANK(INDIRECT(\"'\"&F3057&\"'!\"&H3057)),\"\",IFERROR(VLOOKUP(TEXT(INDIRECT(\"'\"&F3057&\"'!\"&H3057),\"0\"),Notes!$B$5:$C$100,2,FALSE),\"\"))","v":""},"2d","$Y$38","$Z$38"]
[14956,{"$f":"Menu!$F$29","v":"X"},{"$f":"Menu!$J$29","v":2020},{"$f":"IF(ISBLANK(INDIRECT(\"'\"&F3058&\"'!\"&G3058)),\"\",INDIRECT(\"'\"&F3058&\"'!\"&G3058))","v":""},{"$f":"IF(ISBLANK(INDIRECT(\"'\"&F3058&\"'!\"&H3058)),\"\",IFERROR(VLOOKUP(TEXT(INDIRECT(\"'\"&F3058&\"'!\"&H3058),\"0\"),Notes!$B$5:$C$100,2,FALSE),\"\"))","v":""},"2d","$AA$38","$AB$38"]
[14957,{"$f":"Menu!$F$29","v":"X"},{"$f":"Menu!$J$29","v":2020},{"$f":"IF(ISBLANK(INDIRECT(\"'\"&F3059&\"'!\"&G3059)),\"\",INDIRECT(\"'\"&F3059&\"'!\"&G3059))","v":""},{"$f":"IF(ISBLANK(INDIRECT(\"'\"&F3059&\"'!\"&H3059)),\"\",IFERROR(VLOOKUP(TEXT(INDIRECT(\"'\"&F3059&\"'!\"&H3059),\"0\"),Notes!$B$5:$C$100,2,FALSE),\"\"))","v":""},"2d","$AC$38","$AD$38"]
[14958,{"$f":"Menu!$F$29","v":"X"},{"$f":"Menu!$J$29","v":2020},{"$f":"IF(ISBLANK(INDIRECT(\"'\"&F3060&\"'!\"&G3060)),\"\",INDIRECT(\"'\"&F3060&\"'!\"&G3060))","v":""},{"$f":"IF(ISBLANK(INDIRECT(\"'\"&F3060&\"'!\"&H3060)),\"\",IFERROR(VLOOKUP(TEXT(INDIRECT(\"'\"&F3060&\"'!\"&H3060),\"0\"),Notes!$B$5:$C$100,2,FALSE),\"\"))","v":""},"2d","$AE$38","$AF$38"]
[14959,{"$f":"Menu!$F$29","v":"X"},{"$f":"Menu!$J$29","v":2020},{"$f":"IF(ISBLANK(INDIRECT(\"'\"&F3061&\"'!\"&G3061)),\"\",INDIRECT(\"'\"&F3061&\"'!\"&G3061))","v":""},{"$f":"IF(ISBLANK(INDIRECT(\"'\"&F3061&\"'!\"&H3061)),\"\",IFERROR(VLOOKUP(TEXT(INDIRECT(\"'\"&F3061&\"'!\"&H3061),\"0\"),Notes!$B$5:$C$100,2,FALSE),\"\"))","v":""},"2d","$AG$38","$AH$38"]
[14990,{"$f":"Menu!$F$29","v":"X"},{"$f":"Menu!$J$29","v":2020},{"$f":"IF(ISBLANK(INDIRECT(\"'\"&F3062&\"'!\"&G3062)),\"\",INDIRECT(\"'\"&F3062&\"'!\"&G3062))","v":""},{"$f":"IF(ISBLANK(INDIRECT(\"'\"&F3062&\"'!\"&H3062)),\"\",IFERROR(VLOOKUP(TEXT(INDIRECT(\"'\"&F3062&\"'!\"&H3062),\"0\"),Notes!$B$5:$C$100,2,FALSE),\"\"))","v":""},"2d","$E$39","$F$39"]
[14991,{"$f":"Menu!$F$29","v":"X"},{"$f":"Menu!$J$29","v":2020},{"$f":"IF(ISBLANK(INDIRECT(\"'\"&F3063&\"'!\"&G3063)),\"\",INDIRECT(\"'\"&F3063&\"'!\"&G3063))","v":""},{"$f":"IF(ISBLANK(INDIRECT(\"'\"&F3063&\"'!\"&H3063)),\"\",IFERROR(VLOOKUP(TEXT(INDIRECT(\"'\"&F3063&\"'!\"&H3063),\"0\"),Notes!$B$5:$C$100,2,FALSE),\"\"))","v":""},"2d","$G$39","$H$39"]
[14992,{"$f":"Menu!$F$29","v":"X"},{"$f":"Menu!$J$29","v":2020},{"$f":"IF(ISBLANK(INDIRECT(\"'\"&F3064&\"'!\"&G3064)),\"\",INDIRECT(\"'\"&F3064&\"'!\"&G3064))","v":""},{"$f":"IF(ISBLANK(INDIRECT(\"'\"&F3064&\"'!\"&H3064)),\"\",IFERROR(VLOOKUP(TEXT(INDIRECT(\"'\"&F3064&\"'!\"&H3064),\"0\"),Notes!$B$5:$C$100,2,FALSE),\"\"))","v":""},"2d","$I$39","$J$39"]
[14993,{"$f":"Menu!$F$29","v":"X"},{"$f":"Menu!$J$29","v":2020},{"$f":"IF(ISBLANK(INDIRECT(\"'\"&F3065&\"'!\"&G3065)),\"\",INDIRECT(\"'\"&F3065&\"'!\"&G3065))","v":""},{"$f":"IF(ISBLANK(INDIRECT(\"'\"&F3065&\"'!\"&H3065)),\"\",IFERROR(VLOOKUP(TEXT(INDIRECT(\"'\"&F3065&\"'!\"&H3065),\"0\"),Notes!$B$5:$C$100,2,FALSE),\"\"))","v":""},"2d","$K$39","$L$39"]
[14994,{"$f":"Menu!$F$29","v":"X"},{"$f":"Menu!$J$29","v":2020},{"$f":"IF(ISBLANK(INDIRECT(\"'\"&F3066&\"'!\"&G3066)),\"\",INDIRECT(\"'\"&F3066&\"'!\"&G3066))","v":""},{"$f":"IF(ISBLANK(INDIRECT(\"'\"&F3066&\"'!\"&H3066)),\"\",IFERROR(VLOOKUP(TEXT(INDIRECT(\"'\"&F3066&\"'!\"&H3066),\"0\"),Notes!$B$5:$C$100,2,FALSE),\"\"))","v":""},"2d","$M$39","$N$39"]
[14995,{"$f":"Menu!$F$29","v":"X"},{"$f":"Menu!$J$29","v":2020},{"$f":"IF(ISBLANK(INDIRECT(\"'\"&F3067&\"'!\"&G3067)),\"\",INDIRECT(\"'\"&F3067&\"'!\"&G3067))","v":""},{"$f":"IF(ISBLANK(INDIRECT(\"'\"&F3067&\"'!\"&H3067)),\"\",IFERROR(VLOOKUP(TEXT(INDIRECT(\"'\"&F3067&\"'!\"&H3067),\"0\"),Notes!$B$5:$C$100,2,FALSE),\"\"))","v":""},"2d","$O$39","$P$39"]
[14996,{"$f":"Menu!$F$29","v":"X"},{"$f":"Menu!$J$29","v":2020},{"$f":"IF(ISBLANK(INDIRECT(\"'\"&F3068&\"'!\"&G3068)),\"\",INDIRECT(\"'\"&F3068&\"'!\"&G3068))","v":""},{"$f":"IF(ISBLANK(INDIRECT(\"'\"&F3068&\"'!\"&H3068)),\"\",IFERROR(VLOOKUP(TEXT(INDIRECT(\"'\"&F3068&\"'!\"&H3068),\"0\"),Notes!$B$5:$C$100,2,FALSE),\"\"))","v":""},"2d","$Q$39","$R$39"]
[14997,{"$f":"Menu!$F$29","v":"X"},{"$f":"Menu!$J$29","v":2020},{"$f":"IF(ISBLANK(INDIRECT(\"'\"&F3069&\"'!\"&G3069)),\"\",INDIRECT(\"'\"&F3069&\"'!\"&G3069))","v":""},{"$f":"IF(ISBLANK(INDIRECT(\"'\"&F3069&\"'!\"&H3069)),\"\",IFERROR(VLOOKUP(TEXT(INDIRECT(\"'\"&F3069&\"'!\"&H3069),\"0\"),Notes!$B$5:$C$100,2,FALSE),\"\"))","v":""},"2d","$S$39","$T$39"]
[14998,{"$f":"Menu!$F$29","v":"X"},{"$f":"Menu!$J$29","v":2020},{"$f":"IF(ISBLANK(INDIRECT(\"'\"&F3070&\"'!\"&G3070)),\"\",INDIRECT(\"'\"&F3070&\"'!\"&G3070))","v":""},{"$f":"IF(ISBLANK(INDIRECT(\"'\"&F3070&\"'!\"&H3070)),\"\",IFERROR(VLOOKUP(TEXT(INDIRECT(\"'\"&F3070&\"'!\"&H3070),\"0\"),Notes!$B$5:$C$100,2,FALSE),\"\"))","v":""},"2d","$U$39","$V$39"]
[14999,{"$f":"Menu!$F$29","v":"X"},{"$f":"Menu!$J$29","v":2020},{"$f":"IF(ISBLANK(INDIRECT(\"'\"&F3071&\"'!\"&G3071)),\"\",INDIRECT(\"'\"&F3071&\"'!\"&G3071))","v":""},{"$f":"IF(ISBLANK(INDIRECT(\"'\"&F3071&\"'!\"&H3071)),\"\",IFERROR(VLOOKUP(TEXT(INDIRECT(\"'\"&F3071&\"'!\"&H3071),\"0\"),Notes!$B$5:$C$100,2,FALSE),\"\"))","v":""},"2d","$W$39","$X$39"]
[15000,{"$f":"Menu!$F$29","v":"X"},{"$f":"Menu!$J$29","v":2020},{"$f":"IF(ISBLANK(INDIRECT(\"'\"&F3072&\"'!\"&G3072)),\"\",INDIRECT(\"'\"&F3072&\"'!\"&G3072))","v":""},{"$f":"IF(ISBLANK(INDIRECT(\"'\"&F3072&\"'!\"&H3072)),\"\",IFERROR(VLOOKUP(TEXT(INDIRECT(\"'\"&F3072&\"'!\"&H3072),\"0\"),Notes!$B$5:$C$100,2,FALSE),\"\"))","v":""},"2d","$Y$39","$Z$39"]
[15001,{"$f":"Menu!$F$29","v":"X"},{"$f":"Menu!$J$29","v":2020},{"$f":"IF(ISBLANK(INDIRECT(\"'\"&F3073&\"'!\"&G3073)),\"\",INDIRECT(\"'\"&F3073&\"'!\"&G3073))","v":""},{"$f":"IF(ISBLANK(INDIRECT(\"'\"&F3073&\"'!\"&H3073)),\"\",IFERROR(VLOOKUP(TEXT(INDIRECT(\"'\"&F3073&\"'!\"&H3073),\"0\"),Notes!$B$5:$C$100,2,FALSE),\"\"))","v":""},"2d","$AA$39","$AB$39"]
[15002,{"$f":"Menu!$F$29","v":"X"},{"$f":"Menu!$J$29","v":2020},{"$f":"IF(ISBLANK(INDIRECT(\"'\"&F3074&\"'!\"&G3074)),\"\",INDIRECT(\"'\"&F3074&\"'!\"&G3074))","v":""},{"$f":"IF(ISBLANK(INDIRECT(\"'\"&F3074&\"'!\"&H3074)),\"\",IFERROR(VLOOKUP(TEXT(INDIRECT(\"'\"&F3074&\"'!\"&H3074),\"0\"),Notes!$B$5:$C$100,2,FALSE),\"\"))","v":""},"2d","$AC$39",{"$f":"IF(LEN(TRIM(MID(G3074,4,10)))-LEN(SUBSTITUTE(TRIM(MID(G3074,4,10)),\"$\",\"\"))=0,\"$\"&CHAR(CODE(MID(G3074,2,1))+1)&\"$\"&TRIM(MID(G3074,4,10)),\"$\"&MID(G3074,2,1)&CHAR(CODE(MID(G3074,3,1))+1)&\"$\"&TRIM(MID(G3074,5,11)))","v":"$AD$39"}]
[15003,{"$f":"Menu!$F$29","v":"X"},{"$f":"Menu!$J$29","v":2020},{"$f":"IF(ISBLANK(INDIRECT(\"'\"&F3075&\"'!\"&G3075)),\"\",INDIRECT(\"'\"&F3075&\"'!\"&G3075))","v":""},{"$f":"IF(ISBLANK(INDIRECT(\"'\"&F3075&\"'!\"&H3075)),\"\",IFERROR(VLOOKUP(TEXT(INDIRECT(\"'\"&F3075&\"'!\"&H3075),\"0\"),Notes!$B$5:$C$100,2,FALSE),\"\"))","v":""},"2d","$AE$39","$AF$39"]
[15004,{"$f":"Menu!$F$29","v":"X"},{"$f":"Menu!$J$29","v":2020},{"$f":"IF(ISBLANK(INDIRECT(\"'\"&F3076&\"'!\"&G3076)),\"\",INDIRECT(\"'\"&F3076&\"'!\"&G3076))","v":""},{"$f":"IF(ISBLANK(INDIRECT(\"'\"&F3076&\"'!\"&H3076)),\"\",IFERROR(VLOOKUP(TEXT(INDIRECT(\"'\"&F3076&\"'!\"&H3076),\"0\"),Notes!$B$5:$C$100,2,FALSE),\"\"))","v":""},"2d","$AG$39","$AH$39"]
[15005,{"$f":"Menu!$F$29","v":"X"},{"$f":"Menu!$J$29","v":2020},{"$f":"IF(ISBLANK(INDIRECT(\"'\"&F3077&\"'!\"&G3077)),\"\",INDIRECT(\"'\"&F3077&\"'!\"&G3077))","v":""},{"$f":"IF(ISBLANK(INDIRECT(\"'\"&F3077&\"'!\"&H3077)),\"\",IFERROR(VLOOKUP(TEXT(INDIRECT(\"'\"&F3077&\"'!\"&H3077),\"0\"),Notes!$B$5:$C$100,2,FALSE),\"\"))","v":""},"2d","$E$31","$F$31"]
[15006,{"$f":"Menu!$F$29","v":"X"},{"$f":"Menu!$J$29","v":2020},{"$f":"IF(ISBLANK(INDIRECT(\"'\"&F3078&\"'!\"&G3078)),\"\",INDIRECT(\"'\"&F3078&\"'!\"&G3078))","v":""},{"$f":"IF(ISBLANK(INDIRECT(\"'\"&F3078&\"'!\"&H3078)),\"\",IFERROR(VLOOKUP(TEXT(INDIRECT(\"'\"&F3078&\"'!\"&H3078),\"0\"),Notes!$B$5:$C$100,2,FALSE),\"\"))","v":""},"2d","$G$31","$H$31"]
[15007,{"$f":"Menu!$F$29","v":"X"},{"$f":"Menu!$J$29","v":2020},{"$f":"IF(ISBLANK(INDIRECT(\"'\"&F3079&\"'!\"&G3079)),\"\",INDIRECT(\"'\"&F3079&\"'!\"&G3079))","v":""},{"$f":"IF(ISBLANK(INDIRECT(\"'\"&F3079&\"'!\"&H3079)),\"\",IFERROR(VLOOKUP(TEXT(INDIRECT(\"'\"&F3079&\"'!\"&H3079),\"0\"),Notes!$B$5:$C$100,2,FALSE),\"\"))","v":""},"2d","$I$31","$J$31"]
[15008,{"$f":"Menu!$F$29","v":"X"},{"$f":"Menu!$J$29","v":2020},{"$f":"IF(ISBLANK(INDIRECT(\"'\"&F3080&\"'!\"&G3080)),\"\",INDIRECT(\"'\"&F3080&\"'!\"&G3080))","v":""},{"$f":"IF(ISBLANK(INDIRECT(\"'\"&F3080&\"'!\"&H3080)),\"\",IFERROR(VLOOKUP(TEXT(INDIRECT(\"'\"&F3080&\"'!\"&H3080),\"0\"),Notes!$B$5:$C$100,2,FALSE),\"\"))","v":""},"2d","$K$31","$L$31"]
[15009,{"$f":"Menu!$F$29","v":"X"},{"$f":"Menu!$J$29","v":2020},{"$f":"IF(ISBLANK(INDIRECT(\"'\"&F3081&\"'!\"&G3081)),\"\",INDIRECT(\"'\"&F3081&\"'!\"&G3081))","v":""},{"$f":"IF(ISBLANK(INDIRECT(\"'\"&F3081&\"'!\"&H3081)),\"\",IFERROR(VLOOKUP(TEXT(INDIRECT(\"'\"&F3081&\"'!\"&H3081),\"0\"),Notes!$B$5:$C$100,2,FALSE),\"\"))","v":""},"2d","$M$31","$N$31"]
[15010,{"$f":"Menu!$F$29","v":"X"},{"$f":"Menu!$J$29","v":2020},{"$f":"IF(ISBLANK(INDIRECT(\"'\"&F3082&\"'!\"&G3082)),\"\",INDIRECT(\"'\"&F3082&\"'!\"&G3082))","v":""},{"$f":"IF(ISBLANK(INDIRECT(\"'\"&F3082&\"'!\"&H3082)),\"\",IFERROR(VLOOKUP(TEXT(INDIRECT(\"'\"&F3082&\"'!\"&H3082),\"0\"),Notes!$B$5:$C$100,2,FALSE),\"\"))","v":""},"2d","$O$31","$P$31"]
[15011,{"$f":"Menu!$F$29","v":"X"},{"$f":"Menu!$J$29","v":2020},{"$f":"IF(ISBLANK(INDIRECT(\"'\"&F3083&\"'!\"&G3083)),\"\",INDIRECT(\"'\"&F3083&\"'!\"&G3083))","v":""},{"$f":"IF(ISBLANK(INDIRECT(\"'\"&F3083&\"'!\"&H3083)),\"\",IFERROR(VLOOKUP(TEXT(INDIRECT(\"'\"&F3083&\"'!\"&H3083),\"0\"),Notes!$B$5:$C$100,2,FALSE),\"\"))","v":""},"2d","$Q$31","$R$31"]
[15012,{"$f":"Menu!$F$29","v":"X"},{"$f":"Menu!$J$29","v":2020},{"$f":"IF(ISBLANK(INDIRECT(\"'\"&F3084&\"'!\"&G3084)),\"\",INDIRECT(\"'\"&F3084&\"'!\"&G3084))","v":""},{"$f":"IF(ISBLANK(INDIRECT(\"'\"&F3084&\"'!\"&H3084)),\"\",IFERROR(VLOOKUP(TEXT(INDIRECT(\"'\"&F3084&\"'!\"&H3084),\"0\"),Notes!$B$5:$C$100,2,FALSE),\"\"))","v":""},"2d","$S$31","$T$31"]
[15013,{"$f":"Menu!$F$29","v":"X"},{"$f":"Menu!$J$29","v":2020},{"$f":"IF(ISBLANK(INDIRECT(\"'\"&F3085&\"'!\"&G3085)),\"\",INDIRECT(\"'\"&F3085&\"'!\"&G3085))","v":""},{"$f":"IF(ISBLANK(INDIRECT(\"'\"&F3085&\"'!\"&H3085)),\"\",IFERROR(VLOOKUP(TEXT(INDIRECT(\"'\"&F3085&\"'!\"&H3085),\"0\"),Notes!$B$5:$C$100,2,FALSE),\"\"))","v":""},"2d","$U$31","$V$31"]
[15014,{"$f":"Menu!$F$29","v":"X"},{"$f":"Menu!$J$29","v":2020},{"$f":"IF(ISBLANK(INDIRECT(\"'\"&F3086&\"'!\"&G3086)),\"\",INDIRECT(\"'\"&F3086&\"'!\"&G3086))","v":""},{"$f":"IF(ISBLANK(INDIRECT(\"'\"&F3086&\"'!\"&H3086)),\"\",IFERROR(VLOOKUP(TEXT(INDIRECT(\"'\"&F3086&\"'!\"&H3086),\"0\"),Notes!$B$5:$C$100,2,FALSE),\"\"))","v":""},"2d","$W$31","$X$31"]
[15015,{"$f":"Menu!$F$29","v":"X"},{"$f":"Menu!$J$29","v":2020},{"$f":"IF(ISBLANK(INDIRECT(\"'\"&F3087&\"'!\"&G3087)),\"\",INDIRECT(\"'\"&F3087&\"'!\"&G3087))","v":""},{"$f":"IF(ISBLANK(INDIRECT(\"'\"&F3087&\"'!\"&H3087)),\"\",IFERROR(VLOOKUP(TEXT(INDIRECT(\"'\"&F3087&\"'!\"&H3087),\"0\"),Notes!$B$5:$C$100,2,FALSE),\"\"))","v":""},"2d","$Y$31","$Z$31"]
[15016,{"$f":"Menu!$F$29","v":"X"},{"$f":"Menu!$J$29","v":2020},{"$f":"IF(ISBLANK(INDIRECT(\"'\"&F3088&\"'!\"&G3088)),\"\",INDIRECT(\"'\"&F3088&\"'!\"&G3088))","v":""},{"$f":"IF(ISBLANK(INDIRECT(\"'\"&F3088&\"'!\"&H3088)),\"\",IFERROR(VLOOKUP(TEXT(INDIRECT(\"'\"&F3088&\"'!\"&H3088),\"0\"),Notes!$B$5:$C$100,2,FALSE),\"\"))","v":""},"2d","$AA$31","$AB$31"]
[15017,{"$f":"Menu!$F$29","v":"X"},{"$f":"Menu!$J$29","v":2020},{"$f":"IF(ISBLANK(INDIRECT(\"'\"&F3089&\"'!\"&G3089)),\"\",INDIRECT(\"'\"&F3089&\"'!\"&G3089))","v":""},{"$f":"IF(ISBLANK(INDIRECT(\"'\"&F3089&\"'!\"&H3089)),\"\",IFERROR(VLOOKUP(TEXT(INDIRECT(\"'\"&F3089&\"'!\"&H3089),\"0\"),Notes!$B$5:$C$100,2,FALSE),\"\"))","v":""},"2d","$AC$31","$AD$31"]
[15018,{"$f":"Menu!$F$29","v":"X"},{"$f":"Menu!$J$29","v":2020},{"$f":"IF(ISBLANK(INDIRECT(\"'\"&F3090&\"'!\"&G3090)),\"\",INDIRECT(\"'\"&F3090&\"'!\"&G3090))","v":""},{"$f":"IF(ISBLANK(INDIRECT(\"'\"&F3090&\"'!\"&H3090)),\"\",IFERROR(VLOOKUP(TEXT(INDIRECT(\"'\"&F3090&\"'!\"&H3090),\"0\"),Notes!$B$5:$C$100,2,FALSE),\"\"))","v":""},"2d","$AE$31","$AF$31"]
[15019,{"$f":"Menu!$F$29","v":"X"},{"$f":"Menu!$J$29","v":2020},{"$f":"IF(ISBLANK(INDIRECT(\"'\"&F3091&\"'!\"&G3091)),\"\",INDIRECT(\"'\"&F3091&\"'!\"&G3091))","v":""},{"$f":"IF(ISBLANK(INDIRECT(\"'\"&F3091&\"'!\"&H3091)),\"\",IFERROR(VLOOKUP(TEXT(INDIRECT(\"'\"&F3091&\"'!\"&H3091),\"0\"),Notes!$B$5:$C$100,2,FALSE),\"\"))","v":""},"2d","$AG$31","$AH$31"]
[15020,{"$f":"Menu!$F$29","v":"X"},{"$f":"Menu!$J$29","v":2020},{"$f":"IF(ISBLANK(INDIRECT(\"'\"&F3092&\"'!\"&G3092)),\"\",INDIRECT(\"'\"&F3092&\"'!\"&G3092))","v":""},{"$f":"IF(ISBLANK(INDIRECT(\"'\"&F3092&\"'!\"&H3092)),\"\",IFERROR(VLOOKUP(TEXT(INDIRECT(\"'\"&F3092&\"'!\"&H3092),\"0\"),Notes!$B$5:$C$100,2,FALSE),\"\"))","v":""},"2d","$E$41","$F$41"]
[15021,{"$f":"Menu!$F$29","v":"X"},{"$f":"Menu!$J$29","v":2020},{"$f":"IF(ISBLANK(INDIRECT(\"'\"&F3093&\"'!\"&G3093)),\"\",INDIRECT(\"'\"&F3093&\"'!\"&G3093))","v":""},{"$f":"IF(ISBLANK(INDIRECT(\"'\"&F3093&\"'!\"&H3093)),\"\",IFERROR(VLOOKUP(TEXT(INDIRECT(\"'\"&F3093&\"'!\"&H3093),\"0\"),Notes!$B$5:$C$100,2,FALSE),\"\"))","v":""},"2d","$G$41","$H$41"]
[15022,{"$f":"Menu!$F$29","v":"X"},{"$f":"Menu!$J$29","v":2020},{"$f":"IF(ISBLANK(INDIRECT(\"'\"&F3094&\"'!\"&G3094)),\"\",INDIRECT(\"'\"&F3094&\"'!\"&G3094))","v":""},{"$f":"IF(ISBLANK(INDIRECT(\"'\"&F3094&\"'!\"&H3094)),\"\",IFERROR(VLOOKUP(TEXT(INDIRECT(\"'\"&F3094&\"'!\"&H3094),\"0\"),Notes!$B$5:$C$100,2,FALSE),\"\"))","v":""},"2d","$I$41","$J$41"]
[15023,{"$f":"Menu!$F$29","v":"X"},{"$f":"Menu!$J$29","v":2020},{"$f":"IF(ISBLANK(INDIRECT(\"'\"&F3095&\"'!\"&G3095)),\"\",INDIRECT(\"'\"&F3095&\"'!\"&G3095))","v":""},{"$f":"IF(ISBLANK(INDIRECT(\"'\"&F3095&\"'!\"&H3095)),\"\",IFERROR(VLOOKUP(TEXT(INDIRECT(\"'\"&F3095&\"'!\"&H3095),\"0\"),Notes!$B$5:$C$100,2,FALSE),\"\"))","v":""},"2d","$K$41","$L$41"]
[15024,{"$f":"Menu!$F$29","v":"X"},{"$f":"Menu!$J$29","v":2020},{"$f":"IF(ISBLANK(INDIRECT(\"'\"&F3096&\"'!\"&G3096)),\"\",INDIRECT(\"'\"&F3096&\"'!\"&G3096))","v":""},{"$f":"IF(ISBLANK(INDIRECT(\"'\"&F3096&\"'!\"&H3096)),\"\",IFERROR(VLOOKUP(TEXT(INDIRECT(\"'\"&F3096&\"'!\"&H3096),\"0\"),Notes!$B$5:$C$100,2,FALSE),\"\"))","v":""},"2d","$M$41","$N$41"]
[15025,{"$f":"Menu!$F$29","v":"X"},{"$f":"Menu!$J$29","v":2020},{"$f":"IF(ISBLANK(INDIRECT(\"'\"&F3097&\"'!\"&G3097)),\"\",INDIRECT(\"'\"&F3097&\"'!\"&G3097))","v":""},{"$f":"IF(ISBLANK(INDIRECT(\"'\"&F3097&\"'!\"&H3097)),\"\",IFERROR(VLOOKUP(TEXT(INDIRECT(\"'\"&F3097&\"'!\"&H3097),\"0\"),Notes!$B$5:$C$100,2,FALSE),\"\"))","v":""},"2d","$O$41","$P$41"]
[15026,{"$f":"Menu!$F$29","v":"X"},{"$f":"Menu!$J$29","v":2020},{"$f":"IF(ISBLANK(INDIRECT(\"'\"&F3098&\"'!\"&G3098)),\"\",INDIRECT(\"'\"&F3098&\"'!\"&G3098))","v":""},{"$f":"IF(ISBLANK(INDIRECT(\"'\"&F3098&\"'!\"&H3098)),\"\",IFERROR(VLOOKUP(TEXT(INDIRECT(\"'\"&F3098&\"'!\"&H3098),\"0\"),Notes!$B$5:$C$100,2,FALSE),\"\"))","v":""},"2d","$Q$41","$R$41"]
[15027,{"$f":"Menu!$F$29","v":"X"},{"$f":"Menu!$J$29","v":2020},{"$f":"IF(ISBLANK(INDIRECT(\"'\"&F3099&\"'!\"&G3099)),\"\",INDIRECT(\"'\"&F3099&\"'!\"&G3099))","v":""},{"$f":"IF(ISBLANK(INDIRECT(\"'\"&F3099&\"'!\"&H3099)),\"\",IFERROR(VLOOKUP(TEXT(INDIRECT(\"'\"&F3099&\"'!\"&H3099),\"0\"),Notes!$B$5:$C$100,2,FALSE),\"\"))","v":""},"2d","$S$41","$T$41"]
[15028,{"$f":"Menu!$F$29","v":"X"},{"$f":"Menu!$J$29","v":2020},{"$f":"IF(ISBLANK(INDIRECT(\"'\"&F3100&\"'!\"&G3100)),\"\",INDIRECT(\"'\"&F3100&\"'!\"&G3100))","v":""},{"$f":"IF(ISBLANK(INDIRECT(\"'\"&F3100&\"'!\"&H3100)),\"\",IFERROR(VLOOKUP(TEXT(INDIRECT(\"'\"&F3100&\"'!\"&H3100),\"0\"),Notes!$B$5:$C$100,2,FALSE),\"\"))","v":""},"2d","$U$41","$V$41"]
[15029,{"$f":"Menu!$F$29","v":"X"},{"$f":"Menu!$J$29","v":2020},{"$f":"IF(ISBLANK(INDIRECT(\"'\"&F3101&\"'!\"&G3101)),\"\",INDIRECT(\"'\"&F3101&\"'!\"&G3101))","v":""},{"$f":"IF(ISBLANK(INDIRECT(\"'\"&F3101&\"'!\"&H3101)),\"\",IFERROR(VLOOKUP(TEXT(INDIRECT(\"'\"&F3101&\"'!\"&H3101),\"0\"),Notes!$B$5:$C$100,2,FALSE),\"\"))","v":""},"2d","$W$41","$X$41"]
[15030,{"$f":"Menu!$F$29","v":"X"},{"$f":"Menu!$J$29","v":2020},{"$f":"IF(ISBLANK(INDIRECT(\"'\"&F3102&\"'!\"&G3102)),\"\",INDIRECT(\"'\"&F3102&\"'!\"&G3102))","v":""},{"$f":"IF(ISBLANK(INDIRECT(\"'\"&F3102&\"'!\"&H3102)),\"\",IFERROR(VLOOKUP(TEXT(INDIRECT(\"'\"&F3102&\"'!\"&H3102),\"0\"),Notes!$B$5:$C$100,2,FALSE),\"\"))","v":""},"2d","$Y$41","$Z$41"]
[15031,{"$f":"Menu!$F$29","v":"X"},{"$f":"Menu!$J$29","v":2020},{"$f":"IF(ISBLANK(INDIRECT(\"'\"&F3103&\"'!\"&G3103)),\"\",INDIRECT(\"'\"&F3103&\"'!\"&G3103))","v":""},{"$f":"IF(ISBLANK(INDIRECT(\"'\"&F3103&\"'!\"&H3103)),\"\",IFERROR(VLOOKUP(TEXT(INDIRECT(\"'\"&F3103&\"'!\"&H3103),\"0\"),Notes!$B$5:$C$100,2,FALSE),\"\"))","v":""},"2d","$AA$41","$AB$41"]
[15032,{"$f":"Menu!$F$29","v":"X"},{"$f":"Menu!$J$29","v":2020},{"$f":"IF(ISBLANK(INDIRECT(\"'\"&F3104&\"'!\"&G3104)),\"\",INDIRECT(\"'\"&F3104&\"'!\"&G3104))","v":""},{"$f":"IF(ISBLANK(INDIRECT(\"'\"&F3104&\"'!\"&H3104)),\"\",IFERROR(VLOOKUP(TEXT(INDIRECT(\"'\"&F3104&\"'!\"&H3104),\"0\"),Notes!$B$5:$C$100,2,FALSE),\"\"))","v":""},"2d","$AC$41","$AD$41"]
[15033,{"$f":"Menu!$F$29","v":"X"},{"$f":"Menu!$J$29","v":2020},{"$f":"IF(ISBLANK(INDIRECT(\"'\"&F3105&\"'!\"&G3105)),\"\",INDIRECT(\"'\"&F3105&\"'!\"&G3105))","v":""},{"$f":"IF(ISBLANK(INDIRECT(\"'\"&F3105&\"'!\"&H3105)),\"\",IFERROR(VLOOKUP(TEXT(INDIRECT(\"'\"&F3105&\"'!\"&H3105),\"0\"),Notes!$B$5:$C$100,2,FALSE),\"\"))","v":""},"2d","$AE$41","$AF$41"]
[15034,{"$f":"Menu!$F$29","v":"X"},{"$f":"Menu!$J$29","v":2020},{"$f":"IF(ISBLANK(INDIRECT(\"'\"&F3106&\"'!\"&G3106)),\"\",INDIRECT(\"'\"&F3106&\"'!\"&G3106))","v":""},{"$f":"IF(ISBLANK(INDIRECT(\"'\"&F3106&\"'!\"&H3106)),\"\",IFERROR(VLOOKUP(TEXT(INDIRECT(\"'\"&F3106&\"'!\"&H3106),\"0\"),Notes!$B$5:$C$100,2,FALSE),\"\"))","v":""},"2d","$AG$41","$AH$41"]
[15035,{"$f":"Menu!$F$29","v":"X"},{"$f":"Menu!$J$29","v":2020},{"$f":"IF(ISBLANK(INDIRECT(\"'\"&F3107&\"'!\"&G3107)),\"\",INDIRECT(\"'\"&F3107&\"'!\"&G3107))","v":""},{"$f":"IF(ISBLANK(INDIRECT(\"'\"&F3107&\"'!\"&H3107)),\"\",IFERROR(VLOOKUP(TEXT(INDIRECT(\"'\"&F3107&\"'!\"&H3107),\"0\"),Notes!$B$5:$C$100,2,FALSE),\"\"))","v":""},"2d","$E$51","$F$51"]
[15036,{"$f":"Menu!$F$29","v":"X"},{"$f":"Menu!$J$29","v":2020},{"$f":"IF(ISBLANK(INDIRECT(\"'\"&F3108&\"'!\"&G3108)),\"\",INDIRECT(\"'\"&F3108&\"'!\"&G3108))","v":""},{"$f":"IF(ISBLANK(INDIRECT(\"'\"&F3108&\"'!\"&H3108)),\"\",IFERROR(VLOOKUP(TEXT(INDIRECT(\"'\"&F3108&\"'!\"&H3108),\"0\"),Notes!$B$5:$C$100,2,FALSE),\"\"))","v":""},"2d","$G$51","$H$51"]
[15037,{"$f":"Menu!$F$29","v":"X"},{"$f":"Menu!$J$29","v":2020},{"$f":"IF(ISBLANK(INDIRECT(\"'\"&F3109&\"'!\"&G3109)),\"\",INDIRECT(\"'\"&F3109&\"'!\"&G3109))","v":""},{"$f":"IF(ISBLANK(INDIRECT(\"'\"&F3109&\"'!\"&H3109)),\"\",IFERROR(VLOOKUP(TEXT(INDIRECT(\"'\"&F3109&\"'!\"&H3109),\"0\"),Notes!$B$5:$C$100,2,FALSE),\"\"))","v":""},"2d","$I$51","$J$51"]
[15038,{"$f":"Menu!$F$29","v":"X"},{"$f":"Menu!$J$29","v":2020},{"$f":"IF(ISBLANK(INDIRECT(\"'\"&F3110&\"'!\"&G3110)),\"\",INDIRECT(\"'\"&F3110&\"'!\"&G3110))","v":""},{"$f":"IF(ISBLANK(INDIRECT(\"'\"&F3110&\"'!\"&H3110)),\"\",IFERROR(VLOOKUP(TEXT(INDIRECT(\"'\"&F3110&\"'!\"&H3110),\"0\"),Notes!$B$5:$C$100,2,FALSE),\"\"))","v":""},"2d","$K$51","$L$51"]
[15039,{"$f":"Menu!$F$29","v":"X"},{"$f":"Menu!$J$29","v":2020},{"$f":"IF(ISBLANK(INDIRECT(\"'\"&F3111&\"'!\"&G3111)),\"\",INDIRECT(\"'\"&F3111&\"'!\"&G3111))","v":""},{"$f":"IF(ISBLANK(INDIRECT(\"'\"&F3111&\"'!\"&H3111)),\"\",IFERROR(VLOOKUP(TEXT(INDIRECT(\"'\"&F3111&\"'!\"&H3111),\"0\"),Notes!$B$5:$C$100,2,FALSE),\"\"))","v":""},"2d","$M$51","$N$51"]
[15040,{"$f":"Menu!$F$29","v":"X"},{"$f":"Menu!$J$29","v":2020},{"$f":"IF(ISBLANK(INDIRECT(\"'\"&F3112&\"'!\"&G3112)),\"\",INDIRECT(\"'\"&F3112&\"'!\"&G3112))","v":""},{"$f":"IF(ISBLANK(INDIRECT(\"'\"&F3112&\"'!\"&H3112)),\"\",IFERROR(VLOOKUP(TEXT(INDIRECT(\"'\"&F3112&\"'!\"&H3112),\"0\"),Notes!$B$5:$C$100,2,FALSE),\"\"))","v":""},"2d","$O$51","$P$51"]
[15041,{"$f":"Menu!$F$29","v":"X"},{"$f":"Menu!$J$29","v":2020},{"$f":"IF(ISBLANK(INDIRECT(\"'\"&F3113&\"'!\"&G3113)),\"\",INDIRECT(\"'\"&F3113&\"'!\"&G3113))","v":""},{"$f":"IF(ISBLANK(INDIRECT(\"'\"&F3113&\"'!\"&H3113)),\"\",IFERROR(VLOOKUP(TEXT(INDIRECT(\"'\"&F3113&\"'!\"&H3113),\"0\"),Notes!$B$5:$C$100,2,FALSE),\"\"))","v":""},"2d","$Q$51","$R$51"]
[15042,{"$f":"Menu!$F$29","v":"X"},{"$f":"Menu!$J$29","v":2020},{"$f":"IF(ISBLANK(INDIRECT(\"'\"&F3114&\"'!\"&G3114)),\"\",INDIRECT(\"'\"&F3114&\"'!\"&G3114))","v":""},{"$f":"IF(ISBLANK(INDIRECT(\"'\"&F3114&\"'!\"&H3114)),\"\",IFERROR(VLOOKUP(TEXT(INDIRECT(\"'\"&F3114&\"'!\"&H3114),\"0\"),Notes!$B$5:$C$100,2,FALSE),\"\"))","v":""},"2d","$S$51","$T$51"]
[15043,{"$f":"Menu!$F$29","v":"X"},{"$f":"Menu!$J$29","v":2020},{"$f":"IF(ISBLANK(INDIRECT(\"'\"&F3115&\"'!\"&G3115)),\"\",INDIRECT(\"'\"&F3115&\"'!\"&G3115))","v":""},{"$f":"IF(ISBLANK(INDIRECT(\"'\"&F3115&\"'!\"&H3115)),\"\",IFERROR(VLOOKUP(TEXT(INDIRECT(\"'\"&F3115&\"'!\"&H3115),\"0\"),Notes!$B$5:$C$100,2,FALSE),\"\"))","v":""},"2d","$U$51","$V$51"]
[15044,{"$f":"Menu!$F$29","v":"X"},{"$f":"Menu!$J$29","v":2020},{"$f":"IF(ISBLANK(INDIRECT(\"'\"&F3116&\"'!\"&G3116)),\"\",INDIRECT(\"'\"&F3116&\"'!\"&G3116))","v":""},{"$f":"IF(ISBLANK(INDIRECT(\"'\"&F3116&\"'!\"&H3116)),\"\",IFERROR(VLOOKUP(TEXT(INDIRECT(\"'\"&F3116&\"'!\"&H3116),\"0\"),Notes!$B$5:$C$100,2,FALSE),\"\"))","v":""},"2d","$W$51","$X$51"]
[15045,{"$f":"Menu!$F$29","v":"X"},{"$f":"Menu!$J$29","v":2020},{"$f":"IF(ISBLANK(INDIRECT(\"'\"&F3117&\"'!\"&G3117)),\"\",INDIRECT(\"'\"&F3117&\"'!\"&G3117))","v":""},{"$f":"IF(ISBLANK(INDIRECT(\"'\"&F3117&\"'!\"&H3117)),\"\",IFERROR(VLOOKUP(TEXT(INDIRECT(\"'\"&F3117&\"'!\"&H3117),\"0\"),Notes!$B$5:$C$100,2,FALSE),\"\"))","v":""},"2d","$Y$51","$Z$51"]
[15046,{"$f":"Menu!$F$29","v":"X"},{"$f":"Menu!$J$29","v":2020},{"$f":"IF(ISBLANK(INDIRECT(\"'\"&F3118&\"'!\"&G3118)),\"\",INDIRECT(\"'\"&F3118&\"'!\"&G3118))","v":""},{"$f":"IF(ISBLANK(INDIRECT(\"'\"&F3118&\"'!\"&H3118)),\"\",IFERROR(VLOOKUP(TEXT(INDIRECT(\"'\"&F3118&\"'!\"&H3118),\"0\"),Notes!$B$5:$C$100,2,FALSE),\"\"))","v":""},"2d","$AA$51","$AB$51"]
[15047,{"$f":"Menu!$F$29","v":"X"},{"$f":"Menu!$J$29","v":2020},{"$f":"IF(ISBLANK(INDIRECT(\"'\"&F3119&\"'!\"&G3119)),\"\",INDIRECT(\"'\"&F3119&\"'!\"&G3119))","v":""},{"$f":"IF(ISBLANK(INDIRECT(\"'\"&F3119&\"'!\"&H3119)),\"\",IFERROR(VLOOKUP(TEXT(INDIRECT(\"'\"&F3119&\"'!\"&H3119),\"0\"),Notes!$B$5:$C$100,2,FALSE),\"\"))","v":""},"2d","$AC$51","$AD$51"]
[15048,{"$f":"Menu!$F$29","v":"X"},{"$f":"Menu!$J$29","v":2020},{"$f":"IF(ISBLANK(INDIRECT(\"'\"&F3120&\"'!\"&G3120)),\"\",INDIRECT(\"'\"&F3120&\"'!\"&G3120))","v":""},{"$f":"IF(ISBLANK(INDIRECT(\"'\"&F3120&\"'!\"&H3120)),\"\",IFERROR(VLOOKUP(TEXT(INDIRECT(\"'\"&F3120&\"'!\"&H3120),\"0\"),Notes!$B$5:$C$100,2,FALSE),\"\"))","v":""},"2d","$AE$51","$AF$51"]
[15049,{"$f":"Menu!$F$29","v":"X"},{"$f":"Menu!$J$29","v":2020},{"$f":"IF(ISBLANK(INDIRECT(\"'\"&F3121&\"'!\"&G3121)),\"\",INDIRECT(\"'\"&F3121&\"'!\"&G3121))","v":""},{"$f":"IF(ISBLANK(INDIRECT(\"'\"&F3121&\"'!\"&H3121)),\"\",IFERROR(VLOOKUP(TEXT(INDIRECT(\"'\"&F3121&\"'!\"&H3121),\"0\"),Notes!$B$5:$C$100,2,FALSE),\"\"))","v":""},"2d","$AG$51","$AH$51"]
[15050,{"$f":"Menu!$F$29","v":"X"},{"$f":"Menu!$J$29","v":2020},{"$f":"IF(ISBLANK(INDIRECT(\"'\"&F3122&\"'!\"&G3122)),\"\",INDIRECT(\"'\"&F3122&\"'!\"&G3122))","v":""},{"$f":"IF(ISBLANK(INDIRECT(\"'\"&F3122&\"'!\"&H3122)),\"\",IFERROR(VLOOKUP(TEXT(INDIRECT(\"'\"&F3122&\"'!\"&H3122),\"0\"),Notes!$B$5:$C$100,2,FALSE),\"\"))","v":""},"2d","$E$52","$F$52"]
[15051,{"$f":"Menu!$F$29","v":"X"},{"$f":"Menu!$J$29","v":2020},{"$f":"IF(ISBLANK(INDIRECT(\"'\"&F3123&\"'!\"&G3123)),\"\",INDIRECT(\"'\"&F3123&\"'!\"&G3123))","v":""},{"$f":"IF(ISBLANK(INDIRECT(\"'\"&F3123&\"'!\"&H3123)),\"\",IFERROR(VLOOKUP(TEXT(INDIRECT(\"'\"&F3123&\"'!\"&H3123),\"0\"),Notes!$B$5:$C$100,2,FALSE),\"\"))","v":""},"2d","$G$52","$H$52"]
[15052,{"$f":"Menu!$F$29","v":"X"},{"$f":"Menu!$J$29","v":2020},{"$f":"IF(ISBLANK(INDIRECT(\"'\"&F3124&\"'!\"&G3124)),\"\",INDIRECT(\"'\"&F3124&\"'!\"&G3124))","v":""},{"$f":"IF(ISBLANK(INDIRECT(\"'\"&F3124&\"'!\"&H3124)),\"\",IFERROR(VLOOKUP(TEXT(INDIRECT(\"'\"&F3124&\"'!\"&H3124),\"0\"),Notes!$B$5:$C$100,2,FALSE),\"\"))","v":""},"2d","$I$52","$J$52"]
[15053,{"$f":"Menu!$F$29","v":"X"},{"$f":"Menu!$J$29","v":2020},{"$f":"IF(ISBLANK(INDIRECT(\"'\"&F3125&\"'!\"&G3125)),\"\",INDIRECT(\"'\"&F3125&\"'!\"&G3125))","v":""},{"$f":"IF(ISBLANK(INDIRECT(\"'\"&F3125&\"'!\"&H3125)),\"\",IFERROR(VLOOKUP(TEXT(INDIRECT(\"'\"&F3125&\"'!\"&H3125),\"0\"),Notes!$B$5:$C$100,2,FALSE),\"\"))","v":""},"2d","$K$52","$L$52"]
[15054,{"$f":"Menu!$F$29","v":"X"},{"$f":"Menu!$J$29","v":2020},{"$f":"IF(ISBLANK(INDIRECT(\"'\"&F3126&\"'!\"&G3126)),\"\",INDIRECT(\"'\"&F3126&\"'!\"&G3126))","v":""},{"$f":"IF(ISBLANK(INDIRECT(\"'\"&F3126&\"'!\"&H3126)),\"\",IFERROR(VLOOKUP(TEXT(INDIRECT(\"'\"&F3126&\"'!\"&H3126),\"0\"),Notes!$B$5:$C$100,2,FALSE),\"\"))","v":""},"2d","$M$52","$N$52"]
[15055,{"$f":"Menu!$F$29","v":"X"},{"$f":"Menu!$J$29","v":2020},{"$f":"IF(ISBLANK(INDIRECT(\"'\"&F3127&\"'!\"&G3127)),\"\",INDIRECT(\"'\"&F3127&\"'!\"&G3127))","v":""},{"$f":"IF(ISBLANK(INDIRECT(\"'\"&F3127&\"'!\"&H3127)),\"\",IFERROR(VLOOKUP(TEXT(INDIRECT(\"'\"&F3127&\"'!\"&H3127),\"0\"),Notes!$B$5:$C$100,2,FALSE),\"\"))","v":""},"2d","$O$52","$P$52"]
[15056,{"$f":"Menu!$F$29","v":"X"},{"$f":"Menu!$J$29","v":2020},{"$f":"IF(ISBLANK(INDIRECT(\"'\"&F3128&\"'!\"&G3128)),\"\",INDIRECT(\"'\"&F3128&\"'!\"&G3128))","v":""},{"$f":"IF(ISBLANK(INDIRECT(\"'\"&F3128&\"'!\"&H3128)),\"\",IFERROR(VLOOKUP(TEXT(INDIRECT(\"'\"&F3128&\"'!\"&H3128),\"0\"),Notes!$B$5:$C$100,2,FALSE),\"\"))","v":""},"2d","$Q$52","$R$52"]
[15057,{"$f":"Menu!$F$29","v":"X"},{"$f":"Menu!$J$29","v":2020},{"$f":"IF(ISBLANK(INDIRECT(\"'\"&F3129&\"'!\"&G3129)),\"\",INDIRECT(\"'\"&F3129&\"'!\"&G3129))","v":""},{"$f":"IF(ISBLANK(INDIRECT(\"'\"&F3129&\"'!\"&H3129)),\"\",IFERROR(VLOOKUP(TEXT(INDIRECT(\"'\"&F3129&\"'!\"&H3129),\"0\"),Notes!$B$5:$C$100,2,FALSE),\"\"))","v":""},"2d","$S$52","$T$52"]
[15058,{"$f":"Menu!$F$29","v":"X"},{"$f":"Menu!$J$29","v":2020},{"$f":"IF(ISBLANK(INDIRECT(\"'\"&F3130&\"'!\"&G3130)),\"\",INDIRECT(\"'\"&F3130&\"'!\"&G3130))","v":""},{"$f":"IF(ISBLANK(INDIRECT(\"'\"&F3130&\"'!\"&H3130)),\"\",IFERROR(VLOOKUP(TEXT(INDIRECT(\"'\"&F3130&\"'!\"&H3130),\"0\"),Notes!$B$5:$C$100,2,FALSE),\"\"))","v":""},"2d","$U$52","$V$52"]
[15059,{"$f":"Menu!$F$29","v":"X"},{"$f":"Menu!$J$29","v":2020},{"$f":"IF(ISBLANK(INDIRECT(\"'\"&F3131&\"'!\"&G3131)),\"\",INDIRECT(\"'\"&F3131&\"'!\"&G3131))","v":""},{"$f":"IF(ISBLANK(INDIRECT(\"'\"&F3131&\"'!\"&H3131)),\"\",IFERROR(VLOOKUP(TEXT(INDIRECT(\"'\"&F3131&\"'!\"&H3131),\"0\"),Notes!$B$5:$C$100,2,FALSE),\"\"))","v":""},"2d","$W$52","$X$52"]
[15060,{"$f":"Menu!$F$29","v":"X"},{"$f":"Menu!$J$29","v":2020},{"$f":"IF(ISBLANK(INDIRECT(\"'\"&F3132&\"'!\"&G3132)),\"\",INDIRECT(\"'\"&F3132&\"'!\"&G3132))","v":""},{"$f":"IF(ISBLANK(INDIRECT(\"'\"&F3132&\"'!\"&H3132)),\"\",IFERROR(VLOOKUP(TEXT(INDIRECT(\"'\"&F3132&\"'!\"&H3132),\"0\"),Notes!$B$5:$C$100,2,FALSE),\"\"))","v":""},"2d","$Y$52","$Z$52"]
[15061,{"$f":"Menu!$F$29","v":"X"},{"$f":"Menu!$J$29","v":2020},{"$f":"IF(ISBLANK(INDIRECT(\"'\"&F3133&\"'!\"&G3133)),\"\",INDIRECT(\"'\"&F3133&\"'!\"&G3133))","v":""},{"$f":"IF(ISBLANK(INDIRECT(\"'\"&F3133&\"'!\"&H3133)),\"\",IFERROR(VLOOKUP(TEXT(INDIRECT(\"'\"&F3133&\"'!\"&H3133),\"0\"),Notes!$B$5:$C$100,2,FALSE),\"\"))","v":""},"2d","$AA$52","$AB$52"]
[15062,{"$f":"Menu!$F$29","v":"X"},{"$f":"Menu!$J$29","v":2020},{"$f":"IF(ISBLANK(INDIRECT(\"'\"&F3134&\"'!\"&G3134)),\"\",INDIRECT(\"'\"&F3134&\"'!\"&G3134))","v":""},{"$f":"IF(ISBLANK(INDIRECT(\"'\"&F3134&\"'!\"&H3134)),\"\",IFERROR(VLOOKUP(TEXT(INDIRECT(\"'\"&F3134&\"'!\"&H3134),\"0\"),Notes!$B$5:$C$100,2,FALSE),\"\"))","v":""},"2d","$AC$52","$AD$52"]
[15063,{"$f":"Menu!$F$29","v":"X"},{"$f":"Menu!$J$29","v":2020},{"$f":"IF(ISBLANK(INDIRECT(\"'\"&F3135&\"'!\"&G3135)),\"\",INDIRECT(\"'\"&F3135&\"'!\"&G3135))","v":""},{"$f":"IF(ISBLANK(INDIRECT(\"'\"&F3135&\"'!\"&H3135)),\"\",IFERROR(VLOOKUP(TEXT(INDIRECT(\"'\"&F3135&\"'!\"&H3135),\"0\"),Notes!$B$5:$C$100,2,FALSE),\"\"))","v":""},"2d","$AE$52","$AF$52"]
[15064,{"$f":"Menu!$F$29","v":"X"},{"$f":"Menu!$J$29","v":2020},{"$f":"IF(ISBLANK(INDIRECT(\"'\"&F3136&\"'!\"&G3136)),\"\",INDIRECT(\"'\"&F3136&\"'!\"&G3136))","v":""},{"$f":"IF(ISBLANK(INDIRECT(\"'\"&F3136&\"'!\"&H3136)),\"\",IFERROR(VLOOKUP(TEXT(INDIRECT(\"'\"&F3136&\"'!\"&H3136),\"0\"),Notes!$B$5:$C$100,2,FALSE),\"\"))","v":""},"2d","$AG$52","$AH$52"]
[15065,{"$f":"Menu!$F$29","v":"X"},{"$f":"Menu!$J$29","v":2020},{"$f":"IF(ISBLANK(INDIRECT(\"'\"&F3137&\"'!\"&G3137)),\"\",INDIRECT(\"'\"&F3137&\"'!\"&G3137))","v":""},{"$f":"IF(ISBLANK(INDIRECT(\"'\"&F3137&\"'!\"&H3137)),\"\",IFERROR(VLOOKUP(TEXT(INDIRECT(\"'\"&F3137&\"'!\"&H3137),\"0\"),Notes!$B$5:$C$100,2,FALSE),\"\"))","v":""},"2d","$E$40","$F$40"]
[15066,{"$f":"Menu!$F$29","v":"X"},{"$f":"Menu!$J$29","v":2020},{"$f":"IF(ISBLANK(INDIRECT(\"'\"&F3138&\"'!\"&G3138)),\"\",INDIRECT(\"'\"&F3138&\"'!\"&G3138))","v":""},{"$f":"IF(ISBLANK(INDIRECT(\"'\"&F3138&\"'!\"&H3138)),\"\",IFERROR(VLOOKUP(TEXT(INDIRECT(\"'\"&F3138&\"'!\"&H3138),\"0\"),Notes!$B$5:$C$100,2,FALSE),\"\"))","v":""},"2d","$G$40",{"$f":"IF(LEN(TRIM(MID(G3138,4,10)))-LEN(SUBSTITUTE(TRIM(MID(G3138,4,10)),\"$\",\"\"))=0,\"$\"&CHAR(CODE(MID(G3138,2,1))+1)&\"$\"&TRIM(MID(G3138,4,10)),\"$\"&MID(G3138,2,1)&CHAR(CODE(MID(G3138,3,1))+1)&\"$\"&TRIM(MID(G3138,5,11)))","v":"$H$40"}]
[15067,{"$f":"Menu!$F$29","v":"X"},{"$f":"Menu!$J$29","v":2020},{"$f":"IF(ISBLANK(INDIRECT(\"'\"&F3139&\"'!\"&G3139)),\"\",INDIRECT(\"'\"&F3139&\"'!\"&G3139))","v":""},{"$f":"IF(ISBLANK(INDIRECT(\"'\"&F3139&\"'!\"&H3139)),\"\",IFERROR(VLOOKUP(TEXT(INDIRECT(\"'\"&F3139&\"'!\"&H3139),\"0\"),Notes!$B$5:$C$100,2,FALSE),\"\"))","v":""},"2d","$I$40","$J$40"]
[15068,{"$f":"Menu!$F$29","v":"X"},{"$f":"Menu!$J$29","v":2020},{"$f":"IF(ISBLANK(INDIRECT(\"'\"&F3140&\"'!\"&G3140)),\"\",INDIRECT(\"'\"&F3140&\"'!\"&G3140))","v":""},{"$f":"IF(ISBLANK(INDIRECT(\"'\"&F3140&\"'!\"&H3140)),\"\",IFERROR(VLOOKUP(TEXT(INDIRECT(\"'\"&F3140&\"'!\"&H3140),\"0\"),Notes!$B$5:$C$100,2,FALSE),\"\"))","v":""},"2d","$K$40","$L$40"]
[15069,{"$f":"Menu!$F$29","v":"X"},{"$f":"Menu!$J$29","v":2020},{"$f":"IF(ISBLANK(INDIRECT(\"'\"&F3141&\"'!\"&G3141)),\"\",INDIRECT(\"'\"&F3141&\"'!\"&G3141))","v":""},{"$f":"IF(ISBLANK(INDIRECT(\"'\"&F3141&\"'!\"&H3141)),\"\",IFERROR(VLOOKUP(TEXT(INDIRECT(\"'\"&F3141&\"'!\"&H3141),\"0\"),Notes!$B$5:$C$100,2,FALSE),\"\"))","v":""},"2d","$M$40","$N$40"]
[15070,{"$f":"Menu!$F$29","v":"X"},{"$f":"Menu!$J$29","v":2020},{"$f":"IF(ISBLANK(INDIRECT(\"'\"&F3142&\"'!\"&G3142)),\"\",INDIRECT(\"'\"&F3142&\"'!\"&G3142))","v":""},{"$f":"IF(ISBLANK(INDIRECT(\"'\"&F3142&\"'!\"&H3142)),\"\",IFERROR(VLOOKUP(TEXT(INDIRECT(\"'\"&F3142&\"'!\"&H3142),\"0\"),Notes!$B$5:$C$100,2,FALSE),\"\"))","v":""},"2d","$O$40","$P$40"]
[15071,{"$f":"Menu!$F$29","v":"X"},{"$f":"Menu!$J$29","v":2020},{"$f":"IF(ISBLANK(INDIRECT(\"'\"&F3143&\"'!\"&G3143)),\"\",INDIRECT(\"'\"&F3143&\"'!\"&G3143))","v":""},{"$f":"IF(ISBLANK(INDIRECT(\"'\"&F3143&\"'!\"&H3143)),\"\",IFERROR(VLOOKUP(TEXT(INDIRECT(\"'\"&F3143&\"'!\"&H3143),\"0\"),Notes!$B$5:$C$100,2,FALSE),\"\"))","v":""},"2d","$Q$40","$R$40"]
[15072,{"$f":"Menu!$F$29","v":"X"},{"$f":"Menu!$J$29","v":2020},{"$f":"IF(ISBLANK(INDIRECT(\"'\"&F3144&\"'!\"&G3144)),\"\",INDIRECT(\"'\"&F3144&\"'!\"&G3144))","v":""},{"$f":"IF(ISBLANK(INDIRECT(\"'\"&F3144&\"'!\"&H3144)),\"\",IFERROR(VLOOKUP(TEXT(INDIRECT(\"'\"&F3144&\"'!\"&H3144),\"0\"),Notes!$B$5:$C$100,2,FALSE),\"\"))","v":""},"2d","$S$40","$T$40"]
[15073,{"$f":"Menu!$F$29","v":"X"},{"$f":"Menu!$J$29","v":2020},{"$f":"IF(ISBLANK(INDIRECT(\"'\"&F3145&\"'!\"&G3145)),\"\",INDIRECT(\"'\"&F3145&\"'!\"&G3145))","v":""},{"$f":"IF(ISBLANK(INDIRECT(\"'\"&F3145&\"'!\"&H3145)),\"\",IFERROR(VLOOKUP(TEXT(INDIRECT(\"'\"&F3145&\"'!\"&H3145),\"0\"),Notes!$B$5:$C$100,2,FALSE),\"\"))","v":""},"2d","$U$40","$V$40"]
[15074,{"$f":"Menu!$F$29","v":"X"},{"$f":"Menu!$J$29","v":2020},{"$f":"IF(ISBLANK(INDIRECT(\"'\"&F3146&\"'!\"&G3146)),\"\",INDIRECT(\"'\"&F3146&\"'!\"&G3146))","v":""},{"$f":"IF(ISBLANK(INDIRECT(\"'\"&F3146&\"'!\"&H3146)),\"\",IFERROR(VLOOKUP(TEXT(INDIRECT(\"'\"&F3146&\"'!\"&H3146),\"0\"),Notes!$B$5:$C$100,2,FALSE),\"\"))","v":""},"2d","$W$40","$X$40"]
[15075,{"$f":"Menu!$F$29","v":"X"},{"$f":"Menu!$J$29","v":2020},{"$f":"IF(ISBLANK(INDIRECT(\"'\"&F3147&\"'!\"&G3147)),\"\",INDIRECT(\"'\"&F3147&\"'!\"&G3147))","v":""},{"$f":"IF(ISBLANK(INDIRECT(\"'\"&F3147&\"'!\"&H3147)),\"\",IFERROR(VLOOKUP(TEXT(INDIRECT(\"'\"&F3147&\"'!\"&H3147),\"0\"),Notes!$B$5:$C$100,2,FALSE),\"\"))","v":""},"2d","$Y$40","$Z$40"]
[15076,{"$f":"Menu!$F$29","v":"X"},{"$f":"Menu!$J$29","v":2020},{"$f":"IF(ISBLANK(INDIRECT(\"'\"&F3148&\"'!\"&G3148)),\"\",INDIRECT(\"'\"&F3148&\"'!\"&G3148))","v":""},{"$f":"IF(ISBLANK(INDIRECT(\"'\"&F3148&\"'!\"&H3148)),\"\",IFERROR(VLOOKUP(TEXT(INDIRECT(\"'\"&F3148&\"'!\"&H3148),\"0\"),Notes!$B$5:$C$100,2,FALSE),\"\"))","v":""},"2d","$AA$40","$AB$40"]
[15077,{"$f":"Menu!$F$29","v":"X"},{"$f":"Menu!$J$29","v":2020},{"$f":"IF(ISBLANK(INDIRECT(\"'\"&F3149&\"'!\"&G3149)),\"\",INDIRECT(\"'\"&F3149&\"'!\"&G3149))","v":""},{"$f":"IF(ISBLANK(INDIRECT(\"'\"&F3149&\"'!\"&H3149)),\"\",IFERROR(VLOOKUP(TEXT(INDIRECT(\"'\"&F3149&\"'!\"&H3149),\"0\"),Notes!$B$5:$C$100,2,FALSE),\"\"))","v":""},"2d","$AC$40","$AD$40"]
[15078,{"$f":"Menu!$F$29","v":"X"},{"$f":"Menu!$J$29","v":2020},{"$f":"IF(ISBLANK(INDIRECT(\"'\"&F3150&\"'!\"&G3150)),\"\",INDIRECT(\"'\"&F3150&\"'!\"&G3150))","v":""},{"$f":"IF(ISBLANK(INDIRECT(\"'\"&F3150&\"'!\"&H3150)),\"\",IFERROR(VLOOKUP(TEXT(INDIRECT(\"'\"&F3150&\"'!\"&H3150),\"0\"),Notes!$B$5:$C$100,2,FALSE),\"\"))","v":""},"2d","$AE$40","$AF$40"]
[15079,{"$f":"Menu!$F$29","v":"X"},{"$f":"Menu!$J$29","v":2020},{"$f":"IF(ISBLANK(INDIRECT(\"'\"&F3151&\"'!\"&G3151)),\"\",INDIRECT(\"'\"&F3151&\"'!\"&G3151))","v":""},{"$f":"IF(ISBLANK(INDIRECT(\"'\"&F3151&\"'!\"&H3151)),\"\",IFERROR(VLOOKUP(TEXT(INDIRECT(\"'\"&F3151&\"'!\"&H3151),\"0\"),Notes!$B$5:$C$100,2,FALSE),\"\"))","v":""},"2d","$AG$40","$AH$40"]
[15095,{"$f":"Menu!$F$29","v":"X"},{"$f":"Menu!$J$29","v":2020},{"$f":"IF(ISBLANK(INDIRECT(\"'\"&F3152&\"'!\"&G3152)),\"\",INDIRECT(\"'\"&F3152&\"'!\"&G3152))","v":""},{"$f":"IF(ISBLANK(INDIRECT(\"'\"&F3152&\"'!\"&H3152)),\"\",IFERROR(VLOOKUP(TEXT(INDIRECT(\"'\"&F3152&\"'!\"&H3152),\"0\"),Notes!$B$5:$C$100,2,FALSE),\"\"))","v":""},"2d","$E$42","$F$42"]
[15096,{"$f":"Menu!$F$29","v":"X"},{"$f":"Menu!$J$29","v":2020},{"$f":"IF(ISBLANK(INDIRECT(\"'\"&F3153&\"'!\"&G3153)),\"\",INDIRECT(\"'\"&F3153&\"'!\"&G3153))","v":""},{"$f":"IF(ISBLANK(INDIRECT(\"'\"&F3153&\"'!\"&H3153)),\"\",IFERROR(VLOOKUP(TEXT(INDIRECT(\"'\"&F3153&\"'!\"&H3153),\"0\"),Notes!$B$5:$C$100,2,FALSE),\"\"))","v":""},"2d","$G$42","$H$42"]
[15097,{"$f":"Menu!$F$29","v":"X"},{"$f":"Menu!$J$29","v":2020},{"$f":"IF(ISBLANK(INDIRECT(\"'\"&F3154&\"'!\"&G3154)),\"\",INDIRECT(\"'\"&F3154&\"'!\"&G3154))","v":""},{"$f":"IF(ISBLANK(INDIRECT(\"'\"&F3154&\"'!\"&H3154)),\"\",IFERROR(VLOOKUP(TEXT(INDIRECT(\"'\"&F3154&\"'!\"&H3154),\"0\"),Notes!$B$5:$C$100,2,FALSE),\"\"))","v":""},"2d","$I$42","$J$42"]
[15098,{"$f":"Menu!$F$29","v":"X"},{"$f":"Menu!$J$29","v":2020},{"$f":"IF(ISBLANK(INDIRECT(\"'\"&F3155&\"'!\"&G3155)),\"\",INDIRECT(\"'\"&F3155&\"'!\"&G3155))","v":""},{"$f":"IF(ISBLANK(INDIRECT(\"'\"&F3155&\"'!\"&H3155)),\"\",IFERROR(VLOOKUP(TEXT(INDIRECT(\"'\"&F3155&\"'!\"&H3155),\"0\"),Notes!$B$5:$C$100,2,FALSE),\"\"))","v":""},"2d","$K$42","$L$42"]
[15099,{"$f":"Menu!$F$29","v":"X"},{"$f":"Menu!$J$29","v":2020},{"$f":"IF(ISBLANK(INDIRECT(\"'\"&F3156&\"'!\"&G3156)),\"\",INDIRECT(\"'\"&F3156&\"'!\"&G3156))","v":""},{"$f":"IF(ISBLANK(INDIRECT(\"'\"&F3156&\"'!\"&H3156)),\"\",IFERROR(VLOOKUP(TEXT(INDIRECT(\"'\"&F3156&\"'!\"&H3156),\"0\"),Notes!$B$5:$C$100,2,FALSE),\"\"))","v":""},"2d","$M$42","$N$42"]
[15100,{"$f":"Menu!$F$29","v":"X"},{"$f":"Menu!$J$29","v":2020},{"$f":"IF(ISBLANK(INDIRECT(\"'\"&F3157&\"'!\"&G3157)),\"\",INDIRECT(\"'\"&F3157&\"'!\"&G3157))","v":""},{"$f":"IF(ISBLANK(INDIRECT(\"'\"&F3157&\"'!\"&H3157)),\"\",IFERROR(VLOOKUP(TEXT(INDIRECT(\"'\"&F3157&\"'!\"&H3157),\"0\"),Notes!$B$5:$C$100,2,FALSE),\"\"))","v":""},"2d","$O$42","$P$42"]
[15101,{"$f":"Menu!$F$29","v":"X"},{"$f":"Menu!$J$29","v":2020},{"$f":"IF(ISBLANK(INDIRECT(\"'\"&F3158&\"'!\"&G3158)),\"\",INDIRECT(\"'\"&F3158&\"'!\"&G3158))","v":""},{"$f":"IF(ISBLANK(INDIRECT(\"'\"&F3158&\"'!\"&H3158)),\"\",IFERROR(VLOOKUP(TEXT(INDIRECT(\"'\"&F3158&\"'!\"&H3158),\"0\"),Notes!$B$5:$C$100,2,FALSE),\"\"))","v":""},"2d","$Q$42","$R$42"]
[15102,{"$f":"Menu!$F$29","v":"X"},{"$f":"Menu!$J$29","v":2020},{"$f":"IF(ISBLANK(INDIRECT(\"'\"&F3159&\"'!\"&G3159)),\"\",INDIRECT(\"'\"&F3159&\"'!\"&G3159))","v":""},{"$f":"IF(ISBLANK(INDIRECT(\"'\"&F3159&\"'!\"&H3159)),\"\",IFERROR(VLOOKUP(TEXT(INDIRECT(\"'\"&F3159&\"'!\"&H3159),\"0\"),Notes!$B$5:$C$100,2,FALSE),\"\"))","v":""},"2d","$S$42","$T$42"]
[15103,{"$f":"Menu!$F$29","v":"X"},{"$f":"Menu!$J$29","v":2020},{"$f":"IF(ISBLANK(INDIRECT(\"'\"&F3160&\"'!\"&G3160)),\"\",INDIRECT(\"'\"&F3160&\"'!\"&G3160))","v":""},{"$f":"IF(ISBLANK(INDIRECT(\"'\"&F3160&\"'!\"&H3160)),\"\",IFERROR(VLOOKUP(TEXT(INDIRECT(\"'\"&F3160&\"'!\"&H3160),\"0\"),Notes!$B$5:$C$100,2,FALSE),\"\"))","v":""},"2d","$U$42","$V$42"]
[15104,{"$f":"Menu!$F$29","v":"X"},{"$f":"Menu!$J$29","v":2020},{"$f":"IF(ISBLANK(INDIRECT(\"'\"&F3161&\"'!\"&G3161)),\"\",INDIRECT(\"'\"&F3161&\"'!\"&G3161))","v":""},{"$f":"IF(ISBLANK(INDIRECT(\"'\"&F3161&\"'!\"&H3161)),\"\",IFERROR(VLOOKUP(TEXT(INDIRECT(\"'\"&F3161&\"'!\"&H3161),\"0\"),Notes!$B$5:$C$100,2,FALSE),\"\"))","v":""},"2d","$W$42","$X$42"]
[15105,{"$f":"Menu!$F$29","v":"X"},{"$f":"Menu!$J$29","v":2020},{"$f":"IF(ISBLANK(INDIRECT(\"'\"&F3162&\"'!\"&G3162)),\"\",INDIRECT(\"'\"&F3162&\"'!\"&G3162))","v":""},{"$f":"IF(ISBLANK(INDIRECT(\"'\"&F3162&\"'!\"&H3162)),\"\",IFERROR(VLOOKUP(TEXT(INDIRECT(\"'\"&F3162&\"'!\"&H3162),\"0\"),Notes!$B$5:$C$100,2,FALSE),\"\"))","v":""},"2d","$Y$42","$Z$42"]
[15106,{"$f":"Menu!$F$29","v":"X"},{"$f":"Menu!$J$29","v":2020},{"$f":"IF(ISBLANK(INDIRECT(\"'\"&F3163&\"'!\"&G3163)),\"\",INDIRECT(\"'\"&F3163&\"'!\"&G3163))","v":""},{"$f":"IF(ISBLANK(INDIRECT(\"'\"&F3163&\"'!\"&H3163)),\"\",IFERROR(VLOOKUP(TEXT(INDIRECT(\"'\"&F3163&\"'!\"&H3163),\"0\"),Notes!$B$5:$C$100,2,FALSE),\"\"))","v":""},"2d","$AA$42","$AB$42"]
[15107,{"$f":"Menu!$F$29","v":"X"},{"$f":"Menu!$J$29","v":2020},{"$f":"IF(ISBLANK(INDIRECT(\"'\"&F3164&\"'!\"&G3164)),\"\",INDIRECT(\"'\"&F3164&\"'!\"&G3164))","v":""},{"$f":"IF(ISBLANK(INDIRECT(\"'\"&F3164&\"'!\"&H3164)),\"\",IFERROR(VLOOKUP(TEXT(INDIRECT(\"'\"&F3164&\"'!\"&H3164),\"0\"),Notes!$B$5:$C$100,2,FALSE),\"\"))","v":""},"2d","$AC$42","$AD$42"]
[15108,{"$f":"Menu!$F$29","v":"X"},{"$f":"Menu!$J$29","v":2020},{"$f":"IF(ISBLANK(INDIRECT(\"'\"&F3165&\"'!\"&G3165)),\"\",INDIRECT(\"'\"&F3165&\"'!\"&G3165))","v":""},{"$f":"IF(ISBLANK(INDIRECT(\"'\"&F3165&\"'!\"&H3165)),\"\",IFERROR(VLOOKUP(TEXT(INDIRECT(\"'\"&F3165&\"'!\"&H3165),\"0\"),Notes!$B$5:$C$100,2,FALSE),\"\"))","v":""},"2d","$AE$42","$AF$42"]
[15109,{"$f":"Menu!$F$29","v":"X"},{"$f":"Menu!$J$29","v":2020},{"$f":"IF(ISBLANK(INDIRECT(\"'\"&F3166&\"'!\"&G3166)),\"\",INDIRECT(\"'\"&F3166&\"'!\"&G3166))","v":""},{"$f":"IF(ISBLANK(INDIRECT(\"'\"&F3166&\"'!\"&H3166)),\"\",IFERROR(VLOOKUP(TEXT(INDIRECT(\"'\"&F3166&\"'!\"&H3166),\"0\"),Notes!$B$5:$C$100,2,FALSE),\"\"))","v":""},"2d","$AG$42","$AH$42"]
[15110,{"$f":"Menu!$F$29","v":"X"},{"$f":"Menu!$J$29","v":2020},{"$f":"IF(ISBLANK(INDIRECT(\"'\"&F3167&\"'!\"&G3167)),\"\",INDIRECT(\"'\"&F3167&\"'!\"&G3167))","v":""},{"$f":"IF(ISBLANK(INDIRECT(\"'\"&F3167&\"'!\"&H3167)),\"\",IFERROR(VLOOKUP(TEXT(INDIRECT(\"'\"&F3167&\"'!\"&H3167),\"0\"),Notes!$B$5:$C$100,2,FALSE),\"\"))","v":""},"2e","$E$13","$F$13"]
[15111,{"$f":"Menu!$F$29","v":"X"},{"$f":"Menu!$J$29","v":2020},{"$f":"IF(ISBLANK(INDIRECT(\"'\"&F3168&\"'!\"&G3168)),\"\",INDIRECT(\"'\"&F3168&\"'!\"&G3168))","v":""},{"$f":"IF(ISBLANK(INDIRECT(\"'\"&F3168&\"'!\"&H3168)),\"\",IFERROR(VLOOKUP(TEXT(INDIRECT(\"'\"&F3168&\"'!\"&H3168),\"0\"),Notes!$B$5:$C$100,2,FALSE),\"\"))","v":""},"2e","$G$13","$H$13"]
[15112,{"$f":"Menu!$F$29","v":"X"},{"$f":"Menu!$J$29","v":2020},{"$f":"IF(ISBLANK(INDIRECT(\"'\"&F3169&\"'!\"&G3169)),\"\",INDIRECT(\"'\"&F3169&\"'!\"&G3169))","v":""},{"$f":"IF(ISBLANK(INDIRECT(\"'\"&F3169&\"'!\"&H3169)),\"\",IFERROR(VLOOKUP(TEXT(INDIRECT(\"'\"&F3169&\"'!\"&H3169),\"0\"),Notes!$B$5:$C$100,2,FALSE),\"\"))","v":""},"2e","$I$13","$J$13"]
[15113,{"$f":"Menu!$F$29","v":"X"},{"$f":"Menu!$J$29","v":2020},{"$f":"IF(ISBLANK(INDIRECT(\"'\"&F3170&\"'!\"&G3170)),\"\",INDIRECT(\"'\"&F3170&\"'!\"&G3170))","v":""},{"$f":"IF(ISBLANK(INDIRECT(\"'\"&F3170&\"'!\"&H3170)),\"\",IFERROR(VLOOKUP(TEXT(INDIRECT(\"'\"&F3170&\"'!\"&H3170),\"0\"),Notes!$B$5:$C$100,2,FALSE),\"\"))","v":""},"2e","$K$13","$L$13"]
[15114,{"$f":"Menu!$F$29","v":"X"},{"$f":"Menu!$J$29","v":2020},{"$f":"IF(ISBLANK(INDIRECT(\"'\"&F3171&\"'!\"&G3171)),\"\",INDIRECT(\"'\"&F3171&\"'!\"&G3171))","v":""},{"$f":"IF(ISBLANK(INDIRECT(\"'\"&F3171&\"'!\"&H3171)),\"\",IFERROR(VLOOKUP(TEXT(INDIRECT(\"'\"&F3171&\"'!\"&H3171),\"0\"),Notes!$B$5:$C$100,2,FALSE),\"\"))","v":""},"2e","$M$13","$N$13"]
[15115,{"$f":"Menu!$F$29","v":"X"},{"$f":"Menu!$J$29","v":2020},{"$f":"IF(ISBLANK(INDIRECT(\"'\"&F3172&\"'!\"&G3172)),\"\",INDIRECT(\"'\"&F3172&\"'!\"&G3172))","v":""},{"$f":"IF(ISBLANK(INDIRECT(\"'\"&F3172&\"'!\"&H3172)),\"\",IFERROR(VLOOKUP(TEXT(INDIRECT(\"'\"&F3172&\"'!\"&H3172),\"0\"),Notes!$B$5:$C$100,2,FALSE),\"\"))","v":""},"2e","$O$13","$P$13"]
[15116,{"$f":"Menu!$F$29","v":"X"},{"$f":"Menu!$J$29","v":2020},{"$f":"IF(ISBLANK(INDIRECT(\"'\"&F3173&\"'!\"&G3173)),\"\",INDIRECT(\"'\"&F3173&\"'!\"&G3173))","v":""},{"$f":"IF(ISBLANK(INDIRECT(\"'\"&F3173&\"'!\"&H3173)),\"\",IFERROR(VLOOKUP(TEXT(INDIRECT(\"'\"&F3173&\"'!\"&H3173),\"0\"),Notes!$B$5:$C$100,2,FALSE),\"\"))","v":""},"2e","$Q$13","$R$13"]
[15117,{"$f":"Menu!$F$29","v":"X"},{"$f":"Menu!$J$29","v":2020},{"$f":"IF(ISBLANK(INDIRECT(\"'\"&F3174&\"'!\"&G3174)),\"\",INDIRECT(\"'\"&F3174&\"'!\"&G3174))","v":""},{"$f":"IF(ISBLANK(INDIRECT(\"'\"&F3174&\"'!\"&H3174)),\"\",IFERROR(VLOOKUP(TEXT(INDIRECT(\"'\"&F3174&\"'!\"&H3174),\"0\"),Notes!$B$5:$C$100,2,FALSE),\"\"))","v":""},"2e","$S$13","$T$13"]
[15118,{"$f":"Menu!$F$29","v":"X"},{"$f":"Menu!$J$29","v":2020},{"$f":"IF(ISBLANK(INDIRECT(\"'\"&F3175&\"'!\"&G3175)),\"\",INDIRECT(\"'\"&F3175&\"'!\"&G3175))","v":""},{"$f":"IF(ISBLANK(INDIRECT(\"'\"&F3175&\"'!\"&H3175)),\"\",IFERROR(VLOOKUP(TEXT(INDIRECT(\"'\"&F3175&\"'!\"&H3175),\"0\"),Notes!$B$5:$C$100,2,FALSE),\"\"))","v":""},"2e","$U$13","$V$13"]
[15119,{"$f":"Menu!$F$29","v":"X"},{"$f":"Menu!$J$29","v":2020},{"$f":"IF(ISBLANK(INDIRECT(\"'\"&F3176&\"'!\"&G3176)),\"\",INDIRECT(\"'\"&F3176&\"'!\"&G3176))","v":""},{"$f":"IF(ISBLANK(INDIRECT(\"'\"&F3176&\"'!\"&H3176)),\"\",IFERROR(VLOOKUP(TEXT(INDIRECT(\"'\"&F3176&\"'!\"&H3176),\"0\"),Notes!$B$5:$C$100,2,FALSE),\"\"))","v":""},"2e","$W$13","$X$13"]
[15120,{"$f":"Menu!$F$29","v":"X"},{"$f":"Menu!$J$29","v":2020},{"$f":"IF(ISBLANK(INDIRECT(\"'\"&F3177&\"'!\"&G3177)),\"\",INDIRECT(\"'\"&F3177&\"'!\"&G3177))","v":""},{"$f":"IF(ISBLANK(INDIRECT(\"'\"&F3177&\"'!\"&H3177)),\"\",IFERROR(VLOOKUP(TEXT(INDIRECT(\"'\"&F3177&\"'!\"&H3177),\"0\"),Notes!$B$5:$C$100,2,FALSE),\"\"))","v":""},"2e","$Y$13","$Z$13"]
[15121,{"$f":"Menu!$F$29","v":"X"},{"$f":"Menu!$J$29","v":2020},{"$f":"IF(ISBLANK(INDIRECT(\"'\"&F3178&\"'!\"&G3178)),\"\",INDIRECT(\"'\"&F3178&\"'!\"&G3178))","v":""},{"$f":"IF(ISBLANK(INDIRECT(\"'\"&F3178&\"'!\"&H3178)),\"\",IFERROR(VLOOKUP(TEXT(INDIRECT(\"'\"&F3178&\"'!\"&H3178),\"0\"),Notes!$B$5:$C$100,2,FALSE),\"\"))","v":""},"2e","$AA$13","$AB$13"]
[15122,{"$f":"Menu!$F$29","v":"X"},{"$f":"Menu!$J$29","v":2020},{"$f":"IF(ISBLANK(INDIRECT(\"'\"&F3179&\"'!\"&G3179)),\"\",INDIRECT(\"'\"&F3179&\"'!\"&G3179))","v":""},{"$f":"IF(ISBLANK(INDIRECT(\"'\"&F3179&\"'!\"&H3179)),\"\",IFERROR(VLOOKUP(TEXT(INDIRECT(\"'\"&F3179&\"'!\"&H3179),\"0\"),Notes!$B$5:$C$100,2,FALSE),\"\"))","v":""},"2e","$AC$13","$AD$13"]
[15123,{"$f":"Menu!$F$29","v":"X"},{"$f":"Menu!$J$29","v":2020},{"$f":"IF(ISBLANK(INDIRECT(\"'\"&F3180&\"'!\"&G3180)),\"\",INDIRECT(\"'\"&F3180&\"'!\"&G3180))","v":""},{"$f":"IF(ISBLANK(INDIRECT(\"'\"&F3180&\"'!\"&H3180)),\"\",IFERROR(VLOOKUP(TEXT(INDIRECT(\"'\"&F3180&\"'!\"&H3180),\"0\"),Notes!$B$5:$C$100,2,FALSE),\"\"))","v":""},"2e","$AE$13","$AF$13"]
[15124,{"$f":"Menu!$F$29","v":"X"},{"$f":"Menu!$J$29","v":2020},{"$f":"IF(ISBLANK(INDIRECT(\"'\"&F3181&\"'!\"&G3181)),\"\",INDIRECT(\"'\"&F3181&\"'!\"&G3181))","v":""},{"$f":"IF(ISBLANK(INDIRECT(\"'\"&F3181&\"'!\"&H3181)),\"\",IFERROR(VLOOKUP(TEXT(INDIRECT(\"'\"&F3181&\"'!\"&H3181),\"0\"),Notes!$B$5:$C$100,2,FALSE),\"\"))","v":""},"2e","$AG$13","$AH$13"]
[15125,{"$f":"Menu!$F$29","v":"X"},{"$f":"Menu!$J$29","v":2020},{"$f":"IF(ISBLANK(INDIRECT(\"'\"&F3182&\"'!\"&G3182)),\"\",INDIRECT(\"'\"&F3182&\"'!\"&G3182))","v":""},{"$f":"IF(ISBLANK(INDIRECT(\"'\"&F3182&\"'!\"&H3182)),\"\",IFERROR(VLOOKUP(TEXT(INDIRECT(\"'\"&F3182&\"'!\"&H3182),\"0\"),Notes!$B$5:$C$100,2,FALSE),\"\"))","v":""},"2e","$AI$13","$AJ$13"]
[15126,{"$f":"Menu!$F$29","v":"X"},{"$f":"Menu!$J$29","v":2020},{"$f":"IF(ISBLANK(INDIRECT(\"'\"&F3183&\"'!\"&G3183)),\"\",INDIRECT(\"'\"&F3183&\"'!\"&G3183))","v":""},{"$f":"IF(ISBLANK(INDIRECT(\"'\"&F3183&\"'!\"&H3183)),\"\",IFERROR(VLOOKUP(TEXT(INDIRECT(\"'\"&F3183&\"'!\"&H3183),\"0\"),Notes!$B$5:$C$100,2,FALSE),\"\"))","v":""},"2e","$AK$13","$AL$13"]
[15127,{"$f":"Menu!$F$29","v":"X"},{"$f":"Menu!$J$29","v":2020},{"$f":"IF(ISBLANK(INDIRECT(\"'\"&F3184&\"'!\"&G3184)),\"\",INDIRECT(\"'\"&F3184&\"'!\"&G3184))","v":""},{"$f":"IF(ISBLANK(INDIRECT(\"'\"&F3184&\"'!\"&H3184)),\"\",IFERROR(VLOOKUP(TEXT(INDIRECT(\"'\"&F3184&\"'!\"&H3184),\"0\"),Notes!$B$5:$C$100,2,FALSE),\"\"))","v":""},"2e","$AM$13","$AN$13"]
[15128,{"$f":"Menu!$F$29","v":"X"},{"$f":"Menu!$J$29","v":2020},{"$f":"IF(ISBLANK(INDIRECT(\"'\"&F3185&\"'!\"&G3185)),\"\",INDIRECT(\"'\"&F3185&\"'!\"&G3185))","v":""},{"$f":"IF(ISBLANK(INDIRECT(\"'\"&F3185&\"'!\"&H3185)),\"\",IFERROR(VLOOKUP(TEXT(INDIRECT(\"'\"&F3185&\"'!\"&H3185),\"0\"),Notes!$B$5:$C$100,2,FALSE),\"\"))","v":""},"2e","$AO$13","$AP$13"]
[15129,{"$f":"Menu!$F$29","v":"X"},{"$f":"Menu!$J$29","v":2020},{"$f":"IF(ISBLANK(INDIRECT(\"'\"&F3186&\"'!\"&G3186)),\"\",INDIRECT(\"'\"&F3186&\"'!\"&G3186))","v":""},{"$f":"IF(ISBLANK(INDIRECT(\"'\"&F3186&\"'!\"&H3186)),\"\",IFERROR(VLOOKUP(TEXT(INDIRECT(\"'\"&F3186&\"'!\"&H3186),\"0\"),Notes!$B$5:$C$100,2,FALSE),\"\"))","v":""},"2e","$AQ$13","$AR$13"]
[15130,{"$f":"Menu!$F$29","v":"X"},{"$f":"Menu!$J$29","v":2020},{"$f":"IF(ISBLANK(INDIRECT(\"'\"&F3187&\"'!\"&G3187)),\"\",INDIRECT(\"'\"&F3187&\"'!\"&G3187))","v":""},{"$f":"IF(ISBLANK(INDIRECT(\"'\"&F3187&\"'!\"&H3187)),\"\",IFERROR(VLOOKUP(TEXT(INDIRECT(\"'\"&F3187&\"'!\"&H3187),\"0\"),Notes!$B$5:$C$100,2,FALSE),\"\"))","v":""},"2e","$AS$13","$AT$13"]
[15131,{"$f":"Menu!$F$29","v":"X"},{"$f":"Menu!$J$29","v":2020},{"$f":"IF(ISBLANK(INDIRECT(\"'\"&F3188&\"'!\"&G3188)),\"\",INDIRECT(\"'\"&F3188&\"'!\"&G3188))","v":""},{"$f":"IF(ISBLANK(INDIRECT(\"'\"&F3188&\"'!\"&H3188)),\"\",IFERROR(VLOOKUP(TEXT(INDIRECT(\"'\"&F3188&\"'!\"&H3188),\"0\"),Notes!$B$5:$C$100,2,FALSE),\"\"))","v":""},"2e","$AU$13","$AV$13"]
[15132,{"$f":"Menu!$F$29","v":"X"},{"$f":"Menu!$J$29","v":2020},{"$f":"IF(ISBLANK(INDIRECT(\"'\"&F3189&\"'!\"&G3189)),\"\",INDIRECT(\"'\"&F3189&\"'!\"&G3189))","v":""},{"$f":"IF(ISBLANK(INDIRECT(\"'\"&F3189&\"'!\"&H3189)),\"\",IFERROR(VLOOKUP(TEXT(INDIRECT(\"'\"&F3189&\"'!\"&H3189),\"0\"),Notes!$B$5:$C$100,2,FALSE),\"\"))","v":""},"2e","$AW$13","$AX$13"]
[15133,{"$f":"Menu!$F$29","v":"X"},{"$f":"Menu!$J$29","v":2020},{"$f":"IF(ISBLANK(INDIRECT(\"'\"&F3190&\"'!\"&G3190)),\"\",INDIRECT(\"'\"&F3190&\"'!\"&G3190))","v":""},{"$f":"IF(ISBLANK(INDIRECT(\"'\"&F3190&\"'!\"&H3190)),\"\",IFERROR(VLOOKUP(TEXT(INDIRECT(\"'\"&F3190&\"'!\"&H3190),\"0\"),Notes!$B$5:$C$100,2,FALSE),\"\"))","v":""},"2e","$AY$13","$AZ$13"]
[15134,{"$f":"Menu!$F$29","v":"X"},{"$f":"Menu!$J$29","v":2020},{"$f":"IF(ISBLANK(INDIRECT(\"'\"&F3191&\"'!\"&G3191)),\"\",INDIRECT(\"'\"&F3191&\"'!\"&G3191))","v":""},{"$f":"IF(ISBLANK(INDIRECT(\"'\"&F3191&\"'!\"&H3191)),\"\",IFERROR(VLOOKUP(TEXT(INDIRECT(\"'\"&F3191&\"'!\"&H3191),\"0\"),Notes!$B$5:$C$100,2,FALSE),\"\"))","v":""},"2e","$BA$13","$BB$13"]
[15135,{"$f":"Menu!$F$29","v":"X"},{"$f":"Menu!$J$29","v":2020},{"$f":"IF(ISBLANK(INDIRECT(\"'\"&F3192&\"'!\"&G3192)),\"\",INDIRECT(\"'\"&F3192&\"'!\"&G3192))","v":""},{"$f":"IF(ISBLANK(INDIRECT(\"'\"&F3192&\"'!\"&H3192)),\"\",IFERROR(VLOOKUP(TEXT(INDIRECT(\"'\"&F3192&\"'!\"&H3192),\"0\"),Notes!$B$5:$C$100,2,FALSE),\"\"))","v":""},"2e","$BC$13","$BD$13"]
[15136,{"$f":"Menu!$F$29","v":"X"},{"$f":"Menu!$J$29","v":2020},{"$f":"IF(ISBLANK(INDIRECT(\"'\"&F3193&\"'!\"&G3193)),\"\",INDIRECT(\"'\"&F3193&\"'!\"&G3193))","v":""},{"$f":"IF(ISBLANK(INDIRECT(\"'\"&F3193&\"'!\"&H3193)),\"\",IFERROR(VLOOKUP(TEXT(INDIRECT(\"'\"&F3193&\"'!\"&H3193),\"0\"),Notes!$B$5:$C$100,2,FALSE),\"\"))","v":""},"2e","$BE$13","$BF$13"]
[15137,{"$f":"Menu!$F$29","v":"X"},{"$f":"Menu!$J$29","v":2020},{"$f":"IF(ISBLANK(INDIRECT(\"'\"&F3194&\"'!\"&G3194)),\"\",INDIRECT(\"'\"&F3194&\"'!\"&G3194))","v":""},{"$f":"IF(ISBLANK(INDIRECT(\"'\"&F3194&\"'!\"&H3194)),\"\",IFERROR(VLOOKUP(TEXT(INDIRECT(\"'\"&F3194&\"'!\"&H3194),\"0\"),Notes!$B$5:$C$100,2,FALSE),\"\"))","v":""},"2e","$BG$13","$BH$13"]
[15138,{"$f":"Menu!$F$29","v":"X"},{"$f":"Menu!$J$29","v":2020},{"$f":"IF(ISBLANK(INDIRECT(\"'\"&F3195&\"'!\"&G3195)),\"\",INDIRECT(\"'\"&F3195&\"'!\"&G3195))","v":""},{"$f":"IF(ISBLANK(INDIRECT(\"'\"&F3195&\"'!\"&H3195)),\"\",IFERROR(VLOOKUP(TEXT(INDIRECT(\"'\"&F3195&\"'!\"&H3195),\"0\"),Notes!$B$5:$C$100,2,FALSE),\"\"))","v":""},"2e","$BI$13","$BJ$13"]
[15139,{"$f":"Menu!$F$29","v":"X"},{"$f":"Menu!$J$29","v":2020},{"$f":"IF(ISBLANK(INDIRECT(\"'\"&F3196&\"'!\"&G3196)),\"\",INDIRECT(\"'\"&F3196&\"'!\"&G3196))","v":""},{"$f":"IF(ISBLANK(INDIRECT(\"'\"&F3196&\"'!\"&H3196)),\"\",IFERROR(VLOOKUP(TEXT(INDIRECT(\"'\"&F3196&\"'!\"&H3196),\"0\"),Notes!$B$5:$C$100,2,FALSE),\"\"))","v":""},"2e","$BK$13","$BL$13"]
[15140,{"$f":"Menu!$F$29","v":"X"},{"$f":"Menu!$J$29","v":2020},{"$f":"IF(ISBLANK(INDIRECT(\"'\"&F3197&\"'!\"&G3197)),\"\",INDIRECT(\"'\"&F3197&\"'!\"&G3197))","v":""},{"$f":"IF(ISBLANK(INDIRECT(\"'\"&F3197&\"'!\"&H3197)),\"\",IFERROR(VLOOKUP(TEXT(INDIRECT(\"'\"&F3197&\"'!\"&H3197),\"0\"),Notes!$B$5:$C$100,2,FALSE),\"\"))","v":""},"2e","$E$14","$F$14"]
[15141,{"$f":"Menu!$F$29","v":"X"},{"$f":"Menu!$J$29","v":2020},{"$f":"IF(ISBLANK(INDIRECT(\"'\"&F3198&\"'!\"&G3198)),\"\",INDIRECT(\"'\"&F3198&\"'!\"&G3198))","v":""},{"$f":"IF(ISBLANK(INDIRECT(\"'\"&F3198&\"'!\"&H3198)),\"\",IFERROR(VLOOKUP(TEXT(INDIRECT(\"'\"&F3198&\"'!\"&H3198),\"0\"),Notes!$B$5:$C$100,2,FALSE),\"\"))","v":""},"2e","$G$14","$H$14"]
[15142,{"$f":"Menu!$F$29","v":"X"},{"$f":"Menu!$J$29","v":2020},{"$f":"IF(ISBLANK(INDIRECT(\"'\"&F3199&\"'!\"&G3199)),\"\",INDIRECT(\"'\"&F3199&\"'!\"&G3199))","v":""},{"$f":"IF(ISBLANK(INDIRECT(\"'\"&F3199&\"'!\"&H3199)),\"\",IFERROR(VLOOKUP(TEXT(INDIRECT(\"'\"&F3199&\"'!\"&H3199),\"0\"),Notes!$B$5:$C$100,2,FALSE),\"\"))","v":""},"2e","$I$14","$J$14"]
[15143,{"$f":"Menu!$F$29","v":"X"},{"$f":"Menu!$J$29","v":2020},{"$f":"IF(ISBLANK(INDIRECT(\"'\"&F3200&\"'!\"&G3200)),\"\",INDIRECT(\"'\"&F3200&\"'!\"&G3200))","v":""},{"$f":"IF(ISBLANK(INDIRECT(\"'\"&F3200&\"'!\"&H3200)),\"\",IFERROR(VLOOKUP(TEXT(INDIRECT(\"'\"&F3200&\"'!\"&H3200),\"0\"),Notes!$B$5:$C$100,2,FALSE),\"\"))","v":""},"2e","$K$14","$L$14"]
[15144,{"$f":"Menu!$F$29","v":"X"},{"$f":"Menu!$J$29","v":2020},{"$f":"IF(ISBLANK(INDIRECT(\"'\"&F3201&\"'!\"&G3201)),\"\",INDIRECT(\"'\"&F3201&\"'!\"&G3201))","v":""},{"$f":"IF(ISBLANK(INDIRECT(\"'\"&F3201&\"'!\"&H3201)),\"\",IFERROR(VLOOKUP(TEXT(INDIRECT(\"'\"&F3201&\"'!\"&H3201),\"0\"),Notes!$B$5:$C$100,2,FALSE),\"\"))","v":""},"2e","$M$14","$N$14"]
[15145,{"$f":"Menu!$F$29","v":"X"},{"$f":"Menu!$J$29","v":2020},{"$f":"IF(ISBLANK(INDIRECT(\"'\"&F3202&\"'!\"&G3202)),\"\",INDIRECT(\"'\"&F3202&\"'!\"&G3202))","v":""},{"$f":"IF(ISBLANK(INDIRECT(\"'\"&F3202&\"'!\"&H3202)),\"\",IFERROR(VLOOKUP(TEXT(INDIRECT(\"'\"&F3202&\"'!\"&H3202),\"0\"),Notes!$B$5:$C$100,2,FALSE),\"\"))","v":""},"2e","$O$14",{"$f":"IF(LEN(TRIM(MID(G3202,4,10)))-LEN(SUBSTITUTE(TRIM(MID(G3202,4,10)),\"$\",\"\"))=0,\"$\"&CHAR(CODE(MID(G3202,2,1))+1)&\"$\"&TRIM(MID(G3202,4,10)),\"$\"&MID(G3202,2,1)&CHAR(CODE(MID(G3202,3,1))+1)&\"$\"&TRIM(MID(G3202,5,11)))","v":"$P$14"}]
[15146,{"$f":"Menu!$F$29","v":"X"},{"$f":"Menu!$J$29","v":2020},{"$f":"IF(ISBLANK(INDIRECT(\"'\"&F3203&\"'!\"&G3203)),\"\",INDIRECT(\"'\"&F3203&\"'!\"&G3203))","v":""},{"$f":"IF(ISBLANK(INDIRECT(\"'\"&F3203&\"'!\"&H3203)),\"\",IFERROR(VLOOKUP(TEXT(INDIRECT(\"'\"&F3203&\"'!\"&H3203),\"0\"),Notes!$B$5:$C$100,2,FALSE),\"\"))","v":""},"2e","$Q$14","$R$14"]
[15147,{"$f":"Menu!$F$29","v":"X"},{"$f":"Menu!$J$29","v":2020},{"$f":"IF(ISBLANK(INDIRECT(\"'\"&F3204&\"'!\"&G3204)),\"\",INDIRECT(\"'\"&F3204&\"'!\"&G3204))","v":""},{"$f":"IF(ISBLANK(INDIRECT(\"'\"&F3204&\"'!\"&H3204)),\"\",IFERROR(VLOOKUP(TEXT(INDIRECT(\"'\"&F3204&\"'!\"&H3204),\"0\"),Notes!$B$5:$C$100,2,FALSE),\"\"))","v":""},"2e","$S$14","$T$14"]
[15148,{"$f":"Menu!$F$29","v":"X"},{"$f":"Menu!$J$29","v":2020},{"$f":"IF(ISBLANK(INDIRECT(\"'\"&F3205&\"'!\"&G3205)),\"\",INDIRECT(\"'\"&F3205&\"'!\"&G3205))","v":""},{"$f":"IF(ISBLANK(INDIRECT(\"'\"&F3205&\"'!\"&H3205)),\"\",IFERROR(VLOOKUP(TEXT(INDIRECT(\"'\"&F3205&\"'!\"&H3205),\"0\"),Notes!$B$5:$C$100,2,FALSE),\"\"))","v":""},"2e","$U$14","$V$14"]
[15149,{"$f":"Menu!$F$29","v":"X"},{"$f":"Menu!$J$29","v":2020},{"$f":"IF(ISBLANK(INDIRECT(\"'\"&F3206&\"'!\"&G3206)),\"\",INDIRECT(\"'\"&F3206&\"'!\"&G3206))","v":""},{"$f":"IF(ISBLANK(INDIRECT(\"'\"&F3206&\"'!\"&H3206)),\"\",IFERROR(VLOOKUP(TEXT(INDIRECT(\"'\"&F3206&\"'!\"&H3206),\"0\"),Notes!$B$5:$C$100,2,FALSE),\"\"))","v":""},"2e","$W$14","$X$14"]
[15150,{"$f":"Menu!$F$29","v":"X"},{"$f":"Menu!$J$29","v":2020},{"$f":"IF(ISBLANK(INDIRECT(\"'\"&F3207&\"'!\"&G3207)),\"\",INDIRECT(\"'\"&F3207&\"'!\"&G3207))","v":""},{"$f":"IF(ISBLANK(INDIRECT(\"'\"&F3207&\"'!\"&H3207)),\"\",IFERROR(VLOOKUP(TEXT(INDIRECT(\"'\"&F3207&\"'!\"&H3207),\"0\"),Notes!$B$5:$C$100,2,FALSE),\"\"))","v":""},"2e","$Y$14","$Z$14"]
[15151,{"$f":"Menu!$F$29","v":"X"},{"$f":"Menu!$J$29","v":2020},{"$f":"IF(ISBLANK(INDIRECT(\"'\"&F3208&\"'!\"&G3208)),\"\",INDIRECT(\"'\"&F3208&\"'!\"&G3208))","v":""},{"$f":"IF(ISBLANK(INDIRECT(\"'\"&F3208&\"'!\"&H3208)),\"\",IFERROR(VLOOKUP(TEXT(INDIRECT(\"'\"&F3208&\"'!\"&H3208),\"0\"),Notes!$B$5:$C$100,2,FALSE),\"\"))","v":""},"2e","$AA$14","$AB$14"]
[15152,{"$f":"Menu!$F$29","v":"X"},{"$f":"Menu!$J$29","v":2020},{"$f":"IF(ISBLANK(INDIRECT(\"'\"&F3209&\"'!\"&G3209)),\"\",INDIRECT(\"'\"&F3209&\"'!\"&G3209))","v":""},{"$f":"IF(ISBLANK(INDIRECT(\"'\"&F3209&\"'!\"&H3209)),\"\",IFERROR(VLOOKUP(TEXT(INDIRECT(\"'\"&F3209&\"'!\"&H3209),\"0\"),Notes!$B$5:$C$100,2,FALSE),\"\"))","v":""},"2e","$AC$14","$AD$14"]
[15153,{"$f":"Menu!$F$29","v":"X"},{"$f":"Menu!$J$29","v":2020},{"$f":"IF(ISBLANK(INDIRECT(\"'\"&F3210&\"'!\"&G3210)),\"\",INDIRECT(\"'\"&F3210&\"'!\"&G3210))","v":""},{"$f":"IF(ISBLANK(INDIRECT(\"'\"&F3210&\"'!\"&H3210)),\"\",IFERROR(VLOOKUP(TEXT(INDIRECT(\"'\"&F3210&\"'!\"&H3210),\"0\"),Notes!$B$5:$C$100,2,FALSE),\"\"))","v":""},"2e","$AE$14","$AF$14"]
[15154,{"$f":"Menu!$F$29","v":"X"},{"$f":"Menu!$J$29","v":2020},{"$f":"IF(ISBLANK(INDIRECT(\"'\"&F3211&\"'!\"&G3211)),\"\",INDIRECT(\"'\"&F3211&\"'!\"&G3211))","v":""},{"$f":"IF(ISBLANK(INDIRECT(\"'\"&F3211&\"'!\"&H3211)),\"\",IFERROR(VLOOKUP(TEXT(INDIRECT(\"'\"&F3211&\"'!\"&H3211),\"0\"),Notes!$B$5:$C$100,2,FALSE),\"\"))","v":""},"2e","$AG$14","$AH$14"]
[15155,{"$f":"Menu!$F$29","v":"X"},{"$f":"Menu!$J$29","v":2020},{"$f":"IF(ISBLANK(INDIRECT(\"'\"&F3212&\"'!\"&G3212)),\"\",INDIRECT(\"'\"&F3212&\"'!\"&G3212))","v":""},{"$f":"IF(ISBLANK(INDIRECT(\"'\"&F3212&\"'!\"&H3212)),\"\",IFERROR(VLOOKUP(TEXT(INDIRECT(\"'\"&F3212&\"'!\"&H3212),\"0\"),Notes!$B$5:$C$100,2,FALSE),\"\"))","v":""},"2e","$AI$14","$AJ$14"]
[15156,{"$f":"Menu!$F$29","v":"X"},{"$f":"Menu!$J$29","v":2020},{"$f":"IF(ISBLANK(INDIRECT(\"'\"&F3213&\"'!\"&G3213)),\"\",INDIRECT(\"'\"&F3213&\"'!\"&G3213))","v":""},{"$f":"IF(ISBLANK(INDIRECT(\"'\"&F3213&\"'!\"&H3213)),\"\",IFERROR(VLOOKUP(TEXT(INDIRECT(\"'\"&F3213&\"'!\"&H3213),\"0\"),Notes!$B$5:$C$100,2,FALSE),\"\"))","v":""},"2e","$AK$14","$AL$14"]
[15157,{"$f":"Menu!$F$29","v":"X"},{"$f":"Menu!$J$29","v":2020},{"$f":"IF(ISBLANK(INDIRECT(\"'\"&F3214&\"'!\"&G3214)),\"\",INDIRECT(\"'\"&F3214&\"'!\"&G3214))","v":""},{"$f":"IF(ISBLANK(INDIRECT(\"'\"&F3214&\"'!\"&H3214)),\"\",IFERROR(VLOOKUP(TEXT(INDIRECT(\"'\"&F3214&\"'!\"&H3214),\"0\"),Notes!$B$5:$C$100,2,FALSE),\"\"))","v":""},"2e","$AM$14","$AN$14"]
[15158,{"$f":"Menu!$F$29","v":"X"},{"$f":"Menu!$J$29","v":2020},{"$f":"IF(ISBLANK(INDIRECT(\"'\"&F3215&\"'!\"&G3215)),\"\",INDIRECT(\"'\"&F3215&\"'!\"&G3215))","v":""},{"$f":"IF(ISBLANK(INDIRECT(\"'\"&F3215&\"'!\"&H3215)),\"\",IFERROR(VLOOKUP(TEXT(INDIRECT(\"'\"&F3215&\"'!\"&H3215),\"0\"),Notes!$B$5:$C$100,2,FALSE),\"\"))","v":""},"2e","$AO$14","$AP$14"]
[15159,{"$f":"Menu!$F$29","v":"X"},{"$f":"Menu!$J$29","v":2020},{"$f":"IF(ISBLANK(INDIRECT(\"'\"&F3216&\"'!\"&G3216)),\"\",INDIRECT(\"'\"&F3216&\"'!\"&G3216))","v":""},{"$f":"IF(ISBLANK(INDIRECT(\"'\"&F3216&\"'!\"&H3216)),\"\",IFERROR(VLOOKUP(TEXT(INDIRECT(\"'\"&F3216&\"'!\"&H3216),\"0\"),Notes!$B$5:$C$100,2,FALSE),\"\"))","v":""},"2e","$AQ$14","$AR$14"]
[15160,{"$f":"Menu!$F$29","v":"X"},{"$f":"Menu!$J$29","v":2020},{"$f":"IF(ISBLANK(INDIRECT(\"'\"&F3217&\"'!\"&G3217)),\"\",INDIRECT(\"'\"&F3217&\"'!\"&G3217))","v":""},{"$f":"IF(ISBLANK(INDIRECT(\"'\"&F3217&\"'!\"&H3217)),\"\",IFERROR(VLOOKUP(TEXT(INDIRECT(\"'\"&F3217&\"'!\"&H3217),\"0\"),Notes!$B$5:$C$100,2,FALSE),\"\"))","v":""},"2e","$AS$14","$AT$14"]
[15161,{"$f":"Menu!$F$29","v":"X"},{"$f":"Menu!$J$29","v":2020},{"$f":"IF(ISBLANK(INDIRECT(\"'\"&F3218&\"'!\"&G3218)),\"\",INDIRECT(\"'\"&F3218&\"'!\"&G3218))","v":""},{"$f":"IF(ISBLANK(INDIRECT(\"'\"&F3218&\"'!\"&H3218)),\"\",IFERROR(VLOOKUP(TEXT(INDIRECT(\"'\"&F3218&\"'!\"&H3218),\"0\"),Notes!$B$5:$C$100,2,FALSE),\"\"))","v":""},"2e","$AU$14","$AV$14"]
[15162,{"$f":"Menu!$F$29","v":"X"},{"$f":"Menu!$J$29","v":2020},{"$f":"IF(ISBLANK(INDIRECT(\"'\"&F3219&\"'!\"&G3219)),\"\",INDIRECT(\"'\"&F3219&\"'!\"&G3219))","v":""},{"$f":"IF(ISBLANK(INDIRECT(\"'\"&F3219&\"'!\"&H3219)),\"\",IFERROR(VLOOKUP(TEXT(INDIRECT(\"'\"&F3219&\"'!\"&H3219),\"0\"),Notes!$B$5:$C$100,2,FALSE),\"\"))","v":""},"2e","$AW$14","$AX$14"]
[15163,{"$f":"Menu!$F$29","v":"X"},{"$f":"Menu!$J$29","v":2020},{"$f":"IF(ISBLANK(INDIRECT(\"'\"&F3220&\"'!\"&G3220)),\"\",INDIRECT(\"'\"&F3220&\"'!\"&G3220))","v":""},{"$f":"IF(ISBLANK(INDIRECT(\"'\"&F3220&\"'!\"&H3220)),\"\",IFERROR(VLOOKUP(TEXT(INDIRECT(\"'\"&F3220&\"'!\"&H3220),\"0\"),Notes!$B$5:$C$100,2,FALSE),\"\"))","v":""},"2e","$AY$14","$AZ$14"]
[15164,{"$f":"Menu!$F$29","v":"X"},{"$f":"Menu!$J$29","v":2020},{"$f":"IF(ISBLANK(INDIRECT(\"'\"&F3221&\"'!\"&G3221)),\"\",INDIRECT(\"'\"&F3221&\"'!\"&G3221))","v":""},{"$f":"IF(ISBLANK(INDIRECT(\"'\"&F3221&\"'!\"&H3221)),\"\",IFERROR(VLOOKUP(TEXT(INDIRECT(\"'\"&F3221&\"'!\"&H3221),\"0\"),Notes!$B$5:$C$100,2,FALSE),\"\"))","v":""},"2e","$BA$14","$BB$14"]
[15165,{"$f":"Menu!$F$29","v":"X"},{"$f":"Menu!$J$29","v":2020},{"$f":"IF(ISBLANK(INDIRECT(\"'\"&F3222&\"'!\"&G3222)),\"\",INDIRECT(\"'\"&F3222&\"'!\"&G3222))","v":""},{"$f":"IF(ISBLANK(INDIRECT(\"'\"&F3222&\"'!\"&H3222)),\"\",IFERROR(VLOOKUP(TEXT(INDIRECT(\"'\"&F3222&\"'!\"&H3222),\"0\"),Notes!$B$5:$C$100,2,FALSE),\"\"))","v":""},"2e","$BC$14","$BD$14"]
[15166,{"$f":"Menu!$F$29","v":"X"},{"$f":"Menu!$J$29","v":2020},{"$f":"IF(ISBLANK(INDIRECT(\"'\"&F3223&\"'!\"&G3223)),\"\",INDIRECT(\"'\"&F3223&\"'!\"&G3223))","v":""},{"$f":"IF(ISBLANK(INDIRECT(\"'\"&F3223&\"'!\"&H3223)),\"\",IFERROR(VLOOKUP(TEXT(INDIRECT(\"'\"&F3223&\"'!\"&H3223),\"0\"),Notes!$B$5:$C$100,2,FALSE),\"\"))","v":""},"2e","$BE$14","$BF$14"]
[15167,{"$f":"Menu!$F$29","v":"X"},{"$f":"Menu!$J$29","v":2020},{"$f":"IF(ISBLANK(INDIRECT(\"'\"&F3224&\"'!\"&G3224)),\"\",INDIRECT(\"'\"&F3224&\"'!\"&G3224))","v":""},{"$f":"IF(ISBLANK(INDIRECT(\"'\"&F3224&\"'!\"&H3224)),\"\",IFERROR(VLOOKUP(TEXT(INDIRECT(\"'\"&F3224&\"'!\"&H3224),\"0\"),Notes!$B$5:$C$100,2,FALSE),\"\"))","v":""},"2e","$BG$14","$BH$14"]
[15168,{"$f":"Menu!$F$29","v":"X"},{"$f":"Menu!$J$29","v":2020},{"$f":"IF(ISBLANK(INDIRECT(\"'\"&F3225&\"'!\"&G3225)),\"\",INDIRECT(\"'\"&F3225&\"'!\"&G3225))","v":""},{"$f":"IF(ISBLANK(INDIRECT(\"'\"&F3225&\"'!\"&H3225)),\"\",IFERROR(VLOOKUP(TEXT(INDIRECT(\"'\"&F3225&\"'!\"&H3225),\"0\"),Notes!$B$5:$C$100,2,FALSE),\"\"))","v":""},"2e","$BI$14","$BJ$14"]
[15169,{"$f":"Menu!$F$29","v":"X"},{"$f":"Menu!$J$29","v":2020},{"$f":"IF(ISBLANK(INDIRECT(\"'\"&F3226&\"'!\"&G3226)),\"\",INDIRECT(\"'\"&F3226&\"'!\"&G3226))","v":""},{"$f":"IF(ISBLANK(INDIRECT(\"'\"&F3226&\"'!\"&H3226)),\"\",IFERROR(VLOOKUP(TEXT(INDIRECT(\"'\"&F3226&\"'!\"&H3226),\"0\"),Notes!$B$5:$C$100,2,FALSE),\"\"))","v":""},"2e","$BK$14","$BL$14"]
[15170,{"$f":"Menu!$F$29","v":"X"},{"$f":"Menu!$J$29","v":2020},{"$f":"IF(ISBLANK(INDIRECT(\"'\"&F3227&\"'!\"&G3227)),\"\",INDIRECT(\"'\"&F3227&\"'!\"&G3227))","v":""},{"$f":"IF(ISBLANK(INDIRECT(\"'\"&F3227&\"'!\"&H3227)),\"\",IFERROR(VLOOKUP(TEXT(INDIRECT(\"'\"&F3227&\"'!\"&H3227),\"0\"),Notes!$B$5:$C$100,2,FALSE),\"\"))","v":""},"2e","$E$15","$F$15"]
[15171,{"$f":"Menu!$F$29","v":"X"},{"$f":"Menu!$J$29","v":2020},{"$f":"IF(ISBLANK(INDIRECT(\"'\"&F3228&\"'!\"&G3228)),\"\",INDIRECT(\"'\"&F3228&\"'!\"&G3228))","v":""},{"$f":"IF(ISBLANK(INDIRECT(\"'\"&F3228&\"'!\"&H3228)),\"\",IFERROR(VLOOKUP(TEXT(INDIRECT(\"'\"&F3228&\"'!\"&H3228),\"0\"),Notes!$B$5:$C$100,2,FALSE),\"\"))","v":""},"2e","$G$15","$H$15"]
[15172,{"$f":"Menu!$F$29","v":"X"},{"$f":"Menu!$J$29","v":2020},{"$f":"IF(ISBLANK(INDIRECT(\"'\"&F3229&\"'!\"&G3229)),\"\",INDIRECT(\"'\"&F3229&\"'!\"&G3229))","v":""},{"$f":"IF(ISBLANK(INDIRECT(\"'\"&F3229&\"'!\"&H3229)),\"\",IFERROR(VLOOKUP(TEXT(INDIRECT(\"'\"&F3229&\"'!\"&H3229),\"0\"),Notes!$B$5:$C$100,2,FALSE),\"\"))","v":""},"2e","$I$15","$J$15"]
[15173,{"$f":"Menu!$F$29","v":"X"},{"$f":"Menu!$J$29","v":2020},{"$f":"IF(ISBLANK(INDIRECT(\"'\"&F3230&\"'!\"&G3230)),\"\",INDIRECT(\"'\"&F3230&\"'!\"&G3230))","v":""},{"$f":"IF(ISBLANK(INDIRECT(\"'\"&F3230&\"'!\"&H3230)),\"\",IFERROR(VLOOKUP(TEXT(INDIRECT(\"'\"&F3230&\"'!\"&H3230),\"0\"),Notes!$B$5:$C$100,2,FALSE),\"\"))","v":""},"2e","$K$15","$L$15"]
[15174,{"$f":"Menu!$F$29","v":"X"},{"$f":"Menu!$J$29","v":2020},{"$f":"IF(ISBLANK(INDIRECT(\"'\"&F3231&\"'!\"&G3231)),\"\",INDIRECT(\"'\"&F3231&\"'!\"&G3231))","v":""},{"$f":"IF(ISBLANK(INDIRECT(\"'\"&F3231&\"'!\"&H3231)),\"\",IFERROR(VLOOKUP(TEXT(INDIRECT(\"'\"&F3231&\"'!\"&H3231),\"0\"),Notes!$B$5:$C$100,2,FALSE),\"\"))","v":""},"2e","$M$15","$N$15"]
[15175,{"$f":"Menu!$F$29","v":"X"},{"$f":"Menu!$J$29","v":2020},{"$f":"IF(ISBLANK(INDIRECT(\"'\"&F3232&\"'!\"&G3232)),\"\",INDIRECT(\"'\"&F3232&\"'!\"&G3232))","v":""},{"$f":"IF(ISBLANK(INDIRECT(\"'\"&F3232&\"'!\"&H3232)),\"\",IFERROR(VLOOKUP(TEXT(INDIRECT(\"'\"&F3232&\"'!\"&H3232),\"0\"),Notes!$B$5:$C$100,2,FALSE),\"\"))","v":""},"2e","$O$15","$P$15"]
[15176,{"$f":"Menu!$F$29","v":"X"},{"$f":"Menu!$J$29","v":2020},{"$f":"IF(ISBLANK(INDIRECT(\"'\"&F3233&\"'!\"&G3233)),\"\",INDIRECT(\"'\"&F3233&\"'!\"&G3233))","v":""},{"$f":"IF(ISBLANK(INDIRECT(\"'\"&F3233&\"'!\"&H3233)),\"\",IFERROR(VLOOKUP(TEXT(INDIRECT(\"'\"&F3233&\"'!\"&H3233),\"0\"),Notes!$B$5:$C$100,2,FALSE),\"\"))","v":""},"2e","$Q$15","$R$15"]
[15177,{"$f":"Menu!$F$29","v":"X"},{"$f":"Menu!$J$29","v":2020},{"$f":"IF(ISBLANK(INDIRECT(\"'\"&F3234&\"'!\"&G3234)),\"\",INDIRECT(\"'\"&F3234&\"'!\"&G3234))","v":""},{"$f":"IF(ISBLANK(INDIRECT(\"'\"&F3234&\"'!\"&H3234)),\"\",IFERROR(VLOOKUP(TEXT(INDIRECT(\"'\"&F3234&\"'!\"&H3234),\"0\"),Notes!$B$5:$C$100,2,FALSE),\"\"))","v":""},"2e","$S$15","$T$15"]
[15178,{"$f":"Menu!$F$29","v":"X"},{"$f":"Menu!$J$29","v":2020},{"$f":"IF(ISBLANK(INDIRECT(\"'\"&F3235&\"'!\"&G3235)),\"\",INDIRECT(\"'\"&F3235&\"'!\"&G3235))","v":""},{"$f":"IF(ISBLANK(INDIRECT(\"'\"&F3235&\"'!\"&H3235)),\"\",IFERROR(VLOOKUP(TEXT(INDIRECT(\"'\"&F3235&\"'!\"&H3235),\"0\"),Notes!$B$5:$C$100,2,FALSE),\"\"))","v":""},"2e","$U$15","$V$15"]
[15179,{"$f":"Menu!$F$29","v":"X"},{"$f":"Menu!$J$29","v":2020},{"$f":"IF(ISBLANK(INDIRECT(\"'\"&F3236&\"'!\"&G3236)),\"\",INDIRECT(\"'\"&F3236&\"'!\"&G3236))","v":""},{"$f":"IF(ISBLANK(INDIRECT(\"'\"&F3236&\"'!\"&H3236)),\"\",IFERROR(VLOOKUP(TEXT(INDIRECT(\"'\"&F3236&\"'!\"&H3236),\"0\"),Notes!$B$5:$C$100,2,FALSE),\"\"))","v":""},"2e","$W$15","$X$15"]
[15180,{"$f":"Menu!$F$29","v":"X"},{"$f":"Menu!$J$29","v":2020},{"$f":"IF(ISBLANK(INDIRECT(\"'\"&F3237&\"'!\"&G3237)),\"\",INDIRECT(\"'\"&F3237&\"'!\"&G3237))","v":""},{"$f":"IF(ISBLANK(INDIRECT(\"'\"&F3237&\"'!\"&H3237)),\"\",IFERROR(VLOOKUP(TEXT(INDIRECT(\"'\"&F3237&\"'!\"&H3237),\"0\"),Notes!$B$5:$C$100,2,FALSE),\"\"))","v":""},"2e","$Y$15","$Z$15"]
[15181,{"$f":"Menu!$F$29","v":"X"},{"$f":"Menu!$J$29","v":2020},{"$f":"IF(ISBLANK(INDIRECT(\"'\"&F3238&\"'!\"&G3238)),\"\",INDIRECT(\"'\"&F3238&\"'!\"&G3238))","v":""},{"$f":"IF(ISBLANK(INDIRECT(\"'\"&F3238&\"'!\"&H3238)),\"\",IFERROR(VLOOKUP(TEXT(INDIRECT(\"'\"&F3238&\"'!\"&H3238),\"0\"),Notes!$B$5:$C$100,2,FALSE),\"\"))","v":""},"2e","$AA$15","$AB$15"]
[15182,{"$f":"Menu!$F$29","v":"X"},{"$f":"Menu!$J$29","v":2020},{"$f":"IF(ISBLANK(INDIRECT(\"'\"&F3239&\"'!\"&G3239)),\"\",INDIRECT(\"'\"&F3239&\"'!\"&G3239))","v":""},{"$f":"IF(ISBLANK(INDIRECT(\"'\"&F3239&\"'!\"&H3239)),\"\",IFERROR(VLOOKUP(TEXT(INDIRECT(\"'\"&F3239&\"'!\"&H3239),\"0\"),Notes!$B$5:$C$100,2,FALSE),\"\"))","v":""},"2e","$AC$15","$AD$15"]
[15183,{"$f":"Menu!$F$29","v":"X"},{"$f":"Menu!$J$29","v":2020},{"$f":"IF(ISBLANK(INDIRECT(\"'\"&F3240&\"'!\"&G3240)),\"\",INDIRECT(\"'\"&F3240&\"'!\"&G3240))","v":""},{"$f":"IF(ISBLANK(INDIRECT(\"'\"&F3240&\"'!\"&H3240)),\"\",IFERROR(VLOOKUP(TEXT(INDIRECT(\"'\"&F3240&\"'!\"&H3240),\"0\"),Notes!$B$5:$C$100,2,FALSE),\"\"))","v":""},"2e","$AE$15","$AF$15"]
[15184,{"$f":"Menu!$F$29","v":"X"},{"$f":"Menu!$J$29","v":2020},{"$f":"IF(ISBLANK(INDIRECT(\"'\"&F3241&\"'!\"&G3241)),\"\",INDIRECT(\"'\"&F3241&\"'!\"&G3241))","v":""},{"$f":"IF(ISBLANK(INDIRECT(\"'\"&F3241&\"'!\"&H3241)),\"\",IFERROR(VLOOKUP(TEXT(INDIRECT(\"'\"&F3241&\"'!\"&H3241),\"0\"),Notes!$B$5:$C$100,2,FALSE),\"\"))","v":""},"2e","$AG$15","$AH$15"]
[15185,{"$f":"Menu!$F$29","v":"X"},{"$f":"Menu!$J$29","v":2020},{"$f":"IF(ISBLANK(INDIRECT(\"'\"&F3242&\"'!\"&G3242)),\"\",INDIRECT(\"'\"&F3242&\"'!\"&G3242))","v":""},{"$f":"IF(ISBLANK(INDIRECT(\"'\"&F3242&\"'!\"&H3242)),\"\",IFERROR(VLOOKUP(TEXT(INDIRECT(\"'\"&F3242&\"'!\"&H3242),\"0\"),Notes!$B$5:$C$100,2,FALSE),\"\"))","v":""},"2e","$AI$15","$AJ$15"]
[15186,{"$f":"Menu!$F$29","v":"X"},{"$f":"Menu!$J$29","v":2020},{"$f":"IF(ISBLANK(INDIRECT(\"'\"&F3243&\"'!\"&G3243)),\"\",INDIRECT(\"'\"&F3243&\"'!\"&G3243))","v":""},{"$f":"IF(ISBLANK(INDIRECT(\"'\"&F3243&\"'!\"&H3243)),\"\",IFERROR(VLOOKUP(TEXT(INDIRECT(\"'\"&F3243&\"'!\"&H3243),\"0\"),Notes!$B$5:$C$100,2,FALSE),\"\"))","v":""},"2e","$AK$15","$AL$15"]
[15187,{"$f":"Menu!$F$29","v":"X"},{"$f":"Menu!$J$29","v":2020},{"$f":"IF(ISBLANK(INDIRECT(\"'\"&F3244&\"'!\"&G3244)),\"\",INDIRECT(\"'\"&F3244&\"'!\"&G3244))","v":""},{"$f":"IF(ISBLANK(INDIRECT(\"'\"&F3244&\"'!\"&H3244)),\"\",IFERROR(VLOOKUP(TEXT(INDIRECT(\"'\"&F3244&\"'!\"&H3244),\"0\"),Notes!$B$5:$C$100,2,FALSE),\"\"))","v":""},"2e","$AM$15","$AN$15"]
[15188,{"$f":"Menu!$F$29","v":"X"},{"$f":"Menu!$J$29","v":2020},{"$f":"IF(ISBLANK(INDIRECT(\"'\"&F3245&\"'!\"&G3245)),\"\",INDIRECT(\"'\"&F3245&\"'!\"&G3245))","v":""},{"$f":"IF(ISBLANK(INDIRECT(\"'\"&F3245&\"'!\"&H3245)),\"\",IFERROR(VLOOKUP(TEXT(INDIRECT(\"'\"&F3245&\"'!\"&H3245),\"0\"),Notes!$B$5:$C$100,2,FALSE),\"\"))","v":""},"2e","$AO$15","$AP$15"]
[15189,{"$f":"Menu!$F$29","v":"X"},{"$f":"Menu!$J$29","v":2020},{"$f":"IF(ISBLANK(INDIRECT(\"'\"&F3246&\"'!\"&G3246)),\"\",INDIRECT(\"'\"&F3246&\"'!\"&G3246))","v":""},{"$f":"IF(ISBLANK(INDIRECT(\"'\"&F3246&\"'!\"&H3246)),\"\",IFERROR(VLOOKUP(TEXT(INDIRECT(\"'\"&F3246&\"'!\"&H3246),\"0\"),Notes!$B$5:$C$100,2,FALSE),\"\"))","v":""},"2e","$AQ$15","$AR$15"]
[15190,{"$f":"Menu!$F$29","v":"X"},{"$f":"Menu!$J$29","v":2020},{"$f":"IF(ISBLANK(INDIRECT(\"'\"&F3247&\"'!\"&G3247)),\"\",INDIRECT(\"'\"&F3247&\"'!\"&G3247))","v":""},{"$f":"IF(ISBLANK(INDIRECT(\"'\"&F3247&\"'!\"&H3247)),\"\",IFERROR(VLOOKUP(TEXT(INDIRECT(\"'\"&F3247&\"'!\"&H3247),\"0\"),Notes!$B$5:$C$100,2,FALSE),\"\"))","v":""},"2e","$AS$15","$AT$15"]
[15191,{"$f":"Menu!$F$29","v":"X"},{"$f":"Menu!$J$29","v":2020},{"$f":"IF(ISBLANK(INDIRECT(\"'\"&F3248&\"'!\"&G3248)),\"\",INDIRECT(\"'\"&F3248&\"'!\"&G3248))","v":""},{"$f":"IF(ISBLANK(INDIRECT(\"'\"&F3248&\"'!\"&H3248)),\"\",IFERROR(VLOOKUP(TEXT(INDIRECT(\"'\"&F3248&\"'!\"&H3248),\"0\"),Notes!$B$5:$C$100,2,FALSE),\"\"))","v":""},"2e","$AU$15","$AV$15"]
[15192,{"$f":"Menu!$F$29","v":"X"},{"$f":"Menu!$J$29","v":2020},{"$f":"IF(ISBLANK(INDIRECT(\"'\"&F3249&\"'!\"&G3249)),\"\",INDIRECT(\"'\"&F3249&\"'!\"&G3249))","v":""},{"$f":"IF(ISBLANK(INDIRECT(\"'\"&F3249&\"'!\"&H3249)),\"\",IFERROR(VLOOKUP(TEXT(INDIRECT(\"'\"&F3249&\"'!\"&H3249),\"0\"),Notes!$B$5:$C$100,2,FALSE),\"\"))","v":""},"2e","$AW$15","$AX$15"]
[15193,{"$f":"Menu!$F$29","v":"X"},{"$f":"Menu!$J$29","v":2020},{"$f":"IF(ISBLANK(INDIRECT(\"'\"&F3250&\"'!\"&G3250)),\"\",INDIRECT(\"'\"&F3250&\"'!\"&G3250))","v":""},{"$f":"IF(ISBLANK(INDIRECT(\"'\"&F3250&\"'!\"&H3250)),\"\",IFERROR(VLOOKUP(TEXT(INDIRECT(\"'\"&F3250&\"'!\"&H3250),\"0\"),Notes!$B$5:$C$100,2,FALSE),\"\"))","v":""},"2e","$AY$15","$AZ$15"]
[15194,{"$f":"Menu!$F$29","v":"X"},{"$f":"Menu!$J$29","v":2020},{"$f":"IF(ISBLANK(INDIRECT(\"'\"&F3251&\"'!\"&G3251)),\"\",INDIRECT(\"'\"&F3251&\"'!\"&G3251))","v":""},{"$f":"IF(ISBLANK(INDIRECT(\"'\"&F3251&\"'!\"&H3251)),\"\",IFERROR(VLOOKUP(TEXT(INDIRECT(\"'\"&F3251&\"'!\"&H3251),\"0\"),Notes!$B$5:$C$100,2,FALSE),\"\"))","v":""},"2e","$BA$15","$BB$15"]
[15195,{"$f":"Menu!$F$29","v":"X"},{"$f":"Menu!$J$29","v":2020},{"$f":"IF(ISBLANK(INDIRECT(\"'\"&F3252&\"'!\"&G3252)),\"\",INDIRECT(\"'\"&F3252&\"'!\"&G3252))","v":""},{"$f":"IF(ISBLANK(INDIRECT(\"'\"&F3252&\"'!\"&H3252)),\"\",IFERROR(VLOOKUP(TEXT(INDIRECT(\"'\"&F3252&\"'!\"&H3252),\"0\"),Notes!$B$5:$C$100,2,FALSE),\"\"))","v":""},"2e","$BC$15","$BD$15"]
[15196,{"$f":"Menu!$F$29","v":"X"},{"$f":"Menu!$J$29","v":2020},{"$f":"IF(ISBLANK(INDIRECT(\"'\"&F3253&\"'!\"&G3253)),\"\",INDIRECT(\"'\"&F3253&\"'!\"&G3253))","v":""},{"$f":"IF(ISBLANK(INDIRECT(\"'\"&F3253&\"'!\"&H3253)),\"\",IFERROR(VLOOKUP(TEXT(INDIRECT(\"'\"&F3253&\"'!\"&H3253),\"0\"),Notes!$B$5:$C$100,2,FALSE),\"\"))","v":""},"2e","$BE$15","$BF$15"]
[15197,{"$f":"Menu!$F$29","v":"X"},{"$f":"Menu!$J$29","v":2020},{"$f":"IF(ISBLANK(INDIRECT(\"'\"&F3254&\"'!\"&G3254)),\"\",INDIRECT(\"'\"&F3254&\"'!\"&G3254))","v":""},{"$f":"IF(ISBLANK(INDIRECT(\"'\"&F3254&\"'!\"&H3254)),\"\",IFERROR(VLOOKUP(TEXT(INDIRECT(\"'\"&F3254&\"'!\"&H3254),\"0\"),Notes!$B$5:$C$100,2,FALSE),\"\"))","v":""},"2e","$BG$15","$BH$15"]
[15198,{"$f":"Menu!$F$29","v":"X"},{"$f":"Menu!$J$29","v":2020},{"$f":"IF(ISBLANK(INDIRECT(\"'\"&F3255&\"'!\"&G3255)),\"\",INDIRECT(\"'\"&F3255&\"'!\"&G3255))","v":""},{"$f":"IF(ISBLANK(INDIRECT(\"'\"&F3255&\"'!\"&H3255)),\"\",IFERROR(VLOOKUP(TEXT(INDIRECT(\"'\"&F3255&\"'!\"&H3255),\"0\"),Notes!$B$5:$C$100,2,FALSE),\"\"))","v":""},"2e","$BI$15","$BJ$15"]
[15199,{"$f":"Menu!$F$29","v":"X"},{"$f":"Menu!$J$29","v":2020},{"$f":"IF(ISBLANK(INDIRECT(\"'\"&F3256&\"'!\"&G3256)),\"\",INDIRECT(\"'\"&F3256&\"'!\"&G3256))","v":""},{"$f":"IF(ISBLANK(INDIRECT(\"'\"&F3256&\"'!\"&H3256)),\"\",IFERROR(VLOOKUP(TEXT(INDIRECT(\"'\"&F3256&\"'!\"&H3256),\"0\"),Notes!$B$5:$C$100,2,FALSE),\"\"))","v":""},"2e","$BK$15","$BL$15"]
[15200,{"$f":"Menu!$F$29","v":"X"},{"$f":"Menu!$J$29","v":2020},{"$f":"IF(ISBLANK(INDIRECT(\"'\"&F3257&\"'!\"&G3257)),\"\",INDIRECT(\"'\"&F3257&\"'!\"&G3257))","v":""},{"$f":"IF(ISBLANK(INDIRECT(\"'\"&F3257&\"'!\"&H3257)),\"\",IFERROR(VLOOKUP(TEXT(INDIRECT(\"'\"&F3257&\"'!\"&H3257),\"0\"),Notes!$B$5:$C$100,2,FALSE),\"\"))","v":""},"2e","$E$71","$F$71"]
[15201,{"$f":"Menu!$F$29","v":"X"},{"$f":"Menu!$J$29","v":2020},{"$f":"IF(ISBLANK(INDIRECT(\"'\"&F3258&\"'!\"&G3258)),\"\",INDIRECT(\"'\"&F3258&\"'!\"&G3258))","v":""},{"$f":"IF(ISBLANK(INDIRECT(\"'\"&F3258&\"'!\"&H3258)),\"\",IFERROR(VLOOKUP(TEXT(INDIRECT(\"'\"&F3258&\"'!\"&H3258),\"0\"),Notes!$B$5:$C$100,2,FALSE),\"\"))","v":""},"2e","$G$71","$H$71"]
[15202,{"$f":"Menu!$F$29","v":"X"},{"$f":"Menu!$J$29","v":2020},{"$f":"IF(ISBLANK(INDIRECT(\"'\"&F3259&\"'!\"&G3259)),\"\",INDIRECT(\"'\"&F3259&\"'!\"&G3259))","v":""},{"$f":"IF(ISBLANK(INDIRECT(\"'\"&F3259&\"'!\"&H3259)),\"\",IFERROR(VLOOKUP(TEXT(INDIRECT(\"'\"&F3259&\"'!\"&H3259),\"0\"),Notes!$B$5:$C$100,2,FALSE),\"\"))","v":""},"2e","$I$71","$J$71"]
[15203,{"$f":"Menu!$F$29","v":"X"},{"$f":"Menu!$J$29","v":2020},{"$f":"IF(ISBLANK(INDIRECT(\"'\"&F3260&\"'!\"&G3260)),\"\",INDIRECT(\"'\"&F3260&\"'!\"&G3260))","v":""},{"$f":"IF(ISBLANK(INDIRECT(\"'\"&F3260&\"'!\"&H3260)),\"\",IFERROR(VLOOKUP(TEXT(INDIRECT(\"'\"&F3260&\"'!\"&H3260),\"0\"),Notes!$B$5:$C$100,2,FALSE),\"\"))","v":""},"2e","$K$71","$L$71"]
[15204,{"$f":"Menu!$F$29","v":"X"},{"$f":"Menu!$J$29","v":2020},{"$f":"IF(ISBLANK(INDIRECT(\"'\"&F3261&\"'!\"&G3261)),\"\",INDIRECT(\"'\"&F3261&\"'!\"&G3261))","v":""},{"$f":"IF(ISBLANK(INDIRECT(\"'\"&F3261&\"'!\"&H3261)),\"\",IFERROR(VLOOKUP(TEXT(INDIRECT(\"'\"&F3261&\"'!\"&H3261),\"0\"),Notes!$B$5:$C$100,2,FALSE),\"\"))","v":""},"2e","$M$71","$N$71"]
[15205,{"$f":"Menu!$F$29","v":"X"},{"$f":"Menu!$J$29","v":2020},{"$f":"IF(ISBLANK(INDIRECT(\"'\"&F3262&\"'!\"&G3262)),\"\",INDIRECT(\"'\"&F3262&\"'!\"&G3262))","v":""},{"$f":"IF(ISBLANK(INDIRECT(\"'\"&F3262&\"'!\"&H3262)),\"\",IFERROR(VLOOKUP(TEXT(INDIRECT(\"'\"&F3262&\"'!\"&H3262),\"0\"),Notes!$B$5:$C$100,2,FALSE),\"\"))","v":""},"2e","$O$71","$P$71"]
[15206,{"$f":"Menu!$F$29","v":"X"},{"$f":"Menu!$J$29","v":2020},{"$f":"IF(ISBLANK(INDIRECT(\"'\"&F3263&\"'!\"&G3263)),\"\",INDIRECT(\"'\"&F3263&\"'!\"&G3263))","v":""},{"$f":"IF(ISBLANK(INDIRECT(\"'\"&F3263&\"'!\"&H3263)),\"\",IFERROR(VLOOKUP(TEXT(INDIRECT(\"'\"&F3263&\"'!\"&H3263),\"0\"),Notes!$B$5:$C$100,2,FALSE),\"\"))","v":""},"2e","$Q$71","$R$71"]
[15207,{"$f":"Menu!$F$29","v":"X"},{"$f":"Menu!$J$29","v":2020},{"$f":"IF(ISBLANK(INDIRECT(\"'\"&F3264&\"'!\"&G3264)),\"\",INDIRECT(\"'\"&F3264&\"'!\"&G3264))","v":""},{"$f":"IF(ISBLANK(INDIRECT(\"'\"&F3264&\"'!\"&H3264)),\"\",IFERROR(VLOOKUP(TEXT(INDIRECT(\"'\"&F3264&\"'!\"&H3264),\"0\"),Notes!$B$5:$C$100,2,FALSE),\"\"))","v":""},"2e","$S$71","$T$71"]
[15208,{"$f":"Menu!$F$29","v":"X"},{"$f":"Menu!$J$29","v":2020},{"$f":"IF(ISBLANK(INDIRECT(\"'\"&F3265&\"'!\"&G3265)),\"\",INDIRECT(\"'\"&F3265&\"'!\"&G3265))","v":""},{"$f":"IF(ISBLANK(INDIRECT(\"'\"&F3265&\"'!\"&H3265)),\"\",IFERROR(VLOOKUP(TEXT(INDIRECT(\"'\"&F3265&\"'!\"&H3265),\"0\"),Notes!$B$5:$C$100,2,FALSE),\"\"))","v":""},"2e","$U$71","$V$71"]
[15209,{"$f":"Menu!$F$29","v":"X"},{"$f":"Menu!$J$29","v":2020},{"$f":"IF(ISBLANK(INDIRECT(\"'\"&F3266&\"'!\"&G3266)),\"\",INDIRECT(\"'\"&F3266&\"'!\"&G3266))","v":""},{"$f":"IF(ISBLANK(INDIRECT(\"'\"&F3266&\"'!\"&H3266)),\"\",IFERROR(VLOOKUP(TEXT(INDIRECT(\"'\"&F3266&\"'!\"&H3266),\"0\"),Notes!$B$5:$C$100,2,FALSE),\"\"))","v":""},"2e","$W$71",{"$f":"IF(LEN(TRIM(MID(G3266,4,10)))-LEN(SUBSTITUTE(TRIM(MID(G3266,4,10)),\"$\",\"\"))=0,\"$\"&CHAR(CODE(MID(G3266,2,1))+1)&\"$\"&TRIM(MID(G3266,4,10)),\"$\"&MID(G3266,2,1)&CHAR(CODE(MID(G3266,3,1))+1)&\"$\"&TRIM(MID(G3266,5,11)))","v":"$X$71"}]
[15210,{"$f":"Menu!$F$29","v":"X"},{"$f":"Menu!$J$29","v":2020},{"$f":"IF(ISBLANK(INDIRECT(\"'\"&F3267&\"'!\"&G3267)),\"\",INDIRECT(\"'\"&F3267&\"'!\"&G3267))","v":""},{"$f":"IF(ISBLANK(INDIRECT(\"'\"&F3267&\"'!\"&H3267)),\"\",IFERROR(VLOOKUP(TEXT(INDIRECT(\"'\"&F3267&\"'!\"&H3267),\"0\"),Notes!$B$5:$C$100,2,FALSE),\"\"))","v":""},"2e","$Y$71","$Z$71"]
[15211,{"$f":"Menu!$F$29","v":"X"},{"$f":"Menu!$J$29","v":2020},{"$f":"IF(ISBLANK(INDIRECT(\"'\"&F3268&\"'!\"&G3268)),\"\",INDIRECT(\"'\"&F3268&\"'!\"&G3268))","v":""},{"$f":"IF(ISBLANK(INDIRECT(\"'\"&F3268&\"'!\"&H3268)),\"\",IFERROR(VLOOKUP(TEXT(INDIRECT(\"'\"&F3268&\"'!\"&H3268),\"0\"),Notes!$B$5:$C$100,2,FALSE),\"\"))","v":""},"2e","$AA$71","$AB$71"]
[15212,{"$f":"Menu!$F$29","v":"X"},{"$f":"Menu!$J$29","v":2020},{"$f":"IF(ISBLANK(INDIRECT(\"'\"&F3269&\"'!\"&G3269)),\"\",INDIRECT(\"'\"&F3269&\"'!\"&G3269))","v":""},{"$f":"IF(ISBLANK(INDIRECT(\"'\"&F3269&\"'!\"&H3269)),\"\",IFERROR(VLOOKUP(TEXT(INDIRECT(\"'\"&F3269&\"'!\"&H3269),\"0\"),Notes!$B$5:$C$100,2,FALSE),\"\"))","v":""},"2e","$AC$71","$AD$71"]
[15213,{"$f":"Menu!$F$29","v":"X"},{"$f":"Menu!$J$29","v":2020},{"$f":"IF(ISBLANK(INDIRECT(\"'\"&F3270&\"'!\"&G3270)),\"\",INDIRECT(\"'\"&F3270&\"'!\"&G3270))","v":""},{"$f":"IF(ISBLANK(INDIRECT(\"'\"&F3270&\"'!\"&H3270)),\"\",IFERROR(VLOOKUP(TEXT(INDIRECT(\"'\"&F3270&\"'!\"&H3270),\"0\"),Notes!$B$5:$C$100,2,FALSE),\"\"))","v":""},"2e","$AE$71","$AF$71"]
[15214,{"$f":"Menu!$F$29","v":"X"},{"$f":"Menu!$J$29","v":2020},{"$f":"IF(ISBLANK(INDIRECT(\"'\"&F3271&\"'!\"&G3271)),\"\",INDIRECT(\"'\"&F3271&\"'!\"&G3271))","v":""},{"$f":"IF(ISBLANK(INDIRECT(\"'\"&F3271&\"'!\"&H3271)),\"\",IFERROR(VLOOKUP(TEXT(INDIRECT(\"'\"&F3271&\"'!\"&H3271),\"0\"),Notes!$B$5:$C$100,2,FALSE),\"\"))","v":""},"2e","$AG$71","$AH$71"]
[15215,{"$f":"Menu!$F$29","v":"X"},{"$f":"Menu!$J$29","v":2020},{"$f":"IF(ISBLANK(INDIRECT(\"'\"&F3272&\"'!\"&G3272)),\"\",INDIRECT(\"'\"&F3272&\"'!\"&G3272))","v":""},{"$f":"IF(ISBLANK(INDIRECT(\"'\"&F3272&\"'!\"&H3272)),\"\",IFERROR(VLOOKUP(TEXT(INDIRECT(\"'\"&F3272&\"'!\"&H3272),\"0\"),Notes!$B$5:$C$100,2,FALSE),\"\"))","v":""},"2e","$AI$71","$AJ$71"]
[15216,{"$f":"Menu!$F$29","v":"X"},{"$f":"Menu!$J$29","v":2020},{"$f":"IF(ISBLANK(INDIRECT(\"'\"&F3273&\"'!\"&G3273)),\"\",INDIRECT(\"'\"&F3273&\"'!\"&G3273))","v":""},{"$f":"IF(ISBLANK(INDIRECT(\"'\"&F3273&\"'!\"&H3273)),\"\",IFERROR(VLOOKUP(TEXT(INDIRECT(\"'\"&F3273&\"'!\"&H3273),\"0\"),Notes!$B$5:$C$100,2,FALSE),\"\"))","v":""},"2e","$AK$71","$AL$71"]
[15217,{"$f":"Menu!$F$29","v":"X"},{"$f":"Menu!$J$29","v":2020},{"$f":"IF(ISBLANK(INDIRECT(\"'\"&F3274&\"'!\"&G3274)),\"\",INDIRECT(\"'\"&F3274&\"'!\"&G3274))","v":""},{"$f":"IF(ISBLANK(INDIRECT(\"'\"&F3274&\"'!\"&H3274)),\"\",IFERROR(VLOOKUP(TEXT(INDIRECT(\"'\"&F3274&\"'!\"&H3274),\"0\"),Notes!$B$5:$C$100,2,FALSE),\"\"))","v":""},"2e","$AM$71","$AN$71"]
[15218,{"$f":"Menu!$F$29","v":"X"},{"$f":"Menu!$J$29","v":2020},{"$f":"IF(ISBLANK(INDIRECT(\"'\"&F3275&\"'!\"&G3275)),\"\",INDIRECT(\"'\"&F3275&\"'!\"&G3275))","v":""},{"$f":"IF(ISBLANK(INDIRECT(\"'\"&F3275&\"'!\"&H3275)),\"\",IFERROR(VLOOKUP(TEXT(INDIRECT(\"'\"&F3275&\"'!\"&H3275),\"0\"),Notes!$B$5:$C$100,2,FALSE),\"\"))","v":""},"2e","$AO$71","$AP$71"]
[15219,{"$f":"Menu!$F$29","v":"X"},{"$f":"Menu!$J$29","v":2020},{"$f":"IF(ISBLANK(INDIRECT(\"'\"&F3276&\"'!\"&G3276)),\"\",INDIRECT(\"'\"&F3276&\"'!\"&G3276))","v":""},{"$f":"IF(ISBLANK(INDIRECT(\"'\"&F3276&\"'!\"&H3276)),\"\",IFERROR(VLOOKUP(TEXT(INDIRECT(\"'\"&F3276&\"'!\"&H3276),\"0\"),Notes!$B$5:$C$100,2,FALSE),\"\"))","v":""},"2e","$AQ$71","$AR$71"]
[15220,{"$f":"Menu!$F$29","v":"X"},{"$f":"Menu!$J$29","v":2020},{"$f":"IF(ISBLANK(INDIRECT(\"'\"&F3277&\"'!\"&G3277)),\"\",INDIRECT(\"'\"&F3277&\"'!\"&G3277))","v":""},{"$f":"IF(ISBLANK(INDIRECT(\"'\"&F3277&\"'!\"&H3277)),\"\",IFERROR(VLOOKUP(TEXT(INDIRECT(\"'\"&F3277&\"'!\"&H3277),\"0\"),Notes!$B$5:$C$100,2,FALSE),\"\"))","v":""},"2e","$AS$71","$AT$71"]
[15221,{"$f":"Menu!$F$29","v":"X"},{"$f":"Menu!$J$29","v":2020},{"$f":"IF(ISBLANK(INDIRECT(\"'\"&F3278&\"'!\"&G3278)),\"\",INDIRECT(\"'\"&F3278&\"'!\"&G3278))","v":""},{"$f":"IF(ISBLANK(INDIRECT(\"'\"&F3278&\"'!\"&H3278)),\"\",IFERROR(VLOOKUP(TEXT(INDIRECT(\"'\"&F3278&\"'!\"&H3278),\"0\"),Notes!$B$5:$C$100,2,FALSE),\"\"))","v":""},"2e","$AU$71","$AV$71"]
[15222,{"$f":"Menu!$F$29","v":"X"},{"$f":"Menu!$J$29","v":2020},{"$f":"IF(ISBLANK(INDIRECT(\"'\"&F3279&\"'!\"&G3279)),\"\",INDIRECT(\"'\"&F3279&\"'!\"&G3279))","v":""},{"$f":"IF(ISBLANK(INDIRECT(\"'\"&F3279&\"'!\"&H3279)),\"\",IFERROR(VLOOKUP(TEXT(INDIRECT(\"'\"&F3279&\"'!\"&H3279),\"0\"),Notes!$B$5:$C$100,2,FALSE),\"\"))","v":""},"2e","$AW$71","$AX$71"]
[15223,{"$f":"Menu!$F$29","v":"X"},{"$f":"Menu!$J$29","v":2020},{"$f":"IF(ISBLANK(INDIRECT(\"'\"&F3280&\"'!\"&G3280)),\"\",INDIRECT(\"'\"&F3280&\"'!\"&G3280))","v":""},{"$f":"IF(ISBLANK(INDIRECT(\"'\"&F3280&\"'!\"&H3280)),\"\",IFERROR(VLOOKUP(TEXT(INDIRECT(\"'\"&F3280&\"'!\"&H3280),\"0\"),Notes!$B$5:$C$100,2,FALSE),\"\"))","v":""},"2e","$AY$71","$AZ$71"]
[15224,{"$f":"Menu!$F$29","v":"X"},{"$f":"Menu!$J$29","v":2020},{"$f":"IF(ISBLANK(INDIRECT(\"'\"&F3281&\"'!\"&G3281)),\"\",INDIRECT(\"'\"&F3281&\"'!\"&G3281))","v":""},{"$f":"IF(ISBLANK(INDIRECT(\"'\"&F3281&\"'!\"&H3281)),\"\",IFERROR(VLOOKUP(TEXT(INDIRECT(\"'\"&F3281&\"'!\"&H3281),\"0\"),Notes!$B$5:$C$100,2,FALSE),\"\"))","v":""},"2e","$BA$71","$BB$71"]
[15225,{"$f":"Menu!$F$29","v":"X"},{"$f":"Menu!$J$29","v":2020},{"$f":"IF(ISBLANK(INDIRECT(\"'\"&F3282&\"'!\"&G3282)),\"\",INDIRECT(\"'\"&F3282&\"'!\"&G3282))","v":""},{"$f":"IF(ISBLANK(INDIRECT(\"'\"&F3282&\"'!\"&H3282)),\"\",IFERROR(VLOOKUP(TEXT(INDIRECT(\"'\"&F3282&\"'!\"&H3282),\"0\"),Notes!$B$5:$C$100,2,FALSE),\"\"))","v":""},"2e","$BC$71","$BD$71"]
[15226,{"$f":"Menu!$F$29","v":"X"},{"$f":"Menu!$J$29","v":2020},{"$f":"IF(ISBLANK(INDIRECT(\"'\"&F3283&\"'!\"&G3283)),\"\",INDIRECT(\"'\"&F3283&\"'!\"&G3283))","v":""},{"$f":"IF(ISBLANK(INDIRECT(\"'\"&F3283&\"'!\"&H3283)),\"\",IFERROR(VLOOKUP(TEXT(INDIRECT(\"'\"&F3283&\"'!\"&H3283),\"0\"),Notes!$B$5:$C$100,2,FALSE),\"\"))","v":""},"2e","$BE$71","$BF$71"]
[15227,{"$f":"Menu!$F$29","v":"X"},{"$f":"Menu!$J$29","v":2020},{"$f":"IF(ISBLANK(INDIRECT(\"'\"&F3284&\"'!\"&G3284)),\"\",INDIRECT(\"'\"&F3284&\"'!\"&G3284))","v":""},{"$f":"IF(ISBLANK(INDIRECT(\"'\"&F3284&\"'!\"&H3284)),\"\",IFERROR(VLOOKUP(TEXT(INDIRECT(\"'\"&F3284&\"'!\"&H3284),\"0\"),Notes!$B$5:$C$100,2,FALSE),\"\"))","v":""},"2e","$BG$71","$BH$71"]
[15228,{"$f":"Menu!$F$29","v":"X"},{"$f":"Menu!$J$29","v":2020},{"$f":"IF(ISBLANK(INDIRECT(\"'\"&F3285&\"'!\"&G3285)),\"\",INDIRECT(\"'\"&F3285&\"'!\"&G3285))","v":""},{"$f":"IF(ISBLANK(INDIRECT(\"'\"&F3285&\"'!\"&H3285)),\"\",IFERROR(VLOOKUP(TEXT(INDIRECT(\"'\"&F3285&\"'!\"&H3285),\"0\"),Notes!$B$5:$C$100,2,FALSE),\"\"))","v":""},"2e","$BI$71","$BJ$71"]
[15229,{"$f":"Menu!$F$29","v":"X"},{"$f":"Menu!$J$29","v":2020},{"$f":"IF(ISBLANK(INDIRECT(\"'\"&F3286&\"'!\"&G3286)),\"\",INDIRECT(\"'\"&F3286&\"'!\"&G3286))","v":""},{"$f":"IF(ISBLANK(INDIRECT(\"'\"&F3286&\"'!\"&H3286)),\"\",IFERROR(VLOOKUP(TEXT(INDIRECT(\"'\"&F3286&\"'!\"&H3286),\"0\"),Notes!$B$5:$C$100,2,FALSE),\"\"))","v":""},"2e","$BK$71","$BL$71"]
[15230,{"$f":"Menu!$F$29","v":"X"},{"$f":"Menu!$J$29","v":2020},{"$f":"IF(ISBLANK(INDIRECT(\"'\"&F3287&\"'!\"&G3287)),\"\",INDIRECT(\"'\"&F3287&\"'!\"&G3287))","v":""},{"$f":"IF(ISBLANK(INDIRECT(\"'\"&F3287&\"'!\"&H3287)),\"\",IFERROR(VLOOKUP(TEXT(INDIRECT(\"'\"&F3287&\"'!\"&H3287),\"0\"),Notes!$B$5:$C$100,2,FALSE),\"\"))","v":""},"2e","$E$28","$F$28"]
[15231,{"$f":"Menu!$F$29","v":"X"},{"$f":"Menu!$J$29","v":2020},{"$f":"IF(ISBLANK(INDIRECT(\"'\"&F3288&\"'!\"&G3288)),\"\",INDIRECT(\"'\"&F3288&\"'!\"&G3288))","v":""},{"$f":"IF(ISBLANK(INDIRECT(\"'\"&F3288&\"'!\"&H3288)),\"\",IFERROR(VLOOKUP(TEXT(INDIRECT(\"'\"&F3288&\"'!\"&H3288),\"0\"),Notes!$B$5:$C$100,2,FALSE),\"\"))","v":""},"2e","$G$28","$H$28"]
[15232,{"$f":"Menu!$F$29","v":"X"},{"$f":"Menu!$J$29","v":2020},{"$f":"IF(ISBLANK(INDIRECT(\"'\"&F3289&\"'!\"&G3289)),\"\",INDIRECT(\"'\"&F3289&\"'!\"&G3289))","v":""},{"$f":"IF(ISBLANK(INDIRECT(\"'\"&F3289&\"'!\"&H3289)),\"\",IFERROR(VLOOKUP(TEXT(INDIRECT(\"'\"&F3289&\"'!\"&H3289),\"0\"),Notes!$B$5:$C$100,2,FALSE),\"\"))","v":""},"2e","$I$28","$J$28"]
[15233,{"$f":"Menu!$F$29","v":"X"},{"$f":"Menu!$J$29","v":2020},{"$f":"IF(ISBLANK(INDIRECT(\"'\"&F3290&\"'!\"&G3290)),\"\",INDIRECT(\"'\"&F3290&\"'!\"&G3290))","v":""},{"$f":"IF(ISBLANK(INDIRECT(\"'\"&F3290&\"'!\"&H3290)),\"\",IFERROR(VLOOKUP(TEXT(INDIRECT(\"'\"&F3290&\"'!\"&H3290),\"0\"),Notes!$B$5:$C$100,2,FALSE),\"\"))","v":""},"2e","$K$28","$L$28"]
[15234,{"$f":"Menu!$F$29","v":"X"},{"$f":"Menu!$J$29","v":2020},{"$f":"IF(ISBLANK(INDIRECT(\"'\"&F3291&\"'!\"&G3291)),\"\",INDIRECT(\"'\"&F3291&\"'!\"&G3291))","v":""},{"$f":"IF(ISBLANK(INDIRECT(\"'\"&F3291&\"'!\"&H3291)),\"\",IFERROR(VLOOKUP(TEXT(INDIRECT(\"'\"&F3291&\"'!\"&H3291),\"0\"),Notes!$B$5:$C$100,2,FALSE),\"\"))","v":""},"2e","$M$28","$N$28"]
[15235,{"$f":"Menu!$F$29","v":"X"},{"$f":"Menu!$J$29","v":2020},{"$f":"IF(ISBLANK(INDIRECT(\"'\"&F3292&\"'!\"&G3292)),\"\",INDIRECT(\"'\"&F3292&\"'!\"&G3292))","v":""},{"$f":"IF(ISBLANK(INDIRECT(\"'\"&F3292&\"'!\"&H3292)),\"\",IFERROR(VLOOKUP(TEXT(INDIRECT(\"'\"&F3292&\"'!\"&H3292),\"0\"),Notes!$B$5:$C$100,2,FALSE),\"\"))","v":""},"2e","$O$28","$P$28"]
[15236,{"$f":"Menu!$F$29","v":"X"},{"$f":"Menu!$J$29","v":2020},{"$f":"IF(ISBLANK(INDIRECT(\"'\"&F3293&\"'!\"&G3293)),\"\",INDIRECT(\"'\"&F3293&\"'!\"&G3293))","v":""},{"$f":"IF(ISBLANK(INDIRECT(\"'\"&F3293&\"'!\"&H3293)),\"\",IFERROR(VLOOKUP(TEXT(INDIRECT(\"'\"&F3293&\"'!\"&H3293),\"0\"),Notes!$B$5:$C$100,2,FALSE),\"\"))","v":""},"2e","$Q$28","$R$28"]
[15237,{"$f":"Menu!$F$29","v":"X"},{"$f":"Menu!$J$29","v":2020},{"$f":"IF(ISBLANK(INDIRECT(\"'\"&F3294&\"'!\"&G3294)),\"\",INDIRECT(\"'\"&F3294&\"'!\"&G3294))","v":""},{"$f":"IF(ISBLANK(INDIRECT(\"'\"&F3294&\"'!\"&H3294)),\"\",IFERROR(VLOOKUP(TEXT(INDIRECT(\"'\"&F3294&\"'!\"&H3294),\"0\"),Notes!$B$5:$C$100,2,FALSE),\"\"))","v":""},"2e","$S$28","$T$28"]
[15238,{"$f":"Menu!$F$29","v":"X"},{"$f":"Menu!$J$29","v":2020},{"$f":"IF(ISBLANK(INDIRECT(\"'\"&F3295&\"'!\"&G3295)),\"\",INDIRECT(\"'\"&F3295&\"'!\"&G3295))","v":""},{"$f":"IF(ISBLANK(INDIRECT(\"'\"&F3295&\"'!\"&H3295)),\"\",IFERROR(VLOOKUP(TEXT(INDIRECT(\"'\"&F3295&\"'!\"&H3295),\"0\"),Notes!$B$5:$C$100,2,FALSE),\"\"))","v":""},"2e","$U$28","$V$28"]
[15239,{"$f":"Menu!$F$29","v":"X"},{"$f":"Menu!$J$29","v":2020},{"$f":"IF(ISBLANK(INDIRECT(\"'\"&F3296&\"'!\"&G3296)),\"\",INDIRECT(\"'\"&F3296&\"'!\"&G3296))","v":""},{"$f":"IF(ISBLANK(INDIRECT(\"'\"&F3296&\"'!\"&H3296)),\"\",IFERROR(VLOOKUP(TEXT(INDIRECT(\"'\"&F3296&\"'!\"&H3296),\"0\"),Notes!$B$5:$C$100,2,FALSE),\"\"))","v":""},"2e","$W$28","$X$28"]
[15240,{"$f":"Menu!$F$29","v":"X"},{"$f":"Menu!$J$29","v":2020},{"$f":"IF(ISBLANK(INDIRECT(\"'\"&F3297&\"'!\"&G3297)),\"\",INDIRECT(\"'\"&F3297&\"'!\"&G3297))","v":""},{"$f":"IF(ISBLANK(INDIRECT(\"'\"&F3297&\"'!\"&H3297)),\"\",IFERROR(VLOOKUP(TEXT(INDIRECT(\"'\"&F3297&\"'!\"&H3297),\"0\"),Notes!$B$5:$C$100,2,FALSE),\"\"))","v":""},"2e","$Y$28","$Z$28"]
[15241,{"$f":"Menu!$F$29","v":"X"},{"$f":"Menu!$J$29","v":2020},{"$f":"IF(ISBLANK(INDIRECT(\"'\"&F3298&\"'!\"&G3298)),\"\",INDIRECT(\"'\"&F3298&\"'!\"&G3298))","v":""},{"$f":"IF(ISBLANK(INDIRECT(\"'\"&F3298&\"'!\"&H3298)),\"\",IFERROR(VLOOKUP(TEXT(INDIRECT(\"'\"&F3298&\"'!\"&H3298),\"0\"),Notes!$B$5:$C$100,2,FALSE),\"\"))","v":""},"2e","$AA$28","$AB$28"]
[15242,{"$f":"Menu!$F$29","v":"X"},{"$f":"Menu!$J$29","v":2020},{"$f":"IF(ISBLANK(INDIRECT(\"'\"&F3299&\"'!\"&G3299)),\"\",INDIRECT(\"'\"&F3299&\"'!\"&G3299))","v":""},{"$f":"IF(ISBLANK(INDIRECT(\"'\"&F3299&\"'!\"&H3299)),\"\",IFERROR(VLOOKUP(TEXT(INDIRECT(\"'\"&F3299&\"'!\"&H3299),\"0\"),Notes!$B$5:$C$100,2,FALSE),\"\"))","v":""},"2e","$AC$28","$AD$28"]
[15243,{"$f":"Menu!$F$29","v":"X"},{"$f":"Menu!$J$29","v":2020},{"$f":"IF(ISBLANK(INDIRECT(\"'\"&F3300&\"'!\"&G3300)),\"\",INDIRECT(\"'\"&F3300&\"'!\"&G3300))","v":""},{"$f":"IF(ISBLANK(INDIRECT(\"'\"&F3300&\"'!\"&H3300)),\"\",IFERROR(VLOOKUP(TEXT(INDIRECT(\"'\"&F3300&\"'!\"&H3300),\"0\"),Notes!$B$5:$C$100,2,FALSE),\"\"))","v":""},"2e","$AE$28","$AF$28"]
[15244,{"$f":"Menu!$F$29","v":"X"},{"$f":"Menu!$J$29","v":2020},{"$f":"IF(ISBLANK(INDIRECT(\"'\"&F3301&\"'!\"&G3301)),\"\",INDIRECT(\"'\"&F3301&\"'!\"&G3301))","v":""},{"$f":"IF(ISBLANK(INDIRECT(\"'\"&F3301&\"'!\"&H3301)),\"\",IFERROR(VLOOKUP(TEXT(INDIRECT(\"'\"&F3301&\"'!\"&H3301),\"0\"),Notes!$B$5:$C$100,2,FALSE),\"\"))","v":""},"2e","$AG$28","$AH$28"]
[15245,{"$f":"Menu!$F$29","v":"X"},{"$f":"Menu!$J$29","v":2020},{"$f":"IF(ISBLANK(INDIRECT(\"'\"&F3302&\"'!\"&G3302)),\"\",INDIRECT(\"'\"&F3302&\"'!\"&G3302))","v":""},{"$f":"IF(ISBLANK(INDIRECT(\"'\"&F3302&\"'!\"&H3302)),\"\",IFERROR(VLOOKUP(TEXT(INDIRECT(\"'\"&F3302&\"'!\"&H3302),\"0\"),Notes!$B$5:$C$100,2,FALSE),\"\"))","v":""},"2e","$AI$28","$AJ$28"]
[15246,{"$f":"Menu!$F$29","v":"X"},{"$f":"Menu!$J$29","v":2020},{"$f":"IF(ISBLANK(INDIRECT(\"'\"&F3303&\"'!\"&G3303)),\"\",INDIRECT(\"'\"&F3303&\"'!\"&G3303))","v":""},{"$f":"IF(ISBLANK(INDIRECT(\"'\"&F3303&\"'!\"&H3303)),\"\",IFERROR(VLOOKUP(TEXT(INDIRECT(\"'\"&F3303&\"'!\"&H3303),\"0\"),Notes!$B$5:$C$100,2,FALSE),\"\"))","v":""},"2e","$AK$28","$AL$28"]
[15247,{"$f":"Menu!$F$29","v":"X"},{"$f":"Menu!$J$29","v":2020},{"$f":"IF(ISBLANK(INDIRECT(\"'\"&F3304&\"'!\"&G3304)),\"\",INDIRECT(\"'\"&F3304&\"'!\"&G3304))","v":""},{"$f":"IF(ISBLANK(INDIRECT(\"'\"&F3304&\"'!\"&H3304)),\"\",IFERROR(VLOOKUP(TEXT(INDIRECT(\"'\"&F3304&\"'!\"&H3304),\"0\"),Notes!$B$5:$C$100,2,FALSE),\"\"))","v":""},"2e","$AM$28","$AN$28"]
[15248,{"$f":"Menu!$F$29","v":"X"},{"$f":"Menu!$J$29","v":2020},{"$f":"IF(ISBLANK(INDIRECT(\"'\"&F3305&\"'!\"&G3305)),\"\",INDIRECT(\"'\"&F3305&\"'!\"&G3305))","v":""},{"$f":"IF(ISBLANK(INDIRECT(\"'\"&F3305&\"'!\"&H3305)),\"\",IFERROR(VLOOKUP(TEXT(INDIRECT(\"'\"&F3305&\"'!\"&H3305),\"0\"),Notes!$B$5:$C$100,2,FALSE),\"\"))","v":""},"2e","$AO$28","$AP$28"]
[15249,{"$f":"Menu!$F$29","v":"X"},{"$f":"Menu!$J$29","v":2020},{"$f":"IF(ISBLANK(INDIRECT(\"'\"&F3306&\"'!\"&G3306)),\"\",INDIRECT(\"'\"&F3306&\"'!\"&G3306))","v":""},{"$f":"IF(ISBLANK(INDIRECT(\"'\"&F3306&\"'!\"&H3306)),\"\",IFERROR(VLOOKUP(TEXT(INDIRECT(\"'\"&F3306&\"'!\"&H3306),\"0\"),Notes!$B$5:$C$100,2,FALSE),\"\"))","v":""},"2e","$AQ$28","$AR$28"]
[15250,{"$f":"Menu!$F$29","v":"X"},{"$f":"Menu!$J$29","v":2020},{"$f":"IF(ISBLANK(INDIRECT(\"'\"&F3307&\"'!\"&G3307)),\"\",INDIRECT(\"'\"&F3307&\"'!\"&G3307))","v":""},{"$f":"IF(ISBLANK(INDIRECT(\"'\"&F3307&\"'!\"&H3307)),\"\",IFERROR(VLOOKUP(TEXT(INDIRECT(\"'\"&F3307&\"'!\"&H3307),\"0\"),Notes!$B$5:$C$100,2,FALSE),\"\"))","v":""},"2e","$AS$28","$AT$28"]
[15251,{"$f":"Menu!$F$29","v":"X"},{"$f":"Menu!$J$29","v":2020},{"$f":"IF(ISBLANK(INDIRECT(\"'\"&F3308&\"'!\"&G3308)),\"\",INDIRECT(\"'\"&F3308&\"'!\"&G3308))","v":""},{"$f":"IF(ISBLANK(INDIRECT(\"'\"&F3308&\"'!\"&H3308)),\"\",IFERROR(VLOOKUP(TEXT(INDIRECT(\"'\"&F3308&\"'!\"&H3308),\"0\"),Notes!$B$5:$C$100,2,FALSE),\"\"))","v":""},"2e","$AU$28","$AV$28"]
[15252,{"$f":"Menu!$F$29","v":"X"},{"$f":"Menu!$J$29","v":2020},{"$f":"IF(ISBLANK(INDIRECT(\"'\"&F3309&\"'!\"&G3309)),\"\",INDIRECT(\"'\"&F3309&\"'!\"&G3309))","v":""},{"$f":"IF(ISBLANK(INDIRECT(\"'\"&F3309&\"'!\"&H3309)),\"\",IFERROR(VLOOKUP(TEXT(INDIRECT(\"'\"&F3309&\"'!\"&H3309),\"0\"),Notes!$B$5:$C$100,2,FALSE),\"\"))","v":""},"2e","$AW$28","$AX$28"]
[15253,{"$f":"Menu!$F$29","v":"X"},{"$f":"Menu!$J$29","v":2020},{"$f":"IF(ISBLANK(INDIRECT(\"'\"&F3310&\"'!\"&G3310)),\"\",INDIRECT(\"'\"&F3310&\"'!\"&G3310))","v":""},{"$f":"IF(ISBLANK(INDIRECT(\"'\"&F3310&\"'!\"&H3310)),\"\",IFERROR(VLOOKUP(TEXT(INDIRECT(\"'\"&F3310&\"'!\"&H3310),\"0\"),Notes!$B$5:$C$100,2,FALSE),\"\"))","v":""},"2e","$AY$28","$AZ$28"]
[15254,{"$f":"Menu!$F$29","v":"X"},{"$f":"Menu!$J$29","v":2020},{"$f":"IF(ISBLANK(INDIRECT(\"'\"&F3311&\"'!\"&G3311)),\"\",INDIRECT(\"'\"&F3311&\"'!\"&G3311))","v":""},{"$f":"IF(ISBLANK(INDIRECT(\"'\"&F3311&\"'!\"&H3311)),\"\",IFERROR(VLOOKUP(TEXT(INDIRECT(\"'\"&F3311&\"'!\"&H3311),\"0\"),Notes!$B$5:$C$100,2,FALSE),\"\"))","v":""},"2e","$BA$28","$BB$28"]
[15255,{"$f":"Menu!$F$29","v":"X"},{"$f":"Menu!$J$29","v":2020},{"$f":"IF(ISBLANK(INDIRECT(\"'\"&F3312&\"'!\"&G3312)),\"\",INDIRECT(\"'\"&F3312&\"'!\"&G3312))","v":""},{"$f":"IF(ISBLANK(INDIRECT(\"'\"&F3312&\"'!\"&H3312)),\"\",IFERROR(VLOOKUP(TEXT(INDIRECT(\"'\"&F3312&\"'!\"&H3312),\"0\"),Notes!$B$5:$C$100,2,FALSE),\"\"))","v":""},"2e","$BC$28","$BD$28"]
[15256,{"$f":"Menu!$F$29","v":"X"},{"$f":"Menu!$J$29","v":2020},{"$f":"IF(ISBLANK(INDIRECT(\"'\"&F3313&\"'!\"&G3313)),\"\",INDIRECT(\"'\"&F3313&\"'!\"&G3313))","v":""},{"$f":"IF(ISBLANK(INDIRECT(\"'\"&F3313&\"'!\"&H3313)),\"\",IFERROR(VLOOKUP(TEXT(INDIRECT(\"'\"&F3313&\"'!\"&H3313),\"0\"),Notes!$B$5:$C$100,2,FALSE),\"\"))","v":""},"2e","$BE$28","$BF$28"]
[15257,{"$f":"Menu!$F$29","v":"X"},{"$f":"Menu!$J$29","v":2020},{"$f":"IF(ISBLANK(INDIRECT(\"'\"&F3314&\"'!\"&G3314)),\"\",INDIRECT(\"'\"&F3314&\"'!\"&G3314))","v":""},{"$f":"IF(ISBLANK(INDIRECT(\"'\"&F3314&\"'!\"&H3314)),\"\",IFERROR(VLOOKUP(TEXT(INDIRECT(\"'\"&F3314&\"'!\"&H3314),\"0\"),Notes!$B$5:$C$100,2,FALSE),\"\"))","v":""},"2e","$BG$28","$BH$28"]
[15258,{"$f":"Menu!$F$29","v":"X"},{"$f":"Menu!$J$29","v":2020},{"$f":"IF(ISBLANK(INDIRECT(\"'\"&F3315&\"'!\"&G3315)),\"\",INDIRECT(\"'\"&F3315&\"'!\"&G3315))","v":""},{"$f":"IF(ISBLANK(INDIRECT(\"'\"&F3315&\"'!\"&H3315)),\"\",IFERROR(VLOOKUP(TEXT(INDIRECT(\"'\"&F3315&\"'!\"&H3315),\"0\"),Notes!$B$5:$C$100,2,FALSE),\"\"))","v":""},"2e","$BI$28","$BJ$28"]
[15259,{"$f":"Menu!$F$29","v":"X"},{"$f":"Menu!$J$29","v":2020},{"$f":"IF(ISBLANK(INDIRECT(\"'\"&F3316&\"'!\"&G3316)),\"\",INDIRECT(\"'\"&F3316&\"'!\"&G3316))","v":""},{"$f":"IF(ISBLANK(INDIRECT(\"'\"&F3316&\"'!\"&H3316)),\"\",IFERROR(VLOOKUP(TEXT(INDIRECT(\"'\"&F3316&\"'!\"&H3316),\"0\"),Notes!$B$5:$C$100,2,FALSE),\"\"))","v":""},"2e","$BK$28","$BL$28"]
[15260,{"$f":"Menu!$F$29","v":"X"},{"$f":"Menu!$J$29","v":2020},{"$f":"IF(ISBLANK(INDIRECT(\"'\"&F3317&\"'!\"&G3317)),\"\",INDIRECT(\"'\"&F3317&\"'!\"&G3317))","v":""},{"$f":"IF(ISBLANK(INDIRECT(\"'\"&F3317&\"'!\"&H3317)),\"\",IFERROR(VLOOKUP(TEXT(INDIRECT(\"'\"&F3317&\"'!\"&H3317),\"0\"),Notes!$B$5:$C$100,2,FALSE),\"\"))","v":""},"2e","$E$93","$F$93"]
[15261,{"$f":"Menu!$F$29","v":"X"},{"$f":"Menu!$J$29","v":2020},{"$f":"IF(ISBLANK(INDIRECT(\"'\"&F3318&\"'!\"&G3318)),\"\",INDIRECT(\"'\"&F3318&\"'!\"&G3318))","v":""},{"$f":"IF(ISBLANK(INDIRECT(\"'\"&F3318&\"'!\"&H3318)),\"\",IFERROR(VLOOKUP(TEXT(INDIRECT(\"'\"&F3318&\"'!\"&H3318),\"0\"),Notes!$B$5:$C$100,2,FALSE),\"\"))","v":""},"2e","$G$93","$H$93"]
[15262,{"$f":"Menu!$F$29","v":"X"},{"$f":"Menu!$J$29","v":2020},{"$f":"IF(ISBLANK(INDIRECT(\"'\"&F3319&\"'!\"&G3319)),\"\",INDIRECT(\"'\"&F3319&\"'!\"&G3319))","v":""},{"$f":"IF(ISBLANK(INDIRECT(\"'\"&F3319&\"'!\"&H3319)),\"\",IFERROR(VLOOKUP(TEXT(INDIRECT(\"'\"&F3319&\"'!\"&H3319),\"0\"),Notes!$B$5:$C$100,2,FALSE),\"\"))","v":""},"2e","$I$93","$J$93"]
[15263,{"$f":"Menu!$F$29","v":"X"},{"$f":"Menu!$J$29","v":2020},{"$f":"IF(ISBLANK(INDIRECT(\"'\"&F3320&\"'!\"&G3320)),\"\",INDIRECT(\"'\"&F3320&\"'!\"&G3320))","v":""},{"$f":"IF(ISBLANK(INDIRECT(\"'\"&F3320&\"'!\"&H3320)),\"\",IFERROR(VLOOKUP(TEXT(INDIRECT(\"'\"&F3320&\"'!\"&H3320),\"0\"),Notes!$B$5:$C$100,2,FALSE),\"\"))","v":""},"2e","$K$93","$L$93"]
[15264,{"$f":"Menu!$F$29","v":"X"},{"$f":"Menu!$J$29","v":2020},{"$f":"IF(ISBLANK(INDIRECT(\"'\"&F3321&\"'!\"&G3321)),\"\",INDIRECT(\"'\"&F3321&\"'!\"&G3321))","v":""},{"$f":"IF(ISBLANK(INDIRECT(\"'\"&F3321&\"'!\"&H3321)),\"\",IFERROR(VLOOKUP(TEXT(INDIRECT(\"'\"&F3321&\"'!\"&H3321),\"0\"),Notes!$B$5:$C$100,2,FALSE),\"\"))","v":""},"2e","$M$93","$N$93"]
[15265,{"$f":"Menu!$F$29","v":"X"},{"$f":"Menu!$J$29","v":2020},{"$f":"IF(ISBLANK(INDIRECT(\"'\"&F3322&\"'!\"&G3322)),\"\",INDIRECT(\"'\"&F3322&\"'!\"&G3322))","v":""},{"$f":"IF(ISBLANK(INDIRECT(\"'\"&F3322&\"'!\"&H3322)),\"\",IFERROR(VLOOKUP(TEXT(INDIRECT(\"'\"&F3322&\"'!\"&H3322),\"0\"),Notes!$B$5:$C$100,2,FALSE),\"\"))","v":""},"2e","$O$93","$P$93"]
[15266,{"$f":"Menu!$F$29","v":"X"},{"$f":"Menu!$J$29","v":2020},{"$f":"IF(ISBLANK(INDIRECT(\"'\"&F3323&\"'!\"&G3323)),\"\",INDIRECT(\"'\"&F3323&\"'!\"&G3323))","v":""},{"$f":"IF(ISBLANK(INDIRECT(\"'\"&F3323&\"'!\"&H3323)),\"\",IFERROR(VLOOKUP(TEXT(INDIRECT(\"'\"&F3323&\"'!\"&H3323),\"0\"),Notes!$B$5:$C$100,2,FALSE),\"\"))","v":""},"2e","$Q$93","$R$93"]
[15267,{"$f":"Menu!$F$29","v":"X"},{"$f":"Menu!$J$29","v":2020},{"$f":"IF(ISBLANK(INDIRECT(\"'\"&F3324&\"'!\"&G3324)),\"\",INDIRECT(\"'\"&F3324&\"'!\"&G3324))","v":""},{"$f":"IF(ISBLANK(INDIRECT(\"'\"&F3324&\"'!\"&H3324)),\"\",IFERROR(VLOOKUP(TEXT(INDIRECT(\"'\"&F3324&\"'!\"&H3324),\"0\"),Notes!$B$5:$C$100,2,FALSE),\"\"))","v":""},"2e","$S$93","$T$93"]
[15268,{"$f":"Menu!$F$29","v":"X"},{"$f":"Menu!$J$29","v":2020},{"$f":"IF(ISBLANK(INDIRECT(\"'\"&F3325&\"'!\"&G3325)),\"\",INDIRECT(\"'\"&F3325&\"'!\"&G3325))","v":""},{"$f":"IF(ISBLANK(INDIRECT(\"'\"&F3325&\"'!\"&H3325)),\"\",IFERROR(VLOOKUP(TEXT(INDIRECT(\"'\"&F3325&\"'!\"&H3325),\"0\"),Notes!$B$5:$C$100,2,FALSE),\"\"))","v":""},"2e","$U$93","$V$93"]
[15269,{"$f":"Menu!$F$29","v":"X"},{"$f":"Menu!$J$29","v":2020},{"$f":"IF(ISBLANK(INDIRECT(\"'\"&F3326&\"'!\"&G3326)),\"\",INDIRECT(\"'\"&F3326&\"'!\"&G3326))","v":""},{"$f":"IF(ISBLANK(INDIRECT(\"'\"&F3326&\"'!\"&H3326)),\"\",IFERROR(VLOOKUP(TEXT(INDIRECT(\"'\"&F3326&\"'!\"&H3326),\"0\"),Notes!$B$5:$C$100,2,FALSE),\"\"))","v":""},"2e","$W$93","$X$93"]
[15270,{"$f":"Menu!$F$29","v":"X"},{"$f":"Menu!$J$29","v":2020},{"$f":"IF(ISBLANK(INDIRECT(\"'\"&F3327&\"'!\"&G3327)),\"\",INDIRECT(\"'\"&F3327&\"'!\"&G3327))","v":""},{"$f":"IF(ISBLANK(INDIRECT(\"'\"&F3327&\"'!\"&H3327)),\"\",IFERROR(VLOOKUP(TEXT(INDIRECT(\"'\"&F3327&\"'!\"&H3327),\"0\"),Notes!$B$5:$C$100,2,FALSE),\"\"))","v":""},"2e","$Y$93","$Z$93"]
[15271,{"$f":"Menu!$F$29","v":"X"},{"$f":"Menu!$J$29","v":2020},{"$f":"IF(ISBLANK(INDIRECT(\"'\"&F3328&\"'!\"&G3328)),\"\",INDIRECT(\"'\"&F3328&\"'!\"&G3328))","v":""},{"$f":"IF(ISBLANK(INDIRECT(\"'\"&F3328&\"'!\"&H3328)),\"\",IFERROR(VLOOKUP(TEXT(INDIRECT(\"'\"&F3328&\"'!\"&H3328),\"0\"),Notes!$B$5:$C$100,2,FALSE),\"\"))","v":""},"2e","$AA$93","$AB$93"]
[15272,{"$f":"Menu!$F$29","v":"X"},{"$f":"Menu!$J$29","v":2020},{"$f":"IF(ISBLANK(INDIRECT(\"'\"&F3329&\"'!\"&G3329)),\"\",INDIRECT(\"'\"&F3329&\"'!\"&G3329))","v":""},{"$f":"IF(ISBLANK(INDIRECT(\"'\"&F3329&\"'!\"&H3329)),\"\",IFERROR(VLOOKUP(TEXT(INDIRECT(\"'\"&F3329&\"'!\"&H3329),\"0\"),Notes!$B$5:$C$100,2,FALSE),\"\"))","v":""},"2e","$AC$93","$AD$93"]
[15273,{"$f":"Menu!$F$29","v":"X"},{"$f":"Menu!$J$29","v":2020},{"$f":"IF(ISBLANK(INDIRECT(\"'\"&F3330&\"'!\"&G3330)),\"\",INDIRECT(\"'\"&F3330&\"'!\"&G3330))","v":""},{"$f":"IF(ISBLANK(INDIRECT(\"'\"&F3330&\"'!\"&H3330)),\"\",IFERROR(VLOOKUP(TEXT(INDIRECT(\"'\"&F3330&\"'!\"&H3330),\"0\"),Notes!$B$5:$C$100,2,FALSE),\"\"))","v":""},"2e","$AE$93",{"$f":"IF(LEN(TRIM(MID(G3330,4,10)))-LEN(SUBSTITUTE(TRIM(MID(G3330,4,10)),\"$\",\"\"))=0,\"$\"&CHAR(CODE(MID(G3330,2,1))+1)&\"$\"&TRIM(MID(G3330,4,10)),\"$\"&MID(G3330,2,1)&CHAR(CODE(MID(G3330,3,1))+1)&\"$\"&TRIM(MID(G3330,5,11)))","v":"$AF$93"}]
[15274,{"$f":"Menu!$F$29","v":"X"},{"$f":"Menu!$J$29","v":2020},{"$f":"IF(ISBLANK(INDIRECT(\"'\"&F3331&\"'!\"&G3331)),\"\",INDIRECT(\"'\"&F3331&\"'!\"&G3331))","v":""},{"$f":"IF(ISBLANK(INDIRECT(\"'\"&F3331&\"'!\"&H3331)),\"\",IFERROR(VLOOKUP(TEXT(INDIRECT(\"'\"&F3331&\"'!\"&H3331),\"0\"),Notes!$B$5:$C$100,2,FALSE),\"\"))","v":""},"2e","$AG$93","$AH$93"]
[15275,{"$f":"Menu!$F$29","v":"X"},{"$f":"Menu!$J$29","v":2020},{"$f":"IF(ISBLANK(INDIRECT(\"'\"&F3332&\"'!\"&G3332)),\"\",INDIRECT(\"'\"&F3332&\"'!\"&G3332))","v":""},{"$f":"IF(ISBLANK(INDIRECT(\"'\"&F3332&\"'!\"&H3332)),\"\",IFERROR(VLOOKUP(TEXT(INDIRECT(\"'\"&F3332&\"'!\"&H3332),\"0\"),Notes!$B$5:$C$100,2,FALSE),\"\"))","v":""},"2e","$AI$93","$AJ$93"]
[15276,{"$f":"Menu!$F$29","v":"X"},{"$f":"Menu!$J$29","v":2020},{"$f":"IF(ISBLANK(INDIRECT(\"'\"&F3333&\"'!\"&G3333)),\"\",INDIRECT(\"'\"&F3333&\"'!\"&G3333))","v":""},{"$f":"IF(ISBLANK(INDIRECT(\"'\"&F3333&\"'!\"&H3333)),\"\",IFERROR(VLOOKUP(TEXT(INDIRECT(\"'\"&F3333&\"'!\"&H3333),\"0\"),Notes!$B$5:$C$100,2,FALSE),\"\"))","v":""},"2e","$AK$93","$AL$93"]
[15277,{"$f":"Menu!$F$29","v":"X"},{"$f":"Menu!$J$29","v":2020},{"$f":"IF(ISBLANK(INDIRECT(\"'\"&F3334&\"'!\"&G3334)),\"\",INDIRECT(\"'\"&F3334&\"'!\"&G3334))","v":""},{"$f":"IF(ISBLANK(INDIRECT(\"'\"&F3334&\"'!\"&H3334)),\"\",IFERROR(VLOOKUP(TEXT(INDIRECT(\"'\"&F3334&\"'!\"&H3334),\"0\"),Notes!$B$5:$C$100,2,FALSE),\"\"))","v":""},"2e","$AM$93","$AN$93"]
[15278,{"$f":"Menu!$F$29","v":"X"},{"$f":"Menu!$J$29","v":2020},{"$f":"IF(ISBLANK(INDIRECT(\"'\"&F3335&\"'!\"&G3335)),\"\",INDIRECT(\"'\"&F3335&\"'!\"&G3335))","v":""},{"$f":"IF(ISBLANK(INDIRECT(\"'\"&F3335&\"'!\"&H3335)),\"\",IFERROR(VLOOKUP(TEXT(INDIRECT(\"'\"&F3335&\"'!\"&H3335),\"0\"),Notes!$B$5:$C$100,2,FALSE),\"\"))","v":""},"2e","$AO$93","$AP$93"]
[15279,{"$f":"Menu!$F$29","v":"X"},{"$f":"Menu!$J$29","v":2020},{"$f":"IF(ISBLANK(INDIRECT(\"'\"&F3336&\"'!\"&G3336)),\"\",INDIRECT(\"'\"&F3336&\"'!\"&G3336))","v":""},{"$f":"IF(ISBLANK(INDIRECT(\"'\"&F3336&\"'!\"&H3336)),\"\",IFERROR(VLOOKUP(TEXT(INDIRECT(\"'\"&F3336&\"'!\"&H3336),\"0\"),Notes!$B$5:$C$100,2,FALSE),\"\"))","v":""},"2e","$AQ$93","$AR$93"]
[15280,{"$f":"Menu!$F$29","v":"X"},{"$f":"Menu!$J$29","v":2020},{"$f":"IF(ISBLANK(INDIRECT(\"'\"&F3337&\"'!\"&G3337)),\"\",INDIRECT(\"'\"&F3337&\"'!\"&G3337))","v":""},{"$f":"IF(ISBLANK(INDIRECT(\"'\"&F3337&\"'!\"&H3337)),\"\",IFERROR(VLOOKUP(TEXT(INDIRECT(\"'\"&F3337&\"'!\"&H3337),\"0\"),Notes!$B$5:$C$100,2,FALSE),\"\"))","v":""},"2e","$AS$93","$AT$93"]
[15281,{"$f":"Menu!$F$29","v":"X"},{"$f":"Menu!$J$29","v":2020},{"$f":"IF(ISBLANK(INDIRECT(\"'\"&F3338&\"'!\"&G3338)),\"\",INDIRECT(\"'\"&F3338&\"'!\"&G3338))","v":""},{"$f":"IF(ISBLANK(INDIRECT(\"'\"&F3338&\"'!\"&H3338)),\"\",IFERROR(VLOOKUP(TEXT(INDIRECT(\"'\"&F3338&\"'!\"&H3338),\"0\"),Notes!$B$5:$C$100,2,FALSE),\"\"))","v":""},"2e","$AU$93","$AV$93"]
[15282,{"$f":"Menu!$F$29","v":"X"},{"$f":"Menu!$J$29","v":2020},{"$f":"IF(ISBLANK(INDIRECT(\"'\"&F3339&\"'!\"&G3339)),\"\",INDIRECT(\"'\"&F3339&\"'!\"&G3339))","v":""},{"$f":"IF(ISBLANK(INDIRECT(\"'\"&F3339&\"'!\"&H3339)),\"\",IFERROR(VLOOKUP(TEXT(INDIRECT(\"'\"&F3339&\"'!\"&H3339),\"0\"),Notes!$B$5:$C$100,2,FALSE),\"\"))","v":""},"2e","$AW$93","$AX$93"]
[15283,{"$f":"Menu!$F$29","v":"X"},{"$f":"Menu!$J$29","v":2020},{"$f":"IF(ISBLANK(INDIRECT(\"'\"&F3340&\"'!\"&G3340)),\"\",INDIRECT(\"'\"&F3340&\"'!\"&G3340))","v":""},{"$f":"IF(ISBLANK(INDIRECT(\"'\"&F3340&\"'!\"&H3340)),\"\",IFERROR(VLOOKUP(TEXT(INDIRECT(\"'\"&F3340&\"'!\"&H3340),\"0\"),Notes!$B$5:$C$100,2,FALSE),\"\"))","v":""},"2e","$AY$93","$AZ$93"]
[15284,{"$f":"Menu!$F$29","v":"X"},{"$f":"Menu!$J$29","v":2020},{"$f":"IF(ISBLANK(INDIRECT(\"'\"&F3341&\"'!\"&G3341)),\"\",INDIRECT(\"'\"&F3341&\"'!\"&G3341))","v":""},{"$f":"IF(ISBLANK(INDIRECT(\"'\"&F3341&\"'!\"&H3341)),\"\",IFERROR(VLOOKUP(TEXT(INDIRECT(\"'\"&F3341&\"'!\"&H3341),\"0\"),Notes!$B$5:$C$100,2,FALSE),\"\"))","v":""},"2e","$BA$93","$BB$93"]
[15285,{"$f":"Menu!$F$29","v":"X"},{"$f":"Menu!$J$29","v":2020},{"$f":"IF(ISBLANK(INDIRECT(\"'\"&F3342&\"'!\"&G3342)),\"\",INDIRECT(\"'\"&F3342&\"'!\"&G3342))","v":""},{"$f":"IF(ISBLANK(INDIRECT(\"'\"&F3342&\"'!\"&H3342)),\"\",IFERROR(VLOOKUP(TEXT(INDIRECT(\"'\"&F3342&\"'!\"&H3342),\"0\"),Notes!$B$5:$C$100,2,FALSE),\"\"))","v":""},"2e","$BC$93","$BD$93"]
[15286,{"$f":"Menu!$F$29","v":"X"},{"$f":"Menu!$J$29","v":2020},{"$f":"IF(ISBLANK(INDIRECT(\"'\"&F3343&\"'!\"&G3343)),\"\",INDIRECT(\"'\"&F3343&\"'!\"&G3343))","v":""},{"$f":"IF(ISBLANK(INDIRECT(\"'\"&F3343&\"'!\"&H3343)),\"\",IFERROR(VLOOKUP(TEXT(INDIRECT(\"'\"&F3343&\"'!\"&H3343),\"0\"),Notes!$B$5:$C$100,2,FALSE),\"\"))","v":""},"2e","$BE$93","$BF$93"]
[15287,{"$f":"Menu!$F$29","v":"X"},{"$f":"Menu!$J$29","v":2020},{"$f":"IF(ISBLANK(INDIRECT(\"'\"&F3344&\"'!\"&G3344)),\"\",INDIRECT(\"'\"&F3344&\"'!\"&G3344))","v":""},{"$f":"IF(ISBLANK(INDIRECT(\"'\"&F3344&\"'!\"&H3344)),\"\",IFERROR(VLOOKUP(TEXT(INDIRECT(\"'\"&F3344&\"'!\"&H3344),\"0\"),Notes!$B$5:$C$100,2,FALSE),\"\"))","v":""},"2e","$BG$93","$BH$93"]
[15288,{"$f":"Menu!$F$29","v":"X"},{"$f":"Menu!$J$29","v":2020},{"$f":"IF(ISBLANK(INDIRECT(\"'\"&F3345&\"'!\"&G3345)),\"\",INDIRECT(\"'\"&F3345&\"'!\"&G3345))","v":""},{"$f":"IF(ISBLANK(INDIRECT(\"'\"&F3345&\"'!\"&H3345)),\"\",IFERROR(VLOOKUP(TEXT(INDIRECT(\"'\"&F3345&\"'!\"&H3345),\"0\"),Notes!$B$5:$C$100,2,FALSE),\"\"))","v":""},"2e","$BI$93","$BJ$93"]
[15289,{"$f":"Menu!$F$29","v":"X"},{"$f":"Menu!$J$29","v":2020},{"$f":"IF(ISBLANK(INDIRECT(\"'\"&F3346&\"'!\"&G3346)),\"\",INDIRECT(\"'\"&F3346&\"'!\"&G3346))","v":""},{"$f":"IF(ISBLANK(INDIRECT(\"'\"&F3346&\"'!\"&H3346)),\"\",IFERROR(VLOOKUP(TEXT(INDIRECT(\"'\"&F3346&\"'!\"&H3346),\"0\"),Notes!$B$5:$C$100,2,FALSE),\"\"))","v":""},"2e","$BK$93","$BL$93"]
[15290,{"$f":"Menu!$F$29","v":"X"},{"$f":"Menu!$J$29","v":2020},{"$f":"IF(ISBLANK(INDIRECT(\"'\"&F3347&\"'!\"&G3347)),\"\",INDIRECT(\"'\"&F3347&\"'!\"&G3347))","v":""},{"$f":"IF(ISBLANK(INDIRECT(\"'\"&F3347&\"'!\"&H3347)),\"\",IFERROR(VLOOKUP(TEXT(INDIRECT(\"'\"&F3347&\"'!\"&H3347),\"0\"),Notes!$B$5:$C$100,2,FALSE),\"\"))","v":""},"2e","$E$34","$F$34"]
[15291,{"$f":"Menu!$F$29","v":"X"},{"$f":"Menu!$J$29","v":2020},{"$f":"IF(ISBLANK(INDIRECT(\"'\"&F3348&\"'!\"&G3348)),\"\",INDIRECT(\"'\"&F3348&\"'!\"&G3348))","v":""},{"$f":"IF(ISBLANK(INDIRECT(\"'\"&F3348&\"'!\"&H3348)),\"\",IFERROR(VLOOKUP(TEXT(INDIRECT(\"'\"&F3348&\"'!\"&H3348),\"0\"),Notes!$B$5:$C$100,2,FALSE),\"\"))","v":""},"2e","$G$34","$H$34"]
[15292,{"$f":"Menu!$F$29","v":"X"},{"$f":"Menu!$J$29","v":2020},{"$f":"IF(ISBLANK(INDIRECT(\"'\"&F3349&\"'!\"&G3349)),\"\",INDIRECT(\"'\"&F3349&\"'!\"&G3349))","v":""},{"$f":"IF(ISBLANK(INDIRECT(\"'\"&F3349&\"'!\"&H3349)),\"\",IFERROR(VLOOKUP(TEXT(INDIRECT(\"'\"&F3349&\"'!\"&H3349),\"0\"),Notes!$B$5:$C$100,2,FALSE),\"\"))","v":""},"2e","$I$34","$J$34"]
[15293,{"$f":"Menu!$F$29","v":"X"},{"$f":"Menu!$J$29","v":2020},{"$f":"IF(ISBLANK(INDIRECT(\"'\"&F3350&\"'!\"&G3350)),\"\",INDIRECT(\"'\"&F3350&\"'!\"&G3350))","v":""},{"$f":"IF(ISBLANK(INDIRECT(\"'\"&F3350&\"'!\"&H3350)),\"\",IFERROR(VLOOKUP(TEXT(INDIRECT(\"'\"&F3350&\"'!\"&H3350),\"0\"),Notes!$B$5:$C$100,2,FALSE),\"\"))","v":""},"2e","$K$34","$L$34"]
[15294,{"$f":"Menu!$F$29","v":"X"},{"$f":"Menu!$J$29","v":2020},{"$f":"IF(ISBLANK(INDIRECT(\"'\"&F3351&\"'!\"&G3351)),\"\",INDIRECT(\"'\"&F3351&\"'!\"&G3351))","v":""},{"$f":"IF(ISBLANK(INDIRECT(\"'\"&F3351&\"'!\"&H3351)),\"\",IFERROR(VLOOKUP(TEXT(INDIRECT(\"'\"&F3351&\"'!\"&H3351),\"0\"),Notes!$B$5:$C$100,2,FALSE),\"\"))","v":""},"2e","$M$34","$N$34"]
[15295,{"$f":"Menu!$F$29","v":"X"},{"$f":"Menu!$J$29","v":2020},{"$f":"IF(ISBLANK(INDIRECT(\"'\"&F3352&\"'!\"&G3352)),\"\",INDIRECT(\"'\"&F3352&\"'!\"&G3352))","v":""},{"$f":"IF(ISBLANK(INDIRECT(\"'\"&F3352&\"'!\"&H3352)),\"\",IFERROR(VLOOKUP(TEXT(INDIRECT(\"'\"&F3352&\"'!\"&H3352),\"0\"),Notes!$B$5:$C$100,2,FALSE),\"\"))","v":""},"2e","$O$34","$P$34"]
[15296,{"$f":"Menu!$F$29","v":"X"},{"$f":"Menu!$J$29","v":2020},{"$f":"IF(ISBLANK(INDIRECT(\"'\"&F3353&\"'!\"&G3353)),\"\",INDIRECT(\"'\"&F3353&\"'!\"&G3353))","v":""},{"$f":"IF(ISBLANK(INDIRECT(\"'\"&F3353&\"'!\"&H3353)),\"\",IFERROR(VLOOKUP(TEXT(INDIRECT(\"'\"&F3353&\"'!\"&H3353),\"0\"),Notes!$B$5:$C$100,2,FALSE),\"\"))","v":""},"2e","$Q$34","$R$34"]
[15297,{"$f":"Menu!$F$29","v":"X"},{"$f":"Menu!$J$29","v":2020},{"$f":"IF(ISBLANK(INDIRECT(\"'\"&F3354&\"'!\"&G3354)),\"\",INDIRECT(\"'\"&F3354&\"'!\"&G3354))","v":""},{"$f":"IF(ISBLANK(INDIRECT(\"'\"&F3354&\"'!\"&H3354)),\"\",IFERROR(VLOOKUP(TEXT(INDIRECT(\"'\"&F3354&\"'!\"&H3354),\"0\"),Notes!$B$5:$C$100,2,FALSE),\"\"))","v":""},"2e","$S$34","$T$34"]
[15298,{"$f":"Menu!$F$29","v":"X"},{"$f":"Menu!$J$29","v":2020},{"$f":"IF(ISBLANK(INDIRECT(\"'\"&F3355&\"'!\"&G3355)),\"\",INDIRECT(\"'\"&F3355&\"'!\"&G3355))","v":""},{"$f":"IF(ISBLANK(INDIRECT(\"'\"&F3355&\"'!\"&H3355)),\"\",IFERROR(VLOOKUP(TEXT(INDIRECT(\"'\"&F3355&\"'!\"&H3355),\"0\"),Notes!$B$5:$C$100,2,FALSE),\"\"))","v":""},"2e","$U$34","$V$34"]
[15299,{"$f":"Menu!$F$29","v":"X"},{"$f":"Menu!$J$29","v":2020},{"$f":"IF(ISBLANK(INDIRECT(\"'\"&F3356&\"'!\"&G3356)),\"\",INDIRECT(\"'\"&F3356&\"'!\"&G3356))","v":""},{"$f":"IF(ISBLANK(INDIRECT(\"'\"&F3356&\"'!\"&H3356)),\"\",IFERROR(VLOOKUP(TEXT(INDIRECT(\"'\"&F3356&\"'!\"&H3356),\"0\"),Notes!$B$5:$C$100,2,FALSE),\"\"))","v":""},"2e","$W$34","$X$34"]
[15300,{"$f":"Menu!$F$29","v":"X"},{"$f":"Menu!$J$29","v":2020},{"$f":"IF(ISBLANK(INDIRECT(\"'\"&F3357&\"'!\"&G3357)),\"\",INDIRECT(\"'\"&F3357&\"'!\"&G3357))","v":""},{"$f":"IF(ISBLANK(INDIRECT(\"'\"&F3357&\"'!\"&H3357)),\"\",IFERROR(VLOOKUP(TEXT(INDIRECT(\"'\"&F3357&\"'!\"&H3357),\"0\"),Notes!$B$5:$C$100,2,FALSE),\"\"))","v":""},"2e","$Y$34","$Z$34"]
[15301,{"$f":"Menu!$F$29","v":"X"},{"$f":"Menu!$J$29","v":2020},{"$f":"IF(ISBLANK(INDIRECT(\"'\"&F3358&\"'!\"&G3358)),\"\",INDIRECT(\"'\"&F3358&\"'!\"&G3358))","v":""},{"$f":"IF(ISBLANK(INDIRECT(\"'\"&F3358&\"'!\"&H3358)),\"\",IFERROR(VLOOKUP(TEXT(INDIRECT(\"'\"&F3358&\"'!\"&H3358),\"0\"),Notes!$B$5:$C$100,2,FALSE),\"\"))","v":""},"2e","$AA$34","$AB$34"]
[15302,{"$f":"Menu!$F$29","v":"X"},{"$f":"Menu!$J$29","v":2020},{"$f":"IF(ISBLANK(INDIRECT(\"'\"&F3359&\"'!\"&G3359)),\"\",INDIRECT(\"'\"&F3359&\"'!\"&G3359))","v":""},{"$f":"IF(ISBLANK(INDIRECT(\"'\"&F3359&\"'!\"&H3359)),\"\",IFERROR(VLOOKUP(TEXT(INDIRECT(\"'\"&F3359&\"'!\"&H3359),\"0\"),Notes!$B$5:$C$100,2,FALSE),\"\"))","v":""},"2e","$AC$34","$AD$34"]
[15303,{"$f":"Menu!$F$29","v":"X"},{"$f":"Menu!$J$29","v":2020},{"$f":"IF(ISBLANK(INDIRECT(\"'\"&F3360&\"'!\"&G3360)),\"\",INDIRECT(\"'\"&F3360&\"'!\"&G3360))","v":""},{"$f":"IF(ISBLANK(INDIRECT(\"'\"&F3360&\"'!\"&H3360)),\"\",IFERROR(VLOOKUP(TEXT(INDIRECT(\"'\"&F3360&\"'!\"&H3360),\"0\"),Notes!$B$5:$C$100,2,FALSE),\"\"))","v":""},"2e","$AE$34","$AF$34"]
[15304,{"$f":"Menu!$F$29","v":"X"},{"$f":"Menu!$J$29","v":2020},{"$f":"IF(ISBLANK(INDIRECT(\"'\"&F3361&\"'!\"&G3361)),\"\",INDIRECT(\"'\"&F3361&\"'!\"&G3361))","v":""},{"$f":"IF(ISBLANK(INDIRECT(\"'\"&F3361&\"'!\"&H3361)),\"\",IFERROR(VLOOKUP(TEXT(INDIRECT(\"'\"&F3361&\"'!\"&H3361),\"0\"),Notes!$B$5:$C$100,2,FALSE),\"\"))","v":""},"2e","$AG$34","$AH$34"]
[15305,{"$f":"Menu!$F$29","v":"X"},{"$f":"Menu!$J$29","v":2020},{"$f":"IF(ISBLANK(INDIRECT(\"'\"&F3362&\"'!\"&G3362)),\"\",INDIRECT(\"'\"&F3362&\"'!\"&G3362))","v":""},{"$f":"IF(ISBLANK(INDIRECT(\"'\"&F3362&\"'!\"&H3362)),\"\",IFERROR(VLOOKUP(TEXT(INDIRECT(\"'\"&F3362&\"'!\"&H3362),\"0\"),Notes!$B$5:$C$100,2,FALSE),\"\"))","v":""},"2e","$AI$34","$AJ$34"]
[15306,{"$f":"Menu!$F$29","v":"X"},{"$f":"Menu!$J$29","v":2020},{"$f":"IF(ISBLANK(INDIRECT(\"'\"&F3363&\"'!\"&G3363)),\"\",INDIRECT(\"'\"&F3363&\"'!\"&G3363))","v":""},{"$f":"IF(ISBLANK(INDIRECT(\"'\"&F3363&\"'!\"&H3363)),\"\",IFERROR(VLOOKUP(TEXT(INDIRECT(\"'\"&F3363&\"'!\"&H3363),\"0\"),Notes!$B$5:$C$100,2,FALSE),\"\"))","v":""},"2e","$AK$34","$AL$34"]
[15307,{"$f":"Menu!$F$29","v":"X"},{"$f":"Menu!$J$29","v":2020},{"$f":"IF(ISBLANK(INDIRECT(\"'\"&F3364&\"'!\"&G3364)),\"\",INDIRECT(\"'\"&F3364&\"'!\"&G3364))","v":""},{"$f":"IF(ISBLANK(INDIRECT(\"'\"&F3364&\"'!\"&H3364)),\"\",IFERROR(VLOOKUP(TEXT(INDIRECT(\"'\"&F3364&\"'!\"&H3364),\"0\"),Notes!$B$5:$C$100,2,FALSE),\"\"))","v":""},"2e","$AM$34","$AN$34"]
[15308,{"$f":"Menu!$F$29","v":"X"},{"$f":"Menu!$J$29","v":2020},{"$f":"IF(ISBLANK(INDIRECT(\"'\"&F3365&\"'!\"&G3365)),\"\",INDIRECT(\"'\"&F3365&\"'!\"&G3365))","v":""},{"$f":"IF(ISBLANK(INDIRECT(\"'\"&F3365&\"'!\"&H3365)),\"\",IFERROR(VLOOKUP(TEXT(INDIRECT(\"'\"&F3365&\"'!\"&H3365),\"0\"),Notes!$B$5:$C$100,2,FALSE),\"\"))","v":""},"2e","$AO$34","$AP$34"]
[15309,{"$f":"Menu!$F$29","v":"X"},{"$f":"Menu!$J$29","v":2020},{"$f":"IF(ISBLANK(INDIRECT(\"'\"&F3366&\"'!\"&G3366)),\"\",INDIRECT(\"'\"&F3366&\"'!\"&G3366))","v":""},{"$f":"IF(ISBLANK(INDIRECT(\"'\"&F3366&\"'!\"&H3366)),\"\",IFERROR(VLOOKUP(TEXT(INDIRECT(\"'\"&F3366&\"'!\"&H3366),\"0\"),Notes!$B$5:$C$100,2,FALSE),\"\"))","v":""},"2e","$AQ$34","$AR$34"]
[15310,{"$f":"Menu!$F$29","v":"X"},{"$f":"Menu!$J$29","v":2020},{"$f":"IF(ISBLANK(INDIRECT(\"'\"&F3367&\"'!\"&G3367)),\"\",INDIRECT(\"'\"&F3367&\"'!\"&G3367))","v":""},{"$f":"IF(ISBLANK(INDIRECT(\"'\"&F3367&\"'!\"&H3367)),\"\",IFERROR(VLOOKUP(TEXT(INDIRECT(\"'\"&F3367&\"'!\"&H3367),\"0\"),Notes!$B$5:$C$100,2,FALSE),\"\"))","v":""},"2e","$AS$34","$AT$34"]
[15311,{"$f":"Menu!$F$29","v":"X"},{"$f":"Menu!$J$29","v":2020},{"$f":"IF(ISBLANK(INDIRECT(\"'\"&F3368&\"'!\"&G3368)),\"\",INDIRECT(\"'\"&F3368&\"'!\"&G3368))","v":""},{"$f":"IF(ISBLANK(INDIRECT(\"'\"&F3368&\"'!\"&H3368)),\"\",IFERROR(VLOOKUP(TEXT(INDIRECT(\"'\"&F3368&\"'!\"&H3368),\"0\"),Notes!$B$5:$C$100,2,FALSE),\"\"))","v":""},"2e","$AU$34","$AV$34"]
[15312,{"$f":"Menu!$F$29","v":"X"},{"$f":"Menu!$J$29","v":2020},{"$f":"IF(ISBLANK(INDIRECT(\"'\"&F3369&\"'!\"&G3369)),\"\",INDIRECT(\"'\"&F3369&\"'!\"&G3369))","v":""},{"$f":"IF(ISBLANK(INDIRECT(\"'\"&F3369&\"'!\"&H3369)),\"\",IFERROR(VLOOKUP(TEXT(INDIRECT(\"'\"&F3369&\"'!\"&H3369),\"0\"),Notes!$B$5:$C$100,2,FALSE),\"\"))","v":""},"2e","$AW$34","$AX$34"]
[15313,{"$f":"Menu!$F$29","v":"X"},{"$f":"Menu!$J$29","v":2020},{"$f":"IF(ISBLANK(INDIRECT(\"'\"&F3370&\"'!\"&G3370)),\"\",INDIRECT(\"'\"&F3370&\"'!\"&G3370))","v":""},{"$f":"IF(ISBLANK(INDIRECT(\"'\"&F3370&\"'!\"&H3370)),\"\",IFERROR(VLOOKUP(TEXT(INDIRECT(\"'\"&F3370&\"'!\"&H3370),\"0\"),Notes!$B$5:$C$100,2,FALSE),\"\"))","v":""},"2e","$AY$34","$AZ$34"]
[15314,{"$f":"Menu!$F$29","v":"X"},{"$f":"Menu!$J$29","v":2020},{"$f":"IF(ISBLANK(INDIRECT(\"'\"&F3371&\"'!\"&G3371)),\"\",INDIRECT(\"'\"&F3371&\"'!\"&G3371))","v":""},{"$f":"IF(ISBLANK(INDIRECT(\"'\"&F3371&\"'!\"&H3371)),\"\",IFERROR(VLOOKUP(TEXT(INDIRECT(\"'\"&F3371&\"'!\"&H3371),\"0\"),Notes!$B$5:$C$100,2,FALSE),\"\"))","v":""},"2e","$BA$34","$BB$34"]
[15315,{"$f":"Menu!$F$29","v":"X"},{"$f":"Menu!$J$29","v":2020},{"$f":"IF(ISBLANK(INDIRECT(\"'\"&F3372&\"'!\"&G3372)),\"\",INDIRECT(\"'\"&F3372&\"'!\"&G3372))","v":""},{"$f":"IF(ISBLANK(INDIRECT(\"'\"&F3372&\"'!\"&H3372)),\"\",IFERROR(VLOOKUP(TEXT(INDIRECT(\"'\"&F3372&\"'!\"&H3372),\"0\"),Notes!$B$5:$C$100,2,FALSE),\"\"))","v":""},"2e","$BC$34","$BD$34"]
[15316,{"$f":"Menu!$F$29","v":"X"},{"$f":"Menu!$J$29","v":2020},{"$f":"IF(ISBLANK(INDIRECT(\"'\"&F3373&\"'!\"&G3373)),\"\",INDIRECT(\"'\"&F3373&\"'!\"&G3373))","v":""},{"$f":"IF(ISBLANK(INDIRECT(\"'\"&F3373&\"'!\"&H3373)),\"\",IFERROR(VLOOKUP(TEXT(INDIRECT(\"'\"&F3373&\"'!\"&H3373),\"0\"),Notes!$B$5:$C$100,2,FALSE),\"\"))","v":""},"2e","$BE$34","$BF$34"]
[15317,{"$f":"Menu!$F$29","v":"X"},{"$f":"Menu!$J$29","v":2020},{"$f":"IF(ISBLANK(INDIRECT(\"'\"&F3374&\"'!\"&G3374)),\"\",INDIRECT(\"'\"&F3374&\"'!\"&G3374))","v":""},{"$f":"IF(ISBLANK(INDIRECT(\"'\"&F3374&\"'!\"&H3374)),\"\",IFERROR(VLOOKUP(TEXT(INDIRECT(\"'\"&F3374&\"'!\"&H3374),\"0\"),Notes!$B$5:$C$100,2,FALSE),\"\"))","v":""},"2e","$BG$34","$BH$34"]
[15318,{"$f":"Menu!$F$29","v":"X"},{"$f":"Menu!$J$29","v":2020},{"$f":"IF(ISBLANK(INDIRECT(\"'\"&F3375&\"'!\"&G3375)),\"\",INDIRECT(\"'\"&F3375&\"'!\"&G3375))","v":""},{"$f":"IF(ISBLANK(INDIRECT(\"'\"&F3375&\"'!\"&H3375)),\"\",IFERROR(VLOOKUP(TEXT(INDIRECT(\"'\"&F3375&\"'!\"&H3375),\"0\"),Notes!$B$5:$C$100,2,FALSE),\"\"))","v":""},"2e","$BI$34","$BJ$34"]
[15319,{"$f":"Menu!$F$29","v":"X"},{"$f":"Menu!$J$29","v":2020},{"$f":"IF(ISBLANK(INDIRECT(\"'\"&F3376&\"'!\"&G3376)),\"\",INDIRECT(\"'\"&F3376&\"'!\"&G3376))","v":""},{"$f":"IF(ISBLANK(INDIRECT(\"'\"&F3376&\"'!\"&H3376)),\"\",IFERROR(VLOOKUP(TEXT(INDIRECT(\"'\"&F3376&\"'!\"&H3376),\"0\"),Notes!$B$5:$C$100,2,FALSE),\"\"))","v":""},"2e","$BK$34","$BL$34"]
[15320,{"$f":"Menu!$F$29","v":"X"},{"$f":"Menu!$J$29","v":2020},{"$f":"IF(ISBLANK(INDIRECT(\"'\"&F3377&\"'!\"&G3377)),\"\",INDIRECT(\"'\"&F3377&\"'!\"&G3377))","v":""},{"$f":"IF(ISBLANK(INDIRECT(\"'\"&F3377&\"'!\"&H3377)),\"\",IFERROR(VLOOKUP(TEXT(INDIRECT(\"'\"&F3377&\"'!\"&H3377),\"0\"),Notes!$B$5:$C$100,2,FALSE),\"\"))","v":""},"2e","$E$95","$F$95"]
[15321,{"$f":"Menu!$F$29","v":"X"},{"$f":"Menu!$J$29","v":2020},{"$f":"IF(ISBLANK(INDIRECT(\"'\"&F3378&\"'!\"&G3378)),\"\",INDIRECT(\"'\"&F3378&\"'!\"&G3378))","v":""},{"$f":"IF(ISBLANK(INDIRECT(\"'\"&F3378&\"'!\"&H3378)),\"\",IFERROR(VLOOKUP(TEXT(INDIRECT(\"'\"&F3378&\"'!\"&H3378),\"0\"),Notes!$B$5:$C$100,2,FALSE),\"\"))","v":""},"2e","$G$95","$H$95"]
[15322,{"$f":"Menu!$F$29","v":"X"},{"$f":"Menu!$J$29","v":2020},{"$f":"IF(ISBLANK(INDIRECT(\"'\"&F3379&\"'!\"&G3379)),\"\",INDIRECT(\"'\"&F3379&\"'!\"&G3379))","v":""},{"$f":"IF(ISBLANK(INDIRECT(\"'\"&F3379&\"'!\"&H3379)),\"\",IFERROR(VLOOKUP(TEXT(INDIRECT(\"'\"&F3379&\"'!\"&H3379),\"0\"),Notes!$B$5:$C$100,2,FALSE),\"\"))","v":""},"2e","$I$95","$J$95"]
[15323,{"$f":"Menu!$F$29","v":"X"},{"$f":"Menu!$J$29","v":2020},{"$f":"IF(ISBLANK(INDIRECT(\"'\"&F3380&\"'!\"&G3380)),\"\",INDIRECT(\"'\"&F3380&\"'!\"&G3380))","v":""},{"$f":"IF(ISBLANK(INDIRECT(\"'\"&F3380&\"'!\"&H3380)),\"\",IFERROR(VLOOKUP(TEXT(INDIRECT(\"'\"&F3380&\"'!\"&H3380),\"0\"),Notes!$B$5:$C$100,2,FALSE),\"\"))","v":""},"2e","$K$95","$L$95"]
[15324,{"$f":"Menu!$F$29","v":"X"},{"$f":"Menu!$J$29","v":2020},{"$f":"IF(ISBLANK(INDIRECT(\"'\"&F3381&\"'!\"&G3381)),\"\",INDIRECT(\"'\"&F3381&\"'!\"&G3381))","v":""},{"$f":"IF(ISBLANK(INDIRECT(\"'\"&F3381&\"'!\"&H3381)),\"\",IFERROR(VLOOKUP(TEXT(INDIRECT(\"'\"&F3381&\"'!\"&H3381),\"0\"),Notes!$B$5:$C$100,2,FALSE),\"\"))","v":""},"2e","$M$95","$N$95"]
[15325,{"$f":"Menu!$F$29","v":"X"},{"$f":"Menu!$J$29","v":2020},{"$f":"IF(ISBLANK(INDIRECT(\"'\"&F3382&\"'!\"&G3382)),\"\",INDIRECT(\"'\"&F3382&\"'!\"&G3382))","v":""},{"$f":"IF(ISBLANK(INDIRECT(\"'\"&F3382&\"'!\"&H3382)),\"\",IFERROR(VLOOKUP(TEXT(INDIRECT(\"'\"&F3382&\"'!\"&H3382),\"0\"),Notes!$B$5:$C$100,2,FALSE),\"\"))","v":""},"2e","$O$95","$P$95"]
[15326,{"$f":"Menu!$F$29","v":"X"},{"$f":"Menu!$J$29","v":2020},{"$f":"IF(ISBLANK(INDIRECT(\"'\"&F3383&\"'!\"&G3383)),\"\",INDIRECT(\"'\"&F3383&\"'!\"&G3383))","v":""},{"$f":"IF(ISBLANK(INDIRECT(\"'\"&F3383&\"'!\"&H3383)),\"\",IFERROR(VLOOKUP(TEXT(INDIRECT(\"'\"&F3383&\"'!\"&H3383),\"0\"),Notes!$B$5:$C$100,2,FALSE),\"\"))","v":""},"2e","$Q$95","$R$95"]
[15327,{"$f":"Menu!$F$29","v":"X"},{"$f":"Menu!$J$29","v":2020},{"$f":"IF(ISBLANK(INDIRECT(\"'\"&F3384&\"'!\"&G3384)),\"\",INDIRECT(\"'\"&F3384&\"'!\"&G3384))","v":""},{"$f":"IF(ISBLANK(INDIRECT(\"'\"&F3384&\"'!\"&H3384)),\"\",IFERROR(VLOOKUP(TEXT(INDIRECT(\"'\"&F3384&\"'!\"&H3384),\"0\"),Notes!$B$5:$C$100,2,FALSE),\"\"))","v":""},"2e","$S$95","$T$95"]
[15328,{"$f":"Menu!$F$29","v":"X"},{"$f":"Menu!$J$29","v":2020},{"$f":"IF(ISBLANK(INDIRECT(\"'\"&F3385&\"'!\"&G3385)),\"\",INDIRECT(\"'\"&F3385&\"'!\"&G3385))","v":""},{"$f":"IF(ISBLANK(INDIRECT(\"'\"&F3385&\"'!\"&H3385)),\"\",IFERROR(VLOOKUP(TEXT(INDIRECT(\"'\"&F3385&\"'!\"&H3385),\"0\"),Notes!$B$5:$C$100,2,FALSE),\"\"))","v":""},"2e","$U$95","$V$95"]
[15329,{"$f":"Menu!$F$29","v":"X"},{"$f":"Menu!$J$29","v":2020},{"$f":"IF(ISBLANK(INDIRECT(\"'\"&F3386&\"'!\"&G3386)),\"\",INDIRECT(\"'\"&F3386&\"'!\"&G3386))","v":""},{"$f":"IF(ISBLANK(INDIRECT(\"'\"&F3386&\"'!\"&H3386)),\"\",IFERROR(VLOOKUP(TEXT(INDIRECT(\"'\"&F3386&\"'!\"&H3386),\"0\"),Notes!$B$5:$C$100,2,FALSE),\"\"))","v":""},"2e","$W$95","$X$95"]
[15330,{"$f":"Menu!$F$29","v":"X"},{"$f":"Menu!$J$29","v":2020},{"$f":"IF(ISBLANK(INDIRECT(\"'\"&F3387&\"'!\"&G3387)),\"\",INDIRECT(\"'\"&F3387&\"'!\"&G3387))","v":""},{"$f":"IF(ISBLANK(INDIRECT(\"'\"&F3387&\"'!\"&H3387)),\"\",IFERROR(VLOOKUP(TEXT(INDIRECT(\"'\"&F3387&\"'!\"&H3387),\"0\"),Notes!$B$5:$C$100,2,FALSE),\"\"))","v":""},"2e","$Y$95","$Z$95"]
[15331,{"$f":"Menu!$F$29","v":"X"},{"$f":"Menu!$J$29","v":2020},{"$f":"IF(ISBLANK(INDIRECT(\"'\"&F3388&\"'!\"&G3388)),\"\",INDIRECT(\"'\"&F3388&\"'!\"&G3388))","v":""},{"$f":"IF(ISBLANK(INDIRECT(\"'\"&F3388&\"'!\"&H3388)),\"\",IFERROR(VLOOKUP(TEXT(INDIRECT(\"'\"&F3388&\"'!\"&H3388),\"0\"),Notes!$B$5:$C$100,2,FALSE),\"\"))","v":""},"2e","$AA$95","$AB$95"]
[15332,{"$f":"Menu!$F$29","v":"X"},{"$f":"Menu!$J$29","v":2020},{"$f":"IF(ISBLANK(INDIRECT(\"'\"&F3389&\"'!\"&G3389)),\"\",INDIRECT(\"'\"&F3389&\"'!\"&G3389))","v":""},{"$f":"IF(ISBLANK(INDIRECT(\"'\"&F3389&\"'!\"&H3389)),\"\",IFERROR(VLOOKUP(TEXT(INDIRECT(\"'\"&F3389&\"'!\"&H3389),\"0\"),Notes!$B$5:$C$100,2,FALSE),\"\"))","v":""},"2e","$AC$95","$AD$95"]
[15333,{"$f":"Menu!$F$29","v":"X"},{"$f":"Menu!$J$29","v":2020},{"$f":"IF(ISBLANK(INDIRECT(\"'\"&F3390&\"'!\"&G3390)),\"\",INDIRECT(\"'\"&F3390&\"'!\"&G3390))","v":""},{"$f":"IF(ISBLANK(INDIRECT(\"'\"&F3390&\"'!\"&H3390)),\"\",IFERROR(VLOOKUP(TEXT(INDIRECT(\"'\"&F3390&\"'!\"&H3390),\"0\"),Notes!$B$5:$C$100,2,FALSE),\"\"))","v":""},"2e","$AE$95","$AF$95"]
[15334,{"$f":"Menu!$F$29","v":"X"},{"$f":"Menu!$J$29","v":2020},{"$f":"IF(ISBLANK(INDIRECT(\"'\"&F3391&\"'!\"&G3391)),\"\",INDIRECT(\"'\"&F3391&\"'!\"&G3391))","v":""},{"$f":"IF(ISBLANK(INDIRECT(\"'\"&F3391&\"'!\"&H3391)),\"\",IFERROR(VLOOKUP(TEXT(INDIRECT(\"'\"&F3391&\"'!\"&H3391),\"0\"),Notes!$B$5:$C$100,2,FALSE),\"\"))","v":""},"2e","$AG$95","$AH$95"]
[15335,{"$f":"Menu!$F$29","v":"X"},{"$f":"Menu!$J$29","v":2020},{"$f":"IF(ISBLANK(INDIRECT(\"'\"&F3392&\"'!\"&G3392)),\"\",INDIRECT(\"'\"&F3392&\"'!\"&G3392))","v":""},{"$f":"IF(ISBLANK(INDIRECT(\"'\"&F3392&\"'!\"&H3392)),\"\",IFERROR(VLOOKUP(TEXT(INDIRECT(\"'\"&F3392&\"'!\"&H3392),\"0\"),Notes!$B$5:$C$100,2,FALSE),\"\"))","v":""},"2e","$AI$95","$AJ$95"]
[15336,{"$f":"Menu!$F$29","v":"X"},{"$f":"Menu!$J$29","v":2020},{"$f":"IF(ISBLANK(INDIRECT(\"'\"&F3393&\"'!\"&G3393)),\"\",INDIRECT(\"'\"&F3393&\"'!\"&G3393))","v":""},{"$f":"IF(ISBLANK(INDIRECT(\"'\"&F3393&\"'!\"&H3393)),\"\",IFERROR(VLOOKUP(TEXT(INDIRECT(\"'\"&F3393&\"'!\"&H3393),\"0\"),Notes!$B$5:$C$100,2,FALSE),\"\"))","v":""},"2e","$AK$95","$AL$95"]
[15337,{"$f":"Menu!$F$29","v":"X"},{"$f":"Menu!$J$29","v":2020},{"$f":"IF(ISBLANK(INDIRECT(\"'\"&F3394&\"'!\"&G3394)),\"\",INDIRECT(\"'\"&F3394&\"'!\"&G3394))","v":""},{"$f":"IF(ISBLANK(INDIRECT(\"'\"&F3394&\"'!\"&H3394)),\"\",IFERROR(VLOOKUP(TEXT(INDIRECT(\"'\"&F3394&\"'!\"&H3394),\"0\"),Notes!$B$5:$C$100,2,FALSE),\"\"))","v":""},"2e","$AM$95",{"$f":"IF(LEN(TRIM(MID(G3394,4,10)))-LEN(SUBSTITUTE(TRIM(MID(G3394,4,10)),\"$\",\"\"))=0,\"$\"&CHAR(CODE(MID(G3394,2,1))+1)&\"$\"&TRIM(MID(G3394,4,10)),\"$\"&MID(G3394,2,1)&CHAR(CODE(MID(G3394,3,1))+1)&\"$\"&TRIM(MID(G3394,5,11)))","v":"$AN$95"}]
[15338,{"$f":"Menu!$F$29","v":"X"},{"$f":"Menu!$J$29","v":2020},{"$f":"IF(ISBLANK(INDIRECT(\"'\"&F3395&\"'!\"&G3395)),\"\",INDIRECT(\"'\"&F3395&\"'!\"&G3395))","v":""},{"$f":"IF(ISBLANK(INDIRECT(\"'\"&F3395&\"'!\"&H3395)),\"\",IFERROR(VLOOKUP(TEXT(INDIRECT(\"'\"&F3395&\"'!\"&H3395),\"0\"),Notes!$B$5:$C$100,2,FALSE),\"\"))","v":""},"2e","$AO$95","$AP$95"]
[15339,{"$f":"Menu!$F$29","v":"X"},{"$f":"Menu!$J$29","v":2020},{"$f":"IF(ISBLANK(INDIRECT(\"'\"&F3396&\"'!\"&G3396)),\"\",INDIRECT(\"'\"&F3396&\"'!\"&G3396))","v":""},{"$f":"IF(ISBLANK(INDIRECT(\"'\"&F3396&\"'!\"&H3396)),\"\",IFERROR(VLOOKUP(TEXT(INDIRECT(\"'\"&F3396&\"'!\"&H3396),\"0\"),Notes!$B$5:$C$100,2,FALSE),\"\"))","v":""},"2e","$AQ$95","$AR$95"]
[15340,{"$f":"Menu!$F$29","v":"X"},{"$f":"Menu!$J$29","v":2020},{"$f":"IF(ISBLANK(INDIRECT(\"'\"&F3397&\"'!\"&G3397)),\"\",INDIRECT(\"'\"&F3397&\"'!\"&G3397))","v":""},{"$f":"IF(ISBLANK(INDIRECT(\"'\"&F3397&\"'!\"&H3397)),\"\",IFERROR(VLOOKUP(TEXT(INDIRECT(\"'\"&F3397&\"'!\"&H3397),\"0\"),Notes!$B$5:$C$100,2,FALSE),\"\"))","v":""},"2e","$AS$95","$AT$95"]
[15341,{"$f":"Menu!$F$29","v":"X"},{"$f":"Menu!$J$29","v":2020},{"$f":"IF(ISBLANK(INDIRECT(\"'\"&F3398&\"'!\"&G3398)),\"\",INDIRECT(\"'\"&F3398&\"'!\"&G3398))","v":""},{"$f":"IF(ISBLANK(INDIRECT(\"'\"&F3398&\"'!\"&H3398)),\"\",IFERROR(VLOOKUP(TEXT(INDIRECT(\"'\"&F3398&\"'!\"&H3398),\"0\"),Notes!$B$5:$C$100,2,FALSE),\"\"))","v":""},"2e","$AU$95","$AV$95"]
[15342,{"$f":"Menu!$F$29","v":"X"},{"$f":"Menu!$J$29","v":2020},{"$f":"IF(ISBLANK(INDIRECT(\"'\"&F3399&\"'!\"&G3399)),\"\",INDIRECT(\"'\"&F3399&\"'!\"&G3399))","v":""},{"$f":"IF(ISBLANK(INDIRECT(\"'\"&F3399&\"'!\"&H3399)),\"\",IFERROR(VLOOKUP(TEXT(INDIRECT(\"'\"&F3399&\"'!\"&H3399),\"0\"),Notes!$B$5:$C$100,2,FALSE),\"\"))","v":""},"2e","$AW$95","$AX$95"]
[15343,{"$f":"Menu!$F$29","v":"X"},{"$f":"Menu!$J$29","v":2020},{"$f":"IF(ISBLANK(INDIRECT(\"'\"&F3400&\"'!\"&G3400)),\"\",INDIRECT(\"'\"&F3400&\"'!\"&G3400))","v":""},{"$f":"IF(ISBLANK(INDIRECT(\"'\"&F3400&\"'!\"&H3400)),\"\",IFERROR(VLOOKUP(TEXT(INDIRECT(\"'\"&F3400&\"'!\"&H3400),\"0\"),Notes!$B$5:$C$100,2,FALSE),\"\"))","v":""},"2e","$AY$95","$AZ$95"]
[15344,{"$f":"Menu!$F$29","v":"X"},{"$f":"Menu!$J$29","v":2020},{"$f":"IF(ISBLANK(INDIRECT(\"'\"&F3401&\"'!\"&G3401)),\"\",INDIRECT(\"'\"&F3401&\"'!\"&G3401))","v":""},{"$f":"IF(ISBLANK(INDIRECT(\"'\"&F3401&\"'!\"&H3401)),\"\",IFERROR(VLOOKUP(TEXT(INDIRECT(\"'\"&F3401&\"'!\"&H3401),\"0\"),Notes!$B$5:$C$100,2,FALSE),\"\"))","v":""},"2e","$BA$95","$BB$95"]
[15345,{"$f":"Menu!$F$29","v":"X"},{"$f":"Menu!$J$29","v":2020},{"$f":"IF(ISBLANK(INDIRECT(\"'\"&F3402&\"'!\"&G3402)),\"\",INDIRECT(\"'\"&F3402&\"'!\"&G3402))","v":""},{"$f":"IF(ISBLANK(INDIRECT(\"'\"&F3402&\"'!\"&H3402)),\"\",IFERROR(VLOOKUP(TEXT(INDIRECT(\"'\"&F3402&\"'!\"&H3402),\"0\"),Notes!$B$5:$C$100,2,FALSE),\"\"))","v":""},"2e","$BC$95","$BD$95"]
[15346,{"$f":"Menu!$F$29","v":"X"},{"$f":"Menu!$J$29","v":2020},{"$f":"IF(ISBLANK(INDIRECT(\"'\"&F3403&\"'!\"&G3403)),\"\",INDIRECT(\"'\"&F3403&\"'!\"&G3403))","v":""},{"$f":"IF(ISBLANK(INDIRECT(\"'\"&F3403&\"'!\"&H3403)),\"\",IFERROR(VLOOKUP(TEXT(INDIRECT(\"'\"&F3403&\"'!\"&H3403),\"0\"),Notes!$B$5:$C$100,2,FALSE),\"\"))","v":""},"2e","$BE$95","$BF$95"]
[15347,{"$f":"Menu!$F$29","v":"X"},{"$f":"Menu!$J$29","v":2020},{"$f":"IF(ISBLANK(INDIRECT(\"'\"&F3404&\"'!\"&G3404)),\"\",INDIRECT(\"'\"&F3404&\"'!\"&G3404))","v":""},{"$f":"IF(ISBLANK(INDIRECT(\"'\"&F3404&\"'!\"&H3404)),\"\",IFERROR(VLOOKUP(TEXT(INDIRECT(\"'\"&F3404&\"'!\"&H3404),\"0\"),Notes!$B$5:$C$100,2,FALSE),\"\"))","v":""},"2e","$BG$95","$BH$95"]
[15348,{"$f":"Menu!$F$29","v":"X"},{"$f":"Menu!$J$29","v":2020},{"$f":"IF(ISBLANK(INDIRECT(\"'\"&F3405&\"'!\"&G3405)),\"\",INDIRECT(\"'\"&F3405&\"'!\"&G3405))","v":""},{"$f":"IF(ISBLANK(INDIRECT(\"'\"&F3405&\"'!\"&H3405)),\"\",IFERROR(VLOOKUP(TEXT(INDIRECT(\"'\"&F3405&\"'!\"&H3405),\"0\"),Notes!$B$5:$C$100,2,FALSE),\"\"))","v":""},"2e","$BI$95","$BJ$95"]
[15349,{"$f":"Menu!$F$29","v":"X"},{"$f":"Menu!$J$29","v":2020},{"$f":"IF(ISBLANK(INDIRECT(\"'\"&F3406&\"'!\"&G3406)),\"\",INDIRECT(\"'\"&F3406&\"'!\"&G3406))","v":""},{"$f":"IF(ISBLANK(INDIRECT(\"'\"&F3406&\"'!\"&H3406)),\"\",IFERROR(VLOOKUP(TEXT(INDIRECT(\"'\"&F3406&\"'!\"&H3406),\"0\"),Notes!$B$5:$C$100,2,FALSE),\"\"))","v":""},"2e","$BK$95","$BL$95"]
[15350,{"$f":"Menu!$F$29","v":"X"},{"$f":"Menu!$J$29","v":2020},{"$f":"IF(ISBLANK(INDIRECT(\"'\"&F3407&\"'!\"&G3407)),\"\",INDIRECT(\"'\"&F3407&\"'!\"&G3407))","v":""},{"$f":"IF(ISBLANK(INDIRECT(\"'\"&F3407&\"'!\"&H3407)),\"\",IFERROR(VLOOKUP(TEXT(INDIRECT(\"'\"&F3407&\"'!\"&H3407),\"0\"),Notes!$B$5:$C$100,2,FALSE),\"\"))","v":""},"2e","$E$97","$F$97"]
[15351,{"$f":"Menu!$F$29","v":"X"},{"$f":"Menu!$J$29","v":2020},{"$f":"IF(ISBLANK(INDIRECT(\"'\"&F3408&\"'!\"&G3408)),\"\",INDIRECT(\"'\"&F3408&\"'!\"&G3408))","v":""},{"$f":"IF(ISBLANK(INDIRECT(\"'\"&F3408&\"'!\"&H3408)),\"\",IFERROR(VLOOKUP(TEXT(INDIRECT(\"'\"&F3408&\"'!\"&H3408),\"0\"),Notes!$B$5:$C$100,2,FALSE),\"\"))","v":""},"2e","$G$97","$H$97"]
[15352,{"$f":"Menu!$F$29","v":"X"},{"$f":"Menu!$J$29","v":2020},{"$f":"IF(ISBLANK(INDIRECT(\"'\"&F3409&\"'!\"&G3409)),\"\",INDIRECT(\"'\"&F3409&\"'!\"&G3409))","v":""},{"$f":"IF(ISBLANK(INDIRECT(\"'\"&F3409&\"'!\"&H3409)),\"\",IFERROR(VLOOKUP(TEXT(INDIRECT(\"'\"&F3409&\"'!\"&H3409),\"0\"),Notes!$B$5:$C$100,2,FALSE),\"\"))","v":""},"2e","$I$97","$J$97"]
[15353,{"$f":"Menu!$F$29","v":"X"},{"$f":"Menu!$J$29","v":2020},{"$f":"IF(ISBLANK(INDIRECT(\"'\"&F3410&\"'!\"&G3410)),\"\",INDIRECT(\"'\"&F3410&\"'!\"&G3410))","v":""},{"$f":"IF(ISBLANK(INDIRECT(\"'\"&F3410&\"'!\"&H3410)),\"\",IFERROR(VLOOKUP(TEXT(INDIRECT(\"'\"&F3410&\"'!\"&H3410),\"0\"),Notes!$B$5:$C$100,2,FALSE),\"\"))","v":""},"2e","$K$97","$L$97"]
[15354,{"$f":"Menu!$F$29","v":"X"},{"$f":"Menu!$J$29","v":2020},{"$f":"IF(ISBLANK(INDIRECT(\"'\"&F3411&\"'!\"&G3411)),\"\",INDIRECT(\"'\"&F3411&\"'!\"&G3411))","v":""},{"$f":"IF(ISBLANK(INDIRECT(\"'\"&F3411&\"'!\"&H3411)),\"\",IFERROR(VLOOKUP(TEXT(INDIRECT(\"'\"&F3411&\"'!\"&H3411),\"0\"),Notes!$B$5:$C$100,2,FALSE),\"\"))","v":""},"2e","$M$97","$N$97"]
[15355,{"$f":"Menu!$F$29","v":"X"},{"$f":"Menu!$J$29","v":2020},{"$f":"IF(ISBLANK(INDIRECT(\"'\"&F3412&\"'!\"&G3412)),\"\",INDIRECT(\"'\"&F3412&\"'!\"&G3412))","v":""},{"$f":"IF(ISBLANK(INDIRECT(\"'\"&F3412&\"'!\"&H3412)),\"\",IFERROR(VLOOKUP(TEXT(INDIRECT(\"'\"&F3412&\"'!\"&H3412),\"0\"),Notes!$B$5:$C$100,2,FALSE),\"\"))","v":""},"2e","$O$97","$P$97"]
[15356,{"$f":"Menu!$F$29","v":"X"},{"$f":"Menu!$J$29","v":2020},{"$f":"IF(ISBLANK(INDIRECT(\"'\"&F3413&\"'!\"&G3413)),\"\",INDIRECT(\"'\"&F3413&\"'!\"&G3413))","v":""},{"$f":"IF(ISBLANK(INDIRECT(\"'\"&F3413&\"'!\"&H3413)),\"\",IFERROR(VLOOKUP(TEXT(INDIRECT(\"'\"&F3413&\"'!\"&H3413),\"0\"),Notes!$B$5:$C$100,2,FALSE),\"\"))","v":""},"2e","$Q$97","$R$97"]
[15357,{"$f":"Menu!$F$29","v":"X"},{"$f":"Menu!$J$29","v":2020},{"$f":"IF(ISBLANK(INDIRECT(\"'\"&F3414&\"'!\"&G3414)),\"\",INDIRECT(\"'\"&F3414&\"'!\"&G3414))","v":""},{"$f":"IF(ISBLANK(INDIRECT(\"'\"&F3414&\"'!\"&H3414)),\"\",IFERROR(VLOOKUP(TEXT(INDIRECT(\"'\"&F3414&\"'!\"&H3414),\"0\"),Notes!$B$5:$C$100,2,FALSE),\"\"))","v":""},"2e","$S$97","$T$97"]
[15358,{"$f":"Menu!$F$29","v":"X"},{"$f":"Menu!$J$29","v":2020},{"$f":"IF(ISBLANK(INDIRECT(\"'\"&F3415&\"'!\"&G3415)),\"\",INDIRECT(\"'\"&F3415&\"'!\"&G3415))","v":""},{"$f":"IF(ISBLANK(INDIRECT(\"'\"&F3415&\"'!\"&H3415)),\"\",IFERROR(VLOOKUP(TEXT(INDIRECT(\"'\"&F3415&\"'!\"&H3415),\"0\"),Notes!$B$5:$C$100,2,FALSE),\"\"))","v":""},"2e","$U$97","$V$97"]
[15359,{"$f":"Menu!$F$29","v":"X"},{"$f":"Menu!$J$29","v":2020},{"$f":"IF(ISBLANK(INDIRECT(\"'\"&F3416&\"'!\"&G3416)),\"\",INDIRECT(\"'\"&F3416&\"'!\"&G3416))","v":""},{"$f":"IF(ISBLANK(INDIRECT(\"'\"&F3416&\"'!\"&H3416)),\"\",IFERROR(VLOOKUP(TEXT(INDIRECT(\"'\"&F3416&\"'!\"&H3416),\"0\"),Notes!$B$5:$C$100,2,FALSE),\"\"))","v":""},"2e","$W$97","$X$97"]
[15360,{"$f":"Menu!$F$29","v":"X"},{"$f":"Menu!$J$29","v":2020},{"$f":"IF(ISBLANK(INDIRECT(\"'\"&F3417&\"'!\"&G3417)),\"\",INDIRECT(\"'\"&F3417&\"'!\"&G3417))","v":""},{"$f":"IF(ISBLANK(INDIRECT(\"'\"&F3417&\"'!\"&H3417)),\"\",IFERROR(VLOOKUP(TEXT(INDIRECT(\"'\"&F3417&\"'!\"&H3417),\"0\"),Notes!$B$5:$C$100,2,FALSE),\"\"))","v":""},"2e","$Y$97","$Z$97"]
[15361,{"$f":"Menu!$F$29","v":"X"},{"$f":"Menu!$J$29","v":2020},{"$f":"IF(ISBLANK(INDIRECT(\"'\"&F3418&\"'!\"&G3418)),\"\",INDIRECT(\"'\"&F3418&\"'!\"&G3418))","v":""},{"$f":"IF(ISBLANK(INDIRECT(\"'\"&F3418&\"'!\"&H3418)),\"\",IFERROR(VLOOKUP(TEXT(INDIRECT(\"'\"&F3418&\"'!\"&H3418),\"0\"),Notes!$B$5:$C$100,2,FALSE),\"\"))","v":""},"2e","$AA$97","$AB$97"]
[15362,{"$f":"Menu!$F$29","v":"X"},{"$f":"Menu!$J$29","v":2020},{"$f":"IF(ISBLANK(INDIRECT(\"'\"&F3419&\"'!\"&G3419)),\"\",INDIRECT(\"'\"&F3419&\"'!\"&G3419))","v":""},{"$f":"IF(ISBLANK(INDIRECT(\"'\"&F3419&\"'!\"&H3419)),\"\",IFERROR(VLOOKUP(TEXT(INDIRECT(\"'\"&F3419&\"'!\"&H3419),\"0\"),Notes!$B$5:$C$100,2,FALSE),\"\"))","v":""},"2e","$AC$97","$AD$97"]
[15363,{"$f":"Menu!$F$29","v":"X"},{"$f":"Menu!$J$29","v":2020},{"$f":"IF(ISBLANK(INDIRECT(\"'\"&F3420&\"'!\"&G3420)),\"\",INDIRECT(\"'\"&F3420&\"'!\"&G3420))","v":""},{"$f":"IF(ISBLANK(INDIRECT(\"'\"&F3420&\"'!\"&H3420)),\"\",IFERROR(VLOOKUP(TEXT(INDIRECT(\"'\"&F3420&\"'!\"&H3420),\"0\"),Notes!$B$5:$C$100,2,FALSE),\"\"))","v":""},"2e","$AE$97","$AF$97"]
[15364,{"$f":"Menu!$F$29","v":"X"},{"$f":"Menu!$J$29","v":2020},{"$f":"IF(ISBLANK(INDIRECT(\"'\"&F3421&\"'!\"&G3421)),\"\",INDIRECT(\"'\"&F3421&\"'!\"&G3421))","v":""},{"$f":"IF(ISBLANK(INDIRECT(\"'\"&F3421&\"'!\"&H3421)),\"\",IFERROR(VLOOKUP(TEXT(INDIRECT(\"'\"&F3421&\"'!\"&H3421),\"0\"),Notes!$B$5:$C$100,2,FALSE),\"\"))","v":""},"2e","$AG$97","$AH$97"]
[15365,{"$f":"Menu!$F$29","v":"X"},{"$f":"Menu!$J$29","v":2020},{"$f":"IF(ISBLANK(INDIRECT(\"'\"&F3422&\"'!\"&G3422)),\"\",INDIRECT(\"'\"&F3422&\"'!\"&G3422))","v":""},{"$f":"IF(ISBLANK(INDIRECT(\"'\"&F3422&\"'!\"&H3422)),\"\",IFERROR(VLOOKUP(TEXT(INDIRECT(\"'\"&F3422&\"'!\"&H3422),\"0\"),Notes!$B$5:$C$100,2,FALSE),\"\"))","v":""},"2e","$AI$97","$AJ$97"]
[15366,{"$f":"Menu!$F$29","v":"X"},{"$f":"Menu!$J$29","v":2020},{"$f":"IF(ISBLANK(INDIRECT(\"'\"&F3423&\"'!\"&G3423)),\"\",INDIRECT(\"'\"&F3423&\"'!\"&G3423))","v":""},{"$f":"IF(ISBLANK(INDIRECT(\"'\"&F3423&\"'!\"&H3423)),\"\",IFERROR(VLOOKUP(TEXT(INDIRECT(\"'\"&F3423&\"'!\"&H3423),\"0\"),Notes!$B$5:$C$100,2,FALSE),\"\"))","v":""},"2e","$AK$97","$AL$97"]
[15367,{"$f":"Menu!$F$29","v":"X"},{"$f":"Menu!$J$29","v":2020},{"$f":"IF(ISBLANK(INDIRECT(\"'\"&F3424&\"'!\"&G3424)),\"\",INDIRECT(\"'\"&F3424&\"'!\"&G3424))","v":""},{"$f":"IF(ISBLANK(INDIRECT(\"'\"&F3424&\"'!\"&H3424)),\"\",IFERROR(VLOOKUP(TEXT(INDIRECT(\"'\"&F3424&\"'!\"&H3424),\"0\"),Notes!$B$5:$C$100,2,FALSE),\"\"))","v":""},"2e","$AM$97","$AN$97"]
[15368,{"$f":"Menu!$F$29","v":"X"},{"$f":"Menu!$J$29","v":2020},{"$f":"IF(ISBLANK(INDIRECT(\"'\"&F3425&\"'!\"&G3425)),\"\",INDIRECT(\"'\"&F3425&\"'!\"&G3425))","v":""},{"$f":"IF(ISBLANK(INDIRECT(\"'\"&F3425&\"'!\"&H3425)),\"\",IFERROR(VLOOKUP(TEXT(INDIRECT(\"'\"&F3425&\"'!\"&H3425),\"0\"),Notes!$B$5:$C$100,2,FALSE),\"\"))","v":""},"2e","$AO$97","$AP$97"]
[15369,{"$f":"Menu!$F$29","v":"X"},{"$f":"Menu!$J$29","v":2020},{"$f":"IF(ISBLANK(INDIRECT(\"'\"&F3426&\"'!\"&G3426)),\"\",INDIRECT(\"'\"&F3426&\"'!\"&G3426))","v":""},{"$f":"IF(ISBLANK(INDIRECT(\"'\"&F3426&\"'!\"&H3426)),\"\",IFERROR(VLOOKUP(TEXT(INDIRECT(\"'\"&F3426&\"'!\"&H3426),\"0\"),Notes!$B$5:$C$100,2,FALSE),\"\"))","v":""},"2e","$AQ$97","$AR$97"]
[15370,{"$f":"Menu!$F$29","v":"X"},{"$f":"Menu!$J$29","v":2020},{"$f":"IF(ISBLANK(INDIRECT(\"'\"&F3427&\"'!\"&G3427)),\"\",INDIRECT(\"'\"&F3427&\"'!\"&G3427))","v":""},{"$f":"IF(ISBLANK(INDIRECT(\"'\"&F3427&\"'!\"&H3427)),\"\",IFERROR(VLOOKUP(TEXT(INDIRECT(\"'\"&F3427&\"'!\"&H3427),\"0\"),Notes!$B$5:$C$100,2,FALSE),\"\"))","v":""},"2e","$AS$97","$AT$97"]
[15371,{"$f":"Menu!$F$29","v":"X"},{"$f":"Menu!$J$29","v":2020},{"$f":"IF(ISBLANK(INDIRECT(\"'\"&F3428&\"'!\"&G3428)),\"\",INDIRECT(\"'\"&F3428&\"'!\"&G3428))","v":""},{"$f":"IF(ISBLANK(INDIRECT(\"'\"&F3428&\"'!\"&H3428)),\"\",IFERROR(VLOOKUP(TEXT(INDIRECT(\"'\"&F3428&\"'!\"&H3428),\"0\"),Notes!$B$5:$C$100,2,FALSE),\"\"))","v":""},"2e","$AU$97","$AV$97"]
[15372,{"$f":"Menu!$F$29","v":"X"},{"$f":"Menu!$J$29","v":2020},{"$f":"IF(ISBLANK(INDIRECT(\"'\"&F3429&\"'!\"&G3429)),\"\",INDIRECT(\"'\"&F3429&\"'!\"&G3429))","v":""},{"$f":"IF(ISBLANK(INDIRECT(\"'\"&F3429&\"'!\"&H3429)),\"\",IFERROR(VLOOKUP(TEXT(INDIRECT(\"'\"&F3429&\"'!\"&H3429),\"0\"),Notes!$B$5:$C$100,2,FALSE),\"\"))","v":""},"2e","$AW$97","$AX$97"]
[15373,{"$f":"Menu!$F$29","v":"X"},{"$f":"Menu!$J$29","v":2020},{"$f":"IF(ISBLANK(INDIRECT(\"'\"&F3430&\"'!\"&G3430)),\"\",INDIRECT(\"'\"&F3430&\"'!\"&G3430))","v":""},{"$f":"IF(ISBLANK(INDIRECT(\"'\"&F3430&\"'!\"&H3430)),\"\",IFERROR(VLOOKUP(TEXT(INDIRECT(\"'\"&F3430&\"'!\"&H3430),\"0\"),Notes!$B$5:$C$100,2,FALSE),\"\"))","v":""},"2e","$AY$97","$AZ$97"]
[15374,{"$f":"Menu!$F$29","v":"X"},{"$f":"Menu!$J$29","v":2020},{"$f":"IF(ISBLANK(INDIRECT(\"'\"&F3431&\"'!\"&G3431)),\"\",INDIRECT(\"'\"&F3431&\"'!\"&G3431))","v":""},{"$f":"IF(ISBLANK(INDIRECT(\"'\"&F3431&\"'!\"&H3431)),\"\",IFERROR(VLOOKUP(TEXT(INDIRECT(\"'\"&F3431&\"'!\"&H3431),\"0\"),Notes!$B$5:$C$100,2,FALSE),\"\"))","v":""},"2e","$BA$97","$BB$97"]
[15375,{"$f":"Menu!$F$29","v":"X"},{"$f":"Menu!$J$29","v":2020},{"$f":"IF(ISBLANK(INDIRECT(\"'\"&F3432&\"'!\"&G3432)),\"\",INDIRECT(\"'\"&F3432&\"'!\"&G3432))","v":""},{"$f":"IF(ISBLANK(INDIRECT(\"'\"&F3432&\"'!\"&H3432)),\"\",IFERROR(VLOOKUP(TEXT(INDIRECT(\"'\"&F3432&\"'!\"&H3432),\"0\"),Notes!$B$5:$C$100,2,FALSE),\"\"))","v":""},"2e","$BC$97","$BD$97"]
[15376,{"$f":"Menu!$F$29","v":"X"},{"$f":"Menu!$J$29","v":2020},{"$f":"IF(ISBLANK(INDIRECT(\"'\"&F3433&\"'!\"&G3433)),\"\",INDIRECT(\"'\"&F3433&\"'!\"&G3433))","v":""},{"$f":"IF(ISBLANK(INDIRECT(\"'\"&F3433&\"'!\"&H3433)),\"\",IFERROR(VLOOKUP(TEXT(INDIRECT(\"'\"&F3433&\"'!\"&H3433),\"0\"),Notes!$B$5:$C$100,2,FALSE),\"\"))","v":""},"2e","$BE$97","$BF$97"]
[15377,{"$f":"Menu!$F$29","v":"X"},{"$f":"Menu!$J$29","v":2020},{"$f":"IF(ISBLANK(INDIRECT(\"'\"&F3434&\"'!\"&G3434)),\"\",INDIRECT(\"'\"&F3434&\"'!\"&G3434))","v":""},{"$f":"IF(ISBLANK(INDIRECT(\"'\"&F3434&\"'!\"&H3434)),\"\",IFERROR(VLOOKUP(TEXT(INDIRECT(\"'\"&F3434&\"'!\"&H3434),\"0\"),Notes!$B$5:$C$100,2,FALSE),\"\"))","v":""},"2e","$BG$97","$BH$97"]
[15378,{"$f":"Menu!$F$29","v":"X"},{"$f":"Menu!$J$29","v":2020},{"$f":"IF(ISBLANK(INDIRECT(\"'\"&F3435&\"'!\"&G3435)),\"\",INDIRECT(\"'\"&F3435&\"'!\"&G3435))","v":""},{"$f":"IF(ISBLANK(INDIRECT(\"'\"&F3435&\"'!\"&H3435)),\"\",IFERROR(VLOOKUP(TEXT(INDIRECT(\"'\"&F3435&\"'!\"&H3435),\"0\"),Notes!$B$5:$C$100,2,FALSE),\"\"))","v":""},"2e","$BI$97","$BJ$97"]
[15379,{"$f":"Menu!$F$29","v":"X"},{"$f":"Menu!$J$29","v":2020},{"$f":"IF(ISBLANK(INDIRECT(\"'\"&F3436&\"'!\"&G3436)),\"\",INDIRECT(\"'\"&F3436&\"'!\"&G3436))","v":""},{"$f":"IF(ISBLANK(INDIRECT(\"'\"&F3436&\"'!\"&H3436)),\"\",IFERROR(VLOOKUP(TEXT(INDIRECT(\"'\"&F3436&\"'!\"&H3436),\"0\"),Notes!$B$5:$C$100,2,FALSE),\"\"))","v":""},"2e","$BK$97","$BL$97"]
[15380,{"$f":"Menu!$F$29","v":"X"},{"$f":"Menu!$J$29","v":2020},{"$f":"IF(ISBLANK(INDIRECT(\"'\"&F3437&\"'!\"&G3437)),\"\",INDIRECT(\"'\"&F3437&\"'!\"&G3437))","v":""},{"$f":"IF(ISBLANK(INDIRECT(\"'\"&F3437&\"'!\"&H3437)),\"\",IFERROR(VLOOKUP(TEXT(INDIRECT(\"'\"&F3437&\"'!\"&H3437),\"0\"),Notes!$B$5:$C$100,2,FALSE),\"\"))","v":""},"2e","$E$90","$F$90"]
[15381,{"$f":"Menu!$F$29","v":"X"},{"$f":"Menu!$J$29","v":2020},{"$f":"IF(ISBLANK(INDIRECT(\"'\"&F3438&\"'!\"&G3438)),\"\",INDIRECT(\"'\"&F3438&\"'!\"&G3438))","v":""},{"$f":"IF(ISBLANK(INDIRECT(\"'\"&F3438&\"'!\"&H3438)),\"\",IFERROR(VLOOKUP(TEXT(INDIRECT(\"'\"&F3438&\"'!\"&H3438),\"0\"),Notes!$B$5:$C$100,2,FALSE),\"\"))","v":""},"2e","$G$90","$H$90"]
[15382,{"$f":"Menu!$F$29","v":"X"},{"$f":"Menu!$J$29","v":2020},{"$f":"IF(ISBLANK(INDIRECT(\"'\"&F3439&\"'!\"&G3439)),\"\",INDIRECT(\"'\"&F3439&\"'!\"&G3439))","v":""},{"$f":"IF(ISBLANK(INDIRECT(\"'\"&F3439&\"'!\"&H3439)),\"\",IFERROR(VLOOKUP(TEXT(INDIRECT(\"'\"&F3439&\"'!\"&H3439),\"0\"),Notes!$B$5:$C$100,2,FALSE),\"\"))","v":""},"2e","$I$90","$J$90"]
[15383,{"$f":"Menu!$F$29","v":"X"},{"$f":"Menu!$J$29","v":2020},{"$f":"IF(ISBLANK(INDIRECT(\"'\"&F3440&\"'!\"&G3440)),\"\",INDIRECT(\"'\"&F3440&\"'!\"&G3440))","v":""},{"$f":"IF(ISBLANK(INDIRECT(\"'\"&F3440&\"'!\"&H3440)),\"\",IFERROR(VLOOKUP(TEXT(INDIRECT(\"'\"&F3440&\"'!\"&H3440),\"0\"),Notes!$B$5:$C$100,2,FALSE),\"\"))","v":""},"2e","$K$90","$L$90"]
[15384,{"$f":"Menu!$F$29","v":"X"},{"$f":"Menu!$J$29","v":2020},{"$f":"IF(ISBLANK(INDIRECT(\"'\"&F3441&\"'!\"&G3441)),\"\",INDIRECT(\"'\"&F3441&\"'!\"&G3441))","v":""},{"$f":"IF(ISBLANK(INDIRECT(\"'\"&F3441&\"'!\"&H3441)),\"\",IFERROR(VLOOKUP(TEXT(INDIRECT(\"'\"&F3441&\"'!\"&H3441),\"0\"),Notes!$B$5:$C$100,2,FALSE),\"\"))","v":""},"2e","$M$90","$N$90"]
[15385,{"$f":"Menu!$F$29","v":"X"},{"$f":"Menu!$J$29","v":2020},{"$f":"IF(ISBLANK(INDIRECT(\"'\"&F3442&\"'!\"&G3442)),\"\",INDIRECT(\"'\"&F3442&\"'!\"&G3442))","v":""},{"$f":"IF(ISBLANK(INDIRECT(\"'\"&F3442&\"'!\"&H3442)),\"\",IFERROR(VLOOKUP(TEXT(INDIRECT(\"'\"&F3442&\"'!\"&H3442),\"0\"),Notes!$B$5:$C$100,2,FALSE),\"\"))","v":""},"2e","$O$90","$P$90"]
[15386,{"$f":"Menu!$F$29","v":"X"},{"$f":"Menu!$J$29","v":2020},{"$f":"IF(ISBLANK(INDIRECT(\"'\"&F3443&\"'!\"&G3443)),\"\",INDIRECT(\"'\"&F3443&\"'!\"&G3443))","v":""},{"$f":"IF(ISBLANK(INDIRECT(\"'\"&F3443&\"'!\"&H3443)),\"\",IFERROR(VLOOKUP(TEXT(INDIRECT(\"'\"&F3443&\"'!\"&H3443),\"0\"),Notes!$B$5:$C$100,2,FALSE),\"\"))","v":""},"2e","$Q$90","$R$90"]
[15387,{"$f":"Menu!$F$29","v":"X"},{"$f":"Menu!$J$29","v":2020},{"$f":"IF(ISBLANK(INDIRECT(\"'\"&F3444&\"'!\"&G3444)),\"\",INDIRECT(\"'\"&F3444&\"'!\"&G3444))","v":""},{"$f":"IF(ISBLANK(INDIRECT(\"'\"&F3444&\"'!\"&H3444)),\"\",IFERROR(VLOOKUP(TEXT(INDIRECT(\"'\"&F3444&\"'!\"&H3444),\"0\"),Notes!$B$5:$C$100,2,FALSE),\"\"))","v":""},"2e","$S$90","$T$90"]
[15388,{"$f":"Menu!$F$29","v":"X"},{"$f":"Menu!$J$29","v":2020},{"$f":"IF(ISBLANK(INDIRECT(\"'\"&F3445&\"'!\"&G3445)),\"\",INDIRECT(\"'\"&F3445&\"'!\"&G3445))","v":""},{"$f":"IF(ISBLANK(INDIRECT(\"'\"&F3445&\"'!\"&H3445)),\"\",IFERROR(VLOOKUP(TEXT(INDIRECT(\"'\"&F3445&\"'!\"&H3445),\"0\"),Notes!$B$5:$C$100,2,FALSE),\"\"))","v":""},"2e","$U$90","$V$90"]
[15389,{"$f":"Menu!$F$29","v":"X"},{"$f":"Menu!$J$29","v":2020},{"$f":"IF(ISBLANK(INDIRECT(\"'\"&F3446&\"'!\"&G3446)),\"\",INDIRECT(\"'\"&F3446&\"'!\"&G3446))","v":""},{"$f":"IF(ISBLANK(INDIRECT(\"'\"&F3446&\"'!\"&H3446)),\"\",IFERROR(VLOOKUP(TEXT(INDIRECT(\"'\"&F3446&\"'!\"&H3446),\"0\"),Notes!$B$5:$C$100,2,FALSE),\"\"))","v":""},"2e","$W$90","$X$90"]
[15390,{"$f":"Menu!$F$29","v":"X"},{"$f":"Menu!$J$29","v":2020},{"$f":"IF(ISBLANK(INDIRECT(\"'\"&F3447&\"'!\"&G3447)),\"\",INDIRECT(\"'\"&F3447&\"'!\"&G3447))","v":""},{"$f":"IF(ISBLANK(INDIRECT(\"'\"&F3447&\"'!\"&H3447)),\"\",IFERROR(VLOOKUP(TEXT(INDIRECT(\"'\"&F3447&\"'!\"&H3447),\"0\"),Notes!$B$5:$C$100,2,FALSE),\"\"))","v":""},"2e","$Y$90","$Z$90"]
[15391,{"$f":"Menu!$F$29","v":"X"},{"$f":"Menu!$J$29","v":2020},{"$f":"IF(ISBLANK(INDIRECT(\"'\"&F3448&\"'!\"&G3448)),\"\",INDIRECT(\"'\"&F3448&\"'!\"&G3448))","v":""},{"$f":"IF(ISBLANK(INDIRECT(\"'\"&F3448&\"'!\"&H3448)),\"\",IFERROR(VLOOKUP(TEXT(INDIRECT(\"'\"&F3448&\"'!\"&H3448),\"0\"),Notes!$B$5:$C$100,2,FALSE),\"\"))","v":""},"2e","$AA$90","$AB$90"]
[15392,{"$f":"Menu!$F$29","v":"X"},{"$f":"Menu!$J$29","v":2020},{"$f":"IF(ISBLANK(INDIRECT(\"'\"&F3449&\"'!\"&G3449)),\"\",INDIRECT(\"'\"&F3449&\"'!\"&G3449))","v":""},{"$f":"IF(ISBLANK(INDIRECT(\"'\"&F3449&\"'!\"&H3449)),\"\",IFERROR(VLOOKUP(TEXT(INDIRECT(\"'\"&F3449&\"'!\"&H3449),\"0\"),Notes!$B$5:$C$100,2,FALSE),\"\"))","v":""},"2e","$AC$90","$AD$90"]
[15393,{"$f":"Menu!$F$29","v":"X"},{"$f":"Menu!$J$29","v":2020},{"$f":"IF(ISBLANK(INDIRECT(\"'\"&F3450&\"'!\"&G3450)),\"\",INDIRECT(\"'\"&F3450&\"'!\"&G3450))","v":""},{"$f":"IF(ISBLANK(INDIRECT(\"'\"&F3450&\"'!\"&H3450)),\"\",IFERROR(VLOOKUP(TEXT(INDIRECT(\"'\"&F3450&\"'!\"&H3450),\"0\"),Notes!$B$5:$C$100,2,FALSE),\"\"))","v":""},"2e","$AE$90","$AF$90"]
[15394,{"$f":"Menu!$F$29","v":"X"},{"$f":"Menu!$J$29","v":2020},{"$f":"IF(ISBLANK(INDIRECT(\"'\"&F3451&\"'!\"&G3451)),\"\",INDIRECT(\"'\"&F3451&\"'!\"&G3451))","v":""},{"$f":"IF(ISBLANK(INDIRECT(\"'\"&F3451&\"'!\"&H3451)),\"\",IFERROR(VLOOKUP(TEXT(INDIRECT(\"'\"&F3451&\"'!\"&H3451),\"0\"),Notes!$B$5:$C$100,2,FALSE),\"\"))","v":""},"2e","$AG$90","$AH$90"]
[15395,{"$f":"Menu!$F$29","v":"X"},{"$f":"Menu!$J$29","v":2020},{"$f":"IF(ISBLANK(INDIRECT(\"'\"&F3452&\"'!\"&G3452)),\"\",INDIRECT(\"'\"&F3452&\"'!\"&G3452))","v":""},{"$f":"IF(ISBLANK(INDIRECT(\"'\"&F3452&\"'!\"&H3452)),\"\",IFERROR(VLOOKUP(TEXT(INDIRECT(\"'\"&F3452&\"'!\"&H3452),\"0\"),Notes!$B$5:$C$100,2,FALSE),\"\"))","v":""},"2e","$AI$90","$AJ$90"]
[15396,{"$f":"Menu!$F$29","v":"X"},{"$f":"Menu!$J$29","v":2020},{"$f":"IF(ISBLANK(INDIRECT(\"'\"&F3453&\"'!\"&G3453)),\"\",INDIRECT(\"'\"&F3453&\"'!\"&G3453))","v":""},{"$f":"IF(ISBLANK(INDIRECT(\"'\"&F3453&\"'!\"&H3453)),\"\",IFERROR(VLOOKUP(TEXT(INDIRECT(\"'\"&F3453&\"'!\"&H3453),\"0\"),Notes!$B$5:$C$100,2,FALSE),\"\"))","v":""},"2e","$AK$90","$AL$90"]
[15397,{"$f":"Menu!$F$29","v":"X"},{"$f":"Menu!$J$29","v":2020},{"$f":"IF(ISBLANK(INDIRECT(\"'\"&F3454&\"'!\"&G3454)),\"\",INDIRECT(\"'\"&F3454&\"'!\"&G3454))","v":""},{"$f":"IF(ISBLANK(INDIRECT(\"'\"&F3454&\"'!\"&H3454)),\"\",IFERROR(VLOOKUP(TEXT(INDIRECT(\"'\"&F3454&\"'!\"&H3454),\"0\"),Notes!$B$5:$C$100,2,FALSE),\"\"))","v":""},"2e","$AM$90","$AN$90"]
[15398,{"$f":"Menu!$F$29","v":"X"},{"$f":"Menu!$J$29","v":2020},{"$f":"IF(ISBLANK(INDIRECT(\"'\"&F3455&\"'!\"&G3455)),\"\",INDIRECT(\"'\"&F3455&\"'!\"&G3455))","v":""},{"$f":"IF(ISBLANK(INDIRECT(\"'\"&F3455&\"'!\"&H3455)),\"\",IFERROR(VLOOKUP(TEXT(INDIRECT(\"'\"&F3455&\"'!\"&H3455),\"0\"),Notes!$B$5:$C$100,2,FALSE),\"\"))","v":""},"2e","$AO$90","$AP$90"]
[15399,{"$f":"Menu!$F$29","v":"X"},{"$f":"Menu!$J$29","v":2020},{"$f":"IF(ISBLANK(INDIRECT(\"'\"&F3456&\"'!\"&G3456)),\"\",INDIRECT(\"'\"&F3456&\"'!\"&G3456))","v":""},{"$f":"IF(ISBLANK(INDIRECT(\"'\"&F3456&\"'!\"&H3456)),\"\",IFERROR(VLOOKUP(TEXT(INDIRECT(\"'\"&F3456&\"'!\"&H3456),\"0\"),Notes!$B$5:$C$100,2,FALSE),\"\"))","v":""},"2e","$AQ$90","$AR$90"]
[15400,{"$f":"Menu!$F$29","v":"X"},{"$f":"Menu!$J$29","v":2020},{"$f":"IF(ISBLANK(INDIRECT(\"'\"&F3457&\"'!\"&G3457)),\"\",INDIRECT(\"'\"&F3457&\"'!\"&G3457))","v":""},{"$f":"IF(ISBLANK(INDIRECT(\"'\"&F3457&\"'!\"&H3457)),\"\",IFERROR(VLOOKUP(TEXT(INDIRECT(\"'\"&F3457&\"'!\"&H3457),\"0\"),Notes!$B$5:$C$100,2,FALSE),\"\"))","v":""},"2e","$AS$90","$AT$90"]
[15401,{"$f":"Menu!$F$29","v":"X"},{"$f":"Menu!$J$29","v":2020},{"$f":"IF(ISBLANK(INDIRECT(\"'\"&F3458&\"'!\"&G3458)),\"\",INDIRECT(\"'\"&F3458&\"'!\"&G3458))","v":""},{"$f":"IF(ISBLANK(INDIRECT(\"'\"&F3458&\"'!\"&H3458)),\"\",IFERROR(VLOOKUP(TEXT(INDIRECT(\"'\"&F3458&\"'!\"&H3458),\"0\"),Notes!$B$5:$C$100,2,FALSE),\"\"))","v":""},"2e","$AU$90",{"$f":"IF(LEN(TRIM(MID(G3458,4,10)))-LEN(SUBSTITUTE(TRIM(MID(G3458,4,10)),\"$\",\"\"))=0,\"$\"&CHAR(CODE(MID(G3458,2,1))+1)&\"$\"&TRIM(MID(G3458,4,10)),\"$\"&MID(G3458,2,1)&CHAR(CODE(MID(G3458,3,1))+1)&\"$\"&TRIM(MID(G3458,5,11)))","v":"$AV$90"}]
[15402,{"$f":"Menu!$F$29","v":"X"},{"$f":"Menu!$J$29","v":2020},{"$f":"IF(ISBLANK(INDIRECT(\"'\"&F3459&\"'!\"&G3459)),\"\",INDIRECT(\"'\"&F3459&\"'!\"&G3459))","v":""},{"$f":"IF(ISBLANK(INDIRECT(\"'\"&F3459&\"'!\"&H3459)),\"\",IFERROR(VLOOKUP(TEXT(INDIRECT(\"'\"&F3459&\"'!\"&H3459),\"0\"),Notes!$B$5:$C$100,2,FALSE),\"\"))","v":""},"2e","$AW$90","$AX$90"]
[15403,{"$f":"Menu!$F$29","v":"X"},{"$f":"Menu!$J$29","v":2020},{"$f":"IF(ISBLANK(INDIRECT(\"'\"&F3460&\"'!\"&G3460)),\"\",INDIRECT(\"'\"&F3460&\"'!\"&G3460))","v":""},{"$f":"IF(ISBLANK(INDIRECT(\"'\"&F3460&\"'!\"&H3460)),\"\",IFERROR(VLOOKUP(TEXT(INDIRECT(\"'\"&F3460&\"'!\"&H3460),\"0\"),Notes!$B$5:$C$100,2,FALSE),\"\"))","v":""},"2e","$AY$90","$AZ$90"]
[15404,{"$f":"Menu!$F$29","v":"X"},{"$f":"Menu!$J$29","v":2020},{"$f":"IF(ISBLANK(INDIRECT(\"'\"&F3461&\"'!\"&G3461)),\"\",INDIRECT(\"'\"&F3461&\"'!\"&G3461))","v":""},{"$f":"IF(ISBLANK(INDIRECT(\"'\"&F3461&\"'!\"&H3461)),\"\",IFERROR(VLOOKUP(TEXT(INDIRECT(\"'\"&F3461&\"'!\"&H3461),\"0\"),Notes!$B$5:$C$100,2,FALSE),\"\"))","v":""},"2e","$BA$90","$BB$90"]
[15405,{"$f":"Menu!$F$29","v":"X"},{"$f":"Menu!$J$29","v":2020},{"$f":"IF(ISBLANK(INDIRECT(\"'\"&F3462&\"'!\"&G3462)),\"\",INDIRECT(\"'\"&F3462&\"'!\"&G3462))","v":""},{"$f":"IF(ISBLANK(INDIRECT(\"'\"&F3462&\"'!\"&H3462)),\"\",IFERROR(VLOOKUP(TEXT(INDIRECT(\"'\"&F3462&\"'!\"&H3462),\"0\"),Notes!$B$5:$C$100,2,FALSE),\"\"))","v":""},"2e","$BC$90","$BD$90"]
[15406,{"$f":"Menu!$F$29","v":"X"},{"$f":"Menu!$J$29","v":2020},{"$f":"IF(ISBLANK(INDIRECT(\"'\"&F3463&\"'!\"&G3463)),\"\",INDIRECT(\"'\"&F3463&\"'!\"&G3463))","v":""},{"$f":"IF(ISBLANK(INDIRECT(\"'\"&F3463&\"'!\"&H3463)),\"\",IFERROR(VLOOKUP(TEXT(INDIRECT(\"'\"&F3463&\"'!\"&H3463),\"0\"),Notes!$B$5:$C$100,2,FALSE),\"\"))","v":""},"2e","$BE$90","$BF$90"]
[15407,{"$f":"Menu!$F$29","v":"X"},{"$f":"Menu!$J$29","v":2020},{"$f":"IF(ISBLANK(INDIRECT(\"'\"&F3464&\"'!\"&G3464)),\"\",INDIRECT(\"'\"&F3464&\"'!\"&G3464))","v":""},{"$f":"IF(ISBLANK(INDIRECT(\"'\"&F3464&\"'!\"&H3464)),\"\",IFERROR(VLOOKUP(TEXT(INDIRECT(\"'\"&F3464&\"'!\"&H3464),\"0\"),Notes!$B$5:$C$100,2,FALSE),\"\"))","v":""},"2e","$BG$90","$BH$90"]
[15408,{"$f":"Menu!$F$29","v":"X"},{"$f":"Menu!$J$29","v":2020},{"$f":"IF(ISBLANK(INDIRECT(\"'\"&F3465&\"'!\"&G3465)),\"\",INDIRECT(\"'\"&F3465&\"'!\"&G3465))","v":""},{"$f":"IF(ISBLANK(INDIRECT(\"'\"&F3465&\"'!\"&H3465)),\"\",IFERROR(VLOOKUP(TEXT(INDIRECT(\"'\"&F3465&\"'!\"&H3465),\"0\"),Notes!$B$5:$C$100,2,FALSE),\"\"))","v":""},"2e","$BI$90","$BJ$90"]
[15409,{"$f":"Menu!$F$29","v":"X"},{"$f":"Menu!$J$29","v":2020},{"$f":"IF(ISBLANK(INDIRECT(\"'\"&F3466&\"'!\"&G3466)),\"\",INDIRECT(\"'\"&F3466&\"'!\"&G3466))","v":""},{"$f":"IF(ISBLANK(INDIRECT(\"'\"&F3466&\"'!\"&H3466)),\"\",IFERROR(VLOOKUP(TEXT(INDIRECT(\"'\"&F3466&\"'!\"&H3466),\"0\"),Notes!$B$5:$C$100,2,FALSE),\"\"))","v":""},"2e","$BK$90","$BL$90"]
[15410,{"$f":"Menu!$F$29","v":"X"},{"$f":"Menu!$J$29","v":2020},{"$f":"IF(ISBLANK(INDIRECT(\"'\"&F3467&\"'!\"&G3467)),\"\",INDIRECT(\"'\"&F3467&\"'!\"&G3467))","v":""},{"$f":"IF(ISBLANK(INDIRECT(\"'\"&F3467&\"'!\"&H3467)),\"\",IFERROR(VLOOKUP(TEXT(INDIRECT(\"'\"&F3467&\"'!\"&H3467),\"0\"),Notes!$B$5:$C$100,2,FALSE),\"\"))","v":""},"2e","$E$55","$F$55"]
[15411,{"$f":"Menu!$F$29","v":"X"},{"$f":"Menu!$J$29","v":2020},{"$f":"IF(ISBLANK(INDIRECT(\"'\"&F3468&\"'!\"&G3468)),\"\",INDIRECT(\"'\"&F3468&\"'!\"&G3468))","v":""},{"$f":"IF(ISBLANK(INDIRECT(\"'\"&F3468&\"'!\"&H3468)),\"\",IFERROR(VLOOKUP(TEXT(INDIRECT(\"'\"&F3468&\"'!\"&H3468),\"0\"),Notes!$B$5:$C$100,2,FALSE),\"\"))","v":""},"2e","$G$55","$H$55"]
[15412,{"$f":"Menu!$F$29","v":"X"},{"$f":"Menu!$J$29","v":2020},{"$f":"IF(ISBLANK(INDIRECT(\"'\"&F3469&\"'!\"&G3469)),\"\",INDIRECT(\"'\"&F3469&\"'!\"&G3469))","v":""},{"$f":"IF(ISBLANK(INDIRECT(\"'\"&F3469&\"'!\"&H3469)),\"\",IFERROR(VLOOKUP(TEXT(INDIRECT(\"'\"&F3469&\"'!\"&H3469),\"0\"),Notes!$B$5:$C$100,2,FALSE),\"\"))","v":""},"2e","$I$55","$J$55"]
[15413,{"$f":"Menu!$F$29","v":"X"},{"$f":"Menu!$J$29","v":2020},{"$f":"IF(ISBLANK(INDIRECT(\"'\"&F3470&\"'!\"&G3470)),\"\",INDIRECT(\"'\"&F3470&\"'!\"&G3470))","v":""},{"$f":"IF(ISBLANK(INDIRECT(\"'\"&F3470&\"'!\"&H3470)),\"\",IFERROR(VLOOKUP(TEXT(INDIRECT(\"'\"&F3470&\"'!\"&H3470),\"0\"),Notes!$B$5:$C$100,2,FALSE),\"\"))","v":""},"2e","$K$55","$L$55"]
[15414,{"$f":"Menu!$F$29","v":"X"},{"$f":"Menu!$J$29","v":2020},{"$f":"IF(ISBLANK(INDIRECT(\"'\"&F3471&\"'!\"&G3471)),\"\",INDIRECT(\"'\"&F3471&\"'!\"&G3471))","v":""},{"$f":"IF(ISBLANK(INDIRECT(\"'\"&F3471&\"'!\"&H3471)),\"\",IFERROR(VLOOKUP(TEXT(INDIRECT(\"'\"&F3471&\"'!\"&H3471),\"0\"),Notes!$B$5:$C$100,2,FALSE),\"\"))","v":""},"2e","$M$55","$N$55"]
[15415,{"$f":"Menu!$F$29","v":"X"},{"$f":"Menu!$J$29","v":2020},{"$f":"IF(ISBLANK(INDIRECT(\"'\"&F3472&\"'!\"&G3472)),\"\",INDIRECT(\"'\"&F3472&\"'!\"&G3472))","v":""},{"$f":"IF(ISBLANK(INDIRECT(\"'\"&F3472&\"'!\"&H3472)),\"\",IFERROR(VLOOKUP(TEXT(INDIRECT(\"'\"&F3472&\"'!\"&H3472),\"0\"),Notes!$B$5:$C$100,2,FALSE),\"\"))","v":""},"2e","$O$55","$P$55"]
[15416,{"$f":"Menu!$F$29","v":"X"},{"$f":"Menu!$J$29","v":2020},{"$f":"IF(ISBLANK(INDIRECT(\"'\"&F3473&\"'!\"&G3473)),\"\",INDIRECT(\"'\"&F3473&\"'!\"&G3473))","v":""},{"$f":"IF(ISBLANK(INDIRECT(\"'\"&F3473&\"'!\"&H3473)),\"\",IFERROR(VLOOKUP(TEXT(INDIRECT(\"'\"&F3473&\"'!\"&H3473),\"0\"),Notes!$B$5:$C$100,2,FALSE),\"\"))","v":""},"2e","$Q$55","$R$55"]
[15417,{"$f":"Menu!$F$29","v":"X"},{"$f":"Menu!$J$29","v":2020},{"$f":"IF(ISBLANK(INDIRECT(\"'\"&F3474&\"'!\"&G3474)),\"\",INDIRECT(\"'\"&F3474&\"'!\"&G3474))","v":""},{"$f":"IF(ISBLANK(INDIRECT(\"'\"&F3474&\"'!\"&H3474)),\"\",IFERROR(VLOOKUP(TEXT(INDIRECT(\"'\"&F3474&\"'!\"&H3474),\"0\"),Notes!$B$5:$C$100,2,FALSE),\"\"))","v":""},"2e","$S$55","$T$55"]
[15418,{"$f":"Menu!$F$29","v":"X"},{"$f":"Menu!$J$29","v":2020},{"$f":"IF(ISBLANK(INDIRECT(\"'\"&F3475&\"'!\"&G3475)),\"\",INDIRECT(\"'\"&F3475&\"'!\"&G3475))","v":""},{"$f":"IF(ISBLANK(INDIRECT(\"'\"&F3475&\"'!\"&H3475)),\"\",IFERROR(VLOOKUP(TEXT(INDIRECT(\"'\"&F3475&\"'!\"&H3475),\"0\"),Notes!$B$5:$C$100,2,FALSE),\"\"))","v":""},"2e","$U$55","$V$55"]
[15419,{"$f":"Menu!$F$29","v":"X"},{"$f":"Menu!$J$29","v":2020},{"$f":"IF(ISBLANK(INDIRECT(\"'\"&F3476&\"'!\"&G3476)),\"\",INDIRECT(\"'\"&F3476&\"'!\"&G3476))","v":""},{"$f":"IF(ISBLANK(INDIRECT(\"'\"&F3476&\"'!\"&H3476)),\"\",IFERROR(VLOOKUP(TEXT(INDIRECT(\"'\"&F3476&\"'!\"&H3476),\"0\"),Notes!$B$5:$C$100,2,FALSE),\"\"))","v":""},"2e","$W$55","$X$55"]
[15420,{"$f":"Menu!$F$29","v":"X"},{"$f":"Menu!$J$29","v":2020},{"$f":"IF(ISBLANK(INDIRECT(\"'\"&F3477&\"'!\"&G3477)),\"\",INDIRECT(\"'\"&F3477&\"'!\"&G3477))","v":""},{"$f":"IF(ISBLANK(INDIRECT(\"'\"&F3477&\"'!\"&H3477)),\"\",IFERROR(VLOOKUP(TEXT(INDIRECT(\"'\"&F3477&\"'!\"&H3477),\"0\"),Notes!$B$5:$C$100,2,FALSE),\"\"))","v":""},"2e","$Y$55","$Z$55"]
[15421,{"$f":"Menu!$F$29","v":"X"},{"$f":"Menu!$J$29","v":2020},{"$f":"IF(ISBLANK(INDIRECT(\"'\"&F3478&\"'!\"&G3478)),\"\",INDIRECT(\"'\"&F3478&\"'!\"&G3478))","v":""},{"$f":"IF(ISBLANK(INDIRECT(\"'\"&F3478&\"'!\"&H3478)),\"\",IFERROR(VLOOKUP(TEXT(INDIRECT(\"'\"&F3478&\"'!\"&H3478),\"0\"),Notes!$B$5:$C$100,2,FALSE),\"\"))","v":""},"2e","$AA$55","$AB$55"]
[15422,{"$f":"Menu!$F$29","v":"X"},{"$f":"Menu!$J$29","v":2020},{"$f":"IF(ISBLANK(INDIRECT(\"'\"&F3479&\"'!\"&G3479)),\"\",INDIRECT(\"'\"&F3479&\"'!\"&G3479))","v":""},{"$f":"IF(ISBLANK(INDIRECT(\"'\"&F3479&\"'!\"&H3479)),\"\",IFERROR(VLOOKUP(TEXT(INDIRECT(\"'\"&F3479&\"'!\"&H3479),\"0\"),Notes!$B$5:$C$100,2,FALSE),\"\"))","v":""},"2e","$AC$55","$AD$55"]
[15423,{"$f":"Menu!$F$29","v":"X"},{"$f":"Menu!$J$29","v":2020},{"$f":"IF(ISBLANK(INDIRECT(\"'\"&F3480&\"'!\"&G3480)),\"\",INDIRECT(\"'\"&F3480&\"'!\"&G3480))","v":""},{"$f":"IF(ISBLANK(INDIRECT(\"'\"&F3480&\"'!\"&H3480)),\"\",IFERROR(VLOOKUP(TEXT(INDIRECT(\"'\"&F3480&\"'!\"&H3480),\"0\"),Notes!$B$5:$C$100,2,FALSE),\"\"))","v":""},"2e","$AE$55","$AF$55"]
[15424,{"$f":"Menu!$F$29","v":"X"},{"$f":"Menu!$J$29","v":2020},{"$f":"IF(ISBLANK(INDIRECT(\"'\"&F3481&\"'!\"&G3481)),\"\",INDIRECT(\"'\"&F3481&\"'!\"&G3481))","v":""},{"$f":"IF(ISBLANK(INDIRECT(\"'\"&F3481&\"'!\"&H3481)),\"\",IFERROR(VLOOKUP(TEXT(INDIRECT(\"'\"&F3481&\"'!\"&H3481),\"0\"),Notes!$B$5:$C$100,2,FALSE),\"\"))","v":""},"2e","$AG$55","$AH$55"]
[15425,{"$f":"Menu!$F$29","v":"X"},{"$f":"Menu!$J$29","v":2020},{"$f":"IF(ISBLANK(INDIRECT(\"'\"&F3482&\"'!\"&G3482)),\"\",INDIRECT(\"'\"&F3482&\"'!\"&G3482))","v":""},{"$f":"IF(ISBLANK(INDIRECT(\"'\"&F3482&\"'!\"&H3482)),\"\",IFERROR(VLOOKUP(TEXT(INDIRECT(\"'\"&F3482&\"'!\"&H3482),\"0\"),Notes!$B$5:$C$100,2,FALSE),\"\"))","v":""},"2e","$AI$55","$AJ$55"]
[15426,{"$f":"Menu!$F$29","v":"X"},{"$f":"Menu!$J$29","v":2020},{"$f":"IF(ISBLANK(INDIRECT(\"'\"&F3483&\"'!\"&G3483)),\"\",INDIRECT(\"'\"&F3483&\"'!\"&G3483))","v":""},{"$f":"IF(ISBLANK(INDIRECT(\"'\"&F3483&\"'!\"&H3483)),\"\",IFERROR(VLOOKUP(TEXT(INDIRECT(\"'\"&F3483&\"'!\"&H3483),\"0\"),Notes!$B$5:$C$100,2,FALSE),\"\"))","v":""},"2e","$AK$55","$AL$55"]
[15427,{"$f":"Menu!$F$29","v":"X"},{"$f":"Menu!$J$29","v":2020},{"$f":"IF(ISBLANK(INDIRECT(\"'\"&F3484&\"'!\"&G3484)),\"\",INDIRECT(\"'\"&F3484&\"'!\"&G3484))","v":""},{"$f":"IF(ISBLANK(INDIRECT(\"'\"&F3484&\"'!\"&H3484)),\"\",IFERROR(VLOOKUP(TEXT(INDIRECT(\"'\"&F3484&\"'!\"&H3484),\"0\"),Notes!$B$5:$C$100,2,FALSE),\"\"))","v":""},"2e","$AM$55","$AN$55"]
[15428,{"$f":"Menu!$F$29","v":"X"},{"$f":"Menu!$J$29","v":2020},{"$f":"IF(ISBLANK(INDIRECT(\"'\"&F3485&\"'!\"&G3485)),\"\",INDIRECT(\"'\"&F3485&\"'!\"&G3485))","v":""},{"$f":"IF(ISBLANK(INDIRECT(\"'\"&F3485&\"'!\"&H3485)),\"\",IFERROR(VLOOKUP(TEXT(INDIRECT(\"'\"&F3485&\"'!\"&H3485),\"0\"),Notes!$B$5:$C$100,2,FALSE),\"\"))","v":""},"2e","$AO$55","$AP$55"]
[15429,{"$f":"Menu!$F$29","v":"X"},{"$f":"Menu!$J$29","v":2020},{"$f":"IF(ISBLANK(INDIRECT(\"'\"&F3486&\"'!\"&G3486)),\"\",INDIRECT(\"'\"&F3486&\"'!\"&G3486))","v":""},{"$f":"IF(ISBLANK(INDIRECT(\"'\"&F3486&\"'!\"&H3486)),\"\",IFERROR(VLOOKUP(TEXT(INDIRECT(\"'\"&F3486&\"'!\"&H3486),\"0\"),Notes!$B$5:$C$100,2,FALSE),\"\"))","v":""},"2e","$AQ$55","$AR$55"]
[15430,{"$f":"Menu!$F$29","v":"X"},{"$f":"Menu!$J$29","v":2020},{"$f":"IF(ISBLANK(INDIRECT(\"'\"&F3487&\"'!\"&G3487)),\"\",INDIRECT(\"'\"&F3487&\"'!\"&G3487))","v":""},{"$f":"IF(ISBLANK(INDIRECT(\"'\"&F3487&\"'!\"&H3487)),\"\",IFERROR(VLOOKUP(TEXT(INDIRECT(\"'\"&F3487&\"'!\"&H3487),\"0\"),Notes!$B$5:$C$100,2,FALSE),\"\"))","v":""},"2e","$AS$55","$AT$55"]
[15431,{"$f":"Menu!$F$29","v":"X"},{"$f":"Menu!$J$29","v":2020},{"$f":"IF(ISBLANK(INDIRECT(\"'\"&F3488&\"'!\"&G3488)),\"\",INDIRECT(\"'\"&F3488&\"'!\"&G3488))","v":""},{"$f":"IF(ISBLANK(INDIRECT(\"'\"&F3488&\"'!\"&H3488)),\"\",IFERROR(VLOOKUP(TEXT(INDIRECT(\"'\"&F3488&\"'!\"&H3488),\"0\"),Notes!$B$5:$C$100,2,FALSE),\"\"))","v":""},"2e","$AU$55","$AV$55"]
[15432,{"$f":"Menu!$F$29","v":"X"},{"$f":"Menu!$J$29","v":2020},{"$f":"IF(ISBLANK(INDIRECT(\"'\"&F3489&\"'!\"&G3489)),\"\",INDIRECT(\"'\"&F3489&\"'!\"&G3489))","v":""},{"$f":"IF(ISBLANK(INDIRECT(\"'\"&F3489&\"'!\"&H3489)),\"\",IFERROR(VLOOKUP(TEXT(INDIRECT(\"'\"&F3489&\"'!\"&H3489),\"0\"),Notes!$B$5:$C$100,2,FALSE),\"\"))","v":""},"2e","$AW$55","$AX$55"]
[15433,{"$f":"Menu!$F$29","v":"X"},{"$f":"Menu!$J$29","v":2020},{"$f":"IF(ISBLANK(INDIRECT(\"'\"&F3490&\"'!\"&G3490)),\"\",INDIRECT(\"'\"&F3490&\"'!\"&G3490))","v":""},{"$f":"IF(ISBLANK(INDIRECT(\"'\"&F3490&\"'!\"&H3490)),\"\",IFERROR(VLOOKUP(TEXT(INDIRECT(\"'\"&F3490&\"'!\"&H3490),\"0\"),Notes!$B$5:$C$100,2,FALSE),\"\"))","v":""},"2e","$AY$55","$AZ$55"]
[15434,{"$f":"Menu!$F$29","v":"X"},{"$f":"Menu!$J$29","v":2020},{"$f":"IF(ISBLANK(INDIRECT(\"'\"&F3491&\"'!\"&G3491)),\"\",INDIRECT(\"'\"&F3491&\"'!\"&G3491))","v":""},{"$f":"IF(ISBLANK(INDIRECT(\"'\"&F3491&\"'!\"&H3491)),\"\",IFERROR(VLOOKUP(TEXT(INDIRECT(\"'\"&F3491&\"'!\"&H3491),\"0\"),Notes!$B$5:$C$100,2,FALSE),\"\"))","v":""},"2e","$BA$55","$BB$55"]
[15435,{"$f":"Menu!$F$29","v":"X"},{"$f":"Menu!$J$29","v":2020},{"$f":"IF(ISBLANK(INDIRECT(\"'\"&F3492&\"'!\"&G3492)),\"\",INDIRECT(\"'\"&F3492&\"'!\"&G3492))","v":""},{"$f":"IF(ISBLANK(INDIRECT(\"'\"&F3492&\"'!\"&H3492)),\"\",IFERROR(VLOOKUP(TEXT(INDIRECT(\"'\"&F3492&\"'!\"&H3492),\"0\"),Notes!$B$5:$C$100,2,FALSE),\"\"))","v":""},"2e","$BC$55","$BD$55"]
[15436,{"$f":"Menu!$F$29","v":"X"},{"$f":"Menu!$J$29","v":2020},{"$f":"IF(ISBLANK(INDIRECT(\"'\"&F3493&\"'!\"&G3493)),\"\",INDIRECT(\"'\"&F3493&\"'!\"&G3493))","v":""},{"$f":"IF(ISBLANK(INDIRECT(\"'\"&F3493&\"'!\"&H3493)),\"\",IFERROR(VLOOKUP(TEXT(INDIRECT(\"'\"&F3493&\"'!\"&H3493),\"0\"),Notes!$B$5:$C$100,2,FALSE),\"\"))","v":""},"2e","$BE$55","$BF$55"]
[15437,{"$f":"Menu!$F$29","v":"X"},{"$f":"Menu!$J$29","v":2020},{"$f":"IF(ISBLANK(INDIRECT(\"'\"&F3494&\"'!\"&G3494)),\"\",INDIRECT(\"'\"&F3494&\"'!\"&G3494))","v":""},{"$f":"IF(ISBLANK(INDIRECT(\"'\"&F3494&\"'!\"&H3494)),\"\",IFERROR(VLOOKUP(TEXT(INDIRECT(\"'\"&F3494&\"'!\"&H3494),\"0\"),Notes!$B$5:$C$100,2,FALSE),\"\"))","v":""},"2e","$BG$55","$BH$55"]
[15438,{"$f":"Menu!$F$29","v":"X"},{"$f":"Menu!$J$29","v":2020},{"$f":"IF(ISBLANK(INDIRECT(\"'\"&F3495&\"'!\"&G3495)),\"\",INDIRECT(\"'\"&F3495&\"'!\"&G3495))","v":""},{"$f":"IF(ISBLANK(INDIRECT(\"'\"&F3495&\"'!\"&H3495)),\"\",IFERROR(VLOOKUP(TEXT(INDIRECT(\"'\"&F3495&\"'!\"&H3495),\"0\"),Notes!$B$5:$C$100,2,FALSE),\"\"))","v":""},"2e","$BI$55","$BJ$55"]
[15439,{"$f":"Menu!$F$29","v":"X"},{"$f":"Menu!$J$29","v":2020},{"$f":"IF(ISBLANK(INDIRECT(\"'\"&F3496&\"'!\"&G3496)),\"\",INDIRECT(\"'\"&F3496&\"'!\"&G3496))","v":""},{"$f":"IF(ISBLANK(INDIRECT(\"'\"&F3496&\"'!\"&H3496)),\"\",IFERROR(VLOOKUP(TEXT(INDIRECT(\"'\"&F3496&\"'!\"&H3496),\"0\"),Notes!$B$5:$C$100,2,FALSE),\"\"))","v":""},"2e","$BK$55","$BL$55"]
[15470,{"$f":"Menu!$F$29","v":"X"},{"$f":"Menu!$J$29","v":2020},{"$f":"IF(ISBLANK(INDIRECT(\"'\"&F3497&\"'!\"&G3497)),\"\",INDIRECT(\"'\"&F3497&\"'!\"&G3497))","v":""},{"$f":"IF(ISBLANK(INDIRECT(\"'\"&F3497&\"'!\"&H3497)),\"\",IFERROR(VLOOKUP(TEXT(INDIRECT(\"'\"&F3497&\"'!\"&H3497),\"0\"),Notes!$B$5:$C$100,2,FALSE),\"\"))","v":""},"2e","$E$102","$F$102"]
[15471,{"$f":"Menu!$F$29","v":"X"},{"$f":"Menu!$J$29","v":2020},{"$f":"IF(ISBLANK(INDIRECT(\"'\"&F3498&\"'!\"&G3498)),\"\",INDIRECT(\"'\"&F3498&\"'!\"&G3498))","v":""},{"$f":"IF(ISBLANK(INDIRECT(\"'\"&F3498&\"'!\"&H3498)),\"\",IFERROR(VLOOKUP(TEXT(INDIRECT(\"'\"&F3498&\"'!\"&H3498),\"0\"),Notes!$B$5:$C$100,2,FALSE),\"\"))","v":""},"2e","$G$102","$H$102"]
[15472,{"$f":"Menu!$F$29","v":"X"},{"$f":"Menu!$J$29","v":2020},{"$f":"IF(ISBLANK(INDIRECT(\"'\"&F3499&\"'!\"&G3499)),\"\",INDIRECT(\"'\"&F3499&\"'!\"&G3499))","v":""},{"$f":"IF(ISBLANK(INDIRECT(\"'\"&F3499&\"'!\"&H3499)),\"\",IFERROR(VLOOKUP(TEXT(INDIRECT(\"'\"&F3499&\"'!\"&H3499),\"0\"),Notes!$B$5:$C$100,2,FALSE),\"\"))","v":""},"2e","$I$102","$J$102"]
[15473,{"$f":"Menu!$F$29","v":"X"},{"$f":"Menu!$J$29","v":2020},{"$f":"IF(ISBLANK(INDIRECT(\"'\"&F3500&\"'!\"&G3500)),\"\",INDIRECT(\"'\"&F3500&\"'!\"&G3500))","v":""},{"$f":"IF(ISBLANK(INDIRECT(\"'\"&F3500&\"'!\"&H3500)),\"\",IFERROR(VLOOKUP(TEXT(INDIRECT(\"'\"&F3500&\"'!\"&H3500),\"0\"),Notes!$B$5:$C$100,2,FALSE),\"\"))","v":""},"2e","$K$102","$L$102"]
[15474,{"$f":"Menu!$F$29","v":"X"},{"$f":"Menu!$J$29","v":2020},{"$f":"IF(ISBLANK(INDIRECT(\"'\"&F3501&\"'!\"&G3501)),\"\",INDIRECT(\"'\"&F3501&\"'!\"&G3501))","v":""},{"$f":"IF(ISBLANK(INDIRECT(\"'\"&F3501&\"'!\"&H3501)),\"\",IFERROR(VLOOKUP(TEXT(INDIRECT(\"'\"&F3501&\"'!\"&H3501),\"0\"),Notes!$B$5:$C$100,2,FALSE),\"\"))","v":""},"2e","$M$102","$N$102"]
[15475,{"$f":"Menu!$F$29","v":"X"},{"$f":"Menu!$J$29","v":2020},{"$f":"IF(ISBLANK(INDIRECT(\"'\"&F3502&\"'!\"&G3502)),\"\",INDIRECT(\"'\"&F3502&\"'!\"&G3502))","v":""},{"$f":"IF(ISBLANK(INDIRECT(\"'\"&F3502&\"'!\"&H3502)),\"\",IFERROR(VLOOKUP(TEXT(INDIRECT(\"'\"&F3502&\"'!\"&H3502),\"0\"),Notes!$B$5:$C$100,2,FALSE),\"\"))","v":""},"2e","$O$102","$P$102"]
[15476,{"$f":"Menu!$F$29","v":"X"},{"$f":"Menu!$J$29","v":2020},{"$f":"IF(ISBLANK(INDIRECT(\"'\"&F3503&\"'!\"&G3503)),\"\",INDIRECT(\"'\"&F3503&\"'!\"&G3503))","v":""},{"$f":"IF(ISBLANK(INDIRECT(\"'\"&F3503&\"'!\"&H3503)),\"\",IFERROR(VLOOKUP(TEXT(INDIRECT(\"'\"&F3503&\"'!\"&H3503),\"0\"),Notes!$B$5:$C$100,2,FALSE),\"\"))","v":""},"2e","$Q$102","$R$102"]
[15477,{"$f":"Menu!$F$29","v":"X"},{"$f":"Menu!$J$29","v":2020},{"$f":"IF(ISBLANK(INDIRECT(\"'\"&F3504&\"'!\"&G3504)),\"\",INDIRECT(\"'\"&F3504&\"'!\"&G3504))","v":""},{"$f":"IF(ISBLANK(INDIRECT(\"'\"&F3504&\"'!\"&H3504)),\"\",IFERROR(VLOOKUP(TEXT(INDIRECT(\"'\"&F3504&\"'!\"&H3504),\"0\"),Notes!$B$5:$C$100,2,FALSE),\"\"))","v":""},"2e","$S$102","$T$102"]
[15478,{"$f":"Menu!$F$29","v":"X"},{"$f":"Menu!$J$29","v":2020},{"$f":"IF(ISBLANK(INDIRECT(\"'\"&F3505&\"'!\"&G3505)),\"\",INDIRECT(\"'\"&F3505&\"'!\"&G3505))","v":""},{"$f":"IF(ISBLANK(INDIRECT(\"'\"&F3505&\"'!\"&H3505)),\"\",IFERROR(VLOOKUP(TEXT(INDIRECT(\"'\"&F3505&\"'!\"&H3505),\"0\"),Notes!$B$5:$C$100,2,FALSE),\"\"))","v":""},"2e","$U$102","$V$102"]
[15479,{"$f":"Menu!$F$29","v":"X"},{"$f":"Menu!$J$29","v":2020},{"$f":"IF(ISBLANK(INDIRECT(\"'\"&F3506&\"'!\"&G3506)),\"\",INDIRECT(\"'\"&F3506&\"'!\"&G3506))","v":""},{"$f":"IF(ISBLANK(INDIRECT(\"'\"&F3506&\"'!\"&H3506)),\"\",IFERROR(VLOOKUP(TEXT(INDIRECT(\"'\"&F3506&\"'!\"&H3506),\"0\"),Notes!$B$5:$C$100,2,FALSE),\"\"))","v":""},"2e","$W$102","$X$102"]
[15480,{"$f":"Menu!$F$29","v":"X"},{"$f":"Menu!$J$29","v":2020},{"$f":"IF(ISBLANK(INDIRECT(\"'\"&F3507&\"'!\"&G3507)),\"\",INDIRECT(\"'\"&F3507&\"'!\"&G3507))","v":""},{"$f":"IF(ISBLANK(INDIRECT(\"'\"&F3507&\"'!\"&H3507)),\"\",IFERROR(VLOOKUP(TEXT(INDIRECT(\"'\"&F3507&\"'!\"&H3507),\"0\"),Notes!$B$5:$C$100,2,FALSE),\"\"))","v":""},"2e","$Y$102","$Z$102"]
[15481,{"$f":"Menu!$F$29","v":"X"},{"$f":"Menu!$J$29","v":2020},{"$f":"IF(ISBLANK(INDIRECT(\"'\"&F3508&\"'!\"&G3508)),\"\",INDIRECT(\"'\"&F3508&\"'!\"&G3508))","v":""},{"$f":"IF(ISBLANK(INDIRECT(\"'\"&F3508&\"'!\"&H3508)),\"\",IFERROR(VLOOKUP(TEXT(INDIRECT(\"'\"&F3508&\"'!\"&H3508),\"0\"),Notes!$B$5:$C$100,2,FALSE),\"\"))","v":""},"2e","$AA$102","$AB$102"]
[15482,{"$f":"Menu!$F$29","v":"X"},{"$f":"Menu!$J$29","v":2020},{"$f":"IF(ISBLANK(INDIRECT(\"'\"&F3509&\"'!\"&G3509)),\"\",INDIRECT(\"'\"&F3509&\"'!\"&G3509))","v":""},{"$f":"IF(ISBLANK(INDIRECT(\"'\"&F3509&\"'!\"&H3509)),\"\",IFERROR(VLOOKUP(TEXT(INDIRECT(\"'\"&F3509&\"'!\"&H3509),\"0\"),Notes!$B$5:$C$100,2,FALSE),\"\"))","v":""},"2e","$AC$102","$AD$102"]
[15483,{"$f":"Menu!$F$29","v":"X"},{"$f":"Menu!$J$29","v":2020},{"$f":"IF(ISBLANK(INDIRECT(\"'\"&F3510&\"'!\"&G3510)),\"\",INDIRECT(\"'\"&F3510&\"'!\"&G3510))","v":""},{"$f":"IF(ISBLANK(INDIRECT(\"'\"&F3510&\"'!\"&H3510)),\"\",IFERROR(VLOOKUP(TEXT(INDIRECT(\"'\"&F3510&\"'!\"&H3510),\"0\"),Notes!$B$5:$C$100,2,FALSE),\"\"))","v":""},"2e","$AE$102","$AF$102"]
[15484,{"$f":"Menu!$F$29","v":"X"},{"$f":"Menu!$J$29","v":2020},{"$f":"IF(ISBLANK(INDIRECT(\"'\"&F3511&\"'!\"&G3511)),\"\",INDIRECT(\"'\"&F3511&\"'!\"&G3511))","v":""},{"$f":"IF(ISBLANK(INDIRECT(\"'\"&F3511&\"'!\"&H3511)),\"\",IFERROR(VLOOKUP(TEXT(INDIRECT(\"'\"&F3511&\"'!\"&H3511),\"0\"),Notes!$B$5:$C$100,2,FALSE),\"\"))","v":""},"2e","$AG$102","$AH$102"]
[15485,{"$f":"Menu!$F$29","v":"X"},{"$f":"Menu!$J$29","v":2020},{"$f":"IF(ISBLANK(INDIRECT(\"'\"&F3512&\"'!\"&G3512)),\"\",INDIRECT(\"'\"&F3512&\"'!\"&G3512))","v":""},{"$f":"IF(ISBLANK(INDIRECT(\"'\"&F3512&\"'!\"&H3512)),\"\",IFERROR(VLOOKUP(TEXT(INDIRECT(\"'\"&F3512&\"'!\"&H3512),\"0\"),Notes!$B$5:$C$100,2,FALSE),\"\"))","v":""},"2e","$AI$102","$AJ$102"]
[15486,{"$f":"Menu!$F$29","v":"X"},{"$f":"Menu!$J$29","v":2020},{"$f":"IF(ISBLANK(INDIRECT(\"'\"&F3513&\"'!\"&G3513)),\"\",INDIRECT(\"'\"&F3513&\"'!\"&G3513))","v":""},{"$f":"IF(ISBLANK(INDIRECT(\"'\"&F3513&\"'!\"&H3513)),\"\",IFERROR(VLOOKUP(TEXT(INDIRECT(\"'\"&F3513&\"'!\"&H3513),\"0\"),Notes!$B$5:$C$100,2,FALSE),\"\"))","v":""},"2e","$AK$102","$AL$102"]
[15487,{"$f":"Menu!$F$29","v":"X"},{"$f":"Menu!$J$29","v":2020},{"$f":"IF(ISBLANK(INDIRECT(\"'\"&F3514&\"'!\"&G3514)),\"\",INDIRECT(\"'\"&F3514&\"'!\"&G3514))","v":""},{"$f":"IF(ISBLANK(INDIRECT(\"'\"&F3514&\"'!\"&H3514)),\"\",IFERROR(VLOOKUP(TEXT(INDIRECT(\"'\"&F3514&\"'!\"&H3514),\"0\"),Notes!$B$5:$C$100,2,FALSE),\"\"))","v":""},"2e","$AM$102","$AN$102"]
[15488,{"$f":"Menu!$F$29","v":"X"},{"$f":"Menu!$J$29","v":2020},{"$f":"IF(ISBLANK(INDIRECT(\"'\"&F3515&\"'!\"&G3515)),\"\",INDIRECT(\"'\"&F3515&\"'!\"&G3515))","v":""},{"$f":"IF(ISBLANK(INDIRECT(\"'\"&F3515&\"'!\"&H3515)),\"\",IFERROR(VLOOKUP(TEXT(INDIRECT(\"'\"&F3515&\"'!\"&H3515),\"0\"),Notes!$B$5:$C$100,2,FALSE),\"\"))","v":""},"2e","$AO$102","$AP$102"]
[15489,{"$f":"Menu!$F$29","v":"X"},{"$f":"Menu!$J$29","v":2020},{"$f":"IF(ISBLANK(INDIRECT(\"'\"&F3516&\"'!\"&G3516)),\"\",INDIRECT(\"'\"&F3516&\"'!\"&G3516))","v":""},{"$f":"IF(ISBLANK(INDIRECT(\"'\"&F3516&\"'!\"&H3516)),\"\",IFERROR(VLOOKUP(TEXT(INDIRECT(\"'\"&F3516&\"'!\"&H3516),\"0\"),Notes!$B$5:$C$100,2,FALSE),\"\"))","v":""},"2e","$AQ$102","$AR$102"]
[15490,{"$f":"Menu!$F$29","v":"X"},{"$f":"Menu!$J$29","v":2020},{"$f":"IF(ISBLANK(INDIRECT(\"'\"&F3517&\"'!\"&G3517)),\"\",INDIRECT(\"'\"&F3517&\"'!\"&G3517))","v":""},{"$f":"IF(ISBLANK(INDIRECT(\"'\"&F3517&\"'!\"&H3517)),\"\",IFERROR(VLOOKUP(TEXT(INDIRECT(\"'\"&F3517&\"'!\"&H3517),\"0\"),Notes!$B$5:$C$100,2,FALSE),\"\"))","v":""},"2e","$AS$102","$AT$102"]
[15491,{"$f":"Menu!$F$29","v":"X"},{"$f":"Menu!$J$29","v":2020},{"$f":"IF(ISBLANK(INDIRECT(\"'\"&F3518&\"'!\"&G3518)),\"\",INDIRECT(\"'\"&F3518&\"'!\"&G3518))","v":""},{"$f":"IF(ISBLANK(INDIRECT(\"'\"&F3518&\"'!\"&H3518)),\"\",IFERROR(VLOOKUP(TEXT(INDIRECT(\"'\"&F3518&\"'!\"&H3518),\"0\"),Notes!$B$5:$C$100,2,FALSE),\"\"))","v":""},"2e","$AU$102","$AV$102"]
[15492,{"$f":"Menu!$F$29","v":"X"},{"$f":"Menu!$J$29","v":2020},{"$f":"IF(ISBLANK(INDIRECT(\"'\"&F3519&\"'!\"&G3519)),\"\",INDIRECT(\"'\"&F3519&\"'!\"&G3519))","v":""},{"$f":"IF(ISBLANK(INDIRECT(\"'\"&F3519&\"'!\"&H3519)),\"\",IFERROR(VLOOKUP(TEXT(INDIRECT(\"'\"&F3519&\"'!\"&H3519),\"0\"),Notes!$B$5:$C$100,2,FALSE),\"\"))","v":""},"2e","$AW$102","$AX$102"]
[15493,{"$f":"Menu!$F$29","v":"X"},{"$f":"Menu!$J$29","v":2020},{"$f":"IF(ISBLANK(INDIRECT(\"'\"&F3520&\"'!\"&G3520)),\"\",INDIRECT(\"'\"&F3520&\"'!\"&G3520))","v":""},{"$f":"IF(ISBLANK(INDIRECT(\"'\"&F3520&\"'!\"&H3520)),\"\",IFERROR(VLOOKUP(TEXT(INDIRECT(\"'\"&F3520&\"'!\"&H3520),\"0\"),Notes!$B$5:$C$100,2,FALSE),\"\"))","v":""},"2e","$AY$102","$AZ$102"]
[15494,{"$f":"Menu!$F$29","v":"X"},{"$f":"Menu!$J$29","v":2020},{"$f":"IF(ISBLANK(INDIRECT(\"'\"&F3521&\"'!\"&G3521)),\"\",INDIRECT(\"'\"&F3521&\"'!\"&G3521))","v":""},{"$f":"IF(ISBLANK(INDIRECT(\"'\"&F3521&\"'!\"&H3521)),\"\",IFERROR(VLOOKUP(TEXT(INDIRECT(\"'\"&F3521&\"'!\"&H3521),\"0\"),Notes!$B$5:$C$100,2,FALSE),\"\"))","v":""},"2e","$BA$102","$BB$102"]
[15495,{"$f":"Menu!$F$29","v":"X"},{"$f":"Menu!$J$29","v":2020},{"$f":"IF(ISBLANK(INDIRECT(\"'\"&F3522&\"'!\"&G3522)),\"\",INDIRECT(\"'\"&F3522&\"'!\"&G3522))","v":""},{"$f":"IF(ISBLANK(INDIRECT(\"'\"&F3522&\"'!\"&H3522)),\"\",IFERROR(VLOOKUP(TEXT(INDIRECT(\"'\"&F3522&\"'!\"&H3522),\"0\"),Notes!$B$5:$C$100,2,FALSE),\"\"))","v":""},"2e","$BC$102",{"$f":"IF(LEN(TRIM(MID(G3522,4,10)))-LEN(SUBSTITUTE(TRIM(MID(G3522,4,10)),\"$\",\"\"))=0,\"$\"&CHAR(CODE(MID(G3522,2,1))+1)&\"$\"&TRIM(MID(G3522,4,10)),\"$\"&MID(G3522,2,1)&CHAR(CODE(MID(G3522,3,1))+1)&\"$\"&TRIM(MID(G3522,5,11)))","v":"$BD$102"}]
[15496,{"$f":"Menu!$F$29","v":"X"},{"$f":"Menu!$J$29","v":2020},{"$f":"IF(ISBLANK(INDIRECT(\"'\"&F3523&\"'!\"&G3523)),\"\",INDIRECT(\"'\"&F3523&\"'!\"&G3523))","v":""},{"$f":"IF(ISBLANK(INDIRECT(\"'\"&F3523&\"'!\"&H3523)),\"\",IFERROR(VLOOKUP(TEXT(INDIRECT(\"'\"&F3523&\"'!\"&H3523),\"0\"),Notes!$B$5:$C$100,2,FALSE),\"\"))","v":""},"2e","$BE$102","$BF$102"]
[15497,{"$f":"Menu!$F$29","v":"X"},{"$f":"Menu!$J$29","v":2020},{"$f":"IF(ISBLANK(INDIRECT(\"'\"&F3524&\"'!\"&G3524)),\"\",INDIRECT(\"'\"&F3524&\"'!\"&G3524))","v":""},{"$f":"IF(ISBLANK(INDIRECT(\"'\"&F3524&\"'!\"&H3524)),\"\",IFERROR(VLOOKUP(TEXT(INDIRECT(\"'\"&F3524&\"'!\"&H3524),\"0\"),Notes!$B$5:$C$100,2,FALSE),\"\"))","v":""},"2e","$BG$102","$BH$102"]
[15498,{"$f":"Menu!$F$29","v":"X"},{"$f":"Menu!$J$29","v":2020},{"$f":"IF(ISBLANK(INDIRECT(\"'\"&F3525&\"'!\"&G3525)),\"\",INDIRECT(\"'\"&F3525&\"'!\"&G3525))","v":""},{"$f":"IF(ISBLANK(INDIRECT(\"'\"&F3525&\"'!\"&H3525)),\"\",IFERROR(VLOOKUP(TEXT(INDIRECT(\"'\"&F3525&\"'!\"&H3525),\"0\"),Notes!$B$5:$C$100,2,FALSE),\"\"))","v":""},"2e","$BI$102","$BJ$102"]
[15499,{"$f":"Menu!$F$29","v":"X"},{"$f":"Menu!$J$29","v":2020},{"$f":"IF(ISBLANK(INDIRECT(\"'\"&F3526&\"'!\"&G3526)),\"\",INDIRECT(\"'\"&F3526&\"'!\"&G3526))","v":""},{"$f":"IF(ISBLANK(INDIRECT(\"'\"&F3526&\"'!\"&H3526)),\"\",IFERROR(VLOOKUP(TEXT(INDIRECT(\"'\"&F3526&\"'!\"&H3526),\"0\"),Notes!$B$5:$C$100,2,FALSE),\"\"))","v":""},"2e","$BK$102","$BL$102"]
[15500,{"$f":"Menu!$F$29","v":"X"},{"$f":"Menu!$J$29","v":2020},{"$f":"IF(ISBLANK(INDIRECT(\"'\"&F3527&\"'!\"&G3527)),\"\",INDIRECT(\"'\"&F3527&\"'!\"&G3527))","v":""},{"$f":"IF(ISBLANK(INDIRECT(\"'\"&F3527&\"'!\"&H3527)),\"\",IFERROR(VLOOKUP(TEXT(INDIRECT(\"'\"&F3527&\"'!\"&H3527),\"0\"),Notes!$B$5:$C$100,2,FALSE),\"\"))","v":""},"2e","$E$103","$F$103"]
[15501,{"$f":"Menu!$F$29","v":"X"},{"$f":"Menu!$J$29","v":2020},{"$f":"IF(ISBLANK(INDIRECT(\"'\"&F3528&\"'!\"&G3528)),\"\",INDIRECT(\"'\"&F3528&\"'!\"&G3528))","v":""},{"$f":"IF(ISBLANK(INDIRECT(\"'\"&F3528&\"'!\"&H3528)),\"\",IFERROR(VLOOKUP(TEXT(INDIRECT(\"'\"&F3528&\"'!\"&H3528),\"0\"),Notes!$B$5:$C$100,2,FALSE),\"\"))","v":""},"2e","$G$103","$H$103"]
[15502,{"$f":"Menu!$F$29","v":"X"},{"$f":"Menu!$J$29","v":2020},{"$f":"IF(ISBLANK(INDIRECT(\"'\"&F3529&\"'!\"&G3529)),\"\",INDIRECT(\"'\"&F3529&\"'!\"&G3529))","v":""},{"$f":"IF(ISBLANK(INDIRECT(\"'\"&F3529&\"'!\"&H3529)),\"\",IFERROR(VLOOKUP(TEXT(INDIRECT(\"'\"&F3529&\"'!\"&H3529),\"0\"),Notes!$B$5:$C$100,2,FALSE),\"\"))","v":""},"2e","$I$103","$J$103"]
[15503,{"$f":"Menu!$F$29","v":"X"},{"$f":"Menu!$J$29","v":2020},{"$f":"IF(ISBLANK(INDIRECT(\"'\"&F3530&\"'!\"&G3530)),\"\",INDIRECT(\"'\"&F3530&\"'!\"&G3530))","v":""},{"$f":"IF(ISBLANK(INDIRECT(\"'\"&F3530&\"'!\"&H3530)),\"\",IFERROR(VLOOKUP(TEXT(INDIRECT(\"'\"&F3530&\"'!\"&H3530),\"0\"),Notes!$B$5:$C$100,2,FALSE),\"\"))","v":""},"2e","$K$103","$L$103"]
[15504,{"$f":"Menu!$F$29","v":"X"},{"$f":"Menu!$J$29","v":2020},{"$f":"IF(ISBLANK(INDIRECT(\"'\"&F3531&\"'!\"&G3531)),\"\",INDIRECT(\"'\"&F3531&\"'!\"&G3531))","v":""},{"$f":"IF(ISBLANK(INDIRECT(\"'\"&F3531&\"'!\"&H3531)),\"\",IFERROR(VLOOKUP(TEXT(INDIRECT(\"'\"&F3531&\"'!\"&H3531),\"0\"),Notes!$B$5:$C$100,2,FALSE),\"\"))","v":""},"2e","$M$103","$N$103"]
[15505,{"$f":"Menu!$F$29","v":"X"},{"$f":"Menu!$J$29","v":2020},{"$f":"IF(ISBLANK(INDIRECT(\"'\"&F3532&\"'!\"&G3532)),\"\",INDIRECT(\"'\"&F3532&\"'!\"&G3532))","v":""},{"$f":"IF(ISBLANK(INDIRECT(\"'\"&F3532&\"'!\"&H3532)),\"\",IFERROR(VLOOKUP(TEXT(INDIRECT(\"'\"&F3532&\"'!\"&H3532),\"0\"),Notes!$B$5:$C$100,2,FALSE),\"\"))","v":""},"2e","$O$103","$P$103"]
[15506,{"$f":"Menu!$F$29","v":"X"},{"$f":"Menu!$J$29","v":2020},{"$f":"IF(ISBLANK(INDIRECT(\"'\"&F3533&\"'!\"&G3533)),\"\",INDIRECT(\"'\"&F3533&\"'!\"&G3533))","v":""},{"$f":"IF(ISBLANK(INDIRECT(\"'\"&F3533&\"'!\"&H3533)),\"\",IFERROR(VLOOKUP(TEXT(INDIRECT(\"'\"&F3533&\"'!\"&H3533),\"0\"),Notes!$B$5:$C$100,2,FALSE),\"\"))","v":""},"2e","$Q$103","$R$103"]
[15507,{"$f":"Menu!$F$29","v":"X"},{"$f":"Menu!$J$29","v":2020},{"$f":"IF(ISBLANK(INDIRECT(\"'\"&F3534&\"'!\"&G3534)),\"\",INDIRECT(\"'\"&F3534&\"'!\"&G3534))","v":""},{"$f":"IF(ISBLANK(INDIRECT(\"'\"&F3534&\"'!\"&H3534)),\"\",IFERROR(VLOOKUP(TEXT(INDIRECT(\"'\"&F3534&\"'!\"&H3534),\"0\"),Notes!$B$5:$C$100,2,FALSE),\"\"))","v":""},"2e","$S$103","$T$103"]
[15508,{"$f":"Menu!$F$29","v":"X"},{"$f":"Menu!$J$29","v":2020},{"$f":"IF(ISBLANK(INDIRECT(\"'\"&F3535&\"'!\"&G3535)),\"\",INDIRECT(\"'\"&F3535&\"'!\"&G3535))","v":""},{"$f":"IF(ISBLANK(INDIRECT(\"'\"&F3535&\"'!\"&H3535)),\"\",IFERROR(VLOOKUP(TEXT(INDIRECT(\"'\"&F3535&\"'!\"&H3535),\"0\"),Notes!$B$5:$C$100,2,FALSE),\"\"))","v":""},"2e","$U$103","$V$103"]
[15509,{"$f":"Menu!$F$29","v":"X"},{"$f":"Menu!$J$29","v":2020},{"$f":"IF(ISBLANK(INDIRECT(\"'\"&F3536&\"'!\"&G3536)),\"\",INDIRECT(\"'\"&F3536&\"'!\"&G3536))","v":""},{"$f":"IF(ISBLANK(INDIRECT(\"'\"&F3536&\"'!\"&H3536)),\"\",IFERROR(VLOOKUP(TEXT(INDIRECT(\"'\"&F3536&\"'!\"&H3536),\"0\"),Notes!$B$5:$C$100,2,FALSE),\"\"))","v":""},"2e","$W$103","$X$103"]
[15510,{"$f":"Menu!$F$29","v":"X"},{"$f":"Menu!$J$29","v":2020},{"$f":"IF(ISBLANK(INDIRECT(\"'\"&F3537&\"'!\"&G3537)),\"\",INDIRECT(\"'\"&F3537&\"'!\"&G3537))","v":""},{"$f":"IF(ISBLANK(INDIRECT(\"'\"&F3537&\"'!\"&H3537)),\"\",IFERROR(VLOOKUP(TEXT(INDIRECT(\"'\"&F3537&\"'!\"&H3537),\"0\"),Notes!$B$5:$C$100,2,FALSE),\"\"))","v":""},"2e","$Y$103","$Z$103"]
[15511,{"$f":"Menu!$F$29","v":"X"},{"$f":"Menu!$J$29","v":2020},{"$f":"IF(ISBLANK(INDIRECT(\"'\"&F3538&\"'!\"&G3538)),\"\",INDIRECT(\"'\"&F3538&\"'!\"&G3538))","v":""},{"$f":"IF(ISBLANK(INDIRECT(\"'\"&F3538&\"'!\"&H3538)),\"\",IFERROR(VLOOKUP(TEXT(INDIRECT(\"'\"&F3538&\"'!\"&H3538),\"0\"),Notes!$B$5:$C$100,2,FALSE),\"\"))","v":""},"2e","$AA$103","$AB$103"]
[15512,{"$f":"Menu!$F$29","v":"X"},{"$f":"Menu!$J$29","v":2020},{"$f":"IF(ISBLANK(INDIRECT(\"'\"&F3539&\"'!\"&G3539)),\"\",INDIRECT(\"'\"&F3539&\"'!\"&G3539))","v":""},{"$f":"IF(ISBLANK(INDIRECT(\"'\"&F3539&\"'!\"&H3539)),\"\",IFERROR(VLOOKUP(TEXT(INDIRECT(\"'\"&F3539&\"'!\"&H3539),\"0\"),Notes!$B$5:$C$100,2,FALSE),\"\"))","v":""},"2e","$AC$103","$AD$103"]
[15513,{"$f":"Menu!$F$29","v":"X"},{"$f":"Menu!$J$29","v":2020},{"$f":"IF(ISBLANK(INDIRECT(\"'\"&F3540&\"'!\"&G3540)),\"\",INDIRECT(\"'\"&F3540&\"'!\"&G3540))","v":""},{"$f":"IF(ISBLANK(INDIRECT(\"'\"&F3540&\"'!\"&H3540)),\"\",IFERROR(VLOOKUP(TEXT(INDIRECT(\"'\"&F3540&\"'!\"&H3540),\"0\"),Notes!$B$5:$C$100,2,FALSE),\"\"))","v":""},"2e","$AE$103","$AF$103"]
[15514,{"$f":"Menu!$F$29","v":"X"},{"$f":"Menu!$J$29","v":2020},{"$f":"IF(ISBLANK(INDIRECT(\"'\"&F3541&\"'!\"&G3541)),\"\",INDIRECT(\"'\"&F3541&\"'!\"&G3541))","v":""},{"$f":"IF(ISBLANK(INDIRECT(\"'\"&F3541&\"'!\"&H3541)),\"\",IFERROR(VLOOKUP(TEXT(INDIRECT(\"'\"&F3541&\"'!\"&H3541),\"0\"),Notes!$B$5:$C$100,2,FALSE),\"\"))","v":""},"2e","$AG$103","$AH$103"]
[15515,{"$f":"Menu!$F$29","v":"X"},{"$f":"Menu!$J$29","v":2020},{"$f":"IF(ISBLANK(INDIRECT(\"'\"&F3542&\"'!\"&G3542)),\"\",INDIRECT(\"'\"&F3542&\"'!\"&G3542))","v":""},{"$f":"IF(ISBLANK(INDIRECT(\"'\"&F3542&\"'!\"&H3542)),\"\",IFERROR(VLOOKUP(TEXT(INDIRECT(\"'\"&F3542&\"'!\"&H3542),\"0\"),Notes!$B$5:$C$100,2,FALSE),\"\"))","v":""},"2e","$AI$103","$AJ$103"]
[15516,{"$f":"Menu!$F$29","v":"X"},{"$f":"Menu!$J$29","v":2020},{"$f":"IF(ISBLANK(INDIRECT(\"'\"&F3543&\"'!\"&G3543)),\"\",INDIRECT(\"'\"&F3543&\"'!\"&G3543))","v":""},{"$f":"IF(ISBLANK(INDIRECT(\"'\"&F3543&\"'!\"&H3543)),\"\",IFERROR(VLOOKUP(TEXT(INDIRECT(\"'\"&F3543&\"'!\"&H3543),\"0\"),Notes!$B$5:$C$100,2,FALSE),\"\"))","v":""},"2e","$AK$103","$AL$103"]
[15517,{"$f":"Menu!$F$29","v":"X"},{"$f":"Menu!$J$29","v":2020},{"$f":"IF(ISBLANK(INDIRECT(\"'\"&F3544&\"'!\"&G3544)),\"\",INDIRECT(\"'\"&F3544&\"'!\"&G3544))","v":""},{"$f":"IF(ISBLANK(INDIRECT(\"'\"&F3544&\"'!\"&H3544)),\"\",IFERROR(VLOOKUP(TEXT(INDIRECT(\"'\"&F3544&\"'!\"&H3544),\"0\"),Notes!$B$5:$C$100,2,FALSE),\"\"))","v":""},"2e","$AM$103","$AN$103"]
[15518,{"$f":"Menu!$F$29","v":"X"},{"$f":"Menu!$J$29","v":2020},{"$f":"IF(ISBLANK(INDIRECT(\"'\"&F3545&\"'!\"&G3545)),\"\",INDIRECT(\"'\"&F3545&\"'!\"&G3545))","v":""},{"$f":"IF(ISBLANK(INDIRECT(\"'\"&F3545&\"'!\"&H3545)),\"\",IFERROR(VLOOKUP(TEXT(INDIRECT(\"'\"&F3545&\"'!\"&H3545),\"0\"),Notes!$B$5:$C$100,2,FALSE),\"\"))","v":""},"2e","$AO$103","$AP$103"]
[15519,{"$f":"Menu!$F$29","v":"X"},{"$f":"Menu!$J$29","v":2020},{"$f":"IF(ISBLANK(INDIRECT(\"'\"&F3546&\"'!\"&G3546)),\"\",INDIRECT(\"'\"&F3546&\"'!\"&G3546))","v":""},{"$f":"IF(ISBLANK(INDIRECT(\"'\"&F3546&\"'!\"&H3546)),\"\",IFERROR(VLOOKUP(TEXT(INDIRECT(\"'\"&F3546&\"'!\"&H3546),\"0\"),Notes!$B$5:$C$100,2,FALSE),\"\"))","v":""},"2e","$AQ$103","$AR$103"]
[15520,{"$f":"Menu!$F$29","v":"X"},{"$f":"Menu!$J$29","v":2020},{"$f":"IF(ISBLANK(INDIRECT(\"'\"&F3547&\"'!\"&G3547)),\"\",INDIRECT(\"'\"&F3547&\"'!\"&G3547))","v":""},{"$f":"IF(ISBLANK(INDIRECT(\"'\"&F3547&\"'!\"&H3547)),\"\",IFERROR(VLOOKUP(TEXT(INDIRECT(\"'\"&F3547&\"'!\"&H3547),\"0\"),Notes!$B$5:$C$100,2,FALSE),\"\"))","v":""},"2e","$AS$103","$AT$103"]
[15521,{"$f":"Menu!$F$29","v":"X"},{"$f":"Menu!$J$29","v":2020},{"$f":"IF(ISBLANK(INDIRECT(\"'\"&F3548&\"'!\"&G3548)),\"\",INDIRECT(\"'\"&F3548&\"'!\"&G3548))","v":""},{"$f":"IF(ISBLANK(INDIRECT(\"'\"&F3548&\"'!\"&H3548)),\"\",IFERROR(VLOOKUP(TEXT(INDIRECT(\"'\"&F3548&\"'!\"&H3548),\"0\"),Notes!$B$5:$C$100,2,FALSE),\"\"))","v":""},"2e","$AU$103","$AV$103"]
[15522,{"$f":"Menu!$F$29","v":"X"},{"$f":"Menu!$J$29","v":2020},{"$f":"IF(ISBLANK(INDIRECT(\"'\"&F3549&\"'!\"&G3549)),\"\",INDIRECT(\"'\"&F3549&\"'!\"&G3549))","v":""},{"$f":"IF(ISBLANK(INDIRECT(\"'\"&F3549&\"'!\"&H3549)),\"\",IFERROR(VLOOKUP(TEXT(INDIRECT(\"'\"&F3549&\"'!\"&H3549),\"0\"),Notes!$B$5:$C$100,2,FALSE),\"\"))","v":""},"2e","$AW$103","$AX$103"]
[15523,{"$f":"Menu!$F$29","v":"X"},{"$f":"Menu!$J$29","v":2020},{"$f":"IF(ISBLANK(INDIRECT(\"'\"&F3550&\"'!\"&G3550)),\"\",INDIRECT(\"'\"&F3550&\"'!\"&G3550))","v":""},{"$f":"IF(ISBLANK(INDIRECT(\"'\"&F3550&\"'!\"&H3550)),\"\",IFERROR(VLOOKUP(TEXT(INDIRECT(\"'\"&F3550&\"'!\"&H3550),\"0\"),Notes!$B$5:$C$100,2,FALSE),\"\"))","v":""},"2e","$AY$103","$AZ$103"]
[15524,{"$f":"Menu!$F$29","v":"X"},{"$f":"Menu!$J$29","v":2020},{"$f":"IF(ISBLANK(INDIRECT(\"'\"&F3551&\"'!\"&G3551)),\"\",INDIRECT(\"'\"&F3551&\"'!\"&G3551))","v":""},{"$f":"IF(ISBLANK(INDIRECT(\"'\"&F3551&\"'!\"&H3551)),\"\",IFERROR(VLOOKUP(TEXT(INDIRECT(\"'\"&F3551&\"'!\"&H3551),\"0\"),Notes!$B$5:$C$100,2,FALSE),\"\"))","v":""},"2e","$BA$103","$BB$103"]
[15525,{"$f":"Menu!$F$29","v":"X"},{"$f":"Menu!$J$29","v":2020},{"$f":"IF(ISBLANK(INDIRECT(\"'\"&F3552&\"'!\"&G3552)),\"\",INDIRECT(\"'\"&F3552&\"'!\"&G3552))","v":""},{"$f":"IF(ISBLANK(INDIRECT(\"'\"&F3552&\"'!\"&H3552)),\"\",IFERROR(VLOOKUP(TEXT(INDIRECT(\"'\"&F3552&\"'!\"&H3552),\"0\"),Notes!$B$5:$C$100,2,FALSE),\"\"))","v":""},"2e","$BC$103","$BD$103"]
[15526,{"$f":"Menu!$F$29","v":"X"},{"$f":"Menu!$J$29","v":2020},{"$f":"IF(ISBLANK(INDIRECT(\"'\"&F3553&\"'!\"&G3553)),\"\",INDIRECT(\"'\"&F3553&\"'!\"&G3553))","v":""},{"$f":"IF(ISBLANK(INDIRECT(\"'\"&F3553&\"'!\"&H3553)),\"\",IFERROR(VLOOKUP(TEXT(INDIRECT(\"'\"&F3553&\"'!\"&H3553),\"0\"),Notes!$B$5:$C$100,2,FALSE),\"\"))","v":""},"2e","$BE$103","$BF$103"]
[15527,{"$f":"Menu!$F$29","v":"X"},{"$f":"Menu!$J$29","v":2020},{"$f":"IF(ISBLANK(INDIRECT(\"'\"&F3554&\"'!\"&G3554)),\"\",INDIRECT(\"'\"&F3554&\"'!\"&G3554))","v":""},{"$f":"IF(ISBLANK(INDIRECT(\"'\"&F3554&\"'!\"&H3554)),\"\",IFERROR(VLOOKUP(TEXT(INDIRECT(\"'\"&F3554&\"'!\"&H3554),\"0\"),Notes!$B$5:$C$100,2,FALSE),\"\"))","v":""},"2e","$BG$103","$BH$103"]
[15528,{"$f":"Menu!$F$29","v":"X"},{"$f":"Menu!$J$29","v":2020},{"$f":"IF(ISBLANK(INDIRECT(\"'\"&F3555&\"'!\"&G3555)),\"\",INDIRECT(\"'\"&F3555&\"'!\"&G3555))","v":""},{"$f":"IF(ISBLANK(INDIRECT(\"'\"&F3555&\"'!\"&H3555)),\"\",IFERROR(VLOOKUP(TEXT(INDIRECT(\"'\"&F3555&\"'!\"&H3555),\"0\"),Notes!$B$5:$C$100,2,FALSE),\"\"))","v":""},"2e","$BI$103","$BJ$103"]
[15529,{"$f":"Menu!$F$29","v":"X"},{"$f":"Menu!$J$29","v":2020},{"$f":"IF(ISBLANK(INDIRECT(\"'\"&F3556&\"'!\"&G3556)),\"\",INDIRECT(\"'\"&F3556&\"'!\"&G3556))","v":""},{"$f":"IF(ISBLANK(INDIRECT(\"'\"&F3556&\"'!\"&H3556)),\"\",IFERROR(VLOOKUP(TEXT(INDIRECT(\"'\"&F3556&\"'!\"&H3556),\"0\"),Notes!$B$5:$C$100,2,FALSE),\"\"))","v":""},"2e","$BK$103","$BL$103"]
[15530,{"$f":"Menu!$F$29","v":"X"},{"$f":"Menu!$J$29","v":2020},{"$f":"IF(ISBLANK(INDIRECT(\"'\"&F3557&\"'!\"&G3557)),\"\",INDIRECT(\"'\"&F3557&\"'!\"&G3557))","v":""},{"$f":"IF(ISBLANK(INDIRECT(\"'\"&F3557&\"'!\"&H3557)),\"\",IFERROR(VLOOKUP(TEXT(INDIRECT(\"'\"&F3557&\"'!\"&H3557),\"0\"),Notes!$B$5:$C$100,2,FALSE),\"\"))","v":""},"2e","$E$104","$F$104"]
[15531,{"$f":"Menu!$F$29","v":"X"},{"$f":"Menu!$J$29","v":2020},{"$f":"IF(ISBLANK(INDIRECT(\"'\"&F3558&\"'!\"&G3558)),\"\",INDIRECT(\"'\"&F3558&\"'!\"&G3558))","v":""},{"$f":"IF(ISBLANK(INDIRECT(\"'\"&F3558&\"'!\"&H3558)),\"\",IFERROR(VLOOKUP(TEXT(INDIRECT(\"'\"&F3558&\"'!\"&H3558),\"0\"),Notes!$B$5:$C$100,2,FALSE),\"\"))","v":""},"2e","$G$104","$H$104"]
[15532,{"$f":"Menu!$F$29","v":"X"},{"$f":"Menu!$J$29","v":2020},{"$f":"IF(ISBLANK(INDIRECT(\"'\"&F3559&\"'!\"&G3559)),\"\",INDIRECT(\"'\"&F3559&\"'!\"&G3559))","v":""},{"$f":"IF(ISBLANK(INDIRECT(\"'\"&F3559&\"'!\"&H3559)),\"\",IFERROR(VLOOKUP(TEXT(INDIRECT(\"'\"&F3559&\"'!\"&H3559),\"0\"),Notes!$B$5:$C$100,2,FALSE),\"\"))","v":""},"2e","$I$104","$J$104"]
[15533,{"$f":"Menu!$F$29","v":"X"},{"$f":"Menu!$J$29","v":2020},{"$f":"IF(ISBLANK(INDIRECT(\"'\"&F3560&\"'!\"&G3560)),\"\",INDIRECT(\"'\"&F3560&\"'!\"&G3560))","v":""},{"$f":"IF(ISBLANK(INDIRECT(\"'\"&F3560&\"'!\"&H3560)),\"\",IFERROR(VLOOKUP(TEXT(INDIRECT(\"'\"&F3560&\"'!\"&H3560),\"0\"),Notes!$B$5:$C$100,2,FALSE),\"\"))","v":""},"2e","$K$104","$L$104"]
[15534,{"$f":"Menu!$F$29","v":"X"},{"$f":"Menu!$J$29","v":2020},{"$f":"IF(ISBLANK(INDIRECT(\"'\"&F3561&\"'!\"&G3561)),\"\",INDIRECT(\"'\"&F3561&\"'!\"&G3561))","v":""},{"$f":"IF(ISBLANK(INDIRECT(\"'\"&F3561&\"'!\"&H3561)),\"\",IFERROR(VLOOKUP(TEXT(INDIRECT(\"'\"&F3561&\"'!\"&H3561),\"0\"),Notes!$B$5:$C$100,2,FALSE),\"\"))","v":""},"2e","$M$104","$N$104"]
[15535,{"$f":"Menu!$F$29","v":"X"},{"$f":"Menu!$J$29","v":2020},{"$f":"IF(ISBLANK(INDIRECT(\"'\"&F3562&\"'!\"&G3562)),\"\",INDIRECT(\"'\"&F3562&\"'!\"&G3562))","v":""},{"$f":"IF(ISBLANK(INDIRECT(\"'\"&F3562&\"'!\"&H3562)),\"\",IFERROR(VLOOKUP(TEXT(INDIRECT(\"'\"&F3562&\"'!\"&H3562),\"0\"),Notes!$B$5:$C$100,2,FALSE),\"\"))","v":""},"2e","$O$104","$P$104"]
[15536,{"$f":"Menu!$F$29","v":"X"},{"$f":"Menu!$J$29","v":2020},{"$f":"IF(ISBLANK(INDIRECT(\"'\"&F3563&\"'!\"&G3563)),\"\",INDIRECT(\"'\"&F3563&\"'!\"&G3563))","v":""},{"$f":"IF(ISBLANK(INDIRECT(\"'\"&F3563&\"'!\"&H3563)),\"\",IFERROR(VLOOKUP(TEXT(INDIRECT(\"'\"&F3563&\"'!\"&H3563),\"0\"),Notes!$B$5:$C$100,2,FALSE),\"\"))","v":""},"2e","$Q$104","$R$104"]
[15537,{"$f":"Menu!$F$29","v":"X"},{"$f":"Menu!$J$29","v":2020},{"$f":"IF(ISBLANK(INDIRECT(\"'\"&F3564&\"'!\"&G3564)),\"\",INDIRECT(\"'\"&F3564&\"'!\"&G3564))","v":""},{"$f":"IF(ISBLANK(INDIRECT(\"'\"&F3564&\"'!\"&H3564)),\"\",IFERROR(VLOOKUP(TEXT(INDIRECT(\"'\"&F3564&\"'!\"&H3564),\"0\"),Notes!$B$5:$C$100,2,FALSE),\"\"))","v":""},"2e","$S$104","$T$104"]
[15538,{"$f":"Menu!$F$29","v":"X"},{"$f":"Menu!$J$29","v":2020},{"$f":"IF(ISBLANK(INDIRECT(\"'\"&F3565&\"'!\"&G3565)),\"\",INDIRECT(\"'\"&F3565&\"'!\"&G3565))","v":""},{"$f":"IF(ISBLANK(INDIRECT(\"'\"&F3565&\"'!\"&H3565)),\"\",IFERROR(VLOOKUP(TEXT(INDIRECT(\"'\"&F3565&\"'!\"&H3565),\"0\"),Notes!$B$5:$C$100,2,FALSE),\"\"))","v":""},"2e","$U$104","$V$104"]
[15539,{"$f":"Menu!$F$29","v":"X"},{"$f":"Menu!$J$29","v":2020},{"$f":"IF(ISBLANK(INDIRECT(\"'\"&F3566&\"'!\"&G3566)),\"\",INDIRECT(\"'\"&F3566&\"'!\"&G3566))","v":""},{"$f":"IF(ISBLANK(INDIRECT(\"'\"&F3566&\"'!\"&H3566)),\"\",IFERROR(VLOOKUP(TEXT(INDIRECT(\"'\"&F3566&\"'!\"&H3566),\"0\"),Notes!$B$5:$C$100,2,FALSE),\"\"))","v":""},"2e","$W$104","$X$104"]
[15540,{"$f":"Menu!$F$29","v":"X"},{"$f":"Menu!$J$29","v":2020},{"$f":"IF(ISBLANK(INDIRECT(\"'\"&F3567&\"'!\"&G3567)),\"\",INDIRECT(\"'\"&F3567&\"'!\"&G3567))","v":""},{"$f":"IF(ISBLANK(INDIRECT(\"'\"&F3567&\"'!\"&H3567)),\"\",IFERROR(VLOOKUP(TEXT(INDIRECT(\"'\"&F3567&\"'!\"&H3567),\"0\"),Notes!$B$5:$C$100,2,FALSE),\"\"))","v":""},"2e","$Y$104","$Z$104"]
[15541,{"$f":"Menu!$F$29","v":"X"},{"$f":"Menu!$J$29","v":2020},{"$f":"IF(ISBLANK(INDIRECT(\"'\"&F3568&\"'!\"&G3568)),\"\",INDIRECT(\"'\"&F3568&\"'!\"&G3568))","v":""},{"$f":"IF(ISBLANK(INDIRECT(\"'\"&F3568&\"'!\"&H3568)),\"\",IFERROR(VLOOKUP(TEXT(INDIRECT(\"'\"&F3568&\"'!\"&H3568),\"0\"),Notes!$B$5:$C$100,2,FALSE),\"\"))","v":""},"2e","$AA$104","$AB$104"]
[15542,{"$f":"Menu!$F$29","v":"X"},{"$f":"Menu!$J$29","v":2020},{"$f":"IF(ISBLANK(INDIRECT(\"'\"&F3569&\"'!\"&G3569)),\"\",INDIRECT(\"'\"&F3569&\"'!\"&G3569))","v":""},{"$f":"IF(ISBLANK(INDIRECT(\"'\"&F3569&\"'!\"&H3569)),\"\",IFERROR(VLOOKUP(TEXT(INDIRECT(\"'\"&F3569&\"'!\"&H3569),\"0\"),Notes!$B$5:$C$100,2,FALSE),\"\"))","v":""},"2e","$AC$104","$AD$104"]
[15543,{"$f":"Menu!$F$29","v":"X"},{"$f":"Menu!$J$29","v":2020},{"$f":"IF(ISBLANK(INDIRECT(\"'\"&F3570&\"'!\"&G3570)),\"\",INDIRECT(\"'\"&F3570&\"'!\"&G3570))","v":""},{"$f":"IF(ISBLANK(INDIRECT(\"'\"&F3570&\"'!\"&H3570)),\"\",IFERROR(VLOOKUP(TEXT(INDIRECT(\"'\"&F3570&\"'!\"&H3570),\"0\"),Notes!$B$5:$C$100,2,FALSE),\"\"))","v":""},"2e","$AE$104","$AF$104"]
[15544,{"$f":"Menu!$F$29","v":"X"},{"$f":"Menu!$J$29","v":2020},{"$f":"IF(ISBLANK(INDIRECT(\"'\"&F3571&\"'!\"&G3571)),\"\",INDIRECT(\"'\"&F3571&\"'!\"&G3571))","v":""},{"$f":"IF(ISBLANK(INDIRECT(\"'\"&F3571&\"'!\"&H3571)),\"\",IFERROR(VLOOKUP(TEXT(INDIRECT(\"'\"&F3571&\"'!\"&H3571),\"0\"),Notes!$B$5:$C$100,2,FALSE),\"\"))","v":""},"2e","$AG$104","$AH$104"]
[15545,{"$f":"Menu!$F$29","v":"X"},{"$f":"Menu!$J$29","v":2020},{"$f":"IF(ISBLANK(INDIRECT(\"'\"&F3572&\"'!\"&G3572)),\"\",INDIRECT(\"'\"&F3572&\"'!\"&G3572))","v":""},{"$f":"IF(ISBLANK(INDIRECT(\"'\"&F3572&\"'!\"&H3572)),\"\",IFERROR(VLOOKUP(TEXT(INDIRECT(\"'\"&F3572&\"'!\"&H3572),\"0\"),Notes!$B$5:$C$100,2,FALSE),\"\"))","v":""},"2e","$AI$104","$AJ$104"]
[15546,{"$f":"Menu!$F$29","v":"X"},{"$f":"Menu!$J$29","v":2020},{"$f":"IF(ISBLANK(INDIRECT(\"'\"&F3573&\"'!\"&G3573)),\"\",INDIRECT(\"'\"&F3573&\"'!\"&G3573))","v":""},{"$f":"IF(ISBLANK(INDIRECT(\"'\"&F3573&\"'!\"&H3573)),\"\",IFERROR(VLOOKUP(TEXT(INDIRECT(\"'\"&F3573&\"'!\"&H3573),\"0\"),Notes!$B$5:$C$100,2,FALSE),\"\"))","v":""},"2e","$AK$104","$AL$104"]
[15547,{"$f":"Menu!$F$29","v":"X"},{"$f":"Menu!$J$29","v":2020},{"$f":"IF(ISBLANK(INDIRECT(\"'\"&F3574&\"'!\"&G3574)),\"\",INDIRECT(\"'\"&F3574&\"'!\"&G3574))","v":""},{"$f":"IF(ISBLANK(INDIRECT(\"'\"&F3574&\"'!\"&H3574)),\"\",IFERROR(VLOOKUP(TEXT(INDIRECT(\"'\"&F3574&\"'!\"&H3574),\"0\"),Notes!$B$5:$C$100,2,FALSE),\"\"))","v":""},"2e","$AM$104","$AN$104"]
[15548,{"$f":"Menu!$F$29","v":"X"},{"$f":"Menu!$J$29","v":2020},{"$f":"IF(ISBLANK(INDIRECT(\"'\"&F3575&\"'!\"&G3575)),\"\",INDIRECT(\"'\"&F3575&\"'!\"&G3575))","v":""},{"$f":"IF(ISBLANK(INDIRECT(\"'\"&F3575&\"'!\"&H3575)),\"\",IFERROR(VLOOKUP(TEXT(INDIRECT(\"'\"&F3575&\"'!\"&H3575),\"0\"),Notes!$B$5:$C$100,2,FALSE),\"\"))","v":""},"2e","$AO$104","$AP$104"]
[15549,{"$f":"Menu!$F$29","v":"X"},{"$f":"Menu!$J$29","v":2020},{"$f":"IF(ISBLANK(INDIRECT(\"'\"&F3576&\"'!\"&G3576)),\"\",INDIRECT(\"'\"&F3576&\"'!\"&G3576))","v":""},{"$f":"IF(ISBLANK(INDIRECT(\"'\"&F3576&\"'!\"&H3576)),\"\",IFERROR(VLOOKUP(TEXT(INDIRECT(\"'\"&F3576&\"'!\"&H3576),\"0\"),Notes!$B$5:$C$100,2,FALSE),\"\"))","v":""},"2e","$AQ$104","$AR$104"]
[15550,{"$f":"Menu!$F$29","v":"X"},{"$f":"Menu!$J$29","v":2020},{"$f":"IF(ISBLANK(INDIRECT(\"'\"&F3577&\"'!\"&G3577)),\"\",INDIRECT(\"'\"&F3577&\"'!\"&G3577))","v":""},{"$f":"IF(ISBLANK(INDIRECT(\"'\"&F3577&\"'!\"&H3577)),\"\",IFERROR(VLOOKUP(TEXT(INDIRECT(\"'\"&F3577&\"'!\"&H3577),\"0\"),Notes!$B$5:$C$100,2,FALSE),\"\"))","v":""},"2e","$AS$104","$AT$104"]
[15551,{"$f":"Menu!$F$29","v":"X"},{"$f":"Menu!$J$29","v":2020},{"$f":"IF(ISBLANK(INDIRECT(\"'\"&F3578&\"'!\"&G3578)),\"\",INDIRECT(\"'\"&F3578&\"'!\"&G3578))","v":""},{"$f":"IF(ISBLANK(INDIRECT(\"'\"&F3578&\"'!\"&H3578)),\"\",IFERROR(VLOOKUP(TEXT(INDIRECT(\"'\"&F3578&\"'!\"&H3578),\"0\"),Notes!$B$5:$C$100,2,FALSE),\"\"))","v":""},"2e","$AU$104","$AV$104"]
[15552,{"$f":"Menu!$F$29","v":"X"},{"$f":"Menu!$J$29","v":2020},{"$f":"IF(ISBLANK(INDIRECT(\"'\"&F3579&\"'!\"&G3579)),\"\",INDIRECT(\"'\"&F3579&\"'!\"&G3579))","v":""},{"$f":"IF(ISBLANK(INDIRECT(\"'\"&F3579&\"'!\"&H3579)),\"\",IFERROR(VLOOKUP(TEXT(INDIRECT(\"'\"&F3579&\"'!\"&H3579),\"0\"),Notes!$B$5:$C$100,2,FALSE),\"\"))","v":""},"2e","$AW$104","$AX$104"]
[15553,{"$f":"Menu!$F$29","v":"X"},{"$f":"Menu!$J$29","v":2020},{"$f":"IF(ISBLANK(INDIRECT(\"'\"&F3580&\"'!\"&G3580)),\"\",INDIRECT(\"'\"&F3580&\"'!\"&G3580))","v":""},{"$f":"IF(ISBLANK(INDIRECT(\"'\"&F3580&\"'!\"&H3580)),\"\",IFERROR(VLOOKUP(TEXT(INDIRECT(\"'\"&F3580&\"'!\"&H3580),\"0\"),Notes!$B$5:$C$100,2,FALSE),\"\"))","v":""},"2e","$AY$104","$AZ$104"]
[15554,{"$f":"Menu!$F$29","v":"X"},{"$f":"Menu!$J$29","v":2020},{"$f":"IF(ISBLANK(INDIRECT(\"'\"&F3581&\"'!\"&G3581)),\"\",INDIRECT(\"'\"&F3581&\"'!\"&G3581))","v":""},{"$f":"IF(ISBLANK(INDIRECT(\"'\"&F3581&\"'!\"&H3581)),\"\",IFERROR(VLOOKUP(TEXT(INDIRECT(\"'\"&F3581&\"'!\"&H3581),\"0\"),Notes!$B$5:$C$100,2,FALSE),\"\"))","v":""},"2e","$BA$104","$BB$104"]
[15555,{"$f":"Menu!$F$29","v":"X"},{"$f":"Menu!$J$29","v":2020},{"$f":"IF(ISBLANK(INDIRECT(\"'\"&F3582&\"'!\"&G3582)),\"\",INDIRECT(\"'\"&F3582&\"'!\"&G3582))","v":""},{"$f":"IF(ISBLANK(INDIRECT(\"'\"&F3582&\"'!\"&H3582)),\"\",IFERROR(VLOOKUP(TEXT(INDIRECT(\"'\"&F3582&\"'!\"&H3582),\"0\"),Notes!$B$5:$C$100,2,FALSE),\"\"))","v":""},"2e","$BC$104","$BD$104"]
[15556,{"$f":"Menu!$F$29","v":"X"},{"$f":"Menu!$J$29","v":2020},{"$f":"IF(ISBLANK(INDIRECT(\"'\"&F3583&\"'!\"&G3583)),\"\",INDIRECT(\"'\"&F3583&\"'!\"&G3583))","v":""},{"$f":"IF(ISBLANK(INDIRECT(\"'\"&F3583&\"'!\"&H3583)),\"\",IFERROR(VLOOKUP(TEXT(INDIRECT(\"'\"&F3583&\"'!\"&H3583),\"0\"),Notes!$B$5:$C$100,2,FALSE),\"\"))","v":""},"2e","$BE$104","$BF$104"]
[15557,{"$f":"Menu!$F$29","v":"X"},{"$f":"Menu!$J$29","v":2020},{"$f":"IF(ISBLANK(INDIRECT(\"'\"&F3584&\"'!\"&G3584)),\"\",INDIRECT(\"'\"&F3584&\"'!\"&G3584))","v":""},{"$f":"IF(ISBLANK(INDIRECT(\"'\"&F3584&\"'!\"&H3584)),\"\",IFERROR(VLOOKUP(TEXT(INDIRECT(\"'\"&F3584&\"'!\"&H3584),\"0\"),Notes!$B$5:$C$100,2,FALSE),\"\"))","v":""},"2e","$BG$104","$BH$104"]
[15558,{"$f":"Menu!$F$29","v":"X"},{"$f":"Menu!$J$29","v":2020},{"$f":"IF(ISBLANK(INDIRECT(\"'\"&F3585&\"'!\"&G3585)),\"\",INDIRECT(\"'\"&F3585&\"'!\"&G3585))","v":""},{"$f":"IF(ISBLANK(INDIRECT(\"'\"&F3585&\"'!\"&H3585)),\"\",IFERROR(VLOOKUP(TEXT(INDIRECT(\"'\"&F3585&\"'!\"&H3585),\"0\"),Notes!$B$5:$C$100,2,FALSE),\"\"))","v":""},"2e","$BI$104","$BJ$104"]
[15559,{"$f":"Menu!$F$29","v":"X"},{"$f":"Menu!$J$29","v":2020},{"$f":"IF(ISBLANK(INDIRECT(\"'\"&F3586&\"'!\"&G3586)),\"\",INDIRECT(\"'\"&F3586&\"'!\"&G3586))","v":""},{"$f":"IF(ISBLANK(INDIRECT(\"'\"&F3586&\"'!\"&H3586)),\"\",IFERROR(VLOOKUP(TEXT(INDIRECT(\"'\"&F3586&\"'!\"&H3586),\"0\"),Notes!$B$5:$C$100,2,FALSE),\"\"))","v":""},"2e","$BK$104",{"$f":"IF(LEN(TRIM(MID(G3586,4,10)))-LEN(SUBSTITUTE(TRIM(MID(G3586,4,10)),\"$\",\"\"))=0,\"$\"&CHAR(CODE(MID(G3586,2,1))+1)&\"$\"&TRIM(MID(G3586,4,10)),\"$\"&MID(G3586,2,1)&CHAR(CODE(MID(G3586,3,1))+1)&\"$\"&TRIM(MID(G3586,5,11)))","v":"$BL$104"}]
[15590,{"$f":"Menu!$F$29","v":"X"},{"$f":"Menu!$J$29","v":2020},{"$f":"IF(ISBLANK(INDIRECT(\"'\"&F3587&\"'!\"&G3587)),\"\",INDIRECT(\"'\"&F3587&\"'!\"&G3587))","v":""},{"$f":"IF(ISBLANK(INDIRECT(\"'\"&F3587&\"'!\"&H3587)),\"\",IFERROR(VLOOKUP(TEXT(INDIRECT(\"'\"&F3587&\"'!\"&H3587),\"0\"),Notes!$B$5:$C$100,2,FALSE),\"\"))","v":""},"2e","$E$99","$F$99"]
[15591,{"$f":"Menu!$F$29","v":"X"},{"$f":"Menu!$J$29","v":2020},{"$f":"IF(ISBLANK(INDIRECT(\"'\"&F3588&\"'!\"&G3588)),\"\",INDIRECT(\"'\"&F3588&\"'!\"&G3588))","v":""},{"$f":"IF(ISBLANK(INDIRECT(\"'\"&F3588&\"'!\"&H3588)),\"\",IFERROR(VLOOKUP(TEXT(INDIRECT(\"'\"&F3588&\"'!\"&H3588),\"0\"),Notes!$B$5:$C$100,2,FALSE),\"\"))","v":""},"2e","$G$99","$H$99"]
[15592,{"$f":"Menu!$F$29","v":"X"},{"$f":"Menu!$J$29","v":2020},{"$f":"IF(ISBLANK(INDIRECT(\"'\"&F3589&\"'!\"&G3589)),\"\",INDIRECT(\"'\"&F3589&\"'!\"&G3589))","v":""},{"$f":"IF(ISBLANK(INDIRECT(\"'\"&F3589&\"'!\"&H3589)),\"\",IFERROR(VLOOKUP(TEXT(INDIRECT(\"'\"&F3589&\"'!\"&H3589),\"0\"),Notes!$B$5:$C$100,2,FALSE),\"\"))","v":""},"2e","$I$99","$J$99"]
[15593,{"$f":"Menu!$F$29","v":"X"},{"$f":"Menu!$J$29","v":2020},{"$f":"IF(ISBLANK(INDIRECT(\"'\"&F3590&\"'!\"&G3590)),\"\",INDIRECT(\"'\"&F3590&\"'!\"&G3590))","v":""},{"$f":"IF(ISBLANK(INDIRECT(\"'\"&F3590&\"'!\"&H3590)),\"\",IFERROR(VLOOKUP(TEXT(INDIRECT(\"'\"&F3590&\"'!\"&H3590),\"0\"),Notes!$B$5:$C$100,2,FALSE),\"\"))","v":""},"2e","$K$99","$L$99"]
[15594,{"$f":"Menu!$F$29","v":"X"},{"$f":"Menu!$J$29","v":2020},{"$f":"IF(ISBLANK(INDIRECT(\"'\"&F3591&\"'!\"&G3591)),\"\",INDIRECT(\"'\"&F3591&\"'!\"&G3591))","v":""},{"$f":"IF(ISBLANK(INDIRECT(\"'\"&F3591&\"'!\"&H3591)),\"\",IFERROR(VLOOKUP(TEXT(INDIRECT(\"'\"&F3591&\"'!\"&H3591),\"0\"),Notes!$B$5:$C$100,2,FALSE),\"\"))","v":""},"2e","$M$99","$N$99"]
[15595,{"$f":"Menu!$F$29","v":"X"},{"$f":"Menu!$J$29","v":2020},{"$f":"IF(ISBLANK(INDIRECT(\"'\"&F3592&\"'!\"&G3592)),\"\",INDIRECT(\"'\"&F3592&\"'!\"&G3592))","v":""},{"$f":"IF(ISBLANK(INDIRECT(\"'\"&F3592&\"'!\"&H3592)),\"\",IFERROR(VLOOKUP(TEXT(INDIRECT(\"'\"&F3592&\"'!\"&H3592),\"0\"),Notes!$B$5:$C$100,2,FALSE),\"\"))","v":""},"2e","$O$99","$P$99"]
[15596,{"$f":"Menu!$F$29","v":"X"},{"$f":"Menu!$J$29","v":2020},{"$f":"IF(ISBLANK(INDIRECT(\"'\"&F3593&\"'!\"&G3593)),\"\",INDIRECT(\"'\"&F3593&\"'!\"&G3593))","v":""},{"$f":"IF(ISBLANK(INDIRECT(\"'\"&F3593&\"'!\"&H3593)),\"\",IFERROR(VLOOKUP(TEXT(INDIRECT(\"'\"&F3593&\"'!\"&H3593),\"0\"),Notes!$B$5:$C$100,2,FALSE),\"\"))","v":""},"2e","$Q$99","$R$99"]
[15597,{"$f":"Menu!$F$29","v":"X"},{"$f":"Menu!$J$29","v":2020},{"$f":"IF(ISBLANK(INDIRECT(\"'\"&F3594&\"'!\"&G3594)),\"\",INDIRECT(\"'\"&F3594&\"'!\"&G3594))","v":""},{"$f":"IF(ISBLANK(INDIRECT(\"'\"&F3594&\"'!\"&H3594)),\"\",IFERROR(VLOOKUP(TEXT(INDIRECT(\"'\"&F3594&\"'!\"&H3594),\"0\"),Notes!$B$5:$C$100,2,FALSE),\"\"))","v":""},"2e","$S$99","$T$99"]
[15598,{"$f":"Menu!$F$29","v":"X"},{"$f":"Menu!$J$29","v":2020},{"$f":"IF(ISBLANK(INDIRECT(\"'\"&F3595&\"'!\"&G3595)),\"\",INDIRECT(\"'\"&F3595&\"'!\"&G3595))","v":""},{"$f":"IF(ISBLANK(INDIRECT(\"'\"&F3595&\"'!\"&H3595)),\"\",IFERROR(VLOOKUP(TEXT(INDIRECT(\"'\"&F3595&\"'!\"&H3595),\"0\"),Notes!$B$5:$C$100,2,FALSE),\"\"))","v":""},"2e","$U$99","$V$99"]
[15599,{"$f":"Menu!$F$29","v":"X"},{"$f":"Menu!$J$29","v":2020},{"$f":"IF(ISBLANK(INDIRECT(\"'\"&F3596&\"'!\"&G3596)),\"\",INDIRECT(\"'\"&F3596&\"'!\"&G3596))","v":""},{"$f":"IF(ISBLANK(INDIRECT(\"'\"&F3596&\"'!\"&H3596)),\"\",IFERROR(VLOOKUP(TEXT(INDIRECT(\"'\"&F3596&\"'!\"&H3596),\"0\"),Notes!$B$5:$C$100,2,FALSE),\"\"))","v":""},"2e","$W$99","$X$99"]
[15600,{"$f":"Menu!$F$29","v":"X"},{"$f":"Menu!$J$29","v":2020},{"$f":"IF(ISBLANK(INDIRECT(\"'\"&F3597&\"'!\"&G3597)),\"\",INDIRECT(\"'\"&F3597&\"'!\"&G3597))","v":""},{"$f":"IF(ISBLANK(INDIRECT(\"'\"&F3597&\"'!\"&H3597)),\"\",IFERROR(VLOOKUP(TEXT(INDIRECT(\"'\"&F3597&\"'!\"&H3597),\"0\"),Notes!$B$5:$C$100,2,FALSE),\"\"))","v":""},"2e","$Y$99","$Z$99"]
[15601,{"$f":"Menu!$F$29","v":"X"},{"$f":"Menu!$J$29","v":2020},{"$f":"IF(ISBLANK(INDIRECT(\"'\"&F3598&\"'!\"&G3598)),\"\",INDIRECT(\"'\"&F3598&\"'!\"&G3598))","v":""},{"$f":"IF(ISBLANK(INDIRECT(\"'\"&F3598&\"'!\"&H3598)),\"\",IFERROR(VLOOKUP(TEXT(INDIRECT(\"'\"&F3598&\"'!\"&H3598),\"0\"),Notes!$B$5:$C$100,2,FALSE),\"\"))","v":""},"2e","$AA$99","$AB$99"]
[15602,{"$f":"Menu!$F$29","v":"X"},{"$f":"Menu!$J$29","v":2020},{"$f":"IF(ISBLANK(INDIRECT(\"'\"&F3599&\"'!\"&G3599)),\"\",INDIRECT(\"'\"&F3599&\"'!\"&G3599))","v":""},{"$f":"IF(ISBLANK(INDIRECT(\"'\"&F3599&\"'!\"&H3599)),\"\",IFERROR(VLOOKUP(TEXT(INDIRECT(\"'\"&F3599&\"'!\"&H3599),\"0\"),Notes!$B$5:$C$100,2,FALSE),\"\"))","v":""},"2e","$AC$99","$AD$99"]
[15603,{"$f":"Menu!$F$29","v":"X"},{"$f":"Menu!$J$29","v":2020},{"$f":"IF(ISBLANK(INDIRECT(\"'\"&F3600&\"'!\"&G3600)),\"\",INDIRECT(\"'\"&F3600&\"'!\"&G3600))","v":""},{"$f":"IF(ISBLANK(INDIRECT(\"'\"&F3600&\"'!\"&H3600)),\"\",IFERROR(VLOOKUP(TEXT(INDIRECT(\"'\"&F3600&\"'!\"&H3600),\"0\"),Notes!$B$5:$C$100,2,FALSE),\"\"))","v":""},"2e","$AE$99","$AF$99"]
[15604,{"$f":"Menu!$F$29","v":"X"},{"$f":"Menu!$J$29","v":2020},{"$f":"IF(ISBLANK(INDIRECT(\"'\"&F3601&\"'!\"&G3601)),\"\",INDIRECT(\"'\"&F3601&\"'!\"&G3601))","v":""},{"$f":"IF(ISBLANK(INDIRECT(\"'\"&F3601&\"'!\"&H3601)),\"\",IFERROR(VLOOKUP(TEXT(INDIRECT(\"'\"&F3601&\"'!\"&H3601),\"0\"),Notes!$B$5:$C$100,2,FALSE),\"\"))","v":""},"2e","$AG$99","$AH$99"]
[15605,{"$f":"Menu!$F$29","v":"X"},{"$f":"Menu!$J$29","v":2020},{"$f":"IF(ISBLANK(INDIRECT(\"'\"&F3602&\"'!\"&G3602)),\"\",INDIRECT(\"'\"&F3602&\"'!\"&G3602))","v":""},{"$f":"IF(ISBLANK(INDIRECT(\"'\"&F3602&\"'!\"&H3602)),\"\",IFERROR(VLOOKUP(TEXT(INDIRECT(\"'\"&F3602&\"'!\"&H3602),\"0\"),Notes!$B$5:$C$100,2,FALSE),\"\"))","v":""},"2e","$AI$99","$AJ$99"]
[15606,{"$f":"Menu!$F$29","v":"X"},{"$f":"Menu!$J$29","v":2020},{"$f":"IF(ISBLANK(INDIRECT(\"'\"&F3603&\"'!\"&G3603)),\"\",INDIRECT(\"'\"&F3603&\"'!\"&G3603))","v":""},{"$f":"IF(ISBLANK(INDIRECT(\"'\"&F3603&\"'!\"&H3603)),\"\",IFERROR(VLOOKUP(TEXT(INDIRECT(\"'\"&F3603&\"'!\"&H3603),\"0\"),Notes!$B$5:$C$100,2,FALSE),\"\"))","v":""},"2e","$AK$99","$AL$99"]
[15607,{"$f":"Menu!$F$29","v":"X"},{"$f":"Menu!$J$29","v":2020},{"$f":"IF(ISBLANK(INDIRECT(\"'\"&F3604&\"'!\"&G3604)),\"\",INDIRECT(\"'\"&F3604&\"'!\"&G3604))","v":""},{"$f":"IF(ISBLANK(INDIRECT(\"'\"&F3604&\"'!\"&H3604)),\"\",IFERROR(VLOOKUP(TEXT(INDIRECT(\"'\"&F3604&\"'!\"&H3604),\"0\"),Notes!$B$5:$C$100,2,FALSE),\"\"))","v":""},"2e","$AM$99","$AN$99"]
[15608,{"$f":"Menu!$F$29","v":"X"},{"$f":"Menu!$J$29","v":2020},{"$f":"IF(ISBLANK(INDIRECT(\"'\"&F3605&\"'!\"&G3605)),\"\",INDIRECT(\"'\"&F3605&\"'!\"&G3605))","v":""},{"$f":"IF(ISBLANK(INDIRECT(\"'\"&F3605&\"'!\"&H3605)),\"\",IFERROR(VLOOKUP(TEXT(INDIRECT(\"'\"&F3605&\"'!\"&H3605),\"0\"),Notes!$B$5:$C$100,2,FALSE),\"\"))","v":""},"2e","$AO$99","$AP$99"]
[15609,{"$f":"Menu!$F$29","v":"X"},{"$f":"Menu!$J$29","v":2020},{"$f":"IF(ISBLANK(INDIRECT(\"'\"&F3606&\"'!\"&G3606)),\"\",INDIRECT(\"'\"&F3606&\"'!\"&G3606))","v":""},{"$f":"IF(ISBLANK(INDIRECT(\"'\"&F3606&\"'!\"&H3606)),\"\",IFERROR(VLOOKUP(TEXT(INDIRECT(\"'\"&F3606&\"'!\"&H3606),\"0\"),Notes!$B$5:$C$100,2,FALSE),\"\"))","v":""},"2e","$AQ$99","$AR$99"]
[15610,{"$f":"Menu!$F$29","v":"X"},{"$f":"Menu!$J$29","v":2020},{"$f":"IF(ISBLANK(INDIRECT(\"'\"&F3607&\"'!\"&G3607)),\"\",INDIRECT(\"'\"&F3607&\"'!\"&G3607))","v":""},{"$f":"IF(ISBLANK(INDIRECT(\"'\"&F3607&\"'!\"&H3607)),\"\",IFERROR(VLOOKUP(TEXT(INDIRECT(\"'\"&F3607&\"'!\"&H3607),\"0\"),Notes!$B$5:$C$100,2,FALSE),\"\"))","v":""},"2e","$AS$99","$AT$99"]
[15611,{"$f":"Menu!$F$29","v":"X"},{"$f":"Menu!$J$29","v":2020},{"$f":"IF(ISBLANK(INDIRECT(\"'\"&F3608&\"'!\"&G3608)),\"\",INDIRECT(\"'\"&F3608&\"'!\"&G3608))","v":""},{"$f":"IF(ISBLANK(INDIRECT(\"'\"&F3608&\"'!\"&H3608)),\"\",IFERROR(VLOOKUP(TEXT(INDIRECT(\"'\"&F3608&\"'!\"&H3608),\"0\"),Notes!$B$5:$C$100,2,FALSE),\"\"))","v":""},"2e","$AU$99","$AV$99"]
[15612,{"$f":"Menu!$F$29","v":"X"},{"$f":"Menu!$J$29","v":2020},{"$f":"IF(ISBLANK(INDIRECT(\"'\"&F3609&\"'!\"&G3609)),\"\",INDIRECT(\"'\"&F3609&\"'!\"&G3609))","v":""},{"$f":"IF(ISBLANK(INDIRECT(\"'\"&F3609&\"'!\"&H3609)),\"\",IFERROR(VLOOKUP(TEXT(INDIRECT(\"'\"&F3609&\"'!\"&H3609),\"0\"),Notes!$B$5:$C$100,2,FALSE),\"\"))","v":""},"2e","$AW$99","$AX$99"]
[15613,{"$f":"Menu!$F$29","v":"X"},{"$f":"Menu!$J$29","v":2020},{"$f":"IF(ISBLANK(INDIRECT(\"'\"&F3610&\"'!\"&G3610)),\"\",INDIRECT(\"'\"&F3610&\"'!\"&G3610))","v":""},{"$f":"IF(ISBLANK(INDIRECT(\"'\"&F3610&\"'!\"&H3610)),\"\",IFERROR(VLOOKUP(TEXT(INDIRECT(\"'\"&F3610&\"'!\"&H3610),\"0\"),Notes!$B$5:$C$100,2,FALSE),\"\"))","v":""},"2e","$AY$99","$AZ$99"]
[15614,{"$f":"Menu!$F$29","v":"X"},{"$f":"Menu!$J$29","v":2020},{"$f":"IF(ISBLANK(INDIRECT(\"'\"&F3611&\"'!\"&G3611)),\"\",INDIRECT(\"'\"&F3611&\"'!\"&G3611))","v":""},{"$f":"IF(ISBLANK(INDIRECT(\"'\"&F3611&\"'!\"&H3611)),\"\",IFERROR(VLOOKUP(TEXT(INDIRECT(\"'\"&F3611&\"'!\"&H3611),\"0\"),Notes!$B$5:$C$100,2,FALSE),\"\"))","v":""},"2e","$BA$99","$BB$99"]
[15615,{"$f":"Menu!$F$29","v":"X"},{"$f":"Menu!$J$29","v":2020},{"$f":"IF(ISBLANK(INDIRECT(\"'\"&F3612&\"'!\"&G3612)),\"\",INDIRECT(\"'\"&F3612&\"'!\"&G3612))","v":""},{"$f":"IF(ISBLANK(INDIRECT(\"'\"&F3612&\"'!\"&H3612)),\"\",IFERROR(VLOOKUP(TEXT(INDIRECT(\"'\"&F3612&\"'!\"&H3612),\"0\"),Notes!$B$5:$C$100,2,FALSE),\"\"))","v":""},"2e","$BC$99","$BD$99"]
[15616,{"$f":"Menu!$F$29","v":"X"},{"$f":"Menu!$J$29","v":2020},{"$f":"IF(ISBLANK(INDIRECT(\"'\"&F3613&\"'!\"&G3613)),\"\",INDIRECT(\"'\"&F3613&\"'!\"&G3613))","v":""},{"$f":"IF(ISBLANK(INDIRECT(\"'\"&F3613&\"'!\"&H3613)),\"\",IFERROR(VLOOKUP(TEXT(INDIRECT(\"'\"&F3613&\"'!\"&H3613),\"0\"),Notes!$B$5:$C$100,2,FALSE),\"\"))","v":""},"2e","$BE$99","$BF$99"]
[15617,{"$f":"Menu!$F$29","v":"X"},{"$f":"Menu!$J$29","v":2020},{"$f":"IF(ISBLANK(INDIRECT(\"'\"&F3614&\"'!\"&G3614)),\"\",INDIRECT(\"'\"&F3614&\"'!\"&G3614))","v":""},{"$f":"IF(ISBLANK(INDIRECT(\"'\"&F3614&\"'!\"&H3614)),\"\",IFERROR(VLOOKUP(TEXT(INDIRECT(\"'\"&F3614&\"'!\"&H3614),\"0\"),Notes!$B$5:$C$100,2,FALSE),\"\"))","v":""},"2e","$BG$99","$BH$99"]
[15618,{"$f":"Menu!$F$29","v":"X"},{"$f":"Menu!$J$29","v":2020},{"$f":"IF(ISBLANK(INDIRECT(\"'\"&F3615&\"'!\"&G3615)),\"\",INDIRECT(\"'\"&F3615&\"'!\"&G3615))","v":""},{"$f":"IF(ISBLANK(INDIRECT(\"'\"&F3615&\"'!\"&H3615)),\"\",IFERROR(VLOOKUP(TEXT(INDIRECT(\"'\"&F3615&\"'!\"&H3615),\"0\"),Notes!$B$5:$C$100,2,FALSE),\"\"))","v":""},"2e","$BI$99","$BJ$99"]
[15619,{"$f":"Menu!$F$29","v":"X"},{"$f":"Menu!$J$29","v":2020},{"$f":"IF(ISBLANK(INDIRECT(\"'\"&F3616&\"'!\"&G3616)),\"\",INDIRECT(\"'\"&F3616&\"'!\"&G3616))","v":""},{"$f":"IF(ISBLANK(INDIRECT(\"'\"&F3616&\"'!\"&H3616)),\"\",IFERROR(VLOOKUP(TEXT(INDIRECT(\"'\"&F3616&\"'!\"&H3616),\"0\"),Notes!$B$5:$C$100,2,FALSE),\"\"))","v":""},"2e","$BK$99","$BL$99"]
[15620,{"$f":"Menu!$F$29","v":"X"},{"$f":"Menu!$J$29","v":2020},{"$f":"IF(ISBLANK(INDIRECT(\"'\"&F3617&\"'!\"&G3617)),\"\",INDIRECT(\"'\"&F3617&\"'!\"&G3617))","v":""},{"$f":"IF(ISBLANK(INDIRECT(\"'\"&F3617&\"'!\"&H3617)),\"\",IFERROR(VLOOKUP(TEXT(INDIRECT(\"'\"&F3617&\"'!\"&H3617),\"0\"),Notes!$B$5:$C$100,2,FALSE),\"\"))","v":""},"2e","$E$100","$F$100"]
[15621,{"$f":"Menu!$F$29","v":"X"},{"$f":"Menu!$J$29","v":2020},{"$f":"IF(ISBLANK(INDIRECT(\"'\"&F3618&\"'!\"&G3618)),\"\",INDIRECT(\"'\"&F3618&\"'!\"&G3618))","v":""},{"$f":"IF(ISBLANK(INDIRECT(\"'\"&F3618&\"'!\"&H3618)),\"\",IFERROR(VLOOKUP(TEXT(INDIRECT(\"'\"&F3618&\"'!\"&H3618),\"0\"),Notes!$B$5:$C$100,2,FALSE),\"\"))","v":""},"2e","$G$100","$H$100"]
[15622,{"$f":"Menu!$F$29","v":"X"},{"$f":"Menu!$J$29","v":2020},{"$f":"IF(ISBLANK(INDIRECT(\"'\"&F3619&\"'!\"&G3619)),\"\",INDIRECT(\"'\"&F3619&\"'!\"&G3619))","v":""},{"$f":"IF(ISBLANK(INDIRECT(\"'\"&F3619&\"'!\"&H3619)),\"\",IFERROR(VLOOKUP(TEXT(INDIRECT(\"'\"&F3619&\"'!\"&H3619),\"0\"),Notes!$B$5:$C$100,2,FALSE),\"\"))","v":""},"2e","$I$100","$J$100"]
[15623,{"$f":"Menu!$F$29","v":"X"},{"$f":"Menu!$J$29","v":2020},{"$f":"IF(ISBLANK(INDIRECT(\"'\"&F3620&\"'!\"&G3620)),\"\",INDIRECT(\"'\"&F3620&\"'!\"&G3620))","v":""},{"$f":"IF(ISBLANK(INDIRECT(\"'\"&F3620&\"'!\"&H3620)),\"\",IFERROR(VLOOKUP(TEXT(INDIRECT(\"'\"&F3620&\"'!\"&H3620),\"0\"),Notes!$B$5:$C$100,2,FALSE),\"\"))","v":""},"2e","$K$100","$L$100"]
[15624,{"$f":"Menu!$F$29","v":"X"},{"$f":"Menu!$J$29","v":2020},{"$f":"IF(ISBLANK(INDIRECT(\"'\"&F3621&\"'!\"&G3621)),\"\",INDIRECT(\"'\"&F3621&\"'!\"&G3621))","v":""},{"$f":"IF(ISBLANK(INDIRECT(\"'\"&F3621&\"'!\"&H3621)),\"\",IFERROR(VLOOKUP(TEXT(INDIRECT(\"'\"&F3621&\"'!\"&H3621),\"0\"),Notes!$B$5:$C$100,2,FALSE),\"\"))","v":""},"2e","$M$100","$N$100"]
[15625,{"$f":"Menu!$F$29","v":"X"},{"$f":"Menu!$J$29","v":2020},{"$f":"IF(ISBLANK(INDIRECT(\"'\"&F3622&\"'!\"&G3622)),\"\",INDIRECT(\"'\"&F3622&\"'!\"&G3622))","v":""},{"$f":"IF(ISBLANK(INDIRECT(\"'\"&F3622&\"'!\"&H3622)),\"\",IFERROR(VLOOKUP(TEXT(INDIRECT(\"'\"&F3622&\"'!\"&H3622),\"0\"),Notes!$B$5:$C$100,2,FALSE),\"\"))","v":""},"2e","$O$100","$P$100"]
[15626,{"$f":"Menu!$F$29","v":"X"},{"$f":"Menu!$J$29","v":2020},{"$f":"IF(ISBLANK(INDIRECT(\"'\"&F3623&\"'!\"&G3623)),\"\",INDIRECT(\"'\"&F3623&\"'!\"&G3623))","v":""},{"$f":"IF(ISBLANK(INDIRECT(\"'\"&F3623&\"'!\"&H3623)),\"\",IFERROR(VLOOKUP(TEXT(INDIRECT(\"'\"&F3623&\"'!\"&H3623),\"0\"),Notes!$B$5:$C$100,2,FALSE),\"\"))","v":""},"2e","$Q$100","$R$100"]
[15627,{"$f":"Menu!$F$29","v":"X"},{"$f":"Menu!$J$29","v":2020},{"$f":"IF(ISBLANK(INDIRECT(\"'\"&F3624&\"'!\"&G3624)),\"\",INDIRECT(\"'\"&F3624&\"'!\"&G3624))","v":""},{"$f":"IF(ISBLANK(INDIRECT(\"'\"&F3624&\"'!\"&H3624)),\"\",IFERROR(VLOOKUP(TEXT(INDIRECT(\"'\"&F3624&\"'!\"&H3624),\"0\"),Notes!$B$5:$C$100,2,FALSE),\"\"))","v":""},"2e","$S$100","$T$100"]
[15628,{"$f":"Menu!$F$29","v":"X"},{"$f":"Menu!$J$29","v":2020},{"$f":"IF(ISBLANK(INDIRECT(\"'\"&F3625&\"'!\"&G3625)),\"\",INDIRECT(\"'\"&F3625&\"'!\"&G3625))","v":""},{"$f":"IF(ISBLANK(INDIRECT(\"'\"&F3625&\"'!\"&H3625)),\"\",IFERROR(VLOOKUP(TEXT(INDIRECT(\"'\"&F3625&\"'!\"&H3625),\"0\"),Notes!$B$5:$C$100,2,FALSE),\"\"))","v":""},"2e","$U$100","$V$100"]
[15629,{"$f":"Menu!$F$29","v":"X"},{"$f":"Menu!$J$29","v":2020},{"$f":"IF(ISBLANK(INDIRECT(\"'\"&F3626&\"'!\"&G3626)),\"\",INDIRECT(\"'\"&F3626&\"'!\"&G3626))","v":""},{"$f":"IF(ISBLANK(INDIRECT(\"'\"&F3626&\"'!\"&H3626)),\"\",IFERROR(VLOOKUP(TEXT(INDIRECT(\"'\"&F3626&\"'!\"&H3626),\"0\"),Notes!$B$5:$C$100,2,FALSE),\"\"))","v":""},"2e","$W$100","$X$100"]
[15630,{"$f":"Menu!$F$29","v":"X"},{"$f":"Menu!$J$29","v":2020},{"$f":"IF(ISBLANK(INDIRECT(\"'\"&F3627&\"'!\"&G3627)),\"\",INDIRECT(\"'\"&F3627&\"'!\"&G3627))","v":""},{"$f":"IF(ISBLANK(INDIRECT(\"'\"&F3627&\"'!\"&H3627)),\"\",IFERROR(VLOOKUP(TEXT(INDIRECT(\"'\"&F3627&\"'!\"&H3627),\"0\"),Notes!$B$5:$C$100,2,FALSE),\"\"))","v":""},"2e","$Y$100","$Z$100"]
[15631,{"$f":"Menu!$F$29","v":"X"},{"$f":"Menu!$J$29","v":2020},{"$f":"IF(ISBLANK(INDIRECT(\"'\"&F3628&\"'!\"&G3628)),\"\",INDIRECT(\"'\"&F3628&\"'!\"&G3628))","v":""},{"$f":"IF(ISBLANK(INDIRECT(\"'\"&F3628&\"'!\"&H3628)),\"\",IFERROR(VLOOKUP(TEXT(INDIRECT(\"'\"&F3628&\"'!\"&H3628),\"0\"),Notes!$B$5:$C$100,2,FALSE),\"\"))","v":""},"2e","$AA$100","$AB$100"]
[15632,{"$f":"Menu!$F$29","v":"X"},{"$f":"Menu!$J$29","v":2020},{"$f":"IF(ISBLANK(INDIRECT(\"'\"&F3629&\"'!\"&G3629)),\"\",INDIRECT(\"'\"&F3629&\"'!\"&G3629))","v":""},{"$f":"IF(ISBLANK(INDIRECT(\"'\"&F3629&\"'!\"&H3629)),\"\",IFERROR(VLOOKUP(TEXT(INDIRECT(\"'\"&F3629&\"'!\"&H3629),\"0\"),Notes!$B$5:$C$100,2,FALSE),\"\"))","v":""},"2e","$AC$100","$AD$100"]
[15633,{"$f":"Menu!$F$29","v":"X"},{"$f":"Menu!$J$29","v":2020},{"$f":"IF(ISBLANK(INDIRECT(\"'\"&F3630&\"'!\"&G3630)),\"\",INDIRECT(\"'\"&F3630&\"'!\"&G3630))","v":""},{"$f":"IF(ISBLANK(INDIRECT(\"'\"&F3630&\"'!\"&H3630)),\"\",IFERROR(VLOOKUP(TEXT(INDIRECT(\"'\"&F3630&\"'!\"&H3630),\"0\"),Notes!$B$5:$C$100,2,FALSE),\"\"))","v":""},"2e","$AE$100","$AF$100"]
[15634,{"$f":"Menu!$F$29","v":"X"},{"$f":"Menu!$J$29","v":2020},{"$f":"IF(ISBLANK(INDIRECT(\"'\"&F3631&\"'!\"&G3631)),\"\",INDIRECT(\"'\"&F3631&\"'!\"&G3631))","v":""},{"$f":"IF(ISBLANK(INDIRECT(\"'\"&F3631&\"'!\"&H3631)),\"\",IFERROR(VLOOKUP(TEXT(INDIRECT(\"'\"&F3631&\"'!\"&H3631),\"0\"),Notes!$B$5:$C$100,2,FALSE),\"\"))","v":""},"2e","$AG$100","$AH$100"]
[15635,{"$f":"Menu!$F$29","v":"X"},{"$f":"Menu!$J$29","v":2020},{"$f":"IF(ISBLANK(INDIRECT(\"'\"&F3632&\"'!\"&G3632)),\"\",INDIRECT(\"'\"&F3632&\"'!\"&G3632))","v":""},{"$f":"IF(ISBLANK(INDIRECT(\"'\"&F3632&\"'!\"&H3632)),\"\",IFERROR(VLOOKUP(TEXT(INDIRECT(\"'\"&F3632&\"'!\"&H3632),\"0\"),Notes!$B$5:$C$100,2,FALSE),\"\"))","v":""},"2e","$AI$100","$AJ$100"]
[15636,{"$f":"Menu!$F$29","v":"X"},{"$f":"Menu!$J$29","v":2020},{"$f":"IF(ISBLANK(INDIRECT(\"'\"&F3633&\"'!\"&G3633)),\"\",INDIRECT(\"'\"&F3633&\"'!\"&G3633))","v":""},{"$f":"IF(ISBLANK(INDIRECT(\"'\"&F3633&\"'!\"&H3633)),\"\",IFERROR(VLOOKUP(TEXT(INDIRECT(\"'\"&F3633&\"'!\"&H3633),\"0\"),Notes!$B$5:$C$100,2,FALSE),\"\"))","v":""},"2e","$AK$100","$AL$100"]
[15637,{"$f":"Menu!$F$29","v":"X"},{"$f":"Menu!$J$29","v":2020},{"$f":"IF(ISBLANK(INDIRECT(\"'\"&F3634&\"'!\"&G3634)),\"\",INDIRECT(\"'\"&F3634&\"'!\"&G3634))","v":""},{"$f":"IF(ISBLANK(INDIRECT(\"'\"&F3634&\"'!\"&H3634)),\"\",IFERROR(VLOOKUP(TEXT(INDIRECT(\"'\"&F3634&\"'!\"&H3634),\"0\"),Notes!$B$5:$C$100,2,FALSE),\"\"))","v":""},"2e","$AM$100","$AN$100"]
[15638,{"$f":"Menu!$F$29","v":"X"},{"$f":"Menu!$J$29","v":2020},{"$f":"IF(ISBLANK(INDIRECT(\"'\"&F3635&\"'!\"&G3635)),\"\",INDIRECT(\"'\"&F3635&\"'!\"&G3635))","v":""},{"$f":"IF(ISBLANK(INDIRECT(\"'\"&F3635&\"'!\"&H3635)),\"\",IFERROR(VLOOKUP(TEXT(INDIRECT(\"'\"&F3635&\"'!\"&H3635),\"0\"),Notes!$B$5:$C$100,2,FALSE),\"\"))","v":""},"2e","$AO$100","$AP$100"]
[15639,{"$f":"Menu!$F$29","v":"X"},{"$f":"Menu!$J$29","v":2020},{"$f":"IF(ISBLANK(INDIRECT(\"'\"&F3636&\"'!\"&G3636)),\"\",INDIRECT(\"'\"&F3636&\"'!\"&G3636))","v":""},{"$f":"IF(ISBLANK(INDIRECT(\"'\"&F3636&\"'!\"&H3636)),\"\",IFERROR(VLOOKUP(TEXT(INDIRECT(\"'\"&F3636&\"'!\"&H3636),\"0\"),Notes!$B$5:$C$100,2,FALSE),\"\"))","v":""},"2e","$AQ$100","$AR$100"]
[15640,{"$f":"Menu!$F$29","v":"X"},{"$f":"Menu!$J$29","v":2020},{"$f":"IF(ISBLANK(INDIRECT(\"'\"&F3637&\"'!\"&G3637)),\"\",INDIRECT(\"'\"&F3637&\"'!\"&G3637))","v":""},{"$f":"IF(ISBLANK(INDIRECT(\"'\"&F3637&\"'!\"&H3637)),\"\",IFERROR(VLOOKUP(TEXT(INDIRECT(\"'\"&F3637&\"'!\"&H3637),\"0\"),Notes!$B$5:$C$100,2,FALSE),\"\"))","v":""},"2e","$AS$100","$AT$100"]
[15641,{"$f":"Menu!$F$29","v":"X"},{"$f":"Menu!$J$29","v":2020},{"$f":"IF(ISBLANK(INDIRECT(\"'\"&F3638&\"'!\"&G3638)),\"\",INDIRECT(\"'\"&F3638&\"'!\"&G3638))","v":""},{"$f":"IF(ISBLANK(INDIRECT(\"'\"&F3638&\"'!\"&H3638)),\"\",IFERROR(VLOOKUP(TEXT(INDIRECT(\"'\"&F3638&\"'!\"&H3638),\"0\"),Notes!$B$5:$C$100,2,FALSE),\"\"))","v":""},"2e","$AU$100","$AV$100"]
[15642,{"$f":"Menu!$F$29","v":"X"},{"$f":"Menu!$J$29","v":2020},{"$f":"IF(ISBLANK(INDIRECT(\"'\"&F3639&\"'!\"&G3639)),\"\",INDIRECT(\"'\"&F3639&\"'!\"&G3639))","v":""},{"$f":"IF(ISBLANK(INDIRECT(\"'\"&F3639&\"'!\"&H3639)),\"\",IFERROR(VLOOKUP(TEXT(INDIRECT(\"'\"&F3639&\"'!\"&H3639),\"0\"),Notes!$B$5:$C$100,2,FALSE),\"\"))","v":""},"2e","$AW$100","$AX$100"]
[15643,{"$f":"Menu!$F$29","v":"X"},{"$f":"Menu!$J$29","v":2020},{"$f":"IF(ISBLANK(INDIRECT(\"'\"&F3640&\"'!\"&G3640)),\"\",INDIRECT(\"'\"&F3640&\"'!\"&G3640))","v":""},{"$f":"IF(ISBLANK(INDIRECT(\"'\"&F3640&\"'!\"&H3640)),\"\",IFERROR(VLOOKUP(TEXT(INDIRECT(\"'\"&F3640&\"'!\"&H3640),\"0\"),Notes!$B$5:$C$100,2,FALSE),\"\"))","v":""},"2e","$AY$100","$AZ$100"]
[15644,{"$f":"Menu!$F$29","v":"X"},{"$f":"Menu!$J$29","v":2020},{"$f":"IF(ISBLANK(INDIRECT(\"'\"&F3641&\"'!\"&G3641)),\"\",INDIRECT(\"'\"&F3641&\"'!\"&G3641))","v":""},{"$f":"IF(ISBLANK(INDIRECT(\"'\"&F3641&\"'!\"&H3641)),\"\",IFERROR(VLOOKUP(TEXT(INDIRECT(\"'\"&F3641&\"'!\"&H3641),\"0\"),Notes!$B$5:$C$100,2,FALSE),\"\"))","v":""},"2e","$BA$100","$BB$100"]
[15645,{"$f":"Menu!$F$29","v":"X"},{"$f":"Menu!$J$29","v":2020},{"$f":"IF(ISBLANK(INDIRECT(\"'\"&F3642&\"'!\"&G3642)),\"\",INDIRECT(\"'\"&F3642&\"'!\"&G3642))","v":""},{"$f":"IF(ISBLANK(INDIRECT(\"'\"&F3642&\"'!\"&H3642)),\"\",IFERROR(VLOOKUP(TEXT(INDIRECT(\"'\"&F3642&\"'!\"&H3642),\"0\"),Notes!$B$5:$C$100,2,FALSE),\"\"))","v":""},"2e","$BC$100","$BD$100"]
[15646,{"$f":"Menu!$F$29","v":"X"},{"$f":"Menu!$J$29","v":2020},{"$f":"IF(ISBLANK(INDIRECT(\"'\"&F3643&\"'!\"&G3643)),\"\",INDIRECT(\"'\"&F3643&\"'!\"&G3643))","v":""},{"$f":"IF(ISBLANK(INDIRECT(\"'\"&F3643&\"'!\"&H3643)),\"\",IFERROR(VLOOKUP(TEXT(INDIRECT(\"'\"&F3643&\"'!\"&H3643),\"0\"),Notes!$B$5:$C$100,2,FALSE),\"\"))","v":""},"2e","$BE$100","$BF$100"]
[15647,{"$f":"Menu!$F$29","v":"X"},{"$f":"Menu!$J$29","v":2020},{"$f":"IF(ISBLANK(INDIRECT(\"'\"&F3644&\"'!\"&G3644)),\"\",INDIRECT(\"'\"&F3644&\"'!\"&G3644))","v":""},{"$f":"IF(ISBLANK(INDIRECT(\"'\"&F3644&\"'!\"&H3644)),\"\",IFERROR(VLOOKUP(TEXT(INDIRECT(\"'\"&F3644&\"'!\"&H3644),\"0\"),Notes!$B$5:$C$100,2,FALSE),\"\"))","v":""},"2e","$BG$100","$BH$100"]
[15648,{"$f":"Menu!$F$29","v":"X"},{"$f":"Menu!$J$29","v":2020},{"$f":"IF(ISBLANK(INDIRECT(\"'\"&F3645&\"'!\"&G3645)),\"\",INDIRECT(\"'\"&F3645&\"'!\"&G3645))","v":""},{"$f":"IF(ISBLANK(INDIRECT(\"'\"&F3645&\"'!\"&H3645)),\"\",IFERROR(VLOOKUP(TEXT(INDIRECT(\"'\"&F3645&\"'!\"&H3645),\"0\"),Notes!$B$5:$C$100,2,FALSE),\"\"))","v":""},"2e","$BI$100","$BJ$100"]
[15649,{"$f":"Menu!$F$29","v":"X"},{"$f":"Menu!$J$29","v":2020},{"$f":"IF(ISBLANK(INDIRECT(\"'\"&F3646&\"'!\"&G3646)),\"\",INDIRECT(\"'\"&F3646&\"'!\"&G3646))","v":""},{"$f":"IF(ISBLANK(INDIRECT(\"'\"&F3646&\"'!\"&H3646)),\"\",IFERROR(VLOOKUP(TEXT(INDIRECT(\"'\"&F3646&\"'!\"&H3646),\"0\"),Notes!$B$5:$C$100,2,FALSE),\"\"))","v":""},"2e","$BK$100","$BL$100"]
[15680,{"$f":"Menu!$F$29","v":"X"},{"$f":"Menu!$J$29","v":2020},{"$f":"IF(ISBLANK(INDIRECT(\"'\"&F3647&\"'!\"&G3647)),\"\",INDIRECT(\"'\"&F3647&\"'!\"&G3647))","v":""},{"$f":"IF(ISBLANK(INDIRECT(\"'\"&F3647&\"'!\"&H3647)),\"\",IFERROR(VLOOKUP(TEXT(INDIRECT(\"'\"&F3647&\"'!\"&H3647),\"0\"),Notes!$B$5:$C$100,2,FALSE),\"\"))","v":""},"2e","$E$106","$F$106"]
[15681,{"$f":"Menu!$F$29","v":"X"},{"$f":"Menu!$J$29","v":2020},{"$f":"IF(ISBLANK(INDIRECT(\"'\"&F3648&\"'!\"&G3648)),\"\",INDIRECT(\"'\"&F3648&\"'!\"&G3648))","v":""},{"$f":"IF(ISBLANK(INDIRECT(\"'\"&F3648&\"'!\"&H3648)),\"\",IFERROR(VLOOKUP(TEXT(INDIRECT(\"'\"&F3648&\"'!\"&H3648),\"0\"),Notes!$B$5:$C$100,2,FALSE),\"\"))","v":""},"2e","$G$106","$H$106"]
[15682,{"$f":"Menu!$F$29","v":"X"},{"$f":"Menu!$J$29","v":2020},{"$f":"IF(ISBLANK(INDIRECT(\"'\"&F3649&\"'!\"&G3649)),\"\",INDIRECT(\"'\"&F3649&\"'!\"&G3649))","v":""},{"$f":"IF(ISBLANK(INDIRECT(\"'\"&F3649&\"'!\"&H3649)),\"\",IFERROR(VLOOKUP(TEXT(INDIRECT(\"'\"&F3649&\"'!\"&H3649),\"0\"),Notes!$B$5:$C$100,2,FALSE),\"\"))","v":""},"2e","$I$106","$J$106"]
[15683,{"$f":"Menu!$F$29","v":"X"},{"$f":"Menu!$J$29","v":2020},{"$f":"IF(ISBLANK(INDIRECT(\"'\"&F3650&\"'!\"&G3650)),\"\",INDIRECT(\"'\"&F3650&\"'!\"&G3650))","v":""},{"$f":"IF(ISBLANK(INDIRECT(\"'\"&F3650&\"'!\"&H3650)),\"\",IFERROR(VLOOKUP(TEXT(INDIRECT(\"'\"&F3650&\"'!\"&H3650),\"0\"),Notes!$B$5:$C$100,2,FALSE),\"\"))","v":""},"2e","$K$106",{"$f":"IF(LEN(TRIM(MID(G3650,4,10)))-LEN(SUBSTITUTE(TRIM(MID(G3650,4,10)),\"$\",\"\"))=0,\"$\"&CHAR(CODE(MID(G3650,2,1))+1)&\"$\"&TRIM(MID(G3650,4,10)),\"$\"&MID(G3650,2,1)&CHAR(CODE(MID(G3650,3,1))+1)&\"$\"&TRIM(MID(G3650,5,11)))","v":"$L$106"}]
[15684,{"$f":"Menu!$F$29","v":"X"},{"$f":"Menu!$J$29","v":2020},{"$f":"IF(ISBLANK(INDIRECT(\"'\"&F3651&\"'!\"&G3651)),\"\",INDIRECT(\"'\"&F3651&\"'!\"&G3651))","v":""},{"$f":"IF(ISBLANK(INDIRECT(\"'\"&F3651&\"'!\"&H3651)),\"\",IFERROR(VLOOKUP(TEXT(INDIRECT(\"'\"&F3651&\"'!\"&H3651),\"0\"),Notes!$B$5:$C$100,2,FALSE),\"\"))","v":""},"2e","$M$106","$N$106"]
[15685,{"$f":"Menu!$F$29","v":"X"},{"$f":"Menu!$J$29","v":2020},{"$f":"IF(ISBLANK(INDIRECT(\"'\"&F3652&\"'!\"&G3652)),\"\",INDIRECT(\"'\"&F3652&\"'!\"&G3652))","v":""},{"$f":"IF(ISBLANK(INDIRECT(\"'\"&F3652&\"'!\"&H3652)),\"\",IFERROR(VLOOKUP(TEXT(INDIRECT(\"'\"&F3652&\"'!\"&H3652),\"0\"),Notes!$B$5:$C$100,2,FALSE),\"\"))","v":""},"2e","$O$106","$P$106"]
[15686,{"$f":"Menu!$F$29","v":"X"},{"$f":"Menu!$J$29","v":2020},{"$f":"IF(ISBLANK(INDIRECT(\"'\"&F3653&\"'!\"&G3653)),\"\",INDIRECT(\"'\"&F3653&\"'!\"&G3653))","v":""},{"$f":"IF(ISBLANK(INDIRECT(\"'\"&F3653&\"'!\"&H3653)),\"\",IFERROR(VLOOKUP(TEXT(INDIRECT(\"'\"&F3653&\"'!\"&H3653),\"0\"),Notes!$B$5:$C$100,2,FALSE),\"\"))","v":""},"2e","$Q$106","$R$106"]
[15687,{"$f":"Menu!$F$29","v":"X"},{"$f":"Menu!$J$29","v":2020},{"$f":"IF(ISBLANK(INDIRECT(\"'\"&F3654&\"'!\"&G3654)),\"\",INDIRECT(\"'\"&F3654&\"'!\"&G3654))","v":""},{"$f":"IF(ISBLANK(INDIRECT(\"'\"&F3654&\"'!\"&H3654)),\"\",IFERROR(VLOOKUP(TEXT(INDIRECT(\"'\"&F3654&\"'!\"&H3654),\"0\"),Notes!$B$5:$C$100,2,FALSE),\"\"))","v":""},"2e","$S$106","$T$106"]
[15688,{"$f":"Menu!$F$29","v":"X"},{"$f":"Menu!$J$29","v":2020},{"$f":"IF(ISBLANK(INDIRECT(\"'\"&F3655&\"'!\"&G3655)),\"\",INDIRECT(\"'\"&F3655&\"'!\"&G3655))","v":""},{"$f":"IF(ISBLANK(INDIRECT(\"'\"&F3655&\"'!\"&H3655)),\"\",IFERROR(VLOOKUP(TEXT(INDIRECT(\"'\"&F3655&\"'!\"&H3655),\"0\"),Notes!$B$5:$C$100,2,FALSE),\"\"))","v":""},"2e","$U$106","$V$106"]
[15689,{"$f":"Menu!$F$29","v":"X"},{"$f":"Menu!$J$29","v":2020},{"$f":"IF(ISBLANK(INDIRECT(\"'\"&F3656&\"'!\"&G3656)),\"\",INDIRECT(\"'\"&F3656&\"'!\"&G3656))","v":""},{"$f":"IF(ISBLANK(INDIRECT(\"'\"&F3656&\"'!\"&H3656)),\"\",IFERROR(VLOOKUP(TEXT(INDIRECT(\"'\"&F3656&\"'!\"&H3656),\"0\"),Notes!$B$5:$C$100,2,FALSE),\"\"))","v":""},"2e","$W$106","$X$106"]
[15690,{"$f":"Menu!$F$29","v":"X"},{"$f":"Menu!$J$29","v":2020},{"$f":"IF(ISBLANK(INDIRECT(\"'\"&F3657&\"'!\"&G3657)),\"\",INDIRECT(\"'\"&F3657&\"'!\"&G3657))","v":""},{"$f":"IF(ISBLANK(INDIRECT(\"'\"&F3657&\"'!\"&H3657)),\"\",IFERROR(VLOOKUP(TEXT(INDIRECT(\"'\"&F3657&\"'!\"&H3657),\"0\"),Notes!$B$5:$C$100,2,FALSE),\"\"))","v":""},"2e","$Y$106","$Z$106"]
[15691,{"$f":"Menu!$F$29","v":"X"},{"$f":"Menu!$J$29","v":2020},{"$f":"IF(ISBLANK(INDIRECT(\"'\"&F3658&\"'!\"&G3658)),\"\",INDIRECT(\"'\"&F3658&\"'!\"&G3658))","v":""},{"$f":"IF(ISBLANK(INDIRECT(\"'\"&F3658&\"'!\"&H3658)),\"\",IFERROR(VLOOKUP(TEXT(INDIRECT(\"'\"&F3658&\"'!\"&H3658),\"0\"),Notes!$B$5:$C$100,2,FALSE),\"\"))","v":""},"2e","$AA$106","$AB$106"]
[15692,{"$f":"Menu!$F$29","v":"X"},{"$f":"Menu!$J$29","v":2020},{"$f":"IF(ISBLANK(INDIRECT(\"'\"&F3659&\"'!\"&G3659)),\"\",INDIRECT(\"'\"&F3659&\"'!\"&G3659))","v":""},{"$f":"IF(ISBLANK(INDIRECT(\"'\"&F3659&\"'!\"&H3659)),\"\",IFERROR(VLOOKUP(TEXT(INDIRECT(\"'\"&F3659&\"'!\"&H3659),\"0\"),Notes!$B$5:$C$100,2,FALSE),\"\"))","v":""},"2e","$AC$106","$AD$106"]
[15693,{"$f":"Menu!$F$29","v":"X"},{"$f":"Menu!$J$29","v":2020},{"$f":"IF(ISBLANK(INDIRECT(\"'\"&F3660&\"'!\"&G3660)),\"\",INDIRECT(\"'\"&F3660&\"'!\"&G3660))","v":""},{"$f":"IF(ISBLANK(INDIRECT(\"'\"&F3660&\"'!\"&H3660)),\"\",IFERROR(VLOOKUP(TEXT(INDIRECT(\"'\"&F3660&\"'!\"&H3660),\"0\"),Notes!$B$5:$C$100,2,FALSE),\"\"))","v":""},"2e","$AE$106","$AF$106"]
[15694,{"$f":"Menu!$F$29","v":"X"},{"$f":"Menu!$J$29","v":2020},{"$f":"IF(ISBLANK(INDIRECT(\"'\"&F3661&\"'!\"&G3661)),\"\",INDIRECT(\"'\"&F3661&\"'!\"&G3661))","v":""},{"$f":"IF(ISBLANK(INDIRECT(\"'\"&F3661&\"'!\"&H3661)),\"\",IFERROR(VLOOKUP(TEXT(INDIRECT(\"'\"&F3661&\"'!\"&H3661),\"0\"),Notes!$B$5:$C$100,2,FALSE),\"\"))","v":""},"2e","$AG$106","$AH$106"]
[15695,{"$f":"Menu!$F$29","v":"X"},{"$f":"Menu!$J$29","v":2020},{"$f":"IF(ISBLANK(INDIRECT(\"'\"&F3662&\"'!\"&G3662)),\"\",INDIRECT(\"'\"&F3662&\"'!\"&G3662))","v":""},{"$f":"IF(ISBLANK(INDIRECT(\"'\"&F3662&\"'!\"&H3662)),\"\",IFERROR(VLOOKUP(TEXT(INDIRECT(\"'\"&F3662&\"'!\"&H3662),\"0\"),Notes!$B$5:$C$100,2,FALSE),\"\"))","v":""},"2e","$AI$106","$AJ$106"]
[15696,{"$f":"Menu!$F$29","v":"X"},{"$f":"Menu!$J$29","v":2020},{"$f":"IF(ISBLANK(INDIRECT(\"'\"&F3663&\"'!\"&G3663)),\"\",INDIRECT(\"'\"&F3663&\"'!\"&G3663))","v":""},{"$f":"IF(ISBLANK(INDIRECT(\"'\"&F3663&\"'!\"&H3663)),\"\",IFERROR(VLOOKUP(TEXT(INDIRECT(\"'\"&F3663&\"'!\"&H3663),\"0\"),Notes!$B$5:$C$100,2,FALSE),\"\"))","v":""},"2e","$AK$106","$AL$106"]
[15697,{"$f":"Menu!$F$29","v":"X"},{"$f":"Menu!$J$29","v":2020},{"$f":"IF(ISBLANK(INDIRECT(\"'\"&F3664&\"'!\"&G3664)),\"\",INDIRECT(\"'\"&F3664&\"'!\"&G3664))","v":""},{"$f":"IF(ISBLANK(INDIRECT(\"'\"&F3664&\"'!\"&H3664)),\"\",IFERROR(VLOOKUP(TEXT(INDIRECT(\"'\"&F3664&\"'!\"&H3664),\"0\"),Notes!$B$5:$C$100,2,FALSE),\"\"))","v":""},"2e","$AM$106","$AN$106"]
[15698,{"$f":"Menu!$F$29","v":"X"},{"$f":"Menu!$J$29","v":2020},{"$f":"IF(ISBLANK(INDIRECT(\"'\"&F3665&\"'!\"&G3665)),\"\",INDIRECT(\"'\"&F3665&\"'!\"&G3665))","v":""},{"$f":"IF(ISBLANK(INDIRECT(\"'\"&F3665&\"'!\"&H3665)),\"\",IFERROR(VLOOKUP(TEXT(INDIRECT(\"'\"&F3665&\"'!\"&H3665),\"0\"),Notes!$B$5:$C$100,2,FALSE),\"\"))","v":""},"2e","$AO$106","$AP$106"]
[15699,{"$f":"Menu!$F$29","v":"X"},{"$f":"Menu!$J$29","v":2020},{"$f":"IF(ISBLANK(INDIRECT(\"'\"&F3666&\"'!\"&G3666)),\"\",INDIRECT(\"'\"&F3666&\"'!\"&G3666))","v":""},{"$f":"IF(ISBLANK(INDIRECT(\"'\"&F3666&\"'!\"&H3666)),\"\",IFERROR(VLOOKUP(TEXT(INDIRECT(\"'\"&F3666&\"'!\"&H3666),\"0\"),Notes!$B$5:$C$100,2,FALSE),\"\"))","v":""},"2e","$AQ$106","$AR$106"]
[15700,{"$f":"Menu!$F$29","v":"X"},{"$f":"Menu!$J$29","v":2020},{"$f":"IF(ISBLANK(INDIRECT(\"'\"&F3667&\"'!\"&G3667)),\"\",INDIRECT(\"'\"&F3667&\"'!\"&G3667))","v":""},{"$f":"IF(ISBLANK(INDIRECT(\"'\"&F3667&\"'!\"&H3667)),\"\",IFERROR(VLOOKUP(TEXT(INDIRECT(\"'\"&F3667&\"'!\"&H3667),\"0\"),Notes!$B$5:$C$100,2,FALSE),\"\"))","v":""},"2e","$AS$106","$AT$106"]
[15701,{"$f":"Menu!$F$29","v":"X"},{"$f":"Menu!$J$29","v":2020},{"$f":"IF(ISBLANK(INDIRECT(\"'\"&F3668&\"'!\"&G3668)),\"\",INDIRECT(\"'\"&F3668&\"'!\"&G3668))","v":""},{"$f":"IF(ISBLANK(INDIRECT(\"'\"&F3668&\"'!\"&H3668)),\"\",IFERROR(VLOOKUP(TEXT(INDIRECT(\"'\"&F3668&\"'!\"&H3668),\"0\"),Notes!$B$5:$C$100,2,FALSE),\"\"))","v":""},"2e","$AU$106","$AV$106"]
[15702,{"$f":"Menu!$F$29","v":"X"},{"$f":"Menu!$J$29","v":2020},{"$f":"IF(ISBLANK(INDIRECT(\"'\"&F3669&\"'!\"&G3669)),\"\",INDIRECT(\"'\"&F3669&\"'!\"&G3669))","v":""},{"$f":"IF(ISBLANK(INDIRECT(\"'\"&F3669&\"'!\"&H3669)),\"\",IFERROR(VLOOKUP(TEXT(INDIRECT(\"'\"&F3669&\"'!\"&H3669),\"0\"),Notes!$B$5:$C$100,2,FALSE),\"\"))","v":""},"2e","$AW$106","$AX$106"]
[15703,{"$f":"Menu!$F$29","v":"X"},{"$f":"Menu!$J$29","v":2020},{"$f":"IF(ISBLANK(INDIRECT(\"'\"&F3670&\"'!\"&G3670)),\"\",INDIRECT(\"'\"&F3670&\"'!\"&G3670))","v":""},{"$f":"IF(ISBLANK(INDIRECT(\"'\"&F3670&\"'!\"&H3670)),\"\",IFERROR(VLOOKUP(TEXT(INDIRECT(\"'\"&F3670&\"'!\"&H3670),\"0\"),Notes!$B$5:$C$100,2,FALSE),\"\"))","v":""},"2e","$AY$106","$AZ$106"]
[15704,{"$f":"Menu!$F$29","v":"X"},{"$f":"Menu!$J$29","v":2020},{"$f":"IF(ISBLANK(INDIRECT(\"'\"&F3671&\"'!\"&G3671)),\"\",INDIRECT(\"'\"&F3671&\"'!\"&G3671))","v":""},{"$f":"IF(ISBLANK(INDIRECT(\"'\"&F3671&\"'!\"&H3671)),\"\",IFERROR(VLOOKUP(TEXT(INDIRECT(\"'\"&F3671&\"'!\"&H3671),\"0\"),Notes!$B$5:$C$100,2,FALSE),\"\"))","v":""},"2e","$BA$106","$BB$106"]
[15705,{"$f":"Menu!$F$29","v":"X"},{"$f":"Menu!$J$29","v":2020},{"$f":"IF(ISBLANK(INDIRECT(\"'\"&F3672&\"'!\"&G3672)),\"\",INDIRECT(\"'\"&F3672&\"'!\"&G3672))","v":""},{"$f":"IF(ISBLANK(INDIRECT(\"'\"&F3672&\"'!\"&H3672)),\"\",IFERROR(VLOOKUP(TEXT(INDIRECT(\"'\"&F3672&\"'!\"&H3672),\"0\"),Notes!$B$5:$C$100,2,FALSE),\"\"))","v":""},"2e","$BC$106","$BD$106"]
[15706,{"$f":"Menu!$F$29","v":"X"},{"$f":"Menu!$J$29","v":2020},{"$f":"IF(ISBLANK(INDIRECT(\"'\"&F3673&\"'!\"&G3673)),\"\",INDIRECT(\"'\"&F3673&\"'!\"&G3673))","v":""},{"$f":"IF(ISBLANK(INDIRECT(\"'\"&F3673&\"'!\"&H3673)),\"\",IFERROR(VLOOKUP(TEXT(INDIRECT(\"'\"&F3673&\"'!\"&H3673),\"0\"),Notes!$B$5:$C$100,2,FALSE),\"\"))","v":""},"2e","$BE$106","$BF$106"]
[15707,{"$f":"Menu!$F$29","v":"X"},{"$f":"Menu!$J$29","v":2020},{"$f":"IF(ISBLANK(INDIRECT(\"'\"&F3674&\"'!\"&G3674)),\"\",INDIRECT(\"'\"&F3674&\"'!\"&G3674))","v":""},{"$f":"IF(ISBLANK(INDIRECT(\"'\"&F3674&\"'!\"&H3674)),\"\",IFERROR(VLOOKUP(TEXT(INDIRECT(\"'\"&F3674&\"'!\"&H3674),\"0\"),Notes!$B$5:$C$100,2,FALSE),\"\"))","v":""},"2e","$BG$106","$BH$106"]
[15708,{"$f":"Menu!$F$29","v":"X"},{"$f":"Menu!$J$29","v":2020},{"$f":"IF(ISBLANK(INDIRECT(\"'\"&F3675&\"'!\"&G3675)),\"\",INDIRECT(\"'\"&F3675&\"'!\"&G3675))","v":""},{"$f":"IF(ISBLANK(INDIRECT(\"'\"&F3675&\"'!\"&H3675)),\"\",IFERROR(VLOOKUP(TEXT(INDIRECT(\"'\"&F3675&\"'!\"&H3675),\"0\"),Notes!$B$5:$C$100,2,FALSE),\"\"))","v":""},"2e","$BI$106","$BJ$106"]
[15709,{"$f":"Menu!$F$29","v":"X"},{"$f":"Menu!$J$29","v":2020},{"$f":"IF(ISBLANK(INDIRECT(\"'\"&F3676&\"'!\"&G3676)),\"\",INDIRECT(\"'\"&F3676&\"'!\"&G3676))","v":""},{"$f":"IF(ISBLANK(INDIRECT(\"'\"&F3676&\"'!\"&H3676)),\"\",IFERROR(VLOOKUP(TEXT(INDIRECT(\"'\"&F3676&\"'!\"&H3676),\"0\"),Notes!$B$5:$C$100,2,FALSE),\"\"))","v":""},"2e","$BK$106","$BL$106"]
[15770,{"$f":"Menu!$F$29","v":"X"},{"$f":"Menu!$J$29","v":2020},{"$f":"IF(ISBLANK(INDIRECT(\"'\"&F3677&\"'!\"&G3677)),\"\",INDIRECT(\"'\"&F3677&\"'!\"&G3677))","v":""},{"$f":"IF(ISBLANK(INDIRECT(\"'\"&F3677&\"'!\"&H3677)),\"\",IFERROR(VLOOKUP(TEXT(INDIRECT(\"'\"&F3677&\"'!\"&H3677),\"0\"),Notes!$B$5:$C$100,2,FALSE),\"\"))","v":""},"2e","$E$35","$F$35"]
[15771,{"$f":"Menu!$F$29","v":"X"},{"$f":"Menu!$J$29","v":2020},{"$f":"IF(ISBLANK(INDIRECT(\"'\"&F3678&\"'!\"&G3678)),\"\",INDIRECT(\"'\"&F3678&\"'!\"&G3678))","v":""},{"$f":"IF(ISBLANK(INDIRECT(\"'\"&F3678&\"'!\"&H3678)),\"\",IFERROR(VLOOKUP(TEXT(INDIRECT(\"'\"&F3678&\"'!\"&H3678),\"0\"),Notes!$B$5:$C$100,2,FALSE),\"\"))","v":""},"2e","$G$35","$H$35"]
[15772,{"$f":"Menu!$F$29","v":"X"},{"$f":"Menu!$J$29","v":2020},{"$f":"IF(ISBLANK(INDIRECT(\"'\"&F3679&\"'!\"&G3679)),\"\",INDIRECT(\"'\"&F3679&\"'!\"&G3679))","v":""},{"$f":"IF(ISBLANK(INDIRECT(\"'\"&F3679&\"'!\"&H3679)),\"\",IFERROR(VLOOKUP(TEXT(INDIRECT(\"'\"&F3679&\"'!\"&H3679),\"0\"),Notes!$B$5:$C$100,2,FALSE),\"\"))","v":""},"2e","$I$35","$J$35"]
[15773,{"$f":"Menu!$F$29","v":"X"},{"$f":"Menu!$J$29","v":2020},{"$f":"IF(ISBLANK(INDIRECT(\"'\"&F3680&\"'!\"&G3680)),\"\",INDIRECT(\"'\"&F3680&\"'!\"&G3680))","v":""},{"$f":"IF(ISBLANK(INDIRECT(\"'\"&F3680&\"'!\"&H3680)),\"\",IFERROR(VLOOKUP(TEXT(INDIRECT(\"'\"&F3680&\"'!\"&H3680),\"0\"),Notes!$B$5:$C$100,2,FALSE),\"\"))","v":""},"2e","$K$35","$L$35"]
[15774,{"$f":"Menu!$F$29","v":"X"},{"$f":"Menu!$J$29","v":2020},{"$f":"IF(ISBLANK(INDIRECT(\"'\"&F3681&\"'!\"&G3681)),\"\",INDIRECT(\"'\"&F3681&\"'!\"&G3681))","v":""},{"$f":"IF(ISBLANK(INDIRECT(\"'\"&F3681&\"'!\"&H3681)),\"\",IFERROR(VLOOKUP(TEXT(INDIRECT(\"'\"&F3681&\"'!\"&H3681),\"0\"),Notes!$B$5:$C$100,2,FALSE),\"\"))","v":""},"2e","$M$35","$N$35"]
[15775,{"$f":"Menu!$F$29","v":"X"},{"$f":"Menu!$J$29","v":2020},{"$f":"IF(ISBLANK(INDIRECT(\"'\"&F3682&\"'!\"&G3682)),\"\",INDIRECT(\"'\"&F3682&\"'!\"&G3682))","v":""},{"$f":"IF(ISBLANK(INDIRECT(\"'\"&F3682&\"'!\"&H3682)),\"\",IFERROR(VLOOKUP(TEXT(INDIRECT(\"'\"&F3682&\"'!\"&H3682),\"0\"),Notes!$B$5:$C$100,2,FALSE),\"\"))","v":""},"2e","$O$35","$P$35"]
[15776,{"$f":"Menu!$F$29","v":"X"},{"$f":"Menu!$J$29","v":2020},{"$f":"IF(ISBLANK(INDIRECT(\"'\"&F3683&\"'!\"&G3683)),\"\",INDIRECT(\"'\"&F3683&\"'!\"&G3683))","v":""},{"$f":"IF(ISBLANK(INDIRECT(\"'\"&F3683&\"'!\"&H3683)),\"\",IFERROR(VLOOKUP(TEXT(INDIRECT(\"'\"&F3683&\"'!\"&H3683),\"0\"),Notes!$B$5:$C$100,2,FALSE),\"\"))","v":""},"2e","$Q$35","$R$35"]
[15777,{"$f":"Menu!$F$29","v":"X"},{"$f":"Menu!$J$29","v":2020},{"$f":"IF(ISBLANK(INDIRECT(\"'\"&F3684&\"'!\"&G3684)),\"\",INDIRECT(\"'\"&F3684&\"'!\"&G3684))","v":""},{"$f":"IF(ISBLANK(INDIRECT(\"'\"&F3684&\"'!\"&H3684)),\"\",IFERROR(VLOOKUP(TEXT(INDIRECT(\"'\"&F3684&\"'!\"&H3684),\"0\"),Notes!$B$5:$C$100,2,FALSE),\"\"))","v":""},"2e","$S$35","$T$35"]
[15778,{"$f":"Menu!$F$29","v":"X"},{"$f":"Menu!$J$29","v":2020},{"$f":"IF(ISBLANK(INDIRECT(\"'\"&F3685&\"'!\"&G3685)),\"\",INDIRECT(\"'\"&F3685&\"'!\"&G3685))","v":""},{"$f":"IF(ISBLANK(INDIRECT(\"'\"&F3685&\"'!\"&H3685)),\"\",IFERROR(VLOOKUP(TEXT(INDIRECT(\"'\"&F3685&\"'!\"&H3685),\"0\"),Notes!$B$5:$C$100,2,FALSE),\"\"))","v":""},"2e","$U$35","$V$35"]
[15779,{"$f":"Menu!$F$29","v":"X"},{"$f":"Menu!$J$29","v":2020},{"$f":"IF(ISBLANK(INDIRECT(\"'\"&F3686&\"'!\"&G3686)),\"\",INDIRECT(\"'\"&F3686&\"'!\"&G3686))","v":""},{"$f":"IF(ISBLANK(INDIRECT(\"'\"&F3686&\"'!\"&H3686)),\"\",IFERROR(VLOOKUP(TEXT(INDIRECT(\"'\"&F3686&\"'!\"&H3686),\"0\"),Notes!$B$5:$C$100,2,FALSE),\"\"))","v":""},"2e","$W$35","$X$35"]
[15780,{"$f":"Menu!$F$29","v":"X"},{"$f":"Menu!$J$29","v":2020},{"$f":"IF(ISBLANK(INDIRECT(\"'\"&F3687&\"'!\"&G3687)),\"\",INDIRECT(\"'\"&F3687&\"'!\"&G3687))","v":""},{"$f":"IF(ISBLANK(INDIRECT(\"'\"&F3687&\"'!\"&H3687)),\"\",IFERROR(VLOOKUP(TEXT(INDIRECT(\"'\"&F3687&\"'!\"&H3687),\"0\"),Notes!$B$5:$C$100,2,FALSE),\"\"))","v":""},"2e","$Y$35","$Z$35"]
[15781,{"$f":"Menu!$F$29","v":"X"},{"$f":"Menu!$J$29","v":2020},{"$f":"IF(ISBLANK(INDIRECT(\"'\"&F3688&\"'!\"&G3688)),\"\",INDIRECT(\"'\"&F3688&\"'!\"&G3688))","v":""},{"$f":"IF(ISBLANK(INDIRECT(\"'\"&F3688&\"'!\"&H3688)),\"\",IFERROR(VLOOKUP(TEXT(INDIRECT(\"'\"&F3688&\"'!\"&H3688),\"0\"),Notes!$B$5:$C$100,2,FALSE),\"\"))","v":""},"2e","$AA$35","$AB$35"]
[15782,{"$f":"Menu!$F$29","v":"X"},{"$f":"Menu!$J$29","v":2020},{"$f":"IF(ISBLANK(INDIRECT(\"'\"&F3689&\"'!\"&G3689)),\"\",INDIRECT(\"'\"&F3689&\"'!\"&G3689))","v":""},{"$f":"IF(ISBLANK(INDIRECT(\"'\"&F3689&\"'!\"&H3689)),\"\",IFERROR(VLOOKUP(TEXT(INDIRECT(\"'\"&F3689&\"'!\"&H3689),\"0\"),Notes!$B$5:$C$100,2,FALSE),\"\"))","v":""},"2e","$AC$35","$AD$35"]
[15783,{"$f":"Menu!$F$29","v":"X"},{"$f":"Menu!$J$29","v":2020},{"$f":"IF(ISBLANK(INDIRECT(\"'\"&F3690&\"'!\"&G3690)),\"\",INDIRECT(\"'\"&F3690&\"'!\"&G3690))","v":""},{"$f":"IF(ISBLANK(INDIRECT(\"'\"&F3690&\"'!\"&H3690)),\"\",IFERROR(VLOOKUP(TEXT(INDIRECT(\"'\"&F3690&\"'!\"&H3690),\"0\"),Notes!$B$5:$C$100,2,FALSE),\"\"))","v":""},"2e","$AE$35","$AF$35"]
[15784,{"$f":"Menu!$F$29","v":"X"},{"$f":"Menu!$J$29","v":2020},{"$f":"IF(ISBLANK(INDIRECT(\"'\"&F3691&\"'!\"&G3691)),\"\",INDIRECT(\"'\"&F3691&\"'!\"&G3691))","v":""},{"$f":"IF(ISBLANK(INDIRECT(\"'\"&F3691&\"'!\"&H3691)),\"\",IFERROR(VLOOKUP(TEXT(INDIRECT(\"'\"&F3691&\"'!\"&H3691),\"0\"),Notes!$B$5:$C$100,2,FALSE),\"\"))","v":""},"2e","$AG$35","$AH$35"]
[15785,{"$f":"Menu!$F$29","v":"X"},{"$f":"Menu!$J$29","v":2020},{"$f":"IF(ISBLANK(INDIRECT(\"'\"&F3692&\"'!\"&G3692)),\"\",INDIRECT(\"'\"&F3692&\"'!\"&G3692))","v":""},{"$f":"IF(ISBLANK(INDIRECT(\"'\"&F3692&\"'!\"&H3692)),\"\",IFERROR(VLOOKUP(TEXT(INDIRECT(\"'\"&F3692&\"'!\"&H3692),\"0\"),Notes!$B$5:$C$100,2,FALSE),\"\"))","v":""},"2e","$AI$35","$AJ$35"]
[15786,{"$f":"Menu!$F$29","v":"X"},{"$f":"Menu!$J$29","v":2020},{"$f":"IF(ISBLANK(INDIRECT(\"'\"&F3693&\"'!\"&G3693)),\"\",INDIRECT(\"'\"&F3693&\"'!\"&G3693))","v":""},{"$f":"IF(ISBLANK(INDIRECT(\"'\"&F3693&\"'!\"&H3693)),\"\",IFERROR(VLOOKUP(TEXT(INDIRECT(\"'\"&F3693&\"'!\"&H3693),\"0\"),Notes!$B$5:$C$100,2,FALSE),\"\"))","v":""},"2e","$AK$35","$AL$35"]
[15787,{"$f":"Menu!$F$29","v":"X"},{"$f":"Menu!$J$29","v":2020},{"$f":"IF(ISBLANK(INDIRECT(\"'\"&F3694&\"'!\"&G3694)),\"\",INDIRECT(\"'\"&F3694&\"'!\"&G3694))","v":""},{"$f":"IF(ISBLANK(INDIRECT(\"'\"&F3694&\"'!\"&H3694)),\"\",IFERROR(VLOOKUP(TEXT(INDIRECT(\"'\"&F3694&\"'!\"&H3694),\"0\"),Notes!$B$5:$C$100,2,FALSE),\"\"))","v":""},"2e","$AM$35","$AN$35"]
[15788,{"$f":"Menu!$F$29","v":"X"},{"$f":"Menu!$J$29","v":2020},{"$f":"IF(ISBLANK(INDIRECT(\"'\"&F3695&\"'!\"&G3695)),\"\",INDIRECT(\"'\"&F3695&\"'!\"&G3695))","v":""},{"$f":"IF(ISBLANK(INDIRECT(\"'\"&F3695&\"'!\"&H3695)),\"\",IFERROR(VLOOKUP(TEXT(INDIRECT(\"'\"&F3695&\"'!\"&H3695),\"0\"),Notes!$B$5:$C$100,2,FALSE),\"\"))","v":""},"2e","$AO$35","$AP$35"]
[15789,{"$f":"Menu!$F$29","v":"X"},{"$f":"Menu!$J$29","v":2020},{"$f":"IF(ISBLANK(INDIRECT(\"'\"&F3696&\"'!\"&G3696)),\"\",INDIRECT(\"'\"&F3696&\"'!\"&G3696))","v":""},{"$f":"IF(ISBLANK(INDIRECT(\"'\"&F3696&\"'!\"&H3696)),\"\",IFERROR(VLOOKUP(TEXT(INDIRECT(\"'\"&F3696&\"'!\"&H3696),\"0\"),Notes!$B$5:$C$100,2,FALSE),\"\"))","v":""},"2e","$AQ$35","$AR$35"]
[15790,{"$f":"Menu!$F$29","v":"X"},{"$f":"Menu!$J$29","v":2020},{"$f":"IF(ISBLANK(INDIRECT(\"'\"&F3697&\"'!\"&G3697)),\"\",INDIRECT(\"'\"&F3697&\"'!\"&G3697))","v":""},{"$f":"IF(ISBLANK(INDIRECT(\"'\"&F3697&\"'!\"&H3697)),\"\",IFERROR(VLOOKUP(TEXT(INDIRECT(\"'\"&F3697&\"'!\"&H3697),\"0\"),Notes!$B$5:$C$100,2,FALSE),\"\"))","v":""},"2e","$AS$35","$AT$35"]
[15791,{"$f":"Menu!$F$29","v":"X"},{"$f":"Menu!$J$29","v":2020},{"$f":"IF(ISBLANK(INDIRECT(\"'\"&F3698&\"'!\"&G3698)),\"\",INDIRECT(\"'\"&F3698&\"'!\"&G3698))","v":""},{"$f":"IF(ISBLANK(INDIRECT(\"'\"&F3698&\"'!\"&H3698)),\"\",IFERROR(VLOOKUP(TEXT(INDIRECT(\"'\"&F3698&\"'!\"&H3698),\"0\"),Notes!$B$5:$C$100,2,FALSE),\"\"))","v":""},"2e","$AU$35","$AV$35"]
[15792,{"$f":"Menu!$F$29","v":"X"},{"$f":"Menu!$J$29","v":2020},{"$f":"IF(ISBLANK(INDIRECT(\"'\"&F3699&\"'!\"&G3699)),\"\",INDIRECT(\"'\"&F3699&\"'!\"&G3699))","v":""},{"$f":"IF(ISBLANK(INDIRECT(\"'\"&F3699&\"'!\"&H3699)),\"\",IFERROR(VLOOKUP(TEXT(INDIRECT(\"'\"&F3699&\"'!\"&H3699),\"0\"),Notes!$B$5:$C$100,2,FALSE),\"\"))","v":""},"2e","$AW$35","$AX$35"]
[15793,{"$f":"Menu!$F$29","v":"X"},{"$f":"Menu!$J$29","v":2020},{"$f":"IF(ISBLANK(INDIRECT(\"'\"&F3700&\"'!\"&G3700)),\"\",INDIRECT(\"'\"&F3700&\"'!\"&G3700))","v":""},{"$f":"IF(ISBLANK(INDIRECT(\"'\"&F3700&\"'!\"&H3700)),\"\",IFERROR(VLOOKUP(TEXT(INDIRECT(\"'\"&F3700&\"'!\"&H3700),\"0\"),Notes!$B$5:$C$100,2,FALSE),\"\"))","v":""},"2e","$AY$35","$AZ$35"]
[15794,{"$f":"Menu!$F$29","v":"X"},{"$f":"Menu!$J$29","v":2020},{"$f":"IF(ISBLANK(INDIRECT(\"'\"&F3701&\"'!\"&G3701)),\"\",INDIRECT(\"'\"&F3701&\"'!\"&G3701))","v":""},{"$f":"IF(ISBLANK(INDIRECT(\"'\"&F3701&\"'!\"&H3701)),\"\",IFERROR(VLOOKUP(TEXT(INDIRECT(\"'\"&F3701&\"'!\"&H3701),\"0\"),Notes!$B$5:$C$100,2,FALSE),\"\"))","v":""},"2e","$BA$35","$BB$35"]
[15795,{"$f":"Menu!$F$29","v":"X"},{"$f":"Menu!$J$29","v":2020},{"$f":"IF(ISBLANK(INDIRECT(\"'\"&F3702&\"'!\"&G3702)),\"\",INDIRECT(\"'\"&F3702&\"'!\"&G3702))","v":""},{"$f":"IF(ISBLANK(INDIRECT(\"'\"&F3702&\"'!\"&H3702)),\"\",IFERROR(VLOOKUP(TEXT(INDIRECT(\"'\"&F3702&\"'!\"&H3702),\"0\"),Notes!$B$5:$C$100,2,FALSE),\"\"))","v":""},"2e","$BC$35","$BD$35"]
[15796,{"$f":"Menu!$F$29","v":"X"},{"$f":"Menu!$J$29","v":2020},{"$f":"IF(ISBLANK(INDIRECT(\"'\"&F3703&\"'!\"&G3703)),\"\",INDIRECT(\"'\"&F3703&\"'!\"&G3703))","v":""},{"$f":"IF(ISBLANK(INDIRECT(\"'\"&F3703&\"'!\"&H3703)),\"\",IFERROR(VLOOKUP(TEXT(INDIRECT(\"'\"&F3703&\"'!\"&H3703),\"0\"),Notes!$B$5:$C$100,2,FALSE),\"\"))","v":""},"2e","$BE$35","$BF$35"]
[15797,{"$f":"Menu!$F$29","v":"X"},{"$f":"Menu!$J$29","v":2020},{"$f":"IF(ISBLANK(INDIRECT(\"'\"&F3704&\"'!\"&G3704)),\"\",INDIRECT(\"'\"&F3704&\"'!\"&G3704))","v":""},{"$f":"IF(ISBLANK(INDIRECT(\"'\"&F3704&\"'!\"&H3704)),\"\",IFERROR(VLOOKUP(TEXT(INDIRECT(\"'\"&F3704&\"'!\"&H3704),\"0\"),Notes!$B$5:$C$100,2,FALSE),\"\"))","v":""},"2e","$BG$35","$BH$35"]
[15798,{"$f":"Menu!$F$29","v":"X"},{"$f":"Menu!$J$29","v":2020},{"$f":"IF(ISBLANK(INDIRECT(\"'\"&F3705&\"'!\"&G3705)),\"\",INDIRECT(\"'\"&F3705&\"'!\"&G3705))","v":""},{"$f":"IF(ISBLANK(INDIRECT(\"'\"&F3705&\"'!\"&H3705)),\"\",IFERROR(VLOOKUP(TEXT(INDIRECT(\"'\"&F3705&\"'!\"&H3705),\"0\"),Notes!$B$5:$C$100,2,FALSE),\"\"))","v":""},"2e","$BI$35","$BJ$35"]
[15799,{"$f":"Menu!$F$29","v":"X"},{"$f":"Menu!$J$29","v":2020},{"$f":"IF(ISBLANK(INDIRECT(\"'\"&F3706&\"'!\"&G3706)),\"\",INDIRECT(\"'\"&F3706&\"'!\"&G3706))","v":""},{"$f":"IF(ISBLANK(INDIRECT(\"'\"&F3706&\"'!\"&H3706)),\"\",IFERROR(VLOOKUP(TEXT(INDIRECT(\"'\"&F3706&\"'!\"&H3706),\"0\"),Notes!$B$5:$C$100,2,FALSE),\"\"))","v":""},"2e","$BK$35","$BL$35"]
[15800,{"$f":"Menu!$F$29","v":"X"},{"$f":"Menu!$J$29","v":2020},{"$f":"IF(ISBLANK(INDIRECT(\"'\"&F3707&\"'!\"&G3707)),\"\",INDIRECT(\"'\"&F3707&\"'!\"&G3707))","v":""},{"$f":"IF(ISBLANK(INDIRECT(\"'\"&F3707&\"'!\"&H3707)),\"\",IFERROR(VLOOKUP(TEXT(INDIRECT(\"'\"&F3707&\"'!\"&H3707),\"0\"),Notes!$B$5:$C$100,2,FALSE),\"\"))","v":""},"2e","$E$107","$F$107"]
[15801,{"$f":"Menu!$F$29","v":"X"},{"$f":"Menu!$J$29","v":2020},{"$f":"IF(ISBLANK(INDIRECT(\"'\"&F3708&\"'!\"&G3708)),\"\",INDIRECT(\"'\"&F3708&\"'!\"&G3708))","v":""},{"$f":"IF(ISBLANK(INDIRECT(\"'\"&F3708&\"'!\"&H3708)),\"\",IFERROR(VLOOKUP(TEXT(INDIRECT(\"'\"&F3708&\"'!\"&H3708),\"0\"),Notes!$B$5:$C$100,2,FALSE),\"\"))","v":""},"2e","$G$107","$H$107"]
[15802,{"$f":"Menu!$F$29","v":"X"},{"$f":"Menu!$J$29","v":2020},{"$f":"IF(ISBLANK(INDIRECT(\"'\"&F3709&\"'!\"&G3709)),\"\",INDIRECT(\"'\"&F3709&\"'!\"&G3709))","v":""},{"$f":"IF(ISBLANK(INDIRECT(\"'\"&F3709&\"'!\"&H3709)),\"\",IFERROR(VLOOKUP(TEXT(INDIRECT(\"'\"&F3709&\"'!\"&H3709),\"0\"),Notes!$B$5:$C$100,2,FALSE),\"\"))","v":""},"2e","$I$107","$J$107"]
[15803,{"$f":"Menu!$F$29","v":"X"},{"$f":"Menu!$J$29","v":2020},{"$f":"IF(ISBLANK(INDIRECT(\"'\"&F3710&\"'!\"&G3710)),\"\",INDIRECT(\"'\"&F3710&\"'!\"&G3710))","v":""},{"$f":"IF(ISBLANK(INDIRECT(\"'\"&F3710&\"'!\"&H3710)),\"\",IFERROR(VLOOKUP(TEXT(INDIRECT(\"'\"&F3710&\"'!\"&H3710),\"0\"),Notes!$B$5:$C$100,2,FALSE),\"\"))","v":""},"2e","$K$107","$L$107"]
[15804,{"$f":"Menu!$F$29","v":"X"},{"$f":"Menu!$J$29","v":2020},{"$f":"IF(ISBLANK(INDIRECT(\"'\"&F3711&\"'!\"&G3711)),\"\",INDIRECT(\"'\"&F3711&\"'!\"&G3711))","v":""},{"$f":"IF(ISBLANK(INDIRECT(\"'\"&F3711&\"'!\"&H3711)),\"\",IFERROR(VLOOKUP(TEXT(INDIRECT(\"'\"&F3711&\"'!\"&H3711),\"0\"),Notes!$B$5:$C$100,2,FALSE),\"\"))","v":""},"2e","$M$107","$N$107"]
[15805,{"$f":"Menu!$F$29","v":"X"},{"$f":"Menu!$J$29","v":2020},{"$f":"IF(ISBLANK(INDIRECT(\"'\"&F3712&\"'!\"&G3712)),\"\",INDIRECT(\"'\"&F3712&\"'!\"&G3712))","v":""},{"$f":"IF(ISBLANK(INDIRECT(\"'\"&F3712&\"'!\"&H3712)),\"\",IFERROR(VLOOKUP(TEXT(INDIRECT(\"'\"&F3712&\"'!\"&H3712),\"0\"),Notes!$B$5:$C$100,2,FALSE),\"\"))","v":""},"2e","$O$107","$P$107"]
[15806,{"$f":"Menu!$F$29","v":"X"},{"$f":"Menu!$J$29","v":2020},{"$f":"IF(ISBLANK(INDIRECT(\"'\"&F3713&\"'!\"&G3713)),\"\",INDIRECT(\"'\"&F3713&\"'!\"&G3713))","v":""},{"$f":"IF(ISBLANK(INDIRECT(\"'\"&F3713&\"'!\"&H3713)),\"\",IFERROR(VLOOKUP(TEXT(INDIRECT(\"'\"&F3713&\"'!\"&H3713),\"0\"),Notes!$B$5:$C$100,2,FALSE),\"\"))","v":""},"2e","$Q$107","$R$107"]
[15807,{"$f":"Menu!$F$29","v":"X"},{"$f":"Menu!$J$29","v":2020},{"$f":"IF(ISBLANK(INDIRECT(\"'\"&F3714&\"'!\"&G3714)),\"\",INDIRECT(\"'\"&F3714&\"'!\"&G3714))","v":""},{"$f":"IF(ISBLANK(INDIRECT(\"'\"&F3714&\"'!\"&H3714)),\"\",IFERROR(VLOOKUP(TEXT(INDIRECT(\"'\"&F3714&\"'!\"&H3714),\"0\"),Notes!$B$5:$C$100,2,FALSE),\"\"))","v":""},"2e","$S$107",{"$f":"IF(LEN(TRIM(MID(G3714,4,10)))-LEN(SUBSTITUTE(TRIM(MID(G3714,4,10)),\"$\",\"\"))=0,\"$\"&CHAR(CODE(MID(G3714,2,1))+1)&\"$\"&TRIM(MID(G3714,4,10)),\"$\"&MID(G3714,2,1)&CHAR(CODE(MID(G3714,3,1))+1)&\"$\"&TRIM(MID(G3714,5,11)))","v":"$T$107"}]
[15808,{"$f":"Menu!$F$29","v":"X"},{"$f":"Menu!$J$29","v":2020},{"$f":"IF(ISBLANK(INDIRECT(\"'\"&F3715&\"'!\"&G3715)),\"\",INDIRECT(\"'\"&F3715&\"'!\"&G3715))","v":""},{"$f":"IF(ISBLANK(INDIRECT(\"'\"&F3715&\"'!\"&H3715)),\"\",IFERROR(VLOOKUP(TEXT(INDIRECT(\"'\"&F3715&\"'!\"&H3715),\"0\"),Notes!$B$5:$C$100,2,FALSE),\"\"))","v":""},"2e","$U$107","$V$107"]
[15809,{"$f":"Menu!$F$29","v":"X"},{"$f":"Menu!$J$29","v":2020},{"$f":"IF(ISBLANK(INDIRECT(\"'\"&F3716&\"'!\"&G3716)),\"\",INDIRECT(\"'\"&F3716&\"'!\"&G3716))","v":""},{"$f":"IF(ISBLANK(INDIRECT(\"'\"&F3716&\"'!\"&H3716)),\"\",IFERROR(VLOOKUP(TEXT(INDIRECT(\"'\"&F3716&\"'!\"&H3716),\"0\"),Notes!$B$5:$C$100,2,FALSE),\"\"))","v":""},"2e","$W$107","$X$107"]
[15810,{"$f":"Menu!$F$29","v":"X"},{"$f":"Menu!$J$29","v":2020},{"$f":"IF(ISBLANK(INDIRECT(\"'\"&F3717&\"'!\"&G3717)),\"\",INDIRECT(\"'\"&F3717&\"'!\"&G3717))","v":""},{"$f":"IF(ISBLANK(INDIRECT(\"'\"&F3717&\"'!\"&H3717)),\"\",IFERROR(VLOOKUP(TEXT(INDIRECT(\"'\"&F3717&\"'!\"&H3717),\"0\"),Notes!$B$5:$C$100,2,FALSE),\"\"))","v":""},"2e","$Y$107","$Z$107"]
[15811,{"$f":"Menu!$F$29","v":"X"},{"$f":"Menu!$J$29","v":2020},{"$f":"IF(ISBLANK(INDIRECT(\"'\"&F3718&\"'!\"&G3718)),\"\",INDIRECT(\"'\"&F3718&\"'!\"&G3718))","v":""},{"$f":"IF(ISBLANK(INDIRECT(\"'\"&F3718&\"'!\"&H3718)),\"\",IFERROR(VLOOKUP(TEXT(INDIRECT(\"'\"&F3718&\"'!\"&H3718),\"0\"),Notes!$B$5:$C$100,2,FALSE),\"\"))","v":""},"2e","$AA$107","$AB$107"]
[15812,{"$f":"Menu!$F$29","v":"X"},{"$f":"Menu!$J$29","v":2020},{"$f":"IF(ISBLANK(INDIRECT(\"'\"&F3719&\"'!\"&G3719)),\"\",INDIRECT(\"'\"&F3719&\"'!\"&G3719))","v":""},{"$f":"IF(ISBLANK(INDIRECT(\"'\"&F3719&\"'!\"&H3719)),\"\",IFERROR(VLOOKUP(TEXT(INDIRECT(\"'\"&F3719&\"'!\"&H3719),\"0\"),Notes!$B$5:$C$100,2,FALSE),\"\"))","v":""},"2e","$AC$107","$AD$107"]
[15813,{"$f":"Menu!$F$29","v":"X"},{"$f":"Menu!$J$29","v":2020},{"$f":"IF(ISBLANK(INDIRECT(\"'\"&F3720&\"'!\"&G3720)),\"\",INDIRECT(\"'\"&F3720&\"'!\"&G3720))","v":""},{"$f":"IF(ISBLANK(INDIRECT(\"'\"&F3720&\"'!\"&H3720)),\"\",IFERROR(VLOOKUP(TEXT(INDIRECT(\"'\"&F3720&\"'!\"&H3720),\"0\"),Notes!$B$5:$C$100,2,FALSE),\"\"))","v":""},"2e","$AE$107","$AF$107"]
[15814,{"$f":"Menu!$F$29","v":"X"},{"$f":"Menu!$J$29","v":2020},{"$f":"IF(ISBLANK(INDIRECT(\"'\"&F3721&\"'!\"&G3721)),\"\",INDIRECT(\"'\"&F3721&\"'!\"&G3721))","v":""},{"$f":"IF(ISBLANK(INDIRECT(\"'\"&F3721&\"'!\"&H3721)),\"\",IFERROR(VLOOKUP(TEXT(INDIRECT(\"'\"&F3721&\"'!\"&H3721),\"0\"),Notes!$B$5:$C$100,2,FALSE),\"\"))","v":""},"2e","$AG$107","$AH$107"]
[15815,{"$f":"Menu!$F$29","v":"X"},{"$f":"Menu!$J$29","v":2020},{"$f":"IF(ISBLANK(INDIRECT(\"'\"&F3722&\"'!\"&G3722)),\"\",INDIRECT(\"'\"&F3722&\"'!\"&G3722))","v":""},{"$f":"IF(ISBLANK(INDIRECT(\"'\"&F3722&\"'!\"&H3722)),\"\",IFERROR(VLOOKUP(TEXT(INDIRECT(\"'\"&F3722&\"'!\"&H3722),\"0\"),Notes!$B$5:$C$100,2,FALSE),\"\"))","v":""},"2e","$AI$107","$AJ$107"]
[15816,{"$f":"Menu!$F$29","v":"X"},{"$f":"Menu!$J$29","v":2020},{"$f":"IF(ISBLANK(INDIRECT(\"'\"&F3723&\"'!\"&G3723)),\"\",INDIRECT(\"'\"&F3723&\"'!\"&G3723))","v":""},{"$f":"IF(ISBLANK(INDIRECT(\"'\"&F3723&\"'!\"&H3723)),\"\",IFERROR(VLOOKUP(TEXT(INDIRECT(\"'\"&F3723&\"'!\"&H3723),\"0\"),Notes!$B$5:$C$100,2,FALSE),\"\"))","v":""},"2e","$AK$107","$AL$107"]
[15817,{"$f":"Menu!$F$29","v":"X"},{"$f":"Menu!$J$29","v":2020},{"$f":"IF(ISBLANK(INDIRECT(\"'\"&F3724&\"'!\"&G3724)),\"\",INDIRECT(\"'\"&F3724&\"'!\"&G3724))","v":""},{"$f":"IF(ISBLANK(INDIRECT(\"'\"&F3724&\"'!\"&H3724)),\"\",IFERROR(VLOOKUP(TEXT(INDIRECT(\"'\"&F3724&\"'!\"&H3724),\"0\"),Notes!$B$5:$C$100,2,FALSE),\"\"))","v":""},"2e","$AM$107","$AN$107"]
[15818,{"$f":"Menu!$F$29","v":"X"},{"$f":"Menu!$J$29","v":2020},{"$f":"IF(ISBLANK(INDIRECT(\"'\"&F3725&\"'!\"&G3725)),\"\",INDIRECT(\"'\"&F3725&\"'!\"&G3725))","v":""},{"$f":"IF(ISBLANK(INDIRECT(\"'\"&F3725&\"'!\"&H3725)),\"\",IFERROR(VLOOKUP(TEXT(INDIRECT(\"'\"&F3725&\"'!\"&H3725),\"0\"),Notes!$B$5:$C$100,2,FALSE),\"\"))","v":""},"2e","$AO$107","$AP$107"]
[15819,{"$f":"Menu!$F$29","v":"X"},{"$f":"Menu!$J$29","v":2020},{"$f":"IF(ISBLANK(INDIRECT(\"'\"&F3726&\"'!\"&G3726)),\"\",INDIRECT(\"'\"&F3726&\"'!\"&G3726))","v":""},{"$f":"IF(ISBLANK(INDIRECT(\"'\"&F3726&\"'!\"&H3726)),\"\",IFERROR(VLOOKUP(TEXT(INDIRECT(\"'\"&F3726&\"'!\"&H3726),\"0\"),Notes!$B$5:$C$100,2,FALSE),\"\"))","v":""},"2e","$AQ$107","$AR$107"]
[15820,{"$f":"Menu!$F$29","v":"X"},{"$f":"Menu!$J$29","v":2020},{"$f":"IF(ISBLANK(INDIRECT(\"'\"&F3727&\"'!\"&G3727)),\"\",INDIRECT(\"'\"&F3727&\"'!\"&G3727))","v":""},{"$f":"IF(ISBLANK(INDIRECT(\"'\"&F3727&\"'!\"&H3727)),\"\",IFERROR(VLOOKUP(TEXT(INDIRECT(\"'\"&F3727&\"'!\"&H3727),\"0\"),Notes!$B$5:$C$100,2,FALSE),\"\"))","v":""},"2e","$AS$107","$AT$107"]
[15821,{"$f":"Menu!$F$29","v":"X"},{"$f":"Menu!$J$29","v":2020},{"$f":"IF(ISBLANK(INDIRECT(\"'\"&F3728&\"'!\"&G3728)),\"\",INDIRECT(\"'\"&F3728&\"'!\"&G3728))","v":""},{"$f":"IF(ISBLANK(INDIRECT(\"'\"&F3728&\"'!\"&H3728)),\"\",IFERROR(VLOOKUP(TEXT(INDIRECT(\"'\"&F3728&\"'!\"&H3728),\"0\"),Notes!$B$5:$C$100,2,FALSE),\"\"))","v":""},"2e","$AU$107","$AV$107"]
[15822,{"$f":"Menu!$F$29","v":"X"},{"$f":"Menu!$J$29","v":2020},{"$f":"IF(ISBLANK(INDIRECT(\"'\"&F3729&\"'!\"&G3729)),\"\",INDIRECT(\"'\"&F3729&\"'!\"&G3729))","v":""},{"$f":"IF(ISBLANK(INDIRECT(\"'\"&F3729&\"'!\"&H3729)),\"\",IFERROR(VLOOKUP(TEXT(INDIRECT(\"'\"&F3729&\"'!\"&H3729),\"0\"),Notes!$B$5:$C$100,2,FALSE),\"\"))","v":""},"2e","$AW$107","$AX$107"]
[15823,{"$f":"Menu!$F$29","v":"X"},{"$f":"Menu!$J$29","v":2020},{"$f":"IF(ISBLANK(INDIRECT(\"'\"&F3730&\"'!\"&G3730)),\"\",INDIRECT(\"'\"&F3730&\"'!\"&G3730))","v":""},{"$f":"IF(ISBLANK(INDIRECT(\"'\"&F3730&\"'!\"&H3730)),\"\",IFERROR(VLOOKUP(TEXT(INDIRECT(\"'\"&F3730&\"'!\"&H3730),\"0\"),Notes!$B$5:$C$100,2,FALSE),\"\"))","v":""},"2e","$AY$107","$AZ$107"]
[15824,{"$f":"Menu!$F$29","v":"X"},{"$f":"Menu!$J$29","v":2020},{"$f":"IF(ISBLANK(INDIRECT(\"'\"&F3731&\"'!\"&G3731)),\"\",INDIRECT(\"'\"&F3731&\"'!\"&G3731))","v":""},{"$f":"IF(ISBLANK(INDIRECT(\"'\"&F3731&\"'!\"&H3731)),\"\",IFERROR(VLOOKUP(TEXT(INDIRECT(\"'\"&F3731&\"'!\"&H3731),\"0\"),Notes!$B$5:$C$100,2,FALSE),\"\"))","v":""},"2e","$BA$107","$BB$107"]
[15825,{"$f":"Menu!$F$29","v":"X"},{"$f":"Menu!$J$29","v":2020},{"$f":"IF(ISBLANK(INDIRECT(\"'\"&F3732&\"'!\"&G3732)),\"\",INDIRECT(\"'\"&F3732&\"'!\"&G3732))","v":""},{"$f":"IF(ISBLANK(INDIRECT(\"'\"&F3732&\"'!\"&H3732)),\"\",IFERROR(VLOOKUP(TEXT(INDIRECT(\"'\"&F3732&\"'!\"&H3732),\"0\"),Notes!$B$5:$C$100,2,FALSE),\"\"))","v":""},"2e","$BC$107","$BD$107"]
[15826,{"$f":"Menu!$F$29","v":"X"},{"$f":"Menu!$J$29","v":2020},{"$f":"IF(ISBLANK(INDIRECT(\"'\"&F3733&\"'!\"&G3733)),\"\",INDIRECT(\"'\"&F3733&\"'!\"&G3733))","v":""},{"$f":"IF(ISBLANK(INDIRECT(\"'\"&F3733&\"'!\"&H3733)),\"\",IFERROR(VLOOKUP(TEXT(INDIRECT(\"'\"&F3733&\"'!\"&H3733),\"0\"),Notes!$B$5:$C$100,2,FALSE),\"\"))","v":""},"2e","$BE$107","$BF$107"]
[15827,{"$f":"Menu!$F$29","v":"X"},{"$f":"Menu!$J$29","v":2020},{"$f":"IF(ISBLANK(INDIRECT(\"'\"&F3734&\"'!\"&G3734)),\"\",INDIRECT(\"'\"&F3734&\"'!\"&G3734))","v":""},{"$f":"IF(ISBLANK(INDIRECT(\"'\"&F3734&\"'!\"&H3734)),\"\",IFERROR(VLOOKUP(TEXT(INDIRECT(\"'\"&F3734&\"'!\"&H3734),\"0\"),Notes!$B$5:$C$100,2,FALSE),\"\"))","v":""},"2e","$BG$107","$BH$107"]
[15828,{"$f":"Menu!$F$29","v":"X"},{"$f":"Menu!$J$29","v":2020},{"$f":"IF(ISBLANK(INDIRECT(\"'\"&F3735&\"'!\"&G3735)),\"\",INDIRECT(\"'\"&F3735&\"'!\"&G3735))","v":""},{"$f":"IF(ISBLANK(INDIRECT(\"'\"&F3735&\"'!\"&H3735)),\"\",IFERROR(VLOOKUP(TEXT(INDIRECT(\"'\"&F3735&\"'!\"&H3735),\"0\"),Notes!$B$5:$C$100,2,FALSE),\"\"))","v":""},"2e","$BI$107","$BJ$107"]
[15829,{"$f":"Menu!$F$29","v":"X"},{"$f":"Menu!$J$29","v":2020},{"$f":"IF(ISBLANK(INDIRECT(\"'\"&F3736&\"'!\"&G3736)),\"\",INDIRECT(\"'\"&F3736&\"'!\"&G3736))","v":""},{"$f":"IF(ISBLANK(INDIRECT(\"'\"&F3736&\"'!\"&H3736)),\"\",IFERROR(VLOOKUP(TEXT(INDIRECT(\"'\"&F3736&\"'!\"&H3736),\"0\"),Notes!$B$5:$C$100,2,FALSE),\"\"))","v":""},"2e","$BK$107","$BL$107"]
[15890,{"$f":"Menu!$F$29","v":"X"},{"$f":"Menu!$J$29","v":2020},{"$f":"IF(ISBLANK(INDIRECT(\"'\"&F3737&\"'!\"&G3737)),\"\",INDIRECT(\"'\"&F3737&\"'!\"&G3737))","v":""},{"$f":"IF(ISBLANK(INDIRECT(\"'\"&F3737&\"'!\"&H3737)),\"\",IFERROR(VLOOKUP(TEXT(INDIRECT(\"'\"&F3737&\"'!\"&H3737),\"0\"),Notes!$B$5:$C$100,2,FALSE),\"\"))","v":""},"2e","$E$40","$F$40"]
[15891,{"$f":"Menu!$F$29","v":"X"},{"$f":"Menu!$J$29","v":2020},{"$f":"IF(ISBLANK(INDIRECT(\"'\"&F3738&\"'!\"&G3738)),\"\",INDIRECT(\"'\"&F3738&\"'!\"&G3738))","v":""},{"$f":"IF(ISBLANK(INDIRECT(\"'\"&F3738&\"'!\"&H3738)),\"\",IFERROR(VLOOKUP(TEXT(INDIRECT(\"'\"&F3738&\"'!\"&H3738),\"0\"),Notes!$B$5:$C$100,2,FALSE),\"\"))","v":""},"2e","$G$40","$H$40"]
[15892,{"$f":"Menu!$F$29","v":"X"},{"$f":"Menu!$J$29","v":2020},{"$f":"IF(ISBLANK(INDIRECT(\"'\"&F3739&\"'!\"&G3739)),\"\",INDIRECT(\"'\"&F3739&\"'!\"&G3739))","v":""},{"$f":"IF(ISBLANK(INDIRECT(\"'\"&F3739&\"'!\"&H3739)),\"\",IFERROR(VLOOKUP(TEXT(INDIRECT(\"'\"&F3739&\"'!\"&H3739),\"0\"),Notes!$B$5:$C$100,2,FALSE),\"\"))","v":""},"2e","$I$40","$J$40"]
[15893,{"$f":"Menu!$F$29","v":"X"},{"$f":"Menu!$J$29","v":2020},{"$f":"IF(ISBLANK(INDIRECT(\"'\"&F3740&\"'!\"&G3740)),\"\",INDIRECT(\"'\"&F3740&\"'!\"&G3740))","v":""},{"$f":"IF(ISBLANK(INDIRECT(\"'\"&F3740&\"'!\"&H3740)),\"\",IFERROR(VLOOKUP(TEXT(INDIRECT(\"'\"&F3740&\"'!\"&H3740),\"0\"),Notes!$B$5:$C$100,2,FALSE),\"\"))","v":""},"2e","$K$40","$L$40"]
[15894,{"$f":"Menu!$F$29","v":"X"},{"$f":"Menu!$J$29","v":2020},{"$f":"IF(ISBLANK(INDIRECT(\"'\"&F3741&\"'!\"&G3741)),\"\",INDIRECT(\"'\"&F3741&\"'!\"&G3741))","v":""},{"$f":"IF(ISBLANK(INDIRECT(\"'\"&F3741&\"'!\"&H3741)),\"\",IFERROR(VLOOKUP(TEXT(INDIRECT(\"'\"&F3741&\"'!\"&H3741),\"0\"),Notes!$B$5:$C$100,2,FALSE),\"\"))","v":""},"2e","$M$40","$N$40"]
[15895,{"$f":"Menu!$F$29","v":"X"},{"$f":"Menu!$J$29","v":2020},{"$f":"IF(ISBLANK(INDIRECT(\"'\"&F3742&\"'!\"&G3742)),\"\",INDIRECT(\"'\"&F3742&\"'!\"&G3742))","v":""},{"$f":"IF(ISBLANK(INDIRECT(\"'\"&F3742&\"'!\"&H3742)),\"\",IFERROR(VLOOKUP(TEXT(INDIRECT(\"'\"&F3742&\"'!\"&H3742),\"0\"),Notes!$B$5:$C$100,2,FALSE),\"\"))","v":""},"2e","$O$40","$P$40"]
[15896,{"$f":"Menu!$F$29","v":"X"},{"$f":"Menu!$J$29","v":2020},{"$f":"IF(ISBLANK(INDIRECT(\"'\"&F3743&\"'!\"&G3743)),\"\",INDIRECT(\"'\"&F3743&\"'!\"&G3743))","v":""},{"$f":"IF(ISBLANK(INDIRECT(\"'\"&F3743&\"'!\"&H3743)),\"\",IFERROR(VLOOKUP(TEXT(INDIRECT(\"'\"&F3743&\"'!\"&H3743),\"0\"),Notes!$B$5:$C$100,2,FALSE),\"\"))","v":""},"2e","$Q$40","$R$40"]
[15897,{"$f":"Menu!$F$29","v":"X"},{"$f":"Menu!$J$29","v":2020},{"$f":"IF(ISBLANK(INDIRECT(\"'\"&F3744&\"'!\"&G3744)),\"\",INDIRECT(\"'\"&F3744&\"'!\"&G3744))","v":""},{"$f":"IF(ISBLANK(INDIRECT(\"'\"&F3744&\"'!\"&H3744)),\"\",IFERROR(VLOOKUP(TEXT(INDIRECT(\"'\"&F3744&\"'!\"&H3744),\"0\"),Notes!$B$5:$C$100,2,FALSE),\"\"))","v":""},"2e","$S$40","$T$40"]
[15898,{"$f":"Menu!$F$29","v":"X"},{"$f":"Menu!$J$29","v":2020},{"$f":"IF(ISBLANK(INDIRECT(\"'\"&F3745&\"'!\"&G3745)),\"\",INDIRECT(\"'\"&F3745&\"'!\"&G3745))","v":""},{"$f":"IF(ISBLANK(INDIRECT(\"'\"&F3745&\"'!\"&H3745)),\"\",IFERROR(VLOOKUP(TEXT(INDIRECT(\"'\"&F3745&\"'!\"&H3745),\"0\"),Notes!$B$5:$C$100,2,FALSE),\"\"))","v":""},"2e","$U$40","$V$40"]
[15899,{"$f":"Menu!$F$29","v":"X"},{"$f":"Menu!$J$29","v":2020},{"$f":"IF(ISBLANK(INDIRECT(\"'\"&F3746&\"'!\"&G3746)),\"\",INDIRECT(\"'\"&F3746&\"'!\"&G3746))","v":""},{"$f":"IF(ISBLANK(INDIRECT(\"'\"&F3746&\"'!\"&H3746)),\"\",IFERROR(VLOOKUP(TEXT(INDIRECT(\"'\"&F3746&\"'!\"&H3746),\"0\"),Notes!$B$5:$C$100,2,FALSE),\"\"))","v":""},"2e","$W$40","$X$40"]
[15900,{"$f":"Menu!$F$29","v":"X"},{"$f":"Menu!$J$29","v":2020},{"$f":"IF(ISBLANK(INDIRECT(\"'\"&F3747&\"'!\"&G3747)),\"\",INDIRECT(\"'\"&F3747&\"'!\"&G3747))","v":""},{"$f":"IF(ISBLANK(INDIRECT(\"'\"&F3747&\"'!\"&H3747)),\"\",IFERROR(VLOOKUP(TEXT(INDIRECT(\"'\"&F3747&\"'!\"&H3747),\"0\"),Notes!$B$5:$C$100,2,FALSE),\"\"))","v":""},"2e","$Y$40","$Z$40"]
[15901,{"$f":"Menu!$F$29","v":"X"},{"$f":"Menu!$J$29","v":2020},{"$f":"IF(ISBLANK(INDIRECT(\"'\"&F3748&\"'!\"&G3748)),\"\",INDIRECT(\"'\"&F3748&\"'!\"&G3748))","v":""},{"$f":"IF(ISBLANK(INDIRECT(\"'\"&F3748&\"'!\"&H3748)),\"\",IFERROR(VLOOKUP(TEXT(INDIRECT(\"'\"&F3748&\"'!\"&H3748),\"0\"),Notes!$B$5:$C$100,2,FALSE),\"\"))","v":""},"2e","$AA$40","$AB$40"]
[15902,{"$f":"Menu!$F$29","v":"X"},{"$f":"Menu!$J$29","v":2020},{"$f":"IF(ISBLANK(INDIRECT(\"'\"&F3749&\"'!\"&G3749)),\"\",INDIRECT(\"'\"&F3749&\"'!\"&G3749))","v":""},{"$f":"IF(ISBLANK(INDIRECT(\"'\"&F3749&\"'!\"&H3749)),\"\",IFERROR(VLOOKUP(TEXT(INDIRECT(\"'\"&F3749&\"'!\"&H3749),\"0\"),Notes!$B$5:$C$100,2,FALSE),\"\"))","v":""},"2e","$AC$40","$AD$40"]
[15903,{"$f":"Menu!$F$29","v":"X"},{"$f":"Menu!$J$29","v":2020},{"$f":"IF(ISBLANK(INDIRECT(\"'\"&F3750&\"'!\"&G3750)),\"\",INDIRECT(\"'\"&F3750&\"'!\"&G3750))","v":""},{"$f":"IF(ISBLANK(INDIRECT(\"'\"&F3750&\"'!\"&H3750)),\"\",IFERROR(VLOOKUP(TEXT(INDIRECT(\"'\"&F3750&\"'!\"&H3750),\"0\"),Notes!$B$5:$C$100,2,FALSE),\"\"))","v":""},"2e","$AE$40","$AF$40"]
[15904,{"$f":"Menu!$F$29","v":"X"},{"$f":"Menu!$J$29","v":2020},{"$f":"IF(ISBLANK(INDIRECT(\"'\"&F3751&\"'!\"&G3751)),\"\",INDIRECT(\"'\"&F3751&\"'!\"&G3751))","v":""},{"$f":"IF(ISBLANK(INDIRECT(\"'\"&F3751&\"'!\"&H3751)),\"\",IFERROR(VLOOKUP(TEXT(INDIRECT(\"'\"&F3751&\"'!\"&H3751),\"0\"),Notes!$B$5:$C$100,2,FALSE),\"\"))","v":""},"2e","$AG$40","$AH$40"]
[15905,{"$f":"Menu!$F$29","v":"X"},{"$f":"Menu!$J$29","v":2020},{"$f":"IF(ISBLANK(INDIRECT(\"'\"&F3752&\"'!\"&G3752)),\"\",INDIRECT(\"'\"&F3752&\"'!\"&G3752))","v":""},{"$f":"IF(ISBLANK(INDIRECT(\"'\"&F3752&\"'!\"&H3752)),\"\",IFERROR(VLOOKUP(TEXT(INDIRECT(\"'\"&F3752&\"'!\"&H3752),\"0\"),Notes!$B$5:$C$100,2,FALSE),\"\"))","v":""},"2e","$AI$40","$AJ$40"]
[15906,{"$f":"Menu!$F$29","v":"X"},{"$f":"Menu!$J$29","v":2020},{"$f":"IF(ISBLANK(INDIRECT(\"'\"&F3753&\"'!\"&G3753)),\"\",INDIRECT(\"'\"&F3753&\"'!\"&G3753))","v":""},{"$f":"IF(ISBLANK(INDIRECT(\"'\"&F3753&\"'!\"&H3753)),\"\",IFERROR(VLOOKUP(TEXT(INDIRECT(\"'\"&F3753&\"'!\"&H3753),\"0\"),Notes!$B$5:$C$100,2,FALSE),\"\"))","v":""},"2e","$AK$40","$AL$40"]
[15907,{"$f":"Menu!$F$29","v":"X"},{"$f":"Menu!$J$29","v":2020},{"$f":"IF(ISBLANK(INDIRECT(\"'\"&F3754&\"'!\"&G3754)),\"\",INDIRECT(\"'\"&F3754&\"'!\"&G3754))","v":""},{"$f":"IF(ISBLANK(INDIRECT(\"'\"&F3754&\"'!\"&H3754)),\"\",IFERROR(VLOOKUP(TEXT(INDIRECT(\"'\"&F3754&\"'!\"&H3754),\"0\"),Notes!$B$5:$C$100,2,FALSE),\"\"))","v":""},"2e","$AM$40","$AN$40"]
[15908,{"$f":"Menu!$F$29","v":"X"},{"$f":"Menu!$J$29","v":2020},{"$f":"IF(ISBLANK(INDIRECT(\"'\"&F3755&\"'!\"&G3755)),\"\",INDIRECT(\"'\"&F3755&\"'!\"&G3755))","v":""},{"$f":"IF(ISBLANK(INDIRECT(\"'\"&F3755&\"'!\"&H3755)),\"\",IFERROR(VLOOKUP(TEXT(INDIRECT(\"'\"&F3755&\"'!\"&H3755),\"0\"),Notes!$B$5:$C$100,2,FALSE),\"\"))","v":""},"2e","$AO$40","$AP$40"]
[15909,{"$f":"Menu!$F$29","v":"X"},{"$f":"Menu!$J$29","v":2020},{"$f":"IF(ISBLANK(INDIRECT(\"'\"&F3756&\"'!\"&G3756)),\"\",INDIRECT(\"'\"&F3756&\"'!\"&G3756))","v":""},{"$f":"IF(ISBLANK(INDIRECT(\"'\"&F3756&\"'!\"&H3756)),\"\",IFERROR(VLOOKUP(TEXT(INDIRECT(\"'\"&F3756&\"'!\"&H3756),\"0\"),Notes!$B$5:$C$100,2,FALSE),\"\"))","v":""},"2e","$AQ$40","$AR$40"]
[15910,{"$f":"Menu!$F$29","v":"X"},{"$f":"Menu!$J$29","v":2020},{"$f":"IF(ISBLANK(INDIRECT(\"'\"&F3757&\"'!\"&G3757)),\"\",INDIRECT(\"'\"&F3757&\"'!\"&G3757))","v":""},{"$f":"IF(ISBLANK(INDIRECT(\"'\"&F3757&\"'!\"&H3757)),\"\",IFERROR(VLOOKUP(TEXT(INDIRECT(\"'\"&F3757&\"'!\"&H3757),\"0\"),Notes!$B$5:$C$100,2,FALSE),\"\"))","v":""},"2e","$AS$40","$AT$40"]
[15911,{"$f":"Menu!$F$29","v":"X"},{"$f":"Menu!$J$29","v":2020},{"$f":"IF(ISBLANK(INDIRECT(\"'\"&F3758&\"'!\"&G3758)),\"\",INDIRECT(\"'\"&F3758&\"'!\"&G3758))","v":""},{"$f":"IF(ISBLANK(INDIRECT(\"'\"&F3758&\"'!\"&H3758)),\"\",IFERROR(VLOOKUP(TEXT(INDIRECT(\"'\"&F3758&\"'!\"&H3758),\"0\"),Notes!$B$5:$C$100,2,FALSE),\"\"))","v":""},"2e","$AU$40","$AV$40"]
[15912,{"$f":"Menu!$F$29","v":"X"},{"$f":"Menu!$J$29","v":2020},{"$f":"IF(ISBLANK(INDIRECT(\"'\"&F3759&\"'!\"&G3759)),\"\",INDIRECT(\"'\"&F3759&\"'!\"&G3759))","v":""},{"$f":"IF(ISBLANK(INDIRECT(\"'\"&F3759&\"'!\"&H3759)),\"\",IFERROR(VLOOKUP(TEXT(INDIRECT(\"'\"&F3759&\"'!\"&H3759),\"0\"),Notes!$B$5:$C$100,2,FALSE),\"\"))","v":""},"2e","$AW$40","$AX$40"]
[15913,{"$f":"Menu!$F$29","v":"X"},{"$f":"Menu!$J$29","v":2020},{"$f":"IF(ISBLANK(INDIRECT(\"'\"&F3760&\"'!\"&G3760)),\"\",INDIRECT(\"'\"&F3760&\"'!\"&G3760))","v":""},{"$f":"IF(ISBLANK(INDIRECT(\"'\"&F3760&\"'!\"&H3760)),\"\",IFERROR(VLOOKUP(TEXT(INDIRECT(\"'\"&F3760&\"'!\"&H3760),\"0\"),Notes!$B$5:$C$100,2,FALSE),\"\"))","v":""},"2e","$AY$40","$AZ$40"]
[15914,{"$f":"Menu!$F$29","v":"X"},{"$f":"Menu!$J$29","v":2020},{"$f":"IF(ISBLANK(INDIRECT(\"'\"&F3761&\"'!\"&G3761)),\"\",INDIRECT(\"'\"&F3761&\"'!\"&G3761))","v":""},{"$f":"IF(ISBLANK(INDIRECT(\"'\"&F3761&\"'!\"&H3761)),\"\",IFERROR(VLOOKUP(TEXT(INDIRECT(\"'\"&F3761&\"'!\"&H3761),\"0\"),Notes!$B$5:$C$100,2,FALSE),\"\"))","v":""},"2e","$BA$40","$BB$40"]
[15915,{"$f":"Menu!$F$29","v":"X"},{"$f":"Menu!$J$29","v":2020},{"$f":"IF(ISBLANK(INDIRECT(\"'\"&F3762&\"'!\"&G3762)),\"\",INDIRECT(\"'\"&F3762&\"'!\"&G3762))","v":""},{"$f":"IF(ISBLANK(INDIRECT(\"'\"&F3762&\"'!\"&H3762)),\"\",IFERROR(VLOOKUP(TEXT(INDIRECT(\"'\"&F3762&\"'!\"&H3762),\"0\"),Notes!$B$5:$C$100,2,FALSE),\"\"))","v":""},"2e","$BC$40","$BD$40"]
[15916,{"$f":"Menu!$F$29","v":"X"},{"$f":"Menu!$J$29","v":2020},{"$f":"IF(ISBLANK(INDIRECT(\"'\"&F3763&\"'!\"&G3763)),\"\",INDIRECT(\"'\"&F3763&\"'!\"&G3763))","v":""},{"$f":"IF(ISBLANK(INDIRECT(\"'\"&F3763&\"'!\"&H3763)),\"\",IFERROR(VLOOKUP(TEXT(INDIRECT(\"'\"&F3763&\"'!\"&H3763),\"0\"),Notes!$B$5:$C$100,2,FALSE),\"\"))","v":""},"2e","$BE$40","$BF$40"]
[15917,{"$f":"Menu!$F$29","v":"X"},{"$f":"Menu!$J$29","v":2020},{"$f":"IF(ISBLANK(INDIRECT(\"'\"&F3764&\"'!\"&G3764)),\"\",INDIRECT(\"'\"&F3764&\"'!\"&G3764))","v":""},{"$f":"IF(ISBLANK(INDIRECT(\"'\"&F3764&\"'!\"&H3764)),\"\",IFERROR(VLOOKUP(TEXT(INDIRECT(\"'\"&F3764&\"'!\"&H3764),\"0\"),Notes!$B$5:$C$100,2,FALSE),\"\"))","v":""},"2e","$BG$40","$BH$40"]
[15918,{"$f":"Menu!$F$29","v":"X"},{"$f":"Menu!$J$29","v":2020},{"$f":"IF(ISBLANK(INDIRECT(\"'\"&F3765&\"'!\"&G3765)),\"\",INDIRECT(\"'\"&F3765&\"'!\"&G3765))","v":""},{"$f":"IF(ISBLANK(INDIRECT(\"'\"&F3765&\"'!\"&H3765)),\"\",IFERROR(VLOOKUP(TEXT(INDIRECT(\"'\"&F3765&\"'!\"&H3765),\"0\"),Notes!$B$5:$C$100,2,FALSE),\"\"))","v":""},"2e","$BI$40","$BJ$40"]
[15919,{"$f":"Menu!$F$29","v":"X"},{"$f":"Menu!$J$29","v":2020},{"$f":"IF(ISBLANK(INDIRECT(\"'\"&F3766&\"'!\"&G3766)),\"\",INDIRECT(\"'\"&F3766&\"'!\"&G3766))","v":""},{"$f":"IF(ISBLANK(INDIRECT(\"'\"&F3766&\"'!\"&H3766)),\"\",IFERROR(VLOOKUP(TEXT(INDIRECT(\"'\"&F3766&\"'!\"&H3766),\"0\"),Notes!$B$5:$C$100,2,FALSE),\"\"))","v":""},"2e","$BK$40","$BL$40"]
[15920,{"$f":"Menu!$F$29","v":"X"},{"$f":"Menu!$J$29","v":2020},{"$f":"IF(ISBLANK(INDIRECT(\"'\"&F3767&\"'!\"&G3767)),\"\",INDIRECT(\"'\"&F3767&\"'!\"&G3767))","v":""},{"$f":"IF(ISBLANK(INDIRECT(\"'\"&F3767&\"'!\"&H3767)),\"\",IFERROR(VLOOKUP(TEXT(INDIRECT(\"'\"&F3767&\"'!\"&H3767),\"0\"),Notes!$B$5:$C$100,2,FALSE),\"\"))","v":""},"2e","$E$32","$F$32"]
[15921,{"$f":"Menu!$F$29","v":"X"},{"$f":"Menu!$J$29","v":2020},{"$f":"IF(ISBLANK(INDIRECT(\"'\"&F3768&\"'!\"&G3768)),\"\",INDIRECT(\"'\"&F3768&\"'!\"&G3768))","v":""},{"$f":"IF(ISBLANK(INDIRECT(\"'\"&F3768&\"'!\"&H3768)),\"\",IFERROR(VLOOKUP(TEXT(INDIRECT(\"'\"&F3768&\"'!\"&H3768),\"0\"),Notes!$B$5:$C$100,2,FALSE),\"\"))","v":""},"2e","$G$32","$H$32"]
[15922,{"$f":"Menu!$F$29","v":"X"},{"$f":"Menu!$J$29","v":2020},{"$f":"IF(ISBLANK(INDIRECT(\"'\"&F3769&\"'!\"&G3769)),\"\",INDIRECT(\"'\"&F3769&\"'!\"&G3769))","v":""},{"$f":"IF(ISBLANK(INDIRECT(\"'\"&F3769&\"'!\"&H3769)),\"\",IFERROR(VLOOKUP(TEXT(INDIRECT(\"'\"&F3769&\"'!\"&H3769),\"0\"),Notes!$B$5:$C$100,2,FALSE),\"\"))","v":""},"2e","$I$32","$J$32"]
[15923,{"$f":"Menu!$F$29","v":"X"},{"$f":"Menu!$J$29","v":2020},{"$f":"IF(ISBLANK(INDIRECT(\"'\"&F3770&\"'!\"&G3770)),\"\",INDIRECT(\"'\"&F3770&\"'!\"&G3770))","v":""},{"$f":"IF(ISBLANK(INDIRECT(\"'\"&F3770&\"'!\"&H3770)),\"\",IFERROR(VLOOKUP(TEXT(INDIRECT(\"'\"&F3770&\"'!\"&H3770),\"0\"),Notes!$B$5:$C$100,2,FALSE),\"\"))","v":""},"2e","$K$32","$L$32"]
[15924,{"$f":"Menu!$F$29","v":"X"},{"$f":"Menu!$J$29","v":2020},{"$f":"IF(ISBLANK(INDIRECT(\"'\"&F3771&\"'!\"&G3771)),\"\",INDIRECT(\"'\"&F3771&\"'!\"&G3771))","v":""},{"$f":"IF(ISBLANK(INDIRECT(\"'\"&F3771&\"'!\"&H3771)),\"\",IFERROR(VLOOKUP(TEXT(INDIRECT(\"'\"&F3771&\"'!\"&H3771),\"0\"),Notes!$B$5:$C$100,2,FALSE),\"\"))","v":""},"2e","$M$32","$N$32"]
[15925,{"$f":"Menu!$F$29","v":"X"},{"$f":"Menu!$J$29","v":2020},{"$f":"IF(ISBLANK(INDIRECT(\"'\"&F3772&\"'!\"&G3772)),\"\",INDIRECT(\"'\"&F3772&\"'!\"&G3772))","v":""},{"$f":"IF(ISBLANK(INDIRECT(\"'\"&F3772&\"'!\"&H3772)),\"\",IFERROR(VLOOKUP(TEXT(INDIRECT(\"'\"&F3772&\"'!\"&H3772),\"0\"),Notes!$B$5:$C$100,2,FALSE),\"\"))","v":""},"2e","$O$32","$P$32"]
[15926,{"$f":"Menu!$F$29","v":"X"},{"$f":"Menu!$J$29","v":2020},{"$f":"IF(ISBLANK(INDIRECT(\"'\"&F3773&\"'!\"&G3773)),\"\",INDIRECT(\"'\"&F3773&\"'!\"&G3773))","v":""},{"$f":"IF(ISBLANK(INDIRECT(\"'\"&F3773&\"'!\"&H3773)),\"\",IFERROR(VLOOKUP(TEXT(INDIRECT(\"'\"&F3773&\"'!\"&H3773),\"0\"),Notes!$B$5:$C$100,2,FALSE),\"\"))","v":""},"2e","$Q$32","$R$32"]
[15927,{"$f":"Menu!$F$29","v":"X"},{"$f":"Menu!$J$29","v":2020},{"$f":"IF(ISBLANK(INDIRECT(\"'\"&F3774&\"'!\"&G3774)),\"\",INDIRECT(\"'\"&F3774&\"'!\"&G3774))","v":""},{"$f":"IF(ISBLANK(INDIRECT(\"'\"&F3774&\"'!\"&H3774)),\"\",IFERROR(VLOOKUP(TEXT(INDIRECT(\"'\"&F3774&\"'!\"&H3774),\"0\"),Notes!$B$5:$C$100,2,FALSE),\"\"))","v":""},"2e","$S$32","$T$32"]
[15928,{"$f":"Menu!$F$29","v":"X"},{"$f":"Menu!$J$29","v":2020},{"$f":"IF(ISBLANK(INDIRECT(\"'\"&F3775&\"'!\"&G3775)),\"\",INDIRECT(\"'\"&F3775&\"'!\"&G3775))","v":""},{"$f":"IF(ISBLANK(INDIRECT(\"'\"&F3775&\"'!\"&H3775)),\"\",IFERROR(VLOOKUP(TEXT(INDIRECT(\"'\"&F3775&\"'!\"&H3775),\"0\"),Notes!$B$5:$C$100,2,FALSE),\"\"))","v":""},"2e","$U$32","$V$32"]
[15929,{"$f":"Menu!$F$29","v":"X"},{"$f":"Menu!$J$29","v":2020},{"$f":"IF(ISBLANK(INDIRECT(\"'\"&F3776&\"'!\"&G3776)),\"\",INDIRECT(\"'\"&F3776&\"'!\"&G3776))","v":""},{"$f":"IF(ISBLANK(INDIRECT(\"'\"&F3776&\"'!\"&H3776)),\"\",IFERROR(VLOOKUP(TEXT(INDIRECT(\"'\"&F3776&\"'!\"&H3776),\"0\"),Notes!$B$5:$C$100,2,FALSE),\"\"))","v":""},"2e","$W$32","$X$32"]
[15930,{"$f":"Menu!$F$29","v":"X"},{"$f":"Menu!$J$29","v":2020},{"$f":"IF(ISBLANK(INDIRECT(\"'\"&F3777&\"'!\"&G3777)),\"\",INDIRECT(\"'\"&F3777&\"'!\"&G3777))","v":""},{"$f":"IF(ISBLANK(INDIRECT(\"'\"&F3777&\"'!\"&H3777)),\"\",IFERROR(VLOOKUP(TEXT(INDIRECT(\"'\"&F3777&\"'!\"&H3777),\"0\"),Notes!$B$5:$C$100,2,FALSE),\"\"))","v":""},"2e","$Y$32","$Z$32"]
[15931,{"$f":"Menu!$F$29","v":"X"},{"$f":"Menu!$J$29","v":2020},{"$f":"IF(ISBLANK(INDIRECT(\"'\"&F3778&\"'!\"&G3778)),\"\",INDIRECT(\"'\"&F3778&\"'!\"&G3778))","v":""},{"$f":"IF(ISBLANK(INDIRECT(\"'\"&F3778&\"'!\"&H3778)),\"\",IFERROR(VLOOKUP(TEXT(INDIRECT(\"'\"&F3778&\"'!\"&H3778),\"0\"),Notes!$B$5:$C$100,2,FALSE),\"\"))","v":""},"2e","$AA$32",{"$f":"IF(LEN(TRIM(MID(G3778,4,10)))-LEN(SUBSTITUTE(TRIM(MID(G3778,4,10)),\"$\",\"\"))=0,\"$\"&CHAR(CODE(MID(G3778,2,1))+1)&\"$\"&TRIM(MID(G3778,4,10)),\"$\"&MID(G3778,2,1)&CHAR(CODE(MID(G3778,3,1))+1)&\"$\"&TRIM(MID(G3778,5,11)))","v":"$AB$32"}]
[15932,{"$f":"Menu!$F$29","v":"X"},{"$f":"Menu!$J$29","v":2020},{"$f":"IF(ISBLANK(INDIRECT(\"'\"&F3779&\"'!\"&G3779)),\"\",INDIRECT(\"'\"&F3779&\"'!\"&G3779))","v":""},{"$f":"IF(ISBLANK(INDIRECT(\"'\"&F3779&\"'!\"&H3779)),\"\",IFERROR(VLOOKUP(TEXT(INDIRECT(\"'\"&F3779&\"'!\"&H3779),\"0\"),Notes!$B$5:$C$100,2,FALSE),\"\"))","v":""},"2e","$AC$32","$AD$32"]
[15933,{"$f":"Menu!$F$29","v":"X"},{"$f":"Menu!$J$29","v":2020},{"$f":"IF(ISBLANK(INDIRECT(\"'\"&F3780&\"'!\"&G3780)),\"\",INDIRECT(\"'\"&F3780&\"'!\"&G3780))","v":""},{"$f":"IF(ISBLANK(INDIRECT(\"'\"&F3780&\"'!\"&H3780)),\"\",IFERROR(VLOOKUP(TEXT(INDIRECT(\"'\"&F3780&\"'!\"&H3780),\"0\"),Notes!$B$5:$C$100,2,FALSE),\"\"))","v":""},"2e","$AE$32","$AF$32"]
[15934,{"$f":"Menu!$F$29","v":"X"},{"$f":"Menu!$J$29","v":2020},{"$f":"IF(ISBLANK(INDIRECT(\"'\"&F3781&\"'!\"&G3781)),\"\",INDIRECT(\"'\"&F3781&\"'!\"&G3781))","v":""},{"$f":"IF(ISBLANK(INDIRECT(\"'\"&F3781&\"'!\"&H3781)),\"\",IFERROR(VLOOKUP(TEXT(INDIRECT(\"'\"&F3781&\"'!\"&H3781),\"0\"),Notes!$B$5:$C$100,2,FALSE),\"\"))","v":""},"2e","$AG$32","$AH$32"]
[15935,{"$f":"Menu!$F$29","v":"X"},{"$f":"Menu!$J$29","v":2020},{"$f":"IF(ISBLANK(INDIRECT(\"'\"&F3782&\"'!\"&G3782)),\"\",INDIRECT(\"'\"&F3782&\"'!\"&G3782))","v":""},{"$f":"IF(ISBLANK(INDIRECT(\"'\"&F3782&\"'!\"&H3782)),\"\",IFERROR(VLOOKUP(TEXT(INDIRECT(\"'\"&F3782&\"'!\"&H3782),\"0\"),Notes!$B$5:$C$100,2,FALSE),\"\"))","v":""},"2e","$AI$32","$AJ$32"]
[15936,{"$f":"Menu!$F$29","v":"X"},{"$f":"Menu!$J$29","v":2020},{"$f":"IF(ISBLANK(INDIRECT(\"'\"&F3783&\"'!\"&G3783)),\"\",INDIRECT(\"'\"&F3783&\"'!\"&G3783))","v":""},{"$f":"IF(ISBLANK(INDIRECT(\"'\"&F3783&\"'!\"&H3783)),\"\",IFERROR(VLOOKUP(TEXT(INDIRECT(\"'\"&F3783&\"'!\"&H3783),\"0\"),Notes!$B$5:$C$100,2,FALSE),\"\"))","v":""},"2e","$AK$32","$AL$32"]
[15937,{"$f":"Menu!$F$29","v":"X"},{"$f":"Menu!$J$29","v":2020},{"$f":"IF(ISBLANK(INDIRECT(\"'\"&F3784&\"'!\"&G3784)),\"\",INDIRECT(\"'\"&F3784&\"'!\"&G3784))","v":""},{"$f":"IF(ISBLANK(INDIRECT(\"'\"&F3784&\"'!\"&H3784)),\"\",IFERROR(VLOOKUP(TEXT(INDIRECT(\"'\"&F3784&\"'!\"&H3784),\"0\"),Notes!$B$5:$C$100,2,FALSE),\"\"))","v":""},"2e","$AM$32","$AN$32"]
[15938,{"$f":"Menu!$F$29","v":"X"},{"$f":"Menu!$J$29","v":2020},{"$f":"IF(ISBLANK(INDIRECT(\"'\"&F3785&\"'!\"&G3785)),\"\",INDIRECT(\"'\"&F3785&\"'!\"&G3785))","v":""},{"$f":"IF(ISBLANK(INDIRECT(\"'\"&F3785&\"'!\"&H3785)),\"\",IFERROR(VLOOKUP(TEXT(INDIRECT(\"'\"&F3785&\"'!\"&H3785),\"0\"),Notes!$B$5:$C$100,2,FALSE),\"\"))","v":""},"2e","$AO$32","$AP$32"]
[15939,{"$f":"Menu!$F$29","v":"X"},{"$f":"Menu!$J$29","v":2020},{"$f":"IF(ISBLANK(INDIRECT(\"'\"&F3786&\"'!\"&G3786)),\"\",INDIRECT(\"'\"&F3786&\"'!\"&G3786))","v":""},{"$f":"IF(ISBLANK(INDIRECT(\"'\"&F3786&\"'!\"&H3786)),\"\",IFERROR(VLOOKUP(TEXT(INDIRECT(\"'\"&F3786&\"'!\"&H3786),\"0\"),Notes!$B$5:$C$100,2,FALSE),\"\"))","v":""},"2e","$AQ$32","$AR$32"]
[15940,{"$f":"Menu!$F$29","v":"X"},{"$f":"Menu!$J$29","v":2020},{"$f":"IF(ISBLANK(INDIRECT(\"'\"&F3787&\"'!\"&G3787)),\"\",INDIRECT(\"'\"&F3787&\"'!\"&G3787))","v":""},{"$f":"IF(ISBLANK(INDIRECT(\"'\"&F3787&\"'!\"&H3787)),\"\",IFERROR(VLOOKUP(TEXT(INDIRECT(\"'\"&F3787&\"'!\"&H3787),\"0\"),Notes!$B$5:$C$100,2,FALSE),\"\"))","v":""},"2e","$AS$32","$AT$32"]
[15941,{"$f":"Menu!$F$29","v":"X"},{"$f":"Menu!$J$29","v":2020},{"$f":"IF(ISBLANK(INDIRECT(\"'\"&F3788&\"'!\"&G3788)),\"\",INDIRECT(\"'\"&F3788&\"'!\"&G3788))","v":""},{"$f":"IF(ISBLANK(INDIRECT(\"'\"&F3788&\"'!\"&H3788)),\"\",IFERROR(VLOOKUP(TEXT(INDIRECT(\"'\"&F3788&\"'!\"&H3788),\"0\"),Notes!$B$5:$C$100,2,FALSE),\"\"))","v":""},"2e","$AU$32","$AV$32"]
[15942,{"$f":"Menu!$F$29","v":"X"},{"$f":"Menu!$J$29","v":2020},{"$f":"IF(ISBLANK(INDIRECT(\"'\"&F3789&\"'!\"&G3789)),\"\",INDIRECT(\"'\"&F3789&\"'!\"&G3789))","v":""},{"$f":"IF(ISBLANK(INDIRECT(\"'\"&F3789&\"'!\"&H3789)),\"\",IFERROR(VLOOKUP(TEXT(INDIRECT(\"'\"&F3789&\"'!\"&H3789),\"0\"),Notes!$B$5:$C$100,2,FALSE),\"\"))","v":""},"2e","$AW$32","$AX$32"]
[15943,{"$f":"Menu!$F$29","v":"X"},{"$f":"Menu!$J$29","v":2020},{"$f":"IF(ISBLANK(INDIRECT(\"'\"&F3790&\"'!\"&G3790)),\"\",INDIRECT(\"'\"&F3790&\"'!\"&G3790))","v":""},{"$f":"IF(ISBLANK(INDIRECT(\"'\"&F3790&\"'!\"&H3790)),\"\",IFERROR(VLOOKUP(TEXT(INDIRECT(\"'\"&F3790&\"'!\"&H3790),\"0\"),Notes!$B$5:$C$100,2,FALSE),\"\"))","v":""},"2e","$AY$32","$AZ$32"]
[15944,{"$f":"Menu!$F$29","v":"X"},{"$f":"Menu!$J$29","v":2020},{"$f":"IF(ISBLANK(INDIRECT(\"'\"&F3791&\"'!\"&G3791)),\"\",INDIRECT(\"'\"&F3791&\"'!\"&G3791))","v":""},{"$f":"IF(ISBLANK(INDIRECT(\"'\"&F3791&\"'!\"&H3791)),\"\",IFERROR(VLOOKUP(TEXT(INDIRECT(\"'\"&F3791&\"'!\"&H3791),\"0\"),Notes!$B$5:$C$100,2,FALSE),\"\"))","v":""},"2e","$BA$32","$BB$32"]
[15945,{"$f":"Menu!$F$29","v":"X"},{"$f":"Menu!$J$29","v":2020},{"$f":"IF(ISBLANK(INDIRECT(\"'\"&F3792&\"'!\"&G3792)),\"\",INDIRECT(\"'\"&F3792&\"'!\"&G3792))","v":""},{"$f":"IF(ISBLANK(INDIRECT(\"'\"&F3792&\"'!\"&H3792)),\"\",IFERROR(VLOOKUP(TEXT(INDIRECT(\"'\"&F3792&\"'!\"&H3792),\"0\"),Notes!$B$5:$C$100,2,FALSE),\"\"))","v":""},"2e","$BC$32","$BD$32"]
[15946,{"$f":"Menu!$F$29","v":"X"},{"$f":"Menu!$J$29","v":2020},{"$f":"IF(ISBLANK(INDIRECT(\"'\"&F3793&\"'!\"&G3793)),\"\",INDIRECT(\"'\"&F3793&\"'!\"&G3793))","v":""},{"$f":"IF(ISBLANK(INDIRECT(\"'\"&F3793&\"'!\"&H3793)),\"\",IFERROR(VLOOKUP(TEXT(INDIRECT(\"'\"&F3793&\"'!\"&H3793),\"0\"),Notes!$B$5:$C$100,2,FALSE),\"\"))","v":""},"2e","$BE$32","$BF$32"]
[15947,{"$f":"Menu!$F$29","v":"X"},{"$f":"Menu!$J$29","v":2020},{"$f":"IF(ISBLANK(INDIRECT(\"'\"&F3794&\"'!\"&G3794)),\"\",INDIRECT(\"'\"&F3794&\"'!\"&G3794))","v":""},{"$f":"IF(ISBLANK(INDIRECT(\"'\"&F3794&\"'!\"&H3794)),\"\",IFERROR(VLOOKUP(TEXT(INDIRECT(\"'\"&F3794&\"'!\"&H3794),\"0\"),Notes!$B$5:$C$100,2,FALSE),\"\"))","v":""},"2e","$BG$32","$BH$32"]
[15948,{"$f":"Menu!$F$29","v":"X"},{"$f":"Menu!$J$29","v":2020},{"$f":"IF(ISBLANK(INDIRECT(\"'\"&F3795&\"'!\"&G3795)),\"\",INDIRECT(\"'\"&F3795&\"'!\"&G3795))","v":""},{"$f":"IF(ISBLANK(INDIRECT(\"'\"&F3795&\"'!\"&H3795)),\"\",IFERROR(VLOOKUP(TEXT(INDIRECT(\"'\"&F3795&\"'!\"&H3795),\"0\"),Notes!$B$5:$C$100,2,FALSE),\"\"))","v":""},"2e","$BI$32","$BJ$32"]
[15949,{"$f":"Menu!$F$29","v":"X"},{"$f":"Menu!$J$29","v":2020},{"$f":"IF(ISBLANK(INDIRECT(\"'\"&F3796&\"'!\"&G3796)),\"\",INDIRECT(\"'\"&F3796&\"'!\"&G3796))","v":""},{"$f":"IF(ISBLANK(INDIRECT(\"'\"&F3796&\"'!\"&H3796)),\"\",IFERROR(VLOOKUP(TEXT(INDIRECT(\"'\"&F3796&\"'!\"&H3796),\"0\"),Notes!$B$5:$C$100,2,FALSE),\"\"))","v":""},"2e","$BK$32","$BL$32"]
[15950,{"$f":"Menu!$F$29","v":"X"},{"$f":"Menu!$J$29","v":2020},{"$f":"IF(ISBLANK(INDIRECT(\"'\"&F3797&\"'!\"&G3797)),\"\",INDIRECT(\"'\"&F3797&\"'!\"&G3797))","v":""},{"$f":"IF(ISBLANK(INDIRECT(\"'\"&F3797&\"'!\"&H3797)),\"\",IFERROR(VLOOKUP(TEXT(INDIRECT(\"'\"&F3797&\"'!\"&H3797),\"0\"),Notes!$B$5:$C$100,2,FALSE),\"\"))","v":""},"2e","$E$42","$F$42"]
[15951,{"$f":"Menu!$F$29","v":"X"},{"$f":"Menu!$J$29","v":2020},{"$f":"IF(ISBLANK(INDIRECT(\"'\"&F3798&\"'!\"&G3798)),\"\",INDIRECT(\"'\"&F3798&\"'!\"&G3798))","v":""},{"$f":"IF(ISBLANK(INDIRECT(\"'\"&F3798&\"'!\"&H3798)),\"\",IFERROR(VLOOKUP(TEXT(INDIRECT(\"'\"&F3798&\"'!\"&H3798),\"0\"),Notes!$B$5:$C$100,2,FALSE),\"\"))","v":""},"2e","$G$42","$H$42"]
[15952,{"$f":"Menu!$F$29","v":"X"},{"$f":"Menu!$J$29","v":2020},{"$f":"IF(ISBLANK(INDIRECT(\"'\"&F3799&\"'!\"&G3799)),\"\",INDIRECT(\"'\"&F3799&\"'!\"&G3799))","v":""},{"$f":"IF(ISBLANK(INDIRECT(\"'\"&F3799&\"'!\"&H3799)),\"\",IFERROR(VLOOKUP(TEXT(INDIRECT(\"'\"&F3799&\"'!\"&H3799),\"0\"),Notes!$B$5:$C$100,2,FALSE),\"\"))","v":""},"2e","$I$42","$J$42"]
[15953,{"$f":"Menu!$F$29","v":"X"},{"$f":"Menu!$J$29","v":2020},{"$f":"IF(ISBLANK(INDIRECT(\"'\"&F3800&\"'!\"&G3800)),\"\",INDIRECT(\"'\"&F3800&\"'!\"&G3800))","v":""},{"$f":"IF(ISBLANK(INDIRECT(\"'\"&F3800&\"'!\"&H3800)),\"\",IFERROR(VLOOKUP(TEXT(INDIRECT(\"'\"&F3800&\"'!\"&H3800),\"0\"),Notes!$B$5:$C$100,2,FALSE),\"\"))","v":""},"2e","$K$42","$L$42"]
[15954,{"$f":"Menu!$F$29","v":"X"},{"$f":"Menu!$J$29","v":2020},{"$f":"IF(ISBLANK(INDIRECT(\"'\"&F3801&\"'!\"&G3801)),\"\",INDIRECT(\"'\"&F3801&\"'!\"&G3801))","v":""},{"$f":"IF(ISBLANK(INDIRECT(\"'\"&F3801&\"'!\"&H3801)),\"\",IFERROR(VLOOKUP(TEXT(INDIRECT(\"'\"&F3801&\"'!\"&H3801),\"0\"),Notes!$B$5:$C$100,2,FALSE),\"\"))","v":""},"2e","$M$42","$N$42"]
[15955,{"$f":"Menu!$F$29","v":"X"},{"$f":"Menu!$J$29","v":2020},{"$f":"IF(ISBLANK(INDIRECT(\"'\"&F3802&\"'!\"&G3802)),\"\",INDIRECT(\"'\"&F3802&\"'!\"&G3802))","v":""},{"$f":"IF(ISBLANK(INDIRECT(\"'\"&F3802&\"'!\"&H3802)),\"\",IFERROR(VLOOKUP(TEXT(INDIRECT(\"'\"&F3802&\"'!\"&H3802),\"0\"),Notes!$B$5:$C$100,2,FALSE),\"\"))","v":""},"2e","$O$42","$P$42"]
[15956,{"$f":"Menu!$F$29","v":"X"},{"$f":"Menu!$J$29","v":2020},{"$f":"IF(ISBLANK(INDIRECT(\"'\"&F3803&\"'!\"&G3803)),\"\",INDIRECT(\"'\"&F3803&\"'!\"&G3803))","v":""},{"$f":"IF(ISBLANK(INDIRECT(\"'\"&F3803&\"'!\"&H3803)),\"\",IFERROR(VLOOKUP(TEXT(INDIRECT(\"'\"&F3803&\"'!\"&H3803),\"0\"),Notes!$B$5:$C$100,2,FALSE),\"\"))","v":""},"2e","$Q$42","$R$42"]
[15957,{"$f":"Menu!$F$29","v":"X"},{"$f":"Menu!$J$29","v":2020},{"$f":"IF(ISBLANK(INDIRECT(\"'\"&F3804&\"'!\"&G3804)),\"\",INDIRECT(\"'\"&F3804&\"'!\"&G3804))","v":""},{"$f":"IF(ISBLANK(INDIRECT(\"'\"&F3804&\"'!\"&H3804)),\"\",IFERROR(VLOOKUP(TEXT(INDIRECT(\"'\"&F3804&\"'!\"&H3804),\"0\"),Notes!$B$5:$C$100,2,FALSE),\"\"))","v":""},"2e","$S$42","$T$42"]
[15958,{"$f":"Menu!$F$29","v":"X"},{"$f":"Menu!$J$29","v":2020},{"$f":"IF(ISBLANK(INDIRECT(\"'\"&F3805&\"'!\"&G3805)),\"\",INDIRECT(\"'\"&F3805&\"'!\"&G3805))","v":""},{"$f":"IF(ISBLANK(INDIRECT(\"'\"&F3805&\"'!\"&H3805)),\"\",IFERROR(VLOOKUP(TEXT(INDIRECT(\"'\"&F3805&\"'!\"&H3805),\"0\"),Notes!$B$5:$C$100,2,FALSE),\"\"))","v":""},"2e","$U$42","$V$42"]
[15959,{"$f":"Menu!$F$29","v":"X"},{"$f":"Menu!$J$29","v":2020},{"$f":"IF(ISBLANK(INDIRECT(\"'\"&F3806&\"'!\"&G3806)),\"\",INDIRECT(\"'\"&F3806&\"'!\"&G3806))","v":""},{"$f":"IF(ISBLANK(INDIRECT(\"'\"&F3806&\"'!\"&H3806)),\"\",IFERROR(VLOOKUP(TEXT(INDIRECT(\"'\"&F3806&\"'!\"&H3806),\"0\"),Notes!$B$5:$C$100,2,FALSE),\"\"))","v":""},"2e","$W$42","$X$42"]
[15960,{"$f":"Menu!$F$29","v":"X"},{"$f":"Menu!$J$29","v":2020},{"$f":"IF(ISBLANK(INDIRECT(\"'\"&F3807&\"'!\"&G3807)),\"\",INDIRECT(\"'\"&F3807&\"'!\"&G3807))","v":""},{"$f":"IF(ISBLANK(INDIRECT(\"'\"&F3807&\"'!\"&H3807)),\"\",IFERROR(VLOOKUP(TEXT(INDIRECT(\"'\"&F3807&\"'!\"&H3807),\"0\"),Notes!$B$5:$C$100,2,FALSE),\"\"))","v":""},"2e","$Y$42","$Z$42"]
[15961,{"$f":"Menu!$F$29","v":"X"},{"$f":"Menu!$J$29","v":2020},{"$f":"IF(ISBLANK(INDIRECT(\"'\"&F3808&\"'!\"&G3808)),\"\",INDIRECT(\"'\"&F3808&\"'!\"&G3808))","v":""},{"$f":"IF(ISBLANK(INDIRECT(\"'\"&F3808&\"'!\"&H3808)),\"\",IFERROR(VLOOKUP(TEXT(INDIRECT(\"'\"&F3808&\"'!\"&H3808),\"0\"),Notes!$B$5:$C$100,2,FALSE),\"\"))","v":""},"2e","$AA$42","$AB$42"]
[15962,{"$f":"Menu!$F$29","v":"X"},{"$f":"Menu!$J$29","v":2020},{"$f":"IF(ISBLANK(INDIRECT(\"'\"&F3809&\"'!\"&G3809)),\"\",INDIRECT(\"'\"&F3809&\"'!\"&G3809))","v":""},{"$f":"IF(ISBLANK(INDIRECT(\"'\"&F3809&\"'!\"&H3809)),\"\",IFERROR(VLOOKUP(TEXT(INDIRECT(\"'\"&F3809&\"'!\"&H3809),\"0\"),Notes!$B$5:$C$100,2,FALSE),\"\"))","v":""},"2e","$AC$42","$AD$42"]
[15963,{"$f":"Menu!$F$29","v":"X"},{"$f":"Menu!$J$29","v":2020},{"$f":"IF(ISBLANK(INDIRECT(\"'\"&F3810&\"'!\"&G3810)),\"\",INDIRECT(\"'\"&F3810&\"'!\"&G3810))","v":""},{"$f":"IF(ISBLANK(INDIRECT(\"'\"&F3810&\"'!\"&H3810)),\"\",IFERROR(VLOOKUP(TEXT(INDIRECT(\"'\"&F3810&\"'!\"&H3810),\"0\"),Notes!$B$5:$C$100,2,FALSE),\"\"))","v":""},"2e","$AE$42","$AF$42"]
[15964,{"$f":"Menu!$F$29","v":"X"},{"$f":"Menu!$J$29","v":2020},{"$f":"IF(ISBLANK(INDIRECT(\"'\"&F3811&\"'!\"&G3811)),\"\",INDIRECT(\"'\"&F3811&\"'!\"&G3811))","v":""},{"$f":"IF(ISBLANK(INDIRECT(\"'\"&F3811&\"'!\"&H3811)),\"\",IFERROR(VLOOKUP(TEXT(INDIRECT(\"'\"&F3811&\"'!\"&H3811),\"0\"),Notes!$B$5:$C$100,2,FALSE),\"\"))","v":""},"2e","$AG$42","$AH$42"]
[15965,{"$f":"Menu!$F$29","v":"X"},{"$f":"Menu!$J$29","v":2020},{"$f":"IF(ISBLANK(INDIRECT(\"'\"&F3812&\"'!\"&G3812)),\"\",INDIRECT(\"'\"&F3812&\"'!\"&G3812))","v":""},{"$f":"IF(ISBLANK(INDIRECT(\"'\"&F3812&\"'!\"&H3812)),\"\",IFERROR(VLOOKUP(TEXT(INDIRECT(\"'\"&F3812&\"'!\"&H3812),\"0\"),Notes!$B$5:$C$100,2,FALSE),\"\"))","v":""},"2e","$AI$42","$AJ$42"]
[15966,{"$f":"Menu!$F$29","v":"X"},{"$f":"Menu!$J$29","v":2020},{"$f":"IF(ISBLANK(INDIRECT(\"'\"&F3813&\"'!\"&G3813)),\"\",INDIRECT(\"'\"&F3813&\"'!\"&G3813))","v":""},{"$f":"IF(ISBLANK(INDIRECT(\"'\"&F3813&\"'!\"&H3813)),\"\",IFERROR(VLOOKUP(TEXT(INDIRECT(\"'\"&F3813&\"'!\"&H3813),\"0\"),Notes!$B$5:$C$100,2,FALSE),\"\"))","v":""},"2e","$AK$42","$AL$42"]
[15967,{"$f":"Menu!$F$29","v":"X"},{"$f":"Menu!$J$29","v":2020},{"$f":"IF(ISBLANK(INDIRECT(\"'\"&F3814&\"'!\"&G3814)),\"\",INDIRECT(\"'\"&F3814&\"'!\"&G3814))","v":""},{"$f":"IF(ISBLANK(INDIRECT(\"'\"&F3814&\"'!\"&H3814)),\"\",IFERROR(VLOOKUP(TEXT(INDIRECT(\"'\"&F3814&\"'!\"&H3814),\"0\"),Notes!$B$5:$C$100,2,FALSE),\"\"))","v":""},"2e","$AM$42","$AN$42"]
[15968,{"$f":"Menu!$F$29","v":"X"},{"$f":"Menu!$J$29","v":2020},{"$f":"IF(ISBLANK(INDIRECT(\"'\"&F3815&\"'!\"&G3815)),\"\",INDIRECT(\"'\"&F3815&\"'!\"&G3815))","v":""},{"$f":"IF(ISBLANK(INDIRECT(\"'\"&F3815&\"'!\"&H3815)),\"\",IFERROR(VLOOKUP(TEXT(INDIRECT(\"'\"&F3815&\"'!\"&H3815),\"0\"),Notes!$B$5:$C$100,2,FALSE),\"\"))","v":""},"2e","$AO$42","$AP$42"]
[15969,{"$f":"Menu!$F$29","v":"X"},{"$f":"Menu!$J$29","v":2020},{"$f":"IF(ISBLANK(INDIRECT(\"'\"&F3816&\"'!\"&G3816)),\"\",INDIRECT(\"'\"&F3816&\"'!\"&G3816))","v":""},{"$f":"IF(ISBLANK(INDIRECT(\"'\"&F3816&\"'!\"&H3816)),\"\",IFERROR(VLOOKUP(TEXT(INDIRECT(\"'\"&F3816&\"'!\"&H3816),\"0\"),Notes!$B$5:$C$100,2,FALSE),\"\"))","v":""},"2e","$AQ$42","$AR$42"]
[15970,{"$f":"Menu!$F$29","v":"X"},{"$f":"Menu!$J$29","v":2020},{"$f":"IF(ISBLANK(INDIRECT(\"'\"&F3817&\"'!\"&G3817)),\"\",INDIRECT(\"'\"&F3817&\"'!\"&G3817))","v":""},{"$f":"IF(ISBLANK(INDIRECT(\"'\"&F3817&\"'!\"&H3817)),\"\",IFERROR(VLOOKUP(TEXT(INDIRECT(\"'\"&F3817&\"'!\"&H3817),\"0\"),Notes!$B$5:$C$100,2,FALSE),\"\"))","v":""},"2e","$AS$42","$AT$42"]
[15971,{"$f":"Menu!$F$29","v":"X"},{"$f":"Menu!$J$29","v":2020},{"$f":"IF(ISBLANK(INDIRECT(\"'\"&F3818&\"'!\"&G3818)),\"\",INDIRECT(\"'\"&F3818&\"'!\"&G3818))","v":""},{"$f":"IF(ISBLANK(INDIRECT(\"'\"&F3818&\"'!\"&H3818)),\"\",IFERROR(VLOOKUP(TEXT(INDIRECT(\"'\"&F3818&\"'!\"&H3818),\"0\"),Notes!$B$5:$C$100,2,FALSE),\"\"))","v":""},"2e","$AU$42","$AV$42"]
[15972,{"$f":"Menu!$F$29","v":"X"},{"$f":"Menu!$J$29","v":2020},{"$f":"IF(ISBLANK(INDIRECT(\"'\"&F3819&\"'!\"&G3819)),\"\",INDIRECT(\"'\"&F3819&\"'!\"&G3819))","v":""},{"$f":"IF(ISBLANK(INDIRECT(\"'\"&F3819&\"'!\"&H3819)),\"\",IFERROR(VLOOKUP(TEXT(INDIRECT(\"'\"&F3819&\"'!\"&H3819),\"0\"),Notes!$B$5:$C$100,2,FALSE),\"\"))","v":""},"2e","$AW$42","$AX$42"]
[15973,{"$f":"Menu!$F$29","v":"X"},{"$f":"Menu!$J$29","v":2020},{"$f":"IF(ISBLANK(INDIRECT(\"'\"&F3820&\"'!\"&G3820)),\"\",INDIRECT(\"'\"&F3820&\"'!\"&G3820))","v":""},{"$f":"IF(ISBLANK(INDIRECT(\"'\"&F3820&\"'!\"&H3820)),\"\",IFERROR(VLOOKUP(TEXT(INDIRECT(\"'\"&F3820&\"'!\"&H3820),\"0\"),Notes!$B$5:$C$100,2,FALSE),\"\"))","v":""},"2e","$AY$42","$AZ$42"]
[15974,{"$f":"Menu!$F$29","v":"X"},{"$f":"Menu!$J$29","v":2020},{"$f":"IF(ISBLANK(INDIRECT(\"'\"&F3821&\"'!\"&G3821)),\"\",INDIRECT(\"'\"&F3821&\"'!\"&G3821))","v":""},{"$f":"IF(ISBLANK(INDIRECT(\"'\"&F3821&\"'!\"&H3821)),\"\",IFERROR(VLOOKUP(TEXT(INDIRECT(\"'\"&F3821&\"'!\"&H3821),\"0\"),Notes!$B$5:$C$100,2,FALSE),\"\"))","v":""},"2e","$BA$42","$BB$42"]
[15975,{"$f":"Menu!$F$29","v":"X"},{"$f":"Menu!$J$29","v":2020},{"$f":"IF(ISBLANK(INDIRECT(\"'\"&F3822&\"'!\"&G3822)),\"\",INDIRECT(\"'\"&F3822&\"'!\"&G3822))","v":""},{"$f":"IF(ISBLANK(INDIRECT(\"'\"&F3822&\"'!\"&H3822)),\"\",IFERROR(VLOOKUP(TEXT(INDIRECT(\"'\"&F3822&\"'!\"&H3822),\"0\"),Notes!$B$5:$C$100,2,FALSE),\"\"))","v":""},"2e","$BC$42","$BD$42"]
[15976,{"$f":"Menu!$F$29","v":"X"},{"$f":"Menu!$J$29","v":2020},{"$f":"IF(ISBLANK(INDIRECT(\"'\"&F3823&\"'!\"&G3823)),\"\",INDIRECT(\"'\"&F3823&\"'!\"&G3823))","v":""},{"$f":"IF(ISBLANK(INDIRECT(\"'\"&F3823&\"'!\"&H3823)),\"\",IFERROR(VLOOKUP(TEXT(INDIRECT(\"'\"&F3823&\"'!\"&H3823),\"0\"),Notes!$B$5:$C$100,2,FALSE),\"\"))","v":""},"2e","$BE$42","$BF$42"]
[15977,{"$f":"Menu!$F$29","v":"X"},{"$f":"Menu!$J$29","v":2020},{"$f":"IF(ISBLANK(INDIRECT(\"'\"&F3824&\"'!\"&G3824)),\"\",INDIRECT(\"'\"&F3824&\"'!\"&G3824))","v":""},{"$f":"IF(ISBLANK(INDIRECT(\"'\"&F3824&\"'!\"&H3824)),\"\",IFERROR(VLOOKUP(TEXT(INDIRECT(\"'\"&F3824&\"'!\"&H3824),\"0\"),Notes!$B$5:$C$100,2,FALSE),\"\"))","v":""},"2e","$BG$42","$BH$42"]
[15978,{"$f":"Menu!$F$29","v":"X"},{"$f":"Menu!$J$29","v":2020},{"$f":"IF(ISBLANK(INDIRECT(\"'\"&F3825&\"'!\"&G3825)),\"\",INDIRECT(\"'\"&F3825&\"'!\"&G3825))","v":""},{"$f":"IF(ISBLANK(INDIRECT(\"'\"&F3825&\"'!\"&H3825)),\"\",IFERROR(VLOOKUP(TEXT(INDIRECT(\"'\"&F3825&\"'!\"&H3825),\"0\"),Notes!$B$5:$C$100,2,FALSE),\"\"))","v":""},"2e","$BI$42","$BJ$42"]
[15979,{"$f":"Menu!$F$29","v":"X"},{"$f":"Menu!$J$29","v":2020},{"$f":"IF(ISBLANK(INDIRECT(\"'\"&F3826&\"'!\"&G3826)),\"\",INDIRECT(\"'\"&F3826&\"'!\"&G3826))","v":""},{"$f":"IF(ISBLANK(INDIRECT(\"'\"&F3826&\"'!\"&H3826)),\"\",IFERROR(VLOOKUP(TEXT(INDIRECT(\"'\"&F3826&\"'!\"&H3826),\"0\"),Notes!$B$5:$C$100,2,FALSE),\"\"))","v":""},"2e","$BK$42","$BL$42"]
[15980,{"$f":"Menu!$F$29","v":"X"},{"$f":"Menu!$J$29","v":2020},{"$f":"IF(ISBLANK(INDIRECT(\"'\"&F3827&\"'!\"&G3827)),\"\",INDIRECT(\"'\"&F3827&\"'!\"&G3827))","v":""},{"$f":"IF(ISBLANK(INDIRECT(\"'\"&F3827&\"'!\"&H3827)),\"\",IFERROR(VLOOKUP(TEXT(INDIRECT(\"'\"&F3827&\"'!\"&H3827),\"0\"),Notes!$B$5:$C$100,2,FALSE),\"\"))","v":""},"2e","$E$52","$F$52"]
[15981,{"$f":"Menu!$F$29","v":"X"},{"$f":"Menu!$J$29","v":2020},{"$f":"IF(ISBLANK(INDIRECT(\"'\"&F3828&\"'!\"&G3828)),\"\",INDIRECT(\"'\"&F3828&\"'!\"&G3828))","v":""},{"$f":"IF(ISBLANK(INDIRECT(\"'\"&F3828&\"'!\"&H3828)),\"\",IFERROR(VLOOKUP(TEXT(INDIRECT(\"'\"&F3828&\"'!\"&H3828),\"0\"),Notes!$B$5:$C$100,2,FALSE),\"\"))","v":""},"2e","$G$52","$H$52"]
[15982,{"$f":"Menu!$F$29","v":"X"},{"$f":"Menu!$J$29","v":2020},{"$f":"IF(ISBLANK(INDIRECT(\"'\"&F3829&\"'!\"&G3829)),\"\",INDIRECT(\"'\"&F3829&\"'!\"&G3829))","v":""},{"$f":"IF(ISBLANK(INDIRECT(\"'\"&F3829&\"'!\"&H3829)),\"\",IFERROR(VLOOKUP(TEXT(INDIRECT(\"'\"&F3829&\"'!\"&H3829),\"0\"),Notes!$B$5:$C$100,2,FALSE),\"\"))","v":""},"2e","$I$52","$J$52"]
[15983,{"$f":"Menu!$F$29","v":"X"},{"$f":"Menu!$J$29","v":2020},{"$f":"IF(ISBLANK(INDIRECT(\"'\"&F3830&\"'!\"&G3830)),\"\",INDIRECT(\"'\"&F3830&\"'!\"&G3830))","v":""},{"$f":"IF(ISBLANK(INDIRECT(\"'\"&F3830&\"'!\"&H3830)),\"\",IFERROR(VLOOKUP(TEXT(INDIRECT(\"'\"&F3830&\"'!\"&H3830),\"0\"),Notes!$B$5:$C$100,2,FALSE),\"\"))","v":""},"2e","$K$52","$L$52"]
[15984,{"$f":"Menu!$F$29","v":"X"},{"$f":"Menu!$J$29","v":2020},{"$f":"IF(ISBLANK(INDIRECT(\"'\"&F3831&\"'!\"&G3831)),\"\",INDIRECT(\"'\"&F3831&\"'!\"&G3831))","v":""},{"$f":"IF(ISBLANK(INDIRECT(\"'\"&F3831&\"'!\"&H3831)),\"\",IFERROR(VLOOKUP(TEXT(INDIRECT(\"'\"&F3831&\"'!\"&H3831),\"0\"),Notes!$B$5:$C$100,2,FALSE),\"\"))","v":""},"2e","$M$52","$N$52"]
[15985,{"$f":"Menu!$F$29","v":"X"},{"$f":"Menu!$J$29","v":2020},{"$f":"IF(ISBLANK(INDIRECT(\"'\"&F3832&\"'!\"&G3832)),\"\",INDIRECT(\"'\"&F3832&\"'!\"&G3832))","v":""},{"$f":"IF(ISBLANK(INDIRECT(\"'\"&F3832&\"'!\"&H3832)),\"\",IFERROR(VLOOKUP(TEXT(INDIRECT(\"'\"&F3832&\"'!\"&H3832),\"0\"),Notes!$B$5:$C$100,2,FALSE),\"\"))","v":""},"2e","$O$52","$P$52"]
[15986,{"$f":"Menu!$F$29","v":"X"},{"$f":"Menu!$J$29","v":2020},{"$f":"IF(ISBLANK(INDIRECT(\"'\"&F3833&\"'!\"&G3833)),\"\",INDIRECT(\"'\"&F3833&\"'!\"&G3833))","v":""},{"$f":"IF(ISBLANK(INDIRECT(\"'\"&F3833&\"'!\"&H3833)),\"\",IFERROR(VLOOKUP(TEXT(INDIRECT(\"'\"&F3833&\"'!\"&H3833),\"0\"),Notes!$B$5:$C$100,2,FALSE),\"\"))","v":""},"2e","$Q$52","$R$52"]
[15987,{"$f":"Menu!$F$29","v":"X"},{"$f":"Menu!$J$29","v":2020},{"$f":"IF(ISBLANK(INDIRECT(\"'\"&F3834&\"'!\"&G3834)),\"\",INDIRECT(\"'\"&F3834&\"'!\"&G3834))","v":""},{"$f":"IF(ISBLANK(INDIRECT(\"'\"&F3834&\"'!\"&H3834)),\"\",IFERROR(VLOOKUP(TEXT(INDIRECT(\"'\"&F3834&\"'!\"&H3834),\"0\"),Notes!$B$5:$C$100,2,FALSE),\"\"))","v":""},"2e","$S$52","$T$52"]
[15988,{"$f":"Menu!$F$29","v":"X"},{"$f":"Menu!$J$29","v":2020},{"$f":"IF(ISBLANK(INDIRECT(\"'\"&F3835&\"'!\"&G3835)),\"\",INDIRECT(\"'\"&F3835&\"'!\"&G3835))","v":""},{"$f":"IF(ISBLANK(INDIRECT(\"'\"&F3835&\"'!\"&H3835)),\"\",IFERROR(VLOOKUP(TEXT(INDIRECT(\"'\"&F3835&\"'!\"&H3835),\"0\"),Notes!$B$5:$C$100,2,FALSE),\"\"))","v":""},"2e","$U$52","$V$52"]
[15989,{"$f":"Menu!$F$29","v":"X"},{"$f":"Menu!$J$29","v":2020},{"$f":"IF(ISBLANK(INDIRECT(\"'\"&F3836&\"'!\"&G3836)),\"\",INDIRECT(\"'\"&F3836&\"'!\"&G3836))","v":""},{"$f":"IF(ISBLANK(INDIRECT(\"'\"&F3836&\"'!\"&H3836)),\"\",IFERROR(VLOOKUP(TEXT(INDIRECT(\"'\"&F3836&\"'!\"&H3836),\"0\"),Notes!$B$5:$C$100,2,FALSE),\"\"))","v":""},"2e","$W$52","$X$52"]
[15990,{"$f":"Menu!$F$29","v":"X"},{"$f":"Menu!$J$29","v":2020},{"$f":"IF(ISBLANK(INDIRECT(\"'\"&F3837&\"'!\"&G3837)),\"\",INDIRECT(\"'\"&F3837&\"'!\"&G3837))","v":""},{"$f":"IF(ISBLANK(INDIRECT(\"'\"&F3837&\"'!\"&H3837)),\"\",IFERROR(VLOOKUP(TEXT(INDIRECT(\"'\"&F3837&\"'!\"&H3837),\"0\"),Notes!$B$5:$C$100,2,FALSE),\"\"))","v":""},"2e","$Y$52","$Z$52"]
[15991,{"$f":"Menu!$F$29","v":"X"},{"$f":"Menu!$J$29","v":2020},{"$f":"IF(ISBLANK(INDIRECT(\"'\"&F3838&\"'!\"&G3838)),\"\",INDIRECT(\"'\"&F3838&\"'!\"&G3838))","v":""},{"$f":"IF(ISBLANK(INDIRECT(\"'\"&F3838&\"'!\"&H3838)),\"\",IFERROR(VLOOKUP(TEXT(INDIRECT(\"'\"&F3838&\"'!\"&H3838),\"0\"),Notes!$B$5:$C$100,2,FALSE),\"\"))","v":""},"2e","$AA$52","$AB$52"]
[15992,{"$f":"Menu!$F$29","v":"X"},{"$f":"Menu!$J$29","v":2020},{"$f":"IF(ISBLANK(INDIRECT(\"'\"&F3839&\"'!\"&G3839)),\"\",INDIRECT(\"'\"&F3839&\"'!\"&G3839))","v":""},{"$f":"IF(ISBLANK(INDIRECT(\"'\"&F3839&\"'!\"&H3839)),\"\",IFERROR(VLOOKUP(TEXT(INDIRECT(\"'\"&F3839&\"'!\"&H3839),\"0\"),Notes!$B$5:$C$100,2,FALSE),\"\"))","v":""},"2e","$AC$52","$AD$52"]
[15993,{"$f":"Menu!$F$29","v":"X"},{"$f":"Menu!$J$29","v":2020},{"$f":"IF(ISBLANK(INDIRECT(\"'\"&F3840&\"'!\"&G3840)),\"\",INDIRECT(\"'\"&F3840&\"'!\"&G3840))","v":""},{"$f":"IF(ISBLANK(INDIRECT(\"'\"&F3840&\"'!\"&H3840)),\"\",IFERROR(VLOOKUP(TEXT(INDIRECT(\"'\"&F3840&\"'!\"&H3840),\"0\"),Notes!$B$5:$C$100,2,FALSE),\"\"))","v":""},"2e","$AE$52","$AF$52"]
[15994,{"$f":"Menu!$F$29","v":"X"},{"$f":"Menu!$J$29","v":2020},{"$f":"IF(ISBLANK(INDIRECT(\"'\"&F3841&\"'!\"&G3841)),\"\",INDIRECT(\"'\"&F3841&\"'!\"&G3841))","v":""},{"$f":"IF(ISBLANK(INDIRECT(\"'\"&F3841&\"'!\"&H3841)),\"\",IFERROR(VLOOKUP(TEXT(INDIRECT(\"'\"&F3841&\"'!\"&H3841),\"0\"),Notes!$B$5:$C$100,2,FALSE),\"\"))","v":""},"2e","$AG$52","$AH$52"]
[15995,{"$f":"Menu!$F$29","v":"X"},{"$f":"Menu!$J$29","v":2020},{"$f":"IF(ISBLANK(INDIRECT(\"'\"&F3842&\"'!\"&G3842)),\"\",INDIRECT(\"'\"&F3842&\"'!\"&G3842))","v":""},{"$f":"IF(ISBLANK(INDIRECT(\"'\"&F3842&\"'!\"&H3842)),\"\",IFERROR(VLOOKUP(TEXT(INDIRECT(\"'\"&F3842&\"'!\"&H3842),\"0\"),Notes!$B$5:$C$100,2,FALSE),\"\"))","v":""},"2e","$AI$52",{"$f":"IF(LEN(TRIM(MID(G3842,4,10)))-LEN(SUBSTITUTE(TRIM(MID(G3842,4,10)),\"$\",\"\"))=0,\"$\"&CHAR(CODE(MID(G3842,2,1))+1)&\"$\"&TRIM(MID(G3842,4,10)),\"$\"&MID(G3842,2,1)&CHAR(CODE(MID(G3842,3,1))+1)&\"$\"&TRIM(MID(G3842,5,11)))","v":"$AJ$52"}]
[15996,{"$f":"Menu!$F$29","v":"X"},{"$f":"Menu!$J$29","v":2020},{"$f":"IF(ISBLANK(INDIRECT(\"'\"&F3843&\"'!\"&G3843)),\"\",INDIRECT(\"'\"&F3843&\"'!\"&G3843))","v":""},{"$f":"IF(ISBLANK(INDIRECT(\"'\"&F3843&\"'!\"&H3843)),\"\",IFERROR(VLOOKUP(TEXT(INDIRECT(\"'\"&F3843&\"'!\"&H3843),\"0\"),Notes!$B$5:$C$100,2,FALSE),\"\"))","v":""},"2e","$AK$52","$AL$52"]
[15997,{"$f":"Menu!$F$29","v":"X"},{"$f":"Menu!$J$29","v":2020},{"$f":"IF(ISBLANK(INDIRECT(\"'\"&F3844&\"'!\"&G3844)),\"\",INDIRECT(\"'\"&F3844&\"'!\"&G3844))","v":""},{"$f":"IF(ISBLANK(INDIRECT(\"'\"&F3844&\"'!\"&H3844)),\"\",IFERROR(VLOOKUP(TEXT(INDIRECT(\"'\"&F3844&\"'!\"&H3844),\"0\"),Notes!$B$5:$C$100,2,FALSE),\"\"))","v":""},"2e","$AM$52","$AN$52"]
[15998,{"$f":"Menu!$F$29","v":"X"},{"$f":"Menu!$J$29","v":2020},{"$f":"IF(ISBLANK(INDIRECT(\"'\"&F3845&\"'!\"&G3845)),\"\",INDIRECT(\"'\"&F3845&\"'!\"&G3845))","v":""},{"$f":"IF(ISBLANK(INDIRECT(\"'\"&F3845&\"'!\"&H3845)),\"\",IFERROR(VLOOKUP(TEXT(INDIRECT(\"'\"&F3845&\"'!\"&H3845),\"0\"),Notes!$B$5:$C$100,2,FALSE),\"\"))","v":""},"2e","$AO$52","$AP$52"]
[15999,{"$f":"Menu!$F$29","v":"X"},{"$f":"Menu!$J$29","v":2020},{"$f":"IF(ISBLANK(INDIRECT(\"'\"&F3846&\"'!\"&G3846)),\"\",INDIRECT(\"'\"&F3846&\"'!\"&G3846))","v":""},{"$f":"IF(ISBLANK(INDIRECT(\"'\"&F3846&\"'!\"&H3846)),\"\",IFERROR(VLOOKUP(TEXT(INDIRECT(\"'\"&F3846&\"'!\"&H3846),\"0\"),Notes!$B$5:$C$100,2,FALSE),\"\"))","v":""},"2e","$AQ$52","$AR$52"]
[16000,{"$f":"Menu!$F$29","v":"X"},{"$f":"Menu!$J$29","v":2020},{"$f":"IF(ISBLANK(INDIRECT(\"'\"&F3847&\"'!\"&G3847)),\"\",INDIRECT(\"'\"&F3847&\"'!\"&G3847))","v":""},{"$f":"IF(ISBLANK(INDIRECT(\"'\"&F3847&\"'!\"&H3847)),\"\",IFERROR(VLOOKUP(TEXT(INDIRECT(\"'\"&F3847&\"'!\"&H3847),\"0\"),Notes!$B$5:$C$100,2,FALSE),\"\"))","v":""},"2e","$AS$52","$AT$52"]
[16001,{"$f":"Menu!$F$29","v":"X"},{"$f":"Menu!$J$29","v":2020},{"$f":"IF(ISBLANK(INDIRECT(\"'\"&F3848&\"'!\"&G3848)),\"\",INDIRECT(\"'\"&F3848&\"'!\"&G3848))","v":""},{"$f":"IF(ISBLANK(INDIRECT(\"'\"&F3848&\"'!\"&H3848)),\"\",IFERROR(VLOOKUP(TEXT(INDIRECT(\"'\"&F3848&\"'!\"&H3848),\"0\"),Notes!$B$5:$C$100,2,FALSE),\"\"))","v":""},"2e","$AU$52","$AV$52"]
[16002,{"$f":"Menu!$F$29","v":"X"},{"$f":"Menu!$J$29","v":2020},{"$f":"IF(ISBLANK(INDIRECT(\"'\"&F3849&\"'!\"&G3849)),\"\",INDIRECT(\"'\"&F3849&\"'!\"&G3849))","v":""},{"$f":"IF(ISBLANK(INDIRECT(\"'\"&F3849&\"'!\"&H3849)),\"\",IFERROR(VLOOKUP(TEXT(INDIRECT(\"'\"&F3849&\"'!\"&H3849),\"0\"),Notes!$B$5:$C$100,2,FALSE),\"\"))","v":""},"2e","$AW$52","$AX$52"]
[16003,{"$f":"Menu!$F$29","v":"X"},{"$f":"Menu!$J$29","v":2020},{"$f":"IF(ISBLANK(INDIRECT(\"'\"&F3850&\"'!\"&G3850)),\"\",INDIRECT(\"'\"&F3850&\"'!\"&G3850))","v":""},{"$f":"IF(ISBLANK(INDIRECT(\"'\"&F3850&\"'!\"&H3850)),\"\",IFERROR(VLOOKUP(TEXT(INDIRECT(\"'\"&F3850&\"'!\"&H3850),\"0\"),Notes!$B$5:$C$100,2,FALSE),\"\"))","v":""},"2e","$AY$52","$AZ$52"]
[16004,{"$f":"Menu!$F$29","v":"X"},{"$f":"Menu!$J$29","v":2020},{"$f":"IF(ISBLANK(INDIRECT(\"'\"&F3851&\"'!\"&G3851)),\"\",INDIRECT(\"'\"&F3851&\"'!\"&G3851))","v":""},{"$f":"IF(ISBLANK(INDIRECT(\"'\"&F3851&\"'!\"&H3851)),\"\",IFERROR(VLOOKUP(TEXT(INDIRECT(\"'\"&F3851&\"'!\"&H3851),\"0\"),Notes!$B$5:$C$100,2,FALSE),\"\"))","v":""},"2e","$BA$52","$BB$52"]
[16005,{"$f":"Menu!$F$29","v":"X"},{"$f":"Menu!$J$29","v":2020},{"$f":"IF(ISBLANK(INDIRECT(\"'\"&F3852&\"'!\"&G3852)),\"\",INDIRECT(\"'\"&F3852&\"'!\"&G3852))","v":""},{"$f":"IF(ISBLANK(INDIRECT(\"'\"&F3852&\"'!\"&H3852)),\"\",IFERROR(VLOOKUP(TEXT(INDIRECT(\"'\"&F3852&\"'!\"&H3852),\"0\"),Notes!$B$5:$C$100,2,FALSE),\"\"))","v":""},"2e","$BC$52","$BD$52"]
[16006,{"$f":"Menu!$F$29","v":"X"},{"$f":"Menu!$J$29","v":2020},{"$f":"IF(ISBLANK(INDIRECT(\"'\"&F3853&\"'!\"&G3853)),\"\",INDIRECT(\"'\"&F3853&\"'!\"&G3853))","v":""},{"$f":"IF(ISBLANK(INDIRECT(\"'\"&F3853&\"'!\"&H3853)),\"\",IFERROR(VLOOKUP(TEXT(INDIRECT(\"'\"&F3853&\"'!\"&H3853),\"0\"),Notes!$B$5:$C$100,2,FALSE),\"\"))","v":""},"2e","$BE$52","$BF$52"]
[16007,{"$f":"Menu!$F$29","v":"X"},{"$f":"Menu!$J$29","v":2020},{"$f":"IF(ISBLANK(INDIRECT(\"'\"&F3854&\"'!\"&G3854)),\"\",INDIRECT(\"'\"&F3854&\"'!\"&G3854))","v":""},{"$f":"IF(ISBLANK(INDIRECT(\"'\"&F3854&\"'!\"&H3854)),\"\",IFERROR(VLOOKUP(TEXT(INDIRECT(\"'\"&F3854&\"'!\"&H3854),\"0\"),Notes!$B$5:$C$100,2,FALSE),\"\"))","v":""},"2e","$BG$52","$BH$52"]
[16008,{"$f":"Menu!$F$29","v":"X"},{"$f":"Menu!$J$29","v":2020},{"$f":"IF(ISBLANK(INDIRECT(\"'\"&F3855&\"'!\"&G3855)),\"\",INDIRECT(\"'\"&F3855&\"'!\"&G3855))","v":""},{"$f":"IF(ISBLANK(INDIRECT(\"'\"&F3855&\"'!\"&H3855)),\"\",IFERROR(VLOOKUP(TEXT(INDIRECT(\"'\"&F3855&\"'!\"&H3855),\"0\"),Notes!$B$5:$C$100,2,FALSE),\"\"))","v":""},"2e","$BI$52","$BJ$52"]
[16009,{"$f":"Menu!$F$29","v":"X"},{"$f":"Menu!$J$29","v":2020},{"$f":"IF(ISBLANK(INDIRECT(\"'\"&F3856&\"'!\"&G3856)),\"\",INDIRECT(\"'\"&F3856&\"'!\"&G3856))","v":""},{"$f":"IF(ISBLANK(INDIRECT(\"'\"&F3856&\"'!\"&H3856)),\"\",IFERROR(VLOOKUP(TEXT(INDIRECT(\"'\"&F3856&\"'!\"&H3856),\"0\"),Notes!$B$5:$C$100,2,FALSE),\"\"))","v":""},"2e","$BK$52","$BL$52"]
[16010,{"$f":"Menu!$F$29","v":"X"},{"$f":"Menu!$J$29","v":2020},{"$f":"IF(ISBLANK(INDIRECT(\"'\"&F3857&\"'!\"&G3857)),\"\",INDIRECT(\"'\"&F3857&\"'!\"&G3857))","v":""},{"$f":"IF(ISBLANK(INDIRECT(\"'\"&F3857&\"'!\"&H3857)),\"\",IFERROR(VLOOKUP(TEXT(INDIRECT(\"'\"&F3857&\"'!\"&H3857),\"0\"),Notes!$B$5:$C$100,2,FALSE),\"\"))","v":""},"2e","$E$53","$F$53"]
[16011,{"$f":"Menu!$F$29","v":"X"},{"$f":"Menu!$J$29","v":2020},{"$f":"IF(ISBLANK(INDIRECT(\"'\"&F3858&\"'!\"&G3858)),\"\",INDIRECT(\"'\"&F3858&\"'!\"&G3858))","v":""},{"$f":"IF(ISBLANK(INDIRECT(\"'\"&F3858&\"'!\"&H3858)),\"\",IFERROR(VLOOKUP(TEXT(INDIRECT(\"'\"&F3858&\"'!\"&H3858),\"0\"),Notes!$B$5:$C$100,2,FALSE),\"\"))","v":""},"2e","$G$53","$H$53"]
[16012,{"$f":"Menu!$F$29","v":"X"},{"$f":"Menu!$J$29","v":2020},{"$f":"IF(ISBLANK(INDIRECT(\"'\"&F3859&\"'!\"&G3859)),\"\",INDIRECT(\"'\"&F3859&\"'!\"&G3859))","v":""},{"$f":"IF(ISBLANK(INDIRECT(\"'\"&F3859&\"'!\"&H3859)),\"\",IFERROR(VLOOKUP(TEXT(INDIRECT(\"'\"&F3859&\"'!\"&H3859),\"0\"),Notes!$B$5:$C$100,2,FALSE),\"\"))","v":""},"2e","$I$53","$J$53"]
[16013,{"$f":"Menu!$F$29","v":"X"},{"$f":"Menu!$J$29","v":2020},{"$f":"IF(ISBLANK(INDIRECT(\"'\"&F3860&\"'!\"&G3860)),\"\",INDIRECT(\"'\"&F3860&\"'!\"&G3860))","v":""},{"$f":"IF(ISBLANK(INDIRECT(\"'\"&F3860&\"'!\"&H3860)),\"\",IFERROR(VLOOKUP(TEXT(INDIRECT(\"'\"&F3860&\"'!\"&H3860),\"0\"),Notes!$B$5:$C$100,2,FALSE),\"\"))","v":""},"2e","$K$53","$L$53"]
[16014,{"$f":"Menu!$F$29","v":"X"},{"$f":"Menu!$J$29","v":2020},{"$f":"IF(ISBLANK(INDIRECT(\"'\"&F3861&\"'!\"&G3861)),\"\",INDIRECT(\"'\"&F3861&\"'!\"&G3861))","v":""},{"$f":"IF(ISBLANK(INDIRECT(\"'\"&F3861&\"'!\"&H3861)),\"\",IFERROR(VLOOKUP(TEXT(INDIRECT(\"'\"&F3861&\"'!\"&H3861),\"0\"),Notes!$B$5:$C$100,2,FALSE),\"\"))","v":""},"2e","$M$53","$N$53"]
[16015,{"$f":"Menu!$F$29","v":"X"},{"$f":"Menu!$J$29","v":2020},{"$f":"IF(ISBLANK(INDIRECT(\"'\"&F3862&\"'!\"&G3862)),\"\",INDIRECT(\"'\"&F3862&\"'!\"&G3862))","v":""},{"$f":"IF(ISBLANK(INDIRECT(\"'\"&F3862&\"'!\"&H3862)),\"\",IFERROR(VLOOKUP(TEXT(INDIRECT(\"'\"&F3862&\"'!\"&H3862),\"0\"),Notes!$B$5:$C$100,2,FALSE),\"\"))","v":""},"2e","$O$53","$P$53"]
[16016,{"$f":"Menu!$F$29","v":"X"},{"$f":"Menu!$J$29","v":2020},{"$f":"IF(ISBLANK(INDIRECT(\"'\"&F3863&\"'!\"&G3863)),\"\",INDIRECT(\"'\"&F3863&\"'!\"&G3863))","v":""},{"$f":"IF(ISBLANK(INDIRECT(\"'\"&F3863&\"'!\"&H3863)),\"\",IFERROR(VLOOKUP(TEXT(INDIRECT(\"'\"&F3863&\"'!\"&H3863),\"0\"),Notes!$B$5:$C$100,2,FALSE),\"\"))","v":""},"2e","$Q$53","$R$53"]
[16017,{"$f":"Menu!$F$29","v":"X"},{"$f":"Menu!$J$29","v":2020},{"$f":"IF(ISBLANK(INDIRECT(\"'\"&F3864&\"'!\"&G3864)),\"\",INDIRECT(\"'\"&F3864&\"'!\"&G3864))","v":""},{"$f":"IF(ISBLANK(INDIRECT(\"'\"&F3864&\"'!\"&H3864)),\"\",IFERROR(VLOOKUP(TEXT(INDIRECT(\"'\"&F3864&\"'!\"&H3864),\"0\"),Notes!$B$5:$C$100,2,FALSE),\"\"))","v":""},"2e","$S$53","$T$53"]
[16018,{"$f":"Menu!$F$29","v":"X"},{"$f":"Menu!$J$29","v":2020},{"$f":"IF(ISBLANK(INDIRECT(\"'\"&F3865&\"'!\"&G3865)),\"\",INDIRECT(\"'\"&F3865&\"'!\"&G3865))","v":""},{"$f":"IF(ISBLANK(INDIRECT(\"'\"&F3865&\"'!\"&H3865)),\"\",IFERROR(VLOOKUP(TEXT(INDIRECT(\"'\"&F3865&\"'!\"&H3865),\"0\"),Notes!$B$5:$C$100,2,FALSE),\"\"))","v":""},"2e","$U$53","$V$53"]
[16019,{"$f":"Menu!$F$29","v":"X"},{"$f":"Menu!$J$29","v":2020},{"$f":"IF(ISBLANK(INDIRECT(\"'\"&F3866&\"'!\"&G3866)),\"\",INDIRECT(\"'\"&F3866&\"'!\"&G3866))","v":""},{"$f":"IF(ISBLANK(INDIRECT(\"'\"&F3866&\"'!\"&H3866)),\"\",IFERROR(VLOOKUP(TEXT(INDIRECT(\"'\"&F3866&\"'!\"&H3866),\"0\"),Notes!$B$5:$C$100,2,FALSE),\"\"))","v":""},"2e","$W$53","$X$53"]
[16020,{"$f":"Menu!$F$29","v":"X"},{"$f":"Menu!$J$29","v":2020},{"$f":"IF(ISBLANK(INDIRECT(\"'\"&F3867&\"'!\"&G3867)),\"\",INDIRECT(\"'\"&F3867&\"'!\"&G3867))","v":""},{"$f":"IF(ISBLANK(INDIRECT(\"'\"&F3867&\"'!\"&H3867)),\"\",IFERROR(VLOOKUP(TEXT(INDIRECT(\"'\"&F3867&\"'!\"&H3867),\"0\"),Notes!$B$5:$C$100,2,FALSE),\"\"))","v":""},"2e","$Y$53","$Z$53"]
[16021,{"$f":"Menu!$F$29","v":"X"},{"$f":"Menu!$J$29","v":2020},{"$f":"IF(ISBLANK(INDIRECT(\"'\"&F3868&\"'!\"&G3868)),\"\",INDIRECT(\"'\"&F3868&\"'!\"&G3868))","v":""},{"$f":"IF(ISBLANK(INDIRECT(\"'\"&F3868&\"'!\"&H3868)),\"\",IFERROR(VLOOKUP(TEXT(INDIRECT(\"'\"&F3868&\"'!\"&H3868),\"0\"),Notes!$B$5:$C$100,2,FALSE),\"\"))","v":""},"2e","$AA$53","$AB$53"]
[16022,{"$f":"Menu!$F$29","v":"X"},{"$f":"Menu!$J$29","v":2020},{"$f":"IF(ISBLANK(INDIRECT(\"'\"&F3869&\"'!\"&G3869)),\"\",INDIRECT(\"'\"&F3869&\"'!\"&G3869))","v":""},{"$f":"IF(ISBLANK(INDIRECT(\"'\"&F3869&\"'!\"&H3869)),\"\",IFERROR(VLOOKUP(TEXT(INDIRECT(\"'\"&F3869&\"'!\"&H3869),\"0\"),Notes!$B$5:$C$100,2,FALSE),\"\"))","v":""},"2e","$AC$53","$AD$53"]
[16023,{"$f":"Menu!$F$29","v":"X"},{"$f":"Menu!$J$29","v":2020},{"$f":"IF(ISBLANK(INDIRECT(\"'\"&F3870&\"'!\"&G3870)),\"\",INDIRECT(\"'\"&F3870&\"'!\"&G3870))","v":""},{"$f":"IF(ISBLANK(INDIRECT(\"'\"&F3870&\"'!\"&H3870)),\"\",IFERROR(VLOOKUP(TEXT(INDIRECT(\"'\"&F3870&\"'!\"&H3870),\"0\"),Notes!$B$5:$C$100,2,FALSE),\"\"))","v":""},"2e","$AE$53","$AF$53"]
[16024,{"$f":"Menu!$F$29","v":"X"},{"$f":"Menu!$J$29","v":2020},{"$f":"IF(ISBLANK(INDIRECT(\"'\"&F3871&\"'!\"&G3871)),\"\",INDIRECT(\"'\"&F3871&\"'!\"&G3871))","v":""},{"$f":"IF(ISBLANK(INDIRECT(\"'\"&F3871&\"'!\"&H3871)),\"\",IFERROR(VLOOKUP(TEXT(INDIRECT(\"'\"&F3871&\"'!\"&H3871),\"0\"),Notes!$B$5:$C$100,2,FALSE),\"\"))","v":""},"2e","$AG$53","$AH$53"]
[16025,{"$f":"Menu!$F$29","v":"X"},{"$f":"Menu!$J$29","v":2020},{"$f":"IF(ISBLANK(INDIRECT(\"'\"&F3872&\"'!\"&G3872)),\"\",INDIRECT(\"'\"&F3872&\"'!\"&G3872))","v":""},{"$f":"IF(ISBLANK(INDIRECT(\"'\"&F3872&\"'!\"&H3872)),\"\",IFERROR(VLOOKUP(TEXT(INDIRECT(\"'\"&F3872&\"'!\"&H3872),\"0\"),Notes!$B$5:$C$100,2,FALSE),\"\"))","v":""},"2e","$AI$53","$AJ$53"]
[16026,{"$f":"Menu!$F$29","v":"X"},{"$f":"Menu!$J$29","v":2020},{"$f":"IF(ISBLANK(INDIRECT(\"'\"&F3873&\"'!\"&G3873)),\"\",INDIRECT(\"'\"&F3873&\"'!\"&G3873))","v":""},{"$f":"IF(ISBLANK(INDIRECT(\"'\"&F3873&\"'!\"&H3873)),\"\",IFERROR(VLOOKUP(TEXT(INDIRECT(\"'\"&F3873&\"'!\"&H3873),\"0\"),Notes!$B$5:$C$100,2,FALSE),\"\"))","v":""},"2e","$AK$53","$AL$53"]
[16027,{"$f":"Menu!$F$29","v":"X"},{"$f":"Menu!$J$29","v":2020},{"$f":"IF(ISBLANK(INDIRECT(\"'\"&F3874&\"'!\"&G3874)),\"\",INDIRECT(\"'\"&F3874&\"'!\"&G3874))","v":""},{"$f":"IF(ISBLANK(INDIRECT(\"'\"&F3874&\"'!\"&H3874)),\"\",IFERROR(VLOOKUP(TEXT(INDIRECT(\"'\"&F3874&\"'!\"&H3874),\"0\"),Notes!$B$5:$C$100,2,FALSE),\"\"))","v":""},"2e","$AM$53","$AN$53"]
[16028,{"$f":"Menu!$F$29","v":"X"},{"$f":"Menu!$J$29","v":2020},{"$f":"IF(ISBLANK(INDIRECT(\"'\"&F3875&\"'!\"&G3875)),\"\",INDIRECT(\"'\"&F3875&\"'!\"&G3875))","v":""},{"$f":"IF(ISBLANK(INDIRECT(\"'\"&F3875&\"'!\"&H3875)),\"\",IFERROR(VLOOKUP(TEXT(INDIRECT(\"'\"&F3875&\"'!\"&H3875),\"0\"),Notes!$B$5:$C$100,2,FALSE),\"\"))","v":""},"2e","$AO$53","$AP$53"]
[16029,{"$f":"Menu!$F$29","v":"X"},{"$f":"Menu!$J$29","v":2020},{"$f":"IF(ISBLANK(INDIRECT(\"'\"&F3876&\"'!\"&G3876)),\"\",INDIRECT(\"'\"&F3876&\"'!\"&G3876))","v":""},{"$f":"IF(ISBLANK(INDIRECT(\"'\"&F3876&\"'!\"&H3876)),\"\",IFERROR(VLOOKUP(TEXT(INDIRECT(\"'\"&F3876&\"'!\"&H3876),\"0\"),Notes!$B$5:$C$100,2,FALSE),\"\"))","v":""},"2e","$AQ$53","$AR$53"]
[16030,{"$f":"Menu!$F$29","v":"X"},{"$f":"Menu!$J$29","v":2020},{"$f":"IF(ISBLANK(INDIRECT(\"'\"&F3877&\"'!\"&G3877)),\"\",INDIRECT(\"'\"&F3877&\"'!\"&G3877))","v":""},{"$f":"IF(ISBLANK(INDIRECT(\"'\"&F3877&\"'!\"&H3877)),\"\",IFERROR(VLOOKUP(TEXT(INDIRECT(\"'\"&F3877&\"'!\"&H3877),\"0\"),Notes!$B$5:$C$100,2,FALSE),\"\"))","v":""},"2e","$AS$53","$AT$53"]
[16031,{"$f":"Menu!$F$29","v":"X"},{"$f":"Menu!$J$29","v":2020},{"$f":"IF(ISBLANK(INDIRECT(\"'\"&F3878&\"'!\"&G3878)),\"\",INDIRECT(\"'\"&F3878&\"'!\"&G3878))","v":""},{"$f":"IF(ISBLANK(INDIRECT(\"'\"&F3878&\"'!\"&H3878)),\"\",IFERROR(VLOOKUP(TEXT(INDIRECT(\"'\"&F3878&\"'!\"&H3878),\"0\"),Notes!$B$5:$C$100,2,FALSE),\"\"))","v":""},"2e","$AU$53","$AV$53"]
[16032,{"$f":"Menu!$F$29","v":"X"},{"$f":"Menu!$J$29","v":2020},{"$f":"IF(ISBLANK(INDIRECT(\"'\"&F3879&\"'!\"&G3879)),\"\",INDIRECT(\"'\"&F3879&\"'!\"&G3879))","v":""},{"$f":"IF(ISBLANK(INDIRECT(\"'\"&F3879&\"'!\"&H3879)),\"\",IFERROR(VLOOKUP(TEXT(INDIRECT(\"'\"&F3879&\"'!\"&H3879),\"0\"),Notes!$B$5:$C$100,2,FALSE),\"\"))","v":""},"2e","$AW$53","$AX$53"]
[16033,{"$f":"Menu!$F$29","v":"X"},{"$f":"Menu!$J$29","v":2020},{"$f":"IF(ISBLANK(INDIRECT(\"'\"&F3880&\"'!\"&G3880)),\"\",INDIRECT(\"'\"&F3880&\"'!\"&G3880))","v":""},{"$f":"IF(ISBLANK(INDIRECT(\"'\"&F3880&\"'!\"&H3880)),\"\",IFERROR(VLOOKUP(TEXT(INDIRECT(\"'\"&F3880&\"'!\"&H3880),\"0\"),Notes!$B$5:$C$100,2,FALSE),\"\"))","v":""},"2e","$AY$53","$AZ$53"]
[16034,{"$f":"Menu!$F$29","v":"X"},{"$f":"Menu!$J$29","v":2020},{"$f":"IF(ISBLANK(INDIRECT(\"'\"&F3881&\"'!\"&G3881)),\"\",INDIRECT(\"'\"&F3881&\"'!\"&G3881))","v":""},{"$f":"IF(ISBLANK(INDIRECT(\"'\"&F3881&\"'!\"&H3881)),\"\",IFERROR(VLOOKUP(TEXT(INDIRECT(\"'\"&F3881&\"'!\"&H3881),\"0\"),Notes!$B$5:$C$100,2,FALSE),\"\"))","v":""},"2e","$BA$53","$BB$53"]
[16035,{"$f":"Menu!$F$29","v":"X"},{"$f":"Menu!$J$29","v":2020},{"$f":"IF(ISBLANK(INDIRECT(\"'\"&F3882&\"'!\"&G3882)),\"\",INDIRECT(\"'\"&F3882&\"'!\"&G3882))","v":""},{"$f":"IF(ISBLANK(INDIRECT(\"'\"&F3882&\"'!\"&H3882)),\"\",IFERROR(VLOOKUP(TEXT(INDIRECT(\"'\"&F3882&\"'!\"&H3882),\"0\"),Notes!$B$5:$C$100,2,FALSE),\"\"))","v":""},"2e","$BC$53","$BD$53"]
[16036,{"$f":"Menu!$F$29","v":"X"},{"$f":"Menu!$J$29","v":2020},{"$f":"IF(ISBLANK(INDIRECT(\"'\"&F3883&\"'!\"&G3883)),\"\",INDIRECT(\"'\"&F3883&\"'!\"&G3883))","v":""},{"$f":"IF(ISBLANK(INDIRECT(\"'\"&F3883&\"'!\"&H3883)),\"\",IFERROR(VLOOKUP(TEXT(INDIRECT(\"'\"&F3883&\"'!\"&H3883),\"0\"),Notes!$B$5:$C$100,2,FALSE),\"\"))","v":""},"2e","$BE$53","$BF$53"]
[16037,{"$f":"Menu!$F$29","v":"X"},{"$f":"Menu!$J$29","v":2020},{"$f":"IF(ISBLANK(INDIRECT(\"'\"&F3884&\"'!\"&G3884)),\"\",INDIRECT(\"'\"&F3884&\"'!\"&G3884))","v":""},{"$f":"IF(ISBLANK(INDIRECT(\"'\"&F3884&\"'!\"&H3884)),\"\",IFERROR(VLOOKUP(TEXT(INDIRECT(\"'\"&F3884&\"'!\"&H3884),\"0\"),Notes!$B$5:$C$100,2,FALSE),\"\"))","v":""},"2e","$BG$53","$BH$53"]
[16038,{"$f":"Menu!$F$29","v":"X"},{"$f":"Menu!$J$29","v":2020},{"$f":"IF(ISBLANK(INDIRECT(\"'\"&F3885&\"'!\"&G3885)),\"\",INDIRECT(\"'\"&F3885&\"'!\"&G3885))","v":""},{"$f":"IF(ISBLANK(INDIRECT(\"'\"&F3885&\"'!\"&H3885)),\"\",IFERROR(VLOOKUP(TEXT(INDIRECT(\"'\"&F3885&\"'!\"&H3885),\"0\"),Notes!$B$5:$C$100,2,FALSE),\"\"))","v":""},"2e","$BI$53","$BJ$53"]
[16039,{"$f":"Menu!$F$29","v":"X"},{"$f":"Menu!$J$29","v":2020},{"$f":"IF(ISBLANK(INDIRECT(\"'\"&F3886&\"'!\"&G3886)),\"\",INDIRECT(\"'\"&F3886&\"'!\"&G3886))","v":""},{"$f":"IF(ISBLANK(INDIRECT(\"'\"&F3886&\"'!\"&H3886)),\"\",IFERROR(VLOOKUP(TEXT(INDIRECT(\"'\"&F3886&\"'!\"&H3886),\"0\"),Notes!$B$5:$C$100,2,FALSE),\"\"))","v":""},"2e","$BK$53","$BL$53"]
[16040,{"$f":"Menu!$F$29","v":"X"},{"$f":"Menu!$J$29","v":2020},{"$f":"IF(ISBLANK(INDIRECT(\"'\"&F3887&\"'!\"&G3887)),\"\",INDIRECT(\"'\"&F3887&\"'!\"&G3887))","v":""},{"$f":"IF(ISBLANK(INDIRECT(\"'\"&F3887&\"'!\"&H3887)),\"\",IFERROR(VLOOKUP(TEXT(INDIRECT(\"'\"&F3887&\"'!\"&H3887),\"0\"),Notes!$B$5:$C$100,2,FALSE),\"\"))","v":""},"2e","$E$41","$F$41"]
[16041,{"$f":"Menu!$F$29","v":"X"},{"$f":"Menu!$J$29","v":2020},{"$f":"IF(ISBLANK(INDIRECT(\"'\"&F3888&\"'!\"&G3888)),\"\",INDIRECT(\"'\"&F3888&\"'!\"&G3888))","v":""},{"$f":"IF(ISBLANK(INDIRECT(\"'\"&F3888&\"'!\"&H3888)),\"\",IFERROR(VLOOKUP(TEXT(INDIRECT(\"'\"&F3888&\"'!\"&H3888),\"0\"),Notes!$B$5:$C$100,2,FALSE),\"\"))","v":""},"2e","$G$41","$H$41"]
[16042,{"$f":"Menu!$F$29","v":"X"},{"$f":"Menu!$J$29","v":2020},{"$f":"IF(ISBLANK(INDIRECT(\"'\"&F3889&\"'!\"&G3889)),\"\",INDIRECT(\"'\"&F3889&\"'!\"&G3889))","v":""},{"$f":"IF(ISBLANK(INDIRECT(\"'\"&F3889&\"'!\"&H3889)),\"\",IFERROR(VLOOKUP(TEXT(INDIRECT(\"'\"&F3889&\"'!\"&H3889),\"0\"),Notes!$B$5:$C$100,2,FALSE),\"\"))","v":""},"2e","$I$41","$J$41"]
[16043,{"$f":"Menu!$F$29","v":"X"},{"$f":"Menu!$J$29","v":2020},{"$f":"IF(ISBLANK(INDIRECT(\"'\"&F3890&\"'!\"&G3890)),\"\",INDIRECT(\"'\"&F3890&\"'!\"&G3890))","v":""},{"$f":"IF(ISBLANK(INDIRECT(\"'\"&F3890&\"'!\"&H3890)),\"\",IFERROR(VLOOKUP(TEXT(INDIRECT(\"'\"&F3890&\"'!\"&H3890),\"0\"),Notes!$B$5:$C$100,2,FALSE),\"\"))","v":""},"2e","$K$41","$L$41"]
[16044,{"$f":"Menu!$F$29","v":"X"},{"$f":"Menu!$J$29","v":2020},{"$f":"IF(ISBLANK(INDIRECT(\"'\"&F3891&\"'!\"&G3891)),\"\",INDIRECT(\"'\"&F3891&\"'!\"&G3891))","v":""},{"$f":"IF(ISBLANK(INDIRECT(\"'\"&F3891&\"'!\"&H3891)),\"\",IFERROR(VLOOKUP(TEXT(INDIRECT(\"'\"&F3891&\"'!\"&H3891),\"0\"),Notes!$B$5:$C$100,2,FALSE),\"\"))","v":""},"2e","$M$41","$N$41"]
[16045,{"$f":"Menu!$F$29","v":"X"},{"$f":"Menu!$J$29","v":2020},{"$f":"IF(ISBLANK(INDIRECT(\"'\"&F3892&\"'!\"&G3892)),\"\",INDIRECT(\"'\"&F3892&\"'!\"&G3892))","v":""},{"$f":"IF(ISBLANK(INDIRECT(\"'\"&F3892&\"'!\"&H3892)),\"\",IFERROR(VLOOKUP(TEXT(INDIRECT(\"'\"&F3892&\"'!\"&H3892),\"0\"),Notes!$B$5:$C$100,2,FALSE),\"\"))","v":""},"2e","$O$41","$P$41"]
[16046,{"$f":"Menu!$F$29","v":"X"},{"$f":"Menu!$J$29","v":2020},{"$f":"IF(ISBLANK(INDIRECT(\"'\"&F3893&\"'!\"&G3893)),\"\",INDIRECT(\"'\"&F3893&\"'!\"&G3893))","v":""},{"$f":"IF(ISBLANK(INDIRECT(\"'\"&F3893&\"'!\"&H3893)),\"\",IFERROR(VLOOKUP(TEXT(INDIRECT(\"'\"&F3893&\"'!\"&H3893),\"0\"),Notes!$B$5:$C$100,2,FALSE),\"\"))","v":""},"2e","$Q$41","$R$41"]
[16047,{"$f":"Menu!$F$29","v":"X"},{"$f":"Menu!$J$29","v":2020},{"$f":"IF(ISBLANK(INDIRECT(\"'\"&F3894&\"'!\"&G3894)),\"\",INDIRECT(\"'\"&F3894&\"'!\"&G3894))","v":""},{"$f":"IF(ISBLANK(INDIRECT(\"'\"&F3894&\"'!\"&H3894)),\"\",IFERROR(VLOOKUP(TEXT(INDIRECT(\"'\"&F3894&\"'!\"&H3894),\"0\"),Notes!$B$5:$C$100,2,FALSE),\"\"))","v":""},"2e","$S$41","$T$41"]
[16048,{"$f":"Menu!$F$29","v":"X"},{"$f":"Menu!$J$29","v":2020},{"$f":"IF(ISBLANK(INDIRECT(\"'\"&F3895&\"'!\"&G3895)),\"\",INDIRECT(\"'\"&F3895&\"'!\"&G3895))","v":""},{"$f":"IF(ISBLANK(INDIRECT(\"'\"&F3895&\"'!\"&H3895)),\"\",IFERROR(VLOOKUP(TEXT(INDIRECT(\"'\"&F3895&\"'!\"&H3895),\"0\"),Notes!$B$5:$C$100,2,FALSE),\"\"))","v":""},"2e","$U$41","$V$41"]
[16049,{"$f":"Menu!$F$29","v":"X"},{"$f":"Menu!$J$29","v":2020},{"$f":"IF(ISBLANK(INDIRECT(\"'\"&F3896&\"'!\"&G3896)),\"\",INDIRECT(\"'\"&F3896&\"'!\"&G3896))","v":""},{"$f":"IF(ISBLANK(INDIRECT(\"'\"&F3896&\"'!\"&H3896)),\"\",IFERROR(VLOOKUP(TEXT(INDIRECT(\"'\"&F3896&\"'!\"&H3896),\"0\"),Notes!$B$5:$C$100,2,FALSE),\"\"))","v":""},"2e","$W$41","$X$41"]
[16050,{"$f":"Menu!$F$29","v":"X"},{"$f":"Menu!$J$29","v":2020},{"$f":"IF(ISBLANK(INDIRECT(\"'\"&F3897&\"'!\"&G3897)),\"\",INDIRECT(\"'\"&F3897&\"'!\"&G3897))","v":""},{"$f":"IF(ISBLANK(INDIRECT(\"'\"&F3897&\"'!\"&H3897)),\"\",IFERROR(VLOOKUP(TEXT(INDIRECT(\"'\"&F3897&\"'!\"&H3897),\"0\"),Notes!$B$5:$C$100,2,FALSE),\"\"))","v":""},"2e","$Y$41","$Z$41"]
[16051,{"$f":"Menu!$F$29","v":"X"},{"$f":"Menu!$J$29","v":2020},{"$f":"IF(ISBLANK(INDIRECT(\"'\"&F3898&\"'!\"&G3898)),\"\",INDIRECT(\"'\"&F3898&\"'!\"&G3898))","v":""},{"$f":"IF(ISBLANK(INDIRECT(\"'\"&F3898&\"'!\"&H3898)),\"\",IFERROR(VLOOKUP(TEXT(INDIRECT(\"'\"&F3898&\"'!\"&H3898),\"0\"),Notes!$B$5:$C$100,2,FALSE),\"\"))","v":""},"2e","$AA$41","$AB$41"]
[16052,{"$f":"Menu!$F$29","v":"X"},{"$f":"Menu!$J$29","v":2020},{"$f":"IF(ISBLANK(INDIRECT(\"'\"&F3899&\"'!\"&G3899)),\"\",INDIRECT(\"'\"&F3899&\"'!\"&G3899))","v":""},{"$f":"IF(ISBLANK(INDIRECT(\"'\"&F3899&\"'!\"&H3899)),\"\",IFERROR(VLOOKUP(TEXT(INDIRECT(\"'\"&F3899&\"'!\"&H3899),\"0\"),Notes!$B$5:$C$100,2,FALSE),\"\"))","v":""},"2e","$AC$41","$AD$41"]
[16053,{"$f":"Menu!$F$29","v":"X"},{"$f":"Menu!$J$29","v":2020},{"$f":"IF(ISBLANK(INDIRECT(\"'\"&F3900&\"'!\"&G3900)),\"\",INDIRECT(\"'\"&F3900&\"'!\"&G3900))","v":""},{"$f":"IF(ISBLANK(INDIRECT(\"'\"&F3900&\"'!\"&H3900)),\"\",IFERROR(VLOOKUP(TEXT(INDIRECT(\"'\"&F3900&\"'!\"&H3900),\"0\"),Notes!$B$5:$C$100,2,FALSE),\"\"))","v":""},"2e","$AE$41","$AF$41"]
[16054,{"$f":"Menu!$F$29","v":"X"},{"$f":"Menu!$J$29","v":2020},{"$f":"IF(ISBLANK(INDIRECT(\"'\"&F3901&\"'!\"&G3901)),\"\",INDIRECT(\"'\"&F3901&\"'!\"&G3901))","v":""},{"$f":"IF(ISBLANK(INDIRECT(\"'\"&F3901&\"'!\"&H3901)),\"\",IFERROR(VLOOKUP(TEXT(INDIRECT(\"'\"&F3901&\"'!\"&H3901),\"0\"),Notes!$B$5:$C$100,2,FALSE),\"\"))","v":""},"2e","$AG$41","$AH$41"]
[16055,{"$f":"Menu!$F$29","v":"X"},{"$f":"Menu!$J$29","v":2020},{"$f":"IF(ISBLANK(INDIRECT(\"'\"&F3902&\"'!\"&G3902)),\"\",INDIRECT(\"'\"&F3902&\"'!\"&G3902))","v":""},{"$f":"IF(ISBLANK(INDIRECT(\"'\"&F3902&\"'!\"&H3902)),\"\",IFERROR(VLOOKUP(TEXT(INDIRECT(\"'\"&F3902&\"'!\"&H3902),\"0\"),Notes!$B$5:$C$100,2,FALSE),\"\"))","v":""},"2e","$AI$41","$AJ$41"]
[16056,{"$f":"Menu!$F$29","v":"X"},{"$f":"Menu!$J$29","v":2020},{"$f":"IF(ISBLANK(INDIRECT(\"'\"&F3903&\"'!\"&G3903)),\"\",INDIRECT(\"'\"&F3903&\"'!\"&G3903))","v":""},{"$f":"IF(ISBLANK(INDIRECT(\"'\"&F3903&\"'!\"&H3903)),\"\",IFERROR(VLOOKUP(TEXT(INDIRECT(\"'\"&F3903&\"'!\"&H3903),\"0\"),Notes!$B$5:$C$100,2,FALSE),\"\"))","v":""},"2e","$AK$41","$AL$41"]
[16057,{"$f":"Menu!$F$29","v":"X"},{"$f":"Menu!$J$29","v":2020},{"$f":"IF(ISBLANK(INDIRECT(\"'\"&F3904&\"'!\"&G3904)),\"\",INDIRECT(\"'\"&F3904&\"'!\"&G3904))","v":""},{"$f":"IF(ISBLANK(INDIRECT(\"'\"&F3904&\"'!\"&H3904)),\"\",IFERROR(VLOOKUP(TEXT(INDIRECT(\"'\"&F3904&\"'!\"&H3904),\"0\"),Notes!$B$5:$C$100,2,FALSE),\"\"))","v":""},"2e","$AM$41","$AN$41"]
[16058,{"$f":"Menu!$F$29","v":"X"},{"$f":"Menu!$J$29","v":2020},{"$f":"IF(ISBLANK(INDIRECT(\"'\"&F3905&\"'!\"&G3905)),\"\",INDIRECT(\"'\"&F3905&\"'!\"&G3905))","v":""},{"$f":"IF(ISBLANK(INDIRECT(\"'\"&F3905&\"'!\"&H3905)),\"\",IFERROR(VLOOKUP(TEXT(INDIRECT(\"'\"&F3905&\"'!\"&H3905),\"0\"),Notes!$B$5:$C$100,2,FALSE),\"\"))","v":""},"2e","$AO$41","$AP$41"]
[16059,{"$f":"Menu!$F$29","v":"X"},{"$f":"Menu!$J$29","v":2020},{"$f":"IF(ISBLANK(INDIRECT(\"'\"&F3906&\"'!\"&G3906)),\"\",INDIRECT(\"'\"&F3906&\"'!\"&G3906))","v":""},{"$f":"IF(ISBLANK(INDIRECT(\"'\"&F3906&\"'!\"&H3906)),\"\",IFERROR(VLOOKUP(TEXT(INDIRECT(\"'\"&F3906&\"'!\"&H3906),\"0\"),Notes!$B$5:$C$100,2,FALSE),\"\"))","v":""},"2e","$AQ$41",{"$f":"IF(LEN(TRIM(MID(G3906,4,10)))-LEN(SUBSTITUTE(TRIM(MID(G3906,4,10)),\"$\",\"\"))=0,\"$\"&CHAR(CODE(MID(G3906,2,1))+1)&\"$\"&TRIM(MID(G3906,4,10)),\"$\"&MID(G3906,2,1)&CHAR(CODE(MID(G3906,3,1))+1)&\"$\"&TRIM(MID(G3906,5,11)))","v":"$AR$41"}]
[16060,{"$f":"Menu!$F$29","v":"X"},{"$f":"Menu!$J$29","v":2020},{"$f":"IF(ISBLANK(INDIRECT(\"'\"&F3907&\"'!\"&G3907)),\"\",INDIRECT(\"'\"&F3907&\"'!\"&G3907))","v":""},{"$f":"IF(ISBLANK(INDIRECT(\"'\"&F3907&\"'!\"&H3907)),\"\",IFERROR(VLOOKUP(TEXT(INDIRECT(\"'\"&F3907&\"'!\"&H3907),\"0\"),Notes!$B$5:$C$100,2,FALSE),\"\"))","v":""},"2e","$AS$41","$AT$41"]
[16061,{"$f":"Menu!$F$29","v":"X"},{"$f":"Menu!$J$29","v":2020},{"$f":"IF(ISBLANK(INDIRECT(\"'\"&F3908&\"'!\"&G3908)),\"\",INDIRECT(\"'\"&F3908&\"'!\"&G3908))","v":""},{"$f":"IF(ISBLANK(INDIRECT(\"'\"&F3908&\"'!\"&H3908)),\"\",IFERROR(VLOOKUP(TEXT(INDIRECT(\"'\"&F3908&\"'!\"&H3908),\"0\"),Notes!$B$5:$C$100,2,FALSE),\"\"))","v":""},"2e","$AU$41","$AV$41"]
[16062,{"$f":"Menu!$F$29","v":"X"},{"$f":"Menu!$J$29","v":2020},{"$f":"IF(ISBLANK(INDIRECT(\"'\"&F3909&\"'!\"&G3909)),\"\",INDIRECT(\"'\"&F3909&\"'!\"&G3909))","v":""},{"$f":"IF(ISBLANK(INDIRECT(\"'\"&F3909&\"'!\"&H3909)),\"\",IFERROR(VLOOKUP(TEXT(INDIRECT(\"'\"&F3909&\"'!\"&H3909),\"0\"),Notes!$B$5:$C$100,2,FALSE),\"\"))","v":""},"2e","$AW$41","$AX$41"]
[16063,{"$f":"Menu!$F$29","v":"X"},{"$f":"Menu!$J$29","v":2020},{"$f":"IF(ISBLANK(INDIRECT(\"'\"&F3910&\"'!\"&G3910)),\"\",INDIRECT(\"'\"&F3910&\"'!\"&G3910))","v":""},{"$f":"IF(ISBLANK(INDIRECT(\"'\"&F3910&\"'!\"&H3910)),\"\",IFERROR(VLOOKUP(TEXT(INDIRECT(\"'\"&F3910&\"'!\"&H3910),\"0\"),Notes!$B$5:$C$100,2,FALSE),\"\"))","v":""},"2e","$AY$41","$AZ$41"]
[16064,{"$f":"Menu!$F$29","v":"X"},{"$f":"Menu!$J$29","v":2020},{"$f":"IF(ISBLANK(INDIRECT(\"'\"&F3911&\"'!\"&G3911)),\"\",INDIRECT(\"'\"&F3911&\"'!\"&G3911))","v":""},{"$f":"IF(ISBLANK(INDIRECT(\"'\"&F3911&\"'!\"&H3911)),\"\",IFERROR(VLOOKUP(TEXT(INDIRECT(\"'\"&F3911&\"'!\"&H3911),\"0\"),Notes!$B$5:$C$100,2,FALSE),\"\"))","v":""},"2e","$BA$41","$BB$41"]
[16065,{"$f":"Menu!$F$29","v":"X"},{"$f":"Menu!$J$29","v":2020},{"$f":"IF(ISBLANK(INDIRECT(\"'\"&F3912&\"'!\"&G3912)),\"\",INDIRECT(\"'\"&F3912&\"'!\"&G3912))","v":""},{"$f":"IF(ISBLANK(INDIRECT(\"'\"&F3912&\"'!\"&H3912)),\"\",IFERROR(VLOOKUP(TEXT(INDIRECT(\"'\"&F3912&\"'!\"&H3912),\"0\"),Notes!$B$5:$C$100,2,FALSE),\"\"))","v":""},"2e","$BC$41","$BD$41"]
[16066,{"$f":"Menu!$F$29","v":"X"},{"$f":"Menu!$J$29","v":2020},{"$f":"IF(ISBLANK(INDIRECT(\"'\"&F3913&\"'!\"&G3913)),\"\",INDIRECT(\"'\"&F3913&\"'!\"&G3913))","v":""},{"$f":"IF(ISBLANK(INDIRECT(\"'\"&F3913&\"'!\"&H3913)),\"\",IFERROR(VLOOKUP(TEXT(INDIRECT(\"'\"&F3913&\"'!\"&H3913),\"0\"),Notes!$B$5:$C$100,2,FALSE),\"\"))","v":""},"2e","$BE$41","$BF$41"]
[16067,{"$f":"Menu!$F$29","v":"X"},{"$f":"Menu!$J$29","v":2020},{"$f":"IF(ISBLANK(INDIRECT(\"'\"&F3914&\"'!\"&G3914)),\"\",INDIRECT(\"'\"&F3914&\"'!\"&G3914))","v":""},{"$f":"IF(ISBLANK(INDIRECT(\"'\"&F3914&\"'!\"&H3914)),\"\",IFERROR(VLOOKUP(TEXT(INDIRECT(\"'\"&F3914&\"'!\"&H3914),\"0\"),Notes!$B$5:$C$100,2,FALSE),\"\"))","v":""},"2e","$BG$41","$BH$41"]
[16068,{"$f":"Menu!$F$29","v":"X"},{"$f":"Menu!$J$29","v":2020},{"$f":"IF(ISBLANK(INDIRECT(\"'\"&F3915&\"'!\"&G3915)),\"\",INDIRECT(\"'\"&F3915&\"'!\"&G3915))","v":""},{"$f":"IF(ISBLANK(INDIRECT(\"'\"&F3915&\"'!\"&H3915)),\"\",IFERROR(VLOOKUP(TEXT(INDIRECT(\"'\"&F3915&\"'!\"&H3915),\"0\"),Notes!$B$5:$C$100,2,FALSE),\"\"))","v":""},"2e","$BI$41","$BJ$41"]
[16069,{"$f":"Menu!$F$29","v":"X"},{"$f":"Menu!$J$29","v":2020},{"$f":"IF(ISBLANK(INDIRECT(\"'\"&F3916&\"'!\"&G3916)),\"\",INDIRECT(\"'\"&F3916&\"'!\"&G3916))","v":""},{"$f":"IF(ISBLANK(INDIRECT(\"'\"&F3916&\"'!\"&H3916)),\"\",IFERROR(VLOOKUP(TEXT(INDIRECT(\"'\"&F3916&\"'!\"&H3916),\"0\"),Notes!$B$5:$C$100,2,FALSE),\"\"))","v":""},"2e","$BK$41","$BL$41"]
[16100,{"$f":"Menu!$F$29","v":"X"},{"$f":"Menu!$J$29","v":2020},{"$f":"IF(ISBLANK(INDIRECT(\"'\"&F3917&\"'!\"&G3917)),\"\",INDIRECT(\"'\"&F3917&\"'!\"&G3917))","v":""},{"$f":"IF(ISBLANK(INDIRECT(\"'\"&F3917&\"'!\"&H3917)),\"\",IFERROR(VLOOKUP(TEXT(INDIRECT(\"'\"&F3917&\"'!\"&H3917),\"0\"),Notes!$B$5:$C$100,2,FALSE),\"\"))","v":""},"2e","$E$43","$F$43"]
[16101,{"$f":"Menu!$F$29","v":"X"},{"$f":"Menu!$J$29","v":2020},{"$f":"IF(ISBLANK(INDIRECT(\"'\"&F3918&\"'!\"&G3918)),\"\",INDIRECT(\"'\"&F3918&\"'!\"&G3918))","v":""},{"$f":"IF(ISBLANK(INDIRECT(\"'\"&F3918&\"'!\"&H3918)),\"\",IFERROR(VLOOKUP(TEXT(INDIRECT(\"'\"&F3918&\"'!\"&H3918),\"0\"),Notes!$B$5:$C$100,2,FALSE),\"\"))","v":""},"2e","$G$43","$H$43"]
[16102,{"$f":"Menu!$F$29","v":"X"},{"$f":"Menu!$J$29","v":2020},{"$f":"IF(ISBLANK(INDIRECT(\"'\"&F3919&\"'!\"&G3919)),\"\",INDIRECT(\"'\"&F3919&\"'!\"&G3919))","v":""},{"$f":"IF(ISBLANK(INDIRECT(\"'\"&F3919&\"'!\"&H3919)),\"\",IFERROR(VLOOKUP(TEXT(INDIRECT(\"'\"&F3919&\"'!\"&H3919),\"0\"),Notes!$B$5:$C$100,2,FALSE),\"\"))","v":""},"2e","$I$43","$J$43"]
[16103,{"$f":"Menu!$F$29","v":"X"},{"$f":"Menu!$J$29","v":2020},{"$f":"IF(ISBLANK(INDIRECT(\"'\"&F3920&\"'!\"&G3920)),\"\",INDIRECT(\"'\"&F3920&\"'!\"&G3920))","v":""},{"$f":"IF(ISBLANK(INDIRECT(\"'\"&F3920&\"'!\"&H3920)),\"\",IFERROR(VLOOKUP(TEXT(INDIRECT(\"'\"&F3920&\"'!\"&H3920),\"0\"),Notes!$B$5:$C$100,2,FALSE),\"\"))","v":""},"2e","$K$43","$L$43"]
[16104,{"$f":"Menu!$F$29","v":"X"},{"$f":"Menu!$J$29","v":2020},{"$f":"IF(ISBLANK(INDIRECT(\"'\"&F3921&\"'!\"&G3921)),\"\",INDIRECT(\"'\"&F3921&\"'!\"&G3921))","v":""},{"$f":"IF(ISBLANK(INDIRECT(\"'\"&F3921&\"'!\"&H3921)),\"\",IFERROR(VLOOKUP(TEXT(INDIRECT(\"'\"&F3921&\"'!\"&H3921),\"0\"),Notes!$B$5:$C$100,2,FALSE),\"\"))","v":""},"2e","$M$43","$N$43"]
[16105,{"$f":"Menu!$F$29","v":"X"},{"$f":"Menu!$J$29","v":2020},{"$f":"IF(ISBLANK(INDIRECT(\"'\"&F3922&\"'!\"&G3922)),\"\",INDIRECT(\"'\"&F3922&\"'!\"&G3922))","v":""},{"$f":"IF(ISBLANK(INDIRECT(\"'\"&F3922&\"'!\"&H3922)),\"\",IFERROR(VLOOKUP(TEXT(INDIRECT(\"'\"&F3922&\"'!\"&H3922),\"0\"),Notes!$B$5:$C$100,2,FALSE),\"\"))","v":""},"2e","$O$43","$P$43"]
[16106,{"$f":"Menu!$F$29","v":"X"},{"$f":"Menu!$J$29","v":2020},{"$f":"IF(ISBLANK(INDIRECT(\"'\"&F3923&\"'!\"&G3923)),\"\",INDIRECT(\"'\"&F3923&\"'!\"&G3923))","v":""},{"$f":"IF(ISBLANK(INDIRECT(\"'\"&F3923&\"'!\"&H3923)),\"\",IFERROR(VLOOKUP(TEXT(INDIRECT(\"'\"&F3923&\"'!\"&H3923),\"0\"),Notes!$B$5:$C$100,2,FALSE),\"\"))","v":""},"2e","$Q$43","$R$43"]
[16107,{"$f":"Menu!$F$29","v":"X"},{"$f":"Menu!$J$29","v":2020},{"$f":"IF(ISBLANK(INDIRECT(\"'\"&F3924&\"'!\"&G3924)),\"\",INDIRECT(\"'\"&F3924&\"'!\"&G3924))","v":""},{"$f":"IF(ISBLANK(INDIRECT(\"'\"&F3924&\"'!\"&H3924)),\"\",IFERROR(VLOOKUP(TEXT(INDIRECT(\"'\"&F3924&\"'!\"&H3924),\"0\"),Notes!$B$5:$C$100,2,FALSE),\"\"))","v":""},"2e","$S$43","$T$43"]
[16108,{"$f":"Menu!$F$29","v":"X"},{"$f":"Menu!$J$29","v":2020},{"$f":"IF(ISBLANK(INDIRECT(\"'\"&F3925&\"'!\"&G3925)),\"\",INDIRECT(\"'\"&F3925&\"'!\"&G3925))","v":""},{"$f":"IF(ISBLANK(INDIRECT(\"'\"&F3925&\"'!\"&H3925)),\"\",IFERROR(VLOOKUP(TEXT(INDIRECT(\"'\"&F3925&\"'!\"&H3925),\"0\"),Notes!$B$5:$C$100,2,FALSE),\"\"))","v":""},"2e","$U$43","$V$43"]
[16109,{"$f":"Menu!$F$29","v":"X"},{"$f":"Menu!$J$29","v":2020},{"$f":"IF(ISBLANK(INDIRECT(\"'\"&F3926&\"'!\"&G3926)),\"\",INDIRECT(\"'\"&F3926&\"'!\"&G3926))","v":""},{"$f":"IF(ISBLANK(INDIRECT(\"'\"&F3926&\"'!\"&H3926)),\"\",IFERROR(VLOOKUP(TEXT(INDIRECT(\"'\"&F3926&\"'!\"&H3926),\"0\"),Notes!$B$5:$C$100,2,FALSE),\"\"))","v":""},"2e","$W$43","$X$43"]
[16110,{"$f":"Menu!$F$29","v":"X"},{"$f":"Menu!$J$29","v":2020},{"$f":"IF(ISBLANK(INDIRECT(\"'\"&F3927&\"'!\"&G3927)),\"\",INDIRECT(\"'\"&F3927&\"'!\"&G3927))","v":""},{"$f":"IF(ISBLANK(INDIRECT(\"'\"&F3927&\"'!\"&H3927)),\"\",IFERROR(VLOOKUP(TEXT(INDIRECT(\"'\"&F3927&\"'!\"&H3927),\"0\"),Notes!$B$5:$C$100,2,FALSE),\"\"))","v":""},"2e","$Y$43","$Z$43"]
[16111,{"$f":"Menu!$F$29","v":"X"},{"$f":"Menu!$J$29","v":2020},{"$f":"IF(ISBLANK(INDIRECT(\"'\"&F3928&\"'!\"&G3928)),\"\",INDIRECT(\"'\"&F3928&\"'!\"&G3928))","v":""},{"$f":"IF(ISBLANK(INDIRECT(\"'\"&F3928&\"'!\"&H3928)),\"\",IFERROR(VLOOKUP(TEXT(INDIRECT(\"'\"&F3928&\"'!\"&H3928),\"0\"),Notes!$B$5:$C$100,2,FALSE),\"\"))","v":""},"2e","$AA$43","$AB$43"]
[16112,{"$f":"Menu!$F$29","v":"X"},{"$f":"Menu!$J$29","v":2020},{"$f":"IF(ISBLANK(INDIRECT(\"'\"&F3929&\"'!\"&G3929)),\"\",INDIRECT(\"'\"&F3929&\"'!\"&G3929))","v":""},{"$f":"IF(ISBLANK(INDIRECT(\"'\"&F3929&\"'!\"&H3929)),\"\",IFERROR(VLOOKUP(TEXT(INDIRECT(\"'\"&F3929&\"'!\"&H3929),\"0\"),Notes!$B$5:$C$100,2,FALSE),\"\"))","v":""},"2e","$AC$43","$AD$43"]
[16113,{"$f":"Menu!$F$29","v":"X"},{"$f":"Menu!$J$29","v":2020},{"$f":"IF(ISBLANK(INDIRECT(\"'\"&F3930&\"'!\"&G3930)),\"\",INDIRECT(\"'\"&F3930&\"'!\"&G3930))","v":""},{"$f":"IF(ISBLANK(INDIRECT(\"'\"&F3930&\"'!\"&H3930)),\"\",IFERROR(VLOOKUP(TEXT(INDIRECT(\"'\"&F3930&\"'!\"&H3930),\"0\"),Notes!$B$5:$C$100,2,FALSE),\"\"))","v":""},"2e","$AE$43","$AF$43"]
[16114,{"$f":"Menu!$F$29","v":"X"},{"$f":"Menu!$J$29","v":2020},{"$f":"IF(ISBLANK(INDIRECT(\"'\"&F3931&\"'!\"&G3931)),\"\",INDIRECT(\"'\"&F3931&\"'!\"&G3931))","v":""},{"$f":"IF(ISBLANK(INDIRECT(\"'\"&F3931&\"'!\"&H3931)),\"\",IFERROR(VLOOKUP(TEXT(INDIRECT(\"'\"&F3931&\"'!\"&H3931),\"0\"),Notes!$B$5:$C$100,2,FALSE),\"\"))","v":""},"2e","$AG$43","$AH$43"]
[16115,{"$f":"Menu!$F$29","v":"X"},{"$f":"Menu!$J$29","v":2020},{"$f":"IF(ISBLANK(INDIRECT(\"'\"&F3932&\"'!\"&G3932)),\"\",INDIRECT(\"'\"&F3932&\"'!\"&G3932))","v":""},{"$f":"IF(ISBLANK(INDIRECT(\"'\"&F3932&\"'!\"&H3932)),\"\",IFERROR(VLOOKUP(TEXT(INDIRECT(\"'\"&F3932&\"'!\"&H3932),\"0\"),Notes!$B$5:$C$100,2,FALSE),\"\"))","v":""},"2e","$AI$43","$AJ$43"]
[16116,{"$f":"Menu!$F$29","v":"X"},{"$f":"Menu!$J$29","v":2020},{"$f":"IF(ISBLANK(INDIRECT(\"'\"&F3933&\"'!\"&G3933)),\"\",INDIRECT(\"'\"&F3933&\"'!\"&G3933))","v":""},{"$f":"IF(ISBLANK(INDIRECT(\"'\"&F3933&\"'!\"&H3933)),\"\",IFERROR(VLOOKUP(TEXT(INDIRECT(\"'\"&F3933&\"'!\"&H3933),\"0\"),Notes!$B$5:$C$100,2,FALSE),\"\"))","v":""},"2e","$AK$43","$AL$43"]
[16117,{"$f":"Menu!$F$29","v":"X"},{"$f":"Menu!$J$29","v":2020},{"$f":"IF(ISBLANK(INDIRECT(\"'\"&F3934&\"'!\"&G3934)),\"\",INDIRECT(\"'\"&F3934&\"'!\"&G3934))","v":""},{"$f":"IF(ISBLANK(INDIRECT(\"'\"&F3934&\"'!\"&H3934)),\"\",IFERROR(VLOOKUP(TEXT(INDIRECT(\"'\"&F3934&\"'!\"&H3934),\"0\"),Notes!$B$5:$C$100,2,FALSE),\"\"))","v":""},"2e","$AM$43","$AN$43"]
[16118,{"$f":"Menu!$F$29","v":"X"},{"$f":"Menu!$J$29","v":2020},{"$f":"IF(ISBLANK(INDIRECT(\"'\"&F3935&\"'!\"&G3935)),\"\",INDIRECT(\"'\"&F3935&\"'!\"&G3935))","v":""},{"$f":"IF(ISBLANK(INDIRECT(\"'\"&F3935&\"'!\"&H3935)),\"\",IFERROR(VLOOKUP(TEXT(INDIRECT(\"'\"&F3935&\"'!\"&H3935),\"0\"),Notes!$B$5:$C$100,2,FALSE),\"\"))","v":""},"2e","$AO$43","$AP$43"]
[16119,{"$f":"Menu!$F$29","v":"X"},{"$f":"Menu!$J$29","v":2020},{"$f":"IF(ISBLANK(INDIRECT(\"'\"&F3936&\"'!\"&G3936)),\"\",INDIRECT(\"'\"&F3936&\"'!\"&G3936))","v":""},{"$f":"IF(ISBLANK(INDIRECT(\"'\"&F3936&\"'!\"&H3936)),\"\",IFERROR(VLOOKUP(TEXT(INDIRECT(\"'\"&F3936&\"'!\"&H3936),\"0\"),Notes!$B$5:$C$100,2,FALSE),\"\"))","v":""},"2e","$AQ$43","$AR$43"]
[16120,{"$f":"Menu!$F$29","v":"X"},{"$f":"Menu!$J$29","v":2020},{"$f":"IF(ISBLANK(INDIRECT(\"'\"&F3937&\"'!\"&G3937)),\"\",INDIRECT(\"'\"&F3937&\"'!\"&G3937))","v":""},{"$f":"IF(ISBLANK(INDIRECT(\"'\"&F3937&\"'!\"&H3937)),\"\",IFERROR(VLOOKUP(TEXT(INDIRECT(\"'\"&F3937&\"'!\"&H3937),\"0\"),Notes!$B$5:$C$100,2,FALSE),\"\"))","v":""},"2e","$AS$43","$AT$43"]
[16121,{"$f":"Menu!$F$29","v":"X"},{"$f":"Menu!$J$29","v":2020},{"$f":"IF(ISBLANK(INDIRECT(\"'\"&F3938&\"'!\"&G3938)),\"\",INDIRECT(\"'\"&F3938&\"'!\"&G3938))","v":""},{"$f":"IF(ISBLANK(INDIRECT(\"'\"&F3938&\"'!\"&H3938)),\"\",IFERROR(VLOOKUP(TEXT(INDIRECT(\"'\"&F3938&\"'!\"&H3938),\"0\"),Notes!$B$5:$C$100,2,FALSE),\"\"))","v":""},"2e","$AU$43","$AV$43"]
[16122,{"$f":"Menu!$F$29","v":"X"},{"$f":"Menu!$J$29","v":2020},{"$f":"IF(ISBLANK(INDIRECT(\"'\"&F3939&\"'!\"&G3939)),\"\",INDIRECT(\"'\"&F3939&\"'!\"&G3939))","v":""},{"$f":"IF(ISBLANK(INDIRECT(\"'\"&F3939&\"'!\"&H3939)),\"\",IFERROR(VLOOKUP(TEXT(INDIRECT(\"'\"&F3939&\"'!\"&H3939),\"0\"),Notes!$B$5:$C$100,2,FALSE),\"\"))","v":""},"2e","$AW$43","$AX$43"]
[16123,{"$f":"Menu!$F$29","v":"X"},{"$f":"Menu!$J$29","v":2020},{"$f":"IF(ISBLANK(INDIRECT(\"'\"&F3940&\"'!\"&G3940)),\"\",INDIRECT(\"'\"&F3940&\"'!\"&G3940))","v":""},{"$f":"IF(ISBLANK(INDIRECT(\"'\"&F3940&\"'!\"&H3940)),\"\",IFERROR(VLOOKUP(TEXT(INDIRECT(\"'\"&F3940&\"'!\"&H3940),\"0\"),Notes!$B$5:$C$100,2,FALSE),\"\"))","v":""},"2e","$AY$43","$AZ$43"]
[16124,{"$f":"Menu!$F$29","v":"X"},{"$f":"Menu!$J$29","v":2020},{"$f":"IF(ISBLANK(INDIRECT(\"'\"&F3941&\"'!\"&G3941)),\"\",INDIRECT(\"'\"&F3941&\"'!\"&G3941))","v":""},{"$f":"IF(ISBLANK(INDIRECT(\"'\"&F3941&\"'!\"&H3941)),\"\",IFERROR(VLOOKUP(TEXT(INDIRECT(\"'\"&F3941&\"'!\"&H3941),\"0\"),Notes!$B$5:$C$100,2,FALSE),\"\"))","v":""},"2e","$BA$43","$BB$43"]
[16125,{"$f":"Menu!$F$29","v":"X"},{"$f":"Menu!$J$29","v":2020},{"$f":"IF(ISBLANK(INDIRECT(\"'\"&F3942&\"'!\"&G3942)),\"\",INDIRECT(\"'\"&F3942&\"'!\"&G3942))","v":""},{"$f":"IF(ISBLANK(INDIRECT(\"'\"&F3942&\"'!\"&H3942)),\"\",IFERROR(VLOOKUP(TEXT(INDIRECT(\"'\"&F3942&\"'!\"&H3942),\"0\"),Notes!$B$5:$C$100,2,FALSE),\"\"))","v":""},"2e","$BC$43","$BD$43"]
[16126,{"$f":"Menu!$F$29","v":"X"},{"$f":"Menu!$J$29","v":2020},{"$f":"IF(ISBLANK(INDIRECT(\"'\"&F3943&\"'!\"&G3943)),\"\",INDIRECT(\"'\"&F3943&\"'!\"&G3943))","v":""},{"$f":"IF(ISBLANK(INDIRECT(\"'\"&F3943&\"'!\"&H3943)),\"\",IFERROR(VLOOKUP(TEXT(INDIRECT(\"'\"&F3943&\"'!\"&H3943),\"0\"),Notes!$B$5:$C$100,2,FALSE),\"\"))","v":""},"2e","$BE$43","$BF$43"]
[16127,{"$f":"Menu!$F$29","v":"X"},{"$f":"Menu!$J$29","v":2020},{"$f":"IF(ISBLANK(INDIRECT(\"'\"&F3944&\"'!\"&G3944)),\"\",INDIRECT(\"'\"&F3944&\"'!\"&G3944))","v":""},{"$f":"IF(ISBLANK(INDIRECT(\"'\"&F3944&\"'!\"&H3944)),\"\",IFERROR(VLOOKUP(TEXT(INDIRECT(\"'\"&F3944&\"'!\"&H3944),\"0\"),Notes!$B$5:$C$100,2,FALSE),\"\"))","v":""},"2e","$BG$43","$BH$43"]
[16128,{"$f":"Menu!$F$29","v":"X"},{"$f":"Menu!$J$29","v":2020},{"$f":"IF(ISBLANK(INDIRECT(\"'\"&F3945&\"'!\"&G3945)),\"\",INDIRECT(\"'\"&F3945&\"'!\"&G3945))","v":""},{"$f":"IF(ISBLANK(INDIRECT(\"'\"&F3945&\"'!\"&H3945)),\"\",IFERROR(VLOOKUP(TEXT(INDIRECT(\"'\"&F3945&\"'!\"&H3945),\"0\"),Notes!$B$5:$C$100,2,FALSE),\"\"))","v":""},"2e","$BI$43","$BJ$43"]
[16129,{"$f":"Menu!$F$29","v":"X"},{"$f":"Menu!$J$29","v":2020},{"$f":"IF(ISBLANK(INDIRECT(\"'\"&F3946&\"'!\"&G3946)),\"\",INDIRECT(\"'\"&F3946&\"'!\"&G3946))","v":""},{"$f":"IF(ISBLANK(INDIRECT(\"'\"&F3946&\"'!\"&H3946)),\"\",IFERROR(VLOOKUP(TEXT(INDIRECT(\"'\"&F3946&\"'!\"&H3946),\"0\"),Notes!$B$5:$C$100,2,FALSE),\"\"))","v":""},"2e","$BK$43","$BL$43"]
[19148,{"$f":"Menu!$F$29","v":"X"},{"$f":"Menu!$J$29","v":2020},{"$f":"IF(ISBLANK(INDIRECT(\"'\"&F3947&\"'!\"&G3947)),\"\",INDIRECT(\"'\"&F3947&\"'!\"&G3947))","v":""},{"$f":"IF(ISBLANK(INDIRECT(\"'\"&F3947&\"'!\"&H3947)),\"\",IFERROR(VLOOKUP(TEXT(INDIRECT(\"'\"&F3947&\"'!\"&H3947),\"0\"),Notes!$B$5:$C$100,2,FALSE),\"\"))","v":""},"1a","$S$33","$T$33"]
[19149,{"$f":"Menu!$F$29","v":"X"},{"$f":"Menu!$J$29","v":2020},{"$f":"IF(ISBLANK(INDIRECT(\"'\"&F3948&\"'!\"&G3948)),\"\",INDIRECT(\"'\"&F3948&\"'!\"&G3948))","v":""},{"$f":"IF(ISBLANK(INDIRECT(\"'\"&F3948&\"'!\"&H3948)),\"\",IFERROR(VLOOKUP(TEXT(INDIRECT(\"'\"&F3948&\"'!\"&H3948),\"0\"),Notes!$B$5:$C$100,2,FALSE),\"\"))","v":""},"1a","$U$33","$V$33"]
[19150,{"$f":"Menu!$F$29","v":"X"},{"$f":"Menu!$J$29","v":2020},{"$f":"IF(ISBLANK(INDIRECT(\"'\"&F3949&\"'!\"&G3949)),\"\",INDIRECT(\"'\"&F3949&\"'!\"&G3949))","v":""},{"$f":"IF(ISBLANK(INDIRECT(\"'\"&F3949&\"'!\"&H3949)),\"\",IFERROR(VLOOKUP(TEXT(INDIRECT(\"'\"&F3949&\"'!\"&H3949),\"0\"),Notes!$B$5:$C$100,2,FALSE),\"\"))","v":""},"1a","$M$33","$N$33"]
[19151,{"$f":"Menu!$F$29","v":"X"},{"$f":"Menu!$J$29","v":2020},{"$f":"IF(ISBLANK(INDIRECT(\"'\"&F3950&\"'!\"&G3950)),\"\",INDIRECT(\"'\"&F3950&\"'!\"&G3950))","v":""},{"$f":"IF(ISBLANK(INDIRECT(\"'\"&F3950&\"'!\"&H3950)),\"\",IFERROR(VLOOKUP(TEXT(INDIRECT(\"'\"&F3950&\"'!\"&H3950),\"0\"),Notes!$B$5:$C$100,2,FALSE),\"\"))","v":""},"1a","$O$33","$P$33"]
[19152,{"$f":"Menu!$F$29","v":"X"},{"$f":"Menu!$J$29","v":2020},{"$f":"IF(ISBLANK(INDIRECT(\"'\"&F3951&\"'!\"&G3951)),\"\",INDIRECT(\"'\"&F3951&\"'!\"&G3951))","v":""},{"$f":"IF(ISBLANK(INDIRECT(\"'\"&F3951&\"'!\"&H3951)),\"\",IFERROR(VLOOKUP(TEXT(INDIRECT(\"'\"&F3951&\"'!\"&H3951),\"0\"),Notes!$B$5:$C$100,2,FALSE),\"\"))","v":""},"1a","$G$33","$H$33"]
[19153,{"$f":"Menu!$F$29","v":"X"},{"$f":"Menu!$J$29","v":2020},{"$f":"IF(ISBLANK(INDIRECT(\"'\"&F3952&\"'!\"&G3952)),\"\",INDIRECT(\"'\"&F3952&\"'!\"&G3952))","v":""},{"$f":"IF(ISBLANK(INDIRECT(\"'\"&F3952&\"'!\"&H3952)),\"\",IFERROR(VLOOKUP(TEXT(INDIRECT(\"'\"&F3952&\"'!\"&H3952),\"0\"),Notes!$B$5:$C$100,2,FALSE),\"\"))","v":""},"1a","$I$33","$J$33"]
[19181,{"$f":"Menu!$F$29","v":"X"},{"$f":"Menu!$J$29","v":2020},{"$f":"IF(ISBLANK(INDIRECT(\"'\"&F3953&\"'!\"&G3953)),\"\",INDIRECT(\"'\"&F3953&\"'!\"&G3953))","v":""},{"$f":"IF(ISBLANK(INDIRECT(\"'\"&F3953&\"'!\"&H3953)),\"\",IFERROR(VLOOKUP(TEXT(INDIRECT(\"'\"&F3953&\"'!\"&H3953),\"0\"),Notes!$B$5:$C$100,2,FALSE),\"\"))","v":""},"2e","$E$39","$F$39"]
[19182,{"$f":"Menu!$F$29","v":"X"},{"$f":"Menu!$J$29","v":2020},{"$f":"IF(ISBLANK(INDIRECT(\"'\"&F3954&\"'!\"&G3954)),\"\",INDIRECT(\"'\"&F3954&\"'!\"&G3954))","v":""},{"$f":"IF(ISBLANK(INDIRECT(\"'\"&F3954&\"'!\"&H3954)),\"\",IFERROR(VLOOKUP(TEXT(INDIRECT(\"'\"&F3954&\"'!\"&H3954),\"0\"),Notes!$B$5:$C$100,2,FALSE),\"\"))","v":""},"2e","$G$39","$H$39"]
[19183,{"$f":"Menu!$F$29","v":"X"},{"$f":"Menu!$J$29","v":2020},{"$f":"IF(ISBLANK(INDIRECT(\"'\"&F3955&\"'!\"&G3955)),\"\",INDIRECT(\"'\"&F3955&\"'!\"&G3955))","v":""},{"$f":"IF(ISBLANK(INDIRECT(\"'\"&F3955&\"'!\"&H3955)),\"\",IFERROR(VLOOKUP(TEXT(INDIRECT(\"'\"&F3955&\"'!\"&H3955),\"0\"),Notes!$B$5:$C$100,2,FALSE),\"\"))","v":""},"2e","$I$39","$J$39"]
[19184,{"$f":"Menu!$F$29","v":"X"},{"$f":"Menu!$J$29","v":2020},{"$f":"IF(ISBLANK(INDIRECT(\"'\"&F3956&\"'!\"&G3956)),\"\",INDIRECT(\"'\"&F3956&\"'!\"&G3956))","v":""},{"$f":"IF(ISBLANK(INDIRECT(\"'\"&F3956&\"'!\"&H3956)),\"\",IFERROR(VLOOKUP(TEXT(INDIRECT(\"'\"&F3956&\"'!\"&H3956),\"0\"),Notes!$B$5:$C$100,2,FALSE),\"\"))","v":""},"2e","$K$39","$L$39"]
[19185,{"$f":"Menu!$F$29","v":"X"},{"$f":"Menu!$J$29","v":2020},{"$f":"IF(ISBLANK(INDIRECT(\"'\"&F3957&\"'!\"&G3957)),\"\",INDIRECT(\"'\"&F3957&\"'!\"&G3957))","v":""},{"$f":"IF(ISBLANK(INDIRECT(\"'\"&F3957&\"'!\"&H3957)),\"\",IFERROR(VLOOKUP(TEXT(INDIRECT(\"'\"&F3957&\"'!\"&H3957),\"0\"),Notes!$B$5:$C$100,2,FALSE),\"\"))","v":""},"2e","$M$39","$N$39"]
[19186,{"$f":"Menu!$F$29","v":"X"},{"$f":"Menu!$J$29","v":2020},{"$f":"IF(ISBLANK(INDIRECT(\"'\"&F3958&\"'!\"&G3958)),\"\",INDIRECT(\"'\"&F3958&\"'!\"&G3958))","v":""},{"$f":"IF(ISBLANK(INDIRECT(\"'\"&F3958&\"'!\"&H3958)),\"\",IFERROR(VLOOKUP(TEXT(INDIRECT(\"'\"&F3958&\"'!\"&H3958),\"0\"),Notes!$B$5:$C$100,2,FALSE),\"\"))","v":""},"2e","$O$39","$P$39"]
[19187,{"$f":"Menu!$F$29","v":"X"},{"$f":"Menu!$J$29","v":2020},{"$f":"IF(ISBLANK(INDIRECT(\"'\"&F3959&\"'!\"&G3959)),\"\",INDIRECT(\"'\"&F3959&\"'!\"&G3959))","v":""},{"$f":"IF(ISBLANK(INDIRECT(\"'\"&F3959&\"'!\"&H3959)),\"\",IFERROR(VLOOKUP(TEXT(INDIRECT(\"'\"&F3959&\"'!\"&H3959),\"0\"),Notes!$B$5:$C$100,2,FALSE),\"\"))","v":""},"2e","$Q$39","$R$39"]
[19188,{"$f":"Menu!$F$29","v":"X"},{"$f":"Menu!$J$29","v":2020},{"$f":"IF(ISBLANK(INDIRECT(\"'\"&F3960&\"'!\"&G3960)),\"\",INDIRECT(\"'\"&F3960&\"'!\"&G3960))","v":""},{"$f":"IF(ISBLANK(INDIRECT(\"'\"&F3960&\"'!\"&H3960)),\"\",IFERROR(VLOOKUP(TEXT(INDIRECT(\"'\"&F3960&\"'!\"&H3960),\"0\"),Notes!$B$5:$C$100,2,FALSE),\"\"))","v":""},"2e","$S$39","$T$39"]
[19189,{"$f":"Menu!$F$29","v":"X"},{"$f":"Menu!$J$29","v":2020},{"$f":"IF(ISBLANK(INDIRECT(\"'\"&F3961&\"'!\"&G3961)),\"\",INDIRECT(\"'\"&F3961&\"'!\"&G3961))","v":""},{"$f":"IF(ISBLANK(INDIRECT(\"'\"&F3961&\"'!\"&H3961)),\"\",IFERROR(VLOOKUP(TEXT(INDIRECT(\"'\"&F3961&\"'!\"&H3961),\"0\"),Notes!$B$5:$C$100,2,FALSE),\"\"))","v":""},"2e","$U$39","$V$39"]
[19190,{"$f":"Menu!$F$29","v":"X"},{"$f":"Menu!$J$29","v":2020},{"$f":"IF(ISBLANK(INDIRECT(\"'\"&F3962&\"'!\"&G3962)),\"\",INDIRECT(\"'\"&F3962&\"'!\"&G3962))","v":""},{"$f":"IF(ISBLANK(INDIRECT(\"'\"&F3962&\"'!\"&H3962)),\"\",IFERROR(VLOOKUP(TEXT(INDIRECT(\"'\"&F3962&\"'!\"&H3962),\"0\"),Notes!$B$5:$C$100,2,FALSE),\"\"))","v":""},"2e","$W$39","$X$39"]
[19191,{"$f":"Menu!$F$29","v":"X"},{"$f":"Menu!$J$29","v":2020},{"$f":"IF(ISBLANK(INDIRECT(\"'\"&F3963&\"'!\"&G3963)),\"\",INDIRECT(\"'\"&F3963&\"'!\"&G3963))","v":""},{"$f":"IF(ISBLANK(INDIRECT(\"'\"&F3963&\"'!\"&H3963)),\"\",IFERROR(VLOOKUP(TEXT(INDIRECT(\"'\"&F3963&\"'!\"&H3963),\"0\"),Notes!$B$5:$C$100,2,FALSE),\"\"))","v":""},"2e","$Y$39","$Z$39"]
[19192,{"$f":"Menu!$F$29","v":"X"},{"$f":"Menu!$J$29","v":2020},{"$f":"IF(ISBLANK(INDIRECT(\"'\"&F3964&\"'!\"&G3964)),\"\",INDIRECT(\"'\"&F3964&\"'!\"&G3964))","v":""},{"$f":"IF(ISBLANK(INDIRECT(\"'\"&F3964&\"'!\"&H3964)),\"\",IFERROR(VLOOKUP(TEXT(INDIRECT(\"'\"&F3964&\"'!\"&H3964),\"0\"),Notes!$B$5:$C$100,2,FALSE),\"\"))","v":""},"2e","$AA$39","$AB$39"]
[19193,{"$f":"Menu!$F$29","v":"X"},{"$f":"Menu!$J$29","v":2020},{"$f":"IF(ISBLANK(INDIRECT(\"'\"&F3965&\"'!\"&G3965)),\"\",INDIRECT(\"'\"&F3965&\"'!\"&G3965))","v":""},{"$f":"IF(ISBLANK(INDIRECT(\"'\"&F3965&\"'!\"&H3965)),\"\",IFERROR(VLOOKUP(TEXT(INDIRECT(\"'\"&F3965&\"'!\"&H3965),\"0\"),Notes!$B$5:$C$100,2,FALSE),\"\"))","v":""},"2e","$AC$39","$AD$39"]
[19194,{"$f":"Menu!$F$29","v":"X"},{"$f":"Menu!$J$29","v":2020},{"$f":"IF(ISBLANK(INDIRECT(\"'\"&F3966&\"'!\"&G3966)),\"\",INDIRECT(\"'\"&F3966&\"'!\"&G3966))","v":""},{"$f":"IF(ISBLANK(INDIRECT(\"'\"&F3966&\"'!\"&H3966)),\"\",IFERROR(VLOOKUP(TEXT(INDIRECT(\"'\"&F3966&\"'!\"&H3966),\"0\"),Notes!$B$5:$C$100,2,FALSE),\"\"))","v":""},"2e","$AE$39","$AF$39"]
[19195,{"$f":"Menu!$F$29","v":"X"},{"$f":"Menu!$J$29","v":2020},{"$f":"IF(ISBLANK(INDIRECT(\"'\"&F3967&\"'!\"&G3967)),\"\",INDIRECT(\"'\"&F3967&\"'!\"&G3967))","v":""},{"$f":"IF(ISBLANK(INDIRECT(\"'\"&F3967&\"'!\"&H3967)),\"\",IFERROR(VLOOKUP(TEXT(INDIRECT(\"'\"&F3967&\"'!\"&H3967),\"0\"),Notes!$B$5:$C$100,2,FALSE),\"\"))","v":""},"2e","$AG$39","$AH$39"]
[19196,{"$f":"Menu!$F$29","v":"X"},{"$f":"Menu!$J$29","v":2020},{"$f":"IF(ISBLANK(INDIRECT(\"'\"&F3968&\"'!\"&G3968)),\"\",INDIRECT(\"'\"&F3968&\"'!\"&G3968))","v":""},{"$f":"IF(ISBLANK(INDIRECT(\"'\"&F3968&\"'!\"&H3968)),\"\",IFERROR(VLOOKUP(TEXT(INDIRECT(\"'\"&F3968&\"'!\"&H3968),\"0\"),Notes!$B$5:$C$100,2,FALSE),\"\"))","v":""},"2e","$AI$39","$AJ$39"]
[19197,{"$f":"Menu!$F$29","v":"X"},{"$f":"Menu!$J$29","v":2020},{"$f":"IF(ISBLANK(INDIRECT(\"'\"&F3969&\"'!\"&G3969)),\"\",INDIRECT(\"'\"&F3969&\"'!\"&G3969))","v":""},{"$f":"IF(ISBLANK(INDIRECT(\"'\"&F3969&\"'!\"&H3969)),\"\",IFERROR(VLOOKUP(TEXT(INDIRECT(\"'\"&F3969&\"'!\"&H3969),\"0\"),Notes!$B$5:$C$100,2,FALSE),\"\"))","v":""},"2e","$AK$39","$AL$39"]
[19198,{"$f":"Menu!$F$29","v":"X"},{"$f":"Menu!$J$29","v":2020},{"$f":"IF(ISBLANK(INDIRECT(\"'\"&F3970&\"'!\"&G3970)),\"\",INDIRECT(\"'\"&F3970&\"'!\"&G3970))","v":""},{"$f":"IF(ISBLANK(INDIRECT(\"'\"&F3970&\"'!\"&H3970)),\"\",IFERROR(VLOOKUP(TEXT(INDIRECT(\"'\"&F3970&\"'!\"&H3970),\"0\"),Notes!$B$5:$C$100,2,FALSE),\"\"))","v":""},"2e","$AM$39",{"$f":"IF(LEN(TRIM(MID(G3970,4,10)))-LEN(SUBSTITUTE(TRIM(MID(G3970,4,10)),\"$\",\"\"))=0,\"$\"&CHAR(CODE(MID(G3970,2,1))+1)&\"$\"&TRIM(MID(G3970,4,10)),\"$\"&MID(G3970,2,1)&CHAR(CODE(MID(G3970,3,1))+1)&\"$\"&TRIM(MID(G3970,5,11)))","v":"$AN$39"}]
[19199,{"$f":"Menu!$F$29","v":"X"},{"$f":"Menu!$J$29","v":2020},{"$f":"IF(ISBLANK(INDIRECT(\"'\"&F3971&\"'!\"&G3971)),\"\",INDIRECT(\"'\"&F3971&\"'!\"&G3971))","v":""},{"$f":"IF(ISBLANK(INDIRECT(\"'\"&F3971&\"'!\"&H3971)),\"\",IFERROR(VLOOKUP(TEXT(INDIRECT(\"'\"&F3971&\"'!\"&H3971),\"0\"),Notes!$B$5:$C$100,2,FALSE),\"\"))","v":""},"2e","$AO$39","$AP$39"]
[19200,{"$f":"Menu!$F$29","v":"X"},{"$f":"Menu!$J$29","v":2020},{"$f":"IF(ISBLANK(INDIRECT(\"'\"&F3972&\"'!\"&G3972)),\"\",INDIRECT(\"'\"&F3972&\"'!\"&G3972))","v":""},{"$f":"IF(ISBLANK(INDIRECT(\"'\"&F3972&\"'!\"&H3972)),\"\",IFERROR(VLOOKUP(TEXT(INDIRECT(\"'\"&F3972&\"'!\"&H3972),\"0\"),Notes!$B$5:$C$100,2,FALSE),\"\"))","v":""},"2e","$AQ$39","$AR$39"]
[19201,{"$f":"Menu!$F$29","v":"X"},{"$f":"Menu!$J$29","v":2020},{"$f":"IF(ISBLANK(INDIRECT(\"'\"&F3973&\"'!\"&G3973)),\"\",INDIRECT(\"'\"&F3973&\"'!\"&G3973))","v":""},{"$f":"IF(ISBLANK(INDIRECT(\"'\"&F3973&\"'!\"&H3973)),\"\",IFERROR(VLOOKUP(TEXT(INDIRECT(\"'\"&F3973&\"'!\"&H3973),\"0\"),Notes!$B$5:$C$100,2,FALSE),\"\"))","v":""},"2e","$AS$39","$AT$39"]
[19202,{"$f":"Menu!$F$29","v":"X"},{"$f":"Menu!$J$29","v":2020},{"$f":"IF(ISBLANK(INDIRECT(\"'\"&F3974&\"'!\"&G3974)),\"\",INDIRECT(\"'\"&F3974&\"'!\"&G3974))","v":""},{"$f":"IF(ISBLANK(INDIRECT(\"'\"&F3974&\"'!\"&H3974)),\"\",IFERROR(VLOOKUP(TEXT(INDIRECT(\"'\"&F3974&\"'!\"&H3974),\"0\"),Notes!$B$5:$C$100,2,FALSE),\"\"))","v":""},"2e","$AU$39","$AV$39"]
[19203,{"$f":"Menu!$F$29","v":"X"},{"$f":"Menu!$J$29","v":2020},{"$f":"IF(ISBLANK(INDIRECT(\"'\"&F3975&\"'!\"&G3975)),\"\",INDIRECT(\"'\"&F3975&\"'!\"&G3975))","v":""},{"$f":"IF(ISBLANK(INDIRECT(\"'\"&F3975&\"'!\"&H3975)),\"\",IFERROR(VLOOKUP(TEXT(INDIRECT(\"'\"&F3975&\"'!\"&H3975),\"0\"),Notes!$B$5:$C$100,2,FALSE),\"\"))","v":""},"2e","$AW$39","$AX$39"]
[19204,{"$f":"Menu!$F$29","v":"X"},{"$f":"Menu!$J$29","v":2020},{"$f":"IF(ISBLANK(INDIRECT(\"'\"&F3976&\"'!\"&G3976)),\"\",INDIRECT(\"'\"&F3976&\"'!\"&G3976))","v":""},{"$f":"IF(ISBLANK(INDIRECT(\"'\"&F3976&\"'!\"&H3976)),\"\",IFERROR(VLOOKUP(TEXT(INDIRECT(\"'\"&F3976&\"'!\"&H3976),\"0\"),Notes!$B$5:$C$100,2,FALSE),\"\"))","v":""},"2e","$AY$39","$AZ$39"]
[19205,{"$f":"Menu!$F$29","v":"X"},{"$f":"Menu!$J$29","v":2020},{"$f":"IF(ISBLANK(INDIRECT(\"'\"&F3977&\"'!\"&G3977)),\"\",INDIRECT(\"'\"&F3977&\"'!\"&G3977))","v":""},{"$f":"IF(ISBLANK(INDIRECT(\"'\"&F3977&\"'!\"&H3977)),\"\",IFERROR(VLOOKUP(TEXT(INDIRECT(\"'\"&F3977&\"'!\"&H3977),\"0\"),Notes!$B$5:$C$100,2,FALSE),\"\"))","v":""},"2e","$BA$39","$BB$39"]
[19206,{"$f":"Menu!$F$29","v":"X"},{"$f":"Menu!$J$29","v":2020},{"$f":"IF(ISBLANK(INDIRECT(\"'\"&F3978&\"'!\"&G3978)),\"\",INDIRECT(\"'\"&F3978&\"'!\"&G3978))","v":""},{"$f":"IF(ISBLANK(INDIRECT(\"'\"&F3978&\"'!\"&H3978)),\"\",IFERROR(VLOOKUP(TEXT(INDIRECT(\"'\"&F3978&\"'!\"&H3978),\"0\"),Notes!$B$5:$C$100,2,FALSE),\"\"))","v":""},"2e","$BC$39","$BD$39"]
[19207,{"$f":"Menu!$F$29","v":"X"},{"$f":"Menu!$J$29","v":2020},{"$f":"IF(ISBLANK(INDIRECT(\"'\"&F3979&\"'!\"&G3979)),\"\",INDIRECT(\"'\"&F3979&\"'!\"&G3979))","v":""},{"$f":"IF(ISBLANK(INDIRECT(\"'\"&F3979&\"'!\"&H3979)),\"\",IFERROR(VLOOKUP(TEXT(INDIRECT(\"'\"&F3979&\"'!\"&H3979),\"0\"),Notes!$B$5:$C$100,2,FALSE),\"\"))","v":""},"2e","$BE$39","$BF$39"]
[19208,{"$f":"Menu!$F$29","v":"X"},{"$f":"Menu!$J$29","v":2020},{"$f":"IF(ISBLANK(INDIRECT(\"'\"&F3980&\"'!\"&G3980)),\"\",INDIRECT(\"'\"&F3980&\"'!\"&G3980))","v":""},{"$f":"IF(ISBLANK(INDIRECT(\"'\"&F3980&\"'!\"&H3980)),\"\",IFERROR(VLOOKUP(TEXT(INDIRECT(\"'\"&F3980&\"'!\"&H3980),\"0\"),Notes!$B$5:$C$100,2,FALSE),\"\"))","v":""},"2e","$BG$39","$BH$39"]
[19209,{"$f":"Menu!$F$29","v":"X"},{"$f":"Menu!$J$29","v":2020},{"$f":"IF(ISBLANK(INDIRECT(\"'\"&F3981&\"'!\"&G3981)),\"\",INDIRECT(\"'\"&F3981&\"'!\"&G3981))","v":""},{"$f":"IF(ISBLANK(INDIRECT(\"'\"&F3981&\"'!\"&H3981)),\"\",IFERROR(VLOOKUP(TEXT(INDIRECT(\"'\"&F3981&\"'!\"&H3981),\"0\"),Notes!$B$5:$C$100,2,FALSE),\"\"))","v":""},"2e","$BI$39","$BJ$39"]
[19210,{"$f":"Menu!$F$29","v":"X"},{"$f":"Menu!$J$29","v":2020},{"$f":"IF(ISBLANK(INDIRECT(\"'\"&F3982&\"'!\"&G3982)),\"\",INDIRECT(\"'\"&F3982&\"'!\"&G3982))","v":""},{"$f":"IF(ISBLANK(INDIRECT(\"'\"&F3982&\"'!\"&H3982)),\"\",IFERROR(VLOOKUP(TEXT(INDIRECT(\"'\"&F3982&\"'!\"&H3982),\"0\"),Notes!$B$5:$C$100,2,FALSE),\"\"))","v":""},"2e","$BK$39","$BL$39"]
[19211,{"$f":"Menu!$F$29","v":"X"},{"$f":"Menu!$J$29","v":2020},{"$f":"IF(ISBLANK(INDIRECT(\"'\"&F3983&\"'!\"&G3983)),\"\",INDIRECT(\"'\"&F3983&\"'!\"&G3983))","v":""},null,"2a","$E$156","$F$156"]
[19212,{"$f":"Menu!$F$29","v":"X"},{"$f":"Menu!$J$29","v":2020},{"$f":"IF(ISBLANK(INDIRECT(\"'\"&F3984&\"'!\"&G3984)),\"\",INDIRECT(\"'\"&F3984&\"'!\"&G3984))","v":""},{"$f":"IF(ISBLANK(INDIRECT(\"'\"&F3984&\"'!\"&H3984)),\"\",IFERROR(VLOOKUP(TEXT(INDIRECT(\"'\"&F3984&\"'!\"&H3984),\"0\"),Notes!$B$5:$C$100,2,FALSE),\"\"))","v":""},"2a","$G$156","$H$156"]
[19213,{"$f":"Menu!$F$29","v":"X"},{"$f":"Menu!$J$29","v":2020},{"$f":"IF(ISBLANK(INDIRECT(\"'\"&F3985&\"'!\"&G3985)),\"\",INDIRECT(\"'\"&F3985&\"'!\"&G3985))","v":""},{"$f":"IF(ISBLANK(INDIRECT(\"'\"&F3985&\"'!\"&H3985)),\"\",IFERROR(VLOOKUP(TEXT(INDIRECT(\"'\"&F3985&\"'!\"&H3985),\"0\"),Notes!$B$5:$C$100,2,FALSE),\"\"))","v":""},"2a","$I$156","$J$156"]
[19214,{"$f":"Menu!$F$29","v":"X"},{"$f":"Menu!$J$29","v":2020},{"$f":"IF(ISBLANK(INDIRECT(\"'\"&F3986&\"'!\"&G3986)),\"\",INDIRECT(\"'\"&F3986&\"'!\"&G3986))","v":""},{"$f":"IF(ISBLANK(INDIRECT(\"'\"&F3986&\"'!\"&H3986)),\"\",IFERROR(VLOOKUP(TEXT(INDIRECT(\"'\"&F3986&\"'!\"&H3986),\"0\"),Notes!$B$5:$C$100,2,FALSE),\"\"))","v":""},"2a","$K$156","$L$156"]
[19215,{"$f":"Menu!$F$29","v":"X"},{"$f":"Menu!$J$29","v":2020},{"$f":"IF(ISBLANK(INDIRECT(\"'\"&F3987&\"'!\"&G3987)),\"\",INDIRECT(\"'\"&F3987&\"'!\"&G3987))","v":""},{"$f":"IF(ISBLANK(INDIRECT(\"'\"&F3987&\"'!\"&H3987)),\"\",IFERROR(VLOOKUP(TEXT(INDIRECT(\"'\"&F3987&\"'!\"&H3987),\"0\"),Notes!$B$5:$C$100,2,FALSE),\"\"))","v":""},"2a","$M$156","$N$156"]
[19216,{"$f":"Menu!$F$29","v":"X"},{"$f":"Menu!$J$29","v":2020},{"$f":"IF(ISBLANK(INDIRECT(\"'\"&F3988&\"'!\"&G3988)),\"\",INDIRECT(\"'\"&F3988&\"'!\"&G3988))","v":""},{"$f":"IF(ISBLANK(INDIRECT(\"'\"&F3988&\"'!\"&H3988)),\"\",IFERROR(VLOOKUP(TEXT(INDIRECT(\"'\"&F3988&\"'!\"&H3988),\"0\"),Notes!$B$5:$C$100,2,FALSE),\"\"))","v":""},"2a","$O$156","$P$156"]
[19217,{"$f":"Menu!$F$29","v":"X"},{"$f":"Menu!$J$29","v":2020},{"$f":"IF(ISBLANK(INDIRECT(\"'\"&F3989&\"'!\"&G3989)),\"\",INDIRECT(\"'\"&F3989&\"'!\"&G3989))","v":""},{"$f":"IF(ISBLANK(INDIRECT(\"'\"&F3989&\"'!\"&H3989)),\"\",IFERROR(VLOOKUP(TEXT(INDIRECT(\"'\"&F3989&\"'!\"&H3989),\"0\"),Notes!$B$5:$C$100,2,FALSE),\"\"))","v":""},"2a","$Q$156","$R$156"]
[19218,{"$f":"Menu!$F$29","v":"X"},{"$f":"Menu!$J$29","v":2020},{"$f":"IF(ISBLANK(INDIRECT(\"'\"&F3990&\"'!\"&G3990)),\"\",INDIRECT(\"'\"&F3990&\"'!\"&G3990))","v":""},{"$f":"IF(ISBLANK(INDIRECT(\"'\"&F3990&\"'!\"&H3990)),\"\",IFERROR(VLOOKUP(TEXT(INDIRECT(\"'\"&F3990&\"'!\"&H3990),\"0\"),Notes!$B$5:$C$100,2,FALSE),\"\"))","v":""},"2a","$S$156","$T$156"]
[19219,{"$f":"Menu!$F$29","v":"X"},{"$f":"Menu!$J$29","v":2020},{"$f":"IF(ISBLANK(INDIRECT(\"'\"&F3991&\"'!\"&G3991)),\"\",INDIRECT(\"'\"&F3991&\"'!\"&G3991))","v":""},{"$f":"IF(ISBLANK(INDIRECT(\"'\"&F3991&\"'!\"&H3991)),\"\",IFERROR(VLOOKUP(TEXT(INDIRECT(\"'\"&F3991&\"'!\"&H3991),\"0\"),Notes!$B$5:$C$100,2,FALSE),\"\"))","v":""},"2a","$U$156","$V$156"]
[19220,{"$f":"Menu!$F$29","v":"X"},{"$f":"Menu!$J$29","v":2020},{"$f":"IF(ISBLANK(INDIRECT(\"'\"&F3992&\"'!\"&G3992)),\"\",INDIRECT(\"'\"&F3992&\"'!\"&G3992))","v":""},{"$f":"IF(ISBLANK(INDIRECT(\"'\"&F3992&\"'!\"&H3992)),\"\",IFERROR(VLOOKUP(TEXT(INDIRECT(\"'\"&F3992&\"'!\"&H3992),\"0\"),Notes!$B$5:$C$100,2,FALSE),\"\"))","v":""},"2b","$E$156","$F$156"]
[19221,{"$f":"Menu!$F$29","v":"X"},{"$f":"Menu!$J$29","v":2020},{"$f":"IF(ISBLANK(INDIRECT(\"'\"&F3993&\"'!\"&G3993)),\"\",INDIRECT(\"'\"&F3993&\"'!\"&G3993))","v":""},{"$f":"IF(ISBLANK(INDIRECT(\"'\"&F3993&\"'!\"&H3993)),\"\",IFERROR(VLOOKUP(TEXT(INDIRECT(\"'\"&F3993&\"'!\"&H3993),\"0\"),Notes!$B$5:$C$100,2,FALSE),\"\"))","v":""},"2b","$G$156","$H$156"]
[19222,{"$f":"Menu!$F$29","v":"X"},{"$f":"Menu!$J$29","v":2020},{"$f":"IF(ISBLANK(INDIRECT(\"'\"&F3994&\"'!\"&G3994)),\"\",INDIRECT(\"'\"&F3994&\"'!\"&G3994))","v":""},{"$f":"IF(ISBLANK(INDIRECT(\"'\"&F3994&\"'!\"&H3994)),\"\",IFERROR(VLOOKUP(TEXT(INDIRECT(\"'\"&F3994&\"'!\"&H3994),\"0\"),Notes!$B$5:$C$100,2,FALSE),\"\"))","v":""},"2b","$I$156","$J$156"]
[19223,{"$f":"Menu!$F$29","v":"X"},{"$f":"Menu!$J$29","v":2020},{"$f":"IF(ISBLANK(INDIRECT(\"'\"&F3995&\"'!\"&G3995)),\"\",INDIRECT(\"'\"&F3995&\"'!\"&G3995))","v":""},{"$f":"IF(ISBLANK(INDIRECT(\"'\"&F3995&\"'!\"&H3995)),\"\",IFERROR(VLOOKUP(TEXT(INDIRECT(\"'\"&F3995&\"'!\"&H3995),\"0\"),Notes!$B$5:$C$100,2,FALSE),\"\"))","v":""},"2b","$K$156","$L$156"]
[19224,{"$f":"Menu!$F$29","v":"X"},{"$f":"Menu!$J$29","v":2020},{"$f":"IF(ISBLANK(INDIRECT(\"'\"&F3996&\"'!\"&G3996)),\"\",INDIRECT(\"'\"&F3996&\"'!\"&G3996))","v":""},{"$f":"IF(ISBLANK(INDIRECT(\"'\"&F3996&\"'!\"&H3996)),\"\",IFERROR(VLOOKUP(TEXT(INDIRECT(\"'\"&F3996&\"'!\"&H3996),\"0\"),Notes!$B$5:$C$100,2,FALSE),\"\"))","v":""},"2b","$M$156","$N$156"]
[19225,{"$f":"Menu!$F$29","v":"X"},{"$f":"Menu!$J$29","v":2020},{"$f":"IF(ISBLANK(INDIRECT(\"'\"&F3997&\"'!\"&G3997)),\"\",INDIRECT(\"'\"&F3997&\"'!\"&G3997))","v":""},{"$f":"IF(ISBLANK(INDIRECT(\"'\"&F3997&\"'!\"&H3997)),\"\",IFERROR(VLOOKUP(TEXT(INDIRECT(\"'\"&F3997&\"'!\"&H3997),\"0\"),Notes!$B$5:$C$100,2,FALSE),\"\"))","v":""},"2b","$O$156","$P$156"]
[19226,{"$f":"Menu!$F$29","v":"X"},{"$f":"Menu!$J$29","v":2020},{"$f":"IF(ISBLANK(INDIRECT(\"'\"&F3998&\"'!\"&G3998)),\"\",INDIRECT(\"'\"&F3998&\"'!\"&G3998))","v":""},{"$f":"IF(ISBLANK(INDIRECT(\"'\"&F3998&\"'!\"&H3998)),\"\",IFERROR(VLOOKUP(TEXT(INDIRECT(\"'\"&F3998&\"'!\"&H3998),\"0\"),Notes!$B$5:$C$100,2,FALSE),\"\"))","v":""},"2b","$Q$156","$R$156"]
[19227,{"$f":"Menu!$F$29","v":"X"},{"$f":"Menu!$J$29","v":2020},{"$f":"IF(ISBLANK(INDIRECT(\"'\"&F3999&\"'!\"&G3999)),\"\",INDIRECT(\"'\"&F3999&\"'!\"&G3999))","v":""},{"$f":"IF(ISBLANK(INDIRECT(\"'\"&F3999&\"'!\"&H3999)),\"\",IFERROR(VLOOKUP(TEXT(INDIRECT(\"'\"&F3999&\"'!\"&H3999),\"0\"),Notes!$B$5:$C$100,2,FALSE),\"\"))","v":""},"2b","$S$156","$T$156"]
[19228,{"$f":"Menu!$F$29","v":"X"},{"$f":"Menu!$J$29","v":2020},{"$f":"IF(ISBLANK(INDIRECT(\"'\"&F4000&\"'!\"&G4000)),\"\",INDIRECT(\"'\"&F4000&\"'!\"&G4000))","v":""},{"$f":"IF(ISBLANK(INDIRECT(\"'\"&F4000&\"'!\"&H4000)),\"\",IFERROR(VLOOKUP(TEXT(INDIRECT(\"'\"&F4000&\"'!\"&H4000),\"0\"),Notes!$B$5:$C$100,2,FALSE),\"\"))","v":""},"2b","$U$156","$V$156"]
[19229,{"$f":"Menu!$F$29","v":"X"},{"$f":"Menu!$J$29","v":2020},{"$f":"IF(ISBLANK(INDIRECT(\"'\"&F4001&\"'!\"&G4001)),\"\",INDIRECT(\"'\"&F4001&\"'!\"&G4001))","v":""},{"$f":"IF(ISBLANK(INDIRECT(\"'\"&F4001&\"'!\"&H4001)),\"\",IFERROR(VLOOKUP(TEXT(INDIRECT(\"'\"&F4001&\"'!\"&H4001),\"0\"),Notes!$B$5:$C$100,2,FALSE),\"\"))","v":""},"2b","$W$156","$X$156"]
[19230,{"$f":"Menu!$F$29","v":"X"},{"$f":"Menu!$J$29","v":2020},{"$f":"IF(ISBLANK(INDIRECT(\"'\"&F4002&\"'!\"&G4002)),\"\",INDIRECT(\"'\"&F4002&\"'!\"&G4002))","v":""},{"$f":"IF(ISBLANK(INDIRECT(\"'\"&F4002&\"'!\"&H4002)),\"\",IFERROR(VLOOKUP(TEXT(INDIRECT(\"'\"&F4002&\"'!\"&H4002),\"0\"),Notes!$B$5:$C$100,2,FALSE),\"\"))","v":""},"2b","$Y$156","$Z$156"]
[19231,{"$f":"Menu!$F$29","v":"X"},{"$f":"Menu!$J$29","v":2020},{"$f":"IF(ISBLANK(INDIRECT(\"'\"&F4003&\"'!\"&G4003)),\"\",INDIRECT(\"'\"&F4003&\"'!\"&G4003))","v":""},{"$f":"IF(ISBLANK(INDIRECT(\"'\"&F4003&\"'!\"&H4003)),\"\",IFERROR(VLOOKUP(TEXT(INDIRECT(\"'\"&F4003&\"'!\"&H4003),\"0\"),Notes!$B$5:$C$100,2,FALSE),\"\"))","v":""},"2b","$AA$156","$AB$156"]
[19395,{"$f":"Menu!$F$29","v":"X"},{"$f":"Menu!$J$29","v":2020},{"$f":"IF(ISBLANK(INDIRECT(\"'\"&F4004&\"'!\"&G4004)),\"\",INDIRECT(\"'\"&F4004&\"'!\"&G4004))","v":""},{"$f":"IF(ISBLANK(INDIRECT(\"'\"&F4004&\"'!\"&H4004)),\"\",IFERROR(VLOOKUP(TEXT(INDIRECT(\"'\"&F4004&\"'!\"&H4004),\"0\"),Notes!$B$5:$C$100,2,FALSE),\"\"))","v":""},"2b","$K$108","$L$108"]
[19396,{"$f":"Menu!$F$29","v":"X"},{"$f":"Menu!$J$29","v":2020},{"$f":"IF(ISBLANK(INDIRECT(\"'\"&F4005&\"'!\"&G4005)),\"\",INDIRECT(\"'\"&F4005&\"'!\"&G4005))","v":""},{"$f":"IF(ISBLANK(INDIRECT(\"'\"&F4005&\"'!\"&H4005)),\"\",IFERROR(VLOOKUP(TEXT(INDIRECT(\"'\"&F4005&\"'!\"&H4005),\"0\"),Notes!$B$5:$C$100,2,FALSE),\"\"))","v":""},"2b","$O$108","$P$108"]
[19397,{"$f":"Menu!$F$29","v":"X"},{"$f":"Menu!$J$29","v":2020},{"$f":"IF(ISBLANK(INDIRECT(\"'\"&F4006&\"'!\"&G4006)),\"\",INDIRECT(\"'\"&F4006&\"'!\"&G4006))","v":""},{"$f":"IF(ISBLANK(INDIRECT(\"'\"&F4006&\"'!\"&H4006)),\"\",IFERROR(VLOOKUP(TEXT(INDIRECT(\"'\"&F4006&\"'!\"&H4006),\"0\"),Notes!$B$5:$C$100,2,FALSE),\"\"))","v":""},"2b","$M$108","$N$108"]
[19398,{"$f":"Menu!$F$29","v":"X"},{"$f":"Menu!$J$29","v":2020},{"$f":"IF(ISBLANK(INDIRECT(\"'\"&F4007&\"'!\"&G4007)),\"\",INDIRECT(\"'\"&F4007&\"'!\"&G4007))","v":""},{"$f":"IF(ISBLANK(INDIRECT(\"'\"&F4007&\"'!\"&H4007)),\"\",IFERROR(VLOOKUP(TEXT(INDIRECT(\"'\"&F4007&\"'!\"&H4007),\"0\"),Notes!$B$5:$C$100,2,FALSE),\"\"))","v":""},"2b","$Q$108","$R$108"]
[19399,{"$f":"Menu!$F$29","v":"X"},{"$f":"Menu!$J$29","v":2020},{"$f":"IF(ISBLANK(INDIRECT(\"'\"&F4008&\"'!\"&G4008)),\"\",INDIRECT(\"'\"&F4008&\"'!\"&G4008))","v":""},{"$f":"IF(ISBLANK(INDIRECT(\"'\"&F4008&\"'!\"&H4008)),\"\",IFERROR(VLOOKUP(TEXT(INDIRECT(\"'\"&F4008&\"'!\"&H4008),\"0\"),Notes!$B$5:$C$100,2,FALSE),\"\"))","v":""},"2b","$U$108","$V$108"]
[19400,{"$f":"Menu!$F$29","v":"X"},{"$f":"Menu!$J$29","v":2020},{"$f":"IF(ISBLANK(INDIRECT(\"'\"&F4009&\"'!\"&G4009)),\"\",INDIRECT(\"'\"&F4009&\"'!\"&G4009))","v":""},{"$f":"IF(ISBLANK(INDIRECT(\"'\"&F4009&\"'!\"&H4009)),\"\",IFERROR(VLOOKUP(TEXT(INDIRECT(\"'\"&F4009&\"'!\"&H4009),\"0\"),Notes!$B$5:$C$100,2,FALSE),\"\"))","v":""},"2b","$S$108","$T$108"]
[19401,{"$f":"Menu!$F$29","v":"X"},{"$f":"Menu!$J$29","v":2020},{"$f":"IF(ISBLANK(INDIRECT(\"'\"&F4010&\"'!\"&G4010)),\"\",INDIRECT(\"'\"&F4010&\"'!\"&G4010))","v":""},{"$f":"IF(ISBLANK(INDIRECT(\"'\"&F4010&\"'!\"&H4010)),\"\",IFERROR(VLOOKUP(TEXT(INDIRECT(\"'\"&F4010&\"'!\"&H4010),\"0\"),Notes!$B$5:$C$100,2,FALSE),\"\"))","v":""},"2a","$I$108","$J$108"]
[19402,{"$f":"Menu!$F$29","v":"X"},{"$f":"Menu!$J$29","v":2020},{"$f":"IF(ISBLANK(INDIRECT(\"'\"&F4011&\"'!\"&G4011)),\"\",INDIRECT(\"'\"&F4011&\"'!\"&G4011))","v":""},{"$f":"IF(ISBLANK(INDIRECT(\"'\"&F4011&\"'!\"&H4011)),\"\",IFERROR(VLOOKUP(TEXT(INDIRECT(\"'\"&F4011&\"'!\"&H4011),\"0\"),Notes!$B$5:$C$100,2,FALSE),\"\"))","v":""},"2c","$E$108","$F$108"]
[19403,{"$f":"Menu!$F$29","v":"X"},{"$f":"Menu!$J$29","v":2020},{"$f":"IF(ISBLANK(INDIRECT(\"'\"&F4012&\"'!\"&G4012)),\"\",INDIRECT(\"'\"&F4012&\"'!\"&G4012))","v":""},{"$f":"IF(ISBLANK(INDIRECT(\"'\"&F4012&\"'!\"&H4012)),\"\",IFERROR(VLOOKUP(TEXT(INDIRECT(\"'\"&F4012&\"'!\"&H4012),\"0\"),Notes!$B$5:$C$100,2,FALSE),\"\"))","v":""},"2c","$I$108","$J$108"]
[19404,{"$f":"Menu!$F$29","v":"X"},{"$f":"Menu!$J$29","v":2020},{"$f":"IF(ISBLANK(INDIRECT(\"'\"&F4013&\"'!\"&G4013)),\"\",INDIRECT(\"'\"&F4013&\"'!\"&G4013))","v":""},{"$f":"IF(ISBLANK(INDIRECT(\"'\"&F4013&\"'!\"&H4013)),\"\",IFERROR(VLOOKUP(TEXT(INDIRECT(\"'\"&F4013&\"'!\"&H4013),\"0\"),Notes!$B$5:$C$100,2,FALSE),\"\"))","v":""},"2c","$G$108","$H$108"]
[19405,{"$f":"Menu!$F$29","v":"X"},{"$f":"Menu!$J$29","v":2020},{"$f":"IF(ISBLANK(INDIRECT(\"'\"&F4014&\"'!\"&G4014)),\"\",INDIRECT(\"'\"&F4014&\"'!\"&G4014))","v":""},{"$f":"IF(ISBLANK(INDIRECT(\"'\"&F4014&\"'!\"&H4014)),\"\",IFERROR(VLOOKUP(TEXT(INDIRECT(\"'\"&F4014&\"'!\"&H4014),\"0\"),Notes!$B$5:$C$100,2,FALSE),\"\"))","v":""},"2c","$K$108","$L$108"]
[19406,{"$f":"Menu!$F$29","v":"X"},{"$f":"Menu!$J$29","v":2020},{"$f":"IF(ISBLANK(INDIRECT(\"'\"&F4015&\"'!\"&G4015)),\"\",INDIRECT(\"'\"&F4015&\"'!\"&G4015))","v":""},{"$f":"IF(ISBLANK(INDIRECT(\"'\"&F4015&\"'!\"&H4015)),\"\",IFERROR(VLOOKUP(TEXT(INDIRECT(\"'\"&F4015&\"'!\"&H4015),\"0\"),Notes!$B$5:$C$100,2,FALSE),\"\"))","v":""},"2c","$O$108","$P$108"]
[19407,{"$f":"Menu!$F$29","v":"X"},{"$f":"Menu!$J$29","v":2020},{"$f":"IF(ISBLANK(INDIRECT(\"'\"&F4016&\"'!\"&G4016)),\"\",INDIRECT(\"'\"&F4016&\"'!\"&G4016))","v":""},{"$f":"IF(ISBLANK(INDIRECT(\"'\"&F4016&\"'!\"&H4016)),\"\",IFERROR(VLOOKUP(TEXT(INDIRECT(\"'\"&F4016&\"'!\"&H4016),\"0\"),Notes!$B$5:$C$100,2,FALSE),\"\"))","v":""},"2c","$M$108","$N$108"]
[19408,{"$f":"Menu!$F$29","v":"X"},{"$f":"Menu!$J$29","v":2020},{"$f":"IF(ISBLANK(INDIRECT(\"'\"&F4017&\"'!\"&G4017)),\"\",INDIRECT(\"'\"&F4017&\"'!\"&G4017))","v":""},{"$f":"IF(ISBLANK(INDIRECT(\"'\"&F4017&\"'!\"&H4017)),\"\",IFERROR(VLOOKUP(TEXT(INDIRECT(\"'\"&F4017&\"'!\"&H4017),\"0\"),Notes!$B$5:$C$100,2,FALSE),\"\"))","v":""},"2c","$Q$108","$R$108"]
[19409,{"$f":"Menu!$F$29","v":"X"},{"$f":"Menu!$J$29","v":2020},{"$f":"IF(ISBLANK(INDIRECT(\"'\"&F4018&\"'!\"&G4018)),\"\",INDIRECT(\"'\"&F4018&\"'!\"&G4018))","v":""},{"$f":"IF(ISBLANK(INDIRECT(\"'\"&F4018&\"'!\"&H4018)),\"\",IFERROR(VLOOKUP(TEXT(INDIRECT(\"'\"&F4018&\"'!\"&H4018),\"0\"),Notes!$B$5:$C$100,2,FALSE),\"\"))","v":""},"2c","$U$108","$V$108"]
[19410,{"$f":"Menu!$F$29","v":"X"},{"$f":"Menu!$J$29","v":2020},{"$f":"IF(ISBLANK(INDIRECT(\"'\"&F4019&\"'!\"&G4019)),\"\",INDIRECT(\"'\"&F4019&\"'!\"&G4019))","v":""},{"$f":"IF(ISBLANK(INDIRECT(\"'\"&F4019&\"'!\"&H4019)),\"\",IFERROR(VLOOKUP(TEXT(INDIRECT(\"'\"&F4019&\"'!\"&H4019),\"0\"),Notes!$B$5:$C$100,2,FALSE),\"\"))","v":""},"2c","$S$108","$T$108"]
[19411,{"$f":"Menu!$F$29","v":"X"},{"$f":"Menu!$J$29","v":2020},{"$f":"IF(ISBLANK(INDIRECT(\"'\"&F4020&\"'!\"&G4020)),\"\",INDIRECT(\"'\"&F4020&\"'!\"&G4020))","v":""},{"$f":"IF(ISBLANK(INDIRECT(\"'\"&F4020&\"'!\"&H4020)),\"\",IFERROR(VLOOKUP(TEXT(INDIRECT(\"'\"&F4020&\"'!\"&H4020),\"0\"),Notes!$B$5:$C$100,2,FALSE),\"\"))","v":""},"2c","$W$108","$X$108"]
[19412,{"$f":"Menu!$F$29","v":"X"},{"$f":"Menu!$J$29","v":2020},{"$f":"IF(ISBLANK(INDIRECT(\"'\"&F4021&\"'!\"&G4021)),\"\",INDIRECT(\"'\"&F4021&\"'!\"&G4021))","v":""},{"$f":"IF(ISBLANK(INDIRECT(\"'\"&F4021&\"'!\"&H4021)),\"\",IFERROR(VLOOKUP(TEXT(INDIRECT(\"'\"&F4021&\"'!\"&H4021),\"0\"),Notes!$B$5:$C$100,2,FALSE),\"\"))","v":""},"2c","$AA$108","$AB$108"]
[19413,{"$f":"Menu!$F$29","v":"X"},{"$f":"Menu!$J$29","v":2020},{"$f":"IF(ISBLANK(INDIRECT(\"'\"&F4022&\"'!\"&G4022)),\"\",INDIRECT(\"'\"&F4022&\"'!\"&G4022))","v":""},{"$f":"IF(ISBLANK(INDIRECT(\"'\"&F4022&\"'!\"&H4022)),\"\",IFERROR(VLOOKUP(TEXT(INDIRECT(\"'\"&F4022&\"'!\"&H4022),\"0\"),Notes!$B$5:$C$100,2,FALSE),\"\"))","v":""},"2c","$Y$108","$Z$108"]
[19414,{"$f":"Menu!$F$29","v":"X"},{"$f":"Menu!$J$29","v":2020},{"$f":"IF(ISBLANK(INDIRECT(\"'\"&F4023&\"'!\"&G4023)),\"\",INDIRECT(\"'\"&F4023&\"'!\"&G4023))","v":""},{"$f":"IF(ISBLANK(INDIRECT(\"'\"&F4023&\"'!\"&H4023)),\"\",IFERROR(VLOOKUP(TEXT(INDIRECT(\"'\"&F4023&\"'!\"&H4023),\"0\"),Notes!$B$5:$C$100,2,FALSE),\"\"))","v":""},"2e","$BG$109","$BH$109"]
[19415,{"$f":"Menu!$F$29","v":"X"},{"$f":"Menu!$J$29","v":2020},{"$f":"IF(ISBLANK(INDIRECT(\"'\"&F4024&\"'!\"&G4024)),\"\",INDIRECT(\"'\"&F4024&\"'!\"&G4024))","v":""},{"$f":"IF(ISBLANK(INDIRECT(\"'\"&F4024&\"'!\"&H4024)),\"\",IFERROR(VLOOKUP(TEXT(INDIRECT(\"'\"&F4024&\"'!\"&H4024),\"0\"),Notes!$B$5:$C$100,2,FALSE),\"\"))","v":""},"2e","$BK$109","$BL$109"]
[19416,{"$f":"Menu!$F$29","v":"X"},{"$f":"Menu!$J$29","v":2020},{"$f":"IF(ISBLANK(INDIRECT(\"'\"&F4025&\"'!\"&G4025)),\"\",INDIRECT(\"'\"&F4025&\"'!\"&G4025))","v":""},{"$f":"IF(ISBLANK(INDIRECT(\"'\"&F4025&\"'!\"&H4025)),\"\",IFERROR(VLOOKUP(TEXT(INDIRECT(\"'\"&F4025&\"'!\"&H4025),\"0\"),Notes!$B$5:$C$100,2,FALSE),\"\"))","v":""},"2e","$BI$109","$BJ$109"]
[19417,{"$f":"Menu!$F$29","v":"X"},{"$f":"Menu!$J$29","v":2020},{"$f":"IF(ISBLANK(INDIRECT(\"'\"&F4026&\"'!\"&G4026)),\"\",INDIRECT(\"'\"&F4026&\"'!\"&G4026))","v":""},{"$f":"IF(ISBLANK(INDIRECT(\"'\"&F4026&\"'!\"&H4026)),\"\",IFERROR(VLOOKUP(TEXT(INDIRECT(\"'\"&F4026&\"'!\"&H4026),\"0\"),Notes!$B$5:$C$100,2,FALSE),\"\"))","v":""},"2e","$E$109","$F$109"]
[19418,{"$f":"Menu!$F$29","v":"X"},{"$f":"Menu!$J$29","v":2020},{"$f":"IF(ISBLANK(INDIRECT(\"'\"&F4027&\"'!\"&G4027)),\"\",INDIRECT(\"'\"&F4027&\"'!\"&G4027))","v":""},{"$f":"IF(ISBLANK(INDIRECT(\"'\"&F4027&\"'!\"&H4027)),\"\",IFERROR(VLOOKUP(TEXT(INDIRECT(\"'\"&F4027&\"'!\"&H4027),\"0\"),Notes!$B$5:$C$100,2,FALSE),\"\"))","v":""},"2e","$I$109","$J$109"]
[19419,{"$f":"Menu!$F$29","v":"X"},{"$f":"Menu!$J$29","v":2020},{"$f":"IF(ISBLANK(INDIRECT(\"'\"&F4028&\"'!\"&G4028)),\"\",INDIRECT(\"'\"&F4028&\"'!\"&G4028))","v":""},{"$f":"IF(ISBLANK(INDIRECT(\"'\"&F4028&\"'!\"&H4028)),\"\",IFERROR(VLOOKUP(TEXT(INDIRECT(\"'\"&F4028&\"'!\"&H4028),\"0\"),Notes!$B$5:$C$100,2,FALSE),\"\"))","v":""},"2e","$G$109","$H$109"]
[19420,{"$f":"Menu!$F$29","v":"X"},{"$f":"Menu!$J$29","v":2020},{"$f":"IF(ISBLANK(INDIRECT(\"'\"&F4029&\"'!\"&G4029)),\"\",INDIRECT(\"'\"&F4029&\"'!\"&G4029))","v":""},{"$f":"IF(ISBLANK(INDIRECT(\"'\"&F4029&\"'!\"&H4029)),\"\",IFERROR(VLOOKUP(TEXT(INDIRECT(\"'\"&F4029&\"'!\"&H4029),\"0\"),Notes!$B$5:$C$100,2,FALSE),\"\"))","v":""},"2e","$K$109","$L$109"]
[19421,{"$f":"Menu!$F$29","v":"X"},{"$f":"Menu!$J$29","v":2020},{"$f":"IF(ISBLANK(INDIRECT(\"'\"&F4030&\"'!\"&G4030)),\"\",INDIRECT(\"'\"&F4030&\"'!\"&G4030))","v":""},{"$f":"IF(ISBLANK(INDIRECT(\"'\"&F4030&\"'!\"&H4030)),\"\",IFERROR(VLOOKUP(TEXT(INDIRECT(\"'\"&F4030&\"'!\"&H4030),\"0\"),Notes!$B$5:$C$100,2,FALSE),\"\"))","v":""},"2e","$O$109","$P$109"]
[19422,{"$f":"Menu!$F$29","v":"X"},{"$f":"Menu!$J$29","v":2020},{"$f":"IF(ISBLANK(INDIRECT(\"'\"&F4031&\"'!\"&G4031)),\"\",INDIRECT(\"'\"&F4031&\"'!\"&G4031))","v":""},{"$f":"IF(ISBLANK(INDIRECT(\"'\"&F4031&\"'!\"&H4031)),\"\",IFERROR(VLOOKUP(TEXT(INDIRECT(\"'\"&F4031&\"'!\"&H4031),\"0\"),Notes!$B$5:$C$100,2,FALSE),\"\"))","v":""},"2e","$M$109","$N$109"]
[19423,{"$f":"Menu!$F$29","v":"X"},{"$f":"Menu!$J$29","v":2020},{"$f":"IF(ISBLANK(INDIRECT(\"'\"&F4032&\"'!\"&G4032)),\"\",INDIRECT(\"'\"&F4032&\"'!\"&G4032))","v":""},{"$f":"IF(ISBLANK(INDIRECT(\"'\"&F4032&\"'!\"&H4032)),\"\",IFERROR(VLOOKUP(TEXT(INDIRECT(\"'\"&F4032&\"'!\"&H4032),\"0\"),Notes!$B$5:$C$100,2,FALSE),\"\"))","v":""},"2e","$Q$109","$R$109"]
[19424,{"$f":"Menu!$F$29","v":"X"},{"$f":"Menu!$J$29","v":2020},{"$f":"IF(ISBLANK(INDIRECT(\"'\"&F4033&\"'!\"&G4033)),\"\",INDIRECT(\"'\"&F4033&\"'!\"&G4033))","v":""},{"$f":"IF(ISBLANK(INDIRECT(\"'\"&F4033&\"'!\"&H4033)),\"\",IFERROR(VLOOKUP(TEXT(INDIRECT(\"'\"&F4033&\"'!\"&H4033),\"0\"),Notes!$B$5:$C$100,2,FALSE),\"\"))","v":""},"2e","$U$109","$V$109"]
[19425,{"$f":"Menu!$F$29","v":"X"},{"$f":"Menu!$J$29","v":2020},{"$f":"IF(ISBLANK(INDIRECT(\"'\"&F4034&\"'!\"&G4034)),\"\",INDIRECT(\"'\"&F4034&\"'!\"&G4034))","v":""},{"$f":"IF(ISBLANK(INDIRECT(\"'\"&F4034&\"'!\"&H4034)),\"\",IFERROR(VLOOKUP(TEXT(INDIRECT(\"'\"&F4034&\"'!\"&H4034),\"0\"),Notes!$B$5:$C$100,2,FALSE),\"\"))","v":""},"2e","$S$109",{"$f":"IF(LEN(TRIM(MID(G4034,4,10)))-LEN(SUBSTITUTE(TRIM(MID(G4034,4,10)),\"$\",\"\"))=0,\"$\"&CHAR(CODE(MID(G4034,2,1))+1)&\"$\"&TRIM(MID(G4034,4,10)),\"$\"&MID(G4034,2,1)&CHAR(CODE(MID(G4034,3,1))+1)&\"$\"&TRIM(MID(G4034,5,11)))","v":"$T$109"}]
[19426,{"$f":"Menu!$F$29","v":"X"},{"$f":"Menu!$J$29","v":2020},{"$f":"IF(ISBLANK(INDIRECT(\"'\"&F4035&\"'!\"&G4035)),\"\",INDIRECT(\"'\"&F4035&\"'!\"&G4035))","v":""},{"$f":"IF(ISBLANK(INDIRECT(\"'\"&F4035&\"'!\"&H4035)),\"\",IFERROR(VLOOKUP(TEXT(INDIRECT(\"'\"&F4035&\"'!\"&H4035),\"0\"),Notes!$B$5:$C$100,2,FALSE),\"\"))","v":""},"2e","$W$109","$X$109"]
[19427,{"$f":"Menu!$F$29","v":"X"},{"$f":"Menu!$J$29","v":2020},{"$f":"IF(ISBLANK(INDIRECT(\"'\"&F4036&\"'!\"&G4036)),\"\",INDIRECT(\"'\"&F4036&\"'!\"&G4036))","v":""},{"$f":"IF(ISBLANK(INDIRECT(\"'\"&F4036&\"'!\"&H4036)),\"\",IFERROR(VLOOKUP(TEXT(INDIRECT(\"'\"&F4036&\"'!\"&H4036),\"0\"),Notes!$B$5:$C$100,2,FALSE),\"\"))","v":""},"2e","$AA$109","$AB$109"]
[19428,{"$f":"Menu!$F$29","v":"X"},{"$f":"Menu!$J$29","v":2020},{"$f":"IF(ISBLANK(INDIRECT(\"'\"&F4037&\"'!\"&G4037)),\"\",INDIRECT(\"'\"&F4037&\"'!\"&G4037))","v":""},{"$f":"IF(ISBLANK(INDIRECT(\"'\"&F4037&\"'!\"&H4037)),\"\",IFERROR(VLOOKUP(TEXT(INDIRECT(\"'\"&F4037&\"'!\"&H4037),\"0\"),Notes!$B$5:$C$100,2,FALSE),\"\"))","v":""},"2e","$Y$109","$Z$109"]
[19429,{"$f":"Menu!$F$29","v":"X"},{"$f":"Menu!$J$29","v":2020},{"$f":"IF(ISBLANK(INDIRECT(\"'\"&F4038&\"'!\"&G4038)),\"\",INDIRECT(\"'\"&F4038&\"'!\"&G4038))","v":""},{"$f":"IF(ISBLANK(INDIRECT(\"'\"&F4038&\"'!\"&H4038)),\"\",IFERROR(VLOOKUP(TEXT(INDIRECT(\"'\"&F4038&\"'!\"&H4038),\"0\"),Notes!$B$5:$C$100,2,FALSE),\"\"))","v":""},"2e","$AC$109","$AD$109"]
[19430,{"$f":"Menu!$F$29","v":"X"},{"$f":"Menu!$J$29","v":2020},{"$f":"IF(ISBLANK(INDIRECT(\"'\"&F4039&\"'!\"&G4039)),\"\",INDIRECT(\"'\"&F4039&\"'!\"&G4039))","v":""},{"$f":"IF(ISBLANK(INDIRECT(\"'\"&F4039&\"'!\"&H4039)),\"\",IFERROR(VLOOKUP(TEXT(INDIRECT(\"'\"&F4039&\"'!\"&H4039),\"0\"),Notes!$B$5:$C$100,2,FALSE),\"\"))","v":""},"2e","$AG$109","$AH$109"]
[19431,{"$f":"Menu!$F$29","v":"X"},{"$f":"Menu!$J$29","v":2020},{"$f":"IF(ISBLANK(INDIRECT(\"'\"&F4040&\"'!\"&G4040)),\"\",INDIRECT(\"'\"&F4040&\"'!\"&G4040))","v":""},{"$f":"IF(ISBLANK(INDIRECT(\"'\"&F4040&\"'!\"&H4040)),\"\",IFERROR(VLOOKUP(TEXT(INDIRECT(\"'\"&F4040&\"'!\"&H4040),\"0\"),Notes!$B$5:$C$100,2,FALSE),\"\"))","v":""},"2e","$AE$109","$AF$109"]
[19432,{"$f":"Menu!$F$29","v":"X"},{"$f":"Menu!$J$29","v":2020},{"$f":"IF(ISBLANK(INDIRECT(\"'\"&F4041&\"'!\"&G4041)),\"\",INDIRECT(\"'\"&F4041&\"'!\"&G4041))","v":""},{"$f":"IF(ISBLANK(INDIRECT(\"'\"&F4041&\"'!\"&H4041)),\"\",IFERROR(VLOOKUP(TEXT(INDIRECT(\"'\"&F4041&\"'!\"&H4041),\"0\"),Notes!$B$5:$C$100,2,FALSE),\"\"))","v":""},"2e","$AI$109","$AJ$109"]
[19433,{"$f":"Menu!$F$29","v":"X"},{"$f":"Menu!$J$29","v":2020},{"$f":"IF(ISBLANK(INDIRECT(\"'\"&F4042&\"'!\"&G4042)),\"\",INDIRECT(\"'\"&F4042&\"'!\"&G4042))","v":""},{"$f":"IF(ISBLANK(INDIRECT(\"'\"&F4042&\"'!\"&H4042)),\"\",IFERROR(VLOOKUP(TEXT(INDIRECT(\"'\"&F4042&\"'!\"&H4042),\"0\"),Notes!$B$5:$C$100,2,FALSE),\"\"))","v":""},"2e","$AM$109","$AN$109"]
[19434,{"$f":"Menu!$F$29","v":"X"},{"$f":"Menu!$J$29","v":2020},{"$f":"IF(ISBLANK(INDIRECT(\"'\"&F4043&\"'!\"&G4043)),\"\",INDIRECT(\"'\"&F4043&\"'!\"&G4043))","v":""},{"$f":"IF(ISBLANK(INDIRECT(\"'\"&F4043&\"'!\"&H4043)),\"\",IFERROR(VLOOKUP(TEXT(INDIRECT(\"'\"&F4043&\"'!\"&H4043),\"0\"),Notes!$B$5:$C$100,2,FALSE),\"\"))","v":""},"2e","$AK$109","$AL$109"]
[19435,{"$f":"Menu!$F$29","v":"X"},{"$f":"Menu!$J$29","v":2020},{"$f":"IF(ISBLANK(INDIRECT(\"'\"&F4044&\"'!\"&G4044)),\"\",INDIRECT(\"'\"&F4044&\"'!\"&G4044))","v":""},{"$f":"IF(ISBLANK(INDIRECT(\"'\"&F4044&\"'!\"&H4044)),\"\",IFERROR(VLOOKUP(TEXT(INDIRECT(\"'\"&F4044&\"'!\"&H4044),\"0\"),Notes!$B$5:$C$100,2,FALSE),\"\"))","v":""},"2e","$AO$109","$AP$109"]
[19436,{"$f":"Menu!$F$29","v":"X"},{"$f":"Menu!$J$29","v":2020},{"$f":"IF(ISBLANK(INDIRECT(\"'\"&F4045&\"'!\"&G4045)),\"\",INDIRECT(\"'\"&F4045&\"'!\"&G4045))","v":""},{"$f":"IF(ISBLANK(INDIRECT(\"'\"&F4045&\"'!\"&H4045)),\"\",IFERROR(VLOOKUP(TEXT(INDIRECT(\"'\"&F4045&\"'!\"&H4045),\"0\"),Notes!$B$5:$C$100,2,FALSE),\"\"))","v":""},"2e","$AQ$109","$AR$109"]
[19437,{"$f":"Menu!$F$29","v":"X"},{"$f":"Menu!$J$29","v":2020},{"$f":"IF(ISBLANK(INDIRECT(\"'\"&F4046&\"'!\"&G4046)),\"\",INDIRECT(\"'\"&F4046&\"'!\"&G4046))","v":""},{"$f":"IF(ISBLANK(INDIRECT(\"'\"&F4046&\"'!\"&H4046)),\"\",IFERROR(VLOOKUP(TEXT(INDIRECT(\"'\"&F4046&\"'!\"&H4046),\"0\"),Notes!$B$5:$C$100,2,FALSE),\"\"))","v":""},"2e","$AS$109","$AT$109"]
[19438,{"$f":"Menu!$F$29","v":"X"},{"$f":"Menu!$J$29","v":2020},{"$f":"IF(ISBLANK(INDIRECT(\"'\"&F4047&\"'!\"&G4047)),\"\",INDIRECT(\"'\"&F4047&\"'!\"&G4047))","v":""},{"$f":"IF(ISBLANK(INDIRECT(\"'\"&F4047&\"'!\"&H4047)),\"\",IFERROR(VLOOKUP(TEXT(INDIRECT(\"'\"&F4047&\"'!\"&H4047),\"0\"),Notes!$B$5:$C$100,2,FALSE),\"\"))","v":""},"2e","$AU$109","$AV$109"]
[19439,{"$f":"Menu!$F$29","v":"X"},{"$f":"Menu!$J$29","v":2020},{"$f":"IF(ISBLANK(INDIRECT(\"'\"&F4048&\"'!\"&G4048)),\"\",INDIRECT(\"'\"&F4048&\"'!\"&G4048))","v":""},{"$f":"IF(ISBLANK(INDIRECT(\"'\"&F4048&\"'!\"&H4048)),\"\",IFERROR(VLOOKUP(TEXT(INDIRECT(\"'\"&F4048&\"'!\"&H4048),\"0\"),Notes!$B$5:$C$100,2,FALSE),\"\"))","v":""},"2e","$AY$109","$AZ$109"]
[19440,{"$f":"Menu!$F$29","v":"X"},{"$f":"Menu!$J$29","v":2020},{"$f":"IF(ISBLANK(INDIRECT(\"'\"&F4049&\"'!\"&G4049)),\"\",INDIRECT(\"'\"&F4049&\"'!\"&G4049))","v":""},{"$f":"IF(ISBLANK(INDIRECT(\"'\"&F4049&\"'!\"&H4049)),\"\",IFERROR(VLOOKUP(TEXT(INDIRECT(\"'\"&F4049&\"'!\"&H4049),\"0\"),Notes!$B$5:$C$100,2,FALSE),\"\"))","v":""},"2e","$AW$109","$AX$109"]
[19441,{"$f":"Menu!$F$29","v":"X"},{"$f":"Menu!$J$29","v":2020},{"$f":"IF(ISBLANK(INDIRECT(\"'\"&F4050&\"'!\"&G4050)),\"\",INDIRECT(\"'\"&F4050&\"'!\"&G4050))","v":""},{"$f":"IF(ISBLANK(INDIRECT(\"'\"&F4050&\"'!\"&H4050)),\"\",IFERROR(VLOOKUP(TEXT(INDIRECT(\"'\"&F4050&\"'!\"&H4050),\"0\"),Notes!$B$5:$C$100,2,FALSE),\"\"))","v":""},"2e","$BA$109","$BB$109"]
[19442,{"$f":"Menu!$F$29","v":"X"},{"$f":"Menu!$J$29","v":2020},{"$f":"IF(ISBLANK(INDIRECT(\"'\"&F4051&\"'!\"&G4051)),\"\",INDIRECT(\"'\"&F4051&\"'!\"&G4051))","v":""},{"$f":"IF(ISBLANK(INDIRECT(\"'\"&F4051&\"'!\"&H4051)),\"\",IFERROR(VLOOKUP(TEXT(INDIRECT(\"'\"&F4051&\"'!\"&H4051),\"0\"),Notes!$B$5:$C$100,2,FALSE),\"\"))","v":""},"2e","$BE$109","$BF$109"]
[19443,{"$f":"Menu!$F$29","v":"X"},{"$f":"Menu!$J$29","v":2020},{"$f":"IF(ISBLANK(INDIRECT(\"'\"&F4052&\"'!\"&G4052)),\"\",INDIRECT(\"'\"&F4052&\"'!\"&G4052))","v":""},{"$f":"IF(ISBLANK(INDIRECT(\"'\"&F4052&\"'!\"&H4052)),\"\",IFERROR(VLOOKUP(TEXT(INDIRECT(\"'\"&F4052&\"'!\"&H4052),\"0\"),Notes!$B$5:$C$100,2,FALSE),\"\"))","v":""},"2e","$BC$109","$BD$109"]
[19444,{"$f":"Menu!$F$29","v":"X"},{"$f":"Menu!$J$29","v":2020},{"$f":"IF(ISBLANK(INDIRECT(\"'\"&F4053&\"'!\"&G4053)),\"\",INDIRECT(\"'\"&F4053&\"'!\"&G4053))","v":""},{"$f":"IF(ISBLANK(INDIRECT(\"'\"&F4053&\"'!\"&H4053)),\"\",IFERROR(VLOOKUP(TEXT(INDIRECT(\"'\"&F4053&\"'!\"&H4053),\"0\"),Notes!$B$5:$C$100,2,FALSE),\"\"))","v":""},"2b","$E$108","$F$108"]
[19445,{"$f":"Menu!$F$29","v":"X"},{"$f":"Menu!$J$29","v":2020},{"$f":"IF(ISBLANK(INDIRECT(\"'\"&F4054&\"'!\"&G4054)),\"\",INDIRECT(\"'\"&F4054&\"'!\"&G4054))","v":""},{"$f":"IF(ISBLANK(INDIRECT(\"'\"&F4054&\"'!\"&H4054)),\"\",IFERROR(VLOOKUP(TEXT(INDIRECT(\"'\"&F4054&\"'!\"&H4054),\"0\"),Notes!$B$5:$C$100,2,FALSE),\"\"))","v":""},"2b","$I$108","$J$108"]
[19446,{"$f":"Menu!$F$29","v":"X"},{"$f":"Menu!$J$29","v":2020},{"$f":"IF(ISBLANK(INDIRECT(\"'\"&F4055&\"'!\"&G4055)),\"\",INDIRECT(\"'\"&F4055&\"'!\"&G4055))","v":""},{"$f":"IF(ISBLANK(INDIRECT(\"'\"&F4055&\"'!\"&H4055)),\"\",IFERROR(VLOOKUP(TEXT(INDIRECT(\"'\"&F4055&\"'!\"&H4055),\"0\"),Notes!$B$5:$C$100,2,FALSE),\"\"))","v":""},"2b","$G$108","$H$108"]
[19447,{"$f":"Menu!$F$29","v":"X"},{"$f":"Menu!$J$29","v":2020},{"$f":"IF(ISBLANK(INDIRECT(\"'\"&F4056&\"'!\"&G4056)),\"\",INDIRECT(\"'\"&F4056&\"'!\"&G4056))","v":""},{"$f":"IF(ISBLANK(INDIRECT(\"'\"&F4056&\"'!\"&H4056)),\"\",IFERROR(VLOOKUP(TEXT(INDIRECT(\"'\"&F4056&\"'!\"&H4056),\"0\"),Notes!$B$5:$C$100,2,FALSE),\"\"))","v":""},"2a","$G$108","$H$108"]
[19448,{"$f":"Menu!$F$29","v":"X"},{"$f":"Menu!$J$29","v":2020},{"$f":"IF(ISBLANK(INDIRECT(\"'\"&F4057&\"'!\"&G4057)),\"\",INDIRECT(\"'\"&F4057&\"'!\"&G4057))","v":""},{"$f":"IF(ISBLANK(INDIRECT(\"'\"&F4057&\"'!\"&H4057)),\"\",IFERROR(VLOOKUP(TEXT(INDIRECT(\"'\"&F4057&\"'!\"&H4057),\"0\"),Notes!$B$5:$C$100,2,FALSE),\"\"))","v":""},"2b","$W$108","$X$108"]
[19449,{"$f":"Menu!$F$29","v":"X"},{"$f":"Menu!$J$29","v":2020},{"$f":"IF(ISBLANK(INDIRECT(\"'\"&F4058&\"'!\"&G4058)),\"\",INDIRECT(\"'\"&F4058&\"'!\"&G4058))","v":""},{"$f":"IF(ISBLANK(INDIRECT(\"'\"&F4058&\"'!\"&H4058)),\"\",IFERROR(VLOOKUP(TEXT(INDIRECT(\"'\"&F4058&\"'!\"&H4058),\"0\"),Notes!$B$5:$C$100,2,FALSE),\"\"))","v":""},"2b","$AA$108","$AB$108"]
[19450,{"$f":"Menu!$F$29","v":"X"},{"$f":"Menu!$J$29","v":2020},{"$f":"IF(ISBLANK(INDIRECT(\"'\"&F4059&\"'!\"&G4059)),\"\",INDIRECT(\"'\"&F4059&\"'!\"&G4059))","v":""},{"$f":"IF(ISBLANK(INDIRECT(\"'\"&F4059&\"'!\"&H4059)),\"\",IFERROR(VLOOKUP(TEXT(INDIRECT(\"'\"&F4059&\"'!\"&H4059),\"0\"),Notes!$B$5:$C$100,2,FALSE),\"\"))","v":""},"2b","$Y$108","$Z$108"]
[19451,{"$f":"Menu!$F$29","v":"X"},{"$f":"Menu!$J$29","v":2020},{"$f":"IF(ISBLANK(INDIRECT(\"'\"&F4060&\"'!\"&G4060)),\"\",INDIRECT(\"'\"&F4060&\"'!\"&G4060))","v":""},{"$f":"IF(ISBLANK(INDIRECT(\"'\"&F4060&\"'!\"&H4060)),\"\",IFERROR(VLOOKUP(TEXT(INDIRECT(\"'\"&F4060&\"'!\"&H4060),\"0\"),Notes!$B$5:$C$100,2,FALSE),\"\"))","v":""},"2d","$AC$108","$AD$108"]
[19452,{"$f":"Menu!$F$29","v":"X"},{"$f":"Menu!$J$29","v":2020},{"$f":"IF(ISBLANK(INDIRECT(\"'\"&F4061&\"'!\"&G4061)),\"\",INDIRECT(\"'\"&F4061&\"'!\"&G4061))","v":""},{"$f":"IF(ISBLANK(INDIRECT(\"'\"&F4061&\"'!\"&H4061)),\"\",IFERROR(VLOOKUP(TEXT(INDIRECT(\"'\"&F4061&\"'!\"&H4061),\"0\"),Notes!$B$5:$C$100,2,FALSE),\"\"))","v":""},"2d","$AG$108","$AH$108"]
[19453,{"$f":"Menu!$F$29","v":"X"},{"$f":"Menu!$J$29","v":2020},{"$f":"IF(ISBLANK(INDIRECT(\"'\"&F4062&\"'!\"&G4062)),\"\",INDIRECT(\"'\"&F4062&\"'!\"&G4062))","v":""},{"$f":"IF(ISBLANK(INDIRECT(\"'\"&F4062&\"'!\"&H4062)),\"\",IFERROR(VLOOKUP(TEXT(INDIRECT(\"'\"&F4062&\"'!\"&H4062),\"0\"),Notes!$B$5:$C$100,2,FALSE),\"\"))","v":""},"2d","$AE$108","$AF$108"]
[19454,{"$f":"Menu!$F$29","v":"X"},{"$f":"Menu!$J$29","v":2020},{"$f":"IF(ISBLANK(INDIRECT(\"'\"&F4063&\"'!\"&G4063)),\"\",INDIRECT(\"'\"&F4063&\"'!\"&G4063))","v":""},{"$f":"IF(ISBLANK(INDIRECT(\"'\"&F4063&\"'!\"&H4063)),\"\",IFERROR(VLOOKUP(TEXT(INDIRECT(\"'\"&F4063&\"'!\"&H4063),\"0\"),Notes!$B$5:$C$100,2,FALSE),\"\"))","v":""},"2d","$W$108","$X$108"]
[19455,{"$f":"Menu!$F$29","v":"X"},{"$f":"Menu!$J$29","v":2020},{"$f":"IF(ISBLANK(INDIRECT(\"'\"&F4064&\"'!\"&G4064)),\"\",INDIRECT(\"'\"&F4064&\"'!\"&G4064))","v":""},{"$f":"IF(ISBLANK(INDIRECT(\"'\"&F4064&\"'!\"&H4064)),\"\",IFERROR(VLOOKUP(TEXT(INDIRECT(\"'\"&F4064&\"'!\"&H4064),\"0\"),Notes!$B$5:$C$100,2,FALSE),\"\"))","v":""},"2d","$AA$108","$AB$108"]
[19456,{"$f":"Menu!$F$29","v":"X"},{"$f":"Menu!$J$29","v":2020},{"$f":"IF(ISBLANK(INDIRECT(\"'\"&F4065&\"'!\"&G4065)),\"\",INDIRECT(\"'\"&F4065&\"'!\"&G4065))","v":""},{"$f":"IF(ISBLANK(INDIRECT(\"'\"&F4065&\"'!\"&H4065)),\"\",IFERROR(VLOOKUP(TEXT(INDIRECT(\"'\"&F4065&\"'!\"&H4065),\"0\"),Notes!$B$5:$C$100,2,FALSE),\"\"))","v":""},"2d","$Y$108","$Z$108"]
[19457,{"$f":"Menu!$F$29","v":"X"},{"$f":"Menu!$J$29","v":2020},{"$f":"IF(ISBLANK(INDIRECT(\"'\"&F4066&\"'!\"&G4066)),\"\",INDIRECT(\"'\"&F4066&\"'!\"&G4066))","v":""},{"$f":"IF(ISBLANK(INDIRECT(\"'\"&F4066&\"'!\"&H4066)),\"\",IFERROR(VLOOKUP(TEXT(INDIRECT(\"'\"&F4066&\"'!\"&H4066),\"0\"),Notes!$B$5:$C$100,2,FALSE),\"\"))","v":""},"2d","$E$108","$F$108"]
[19458,{"$f":"Menu!$F$29","v":"X"},{"$f":"Menu!$J$29","v":2020},{"$f":"IF(ISBLANK(INDIRECT(\"'\"&F4067&\"'!\"&G4067)),\"\",INDIRECT(\"'\"&F4067&\"'!\"&G4067))","v":""},{"$f":"IF(ISBLANK(INDIRECT(\"'\"&F4067&\"'!\"&H4067)),\"\",IFERROR(VLOOKUP(TEXT(INDIRECT(\"'\"&F4067&\"'!\"&H4067),\"0\"),Notes!$B$5:$C$100,2,FALSE),\"\"))","v":""},"2d","$I$108","$J$108"]
[19459,{"$f":"Menu!$F$29","v":"X"},{"$f":"Menu!$J$29","v":2020},{"$f":"IF(ISBLANK(INDIRECT(\"'\"&F4068&\"'!\"&G4068)),\"\",INDIRECT(\"'\"&F4068&\"'!\"&G4068))","v":""},{"$f":"IF(ISBLANK(INDIRECT(\"'\"&F4068&\"'!\"&H4068)),\"\",IFERROR(VLOOKUP(TEXT(INDIRECT(\"'\"&F4068&\"'!\"&H4068),\"0\"),Notes!$B$5:$C$100,2,FALSE),\"\"))","v":""},"2d","$G$108","$H$108"]
[19460,{"$f":"Menu!$F$29","v":"X"},{"$f":"Menu!$J$29","v":2020},{"$f":"IF(ISBLANK(INDIRECT(\"'\"&F4069&\"'!\"&G4069)),\"\",INDIRECT(\"'\"&F4069&\"'!\"&G4069))","v":""},{"$f":"IF(ISBLANK(INDIRECT(\"'\"&F4069&\"'!\"&H4069)),\"\",IFERROR(VLOOKUP(TEXT(INDIRECT(\"'\"&F4069&\"'!\"&H4069),\"0\"),Notes!$B$5:$C$100,2,FALSE),\"\"))","v":""},"2a","$U$108","$V$108"]
[19461,{"$f":"Menu!$F$29","v":"X"},{"$f":"Menu!$J$29","v":2020},{"$f":"IF(ISBLANK(INDIRECT(\"'\"&F4070&\"'!\"&G4070)),\"\",INDIRECT(\"'\"&F4070&\"'!\"&G4070))","v":""},{"$f":"IF(ISBLANK(INDIRECT(\"'\"&F4070&\"'!\"&H4070)),\"\",IFERROR(VLOOKUP(TEXT(INDIRECT(\"'\"&F4070&\"'!\"&H4070),\"0\"),Notes!$B$5:$C$100,2,FALSE),\"\"))","v":""},"2a","$S$108","$T$108"]
[19462,{"$f":"Menu!$F$29","v":"X"},{"$f":"Menu!$J$29","v":2020},{"$f":"IF(ISBLANK(INDIRECT(\"'\"&F4071&\"'!\"&G4071)),\"\",INDIRECT(\"'\"&F4071&\"'!\"&G4071))","v":""},{"$f":"IF(ISBLANK(INDIRECT(\"'\"&F4071&\"'!\"&H4071)),\"\",IFERROR(VLOOKUP(TEXT(INDIRECT(\"'\"&F4071&\"'!\"&H4071),\"0\"),Notes!$B$5:$C$100,2,FALSE),\"\"))","v":""},"2a","$Q$108","$R$108"]
[19463,{"$f":"Menu!$F$29","v":"X"},{"$f":"Menu!$J$29","v":2020},{"$f":"IF(ISBLANK(INDIRECT(\"'\"&F4072&\"'!\"&G4072)),\"\",INDIRECT(\"'\"&F4072&\"'!\"&G4072))","v":""},{"$f":"IF(ISBLANK(INDIRECT(\"'\"&F4072&\"'!\"&H4072)),\"\",IFERROR(VLOOKUP(TEXT(INDIRECT(\"'\"&F4072&\"'!\"&H4072),\"0\"),Notes!$B$5:$C$100,2,FALSE),\"\"))","v":""},"2d","$K$108","$L$108"]
[19464,{"$f":"Menu!$F$29","v":"X"},{"$f":"Menu!$J$29","v":2020},{"$f":"IF(ISBLANK(INDIRECT(\"'\"&F4073&\"'!\"&G4073)),\"\",INDIRECT(\"'\"&F4073&\"'!\"&G4073))","v":""},{"$f":"IF(ISBLANK(INDIRECT(\"'\"&F4073&\"'!\"&H4073)),\"\",IFERROR(VLOOKUP(TEXT(INDIRECT(\"'\"&F4073&\"'!\"&H4073),\"0\"),Notes!$B$5:$C$100,2,FALSE),\"\"))","v":""},"2d","$O$108","$P$108"]
[19465,{"$f":"Menu!$F$29","v":"X"},{"$f":"Menu!$J$29","v":2020},{"$f":"IF(ISBLANK(INDIRECT(\"'\"&F4074&\"'!\"&G4074)),\"\",INDIRECT(\"'\"&F4074&\"'!\"&G4074))","v":""},{"$f":"IF(ISBLANK(INDIRECT(\"'\"&F4074&\"'!\"&H4074)),\"\",IFERROR(VLOOKUP(TEXT(INDIRECT(\"'\"&F4074&\"'!\"&H4074),\"0\"),Notes!$B$5:$C$100,2,FALSE),\"\"))","v":""},"2d","$M$108","$N$108"]
[19466,{"$f":"Menu!$F$29","v":"X"},{"$f":"Menu!$J$29","v":2020},{"$f":"IF(ISBLANK(INDIRECT(\"'\"&F4075&\"'!\"&G4075)),\"\",INDIRECT(\"'\"&F4075&\"'!\"&G4075))","v":""},{"$f":"IF(ISBLANK(INDIRECT(\"'\"&F4075&\"'!\"&H4075)),\"\",IFERROR(VLOOKUP(TEXT(INDIRECT(\"'\"&F4075&\"'!\"&H4075),\"0\"),Notes!$B$5:$C$100,2,FALSE),\"\"))","v":""},"2d","$Q$108","$R$108"]
[19467,{"$f":"Menu!$F$29","v":"X"},{"$f":"Menu!$J$29","v":2020},{"$f":"IF(ISBLANK(INDIRECT(\"'\"&F4076&\"'!\"&G4076)),\"\",INDIRECT(\"'\"&F4076&\"'!\"&G4076))","v":""},{"$f":"IF(ISBLANK(INDIRECT(\"'\"&F4076&\"'!\"&H4076)),\"\",IFERROR(VLOOKUP(TEXT(INDIRECT(\"'\"&F4076&\"'!\"&H4076),\"0\"),Notes!$B$5:$C$100,2,FALSE),\"\"))","v":""},"2d","$U$108","$V$108"]
[19468,{"$f":"Menu!$F$29","v":"X"},{"$f":"Menu!$J$29","v":2020},{"$f":"IF(ISBLANK(INDIRECT(\"'\"&F4077&\"'!\"&G4077)),\"\",INDIRECT(\"'\"&F4077&\"'!\"&G4077))","v":""},{"$f":"IF(ISBLANK(INDIRECT(\"'\"&F4077&\"'!\"&H4077)),\"\",IFERROR(VLOOKUP(TEXT(INDIRECT(\"'\"&F4077&\"'!\"&H4077),\"0\"),Notes!$B$5:$C$100,2,FALSE),\"\"))","v":""},"2d","$S$108","$T$108"]
[19469,{"$f":"Menu!$F$29","v":"X"},{"$f":"Menu!$J$29","v":2020},{"$f":"IF(ISBLANK(INDIRECT(\"'\"&F4078&\"'!\"&G4078)),\"\",INDIRECT(\"'\"&F4078&\"'!\"&G4078))","v":""},{"$f":"IF(ISBLANK(INDIRECT(\"'\"&F4078&\"'!\"&H4078)),\"\",IFERROR(VLOOKUP(TEXT(INDIRECT(\"'\"&F4078&\"'!\"&H4078),\"0\"),Notes!$B$5:$C$100,2,FALSE),\"\"))","v":""},"2a","$O$108","$P$108"]
[19470,{"$f":"Menu!$F$29","v":"X"},{"$f":"Menu!$J$29","v":2020},{"$f":"IF(ISBLANK(INDIRECT(\"'\"&F4079&\"'!\"&G4079)),\"\",INDIRECT(\"'\"&F4079&\"'!\"&G4079))","v":""},{"$f":"IF(ISBLANK(INDIRECT(\"'\"&F4079&\"'!\"&H4079)),\"\",IFERROR(VLOOKUP(TEXT(INDIRECT(\"'\"&F4079&\"'!\"&H4079),\"0\"),Notes!$B$5:$C$100,2,FALSE),\"\"))","v":""},"2a","$M$108","$N$108"]
[19471,{"$f":"Menu!$F$29","v":"X"},{"$f":"Menu!$J$29","v":2020},{"$f":"IF(ISBLANK(INDIRECT(\"'\"&F4080&\"'!\"&G4080)),\"\",INDIRECT(\"'\"&F4080&\"'!\"&G4080))","v":""},{"$f":"IF(ISBLANK(INDIRECT(\"'\"&F4080&\"'!\"&H4080)),\"\",IFERROR(VLOOKUP(TEXT(INDIRECT(\"'\"&F4080&\"'!\"&H4080),\"0\"),Notes!$B$5:$C$100,2,FALSE),\"\"))","v":""},"2a","$K$108","$L$108"]
[19472,{"$f":"Menu!$F$29","v":"X"},{"$f":"Menu!$J$29","v":2020},{"$f":"IF(ISBLANK(INDIRECT(\"'\"&F4081&\"'!\"&G4081)),\"\",INDIRECT(\"'\"&F4081&\"'!\"&G4081))","v":""},{"$f":"IF(ISBLANK(INDIRECT(\"'\"&F4081&\"'!\"&H4081)),\"\",IFERROR(VLOOKUP(TEXT(INDIRECT(\"'\"&F4081&\"'!\"&H4081),\"0\"),Notes!$B$5:$C$100,2,FALSE),\"\"))","v":""},"2a","$E$108","$F$108"]
[19473,{"$f":"Menu!$F$29","v":"X"},{"$f":"Menu!$J$29","v":2020},{"$f":"IF(ISBLANK(INDIRECT(\"'\"&F4082&\"'!\"&G4082)),\"\",INDIRECT(\"'\"&F4082&\"'!\"&G4082))","v":""},{"$f":"IF(ISBLANK(INDIRECT(\"'\"&F4082&\"'!\"&H4082)),\"\",IFERROR(VLOOKUP(TEXT(INDIRECT(\"'\"&F4082&\"'!\"&H4082),\"0\"),Notes!$B$5:$C$100,2,FALSE),\"\"))","v":""},"2b","$K$109","$L$109"]
[19474,{"$f":"Menu!$F$29","v":"X"},{"$f":"Menu!$J$29","v":2020},{"$f":"IF(ISBLANK(INDIRECT(\"'\"&F4083&\"'!\"&G4083)),\"\",INDIRECT(\"'\"&F4083&\"'!\"&G4083))","v":""},{"$f":"IF(ISBLANK(INDIRECT(\"'\"&F4083&\"'!\"&H4083)),\"\",IFERROR(VLOOKUP(TEXT(INDIRECT(\"'\"&F4083&\"'!\"&H4083),\"0\"),Notes!$B$5:$C$100,2,FALSE),\"\"))","v":""},"2b","$O$109","$P$109"]
[19475,{"$f":"Menu!$F$29","v":"X"},{"$f":"Menu!$J$29","v":2020},{"$f":"IF(ISBLANK(INDIRECT(\"'\"&F4084&\"'!\"&G4084)),\"\",INDIRECT(\"'\"&F4084&\"'!\"&G4084))","v":""},{"$f":"IF(ISBLANK(INDIRECT(\"'\"&F4084&\"'!\"&H4084)),\"\",IFERROR(VLOOKUP(TEXT(INDIRECT(\"'\"&F4084&\"'!\"&H4084),\"0\"),Notes!$B$5:$C$100,2,FALSE),\"\"))","v":""},"2b","$M$109","$N$109"]
[19476,{"$f":"Menu!$F$29","v":"X"},{"$f":"Menu!$J$29","v":2020},{"$f":"IF(ISBLANK(INDIRECT(\"'\"&F4085&\"'!\"&G4085)),\"\",INDIRECT(\"'\"&F4085&\"'!\"&G4085))","v":""},{"$f":"IF(ISBLANK(INDIRECT(\"'\"&F4085&\"'!\"&H4085)),\"\",IFERROR(VLOOKUP(TEXT(INDIRECT(\"'\"&F4085&\"'!\"&H4085),\"0\"),Notes!$B$5:$C$100,2,FALSE),\"\"))","v":""},"2b","$Q$109","$R$109"]
[19477,{"$f":"Menu!$F$29","v":"X"},{"$f":"Menu!$J$29","v":2020},{"$f":"IF(ISBLANK(INDIRECT(\"'\"&F4086&\"'!\"&G4086)),\"\",INDIRECT(\"'\"&F4086&\"'!\"&G4086))","v":""},{"$f":"IF(ISBLANK(INDIRECT(\"'\"&F4086&\"'!\"&H4086)),\"\",IFERROR(VLOOKUP(TEXT(INDIRECT(\"'\"&F4086&\"'!\"&H4086),\"0\"),Notes!$B$5:$C$100,2,FALSE),\"\"))","v":""},"2b","$U$109","$V$109"]
[19478,{"$f":"Menu!$F$29","v":"X"},{"$f":"Menu!$J$29","v":2020},{"$f":"IF(ISBLANK(INDIRECT(\"'\"&F4087&\"'!\"&G4087)),\"\",INDIRECT(\"'\"&F4087&\"'!\"&G4087))","v":""},{"$f":"IF(ISBLANK(INDIRECT(\"'\"&F4087&\"'!\"&H4087)),\"\",IFERROR(VLOOKUP(TEXT(INDIRECT(\"'\"&F4087&\"'!\"&H4087),\"0\"),Notes!$B$5:$C$100,2,FALSE),\"\"))","v":""},"2b","$S$109","$T$109"]
[19479,{"$f":"Menu!$F$29","v":"X"},{"$f":"Menu!$J$29","v":2020},{"$f":"IF(ISBLANK(INDIRECT(\"'\"&F4088&\"'!\"&G4088)),\"\",INDIRECT(\"'\"&F4088&\"'!\"&G4088))","v":""},{"$f":"IF(ISBLANK(INDIRECT(\"'\"&F4088&\"'!\"&H4088)),\"\",IFERROR(VLOOKUP(TEXT(INDIRECT(\"'\"&F4088&\"'!\"&H4088),\"0\"),Notes!$B$5:$C$100,2,FALSE),\"\"))","v":""},"2a","$I$109","$J$109"]
[19480,{"$f":"Menu!$F$29","v":"X"},{"$f":"Menu!$J$29","v":2020},{"$f":"IF(ISBLANK(INDIRECT(\"'\"&F4089&\"'!\"&G4089)),\"\",INDIRECT(\"'\"&F4089&\"'!\"&G4089))","v":""},{"$f":"IF(ISBLANK(INDIRECT(\"'\"&F4089&\"'!\"&H4089)),\"\",IFERROR(VLOOKUP(TEXT(INDIRECT(\"'\"&F4089&\"'!\"&H4089),\"0\"),Notes!$B$5:$C$100,2,FALSE),\"\"))","v":""},"2c","$E$109","$F$109"]
[19481,{"$f":"Menu!$F$29","v":"X"},{"$f":"Menu!$J$29","v":2020},{"$f":"IF(ISBLANK(INDIRECT(\"'\"&F4090&\"'!\"&G4090)),\"\",INDIRECT(\"'\"&F4090&\"'!\"&G4090))","v":""},{"$f":"IF(ISBLANK(INDIRECT(\"'\"&F4090&\"'!\"&H4090)),\"\",IFERROR(VLOOKUP(TEXT(INDIRECT(\"'\"&F4090&\"'!\"&H4090),\"0\"),Notes!$B$5:$C$100,2,FALSE),\"\"))","v":""},"2c","$I$109","$J$109"]
[19482,{"$f":"Menu!$F$29","v":"X"},{"$f":"Menu!$J$29","v":2020},{"$f":"IF(ISBLANK(INDIRECT(\"'\"&F4091&\"'!\"&G4091)),\"\",INDIRECT(\"'\"&F4091&\"'!\"&G4091))","v":""},{"$f":"IF(ISBLANK(INDIRECT(\"'\"&F4091&\"'!\"&H4091)),\"\",IFERROR(VLOOKUP(TEXT(INDIRECT(\"'\"&F4091&\"'!\"&H4091),\"0\"),Notes!$B$5:$C$100,2,FALSE),\"\"))","v":""},"2c","$G$109","$H$109"]
[19483,{"$f":"Menu!$F$29","v":"X"},{"$f":"Menu!$J$29","v":2020},{"$f":"IF(ISBLANK(INDIRECT(\"'\"&F4092&\"'!\"&G4092)),\"\",INDIRECT(\"'\"&F4092&\"'!\"&G4092))","v":""},{"$f":"IF(ISBLANK(INDIRECT(\"'\"&F4092&\"'!\"&H4092)),\"\",IFERROR(VLOOKUP(TEXT(INDIRECT(\"'\"&F4092&\"'!\"&H4092),\"0\"),Notes!$B$5:$C$100,2,FALSE),\"\"))","v":""},"2c","$K$109","$L$109"]
[19484,{"$f":"Menu!$F$29","v":"X"},{"$f":"Menu!$J$29","v":2020},{"$f":"IF(ISBLANK(INDIRECT(\"'\"&F4093&\"'!\"&G4093)),\"\",INDIRECT(\"'\"&F4093&\"'!\"&G4093))","v":""},{"$f":"IF(ISBLANK(INDIRECT(\"'\"&F4093&\"'!\"&H4093)),\"\",IFERROR(VLOOKUP(TEXT(INDIRECT(\"'\"&F4093&\"'!\"&H4093),\"0\"),Notes!$B$5:$C$100,2,FALSE),\"\"))","v":""},"2c","$O$109","$P$109"]
[19485,{"$f":"Menu!$F$29","v":"X"},{"$f":"Menu!$J$29","v":2020},{"$f":"IF(ISBLANK(INDIRECT(\"'\"&F4094&\"'!\"&G4094)),\"\",INDIRECT(\"'\"&F4094&\"'!\"&G4094))","v":""},{"$f":"IF(ISBLANK(INDIRECT(\"'\"&F4094&\"'!\"&H4094)),\"\",IFERROR(VLOOKUP(TEXT(INDIRECT(\"'\"&F4094&\"'!\"&H4094),\"0\"),Notes!$B$5:$C$100,2,FALSE),\"\"))","v":""},"2c","$M$109","$N$109"]
[19486,{"$f":"Menu!$F$29","v":"X"},{"$f":"Menu!$J$29","v":2020},{"$f":"IF(ISBLANK(INDIRECT(\"'\"&F4095&\"'!\"&G4095)),\"\",INDIRECT(\"'\"&F4095&\"'!\"&G4095))","v":""},{"$f":"IF(ISBLANK(INDIRECT(\"'\"&F4095&\"'!\"&H4095)),\"\",IFERROR(VLOOKUP(TEXT(INDIRECT(\"'\"&F4095&\"'!\"&H4095),\"0\"),Notes!$B$5:$C$100,2,FALSE),\"\"))","v":""},"2c","$Q$109","$R$109"]
[19487,{"$f":"Menu!$F$29","v":"X"},{"$f":"Menu!$J$29","v":2020},{"$f":"IF(ISBLANK(INDIRECT(\"'\"&F4096&\"'!\"&G4096)),\"\",INDIRECT(\"'\"&F4096&\"'!\"&G4096))","v":""},{"$f":"IF(ISBLANK(INDIRECT(\"'\"&F4096&\"'!\"&H4096)),\"\",IFERROR(VLOOKUP(TEXT(INDIRECT(\"'\"&F4096&\"'!\"&H4096),\"0\"),Notes!$B$5:$C$100,2,FALSE),\"\"))","v":""},"2c","$U$109","$V$109"]
[19488,{"$f":"Menu!$F$29","v":"X"},{"$f":"Menu!$J$29","v":2020},{"$f":"IF(ISBLANK(INDIRECT(\"'\"&F4097&\"'!\"&G4097)),\"\",INDIRECT(\"'\"&F4097&\"'!\"&G4097))","v":""},{"$f":"IF(ISBLANK(INDIRECT(\"'\"&F4097&\"'!\"&H4097)),\"\",IFERROR(VLOOKUP(TEXT(INDIRECT(\"'\"&F4097&\"'!\"&H4097),\"0\"),Notes!$B$5:$C$100,2,FALSE),\"\"))","v":""},"2c","$S$109","$T$109"]
[19489,{"$f":"Menu!$F$29","v":"X"},{"$f":"Menu!$J$29","v":2020},{"$f":"IF(ISBLANK(INDIRECT(\"'\"&F4098&\"'!\"&G4098)),\"\",INDIRECT(\"'\"&F4098&\"'!\"&G4098))","v":""},{"$f":"IF(ISBLANK(INDIRECT(\"'\"&F4098&\"'!\"&H4098)),\"\",IFERROR(VLOOKUP(TEXT(INDIRECT(\"'\"&F4098&\"'!\"&H4098),\"0\"),Notes!$B$5:$C$100,2,FALSE),\"\"))","v":""},"2c","$W$109",{"$f":"IF(LEN(TRIM(MID(G4098,4,10)))-LEN(SUBSTITUTE(TRIM(MID(G4098,4,10)),\"$\",\"\"))=0,\"$\"&CHAR(CODE(MID(G4098,2,1))+1)&\"$\"&TRIM(MID(G4098,4,10)),\"$\"&MID(G4098,2,1)&CHAR(CODE(MID(G4098,3,1))+1)&\"$\"&TRIM(MID(G4098,5,11)))","v":"$X$109"}]
[19490,{"$f":"Menu!$F$29","v":"X"},{"$f":"Menu!$J$29","v":2020},{"$f":"IF(ISBLANK(INDIRECT(\"'\"&F4099&\"'!\"&G4099)),\"\",INDIRECT(\"'\"&F4099&\"'!\"&G4099))","v":""},{"$f":"IF(ISBLANK(INDIRECT(\"'\"&F4099&\"'!\"&H4099)),\"\",IFERROR(VLOOKUP(TEXT(INDIRECT(\"'\"&F4099&\"'!\"&H4099),\"0\"),Notes!$B$5:$C$100,2,FALSE),\"\"))","v":""},"2c","$AA$109","$AB$109"]
[19491,{"$f":"Menu!$F$29","v":"X"},{"$f":"Menu!$J$29","v":2020},{"$f":"IF(ISBLANK(INDIRECT(\"'\"&F4100&\"'!\"&G4100)),\"\",INDIRECT(\"'\"&F4100&\"'!\"&G4100))","v":""},{"$f":"IF(ISBLANK(INDIRECT(\"'\"&F4100&\"'!\"&H4100)),\"\",IFERROR(VLOOKUP(TEXT(INDIRECT(\"'\"&F4100&\"'!\"&H4100),\"0\"),Notes!$B$5:$C$100,2,FALSE),\"\"))","v":""},"2c","$Y$109","$Z$109"]
[19492,{"$f":"Menu!$F$29","v":"X"},{"$f":"Menu!$J$29","v":2020},{"$f":"IF(ISBLANK(INDIRECT(\"'\"&F4101&\"'!\"&G4101)),\"\",INDIRECT(\"'\"&F4101&\"'!\"&G4101))","v":""},{"$f":"IF(ISBLANK(INDIRECT(\"'\"&F4101&\"'!\"&H4101)),\"\",IFERROR(VLOOKUP(TEXT(INDIRECT(\"'\"&F4101&\"'!\"&H4101),\"0\"),Notes!$B$5:$C$100,2,FALSE),\"\"))","v":""},"2e","$BG$110","$BH$110"]
[19493,{"$f":"Menu!$F$29","v":"X"},{"$f":"Menu!$J$29","v":2020},{"$f":"IF(ISBLANK(INDIRECT(\"'\"&F4102&\"'!\"&G4102)),\"\",INDIRECT(\"'\"&F4102&\"'!\"&G4102))","v":""},{"$f":"IF(ISBLANK(INDIRECT(\"'\"&F4102&\"'!\"&H4102)),\"\",IFERROR(VLOOKUP(TEXT(INDIRECT(\"'\"&F4102&\"'!\"&H4102),\"0\"),Notes!$B$5:$C$100,2,FALSE),\"\"))","v":""},"2e","$BK$110","$BL$110"]
[19494,{"$f":"Menu!$F$29","v":"X"},{"$f":"Menu!$J$29","v":2020},{"$f":"IF(ISBLANK(INDIRECT(\"'\"&F4103&\"'!\"&G4103)),\"\",INDIRECT(\"'\"&F4103&\"'!\"&G4103))","v":""},{"$f":"IF(ISBLANK(INDIRECT(\"'\"&F4103&\"'!\"&H4103)),\"\",IFERROR(VLOOKUP(TEXT(INDIRECT(\"'\"&F4103&\"'!\"&H4103),\"0\"),Notes!$B$5:$C$100,2,FALSE),\"\"))","v":""},"2e","$BI$110","$BJ$110"]
[19495,{"$f":"Menu!$F$29","v":"X"},{"$f":"Menu!$J$29","v":2020},{"$f":"IF(ISBLANK(INDIRECT(\"'\"&F4104&\"'!\"&G4104)),\"\",INDIRECT(\"'\"&F4104&\"'!\"&G4104))","v":""},{"$f":"IF(ISBLANK(INDIRECT(\"'\"&F4104&\"'!\"&H4104)),\"\",IFERROR(VLOOKUP(TEXT(INDIRECT(\"'\"&F4104&\"'!\"&H4104),\"0\"),Notes!$B$5:$C$100,2,FALSE),\"\"))","v":""},"2e","$E$110","$F$110"]
[19496,{"$f":"Menu!$F$29","v":"X"},{"$f":"Menu!$J$29","v":2020},{"$f":"IF(ISBLANK(INDIRECT(\"'\"&F4105&\"'!\"&G4105)),\"\",INDIRECT(\"'\"&F4105&\"'!\"&G4105))","v":""},{"$f":"IF(ISBLANK(INDIRECT(\"'\"&F4105&\"'!\"&H4105)),\"\",IFERROR(VLOOKUP(TEXT(INDIRECT(\"'\"&F4105&\"'!\"&H4105),\"0\"),Notes!$B$5:$C$100,2,FALSE),\"\"))","v":""},"2e","$I$110","$J$110"]
[19497,{"$f":"Menu!$F$29","v":"X"},{"$f":"Menu!$J$29","v":2020},{"$f":"IF(ISBLANK(INDIRECT(\"'\"&F4106&\"'!\"&G4106)),\"\",INDIRECT(\"'\"&F4106&\"'!\"&G4106))","v":""},{"$f":"IF(ISBLANK(INDIRECT(\"'\"&F4106&\"'!\"&H4106)),\"\",IFERROR(VLOOKUP(TEXT(INDIRECT(\"'\"&F4106&\"'!\"&H4106),\"0\"),Notes!$B$5:$C$100,2,FALSE),\"\"))","v":""},"2e","$G$110","$H$110"]
[19498,{"$f":"Menu!$F$29","v":"X"},{"$f":"Menu!$J$29","v":2020},{"$f":"IF(ISBLANK(INDIRECT(\"'\"&F4107&\"'!\"&G4107)),\"\",INDIRECT(\"'\"&F4107&\"'!\"&G4107))","v":""},{"$f":"IF(ISBLANK(INDIRECT(\"'\"&F4107&\"'!\"&H4107)),\"\",IFERROR(VLOOKUP(TEXT(INDIRECT(\"'\"&F4107&\"'!\"&H4107),\"0\"),Notes!$B$5:$C$100,2,FALSE),\"\"))","v":""},"2e","$K$110","$L$110"]
[19499,{"$f":"Menu!$F$29","v":"X"},{"$f":"Menu!$J$29","v":2020},{"$f":"IF(ISBLANK(INDIRECT(\"'\"&F4108&\"'!\"&G4108)),\"\",INDIRECT(\"'\"&F4108&\"'!\"&G4108))","v":""},{"$f":"IF(ISBLANK(INDIRECT(\"'\"&F4108&\"'!\"&H4108)),\"\",IFERROR(VLOOKUP(TEXT(INDIRECT(\"'\"&F4108&\"'!\"&H4108),\"0\"),Notes!$B$5:$C$100,2,FALSE),\"\"))","v":""},"2e","$O$110","$P$110"]
[19500,{"$f":"Menu!$F$29","v":"X"},{"$f":"Menu!$J$29","v":2020},{"$f":"IF(ISBLANK(INDIRECT(\"'\"&F4109&\"'!\"&G4109)),\"\",INDIRECT(\"'\"&F4109&\"'!\"&G4109))","v":""},{"$f":"IF(ISBLANK(INDIRECT(\"'\"&F4109&\"'!\"&H4109)),\"\",IFERROR(VLOOKUP(TEXT(INDIRECT(\"'\"&F4109&\"'!\"&H4109),\"0\"),Notes!$B$5:$C$100,2,FALSE),\"\"))","v":""},"2e","$M$110","$N$110"]
[19501,{"$f":"Menu!$F$29","v":"X"},{"$f":"Menu!$J$29","v":2020},{"$f":"IF(ISBLANK(INDIRECT(\"'\"&F4110&\"'!\"&G4110)),\"\",INDIRECT(\"'\"&F4110&\"'!\"&G4110))","v":""},{"$f":"IF(ISBLANK(INDIRECT(\"'\"&F4110&\"'!\"&H4110)),\"\",IFERROR(VLOOKUP(TEXT(INDIRECT(\"'\"&F4110&\"'!\"&H4110),\"0\"),Notes!$B$5:$C$100,2,FALSE),\"\"))","v":""},"2e","$Q$110","$R$110"]
[19502,{"$f":"Menu!$F$29","v":"X"},{"$f":"Menu!$J$29","v":2020},{"$f":"IF(ISBLANK(INDIRECT(\"'\"&F4111&\"'!\"&G4111)),\"\",INDIRECT(\"'\"&F4111&\"'!\"&G4111))","v":""},{"$f":"IF(ISBLANK(INDIRECT(\"'\"&F4111&\"'!\"&H4111)),\"\",IFERROR(VLOOKUP(TEXT(INDIRECT(\"'\"&F4111&\"'!\"&H4111),\"0\"),Notes!$B$5:$C$100,2,FALSE),\"\"))","v":""},"2e","$U$110","$V$110"]
[19503,{"$f":"Menu!$F$29","v":"X"},{"$f":"Menu!$J$29","v":2020},{"$f":"IF(ISBLANK(INDIRECT(\"'\"&F4112&\"'!\"&G4112)),\"\",INDIRECT(\"'\"&F4112&\"'!\"&G4112))","v":""},{"$f":"IF(ISBLANK(INDIRECT(\"'\"&F4112&\"'!\"&H4112)),\"\",IFERROR(VLOOKUP(TEXT(INDIRECT(\"'\"&F4112&\"'!\"&H4112),\"0\"),Notes!$B$5:$C$100,2,FALSE),\"\"))","v":""},"2e","$S$110","$T$110"]
[19504,{"$f":"Menu!$F$29","v":"X"},{"$f":"Menu!$J$29","v":2020},{"$f":"IF(ISBLANK(INDIRECT(\"'\"&F4113&\"'!\"&G4113)),\"\",INDIRECT(\"'\"&F4113&\"'!\"&G4113))","v":""},{"$f":"IF(ISBLANK(INDIRECT(\"'\"&F4113&\"'!\"&H4113)),\"\",IFERROR(VLOOKUP(TEXT(INDIRECT(\"'\"&F4113&\"'!\"&H4113),\"0\"),Notes!$B$5:$C$100,2,FALSE),\"\"))","v":""},"2e","$W$110","$X$110"]
[19505,{"$f":"Menu!$F$29","v":"X"},{"$f":"Menu!$J$29","v":2020},{"$f":"IF(ISBLANK(INDIRECT(\"'\"&F4114&\"'!\"&G4114)),\"\",INDIRECT(\"'\"&F4114&\"'!\"&G4114))","v":""},{"$f":"IF(ISBLANK(INDIRECT(\"'\"&F4114&\"'!\"&H4114)),\"\",IFERROR(VLOOKUP(TEXT(INDIRECT(\"'\"&F4114&\"'!\"&H4114),\"0\"),Notes!$B$5:$C$100,2,FALSE),\"\"))","v":""},"2e","$AA$110","$AB$110"]
[19506,{"$f":"Menu!$F$29","v":"X"},{"$f":"Menu!$J$29","v":2020},{"$f":"IF(ISBLANK(INDIRECT(\"'\"&F4115&\"'!\"&G4115)),\"\",INDIRECT(\"'\"&F4115&\"'!\"&G4115))","v":""},{"$f":"IF(ISBLANK(INDIRECT(\"'\"&F4115&\"'!\"&H4115)),\"\",IFERROR(VLOOKUP(TEXT(INDIRECT(\"'\"&F4115&\"'!\"&H4115),\"0\"),Notes!$B$5:$C$100,2,FALSE),\"\"))","v":""},"2e","$Y$110","$Z$110"]
[19507,{"$f":"Menu!$F$29","v":"X"},{"$f":"Menu!$J$29","v":2020},{"$f":"IF(ISBLANK(INDIRECT(\"'\"&F4116&\"'!\"&G4116)),\"\",INDIRECT(\"'\"&F4116&\"'!\"&G4116))","v":""},{"$f":"IF(ISBLANK(INDIRECT(\"'\"&F4116&\"'!\"&H4116)),\"\",IFERROR(VLOOKUP(TEXT(INDIRECT(\"'\"&F4116&\"'!\"&H4116),\"0\"),Notes!$B$5:$C$100,2,FALSE),\"\"))","v":""},"2e","$AC$110","$AD$110"]
[19508,{"$f":"Menu!$F$29","v":"X"},{"$f":"Menu!$J$29","v":2020},{"$f":"IF(ISBLANK(INDIRECT(\"'\"&F4117&\"'!\"&G4117)),\"\",INDIRECT(\"'\"&F4117&\"'!\"&G4117))","v":""},{"$f":"IF(ISBLANK(INDIRECT(\"'\"&F4117&\"'!\"&H4117)),\"\",IFERROR(VLOOKUP(TEXT(INDIRECT(\"'\"&F4117&\"'!\"&H4117),\"0\"),Notes!$B$5:$C$100,2,FALSE),\"\"))","v":""},"2e","$AG$110","$AH$110"]
[19509,{"$f":"Menu!$F$29","v":"X"},{"$f":"Menu!$J$29","v":2020},{"$f":"IF(ISBLANK(INDIRECT(\"'\"&F4118&\"'!\"&G4118)),\"\",INDIRECT(\"'\"&F4118&\"'!\"&G4118))","v":""},{"$f":"IF(ISBLANK(INDIRECT(\"'\"&F4118&\"'!\"&H4118)),\"\",IFERROR(VLOOKUP(TEXT(INDIRECT(\"'\"&F4118&\"'!\"&H4118),\"0\"),Notes!$B$5:$C$100,2,FALSE),\"\"))","v":""},"2e","$AE$110","$AF$110"]
[19510,{"$f":"Menu!$F$29","v":"X"},{"$f":"Menu!$J$29","v":2020},{"$f":"IF(ISBLANK(INDIRECT(\"'\"&F4119&\"'!\"&G4119)),\"\",INDIRECT(\"'\"&F4119&\"'!\"&G4119))","v":""},{"$f":"IF(ISBLANK(INDIRECT(\"'\"&F4119&\"'!\"&H4119)),\"\",IFERROR(VLOOKUP(TEXT(INDIRECT(\"'\"&F4119&\"'!\"&H4119),\"0\"),Notes!$B$5:$C$100,2,FALSE),\"\"))","v":""},"2e","$AI$110","$AJ$110"]
[19511,{"$f":"Menu!$F$29","v":"X"},{"$f":"Menu!$J$29","v":2020},{"$f":"IF(ISBLANK(INDIRECT(\"'\"&F4120&\"'!\"&G4120)),\"\",INDIRECT(\"'\"&F4120&\"'!\"&G4120))","v":""},{"$f":"IF(ISBLANK(INDIRECT(\"'\"&F4120&\"'!\"&H4120)),\"\",IFERROR(VLOOKUP(TEXT(INDIRECT(\"'\"&F4120&\"'!\"&H4120),\"0\"),Notes!$B$5:$C$100,2,FALSE),\"\"))","v":""},"2e","$AM$110","$AN$110"]
[19512,{"$f":"Menu!$F$29","v":"X"},{"$f":"Menu!$J$29","v":2020},{"$f":"IF(ISBLANK(INDIRECT(\"'\"&F4121&\"'!\"&G4121)),\"\",INDIRECT(\"'\"&F4121&\"'!\"&G4121))","v":""},{"$f":"IF(ISBLANK(INDIRECT(\"'\"&F4121&\"'!\"&H4121)),\"\",IFERROR(VLOOKUP(TEXT(INDIRECT(\"'\"&F4121&\"'!\"&H4121),\"0\"),Notes!$B$5:$C$100,2,FALSE),\"\"))","v":""},"2e","$AK$110","$AL$110"]
[19513,{"$f":"Menu!$F$29","v":"X"},{"$f":"Menu!$J$29","v":2020},{"$f":"IF(ISBLANK(INDIRECT(\"'\"&F4122&\"'!\"&G4122)),\"\",INDIRECT(\"'\"&F4122&\"'!\"&G4122))","v":""},{"$f":"IF(ISBLANK(INDIRECT(\"'\"&F4122&\"'!\"&H4122)),\"\",IFERROR(VLOOKUP(TEXT(INDIRECT(\"'\"&F4122&\"'!\"&H4122),\"0\"),Notes!$B$5:$C$100,2,FALSE),\"\"))","v":""},"2e","$AO$110","$AP$110"]
[19514,{"$f":"Menu!$F$29","v":"X"},{"$f":"Menu!$J$29","v":2020},{"$f":"IF(ISBLANK(INDIRECT(\"'\"&F4123&\"'!\"&G4123)),\"\",INDIRECT(\"'\"&F4123&\"'!\"&G4123))","v":""},{"$f":"IF(ISBLANK(INDIRECT(\"'\"&F4123&\"'!\"&H4123)),\"\",IFERROR(VLOOKUP(TEXT(INDIRECT(\"'\"&F4123&\"'!\"&H4123),\"0\"),Notes!$B$5:$C$100,2,FALSE),\"\"))","v":""},"2e","$AQ$110","$AR$110"]
[19515,{"$f":"Menu!$F$29","v":"X"},{"$f":"Menu!$J$29","v":2020},{"$f":"IF(ISBLANK(INDIRECT(\"'\"&F4124&\"'!\"&G4124)),\"\",INDIRECT(\"'\"&F4124&\"'!\"&G4124))","v":""},{"$f":"IF(ISBLANK(INDIRECT(\"'\"&F4124&\"'!\"&H4124)),\"\",IFERROR(VLOOKUP(TEXT(INDIRECT(\"'\"&F4124&\"'!\"&H4124),\"0\"),Notes!$B$5:$C$100,2,FALSE),\"\"))","v":""},"2e","$AS$110","$AT$110"]
[19516,{"$f":"Menu!$F$29","v":"X"},{"$f":"Menu!$J$29","v":2020},{"$f":"IF(ISBLANK(INDIRECT(\"'\"&F4125&\"'!\"&G4125)),\"\",INDIRECT(\"'\"&F4125&\"'!\"&G4125))","v":""},{"$f":"IF(ISBLANK(INDIRECT(\"'\"&F4125&\"'!\"&H4125)),\"\",IFERROR(VLOOKUP(TEXT(INDIRECT(\"'\"&F4125&\"'!\"&H4125),\"0\"),Notes!$B$5:$C$100,2,FALSE),\"\"))","v":""},"2e","$AU$110","$AV$110"]
[19517,{"$f":"Menu!$F$29","v":"X"},{"$f":"Menu!$J$29","v":2020},{"$f":"IF(ISBLANK(INDIRECT(\"'\"&F4126&\"'!\"&G4126)),\"\",INDIRECT(\"'\"&F4126&\"'!\"&G4126))","v":""},{"$f":"IF(ISBLANK(INDIRECT(\"'\"&F4126&\"'!\"&H4126)),\"\",IFERROR(VLOOKUP(TEXT(INDIRECT(\"'\"&F4126&\"'!\"&H4126),\"0\"),Notes!$B$5:$C$100,2,FALSE),\"\"))","v":""},"2e","$AY$110","$AZ$110"]
[19518,{"$f":"Menu!$F$29","v":"X"},{"$f":"Menu!$J$29","v":2020},{"$f":"IF(ISBLANK(INDIRECT(\"'\"&F4127&\"'!\"&G4127)),\"\",INDIRECT(\"'\"&F4127&\"'!\"&G4127))","v":""},{"$f":"IF(ISBLANK(INDIRECT(\"'\"&F4127&\"'!\"&H4127)),\"\",IFERROR(VLOOKUP(TEXT(INDIRECT(\"'\"&F4127&\"'!\"&H4127),\"0\"),Notes!$B$5:$C$100,2,FALSE),\"\"))","v":""},"2e","$AW$110","$AX$110"]
[19519,{"$f":"Menu!$F$29","v":"X"},{"$f":"Menu!$J$29","v":2020},{"$f":"IF(ISBLANK(INDIRECT(\"'\"&F4128&\"'!\"&G4128)),\"\",INDIRECT(\"'\"&F4128&\"'!\"&G4128))","v":""},{"$f":"IF(ISBLANK(INDIRECT(\"'\"&F4128&\"'!\"&H4128)),\"\",IFERROR(VLOOKUP(TEXT(INDIRECT(\"'\"&F4128&\"'!\"&H4128),\"0\"),Notes!$B$5:$C$100,2,FALSE),\"\"))","v":""},"2e","$BA$110","$BB$110"]
[19520,{"$f":"Menu!$F$29","v":"X"},{"$f":"Menu!$J$29","v":2020},{"$f":"IF(ISBLANK(INDIRECT(\"'\"&F4129&\"'!\"&G4129)),\"\",INDIRECT(\"'\"&F4129&\"'!\"&G4129))","v":""},{"$f":"IF(ISBLANK(INDIRECT(\"'\"&F4129&\"'!\"&H4129)),\"\",IFERROR(VLOOKUP(TEXT(INDIRECT(\"'\"&F4129&\"'!\"&H4129),\"0\"),Notes!$B$5:$C$100,2,FALSE),\"\"))","v":""},"2e","$BE$110","$BF$110"]
[19521,{"$f":"Menu!$F$29","v":"X"},{"$f":"Menu!$J$29","v":2020},{"$f":"IF(ISBLANK(INDIRECT(\"'\"&F4130&\"'!\"&G4130)),\"\",INDIRECT(\"'\"&F4130&\"'!\"&G4130))","v":""},{"$f":"IF(ISBLANK(INDIRECT(\"'\"&F4130&\"'!\"&H4130)),\"\",IFERROR(VLOOKUP(TEXT(INDIRECT(\"'\"&F4130&\"'!\"&H4130),\"0\"),Notes!$B$5:$C$100,2,FALSE),\"\"))","v":""},"2e","$BC$110","$BD$110"]
[19522,{"$f":"Menu!$F$29","v":"X"},{"$f":"Menu!$J$29","v":2020},{"$f":"IF(ISBLANK(INDIRECT(\"'\"&F4131&\"'!\"&G4131)),\"\",INDIRECT(\"'\"&F4131&\"'!\"&G4131))","v":""},{"$f":"IF(ISBLANK(INDIRECT(\"'\"&F4131&\"'!\"&H4131)),\"\",IFERROR(VLOOKUP(TEXT(INDIRECT(\"'\"&F4131&\"'!\"&H4131),\"0\"),Notes!$B$5:$C$100,2,FALSE),\"\"))","v":""},"2b","$E$109","$F$109"]
[19523,{"$f":"Menu!$F$29","v":"X"},{"$f":"Menu!$J$29","v":2020},{"$f":"IF(ISBLANK(INDIRECT(\"'\"&F4132&\"'!\"&G4132)),\"\",INDIRECT(\"'\"&F4132&\"'!\"&G4132))","v":""},{"$f":"IF(ISBLANK(INDIRECT(\"'\"&F4132&\"'!\"&H4132)),\"\",IFERROR(VLOOKUP(TEXT(INDIRECT(\"'\"&F4132&\"'!\"&H4132),\"0\"),Notes!$B$5:$C$100,2,FALSE),\"\"))","v":""},"2b","$I$109","$J$109"]
[19524,{"$f":"Menu!$F$29","v":"X"},{"$f":"Menu!$J$29","v":2020},{"$f":"IF(ISBLANK(INDIRECT(\"'\"&F4133&\"'!\"&G4133)),\"\",INDIRECT(\"'\"&F4133&\"'!\"&G4133))","v":""},{"$f":"IF(ISBLANK(INDIRECT(\"'\"&F4133&\"'!\"&H4133)),\"\",IFERROR(VLOOKUP(TEXT(INDIRECT(\"'\"&F4133&\"'!\"&H4133),\"0\"),Notes!$B$5:$C$100,2,FALSE),\"\"))","v":""},"2b","$G$109","$H$109"]
[19525,{"$f":"Menu!$F$29","v":"X"},{"$f":"Menu!$J$29","v":2020},{"$f":"IF(ISBLANK(INDIRECT(\"'\"&F4134&\"'!\"&G4134)),\"\",INDIRECT(\"'\"&F4134&\"'!\"&G4134))","v":""},{"$f":"IF(ISBLANK(INDIRECT(\"'\"&F4134&\"'!\"&H4134)),\"\",IFERROR(VLOOKUP(TEXT(INDIRECT(\"'\"&F4134&\"'!\"&H4134),\"0\"),Notes!$B$5:$C$100,2,FALSE),\"\"))","v":""},"2a","$G$109","$H$109"]
[19526,{"$f":"Menu!$F$29","v":"X"},{"$f":"Menu!$J$29","v":2020},{"$f":"IF(ISBLANK(INDIRECT(\"'\"&F4135&\"'!\"&G4135)),\"\",INDIRECT(\"'\"&F4135&\"'!\"&G4135))","v":""},{"$f":"IF(ISBLANK(INDIRECT(\"'\"&F4135&\"'!\"&H4135)),\"\",IFERROR(VLOOKUP(TEXT(INDIRECT(\"'\"&F4135&\"'!\"&H4135),\"0\"),Notes!$B$5:$C$100,2,FALSE),\"\"))","v":""},"2b","$W$109","$X$109"]
[19527,{"$f":"Menu!$F$29","v":"X"},{"$f":"Menu!$J$29","v":2020},{"$f":"IF(ISBLANK(INDIRECT(\"'\"&F4136&\"'!\"&G4136)),\"\",INDIRECT(\"'\"&F4136&\"'!\"&G4136))","v":""},{"$f":"IF(ISBLANK(INDIRECT(\"'\"&F4136&\"'!\"&H4136)),\"\",IFERROR(VLOOKUP(TEXT(INDIRECT(\"'\"&F4136&\"'!\"&H4136),\"0\"),Notes!$B$5:$C$100,2,FALSE),\"\"))","v":""},"2b","$AA$109","$AB$109"]
[19528,{"$f":"Menu!$F$29","v":"X"},{"$f":"Menu!$J$29","v":2020},{"$f":"IF(ISBLANK(INDIRECT(\"'\"&F4137&\"'!\"&G4137)),\"\",INDIRECT(\"'\"&F4137&\"'!\"&G4137))","v":""},{"$f":"IF(ISBLANK(INDIRECT(\"'\"&F4137&\"'!\"&H4137)),\"\",IFERROR(VLOOKUP(TEXT(INDIRECT(\"'\"&F4137&\"'!\"&H4137),\"0\"),Notes!$B$5:$C$100,2,FALSE),\"\"))","v":""},"2b","$Y$109","$Z$109"]
[19529,{"$f":"Menu!$F$29","v":"X"},{"$f":"Menu!$J$29","v":2020},{"$f":"IF(ISBLANK(INDIRECT(\"'\"&F4138&\"'!\"&G4138)),\"\",INDIRECT(\"'\"&F4138&\"'!\"&G4138))","v":""},{"$f":"IF(ISBLANK(INDIRECT(\"'\"&F4138&\"'!\"&H4138)),\"\",IFERROR(VLOOKUP(TEXT(INDIRECT(\"'\"&F4138&\"'!\"&H4138),\"0\"),Notes!$B$5:$C$100,2,FALSE),\"\"))","v":""},"2d","$AC$109","$AD$109"]
[19530,{"$f":"Menu!$F$29","v":"X"},{"$f":"Menu!$J$29","v":2020},{"$f":"IF(ISBLANK(INDIRECT(\"'\"&F4139&\"'!\"&G4139)),\"\",INDIRECT(\"'\"&F4139&\"'!\"&G4139))","v":""},{"$f":"IF(ISBLANK(INDIRECT(\"'\"&F4139&\"'!\"&H4139)),\"\",IFERROR(VLOOKUP(TEXT(INDIRECT(\"'\"&F4139&\"'!\"&H4139),\"0\"),Notes!$B$5:$C$100,2,FALSE),\"\"))","v":""},"2d","$AG$109","$AH$109"]
[19531,{"$f":"Menu!$F$29","v":"X"},{"$f":"Menu!$J$29","v":2020},{"$f":"IF(ISBLANK(INDIRECT(\"'\"&F4140&\"'!\"&G4140)),\"\",INDIRECT(\"'\"&F4140&\"'!\"&G4140))","v":""},{"$f":"IF(ISBLANK(INDIRECT(\"'\"&F4140&\"'!\"&H4140)),\"\",IFERROR(VLOOKUP(TEXT(INDIRECT(\"'\"&F4140&\"'!\"&H4140),\"0\"),Notes!$B$5:$C$100,2,FALSE),\"\"))","v":""},"2d","$AE$109","$AF$109"]
[19532,{"$f":"Menu!$F$29","v":"X"},{"$f":"Menu!$J$29","v":2020},{"$f":"IF(ISBLANK(INDIRECT(\"'\"&F4141&\"'!\"&G4141)),\"\",INDIRECT(\"'\"&F4141&\"'!\"&G4141))","v":""},{"$f":"IF(ISBLANK(INDIRECT(\"'\"&F4141&\"'!\"&H4141)),\"\",IFERROR(VLOOKUP(TEXT(INDIRECT(\"'\"&F4141&\"'!\"&H4141),\"0\"),Notes!$B$5:$C$100,2,FALSE),\"\"))","v":""},"2d","$W$109","$X$109"]
[19533,{"$f":"Menu!$F$29","v":"X"},{"$f":"Menu!$J$29","v":2020},{"$f":"IF(ISBLANK(INDIRECT(\"'\"&F4142&\"'!\"&G4142)),\"\",INDIRECT(\"'\"&F4142&\"'!\"&G4142))","v":""},{"$f":"IF(ISBLANK(INDIRECT(\"'\"&F4142&\"'!\"&H4142)),\"\",IFERROR(VLOOKUP(TEXT(INDIRECT(\"'\"&F4142&\"'!\"&H4142),\"0\"),Notes!$B$5:$C$100,2,FALSE),\"\"))","v":""},"2d","$AA$109","$AB$109"]
[19534,{"$f":"Menu!$F$29","v":"X"},{"$f":"Menu!$J$29","v":2020},{"$f":"IF(ISBLANK(INDIRECT(\"'\"&F4143&\"'!\"&G4143)),\"\",INDIRECT(\"'\"&F4143&\"'!\"&G4143))","v":""},{"$f":"IF(ISBLANK(INDIRECT(\"'\"&F4143&\"'!\"&H4143)),\"\",IFERROR(VLOOKUP(TEXT(INDIRECT(\"'\"&F4143&\"'!\"&H4143),\"0\"),Notes!$B$5:$C$100,2,FALSE),\"\"))","v":""},"2d","$Y$109","$Z$109"]
[19535,{"$f":"Menu!$F$29","v":"X"},{"$f":"Menu!$J$29","v":2020},{"$f":"IF(ISBLANK(INDIRECT(\"'\"&F4144&\"'!\"&G4144)),\"\",INDIRECT(\"'\"&F4144&\"'!\"&G4144))","v":""},{"$f":"IF(ISBLANK(INDIRECT(\"'\"&F4144&\"'!\"&H4144)),\"\",IFERROR(VLOOKUP(TEXT(INDIRECT(\"'\"&F4144&\"'!\"&H4144),\"0\"),Notes!$B$5:$C$100,2,FALSE),\"\"))","v":""},"2d","$E$109","$F$109"]
[19536,{"$f":"Menu!$F$29","v":"X"},{"$f":"Menu!$J$29","v":2020},{"$f":"IF(ISBLANK(INDIRECT(\"'\"&F4145&\"'!\"&G4145)),\"\",INDIRECT(\"'\"&F4145&\"'!\"&G4145))","v":""},{"$f":"IF(ISBLANK(INDIRECT(\"'\"&F4145&\"'!\"&H4145)),\"\",IFERROR(VLOOKUP(TEXT(INDIRECT(\"'\"&F4145&\"'!\"&H4145),\"0\"),Notes!$B$5:$C$100,2,FALSE),\"\"))","v":""},"2d","$I$109","$J$109"]
[19537,{"$f":"Menu!$F$29","v":"X"},{"$f":"Menu!$J$29","v":2020},{"$f":"IF(ISBLANK(INDIRECT(\"'\"&F4146&\"'!\"&G4146)),\"\",INDIRECT(\"'\"&F4146&\"'!\"&G4146))","v":""},{"$f":"IF(ISBLANK(INDIRECT(\"'\"&F4146&\"'!\"&H4146)),\"\",IFERROR(VLOOKUP(TEXT(INDIRECT(\"'\"&F4146&\"'!\"&H4146),\"0\"),Notes!$B$5:$C$100,2,FALSE),\"\"))","v":""},"2d","$G$109","$H$109"]
[19538,{"$f":"Menu!$F$29","v":"X"},{"$f":"Menu!$J$29","v":2020},{"$f":"IF(ISBLANK(INDIRECT(\"'\"&F4147&\"'!\"&G4147)),\"\",INDIRECT(\"'\"&F4147&\"'!\"&G4147))","v":""},{"$f":"IF(ISBLANK(INDIRECT(\"'\"&F4147&\"'!\"&H4147)),\"\",IFERROR(VLOOKUP(TEXT(INDIRECT(\"'\"&F4147&\"'!\"&H4147),\"0\"),Notes!$B$5:$C$100,2,FALSE),\"\"))","v":""},"2a","$U$109","$V$109"]
[19539,{"$f":"Menu!$F$29","v":"X"},{"$f":"Menu!$J$29","v":2020},{"$f":"IF(ISBLANK(INDIRECT(\"'\"&F4148&\"'!\"&G4148)),\"\",INDIRECT(\"'\"&F4148&\"'!\"&G4148))","v":""},{"$f":"IF(ISBLANK(INDIRECT(\"'\"&F4148&\"'!\"&H4148)),\"\",IFERROR(VLOOKUP(TEXT(INDIRECT(\"'\"&F4148&\"'!\"&H4148),\"0\"),Notes!$B$5:$C$100,2,FALSE),\"\"))","v":""},"2a","$S$109","$T$109"]
[19540,{"$f":"Menu!$F$29","v":"X"},{"$f":"Menu!$J$29","v":2020},{"$f":"IF(ISBLANK(INDIRECT(\"'\"&F4149&\"'!\"&G4149)),\"\",INDIRECT(\"'\"&F4149&\"'!\"&G4149))","v":""},{"$f":"IF(ISBLANK(INDIRECT(\"'\"&F4149&\"'!\"&H4149)),\"\",IFERROR(VLOOKUP(TEXT(INDIRECT(\"'\"&F4149&\"'!\"&H4149),\"0\"),Notes!$B$5:$C$100,2,FALSE),\"\"))","v":""},"2a","$Q$109","$R$109"]
[19541,{"$f":"Menu!$F$29","v":"X"},{"$f":"Menu!$J$29","v":2020},{"$f":"IF(ISBLANK(INDIRECT(\"'\"&F4150&\"'!\"&G4150)),\"\",INDIRECT(\"'\"&F4150&\"'!\"&G4150))","v":""},{"$f":"IF(ISBLANK(INDIRECT(\"'\"&F4150&\"'!\"&H4150)),\"\",IFERROR(VLOOKUP(TEXT(INDIRECT(\"'\"&F4150&\"'!\"&H4150),\"0\"),Notes!$B$5:$C$100,2,FALSE),\"\"))","v":""},"2d","$K$109","$L$109"]
[19542,{"$f":"Menu!$F$29","v":"X"},{"$f":"Menu!$J$29","v":2020},{"$f":"IF(ISBLANK(INDIRECT(\"'\"&F4151&\"'!\"&G4151)),\"\",INDIRECT(\"'\"&F4151&\"'!\"&G4151))","v":""},{"$f":"IF(ISBLANK(INDIRECT(\"'\"&F4151&\"'!\"&H4151)),\"\",IFERROR(VLOOKUP(TEXT(INDIRECT(\"'\"&F4151&\"'!\"&H4151),\"0\"),Notes!$B$5:$C$100,2,FALSE),\"\"))","v":""},"2d","$O$109","$P$109"]
[19543,{"$f":"Menu!$F$29","v":"X"},{"$f":"Menu!$J$29","v":2020},{"$f":"IF(ISBLANK(INDIRECT(\"'\"&F4152&\"'!\"&G4152)),\"\",INDIRECT(\"'\"&F4152&\"'!\"&G4152))","v":""},{"$f":"IF(ISBLANK(INDIRECT(\"'\"&F4152&\"'!\"&H4152)),\"\",IFERROR(VLOOKUP(TEXT(INDIRECT(\"'\"&F4152&\"'!\"&H4152),\"0\"),Notes!$B$5:$C$100,2,FALSE),\"\"))","v":""},"2d","$M$109","$N$109"]
[19544,{"$f":"Menu!$F$29","v":"X"},{"$f":"Menu!$J$29","v":2020},{"$f":"IF(ISBLANK(INDIRECT(\"'\"&F4153&\"'!\"&G4153)),\"\",INDIRECT(\"'\"&F4153&\"'!\"&G4153))","v":""},{"$f":"IF(ISBLANK(INDIRECT(\"'\"&F4153&\"'!\"&H4153)),\"\",IFERROR(VLOOKUP(TEXT(INDIRECT(\"'\"&F4153&\"'!\"&H4153),\"0\"),Notes!$B$5:$C$100,2,FALSE),\"\"))","v":""},"2d","$Q$109","$R$109"]
[19545,{"$f":"Menu!$F$29","v":"X"},{"$f":"Menu!$J$29","v":2020},{"$f":"IF(ISBLANK(INDIRECT(\"'\"&F4154&\"'!\"&G4154)),\"\",INDIRECT(\"'\"&F4154&\"'!\"&G4154))","v":""},{"$f":"IF(ISBLANK(INDIRECT(\"'\"&F4154&\"'!\"&H4154)),\"\",IFERROR(VLOOKUP(TEXT(INDIRECT(\"'\"&F4154&\"'!\"&H4154),\"0\"),Notes!$B$5:$C$100,2,FALSE),\"\"))","v":""},"2d","$U$109","$V$109"]
[19546,{"$f":"Menu!$F$29","v":"X"},{"$f":"Menu!$J$29","v":2020},{"$f":"IF(ISBLANK(INDIRECT(\"'\"&F4155&\"'!\"&G4155)),\"\",INDIRECT(\"'\"&F4155&\"'!\"&G4155))","v":""},{"$f":"IF(ISBLANK(INDIRECT(\"'\"&F4155&\"'!\"&H4155)),\"\",IFERROR(VLOOKUP(TEXT(INDIRECT(\"'\"&F4155&\"'!\"&H4155),\"0\"),Notes!$B$5:$C$100,2,FALSE),\"\"))","v":""},"2d","$S$109","$T$109"]
[19547,{"$f":"Menu!$F$29","v":"X"},{"$f":"Menu!$J$29","v":2020},{"$f":"IF(ISBLANK(INDIRECT(\"'\"&F4156&\"'!\"&G4156)),\"\",INDIRECT(\"'\"&F4156&\"'!\"&G4156))","v":""},{"$f":"IF(ISBLANK(INDIRECT(\"'\"&F4156&\"'!\"&H4156)),\"\",IFERROR(VLOOKUP(TEXT(INDIRECT(\"'\"&F4156&\"'!\"&H4156),\"0\"),Notes!$B$5:$C$100,2,FALSE),\"\"))","v":""},"2a","$O$109","$P$109"]
[19548,{"$f":"Menu!$F$29","v":"X"},{"$f":"Menu!$J$29","v":2020},{"$f":"IF(ISBLANK(INDIRECT(\"'\"&F4157&\"'!\"&G4157)),\"\",INDIRECT(\"'\"&F4157&\"'!\"&G4157))","v":""},{"$f":"IF(ISBLANK(INDIRECT(\"'\"&F4157&\"'!\"&H4157)),\"\",IFERROR(VLOOKUP(TEXT(INDIRECT(\"'\"&F4157&\"'!\"&H4157),\"0\"),Notes!$B$5:$C$100,2,FALSE),\"\"))","v":""},"2a","$M$109","$N$109"]
[19549,{"$f":"Menu!$F$29","v":"X"},{"$f":"Menu!$J$29","v":2020},{"$f":"IF(ISBLANK(INDIRECT(\"'\"&F4158&\"'!\"&G4158)),\"\",INDIRECT(\"'\"&F4158&\"'!\"&G4158))","v":""},{"$f":"IF(ISBLANK(INDIRECT(\"'\"&F4158&\"'!\"&H4158)),\"\",IFERROR(VLOOKUP(TEXT(INDIRECT(\"'\"&F4158&\"'!\"&H4158),\"0\"),Notes!$B$5:$C$100,2,FALSE),\"\"))","v":""},"2a","$K$109","$L$109"]
[19550,{"$f":"Menu!$F$29","v":"X"},{"$f":"Menu!$J$29","v":2020},{"$f":"IF(ISBLANK(INDIRECT(\"'\"&F4159&\"'!\"&G4159)),\"\",INDIRECT(\"'\"&F4159&\"'!\"&G4159))","v":""},{"$f":"IF(ISBLANK(INDIRECT(\"'\"&F4159&\"'!\"&H4159)),\"\",IFERROR(VLOOKUP(TEXT(INDIRECT(\"'\"&F4159&\"'!\"&H4159),\"0\"),Notes!$B$5:$C$100,2,FALSE),\"\"))","v":""},"2a","$E$109","$F$109"]
[19551,{"$f":"Menu!$F$29","v":"X"},{"$f":"Menu!$J$29","v":2020},{"$f":"IF(ISBLANK(INDIRECT(\"'\"&F4160&\"'!\"&G4160)),\"\",INDIRECT(\"'\"&F4160&\"'!\"&G4160))","v":""},{"$f":"IF(ISBLANK(INDIRECT(\"'\"&F4160&\"'!\"&H4160)),\"\",IFERROR(VLOOKUP(TEXT(INDIRECT(\"'\"&F4160&\"'!\"&H4160),\"0\"),Notes!$B$5:$C$100,2,FALSE),\"\"))","v":""},"2b","$K$110","$L$110"]
[19552,{"$f":"Menu!$F$29","v":"X"},{"$f":"Menu!$J$29","v":2020},{"$f":"IF(ISBLANK(INDIRECT(\"'\"&F4161&\"'!\"&G4161)),\"\",INDIRECT(\"'\"&F4161&\"'!\"&G4161))","v":""},{"$f":"IF(ISBLANK(INDIRECT(\"'\"&F4161&\"'!\"&H4161)),\"\",IFERROR(VLOOKUP(TEXT(INDIRECT(\"'\"&F4161&\"'!\"&H4161),\"0\"),Notes!$B$5:$C$100,2,FALSE),\"\"))","v":""},"2b","$O$110","$P$110"]
[19553,{"$f":"Menu!$F$29","v":"X"},{"$f":"Menu!$J$29","v":2020},{"$f":"IF(ISBLANK(INDIRECT(\"'\"&F4162&\"'!\"&G4162)),\"\",INDIRECT(\"'\"&F4162&\"'!\"&G4162))","v":""},{"$f":"IF(ISBLANK(INDIRECT(\"'\"&F4162&\"'!\"&H4162)),\"\",IFERROR(VLOOKUP(TEXT(INDIRECT(\"'\"&F4162&\"'!\"&H4162),\"0\"),Notes!$B$5:$C$100,2,FALSE),\"\"))","v":""},"2b","$M$110",{"$f":"IF(LEN(TRIM(MID(G4162,4,10)))-LEN(SUBSTITUTE(TRIM(MID(G4162,4,10)),\"$\",\"\"))=0,\"$\"&CHAR(CODE(MID(G4162,2,1))+1)&\"$\"&TRIM(MID(G4162,4,10)),\"$\"&MID(G4162,2,1)&CHAR(CODE(MID(G4162,3,1))+1)&\"$\"&TRIM(MID(G4162,5,11)))","v":"$N$110"}]
[19554,{"$f":"Menu!$F$29","v":"X"},{"$f":"Menu!$J$29","v":2020},{"$f":"IF(ISBLANK(INDIRECT(\"'\"&F4163&\"'!\"&G4163)),\"\",INDIRECT(\"'\"&F4163&\"'!\"&G4163))","v":""},{"$f":"IF(ISBLANK(INDIRECT(\"'\"&F4163&\"'!\"&H4163)),\"\",IFERROR(VLOOKUP(TEXT(INDIRECT(\"'\"&F4163&\"'!\"&H4163),\"0\"),Notes!$B$5:$C$100,2,FALSE),\"\"))","v":""},"2b","$Q$110","$R$110"]
[19555,{"$f":"Menu!$F$29","v":"X"},{"$f":"Menu!$J$29","v":2020},{"$f":"IF(ISBLANK(INDIRECT(\"'\"&F4164&\"'!\"&G4164)),\"\",INDIRECT(\"'\"&F4164&\"'!\"&G4164))","v":""},{"$f":"IF(ISBLANK(INDIRECT(\"'\"&F4164&\"'!\"&H4164)),\"\",IFERROR(VLOOKUP(TEXT(INDIRECT(\"'\"&F4164&\"'!\"&H4164),\"0\"),Notes!$B$5:$C$100,2,FALSE),\"\"))","v":""},"2b","$U$110","$V$110"]
[19556,{"$f":"Menu!$F$29","v":"X"},{"$f":"Menu!$J$29","v":2020},{"$f":"IF(ISBLANK(INDIRECT(\"'\"&F4165&\"'!\"&G4165)),\"\",INDIRECT(\"'\"&F4165&\"'!\"&G4165))","v":""},{"$f":"IF(ISBLANK(INDIRECT(\"'\"&F4165&\"'!\"&H4165)),\"\",IFERROR(VLOOKUP(TEXT(INDIRECT(\"'\"&F4165&\"'!\"&H4165),\"0\"),Notes!$B$5:$C$100,2,FALSE),\"\"))","v":""},"2b","$S$110","$T$110"]
[19557,{"$f":"Menu!$F$29","v":"X"},{"$f":"Menu!$J$29","v":2020},{"$f":"IF(ISBLANK(INDIRECT(\"'\"&F4166&\"'!\"&G4166)),\"\",INDIRECT(\"'\"&F4166&\"'!\"&G4166))","v":""},{"$f":"IF(ISBLANK(INDIRECT(\"'\"&F4166&\"'!\"&H4166)),\"\",IFERROR(VLOOKUP(TEXT(INDIRECT(\"'\"&F4166&\"'!\"&H4166),\"0\"),Notes!$B$5:$C$100,2,FALSE),\"\"))","v":""},"2a","$I$110","$J$110"]
[19558,{"$f":"Menu!$F$29","v":"X"},{"$f":"Menu!$J$29","v":2020},{"$f":"IF(ISBLANK(INDIRECT(\"'\"&F4167&\"'!\"&G4167)),\"\",INDIRECT(\"'\"&F4167&\"'!\"&G4167))","v":""},{"$f":"IF(ISBLANK(INDIRECT(\"'\"&F4167&\"'!\"&H4167)),\"\",IFERROR(VLOOKUP(TEXT(INDIRECT(\"'\"&F4167&\"'!\"&H4167),\"0\"),Notes!$B$5:$C$100,2,FALSE),\"\"))","v":""},"2c","$E$110","$F$110"]
[19559,{"$f":"Menu!$F$29","v":"X"},{"$f":"Menu!$J$29","v":2020},{"$f":"IF(ISBLANK(INDIRECT(\"'\"&F4168&\"'!\"&G4168)),\"\",INDIRECT(\"'\"&F4168&\"'!\"&G4168))","v":""},{"$f":"IF(ISBLANK(INDIRECT(\"'\"&F4168&\"'!\"&H4168)),\"\",IFERROR(VLOOKUP(TEXT(INDIRECT(\"'\"&F4168&\"'!\"&H4168),\"0\"),Notes!$B$5:$C$100,2,FALSE),\"\"))","v":""},"2c","$I$110","$J$110"]
[19560,{"$f":"Menu!$F$29","v":"X"},{"$f":"Menu!$J$29","v":2020},{"$f":"IF(ISBLANK(INDIRECT(\"'\"&F4169&\"'!\"&G4169)),\"\",INDIRECT(\"'\"&F4169&\"'!\"&G4169))","v":""},{"$f":"IF(ISBLANK(INDIRECT(\"'\"&F4169&\"'!\"&H4169)),\"\",IFERROR(VLOOKUP(TEXT(INDIRECT(\"'\"&F4169&\"'!\"&H4169),\"0\"),Notes!$B$5:$C$100,2,FALSE),\"\"))","v":""},"2c","$G$110","$H$110"]
[19561,{"$f":"Menu!$F$29","v":"X"},{"$f":"Menu!$J$29","v":2020},{"$f":"IF(ISBLANK(INDIRECT(\"'\"&F4170&\"'!\"&G4170)),\"\",INDIRECT(\"'\"&F4170&\"'!\"&G4170))","v":""},{"$f":"IF(ISBLANK(INDIRECT(\"'\"&F4170&\"'!\"&H4170)),\"\",IFERROR(VLOOKUP(TEXT(INDIRECT(\"'\"&F4170&\"'!\"&H4170),\"0\"),Notes!$B$5:$C$100,2,FALSE),\"\"))","v":""},"2c","$K$110","$L$110"]
[19562,{"$f":"Menu!$F$29","v":"X"},{"$f":"Menu!$J$29","v":2020},{"$f":"IF(ISBLANK(INDIRECT(\"'\"&F4171&\"'!\"&G4171)),\"\",INDIRECT(\"'\"&F4171&\"'!\"&G4171))","v":""},{"$f":"IF(ISBLANK(INDIRECT(\"'\"&F4171&\"'!\"&H4171)),\"\",IFERROR(VLOOKUP(TEXT(INDIRECT(\"'\"&F4171&\"'!\"&H4171),\"0\"),Notes!$B$5:$C$100,2,FALSE),\"\"))","v":""},"2c","$O$110","$P$110"]
[19563,{"$f":"Menu!$F$29","v":"X"},{"$f":"Menu!$J$29","v":2020},{"$f":"IF(ISBLANK(INDIRECT(\"'\"&F4172&\"'!\"&G4172)),\"\",INDIRECT(\"'\"&F4172&\"'!\"&G4172))","v":""},{"$f":"IF(ISBLANK(INDIRECT(\"'\"&F4172&\"'!\"&H4172)),\"\",IFERROR(VLOOKUP(TEXT(INDIRECT(\"'\"&F4172&\"'!\"&H4172),\"0\"),Notes!$B$5:$C$100,2,FALSE),\"\"))","v":""},"2c","$M$110","$N$110"]
[19564,{"$f":"Menu!$F$29","v":"X"},{"$f":"Menu!$J$29","v":2020},{"$f":"IF(ISBLANK(INDIRECT(\"'\"&F4173&\"'!\"&G4173)),\"\",INDIRECT(\"'\"&F4173&\"'!\"&G4173))","v":""},{"$f":"IF(ISBLANK(INDIRECT(\"'\"&F4173&\"'!\"&H4173)),\"\",IFERROR(VLOOKUP(TEXT(INDIRECT(\"'\"&F4173&\"'!\"&H4173),\"0\"),Notes!$B$5:$C$100,2,FALSE),\"\"))","v":""},"2c","$Q$110","$R$110"]
[19565,{"$f":"Menu!$F$29","v":"X"},{"$f":"Menu!$J$29","v":2020},{"$f":"IF(ISBLANK(INDIRECT(\"'\"&F4174&\"'!\"&G4174)),\"\",INDIRECT(\"'\"&F4174&\"'!\"&G4174))","v":""},{"$f":"IF(ISBLANK(INDIRECT(\"'\"&F4174&\"'!\"&H4174)),\"\",IFERROR(VLOOKUP(TEXT(INDIRECT(\"'\"&F4174&\"'!\"&H4174),\"0\"),Notes!$B$5:$C$100,2,FALSE),\"\"))","v":""},"2c","$U$110","$V$110"]
[19566,{"$f":"Menu!$F$29","v":"X"},{"$f":"Menu!$J$29","v":2020},{"$f":"IF(ISBLANK(INDIRECT(\"'\"&F4175&\"'!\"&G4175)),\"\",INDIRECT(\"'\"&F4175&\"'!\"&G4175))","v":""},{"$f":"IF(ISBLANK(INDIRECT(\"'\"&F4175&\"'!\"&H4175)),\"\",IFERROR(VLOOKUP(TEXT(INDIRECT(\"'\"&F4175&\"'!\"&H4175),\"0\"),Notes!$B$5:$C$100,2,FALSE),\"\"))","v":""},"2c","$S$110","$T$110"]
[19567,{"$f":"Menu!$F$29","v":"X"},{"$f":"Menu!$J$29","v":2020},{"$f":"IF(ISBLANK(INDIRECT(\"'\"&F4176&\"'!\"&G4176)),\"\",INDIRECT(\"'\"&F4176&\"'!\"&G4176))","v":""},{"$f":"IF(ISBLANK(INDIRECT(\"'\"&F4176&\"'!\"&H4176)),\"\",IFERROR(VLOOKUP(TEXT(INDIRECT(\"'\"&F4176&\"'!\"&H4176),\"0\"),Notes!$B$5:$C$100,2,FALSE),\"\"))","v":""},"2c","$W$110","$X$110"]
[19568,{"$f":"Menu!$F$29","v":"X"},{"$f":"Menu!$J$29","v":2020},{"$f":"IF(ISBLANK(INDIRECT(\"'\"&F4177&\"'!\"&G4177)),\"\",INDIRECT(\"'\"&F4177&\"'!\"&G4177))","v":""},{"$f":"IF(ISBLANK(INDIRECT(\"'\"&F4177&\"'!\"&H4177)),\"\",IFERROR(VLOOKUP(TEXT(INDIRECT(\"'\"&F4177&\"'!\"&H4177),\"0\"),Notes!$B$5:$C$100,2,FALSE),\"\"))","v":""},"2c","$AA$110","$AB$110"]
[19569,{"$f":"Menu!$F$29","v":"X"},{"$f":"Menu!$J$29","v":2020},{"$f":"IF(ISBLANK(INDIRECT(\"'\"&F4178&\"'!\"&G4178)),\"\",INDIRECT(\"'\"&F4178&\"'!\"&G4178))","v":""},{"$f":"IF(ISBLANK(INDIRECT(\"'\"&F4178&\"'!\"&H4178)),\"\",IFERROR(VLOOKUP(TEXT(INDIRECT(\"'\"&F4178&\"'!\"&H4178),\"0\"),Notes!$B$5:$C$100,2,FALSE),\"\"))","v":""},"2c","$Y$110","$Z$110"]
[19570,{"$f":"Menu!$F$29","v":"X"},{"$f":"Menu!$J$29","v":2020},{"$f":"IF(ISBLANK(INDIRECT(\"'\"&F4179&\"'!\"&G4179)),\"\",INDIRECT(\"'\"&F4179&\"'!\"&G4179))","v":""},{"$f":"IF(ISBLANK(INDIRECT(\"'\"&F4179&\"'!\"&H4179)),\"\",IFERROR(VLOOKUP(TEXT(INDIRECT(\"'\"&F4179&\"'!\"&H4179),\"0\"),Notes!$B$5:$C$100,2,FALSE),\"\"))","v":""},"2e","$BG$111","$BH$111"]
[19571,{"$f":"Menu!$F$29","v":"X"},{"$f":"Menu!$J$29","v":2020},{"$f":"IF(ISBLANK(INDIRECT(\"'\"&F4180&\"'!\"&G4180)),\"\",INDIRECT(\"'\"&F4180&\"'!\"&G4180))","v":""},{"$f":"IF(ISBLANK(INDIRECT(\"'\"&F4180&\"'!\"&H4180)),\"\",IFERROR(VLOOKUP(TEXT(INDIRECT(\"'\"&F4180&\"'!\"&H4180),\"0\"),Notes!$B$5:$C$100,2,FALSE),\"\"))","v":""},"2e","$BK$111","$BL$111"]
[19572,{"$f":"Menu!$F$29","v":"X"},{"$f":"Menu!$J$29","v":2020},{"$f":"IF(ISBLANK(INDIRECT(\"'\"&F4181&\"'!\"&G4181)),\"\",INDIRECT(\"'\"&F4181&\"'!\"&G4181))","v":""},{"$f":"IF(ISBLANK(INDIRECT(\"'\"&F4181&\"'!\"&H4181)),\"\",IFERROR(VLOOKUP(TEXT(INDIRECT(\"'\"&F4181&\"'!\"&H4181),\"0\"),Notes!$B$5:$C$100,2,FALSE),\"\"))","v":""},"2e","$BI$111","$BJ$111"]
[19573,{"$f":"Menu!$F$29","v":"X"},{"$f":"Menu!$J$29","v":2020},{"$f":"IF(ISBLANK(INDIRECT(\"'\"&F4182&\"'!\"&G4182)),\"\",INDIRECT(\"'\"&F4182&\"'!\"&G4182))","v":""},{"$f":"IF(ISBLANK(INDIRECT(\"'\"&F4182&\"'!\"&H4182)),\"\",IFERROR(VLOOKUP(TEXT(INDIRECT(\"'\"&F4182&\"'!\"&H4182),\"0\"),Notes!$B$5:$C$100,2,FALSE),\"\"))","v":""},"2e","$E$111","$F$111"]
[19574,{"$f":"Menu!$F$29","v":"X"},{"$f":"Menu!$J$29","v":2020},{"$f":"IF(ISBLANK(INDIRECT(\"'\"&F4183&\"'!\"&G4183)),\"\",INDIRECT(\"'\"&F4183&\"'!\"&G4183))","v":""},{"$f":"IF(ISBLANK(INDIRECT(\"'\"&F4183&\"'!\"&H4183)),\"\",IFERROR(VLOOKUP(TEXT(INDIRECT(\"'\"&F4183&\"'!\"&H4183),\"0\"),Notes!$B$5:$C$100,2,FALSE),\"\"))","v":""},"2e","$I$111","$J$111"]
[19575,{"$f":"Menu!$F$29","v":"X"},{"$f":"Menu!$J$29","v":2020},{"$f":"IF(ISBLANK(INDIRECT(\"'\"&F4184&\"'!\"&G4184)),\"\",INDIRECT(\"'\"&F4184&\"'!\"&G4184))","v":""},{"$f":"IF(ISBLANK(INDIRECT(\"'\"&F4184&\"'!\"&H4184)),\"\",IFERROR(VLOOKUP(TEXT(INDIRECT(\"'\"&F4184&\"'!\"&H4184),\"0\"),Notes!$B$5:$C$100,2,FALSE),\"\"))","v":""},"2e","$G$111","$H$111"]
[19576,{"$f":"Menu!$F$29","v":"X"},{"$f":"Menu!$J$29","v":2020},{"$f":"IF(ISBLANK(INDIRECT(\"'\"&F4185&\"'!\"&G4185)),\"\",INDIRECT(\"'\"&F4185&\"'!\"&G4185))","v":""},{"$f":"IF(ISBLANK(INDIRECT(\"'\"&F4185&\"'!\"&H4185)),\"\",IFERROR(VLOOKUP(TEXT(INDIRECT(\"'\"&F4185&\"'!\"&H4185),\"0\"),Notes!$B$5:$C$100,2,FALSE),\"\"))","v":""},"2e","$K$111","$L$111"]
[19577,{"$f":"Menu!$F$29","v":"X"},{"$f":"Menu!$J$29","v":2020},{"$f":"IF(ISBLANK(INDIRECT(\"'\"&F4186&\"'!\"&G4186)),\"\",INDIRECT(\"'\"&F4186&\"'!\"&G4186))","v":""},{"$f":"IF(ISBLANK(INDIRECT(\"'\"&F4186&\"'!\"&H4186)),\"\",IFERROR(VLOOKUP(TEXT(INDIRECT(\"'\"&F4186&\"'!\"&H4186),\"0\"),Notes!$B$5:$C$100,2,FALSE),\"\"))","v":""},"2e","$O$111","$P$111"]
[19578,{"$f":"Menu!$F$29","v":"X"},{"$f":"Menu!$J$29","v":2020},{"$f":"IF(ISBLANK(INDIRECT(\"'\"&F4187&\"'!\"&G4187)),\"\",INDIRECT(\"'\"&F4187&\"'!\"&G4187))","v":""},{"$f":"IF(ISBLANK(INDIRECT(\"'\"&F4187&\"'!\"&H4187)),\"\",IFERROR(VLOOKUP(TEXT(INDIRECT(\"'\"&F4187&\"'!\"&H4187),\"0\"),Notes!$B$5:$C$100,2,FALSE),\"\"))","v":""},"2e","$M$111","$N$111"]
[19579,{"$f":"Menu!$F$29","v":"X"},{"$f":"Menu!$J$29","v":2020},{"$f":"IF(ISBLANK(INDIRECT(\"'\"&F4188&\"'!\"&G4188)),\"\",INDIRECT(\"'\"&F4188&\"'!\"&G4188))","v":""},{"$f":"IF(ISBLANK(INDIRECT(\"'\"&F4188&\"'!\"&H4188)),\"\",IFERROR(VLOOKUP(TEXT(INDIRECT(\"'\"&F4188&\"'!\"&H4188),\"0\"),Notes!$B$5:$C$100,2,FALSE),\"\"))","v":""},"2e","$Q$111","$R$111"]
[19580,{"$f":"Menu!$F$29","v":"X"},{"$f":"Menu!$J$29","v":2020},{"$f":"IF(ISBLANK(INDIRECT(\"'\"&F4189&\"'!\"&G4189)),\"\",INDIRECT(\"'\"&F4189&\"'!\"&G4189))","v":""},{"$f":"IF(ISBLANK(INDIRECT(\"'\"&F4189&\"'!\"&H4189)),\"\",IFERROR(VLOOKUP(TEXT(INDIRECT(\"'\"&F4189&\"'!\"&H4189),\"0\"),Notes!$B$5:$C$100,2,FALSE),\"\"))","v":""},"2e","$U$111","$V$111"]
[19581,{"$f":"Menu!$F$29","v":"X"},{"$f":"Menu!$J$29","v":2020},{"$f":"IF(ISBLANK(INDIRECT(\"'\"&F4190&\"'!\"&G4190)),\"\",INDIRECT(\"'\"&F4190&\"'!\"&G4190))","v":""},{"$f":"IF(ISBLANK(INDIRECT(\"'\"&F4190&\"'!\"&H4190)),\"\",IFERROR(VLOOKUP(TEXT(INDIRECT(\"'\"&F4190&\"'!\"&H4190),\"0\"),Notes!$B$5:$C$100,2,FALSE),\"\"))","v":""},"2e","$S$111","$T$111"]
[19582,{"$f":"Menu!$F$29","v":"X"},{"$f":"Menu!$J$29","v":2020},{"$f":"IF(ISBLANK(INDIRECT(\"'\"&F4191&\"'!\"&G4191)),\"\",INDIRECT(\"'\"&F4191&\"'!\"&G4191))","v":""},{"$f":"IF(ISBLANK(INDIRECT(\"'\"&F4191&\"'!\"&H4191)),\"\",IFERROR(VLOOKUP(TEXT(INDIRECT(\"'\"&F4191&\"'!\"&H4191),\"0\"),Notes!$B$5:$C$100,2,FALSE),\"\"))","v":""},"2e","$W$111","$X$111"]
[19583,{"$f":"Menu!$F$29","v":"X"},{"$f":"Menu!$J$29","v":2020},{"$f":"IF(ISBLANK(INDIRECT(\"'\"&F4192&\"'!\"&G4192)),\"\",INDIRECT(\"'\"&F4192&\"'!\"&G4192))","v":""},{"$f":"IF(ISBLANK(INDIRECT(\"'\"&F4192&\"'!\"&H4192)),\"\",IFERROR(VLOOKUP(TEXT(INDIRECT(\"'\"&F4192&\"'!\"&H4192),\"0\"),Notes!$B$5:$C$100,2,FALSE),\"\"))","v":""},"2e","$AA$111","$AB$111"]
[19584,{"$f":"Menu!$F$29","v":"X"},{"$f":"Menu!$J$29","v":2020},{"$f":"IF(ISBLANK(INDIRECT(\"'\"&F4193&\"'!\"&G4193)),\"\",INDIRECT(\"'\"&F4193&\"'!\"&G4193))","v":""},{"$f":"IF(ISBLANK(INDIRECT(\"'\"&F4193&\"'!\"&H4193)),\"\",IFERROR(VLOOKUP(TEXT(INDIRECT(\"'\"&F4193&\"'!\"&H4193),\"0\"),Notes!$B$5:$C$100,2,FALSE),\"\"))","v":""},"2e","$Y$111","$Z$111"]
[19585,{"$f":"Menu!$F$29","v":"X"},{"$f":"Menu!$J$29","v":2020},{"$f":"IF(ISBLANK(INDIRECT(\"'\"&F4194&\"'!\"&G4194)),\"\",INDIRECT(\"'\"&F4194&\"'!\"&G4194))","v":""},{"$f":"IF(ISBLANK(INDIRECT(\"'\"&F4194&\"'!\"&H4194)),\"\",IFERROR(VLOOKUP(TEXT(INDIRECT(\"'\"&F4194&\"'!\"&H4194),\"0\"),Notes!$B$5:$C$100,2,FALSE),\"\"))","v":""},"2e","$AC$111","$AD$111"]
[19586,{"$f":"Menu!$F$29","v":"X"},{"$f":"Menu!$J$29","v":2020},{"$f":"IF(ISBLANK(INDIRECT(\"'\"&F4195&\"'!\"&G4195)),\"\",INDIRECT(\"'\"&F4195&\"'!\"&G4195))","v":""},{"$f":"IF(ISBLANK(INDIRECT(\"'\"&F4195&\"'!\"&H4195)),\"\",IFERROR(VLOOKUP(TEXT(INDIRECT(\"'\"&F4195&\"'!\"&H4195),\"0\"),Notes!$B$5:$C$100,2,FALSE),\"\"))","v":""},"2e","$AG$111","$AH$111"]
[19587,{"$f":"Menu!$F$29","v":"X"},{"$f":"Menu!$J$29","v":2020},{"$f":"IF(ISBLANK(INDIRECT(\"'\"&F4196&\"'!\"&G4196)),\"\",INDIRECT(\"'\"&F4196&\"'!\"&G4196))","v":""},{"$f":"IF(ISBLANK(INDIRECT(\"'\"&F4196&\"'!\"&H4196)),\"\",IFERROR(VLOOKUP(TEXT(INDIRECT(\"'\"&F4196&\"'!\"&H4196),\"0\"),Notes!$B$5:$C$100,2,FALSE),\"\"))","v":""},"2e","$AE$111","$AF$111"]
[19588,{"$f":"Menu!$F$29","v":"X"},{"$f":"Menu!$J$29","v":2020},{"$f":"IF(ISBLANK(INDIRECT(\"'\"&F4197&\"'!\"&G4197)),\"\",INDIRECT(\"'\"&F4197&\"'!\"&G4197))","v":""},{"$f":"IF(ISBLANK(INDIRECT(\"'\"&F4197&\"'!\"&H4197)),\"\",IFERROR(VLOOKUP(TEXT(INDIRECT(\"'\"&F4197&\"'!\"&H4197),\"0\"),Notes!$B$5:$C$100,2,FALSE),\"\"))","v":""},"2e","$AI$111","$AJ$111"]
[19589,{"$f":"Menu!$F$29","v":"X"},{"$f":"Menu!$J$29","v":2020},{"$f":"IF(ISBLANK(INDIRECT(\"'\"&F4198&\"'!\"&G4198)),\"\",INDIRECT(\"'\"&F4198&\"'!\"&G4198))","v":""},{"$f":"IF(ISBLANK(INDIRECT(\"'\"&F4198&\"'!\"&H4198)),\"\",IFERROR(VLOOKUP(TEXT(INDIRECT(\"'\"&F4198&\"'!\"&H4198),\"0\"),Notes!$B$5:$C$100,2,FALSE),\"\"))","v":""},"2e","$AM$111","$AN$111"]
[19590,{"$f":"Menu!$F$29","v":"X"},{"$f":"Menu!$J$29","v":2020},{"$f":"IF(ISBLANK(INDIRECT(\"'\"&F4199&\"'!\"&G4199)),\"\",INDIRECT(\"'\"&F4199&\"'!\"&G4199))","v":""},{"$f":"IF(ISBLANK(INDIRECT(\"'\"&F4199&\"'!\"&H4199)),\"\",IFERROR(VLOOKUP(TEXT(INDIRECT(\"'\"&F4199&\"'!\"&H4199),\"0\"),Notes!$B$5:$C$100,2,FALSE),\"\"))","v":""},"2e","$AK$111","$AL$111"]
[19591,{"$f":"Menu!$F$29","v":"X"},{"$f":"Menu!$J$29","v":2020},{"$f":"IF(ISBLANK(INDIRECT(\"'\"&F4200&\"'!\"&G4200)),\"\",INDIRECT(\"'\"&F4200&\"'!\"&G4200))","v":""},{"$f":"IF(ISBLANK(INDIRECT(\"'\"&F4200&\"'!\"&H4200)),\"\",IFERROR(VLOOKUP(TEXT(INDIRECT(\"'\"&F4200&\"'!\"&H4200),\"0\"),Notes!$B$5:$C$100,2,FALSE),\"\"))","v":""},"2e","$AO$111","$AP$111"]
[19592,{"$f":"Menu!$F$29","v":"X"},{"$f":"Menu!$J$29","v":2020},{"$f":"IF(ISBLANK(INDIRECT(\"'\"&F4201&\"'!\"&G4201)),\"\",INDIRECT(\"'\"&F4201&\"'!\"&G4201))","v":""},{"$f":"IF(ISBLANK(INDIRECT(\"'\"&F4201&\"'!\"&H4201)),\"\",IFERROR(VLOOKUP(TEXT(INDIRECT(\"'\"&F4201&\"'!\"&H4201),\"0\"),Notes!$B$5:$C$100,2,FALSE),\"\"))","v":""},"2e","$AQ$111","$AR$111"]
[19593,{"$f":"Menu!$F$29","v":"X"},{"$f":"Menu!$J$29","v":2020},{"$f":"IF(ISBLANK(INDIRECT(\"'\"&F4202&\"'!\"&G4202)),\"\",INDIRECT(\"'\"&F4202&\"'!\"&G4202))","v":""},{"$f":"IF(ISBLANK(INDIRECT(\"'\"&F4202&\"'!\"&H4202)),\"\",IFERROR(VLOOKUP(TEXT(INDIRECT(\"'\"&F4202&\"'!\"&H4202),\"0\"),Notes!$B$5:$C$100,2,FALSE),\"\"))","v":""},"2e","$AS$111","$AT$111"]
[19594,{"$f":"Menu!$F$29","v":"X"},{"$f":"Menu!$J$29","v":2020},{"$f":"IF(ISBLANK(INDIRECT(\"'\"&F4203&\"'!\"&G4203)),\"\",INDIRECT(\"'\"&F4203&\"'!\"&G4203))","v":""},{"$f":"IF(ISBLANK(INDIRECT(\"'\"&F4203&\"'!\"&H4203)),\"\",IFERROR(VLOOKUP(TEXT(INDIRECT(\"'\"&F4203&\"'!\"&H4203),\"0\"),Notes!$B$5:$C$100,2,FALSE),\"\"))","v":""},"2e","$AU$111","$AV$111"]
[19595,{"$f":"Menu!$F$29","v":"X"},{"$f":"Menu!$J$29","v":2020},{"$f":"IF(ISBLANK(INDIRECT(\"'\"&F4204&\"'!\"&G4204)),\"\",INDIRECT(\"'\"&F4204&\"'!\"&G4204))","v":""},{"$f":"IF(ISBLANK(INDIRECT(\"'\"&F4204&\"'!\"&H4204)),\"\",IFERROR(VLOOKUP(TEXT(INDIRECT(\"'\"&F4204&\"'!\"&H4204),\"0\"),Notes!$B$5:$C$100,2,FALSE),\"\"))","v":""},"2e","$AY$111","$AZ$111"]
[19596,{"$f":"Menu!$F$29","v":"X"},{"$f":"Menu!$J$29","v":2020},{"$f":"IF(ISBLANK(INDIRECT(\"'\"&F4205&\"'!\"&G4205)),\"\",INDIRECT(\"'\"&F4205&\"'!\"&G4205))","v":""},{"$f":"IF(ISBLANK(INDIRECT(\"'\"&F4205&\"'!\"&H4205)),\"\",IFERROR(VLOOKUP(TEXT(INDIRECT(\"'\"&F4205&\"'!\"&H4205),\"0\"),Notes!$B$5:$C$100,2,FALSE),\"\"))","v":""},"2e","$AW$111","$AX$111"]
[19597,{"$f":"Menu!$F$29","v":"X"},{"$f":"Menu!$J$29","v":2020},{"$f":"IF(ISBLANK(INDIRECT(\"'\"&F4206&\"'!\"&G4206)),\"\",INDIRECT(\"'\"&F4206&\"'!\"&G4206))","v":""},{"$f":"IF(ISBLANK(INDIRECT(\"'\"&F4206&\"'!\"&H4206)),\"\",IFERROR(VLOOKUP(TEXT(INDIRECT(\"'\"&F4206&\"'!\"&H4206),\"0\"),Notes!$B$5:$C$100,2,FALSE),\"\"))","v":""},"2e","$BA$111","$BB$111"]
[19598,{"$f":"Menu!$F$29","v":"X"},{"$f":"Menu!$J$29","v":2020},{"$f":"IF(ISBLANK(INDIRECT(\"'\"&F4207&\"'!\"&G4207)),\"\",INDIRECT(\"'\"&F4207&\"'!\"&G4207))","v":""},{"$f":"IF(ISBLANK(INDIRECT(\"'\"&F4207&\"'!\"&H4207)),\"\",IFERROR(VLOOKUP(TEXT(INDIRECT(\"'\"&F4207&\"'!\"&H4207),\"0\"),Notes!$B$5:$C$100,2,FALSE),\"\"))","v":""},"2e","$BE$111","$BF$111"]
[19599,{"$f":"Menu!$F$29","v":"X"},{"$f":"Menu!$J$29","v":2020},{"$f":"IF(ISBLANK(INDIRECT(\"'\"&F4208&\"'!\"&G4208)),\"\",INDIRECT(\"'\"&F4208&\"'!\"&G4208))","v":""},{"$f":"IF(ISBLANK(INDIRECT(\"'\"&F4208&\"'!\"&H4208)),\"\",IFERROR(VLOOKUP(TEXT(INDIRECT(\"'\"&F4208&\"'!\"&H4208),\"0\"),Notes!$B$5:$C$100,2,FALSE),\"\"))","v":""},"2e","$BC$111","$BD$111"]
[19600,{"$f":"Menu!$F$29","v":"X"},{"$f":"Menu!$J$29","v":2020},{"$f":"IF(ISBLANK(INDIRECT(\"'\"&F4209&\"'!\"&G4209)),\"\",INDIRECT(\"'\"&F4209&\"'!\"&G4209))","v":""},{"$f":"IF(ISBLANK(INDIRECT(\"'\"&F4209&\"'!\"&H4209)),\"\",IFERROR(VLOOKUP(TEXT(INDIRECT(\"'\"&F4209&\"'!\"&H4209),\"0\"),Notes!$B$5:$C$100,2,FALSE),\"\"))","v":""},"2b","$E$110","$F$110"]
[19601,{"$f":"Menu!$F$29","v":"X"},{"$f":"Menu!$J$29","v":2020},{"$f":"IF(ISBLANK(INDIRECT(\"'\"&F4210&\"'!\"&G4210)),\"\",INDIRECT(\"'\"&F4210&\"'!\"&G4210))","v":""},{"$f":"IF(ISBLANK(INDIRECT(\"'\"&F4210&\"'!\"&H4210)),\"\",IFERROR(VLOOKUP(TEXT(INDIRECT(\"'\"&F4210&\"'!\"&H4210),\"0\"),Notes!$B$5:$C$100,2,FALSE),\"\"))","v":""},"2b","$I$110","$J$110"]
[19602,{"$f":"Menu!$F$29","v":"X"},{"$f":"Menu!$J$29","v":2020},{"$f":"IF(ISBLANK(INDIRECT(\"'\"&F4211&\"'!\"&G4211)),\"\",INDIRECT(\"'\"&F4211&\"'!\"&G4211))","v":""},{"$f":"IF(ISBLANK(INDIRECT(\"'\"&F4211&\"'!\"&H4211)),\"\",IFERROR(VLOOKUP(TEXT(INDIRECT(\"'\"&F4211&\"'!\"&H4211),\"0\"),Notes!$B$5:$C$100,2,FALSE),\"\"))","v":""},"2b","$G$110","$H$110"]
[19603,{"$f":"Menu!$F$29","v":"X"},{"$f":"Menu!$J$29","v":2020},{"$f":"IF(ISBLANK(INDIRECT(\"'\"&F4212&\"'!\"&G4212)),\"\",INDIRECT(\"'\"&F4212&\"'!\"&G4212))","v":""},{"$f":"IF(ISBLANK(INDIRECT(\"'\"&F4212&\"'!\"&H4212)),\"\",IFERROR(VLOOKUP(TEXT(INDIRECT(\"'\"&F4212&\"'!\"&H4212),\"0\"),Notes!$B$5:$C$100,2,FALSE),\"\"))","v":""},"2a","$G$110","$H$110"]
[19604,{"$f":"Menu!$F$29","v":"X"},{"$f":"Menu!$J$29","v":2020},{"$f":"IF(ISBLANK(INDIRECT(\"'\"&F4213&\"'!\"&G4213)),\"\",INDIRECT(\"'\"&F4213&\"'!\"&G4213))","v":""},{"$f":"IF(ISBLANK(INDIRECT(\"'\"&F4213&\"'!\"&H4213)),\"\",IFERROR(VLOOKUP(TEXT(INDIRECT(\"'\"&F4213&\"'!\"&H4213),\"0\"),Notes!$B$5:$C$100,2,FALSE),\"\"))","v":""},"2b","$W$110","$X$110"]
[19605,{"$f":"Menu!$F$29","v":"X"},{"$f":"Menu!$J$29","v":2020},{"$f":"IF(ISBLANK(INDIRECT(\"'\"&F4214&\"'!\"&G4214)),\"\",INDIRECT(\"'\"&F4214&\"'!\"&G4214))","v":""},{"$f":"IF(ISBLANK(INDIRECT(\"'\"&F4214&\"'!\"&H4214)),\"\",IFERROR(VLOOKUP(TEXT(INDIRECT(\"'\"&F4214&\"'!\"&H4214),\"0\"),Notes!$B$5:$C$100,2,FALSE),\"\"))","v":""},"2b","$AA$110","$AB$110"]
[19606,{"$f":"Menu!$F$29","v":"X"},{"$f":"Menu!$J$29","v":2020},{"$f":"IF(ISBLANK(INDIRECT(\"'\"&F4215&\"'!\"&G4215)),\"\",INDIRECT(\"'\"&F4215&\"'!\"&G4215))","v":""},{"$f":"IF(ISBLANK(INDIRECT(\"'\"&F4215&\"'!\"&H4215)),\"\",IFERROR(VLOOKUP(TEXT(INDIRECT(\"'\"&F4215&\"'!\"&H4215),\"0\"),Notes!$B$5:$C$100,2,FALSE),\"\"))","v":""},"2b","$Y$110","$Z$110"]
[19607,{"$f":"Menu!$F$29","v":"X"},{"$f":"Menu!$J$29","v":2020},{"$f":"IF(ISBLANK(INDIRECT(\"'\"&F4216&\"'!\"&G4216)),\"\",INDIRECT(\"'\"&F4216&\"'!\"&G4216))","v":""},{"$f":"IF(ISBLANK(INDIRECT(\"'\"&F4216&\"'!\"&H4216)),\"\",IFERROR(VLOOKUP(TEXT(INDIRECT(\"'\"&F4216&\"'!\"&H4216),\"0\"),Notes!$B$5:$C$100,2,FALSE),\"\"))","v":""},"2d","$AC$110","$AD$110"]
[19608,{"$f":"Menu!$F$29","v":"X"},{"$f":"Menu!$J$29","v":2020},{"$f":"IF(ISBLANK(INDIRECT(\"'\"&F4217&\"'!\"&G4217)),\"\",INDIRECT(\"'\"&F4217&\"'!\"&G4217))","v":""},{"$f":"IF(ISBLANK(INDIRECT(\"'\"&F4217&\"'!\"&H4217)),\"\",IFERROR(VLOOKUP(TEXT(INDIRECT(\"'\"&F4217&\"'!\"&H4217),\"0\"),Notes!$B$5:$C$100,2,FALSE),\"\"))","v":""},"2d","$AG$110","$AH$110"]
[19609,{"$f":"Menu!$F$29","v":"X"},{"$f":"Menu!$J$29","v":2020},{"$f":"IF(ISBLANK(INDIRECT(\"'\"&F4218&\"'!\"&G4218)),\"\",INDIRECT(\"'\"&F4218&\"'!\"&G4218))","v":""},{"$f":"IF(ISBLANK(INDIRECT(\"'\"&F4218&\"'!\"&H4218)),\"\",IFERROR(VLOOKUP(TEXT(INDIRECT(\"'\"&F4218&\"'!\"&H4218),\"0\"),Notes!$B$5:$C$100,2,FALSE),\"\"))","v":""},"2d","$AE$110","$AF$110"]
[19610,{"$f":"Menu!$F$29","v":"X"},{"$f":"Menu!$J$29","v":2020},{"$f":"IF(ISBLANK(INDIRECT(\"'\"&F4219&\"'!\"&G4219)),\"\",INDIRECT(\"'\"&F4219&\"'!\"&G4219))","v":""},{"$f":"IF(ISBLANK(INDIRECT(\"'\"&F4219&\"'!\"&H4219)),\"\",IFERROR(VLOOKUP(TEXT(INDIRECT(\"'\"&F4219&\"'!\"&H4219),\"0\"),Notes!$B$5:$C$100,2,FALSE),\"\"))","v":""},"2d","$W$110","$X$110"]
[19611,{"$f":"Menu!$F$29","v":"X"},{"$f":"Menu!$J$29","v":2020},{"$f":"IF(ISBLANK(INDIRECT(\"'\"&F4220&\"'!\"&G4220)),\"\",INDIRECT(\"'\"&F4220&\"'!\"&G4220))","v":""},{"$f":"IF(ISBLANK(INDIRECT(\"'\"&F4220&\"'!\"&H4220)),\"\",IFERROR(VLOOKUP(TEXT(INDIRECT(\"'\"&F4220&\"'!\"&H4220),\"0\"),Notes!$B$5:$C$100,2,FALSE),\"\"))","v":""},"2d","$AA$110","$AB$110"]
[19612,{"$f":"Menu!$F$29","v":"X"},{"$f":"Menu!$J$29","v":2020},{"$f":"IF(ISBLANK(INDIRECT(\"'\"&F4221&\"'!\"&G4221)),\"\",INDIRECT(\"'\"&F4221&\"'!\"&G4221))","v":""},{"$f":"IF(ISBLANK(INDIRECT(\"'\"&F4221&\"'!\"&H4221)),\"\",IFERROR(VLOOKUP(TEXT(INDIRECT(\"'\"&F4221&\"'!\"&H4221),\"0\"),Notes!$B$5:$C$100,2,FALSE),\"\"))","v":""},"2d","$Y$110","$Z$110"]
[19613,{"$f":"Menu!$F$29","v":"X"},{"$f":"Menu!$J$29","v":2020},{"$f":"IF(ISBLANK(INDIRECT(\"'\"&F4222&\"'!\"&G4222)),\"\",INDIRECT(\"'\"&F4222&\"'!\"&G4222))","v":""},{"$f":"IF(ISBLANK(INDIRECT(\"'\"&F4222&\"'!\"&H4222)),\"\",IFERROR(VLOOKUP(TEXT(INDIRECT(\"'\"&F4222&\"'!\"&H4222),\"0\"),Notes!$B$5:$C$100,2,FALSE),\"\"))","v":""},"2d","$E$110","$F$110"]
[19614,{"$f":"Menu!$F$29","v":"X"},{"$f":"Menu!$J$29","v":2020},{"$f":"IF(ISBLANK(INDIRECT(\"'\"&F4223&\"'!\"&G4223)),\"\",INDIRECT(\"'\"&F4223&\"'!\"&G4223))","v":""},{"$f":"IF(ISBLANK(INDIRECT(\"'\"&F4223&\"'!\"&H4223)),\"\",IFERROR(VLOOKUP(TEXT(INDIRECT(\"'\"&F4223&\"'!\"&H4223),\"0\"),Notes!$B$5:$C$100,2,FALSE),\"\"))","v":""},"2d","$I$110","$J$110"]
[19615,{"$f":"Menu!$F$29","v":"X"},{"$f":"Menu!$J$29","v":2020},{"$f":"IF(ISBLANK(INDIRECT(\"'\"&F4224&\"'!\"&G4224)),\"\",INDIRECT(\"'\"&F4224&\"'!\"&G4224))","v":""},{"$f":"IF(ISBLANK(INDIRECT(\"'\"&F4224&\"'!\"&H4224)),\"\",IFERROR(VLOOKUP(TEXT(INDIRECT(\"'\"&F4224&\"'!\"&H4224),\"0\"),Notes!$B$5:$C$100,2,FALSE),\"\"))","v":""},"2d","$G$110","$H$110"]
[19616,{"$f":"Menu!$F$29","v":"X"},{"$f":"Menu!$J$29","v":2020},{"$f":"IF(ISBLANK(INDIRECT(\"'\"&F4225&\"'!\"&G4225)),\"\",INDIRECT(\"'\"&F4225&\"'!\"&G4225))","v":""},{"$f":"IF(ISBLANK(INDIRECT(\"'\"&F4225&\"'!\"&H4225)),\"\",IFERROR(VLOOKUP(TEXT(INDIRECT(\"'\"&F4225&\"'!\"&H4225),\"0\"),Notes!$B$5:$C$100,2,FALSE),\"\"))","v":""},"2a","$U$110","$V$110"]
[19617,{"$f":"Menu!$F$29","v":"X"},{"$f":"Menu!$J$29","v":2020},{"$f":"IF(ISBLANK(INDIRECT(\"'\"&F4226&\"'!\"&G4226)),\"\",INDIRECT(\"'\"&F4226&\"'!\"&G4226))","v":""},{"$f":"IF(ISBLANK(INDIRECT(\"'\"&F4226&\"'!\"&H4226)),\"\",IFERROR(VLOOKUP(TEXT(INDIRECT(\"'\"&F4226&\"'!\"&H4226),\"0\"),Notes!$B$5:$C$100,2,FALSE),\"\"))","v":""},"2a","$S$110",{"$f":"IF(LEN(TRIM(MID(G4226,4,10)))-LEN(SUBSTITUTE(TRIM(MID(G4226,4,10)),\"$\",\"\"))=0,\"$\"&CHAR(CODE(MID(G4226,2,1))+1)&\"$\"&TRIM(MID(G4226,4,10)),\"$\"&MID(G4226,2,1)&CHAR(CODE(MID(G4226,3,1))+1)&\"$\"&TRIM(MID(G4226,5,11)))","v":"$T$110"}]
[19618,{"$f":"Menu!$F$29","v":"X"},{"$f":"Menu!$J$29","v":2020},{"$f":"IF(ISBLANK(INDIRECT(\"'\"&F4227&\"'!\"&G4227)),\"\",INDIRECT(\"'\"&F4227&\"'!\"&G4227))","v":""},{"$f":"IF(ISBLANK(INDIRECT(\"'\"&F4227&\"'!\"&H4227)),\"\",IFERROR(VLOOKUP(TEXT(INDIRECT(\"'\"&F4227&\"'!\"&H4227),\"0\"),Notes!$B$5:$C$100,2,FALSE),\"\"))","v":""},"2a","$Q$110","$R$110"]
[19619,{"$f":"Menu!$F$29","v":"X"},{"$f":"Menu!$J$29","v":2020},{"$f":"IF(ISBLANK(INDIRECT(\"'\"&F4228&\"'!\"&G4228)),\"\",INDIRECT(\"'\"&F4228&\"'!\"&G4228))","v":""},{"$f":"IF(ISBLANK(INDIRECT(\"'\"&F4228&\"'!\"&H4228)),\"\",IFERROR(VLOOKUP(TEXT(INDIRECT(\"'\"&F4228&\"'!\"&H4228),\"0\"),Notes!$B$5:$C$100,2,FALSE),\"\"))","v":""},"2d","$K$110","$L$110"]
[19620,{"$f":"Menu!$F$29","v":"X"},{"$f":"Menu!$J$29","v":2020},{"$f":"IF(ISBLANK(INDIRECT(\"'\"&F4229&\"'!\"&G4229)),\"\",INDIRECT(\"'\"&F4229&\"'!\"&G4229))","v":""},{"$f":"IF(ISBLANK(INDIRECT(\"'\"&F4229&\"'!\"&H4229)),\"\",IFERROR(VLOOKUP(TEXT(INDIRECT(\"'\"&F4229&\"'!\"&H4229),\"0\"),Notes!$B$5:$C$100,2,FALSE),\"\"))","v":""},"2d","$O$110","$P$110"]
[19621,{"$f":"Menu!$F$29","v":"X"},{"$f":"Menu!$J$29","v":2020},{"$f":"IF(ISBLANK(INDIRECT(\"'\"&F4230&\"'!\"&G4230)),\"\",INDIRECT(\"'\"&F4230&\"'!\"&G4230))","v":""},{"$f":"IF(ISBLANK(INDIRECT(\"'\"&F4230&\"'!\"&H4230)),\"\",IFERROR(VLOOKUP(TEXT(INDIRECT(\"'\"&F4230&\"'!\"&H4230),\"0\"),Notes!$B$5:$C$100,2,FALSE),\"\"))","v":""},"2d","$M$110","$N$110"]
[19622,{"$f":"Menu!$F$29","v":"X"},{"$f":"Menu!$J$29","v":2020},{"$f":"IF(ISBLANK(INDIRECT(\"'\"&F4231&\"'!\"&G4231)),\"\",INDIRECT(\"'\"&F4231&\"'!\"&G4231))","v":""},{"$f":"IF(ISBLANK(INDIRECT(\"'\"&F4231&\"'!\"&H4231)),\"\",IFERROR(VLOOKUP(TEXT(INDIRECT(\"'\"&F4231&\"'!\"&H4231),\"0\"),Notes!$B$5:$C$100,2,FALSE),\"\"))","v":""},"2d","$Q$110","$R$110"]
[19623,{"$f":"Menu!$F$29","v":"X"},{"$f":"Menu!$J$29","v":2020},{"$f":"IF(ISBLANK(INDIRECT(\"'\"&F4232&\"'!\"&G4232)),\"\",INDIRECT(\"'\"&F4232&\"'!\"&G4232))","v":""},{"$f":"IF(ISBLANK(INDIRECT(\"'\"&F4232&\"'!\"&H4232)),\"\",IFERROR(VLOOKUP(TEXT(INDIRECT(\"'\"&F4232&\"'!\"&H4232),\"0\"),Notes!$B$5:$C$100,2,FALSE),\"\"))","v":""},"2d","$U$110","$V$110"]
[19624,{"$f":"Menu!$F$29","v":"X"},{"$f":"Menu!$J$29","v":2020},{"$f":"IF(ISBLANK(INDIRECT(\"'\"&F4233&\"'!\"&G4233)),\"\",INDIRECT(\"'\"&F4233&\"'!\"&G4233))","v":""},{"$f":"IF(ISBLANK(INDIRECT(\"'\"&F4233&\"'!\"&H4233)),\"\",IFERROR(VLOOKUP(TEXT(INDIRECT(\"'\"&F4233&\"'!\"&H4233),\"0\"),Notes!$B$5:$C$100,2,FALSE),\"\"))","v":""},"2d","$S$110","$T$110"]
[19625,{"$f":"Menu!$F$29","v":"X"},{"$f":"Menu!$J$29","v":2020},{"$f":"IF(ISBLANK(INDIRECT(\"'\"&F4234&\"'!\"&G4234)),\"\",INDIRECT(\"'\"&F4234&\"'!\"&G4234))","v":""},{"$f":"IF(ISBLANK(INDIRECT(\"'\"&F4234&\"'!\"&H4234)),\"\",IFERROR(VLOOKUP(TEXT(INDIRECT(\"'\"&F4234&\"'!\"&H4234),\"0\"),Notes!$B$5:$C$100,2,FALSE),\"\"))","v":""},"2a","$O$110","$P$110"]
[19626,{"$f":"Menu!$F$29","v":"X"},{"$f":"Menu!$J$29","v":2020},{"$f":"IF(ISBLANK(INDIRECT(\"'\"&F4235&\"'!\"&G4235)),\"\",INDIRECT(\"'\"&F4235&\"'!\"&G4235))","v":""},{"$f":"IF(ISBLANK(INDIRECT(\"'\"&F4235&\"'!\"&H4235)),\"\",IFERROR(VLOOKUP(TEXT(INDIRECT(\"'\"&F4235&\"'!\"&H4235),\"0\"),Notes!$B$5:$C$100,2,FALSE),\"\"))","v":""},"2a","$M$110","$N$110"]
[19627,{"$f":"Menu!$F$29","v":"X"},{"$f":"Menu!$J$29","v":2020},{"$f":"IF(ISBLANK(INDIRECT(\"'\"&F4236&\"'!\"&G4236)),\"\",INDIRECT(\"'\"&F4236&\"'!\"&G4236))","v":""},{"$f":"IF(ISBLANK(INDIRECT(\"'\"&F4236&\"'!\"&H4236)),\"\",IFERROR(VLOOKUP(TEXT(INDIRECT(\"'\"&F4236&\"'!\"&H4236),\"0\"),Notes!$B$5:$C$100,2,FALSE),\"\"))","v":""},"2a","$K$110","$L$110"]
[19628,{"$f":"Menu!$F$29","v":"X"},{"$f":"Menu!$J$29","v":2020},{"$f":"IF(ISBLANK(INDIRECT(\"'\"&F4237&\"'!\"&G4237)),\"\",INDIRECT(\"'\"&F4237&\"'!\"&G4237))","v":""},{"$f":"IF(ISBLANK(INDIRECT(\"'\"&F4237&\"'!\"&H4237)),\"\",IFERROR(VLOOKUP(TEXT(INDIRECT(\"'\"&F4237&\"'!\"&H4237),\"0\"),Notes!$B$5:$C$100,2,FALSE),\"\"))","v":""},"2a","$E$110","$F$110"]
[19629,{"$f":"Menu!$F$29","v":"X"},{"$f":"Menu!$J$29","v":2020},{"$f":"IF(ISBLANK(INDIRECT(\"'\"&F4238&\"'!\"&G4238)),\"\",INDIRECT(\"'\"&F4238&\"'!\"&G4238))","v":""},{"$f":"IF(ISBLANK(INDIRECT(\"'\"&F4238&\"'!\"&H4238)),\"\",IFERROR(VLOOKUP(TEXT(INDIRECT(\"'\"&F4238&\"'!\"&H4238),\"0\"),Notes!$B$5:$C$100,2,FALSE),\"\"))","v":""},"2b","$K$111","$L$111"]
[19630,{"$f":"Menu!$F$29","v":"X"},{"$f":"Menu!$J$29","v":2020},{"$f":"IF(ISBLANK(INDIRECT(\"'\"&F4239&\"'!\"&G4239)),\"\",INDIRECT(\"'\"&F4239&\"'!\"&G4239))","v":""},{"$f":"IF(ISBLANK(INDIRECT(\"'\"&F4239&\"'!\"&H4239)),\"\",IFERROR(VLOOKUP(TEXT(INDIRECT(\"'\"&F4239&\"'!\"&H4239),\"0\"),Notes!$B$5:$C$100,2,FALSE),\"\"))","v":""},"2b","$O$111","$P$111"]
[19631,{"$f":"Menu!$F$29","v":"X"},{"$f":"Menu!$J$29","v":2020},{"$f":"IF(ISBLANK(INDIRECT(\"'\"&F4240&\"'!\"&G4240)),\"\",INDIRECT(\"'\"&F4240&\"'!\"&G4240))","v":""},{"$f":"IF(ISBLANK(INDIRECT(\"'\"&F4240&\"'!\"&H4240)),\"\",IFERROR(VLOOKUP(TEXT(INDIRECT(\"'\"&F4240&\"'!\"&H4240),\"0\"),Notes!$B$5:$C$100,2,FALSE),\"\"))","v":""},"2b","$M$111","$N$111"]
[19632,{"$f":"Menu!$F$29","v":"X"},{"$f":"Menu!$J$29","v":2020},{"$f":"IF(ISBLANK(INDIRECT(\"'\"&F4241&\"'!\"&G4241)),\"\",INDIRECT(\"'\"&F4241&\"'!\"&G4241))","v":""},{"$f":"IF(ISBLANK(INDIRECT(\"'\"&F4241&\"'!\"&H4241)),\"\",IFERROR(VLOOKUP(TEXT(INDIRECT(\"'\"&F4241&\"'!\"&H4241),\"0\"),Notes!$B$5:$C$100,2,FALSE),\"\"))","v":""},"2b","$Q$111","$R$111"]
[19633,{"$f":"Menu!$F$29","v":"X"},{"$f":"Menu!$J$29","v":2020},{"$f":"IF(ISBLANK(INDIRECT(\"'\"&F4242&\"'!\"&G4242)),\"\",INDIRECT(\"'\"&F4242&\"'!\"&G4242))","v":""},{"$f":"IF(ISBLANK(INDIRECT(\"'\"&F4242&\"'!\"&H4242)),\"\",IFERROR(VLOOKUP(TEXT(INDIRECT(\"'\"&F4242&\"'!\"&H4242),\"0\"),Notes!$B$5:$C$100,2,FALSE),\"\"))","v":""},"2b","$U$111","$V$111"]
[19634,{"$f":"Menu!$F$29","v":"X"},{"$f":"Menu!$J$29","v":2020},{"$f":"IF(ISBLANK(INDIRECT(\"'\"&F4243&\"'!\"&G4243)),\"\",INDIRECT(\"'\"&F4243&\"'!\"&G4243))","v":""},{"$f":"IF(ISBLANK(INDIRECT(\"'\"&F4243&\"'!\"&H4243)),\"\",IFERROR(VLOOKUP(TEXT(INDIRECT(\"'\"&F4243&\"'!\"&H4243),\"0\"),Notes!$B$5:$C$100,2,FALSE),\"\"))","v":""},"2b","$S$111","$T$111"]
[19635,{"$f":"Menu!$F$29","v":"X"},{"$f":"Menu!$J$29","v":2020},{"$f":"IF(ISBLANK(INDIRECT(\"'\"&F4244&\"'!\"&G4244)),\"\",INDIRECT(\"'\"&F4244&\"'!\"&G4244))","v":""},{"$f":"IF(ISBLANK(INDIRECT(\"'\"&F4244&\"'!\"&H4244)),\"\",IFERROR(VLOOKUP(TEXT(INDIRECT(\"'\"&F4244&\"'!\"&H4244),\"0\"),Notes!$B$5:$C$100,2,FALSE),\"\"))","v":""},"2a","$I$111","$J$111"]
[19636,{"$f":"Menu!$F$29","v":"X"},{"$f":"Menu!$J$29","v":2020},{"$f":"IF(ISBLANK(INDIRECT(\"'\"&F4245&\"'!\"&G4245)),\"\",INDIRECT(\"'\"&F4245&\"'!\"&G4245))","v":""},{"$f":"IF(ISBLANK(INDIRECT(\"'\"&F4245&\"'!\"&H4245)),\"\",IFERROR(VLOOKUP(TEXT(INDIRECT(\"'\"&F4245&\"'!\"&H4245),\"0\"),Notes!$B$5:$C$100,2,FALSE),\"\"))","v":""},"2c","$E$111","$F$111"]
[19637,{"$f":"Menu!$F$29","v":"X"},{"$f":"Menu!$J$29","v":2020},{"$f":"IF(ISBLANK(INDIRECT(\"'\"&F4246&\"'!\"&G4246)),\"\",INDIRECT(\"'\"&F4246&\"'!\"&G4246))","v":""},{"$f":"IF(ISBLANK(INDIRECT(\"'\"&F4246&\"'!\"&H4246)),\"\",IFERROR(VLOOKUP(TEXT(INDIRECT(\"'\"&F4246&\"'!\"&H4246),\"0\"),Notes!$B$5:$C$100,2,FALSE),\"\"))","v":""},"2c","$I$111","$J$111"]
[19638,{"$f":"Menu!$F$29","v":"X"},{"$f":"Menu!$J$29","v":2020},{"$f":"IF(ISBLANK(INDIRECT(\"'\"&F4247&\"'!\"&G4247)),\"\",INDIRECT(\"'\"&F4247&\"'!\"&G4247))","v":""},{"$f":"IF(ISBLANK(INDIRECT(\"'\"&F4247&\"'!\"&H4247)),\"\",IFERROR(VLOOKUP(TEXT(INDIRECT(\"'\"&F4247&\"'!\"&H4247),\"0\"),Notes!$B$5:$C$100,2,FALSE),\"\"))","v":""},"2c","$G$111","$H$111"]
[19639,{"$f":"Menu!$F$29","v":"X"},{"$f":"Menu!$J$29","v":2020},{"$f":"IF(ISBLANK(INDIRECT(\"'\"&F4248&\"'!\"&G4248)),\"\",INDIRECT(\"'\"&F4248&\"'!\"&G4248))","v":""},{"$f":"IF(ISBLANK(INDIRECT(\"'\"&F4248&\"'!\"&H4248)),\"\",IFERROR(VLOOKUP(TEXT(INDIRECT(\"'\"&F4248&\"'!\"&H4248),\"0\"),Notes!$B$5:$C$100,2,FALSE),\"\"))","v":""},"2c","$K$111","$L$111"]
[19640,{"$f":"Menu!$F$29","v":"X"},{"$f":"Menu!$J$29","v":2020},{"$f":"IF(ISBLANK(INDIRECT(\"'\"&F4249&\"'!\"&G4249)),\"\",INDIRECT(\"'\"&F4249&\"'!\"&G4249))","v":""},{"$f":"IF(ISBLANK(INDIRECT(\"'\"&F4249&\"'!\"&H4249)),\"\",IFERROR(VLOOKUP(TEXT(INDIRECT(\"'\"&F4249&\"'!\"&H4249),\"0\"),Notes!$B$5:$C$100,2,FALSE),\"\"))","v":""},"2c","$O$111","$P$111"]
[19641,{"$f":"Menu!$F$29","v":"X"},{"$f":"Menu!$J$29","v":2020},{"$f":"IF(ISBLANK(INDIRECT(\"'\"&F4250&\"'!\"&G4250)),\"\",INDIRECT(\"'\"&F4250&\"'!\"&G4250))","v":""},{"$f":"IF(ISBLANK(INDIRECT(\"'\"&F4250&\"'!\"&H4250)),\"\",IFERROR(VLOOKUP(TEXT(INDIRECT(\"'\"&F4250&\"'!\"&H4250),\"0\"),Notes!$B$5:$C$100,2,FALSE),\"\"))","v":""},"2c","$M$111","$N$111"]
[19642,{"$f":"Menu!$F$29","v":"X"},{"$f":"Menu!$J$29","v":2020},{"$f":"IF(ISBLANK(INDIRECT(\"'\"&F4251&\"'!\"&G4251)),\"\",INDIRECT(\"'\"&F4251&\"'!\"&G4251))","v":""},{"$f":"IF(ISBLANK(INDIRECT(\"'\"&F4251&\"'!\"&H4251)),\"\",IFERROR(VLOOKUP(TEXT(INDIRECT(\"'\"&F4251&\"'!\"&H4251),\"0\"),Notes!$B$5:$C$100,2,FALSE),\"\"))","v":""},"2c","$Q$111","$R$111"]
[19643,{"$f":"Menu!$F$29","v":"X"},{"$f":"Menu!$J$29","v":2020},{"$f":"IF(ISBLANK(INDIRECT(\"'\"&F4252&\"'!\"&G4252)),\"\",INDIRECT(\"'\"&F4252&\"'!\"&G4252))","v":""},{"$f":"IF(ISBLANK(INDIRECT(\"'\"&F4252&\"'!\"&H4252)),\"\",IFERROR(VLOOKUP(TEXT(INDIRECT(\"'\"&F4252&\"'!\"&H4252),\"0\"),Notes!$B$5:$C$100,2,FALSE),\"\"))","v":""},"2c","$U$111","$V$111"]
[19644,{"$f":"Menu!$F$29","v":"X"},{"$f":"Menu!$J$29","v":2020},{"$f":"IF(ISBLANK(INDIRECT(\"'\"&F4253&\"'!\"&G4253)),\"\",INDIRECT(\"'\"&F4253&\"'!\"&G4253))","v":""},{"$f":"IF(ISBLANK(INDIRECT(\"'\"&F4253&\"'!\"&H4253)),\"\",IFERROR(VLOOKUP(TEXT(INDIRECT(\"'\"&F4253&\"'!\"&H4253),\"0\"),Notes!$B$5:$C$100,2,FALSE),\"\"))","v":""},"2c","$S$111","$T$111"]
[19645,{"$f":"Menu!$F$29","v":"X"},{"$f":"Menu!$J$29","v":2020},{"$f":"IF(ISBLANK(INDIRECT(\"'\"&F4254&\"'!\"&G4254)),\"\",INDIRECT(\"'\"&F4254&\"'!\"&G4254))","v":""},{"$f":"IF(ISBLANK(INDIRECT(\"'\"&F4254&\"'!\"&H4254)),\"\",IFERROR(VLOOKUP(TEXT(INDIRECT(\"'\"&F4254&\"'!\"&H4254),\"0\"),Notes!$B$5:$C$100,2,FALSE),\"\"))","v":""},"2c","$W$111","$X$111"]
[19646,{"$f":"Menu!$F$29","v":"X"},{"$f":"Menu!$J$29","v":2020},{"$f":"IF(ISBLANK(INDIRECT(\"'\"&F4255&\"'!\"&G4255)),\"\",INDIRECT(\"'\"&F4255&\"'!\"&G4255))","v":""},{"$f":"IF(ISBLANK(INDIRECT(\"'\"&F4255&\"'!\"&H4255)),\"\",IFERROR(VLOOKUP(TEXT(INDIRECT(\"'\"&F4255&\"'!\"&H4255),\"0\"),Notes!$B$5:$C$100,2,FALSE),\"\"))","v":""},"2c","$AA$111","$AB$111"]
[19647,{"$f":"Menu!$F$29","v":"X"},{"$f":"Menu!$J$29","v":2020},{"$f":"IF(ISBLANK(INDIRECT(\"'\"&F4256&\"'!\"&G4256)),\"\",INDIRECT(\"'\"&F4256&\"'!\"&G4256))","v":""},{"$f":"IF(ISBLANK(INDIRECT(\"'\"&F4256&\"'!\"&H4256)),\"\",IFERROR(VLOOKUP(TEXT(INDIRECT(\"'\"&F4256&\"'!\"&H4256),\"0\"),Notes!$B$5:$C$100,2,FALSE),\"\"))","v":""},"2c","$Y$111","$Z$111"]
[19648,{"$f":"Menu!$F$29","v":"X"},{"$f":"Menu!$J$29","v":2020},{"$f":"IF(ISBLANK(INDIRECT(\"'\"&F4257&\"'!\"&G4257)),\"\",INDIRECT(\"'\"&F4257&\"'!\"&G4257))","v":""},{"$f":"IF(ISBLANK(INDIRECT(\"'\"&F4257&\"'!\"&H4257)),\"\",IFERROR(VLOOKUP(TEXT(INDIRECT(\"'\"&F4257&\"'!\"&H4257),\"0\"),Notes!$B$5:$C$100,2,FALSE),\"\"))","v":""},"2e","$BG$112","$BH$112"]
[19649,{"$f":"Menu!$F$29","v":"X"},{"$f":"Menu!$J$29","v":2020},{"$f":"IF(ISBLANK(INDIRECT(\"'\"&F4258&\"'!\"&G4258)),\"\",INDIRECT(\"'\"&F4258&\"'!\"&G4258))","v":""},{"$f":"IF(ISBLANK(INDIRECT(\"'\"&F4258&\"'!\"&H4258)),\"\",IFERROR(VLOOKUP(TEXT(INDIRECT(\"'\"&F4258&\"'!\"&H4258),\"0\"),Notes!$B$5:$C$100,2,FALSE),\"\"))","v":""},"2e","$BK$112","$BL$112"]
[19650,{"$f":"Menu!$F$29","v":"X"},{"$f":"Menu!$J$29","v":2020},{"$f":"IF(ISBLANK(INDIRECT(\"'\"&F4259&\"'!\"&G4259)),\"\",INDIRECT(\"'\"&F4259&\"'!\"&G4259))","v":""},{"$f":"IF(ISBLANK(INDIRECT(\"'\"&F4259&\"'!\"&H4259)),\"\",IFERROR(VLOOKUP(TEXT(INDIRECT(\"'\"&F4259&\"'!\"&H4259),\"0\"),Notes!$B$5:$C$100,2,FALSE),\"\"))","v":""},"2e","$BI$112","$BJ$112"]
[19651,{"$f":"Menu!$F$29","v":"X"},{"$f":"Menu!$J$29","v":2020},{"$f":"IF(ISBLANK(INDIRECT(\"'\"&F4260&\"'!\"&G4260)),\"\",INDIRECT(\"'\"&F4260&\"'!\"&G4260))","v":""},{"$f":"IF(ISBLANK(INDIRECT(\"'\"&F4260&\"'!\"&H4260)),\"\",IFERROR(VLOOKUP(TEXT(INDIRECT(\"'\"&F4260&\"'!\"&H4260),\"0\"),Notes!$B$5:$C$100,2,FALSE),\"\"))","v":""},"2e","$E$112","$F$112"]
[19652,{"$f":"Menu!$F$29","v":"X"},{"$f":"Menu!$J$29","v":2020},{"$f":"IF(ISBLANK(INDIRECT(\"'\"&F4261&\"'!\"&G4261)),\"\",INDIRECT(\"'\"&F4261&\"'!\"&G4261))","v":""},{"$f":"IF(ISBLANK(INDIRECT(\"'\"&F4261&\"'!\"&H4261)),\"\",IFERROR(VLOOKUP(TEXT(INDIRECT(\"'\"&F4261&\"'!\"&H4261),\"0\"),Notes!$B$5:$C$100,2,FALSE),\"\"))","v":""},"2e","$I$112","$J$112"]
[19653,{"$f":"Menu!$F$29","v":"X"},{"$f":"Menu!$J$29","v":2020},{"$f":"IF(ISBLANK(INDIRECT(\"'\"&F4262&\"'!\"&G4262)),\"\",INDIRECT(\"'\"&F4262&\"'!\"&G4262))","v":""},{"$f":"IF(ISBLANK(INDIRECT(\"'\"&F4262&\"'!\"&H4262)),\"\",IFERROR(VLOOKUP(TEXT(INDIRECT(\"'\"&F4262&\"'!\"&H4262),\"0\"),Notes!$B$5:$C$100,2,FALSE),\"\"))","v":""},"2e","$G$112","$H$112"]
[19654,{"$f":"Menu!$F$29","v":"X"},{"$f":"Menu!$J$29","v":2020},{"$f":"IF(ISBLANK(INDIRECT(\"'\"&F4263&\"'!\"&G4263)),\"\",INDIRECT(\"'\"&F4263&\"'!\"&G4263))","v":""},{"$f":"IF(ISBLANK(INDIRECT(\"'\"&F4263&\"'!\"&H4263)),\"\",IFERROR(VLOOKUP(TEXT(INDIRECT(\"'\"&F4263&\"'!\"&H4263),\"0\"),Notes!$B$5:$C$100,2,FALSE),\"\"))","v":""},"2e","$K$112","$L$112"]
[19655,{"$f":"Menu!$F$29","v":"X"},{"$f":"Menu!$J$29","v":2020},{"$f":"IF(ISBLANK(INDIRECT(\"'\"&F4264&\"'!\"&G4264)),\"\",INDIRECT(\"'\"&F4264&\"'!\"&G4264))","v":""},{"$f":"IF(ISBLANK(INDIRECT(\"'\"&F4264&\"'!\"&H4264)),\"\",IFERROR(VLOOKUP(TEXT(INDIRECT(\"'\"&F4264&\"'!\"&H4264),\"0\"),Notes!$B$5:$C$100,2,FALSE),\"\"))","v":""},"2e","$O$112","$P$112"]
[19656,{"$f":"Menu!$F$29","v":"X"},{"$f":"Menu!$J$29","v":2020},{"$f":"IF(ISBLANK(INDIRECT(\"'\"&F4265&\"'!\"&G4265)),\"\",INDIRECT(\"'\"&F4265&\"'!\"&G4265))","v":""},{"$f":"IF(ISBLANK(INDIRECT(\"'\"&F4265&\"'!\"&H4265)),\"\",IFERROR(VLOOKUP(TEXT(INDIRECT(\"'\"&F4265&\"'!\"&H4265),\"0\"),Notes!$B$5:$C$100,2,FALSE),\"\"))","v":""},"2e","$M$112","$N$112"]
[19657,{"$f":"Menu!$F$29","v":"X"},{"$f":"Menu!$J$29","v":2020},{"$f":"IF(ISBLANK(INDIRECT(\"'\"&F4266&\"'!\"&G4266)),\"\",INDIRECT(\"'\"&F4266&\"'!\"&G4266))","v":""},{"$f":"IF(ISBLANK(INDIRECT(\"'\"&F4266&\"'!\"&H4266)),\"\",IFERROR(VLOOKUP(TEXT(INDIRECT(\"'\"&F4266&\"'!\"&H4266),\"0\"),Notes!$B$5:$C$100,2,FALSE),\"\"))","v":""},"2e","$Q$112","$R$112"]
[19658,{"$f":"Menu!$F$29","v":"X"},{"$f":"Menu!$J$29","v":2020},{"$f":"IF(ISBLANK(INDIRECT(\"'\"&F4267&\"'!\"&G4267)),\"\",INDIRECT(\"'\"&F4267&\"'!\"&G4267))","v":""},{"$f":"IF(ISBLANK(INDIRECT(\"'\"&F4267&\"'!\"&H4267)),\"\",IFERROR(VLOOKUP(TEXT(INDIRECT(\"'\"&F4267&\"'!\"&H4267),\"0\"),Notes!$B$5:$C$100,2,FALSE),\"\"))","v":""},"2e","$U$112","$V$112"]
[19659,{"$f":"Menu!$F$29","v":"X"},{"$f":"Menu!$J$29","v":2020},{"$f":"IF(ISBLANK(INDIRECT(\"'\"&F4268&\"'!\"&G4268)),\"\",INDIRECT(\"'\"&F4268&\"'!\"&G4268))","v":""},{"$f":"IF(ISBLANK(INDIRECT(\"'\"&F4268&\"'!\"&H4268)),\"\",IFERROR(VLOOKUP(TEXT(INDIRECT(\"'\"&F4268&\"'!\"&H4268),\"0\"),Notes!$B$5:$C$100,2,FALSE),\"\"))","v":""},"2e","$S$112","$T$112"]
[19660,{"$f":"Menu!$F$29","v":"X"},{"$f":"Menu!$J$29","v":2020},{"$f":"IF(ISBLANK(INDIRECT(\"'\"&F4269&\"'!\"&G4269)),\"\",INDIRECT(\"'\"&F4269&\"'!\"&G4269))","v":""},{"$f":"IF(ISBLANK(INDIRECT(\"'\"&F4269&\"'!\"&H4269)),\"\",IFERROR(VLOOKUP(TEXT(INDIRECT(\"'\"&F4269&\"'!\"&H4269),\"0\"),Notes!$B$5:$C$100,2,FALSE),\"\"))","v":""},"2e","$W$112","$X$112"]
[19661,{"$f":"Menu!$F$29","v":"X"},{"$f":"Menu!$J$29","v":2020},{"$f":"IF(ISBLANK(INDIRECT(\"'\"&F4270&\"'!\"&G4270)),\"\",INDIRECT(\"'\"&F4270&\"'!\"&G4270))","v":""},{"$f":"IF(ISBLANK(INDIRECT(\"'\"&F4270&\"'!\"&H4270)),\"\",IFERROR(VLOOKUP(TEXT(INDIRECT(\"'\"&F4270&\"'!\"&H4270),\"0\"),Notes!$B$5:$C$100,2,FALSE),\"\"))","v":""},"2e","$AA$112","$AB$112"]
[19662,{"$f":"Menu!$F$29","v":"X"},{"$f":"Menu!$J$29","v":2020},{"$f":"IF(ISBLANK(INDIRECT(\"'\"&F4271&\"'!\"&G4271)),\"\",INDIRECT(\"'\"&F4271&\"'!\"&G4271))","v":""},{"$f":"IF(ISBLANK(INDIRECT(\"'\"&F4271&\"'!\"&H4271)),\"\",IFERROR(VLOOKUP(TEXT(INDIRECT(\"'\"&F4271&\"'!\"&H4271),\"0\"),Notes!$B$5:$C$100,2,FALSE),\"\"))","v":""},"2e","$Y$112","$Z$112"]
[19663,{"$f":"Menu!$F$29","v":"X"},{"$f":"Menu!$J$29","v":2020},{"$f":"IF(ISBLANK(INDIRECT(\"'\"&F4272&\"'!\"&G4272)),\"\",INDIRECT(\"'\"&F4272&\"'!\"&G4272))","v":""},{"$f":"IF(ISBLANK(INDIRECT(\"'\"&F4272&\"'!\"&H4272)),\"\",IFERROR(VLOOKUP(TEXT(INDIRECT(\"'\"&F4272&\"'!\"&H4272),\"0\"),Notes!$B$5:$C$100,2,FALSE),\"\"))","v":""},"2e","$AC$112","$AD$112"]
[19664,{"$f":"Menu!$F$29","v":"X"},{"$f":"Menu!$J$29","v":2020},{"$f":"IF(ISBLANK(INDIRECT(\"'\"&F4273&\"'!\"&G4273)),\"\",INDIRECT(\"'\"&F4273&\"'!\"&G4273))","v":""},{"$f":"IF(ISBLANK(INDIRECT(\"'\"&F4273&\"'!\"&H4273)),\"\",IFERROR(VLOOKUP(TEXT(INDIRECT(\"'\"&F4273&\"'!\"&H4273),\"0\"),Notes!$B$5:$C$100,2,FALSE),\"\"))","v":""},"2e","$AG$112","$AH$112"]
[19665,{"$f":"Menu!$F$29","v":"X"},{"$f":"Menu!$J$29","v":2020},{"$f":"IF(ISBLANK(INDIRECT(\"'\"&F4274&\"'!\"&G4274)),\"\",INDIRECT(\"'\"&F4274&\"'!\"&G4274))","v":""},{"$f":"IF(ISBLANK(INDIRECT(\"'\"&F4274&\"'!\"&H4274)),\"\",IFERROR(VLOOKUP(TEXT(INDIRECT(\"'\"&F4274&\"'!\"&H4274),\"0\"),Notes!$B$5:$C$100,2,FALSE),\"\"))","v":""},"2e","$AE$112","$AF$112"]
[19666,{"$f":"Menu!$F$29","v":"X"},{"$f":"Menu!$J$29","v":2020},{"$f":"IF(ISBLANK(INDIRECT(\"'\"&F4275&\"'!\"&G4275)),\"\",INDIRECT(\"'\"&F4275&\"'!\"&G4275))","v":""},{"$f":"IF(ISBLANK(INDIRECT(\"'\"&F4275&\"'!\"&H4275)),\"\",IFERROR(VLOOKUP(TEXT(INDIRECT(\"'\"&F4275&\"'!\"&H4275),\"0\"),Notes!$B$5:$C$100,2,FALSE),\"\"))","v":""},"2e","$AI$112","$AJ$112"]
[19667,{"$f":"Menu!$F$29","v":"X"},{"$f":"Menu!$J$29","v":2020},{"$f":"IF(ISBLANK(INDIRECT(\"'\"&F4276&\"'!\"&G4276)),\"\",INDIRECT(\"'\"&F4276&\"'!\"&G4276))","v":""},{"$f":"IF(ISBLANK(INDIRECT(\"'\"&F4276&\"'!\"&H4276)),\"\",IFERROR(VLOOKUP(TEXT(INDIRECT(\"'\"&F4276&\"'!\"&H4276),\"0\"),Notes!$B$5:$C$100,2,FALSE),\"\"))","v":""},"2e","$AM$112","$AN$112"]
[19668,{"$f":"Menu!$F$29","v":"X"},{"$f":"Menu!$J$29","v":2020},{"$f":"IF(ISBLANK(INDIRECT(\"'\"&F4277&\"'!\"&G4277)),\"\",INDIRECT(\"'\"&F4277&\"'!\"&G4277))","v":""},{"$f":"IF(ISBLANK(INDIRECT(\"'\"&F4277&\"'!\"&H4277)),\"\",IFERROR(VLOOKUP(TEXT(INDIRECT(\"'\"&F4277&\"'!\"&H4277),\"0\"),Notes!$B$5:$C$100,2,FALSE),\"\"))","v":""},"2e","$AK$112","$AL$112"]
[19669,{"$f":"Menu!$F$29","v":"X"},{"$f":"Menu!$J$29","v":2020},{"$f":"IF(ISBLANK(INDIRECT(\"'\"&F4278&\"'!\"&G4278)),\"\",INDIRECT(\"'\"&F4278&\"'!\"&G4278))","v":""},{"$f":"IF(ISBLANK(INDIRECT(\"'\"&F4278&\"'!\"&H4278)),\"\",IFERROR(VLOOKUP(TEXT(INDIRECT(\"'\"&F4278&\"'!\"&H4278),\"0\"),Notes!$B$5:$C$100,2,FALSE),\"\"))","v":""},"2e","$AO$112","$AP$112"]
[19670,{"$f":"Menu!$F$29","v":"X"},{"$f":"Menu!$J$29","v":2020},{"$f":"IF(ISBLANK(INDIRECT(\"'\"&F4279&\"'!\"&G4279)),\"\",INDIRECT(\"'\"&F4279&\"'!\"&G4279))","v":""},{"$f":"IF(ISBLANK(INDIRECT(\"'\"&F4279&\"'!\"&H4279)),\"\",IFERROR(VLOOKUP(TEXT(INDIRECT(\"'\"&F4279&\"'!\"&H4279),\"0\"),Notes!$B$5:$C$100,2,FALSE),\"\"))","v":""},"2e","$AQ$112","$AR$112"]
[19671,{"$f":"Menu!$F$29","v":"X"},{"$f":"Menu!$J$29","v":2020},{"$f":"IF(ISBLANK(INDIRECT(\"'\"&F4280&\"'!\"&G4280)),\"\",INDIRECT(\"'\"&F4280&\"'!\"&G4280))","v":""},{"$f":"IF(ISBLANK(INDIRECT(\"'\"&F4280&\"'!\"&H4280)),\"\",IFERROR(VLOOKUP(TEXT(INDIRECT(\"'\"&F4280&\"'!\"&H4280),\"0\"),Notes!$B$5:$C$100,2,FALSE),\"\"))","v":""},"2e","$AS$112","$AT$112"]
[19672,{"$f":"Menu!$F$29","v":"X"},{"$f":"Menu!$J$29","v":2020},{"$f":"IF(ISBLANK(INDIRECT(\"'\"&F4281&\"'!\"&G4281)),\"\",INDIRECT(\"'\"&F4281&\"'!\"&G4281))","v":""},{"$f":"IF(ISBLANK(INDIRECT(\"'\"&F4281&\"'!\"&H4281)),\"\",IFERROR(VLOOKUP(TEXT(INDIRECT(\"'\"&F4281&\"'!\"&H4281),\"0\"),Notes!$B$5:$C$100,2,FALSE),\"\"))","v":""},"2e","$AU$112","$AV$112"]
[19673,{"$f":"Menu!$F$29","v":"X"},{"$f":"Menu!$J$29","v":2020},{"$f":"IF(ISBLANK(INDIRECT(\"'\"&F4282&\"'!\"&G4282)),\"\",INDIRECT(\"'\"&F4282&\"'!\"&G4282))","v":""},{"$f":"IF(ISBLANK(INDIRECT(\"'\"&F4282&\"'!\"&H4282)),\"\",IFERROR(VLOOKUP(TEXT(INDIRECT(\"'\"&F4282&\"'!\"&H4282),\"0\"),Notes!$B$5:$C$100,2,FALSE),\"\"))","v":""},"2e","$AY$112","$AZ$112"]
[19674,{"$f":"Menu!$F$29","v":"X"},{"$f":"Menu!$J$29","v":2020},{"$f":"IF(ISBLANK(INDIRECT(\"'\"&F4283&\"'!\"&G4283)),\"\",INDIRECT(\"'\"&F4283&\"'!\"&G4283))","v":""},{"$f":"IF(ISBLANK(INDIRECT(\"'\"&F4283&\"'!\"&H4283)),\"\",IFERROR(VLOOKUP(TEXT(INDIRECT(\"'\"&F4283&\"'!\"&H4283),\"0\"),Notes!$B$5:$C$100,2,FALSE),\"\"))","v":""},"2e","$AW$112","$AX$112"]
[19675,{"$f":"Menu!$F$29","v":"X"},{"$f":"Menu!$J$29","v":2020},{"$f":"IF(ISBLANK(INDIRECT(\"'\"&F4284&\"'!\"&G4284)),\"\",INDIRECT(\"'\"&F4284&\"'!\"&G4284))","v":""},{"$f":"IF(ISBLANK(INDIRECT(\"'\"&F4284&\"'!\"&H4284)),\"\",IFERROR(VLOOKUP(TEXT(INDIRECT(\"'\"&F4284&\"'!\"&H4284),\"0\"),Notes!$B$5:$C$100,2,FALSE),\"\"))","v":""},"2e","$BA$112","$BB$112"]
[19676,{"$f":"Menu!$F$29","v":"X"},{"$f":"Menu!$J$29","v":2020},{"$f":"IF(ISBLANK(INDIRECT(\"'\"&F4285&\"'!\"&G4285)),\"\",INDIRECT(\"'\"&F4285&\"'!\"&G4285))","v":""},{"$f":"IF(ISBLANK(INDIRECT(\"'\"&F4285&\"'!\"&H4285)),\"\",IFERROR(VLOOKUP(TEXT(INDIRECT(\"'\"&F4285&\"'!\"&H4285),\"0\"),Notes!$B$5:$C$100,2,FALSE),\"\"))","v":""},"2e","$BE$112","$BF$112"]
[19677,{"$f":"Menu!$F$29","v":"X"},{"$f":"Menu!$J$29","v":2020},{"$f":"IF(ISBLANK(INDIRECT(\"'\"&F4286&\"'!\"&G4286)),\"\",INDIRECT(\"'\"&F4286&\"'!\"&G4286))","v":""},{"$f":"IF(ISBLANK(INDIRECT(\"'\"&F4286&\"'!\"&H4286)),\"\",IFERROR(VLOOKUP(TEXT(INDIRECT(\"'\"&F4286&\"'!\"&H4286),\"0\"),Notes!$B$5:$C$100,2,FALSE),\"\"))","v":""},"2e","$BC$112","$BD$112"]
[19678,{"$f":"Menu!$F$29","v":"X"},{"$f":"Menu!$J$29","v":2020},{"$f":"IF(ISBLANK(INDIRECT(\"'\"&F4287&\"'!\"&G4287)),\"\",INDIRECT(\"'\"&F4287&\"'!\"&G4287))","v":""},{"$f":"IF(ISBLANK(INDIRECT(\"'\"&F4287&\"'!\"&H4287)),\"\",IFERROR(VLOOKUP(TEXT(INDIRECT(\"'\"&F4287&\"'!\"&H4287),\"0\"),Notes!$B$5:$C$100,2,FALSE),\"\"))","v":""},"2b","$E$111","$F$111"]
[19679,{"$f":"Menu!$F$29","v":"X"},{"$f":"Menu!$J$29","v":2020},{"$f":"IF(ISBLANK(INDIRECT(\"'\"&F4288&\"'!\"&G4288)),\"\",INDIRECT(\"'\"&F4288&\"'!\"&G4288))","v":""},{"$f":"IF(ISBLANK(INDIRECT(\"'\"&F4288&\"'!\"&H4288)),\"\",IFERROR(VLOOKUP(TEXT(INDIRECT(\"'\"&F4288&\"'!\"&H4288),\"0\"),Notes!$B$5:$C$100,2,FALSE),\"\"))","v":""},"2b","$I$111","$J$111"]
[19680,{"$f":"Menu!$F$29","v":"X"},{"$f":"Menu!$J$29","v":2020},{"$f":"IF(ISBLANK(INDIRECT(\"'\"&F4289&\"'!\"&G4289)),\"\",INDIRECT(\"'\"&F4289&\"'!\"&G4289))","v":""},{"$f":"IF(ISBLANK(INDIRECT(\"'\"&F4289&\"'!\"&H4289)),\"\",IFERROR(VLOOKUP(TEXT(INDIRECT(\"'\"&F4289&\"'!\"&H4289),\"0\"),Notes!$B$5:$C$100,2,FALSE),\"\"))","v":""},"2b","$G$111","$H$111"]
[19681,{"$f":"Menu!$F$29","v":"X"},{"$f":"Menu!$J$29","v":2020},{"$f":"IF(ISBLANK(INDIRECT(\"'\"&F4290&\"'!\"&G4290)),\"\",INDIRECT(\"'\"&F4290&\"'!\"&G4290))","v":""},{"$f":"IF(ISBLANK(INDIRECT(\"'\"&F4290&\"'!\"&H4290)),\"\",IFERROR(VLOOKUP(TEXT(INDIRECT(\"'\"&F4290&\"'!\"&H4290),\"0\"),Notes!$B$5:$C$100,2,FALSE),\"\"))","v":""},"2a","$G$111",{"$f":"IF(LEN(TRIM(MID(G4290,4,10)))-LEN(SUBSTITUTE(TRIM(MID(G4290,4,10)),\"$\",\"\"))=0,\"$\"&CHAR(CODE(MID(G4290,2,1))+1)&\"$\"&TRIM(MID(G4290,4,10)),\"$\"&MID(G4290,2,1)&CHAR(CODE(MID(G4290,3,1))+1)&\"$\"&TRIM(MID(G4290,5,11)))","v":"$H$111"}]
[19682,{"$f":"Menu!$F$29","v":"X"},{"$f":"Menu!$J$29","v":2020},{"$f":"IF(ISBLANK(INDIRECT(\"'\"&F4291&\"'!\"&G4291)),\"\",INDIRECT(\"'\"&F4291&\"'!\"&G4291))","v":""},{"$f":"IF(ISBLANK(INDIRECT(\"'\"&F4291&\"'!\"&H4291)),\"\",IFERROR(VLOOKUP(TEXT(INDIRECT(\"'\"&F4291&\"'!\"&H4291),\"0\"),Notes!$B$5:$C$100,2,FALSE),\"\"))","v":""},"2b","$W$111","$X$111"]
[19683,{"$f":"Menu!$F$29","v":"X"},{"$f":"Menu!$J$29","v":2020},{"$f":"IF(ISBLANK(INDIRECT(\"'\"&F4292&\"'!\"&G4292)),\"\",INDIRECT(\"'\"&F4292&\"'!\"&G4292))","v":""},{"$f":"IF(ISBLANK(INDIRECT(\"'\"&F4292&\"'!\"&H4292)),\"\",IFERROR(VLOOKUP(TEXT(INDIRECT(\"'\"&F4292&\"'!\"&H4292),\"0\"),Notes!$B$5:$C$100,2,FALSE),\"\"))","v":""},"2b","$AA$111","$AB$111"]
[19684,{"$f":"Menu!$F$29","v":"X"},{"$f":"Menu!$J$29","v":2020},{"$f":"IF(ISBLANK(INDIRECT(\"'\"&F4293&\"'!\"&G4293)),\"\",INDIRECT(\"'\"&F4293&\"'!\"&G4293))","v":""},{"$f":"IF(ISBLANK(INDIRECT(\"'\"&F4293&\"'!\"&H4293)),\"\",IFERROR(VLOOKUP(TEXT(INDIRECT(\"'\"&F4293&\"'!\"&H4293),\"0\"),Notes!$B$5:$C$100,2,FALSE),\"\"))","v":""},"2b","$Y$111","$Z$111"]
[19685,{"$f":"Menu!$F$29","v":"X"},{"$f":"Menu!$J$29","v":2020},{"$f":"IF(ISBLANK(INDIRECT(\"'\"&F4294&\"'!\"&G4294)),\"\",INDIRECT(\"'\"&F4294&\"'!\"&G4294))","v":""},{"$f":"IF(ISBLANK(INDIRECT(\"'\"&F4294&\"'!\"&H4294)),\"\",IFERROR(VLOOKUP(TEXT(INDIRECT(\"'\"&F4294&\"'!\"&H4294),\"0\"),Notes!$B$5:$C$100,2,FALSE),\"\"))","v":""},"2d","$AC$111","$AD$111"]
[19686,{"$f":"Menu!$F$29","v":"X"},{"$f":"Menu!$J$29","v":2020},{"$f":"IF(ISBLANK(INDIRECT(\"'\"&F4295&\"'!\"&G4295)),\"\",INDIRECT(\"'\"&F4295&\"'!\"&G4295))","v":""},{"$f":"IF(ISBLANK(INDIRECT(\"'\"&F4295&\"'!\"&H4295)),\"\",IFERROR(VLOOKUP(TEXT(INDIRECT(\"'\"&F4295&\"'!\"&H4295),\"0\"),Notes!$B$5:$C$100,2,FALSE),\"\"))","v":""},"2d","$AG$111","$AH$111"]
[19687,{"$f":"Menu!$F$29","v":"X"},{"$f":"Menu!$J$29","v":2020},{"$f":"IF(ISBLANK(INDIRECT(\"'\"&F4296&\"'!\"&G4296)),\"\",INDIRECT(\"'\"&F4296&\"'!\"&G4296))","v":""},{"$f":"IF(ISBLANK(INDIRECT(\"'\"&F4296&\"'!\"&H4296)),\"\",IFERROR(VLOOKUP(TEXT(INDIRECT(\"'\"&F4296&\"'!\"&H4296),\"0\"),Notes!$B$5:$C$100,2,FALSE),\"\"))","v":""},"2d","$AE$111","$AF$111"]
[19688,{"$f":"Menu!$F$29","v":"X"},{"$f":"Menu!$J$29","v":2020},{"$f":"IF(ISBLANK(INDIRECT(\"'\"&F4297&\"'!\"&G4297)),\"\",INDIRECT(\"'\"&F4297&\"'!\"&G4297))","v":""},{"$f":"IF(ISBLANK(INDIRECT(\"'\"&F4297&\"'!\"&H4297)),\"\",IFERROR(VLOOKUP(TEXT(INDIRECT(\"'\"&F4297&\"'!\"&H4297),\"0\"),Notes!$B$5:$C$100,2,FALSE),\"\"))","v":""},"2d","$W$111","$X$111"]
[19689,{"$f":"Menu!$F$29","v":"X"},{"$f":"Menu!$J$29","v":2020},{"$f":"IF(ISBLANK(INDIRECT(\"'\"&F4298&\"'!\"&G4298)),\"\",INDIRECT(\"'\"&F4298&\"'!\"&G4298))","v":""},{"$f":"IF(ISBLANK(INDIRECT(\"'\"&F4298&\"'!\"&H4298)),\"\",IFERROR(VLOOKUP(TEXT(INDIRECT(\"'\"&F4298&\"'!\"&H4298),\"0\"),Notes!$B$5:$C$100,2,FALSE),\"\"))","v":""},"2d","$AA$111","$AB$111"]
[19690,{"$f":"Menu!$F$29","v":"X"},{"$f":"Menu!$J$29","v":2020},{"$f":"IF(ISBLANK(INDIRECT(\"'\"&F4299&\"'!\"&G4299)),\"\",INDIRECT(\"'\"&F4299&\"'!\"&G4299))","v":""},{"$f":"IF(ISBLANK(INDIRECT(\"'\"&F4299&\"'!\"&H4299)),\"\",IFERROR(VLOOKUP(TEXT(INDIRECT(\"'\"&F4299&\"'!\"&H4299),\"0\"),Notes!$B$5:$C$100,2,FALSE),\"\"))","v":""},"2d","$Y$111","$Z$111"]
[19691,{"$f":"Menu!$F$29","v":"X"},{"$f":"Menu!$J$29","v":2020},{"$f":"IF(ISBLANK(INDIRECT(\"'\"&F4300&\"'!\"&G4300)),\"\",INDIRECT(\"'\"&F4300&\"'!\"&G4300))","v":""},{"$f":"IF(ISBLANK(INDIRECT(\"'\"&F4300&\"'!\"&H4300)),\"\",IFERROR(VLOOKUP(TEXT(INDIRECT(\"'\"&F4300&\"'!\"&H4300),\"0\"),Notes!$B$5:$C$100,2,FALSE),\"\"))","v":""},"2d","$E$111","$F$111"]
[19692,{"$f":"Menu!$F$29","v":"X"},{"$f":"Menu!$J$29","v":2020},{"$f":"IF(ISBLANK(INDIRECT(\"'\"&F4301&\"'!\"&G4301)),\"\",INDIRECT(\"'\"&F4301&\"'!\"&G4301))","v":""},{"$f":"IF(ISBLANK(INDIRECT(\"'\"&F4301&\"'!\"&H4301)),\"\",IFERROR(VLOOKUP(TEXT(INDIRECT(\"'\"&F4301&\"'!\"&H4301),\"0\"),Notes!$B$5:$C$100,2,FALSE),\"\"))","v":""},"2d","$I$111","$J$111"]
[19693,{"$f":"Menu!$F$29","v":"X"},{"$f":"Menu!$J$29","v":2020},{"$f":"IF(ISBLANK(INDIRECT(\"'\"&F4302&\"'!\"&G4302)),\"\",INDIRECT(\"'\"&F4302&\"'!\"&G4302))","v":""},{"$f":"IF(ISBLANK(INDIRECT(\"'\"&F4302&\"'!\"&H4302)),\"\",IFERROR(VLOOKUP(TEXT(INDIRECT(\"'\"&F4302&\"'!\"&H4302),\"0\"),Notes!$B$5:$C$100,2,FALSE),\"\"))","v":""},"2d","$G$111","$H$111"]
[19694,{"$f":"Menu!$F$29","v":"X"},{"$f":"Menu!$J$29","v":2020},{"$f":"IF(ISBLANK(INDIRECT(\"'\"&F4303&\"'!\"&G4303)),\"\",INDIRECT(\"'\"&F4303&\"'!\"&G4303))","v":""},{"$f":"IF(ISBLANK(INDIRECT(\"'\"&F4303&\"'!\"&H4303)),\"\",IFERROR(VLOOKUP(TEXT(INDIRECT(\"'\"&F4303&\"'!\"&H4303),\"0\"),Notes!$B$5:$C$100,2,FALSE),\"\"))","v":""},"2a","$U$111","$V$111"]
[19695,{"$f":"Menu!$F$29","v":"X"},{"$f":"Menu!$J$29","v":2020},{"$f":"IF(ISBLANK(INDIRECT(\"'\"&F4304&\"'!\"&G4304)),\"\",INDIRECT(\"'\"&F4304&\"'!\"&G4304))","v":""},{"$f":"IF(ISBLANK(INDIRECT(\"'\"&F4304&\"'!\"&H4304)),\"\",IFERROR(VLOOKUP(TEXT(INDIRECT(\"'\"&F4304&\"'!\"&H4304),\"0\"),Notes!$B$5:$C$100,2,FALSE),\"\"))","v":""},"2a","$S$111","$T$111"]
[19696,{"$f":"Menu!$F$29","v":"X"},{"$f":"Menu!$J$29","v":2020},{"$f":"IF(ISBLANK(INDIRECT(\"'\"&F4305&\"'!\"&G4305)),\"\",INDIRECT(\"'\"&F4305&\"'!\"&G4305))","v":""},{"$f":"IF(ISBLANK(INDIRECT(\"'\"&F4305&\"'!\"&H4305)),\"\",IFERROR(VLOOKUP(TEXT(INDIRECT(\"'\"&F4305&\"'!\"&H4305),\"0\"),Notes!$B$5:$C$100,2,FALSE),\"\"))","v":""},"2a","$Q$111","$R$111"]
[19697,{"$f":"Menu!$F$29","v":"X"},{"$f":"Menu!$J$29","v":2020},{"$f":"IF(ISBLANK(INDIRECT(\"'\"&F4306&\"'!\"&G4306)),\"\",INDIRECT(\"'\"&F4306&\"'!\"&G4306))","v":""},{"$f":"IF(ISBLANK(INDIRECT(\"'\"&F4306&\"'!\"&H4306)),\"\",IFERROR(VLOOKUP(TEXT(INDIRECT(\"'\"&F4306&\"'!\"&H4306),\"0\"),Notes!$B$5:$C$100,2,FALSE),\"\"))","v":""},"2d","$K$111","$L$111"]
[19698,{"$f":"Menu!$F$29","v":"X"},{"$f":"Menu!$J$29","v":2020},{"$f":"IF(ISBLANK(INDIRECT(\"'\"&F4307&\"'!\"&G4307)),\"\",INDIRECT(\"'\"&F4307&\"'!\"&G4307))","v":""},{"$f":"IF(ISBLANK(INDIRECT(\"'\"&F4307&\"'!\"&H4307)),\"\",IFERROR(VLOOKUP(TEXT(INDIRECT(\"'\"&F4307&\"'!\"&H4307),\"0\"),Notes!$B$5:$C$100,2,FALSE),\"\"))","v":""},"2d","$O$111","$P$111"]
[19699,{"$f":"Menu!$F$29","v":"X"},{"$f":"Menu!$J$29","v":2020},{"$f":"IF(ISBLANK(INDIRECT(\"'\"&F4308&\"'!\"&G4308)),\"\",INDIRECT(\"'\"&F4308&\"'!\"&G4308))","v":""},{"$f":"IF(ISBLANK(INDIRECT(\"'\"&F4308&\"'!\"&H4308)),\"\",IFERROR(VLOOKUP(TEXT(INDIRECT(\"'\"&F4308&\"'!\"&H4308),\"0\"),Notes!$B$5:$C$100,2,FALSE),\"\"))","v":""},"2d","$M$111","$N$111"]
[19700,{"$f":"Menu!$F$29","v":"X"},{"$f":"Menu!$J$29","v":2020},{"$f":"IF(ISBLANK(INDIRECT(\"'\"&F4309&\"'!\"&G4309)),\"\",INDIRECT(\"'\"&F4309&\"'!\"&G4309))","v":""},{"$f":"IF(ISBLANK(INDIRECT(\"'\"&F4309&\"'!\"&H4309)),\"\",IFERROR(VLOOKUP(TEXT(INDIRECT(\"'\"&F4309&\"'!\"&H4309),\"0\"),Notes!$B$5:$C$100,2,FALSE),\"\"))","v":""},"2d","$Q$111","$R$111"]
[19701,{"$f":"Menu!$F$29","v":"X"},{"$f":"Menu!$J$29","v":2020},{"$f":"IF(ISBLANK(INDIRECT(\"'\"&F4310&\"'!\"&G4310)),\"\",INDIRECT(\"'\"&F4310&\"'!\"&G4310))","v":""},{"$f":"IF(ISBLANK(INDIRECT(\"'\"&F4310&\"'!\"&H4310)),\"\",IFERROR(VLOOKUP(TEXT(INDIRECT(\"'\"&F4310&\"'!\"&H4310),\"0\"),Notes!$B$5:$C$100,2,FALSE),\"\"))","v":""},"2d","$U$111","$V$111"]
[19702,{"$f":"Menu!$F$29","v":"X"},{"$f":"Menu!$J$29","v":2020},{"$f":"IF(ISBLANK(INDIRECT(\"'\"&F4311&\"'!\"&G4311)),\"\",INDIRECT(\"'\"&F4311&\"'!\"&G4311))","v":""},{"$f":"IF(ISBLANK(INDIRECT(\"'\"&F4311&\"'!\"&H4311)),\"\",IFERROR(VLOOKUP(TEXT(INDIRECT(\"'\"&F4311&\"'!\"&H4311),\"0\"),Notes!$B$5:$C$100,2,FALSE),\"\"))","v":""},"2d","$S$111","$T$111"]
[19703,{"$f":"Menu!$F$29","v":"X"},{"$f":"Menu!$J$29","v":2020},{"$f":"IF(ISBLANK(INDIRECT(\"'\"&F4312&\"'!\"&G4312)),\"\",INDIRECT(\"'\"&F4312&\"'!\"&G4312))","v":""},{"$f":"IF(ISBLANK(INDIRECT(\"'\"&F4312&\"'!\"&H4312)),\"\",IFERROR(VLOOKUP(TEXT(INDIRECT(\"'\"&F4312&\"'!\"&H4312),\"0\"),Notes!$B$5:$C$100,2,FALSE),\"\"))","v":""},"2a","$O$111","$P$111"]
[19704,{"$f":"Menu!$F$29","v":"X"},{"$f":"Menu!$J$29","v":2020},{"$f":"IF(ISBLANK(INDIRECT(\"'\"&F4313&\"'!\"&G4313)),\"\",INDIRECT(\"'\"&F4313&\"'!\"&G4313))","v":""},{"$f":"IF(ISBLANK(INDIRECT(\"'\"&F4313&\"'!\"&H4313)),\"\",IFERROR(VLOOKUP(TEXT(INDIRECT(\"'\"&F4313&\"'!\"&H4313),\"0\"),Notes!$B$5:$C$100,2,FALSE),\"\"))","v":""},"2a","$M$111","$N$111"]
[19705,{"$f":"Menu!$F$29","v":"X"},{"$f":"Menu!$J$29","v":2020},{"$f":"IF(ISBLANK(INDIRECT(\"'\"&F4314&\"'!\"&G4314)),\"\",INDIRECT(\"'\"&F4314&\"'!\"&G4314))","v":""},{"$f":"IF(ISBLANK(INDIRECT(\"'\"&F4314&\"'!\"&H4314)),\"\",IFERROR(VLOOKUP(TEXT(INDIRECT(\"'\"&F4314&\"'!\"&H4314),\"0\"),Notes!$B$5:$C$100,2,FALSE),\"\"))","v":""},"2a","$K$111","$L$111"]
[19706,{"$f":"Menu!$F$29","v":"X"},{"$f":"Menu!$J$29","v":2020},{"$f":"IF(ISBLANK(INDIRECT(\"'\"&F4315&\"'!\"&G4315)),\"\",INDIRECT(\"'\"&F4315&\"'!\"&G4315))","v":""},{"$f":"IF(ISBLANK(INDIRECT(\"'\"&F4315&\"'!\"&H4315)),\"\",IFERROR(VLOOKUP(TEXT(INDIRECT(\"'\"&F4315&\"'!\"&H4315),\"0\"),Notes!$B$5:$C$100,2,FALSE),\"\"))","v":""},"2a","$E$111","$F$111"]
[19707,{"$f":"Menu!$F$29","v":"X"},{"$f":"Menu!$J$29","v":2020},{"$f":"IF(ISBLANK(INDIRECT(\"'\"&F4316&\"'!\"&G4316)),\"\",INDIRECT(\"'\"&F4316&\"'!\"&G4316))","v":""},{"$f":"IF(ISBLANK(INDIRECT(\"'\"&F4316&\"'!\"&H4316)),\"\",IFERROR(VLOOKUP(TEXT(INDIRECT(\"'\"&F4316&\"'!\"&H4316),\"0\"),Notes!$B$5:$C$100,2,FALSE),\"\"))","v":""},"2b","$K$112","$L$112"]
[19708,{"$f":"Menu!$F$29","v":"X"},{"$f":"Menu!$J$29","v":2020},{"$f":"IF(ISBLANK(INDIRECT(\"'\"&F4317&\"'!\"&G4317)),\"\",INDIRECT(\"'\"&F4317&\"'!\"&G4317))","v":""},{"$f":"IF(ISBLANK(INDIRECT(\"'\"&F4317&\"'!\"&H4317)),\"\",IFERROR(VLOOKUP(TEXT(INDIRECT(\"'\"&F4317&\"'!\"&H4317),\"0\"),Notes!$B$5:$C$100,2,FALSE),\"\"))","v":""},"2b","$O$112","$P$112"]
[19709,{"$f":"Menu!$F$29","v":"X"},{"$f":"Menu!$J$29","v":2020},{"$f":"IF(ISBLANK(INDIRECT(\"'\"&F4318&\"'!\"&G4318)),\"\",INDIRECT(\"'\"&F4318&\"'!\"&G4318))","v":""},{"$f":"IF(ISBLANK(INDIRECT(\"'\"&F4318&\"'!\"&H4318)),\"\",IFERROR(VLOOKUP(TEXT(INDIRECT(\"'\"&F4318&\"'!\"&H4318),\"0\"),Notes!$B$5:$C$100,2,FALSE),\"\"))","v":""},"2b","$M$112","$N$112"]
[19710,{"$f":"Menu!$F$29","v":"X"},{"$f":"Menu!$J$29","v":2020},{"$f":"IF(ISBLANK(INDIRECT(\"'\"&F4319&\"'!\"&G4319)),\"\",INDIRECT(\"'\"&F4319&\"'!\"&G4319))","v":""},{"$f":"IF(ISBLANK(INDIRECT(\"'\"&F4319&\"'!\"&H4319)),\"\",IFERROR(VLOOKUP(TEXT(INDIRECT(\"'\"&F4319&\"'!\"&H4319),\"0\"),Notes!$B$5:$C$100,2,FALSE),\"\"))","v":""},"2b","$Q$112","$R$112"]
[19711,{"$f":"Menu!$F$29","v":"X"},{"$f":"Menu!$J$29","v":2020},{"$f":"IF(ISBLANK(INDIRECT(\"'\"&F4320&\"'!\"&G4320)),\"\",INDIRECT(\"'\"&F4320&\"'!\"&G4320))","v":""},{"$f":"IF(ISBLANK(INDIRECT(\"'\"&F4320&\"'!\"&H4320)),\"\",IFERROR(VLOOKUP(TEXT(INDIRECT(\"'\"&F4320&\"'!\"&H4320),\"0\"),Notes!$B$5:$C$100,2,FALSE),\"\"))","v":""},"2b","$U$112","$V$112"]
[19712,{"$f":"Menu!$F$29","v":"X"},{"$f":"Menu!$J$29","v":2020},{"$f":"IF(ISBLANK(INDIRECT(\"'\"&F4321&\"'!\"&G4321)),\"\",INDIRECT(\"'\"&F4321&\"'!\"&G4321))","v":""},{"$f":"IF(ISBLANK(INDIRECT(\"'\"&F4321&\"'!\"&H4321)),\"\",IFERROR(VLOOKUP(TEXT(INDIRECT(\"'\"&F4321&\"'!\"&H4321),\"0\"),Notes!$B$5:$C$100,2,FALSE),\"\"))","v":""},"2b","$S$112","$T$112"]
[19713,{"$f":"Menu!$F$29","v":"X"},{"$f":"Menu!$J$29","v":2020},{"$f":"IF(ISBLANK(INDIRECT(\"'\"&F4322&\"'!\"&G4322)),\"\",INDIRECT(\"'\"&F4322&\"'!\"&G4322))","v":""},{"$f":"IF(ISBLANK(INDIRECT(\"'\"&F4322&\"'!\"&H4322)),\"\",IFERROR(VLOOKUP(TEXT(INDIRECT(\"'\"&F4322&\"'!\"&H4322),\"0\"),Notes!$B$5:$C$100,2,FALSE),\"\"))","v":""},"2a","$I$112","$J$112"]
[19714,{"$f":"Menu!$F$29","v":"X"},{"$f":"Menu!$J$29","v":2020},{"$f":"IF(ISBLANK(INDIRECT(\"'\"&F4323&\"'!\"&G4323)),\"\",INDIRECT(\"'\"&F4323&\"'!\"&G4323))","v":""},{"$f":"IF(ISBLANK(INDIRECT(\"'\"&F4323&\"'!\"&H4323)),\"\",IFERROR(VLOOKUP(TEXT(INDIRECT(\"'\"&F4323&\"'!\"&H4323),\"0\"),Notes!$B$5:$C$100,2,FALSE),\"\"))","v":""},"2c","$E$112","$F$112"]
[19715,{"$f":"Menu!$F$29","v":"X"},{"$f":"Menu!$J$29","v":2020},{"$f":"IF(ISBLANK(INDIRECT(\"'\"&F4324&\"'!\"&G4324)),\"\",INDIRECT(\"'\"&F4324&\"'!\"&G4324))","v":""},{"$f":"IF(ISBLANK(INDIRECT(\"'\"&F4324&\"'!\"&H4324)),\"\",IFERROR(VLOOKUP(TEXT(INDIRECT(\"'\"&F4324&\"'!\"&H4324),\"0\"),Notes!$B$5:$C$100,2,FALSE),\"\"))","v":""},"2c","$I$112","$J$112"]
[19716,{"$f":"Menu!$F$29","v":"X"},{"$f":"Menu!$J$29","v":2020},{"$f":"IF(ISBLANK(INDIRECT(\"'\"&F4325&\"'!\"&G4325)),\"\",INDIRECT(\"'\"&F4325&\"'!\"&G4325))","v":""},{"$f":"IF(ISBLANK(INDIRECT(\"'\"&F4325&\"'!\"&H4325)),\"\",IFERROR(VLOOKUP(TEXT(INDIRECT(\"'\"&F4325&\"'!\"&H4325),\"0\"),Notes!$B$5:$C$100,2,FALSE),\"\"))","v":""},"2c","$G$112","$H$112"]
[19717,{"$f":"Menu!$F$29","v":"X"},{"$f":"Menu!$J$29","v":2020},{"$f":"IF(ISBLANK(INDIRECT(\"'\"&F4326&\"'!\"&G4326)),\"\",INDIRECT(\"'\"&F4326&\"'!\"&G4326))","v":""},{"$f":"IF(ISBLANK(INDIRECT(\"'\"&F4326&\"'!\"&H4326)),\"\",IFERROR(VLOOKUP(TEXT(INDIRECT(\"'\"&F4326&\"'!\"&H4326),\"0\"),Notes!$B$5:$C$100,2,FALSE),\"\"))","v":""},"2c","$K$112","$L$112"]
[19718,{"$f":"Menu!$F$29","v":"X"},{"$f":"Menu!$J$29","v":2020},{"$f":"IF(ISBLANK(INDIRECT(\"'\"&F4327&\"'!\"&G4327)),\"\",INDIRECT(\"'\"&F4327&\"'!\"&G4327))","v":""},{"$f":"IF(ISBLANK(INDIRECT(\"'\"&F4327&\"'!\"&H4327)),\"\",IFERROR(VLOOKUP(TEXT(INDIRECT(\"'\"&F4327&\"'!\"&H4327),\"0\"),Notes!$B$5:$C$100,2,FALSE),\"\"))","v":""},"2c","$O$112","$P$112"]
[19719,{"$f":"Menu!$F$29","v":"X"},{"$f":"Menu!$J$29","v":2020},{"$f":"IF(ISBLANK(INDIRECT(\"'\"&F4328&\"'!\"&G4328)),\"\",INDIRECT(\"'\"&F4328&\"'!\"&G4328))","v":""},{"$f":"IF(ISBLANK(INDIRECT(\"'\"&F4328&\"'!\"&H4328)),\"\",IFERROR(VLOOKUP(TEXT(INDIRECT(\"'\"&F4328&\"'!\"&H4328),\"0\"),Notes!$B$5:$C$100,2,FALSE),\"\"))","v":""},"2c","$M$112","$N$112"]
[19720,{"$f":"Menu!$F$29","v":"X"},{"$f":"Menu!$J$29","v":2020},{"$f":"IF(ISBLANK(INDIRECT(\"'\"&F4329&\"'!\"&G4329)),\"\",INDIRECT(\"'\"&F4329&\"'!\"&G4329))","v":""},{"$f":"IF(ISBLANK(INDIRECT(\"'\"&F4329&\"'!\"&H4329)),\"\",IFERROR(VLOOKUP(TEXT(INDIRECT(\"'\"&F4329&\"'!\"&H4329),\"0\"),Notes!$B$5:$C$100,2,FALSE),\"\"))","v":""},"2c","$Q$112","$R$112"]
[19721,{"$f":"Menu!$F$29","v":"X"},{"$f":"Menu!$J$29","v":2020},{"$f":"IF(ISBLANK(INDIRECT(\"'\"&F4330&\"'!\"&G4330)),\"\",INDIRECT(\"'\"&F4330&\"'!\"&G4330))","v":""},{"$f":"IF(ISBLANK(INDIRECT(\"'\"&F4330&\"'!\"&H4330)),\"\",IFERROR(VLOOKUP(TEXT(INDIRECT(\"'\"&F4330&\"'!\"&H4330),\"0\"),Notes!$B$5:$C$100,2,FALSE),\"\"))","v":""},"2c","$U$112","$V$112"]
[19722,{"$f":"Menu!$F$29","v":"X"},{"$f":"Menu!$J$29","v":2020},{"$f":"IF(ISBLANK(INDIRECT(\"'\"&F4331&\"'!\"&G4331)),\"\",INDIRECT(\"'\"&F4331&\"'!\"&G4331))","v":""},{"$f":"IF(ISBLANK(INDIRECT(\"'\"&F4331&\"'!\"&H4331)),\"\",IFERROR(VLOOKUP(TEXT(INDIRECT(\"'\"&F4331&\"'!\"&H4331),\"0\"),Notes!$B$5:$C$100,2,FALSE),\"\"))","v":""},"2c","$S$112","$T$112"]
[19723,{"$f":"Menu!$F$29","v":"X"},{"$f":"Menu!$J$29","v":2020},{"$f":"IF(ISBLANK(INDIRECT(\"'\"&F4332&\"'!\"&G4332)),\"\",INDIRECT(\"'\"&F4332&\"'!\"&G4332))","v":""},{"$f":"IF(ISBLANK(INDIRECT(\"'\"&F4332&\"'!\"&H4332)),\"\",IFERROR(VLOOKUP(TEXT(INDIRECT(\"'\"&F4332&\"'!\"&H4332),\"0\"),Notes!$B$5:$C$100,2,FALSE),\"\"))","v":""},"2c","$W$112","$X$112"]
[19724,{"$f":"Menu!$F$29","v":"X"},{"$f":"Menu!$J$29","v":2020},{"$f":"IF(ISBLANK(INDIRECT(\"'\"&F4333&\"'!\"&G4333)),\"\",INDIRECT(\"'\"&F4333&\"'!\"&G4333))","v":""},{"$f":"IF(ISBLANK(INDIRECT(\"'\"&F4333&\"'!\"&H4333)),\"\",IFERROR(VLOOKUP(TEXT(INDIRECT(\"'\"&F4333&\"'!\"&H4333),\"0\"),Notes!$B$5:$C$100,2,FALSE),\"\"))","v":""},"2c","$AA$112","$AB$112"]
[19725,{"$f":"Menu!$F$29","v":"X"},{"$f":"Menu!$J$29","v":2020},{"$f":"IF(ISBLANK(INDIRECT(\"'\"&F4334&\"'!\"&G4334)),\"\",INDIRECT(\"'\"&F4334&\"'!\"&G4334))","v":""},{"$f":"IF(ISBLANK(INDIRECT(\"'\"&F4334&\"'!\"&H4334)),\"\",IFERROR(VLOOKUP(TEXT(INDIRECT(\"'\"&F4334&\"'!\"&H4334),\"0\"),Notes!$B$5:$C$100,2,FALSE),\"\"))","v":""},"2c","$Y$112","$Z$112"]
[19726,{"$f":"Menu!$F$29","v":"X"},{"$f":"Menu!$J$29","v":2020},{"$f":"IF(ISBLANK(INDIRECT(\"'\"&F4335&\"'!\"&G4335)),\"\",INDIRECT(\"'\"&F4335&\"'!\"&G4335))","v":""},{"$f":"IF(ISBLANK(INDIRECT(\"'\"&F4335&\"'!\"&H4335)),\"\",IFERROR(VLOOKUP(TEXT(INDIRECT(\"'\"&F4335&\"'!\"&H4335),\"0\"),Notes!$B$5:$C$100,2,FALSE),\"\"))","v":""},"2e","$BG$113","$BH$113"]
[19727,{"$f":"Menu!$F$29","v":"X"},{"$f":"Menu!$J$29","v":2020},{"$f":"IF(ISBLANK(INDIRECT(\"'\"&F4336&\"'!\"&G4336)),\"\",INDIRECT(\"'\"&F4336&\"'!\"&G4336))","v":""},{"$f":"IF(ISBLANK(INDIRECT(\"'\"&F4336&\"'!\"&H4336)),\"\",IFERROR(VLOOKUP(TEXT(INDIRECT(\"'\"&F4336&\"'!\"&H4336),\"0\"),Notes!$B$5:$C$100,2,FALSE),\"\"))","v":""},"2e","$BK$113","$BL$113"]
[19728,{"$f":"Menu!$F$29","v":"X"},{"$f":"Menu!$J$29","v":2020},{"$f":"IF(ISBLANK(INDIRECT(\"'\"&F4337&\"'!\"&G4337)),\"\",INDIRECT(\"'\"&F4337&\"'!\"&G4337))","v":""},{"$f":"IF(ISBLANK(INDIRECT(\"'\"&F4337&\"'!\"&H4337)),\"\",IFERROR(VLOOKUP(TEXT(INDIRECT(\"'\"&F4337&\"'!\"&H4337),\"0\"),Notes!$B$5:$C$100,2,FALSE),\"\"))","v":""},"2e","$BI$113","$BJ$113"]
[19729,{"$f":"Menu!$F$29","v":"X"},{"$f":"Menu!$J$29","v":2020},{"$f":"IF(ISBLANK(INDIRECT(\"'\"&F4338&\"'!\"&G4338)),\"\",INDIRECT(\"'\"&F4338&\"'!\"&G4338))","v":""},{"$f":"IF(ISBLANK(INDIRECT(\"'\"&F4338&\"'!\"&H4338)),\"\",IFERROR(VLOOKUP(TEXT(INDIRECT(\"'\"&F4338&\"'!\"&H4338),\"0\"),Notes!$B$5:$C$100,2,FALSE),\"\"))","v":""},"2e","$E$113","$F$113"]
[19730,{"$f":"Menu!$F$29","v":"X"},{"$f":"Menu!$J$29","v":2020},{"$f":"IF(ISBLANK(INDIRECT(\"'\"&F4339&\"'!\"&G4339)),\"\",INDIRECT(\"'\"&F4339&\"'!\"&G4339))","v":""},{"$f":"IF(ISBLANK(INDIRECT(\"'\"&F4339&\"'!\"&H4339)),\"\",IFERROR(VLOOKUP(TEXT(INDIRECT(\"'\"&F4339&\"'!\"&H4339),\"0\"),Notes!$B$5:$C$100,2,FALSE),\"\"))","v":""},"2e","$I$113","$J$113"]
[19731,{"$f":"Menu!$F$29","v":"X"},{"$f":"Menu!$J$29","v":2020},{"$f":"IF(ISBLANK(INDIRECT(\"'\"&F4340&\"'!\"&G4340)),\"\",INDIRECT(\"'\"&F4340&\"'!\"&G4340))","v":""},{"$f":"IF(ISBLANK(INDIRECT(\"'\"&F4340&\"'!\"&H4340)),\"\",IFERROR(VLOOKUP(TEXT(INDIRECT(\"'\"&F4340&\"'!\"&H4340),\"0\"),Notes!$B$5:$C$100,2,FALSE),\"\"))","v":""},"2e","$G$113","$H$113"]
[19732,{"$f":"Menu!$F$29","v":"X"},{"$f":"Menu!$J$29","v":2020},{"$f":"IF(ISBLANK(INDIRECT(\"'\"&F4341&\"'!\"&G4341)),\"\",INDIRECT(\"'\"&F4341&\"'!\"&G4341))","v":""},{"$f":"IF(ISBLANK(INDIRECT(\"'\"&F4341&\"'!\"&H4341)),\"\",IFERROR(VLOOKUP(TEXT(INDIRECT(\"'\"&F4341&\"'!\"&H4341),\"0\"),Notes!$B$5:$C$100,2,FALSE),\"\"))","v":""},"2e","$K$113","$L$113"]
[19733,{"$f":"Menu!$F$29","v":"X"},{"$f":"Menu!$J$29","v":2020},{"$f":"IF(ISBLANK(INDIRECT(\"'\"&F4342&\"'!\"&G4342)),\"\",INDIRECT(\"'\"&F4342&\"'!\"&G4342))","v":""},{"$f":"IF(ISBLANK(INDIRECT(\"'\"&F4342&\"'!\"&H4342)),\"\",IFERROR(VLOOKUP(TEXT(INDIRECT(\"'\"&F4342&\"'!\"&H4342),\"0\"),Notes!$B$5:$C$100,2,FALSE),\"\"))","v":""},"2e","$O$113","$P$113"]
[19734,{"$f":"Menu!$F$29","v":"X"},{"$f":"Menu!$J$29","v":2020},{"$f":"IF(ISBLANK(INDIRECT(\"'\"&F4343&\"'!\"&G4343)),\"\",INDIRECT(\"'\"&F4343&\"'!\"&G4343))","v":""},{"$f":"IF(ISBLANK(INDIRECT(\"'\"&F4343&\"'!\"&H4343)),\"\",IFERROR(VLOOKUP(TEXT(INDIRECT(\"'\"&F4343&\"'!\"&H4343),\"0\"),Notes!$B$5:$C$100,2,FALSE),\"\"))","v":""},"2e","$M$113","$N$113"]
[19735,{"$f":"Menu!$F$29","v":"X"},{"$f":"Menu!$J$29","v":2020},{"$f":"IF(ISBLANK(INDIRECT(\"'\"&F4344&\"'!\"&G4344)),\"\",INDIRECT(\"'\"&F4344&\"'!\"&G4344))","v":""},{"$f":"IF(ISBLANK(INDIRECT(\"'\"&F4344&\"'!\"&H4344)),\"\",IFERROR(VLOOKUP(TEXT(INDIRECT(\"'\"&F4344&\"'!\"&H4344),\"0\"),Notes!$B$5:$C$100,2,FALSE),\"\"))","v":""},"2e","$Q$113","$R$113"]
[19736,{"$f":"Menu!$F$29","v":"X"},{"$f":"Menu!$J$29","v":2020},{"$f":"IF(ISBLANK(INDIRECT(\"'\"&F4345&\"'!\"&G4345)),\"\",INDIRECT(\"'\"&F4345&\"'!\"&G4345))","v":""},{"$f":"IF(ISBLANK(INDIRECT(\"'\"&F4345&\"'!\"&H4345)),\"\",IFERROR(VLOOKUP(TEXT(INDIRECT(\"'\"&F4345&\"'!\"&H4345),\"0\"),Notes!$B$5:$C$100,2,FALSE),\"\"))","v":""},"2e","$U$113","$V$113"]
[19737,{"$f":"Menu!$F$29","v":"X"},{"$f":"Menu!$J$29","v":2020},{"$f":"IF(ISBLANK(INDIRECT(\"'\"&F4346&\"'!\"&G4346)),\"\",INDIRECT(\"'\"&F4346&\"'!\"&G4346))","v":""},{"$f":"IF(ISBLANK(INDIRECT(\"'\"&F4346&\"'!\"&H4346)),\"\",IFERROR(VLOOKUP(TEXT(INDIRECT(\"'\"&F4346&\"'!\"&H4346),\"0\"),Notes!$B$5:$C$100,2,FALSE),\"\"))","v":""},"2e","$S$113","$T$113"]
[19738,{"$f":"Menu!$F$29","v":"X"},{"$f":"Menu!$J$29","v":2020},{"$f":"IF(ISBLANK(INDIRECT(\"'\"&F4347&\"'!\"&G4347)),\"\",INDIRECT(\"'\"&F4347&\"'!\"&G4347))","v":""},{"$f":"IF(ISBLANK(INDIRECT(\"'\"&F4347&\"'!\"&H4347)),\"\",IFERROR(VLOOKUP(TEXT(INDIRECT(\"'\"&F4347&\"'!\"&H4347),\"0\"),Notes!$B$5:$C$100,2,FALSE),\"\"))","v":""},"2e","$W$113","$X$113"]
[19739,{"$f":"Menu!$F$29","v":"X"},{"$f":"Menu!$J$29","v":2020},{"$f":"IF(ISBLANK(INDIRECT(\"'\"&F4348&\"'!\"&G4348)),\"\",INDIRECT(\"'\"&F4348&\"'!\"&G4348))","v":""},{"$f":"IF(ISBLANK(INDIRECT(\"'\"&F4348&\"'!\"&H4348)),\"\",IFERROR(VLOOKUP(TEXT(INDIRECT(\"'\"&F4348&\"'!\"&H4348),\"0\"),Notes!$B$5:$C$100,2,FALSE),\"\"))","v":""},"2e","$AA$113","$AB$113"]
[19740,{"$f":"Menu!$F$29","v":"X"},{"$f":"Menu!$J$29","v":2020},{"$f":"IF(ISBLANK(INDIRECT(\"'\"&F4349&\"'!\"&G4349)),\"\",INDIRECT(\"'\"&F4349&\"'!\"&G4349))","v":""},{"$f":"IF(ISBLANK(INDIRECT(\"'\"&F4349&\"'!\"&H4349)),\"\",IFERROR(VLOOKUP(TEXT(INDIRECT(\"'\"&F4349&\"'!\"&H4349),\"0\"),Notes!$B$5:$C$100,2,FALSE),\"\"))","v":""},"2e","$Y$113","$Z$113"]
[19741,{"$f":"Menu!$F$29","v":"X"},{"$f":"Menu!$J$29","v":2020},{"$f":"IF(ISBLANK(INDIRECT(\"'\"&F4350&\"'!\"&G4350)),\"\",INDIRECT(\"'\"&F4350&\"'!\"&G4350))","v":""},{"$f":"IF(ISBLANK(INDIRECT(\"'\"&F4350&\"'!\"&H4350)),\"\",IFERROR(VLOOKUP(TEXT(INDIRECT(\"'\"&F4350&\"'!\"&H4350),\"0\"),Notes!$B$5:$C$100,2,FALSE),\"\"))","v":""},"2e","$AC$113","$AD$113"]
[19742,{"$f":"Menu!$F$29","v":"X"},{"$f":"Menu!$J$29","v":2020},{"$f":"IF(ISBLANK(INDIRECT(\"'\"&F4351&\"'!\"&G4351)),\"\",INDIRECT(\"'\"&F4351&\"'!\"&G4351))","v":""},{"$f":"IF(ISBLANK(INDIRECT(\"'\"&F4351&\"'!\"&H4351)),\"\",IFERROR(VLOOKUP(TEXT(INDIRECT(\"'\"&F4351&\"'!\"&H4351),\"0\"),Notes!$B$5:$C$100,2,FALSE),\"\"))","v":""},"2e","$AG$113","$AH$113"]
[19743,{"$f":"Menu!$F$29","v":"X"},{"$f":"Menu!$J$29","v":2020},{"$f":"IF(ISBLANK(INDIRECT(\"'\"&F4352&\"'!\"&G4352)),\"\",INDIRECT(\"'\"&F4352&\"'!\"&G4352))","v":""},{"$f":"IF(ISBLANK(INDIRECT(\"'\"&F4352&\"'!\"&H4352)),\"\",IFERROR(VLOOKUP(TEXT(INDIRECT(\"'\"&F4352&\"'!\"&H4352),\"0\"),Notes!$B$5:$C$100,2,FALSE),\"\"))","v":""},"2e","$AE$113","$AF$113"]
[19744,{"$f":"Menu!$F$29","v":"X"},{"$f":"Menu!$J$29","v":2020},{"$f":"IF(ISBLANK(INDIRECT(\"'\"&F4353&\"'!\"&G4353)),\"\",INDIRECT(\"'\"&F4353&\"'!\"&G4353))","v":""},{"$f":"IF(ISBLANK(INDIRECT(\"'\"&F4353&\"'!\"&H4353)),\"\",IFERROR(VLOOKUP(TEXT(INDIRECT(\"'\"&F4353&\"'!\"&H4353),\"0\"),Notes!$B$5:$C$100,2,FALSE),\"\"))","v":""},"2e","$AI$113","$AJ$113"]
[19745,{"$f":"Menu!$F$29","v":"X"},{"$f":"Menu!$J$29","v":2020},{"$f":"IF(ISBLANK(INDIRECT(\"'\"&F4354&\"'!\"&G4354)),\"\",INDIRECT(\"'\"&F4354&\"'!\"&G4354))","v":""},{"$f":"IF(ISBLANK(INDIRECT(\"'\"&F4354&\"'!\"&H4354)),\"\",IFERROR(VLOOKUP(TEXT(INDIRECT(\"'\"&F4354&\"'!\"&H4354),\"0\"),Notes!$B$5:$C$100,2,FALSE),\"\"))","v":""},"2e","$AM$113",{"$f":"IF(LEN(TRIM(MID(G4354,4,10)))-LEN(SUBSTITUTE(TRIM(MID(G4354,4,10)),\"$\",\"\"))=0,\"$\"&CHAR(CODE(MID(G4354,2,1))+1)&\"$\"&TRIM(MID(G4354,4,10)),\"$\"&MID(G4354,2,1)&CHAR(CODE(MID(G4354,3,1))+1)&\"$\"&TRIM(MID(G4354,5,11)))","v":"$AN$113"}]
[19746,{"$f":"Menu!$F$29","v":"X"},{"$f":"Menu!$J$29","v":2020},{"$f":"IF(ISBLANK(INDIRECT(\"'\"&F4355&\"'!\"&G4355)),\"\",INDIRECT(\"'\"&F4355&\"'!\"&G4355))","v":""},{"$f":"IF(ISBLANK(INDIRECT(\"'\"&F4355&\"'!\"&H4355)),\"\",IFERROR(VLOOKUP(TEXT(INDIRECT(\"'\"&F4355&\"'!\"&H4355),\"0\"),Notes!$B$5:$C$100,2,FALSE),\"\"))","v":""},"2e","$AK$113","$AL$113"]
[19747,{"$f":"Menu!$F$29","v":"X"},{"$f":"Menu!$J$29","v":2020},{"$f":"IF(ISBLANK(INDIRECT(\"'\"&F4356&\"'!\"&G4356)),\"\",INDIRECT(\"'\"&F4356&\"'!\"&G4356))","v":""},{"$f":"IF(ISBLANK(INDIRECT(\"'\"&F4356&\"'!\"&H4356)),\"\",IFERROR(VLOOKUP(TEXT(INDIRECT(\"'\"&F4356&\"'!\"&H4356),\"0\"),Notes!$B$5:$C$100,2,FALSE),\"\"))","v":""},"2e","$AO$113","$AP$113"]
[19748,{"$f":"Menu!$F$29","v":"X"},{"$f":"Menu!$J$29","v":2020},{"$f":"IF(ISBLANK(INDIRECT(\"'\"&F4357&\"'!\"&G4357)),\"\",INDIRECT(\"'\"&F4357&\"'!\"&G4357))","v":""},{"$f":"IF(ISBLANK(INDIRECT(\"'\"&F4357&\"'!\"&H4357)),\"\",IFERROR(VLOOKUP(TEXT(INDIRECT(\"'\"&F4357&\"'!\"&H4357),\"0\"),Notes!$B$5:$C$100,2,FALSE),\"\"))","v":""},"2e","$AQ$113","$AR$113"]
[19749,{"$f":"Menu!$F$29","v":"X"},{"$f":"Menu!$J$29","v":2020},{"$f":"IF(ISBLANK(INDIRECT(\"'\"&F4358&\"'!\"&G4358)),\"\",INDIRECT(\"'\"&F4358&\"'!\"&G4358))","v":""},{"$f":"IF(ISBLANK(INDIRECT(\"'\"&F4358&\"'!\"&H4358)),\"\",IFERROR(VLOOKUP(TEXT(INDIRECT(\"'\"&F4358&\"'!\"&H4358),\"0\"),Notes!$B$5:$C$100,2,FALSE),\"\"))","v":""},"2e","$AS$113","$AT$113"]
[19750,{"$f":"Menu!$F$29","v":"X"},{"$f":"Menu!$J$29","v":2020},{"$f":"IF(ISBLANK(INDIRECT(\"'\"&F4359&\"'!\"&G4359)),\"\",INDIRECT(\"'\"&F4359&\"'!\"&G4359))","v":""},{"$f":"IF(ISBLANK(INDIRECT(\"'\"&F4359&\"'!\"&H4359)),\"\",IFERROR(VLOOKUP(TEXT(INDIRECT(\"'\"&F4359&\"'!\"&H4359),\"0\"),Notes!$B$5:$C$100,2,FALSE),\"\"))","v":""},"2e","$AU$113","$AV$113"]
[19751,{"$f":"Menu!$F$29","v":"X"},{"$f":"Menu!$J$29","v":2020},{"$f":"IF(ISBLANK(INDIRECT(\"'\"&F4360&\"'!\"&G4360)),\"\",INDIRECT(\"'\"&F4360&\"'!\"&G4360))","v":""},{"$f":"IF(ISBLANK(INDIRECT(\"'\"&F4360&\"'!\"&H4360)),\"\",IFERROR(VLOOKUP(TEXT(INDIRECT(\"'\"&F4360&\"'!\"&H4360),\"0\"),Notes!$B$5:$C$100,2,FALSE),\"\"))","v":""},"2e","$AY$113","$AZ$113"]
[19752,{"$f":"Menu!$F$29","v":"X"},{"$f":"Menu!$J$29","v":2020},{"$f":"IF(ISBLANK(INDIRECT(\"'\"&F4361&\"'!\"&G4361)),\"\",INDIRECT(\"'\"&F4361&\"'!\"&G4361))","v":""},{"$f":"IF(ISBLANK(INDIRECT(\"'\"&F4361&\"'!\"&H4361)),\"\",IFERROR(VLOOKUP(TEXT(INDIRECT(\"'\"&F4361&\"'!\"&H4361),\"0\"),Notes!$B$5:$C$100,2,FALSE),\"\"))","v":""},"2e","$AW$113","$AX$113"]
[19753,{"$f":"Menu!$F$29","v":"X"},{"$f":"Menu!$J$29","v":2020},{"$f":"IF(ISBLANK(INDIRECT(\"'\"&F4362&\"'!\"&G4362)),\"\",INDIRECT(\"'\"&F4362&\"'!\"&G4362))","v":""},{"$f":"IF(ISBLANK(INDIRECT(\"'\"&F4362&\"'!\"&H4362)),\"\",IFERROR(VLOOKUP(TEXT(INDIRECT(\"'\"&F4362&\"'!\"&H4362),\"0\"),Notes!$B$5:$C$100,2,FALSE),\"\"))","v":""},"2e","$BA$113","$BB$113"]
[19754,{"$f":"Menu!$F$29","v":"X"},{"$f":"Menu!$J$29","v":2020},{"$f":"IF(ISBLANK(INDIRECT(\"'\"&F4363&\"'!\"&G4363)),\"\",INDIRECT(\"'\"&F4363&\"'!\"&G4363))","v":""},{"$f":"IF(ISBLANK(INDIRECT(\"'\"&F4363&\"'!\"&H4363)),\"\",IFERROR(VLOOKUP(TEXT(INDIRECT(\"'\"&F4363&\"'!\"&H4363),\"0\"),Notes!$B$5:$C$100,2,FALSE),\"\"))","v":""},"2e","$BE$113","$BF$113"]
[19755,{"$f":"Menu!$F$29","v":"X"},{"$f":"Menu!$J$29","v":2020},{"$f":"IF(ISBLANK(INDIRECT(\"'\"&F4364&\"'!\"&G4364)),\"\",INDIRECT(\"'\"&F4364&\"'!\"&G4364))","v":""},{"$f":"IF(ISBLANK(INDIRECT(\"'\"&F4364&\"'!\"&H4364)),\"\",IFERROR(VLOOKUP(TEXT(INDIRECT(\"'\"&F4364&\"'!\"&H4364),\"0\"),Notes!$B$5:$C$100,2,FALSE),\"\"))","v":""},"2e","$BC$113","$BD$113"]
[19756,{"$f":"Menu!$F$29","v":"X"},{"$f":"Menu!$J$29","v":2020},{"$f":"IF(ISBLANK(INDIRECT(\"'\"&F4365&\"'!\"&G4365)),\"\",INDIRECT(\"'\"&F4365&\"'!\"&G4365))","v":""},{"$f":"IF(ISBLANK(INDIRECT(\"'\"&F4365&\"'!\"&H4365)),\"\",IFERROR(VLOOKUP(TEXT(INDIRECT(\"'\"&F4365&\"'!\"&H4365),\"0\"),Notes!$B$5:$C$100,2,FALSE),\"\"))","v":""},"2b","$E$112","$F$112"]
[19757,{"$f":"Menu!$F$29","v":"X"},{"$f":"Menu!$J$29","v":2020},{"$f":"IF(ISBLANK(INDIRECT(\"'\"&F4366&\"'!\"&G4366)),\"\",INDIRECT(\"'\"&F4366&\"'!\"&G4366))","v":""},{"$f":"IF(ISBLANK(INDIRECT(\"'\"&F4366&\"'!\"&H4366)),\"\",IFERROR(VLOOKUP(TEXT(INDIRECT(\"'\"&F4366&\"'!\"&H4366),\"0\"),Notes!$B$5:$C$100,2,FALSE),\"\"))","v":""},"2b","$I$112","$J$112"]
[19758,{"$f":"Menu!$F$29","v":"X"},{"$f":"Menu!$J$29","v":2020},{"$f":"IF(ISBLANK(INDIRECT(\"'\"&F4367&\"'!\"&G4367)),\"\",INDIRECT(\"'\"&F4367&\"'!\"&G4367))","v":""},{"$f":"IF(ISBLANK(INDIRECT(\"'\"&F4367&\"'!\"&H4367)),\"\",IFERROR(VLOOKUP(TEXT(INDIRECT(\"'\"&F4367&\"'!\"&H4367),\"0\"),Notes!$B$5:$C$100,2,FALSE),\"\"))","v":""},"2b","$G$112","$H$112"]
[19759,{"$f":"Menu!$F$29","v":"X"},{"$f":"Menu!$J$29","v":2020},{"$f":"IF(ISBLANK(INDIRECT(\"'\"&F4368&\"'!\"&G4368)),\"\",INDIRECT(\"'\"&F4368&\"'!\"&G4368))","v":""},{"$f":"IF(ISBLANK(INDIRECT(\"'\"&F4368&\"'!\"&H4368)),\"\",IFERROR(VLOOKUP(TEXT(INDIRECT(\"'\"&F4368&\"'!\"&H4368),\"0\"),Notes!$B$5:$C$100,2,FALSE),\"\"))","v":""},"2a","$G$112","$H$112"]
[19760,{"$f":"Menu!$F$29","v":"X"},{"$f":"Menu!$J$29","v":2020},{"$f":"IF(ISBLANK(INDIRECT(\"'\"&F4369&\"'!\"&G4369)),\"\",INDIRECT(\"'\"&F4369&\"'!\"&G4369))","v":""},{"$f":"IF(ISBLANK(INDIRECT(\"'\"&F4369&\"'!\"&H4369)),\"\",IFERROR(VLOOKUP(TEXT(INDIRECT(\"'\"&F4369&\"'!\"&H4369),\"0\"),Notes!$B$5:$C$100,2,FALSE),\"\"))","v":""},"2b","$W$112","$X$112"]
[19761,{"$f":"Menu!$F$29","v":"X"},{"$f":"Menu!$J$29","v":2020},{"$f":"IF(ISBLANK(INDIRECT(\"'\"&F4370&\"'!\"&G4370)),\"\",INDIRECT(\"'\"&F4370&\"'!\"&G4370))","v":""},{"$f":"IF(ISBLANK(INDIRECT(\"'\"&F4370&\"'!\"&H4370)),\"\",IFERROR(VLOOKUP(TEXT(INDIRECT(\"'\"&F4370&\"'!\"&H4370),\"0\"),Notes!$B$5:$C$100,2,FALSE),\"\"))","v":""},"2b","$AA$112","$AB$112"]
[19762,{"$f":"Menu!$F$29","v":"X"},{"$f":"Menu!$J$29","v":2020},{"$f":"IF(ISBLANK(INDIRECT(\"'\"&F4371&\"'!\"&G4371)),\"\",INDIRECT(\"'\"&F4371&\"'!\"&G4371))","v":""},{"$f":"IF(ISBLANK(INDIRECT(\"'\"&F4371&\"'!\"&H4371)),\"\",IFERROR(VLOOKUP(TEXT(INDIRECT(\"'\"&F4371&\"'!\"&H4371),\"0\"),Notes!$B$5:$C$100,2,FALSE),\"\"))","v":""},"2b","$Y$112","$Z$112"]
[19763,{"$f":"Menu!$F$29","v":"X"},{"$f":"Menu!$J$29","v":2020},{"$f":"IF(ISBLANK(INDIRECT(\"'\"&F4372&\"'!\"&G4372)),\"\",INDIRECT(\"'\"&F4372&\"'!\"&G4372))","v":""},{"$f":"IF(ISBLANK(INDIRECT(\"'\"&F4372&\"'!\"&H4372)),\"\",IFERROR(VLOOKUP(TEXT(INDIRECT(\"'\"&F4372&\"'!\"&H4372),\"0\"),Notes!$B$5:$C$100,2,FALSE),\"\"))","v":""},"2d","$AC$112","$AD$112"]
[19764,{"$f":"Menu!$F$29","v":"X"},{"$f":"Menu!$J$29","v":2020},{"$f":"IF(ISBLANK(INDIRECT(\"'\"&F4373&\"'!\"&G4373)),\"\",INDIRECT(\"'\"&F4373&\"'!\"&G4373))","v":""},{"$f":"IF(ISBLANK(INDIRECT(\"'\"&F4373&\"'!\"&H4373)),\"\",IFERROR(VLOOKUP(TEXT(INDIRECT(\"'\"&F4373&\"'!\"&H4373),\"0\"),Notes!$B$5:$C$100,2,FALSE),\"\"))","v":""},"2d","$AG$112","$AH$112"]
[19765,{"$f":"Menu!$F$29","v":"X"},{"$f":"Menu!$J$29","v":2020},{"$f":"IF(ISBLANK(INDIRECT(\"'\"&F4374&\"'!\"&G4374)),\"\",INDIRECT(\"'\"&F4374&\"'!\"&G4374))","v":""},{"$f":"IF(ISBLANK(INDIRECT(\"'\"&F4374&\"'!\"&H4374)),\"\",IFERROR(VLOOKUP(TEXT(INDIRECT(\"'\"&F4374&\"'!\"&H4374),\"0\"),Notes!$B$5:$C$100,2,FALSE),\"\"))","v":""},"2d","$AE$112","$AF$112"]
[19766,{"$f":"Menu!$F$29","v":"X"},{"$f":"Menu!$J$29","v":2020},{"$f":"IF(ISBLANK(INDIRECT(\"'\"&F4375&\"'!\"&G4375)),\"\",INDIRECT(\"'\"&F4375&\"'!\"&G4375))","v":""},{"$f":"IF(ISBLANK(INDIRECT(\"'\"&F4375&\"'!\"&H4375)),\"\",IFERROR(VLOOKUP(TEXT(INDIRECT(\"'\"&F4375&\"'!\"&H4375),\"0\"),Notes!$B$5:$C$100,2,FALSE),\"\"))","v":""},"2d","$W$112","$X$112"]
[19767,{"$f":"Menu!$F$29","v":"X"},{"$f":"Menu!$J$29","v":2020},{"$f":"IF(ISBLANK(INDIRECT(\"'\"&F4376&\"'!\"&G4376)),\"\",INDIRECT(\"'\"&F4376&\"'!\"&G4376))","v":""},{"$f":"IF(ISBLANK(INDIRECT(\"'\"&F4376&\"'!\"&H4376)),\"\",IFERROR(VLOOKUP(TEXT(INDIRECT(\"'\"&F4376&\"'!\"&H4376),\"0\"),Notes!$B$5:$C$100,2,FALSE),\"\"))","v":""},"2d","$AA$112","$AB$112"]
[19768,{"$f":"Menu!$F$29","v":"X"},{"$f":"Menu!$J$29","v":2020},{"$f":"IF(ISBLANK(INDIRECT(\"'\"&F4377&\"'!\"&G4377)),\"\",INDIRECT(\"'\"&F4377&\"'!\"&G4377))","v":""},{"$f":"IF(ISBLANK(INDIRECT(\"'\"&F4377&\"'!\"&H4377)),\"\",IFERROR(VLOOKUP(TEXT(INDIRECT(\"'\"&F4377&\"'!\"&H4377),\"0\"),Notes!$B$5:$C$100,2,FALSE),\"\"))","v":""},"2d","$Y$112","$Z$112"]
[19769,{"$f":"Menu!$F$29","v":"X"},{"$f":"Menu!$J$29","v":2020},{"$f":"IF(ISBLANK(INDIRECT(\"'\"&F4378&\"'!\"&G4378)),\"\",INDIRECT(\"'\"&F4378&\"'!\"&G4378))","v":""},{"$f":"IF(ISBLANK(INDIRECT(\"'\"&F4378&\"'!\"&H4378)),\"\",IFERROR(VLOOKUP(TEXT(INDIRECT(\"'\"&F4378&\"'!\"&H4378),\"0\"),Notes!$B$5:$C$100,2,FALSE),\"\"))","v":""},"2d","$E$112","$F$112"]
[19770,{"$f":"Menu!$F$29","v":"X"},{"$f":"Menu!$J$29","v":2020},{"$f":"IF(ISBLANK(INDIRECT(\"'\"&F4379&\"'!\"&G4379)),\"\",INDIRECT(\"'\"&F4379&\"'!\"&G4379))","v":""},{"$f":"IF(ISBLANK(INDIRECT(\"'\"&F4379&\"'!\"&H4379)),\"\",IFERROR(VLOOKUP(TEXT(INDIRECT(\"'\"&F4379&\"'!\"&H4379),\"0\"),Notes!$B$5:$C$100,2,FALSE),\"\"))","v":""},"2d","$I$112","$J$112"]
[19771,{"$f":"Menu!$F$29","v":"X"},{"$f":"Menu!$J$29","v":2020},{"$f":"IF(ISBLANK(INDIRECT(\"'\"&F4380&\"'!\"&G4380)),\"\",INDIRECT(\"'\"&F4380&\"'!\"&G4380))","v":""},{"$f":"IF(ISBLANK(INDIRECT(\"'\"&F4380&\"'!\"&H4380)),\"\",IFERROR(VLOOKUP(TEXT(INDIRECT(\"'\"&F4380&\"'!\"&H4380),\"0\"),Notes!$B$5:$C$100,2,FALSE),\"\"))","v":""},"2d","$G$112","$H$112"]
[19772,{"$f":"Menu!$F$29","v":"X"},{"$f":"Menu!$J$29","v":2020},{"$f":"IF(ISBLANK(INDIRECT(\"'\"&F4381&\"'!\"&G4381)),\"\",INDIRECT(\"'\"&F4381&\"'!\"&G4381))","v":""},{"$f":"IF(ISBLANK(INDIRECT(\"'\"&F4381&\"'!\"&H4381)),\"\",IFERROR(VLOOKUP(TEXT(INDIRECT(\"'\"&F4381&\"'!\"&H4381),\"0\"),Notes!$B$5:$C$100,2,FALSE),\"\"))","v":""},"2a","$U$112","$V$112"]
[19773,{"$f":"Menu!$F$29","v":"X"},{"$f":"Menu!$J$29","v":2020},{"$f":"IF(ISBLANK(INDIRECT(\"'\"&F4382&\"'!\"&G4382)),\"\",INDIRECT(\"'\"&F4382&\"'!\"&G4382))","v":""},{"$f":"IF(ISBLANK(INDIRECT(\"'\"&F4382&\"'!\"&H4382)),\"\",IFERROR(VLOOKUP(TEXT(INDIRECT(\"'\"&F4382&\"'!\"&H4382),\"0\"),Notes!$B$5:$C$100,2,FALSE),\"\"))","v":""},"2a","$S$112","$T$112"]
[19774,{"$f":"Menu!$F$29","v":"X"},{"$f":"Menu!$J$29","v":2020},{"$f":"IF(ISBLANK(INDIRECT(\"'\"&F4383&\"'!\"&G4383)),\"\",INDIRECT(\"'\"&F4383&\"'!\"&G4383))","v":""},{"$f":"IF(ISBLANK(INDIRECT(\"'\"&F4383&\"'!\"&H4383)),\"\",IFERROR(VLOOKUP(TEXT(INDIRECT(\"'\"&F4383&\"'!\"&H4383),\"0\"),Notes!$B$5:$C$100,2,FALSE),\"\"))","v":""},"2a","$Q$112","$R$112"]
[19775,{"$f":"Menu!$F$29","v":"X"},{"$f":"Menu!$J$29","v":2020},{"$f":"IF(ISBLANK(INDIRECT(\"'\"&F4384&\"'!\"&G4384)),\"\",INDIRECT(\"'\"&F4384&\"'!\"&G4384))","v":""},{"$f":"IF(ISBLANK(INDIRECT(\"'\"&F4384&\"'!\"&H4384)),\"\",IFERROR(VLOOKUP(TEXT(INDIRECT(\"'\"&F4384&\"'!\"&H4384),\"0\"),Notes!$B$5:$C$100,2,FALSE),\"\"))","v":""},"2d","$K$112","$L$112"]
[19776,{"$f":"Menu!$F$29","v":"X"},{"$f":"Menu!$J$29","v":2020},{"$f":"IF(ISBLANK(INDIRECT(\"'\"&F4385&\"'!\"&G4385)),\"\",INDIRECT(\"'\"&F4385&\"'!\"&G4385))","v":""},{"$f":"IF(ISBLANK(INDIRECT(\"'\"&F4385&\"'!\"&H4385)),\"\",IFERROR(VLOOKUP(TEXT(INDIRECT(\"'\"&F4385&\"'!\"&H4385),\"0\"),Notes!$B$5:$C$100,2,FALSE),\"\"))","v":""},"2d","$O$112","$P$112"]
[19777,{"$f":"Menu!$F$29","v":"X"},{"$f":"Menu!$J$29","v":2020},{"$f":"IF(ISBLANK(INDIRECT(\"'\"&F4386&\"'!\"&G4386)),\"\",INDIRECT(\"'\"&F4386&\"'!\"&G4386))","v":""},{"$f":"IF(ISBLANK(INDIRECT(\"'\"&F4386&\"'!\"&H4386)),\"\",IFERROR(VLOOKUP(TEXT(INDIRECT(\"'\"&F4386&\"'!\"&H4386),\"0\"),Notes!$B$5:$C$100,2,FALSE),\"\"))","v":""},"2d","$M$112","$N$112"]
[19778,{"$f":"Menu!$F$29","v":"X"},{"$f":"Menu!$J$29","v":2020},{"$f":"IF(ISBLANK(INDIRECT(\"'\"&F4387&\"'!\"&G4387)),\"\",INDIRECT(\"'\"&F4387&\"'!\"&G4387))","v":""},{"$f":"IF(ISBLANK(INDIRECT(\"'\"&F4387&\"'!\"&H4387)),\"\",IFERROR(VLOOKUP(TEXT(INDIRECT(\"'\"&F4387&\"'!\"&H4387),\"0\"),Notes!$B$5:$C$100,2,FALSE),\"\"))","v":""},"2d","$Q$112","$R$112"]
[19779,{"$f":"Menu!$F$29","v":"X"},{"$f":"Menu!$J$29","v":2020},{"$f":"IF(ISBLANK(INDIRECT(\"'\"&F4388&\"'!\"&G4388)),\"\",INDIRECT(\"'\"&F4388&\"'!\"&G4388))","v":""},{"$f":"IF(ISBLANK(INDIRECT(\"'\"&F4388&\"'!\"&H4388)),\"\",IFERROR(VLOOKUP(TEXT(INDIRECT(\"'\"&F4388&\"'!\"&H4388),\"0\"),Notes!$B$5:$C$100,2,FALSE),\"\"))","v":""},"2d","$U$112","$V$112"]
[19780,{"$f":"Menu!$F$29","v":"X"},{"$f":"Menu!$J$29","v":2020},{"$f":"IF(ISBLANK(INDIRECT(\"'\"&F4389&\"'!\"&G4389)),\"\",INDIRECT(\"'\"&F4389&\"'!\"&G4389))","v":""},{"$f":"IF(ISBLANK(INDIRECT(\"'\"&F4389&\"'!\"&H4389)),\"\",IFERROR(VLOOKUP(TEXT(INDIRECT(\"'\"&F4389&\"'!\"&H4389),\"0\"),Notes!$B$5:$C$100,2,FALSE),\"\"))","v":""},"2d","$S$112","$T$112"]
[19781,{"$f":"Menu!$F$29","v":"X"},{"$f":"Menu!$J$29","v":2020},{"$f":"IF(ISBLANK(INDIRECT(\"'\"&F4390&\"'!\"&G4390)),\"\",INDIRECT(\"'\"&F4390&\"'!\"&G4390))","v":""},{"$f":"IF(ISBLANK(INDIRECT(\"'\"&F4390&\"'!\"&H4390)),\"\",IFERROR(VLOOKUP(TEXT(INDIRECT(\"'\"&F4390&\"'!\"&H4390),\"0\"),Notes!$B$5:$C$100,2,FALSE),\"\"))","v":""},"2a","$O$112","$P$112"]
[19782,{"$f":"Menu!$F$29","v":"X"},{"$f":"Menu!$J$29","v":2020},{"$f":"IF(ISBLANK(INDIRECT(\"'\"&F4391&\"'!\"&G4391)),\"\",INDIRECT(\"'\"&F4391&\"'!\"&G4391))","v":""},{"$f":"IF(ISBLANK(INDIRECT(\"'\"&F4391&\"'!\"&H4391)),\"\",IFERROR(VLOOKUP(TEXT(INDIRECT(\"'\"&F4391&\"'!\"&H4391),\"0\"),Notes!$B$5:$C$100,2,FALSE),\"\"))","v":""},"2a","$M$112","$N$112"]
[19783,{"$f":"Menu!$F$29","v":"X"},{"$f":"Menu!$J$29","v":2020},{"$f":"IF(ISBLANK(INDIRECT(\"'\"&F4392&\"'!\"&G4392)),\"\",INDIRECT(\"'\"&F4392&\"'!\"&G4392))","v":""},{"$f":"IF(ISBLANK(INDIRECT(\"'\"&F4392&\"'!\"&H4392)),\"\",IFERROR(VLOOKUP(TEXT(INDIRECT(\"'\"&F4392&\"'!\"&H4392),\"0\"),Notes!$B$5:$C$100,2,FALSE),\"\"))","v":""},"2a","$K$112","$L$112"]
[19784,{"$f":"Menu!$F$29","v":"X"},{"$f":"Menu!$J$29","v":2020},{"$f":"IF(ISBLANK(INDIRECT(\"'\"&F4393&\"'!\"&G4393)),\"\",INDIRECT(\"'\"&F4393&\"'!\"&G4393))","v":""},{"$f":"IF(ISBLANK(INDIRECT(\"'\"&F4393&\"'!\"&H4393)),\"\",IFERROR(VLOOKUP(TEXT(INDIRECT(\"'\"&F4393&\"'!\"&H4393),\"0\"),Notes!$B$5:$C$100,2,FALSE),\"\"))","v":""},"2a","$E$112","$F$112"]
[19785,{"$f":"Menu!$F$29","v":"X"},{"$f":"Menu!$J$29","v":2020},{"$f":"IF(ISBLANK(INDIRECT(\"'\"&F4394&\"'!\"&G4394)),\"\",INDIRECT(\"'\"&F4394&\"'!\"&G4394))","v":""},{"$f":"IF(ISBLANK(INDIRECT(\"'\"&F4394&\"'!\"&H4394)),\"\",IFERROR(VLOOKUP(TEXT(INDIRECT(\"'\"&F4394&\"'!\"&H4394),\"0\"),Notes!$B$5:$C$100,2,FALSE),\"\"))","v":""},"2b","$K$113","$L$113"]
[19786,{"$f":"Menu!$F$29","v":"X"},{"$f":"Menu!$J$29","v":2020},{"$f":"IF(ISBLANK(INDIRECT(\"'\"&F4395&\"'!\"&G4395)),\"\",INDIRECT(\"'\"&F4395&\"'!\"&G4395))","v":""},{"$f":"IF(ISBLANK(INDIRECT(\"'\"&F4395&\"'!\"&H4395)),\"\",IFERROR(VLOOKUP(TEXT(INDIRECT(\"'\"&F4395&\"'!\"&H4395),\"0\"),Notes!$B$5:$C$100,2,FALSE),\"\"))","v":""},"2b","$O$113","$P$113"]
[19787,{"$f":"Menu!$F$29","v":"X"},{"$f":"Menu!$J$29","v":2020},{"$f":"IF(ISBLANK(INDIRECT(\"'\"&F4396&\"'!\"&G4396)),\"\",INDIRECT(\"'\"&F4396&\"'!\"&G4396))","v":""},{"$f":"IF(ISBLANK(INDIRECT(\"'\"&F4396&\"'!\"&H4396)),\"\",IFERROR(VLOOKUP(TEXT(INDIRECT(\"'\"&F4396&\"'!\"&H4396),\"0\"),Notes!$B$5:$C$100,2,FALSE),\"\"))","v":""},"2b","$M$113","$N$113"]
[19788,{"$f":"Menu!$F$29","v":"X"},{"$f":"Menu!$J$29","v":2020},{"$f":"IF(ISBLANK(INDIRECT(\"'\"&F4397&\"'!\"&G4397)),\"\",INDIRECT(\"'\"&F4397&\"'!\"&G4397))","v":""},{"$f":"IF(ISBLANK(INDIRECT(\"'\"&F4397&\"'!\"&H4397)),\"\",IFERROR(VLOOKUP(TEXT(INDIRECT(\"'\"&F4397&\"'!\"&H4397),\"0\"),Notes!$B$5:$C$100,2,FALSE),\"\"))","v":""},"2b","$Q$113","$R$113"]
[19789,{"$f":"Menu!$F$29","v":"X"},{"$f":"Menu!$J$29","v":2020},{"$f":"IF(ISBLANK(INDIRECT(\"'\"&F4398&\"'!\"&G4398)),\"\",INDIRECT(\"'\"&F4398&\"'!\"&G4398))","v":""},{"$f":"IF(ISBLANK(INDIRECT(\"'\"&F4398&\"'!\"&H4398)),\"\",IFERROR(VLOOKUP(TEXT(INDIRECT(\"'\"&F4398&\"'!\"&H4398),\"0\"),Notes!$B$5:$C$100,2,FALSE),\"\"))","v":""},"2b","$U$113","$V$113"]
[19790,{"$f":"Menu!$F$29","v":"X"},{"$f":"Menu!$J$29","v":2020},{"$f":"IF(ISBLANK(INDIRECT(\"'\"&F4399&\"'!\"&G4399)),\"\",INDIRECT(\"'\"&F4399&\"'!\"&G4399))","v":""},{"$f":"IF(ISBLANK(INDIRECT(\"'\"&F4399&\"'!\"&H4399)),\"\",IFERROR(VLOOKUP(TEXT(INDIRECT(\"'\"&F4399&\"'!\"&H4399),\"0\"),Notes!$B$5:$C$100,2,FALSE),\"\"))","v":""},"2b","$S$113","$T$113"]
[19791,{"$f":"Menu!$F$29","v":"X"},{"$f":"Menu!$J$29","v":2020},{"$f":"IF(ISBLANK(INDIRECT(\"'\"&F4400&\"'!\"&G4400)),\"\",INDIRECT(\"'\"&F4400&\"'!\"&G4400))","v":""},{"$f":"IF(ISBLANK(INDIRECT(\"'\"&F4400&\"'!\"&H4400)),\"\",IFERROR(VLOOKUP(TEXT(INDIRECT(\"'\"&F4400&\"'!\"&H4400),\"0\"),Notes!$B$5:$C$100,2,FALSE),\"\"))","v":""},"2a","$I$113","$J$113"]
[19792,{"$f":"Menu!$F$29","v":"X"},{"$f":"Menu!$J$29","v":2020},{"$f":"IF(ISBLANK(INDIRECT(\"'\"&F4401&\"'!\"&G4401)),\"\",INDIRECT(\"'\"&F4401&\"'!\"&G4401))","v":""},{"$f":"IF(ISBLANK(INDIRECT(\"'\"&F4401&\"'!\"&H4401)),\"\",IFERROR(VLOOKUP(TEXT(INDIRECT(\"'\"&F4401&\"'!\"&H4401),\"0\"),Notes!$B$5:$C$100,2,FALSE),\"\"))","v":""},"2c","$E$113","$F$113"]
[19793,{"$f":"Menu!$F$29","v":"X"},{"$f":"Menu!$J$29","v":2020},{"$f":"IF(ISBLANK(INDIRECT(\"'\"&F4402&\"'!\"&G4402)),\"\",INDIRECT(\"'\"&F4402&\"'!\"&G4402))","v":""},{"$f":"IF(ISBLANK(INDIRECT(\"'\"&F4402&\"'!\"&H4402)),\"\",IFERROR(VLOOKUP(TEXT(INDIRECT(\"'\"&F4402&\"'!\"&H4402),\"0\"),Notes!$B$5:$C$100,2,FALSE),\"\"))","v":""},"2c","$I$113","$J$113"]
[19794,{"$f":"Menu!$F$29","v":"X"},{"$f":"Menu!$J$29","v":2020},{"$f":"IF(ISBLANK(INDIRECT(\"'\"&F4403&\"'!\"&G4403)),\"\",INDIRECT(\"'\"&F4403&\"'!\"&G4403))","v":""},{"$f":"IF(ISBLANK(INDIRECT(\"'\"&F4403&\"'!\"&H4403)),\"\",IFERROR(VLOOKUP(TEXT(INDIRECT(\"'\"&F4403&\"'!\"&H4403),\"0\"),Notes!$B$5:$C$100,2,FALSE),\"\"))","v":""},"2c","$G$113","$H$113"]
[19795,{"$f":"Menu!$F$29","v":"X"},{"$f":"Menu!$J$29","v":2020},{"$f":"IF(ISBLANK(INDIRECT(\"'\"&F4404&\"'!\"&G4404)),\"\",INDIRECT(\"'\"&F4404&\"'!\"&G4404))","v":""},{"$f":"IF(ISBLANK(INDIRECT(\"'\"&F4404&\"'!\"&H4404)),\"\",IFERROR(VLOOKUP(TEXT(INDIRECT(\"'\"&F4404&\"'!\"&H4404),\"0\"),Notes!$B$5:$C$100,2,FALSE),\"\"))","v":""},"2c","$K$113","$L$113"]
[19796,{"$f":"Menu!$F$29","v":"X"},{"$f":"Menu!$J$29","v":2020},{"$f":"IF(ISBLANK(INDIRECT(\"'\"&F4405&\"'!\"&G4405)),\"\",INDIRECT(\"'\"&F4405&\"'!\"&G4405))","v":""},{"$f":"IF(ISBLANK(INDIRECT(\"'\"&F4405&\"'!\"&H4405)),\"\",IFERROR(VLOOKUP(TEXT(INDIRECT(\"'\"&F4405&\"'!\"&H4405),\"0\"),Notes!$B$5:$C$100,2,FALSE),\"\"))","v":""},"2c","$O$113","$P$113"]
[19797,{"$f":"Menu!$F$29","v":"X"},{"$f":"Menu!$J$29","v":2020},{"$f":"IF(ISBLANK(INDIRECT(\"'\"&F4406&\"'!\"&G4406)),\"\",INDIRECT(\"'\"&F4406&\"'!\"&G4406))","v":""},{"$f":"IF(ISBLANK(INDIRECT(\"'\"&F4406&\"'!\"&H4406)),\"\",IFERROR(VLOOKUP(TEXT(INDIRECT(\"'\"&F4406&\"'!\"&H4406),\"0\"),Notes!$B$5:$C$100,2,FALSE),\"\"))","v":""},"2c","$M$113","$N$113"]
[19798,{"$f":"Menu!$F$29","v":"X"},{"$f":"Menu!$J$29","v":2020},{"$f":"IF(ISBLANK(INDIRECT(\"'\"&F4407&\"'!\"&G4407)),\"\",INDIRECT(\"'\"&F4407&\"'!\"&G4407))","v":""},{"$f":"IF(ISBLANK(INDIRECT(\"'\"&F4407&\"'!\"&H4407)),\"\",IFERROR(VLOOKUP(TEXT(INDIRECT(\"'\"&F4407&\"'!\"&H4407),\"0\"),Notes!$B$5:$C$100,2,FALSE),\"\"))","v":""},"2c","$Q$113","$R$113"]
[19799,{"$f":"Menu!$F$29","v":"X"},{"$f":"Menu!$J$29","v":2020},{"$f":"IF(ISBLANK(INDIRECT(\"'\"&F4408&\"'!\"&G4408)),\"\",INDIRECT(\"'\"&F4408&\"'!\"&G4408))","v":""},{"$f":"IF(ISBLANK(INDIRECT(\"'\"&F4408&\"'!\"&H4408)),\"\",IFERROR(VLOOKUP(TEXT(INDIRECT(\"'\"&F4408&\"'!\"&H4408),\"0\"),Notes!$B$5:$C$100,2,FALSE),\"\"))","v":""},"2c","$U$113","$V$113"]
[19800,{"$f":"Menu!$F$29","v":"X"},{"$f":"Menu!$J$29","v":2020},{"$f":"IF(ISBLANK(INDIRECT(\"'\"&F4409&\"'!\"&G4409)),\"\",INDIRECT(\"'\"&F4409&\"'!\"&G4409))","v":""},{"$f":"IF(ISBLANK(INDIRECT(\"'\"&F4409&\"'!\"&H4409)),\"\",IFERROR(VLOOKUP(TEXT(INDIRECT(\"'\"&F4409&\"'!\"&H4409),\"0\"),Notes!$B$5:$C$100,2,FALSE),\"\"))","v":""},"2c","$S$113","$T$113"]
[19801,{"$f":"Menu!$F$29","v":"X"},{"$f":"Menu!$J$29","v":2020},{"$f":"IF(ISBLANK(INDIRECT(\"'\"&F4410&\"'!\"&G4410)),\"\",INDIRECT(\"'\"&F4410&\"'!\"&G4410))","v":""},{"$f":"IF(ISBLANK(INDIRECT(\"'\"&F4410&\"'!\"&H4410)),\"\",IFERROR(VLOOKUP(TEXT(INDIRECT(\"'\"&F4410&\"'!\"&H4410),\"0\"),Notes!$B$5:$C$100,2,FALSE),\"\"))","v":""},"2c","$W$113","$X$113"]
[19802,{"$f":"Menu!$F$29","v":"X"},{"$f":"Menu!$J$29","v":2020},{"$f":"IF(ISBLANK(INDIRECT(\"'\"&F4411&\"'!\"&G4411)),\"\",INDIRECT(\"'\"&F4411&\"'!\"&G4411))","v":""},{"$f":"IF(ISBLANK(INDIRECT(\"'\"&F4411&\"'!\"&H4411)),\"\",IFERROR(VLOOKUP(TEXT(INDIRECT(\"'\"&F4411&\"'!\"&H4411),\"0\"),Notes!$B$5:$C$100,2,FALSE),\"\"))","v":""},"2c","$AA$113","$AB$113"]
[19803,{"$f":"Menu!$F$29","v":"X"},{"$f":"Menu!$J$29","v":2020},{"$f":"IF(ISBLANK(INDIRECT(\"'\"&F4412&\"'!\"&G4412)),\"\",INDIRECT(\"'\"&F4412&\"'!\"&G4412))","v":""},{"$f":"IF(ISBLANK(INDIRECT(\"'\"&F4412&\"'!\"&H4412)),\"\",IFERROR(VLOOKUP(TEXT(INDIRECT(\"'\"&F4412&\"'!\"&H4412),\"0\"),Notes!$B$5:$C$100,2,FALSE),\"\"))","v":""},"2c","$Y$113","$Z$113"]
[19804,{"$f":"Menu!$F$29","v":"X"},{"$f":"Menu!$J$29","v":2020},{"$f":"IF(ISBLANK(INDIRECT(\"'\"&F4413&\"'!\"&G4413)),\"\",INDIRECT(\"'\"&F4413&\"'!\"&G4413))","v":""},{"$f":"IF(ISBLANK(INDIRECT(\"'\"&F4413&\"'!\"&H4413)),\"\",IFERROR(VLOOKUP(TEXT(INDIRECT(\"'\"&F4413&\"'!\"&H4413),\"0\"),Notes!$B$5:$C$100,2,FALSE),\"\"))","v":""},"2e","$BG$114","$BH$114"]
[19805,{"$f":"Menu!$F$29","v":"X"},{"$f":"Menu!$J$29","v":2020},{"$f":"IF(ISBLANK(INDIRECT(\"'\"&F4414&\"'!\"&G4414)),\"\",INDIRECT(\"'\"&F4414&\"'!\"&G4414))","v":""},{"$f":"IF(ISBLANK(INDIRECT(\"'\"&F4414&\"'!\"&H4414)),\"\",IFERROR(VLOOKUP(TEXT(INDIRECT(\"'\"&F4414&\"'!\"&H4414),\"0\"),Notes!$B$5:$C$100,2,FALSE),\"\"))","v":""},"2e","$BK$114","$BL$114"]
[19806,{"$f":"Menu!$F$29","v":"X"},{"$f":"Menu!$J$29","v":2020},{"$f":"IF(ISBLANK(INDIRECT(\"'\"&F4415&\"'!\"&G4415)),\"\",INDIRECT(\"'\"&F4415&\"'!\"&G4415))","v":""},{"$f":"IF(ISBLANK(INDIRECT(\"'\"&F4415&\"'!\"&H4415)),\"\",IFERROR(VLOOKUP(TEXT(INDIRECT(\"'\"&F4415&\"'!\"&H4415),\"0\"),Notes!$B$5:$C$100,2,FALSE),\"\"))","v":""},"2e","$BI$114","$BJ$114"]
[19807,{"$f":"Menu!$F$29","v":"X"},{"$f":"Menu!$J$29","v":2020},{"$f":"IF(ISBLANK(INDIRECT(\"'\"&F4416&\"'!\"&G4416)),\"\",INDIRECT(\"'\"&F4416&\"'!\"&G4416))","v":""},{"$f":"IF(ISBLANK(INDIRECT(\"'\"&F4416&\"'!\"&H4416)),\"\",IFERROR(VLOOKUP(TEXT(INDIRECT(\"'\"&F4416&\"'!\"&H4416),\"0\"),Notes!$B$5:$C$100,2,FALSE),\"\"))","v":""},"2e","$E$114","$F$114"]
[19808,{"$f":"Menu!$F$29","v":"X"},{"$f":"Menu!$J$29","v":2020},{"$f":"IF(ISBLANK(INDIRECT(\"'\"&F4417&\"'!\"&G4417)),\"\",INDIRECT(\"'\"&F4417&\"'!\"&G4417))","v":""},{"$f":"IF(ISBLANK(INDIRECT(\"'\"&F4417&\"'!\"&H4417)),\"\",IFERROR(VLOOKUP(TEXT(INDIRECT(\"'\"&F4417&\"'!\"&H4417),\"0\"),Notes!$B$5:$C$100,2,FALSE),\"\"))","v":""},"2e","$I$114","$J$114"]
[19809,{"$f":"Menu!$F$29","v":"X"},{"$f":"Menu!$J$29","v":2020},{"$f":"IF(ISBLANK(INDIRECT(\"'\"&F4418&\"'!\"&G4418)),\"\",INDIRECT(\"'\"&F4418&\"'!\"&G4418))","v":""},{"$f":"IF(ISBLANK(INDIRECT(\"'\"&F4418&\"'!\"&H4418)),\"\",IFERROR(VLOOKUP(TEXT(INDIRECT(\"'\"&F4418&\"'!\"&H4418),\"0\"),Notes!$B$5:$C$100,2,FALSE),\"\"))","v":""},"2e","$G$114",{"$f":"IF(LEN(TRIM(MID(G4418,4,10)))-LEN(SUBSTITUTE(TRIM(MID(G4418,4,10)),\"$\",\"\"))=0,\"$\"&CHAR(CODE(MID(G4418,2,1))+1)&\"$\"&TRIM(MID(G4418,4,10)),\"$\"&MID(G4418,2,1)&CHAR(CODE(MID(G4418,3,1))+1)&\"$\"&TRIM(MID(G4418,5,11)))","v":"$H$114"}]
[19810,{"$f":"Menu!$F$29","v":"X"},{"$f":"Menu!$J$29","v":2020},{"$f":"IF(ISBLANK(INDIRECT(\"'\"&F4419&\"'!\"&G4419)),\"\",INDIRECT(\"'\"&F4419&\"'!\"&G4419))","v":""},{"$f":"IF(ISBLANK(INDIRECT(\"'\"&F4419&\"'!\"&H4419)),\"\",IFERROR(VLOOKUP(TEXT(INDIRECT(\"'\"&F4419&\"'!\"&H4419),\"0\"),Notes!$B$5:$C$100,2,FALSE),\"\"))","v":""},"2e","$K$114","$L$114"]
[19811,{"$f":"Menu!$F$29","v":"X"},{"$f":"Menu!$J$29","v":2020},{"$f":"IF(ISBLANK(INDIRECT(\"'\"&F4420&\"'!\"&G4420)),\"\",INDIRECT(\"'\"&F4420&\"'!\"&G4420))","v":""},{"$f":"IF(ISBLANK(INDIRECT(\"'\"&F4420&\"'!\"&H4420)),\"\",IFERROR(VLOOKUP(TEXT(INDIRECT(\"'\"&F4420&\"'!\"&H4420),\"0\"),Notes!$B$5:$C$100,2,FALSE),\"\"))","v":""},"2e","$O$114","$P$114"]
[19812,{"$f":"Menu!$F$29","v":"X"},{"$f":"Menu!$J$29","v":2020},{"$f":"IF(ISBLANK(INDIRECT(\"'\"&F4421&\"'!\"&G4421)),\"\",INDIRECT(\"'\"&F4421&\"'!\"&G4421))","v":""},{"$f":"IF(ISBLANK(INDIRECT(\"'\"&F4421&\"'!\"&H4421)),\"\",IFERROR(VLOOKUP(TEXT(INDIRECT(\"'\"&F4421&\"'!\"&H4421),\"0\"),Notes!$B$5:$C$100,2,FALSE),\"\"))","v":""},"2e","$M$114","$N$114"]
[19813,{"$f":"Menu!$F$29","v":"X"},{"$f":"Menu!$J$29","v":2020},{"$f":"IF(ISBLANK(INDIRECT(\"'\"&F4422&\"'!\"&G4422)),\"\",INDIRECT(\"'\"&F4422&\"'!\"&G4422))","v":""},{"$f":"IF(ISBLANK(INDIRECT(\"'\"&F4422&\"'!\"&H4422)),\"\",IFERROR(VLOOKUP(TEXT(INDIRECT(\"'\"&F4422&\"'!\"&H4422),\"0\"),Notes!$B$5:$C$100,2,FALSE),\"\"))","v":""},"2e","$Q$114","$R$114"]
[19814,{"$f":"Menu!$F$29","v":"X"},{"$f":"Menu!$J$29","v":2020},{"$f":"IF(ISBLANK(INDIRECT(\"'\"&F4423&\"'!\"&G4423)),\"\",INDIRECT(\"'\"&F4423&\"'!\"&G4423))","v":""},{"$f":"IF(ISBLANK(INDIRECT(\"'\"&F4423&\"'!\"&H4423)),\"\",IFERROR(VLOOKUP(TEXT(INDIRECT(\"'\"&F4423&\"'!\"&H4423),\"0\"),Notes!$B$5:$C$100,2,FALSE),\"\"))","v":""},"2e","$U$114","$V$114"]
[19815,{"$f":"Menu!$F$29","v":"X"},{"$f":"Menu!$J$29","v":2020},{"$f":"IF(ISBLANK(INDIRECT(\"'\"&F4424&\"'!\"&G4424)),\"\",INDIRECT(\"'\"&F4424&\"'!\"&G4424))","v":""},{"$f":"IF(ISBLANK(INDIRECT(\"'\"&F4424&\"'!\"&H4424)),\"\",IFERROR(VLOOKUP(TEXT(INDIRECT(\"'\"&F4424&\"'!\"&H4424),\"0\"),Notes!$B$5:$C$100,2,FALSE),\"\"))","v":""},"2e","$S$114","$T$114"]
[19816,{"$f":"Menu!$F$29","v":"X"},{"$f":"Menu!$J$29","v":2020},{"$f":"IF(ISBLANK(INDIRECT(\"'\"&F4425&\"'!\"&G4425)),\"\",INDIRECT(\"'\"&F4425&\"'!\"&G4425))","v":""},{"$f":"IF(ISBLANK(INDIRECT(\"'\"&F4425&\"'!\"&H4425)),\"\",IFERROR(VLOOKUP(TEXT(INDIRECT(\"'\"&F4425&\"'!\"&H4425),\"0\"),Notes!$B$5:$C$100,2,FALSE),\"\"))","v":""},"2e","$W$114","$X$114"]
[19817,{"$f":"Menu!$F$29","v":"X"},{"$f":"Menu!$J$29","v":2020},{"$f":"IF(ISBLANK(INDIRECT(\"'\"&F4426&\"'!\"&G4426)),\"\",INDIRECT(\"'\"&F4426&\"'!\"&G4426))","v":""},{"$f":"IF(ISBLANK(INDIRECT(\"'\"&F4426&\"'!\"&H4426)),\"\",IFERROR(VLOOKUP(TEXT(INDIRECT(\"'\"&F4426&\"'!\"&H4426),\"0\"),Notes!$B$5:$C$100,2,FALSE),\"\"))","v":""},"2e","$AA$114","$AB$114"]
[19818,{"$f":"Menu!$F$29","v":"X"},{"$f":"Menu!$J$29","v":2020},{"$f":"IF(ISBLANK(INDIRECT(\"'\"&F4427&\"'!\"&G4427)),\"\",INDIRECT(\"'\"&F4427&\"'!\"&G4427))","v":""},{"$f":"IF(ISBLANK(INDIRECT(\"'\"&F4427&\"'!\"&H4427)),\"\",IFERROR(VLOOKUP(TEXT(INDIRECT(\"'\"&F4427&\"'!\"&H4427),\"0\"),Notes!$B$5:$C$100,2,FALSE),\"\"))","v":""},"2e","$Y$114","$Z$114"]
[19819,{"$f":"Menu!$F$29","v":"X"},{"$f":"Menu!$J$29","v":2020},{"$f":"IF(ISBLANK(INDIRECT(\"'\"&F4428&\"'!\"&G4428)),\"\",INDIRECT(\"'\"&F4428&\"'!\"&G4428))","v":""},{"$f":"IF(ISBLANK(INDIRECT(\"'\"&F4428&\"'!\"&H4428)),\"\",IFERROR(VLOOKUP(TEXT(INDIRECT(\"'\"&F4428&\"'!\"&H4428),\"0\"),Notes!$B$5:$C$100,2,FALSE),\"\"))","v":""},"2e","$AC$114","$AD$114"]
[19820,{"$f":"Menu!$F$29","v":"X"},{"$f":"Menu!$J$29","v":2020},{"$f":"IF(ISBLANK(INDIRECT(\"'\"&F4429&\"'!\"&G4429)),\"\",INDIRECT(\"'\"&F4429&\"'!\"&G4429))","v":""},{"$f":"IF(ISBLANK(INDIRECT(\"'\"&F4429&\"'!\"&H4429)),\"\",IFERROR(VLOOKUP(TEXT(INDIRECT(\"'\"&F4429&\"'!\"&H4429),\"0\"),Notes!$B$5:$C$100,2,FALSE),\"\"))","v":""},"2e","$AG$114","$AH$114"]
[19821,{"$f":"Menu!$F$29","v":"X"},{"$f":"Menu!$J$29","v":2020},{"$f":"IF(ISBLANK(INDIRECT(\"'\"&F4430&\"'!\"&G4430)),\"\",INDIRECT(\"'\"&F4430&\"'!\"&G4430))","v":""},{"$f":"IF(ISBLANK(INDIRECT(\"'\"&F4430&\"'!\"&H4430)),\"\",IFERROR(VLOOKUP(TEXT(INDIRECT(\"'\"&F4430&\"'!\"&H4430),\"0\"),Notes!$B$5:$C$100,2,FALSE),\"\"))","v":""},"2e","$AE$114","$AF$114"]
[19822,{"$f":"Menu!$F$29","v":"X"},{"$f":"Menu!$J$29","v":2020},{"$f":"IF(ISBLANK(INDIRECT(\"'\"&F4431&\"'!\"&G4431)),\"\",INDIRECT(\"'\"&F4431&\"'!\"&G4431))","v":""},{"$f":"IF(ISBLANK(INDIRECT(\"'\"&F4431&\"'!\"&H4431)),\"\",IFERROR(VLOOKUP(TEXT(INDIRECT(\"'\"&F4431&\"'!\"&H4431),\"0\"),Notes!$B$5:$C$100,2,FALSE),\"\"))","v":""},"2e","$AI$114","$AJ$114"]
[19823,{"$f":"Menu!$F$29","v":"X"},{"$f":"Menu!$J$29","v":2020},{"$f":"IF(ISBLANK(INDIRECT(\"'\"&F4432&\"'!\"&G4432)),\"\",INDIRECT(\"'\"&F4432&\"'!\"&G4432))","v":""},{"$f":"IF(ISBLANK(INDIRECT(\"'\"&F4432&\"'!\"&H4432)),\"\",IFERROR(VLOOKUP(TEXT(INDIRECT(\"'\"&F4432&\"'!\"&H4432),\"0\"),Notes!$B$5:$C$100,2,FALSE),\"\"))","v":""},"2e","$AM$114","$AN$114"]
[19824,{"$f":"Menu!$F$29","v":"X"},{"$f":"Menu!$J$29","v":2020},{"$f":"IF(ISBLANK(INDIRECT(\"'\"&F4433&\"'!\"&G4433)),\"\",INDIRECT(\"'\"&F4433&\"'!\"&G4433))","v":""},{"$f":"IF(ISBLANK(INDIRECT(\"'\"&F4433&\"'!\"&H4433)),\"\",IFERROR(VLOOKUP(TEXT(INDIRECT(\"'\"&F4433&\"'!\"&H4433),\"0\"),Notes!$B$5:$C$100,2,FALSE),\"\"))","v":""},"2e","$AK$114","$AL$114"]
[19825,{"$f":"Menu!$F$29","v":"X"},{"$f":"Menu!$J$29","v":2020},{"$f":"IF(ISBLANK(INDIRECT(\"'\"&F4434&\"'!\"&G4434)),\"\",INDIRECT(\"'\"&F4434&\"'!\"&G4434))","v":""},{"$f":"IF(ISBLANK(INDIRECT(\"'\"&F4434&\"'!\"&H4434)),\"\",IFERROR(VLOOKUP(TEXT(INDIRECT(\"'\"&F4434&\"'!\"&H4434),\"0\"),Notes!$B$5:$C$100,2,FALSE),\"\"))","v":""},"2e","$AO$114","$AP$114"]
[19826,{"$f":"Menu!$F$29","v":"X"},{"$f":"Menu!$J$29","v":2020},{"$f":"IF(ISBLANK(INDIRECT(\"'\"&F4435&\"'!\"&G4435)),\"\",INDIRECT(\"'\"&F4435&\"'!\"&G4435))","v":""},{"$f":"IF(ISBLANK(INDIRECT(\"'\"&F4435&\"'!\"&H4435)),\"\",IFERROR(VLOOKUP(TEXT(INDIRECT(\"'\"&F4435&\"'!\"&H4435),\"0\"),Notes!$B$5:$C$100,2,FALSE),\"\"))","v":""},"2e","$AQ$114","$AR$114"]
[19827,{"$f":"Menu!$F$29","v":"X"},{"$f":"Menu!$J$29","v":2020},{"$f":"IF(ISBLANK(INDIRECT(\"'\"&F4436&\"'!\"&G4436)),\"\",INDIRECT(\"'\"&F4436&\"'!\"&G4436))","v":""},{"$f":"IF(ISBLANK(INDIRECT(\"'\"&F4436&\"'!\"&H4436)),\"\",IFERROR(VLOOKUP(TEXT(INDIRECT(\"'\"&F4436&\"'!\"&H4436),\"0\"),Notes!$B$5:$C$100,2,FALSE),\"\"))","v":""},"2e","$AS$114","$AT$114"]
[19828,{"$f":"Menu!$F$29","v":"X"},{"$f":"Menu!$J$29","v":2020},{"$f":"IF(ISBLANK(INDIRECT(\"'\"&F4437&\"'!\"&G4437)),\"\",INDIRECT(\"'\"&F4437&\"'!\"&G4437))","v":""},{"$f":"IF(ISBLANK(INDIRECT(\"'\"&F4437&\"'!\"&H4437)),\"\",IFERROR(VLOOKUP(TEXT(INDIRECT(\"'\"&F4437&\"'!\"&H4437),\"0\"),Notes!$B$5:$C$100,2,FALSE),\"\"))","v":""},"2e","$AU$114","$AV$114"]
[19829,{"$f":"Menu!$F$29","v":"X"},{"$f":"Menu!$J$29","v":2020},{"$f":"IF(ISBLANK(INDIRECT(\"'\"&F4438&\"'!\"&G4438)),\"\",INDIRECT(\"'\"&F4438&\"'!\"&G4438))","v":""},{"$f":"IF(ISBLANK(INDIRECT(\"'\"&F4438&\"'!\"&H4438)),\"\",IFERROR(VLOOKUP(TEXT(INDIRECT(\"'\"&F4438&\"'!\"&H4438),\"0\"),Notes!$B$5:$C$100,2,FALSE),\"\"))","v":""},"2e","$AY$114","$AZ$114"]
[19830,{"$f":"Menu!$F$29","v":"X"},{"$f":"Menu!$J$29","v":2020},{"$f":"IF(ISBLANK(INDIRECT(\"'\"&F4439&\"'!\"&G4439)),\"\",INDIRECT(\"'\"&F4439&\"'!\"&G4439))","v":""},{"$f":"IF(ISBLANK(INDIRECT(\"'\"&F4439&\"'!\"&H4439)),\"\",IFERROR(VLOOKUP(TEXT(INDIRECT(\"'\"&F4439&\"'!\"&H4439),\"0\"),Notes!$B$5:$C$100,2,FALSE),\"\"))","v":""},"2e","$AW$114","$AX$114"]
[19831,{"$f":"Menu!$F$29","v":"X"},{"$f":"Menu!$J$29","v":2020},{"$f":"IF(ISBLANK(INDIRECT(\"'\"&F4440&\"'!\"&G4440)),\"\",INDIRECT(\"'\"&F4440&\"'!\"&G4440))","v":""},{"$f":"IF(ISBLANK(INDIRECT(\"'\"&F4440&\"'!\"&H4440)),\"\",IFERROR(VLOOKUP(TEXT(INDIRECT(\"'\"&F4440&\"'!\"&H4440),\"0\"),Notes!$B$5:$C$100,2,FALSE),\"\"))","v":""},"2e","$BA$114","$BB$114"]
[19832,{"$f":"Menu!$F$29","v":"X"},{"$f":"Menu!$J$29","v":2020},{"$f":"IF(ISBLANK(INDIRECT(\"'\"&F4441&\"'!\"&G4441)),\"\",INDIRECT(\"'\"&F4441&\"'!\"&G4441))","v":""},{"$f":"IF(ISBLANK(INDIRECT(\"'\"&F4441&\"'!\"&H4441)),\"\",IFERROR(VLOOKUP(TEXT(INDIRECT(\"'\"&F4441&\"'!\"&H4441),\"0\"),Notes!$B$5:$C$100,2,FALSE),\"\"))","v":""},"2e","$BE$114","$BF$114"]
[19833,{"$f":"Menu!$F$29","v":"X"},{"$f":"Menu!$J$29","v":2020},{"$f":"IF(ISBLANK(INDIRECT(\"'\"&F4442&\"'!\"&G4442)),\"\",INDIRECT(\"'\"&F4442&\"'!\"&G4442))","v":""},{"$f":"IF(ISBLANK(INDIRECT(\"'\"&F4442&\"'!\"&H4442)),\"\",IFERROR(VLOOKUP(TEXT(INDIRECT(\"'\"&F4442&\"'!\"&H4442),\"0\"),Notes!$B$5:$C$100,2,FALSE),\"\"))","v":""},"2e","$BC$114","$BD$114"]
[19834,{"$f":"Menu!$F$29","v":"X"},{"$f":"Menu!$J$29","v":2020},{"$f":"IF(ISBLANK(INDIRECT(\"'\"&F4443&\"'!\"&G4443)),\"\",INDIRECT(\"'\"&F4443&\"'!\"&G4443))","v":""},{"$f":"IF(ISBLANK(INDIRECT(\"'\"&F4443&\"'!\"&H4443)),\"\",IFERROR(VLOOKUP(TEXT(INDIRECT(\"'\"&F4443&\"'!\"&H4443),\"0\"),Notes!$B$5:$C$100,2,FALSE),\"\"))","v":""},"2b","$E$113","$F$113"]
[19835,{"$f":"Menu!$F$29","v":"X"},{"$f":"Menu!$J$29","v":2020},{"$f":"IF(ISBLANK(INDIRECT(\"'\"&F4444&\"'!\"&G4444)),\"\",INDIRECT(\"'\"&F4444&\"'!\"&G4444))","v":""},{"$f":"IF(ISBLANK(INDIRECT(\"'\"&F4444&\"'!\"&H4444)),\"\",IFERROR(VLOOKUP(TEXT(INDIRECT(\"'\"&F4444&\"'!\"&H4444),\"0\"),Notes!$B$5:$C$100,2,FALSE),\"\"))","v":""},"2b","$I$113","$J$113"]
[19836,{"$f":"Menu!$F$29","v":"X"},{"$f":"Menu!$J$29","v":2020},{"$f":"IF(ISBLANK(INDIRECT(\"'\"&F4445&\"'!\"&G4445)),\"\",INDIRECT(\"'\"&F4445&\"'!\"&G4445))","v":""},{"$f":"IF(ISBLANK(INDIRECT(\"'\"&F4445&\"'!\"&H4445)),\"\",IFERROR(VLOOKUP(TEXT(INDIRECT(\"'\"&F4445&\"'!\"&H4445),\"0\"),Notes!$B$5:$C$100,2,FALSE),\"\"))","v":""},"2b","$G$113","$H$113"]
[19837,{"$f":"Menu!$F$29","v":"X"},{"$f":"Menu!$J$29","v":2020},{"$f":"IF(ISBLANK(INDIRECT(\"'\"&F4446&\"'!\"&G4446)),\"\",INDIRECT(\"'\"&F4446&\"'!\"&G4446))","v":""},{"$f":"IF(ISBLANK(INDIRECT(\"'\"&F4446&\"'!\"&H4446)),\"\",IFERROR(VLOOKUP(TEXT(INDIRECT(\"'\"&F4446&\"'!\"&H4446),\"0\"),Notes!$B$5:$C$100,2,FALSE),\"\"))","v":""},"2a","$G$113","$H$113"]
[19838,{"$f":"Menu!$F$29","v":"X"},{"$f":"Menu!$J$29","v":2020},{"$f":"IF(ISBLANK(INDIRECT(\"'\"&F4447&\"'!\"&G4447)),\"\",INDIRECT(\"'\"&F4447&\"'!\"&G4447))","v":""},{"$f":"IF(ISBLANK(INDIRECT(\"'\"&F4447&\"'!\"&H4447)),\"\",IFERROR(VLOOKUP(TEXT(INDIRECT(\"'\"&F4447&\"'!\"&H4447),\"0\"),Notes!$B$5:$C$100,2,FALSE),\"\"))","v":""},"2b","$W$113","$X$113"]
[19839,{"$f":"Menu!$F$29","v":"X"},{"$f":"Menu!$J$29","v":2020},{"$f":"IF(ISBLANK(INDIRECT(\"'\"&F4448&\"'!\"&G4448)),\"\",INDIRECT(\"'\"&F4448&\"'!\"&G4448))","v":""},{"$f":"IF(ISBLANK(INDIRECT(\"'\"&F4448&\"'!\"&H4448)),\"\",IFERROR(VLOOKUP(TEXT(INDIRECT(\"'\"&F4448&\"'!\"&H4448),\"0\"),Notes!$B$5:$C$100,2,FALSE),\"\"))","v":""},"2b","$AA$113","$AB$113"]
[19840,{"$f":"Menu!$F$29","v":"X"},{"$f":"Menu!$J$29","v":2020},{"$f":"IF(ISBLANK(INDIRECT(\"'\"&F4449&\"'!\"&G4449)),\"\",INDIRECT(\"'\"&F4449&\"'!\"&G4449))","v":""},{"$f":"IF(ISBLANK(INDIRECT(\"'\"&F4449&\"'!\"&H4449)),\"\",IFERROR(VLOOKUP(TEXT(INDIRECT(\"'\"&F4449&\"'!\"&H4449),\"0\"),Notes!$B$5:$C$100,2,FALSE),\"\"))","v":""},"2b","$Y$113","$Z$113"]
[19841,{"$f":"Menu!$F$29","v":"X"},{"$f":"Menu!$J$29","v":2020},{"$f":"IF(ISBLANK(INDIRECT(\"'\"&F4450&\"'!\"&G4450)),\"\",INDIRECT(\"'\"&F4450&\"'!\"&G4450))","v":""},{"$f":"IF(ISBLANK(INDIRECT(\"'\"&F4450&\"'!\"&H4450)),\"\",IFERROR(VLOOKUP(TEXT(INDIRECT(\"'\"&F4450&\"'!\"&H4450),\"0\"),Notes!$B$5:$C$100,2,FALSE),\"\"))","v":""},"2d","$AC$113","$AD$113"]
[19842,{"$f":"Menu!$F$29","v":"X"},{"$f":"Menu!$J$29","v":2020},{"$f":"IF(ISBLANK(INDIRECT(\"'\"&F4451&\"'!\"&G4451)),\"\",INDIRECT(\"'\"&F4451&\"'!\"&G4451))","v":""},{"$f":"IF(ISBLANK(INDIRECT(\"'\"&F4451&\"'!\"&H4451)),\"\",IFERROR(VLOOKUP(TEXT(INDIRECT(\"'\"&F4451&\"'!\"&H4451),\"0\"),Notes!$B$5:$C$100,2,FALSE),\"\"))","v":""},"2d","$AG$113","$AH$113"]
[19843,{"$f":"Menu!$F$29","v":"X"},{"$f":"Menu!$J$29","v":2020},{"$f":"IF(ISBLANK(INDIRECT(\"'\"&F4452&\"'!\"&G4452)),\"\",INDIRECT(\"'\"&F4452&\"'!\"&G4452))","v":""},{"$f":"IF(ISBLANK(INDIRECT(\"'\"&F4452&\"'!\"&H4452)),\"\",IFERROR(VLOOKUP(TEXT(INDIRECT(\"'\"&F4452&\"'!\"&H4452),\"0\"),Notes!$B$5:$C$100,2,FALSE),\"\"))","v":""},"2d","$AE$113","$AF$113"]
[19844,{"$f":"Menu!$F$29","v":"X"},{"$f":"Menu!$J$29","v":2020},{"$f":"IF(ISBLANK(INDIRECT(\"'\"&F4453&\"'!\"&G4453)),\"\",INDIRECT(\"'\"&F4453&\"'!\"&G4453))","v":""},{"$f":"IF(ISBLANK(INDIRECT(\"'\"&F4453&\"'!\"&H4453)),\"\",IFERROR(VLOOKUP(TEXT(INDIRECT(\"'\"&F4453&\"'!\"&H4453),\"0\"),Notes!$B$5:$C$100,2,FALSE),\"\"))","v":""},"2d","$W$113","$X$113"]
[19845,{"$f":"Menu!$F$29","v":"X"},{"$f":"Menu!$J$29","v":2020},{"$f":"IF(ISBLANK(INDIRECT(\"'\"&F4454&\"'!\"&G4454)),\"\",INDIRECT(\"'\"&F4454&\"'!\"&G4454))","v":""},{"$f":"IF(ISBLANK(INDIRECT(\"'\"&F4454&\"'!\"&H4454)),\"\",IFERROR(VLOOKUP(TEXT(INDIRECT(\"'\"&F4454&\"'!\"&H4454),\"0\"),Notes!$B$5:$C$100,2,FALSE),\"\"))","v":""},"2d","$AA$113","$AB$113"]
[19846,{"$f":"Menu!$F$29","v":"X"},{"$f":"Menu!$J$29","v":2020},{"$f":"IF(ISBLANK(INDIRECT(\"'\"&F4455&\"'!\"&G4455)),\"\",INDIRECT(\"'\"&F4455&\"'!\"&G4455))","v":""},{"$f":"IF(ISBLANK(INDIRECT(\"'\"&F4455&\"'!\"&H4455)),\"\",IFERROR(VLOOKUP(TEXT(INDIRECT(\"'\"&F4455&\"'!\"&H4455),\"0\"),Notes!$B$5:$C$100,2,FALSE),\"\"))","v":""},"2d","$Y$113","$Z$113"]
[19847,{"$f":"Menu!$F$29","v":"X"},{"$f":"Menu!$J$29","v":2020},{"$f":"IF(ISBLANK(INDIRECT(\"'\"&F4456&\"'!\"&G4456)),\"\",INDIRECT(\"'\"&F4456&\"'!\"&G4456))","v":""},{"$f":"IF(ISBLANK(INDIRECT(\"'\"&F4456&\"'!\"&H4456)),\"\",IFERROR(VLOOKUP(TEXT(INDIRECT(\"'\"&F4456&\"'!\"&H4456),\"0\"),Notes!$B$5:$C$100,2,FALSE),\"\"))","v":""},"2d","$E$113","$F$113"]
[19848,{"$f":"Menu!$F$29","v":"X"},{"$f":"Menu!$J$29","v":2020},{"$f":"IF(ISBLANK(INDIRECT(\"'\"&F4457&\"'!\"&G4457)),\"\",INDIRECT(\"'\"&F4457&\"'!\"&G4457))","v":""},{"$f":"IF(ISBLANK(INDIRECT(\"'\"&F4457&\"'!\"&H4457)),\"\",IFERROR(VLOOKUP(TEXT(INDIRECT(\"'\"&F4457&\"'!\"&H4457),\"0\"),Notes!$B$5:$C$100,2,FALSE),\"\"))","v":""},"2d","$I$113","$J$113"]
[19849,{"$f":"Menu!$F$29","v":"X"},{"$f":"Menu!$J$29","v":2020},{"$f":"IF(ISBLANK(INDIRECT(\"'\"&F4458&\"'!\"&G4458)),\"\",INDIRECT(\"'\"&F4458&\"'!\"&G4458))","v":""},{"$f":"IF(ISBLANK(INDIRECT(\"'\"&F4458&\"'!\"&H4458)),\"\",IFERROR(VLOOKUP(TEXT(INDIRECT(\"'\"&F4458&\"'!\"&H4458),\"0\"),Notes!$B$5:$C$100,2,FALSE),\"\"))","v":""},"2d","$G$113","$H$113"]
[19850,{"$f":"Menu!$F$29","v":"X"},{"$f":"Menu!$J$29","v":2020},{"$f":"IF(ISBLANK(INDIRECT(\"'\"&F4459&\"'!\"&G4459)),\"\",INDIRECT(\"'\"&F4459&\"'!\"&G4459))","v":""},{"$f":"IF(ISBLANK(INDIRECT(\"'\"&F4459&\"'!\"&H4459)),\"\",IFERROR(VLOOKUP(TEXT(INDIRECT(\"'\"&F4459&\"'!\"&H4459),\"0\"),Notes!$B$5:$C$100,2,FALSE),\"\"))","v":""},"2a","$U$113","$V$113"]
[19851,{"$f":"Menu!$F$29","v":"X"},{"$f":"Menu!$J$29","v":2020},{"$f":"IF(ISBLANK(INDIRECT(\"'\"&F4460&\"'!\"&G4460)),\"\",INDIRECT(\"'\"&F4460&\"'!\"&G4460))","v":""},{"$f":"IF(ISBLANK(INDIRECT(\"'\"&F4460&\"'!\"&H4460)),\"\",IFERROR(VLOOKUP(TEXT(INDIRECT(\"'\"&F4460&\"'!\"&H4460),\"0\"),Notes!$B$5:$C$100,2,FALSE),\"\"))","v":""},"2a","$S$113","$T$113"]
[19852,{"$f":"Menu!$F$29","v":"X"},{"$f":"Menu!$J$29","v":2020},{"$f":"IF(ISBLANK(INDIRECT(\"'\"&F4461&\"'!\"&G4461)),\"\",INDIRECT(\"'\"&F4461&\"'!\"&G4461))","v":""},{"$f":"IF(ISBLANK(INDIRECT(\"'\"&F4461&\"'!\"&H4461)),\"\",IFERROR(VLOOKUP(TEXT(INDIRECT(\"'\"&F4461&\"'!\"&H4461),\"0\"),Notes!$B$5:$C$100,2,FALSE),\"\"))","v":""},"2a","$Q$113","$R$113"]
[19853,{"$f":"Menu!$F$29","v":"X"},{"$f":"Menu!$J$29","v":2020},{"$f":"IF(ISBLANK(INDIRECT(\"'\"&F4462&\"'!\"&G4462)),\"\",INDIRECT(\"'\"&F4462&\"'!\"&G4462))","v":""},{"$f":"IF(ISBLANK(INDIRECT(\"'\"&F4462&\"'!\"&H4462)),\"\",IFERROR(VLOOKUP(TEXT(INDIRECT(\"'\"&F4462&\"'!\"&H4462),\"0\"),Notes!$B$5:$C$100,2,FALSE),\"\"))","v":""},"2d","$K$113","$L$113"]
[19854,{"$f":"Menu!$F$29","v":"X"},{"$f":"Menu!$J$29","v":2020},{"$f":"IF(ISBLANK(INDIRECT(\"'\"&F4463&\"'!\"&G4463)),\"\",INDIRECT(\"'\"&F4463&\"'!\"&G4463))","v":""},{"$f":"IF(ISBLANK(INDIRECT(\"'\"&F4463&\"'!\"&H4463)),\"\",IFERROR(VLOOKUP(TEXT(INDIRECT(\"'\"&F4463&\"'!\"&H4463),\"0\"),Notes!$B$5:$C$100,2,FALSE),\"\"))","v":""},"2d","$O$113","$P$113"]
[19855,{"$f":"Menu!$F$29","v":"X"},{"$f":"Menu!$J$29","v":2020},{"$f":"IF(ISBLANK(INDIRECT(\"'\"&F4464&\"'!\"&G4464)),\"\",INDIRECT(\"'\"&F4464&\"'!\"&G4464))","v":""},{"$f":"IF(ISBLANK(INDIRECT(\"'\"&F4464&\"'!\"&H4464)),\"\",IFERROR(VLOOKUP(TEXT(INDIRECT(\"'\"&F4464&\"'!\"&H4464),\"0\"),Notes!$B$5:$C$100,2,FALSE),\"\"))","v":""},"2d","$M$113","$N$113"]
[19856,{"$f":"Menu!$F$29","v":"X"},{"$f":"Menu!$J$29","v":2020},{"$f":"IF(ISBLANK(INDIRECT(\"'\"&F4465&\"'!\"&G4465)),\"\",INDIRECT(\"'\"&F4465&\"'!\"&G4465))","v":""},{"$f":"IF(ISBLANK(INDIRECT(\"'\"&F4465&\"'!\"&H4465)),\"\",IFERROR(VLOOKUP(TEXT(INDIRECT(\"'\"&F4465&\"'!\"&H4465),\"0\"),Notes!$B$5:$C$100,2,FALSE),\"\"))","v":""},"2d","$Q$113","$R$113"]
[19857,{"$f":"Menu!$F$29","v":"X"},{"$f":"Menu!$J$29","v":2020},{"$f":"IF(ISBLANK(INDIRECT(\"'\"&F4466&\"'!\"&G4466)),\"\",INDIRECT(\"'\"&F4466&\"'!\"&G4466))","v":""},{"$f":"IF(ISBLANK(INDIRECT(\"'\"&F4466&\"'!\"&H4466)),\"\",IFERROR(VLOOKUP(TEXT(INDIRECT(\"'\"&F4466&\"'!\"&H4466),\"0\"),Notes!$B$5:$C$100,2,FALSE),\"\"))","v":""},"2d","$U$113","$V$113"]
[19858,{"$f":"Menu!$F$29","v":"X"},{"$f":"Menu!$J$29","v":2020},{"$f":"IF(ISBLANK(INDIRECT(\"'\"&F4467&\"'!\"&G4467)),\"\",INDIRECT(\"'\"&F4467&\"'!\"&G4467))","v":""},{"$f":"IF(ISBLANK(INDIRECT(\"'\"&F4467&\"'!\"&H4467)),\"\",IFERROR(VLOOKUP(TEXT(INDIRECT(\"'\"&F4467&\"'!\"&H4467),\"0\"),Notes!$B$5:$C$100,2,FALSE),\"\"))","v":""},"2d","$S$113","$T$113"]
[19859,{"$f":"Menu!$F$29","v":"X"},{"$f":"Menu!$J$29","v":2020},{"$f":"IF(ISBLANK(INDIRECT(\"'\"&F4468&\"'!\"&G4468)),\"\",INDIRECT(\"'\"&F4468&\"'!\"&G4468))","v":""},{"$f":"IF(ISBLANK(INDIRECT(\"'\"&F4468&\"'!\"&H4468)),\"\",IFERROR(VLOOKUP(TEXT(INDIRECT(\"'\"&F4468&\"'!\"&H4468),\"0\"),Notes!$B$5:$C$100,2,FALSE),\"\"))","v":""},"2a","$O$113","$P$113"]
[19860,{"$f":"Menu!$F$29","v":"X"},{"$f":"Menu!$J$29","v":2020},{"$f":"IF(ISBLANK(INDIRECT(\"'\"&F4469&\"'!\"&G4469)),\"\",INDIRECT(\"'\"&F4469&\"'!\"&G4469))","v":""},{"$f":"IF(ISBLANK(INDIRECT(\"'\"&F4469&\"'!\"&H4469)),\"\",IFERROR(VLOOKUP(TEXT(INDIRECT(\"'\"&F4469&\"'!\"&H4469),\"0\"),Notes!$B$5:$C$100,2,FALSE),\"\"))","v":""},"2a","$M$113","$N$113"]
[19861,{"$f":"Menu!$F$29","v":"X"},{"$f":"Menu!$J$29","v":2020},{"$f":"IF(ISBLANK(INDIRECT(\"'\"&F4470&\"'!\"&G4470)),\"\",INDIRECT(\"'\"&F4470&\"'!\"&G4470))","v":""},{"$f":"IF(ISBLANK(INDIRECT(\"'\"&F4470&\"'!\"&H4470)),\"\",IFERROR(VLOOKUP(TEXT(INDIRECT(\"'\"&F4470&\"'!\"&H4470),\"0\"),Notes!$B$5:$C$100,2,FALSE),\"\"))","v":""},"2a","$K$113","$L$113"]
[19862,{"$f":"Menu!$F$29","v":"X"},{"$f":"Menu!$J$29","v":2020},{"$f":"IF(ISBLANK(INDIRECT(\"'\"&F4471&\"'!\"&G4471)),\"\",INDIRECT(\"'\"&F4471&\"'!\"&G4471))","v":""},{"$f":"IF(ISBLANK(INDIRECT(\"'\"&F4471&\"'!\"&H4471)),\"\",IFERROR(VLOOKUP(TEXT(INDIRECT(\"'\"&F4471&\"'!\"&H4471),\"0\"),Notes!$B$5:$C$100,2,FALSE),\"\"))","v":""},"2a","$E$113","$F$113"]
[19863,{"$f":"Menu!$F$29","v":"X"},{"$f":"Menu!$J$29","v":2020},{"$f":"IF(ISBLANK(INDIRECT(\"'\"&F4472&\"'!\"&G4472)),\"\",INDIRECT(\"'\"&F4472&\"'!\"&G4472))","v":""},{"$f":"IF(ISBLANK(INDIRECT(\"'\"&F4472&\"'!\"&H4472)),\"\",IFERROR(VLOOKUP(TEXT(INDIRECT(\"'\"&F4472&\"'!\"&H4472),\"0\"),Notes!$B$5:$C$100,2,FALSE),\"\"))","v":""},"2b","$K$114","$L$114"]
[19864,{"$f":"Menu!$F$29","v":"X"},{"$f":"Menu!$J$29","v":2020},{"$f":"IF(ISBLANK(INDIRECT(\"'\"&F4473&\"'!\"&G4473)),\"\",INDIRECT(\"'\"&F4473&\"'!\"&G4473))","v":""},{"$f":"IF(ISBLANK(INDIRECT(\"'\"&F4473&\"'!\"&H4473)),\"\",IFERROR(VLOOKUP(TEXT(INDIRECT(\"'\"&F4473&\"'!\"&H4473),\"0\"),Notes!$B$5:$C$100,2,FALSE),\"\"))","v":""},"2b","$O$114","$P$114"]
[19865,{"$f":"Menu!$F$29","v":"X"},{"$f":"Menu!$J$29","v":2020},{"$f":"IF(ISBLANK(INDIRECT(\"'\"&F4474&\"'!\"&G4474)),\"\",INDIRECT(\"'\"&F4474&\"'!\"&G4474))","v":""},{"$f":"IF(ISBLANK(INDIRECT(\"'\"&F4474&\"'!\"&H4474)),\"\",IFERROR(VLOOKUP(TEXT(INDIRECT(\"'\"&F4474&\"'!\"&H4474),\"0\"),Notes!$B$5:$C$100,2,FALSE),\"\"))","v":""},"2b","$M$114","$N$114"]
[19866,{"$f":"Menu!$F$29","v":"X"},{"$f":"Menu!$J$29","v":2020},{"$f":"IF(ISBLANK(INDIRECT(\"'\"&F4475&\"'!\"&G4475)),\"\",INDIRECT(\"'\"&F4475&\"'!\"&G4475))","v":""},{"$f":"IF(ISBLANK(INDIRECT(\"'\"&F4475&\"'!\"&H4475)),\"\",IFERROR(VLOOKUP(TEXT(INDIRECT(\"'\"&F4475&\"'!\"&H4475),\"0\"),Notes!$B$5:$C$100,2,FALSE),\"\"))","v":""},"2b","$Q$114","$R$114"]
[19867,{"$f":"Menu!$F$29","v":"X"},{"$f":"Menu!$J$29","v":2020},{"$f":"IF(ISBLANK(INDIRECT(\"'\"&F4476&\"'!\"&G4476)),\"\",INDIRECT(\"'\"&F4476&\"'!\"&G4476))","v":""},{"$f":"IF(ISBLANK(INDIRECT(\"'\"&F4476&\"'!\"&H4476)),\"\",IFERROR(VLOOKUP(TEXT(INDIRECT(\"'\"&F4476&\"'!\"&H4476),\"0\"),Notes!$B$5:$C$100,2,FALSE),\"\"))","v":""},"2b","$U$114","$V$114"]
[19868,{"$f":"Menu!$F$29","v":"X"},{"$f":"Menu!$J$29","v":2020},{"$f":"IF(ISBLANK(INDIRECT(\"'\"&F4477&\"'!\"&G4477)),\"\",INDIRECT(\"'\"&F4477&\"'!\"&G4477))","v":""},{"$f":"IF(ISBLANK(INDIRECT(\"'\"&F4477&\"'!\"&H4477)),\"\",IFERROR(VLOOKUP(TEXT(INDIRECT(\"'\"&F4477&\"'!\"&H4477),\"0\"),Notes!$B$5:$C$100,2,FALSE),\"\"))","v":""},"2b","$S$114","$T$114"]
[19869,{"$f":"Menu!$F$29","v":"X"},{"$f":"Menu!$J$29","v":2020},{"$f":"IF(ISBLANK(INDIRECT(\"'\"&F4478&\"'!\"&G4478)),\"\",INDIRECT(\"'\"&F4478&\"'!\"&G4478))","v":""},{"$f":"IF(ISBLANK(INDIRECT(\"'\"&F4478&\"'!\"&H4478)),\"\",IFERROR(VLOOKUP(TEXT(INDIRECT(\"'\"&F4478&\"'!\"&H4478),\"0\"),Notes!$B$5:$C$100,2,FALSE),\"\"))","v":""},"2a","$I$114","$J$114"]
[19870,{"$f":"Menu!$F$29","v":"X"},{"$f":"Menu!$J$29","v":2020},{"$f":"IF(ISBLANK(INDIRECT(\"'\"&F4479&\"'!\"&G4479)),\"\",INDIRECT(\"'\"&F4479&\"'!\"&G4479))","v":""},{"$f":"IF(ISBLANK(INDIRECT(\"'\"&F4479&\"'!\"&H4479)),\"\",IFERROR(VLOOKUP(TEXT(INDIRECT(\"'\"&F4479&\"'!\"&H4479),\"0\"),Notes!$B$5:$C$100,2,FALSE),\"\"))","v":""},"2c","$E$114","$F$114"]
[19871,{"$f":"Menu!$F$29","v":"X"},{"$f":"Menu!$J$29","v":2020},{"$f":"IF(ISBLANK(INDIRECT(\"'\"&F4480&\"'!\"&G4480)),\"\",INDIRECT(\"'\"&F4480&\"'!\"&G4480))","v":""},{"$f":"IF(ISBLANK(INDIRECT(\"'\"&F4480&\"'!\"&H4480)),\"\",IFERROR(VLOOKUP(TEXT(INDIRECT(\"'\"&F4480&\"'!\"&H4480),\"0\"),Notes!$B$5:$C$100,2,FALSE),\"\"))","v":""},"2c","$I$114","$J$114"]
[19872,{"$f":"Menu!$F$29","v":"X"},{"$f":"Menu!$J$29","v":2020},{"$f":"IF(ISBLANK(INDIRECT(\"'\"&F4481&\"'!\"&G4481)),\"\",INDIRECT(\"'\"&F4481&\"'!\"&G4481))","v":""},{"$f":"IF(ISBLANK(INDIRECT(\"'\"&F4481&\"'!\"&H4481)),\"\",IFERROR(VLOOKUP(TEXT(INDIRECT(\"'\"&F4481&\"'!\"&H4481),\"0\"),Notes!$B$5:$C$100,2,FALSE),\"\"))","v":""},"2c","$G$114","$H$114"]
[19873,{"$f":"Menu!$F$29","v":"X"},{"$f":"Menu!$J$29","v":2020},{"$f":"IF(ISBLANK(INDIRECT(\"'\"&F4482&\"'!\"&G4482)),\"\",INDIRECT(\"'\"&F4482&\"'!\"&G4482))","v":""},{"$f":"IF(ISBLANK(INDIRECT(\"'\"&F4482&\"'!\"&H4482)),\"\",IFERROR(VLOOKUP(TEXT(INDIRECT(\"'\"&F4482&\"'!\"&H4482),\"0\"),Notes!$B$5:$C$100,2,FALSE),\"\"))","v":""},"2c","$K$114",{"$f":"IF(LEN(TRIM(MID(G4482,4,10)))-LEN(SUBSTITUTE(TRIM(MID(G4482,4,10)),\"$\",\"\"))=0,\"$\"&CHAR(CODE(MID(G4482,2,1))+1)&\"$\"&TRIM(MID(G4482,4,10)),\"$\"&MID(G4482,2,1)&CHAR(CODE(MID(G4482,3,1))+1)&\"$\"&TRIM(MID(G4482,5,11)))","v":"$L$114"}]
[19874,{"$f":"Menu!$F$29","v":"X"},{"$f":"Menu!$J$29","v":2020},{"$f":"IF(ISBLANK(INDIRECT(\"'\"&F4483&\"'!\"&G4483)),\"\",INDIRECT(\"'\"&F4483&\"'!\"&G4483))","v":""},{"$f":"IF(ISBLANK(INDIRECT(\"'\"&F4483&\"'!\"&H4483)),\"\",IFERROR(VLOOKUP(TEXT(INDIRECT(\"'\"&F4483&\"'!\"&H4483),\"0\"),Notes!$B$5:$C$100,2,FALSE),\"\"))","v":""},"2c","$O$114","$P$114"]
[19875,{"$f":"Menu!$F$29","v":"X"},{"$f":"Menu!$J$29","v":2020},{"$f":"IF(ISBLANK(INDIRECT(\"'\"&F4484&\"'!\"&G4484)),\"\",INDIRECT(\"'\"&F4484&\"'!\"&G4484))","v":""},{"$f":"IF(ISBLANK(INDIRECT(\"'\"&F4484&\"'!\"&H4484)),\"\",IFERROR(VLOOKUP(TEXT(INDIRECT(\"'\"&F4484&\"'!\"&H4484),\"0\"),Notes!$B$5:$C$100,2,FALSE),\"\"))","v":""},"2c","$M$114","$N$114"]
[19876,{"$f":"Menu!$F$29","v":"X"},{"$f":"Menu!$J$29","v":2020},{"$f":"IF(ISBLANK(INDIRECT(\"'\"&F4485&\"'!\"&G4485)),\"\",INDIRECT(\"'\"&F4485&\"'!\"&G4485))","v":""},{"$f":"IF(ISBLANK(INDIRECT(\"'\"&F4485&\"'!\"&H4485)),\"\",IFERROR(VLOOKUP(TEXT(INDIRECT(\"'\"&F4485&\"'!\"&H4485),\"0\"),Notes!$B$5:$C$100,2,FALSE),\"\"))","v":""},"2c","$Q$114","$R$114"]
[19877,{"$f":"Menu!$F$29","v":"X"},{"$f":"Menu!$J$29","v":2020},{"$f":"IF(ISBLANK(INDIRECT(\"'\"&F4486&\"'!\"&G4486)),\"\",INDIRECT(\"'\"&F4486&\"'!\"&G4486))","v":""},{"$f":"IF(ISBLANK(INDIRECT(\"'\"&F4486&\"'!\"&H4486)),\"\",IFERROR(VLOOKUP(TEXT(INDIRECT(\"'\"&F4486&\"'!\"&H4486),\"0\"),Notes!$B$5:$C$100,2,FALSE),\"\"))","v":""},"2c","$U$114","$V$114"]
[19878,{"$f":"Menu!$F$29","v":"X"},{"$f":"Menu!$J$29","v":2020},{"$f":"IF(ISBLANK(INDIRECT(\"'\"&F4487&\"'!\"&G4487)),\"\",INDIRECT(\"'\"&F4487&\"'!\"&G4487))","v":""},{"$f":"IF(ISBLANK(INDIRECT(\"'\"&F4487&\"'!\"&H4487)),\"\",IFERROR(VLOOKUP(TEXT(INDIRECT(\"'\"&F4487&\"'!\"&H4487),\"0\"),Notes!$B$5:$C$100,2,FALSE),\"\"))","v":""},"2c","$S$114","$T$114"]
[19879,{"$f":"Menu!$F$29","v":"X"},{"$f":"Menu!$J$29","v":2020},{"$f":"IF(ISBLANK(INDIRECT(\"'\"&F4488&\"'!\"&G4488)),\"\",INDIRECT(\"'\"&F4488&\"'!\"&G4488))","v":""},{"$f":"IF(ISBLANK(INDIRECT(\"'\"&F4488&\"'!\"&H4488)),\"\",IFERROR(VLOOKUP(TEXT(INDIRECT(\"'\"&F4488&\"'!\"&H4488),\"0\"),Notes!$B$5:$C$100,2,FALSE),\"\"))","v":""},"2c","$W$114","$X$114"]
[19880,{"$f":"Menu!$F$29","v":"X"},{"$f":"Menu!$J$29","v":2020},{"$f":"IF(ISBLANK(INDIRECT(\"'\"&F4489&\"'!\"&G4489)),\"\",INDIRECT(\"'\"&F4489&\"'!\"&G4489))","v":""},{"$f":"IF(ISBLANK(INDIRECT(\"'\"&F4489&\"'!\"&H4489)),\"\",IFERROR(VLOOKUP(TEXT(INDIRECT(\"'\"&F4489&\"'!\"&H4489),\"0\"),Notes!$B$5:$C$100,2,FALSE),\"\"))","v":""},"2c","$AA$114","$AB$114"]
[19881,{"$f":"Menu!$F$29","v":"X"},{"$f":"Menu!$J$29","v":2020},{"$f":"IF(ISBLANK(INDIRECT(\"'\"&F4490&\"'!\"&G4490)),\"\",INDIRECT(\"'\"&F4490&\"'!\"&G4490))","v":""},{"$f":"IF(ISBLANK(INDIRECT(\"'\"&F4490&\"'!\"&H4490)),\"\",IFERROR(VLOOKUP(TEXT(INDIRECT(\"'\"&F4490&\"'!\"&H4490),\"0\"),Notes!$B$5:$C$100,2,FALSE),\"\"))","v":""},"2c","$Y$114","$Z$114"]
[19882,{"$f":"Menu!$F$29","v":"X"},{"$f":"Menu!$J$29","v":2020},{"$f":"IF(ISBLANK(INDIRECT(\"'\"&F4491&\"'!\"&G4491)),\"\",INDIRECT(\"'\"&F4491&\"'!\"&G4491))","v":""},{"$f":"IF(ISBLANK(INDIRECT(\"'\"&F4491&\"'!\"&H4491)),\"\",IFERROR(VLOOKUP(TEXT(INDIRECT(\"'\"&F4491&\"'!\"&H4491),\"0\"),Notes!$B$5:$C$100,2,FALSE),\"\"))","v":""},"2e","$BG$115","$BH$115"]
[19883,{"$f":"Menu!$F$29","v":"X"},{"$f":"Menu!$J$29","v":2020},{"$f":"IF(ISBLANK(INDIRECT(\"'\"&F4492&\"'!\"&G4492)),\"\",INDIRECT(\"'\"&F4492&\"'!\"&G4492))","v":""},{"$f":"IF(ISBLANK(INDIRECT(\"'\"&F4492&\"'!\"&H4492)),\"\",IFERROR(VLOOKUP(TEXT(INDIRECT(\"'\"&F4492&\"'!\"&H4492),\"0\"),Notes!$B$5:$C$100,2,FALSE),\"\"))","v":""},"2e","$BK$115","$BL$115"]
[19884,{"$f":"Menu!$F$29","v":"X"},{"$f":"Menu!$J$29","v":2020},{"$f":"IF(ISBLANK(INDIRECT(\"'\"&F4493&\"'!\"&G4493)),\"\",INDIRECT(\"'\"&F4493&\"'!\"&G4493))","v":""},{"$f":"IF(ISBLANK(INDIRECT(\"'\"&F4493&\"'!\"&H4493)),\"\",IFERROR(VLOOKUP(TEXT(INDIRECT(\"'\"&F4493&\"'!\"&H4493),\"0\"),Notes!$B$5:$C$100,2,FALSE),\"\"))","v":""},"2e","$BI$115","$BJ$115"]
[19885,{"$f":"Menu!$F$29","v":"X"},{"$f":"Menu!$J$29","v":2020},{"$f":"IF(ISBLANK(INDIRECT(\"'\"&F4494&\"'!\"&G4494)),\"\",INDIRECT(\"'\"&F4494&\"'!\"&G4494))","v":""},{"$f":"IF(ISBLANK(INDIRECT(\"'\"&F4494&\"'!\"&H4494)),\"\",IFERROR(VLOOKUP(TEXT(INDIRECT(\"'\"&F4494&\"'!\"&H4494),\"0\"),Notes!$B$5:$C$100,2,FALSE),\"\"))","v":""},"2e","$E$115","$F$115"]
[19886,{"$f":"Menu!$F$29","v":"X"},{"$f":"Menu!$J$29","v":2020},{"$f":"IF(ISBLANK(INDIRECT(\"'\"&F4495&\"'!\"&G4495)),\"\",INDIRECT(\"'\"&F4495&\"'!\"&G4495))","v":""},{"$f":"IF(ISBLANK(INDIRECT(\"'\"&F4495&\"'!\"&H4495)),\"\",IFERROR(VLOOKUP(TEXT(INDIRECT(\"'\"&F4495&\"'!\"&H4495),\"0\"),Notes!$B$5:$C$100,2,FALSE),\"\"))","v":""},"2e","$I$115","$J$115"]
[19887,{"$f":"Menu!$F$29","v":"X"},{"$f":"Menu!$J$29","v":2020},{"$f":"IF(ISBLANK(INDIRECT(\"'\"&F4496&\"'!\"&G4496)),\"\",INDIRECT(\"'\"&F4496&\"'!\"&G4496))","v":""},{"$f":"IF(ISBLANK(INDIRECT(\"'\"&F4496&\"'!\"&H4496)),\"\",IFERROR(VLOOKUP(TEXT(INDIRECT(\"'\"&F4496&\"'!\"&H4496),\"0\"),Notes!$B$5:$C$100,2,FALSE),\"\"))","v":""},"2e","$G$115","$H$115"]
[19888,{"$f":"Menu!$F$29","v":"X"},{"$f":"Menu!$J$29","v":2020},{"$f":"IF(ISBLANK(INDIRECT(\"'\"&F4497&\"'!\"&G4497)),\"\",INDIRECT(\"'\"&F4497&\"'!\"&G4497))","v":""},{"$f":"IF(ISBLANK(INDIRECT(\"'\"&F4497&\"'!\"&H4497)),\"\",IFERROR(VLOOKUP(TEXT(INDIRECT(\"'\"&F4497&\"'!\"&H4497),\"0\"),Notes!$B$5:$C$100,2,FALSE),\"\"))","v":""},"2e","$K$115","$L$115"]
[19889,{"$f":"Menu!$F$29","v":"X"},{"$f":"Menu!$J$29","v":2020},{"$f":"IF(ISBLANK(INDIRECT(\"'\"&F4498&\"'!\"&G4498)),\"\",INDIRECT(\"'\"&F4498&\"'!\"&G4498))","v":""},{"$f":"IF(ISBLANK(INDIRECT(\"'\"&F4498&\"'!\"&H4498)),\"\",IFERROR(VLOOKUP(TEXT(INDIRECT(\"'\"&F4498&\"'!\"&H4498),\"0\"),Notes!$B$5:$C$100,2,FALSE),\"\"))","v":""},"2e","$O$115","$P$115"]
[19890,{"$f":"Menu!$F$29","v":"X"},{"$f":"Menu!$J$29","v":2020},{"$f":"IF(ISBLANK(INDIRECT(\"'\"&F4499&\"'!\"&G4499)),\"\",INDIRECT(\"'\"&F4499&\"'!\"&G4499))","v":""},{"$f":"IF(ISBLANK(INDIRECT(\"'\"&F4499&\"'!\"&H4499)),\"\",IFERROR(VLOOKUP(TEXT(INDIRECT(\"'\"&F4499&\"'!\"&H4499),\"0\"),Notes!$B$5:$C$100,2,FALSE),\"\"))","v":""},"2e","$M$115","$N$115"]
[19891,{"$f":"Menu!$F$29","v":"X"},{"$f":"Menu!$J$29","v":2020},{"$f":"IF(ISBLANK(INDIRECT(\"'\"&F4500&\"'!\"&G4500)),\"\",INDIRECT(\"'\"&F4500&\"'!\"&G4500))","v":""},{"$f":"IF(ISBLANK(INDIRECT(\"'\"&F4500&\"'!\"&H4500)),\"\",IFERROR(VLOOKUP(TEXT(INDIRECT(\"'\"&F4500&\"'!\"&H4500),\"0\"),Notes!$B$5:$C$100,2,FALSE),\"\"))","v":""},"2e","$Q$115","$R$115"]
[19892,{"$f":"Menu!$F$29","v":"X"},{"$f":"Menu!$J$29","v":2020},{"$f":"IF(ISBLANK(INDIRECT(\"'\"&F4501&\"'!\"&G4501)),\"\",INDIRECT(\"'\"&F4501&\"'!\"&G4501))","v":""},{"$f":"IF(ISBLANK(INDIRECT(\"'\"&F4501&\"'!\"&H4501)),\"\",IFERROR(VLOOKUP(TEXT(INDIRECT(\"'\"&F4501&\"'!\"&H4501),\"0\"),Notes!$B$5:$C$100,2,FALSE),\"\"))","v":""},"2e","$U$115","$V$115"]
[19893,{"$f":"Menu!$F$29","v":"X"},{"$f":"Menu!$J$29","v":2020},{"$f":"IF(ISBLANK(INDIRECT(\"'\"&F4502&\"'!\"&G4502)),\"\",INDIRECT(\"'\"&F4502&\"'!\"&G4502))","v":""},{"$f":"IF(ISBLANK(INDIRECT(\"'\"&F4502&\"'!\"&H4502)),\"\",IFERROR(VLOOKUP(TEXT(INDIRECT(\"'\"&F4502&\"'!\"&H4502),\"0\"),Notes!$B$5:$C$100,2,FALSE),\"\"))","v":""},"2e","$S$115","$T$115"]
[19894,{"$f":"Menu!$F$29","v":"X"},{"$f":"Menu!$J$29","v":2020},{"$f":"IF(ISBLANK(INDIRECT(\"'\"&F4503&\"'!\"&G4503)),\"\",INDIRECT(\"'\"&F4503&\"'!\"&G4503))","v":""},{"$f":"IF(ISBLANK(INDIRECT(\"'\"&F4503&\"'!\"&H4503)),\"\",IFERROR(VLOOKUP(TEXT(INDIRECT(\"'\"&F4503&\"'!\"&H4503),\"0\"),Notes!$B$5:$C$100,2,FALSE),\"\"))","v":""},"2e","$W$115","$X$115"]
[19895,{"$f":"Menu!$F$29","v":"X"},{"$f":"Menu!$J$29","v":2020},{"$f":"IF(ISBLANK(INDIRECT(\"'\"&F4504&\"'!\"&G4504)),\"\",INDIRECT(\"'\"&F4504&\"'!\"&G4504))","v":""},{"$f":"IF(ISBLANK(INDIRECT(\"'\"&F4504&\"'!\"&H4504)),\"\",IFERROR(VLOOKUP(TEXT(INDIRECT(\"'\"&F4504&\"'!\"&H4504),\"0\"),Notes!$B$5:$C$100,2,FALSE),\"\"))","v":""},"2e","$AA$115","$AB$115"]
[19896,{"$f":"Menu!$F$29","v":"X"},{"$f":"Menu!$J$29","v":2020},{"$f":"IF(ISBLANK(INDIRECT(\"'\"&F4505&\"'!\"&G4505)),\"\",INDIRECT(\"'\"&F4505&\"'!\"&G4505))","v":""},{"$f":"IF(ISBLANK(INDIRECT(\"'\"&F4505&\"'!\"&H4505)),\"\",IFERROR(VLOOKUP(TEXT(INDIRECT(\"'\"&F4505&\"'!\"&H4505),\"0\"),Notes!$B$5:$C$100,2,FALSE),\"\"))","v":""},"2e","$Y$115","$Z$115"]
[19897,{"$f":"Menu!$F$29","v":"X"},{"$f":"Menu!$J$29","v":2020},{"$f":"IF(ISBLANK(INDIRECT(\"'\"&F4506&\"'!\"&G4506)),\"\",INDIRECT(\"'\"&F4506&\"'!\"&G4506))","v":""},{"$f":"IF(ISBLANK(INDIRECT(\"'\"&F4506&\"'!\"&H4506)),\"\",IFERROR(VLOOKUP(TEXT(INDIRECT(\"'\"&F4506&\"'!\"&H4506),\"0\"),Notes!$B$5:$C$100,2,FALSE),\"\"))","v":""},"2e","$AC$115","$AD$115"]
[19898,{"$f":"Menu!$F$29","v":"X"},{"$f":"Menu!$J$29","v":2020},{"$f":"IF(ISBLANK(INDIRECT(\"'\"&F4507&\"'!\"&G4507)),\"\",INDIRECT(\"'\"&F4507&\"'!\"&G4507))","v":""},{"$f":"IF(ISBLANK(INDIRECT(\"'\"&F4507&\"'!\"&H4507)),\"\",IFERROR(VLOOKUP(TEXT(INDIRECT(\"'\"&F4507&\"'!\"&H4507),\"0\"),Notes!$B$5:$C$100,2,FALSE),\"\"))","v":""},"2e","$AG$115","$AH$115"]
[19899,{"$f":"Menu!$F$29","v":"X"},{"$f":"Menu!$J$29","v":2020},{"$f":"IF(ISBLANK(INDIRECT(\"'\"&F4508&\"'!\"&G4508)),\"\",INDIRECT(\"'\"&F4508&\"'!\"&G4508))","v":""},{"$f":"IF(ISBLANK(INDIRECT(\"'\"&F4508&\"'!\"&H4508)),\"\",IFERROR(VLOOKUP(TEXT(INDIRECT(\"'\"&F4508&\"'!\"&H4508),\"0\"),Notes!$B$5:$C$100,2,FALSE),\"\"))","v":""},"2e","$AE$115","$AF$115"]
[19900,{"$f":"Menu!$F$29","v":"X"},{"$f":"Menu!$J$29","v":2020},{"$f":"IF(ISBLANK(INDIRECT(\"'\"&F4509&\"'!\"&G4509)),\"\",INDIRECT(\"'\"&F4509&\"'!\"&G4509))","v":""},{"$f":"IF(ISBLANK(INDIRECT(\"'\"&F4509&\"'!\"&H4509)),\"\",IFERROR(VLOOKUP(TEXT(INDIRECT(\"'\"&F4509&\"'!\"&H4509),\"0\"),Notes!$B$5:$C$100,2,FALSE),\"\"))","v":""},"2e","$AI$115","$AJ$115"]
[19901,{"$f":"Menu!$F$29","v":"X"},{"$f":"Menu!$J$29","v":2020},{"$f":"IF(ISBLANK(INDIRECT(\"'\"&F4510&\"'!\"&G4510)),\"\",INDIRECT(\"'\"&F4510&\"'!\"&G4510))","v":""},{"$f":"IF(ISBLANK(INDIRECT(\"'\"&F4510&\"'!\"&H4510)),\"\",IFERROR(VLOOKUP(TEXT(INDIRECT(\"'\"&F4510&\"'!\"&H4510),\"0\"),Notes!$B$5:$C$100,2,FALSE),\"\"))","v":""},"2e","$AM$115","$AN$115"]
[19902,{"$f":"Menu!$F$29","v":"X"},{"$f":"Menu!$J$29","v":2020},{"$f":"IF(ISBLANK(INDIRECT(\"'\"&F4511&\"'!\"&G4511)),\"\",INDIRECT(\"'\"&F4511&\"'!\"&G4511))","v":""},{"$f":"IF(ISBLANK(INDIRECT(\"'\"&F4511&\"'!\"&H4511)),\"\",IFERROR(VLOOKUP(TEXT(INDIRECT(\"'\"&F4511&\"'!\"&H4511),\"0\"),Notes!$B$5:$C$100,2,FALSE),\"\"))","v":""},"2e","$AK$115","$AL$115"]
[19903,{"$f":"Menu!$F$29","v":"X"},{"$f":"Menu!$J$29","v":2020},{"$f":"IF(ISBLANK(INDIRECT(\"'\"&F4512&\"'!\"&G4512)),\"\",INDIRECT(\"'\"&F4512&\"'!\"&G4512))","v":""},{"$f":"IF(ISBLANK(INDIRECT(\"'\"&F4512&\"'!\"&H4512)),\"\",IFERROR(VLOOKUP(TEXT(INDIRECT(\"'\"&F4512&\"'!\"&H4512),\"0\"),Notes!$B$5:$C$100,2,FALSE),\"\"))","v":""},"2e","$AO$115","$AP$115"]
[19904,{"$f":"Menu!$F$29","v":"X"},{"$f":"Menu!$J$29","v":2020},{"$f":"IF(ISBLANK(INDIRECT(\"'\"&F4513&\"'!\"&G4513)),\"\",INDIRECT(\"'\"&F4513&\"'!\"&G4513))","v":""},{"$f":"IF(ISBLANK(INDIRECT(\"'\"&F4513&\"'!\"&H4513)),\"\",IFERROR(VLOOKUP(TEXT(INDIRECT(\"'\"&F4513&\"'!\"&H4513),\"0\"),Notes!$B$5:$C$100,2,FALSE),\"\"))","v":""},"2e","$AQ$115","$AR$115"]
[19905,{"$f":"Menu!$F$29","v":"X"},{"$f":"Menu!$J$29","v":2020},{"$f":"IF(ISBLANK(INDIRECT(\"'\"&F4514&\"'!\"&G4514)),\"\",INDIRECT(\"'\"&F4514&\"'!\"&G4514))","v":""},{"$f":"IF(ISBLANK(INDIRECT(\"'\"&F4514&\"'!\"&H4514)),\"\",IFERROR(VLOOKUP(TEXT(INDIRECT(\"'\"&F4514&\"'!\"&H4514),\"0\"),Notes!$B$5:$C$100,2,FALSE),\"\"))","v":""},"2e","$AS$115","$AT$115"]
[19906,{"$f":"Menu!$F$29","v":"X"},{"$f":"Menu!$J$29","v":2020},{"$f":"IF(ISBLANK(INDIRECT(\"'\"&F4515&\"'!\"&G4515)),\"\",INDIRECT(\"'\"&F4515&\"'!\"&G4515))","v":""},{"$f":"IF(ISBLANK(INDIRECT(\"'\"&F4515&\"'!\"&H4515)),\"\",IFERROR(VLOOKUP(TEXT(INDIRECT(\"'\"&F4515&\"'!\"&H4515),\"0\"),Notes!$B$5:$C$100,2,FALSE),\"\"))","v":""},"2e","$AU$115","$AV$115"]
[19907,{"$f":"Menu!$F$29","v":"X"},{"$f":"Menu!$J$29","v":2020},{"$f":"IF(ISBLANK(INDIRECT(\"'\"&F4516&\"'!\"&G4516)),\"\",INDIRECT(\"'\"&F4516&\"'!\"&G4516))","v":""},{"$f":"IF(ISBLANK(INDIRECT(\"'\"&F4516&\"'!\"&H4516)),\"\",IFERROR(VLOOKUP(TEXT(INDIRECT(\"'\"&F4516&\"'!\"&H4516),\"0\"),Notes!$B$5:$C$100,2,FALSE),\"\"))","v":""},"2e","$AY$115","$AZ$115"]
[19908,{"$f":"Menu!$F$29","v":"X"},{"$f":"Menu!$J$29","v":2020},{"$f":"IF(ISBLANK(INDIRECT(\"'\"&F4517&\"'!\"&G4517)),\"\",INDIRECT(\"'\"&F4517&\"'!\"&G4517))","v":""},{"$f":"IF(ISBLANK(INDIRECT(\"'\"&F4517&\"'!\"&H4517)),\"\",IFERROR(VLOOKUP(TEXT(INDIRECT(\"'\"&F4517&\"'!\"&H4517),\"0\"),Notes!$B$5:$C$100,2,FALSE),\"\"))","v":""},"2e","$AW$115","$AX$115"]
[19909,{"$f":"Menu!$F$29","v":"X"},{"$f":"Menu!$J$29","v":2020},{"$f":"IF(ISBLANK(INDIRECT(\"'\"&F4518&\"'!\"&G4518)),\"\",INDIRECT(\"'\"&F4518&\"'!\"&G4518))","v":""},{"$f":"IF(ISBLANK(INDIRECT(\"'\"&F4518&\"'!\"&H4518)),\"\",IFERROR(VLOOKUP(TEXT(INDIRECT(\"'\"&F4518&\"'!\"&H4518),\"0\"),Notes!$B$5:$C$100,2,FALSE),\"\"))","v":""},"2e","$BA$115","$BB$115"]
[19910,{"$f":"Menu!$F$29","v":"X"},{"$f":"Menu!$J$29","v":2020},{"$f":"IF(ISBLANK(INDIRECT(\"'\"&F4519&\"'!\"&G4519)),\"\",INDIRECT(\"'\"&F4519&\"'!\"&G4519))","v":""},{"$f":"IF(ISBLANK(INDIRECT(\"'\"&F4519&\"'!\"&H4519)),\"\",IFERROR(VLOOKUP(TEXT(INDIRECT(\"'\"&F4519&\"'!\"&H4519),\"0\"),Notes!$B$5:$C$100,2,FALSE),\"\"))","v":""},"2e","$BE$115","$BF$115"]
[19911,{"$f":"Menu!$F$29","v":"X"},{"$f":"Menu!$J$29","v":2020},{"$f":"IF(ISBLANK(INDIRECT(\"'\"&F4520&\"'!\"&G4520)),\"\",INDIRECT(\"'\"&F4520&\"'!\"&G4520))","v":""},{"$f":"IF(ISBLANK(INDIRECT(\"'\"&F4520&\"'!\"&H4520)),\"\",IFERROR(VLOOKUP(TEXT(INDIRECT(\"'\"&F4520&\"'!\"&H4520),\"0\"),Notes!$B$5:$C$100,2,FALSE),\"\"))","v":""},"2e","$BC$115","$BD$115"]
[19912,{"$f":"Menu!$F$29","v":"X"},{"$f":"Menu!$J$29","v":2020},{"$f":"IF(ISBLANK(INDIRECT(\"'\"&F4521&\"'!\"&G4521)),\"\",INDIRECT(\"'\"&F4521&\"'!\"&G4521))","v":""},{"$f":"IF(ISBLANK(INDIRECT(\"'\"&F4521&\"'!\"&H4521)),\"\",IFERROR(VLOOKUP(TEXT(INDIRECT(\"'\"&F4521&\"'!\"&H4521),\"0\"),Notes!$B$5:$C$100,2,FALSE),\"\"))","v":""},"2b","$E$114","$F$114"]
[19913,{"$f":"Menu!$F$29","v":"X"},{"$f":"Menu!$J$29","v":2020},{"$f":"IF(ISBLANK(INDIRECT(\"'\"&F4522&\"'!\"&G4522)),\"\",INDIRECT(\"'\"&F4522&\"'!\"&G4522))","v":""},{"$f":"IF(ISBLANK(INDIRECT(\"'\"&F4522&\"'!\"&H4522)),\"\",IFERROR(VLOOKUP(TEXT(INDIRECT(\"'\"&F4522&\"'!\"&H4522),\"0\"),Notes!$B$5:$C$100,2,FALSE),\"\"))","v":""},"2b","$I$114","$J$114"]
[19914,{"$f":"Menu!$F$29","v":"X"},{"$f":"Menu!$J$29","v":2020},{"$f":"IF(ISBLANK(INDIRECT(\"'\"&F4523&\"'!\"&G4523)),\"\",INDIRECT(\"'\"&F4523&\"'!\"&G4523))","v":""},{"$f":"IF(ISBLANK(INDIRECT(\"'\"&F4523&\"'!\"&H4523)),\"\",IFERROR(VLOOKUP(TEXT(INDIRECT(\"'\"&F4523&\"'!\"&H4523),\"0\"),Notes!$B$5:$C$100,2,FALSE),\"\"))","v":""},"2b","$G$114","$H$114"]
[19915,{"$f":"Menu!$F$29","v":"X"},{"$f":"Menu!$J$29","v":2020},{"$f":"IF(ISBLANK(INDIRECT(\"'\"&F4524&\"'!\"&G4524)),\"\",INDIRECT(\"'\"&F4524&\"'!\"&G4524))","v":""},{"$f":"IF(ISBLANK(INDIRECT(\"'\"&F4524&\"'!\"&H4524)),\"\",IFERROR(VLOOKUP(TEXT(INDIRECT(\"'\"&F4524&\"'!\"&H4524),\"0\"),Notes!$B$5:$C$100,2,FALSE),\"\"))","v":""},"2a","$G$114","$H$114"]
[19916,{"$f":"Menu!$F$29","v":"X"},{"$f":"Menu!$J$29","v":2020},{"$f":"IF(ISBLANK(INDIRECT(\"'\"&F4525&\"'!\"&G4525)),\"\",INDIRECT(\"'\"&F4525&\"'!\"&G4525))","v":""},{"$f":"IF(ISBLANK(INDIRECT(\"'\"&F4525&\"'!\"&H4525)),\"\",IFERROR(VLOOKUP(TEXT(INDIRECT(\"'\"&F4525&\"'!\"&H4525),\"0\"),Notes!$B$5:$C$100,2,FALSE),\"\"))","v":""},"2b","$W$114","$X$114"]
[19917,{"$f":"Menu!$F$29","v":"X"},{"$f":"Menu!$J$29","v":2020},{"$f":"IF(ISBLANK(INDIRECT(\"'\"&F4526&\"'!\"&G4526)),\"\",INDIRECT(\"'\"&F4526&\"'!\"&G4526))","v":""},{"$f":"IF(ISBLANK(INDIRECT(\"'\"&F4526&\"'!\"&H4526)),\"\",IFERROR(VLOOKUP(TEXT(INDIRECT(\"'\"&F4526&\"'!\"&H4526),\"0\"),Notes!$B$5:$C$100,2,FALSE),\"\"))","v":""},"2b","$AA$114","$AB$114"]
[19918,{"$f":"Menu!$F$29","v":"X"},{"$f":"Menu!$J$29","v":2020},{"$f":"IF(ISBLANK(INDIRECT(\"'\"&F4527&\"'!\"&G4527)),\"\",INDIRECT(\"'\"&F4527&\"'!\"&G4527))","v":""},{"$f":"IF(ISBLANK(INDIRECT(\"'\"&F4527&\"'!\"&H4527)),\"\",IFERROR(VLOOKUP(TEXT(INDIRECT(\"'\"&F4527&\"'!\"&H4527),\"0\"),Notes!$B$5:$C$100,2,FALSE),\"\"))","v":""},"2b","$Y$114","$Z$114"]
[19919,{"$f":"Menu!$F$29","v":"X"},{"$f":"Menu!$J$29","v":2020},{"$f":"IF(ISBLANK(INDIRECT(\"'\"&F4528&\"'!\"&G4528)),\"\",INDIRECT(\"'\"&F4528&\"'!\"&G4528))","v":""},{"$f":"IF(ISBLANK(INDIRECT(\"'\"&F4528&\"'!\"&H4528)),\"\",IFERROR(VLOOKUP(TEXT(INDIRECT(\"'\"&F4528&\"'!\"&H4528),\"0\"),Notes!$B$5:$C$100,2,FALSE),\"\"))","v":""},"2d","$AC$114","$AD$114"]
[19920,{"$f":"Menu!$F$29","v":"X"},{"$f":"Menu!$J$29","v":2020},{"$f":"IF(ISBLANK(INDIRECT(\"'\"&F4529&\"'!\"&G4529)),\"\",INDIRECT(\"'\"&F4529&\"'!\"&G4529))","v":""},{"$f":"IF(ISBLANK(INDIRECT(\"'\"&F4529&\"'!\"&H4529)),\"\",IFERROR(VLOOKUP(TEXT(INDIRECT(\"'\"&F4529&\"'!\"&H4529),\"0\"),Notes!$B$5:$C$100,2,FALSE),\"\"))","v":""},"2d","$AG$114","$AH$114"]
[19921,{"$f":"Menu!$F$29","v":"X"},{"$f":"Menu!$J$29","v":2020},{"$f":"IF(ISBLANK(INDIRECT(\"'\"&F4530&\"'!\"&G4530)),\"\",INDIRECT(\"'\"&F4530&\"'!\"&G4530))","v":""},{"$f":"IF(ISBLANK(INDIRECT(\"'\"&F4530&\"'!\"&H4530)),\"\",IFERROR(VLOOKUP(TEXT(INDIRECT(\"'\"&F4530&\"'!\"&H4530),\"0\"),Notes!$B$5:$C$100,2,FALSE),\"\"))","v":""},"2d","$AE$114","$AF$114"]
[19922,{"$f":"Menu!$F$29","v":"X"},{"$f":"Menu!$J$29","v":2020},{"$f":"IF(ISBLANK(INDIRECT(\"'\"&F4531&\"'!\"&G4531)),\"\",INDIRECT(\"'\"&F4531&\"'!\"&G4531))","v":""},{"$f":"IF(ISBLANK(INDIRECT(\"'\"&F4531&\"'!\"&H4531)),\"\",IFERROR(VLOOKUP(TEXT(INDIRECT(\"'\"&F4531&\"'!\"&H4531),\"0\"),Notes!$B$5:$C$100,2,FALSE),\"\"))","v":""},"2d","$W$114","$X$114"]
[19923,{"$f":"Menu!$F$29","v":"X"},{"$f":"Menu!$J$29","v":2020},{"$f":"IF(ISBLANK(INDIRECT(\"'\"&F4532&\"'!\"&G4532)),\"\",INDIRECT(\"'\"&F4532&\"'!\"&G4532))","v":""},{"$f":"IF(ISBLANK(INDIRECT(\"'\"&F4532&\"'!\"&H4532)),\"\",IFERROR(VLOOKUP(TEXT(INDIRECT(\"'\"&F4532&\"'!\"&H4532),\"0\"),Notes!$B$5:$C$100,2,FALSE),\"\"))","v":""},"2d","$AA$114","$AB$114"]
[19924,{"$f":"Menu!$F$29","v":"X"},{"$f":"Menu!$J$29","v":2020},{"$f":"IF(ISBLANK(INDIRECT(\"'\"&F4533&\"'!\"&G4533)),\"\",INDIRECT(\"'\"&F4533&\"'!\"&G4533))","v":""},{"$f":"IF(ISBLANK(INDIRECT(\"'\"&F4533&\"'!\"&H4533)),\"\",IFERROR(VLOOKUP(TEXT(INDIRECT(\"'\"&F4533&\"'!\"&H4533),\"0\"),Notes!$B$5:$C$100,2,FALSE),\"\"))","v":""},"2d","$Y$114","$Z$114"]
[19925,{"$f":"Menu!$F$29","v":"X"},{"$f":"Menu!$J$29","v":2020},{"$f":"IF(ISBLANK(INDIRECT(\"'\"&F4534&\"'!\"&G4534)),\"\",INDIRECT(\"'\"&F4534&\"'!\"&G4534))","v":""},{"$f":"IF(ISBLANK(INDIRECT(\"'\"&F4534&\"'!\"&H4534)),\"\",IFERROR(VLOOKUP(TEXT(INDIRECT(\"'\"&F4534&\"'!\"&H4534),\"0\"),Notes!$B$5:$C$100,2,FALSE),\"\"))","v":""},"2d","$E$114","$F$114"]
[19926,{"$f":"Menu!$F$29","v":"X"},{"$f":"Menu!$J$29","v":2020},{"$f":"IF(ISBLANK(INDIRECT(\"'\"&F4535&\"'!\"&G4535)),\"\",INDIRECT(\"'\"&F4535&\"'!\"&G4535))","v":""},{"$f":"IF(ISBLANK(INDIRECT(\"'\"&F4535&\"'!\"&H4535)),\"\",IFERROR(VLOOKUP(TEXT(INDIRECT(\"'\"&F4535&\"'!\"&H4535),\"0\"),Notes!$B$5:$C$100,2,FALSE),\"\"))","v":""},"2d","$I$114","$J$114"]
[19927,{"$f":"Menu!$F$29","v":"X"},{"$f":"Menu!$J$29","v":2020},{"$f":"IF(ISBLANK(INDIRECT(\"'\"&F4536&\"'!\"&G4536)),\"\",INDIRECT(\"'\"&F4536&\"'!\"&G4536))","v":""},{"$f":"IF(ISBLANK(INDIRECT(\"'\"&F4536&\"'!\"&H4536)),\"\",IFERROR(VLOOKUP(TEXT(INDIRECT(\"'\"&F4536&\"'!\"&H4536),\"0\"),Notes!$B$5:$C$100,2,FALSE),\"\"))","v":""},"2d","$G$114","$H$114"]
[19928,{"$f":"Menu!$F$29","v":"X"},{"$f":"Menu!$J$29","v":2020},{"$f":"IF(ISBLANK(INDIRECT(\"'\"&F4537&\"'!\"&G4537)),\"\",INDIRECT(\"'\"&F4537&\"'!\"&G4537))","v":""},{"$f":"IF(ISBLANK(INDIRECT(\"'\"&F4537&\"'!\"&H4537)),\"\",IFERROR(VLOOKUP(TEXT(INDIRECT(\"'\"&F4537&\"'!\"&H4537),\"0\"),Notes!$B$5:$C$100,2,FALSE),\"\"))","v":""},"2a","$U$114","$V$114"]
[19929,{"$f":"Menu!$F$29","v":"X"},{"$f":"Menu!$J$29","v":2020},{"$f":"IF(ISBLANK(INDIRECT(\"'\"&F4538&\"'!\"&G4538)),\"\",INDIRECT(\"'\"&F4538&\"'!\"&G4538))","v":""},{"$f":"IF(ISBLANK(INDIRECT(\"'\"&F4538&\"'!\"&H4538)),\"\",IFERROR(VLOOKUP(TEXT(INDIRECT(\"'\"&F4538&\"'!\"&H4538),\"0\"),Notes!$B$5:$C$100,2,FALSE),\"\"))","v":""},"2a","$S$114","$T$114"]
[19930,{"$f":"Menu!$F$29","v":"X"},{"$f":"Menu!$J$29","v":2020},{"$f":"IF(ISBLANK(INDIRECT(\"'\"&F4539&\"'!\"&G4539)),\"\",INDIRECT(\"'\"&F4539&\"'!\"&G4539))","v":""},{"$f":"IF(ISBLANK(INDIRECT(\"'\"&F4539&\"'!\"&H4539)),\"\",IFERROR(VLOOKUP(TEXT(INDIRECT(\"'\"&F4539&\"'!\"&H4539),\"0\"),Notes!$B$5:$C$100,2,FALSE),\"\"))","v":""},"2a","$Q$114","$R$114"]
[19931,{"$f":"Menu!$F$29","v":"X"},{"$f":"Menu!$J$29","v":2020},{"$f":"IF(ISBLANK(INDIRECT(\"'\"&F4540&\"'!\"&G4540)),\"\",INDIRECT(\"'\"&F4540&\"'!\"&G4540))","v":""},{"$f":"IF(ISBLANK(INDIRECT(\"'\"&F4540&\"'!\"&H4540)),\"\",IFERROR(VLOOKUP(TEXT(INDIRECT(\"'\"&F4540&\"'!\"&H4540),\"0\"),Notes!$B$5:$C$100,2,FALSE),\"\"))","v":""},"2d","$K$114","$L$114"]
[19932,{"$f":"Menu!$F$29","v":"X"},{"$f":"Menu!$J$29","v":2020},{"$f":"IF(ISBLANK(INDIRECT(\"'\"&F4541&\"'!\"&G4541)),\"\",INDIRECT(\"'\"&F4541&\"'!\"&G4541))","v":""},{"$f":"IF(ISBLANK(INDIRECT(\"'\"&F4541&\"'!\"&H4541)),\"\",IFERROR(VLOOKUP(TEXT(INDIRECT(\"'\"&F4541&\"'!\"&H4541),\"0\"),Notes!$B$5:$C$100,2,FALSE),\"\"))","v":""},"2d","$O$114","$P$114"]
[19933,{"$f":"Menu!$F$29","v":"X"},{"$f":"Menu!$J$29","v":2020},{"$f":"IF(ISBLANK(INDIRECT(\"'\"&F4542&\"'!\"&G4542)),\"\",INDIRECT(\"'\"&F4542&\"'!\"&G4542))","v":""},{"$f":"IF(ISBLANK(INDIRECT(\"'\"&F4542&\"'!\"&H4542)),\"\",IFERROR(VLOOKUP(TEXT(INDIRECT(\"'\"&F4542&\"'!\"&H4542),\"0\"),Notes!$B$5:$C$100,2,FALSE),\"\"))","v":""},"2d","$M$114","$N$114"]
[19934,{"$f":"Menu!$F$29","v":"X"},{"$f":"Menu!$J$29","v":2020},{"$f":"IF(ISBLANK(INDIRECT(\"'\"&F4543&\"'!\"&G4543)),\"\",INDIRECT(\"'\"&F4543&\"'!\"&G4543))","v":""},{"$f":"IF(ISBLANK(INDIRECT(\"'\"&F4543&\"'!\"&H4543)),\"\",IFERROR(VLOOKUP(TEXT(INDIRECT(\"'\"&F4543&\"'!\"&H4543),\"0\"),Notes!$B$5:$C$100,2,FALSE),\"\"))","v":""},"2d","$Q$114","$R$114"]
[19935,{"$f":"Menu!$F$29","v":"X"},{"$f":"Menu!$J$29","v":2020},{"$f":"IF(ISBLANK(INDIRECT(\"'\"&F4544&\"'!\"&G4544)),\"\",INDIRECT(\"'\"&F4544&\"'!\"&G4544))","v":""},{"$f":"IF(ISBLANK(INDIRECT(\"'\"&F4544&\"'!\"&H4544)),\"\",IFERROR(VLOOKUP(TEXT(INDIRECT(\"'\"&F4544&\"'!\"&H4544),\"0\"),Notes!$B$5:$C$100,2,FALSE),\"\"))","v":""},"2d","$U$114","$V$114"]
[19936,{"$f":"Menu!$F$29","v":"X"},{"$f":"Menu!$J$29","v":2020},{"$f":"IF(ISBLANK(INDIRECT(\"'\"&F4545&\"'!\"&G4545)),\"\",INDIRECT(\"'\"&F4545&\"'!\"&G4545))","v":""},{"$f":"IF(ISBLANK(INDIRECT(\"'\"&F4545&\"'!\"&H4545)),\"\",IFERROR(VLOOKUP(TEXT(INDIRECT(\"'\"&F4545&\"'!\"&H4545),\"0\"),Notes!$B$5:$C$100,2,FALSE),\"\"))","v":""},"2d","$S$114","$T$114"]
[19937,{"$f":"Menu!$F$29","v":"X"},{"$f":"Menu!$J$29","v":2020},{"$f":"IF(ISBLANK(INDIRECT(\"'\"&F4546&\"'!\"&G4546)),\"\",INDIRECT(\"'\"&F4546&\"'!\"&G4546))","v":""},{"$f":"IF(ISBLANK(INDIRECT(\"'\"&F4546&\"'!\"&H4546)),\"\",IFERROR(VLOOKUP(TEXT(INDIRECT(\"'\"&F4546&\"'!\"&H4546),\"0\"),Notes!$B$5:$C$100,2,FALSE),\"\"))","v":""},"2a","$O$114",{"$f":"IF(LEN(TRIM(MID(G4546,4,10)))-LEN(SUBSTITUTE(TRIM(MID(G4546,4,10)),\"$\",\"\"))=0,\"$\"&CHAR(CODE(MID(G4546,2,1))+1)&\"$\"&TRIM(MID(G4546,4,10)),\"$\"&MID(G4546,2,1)&CHAR(CODE(MID(G4546,3,1))+1)&\"$\"&TRIM(MID(G4546,5,11)))","v":"$P$114"}]
[19938,{"$f":"Menu!$F$29","v":"X"},{"$f":"Menu!$J$29","v":2020},{"$f":"IF(ISBLANK(INDIRECT(\"'\"&F4547&\"'!\"&G4547)),\"\",INDIRECT(\"'\"&F4547&\"'!\"&G4547))","v":""},{"$f":"IF(ISBLANK(INDIRECT(\"'\"&F4547&\"'!\"&H4547)),\"\",IFERROR(VLOOKUP(TEXT(INDIRECT(\"'\"&F4547&\"'!\"&H4547),\"0\"),Notes!$B$5:$C$100,2,FALSE),\"\"))","v":""},"2a","$M$114","$N$114"]
[19939,{"$f":"Menu!$F$29","v":"X"},{"$f":"Menu!$J$29","v":2020},{"$f":"IF(ISBLANK(INDIRECT(\"'\"&F4548&\"'!\"&G4548)),\"\",INDIRECT(\"'\"&F4548&\"'!\"&G4548))","v":""},{"$f":"IF(ISBLANK(INDIRECT(\"'\"&F4548&\"'!\"&H4548)),\"\",IFERROR(VLOOKUP(TEXT(INDIRECT(\"'\"&F4548&\"'!\"&H4548),\"0\"),Notes!$B$5:$C$100,2,FALSE),\"\"))","v":""},"2a","$K$114","$L$114"]
[19940,{"$f":"Menu!$F$29","v":"X"},{"$f":"Menu!$J$29","v":2020},{"$f":"IF(ISBLANK(INDIRECT(\"'\"&F4549&\"'!\"&G4549)),\"\",INDIRECT(\"'\"&F4549&\"'!\"&G4549))","v":""},{"$f":"IF(ISBLANK(INDIRECT(\"'\"&F4549&\"'!\"&H4549)),\"\",IFERROR(VLOOKUP(TEXT(INDIRECT(\"'\"&F4549&\"'!\"&H4549),\"0\"),Notes!$B$5:$C$100,2,FALSE),\"\"))","v":""},"2a","$E$114","$F$114"]
[20019,{"$f":"Menu!$F$29","v":"X"},{"$f":"Menu!$J$29","v":2020},{"$f":"IF(ISBLANK(INDIRECT(\"'\"&F4550&\"'!\"&G4550)),\"\",INDIRECT(\"'\"&F4550&\"'!\"&G4550))","v":""},{"$f":"IF(ISBLANK(INDIRECT(\"'\"&F4550&\"'!\"&H4550)),\"\",IFERROR(VLOOKUP(TEXT(INDIRECT(\"'\"&F4550&\"'!\"&H4550),\"0\"),Notes!$B$5:$C$100,2,FALSE),\"\"))","v":""},"2b","$K$115","$L$115"]
[20020,{"$f":"Menu!$F$29","v":"X"},{"$f":"Menu!$J$29","v":2020},{"$f":"IF(ISBLANK(INDIRECT(\"'\"&F4551&\"'!\"&G4551)),\"\",INDIRECT(\"'\"&F4551&\"'!\"&G4551))","v":""},{"$f":"IF(ISBLANK(INDIRECT(\"'\"&F4551&\"'!\"&H4551)),\"\",IFERROR(VLOOKUP(TEXT(INDIRECT(\"'\"&F4551&\"'!\"&H4551),\"0\"),Notes!$B$5:$C$100,2,FALSE),\"\"))","v":""},"2b","$O$115","$P$115"]
[20021,{"$f":"Menu!$F$29","v":"X"},{"$f":"Menu!$J$29","v":2020},{"$f":"IF(ISBLANK(INDIRECT(\"'\"&F4552&\"'!\"&G4552)),\"\",INDIRECT(\"'\"&F4552&\"'!\"&G4552))","v":""},{"$f":"IF(ISBLANK(INDIRECT(\"'\"&F4552&\"'!\"&H4552)),\"\",IFERROR(VLOOKUP(TEXT(INDIRECT(\"'\"&F4552&\"'!\"&H4552),\"0\"),Notes!$B$5:$C$100,2,FALSE),\"\"))","v":""},"2b","$M$115","$N$115"]
[20022,{"$f":"Menu!$F$29","v":"X"},{"$f":"Menu!$J$29","v":2020},{"$f":"IF(ISBLANK(INDIRECT(\"'\"&F4553&\"'!\"&G4553)),\"\",INDIRECT(\"'\"&F4553&\"'!\"&G4553))","v":""},{"$f":"IF(ISBLANK(INDIRECT(\"'\"&F4553&\"'!\"&H4553)),\"\",IFERROR(VLOOKUP(TEXT(INDIRECT(\"'\"&F4553&\"'!\"&H4553),\"0\"),Notes!$B$5:$C$100,2,FALSE),\"\"))","v":""},"2b","$Q$115","$R$115"]
[20023,{"$f":"Menu!$F$29","v":"X"},{"$f":"Menu!$J$29","v":2020},{"$f":"IF(ISBLANK(INDIRECT(\"'\"&F4554&\"'!\"&G4554)),\"\",INDIRECT(\"'\"&F4554&\"'!\"&G4554))","v":""},{"$f":"IF(ISBLANK(INDIRECT(\"'\"&F4554&\"'!\"&H4554)),\"\",IFERROR(VLOOKUP(TEXT(INDIRECT(\"'\"&F4554&\"'!\"&H4554),\"0\"),Notes!$B$5:$C$100,2,FALSE),\"\"))","v":""},"2b","$U$115","$V$115"]
[20024,{"$f":"Menu!$F$29","v":"X"},{"$f":"Menu!$J$29","v":2020},{"$f":"IF(ISBLANK(INDIRECT(\"'\"&F4555&\"'!\"&G4555)),\"\",INDIRECT(\"'\"&F4555&\"'!\"&G4555))","v":""},{"$f":"IF(ISBLANK(INDIRECT(\"'\"&F4555&\"'!\"&H4555)),\"\",IFERROR(VLOOKUP(TEXT(INDIRECT(\"'\"&F4555&\"'!\"&H4555),\"0\"),Notes!$B$5:$C$100,2,FALSE),\"\"))","v":""},"2b","$S$115","$T$115"]
[20025,{"$f":"Menu!$F$29","v":"X"},{"$f":"Menu!$J$29","v":2020},{"$f":"IF(ISBLANK(INDIRECT(\"'\"&F4556&\"'!\"&G4556)),\"\",INDIRECT(\"'\"&F4556&\"'!\"&G4556))","v":""},{"$f":"IF(ISBLANK(INDIRECT(\"'\"&F4556&\"'!\"&H4556)),\"\",IFERROR(VLOOKUP(TEXT(INDIRECT(\"'\"&F4556&\"'!\"&H4556),\"0\"),Notes!$B$5:$C$100,2,FALSE),\"\"))","v":""},"2a","$I$115","$J$115"]
[20026,{"$f":"Menu!$F$29","v":"X"},{"$f":"Menu!$J$29","v":2020},{"$f":"IF(ISBLANK(INDIRECT(\"'\"&F4557&\"'!\"&G4557)),\"\",INDIRECT(\"'\"&F4557&\"'!\"&G4557))","v":""},{"$f":"IF(ISBLANK(INDIRECT(\"'\"&F4557&\"'!\"&H4557)),\"\",IFERROR(VLOOKUP(TEXT(INDIRECT(\"'\"&F4557&\"'!\"&H4557),\"0\"),Notes!$B$5:$C$100,2,FALSE),\"\"))","v":""},"2c","$E$115","$F$115"]
[20027,{"$f":"Menu!$F$29","v":"X"},{"$f":"Menu!$J$29","v":2020},{"$f":"IF(ISBLANK(INDIRECT(\"'\"&F4558&\"'!\"&G4558)),\"\",INDIRECT(\"'\"&F4558&\"'!\"&G4558))","v":""},{"$f":"IF(ISBLANK(INDIRECT(\"'\"&F4558&\"'!\"&H4558)),\"\",IFERROR(VLOOKUP(TEXT(INDIRECT(\"'\"&F4558&\"'!\"&H4558),\"0\"),Notes!$B$5:$C$100,2,FALSE),\"\"))","v":""},"2c","$I$115","$J$115"]
[20028,{"$f":"Menu!$F$29","v":"X"},{"$f":"Menu!$J$29","v":2020},{"$f":"IF(ISBLANK(INDIRECT(\"'\"&F4559&\"'!\"&G4559)),\"\",INDIRECT(\"'\"&F4559&\"'!\"&G4559))","v":""},{"$f":"IF(ISBLANK(INDIRECT(\"'\"&F4559&\"'!\"&H4559)),\"\",IFERROR(VLOOKUP(TEXT(INDIRECT(\"'\"&F4559&\"'!\"&H4559),\"0\"),Notes!$B$5:$C$100,2,FALSE),\"\"))","v":""},"2c","$G$115","$H$115"]
[20029,{"$f":"Menu!$F$29","v":"X"},{"$f":"Menu!$J$29","v":2020},{"$f":"IF(ISBLANK(INDIRECT(\"'\"&F4560&\"'!\"&G4560)),\"\",INDIRECT(\"'\"&F4560&\"'!\"&G4560))","v":""},{"$f":"IF(ISBLANK(INDIRECT(\"'\"&F4560&\"'!\"&H4560)),\"\",IFERROR(VLOOKUP(TEXT(INDIRECT(\"'\"&F4560&\"'!\"&H4560),\"0\"),Notes!$B$5:$C$100,2,FALSE),\"\"))","v":""},"2c","$K$115","$L$115"]
[20030,{"$f":"Menu!$F$29","v":"X"},{"$f":"Menu!$J$29","v":2020},{"$f":"IF(ISBLANK(INDIRECT(\"'\"&F4561&\"'!\"&G4561)),\"\",INDIRECT(\"'\"&F4561&\"'!\"&G4561))","v":""},{"$f":"IF(ISBLANK(INDIRECT(\"'\"&F4561&\"'!\"&H4561)),\"\",IFERROR(VLOOKUP(TEXT(INDIRECT(\"'\"&F4561&\"'!\"&H4561),\"0\"),Notes!$B$5:$C$100,2,FALSE),\"\"))","v":""},"2c","$O$115","$P$115"]
[20031,{"$f":"Menu!$F$29","v":"X"},{"$f":"Menu!$J$29","v":2020},{"$f":"IF(ISBLANK(INDIRECT(\"'\"&F4562&\"'!\"&G4562)),\"\",INDIRECT(\"'\"&F4562&\"'!\"&G4562))","v":""},{"$f":"IF(ISBLANK(INDIRECT(\"'\"&F4562&\"'!\"&H4562)),\"\",IFERROR(VLOOKUP(TEXT(INDIRECT(\"'\"&F4562&\"'!\"&H4562),\"0\"),Notes!$B$5:$C$100,2,FALSE),\"\"))","v":""},"2c","$M$115","$N$115"]
[20032,{"$f":"Menu!$F$29","v":"X"},{"$f":"Menu!$J$29","v":2020},{"$f":"IF(ISBLANK(INDIRECT(\"'\"&F4563&\"'!\"&G4563)),\"\",INDIRECT(\"'\"&F4563&\"'!\"&G4563))","v":""},{"$f":"IF(ISBLANK(INDIRECT(\"'\"&F4563&\"'!\"&H4563)),\"\",IFERROR(VLOOKUP(TEXT(INDIRECT(\"'\"&F4563&\"'!\"&H4563),\"0\"),Notes!$B$5:$C$100,2,FALSE),\"\"))","v":""},"2c","$Q$115","$R$115"]
[20033,{"$f":"Menu!$F$29","v":"X"},{"$f":"Menu!$J$29","v":2020},{"$f":"IF(ISBLANK(INDIRECT(\"'\"&F4564&\"'!\"&G4564)),\"\",INDIRECT(\"'\"&F4564&\"'!\"&G4564))","v":""},{"$f":"IF(ISBLANK(INDIRECT(\"'\"&F4564&\"'!\"&H4564)),\"\",IFERROR(VLOOKUP(TEXT(INDIRECT(\"'\"&F4564&\"'!\"&H4564),\"0\"),Notes!$B$5:$C$100,2,FALSE),\"\"))","v":""},"2c","$U$115","$V$115"]
[20034,{"$f":"Menu!$F$29","v":"X"},{"$f":"Menu!$J$29","v":2020},{"$f":"IF(ISBLANK(INDIRECT(\"'\"&F4565&\"'!\"&G4565)),\"\",INDIRECT(\"'\"&F4565&\"'!\"&G4565))","v":""},{"$f":"IF(ISBLANK(INDIRECT(\"'\"&F4565&\"'!\"&H4565)),\"\",IFERROR(VLOOKUP(TEXT(INDIRECT(\"'\"&F4565&\"'!\"&H4565),\"0\"),Notes!$B$5:$C$100,2,FALSE),\"\"))","v":""},"2c","$S$115","$T$115"]
[20035,{"$f":"Menu!$F$29","v":"X"},{"$f":"Menu!$J$29","v":2020},{"$f":"IF(ISBLANK(INDIRECT(\"'\"&F4566&\"'!\"&G4566)),\"\",INDIRECT(\"'\"&F4566&\"'!\"&G4566))","v":""},{"$f":"IF(ISBLANK(INDIRECT(\"'\"&F4566&\"'!\"&H4566)),\"\",IFERROR(VLOOKUP(TEXT(INDIRECT(\"'\"&F4566&\"'!\"&H4566),\"0\"),Notes!$B$5:$C$100,2,FALSE),\"\"))","v":""},"2c","$W$115","$X$115"]
[20036,{"$f":"Menu!$F$29","v":"X"},{"$f":"Menu!$J$29","v":2020},{"$f":"IF(ISBLANK(INDIRECT(\"'\"&F4567&\"'!\"&G4567)),\"\",INDIRECT(\"'\"&F4567&\"'!\"&G4567))","v":""},{"$f":"IF(ISBLANK(INDIRECT(\"'\"&F4567&\"'!\"&H4567)),\"\",IFERROR(VLOOKUP(TEXT(INDIRECT(\"'\"&F4567&\"'!\"&H4567),\"0\"),Notes!$B$5:$C$100,2,FALSE),\"\"))","v":""},"2c","$AA$115","$AB$115"]
[20037,{"$f":"Menu!$F$29","v":"X"},{"$f":"Menu!$J$29","v":2020},{"$f":"IF(ISBLANK(INDIRECT(\"'\"&F4568&\"'!\"&G4568)),\"\",INDIRECT(\"'\"&F4568&\"'!\"&G4568))","v":""},{"$f":"IF(ISBLANK(INDIRECT(\"'\"&F4568&\"'!\"&H4568)),\"\",IFERROR(VLOOKUP(TEXT(INDIRECT(\"'\"&F4568&\"'!\"&H4568),\"0\"),Notes!$B$5:$C$100,2,FALSE),\"\"))","v":""},"2c","$Y$115","$Z$115"]
[20038,{"$f":"Menu!$F$29","v":"X"},{"$f":"Menu!$J$29","v":2020},{"$f":"IF(ISBLANK(INDIRECT(\"'\"&F4569&\"'!\"&G4569)),\"\",INDIRECT(\"'\"&F4569&\"'!\"&G4569))","v":""},{"$f":"IF(ISBLANK(INDIRECT(\"'\"&F4569&\"'!\"&H4569)),\"\",IFERROR(VLOOKUP(TEXT(INDIRECT(\"'\"&F4569&\"'!\"&H4569),\"0\"),Notes!$B$5:$C$100,2,FALSE),\"\"))","v":""},"2e","$BG$116","$BH$116"]
[20039,{"$f":"Menu!$F$29","v":"X"},{"$f":"Menu!$J$29","v":2020},{"$f":"IF(ISBLANK(INDIRECT(\"'\"&F4570&\"'!\"&G4570)),\"\",INDIRECT(\"'\"&F4570&\"'!\"&G4570))","v":""},{"$f":"IF(ISBLANK(INDIRECT(\"'\"&F4570&\"'!\"&H4570)),\"\",IFERROR(VLOOKUP(TEXT(INDIRECT(\"'\"&F4570&\"'!\"&H4570),\"0\"),Notes!$B$5:$C$100,2,FALSE),\"\"))","v":""},"2e","$BK$116","$BL$116"]
[20040,{"$f":"Menu!$F$29","v":"X"},{"$f":"Menu!$J$29","v":2020},{"$f":"IF(ISBLANK(INDIRECT(\"'\"&F4571&\"'!\"&G4571)),\"\",INDIRECT(\"'\"&F4571&\"'!\"&G4571))","v":""},{"$f":"IF(ISBLANK(INDIRECT(\"'\"&F4571&\"'!\"&H4571)),\"\",IFERROR(VLOOKUP(TEXT(INDIRECT(\"'\"&F4571&\"'!\"&H4571),\"0\"),Notes!$B$5:$C$100,2,FALSE),\"\"))","v":""},"2e","$BI$116","$BJ$116"]
[20041,{"$f":"Menu!$F$29","v":"X"},{"$f":"Menu!$J$29","v":2020},{"$f":"IF(ISBLANK(INDIRECT(\"'\"&F4572&\"'!\"&G4572)),\"\",INDIRECT(\"'\"&F4572&\"'!\"&G4572))","v":""},{"$f":"IF(ISBLANK(INDIRECT(\"'\"&F4572&\"'!\"&H4572)),\"\",IFERROR(VLOOKUP(TEXT(INDIRECT(\"'\"&F4572&\"'!\"&H4572),\"0\"),Notes!$B$5:$C$100,2,FALSE),\"\"))","v":""},"2e","$E$116","$F$116"]
[20042,{"$f":"Menu!$F$29","v":"X"},{"$f":"Menu!$J$29","v":2020},{"$f":"IF(ISBLANK(INDIRECT(\"'\"&F4573&\"'!\"&G4573)),\"\",INDIRECT(\"'\"&F4573&\"'!\"&G4573))","v":""},{"$f":"IF(ISBLANK(INDIRECT(\"'\"&F4573&\"'!\"&H4573)),\"\",IFERROR(VLOOKUP(TEXT(INDIRECT(\"'\"&F4573&\"'!\"&H4573),\"0\"),Notes!$B$5:$C$100,2,FALSE),\"\"))","v":""},"2e","$I$116","$J$116"]
[20043,{"$f":"Menu!$F$29","v":"X"},{"$f":"Menu!$J$29","v":2020},{"$f":"IF(ISBLANK(INDIRECT(\"'\"&F4574&\"'!\"&G4574)),\"\",INDIRECT(\"'\"&F4574&\"'!\"&G4574))","v":""},{"$f":"IF(ISBLANK(INDIRECT(\"'\"&F4574&\"'!\"&H4574)),\"\",IFERROR(VLOOKUP(TEXT(INDIRECT(\"'\"&F4574&\"'!\"&H4574),\"0\"),Notes!$B$5:$C$100,2,FALSE),\"\"))","v":""},"2e","$G$116","$H$116"]
[20044,{"$f":"Menu!$F$29","v":"X"},{"$f":"Menu!$J$29","v":2020},{"$f":"IF(ISBLANK(INDIRECT(\"'\"&F4575&\"'!\"&G4575)),\"\",INDIRECT(\"'\"&F4575&\"'!\"&G4575))","v":""},{"$f":"IF(ISBLANK(INDIRECT(\"'\"&F4575&\"'!\"&H4575)),\"\",IFERROR(VLOOKUP(TEXT(INDIRECT(\"'\"&F4575&\"'!\"&H4575),\"0\"),Notes!$B$5:$C$100,2,FALSE),\"\"))","v":""},"2e","$K$116","$L$116"]
[20045,{"$f":"Menu!$F$29","v":"X"},{"$f":"Menu!$J$29","v":2020},{"$f":"IF(ISBLANK(INDIRECT(\"'\"&F4576&\"'!\"&G4576)),\"\",INDIRECT(\"'\"&F4576&\"'!\"&G4576))","v":""},{"$f":"IF(ISBLANK(INDIRECT(\"'\"&F4576&\"'!\"&H4576)),\"\",IFERROR(VLOOKUP(TEXT(INDIRECT(\"'\"&F4576&\"'!\"&H4576),\"0\"),Notes!$B$5:$C$100,2,FALSE),\"\"))","v":""},"2e","$O$116","$P$116"]
[20046,{"$f":"Menu!$F$29","v":"X"},{"$f":"Menu!$J$29","v":2020},{"$f":"IF(ISBLANK(INDIRECT(\"'\"&F4577&\"'!\"&G4577)),\"\",INDIRECT(\"'\"&F4577&\"'!\"&G4577))","v":""},{"$f":"IF(ISBLANK(INDIRECT(\"'\"&F4577&\"'!\"&H4577)),\"\",IFERROR(VLOOKUP(TEXT(INDIRECT(\"'\"&F4577&\"'!\"&H4577),\"0\"),Notes!$B$5:$C$100,2,FALSE),\"\"))","v":""},"2e","$M$116","$N$116"]
[20047,{"$f":"Menu!$F$29","v":"X"},{"$f":"Menu!$J$29","v":2020},{"$f":"IF(ISBLANK(INDIRECT(\"'\"&F4578&\"'!\"&G4578)),\"\",INDIRECT(\"'\"&F4578&\"'!\"&G4578))","v":""},{"$f":"IF(ISBLANK(INDIRECT(\"'\"&F4578&\"'!\"&H4578)),\"\",IFERROR(VLOOKUP(TEXT(INDIRECT(\"'\"&F4578&\"'!\"&H4578),\"0\"),Notes!$B$5:$C$100,2,FALSE),\"\"))","v":""},"2e","$Q$116","$R$116"]
[20048,{"$f":"Menu!$F$29","v":"X"},{"$f":"Menu!$J$29","v":2020},{"$f":"IF(ISBLANK(INDIRECT(\"'\"&F4579&\"'!\"&G4579)),\"\",INDIRECT(\"'\"&F4579&\"'!\"&G4579))","v":""},{"$f":"IF(ISBLANK(INDIRECT(\"'\"&F4579&\"'!\"&H4579)),\"\",IFERROR(VLOOKUP(TEXT(INDIRECT(\"'\"&F4579&\"'!\"&H4579),\"0\"),Notes!$B$5:$C$100,2,FALSE),\"\"))","v":""},"2e","$U$116","$V$116"]
[20049,{"$f":"Menu!$F$29","v":"X"},{"$f":"Menu!$J$29","v":2020},{"$f":"IF(ISBLANK(INDIRECT(\"'\"&F4580&\"'!\"&G4580)),\"\",INDIRECT(\"'\"&F4580&\"'!\"&G4580))","v":""},{"$f":"IF(ISBLANK(INDIRECT(\"'\"&F4580&\"'!\"&H4580)),\"\",IFERROR(VLOOKUP(TEXT(INDIRECT(\"'\"&F4580&\"'!\"&H4580),\"0\"),Notes!$B$5:$C$100,2,FALSE),\"\"))","v":""},"2e","$S$116","$T$116"]
[20050,{"$f":"Menu!$F$29","v":"X"},{"$f":"Menu!$J$29","v":2020},{"$f":"IF(ISBLANK(INDIRECT(\"'\"&F4581&\"'!\"&G4581)),\"\",INDIRECT(\"'\"&F4581&\"'!\"&G4581))","v":""},{"$f":"IF(ISBLANK(INDIRECT(\"'\"&F4581&\"'!\"&H4581)),\"\",IFERROR(VLOOKUP(TEXT(INDIRECT(\"'\"&F4581&\"'!\"&H4581),\"0\"),Notes!$B$5:$C$100,2,FALSE),\"\"))","v":""},"2e","$W$116","$X$116"]
[20051,{"$f":"Menu!$F$29","v":"X"},{"$f":"Menu!$J$29","v":2020},{"$f":"IF(ISBLANK(INDIRECT(\"'\"&F4582&\"'!\"&G4582)),\"\",INDIRECT(\"'\"&F4582&\"'!\"&G4582))","v":""},{"$f":"IF(ISBLANK(INDIRECT(\"'\"&F4582&\"'!\"&H4582)),\"\",IFERROR(VLOOKUP(TEXT(INDIRECT(\"'\"&F4582&\"'!\"&H4582),\"0\"),Notes!$B$5:$C$100,2,FALSE),\"\"))","v":""},"2e","$AA$116","$AB$116"]
[20052,{"$f":"Menu!$F$29","v":"X"},{"$f":"Menu!$J$29","v":2020},{"$f":"IF(ISBLANK(INDIRECT(\"'\"&F4583&\"'!\"&G4583)),\"\",INDIRECT(\"'\"&F4583&\"'!\"&G4583))","v":""},{"$f":"IF(ISBLANK(INDIRECT(\"'\"&F4583&\"'!\"&H4583)),\"\",IFERROR(VLOOKUP(TEXT(INDIRECT(\"'\"&F4583&\"'!\"&H4583),\"0\"),Notes!$B$5:$C$100,2,FALSE),\"\"))","v":""},"2e","$Y$116","$Z$116"]
[20053,{"$f":"Menu!$F$29","v":"X"},{"$f":"Menu!$J$29","v":2020},{"$f":"IF(ISBLANK(INDIRECT(\"'\"&F4584&\"'!\"&G4584)),\"\",INDIRECT(\"'\"&F4584&\"'!\"&G4584))","v":""},{"$f":"IF(ISBLANK(INDIRECT(\"'\"&F4584&\"'!\"&H4584)),\"\",IFERROR(VLOOKUP(TEXT(INDIRECT(\"'\"&F4584&\"'!\"&H4584),\"0\"),Notes!$B$5:$C$100,2,FALSE),\"\"))","v":""},"2e","$AC$116","$AD$116"]
[20054,{"$f":"Menu!$F$29","v":"X"},{"$f":"Menu!$J$29","v":2020},{"$f":"IF(ISBLANK(INDIRECT(\"'\"&F4585&\"'!\"&G4585)),\"\",INDIRECT(\"'\"&F4585&\"'!\"&G4585))","v":""},{"$f":"IF(ISBLANK(INDIRECT(\"'\"&F4585&\"'!\"&H4585)),\"\",IFERROR(VLOOKUP(TEXT(INDIRECT(\"'\"&F4585&\"'!\"&H4585),\"0\"),Notes!$B$5:$C$100,2,FALSE),\"\"))","v":""},"2e","$AG$116","$AH$116"]
[20055,{"$f":"Menu!$F$29","v":"X"},{"$f":"Menu!$J$29","v":2020},{"$f":"IF(ISBLANK(INDIRECT(\"'\"&F4586&\"'!\"&G4586)),\"\",INDIRECT(\"'\"&F4586&\"'!\"&G4586))","v":""},{"$f":"IF(ISBLANK(INDIRECT(\"'\"&F4586&\"'!\"&H4586)),\"\",IFERROR(VLOOKUP(TEXT(INDIRECT(\"'\"&F4586&\"'!\"&H4586),\"0\"),Notes!$B$5:$C$100,2,FALSE),\"\"))","v":""},"2e","$AE$116","$AF$116"]
[20056,{"$f":"Menu!$F$29","v":"X"},{"$f":"Menu!$J$29","v":2020},{"$f":"IF(ISBLANK(INDIRECT(\"'\"&F4587&\"'!\"&G4587)),\"\",INDIRECT(\"'\"&F4587&\"'!\"&G4587))","v":""},{"$f":"IF(ISBLANK(INDIRECT(\"'\"&F4587&\"'!\"&H4587)),\"\",IFERROR(VLOOKUP(TEXT(INDIRECT(\"'\"&F4587&\"'!\"&H4587),\"0\"),Notes!$B$5:$C$100,2,FALSE),\"\"))","v":""},"2e","$AI$116","$AJ$116"]
[20057,{"$f":"Menu!$F$29","v":"X"},{"$f":"Menu!$J$29","v":2020},{"$f":"IF(ISBLANK(INDIRECT(\"'\"&F4588&\"'!\"&G4588)),\"\",INDIRECT(\"'\"&F4588&\"'!\"&G4588))","v":""},{"$f":"IF(ISBLANK(INDIRECT(\"'\"&F4588&\"'!\"&H4588)),\"\",IFERROR(VLOOKUP(TEXT(INDIRECT(\"'\"&F4588&\"'!\"&H4588),\"0\"),Notes!$B$5:$C$100,2,FALSE),\"\"))","v":""},"2e","$AM$116","$AN$116"]
[20058,{"$f":"Menu!$F$29","v":"X"},{"$f":"Menu!$J$29","v":2020},{"$f":"IF(ISBLANK(INDIRECT(\"'\"&F4589&\"'!\"&G4589)),\"\",INDIRECT(\"'\"&F4589&\"'!\"&G4589))","v":""},{"$f":"IF(ISBLANK(INDIRECT(\"'\"&F4589&\"'!\"&H4589)),\"\",IFERROR(VLOOKUP(TEXT(INDIRECT(\"'\"&F4589&\"'!\"&H4589),\"0\"),Notes!$B$5:$C$100,2,FALSE),\"\"))","v":""},"2e","$AK$116","$AL$116"]
[20059,{"$f":"Menu!$F$29","v":"X"},{"$f":"Menu!$J$29","v":2020},{"$f":"IF(ISBLANK(INDIRECT(\"'\"&F4590&\"'!\"&G4590)),\"\",INDIRECT(\"'\"&F4590&\"'!\"&G4590))","v":""},{"$f":"IF(ISBLANK(INDIRECT(\"'\"&F4590&\"'!\"&H4590)),\"\",IFERROR(VLOOKUP(TEXT(INDIRECT(\"'\"&F4590&\"'!\"&H4590),\"0\"),Notes!$B$5:$C$100,2,FALSE),\"\"))","v":""},"2e","$AO$116","$AP$116"]
[20060,{"$f":"Menu!$F$29","v":"X"},{"$f":"Menu!$J$29","v":2020},{"$f":"IF(ISBLANK(INDIRECT(\"'\"&F4591&\"'!\"&G4591)),\"\",INDIRECT(\"'\"&F4591&\"'!\"&G4591))","v":""},{"$f":"IF(ISBLANK(INDIRECT(\"'\"&F4591&\"'!\"&H4591)),\"\",IFERROR(VLOOKUP(TEXT(INDIRECT(\"'\"&F4591&\"'!\"&H4591),\"0\"),Notes!$B$5:$C$100,2,FALSE),\"\"))","v":""},"2e","$AQ$116","$AR$116"]
[20061,{"$f":"Menu!$F$29","v":"X"},{"$f":"Menu!$J$29","v":2020},{"$f":"IF(ISBLANK(INDIRECT(\"'\"&F4592&\"'!\"&G4592)),\"\",INDIRECT(\"'\"&F4592&\"'!\"&G4592))","v":""},{"$f":"IF(ISBLANK(INDIRECT(\"'\"&F4592&\"'!\"&H4592)),\"\",IFERROR(VLOOKUP(TEXT(INDIRECT(\"'\"&F4592&\"'!\"&H4592),\"0\"),Notes!$B$5:$C$100,2,FALSE),\"\"))","v":""},"2e","$AS$116","$AT$116"]
[20062,{"$f":"Menu!$F$29","v":"X"},{"$f":"Menu!$J$29","v":2020},{"$f":"IF(ISBLANK(INDIRECT(\"'\"&F4593&\"'!\"&G4593)),\"\",INDIRECT(\"'\"&F4593&\"'!\"&G4593))","v":""},{"$f":"IF(ISBLANK(INDIRECT(\"'\"&F4593&\"'!\"&H4593)),\"\",IFERROR(VLOOKUP(TEXT(INDIRECT(\"'\"&F4593&\"'!\"&H4593),\"0\"),Notes!$B$5:$C$100,2,FALSE),\"\"))","v":""},"2e","$AU$116","$AV$116"]
[20063,{"$f":"Menu!$F$29","v":"X"},{"$f":"Menu!$J$29","v":2020},{"$f":"IF(ISBLANK(INDIRECT(\"'\"&F4594&\"'!\"&G4594)),\"\",INDIRECT(\"'\"&F4594&\"'!\"&G4594))","v":""},{"$f":"IF(ISBLANK(INDIRECT(\"'\"&F4594&\"'!\"&H4594)),\"\",IFERROR(VLOOKUP(TEXT(INDIRECT(\"'\"&F4594&\"'!\"&H4594),\"0\"),Notes!$B$5:$C$100,2,FALSE),\"\"))","v":""},"2e","$AY$116","$AZ$116"]
[20064,{"$f":"Menu!$F$29","v":"X"},{"$f":"Menu!$J$29","v":2020},{"$f":"IF(ISBLANK(INDIRECT(\"'\"&F4595&\"'!\"&G4595)),\"\",INDIRECT(\"'\"&F4595&\"'!\"&G4595))","v":""},{"$f":"IF(ISBLANK(INDIRECT(\"'\"&F4595&\"'!\"&H4595)),\"\",IFERROR(VLOOKUP(TEXT(INDIRECT(\"'\"&F4595&\"'!\"&H4595),\"0\"),Notes!$B$5:$C$100,2,FALSE),\"\"))","v":""},"2e","$AW$116","$AX$116"]
[20065,{"$f":"Menu!$F$29","v":"X"},{"$f":"Menu!$J$29","v":2020},{"$f":"IF(ISBLANK(INDIRECT(\"'\"&F4596&\"'!\"&G4596)),\"\",INDIRECT(\"'\"&F4596&\"'!\"&G4596))","v":""},{"$f":"IF(ISBLANK(INDIRECT(\"'\"&F4596&\"'!\"&H4596)),\"\",IFERROR(VLOOKUP(TEXT(INDIRECT(\"'\"&F4596&\"'!\"&H4596),\"0\"),Notes!$B$5:$C$100,2,FALSE),\"\"))","v":""},"2e","$BA$116","$BB$116"]
[20066,{"$f":"Menu!$F$29","v":"X"},{"$f":"Menu!$J$29","v":2020},{"$f":"IF(ISBLANK(INDIRECT(\"'\"&F4597&\"'!\"&G4597)),\"\",INDIRECT(\"'\"&F4597&\"'!\"&G4597))","v":""},{"$f":"IF(ISBLANK(INDIRECT(\"'\"&F4597&\"'!\"&H4597)),\"\",IFERROR(VLOOKUP(TEXT(INDIRECT(\"'\"&F4597&\"'!\"&H4597),\"0\"),Notes!$B$5:$C$100,2,FALSE),\"\"))","v":""},"2e","$BE$116","$BF$116"]
[20067,{"$f":"Menu!$F$29","v":"X"},{"$f":"Menu!$J$29","v":2020},{"$f":"IF(ISBLANK(INDIRECT(\"'\"&F4598&\"'!\"&G4598)),\"\",INDIRECT(\"'\"&F4598&\"'!\"&G4598))","v":""},{"$f":"IF(ISBLANK(INDIRECT(\"'\"&F4598&\"'!\"&H4598)),\"\",IFERROR(VLOOKUP(TEXT(INDIRECT(\"'\"&F4598&\"'!\"&H4598),\"0\"),Notes!$B$5:$C$100,2,FALSE),\"\"))","v":""},"2e","$BC$116","$BD$116"]
[20068,{"$f":"Menu!$F$29","v":"X"},{"$f":"Menu!$J$29","v":2020},{"$f":"IF(ISBLANK(INDIRECT(\"'\"&F4599&\"'!\"&G4599)),\"\",INDIRECT(\"'\"&F4599&\"'!\"&G4599))","v":""},{"$f":"IF(ISBLANK(INDIRECT(\"'\"&F4599&\"'!\"&H4599)),\"\",IFERROR(VLOOKUP(TEXT(INDIRECT(\"'\"&F4599&\"'!\"&H4599),\"0\"),Notes!$B$5:$C$100,2,FALSE),\"\"))","v":""},"2b","$E$115","$F$115"]
[20069,{"$f":"Menu!$F$29","v":"X"},{"$f":"Menu!$J$29","v":2020},{"$f":"IF(ISBLANK(INDIRECT(\"'\"&F4600&\"'!\"&G4600)),\"\",INDIRECT(\"'\"&F4600&\"'!\"&G4600))","v":""},{"$f":"IF(ISBLANK(INDIRECT(\"'\"&F4600&\"'!\"&H4600)),\"\",IFERROR(VLOOKUP(TEXT(INDIRECT(\"'\"&F4600&\"'!\"&H4600),\"0\"),Notes!$B$5:$C$100,2,FALSE),\"\"))","v":""},"2b","$I$115","$J$115"]
[20070,{"$f":"Menu!$F$29","v":"X"},{"$f":"Menu!$J$29","v":2020},{"$f":"IF(ISBLANK(INDIRECT(\"'\"&F4601&\"'!\"&G4601)),\"\",INDIRECT(\"'\"&F4601&\"'!\"&G4601))","v":""},{"$f":"IF(ISBLANK(INDIRECT(\"'\"&F4601&\"'!\"&H4601)),\"\",IFERROR(VLOOKUP(TEXT(INDIRECT(\"'\"&F4601&\"'!\"&H4601),\"0\"),Notes!$B$5:$C$100,2,FALSE),\"\"))","v":""},"2b","$G$115","$H$115"]
[20071,{"$f":"Menu!$F$29","v":"X"},{"$f":"Menu!$J$29","v":2020},{"$f":"IF(ISBLANK(INDIRECT(\"'\"&F4602&\"'!\"&G4602)),\"\",INDIRECT(\"'\"&F4602&\"'!\"&G4602))","v":""},{"$f":"IF(ISBLANK(INDIRECT(\"'\"&F4602&\"'!\"&H4602)),\"\",IFERROR(VLOOKUP(TEXT(INDIRECT(\"'\"&F4602&\"'!\"&H4602),\"0\"),Notes!$B$5:$C$100,2,FALSE),\"\"))","v":""},"2a","$G$115","$H$115"]
[20072,{"$f":"Menu!$F$29","v":"X"},{"$f":"Menu!$J$29","v":2020},{"$f":"IF(ISBLANK(INDIRECT(\"'\"&F4603&\"'!\"&G4603)),\"\",INDIRECT(\"'\"&F4603&\"'!\"&G4603))","v":""},{"$f":"IF(ISBLANK(INDIRECT(\"'\"&F4603&\"'!\"&H4603)),\"\",IFERROR(VLOOKUP(TEXT(INDIRECT(\"'\"&F4603&\"'!\"&H4603),\"0\"),Notes!$B$5:$C$100,2,FALSE),\"\"))","v":""},"2b","$W$115","$X$115"]
[20073,{"$f":"Menu!$F$29","v":"X"},{"$f":"Menu!$J$29","v":2020},{"$f":"IF(ISBLANK(INDIRECT(\"'\"&F4604&\"'!\"&G4604)),\"\",INDIRECT(\"'\"&F4604&\"'!\"&G4604))","v":""},{"$f":"IF(ISBLANK(INDIRECT(\"'\"&F4604&\"'!\"&H4604)),\"\",IFERROR(VLOOKUP(TEXT(INDIRECT(\"'\"&F4604&\"'!\"&H4604),\"0\"),Notes!$B$5:$C$100,2,FALSE),\"\"))","v":""},"2b","$AA$115","$AB$115"]
[20074,{"$f":"Menu!$F$29","v":"X"},{"$f":"Menu!$J$29","v":2020},{"$f":"IF(ISBLANK(INDIRECT(\"'\"&F4605&\"'!\"&G4605)),\"\",INDIRECT(\"'\"&F4605&\"'!\"&G4605))","v":""},{"$f":"IF(ISBLANK(INDIRECT(\"'\"&F4605&\"'!\"&H4605)),\"\",IFERROR(VLOOKUP(TEXT(INDIRECT(\"'\"&F4605&\"'!\"&H4605),\"0\"),Notes!$B$5:$C$100,2,FALSE),\"\"))","v":""},"2b","$Y$115","$Z$115"]
[20075,{"$f":"Menu!$F$29","v":"X"},{"$f":"Menu!$J$29","v":2020},{"$f":"IF(ISBLANK(INDIRECT(\"'\"&F4606&\"'!\"&G4606)),\"\",INDIRECT(\"'\"&F4606&\"'!\"&G4606))","v":""},{"$f":"IF(ISBLANK(INDIRECT(\"'\"&F4606&\"'!\"&H4606)),\"\",IFERROR(VLOOKUP(TEXT(INDIRECT(\"'\"&F4606&\"'!\"&H4606),\"0\"),Notes!$B$5:$C$100,2,FALSE),\"\"))","v":""},"2d","$AC$115","$AD$115"]
[20076,{"$f":"Menu!$F$29","v":"X"},{"$f":"Menu!$J$29","v":2020},{"$f":"IF(ISBLANK(INDIRECT(\"'\"&F4607&\"'!\"&G4607)),\"\",INDIRECT(\"'\"&F4607&\"'!\"&G4607))","v":""},{"$f":"IF(ISBLANK(INDIRECT(\"'\"&F4607&\"'!\"&H4607)),\"\",IFERROR(VLOOKUP(TEXT(INDIRECT(\"'\"&F4607&\"'!\"&H4607),\"0\"),Notes!$B$5:$C$100,2,FALSE),\"\"))","v":""},"2d","$AG$115","$AH$115"]
[20077,{"$f":"Menu!$F$29","v":"X"},{"$f":"Menu!$J$29","v":2020},{"$f":"IF(ISBLANK(INDIRECT(\"'\"&F4608&\"'!\"&G4608)),\"\",INDIRECT(\"'\"&F4608&\"'!\"&G4608))","v":""},{"$f":"IF(ISBLANK(INDIRECT(\"'\"&F4608&\"'!\"&H4608)),\"\",IFERROR(VLOOKUP(TEXT(INDIRECT(\"'\"&F4608&\"'!\"&H4608),\"0\"),Notes!$B$5:$C$100,2,FALSE),\"\"))","v":""},"2d","$AE$115","$AF$115"]
[20078,{"$f":"Menu!$F$29","v":"X"},{"$f":"Menu!$J$29","v":2020},{"$f":"IF(ISBLANK(INDIRECT(\"'\"&F4609&\"'!\"&G4609)),\"\",INDIRECT(\"'\"&F4609&\"'!\"&G4609))","v":""},{"$f":"IF(ISBLANK(INDIRECT(\"'\"&F4609&\"'!\"&H4609)),\"\",IFERROR(VLOOKUP(TEXT(INDIRECT(\"'\"&F4609&\"'!\"&H4609),\"0\"),Notes!$B$5:$C$100,2,FALSE),\"\"))","v":""},"2d","$W$115","$X$115"]
[20079,{"$f":"Menu!$F$29","v":"X"},{"$f":"Menu!$J$29","v":2020},{"$f":"IF(ISBLANK(INDIRECT(\"'\"&F4610&\"'!\"&G4610)),\"\",INDIRECT(\"'\"&F4610&\"'!\"&G4610))","v":""},{"$f":"IF(ISBLANK(INDIRECT(\"'\"&F4610&\"'!\"&H4610)),\"\",IFERROR(VLOOKUP(TEXT(INDIRECT(\"'\"&F4610&\"'!\"&H4610),\"0\"),Notes!$B$5:$C$100,2,FALSE),\"\"))","v":""},"2d","$AA$115",{"$f":"IF(LEN(TRIM(MID(G4610,4,10)))-LEN(SUBSTITUTE(TRIM(MID(G4610,4,10)),\"$\",\"\"))=0,\"$\"&CHAR(CODE(MID(G4610,2,1))+1)&\"$\"&TRIM(MID(G4610,4,10)),\"$\"&MID(G4610,2,1)&CHAR(CODE(MID(G4610,3,1))+1)&\"$\"&TRIM(MID(G4610,5,11)))","v":"$AB$115"}]
[20080,{"$f":"Menu!$F$29","v":"X"},{"$f":"Menu!$J$29","v":2020},{"$f":"IF(ISBLANK(INDIRECT(\"'\"&F4611&\"'!\"&G4611)),\"\",INDIRECT(\"'\"&F4611&\"'!\"&G4611))","v":""},{"$f":"IF(ISBLANK(INDIRECT(\"'\"&F4611&\"'!\"&H4611)),\"\",IFERROR(VLOOKUP(TEXT(INDIRECT(\"'\"&F4611&\"'!\"&H4611),\"0\"),Notes!$B$5:$C$100,2,FALSE),\"\"))","v":""},"2d","$Y$115","$Z$115"]
[20081,{"$f":"Menu!$F$29","v":"X"},{"$f":"Menu!$J$29","v":2020},{"$f":"IF(ISBLANK(INDIRECT(\"'\"&F4612&\"'!\"&G4612)),\"\",INDIRECT(\"'\"&F4612&\"'!\"&G4612))","v":""},{"$f":"IF(ISBLANK(INDIRECT(\"'\"&F4612&\"'!\"&H4612)),\"\",IFERROR(VLOOKUP(TEXT(INDIRECT(\"'\"&F4612&\"'!\"&H4612),\"0\"),Notes!$B$5:$C$100,2,FALSE),\"\"))","v":""},"2d","$E$115","$F$115"]
[20082,{"$f":"Menu!$F$29","v":"X"},{"$f":"Menu!$J$29","v":2020},{"$f":"IF(ISBLANK(INDIRECT(\"'\"&F4613&\"'!\"&G4613)),\"\",INDIRECT(\"'\"&F4613&\"'!\"&G4613))","v":""},{"$f":"IF(ISBLANK(INDIRECT(\"'\"&F4613&\"'!\"&H4613)),\"\",IFERROR(VLOOKUP(TEXT(INDIRECT(\"'\"&F4613&\"'!\"&H4613),\"0\"),Notes!$B$5:$C$100,2,FALSE),\"\"))","v":""},"2d","$I$115","$J$115"]
[20083,{"$f":"Menu!$F$29","v":"X"},{"$f":"Menu!$J$29","v":2020},{"$f":"IF(ISBLANK(INDIRECT(\"'\"&F4614&\"'!\"&G4614)),\"\",INDIRECT(\"'\"&F4614&\"'!\"&G4614))","v":""},{"$f":"IF(ISBLANK(INDIRECT(\"'\"&F4614&\"'!\"&H4614)),\"\",IFERROR(VLOOKUP(TEXT(INDIRECT(\"'\"&F4614&\"'!\"&H4614),\"0\"),Notes!$B$5:$C$100,2,FALSE),\"\"))","v":""},"2d","$G$115","$H$115"]
[20084,{"$f":"Menu!$F$29","v":"X"},{"$f":"Menu!$J$29","v":2020},{"$f":"IF(ISBLANK(INDIRECT(\"'\"&F4615&\"'!\"&G4615)),\"\",INDIRECT(\"'\"&F4615&\"'!\"&G4615))","v":""},{"$f":"IF(ISBLANK(INDIRECT(\"'\"&F4615&\"'!\"&H4615)),\"\",IFERROR(VLOOKUP(TEXT(INDIRECT(\"'\"&F4615&\"'!\"&H4615),\"0\"),Notes!$B$5:$C$100,2,FALSE),\"\"))","v":""},"2a","$U$115","$V$115"]
[20085,{"$f":"Menu!$F$29","v":"X"},{"$f":"Menu!$J$29","v":2020},{"$f":"IF(ISBLANK(INDIRECT(\"'\"&F4616&\"'!\"&G4616)),\"\",INDIRECT(\"'\"&F4616&\"'!\"&G4616))","v":""},{"$f":"IF(ISBLANK(INDIRECT(\"'\"&F4616&\"'!\"&H4616)),\"\",IFERROR(VLOOKUP(TEXT(INDIRECT(\"'\"&F4616&\"'!\"&H4616),\"0\"),Notes!$B$5:$C$100,2,FALSE),\"\"))","v":""},"2a","$S$115","$T$115"]
[20086,{"$f":"Menu!$F$29","v":"X"},{"$f":"Menu!$J$29","v":2020},{"$f":"IF(ISBLANK(INDIRECT(\"'\"&F4617&\"'!\"&G4617)),\"\",INDIRECT(\"'\"&F4617&\"'!\"&G4617))","v":""},{"$f":"IF(ISBLANK(INDIRECT(\"'\"&F4617&\"'!\"&H4617)),\"\",IFERROR(VLOOKUP(TEXT(INDIRECT(\"'\"&F4617&\"'!\"&H4617),\"0\"),Notes!$B$5:$C$100,2,FALSE),\"\"))","v":""},"2a","$Q$115","$R$115"]
[20087,{"$f":"Menu!$F$29","v":"X"},{"$f":"Menu!$J$29","v":2020},{"$f":"IF(ISBLANK(INDIRECT(\"'\"&F4618&\"'!\"&G4618)),\"\",INDIRECT(\"'\"&F4618&\"'!\"&G4618))","v":""},{"$f":"IF(ISBLANK(INDIRECT(\"'\"&F4618&\"'!\"&H4618)),\"\",IFERROR(VLOOKUP(TEXT(INDIRECT(\"'\"&F4618&\"'!\"&H4618),\"0\"),Notes!$B$5:$C$100,2,FALSE),\"\"))","v":""},"2d","$K$115","$L$115"]
[20088,{"$f":"Menu!$F$29","v":"X"},{"$f":"Menu!$J$29","v":2020},{"$f":"IF(ISBLANK(INDIRECT(\"'\"&F4619&\"'!\"&G4619)),\"\",INDIRECT(\"'\"&F4619&\"'!\"&G4619))","v":""},{"$f":"IF(ISBLANK(INDIRECT(\"'\"&F4619&\"'!\"&H4619)),\"\",IFERROR(VLOOKUP(TEXT(INDIRECT(\"'\"&F4619&\"'!\"&H4619),\"0\"),Notes!$B$5:$C$100,2,FALSE),\"\"))","v":""},"2d","$O$115","$P$115"]
[20089,{"$f":"Menu!$F$29","v":"X"},{"$f":"Menu!$J$29","v":2020},{"$f":"IF(ISBLANK(INDIRECT(\"'\"&F4620&\"'!\"&G4620)),\"\",INDIRECT(\"'\"&F4620&\"'!\"&G4620))","v":""},{"$f":"IF(ISBLANK(INDIRECT(\"'\"&F4620&\"'!\"&H4620)),\"\",IFERROR(VLOOKUP(TEXT(INDIRECT(\"'\"&F4620&\"'!\"&H4620),\"0\"),Notes!$B$5:$C$100,2,FALSE),\"\"))","v":""},"2d","$M$115","$N$115"]
[20090,{"$f":"Menu!$F$29","v":"X"},{"$f":"Menu!$J$29","v":2020},{"$f":"IF(ISBLANK(INDIRECT(\"'\"&F4621&\"'!\"&G4621)),\"\",INDIRECT(\"'\"&F4621&\"'!\"&G4621))","v":""},{"$f":"IF(ISBLANK(INDIRECT(\"'\"&F4621&\"'!\"&H4621)),\"\",IFERROR(VLOOKUP(TEXT(INDIRECT(\"'\"&F4621&\"'!\"&H4621),\"0\"),Notes!$B$5:$C$100,2,FALSE),\"\"))","v":""},"2d","$Q$115","$R$115"]
[20091,{"$f":"Menu!$F$29","v":"X"},{"$f":"Menu!$J$29","v":2020},{"$f":"IF(ISBLANK(INDIRECT(\"'\"&F4622&\"'!\"&G4622)),\"\",INDIRECT(\"'\"&F4622&\"'!\"&G4622))","v":""},{"$f":"IF(ISBLANK(INDIRECT(\"'\"&F4622&\"'!\"&H4622)),\"\",IFERROR(VLOOKUP(TEXT(INDIRECT(\"'\"&F4622&\"'!\"&H4622),\"0\"),Notes!$B$5:$C$100,2,FALSE),\"\"))","v":""},"2d","$U$115","$V$115"]
[20092,{"$f":"Menu!$F$29","v":"X"},{"$f":"Menu!$J$29","v":2020},{"$f":"IF(ISBLANK(INDIRECT(\"'\"&F4623&\"'!\"&G4623)),\"\",INDIRECT(\"'\"&F4623&\"'!\"&G4623))","v":""},{"$f":"IF(ISBLANK(INDIRECT(\"'\"&F4623&\"'!\"&H4623)),\"\",IFERROR(VLOOKUP(TEXT(INDIRECT(\"'\"&F4623&\"'!\"&H4623),\"0\"),Notes!$B$5:$C$100,2,FALSE),\"\"))","v":""},"2d","$S$115","$T$115"]
[20093,{"$f":"Menu!$F$29","v":"X"},{"$f":"Menu!$J$29","v":2020},{"$f":"IF(ISBLANK(INDIRECT(\"'\"&F4624&\"'!\"&G4624)),\"\",INDIRECT(\"'\"&F4624&\"'!\"&G4624))","v":""},{"$f":"IF(ISBLANK(INDIRECT(\"'\"&F4624&\"'!\"&H4624)),\"\",IFERROR(VLOOKUP(TEXT(INDIRECT(\"'\"&F4624&\"'!\"&H4624),\"0\"),Notes!$B$5:$C$100,2,FALSE),\"\"))","v":""},"2a","$O$115","$P$115"]
[20094,{"$f":"Menu!$F$29","v":"X"},{"$f":"Menu!$J$29","v":2020},{"$f":"IF(ISBLANK(INDIRECT(\"'\"&F4625&\"'!\"&G4625)),\"\",INDIRECT(\"'\"&F4625&\"'!\"&G4625))","v":""},{"$f":"IF(ISBLANK(INDIRECT(\"'\"&F4625&\"'!\"&H4625)),\"\",IFERROR(VLOOKUP(TEXT(INDIRECT(\"'\"&F4625&\"'!\"&H4625),\"0\"),Notes!$B$5:$C$100,2,FALSE),\"\"))","v":""},"2a","$M$115","$N$115"]
[20095,{"$f":"Menu!$F$29","v":"X"},{"$f":"Menu!$J$29","v":2020},{"$f":"IF(ISBLANK(INDIRECT(\"'\"&F4626&\"'!\"&G4626)),\"\",INDIRECT(\"'\"&F4626&\"'!\"&G4626))","v":""},{"$f":"IF(ISBLANK(INDIRECT(\"'\"&F4626&\"'!\"&H4626)),\"\",IFERROR(VLOOKUP(TEXT(INDIRECT(\"'\"&F4626&\"'!\"&H4626),\"0\"),Notes!$B$5:$C$100,2,FALSE),\"\"))","v":""},"2a","$K$115","$L$115"]
[20096,{"$f":"Menu!$F$29","v":"X"},{"$f":"Menu!$J$29","v":2020},{"$f":"IF(ISBLANK(INDIRECT(\"'\"&F4627&\"'!\"&G4627)),\"\",INDIRECT(\"'\"&F4627&\"'!\"&G4627))","v":""},{"$f":"IF(ISBLANK(INDIRECT(\"'\"&F4627&\"'!\"&H4627)),\"\",IFERROR(VLOOKUP(TEXT(INDIRECT(\"'\"&F4627&\"'!\"&H4627),\"0\"),Notes!$B$5:$C$100,2,FALSE),\"\"))","v":""},"2a","$E$115","$F$115"]
[20097,{"$f":"Menu!$F$29","v":"X"},{"$f":"Menu!$J$29","v":2020},{"$f":"IF(ISBLANK(INDIRECT(\"'\"&F4628&\"'!\"&G4628)),\"\",INDIRECT(\"'\"&F4628&\"'!\"&G4628))","v":""},{"$f":"IF(ISBLANK(INDIRECT(\"'\"&F4628&\"'!\"&H4628)),\"\",IFERROR(VLOOKUP(TEXT(INDIRECT(\"'\"&F4628&\"'!\"&H4628),\"0\"),Notes!$B$5:$C$100,2,FALSE),\"\"))","v":""},"2b","$K$116","$L$116"]
[20098,{"$f":"Menu!$F$29","v":"X"},{"$f":"Menu!$J$29","v":2020},{"$f":"IF(ISBLANK(INDIRECT(\"'\"&F4629&\"'!\"&G4629)),\"\",INDIRECT(\"'\"&F4629&\"'!\"&G4629))","v":""},{"$f":"IF(ISBLANK(INDIRECT(\"'\"&F4629&\"'!\"&H4629)),\"\",IFERROR(VLOOKUP(TEXT(INDIRECT(\"'\"&F4629&\"'!\"&H4629),\"0\"),Notes!$B$5:$C$100,2,FALSE),\"\"))","v":""},"2b","$O$116","$P$116"]
[20099,{"$f":"Menu!$F$29","v":"X"},{"$f":"Menu!$J$29","v":2020},{"$f":"IF(ISBLANK(INDIRECT(\"'\"&F4630&\"'!\"&G4630)),\"\",INDIRECT(\"'\"&F4630&\"'!\"&G4630))","v":""},{"$f":"IF(ISBLANK(INDIRECT(\"'\"&F4630&\"'!\"&H4630)),\"\",IFERROR(VLOOKUP(TEXT(INDIRECT(\"'\"&F4630&\"'!\"&H4630),\"0\"),Notes!$B$5:$C$100,2,FALSE),\"\"))","v":""},"2b","$M$116","$N$116"]
[20100,{"$f":"Menu!$F$29","v":"X"},{"$f":"Menu!$J$29","v":2020},{"$f":"IF(ISBLANK(INDIRECT(\"'\"&F4631&\"'!\"&G4631)),\"\",INDIRECT(\"'\"&F4631&\"'!\"&G4631))","v":""},{"$f":"IF(ISBLANK(INDIRECT(\"'\"&F4631&\"'!\"&H4631)),\"\",IFERROR(VLOOKUP(TEXT(INDIRECT(\"'\"&F4631&\"'!\"&H4631),\"0\"),Notes!$B$5:$C$100,2,FALSE),\"\"))","v":""},"2b","$Q$116","$R$116"]
[20101,{"$f":"Menu!$F$29","v":"X"},{"$f":"Menu!$J$29","v":2020},{"$f":"IF(ISBLANK(INDIRECT(\"'\"&F4632&\"'!\"&G4632)),\"\",INDIRECT(\"'\"&F4632&\"'!\"&G4632))","v":""},{"$f":"IF(ISBLANK(INDIRECT(\"'\"&F4632&\"'!\"&H4632)),\"\",IFERROR(VLOOKUP(TEXT(INDIRECT(\"'\"&F4632&\"'!\"&H4632),\"0\"),Notes!$B$5:$C$100,2,FALSE),\"\"))","v":""},"2b","$U$116","$V$116"]
[20102,{"$f":"Menu!$F$29","v":"X"},{"$f":"Menu!$J$29","v":2020},{"$f":"IF(ISBLANK(INDIRECT(\"'\"&F4633&\"'!\"&G4633)),\"\",INDIRECT(\"'\"&F4633&\"'!\"&G4633))","v":""},{"$f":"IF(ISBLANK(INDIRECT(\"'\"&F4633&\"'!\"&H4633)),\"\",IFERROR(VLOOKUP(TEXT(INDIRECT(\"'\"&F4633&\"'!\"&H4633),\"0\"),Notes!$B$5:$C$100,2,FALSE),\"\"))","v":""},"2b","$S$116","$T$116"]
[20103,{"$f":"Menu!$F$29","v":"X"},{"$f":"Menu!$J$29","v":2020},{"$f":"IF(ISBLANK(INDIRECT(\"'\"&F4634&\"'!\"&G4634)),\"\",INDIRECT(\"'\"&F4634&\"'!\"&G4634))","v":""},{"$f":"IF(ISBLANK(INDIRECT(\"'\"&F4634&\"'!\"&H4634)),\"\",IFERROR(VLOOKUP(TEXT(INDIRECT(\"'\"&F4634&\"'!\"&H4634),\"0\"),Notes!$B$5:$C$100,2,FALSE),\"\"))","v":""},"2a","$I$116","$J$116"]
[20104,{"$f":"Menu!$F$29","v":"X"},{"$f":"Menu!$J$29","v":2020},{"$f":"IF(ISBLANK(INDIRECT(\"'\"&F4635&\"'!\"&G4635)),\"\",INDIRECT(\"'\"&F4635&\"'!\"&G4635))","v":""},{"$f":"IF(ISBLANK(INDIRECT(\"'\"&F4635&\"'!\"&H4635)),\"\",IFERROR(VLOOKUP(TEXT(INDIRECT(\"'\"&F4635&\"'!\"&H4635),\"0\"),Notes!$B$5:$C$100,2,FALSE),\"\"))","v":""},"2c","$E$116","$F$116"]
[20105,{"$f":"Menu!$F$29","v":"X"},{"$f":"Menu!$J$29","v":2020},{"$f":"IF(ISBLANK(INDIRECT(\"'\"&F4636&\"'!\"&G4636)),\"\",INDIRECT(\"'\"&F4636&\"'!\"&G4636))","v":""},{"$f":"IF(ISBLANK(INDIRECT(\"'\"&F4636&\"'!\"&H4636)),\"\",IFERROR(VLOOKUP(TEXT(INDIRECT(\"'\"&F4636&\"'!\"&H4636),\"0\"),Notes!$B$5:$C$100,2,FALSE),\"\"))","v":""},"2c","$I$116","$J$116"]
[20106,{"$f":"Menu!$F$29","v":"X"},{"$f":"Menu!$J$29","v":2020},{"$f":"IF(ISBLANK(INDIRECT(\"'\"&F4637&\"'!\"&G4637)),\"\",INDIRECT(\"'\"&F4637&\"'!\"&G4637))","v":""},{"$f":"IF(ISBLANK(INDIRECT(\"'\"&F4637&\"'!\"&H4637)),\"\",IFERROR(VLOOKUP(TEXT(INDIRECT(\"'\"&F4637&\"'!\"&H4637),\"0\"),Notes!$B$5:$C$100,2,FALSE),\"\"))","v":""},"2c","$G$116","$H$116"]
[20107,{"$f":"Menu!$F$29","v":"X"},{"$f":"Menu!$J$29","v":2020},{"$f":"IF(ISBLANK(INDIRECT(\"'\"&F4638&\"'!\"&G4638)),\"\",INDIRECT(\"'\"&F4638&\"'!\"&G4638))","v":""},{"$f":"IF(ISBLANK(INDIRECT(\"'\"&F4638&\"'!\"&H4638)),\"\",IFERROR(VLOOKUP(TEXT(INDIRECT(\"'\"&F4638&\"'!\"&H4638),\"0\"),Notes!$B$5:$C$100,2,FALSE),\"\"))","v":""},"2c","$K$116","$L$116"]
[20108,{"$f":"Menu!$F$29","v":"X"},{"$f":"Menu!$J$29","v":2020},{"$f":"IF(ISBLANK(INDIRECT(\"'\"&F4639&\"'!\"&G4639)),\"\",INDIRECT(\"'\"&F4639&\"'!\"&G4639))","v":""},{"$f":"IF(ISBLANK(INDIRECT(\"'\"&F4639&\"'!\"&H4639)),\"\",IFERROR(VLOOKUP(TEXT(INDIRECT(\"'\"&F4639&\"'!\"&H4639),\"0\"),Notes!$B$5:$C$100,2,FALSE),\"\"))","v":""},"2c","$O$116","$P$116"]
[20109,{"$f":"Menu!$F$29","v":"X"},{"$f":"Menu!$J$29","v":2020},{"$f":"IF(ISBLANK(INDIRECT(\"'\"&F4640&\"'!\"&G4640)),\"\",INDIRECT(\"'\"&F4640&\"'!\"&G4640))","v":""},{"$f":"IF(ISBLANK(INDIRECT(\"'\"&F4640&\"'!\"&H4640)),\"\",IFERROR(VLOOKUP(TEXT(INDIRECT(\"'\"&F4640&\"'!\"&H4640),\"0\"),Notes!$B$5:$C$100,2,FALSE),\"\"))","v":""},"2c","$M$116","$N$116"]
[20110,{"$f":"Menu!$F$29","v":"X"},{"$f":"Menu!$J$29","v":2020},{"$f":"IF(ISBLANK(INDIRECT(\"'\"&F4641&\"'!\"&G4641)),\"\",INDIRECT(\"'\"&F4641&\"'!\"&G4641))","v":""},{"$f":"IF(ISBLANK(INDIRECT(\"'\"&F4641&\"'!\"&H4641)),\"\",IFERROR(VLOOKUP(TEXT(INDIRECT(\"'\"&F4641&\"'!\"&H4641),\"0\"),Notes!$B$5:$C$100,2,FALSE),\"\"))","v":""},"2c","$Q$116","$R$116"]
[20111,{"$f":"Menu!$F$29","v":"X"},{"$f":"Menu!$J$29","v":2020},{"$f":"IF(ISBLANK(INDIRECT(\"'\"&F4642&\"'!\"&G4642)),\"\",INDIRECT(\"'\"&F4642&\"'!\"&G4642))","v":""},{"$f":"IF(ISBLANK(INDIRECT(\"'\"&F4642&\"'!\"&H4642)),\"\",IFERROR(VLOOKUP(TEXT(INDIRECT(\"'\"&F4642&\"'!\"&H4642),\"0\"),Notes!$B$5:$C$100,2,FALSE),\"\"))","v":""},"2c","$U$116","$V$116"]
[20112,{"$f":"Menu!$F$29","v":"X"},{"$f":"Menu!$J$29","v":2020},{"$f":"IF(ISBLANK(INDIRECT(\"'\"&F4643&\"'!\"&G4643)),\"\",INDIRECT(\"'\"&F4643&\"'!\"&G4643))","v":""},{"$f":"IF(ISBLANK(INDIRECT(\"'\"&F4643&\"'!\"&H4643)),\"\",IFERROR(VLOOKUP(TEXT(INDIRECT(\"'\"&F4643&\"'!\"&H4643),\"0\"),Notes!$B$5:$C$100,2,FALSE),\"\"))","v":""},"2c","$S$116","$T$116"]
[20113,{"$f":"Menu!$F$29","v":"X"},{"$f":"Menu!$J$29","v":2020},{"$f":"IF(ISBLANK(INDIRECT(\"'\"&F4644&\"'!\"&G4644)),\"\",INDIRECT(\"'\"&F4644&\"'!\"&G4644))","v":""},{"$f":"IF(ISBLANK(INDIRECT(\"'\"&F4644&\"'!\"&H4644)),\"\",IFERROR(VLOOKUP(TEXT(INDIRECT(\"'\"&F4644&\"'!\"&H4644),\"0\"),Notes!$B$5:$C$100,2,FALSE),\"\"))","v":""},"2c","$W$116","$X$116"]
[20114,{"$f":"Menu!$F$29","v":"X"},{"$f":"Menu!$J$29","v":2020},{"$f":"IF(ISBLANK(INDIRECT(\"'\"&F4645&\"'!\"&G4645)),\"\",INDIRECT(\"'\"&F4645&\"'!\"&G4645))","v":""},{"$f":"IF(ISBLANK(INDIRECT(\"'\"&F4645&\"'!\"&H4645)),\"\",IFERROR(VLOOKUP(TEXT(INDIRECT(\"'\"&F4645&\"'!\"&H4645),\"0\"),Notes!$B$5:$C$100,2,FALSE),\"\"))","v":""},"2c","$AA$116","$AB$116"]
[20115,{"$f":"Menu!$F$29","v":"X"},{"$f":"Menu!$J$29","v":2020},{"$f":"IF(ISBLANK(INDIRECT(\"'\"&F4646&\"'!\"&G4646)),\"\",INDIRECT(\"'\"&F4646&\"'!\"&G4646))","v":""},{"$f":"IF(ISBLANK(INDIRECT(\"'\"&F4646&\"'!\"&H4646)),\"\",IFERROR(VLOOKUP(TEXT(INDIRECT(\"'\"&F4646&\"'!\"&H4646),\"0\"),Notes!$B$5:$C$100,2,FALSE),\"\"))","v":""},"2c","$Y$116","$Z$116"]
[20116,{"$f":"Menu!$F$29","v":"X"},{"$f":"Menu!$J$29","v":2020},{"$f":"IF(ISBLANK(INDIRECT(\"'\"&F4647&\"'!\"&G4647)),\"\",INDIRECT(\"'\"&F4647&\"'!\"&G4647))","v":""},{"$f":"IF(ISBLANK(INDIRECT(\"'\"&F4647&\"'!\"&H4647)),\"\",IFERROR(VLOOKUP(TEXT(INDIRECT(\"'\"&F4647&\"'!\"&H4647),\"0\"),Notes!$B$5:$C$100,2,FALSE),\"\"))","v":""},"2e","$BG$117","$BH$117"]
[20117,{"$f":"Menu!$F$29","v":"X"},{"$f":"Menu!$J$29","v":2020},{"$f":"IF(ISBLANK(INDIRECT(\"'\"&F4648&\"'!\"&G4648)),\"\",INDIRECT(\"'\"&F4648&\"'!\"&G4648))","v":""},{"$f":"IF(ISBLANK(INDIRECT(\"'\"&F4648&\"'!\"&H4648)),\"\",IFERROR(VLOOKUP(TEXT(INDIRECT(\"'\"&F4648&\"'!\"&H4648),\"0\"),Notes!$B$5:$C$100,2,FALSE),\"\"))","v":""},"2e","$BK$117","$BL$117"]
[20118,{"$f":"Menu!$F$29","v":"X"},{"$f":"Menu!$J$29","v":2020},{"$f":"IF(ISBLANK(INDIRECT(\"'\"&F4649&\"'!\"&G4649)),\"\",INDIRECT(\"'\"&F4649&\"'!\"&G4649))","v":""},{"$f":"IF(ISBLANK(INDIRECT(\"'\"&F4649&\"'!\"&H4649)),\"\",IFERROR(VLOOKUP(TEXT(INDIRECT(\"'\"&F4649&\"'!\"&H4649),\"0\"),Notes!$B$5:$C$100,2,FALSE),\"\"))","v":""},"2e","$BI$117","$BJ$117"]
[20119,{"$f":"Menu!$F$29","v":"X"},{"$f":"Menu!$J$29","v":2020},{"$f":"IF(ISBLANK(INDIRECT(\"'\"&F4650&\"'!\"&G4650)),\"\",INDIRECT(\"'\"&F4650&\"'!\"&G4650))","v":""},{"$f":"IF(ISBLANK(INDIRECT(\"'\"&F4650&\"'!\"&H4650)),\"\",IFERROR(VLOOKUP(TEXT(INDIRECT(\"'\"&F4650&\"'!\"&H4650),\"0\"),Notes!$B$5:$C$100,2,FALSE),\"\"))","v":""},"2e","$E$117","$F$117"]
[20120,{"$f":"Menu!$F$29","v":"X"},{"$f":"Menu!$J$29","v":2020},{"$f":"IF(ISBLANK(INDIRECT(\"'\"&F4651&\"'!\"&G4651)),\"\",INDIRECT(\"'\"&F4651&\"'!\"&G4651))","v":""},{"$f":"IF(ISBLANK(INDIRECT(\"'\"&F4651&\"'!\"&H4651)),\"\",IFERROR(VLOOKUP(TEXT(INDIRECT(\"'\"&F4651&\"'!\"&H4651),\"0\"),Notes!$B$5:$C$100,2,FALSE),\"\"))","v":""},"2e","$I$117","$J$117"]
[20121,{"$f":"Menu!$F$29","v":"X"},{"$f":"Menu!$J$29","v":2020},{"$f":"IF(ISBLANK(INDIRECT(\"'\"&F4652&\"'!\"&G4652)),\"\",INDIRECT(\"'\"&F4652&\"'!\"&G4652))","v":""},{"$f":"IF(ISBLANK(INDIRECT(\"'\"&F4652&\"'!\"&H4652)),\"\",IFERROR(VLOOKUP(TEXT(INDIRECT(\"'\"&F4652&\"'!\"&H4652),\"0\"),Notes!$B$5:$C$100,2,FALSE),\"\"))","v":""},"2e","$G$117","$H$117"]
[20122,{"$f":"Menu!$F$29","v":"X"},{"$f":"Menu!$J$29","v":2020},{"$f":"IF(ISBLANK(INDIRECT(\"'\"&F4653&\"'!\"&G4653)),\"\",INDIRECT(\"'\"&F4653&\"'!\"&G4653))","v":""},{"$f":"IF(ISBLANK(INDIRECT(\"'\"&F4653&\"'!\"&H4653)),\"\",IFERROR(VLOOKUP(TEXT(INDIRECT(\"'\"&F4653&\"'!\"&H4653),\"0\"),Notes!$B$5:$C$100,2,FALSE),\"\"))","v":""},"2e","$K$117","$L$117"]
[20123,{"$f":"Menu!$F$29","v":"X"},{"$f":"Menu!$J$29","v":2020},{"$f":"IF(ISBLANK(INDIRECT(\"'\"&F4654&\"'!\"&G4654)),\"\",INDIRECT(\"'\"&F4654&\"'!\"&G4654))","v":""},{"$f":"IF(ISBLANK(INDIRECT(\"'\"&F4654&\"'!\"&H4654)),\"\",IFERROR(VLOOKUP(TEXT(INDIRECT(\"'\"&F4654&\"'!\"&H4654),\"0\"),Notes!$B$5:$C$100,2,FALSE),\"\"))","v":""},"2e","$O$117","$P$117"]
[20124,{"$f":"Menu!$F$29","v":"X"},{"$f":"Menu!$J$29","v":2020},{"$f":"IF(ISBLANK(INDIRECT(\"'\"&F4655&\"'!\"&G4655)),\"\",INDIRECT(\"'\"&F4655&\"'!\"&G4655))","v":""},{"$f":"IF(ISBLANK(INDIRECT(\"'\"&F4655&\"'!\"&H4655)),\"\",IFERROR(VLOOKUP(TEXT(INDIRECT(\"'\"&F4655&\"'!\"&H4655),\"0\"),Notes!$B$5:$C$100,2,FALSE),\"\"))","v":""},"2e","$M$117","$N$117"]
[20125,{"$f":"Menu!$F$29","v":"X"},{"$f":"Menu!$J$29","v":2020},{"$f":"IF(ISBLANK(INDIRECT(\"'\"&F4656&\"'!\"&G4656)),\"\",INDIRECT(\"'\"&F4656&\"'!\"&G4656))","v":""},{"$f":"IF(ISBLANK(INDIRECT(\"'\"&F4656&\"'!\"&H4656)),\"\",IFERROR(VLOOKUP(TEXT(INDIRECT(\"'\"&F4656&\"'!\"&H4656),\"0\"),Notes!$B$5:$C$100,2,FALSE),\"\"))","v":""},"2e","$Q$117","$R$117"]
[20126,{"$f":"Menu!$F$29","v":"X"},{"$f":"Menu!$J$29","v":2020},{"$f":"IF(ISBLANK(INDIRECT(\"'\"&F4657&\"'!\"&G4657)),\"\",INDIRECT(\"'\"&F4657&\"'!\"&G4657))","v":""},{"$f":"IF(ISBLANK(INDIRECT(\"'\"&F4657&\"'!\"&H4657)),\"\",IFERROR(VLOOKUP(TEXT(INDIRECT(\"'\"&F4657&\"'!\"&H4657),\"0\"),Notes!$B$5:$C$100,2,FALSE),\"\"))","v":""},"2e","$U$117","$V$117"]
[20127,{"$f":"Menu!$F$29","v":"X"},{"$f":"Menu!$J$29","v":2020},{"$f":"IF(ISBLANK(INDIRECT(\"'\"&F4658&\"'!\"&G4658)),\"\",INDIRECT(\"'\"&F4658&\"'!\"&G4658))","v":""},{"$f":"IF(ISBLANK(INDIRECT(\"'\"&F4658&\"'!\"&H4658)),\"\",IFERROR(VLOOKUP(TEXT(INDIRECT(\"'\"&F4658&\"'!\"&H4658),\"0\"),Notes!$B$5:$C$100,2,FALSE),\"\"))","v":""},"2e","$S$117","$T$117"]
[20128,{"$f":"Menu!$F$29","v":"X"},{"$f":"Menu!$J$29","v":2020},{"$f":"IF(ISBLANK(INDIRECT(\"'\"&F4659&\"'!\"&G4659)),\"\",INDIRECT(\"'\"&F4659&\"'!\"&G4659))","v":""},{"$f":"IF(ISBLANK(INDIRECT(\"'\"&F4659&\"'!\"&H4659)),\"\",IFERROR(VLOOKUP(TEXT(INDIRECT(\"'\"&F4659&\"'!\"&H4659),\"0\"),Notes!$B$5:$C$100,2,FALSE),\"\"))","v":""},"2e","$W$117","$X$117"]
[20129,{"$f":"Menu!$F$29","v":"X"},{"$f":"Menu!$J$29","v":2020},{"$f":"IF(ISBLANK(INDIRECT(\"'\"&F4660&\"'!\"&G4660)),\"\",INDIRECT(\"'\"&F4660&\"'!\"&G4660))","v":""},{"$f":"IF(ISBLANK(INDIRECT(\"'\"&F4660&\"'!\"&H4660)),\"\",IFERROR(VLOOKUP(TEXT(INDIRECT(\"'\"&F4660&\"'!\"&H4660),\"0\"),Notes!$B$5:$C$100,2,FALSE),\"\"))","v":""},"2e","$AA$117","$AB$117"]
[20130,{"$f":"Menu!$F$29","v":"X"},{"$f":"Menu!$J$29","v":2020},{"$f":"IF(ISBLANK(INDIRECT(\"'\"&F4661&\"'!\"&G4661)),\"\",INDIRECT(\"'\"&F4661&\"'!\"&G4661))","v":""},{"$f":"IF(ISBLANK(INDIRECT(\"'\"&F4661&\"'!\"&H4661)),\"\",IFERROR(VLOOKUP(TEXT(INDIRECT(\"'\"&F4661&\"'!\"&H4661),\"0\"),Notes!$B$5:$C$100,2,FALSE),\"\"))","v":""},"2e","$Y$117","$Z$117"]
[20131,{"$f":"Menu!$F$29","v":"X"},{"$f":"Menu!$J$29","v":2020},{"$f":"IF(ISBLANK(INDIRECT(\"'\"&F4662&\"'!\"&G4662)),\"\",INDIRECT(\"'\"&F4662&\"'!\"&G4662))","v":""},{"$f":"IF(ISBLANK(INDIRECT(\"'\"&F4662&\"'!\"&H4662)),\"\",IFERROR(VLOOKUP(TEXT(INDIRECT(\"'\"&F4662&\"'!\"&H4662),\"0\"),Notes!$B$5:$C$100,2,FALSE),\"\"))","v":""},"2e","$AC$117","$AD$117"]
[20132,{"$f":"Menu!$F$29","v":"X"},{"$f":"Menu!$J$29","v":2020},{"$f":"IF(ISBLANK(INDIRECT(\"'\"&F4663&\"'!\"&G4663)),\"\",INDIRECT(\"'\"&F4663&\"'!\"&G4663))","v":""},{"$f":"IF(ISBLANK(INDIRECT(\"'\"&F4663&\"'!\"&H4663)),\"\",IFERROR(VLOOKUP(TEXT(INDIRECT(\"'\"&F4663&\"'!\"&H4663),\"0\"),Notes!$B$5:$C$100,2,FALSE),\"\"))","v":""},"2e","$AG$117","$AH$117"]
[20133,{"$f":"Menu!$F$29","v":"X"},{"$f":"Menu!$J$29","v":2020},{"$f":"IF(ISBLANK(INDIRECT(\"'\"&F4664&\"'!\"&G4664)),\"\",INDIRECT(\"'\"&F4664&\"'!\"&G4664))","v":""},{"$f":"IF(ISBLANK(INDIRECT(\"'\"&F4664&\"'!\"&H4664)),\"\",IFERROR(VLOOKUP(TEXT(INDIRECT(\"'\"&F4664&\"'!\"&H4664),\"0\"),Notes!$B$5:$C$100,2,FALSE),\"\"))","v":""},"2e","$AE$117","$AF$117"]
[20134,{"$f":"Menu!$F$29","v":"X"},{"$f":"Menu!$J$29","v":2020},{"$f":"IF(ISBLANK(INDIRECT(\"'\"&F4665&\"'!\"&G4665)),\"\",INDIRECT(\"'\"&F4665&\"'!\"&G4665))","v":""},{"$f":"IF(ISBLANK(INDIRECT(\"'\"&F4665&\"'!\"&H4665)),\"\",IFERROR(VLOOKUP(TEXT(INDIRECT(\"'\"&F4665&\"'!\"&H4665),\"0\"),Notes!$B$5:$C$100,2,FALSE),\"\"))","v":""},"2e","$AI$117","$AJ$117"]
[20135,{"$f":"Menu!$F$29","v":"X"},{"$f":"Menu!$J$29","v":2020},{"$f":"IF(ISBLANK(INDIRECT(\"'\"&F4666&\"'!\"&G4666)),\"\",INDIRECT(\"'\"&F4666&\"'!\"&G4666))","v":""},{"$f":"IF(ISBLANK(INDIRECT(\"'\"&F4666&\"'!\"&H4666)),\"\",IFERROR(VLOOKUP(TEXT(INDIRECT(\"'\"&F4666&\"'!\"&H4666),\"0\"),Notes!$B$5:$C$100,2,FALSE),\"\"))","v":""},"2e","$AM$117","$AN$117"]
[20136,{"$f":"Menu!$F$29","v":"X"},{"$f":"Menu!$J$29","v":2020},{"$f":"IF(ISBLANK(INDIRECT(\"'\"&F4667&\"'!\"&G4667)),\"\",INDIRECT(\"'\"&F4667&\"'!\"&G4667))","v":""},{"$f":"IF(ISBLANK(INDIRECT(\"'\"&F4667&\"'!\"&H4667)),\"\",IFERROR(VLOOKUP(TEXT(INDIRECT(\"'\"&F4667&\"'!\"&H4667),\"0\"),Notes!$B$5:$C$100,2,FALSE),\"\"))","v":""},"2e","$AK$117","$AL$117"]
[20137,{"$f":"Menu!$F$29","v":"X"},{"$f":"Menu!$J$29","v":2020},{"$f":"IF(ISBLANK(INDIRECT(\"'\"&F4668&\"'!\"&G4668)),\"\",INDIRECT(\"'\"&F4668&\"'!\"&G4668))","v":""},{"$f":"IF(ISBLANK(INDIRECT(\"'\"&F4668&\"'!\"&H4668)),\"\",IFERROR(VLOOKUP(TEXT(INDIRECT(\"'\"&F4668&\"'!\"&H4668),\"0\"),Notes!$B$5:$C$100,2,FALSE),\"\"))","v":""},"2e","$AO$117","$AP$117"]
[20138,{"$f":"Menu!$F$29","v":"X"},{"$f":"Menu!$J$29","v":2020},{"$f":"IF(ISBLANK(INDIRECT(\"'\"&F4669&\"'!\"&G4669)),\"\",INDIRECT(\"'\"&F4669&\"'!\"&G4669))","v":""},{"$f":"IF(ISBLANK(INDIRECT(\"'\"&F4669&\"'!\"&H4669)),\"\",IFERROR(VLOOKUP(TEXT(INDIRECT(\"'\"&F4669&\"'!\"&H4669),\"0\"),Notes!$B$5:$C$100,2,FALSE),\"\"))","v":""},"2e","$AQ$117","$AR$117"]
[20139,{"$f":"Menu!$F$29","v":"X"},{"$f":"Menu!$J$29","v":2020},{"$f":"IF(ISBLANK(INDIRECT(\"'\"&F4670&\"'!\"&G4670)),\"\",INDIRECT(\"'\"&F4670&\"'!\"&G4670))","v":""},{"$f":"IF(ISBLANK(INDIRECT(\"'\"&F4670&\"'!\"&H4670)),\"\",IFERROR(VLOOKUP(TEXT(INDIRECT(\"'\"&F4670&\"'!\"&H4670),\"0\"),Notes!$B$5:$C$100,2,FALSE),\"\"))","v":""},"2e","$AS$117","$AT$117"]
[20140,{"$f":"Menu!$F$29","v":"X"},{"$f":"Menu!$J$29","v":2020},{"$f":"IF(ISBLANK(INDIRECT(\"'\"&F4671&\"'!\"&G4671)),\"\",INDIRECT(\"'\"&F4671&\"'!\"&G4671))","v":""},{"$f":"IF(ISBLANK(INDIRECT(\"'\"&F4671&\"'!\"&H4671)),\"\",IFERROR(VLOOKUP(TEXT(INDIRECT(\"'\"&F4671&\"'!\"&H4671),\"0\"),Notes!$B$5:$C$100,2,FALSE),\"\"))","v":""},"2e","$AU$117","$AV$117"]
[20141,{"$f":"Menu!$F$29","v":"X"},{"$f":"Menu!$J$29","v":2020},{"$f":"IF(ISBLANK(INDIRECT(\"'\"&F4672&\"'!\"&G4672)),\"\",INDIRECT(\"'\"&F4672&\"'!\"&G4672))","v":""},{"$f":"IF(ISBLANK(INDIRECT(\"'\"&F4672&\"'!\"&H4672)),\"\",IFERROR(VLOOKUP(TEXT(INDIRECT(\"'\"&F4672&\"'!\"&H4672),\"0\"),Notes!$B$5:$C$100,2,FALSE),\"\"))","v":""},"2e","$AY$117","$AZ$117"]
[20142,{"$f":"Menu!$F$29","v":"X"},{"$f":"Menu!$J$29","v":2020},{"$f":"IF(ISBLANK(INDIRECT(\"'\"&F4673&\"'!\"&G4673)),\"\",INDIRECT(\"'\"&F4673&\"'!\"&G4673))","v":""},{"$f":"IF(ISBLANK(INDIRECT(\"'\"&F4673&\"'!\"&H4673)),\"\",IFERROR(VLOOKUP(TEXT(INDIRECT(\"'\"&F4673&\"'!\"&H4673),\"0\"),Notes!$B$5:$C$100,2,FALSE),\"\"))","v":""},"2e","$AW$117","$AX$117"]
[20143,{"$f":"Menu!$F$29","v":"X"},{"$f":"Menu!$J$29","v":2020},{"$f":"IF(ISBLANK(INDIRECT(\"'\"&F4674&\"'!\"&G4674)),\"\",INDIRECT(\"'\"&F4674&\"'!\"&G4674))","v":""},{"$f":"IF(ISBLANK(INDIRECT(\"'\"&F4674&\"'!\"&H4674)),\"\",IFERROR(VLOOKUP(TEXT(INDIRECT(\"'\"&F4674&\"'!\"&H4674),\"0\"),Notes!$B$5:$C$100,2,FALSE),\"\"))","v":""},"2e","$BA$117",{"$f":"IF(LEN(TRIM(MID(G4674,4,10)))-LEN(SUBSTITUTE(TRIM(MID(G4674,4,10)),\"$\",\"\"))=0,\"$\"&CHAR(CODE(MID(G4674,2,1))+1)&\"$\"&TRIM(MID(G4674,4,10)),\"$\"&MID(G4674,2,1)&CHAR(CODE(MID(G4674,3,1))+1)&\"$\"&TRIM(MID(G4674,5,11)))","v":"$BB$117"}]
[20144,{"$f":"Menu!$F$29","v":"X"},{"$f":"Menu!$J$29","v":2020},{"$f":"IF(ISBLANK(INDIRECT(\"'\"&F4675&\"'!\"&G4675)),\"\",INDIRECT(\"'\"&F4675&\"'!\"&G4675))","v":""},{"$f":"IF(ISBLANK(INDIRECT(\"'\"&F4675&\"'!\"&H4675)),\"\",IFERROR(VLOOKUP(TEXT(INDIRECT(\"'\"&F4675&\"'!\"&H4675),\"0\"),Notes!$B$5:$C$100,2,FALSE),\"\"))","v":""},"2e","$BE$117","$BF$117"]
[20145,{"$f":"Menu!$F$29","v":"X"},{"$f":"Menu!$J$29","v":2020},{"$f":"IF(ISBLANK(INDIRECT(\"'\"&F4676&\"'!\"&G4676)),\"\",INDIRECT(\"'\"&F4676&\"'!\"&G4676))","v":""},{"$f":"IF(ISBLANK(INDIRECT(\"'\"&F4676&\"'!\"&H4676)),\"\",IFERROR(VLOOKUP(TEXT(INDIRECT(\"'\"&F4676&\"'!\"&H4676),\"0\"),Notes!$B$5:$C$100,2,FALSE),\"\"))","v":""},"2e","$BC$117","$BD$117"]
[20146,{"$f":"Menu!$F$29","v":"X"},{"$f":"Menu!$J$29","v":2020},{"$f":"IF(ISBLANK(INDIRECT(\"'\"&F4677&\"'!\"&G4677)),\"\",INDIRECT(\"'\"&F4677&\"'!\"&G4677))","v":""},{"$f":"IF(ISBLANK(INDIRECT(\"'\"&F4677&\"'!\"&H4677)),\"\",IFERROR(VLOOKUP(TEXT(INDIRECT(\"'\"&F4677&\"'!\"&H4677),\"0\"),Notes!$B$5:$C$100,2,FALSE),\"\"))","v":""},"2b","$E$116","$F$116"]
[20147,{"$f":"Menu!$F$29","v":"X"},{"$f":"Menu!$J$29","v":2020},{"$f":"IF(ISBLANK(INDIRECT(\"'\"&F4678&\"'!\"&G4678)),\"\",INDIRECT(\"'\"&F4678&\"'!\"&G4678))","v":""},{"$f":"IF(ISBLANK(INDIRECT(\"'\"&F4678&\"'!\"&H4678)),\"\",IFERROR(VLOOKUP(TEXT(INDIRECT(\"'\"&F4678&\"'!\"&H4678),\"0\"),Notes!$B$5:$C$100,2,FALSE),\"\"))","v":""},"2b","$I$116","$J$116"]
[20148,{"$f":"Menu!$F$29","v":"X"},{"$f":"Menu!$J$29","v":2020},{"$f":"IF(ISBLANK(INDIRECT(\"'\"&F4679&\"'!\"&G4679)),\"\",INDIRECT(\"'\"&F4679&\"'!\"&G4679))","v":""},{"$f":"IF(ISBLANK(INDIRECT(\"'\"&F4679&\"'!\"&H4679)),\"\",IFERROR(VLOOKUP(TEXT(INDIRECT(\"'\"&F4679&\"'!\"&H4679),\"0\"),Notes!$B$5:$C$100,2,FALSE),\"\"))","v":""},"2b","$G$116","$H$116"]
[20149,{"$f":"Menu!$F$29","v":"X"},{"$f":"Menu!$J$29","v":2020},{"$f":"IF(ISBLANK(INDIRECT(\"'\"&F4680&\"'!\"&G4680)),\"\",INDIRECT(\"'\"&F4680&\"'!\"&G4680))","v":""},{"$f":"IF(ISBLANK(INDIRECT(\"'\"&F4680&\"'!\"&H4680)),\"\",IFERROR(VLOOKUP(TEXT(INDIRECT(\"'\"&F4680&\"'!\"&H4680),\"0\"),Notes!$B$5:$C$100,2,FALSE),\"\"))","v":""},"2a","$G$116","$H$116"]
[20150,{"$f":"Menu!$F$29","v":"X"},{"$f":"Menu!$J$29","v":2020},{"$f":"IF(ISBLANK(INDIRECT(\"'\"&F4681&\"'!\"&G4681)),\"\",INDIRECT(\"'\"&F4681&\"'!\"&G4681))","v":""},{"$f":"IF(ISBLANK(INDIRECT(\"'\"&F4681&\"'!\"&H4681)),\"\",IFERROR(VLOOKUP(TEXT(INDIRECT(\"'\"&F4681&\"'!\"&H4681),\"0\"),Notes!$B$5:$C$100,2,FALSE),\"\"))","v":""},"2b","$W$116","$X$116"]
[20151,{"$f":"Menu!$F$29","v":"X"},{"$f":"Menu!$J$29","v":2020},{"$f":"IF(ISBLANK(INDIRECT(\"'\"&F4682&\"'!\"&G4682)),\"\",INDIRECT(\"'\"&F4682&\"'!\"&G4682))","v":""},{"$f":"IF(ISBLANK(INDIRECT(\"'\"&F4682&\"'!\"&H4682)),\"\",IFERROR(VLOOKUP(TEXT(INDIRECT(\"'\"&F4682&\"'!\"&H4682),\"0\"),Notes!$B$5:$C$100,2,FALSE),\"\"))","v":""},"2b","$AA$116","$AB$116"]
[20152,{"$f":"Menu!$F$29","v":"X"},{"$f":"Menu!$J$29","v":2020},{"$f":"IF(ISBLANK(INDIRECT(\"'\"&F4683&\"'!\"&G4683)),\"\",INDIRECT(\"'\"&F4683&\"'!\"&G4683))","v":""},{"$f":"IF(ISBLANK(INDIRECT(\"'\"&F4683&\"'!\"&H4683)),\"\",IFERROR(VLOOKUP(TEXT(INDIRECT(\"'\"&F4683&\"'!\"&H4683),\"0\"),Notes!$B$5:$C$100,2,FALSE),\"\"))","v":""},"2b","$Y$116","$Z$116"]
[20153,{"$f":"Menu!$F$29","v":"X"},{"$f":"Menu!$J$29","v":2020},{"$f":"IF(ISBLANK(INDIRECT(\"'\"&F4684&\"'!\"&G4684)),\"\",INDIRECT(\"'\"&F4684&\"'!\"&G4684))","v":""},{"$f":"IF(ISBLANK(INDIRECT(\"'\"&F4684&\"'!\"&H4684)),\"\",IFERROR(VLOOKUP(TEXT(INDIRECT(\"'\"&F4684&\"'!\"&H4684),\"0\"),Notes!$B$5:$C$100,2,FALSE),\"\"))","v":""},"2d","$AC$116","$AD$116"]
[20154,{"$f":"Menu!$F$29","v":"X"},{"$f":"Menu!$J$29","v":2020},{"$f":"IF(ISBLANK(INDIRECT(\"'\"&F4685&\"'!\"&G4685)),\"\",INDIRECT(\"'\"&F4685&\"'!\"&G4685))","v":""},{"$f":"IF(ISBLANK(INDIRECT(\"'\"&F4685&\"'!\"&H4685)),\"\",IFERROR(VLOOKUP(TEXT(INDIRECT(\"'\"&F4685&\"'!\"&H4685),\"0\"),Notes!$B$5:$C$100,2,FALSE),\"\"))","v":""},"2d","$AG$116","$AH$116"]
[20155,{"$f":"Menu!$F$29","v":"X"},{"$f":"Menu!$J$29","v":2020},{"$f":"IF(ISBLANK(INDIRECT(\"'\"&F4686&\"'!\"&G4686)),\"\",INDIRECT(\"'\"&F4686&\"'!\"&G4686))","v":""},{"$f":"IF(ISBLANK(INDIRECT(\"'\"&F4686&\"'!\"&H4686)),\"\",IFERROR(VLOOKUP(TEXT(INDIRECT(\"'\"&F4686&\"'!\"&H4686),\"0\"),Notes!$B$5:$C$100,2,FALSE),\"\"))","v":""},"2d","$AE$116","$AF$116"]
[20156,{"$f":"Menu!$F$29","v":"X"},{"$f":"Menu!$J$29","v":2020},{"$f":"IF(ISBLANK(INDIRECT(\"'\"&F4687&\"'!\"&G4687)),\"\",INDIRECT(\"'\"&F4687&\"'!\"&G4687))","v":""},{"$f":"IF(ISBLANK(INDIRECT(\"'\"&F4687&\"'!\"&H4687)),\"\",IFERROR(VLOOKUP(TEXT(INDIRECT(\"'\"&F4687&\"'!\"&H4687),\"0\"),Notes!$B$5:$C$100,2,FALSE),\"\"))","v":""},"2d","$W$116","$X$116"]
[20157,{"$f":"Menu!$F$29","v":"X"},{"$f":"Menu!$J$29","v":2020},{"$f":"IF(ISBLANK(INDIRECT(\"'\"&F4688&\"'!\"&G4688)),\"\",INDIRECT(\"'\"&F4688&\"'!\"&G4688))","v":""},{"$f":"IF(ISBLANK(INDIRECT(\"'\"&F4688&\"'!\"&H4688)),\"\",IFERROR(VLOOKUP(TEXT(INDIRECT(\"'\"&F4688&\"'!\"&H4688),\"0\"),Notes!$B$5:$C$100,2,FALSE),\"\"))","v":""},"2d","$AA$116","$AB$116"]
[20158,{"$f":"Menu!$F$29","v":"X"},{"$f":"Menu!$J$29","v":2020},{"$f":"IF(ISBLANK(INDIRECT(\"'\"&F4689&\"'!\"&G4689)),\"\",INDIRECT(\"'\"&F4689&\"'!\"&G4689))","v":""},{"$f":"IF(ISBLANK(INDIRECT(\"'\"&F4689&\"'!\"&H4689)),\"\",IFERROR(VLOOKUP(TEXT(INDIRECT(\"'\"&F4689&\"'!\"&H4689),\"0\"),Notes!$B$5:$C$100,2,FALSE),\"\"))","v":""},"2d","$Y$116","$Z$116"]
[20159,{"$f":"Menu!$F$29","v":"X"},{"$f":"Menu!$J$29","v":2020},{"$f":"IF(ISBLANK(INDIRECT(\"'\"&F4690&\"'!\"&G4690)),\"\",INDIRECT(\"'\"&F4690&\"'!\"&G4690))","v":""},{"$f":"IF(ISBLANK(INDIRECT(\"'\"&F4690&\"'!\"&H4690)),\"\",IFERROR(VLOOKUP(TEXT(INDIRECT(\"'\"&F4690&\"'!\"&H4690),\"0\"),Notes!$B$5:$C$100,2,FALSE),\"\"))","v":""},"2d","$E$116","$F$116"]
[20160,{"$f":"Menu!$F$29","v":"X"},{"$f":"Menu!$J$29","v":2020},{"$f":"IF(ISBLANK(INDIRECT(\"'\"&F4691&\"'!\"&G4691)),\"\",INDIRECT(\"'\"&F4691&\"'!\"&G4691))","v":""},{"$f":"IF(ISBLANK(INDIRECT(\"'\"&F4691&\"'!\"&H4691)),\"\",IFERROR(VLOOKUP(TEXT(INDIRECT(\"'\"&F4691&\"'!\"&H4691),\"0\"),Notes!$B$5:$C$100,2,FALSE),\"\"))","v":""},"2d","$I$116","$J$116"]
[20161,{"$f":"Menu!$F$29","v":"X"},{"$f":"Menu!$J$29","v":2020},{"$f":"IF(ISBLANK(INDIRECT(\"'\"&F4692&\"'!\"&G4692)),\"\",INDIRECT(\"'\"&F4692&\"'!\"&G4692))","v":""},{"$f":"IF(ISBLANK(INDIRECT(\"'\"&F4692&\"'!\"&H4692)),\"\",IFERROR(VLOOKUP(TEXT(INDIRECT(\"'\"&F4692&\"'!\"&H4692),\"0\"),Notes!$B$5:$C$100,2,FALSE),\"\"))","v":""},"2d","$G$116","$H$116"]
[20162,{"$f":"Menu!$F$29","v":"X"},{"$f":"Menu!$J$29","v":2020},{"$f":"IF(ISBLANK(INDIRECT(\"'\"&F4693&\"'!\"&G4693)),\"\",INDIRECT(\"'\"&F4693&\"'!\"&G4693))","v":""},{"$f":"IF(ISBLANK(INDIRECT(\"'\"&F4693&\"'!\"&H4693)),\"\",IFERROR(VLOOKUP(TEXT(INDIRECT(\"'\"&F4693&\"'!\"&H4693),\"0\"),Notes!$B$5:$C$100,2,FALSE),\"\"))","v":""},"2a","$U$116","$V$116"]
[20163,{"$f":"Menu!$F$29","v":"X"},{"$f":"Menu!$J$29","v":2020},{"$f":"IF(ISBLANK(INDIRECT(\"'\"&F4694&\"'!\"&G4694)),\"\",INDIRECT(\"'\"&F4694&\"'!\"&G4694))","v":""},{"$f":"IF(ISBLANK(INDIRECT(\"'\"&F4694&\"'!\"&H4694)),\"\",IFERROR(VLOOKUP(TEXT(INDIRECT(\"'\"&F4694&\"'!\"&H4694),\"0\"),Notes!$B$5:$C$100,2,FALSE),\"\"))","v":""},"2a","$S$116","$T$116"]
[20164,{"$f":"Menu!$F$29","v":"X"},{"$f":"Menu!$J$29","v":2020},{"$f":"IF(ISBLANK(INDIRECT(\"'\"&F4695&\"'!\"&G4695)),\"\",INDIRECT(\"'\"&F4695&\"'!\"&G4695))","v":""},{"$f":"IF(ISBLANK(INDIRECT(\"'\"&F4695&\"'!\"&H4695)),\"\",IFERROR(VLOOKUP(TEXT(INDIRECT(\"'\"&F4695&\"'!\"&H4695),\"0\"),Notes!$B$5:$C$100,2,FALSE),\"\"))","v":""},"2a","$Q$116","$R$116"]
[20165,{"$f":"Menu!$F$29","v":"X"},{"$f":"Menu!$J$29","v":2020},{"$f":"IF(ISBLANK(INDIRECT(\"'\"&F4696&\"'!\"&G4696)),\"\",INDIRECT(\"'\"&F4696&\"'!\"&G4696))","v":""},{"$f":"IF(ISBLANK(INDIRECT(\"'\"&F4696&\"'!\"&H4696)),\"\",IFERROR(VLOOKUP(TEXT(INDIRECT(\"'\"&F4696&\"'!\"&H4696),\"0\"),Notes!$B$5:$C$100,2,FALSE),\"\"))","v":""},"2d","$K$116","$L$116"]
[20166,{"$f":"Menu!$F$29","v":"X"},{"$f":"Menu!$J$29","v":2020},{"$f":"IF(ISBLANK(INDIRECT(\"'\"&F4697&\"'!\"&G4697)),\"\",INDIRECT(\"'\"&F4697&\"'!\"&G4697))","v":""},{"$f":"IF(ISBLANK(INDIRECT(\"'\"&F4697&\"'!\"&H4697)),\"\",IFERROR(VLOOKUP(TEXT(INDIRECT(\"'\"&F4697&\"'!\"&H4697),\"0\"),Notes!$B$5:$C$100,2,FALSE),\"\"))","v":""},"2d","$O$116","$P$116"]
[20167,{"$f":"Menu!$F$29","v":"X"},{"$f":"Menu!$J$29","v":2020},{"$f":"IF(ISBLANK(INDIRECT(\"'\"&F4698&\"'!\"&G4698)),\"\",INDIRECT(\"'\"&F4698&\"'!\"&G4698))","v":""},{"$f":"IF(ISBLANK(INDIRECT(\"'\"&F4698&\"'!\"&H4698)),\"\",IFERROR(VLOOKUP(TEXT(INDIRECT(\"'\"&F4698&\"'!\"&H4698),\"0\"),Notes!$B$5:$C$100,2,FALSE),\"\"))","v":""},"2d","$M$116","$N$116"]
[20168,{"$f":"Menu!$F$29","v":"X"},{"$f":"Menu!$J$29","v":2020},{"$f":"IF(ISBLANK(INDIRECT(\"'\"&F4699&\"'!\"&G4699)),\"\",INDIRECT(\"'\"&F4699&\"'!\"&G4699))","v":""},{"$f":"IF(ISBLANK(INDIRECT(\"'\"&F4699&\"'!\"&H4699)),\"\",IFERROR(VLOOKUP(TEXT(INDIRECT(\"'\"&F4699&\"'!\"&H4699),\"0\"),Notes!$B$5:$C$100,2,FALSE),\"\"))","v":""},"2d","$Q$116","$R$116"]
[20169,{"$f":"Menu!$F$29","v":"X"},{"$f":"Menu!$J$29","v":2020},{"$f":"IF(ISBLANK(INDIRECT(\"'\"&F4700&\"'!\"&G4700)),\"\",INDIRECT(\"'\"&F4700&\"'!\"&G4700))","v":""},{"$f":"IF(ISBLANK(INDIRECT(\"'\"&F4700&\"'!\"&H4700)),\"\",IFERROR(VLOOKUP(TEXT(INDIRECT(\"'\"&F4700&\"'!\"&H4700),\"0\"),Notes!$B$5:$C$100,2,FALSE),\"\"))","v":""},"2d","$U$116","$V$116"]
[20170,{"$f":"Menu!$F$29","v":"X"},{"$f":"Menu!$J$29","v":2020},{"$f":"IF(ISBLANK(INDIRECT(\"'\"&F4701&\"'!\"&G4701)),\"\",INDIRECT(\"'\"&F4701&\"'!\"&G4701))","v":""},{"$f":"IF(ISBLANK(INDIRECT(\"'\"&F4701&\"'!\"&H4701)),\"\",IFERROR(VLOOKUP(TEXT(INDIRECT(\"'\"&F4701&\"'!\"&H4701),\"0\"),Notes!$B$5:$C$100,2,FALSE),\"\"))","v":""},"2d","$S$116","$T$116"]
[20171,{"$f":"Menu!$F$29","v":"X"},{"$f":"Menu!$J$29","v":2020},{"$f":"IF(ISBLANK(INDIRECT(\"'\"&F4702&\"'!\"&G4702)),\"\",INDIRECT(\"'\"&F4702&\"'!\"&G4702))","v":""},{"$f":"IF(ISBLANK(INDIRECT(\"'\"&F4702&\"'!\"&H4702)),\"\",IFERROR(VLOOKUP(TEXT(INDIRECT(\"'\"&F4702&\"'!\"&H4702),\"0\"),Notes!$B$5:$C$100,2,FALSE),\"\"))","v":""},"2a","$O$116","$P$116"]
[20172,{"$f":"Menu!$F$29","v":"X"},{"$f":"Menu!$J$29","v":2020},{"$f":"IF(ISBLANK(INDIRECT(\"'\"&F4703&\"'!\"&G4703)),\"\",INDIRECT(\"'\"&F4703&\"'!\"&G4703))","v":""},{"$f":"IF(ISBLANK(INDIRECT(\"'\"&F4703&\"'!\"&H4703)),\"\",IFERROR(VLOOKUP(TEXT(INDIRECT(\"'\"&F4703&\"'!\"&H4703),\"0\"),Notes!$B$5:$C$100,2,FALSE),\"\"))","v":""},"2a","$M$116","$N$116"]
[20173,{"$f":"Menu!$F$29","v":"X"},{"$f":"Menu!$J$29","v":2020},{"$f":"IF(ISBLANK(INDIRECT(\"'\"&F4704&\"'!\"&G4704)),\"\",INDIRECT(\"'\"&F4704&\"'!\"&G4704))","v":""},{"$f":"IF(ISBLANK(INDIRECT(\"'\"&F4704&\"'!\"&H4704)),\"\",IFERROR(VLOOKUP(TEXT(INDIRECT(\"'\"&F4704&\"'!\"&H4704),\"0\"),Notes!$B$5:$C$100,2,FALSE),\"\"))","v":""},"2a","$K$116","$L$116"]
[20174,{"$f":"Menu!$F$29","v":"X"},{"$f":"Menu!$J$29","v":2020},{"$f":"IF(ISBLANK(INDIRECT(\"'\"&F4705&\"'!\"&G4705)),\"\",INDIRECT(\"'\"&F4705&\"'!\"&G4705))","v":""},{"$f":"IF(ISBLANK(INDIRECT(\"'\"&F4705&\"'!\"&H4705)),\"\",IFERROR(VLOOKUP(TEXT(INDIRECT(\"'\"&F4705&\"'!\"&H4705),\"0\"),Notes!$B$5:$C$100,2,FALSE),\"\"))","v":""},"2a","$E$116","$F$116"]
[20175,{"$f":"Menu!$F$29","v":"X"},{"$f":"Menu!$J$29","v":2020},{"$f":"IF(ISBLANK(INDIRECT(\"'\"&F4706&\"'!\"&G4706)),\"\",INDIRECT(\"'\"&F4706&\"'!\"&G4706))","v":""},{"$f":"IF(ISBLANK(INDIRECT(\"'\"&F4706&\"'!\"&H4706)),\"\",IFERROR(VLOOKUP(TEXT(INDIRECT(\"'\"&F4706&\"'!\"&H4706),\"0\"),Notes!$B$5:$C$100,2,FALSE),\"\"))","v":""},"2b","$K$117","$L$117"]
[20176,{"$f":"Menu!$F$29","v":"X"},{"$f":"Menu!$J$29","v":2020},{"$f":"IF(ISBLANK(INDIRECT(\"'\"&F4707&\"'!\"&G4707)),\"\",INDIRECT(\"'\"&F4707&\"'!\"&G4707))","v":""},{"$f":"IF(ISBLANK(INDIRECT(\"'\"&F4707&\"'!\"&H4707)),\"\",IFERROR(VLOOKUP(TEXT(INDIRECT(\"'\"&F4707&\"'!\"&H4707),\"0\"),Notes!$B$5:$C$100,2,FALSE),\"\"))","v":""},"2b","$O$117","$P$117"]
[20177,{"$f":"Menu!$F$29","v":"X"},{"$f":"Menu!$J$29","v":2020},{"$f":"IF(ISBLANK(INDIRECT(\"'\"&F4708&\"'!\"&G4708)),\"\",INDIRECT(\"'\"&F4708&\"'!\"&G4708))","v":""},{"$f":"IF(ISBLANK(INDIRECT(\"'\"&F4708&\"'!\"&H4708)),\"\",IFERROR(VLOOKUP(TEXT(INDIRECT(\"'\"&F4708&\"'!\"&H4708),\"0\"),Notes!$B$5:$C$100,2,FALSE),\"\"))","v":""},"2b","$M$117","$N$117"]
[20178,{"$f":"Menu!$F$29","v":"X"},{"$f":"Menu!$J$29","v":2020},{"$f":"IF(ISBLANK(INDIRECT(\"'\"&F4709&\"'!\"&G4709)),\"\",INDIRECT(\"'\"&F4709&\"'!\"&G4709))","v":""},{"$f":"IF(ISBLANK(INDIRECT(\"'\"&F4709&\"'!\"&H4709)),\"\",IFERROR(VLOOKUP(TEXT(INDIRECT(\"'\"&F4709&\"'!\"&H4709),\"0\"),Notes!$B$5:$C$100,2,FALSE),\"\"))","v":""},"2b","$Q$117","$R$117"]
[20179,{"$f":"Menu!$F$29","v":"X"},{"$f":"Menu!$J$29","v":2020},{"$f":"IF(ISBLANK(INDIRECT(\"'\"&F4710&\"'!\"&G4710)),\"\",INDIRECT(\"'\"&F4710&\"'!\"&G4710))","v":""},{"$f":"IF(ISBLANK(INDIRECT(\"'\"&F4710&\"'!\"&H4710)),\"\",IFERROR(VLOOKUP(TEXT(INDIRECT(\"'\"&F4710&\"'!\"&H4710),\"0\"),Notes!$B$5:$C$100,2,FALSE),\"\"))","v":""},"2b","$U$117","$V$117"]
[20180,{"$f":"Menu!$F$29","v":"X"},{"$f":"Menu!$J$29","v":2020},{"$f":"IF(ISBLANK(INDIRECT(\"'\"&F4711&\"'!\"&G4711)),\"\",INDIRECT(\"'\"&F4711&\"'!\"&G4711))","v":""},{"$f":"IF(ISBLANK(INDIRECT(\"'\"&F4711&\"'!\"&H4711)),\"\",IFERROR(VLOOKUP(TEXT(INDIRECT(\"'\"&F4711&\"'!\"&H4711),\"0\"),Notes!$B$5:$C$100,2,FALSE),\"\"))","v":""},"2b","$S$117","$T$117"]
[20181,{"$f":"Menu!$F$29","v":"X"},{"$f":"Menu!$J$29","v":2020},{"$f":"IF(ISBLANK(INDIRECT(\"'\"&F4712&\"'!\"&G4712)),\"\",INDIRECT(\"'\"&F4712&\"'!\"&G4712))","v":""},{"$f":"IF(ISBLANK(INDIRECT(\"'\"&F4712&\"'!\"&H4712)),\"\",IFERROR(VLOOKUP(TEXT(INDIRECT(\"'\"&F4712&\"'!\"&H4712),\"0\"),Notes!$B$5:$C$100,2,FALSE),\"\"))","v":""},"2a","$I$117","$J$117"]
[20182,{"$f":"Menu!$F$29","v":"X"},{"$f":"Menu!$J$29","v":2020},{"$f":"IF(ISBLANK(INDIRECT(\"'\"&F4713&\"'!\"&G4713)),\"\",INDIRECT(\"'\"&F4713&\"'!\"&G4713))","v":""},{"$f":"IF(ISBLANK(INDIRECT(\"'\"&F4713&\"'!\"&H4713)),\"\",IFERROR(VLOOKUP(TEXT(INDIRECT(\"'\"&F4713&\"'!\"&H4713),\"0\"),Notes!$B$5:$C$100,2,FALSE),\"\"))","v":""},"2c","$E$117","$F$117"]
[20183,{"$f":"Menu!$F$29","v":"X"},{"$f":"Menu!$J$29","v":2020},{"$f":"IF(ISBLANK(INDIRECT(\"'\"&F4714&\"'!\"&G4714)),\"\",INDIRECT(\"'\"&F4714&\"'!\"&G4714))","v":""},{"$f":"IF(ISBLANK(INDIRECT(\"'\"&F4714&\"'!\"&H4714)),\"\",IFERROR(VLOOKUP(TEXT(INDIRECT(\"'\"&F4714&\"'!\"&H4714),\"0\"),Notes!$B$5:$C$100,2,FALSE),\"\"))","v":""},"2c","$I$117","$J$117"]
[20184,{"$f":"Menu!$F$29","v":"X"},{"$f":"Menu!$J$29","v":2020},{"$f":"IF(ISBLANK(INDIRECT(\"'\"&F4715&\"'!\"&G4715)),\"\",INDIRECT(\"'\"&F4715&\"'!\"&G4715))","v":""},{"$f":"IF(ISBLANK(INDIRECT(\"'\"&F4715&\"'!\"&H4715)),\"\",IFERROR(VLOOKUP(TEXT(INDIRECT(\"'\"&F4715&\"'!\"&H4715),\"0\"),Notes!$B$5:$C$100,2,FALSE),\"\"))","v":""},"2c","$G$117","$H$117"]
[20185,{"$f":"Menu!$F$29","v":"X"},{"$f":"Menu!$J$29","v":2020},{"$f":"IF(ISBLANK(INDIRECT(\"'\"&F4716&\"'!\"&G4716)),\"\",INDIRECT(\"'\"&F4716&\"'!\"&G4716))","v":""},{"$f":"IF(ISBLANK(INDIRECT(\"'\"&F4716&\"'!\"&H4716)),\"\",IFERROR(VLOOKUP(TEXT(INDIRECT(\"'\"&F4716&\"'!\"&H4716),\"0\"),Notes!$B$5:$C$100,2,FALSE),\"\"))","v":""},"2c","$K$117","$L$117"]
[20186,{"$f":"Menu!$F$29","v":"X"},{"$f":"Menu!$J$29","v":2020},{"$f":"IF(ISBLANK(INDIRECT(\"'\"&F4717&\"'!\"&G4717)),\"\",INDIRECT(\"'\"&F4717&\"'!\"&G4717))","v":""},{"$f":"IF(ISBLANK(INDIRECT(\"'\"&F4717&\"'!\"&H4717)),\"\",IFERROR(VLOOKUP(TEXT(INDIRECT(\"'\"&F4717&\"'!\"&H4717),\"0\"),Notes!$B$5:$C$100,2,FALSE),\"\"))","v":""},"2c","$O$117","$P$117"]
[20187,{"$f":"Menu!$F$29","v":"X"},{"$f":"Menu!$J$29","v":2020},{"$f":"IF(ISBLANK(INDIRECT(\"'\"&F4718&\"'!\"&G4718)),\"\",INDIRECT(\"'\"&F4718&\"'!\"&G4718))","v":""},{"$f":"IF(ISBLANK(INDIRECT(\"'\"&F4718&\"'!\"&H4718)),\"\",IFERROR(VLOOKUP(TEXT(INDIRECT(\"'\"&F4718&\"'!\"&H4718),\"0\"),Notes!$B$5:$C$100,2,FALSE),\"\"))","v":""},"2c","$M$117","$N$117"]
[20188,{"$f":"Menu!$F$29","v":"X"},{"$f":"Menu!$J$29","v":2020},{"$f":"IF(ISBLANK(INDIRECT(\"'\"&F4719&\"'!\"&G4719)),\"\",INDIRECT(\"'\"&F4719&\"'!\"&G4719))","v":""},{"$f":"IF(ISBLANK(INDIRECT(\"'\"&F4719&\"'!\"&H4719)),\"\",IFERROR(VLOOKUP(TEXT(INDIRECT(\"'\"&F4719&\"'!\"&H4719),\"0\"),Notes!$B$5:$C$100,2,FALSE),\"\"))","v":""},"2c","$Q$117","$R$117"]
[20189,{"$f":"Menu!$F$29","v":"X"},{"$f":"Menu!$J$29","v":2020},{"$f":"IF(ISBLANK(INDIRECT(\"'\"&F4720&\"'!\"&G4720)),\"\",INDIRECT(\"'\"&F4720&\"'!\"&G4720))","v":""},{"$f":"IF(ISBLANK(INDIRECT(\"'\"&F4720&\"'!\"&H4720)),\"\",IFERROR(VLOOKUP(TEXT(INDIRECT(\"'\"&F4720&\"'!\"&H4720),\"0\"),Notes!$B$5:$C$100,2,FALSE),\"\"))","v":""},"2c","$U$117","$V$117"]
[20190,{"$f":"Menu!$F$29","v":"X"},{"$f":"Menu!$J$29","v":2020},{"$f":"IF(ISBLANK(INDIRECT(\"'\"&F4721&\"'!\"&G4721)),\"\",INDIRECT(\"'\"&F4721&\"'!\"&G4721))","v":""},{"$f":"IF(ISBLANK(INDIRECT(\"'\"&F4721&\"'!\"&H4721)),\"\",IFERROR(VLOOKUP(TEXT(INDIRECT(\"'\"&F4721&\"'!\"&H4721),\"0\"),Notes!$B$5:$C$100,2,FALSE),\"\"))","v":""},"2c","$S$117","$T$117"]
[20191,{"$f":"Menu!$F$29","v":"X"},{"$f":"Menu!$J$29","v":2020},{"$f":"IF(ISBLANK(INDIRECT(\"'\"&F4722&\"'!\"&G4722)),\"\",INDIRECT(\"'\"&F4722&\"'!\"&G4722))","v":""},{"$f":"IF(ISBLANK(INDIRECT(\"'\"&F4722&\"'!\"&H4722)),\"\",IFERROR(VLOOKUP(TEXT(INDIRECT(\"'\"&F4722&\"'!\"&H4722),\"0\"),Notes!$B$5:$C$100,2,FALSE),\"\"))","v":""},"2c","$W$117","$X$117"]
[20192,{"$f":"Menu!$F$29","v":"X"},{"$f":"Menu!$J$29","v":2020},{"$f":"IF(ISBLANK(INDIRECT(\"'\"&F4723&\"'!\"&G4723)),\"\",INDIRECT(\"'\"&F4723&\"'!\"&G4723))","v":""},{"$f":"IF(ISBLANK(INDIRECT(\"'\"&F4723&\"'!\"&H4723)),\"\",IFERROR(VLOOKUP(TEXT(INDIRECT(\"'\"&F4723&\"'!\"&H4723),\"0\"),Notes!$B$5:$C$100,2,FALSE),\"\"))","v":""},"2c","$AA$117","$AB$117"]
[20193,{"$f":"Menu!$F$29","v":"X"},{"$f":"Menu!$J$29","v":2020},{"$f":"IF(ISBLANK(INDIRECT(\"'\"&F4724&\"'!\"&G4724)),\"\",INDIRECT(\"'\"&F4724&\"'!\"&G4724))","v":""},{"$f":"IF(ISBLANK(INDIRECT(\"'\"&F4724&\"'!\"&H4724)),\"\",IFERROR(VLOOKUP(TEXT(INDIRECT(\"'\"&F4724&\"'!\"&H4724),\"0\"),Notes!$B$5:$C$100,2,FALSE),\"\"))","v":""},"2c","$Y$117","$Z$117"]
[20194,{"$f":"Menu!$F$29","v":"X"},{"$f":"Menu!$J$29","v":2020},{"$f":"IF(ISBLANK(INDIRECT(\"'\"&F4725&\"'!\"&G4725)),\"\",INDIRECT(\"'\"&F4725&\"'!\"&G4725))","v":""},{"$f":"IF(ISBLANK(INDIRECT(\"'\"&F4725&\"'!\"&H4725)),\"\",IFERROR(VLOOKUP(TEXT(INDIRECT(\"'\"&F4725&\"'!\"&H4725),\"0\"),Notes!$B$5:$C$100,2,FALSE),\"\"))","v":""},"2e","$BG$118","$BH$118"]
[20195,{"$f":"Menu!$F$29","v":"X"},{"$f":"Menu!$J$29","v":2020},{"$f":"IF(ISBLANK(INDIRECT(\"'\"&F4726&\"'!\"&G4726)),\"\",INDIRECT(\"'\"&F4726&\"'!\"&G4726))","v":""},{"$f":"IF(ISBLANK(INDIRECT(\"'\"&F4726&\"'!\"&H4726)),\"\",IFERROR(VLOOKUP(TEXT(INDIRECT(\"'\"&F4726&\"'!\"&H4726),\"0\"),Notes!$B$5:$C$100,2,FALSE),\"\"))","v":""},"2e","$BK$118","$BL$118"]
[20196,{"$f":"Menu!$F$29","v":"X"},{"$f":"Menu!$J$29","v":2020},{"$f":"IF(ISBLANK(INDIRECT(\"'\"&F4727&\"'!\"&G4727)),\"\",INDIRECT(\"'\"&F4727&\"'!\"&G4727))","v":""},{"$f":"IF(ISBLANK(INDIRECT(\"'\"&F4727&\"'!\"&H4727)),\"\",IFERROR(VLOOKUP(TEXT(INDIRECT(\"'\"&F4727&\"'!\"&H4727),\"0\"),Notes!$B$5:$C$100,2,FALSE),\"\"))","v":""},"2e","$BI$118","$BJ$118"]
[20197,{"$f":"Menu!$F$29","v":"X"},{"$f":"Menu!$J$29","v":2020},{"$f":"IF(ISBLANK(INDIRECT(\"'\"&F4728&\"'!\"&G4728)),\"\",INDIRECT(\"'\"&F4728&\"'!\"&G4728))","v":""},{"$f":"IF(ISBLANK(INDIRECT(\"'\"&F4728&\"'!\"&H4728)),\"\",IFERROR(VLOOKUP(TEXT(INDIRECT(\"'\"&F4728&\"'!\"&H4728),\"0\"),Notes!$B$5:$C$100,2,FALSE),\"\"))","v":""},"2e","$E$118","$F$118"]
[20198,{"$f":"Menu!$F$29","v":"X"},{"$f":"Menu!$J$29","v":2020},{"$f":"IF(ISBLANK(INDIRECT(\"'\"&F4729&\"'!\"&G4729)),\"\",INDIRECT(\"'\"&F4729&\"'!\"&G4729))","v":""},{"$f":"IF(ISBLANK(INDIRECT(\"'\"&F4729&\"'!\"&H4729)),\"\",IFERROR(VLOOKUP(TEXT(INDIRECT(\"'\"&F4729&\"'!\"&H4729),\"0\"),Notes!$B$5:$C$100,2,FALSE),\"\"))","v":""},"2e","$I$118","$J$118"]
[20199,{"$f":"Menu!$F$29","v":"X"},{"$f":"Menu!$J$29","v":2020},{"$f":"IF(ISBLANK(INDIRECT(\"'\"&F4730&\"'!\"&G4730)),\"\",INDIRECT(\"'\"&F4730&\"'!\"&G4730))","v":""},{"$f":"IF(ISBLANK(INDIRECT(\"'\"&F4730&\"'!\"&H4730)),\"\",IFERROR(VLOOKUP(TEXT(INDIRECT(\"'\"&F4730&\"'!\"&H4730),\"0\"),Notes!$B$5:$C$100,2,FALSE),\"\"))","v":""},"2e","$G$118","$H$118"]
[20200,{"$f":"Menu!$F$29","v":"X"},{"$f":"Menu!$J$29","v":2020},{"$f":"IF(ISBLANK(INDIRECT(\"'\"&F4731&\"'!\"&G4731)),\"\",INDIRECT(\"'\"&F4731&\"'!\"&G4731))","v":""},{"$f":"IF(ISBLANK(INDIRECT(\"'\"&F4731&\"'!\"&H4731)),\"\",IFERROR(VLOOKUP(TEXT(INDIRECT(\"'\"&F4731&\"'!\"&H4731),\"0\"),Notes!$B$5:$C$100,2,FALSE),\"\"))","v":""},"2e","$K$118","$L$118"]
[20201,{"$f":"Menu!$F$29","v":"X"},{"$f":"Menu!$J$29","v":2020},{"$f":"IF(ISBLANK(INDIRECT(\"'\"&F4732&\"'!\"&G4732)),\"\",INDIRECT(\"'\"&F4732&\"'!\"&G4732))","v":""},{"$f":"IF(ISBLANK(INDIRECT(\"'\"&F4732&\"'!\"&H4732)),\"\",IFERROR(VLOOKUP(TEXT(INDIRECT(\"'\"&F4732&\"'!\"&H4732),\"0\"),Notes!$B$5:$C$100,2,FALSE),\"\"))","v":""},"2e","$O$118","$P$118"]
[20202,{"$f":"Menu!$F$29","v":"X"},{"$f":"Menu!$J$29","v":2020},{"$f":"IF(ISBLANK(INDIRECT(\"'\"&F4733&\"'!\"&G4733)),\"\",INDIRECT(\"'\"&F4733&\"'!\"&G4733))","v":""},{"$f":"IF(ISBLANK(INDIRECT(\"'\"&F4733&\"'!\"&H4733)),\"\",IFERROR(VLOOKUP(TEXT(INDIRECT(\"'\"&F4733&\"'!\"&H4733),\"0\"),Notes!$B$5:$C$100,2,FALSE),\"\"))","v":""},"2e","$M$118","$N$118"]
[20203,{"$f":"Menu!$F$29","v":"X"},{"$f":"Menu!$J$29","v":2020},{"$f":"IF(ISBLANK(INDIRECT(\"'\"&F4734&\"'!\"&G4734)),\"\",INDIRECT(\"'\"&F4734&\"'!\"&G4734))","v":""},{"$f":"IF(ISBLANK(INDIRECT(\"'\"&F4734&\"'!\"&H4734)),\"\",IFERROR(VLOOKUP(TEXT(INDIRECT(\"'\"&F4734&\"'!\"&H4734),\"0\"),Notes!$B$5:$C$100,2,FALSE),\"\"))","v":""},"2e","$Q$118","$R$118"]
[20204,{"$f":"Menu!$F$29","v":"X"},{"$f":"Menu!$J$29","v":2020},{"$f":"IF(ISBLANK(INDIRECT(\"'\"&F4735&\"'!\"&G4735)),\"\",INDIRECT(\"'\"&F4735&\"'!\"&G4735))","v":""},{"$f":"IF(ISBLANK(INDIRECT(\"'\"&F4735&\"'!\"&H4735)),\"\",IFERROR(VLOOKUP(TEXT(INDIRECT(\"'\"&F4735&\"'!\"&H4735),\"0\"),Notes!$B$5:$C$100,2,FALSE),\"\"))","v":""},"2e","$U$118","$V$118"]
[20205,{"$f":"Menu!$F$29","v":"X"},{"$f":"Menu!$J$29","v":2020},{"$f":"IF(ISBLANK(INDIRECT(\"'\"&F4736&\"'!\"&G4736)),\"\",INDIRECT(\"'\"&F4736&\"'!\"&G4736))","v":""},{"$f":"IF(ISBLANK(INDIRECT(\"'\"&F4736&\"'!\"&H4736)),\"\",IFERROR(VLOOKUP(TEXT(INDIRECT(\"'\"&F4736&\"'!\"&H4736),\"0\"),Notes!$B$5:$C$100,2,FALSE),\"\"))","v":""},"2e","$S$118","$T$118"]
[20206,{"$f":"Menu!$F$29","v":"X"},{"$f":"Menu!$J$29","v":2020},{"$f":"IF(ISBLANK(INDIRECT(\"'\"&F4737&\"'!\"&G4737)),\"\",INDIRECT(\"'\"&F4737&\"'!\"&G4737))","v":""},{"$f":"IF(ISBLANK(INDIRECT(\"'\"&F4737&\"'!\"&H4737)),\"\",IFERROR(VLOOKUP(TEXT(INDIRECT(\"'\"&F4737&\"'!\"&H4737),\"0\"),Notes!$B$5:$C$100,2,FALSE),\"\"))","v":""},"2e","$W$118","$X$118"]
[20207,{"$f":"Menu!$F$29","v":"X"},{"$f":"Menu!$J$29","v":2020},{"$f":"IF(ISBLANK(INDIRECT(\"'\"&F4738&\"'!\"&G4738)),\"\",INDIRECT(\"'\"&F4738&\"'!\"&G4738))","v":""},{"$f":"IF(ISBLANK(INDIRECT(\"'\"&F4738&\"'!\"&H4738)),\"\",IFERROR(VLOOKUP(TEXT(INDIRECT(\"'\"&F4738&\"'!\"&H4738),\"0\"),Notes!$B$5:$C$100,2,FALSE),\"\"))","v":""},"2e","$AA$118",{"$f":"IF(LEN(TRIM(MID(G4738,4,10)))-LEN(SUBSTITUTE(TRIM(MID(G4738,4,10)),\"$\",\"\"))=0,\"$\"&CHAR(CODE(MID(G4738,2,1))+1)&\"$\"&TRIM(MID(G4738,4,10)),\"$\"&MID(G4738,2,1)&CHAR(CODE(MID(G4738,3,1))+1)&\"$\"&TRIM(MID(G4738,5,11)))","v":"$AB$118"}]
[20208,{"$f":"Menu!$F$29","v":"X"},{"$f":"Menu!$J$29","v":2020},{"$f":"IF(ISBLANK(INDIRECT(\"'\"&F4739&\"'!\"&G4739)),\"\",INDIRECT(\"'\"&F4739&\"'!\"&G4739))","v":""},{"$f":"IF(ISBLANK(INDIRECT(\"'\"&F4739&\"'!\"&H4739)),\"\",IFERROR(VLOOKUP(TEXT(INDIRECT(\"'\"&F4739&\"'!\"&H4739),\"0\"),Notes!$B$5:$C$100,2,FALSE),\"\"))","v":""},"2e","$Y$118","$Z$118"]
[20209,{"$f":"Menu!$F$29","v":"X"},{"$f":"Menu!$J$29","v":2020},{"$f":"IF(ISBLANK(INDIRECT(\"'\"&F4740&\"'!\"&G4740)),\"\",INDIRECT(\"'\"&F4740&\"'!\"&G4740))","v":""},{"$f":"IF(ISBLANK(INDIRECT(\"'\"&F4740&\"'!\"&H4740)),\"\",IFERROR(VLOOKUP(TEXT(INDIRECT(\"'\"&F4740&\"'!\"&H4740),\"0\"),Notes!$B$5:$C$100,2,FALSE),\"\"))","v":""},"2e","$AC$118","$AD$118"]
[20210,{"$f":"Menu!$F$29","v":"X"},{"$f":"Menu!$J$29","v":2020},{"$f":"IF(ISBLANK(INDIRECT(\"'\"&F4741&\"'!\"&G4741)),\"\",INDIRECT(\"'\"&F4741&\"'!\"&G4741))","v":""},{"$f":"IF(ISBLANK(INDIRECT(\"'\"&F4741&\"'!\"&H4741)),\"\",IFERROR(VLOOKUP(TEXT(INDIRECT(\"'\"&F4741&\"'!\"&H4741),\"0\"),Notes!$B$5:$C$100,2,FALSE),\"\"))","v":""},"2e","$AG$118","$AH$118"]
[20211,{"$f":"Menu!$F$29","v":"X"},{"$f":"Menu!$J$29","v":2020},{"$f":"IF(ISBLANK(INDIRECT(\"'\"&F4742&\"'!\"&G4742)),\"\",INDIRECT(\"'\"&F4742&\"'!\"&G4742))","v":""},{"$f":"IF(ISBLANK(INDIRECT(\"'\"&F4742&\"'!\"&H4742)),\"\",IFERROR(VLOOKUP(TEXT(INDIRECT(\"'\"&F4742&\"'!\"&H4742),\"0\"),Notes!$B$5:$C$100,2,FALSE),\"\"))","v":""},"2e","$AE$118","$AF$118"]
[20212,{"$f":"Menu!$F$29","v":"X"},{"$f":"Menu!$J$29","v":2020},{"$f":"IF(ISBLANK(INDIRECT(\"'\"&F4743&\"'!\"&G4743)),\"\",INDIRECT(\"'\"&F4743&\"'!\"&G4743))","v":""},{"$f":"IF(ISBLANK(INDIRECT(\"'\"&F4743&\"'!\"&H4743)),\"\",IFERROR(VLOOKUP(TEXT(INDIRECT(\"'\"&F4743&\"'!\"&H4743),\"0\"),Notes!$B$5:$C$100,2,FALSE),\"\"))","v":""},"2e","$AI$118","$AJ$118"]
[20213,{"$f":"Menu!$F$29","v":"X"},{"$f":"Menu!$J$29","v":2020},{"$f":"IF(ISBLANK(INDIRECT(\"'\"&F4744&\"'!\"&G4744)),\"\",INDIRECT(\"'\"&F4744&\"'!\"&G4744))","v":""},{"$f":"IF(ISBLANK(INDIRECT(\"'\"&F4744&\"'!\"&H4744)),\"\",IFERROR(VLOOKUP(TEXT(INDIRECT(\"'\"&F4744&\"'!\"&H4744),\"0\"),Notes!$B$5:$C$100,2,FALSE),\"\"))","v":""},"2e","$AM$118","$AN$118"]
[20214,{"$f":"Menu!$F$29","v":"X"},{"$f":"Menu!$J$29","v":2020},{"$f":"IF(ISBLANK(INDIRECT(\"'\"&F4745&\"'!\"&G4745)),\"\",INDIRECT(\"'\"&F4745&\"'!\"&G4745))","v":""},{"$f":"IF(ISBLANK(INDIRECT(\"'\"&F4745&\"'!\"&H4745)),\"\",IFERROR(VLOOKUP(TEXT(INDIRECT(\"'\"&F4745&\"'!\"&H4745),\"0\"),Notes!$B$5:$C$100,2,FALSE),\"\"))","v":""},"2e","$AK$118","$AL$118"]
[20215,{"$f":"Menu!$F$29","v":"X"},{"$f":"Menu!$J$29","v":2020},{"$f":"IF(ISBLANK(INDIRECT(\"'\"&F4746&\"'!\"&G4746)),\"\",INDIRECT(\"'\"&F4746&\"'!\"&G4746))","v":""},{"$f":"IF(ISBLANK(INDIRECT(\"'\"&F4746&\"'!\"&H4746)),\"\",IFERROR(VLOOKUP(TEXT(INDIRECT(\"'\"&F4746&\"'!\"&H4746),\"0\"),Notes!$B$5:$C$100,2,FALSE),\"\"))","v":""},"2e","$AO$118","$AP$118"]
[20216,{"$f":"Menu!$F$29","v":"X"},{"$f":"Menu!$J$29","v":2020},{"$f":"IF(ISBLANK(INDIRECT(\"'\"&F4747&\"'!\"&G4747)),\"\",INDIRECT(\"'\"&F4747&\"'!\"&G4747))","v":""},{"$f":"IF(ISBLANK(INDIRECT(\"'\"&F4747&\"'!\"&H4747)),\"\",IFERROR(VLOOKUP(TEXT(INDIRECT(\"'\"&F4747&\"'!\"&H4747),\"0\"),Notes!$B$5:$C$100,2,FALSE),\"\"))","v":""},"2e","$AQ$118","$AR$118"]
[20217,{"$f":"Menu!$F$29","v":"X"},{"$f":"Menu!$J$29","v":2020},{"$f":"IF(ISBLANK(INDIRECT(\"'\"&F4748&\"'!\"&G4748)),\"\",INDIRECT(\"'\"&F4748&\"'!\"&G4748))","v":""},{"$f":"IF(ISBLANK(INDIRECT(\"'\"&F4748&\"'!\"&H4748)),\"\",IFERROR(VLOOKUP(TEXT(INDIRECT(\"'\"&F4748&\"'!\"&H4748),\"0\"),Notes!$B$5:$C$100,2,FALSE),\"\"))","v":""},"2e","$AS$118","$AT$118"]
[20218,{"$f":"Menu!$F$29","v":"X"},{"$f":"Menu!$J$29","v":2020},{"$f":"IF(ISBLANK(INDIRECT(\"'\"&F4749&\"'!\"&G4749)),\"\",INDIRECT(\"'\"&F4749&\"'!\"&G4749))","v":""},{"$f":"IF(ISBLANK(INDIRECT(\"'\"&F4749&\"'!\"&H4749)),\"\",IFERROR(VLOOKUP(TEXT(INDIRECT(\"'\"&F4749&\"'!\"&H4749),\"0\"),Notes!$B$5:$C$100,2,FALSE),\"\"))","v":""},"2e","$AU$118","$AV$118"]
[20219,{"$f":"Menu!$F$29","v":"X"},{"$f":"Menu!$J$29","v":2020},{"$f":"IF(ISBLANK(INDIRECT(\"'\"&F4750&\"'!\"&G4750)),\"\",INDIRECT(\"'\"&F4750&\"'!\"&G4750))","v":""},{"$f":"IF(ISBLANK(INDIRECT(\"'\"&F4750&\"'!\"&H4750)),\"\",IFERROR(VLOOKUP(TEXT(INDIRECT(\"'\"&F4750&\"'!\"&H4750),\"0\"),Notes!$B$5:$C$100,2,FALSE),\"\"))","v":""},"2e","$AY$118","$AZ$118"]
[20220,{"$f":"Menu!$F$29","v":"X"},{"$f":"Menu!$J$29","v":2020},{"$f":"IF(ISBLANK(INDIRECT(\"'\"&F4751&\"'!\"&G4751)),\"\",INDIRECT(\"'\"&F4751&\"'!\"&G4751))","v":""},{"$f":"IF(ISBLANK(INDIRECT(\"'\"&F4751&\"'!\"&H4751)),\"\",IFERROR(VLOOKUP(TEXT(INDIRECT(\"'\"&F4751&\"'!\"&H4751),\"0\"),Notes!$B$5:$C$100,2,FALSE),\"\"))","v":""},"2e","$AW$118","$AX$118"]
[20221,{"$f":"Menu!$F$29","v":"X"},{"$f":"Menu!$J$29","v":2020},{"$f":"IF(ISBLANK(INDIRECT(\"'\"&F4752&\"'!\"&G4752)),\"\",INDIRECT(\"'\"&F4752&\"'!\"&G4752))","v":""},{"$f":"IF(ISBLANK(INDIRECT(\"'\"&F4752&\"'!\"&H4752)),\"\",IFERROR(VLOOKUP(TEXT(INDIRECT(\"'\"&F4752&\"'!\"&H4752),\"0\"),Notes!$B$5:$C$100,2,FALSE),\"\"))","v":""},"2e","$BA$118","$BB$118"]
[20222,{"$f":"Menu!$F$29","v":"X"},{"$f":"Menu!$J$29","v":2020},{"$f":"IF(ISBLANK(INDIRECT(\"'\"&F4753&\"'!\"&G4753)),\"\",INDIRECT(\"'\"&F4753&\"'!\"&G4753))","v":""},{"$f":"IF(ISBLANK(INDIRECT(\"'\"&F4753&\"'!\"&H4753)),\"\",IFERROR(VLOOKUP(TEXT(INDIRECT(\"'\"&F4753&\"'!\"&H4753),\"0\"),Notes!$B$5:$C$100,2,FALSE),\"\"))","v":""},"2e","$BE$118","$BF$118"]
[20223,{"$f":"Menu!$F$29","v":"X"},{"$f":"Menu!$J$29","v":2020},{"$f":"IF(ISBLANK(INDIRECT(\"'\"&F4754&\"'!\"&G4754)),\"\",INDIRECT(\"'\"&F4754&\"'!\"&G4754))","v":""},{"$f":"IF(ISBLANK(INDIRECT(\"'\"&F4754&\"'!\"&H4754)),\"\",IFERROR(VLOOKUP(TEXT(INDIRECT(\"'\"&F4754&\"'!\"&H4754),\"0\"),Notes!$B$5:$C$100,2,FALSE),\"\"))","v":""},"2e","$BC$118","$BD$118"]
[20224,{"$f":"Menu!$F$29","v":"X"},{"$f":"Menu!$J$29","v":2020},{"$f":"IF(ISBLANK(INDIRECT(\"'\"&F4755&\"'!\"&G4755)),\"\",INDIRECT(\"'\"&F4755&\"'!\"&G4755))","v":""},{"$f":"IF(ISBLANK(INDIRECT(\"'\"&F4755&\"'!\"&H4755)),\"\",IFERROR(VLOOKUP(TEXT(INDIRECT(\"'\"&F4755&\"'!\"&H4755),\"0\"),Notes!$B$5:$C$100,2,FALSE),\"\"))","v":""},"2b","$E$117","$F$117"]
[20225,{"$f":"Menu!$F$29","v":"X"},{"$f":"Menu!$J$29","v":2020},{"$f":"IF(ISBLANK(INDIRECT(\"'\"&F4756&\"'!\"&G4756)),\"\",INDIRECT(\"'\"&F4756&\"'!\"&G4756))","v":""},{"$f":"IF(ISBLANK(INDIRECT(\"'\"&F4756&\"'!\"&H4756)),\"\",IFERROR(VLOOKUP(TEXT(INDIRECT(\"'\"&F4756&\"'!\"&H4756),\"0\"),Notes!$B$5:$C$100,2,FALSE),\"\"))","v":""},"2b","$I$117","$J$117"]
[20226,{"$f":"Menu!$F$29","v":"X"},{"$f":"Menu!$J$29","v":2020},{"$f":"IF(ISBLANK(INDIRECT(\"'\"&F4757&\"'!\"&G4757)),\"\",INDIRECT(\"'\"&F4757&\"'!\"&G4757))","v":""},{"$f":"IF(ISBLANK(INDIRECT(\"'\"&F4757&\"'!\"&H4757)),\"\",IFERROR(VLOOKUP(TEXT(INDIRECT(\"'\"&F4757&\"'!\"&H4757),\"0\"),Notes!$B$5:$C$100,2,FALSE),\"\"))","v":""},"2b","$G$117","$H$117"]
[20227,{"$f":"Menu!$F$29","v":"X"},{"$f":"Menu!$J$29","v":2020},{"$f":"IF(ISBLANK(INDIRECT(\"'\"&F4758&\"'!\"&G4758)),\"\",INDIRECT(\"'\"&F4758&\"'!\"&G4758))","v":""},{"$f":"IF(ISBLANK(INDIRECT(\"'\"&F4758&\"'!\"&H4758)),\"\",IFERROR(VLOOKUP(TEXT(INDIRECT(\"'\"&F4758&\"'!\"&H4758),\"0\"),Notes!$B$5:$C$100,2,FALSE),\"\"))","v":""},"2a","$G$117","$H$117"]
[20228,{"$f":"Menu!$F$29","v":"X"},{"$f":"Menu!$J$29","v":2020},{"$f":"IF(ISBLANK(INDIRECT(\"'\"&F4759&\"'!\"&G4759)),\"\",INDIRECT(\"'\"&F4759&\"'!\"&G4759))","v":""},{"$f":"IF(ISBLANK(INDIRECT(\"'\"&F4759&\"'!\"&H4759)),\"\",IFERROR(VLOOKUP(TEXT(INDIRECT(\"'\"&F4759&\"'!\"&H4759),\"0\"),Notes!$B$5:$C$100,2,FALSE),\"\"))","v":""},"2b","$W$117","$X$117"]
[20229,{"$f":"Menu!$F$29","v":"X"},{"$f":"Menu!$J$29","v":2020},{"$f":"IF(ISBLANK(INDIRECT(\"'\"&F4760&\"'!\"&G4760)),\"\",INDIRECT(\"'\"&F4760&\"'!\"&G4760))","v":""},{"$f":"IF(ISBLANK(INDIRECT(\"'\"&F4760&\"'!\"&H4760)),\"\",IFERROR(VLOOKUP(TEXT(INDIRECT(\"'\"&F4760&\"'!\"&H4760),\"0\"),Notes!$B$5:$C$100,2,FALSE),\"\"))","v":""},"2b","$AA$117","$AB$117"]
[20230,{"$f":"Menu!$F$29","v":"X"},{"$f":"Menu!$J$29","v":2020},{"$f":"IF(ISBLANK(INDIRECT(\"'\"&F4761&\"'!\"&G4761)),\"\",INDIRECT(\"'\"&F4761&\"'!\"&G4761))","v":""},{"$f":"IF(ISBLANK(INDIRECT(\"'\"&F4761&\"'!\"&H4761)),\"\",IFERROR(VLOOKUP(TEXT(INDIRECT(\"'\"&F4761&\"'!\"&H4761),\"0\"),Notes!$B$5:$C$100,2,FALSE),\"\"))","v":""},"2b","$Y$117","$Z$117"]
[20231,{"$f":"Menu!$F$29","v":"X"},{"$f":"Menu!$J$29","v":2020},{"$f":"IF(ISBLANK(INDIRECT(\"'\"&F4762&\"'!\"&G4762)),\"\",INDIRECT(\"'\"&F4762&\"'!\"&G4762))","v":""},{"$f":"IF(ISBLANK(INDIRECT(\"'\"&F4762&\"'!\"&H4762)),\"\",IFERROR(VLOOKUP(TEXT(INDIRECT(\"'\"&F4762&\"'!\"&H4762),\"0\"),Notes!$B$5:$C$100,2,FALSE),\"\"))","v":""},"2d","$AC$117","$AD$117"]
[20233,{"$f":"Menu!$F$29","v":"X"},{"$f":"Menu!$J$29","v":2020},{"$f":"IF(ISBLANK(INDIRECT(\"'\"&F4763&\"'!\"&G4763)),\"\",INDIRECT(\"'\"&F4763&\"'!\"&G4763))","v":""},{"$f":"IF(ISBLANK(INDIRECT(\"'\"&F4763&\"'!\"&H4763)),\"\",IFERROR(VLOOKUP(TEXT(INDIRECT(\"'\"&F4763&\"'!\"&H4763),\"0\"),Notes!$B$5:$C$100,2,FALSE),\"\"))","v":""},"2d","$AE$117","$AF$117"]
[20234,{"$f":"Menu!$F$29","v":"X"},{"$f":"Menu!$J$29","v":2020},{"$f":"IF(ISBLANK(INDIRECT(\"'\"&F4764&\"'!\"&G4764)),\"\",INDIRECT(\"'\"&F4764&\"'!\"&G4764))","v":""},{"$f":"IF(ISBLANK(INDIRECT(\"'\"&F4764&\"'!\"&H4764)),\"\",IFERROR(VLOOKUP(TEXT(INDIRECT(\"'\"&F4764&\"'!\"&H4764),\"0\"),Notes!$B$5:$C$100,2,FALSE),\"\"))","v":""},"2d","$W$117","$X$117"]
[20236,{"$f":"Menu!$F$29","v":"X"},{"$f":"Menu!$J$29","v":2020},{"$f":"IF(ISBLANK(INDIRECT(\"'\"&F4765&\"'!\"&G4765)),\"\",INDIRECT(\"'\"&F4765&\"'!\"&G4765))","v":""},{"$f":"IF(ISBLANK(INDIRECT(\"'\"&F4765&\"'!\"&H4765)),\"\",IFERROR(VLOOKUP(TEXT(INDIRECT(\"'\"&F4765&\"'!\"&H4765),\"0\"),Notes!$B$5:$C$100,2,FALSE),\"\"))","v":""},"2d","$Y$117","$Z$117"]
[20237,{"$f":"Menu!$F$29","v":"X"},{"$f":"Menu!$J$29","v":2020},{"$f":"IF(ISBLANK(INDIRECT(\"'\"&F4766&\"'!\"&G4766)),\"\",INDIRECT(\"'\"&F4766&\"'!\"&G4766))","v":""},{"$f":"IF(ISBLANK(INDIRECT(\"'\"&F4766&\"'!\"&H4766)),\"\",IFERROR(VLOOKUP(TEXT(INDIRECT(\"'\"&F4766&\"'!\"&H4766),\"0\"),Notes!$B$5:$C$100,2,FALSE),\"\"))","v":""},"2d","$E$117","$F$117"]
[20238,{"$f":"Menu!$F$29","v":"X"},{"$f":"Menu!$J$29","v":2020},{"$f":"IF(ISBLANK(INDIRECT(\"'\"&F4767&\"'!\"&G4767)),\"\",INDIRECT(\"'\"&F4767&\"'!\"&G4767))","v":""},{"$f":"IF(ISBLANK(INDIRECT(\"'\"&F4767&\"'!\"&H4767)),\"\",IFERROR(VLOOKUP(TEXT(INDIRECT(\"'\"&F4767&\"'!\"&H4767),\"0\"),Notes!$B$5:$C$100,2,FALSE),\"\"))","v":""},"2d","$I$117","$J$117"]
[20239,{"$f":"Menu!$F$29","v":"X"},{"$f":"Menu!$J$29","v":2020},{"$f":"IF(ISBLANK(INDIRECT(\"'\"&F4768&\"'!\"&G4768)),\"\",INDIRECT(\"'\"&F4768&\"'!\"&G4768))","v":""},{"$f":"IF(ISBLANK(INDIRECT(\"'\"&F4768&\"'!\"&H4768)),\"\",IFERROR(VLOOKUP(TEXT(INDIRECT(\"'\"&F4768&\"'!\"&H4768),\"0\"),Notes!$B$5:$C$100,2,FALSE),\"\"))","v":""},"2d","$G$117","$H$117"]
[20240,{"$f":"Menu!$F$29","v":"X"},{"$f":"Menu!$J$29","v":2020},{"$f":"IF(ISBLANK(INDIRECT(\"'\"&F4769&\"'!\"&G4769)),\"\",INDIRECT(\"'\"&F4769&\"'!\"&G4769))","v":""},{"$f":"IF(ISBLANK(INDIRECT(\"'\"&F4769&\"'!\"&H4769)),\"\",IFERROR(VLOOKUP(TEXT(INDIRECT(\"'\"&F4769&\"'!\"&H4769),\"0\"),Notes!$B$5:$C$100,2,FALSE),\"\"))","v":""},"2a","$U$117","$V$117"]
[20241,{"$f":"Menu!$F$29","v":"X"},{"$f":"Menu!$J$29","v":2020},{"$f":"IF(ISBLANK(INDIRECT(\"'\"&F4770&\"'!\"&G4770)),\"\",INDIRECT(\"'\"&F4770&\"'!\"&G4770))","v":""},{"$f":"IF(ISBLANK(INDIRECT(\"'\"&F4770&\"'!\"&H4770)),\"\",IFERROR(VLOOKUP(TEXT(INDIRECT(\"'\"&F4770&\"'!\"&H4770),\"0\"),Notes!$B$5:$C$100,2,FALSE),\"\"))","v":""},"2a","$S$117","$T$117"]
[20242,{"$f":"Menu!$F$29","v":"X"},{"$f":"Menu!$J$29","v":2020},{"$f":"IF(ISBLANK(INDIRECT(\"'\"&F4771&\"'!\"&G4771)),\"\",INDIRECT(\"'\"&F4771&\"'!\"&G4771))","v":""},{"$f":"IF(ISBLANK(INDIRECT(\"'\"&F4771&\"'!\"&H4771)),\"\",IFERROR(VLOOKUP(TEXT(INDIRECT(\"'\"&F4771&\"'!\"&H4771),\"0\"),Notes!$B$5:$C$100,2,FALSE),\"\"))","v":""},"2a","$Q$117","$R$117"]
[20243,{"$f":"Menu!$F$29","v":"X"},{"$f":"Menu!$J$29","v":2020},{"$f":"IF(ISBLANK(INDIRECT(\"'\"&F4772&\"'!\"&G4772)),\"\",INDIRECT(\"'\"&F4772&\"'!\"&G4772))","v":""},{"$f":"IF(ISBLANK(INDIRECT(\"'\"&F4772&\"'!\"&H4772)),\"\",IFERROR(VLOOKUP(TEXT(INDIRECT(\"'\"&F4772&\"'!\"&H4772),\"0\"),Notes!$B$5:$C$100,2,FALSE),\"\"))","v":""},"2d","$K$117","$L$117"]
[20244,{"$f":"Menu!$F$29","v":"X"},{"$f":"Menu!$J$29","v":2020},{"$f":"IF(ISBLANK(INDIRECT(\"'\"&F4773&\"'!\"&G4773)),\"\",INDIRECT(\"'\"&F4773&\"'!\"&G4773))","v":""},{"$f":"IF(ISBLANK(INDIRECT(\"'\"&F4773&\"'!\"&H4773)),\"\",IFERROR(VLOOKUP(TEXT(INDIRECT(\"'\"&F4773&\"'!\"&H4773),\"0\"),Notes!$B$5:$C$100,2,FALSE),\"\"))","v":""},"2d","$O$117","$P$117"]
[20245,{"$f":"Menu!$F$29","v":"X"},{"$f":"Menu!$J$29","v":2020},{"$f":"IF(ISBLANK(INDIRECT(\"'\"&F4774&\"'!\"&G4774)),\"\",INDIRECT(\"'\"&F4774&\"'!\"&G4774))","v":""},{"$f":"IF(ISBLANK(INDIRECT(\"'\"&F4774&\"'!\"&H4774)),\"\",IFERROR(VLOOKUP(TEXT(INDIRECT(\"'\"&F4774&\"'!\"&H4774),\"0\"),Notes!$B$5:$C$100,2,FALSE),\"\"))","v":""},"2d","$M$117","$N$117"]
[20246,{"$f":"Menu!$F$29","v":"X"},{"$f":"Menu!$J$29","v":2020},{"$f":"IF(ISBLANK(INDIRECT(\"'\"&F4775&\"'!\"&G4775)),\"\",INDIRECT(\"'\"&F4775&\"'!\"&G4775))","v":""},{"$f":"IF(ISBLANK(INDIRECT(\"'\"&F4775&\"'!\"&H4775)),\"\",IFERROR(VLOOKUP(TEXT(INDIRECT(\"'\"&F4775&\"'!\"&H4775),\"0\"),Notes!$B$5:$C$100,2,FALSE),\"\"))","v":""},"2d","$Q$117","$R$117"]
[20247,{"$f":"Menu!$F$29","v":"X"},{"$f":"Menu!$J$29","v":2020},{"$f":"IF(ISBLANK(INDIRECT(\"'\"&F4776&\"'!\"&G4776)),\"\",INDIRECT(\"'\"&F4776&\"'!\"&G4776))","v":""},{"$f":"IF(ISBLANK(INDIRECT(\"'\"&F4776&\"'!\"&H4776)),\"\",IFERROR(VLOOKUP(TEXT(INDIRECT(\"'\"&F4776&\"'!\"&H4776),\"0\"),Notes!$B$5:$C$100,2,FALSE),\"\"))","v":""},"2d","$U$117","$V$117"]
[20248,{"$f":"Menu!$F$29","v":"X"},{"$f":"Menu!$J$29","v":2020},{"$f":"IF(ISBLANK(INDIRECT(\"'\"&F4777&\"'!\"&G4777)),\"\",INDIRECT(\"'\"&F4777&\"'!\"&G4777))","v":""},{"$f":"IF(ISBLANK(INDIRECT(\"'\"&F4777&\"'!\"&H4777)),\"\",IFERROR(VLOOKUP(TEXT(INDIRECT(\"'\"&F4777&\"'!\"&H4777),\"0\"),Notes!$B$5:$C$100,2,FALSE),\"\"))","v":""},"2d","$S$117","$T$117"]
[20249,{"$f":"Menu!$F$29","v":"X"},{"$f":"Menu!$J$29","v":2020},{"$f":"IF(ISBLANK(INDIRECT(\"'\"&F4778&\"'!\"&G4778)),\"\",INDIRECT(\"'\"&F4778&\"'!\"&G4778))","v":""},{"$f":"IF(ISBLANK(INDIRECT(\"'\"&F4778&\"'!\"&H4778)),\"\",IFERROR(VLOOKUP(TEXT(INDIRECT(\"'\"&F4778&\"'!\"&H4778),\"0\"),Notes!$B$5:$C$100,2,FALSE),\"\"))","v":""},"2a","$O$117","$P$117"]
[20250,{"$f":"Menu!$F$29","v":"X"},{"$f":"Menu!$J$29","v":2020},{"$f":"IF(ISBLANK(INDIRECT(\"'\"&F4779&\"'!\"&G4779)),\"\",INDIRECT(\"'\"&F4779&\"'!\"&G4779))","v":""},{"$f":"IF(ISBLANK(INDIRECT(\"'\"&F4779&\"'!\"&H4779)),\"\",IFERROR(VLOOKUP(TEXT(INDIRECT(\"'\"&F4779&\"'!\"&H4779),\"0\"),Notes!$B$5:$C$100,2,FALSE),\"\"))","v":""},"2a","$M$117","$N$117"]
[20251,{"$f":"Menu!$F$29","v":"X"},{"$f":"Menu!$J$29","v":2020},{"$f":"IF(ISBLANK(INDIRECT(\"'\"&F4780&\"'!\"&G4780)),\"\",INDIRECT(\"'\"&F4780&\"'!\"&G4780))","v":""},{"$f":"IF(ISBLANK(INDIRECT(\"'\"&F4780&\"'!\"&H4780)),\"\",IFERROR(VLOOKUP(TEXT(INDIRECT(\"'\"&F4780&\"'!\"&H4780),\"0\"),Notes!$B$5:$C$100,2,FALSE),\"\"))","v":""},"2a","$K$117","$L$117"]
[20252,{"$f":"Menu!$F$29","v":"X"},{"$f":"Menu!$J$29","v":2020},{"$f":"IF(ISBLANK(INDIRECT(\"'\"&F4781&\"'!\"&G4781)),\"\",INDIRECT(\"'\"&F4781&\"'!\"&G4781))","v":""},{"$f":"IF(ISBLANK(INDIRECT(\"'\"&F4781&\"'!\"&H4781)),\"\",IFERROR(VLOOKUP(TEXT(INDIRECT(\"'\"&F4781&\"'!\"&H4781),\"0\"),Notes!$B$5:$C$100,2,FALSE),\"\"))","v":""},"2a","$E$117","$F$117"]
[20253,{"$f":"Menu!$F$29","v":"X"},{"$f":"Menu!$J$29","v":2020},{"$f":"IF(ISBLANK(INDIRECT(\"'\"&F4782&\"'!\"&G4782)),\"\",INDIRECT(\"'\"&F4782&\"'!\"&G4782))","v":""},{"$f":"IF(ISBLANK(INDIRECT(\"'\"&F4782&\"'!\"&H4782)),\"\",IFERROR(VLOOKUP(TEXT(INDIRECT(\"'\"&F4782&\"'!\"&H4782),\"0\"),Notes!$B$5:$C$100,2,FALSE),\"\"))","v":""},"2b","$K$17","$L$17"]
[20254,{"$f":"Menu!$F$29","v":"X"},{"$f":"Menu!$J$29","v":2020},{"$f":"IF(ISBLANK(INDIRECT(\"'\"&F4783&\"'!\"&G4783)),\"\",INDIRECT(\"'\"&F4783&\"'!\"&G4783))","v":""},{"$f":"IF(ISBLANK(INDIRECT(\"'\"&F4783&\"'!\"&H4783)),\"\",IFERROR(VLOOKUP(TEXT(INDIRECT(\"'\"&F4783&\"'!\"&H4783),\"0\"),Notes!$B$5:$C$100,2,FALSE),\"\"))","v":""},"2b","$O$17","$P$17"]
[20255,{"$f":"Menu!$F$29","v":"X"},{"$f":"Menu!$J$29","v":2020},{"$f":"IF(ISBLANK(INDIRECT(\"'\"&F4784&\"'!\"&G4784)),\"\",INDIRECT(\"'\"&F4784&\"'!\"&G4784))","v":""},{"$f":"IF(ISBLANK(INDIRECT(\"'\"&F4784&\"'!\"&H4784)),\"\",IFERROR(VLOOKUP(TEXT(INDIRECT(\"'\"&F4784&\"'!\"&H4784),\"0\"),Notes!$B$5:$C$100,2,FALSE),\"\"))","v":""},"2b","$M$17","$N$17"]
[20256,{"$f":"Menu!$F$29","v":"X"},{"$f":"Menu!$J$29","v":2020},{"$f":"IF(ISBLANK(INDIRECT(\"'\"&F4785&\"'!\"&G4785)),\"\",INDIRECT(\"'\"&F4785&\"'!\"&G4785))","v":""},{"$f":"IF(ISBLANK(INDIRECT(\"'\"&F4785&\"'!\"&H4785)),\"\",IFERROR(VLOOKUP(TEXT(INDIRECT(\"'\"&F4785&\"'!\"&H4785),\"0\"),Notes!$B$5:$C$100,2,FALSE),\"\"))","v":""},"2b","$Q$17","$R$17"]
[20257,{"$f":"Menu!$F$29","v":"X"},{"$f":"Menu!$J$29","v":2020},{"$f":"IF(ISBLANK(INDIRECT(\"'\"&F4786&\"'!\"&G4786)),\"\",INDIRECT(\"'\"&F4786&\"'!\"&G4786))","v":""},{"$f":"IF(ISBLANK(INDIRECT(\"'\"&F4786&\"'!\"&H4786)),\"\",IFERROR(VLOOKUP(TEXT(INDIRECT(\"'\"&F4786&\"'!\"&H4786),\"0\"),Notes!$B$5:$C$100,2,FALSE),\"\"))","v":""},"2b","$U$17","$V$17"]
[20258,{"$f":"Menu!$F$29","v":"X"},{"$f":"Menu!$J$29","v":2020},{"$f":"IF(ISBLANK(INDIRECT(\"'\"&F4787&\"'!\"&G4787)),\"\",INDIRECT(\"'\"&F4787&\"'!\"&G4787))","v":""},{"$f":"IF(ISBLANK(INDIRECT(\"'\"&F4787&\"'!\"&H4787)),\"\",IFERROR(VLOOKUP(TEXT(INDIRECT(\"'\"&F4787&\"'!\"&H4787),\"0\"),Notes!$B$5:$C$100,2,FALSE),\"\"))","v":""},"2b","$S$17","$T$17"]
[20259,{"$f":"Menu!$F$29","v":"X"},{"$f":"Menu!$J$29","v":2020},{"$f":"IF(ISBLANK(INDIRECT(\"'\"&F4788&\"'!\"&G4788)),\"\",INDIRECT(\"'\"&F4788&\"'!\"&G4788))","v":""},{"$f":"IF(ISBLANK(INDIRECT(\"'\"&F4788&\"'!\"&H4788)),\"\",IFERROR(VLOOKUP(TEXT(INDIRECT(\"'\"&F4788&\"'!\"&H4788),\"0\"),Notes!$B$5:$C$100,2,FALSE),\"\"))","v":""},"2a","$I$17","$J$17"]
[20260,{"$f":"Menu!$F$29","v":"X"},{"$f":"Menu!$J$29","v":2020},{"$f":"IF(ISBLANK(INDIRECT(\"'\"&F4789&\"'!\"&G4789)),\"\",INDIRECT(\"'\"&F4789&\"'!\"&G4789))","v":""},{"$f":"IF(ISBLANK(INDIRECT(\"'\"&F4789&\"'!\"&H4789)),\"\",IFERROR(VLOOKUP(TEXT(INDIRECT(\"'\"&F4789&\"'!\"&H4789),\"0\"),Notes!$B$5:$C$100,2,FALSE),\"\"))","v":""},"2c","$E$17","$F$17"]
[20261,{"$f":"Menu!$F$29","v":"X"},{"$f":"Menu!$J$29","v":2020},{"$f":"IF(ISBLANK(INDIRECT(\"'\"&F4790&\"'!\"&G4790)),\"\",INDIRECT(\"'\"&F4790&\"'!\"&G4790))","v":""},{"$f":"IF(ISBLANK(INDIRECT(\"'\"&F4790&\"'!\"&H4790)),\"\",IFERROR(VLOOKUP(TEXT(INDIRECT(\"'\"&F4790&\"'!\"&H4790),\"0\"),Notes!$B$5:$C$100,2,FALSE),\"\"))","v":""},"2c","$I$17","$J$17"]
[20262,{"$f":"Menu!$F$29","v":"X"},{"$f":"Menu!$J$29","v":2020},{"$f":"IF(ISBLANK(INDIRECT(\"'\"&F4791&\"'!\"&G4791)),\"\",INDIRECT(\"'\"&F4791&\"'!\"&G4791))","v":""},{"$f":"IF(ISBLANK(INDIRECT(\"'\"&F4791&\"'!\"&H4791)),\"\",IFERROR(VLOOKUP(TEXT(INDIRECT(\"'\"&F4791&\"'!\"&H4791),\"0\"),Notes!$B$5:$C$100,2,FALSE),\"\"))","v":""},"2c","$G$17","$H$17"]
[20263,{"$f":"Menu!$F$29","v":"X"},{"$f":"Menu!$J$29","v":2020},{"$f":"IF(ISBLANK(INDIRECT(\"'\"&F4792&\"'!\"&G4792)),\"\",INDIRECT(\"'\"&F4792&\"'!\"&G4792))","v":""},{"$f":"IF(ISBLANK(INDIRECT(\"'\"&F4792&\"'!\"&H4792)),\"\",IFERROR(VLOOKUP(TEXT(INDIRECT(\"'\"&F4792&\"'!\"&H4792),\"0\"),Notes!$B$5:$C$100,2,FALSE),\"\"))","v":""},"2c","$K$17","$L$17"]
[20264,{"$f":"Menu!$F$29","v":"X"},{"$f":"Menu!$J$29","v":2020},{"$f":"IF(ISBLANK(INDIRECT(\"'\"&F4793&\"'!\"&G4793)),\"\",INDIRECT(\"'\"&F4793&\"'!\"&G4793))","v":""},{"$f":"IF(ISBLANK(INDIRECT(\"'\"&F4793&\"'!\"&H4793)),\"\",IFERROR(VLOOKUP(TEXT(INDIRECT(\"'\"&F4793&\"'!\"&H4793),\"0\"),Notes!$B$5:$C$100,2,FALSE),\"\"))","v":""},"2c","$O$17","$P$17"]
[20265,{"$f":"Menu!$F$29","v":"X"},{"$f":"Menu!$J$29","v":2020},{"$f":"IF(ISBLANK(INDIRECT(\"'\"&F4794&\"'!\"&G4794)),\"\",INDIRECT(\"'\"&F4794&\"'!\"&G4794))","v":""},{"$f":"IF(ISBLANK(INDIRECT(\"'\"&F4794&\"'!\"&H4794)),\"\",IFERROR(VLOOKUP(TEXT(INDIRECT(\"'\"&F4794&\"'!\"&H4794),\"0\"),Notes!$B$5:$C$100,2,FALSE),\"\"))","v":""},"2c","$M$17","$N$17"]
[20266,{"$f":"Menu!$F$29","v":"X"},{"$f":"Menu!$J$29","v":2020},{"$f":"IF(ISBLANK(INDIRECT(\"'\"&F4795&\"'!\"&G4795)),\"\",INDIRECT(\"'\"&F4795&\"'!\"&G4795))","v":""},{"$f":"IF(ISBLANK(INDIRECT(\"'\"&F4795&\"'!\"&H4795)),\"\",IFERROR(VLOOKUP(TEXT(INDIRECT(\"'\"&F4795&\"'!\"&H4795),\"0\"),Notes!$B$5:$C$100,2,FALSE),\"\"))","v":""},"2c","$Q$17","$R$17"]
[20267,{"$f":"Menu!$F$29","v":"X"},{"$f":"Menu!$J$29","v":2020},{"$f":"IF(ISBLANK(INDIRECT(\"'\"&F4796&\"'!\"&G4796)),\"\",INDIRECT(\"'\"&F4796&\"'!\"&G4796))","v":""},{"$f":"IF(ISBLANK(INDIRECT(\"'\"&F4796&\"'!\"&H4796)),\"\",IFERROR(VLOOKUP(TEXT(INDIRECT(\"'\"&F4796&\"'!\"&H4796),\"0\"),Notes!$B$5:$C$100,2,FALSE),\"\"))","v":""},"2c","$U$17","$V$17"]
[20268,{"$f":"Menu!$F$29","v":"X"},{"$f":"Menu!$J$29","v":2020},{"$f":"IF(ISBLANK(INDIRECT(\"'\"&F4797&\"'!\"&G4797)),\"\",INDIRECT(\"'\"&F4797&\"'!\"&G4797))","v":""},{"$f":"IF(ISBLANK(INDIRECT(\"'\"&F4797&\"'!\"&H4797)),\"\",IFERROR(VLOOKUP(TEXT(INDIRECT(\"'\"&F4797&\"'!\"&H4797),\"0\"),Notes!$B$5:$C$100,2,FALSE),\"\"))","v":""},"2c","$S$17","$T$17"]
[20269,{"$f":"Menu!$F$29","v":"X"},{"$f":"Menu!$J$29","v":2020},{"$f":"IF(ISBLANK(INDIRECT(\"'\"&F4798&\"'!\"&G4798)),\"\",INDIRECT(\"'\"&F4798&\"'!\"&G4798))","v":""},{"$f":"IF(ISBLANK(INDIRECT(\"'\"&F4798&\"'!\"&H4798)),\"\",IFERROR(VLOOKUP(TEXT(INDIRECT(\"'\"&F4798&\"'!\"&H4798),\"0\"),Notes!$B$5:$C$100,2,FALSE),\"\"))","v":""},"2c","$W$17","$X$17"]
[20270,{"$f":"Menu!$F$29","v":"X"},{"$f":"Menu!$J$29","v":2020},{"$f":"IF(ISBLANK(INDIRECT(\"'\"&F4799&\"'!\"&G4799)),\"\",INDIRECT(\"'\"&F4799&\"'!\"&G4799))","v":""},{"$f":"IF(ISBLANK(INDIRECT(\"'\"&F4799&\"'!\"&H4799)),\"\",IFERROR(VLOOKUP(TEXT(INDIRECT(\"'\"&F4799&\"'!\"&H4799),\"0\"),Notes!$B$5:$C$100,2,FALSE),\"\"))","v":""},"2c","$AA$17","$AB$17"]
[20271,{"$f":"Menu!$F$29","v":"X"},{"$f":"Menu!$J$29","v":2020},{"$f":"IF(ISBLANK(INDIRECT(\"'\"&F4800&\"'!\"&G4800)),\"\",INDIRECT(\"'\"&F4800&\"'!\"&G4800))","v":""},{"$f":"IF(ISBLANK(INDIRECT(\"'\"&F4800&\"'!\"&H4800)),\"\",IFERROR(VLOOKUP(TEXT(INDIRECT(\"'\"&F4800&\"'!\"&H4800),\"0\"),Notes!$B$5:$C$100,2,FALSE),\"\"))","v":""},"2c","$Y$17","$Z$17"]
[20272,{"$f":"Menu!$F$29","v":"X"},{"$f":"Menu!$J$29","v":2020},{"$f":"IF(ISBLANK(INDIRECT(\"'\"&F4801&\"'!\"&G4801)),\"\",INDIRECT(\"'\"&F4801&\"'!\"&G4801))","v":""},{"$f":"IF(ISBLANK(INDIRECT(\"'\"&F4801&\"'!\"&H4801)),\"\",IFERROR(VLOOKUP(TEXT(INDIRECT(\"'\"&F4801&\"'!\"&H4801),\"0\"),Notes!$B$5:$C$100,2,FALSE),\"\"))","v":""},"2e","$BG$18","$BH$18"]
[20273,{"$f":"Menu!$F$29","v":"X"},{"$f":"Menu!$J$29","v":2020},{"$f":"IF(ISBLANK(INDIRECT(\"'\"&F4802&\"'!\"&G4802)),\"\",INDIRECT(\"'\"&F4802&\"'!\"&G4802))","v":""},{"$f":"IF(ISBLANK(INDIRECT(\"'\"&F4802&\"'!\"&H4802)),\"\",IFERROR(VLOOKUP(TEXT(INDIRECT(\"'\"&F4802&\"'!\"&H4802),\"0\"),Notes!$B$5:$C$100,2,FALSE),\"\"))","v":""},"2e","$BK$18",{"$f":"IF(LEN(TRIM(MID(G4802,4,10)))-LEN(SUBSTITUTE(TRIM(MID(G4802,4,10)),\"$\",\"\"))=0,\"$\"&CHAR(CODE(MID(G4802,2,1))+1)&\"$\"&TRIM(MID(G4802,4,10)),\"$\"&MID(G4802,2,1)&CHAR(CODE(MID(G4802,3,1))+1)&\"$\"&TRIM(MID(G4802,5,11)))","v":"$BL$18"}]
[20274,{"$f":"Menu!$F$29","v":"X"},{"$f":"Menu!$J$29","v":2020},{"$f":"IF(ISBLANK(INDIRECT(\"'\"&F4803&\"'!\"&G4803)),\"\",INDIRECT(\"'\"&F4803&\"'!\"&G4803))","v":""},{"$f":"IF(ISBLANK(INDIRECT(\"'\"&F4803&\"'!\"&H4803)),\"\",IFERROR(VLOOKUP(TEXT(INDIRECT(\"'\"&F4803&\"'!\"&H4803),\"0\"),Notes!$B$5:$C$100,2,FALSE),\"\"))","v":""},"2e","$BI$18","$BJ$18"]
[20275,{"$f":"Menu!$F$29","v":"X"},{"$f":"Menu!$J$29","v":2020},{"$f":"IF(ISBLANK(INDIRECT(\"'\"&F4804&\"'!\"&G4804)),\"\",INDIRECT(\"'\"&F4804&\"'!\"&G4804))","v":""},{"$f":"IF(ISBLANK(INDIRECT(\"'\"&F4804&\"'!\"&H4804)),\"\",IFERROR(VLOOKUP(TEXT(INDIRECT(\"'\"&F4804&\"'!\"&H4804),\"0\"),Notes!$B$5:$C$100,2,FALSE),\"\"))","v":""},"2e","$E$18","$F$18"]
[20276,{"$f":"Menu!$F$29","v":"X"},{"$f":"Menu!$J$29","v":2020},{"$f":"IF(ISBLANK(INDIRECT(\"'\"&F4805&\"'!\"&G4805)),\"\",INDIRECT(\"'\"&F4805&\"'!\"&G4805))","v":""},{"$f":"IF(ISBLANK(INDIRECT(\"'\"&F4805&\"'!\"&H4805)),\"\",IFERROR(VLOOKUP(TEXT(INDIRECT(\"'\"&F4805&\"'!\"&H4805),\"0\"),Notes!$B$5:$C$100,2,FALSE),\"\"))","v":""},"2e","$I$18","$J$18"]
[20277,{"$f":"Menu!$F$29","v":"X"},{"$f":"Menu!$J$29","v":2020},{"$f":"IF(ISBLANK(INDIRECT(\"'\"&F4806&\"'!\"&G4806)),\"\",INDIRECT(\"'\"&F4806&\"'!\"&G4806))","v":""},{"$f":"IF(ISBLANK(INDIRECT(\"'\"&F4806&\"'!\"&H4806)),\"\",IFERROR(VLOOKUP(TEXT(INDIRECT(\"'\"&F4806&\"'!\"&H4806),\"0\"),Notes!$B$5:$C$100,2,FALSE),\"\"))","v":""},"2e","$G$18","$H$18"]
[20278,{"$f":"Menu!$F$29","v":"X"},{"$f":"Menu!$J$29","v":2020},{"$f":"IF(ISBLANK(INDIRECT(\"'\"&F4807&\"'!\"&G4807)),\"\",INDIRECT(\"'\"&F4807&\"'!\"&G4807))","v":""},{"$f":"IF(ISBLANK(INDIRECT(\"'\"&F4807&\"'!\"&H4807)),\"\",IFERROR(VLOOKUP(TEXT(INDIRECT(\"'\"&F4807&\"'!\"&H4807),\"0\"),Notes!$B$5:$C$100,2,FALSE),\"\"))","v":""},"2e","$K$18","$L$18"]
[20279,{"$f":"Menu!$F$29","v":"X"},{"$f":"Menu!$J$29","v":2020},{"$f":"IF(ISBLANK(INDIRECT(\"'\"&F4808&\"'!\"&G4808)),\"\",INDIRECT(\"'\"&F4808&\"'!\"&G4808))","v":""},{"$f":"IF(ISBLANK(INDIRECT(\"'\"&F4808&\"'!\"&H4808)),\"\",IFERROR(VLOOKUP(TEXT(INDIRECT(\"'\"&F4808&\"'!\"&H4808),\"0\"),Notes!$B$5:$C$100,2,FALSE),\"\"))","v":""},"2e","$O$18","$P$18"]
[20280,{"$f":"Menu!$F$29","v":"X"},{"$f":"Menu!$J$29","v":2020},{"$f":"IF(ISBLANK(INDIRECT(\"'\"&F4809&\"'!\"&G4809)),\"\",INDIRECT(\"'\"&F4809&\"'!\"&G4809))","v":""},{"$f":"IF(ISBLANK(INDIRECT(\"'\"&F4809&\"'!\"&H4809)),\"\",IFERROR(VLOOKUP(TEXT(INDIRECT(\"'\"&F4809&\"'!\"&H4809),\"0\"),Notes!$B$5:$C$100,2,FALSE),\"\"))","v":""},"2e","$M$18","$N$18"]
[20281,{"$f":"Menu!$F$29","v":"X"},{"$f":"Menu!$J$29","v":2020},{"$f":"IF(ISBLANK(INDIRECT(\"'\"&F4810&\"'!\"&G4810)),\"\",INDIRECT(\"'\"&F4810&\"'!\"&G4810))","v":""},{"$f":"IF(ISBLANK(INDIRECT(\"'\"&F4810&\"'!\"&H4810)),\"\",IFERROR(VLOOKUP(TEXT(INDIRECT(\"'\"&F4810&\"'!\"&H4810),\"0\"),Notes!$B$5:$C$100,2,FALSE),\"\"))","v":""},"2e","$Q$18","$R$18"]
[20282,{"$f":"Menu!$F$29","v":"X"},{"$f":"Menu!$J$29","v":2020},{"$f":"IF(ISBLANK(INDIRECT(\"'\"&F4811&\"'!\"&G4811)),\"\",INDIRECT(\"'\"&F4811&\"'!\"&G4811))","v":""},{"$f":"IF(ISBLANK(INDIRECT(\"'\"&F4811&\"'!\"&H4811)),\"\",IFERROR(VLOOKUP(TEXT(INDIRECT(\"'\"&F4811&\"'!\"&H4811),\"0\"),Notes!$B$5:$C$100,2,FALSE),\"\"))","v":""},"2e","$U$18","$V$18"]
[20283,{"$f":"Menu!$F$29","v":"X"},{"$f":"Menu!$J$29","v":2020},{"$f":"IF(ISBLANK(INDIRECT(\"'\"&F4812&\"'!\"&G4812)),\"\",INDIRECT(\"'\"&F4812&\"'!\"&G4812))","v":""},{"$f":"IF(ISBLANK(INDIRECT(\"'\"&F4812&\"'!\"&H4812)),\"\",IFERROR(VLOOKUP(TEXT(INDIRECT(\"'\"&F4812&\"'!\"&H4812),\"0\"),Notes!$B$5:$C$100,2,FALSE),\"\"))","v":""},"2e","$S$18","$T$18"]
[20284,{"$f":"Menu!$F$29","v":"X"},{"$f":"Menu!$J$29","v":2020},{"$f":"IF(ISBLANK(INDIRECT(\"'\"&F4813&\"'!\"&G4813)),\"\",INDIRECT(\"'\"&F4813&\"'!\"&G4813))","v":""},{"$f":"IF(ISBLANK(INDIRECT(\"'\"&F4813&\"'!\"&H4813)),\"\",IFERROR(VLOOKUP(TEXT(INDIRECT(\"'\"&F4813&\"'!\"&H4813),\"0\"),Notes!$B$5:$C$100,2,FALSE),\"\"))","v":""},"2e","$W$18","$X$18"]
[20285,{"$f":"Menu!$F$29","v":"X"},{"$f":"Menu!$J$29","v":2020},{"$f":"IF(ISBLANK(INDIRECT(\"'\"&F4814&\"'!\"&G4814)),\"\",INDIRECT(\"'\"&F4814&\"'!\"&G4814))","v":""},{"$f":"IF(ISBLANK(INDIRECT(\"'\"&F4814&\"'!\"&H4814)),\"\",IFERROR(VLOOKUP(TEXT(INDIRECT(\"'\"&F4814&\"'!\"&H4814),\"0\"),Notes!$B$5:$C$100,2,FALSE),\"\"))","v":""},"2e","$AA$18","$AB$18"]
[20286,{"$f":"Menu!$F$29","v":"X"},{"$f":"Menu!$J$29","v":2020},{"$f":"IF(ISBLANK(INDIRECT(\"'\"&F4815&\"'!\"&G4815)),\"\",INDIRECT(\"'\"&F4815&\"'!\"&G4815))","v":""},{"$f":"IF(ISBLANK(INDIRECT(\"'\"&F4815&\"'!\"&H4815)),\"\",IFERROR(VLOOKUP(TEXT(INDIRECT(\"'\"&F4815&\"'!\"&H4815),\"0\"),Notes!$B$5:$C$100,2,FALSE),\"\"))","v":""},"2e","$Y$18","$Z$18"]
[20287,{"$f":"Menu!$F$29","v":"X"},{"$f":"Menu!$J$29","v":2020},{"$f":"IF(ISBLANK(INDIRECT(\"'\"&F4816&\"'!\"&G4816)),\"\",INDIRECT(\"'\"&F4816&\"'!\"&G4816))","v":""},{"$f":"IF(ISBLANK(INDIRECT(\"'\"&F4816&\"'!\"&H4816)),\"\",IFERROR(VLOOKUP(TEXT(INDIRECT(\"'\"&F4816&\"'!\"&H4816),\"0\"),Notes!$B$5:$C$100,2,FALSE),\"\"))","v":""},"2e","$AC$18","$AD$18"]
[20288,{"$f":"Menu!$F$29","v":"X"},{"$f":"Menu!$J$29","v":2020},{"$f":"IF(ISBLANK(INDIRECT(\"'\"&F4817&\"'!\"&G4817)),\"\",INDIRECT(\"'\"&F4817&\"'!\"&G4817))","v":""},{"$f":"IF(ISBLANK(INDIRECT(\"'\"&F4817&\"'!\"&H4817)),\"\",IFERROR(VLOOKUP(TEXT(INDIRECT(\"'\"&F4817&\"'!\"&H4817),\"0\"),Notes!$B$5:$C$100,2,FALSE),\"\"))","v":""},"2e","$AG$18","$AH$18"]
[20289,{"$f":"Menu!$F$29","v":"X"},{"$f":"Menu!$J$29","v":2020},{"$f":"IF(ISBLANK(INDIRECT(\"'\"&F4818&\"'!\"&G4818)),\"\",INDIRECT(\"'\"&F4818&\"'!\"&G4818))","v":""},{"$f":"IF(ISBLANK(INDIRECT(\"'\"&F4818&\"'!\"&H4818)),\"\",IFERROR(VLOOKUP(TEXT(INDIRECT(\"'\"&F4818&\"'!\"&H4818),\"0\"),Notes!$B$5:$C$100,2,FALSE),\"\"))","v":""},"2e","$AE$18","$AF$18"]
[20290,{"$f":"Menu!$F$29","v":"X"},{"$f":"Menu!$J$29","v":2020},{"$f":"IF(ISBLANK(INDIRECT(\"'\"&F4819&\"'!\"&G4819)),\"\",INDIRECT(\"'\"&F4819&\"'!\"&G4819))","v":""},{"$f":"IF(ISBLANK(INDIRECT(\"'\"&F4819&\"'!\"&H4819)),\"\",IFERROR(VLOOKUP(TEXT(INDIRECT(\"'\"&F4819&\"'!\"&H4819),\"0\"),Notes!$B$5:$C$100,2,FALSE),\"\"))","v":""},"2e","$AI$18","$AJ$18"]
[20291,{"$f":"Menu!$F$29","v":"X"},{"$f":"Menu!$J$29","v":2020},{"$f":"IF(ISBLANK(INDIRECT(\"'\"&F4820&\"'!\"&G4820)),\"\",INDIRECT(\"'\"&F4820&\"'!\"&G4820))","v":""},{"$f":"IF(ISBLANK(INDIRECT(\"'\"&F4820&\"'!\"&H4820)),\"\",IFERROR(VLOOKUP(TEXT(INDIRECT(\"'\"&F4820&\"'!\"&H4820),\"0\"),Notes!$B$5:$C$100,2,FALSE),\"\"))","v":""},"2e","$AM$18","$AN$18"]
[20292,{"$f":"Menu!$F$29","v":"X"},{"$f":"Menu!$J$29","v":2020},{"$f":"IF(ISBLANK(INDIRECT(\"'\"&F4821&\"'!\"&G4821)),\"\",INDIRECT(\"'\"&F4821&\"'!\"&G4821))","v":""},{"$f":"IF(ISBLANK(INDIRECT(\"'\"&F4821&\"'!\"&H4821)),\"\",IFERROR(VLOOKUP(TEXT(INDIRECT(\"'\"&F4821&\"'!\"&H4821),\"0\"),Notes!$B$5:$C$100,2,FALSE),\"\"))","v":""},"2e","$AK$18","$AL$18"]
[20293,{"$f":"Menu!$F$29","v":"X"},{"$f":"Menu!$J$29","v":2020},{"$f":"IF(ISBLANK(INDIRECT(\"'\"&F4822&\"'!\"&G4822)),\"\",INDIRECT(\"'\"&F4822&\"'!\"&G4822))","v":""},{"$f":"IF(ISBLANK(INDIRECT(\"'\"&F4822&\"'!\"&H4822)),\"\",IFERROR(VLOOKUP(TEXT(INDIRECT(\"'\"&F4822&\"'!\"&H4822),\"0\"),Notes!$B$5:$C$100,2,FALSE),\"\"))","v":""},"2e","$AO$18","$AP$18"]
[20294,{"$f":"Menu!$F$29","v":"X"},{"$f":"Menu!$J$29","v":2020},{"$f":"IF(ISBLANK(INDIRECT(\"'\"&F4823&\"'!\"&G4823)),\"\",INDIRECT(\"'\"&F4823&\"'!\"&G4823))","v":""},{"$f":"IF(ISBLANK(INDIRECT(\"'\"&F4823&\"'!\"&H4823)),\"\",IFERROR(VLOOKUP(TEXT(INDIRECT(\"'\"&F4823&\"'!\"&H4823),\"0\"),Notes!$B$5:$C$100,2,FALSE),\"\"))","v":""},"2e","$AQ$18","$AR$18"]
[20295,{"$f":"Menu!$F$29","v":"X"},{"$f":"Menu!$J$29","v":2020},{"$f":"IF(ISBLANK(INDIRECT(\"'\"&F4824&\"'!\"&G4824)),\"\",INDIRECT(\"'\"&F4824&\"'!\"&G4824))","v":""},{"$f":"IF(ISBLANK(INDIRECT(\"'\"&F4824&\"'!\"&H4824)),\"\",IFERROR(VLOOKUP(TEXT(INDIRECT(\"'\"&F4824&\"'!\"&H4824),\"0\"),Notes!$B$5:$C$100,2,FALSE),\"\"))","v":""},"2e","$AS$18","$AT$18"]
[20296,{"$f":"Menu!$F$29","v":"X"},{"$f":"Menu!$J$29","v":2020},{"$f":"IF(ISBLANK(INDIRECT(\"'\"&F4825&\"'!\"&G4825)),\"\",INDIRECT(\"'\"&F4825&\"'!\"&G4825))","v":""},{"$f":"IF(ISBLANK(INDIRECT(\"'\"&F4825&\"'!\"&H4825)),\"\",IFERROR(VLOOKUP(TEXT(INDIRECT(\"'\"&F4825&\"'!\"&H4825),\"0\"),Notes!$B$5:$C$100,2,FALSE),\"\"))","v":""},"2e","$AU$18","$AV$18"]
[20297,{"$f":"Menu!$F$29","v":"X"},{"$f":"Menu!$J$29","v":2020},{"$f":"IF(ISBLANK(INDIRECT(\"'\"&F4826&\"'!\"&G4826)),\"\",INDIRECT(\"'\"&F4826&\"'!\"&G4826))","v":""},{"$f":"IF(ISBLANK(INDIRECT(\"'\"&F4826&\"'!\"&H4826)),\"\",IFERROR(VLOOKUP(TEXT(INDIRECT(\"'\"&F4826&\"'!\"&H4826),\"0\"),Notes!$B$5:$C$100,2,FALSE),\"\"))","v":""},"2e","$AY$18","$AZ$18"]
[20298,{"$f":"Menu!$F$29","v":"X"},{"$f":"Menu!$J$29","v":2020},{"$f":"IF(ISBLANK(INDIRECT(\"'\"&F4827&\"'!\"&G4827)),\"\",INDIRECT(\"'\"&F4827&\"'!\"&G4827))","v":""},{"$f":"IF(ISBLANK(INDIRECT(\"'\"&F4827&\"'!\"&H4827)),\"\",IFERROR(VLOOKUP(TEXT(INDIRECT(\"'\"&F4827&\"'!\"&H4827),\"0\"),Notes!$B$5:$C$100,2,FALSE),\"\"))","v":""},"2e","$AW$18","$AX$18"]
[20299,{"$f":"Menu!$F$29","v":"X"},{"$f":"Menu!$J$29","v":2020},{"$f":"IF(ISBLANK(INDIRECT(\"'\"&F4828&\"'!\"&G4828)),\"\",INDIRECT(\"'\"&F4828&\"'!\"&G4828))","v":""},{"$f":"IF(ISBLANK(INDIRECT(\"'\"&F4828&\"'!\"&H4828)),\"\",IFERROR(VLOOKUP(TEXT(INDIRECT(\"'\"&F4828&\"'!\"&H4828),\"0\"),Notes!$B$5:$C$100,2,FALSE),\"\"))","v":""},"2e","$BA$18","$BB$18"]
[20300,{"$f":"Menu!$F$29","v":"X"},{"$f":"Menu!$J$29","v":2020},{"$f":"IF(ISBLANK(INDIRECT(\"'\"&F4829&\"'!\"&G4829)),\"\",INDIRECT(\"'\"&F4829&\"'!\"&G4829))","v":""},{"$f":"IF(ISBLANK(INDIRECT(\"'\"&F4829&\"'!\"&H4829)),\"\",IFERROR(VLOOKUP(TEXT(INDIRECT(\"'\"&F4829&\"'!\"&H4829),\"0\"),Notes!$B$5:$C$100,2,FALSE),\"\"))","v":""},"2e","$BE$18","$BF$18"]
[20301,{"$f":"Menu!$F$29","v":"X"},{"$f":"Menu!$J$29","v":2020},{"$f":"IF(ISBLANK(INDIRECT(\"'\"&F4830&\"'!\"&G4830)),\"\",INDIRECT(\"'\"&F4830&\"'!\"&G4830))","v":""},{"$f":"IF(ISBLANK(INDIRECT(\"'\"&F4830&\"'!\"&H4830)),\"\",IFERROR(VLOOKUP(TEXT(INDIRECT(\"'\"&F4830&\"'!\"&H4830),\"0\"),Notes!$B$5:$C$100,2,FALSE),\"\"))","v":""},"2e","$BC$18","$BD$18"]
[20302,{"$f":"Menu!$F$29","v":"X"},{"$f":"Menu!$J$29","v":2020},{"$f":"IF(ISBLANK(INDIRECT(\"'\"&F4831&\"'!\"&G4831)),\"\",INDIRECT(\"'\"&F4831&\"'!\"&G4831))","v":""},{"$f":"IF(ISBLANK(INDIRECT(\"'\"&F4831&\"'!\"&H4831)),\"\",IFERROR(VLOOKUP(TEXT(INDIRECT(\"'\"&F4831&\"'!\"&H4831),\"0\"),Notes!$B$5:$C$100,2,FALSE),\"\"))","v":""},"2b","$E$17","$F$17"]
[20303,{"$f":"Menu!$F$29","v":"X"},{"$f":"Menu!$J$29","v":2020},{"$f":"IF(ISBLANK(INDIRECT(\"'\"&F4832&\"'!\"&G4832)),\"\",INDIRECT(\"'\"&F4832&\"'!\"&G4832))","v":""},{"$f":"IF(ISBLANK(INDIRECT(\"'\"&F4832&\"'!\"&H4832)),\"\",IFERROR(VLOOKUP(TEXT(INDIRECT(\"'\"&F4832&\"'!\"&H4832),\"0\"),Notes!$B$5:$C$100,2,FALSE),\"\"))","v":""},"2b","$I$17","$J$17"]
[20304,{"$f":"Menu!$F$29","v":"X"},{"$f":"Menu!$J$29","v":2020},{"$f":"IF(ISBLANK(INDIRECT(\"'\"&F4833&\"'!\"&G4833)),\"\",INDIRECT(\"'\"&F4833&\"'!\"&G4833))","v":""},{"$f":"IF(ISBLANK(INDIRECT(\"'\"&F4833&\"'!\"&H4833)),\"\",IFERROR(VLOOKUP(TEXT(INDIRECT(\"'\"&F4833&\"'!\"&H4833),\"0\"),Notes!$B$5:$C$100,2,FALSE),\"\"))","v":""},"2b","$G$17","$H$17"]
[20305,{"$f":"Menu!$F$29","v":"X"},{"$f":"Menu!$J$29","v":2020},{"$f":"IF(ISBLANK(INDIRECT(\"'\"&F4834&\"'!\"&G4834)),\"\",INDIRECT(\"'\"&F4834&\"'!\"&G4834))","v":""},{"$f":"IF(ISBLANK(INDIRECT(\"'\"&F4834&\"'!\"&H4834)),\"\",IFERROR(VLOOKUP(TEXT(INDIRECT(\"'\"&F4834&\"'!\"&H4834),\"0\"),Notes!$B$5:$C$100,2,FALSE),\"\"))","v":""},"2a","$G$17","$H$17"]
[20306,{"$f":"Menu!$F$29","v":"X"},{"$f":"Menu!$J$29","v":2020},{"$f":"IF(ISBLANK(INDIRECT(\"'\"&F4835&\"'!\"&G4835)),\"\",INDIRECT(\"'\"&F4835&\"'!\"&G4835))","v":""},{"$f":"IF(ISBLANK(INDIRECT(\"'\"&F4835&\"'!\"&H4835)),\"\",IFERROR(VLOOKUP(TEXT(INDIRECT(\"'\"&F4835&\"'!\"&H4835),\"0\"),Notes!$B$5:$C$100,2,FALSE),\"\"))","v":""},"2b","$W$17","$X$17"]
[20307,{"$f":"Menu!$F$29","v":"X"},{"$f":"Menu!$J$29","v":2020},{"$f":"IF(ISBLANK(INDIRECT(\"'\"&F4836&\"'!\"&G4836)),\"\",INDIRECT(\"'\"&F4836&\"'!\"&G4836))","v":""},{"$f":"IF(ISBLANK(INDIRECT(\"'\"&F4836&\"'!\"&H4836)),\"\",IFERROR(VLOOKUP(TEXT(INDIRECT(\"'\"&F4836&\"'!\"&H4836),\"0\"),Notes!$B$5:$C$100,2,FALSE),\"\"))","v":""},"2b","$AA$17","$AB$17"]
[20308,{"$f":"Menu!$F$29","v":"X"},{"$f":"Menu!$J$29","v":2020},{"$f":"IF(ISBLANK(INDIRECT(\"'\"&F4837&\"'!\"&G4837)),\"\",INDIRECT(\"'\"&F4837&\"'!\"&G4837))","v":""},{"$f":"IF(ISBLANK(INDIRECT(\"'\"&F4837&\"'!\"&H4837)),\"\",IFERROR(VLOOKUP(TEXT(INDIRECT(\"'\"&F4837&\"'!\"&H4837),\"0\"),Notes!$B$5:$C$100,2,FALSE),\"\"))","v":""},"2b","$Y$17","$Z$17"]
[20309,{"$f":"Menu!$F$29","v":"X"},{"$f":"Menu!$J$29","v":2020},{"$f":"IF(ISBLANK(INDIRECT(\"'\"&F4838&\"'!\"&G4838)),\"\",INDIRECT(\"'\"&F4838&\"'!\"&G4838))","v":""},{"$f":"IF(ISBLANK(INDIRECT(\"'\"&F4838&\"'!\"&H4838)),\"\",IFERROR(VLOOKUP(TEXT(INDIRECT(\"'\"&F4838&\"'!\"&H4838),\"0\"),Notes!$B$5:$C$100,2,FALSE),\"\"))","v":""},"2d","$AC$17","$AD$17"]
[20310,{"$f":"Menu!$F$29","v":"X"},{"$f":"Menu!$J$29","v":2020},{"$f":"IF(ISBLANK(INDIRECT(\"'\"&F4839&\"'!\"&G4839)),\"\",INDIRECT(\"'\"&F4839&\"'!\"&G4839))","v":""},{"$f":"IF(ISBLANK(INDIRECT(\"'\"&F4839&\"'!\"&H4839)),\"\",IFERROR(VLOOKUP(TEXT(INDIRECT(\"'\"&F4839&\"'!\"&H4839),\"0\"),Notes!$B$5:$C$100,2,FALSE),\"\"))","v":""},"2d","$AG$17","$AH$17"]
[20311,{"$f":"Menu!$F$29","v":"X"},{"$f":"Menu!$J$29","v":2020},{"$f":"IF(ISBLANK(INDIRECT(\"'\"&F4840&\"'!\"&G4840)),\"\",INDIRECT(\"'\"&F4840&\"'!\"&G4840))","v":""},{"$f":"IF(ISBLANK(INDIRECT(\"'\"&F4840&\"'!\"&H4840)),\"\",IFERROR(VLOOKUP(TEXT(INDIRECT(\"'\"&F4840&\"'!\"&H4840),\"0\"),Notes!$B$5:$C$100,2,FALSE),\"\"))","v":""},"2d","$AE$17","$AF$17"]
[20312,{"$f":"Menu!$F$29","v":"X"},{"$f":"Menu!$J$29","v":2020},{"$f":"IF(ISBLANK(INDIRECT(\"'\"&F4841&\"'!\"&G4841)),\"\",INDIRECT(\"'\"&F4841&\"'!\"&G4841))","v":""},{"$f":"IF(ISBLANK(INDIRECT(\"'\"&F4841&\"'!\"&H4841)),\"\",IFERROR(VLOOKUP(TEXT(INDIRECT(\"'\"&F4841&\"'!\"&H4841),\"0\"),Notes!$B$5:$C$100,2,FALSE),\"\"))","v":""},"2d","$W$17","$X$17"]
[20313,{"$f":"Menu!$F$29","v":"X"},{"$f":"Menu!$J$29","v":2020},{"$f":"IF(ISBLANK(INDIRECT(\"'\"&F4842&\"'!\"&G4842)),\"\",INDIRECT(\"'\"&F4842&\"'!\"&G4842))","v":""},{"$f":"IF(ISBLANK(INDIRECT(\"'\"&F4842&\"'!\"&H4842)),\"\",IFERROR(VLOOKUP(TEXT(INDIRECT(\"'\"&F4842&\"'!\"&H4842),\"0\"),Notes!$B$5:$C$100,2,FALSE),\"\"))","v":""},"2d","$AA$17","$AB$17"]
[20314,{"$f":"Menu!$F$29","v":"X"},{"$f":"Menu!$J$29","v":2020},{"$f":"IF(ISBLANK(INDIRECT(\"'\"&F4843&\"'!\"&G4843)),\"\",INDIRECT(\"'\"&F4843&\"'!\"&G4843))","v":""},{"$f":"IF(ISBLANK(INDIRECT(\"'\"&F4843&\"'!\"&H4843)),\"\",IFERROR(VLOOKUP(TEXT(INDIRECT(\"'\"&F4843&\"'!\"&H4843),\"0\"),Notes!$B$5:$C$100,2,FALSE),\"\"))","v":""},"2d","$Y$17","$Z$17"]
[20315,{"$f":"Menu!$F$29","v":"X"},{"$f":"Menu!$J$29","v":2020},{"$f":"IF(ISBLANK(INDIRECT(\"'\"&F4844&\"'!\"&G4844)),\"\",INDIRECT(\"'\"&F4844&\"'!\"&G4844))","v":""},{"$f":"IF(ISBLANK(INDIRECT(\"'\"&F4844&\"'!\"&H4844)),\"\",IFERROR(VLOOKUP(TEXT(INDIRECT(\"'\"&F4844&\"'!\"&H4844),\"0\"),Notes!$B$5:$C$100,2,FALSE),\"\"))","v":""},"2d","$E$17","$F$17"]
[20316,{"$f":"Menu!$F$29","v":"X"},{"$f":"Menu!$J$29","v":2020},{"$f":"IF(ISBLANK(INDIRECT(\"'\"&F4845&\"'!\"&G4845)),\"\",INDIRECT(\"'\"&F4845&\"'!\"&G4845))","v":""},{"$f":"IF(ISBLANK(INDIRECT(\"'\"&F4845&\"'!\"&H4845)),\"\",IFERROR(VLOOKUP(TEXT(INDIRECT(\"'\"&F4845&\"'!\"&H4845),\"0\"),Notes!$B$5:$C$100,2,FALSE),\"\"))","v":""},"2d","$I$17","$J$17"]
[20317,{"$f":"Menu!$F$29","v":"X"},{"$f":"Menu!$J$29","v":2020},{"$f":"IF(ISBLANK(INDIRECT(\"'\"&F4846&\"'!\"&G4846)),\"\",INDIRECT(\"'\"&F4846&\"'!\"&G4846))","v":""},{"$f":"IF(ISBLANK(INDIRECT(\"'\"&F4846&\"'!\"&H4846)),\"\",IFERROR(VLOOKUP(TEXT(INDIRECT(\"'\"&F4846&\"'!\"&H4846),\"0\"),Notes!$B$5:$C$100,2,FALSE),\"\"))","v":""},"2d","$G$17","$H$17"]
[20318,{"$f":"Menu!$F$29","v":"X"},{"$f":"Menu!$J$29","v":2020},{"$f":"IF(ISBLANK(INDIRECT(\"'\"&F4847&\"'!\"&G4847)),\"\",INDIRECT(\"'\"&F4847&\"'!\"&G4847))","v":""},{"$f":"IF(ISBLANK(INDIRECT(\"'\"&F4847&\"'!\"&H4847)),\"\",IFERROR(VLOOKUP(TEXT(INDIRECT(\"'\"&F4847&\"'!\"&H4847),\"0\"),Notes!$B$5:$C$100,2,FALSE),\"\"))","v":""},"2a","$U$17","$V$17"]
[20319,{"$f":"Menu!$F$29","v":"X"},{"$f":"Menu!$J$29","v":2020},{"$f":"IF(ISBLANK(INDIRECT(\"'\"&F4848&\"'!\"&G4848)),\"\",INDIRECT(\"'\"&F4848&\"'!\"&G4848))","v":""},{"$f":"IF(ISBLANK(INDIRECT(\"'\"&F4848&\"'!\"&H4848)),\"\",IFERROR(VLOOKUP(TEXT(INDIRECT(\"'\"&F4848&\"'!\"&H4848),\"0\"),Notes!$B$5:$C$100,2,FALSE),\"\"))","v":""},"2a","$S$17","$T$17"]
[20320,{"$f":"Menu!$F$29","v":"X"},{"$f":"Menu!$J$29","v":2020},{"$f":"IF(ISBLANK(INDIRECT(\"'\"&F4849&\"'!\"&G4849)),\"\",INDIRECT(\"'\"&F4849&\"'!\"&G4849))","v":""},{"$f":"IF(ISBLANK(INDIRECT(\"'\"&F4849&\"'!\"&H4849)),\"\",IFERROR(VLOOKUP(TEXT(INDIRECT(\"'\"&F4849&\"'!\"&H4849),\"0\"),Notes!$B$5:$C$100,2,FALSE),\"\"))","v":""},"2a","$Q$17","$R$17"]
[20321,{"$f":"Menu!$F$29","v":"X"},{"$f":"Menu!$J$29","v":2020},{"$f":"IF(ISBLANK(INDIRECT(\"'\"&F4850&\"'!\"&G4850)),\"\",INDIRECT(\"'\"&F4850&\"'!\"&G4850))","v":""},{"$f":"IF(ISBLANK(INDIRECT(\"'\"&F4850&\"'!\"&H4850)),\"\",IFERROR(VLOOKUP(TEXT(INDIRECT(\"'\"&F4850&\"'!\"&H4850),\"0\"),Notes!$B$5:$C$100,2,FALSE),\"\"))","v":""},"2d","$K$17","$L$17"]
[20322,{"$f":"Menu!$F$29","v":"X"},{"$f":"Menu!$J$29","v":2020},{"$f":"IF(ISBLANK(INDIRECT(\"'\"&F4851&\"'!\"&G4851)),\"\",INDIRECT(\"'\"&F4851&\"'!\"&G4851))","v":""},{"$f":"IF(ISBLANK(INDIRECT(\"'\"&F4851&\"'!\"&H4851)),\"\",IFERROR(VLOOKUP(TEXT(INDIRECT(\"'\"&F4851&\"'!\"&H4851),\"0\"),Notes!$B$5:$C$100,2,FALSE),\"\"))","v":""},"2d","$O$17","$P$17"]
[20323,{"$f":"Menu!$F$29","v":"X"},{"$f":"Menu!$J$29","v":2020},{"$f":"IF(ISBLANK(INDIRECT(\"'\"&F4852&\"'!\"&G4852)),\"\",INDIRECT(\"'\"&F4852&\"'!\"&G4852))","v":""},{"$f":"IF(ISBLANK(INDIRECT(\"'\"&F4852&\"'!\"&H4852)),\"\",IFERROR(VLOOKUP(TEXT(INDIRECT(\"'\"&F4852&\"'!\"&H4852),\"0\"),Notes!$B$5:$C$100,2,FALSE),\"\"))","v":""},"2d","$M$17","$N$17"]
[20324,{"$f":"Menu!$F$29","v":"X"},{"$f":"Menu!$J$29","v":2020},{"$f":"IF(ISBLANK(INDIRECT(\"'\"&F4853&\"'!\"&G4853)),\"\",INDIRECT(\"'\"&F4853&\"'!\"&G4853))","v":""},{"$f":"IF(ISBLANK(INDIRECT(\"'\"&F4853&\"'!\"&H4853)),\"\",IFERROR(VLOOKUP(TEXT(INDIRECT(\"'\"&F4853&\"'!\"&H4853),\"0\"),Notes!$B$5:$C$100,2,FALSE),\"\"))","v":""},"2d","$Q$17","$R$17"]
[20325,{"$f":"Menu!$F$29","v":"X"},{"$f":"Menu!$J$29","v":2020},{"$f":"IF(ISBLANK(INDIRECT(\"'\"&F4854&\"'!\"&G4854)),\"\",INDIRECT(\"'\"&F4854&\"'!\"&G4854))","v":""},{"$f":"IF(ISBLANK(INDIRECT(\"'\"&F4854&\"'!\"&H4854)),\"\",IFERROR(VLOOKUP(TEXT(INDIRECT(\"'\"&F4854&\"'!\"&H4854),\"0\"),Notes!$B$5:$C$100,2,FALSE),\"\"))","v":""},"2d","$U$17","$V$17"]
[20326,{"$f":"Menu!$F$29","v":"X"},{"$f":"Menu!$J$29","v":2020},{"$f":"IF(ISBLANK(INDIRECT(\"'\"&F4855&\"'!\"&G4855)),\"\",INDIRECT(\"'\"&F4855&\"'!\"&G4855))","v":""},{"$f":"IF(ISBLANK(INDIRECT(\"'\"&F4855&\"'!\"&H4855)),\"\",IFERROR(VLOOKUP(TEXT(INDIRECT(\"'\"&F4855&\"'!\"&H4855),\"0\"),Notes!$B$5:$C$100,2,FALSE),\"\"))","v":""},"2d","$S$17","$T$17"]
[20327,{"$f":"Menu!$F$29","v":"X"},{"$f":"Menu!$J$29","v":2020},{"$f":"IF(ISBLANK(INDIRECT(\"'\"&F4856&\"'!\"&G4856)),\"\",INDIRECT(\"'\"&F4856&\"'!\"&G4856))","v":""},{"$f":"IF(ISBLANK(INDIRECT(\"'\"&F4856&\"'!\"&H4856)),\"\",IFERROR(VLOOKUP(TEXT(INDIRECT(\"'\"&F4856&\"'!\"&H4856),\"0\"),Notes!$B$5:$C$100,2,FALSE),\"\"))","v":""},"2a","$O$17","$P$17"]
[20328,{"$f":"Menu!$F$29","v":"X"},{"$f":"Menu!$J$29","v":2020},{"$f":"IF(ISBLANK(INDIRECT(\"'\"&F4857&\"'!\"&G4857)),\"\",INDIRECT(\"'\"&F4857&\"'!\"&G4857))","v":""},{"$f":"IF(ISBLANK(INDIRECT(\"'\"&F4857&\"'!\"&H4857)),\"\",IFERROR(VLOOKUP(TEXT(INDIRECT(\"'\"&F4857&\"'!\"&H4857),\"0\"),Notes!$B$5:$C$100,2,FALSE),\"\"))","v":""},"2a","$M$17","$N$17"]
[20329,{"$f":"Menu!$F$29","v":"X"},{"$f":"Menu!$J$29","v":2020},{"$f":"IF(ISBLANK(INDIRECT(\"'\"&F4858&\"'!\"&G4858)),\"\",INDIRECT(\"'\"&F4858&\"'!\"&G4858))","v":""},{"$f":"IF(ISBLANK(INDIRECT(\"'\"&F4858&\"'!\"&H4858)),\"\",IFERROR(VLOOKUP(TEXT(INDIRECT(\"'\"&F4858&\"'!\"&H4858),\"0\"),Notes!$B$5:$C$100,2,FALSE),\"\"))","v":""},"2a","$K$17","$L$17"]
[20330,{"$f":"Menu!$F$29","v":"X"},{"$f":"Menu!$J$29","v":2020},{"$f":"IF(ISBLANK(INDIRECT(\"'\"&F4859&\"'!\"&G4859)),\"\",INDIRECT(\"'\"&F4859&\"'!\"&G4859))","v":""},{"$f":"IF(ISBLANK(INDIRECT(\"'\"&F4859&\"'!\"&H4859)),\"\",IFERROR(VLOOKUP(TEXT(INDIRECT(\"'\"&F4859&\"'!\"&H4859),\"0\"),Notes!$B$5:$C$100,2,FALSE),\"\"))","v":""},"2a","$E$17","$F$17"]
[21673,{"$f":"Menu!$F$29","v":"X"},{"$f":"Menu!$J$29","v":2020},{"$f":"IF(ISBLANK(INDIRECT(\"'\"&F4860&\"'!\"&G4860)),\"\",INDIRECT(\"'\"&F4860&\"'!\"&G4860))","v":""},{"$f":"IF(ISBLANK(INDIRECT(\"'\"&F4860&\"'!\"&H4860)),\"\",IFERROR(VLOOKUP(TEXT(INDIRECT(\"'\"&F4860&\"'!\"&H4860),\"0\"),Notes!$B$5:$C$100,2,FALSE),\"\"))","v":""},"1a","$K$34","$L$34"]
[21674,{"$f":"Menu!$F$29","v":"X"},{"$f":"Menu!$J$29","v":2020},{"$f":"IF(ISBLANK(INDIRECT(\"'\"&F4861&\"'!\"&G4861)),\"\",INDIRECT(\"'\"&F4861&\"'!\"&G4861))","v":""},{"$f":"IF(ISBLANK(INDIRECT(\"'\"&F4861&\"'!\"&H4861)),\"\",IFERROR(VLOOKUP(TEXT(INDIRECT(\"'\"&F4861&\"'!\"&H4861),\"0\"),Notes!$B$5:$C$100,2,FALSE),\"\"))","v":""},"1a","$O$34","$P$34"]
[21675,{"$f":"Menu!$F$29","v":"X"},{"$f":"Menu!$J$29","v":2020},{"$f":"IF(ISBLANK(INDIRECT(\"'\"&F4862&\"'!\"&G4862)),\"\",INDIRECT(\"'\"&F4862&\"'!\"&G4862))","v":""},{"$f":"IF(ISBLANK(INDIRECT(\"'\"&F4862&\"'!\"&H4862)),\"\",IFERROR(VLOOKUP(TEXT(INDIRECT(\"'\"&F4862&\"'!\"&H4862),\"0\"),Notes!$B$5:$C$100,2,FALSE),\"\"))","v":""},"1a","$M$34","$N$34"]
[21676,{"$f":"Menu!$F$29","v":"X"},{"$f":"Menu!$J$29","v":2020},{"$f":"IF(ISBLANK(INDIRECT(\"'\"&F4863&\"'!\"&G4863)),\"\",INDIRECT(\"'\"&F4863&\"'!\"&G4863))","v":""},{"$f":"IF(ISBLANK(INDIRECT(\"'\"&F4863&\"'!\"&H4863)),\"\",IFERROR(VLOOKUP(TEXT(INDIRECT(\"'\"&F4863&\"'!\"&H4863),\"0\"),Notes!$B$5:$C$100,2,FALSE),\"\"))","v":""},"1a","$Q$34","$R$34"]
[21677,{"$f":"Menu!$F$29","v":"X"},{"$f":"Menu!$J$29","v":2020},{"$f":"IF(ISBLANK(INDIRECT(\"'\"&F4864&\"'!\"&G4864)),\"\",INDIRECT(\"'\"&F4864&\"'!\"&G4864))","v":""},{"$f":"IF(ISBLANK(INDIRECT(\"'\"&F4864&\"'!\"&H4864)),\"\",IFERROR(VLOOKUP(TEXT(INDIRECT(\"'\"&F4864&\"'!\"&H4864),\"0\"),Notes!$B$5:$C$100,2,FALSE),\"\"))","v":""},"1a","$U$34","$V$34"]
[21678,{"$f":"Menu!$F$29","v":"X"},{"$f":"Menu!$J$29","v":2020},{"$f":"IF(ISBLANK(INDIRECT(\"'\"&F4865&\"'!\"&G4865)),\"\",INDIRECT(\"'\"&F4865&\"'!\"&G4865))","v":""},{"$f":"IF(ISBLANK(INDIRECT(\"'\"&F4865&\"'!\"&H4865)),\"\",IFERROR(VLOOKUP(TEXT(INDIRECT(\"'\"&F4865&\"'!\"&H4865),\"0\"),Notes!$B$5:$C$100,2,FALSE),\"\"))","v":""},"1a","$S$34","$T$34"]
[21679,{"$f":"Menu!$F$29","v":"X"},{"$f":"Menu!$J$29","v":2020},{"$f":"IF(ISBLANK(INDIRECT(\"'\"&F4866&\"'!\"&G4866)),\"\",INDIRECT(\"'\"&F4866&\"'!\"&G4866))","v":""},{"$f":"IF(ISBLANK(INDIRECT(\"'\"&F4866&\"'!\"&H4866)),\"\",IFERROR(VLOOKUP(TEXT(INDIRECT(\"'\"&F4866&\"'!\"&H4866),\"0\"),Notes!$B$5:$C$100,2,FALSE),\"\"))","v":""},"1a","$I$34",{"$f":"IF(LEN(TRIM(MID(G4866,4,10)))-LEN(SUBSTITUTE(TRIM(MID(G4866,4,10)),\"$\",\"\"))=0,\"$\"&CHAR(CODE(MID(G4866,2,1))+1)&\"$\"&TRIM(MID(G4866,4,10)),\"$\"&MID(G4866,2,1)&CHAR(CODE(MID(G4866,3,1))+1)&\"$\"&TRIM(MID(G4866,5,11)))","v":"$J$34"}]
[21680,{"$f":"Menu!$F$29","v":"X"},{"$f":"Menu!$J$29","v":2020},{"$f":"IF(ISBLANK(INDIRECT(\"'\"&F4867&\"'!\"&G4867)),\"\",INDIRECT(\"'\"&F4867&\"'!\"&G4867))","v":""},{"$f":"IF(ISBLANK(INDIRECT(\"'\"&F4867&\"'!\"&H4867)),\"\",IFERROR(VLOOKUP(TEXT(INDIRECT(\"'\"&F4867&\"'!\"&H4867),\"0\"),Notes!$B$5:$C$100,2,FALSE),\"\"))","v":""},"1a","$G$34","$H$34"]
[21681,{"$f":"Menu!$F$29","v":"X"},{"$f":"Menu!$J$29","v":2020},{"$f":"IF(ISBLANK(INDIRECT(\"'\"&F4868&\"'!\"&G4868)),\"\",INDIRECT(\"'\"&F4868&\"'!\"&G4868))","v":""},{"$f":"IF(ISBLANK(INDIRECT(\"'\"&F4868&\"'!\"&H4868)),\"\",IFERROR(VLOOKUP(TEXT(INDIRECT(\"'\"&F4868&\"'!\"&H4868),\"0\"),Notes!$B$5:$C$100,2,FALSE),\"\"))","v":""},"1a","$E$34","$F$34"]
[21682,{"$f":"Menu!$F$29","v":"X"},{"$f":"Menu!$J$29","v":2020},{"$f":"IF(ISBLANK(INDIRECT(\"'\"&F4869&\"'!\"&G4869)),\"\",INDIRECT(\"'\"&F4869&\"'!\"&G4869))","v":""},{"$f":"IF(ISBLANK(INDIRECT(\"'\"&F4869&\"'!\"&H4869)),\"\",IFERROR(VLOOKUP(TEXT(INDIRECT(\"'\"&F4869&\"'!\"&H4869),\"0\"),Notes!$B$5:$C$100,2,FALSE),\"\"))","v":""},"1a","$K$35","$L$35"]
[21683,{"$f":"Menu!$F$29","v":"X"},{"$f":"Menu!$J$29","v":2020},{"$f":"IF(ISBLANK(INDIRECT(\"'\"&F4870&\"'!\"&G4870)),\"\",INDIRECT(\"'\"&F4870&\"'!\"&G4870))","v":""},{"$f":"IF(ISBLANK(INDIRECT(\"'\"&F4870&\"'!\"&H4870)),\"\",IFERROR(VLOOKUP(TEXT(INDIRECT(\"'\"&F4870&\"'!\"&H4870),\"0\"),Notes!$B$5:$C$100,2,FALSE),\"\"))","v":""},"1a","$O$35","$P$35"]
[21684,{"$f":"Menu!$F$29","v":"X"},{"$f":"Menu!$J$29","v":2020},{"$f":"IF(ISBLANK(INDIRECT(\"'\"&F4871&\"'!\"&G4871)),\"\",INDIRECT(\"'\"&F4871&\"'!\"&G4871))","v":""},{"$f":"IF(ISBLANK(INDIRECT(\"'\"&F4871&\"'!\"&H4871)),\"\",IFERROR(VLOOKUP(TEXT(INDIRECT(\"'\"&F4871&\"'!\"&H4871),\"0\"),Notes!$B$5:$C$100,2,FALSE),\"\"))","v":""},"1a","$M$35","$N$35"]
[21685,{"$f":"Menu!$F$29","v":"X"},{"$f":"Menu!$J$29","v":2020},{"$f":"IF(ISBLANK(INDIRECT(\"'\"&F4872&\"'!\"&G4872)),\"\",INDIRECT(\"'\"&F4872&\"'!\"&G4872))","v":""},{"$f":"IF(ISBLANK(INDIRECT(\"'\"&F4872&\"'!\"&H4872)),\"\",IFERROR(VLOOKUP(TEXT(INDIRECT(\"'\"&F4872&\"'!\"&H4872),\"0\"),Notes!$B$5:$C$100,2,FALSE),\"\"))","v":""},"1a","$Q$35","$R$35"]
[21686,{"$f":"Menu!$F$29","v":"X"},{"$f":"Menu!$J$29","v":2020},{"$f":"IF(ISBLANK(INDIRECT(\"'\"&F4873&\"'!\"&G4873)),\"\",INDIRECT(\"'\"&F4873&\"'!\"&G4873))","v":""},{"$f":"IF(ISBLANK(INDIRECT(\"'\"&F4873&\"'!\"&H4873)),\"\",IFERROR(VLOOKUP(TEXT(INDIRECT(\"'\"&F4873&\"'!\"&H4873),\"0\"),Notes!$B$5:$C$100,2,FALSE),\"\"))","v":""},"1a","$U$35","$V$35"]
[21687,{"$f":"Menu!$F$29","v":"X"},{"$f":"Menu!$J$29","v":2020},{"$f":"IF(ISBLANK(INDIRECT(\"'\"&F4874&\"'!\"&G4874)),\"\",INDIRECT(\"'\"&F4874&\"'!\"&G4874))","v":""},{"$f":"IF(ISBLANK(INDIRECT(\"'\"&F4874&\"'!\"&H4874)),\"\",IFERROR(VLOOKUP(TEXT(INDIRECT(\"'\"&F4874&\"'!\"&H4874),\"0\"),Notes!$B$5:$C$100,2,FALSE),\"\"))","v":""},"1a","$S$35","$T$35"]
[21688,{"$f":"Menu!$F$29","v":"X"},{"$f":"Menu!$J$29","v":2020},{"$f":"IF(ISBLANK(INDIRECT(\"'\"&F4875&\"'!\"&G4875)),\"\",INDIRECT(\"'\"&F4875&\"'!\"&G4875))","v":""},{"$f":"IF(ISBLANK(INDIRECT(\"'\"&F4875&\"'!\"&H4875)),\"\",IFERROR(VLOOKUP(TEXT(INDIRECT(\"'\"&F4875&\"'!\"&H4875),\"0\"),Notes!$B$5:$C$100,2,FALSE),\"\"))","v":""},"1a","$I$35","$J$35"]
[21689,{"$f":"Menu!$F$29","v":"X"},{"$f":"Menu!$J$29","v":2020},{"$f":"IF(ISBLANK(INDIRECT(\"'\"&F4876&\"'!\"&G4876)),\"\",INDIRECT(\"'\"&F4876&\"'!\"&G4876))","v":""},{"$f":"IF(ISBLANK(INDIRECT(\"'\"&F4876&\"'!\"&H4876)),\"\",IFERROR(VLOOKUP(TEXT(INDIRECT(\"'\"&F4876&\"'!\"&H4876),\"0\"),Notes!$B$5:$C$100,2,FALSE),\"\"))","v":""},"1a","$G$35","$H$35"]
[21690,{"$f":"Menu!$F$29","v":"X"},{"$f":"Menu!$J$29","v":2020},{"$f":"IF(ISBLANK(INDIRECT(\"'\"&F4877&\"'!\"&G4877)),\"\",INDIRECT(\"'\"&F4877&\"'!\"&G4877))","v":""},{"$f":"IF(ISBLANK(INDIRECT(\"'\"&F4877&\"'!\"&H4877)),\"\",IFERROR(VLOOKUP(TEXT(INDIRECT(\"'\"&F4877&\"'!\"&H4877),\"0\"),Notes!$B$5:$C$100,2,FALSE),\"\"))","v":""},"1a","$E$35","$F$35"]
[21691,{"$f":"Menu!$F$29","v":"X"},{"$f":"Menu!$J$29","v":2020},{"$f":"IF(ISBLANK(INDIRECT(\"'\"&F4878&\"'!\"&G4878)),\"\",INDIRECT(\"'\"&F4878&\"'!\"&G4878))","v":""},{"$f":"IF(ISBLANK(INDIRECT(\"'\"&F4878&\"'!\"&H4878)),\"\",IFERROR(VLOOKUP(TEXT(INDIRECT(\"'\"&F4878&\"'!\"&H4878),\"0\"),Notes!$B$5:$C$100,2,FALSE),\"\"))","v":""},"1a","$K$36","$L$36"]
[21692,{"$f":"Menu!$F$29","v":"X"},{"$f":"Menu!$J$29","v":2020},{"$f":"IF(ISBLANK(INDIRECT(\"'\"&F4879&\"'!\"&G4879)),\"\",INDIRECT(\"'\"&F4879&\"'!\"&G4879))","v":""},{"$f":"IF(ISBLANK(INDIRECT(\"'\"&F4879&\"'!\"&H4879)),\"\",IFERROR(VLOOKUP(TEXT(INDIRECT(\"'\"&F4879&\"'!\"&H4879),\"0\"),Notes!$B$5:$C$100,2,FALSE),\"\"))","v":""},"1a","$O$36","$P$36"]
[21693,{"$f":"Menu!$F$29","v":"X"},{"$f":"Menu!$J$29","v":2020},{"$f":"IF(ISBLANK(INDIRECT(\"'\"&F4880&\"'!\"&G4880)),\"\",INDIRECT(\"'\"&F4880&\"'!\"&G4880))","v":""},{"$f":"IF(ISBLANK(INDIRECT(\"'\"&F4880&\"'!\"&H4880)),\"\",IFERROR(VLOOKUP(TEXT(INDIRECT(\"'\"&F4880&\"'!\"&H4880),\"0\"),Notes!$B$5:$C$100,2,FALSE),\"\"))","v":""},"1a","$M$36","$N$36"]
[21694,{"$f":"Menu!$F$29","v":"X"},{"$f":"Menu!$J$29","v":2020},{"$f":"IF(ISBLANK(INDIRECT(\"'\"&F4881&\"'!\"&G4881)),\"\",INDIRECT(\"'\"&F4881&\"'!\"&G4881))","v":""},{"$f":"IF(ISBLANK(INDIRECT(\"'\"&F4881&\"'!\"&H4881)),\"\",IFERROR(VLOOKUP(TEXT(INDIRECT(\"'\"&F4881&\"'!\"&H4881),\"0\"),Notes!$B$5:$C$100,2,FALSE),\"\"))","v":""},"1a","$Q$36","$R$36"]
[21695,{"$f":"Menu!$F$29","v":"X"},{"$f":"Menu!$J$29","v":2020},{"$f":"IF(ISBLANK(INDIRECT(\"'\"&F4882&\"'!\"&G4882)),\"\",INDIRECT(\"'\"&F4882&\"'!\"&G4882))","v":""},{"$f":"IF(ISBLANK(INDIRECT(\"'\"&F4882&\"'!\"&H4882)),\"\",IFERROR(VLOOKUP(TEXT(INDIRECT(\"'\"&F4882&\"'!\"&H4882),\"0\"),Notes!$B$5:$C$100,2,FALSE),\"\"))","v":""},"1a","$U$36","$V$36"]
[21696,{"$f":"Menu!$F$29","v":"X"},{"$f":"Menu!$J$29","v":2020},{"$f":"IF(ISBLANK(INDIRECT(\"'\"&F4883&\"'!\"&G4883)),\"\",INDIRECT(\"'\"&F4883&\"'!\"&G4883))","v":""},{"$f":"IF(ISBLANK(INDIRECT(\"'\"&F4883&\"'!\"&H4883)),\"\",IFERROR(VLOOKUP(TEXT(INDIRECT(\"'\"&F4883&\"'!\"&H4883),\"0\"),Notes!$B$5:$C$100,2,FALSE),\"\"))","v":""},"1a","$S$36","$T$36"]
[21697,{"$f":"Menu!$F$29","v":"X"},{"$f":"Menu!$J$29","v":2020},{"$f":"IF(ISBLANK(INDIRECT(\"'\"&F4884&\"'!\"&G4884)),\"\",INDIRECT(\"'\"&F4884&\"'!\"&G4884))","v":""},{"$f":"IF(ISBLANK(INDIRECT(\"'\"&F4884&\"'!\"&H4884)),\"\",IFERROR(VLOOKUP(TEXT(INDIRECT(\"'\"&F4884&\"'!\"&H4884),\"0\"),Notes!$B$5:$C$100,2,FALSE),\"\"))","v":""},"1a","$I$36","$J$36"]
[21698,{"$f":"Menu!$F$29","v":"X"},{"$f":"Menu!$J$29","v":2020},{"$f":"IF(ISBLANK(INDIRECT(\"'\"&F4885&\"'!\"&G4885)),\"\",INDIRECT(\"'\"&F4885&\"'!\"&G4885))","v":""},{"$f":"IF(ISBLANK(INDIRECT(\"'\"&F4885&\"'!\"&H4885)),\"\",IFERROR(VLOOKUP(TEXT(INDIRECT(\"'\"&F4885&\"'!\"&H4885),\"0\"),Notes!$B$5:$C$100,2,FALSE),\"\"))","v":""},"1a","$G$36","$H$36"]
[21699,{"$f":"Menu!$F$29","v":"X"},{"$f":"Menu!$J$29","v":2020},{"$f":"IF(ISBLANK(INDIRECT(\"'\"&F4886&\"'!\"&G4886)),\"\",INDIRECT(\"'\"&F4886&\"'!\"&G4886))","v":""},{"$f":"IF(ISBLANK(INDIRECT(\"'\"&F4886&\"'!\"&H4886)),\"\",IFERROR(VLOOKUP(TEXT(INDIRECT(\"'\"&F4886&\"'!\"&H4886),\"0\"),Notes!$B$5:$C$100,2,FALSE),\"\"))","v":""},"1a","$E$36","$F$36"]
[21709,{"$f":"Menu!$F$29","v":"X"},{"$f":"Menu!$J$29","v":2020},{"$f":"IF(ISBLANK(INDIRECT(\"'\"&F4887&\"'!\"&G4887)),\"\",INDIRECT(\"'\"&F4887&\"'!\"&G4887))","v":""},{"$f":"IF(ISBLANK(INDIRECT(\"'\"&F4887&\"'!\"&H4887)),\"\",IFERROR(VLOOKUP(TEXT(INDIRECT(\"'\"&F4887&\"'!\"&H4887),\"0\"),Notes!$B$5:$C$100,2,FALSE),\"\"))","v":""},"1a","$K$51","$L$51"]
[21710,{"$f":"Menu!$F$29","v":"X"},{"$f":"Menu!$J$29","v":2020},{"$f":"IF(ISBLANK(INDIRECT(\"'\"&F4888&\"'!\"&G4888)),\"\",INDIRECT(\"'\"&F4888&\"'!\"&G4888))","v":""},{"$f":"IF(ISBLANK(INDIRECT(\"'\"&F4888&\"'!\"&H4888)),\"\",IFERROR(VLOOKUP(TEXT(INDIRECT(\"'\"&F4888&\"'!\"&H4888),\"0\"),Notes!$B$5:$C$100,2,FALSE),\"\"))","v":""},"1a","$O$51","$P$51"]
[21711,{"$f":"Menu!$F$29","v":"X"},{"$f":"Menu!$J$29","v":2020},{"$f":"IF(ISBLANK(INDIRECT(\"'\"&F4889&\"'!\"&G4889)),\"\",INDIRECT(\"'\"&F4889&\"'!\"&G4889))","v":""},{"$f":"IF(ISBLANK(INDIRECT(\"'\"&F4889&\"'!\"&H4889)),\"\",IFERROR(VLOOKUP(TEXT(INDIRECT(\"'\"&F4889&\"'!\"&H4889),\"0\"),Notes!$B$5:$C$100,2,FALSE),\"\"))","v":""},"1a","$M$51","$N$51"]
[21712,{"$f":"Menu!$F$29","v":"X"},{"$f":"Menu!$J$29","v":2020},{"$f":"IF(ISBLANK(INDIRECT(\"'\"&F4890&\"'!\"&G4890)),\"\",INDIRECT(\"'\"&F4890&\"'!\"&G4890))","v":""},{"$f":"IF(ISBLANK(INDIRECT(\"'\"&F4890&\"'!\"&H4890)),\"\",IFERROR(VLOOKUP(TEXT(INDIRECT(\"'\"&F4890&\"'!\"&H4890),\"0\"),Notes!$B$5:$C$100,2,FALSE),\"\"))","v":""},"1a","$Q$51","$R$51"]
[21713,{"$f":"Menu!$F$29","v":"X"},{"$f":"Menu!$J$29","v":2020},{"$f":"IF(ISBLANK(INDIRECT(\"'\"&F4891&\"'!\"&G4891)),\"\",INDIRECT(\"'\"&F4891&\"'!\"&G4891))","v":""},{"$f":"IF(ISBLANK(INDIRECT(\"'\"&F4891&\"'!\"&H4891)),\"\",IFERROR(VLOOKUP(TEXT(INDIRECT(\"'\"&F4891&\"'!\"&H4891),\"0\"),Notes!$B$5:$C$100,2,FALSE),\"\"))","v":""},"1a","$U$51","$V$51"]
[21714,{"$f":"Menu!$F$29","v":"X"},{"$f":"Menu!$J$29","v":2020},{"$f":"IF(ISBLANK(INDIRECT(\"'\"&F4892&\"'!\"&G4892)),\"\",INDIRECT(\"'\"&F4892&\"'!\"&G4892))","v":""},{"$f":"IF(ISBLANK(INDIRECT(\"'\"&F4892&\"'!\"&H4892)),\"\",IFERROR(VLOOKUP(TEXT(INDIRECT(\"'\"&F4892&\"'!\"&H4892),\"0\"),Notes!$B$5:$C$100,2,FALSE),\"\"))","v":""},"1a","$S$51","$T$51"]
[21715,{"$f":"Menu!$F$29","v":"X"},{"$f":"Menu!$J$29","v":2020},{"$f":"IF(ISBLANK(INDIRECT(\"'\"&F4893&\"'!\"&G4893)),\"\",INDIRECT(\"'\"&F4893&\"'!\"&G4893))","v":""},{"$f":"IF(ISBLANK(INDIRECT(\"'\"&F4893&\"'!\"&H4893)),\"\",IFERROR(VLOOKUP(TEXT(INDIRECT(\"'\"&F4893&\"'!\"&H4893),\"0\"),Notes!$B$5:$C$100,2,FALSE),\"\"))","v":""},"1a","$I$51","$J$51"]
[21716,{"$f":"Menu!$F$29","v":"X"},{"$f":"Menu!$J$29","v":2020},{"$f":"IF(ISBLANK(INDIRECT(\"'\"&F4894&\"'!\"&G4894)),\"\",INDIRECT(\"'\"&F4894&\"'!\"&G4894))","v":""},{"$f":"IF(ISBLANK(INDIRECT(\"'\"&F4894&\"'!\"&H4894)),\"\",IFERROR(VLOOKUP(TEXT(INDIRECT(\"'\"&F4894&\"'!\"&H4894),\"0\"),Notes!$B$5:$C$100,2,FALSE),\"\"))","v":""},"1a","$G$51","$H$51"]
[21717,{"$f":"Menu!$F$29","v":"X"},{"$f":"Menu!$J$29","v":2020},{"$f":"IF(ISBLANK(INDIRECT(\"'\"&F4895&\"'!\"&G4895)),\"\",INDIRECT(\"'\"&F4895&\"'!\"&G4895))","v":""},{"$f":"IF(ISBLANK(INDIRECT(\"'\"&F4895&\"'!\"&H4895)),\"\",IFERROR(VLOOKUP(TEXT(INDIRECT(\"'\"&F4895&\"'!\"&H4895),\"0\"),Notes!$B$5:$C$100,2,FALSE),\"\"))","v":""},"1a","$E$51","$F$51"]
[21718,{"$f":"Menu!$F$29","v":"X"},{"$f":"Menu!$J$29","v":2020},{"$f":"IF(ISBLANK(INDIRECT(\"'\"&F4896&\"'!\"&G4896)),\"\",INDIRECT(\"'\"&F4896&\"'!\"&G4896))","v":""},{"$f":"IF(ISBLANK(INDIRECT(\"'\"&F4896&\"'!\"&H4896)),\"\",IFERROR(VLOOKUP(TEXT(INDIRECT(\"'\"&F4896&\"'!\"&H4896),\"0\"),Notes!$B$5:$C$100,2,FALSE),\"\"))","v":""},"1a","$K$52","$L$52"]
[21719,{"$f":"Menu!$F$29","v":"X"},{"$f":"Menu!$J$29","v":2020},{"$f":"IF(ISBLANK(INDIRECT(\"'\"&F4897&\"'!\"&G4897)),\"\",INDIRECT(\"'\"&F4897&\"'!\"&G4897))","v":""},{"$f":"IF(ISBLANK(INDIRECT(\"'\"&F4897&\"'!\"&H4897)),\"\",IFERROR(VLOOKUP(TEXT(INDIRECT(\"'\"&F4897&\"'!\"&H4897),\"0\"),Notes!$B$5:$C$100,2,FALSE),\"\"))","v":""},"1a","$O$52","$P$52"]
[21720,{"$f":"Menu!$F$29","v":"X"},{"$f":"Menu!$J$29","v":2020},{"$f":"IF(ISBLANK(INDIRECT(\"'\"&F4898&\"'!\"&G4898)),\"\",INDIRECT(\"'\"&F4898&\"'!\"&G4898))","v":""},{"$f":"IF(ISBLANK(INDIRECT(\"'\"&F4898&\"'!\"&H4898)),\"\",IFERROR(VLOOKUP(TEXT(INDIRECT(\"'\"&F4898&\"'!\"&H4898),\"0\"),Notes!$B$5:$C$100,2,FALSE),\"\"))","v":""},"1a","$M$52","$N$52"]
[21721,{"$f":"Menu!$F$29","v":"X"},{"$f":"Menu!$J$29","v":2020},{"$f":"IF(ISBLANK(INDIRECT(\"'\"&F4899&\"'!\"&G4899)),\"\",INDIRECT(\"'\"&F4899&\"'!\"&G4899))","v":""},{"$f":"IF(ISBLANK(INDIRECT(\"'\"&F4899&\"'!\"&H4899)),\"\",IFERROR(VLOOKUP(TEXT(INDIRECT(\"'\"&F4899&\"'!\"&H4899),\"0\"),Notes!$B$5:$C$100,2,FALSE),\"\"))","v":""},"1a","$Q$52","$R$52"]
[21722,{"$f":"Menu!$F$29","v":"X"},{"$f":"Menu!$J$29","v":2020},{"$f":"IF(ISBLANK(INDIRECT(\"'\"&F4900&\"'!\"&G4900)),\"\",INDIRECT(\"'\"&F4900&\"'!\"&G4900))","v":""},{"$f":"IF(ISBLANK(INDIRECT(\"'\"&F4900&\"'!\"&H4900)),\"\",IFERROR(VLOOKUP(TEXT(INDIRECT(\"'\"&F4900&\"'!\"&H4900),\"0\"),Notes!$B$5:$C$100,2,FALSE),\"\"))","v":""},"1a","$U$52","$V$52"]
[21723,{"$f":"Menu!$F$29","v":"X"},{"$f":"Menu!$J$29","v":2020},{"$f":"IF(ISBLANK(INDIRECT(\"'\"&F4901&\"'!\"&G4901)),\"\",INDIRECT(\"'\"&F4901&\"'!\"&G4901))","v":""},{"$f":"IF(ISBLANK(INDIRECT(\"'\"&F4901&\"'!\"&H4901)),\"\",IFERROR(VLOOKUP(TEXT(INDIRECT(\"'\"&F4901&\"'!\"&H4901),\"0\"),Notes!$B$5:$C$100,2,FALSE),\"\"))","v":""},"1a","$S$52","$T$52"]
[21724,{"$f":"Menu!$F$29","v":"X"},{"$f":"Menu!$J$29","v":2020},{"$f":"IF(ISBLANK(INDIRECT(\"'\"&F4902&\"'!\"&G4902)),\"\",INDIRECT(\"'\"&F4902&\"'!\"&G4902))","v":""},{"$f":"IF(ISBLANK(INDIRECT(\"'\"&F4902&\"'!\"&H4902)),\"\",IFERROR(VLOOKUP(TEXT(INDIRECT(\"'\"&F4902&\"'!\"&H4902),\"0\"),Notes!$B$5:$C$100,2,FALSE),\"\"))","v":""},"1a","$I$52","$J$52"]
[21725,{"$f":"Menu!$F$29","v":"X"},{"$f":"Menu!$J$29","v":2020},{"$f":"IF(ISBLANK(INDIRECT(\"'\"&F4903&\"'!\"&G4903)),\"\",INDIRECT(\"'\"&F4903&\"'!\"&G4903))","v":""},{"$f":"IF(ISBLANK(INDIRECT(\"'\"&F4903&\"'!\"&H4903)),\"\",IFERROR(VLOOKUP(TEXT(INDIRECT(\"'\"&F4903&\"'!\"&H4903),\"0\"),Notes!$B$5:$C$100,2,FALSE),\"\"))","v":""},"1a","$G$52","$H$52"]
[21726,{"$f":"Menu!$F$29","v":"X"},{"$f":"Menu!$J$29","v":2020},{"$f":"IF(ISBLANK(INDIRECT(\"'\"&F4904&\"'!\"&G4904)),\"\",INDIRECT(\"'\"&F4904&\"'!\"&G4904))","v":""},{"$f":"IF(ISBLANK(INDIRECT(\"'\"&F4904&\"'!\"&H4904)),\"\",IFERROR(VLOOKUP(TEXT(INDIRECT(\"'\"&F4904&\"'!\"&H4904),\"0\"),Notes!$B$5:$C$100,2,FALSE),\"\"))","v":""},"1a","$E$52","$F$52"]
[21736,{"$f":"Menu!$F$29","v":"X"},{"$f":"Menu!$J$29","v":2020},{"$f":"IF(ISBLANK(INDIRECT(\"'\"&F4905&\"'!\"&G4905)),\"\",INDIRECT(\"'\"&F4905&\"'!\"&G4905))","v":""},{"$f":"IF(ISBLANK(INDIRECT(\"'\"&F4905&\"'!\"&H4905)),\"\",IFERROR(VLOOKUP(TEXT(INDIRECT(\"'\"&F4905&\"'!\"&H4905),\"0\"),Notes!$B$5:$C$100,2,FALSE),\"\"))","v":""},"2a","$I$76","$J$76"]
[21737,{"$f":"Menu!$F$29","v":"X"},{"$f":"Menu!$J$29","v":2020},{"$f":"IF(ISBLANK(INDIRECT(\"'\"&F4906&\"'!\"&G4906)),\"\",INDIRECT(\"'\"&F4906&\"'!\"&G4906))","v":""},{"$f":"IF(ISBLANK(INDIRECT(\"'\"&F4906&\"'!\"&H4906)),\"\",IFERROR(VLOOKUP(TEXT(INDIRECT(\"'\"&F4906&\"'!\"&H4906),\"0\"),Notes!$B$5:$C$100,2,FALSE),\"\"))","v":""},"2a","$G$76","$H$76"]
[21738,{"$f":"Menu!$F$29","v":"X"},{"$f":"Menu!$J$29","v":2020},{"$f":"IF(ISBLANK(INDIRECT(\"'\"&F4907&\"'!\"&G4907)),\"\",INDIRECT(\"'\"&F4907&\"'!\"&G4907))","v":""},{"$f":"IF(ISBLANK(INDIRECT(\"'\"&F4907&\"'!\"&H4907)),\"\",IFERROR(VLOOKUP(TEXT(INDIRECT(\"'\"&F4907&\"'!\"&H4907),\"0\"),Notes!$B$5:$C$100,2,FALSE),\"\"))","v":""},"2a","$U$76","$V$76"]
[21739,{"$f":"Menu!$F$29","v":"X"},{"$f":"Menu!$J$29","v":2020},{"$f":"IF(ISBLANK(INDIRECT(\"'\"&F4908&\"'!\"&G4908)),\"\",INDIRECT(\"'\"&F4908&\"'!\"&G4908))","v":""},{"$f":"IF(ISBLANK(INDIRECT(\"'\"&F4908&\"'!\"&H4908)),\"\",IFERROR(VLOOKUP(TEXT(INDIRECT(\"'\"&F4908&\"'!\"&H4908),\"0\"),Notes!$B$5:$C$100,2,FALSE),\"\"))","v":""},"2a","$S$76","$T$76"]
[21740,{"$f":"Menu!$F$29","v":"X"},{"$f":"Menu!$J$29","v":2020},{"$f":"IF(ISBLANK(INDIRECT(\"'\"&F4909&\"'!\"&G4909)),\"\",INDIRECT(\"'\"&F4909&\"'!\"&G4909))","v":""},{"$f":"IF(ISBLANK(INDIRECT(\"'\"&F4909&\"'!\"&H4909)),\"\",IFERROR(VLOOKUP(TEXT(INDIRECT(\"'\"&F4909&\"'!\"&H4909),\"0\"),Notes!$B$5:$C$100,2,FALSE),\"\"))","v":""},"2a","$Q$76","$R$76"]
[21741,{"$f":"Menu!$F$29","v":"X"},{"$f":"Menu!$J$29","v":2020},{"$f":"IF(ISBLANK(INDIRECT(\"'\"&F4910&\"'!\"&G4910)),\"\",INDIRECT(\"'\"&F4910&\"'!\"&G4910))","v":""},{"$f":"IF(ISBLANK(INDIRECT(\"'\"&F4910&\"'!\"&H4910)),\"\",IFERROR(VLOOKUP(TEXT(INDIRECT(\"'\"&F4910&\"'!\"&H4910),\"0\"),Notes!$B$5:$C$100,2,FALSE),\"\"))","v":""},"2a","$O$76","$P$76"]
[21742,{"$f":"Menu!$F$29","v":"X"},{"$f":"Menu!$J$29","v":2020},{"$f":"IF(ISBLANK(INDIRECT(\"'\"&F4911&\"'!\"&G4911)),\"\",INDIRECT(\"'\"&F4911&\"'!\"&G4911))","v":""},{"$f":"IF(ISBLANK(INDIRECT(\"'\"&F4911&\"'!\"&H4911)),\"\",IFERROR(VLOOKUP(TEXT(INDIRECT(\"'\"&F4911&\"'!\"&H4911),\"0\"),Notes!$B$5:$C$100,2,FALSE),\"\"))","v":""},"2a","$M$76","$N$76"]
[21743,{"$f":"Menu!$F$29","v":"X"},{"$f":"Menu!$J$29","v":2020},{"$f":"IF(ISBLANK(INDIRECT(\"'\"&F4912&\"'!\"&G4912)),\"\",INDIRECT(\"'\"&F4912&\"'!\"&G4912))","v":""},{"$f":"IF(ISBLANK(INDIRECT(\"'\"&F4912&\"'!\"&H4912)),\"\",IFERROR(VLOOKUP(TEXT(INDIRECT(\"'\"&F4912&\"'!\"&H4912),\"0\"),Notes!$B$5:$C$100,2,FALSE),\"\"))","v":""},"2a","$K$76","$L$76"]
[21744,{"$f":"Menu!$F$29","v":"X"},{"$f":"Menu!$J$29","v":2020},{"$f":"IF(ISBLANK(INDIRECT(\"'\"&F4913&\"'!\"&G4913)),\"\",INDIRECT(\"'\"&F4913&\"'!\"&G4913))","v":""},{"$f":"IF(ISBLANK(INDIRECT(\"'\"&F4913&\"'!\"&H4913)),\"\",IFERROR(VLOOKUP(TEXT(INDIRECT(\"'\"&F4913&\"'!\"&H4913),\"0\"),Notes!$B$5:$C$100,2,FALSE),\"\"))","v":""},"2a","$E$76","$F$76"]
[21745,{"$f":"Menu!$F$29","v":"X"},{"$f":"Menu!$J$29","v":2020},{"$f":"IF(ISBLANK(INDIRECT(\"'\"&F4914&\"'!\"&G4914)),\"\",INDIRECT(\"'\"&F4914&\"'!\"&G4914))","v":""},{"$f":"IF(ISBLANK(INDIRECT(\"'\"&F4914&\"'!\"&H4914)),\"\",IFERROR(VLOOKUP(TEXT(INDIRECT(\"'\"&F4914&\"'!\"&H4914),\"0\"),Notes!$B$5:$C$100,2,FALSE),\"\"))","v":""},"2a","$I$77","$J$77"]
[21746,{"$f":"Menu!$F$29","v":"X"},{"$f":"Menu!$J$29","v":2020},{"$f":"IF(ISBLANK(INDIRECT(\"'\"&F4915&\"'!\"&G4915)),\"\",INDIRECT(\"'\"&F4915&\"'!\"&G4915))","v":""},{"$f":"IF(ISBLANK(INDIRECT(\"'\"&F4915&\"'!\"&H4915)),\"\",IFERROR(VLOOKUP(TEXT(INDIRECT(\"'\"&F4915&\"'!\"&H4915),\"0\"),Notes!$B$5:$C$100,2,FALSE),\"\"))","v":""},"2a","$G$77","$H$77"]
[21747,{"$f":"Menu!$F$29","v":"X"},{"$f":"Menu!$J$29","v":2020},{"$f":"IF(ISBLANK(INDIRECT(\"'\"&F4916&\"'!\"&G4916)),\"\",INDIRECT(\"'\"&F4916&\"'!\"&G4916))","v":""},{"$f":"IF(ISBLANK(INDIRECT(\"'\"&F4916&\"'!\"&H4916)),\"\",IFERROR(VLOOKUP(TEXT(INDIRECT(\"'\"&F4916&\"'!\"&H4916),\"0\"),Notes!$B$5:$C$100,2,FALSE),\"\"))","v":""},"2a","$U$77","$V$77"]
[21748,{"$f":"Menu!$F$29","v":"X"},{"$f":"Menu!$J$29","v":2020},{"$f":"IF(ISBLANK(INDIRECT(\"'\"&F4917&\"'!\"&G4917)),\"\",INDIRECT(\"'\"&F4917&\"'!\"&G4917))","v":""},{"$f":"IF(ISBLANK(INDIRECT(\"'\"&F4917&\"'!\"&H4917)),\"\",IFERROR(VLOOKUP(TEXT(INDIRECT(\"'\"&F4917&\"'!\"&H4917),\"0\"),Notes!$B$5:$C$100,2,FALSE),\"\"))","v":""},"2a","$S$77","$T$77"]
[21749,{"$f":"Menu!$F$29","v":"X"},{"$f":"Menu!$J$29","v":2020},{"$f":"IF(ISBLANK(INDIRECT(\"'\"&F4918&\"'!\"&G4918)),\"\",INDIRECT(\"'\"&F4918&\"'!\"&G4918))","v":""},{"$f":"IF(ISBLANK(INDIRECT(\"'\"&F4918&\"'!\"&H4918)),\"\",IFERROR(VLOOKUP(TEXT(INDIRECT(\"'\"&F4918&\"'!\"&H4918),\"0\"),Notes!$B$5:$C$100,2,FALSE),\"\"))","v":""},"2a","$Q$77","$R$77"]
[21750,{"$f":"Menu!$F$29","v":"X"},{"$f":"Menu!$J$29","v":2020},{"$f":"IF(ISBLANK(INDIRECT(\"'\"&F4919&\"'!\"&G4919)),\"\",INDIRECT(\"'\"&F4919&\"'!\"&G4919))","v":""},{"$f":"IF(ISBLANK(INDIRECT(\"'\"&F4919&\"'!\"&H4919)),\"\",IFERROR(VLOOKUP(TEXT(INDIRECT(\"'\"&F4919&\"'!\"&H4919),\"0\"),Notes!$B$5:$C$100,2,FALSE),\"\"))","v":""},"2a","$O$77","$P$77"]
[21751,{"$f":"Menu!$F$29","v":"X"},{"$f":"Menu!$J$29","v":2020},{"$f":"IF(ISBLANK(INDIRECT(\"'\"&F4920&\"'!\"&G4920)),\"\",INDIRECT(\"'\"&F4920&\"'!\"&G4920))","v":""},{"$f":"IF(ISBLANK(INDIRECT(\"'\"&F4920&\"'!\"&H4920)),\"\",IFERROR(VLOOKUP(TEXT(INDIRECT(\"'\"&F4920&\"'!\"&H4920),\"0\"),Notes!$B$5:$C$100,2,FALSE),\"\"))","v":""},"2a","$M$77","$N$77"]
[21752,{"$f":"Menu!$F$29","v":"X"},{"$f":"Menu!$J$29","v":2020},{"$f":"IF(ISBLANK(INDIRECT(\"'\"&F4921&\"'!\"&G4921)),\"\",INDIRECT(\"'\"&F4921&\"'!\"&G4921))","v":""},{"$f":"IF(ISBLANK(INDIRECT(\"'\"&F4921&\"'!\"&H4921)),\"\",IFERROR(VLOOKUP(TEXT(INDIRECT(\"'\"&F4921&\"'!\"&H4921),\"0\"),Notes!$B$5:$C$100,2,FALSE),\"\"))","v":""},"2a","$K$77","$L$77"]
[21753,{"$f":"Menu!$F$29","v":"X"},{"$f":"Menu!$J$29","v":2020},{"$f":"IF(ISBLANK(INDIRECT(\"'\"&F4922&\"'!\"&G4922)),\"\",INDIRECT(\"'\"&F4922&\"'!\"&G4922))","v":""},{"$f":"IF(ISBLANK(INDIRECT(\"'\"&F4922&\"'!\"&H4922)),\"\",IFERROR(VLOOKUP(TEXT(INDIRECT(\"'\"&F4922&\"'!\"&H4922),\"0\"),Notes!$B$5:$C$100,2,FALSE),\"\"))","v":""},"2a","$E$77","$F$77"]
[21754,{"$f":"Menu!$F$29","v":"X"},{"$f":"Menu!$J$29","v":2020},{"$f":"IF(ISBLANK(INDIRECT(\"'\"&F4923&\"'!\"&G4923)),\"\",INDIRECT(\"'\"&F4923&\"'!\"&G4923))","v":""},{"$f":"IF(ISBLANK(INDIRECT(\"'\"&F4923&\"'!\"&H4923)),\"\",IFERROR(VLOOKUP(TEXT(INDIRECT(\"'\"&F4923&\"'!\"&H4923),\"0\"),Notes!$B$5:$C$100,2,FALSE),\"\"))","v":""},"2a","$I$78","$J$78"]
[21755,{"$f":"Menu!$F$29","v":"X"},{"$f":"Menu!$J$29","v":2020},{"$f":"IF(ISBLANK(INDIRECT(\"'\"&F4924&\"'!\"&G4924)),\"\",INDIRECT(\"'\"&F4924&\"'!\"&G4924))","v":""},{"$f":"IF(ISBLANK(INDIRECT(\"'\"&F4924&\"'!\"&H4924)),\"\",IFERROR(VLOOKUP(TEXT(INDIRECT(\"'\"&F4924&\"'!\"&H4924),\"0\"),Notes!$B$5:$C$100,2,FALSE),\"\"))","v":""},"2a","$G$78","$H$78"]
[21756,{"$f":"Menu!$F$29","v":"X"},{"$f":"Menu!$J$29","v":2020},{"$f":"IF(ISBLANK(INDIRECT(\"'\"&F4925&\"'!\"&G4925)),\"\",INDIRECT(\"'\"&F4925&\"'!\"&G4925))","v":""},{"$f":"IF(ISBLANK(INDIRECT(\"'\"&F4925&\"'!\"&H4925)),\"\",IFERROR(VLOOKUP(TEXT(INDIRECT(\"'\"&F4925&\"'!\"&H4925),\"0\"),Notes!$B$5:$C$100,2,FALSE),\"\"))","v":""},"2a","$U$78","$V$78"]
[21757,{"$f":"Menu!$F$29","v":"X"},{"$f":"Menu!$J$29","v":2020},{"$f":"IF(ISBLANK(INDIRECT(\"'\"&F4926&\"'!\"&G4926)),\"\",INDIRECT(\"'\"&F4926&\"'!\"&G4926))","v":""},{"$f":"IF(ISBLANK(INDIRECT(\"'\"&F4926&\"'!\"&H4926)),\"\",IFERROR(VLOOKUP(TEXT(INDIRECT(\"'\"&F4926&\"'!\"&H4926),\"0\"),Notes!$B$5:$C$100,2,FALSE),\"\"))","v":""},"2a","$S$78","$T$78"]
[21758,{"$f":"Menu!$F$29","v":"X"},{"$f":"Menu!$J$29","v":2020},{"$f":"IF(ISBLANK(INDIRECT(\"'\"&F4927&\"'!\"&G4927)),\"\",INDIRECT(\"'\"&F4927&\"'!\"&G4927))","v":""},{"$f":"IF(ISBLANK(INDIRECT(\"'\"&F4927&\"'!\"&H4927)),\"\",IFERROR(VLOOKUP(TEXT(INDIRECT(\"'\"&F4927&\"'!\"&H4927),\"0\"),Notes!$B$5:$C$100,2,FALSE),\"\"))","v":""},"2a","$Q$78","$R$78"]
[21759,{"$f":"Menu!$F$29","v":"X"},{"$f":"Menu!$J$29","v":2020},{"$f":"IF(ISBLANK(INDIRECT(\"'\"&F4928&\"'!\"&G4928)),\"\",INDIRECT(\"'\"&F4928&\"'!\"&G4928))","v":""},{"$f":"IF(ISBLANK(INDIRECT(\"'\"&F4928&\"'!\"&H4928)),\"\",IFERROR(VLOOKUP(TEXT(INDIRECT(\"'\"&F4928&\"'!\"&H4928),\"0\"),Notes!$B$5:$C$100,2,FALSE),\"\"))","v":""},"2a","$O$78","$P$78"]
[21760,{"$f":"Menu!$F$29","v":"X"},{"$f":"Menu!$J$29","v":2020},{"$f":"IF(ISBLANK(INDIRECT(\"'\"&F4929&\"'!\"&G4929)),\"\",INDIRECT(\"'\"&F4929&\"'!\"&G4929))","v":""},{"$f":"IF(ISBLANK(INDIRECT(\"'\"&F4929&\"'!\"&H4929)),\"\",IFERROR(VLOOKUP(TEXT(INDIRECT(\"'\"&F4929&\"'!\"&H4929),\"0\"),Notes!$B$5:$C$100,2,FALSE),\"\"))","v":""},"2a","$M$78","$N$78"]
[21761,{"$f":"Menu!$F$29","v":"X"},{"$f":"Menu!$J$29","v":2020},{"$f":"IF(ISBLANK(INDIRECT(\"'\"&F4930&\"'!\"&G4930)),\"\",INDIRECT(\"'\"&F4930&\"'!\"&G4930))","v":""},{"$f":"IF(ISBLANK(INDIRECT(\"'\"&F4930&\"'!\"&H4930)),\"\",IFERROR(VLOOKUP(TEXT(INDIRECT(\"'\"&F4930&\"'!\"&H4930),\"0\"),Notes!$B$5:$C$100,2,FALSE),\"\"))","v":""},"2a","$K$78",{"$f":"IF(LEN(TRIM(MID(G4930,4,10)))-LEN(SUBSTITUTE(TRIM(MID(G4930,4,10)),\"$\",\"\"))=0,\"$\"&CHAR(CODE(MID(G4930,2,1))+1)&\"$\"&TRIM(MID(G4930,4,10)),\"$\"&MID(G4930,2,1)&CHAR(CODE(MID(G4930,3,1))+1)&\"$\"&TRIM(MID(G4930,5,11)))","v":"$L$78"}]
[21762,{"$f":"Menu!$F$29","v":"X"},{"$f":"Menu!$J$29","v":2020},{"$f":"IF(ISBLANK(INDIRECT(\"'\"&F4931&\"'!\"&G4931)),\"\",INDIRECT(\"'\"&F4931&\"'!\"&G4931))","v":""},{"$f":"IF(ISBLANK(INDIRECT(\"'\"&F4931&\"'!\"&H4931)),\"\",IFERROR(VLOOKUP(TEXT(INDIRECT(\"'\"&F4931&\"'!\"&H4931),\"0\"),Notes!$B$5:$C$100,2,FALSE),\"\"))","v":""},"2a","$E$78","$F$78"]
[21763,{"$f":"Menu!$F$29","v":"X"},{"$f":"Menu!$J$29","v":2020},{"$f":"IF(ISBLANK(INDIRECT(\"'\"&F4932&\"'!\"&G4932)),\"\",INDIRECT(\"'\"&F4932&\"'!\"&G4932))","v":""},{"$f":"IF(ISBLANK(INDIRECT(\"'\"&F4932&\"'!\"&H4932)),\"\",IFERROR(VLOOKUP(TEXT(INDIRECT(\"'\"&F4932&\"'!\"&H4932),\"0\"),Notes!$B$5:$C$100,2,FALSE),\"\"))","v":""},"2a","$I$79","$J$79"]
[21764,{"$f":"Menu!$F$29","v":"X"},{"$f":"Menu!$J$29","v":2020},{"$f":"IF(ISBLANK(INDIRECT(\"'\"&F4933&\"'!\"&G4933)),\"\",INDIRECT(\"'\"&F4933&\"'!\"&G4933))","v":""},{"$f":"IF(ISBLANK(INDIRECT(\"'\"&F4933&\"'!\"&H4933)),\"\",IFERROR(VLOOKUP(TEXT(INDIRECT(\"'\"&F4933&\"'!\"&H4933),\"0\"),Notes!$B$5:$C$100,2,FALSE),\"\"))","v":""},"2a","$G$79","$H$79"]
[21765,{"$f":"Menu!$F$29","v":"X"},{"$f":"Menu!$J$29","v":2020},{"$f":"IF(ISBLANK(INDIRECT(\"'\"&F4934&\"'!\"&G4934)),\"\",INDIRECT(\"'\"&F4934&\"'!\"&G4934))","v":""},{"$f":"IF(ISBLANK(INDIRECT(\"'\"&F4934&\"'!\"&H4934)),\"\",IFERROR(VLOOKUP(TEXT(INDIRECT(\"'\"&F4934&\"'!\"&H4934),\"0\"),Notes!$B$5:$C$100,2,FALSE),\"\"))","v":""},"2a","$U$79","$V$79"]
[21766,{"$f":"Menu!$F$29","v":"X"},{"$f":"Menu!$J$29","v":2020},{"$f":"IF(ISBLANK(INDIRECT(\"'\"&F4935&\"'!\"&G4935)),\"\",INDIRECT(\"'\"&F4935&\"'!\"&G4935))","v":""},{"$f":"IF(ISBLANK(INDIRECT(\"'\"&F4935&\"'!\"&H4935)),\"\",IFERROR(VLOOKUP(TEXT(INDIRECT(\"'\"&F4935&\"'!\"&H4935),\"0\"),Notes!$B$5:$C$100,2,FALSE),\"\"))","v":""},"2a","$S$79","$T$79"]
[21767,{"$f":"Menu!$F$29","v":"X"},{"$f":"Menu!$J$29","v":2020},{"$f":"IF(ISBLANK(INDIRECT(\"'\"&F4936&\"'!\"&G4936)),\"\",INDIRECT(\"'\"&F4936&\"'!\"&G4936))","v":""},{"$f":"IF(ISBLANK(INDIRECT(\"'\"&F4936&\"'!\"&H4936)),\"\",IFERROR(VLOOKUP(TEXT(INDIRECT(\"'\"&F4936&\"'!\"&H4936),\"0\"),Notes!$B$5:$C$100,2,FALSE),\"\"))","v":""},"2a","$Q$79","$R$79"]
[21768,{"$f":"Menu!$F$29","v":"X"},{"$f":"Menu!$J$29","v":2020},{"$f":"IF(ISBLANK(INDIRECT(\"'\"&F4937&\"'!\"&G4937)),\"\",INDIRECT(\"'\"&F4937&\"'!\"&G4937))","v":""},{"$f":"IF(ISBLANK(INDIRECT(\"'\"&F4937&\"'!\"&H4937)),\"\",IFERROR(VLOOKUP(TEXT(INDIRECT(\"'\"&F4937&\"'!\"&H4937),\"0\"),Notes!$B$5:$C$100,2,FALSE),\"\"))","v":""},"2a","$O$79","$P$79"]
[21769,{"$f":"Menu!$F$29","v":"X"},{"$f":"Menu!$J$29","v":2020},{"$f":"IF(ISBLANK(INDIRECT(\"'\"&F4938&\"'!\"&G4938)),\"\",INDIRECT(\"'\"&F4938&\"'!\"&G4938))","v":""},{"$f":"IF(ISBLANK(INDIRECT(\"'\"&F4938&\"'!\"&H4938)),\"\",IFERROR(VLOOKUP(TEXT(INDIRECT(\"'\"&F4938&\"'!\"&H4938),\"0\"),Notes!$B$5:$C$100,2,FALSE),\"\"))","v":""},"2a","$M$79","$N$79"]
[21770,{"$f":"Menu!$F$29","v":"X"},{"$f":"Menu!$J$29","v":2020},{"$f":"IF(ISBLANK(INDIRECT(\"'\"&F4939&\"'!\"&G4939)),\"\",INDIRECT(\"'\"&F4939&\"'!\"&G4939))","v":""},{"$f":"IF(ISBLANK(INDIRECT(\"'\"&F4939&\"'!\"&H4939)),\"\",IFERROR(VLOOKUP(TEXT(INDIRECT(\"'\"&F4939&\"'!\"&H4939),\"0\"),Notes!$B$5:$C$100,2,FALSE),\"\"))","v":""},"2a","$K$79","$L$79"]
[21771,{"$f":"Menu!$F$29","v":"X"},{"$f":"Menu!$J$29","v":2020},{"$f":"IF(ISBLANK(INDIRECT(\"'\"&F4940&\"'!\"&G4940)),\"\",INDIRECT(\"'\"&F4940&\"'!\"&G4940))","v":""},{"$f":"IF(ISBLANK(INDIRECT(\"'\"&F4940&\"'!\"&H4940)),\"\",IFERROR(VLOOKUP(TEXT(INDIRECT(\"'\"&F4940&\"'!\"&H4940),\"0\"),Notes!$B$5:$C$100,2,FALSE),\"\"))","v":""},"2a","$E$79","$F$79"]
[21772,{"$f":"Menu!$F$29","v":"X"},{"$f":"Menu!$J$29","v":2020},{"$f":"IF(ISBLANK(INDIRECT(\"'\"&F4941&\"'!\"&G4941)),\"\",INDIRECT(\"'\"&F4941&\"'!\"&G4941))","v":""},{"$f":"IF(ISBLANK(INDIRECT(\"'\"&F4941&\"'!\"&H4941)),\"\",IFERROR(VLOOKUP(TEXT(INDIRECT(\"'\"&F4941&\"'!\"&H4941),\"0\"),Notes!$B$5:$C$100,2,FALSE),\"\"))","v":""},"2a","$I$80","$J$80"]
[21773,{"$f":"Menu!$F$29","v":"X"},{"$f":"Menu!$J$29","v":2020},{"$f":"IF(ISBLANK(INDIRECT(\"'\"&F4942&\"'!\"&G4942)),\"\",INDIRECT(\"'\"&F4942&\"'!\"&G4942))","v":""},{"$f":"IF(ISBLANK(INDIRECT(\"'\"&F4942&\"'!\"&H4942)),\"\",IFERROR(VLOOKUP(TEXT(INDIRECT(\"'\"&F4942&\"'!\"&H4942),\"0\"),Notes!$B$5:$C$100,2,FALSE),\"\"))","v":""},"2a","$G$80","$H$80"]
[21774,{"$f":"Menu!$F$29","v":"X"},{"$f":"Menu!$J$29","v":2020},{"$f":"IF(ISBLANK(INDIRECT(\"'\"&F4943&\"'!\"&G4943)),\"\",INDIRECT(\"'\"&F4943&\"'!\"&G4943))","v":""},{"$f":"IF(ISBLANK(INDIRECT(\"'\"&F4943&\"'!\"&H4943)),\"\",IFERROR(VLOOKUP(TEXT(INDIRECT(\"'\"&F4943&\"'!\"&H4943),\"0\"),Notes!$B$5:$C$100,2,FALSE),\"\"))","v":""},"2a","$U$80","$V$80"]
[21775,{"$f":"Menu!$F$29","v":"X"},{"$f":"Menu!$J$29","v":2020},{"$f":"IF(ISBLANK(INDIRECT(\"'\"&F4944&\"'!\"&G4944)),\"\",INDIRECT(\"'\"&F4944&\"'!\"&G4944))","v":""},{"$f":"IF(ISBLANK(INDIRECT(\"'\"&F4944&\"'!\"&H4944)),\"\",IFERROR(VLOOKUP(TEXT(INDIRECT(\"'\"&F4944&\"'!\"&H4944),\"0\"),Notes!$B$5:$C$100,2,FALSE),\"\"))","v":""},"2a","$S$80","$T$80"]
[21776,{"$f":"Menu!$F$29","v":"X"},{"$f":"Menu!$J$29","v":2020},{"$f":"IF(ISBLANK(INDIRECT(\"'\"&F4945&\"'!\"&G4945)),\"\",INDIRECT(\"'\"&F4945&\"'!\"&G4945))","v":""},{"$f":"IF(ISBLANK(INDIRECT(\"'\"&F4945&\"'!\"&H4945)),\"\",IFERROR(VLOOKUP(TEXT(INDIRECT(\"'\"&F4945&\"'!\"&H4945),\"0\"),Notes!$B$5:$C$100,2,FALSE),\"\"))","v":""},"2a","$Q$80","$R$80"]
[21777,{"$f":"Menu!$F$29","v":"X"},{"$f":"Menu!$J$29","v":2020},{"$f":"IF(ISBLANK(INDIRECT(\"'\"&F4946&\"'!\"&G4946)),\"\",INDIRECT(\"'\"&F4946&\"'!\"&G4946))","v":""},{"$f":"IF(ISBLANK(INDIRECT(\"'\"&F4946&\"'!\"&H4946)),\"\",IFERROR(VLOOKUP(TEXT(INDIRECT(\"'\"&F4946&\"'!\"&H4946),\"0\"),Notes!$B$5:$C$100,2,FALSE),\"\"))","v":""},"2a","$O$80","$P$80"]
[21778,{"$f":"Menu!$F$29","v":"X"},{"$f":"Menu!$J$29","v":2020},{"$f":"IF(ISBLANK(INDIRECT(\"'\"&F4947&\"'!\"&G4947)),\"\",INDIRECT(\"'\"&F4947&\"'!\"&G4947))","v":""},{"$f":"IF(ISBLANK(INDIRECT(\"'\"&F4947&\"'!\"&H4947)),\"\",IFERROR(VLOOKUP(TEXT(INDIRECT(\"'\"&F4947&\"'!\"&H4947),\"0\"),Notes!$B$5:$C$100,2,FALSE),\"\"))","v":""},"2a","$M$80","$N$80"]
[21779,{"$f":"Menu!$F$29","v":"X"},{"$f":"Menu!$J$29","v":2020},{"$f":"IF(ISBLANK(INDIRECT(\"'\"&F4948&\"'!\"&G4948)),\"\",INDIRECT(\"'\"&F4948&\"'!\"&G4948))","v":""},{"$f":"IF(ISBLANK(INDIRECT(\"'\"&F4948&\"'!\"&H4948)),\"\",IFERROR(VLOOKUP(TEXT(INDIRECT(\"'\"&F4948&\"'!\"&H4948),\"0\"),Notes!$B$5:$C$100,2,FALSE),\"\"))","v":""},"2a","$K$80","$L$80"]
[21780,{"$f":"Menu!$F$29","v":"X"},{"$f":"Menu!$J$29","v":2020},{"$f":"IF(ISBLANK(INDIRECT(\"'\"&F4949&\"'!\"&G4949)),\"\",INDIRECT(\"'\"&F4949&\"'!\"&G4949))","v":""},{"$f":"IF(ISBLANK(INDIRECT(\"'\"&F4949&\"'!\"&H4949)),\"\",IFERROR(VLOOKUP(TEXT(INDIRECT(\"'\"&F4949&\"'!\"&H4949),\"0\"),Notes!$B$5:$C$100,2,FALSE),\"\"))","v":""},"2a","$E$80","$F$80"]
[21781,{"$f":"Menu!$F$29","v":"X"},{"$f":"Menu!$J$29","v":2020},{"$f":"IF(ISBLANK(INDIRECT(\"'\"&F4950&\"'!\"&G4950)),\"\",INDIRECT(\"'\"&F4950&\"'!\"&G4950))","v":""},{"$f":"IF(ISBLANK(INDIRECT(\"'\"&F4950&\"'!\"&H4950)),\"\",IFERROR(VLOOKUP(TEXT(INDIRECT(\"'\"&F4950&\"'!\"&H4950),\"0\"),Notes!$B$5:$C$100,2,FALSE),\"\"))","v":""},"2a","$I$81","$J$81"]
[21782,{"$f":"Menu!$F$29","v":"X"},{"$f":"Menu!$J$29","v":2020},{"$f":"IF(ISBLANK(INDIRECT(\"'\"&F4951&\"'!\"&G4951)),\"\",INDIRECT(\"'\"&F4951&\"'!\"&G4951))","v":""},{"$f":"IF(ISBLANK(INDIRECT(\"'\"&F4951&\"'!\"&H4951)),\"\",IFERROR(VLOOKUP(TEXT(INDIRECT(\"'\"&F4951&\"'!\"&H4951),\"0\"),Notes!$B$5:$C$100,2,FALSE),\"\"))","v":""},"2a","$G$81","$H$81"]
[21783,{"$f":"Menu!$F$29","v":"X"},{"$f":"Menu!$J$29","v":2020},{"$f":"IF(ISBLANK(INDIRECT(\"'\"&F4952&\"'!\"&G4952)),\"\",INDIRECT(\"'\"&F4952&\"'!\"&G4952))","v":""},{"$f":"IF(ISBLANK(INDIRECT(\"'\"&F4952&\"'!\"&H4952)),\"\",IFERROR(VLOOKUP(TEXT(INDIRECT(\"'\"&F4952&\"'!\"&H4952),\"0\"),Notes!$B$5:$C$100,2,FALSE),\"\"))","v":""},"2a","$U$81","$V$81"]
[21784,{"$f":"Menu!$F$29","v":"X"},{"$f":"Menu!$J$29","v":2020},{"$f":"IF(ISBLANK(INDIRECT(\"'\"&F4953&\"'!\"&G4953)),\"\",INDIRECT(\"'\"&F4953&\"'!\"&G4953))","v":""},{"$f":"IF(ISBLANK(INDIRECT(\"'\"&F4953&\"'!\"&H4953)),\"\",IFERROR(VLOOKUP(TEXT(INDIRECT(\"'\"&F4953&\"'!\"&H4953),\"0\"),Notes!$B$5:$C$100,2,FALSE),\"\"))","v":""},"2a","$S$81","$T$81"]
[21785,{"$f":"Menu!$F$29","v":"X"},{"$f":"Menu!$J$29","v":2020},{"$f":"IF(ISBLANK(INDIRECT(\"'\"&F4954&\"'!\"&G4954)),\"\",INDIRECT(\"'\"&F4954&\"'!\"&G4954))","v":""},{"$f":"IF(ISBLANK(INDIRECT(\"'\"&F4954&\"'!\"&H4954)),\"\",IFERROR(VLOOKUP(TEXT(INDIRECT(\"'\"&F4954&\"'!\"&H4954),\"0\"),Notes!$B$5:$C$100,2,FALSE),\"\"))","v":""},"2a","$Q$81","$R$81"]
[21786,{"$f":"Menu!$F$29","v":"X"},{"$f":"Menu!$J$29","v":2020},{"$f":"IF(ISBLANK(INDIRECT(\"'\"&F4955&\"'!\"&G4955)),\"\",INDIRECT(\"'\"&F4955&\"'!\"&G4955))","v":""},{"$f":"IF(ISBLANK(INDIRECT(\"'\"&F4955&\"'!\"&H4955)),\"\",IFERROR(VLOOKUP(TEXT(INDIRECT(\"'\"&F4955&\"'!\"&H4955),\"0\"),Notes!$B$5:$C$100,2,FALSE),\"\"))","v":""},"2a","$O$81","$P$81"]
[21787,{"$f":"Menu!$F$29","v":"X"},{"$f":"Menu!$J$29","v":2020},{"$f":"IF(ISBLANK(INDIRECT(\"'\"&F4956&\"'!\"&G4956)),\"\",INDIRECT(\"'\"&F4956&\"'!\"&G4956))","v":""},{"$f":"IF(ISBLANK(INDIRECT(\"'\"&F4956&\"'!\"&H4956)),\"\",IFERROR(VLOOKUP(TEXT(INDIRECT(\"'\"&F4956&\"'!\"&H4956),\"0\"),Notes!$B$5:$C$100,2,FALSE),\"\"))","v":""},"2a","$M$81","$N$81"]
[21788,{"$f":"Menu!$F$29","v":"X"},{"$f":"Menu!$J$29","v":2020},{"$f":"IF(ISBLANK(INDIRECT(\"'\"&F4957&\"'!\"&G4957)),\"\",INDIRECT(\"'\"&F4957&\"'!\"&G4957))","v":""},{"$f":"IF(ISBLANK(INDIRECT(\"'\"&F4957&\"'!\"&H4957)),\"\",IFERROR(VLOOKUP(TEXT(INDIRECT(\"'\"&F4957&\"'!\"&H4957),\"0\"),Notes!$B$5:$C$100,2,FALSE),\"\"))","v":""},"2a","$K$81","$L$81"]
[21789,{"$f":"Menu!$F$29","v":"X"},{"$f":"Menu!$J$29","v":2020},{"$f":"IF(ISBLANK(INDIRECT(\"'\"&F4958&\"'!\"&G4958)),\"\",INDIRECT(\"'\"&F4958&\"'!\"&G4958))","v":""},{"$f":"IF(ISBLANK(INDIRECT(\"'\"&F4958&\"'!\"&H4958)),\"\",IFERROR(VLOOKUP(TEXT(INDIRECT(\"'\"&F4958&\"'!\"&H4958),\"0\"),Notes!$B$5:$C$100,2,FALSE),\"\"))","v":""},"2a","$E$81","$F$81"]
[21790,{"$f":"Menu!$F$29","v":"X"},{"$f":"Menu!$J$29","v":2020},{"$f":"IF(ISBLANK(INDIRECT(\"'\"&F4959&\"'!\"&G4959)),\"\",INDIRECT(\"'\"&F4959&\"'!\"&G4959))","v":""},{"$f":"IF(ISBLANK(INDIRECT(\"'\"&F4959&\"'!\"&H4959)),\"\",IFERROR(VLOOKUP(TEXT(INDIRECT(\"'\"&F4959&\"'!\"&H4959),\"0\"),Notes!$B$5:$C$100,2,FALSE),\"\"))","v":""},"2a","$I$82","$J$82"]
[21791,{"$f":"Menu!$F$29","v":"X"},{"$f":"Menu!$J$29","v":2020},{"$f":"IF(ISBLANK(INDIRECT(\"'\"&F4960&\"'!\"&G4960)),\"\",INDIRECT(\"'\"&F4960&\"'!\"&G4960))","v":""},{"$f":"IF(ISBLANK(INDIRECT(\"'\"&F4960&\"'!\"&H4960)),\"\",IFERROR(VLOOKUP(TEXT(INDIRECT(\"'\"&F4960&\"'!\"&H4960),\"0\"),Notes!$B$5:$C$100,2,FALSE),\"\"))","v":""},"2a","$G$82","$H$82"]
[21792,{"$f":"Menu!$F$29","v":"X"},{"$f":"Menu!$J$29","v":2020},{"$f":"IF(ISBLANK(INDIRECT(\"'\"&F4961&\"'!\"&G4961)),\"\",INDIRECT(\"'\"&F4961&\"'!\"&G4961))","v":""},{"$f":"IF(ISBLANK(INDIRECT(\"'\"&F4961&\"'!\"&H4961)),\"\",IFERROR(VLOOKUP(TEXT(INDIRECT(\"'\"&F4961&\"'!\"&H4961),\"0\"),Notes!$B$5:$C$100,2,FALSE),\"\"))","v":""},"2a","$U$82","$V$82"]
[21793,{"$f":"Menu!$F$29","v":"X"},{"$f":"Menu!$J$29","v":2020},{"$f":"IF(ISBLANK(INDIRECT(\"'\"&F4962&\"'!\"&G4962)),\"\",INDIRECT(\"'\"&F4962&\"'!\"&G4962))","v":""},{"$f":"IF(ISBLANK(INDIRECT(\"'\"&F4962&\"'!\"&H4962)),\"\",IFERROR(VLOOKUP(TEXT(INDIRECT(\"'\"&F4962&\"'!\"&H4962),\"0\"),Notes!$B$5:$C$100,2,FALSE),\"\"))","v":""},"2a","$S$82","$T$82"]
[21794,{"$f":"Menu!$F$29","v":"X"},{"$f":"Menu!$J$29","v":2020},{"$f":"IF(ISBLANK(INDIRECT(\"'\"&F4963&\"'!\"&G4963)),\"\",INDIRECT(\"'\"&F4963&\"'!\"&G4963))","v":""},{"$f":"IF(ISBLANK(INDIRECT(\"'\"&F4963&\"'!\"&H4963)),\"\",IFERROR(VLOOKUP(TEXT(INDIRECT(\"'\"&F4963&\"'!\"&H4963),\"0\"),Notes!$B$5:$C$100,2,FALSE),\"\"))","v":""},"2a","$Q$82","$R$82"]
[21795,{"$f":"Menu!$F$29","v":"X"},{"$f":"Menu!$J$29","v":2020},{"$f":"IF(ISBLANK(INDIRECT(\"'\"&F4964&\"'!\"&G4964)),\"\",INDIRECT(\"'\"&F4964&\"'!\"&G4964))","v":""},{"$f":"IF(ISBLANK(INDIRECT(\"'\"&F4964&\"'!\"&H4964)),\"\",IFERROR(VLOOKUP(TEXT(INDIRECT(\"'\"&F4964&\"'!\"&H4964),\"0\"),Notes!$B$5:$C$100,2,FALSE),\"\"))","v":""},"2a","$O$82","$P$82"]
[21796,{"$f":"Menu!$F$29","v":"X"},{"$f":"Menu!$J$29","v":2020},{"$f":"IF(ISBLANK(INDIRECT(\"'\"&F4965&\"'!\"&G4965)),\"\",INDIRECT(\"'\"&F4965&\"'!\"&G4965))","v":""},{"$f":"IF(ISBLANK(INDIRECT(\"'\"&F4965&\"'!\"&H4965)),\"\",IFERROR(VLOOKUP(TEXT(INDIRECT(\"'\"&F4965&\"'!\"&H4965),\"0\"),Notes!$B$5:$C$100,2,FALSE),\"\"))","v":""},"2a","$M$82","$N$82"]
[21797,{"$f":"Menu!$F$29","v":"X"},{"$f":"Menu!$J$29","v":2020},{"$f":"IF(ISBLANK(INDIRECT(\"'\"&F4966&\"'!\"&G4966)),\"\",INDIRECT(\"'\"&F4966&\"'!\"&G4966))","v":""},{"$f":"IF(ISBLANK(INDIRECT(\"'\"&F4966&\"'!\"&H4966)),\"\",IFERROR(VLOOKUP(TEXT(INDIRECT(\"'\"&F4966&\"'!\"&H4966),\"0\"),Notes!$B$5:$C$100,2,FALSE),\"\"))","v":""},"2a","$K$82","$L$82"]
[21798,{"$f":"Menu!$F$29","v":"X"},{"$f":"Menu!$J$29","v":2020},{"$f":"IF(ISBLANK(INDIRECT(\"'\"&F4967&\"'!\"&G4967)),\"\",INDIRECT(\"'\"&F4967&\"'!\"&G4967))","v":""},{"$f":"IF(ISBLANK(INDIRECT(\"'\"&F4967&\"'!\"&H4967)),\"\",IFERROR(VLOOKUP(TEXT(INDIRECT(\"'\"&F4967&\"'!\"&H4967),\"0\"),Notes!$B$5:$C$100,2,FALSE),\"\"))","v":""},"2a","$E$82","$F$82"]
[21799,{"$f":"Menu!$F$29","v":"X"},{"$f":"Menu!$J$29","v":2020},{"$f":"IF(ISBLANK(INDIRECT(\"'\"&F4968&\"'!\"&G4968)),\"\",INDIRECT(\"'\"&F4968&\"'!\"&G4968))","v":""},{"$f":"IF(ISBLANK(INDIRECT(\"'\"&F4968&\"'!\"&H4968)),\"\",IFERROR(VLOOKUP(TEXT(INDIRECT(\"'\"&F4968&\"'!\"&H4968),\"0\"),Notes!$B$5:$C$100,2,FALSE),\"\"))","v":""},"2a","$I$83","$J$83"]
[21800,{"$f":"Menu!$F$29","v":"X"},{"$f":"Menu!$J$29","v":2020},{"$f":"IF(ISBLANK(INDIRECT(\"'\"&F4969&\"'!\"&G4969)),\"\",INDIRECT(\"'\"&F4969&\"'!\"&G4969))","v":""},{"$f":"IF(ISBLANK(INDIRECT(\"'\"&F4969&\"'!\"&H4969)),\"\",IFERROR(VLOOKUP(TEXT(INDIRECT(\"'\"&F4969&\"'!\"&H4969),\"0\"),Notes!$B$5:$C$100,2,FALSE),\"\"))","v":""},"2a","$G$83","$H$83"]
[21801,{"$f":"Menu!$F$29","v":"X"},{"$f":"Menu!$J$29","v":2020},{"$f":"IF(ISBLANK(INDIRECT(\"'\"&F4970&\"'!\"&G4970)),\"\",INDIRECT(\"'\"&F4970&\"'!\"&G4970))","v":""},{"$f":"IF(ISBLANK(INDIRECT(\"'\"&F4970&\"'!\"&H4970)),\"\",IFERROR(VLOOKUP(TEXT(INDIRECT(\"'\"&F4970&\"'!\"&H4970),\"0\"),Notes!$B$5:$C$100,2,FALSE),\"\"))","v":""},"2a","$U$83","$V$83"]
[21802,{"$f":"Menu!$F$29","v":"X"},{"$f":"Menu!$J$29","v":2020},{"$f":"IF(ISBLANK(INDIRECT(\"'\"&F4971&\"'!\"&G4971)),\"\",INDIRECT(\"'\"&F4971&\"'!\"&G4971))","v":""},{"$f":"IF(ISBLANK(INDIRECT(\"'\"&F4971&\"'!\"&H4971)),\"\",IFERROR(VLOOKUP(TEXT(INDIRECT(\"'\"&F4971&\"'!\"&H4971),\"0\"),Notes!$B$5:$C$100,2,FALSE),\"\"))","v":""},"2a","$S$83","$T$83"]
[21803,{"$f":"Menu!$F$29","v":"X"},{"$f":"Menu!$J$29","v":2020},{"$f":"IF(ISBLANK(INDIRECT(\"'\"&F4972&\"'!\"&G4972)),\"\",INDIRECT(\"'\"&F4972&\"'!\"&G4972))","v":""},{"$f":"IF(ISBLANK(INDIRECT(\"'\"&F4972&\"'!\"&H4972)),\"\",IFERROR(VLOOKUP(TEXT(INDIRECT(\"'\"&F4972&\"'!\"&H4972),\"0\"),Notes!$B$5:$C$100,2,FALSE),\"\"))","v":""},"2a","$Q$83","$R$83"]
[21804,{"$f":"Menu!$F$29","v":"X"},{"$f":"Menu!$J$29","v":2020},{"$f":"IF(ISBLANK(INDIRECT(\"'\"&F4973&\"'!\"&G4973)),\"\",INDIRECT(\"'\"&F4973&\"'!\"&G4973))","v":""},{"$f":"IF(ISBLANK(INDIRECT(\"'\"&F4973&\"'!\"&H4973)),\"\",IFERROR(VLOOKUP(TEXT(INDIRECT(\"'\"&F4973&\"'!\"&H4973),\"0\"),Notes!$B$5:$C$100,2,FALSE),\"\"))","v":""},"2a","$O$83","$P$83"]
[21805,{"$f":"Menu!$F$29","v":"X"},{"$f":"Menu!$J$29","v":2020},{"$f":"IF(ISBLANK(INDIRECT(\"'\"&F4974&\"'!\"&G4974)),\"\",INDIRECT(\"'\"&F4974&\"'!\"&G4974))","v":""},{"$f":"IF(ISBLANK(INDIRECT(\"'\"&F4974&\"'!\"&H4974)),\"\",IFERROR(VLOOKUP(TEXT(INDIRECT(\"'\"&F4974&\"'!\"&H4974),\"0\"),Notes!$B$5:$C$100,2,FALSE),\"\"))","v":""},"2a","$M$83","$N$83"]
[21806,{"$f":"Menu!$F$29","v":"X"},{"$f":"Menu!$J$29","v":2020},{"$f":"IF(ISBLANK(INDIRECT(\"'\"&F4975&\"'!\"&G4975)),\"\",INDIRECT(\"'\"&F4975&\"'!\"&G4975))","v":""},{"$f":"IF(ISBLANK(INDIRECT(\"'\"&F4975&\"'!\"&H4975)),\"\",IFERROR(VLOOKUP(TEXT(INDIRECT(\"'\"&F4975&\"'!\"&H4975),\"0\"),Notes!$B$5:$C$100,2,FALSE),\"\"))","v":""},"2a","$K$83","$L$83"]
[21807,{"$f":"Menu!$F$29","v":"X"},{"$f":"Menu!$J$29","v":2020},{"$f":"IF(ISBLANK(INDIRECT(\"'\"&F4976&\"'!\"&G4976)),\"\",INDIRECT(\"'\"&F4976&\"'!\"&G4976))","v":""},{"$f":"IF(ISBLANK(INDIRECT(\"'\"&F4976&\"'!\"&H4976)),\"\",IFERROR(VLOOKUP(TEXT(INDIRECT(\"'\"&F4976&\"'!\"&H4976),\"0\"),Notes!$B$5:$C$100,2,FALSE),\"\"))","v":""},"2a","$E$83","$F$83"]
[21808,{"$f":"Menu!$F$29","v":"X"},{"$f":"Menu!$J$29","v":2020},{"$f":"IF(ISBLANK(INDIRECT(\"'\"&F4977&\"'!\"&G4977)),\"\",INDIRECT(\"'\"&F4977&\"'!\"&G4977))","v":""},{"$f":"IF(ISBLANK(INDIRECT(\"'\"&F4977&\"'!\"&H4977)),\"\",IFERROR(VLOOKUP(TEXT(INDIRECT(\"'\"&F4977&\"'!\"&H4977),\"0\"),Notes!$B$5:$C$100,2,FALSE),\"\"))","v":""},"2a","$I$84","$J$84"]
[21809,{"$f":"Menu!$F$29","v":"X"},{"$f":"Menu!$J$29","v":2020},{"$f":"IF(ISBLANK(INDIRECT(\"'\"&F4978&\"'!\"&G4978)),\"\",INDIRECT(\"'\"&F4978&\"'!\"&G4978))","v":""},{"$f":"IF(ISBLANK(INDIRECT(\"'\"&F4978&\"'!\"&H4978)),\"\",IFERROR(VLOOKUP(TEXT(INDIRECT(\"'\"&F4978&\"'!\"&H4978),\"0\"),Notes!$B$5:$C$100,2,FALSE),\"\"))","v":""},"2a","$G$84","$H$84"]
[21810,{"$f":"Menu!$F$29","v":"X"},{"$f":"Menu!$J$29","v":2020},{"$f":"IF(ISBLANK(INDIRECT(\"'\"&F4979&\"'!\"&G4979)),\"\",INDIRECT(\"'\"&F4979&\"'!\"&G4979))","v":""},{"$f":"IF(ISBLANK(INDIRECT(\"'\"&F4979&\"'!\"&H4979)),\"\",IFERROR(VLOOKUP(TEXT(INDIRECT(\"'\"&F4979&\"'!\"&H4979),\"0\"),Notes!$B$5:$C$100,2,FALSE),\"\"))","v":""},"2a","$U$84","$V$84"]
[21811,{"$f":"Menu!$F$29","v":"X"},{"$f":"Menu!$J$29","v":2020},{"$f":"IF(ISBLANK(INDIRECT(\"'\"&F4980&\"'!\"&G4980)),\"\",INDIRECT(\"'\"&F4980&\"'!\"&G4980))","v":""},{"$f":"IF(ISBLANK(INDIRECT(\"'\"&F4980&\"'!\"&H4980)),\"\",IFERROR(VLOOKUP(TEXT(INDIRECT(\"'\"&F4980&\"'!\"&H4980),\"0\"),Notes!$B$5:$C$100,2,FALSE),\"\"))","v":""},"2a","$S$84","$T$84"]
[21812,{"$f":"Menu!$F$29","v":"X"},{"$f":"Menu!$J$29","v":2020},{"$f":"IF(ISBLANK(INDIRECT(\"'\"&F4981&\"'!\"&G4981)),\"\",INDIRECT(\"'\"&F4981&\"'!\"&G4981))","v":""},{"$f":"IF(ISBLANK(INDIRECT(\"'\"&F4981&\"'!\"&H4981)),\"\",IFERROR(VLOOKUP(TEXT(INDIRECT(\"'\"&F4981&\"'!\"&H4981),\"0\"),Notes!$B$5:$C$100,2,FALSE),\"\"))","v":""},"2a","$Q$84","$R$84"]
[21813,{"$f":"Menu!$F$29","v":"X"},{"$f":"Menu!$J$29","v":2020},{"$f":"IF(ISBLANK(INDIRECT(\"'\"&F4982&\"'!\"&G4982)),\"\",INDIRECT(\"'\"&F4982&\"'!\"&G4982))","v":""},{"$f":"IF(ISBLANK(INDIRECT(\"'\"&F4982&\"'!\"&H4982)),\"\",IFERROR(VLOOKUP(TEXT(INDIRECT(\"'\"&F4982&\"'!\"&H4982),\"0\"),Notes!$B$5:$C$100,2,FALSE),\"\"))","v":""},"2a","$O$84","$P$84"]
[21814,{"$f":"Menu!$F$29","v":"X"},{"$f":"Menu!$J$29","v":2020},{"$f":"IF(ISBLANK(INDIRECT(\"'\"&F4983&\"'!\"&G4983)),\"\",INDIRECT(\"'\"&F4983&\"'!\"&G4983))","v":""},{"$f":"IF(ISBLANK(INDIRECT(\"'\"&F4983&\"'!\"&H4983)),\"\",IFERROR(VLOOKUP(TEXT(INDIRECT(\"'\"&F4983&\"'!\"&H4983),\"0\"),Notes!$B$5:$C$100,2,FALSE),\"\"))","v":""},"2a","$M$84","$N$84"]
[21815,{"$f":"Menu!$F$29","v":"X"},{"$f":"Menu!$J$29","v":2020},{"$f":"IF(ISBLANK(INDIRECT(\"'\"&F4984&\"'!\"&G4984)),\"\",INDIRECT(\"'\"&F4984&\"'!\"&G4984))","v":""},{"$f":"IF(ISBLANK(INDIRECT(\"'\"&F4984&\"'!\"&H4984)),\"\",IFERROR(VLOOKUP(TEXT(INDIRECT(\"'\"&F4984&\"'!\"&H4984),\"0\"),Notes!$B$5:$C$100,2,FALSE),\"\"))","v":""},"2a","$K$84","$L$84"]
[21816,{"$f":"Menu!$F$29","v":"X"},{"$f":"Menu!$J$29","v":2020},{"$f":"IF(ISBLANK(INDIRECT(\"'\"&F4985&\"'!\"&G4985)),\"\",INDIRECT(\"'\"&F4985&\"'!\"&G4985))","v":""},{"$f":"IF(ISBLANK(INDIRECT(\"'\"&F4985&\"'!\"&H4985)),\"\",IFERROR(VLOOKUP(TEXT(INDIRECT(\"'\"&F4985&\"'!\"&H4985),\"0\"),Notes!$B$5:$C$100,2,FALSE),\"\"))","v":""},"2a","$E$84","$F$84"]
[21817,{"$f":"Menu!$F$29","v":"X"},{"$f":"Menu!$J$29","v":2020},{"$f":"IF(ISBLANK(INDIRECT(\"'\"&F4986&\"'!\"&G4986)),\"\",INDIRECT(\"'\"&F4986&\"'!\"&G4986))","v":""},{"$f":"IF(ISBLANK(INDIRECT(\"'\"&F4986&\"'!\"&H4986)),\"\",IFERROR(VLOOKUP(TEXT(INDIRECT(\"'\"&F4986&\"'!\"&H4986),\"0\"),Notes!$B$5:$C$100,2,FALSE),\"\"))","v":""},"2a","$I$85","$J$85"]
[21818,{"$f":"Menu!$F$29","v":"X"},{"$f":"Menu!$J$29","v":2020},{"$f":"IF(ISBLANK(INDIRECT(\"'\"&F4987&\"'!\"&G4987)),\"\",INDIRECT(\"'\"&F4987&\"'!\"&G4987))","v":""},{"$f":"IF(ISBLANK(INDIRECT(\"'\"&F4987&\"'!\"&H4987)),\"\",IFERROR(VLOOKUP(TEXT(INDIRECT(\"'\"&F4987&\"'!\"&H4987),\"0\"),Notes!$B$5:$C$100,2,FALSE),\"\"))","v":""},"2a","$G$85","$H$85"]
[21819,{"$f":"Menu!$F$29","v":"X"},{"$f":"Menu!$J$29","v":2020},{"$f":"IF(ISBLANK(INDIRECT(\"'\"&F4988&\"'!\"&G4988)),\"\",INDIRECT(\"'\"&F4988&\"'!\"&G4988))","v":""},{"$f":"IF(ISBLANK(INDIRECT(\"'\"&F4988&\"'!\"&H4988)),\"\",IFERROR(VLOOKUP(TEXT(INDIRECT(\"'\"&F4988&\"'!\"&H4988),\"0\"),Notes!$B$5:$C$100,2,FALSE),\"\"))","v":""},"2a","$U$85","$V$85"]
[21820,{"$f":"Menu!$F$29","v":"X"},{"$f":"Menu!$J$29","v":2020},{"$f":"IF(ISBLANK(INDIRECT(\"'\"&F4989&\"'!\"&G4989)),\"\",INDIRECT(\"'\"&F4989&\"'!\"&G4989))","v":""},{"$f":"IF(ISBLANK(INDIRECT(\"'\"&F4989&\"'!\"&H4989)),\"\",IFERROR(VLOOKUP(TEXT(INDIRECT(\"'\"&F4989&\"'!\"&H4989),\"0\"),Notes!$B$5:$C$100,2,FALSE),\"\"))","v":""},"2a","$S$85","$T$85"]
[21821,{"$f":"Menu!$F$29","v":"X"},{"$f":"Menu!$J$29","v":2020},{"$f":"IF(ISBLANK(INDIRECT(\"'\"&F4990&\"'!\"&G4990)),\"\",INDIRECT(\"'\"&F4990&\"'!\"&G4990))","v":""},{"$f":"IF(ISBLANK(INDIRECT(\"'\"&F4990&\"'!\"&H4990)),\"\",IFERROR(VLOOKUP(TEXT(INDIRECT(\"'\"&F4990&\"'!\"&H4990),\"0\"),Notes!$B$5:$C$100,2,FALSE),\"\"))","v":""},"2a","$Q$85","$R$85"]
[21822,{"$f":"Menu!$F$29","v":"X"},{"$f":"Menu!$J$29","v":2020},{"$f":"IF(ISBLANK(INDIRECT(\"'\"&F4991&\"'!\"&G4991)),\"\",INDIRECT(\"'\"&F4991&\"'!\"&G4991))","v":""},{"$f":"IF(ISBLANK(INDIRECT(\"'\"&F4991&\"'!\"&H4991)),\"\",IFERROR(VLOOKUP(TEXT(INDIRECT(\"'\"&F4991&\"'!\"&H4991),\"0\"),Notes!$B$5:$C$100,2,FALSE),\"\"))","v":""},"2a","$O$85","$P$85"]
[21823,{"$f":"Menu!$F$29","v":"X"},{"$f":"Menu!$J$29","v":2020},{"$f":"IF(ISBLANK(INDIRECT(\"'\"&F4992&\"'!\"&G4992)),\"\",INDIRECT(\"'\"&F4992&\"'!\"&G4992))","v":""},{"$f":"IF(ISBLANK(INDIRECT(\"'\"&F4992&\"'!\"&H4992)),\"\",IFERROR(VLOOKUP(TEXT(INDIRECT(\"'\"&F4992&\"'!\"&H4992),\"0\"),Notes!$B$5:$C$100,2,FALSE),\"\"))","v":""},"2a","$M$85","$N$85"]
[21824,{"$f":"Menu!$F$29","v":"X"},{"$f":"Menu!$J$29","v":2020},{"$f":"IF(ISBLANK(INDIRECT(\"'\"&F4993&\"'!\"&G4993)),\"\",INDIRECT(\"'\"&F4993&\"'!\"&G4993))","v":""},{"$f":"IF(ISBLANK(INDIRECT(\"'\"&F4993&\"'!\"&H4993)),\"\",IFERROR(VLOOKUP(TEXT(INDIRECT(\"'\"&F4993&\"'!\"&H4993),\"0\"),Notes!$B$5:$C$100,2,FALSE),\"\"))","v":""},"2a","$K$85","$L$85"]
[21825,{"$f":"Menu!$F$29","v":"X"},{"$f":"Menu!$J$29","v":2020},{"$f":"IF(ISBLANK(INDIRECT(\"'\"&F4994&\"'!\"&G4994)),\"\",INDIRECT(\"'\"&F4994&\"'!\"&G4994))","v":""},{"$f":"IF(ISBLANK(INDIRECT(\"'\"&F4994&\"'!\"&H4994)),\"\",IFERROR(VLOOKUP(TEXT(INDIRECT(\"'\"&F4994&\"'!\"&H4994),\"0\"),Notes!$B$5:$C$100,2,FALSE),\"\"))","v":""},"2a","$E$85",{"$f":"IF(LEN(TRIM(MID(G4994,4,10)))-LEN(SUBSTITUTE(TRIM(MID(G4994,4,10)),\"$\",\"\"))=0,\"$\"&CHAR(CODE(MID(G4994,2,1))+1)&\"$\"&TRIM(MID(G4994,4,10)),\"$\"&MID(G4994,2,1)&CHAR(CODE(MID(G4994,3,1))+1)&\"$\"&TRIM(MID(G4994,5,11)))","v":"$F$85"}]
[21838,{"$f":"Menu!$F$29","v":"X"},{"$f":"Menu!$J$29","v":2020},{"$f":"IF(ISBLANK(INDIRECT(\"'\"&F4995&\"'!\"&G4995)),\"\",INDIRECT(\"'\"&F4995&\"'!\"&G4995))","v":""},{"$f":"IF(ISBLANK(INDIRECT(\"'\"&F4995&\"'!\"&H4995)),\"\",IFERROR(VLOOKUP(TEXT(INDIRECT(\"'\"&F4995&\"'!\"&H4995),\"0\"),Notes!$B$5:$C$100,2,FALSE),\"\"))","v":""},"2b","$K$85","$L$85"]
[21839,{"$f":"Menu!$F$29","v":"X"},{"$f":"Menu!$J$29","v":2020},{"$f":"IF(ISBLANK(INDIRECT(\"'\"&F4996&\"'!\"&G4996)),\"\",INDIRECT(\"'\"&F4996&\"'!\"&G4996))","v":""},{"$f":"IF(ISBLANK(INDIRECT(\"'\"&F4996&\"'!\"&H4996)),\"\",IFERROR(VLOOKUP(TEXT(INDIRECT(\"'\"&F4996&\"'!\"&H4996),\"0\"),Notes!$B$5:$C$100,2,FALSE),\"\"))","v":""},"2b","$O$85","$P$85"]
[21840,{"$f":"Menu!$F$29","v":"X"},{"$f":"Menu!$J$29","v":2020},{"$f":"IF(ISBLANK(INDIRECT(\"'\"&F4997&\"'!\"&G4997)),\"\",INDIRECT(\"'\"&F4997&\"'!\"&G4997))","v":""},{"$f":"IF(ISBLANK(INDIRECT(\"'\"&F4997&\"'!\"&H4997)),\"\",IFERROR(VLOOKUP(TEXT(INDIRECT(\"'\"&F4997&\"'!\"&H4997),\"0\"),Notes!$B$5:$C$100,2,FALSE),\"\"))","v":""},"2b","$M$85","$N$85"]
[21841,{"$f":"Menu!$F$29","v":"X"},{"$f":"Menu!$J$29","v":2020},{"$f":"IF(ISBLANK(INDIRECT(\"'\"&F4998&\"'!\"&G4998)),\"\",INDIRECT(\"'\"&F4998&\"'!\"&G4998))","v":""},{"$f":"IF(ISBLANK(INDIRECT(\"'\"&F4998&\"'!\"&H4998)),\"\",IFERROR(VLOOKUP(TEXT(INDIRECT(\"'\"&F4998&\"'!\"&H4998),\"0\"),Notes!$B$5:$C$100,2,FALSE),\"\"))","v":""},"2b","$Q$85","$R$85"]
[21842,{"$f":"Menu!$F$29","v":"X"},{"$f":"Menu!$J$29","v":2020},{"$f":"IF(ISBLANK(INDIRECT(\"'\"&F4999&\"'!\"&G4999)),\"\",INDIRECT(\"'\"&F4999&\"'!\"&G4999))","v":""},{"$f":"IF(ISBLANK(INDIRECT(\"'\"&F4999&\"'!\"&H4999)),\"\",IFERROR(VLOOKUP(TEXT(INDIRECT(\"'\"&F4999&\"'!\"&H4999),\"0\"),Notes!$B$5:$C$100,2,FALSE),\"\"))","v":""},"2b","$U$85","$V$85"]
[21843,{"$f":"Menu!$F$29","v":"X"},{"$f":"Menu!$J$29","v":2020},{"$f":"IF(ISBLANK(INDIRECT(\"'\"&F5000&\"'!\"&G5000)),\"\",INDIRECT(\"'\"&F5000&\"'!\"&G5000))","v":""},{"$f":"IF(ISBLANK(INDIRECT(\"'\"&F5000&\"'!\"&H5000)),\"\",IFERROR(VLOOKUP(TEXT(INDIRECT(\"'\"&F5000&\"'!\"&H5000),\"0\"),Notes!$B$5:$C$100,2,FALSE),\"\"))","v":""},"2b","$S$85","$T$85"]
[21844,{"$f":"Menu!$F$29","v":"X"},{"$f":"Menu!$J$29","v":2020},{"$f":"IF(ISBLANK(INDIRECT(\"'\"&F5001&\"'!\"&G5001)),\"\",INDIRECT(\"'\"&F5001&\"'!\"&G5001))","v":""},{"$f":"IF(ISBLANK(INDIRECT(\"'\"&F5001&\"'!\"&H5001)),\"\",IFERROR(VLOOKUP(TEXT(INDIRECT(\"'\"&F5001&\"'!\"&H5001),\"0\"),Notes!$B$5:$C$100,2,FALSE),\"\"))","v":""},"2b","$E$85","$F$85"]
[21845,{"$f":"Menu!$F$29","v":"X"},{"$f":"Menu!$J$29","v":2020},{"$f":"IF(ISBLANK(INDIRECT(\"'\"&F5002&\"'!\"&G5002)),\"\",INDIRECT(\"'\"&F5002&\"'!\"&G5002))","v":""},{"$f":"IF(ISBLANK(INDIRECT(\"'\"&F5002&\"'!\"&H5002)),\"\",IFERROR(VLOOKUP(TEXT(INDIRECT(\"'\"&F5002&\"'!\"&H5002),\"0\"),Notes!$B$5:$C$100,2,FALSE),\"\"))","v":""},"2b","$I$85","$J$85"]
[21846,{"$f":"Menu!$F$29","v":"X"},{"$f":"Menu!$J$29","v":2020},{"$f":"IF(ISBLANK(INDIRECT(\"'\"&F5003&\"'!\"&G5003)),\"\",INDIRECT(\"'\"&F5003&\"'!\"&G5003))","v":""},{"$f":"IF(ISBLANK(INDIRECT(\"'\"&F5003&\"'!\"&H5003)),\"\",IFERROR(VLOOKUP(TEXT(INDIRECT(\"'\"&F5003&\"'!\"&H5003),\"0\"),Notes!$B$5:$C$100,2,FALSE),\"\"))","v":""},"2b","$G$85","$H$85"]
[21847,{"$f":"Menu!$F$29","v":"X"},{"$f":"Menu!$J$29","v":2020},{"$f":"IF(ISBLANK(INDIRECT(\"'\"&F5004&\"'!\"&G5004)),\"\",INDIRECT(\"'\"&F5004&\"'!\"&G5004))","v":""},{"$f":"IF(ISBLANK(INDIRECT(\"'\"&F5004&\"'!\"&H5004)),\"\",IFERROR(VLOOKUP(TEXT(INDIRECT(\"'\"&F5004&\"'!\"&H5004),\"0\"),Notes!$B$5:$C$100,2,FALSE),\"\"))","v":""},"2b","$W$85","$X$85"]
[21848,{"$f":"Menu!$F$29","v":"X"},{"$f":"Menu!$J$29","v":2020},{"$f":"IF(ISBLANK(INDIRECT(\"'\"&F5005&\"'!\"&G5005)),\"\",INDIRECT(\"'\"&F5005&\"'!\"&G5005))","v":""},{"$f":"IF(ISBLANK(INDIRECT(\"'\"&F5005&\"'!\"&H5005)),\"\",IFERROR(VLOOKUP(TEXT(INDIRECT(\"'\"&F5005&\"'!\"&H5005),\"0\"),Notes!$B$5:$C$100,2,FALSE),\"\"))","v":""},"2b","$AA$85","$AB$85"]
[21849,{"$f":"Menu!$F$29","v":"X"},{"$f":"Menu!$J$29","v":2020},{"$f":"IF(ISBLANK(INDIRECT(\"'\"&F5006&\"'!\"&G5006)),\"\",INDIRECT(\"'\"&F5006&\"'!\"&G5006))","v":""},{"$f":"IF(ISBLANK(INDIRECT(\"'\"&F5006&\"'!\"&H5006)),\"\",IFERROR(VLOOKUP(TEXT(INDIRECT(\"'\"&F5006&\"'!\"&H5006),\"0\"),Notes!$B$5:$C$100,2,FALSE),\"\"))","v":""},"2b","$Y$85","$Z$85"]
[21850,{"$f":"Menu!$F$29","v":"X"},{"$f":"Menu!$J$29","v":2020},{"$f":"IF(ISBLANK(INDIRECT(\"'\"&F5007&\"'!\"&G5007)),\"\",INDIRECT(\"'\"&F5007&\"'!\"&G5007))","v":""},{"$f":"IF(ISBLANK(INDIRECT(\"'\"&F5007&\"'!\"&H5007)),\"\",IFERROR(VLOOKUP(TEXT(INDIRECT(\"'\"&F5007&\"'!\"&H5007),\"0\"),Notes!$B$5:$C$100,2,FALSE),\"\"))","v":""},"2b","$K$84","$L$84"]
[21851,{"$f":"Menu!$F$29","v":"X"},{"$f":"Menu!$J$29","v":2020},{"$f":"IF(ISBLANK(INDIRECT(\"'\"&F5008&\"'!\"&G5008)),\"\",INDIRECT(\"'\"&F5008&\"'!\"&G5008))","v":""},{"$f":"IF(ISBLANK(INDIRECT(\"'\"&F5008&\"'!\"&H5008)),\"\",IFERROR(VLOOKUP(TEXT(INDIRECT(\"'\"&F5008&\"'!\"&H5008),\"0\"),Notes!$B$5:$C$100,2,FALSE),\"\"))","v":""},"2b","$O$84","$P$84"]
[21852,{"$f":"Menu!$F$29","v":"X"},{"$f":"Menu!$J$29","v":2020},{"$f":"IF(ISBLANK(INDIRECT(\"'\"&F5009&\"'!\"&G5009)),\"\",INDIRECT(\"'\"&F5009&\"'!\"&G5009))","v":""},{"$f":"IF(ISBLANK(INDIRECT(\"'\"&F5009&\"'!\"&H5009)),\"\",IFERROR(VLOOKUP(TEXT(INDIRECT(\"'\"&F5009&\"'!\"&H5009),\"0\"),Notes!$B$5:$C$100,2,FALSE),\"\"))","v":""},"2b","$M$84","$N$84"]
[21853,{"$f":"Menu!$F$29","v":"X"},{"$f":"Menu!$J$29","v":2020},{"$f":"IF(ISBLANK(INDIRECT(\"'\"&F5010&\"'!\"&G5010)),\"\",INDIRECT(\"'\"&F5010&\"'!\"&G5010))","v":""},{"$f":"IF(ISBLANK(INDIRECT(\"'\"&F5010&\"'!\"&H5010)),\"\",IFERROR(VLOOKUP(TEXT(INDIRECT(\"'\"&F5010&\"'!\"&H5010),\"0\"),Notes!$B$5:$C$100,2,FALSE),\"\"))","v":""},"2b","$Q$84","$R$84"]
[21854,{"$f":"Menu!$F$29","v":"X"},{"$f":"Menu!$J$29","v":2020},{"$f":"IF(ISBLANK(INDIRECT(\"'\"&F5011&\"'!\"&G5011)),\"\",INDIRECT(\"'\"&F5011&\"'!\"&G5011))","v":""},{"$f":"IF(ISBLANK(INDIRECT(\"'\"&F5011&\"'!\"&H5011)),\"\",IFERROR(VLOOKUP(TEXT(INDIRECT(\"'\"&F5011&\"'!\"&H5011),\"0\"),Notes!$B$5:$C$100,2,FALSE),\"\"))","v":""},"2b","$U$84","$V$84"]
[21855,{"$f":"Menu!$F$29","v":"X"},{"$f":"Menu!$J$29","v":2020},{"$f":"IF(ISBLANK(INDIRECT(\"'\"&F5012&\"'!\"&G5012)),\"\",INDIRECT(\"'\"&F5012&\"'!\"&G5012))","v":""},{"$f":"IF(ISBLANK(INDIRECT(\"'\"&F5012&\"'!\"&H5012)),\"\",IFERROR(VLOOKUP(TEXT(INDIRECT(\"'\"&F5012&\"'!\"&H5012),\"0\"),Notes!$B$5:$C$100,2,FALSE),\"\"))","v":""},"2b","$S$84","$T$84"]
[21856,{"$f":"Menu!$F$29","v":"X"},{"$f":"Menu!$J$29","v":2020},{"$f":"IF(ISBLANK(INDIRECT(\"'\"&F5013&\"'!\"&G5013)),\"\",INDIRECT(\"'\"&F5013&\"'!\"&G5013))","v":""},{"$f":"IF(ISBLANK(INDIRECT(\"'\"&F5013&\"'!\"&H5013)),\"\",IFERROR(VLOOKUP(TEXT(INDIRECT(\"'\"&F5013&\"'!\"&H5013),\"0\"),Notes!$B$5:$C$100,2,FALSE),\"\"))","v":""},"2b","$E$84","$F$84"]
[21857,{"$f":"Menu!$F$29","v":"X"},{"$f":"Menu!$J$29","v":2020},{"$f":"IF(ISBLANK(INDIRECT(\"'\"&F5014&\"'!\"&G5014)),\"\",INDIRECT(\"'\"&F5014&\"'!\"&G5014))","v":""},{"$f":"IF(ISBLANK(INDIRECT(\"'\"&F5014&\"'!\"&H5014)),\"\",IFERROR(VLOOKUP(TEXT(INDIRECT(\"'\"&F5014&\"'!\"&H5014),\"0\"),Notes!$B$5:$C$100,2,FALSE),\"\"))","v":""},"2b","$I$84","$J$84"]
[21858,{"$f":"Menu!$F$29","v":"X"},{"$f":"Menu!$J$29","v":2020},{"$f":"IF(ISBLANK(INDIRECT(\"'\"&F5015&\"'!\"&G5015)),\"\",INDIRECT(\"'\"&F5015&\"'!\"&G5015))","v":""},{"$f":"IF(ISBLANK(INDIRECT(\"'\"&F5015&\"'!\"&H5015)),\"\",IFERROR(VLOOKUP(TEXT(INDIRECT(\"'\"&F5015&\"'!\"&H5015),\"0\"),Notes!$B$5:$C$100,2,FALSE),\"\"))","v":""},"2b","$G$84","$H$84"]
[21859,{"$f":"Menu!$F$29","v":"X"},{"$f":"Menu!$J$29","v":2020},{"$f":"IF(ISBLANK(INDIRECT(\"'\"&F5016&\"'!\"&G5016)),\"\",INDIRECT(\"'\"&F5016&\"'!\"&G5016))","v":""},{"$f":"IF(ISBLANK(INDIRECT(\"'\"&F5016&\"'!\"&H5016)),\"\",IFERROR(VLOOKUP(TEXT(INDIRECT(\"'\"&F5016&\"'!\"&H5016),\"0\"),Notes!$B$5:$C$100,2,FALSE),\"\"))","v":""},"2b","$W$84","$X$84"]
[21860,{"$f":"Menu!$F$29","v":"X"},{"$f":"Menu!$J$29","v":2020},{"$f":"IF(ISBLANK(INDIRECT(\"'\"&F5017&\"'!\"&G5017)),\"\",INDIRECT(\"'\"&F5017&\"'!\"&G5017))","v":""},{"$f":"IF(ISBLANK(INDIRECT(\"'\"&F5017&\"'!\"&H5017)),\"\",IFERROR(VLOOKUP(TEXT(INDIRECT(\"'\"&F5017&\"'!\"&H5017),\"0\"),Notes!$B$5:$C$100,2,FALSE),\"\"))","v":""},"2b","$AA$84","$AB$84"]
[21861,{"$f":"Menu!$F$29","v":"X"},{"$f":"Menu!$J$29","v":2020},{"$f":"IF(ISBLANK(INDIRECT(\"'\"&F5018&\"'!\"&G5018)),\"\",INDIRECT(\"'\"&F5018&\"'!\"&G5018))","v":""},{"$f":"IF(ISBLANK(INDIRECT(\"'\"&F5018&\"'!\"&H5018)),\"\",IFERROR(VLOOKUP(TEXT(INDIRECT(\"'\"&F5018&\"'!\"&H5018),\"0\"),Notes!$B$5:$C$100,2,FALSE),\"\"))","v":""},"2b","$Y$84","$Z$84"]
[21862,{"$f":"Menu!$F$29","v":"X"},{"$f":"Menu!$J$29","v":2020},{"$f":"IF(ISBLANK(INDIRECT(\"'\"&F5019&\"'!\"&G5019)),\"\",INDIRECT(\"'\"&F5019&\"'!\"&G5019))","v":""},{"$f":"IF(ISBLANK(INDIRECT(\"'\"&F5019&\"'!\"&H5019)),\"\",IFERROR(VLOOKUP(TEXT(INDIRECT(\"'\"&F5019&\"'!\"&H5019),\"0\"),Notes!$B$5:$C$100,2,FALSE),\"\"))","v":""},"2b","$K$83","$L$83"]
[21863,{"$f":"Menu!$F$29","v":"X"},{"$f":"Menu!$J$29","v":2020},{"$f":"IF(ISBLANK(INDIRECT(\"'\"&F5020&\"'!\"&G5020)),\"\",INDIRECT(\"'\"&F5020&\"'!\"&G5020))","v":""},{"$f":"IF(ISBLANK(INDIRECT(\"'\"&F5020&\"'!\"&H5020)),\"\",IFERROR(VLOOKUP(TEXT(INDIRECT(\"'\"&F5020&\"'!\"&H5020),\"0\"),Notes!$B$5:$C$100,2,FALSE),\"\"))","v":""},"2b","$O$83","$P$83"]
[21864,{"$f":"Menu!$F$29","v":"X"},{"$f":"Menu!$J$29","v":2020},{"$f":"IF(ISBLANK(INDIRECT(\"'\"&F5021&\"'!\"&G5021)),\"\",INDIRECT(\"'\"&F5021&\"'!\"&G5021))","v":""},{"$f":"IF(ISBLANK(INDIRECT(\"'\"&F5021&\"'!\"&H5021)),\"\",IFERROR(VLOOKUP(TEXT(INDIRECT(\"'\"&F5021&\"'!\"&H5021),\"0\"),Notes!$B$5:$C$100,2,FALSE),\"\"))","v":""},"2b","$M$83","$N$83"]
[21865,{"$f":"Menu!$F$29","v":"X"},{"$f":"Menu!$J$29","v":2020},{"$f":"IF(ISBLANK(INDIRECT(\"'\"&F5022&\"'!\"&G5022)),\"\",INDIRECT(\"'\"&F5022&\"'!\"&G5022))","v":""},{"$f":"IF(ISBLANK(INDIRECT(\"'\"&F5022&\"'!\"&H5022)),\"\",IFERROR(VLOOKUP(TEXT(INDIRECT(\"'\"&F5022&\"'!\"&H5022),\"0\"),Notes!$B$5:$C$100,2,FALSE),\"\"))","v":""},"2b","$Q$83","$R$83"]
[21866,{"$f":"Menu!$F$29","v":"X"},{"$f":"Menu!$J$29","v":2020},{"$f":"IF(ISBLANK(INDIRECT(\"'\"&F5023&\"'!\"&G5023)),\"\",INDIRECT(\"'\"&F5023&\"'!\"&G5023))","v":""},{"$f":"IF(ISBLANK(INDIRECT(\"'\"&F5023&\"'!\"&H5023)),\"\",IFERROR(VLOOKUP(TEXT(INDIRECT(\"'\"&F5023&\"'!\"&H5023),\"0\"),Notes!$B$5:$C$100,2,FALSE),\"\"))","v":""},"2b","$U$83","$V$83"]
[21867,{"$f":"Menu!$F$29","v":"X"},{"$f":"Menu!$J$29","v":2020},{"$f":"IF(ISBLANK(INDIRECT(\"'\"&F5024&\"'!\"&G5024)),\"\",INDIRECT(\"'\"&F5024&\"'!\"&G5024))","v":""},{"$f":"IF(ISBLANK(INDIRECT(\"'\"&F5024&\"'!\"&H5024)),\"\",IFERROR(VLOOKUP(TEXT(INDIRECT(\"'\"&F5024&\"'!\"&H5024),\"0\"),Notes!$B$5:$C$100,2,FALSE),\"\"))","v":""},"2b","$S$83","$T$83"]
[21868,{"$f":"Menu!$F$29","v":"X"},{"$f":"Menu!$J$29","v":2020},{"$f":"IF(ISBLANK(INDIRECT(\"'\"&F5025&\"'!\"&G5025)),\"\",INDIRECT(\"'\"&F5025&\"'!\"&G5025))","v":""},{"$f":"IF(ISBLANK(INDIRECT(\"'\"&F5025&\"'!\"&H5025)),\"\",IFERROR(VLOOKUP(TEXT(INDIRECT(\"'\"&F5025&\"'!\"&H5025),\"0\"),Notes!$B$5:$C$100,2,FALSE),\"\"))","v":""},"2b","$E$83","$F$83"]
[21869,{"$f":"Menu!$F$29","v":"X"},{"$f":"Menu!$J$29","v":2020},{"$f":"IF(ISBLANK(INDIRECT(\"'\"&F5026&\"'!\"&G5026)),\"\",INDIRECT(\"'\"&F5026&\"'!\"&G5026))","v":""},{"$f":"IF(ISBLANK(INDIRECT(\"'\"&F5026&\"'!\"&H5026)),\"\",IFERROR(VLOOKUP(TEXT(INDIRECT(\"'\"&F5026&\"'!\"&H5026),\"0\"),Notes!$B$5:$C$100,2,FALSE),\"\"))","v":""},"2b","$I$83","$J$83"]
[21870,{"$f":"Menu!$F$29","v":"X"},{"$f":"Menu!$J$29","v":2020},{"$f":"IF(ISBLANK(INDIRECT(\"'\"&F5027&\"'!\"&G5027)),\"\",INDIRECT(\"'\"&F5027&\"'!\"&G5027))","v":""},{"$f":"IF(ISBLANK(INDIRECT(\"'\"&F5027&\"'!\"&H5027)),\"\",IFERROR(VLOOKUP(TEXT(INDIRECT(\"'\"&F5027&\"'!\"&H5027),\"0\"),Notes!$B$5:$C$100,2,FALSE),\"\"))","v":""},"2b","$G$83","$H$83"]
[21871,{"$f":"Menu!$F$29","v":"X"},{"$f":"Menu!$J$29","v":2020},{"$f":"IF(ISBLANK(INDIRECT(\"'\"&F5028&\"'!\"&G5028)),\"\",INDIRECT(\"'\"&F5028&\"'!\"&G5028))","v":""},{"$f":"IF(ISBLANK(INDIRECT(\"'\"&F5028&\"'!\"&H5028)),\"\",IFERROR(VLOOKUP(TEXT(INDIRECT(\"'\"&F5028&\"'!\"&H5028),\"0\"),Notes!$B$5:$C$100,2,FALSE),\"\"))","v":""},"2b","$W$83","$X$83"]
[21872,{"$f":"Menu!$F$29","v":"X"},{"$f":"Menu!$J$29","v":2020},{"$f":"IF(ISBLANK(INDIRECT(\"'\"&F5029&\"'!\"&G5029)),\"\",INDIRECT(\"'\"&F5029&\"'!\"&G5029))","v":""},{"$f":"IF(ISBLANK(INDIRECT(\"'\"&F5029&\"'!\"&H5029)),\"\",IFERROR(VLOOKUP(TEXT(INDIRECT(\"'\"&F5029&\"'!\"&H5029),\"0\"),Notes!$B$5:$C$100,2,FALSE),\"\"))","v":""},"2b","$AA$83","$AB$83"]
[21873,{"$f":"Menu!$F$29","v":"X"},{"$f":"Menu!$J$29","v":2020},{"$f":"IF(ISBLANK(INDIRECT(\"'\"&F5030&\"'!\"&G5030)),\"\",INDIRECT(\"'\"&F5030&\"'!\"&G5030))","v":""},{"$f":"IF(ISBLANK(INDIRECT(\"'\"&F5030&\"'!\"&H5030)),\"\",IFERROR(VLOOKUP(TEXT(INDIRECT(\"'\"&F5030&\"'!\"&H5030),\"0\"),Notes!$B$5:$C$100,2,FALSE),\"\"))","v":""},"2b","$Y$83","$Z$83"]
[21874,{"$f":"Menu!$F$29","v":"X"},{"$f":"Menu!$J$29","v":2020},{"$f":"IF(ISBLANK(INDIRECT(\"'\"&F5031&\"'!\"&G5031)),\"\",INDIRECT(\"'\"&F5031&\"'!\"&G5031))","v":""},{"$f":"IF(ISBLANK(INDIRECT(\"'\"&F5031&\"'!\"&H5031)),\"\",IFERROR(VLOOKUP(TEXT(INDIRECT(\"'\"&F5031&\"'!\"&H5031),\"0\"),Notes!$B$5:$C$100,2,FALSE),\"\"))","v":""},"2b","$K$82","$L$82"]
[21875,{"$f":"Menu!$F$29","v":"X"},{"$f":"Menu!$J$29","v":2020},{"$f":"IF(ISBLANK(INDIRECT(\"'\"&F5032&\"'!\"&G5032)),\"\",INDIRECT(\"'\"&F5032&\"'!\"&G5032))","v":""},{"$f":"IF(ISBLANK(INDIRECT(\"'\"&F5032&\"'!\"&H5032)),\"\",IFERROR(VLOOKUP(TEXT(INDIRECT(\"'\"&F5032&\"'!\"&H5032),\"0\"),Notes!$B$5:$C$100,2,FALSE),\"\"))","v":""},"2b","$O$82","$P$82"]
[21876,{"$f":"Menu!$F$29","v":"X"},{"$f":"Menu!$J$29","v":2020},{"$f":"IF(ISBLANK(INDIRECT(\"'\"&F5033&\"'!\"&G5033)),\"\",INDIRECT(\"'\"&F5033&\"'!\"&G5033))","v":""},{"$f":"IF(ISBLANK(INDIRECT(\"'\"&F5033&\"'!\"&H5033)),\"\",IFERROR(VLOOKUP(TEXT(INDIRECT(\"'\"&F5033&\"'!\"&H5033),\"0\"),Notes!$B$5:$C$100,2,FALSE),\"\"))","v":""},"2b","$M$82","$N$82"]
[21877,{"$f":"Menu!$F$29","v":"X"},{"$f":"Menu!$J$29","v":2020},{"$f":"IF(ISBLANK(INDIRECT(\"'\"&F5034&\"'!\"&G5034)),\"\",INDIRECT(\"'\"&F5034&\"'!\"&G5034))","v":""},{"$f":"IF(ISBLANK(INDIRECT(\"'\"&F5034&\"'!\"&H5034)),\"\",IFERROR(VLOOKUP(TEXT(INDIRECT(\"'\"&F5034&\"'!\"&H5034),\"0\"),Notes!$B$5:$C$100,2,FALSE),\"\"))","v":""},"2b","$Q$82","$R$82"]
[21878,{"$f":"Menu!$F$29","v":"X"},{"$f":"Menu!$J$29","v":2020},{"$f":"IF(ISBLANK(INDIRECT(\"'\"&F5035&\"'!\"&G5035)),\"\",INDIRECT(\"'\"&F5035&\"'!\"&G5035))","v":""},{"$f":"IF(ISBLANK(INDIRECT(\"'\"&F5035&\"'!\"&H5035)),\"\",IFERROR(VLOOKUP(TEXT(INDIRECT(\"'\"&F5035&\"'!\"&H5035),\"0\"),Notes!$B$5:$C$100,2,FALSE),\"\"))","v":""},"2b","$U$82","$V$82"]
[21879,{"$f":"Menu!$F$29","v":"X"},{"$f":"Menu!$J$29","v":2020},{"$f":"IF(ISBLANK(INDIRECT(\"'\"&F5036&\"'!\"&G5036)),\"\",INDIRECT(\"'\"&F5036&\"'!\"&G5036))","v":""},{"$f":"IF(ISBLANK(INDIRECT(\"'\"&F5036&\"'!\"&H5036)),\"\",IFERROR(VLOOKUP(TEXT(INDIRECT(\"'\"&F5036&\"'!\"&H5036),\"0\"),Notes!$B$5:$C$100,2,FALSE),\"\"))","v":""},"2b","$S$82","$T$82"]
[21880,{"$f":"Menu!$F$29","v":"X"},{"$f":"Menu!$J$29","v":2020},{"$f":"IF(ISBLANK(INDIRECT(\"'\"&F5037&\"'!\"&G5037)),\"\",INDIRECT(\"'\"&F5037&\"'!\"&G5037))","v":""},{"$f":"IF(ISBLANK(INDIRECT(\"'\"&F5037&\"'!\"&H5037)),\"\",IFERROR(VLOOKUP(TEXT(INDIRECT(\"'\"&F5037&\"'!\"&H5037),\"0\"),Notes!$B$5:$C$100,2,FALSE),\"\"))","v":""},"2b","$E$82","$F$82"]
[21881,{"$f":"Menu!$F$29","v":"X"},{"$f":"Menu!$J$29","v":2020},{"$f":"IF(ISBLANK(INDIRECT(\"'\"&F5038&\"'!\"&G5038)),\"\",INDIRECT(\"'\"&F5038&\"'!\"&G5038))","v":""},{"$f":"IF(ISBLANK(INDIRECT(\"'\"&F5038&\"'!\"&H5038)),\"\",IFERROR(VLOOKUP(TEXT(INDIRECT(\"'\"&F5038&\"'!\"&H5038),\"0\"),Notes!$B$5:$C$100,2,FALSE),\"\"))","v":""},"2b","$I$82","$J$82"]
[21882,{"$f":"Menu!$F$29","v":"X"},{"$f":"Menu!$J$29","v":2020},{"$f":"IF(ISBLANK(INDIRECT(\"'\"&F5039&\"'!\"&G5039)),\"\",INDIRECT(\"'\"&F5039&\"'!\"&G5039))","v":""},{"$f":"IF(ISBLANK(INDIRECT(\"'\"&F5039&\"'!\"&H5039)),\"\",IFERROR(VLOOKUP(TEXT(INDIRECT(\"'\"&F5039&\"'!\"&H5039),\"0\"),Notes!$B$5:$C$100,2,FALSE),\"\"))","v":""},"2b","$G$82","$H$82"]
[21883,{"$f":"Menu!$F$29","v":"X"},{"$f":"Menu!$J$29","v":2020},{"$f":"IF(ISBLANK(INDIRECT(\"'\"&F5040&\"'!\"&G5040)),\"\",INDIRECT(\"'\"&F5040&\"'!\"&G5040))","v":""},{"$f":"IF(ISBLANK(INDIRECT(\"'\"&F5040&\"'!\"&H5040)),\"\",IFERROR(VLOOKUP(TEXT(INDIRECT(\"'\"&F5040&\"'!\"&H5040),\"0\"),Notes!$B$5:$C$100,2,FALSE),\"\"))","v":""},"2b","$W$82","$X$82"]
[21884,{"$f":"Menu!$F$29","v":"X"},{"$f":"Menu!$J$29","v":2020},{"$f":"IF(ISBLANK(INDIRECT(\"'\"&F5041&\"'!\"&G5041)),\"\",INDIRECT(\"'\"&F5041&\"'!\"&G5041))","v":""},{"$f":"IF(ISBLANK(INDIRECT(\"'\"&F5041&\"'!\"&H5041)),\"\",IFERROR(VLOOKUP(TEXT(INDIRECT(\"'\"&F5041&\"'!\"&H5041),\"0\"),Notes!$B$5:$C$100,2,FALSE),\"\"))","v":""},"2b","$AA$82","$AB$82"]
[21885,{"$f":"Menu!$F$29","v":"X"},{"$f":"Menu!$J$29","v":2020},{"$f":"IF(ISBLANK(INDIRECT(\"'\"&F5042&\"'!\"&G5042)),\"\",INDIRECT(\"'\"&F5042&\"'!\"&G5042))","v":""},{"$f":"IF(ISBLANK(INDIRECT(\"'\"&F5042&\"'!\"&H5042)),\"\",IFERROR(VLOOKUP(TEXT(INDIRECT(\"'\"&F5042&\"'!\"&H5042),\"0\"),Notes!$B$5:$C$100,2,FALSE),\"\"))","v":""},"2b","$Y$82","$Z$82"]
[21886,{"$f":"Menu!$F$29","v":"X"},{"$f":"Menu!$J$29","v":2020},{"$f":"IF(ISBLANK(INDIRECT(\"'\"&F5043&\"'!\"&G5043)),\"\",INDIRECT(\"'\"&F5043&\"'!\"&G5043))","v":""},{"$f":"IF(ISBLANK(INDIRECT(\"'\"&F5043&\"'!\"&H5043)),\"\",IFERROR(VLOOKUP(TEXT(INDIRECT(\"'\"&F5043&\"'!\"&H5043),\"0\"),Notes!$B$5:$C$100,2,FALSE),\"\"))","v":""},"2b","$K$81","$L$81"]
[21887,{"$f":"Menu!$F$29","v":"X"},{"$f":"Menu!$J$29","v":2020},{"$f":"IF(ISBLANK(INDIRECT(\"'\"&F5044&\"'!\"&G5044)),\"\",INDIRECT(\"'\"&F5044&\"'!\"&G5044))","v":""},{"$f":"IF(ISBLANK(INDIRECT(\"'\"&F5044&\"'!\"&H5044)),\"\",IFERROR(VLOOKUP(TEXT(INDIRECT(\"'\"&F5044&\"'!\"&H5044),\"0\"),Notes!$B$5:$C$100,2,FALSE),\"\"))","v":""},"2b","$O$81","$P$81"]
[21888,{"$f":"Menu!$F$29","v":"X"},{"$f":"Menu!$J$29","v":2020},{"$f":"IF(ISBLANK(INDIRECT(\"'\"&F5045&\"'!\"&G5045)),\"\",INDIRECT(\"'\"&F5045&\"'!\"&G5045))","v":""},{"$f":"IF(ISBLANK(INDIRECT(\"'\"&F5045&\"'!\"&H5045)),\"\",IFERROR(VLOOKUP(TEXT(INDIRECT(\"'\"&F5045&\"'!\"&H5045),\"0\"),Notes!$B$5:$C$100,2,FALSE),\"\"))","v":""},"2b","$M$81","$N$81"]
[21889,{"$f":"Menu!$F$29","v":"X"},{"$f":"Menu!$J$29","v":2020},{"$f":"IF(ISBLANK(INDIRECT(\"'\"&F5046&\"'!\"&G5046)),\"\",INDIRECT(\"'\"&F5046&\"'!\"&G5046))","v":""},{"$f":"IF(ISBLANK(INDIRECT(\"'\"&F5046&\"'!\"&H5046)),\"\",IFERROR(VLOOKUP(TEXT(INDIRECT(\"'\"&F5046&\"'!\"&H5046),\"0\"),Notes!$B$5:$C$100,2,FALSE),\"\"))","v":""},"2b","$Q$81","$R$81"]
[21890,{"$f":"Menu!$F$29","v":"X"},{"$f":"Menu!$J$29","v":2020},{"$f":"IF(ISBLANK(INDIRECT(\"'\"&F5047&\"'!\"&G5047)),\"\",INDIRECT(\"'\"&F5047&\"'!\"&G5047))","v":""},{"$f":"IF(ISBLANK(INDIRECT(\"'\"&F5047&\"'!\"&H5047)),\"\",IFERROR(VLOOKUP(TEXT(INDIRECT(\"'\"&F5047&\"'!\"&H5047),\"0\"),Notes!$B$5:$C$100,2,FALSE),\"\"))","v":""},"2b","$U$81","$V$81"]
[21891,{"$f":"Menu!$F$29","v":"X"},{"$f":"Menu!$J$29","v":2020},{"$f":"IF(ISBLANK(INDIRECT(\"'\"&F5048&\"'!\"&G5048)),\"\",INDIRECT(\"'\"&F5048&\"'!\"&G5048))","v":""},{"$f":"IF(ISBLANK(INDIRECT(\"'\"&F5048&\"'!\"&H5048)),\"\",IFERROR(VLOOKUP(TEXT(INDIRECT(\"'\"&F5048&\"'!\"&H5048),\"0\"),Notes!$B$5:$C$100,2,FALSE),\"\"))","v":""},"2b","$S$81","$T$81"]
[21892,{"$f":"Menu!$F$29","v":"X"},{"$f":"Menu!$J$29","v":2020},{"$f":"IF(ISBLANK(INDIRECT(\"'\"&F5049&\"'!\"&G5049)),\"\",INDIRECT(\"'\"&F5049&\"'!\"&G5049))","v":""},{"$f":"IF(ISBLANK(INDIRECT(\"'\"&F5049&\"'!\"&H5049)),\"\",IFERROR(VLOOKUP(TEXT(INDIRECT(\"'\"&F5049&\"'!\"&H5049),\"0\"),Notes!$B$5:$C$100,2,FALSE),\"\"))","v":""},"2b","$E$81","$F$81"]
[21893,{"$f":"Menu!$F$29","v":"X"},{"$f":"Menu!$J$29","v":2020},{"$f":"IF(ISBLANK(INDIRECT(\"'\"&F5050&\"'!\"&G5050)),\"\",INDIRECT(\"'\"&F5050&\"'!\"&G5050))","v":""},{"$f":"IF(ISBLANK(INDIRECT(\"'\"&F5050&\"'!\"&H5050)),\"\",IFERROR(VLOOKUP(TEXT(INDIRECT(\"'\"&F5050&\"'!\"&H5050),\"0\"),Notes!$B$5:$C$100,2,FALSE),\"\"))","v":""},"2b","$I$81","$J$81"]
[21894,{"$f":"Menu!$F$29","v":"X"},{"$f":"Menu!$J$29","v":2020},{"$f":"IF(ISBLANK(INDIRECT(\"'\"&F5051&\"'!\"&G5051)),\"\",INDIRECT(\"'\"&F5051&\"'!\"&G5051))","v":""},{"$f":"IF(ISBLANK(INDIRECT(\"'\"&F5051&\"'!\"&H5051)),\"\",IFERROR(VLOOKUP(TEXT(INDIRECT(\"'\"&F5051&\"'!\"&H5051),\"0\"),Notes!$B$5:$C$100,2,FALSE),\"\"))","v":""},"2b","$G$81","$H$81"]
[21895,{"$f":"Menu!$F$29","v":"X"},{"$f":"Menu!$J$29","v":2020},{"$f":"IF(ISBLANK(INDIRECT(\"'\"&F5052&\"'!\"&G5052)),\"\",INDIRECT(\"'\"&F5052&\"'!\"&G5052))","v":""},{"$f":"IF(ISBLANK(INDIRECT(\"'\"&F5052&\"'!\"&H5052)),\"\",IFERROR(VLOOKUP(TEXT(INDIRECT(\"'\"&F5052&\"'!\"&H5052),\"0\"),Notes!$B$5:$C$100,2,FALSE),\"\"))","v":""},"2b","$W$81","$X$81"]
[21896,{"$f":"Menu!$F$29","v":"X"},{"$f":"Menu!$J$29","v":2020},{"$f":"IF(ISBLANK(INDIRECT(\"'\"&F5053&\"'!\"&G5053)),\"\",INDIRECT(\"'\"&F5053&\"'!\"&G5053))","v":""},{"$f":"IF(ISBLANK(INDIRECT(\"'\"&F5053&\"'!\"&H5053)),\"\",IFERROR(VLOOKUP(TEXT(INDIRECT(\"'\"&F5053&\"'!\"&H5053),\"0\"),Notes!$B$5:$C$100,2,FALSE),\"\"))","v":""},"2b","$AA$81","$AB$81"]
[21897,{"$f":"Menu!$F$29","v":"X"},{"$f":"Menu!$J$29","v":2020},{"$f":"IF(ISBLANK(INDIRECT(\"'\"&F5054&\"'!\"&G5054)),\"\",INDIRECT(\"'\"&F5054&\"'!\"&G5054))","v":""},{"$f":"IF(ISBLANK(INDIRECT(\"'\"&F5054&\"'!\"&H5054)),\"\",IFERROR(VLOOKUP(TEXT(INDIRECT(\"'\"&F5054&\"'!\"&H5054),\"0\"),Notes!$B$5:$C$100,2,FALSE),\"\"))","v":""},"2b","$Y$81","$Z$81"]
[21898,{"$f":"Menu!$F$29","v":"X"},{"$f":"Menu!$J$29","v":2020},{"$f":"IF(ISBLANK(INDIRECT(\"'\"&F5055&\"'!\"&G5055)),\"\",INDIRECT(\"'\"&F5055&\"'!\"&G5055))","v":""},{"$f":"IF(ISBLANK(INDIRECT(\"'\"&F5055&\"'!\"&H5055)),\"\",IFERROR(VLOOKUP(TEXT(INDIRECT(\"'\"&F5055&\"'!\"&H5055),\"0\"),Notes!$B$5:$C$100,2,FALSE),\"\"))","v":""},"2b","$K$80","$L$80"]
[21899,{"$f":"Menu!$F$29","v":"X"},{"$f":"Menu!$J$29","v":2020},{"$f":"IF(ISBLANK(INDIRECT(\"'\"&F5056&\"'!\"&G5056)),\"\",INDIRECT(\"'\"&F5056&\"'!\"&G5056))","v":""},{"$f":"IF(ISBLANK(INDIRECT(\"'\"&F5056&\"'!\"&H5056)),\"\",IFERROR(VLOOKUP(TEXT(INDIRECT(\"'\"&F5056&\"'!\"&H5056),\"0\"),Notes!$B$5:$C$100,2,FALSE),\"\"))","v":""},"2b","$O$80","$P$80"]
[21900,{"$f":"Menu!$F$29","v":"X"},{"$f":"Menu!$J$29","v":2020},{"$f":"IF(ISBLANK(INDIRECT(\"'\"&F5057&\"'!\"&G5057)),\"\",INDIRECT(\"'\"&F5057&\"'!\"&G5057))","v":""},{"$f":"IF(ISBLANK(INDIRECT(\"'\"&F5057&\"'!\"&H5057)),\"\",IFERROR(VLOOKUP(TEXT(INDIRECT(\"'\"&F5057&\"'!\"&H5057),\"0\"),Notes!$B$5:$C$100,2,FALSE),\"\"))","v":""},"2b","$M$80","$N$80"]
[21901,{"$f":"Menu!$F$29","v":"X"},{"$f":"Menu!$J$29","v":2020},{"$f":"IF(ISBLANK(INDIRECT(\"'\"&F5058&\"'!\"&G5058)),\"\",INDIRECT(\"'\"&F5058&\"'!\"&G5058))","v":""},{"$f":"IF(ISBLANK(INDIRECT(\"'\"&F5058&\"'!\"&H5058)),\"\",IFERROR(VLOOKUP(TEXT(INDIRECT(\"'\"&F5058&\"'!\"&H5058),\"0\"),Notes!$B$5:$C$100,2,FALSE),\"\"))","v":""},"2b","$Q$80",{"$f":"IF(LEN(TRIM(MID(G5058,4,10)))-LEN(SUBSTITUTE(TRIM(MID(G5058,4,10)),\"$\",\"\"))=0,\"$\"&CHAR(CODE(MID(G5058,2,1))+1)&\"$\"&TRIM(MID(G5058,4,10)),\"$\"&MID(G5058,2,1)&CHAR(CODE(MID(G5058,3,1))+1)&\"$\"&TRIM(MID(G5058,5,11)))","v":"$R$80"}]
[21902,{"$f":"Menu!$F$29","v":"X"},{"$f":"Menu!$J$29","v":2020},{"$f":"IF(ISBLANK(INDIRECT(\"'\"&F5059&\"'!\"&G5059)),\"\",INDIRECT(\"'\"&F5059&\"'!\"&G5059))","v":""},{"$f":"IF(ISBLANK(INDIRECT(\"'\"&F5059&\"'!\"&H5059)),\"\",IFERROR(VLOOKUP(TEXT(INDIRECT(\"'\"&F5059&\"'!\"&H5059),\"0\"),Notes!$B$5:$C$100,2,FALSE),\"\"))","v":""},"2b","$U$80","$V$80"]
[21903,{"$f":"Menu!$F$29","v":"X"},{"$f":"Menu!$J$29","v":2020},{"$f":"IF(ISBLANK(INDIRECT(\"'\"&F5060&\"'!\"&G5060)),\"\",INDIRECT(\"'\"&F5060&\"'!\"&G5060))","v":""},{"$f":"IF(ISBLANK(INDIRECT(\"'\"&F5060&\"'!\"&H5060)),\"\",IFERROR(VLOOKUP(TEXT(INDIRECT(\"'\"&F5060&\"'!\"&H5060),\"0\"),Notes!$B$5:$C$100,2,FALSE),\"\"))","v":""},"2b","$S$80","$T$80"]
[21904,{"$f":"Menu!$F$29","v":"X"},{"$f":"Menu!$J$29","v":2020},{"$f":"IF(ISBLANK(INDIRECT(\"'\"&F5061&\"'!\"&G5061)),\"\",INDIRECT(\"'\"&F5061&\"'!\"&G5061))","v":""},{"$f":"IF(ISBLANK(INDIRECT(\"'\"&F5061&\"'!\"&H5061)),\"\",IFERROR(VLOOKUP(TEXT(INDIRECT(\"'\"&F5061&\"'!\"&H5061),\"0\"),Notes!$B$5:$C$100,2,FALSE),\"\"))","v":""},"2b","$E$80","$F$80"]
[21905,{"$f":"Menu!$F$29","v":"X"},{"$f":"Menu!$J$29","v":2020},{"$f":"IF(ISBLANK(INDIRECT(\"'\"&F5062&\"'!\"&G5062)),\"\",INDIRECT(\"'\"&F5062&\"'!\"&G5062))","v":""},{"$f":"IF(ISBLANK(INDIRECT(\"'\"&F5062&\"'!\"&H5062)),\"\",IFERROR(VLOOKUP(TEXT(INDIRECT(\"'\"&F5062&\"'!\"&H5062),\"0\"),Notes!$B$5:$C$100,2,FALSE),\"\"))","v":""},"2b","$I$80","$J$80"]
[21906,{"$f":"Menu!$F$29","v":"X"},{"$f":"Menu!$J$29","v":2020},{"$f":"IF(ISBLANK(INDIRECT(\"'\"&F5063&\"'!\"&G5063)),\"\",INDIRECT(\"'\"&F5063&\"'!\"&G5063))","v":""},{"$f":"IF(ISBLANK(INDIRECT(\"'\"&F5063&\"'!\"&H5063)),\"\",IFERROR(VLOOKUP(TEXT(INDIRECT(\"'\"&F5063&\"'!\"&H5063),\"0\"),Notes!$B$5:$C$100,2,FALSE),\"\"))","v":""},"2b","$G$80","$H$80"]
[21907,{"$f":"Menu!$F$29","v":"X"},{"$f":"Menu!$J$29","v":2020},{"$f":"IF(ISBLANK(INDIRECT(\"'\"&F5064&\"'!\"&G5064)),\"\",INDIRECT(\"'\"&F5064&\"'!\"&G5064))","v":""},{"$f":"IF(ISBLANK(INDIRECT(\"'\"&F5064&\"'!\"&H5064)),\"\",IFERROR(VLOOKUP(TEXT(INDIRECT(\"'\"&F5064&\"'!\"&H5064),\"0\"),Notes!$B$5:$C$100,2,FALSE),\"\"))","v":""},"2b","$W$80","$X$80"]
[21908,{"$f":"Menu!$F$29","v":"X"},{"$f":"Menu!$J$29","v":2020},{"$f":"IF(ISBLANK(INDIRECT(\"'\"&F5065&\"'!\"&G5065)),\"\",INDIRECT(\"'\"&F5065&\"'!\"&G5065))","v":""},{"$f":"IF(ISBLANK(INDIRECT(\"'\"&F5065&\"'!\"&H5065)),\"\",IFERROR(VLOOKUP(TEXT(INDIRECT(\"'\"&F5065&\"'!\"&H5065),\"0\"),Notes!$B$5:$C$100,2,FALSE),\"\"))","v":""},"2b","$AA$80","$AB$80"]
[21909,{"$f":"Menu!$F$29","v":"X"},{"$f":"Menu!$J$29","v":2020},{"$f":"IF(ISBLANK(INDIRECT(\"'\"&F5066&\"'!\"&G5066)),\"\",INDIRECT(\"'\"&F5066&\"'!\"&G5066))","v":""},{"$f":"IF(ISBLANK(INDIRECT(\"'\"&F5066&\"'!\"&H5066)),\"\",IFERROR(VLOOKUP(TEXT(INDIRECT(\"'\"&F5066&\"'!\"&H5066),\"0\"),Notes!$B$5:$C$100,2,FALSE),\"\"))","v":""},"2b","$Y$80","$Z$80"]
[21910,{"$f":"Menu!$F$29","v":"X"},{"$f":"Menu!$J$29","v":2020},{"$f":"IF(ISBLANK(INDIRECT(\"'\"&F5067&\"'!\"&G5067)),\"\",INDIRECT(\"'\"&F5067&\"'!\"&G5067))","v":""},{"$f":"IF(ISBLANK(INDIRECT(\"'\"&F5067&\"'!\"&H5067)),\"\",IFERROR(VLOOKUP(TEXT(INDIRECT(\"'\"&F5067&\"'!\"&H5067),\"0\"),Notes!$B$5:$C$100,2,FALSE),\"\"))","v":""},"2b","$K$79","$L$79"]
[21911,{"$f":"Menu!$F$29","v":"X"},{"$f":"Menu!$J$29","v":2020},{"$f":"IF(ISBLANK(INDIRECT(\"'\"&F5068&\"'!\"&G5068)),\"\",INDIRECT(\"'\"&F5068&\"'!\"&G5068))","v":""},{"$f":"IF(ISBLANK(INDIRECT(\"'\"&F5068&\"'!\"&H5068)),\"\",IFERROR(VLOOKUP(TEXT(INDIRECT(\"'\"&F5068&\"'!\"&H5068),\"0\"),Notes!$B$5:$C$100,2,FALSE),\"\"))","v":""},"2b","$O$79","$P$79"]
[21912,{"$f":"Menu!$F$29","v":"X"},{"$f":"Menu!$J$29","v":2020},{"$f":"IF(ISBLANK(INDIRECT(\"'\"&F5069&\"'!\"&G5069)),\"\",INDIRECT(\"'\"&F5069&\"'!\"&G5069))","v":""},{"$f":"IF(ISBLANK(INDIRECT(\"'\"&F5069&\"'!\"&H5069)),\"\",IFERROR(VLOOKUP(TEXT(INDIRECT(\"'\"&F5069&\"'!\"&H5069),\"0\"),Notes!$B$5:$C$100,2,FALSE),\"\"))","v":""},"2b","$M$79","$N$79"]
[21913,{"$f":"Menu!$F$29","v":"X"},{"$f":"Menu!$J$29","v":2020},{"$f":"IF(ISBLANK(INDIRECT(\"'\"&F5070&\"'!\"&G5070)),\"\",INDIRECT(\"'\"&F5070&\"'!\"&G5070))","v":""},{"$f":"IF(ISBLANK(INDIRECT(\"'\"&F5070&\"'!\"&H5070)),\"\",IFERROR(VLOOKUP(TEXT(INDIRECT(\"'\"&F5070&\"'!\"&H5070),\"0\"),Notes!$B$5:$C$100,2,FALSE),\"\"))","v":""},"2b","$Q$79","$R$79"]
[21914,{"$f":"Menu!$F$29","v":"X"},{"$f":"Menu!$J$29","v":2020},{"$f":"IF(ISBLANK(INDIRECT(\"'\"&F5071&\"'!\"&G5071)),\"\",INDIRECT(\"'\"&F5071&\"'!\"&G5071))","v":""},{"$f":"IF(ISBLANK(INDIRECT(\"'\"&F5071&\"'!\"&H5071)),\"\",IFERROR(VLOOKUP(TEXT(INDIRECT(\"'\"&F5071&\"'!\"&H5071),\"0\"),Notes!$B$5:$C$100,2,FALSE),\"\"))","v":""},"2b","$U$79","$V$79"]
[21915,{"$f":"Menu!$F$29","v":"X"},{"$f":"Menu!$J$29","v":2020},{"$f":"IF(ISBLANK(INDIRECT(\"'\"&F5072&\"'!\"&G5072)),\"\",INDIRECT(\"'\"&F5072&\"'!\"&G5072))","v":""},{"$f":"IF(ISBLANK(INDIRECT(\"'\"&F5072&\"'!\"&H5072)),\"\",IFERROR(VLOOKUP(TEXT(INDIRECT(\"'\"&F5072&\"'!\"&H5072),\"0\"),Notes!$B$5:$C$100,2,FALSE),\"\"))","v":""},"2b","$S$79","$T$79"]
[21916,{"$f":"Menu!$F$29","v":"X"},{"$f":"Menu!$J$29","v":2020},{"$f":"IF(ISBLANK(INDIRECT(\"'\"&F5073&\"'!\"&G5073)),\"\",INDIRECT(\"'\"&F5073&\"'!\"&G5073))","v":""},{"$f":"IF(ISBLANK(INDIRECT(\"'\"&F5073&\"'!\"&H5073)),\"\",IFERROR(VLOOKUP(TEXT(INDIRECT(\"'\"&F5073&\"'!\"&H5073),\"0\"),Notes!$B$5:$C$100,2,FALSE),\"\"))","v":""},"2b","$E$79","$F$79"]
[21917,{"$f":"Menu!$F$29","v":"X"},{"$f":"Menu!$J$29","v":2020},{"$f":"IF(ISBLANK(INDIRECT(\"'\"&F5074&\"'!\"&G5074)),\"\",INDIRECT(\"'\"&F5074&\"'!\"&G5074))","v":""},{"$f":"IF(ISBLANK(INDIRECT(\"'\"&F5074&\"'!\"&H5074)),\"\",IFERROR(VLOOKUP(TEXT(INDIRECT(\"'\"&F5074&\"'!\"&H5074),\"0\"),Notes!$B$5:$C$100,2,FALSE),\"\"))","v":""},"2b","$I$79","$J$79"]
[21918,{"$f":"Menu!$F$29","v":"X"},{"$f":"Menu!$J$29","v":2020},{"$f":"IF(ISBLANK(INDIRECT(\"'\"&F5075&\"'!\"&G5075)),\"\",INDIRECT(\"'\"&F5075&\"'!\"&G5075))","v":""},{"$f":"IF(ISBLANK(INDIRECT(\"'\"&F5075&\"'!\"&H5075)),\"\",IFERROR(VLOOKUP(TEXT(INDIRECT(\"'\"&F5075&\"'!\"&H5075),\"0\"),Notes!$B$5:$C$100,2,FALSE),\"\"))","v":""},"2b","$G$79","$H$79"]
[21919,{"$f":"Menu!$F$29","v":"X"},{"$f":"Menu!$J$29","v":2020},{"$f":"IF(ISBLANK(INDIRECT(\"'\"&F5076&\"'!\"&G5076)),\"\",INDIRECT(\"'\"&F5076&\"'!\"&G5076))","v":""},{"$f":"IF(ISBLANK(INDIRECT(\"'\"&F5076&\"'!\"&H5076)),\"\",IFERROR(VLOOKUP(TEXT(INDIRECT(\"'\"&F5076&\"'!\"&H5076),\"0\"),Notes!$B$5:$C$100,2,FALSE),\"\"))","v":""},"2b","$W$79","$X$79"]
[21920,{"$f":"Menu!$F$29","v":"X"},{"$f":"Menu!$J$29","v":2020},{"$f":"IF(ISBLANK(INDIRECT(\"'\"&F5077&\"'!\"&G5077)),\"\",INDIRECT(\"'\"&F5077&\"'!\"&G5077))","v":""},{"$f":"IF(ISBLANK(INDIRECT(\"'\"&F5077&\"'!\"&H5077)),\"\",IFERROR(VLOOKUP(TEXT(INDIRECT(\"'\"&F5077&\"'!\"&H5077),\"0\"),Notes!$B$5:$C$100,2,FALSE),\"\"))","v":""},"2b","$AA$79","$AB$79"]
[21921,{"$f":"Menu!$F$29","v":"X"},{"$f":"Menu!$J$29","v":2020},{"$f":"IF(ISBLANK(INDIRECT(\"'\"&F5078&\"'!\"&G5078)),\"\",INDIRECT(\"'\"&F5078&\"'!\"&G5078))","v":""},{"$f":"IF(ISBLANK(INDIRECT(\"'\"&F5078&\"'!\"&H5078)),\"\",IFERROR(VLOOKUP(TEXT(INDIRECT(\"'\"&F5078&\"'!\"&H5078),\"0\"),Notes!$B$5:$C$100,2,FALSE),\"\"))","v":""},"2b","$Y$79","$Z$79"]
[21922,{"$f":"Menu!$F$29","v":"X"},{"$f":"Menu!$J$29","v":2020},{"$f":"IF(ISBLANK(INDIRECT(\"'\"&F5079&\"'!\"&G5079)),\"\",INDIRECT(\"'\"&F5079&\"'!\"&G5079))","v":""},{"$f":"IF(ISBLANK(INDIRECT(\"'\"&F5079&\"'!\"&H5079)),\"\",IFERROR(VLOOKUP(TEXT(INDIRECT(\"'\"&F5079&\"'!\"&H5079),\"0\"),Notes!$B$5:$C$100,2,FALSE),\"\"))","v":""},"2b","$K$78","$L$78"]
[21923,{"$f":"Menu!$F$29","v":"X"},{"$f":"Menu!$J$29","v":2020},{"$f":"IF(ISBLANK(INDIRECT(\"'\"&F5080&\"'!\"&G5080)),\"\",INDIRECT(\"'\"&F5080&\"'!\"&G5080))","v":""},{"$f":"IF(ISBLANK(INDIRECT(\"'\"&F5080&\"'!\"&H5080)),\"\",IFERROR(VLOOKUP(TEXT(INDIRECT(\"'\"&F5080&\"'!\"&H5080),\"0\"),Notes!$B$5:$C$100,2,FALSE),\"\"))","v":""},"2b","$O$78","$P$78"]
[21924,{"$f":"Menu!$F$29","v":"X"},{"$f":"Menu!$J$29","v":2020},{"$f":"IF(ISBLANK(INDIRECT(\"'\"&F5081&\"'!\"&G5081)),\"\",INDIRECT(\"'\"&F5081&\"'!\"&G5081))","v":""},{"$f":"IF(ISBLANK(INDIRECT(\"'\"&F5081&\"'!\"&H5081)),\"\",IFERROR(VLOOKUP(TEXT(INDIRECT(\"'\"&F5081&\"'!\"&H5081),\"0\"),Notes!$B$5:$C$100,2,FALSE),\"\"))","v":""},"2b","$M$78","$N$78"]
[21925,{"$f":"Menu!$F$29","v":"X"},{"$f":"Menu!$J$29","v":2020},{"$f":"IF(ISBLANK(INDIRECT(\"'\"&F5082&\"'!\"&G5082)),\"\",INDIRECT(\"'\"&F5082&\"'!\"&G5082))","v":""},{"$f":"IF(ISBLANK(INDIRECT(\"'\"&F5082&\"'!\"&H5082)),\"\",IFERROR(VLOOKUP(TEXT(INDIRECT(\"'\"&F5082&\"'!\"&H5082),\"0\"),Notes!$B$5:$C$100,2,FALSE),\"\"))","v":""},"2b","$Q$78","$R$78"]
[21926,{"$f":"Menu!$F$29","v":"X"},{"$f":"Menu!$J$29","v":2020},{"$f":"IF(ISBLANK(INDIRECT(\"'\"&F5083&\"'!\"&G5083)),\"\",INDIRECT(\"'\"&F5083&\"'!\"&G5083))","v":""},{"$f":"IF(ISBLANK(INDIRECT(\"'\"&F5083&\"'!\"&H5083)),\"\",IFERROR(VLOOKUP(TEXT(INDIRECT(\"'\"&F5083&\"'!\"&H5083),\"0\"),Notes!$B$5:$C$100,2,FALSE),\"\"))","v":""},"2b","$U$78","$V$78"]
[21927,{"$f":"Menu!$F$29","v":"X"},{"$f":"Menu!$J$29","v":2020},{"$f":"IF(ISBLANK(INDIRECT(\"'\"&F5084&\"'!\"&G5084)),\"\",INDIRECT(\"'\"&F5084&\"'!\"&G5084))","v":""},{"$f":"IF(ISBLANK(INDIRECT(\"'\"&F5084&\"'!\"&H5084)),\"\",IFERROR(VLOOKUP(TEXT(INDIRECT(\"'\"&F5084&\"'!\"&H5084),\"0\"),Notes!$B$5:$C$100,2,FALSE),\"\"))","v":""},"2b","$S$78","$T$78"]
[21928,{"$f":"Menu!$F$29","v":"X"},{"$f":"Menu!$J$29","v":2020},{"$f":"IF(ISBLANK(INDIRECT(\"'\"&F5085&\"'!\"&G5085)),\"\",INDIRECT(\"'\"&F5085&\"'!\"&G5085))","v":""},{"$f":"IF(ISBLANK(INDIRECT(\"'\"&F5085&\"'!\"&H5085)),\"\",IFERROR(VLOOKUP(TEXT(INDIRECT(\"'\"&F5085&\"'!\"&H5085),\"0\"),Notes!$B$5:$C$100,2,FALSE),\"\"))","v":""},"2b","$E$78","$F$78"]
[21929,{"$f":"Menu!$F$29","v":"X"},{"$f":"Menu!$J$29","v":2020},{"$f":"IF(ISBLANK(INDIRECT(\"'\"&F5086&\"'!\"&G5086)),\"\",INDIRECT(\"'\"&F5086&\"'!\"&G5086))","v":""},{"$f":"IF(ISBLANK(INDIRECT(\"'\"&F5086&\"'!\"&H5086)),\"\",IFERROR(VLOOKUP(TEXT(INDIRECT(\"'\"&F5086&\"'!\"&H5086),\"0\"),Notes!$B$5:$C$100,2,FALSE),\"\"))","v":""},"2b","$I$78","$J$78"]
[21930,{"$f":"Menu!$F$29","v":"X"},{"$f":"Menu!$J$29","v":2020},{"$f":"IF(ISBLANK(INDIRECT(\"'\"&F5087&\"'!\"&G5087)),\"\",INDIRECT(\"'\"&F5087&\"'!\"&G5087))","v":""},{"$f":"IF(ISBLANK(INDIRECT(\"'\"&F5087&\"'!\"&H5087)),\"\",IFERROR(VLOOKUP(TEXT(INDIRECT(\"'\"&F5087&\"'!\"&H5087),\"0\"),Notes!$B$5:$C$100,2,FALSE),\"\"))","v":""},"2b","$G$78","$H$78"]
[21931,{"$f":"Menu!$F$29","v":"X"},{"$f":"Menu!$J$29","v":2020},{"$f":"IF(ISBLANK(INDIRECT(\"'\"&F5088&\"'!\"&G5088)),\"\",INDIRECT(\"'\"&F5088&\"'!\"&G5088))","v":""},{"$f":"IF(ISBLANK(INDIRECT(\"'\"&F5088&\"'!\"&H5088)),\"\",IFERROR(VLOOKUP(TEXT(INDIRECT(\"'\"&F5088&\"'!\"&H5088),\"0\"),Notes!$B$5:$C$100,2,FALSE),\"\"))","v":""},"2b","$W$78","$X$78"]
[21932,{"$f":"Menu!$F$29","v":"X"},{"$f":"Menu!$J$29","v":2020},{"$f":"IF(ISBLANK(INDIRECT(\"'\"&F5089&\"'!\"&G5089)),\"\",INDIRECT(\"'\"&F5089&\"'!\"&G5089))","v":""},{"$f":"IF(ISBLANK(INDIRECT(\"'\"&F5089&\"'!\"&H5089)),\"\",IFERROR(VLOOKUP(TEXT(INDIRECT(\"'\"&F5089&\"'!\"&H5089),\"0\"),Notes!$B$5:$C$100,2,FALSE),\"\"))","v":""},"2b","$AA$78","$AB$78"]
[21933,{"$f":"Menu!$F$29","v":"X"},{"$f":"Menu!$J$29","v":2020},{"$f":"IF(ISBLANK(INDIRECT(\"'\"&F5090&\"'!\"&G5090)),\"\",INDIRECT(\"'\"&F5090&\"'!\"&G5090))","v":""},{"$f":"IF(ISBLANK(INDIRECT(\"'\"&F5090&\"'!\"&H5090)),\"\",IFERROR(VLOOKUP(TEXT(INDIRECT(\"'\"&F5090&\"'!\"&H5090),\"0\"),Notes!$B$5:$C$100,2,FALSE),\"\"))","v":""},"2b","$Y$78","$Z$78"]
[21934,{"$f":"Menu!$F$29","v":"X"},{"$f":"Menu!$J$29","v":2020},{"$f":"IF(ISBLANK(INDIRECT(\"'\"&F5091&\"'!\"&G5091)),\"\",INDIRECT(\"'\"&F5091&\"'!\"&G5091))","v":""},{"$f":"IF(ISBLANK(INDIRECT(\"'\"&F5091&\"'!\"&H5091)),\"\",IFERROR(VLOOKUP(TEXT(INDIRECT(\"'\"&F5091&\"'!\"&H5091),\"0\"),Notes!$B$5:$C$100,2,FALSE),\"\"))","v":""},"2b","$K$77","$L$77"]
[21935,{"$f":"Menu!$F$29","v":"X"},{"$f":"Menu!$J$29","v":2020},{"$f":"IF(ISBLANK(INDIRECT(\"'\"&F5092&\"'!\"&G5092)),\"\",INDIRECT(\"'\"&F5092&\"'!\"&G5092))","v":""},{"$f":"IF(ISBLANK(INDIRECT(\"'\"&F5092&\"'!\"&H5092)),\"\",IFERROR(VLOOKUP(TEXT(INDIRECT(\"'\"&F5092&\"'!\"&H5092),\"0\"),Notes!$B$5:$C$100,2,FALSE),\"\"))","v":""},"2b","$O$77","$P$77"]
[21936,{"$f":"Menu!$F$29","v":"X"},{"$f":"Menu!$J$29","v":2020},{"$f":"IF(ISBLANK(INDIRECT(\"'\"&F5093&\"'!\"&G5093)),\"\",INDIRECT(\"'\"&F5093&\"'!\"&G5093))","v":""},{"$f":"IF(ISBLANK(INDIRECT(\"'\"&F5093&\"'!\"&H5093)),\"\",IFERROR(VLOOKUP(TEXT(INDIRECT(\"'\"&F5093&\"'!\"&H5093),\"0\"),Notes!$B$5:$C$100,2,FALSE),\"\"))","v":""},"2b","$M$77","$N$77"]
[21937,{"$f":"Menu!$F$29","v":"X"},{"$f":"Menu!$J$29","v":2020},{"$f":"IF(ISBLANK(INDIRECT(\"'\"&F5094&\"'!\"&G5094)),\"\",INDIRECT(\"'\"&F5094&\"'!\"&G5094))","v":""},{"$f":"IF(ISBLANK(INDIRECT(\"'\"&F5094&\"'!\"&H5094)),\"\",IFERROR(VLOOKUP(TEXT(INDIRECT(\"'\"&F5094&\"'!\"&H5094),\"0\"),Notes!$B$5:$C$100,2,FALSE),\"\"))","v":""},"2b","$Q$77","$R$77"]
[21938,{"$f":"Menu!$F$29","v":"X"},{"$f":"Menu!$J$29","v":2020},{"$f":"IF(ISBLANK(INDIRECT(\"'\"&F5095&\"'!\"&G5095)),\"\",INDIRECT(\"'\"&F5095&\"'!\"&G5095))","v":""},{"$f":"IF(ISBLANK(INDIRECT(\"'\"&F5095&\"'!\"&H5095)),\"\",IFERROR(VLOOKUP(TEXT(INDIRECT(\"'\"&F5095&\"'!\"&H5095),\"0\"),Notes!$B$5:$C$100,2,FALSE),\"\"))","v":""},"2b","$U$77","$V$77"]
[21939,{"$f":"Menu!$F$29","v":"X"},{"$f":"Menu!$J$29","v":2020},{"$f":"IF(ISBLANK(INDIRECT(\"'\"&F5096&\"'!\"&G5096)),\"\",INDIRECT(\"'\"&F5096&\"'!\"&G5096))","v":""},{"$f":"IF(ISBLANK(INDIRECT(\"'\"&F5096&\"'!\"&H5096)),\"\",IFERROR(VLOOKUP(TEXT(INDIRECT(\"'\"&F5096&\"'!\"&H5096),\"0\"),Notes!$B$5:$C$100,2,FALSE),\"\"))","v":""},"2b","$S$77","$T$77"]
[21940,{"$f":"Menu!$F$29","v":"X"},{"$f":"Menu!$J$29","v":2020},{"$f":"IF(ISBLANK(INDIRECT(\"'\"&F5097&\"'!\"&G5097)),\"\",INDIRECT(\"'\"&F5097&\"'!\"&G5097))","v":""},{"$f":"IF(ISBLANK(INDIRECT(\"'\"&F5097&\"'!\"&H5097)),\"\",IFERROR(VLOOKUP(TEXT(INDIRECT(\"'\"&F5097&\"'!\"&H5097),\"0\"),Notes!$B$5:$C$100,2,FALSE),\"\"))","v":""},"2b","$E$77","$F$77"]
[21941,{"$f":"Menu!$F$29","v":"X"},{"$f":"Menu!$J$29","v":2020},{"$f":"IF(ISBLANK(INDIRECT(\"'\"&F5098&\"'!\"&G5098)),\"\",INDIRECT(\"'\"&F5098&\"'!\"&G5098))","v":""},{"$f":"IF(ISBLANK(INDIRECT(\"'\"&F5098&\"'!\"&H5098)),\"\",IFERROR(VLOOKUP(TEXT(INDIRECT(\"'\"&F5098&\"'!\"&H5098),\"0\"),Notes!$B$5:$C$100,2,FALSE),\"\"))","v":""},"2b","$I$77","$J$77"]
[21942,{"$f":"Menu!$F$29","v":"X"},{"$f":"Menu!$J$29","v":2020},{"$f":"IF(ISBLANK(INDIRECT(\"'\"&F5099&\"'!\"&G5099)),\"\",INDIRECT(\"'\"&F5099&\"'!\"&G5099))","v":""},{"$f":"IF(ISBLANK(INDIRECT(\"'\"&F5099&\"'!\"&H5099)),\"\",IFERROR(VLOOKUP(TEXT(INDIRECT(\"'\"&F5099&\"'!\"&H5099),\"0\"),Notes!$B$5:$C$100,2,FALSE),\"\"))","v":""},"2b","$G$77","$H$77"]
[21943,{"$f":"Menu!$F$29","v":"X"},{"$f":"Menu!$J$29","v":2020},{"$f":"IF(ISBLANK(INDIRECT(\"'\"&F5100&\"'!\"&G5100)),\"\",INDIRECT(\"'\"&F5100&\"'!\"&G5100))","v":""},{"$f":"IF(ISBLANK(INDIRECT(\"'\"&F5100&\"'!\"&H5100)),\"\",IFERROR(VLOOKUP(TEXT(INDIRECT(\"'\"&F5100&\"'!\"&H5100),\"0\"),Notes!$B$5:$C$100,2,FALSE),\"\"))","v":""},"2b","$W$77","$X$77"]
[21944,{"$f":"Menu!$F$29","v":"X"},{"$f":"Menu!$J$29","v":2020},{"$f":"IF(ISBLANK(INDIRECT(\"'\"&F5101&\"'!\"&G5101)),\"\",INDIRECT(\"'\"&F5101&\"'!\"&G5101))","v":""},{"$f":"IF(ISBLANK(INDIRECT(\"'\"&F5101&\"'!\"&H5101)),\"\",IFERROR(VLOOKUP(TEXT(INDIRECT(\"'\"&F5101&\"'!\"&H5101),\"0\"),Notes!$B$5:$C$100,2,FALSE),\"\"))","v":""},"2b","$AA$77","$AB$77"]
[21945,{"$f":"Menu!$F$29","v":"X"},{"$f":"Menu!$J$29","v":2020},{"$f":"IF(ISBLANK(INDIRECT(\"'\"&F5102&\"'!\"&G5102)),\"\",INDIRECT(\"'\"&F5102&\"'!\"&G5102))","v":""},{"$f":"IF(ISBLANK(INDIRECT(\"'\"&F5102&\"'!\"&H5102)),\"\",IFERROR(VLOOKUP(TEXT(INDIRECT(\"'\"&F5102&\"'!\"&H5102),\"0\"),Notes!$B$5:$C$100,2,FALSE),\"\"))","v":""},"2b","$Y$77","$Z$77"]
[21946,{"$f":"Menu!$F$29","v":"X"},{"$f":"Menu!$J$29","v":2020},{"$f":"IF(ISBLANK(INDIRECT(\"'\"&F5103&\"'!\"&G5103)),\"\",INDIRECT(\"'\"&F5103&\"'!\"&G5103))","v":""},{"$f":"IF(ISBLANK(INDIRECT(\"'\"&F5103&\"'!\"&H5103)),\"\",IFERROR(VLOOKUP(TEXT(INDIRECT(\"'\"&F5103&\"'!\"&H5103),\"0\"),Notes!$B$5:$C$100,2,FALSE),\"\"))","v":""},"2b","$K$76","$L$76"]
[21947,{"$f":"Menu!$F$29","v":"X"},{"$f":"Menu!$J$29","v":2020},{"$f":"IF(ISBLANK(INDIRECT(\"'\"&F5104&\"'!\"&G5104)),\"\",INDIRECT(\"'\"&F5104&\"'!\"&G5104))","v":""},{"$f":"IF(ISBLANK(INDIRECT(\"'\"&F5104&\"'!\"&H5104)),\"\",IFERROR(VLOOKUP(TEXT(INDIRECT(\"'\"&F5104&\"'!\"&H5104),\"0\"),Notes!$B$5:$C$100,2,FALSE),\"\"))","v":""},"2b","$O$76","$P$76"]
[21948,{"$f":"Menu!$F$29","v":"X"},{"$f":"Menu!$J$29","v":2020},{"$f":"IF(ISBLANK(INDIRECT(\"'\"&F5105&\"'!\"&G5105)),\"\",INDIRECT(\"'\"&F5105&\"'!\"&G5105))","v":""},{"$f":"IF(ISBLANK(INDIRECT(\"'\"&F5105&\"'!\"&H5105)),\"\",IFERROR(VLOOKUP(TEXT(INDIRECT(\"'\"&F5105&\"'!\"&H5105),\"0\"),Notes!$B$5:$C$100,2,FALSE),\"\"))","v":""},"2b","$M$76","$N$76"]
[21949,{"$f":"Menu!$F$29","v":"X"},{"$f":"Menu!$J$29","v":2020},{"$f":"IF(ISBLANK(INDIRECT(\"'\"&F5106&\"'!\"&G5106)),\"\",INDIRECT(\"'\"&F5106&\"'!\"&G5106))","v":""},{"$f":"IF(ISBLANK(INDIRECT(\"'\"&F5106&\"'!\"&H5106)),\"\",IFERROR(VLOOKUP(TEXT(INDIRECT(\"'\"&F5106&\"'!\"&H5106),\"0\"),Notes!$B$5:$C$100,2,FALSE),\"\"))","v":""},"2b","$Q$76","$R$76"]
[21950,{"$f":"Menu!$F$29","v":"X"},{"$f":"Menu!$J$29","v":2020},{"$f":"IF(ISBLANK(INDIRECT(\"'\"&F5107&\"'!\"&G5107)),\"\",INDIRECT(\"'\"&F5107&\"'!\"&G5107))","v":""},{"$f":"IF(ISBLANK(INDIRECT(\"'\"&F5107&\"'!\"&H5107)),\"\",IFERROR(VLOOKUP(TEXT(INDIRECT(\"'\"&F5107&\"'!\"&H5107),\"0\"),Notes!$B$5:$C$100,2,FALSE),\"\"))","v":""},"2b","$U$76","$V$76"]
[21951,{"$f":"Menu!$F$29","v":"X"},{"$f":"Menu!$J$29","v":2020},{"$f":"IF(ISBLANK(INDIRECT(\"'\"&F5108&\"'!\"&G5108)),\"\",INDIRECT(\"'\"&F5108&\"'!\"&G5108))","v":""},{"$f":"IF(ISBLANK(INDIRECT(\"'\"&F5108&\"'!\"&H5108)),\"\",IFERROR(VLOOKUP(TEXT(INDIRECT(\"'\"&F5108&\"'!\"&H5108),\"0\"),Notes!$B$5:$C$100,2,FALSE),\"\"))","v":""},"2b","$S$76","$T$76"]
[21952,{"$f":"Menu!$F$29","v":"X"},{"$f":"Menu!$J$29","v":2020},{"$f":"IF(ISBLANK(INDIRECT(\"'\"&F5109&\"'!\"&G5109)),\"\",INDIRECT(\"'\"&F5109&\"'!\"&G5109))","v":""},{"$f":"IF(ISBLANK(INDIRECT(\"'\"&F5109&\"'!\"&H5109)),\"\",IFERROR(VLOOKUP(TEXT(INDIRECT(\"'\"&F5109&\"'!\"&H5109),\"0\"),Notes!$B$5:$C$100,2,FALSE),\"\"))","v":""},"2b","$E$76","$F$76"]
[21953,{"$f":"Menu!$F$29","v":"X"},{"$f":"Menu!$J$29","v":2020},{"$f":"IF(ISBLANK(INDIRECT(\"'\"&F5110&\"'!\"&G5110)),\"\",INDIRECT(\"'\"&F5110&\"'!\"&G5110))","v":""},{"$f":"IF(ISBLANK(INDIRECT(\"'\"&F5110&\"'!\"&H5110)),\"\",IFERROR(VLOOKUP(TEXT(INDIRECT(\"'\"&F5110&\"'!\"&H5110),\"0\"),Notes!$B$5:$C$100,2,FALSE),\"\"))","v":""},"2b","$I$76","$J$76"]
[21954,{"$f":"Menu!$F$29","v":"X"},{"$f":"Menu!$J$29","v":2020},{"$f":"IF(ISBLANK(INDIRECT(\"'\"&F5111&\"'!\"&G5111)),\"\",INDIRECT(\"'\"&F5111&\"'!\"&G5111))","v":""},{"$f":"IF(ISBLANK(INDIRECT(\"'\"&F5111&\"'!\"&H5111)),\"\",IFERROR(VLOOKUP(TEXT(INDIRECT(\"'\"&F5111&\"'!\"&H5111),\"0\"),Notes!$B$5:$C$100,2,FALSE),\"\"))","v":""},"2b","$G$76","$H$76"]
[21955,{"$f":"Menu!$F$29","v":"X"},{"$f":"Menu!$J$29","v":2020},{"$f":"IF(ISBLANK(INDIRECT(\"'\"&F5112&\"'!\"&G5112)),\"\",INDIRECT(\"'\"&F5112&\"'!\"&G5112))","v":""},{"$f":"IF(ISBLANK(INDIRECT(\"'\"&F5112&\"'!\"&H5112)),\"\",IFERROR(VLOOKUP(TEXT(INDIRECT(\"'\"&F5112&\"'!\"&H5112),\"0\"),Notes!$B$5:$C$100,2,FALSE),\"\"))","v":""},"2b","$W$76","$X$76"]
[21956,{"$f":"Menu!$F$29","v":"X"},{"$f":"Menu!$J$29","v":2020},{"$f":"IF(ISBLANK(INDIRECT(\"'\"&F5113&\"'!\"&G5113)),\"\",INDIRECT(\"'\"&F5113&\"'!\"&G5113))","v":""},{"$f":"IF(ISBLANK(INDIRECT(\"'\"&F5113&\"'!\"&H5113)),\"\",IFERROR(VLOOKUP(TEXT(INDIRECT(\"'\"&F5113&\"'!\"&H5113),\"0\"),Notes!$B$5:$C$100,2,FALSE),\"\"))","v":""},"2b","$AA$76","$AB$76"]
[21957,{"$f":"Menu!$F$29","v":"X"},{"$f":"Menu!$J$29","v":2020},{"$f":"IF(ISBLANK(INDIRECT(\"'\"&F5114&\"'!\"&G5114)),\"\",INDIRECT(\"'\"&F5114&\"'!\"&G5114))","v":""},{"$f":"IF(ISBLANK(INDIRECT(\"'\"&F5114&\"'!\"&H5114)),\"\",IFERROR(VLOOKUP(TEXT(INDIRECT(\"'\"&F5114&\"'!\"&H5114),\"0\"),Notes!$B$5:$C$100,2,FALSE),\"\"))","v":""},"2b","$Y$76","$Z$76"]
[21970,{"$f":"Menu!$F$29","v":"X"},{"$f":"Menu!$J$29","v":2020},{"$f":"IF(ISBLANK(INDIRECT(\"'\"&F5115&\"'!\"&G5115)),\"\",INDIRECT(\"'\"&F5115&\"'!\"&G5115))","v":""},{"$f":"IF(ISBLANK(INDIRECT(\"'\"&F5115&\"'!\"&H5115)),\"\",IFERROR(VLOOKUP(TEXT(INDIRECT(\"'\"&F5115&\"'!\"&H5115),\"0\"),Notes!$B$5:$C$100,2,FALSE),\"\"))","v":""},"2c","$E$85","$F$85"]
[21971,{"$f":"Menu!$F$29","v":"X"},{"$f":"Menu!$J$29","v":2020},{"$f":"IF(ISBLANK(INDIRECT(\"'\"&F5116&\"'!\"&G5116)),\"\",INDIRECT(\"'\"&F5116&\"'!\"&G5116))","v":""},{"$f":"IF(ISBLANK(INDIRECT(\"'\"&F5116&\"'!\"&H5116)),\"\",IFERROR(VLOOKUP(TEXT(INDIRECT(\"'\"&F5116&\"'!\"&H5116),\"0\"),Notes!$B$5:$C$100,2,FALSE),\"\"))","v":""},"2c","$I$85","$J$85"]
[21972,{"$f":"Menu!$F$29","v":"X"},{"$f":"Menu!$J$29","v":2020},{"$f":"IF(ISBLANK(INDIRECT(\"'\"&F5117&\"'!\"&G5117)),\"\",INDIRECT(\"'\"&F5117&\"'!\"&G5117))","v":""},{"$f":"IF(ISBLANK(INDIRECT(\"'\"&F5117&\"'!\"&H5117)),\"\",IFERROR(VLOOKUP(TEXT(INDIRECT(\"'\"&F5117&\"'!\"&H5117),\"0\"),Notes!$B$5:$C$100,2,FALSE),\"\"))","v":""},"2c","$G$85","$H$85"]
[21973,{"$f":"Menu!$F$29","v":"X"},{"$f":"Menu!$J$29","v":2020},{"$f":"IF(ISBLANK(INDIRECT(\"'\"&F5118&\"'!\"&G5118)),\"\",INDIRECT(\"'\"&F5118&\"'!\"&G5118))","v":""},{"$f":"IF(ISBLANK(INDIRECT(\"'\"&F5118&\"'!\"&H5118)),\"\",IFERROR(VLOOKUP(TEXT(INDIRECT(\"'\"&F5118&\"'!\"&H5118),\"0\"),Notes!$B$5:$C$100,2,FALSE),\"\"))","v":""},"2c","$K$85","$L$85"]
[21974,{"$f":"Menu!$F$29","v":"X"},{"$f":"Menu!$J$29","v":2020},{"$f":"IF(ISBLANK(INDIRECT(\"'\"&F5119&\"'!\"&G5119)),\"\",INDIRECT(\"'\"&F5119&\"'!\"&G5119))","v":""},{"$f":"IF(ISBLANK(INDIRECT(\"'\"&F5119&\"'!\"&H5119)),\"\",IFERROR(VLOOKUP(TEXT(INDIRECT(\"'\"&F5119&\"'!\"&H5119),\"0\"),Notes!$B$5:$C$100,2,FALSE),\"\"))","v":""},"2c","$O$85","$P$85"]
[21975,{"$f":"Menu!$F$29","v":"X"},{"$f":"Menu!$J$29","v":2020},{"$f":"IF(ISBLANK(INDIRECT(\"'\"&F5120&\"'!\"&G5120)),\"\",INDIRECT(\"'\"&F5120&\"'!\"&G5120))","v":""},{"$f":"IF(ISBLANK(INDIRECT(\"'\"&F5120&\"'!\"&H5120)),\"\",IFERROR(VLOOKUP(TEXT(INDIRECT(\"'\"&F5120&\"'!\"&H5120),\"0\"),Notes!$B$5:$C$100,2,FALSE),\"\"))","v":""},"2c","$M$85","$N$85"]
[21976,{"$f":"Menu!$F$29","v":"X"},{"$f":"Menu!$J$29","v":2020},{"$f":"IF(ISBLANK(INDIRECT(\"'\"&F5121&\"'!\"&G5121)),\"\",INDIRECT(\"'\"&F5121&\"'!\"&G5121))","v":""},{"$f":"IF(ISBLANK(INDIRECT(\"'\"&F5121&\"'!\"&H5121)),\"\",IFERROR(VLOOKUP(TEXT(INDIRECT(\"'\"&F5121&\"'!\"&H5121),\"0\"),Notes!$B$5:$C$100,2,FALSE),\"\"))","v":""},"2c","$Q$85","$R$85"]
[21977,{"$f":"Menu!$F$29","v":"X"},{"$f":"Menu!$J$29","v":2020},{"$f":"IF(ISBLANK(INDIRECT(\"'\"&F5122&\"'!\"&G5122)),\"\",INDIRECT(\"'\"&F5122&\"'!\"&G5122))","v":""},{"$f":"IF(ISBLANK(INDIRECT(\"'\"&F5122&\"'!\"&H5122)),\"\",IFERROR(VLOOKUP(TEXT(INDIRECT(\"'\"&F5122&\"'!\"&H5122),\"0\"),Notes!$B$5:$C$100,2,FALSE),\"\"))","v":""},"2c","$U$85",{"$f":"IF(LEN(TRIM(MID(G5122,4,10)))-LEN(SUBSTITUTE(TRIM(MID(G5122,4,10)),\"$\",\"\"))=0,\"$\"&CHAR(CODE(MID(G5122,2,1))+1)&\"$\"&TRIM(MID(G5122,4,10)),\"$\"&MID(G5122,2,1)&CHAR(CODE(MID(G5122,3,1))+1)&\"$\"&TRIM(MID(G5122,5,11)))","v":"$V$85"}]
[21978,{"$f":"Menu!$F$29","v":"X"},{"$f":"Menu!$J$29","v":2020},{"$f":"IF(ISBLANK(INDIRECT(\"'\"&F5123&\"'!\"&G5123)),\"\",INDIRECT(\"'\"&F5123&\"'!\"&G5123))","v":""},{"$f":"IF(ISBLANK(INDIRECT(\"'\"&F5123&\"'!\"&H5123)),\"\",IFERROR(VLOOKUP(TEXT(INDIRECT(\"'\"&F5123&\"'!\"&H5123),\"0\"),Notes!$B$5:$C$100,2,FALSE),\"\"))","v":""},"2c","$S$85","$T$85"]
[21979,{"$f":"Menu!$F$29","v":"X"},{"$f":"Menu!$J$29","v":2020},{"$f":"IF(ISBLANK(INDIRECT(\"'\"&F5124&\"'!\"&G5124)),\"\",INDIRECT(\"'\"&F5124&\"'!\"&G5124))","v":""},{"$f":"IF(ISBLANK(INDIRECT(\"'\"&F5124&\"'!\"&H5124)),\"\",IFERROR(VLOOKUP(TEXT(INDIRECT(\"'\"&F5124&\"'!\"&H5124),\"0\"),Notes!$B$5:$C$100,2,FALSE),\"\"))","v":""},"2c","$W$85","$X$85"]
[21980,{"$f":"Menu!$F$29","v":"X"},{"$f":"Menu!$J$29","v":2020},{"$f":"IF(ISBLANK(INDIRECT(\"'\"&F5125&\"'!\"&G5125)),\"\",INDIRECT(\"'\"&F5125&\"'!\"&G5125))","v":""},{"$f":"IF(ISBLANK(INDIRECT(\"'\"&F5125&\"'!\"&H5125)),\"\",IFERROR(VLOOKUP(TEXT(INDIRECT(\"'\"&F5125&\"'!\"&H5125),\"0\"),Notes!$B$5:$C$100,2,FALSE),\"\"))","v":""},"2c","$AA$85","$AB$85"]
[21981,{"$f":"Menu!$F$29","v":"X"},{"$f":"Menu!$J$29","v":2020},{"$f":"IF(ISBLANK(INDIRECT(\"'\"&F5126&\"'!\"&G5126)),\"\",INDIRECT(\"'\"&F5126&\"'!\"&G5126))","v":""},{"$f":"IF(ISBLANK(INDIRECT(\"'\"&F5126&\"'!\"&H5126)),\"\",IFERROR(VLOOKUP(TEXT(INDIRECT(\"'\"&F5126&\"'!\"&H5126),\"0\"),Notes!$B$5:$C$100,2,FALSE),\"\"))","v":""},"2c","$Y$85","$Z$85"]
[21982,{"$f":"Menu!$F$29","v":"X"},{"$f":"Menu!$J$29","v":2020},{"$f":"IF(ISBLANK(INDIRECT(\"'\"&F5127&\"'!\"&G5127)),\"\",INDIRECT(\"'\"&F5127&\"'!\"&G5127))","v":""},{"$f":"IF(ISBLANK(INDIRECT(\"'\"&F5127&\"'!\"&H5127)),\"\",IFERROR(VLOOKUP(TEXT(INDIRECT(\"'\"&F5127&\"'!\"&H5127),\"0\"),Notes!$B$5:$C$100,2,FALSE),\"\"))","v":""},"2c","$E$84","$F$84"]
[21983,{"$f":"Menu!$F$29","v":"X"},{"$f":"Menu!$J$29","v":2020},{"$f":"IF(ISBLANK(INDIRECT(\"'\"&F5128&\"'!\"&G5128)),\"\",INDIRECT(\"'\"&F5128&\"'!\"&G5128))","v":""},{"$f":"IF(ISBLANK(INDIRECT(\"'\"&F5128&\"'!\"&H5128)),\"\",IFERROR(VLOOKUP(TEXT(INDIRECT(\"'\"&F5128&\"'!\"&H5128),\"0\"),Notes!$B$5:$C$100,2,FALSE),\"\"))","v":""},"2c","$I$84","$J$84"]
[21984,{"$f":"Menu!$F$29","v":"X"},{"$f":"Menu!$J$29","v":2020},{"$f":"IF(ISBLANK(INDIRECT(\"'\"&F5129&\"'!\"&G5129)),\"\",INDIRECT(\"'\"&F5129&\"'!\"&G5129))","v":""},{"$f":"IF(ISBLANK(INDIRECT(\"'\"&F5129&\"'!\"&H5129)),\"\",IFERROR(VLOOKUP(TEXT(INDIRECT(\"'\"&F5129&\"'!\"&H5129),\"0\"),Notes!$B$5:$C$100,2,FALSE),\"\"))","v":""},"2c","$G$84","$H$84"]
[21985,{"$f":"Menu!$F$29","v":"X"},{"$f":"Menu!$J$29","v":2020},{"$f":"IF(ISBLANK(INDIRECT(\"'\"&F5130&\"'!\"&G5130)),\"\",INDIRECT(\"'\"&F5130&\"'!\"&G5130))","v":""},{"$f":"IF(ISBLANK(INDIRECT(\"'\"&F5130&\"'!\"&H5130)),\"\",IFERROR(VLOOKUP(TEXT(INDIRECT(\"'\"&F5130&\"'!\"&H5130),\"0\"),Notes!$B$5:$C$100,2,FALSE),\"\"))","v":""},"2c","$K$84","$L$84"]
[21986,{"$f":"Menu!$F$29","v":"X"},{"$f":"Menu!$J$29","v":2020},{"$f":"IF(ISBLANK(INDIRECT(\"'\"&F5131&\"'!\"&G5131)),\"\",INDIRECT(\"'\"&F5131&\"'!\"&G5131))","v":""},{"$f":"IF(ISBLANK(INDIRECT(\"'\"&F5131&\"'!\"&H5131)),\"\",IFERROR(VLOOKUP(TEXT(INDIRECT(\"'\"&F5131&\"'!\"&H5131),\"0\"),Notes!$B$5:$C$100,2,FALSE),\"\"))","v":""},"2c","$O$84","$P$84"]
[21987,{"$f":"Menu!$F$29","v":"X"},{"$f":"Menu!$J$29","v":2020},{"$f":"IF(ISBLANK(INDIRECT(\"'\"&F5132&\"'!\"&G5132)),\"\",INDIRECT(\"'\"&F5132&\"'!\"&G5132))","v":""},{"$f":"IF(ISBLANK(INDIRECT(\"'\"&F5132&\"'!\"&H5132)),\"\",IFERROR(VLOOKUP(TEXT(INDIRECT(\"'\"&F5132&\"'!\"&H5132),\"0\"),Notes!$B$5:$C$100,2,FALSE),\"\"))","v":""},"2c","$M$84","$N$84"]
[21988,{"$f":"Menu!$F$29","v":"X"},{"$f":"Menu!$J$29","v":2020},{"$f":"IF(ISBLANK(INDIRECT(\"'\"&F5133&\"'!\"&G5133)),\"\",INDIRECT(\"'\"&F5133&\"'!\"&G5133))","v":""},{"$f":"IF(ISBLANK(INDIRECT(\"'\"&F5133&\"'!\"&H5133)),\"\",IFERROR(VLOOKUP(TEXT(INDIRECT(\"'\"&F5133&\"'!\"&H5133),\"0\"),Notes!$B$5:$C$100,2,FALSE),\"\"))","v":""},"2c","$Q$84","$R$84"]
[21989,{"$f":"Menu!$F$29","v":"X"},{"$f":"Menu!$J$29","v":2020},{"$f":"IF(ISBLANK(INDIRECT(\"'\"&F5134&\"'!\"&G5134)),\"\",INDIRECT(\"'\"&F5134&\"'!\"&G5134))","v":""},{"$f":"IF(ISBLANK(INDIRECT(\"'\"&F5134&\"'!\"&H5134)),\"\",IFERROR(VLOOKUP(TEXT(INDIRECT(\"'\"&F5134&\"'!\"&H5134),\"0\"),Notes!$B$5:$C$100,2,FALSE),\"\"))","v":""},"2c","$U$84","$V$84"]
[21990,{"$f":"Menu!$F$29","v":"X"},{"$f":"Menu!$J$29","v":2020},{"$f":"IF(ISBLANK(INDIRECT(\"'\"&F5135&\"'!\"&G5135)),\"\",INDIRECT(\"'\"&F5135&\"'!\"&G5135))","v":""},{"$f":"IF(ISBLANK(INDIRECT(\"'\"&F5135&\"'!\"&H5135)),\"\",IFERROR(VLOOKUP(TEXT(INDIRECT(\"'\"&F5135&\"'!\"&H5135),\"0\"),Notes!$B$5:$C$100,2,FALSE),\"\"))","v":""},"2c","$S$84","$T$84"]
[21991,{"$f":"Menu!$F$29","v":"X"},{"$f":"Menu!$J$29","v":2020},{"$f":"IF(ISBLANK(INDIRECT(\"'\"&F5136&\"'!\"&G5136)),\"\",INDIRECT(\"'\"&F5136&\"'!\"&G5136))","v":""},{"$f":"IF(ISBLANK(INDIRECT(\"'\"&F5136&\"'!\"&H5136)),\"\",IFERROR(VLOOKUP(TEXT(INDIRECT(\"'\"&F5136&\"'!\"&H5136),\"0\"),Notes!$B$5:$C$100,2,FALSE),\"\"))","v":""},"2c","$W$84","$X$84"]
[21992,{"$f":"Menu!$F$29","v":"X"},{"$f":"Menu!$J$29","v":2020},{"$f":"IF(ISBLANK(INDIRECT(\"'\"&F5137&\"'!\"&G5137)),\"\",INDIRECT(\"'\"&F5137&\"'!\"&G5137))","v":""},{"$f":"IF(ISBLANK(INDIRECT(\"'\"&F5137&\"'!\"&H5137)),\"\",IFERROR(VLOOKUP(TEXT(INDIRECT(\"'\"&F5137&\"'!\"&H5137),\"0\"),Notes!$B$5:$C$100,2,FALSE),\"\"))","v":""},"2c","$AA$84","$AB$84"]
[21993,{"$f":"Menu!$F$29","v":"X"},{"$f":"Menu!$J$29","v":2020},{"$f":"IF(ISBLANK(INDIRECT(\"'\"&F5138&\"'!\"&G5138)),\"\",INDIRECT(\"'\"&F5138&\"'!\"&G5138))","v":""},{"$f":"IF(ISBLANK(INDIRECT(\"'\"&F5138&\"'!\"&H5138)),\"\",IFERROR(VLOOKUP(TEXT(INDIRECT(\"'\"&F5138&\"'!\"&H5138),\"0\"),Notes!$B$5:$C$100,2,FALSE),\"\"))","v":""},"2c","$Y$84","$Z$84"]
[21994,{"$f":"Menu!$F$29","v":"X"},{"$f":"Menu!$J$29","v":2020},{"$f":"IF(ISBLANK(INDIRECT(\"'\"&F5139&\"'!\"&G5139)),\"\",INDIRECT(\"'\"&F5139&\"'!\"&G5139))","v":""},{"$f":"IF(ISBLANK(INDIRECT(\"'\"&F5139&\"'!\"&H5139)),\"\",IFERROR(VLOOKUP(TEXT(INDIRECT(\"'\"&F5139&\"'!\"&H5139),\"0\"),Notes!$B$5:$C$100,2,FALSE),\"\"))","v":""},"2c","$E$83","$F$83"]
[21995,{"$f":"Menu!$F$29","v":"X"},{"$f":"Menu!$J$29","v":2020},{"$f":"IF(ISBLANK(INDIRECT(\"'\"&F5140&\"'!\"&G5140)),\"\",INDIRECT(\"'\"&F5140&\"'!\"&G5140))","v":""},{"$f":"IF(ISBLANK(INDIRECT(\"'\"&F5140&\"'!\"&H5140)),\"\",IFERROR(VLOOKUP(TEXT(INDIRECT(\"'\"&F5140&\"'!\"&H5140),\"0\"),Notes!$B$5:$C$100,2,FALSE),\"\"))","v":""},"2c","$I$83","$J$83"]
[21996,{"$f":"Menu!$F$29","v":"X"},{"$f":"Menu!$J$29","v":2020},{"$f":"IF(ISBLANK(INDIRECT(\"'\"&F5141&\"'!\"&G5141)),\"\",INDIRECT(\"'\"&F5141&\"'!\"&G5141))","v":""},{"$f":"IF(ISBLANK(INDIRECT(\"'\"&F5141&\"'!\"&H5141)),\"\",IFERROR(VLOOKUP(TEXT(INDIRECT(\"'\"&F5141&\"'!\"&H5141),\"0\"),Notes!$B$5:$C$100,2,FALSE),\"\"))","v":""},"2c","$G$83","$H$83"]
[21997,{"$f":"Menu!$F$29","v":"X"},{"$f":"Menu!$J$29","v":2020},{"$f":"IF(ISBLANK(INDIRECT(\"'\"&F5142&\"'!\"&G5142)),\"\",INDIRECT(\"'\"&F5142&\"'!\"&G5142))","v":""},{"$f":"IF(ISBLANK(INDIRECT(\"'\"&F5142&\"'!\"&H5142)),\"\",IFERROR(VLOOKUP(TEXT(INDIRECT(\"'\"&F5142&\"'!\"&H5142),\"0\"),Notes!$B$5:$C$100,2,FALSE),\"\"))","v":""},"2c","$K$83","$L$83"]
[21998,{"$f":"Menu!$F$29","v":"X"},{"$f":"Menu!$J$29","v":2020},{"$f":"IF(ISBLANK(INDIRECT(\"'\"&F5143&\"'!\"&G5143)),\"\",INDIRECT(\"'\"&F5143&\"'!\"&G5143))","v":""},{"$f":"IF(ISBLANK(INDIRECT(\"'\"&F5143&\"'!\"&H5143)),\"\",IFERROR(VLOOKUP(TEXT(INDIRECT(\"'\"&F5143&\"'!\"&H5143),\"0\"),Notes!$B$5:$C$100,2,FALSE),\"\"))","v":""},"2c","$O$83","$P$83"]
[21999,{"$f":"Menu!$F$29","v":"X"},{"$f":"Menu!$J$29","v":2020},{"$f":"IF(ISBLANK(INDIRECT(\"'\"&F5144&\"'!\"&G5144)),\"\",INDIRECT(\"'\"&F5144&\"'!\"&G5144))","v":""},{"$f":"IF(ISBLANK(INDIRECT(\"'\"&F5144&\"'!\"&H5144)),\"\",IFERROR(VLOOKUP(TEXT(INDIRECT(\"'\"&F5144&\"'!\"&H5144),\"0\"),Notes!$B$5:$C$100,2,FALSE),\"\"))","v":""},"2c","$M$83","$N$83"]
[22000,{"$f":"Menu!$F$29","v":"X"},{"$f":"Menu!$J$29","v":2020},{"$f":"IF(ISBLANK(INDIRECT(\"'\"&F5145&\"'!\"&G5145)),\"\",INDIRECT(\"'\"&F5145&\"'!\"&G5145))","v":""},{"$f":"IF(ISBLANK(INDIRECT(\"'\"&F5145&\"'!\"&H5145)),\"\",IFERROR(VLOOKUP(TEXT(INDIRECT(\"'\"&F5145&\"'!\"&H5145),\"0\"),Notes!$B$5:$C$100,2,FALSE),\"\"))","v":""},"2c","$Q$83","$R$83"]
[22001,{"$f":"Menu!$F$29","v":"X"},{"$f":"Menu!$J$29","v":2020},{"$f":"IF(ISBLANK(INDIRECT(\"'\"&F5146&\"'!\"&G5146)),\"\",INDIRECT(\"'\"&F5146&\"'!\"&G5146))","v":""},{"$f":"IF(ISBLANK(INDIRECT(\"'\"&F5146&\"'!\"&H5146)),\"\",IFERROR(VLOOKUP(TEXT(INDIRECT(\"'\"&F5146&\"'!\"&H5146),\"0\"),Notes!$B$5:$C$100,2,FALSE),\"\"))","v":""},"2c","$U$83","$V$83"]
[22002,{"$f":"Menu!$F$29","v":"X"},{"$f":"Menu!$J$29","v":2020},{"$f":"IF(ISBLANK(INDIRECT(\"'\"&F5147&\"'!\"&G5147)),\"\",INDIRECT(\"'\"&F5147&\"'!\"&G5147))","v":""},{"$f":"IF(ISBLANK(INDIRECT(\"'\"&F5147&\"'!\"&H5147)),\"\",IFERROR(VLOOKUP(TEXT(INDIRECT(\"'\"&F5147&\"'!\"&H5147),\"0\"),Notes!$B$5:$C$100,2,FALSE),\"\"))","v":""},"2c","$S$83","$T$83"]
[22003,{"$f":"Menu!$F$29","v":"X"},{"$f":"Menu!$J$29","v":2020},{"$f":"IF(ISBLANK(INDIRECT(\"'\"&F5148&\"'!\"&G5148)),\"\",INDIRECT(\"'\"&F5148&\"'!\"&G5148))","v":""},{"$f":"IF(ISBLANK(INDIRECT(\"'\"&F5148&\"'!\"&H5148)),\"\",IFERROR(VLOOKUP(TEXT(INDIRECT(\"'\"&F5148&\"'!\"&H5148),\"0\"),Notes!$B$5:$C$100,2,FALSE),\"\"))","v":""},"2c","$W$83","$X$83"]
[22004,{"$f":"Menu!$F$29","v":"X"},{"$f":"Menu!$J$29","v":2020},{"$f":"IF(ISBLANK(INDIRECT(\"'\"&F5149&\"'!\"&G5149)),\"\",INDIRECT(\"'\"&F5149&\"'!\"&G5149))","v":""},{"$f":"IF(ISBLANK(INDIRECT(\"'\"&F5149&\"'!\"&H5149)),\"\",IFERROR(VLOOKUP(TEXT(INDIRECT(\"'\"&F5149&\"'!\"&H5149),\"0\"),Notes!$B$5:$C$100,2,FALSE),\"\"))","v":""},"2c","$AA$83","$AB$83"]
[22005,{"$f":"Menu!$F$29","v":"X"},{"$f":"Menu!$J$29","v":2020},{"$f":"IF(ISBLANK(INDIRECT(\"'\"&F5150&\"'!\"&G5150)),\"\",INDIRECT(\"'\"&F5150&\"'!\"&G5150))","v":""},{"$f":"IF(ISBLANK(INDIRECT(\"'\"&F5150&\"'!\"&H5150)),\"\",IFERROR(VLOOKUP(TEXT(INDIRECT(\"'\"&F5150&\"'!\"&H5150),\"0\"),Notes!$B$5:$C$100,2,FALSE),\"\"))","v":""},"2c","$Y$83","$Z$83"]
[22006,{"$f":"Menu!$F$29","v":"X"},{"$f":"Menu!$J$29","v":2020},{"$f":"IF(ISBLANK(INDIRECT(\"'\"&F5151&\"'!\"&G5151)),\"\",INDIRECT(\"'\"&F5151&\"'!\"&G5151))","v":""},{"$f":"IF(ISBLANK(INDIRECT(\"'\"&F5151&\"'!\"&H5151)),\"\",IFERROR(VLOOKUP(TEXT(INDIRECT(\"'\"&F5151&\"'!\"&H5151),\"0\"),Notes!$B$5:$C$100,2,FALSE),\"\"))","v":""},"2c","$E$82","$F$82"]
[22007,{"$f":"Menu!$F$29","v":"X"},{"$f":"Menu!$J$29","v":2020},{"$f":"IF(ISBLANK(INDIRECT(\"'\"&F5152&\"'!\"&G5152)),\"\",INDIRECT(\"'\"&F5152&\"'!\"&G5152))","v":""},{"$f":"IF(ISBLANK(INDIRECT(\"'\"&F5152&\"'!\"&H5152)),\"\",IFERROR(VLOOKUP(TEXT(INDIRECT(\"'\"&F5152&\"'!\"&H5152),\"0\"),Notes!$B$5:$C$100,2,FALSE),\"\"))","v":""},"2c","$I$82","$J$82"]
[22008,{"$f":"Menu!$F$29","v":"X"},{"$f":"Menu!$J$29","v":2020},{"$f":"IF(ISBLANK(INDIRECT(\"'\"&F5153&\"'!\"&G5153)),\"\",INDIRECT(\"'\"&F5153&\"'!\"&G5153))","v":""},{"$f":"IF(ISBLANK(INDIRECT(\"'\"&F5153&\"'!\"&H5153)),\"\",IFERROR(VLOOKUP(TEXT(INDIRECT(\"'\"&F5153&\"'!\"&H5153),\"0\"),Notes!$B$5:$C$100,2,FALSE),\"\"))","v":""},"2c","$G$82","$H$82"]
[22009,{"$f":"Menu!$F$29","v":"X"},{"$f":"Menu!$J$29","v":2020},{"$f":"IF(ISBLANK(INDIRECT(\"'\"&F5154&\"'!\"&G5154)),\"\",INDIRECT(\"'\"&F5154&\"'!\"&G5154))","v":""},{"$f":"IF(ISBLANK(INDIRECT(\"'\"&F5154&\"'!\"&H5154)),\"\",IFERROR(VLOOKUP(TEXT(INDIRECT(\"'\"&F5154&\"'!\"&H5154),\"0\"),Notes!$B$5:$C$100,2,FALSE),\"\"))","v":""},"2c","$K$82","$L$82"]
[22010,{"$f":"Menu!$F$29","v":"X"},{"$f":"Menu!$J$29","v":2020},{"$f":"IF(ISBLANK(INDIRECT(\"'\"&F5155&\"'!\"&G5155)),\"\",INDIRECT(\"'\"&F5155&\"'!\"&G5155))","v":""},{"$f":"IF(ISBLANK(INDIRECT(\"'\"&F5155&\"'!\"&H5155)),\"\",IFERROR(VLOOKUP(TEXT(INDIRECT(\"'\"&F5155&\"'!\"&H5155),\"0\"),Notes!$B$5:$C$100,2,FALSE),\"\"))","v":""},"2c","$O$82","$P$82"]
[22011,{"$f":"Menu!$F$29","v":"X"},{"$f":"Menu!$J$29","v":2020},{"$f":"IF(ISBLANK(INDIRECT(\"'\"&F5156&\"'!\"&G5156)),\"\",INDIRECT(\"'\"&F5156&\"'!\"&G5156))","v":""},{"$f":"IF(ISBLANK(INDIRECT(\"'\"&F5156&\"'!\"&H5156)),\"\",IFERROR(VLOOKUP(TEXT(INDIRECT(\"'\"&F5156&\"'!\"&H5156),\"0\"),Notes!$B$5:$C$100,2,FALSE),\"\"))","v":""},"2c","$M$82","$N$82"]
[22012,{"$f":"Menu!$F$29","v":"X"},{"$f":"Menu!$J$29","v":2020},{"$f":"IF(ISBLANK(INDIRECT(\"'\"&F5157&\"'!\"&G5157)),\"\",INDIRECT(\"'\"&F5157&\"'!\"&G5157))","v":""},{"$f":"IF(ISBLANK(INDIRECT(\"'\"&F5157&\"'!\"&H5157)),\"\",IFERROR(VLOOKUP(TEXT(INDIRECT(\"'\"&F5157&\"'!\"&H5157),\"0\"),Notes!$B$5:$C$100,2,FALSE),\"\"))","v":""},"2c","$Q$82","$R$82"]
[22013,{"$f":"Menu!$F$29","v":"X"},{"$f":"Menu!$J$29","v":2020},{"$f":"IF(ISBLANK(INDIRECT(\"'\"&F5158&\"'!\"&G5158)),\"\",INDIRECT(\"'\"&F5158&\"'!\"&G5158))","v":""},{"$f":"IF(ISBLANK(INDIRECT(\"'\"&F5158&\"'!\"&H5158)),\"\",IFERROR(VLOOKUP(TEXT(INDIRECT(\"'\"&F5158&\"'!\"&H5158),\"0\"),Notes!$B$5:$C$100,2,FALSE),\"\"))","v":""},"2c","$U$82","$V$82"]
[22014,{"$f":"Menu!$F$29","v":"X"},{"$f":"Menu!$J$29","v":2020},{"$f":"IF(ISBLANK(INDIRECT(\"'\"&F5159&\"'!\"&G5159)),\"\",INDIRECT(\"'\"&F5159&\"'!\"&G5159))","v":""},{"$f":"IF(ISBLANK(INDIRECT(\"'\"&F5159&\"'!\"&H5159)),\"\",IFERROR(VLOOKUP(TEXT(INDIRECT(\"'\"&F5159&\"'!\"&H5159),\"0\"),Notes!$B$5:$C$100,2,FALSE),\"\"))","v":""},"2c","$S$82","$T$82"]
[22015,{"$f":"Menu!$F$29","v":"X"},{"$f":"Menu!$J$29","v":2020},{"$f":"IF(ISBLANK(INDIRECT(\"'\"&F5160&\"'!\"&G5160)),\"\",INDIRECT(\"'\"&F5160&\"'!\"&G5160))","v":""},{"$f":"IF(ISBLANK(INDIRECT(\"'\"&F5160&\"'!\"&H5160)),\"\",IFERROR(VLOOKUP(TEXT(INDIRECT(\"'\"&F5160&\"'!\"&H5160),\"0\"),Notes!$B$5:$C$100,2,FALSE),\"\"))","v":""},"2c","$W$82","$X$82"]
[22016,{"$f":"Menu!$F$29","v":"X"},{"$f":"Menu!$J$29","v":2020},{"$f":"IF(ISBLANK(INDIRECT(\"'\"&F5161&\"'!\"&G5161)),\"\",INDIRECT(\"'\"&F5161&\"'!\"&G5161))","v":""},{"$f":"IF(ISBLANK(INDIRECT(\"'\"&F5161&\"'!\"&H5161)),\"\",IFERROR(VLOOKUP(TEXT(INDIRECT(\"'\"&F5161&\"'!\"&H5161),\"0\"),Notes!$B$5:$C$100,2,FALSE),\"\"))","v":""},"2c","$AA$82","$AB$82"]
[22017,{"$f":"Menu!$F$29","v":"X"},{"$f":"Menu!$J$29","v":2020},{"$f":"IF(ISBLANK(INDIRECT(\"'\"&F5162&\"'!\"&G5162)),\"\",INDIRECT(\"'\"&F5162&\"'!\"&G5162))","v":""},{"$f":"IF(ISBLANK(INDIRECT(\"'\"&F5162&\"'!\"&H5162)),\"\",IFERROR(VLOOKUP(TEXT(INDIRECT(\"'\"&F5162&\"'!\"&H5162),\"0\"),Notes!$B$5:$C$100,2,FALSE),\"\"))","v":""},"2c","$Y$82","$Z$82"]
[22018,{"$f":"Menu!$F$29","v":"X"},{"$f":"Menu!$J$29","v":2020},{"$f":"IF(ISBLANK(INDIRECT(\"'\"&F5163&\"'!\"&G5163)),\"\",INDIRECT(\"'\"&F5163&\"'!\"&G5163))","v":""},{"$f":"IF(ISBLANK(INDIRECT(\"'\"&F5163&\"'!\"&H5163)),\"\",IFERROR(VLOOKUP(TEXT(INDIRECT(\"'\"&F5163&\"'!\"&H5163),\"0\"),Notes!$B$5:$C$100,2,FALSE),\"\"))","v":""},"2c","$E$81","$F$81"]
[22019,{"$f":"Menu!$F$29","v":"X"},{"$f":"Menu!$J$29","v":2020},{"$f":"IF(ISBLANK(INDIRECT(\"'\"&F5164&\"'!\"&G5164)),\"\",INDIRECT(\"'\"&F5164&\"'!\"&G5164))","v":""},{"$f":"IF(ISBLANK(INDIRECT(\"'\"&F5164&\"'!\"&H5164)),\"\",IFERROR(VLOOKUP(TEXT(INDIRECT(\"'\"&F5164&\"'!\"&H5164),\"0\"),Notes!$B$5:$C$100,2,FALSE),\"\"))","v":""},"2c","$I$81","$J$81"]
[22020,{"$f":"Menu!$F$29","v":"X"},{"$f":"Menu!$J$29","v":2020},{"$f":"IF(ISBLANK(INDIRECT(\"'\"&F5165&\"'!\"&G5165)),\"\",INDIRECT(\"'\"&F5165&\"'!\"&G5165))","v":""},{"$f":"IF(ISBLANK(INDIRECT(\"'\"&F5165&\"'!\"&H5165)),\"\",IFERROR(VLOOKUP(TEXT(INDIRECT(\"'\"&F5165&\"'!\"&H5165),\"0\"),Notes!$B$5:$C$100,2,FALSE),\"\"))","v":""},"2c","$G$81","$H$81"]
[22021,{"$f":"Menu!$F$29","v":"X"},{"$f":"Menu!$J$29","v":2020},{"$f":"IF(ISBLANK(INDIRECT(\"'\"&F5166&\"'!\"&G5166)),\"\",INDIRECT(\"'\"&F5166&\"'!\"&G5166))","v":""},{"$f":"IF(ISBLANK(INDIRECT(\"'\"&F5166&\"'!\"&H5166)),\"\",IFERROR(VLOOKUP(TEXT(INDIRECT(\"'\"&F5166&\"'!\"&H5166),\"0\"),Notes!$B$5:$C$100,2,FALSE),\"\"))","v":""},"2c","$K$81","$L$81"]
[22022,{"$f":"Menu!$F$29","v":"X"},{"$f":"Menu!$J$29","v":2020},{"$f":"IF(ISBLANK(INDIRECT(\"'\"&F5167&\"'!\"&G5167)),\"\",INDIRECT(\"'\"&F5167&\"'!\"&G5167))","v":""},{"$f":"IF(ISBLANK(INDIRECT(\"'\"&F5167&\"'!\"&H5167)),\"\",IFERROR(VLOOKUP(TEXT(INDIRECT(\"'\"&F5167&\"'!\"&H5167),\"0\"),Notes!$B$5:$C$100,2,FALSE),\"\"))","v":""},"2c","$O$81","$P$81"]
[22023,{"$f":"Menu!$F$29","v":"X"},{"$f":"Menu!$J$29","v":2020},{"$f":"IF(ISBLANK(INDIRECT(\"'\"&F5168&\"'!\"&G5168)),\"\",INDIRECT(\"'\"&F5168&\"'!\"&G5168))","v":""},{"$f":"IF(ISBLANK(INDIRECT(\"'\"&F5168&\"'!\"&H5168)),\"\",IFERROR(VLOOKUP(TEXT(INDIRECT(\"'\"&F5168&\"'!\"&H5168),\"0\"),Notes!$B$5:$C$100,2,FALSE),\"\"))","v":""},"2c","$M$81","$N$81"]
[22024,{"$f":"Menu!$F$29","v":"X"},{"$f":"Menu!$J$29","v":2020},{"$f":"IF(ISBLANK(INDIRECT(\"'\"&F5169&\"'!\"&G5169)),\"\",INDIRECT(\"'\"&F5169&\"'!\"&G5169))","v":""},{"$f":"IF(ISBLANK(INDIRECT(\"'\"&F5169&\"'!\"&H5169)),\"\",IFERROR(VLOOKUP(TEXT(INDIRECT(\"'\"&F5169&\"'!\"&H5169),\"0\"),Notes!$B$5:$C$100,2,FALSE),\"\"))","v":""},"2c","$Q$81","$R$81"]
[22025,{"$f":"Menu!$F$29","v":"X"},{"$f":"Menu!$J$29","v":2020},{"$f":"IF(ISBLANK(INDIRECT(\"'\"&F5170&\"'!\"&G5170)),\"\",INDIRECT(\"'\"&F5170&\"'!\"&G5170))","v":""},{"$f":"IF(ISBLANK(INDIRECT(\"'\"&F5170&\"'!\"&H5170)),\"\",IFERROR(VLOOKUP(TEXT(INDIRECT(\"'\"&F5170&\"'!\"&H5170),\"0\"),Notes!$B$5:$C$100,2,FALSE),\"\"))","v":""},"2c","$U$81","$V$81"]
[22026,{"$f":"Menu!$F$29","v":"X"},{"$f":"Menu!$J$29","v":2020},{"$f":"IF(ISBLANK(INDIRECT(\"'\"&F5171&\"'!\"&G5171)),\"\",INDIRECT(\"'\"&F5171&\"'!\"&G5171))","v":""},{"$f":"IF(ISBLANK(INDIRECT(\"'\"&F5171&\"'!\"&H5171)),\"\",IFERROR(VLOOKUP(TEXT(INDIRECT(\"'\"&F5171&\"'!\"&H5171),\"0\"),Notes!$B$5:$C$100,2,FALSE),\"\"))","v":""},"2c","$S$81","$T$81"]
[22027,{"$f":"Menu!$F$29","v":"X"},{"$f":"Menu!$J$29","v":2020},{"$f":"IF(ISBLANK(INDIRECT(\"'\"&F5172&\"'!\"&G5172)),\"\",INDIRECT(\"'\"&F5172&\"'!\"&G5172))","v":""},{"$f":"IF(ISBLANK(INDIRECT(\"'\"&F5172&\"'!\"&H5172)),\"\",IFERROR(VLOOKUP(TEXT(INDIRECT(\"'\"&F5172&\"'!\"&H5172),\"0\"),Notes!$B$5:$C$100,2,FALSE),\"\"))","v":""},"2c","$W$81","$X$81"]
[22028,{"$f":"Menu!$F$29","v":"X"},{"$f":"Menu!$J$29","v":2020},{"$f":"IF(ISBLANK(INDIRECT(\"'\"&F5173&\"'!\"&G5173)),\"\",INDIRECT(\"'\"&F5173&\"'!\"&G5173))","v":""},{"$f":"IF(ISBLANK(INDIRECT(\"'\"&F5173&\"'!\"&H5173)),\"\",IFERROR(VLOOKUP(TEXT(INDIRECT(\"'\"&F5173&\"'!\"&H5173),\"0\"),Notes!$B$5:$C$100,2,FALSE),\"\"))","v":""},"2c","$AA$81","$AB$81"]
[22029,{"$f":"Menu!$F$29","v":"X"},{"$f":"Menu!$J$29","v":2020},{"$f":"IF(ISBLANK(INDIRECT(\"'\"&F5174&\"'!\"&G5174)),\"\",INDIRECT(\"'\"&F5174&\"'!\"&G5174))","v":""},{"$f":"IF(ISBLANK(INDIRECT(\"'\"&F5174&\"'!\"&H5174)),\"\",IFERROR(VLOOKUP(TEXT(INDIRECT(\"'\"&F5174&\"'!\"&H5174),\"0\"),Notes!$B$5:$C$100,2,FALSE),\"\"))","v":""},"2c","$Y$81","$Z$81"]
[22030,{"$f":"Menu!$F$29","v":"X"},{"$f":"Menu!$J$29","v":2020},{"$f":"IF(ISBLANK(INDIRECT(\"'\"&F5175&\"'!\"&G5175)),\"\",INDIRECT(\"'\"&F5175&\"'!\"&G5175))","v":""},{"$f":"IF(ISBLANK(INDIRECT(\"'\"&F5175&\"'!\"&H5175)),\"\",IFERROR(VLOOKUP(TEXT(INDIRECT(\"'\"&F5175&\"'!\"&H5175),\"0\"),Notes!$B$5:$C$100,2,FALSE),\"\"))","v":""},"2c","$E$80","$F$80"]
[22031,{"$f":"Menu!$F$29","v":"X"},{"$f":"Menu!$J$29","v":2020},{"$f":"IF(ISBLANK(INDIRECT(\"'\"&F5176&\"'!\"&G5176)),\"\",INDIRECT(\"'\"&F5176&\"'!\"&G5176))","v":""},{"$f":"IF(ISBLANK(INDIRECT(\"'\"&F5176&\"'!\"&H5176)),\"\",IFERROR(VLOOKUP(TEXT(INDIRECT(\"'\"&F5176&\"'!\"&H5176),\"0\"),Notes!$B$5:$C$100,2,FALSE),\"\"))","v":""},"2c","$I$80","$J$80"]
[22032,{"$f":"Menu!$F$29","v":"X"},{"$f":"Menu!$J$29","v":2020},{"$f":"IF(ISBLANK(INDIRECT(\"'\"&F5177&\"'!\"&G5177)),\"\",INDIRECT(\"'\"&F5177&\"'!\"&G5177))","v":""},{"$f":"IF(ISBLANK(INDIRECT(\"'\"&F5177&\"'!\"&H5177)),\"\",IFERROR(VLOOKUP(TEXT(INDIRECT(\"'\"&F5177&\"'!\"&H5177),\"0\"),Notes!$B$5:$C$100,2,FALSE),\"\"))","v":""},"2c","$G$80","$H$80"]
[22033,{"$f":"Menu!$F$29","v":"X"},{"$f":"Menu!$J$29","v":2020},{"$f":"IF(ISBLANK(INDIRECT(\"'\"&F5178&\"'!\"&G5178)),\"\",INDIRECT(\"'\"&F5178&\"'!\"&G5178))","v":""},{"$f":"IF(ISBLANK(INDIRECT(\"'\"&F5178&\"'!\"&H5178)),\"\",IFERROR(VLOOKUP(TEXT(INDIRECT(\"'\"&F5178&\"'!\"&H5178),\"0\"),Notes!$B$5:$C$100,2,FALSE),\"\"))","v":""},"2c","$K$80","$L$80"]
[22034,{"$f":"Menu!$F$29","v":"X"},{"$f":"Menu!$J$29","v":2020},{"$f":"IF(ISBLANK(INDIRECT(\"'\"&F5179&\"'!\"&G5179)),\"\",INDIRECT(\"'\"&F5179&\"'!\"&G5179))","v":""},{"$f":"IF(ISBLANK(INDIRECT(\"'\"&F5179&\"'!\"&H5179)),\"\",IFERROR(VLOOKUP(TEXT(INDIRECT(\"'\"&F5179&\"'!\"&H5179),\"0\"),Notes!$B$5:$C$100,2,FALSE),\"\"))","v":""},"2c","$O$80","$P$80"]
[22035,{"$f":"Menu!$F$29","v":"X"},{"$f":"Menu!$J$29","v":2020},{"$f":"IF(ISBLANK(INDIRECT(\"'\"&F5180&\"'!\"&G5180)),\"\",INDIRECT(\"'\"&F5180&\"'!\"&G5180))","v":""},{"$f":"IF(ISBLANK(INDIRECT(\"'\"&F5180&\"'!\"&H5180)),\"\",IFERROR(VLOOKUP(TEXT(INDIRECT(\"'\"&F5180&\"'!\"&H5180),\"0\"),Notes!$B$5:$C$100,2,FALSE),\"\"))","v":""},"2c","$M$80","$N$80"]
[22036,{"$f":"Menu!$F$29","v":"X"},{"$f":"Menu!$J$29","v":2020},{"$f":"IF(ISBLANK(INDIRECT(\"'\"&F5181&\"'!\"&G5181)),\"\",INDIRECT(\"'\"&F5181&\"'!\"&G5181))","v":""},{"$f":"IF(ISBLANK(INDIRECT(\"'\"&F5181&\"'!\"&H5181)),\"\",IFERROR(VLOOKUP(TEXT(INDIRECT(\"'\"&F5181&\"'!\"&H5181),\"0\"),Notes!$B$5:$C$100,2,FALSE),\"\"))","v":""},"2c","$Q$80","$R$80"]
[22037,{"$f":"Menu!$F$29","v":"X"},{"$f":"Menu!$J$29","v":2020},{"$f":"IF(ISBLANK(INDIRECT(\"'\"&F5182&\"'!\"&G5182)),\"\",INDIRECT(\"'\"&F5182&\"'!\"&G5182))","v":""},{"$f":"IF(ISBLANK(INDIRECT(\"'\"&F5182&\"'!\"&H5182)),\"\",IFERROR(VLOOKUP(TEXT(INDIRECT(\"'\"&F5182&\"'!\"&H5182),\"0\"),Notes!$B$5:$C$100,2,FALSE),\"\"))","v":""},"2c","$U$80","$V$80"]
[22038,{"$f":"Menu!$F$29","v":"X"},{"$f":"Menu!$J$29","v":2020},{"$f":"IF(ISBLANK(INDIRECT(\"'\"&F5183&\"'!\"&G5183)),\"\",INDIRECT(\"'\"&F5183&\"'!\"&G5183))","v":""},{"$f":"IF(ISBLANK(INDIRECT(\"'\"&F5183&\"'!\"&H5183)),\"\",IFERROR(VLOOKUP(TEXT(INDIRECT(\"'\"&F5183&\"'!\"&H5183),\"0\"),Notes!$B$5:$C$100,2,FALSE),\"\"))","v":""},"2c","$S$80","$T$80"]
[22039,{"$f":"Menu!$F$29","v":"X"},{"$f":"Menu!$J$29","v":2020},{"$f":"IF(ISBLANK(INDIRECT(\"'\"&F5184&\"'!\"&G5184)),\"\",INDIRECT(\"'\"&F5184&\"'!\"&G5184))","v":""},{"$f":"IF(ISBLANK(INDIRECT(\"'\"&F5184&\"'!\"&H5184)),\"\",IFERROR(VLOOKUP(TEXT(INDIRECT(\"'\"&F5184&\"'!\"&H5184),\"0\"),Notes!$B$5:$C$100,2,FALSE),\"\"))","v":""},"2c","$W$80","$X$80"]
[22040,{"$f":"Menu!$F$29","v":"X"},{"$f":"Menu!$J$29","v":2020},{"$f":"IF(ISBLANK(INDIRECT(\"'\"&F5185&\"'!\"&G5185)),\"\",INDIRECT(\"'\"&F5185&\"'!\"&G5185))","v":""},{"$f":"IF(ISBLANK(INDIRECT(\"'\"&F5185&\"'!\"&H5185)),\"\",IFERROR(VLOOKUP(TEXT(INDIRECT(\"'\"&F5185&\"'!\"&H5185),\"0\"),Notes!$B$5:$C$100,2,FALSE),\"\"))","v":""},"2c","$AA$80","$AB$80"]
[22041,{"$f":"Menu!$F$29","v":"X"},{"$f":"Menu!$J$29","v":2020},{"$f":"IF(ISBLANK(INDIRECT(\"'\"&F5186&\"'!\"&G5186)),\"\",INDIRECT(\"'\"&F5186&\"'!\"&G5186))","v":""},{"$f":"IF(ISBLANK(INDIRECT(\"'\"&F5186&\"'!\"&H5186)),\"\",IFERROR(VLOOKUP(TEXT(INDIRECT(\"'\"&F5186&\"'!\"&H5186),\"0\"),Notes!$B$5:$C$100,2,FALSE),\"\"))","v":""},"2c","$Y$80",{"$f":"IF(LEN(TRIM(MID(G5186,4,10)))-LEN(SUBSTITUTE(TRIM(MID(G5186,4,10)),\"$\",\"\"))=0,\"$\"&CHAR(CODE(MID(G5186,2,1))+1)&\"$\"&TRIM(MID(G5186,4,10)),\"$\"&MID(G5186,2,1)&CHAR(CODE(MID(G5186,3,1))+1)&\"$\"&TRIM(MID(G5186,5,11)))","v":"$Z$80"}]
[22042,{"$f":"Menu!$F$29","v":"X"},{"$f":"Menu!$J$29","v":2020},{"$f":"IF(ISBLANK(INDIRECT(\"'\"&F5187&\"'!\"&G5187)),\"\",INDIRECT(\"'\"&F5187&\"'!\"&G5187))","v":""},{"$f":"IF(ISBLANK(INDIRECT(\"'\"&F5187&\"'!\"&H5187)),\"\",IFERROR(VLOOKUP(TEXT(INDIRECT(\"'\"&F5187&\"'!\"&H5187),\"0\"),Notes!$B$5:$C$100,2,FALSE),\"\"))","v":""},"2c","$E$79","$F$79"]
[22043,{"$f":"Menu!$F$29","v":"X"},{"$f":"Menu!$J$29","v":2020},{"$f":"IF(ISBLANK(INDIRECT(\"'\"&F5188&\"'!\"&G5188)),\"\",INDIRECT(\"'\"&F5188&\"'!\"&G5188))","v":""},{"$f":"IF(ISBLANK(INDIRECT(\"'\"&F5188&\"'!\"&H5188)),\"\",IFERROR(VLOOKUP(TEXT(INDIRECT(\"'\"&F5188&\"'!\"&H5188),\"0\"),Notes!$B$5:$C$100,2,FALSE),\"\"))","v":""},"2c","$I$79","$J$79"]
[22044,{"$f":"Menu!$F$29","v":"X"},{"$f":"Menu!$J$29","v":2020},{"$f":"IF(ISBLANK(INDIRECT(\"'\"&F5189&\"'!\"&G5189)),\"\",INDIRECT(\"'\"&F5189&\"'!\"&G5189))","v":""},{"$f":"IF(ISBLANK(INDIRECT(\"'\"&F5189&\"'!\"&H5189)),\"\",IFERROR(VLOOKUP(TEXT(INDIRECT(\"'\"&F5189&\"'!\"&H5189),\"0\"),Notes!$B$5:$C$100,2,FALSE),\"\"))","v":""},"2c","$G$79","$H$79"]
[22045,{"$f":"Menu!$F$29","v":"X"},{"$f":"Menu!$J$29","v":2020},{"$f":"IF(ISBLANK(INDIRECT(\"'\"&F5190&\"'!\"&G5190)),\"\",INDIRECT(\"'\"&F5190&\"'!\"&G5190))","v":""},{"$f":"IF(ISBLANK(INDIRECT(\"'\"&F5190&\"'!\"&H5190)),\"\",IFERROR(VLOOKUP(TEXT(INDIRECT(\"'\"&F5190&\"'!\"&H5190),\"0\"),Notes!$B$5:$C$100,2,FALSE),\"\"))","v":""},"2c","$K$79","$L$79"]
[22046,{"$f":"Menu!$F$29","v":"X"},{"$f":"Menu!$J$29","v":2020},{"$f":"IF(ISBLANK(INDIRECT(\"'\"&F5191&\"'!\"&G5191)),\"\",INDIRECT(\"'\"&F5191&\"'!\"&G5191))","v":""},{"$f":"IF(ISBLANK(INDIRECT(\"'\"&F5191&\"'!\"&H5191)),\"\",IFERROR(VLOOKUP(TEXT(INDIRECT(\"'\"&F5191&\"'!\"&H5191),\"0\"),Notes!$B$5:$C$100,2,FALSE),\"\"))","v":""},"2c","$O$79","$P$79"]
[22047,{"$f":"Menu!$F$29","v":"X"},{"$f":"Menu!$J$29","v":2020},{"$f":"IF(ISBLANK(INDIRECT(\"'\"&F5192&\"'!\"&G5192)),\"\",INDIRECT(\"'\"&F5192&\"'!\"&G5192))","v":""},{"$f":"IF(ISBLANK(INDIRECT(\"'\"&F5192&\"'!\"&H5192)),\"\",IFERROR(VLOOKUP(TEXT(INDIRECT(\"'\"&F5192&\"'!\"&H5192),\"0\"),Notes!$B$5:$C$100,2,FALSE),\"\"))","v":""},"2c","$M$79","$N$79"]
[22048,{"$f":"Menu!$F$29","v":"X"},{"$f":"Menu!$J$29","v":2020},{"$f":"IF(ISBLANK(INDIRECT(\"'\"&F5193&\"'!\"&G5193)),\"\",INDIRECT(\"'\"&F5193&\"'!\"&G5193))","v":""},{"$f":"IF(ISBLANK(INDIRECT(\"'\"&F5193&\"'!\"&H5193)),\"\",IFERROR(VLOOKUP(TEXT(INDIRECT(\"'\"&F5193&\"'!\"&H5193),\"0\"),Notes!$B$5:$C$100,2,FALSE),\"\"))","v":""},"2c","$Q$79","$R$79"]
[22049,{"$f":"Menu!$F$29","v":"X"},{"$f":"Menu!$J$29","v":2020},{"$f":"IF(ISBLANK(INDIRECT(\"'\"&F5194&\"'!\"&G5194)),\"\",INDIRECT(\"'\"&F5194&\"'!\"&G5194))","v":""},{"$f":"IF(ISBLANK(INDIRECT(\"'\"&F5194&\"'!\"&H5194)),\"\",IFERROR(VLOOKUP(TEXT(INDIRECT(\"'\"&F5194&\"'!\"&H5194),\"0\"),Notes!$B$5:$C$100,2,FALSE),\"\"))","v":""},"2c","$U$79","$V$79"]
[22050,{"$f":"Menu!$F$29","v":"X"},{"$f":"Menu!$J$29","v":2020},{"$f":"IF(ISBLANK(INDIRECT(\"'\"&F5195&\"'!\"&G5195)),\"\",INDIRECT(\"'\"&F5195&\"'!\"&G5195))","v":""},{"$f":"IF(ISBLANK(INDIRECT(\"'\"&F5195&\"'!\"&H5195)),\"\",IFERROR(VLOOKUP(TEXT(INDIRECT(\"'\"&F5195&\"'!\"&H5195),\"0\"),Notes!$B$5:$C$100,2,FALSE),\"\"))","v":""},"2c","$S$79","$T$79"]
[22051,{"$f":"Menu!$F$29","v":"X"},{"$f":"Menu!$J$29","v":2020},{"$f":"IF(ISBLANK(INDIRECT(\"'\"&F5196&\"'!\"&G5196)),\"\",INDIRECT(\"'\"&F5196&\"'!\"&G5196))","v":""},{"$f":"IF(ISBLANK(INDIRECT(\"'\"&F5196&\"'!\"&H5196)),\"\",IFERROR(VLOOKUP(TEXT(INDIRECT(\"'\"&F5196&\"'!\"&H5196),\"0\"),Notes!$B$5:$C$100,2,FALSE),\"\"))","v":""},"2c","$W$79","$X$79"]
[22052,{"$f":"Menu!$F$29","v":"X"},{"$f":"Menu!$J$29","v":2020},{"$f":"IF(ISBLANK(INDIRECT(\"'\"&F5197&\"'!\"&G5197)),\"\",INDIRECT(\"'\"&F5197&\"'!\"&G5197))","v":""},{"$f":"IF(ISBLANK(INDIRECT(\"'\"&F5197&\"'!\"&H5197)),\"\",IFERROR(VLOOKUP(TEXT(INDIRECT(\"'\"&F5197&\"'!\"&H5197),\"0\"),Notes!$B$5:$C$100,2,FALSE),\"\"))","v":""},"2c","$AA$79","$AB$79"]
[22053,{"$f":"Menu!$F$29","v":"X"},{"$f":"Menu!$J$29","v":2020},{"$f":"IF(ISBLANK(INDIRECT(\"'\"&F5198&\"'!\"&G5198)),\"\",INDIRECT(\"'\"&F5198&\"'!\"&G5198))","v":""},{"$f":"IF(ISBLANK(INDIRECT(\"'\"&F5198&\"'!\"&H5198)),\"\",IFERROR(VLOOKUP(TEXT(INDIRECT(\"'\"&F5198&\"'!\"&H5198),\"0\"),Notes!$B$5:$C$100,2,FALSE),\"\"))","v":""},"2c","$Y$79","$Z$79"]
[22054,{"$f":"Menu!$F$29","v":"X"},{"$f":"Menu!$J$29","v":2020},{"$f":"IF(ISBLANK(INDIRECT(\"'\"&F5199&\"'!\"&G5199)),\"\",INDIRECT(\"'\"&F5199&\"'!\"&G5199))","v":""},{"$f":"IF(ISBLANK(INDIRECT(\"'\"&F5199&\"'!\"&H5199)),\"\",IFERROR(VLOOKUP(TEXT(INDIRECT(\"'\"&F5199&\"'!\"&H5199),\"0\"),Notes!$B$5:$C$100,2,FALSE),\"\"))","v":""},"2c","$E$78","$F$78"]
[22055,{"$f":"Menu!$F$29","v":"X"},{"$f":"Menu!$J$29","v":2020},{"$f":"IF(ISBLANK(INDIRECT(\"'\"&F5200&\"'!\"&G5200)),\"\",INDIRECT(\"'\"&F5200&\"'!\"&G5200))","v":""},{"$f":"IF(ISBLANK(INDIRECT(\"'\"&F5200&\"'!\"&H5200)),\"\",IFERROR(VLOOKUP(TEXT(INDIRECT(\"'\"&F5200&\"'!\"&H5200),\"0\"),Notes!$B$5:$C$100,2,FALSE),\"\"))","v":""},"2c","$I$78","$J$78"]
[22056,{"$f":"Menu!$F$29","v":"X"},{"$f":"Menu!$J$29","v":2020},{"$f":"IF(ISBLANK(INDIRECT(\"'\"&F5201&\"'!\"&G5201)),\"\",INDIRECT(\"'\"&F5201&\"'!\"&G5201))","v":""},{"$f":"IF(ISBLANK(INDIRECT(\"'\"&F5201&\"'!\"&H5201)),\"\",IFERROR(VLOOKUP(TEXT(INDIRECT(\"'\"&F5201&\"'!\"&H5201),\"0\"),Notes!$B$5:$C$100,2,FALSE),\"\"))","v":""},"2c","$G$78","$H$78"]
[22057,{"$f":"Menu!$F$29","v":"X"},{"$f":"Menu!$J$29","v":2020},{"$f":"IF(ISBLANK(INDIRECT(\"'\"&F5202&\"'!\"&G5202)),\"\",INDIRECT(\"'\"&F5202&\"'!\"&G5202))","v":""},{"$f":"IF(ISBLANK(INDIRECT(\"'\"&F5202&\"'!\"&H5202)),\"\",IFERROR(VLOOKUP(TEXT(INDIRECT(\"'\"&F5202&\"'!\"&H5202),\"0\"),Notes!$B$5:$C$100,2,FALSE),\"\"))","v":""},"2c","$K$78","$L$78"]
[22058,{"$f":"Menu!$F$29","v":"X"},{"$f":"Menu!$J$29","v":2020},{"$f":"IF(ISBLANK(INDIRECT(\"'\"&F5203&\"'!\"&G5203)),\"\",INDIRECT(\"'\"&F5203&\"'!\"&G5203))","v":""},{"$f":"IF(ISBLANK(INDIRECT(\"'\"&F5203&\"'!\"&H5203)),\"\",IFERROR(VLOOKUP(TEXT(INDIRECT(\"'\"&F5203&\"'!\"&H5203),\"0\"),Notes!$B$5:$C$100,2,FALSE),\"\"))","v":""},"2c","$O$78","$P$78"]
[22059,{"$f":"Menu!$F$29","v":"X"},{"$f":"Menu!$J$29","v":2020},{"$f":"IF(ISBLANK(INDIRECT(\"'\"&F5204&\"'!\"&G5204)),\"\",INDIRECT(\"'\"&F5204&\"'!\"&G5204))","v":""},{"$f":"IF(ISBLANK(INDIRECT(\"'\"&F5204&\"'!\"&H5204)),\"\",IFERROR(VLOOKUP(TEXT(INDIRECT(\"'\"&F5204&\"'!\"&H5204),\"0\"),Notes!$B$5:$C$100,2,FALSE),\"\"))","v":""},"2c","$M$78","$N$78"]
[22060,{"$f":"Menu!$F$29","v":"X"},{"$f":"Menu!$J$29","v":2020},{"$f":"IF(ISBLANK(INDIRECT(\"'\"&F5205&\"'!\"&G5205)),\"\",INDIRECT(\"'\"&F5205&\"'!\"&G5205))","v":""},{"$f":"IF(ISBLANK(INDIRECT(\"'\"&F5205&\"'!\"&H5205)),\"\",IFERROR(VLOOKUP(TEXT(INDIRECT(\"'\"&F5205&\"'!\"&H5205),\"0\"),Notes!$B$5:$C$100,2,FALSE),\"\"))","v":""},"2c","$Q$78","$R$78"]
[22061,{"$f":"Menu!$F$29","v":"X"},{"$f":"Menu!$J$29","v":2020},{"$f":"IF(ISBLANK(INDIRECT(\"'\"&F5206&\"'!\"&G5206)),\"\",INDIRECT(\"'\"&F5206&\"'!\"&G5206))","v":""},{"$f":"IF(ISBLANK(INDIRECT(\"'\"&F5206&\"'!\"&H5206)),\"\",IFERROR(VLOOKUP(TEXT(INDIRECT(\"'\"&F5206&\"'!\"&H5206),\"0\"),Notes!$B$5:$C$100,2,FALSE),\"\"))","v":""},"2c","$U$78","$V$78"]
[22062,{"$f":"Menu!$F$29","v":"X"},{"$f":"Menu!$J$29","v":2020},{"$f":"IF(ISBLANK(INDIRECT(\"'\"&F5207&\"'!\"&G5207)),\"\",INDIRECT(\"'\"&F5207&\"'!\"&G5207))","v":""},{"$f":"IF(ISBLANK(INDIRECT(\"'\"&F5207&\"'!\"&H5207)),\"\",IFERROR(VLOOKUP(TEXT(INDIRECT(\"'\"&F5207&\"'!\"&H5207),\"0\"),Notes!$B$5:$C$100,2,FALSE),\"\"))","v":""},"2c","$S$78","$T$78"]
[22063,{"$f":"Menu!$F$29","v":"X"},{"$f":"Menu!$J$29","v":2020},{"$f":"IF(ISBLANK(INDIRECT(\"'\"&F5208&\"'!\"&G5208)),\"\",INDIRECT(\"'\"&F5208&\"'!\"&G5208))","v":""},{"$f":"IF(ISBLANK(INDIRECT(\"'\"&F5208&\"'!\"&H5208)),\"\",IFERROR(VLOOKUP(TEXT(INDIRECT(\"'\"&F5208&\"'!\"&H5208),\"0\"),Notes!$B$5:$C$100,2,FALSE),\"\"))","v":""},"2c","$W$78","$X$78"]
[22064,{"$f":"Menu!$F$29","v":"X"},{"$f":"Menu!$J$29","v":2020},{"$f":"IF(ISBLANK(INDIRECT(\"'\"&F5209&\"'!\"&G5209)),\"\",INDIRECT(\"'\"&F5209&\"'!\"&G5209))","v":""},{"$f":"IF(ISBLANK(INDIRECT(\"'\"&F5209&\"'!\"&H5209)),\"\",IFERROR(VLOOKUP(TEXT(INDIRECT(\"'\"&F5209&\"'!\"&H5209),\"0\"),Notes!$B$5:$C$100,2,FALSE),\"\"))","v":""},"2c","$AA$78","$AB$78"]
[22065,{"$f":"Menu!$F$29","v":"X"},{"$f":"Menu!$J$29","v":2020},{"$f":"IF(ISBLANK(INDIRECT(\"'\"&F5210&\"'!\"&G5210)),\"\",INDIRECT(\"'\"&F5210&\"'!\"&G5210))","v":""},{"$f":"IF(ISBLANK(INDIRECT(\"'\"&F5210&\"'!\"&H5210)),\"\",IFERROR(VLOOKUP(TEXT(INDIRECT(\"'\"&F5210&\"'!\"&H5210),\"0\"),Notes!$B$5:$C$100,2,FALSE),\"\"))","v":""},"2c","$Y$78","$Z$78"]
[22066,{"$f":"Menu!$F$29","v":"X"},{"$f":"Menu!$J$29","v":2020},{"$f":"IF(ISBLANK(INDIRECT(\"'\"&F5211&\"'!\"&G5211)),\"\",INDIRECT(\"'\"&F5211&\"'!\"&G5211))","v":""},{"$f":"IF(ISBLANK(INDIRECT(\"'\"&F5211&\"'!\"&H5211)),\"\",IFERROR(VLOOKUP(TEXT(INDIRECT(\"'\"&F5211&\"'!\"&H5211),\"0\"),Notes!$B$5:$C$100,2,FALSE),\"\"))","v":""},"2c","$E$77","$F$77"]
[22067,{"$f":"Menu!$F$29","v":"X"},{"$f":"Menu!$J$29","v":2020},{"$f":"IF(ISBLANK(INDIRECT(\"'\"&F5212&\"'!\"&G5212)),\"\",INDIRECT(\"'\"&F5212&\"'!\"&G5212))","v":""},{"$f":"IF(ISBLANK(INDIRECT(\"'\"&F5212&\"'!\"&H5212)),\"\",IFERROR(VLOOKUP(TEXT(INDIRECT(\"'\"&F5212&\"'!\"&H5212),\"0\"),Notes!$B$5:$C$100,2,FALSE),\"\"))","v":""},"2c","$I$77","$J$77"]
[22068,{"$f":"Menu!$F$29","v":"X"},{"$f":"Menu!$J$29","v":2020},{"$f":"IF(ISBLANK(INDIRECT(\"'\"&F5213&\"'!\"&G5213)),\"\",INDIRECT(\"'\"&F5213&\"'!\"&G5213))","v":""},{"$f":"IF(ISBLANK(INDIRECT(\"'\"&F5213&\"'!\"&H5213)),\"\",IFERROR(VLOOKUP(TEXT(INDIRECT(\"'\"&F5213&\"'!\"&H5213),\"0\"),Notes!$B$5:$C$100,2,FALSE),\"\"))","v":""},"2c","$G$77","$H$77"]
[22069,{"$f":"Menu!$F$29","v":"X"},{"$f":"Menu!$J$29","v":2020},{"$f":"IF(ISBLANK(INDIRECT(\"'\"&F5214&\"'!\"&G5214)),\"\",INDIRECT(\"'\"&F5214&\"'!\"&G5214))","v":""},{"$f":"IF(ISBLANK(INDIRECT(\"'\"&F5214&\"'!\"&H5214)),\"\",IFERROR(VLOOKUP(TEXT(INDIRECT(\"'\"&F5214&\"'!\"&H5214),\"0\"),Notes!$B$5:$C$100,2,FALSE),\"\"))","v":""},"2c","$K$77","$L$77"]
[22070,{"$f":"Menu!$F$29","v":"X"},{"$f":"Menu!$J$29","v":2020},{"$f":"IF(ISBLANK(INDIRECT(\"'\"&F5215&\"'!\"&G5215)),\"\",INDIRECT(\"'\"&F5215&\"'!\"&G5215))","v":""},{"$f":"IF(ISBLANK(INDIRECT(\"'\"&F5215&\"'!\"&H5215)),\"\",IFERROR(VLOOKUP(TEXT(INDIRECT(\"'\"&F5215&\"'!\"&H5215),\"0\"),Notes!$B$5:$C$100,2,FALSE),\"\"))","v":""},"2c","$O$77","$P$77"]
[22071,{"$f":"Menu!$F$29","v":"X"},{"$f":"Menu!$J$29","v":2020},{"$f":"IF(ISBLANK(INDIRECT(\"'\"&F5216&\"'!\"&G5216)),\"\",INDIRECT(\"'\"&F5216&\"'!\"&G5216))","v":""},{"$f":"IF(ISBLANK(INDIRECT(\"'\"&F5216&\"'!\"&H5216)),\"\",IFERROR(VLOOKUP(TEXT(INDIRECT(\"'\"&F5216&\"'!\"&H5216),\"0\"),Notes!$B$5:$C$100,2,FALSE),\"\"))","v":""},"2c","$M$77","$N$77"]
[22072,{"$f":"Menu!$F$29","v":"X"},{"$f":"Menu!$J$29","v":2020},{"$f":"IF(ISBLANK(INDIRECT(\"'\"&F5217&\"'!\"&G5217)),\"\",INDIRECT(\"'\"&F5217&\"'!\"&G5217))","v":""},{"$f":"IF(ISBLANK(INDIRECT(\"'\"&F5217&\"'!\"&H5217)),\"\",IFERROR(VLOOKUP(TEXT(INDIRECT(\"'\"&F5217&\"'!\"&H5217),\"0\"),Notes!$B$5:$C$100,2,FALSE),\"\"))","v":""},"2c","$Q$77","$R$77"]
[22073,{"$f":"Menu!$F$29","v":"X"},{"$f":"Menu!$J$29","v":2020},{"$f":"IF(ISBLANK(INDIRECT(\"'\"&F5218&\"'!\"&G5218)),\"\",INDIRECT(\"'\"&F5218&\"'!\"&G5218))","v":""},{"$f":"IF(ISBLANK(INDIRECT(\"'\"&F5218&\"'!\"&H5218)),\"\",IFERROR(VLOOKUP(TEXT(INDIRECT(\"'\"&F5218&\"'!\"&H5218),\"0\"),Notes!$B$5:$C$100,2,FALSE),\"\"))","v":""},"2c","$U$77","$V$77"]
[22074,{"$f":"Menu!$F$29","v":"X"},{"$f":"Menu!$J$29","v":2020},{"$f":"IF(ISBLANK(INDIRECT(\"'\"&F5219&\"'!\"&G5219)),\"\",INDIRECT(\"'\"&F5219&\"'!\"&G5219))","v":""},{"$f":"IF(ISBLANK(INDIRECT(\"'\"&F5219&\"'!\"&H5219)),\"\",IFERROR(VLOOKUP(TEXT(INDIRECT(\"'\"&F5219&\"'!\"&H5219),\"0\"),Notes!$B$5:$C$100,2,FALSE),\"\"))","v":""},"2c","$S$77","$T$77"]
[22075,{"$f":"Menu!$F$29","v":"X"},{"$f":"Menu!$J$29","v":2020},{"$f":"IF(ISBLANK(INDIRECT(\"'\"&F5220&\"'!\"&G5220)),\"\",INDIRECT(\"'\"&F5220&\"'!\"&G5220))","v":""},{"$f":"IF(ISBLANK(INDIRECT(\"'\"&F5220&\"'!\"&H5220)),\"\",IFERROR(VLOOKUP(TEXT(INDIRECT(\"'\"&F5220&\"'!\"&H5220),\"0\"),Notes!$B$5:$C$100,2,FALSE),\"\"))","v":""},"2c","$W$77","$X$77"]
[22076,{"$f":"Menu!$F$29","v":"X"},{"$f":"Menu!$J$29","v":2020},{"$f":"IF(ISBLANK(INDIRECT(\"'\"&F5221&\"'!\"&G5221)),\"\",INDIRECT(\"'\"&F5221&\"'!\"&G5221))","v":""},{"$f":"IF(ISBLANK(INDIRECT(\"'\"&F5221&\"'!\"&H5221)),\"\",IFERROR(VLOOKUP(TEXT(INDIRECT(\"'\"&F5221&\"'!\"&H5221),\"0\"),Notes!$B$5:$C$100,2,FALSE),\"\"))","v":""},"2c","$AA$77","$AB$77"]
[22077,{"$f":"Menu!$F$29","v":"X"},{"$f":"Menu!$J$29","v":2020},{"$f":"IF(ISBLANK(INDIRECT(\"'\"&F5222&\"'!\"&G5222)),\"\",INDIRECT(\"'\"&F5222&\"'!\"&G5222))","v":""},{"$f":"IF(ISBLANK(INDIRECT(\"'\"&F5222&\"'!\"&H5222)),\"\",IFERROR(VLOOKUP(TEXT(INDIRECT(\"'\"&F5222&\"'!\"&H5222),\"0\"),Notes!$B$5:$C$100,2,FALSE),\"\"))","v":""},"2c","$Y$77","$Z$77"]
[22078,{"$f":"Menu!$F$29","v":"X"},{"$f":"Menu!$J$29","v":2020},{"$f":"IF(ISBLANK(INDIRECT(\"'\"&F5223&\"'!\"&G5223)),\"\",INDIRECT(\"'\"&F5223&\"'!\"&G5223))","v":""},{"$f":"IF(ISBLANK(INDIRECT(\"'\"&F5223&\"'!\"&H5223)),\"\",IFERROR(VLOOKUP(TEXT(INDIRECT(\"'\"&F5223&\"'!\"&H5223),\"0\"),Notes!$B$5:$C$100,2,FALSE),\"\"))","v":""},"2c","$E$76","$F$76"]
[22079,{"$f":"Menu!$F$29","v":"X"},{"$f":"Menu!$J$29","v":2020},{"$f":"IF(ISBLANK(INDIRECT(\"'\"&F5224&\"'!\"&G5224)),\"\",INDIRECT(\"'\"&F5224&\"'!\"&G5224))","v":""},{"$f":"IF(ISBLANK(INDIRECT(\"'\"&F5224&\"'!\"&H5224)),\"\",IFERROR(VLOOKUP(TEXT(INDIRECT(\"'\"&F5224&\"'!\"&H5224),\"0\"),Notes!$B$5:$C$100,2,FALSE),\"\"))","v":""},"2c","$I$76","$J$76"]
[22080,{"$f":"Menu!$F$29","v":"X"},{"$f":"Menu!$J$29","v":2020},{"$f":"IF(ISBLANK(INDIRECT(\"'\"&F5225&\"'!\"&G5225)),\"\",INDIRECT(\"'\"&F5225&\"'!\"&G5225))","v":""},{"$f":"IF(ISBLANK(INDIRECT(\"'\"&F5225&\"'!\"&H5225)),\"\",IFERROR(VLOOKUP(TEXT(INDIRECT(\"'\"&F5225&\"'!\"&H5225),\"0\"),Notes!$B$5:$C$100,2,FALSE),\"\"))","v":""},"2c","$G$76","$H$76"]
[22081,{"$f":"Menu!$F$29","v":"X"},{"$f":"Menu!$J$29","v":2020},{"$f":"IF(ISBLANK(INDIRECT(\"'\"&F5226&\"'!\"&G5226)),\"\",INDIRECT(\"'\"&F5226&\"'!\"&G5226))","v":""},{"$f":"IF(ISBLANK(INDIRECT(\"'\"&F5226&\"'!\"&H5226)),\"\",IFERROR(VLOOKUP(TEXT(INDIRECT(\"'\"&F5226&\"'!\"&H5226),\"0\"),Notes!$B$5:$C$100,2,FALSE),\"\"))","v":""},"2c","$K$76","$L$76"]
[22082,{"$f":"Menu!$F$29","v":"X"},{"$f":"Menu!$J$29","v":2020},{"$f":"IF(ISBLANK(INDIRECT(\"'\"&F5227&\"'!\"&G5227)),\"\",INDIRECT(\"'\"&F5227&\"'!\"&G5227))","v":""},{"$f":"IF(ISBLANK(INDIRECT(\"'\"&F5227&\"'!\"&H5227)),\"\",IFERROR(VLOOKUP(TEXT(INDIRECT(\"'\"&F5227&\"'!\"&H5227),\"0\"),Notes!$B$5:$C$100,2,FALSE),\"\"))","v":""},"2c","$O$76","$P$76"]
[22083,{"$f":"Menu!$F$29","v":"X"},{"$f":"Menu!$J$29","v":2020},{"$f":"IF(ISBLANK(INDIRECT(\"'\"&F5228&\"'!\"&G5228)),\"\",INDIRECT(\"'\"&F5228&\"'!\"&G5228))","v":""},{"$f":"IF(ISBLANK(INDIRECT(\"'\"&F5228&\"'!\"&H5228)),\"\",IFERROR(VLOOKUP(TEXT(INDIRECT(\"'\"&F5228&\"'!\"&H5228),\"0\"),Notes!$B$5:$C$100,2,FALSE),\"\"))","v":""},"2c","$M$76","$N$76"]
[22084,{"$f":"Menu!$F$29","v":"X"},{"$f":"Menu!$J$29","v":2020},{"$f":"IF(ISBLANK(INDIRECT(\"'\"&F5229&\"'!\"&G5229)),\"\",INDIRECT(\"'\"&F5229&\"'!\"&G5229))","v":""},{"$f":"IF(ISBLANK(INDIRECT(\"'\"&F5229&\"'!\"&H5229)),\"\",IFERROR(VLOOKUP(TEXT(INDIRECT(\"'\"&F5229&\"'!\"&H5229),\"0\"),Notes!$B$5:$C$100,2,FALSE),\"\"))","v":""},"2c","$Q$76","$R$76"]
[22085,{"$f":"Menu!$F$29","v":"X"},{"$f":"Menu!$J$29","v":2020},{"$f":"IF(ISBLANK(INDIRECT(\"'\"&F5230&\"'!\"&G5230)),\"\",INDIRECT(\"'\"&F5230&\"'!\"&G5230))","v":""},{"$f":"IF(ISBLANK(INDIRECT(\"'\"&F5230&\"'!\"&H5230)),\"\",IFERROR(VLOOKUP(TEXT(INDIRECT(\"'\"&F5230&\"'!\"&H5230),\"0\"),Notes!$B$5:$C$100,2,FALSE),\"\"))","v":""},"2c","$U$76","$V$76"]
[22086,{"$f":"Menu!$F$29","v":"X"},{"$f":"Menu!$J$29","v":2020},{"$f":"IF(ISBLANK(INDIRECT(\"'\"&F5231&\"'!\"&G5231)),\"\",INDIRECT(\"'\"&F5231&\"'!\"&G5231))","v":""},{"$f":"IF(ISBLANK(INDIRECT(\"'\"&F5231&\"'!\"&H5231)),\"\",IFERROR(VLOOKUP(TEXT(INDIRECT(\"'\"&F5231&\"'!\"&H5231),\"0\"),Notes!$B$5:$C$100,2,FALSE),\"\"))","v":""},"2c","$S$76","$T$76"]
[22087,{"$f":"Menu!$F$29","v":"X"},{"$f":"Menu!$J$29","v":2020},{"$f":"IF(ISBLANK(INDIRECT(\"'\"&F5232&\"'!\"&G5232)),\"\",INDIRECT(\"'\"&F5232&\"'!\"&G5232))","v":""},{"$f":"IF(ISBLANK(INDIRECT(\"'\"&F5232&\"'!\"&H5232)),\"\",IFERROR(VLOOKUP(TEXT(INDIRECT(\"'\"&F5232&\"'!\"&H5232),\"0\"),Notes!$B$5:$C$100,2,FALSE),\"\"))","v":""},"2c","$W$76","$X$76"]
[22088,{"$f":"Menu!$F$29","v":"X"},{"$f":"Menu!$J$29","v":2020},{"$f":"IF(ISBLANK(INDIRECT(\"'\"&F5233&\"'!\"&G5233)),\"\",INDIRECT(\"'\"&F5233&\"'!\"&G5233))","v":""},{"$f":"IF(ISBLANK(INDIRECT(\"'\"&F5233&\"'!\"&H5233)),\"\",IFERROR(VLOOKUP(TEXT(INDIRECT(\"'\"&F5233&\"'!\"&H5233),\"0\"),Notes!$B$5:$C$100,2,FALSE),\"\"))","v":""},"2c","$AA$76","$AB$76"]
[22089,{"$f":"Menu!$F$29","v":"X"},{"$f":"Menu!$J$29","v":2020},{"$f":"IF(ISBLANK(INDIRECT(\"'\"&F5234&\"'!\"&G5234)),\"\",INDIRECT(\"'\"&F5234&\"'!\"&G5234))","v":""},{"$f":"IF(ISBLANK(INDIRECT(\"'\"&F5234&\"'!\"&H5234)),\"\",IFERROR(VLOOKUP(TEXT(INDIRECT(\"'\"&F5234&\"'!\"&H5234),\"0\"),Notes!$B$5:$C$100,2,FALSE),\"\"))","v":""},"2c","$Y$76","$Z$76"]
[22105,{"$f":"Menu!$F$29","v":"X"},{"$f":"Menu!$J$29","v":2020},{"$f":"IF(ISBLANK(INDIRECT(\"'\"&F5235&\"'!\"&G5235)),\"\",INDIRECT(\"'\"&F5235&\"'!\"&G5235))","v":""},{"$f":"IF(ISBLANK(INDIRECT(\"'\"&F5235&\"'!\"&H5235)),\"\",IFERROR(VLOOKUP(TEXT(INDIRECT(\"'\"&F5235&\"'!\"&H5235),\"0\"),Notes!$B$5:$C$100,2,FALSE),\"\"))","v":""},"2d","$AC$85","$AD$85"]
[22106,{"$f":"Menu!$F$29","v":"X"},{"$f":"Menu!$J$29","v":2020},{"$f":"IF(ISBLANK(INDIRECT(\"'\"&F5236&\"'!\"&G5236)),\"\",INDIRECT(\"'\"&F5236&\"'!\"&G5236))","v":""},{"$f":"IF(ISBLANK(INDIRECT(\"'\"&F5236&\"'!\"&H5236)),\"\",IFERROR(VLOOKUP(TEXT(INDIRECT(\"'\"&F5236&\"'!\"&H5236),\"0\"),Notes!$B$5:$C$100,2,FALSE),\"\"))","v":""},"2d","$AG$85","$AH$85"]
[22107,{"$f":"Menu!$F$29","v":"X"},{"$f":"Menu!$J$29","v":2020},{"$f":"IF(ISBLANK(INDIRECT(\"'\"&F5237&\"'!\"&G5237)),\"\",INDIRECT(\"'\"&F5237&\"'!\"&G5237))","v":""},{"$f":"IF(ISBLANK(INDIRECT(\"'\"&F5237&\"'!\"&H5237)),\"\",IFERROR(VLOOKUP(TEXT(INDIRECT(\"'\"&F5237&\"'!\"&H5237),\"0\"),Notes!$B$5:$C$100,2,FALSE),\"\"))","v":""},"2d","$AE$85","$AF$85"]
[22108,{"$f":"Menu!$F$29","v":"X"},{"$f":"Menu!$J$29","v":2020},{"$f":"IF(ISBLANK(INDIRECT(\"'\"&F5238&\"'!\"&G5238)),\"\",INDIRECT(\"'\"&F5238&\"'!\"&G5238))","v":""},{"$f":"IF(ISBLANK(INDIRECT(\"'\"&F5238&\"'!\"&H5238)),\"\",IFERROR(VLOOKUP(TEXT(INDIRECT(\"'\"&F5238&\"'!\"&H5238),\"0\"),Notes!$B$5:$C$100,2,FALSE),\"\"))","v":""},"2d","$W$85","$X$85"]
[22109,{"$f":"Menu!$F$29","v":"X"},{"$f":"Menu!$J$29","v":2020},{"$f":"IF(ISBLANK(INDIRECT(\"'\"&F5239&\"'!\"&G5239)),\"\",INDIRECT(\"'\"&F5239&\"'!\"&G5239))","v":""},{"$f":"IF(ISBLANK(INDIRECT(\"'\"&F5239&\"'!\"&H5239)),\"\",IFERROR(VLOOKUP(TEXT(INDIRECT(\"'\"&F5239&\"'!\"&H5239),\"0\"),Notes!$B$5:$C$100,2,FALSE),\"\"))","v":""},"2d","$AA$85","$AB$85"]
[22110,{"$f":"Menu!$F$29","v":"X"},{"$f":"Menu!$J$29","v":2020},{"$f":"IF(ISBLANK(INDIRECT(\"'\"&F5240&\"'!\"&G5240)),\"\",INDIRECT(\"'\"&F5240&\"'!\"&G5240))","v":""},{"$f":"IF(ISBLANK(INDIRECT(\"'\"&F5240&\"'!\"&H5240)),\"\",IFERROR(VLOOKUP(TEXT(INDIRECT(\"'\"&F5240&\"'!\"&H5240),\"0\"),Notes!$B$5:$C$100,2,FALSE),\"\"))","v":""},"2d","$Y$85","$Z$85"]
[22111,{"$f":"Menu!$F$29","v":"X"},{"$f":"Menu!$J$29","v":2020},{"$f":"IF(ISBLANK(INDIRECT(\"'\"&F5241&\"'!\"&G5241)),\"\",INDIRECT(\"'\"&F5241&\"'!\"&G5241))","v":""},{"$f":"IF(ISBLANK(INDIRECT(\"'\"&F5241&\"'!\"&H5241)),\"\",IFERROR(VLOOKUP(TEXT(INDIRECT(\"'\"&F5241&\"'!\"&H5241),\"0\"),Notes!$B$5:$C$100,2,FALSE),\"\"))","v":""},"2d","$E$85","$F$85"]
[22112,{"$f":"Menu!$F$29","v":"X"},{"$f":"Menu!$J$29","v":2020},{"$f":"IF(ISBLANK(INDIRECT(\"'\"&F5242&\"'!\"&G5242)),\"\",INDIRECT(\"'\"&F5242&\"'!\"&G5242))","v":""},{"$f":"IF(ISBLANK(INDIRECT(\"'\"&F5242&\"'!\"&H5242)),\"\",IFERROR(VLOOKUP(TEXT(INDIRECT(\"'\"&F5242&\"'!\"&H5242),\"0\"),Notes!$B$5:$C$100,2,FALSE),\"\"))","v":""},"2d","$I$85","$J$85"]
[22113,{"$f":"Menu!$F$29","v":"X"},{"$f":"Menu!$J$29","v":2020},{"$f":"IF(ISBLANK(INDIRECT(\"'\"&F5243&\"'!\"&G5243)),\"\",INDIRECT(\"'\"&F5243&\"'!\"&G5243))","v":""},{"$f":"IF(ISBLANK(INDIRECT(\"'\"&F5243&\"'!\"&H5243)),\"\",IFERROR(VLOOKUP(TEXT(INDIRECT(\"'\"&F5243&\"'!\"&H5243),\"0\"),Notes!$B$5:$C$100,2,FALSE),\"\"))","v":""},"2d","$G$85","$H$85"]
[22114,{"$f":"Menu!$F$29","v":"X"},{"$f":"Menu!$J$29","v":2020},{"$f":"IF(ISBLANK(INDIRECT(\"'\"&F5244&\"'!\"&G5244)),\"\",INDIRECT(\"'\"&F5244&\"'!\"&G5244))","v":""},{"$f":"IF(ISBLANK(INDIRECT(\"'\"&F5244&\"'!\"&H5244)),\"\",IFERROR(VLOOKUP(TEXT(INDIRECT(\"'\"&F5244&\"'!\"&H5244),\"0\"),Notes!$B$5:$C$100,2,FALSE),\"\"))","v":""},"2d","$K$85","$L$85"]
[22115,{"$f":"Menu!$F$29","v":"X"},{"$f":"Menu!$J$29","v":2020},{"$f":"IF(ISBLANK(INDIRECT(\"'\"&F5245&\"'!\"&G5245)),\"\",INDIRECT(\"'\"&F5245&\"'!\"&G5245))","v":""},{"$f":"IF(ISBLANK(INDIRECT(\"'\"&F5245&\"'!\"&H5245)),\"\",IFERROR(VLOOKUP(TEXT(INDIRECT(\"'\"&F5245&\"'!\"&H5245),\"0\"),Notes!$B$5:$C$100,2,FALSE),\"\"))","v":""},"2d","$O$85","$P$85"]
[22116,{"$f":"Menu!$F$29","v":"X"},{"$f":"Menu!$J$29","v":2020},{"$f":"IF(ISBLANK(INDIRECT(\"'\"&F5246&\"'!\"&G5246)),\"\",INDIRECT(\"'\"&F5246&\"'!\"&G5246))","v":""},{"$f":"IF(ISBLANK(INDIRECT(\"'\"&F5246&\"'!\"&H5246)),\"\",IFERROR(VLOOKUP(TEXT(INDIRECT(\"'\"&F5246&\"'!\"&H5246),\"0\"),Notes!$B$5:$C$100,2,FALSE),\"\"))","v":""},"2d","$M$85","$N$85"]
[22117,{"$f":"Menu!$F$29","v":"X"},{"$f":"Menu!$J$29","v":2020},{"$f":"IF(ISBLANK(INDIRECT(\"'\"&F5247&\"'!\"&G5247)),\"\",INDIRECT(\"'\"&F5247&\"'!\"&G5247))","v":""},{"$f":"IF(ISBLANK(INDIRECT(\"'\"&F5247&\"'!\"&H5247)),\"\",IFERROR(VLOOKUP(TEXT(INDIRECT(\"'\"&F5247&\"'!\"&H5247),\"0\"),Notes!$B$5:$C$100,2,FALSE),\"\"))","v":""},"2d","$Q$85","$R$85"]
[22118,{"$f":"Menu!$F$29","v":"X"},{"$f":"Menu!$J$29","v":2020},{"$f":"IF(ISBLANK(INDIRECT(\"'\"&F5248&\"'!\"&G5248)),\"\",INDIRECT(\"'\"&F5248&\"'!\"&G5248))","v":""},{"$f":"IF(ISBLANK(INDIRECT(\"'\"&F5248&\"'!\"&H5248)),\"\",IFERROR(VLOOKUP(TEXT(INDIRECT(\"'\"&F5248&\"'!\"&H5248),\"0\"),Notes!$B$5:$C$100,2,FALSE),\"\"))","v":""},"2d","$U$85","$V$85"]
[22119,{"$f":"Menu!$F$29","v":"X"},{"$f":"Menu!$J$29","v":2020},{"$f":"IF(ISBLANK(INDIRECT(\"'\"&F5249&\"'!\"&G5249)),\"\",INDIRECT(\"'\"&F5249&\"'!\"&G5249))","v":""},{"$f":"IF(ISBLANK(INDIRECT(\"'\"&F5249&\"'!\"&H5249)),\"\",IFERROR(VLOOKUP(TEXT(INDIRECT(\"'\"&F5249&\"'!\"&H5249),\"0\"),Notes!$B$5:$C$100,2,FALSE),\"\"))","v":""},"2d","$S$85","$T$85"]
[22120,{"$f":"Menu!$F$29","v":"X"},{"$f":"Menu!$J$29","v":2020},{"$f":"IF(ISBLANK(INDIRECT(\"'\"&F5250&\"'!\"&G5250)),\"\",INDIRECT(\"'\"&F5250&\"'!\"&G5250))","v":""},{"$f":"IF(ISBLANK(INDIRECT(\"'\"&F5250&\"'!\"&H5250)),\"\",IFERROR(VLOOKUP(TEXT(INDIRECT(\"'\"&F5250&\"'!\"&H5250),\"0\"),Notes!$B$5:$C$100,2,FALSE),\"\"))","v":""},"2d","$AC$84",{"$f":"IF(LEN(TRIM(MID(G5250,4,10)))-LEN(SUBSTITUTE(TRIM(MID(G5250,4,10)),\"$\",\"\"))=0,\"$\"&CHAR(CODE(MID(G5250,2,1))+1)&\"$\"&TRIM(MID(G5250,4,10)),\"$\"&MID(G5250,2,1)&CHAR(CODE(MID(G5250,3,1))+1)&\"$\"&TRIM(MID(G5250,5,11)))","v":"$AD$84"}]
[22121,{"$f":"Menu!$F$29","v":"X"},{"$f":"Menu!$J$29","v":2020},{"$f":"IF(ISBLANK(INDIRECT(\"'\"&F5251&\"'!\"&G5251)),\"\",INDIRECT(\"'\"&F5251&\"'!\"&G5251))","v":""},{"$f":"IF(ISBLANK(INDIRECT(\"'\"&F5251&\"'!\"&H5251)),\"\",IFERROR(VLOOKUP(TEXT(INDIRECT(\"'\"&F5251&\"'!\"&H5251),\"0\"),Notes!$B$5:$C$100,2,FALSE),\"\"))","v":""},"2d","$AG$84","$AH$84"]
[22122,{"$f":"Menu!$F$29","v":"X"},{"$f":"Menu!$J$29","v":2020},{"$f":"IF(ISBLANK(INDIRECT(\"'\"&F5252&\"'!\"&G5252)),\"\",INDIRECT(\"'\"&F5252&\"'!\"&G5252))","v":""},{"$f":"IF(ISBLANK(INDIRECT(\"'\"&F5252&\"'!\"&H5252)),\"\",IFERROR(VLOOKUP(TEXT(INDIRECT(\"'\"&F5252&\"'!\"&H5252),\"0\"),Notes!$B$5:$C$100,2,FALSE),\"\"))","v":""},"2d","$AE$84","$AF$84"]
[22123,{"$f":"Menu!$F$29","v":"X"},{"$f":"Menu!$J$29","v":2020},{"$f":"IF(ISBLANK(INDIRECT(\"'\"&F5253&\"'!\"&G5253)),\"\",INDIRECT(\"'\"&F5253&\"'!\"&G5253))","v":""},{"$f":"IF(ISBLANK(INDIRECT(\"'\"&F5253&\"'!\"&H5253)),\"\",IFERROR(VLOOKUP(TEXT(INDIRECT(\"'\"&F5253&\"'!\"&H5253),\"0\"),Notes!$B$5:$C$100,2,FALSE),\"\"))","v":""},"2d","$W$84","$X$84"]
[22124,{"$f":"Menu!$F$29","v":"X"},{"$f":"Menu!$J$29","v":2020},{"$f":"IF(ISBLANK(INDIRECT(\"'\"&F5254&\"'!\"&G5254)),\"\",INDIRECT(\"'\"&F5254&\"'!\"&G5254))","v":""},{"$f":"IF(ISBLANK(INDIRECT(\"'\"&F5254&\"'!\"&H5254)),\"\",IFERROR(VLOOKUP(TEXT(INDIRECT(\"'\"&F5254&\"'!\"&H5254),\"0\"),Notes!$B$5:$C$100,2,FALSE),\"\"))","v":""},"2d","$AA$84","$AB$84"]
[22125,{"$f":"Menu!$F$29","v":"X"},{"$f":"Menu!$J$29","v":2020},{"$f":"IF(ISBLANK(INDIRECT(\"'\"&F5255&\"'!\"&G5255)),\"\",INDIRECT(\"'\"&F5255&\"'!\"&G5255))","v":""},{"$f":"IF(ISBLANK(INDIRECT(\"'\"&F5255&\"'!\"&H5255)),\"\",IFERROR(VLOOKUP(TEXT(INDIRECT(\"'\"&F5255&\"'!\"&H5255),\"0\"),Notes!$B$5:$C$100,2,FALSE),\"\"))","v":""},"2d","$Y$84","$Z$84"]
[22126,{"$f":"Menu!$F$29","v":"X"},{"$f":"Menu!$J$29","v":2020},{"$f":"IF(ISBLANK(INDIRECT(\"'\"&F5256&\"'!\"&G5256)),\"\",INDIRECT(\"'\"&F5256&\"'!\"&G5256))","v":""},{"$f":"IF(ISBLANK(INDIRECT(\"'\"&F5256&\"'!\"&H5256)),\"\",IFERROR(VLOOKUP(TEXT(INDIRECT(\"'\"&F5256&\"'!\"&H5256),\"0\"),Notes!$B$5:$C$100,2,FALSE),\"\"))","v":""},"2d","$E$84","$F$84"]
[22127,{"$f":"Menu!$F$29","v":"X"},{"$f":"Menu!$J$29","v":2020},{"$f":"IF(ISBLANK(INDIRECT(\"'\"&F5257&\"'!\"&G5257)),\"\",INDIRECT(\"'\"&F5257&\"'!\"&G5257))","v":""},{"$f":"IF(ISBLANK(INDIRECT(\"'\"&F5257&\"'!\"&H5257)),\"\",IFERROR(VLOOKUP(TEXT(INDIRECT(\"'\"&F5257&\"'!\"&H5257),\"0\"),Notes!$B$5:$C$100,2,FALSE),\"\"))","v":""},"2d","$I$84","$J$84"]
[22128,{"$f":"Menu!$F$29","v":"X"},{"$f":"Menu!$J$29","v":2020},{"$f":"IF(ISBLANK(INDIRECT(\"'\"&F5258&\"'!\"&G5258)),\"\",INDIRECT(\"'\"&F5258&\"'!\"&G5258))","v":""},{"$f":"IF(ISBLANK(INDIRECT(\"'\"&F5258&\"'!\"&H5258)),\"\",IFERROR(VLOOKUP(TEXT(INDIRECT(\"'\"&F5258&\"'!\"&H5258),\"0\"),Notes!$B$5:$C$100,2,FALSE),\"\"))","v":""},"2d","$G$84","$H$84"]
[22129,{"$f":"Menu!$F$29","v":"X"},{"$f":"Menu!$J$29","v":2020},{"$f":"IF(ISBLANK(INDIRECT(\"'\"&F5259&\"'!\"&G5259)),\"\",INDIRECT(\"'\"&F5259&\"'!\"&G5259))","v":""},{"$f":"IF(ISBLANK(INDIRECT(\"'\"&F5259&\"'!\"&H5259)),\"\",IFERROR(VLOOKUP(TEXT(INDIRECT(\"'\"&F5259&\"'!\"&H5259),\"0\"),Notes!$B$5:$C$100,2,FALSE),\"\"))","v":""},"2d","$K$84","$L$84"]
[22130,{"$f":"Menu!$F$29","v":"X"},{"$f":"Menu!$J$29","v":2020},{"$f":"IF(ISBLANK(INDIRECT(\"'\"&F5260&\"'!\"&G5260)),\"\",INDIRECT(\"'\"&F5260&\"'!\"&G5260))","v":""},{"$f":"IF(ISBLANK(INDIRECT(\"'\"&F5260&\"'!\"&H5260)),\"\",IFERROR(VLOOKUP(TEXT(INDIRECT(\"'\"&F5260&\"'!\"&H5260),\"0\"),Notes!$B$5:$C$100,2,FALSE),\"\"))","v":""},"2d","$O$84","$P$84"]
[22131,{"$f":"Menu!$F$29","v":"X"},{"$f":"Menu!$J$29","v":2020},{"$f":"IF(ISBLANK(INDIRECT(\"'\"&F5261&\"'!\"&G5261)),\"\",INDIRECT(\"'\"&F5261&\"'!\"&G5261))","v":""},{"$f":"IF(ISBLANK(INDIRECT(\"'\"&F5261&\"'!\"&H5261)),\"\",IFERROR(VLOOKUP(TEXT(INDIRECT(\"'\"&F5261&\"'!\"&H5261),\"0\"),Notes!$B$5:$C$100,2,FALSE),\"\"))","v":""},"2d","$M$84","$N$84"]
[22132,{"$f":"Menu!$F$29","v":"X"},{"$f":"Menu!$J$29","v":2020},{"$f":"IF(ISBLANK(INDIRECT(\"'\"&F5262&\"'!\"&G5262)),\"\",INDIRECT(\"'\"&F5262&\"'!\"&G5262))","v":""},{"$f":"IF(ISBLANK(INDIRECT(\"'\"&F5262&\"'!\"&H5262)),\"\",IFERROR(VLOOKUP(TEXT(INDIRECT(\"'\"&F5262&\"'!\"&H5262),\"0\"),Notes!$B$5:$C$100,2,FALSE),\"\"))","v":""},"2d","$Q$84","$R$84"]
[22133,{"$f":"Menu!$F$29","v":"X"},{"$f":"Menu!$J$29","v":2020},{"$f":"IF(ISBLANK(INDIRECT(\"'\"&F5263&\"'!\"&G5263)),\"\",INDIRECT(\"'\"&F5263&\"'!\"&G5263))","v":""},{"$f":"IF(ISBLANK(INDIRECT(\"'\"&F5263&\"'!\"&H5263)),\"\",IFERROR(VLOOKUP(TEXT(INDIRECT(\"'\"&F5263&\"'!\"&H5263),\"0\"),Notes!$B$5:$C$100,2,FALSE),\"\"))","v":""},"2d","$U$84","$V$84"]
[22134,{"$f":"Menu!$F$29","v":"X"},{"$f":"Menu!$J$29","v":2020},{"$f":"IF(ISBLANK(INDIRECT(\"'\"&F5264&\"'!\"&G5264)),\"\",INDIRECT(\"'\"&F5264&\"'!\"&G5264))","v":""},{"$f":"IF(ISBLANK(INDIRECT(\"'\"&F5264&\"'!\"&H5264)),\"\",IFERROR(VLOOKUP(TEXT(INDIRECT(\"'\"&F5264&\"'!\"&H5264),\"0\"),Notes!$B$5:$C$100,2,FALSE),\"\"))","v":""},"2d","$S$84","$T$84"]
[22135,{"$f":"Menu!$F$29","v":"X"},{"$f":"Menu!$J$29","v":2020},{"$f":"IF(ISBLANK(INDIRECT(\"'\"&F5265&\"'!\"&G5265)),\"\",INDIRECT(\"'\"&F5265&\"'!\"&G5265))","v":""},{"$f":"IF(ISBLANK(INDIRECT(\"'\"&F5265&\"'!\"&H5265)),\"\",IFERROR(VLOOKUP(TEXT(INDIRECT(\"'\"&F5265&\"'!\"&H5265),\"0\"),Notes!$B$5:$C$100,2,FALSE),\"\"))","v":""},"2d","$AC$83","$AD$83"]
[22136,{"$f":"Menu!$F$29","v":"X"},{"$f":"Menu!$J$29","v":2020},{"$f":"IF(ISBLANK(INDIRECT(\"'\"&F5266&\"'!\"&G5266)),\"\",INDIRECT(\"'\"&F5266&\"'!\"&G5266))","v":""},{"$f":"IF(ISBLANK(INDIRECT(\"'\"&F5266&\"'!\"&H5266)),\"\",IFERROR(VLOOKUP(TEXT(INDIRECT(\"'\"&F5266&\"'!\"&H5266),\"0\"),Notes!$B$5:$C$100,2,FALSE),\"\"))","v":""},"2d","$AG$83","$AH$83"]
[22137,{"$f":"Menu!$F$29","v":"X"},{"$f":"Menu!$J$29","v":2020},{"$f":"IF(ISBLANK(INDIRECT(\"'\"&F5267&\"'!\"&G5267)),\"\",INDIRECT(\"'\"&F5267&\"'!\"&G5267))","v":""},{"$f":"IF(ISBLANK(INDIRECT(\"'\"&F5267&\"'!\"&H5267)),\"\",IFERROR(VLOOKUP(TEXT(INDIRECT(\"'\"&F5267&\"'!\"&H5267),\"0\"),Notes!$B$5:$C$100,2,FALSE),\"\"))","v":""},"2d","$AE$83","$AF$83"]
[22138,{"$f":"Menu!$F$29","v":"X"},{"$f":"Menu!$J$29","v":2020},{"$f":"IF(ISBLANK(INDIRECT(\"'\"&F5268&\"'!\"&G5268)),\"\",INDIRECT(\"'\"&F5268&\"'!\"&G5268))","v":""},{"$f":"IF(ISBLANK(INDIRECT(\"'\"&F5268&\"'!\"&H5268)),\"\",IFERROR(VLOOKUP(TEXT(INDIRECT(\"'\"&F5268&\"'!\"&H5268),\"0\"),Notes!$B$5:$C$100,2,FALSE),\"\"))","v":""},"2d","$W$83","$X$83"]
[22139,{"$f":"Menu!$F$29","v":"X"},{"$f":"Menu!$J$29","v":2020},{"$f":"IF(ISBLANK(INDIRECT(\"'\"&F5269&\"'!\"&G5269)),\"\",INDIRECT(\"'\"&F5269&\"'!\"&G5269))","v":""},{"$f":"IF(ISBLANK(INDIRECT(\"'\"&F5269&\"'!\"&H5269)),\"\",IFERROR(VLOOKUP(TEXT(INDIRECT(\"'\"&F5269&\"'!\"&H5269),\"0\"),Notes!$B$5:$C$100,2,FALSE),\"\"))","v":""},"2d","$AA$83","$AB$83"]
[22140,{"$f":"Menu!$F$29","v":"X"},{"$f":"Menu!$J$29","v":2020},{"$f":"IF(ISBLANK(INDIRECT(\"'\"&F5270&\"'!\"&G5270)),\"\",INDIRECT(\"'\"&F5270&\"'!\"&G5270))","v":""},{"$f":"IF(ISBLANK(INDIRECT(\"'\"&F5270&\"'!\"&H5270)),\"\",IFERROR(VLOOKUP(TEXT(INDIRECT(\"'\"&F5270&\"'!\"&H5270),\"0\"),Notes!$B$5:$C$100,2,FALSE),\"\"))","v":""},"2d","$Y$83","$Z$83"]
[22141,{"$f":"Menu!$F$29","v":"X"},{"$f":"Menu!$J$29","v":2020},{"$f":"IF(ISBLANK(INDIRECT(\"'\"&F5271&\"'!\"&G5271)),\"\",INDIRECT(\"'\"&F5271&\"'!\"&G5271))","v":""},{"$f":"IF(ISBLANK(INDIRECT(\"'\"&F5271&\"'!\"&H5271)),\"\",IFERROR(VLOOKUP(TEXT(INDIRECT(\"'\"&F5271&\"'!\"&H5271),\"0\"),Notes!$B$5:$C$100,2,FALSE),\"\"))","v":""},"2d","$E$83","$F$83"]
[22142,{"$f":"Menu!$F$29","v":"X"},{"$f":"Menu!$J$29","v":2020},{"$f":"IF(ISBLANK(INDIRECT(\"'\"&F5272&\"'!\"&G5272)),\"\",INDIRECT(\"'\"&F5272&\"'!\"&G5272))","v":""},{"$f":"IF(ISBLANK(INDIRECT(\"'\"&F5272&\"'!\"&H5272)),\"\",IFERROR(VLOOKUP(TEXT(INDIRECT(\"'\"&F5272&\"'!\"&H5272),\"0\"),Notes!$B$5:$C$100,2,FALSE),\"\"))","v":""},"2d","$I$83","$J$83"]
[22143,{"$f":"Menu!$F$29","v":"X"},{"$f":"Menu!$J$29","v":2020},{"$f":"IF(ISBLANK(INDIRECT(\"'\"&F5273&\"'!\"&G5273)),\"\",INDIRECT(\"'\"&F5273&\"'!\"&G5273))","v":""},{"$f":"IF(ISBLANK(INDIRECT(\"'\"&F5273&\"'!\"&H5273)),\"\",IFERROR(VLOOKUP(TEXT(INDIRECT(\"'\"&F5273&\"'!\"&H5273),\"0\"),Notes!$B$5:$C$100,2,FALSE),\"\"))","v":""},"2d","$G$83","$H$83"]
[22144,{"$f":"Menu!$F$29","v":"X"},{"$f":"Menu!$J$29","v":2020},{"$f":"IF(ISBLANK(INDIRECT(\"'\"&F5274&\"'!\"&G5274)),\"\",INDIRECT(\"'\"&F5274&\"'!\"&G5274))","v":""},{"$f":"IF(ISBLANK(INDIRECT(\"'\"&F5274&\"'!\"&H5274)),\"\",IFERROR(VLOOKUP(TEXT(INDIRECT(\"'\"&F5274&\"'!\"&H5274),\"0\"),Notes!$B$5:$C$100,2,FALSE),\"\"))","v":""},"2d","$K$83","$L$83"]
[22145,{"$f":"Menu!$F$29","v":"X"},{"$f":"Menu!$J$29","v":2020},{"$f":"IF(ISBLANK(INDIRECT(\"'\"&F5275&\"'!\"&G5275)),\"\",INDIRECT(\"'\"&F5275&\"'!\"&G5275))","v":""},{"$f":"IF(ISBLANK(INDIRECT(\"'\"&F5275&\"'!\"&H5275)),\"\",IFERROR(VLOOKUP(TEXT(INDIRECT(\"'\"&F5275&\"'!\"&H5275),\"0\"),Notes!$B$5:$C$100,2,FALSE),\"\"))","v":""},"2d","$O$83","$P$83"]
[22146,{"$f":"Menu!$F$29","v":"X"},{"$f":"Menu!$J$29","v":2020},{"$f":"IF(ISBLANK(INDIRECT(\"'\"&F5276&\"'!\"&G5276)),\"\",INDIRECT(\"'\"&F5276&\"'!\"&G5276))","v":""},{"$f":"IF(ISBLANK(INDIRECT(\"'\"&F5276&\"'!\"&H5276)),\"\",IFERROR(VLOOKUP(TEXT(INDIRECT(\"'\"&F5276&\"'!\"&H5276),\"0\"),Notes!$B$5:$C$100,2,FALSE),\"\"))","v":""},"2d","$M$83","$N$83"]
[22147,{"$f":"Menu!$F$29","v":"X"},{"$f":"Menu!$J$29","v":2020},{"$f":"IF(ISBLANK(INDIRECT(\"'\"&F5277&\"'!\"&G5277)),\"\",INDIRECT(\"'\"&F5277&\"'!\"&G5277))","v":""},{"$f":"IF(ISBLANK(INDIRECT(\"'\"&F5277&\"'!\"&H5277)),\"\",IFERROR(VLOOKUP(TEXT(INDIRECT(\"'\"&F5277&\"'!\"&H5277),\"0\"),Notes!$B$5:$C$100,2,FALSE),\"\"))","v":""},"2d","$Q$83","$R$83"]
[22148,{"$f":"Menu!$F$29","v":"X"},{"$f":"Menu!$J$29","v":2020},{"$f":"IF(ISBLANK(INDIRECT(\"'\"&F5278&\"'!\"&G5278)),\"\",INDIRECT(\"'\"&F5278&\"'!\"&G5278))","v":""},{"$f":"IF(ISBLANK(INDIRECT(\"'\"&F5278&\"'!\"&H5278)),\"\",IFERROR(VLOOKUP(TEXT(INDIRECT(\"'\"&F5278&\"'!\"&H5278),\"0\"),Notes!$B$5:$C$100,2,FALSE),\"\"))","v":""},"2d","$U$83","$V$83"]
[22149,{"$f":"Menu!$F$29","v":"X"},{"$f":"Menu!$J$29","v":2020},{"$f":"IF(ISBLANK(INDIRECT(\"'\"&F5279&\"'!\"&G5279)),\"\",INDIRECT(\"'\"&F5279&\"'!\"&G5279))","v":""},{"$f":"IF(ISBLANK(INDIRECT(\"'\"&F5279&\"'!\"&H5279)),\"\",IFERROR(VLOOKUP(TEXT(INDIRECT(\"'\"&F5279&\"'!\"&H5279),\"0\"),Notes!$B$5:$C$100,2,FALSE),\"\"))","v":""},"2d","$S$83","$T$83"]
[22150,{"$f":"Menu!$F$29","v":"X"},{"$f":"Menu!$J$29","v":2020},{"$f":"IF(ISBLANK(INDIRECT(\"'\"&F5280&\"'!\"&G5280)),\"\",INDIRECT(\"'\"&F5280&\"'!\"&G5280))","v":""},{"$f":"IF(ISBLANK(INDIRECT(\"'\"&F5280&\"'!\"&H5280)),\"\",IFERROR(VLOOKUP(TEXT(INDIRECT(\"'\"&F5280&\"'!\"&H5280),\"0\"),Notes!$B$5:$C$100,2,FALSE),\"\"))","v":""},"2d","$AC$82","$AD$82"]
[22151,{"$f":"Menu!$F$29","v":"X"},{"$f":"Menu!$J$29","v":2020},{"$f":"IF(ISBLANK(INDIRECT(\"'\"&F5281&\"'!\"&G5281)),\"\",INDIRECT(\"'\"&F5281&\"'!\"&G5281))","v":""},{"$f":"IF(ISBLANK(INDIRECT(\"'\"&F5281&\"'!\"&H5281)),\"\",IFERROR(VLOOKUP(TEXT(INDIRECT(\"'\"&F5281&\"'!\"&H5281),\"0\"),Notes!$B$5:$C$100,2,FALSE),\"\"))","v":""},"2d","$AG$82","$AH$82"]
[22152,{"$f":"Menu!$F$29","v":"X"},{"$f":"Menu!$J$29","v":2020},{"$f":"IF(ISBLANK(INDIRECT(\"'\"&F5282&\"'!\"&G5282)),\"\",INDIRECT(\"'\"&F5282&\"'!\"&G5282))","v":""},{"$f":"IF(ISBLANK(INDIRECT(\"'\"&F5282&\"'!\"&H5282)),\"\",IFERROR(VLOOKUP(TEXT(INDIRECT(\"'\"&F5282&\"'!\"&H5282),\"0\"),Notes!$B$5:$C$100,2,FALSE),\"\"))","v":""},"2d","$AE$82","$AF$82"]
[22153,{"$f":"Menu!$F$29","v":"X"},{"$f":"Menu!$J$29","v":2020},{"$f":"IF(ISBLANK(INDIRECT(\"'\"&F5283&\"'!\"&G5283)),\"\",INDIRECT(\"'\"&F5283&\"'!\"&G5283))","v":""},{"$f":"IF(ISBLANK(INDIRECT(\"'\"&F5283&\"'!\"&H5283)),\"\",IFERROR(VLOOKUP(TEXT(INDIRECT(\"'\"&F5283&\"'!\"&H5283),\"0\"),Notes!$B$5:$C$100,2,FALSE),\"\"))","v":""},"2d","$W$82","$X$82"]
[22154,{"$f":"Menu!$F$29","v":"X"},{"$f":"Menu!$J$29","v":2020},{"$f":"IF(ISBLANK(INDIRECT(\"'\"&F5284&\"'!\"&G5284)),\"\",INDIRECT(\"'\"&F5284&\"'!\"&G5284))","v":""},{"$f":"IF(ISBLANK(INDIRECT(\"'\"&F5284&\"'!\"&H5284)),\"\",IFERROR(VLOOKUP(TEXT(INDIRECT(\"'\"&F5284&\"'!\"&H5284),\"0\"),Notes!$B$5:$C$100,2,FALSE),\"\"))","v":""},"2d","$AA$82","$AB$82"]
[22155,{"$f":"Menu!$F$29","v":"X"},{"$f":"Menu!$J$29","v":2020},{"$f":"IF(ISBLANK(INDIRECT(\"'\"&F5285&\"'!\"&G5285)),\"\",INDIRECT(\"'\"&F5285&\"'!\"&G5285))","v":""},{"$f":"IF(ISBLANK(INDIRECT(\"'\"&F5285&\"'!\"&H5285)),\"\",IFERROR(VLOOKUP(TEXT(INDIRECT(\"'\"&F5285&\"'!\"&H5285),\"0\"),Notes!$B$5:$C$100,2,FALSE),\"\"))","v":""},"2d","$Y$82","$Z$82"]
[22156,{"$f":"Menu!$F$29","v":"X"},{"$f":"Menu!$J$29","v":2020},{"$f":"IF(ISBLANK(INDIRECT(\"'\"&F5286&\"'!\"&G5286)),\"\",INDIRECT(\"'\"&F5286&\"'!\"&G5286))","v":""},{"$f":"IF(ISBLANK(INDIRECT(\"'\"&F5286&\"'!\"&H5286)),\"\",IFERROR(VLOOKUP(TEXT(INDIRECT(\"'\"&F5286&\"'!\"&H5286),\"0\"),Notes!$B$5:$C$100,2,FALSE),\"\"))","v":""},"2d","$E$82","$F$82"]
[22157,{"$f":"Menu!$F$29","v":"X"},{"$f":"Menu!$J$29","v":2020},{"$f":"IF(ISBLANK(INDIRECT(\"'\"&F5287&\"'!\"&G5287)),\"\",INDIRECT(\"'\"&F5287&\"'!\"&G5287))","v":""},{"$f":"IF(ISBLANK(INDIRECT(\"'\"&F5287&\"'!\"&H5287)),\"\",IFERROR(VLOOKUP(TEXT(INDIRECT(\"'\"&F5287&\"'!\"&H5287),\"0\"),Notes!$B$5:$C$100,2,FALSE),\"\"))","v":""},"2d","$I$82","$J$82"]
[22158,{"$f":"Menu!$F$29","v":"X"},{"$f":"Menu!$J$29","v":2020},{"$f":"IF(ISBLANK(INDIRECT(\"'\"&F5288&\"'!\"&G5288)),\"\",INDIRECT(\"'\"&F5288&\"'!\"&G5288))","v":""},{"$f":"IF(ISBLANK(INDIRECT(\"'\"&F5288&\"'!\"&H5288)),\"\",IFERROR(VLOOKUP(TEXT(INDIRECT(\"'\"&F5288&\"'!\"&H5288),\"0\"),Notes!$B$5:$C$100,2,FALSE),\"\"))","v":""},"2d","$G$82","$H$82"]
[22159,{"$f":"Menu!$F$29","v":"X"},{"$f":"Menu!$J$29","v":2020},{"$f":"IF(ISBLANK(INDIRECT(\"'\"&F5289&\"'!\"&G5289)),\"\",INDIRECT(\"'\"&F5289&\"'!\"&G5289))","v":""},{"$f":"IF(ISBLANK(INDIRECT(\"'\"&F5289&\"'!\"&H5289)),\"\",IFERROR(VLOOKUP(TEXT(INDIRECT(\"'\"&F5289&\"'!\"&H5289),\"0\"),Notes!$B$5:$C$100,2,FALSE),\"\"))","v":""},"2d","$K$82","$L$82"]
[22160,{"$f":"Menu!$F$29","v":"X"},{"$f":"Menu!$J$29","v":2020},{"$f":"IF(ISBLANK(INDIRECT(\"'\"&F5290&\"'!\"&G5290)),\"\",INDIRECT(\"'\"&F5290&\"'!\"&G5290))","v":""},{"$f":"IF(ISBLANK(INDIRECT(\"'\"&F5290&\"'!\"&H5290)),\"\",IFERROR(VLOOKUP(TEXT(INDIRECT(\"'\"&F5290&\"'!\"&H5290),\"0\"),Notes!$B$5:$C$100,2,FALSE),\"\"))","v":""},"2d","$O$82","$P$82"]
[22161,{"$f":"Menu!$F$29","v":"X"},{"$f":"Menu!$J$29","v":2020},{"$f":"IF(ISBLANK(INDIRECT(\"'\"&F5291&\"'!\"&G5291)),\"\",INDIRECT(\"'\"&F5291&\"'!\"&G5291))","v":""},{"$f":"IF(ISBLANK(INDIRECT(\"'\"&F5291&\"'!\"&H5291)),\"\",IFERROR(VLOOKUP(TEXT(INDIRECT(\"'\"&F5291&\"'!\"&H5291),\"0\"),Notes!$B$5:$C$100,2,FALSE),\"\"))","v":""},"2d","$M$82","$N$82"]
[22162,{"$f":"Menu!$F$29","v":"X"},{"$f":"Menu!$J$29","v":2020},{"$f":"IF(ISBLANK(INDIRECT(\"'\"&F5292&\"'!\"&G5292)),\"\",INDIRECT(\"'\"&F5292&\"'!\"&G5292))","v":""},{"$f":"IF(ISBLANK(INDIRECT(\"'\"&F5292&\"'!\"&H5292)),\"\",IFERROR(VLOOKUP(TEXT(INDIRECT(\"'\"&F5292&\"'!\"&H5292),\"0\"),Notes!$B$5:$C$100,2,FALSE),\"\"))","v":""},"2d","$Q$82","$R$82"]
[22163,{"$f":"Menu!$F$29","v":"X"},{"$f":"Menu!$J$29","v":2020},{"$f":"IF(ISBLANK(INDIRECT(\"'\"&F5293&\"'!\"&G5293)),\"\",INDIRECT(\"'\"&F5293&\"'!\"&G5293))","v":""},{"$f":"IF(ISBLANK(INDIRECT(\"'\"&F5293&\"'!\"&H5293)),\"\",IFERROR(VLOOKUP(TEXT(INDIRECT(\"'\"&F5293&\"'!\"&H5293),\"0\"),Notes!$B$5:$C$100,2,FALSE),\"\"))","v":""},"2d","$U$82","$V$82"]
[22164,{"$f":"Menu!$F$29","v":"X"},{"$f":"Menu!$J$29","v":2020},{"$f":"IF(ISBLANK(INDIRECT(\"'\"&F5294&\"'!\"&G5294)),\"\",INDIRECT(\"'\"&F5294&\"'!\"&G5294))","v":""},{"$f":"IF(ISBLANK(INDIRECT(\"'\"&F5294&\"'!\"&H5294)),\"\",IFERROR(VLOOKUP(TEXT(INDIRECT(\"'\"&F5294&\"'!\"&H5294),\"0\"),Notes!$B$5:$C$100,2,FALSE),\"\"))","v":""},"2d","$S$82","$T$82"]
[22165,{"$f":"Menu!$F$29","v":"X"},{"$f":"Menu!$J$29","v":2020},{"$f":"IF(ISBLANK(INDIRECT(\"'\"&F5295&\"'!\"&G5295)),\"\",INDIRECT(\"'\"&F5295&\"'!\"&G5295))","v":""},{"$f":"IF(ISBLANK(INDIRECT(\"'\"&F5295&\"'!\"&H5295)),\"\",IFERROR(VLOOKUP(TEXT(INDIRECT(\"'\"&F5295&\"'!\"&H5295),\"0\"),Notes!$B$5:$C$100,2,FALSE),\"\"))","v":""},"2d","$AC$81","$AD$81"]
[22166,{"$f":"Menu!$F$29","v":"X"},{"$f":"Menu!$J$29","v":2020},{"$f":"IF(ISBLANK(INDIRECT(\"'\"&F5296&\"'!\"&G5296)),\"\",INDIRECT(\"'\"&F5296&\"'!\"&G5296))","v":""},{"$f":"IF(ISBLANK(INDIRECT(\"'\"&F5296&\"'!\"&H5296)),\"\",IFERROR(VLOOKUP(TEXT(INDIRECT(\"'\"&F5296&\"'!\"&H5296),\"0\"),Notes!$B$5:$C$100,2,FALSE),\"\"))","v":""},"2d","$AG$81","$AH$81"]
[22167,{"$f":"Menu!$F$29","v":"X"},{"$f":"Menu!$J$29","v":2020},{"$f":"IF(ISBLANK(INDIRECT(\"'\"&F5297&\"'!\"&G5297)),\"\",INDIRECT(\"'\"&F5297&\"'!\"&G5297))","v":""},{"$f":"IF(ISBLANK(INDIRECT(\"'\"&F5297&\"'!\"&H5297)),\"\",IFERROR(VLOOKUP(TEXT(INDIRECT(\"'\"&F5297&\"'!\"&H5297),\"0\"),Notes!$B$5:$C$100,2,FALSE),\"\"))","v":""},"2d","$AE$81","$AF$81"]
[22168,{"$f":"Menu!$F$29","v":"X"},{"$f":"Menu!$J$29","v":2020},{"$f":"IF(ISBLANK(INDIRECT(\"'\"&F5298&\"'!\"&G5298)),\"\",INDIRECT(\"'\"&F5298&\"'!\"&G5298))","v":""},{"$f":"IF(ISBLANK(INDIRECT(\"'\"&F5298&\"'!\"&H5298)),\"\",IFERROR(VLOOKUP(TEXT(INDIRECT(\"'\"&F5298&\"'!\"&H5298),\"0\"),Notes!$B$5:$C$100,2,FALSE),\"\"))","v":""},"2d","$W$81","$X$81"]
[22169,{"$f":"Menu!$F$29","v":"X"},{"$f":"Menu!$J$29","v":2020},{"$f":"IF(ISBLANK(INDIRECT(\"'\"&F5299&\"'!\"&G5299)),\"\",INDIRECT(\"'\"&F5299&\"'!\"&G5299))","v":""},{"$f":"IF(ISBLANK(INDIRECT(\"'\"&F5299&\"'!\"&H5299)),\"\",IFERROR(VLOOKUP(TEXT(INDIRECT(\"'\"&F5299&\"'!\"&H5299),\"0\"),Notes!$B$5:$C$100,2,FALSE),\"\"))","v":""},"2d","$AA$81","$AB$81"]
[22170,{"$f":"Menu!$F$29","v":"X"},{"$f":"Menu!$J$29","v":2020},{"$f":"IF(ISBLANK(INDIRECT(\"'\"&F5300&\"'!\"&G5300)),\"\",INDIRECT(\"'\"&F5300&\"'!\"&G5300))","v":""},{"$f":"IF(ISBLANK(INDIRECT(\"'\"&F5300&\"'!\"&H5300)),\"\",IFERROR(VLOOKUP(TEXT(INDIRECT(\"'\"&F5300&\"'!\"&H5300),\"0\"),Notes!$B$5:$C$100,2,FALSE),\"\"))","v":""},"2d","$Y$81","$Z$81"]
[22171,{"$f":"Menu!$F$29","v":"X"},{"$f":"Menu!$J$29","v":2020},{"$f":"IF(ISBLANK(INDIRECT(\"'\"&F5301&\"'!\"&G5301)),\"\",INDIRECT(\"'\"&F5301&\"'!\"&G5301))","v":""},{"$f":"IF(ISBLANK(INDIRECT(\"'\"&F5301&\"'!\"&H5301)),\"\",IFERROR(VLOOKUP(TEXT(INDIRECT(\"'\"&F5301&\"'!\"&H5301),\"0\"),Notes!$B$5:$C$100,2,FALSE),\"\"))","v":""},"2d","$E$81","$F$81"]
[22172,{"$f":"Menu!$F$29","v":"X"},{"$f":"Menu!$J$29","v":2020},{"$f":"IF(ISBLANK(INDIRECT(\"'\"&F5302&\"'!\"&G5302)),\"\",INDIRECT(\"'\"&F5302&\"'!\"&G5302))","v":""},{"$f":"IF(ISBLANK(INDIRECT(\"'\"&F5302&\"'!\"&H5302)),\"\",IFERROR(VLOOKUP(TEXT(INDIRECT(\"'\"&F5302&\"'!\"&H5302),\"0\"),Notes!$B$5:$C$100,2,FALSE),\"\"))","v":""},"2d","$I$81","$J$81"]
[22173,{"$f":"Menu!$F$29","v":"X"},{"$f":"Menu!$J$29","v":2020},{"$f":"IF(ISBLANK(INDIRECT(\"'\"&F5303&\"'!\"&G5303)),\"\",INDIRECT(\"'\"&F5303&\"'!\"&G5303))","v":""},{"$f":"IF(ISBLANK(INDIRECT(\"'\"&F5303&\"'!\"&H5303)),\"\",IFERROR(VLOOKUP(TEXT(INDIRECT(\"'\"&F5303&\"'!\"&H5303),\"0\"),Notes!$B$5:$C$100,2,FALSE),\"\"))","v":""},"2d","$G$81","$H$81"]
[22174,{"$f":"Menu!$F$29","v":"X"},{"$f":"Menu!$J$29","v":2020},{"$f":"IF(ISBLANK(INDIRECT(\"'\"&F5304&\"'!\"&G5304)),\"\",INDIRECT(\"'\"&F5304&\"'!\"&G5304))","v":""},{"$f":"IF(ISBLANK(INDIRECT(\"'\"&F5304&\"'!\"&H5304)),\"\",IFERROR(VLOOKUP(TEXT(INDIRECT(\"'\"&F5304&\"'!\"&H5304),\"0\"),Notes!$B$5:$C$100,2,FALSE),\"\"))","v":""},"2d","$K$81","$L$81"]
[22175,{"$f":"Menu!$F$29","v":"X"},{"$f":"Menu!$J$29","v":2020},{"$f":"IF(ISBLANK(INDIRECT(\"'\"&F5305&\"'!\"&G5305)),\"\",INDIRECT(\"'\"&F5305&\"'!\"&G5305))","v":""},{"$f":"IF(ISBLANK(INDIRECT(\"'\"&F5305&\"'!\"&H5305)),\"\",IFERROR(VLOOKUP(TEXT(INDIRECT(\"'\"&F5305&\"'!\"&H5305),\"0\"),Notes!$B$5:$C$100,2,FALSE),\"\"))","v":""},"2d","$O$81","$P$81"]
[22176,{"$f":"Menu!$F$29","v":"X"},{"$f":"Menu!$J$29","v":2020},{"$f":"IF(ISBLANK(INDIRECT(\"'\"&F5306&\"'!\"&G5306)),\"\",INDIRECT(\"'\"&F5306&\"'!\"&G5306))","v":""},{"$f":"IF(ISBLANK(INDIRECT(\"'\"&F5306&\"'!\"&H5306)),\"\",IFERROR(VLOOKUP(TEXT(INDIRECT(\"'\"&F5306&\"'!\"&H5306),\"0\"),Notes!$B$5:$C$100,2,FALSE),\"\"))","v":""},"2d","$M$81","$N$81"]
[22177,{"$f":"Menu!$F$29","v":"X"},{"$f":"Menu!$J$29","v":2020},{"$f":"IF(ISBLANK(INDIRECT(\"'\"&F5307&\"'!\"&G5307)),\"\",INDIRECT(\"'\"&F5307&\"'!\"&G5307))","v":""},{"$f":"IF(ISBLANK(INDIRECT(\"'\"&F5307&\"'!\"&H5307)),\"\",IFERROR(VLOOKUP(TEXT(INDIRECT(\"'\"&F5307&\"'!\"&H5307),\"0\"),Notes!$B$5:$C$100,2,FALSE),\"\"))","v":""},"2d","$Q$81","$R$81"]
[22178,{"$f":"Menu!$F$29","v":"X"},{"$f":"Menu!$J$29","v":2020},{"$f":"IF(ISBLANK(INDIRECT(\"'\"&F5308&\"'!\"&G5308)),\"\",INDIRECT(\"'\"&F5308&\"'!\"&G5308))","v":""},{"$f":"IF(ISBLANK(INDIRECT(\"'\"&F5308&\"'!\"&H5308)),\"\",IFERROR(VLOOKUP(TEXT(INDIRECT(\"'\"&F5308&\"'!\"&H5308),\"0\"),Notes!$B$5:$C$100,2,FALSE),\"\"))","v":""},"2d","$U$81","$V$81"]
[22179,{"$f":"Menu!$F$29","v":"X"},{"$f":"Menu!$J$29","v":2020},{"$f":"IF(ISBLANK(INDIRECT(\"'\"&F5309&\"'!\"&G5309)),\"\",INDIRECT(\"'\"&F5309&\"'!\"&G5309))","v":""},{"$f":"IF(ISBLANK(INDIRECT(\"'\"&F5309&\"'!\"&H5309)),\"\",IFERROR(VLOOKUP(TEXT(INDIRECT(\"'\"&F5309&\"'!\"&H5309),\"0\"),Notes!$B$5:$C$100,2,FALSE),\"\"))","v":""},"2d","$S$81","$T$81"]
[22180,{"$f":"Menu!$F$29","v":"X"},{"$f":"Menu!$J$29","v":2020},{"$f":"IF(ISBLANK(INDIRECT(\"'\"&F5310&\"'!\"&G5310)),\"\",INDIRECT(\"'\"&F5310&\"'!\"&G5310))","v":""},{"$f":"IF(ISBLANK(INDIRECT(\"'\"&F5310&\"'!\"&H5310)),\"\",IFERROR(VLOOKUP(TEXT(INDIRECT(\"'\"&F5310&\"'!\"&H5310),\"0\"),Notes!$B$5:$C$100,2,FALSE),\"\"))","v":""},"2d","$AC$80","$AD$80"]
[22181,{"$f":"Menu!$F$29","v":"X"},{"$f":"Menu!$J$29","v":2020},{"$f":"IF(ISBLANK(INDIRECT(\"'\"&F5311&\"'!\"&G5311)),\"\",INDIRECT(\"'\"&F5311&\"'!\"&G5311))","v":""},{"$f":"IF(ISBLANK(INDIRECT(\"'\"&F5311&\"'!\"&H5311)),\"\",IFERROR(VLOOKUP(TEXT(INDIRECT(\"'\"&F5311&\"'!\"&H5311),\"0\"),Notes!$B$5:$C$100,2,FALSE),\"\"))","v":""},"2d","$AG$80","$AH$80"]
[22182,{"$f":"Menu!$F$29","v":"X"},{"$f":"Menu!$J$29","v":2020},{"$f":"IF(ISBLANK(INDIRECT(\"'\"&F5312&\"'!\"&G5312)),\"\",INDIRECT(\"'\"&F5312&\"'!\"&G5312))","v":""},{"$f":"IF(ISBLANK(INDIRECT(\"'\"&F5312&\"'!\"&H5312)),\"\",IFERROR(VLOOKUP(TEXT(INDIRECT(\"'\"&F5312&\"'!\"&H5312),\"0\"),Notes!$B$5:$C$100,2,FALSE),\"\"))","v":""},"2d","$AE$80","$AF$80"]
[22183,{"$f":"Menu!$F$29","v":"X"},{"$f":"Menu!$J$29","v":2020},{"$f":"IF(ISBLANK(INDIRECT(\"'\"&F5313&\"'!\"&G5313)),\"\",INDIRECT(\"'\"&F5313&\"'!\"&G5313))","v":""},{"$f":"IF(ISBLANK(INDIRECT(\"'\"&F5313&\"'!\"&H5313)),\"\",IFERROR(VLOOKUP(TEXT(INDIRECT(\"'\"&F5313&\"'!\"&H5313),\"0\"),Notes!$B$5:$C$100,2,FALSE),\"\"))","v":""},"2d","$W$80","$X$80"]
[22184,{"$f":"Menu!$F$29","v":"X"},{"$f":"Menu!$J$29","v":2020},{"$f":"IF(ISBLANK(INDIRECT(\"'\"&F5314&\"'!\"&G5314)),\"\",INDIRECT(\"'\"&F5314&\"'!\"&G5314))","v":""},{"$f":"IF(ISBLANK(INDIRECT(\"'\"&F5314&\"'!\"&H5314)),\"\",IFERROR(VLOOKUP(TEXT(INDIRECT(\"'\"&F5314&\"'!\"&H5314),\"0\"),Notes!$B$5:$C$100,2,FALSE),\"\"))","v":""},"2d","$AA$80",{"$f":"IF(LEN(TRIM(MID(G5314,4,10)))-LEN(SUBSTITUTE(TRIM(MID(G5314,4,10)),\"$\",\"\"))=0,\"$\"&CHAR(CODE(MID(G5314,2,1))+1)&\"$\"&TRIM(MID(G5314,4,10)),\"$\"&MID(G5314,2,1)&CHAR(CODE(MID(G5314,3,1))+1)&\"$\"&TRIM(MID(G5314,5,11)))","v":"$AB$80"}]
[22185,{"$f":"Menu!$F$29","v":"X"},{"$f":"Menu!$J$29","v":2020},{"$f":"IF(ISBLANK(INDIRECT(\"'\"&F5315&\"'!\"&G5315)),\"\",INDIRECT(\"'\"&F5315&\"'!\"&G5315))","v":""},{"$f":"IF(ISBLANK(INDIRECT(\"'\"&F5315&\"'!\"&H5315)),\"\",IFERROR(VLOOKUP(TEXT(INDIRECT(\"'\"&F5315&\"'!\"&H5315),\"0\"),Notes!$B$5:$C$100,2,FALSE),\"\"))","v":""},"2d","$Y$80","$Z$80"]
[22186,{"$f":"Menu!$F$29","v":"X"},{"$f":"Menu!$J$29","v":2020},{"$f":"IF(ISBLANK(INDIRECT(\"'\"&F5316&\"'!\"&G5316)),\"\",INDIRECT(\"'\"&F5316&\"'!\"&G5316))","v":""},{"$f":"IF(ISBLANK(INDIRECT(\"'\"&F5316&\"'!\"&H5316)),\"\",IFERROR(VLOOKUP(TEXT(INDIRECT(\"'\"&F5316&\"'!\"&H5316),\"0\"),Notes!$B$5:$C$100,2,FALSE),\"\"))","v":""},"2d","$E$80","$F$80"]
[22187,{"$f":"Menu!$F$29","v":"X"},{"$f":"Menu!$J$29","v":2020},{"$f":"IF(ISBLANK(INDIRECT(\"'\"&F5317&\"'!\"&G5317)),\"\",INDIRECT(\"'\"&F5317&\"'!\"&G5317))","v":""},{"$f":"IF(ISBLANK(INDIRECT(\"'\"&F5317&\"'!\"&H5317)),\"\",IFERROR(VLOOKUP(TEXT(INDIRECT(\"'\"&F5317&\"'!\"&H5317),\"0\"),Notes!$B$5:$C$100,2,FALSE),\"\"))","v":""},"2d","$I$80","$J$80"]
[22188,{"$f":"Menu!$F$29","v":"X"},{"$f":"Menu!$J$29","v":2020},{"$f":"IF(ISBLANK(INDIRECT(\"'\"&F5318&\"'!\"&G5318)),\"\",INDIRECT(\"'\"&F5318&\"'!\"&G5318))","v":""},{"$f":"IF(ISBLANK(INDIRECT(\"'\"&F5318&\"'!\"&H5318)),\"\",IFERROR(VLOOKUP(TEXT(INDIRECT(\"'\"&F5318&\"'!\"&H5318),\"0\"),Notes!$B$5:$C$100,2,FALSE),\"\"))","v":""},"2d","$G$80","$H$80"]
[22189,{"$f":"Menu!$F$29","v":"X"},{"$f":"Menu!$J$29","v":2020},{"$f":"IF(ISBLANK(INDIRECT(\"'\"&F5319&\"'!\"&G5319)),\"\",INDIRECT(\"'\"&F5319&\"'!\"&G5319))","v":""},{"$f":"IF(ISBLANK(INDIRECT(\"'\"&F5319&\"'!\"&H5319)),\"\",IFERROR(VLOOKUP(TEXT(INDIRECT(\"'\"&F5319&\"'!\"&H5319),\"0\"),Notes!$B$5:$C$100,2,FALSE),\"\"))","v":""},"2d","$K$80","$L$80"]
[22190,{"$f":"Menu!$F$29","v":"X"},{"$f":"Menu!$J$29","v":2020},{"$f":"IF(ISBLANK(INDIRECT(\"'\"&F5320&\"'!\"&G5320)),\"\",INDIRECT(\"'\"&F5320&\"'!\"&G5320))","v":""},{"$f":"IF(ISBLANK(INDIRECT(\"'\"&F5320&\"'!\"&H5320)),\"\",IFERROR(VLOOKUP(TEXT(INDIRECT(\"'\"&F5320&\"'!\"&H5320),\"0\"),Notes!$B$5:$C$100,2,FALSE),\"\"))","v":""},"2d","$O$80","$P$80"]
[22191,{"$f":"Menu!$F$29","v":"X"},{"$f":"Menu!$J$29","v":2020},{"$f":"IF(ISBLANK(INDIRECT(\"'\"&F5321&\"'!\"&G5321)),\"\",INDIRECT(\"'\"&F5321&\"'!\"&G5321))","v":""},{"$f":"IF(ISBLANK(INDIRECT(\"'\"&F5321&\"'!\"&H5321)),\"\",IFERROR(VLOOKUP(TEXT(INDIRECT(\"'\"&F5321&\"'!\"&H5321),\"0\"),Notes!$B$5:$C$100,2,FALSE),\"\"))","v":""},"2d","$M$80","$N$80"]
[22192,{"$f":"Menu!$F$29","v":"X"},{"$f":"Menu!$J$29","v":2020},{"$f":"IF(ISBLANK(INDIRECT(\"'\"&F5322&\"'!\"&G5322)),\"\",INDIRECT(\"'\"&F5322&\"'!\"&G5322))","v":""},{"$f":"IF(ISBLANK(INDIRECT(\"'\"&F5322&\"'!\"&H5322)),\"\",IFERROR(VLOOKUP(TEXT(INDIRECT(\"'\"&F5322&\"'!\"&H5322),\"0\"),Notes!$B$5:$C$100,2,FALSE),\"\"))","v":""},"2d","$Q$80","$R$80"]
[22193,{"$f":"Menu!$F$29","v":"X"},{"$f":"Menu!$J$29","v":2020},{"$f":"IF(ISBLANK(INDIRECT(\"'\"&F5323&\"'!\"&G5323)),\"\",INDIRECT(\"'\"&F5323&\"'!\"&G5323))","v":""},{"$f":"IF(ISBLANK(INDIRECT(\"'\"&F5323&\"'!\"&H5323)),\"\",IFERROR(VLOOKUP(TEXT(INDIRECT(\"'\"&F5323&\"'!\"&H5323),\"0\"),Notes!$B$5:$C$100,2,FALSE),\"\"))","v":""},"2d","$U$80","$V$80"]
[22194,{"$f":"Menu!$F$29","v":"X"},{"$f":"Menu!$J$29","v":2020},{"$f":"IF(ISBLANK(INDIRECT(\"'\"&F5324&\"'!\"&G5324)),\"\",INDIRECT(\"'\"&F5324&\"'!\"&G5324))","v":""},{"$f":"IF(ISBLANK(INDIRECT(\"'\"&F5324&\"'!\"&H5324)),\"\",IFERROR(VLOOKUP(TEXT(INDIRECT(\"'\"&F5324&\"'!\"&H5324),\"0\"),Notes!$B$5:$C$100,2,FALSE),\"\"))","v":""},"2d","$S$80","$T$80"]
[22195,{"$f":"Menu!$F$29","v":"X"},{"$f":"Menu!$J$29","v":2020},{"$f":"IF(ISBLANK(INDIRECT(\"'\"&F5325&\"'!\"&G5325)),\"\",INDIRECT(\"'\"&F5325&\"'!\"&G5325))","v":""},{"$f":"IF(ISBLANK(INDIRECT(\"'\"&F5325&\"'!\"&H5325)),\"\",IFERROR(VLOOKUP(TEXT(INDIRECT(\"'\"&F5325&\"'!\"&H5325),\"0\"),Notes!$B$5:$C$100,2,FALSE),\"\"))","v":""},"2d","$AC$79","$AD$79"]
[22196,{"$f":"Menu!$F$29","v":"X"},{"$f":"Menu!$J$29","v":2020},{"$f":"IF(ISBLANK(INDIRECT(\"'\"&F5326&\"'!\"&G5326)),\"\",INDIRECT(\"'\"&F5326&\"'!\"&G5326))","v":""},{"$f":"IF(ISBLANK(INDIRECT(\"'\"&F5326&\"'!\"&H5326)),\"\",IFERROR(VLOOKUP(TEXT(INDIRECT(\"'\"&F5326&\"'!\"&H5326),\"0\"),Notes!$B$5:$C$100,2,FALSE),\"\"))","v":""},"2d","$AG$79","$AH$79"]
[22197,{"$f":"Menu!$F$29","v":"X"},{"$f":"Menu!$J$29","v":2020},{"$f":"IF(ISBLANK(INDIRECT(\"'\"&F5327&\"'!\"&G5327)),\"\",INDIRECT(\"'\"&F5327&\"'!\"&G5327))","v":""},{"$f":"IF(ISBLANK(INDIRECT(\"'\"&F5327&\"'!\"&H5327)),\"\",IFERROR(VLOOKUP(TEXT(INDIRECT(\"'\"&F5327&\"'!\"&H5327),\"0\"),Notes!$B$5:$C$100,2,FALSE),\"\"))","v":""},"2d","$AE$79","$AF$79"]
[22198,{"$f":"Menu!$F$29","v":"X"},{"$f":"Menu!$J$29","v":2020},{"$f":"IF(ISBLANK(INDIRECT(\"'\"&F5328&\"'!\"&G5328)),\"\",INDIRECT(\"'\"&F5328&\"'!\"&G5328))","v":""},{"$f":"IF(ISBLANK(INDIRECT(\"'\"&F5328&\"'!\"&H5328)),\"\",IFERROR(VLOOKUP(TEXT(INDIRECT(\"'\"&F5328&\"'!\"&H5328),\"0\"),Notes!$B$5:$C$100,2,FALSE),\"\"))","v":""},"2d","$W$79","$X$79"]
[22199,{"$f":"Menu!$F$29","v":"X"},{"$f":"Menu!$J$29","v":2020},{"$f":"IF(ISBLANK(INDIRECT(\"'\"&F5329&\"'!\"&G5329)),\"\",INDIRECT(\"'\"&F5329&\"'!\"&G5329))","v":""},{"$f":"IF(ISBLANK(INDIRECT(\"'\"&F5329&\"'!\"&H5329)),\"\",IFERROR(VLOOKUP(TEXT(INDIRECT(\"'\"&F5329&\"'!\"&H5329),\"0\"),Notes!$B$5:$C$100,2,FALSE),\"\"))","v":""},"2d","$AA$79","$AB$79"]
[22200,{"$f":"Menu!$F$29","v":"X"},{"$f":"Menu!$J$29","v":2020},{"$f":"IF(ISBLANK(INDIRECT(\"'\"&F5330&\"'!\"&G5330)),\"\",INDIRECT(\"'\"&F5330&\"'!\"&G5330))","v":""},{"$f":"IF(ISBLANK(INDIRECT(\"'\"&F5330&\"'!\"&H5330)),\"\",IFERROR(VLOOKUP(TEXT(INDIRECT(\"'\"&F5330&\"'!\"&H5330),\"0\"),Notes!$B$5:$C$100,2,FALSE),\"\"))","v":""},"2d","$Y$79","$Z$79"]
[22201,{"$f":"Menu!$F$29","v":"X"},{"$f":"Menu!$J$29","v":2020},{"$f":"IF(ISBLANK(INDIRECT(\"'\"&F5331&\"'!\"&G5331)),\"\",INDIRECT(\"'\"&F5331&\"'!\"&G5331))","v":""},{"$f":"IF(ISBLANK(INDIRECT(\"'\"&F5331&\"'!\"&H5331)),\"\",IFERROR(VLOOKUP(TEXT(INDIRECT(\"'\"&F5331&\"'!\"&H5331),\"0\"),Notes!$B$5:$C$100,2,FALSE),\"\"))","v":""},"2d","$E$79","$F$79"]
[22202,{"$f":"Menu!$F$29","v":"X"},{"$f":"Menu!$J$29","v":2020},{"$f":"IF(ISBLANK(INDIRECT(\"'\"&F5332&\"'!\"&G5332)),\"\",INDIRECT(\"'\"&F5332&\"'!\"&G5332))","v":""},{"$f":"IF(ISBLANK(INDIRECT(\"'\"&F5332&\"'!\"&H5332)),\"\",IFERROR(VLOOKUP(TEXT(INDIRECT(\"'\"&F5332&\"'!\"&H5332),\"0\"),Notes!$B$5:$C$100,2,FALSE),\"\"))","v":""},"2d","$I$79","$J$79"]
[22203,{"$f":"Menu!$F$29","v":"X"},{"$f":"Menu!$J$29","v":2020},{"$f":"IF(ISBLANK(INDIRECT(\"'\"&F5333&\"'!\"&G5333)),\"\",INDIRECT(\"'\"&F5333&\"'!\"&G5333))","v":""},{"$f":"IF(ISBLANK(INDIRECT(\"'\"&F5333&\"'!\"&H5333)),\"\",IFERROR(VLOOKUP(TEXT(INDIRECT(\"'\"&F5333&\"'!\"&H5333),\"0\"),Notes!$B$5:$C$100,2,FALSE),\"\"))","v":""},"2d","$G$79","$H$79"]
[22204,{"$f":"Menu!$F$29","v":"X"},{"$f":"Menu!$J$29","v":2020},{"$f":"IF(ISBLANK(INDIRECT(\"'\"&F5334&\"'!\"&G5334)),\"\",INDIRECT(\"'\"&F5334&\"'!\"&G5334))","v":""},{"$f":"IF(ISBLANK(INDIRECT(\"'\"&F5334&\"'!\"&H5334)),\"\",IFERROR(VLOOKUP(TEXT(INDIRECT(\"'\"&F5334&\"'!\"&H5334),\"0\"),Notes!$B$5:$C$100,2,FALSE),\"\"))","v":""},"2d","$K$79","$L$79"]
[22205,{"$f":"Menu!$F$29","v":"X"},{"$f":"Menu!$J$29","v":2020},{"$f":"IF(ISBLANK(INDIRECT(\"'\"&F5335&\"'!\"&G5335)),\"\",INDIRECT(\"'\"&F5335&\"'!\"&G5335))","v":""},{"$f":"IF(ISBLANK(INDIRECT(\"'\"&F5335&\"'!\"&H5335)),\"\",IFERROR(VLOOKUP(TEXT(INDIRECT(\"'\"&F5335&\"'!\"&H5335),\"0\"),Notes!$B$5:$C$100,2,FALSE),\"\"))","v":""},"2d","$O$79","$P$79"]
[22206,{"$f":"Menu!$F$29","v":"X"},{"$f":"Menu!$J$29","v":2020},{"$f":"IF(ISBLANK(INDIRECT(\"'\"&F5336&\"'!\"&G5336)),\"\",INDIRECT(\"'\"&F5336&\"'!\"&G5336))","v":""},{"$f":"IF(ISBLANK(INDIRECT(\"'\"&F5336&\"'!\"&H5336)),\"\",IFERROR(VLOOKUP(TEXT(INDIRECT(\"'\"&F5336&\"'!\"&H5336),\"0\"),Notes!$B$5:$C$100,2,FALSE),\"\"))","v":""},"2d","$M$79","$N$79"]
[22207,{"$f":"Menu!$F$29","v":"X"},{"$f":"Menu!$J$29","v":2020},{"$f":"IF(ISBLANK(INDIRECT(\"'\"&F5337&\"'!\"&G5337)),\"\",INDIRECT(\"'\"&F5337&\"'!\"&G5337))","v":""},{"$f":"IF(ISBLANK(INDIRECT(\"'\"&F5337&\"'!\"&H5337)),\"\",IFERROR(VLOOKUP(TEXT(INDIRECT(\"'\"&F5337&\"'!\"&H5337),\"0\"),Notes!$B$5:$C$100,2,FALSE),\"\"))","v":""},"2d","$Q$79","$R$79"]
[22208,{"$f":"Menu!$F$29","v":"X"},{"$f":"Menu!$J$29","v":2020},{"$f":"IF(ISBLANK(INDIRECT(\"'\"&F5338&\"'!\"&G5338)),\"\",INDIRECT(\"'\"&F5338&\"'!\"&G5338))","v":""},{"$f":"IF(ISBLANK(INDIRECT(\"'\"&F5338&\"'!\"&H5338)),\"\",IFERROR(VLOOKUP(TEXT(INDIRECT(\"'\"&F5338&\"'!\"&H5338),\"0\"),Notes!$B$5:$C$100,2,FALSE),\"\"))","v":""},"2d","$U$79","$V$79"]
[22209,{"$f":"Menu!$F$29","v":"X"},{"$f":"Menu!$J$29","v":2020},{"$f":"IF(ISBLANK(INDIRECT(\"'\"&F5339&\"'!\"&G5339)),\"\",INDIRECT(\"'\"&F5339&\"'!\"&G5339))","v":""},{"$f":"IF(ISBLANK(INDIRECT(\"'\"&F5339&\"'!\"&H5339)),\"\",IFERROR(VLOOKUP(TEXT(INDIRECT(\"'\"&F5339&\"'!\"&H5339),\"0\"),Notes!$B$5:$C$100,2,FALSE),\"\"))","v":""},"2d","$S$79","$T$79"]
[22210,{"$f":"Menu!$F$29","v":"X"},{"$f":"Menu!$J$29","v":2020},{"$f":"IF(ISBLANK(INDIRECT(\"'\"&F5340&\"'!\"&G5340)),\"\",INDIRECT(\"'\"&F5340&\"'!\"&G5340))","v":""},{"$f":"IF(ISBLANK(INDIRECT(\"'\"&F5340&\"'!\"&H5340)),\"\",IFERROR(VLOOKUP(TEXT(INDIRECT(\"'\"&F5340&\"'!\"&H5340),\"0\"),Notes!$B$5:$C$100,2,FALSE),\"\"))","v":""},"2d","$AC$78","$AD$78"]
[22211,{"$f":"Menu!$F$29","v":"X"},{"$f":"Menu!$J$29","v":2020},{"$f":"IF(ISBLANK(INDIRECT(\"'\"&F5341&\"'!\"&G5341)),\"\",INDIRECT(\"'\"&F5341&\"'!\"&G5341))","v":""},{"$f":"IF(ISBLANK(INDIRECT(\"'\"&F5341&\"'!\"&H5341)),\"\",IFERROR(VLOOKUP(TEXT(INDIRECT(\"'\"&F5341&\"'!\"&H5341),\"0\"),Notes!$B$5:$C$100,2,FALSE),\"\"))","v":""},"2d","$AG$78","$AH$78"]
[22212,{"$f":"Menu!$F$29","v":"X"},{"$f":"Menu!$J$29","v":2020},{"$f":"IF(ISBLANK(INDIRECT(\"'\"&F5342&\"'!\"&G5342)),\"\",INDIRECT(\"'\"&F5342&\"'!\"&G5342))","v":""},{"$f":"IF(ISBLANK(INDIRECT(\"'\"&F5342&\"'!\"&H5342)),\"\",IFERROR(VLOOKUP(TEXT(INDIRECT(\"'\"&F5342&\"'!\"&H5342),\"0\"),Notes!$B$5:$C$100,2,FALSE),\"\"))","v":""},"2d","$AE$78","$AF$78"]
[22213,{"$f":"Menu!$F$29","v":"X"},{"$f":"Menu!$J$29","v":2020},{"$f":"IF(ISBLANK(INDIRECT(\"'\"&F5343&\"'!\"&G5343)),\"\",INDIRECT(\"'\"&F5343&\"'!\"&G5343))","v":""},{"$f":"IF(ISBLANK(INDIRECT(\"'\"&F5343&\"'!\"&H5343)),\"\",IFERROR(VLOOKUP(TEXT(INDIRECT(\"'\"&F5343&\"'!\"&H5343),\"0\"),Notes!$B$5:$C$100,2,FALSE),\"\"))","v":""},"2d","$W$78","$X$78"]
[22214,{"$f":"Menu!$F$29","v":"X"},{"$f":"Menu!$J$29","v":2020},{"$f":"IF(ISBLANK(INDIRECT(\"'\"&F5344&\"'!\"&G5344)),\"\",INDIRECT(\"'\"&F5344&\"'!\"&G5344))","v":""},{"$f":"IF(ISBLANK(INDIRECT(\"'\"&F5344&\"'!\"&H5344)),\"\",IFERROR(VLOOKUP(TEXT(INDIRECT(\"'\"&F5344&\"'!\"&H5344),\"0\"),Notes!$B$5:$C$100,2,FALSE),\"\"))","v":""},"2d","$AA$78","$AB$78"]
[22215,{"$f":"Menu!$F$29","v":"X"},{"$f":"Menu!$J$29","v":2020},{"$f":"IF(ISBLANK(INDIRECT(\"'\"&F5345&\"'!\"&G5345)),\"\",INDIRECT(\"'\"&F5345&\"'!\"&G5345))","v":""},{"$f":"IF(ISBLANK(INDIRECT(\"'\"&F5345&\"'!\"&H5345)),\"\",IFERROR(VLOOKUP(TEXT(INDIRECT(\"'\"&F5345&\"'!\"&H5345),\"0\"),Notes!$B$5:$C$100,2,FALSE),\"\"))","v":""},"2d","$Y$78","$Z$78"]
[22216,{"$f":"Menu!$F$29","v":"X"},{"$f":"Menu!$J$29","v":2020},{"$f":"IF(ISBLANK(INDIRECT(\"'\"&F5346&\"'!\"&G5346)),\"\",INDIRECT(\"'\"&F5346&\"'!\"&G5346))","v":""},{"$f":"IF(ISBLANK(INDIRECT(\"'\"&F5346&\"'!\"&H5346)),\"\",IFERROR(VLOOKUP(TEXT(INDIRECT(\"'\"&F5346&\"'!\"&H5346),\"0\"),Notes!$B$5:$C$100,2,FALSE),\"\"))","v":""},"2d","$E$78","$F$78"]
[22217,{"$f":"Menu!$F$29","v":"X"},{"$f":"Menu!$J$29","v":2020},{"$f":"IF(ISBLANK(INDIRECT(\"'\"&F5347&\"'!\"&G5347)),\"\",INDIRECT(\"'\"&F5347&\"'!\"&G5347))","v":""},{"$f":"IF(ISBLANK(INDIRECT(\"'\"&F5347&\"'!\"&H5347)),\"\",IFERROR(VLOOKUP(TEXT(INDIRECT(\"'\"&F5347&\"'!\"&H5347),\"0\"),Notes!$B$5:$C$100,2,FALSE),\"\"))","v":""},"2d","$I$78","$J$78"]
[22218,{"$f":"Menu!$F$29","v":"X"},{"$f":"Menu!$J$29","v":2020},{"$f":"IF(ISBLANK(INDIRECT(\"'\"&F5348&\"'!\"&G5348)),\"\",INDIRECT(\"'\"&F5348&\"'!\"&G5348))","v":""},{"$f":"IF(ISBLANK(INDIRECT(\"'\"&F5348&\"'!\"&H5348)),\"\",IFERROR(VLOOKUP(TEXT(INDIRECT(\"'\"&F5348&\"'!\"&H5348),\"0\"),Notes!$B$5:$C$100,2,FALSE),\"\"))","v":""},"2d","$G$78","$H$78"]
[22219,{"$f":"Menu!$F$29","v":"X"},{"$f":"Menu!$J$29","v":2020},{"$f":"IF(ISBLANK(INDIRECT(\"'\"&F5349&\"'!\"&G5349)),\"\",INDIRECT(\"'\"&F5349&\"'!\"&G5349))","v":""},{"$f":"IF(ISBLANK(INDIRECT(\"'\"&F5349&\"'!\"&H5349)),\"\",IFERROR(VLOOKUP(TEXT(INDIRECT(\"'\"&F5349&\"'!\"&H5349),\"0\"),Notes!$B$5:$C$100,2,FALSE),\"\"))","v":""},"2d","$K$78","$L$78"]
[22220,{"$f":"Menu!$F$29","v":"X"},{"$f":"Menu!$J$29","v":2020},{"$f":"IF(ISBLANK(INDIRECT(\"'\"&F5350&\"'!\"&G5350)),\"\",INDIRECT(\"'\"&F5350&\"'!\"&G5350))","v":""},{"$f":"IF(ISBLANK(INDIRECT(\"'\"&F5350&\"'!\"&H5350)),\"\",IFERROR(VLOOKUP(TEXT(INDIRECT(\"'\"&F5350&\"'!\"&H5350),\"0\"),Notes!$B$5:$C$100,2,FALSE),\"\"))","v":""},"2d","$O$78","$P$78"]
[22221,{"$f":"Menu!$F$29","v":"X"},{"$f":"Menu!$J$29","v":2020},{"$f":"IF(ISBLANK(INDIRECT(\"'\"&F5351&\"'!\"&G5351)),\"\",INDIRECT(\"'\"&F5351&\"'!\"&G5351))","v":""},{"$f":"IF(ISBLANK(INDIRECT(\"'\"&F5351&\"'!\"&H5351)),\"\",IFERROR(VLOOKUP(TEXT(INDIRECT(\"'\"&F5351&\"'!\"&H5351),\"0\"),Notes!$B$5:$C$100,2,FALSE),\"\"))","v":""},"2d","$M$78","$N$78"]
[22222,{"$f":"Menu!$F$29","v":"X"},{"$f":"Menu!$J$29","v":2020},{"$f":"IF(ISBLANK(INDIRECT(\"'\"&F5352&\"'!\"&G5352)),\"\",INDIRECT(\"'\"&F5352&\"'!\"&G5352))","v":""},{"$f":"IF(ISBLANK(INDIRECT(\"'\"&F5352&\"'!\"&H5352)),\"\",IFERROR(VLOOKUP(TEXT(INDIRECT(\"'\"&F5352&\"'!\"&H5352),\"0\"),Notes!$B$5:$C$100,2,FALSE),\"\"))","v":""},"2d","$Q$78","$R$78"]
[22223,{"$f":"Menu!$F$29","v":"X"},{"$f":"Menu!$J$29","v":2020},{"$f":"IF(ISBLANK(INDIRECT(\"'\"&F5353&\"'!\"&G5353)),\"\",INDIRECT(\"'\"&F5353&\"'!\"&G5353))","v":""},{"$f":"IF(ISBLANK(INDIRECT(\"'\"&F5353&\"'!\"&H5353)),\"\",IFERROR(VLOOKUP(TEXT(INDIRECT(\"'\"&F5353&\"'!\"&H5353),\"0\"),Notes!$B$5:$C$100,2,FALSE),\"\"))","v":""},"2d","$U$78","$V$78"]
[22224,{"$f":"Menu!$F$29","v":"X"},{"$f":"Menu!$J$29","v":2020},{"$f":"IF(ISBLANK(INDIRECT(\"'\"&F5354&\"'!\"&G5354)),\"\",INDIRECT(\"'\"&F5354&\"'!\"&G5354))","v":""},{"$f":"IF(ISBLANK(INDIRECT(\"'\"&F5354&\"'!\"&H5354)),\"\",IFERROR(VLOOKUP(TEXT(INDIRECT(\"'\"&F5354&\"'!\"&H5354),\"0\"),Notes!$B$5:$C$100,2,FALSE),\"\"))","v":""},"2d","$S$78","$T$78"]
[22225,{"$f":"Menu!$F$29","v":"X"},{"$f":"Menu!$J$29","v":2020},{"$f":"IF(ISBLANK(INDIRECT(\"'\"&F5355&\"'!\"&G5355)),\"\",INDIRECT(\"'\"&F5355&\"'!\"&G5355))","v":""},{"$f":"IF(ISBLANK(INDIRECT(\"'\"&F5355&\"'!\"&H5355)),\"\",IFERROR(VLOOKUP(TEXT(INDIRECT(\"'\"&F5355&\"'!\"&H5355),\"0\"),Notes!$B$5:$C$100,2,FALSE),\"\"))","v":""},"2d","$AC$77","$AD$77"]
[22226,{"$f":"Menu!$F$29","v":"X"},{"$f":"Menu!$J$29","v":2020},{"$f":"IF(ISBLANK(INDIRECT(\"'\"&F5356&\"'!\"&G5356)),\"\",INDIRECT(\"'\"&F5356&\"'!\"&G5356))","v":""},{"$f":"IF(ISBLANK(INDIRECT(\"'\"&F5356&\"'!\"&H5356)),\"\",IFERROR(VLOOKUP(TEXT(INDIRECT(\"'\"&F5356&\"'!\"&H5356),\"0\"),Notes!$B$5:$C$100,2,FALSE),\"\"))","v":""},"2d","$AG$77","$AH$77"]
[22227,{"$f":"Menu!$F$29","v":"X"},{"$f":"Menu!$J$29","v":2020},{"$f":"IF(ISBLANK(INDIRECT(\"'\"&F5357&\"'!\"&G5357)),\"\",INDIRECT(\"'\"&F5357&\"'!\"&G5357))","v":""},{"$f":"IF(ISBLANK(INDIRECT(\"'\"&F5357&\"'!\"&H5357)),\"\",IFERROR(VLOOKUP(TEXT(INDIRECT(\"'\"&F5357&\"'!\"&H5357),\"0\"),Notes!$B$5:$C$100,2,FALSE),\"\"))","v":""},"2d","$AE$77","$AF$77"]
[22228,{"$f":"Menu!$F$29","v":"X"},{"$f":"Menu!$J$29","v":2020},{"$f":"IF(ISBLANK(INDIRECT(\"'\"&F5358&\"'!\"&G5358)),\"\",INDIRECT(\"'\"&F5358&\"'!\"&G5358))","v":""},{"$f":"IF(ISBLANK(INDIRECT(\"'\"&F5358&\"'!\"&H5358)),\"\",IFERROR(VLOOKUP(TEXT(INDIRECT(\"'\"&F5358&\"'!\"&H5358),\"0\"),Notes!$B$5:$C$100,2,FALSE),\"\"))","v":""},"2d","$W$77","$X$77"]
[22229,{"$f":"Menu!$F$29","v":"X"},{"$f":"Menu!$J$29","v":2020},{"$f":"IF(ISBLANK(INDIRECT(\"'\"&F5359&\"'!\"&G5359)),\"\",INDIRECT(\"'\"&F5359&\"'!\"&G5359))","v":""},{"$f":"IF(ISBLANK(INDIRECT(\"'\"&F5359&\"'!\"&H5359)),\"\",IFERROR(VLOOKUP(TEXT(INDIRECT(\"'\"&F5359&\"'!\"&H5359),\"0\"),Notes!$B$5:$C$100,2,FALSE),\"\"))","v":""},"2d","$AA$77","$AB$77"]
[22230,{"$f":"Menu!$F$29","v":"X"},{"$f":"Menu!$J$29","v":2020},{"$f":"IF(ISBLANK(INDIRECT(\"'\"&F5360&\"'!\"&G5360)),\"\",INDIRECT(\"'\"&F5360&\"'!\"&G5360))","v":""},{"$f":"IF(ISBLANK(INDIRECT(\"'\"&F5360&\"'!\"&H5360)),\"\",IFERROR(VLOOKUP(TEXT(INDIRECT(\"'\"&F5360&\"'!\"&H5360),\"0\"),Notes!$B$5:$C$100,2,FALSE),\"\"))","v":""},"2d","$Y$77","$Z$77"]
[22231,{"$f":"Menu!$F$29","v":"X"},{"$f":"Menu!$J$29","v":2020},{"$f":"IF(ISBLANK(INDIRECT(\"'\"&F5361&\"'!\"&G5361)),\"\",INDIRECT(\"'\"&F5361&\"'!\"&G5361))","v":""},{"$f":"IF(ISBLANK(INDIRECT(\"'\"&F5361&\"'!\"&H5361)),\"\",IFERROR(VLOOKUP(TEXT(INDIRECT(\"'\"&F5361&\"'!\"&H5361),\"0\"),Notes!$B$5:$C$100,2,FALSE),\"\"))","v":""},"2d","$E$77","$F$77"]
[22232,{"$f":"Menu!$F$29","v":"X"},{"$f":"Menu!$J$29","v":2020},{"$f":"IF(ISBLANK(INDIRECT(\"'\"&F5362&\"'!\"&G5362)),\"\",INDIRECT(\"'\"&F5362&\"'!\"&G5362))","v":""},{"$f":"IF(ISBLANK(INDIRECT(\"'\"&F5362&\"'!\"&H5362)),\"\",IFERROR(VLOOKUP(TEXT(INDIRECT(\"'\"&F5362&\"'!\"&H5362),\"0\"),Notes!$B$5:$C$100,2,FALSE),\"\"))","v":""},"2d","$I$77","$J$77"]
[22233,{"$f":"Menu!$F$29","v":"X"},{"$f":"Menu!$J$29","v":2020},{"$f":"IF(ISBLANK(INDIRECT(\"'\"&F5363&\"'!\"&G5363)),\"\",INDIRECT(\"'\"&F5363&\"'!\"&G5363))","v":""},{"$f":"IF(ISBLANK(INDIRECT(\"'\"&F5363&\"'!\"&H5363)),\"\",IFERROR(VLOOKUP(TEXT(INDIRECT(\"'\"&F5363&\"'!\"&H5363),\"0\"),Notes!$B$5:$C$100,2,FALSE),\"\"))","v":""},"2d","$G$77","$H$77"]
[22234,{"$f":"Menu!$F$29","v":"X"},{"$f":"Menu!$J$29","v":2020},{"$f":"IF(ISBLANK(INDIRECT(\"'\"&F5364&\"'!\"&G5364)),\"\",INDIRECT(\"'\"&F5364&\"'!\"&G5364))","v":""},{"$f":"IF(ISBLANK(INDIRECT(\"'\"&F5364&\"'!\"&H5364)),\"\",IFERROR(VLOOKUP(TEXT(INDIRECT(\"'\"&F5364&\"'!\"&H5364),\"0\"),Notes!$B$5:$C$100,2,FALSE),\"\"))","v":""},"2d","$K$77","$L$77"]
[22235,{"$f":"Menu!$F$29","v":"X"},{"$f":"Menu!$J$29","v":2020},{"$f":"IF(ISBLANK(INDIRECT(\"'\"&F5365&\"'!\"&G5365)),\"\",INDIRECT(\"'\"&F5365&\"'!\"&G5365))","v":""},{"$f":"IF(ISBLANK(INDIRECT(\"'\"&F5365&\"'!\"&H5365)),\"\",IFERROR(VLOOKUP(TEXT(INDIRECT(\"'\"&F5365&\"'!\"&H5365),\"0\"),Notes!$B$5:$C$100,2,FALSE),\"\"))","v":""},"2d","$O$77","$P$77"]
[22236,{"$f":"Menu!$F$29","v":"X"},{"$f":"Menu!$J$29","v":2020},{"$f":"IF(ISBLANK(INDIRECT(\"'\"&F5366&\"'!\"&G5366)),\"\",INDIRECT(\"'\"&F5366&\"'!\"&G5366))","v":""},{"$f":"IF(ISBLANK(INDIRECT(\"'\"&F5366&\"'!\"&H5366)),\"\",IFERROR(VLOOKUP(TEXT(INDIRECT(\"'\"&F5366&\"'!\"&H5366),\"0\"),Notes!$B$5:$C$100,2,FALSE),\"\"))","v":""},"2d","$M$77","$N$77"]
[22237,{"$f":"Menu!$F$29","v":"X"},{"$f":"Menu!$J$29","v":2020},{"$f":"IF(ISBLANK(INDIRECT(\"'\"&F5367&\"'!\"&G5367)),\"\",INDIRECT(\"'\"&F5367&\"'!\"&G5367))","v":""},{"$f":"IF(ISBLANK(INDIRECT(\"'\"&F5367&\"'!\"&H5367)),\"\",IFERROR(VLOOKUP(TEXT(INDIRECT(\"'\"&F5367&\"'!\"&H5367),\"0\"),Notes!$B$5:$C$100,2,FALSE),\"\"))","v":""},"2d","$Q$77","$R$77"]
[22238,{"$f":"Menu!$F$29","v":"X"},{"$f":"Menu!$J$29","v":2020},{"$f":"IF(ISBLANK(INDIRECT(\"'\"&F5368&\"'!\"&G5368)),\"\",INDIRECT(\"'\"&F5368&\"'!\"&G5368))","v":""},{"$f":"IF(ISBLANK(INDIRECT(\"'\"&F5368&\"'!\"&H5368)),\"\",IFERROR(VLOOKUP(TEXT(INDIRECT(\"'\"&F5368&\"'!\"&H5368),\"0\"),Notes!$B$5:$C$100,2,FALSE),\"\"))","v":""},"2d","$U$77","$V$77"]
[22239,{"$f":"Menu!$F$29","v":"X"},{"$f":"Menu!$J$29","v":2020},{"$f":"IF(ISBLANK(INDIRECT(\"'\"&F5369&\"'!\"&G5369)),\"\",INDIRECT(\"'\"&F5369&\"'!\"&G5369))","v":""},{"$f":"IF(ISBLANK(INDIRECT(\"'\"&F5369&\"'!\"&H5369)),\"\",IFERROR(VLOOKUP(TEXT(INDIRECT(\"'\"&F5369&\"'!\"&H5369),\"0\"),Notes!$B$5:$C$100,2,FALSE),\"\"))","v":""},"2d","$S$77","$T$77"]
[22240,{"$f":"Menu!$F$29","v":"X"},{"$f":"Menu!$J$29","v":2020},{"$f":"IF(ISBLANK(INDIRECT(\"'\"&F5370&\"'!\"&G5370)),\"\",INDIRECT(\"'\"&F5370&\"'!\"&G5370))","v":""},{"$f":"IF(ISBLANK(INDIRECT(\"'\"&F5370&\"'!\"&H5370)),\"\",IFERROR(VLOOKUP(TEXT(INDIRECT(\"'\"&F5370&\"'!\"&H5370),\"0\"),Notes!$B$5:$C$100,2,FALSE),\"\"))","v":""},"2d","$AC$76","$AD$76"]
[22241,{"$f":"Menu!$F$29","v":"X"},{"$f":"Menu!$J$29","v":2020},{"$f":"IF(ISBLANK(INDIRECT(\"'\"&F5371&\"'!\"&G5371)),\"\",INDIRECT(\"'\"&F5371&\"'!\"&G5371))","v":""},{"$f":"IF(ISBLANK(INDIRECT(\"'\"&F5371&\"'!\"&H5371)),\"\",IFERROR(VLOOKUP(TEXT(INDIRECT(\"'\"&F5371&\"'!\"&H5371),\"0\"),Notes!$B$5:$C$100,2,FALSE),\"\"))","v":""},"2d","$AG$76","$AH$76"]
[22242,{"$f":"Menu!$F$29","v":"X"},{"$f":"Menu!$J$29","v":2020},{"$f":"IF(ISBLANK(INDIRECT(\"'\"&F5372&\"'!\"&G5372)),\"\",INDIRECT(\"'\"&F5372&\"'!\"&G5372))","v":""},{"$f":"IF(ISBLANK(INDIRECT(\"'\"&F5372&\"'!\"&H5372)),\"\",IFERROR(VLOOKUP(TEXT(INDIRECT(\"'\"&F5372&\"'!\"&H5372),\"0\"),Notes!$B$5:$C$100,2,FALSE),\"\"))","v":""},"2d","$AE$76","$AF$76"]
[22243,{"$f":"Menu!$F$29","v":"X"},{"$f":"Menu!$J$29","v":2020},{"$f":"IF(ISBLANK(INDIRECT(\"'\"&F5373&\"'!\"&G5373)),\"\",INDIRECT(\"'\"&F5373&\"'!\"&G5373))","v":""},{"$f":"IF(ISBLANK(INDIRECT(\"'\"&F5373&\"'!\"&H5373)),\"\",IFERROR(VLOOKUP(TEXT(INDIRECT(\"'\"&F5373&\"'!\"&H5373),\"0\"),Notes!$B$5:$C$100,2,FALSE),\"\"))","v":""},"2d","$W$76","$X$76"]
[22244,{"$f":"Menu!$F$29","v":"X"},{"$f":"Menu!$J$29","v":2020},{"$f":"IF(ISBLANK(INDIRECT(\"'\"&F5374&\"'!\"&G5374)),\"\",INDIRECT(\"'\"&F5374&\"'!\"&G5374))","v":""},{"$f":"IF(ISBLANK(INDIRECT(\"'\"&F5374&\"'!\"&H5374)),\"\",IFERROR(VLOOKUP(TEXT(INDIRECT(\"'\"&F5374&\"'!\"&H5374),\"0\"),Notes!$B$5:$C$100,2,FALSE),\"\"))","v":""},"2d","$AA$76","$AB$76"]
[22245,{"$f":"Menu!$F$29","v":"X"},{"$f":"Menu!$J$29","v":2020},{"$f":"IF(ISBLANK(INDIRECT(\"'\"&F5375&\"'!\"&G5375)),\"\",INDIRECT(\"'\"&F5375&\"'!\"&G5375))","v":""},{"$f":"IF(ISBLANK(INDIRECT(\"'\"&F5375&\"'!\"&H5375)),\"\",IFERROR(VLOOKUP(TEXT(INDIRECT(\"'\"&F5375&\"'!\"&H5375),\"0\"),Notes!$B$5:$C$100,2,FALSE),\"\"))","v":""},"2d","$Y$76","$Z$76"]
[22246,{"$f":"Menu!$F$29","v":"X"},{"$f":"Menu!$J$29","v":2020},{"$f":"IF(ISBLANK(INDIRECT(\"'\"&F5376&\"'!\"&G5376)),\"\",INDIRECT(\"'\"&F5376&\"'!\"&G5376))","v":""},{"$f":"IF(ISBLANK(INDIRECT(\"'\"&F5376&\"'!\"&H5376)),\"\",IFERROR(VLOOKUP(TEXT(INDIRECT(\"'\"&F5376&\"'!\"&H5376),\"0\"),Notes!$B$5:$C$100,2,FALSE),\"\"))","v":""},"2d","$E$76","$F$76"]
[22247,{"$f":"Menu!$F$29","v":"X"},{"$f":"Menu!$J$29","v":2020},{"$f":"IF(ISBLANK(INDIRECT(\"'\"&F5377&\"'!\"&G5377)),\"\",INDIRECT(\"'\"&F5377&\"'!\"&G5377))","v":""},{"$f":"IF(ISBLANK(INDIRECT(\"'\"&F5377&\"'!\"&H5377)),\"\",IFERROR(VLOOKUP(TEXT(INDIRECT(\"'\"&F5377&\"'!\"&H5377),\"0\"),Notes!$B$5:$C$100,2,FALSE),\"\"))","v":""},"2d","$I$76","$J$76"]
[22248,{"$f":"Menu!$F$29","v":"X"},{"$f":"Menu!$J$29","v":2020},{"$f":"IF(ISBLANK(INDIRECT(\"'\"&F5378&\"'!\"&G5378)),\"\",INDIRECT(\"'\"&F5378&\"'!\"&G5378))","v":""},{"$f":"IF(ISBLANK(INDIRECT(\"'\"&F5378&\"'!\"&H5378)),\"\",IFERROR(VLOOKUP(TEXT(INDIRECT(\"'\"&F5378&\"'!\"&H5378),\"0\"),Notes!$B$5:$C$100,2,FALSE),\"\"))","v":""},"2d","$G$76",{"$f":"IF(LEN(TRIM(MID(G5378,4,10)))-LEN(SUBSTITUTE(TRIM(MID(G5378,4,10)),\"$\",\"\"))=0,\"$\"&CHAR(CODE(MID(G5378,2,1))+1)&\"$\"&TRIM(MID(G5378,4,10)),\"$\"&MID(G5378,2,1)&CHAR(CODE(MID(G5378,3,1))+1)&\"$\"&TRIM(MID(G5378,5,11)))","v":"$H$76"}]
[22249,{"$f":"Menu!$F$29","v":"X"},{"$f":"Menu!$J$29","v":2020},{"$f":"IF(ISBLANK(INDIRECT(\"'\"&F5379&\"'!\"&G5379)),\"\",INDIRECT(\"'\"&F5379&\"'!\"&G5379))","v":""},{"$f":"IF(ISBLANK(INDIRECT(\"'\"&F5379&\"'!\"&H5379)),\"\",IFERROR(VLOOKUP(TEXT(INDIRECT(\"'\"&F5379&\"'!\"&H5379),\"0\"),Notes!$B$5:$C$100,2,FALSE),\"\"))","v":""},"2d","$K$76","$L$76"]
[22250,{"$f":"Menu!$F$29","v":"X"},{"$f":"Menu!$J$29","v":2020},{"$f":"IF(ISBLANK(INDIRECT(\"'\"&F5380&\"'!\"&G5380)),\"\",INDIRECT(\"'\"&F5380&\"'!\"&G5380))","v":""},{"$f":"IF(ISBLANK(INDIRECT(\"'\"&F5380&\"'!\"&H5380)),\"\",IFERROR(VLOOKUP(TEXT(INDIRECT(\"'\"&F5380&\"'!\"&H5380),\"0\"),Notes!$B$5:$C$100,2,FALSE),\"\"))","v":""},"2d","$O$76","$P$76"]
[22251,{"$f":"Menu!$F$29","v":"X"},{"$f":"Menu!$J$29","v":2020},{"$f":"IF(ISBLANK(INDIRECT(\"'\"&F5381&\"'!\"&G5381)),\"\",INDIRECT(\"'\"&F5381&\"'!\"&G5381))","v":""},{"$f":"IF(ISBLANK(INDIRECT(\"'\"&F5381&\"'!\"&H5381)),\"\",IFERROR(VLOOKUP(TEXT(INDIRECT(\"'\"&F5381&\"'!\"&H5381),\"0\"),Notes!$B$5:$C$100,2,FALSE),\"\"))","v":""},"2d","$M$76","$N$76"]
[22252,{"$f":"Menu!$F$29","v":"X"},{"$f":"Menu!$J$29","v":2020},{"$f":"IF(ISBLANK(INDIRECT(\"'\"&F5382&\"'!\"&G5382)),\"\",INDIRECT(\"'\"&F5382&\"'!\"&G5382))","v":""},{"$f":"IF(ISBLANK(INDIRECT(\"'\"&F5382&\"'!\"&H5382)),\"\",IFERROR(VLOOKUP(TEXT(INDIRECT(\"'\"&F5382&\"'!\"&H5382),\"0\"),Notes!$B$5:$C$100,2,FALSE),\"\"))","v":""},"2d","$Q$76","$R$76"]
[22253,{"$f":"Menu!$F$29","v":"X"},{"$f":"Menu!$J$29","v":2020},{"$f":"IF(ISBLANK(INDIRECT(\"'\"&F5383&\"'!\"&G5383)),\"\",INDIRECT(\"'\"&F5383&\"'!\"&G5383))","v":""},{"$f":"IF(ISBLANK(INDIRECT(\"'\"&F5383&\"'!\"&H5383)),\"\",IFERROR(VLOOKUP(TEXT(INDIRECT(\"'\"&F5383&\"'!\"&H5383),\"0\"),Notes!$B$5:$C$100,2,FALSE),\"\"))","v":""},"2d","$U$76","$V$76"]
[22254,{"$f":"Menu!$F$29","v":"X"},{"$f":"Menu!$J$29","v":2020},{"$f":"IF(ISBLANK(INDIRECT(\"'\"&F5384&\"'!\"&G5384)),\"\",INDIRECT(\"'\"&F5384&\"'!\"&G5384))","v":""},{"$f":"IF(ISBLANK(INDIRECT(\"'\"&F5384&\"'!\"&H5384)),\"\",IFERROR(VLOOKUP(TEXT(INDIRECT(\"'\"&F5384&\"'!\"&H5384),\"0\"),Notes!$B$5:$C$100,2,FALSE),\"\"))","v":""},"2d","$S$76","$T$76"]
[22255,{"$f":"Menu!$F$29","v":"X"},{"$f":"Menu!$J$29","v":2020},{"$f":"IF(ISBLANK(INDIRECT(\"'\"&F5385&\"'!\"&G5385)),\"\",INDIRECT(\"'\"&F5385&\"'!\"&G5385))","v":""},{"$f":"IF(ISBLANK(INDIRECT(\"'\"&F5385&\"'!\"&H5385)),\"\",IFERROR(VLOOKUP(TEXT(INDIRECT(\"'\"&F5385&\"'!\"&H5385),\"0\"),Notes!$B$5:$C$100,2,FALSE),\"\"))","v":""},"2e","$BG$86","$BH$86"]
[22256,{"$f":"Menu!$F$29","v":"X"},{"$f":"Menu!$J$29","v":2020},{"$f":"IF(ISBLANK(INDIRECT(\"'\"&F5386&\"'!\"&G5386)),\"\",INDIRECT(\"'\"&F5386&\"'!\"&G5386))","v":""},{"$f":"IF(ISBLANK(INDIRECT(\"'\"&F5386&\"'!\"&H5386)),\"\",IFERROR(VLOOKUP(TEXT(INDIRECT(\"'\"&F5386&\"'!\"&H5386),\"0\"),Notes!$B$5:$C$100,2,FALSE),\"\"))","v":""},"2e","$BK$86","$BL$86"]
[22257,{"$f":"Menu!$F$29","v":"X"},{"$f":"Menu!$J$29","v":2020},{"$f":"IF(ISBLANK(INDIRECT(\"'\"&F5387&\"'!\"&G5387)),\"\",INDIRECT(\"'\"&F5387&\"'!\"&G5387))","v":""},{"$f":"IF(ISBLANK(INDIRECT(\"'\"&F5387&\"'!\"&H5387)),\"\",IFERROR(VLOOKUP(TEXT(INDIRECT(\"'\"&F5387&\"'!\"&H5387),\"0\"),Notes!$B$5:$C$100,2,FALSE),\"\"))","v":""},"2e","$BI$86","$BJ$86"]
[22258,{"$f":"Menu!$F$29","v":"X"},{"$f":"Menu!$J$29","v":2020},{"$f":"IF(ISBLANK(INDIRECT(\"'\"&F5388&\"'!\"&G5388)),\"\",INDIRECT(\"'\"&F5388&\"'!\"&G5388))","v":""},{"$f":"IF(ISBLANK(INDIRECT(\"'\"&F5388&\"'!\"&H5388)),\"\",IFERROR(VLOOKUP(TEXT(INDIRECT(\"'\"&F5388&\"'!\"&H5388),\"0\"),Notes!$B$5:$C$100,2,FALSE),\"\"))","v":""},"2e","$E$86","$F$86"]
[22259,{"$f":"Menu!$F$29","v":"X"},{"$f":"Menu!$J$29","v":2020},{"$f":"IF(ISBLANK(INDIRECT(\"'\"&F5389&\"'!\"&G5389)),\"\",INDIRECT(\"'\"&F5389&\"'!\"&G5389))","v":""},{"$f":"IF(ISBLANK(INDIRECT(\"'\"&F5389&\"'!\"&H5389)),\"\",IFERROR(VLOOKUP(TEXT(INDIRECT(\"'\"&F5389&\"'!\"&H5389),\"0\"),Notes!$B$5:$C$100,2,FALSE),\"\"))","v":""},"2e","$I$86","$J$86"]
[22260,{"$f":"Menu!$F$29","v":"X"},{"$f":"Menu!$J$29","v":2020},{"$f":"IF(ISBLANK(INDIRECT(\"'\"&F5390&\"'!\"&G5390)),\"\",INDIRECT(\"'\"&F5390&\"'!\"&G5390))","v":""},{"$f":"IF(ISBLANK(INDIRECT(\"'\"&F5390&\"'!\"&H5390)),\"\",IFERROR(VLOOKUP(TEXT(INDIRECT(\"'\"&F5390&\"'!\"&H5390),\"0\"),Notes!$B$5:$C$100,2,FALSE),\"\"))","v":""},"2e","$G$86","$H$86"]
[22261,{"$f":"Menu!$F$29","v":"X"},{"$f":"Menu!$J$29","v":2020},{"$f":"IF(ISBLANK(INDIRECT(\"'\"&F5391&\"'!\"&G5391)),\"\",INDIRECT(\"'\"&F5391&\"'!\"&G5391))","v":""},{"$f":"IF(ISBLANK(INDIRECT(\"'\"&F5391&\"'!\"&H5391)),\"\",IFERROR(VLOOKUP(TEXT(INDIRECT(\"'\"&F5391&\"'!\"&H5391),\"0\"),Notes!$B$5:$C$100,2,FALSE),\"\"))","v":""},"2e","$K$86","$L$86"]
[22262,{"$f":"Menu!$F$29","v":"X"},{"$f":"Menu!$J$29","v":2020},{"$f":"IF(ISBLANK(INDIRECT(\"'\"&F5392&\"'!\"&G5392)),\"\",INDIRECT(\"'\"&F5392&\"'!\"&G5392))","v":""},{"$f":"IF(ISBLANK(INDIRECT(\"'\"&F5392&\"'!\"&H5392)),\"\",IFERROR(VLOOKUP(TEXT(INDIRECT(\"'\"&F5392&\"'!\"&H5392),\"0\"),Notes!$B$5:$C$100,2,FALSE),\"\"))","v":""},"2e","$O$86","$P$86"]
[22263,{"$f":"Menu!$F$29","v":"X"},{"$f":"Menu!$J$29","v":2020},{"$f":"IF(ISBLANK(INDIRECT(\"'\"&F5393&\"'!\"&G5393)),\"\",INDIRECT(\"'\"&F5393&\"'!\"&G5393))","v":""},{"$f":"IF(ISBLANK(INDIRECT(\"'\"&F5393&\"'!\"&H5393)),\"\",IFERROR(VLOOKUP(TEXT(INDIRECT(\"'\"&F5393&\"'!\"&H5393),\"0\"),Notes!$B$5:$C$100,2,FALSE),\"\"))","v":""},"2e","$M$86","$N$86"]
[22264,{"$f":"Menu!$F$29","v":"X"},{"$f":"Menu!$J$29","v":2020},{"$f":"IF(ISBLANK(INDIRECT(\"'\"&F5394&\"'!\"&G5394)),\"\",INDIRECT(\"'\"&F5394&\"'!\"&G5394))","v":""},{"$f":"IF(ISBLANK(INDIRECT(\"'\"&F5394&\"'!\"&H5394)),\"\",IFERROR(VLOOKUP(TEXT(INDIRECT(\"'\"&F5394&\"'!\"&H5394),\"0\"),Notes!$B$5:$C$100,2,FALSE),\"\"))","v":""},"2e","$Q$86","$R$86"]
[22265,{"$f":"Menu!$F$29","v":"X"},{"$f":"Menu!$J$29","v":2020},{"$f":"IF(ISBLANK(INDIRECT(\"'\"&F5395&\"'!\"&G5395)),\"\",INDIRECT(\"'\"&F5395&\"'!\"&G5395))","v":""},{"$f":"IF(ISBLANK(INDIRECT(\"'\"&F5395&\"'!\"&H5395)),\"\",IFERROR(VLOOKUP(TEXT(INDIRECT(\"'\"&F5395&\"'!\"&H5395),\"0\"),Notes!$B$5:$C$100,2,FALSE),\"\"))","v":""},"2e","$U$86","$V$86"]
[22266,{"$f":"Menu!$F$29","v":"X"},{"$f":"Menu!$J$29","v":2020},{"$f":"IF(ISBLANK(INDIRECT(\"'\"&F5396&\"'!\"&G5396)),\"\",INDIRECT(\"'\"&F5396&\"'!\"&G5396))","v":""},{"$f":"IF(ISBLANK(INDIRECT(\"'\"&F5396&\"'!\"&H5396)),\"\",IFERROR(VLOOKUP(TEXT(INDIRECT(\"'\"&F5396&\"'!\"&H5396),\"0\"),Notes!$B$5:$C$100,2,FALSE),\"\"))","v":""},"2e","$S$86","$T$86"]
[22267,{"$f":"Menu!$F$29","v":"X"},{"$f":"Menu!$J$29","v":2020},{"$f":"IF(ISBLANK(INDIRECT(\"'\"&F5397&\"'!\"&G5397)),\"\",INDIRECT(\"'\"&F5397&\"'!\"&G5397))","v":""},{"$f":"IF(ISBLANK(INDIRECT(\"'\"&F5397&\"'!\"&H5397)),\"\",IFERROR(VLOOKUP(TEXT(INDIRECT(\"'\"&F5397&\"'!\"&H5397),\"0\"),Notes!$B$5:$C$100,2,FALSE),\"\"))","v":""},"2e","$W$86","$X$86"]
[22268,{"$f":"Menu!$F$29","v":"X"},{"$f":"Menu!$J$29","v":2020},{"$f":"IF(ISBLANK(INDIRECT(\"'\"&F5398&\"'!\"&G5398)),\"\",INDIRECT(\"'\"&F5398&\"'!\"&G5398))","v":""},{"$f":"IF(ISBLANK(INDIRECT(\"'\"&F5398&\"'!\"&H5398)),\"\",IFERROR(VLOOKUP(TEXT(INDIRECT(\"'\"&F5398&\"'!\"&H5398),\"0\"),Notes!$B$5:$C$100,2,FALSE),\"\"))","v":""},"2e","$AA$86","$AB$86"]
[22269,{"$f":"Menu!$F$29","v":"X"},{"$f":"Menu!$J$29","v":2020},{"$f":"IF(ISBLANK(INDIRECT(\"'\"&F5399&\"'!\"&G5399)),\"\",INDIRECT(\"'\"&F5399&\"'!\"&G5399))","v":""},{"$f":"IF(ISBLANK(INDIRECT(\"'\"&F5399&\"'!\"&H5399)),\"\",IFERROR(VLOOKUP(TEXT(INDIRECT(\"'\"&F5399&\"'!\"&H5399),\"0\"),Notes!$B$5:$C$100,2,FALSE),\"\"))","v":""},"2e","$Y$86","$Z$86"]
[22270,{"$f":"Menu!$F$29","v":"X"},{"$f":"Menu!$J$29","v":2020},{"$f":"IF(ISBLANK(INDIRECT(\"'\"&F5400&\"'!\"&G5400)),\"\",INDIRECT(\"'\"&F5400&\"'!\"&G5400))","v":""},{"$f":"IF(ISBLANK(INDIRECT(\"'\"&F5400&\"'!\"&H5400)),\"\",IFERROR(VLOOKUP(TEXT(INDIRECT(\"'\"&F5400&\"'!\"&H5400),\"0\"),Notes!$B$5:$C$100,2,FALSE),\"\"))","v":""},"2e","$AC$86","$AD$86"]
[22271,{"$f":"Menu!$F$29","v":"X"},{"$f":"Menu!$J$29","v":2020},{"$f":"IF(ISBLANK(INDIRECT(\"'\"&F5401&\"'!\"&G5401)),\"\",INDIRECT(\"'\"&F5401&\"'!\"&G5401))","v":""},{"$f":"IF(ISBLANK(INDIRECT(\"'\"&F5401&\"'!\"&H5401)),\"\",IFERROR(VLOOKUP(TEXT(INDIRECT(\"'\"&F5401&\"'!\"&H5401),\"0\"),Notes!$B$5:$C$100,2,FALSE),\"\"))","v":""},"2e","$AG$86","$AH$86"]
[22272,{"$f":"Menu!$F$29","v":"X"},{"$f":"Menu!$J$29","v":2020},{"$f":"IF(ISBLANK(INDIRECT(\"'\"&F5402&\"'!\"&G5402)),\"\",INDIRECT(\"'\"&F5402&\"'!\"&G5402))","v":""},{"$f":"IF(ISBLANK(INDIRECT(\"'\"&F5402&\"'!\"&H5402)),\"\",IFERROR(VLOOKUP(TEXT(INDIRECT(\"'\"&F5402&\"'!\"&H5402),\"0\"),Notes!$B$5:$C$100,2,FALSE),\"\"))","v":""},"2e","$AE$86","$AF$86"]
[22273,{"$f":"Menu!$F$29","v":"X"},{"$f":"Menu!$J$29","v":2020},{"$f":"IF(ISBLANK(INDIRECT(\"'\"&F5403&\"'!\"&G5403)),\"\",INDIRECT(\"'\"&F5403&\"'!\"&G5403))","v":""},{"$f":"IF(ISBLANK(INDIRECT(\"'\"&F5403&\"'!\"&H5403)),\"\",IFERROR(VLOOKUP(TEXT(INDIRECT(\"'\"&F5403&\"'!\"&H5403),\"0\"),Notes!$B$5:$C$100,2,FALSE),\"\"))","v":""},"2e","$AI$86","$AJ$86"]
[22274,{"$f":"Menu!$F$29","v":"X"},{"$f":"Menu!$J$29","v":2020},{"$f":"IF(ISBLANK(INDIRECT(\"'\"&F5404&\"'!\"&G5404)),\"\",INDIRECT(\"'\"&F5404&\"'!\"&G5404))","v":""},{"$f":"IF(ISBLANK(INDIRECT(\"'\"&F5404&\"'!\"&H5404)),\"\",IFERROR(VLOOKUP(TEXT(INDIRECT(\"'\"&F5404&\"'!\"&H5404),\"0\"),Notes!$B$5:$C$100,2,FALSE),\"\"))","v":""},"2e","$AM$86","$AN$86"]
[22275,{"$f":"Menu!$F$29","v":"X"},{"$f":"Menu!$J$29","v":2020},{"$f":"IF(ISBLANK(INDIRECT(\"'\"&F5405&\"'!\"&G5405)),\"\",INDIRECT(\"'\"&F5405&\"'!\"&G5405))","v":""},{"$f":"IF(ISBLANK(INDIRECT(\"'\"&F5405&\"'!\"&H5405)),\"\",IFERROR(VLOOKUP(TEXT(INDIRECT(\"'\"&F5405&\"'!\"&H5405),\"0\"),Notes!$B$5:$C$100,2,FALSE),\"\"))","v":""},"2e","$AK$86","$AL$86"]
[22276,{"$f":"Menu!$F$29","v":"X"},{"$f":"Menu!$J$29","v":2020},{"$f":"IF(ISBLANK(INDIRECT(\"'\"&F5406&\"'!\"&G5406)),\"\",INDIRECT(\"'\"&F5406&\"'!\"&G5406))","v":""},{"$f":"IF(ISBLANK(INDIRECT(\"'\"&F5406&\"'!\"&H5406)),\"\",IFERROR(VLOOKUP(TEXT(INDIRECT(\"'\"&F5406&\"'!\"&H5406),\"0\"),Notes!$B$5:$C$100,2,FALSE),\"\"))","v":""},"2e","$AO$86","$AP$86"]
[22277,{"$f":"Menu!$F$29","v":"X"},{"$f":"Menu!$J$29","v":2020},{"$f":"IF(ISBLANK(INDIRECT(\"'\"&F5407&\"'!\"&G5407)),\"\",INDIRECT(\"'\"&F5407&\"'!\"&G5407))","v":""},{"$f":"IF(ISBLANK(INDIRECT(\"'\"&F5407&\"'!\"&H5407)),\"\",IFERROR(VLOOKUP(TEXT(INDIRECT(\"'\"&F5407&\"'!\"&H5407),\"0\"),Notes!$B$5:$C$100,2,FALSE),\"\"))","v":""},"2e","$AQ$86","$AR$86"]
[22278,{"$f":"Menu!$F$29","v":"X"},{"$f":"Menu!$J$29","v":2020},{"$f":"IF(ISBLANK(INDIRECT(\"'\"&F5408&\"'!\"&G5408)),\"\",INDIRECT(\"'\"&F5408&\"'!\"&G5408))","v":""},{"$f":"IF(ISBLANK(INDIRECT(\"'\"&F5408&\"'!\"&H5408)),\"\",IFERROR(VLOOKUP(TEXT(INDIRECT(\"'\"&F5408&\"'!\"&H5408),\"0\"),Notes!$B$5:$C$100,2,FALSE),\"\"))","v":""},"2e","$AS$86","$AT$86"]
[22279,{"$f":"Menu!$F$29","v":"X"},{"$f":"Menu!$J$29","v":2020},{"$f":"IF(ISBLANK(INDIRECT(\"'\"&F5409&\"'!\"&G5409)),\"\",INDIRECT(\"'\"&F5409&\"'!\"&G5409))","v":""},{"$f":"IF(ISBLANK(INDIRECT(\"'\"&F5409&\"'!\"&H5409)),\"\",IFERROR(VLOOKUP(TEXT(INDIRECT(\"'\"&F5409&\"'!\"&H5409),\"0\"),Notes!$B$5:$C$100,2,FALSE),\"\"))","v":""},"2e","$AU$86","$AV$86"]
[22280,{"$f":"Menu!$F$29","v":"X"},{"$f":"Menu!$J$29","v":2020},{"$f":"IF(ISBLANK(INDIRECT(\"'\"&F5410&\"'!\"&G5410)),\"\",INDIRECT(\"'\"&F5410&\"'!\"&G5410))","v":""},{"$f":"IF(ISBLANK(INDIRECT(\"'\"&F5410&\"'!\"&H5410)),\"\",IFERROR(VLOOKUP(TEXT(INDIRECT(\"'\"&F5410&\"'!\"&H5410),\"0\"),Notes!$B$5:$C$100,2,FALSE),\"\"))","v":""},"2e","$AY$86","$AZ$86"]
[22281,{"$f":"Menu!$F$29","v":"X"},{"$f":"Menu!$J$29","v":2020},{"$f":"IF(ISBLANK(INDIRECT(\"'\"&F5411&\"'!\"&G5411)),\"\",INDIRECT(\"'\"&F5411&\"'!\"&G5411))","v":""},{"$f":"IF(ISBLANK(INDIRECT(\"'\"&F5411&\"'!\"&H5411)),\"\",IFERROR(VLOOKUP(TEXT(INDIRECT(\"'\"&F5411&\"'!\"&H5411),\"0\"),Notes!$B$5:$C$100,2,FALSE),\"\"))","v":""},"2e","$AW$86","$AX$86"]
[22282,{"$f":"Menu!$F$29","v":"X"},{"$f":"Menu!$J$29","v":2020},{"$f":"IF(ISBLANK(INDIRECT(\"'\"&F5412&\"'!\"&G5412)),\"\",INDIRECT(\"'\"&F5412&\"'!\"&G5412))","v":""},{"$f":"IF(ISBLANK(INDIRECT(\"'\"&F5412&\"'!\"&H5412)),\"\",IFERROR(VLOOKUP(TEXT(INDIRECT(\"'\"&F5412&\"'!\"&H5412),\"0\"),Notes!$B$5:$C$100,2,FALSE),\"\"))","v":""},"2e","$BA$86","$BB$86"]
[22283,{"$f":"Menu!$F$29","v":"X"},{"$f":"Menu!$J$29","v":2020},{"$f":"IF(ISBLANK(INDIRECT(\"'\"&F5413&\"'!\"&G5413)),\"\",INDIRECT(\"'\"&F5413&\"'!\"&G5413))","v":""},{"$f":"IF(ISBLANK(INDIRECT(\"'\"&F5413&\"'!\"&H5413)),\"\",IFERROR(VLOOKUP(TEXT(INDIRECT(\"'\"&F5413&\"'!\"&H5413),\"0\"),Notes!$B$5:$C$100,2,FALSE),\"\"))","v":""},"2e","$BE$86","$BF$86"]
[22284,{"$f":"Menu!$F$29","v":"X"},{"$f":"Menu!$J$29","v":2020},{"$f":"IF(ISBLANK(INDIRECT(\"'\"&F5414&\"'!\"&G5414)),\"\",INDIRECT(\"'\"&F5414&\"'!\"&G5414))","v":""},{"$f":"IF(ISBLANK(INDIRECT(\"'\"&F5414&\"'!\"&H5414)),\"\",IFERROR(VLOOKUP(TEXT(INDIRECT(\"'\"&F5414&\"'!\"&H5414),\"0\"),Notes!$B$5:$C$100,2,FALSE),\"\"))","v":""},"2e","$BC$86","$BD$86"]
[22285,{"$f":"Menu!$F$29","v":"X"},{"$f":"Menu!$J$29","v":2020},{"$f":"IF(ISBLANK(INDIRECT(\"'\"&F5415&\"'!\"&G5415)),\"\",INDIRECT(\"'\"&F5415&\"'!\"&G5415))","v":""},{"$f":"IF(ISBLANK(INDIRECT(\"'\"&F5415&\"'!\"&H5415)),\"\",IFERROR(VLOOKUP(TEXT(INDIRECT(\"'\"&F5415&\"'!\"&H5415),\"0\"),Notes!$B$5:$C$100,2,FALSE),\"\"))","v":""},"2e","$BG$85","$BH$85"]
[22286,{"$f":"Menu!$F$29","v":"X"},{"$f":"Menu!$J$29","v":2020},{"$f":"IF(ISBLANK(INDIRECT(\"'\"&F5416&\"'!\"&G5416)),\"\",INDIRECT(\"'\"&F5416&\"'!\"&G5416))","v":""},{"$f":"IF(ISBLANK(INDIRECT(\"'\"&F5416&\"'!\"&H5416)),\"\",IFERROR(VLOOKUP(TEXT(INDIRECT(\"'\"&F5416&\"'!\"&H5416),\"0\"),Notes!$B$5:$C$100,2,FALSE),\"\"))","v":""},"2e","$BK$85","$BL$85"]
[22287,{"$f":"Menu!$F$29","v":"X"},{"$f":"Menu!$J$29","v":2020},{"$f":"IF(ISBLANK(INDIRECT(\"'\"&F5417&\"'!\"&G5417)),\"\",INDIRECT(\"'\"&F5417&\"'!\"&G5417))","v":""},{"$f":"IF(ISBLANK(INDIRECT(\"'\"&F5417&\"'!\"&H5417)),\"\",IFERROR(VLOOKUP(TEXT(INDIRECT(\"'\"&F5417&\"'!\"&H5417),\"0\"),Notes!$B$5:$C$100,2,FALSE),\"\"))","v":""},"2e","$BI$85","$BJ$85"]
[22288,{"$f":"Menu!$F$29","v":"X"},{"$f":"Menu!$J$29","v":2020},{"$f":"IF(ISBLANK(INDIRECT(\"'\"&F5418&\"'!\"&G5418)),\"\",INDIRECT(\"'\"&F5418&\"'!\"&G5418))","v":""},{"$f":"IF(ISBLANK(INDIRECT(\"'\"&F5418&\"'!\"&H5418)),\"\",IFERROR(VLOOKUP(TEXT(INDIRECT(\"'\"&F5418&\"'!\"&H5418),\"0\"),Notes!$B$5:$C$100,2,FALSE),\"\"))","v":""},"2e","$E$85","$F$85"]
[22289,{"$f":"Menu!$F$29","v":"X"},{"$f":"Menu!$J$29","v":2020},{"$f":"IF(ISBLANK(INDIRECT(\"'\"&F5419&\"'!\"&G5419)),\"\",INDIRECT(\"'\"&F5419&\"'!\"&G5419))","v":""},{"$f":"IF(ISBLANK(INDIRECT(\"'\"&F5419&\"'!\"&H5419)),\"\",IFERROR(VLOOKUP(TEXT(INDIRECT(\"'\"&F5419&\"'!\"&H5419),\"0\"),Notes!$B$5:$C$100,2,FALSE),\"\"))","v":""},"2e","$I$85","$J$85"]
[22290,{"$f":"Menu!$F$29","v":"X"},{"$f":"Menu!$J$29","v":2020},{"$f":"IF(ISBLANK(INDIRECT(\"'\"&F5420&\"'!\"&G5420)),\"\",INDIRECT(\"'\"&F5420&\"'!\"&G5420))","v":""},{"$f":"IF(ISBLANK(INDIRECT(\"'\"&F5420&\"'!\"&H5420)),\"\",IFERROR(VLOOKUP(TEXT(INDIRECT(\"'\"&F5420&\"'!\"&H5420),\"0\"),Notes!$B$5:$C$100,2,FALSE),\"\"))","v":""},"2e","$G$85","$H$85"]
[22291,{"$f":"Menu!$F$29","v":"X"},{"$f":"Menu!$J$29","v":2020},{"$f":"IF(ISBLANK(INDIRECT(\"'\"&F5421&\"'!\"&G5421)),\"\",INDIRECT(\"'\"&F5421&\"'!\"&G5421))","v":""},{"$f":"IF(ISBLANK(INDIRECT(\"'\"&F5421&\"'!\"&H5421)),\"\",IFERROR(VLOOKUP(TEXT(INDIRECT(\"'\"&F5421&\"'!\"&H5421),\"0\"),Notes!$B$5:$C$100,2,FALSE),\"\"))","v":""},"2e","$K$85","$L$85"]
[22292,{"$f":"Menu!$F$29","v":"X"},{"$f":"Menu!$J$29","v":2020},{"$f":"IF(ISBLANK(INDIRECT(\"'\"&F5422&\"'!\"&G5422)),\"\",INDIRECT(\"'\"&F5422&\"'!\"&G5422))","v":""},{"$f":"IF(ISBLANK(INDIRECT(\"'\"&F5422&\"'!\"&H5422)),\"\",IFERROR(VLOOKUP(TEXT(INDIRECT(\"'\"&F5422&\"'!\"&H5422),\"0\"),Notes!$B$5:$C$100,2,FALSE),\"\"))","v":""},"2e","$O$85","$P$85"]
[22293,{"$f":"Menu!$F$29","v":"X"},{"$f":"Menu!$J$29","v":2020},{"$f":"IF(ISBLANK(INDIRECT(\"'\"&F5423&\"'!\"&G5423)),\"\",INDIRECT(\"'\"&F5423&\"'!\"&G5423))","v":""},{"$f":"IF(ISBLANK(INDIRECT(\"'\"&F5423&\"'!\"&H5423)),\"\",IFERROR(VLOOKUP(TEXT(INDIRECT(\"'\"&F5423&\"'!\"&H5423),\"0\"),Notes!$B$5:$C$100,2,FALSE),\"\"))","v":""},"2e","$M$85","$N$85"]
[22294,{"$f":"Menu!$F$29","v":"X"},{"$f":"Menu!$J$29","v":2020},{"$f":"IF(ISBLANK(INDIRECT(\"'\"&F5424&\"'!\"&G5424)),\"\",INDIRECT(\"'\"&F5424&\"'!\"&G5424))","v":""},{"$f":"IF(ISBLANK(INDIRECT(\"'\"&F5424&\"'!\"&H5424)),\"\",IFERROR(VLOOKUP(TEXT(INDIRECT(\"'\"&F5424&\"'!\"&H5424),\"0\"),Notes!$B$5:$C$100,2,FALSE),\"\"))","v":""},"2e","$Q$85","$R$85"]
[22295,{"$f":"Menu!$F$29","v":"X"},{"$f":"Menu!$J$29","v":2020},{"$f":"IF(ISBLANK(INDIRECT(\"'\"&F5425&\"'!\"&G5425)),\"\",INDIRECT(\"'\"&F5425&\"'!\"&G5425))","v":""},{"$f":"IF(ISBLANK(INDIRECT(\"'\"&F5425&\"'!\"&H5425)),\"\",IFERROR(VLOOKUP(TEXT(INDIRECT(\"'\"&F5425&\"'!\"&H5425),\"0\"),Notes!$B$5:$C$100,2,FALSE),\"\"))","v":""},"2e","$U$85","$V$85"]
[22296,{"$f":"Menu!$F$29","v":"X"},{"$f":"Menu!$J$29","v":2020},{"$f":"IF(ISBLANK(INDIRECT(\"'\"&F5426&\"'!\"&G5426)),\"\",INDIRECT(\"'\"&F5426&\"'!\"&G5426))","v":""},{"$f":"IF(ISBLANK(INDIRECT(\"'\"&F5426&\"'!\"&H5426)),\"\",IFERROR(VLOOKUP(TEXT(INDIRECT(\"'\"&F5426&\"'!\"&H5426),\"0\"),Notes!$B$5:$C$100,2,FALSE),\"\"))","v":""},"2e","$S$85","$T$85"]
[22297,{"$f":"Menu!$F$29","v":"X"},{"$f":"Menu!$J$29","v":2020},{"$f":"IF(ISBLANK(INDIRECT(\"'\"&F5427&\"'!\"&G5427)),\"\",INDIRECT(\"'\"&F5427&\"'!\"&G5427))","v":""},{"$f":"IF(ISBLANK(INDIRECT(\"'\"&F5427&\"'!\"&H5427)),\"\",IFERROR(VLOOKUP(TEXT(INDIRECT(\"'\"&F5427&\"'!\"&H5427),\"0\"),Notes!$B$5:$C$100,2,FALSE),\"\"))","v":""},"2e","$W$85","$X$85"]
[22298,{"$f":"Menu!$F$29","v":"X"},{"$f":"Menu!$J$29","v":2020},{"$f":"IF(ISBLANK(INDIRECT(\"'\"&F5428&\"'!\"&G5428)),\"\",INDIRECT(\"'\"&F5428&\"'!\"&G5428))","v":""},{"$f":"IF(ISBLANK(INDIRECT(\"'\"&F5428&\"'!\"&H5428)),\"\",IFERROR(VLOOKUP(TEXT(INDIRECT(\"'\"&F5428&\"'!\"&H5428),\"0\"),Notes!$B$5:$C$100,2,FALSE),\"\"))","v":""},"2e","$AA$85","$AB$85"]
[22299,{"$f":"Menu!$F$29","v":"X"},{"$f":"Menu!$J$29","v":2020},{"$f":"IF(ISBLANK(INDIRECT(\"'\"&F5429&\"'!\"&G5429)),\"\",INDIRECT(\"'\"&F5429&\"'!\"&G5429))","v":""},{"$f":"IF(ISBLANK(INDIRECT(\"'\"&F5429&\"'!\"&H5429)),\"\",IFERROR(VLOOKUP(TEXT(INDIRECT(\"'\"&F5429&\"'!\"&H5429),\"0\"),Notes!$B$5:$C$100,2,FALSE),\"\"))","v":""},"2e","$Y$85","$Z$85"]
[22300,{"$f":"Menu!$F$29","v":"X"},{"$f":"Menu!$J$29","v":2020},{"$f":"IF(ISBLANK(INDIRECT(\"'\"&F5430&\"'!\"&G5430)),\"\",INDIRECT(\"'\"&F5430&\"'!\"&G5430))","v":""},{"$f":"IF(ISBLANK(INDIRECT(\"'\"&F5430&\"'!\"&H5430)),\"\",IFERROR(VLOOKUP(TEXT(INDIRECT(\"'\"&F5430&\"'!\"&H5430),\"0\"),Notes!$B$5:$C$100,2,FALSE),\"\"))","v":""},"2e","$AC$85","$AD$85"]
[22301,{"$f":"Menu!$F$29","v":"X"},{"$f":"Menu!$J$29","v":2020},{"$f":"IF(ISBLANK(INDIRECT(\"'\"&F5431&\"'!\"&G5431)),\"\",INDIRECT(\"'\"&F5431&\"'!\"&G5431))","v":""},{"$f":"IF(ISBLANK(INDIRECT(\"'\"&F5431&\"'!\"&H5431)),\"\",IFERROR(VLOOKUP(TEXT(INDIRECT(\"'\"&F5431&\"'!\"&H5431),\"0\"),Notes!$B$5:$C$100,2,FALSE),\"\"))","v":""},"2e","$AG$85","$AH$85"]
[22302,{"$f":"Menu!$F$29","v":"X"},{"$f":"Menu!$J$29","v":2020},{"$f":"IF(ISBLANK(INDIRECT(\"'\"&F5432&\"'!\"&G5432)),\"\",INDIRECT(\"'\"&F5432&\"'!\"&G5432))","v":""},{"$f":"IF(ISBLANK(INDIRECT(\"'\"&F5432&\"'!\"&H5432)),\"\",IFERROR(VLOOKUP(TEXT(INDIRECT(\"'\"&F5432&\"'!\"&H5432),\"0\"),Notes!$B$5:$C$100,2,FALSE),\"\"))","v":""},"2e","$AE$85","$AF$85"]
[22303,{"$f":"Menu!$F$29","v":"X"},{"$f":"Menu!$J$29","v":2020},{"$f":"IF(ISBLANK(INDIRECT(\"'\"&F5433&\"'!\"&G5433)),\"\",INDIRECT(\"'\"&F5433&\"'!\"&G5433))","v":""},{"$f":"IF(ISBLANK(INDIRECT(\"'\"&F5433&\"'!\"&H5433)),\"\",IFERROR(VLOOKUP(TEXT(INDIRECT(\"'\"&F5433&\"'!\"&H5433),\"0\"),Notes!$B$5:$C$100,2,FALSE),\"\"))","v":""},"2e","$AI$85","$AJ$85"]
[22304,{"$f":"Menu!$F$29","v":"X"},{"$f":"Menu!$J$29","v":2020},{"$f":"IF(ISBLANK(INDIRECT(\"'\"&F5434&\"'!\"&G5434)),\"\",INDIRECT(\"'\"&F5434&\"'!\"&G5434))","v":""},{"$f":"IF(ISBLANK(INDIRECT(\"'\"&F5434&\"'!\"&H5434)),\"\",IFERROR(VLOOKUP(TEXT(INDIRECT(\"'\"&F5434&\"'!\"&H5434),\"0\"),Notes!$B$5:$C$100,2,FALSE),\"\"))","v":""},"2e","$AM$85","$AN$85"]
[22305,{"$f":"Menu!$F$29","v":"X"},{"$f":"Menu!$J$29","v":2020},{"$f":"IF(ISBLANK(INDIRECT(\"'\"&F5435&\"'!\"&G5435)),\"\",INDIRECT(\"'\"&F5435&\"'!\"&G5435))","v":""},{"$f":"IF(ISBLANK(INDIRECT(\"'\"&F5435&\"'!\"&H5435)),\"\",IFERROR(VLOOKUP(TEXT(INDIRECT(\"'\"&F5435&\"'!\"&H5435),\"0\"),Notes!$B$5:$C$100,2,FALSE),\"\"))","v":""},"2e","$AK$85","$AL$85"]
[22306,{"$f":"Menu!$F$29","v":"X"},{"$f":"Menu!$J$29","v":2020},{"$f":"IF(ISBLANK(INDIRECT(\"'\"&F5436&\"'!\"&G5436)),\"\",INDIRECT(\"'\"&F5436&\"'!\"&G5436))","v":""},{"$f":"IF(ISBLANK(INDIRECT(\"'\"&F5436&\"'!\"&H5436)),\"\",IFERROR(VLOOKUP(TEXT(INDIRECT(\"'\"&F5436&\"'!\"&H5436),\"0\"),Notes!$B$5:$C$100,2,FALSE),\"\"))","v":""},"2e","$AO$85","$AP$85"]
[22307,{"$f":"Menu!$F$29","v":"X"},{"$f":"Menu!$J$29","v":2020},{"$f":"IF(ISBLANK(INDIRECT(\"'\"&F5437&\"'!\"&G5437)),\"\",INDIRECT(\"'\"&F5437&\"'!\"&G5437))","v":""},{"$f":"IF(ISBLANK(INDIRECT(\"'\"&F5437&\"'!\"&H5437)),\"\",IFERROR(VLOOKUP(TEXT(INDIRECT(\"'\"&F5437&\"'!\"&H5437),\"0\"),Notes!$B$5:$C$100,2,FALSE),\"\"))","v":""},"2e","$AQ$85","$AR$85"]
[22308,{"$f":"Menu!$F$29","v":"X"},{"$f":"Menu!$J$29","v":2020},{"$f":"IF(ISBLANK(INDIRECT(\"'\"&F5438&\"'!\"&G5438)),\"\",INDIRECT(\"'\"&F5438&\"'!\"&G5438))","v":""},{"$f":"IF(ISBLANK(INDIRECT(\"'\"&F5438&\"'!\"&H5438)),\"\",IFERROR(VLOOKUP(TEXT(INDIRECT(\"'\"&F5438&\"'!\"&H5438),\"0\"),Notes!$B$5:$C$100,2,FALSE),\"\"))","v":""},"2e","$AS$85","$AT$85"]
[22309,{"$f":"Menu!$F$29","v":"X"},{"$f":"Menu!$J$29","v":2020},{"$f":"IF(ISBLANK(INDIRECT(\"'\"&F5439&\"'!\"&G5439)),\"\",INDIRECT(\"'\"&F5439&\"'!\"&G5439))","v":""},{"$f":"IF(ISBLANK(INDIRECT(\"'\"&F5439&\"'!\"&H5439)),\"\",IFERROR(VLOOKUP(TEXT(INDIRECT(\"'\"&F5439&\"'!\"&H5439),\"0\"),Notes!$B$5:$C$100,2,FALSE),\"\"))","v":""},"2e","$AU$85","$AV$85"]
[22310,{"$f":"Menu!$F$29","v":"X"},{"$f":"Menu!$J$29","v":2020},{"$f":"IF(ISBLANK(INDIRECT(\"'\"&F5440&\"'!\"&G5440)),\"\",INDIRECT(\"'\"&F5440&\"'!\"&G5440))","v":""},{"$f":"IF(ISBLANK(INDIRECT(\"'\"&F5440&\"'!\"&H5440)),\"\",IFERROR(VLOOKUP(TEXT(INDIRECT(\"'\"&F5440&\"'!\"&H5440),\"0\"),Notes!$B$5:$C$100,2,FALSE),\"\"))","v":""},"2e","$AY$85","$AZ$85"]
[22311,{"$f":"Menu!$F$29","v":"X"},{"$f":"Menu!$J$29","v":2020},{"$f":"IF(ISBLANK(INDIRECT(\"'\"&F5441&\"'!\"&G5441)),\"\",INDIRECT(\"'\"&F5441&\"'!\"&G5441))","v":""},{"$f":"IF(ISBLANK(INDIRECT(\"'\"&F5441&\"'!\"&H5441)),\"\",IFERROR(VLOOKUP(TEXT(INDIRECT(\"'\"&F5441&\"'!\"&H5441),\"0\"),Notes!$B$5:$C$100,2,FALSE),\"\"))","v":""},"2e","$AW$85","$AX$85"]
[22312,{"$f":"Menu!$F$29","v":"X"},{"$f":"Menu!$J$29","v":2020},{"$f":"IF(ISBLANK(INDIRECT(\"'\"&F5442&\"'!\"&G5442)),\"\",INDIRECT(\"'\"&F5442&\"'!\"&G5442))","v":""},{"$f":"IF(ISBLANK(INDIRECT(\"'\"&F5442&\"'!\"&H5442)),\"\",IFERROR(VLOOKUP(TEXT(INDIRECT(\"'\"&F5442&\"'!\"&H5442),\"0\"),Notes!$B$5:$C$100,2,FALSE),\"\"))","v":""},"2e","$BA$85",{"$f":"IF(LEN(TRIM(MID(G5442,4,10)))-LEN(SUBSTITUTE(TRIM(MID(G5442,4,10)),\"$\",\"\"))=0,\"$\"&CHAR(CODE(MID(G5442,2,1))+1)&\"$\"&TRIM(MID(G5442,4,10)),\"$\"&MID(G5442,2,1)&CHAR(CODE(MID(G5442,3,1))+1)&\"$\"&TRIM(MID(G5442,5,11)))","v":"$BB$85"}]
[22313,{"$f":"Menu!$F$29","v":"X"},{"$f":"Menu!$J$29","v":2020},{"$f":"IF(ISBLANK(INDIRECT(\"'\"&F5443&\"'!\"&G5443)),\"\",INDIRECT(\"'\"&F5443&\"'!\"&G5443))","v":""},{"$f":"IF(ISBLANK(INDIRECT(\"'\"&F5443&\"'!\"&H5443)),\"\",IFERROR(VLOOKUP(TEXT(INDIRECT(\"'\"&F5443&\"'!\"&H5443),\"0\"),Notes!$B$5:$C$100,2,FALSE),\"\"))","v":""},"2e","$BE$85","$BF$85"]
[22314,{"$f":"Menu!$F$29","v":"X"},{"$f":"Menu!$J$29","v":2020},{"$f":"IF(ISBLANK(INDIRECT(\"'\"&F5444&\"'!\"&G5444)),\"\",INDIRECT(\"'\"&F5444&\"'!\"&G5444))","v":""},{"$f":"IF(ISBLANK(INDIRECT(\"'\"&F5444&\"'!\"&H5444)),\"\",IFERROR(VLOOKUP(TEXT(INDIRECT(\"'\"&F5444&\"'!\"&H5444),\"0\"),Notes!$B$5:$C$100,2,FALSE),\"\"))","v":""},"2e","$BC$85","$BD$85"]
[22315,{"$f":"Menu!$F$29","v":"X"},{"$f":"Menu!$J$29","v":2020},{"$f":"IF(ISBLANK(INDIRECT(\"'\"&F5445&\"'!\"&G5445)),\"\",INDIRECT(\"'\"&F5445&\"'!\"&G5445))","v":""},{"$f":"IF(ISBLANK(INDIRECT(\"'\"&F5445&\"'!\"&H5445)),\"\",IFERROR(VLOOKUP(TEXT(INDIRECT(\"'\"&F5445&\"'!\"&H5445),\"0\"),Notes!$B$5:$C$100,2,FALSE),\"\"))","v":""},"2e","$BG$84","$BH$84"]
[22316,{"$f":"Menu!$F$29","v":"X"},{"$f":"Menu!$J$29","v":2020},{"$f":"IF(ISBLANK(INDIRECT(\"'\"&F5446&\"'!\"&G5446)),\"\",INDIRECT(\"'\"&F5446&\"'!\"&G5446))","v":""},{"$f":"IF(ISBLANK(INDIRECT(\"'\"&F5446&\"'!\"&H5446)),\"\",IFERROR(VLOOKUP(TEXT(INDIRECT(\"'\"&F5446&\"'!\"&H5446),\"0\"),Notes!$B$5:$C$100,2,FALSE),\"\"))","v":""},"2e","$BK$84","$BL$84"]
[22317,{"$f":"Menu!$F$29","v":"X"},{"$f":"Menu!$J$29","v":2020},{"$f":"IF(ISBLANK(INDIRECT(\"'\"&F5447&\"'!\"&G5447)),\"\",INDIRECT(\"'\"&F5447&\"'!\"&G5447))","v":""},{"$f":"IF(ISBLANK(INDIRECT(\"'\"&F5447&\"'!\"&H5447)),\"\",IFERROR(VLOOKUP(TEXT(INDIRECT(\"'\"&F5447&\"'!\"&H5447),\"0\"),Notes!$B$5:$C$100,2,FALSE),\"\"))","v":""},"2e","$BI$84","$BJ$84"]
[22318,{"$f":"Menu!$F$29","v":"X"},{"$f":"Menu!$J$29","v":2020},{"$f":"IF(ISBLANK(INDIRECT(\"'\"&F5448&\"'!\"&G5448)),\"\",INDIRECT(\"'\"&F5448&\"'!\"&G5448))","v":""},{"$f":"IF(ISBLANK(INDIRECT(\"'\"&F5448&\"'!\"&H5448)),\"\",IFERROR(VLOOKUP(TEXT(INDIRECT(\"'\"&F5448&\"'!\"&H5448),\"0\"),Notes!$B$5:$C$100,2,FALSE),\"\"))","v":""},"2e","$E$84","$F$84"]
[22319,{"$f":"Menu!$F$29","v":"X"},{"$f":"Menu!$J$29","v":2020},{"$f":"IF(ISBLANK(INDIRECT(\"'\"&F5449&\"'!\"&G5449)),\"\",INDIRECT(\"'\"&F5449&\"'!\"&G5449))","v":""},{"$f":"IF(ISBLANK(INDIRECT(\"'\"&F5449&\"'!\"&H5449)),\"\",IFERROR(VLOOKUP(TEXT(INDIRECT(\"'\"&F5449&\"'!\"&H5449),\"0\"),Notes!$B$5:$C$100,2,FALSE),\"\"))","v":""},"2e","$I$84","$J$84"]
[22320,{"$f":"Menu!$F$29","v":"X"},{"$f":"Menu!$J$29","v":2020},{"$f":"IF(ISBLANK(INDIRECT(\"'\"&F5450&\"'!\"&G5450)),\"\",INDIRECT(\"'\"&F5450&\"'!\"&G5450))","v":""},{"$f":"IF(ISBLANK(INDIRECT(\"'\"&F5450&\"'!\"&H5450)),\"\",IFERROR(VLOOKUP(TEXT(INDIRECT(\"'\"&F5450&\"'!\"&H5450),\"0\"),Notes!$B$5:$C$100,2,FALSE),\"\"))","v":""},"2e","$G$84","$H$84"]
[22321,{"$f":"Menu!$F$29","v":"X"},{"$f":"Menu!$J$29","v":2020},{"$f":"IF(ISBLANK(INDIRECT(\"'\"&F5451&\"'!\"&G5451)),\"\",INDIRECT(\"'\"&F5451&\"'!\"&G5451))","v":""},{"$f":"IF(ISBLANK(INDIRECT(\"'\"&F5451&\"'!\"&H5451)),\"\",IFERROR(VLOOKUP(TEXT(INDIRECT(\"'\"&F5451&\"'!\"&H5451),\"0\"),Notes!$B$5:$C$100,2,FALSE),\"\"))","v":""},"2e","$K$84","$L$84"]
[22322,{"$f":"Menu!$F$29","v":"X"},{"$f":"Menu!$J$29","v":2020},{"$f":"IF(ISBLANK(INDIRECT(\"'\"&F5452&\"'!\"&G5452)),\"\",INDIRECT(\"'\"&F5452&\"'!\"&G5452))","v":""},{"$f":"IF(ISBLANK(INDIRECT(\"'\"&F5452&\"'!\"&H5452)),\"\",IFERROR(VLOOKUP(TEXT(INDIRECT(\"'\"&F5452&\"'!\"&H5452),\"0\"),Notes!$B$5:$C$100,2,FALSE),\"\"))","v":""},"2e","$O$84","$P$84"]
[22323,{"$f":"Menu!$F$29","v":"X"},{"$f":"Menu!$J$29","v":2020},{"$f":"IF(ISBLANK(INDIRECT(\"'\"&F5453&\"'!\"&G5453)),\"\",INDIRECT(\"'\"&F5453&\"'!\"&G5453))","v":""},{"$f":"IF(ISBLANK(INDIRECT(\"'\"&F5453&\"'!\"&H5453)),\"\",IFERROR(VLOOKUP(TEXT(INDIRECT(\"'\"&F5453&\"'!\"&H5453),\"0\"),Notes!$B$5:$C$100,2,FALSE),\"\"))","v":""},"2e","$M$84","$N$84"]
[22324,{"$f":"Menu!$F$29","v":"X"},{"$f":"Menu!$J$29","v":2020},{"$f":"IF(ISBLANK(INDIRECT(\"'\"&F5454&\"'!\"&G5454)),\"\",INDIRECT(\"'\"&F5454&\"'!\"&G5454))","v":""},{"$f":"IF(ISBLANK(INDIRECT(\"'\"&F5454&\"'!\"&H5454)),\"\",IFERROR(VLOOKUP(TEXT(INDIRECT(\"'\"&F5454&\"'!\"&H5454),\"0\"),Notes!$B$5:$C$100,2,FALSE),\"\"))","v":""},"2e","$Q$84","$R$84"]
[22325,{"$f":"Menu!$F$29","v":"X"},{"$f":"Menu!$J$29","v":2020},{"$f":"IF(ISBLANK(INDIRECT(\"'\"&F5455&\"'!\"&G5455)),\"\",INDIRECT(\"'\"&F5455&\"'!\"&G5455))","v":""},{"$f":"IF(ISBLANK(INDIRECT(\"'\"&F5455&\"'!\"&H5455)),\"\",IFERROR(VLOOKUP(TEXT(INDIRECT(\"'\"&F5455&\"'!\"&H5455),\"0\"),Notes!$B$5:$C$100,2,FALSE),\"\"))","v":""},"2e","$U$84","$V$84"]
[22326,{"$f":"Menu!$F$29","v":"X"},{"$f":"Menu!$J$29","v":2020},{"$f":"IF(ISBLANK(INDIRECT(\"'\"&F5456&\"'!\"&G5456)),\"\",INDIRECT(\"'\"&F5456&\"'!\"&G5456))","v":""},{"$f":"IF(ISBLANK(INDIRECT(\"'\"&F5456&\"'!\"&H5456)),\"\",IFERROR(VLOOKUP(TEXT(INDIRECT(\"'\"&F5456&\"'!\"&H5456),\"0\"),Notes!$B$5:$C$100,2,FALSE),\"\"))","v":""},"2e","$S$84","$T$84"]
[22327,{"$f":"Menu!$F$29","v":"X"},{"$f":"Menu!$J$29","v":2020},{"$f":"IF(ISBLANK(INDIRECT(\"'\"&F5457&\"'!\"&G5457)),\"\",INDIRECT(\"'\"&F5457&\"'!\"&G5457))","v":""},{"$f":"IF(ISBLANK(INDIRECT(\"'\"&F5457&\"'!\"&H5457)),\"\",IFERROR(VLOOKUP(TEXT(INDIRECT(\"'\"&F5457&\"'!\"&H5457),\"0\"),Notes!$B$5:$C$100,2,FALSE),\"\"))","v":""},"2e","$W$84","$X$84"]
[22328,{"$f":"Menu!$F$29","v":"X"},{"$f":"Menu!$J$29","v":2020},{"$f":"IF(ISBLANK(INDIRECT(\"'\"&F5458&\"'!\"&G5458)),\"\",INDIRECT(\"'\"&F5458&\"'!\"&G5458))","v":""},{"$f":"IF(ISBLANK(INDIRECT(\"'\"&F5458&\"'!\"&H5458)),\"\",IFERROR(VLOOKUP(TEXT(INDIRECT(\"'\"&F5458&\"'!\"&H5458),\"0\"),Notes!$B$5:$C$100,2,FALSE),\"\"))","v":""},"2e","$AA$84","$AB$84"]
[22329,{"$f":"Menu!$F$29","v":"X"},{"$f":"Menu!$J$29","v":2020},{"$f":"IF(ISBLANK(INDIRECT(\"'\"&F5459&\"'!\"&G5459)),\"\",INDIRECT(\"'\"&F5459&\"'!\"&G5459))","v":""},{"$f":"IF(ISBLANK(INDIRECT(\"'\"&F5459&\"'!\"&H5459)),\"\",IFERROR(VLOOKUP(TEXT(INDIRECT(\"'\"&F5459&\"'!\"&H5459),\"0\"),Notes!$B$5:$C$100,2,FALSE),\"\"))","v":""},"2e","$Y$84","$Z$84"]
[22330,{"$f":"Menu!$F$29","v":"X"},{"$f":"Menu!$J$29","v":2020},{"$f":"IF(ISBLANK(INDIRECT(\"'\"&F5460&\"'!\"&G5460)),\"\",INDIRECT(\"'\"&F5460&\"'!\"&G5460))","v":""},{"$f":"IF(ISBLANK(INDIRECT(\"'\"&F5460&\"'!\"&H5460)),\"\",IFERROR(VLOOKUP(TEXT(INDIRECT(\"'\"&F5460&\"'!\"&H5460),\"0\"),Notes!$B$5:$C$100,2,FALSE),\"\"))","v":""},"2e","$AC$84","$AD$84"]
[22331,{"$f":"Menu!$F$29","v":"X"},{"$f":"Menu!$J$29","v":2020},{"$f":"IF(ISBLANK(INDIRECT(\"'\"&F5461&\"'!\"&G5461)),\"\",INDIRECT(\"'\"&F5461&\"'!\"&G5461))","v":""},{"$f":"IF(ISBLANK(INDIRECT(\"'\"&F5461&\"'!\"&H5461)),\"\",IFERROR(VLOOKUP(TEXT(INDIRECT(\"'\"&F5461&\"'!\"&H5461),\"0\"),Notes!$B$5:$C$100,2,FALSE),\"\"))","v":""},"2e","$AG$84","$AH$84"]
[22332,{"$f":"Menu!$F$29","v":"X"},{"$f":"Menu!$J$29","v":2020},{"$f":"IF(ISBLANK(INDIRECT(\"'\"&F5462&\"'!\"&G5462)),\"\",INDIRECT(\"'\"&F5462&\"'!\"&G5462))","v":""},{"$f":"IF(ISBLANK(INDIRECT(\"'\"&F5462&\"'!\"&H5462)),\"\",IFERROR(VLOOKUP(TEXT(INDIRECT(\"'\"&F5462&\"'!\"&H5462),\"0\"),Notes!$B$5:$C$100,2,FALSE),\"\"))","v":""},"2e","$AE$84","$AF$84"]
[22333,{"$f":"Menu!$F$29","v":"X"},{"$f":"Menu!$J$29","v":2020},{"$f":"IF(ISBLANK(INDIRECT(\"'\"&F5463&\"'!\"&G5463)),\"\",INDIRECT(\"'\"&F5463&\"'!\"&G5463))","v":""},{"$f":"IF(ISBLANK(INDIRECT(\"'\"&F5463&\"'!\"&H5463)),\"\",IFERROR(VLOOKUP(TEXT(INDIRECT(\"'\"&F5463&\"'!\"&H5463),\"0\"),Notes!$B$5:$C$100,2,FALSE),\"\"))","v":""},"2e","$AI$84","$AJ$84"]
[22334,{"$f":"Menu!$F$29","v":"X"},{"$f":"Menu!$J$29","v":2020},{"$f":"IF(ISBLANK(INDIRECT(\"'\"&F5464&\"'!\"&G5464)),\"\",INDIRECT(\"'\"&F5464&\"'!\"&G5464))","v":""},{"$f":"IF(ISBLANK(INDIRECT(\"'\"&F5464&\"'!\"&H5464)),\"\",IFERROR(VLOOKUP(TEXT(INDIRECT(\"'\"&F5464&\"'!\"&H5464),\"0\"),Notes!$B$5:$C$100,2,FALSE),\"\"))","v":""},"2e","$AM$84","$AN$84"]
[22335,{"$f":"Menu!$F$29","v":"X"},{"$f":"Menu!$J$29","v":2020},{"$f":"IF(ISBLANK(INDIRECT(\"'\"&F5465&\"'!\"&G5465)),\"\",INDIRECT(\"'\"&F5465&\"'!\"&G5465))","v":""},{"$f":"IF(ISBLANK(INDIRECT(\"'\"&F5465&\"'!\"&H5465)),\"\",IFERROR(VLOOKUP(TEXT(INDIRECT(\"'\"&F5465&\"'!\"&H5465),\"0\"),Notes!$B$5:$C$100,2,FALSE),\"\"))","v":""},"2e","$AK$84","$AL$84"]
[22336,{"$f":"Menu!$F$29","v":"X"},{"$f":"Menu!$J$29","v":2020},{"$f":"IF(ISBLANK(INDIRECT(\"'\"&F5466&\"'!\"&G5466)),\"\",INDIRECT(\"'\"&F5466&\"'!\"&G5466))","v":""},{"$f":"IF(ISBLANK(INDIRECT(\"'\"&F5466&\"'!\"&H5466)),\"\",IFERROR(VLOOKUP(TEXT(INDIRECT(\"'\"&F5466&\"'!\"&H5466),\"0\"),Notes!$B$5:$C$100,2,FALSE),\"\"))","v":""},"2e","$AO$84","$AP$84"]
[22337,{"$f":"Menu!$F$29","v":"X"},{"$f":"Menu!$J$29","v":2020},{"$f":"IF(ISBLANK(INDIRECT(\"'\"&F5467&\"'!\"&G5467)),\"\",INDIRECT(\"'\"&F5467&\"'!\"&G5467))","v":""},{"$f":"IF(ISBLANK(INDIRECT(\"'\"&F5467&\"'!\"&H5467)),\"\",IFERROR(VLOOKUP(TEXT(INDIRECT(\"'\"&F5467&\"'!\"&H5467),\"0\"),Notes!$B$5:$C$100,2,FALSE),\"\"))","v":""},"2e","$AQ$84","$AR$84"]
[22338,{"$f":"Menu!$F$29","v":"X"},{"$f":"Menu!$J$29","v":2020},{"$f":"IF(ISBLANK(INDIRECT(\"'\"&F5468&\"'!\"&G5468)),\"\",INDIRECT(\"'\"&F5468&\"'!\"&G5468))","v":""},{"$f":"IF(ISBLANK(INDIRECT(\"'\"&F5468&\"'!\"&H5468)),\"\",IFERROR(VLOOKUP(TEXT(INDIRECT(\"'\"&F5468&\"'!\"&H5468),\"0\"),Notes!$B$5:$C$100,2,FALSE),\"\"))","v":""},"2e","$AS$84","$AT$84"]
[22339,{"$f":"Menu!$F$29","v":"X"},{"$f":"Menu!$J$29","v":2020},{"$f":"IF(ISBLANK(INDIRECT(\"'\"&F5469&\"'!\"&G5469)),\"\",INDIRECT(\"'\"&F5469&\"'!\"&G5469))","v":""},{"$f":"IF(ISBLANK(INDIRECT(\"'\"&F5469&\"'!\"&H5469)),\"\",IFERROR(VLOOKUP(TEXT(INDIRECT(\"'\"&F5469&\"'!\"&H5469),\"0\"),Notes!$B$5:$C$100,2,FALSE),\"\"))","v":""},"2e","$AU$84","$AV$84"]
[22340,{"$f":"Menu!$F$29","v":"X"},{"$f":"Menu!$J$29","v":2020},{"$f":"IF(ISBLANK(INDIRECT(\"'\"&F5470&\"'!\"&G5470)),\"\",INDIRECT(\"'\"&F5470&\"'!\"&G5470))","v":""},{"$f":"IF(ISBLANK(INDIRECT(\"'\"&F5470&\"'!\"&H5470)),\"\",IFERROR(VLOOKUP(TEXT(INDIRECT(\"'\"&F5470&\"'!\"&H5470),\"0\"),Notes!$B$5:$C$100,2,FALSE),\"\"))","v":""},"2e","$AY$84","$AZ$84"]
[22341,{"$f":"Menu!$F$29","v":"X"},{"$f":"Menu!$J$29","v":2020},{"$f":"IF(ISBLANK(INDIRECT(\"'\"&F5471&\"'!\"&G5471)),\"\",INDIRECT(\"'\"&F5471&\"'!\"&G5471))","v":""},{"$f":"IF(ISBLANK(INDIRECT(\"'\"&F5471&\"'!\"&H5471)),\"\",IFERROR(VLOOKUP(TEXT(INDIRECT(\"'\"&F5471&\"'!\"&H5471),\"0\"),Notes!$B$5:$C$100,2,FALSE),\"\"))","v":""},"2e","$AW$84","$AX$84"]
[22342,{"$f":"Menu!$F$29","v":"X"},{"$f":"Menu!$J$29","v":2020},{"$f":"IF(ISBLANK(INDIRECT(\"'\"&F5472&\"'!\"&G5472)),\"\",INDIRECT(\"'\"&F5472&\"'!\"&G5472))","v":""},{"$f":"IF(ISBLANK(INDIRECT(\"'\"&F5472&\"'!\"&H5472)),\"\",IFERROR(VLOOKUP(TEXT(INDIRECT(\"'\"&F5472&\"'!\"&H5472),\"0\"),Notes!$B$5:$C$100,2,FALSE),\"\"))","v":""},"2e","$BA$84","$BB$84"]
[22343,{"$f":"Menu!$F$29","v":"X"},{"$f":"Menu!$J$29","v":2020},{"$f":"IF(ISBLANK(INDIRECT(\"'\"&F5473&\"'!\"&G5473)),\"\",INDIRECT(\"'\"&F5473&\"'!\"&G5473))","v":""},{"$f":"IF(ISBLANK(INDIRECT(\"'\"&F5473&\"'!\"&H5473)),\"\",IFERROR(VLOOKUP(TEXT(INDIRECT(\"'\"&F5473&\"'!\"&H5473),\"0\"),Notes!$B$5:$C$100,2,FALSE),\"\"))","v":""},"2e","$BE$84","$BF$84"]
[22344,{"$f":"Menu!$F$29","v":"X"},{"$f":"Menu!$J$29","v":2020},{"$f":"IF(ISBLANK(INDIRECT(\"'\"&F5474&\"'!\"&G5474)),\"\",INDIRECT(\"'\"&F5474&\"'!\"&G5474))","v":""},{"$f":"IF(ISBLANK(INDIRECT(\"'\"&F5474&\"'!\"&H5474)),\"\",IFERROR(VLOOKUP(TEXT(INDIRECT(\"'\"&F5474&\"'!\"&H5474),\"0\"),Notes!$B$5:$C$100,2,FALSE),\"\"))","v":""},"2e","$BC$84","$BD$84"]
[22345,{"$f":"Menu!$F$29","v":"X"},{"$f":"Menu!$J$29","v":2020},{"$f":"IF(ISBLANK(INDIRECT(\"'\"&F5475&\"'!\"&G5475)),\"\",INDIRECT(\"'\"&F5475&\"'!\"&G5475))","v":""},{"$f":"IF(ISBLANK(INDIRECT(\"'\"&F5475&\"'!\"&H5475)),\"\",IFERROR(VLOOKUP(TEXT(INDIRECT(\"'\"&F5475&\"'!\"&H5475),\"0\"),Notes!$B$5:$C$100,2,FALSE),\"\"))","v":""},"2e","$BG$83","$BH$83"]
[22346,{"$f":"Menu!$F$29","v":"X"},{"$f":"Menu!$J$29","v":2020},{"$f":"IF(ISBLANK(INDIRECT(\"'\"&F5476&\"'!\"&G5476)),\"\",INDIRECT(\"'\"&F5476&\"'!\"&G5476))","v":""},{"$f":"IF(ISBLANK(INDIRECT(\"'\"&F5476&\"'!\"&H5476)),\"\",IFERROR(VLOOKUP(TEXT(INDIRECT(\"'\"&F5476&\"'!\"&H5476),\"0\"),Notes!$B$5:$C$100,2,FALSE),\"\"))","v":""},"2e","$BK$83","$BL$83"]
[22347,{"$f":"Menu!$F$29","v":"X"},{"$f":"Menu!$J$29","v":2020},{"$f":"IF(ISBLANK(INDIRECT(\"'\"&F5477&\"'!\"&G5477)),\"\",INDIRECT(\"'\"&F5477&\"'!\"&G5477))","v":""},{"$f":"IF(ISBLANK(INDIRECT(\"'\"&F5477&\"'!\"&H5477)),\"\",IFERROR(VLOOKUP(TEXT(INDIRECT(\"'\"&F5477&\"'!\"&H5477),\"0\"),Notes!$B$5:$C$100,2,FALSE),\"\"))","v":""},"2e","$BI$83","$BJ$83"]
[22348,{"$f":"Menu!$F$29","v":"X"},{"$f":"Menu!$J$29","v":2020},{"$f":"IF(ISBLANK(INDIRECT(\"'\"&F5478&\"'!\"&G5478)),\"\",INDIRECT(\"'\"&F5478&\"'!\"&G5478))","v":""},{"$f":"IF(ISBLANK(INDIRECT(\"'\"&F5478&\"'!\"&H5478)),\"\",IFERROR(VLOOKUP(TEXT(INDIRECT(\"'\"&F5478&\"'!\"&H5478),\"0\"),Notes!$B$5:$C$100,2,FALSE),\"\"))","v":""},"2e","$E$83","$F$83"]
[22349,{"$f":"Menu!$F$29","v":"X"},{"$f":"Menu!$J$29","v":2020},{"$f":"IF(ISBLANK(INDIRECT(\"'\"&F5479&\"'!\"&G5479)),\"\",INDIRECT(\"'\"&F5479&\"'!\"&G5479))","v":""},{"$f":"IF(ISBLANK(INDIRECT(\"'\"&F5479&\"'!\"&H5479)),\"\",IFERROR(VLOOKUP(TEXT(INDIRECT(\"'\"&F5479&\"'!\"&H5479),\"0\"),Notes!$B$5:$C$100,2,FALSE),\"\"))","v":""},"2e","$I$83","$J$83"]
[22350,{"$f":"Menu!$F$29","v":"X"},{"$f":"Menu!$J$29","v":2020},{"$f":"IF(ISBLANK(INDIRECT(\"'\"&F5480&\"'!\"&G5480)),\"\",INDIRECT(\"'\"&F5480&\"'!\"&G5480))","v":""},{"$f":"IF(ISBLANK(INDIRECT(\"'\"&F5480&\"'!\"&H5480)),\"\",IFERROR(VLOOKUP(TEXT(INDIRECT(\"'\"&F5480&\"'!\"&H5480),\"0\"),Notes!$B$5:$C$100,2,FALSE),\"\"))","v":""},"2e","$G$83","$H$83"]
[22351,{"$f":"Menu!$F$29","v":"X"},{"$f":"Menu!$J$29","v":2020},{"$f":"IF(ISBLANK(INDIRECT(\"'\"&F5481&\"'!\"&G5481)),\"\",INDIRECT(\"'\"&F5481&\"'!\"&G5481))","v":""},{"$f":"IF(ISBLANK(INDIRECT(\"'\"&F5481&\"'!\"&H5481)),\"\",IFERROR(VLOOKUP(TEXT(INDIRECT(\"'\"&F5481&\"'!\"&H5481),\"0\"),Notes!$B$5:$C$100,2,FALSE),\"\"))","v":""},"2e","$K$83","$L$83"]
[22352,{"$f":"Menu!$F$29","v":"X"},{"$f":"Menu!$J$29","v":2020},{"$f":"IF(ISBLANK(INDIRECT(\"'\"&F5482&\"'!\"&G5482)),\"\",INDIRECT(\"'\"&F5482&\"'!\"&G5482))","v":""},{"$f":"IF(ISBLANK(INDIRECT(\"'\"&F5482&\"'!\"&H5482)),\"\",IFERROR(VLOOKUP(TEXT(INDIRECT(\"'\"&F5482&\"'!\"&H5482),\"0\"),Notes!$B$5:$C$100,2,FALSE),\"\"))","v":""},"2e","$O$83","$P$83"]
[22353,{"$f":"Menu!$F$29","v":"X"},{"$f":"Menu!$J$29","v":2020},{"$f":"IF(ISBLANK(INDIRECT(\"'\"&F5483&\"'!\"&G5483)),\"\",INDIRECT(\"'\"&F5483&\"'!\"&G5483))","v":""},{"$f":"IF(ISBLANK(INDIRECT(\"'\"&F5483&\"'!\"&H5483)),\"\",IFERROR(VLOOKUP(TEXT(INDIRECT(\"'\"&F5483&\"'!\"&H5483),\"0\"),Notes!$B$5:$C$100,2,FALSE),\"\"))","v":""},"2e","$M$83","$N$83"]
[22354,{"$f":"Menu!$F$29","v":"X"},{"$f":"Menu!$J$29","v":2020},{"$f":"IF(ISBLANK(INDIRECT(\"'\"&F5484&\"'!\"&G5484)),\"\",INDIRECT(\"'\"&F5484&\"'!\"&G5484))","v":""},{"$f":"IF(ISBLANK(INDIRECT(\"'\"&F5484&\"'!\"&H5484)),\"\",IFERROR(VLOOKUP(TEXT(INDIRECT(\"'\"&F5484&\"'!\"&H5484),\"0\"),Notes!$B$5:$C$100,2,FALSE),\"\"))","v":""},"2e","$Q$83","$R$83"]
[22355,{"$f":"Menu!$F$29","v":"X"},{"$f":"Menu!$J$29","v":2020},{"$f":"IF(ISBLANK(INDIRECT(\"'\"&F5485&\"'!\"&G5485)),\"\",INDIRECT(\"'\"&F5485&\"'!\"&G5485))","v":""},{"$f":"IF(ISBLANK(INDIRECT(\"'\"&F5485&\"'!\"&H5485)),\"\",IFERROR(VLOOKUP(TEXT(INDIRECT(\"'\"&F5485&\"'!\"&H5485),\"0\"),Notes!$B$5:$C$100,2,FALSE),\"\"))","v":""},"2e","$U$83","$V$83"]
[22356,{"$f":"Menu!$F$29","v":"X"},{"$f":"Menu!$J$29","v":2020},{"$f":"IF(ISBLANK(INDIRECT(\"'\"&F5486&\"'!\"&G5486)),\"\",INDIRECT(\"'\"&F5486&\"'!\"&G5486))","v":""},{"$f":"IF(ISBLANK(INDIRECT(\"'\"&F5486&\"'!\"&H5486)),\"\",IFERROR(VLOOKUP(TEXT(INDIRECT(\"'\"&F5486&\"'!\"&H5486),\"0\"),Notes!$B$5:$C$100,2,FALSE),\"\"))","v":""},"2e","$S$83","$T$83"]
[22357,{"$f":"Menu!$F$29","v":"X"},{"$f":"Menu!$J$29","v":2020},{"$f":"IF(ISBLANK(INDIRECT(\"'\"&F5487&\"'!\"&G5487)),\"\",INDIRECT(\"'\"&F5487&\"'!\"&G5487))","v":""},{"$f":"IF(ISBLANK(INDIRECT(\"'\"&F5487&\"'!\"&H5487)),\"\",IFERROR(VLOOKUP(TEXT(INDIRECT(\"'\"&F5487&\"'!\"&H5487),\"0\"),Notes!$B$5:$C$100,2,FALSE),\"\"))","v":""},"2e","$W$83","$X$83"]
[22358,{"$f":"Menu!$F$29","v":"X"},{"$f":"Menu!$J$29","v":2020},{"$f":"IF(ISBLANK(INDIRECT(\"'\"&F5488&\"'!\"&G5488)),\"\",INDIRECT(\"'\"&F5488&\"'!\"&G5488))","v":""},{"$f":"IF(ISBLANK(INDIRECT(\"'\"&F5488&\"'!\"&H5488)),\"\",IFERROR(VLOOKUP(TEXT(INDIRECT(\"'\"&F5488&\"'!\"&H5488),\"0\"),Notes!$B$5:$C$100,2,FALSE),\"\"))","v":""},"2e","$AA$83","$AB$83"]
[22359,{"$f":"Menu!$F$29","v":"X"},{"$f":"Menu!$J$29","v":2020},{"$f":"IF(ISBLANK(INDIRECT(\"'\"&F5489&\"'!\"&G5489)),\"\",INDIRECT(\"'\"&F5489&\"'!\"&G5489))","v":""},{"$f":"IF(ISBLANK(INDIRECT(\"'\"&F5489&\"'!\"&H5489)),\"\",IFERROR(VLOOKUP(TEXT(INDIRECT(\"'\"&F5489&\"'!\"&H5489),\"0\"),Notes!$B$5:$C$100,2,FALSE),\"\"))","v":""},"2e","$Y$83","$Z$83"]
[22360,{"$f":"Menu!$F$29","v":"X"},{"$f":"Menu!$J$29","v":2020},{"$f":"IF(ISBLANK(INDIRECT(\"'\"&F5490&\"'!\"&G5490)),\"\",INDIRECT(\"'\"&F5490&\"'!\"&G5490))","v":""},{"$f":"IF(ISBLANK(INDIRECT(\"'\"&F5490&\"'!\"&H5490)),\"\",IFERROR(VLOOKUP(TEXT(INDIRECT(\"'\"&F5490&\"'!\"&H5490),\"0\"),Notes!$B$5:$C$100,2,FALSE),\"\"))","v":""},"2e","$AC$83","$AD$83"]
[22361,{"$f":"Menu!$F$29","v":"X"},{"$f":"Menu!$J$29","v":2020},{"$f":"IF(ISBLANK(INDIRECT(\"'\"&F5491&\"'!\"&G5491)),\"\",INDIRECT(\"'\"&F5491&\"'!\"&G5491))","v":""},{"$f":"IF(ISBLANK(INDIRECT(\"'\"&F5491&\"'!\"&H5491)),\"\",IFERROR(VLOOKUP(TEXT(INDIRECT(\"'\"&F5491&\"'!\"&H5491),\"0\"),Notes!$B$5:$C$100,2,FALSE),\"\"))","v":""},"2e","$AG$83","$AH$83"]
[22362,{"$f":"Menu!$F$29","v":"X"},{"$f":"Menu!$J$29","v":2020},{"$f":"IF(ISBLANK(INDIRECT(\"'\"&F5492&\"'!\"&G5492)),\"\",INDIRECT(\"'\"&F5492&\"'!\"&G5492))","v":""},{"$f":"IF(ISBLANK(INDIRECT(\"'\"&F5492&\"'!\"&H5492)),\"\",IFERROR(VLOOKUP(TEXT(INDIRECT(\"'\"&F5492&\"'!\"&H5492),\"0\"),Notes!$B$5:$C$100,2,FALSE),\"\"))","v":""},"2e","$AE$83","$AF$83"]
[22363,{"$f":"Menu!$F$29","v":"X"},{"$f":"Menu!$J$29","v":2020},{"$f":"IF(ISBLANK(INDIRECT(\"'\"&F5493&\"'!\"&G5493)),\"\",INDIRECT(\"'\"&F5493&\"'!\"&G5493))","v":""},{"$f":"IF(ISBLANK(INDIRECT(\"'\"&F5493&\"'!\"&H5493)),\"\",IFERROR(VLOOKUP(TEXT(INDIRECT(\"'\"&F5493&\"'!\"&H5493),\"0\"),Notes!$B$5:$C$100,2,FALSE),\"\"))","v":""},"2e","$AI$83","$AJ$83"]
[22364,{"$f":"Menu!$F$29","v":"X"},{"$f":"Menu!$J$29","v":2020},{"$f":"IF(ISBLANK(INDIRECT(\"'\"&F5494&\"'!\"&G5494)),\"\",INDIRECT(\"'\"&F5494&\"'!\"&G5494))","v":""},{"$f":"IF(ISBLANK(INDIRECT(\"'\"&F5494&\"'!\"&H5494)),\"\",IFERROR(VLOOKUP(TEXT(INDIRECT(\"'\"&F5494&\"'!\"&H5494),\"0\"),Notes!$B$5:$C$100,2,FALSE),\"\"))","v":""},"2e","$AM$83","$AN$83"]
[22365,{"$f":"Menu!$F$29","v":"X"},{"$f":"Menu!$J$29","v":2020},{"$f":"IF(ISBLANK(INDIRECT(\"'\"&F5495&\"'!\"&G5495)),\"\",INDIRECT(\"'\"&F5495&\"'!\"&G5495))","v":""},{"$f":"IF(ISBLANK(INDIRECT(\"'\"&F5495&\"'!\"&H5495)),\"\",IFERROR(VLOOKUP(TEXT(INDIRECT(\"'\"&F5495&\"'!\"&H5495),\"0\"),Notes!$B$5:$C$100,2,FALSE),\"\"))","v":""},"2e","$AK$83","$AL$83"]
[22366,{"$f":"Menu!$F$29","v":"X"},{"$f":"Menu!$J$29","v":2020},{"$f":"IF(ISBLANK(INDIRECT(\"'\"&F5496&\"'!\"&G5496)),\"\",INDIRECT(\"'\"&F5496&\"'!\"&G5496))","v":""},{"$f":"IF(ISBLANK(INDIRECT(\"'\"&F5496&\"'!\"&H5496)),\"\",IFERROR(VLOOKUP(TEXT(INDIRECT(\"'\"&F5496&\"'!\"&H5496),\"0\"),Notes!$B$5:$C$100,2,FALSE),\"\"))","v":""},"2e","$AO$83","$AP$83"]
[22367,{"$f":"Menu!$F$29","v":"X"},{"$f":"Menu!$J$29","v":2020},{"$f":"IF(ISBLANK(INDIRECT(\"'\"&F5497&\"'!\"&G5497)),\"\",INDIRECT(\"'\"&F5497&\"'!\"&G5497))","v":""},{"$f":"IF(ISBLANK(INDIRECT(\"'\"&F5497&\"'!\"&H5497)),\"\",IFERROR(VLOOKUP(TEXT(INDIRECT(\"'\"&F5497&\"'!\"&H5497),\"0\"),Notes!$B$5:$C$100,2,FALSE),\"\"))","v":""},"2e","$AQ$83","$AR$83"]
[22368,{"$f":"Menu!$F$29","v":"X"},{"$f":"Menu!$J$29","v":2020},{"$f":"IF(ISBLANK(INDIRECT(\"'\"&F5498&\"'!\"&G5498)),\"\",INDIRECT(\"'\"&F5498&\"'!\"&G5498))","v":""},{"$f":"IF(ISBLANK(INDIRECT(\"'\"&F5498&\"'!\"&H5498)),\"\",IFERROR(VLOOKUP(TEXT(INDIRECT(\"'\"&F5498&\"'!\"&H5498),\"0\"),Notes!$B$5:$C$100,2,FALSE),\"\"))","v":""},"2e","$AS$83","$AT$83"]
[22369,{"$f":"Menu!$F$29","v":"X"},{"$f":"Menu!$J$29","v":2020},{"$f":"IF(ISBLANK(INDIRECT(\"'\"&F5499&\"'!\"&G5499)),\"\",INDIRECT(\"'\"&F5499&\"'!\"&G5499))","v":""},{"$f":"IF(ISBLANK(INDIRECT(\"'\"&F5499&\"'!\"&H5499)),\"\",IFERROR(VLOOKUP(TEXT(INDIRECT(\"'\"&F5499&\"'!\"&H5499),\"0\"),Notes!$B$5:$C$100,2,FALSE),\"\"))","v":""},"2e","$AU$83","$AV$83"]
[22370,{"$f":"Menu!$F$29","v":"X"},{"$f":"Menu!$J$29","v":2020},{"$f":"IF(ISBLANK(INDIRECT(\"'\"&F5500&\"'!\"&G5500)),\"\",INDIRECT(\"'\"&F5500&\"'!\"&G5500))","v":""},{"$f":"IF(ISBLANK(INDIRECT(\"'\"&F5500&\"'!\"&H5500)),\"\",IFERROR(VLOOKUP(TEXT(INDIRECT(\"'\"&F5500&\"'!\"&H5500),\"0\"),Notes!$B$5:$C$100,2,FALSE),\"\"))","v":""},"2e","$AY$83","$AZ$83"]
[22371,{"$f":"Menu!$F$29","v":"X"},{"$f":"Menu!$J$29","v":2020},{"$f":"IF(ISBLANK(INDIRECT(\"'\"&F5501&\"'!\"&G5501)),\"\",INDIRECT(\"'\"&F5501&\"'!\"&G5501))","v":""},{"$f":"IF(ISBLANK(INDIRECT(\"'\"&F5501&\"'!\"&H5501)),\"\",IFERROR(VLOOKUP(TEXT(INDIRECT(\"'\"&F5501&\"'!\"&H5501),\"0\"),Notes!$B$5:$C$100,2,FALSE),\"\"))","v":""},"2e","$AW$83","$AX$83"]
[22372,{"$f":"Menu!$F$29","v":"X"},{"$f":"Menu!$J$29","v":2020},{"$f":"IF(ISBLANK(INDIRECT(\"'\"&F5502&\"'!\"&G5502)),\"\",INDIRECT(\"'\"&F5502&\"'!\"&G5502))","v":""},{"$f":"IF(ISBLANK(INDIRECT(\"'\"&F5502&\"'!\"&H5502)),\"\",IFERROR(VLOOKUP(TEXT(INDIRECT(\"'\"&F5502&\"'!\"&H5502),\"0\"),Notes!$B$5:$C$100,2,FALSE),\"\"))","v":""},"2e","$BA$83","$BB$83"]
[22373,{"$f":"Menu!$F$29","v":"X"},{"$f":"Menu!$J$29","v":2020},{"$f":"IF(ISBLANK(INDIRECT(\"'\"&F5503&\"'!\"&G5503)),\"\",INDIRECT(\"'\"&F5503&\"'!\"&G5503))","v":""},{"$f":"IF(ISBLANK(INDIRECT(\"'\"&F5503&\"'!\"&H5503)),\"\",IFERROR(VLOOKUP(TEXT(INDIRECT(\"'\"&F5503&\"'!\"&H5503),\"0\"),Notes!$B$5:$C$100,2,FALSE),\"\"))","v":""},"2e","$BE$83","$BF$83"]
[22374,{"$f":"Menu!$F$29","v":"X"},{"$f":"Menu!$J$29","v":2020},{"$f":"IF(ISBLANK(INDIRECT(\"'\"&F5504&\"'!\"&G5504)),\"\",INDIRECT(\"'\"&F5504&\"'!\"&G5504))","v":""},{"$f":"IF(ISBLANK(INDIRECT(\"'\"&F5504&\"'!\"&H5504)),\"\",IFERROR(VLOOKUP(TEXT(INDIRECT(\"'\"&F5504&\"'!\"&H5504),\"0\"),Notes!$B$5:$C$100,2,FALSE),\"\"))","v":""},"2e","$BC$83","$BD$83"]
[22375,{"$f":"Menu!$F$29","v":"X"},{"$f":"Menu!$J$29","v":2020},{"$f":"IF(ISBLANK(INDIRECT(\"'\"&F5505&\"'!\"&G5505)),\"\",INDIRECT(\"'\"&F5505&\"'!\"&G5505))","v":""},{"$f":"IF(ISBLANK(INDIRECT(\"'\"&F5505&\"'!\"&H5505)),\"\",IFERROR(VLOOKUP(TEXT(INDIRECT(\"'\"&F5505&\"'!\"&H5505),\"0\"),Notes!$B$5:$C$100,2,FALSE),\"\"))","v":""},"2e","$BG$82","$BH$82"]
[22376,{"$f":"Menu!$F$29","v":"X"},{"$f":"Menu!$J$29","v":2020},{"$f":"IF(ISBLANK(INDIRECT(\"'\"&F5506&\"'!\"&G5506)),\"\",INDIRECT(\"'\"&F5506&\"'!\"&G5506))","v":""},{"$f":"IF(ISBLANK(INDIRECT(\"'\"&F5506&\"'!\"&H5506)),\"\",IFERROR(VLOOKUP(TEXT(INDIRECT(\"'\"&F5506&\"'!\"&H5506),\"0\"),Notes!$B$5:$C$100,2,FALSE),\"\"))","v":""},"2e","$BK$82",{"$f":"IF(LEN(TRIM(MID(G5506,4,10)))-LEN(SUBSTITUTE(TRIM(MID(G5506,4,10)),\"$\",\"\"))=0,\"$\"&CHAR(CODE(MID(G5506,2,1))+1)&\"$\"&TRIM(MID(G5506,4,10)),\"$\"&MID(G5506,2,1)&CHAR(CODE(MID(G5506,3,1))+1)&\"$\"&TRIM(MID(G5506,5,11)))","v":"$BL$82"}]
[22377,{"$f":"Menu!$F$29","v":"X"},{"$f":"Menu!$J$29","v":2020},{"$f":"IF(ISBLANK(INDIRECT(\"'\"&F5507&\"'!\"&G5507)),\"\",INDIRECT(\"'\"&F5507&\"'!\"&G5507))","v":""},{"$f":"IF(ISBLANK(INDIRECT(\"'\"&F5507&\"'!\"&H5507)),\"\",IFERROR(VLOOKUP(TEXT(INDIRECT(\"'\"&F5507&\"'!\"&H5507),\"0\"),Notes!$B$5:$C$100,2,FALSE),\"\"))","v":""},"2e","$BI$82","$BJ$82"]
[22378,{"$f":"Menu!$F$29","v":"X"},{"$f":"Menu!$J$29","v":2020},{"$f":"IF(ISBLANK(INDIRECT(\"'\"&F5508&\"'!\"&G5508)),\"\",INDIRECT(\"'\"&F5508&\"'!\"&G5508))","v":""},{"$f":"IF(ISBLANK(INDIRECT(\"'\"&F5508&\"'!\"&H5508)),\"\",IFERROR(VLOOKUP(TEXT(INDIRECT(\"'\"&F5508&\"'!\"&H5508),\"0\"),Notes!$B$5:$C$100,2,FALSE),\"\"))","v":""},"2e","$E$82","$F$82"]
[22379,{"$f":"Menu!$F$29","v":"X"},{"$f":"Menu!$J$29","v":2020},{"$f":"IF(ISBLANK(INDIRECT(\"'\"&F5509&\"'!\"&G5509)),\"\",INDIRECT(\"'\"&F5509&\"'!\"&G5509))","v":""},{"$f":"IF(ISBLANK(INDIRECT(\"'\"&F5509&\"'!\"&H5509)),\"\",IFERROR(VLOOKUP(TEXT(INDIRECT(\"'\"&F5509&\"'!\"&H5509),\"0\"),Notes!$B$5:$C$100,2,FALSE),\"\"))","v":""},"2e","$I$82","$J$82"]
[22380,{"$f":"Menu!$F$29","v":"X"},{"$f":"Menu!$J$29","v":2020},{"$f":"IF(ISBLANK(INDIRECT(\"'\"&F5510&\"'!\"&G5510)),\"\",INDIRECT(\"'\"&F5510&\"'!\"&G5510))","v":""},{"$f":"IF(ISBLANK(INDIRECT(\"'\"&F5510&\"'!\"&H5510)),\"\",IFERROR(VLOOKUP(TEXT(INDIRECT(\"'\"&F5510&\"'!\"&H5510),\"0\"),Notes!$B$5:$C$100,2,FALSE),\"\"))","v":""},"2e","$G$82","$H$82"]
[22381,{"$f":"Menu!$F$29","v":"X"},{"$f":"Menu!$J$29","v":2020},{"$f":"IF(ISBLANK(INDIRECT(\"'\"&F5511&\"'!\"&G5511)),\"\",INDIRECT(\"'\"&F5511&\"'!\"&G5511))","v":""},{"$f":"IF(ISBLANK(INDIRECT(\"'\"&F5511&\"'!\"&H5511)),\"\",IFERROR(VLOOKUP(TEXT(INDIRECT(\"'\"&F5511&\"'!\"&H5511),\"0\"),Notes!$B$5:$C$100,2,FALSE),\"\"))","v":""},"2e","$K$82","$L$82"]
[22382,{"$f":"Menu!$F$29","v":"X"},{"$f":"Menu!$J$29","v":2020},{"$f":"IF(ISBLANK(INDIRECT(\"'\"&F5512&\"'!\"&G5512)),\"\",INDIRECT(\"'\"&F5512&\"'!\"&G5512))","v":""},{"$f":"IF(ISBLANK(INDIRECT(\"'\"&F5512&\"'!\"&H5512)),\"\",IFERROR(VLOOKUP(TEXT(INDIRECT(\"'\"&F5512&\"'!\"&H5512),\"0\"),Notes!$B$5:$C$100,2,FALSE),\"\"))","v":""},"2e","$O$82","$P$82"]
[22383,{"$f":"Menu!$F$29","v":"X"},{"$f":"Menu!$J$29","v":2020},{"$f":"IF(ISBLANK(INDIRECT(\"'\"&F5513&\"'!\"&G5513)),\"\",INDIRECT(\"'\"&F5513&\"'!\"&G5513))","v":""},{"$f":"IF(ISBLANK(INDIRECT(\"'\"&F5513&\"'!\"&H5513)),\"\",IFERROR(VLOOKUP(TEXT(INDIRECT(\"'\"&F5513&\"'!\"&H5513),\"0\"),Notes!$B$5:$C$100,2,FALSE),\"\"))","v":""},"2e","$M$82","$N$82"]
[22384,{"$f":"Menu!$F$29","v":"X"},{"$f":"Menu!$J$29","v":2020},{"$f":"IF(ISBLANK(INDIRECT(\"'\"&F5514&\"'!\"&G5514)),\"\",INDIRECT(\"'\"&F5514&\"'!\"&G5514))","v":""},{"$f":"IF(ISBLANK(INDIRECT(\"'\"&F5514&\"'!\"&H5514)),\"\",IFERROR(VLOOKUP(TEXT(INDIRECT(\"'\"&F5514&\"'!\"&H5514),\"0\"),Notes!$B$5:$C$100,2,FALSE),\"\"))","v":""},"2e","$Q$82","$R$82"]
[22385,{"$f":"Menu!$F$29","v":"X"},{"$f":"Menu!$J$29","v":2020},{"$f":"IF(ISBLANK(INDIRECT(\"'\"&F5515&\"'!\"&G5515)),\"\",INDIRECT(\"'\"&F5515&\"'!\"&G5515))","v":""},{"$f":"IF(ISBLANK(INDIRECT(\"'\"&F5515&\"'!\"&H5515)),\"\",IFERROR(VLOOKUP(TEXT(INDIRECT(\"'\"&F5515&\"'!\"&H5515),\"0\"),Notes!$B$5:$C$100,2,FALSE),\"\"))","v":""},"2e","$U$82","$V$82"]
[22386,{"$f":"Menu!$F$29","v":"X"},{"$f":"Menu!$J$29","v":2020},{"$f":"IF(ISBLANK(INDIRECT(\"'\"&F5516&\"'!\"&G5516)),\"\",INDIRECT(\"'\"&F5516&\"'!\"&G5516))","v":""},{"$f":"IF(ISBLANK(INDIRECT(\"'\"&F5516&\"'!\"&H5516)),\"\",IFERROR(VLOOKUP(TEXT(INDIRECT(\"'\"&F5516&\"'!\"&H5516),\"0\"),Notes!$B$5:$C$100,2,FALSE),\"\"))","v":""},"2e","$S$82","$T$82"]
[22387,{"$f":"Menu!$F$29","v":"X"},{"$f":"Menu!$J$29","v":2020},{"$f":"IF(ISBLANK(INDIRECT(\"'\"&F5517&\"'!\"&G5517)),\"\",INDIRECT(\"'\"&F5517&\"'!\"&G5517))","v":""},{"$f":"IF(ISBLANK(INDIRECT(\"'\"&F5517&\"'!\"&H5517)),\"\",IFERROR(VLOOKUP(TEXT(INDIRECT(\"'\"&F5517&\"'!\"&H5517),\"0\"),Notes!$B$5:$C$100,2,FALSE),\"\"))","v":""},"2e","$W$82","$X$82"]
[22388,{"$f":"Menu!$F$29","v":"X"},{"$f":"Menu!$J$29","v":2020},{"$f":"IF(ISBLANK(INDIRECT(\"'\"&F5518&\"'!\"&G5518)),\"\",INDIRECT(\"'\"&F5518&\"'!\"&G5518))","v":""},{"$f":"IF(ISBLANK(INDIRECT(\"'\"&F5518&\"'!\"&H5518)),\"\",IFERROR(VLOOKUP(TEXT(INDIRECT(\"'\"&F5518&\"'!\"&H5518),\"0\"),Notes!$B$5:$C$100,2,FALSE),\"\"))","v":""},"2e","$AA$82","$AB$82"]
[22389,{"$f":"Menu!$F$29","v":"X"},{"$f":"Menu!$J$29","v":2020},{"$f":"IF(ISBLANK(INDIRECT(\"'\"&F5519&\"'!\"&G5519)),\"\",INDIRECT(\"'\"&F5519&\"'!\"&G5519))","v":""},{"$f":"IF(ISBLANK(INDIRECT(\"'\"&F5519&\"'!\"&H5519)),\"\",IFERROR(VLOOKUP(TEXT(INDIRECT(\"'\"&F5519&\"'!\"&H5519),\"0\"),Notes!$B$5:$C$100,2,FALSE),\"\"))","v":""},"2e","$Y$82","$Z$82"]
[22390,{"$f":"Menu!$F$29","v":"X"},{"$f":"Menu!$J$29","v":2020},{"$f":"IF(ISBLANK(INDIRECT(\"'\"&F5520&\"'!\"&G5520)),\"\",INDIRECT(\"'\"&F5520&\"'!\"&G5520))","v":""},{"$f":"IF(ISBLANK(INDIRECT(\"'\"&F5520&\"'!\"&H5520)),\"\",IFERROR(VLOOKUP(TEXT(INDIRECT(\"'\"&F5520&\"'!\"&H5520),\"0\"),Notes!$B$5:$C$100,2,FALSE),\"\"))","v":""},"2e","$AC$82","$AD$82"]
[22391,{"$f":"Menu!$F$29","v":"X"},{"$f":"Menu!$J$29","v":2020},{"$f":"IF(ISBLANK(INDIRECT(\"'\"&F5521&\"'!\"&G5521)),\"\",INDIRECT(\"'\"&F5521&\"'!\"&G5521))","v":""},{"$f":"IF(ISBLANK(INDIRECT(\"'\"&F5521&\"'!\"&H5521)),\"\",IFERROR(VLOOKUP(TEXT(INDIRECT(\"'\"&F5521&\"'!\"&H5521),\"0\"),Notes!$B$5:$C$100,2,FALSE),\"\"))","v":""},"2e","$AG$82","$AH$82"]
[22392,{"$f":"Menu!$F$29","v":"X"},{"$f":"Menu!$J$29","v":2020},{"$f":"IF(ISBLANK(INDIRECT(\"'\"&F5522&\"'!\"&G5522)),\"\",INDIRECT(\"'\"&F5522&\"'!\"&G5522))","v":""},{"$f":"IF(ISBLANK(INDIRECT(\"'\"&F5522&\"'!\"&H5522)),\"\",IFERROR(VLOOKUP(TEXT(INDIRECT(\"'\"&F5522&\"'!\"&H5522),\"0\"),Notes!$B$5:$C$100,2,FALSE),\"\"))","v":""},"2e","$AE$82","$AF$82"]
[22393,{"$f":"Menu!$F$29","v":"X"},{"$f":"Menu!$J$29","v":2020},{"$f":"IF(ISBLANK(INDIRECT(\"'\"&F5523&\"'!\"&G5523)),\"\",INDIRECT(\"'\"&F5523&\"'!\"&G5523))","v":""},{"$f":"IF(ISBLANK(INDIRECT(\"'\"&F5523&\"'!\"&H5523)),\"\",IFERROR(VLOOKUP(TEXT(INDIRECT(\"'\"&F5523&\"'!\"&H5523),\"0\"),Notes!$B$5:$C$100,2,FALSE),\"\"))","v":""},"2e","$AI$82","$AJ$82"]
[22394,{"$f":"Menu!$F$29","v":"X"},{"$f":"Menu!$J$29","v":2020},{"$f":"IF(ISBLANK(INDIRECT(\"'\"&F5524&\"'!\"&G5524)),\"\",INDIRECT(\"'\"&F5524&\"'!\"&G5524))","v":""},{"$f":"IF(ISBLANK(INDIRECT(\"'\"&F5524&\"'!\"&H5524)),\"\",IFERROR(VLOOKUP(TEXT(INDIRECT(\"'\"&F5524&\"'!\"&H5524),\"0\"),Notes!$B$5:$C$100,2,FALSE),\"\"))","v":""},"2e","$AM$82","$AN$82"]
[22395,{"$f":"Menu!$F$29","v":"X"},{"$f":"Menu!$J$29","v":2020},{"$f":"IF(ISBLANK(INDIRECT(\"'\"&F5525&\"'!\"&G5525)),\"\",INDIRECT(\"'\"&F5525&\"'!\"&G5525))","v":""},{"$f":"IF(ISBLANK(INDIRECT(\"'\"&F5525&\"'!\"&H5525)),\"\",IFERROR(VLOOKUP(TEXT(INDIRECT(\"'\"&F5525&\"'!\"&H5525),\"0\"),Notes!$B$5:$C$100,2,FALSE),\"\"))","v":""},"2e","$AK$82","$AL$82"]
[22396,{"$f":"Menu!$F$29","v":"X"},{"$f":"Menu!$J$29","v":2020},{"$f":"IF(ISBLANK(INDIRECT(\"'\"&F5526&\"'!\"&G5526)),\"\",INDIRECT(\"'\"&F5526&\"'!\"&G5526))","v":""},{"$f":"IF(ISBLANK(INDIRECT(\"'\"&F5526&\"'!\"&H5526)),\"\",IFERROR(VLOOKUP(TEXT(INDIRECT(\"'\"&F5526&\"'!\"&H5526),\"0\"),Notes!$B$5:$C$100,2,FALSE),\"\"))","v":""},"2e","$AO$82","$AP$82"]
[22397,{"$f":"Menu!$F$29","v":"X"},{"$f":"Menu!$J$29","v":2020},{"$f":"IF(ISBLANK(INDIRECT(\"'\"&F5527&\"'!\"&G5527)),\"\",INDIRECT(\"'\"&F5527&\"'!\"&G5527))","v":""},{"$f":"IF(ISBLANK(INDIRECT(\"'\"&F5527&\"'!\"&H5527)),\"\",IFERROR(VLOOKUP(TEXT(INDIRECT(\"'\"&F5527&\"'!\"&H5527),\"0\"),Notes!$B$5:$C$100,2,FALSE),\"\"))","v":""},"2e","$AQ$82","$AR$82"]
[22398,{"$f":"Menu!$F$29","v":"X"},{"$f":"Menu!$J$29","v":2020},{"$f":"IF(ISBLANK(INDIRECT(\"'\"&F5528&\"'!\"&G5528)),\"\",INDIRECT(\"'\"&F5528&\"'!\"&G5528))","v":""},{"$f":"IF(ISBLANK(INDIRECT(\"'\"&F5528&\"'!\"&H5528)),\"\",IFERROR(VLOOKUP(TEXT(INDIRECT(\"'\"&F5528&\"'!\"&H5528),\"0\"),Notes!$B$5:$C$100,2,FALSE),\"\"))","v":""},"2e","$AS$82","$AT$82"]
[22399,{"$f":"Menu!$F$29","v":"X"},{"$f":"Menu!$J$29","v":2020},{"$f":"IF(ISBLANK(INDIRECT(\"'\"&F5529&\"'!\"&G5529)),\"\",INDIRECT(\"'\"&F5529&\"'!\"&G5529))","v":""},{"$f":"IF(ISBLANK(INDIRECT(\"'\"&F5529&\"'!\"&H5529)),\"\",IFERROR(VLOOKUP(TEXT(INDIRECT(\"'\"&F5529&\"'!\"&H5529),\"0\"),Notes!$B$5:$C$100,2,FALSE),\"\"))","v":""},"2e","$AU$82","$AV$82"]
[22400,{"$f":"Menu!$F$29","v":"X"},{"$f":"Menu!$J$29","v":2020},{"$f":"IF(ISBLANK(INDIRECT(\"'\"&F5530&\"'!\"&G5530)),\"\",INDIRECT(\"'\"&F5530&\"'!\"&G5530))","v":""},{"$f":"IF(ISBLANK(INDIRECT(\"'\"&F5530&\"'!\"&H5530)),\"\",IFERROR(VLOOKUP(TEXT(INDIRECT(\"'\"&F5530&\"'!\"&H5530),\"0\"),Notes!$B$5:$C$100,2,FALSE),\"\"))","v":""},"2e","$AY$82","$AZ$82"]
[22401,{"$f":"Menu!$F$29","v":"X"},{"$f":"Menu!$J$29","v":2020},{"$f":"IF(ISBLANK(INDIRECT(\"'\"&F5531&\"'!\"&G5531)),\"\",INDIRECT(\"'\"&F5531&\"'!\"&G5531))","v":""},{"$f":"IF(ISBLANK(INDIRECT(\"'\"&F5531&\"'!\"&H5531)),\"\",IFERROR(VLOOKUP(TEXT(INDIRECT(\"'\"&F5531&\"'!\"&H5531),\"0\"),Notes!$B$5:$C$100,2,FALSE),\"\"))","v":""},"2e","$AW$82","$AX$82"]
[22402,{"$f":"Menu!$F$29","v":"X"},{"$f":"Menu!$J$29","v":2020},{"$f":"IF(ISBLANK(INDIRECT(\"'\"&F5532&\"'!\"&G5532)),\"\",INDIRECT(\"'\"&F5532&\"'!\"&G5532))","v":""},{"$f":"IF(ISBLANK(INDIRECT(\"'\"&F5532&\"'!\"&H5532)),\"\",IFERROR(VLOOKUP(TEXT(INDIRECT(\"'\"&F5532&\"'!\"&H5532),\"0\"),Notes!$B$5:$C$100,2,FALSE),\"\"))","v":""},"2e","$BA$82","$BB$82"]
[22403,{"$f":"Menu!$F$29","v":"X"},{"$f":"Menu!$J$29","v":2020},{"$f":"IF(ISBLANK(INDIRECT(\"'\"&F5533&\"'!\"&G5533)),\"\",INDIRECT(\"'\"&F5533&\"'!\"&G5533))","v":""},{"$f":"IF(ISBLANK(INDIRECT(\"'\"&F5533&\"'!\"&H5533)),\"\",IFERROR(VLOOKUP(TEXT(INDIRECT(\"'\"&F5533&\"'!\"&H5533),\"0\"),Notes!$B$5:$C$100,2,FALSE),\"\"))","v":""},"2e","$BE$82","$BF$82"]
[22404,{"$f":"Menu!$F$29","v":"X"},{"$f":"Menu!$J$29","v":2020},{"$f":"IF(ISBLANK(INDIRECT(\"'\"&F5534&\"'!\"&G5534)),\"\",INDIRECT(\"'\"&F5534&\"'!\"&G5534))","v":""},{"$f":"IF(ISBLANK(INDIRECT(\"'\"&F5534&\"'!\"&H5534)),\"\",IFERROR(VLOOKUP(TEXT(INDIRECT(\"'\"&F5534&\"'!\"&H5534),\"0\"),Notes!$B$5:$C$100,2,FALSE),\"\"))","v":""},"2e","$BC$82","$BD$82"]
[22405,{"$f":"Menu!$F$29","v":"X"},{"$f":"Menu!$J$29","v":2020},{"$f":"IF(ISBLANK(INDIRECT(\"'\"&F5535&\"'!\"&G5535)),\"\",INDIRECT(\"'\"&F5535&\"'!\"&G5535))","v":""},{"$f":"IF(ISBLANK(INDIRECT(\"'\"&F5535&\"'!\"&H5535)),\"\",IFERROR(VLOOKUP(TEXT(INDIRECT(\"'\"&F5535&\"'!\"&H5535),\"0\"),Notes!$B$5:$C$100,2,FALSE),\"\"))","v":""},"2e","$BG$81","$BH$81"]
[22406,{"$f":"Menu!$F$29","v":"X"},{"$f":"Menu!$J$29","v":2020},{"$f":"IF(ISBLANK(INDIRECT(\"'\"&F5536&\"'!\"&G5536)),\"\",INDIRECT(\"'\"&F5536&\"'!\"&G5536))","v":""},{"$f":"IF(ISBLANK(INDIRECT(\"'\"&F5536&\"'!\"&H5536)),\"\",IFERROR(VLOOKUP(TEXT(INDIRECT(\"'\"&F5536&\"'!\"&H5536),\"0\"),Notes!$B$5:$C$100,2,FALSE),\"\"))","v":""},"2e","$BK$81","$BL$81"]
[22407,{"$f":"Menu!$F$29","v":"X"},{"$f":"Menu!$J$29","v":2020},{"$f":"IF(ISBLANK(INDIRECT(\"'\"&F5537&\"'!\"&G5537)),\"\",INDIRECT(\"'\"&F5537&\"'!\"&G5537))","v":""},{"$f":"IF(ISBLANK(INDIRECT(\"'\"&F5537&\"'!\"&H5537)),\"\",IFERROR(VLOOKUP(TEXT(INDIRECT(\"'\"&F5537&\"'!\"&H5537),\"0\"),Notes!$B$5:$C$100,2,FALSE),\"\"))","v":""},"2e","$BI$81","$BJ$81"]
[22408,{"$f":"Menu!$F$29","v":"X"},{"$f":"Menu!$J$29","v":2020},{"$f":"IF(ISBLANK(INDIRECT(\"'\"&F5538&\"'!\"&G5538)),\"\",INDIRECT(\"'\"&F5538&\"'!\"&G5538))","v":""},{"$f":"IF(ISBLANK(INDIRECT(\"'\"&F5538&\"'!\"&H5538)),\"\",IFERROR(VLOOKUP(TEXT(INDIRECT(\"'\"&F5538&\"'!\"&H5538),\"0\"),Notes!$B$5:$C$100,2,FALSE),\"\"))","v":""},"2e","$E$81","$F$81"]
[22409,{"$f":"Menu!$F$29","v":"X"},{"$f":"Menu!$J$29","v":2020},{"$f":"IF(ISBLANK(INDIRECT(\"'\"&F5539&\"'!\"&G5539)),\"\",INDIRECT(\"'\"&F5539&\"'!\"&G5539))","v":""},{"$f":"IF(ISBLANK(INDIRECT(\"'\"&F5539&\"'!\"&H5539)),\"\",IFERROR(VLOOKUP(TEXT(INDIRECT(\"'\"&F5539&\"'!\"&H5539),\"0\"),Notes!$B$5:$C$100,2,FALSE),\"\"))","v":""},"2e","$I$81","$J$81"]
[22410,{"$f":"Menu!$F$29","v":"X"},{"$f":"Menu!$J$29","v":2020},{"$f":"IF(ISBLANK(INDIRECT(\"'\"&F5540&\"'!\"&G5540)),\"\",INDIRECT(\"'\"&F5540&\"'!\"&G5540))","v":""},{"$f":"IF(ISBLANK(INDIRECT(\"'\"&F5540&\"'!\"&H5540)),\"\",IFERROR(VLOOKUP(TEXT(INDIRECT(\"'\"&F5540&\"'!\"&H5540),\"0\"),Notes!$B$5:$C$100,2,FALSE),\"\"))","v":""},"2e","$G$81","$H$81"]
[22411,{"$f":"Menu!$F$29","v":"X"},{"$f":"Menu!$J$29","v":2020},{"$f":"IF(ISBLANK(INDIRECT(\"'\"&F5541&\"'!\"&G5541)),\"\",INDIRECT(\"'\"&F5541&\"'!\"&G5541))","v":""},{"$f":"IF(ISBLANK(INDIRECT(\"'\"&F5541&\"'!\"&H5541)),\"\",IFERROR(VLOOKUP(TEXT(INDIRECT(\"'\"&F5541&\"'!\"&H5541),\"0\"),Notes!$B$5:$C$100,2,FALSE),\"\"))","v":""},"2e","$K$81","$L$81"]
[22412,{"$f":"Menu!$F$29","v":"X"},{"$f":"Menu!$J$29","v":2020},{"$f":"IF(ISBLANK(INDIRECT(\"'\"&F5542&\"'!\"&G5542)),\"\",INDIRECT(\"'\"&F5542&\"'!\"&G5542))","v":""},{"$f":"IF(ISBLANK(INDIRECT(\"'\"&F5542&\"'!\"&H5542)),\"\",IFERROR(VLOOKUP(TEXT(INDIRECT(\"'\"&F5542&\"'!\"&H5542),\"0\"),Notes!$B$5:$C$100,2,FALSE),\"\"))","v":""},"2e","$O$81","$P$81"]
[22413,{"$f":"Menu!$F$29","v":"X"},{"$f":"Menu!$J$29","v":2020},{"$f":"IF(ISBLANK(INDIRECT(\"'\"&F5543&\"'!\"&G5543)),\"\",INDIRECT(\"'\"&F5543&\"'!\"&G5543))","v":""},{"$f":"IF(ISBLANK(INDIRECT(\"'\"&F5543&\"'!\"&H5543)),\"\",IFERROR(VLOOKUP(TEXT(INDIRECT(\"'\"&F5543&\"'!\"&H5543),\"0\"),Notes!$B$5:$C$100,2,FALSE),\"\"))","v":""},"2e","$M$81","$N$81"]
[22414,{"$f":"Menu!$F$29","v":"X"},{"$f":"Menu!$J$29","v":2020},{"$f":"IF(ISBLANK(INDIRECT(\"'\"&F5544&\"'!\"&G5544)),\"\",INDIRECT(\"'\"&F5544&\"'!\"&G5544))","v":""},{"$f":"IF(ISBLANK(INDIRECT(\"'\"&F5544&\"'!\"&H5544)),\"\",IFERROR(VLOOKUP(TEXT(INDIRECT(\"'\"&F5544&\"'!\"&H5544),\"0\"),Notes!$B$5:$C$100,2,FALSE),\"\"))","v":""},"2e","$Q$81","$R$81"]
[22415,{"$f":"Menu!$F$29","v":"X"},{"$f":"Menu!$J$29","v":2020},{"$f":"IF(ISBLANK(INDIRECT(\"'\"&F5545&\"'!\"&G5545)),\"\",INDIRECT(\"'\"&F5545&\"'!\"&G5545))","v":""},{"$f":"IF(ISBLANK(INDIRECT(\"'\"&F5545&\"'!\"&H5545)),\"\",IFERROR(VLOOKUP(TEXT(INDIRECT(\"'\"&F5545&\"'!\"&H5545),\"0\"),Notes!$B$5:$C$100,2,FALSE),\"\"))","v":""},"2e","$U$81","$V$81"]
[22416,{"$f":"Menu!$F$29","v":"X"},{"$f":"Menu!$J$29","v":2020},{"$f":"IF(ISBLANK(INDIRECT(\"'\"&F5546&\"'!\"&G5546)),\"\",INDIRECT(\"'\"&F5546&\"'!\"&G5546))","v":""},{"$f":"IF(ISBLANK(INDIRECT(\"'\"&F5546&\"'!\"&H5546)),\"\",IFERROR(VLOOKUP(TEXT(INDIRECT(\"'\"&F5546&\"'!\"&H5546),\"0\"),Notes!$B$5:$C$100,2,FALSE),\"\"))","v":""},"2e","$S$81","$T$81"]
[22417,{"$f":"Menu!$F$29","v":"X"},{"$f":"Menu!$J$29","v":2020},{"$f":"IF(ISBLANK(INDIRECT(\"'\"&F5547&\"'!\"&G5547)),\"\",INDIRECT(\"'\"&F5547&\"'!\"&G5547))","v":""},{"$f":"IF(ISBLANK(INDIRECT(\"'\"&F5547&\"'!\"&H5547)),\"\",IFERROR(VLOOKUP(TEXT(INDIRECT(\"'\"&F5547&\"'!\"&H5547),\"0\"),Notes!$B$5:$C$100,2,FALSE),\"\"))","v":""},"2e","$W$81","$X$81"]
[22418,{"$f":"Menu!$F$29","v":"X"},{"$f":"Menu!$J$29","v":2020},{"$f":"IF(ISBLANK(INDIRECT(\"'\"&F5548&\"'!\"&G5548)),\"\",INDIRECT(\"'\"&F5548&\"'!\"&G5548))","v":""},{"$f":"IF(ISBLANK(INDIRECT(\"'\"&F5548&\"'!\"&H5548)),\"\",IFERROR(VLOOKUP(TEXT(INDIRECT(\"'\"&F5548&\"'!\"&H5548),\"0\"),Notes!$B$5:$C$100,2,FALSE),\"\"))","v":""},"2e","$AA$81","$AB$81"]
[22419,{"$f":"Menu!$F$29","v":"X"},{"$f":"Menu!$J$29","v":2020},{"$f":"IF(ISBLANK(INDIRECT(\"'\"&F5549&\"'!\"&G5549)),\"\",INDIRECT(\"'\"&F5549&\"'!\"&G5549))","v":""},{"$f":"IF(ISBLANK(INDIRECT(\"'\"&F5549&\"'!\"&H5549)),\"\",IFERROR(VLOOKUP(TEXT(INDIRECT(\"'\"&F5549&\"'!\"&H5549),\"0\"),Notes!$B$5:$C$100,2,FALSE),\"\"))","v":""},"2e","$Y$81","$Z$81"]
[22420,{"$f":"Menu!$F$29","v":"X"},{"$f":"Menu!$J$29","v":2020},{"$f":"IF(ISBLANK(INDIRECT(\"'\"&F5550&\"'!\"&G5550)),\"\",INDIRECT(\"'\"&F5550&\"'!\"&G5550))","v":""},{"$f":"IF(ISBLANK(INDIRECT(\"'\"&F5550&\"'!\"&H5550)),\"\",IFERROR(VLOOKUP(TEXT(INDIRECT(\"'\"&F5550&\"'!\"&H5550),\"0\"),Notes!$B$5:$C$100,2,FALSE),\"\"))","v":""},"2e","$AC$81","$AD$81"]
[22421,{"$f":"Menu!$F$29","v":"X"},{"$f":"Menu!$J$29","v":2020},{"$f":"IF(ISBLANK(INDIRECT(\"'\"&F5551&\"'!\"&G5551)),\"\",INDIRECT(\"'\"&F5551&\"'!\"&G5551))","v":""},{"$f":"IF(ISBLANK(INDIRECT(\"'\"&F5551&\"'!\"&H5551)),\"\",IFERROR(VLOOKUP(TEXT(INDIRECT(\"'\"&F5551&\"'!\"&H5551),\"0\"),Notes!$B$5:$C$100,2,FALSE),\"\"))","v":""},"2e","$AG$81","$AH$81"]
[22422,{"$f":"Menu!$F$29","v":"X"},{"$f":"Menu!$J$29","v":2020},{"$f":"IF(ISBLANK(INDIRECT(\"'\"&F5552&\"'!\"&G5552)),\"\",INDIRECT(\"'\"&F5552&\"'!\"&G5552))","v":""},{"$f":"IF(ISBLANK(INDIRECT(\"'\"&F5552&\"'!\"&H5552)),\"\",IFERROR(VLOOKUP(TEXT(INDIRECT(\"'\"&F5552&\"'!\"&H5552),\"0\"),Notes!$B$5:$C$100,2,FALSE),\"\"))","v":""},"2e","$AE$81","$AF$81"]
[22423,{"$f":"Menu!$F$29","v":"X"},{"$f":"Menu!$J$29","v":2020},{"$f":"IF(ISBLANK(INDIRECT(\"'\"&F5553&\"'!\"&G5553)),\"\",INDIRECT(\"'\"&F5553&\"'!\"&G5553))","v":""},{"$f":"IF(ISBLANK(INDIRECT(\"'\"&F5553&\"'!\"&H5553)),\"\",IFERROR(VLOOKUP(TEXT(INDIRECT(\"'\"&F5553&\"'!\"&H5553),\"0\"),Notes!$B$5:$C$100,2,FALSE),\"\"))","v":""},"2e","$AI$81","$AJ$81"]
[22424,{"$f":"Menu!$F$29","v":"X"},{"$f":"Menu!$J$29","v":2020},{"$f":"IF(ISBLANK(INDIRECT(\"'\"&F5554&\"'!\"&G5554)),\"\",INDIRECT(\"'\"&F5554&\"'!\"&G5554))","v":""},{"$f":"IF(ISBLANK(INDIRECT(\"'\"&F5554&\"'!\"&H5554)),\"\",IFERROR(VLOOKUP(TEXT(INDIRECT(\"'\"&F5554&\"'!\"&H5554),\"0\"),Notes!$B$5:$C$100,2,FALSE),\"\"))","v":""},"2e","$AM$81","$AN$81"]
[22425,{"$f":"Menu!$F$29","v":"X"},{"$f":"Menu!$J$29","v":2020},{"$f":"IF(ISBLANK(INDIRECT(\"'\"&F5555&\"'!\"&G5555)),\"\",INDIRECT(\"'\"&F5555&\"'!\"&G5555))","v":""},{"$f":"IF(ISBLANK(INDIRECT(\"'\"&F5555&\"'!\"&H5555)),\"\",IFERROR(VLOOKUP(TEXT(INDIRECT(\"'\"&F5555&\"'!\"&H5555),\"0\"),Notes!$B$5:$C$100,2,FALSE),\"\"))","v":""},"2e","$AK$81","$AL$81"]
[22426,{"$f":"Menu!$F$29","v":"X"},{"$f":"Menu!$J$29","v":2020},{"$f":"IF(ISBLANK(INDIRECT(\"'\"&F5556&\"'!\"&G5556)),\"\",INDIRECT(\"'\"&F5556&\"'!\"&G5556))","v":""},{"$f":"IF(ISBLANK(INDIRECT(\"'\"&F5556&\"'!\"&H5556)),\"\",IFERROR(VLOOKUP(TEXT(INDIRECT(\"'\"&F5556&\"'!\"&H5556),\"0\"),Notes!$B$5:$C$100,2,FALSE),\"\"))","v":""},"2e","$AO$81","$AP$81"]
[22427,{"$f":"Menu!$F$29","v":"X"},{"$f":"Menu!$J$29","v":2020},{"$f":"IF(ISBLANK(INDIRECT(\"'\"&F5557&\"'!\"&G5557)),\"\",INDIRECT(\"'\"&F5557&\"'!\"&G5557))","v":""},{"$f":"IF(ISBLANK(INDIRECT(\"'\"&F5557&\"'!\"&H5557)),\"\",IFERROR(VLOOKUP(TEXT(INDIRECT(\"'\"&F5557&\"'!\"&H5557),\"0\"),Notes!$B$5:$C$100,2,FALSE),\"\"))","v":""},"2e","$AQ$81","$AR$81"]
[22428,{"$f":"Menu!$F$29","v":"X"},{"$f":"Menu!$J$29","v":2020},{"$f":"IF(ISBLANK(INDIRECT(\"'\"&F5558&\"'!\"&G5558)),\"\",INDIRECT(\"'\"&F5558&\"'!\"&G5558))","v":""},{"$f":"IF(ISBLANK(INDIRECT(\"'\"&F5558&\"'!\"&H5558)),\"\",IFERROR(VLOOKUP(TEXT(INDIRECT(\"'\"&F5558&\"'!\"&H5558),\"0\"),Notes!$B$5:$C$100,2,FALSE),\"\"))","v":""},"2e","$AS$81","$AT$81"]
[22429,{"$f":"Menu!$F$29","v":"X"},{"$f":"Menu!$J$29","v":2020},{"$f":"IF(ISBLANK(INDIRECT(\"'\"&F5559&\"'!\"&G5559)),\"\",INDIRECT(\"'\"&F5559&\"'!\"&G5559))","v":""},{"$f":"IF(ISBLANK(INDIRECT(\"'\"&F5559&\"'!\"&H5559)),\"\",IFERROR(VLOOKUP(TEXT(INDIRECT(\"'\"&F5559&\"'!\"&H5559),\"0\"),Notes!$B$5:$C$100,2,FALSE),\"\"))","v":""},"2e","$AU$81","$AV$81"]
[22430,{"$f":"Menu!$F$29","v":"X"},{"$f":"Menu!$J$29","v":2020},{"$f":"IF(ISBLANK(INDIRECT(\"'\"&F5560&\"'!\"&G5560)),\"\",INDIRECT(\"'\"&F5560&\"'!\"&G5560))","v":""},{"$f":"IF(ISBLANK(INDIRECT(\"'\"&F5560&\"'!\"&H5560)),\"\",IFERROR(VLOOKUP(TEXT(INDIRECT(\"'\"&F5560&\"'!\"&H5560),\"0\"),Notes!$B$5:$C$100,2,FALSE),\"\"))","v":""},"2e","$AY$81","$AZ$81"]
[22431,{"$f":"Menu!$F$29","v":"X"},{"$f":"Menu!$J$29","v":2020},{"$f":"IF(ISBLANK(INDIRECT(\"'\"&F5561&\"'!\"&G5561)),\"\",INDIRECT(\"'\"&F5561&\"'!\"&G5561))","v":""},{"$f":"IF(ISBLANK(INDIRECT(\"'\"&F5561&\"'!\"&H5561)),\"\",IFERROR(VLOOKUP(TEXT(INDIRECT(\"'\"&F5561&\"'!\"&H5561),\"0\"),Notes!$B$5:$C$100,2,FALSE),\"\"))","v":""},"2e","$AW$81","$AX$81"]
[22432,{"$f":"Menu!$F$29","v":"X"},{"$f":"Menu!$J$29","v":2020},{"$f":"IF(ISBLANK(INDIRECT(\"'\"&F5562&\"'!\"&G5562)),\"\",INDIRECT(\"'\"&F5562&\"'!\"&G5562))","v":""},{"$f":"IF(ISBLANK(INDIRECT(\"'\"&F5562&\"'!\"&H5562)),\"\",IFERROR(VLOOKUP(TEXT(INDIRECT(\"'\"&F5562&\"'!\"&H5562),\"0\"),Notes!$B$5:$C$100,2,FALSE),\"\"))","v":""},"2e","$BA$81","$BB$81"]
[22433,{"$f":"Menu!$F$29","v":"X"},{"$f":"Menu!$J$29","v":2020},{"$f":"IF(ISBLANK(INDIRECT(\"'\"&F5563&\"'!\"&G5563)),\"\",INDIRECT(\"'\"&F5563&\"'!\"&G5563))","v":""},{"$f":"IF(ISBLANK(INDIRECT(\"'\"&F5563&\"'!\"&H5563)),\"\",IFERROR(VLOOKUP(TEXT(INDIRECT(\"'\"&F5563&\"'!\"&H5563),\"0\"),Notes!$B$5:$C$100,2,FALSE),\"\"))","v":""},"2e","$BE$81","$BF$81"]
[22434,{"$f":"Menu!$F$29","v":"X"},{"$f":"Menu!$J$29","v":2020},{"$f":"IF(ISBLANK(INDIRECT(\"'\"&F5564&\"'!\"&G5564)),\"\",INDIRECT(\"'\"&F5564&\"'!\"&G5564))","v":""},{"$f":"IF(ISBLANK(INDIRECT(\"'\"&F5564&\"'!\"&H5564)),\"\",IFERROR(VLOOKUP(TEXT(INDIRECT(\"'\"&F5564&\"'!\"&H5564),\"0\"),Notes!$B$5:$C$100,2,FALSE),\"\"))","v":""},"2e","$BC$81","$BD$81"]
[22435,{"$f":"Menu!$F$29","v":"X"},{"$f":"Menu!$J$29","v":2020},{"$f":"IF(ISBLANK(INDIRECT(\"'\"&F5565&\"'!\"&G5565)),\"\",INDIRECT(\"'\"&F5565&\"'!\"&G5565))","v":""},{"$f":"IF(ISBLANK(INDIRECT(\"'\"&F5565&\"'!\"&H5565)),\"\",IFERROR(VLOOKUP(TEXT(INDIRECT(\"'\"&F5565&\"'!\"&H5565),\"0\"),Notes!$B$5:$C$100,2,FALSE),\"\"))","v":""},"2e","$BG$80","$BH$80"]
[22436,{"$f":"Menu!$F$29","v":"X"},{"$f":"Menu!$J$29","v":2020},{"$f":"IF(ISBLANK(INDIRECT(\"'\"&F5566&\"'!\"&G5566)),\"\",INDIRECT(\"'\"&F5566&\"'!\"&G5566))","v":""},{"$f":"IF(ISBLANK(INDIRECT(\"'\"&F5566&\"'!\"&H5566)),\"\",IFERROR(VLOOKUP(TEXT(INDIRECT(\"'\"&F5566&\"'!\"&H5566),\"0\"),Notes!$B$5:$C$100,2,FALSE),\"\"))","v":""},"2e","$BK$80","$BL$80"]
[22437,{"$f":"Menu!$F$29","v":"X"},{"$f":"Menu!$J$29","v":2020},{"$f":"IF(ISBLANK(INDIRECT(\"'\"&F5567&\"'!\"&G5567)),\"\",INDIRECT(\"'\"&F5567&\"'!\"&G5567))","v":""},{"$f":"IF(ISBLANK(INDIRECT(\"'\"&F5567&\"'!\"&H5567)),\"\",IFERROR(VLOOKUP(TEXT(INDIRECT(\"'\"&F5567&\"'!\"&H5567),\"0\"),Notes!$B$5:$C$100,2,FALSE),\"\"))","v":""},"2e","$BI$80","$BJ$80"]
[22438,{"$f":"Menu!$F$29","v":"X"},{"$f":"Menu!$J$29","v":2020},{"$f":"IF(ISBLANK(INDIRECT(\"'\"&F5568&\"'!\"&G5568)),\"\",INDIRECT(\"'\"&F5568&\"'!\"&G5568))","v":""},{"$f":"IF(ISBLANK(INDIRECT(\"'\"&F5568&\"'!\"&H5568)),\"\",IFERROR(VLOOKUP(TEXT(INDIRECT(\"'\"&F5568&\"'!\"&H5568),\"0\"),Notes!$B$5:$C$100,2,FALSE),\"\"))","v":""},"2e","$E$80","$F$80"]
[22439,{"$f":"Menu!$F$29","v":"X"},{"$f":"Menu!$J$29","v":2020},{"$f":"IF(ISBLANK(INDIRECT(\"'\"&F5569&\"'!\"&G5569)),\"\",INDIRECT(\"'\"&F5569&\"'!\"&G5569))","v":""},{"$f":"IF(ISBLANK(INDIRECT(\"'\"&F5569&\"'!\"&H5569)),\"\",IFERROR(VLOOKUP(TEXT(INDIRECT(\"'\"&F5569&\"'!\"&H5569),\"0\"),Notes!$B$5:$C$100,2,FALSE),\"\"))","v":""},"2e","$I$80","$J$80"]
[22440,{"$f":"Menu!$F$29","v":"X"},{"$f":"Menu!$J$29","v":2020},{"$f":"IF(ISBLANK(INDIRECT(\"'\"&F5570&\"'!\"&G5570)),\"\",INDIRECT(\"'\"&F5570&\"'!\"&G5570))","v":""},{"$f":"IF(ISBLANK(INDIRECT(\"'\"&F5570&\"'!\"&H5570)),\"\",IFERROR(VLOOKUP(TEXT(INDIRECT(\"'\"&F5570&\"'!\"&H5570),\"0\"),Notes!$B$5:$C$100,2,FALSE),\"\"))","v":""},"2e","$G$80",{"$f":"IF(LEN(TRIM(MID(G5570,4,10)))-LEN(SUBSTITUTE(TRIM(MID(G5570,4,10)),\"$\",\"\"))=0,\"$\"&CHAR(CODE(MID(G5570,2,1))+1)&\"$\"&TRIM(MID(G5570,4,10)),\"$\"&MID(G5570,2,1)&CHAR(CODE(MID(G5570,3,1))+1)&\"$\"&TRIM(MID(G5570,5,11)))","v":"$H$80"}]
[22441,{"$f":"Menu!$F$29","v":"X"},{"$f":"Menu!$J$29","v":2020},{"$f":"IF(ISBLANK(INDIRECT(\"'\"&F5571&\"'!\"&G5571)),\"\",INDIRECT(\"'\"&F5571&\"'!\"&G5571))","v":""},{"$f":"IF(ISBLANK(INDIRECT(\"'\"&F5571&\"'!\"&H5571)),\"\",IFERROR(VLOOKUP(TEXT(INDIRECT(\"'\"&F5571&\"'!\"&H5571),\"0\"),Notes!$B$5:$C$100,2,FALSE),\"\"))","v":""},"2e","$K$80","$L$80"]
[22442,{"$f":"Menu!$F$29","v":"X"},{"$f":"Menu!$J$29","v":2020},{"$f":"IF(ISBLANK(INDIRECT(\"'\"&F5572&\"'!\"&G5572)),\"\",INDIRECT(\"'\"&F5572&\"'!\"&G5572))","v":""},{"$f":"IF(ISBLANK(INDIRECT(\"'\"&F5572&\"'!\"&H5572)),\"\",IFERROR(VLOOKUP(TEXT(INDIRECT(\"'\"&F5572&\"'!\"&H5572),\"0\"),Notes!$B$5:$C$100,2,FALSE),\"\"))","v":""},"2e","$O$80","$P$80"]
[22443,{"$f":"Menu!$F$29","v":"X"},{"$f":"Menu!$J$29","v":2020},{"$f":"IF(ISBLANK(INDIRECT(\"'\"&F5573&\"'!\"&G5573)),\"\",INDIRECT(\"'\"&F5573&\"'!\"&G5573))","v":""},{"$f":"IF(ISBLANK(INDIRECT(\"'\"&F5573&\"'!\"&H5573)),\"\",IFERROR(VLOOKUP(TEXT(INDIRECT(\"'\"&F5573&\"'!\"&H5573),\"0\"),Notes!$B$5:$C$100,2,FALSE),\"\"))","v":""},"2e","$M$80","$N$80"]
[22444,{"$f":"Menu!$F$29","v":"X"},{"$f":"Menu!$J$29","v":2020},{"$f":"IF(ISBLANK(INDIRECT(\"'\"&F5574&\"'!\"&G5574)),\"\",INDIRECT(\"'\"&F5574&\"'!\"&G5574))","v":""},{"$f":"IF(ISBLANK(INDIRECT(\"'\"&F5574&\"'!\"&H5574)),\"\",IFERROR(VLOOKUP(TEXT(INDIRECT(\"'\"&F5574&\"'!\"&H5574),\"0\"),Notes!$B$5:$C$100,2,FALSE),\"\"))","v":""},"2e","$Q$80","$R$80"]
[22445,{"$f":"Menu!$F$29","v":"X"},{"$f":"Menu!$J$29","v":2020},{"$f":"IF(ISBLANK(INDIRECT(\"'\"&F5575&\"'!\"&G5575)),\"\",INDIRECT(\"'\"&F5575&\"'!\"&G5575))","v":""},{"$f":"IF(ISBLANK(INDIRECT(\"'\"&F5575&\"'!\"&H5575)),\"\",IFERROR(VLOOKUP(TEXT(INDIRECT(\"'\"&F5575&\"'!\"&H5575),\"0\"),Notes!$B$5:$C$100,2,FALSE),\"\"))","v":""},"2e","$U$80","$V$80"]
[22446,{"$f":"Menu!$F$29","v":"X"},{"$f":"Menu!$J$29","v":2020},{"$f":"IF(ISBLANK(INDIRECT(\"'\"&F5576&\"'!\"&G5576)),\"\",INDIRECT(\"'\"&F5576&\"'!\"&G5576))","v":""},{"$f":"IF(ISBLANK(INDIRECT(\"'\"&F5576&\"'!\"&H5576)),\"\",IFERROR(VLOOKUP(TEXT(INDIRECT(\"'\"&F5576&\"'!\"&H5576),\"0\"),Notes!$B$5:$C$100,2,FALSE),\"\"))","v":""},"2e","$S$80","$T$80"]
[22447,{"$f":"Menu!$F$29","v":"X"},{"$f":"Menu!$J$29","v":2020},{"$f":"IF(ISBLANK(INDIRECT(\"'\"&F5577&\"'!\"&G5577)),\"\",INDIRECT(\"'\"&F5577&\"'!\"&G5577))","v":""},{"$f":"IF(ISBLANK(INDIRECT(\"'\"&F5577&\"'!\"&H5577)),\"\",IFERROR(VLOOKUP(TEXT(INDIRECT(\"'\"&F5577&\"'!\"&H5577),\"0\"),Notes!$B$5:$C$100,2,FALSE),\"\"))","v":""},"2e","$W$80","$X$80"]
[22448,{"$f":"Menu!$F$29","v":"X"},{"$f":"Menu!$J$29","v":2020},{"$f":"IF(ISBLANK(INDIRECT(\"'\"&F5578&\"'!\"&G5578)),\"\",INDIRECT(\"'\"&F5578&\"'!\"&G5578))","v":""},{"$f":"IF(ISBLANK(INDIRECT(\"'\"&F5578&\"'!\"&H5578)),\"\",IFERROR(VLOOKUP(TEXT(INDIRECT(\"'\"&F5578&\"'!\"&H5578),\"0\"),Notes!$B$5:$C$100,2,FALSE),\"\"))","v":""},"2e","$AA$80","$AB$80"]
[22449,{"$f":"Menu!$F$29","v":"X"},{"$f":"Menu!$J$29","v":2020},{"$f":"IF(ISBLANK(INDIRECT(\"'\"&F5579&\"'!\"&G5579)),\"\",INDIRECT(\"'\"&F5579&\"'!\"&G5579))","v":""},{"$f":"IF(ISBLANK(INDIRECT(\"'\"&F5579&\"'!\"&H5579)),\"\",IFERROR(VLOOKUP(TEXT(INDIRECT(\"'\"&F5579&\"'!\"&H5579),\"0\"),Notes!$B$5:$C$100,2,FALSE),\"\"))","v":""},"2e","$Y$80","$Z$80"]
[22450,{"$f":"Menu!$F$29","v":"X"},{"$f":"Menu!$J$29","v":2020},{"$f":"IF(ISBLANK(INDIRECT(\"'\"&F5580&\"'!\"&G5580)),\"\",INDIRECT(\"'\"&F5580&\"'!\"&G5580))","v":""},{"$f":"IF(ISBLANK(INDIRECT(\"'\"&F5580&\"'!\"&H5580)),\"\",IFERROR(VLOOKUP(TEXT(INDIRECT(\"'\"&F5580&\"'!\"&H5580),\"0\"),Notes!$B$5:$C$100,2,FALSE),\"\"))","v":""},"2e","$AC$80","$AD$80"]
[22451,{"$f":"Menu!$F$29","v":"X"},{"$f":"Menu!$J$29","v":2020},{"$f":"IF(ISBLANK(INDIRECT(\"'\"&F5581&\"'!\"&G5581)),\"\",INDIRECT(\"'\"&F5581&\"'!\"&G5581))","v":""},{"$f":"IF(ISBLANK(INDIRECT(\"'\"&F5581&\"'!\"&H5581)),\"\",IFERROR(VLOOKUP(TEXT(INDIRECT(\"'\"&F5581&\"'!\"&H5581),\"0\"),Notes!$B$5:$C$100,2,FALSE),\"\"))","v":""},"2e","$AG$80","$AH$80"]
[22452,{"$f":"Menu!$F$29","v":"X"},{"$f":"Menu!$J$29","v":2020},{"$f":"IF(ISBLANK(INDIRECT(\"'\"&F5582&\"'!\"&G5582)),\"\",INDIRECT(\"'\"&F5582&\"'!\"&G5582))","v":""},{"$f":"IF(ISBLANK(INDIRECT(\"'\"&F5582&\"'!\"&H5582)),\"\",IFERROR(VLOOKUP(TEXT(INDIRECT(\"'\"&F5582&\"'!\"&H5582),\"0\"),Notes!$B$5:$C$100,2,FALSE),\"\"))","v":""},"2e","$AE$80","$AF$80"]
[22453,{"$f":"Menu!$F$29","v":"X"},{"$f":"Menu!$J$29","v":2020},{"$f":"IF(ISBLANK(INDIRECT(\"'\"&F5583&\"'!\"&G5583)),\"\",INDIRECT(\"'\"&F5583&\"'!\"&G5583))","v":""},{"$f":"IF(ISBLANK(INDIRECT(\"'\"&F5583&\"'!\"&H5583)),\"\",IFERROR(VLOOKUP(TEXT(INDIRECT(\"'\"&F5583&\"'!\"&H5583),\"0\"),Notes!$B$5:$C$100,2,FALSE),\"\"))","v":""},"2e","$AI$80","$AJ$80"]
[22454,{"$f":"Menu!$F$29","v":"X"},{"$f":"Menu!$J$29","v":2020},{"$f":"IF(ISBLANK(INDIRECT(\"'\"&F5584&\"'!\"&G5584)),\"\",INDIRECT(\"'\"&F5584&\"'!\"&G5584))","v":""},{"$f":"IF(ISBLANK(INDIRECT(\"'\"&F5584&\"'!\"&H5584)),\"\",IFERROR(VLOOKUP(TEXT(INDIRECT(\"'\"&F5584&\"'!\"&H5584),\"0\"),Notes!$B$5:$C$100,2,FALSE),\"\"))","v":""},"2e","$AM$80","$AN$80"]
[22455,{"$f":"Menu!$F$29","v":"X"},{"$f":"Menu!$J$29","v":2020},{"$f":"IF(ISBLANK(INDIRECT(\"'\"&F5585&\"'!\"&G5585)),\"\",INDIRECT(\"'\"&F5585&\"'!\"&G5585))","v":""},{"$f":"IF(ISBLANK(INDIRECT(\"'\"&F5585&\"'!\"&H5585)),\"\",IFERROR(VLOOKUP(TEXT(INDIRECT(\"'\"&F5585&\"'!\"&H5585),\"0\"),Notes!$B$5:$C$100,2,FALSE),\"\"))","v":""},"2e","$AK$80","$AL$80"]
[22456,{"$f":"Menu!$F$29","v":"X"},{"$f":"Menu!$J$29","v":2020},{"$f":"IF(ISBLANK(INDIRECT(\"'\"&F5586&\"'!\"&G5586)),\"\",INDIRECT(\"'\"&F5586&\"'!\"&G5586))","v":""},{"$f":"IF(ISBLANK(INDIRECT(\"'\"&F5586&\"'!\"&H5586)),\"\",IFERROR(VLOOKUP(TEXT(INDIRECT(\"'\"&F5586&\"'!\"&H5586),\"0\"),Notes!$B$5:$C$100,2,FALSE),\"\"))","v":""},"2e","$AO$80","$AP$80"]
[22457,{"$f":"Menu!$F$29","v":"X"},{"$f":"Menu!$J$29","v":2020},{"$f":"IF(ISBLANK(INDIRECT(\"'\"&F5587&\"'!\"&G5587)),\"\",INDIRECT(\"'\"&F5587&\"'!\"&G5587))","v":""},{"$f":"IF(ISBLANK(INDIRECT(\"'\"&F5587&\"'!\"&H5587)),\"\",IFERROR(VLOOKUP(TEXT(INDIRECT(\"'\"&F5587&\"'!\"&H5587),\"0\"),Notes!$B$5:$C$100,2,FALSE),\"\"))","v":""},"2e","$AQ$80","$AR$80"]
[22458,{"$f":"Menu!$F$29","v":"X"},{"$f":"Menu!$J$29","v":2020},{"$f":"IF(ISBLANK(INDIRECT(\"'\"&F5588&\"'!\"&G5588)),\"\",INDIRECT(\"'\"&F5588&\"'!\"&G5588))","v":""},{"$f":"IF(ISBLANK(INDIRECT(\"'\"&F5588&\"'!\"&H5588)),\"\",IFERROR(VLOOKUP(TEXT(INDIRECT(\"'\"&F5588&\"'!\"&H5588),\"0\"),Notes!$B$5:$C$100,2,FALSE),\"\"))","v":""},"2e","$AS$80","$AT$80"]
[22459,{"$f":"Menu!$F$29","v":"X"},{"$f":"Menu!$J$29","v":2020},{"$f":"IF(ISBLANK(INDIRECT(\"'\"&F5589&\"'!\"&G5589)),\"\",INDIRECT(\"'\"&F5589&\"'!\"&G5589))","v":""},{"$f":"IF(ISBLANK(INDIRECT(\"'\"&F5589&\"'!\"&H5589)),\"\",IFERROR(VLOOKUP(TEXT(INDIRECT(\"'\"&F5589&\"'!\"&H5589),\"0\"),Notes!$B$5:$C$100,2,FALSE),\"\"))","v":""},"2e","$AU$80","$AV$80"]
[22460,{"$f":"Menu!$F$29","v":"X"},{"$f":"Menu!$J$29","v":2020},{"$f":"IF(ISBLANK(INDIRECT(\"'\"&F5590&\"'!\"&G5590)),\"\",INDIRECT(\"'\"&F5590&\"'!\"&G5590))","v":""},{"$f":"IF(ISBLANK(INDIRECT(\"'\"&F5590&\"'!\"&H5590)),\"\",IFERROR(VLOOKUP(TEXT(INDIRECT(\"'\"&F5590&\"'!\"&H5590),\"0\"),Notes!$B$5:$C$100,2,FALSE),\"\"))","v":""},"2e","$AY$80","$AZ$80"]
[22461,{"$f":"Menu!$F$29","v":"X"},{"$f":"Menu!$J$29","v":2020},{"$f":"IF(ISBLANK(INDIRECT(\"'\"&F5591&\"'!\"&G5591)),\"\",INDIRECT(\"'\"&F5591&\"'!\"&G5591))","v":""},{"$f":"IF(ISBLANK(INDIRECT(\"'\"&F5591&\"'!\"&H5591)),\"\",IFERROR(VLOOKUP(TEXT(INDIRECT(\"'\"&F5591&\"'!\"&H5591),\"0\"),Notes!$B$5:$C$100,2,FALSE),\"\"))","v":""},"2e","$AW$80","$AX$80"]
[22462,{"$f":"Menu!$F$29","v":"X"},{"$f":"Menu!$J$29","v":2020},{"$f":"IF(ISBLANK(INDIRECT(\"'\"&F5592&\"'!\"&G5592)),\"\",INDIRECT(\"'\"&F5592&\"'!\"&G5592))","v":""},{"$f":"IF(ISBLANK(INDIRECT(\"'\"&F5592&\"'!\"&H5592)),\"\",IFERROR(VLOOKUP(TEXT(INDIRECT(\"'\"&F5592&\"'!\"&H5592),\"0\"),Notes!$B$5:$C$100,2,FALSE),\"\"))","v":""},"2e","$BA$80","$BB$80"]
[22463,{"$f":"Menu!$F$29","v":"X"},{"$f":"Menu!$J$29","v":2020},{"$f":"IF(ISBLANK(INDIRECT(\"'\"&F5593&\"'!\"&G5593)),\"\",INDIRECT(\"'\"&F5593&\"'!\"&G5593))","v":""},{"$f":"IF(ISBLANK(INDIRECT(\"'\"&F5593&\"'!\"&H5593)),\"\",IFERROR(VLOOKUP(TEXT(INDIRECT(\"'\"&F5593&\"'!\"&H5593),\"0\"),Notes!$B$5:$C$100,2,FALSE),\"\"))","v":""},"2e","$BE$80","$BF$80"]
[22464,{"$f":"Menu!$F$29","v":"X"},{"$f":"Menu!$J$29","v":2020},{"$f":"IF(ISBLANK(INDIRECT(\"'\"&F5594&\"'!\"&G5594)),\"\",INDIRECT(\"'\"&F5594&\"'!\"&G5594))","v":""},{"$f":"IF(ISBLANK(INDIRECT(\"'\"&F5594&\"'!\"&H5594)),\"\",IFERROR(VLOOKUP(TEXT(INDIRECT(\"'\"&F5594&\"'!\"&H5594),\"0\"),Notes!$B$5:$C$100,2,FALSE),\"\"))","v":""},"2e","$BC$80","$BD$80"]
[22465,{"$f":"Menu!$F$29","v":"X"},{"$f":"Menu!$J$29","v":2020},{"$f":"IF(ISBLANK(INDIRECT(\"'\"&F5595&\"'!\"&G5595)),\"\",INDIRECT(\"'\"&F5595&\"'!\"&G5595))","v":""},{"$f":"IF(ISBLANK(INDIRECT(\"'\"&F5595&\"'!\"&H5595)),\"\",IFERROR(VLOOKUP(TEXT(INDIRECT(\"'\"&F5595&\"'!\"&H5595),\"0\"),Notes!$B$5:$C$100,2,FALSE),\"\"))","v":""},"2e","$BG$79","$BH$79"]
[22466,{"$f":"Menu!$F$29","v":"X"},{"$f":"Menu!$J$29","v":2020},{"$f":"IF(ISBLANK(INDIRECT(\"'\"&F5596&\"'!\"&G5596)),\"\",INDIRECT(\"'\"&F5596&\"'!\"&G5596))","v":""},{"$f":"IF(ISBLANK(INDIRECT(\"'\"&F5596&\"'!\"&H5596)),\"\",IFERROR(VLOOKUP(TEXT(INDIRECT(\"'\"&F5596&\"'!\"&H5596),\"0\"),Notes!$B$5:$C$100,2,FALSE),\"\"))","v":""},"2e","$BK$79","$BL$79"]
[22467,{"$f":"Menu!$F$29","v":"X"},{"$f":"Menu!$J$29","v":2020},{"$f":"IF(ISBLANK(INDIRECT(\"'\"&F5597&\"'!\"&G5597)),\"\",INDIRECT(\"'\"&F5597&\"'!\"&G5597))","v":""},{"$f":"IF(ISBLANK(INDIRECT(\"'\"&F5597&\"'!\"&H5597)),\"\",IFERROR(VLOOKUP(TEXT(INDIRECT(\"'\"&F5597&\"'!\"&H5597),\"0\"),Notes!$B$5:$C$100,2,FALSE),\"\"))","v":""},"2e","$BI$79","$BJ$79"]
[22468,{"$f":"Menu!$F$29","v":"X"},{"$f":"Menu!$J$29","v":2020},{"$f":"IF(ISBLANK(INDIRECT(\"'\"&F5598&\"'!\"&G5598)),\"\",INDIRECT(\"'\"&F5598&\"'!\"&G5598))","v":""},{"$f":"IF(ISBLANK(INDIRECT(\"'\"&F5598&\"'!\"&H5598)),\"\",IFERROR(VLOOKUP(TEXT(INDIRECT(\"'\"&F5598&\"'!\"&H5598),\"0\"),Notes!$B$5:$C$100,2,FALSE),\"\"))","v":""},"2e","$E$79","$F$79"]
[22469,{"$f":"Menu!$F$29","v":"X"},{"$f":"Menu!$J$29","v":2020},{"$f":"IF(ISBLANK(INDIRECT(\"'\"&F5599&\"'!\"&G5599)),\"\",INDIRECT(\"'\"&F5599&\"'!\"&G5599))","v":""},{"$f":"IF(ISBLANK(INDIRECT(\"'\"&F5599&\"'!\"&H5599)),\"\",IFERROR(VLOOKUP(TEXT(INDIRECT(\"'\"&F5599&\"'!\"&H5599),\"0\"),Notes!$B$5:$C$100,2,FALSE),\"\"))","v":""},"2e","$I$79","$J$79"]
[22470,{"$f":"Menu!$F$29","v":"X"},{"$f":"Menu!$J$29","v":2020},{"$f":"IF(ISBLANK(INDIRECT(\"'\"&F5600&\"'!\"&G5600)),\"\",INDIRECT(\"'\"&F5600&\"'!\"&G5600))","v":""},{"$f":"IF(ISBLANK(INDIRECT(\"'\"&F5600&\"'!\"&H5600)),\"\",IFERROR(VLOOKUP(TEXT(INDIRECT(\"'\"&F5600&\"'!\"&H5600),\"0\"),Notes!$B$5:$C$100,2,FALSE),\"\"))","v":""},"2e","$G$79","$H$79"]
[22471,{"$f":"Menu!$F$29","v":"X"},{"$f":"Menu!$J$29","v":2020},{"$f":"IF(ISBLANK(INDIRECT(\"'\"&F5601&\"'!\"&G5601)),\"\",INDIRECT(\"'\"&F5601&\"'!\"&G5601))","v":""},{"$f":"IF(ISBLANK(INDIRECT(\"'\"&F5601&\"'!\"&H5601)),\"\",IFERROR(VLOOKUP(TEXT(INDIRECT(\"'\"&F5601&\"'!\"&H5601),\"0\"),Notes!$B$5:$C$100,2,FALSE),\"\"))","v":""},"2e","$K$79","$L$79"]
[22472,{"$f":"Menu!$F$29","v":"X"},{"$f":"Menu!$J$29","v":2020},{"$f":"IF(ISBLANK(INDIRECT(\"'\"&F5602&\"'!\"&G5602)),\"\",INDIRECT(\"'\"&F5602&\"'!\"&G5602))","v":""},{"$f":"IF(ISBLANK(INDIRECT(\"'\"&F5602&\"'!\"&H5602)),\"\",IFERROR(VLOOKUP(TEXT(INDIRECT(\"'\"&F5602&\"'!\"&H5602),\"0\"),Notes!$B$5:$C$100,2,FALSE),\"\"))","v":""},"2e","$O$79","$P$79"]
[22473,{"$f":"Menu!$F$29","v":"X"},{"$f":"Menu!$J$29","v":2020},{"$f":"IF(ISBLANK(INDIRECT(\"'\"&F5603&\"'!\"&G5603)),\"\",INDIRECT(\"'\"&F5603&\"'!\"&G5603))","v":""},{"$f":"IF(ISBLANK(INDIRECT(\"'\"&F5603&\"'!\"&H5603)),\"\",IFERROR(VLOOKUP(TEXT(INDIRECT(\"'\"&F5603&\"'!\"&H5603),\"0\"),Notes!$B$5:$C$100,2,FALSE),\"\"))","v":""},"2e","$M$79","$N$79"]
[22474,{"$f":"Menu!$F$29","v":"X"},{"$f":"Menu!$J$29","v":2020},{"$f":"IF(ISBLANK(INDIRECT(\"'\"&F5604&\"'!\"&G5604)),\"\",INDIRECT(\"'\"&F5604&\"'!\"&G5604))","v":""},{"$f":"IF(ISBLANK(INDIRECT(\"'\"&F5604&\"'!\"&H5604)),\"\",IFERROR(VLOOKUP(TEXT(INDIRECT(\"'\"&F5604&\"'!\"&H5604),\"0\"),Notes!$B$5:$C$100,2,FALSE),\"\"))","v":""},"2e","$Q$79","$R$79"]
[22475,{"$f":"Menu!$F$29","v":"X"},{"$f":"Menu!$J$29","v":2020},{"$f":"IF(ISBLANK(INDIRECT(\"'\"&F5605&\"'!\"&G5605)),\"\",INDIRECT(\"'\"&F5605&\"'!\"&G5605))","v":""},{"$f":"IF(ISBLANK(INDIRECT(\"'\"&F5605&\"'!\"&H5605)),\"\",IFERROR(VLOOKUP(TEXT(INDIRECT(\"'\"&F5605&\"'!\"&H5605),\"0\"),Notes!$B$5:$C$100,2,FALSE),\"\"))","v":""},"2e","$U$79","$V$79"]
[22476,{"$f":"Menu!$F$29","v":"X"},{"$f":"Menu!$J$29","v":2020},{"$f":"IF(ISBLANK(INDIRECT(\"'\"&F5606&\"'!\"&G5606)),\"\",INDIRECT(\"'\"&F5606&\"'!\"&G5606))","v":""},{"$f":"IF(ISBLANK(INDIRECT(\"'\"&F5606&\"'!\"&H5606)),\"\",IFERROR(VLOOKUP(TEXT(INDIRECT(\"'\"&F5606&\"'!\"&H5606),\"0\"),Notes!$B$5:$C$100,2,FALSE),\"\"))","v":""},"2e","$S$79","$T$79"]
[22477,{"$f":"Menu!$F$29","v":"X"},{"$f":"Menu!$J$29","v":2020},{"$f":"IF(ISBLANK(INDIRECT(\"'\"&F5607&\"'!\"&G5607)),\"\",INDIRECT(\"'\"&F5607&\"'!\"&G5607))","v":""},{"$f":"IF(ISBLANK(INDIRECT(\"'\"&F5607&\"'!\"&H5607)),\"\",IFERROR(VLOOKUP(TEXT(INDIRECT(\"'\"&F5607&\"'!\"&H5607),\"0\"),Notes!$B$5:$C$100,2,FALSE),\"\"))","v":""},"2e","$W$79","$X$79"]
[22478,{"$f":"Menu!$F$29","v":"X"},{"$f":"Menu!$J$29","v":2020},{"$f":"IF(ISBLANK(INDIRECT(\"'\"&F5608&\"'!\"&G5608)),\"\",INDIRECT(\"'\"&F5608&\"'!\"&G5608))","v":""},{"$f":"IF(ISBLANK(INDIRECT(\"'\"&F5608&\"'!\"&H5608)),\"\",IFERROR(VLOOKUP(TEXT(INDIRECT(\"'\"&F5608&\"'!\"&H5608),\"0\"),Notes!$B$5:$C$100,2,FALSE),\"\"))","v":""},"2e","$AA$79","$AB$79"]
[22479,{"$f":"Menu!$F$29","v":"X"},{"$f":"Menu!$J$29","v":2020},{"$f":"IF(ISBLANK(INDIRECT(\"'\"&F5609&\"'!\"&G5609)),\"\",INDIRECT(\"'\"&F5609&\"'!\"&G5609))","v":""},{"$f":"IF(ISBLANK(INDIRECT(\"'\"&F5609&\"'!\"&H5609)),\"\",IFERROR(VLOOKUP(TEXT(INDIRECT(\"'\"&F5609&\"'!\"&H5609),\"0\"),Notes!$B$5:$C$100,2,FALSE),\"\"))","v":""},"2e","$Y$79","$Z$79"]
[22480,{"$f":"Menu!$F$29","v":"X"},{"$f":"Menu!$J$29","v":2020},{"$f":"IF(ISBLANK(INDIRECT(\"'\"&F5610&\"'!\"&G5610)),\"\",INDIRECT(\"'\"&F5610&\"'!\"&G5610))","v":""},{"$f":"IF(ISBLANK(INDIRECT(\"'\"&F5610&\"'!\"&H5610)),\"\",IFERROR(VLOOKUP(TEXT(INDIRECT(\"'\"&F5610&\"'!\"&H5610),\"0\"),Notes!$B$5:$C$100,2,FALSE),\"\"))","v":""},"2e","$AC$79","$AD$79"]
[22481,{"$f":"Menu!$F$29","v":"X"},{"$f":"Menu!$J$29","v":2020},{"$f":"IF(ISBLANK(INDIRECT(\"'\"&F5611&\"'!\"&G5611)),\"\",INDIRECT(\"'\"&F5611&\"'!\"&G5611))","v":""},{"$f":"IF(ISBLANK(INDIRECT(\"'\"&F5611&\"'!\"&H5611)),\"\",IFERROR(VLOOKUP(TEXT(INDIRECT(\"'\"&F5611&\"'!\"&H5611),\"0\"),Notes!$B$5:$C$100,2,FALSE),\"\"))","v":""},"2e","$AG$79","$AH$79"]
[22482,{"$f":"Menu!$F$29","v":"X"},{"$f":"Menu!$J$29","v":2020},{"$f":"IF(ISBLANK(INDIRECT(\"'\"&F5612&\"'!\"&G5612)),\"\",INDIRECT(\"'\"&F5612&\"'!\"&G5612))","v":""},{"$f":"IF(ISBLANK(INDIRECT(\"'\"&F5612&\"'!\"&H5612)),\"\",IFERROR(VLOOKUP(TEXT(INDIRECT(\"'\"&F5612&\"'!\"&H5612),\"0\"),Notes!$B$5:$C$100,2,FALSE),\"\"))","v":""},"2e","$AE$79","$AF$79"]
[22483,{"$f":"Menu!$F$29","v":"X"},{"$f":"Menu!$J$29","v":2020},{"$f":"IF(ISBLANK(INDIRECT(\"'\"&F5613&\"'!\"&G5613)),\"\",INDIRECT(\"'\"&F5613&\"'!\"&G5613))","v":""},{"$f":"IF(ISBLANK(INDIRECT(\"'\"&F5613&\"'!\"&H5613)),\"\",IFERROR(VLOOKUP(TEXT(INDIRECT(\"'\"&F5613&\"'!\"&H5613),\"0\"),Notes!$B$5:$C$100,2,FALSE),\"\"))","v":""},"2e","$AI$79","$AJ$79"]
[22484,{"$f":"Menu!$F$29","v":"X"},{"$f":"Menu!$J$29","v":2020},{"$f":"IF(ISBLANK(INDIRECT(\"'\"&F5614&\"'!\"&G5614)),\"\",INDIRECT(\"'\"&F5614&\"'!\"&G5614))","v":""},{"$f":"IF(ISBLANK(INDIRECT(\"'\"&F5614&\"'!\"&H5614)),\"\",IFERROR(VLOOKUP(TEXT(INDIRECT(\"'\"&F5614&\"'!\"&H5614),\"0\"),Notes!$B$5:$C$100,2,FALSE),\"\"))","v":""},"2e","$AM$79","$AN$79"]
[22485,{"$f":"Menu!$F$29","v":"X"},{"$f":"Menu!$J$29","v":2020},{"$f":"IF(ISBLANK(INDIRECT(\"'\"&F5615&\"'!\"&G5615)),\"\",INDIRECT(\"'\"&F5615&\"'!\"&G5615))","v":""},{"$f":"IF(ISBLANK(INDIRECT(\"'\"&F5615&\"'!\"&H5615)),\"\",IFERROR(VLOOKUP(TEXT(INDIRECT(\"'\"&F5615&\"'!\"&H5615),\"0\"),Notes!$B$5:$C$100,2,FALSE),\"\"))","v":""},"2e","$AK$79","$AL$79"]
[22486,{"$f":"Menu!$F$29","v":"X"},{"$f":"Menu!$J$29","v":2020},{"$f":"IF(ISBLANK(INDIRECT(\"'\"&F5616&\"'!\"&G5616)),\"\",INDIRECT(\"'\"&F5616&\"'!\"&G5616))","v":""},{"$f":"IF(ISBLANK(INDIRECT(\"'\"&F5616&\"'!\"&H5616)),\"\",IFERROR(VLOOKUP(TEXT(INDIRECT(\"'\"&F5616&\"'!\"&H5616),\"0\"),Notes!$B$5:$C$100,2,FALSE),\"\"))","v":""},"2e","$AO$79","$AP$79"]
[22487,{"$f":"Menu!$F$29","v":"X"},{"$f":"Menu!$J$29","v":2020},{"$f":"IF(ISBLANK(INDIRECT(\"'\"&F5617&\"'!\"&G5617)),\"\",INDIRECT(\"'\"&F5617&\"'!\"&G5617))","v":""},{"$f":"IF(ISBLANK(INDIRECT(\"'\"&F5617&\"'!\"&H5617)),\"\",IFERROR(VLOOKUP(TEXT(INDIRECT(\"'\"&F5617&\"'!\"&H5617),\"0\"),Notes!$B$5:$C$100,2,FALSE),\"\"))","v":""},"2e","$AQ$79","$AR$79"]
[22488,{"$f":"Menu!$F$29","v":"X"},{"$f":"Menu!$J$29","v":2020},{"$f":"IF(ISBLANK(INDIRECT(\"'\"&F5618&\"'!\"&G5618)),\"\",INDIRECT(\"'\"&F5618&\"'!\"&G5618))","v":""},{"$f":"IF(ISBLANK(INDIRECT(\"'\"&F5618&\"'!\"&H5618)),\"\",IFERROR(VLOOKUP(TEXT(INDIRECT(\"'\"&F5618&\"'!\"&H5618),\"0\"),Notes!$B$5:$C$100,2,FALSE),\"\"))","v":""},"2e","$AS$79","$AT$79"]
[22489,{"$f":"Menu!$F$29","v":"X"},{"$f":"Menu!$J$29","v":2020},{"$f":"IF(ISBLANK(INDIRECT(\"'\"&F5619&\"'!\"&G5619)),\"\",INDIRECT(\"'\"&F5619&\"'!\"&G5619))","v":""},{"$f":"IF(ISBLANK(INDIRECT(\"'\"&F5619&\"'!\"&H5619)),\"\",IFERROR(VLOOKUP(TEXT(INDIRECT(\"'\"&F5619&\"'!\"&H5619),\"0\"),Notes!$B$5:$C$100,2,FALSE),\"\"))","v":""},"2e","$AU$79","$AV$79"]
[22490,{"$f":"Menu!$F$29","v":"X"},{"$f":"Menu!$J$29","v":2020},{"$f":"IF(ISBLANK(INDIRECT(\"'\"&F5620&\"'!\"&G5620)),\"\",INDIRECT(\"'\"&F5620&\"'!\"&G5620))","v":""},{"$f":"IF(ISBLANK(INDIRECT(\"'\"&F5620&\"'!\"&H5620)),\"\",IFERROR(VLOOKUP(TEXT(INDIRECT(\"'\"&F5620&\"'!\"&H5620),\"0\"),Notes!$B$5:$C$100,2,FALSE),\"\"))","v":""},"2e","$AY$79","$AZ$79"]
[22491,{"$f":"Menu!$F$29","v":"X"},{"$f":"Menu!$J$29","v":2020},{"$f":"IF(ISBLANK(INDIRECT(\"'\"&F5621&\"'!\"&G5621)),\"\",INDIRECT(\"'\"&F5621&\"'!\"&G5621))","v":""},{"$f":"IF(ISBLANK(INDIRECT(\"'\"&F5621&\"'!\"&H5621)),\"\",IFERROR(VLOOKUP(TEXT(INDIRECT(\"'\"&F5621&\"'!\"&H5621),\"0\"),Notes!$B$5:$C$100,2,FALSE),\"\"))","v":""},"2e","$AW$79","$AX$79"]
[22492,{"$f":"Menu!$F$29","v":"X"},{"$f":"Menu!$J$29","v":2020},{"$f":"IF(ISBLANK(INDIRECT(\"'\"&F5622&\"'!\"&G5622)),\"\",INDIRECT(\"'\"&F5622&\"'!\"&G5622))","v":""},{"$f":"IF(ISBLANK(INDIRECT(\"'\"&F5622&\"'!\"&H5622)),\"\",IFERROR(VLOOKUP(TEXT(INDIRECT(\"'\"&F5622&\"'!\"&H5622),\"0\"),Notes!$B$5:$C$100,2,FALSE),\"\"))","v":""},"2e","$BA$79","$BB$79"]
[22493,{"$f":"Menu!$F$29","v":"X"},{"$f":"Menu!$J$29","v":2020},{"$f":"IF(ISBLANK(INDIRECT(\"'\"&F5623&\"'!\"&G5623)),\"\",INDIRECT(\"'\"&F5623&\"'!\"&G5623))","v":""},{"$f":"IF(ISBLANK(INDIRECT(\"'\"&F5623&\"'!\"&H5623)),\"\",IFERROR(VLOOKUP(TEXT(INDIRECT(\"'\"&F5623&\"'!\"&H5623),\"0\"),Notes!$B$5:$C$100,2,FALSE),\"\"))","v":""},"2e","$BE$79","$BF$79"]
[22494,{"$f":"Menu!$F$29","v":"X"},{"$f":"Menu!$J$29","v":2020},{"$f":"IF(ISBLANK(INDIRECT(\"'\"&F5624&\"'!\"&G5624)),\"\",INDIRECT(\"'\"&F5624&\"'!\"&G5624))","v":""},{"$f":"IF(ISBLANK(INDIRECT(\"'\"&F5624&\"'!\"&H5624)),\"\",IFERROR(VLOOKUP(TEXT(INDIRECT(\"'\"&F5624&\"'!\"&H5624),\"0\"),Notes!$B$5:$C$100,2,FALSE),\"\"))","v":""},"2e","$BC$79","$BD$79"]
[22495,{"$f":"Menu!$F$29","v":"X"},{"$f":"Menu!$J$29","v":2020},{"$f":"IF(ISBLANK(INDIRECT(\"'\"&F5625&\"'!\"&G5625)),\"\",INDIRECT(\"'\"&F5625&\"'!\"&G5625))","v":""},{"$f":"IF(ISBLANK(INDIRECT(\"'\"&F5625&\"'!\"&H5625)),\"\",IFERROR(VLOOKUP(TEXT(INDIRECT(\"'\"&F5625&\"'!\"&H5625),\"0\"),Notes!$B$5:$C$100,2,FALSE),\"\"))","v":""},"2e","$BG$78","$BH$78"]
[22496,{"$f":"Menu!$F$29","v":"X"},{"$f":"Menu!$J$29","v":2020},{"$f":"IF(ISBLANK(INDIRECT(\"'\"&F5626&\"'!\"&G5626)),\"\",INDIRECT(\"'\"&F5626&\"'!\"&G5626))","v":""},{"$f":"IF(ISBLANK(INDIRECT(\"'\"&F5626&\"'!\"&H5626)),\"\",IFERROR(VLOOKUP(TEXT(INDIRECT(\"'\"&F5626&\"'!\"&H5626),\"0\"),Notes!$B$5:$C$100,2,FALSE),\"\"))","v":""},"2e","$BK$78","$BL$78"]
[22497,{"$f":"Menu!$F$29","v":"X"},{"$f":"Menu!$J$29","v":2020},{"$f":"IF(ISBLANK(INDIRECT(\"'\"&F5627&\"'!\"&G5627)),\"\",INDIRECT(\"'\"&F5627&\"'!\"&G5627))","v":""},{"$f":"IF(ISBLANK(INDIRECT(\"'\"&F5627&\"'!\"&H5627)),\"\",IFERROR(VLOOKUP(TEXT(INDIRECT(\"'\"&F5627&\"'!\"&H5627),\"0\"),Notes!$B$5:$C$100,2,FALSE),\"\"))","v":""},"2e","$BI$78","$BJ$78"]
[22498,{"$f":"Menu!$F$29","v":"X"},{"$f":"Menu!$J$29","v":2020},{"$f":"IF(ISBLANK(INDIRECT(\"'\"&F5628&\"'!\"&G5628)),\"\",INDIRECT(\"'\"&F5628&\"'!\"&G5628))","v":""},{"$f":"IF(ISBLANK(INDIRECT(\"'\"&F5628&\"'!\"&H5628)),\"\",IFERROR(VLOOKUP(TEXT(INDIRECT(\"'\"&F5628&\"'!\"&H5628),\"0\"),Notes!$B$5:$C$100,2,FALSE),\"\"))","v":""},"2e","$E$78","$F$78"]
[22499,{"$f":"Menu!$F$29","v":"X"},{"$f":"Menu!$J$29","v":2020},{"$f":"IF(ISBLANK(INDIRECT(\"'\"&F5629&\"'!\"&G5629)),\"\",INDIRECT(\"'\"&F5629&\"'!\"&G5629))","v":""},{"$f":"IF(ISBLANK(INDIRECT(\"'\"&F5629&\"'!\"&H5629)),\"\",IFERROR(VLOOKUP(TEXT(INDIRECT(\"'\"&F5629&\"'!\"&H5629),\"0\"),Notes!$B$5:$C$100,2,FALSE),\"\"))","v":""},"2e","$I$78","$J$78"]
[22500,{"$f":"Menu!$F$29","v":"X"},{"$f":"Menu!$J$29","v":2020},{"$f":"IF(ISBLANK(INDIRECT(\"'\"&F5630&\"'!\"&G5630)),\"\",INDIRECT(\"'\"&F5630&\"'!\"&G5630))","v":""},{"$f":"IF(ISBLANK(INDIRECT(\"'\"&F5630&\"'!\"&H5630)),\"\",IFERROR(VLOOKUP(TEXT(INDIRECT(\"'\"&F5630&\"'!\"&H5630),\"0\"),Notes!$B$5:$C$100,2,FALSE),\"\"))","v":""},"2e","$G$78","$H$78"]
[22501,{"$f":"Menu!$F$29","v":"X"},{"$f":"Menu!$J$29","v":2020},{"$f":"IF(ISBLANK(INDIRECT(\"'\"&F5631&\"'!\"&G5631)),\"\",INDIRECT(\"'\"&F5631&\"'!\"&G5631))","v":""},{"$f":"IF(ISBLANK(INDIRECT(\"'\"&F5631&\"'!\"&H5631)),\"\",IFERROR(VLOOKUP(TEXT(INDIRECT(\"'\"&F5631&\"'!\"&H5631),\"0\"),Notes!$B$5:$C$100,2,FALSE),\"\"))","v":""},"2e","$K$78","$L$78"]
[22502,{"$f":"Menu!$F$29","v":"X"},{"$f":"Menu!$J$29","v":2020},{"$f":"IF(ISBLANK(INDIRECT(\"'\"&F5632&\"'!\"&G5632)),\"\",INDIRECT(\"'\"&F5632&\"'!\"&G5632))","v":""},{"$f":"IF(ISBLANK(INDIRECT(\"'\"&F5632&\"'!\"&H5632)),\"\",IFERROR(VLOOKUP(TEXT(INDIRECT(\"'\"&F5632&\"'!\"&H5632),\"0\"),Notes!$B$5:$C$100,2,FALSE),\"\"))","v":""},"2e","$O$78","$P$78"]
[22503,{"$f":"Menu!$F$29","v":"X"},{"$f":"Menu!$J$29","v":2020},{"$f":"IF(ISBLANK(INDIRECT(\"'\"&F5633&\"'!\"&G5633)),\"\",INDIRECT(\"'\"&F5633&\"'!\"&G5633))","v":""},{"$f":"IF(ISBLANK(INDIRECT(\"'\"&F5633&\"'!\"&H5633)),\"\",IFERROR(VLOOKUP(TEXT(INDIRECT(\"'\"&F5633&\"'!\"&H5633),\"0\"),Notes!$B$5:$C$100,2,FALSE),\"\"))","v":""},"2e","$M$78","$N$78"]
[22504,{"$f":"Menu!$F$29","v":"X"},{"$f":"Menu!$J$29","v":2020},{"$f":"IF(ISBLANK(INDIRECT(\"'\"&F5634&\"'!\"&G5634)),\"\",INDIRECT(\"'\"&F5634&\"'!\"&G5634))","v":""},{"$f":"IF(ISBLANK(INDIRECT(\"'\"&F5634&\"'!\"&H5634)),\"\",IFERROR(VLOOKUP(TEXT(INDIRECT(\"'\"&F5634&\"'!\"&H5634),\"0\"),Notes!$B$5:$C$100,2,FALSE),\"\"))","v":""},"2e","$Q$78",{"$f":"IF(LEN(TRIM(MID(G5634,4,10)))-LEN(SUBSTITUTE(TRIM(MID(G5634,4,10)),\"$\",\"\"))=0,\"$\"&CHAR(CODE(MID(G5634,2,1))+1)&\"$\"&TRIM(MID(G5634,4,10)),\"$\"&MID(G5634,2,1)&CHAR(CODE(MID(G5634,3,1))+1)&\"$\"&TRIM(MID(G5634,5,11)))","v":"$R$78"}]
[22505,{"$f":"Menu!$F$29","v":"X"},{"$f":"Menu!$J$29","v":2020},{"$f":"IF(ISBLANK(INDIRECT(\"'\"&F5635&\"'!\"&G5635)),\"\",INDIRECT(\"'\"&F5635&\"'!\"&G5635))","v":""},{"$f":"IF(ISBLANK(INDIRECT(\"'\"&F5635&\"'!\"&H5635)),\"\",IFERROR(VLOOKUP(TEXT(INDIRECT(\"'\"&F5635&\"'!\"&H5635),\"0\"),Notes!$B$5:$C$100,2,FALSE),\"\"))","v":""},"2e","$U$78","$V$78"]
[22506,{"$f":"Menu!$F$29","v":"X"},{"$f":"Menu!$J$29","v":2020},{"$f":"IF(ISBLANK(INDIRECT(\"'\"&F5636&\"'!\"&G5636)),\"\",INDIRECT(\"'\"&F5636&\"'!\"&G5636))","v":""},{"$f":"IF(ISBLANK(INDIRECT(\"'\"&F5636&\"'!\"&H5636)),\"\",IFERROR(VLOOKUP(TEXT(INDIRECT(\"'\"&F5636&\"'!\"&H5636),\"0\"),Notes!$B$5:$C$100,2,FALSE),\"\"))","v":""},"2e","$S$78","$T$78"]
[22507,{"$f":"Menu!$F$29","v":"X"},{"$f":"Menu!$J$29","v":2020},{"$f":"IF(ISBLANK(INDIRECT(\"'\"&F5637&\"'!\"&G5637)),\"\",INDIRECT(\"'\"&F5637&\"'!\"&G5637))","v":""},{"$f":"IF(ISBLANK(INDIRECT(\"'\"&F5637&\"'!\"&H5637)),\"\",IFERROR(VLOOKUP(TEXT(INDIRECT(\"'\"&F5637&\"'!\"&H5637),\"0\"),Notes!$B$5:$C$100,2,FALSE),\"\"))","v":""},"2e","$W$78","$X$78"]
[22508,{"$f":"Menu!$F$29","v":"X"},{"$f":"Menu!$J$29","v":2020},{"$f":"IF(ISBLANK(INDIRECT(\"'\"&F5638&\"'!\"&G5638)),\"\",INDIRECT(\"'\"&F5638&\"'!\"&G5638))","v":""},{"$f":"IF(ISBLANK(INDIRECT(\"'\"&F5638&\"'!\"&H5638)),\"\",IFERROR(VLOOKUP(TEXT(INDIRECT(\"'\"&F5638&\"'!\"&H5638),\"0\"),Notes!$B$5:$C$100,2,FALSE),\"\"))","v":""},"2e","$AA$78","$AB$78"]
[22509,{"$f":"Menu!$F$29","v":"X"},{"$f":"Menu!$J$29","v":2020},{"$f":"IF(ISBLANK(INDIRECT(\"'\"&F5639&\"'!\"&G5639)),\"\",INDIRECT(\"'\"&F5639&\"'!\"&G5639))","v":""},{"$f":"IF(ISBLANK(INDIRECT(\"'\"&F5639&\"'!\"&H5639)),\"\",IFERROR(VLOOKUP(TEXT(INDIRECT(\"'\"&F5639&\"'!\"&H5639),\"0\"),Notes!$B$5:$C$100,2,FALSE),\"\"))","v":""},"2e","$Y$78","$Z$78"]
[22510,{"$f":"Menu!$F$29","v":"X"},{"$f":"Menu!$J$29","v":2020},{"$f":"IF(ISBLANK(INDIRECT(\"'\"&F5640&\"'!\"&G5640)),\"\",INDIRECT(\"'\"&F5640&\"'!\"&G5640))","v":""},{"$f":"IF(ISBLANK(INDIRECT(\"'\"&F5640&\"'!\"&H5640)),\"\",IFERROR(VLOOKUP(TEXT(INDIRECT(\"'\"&F5640&\"'!\"&H5640),\"0\"),Notes!$B$5:$C$100,2,FALSE),\"\"))","v":""},"2e","$AC$78","$AD$78"]
[22511,{"$f":"Menu!$F$29","v":"X"},{"$f":"Menu!$J$29","v":2020},{"$f":"IF(ISBLANK(INDIRECT(\"'\"&F5641&\"'!\"&G5641)),\"\",INDIRECT(\"'\"&F5641&\"'!\"&G5641))","v":""},{"$f":"IF(ISBLANK(INDIRECT(\"'\"&F5641&\"'!\"&H5641)),\"\",IFERROR(VLOOKUP(TEXT(INDIRECT(\"'\"&F5641&\"'!\"&H5641),\"0\"),Notes!$B$5:$C$100,2,FALSE),\"\"))","v":""},"2e","$AG$78","$AH$78"]
[22512,{"$f":"Menu!$F$29","v":"X"},{"$f":"Menu!$J$29","v":2020},{"$f":"IF(ISBLANK(INDIRECT(\"'\"&F5642&\"'!\"&G5642)),\"\",INDIRECT(\"'\"&F5642&\"'!\"&G5642))","v":""},{"$f":"IF(ISBLANK(INDIRECT(\"'\"&F5642&\"'!\"&H5642)),\"\",IFERROR(VLOOKUP(TEXT(INDIRECT(\"'\"&F5642&\"'!\"&H5642),\"0\"),Notes!$B$5:$C$100,2,FALSE),\"\"))","v":""},"2e","$AE$78","$AF$78"]
[22513,{"$f":"Menu!$F$29","v":"X"},{"$f":"Menu!$J$29","v":2020},{"$f":"IF(ISBLANK(INDIRECT(\"'\"&F5643&\"'!\"&G5643)),\"\",INDIRECT(\"'\"&F5643&\"'!\"&G5643))","v":""},{"$f":"IF(ISBLANK(INDIRECT(\"'\"&F5643&\"'!\"&H5643)),\"\",IFERROR(VLOOKUP(TEXT(INDIRECT(\"'\"&F5643&\"'!\"&H5643),\"0\"),Notes!$B$5:$C$100,2,FALSE),\"\"))","v":""},"2e","$AI$78","$AJ$78"]
[22514,{"$f":"Menu!$F$29","v":"X"},{"$f":"Menu!$J$29","v":2020},{"$f":"IF(ISBLANK(INDIRECT(\"'\"&F5644&\"'!\"&G5644)),\"\",INDIRECT(\"'\"&F5644&\"'!\"&G5644))","v":""},{"$f":"IF(ISBLANK(INDIRECT(\"'\"&F5644&\"'!\"&H5644)),\"\",IFERROR(VLOOKUP(TEXT(INDIRECT(\"'\"&F5644&\"'!\"&H5644),\"0\"),Notes!$B$5:$C$100,2,FALSE),\"\"))","v":""},"2e","$AM$78","$AN$78"]
[22515,{"$f":"Menu!$F$29","v":"X"},{"$f":"Menu!$J$29","v":2020},{"$f":"IF(ISBLANK(INDIRECT(\"'\"&F5645&\"'!\"&G5645)),\"\",INDIRECT(\"'\"&F5645&\"'!\"&G5645))","v":""},{"$f":"IF(ISBLANK(INDIRECT(\"'\"&F5645&\"'!\"&H5645)),\"\",IFERROR(VLOOKUP(TEXT(INDIRECT(\"'\"&F5645&\"'!\"&H5645),\"0\"),Notes!$B$5:$C$100,2,FALSE),\"\"))","v":""},"2e","$AK$78","$AL$78"]
[22516,{"$f":"Menu!$F$29","v":"X"},{"$f":"Menu!$J$29","v":2020},{"$f":"IF(ISBLANK(INDIRECT(\"'\"&F5646&\"'!\"&G5646)),\"\",INDIRECT(\"'\"&F5646&\"'!\"&G5646))","v":""},{"$f":"IF(ISBLANK(INDIRECT(\"'\"&F5646&\"'!\"&H5646)),\"\",IFERROR(VLOOKUP(TEXT(INDIRECT(\"'\"&F5646&\"'!\"&H5646),\"0\"),Notes!$B$5:$C$100,2,FALSE),\"\"))","v":""},"2e","$AO$78","$AP$78"]
[22517,{"$f":"Menu!$F$29","v":"X"},{"$f":"Menu!$J$29","v":2020},{"$f":"IF(ISBLANK(INDIRECT(\"'\"&F5647&\"'!\"&G5647)),\"\",INDIRECT(\"'\"&F5647&\"'!\"&G5647))","v":""},{"$f":"IF(ISBLANK(INDIRECT(\"'\"&F5647&\"'!\"&H5647)),\"\",IFERROR(VLOOKUP(TEXT(INDIRECT(\"'\"&F5647&\"'!\"&H5647),\"0\"),Notes!$B$5:$C$100,2,FALSE),\"\"))","v":""},"2e","$AQ$78","$AR$78"]
[22518,{"$f":"Menu!$F$29","v":"X"},{"$f":"Menu!$J$29","v":2020},{"$f":"IF(ISBLANK(INDIRECT(\"'\"&F5648&\"'!\"&G5648)),\"\",INDIRECT(\"'\"&F5648&\"'!\"&G5648))","v":""},{"$f":"IF(ISBLANK(INDIRECT(\"'\"&F5648&\"'!\"&H5648)),\"\",IFERROR(VLOOKUP(TEXT(INDIRECT(\"'\"&F5648&\"'!\"&H5648),\"0\"),Notes!$B$5:$C$100,2,FALSE),\"\"))","v":""},"2e","$AS$78","$AT$78"]
[22519,{"$f":"Menu!$F$29","v":"X"},{"$f":"Menu!$J$29","v":2020},{"$f":"IF(ISBLANK(INDIRECT(\"'\"&F5649&\"'!\"&G5649)),\"\",INDIRECT(\"'\"&F5649&\"'!\"&G5649))","v":""},{"$f":"IF(ISBLANK(INDIRECT(\"'\"&F5649&\"'!\"&H5649)),\"\",IFERROR(VLOOKUP(TEXT(INDIRECT(\"'\"&F5649&\"'!\"&H5649),\"0\"),Notes!$B$5:$C$100,2,FALSE),\"\"))","v":""},"2e","$AU$78","$AV$78"]
[22520,{"$f":"Menu!$F$29","v":"X"},{"$f":"Menu!$J$29","v":2020},{"$f":"IF(ISBLANK(INDIRECT(\"'\"&F5650&\"'!\"&G5650)),\"\",INDIRECT(\"'\"&F5650&\"'!\"&G5650))","v":""},{"$f":"IF(ISBLANK(INDIRECT(\"'\"&F5650&\"'!\"&H5650)),\"\",IFERROR(VLOOKUP(TEXT(INDIRECT(\"'\"&F5650&\"'!\"&H5650),\"0\"),Notes!$B$5:$C$100,2,FALSE),\"\"))","v":""},"2e","$AY$78","$AZ$78"]
[22521,{"$f":"Menu!$F$29","v":"X"},{"$f":"Menu!$J$29","v":2020},{"$f":"IF(ISBLANK(INDIRECT(\"'\"&F5651&\"'!\"&G5651)),\"\",INDIRECT(\"'\"&F5651&\"'!\"&G5651))","v":""},{"$f":"IF(ISBLANK(INDIRECT(\"'\"&F5651&\"'!\"&H5651)),\"\",IFERROR(VLOOKUP(TEXT(INDIRECT(\"'\"&F5651&\"'!\"&H5651),\"0\"),Notes!$B$5:$C$100,2,FALSE),\"\"))","v":""},"2e","$AW$78","$AX$78"]
[22522,{"$f":"Menu!$F$29","v":"X"},{"$f":"Menu!$J$29","v":2020},{"$f":"IF(ISBLANK(INDIRECT(\"'\"&F5652&\"'!\"&G5652)),\"\",INDIRECT(\"'\"&F5652&\"'!\"&G5652))","v":""},{"$f":"IF(ISBLANK(INDIRECT(\"'\"&F5652&\"'!\"&H5652)),\"\",IFERROR(VLOOKUP(TEXT(INDIRECT(\"'\"&F5652&\"'!\"&H5652),\"0\"),Notes!$B$5:$C$100,2,FALSE),\"\"))","v":""},"2e","$BA$78","$BB$78"]
[22523,{"$f":"Menu!$F$29","v":"X"},{"$f":"Menu!$J$29","v":2020},{"$f":"IF(ISBLANK(INDIRECT(\"'\"&F5653&\"'!\"&G5653)),\"\",INDIRECT(\"'\"&F5653&\"'!\"&G5653))","v":""},{"$f":"IF(ISBLANK(INDIRECT(\"'\"&F5653&\"'!\"&H5653)),\"\",IFERROR(VLOOKUP(TEXT(INDIRECT(\"'\"&F5653&\"'!\"&H5653),\"0\"),Notes!$B$5:$C$100,2,FALSE),\"\"))","v":""},"2e","$BE$78","$BF$78"]
[22524,{"$f":"Menu!$F$29","v":"X"},{"$f":"Menu!$J$29","v":2020},{"$f":"IF(ISBLANK(INDIRECT(\"'\"&F5654&\"'!\"&G5654)),\"\",INDIRECT(\"'\"&F5654&\"'!\"&G5654))","v":""},{"$f":"IF(ISBLANK(INDIRECT(\"'\"&F5654&\"'!\"&H5654)),\"\",IFERROR(VLOOKUP(TEXT(INDIRECT(\"'\"&F5654&\"'!\"&H5654),\"0\"),Notes!$B$5:$C$100,2,FALSE),\"\"))","v":""},"2e","$BC$78","$BD$78"]
[22525,{"$f":"Menu!$F$29","v":"X"},{"$f":"Menu!$J$29","v":2020},{"$f":"IF(ISBLANK(INDIRECT(\"'\"&F5655&\"'!\"&G5655)),\"\",INDIRECT(\"'\"&F5655&\"'!\"&G5655))","v":""},{"$f":"IF(ISBLANK(INDIRECT(\"'\"&F5655&\"'!\"&H5655)),\"\",IFERROR(VLOOKUP(TEXT(INDIRECT(\"'\"&F5655&\"'!\"&H5655),\"0\"),Notes!$B$5:$C$100,2,FALSE),\"\"))","v":""},"2e","$BG$77","$BH$77"]
[22526,{"$f":"Menu!$F$29","v":"X"},{"$f":"Menu!$J$29","v":2020},{"$f":"IF(ISBLANK(INDIRECT(\"'\"&F5656&\"'!\"&G5656)),\"\",INDIRECT(\"'\"&F5656&\"'!\"&G5656))","v":""},{"$f":"IF(ISBLANK(INDIRECT(\"'\"&F5656&\"'!\"&H5656)),\"\",IFERROR(VLOOKUP(TEXT(INDIRECT(\"'\"&F5656&\"'!\"&H5656),\"0\"),Notes!$B$5:$C$100,2,FALSE),\"\"))","v":""},"2e","$BK$77","$BL$77"]
[22527,{"$f":"Menu!$F$29","v":"X"},{"$f":"Menu!$J$29","v":2020},{"$f":"IF(ISBLANK(INDIRECT(\"'\"&F5657&\"'!\"&G5657)),\"\",INDIRECT(\"'\"&F5657&\"'!\"&G5657))","v":""},{"$f":"IF(ISBLANK(INDIRECT(\"'\"&F5657&\"'!\"&H5657)),\"\",IFERROR(VLOOKUP(TEXT(INDIRECT(\"'\"&F5657&\"'!\"&H5657),\"0\"),Notes!$B$5:$C$100,2,FALSE),\"\"))","v":""},"2e","$BI$77","$BJ$77"]
[22528,{"$f":"Menu!$F$29","v":"X"},{"$f":"Menu!$J$29","v":2020},{"$f":"IF(ISBLANK(INDIRECT(\"'\"&F5658&\"'!\"&G5658)),\"\",INDIRECT(\"'\"&F5658&\"'!\"&G5658))","v":""},{"$f":"IF(ISBLANK(INDIRECT(\"'\"&F5658&\"'!\"&H5658)),\"\",IFERROR(VLOOKUP(TEXT(INDIRECT(\"'\"&F5658&\"'!\"&H5658),\"0\"),Notes!$B$5:$C$100,2,FALSE),\"\"))","v":""},"2e","$E$77","$F$77"]
[22529,{"$f":"Menu!$F$29","v":"X"},{"$f":"Menu!$J$29","v":2020},{"$f":"IF(ISBLANK(INDIRECT(\"'\"&F5659&\"'!\"&G5659)),\"\",INDIRECT(\"'\"&F5659&\"'!\"&G5659))","v":""},{"$f":"IF(ISBLANK(INDIRECT(\"'\"&F5659&\"'!\"&H5659)),\"\",IFERROR(VLOOKUP(TEXT(INDIRECT(\"'\"&F5659&\"'!\"&H5659),\"0\"),Notes!$B$5:$C$100,2,FALSE),\"\"))","v":""},"2e","$I$77","$J$77"]
[22530,{"$f":"Menu!$F$29","v":"X"},{"$f":"Menu!$J$29","v":2020},{"$f":"IF(ISBLANK(INDIRECT(\"'\"&F5660&\"'!\"&G5660)),\"\",INDIRECT(\"'\"&F5660&\"'!\"&G5660))","v":""},{"$f":"IF(ISBLANK(INDIRECT(\"'\"&F5660&\"'!\"&H5660)),\"\",IFERROR(VLOOKUP(TEXT(INDIRECT(\"'\"&F5660&\"'!\"&H5660),\"0\"),Notes!$B$5:$C$100,2,FALSE),\"\"))","v":""},"2e","$G$77","$H$77"]
[22531,{"$f":"Menu!$F$29","v":"X"},{"$f":"Menu!$J$29","v":2020},{"$f":"IF(ISBLANK(INDIRECT(\"'\"&F5661&\"'!\"&G5661)),\"\",INDIRECT(\"'\"&F5661&\"'!\"&G5661))","v":""},{"$f":"IF(ISBLANK(INDIRECT(\"'\"&F5661&\"'!\"&H5661)),\"\",IFERROR(VLOOKUP(TEXT(INDIRECT(\"'\"&F5661&\"'!\"&H5661),\"0\"),Notes!$B$5:$C$100,2,FALSE),\"\"))","v":""},"2e","$K$77","$L$77"]
[22532,{"$f":"Menu!$F$29","v":"X"},{"$f":"Menu!$J$29","v":2020},{"$f":"IF(ISBLANK(INDIRECT(\"'\"&F5662&\"'!\"&G5662)),\"\",INDIRECT(\"'\"&F5662&\"'!\"&G5662))","v":""},{"$f":"IF(ISBLANK(INDIRECT(\"'\"&F5662&\"'!\"&H5662)),\"\",IFERROR(VLOOKUP(TEXT(INDIRECT(\"'\"&F5662&\"'!\"&H5662),\"0\"),Notes!$B$5:$C$100,2,FALSE),\"\"))","v":""},"2e","$O$77","$P$77"]
[22533,{"$f":"Menu!$F$29","v":"X"},{"$f":"Menu!$J$29","v":2020},{"$f":"IF(ISBLANK(INDIRECT(\"'\"&F5663&\"'!\"&G5663)),\"\",INDIRECT(\"'\"&F5663&\"'!\"&G5663))","v":""},{"$f":"IF(ISBLANK(INDIRECT(\"'\"&F5663&\"'!\"&H5663)),\"\",IFERROR(VLOOKUP(TEXT(INDIRECT(\"'\"&F5663&\"'!\"&H5663),\"0\"),Notes!$B$5:$C$100,2,FALSE),\"\"))","v":""},"2e","$M$77","$N$77"]
[22534,{"$f":"Menu!$F$29","v":"X"},{"$f":"Menu!$J$29","v":2020},{"$f":"IF(ISBLANK(INDIRECT(\"'\"&F5664&\"'!\"&G5664)),\"\",INDIRECT(\"'\"&F5664&\"'!\"&G5664))","v":""},{"$f":"IF(ISBLANK(INDIRECT(\"'\"&F5664&\"'!\"&H5664)),\"\",IFERROR(VLOOKUP(TEXT(INDIRECT(\"'\"&F5664&\"'!\"&H5664),\"0\"),Notes!$B$5:$C$100,2,FALSE),\"\"))","v":""},"2e","$Q$77","$R$77"]
[22535,{"$f":"Menu!$F$29","v":"X"},{"$f":"Menu!$J$29","v":2020},{"$f":"IF(ISBLANK(INDIRECT(\"'\"&F5665&\"'!\"&G5665)),\"\",INDIRECT(\"'\"&F5665&\"'!\"&G5665))","v":""},{"$f":"IF(ISBLANK(INDIRECT(\"'\"&F5665&\"'!\"&H5665)),\"\",IFERROR(VLOOKUP(TEXT(INDIRECT(\"'\"&F5665&\"'!\"&H5665),\"0\"),Notes!$B$5:$C$100,2,FALSE),\"\"))","v":""},"2e","$U$77","$V$77"]
[22536,{"$f":"Menu!$F$29","v":"X"},{"$f":"Menu!$J$29","v":2020},{"$f":"IF(ISBLANK(INDIRECT(\"'\"&F5666&\"'!\"&G5666)),\"\",INDIRECT(\"'\"&F5666&\"'!\"&G5666))","v":""},{"$f":"IF(ISBLANK(INDIRECT(\"'\"&F5666&\"'!\"&H5666)),\"\",IFERROR(VLOOKUP(TEXT(INDIRECT(\"'\"&F5666&\"'!\"&H5666),\"0\"),Notes!$B$5:$C$100,2,FALSE),\"\"))","v":""},"2e","$S$77","$T$77"]
[22537,{"$f":"Menu!$F$29","v":"X"},{"$f":"Menu!$J$29","v":2020},{"$f":"IF(ISBLANK(INDIRECT(\"'\"&F5667&\"'!\"&G5667)),\"\",INDIRECT(\"'\"&F5667&\"'!\"&G5667))","v":""},{"$f":"IF(ISBLANK(INDIRECT(\"'\"&F5667&\"'!\"&H5667)),\"\",IFERROR(VLOOKUP(TEXT(INDIRECT(\"'\"&F5667&\"'!\"&H5667),\"0\"),Notes!$B$5:$C$100,2,FALSE),\"\"))","v":""},"2e","$W$77","$X$77"]
[22538,{"$f":"Menu!$F$29","v":"X"},{"$f":"Menu!$J$29","v":2020},{"$f":"IF(ISBLANK(INDIRECT(\"'\"&F5668&\"'!\"&G5668)),\"\",INDIRECT(\"'\"&F5668&\"'!\"&G5668))","v":""},{"$f":"IF(ISBLANK(INDIRECT(\"'\"&F5668&\"'!\"&H5668)),\"\",IFERROR(VLOOKUP(TEXT(INDIRECT(\"'\"&F5668&\"'!\"&H5668),\"0\"),Notes!$B$5:$C$100,2,FALSE),\"\"))","v":""},"2e","$AA$77","$AB$77"]
[22539,{"$f":"Menu!$F$29","v":"X"},{"$f":"Menu!$J$29","v":2020},{"$f":"IF(ISBLANK(INDIRECT(\"'\"&F5669&\"'!\"&G5669)),\"\",INDIRECT(\"'\"&F5669&\"'!\"&G5669))","v":""},{"$f":"IF(ISBLANK(INDIRECT(\"'\"&F5669&\"'!\"&H5669)),\"\",IFERROR(VLOOKUP(TEXT(INDIRECT(\"'\"&F5669&\"'!\"&H5669),\"0\"),Notes!$B$5:$C$100,2,FALSE),\"\"))","v":""},"2e","$Y$77","$Z$77"]
[22540,{"$f":"Menu!$F$29","v":"X"},{"$f":"Menu!$J$29","v":2020},{"$f":"IF(ISBLANK(INDIRECT(\"'\"&F5670&\"'!\"&G5670)),\"\",INDIRECT(\"'\"&F5670&\"'!\"&G5670))","v":""},{"$f":"IF(ISBLANK(INDIRECT(\"'\"&F5670&\"'!\"&H5670)),\"\",IFERROR(VLOOKUP(TEXT(INDIRECT(\"'\"&F5670&\"'!\"&H5670),\"0\"),Notes!$B$5:$C$100,2,FALSE),\"\"))","v":""},"2e","$AC$77","$AD$77"]
[22541,{"$f":"Menu!$F$29","v":"X"},{"$f":"Menu!$J$29","v":2020},{"$f":"IF(ISBLANK(INDIRECT(\"'\"&F5671&\"'!\"&G5671)),\"\",INDIRECT(\"'\"&F5671&\"'!\"&G5671))","v":""},{"$f":"IF(ISBLANK(INDIRECT(\"'\"&F5671&\"'!\"&H5671)),\"\",IFERROR(VLOOKUP(TEXT(INDIRECT(\"'\"&F5671&\"'!\"&H5671),\"0\"),Notes!$B$5:$C$100,2,FALSE),\"\"))","v":""},"2e","$AG$77","$AH$77"]
[22542,{"$f":"Menu!$F$29","v":"X"},{"$f":"Menu!$J$29","v":2020},{"$f":"IF(ISBLANK(INDIRECT(\"'\"&F5672&\"'!\"&G5672)),\"\",INDIRECT(\"'\"&F5672&\"'!\"&G5672))","v":""},{"$f":"IF(ISBLANK(INDIRECT(\"'\"&F5672&\"'!\"&H5672)),\"\",IFERROR(VLOOKUP(TEXT(INDIRECT(\"'\"&F5672&\"'!\"&H5672),\"0\"),Notes!$B$5:$C$100,2,FALSE),\"\"))","v":""},"2e","$AE$77","$AF$77"]
[22543,{"$f":"Menu!$F$29","v":"X"},{"$f":"Menu!$J$29","v":2020},{"$f":"IF(ISBLANK(INDIRECT(\"'\"&F5673&\"'!\"&G5673)),\"\",INDIRECT(\"'\"&F5673&\"'!\"&G5673))","v":""},{"$f":"IF(ISBLANK(INDIRECT(\"'\"&F5673&\"'!\"&H5673)),\"\",IFERROR(VLOOKUP(TEXT(INDIRECT(\"'\"&F5673&\"'!\"&H5673),\"0\"),Notes!$B$5:$C$100,2,FALSE),\"\"))","v":""},"2e","$AI$77","$AJ$77"]
[22544,{"$f":"Menu!$F$29","v":"X"},{"$f":"Menu!$J$29","v":2020},{"$f":"IF(ISBLANK(INDIRECT(\"'\"&F5674&\"'!\"&G5674)),\"\",INDIRECT(\"'\"&F5674&\"'!\"&G5674))","v":""},{"$f":"IF(ISBLANK(INDIRECT(\"'\"&F5674&\"'!\"&H5674)),\"\",IFERROR(VLOOKUP(TEXT(INDIRECT(\"'\"&F5674&\"'!\"&H5674),\"0\"),Notes!$B$5:$C$100,2,FALSE),\"\"))","v":""},"2e","$AM$77","$AN$77"]
[22545,{"$f":"Menu!$F$29","v":"X"},{"$f":"Menu!$J$29","v":2020},{"$f":"IF(ISBLANK(INDIRECT(\"'\"&F5675&\"'!\"&G5675)),\"\",INDIRECT(\"'\"&F5675&\"'!\"&G5675))","v":""},{"$f":"IF(ISBLANK(INDIRECT(\"'\"&F5675&\"'!\"&H5675)),\"\",IFERROR(VLOOKUP(TEXT(INDIRECT(\"'\"&F5675&\"'!\"&H5675),\"0\"),Notes!$B$5:$C$100,2,FALSE),\"\"))","v":""},"2e","$AK$77","$AL$77"]
[22546,{"$f":"Menu!$F$29","v":"X"},{"$f":"Menu!$J$29","v":2020},{"$f":"IF(ISBLANK(INDIRECT(\"'\"&F5676&\"'!\"&G5676)),\"\",INDIRECT(\"'\"&F5676&\"'!\"&G5676))","v":""},{"$f":"IF(ISBLANK(INDIRECT(\"'\"&F5676&\"'!\"&H5676)),\"\",IFERROR(VLOOKUP(TEXT(INDIRECT(\"'\"&F5676&\"'!\"&H5676),\"0\"),Notes!$B$5:$C$100,2,FALSE),\"\"))","v":""},"2e","$AO$77","$AP$77"]
[22547,{"$f":"Menu!$F$29","v":"X"},{"$f":"Menu!$J$29","v":2020},{"$f":"IF(ISBLANK(INDIRECT(\"'\"&F5677&\"'!\"&G5677)),\"\",INDIRECT(\"'\"&F5677&\"'!\"&G5677))","v":""},{"$f":"IF(ISBLANK(INDIRECT(\"'\"&F5677&\"'!\"&H5677)),\"\",IFERROR(VLOOKUP(TEXT(INDIRECT(\"'\"&F5677&\"'!\"&H5677),\"0\"),Notes!$B$5:$C$100,2,FALSE),\"\"))","v":""},"2e","$AQ$77","$AR$77"]
[22548,{"$f":"Menu!$F$29","v":"X"},{"$f":"Menu!$J$29","v":2020},{"$f":"IF(ISBLANK(INDIRECT(\"'\"&F5678&\"'!\"&G5678)),\"\",INDIRECT(\"'\"&F5678&\"'!\"&G5678))","v":""},{"$f":"IF(ISBLANK(INDIRECT(\"'\"&F5678&\"'!\"&H5678)),\"\",IFERROR(VLOOKUP(TEXT(INDIRECT(\"'\"&F5678&\"'!\"&H5678),\"0\"),Notes!$B$5:$C$100,2,FALSE),\"\"))","v":""},"2e","$AS$77","$AT$77"]
[22549,{"$f":"Menu!$F$29","v":"X"},{"$f":"Menu!$J$29","v":2020},{"$f":"IF(ISBLANK(INDIRECT(\"'\"&F5679&\"'!\"&G5679)),\"\",INDIRECT(\"'\"&F5679&\"'!\"&G5679))","v":""},{"$f":"IF(ISBLANK(INDIRECT(\"'\"&F5679&\"'!\"&H5679)),\"\",IFERROR(VLOOKUP(TEXT(INDIRECT(\"'\"&F5679&\"'!\"&H5679),\"0\"),Notes!$B$5:$C$100,2,FALSE),\"\"))","v":""},"2e","$AU$77","$AV$77"]
[22550,{"$f":"Menu!$F$29","v":"X"},{"$f":"Menu!$J$29","v":2020},{"$f":"IF(ISBLANK(INDIRECT(\"'\"&F5680&\"'!\"&G5680)),\"\",INDIRECT(\"'\"&F5680&\"'!\"&G5680))","v":""},{"$f":"IF(ISBLANK(INDIRECT(\"'\"&F5680&\"'!\"&H5680)),\"\",IFERROR(VLOOKUP(TEXT(INDIRECT(\"'\"&F5680&\"'!\"&H5680),\"0\"),Notes!$B$5:$C$100,2,FALSE),\"\"))","v":""},"2e","$AY$77","$AZ$77"]
[22551,{"$f":"Menu!$F$29","v":"X"},{"$f":"Menu!$J$29","v":2020},{"$f":"IF(ISBLANK(INDIRECT(\"'\"&F5681&\"'!\"&G5681)),\"\",INDIRECT(\"'\"&F5681&\"'!\"&G5681))","v":""},{"$f":"IF(ISBLANK(INDIRECT(\"'\"&F5681&\"'!\"&H5681)),\"\",IFERROR(VLOOKUP(TEXT(INDIRECT(\"'\"&F5681&\"'!\"&H5681),\"0\"),Notes!$B$5:$C$100,2,FALSE),\"\"))","v":""},"2e","$AW$77","$AX$77"]
[22552,{"$f":"Menu!$F$29","v":"X"},{"$f":"Menu!$J$29","v":2020},{"$f":"IF(ISBLANK(INDIRECT(\"'\"&F5682&\"'!\"&G5682)),\"\",INDIRECT(\"'\"&F5682&\"'!\"&G5682))","v":""},{"$f":"IF(ISBLANK(INDIRECT(\"'\"&F5682&\"'!\"&H5682)),\"\",IFERROR(VLOOKUP(TEXT(INDIRECT(\"'\"&F5682&\"'!\"&H5682),\"0\"),Notes!$B$5:$C$100,2,FALSE),\"\"))","v":""},"2e","$BA$77","$BB$77"]
[22553,{"$f":"Menu!$F$29","v":"X"},{"$f":"Menu!$J$29","v":2020},{"$f":"IF(ISBLANK(INDIRECT(\"'\"&F5683&\"'!\"&G5683)),\"\",INDIRECT(\"'\"&F5683&\"'!\"&G5683))","v":""},{"$f":"IF(ISBLANK(INDIRECT(\"'\"&F5683&\"'!\"&H5683)),\"\",IFERROR(VLOOKUP(TEXT(INDIRECT(\"'\"&F5683&\"'!\"&H5683),\"0\"),Notes!$B$5:$C$100,2,FALSE),\"\"))","v":""},"2e","$BE$77","$BF$77"]
[22554,{"$f":"Menu!$F$29","v":"X"},{"$f":"Menu!$J$29","v":2020},{"$f":"IF(ISBLANK(INDIRECT(\"'\"&F5684&\"'!\"&G5684)),\"\",INDIRECT(\"'\"&F5684&\"'!\"&G5684))","v":""},{"$f":"IF(ISBLANK(INDIRECT(\"'\"&F5684&\"'!\"&H5684)),\"\",IFERROR(VLOOKUP(TEXT(INDIRECT(\"'\"&F5684&\"'!\"&H5684),\"0\"),Notes!$B$5:$C$100,2,FALSE),\"\"))","v":""},"2e","$BC$77","$BD$77"]
[23674,{"$f":"Menu!$F$29","v":"X"},{"$f":"Menu!$J$29","v":2020},{"$f":"IF(ISBLANK(INDIRECT(\"'\"&F5685&\"'!\"&G5685)),\"\",INDIRECT(\"'\"&F5685&\"'!\"&G5685))","v":""},{"$f":"IF(ISBLANK(INDIRECT(\"'\"&F5685&\"'!\"&H5685)),\"\",IFERROR(VLOOKUP(TEXT(INDIRECT(\"'\"&F5685&\"'!\"&H5685),\"0\"),Notes!$B$5:$C$100,2,FALSE),\"\"))","v":""},"2d","$AG$117","$AH$117"]
[23675,{"$f":"Menu!$F$29","v":"X"},{"$f":"Menu!$J$29","v":2020},{"$f":"IF(ISBLANK(INDIRECT(\"'\"&F5686&\"'!\"&G5686)),\"\",INDIRECT(\"'\"&F5686&\"'!\"&G5686))","v":""},{"$f":"IF(ISBLANK(INDIRECT(\"'\"&F5686&\"'!\"&H5686)),\"\",IFERROR(VLOOKUP(TEXT(INDIRECT(\"'\"&F5686&\"'!\"&H5686),\"0\"),Notes!$B$5:$C$100,2,FALSE),\"\"))","v":""},"2d","$AA$117","$AB$117"]
[24778,{"$f":"Menu!$F$29","v":"X"},{"$f":"Menu!$J$29","v":2020},{"$f":"IF(ISBLANK(INDIRECT(\"'\"&F5687&\"'!\"&G5687)),\"\",INDIRECT(\"'\"&F5687&\"'!\"&G5687))","v":""},{"$f":"IF(ISBLANK(INDIRECT(\"'\"&F5687&\"'!\"&H5687)),\"\",IFERROR(VLOOKUP(TEXT(INDIRECT(\"'\"&F5687&\"'!\"&H5687),\"0\"),Notes!$B$5:$C$100,2,FALSE),\"\"))","v":""},"1a","$K$25","$L$25"]
[24779,{"$f":"Menu!$F$29","v":"X"},{"$f":"Menu!$J$29","v":2020},{"$f":"IF(ISBLANK(INDIRECT(\"'\"&F5688&\"'!\"&G5688)),\"\",INDIRECT(\"'\"&F5688&\"'!\"&G5688))","v":""},{"$f":"IF(ISBLANK(INDIRECT(\"'\"&F5688&\"'!\"&H5688)),\"\",IFERROR(VLOOKUP(TEXT(INDIRECT(\"'\"&F5688&\"'!\"&H5688),\"0\"),Notes!$B$5:$C$100,2,FALSE),\"\"))","v":""},"1a","$O$25","$P$25"]
[24780,{"$f":"Menu!$F$29","v":"X"},{"$f":"Menu!$J$29","v":2020},{"$f":"IF(ISBLANK(INDIRECT(\"'\"&F5689&\"'!\"&G5689)),\"\",INDIRECT(\"'\"&F5689&\"'!\"&G5689))","v":""},{"$f":"IF(ISBLANK(INDIRECT(\"'\"&F5689&\"'!\"&H5689)),\"\",IFERROR(VLOOKUP(TEXT(INDIRECT(\"'\"&F5689&\"'!\"&H5689),\"0\"),Notes!$B$5:$C$100,2,FALSE),\"\"))","v":""},"1a","$M$25","$N$25"]
[24781,{"$f":"Menu!$F$29","v":"X"},{"$f":"Menu!$J$29","v":2020},{"$f":"IF(ISBLANK(INDIRECT(\"'\"&F5690&\"'!\"&G5690)),\"\",INDIRECT(\"'\"&F5690&\"'!\"&G5690))","v":""},{"$f":"IF(ISBLANK(INDIRECT(\"'\"&F5690&\"'!\"&H5690)),\"\",IFERROR(VLOOKUP(TEXT(INDIRECT(\"'\"&F5690&\"'!\"&H5690),\"0\"),Notes!$B$5:$C$100,2,FALSE),\"\"))","v":""},"1a","$Q$25","$R$25"]
[24782,{"$f":"Menu!$F$29","v":"X"},{"$f":"Menu!$J$29","v":2020},{"$f":"IF(ISBLANK(INDIRECT(\"'\"&F5691&\"'!\"&G5691)),\"\",INDIRECT(\"'\"&F5691&\"'!\"&G5691))","v":""},{"$f":"IF(ISBLANK(INDIRECT(\"'\"&F5691&\"'!\"&H5691)),\"\",IFERROR(VLOOKUP(TEXT(INDIRECT(\"'\"&F5691&\"'!\"&H5691),\"0\"),Notes!$B$5:$C$100,2,FALSE),\"\"))","v":""},"1a","$U$25","$V$25"]
[24783,{"$f":"Menu!$F$29","v":"X"},{"$f":"Menu!$J$29","v":2020},{"$f":"IF(ISBLANK(INDIRECT(\"'\"&F5692&\"'!\"&G5692)),\"\",INDIRECT(\"'\"&F5692&\"'!\"&G5692))","v":""},{"$f":"IF(ISBLANK(INDIRECT(\"'\"&F5692&\"'!\"&H5692)),\"\",IFERROR(VLOOKUP(TEXT(INDIRECT(\"'\"&F5692&\"'!\"&H5692),\"0\"),Notes!$B$5:$C$100,2,FALSE),\"\"))","v":""},"1a","$S$25","$T$25"]
[24784,{"$f":"Menu!$F$29","v":"X"},{"$f":"Menu!$J$29","v":2020},{"$f":"IF(ISBLANK(INDIRECT(\"'\"&F5693&\"'!\"&G5693)),\"\",INDIRECT(\"'\"&F5693&\"'!\"&G5693))","v":""},{"$f":"IF(ISBLANK(INDIRECT(\"'\"&F5693&\"'!\"&H5693)),\"\",IFERROR(VLOOKUP(TEXT(INDIRECT(\"'\"&F5693&\"'!\"&H5693),\"0\"),Notes!$B$5:$C$100,2,FALSE),\"\"))","v":""},"1a","$I$25","$J$25"]
[24785,{"$f":"Menu!$F$29","v":"X"},{"$f":"Menu!$J$29","v":2020},{"$f":"IF(ISBLANK(INDIRECT(\"'\"&F5694&\"'!\"&G5694)),\"\",INDIRECT(\"'\"&F5694&\"'!\"&G5694))","v":""},{"$f":"IF(ISBLANK(INDIRECT(\"'\"&F5694&\"'!\"&H5694)),\"\",IFERROR(VLOOKUP(TEXT(INDIRECT(\"'\"&F5694&\"'!\"&H5694),\"0\"),Notes!$B$5:$C$100,2,FALSE),\"\"))","v":""},"1a","$G$25","$H$25"]
[24786,{"$f":"Menu!$F$29","v":"X"},{"$f":"Menu!$J$29","v":2020},{"$f":"IF(ISBLANK(INDIRECT(\"'\"&F5695&\"'!\"&G5695)),\"\",INDIRECT(\"'\"&F5695&\"'!\"&G5695))","v":""},{"$f":"IF(ISBLANK(INDIRECT(\"'\"&F5695&\"'!\"&H5695)),\"\",IFERROR(VLOOKUP(TEXT(INDIRECT(\"'\"&F5695&\"'!\"&H5695),\"0\"),Notes!$B$5:$C$100,2,FALSE),\"\"))","v":""},"1a","$E$25","$F$25"]
[24787,{"$f":"Menu!$F$29","v":"X"},{"$f":"Menu!$J$29","v":2020},{"$f":"IF(ISBLANK(INDIRECT(\"'\"&F5696&\"'!\"&G5696)),\"\",INDIRECT(\"'\"&F5696&\"'!\"&G5696))","v":""},{"$f":"IF(ISBLANK(INDIRECT(\"'\"&F5696&\"'!\"&H5696)),\"\",IFERROR(VLOOKUP(TEXT(INDIRECT(\"'\"&F5696&\"'!\"&H5696),\"0\"),Notes!$B$5:$C$100,2,FALSE),\"\"))","v":""},"2b","$K$16","$L$16"]
[24788,{"$f":"Menu!$F$29","v":"X"},{"$f":"Menu!$J$29","v":2020},{"$f":"IF(ISBLANK(INDIRECT(\"'\"&F5697&\"'!\"&G5697)),\"\",INDIRECT(\"'\"&F5697&\"'!\"&G5697))","v":""},{"$f":"IF(ISBLANK(INDIRECT(\"'\"&F5697&\"'!\"&H5697)),\"\",IFERROR(VLOOKUP(TEXT(INDIRECT(\"'\"&F5697&\"'!\"&H5697),\"0\"),Notes!$B$5:$C$100,2,FALSE),\"\"))","v":""},"2b","$O$16","$P$16"]
[24789,{"$f":"Menu!$F$29","v":"X"},{"$f":"Menu!$J$29","v":2020},{"$f":"IF(ISBLANK(INDIRECT(\"'\"&F5698&\"'!\"&G5698)),\"\",INDIRECT(\"'\"&F5698&\"'!\"&G5698))","v":""},{"$f":"IF(ISBLANK(INDIRECT(\"'\"&F5698&\"'!\"&H5698)),\"\",IFERROR(VLOOKUP(TEXT(INDIRECT(\"'\"&F5698&\"'!\"&H5698),\"0\"),Notes!$B$5:$C$100,2,FALSE),\"\"))","v":""},"2b","$M$16",{"$f":"IF(LEN(TRIM(MID(G5698,4,10)))-LEN(SUBSTITUTE(TRIM(MID(G5698,4,10)),\"$\",\"\"))=0,\"$\"&CHAR(CODE(MID(G5698,2,1))+1)&\"$\"&TRIM(MID(G5698,4,10)),\"$\"&MID(G5698,2,1)&CHAR(CODE(MID(G5698,3,1))+1)&\"$\"&TRIM(MID(G5698,5,11)))","v":"$N$16"}]
[24790,{"$f":"Menu!$F$29","v":"X"},{"$f":"Menu!$J$29","v":2020},{"$f":"IF(ISBLANK(INDIRECT(\"'\"&F5699&\"'!\"&G5699)),\"\",INDIRECT(\"'\"&F5699&\"'!\"&G5699))","v":""},{"$f":"IF(ISBLANK(INDIRECT(\"'\"&F5699&\"'!\"&H5699)),\"\",IFERROR(VLOOKUP(TEXT(INDIRECT(\"'\"&F5699&\"'!\"&H5699),\"0\"),Notes!$B$5:$C$100,2,FALSE),\"\"))","v":""},"2b","$Q$16","$R$16"]
[24791,{"$f":"Menu!$F$29","v":"X"},{"$f":"Menu!$J$29","v":2020},{"$f":"IF(ISBLANK(INDIRECT(\"'\"&F5700&\"'!\"&G5700)),\"\",INDIRECT(\"'\"&F5700&\"'!\"&G5700))","v":""},{"$f":"IF(ISBLANK(INDIRECT(\"'\"&F5700&\"'!\"&H5700)),\"\",IFERROR(VLOOKUP(TEXT(INDIRECT(\"'\"&F5700&\"'!\"&H5700),\"0\"),Notes!$B$5:$C$100,2,FALSE),\"\"))","v":""},"2b","$U$16","$V$16"]
[24792,{"$f":"Menu!$F$29","v":"X"},{"$f":"Menu!$J$29","v":2020},{"$f":"IF(ISBLANK(INDIRECT(\"'\"&F5701&\"'!\"&G5701)),\"\",INDIRECT(\"'\"&F5701&\"'!\"&G5701))","v":""},{"$f":"IF(ISBLANK(INDIRECT(\"'\"&F5701&\"'!\"&H5701)),\"\",IFERROR(VLOOKUP(TEXT(INDIRECT(\"'\"&F5701&\"'!\"&H5701),\"0\"),Notes!$B$5:$C$100,2,FALSE),\"\"))","v":""},"2b","$S$16","$T$16"]
[24796,{"$f":"Menu!$F$29","v":"X"},{"$f":"Menu!$J$29","v":2020},{"$f":"IF(ISBLANK(INDIRECT(\"'\"&F5702&\"'!\"&G5702)),\"\",INDIRECT(\"'\"&F5702&\"'!\"&G5702))","v":""},{"$f":"IF(ISBLANK(INDIRECT(\"'\"&F5702&\"'!\"&H5702)),\"\",IFERROR(VLOOKUP(TEXT(INDIRECT(\"'\"&F5702&\"'!\"&H5702),\"0\"),Notes!$B$5:$C$100,2,FALSE),\"\"))","v":""},"2a","$I$16","$J$16"]
[24797,{"$f":"Menu!$F$29","v":"X"},{"$f":"Menu!$J$29","v":2020},{"$f":"IF(ISBLANK(INDIRECT(\"'\"&F5703&\"'!\"&G5703)),\"\",INDIRECT(\"'\"&F5703&\"'!\"&G5703))","v":""},{"$f":"IF(ISBLANK(INDIRECT(\"'\"&F5703&\"'!\"&H5703)),\"\",IFERROR(VLOOKUP(TEXT(INDIRECT(\"'\"&F5703&\"'!\"&H5703),\"0\"),Notes!$B$5:$C$100,2,FALSE),\"\"))","v":""},"2c","$E$16","$F$16"]
[24798,{"$f":"Menu!$F$29","v":"X"},{"$f":"Menu!$J$29","v":2020},{"$f":"IF(ISBLANK(INDIRECT(\"'\"&F5704&\"'!\"&G5704)),\"\",INDIRECT(\"'\"&F5704&\"'!\"&G5704))","v":""},{"$f":"IF(ISBLANK(INDIRECT(\"'\"&F5704&\"'!\"&H5704)),\"\",IFERROR(VLOOKUP(TEXT(INDIRECT(\"'\"&F5704&\"'!\"&H5704),\"0\"),Notes!$B$5:$C$100,2,FALSE),\"\"))","v":""},"2c","$I$16","$J$16"]
[24799,{"$f":"Menu!$F$29","v":"X"},{"$f":"Menu!$J$29","v":2020},{"$f":"IF(ISBLANK(INDIRECT(\"'\"&F5705&\"'!\"&G5705)),\"\",INDIRECT(\"'\"&F5705&\"'!\"&G5705))","v":""},{"$f":"IF(ISBLANK(INDIRECT(\"'\"&F5705&\"'!\"&H5705)),\"\",IFERROR(VLOOKUP(TEXT(INDIRECT(\"'\"&F5705&\"'!\"&H5705),\"0\"),Notes!$B$5:$C$100,2,FALSE),\"\"))","v":""},"2c","$G$16","$H$16"]
[24803,{"$f":"Menu!$F$29","v":"X"},{"$f":"Menu!$J$29","v":2020},{"$f":"IF(ISBLANK(INDIRECT(\"'\"&F5706&\"'!\"&G5706)),\"\",INDIRECT(\"'\"&F5706&\"'!\"&G5706))","v":""},{"$f":"IF(ISBLANK(INDIRECT(\"'\"&F5706&\"'!\"&H5706)),\"\",IFERROR(VLOOKUP(TEXT(INDIRECT(\"'\"&F5706&\"'!\"&H5706),\"0\"),Notes!$B$5:$C$100,2,FALSE),\"\"))","v":""},"2c","$K$16","$L$16"]
[24804,{"$f":"Menu!$F$29","v":"X"},{"$f":"Menu!$J$29","v":2020},{"$f":"IF(ISBLANK(INDIRECT(\"'\"&F5707&\"'!\"&G5707)),\"\",INDIRECT(\"'\"&F5707&\"'!\"&G5707))","v":""},{"$f":"IF(ISBLANK(INDIRECT(\"'\"&F5707&\"'!\"&H5707)),\"\",IFERROR(VLOOKUP(TEXT(INDIRECT(\"'\"&F5707&\"'!\"&H5707),\"0\"),Notes!$B$5:$C$100,2,FALSE),\"\"))","v":""},"2c","$O$16","$P$16"]
[24805,{"$f":"Menu!$F$29","v":"X"},{"$f":"Menu!$J$29","v":2020},{"$f":"IF(ISBLANK(INDIRECT(\"'\"&F5708&\"'!\"&G5708)),\"\",INDIRECT(\"'\"&F5708&\"'!\"&G5708))","v":""},{"$f":"IF(ISBLANK(INDIRECT(\"'\"&F5708&\"'!\"&H5708)),\"\",IFERROR(VLOOKUP(TEXT(INDIRECT(\"'\"&F5708&\"'!\"&H5708),\"0\"),Notes!$B$5:$C$100,2,FALSE),\"\"))","v":""},"2c","$M$16","$N$16"]
[24806,{"$f":"Menu!$F$29","v":"X"},{"$f":"Menu!$J$29","v":2020},{"$f":"IF(ISBLANK(INDIRECT(\"'\"&F5709&\"'!\"&G5709)),\"\",INDIRECT(\"'\"&F5709&\"'!\"&G5709))","v":""},{"$f":"IF(ISBLANK(INDIRECT(\"'\"&F5709&\"'!\"&H5709)),\"\",IFERROR(VLOOKUP(TEXT(INDIRECT(\"'\"&F5709&\"'!\"&H5709),\"0\"),Notes!$B$5:$C$100,2,FALSE),\"\"))","v":""},"2c","$Q$16","$R$16"]
[24807,{"$f":"Menu!$F$29","v":"X"},{"$f":"Menu!$J$29","v":2020},{"$f":"IF(ISBLANK(INDIRECT(\"'\"&F5710&\"'!\"&G5710)),\"\",INDIRECT(\"'\"&F5710&\"'!\"&G5710))","v":""},{"$f":"IF(ISBLANK(INDIRECT(\"'\"&F5710&\"'!\"&H5710)),\"\",IFERROR(VLOOKUP(TEXT(INDIRECT(\"'\"&F5710&\"'!\"&H5710),\"0\"),Notes!$B$5:$C$100,2,FALSE),\"\"))","v":""},"2c","$U$16","$V$16"]
[24808,{"$f":"Menu!$F$29","v":"X"},{"$f":"Menu!$J$29","v":2020},{"$f":"IF(ISBLANK(INDIRECT(\"'\"&F5711&\"'!\"&G5711)),\"\",INDIRECT(\"'\"&F5711&\"'!\"&G5711))","v":""},{"$f":"IF(ISBLANK(INDIRECT(\"'\"&F5711&\"'!\"&H5711)),\"\",IFERROR(VLOOKUP(TEXT(INDIRECT(\"'\"&F5711&\"'!\"&H5711),\"0\"),Notes!$B$5:$C$100,2,FALSE),\"\"))","v":""},"2c","$S$16","$T$16"]
[24809,{"$f":"Menu!$F$29","v":"X"},{"$f":"Menu!$J$29","v":2020},{"$f":"IF(ISBLANK(INDIRECT(\"'\"&F5712&\"'!\"&G5712)),\"\",INDIRECT(\"'\"&F5712&\"'!\"&G5712))","v":""},{"$f":"IF(ISBLANK(INDIRECT(\"'\"&F5712&\"'!\"&H5712)),\"\",IFERROR(VLOOKUP(TEXT(INDIRECT(\"'\"&F5712&\"'!\"&H5712),\"0\"),Notes!$B$5:$C$100,2,FALSE),\"\"))","v":""},"2c","$W$16","$X$16"]
[24810,{"$f":"Menu!$F$29","v":"X"},{"$f":"Menu!$J$29","v":2020},{"$f":"IF(ISBLANK(INDIRECT(\"'\"&F5713&\"'!\"&G5713)),\"\",INDIRECT(\"'\"&F5713&\"'!\"&G5713))","v":""},{"$f":"IF(ISBLANK(INDIRECT(\"'\"&F5713&\"'!\"&H5713)),\"\",IFERROR(VLOOKUP(TEXT(INDIRECT(\"'\"&F5713&\"'!\"&H5713),\"0\"),Notes!$B$5:$C$100,2,FALSE),\"\"))","v":""},"2c","$AA$16","$AB$16"]
[24811,{"$f":"Menu!$F$29","v":"X"},{"$f":"Menu!$J$29","v":2020},{"$f":"IF(ISBLANK(INDIRECT(\"'\"&F5714&\"'!\"&G5714)),\"\",INDIRECT(\"'\"&F5714&\"'!\"&G5714))","v":""},{"$f":"IF(ISBLANK(INDIRECT(\"'\"&F5714&\"'!\"&H5714)),\"\",IFERROR(VLOOKUP(TEXT(INDIRECT(\"'\"&F5714&\"'!\"&H5714),\"0\"),Notes!$B$5:$C$100,2,FALSE),\"\"))","v":""},"2c","$Y$16","$Z$16"]
[24818,{"$f":"Menu!$F$29","v":"X"},{"$f":"Menu!$J$29","v":2020},{"$f":"IF(ISBLANK(INDIRECT(\"'\"&F5715&\"'!\"&G5715)),\"\",INDIRECT(\"'\"&F5715&\"'!\"&G5715))","v":""},{"$f":"IF(ISBLANK(INDIRECT(\"'\"&F5715&\"'!\"&H5715)),\"\",IFERROR(VLOOKUP(TEXT(INDIRECT(\"'\"&F5715&\"'!\"&H5715),\"0\"),Notes!$B$5:$C$100,2,FALSE),\"\"))","v":""},"2e","$BG$17","$BH$17"]
[24819,{"$f":"Menu!$F$29","v":"X"},{"$f":"Menu!$J$29","v":2020},{"$f":"IF(ISBLANK(INDIRECT(\"'\"&F5716&\"'!\"&G5716)),\"\",INDIRECT(\"'\"&F5716&\"'!\"&G5716))","v":""},{"$f":"IF(ISBLANK(INDIRECT(\"'\"&F5716&\"'!\"&H5716)),\"\",IFERROR(VLOOKUP(TEXT(INDIRECT(\"'\"&F5716&\"'!\"&H5716),\"0\"),Notes!$B$5:$C$100,2,FALSE),\"\"))","v":""},"2e","$BK$17","$BL$17"]
[24820,{"$f":"Menu!$F$29","v":"X"},{"$f":"Menu!$J$29","v":2020},{"$f":"IF(ISBLANK(INDIRECT(\"'\"&F5717&\"'!\"&G5717)),\"\",INDIRECT(\"'\"&F5717&\"'!\"&G5717))","v":""},{"$f":"IF(ISBLANK(INDIRECT(\"'\"&F5717&\"'!\"&H5717)),\"\",IFERROR(VLOOKUP(TEXT(INDIRECT(\"'\"&F5717&\"'!\"&H5717),\"0\"),Notes!$B$5:$C$100,2,FALSE),\"\"))","v":""},"2e","$BI$17","$BJ$17"]
[24821,{"$f":"Menu!$F$29","v":"X"},{"$f":"Menu!$J$29","v":2020},{"$f":"IF(ISBLANK(INDIRECT(\"'\"&F5718&\"'!\"&G5718)),\"\",INDIRECT(\"'\"&F5718&\"'!\"&G5718))","v":""},{"$f":"IF(ISBLANK(INDIRECT(\"'\"&F5718&\"'!\"&H5718)),\"\",IFERROR(VLOOKUP(TEXT(INDIRECT(\"'\"&F5718&\"'!\"&H5718),\"0\"),Notes!$B$5:$C$100,2,FALSE),\"\"))","v":""},"2e","$E$17","$F$17"]
[24822,{"$f":"Menu!$F$29","v":"X"},{"$f":"Menu!$J$29","v":2020},{"$f":"IF(ISBLANK(INDIRECT(\"'\"&F5719&\"'!\"&G5719)),\"\",INDIRECT(\"'\"&F5719&\"'!\"&G5719))","v":""},{"$f":"IF(ISBLANK(INDIRECT(\"'\"&F5719&\"'!\"&H5719)),\"\",IFERROR(VLOOKUP(TEXT(INDIRECT(\"'\"&F5719&\"'!\"&H5719),\"0\"),Notes!$B$5:$C$100,2,FALSE),\"\"))","v":""},"2e","$I$17","$J$17"]
[24823,{"$f":"Menu!$F$29","v":"X"},{"$f":"Menu!$J$29","v":2020},{"$f":"IF(ISBLANK(INDIRECT(\"'\"&F5720&\"'!\"&G5720)),\"\",INDIRECT(\"'\"&F5720&\"'!\"&G5720))","v":""},{"$f":"IF(ISBLANK(INDIRECT(\"'\"&F5720&\"'!\"&H5720)),\"\",IFERROR(VLOOKUP(TEXT(INDIRECT(\"'\"&F5720&\"'!\"&H5720),\"0\"),Notes!$B$5:$C$100,2,FALSE),\"\"))","v":""},"2e","$G$17","$H$17"]
[24824,{"$f":"Menu!$F$29","v":"X"},{"$f":"Menu!$J$29","v":2020},{"$f":"IF(ISBLANK(INDIRECT(\"'\"&F5721&\"'!\"&G5721)),\"\",INDIRECT(\"'\"&F5721&\"'!\"&G5721))","v":""},{"$f":"IF(ISBLANK(INDIRECT(\"'\"&F5721&\"'!\"&H5721)),\"\",IFERROR(VLOOKUP(TEXT(INDIRECT(\"'\"&F5721&\"'!\"&H5721),\"0\"),Notes!$B$5:$C$100,2,FALSE),\"\"))","v":""},"2e","$K$17","$L$17"]
[24825,{"$f":"Menu!$F$29","v":"X"},{"$f":"Menu!$J$29","v":2020},{"$f":"IF(ISBLANK(INDIRECT(\"'\"&F5722&\"'!\"&G5722)),\"\",INDIRECT(\"'\"&F5722&\"'!\"&G5722))","v":""},{"$f":"IF(ISBLANK(INDIRECT(\"'\"&F5722&\"'!\"&H5722)),\"\",IFERROR(VLOOKUP(TEXT(INDIRECT(\"'\"&F5722&\"'!\"&H5722),\"0\"),Notes!$B$5:$C$100,2,FALSE),\"\"))","v":""},"2e","$O$17","$P$17"]
[24826,{"$f":"Menu!$F$29","v":"X"},{"$f":"Menu!$J$29","v":2020},{"$f":"IF(ISBLANK(INDIRECT(\"'\"&F5723&\"'!\"&G5723)),\"\",INDIRECT(\"'\"&F5723&\"'!\"&G5723))","v":""},{"$f":"IF(ISBLANK(INDIRECT(\"'\"&F5723&\"'!\"&H5723)),\"\",IFERROR(VLOOKUP(TEXT(INDIRECT(\"'\"&F5723&\"'!\"&H5723),\"0\"),Notes!$B$5:$C$100,2,FALSE),\"\"))","v":""},"2e","$M$17","$N$17"]
[24827,{"$f":"Menu!$F$29","v":"X"},{"$f":"Menu!$J$29","v":2020},{"$f":"IF(ISBLANK(INDIRECT(\"'\"&F5724&\"'!\"&G5724)),\"\",INDIRECT(\"'\"&F5724&\"'!\"&G5724))","v":""},{"$f":"IF(ISBLANK(INDIRECT(\"'\"&F5724&\"'!\"&H5724)),\"\",IFERROR(VLOOKUP(TEXT(INDIRECT(\"'\"&F5724&\"'!\"&H5724),\"0\"),Notes!$B$5:$C$100,2,FALSE),\"\"))","v":""},"2e","$Q$17","$R$17"]
[24828,{"$f":"Menu!$F$29","v":"X"},{"$f":"Menu!$J$29","v":2020},{"$f":"IF(ISBLANK(INDIRECT(\"'\"&F5725&\"'!\"&G5725)),\"\",INDIRECT(\"'\"&F5725&\"'!\"&G5725))","v":""},{"$f":"IF(ISBLANK(INDIRECT(\"'\"&F5725&\"'!\"&H5725)),\"\",IFERROR(VLOOKUP(TEXT(INDIRECT(\"'\"&F5725&\"'!\"&H5725),\"0\"),Notes!$B$5:$C$100,2,FALSE),\"\"))","v":""},"2e","$U$17","$V$17"]
[24829,{"$f":"Menu!$F$29","v":"X"},{"$f":"Menu!$J$29","v":2020},{"$f":"IF(ISBLANK(INDIRECT(\"'\"&F5726&\"'!\"&G5726)),\"\",INDIRECT(\"'\"&F5726&\"'!\"&G5726))","v":""},{"$f":"IF(ISBLANK(INDIRECT(\"'\"&F5726&\"'!\"&H5726)),\"\",IFERROR(VLOOKUP(TEXT(INDIRECT(\"'\"&F5726&\"'!\"&H5726),\"0\"),Notes!$B$5:$C$100,2,FALSE),\"\"))","v":""},"2e","$S$17","$T$17"]
[24830,{"$f":"Menu!$F$29","v":"X"},{"$f":"Menu!$J$29","v":2020},{"$f":"IF(ISBLANK(INDIRECT(\"'\"&F5727&\"'!\"&G5727)),\"\",INDIRECT(\"'\"&F5727&\"'!\"&G5727))","v":""},{"$f":"IF(ISBLANK(INDIRECT(\"'\"&F5727&\"'!\"&H5727)),\"\",IFERROR(VLOOKUP(TEXT(INDIRECT(\"'\"&F5727&\"'!\"&H5727),\"0\"),Notes!$B$5:$C$100,2,FALSE),\"\"))","v":""},"2e","$W$17","$X$17"]
[24831,{"$f":"Menu!$F$29","v":"X"},{"$f":"Menu!$J$29","v":2020},{"$f":"IF(ISBLANK(INDIRECT(\"'\"&F5728&\"'!\"&G5728)),\"\",INDIRECT(\"'\"&F5728&\"'!\"&G5728))","v":""},{"$f":"IF(ISBLANK(INDIRECT(\"'\"&F5728&\"'!\"&H5728)),\"\",IFERROR(VLOOKUP(TEXT(INDIRECT(\"'\"&F5728&\"'!\"&H5728),\"0\"),Notes!$B$5:$C$100,2,FALSE),\"\"))","v":""},"2e","$AA$17","$AB$17"]
[24832,{"$f":"Menu!$F$29","v":"X"},{"$f":"Menu!$J$29","v":2020},{"$f":"IF(ISBLANK(INDIRECT(\"'\"&F5729&\"'!\"&G5729)),\"\",INDIRECT(\"'\"&F5729&\"'!\"&G5729))","v":""},{"$f":"IF(ISBLANK(INDIRECT(\"'\"&F5729&\"'!\"&H5729)),\"\",IFERROR(VLOOKUP(TEXT(INDIRECT(\"'\"&F5729&\"'!\"&H5729),\"0\"),Notes!$B$5:$C$100,2,FALSE),\"\"))","v":""},"2e","$Y$17","$Z$17"]
[24833,{"$f":"Menu!$F$29","v":"X"},{"$f":"Menu!$J$29","v":2020},{"$f":"IF(ISBLANK(INDIRECT(\"'\"&F5730&\"'!\"&G5730)),\"\",INDIRECT(\"'\"&F5730&\"'!\"&G5730))","v":""},{"$f":"IF(ISBLANK(INDIRECT(\"'\"&F5730&\"'!\"&H5730)),\"\",IFERROR(VLOOKUP(TEXT(INDIRECT(\"'\"&F5730&\"'!\"&H5730),\"0\"),Notes!$B$5:$C$100,2,FALSE),\"\"))","v":""},"2e","$AC$17","$AD$17"]
[24834,{"$f":"Menu!$F$29","v":"X"},{"$f":"Menu!$J$29","v":2020},{"$f":"IF(ISBLANK(INDIRECT(\"'\"&F5731&\"'!\"&G5731)),\"\",INDIRECT(\"'\"&F5731&\"'!\"&G5731))","v":""},{"$f":"IF(ISBLANK(INDIRECT(\"'\"&F5731&\"'!\"&H5731)),\"\",IFERROR(VLOOKUP(TEXT(INDIRECT(\"'\"&F5731&\"'!\"&H5731),\"0\"),Notes!$B$5:$C$100,2,FALSE),\"\"))","v":""},"2e","$AG$17","$AH$17"]
[24835,{"$f":"Menu!$F$29","v":"X"},{"$f":"Menu!$J$29","v":2020},{"$f":"IF(ISBLANK(INDIRECT(\"'\"&F5732&\"'!\"&G5732)),\"\",INDIRECT(\"'\"&F5732&\"'!\"&G5732))","v":""},{"$f":"IF(ISBLANK(INDIRECT(\"'\"&F5732&\"'!\"&H5732)),\"\",IFERROR(VLOOKUP(TEXT(INDIRECT(\"'\"&F5732&\"'!\"&H5732),\"0\"),Notes!$B$5:$C$100,2,FALSE),\"\"))","v":""},"2e","$AE$17","$AF$17"]
[24836,{"$f":"Menu!$F$29","v":"X"},{"$f":"Menu!$J$29","v":2020},{"$f":"IF(ISBLANK(INDIRECT(\"'\"&F5733&\"'!\"&G5733)),\"\",INDIRECT(\"'\"&F5733&\"'!\"&G5733))","v":""},{"$f":"IF(ISBLANK(INDIRECT(\"'\"&F5733&\"'!\"&H5733)),\"\",IFERROR(VLOOKUP(TEXT(INDIRECT(\"'\"&F5733&\"'!\"&H5733),\"0\"),Notes!$B$5:$C$100,2,FALSE),\"\"))","v":""},"2e","$AI$17","$AJ$17"]
[24837,{"$f":"Menu!$F$29","v":"X"},{"$f":"Menu!$J$29","v":2020},{"$f":"IF(ISBLANK(INDIRECT(\"'\"&F5734&\"'!\"&G5734)),\"\",INDIRECT(\"'\"&F5734&\"'!\"&G5734))","v":""},{"$f":"IF(ISBLANK(INDIRECT(\"'\"&F5734&\"'!\"&H5734)),\"\",IFERROR(VLOOKUP(TEXT(INDIRECT(\"'\"&F5734&\"'!\"&H5734),\"0\"),Notes!$B$5:$C$100,2,FALSE),\"\"))","v":""},"2e","$AM$17","$AN$17"]
[24838,{"$f":"Menu!$F$29","v":"X"},{"$f":"Menu!$J$29","v":2020},{"$f":"IF(ISBLANK(INDIRECT(\"'\"&F5735&\"'!\"&G5735)),\"\",INDIRECT(\"'\"&F5735&\"'!\"&G5735))","v":""},{"$f":"IF(ISBLANK(INDIRECT(\"'\"&F5735&\"'!\"&H5735)),\"\",IFERROR(VLOOKUP(TEXT(INDIRECT(\"'\"&F5735&\"'!\"&H5735),\"0\"),Notes!$B$5:$C$100,2,FALSE),\"\"))","v":""},"2e","$AK$17","$AL$17"]
[24839,{"$f":"Menu!$F$29","v":"X"},{"$f":"Menu!$J$29","v":2020},{"$f":"IF(ISBLANK(INDIRECT(\"'\"&F5736&\"'!\"&G5736)),\"\",INDIRECT(\"'\"&F5736&\"'!\"&G5736))","v":""},{"$f":"IF(ISBLANK(INDIRECT(\"'\"&F5736&\"'!\"&H5736)),\"\",IFERROR(VLOOKUP(TEXT(INDIRECT(\"'\"&F5736&\"'!\"&H5736),\"0\"),Notes!$B$5:$C$100,2,FALSE),\"\"))","v":""},"2e","$AO$17","$AP$17"]
[24840,{"$f":"Menu!$F$29","v":"X"},{"$f":"Menu!$J$29","v":2020},{"$f":"IF(ISBLANK(INDIRECT(\"'\"&F5737&\"'!\"&G5737)),\"\",INDIRECT(\"'\"&F5737&\"'!\"&G5737))","v":""},{"$f":"IF(ISBLANK(INDIRECT(\"'\"&F5737&\"'!\"&H5737)),\"\",IFERROR(VLOOKUP(TEXT(INDIRECT(\"'\"&F5737&\"'!\"&H5737),\"0\"),Notes!$B$5:$C$100,2,FALSE),\"\"))","v":""},"2e","$AS$17","$AT$17"]
[24841,{"$f":"Menu!$F$29","v":"X"},{"$f":"Menu!$J$29","v":2020},{"$f":"IF(ISBLANK(INDIRECT(\"'\"&F5738&\"'!\"&G5738)),\"\",INDIRECT(\"'\"&F5738&\"'!\"&G5738))","v":""},{"$f":"IF(ISBLANK(INDIRECT(\"'\"&F5738&\"'!\"&H5738)),\"\",IFERROR(VLOOKUP(TEXT(INDIRECT(\"'\"&F5738&\"'!\"&H5738),\"0\"),Notes!$B$5:$C$100,2,FALSE),\"\"))","v":""},"2e","$AQ$17","$AR$17"]
[24842,{"$f":"Menu!$F$29","v":"X"},{"$f":"Menu!$J$29","v":2020},{"$f":"IF(ISBLANK(INDIRECT(\"'\"&F5739&\"'!\"&G5739)),\"\",INDIRECT(\"'\"&F5739&\"'!\"&G5739))","v":""},{"$f":"IF(ISBLANK(INDIRECT(\"'\"&F5739&\"'!\"&H5739)),\"\",IFERROR(VLOOKUP(TEXT(INDIRECT(\"'\"&F5739&\"'!\"&H5739),\"0\"),Notes!$B$5:$C$100,2,FALSE),\"\"))","v":""},"2e","$AU$17","$AV$17"]
[24843,{"$f":"Menu!$F$29","v":"X"},{"$f":"Menu!$J$29","v":2020},{"$f":"IF(ISBLANK(INDIRECT(\"'\"&F5740&\"'!\"&G5740)),\"\",INDIRECT(\"'\"&F5740&\"'!\"&G5740))","v":""},{"$f":"IF(ISBLANK(INDIRECT(\"'\"&F5740&\"'!\"&H5740)),\"\",IFERROR(VLOOKUP(TEXT(INDIRECT(\"'\"&F5740&\"'!\"&H5740),\"0\"),Notes!$B$5:$C$100,2,FALSE),\"\"))","v":""},"2e","$AY$17","$AZ$17"]
[24844,{"$f":"Menu!$F$29","v":"X"},{"$f":"Menu!$J$29","v":2020},{"$f":"IF(ISBLANK(INDIRECT(\"'\"&F5741&\"'!\"&G5741)),\"\",INDIRECT(\"'\"&F5741&\"'!\"&G5741))","v":""},{"$f":"IF(ISBLANK(INDIRECT(\"'\"&F5741&\"'!\"&H5741)),\"\",IFERROR(VLOOKUP(TEXT(INDIRECT(\"'\"&F5741&\"'!\"&H5741),\"0\"),Notes!$B$5:$C$100,2,FALSE),\"\"))","v":""},"2e","$AW$17","$AX$17"]
[24845,{"$f":"Menu!$F$29","v":"X"},{"$f":"Menu!$J$29","v":2020},{"$f":"IF(ISBLANK(INDIRECT(\"'\"&F5742&\"'!\"&G5742)),\"\",INDIRECT(\"'\"&F5742&\"'!\"&G5742))","v":""},{"$f":"IF(ISBLANK(INDIRECT(\"'\"&F5742&\"'!\"&H5742)),\"\",IFERROR(VLOOKUP(TEXT(INDIRECT(\"'\"&F5742&\"'!\"&H5742),\"0\"),Notes!$B$5:$C$100,2,FALSE),\"\"))","v":""},"2e","$BA$17","$BB$17"]
[24846,{"$f":"Menu!$F$29","v":"X"},{"$f":"Menu!$J$29","v":2020},{"$f":"IF(ISBLANK(INDIRECT(\"'\"&F5743&\"'!\"&G5743)),\"\",INDIRECT(\"'\"&F5743&\"'!\"&G5743))","v":""},{"$f":"IF(ISBLANK(INDIRECT(\"'\"&F5743&\"'!\"&H5743)),\"\",IFERROR(VLOOKUP(TEXT(INDIRECT(\"'\"&F5743&\"'!\"&H5743),\"0\"),Notes!$B$5:$C$100,2,FALSE),\"\"))","v":""},"2e","$BE$17","$BF$17"]
[24847,{"$f":"Menu!$F$29","v":"X"},{"$f":"Menu!$J$29","v":2020},{"$f":"IF(ISBLANK(INDIRECT(\"'\"&F5744&\"'!\"&G5744)),\"\",INDIRECT(\"'\"&F5744&\"'!\"&G5744))","v":""},{"$f":"IF(ISBLANK(INDIRECT(\"'\"&F5744&\"'!\"&H5744)),\"\",IFERROR(VLOOKUP(TEXT(INDIRECT(\"'\"&F5744&\"'!\"&H5744),\"0\"),Notes!$B$5:$C$100,2,FALSE),\"\"))","v":""},"2e","$BC$17","$BD$17"]
[24848,{"$f":"Menu!$F$29","v":"X"},{"$f":"Menu!$J$29","v":2020},{"$f":"IF(ISBLANK(INDIRECT(\"'\"&F5745&\"'!\"&G5745)),\"\",INDIRECT(\"'\"&F5745&\"'!\"&G5745))","v":""},{"$f":"IF(ISBLANK(INDIRECT(\"'\"&F5745&\"'!\"&H5745)),\"\",IFERROR(VLOOKUP(TEXT(INDIRECT(\"'\"&F5745&\"'!\"&H5745),\"0\"),Notes!$B$5:$C$100,2,FALSE),\"\"))","v":""},"2b","$E$16","$F$16"]
[24849,{"$f":"Menu!$F$29","v":"X"},{"$f":"Menu!$J$29","v":2020},{"$f":"IF(ISBLANK(INDIRECT(\"'\"&F5746&\"'!\"&G5746)),\"\",INDIRECT(\"'\"&F5746&\"'!\"&G5746))","v":""},{"$f":"IF(ISBLANK(INDIRECT(\"'\"&F5746&\"'!\"&H5746)),\"\",IFERROR(VLOOKUP(TEXT(INDIRECT(\"'\"&F5746&\"'!\"&H5746),\"0\"),Notes!$B$5:$C$100,2,FALSE),\"\"))","v":""},"2b","$I$16","$J$16"]
[24850,{"$f":"Menu!$F$29","v":"X"},{"$f":"Menu!$J$29","v":2020},{"$f":"IF(ISBLANK(INDIRECT(\"'\"&F5747&\"'!\"&G5747)),\"\",INDIRECT(\"'\"&F5747&\"'!\"&G5747))","v":""},{"$f":"IF(ISBLANK(INDIRECT(\"'\"&F5747&\"'!\"&H5747)),\"\",IFERROR(VLOOKUP(TEXT(INDIRECT(\"'\"&F5747&\"'!\"&H5747),\"0\"),Notes!$B$5:$C$100,2,FALSE),\"\"))","v":""},"2b","$G$16","$H$16"]
[24851,{"$f":"Menu!$F$29","v":"X"},{"$f":"Menu!$J$29","v":2020},{"$f":"IF(ISBLANK(INDIRECT(\"'\"&F5748&\"'!\"&G5748)),\"\",INDIRECT(\"'\"&F5748&\"'!\"&G5748))","v":""},{"$f":"IF(ISBLANK(INDIRECT(\"'\"&F5748&\"'!\"&H5748)),\"\",IFERROR(VLOOKUP(TEXT(INDIRECT(\"'\"&F5748&\"'!\"&H5748),\"0\"),Notes!$B$5:$C$100,2,FALSE),\"\"))","v":""},"2a","$G$16","$H$16"]
[24852,{"$f":"Menu!$F$29","v":"X"},{"$f":"Menu!$J$29","v":2020},{"$f":"IF(ISBLANK(INDIRECT(\"'\"&F5749&\"'!\"&G5749)),\"\",INDIRECT(\"'\"&F5749&\"'!\"&G5749))","v":""},{"$f":"IF(ISBLANK(INDIRECT(\"'\"&F5749&\"'!\"&H5749)),\"\",IFERROR(VLOOKUP(TEXT(INDIRECT(\"'\"&F5749&\"'!\"&H5749),\"0\"),Notes!$B$5:$C$100,2,FALSE),\"\"))","v":""},"2b","$W$16","$X$16"]
[24853,{"$f":"Menu!$F$29","v":"X"},{"$f":"Menu!$J$29","v":2020},{"$f":"IF(ISBLANK(INDIRECT(\"'\"&F5750&\"'!\"&G5750)),\"\",INDIRECT(\"'\"&F5750&\"'!\"&G5750))","v":""},{"$f":"IF(ISBLANK(INDIRECT(\"'\"&F5750&\"'!\"&H5750)),\"\",IFERROR(VLOOKUP(TEXT(INDIRECT(\"'\"&F5750&\"'!\"&H5750),\"0\"),Notes!$B$5:$C$100,2,FALSE),\"\"))","v":""},"2b","$AA$16","$AB$16"]
[24854,{"$f":"Menu!$F$29","v":"X"},{"$f":"Menu!$J$29","v":2020},{"$f":"IF(ISBLANK(INDIRECT(\"'\"&F5751&\"'!\"&G5751)),\"\",INDIRECT(\"'\"&F5751&\"'!\"&G5751))","v":""},{"$f":"IF(ISBLANK(INDIRECT(\"'\"&F5751&\"'!\"&H5751)),\"\",IFERROR(VLOOKUP(TEXT(INDIRECT(\"'\"&F5751&\"'!\"&H5751),\"0\"),Notes!$B$5:$C$100,2,FALSE),\"\"))","v":""},"2b","$Y$16","$Z$16"]
[24855,{"$f":"Menu!$F$29","v":"X"},{"$f":"Menu!$J$29","v":2020},{"$f":"IF(ISBLANK(INDIRECT(\"'\"&F5752&\"'!\"&G5752)),\"\",INDIRECT(\"'\"&F5752&\"'!\"&G5752))","v":""},{"$f":"IF(ISBLANK(INDIRECT(\"'\"&F5752&\"'!\"&H5752)),\"\",IFERROR(VLOOKUP(TEXT(INDIRECT(\"'\"&F5752&\"'!\"&H5752),\"0\"),Notes!$B$5:$C$100,2,FALSE),\"\"))","v":""},"2d","$AC$16","$AD$16"]
[24856,{"$f":"Menu!$F$29","v":"X"},{"$f":"Menu!$J$29","v":2020},{"$f":"IF(ISBLANK(INDIRECT(\"'\"&F5753&\"'!\"&G5753)),\"\",INDIRECT(\"'\"&F5753&\"'!\"&G5753))","v":""},{"$f":"IF(ISBLANK(INDIRECT(\"'\"&F5753&\"'!\"&H5753)),\"\",IFERROR(VLOOKUP(TEXT(INDIRECT(\"'\"&F5753&\"'!\"&H5753),\"0\"),Notes!$B$5:$C$100,2,FALSE),\"\"))","v":""},"2d","$AG$16","$AH$16"]
[24857,{"$f":"Menu!$F$29","v":"X"},{"$f":"Menu!$J$29","v":2020},{"$f":"IF(ISBLANK(INDIRECT(\"'\"&F5754&\"'!\"&G5754)),\"\",INDIRECT(\"'\"&F5754&\"'!\"&G5754))","v":""},{"$f":"IF(ISBLANK(INDIRECT(\"'\"&F5754&\"'!\"&H5754)),\"\",IFERROR(VLOOKUP(TEXT(INDIRECT(\"'\"&F5754&\"'!\"&H5754),\"0\"),Notes!$B$5:$C$100,2,FALSE),\"\"))","v":""},"2d","$AE$16","$AF$16"]
[24858,{"$f":"Menu!$F$29","v":"X"},{"$f":"Menu!$J$29","v":2020},{"$f":"IF(ISBLANK(INDIRECT(\"'\"&F5755&\"'!\"&G5755)),\"\",INDIRECT(\"'\"&F5755&\"'!\"&G5755))","v":""},{"$f":"IF(ISBLANK(INDIRECT(\"'\"&F5755&\"'!\"&H5755)),\"\",IFERROR(VLOOKUP(TEXT(INDIRECT(\"'\"&F5755&\"'!\"&H5755),\"0\"),Notes!$B$5:$C$100,2,FALSE),\"\"))","v":""},"2d","$W$16","$X$16"]
[24859,{"$f":"Menu!$F$29","v":"X"},{"$f":"Menu!$J$29","v":2020},{"$f":"IF(ISBLANK(INDIRECT(\"'\"&F5756&\"'!\"&G5756)),\"\",INDIRECT(\"'\"&F5756&\"'!\"&G5756))","v":""},{"$f":"IF(ISBLANK(INDIRECT(\"'\"&F5756&\"'!\"&H5756)),\"\",IFERROR(VLOOKUP(TEXT(INDIRECT(\"'\"&F5756&\"'!\"&H5756),\"0\"),Notes!$B$5:$C$100,2,FALSE),\"\"))","v":""},"2d","$AA$16","$AB$16"]
[24860,{"$f":"Menu!$F$29","v":"X"},{"$f":"Menu!$J$29","v":2020},{"$f":"IF(ISBLANK(INDIRECT(\"'\"&F5757&\"'!\"&G5757)),\"\",INDIRECT(\"'\"&F5757&\"'!\"&G5757))","v":""},{"$f":"IF(ISBLANK(INDIRECT(\"'\"&F5757&\"'!\"&H5757)),\"\",IFERROR(VLOOKUP(TEXT(INDIRECT(\"'\"&F5757&\"'!\"&H5757),\"0\"),Notes!$B$5:$C$100,2,FALSE),\"\"))","v":""},"2d","$Y$16","$Z$16"]
[24861,{"$f":"Menu!$F$29","v":"X"},{"$f":"Menu!$J$29","v":2020},{"$f":"IF(ISBLANK(INDIRECT(\"'\"&F5758&\"'!\"&G5758)),\"\",INDIRECT(\"'\"&F5758&\"'!\"&G5758))","v":""},{"$f":"IF(ISBLANK(INDIRECT(\"'\"&F5758&\"'!\"&H5758)),\"\",IFERROR(VLOOKUP(TEXT(INDIRECT(\"'\"&F5758&\"'!\"&H5758),\"0\"),Notes!$B$5:$C$100,2,FALSE),\"\"))","v":""},"2d","$E$16","$F$16"]
[24862,{"$f":"Menu!$F$29","v":"X"},{"$f":"Menu!$J$29","v":2020},{"$f":"IF(ISBLANK(INDIRECT(\"'\"&F5759&\"'!\"&G5759)),\"\",INDIRECT(\"'\"&F5759&\"'!\"&G5759))","v":""},{"$f":"IF(ISBLANK(INDIRECT(\"'\"&F5759&\"'!\"&H5759)),\"\",IFERROR(VLOOKUP(TEXT(INDIRECT(\"'\"&F5759&\"'!\"&H5759),\"0\"),Notes!$B$5:$C$100,2,FALSE),\"\"))","v":""},"2d","$I$16","$J$16"]
[24863,{"$f":"Menu!$F$29","v":"X"},{"$f":"Menu!$J$29","v":2020},{"$f":"IF(ISBLANK(INDIRECT(\"'\"&F5760&\"'!\"&G5760)),\"\",INDIRECT(\"'\"&F5760&\"'!\"&G5760))","v":""},{"$f":"IF(ISBLANK(INDIRECT(\"'\"&F5760&\"'!\"&H5760)),\"\",IFERROR(VLOOKUP(TEXT(INDIRECT(\"'\"&F5760&\"'!\"&H5760),\"0\"),Notes!$B$5:$C$100,2,FALSE),\"\"))","v":""},"2d","$G$16","$H$16"]
[24864,{"$f":"Menu!$F$29","v":"X"},{"$f":"Menu!$J$29","v":2020},{"$f":"IF(ISBLANK(INDIRECT(\"'\"&F5761&\"'!\"&G5761)),\"\",INDIRECT(\"'\"&F5761&\"'!\"&G5761))","v":""},{"$f":"IF(ISBLANK(INDIRECT(\"'\"&F5761&\"'!\"&H5761)),\"\",IFERROR(VLOOKUP(TEXT(INDIRECT(\"'\"&F5761&\"'!\"&H5761),\"0\"),Notes!$B$5:$C$100,2,FALSE),\"\"))","v":""},"2a","$Q$16","$R$16"]
[24865,{"$f":"Menu!$F$29","v":"X"},{"$f":"Menu!$J$29","v":2020},{"$f":"IF(ISBLANK(INDIRECT(\"'\"&F5762&\"'!\"&G5762)),\"\",INDIRECT(\"'\"&F5762&\"'!\"&G5762))","v":""},{"$f":"IF(ISBLANK(INDIRECT(\"'\"&F5762&\"'!\"&H5762)),\"\",IFERROR(VLOOKUP(TEXT(INDIRECT(\"'\"&F5762&\"'!\"&H5762),\"0\"),Notes!$B$5:$C$100,2,FALSE),\"\"))","v":""},"2a","$U$16",{"$f":"IF(LEN(TRIM(MID(G5762,4,10)))-LEN(SUBSTITUTE(TRIM(MID(G5762,4,10)),\"$\",\"\"))=0,\"$\"&CHAR(CODE(MID(G5762,2,1))+1)&\"$\"&TRIM(MID(G5762,4,10)),\"$\"&MID(G5762,2,1)&CHAR(CODE(MID(G5762,3,1))+1)&\"$\"&TRIM(MID(G5762,5,11)))","v":"$V$16"}]
[24866,{"$f":"Menu!$F$29","v":"X"},{"$f":"Menu!$J$29","v":2020},{"$f":"IF(ISBLANK(INDIRECT(\"'\"&F5763&\"'!\"&G5763)),\"\",INDIRECT(\"'\"&F5763&\"'!\"&G5763))","v":""},{"$f":"IF(ISBLANK(INDIRECT(\"'\"&F5763&\"'!\"&H5763)),\"\",IFERROR(VLOOKUP(TEXT(INDIRECT(\"'\"&F5763&\"'!\"&H5763),\"0\"),Notes!$B$5:$C$100,2,FALSE),\"\"))","v":""},"2a","$S$16","$T$16"]
[24867,{"$f":"Menu!$F$29","v":"X"},{"$f":"Menu!$J$29","v":2020},{"$f":"IF(ISBLANK(INDIRECT(\"'\"&F5764&\"'!\"&G5764)),\"\",INDIRECT(\"'\"&F5764&\"'!\"&G5764))","v":""},{"$f":"IF(ISBLANK(INDIRECT(\"'\"&F5764&\"'!\"&H5764)),\"\",IFERROR(VLOOKUP(TEXT(INDIRECT(\"'\"&F5764&\"'!\"&H5764),\"0\"),Notes!$B$5:$C$100,2,FALSE),\"\"))","v":""},"2d","$K$16","$L$16"]
[24868,{"$f":"Menu!$F$29","v":"X"},{"$f":"Menu!$J$29","v":2020},{"$f":"IF(ISBLANK(INDIRECT(\"'\"&F5765&\"'!\"&G5765)),\"\",INDIRECT(\"'\"&F5765&\"'!\"&G5765))","v":""},{"$f":"IF(ISBLANK(INDIRECT(\"'\"&F5765&\"'!\"&H5765)),\"\",IFERROR(VLOOKUP(TEXT(INDIRECT(\"'\"&F5765&\"'!\"&H5765),\"0\"),Notes!$B$5:$C$100,2,FALSE),\"\"))","v":""},"2d","$O$16","$P$16"]
[24869,{"$f":"Menu!$F$29","v":"X"},{"$f":"Menu!$J$29","v":2020},{"$f":"IF(ISBLANK(INDIRECT(\"'\"&F5766&\"'!\"&G5766)),\"\",INDIRECT(\"'\"&F5766&\"'!\"&G5766))","v":""},{"$f":"IF(ISBLANK(INDIRECT(\"'\"&F5766&\"'!\"&H5766)),\"\",IFERROR(VLOOKUP(TEXT(INDIRECT(\"'\"&F5766&\"'!\"&H5766),\"0\"),Notes!$B$5:$C$100,2,FALSE),\"\"))","v":""},"2d","$M$16","$N$16"]
[24870,{"$f":"Menu!$F$29","v":"X"},{"$f":"Menu!$J$29","v":2020},{"$f":"IF(ISBLANK(INDIRECT(\"'\"&F5767&\"'!\"&G5767)),\"\",INDIRECT(\"'\"&F5767&\"'!\"&G5767))","v":""},{"$f":"IF(ISBLANK(INDIRECT(\"'\"&F5767&\"'!\"&H5767)),\"\",IFERROR(VLOOKUP(TEXT(INDIRECT(\"'\"&F5767&\"'!\"&H5767),\"0\"),Notes!$B$5:$C$100,2,FALSE),\"\"))","v":""},"2d","$Q$16","$R$16"]
[24871,{"$f":"Menu!$F$29","v":"X"},{"$f":"Menu!$J$29","v":2020},{"$f":"IF(ISBLANK(INDIRECT(\"'\"&F5768&\"'!\"&G5768)),\"\",INDIRECT(\"'\"&F5768&\"'!\"&G5768))","v":""},{"$f":"IF(ISBLANK(INDIRECT(\"'\"&F5768&\"'!\"&H5768)),\"\",IFERROR(VLOOKUP(TEXT(INDIRECT(\"'\"&F5768&\"'!\"&H5768),\"0\"),Notes!$B$5:$C$100,2,FALSE),\"\"))","v":""},"2d","$U$16","$V$16"]
[24872,{"$f":"Menu!$F$29","v":"X"},{"$f":"Menu!$J$29","v":2020},{"$f":"IF(ISBLANK(INDIRECT(\"'\"&F5769&\"'!\"&G5769)),\"\",INDIRECT(\"'\"&F5769&\"'!\"&G5769))","v":""},{"$f":"IF(ISBLANK(INDIRECT(\"'\"&F5769&\"'!\"&H5769)),\"\",IFERROR(VLOOKUP(TEXT(INDIRECT(\"'\"&F5769&\"'!\"&H5769),\"0\"),Notes!$B$5:$C$100,2,FALSE),\"\"))","v":""},"2d","$S$16","$T$16"]
[24873,{"$f":"Menu!$F$29","v":"X"},{"$f":"Menu!$J$29","v":2020},{"$f":"IF(ISBLANK(INDIRECT(\"'\"&F5770&\"'!\"&G5770)),\"\",INDIRECT(\"'\"&F5770&\"'!\"&G5770))","v":""},{"$f":"IF(ISBLANK(INDIRECT(\"'\"&F5770&\"'!\"&H5770)),\"\",IFERROR(VLOOKUP(TEXT(INDIRECT(\"'\"&F5770&\"'!\"&H5770),\"0\"),Notes!$B$5:$C$100,2,FALSE),\"\"))","v":""},"2a","$K$16","$L$16"]
[24874,{"$f":"Menu!$F$29","v":"X"},{"$f":"Menu!$J$29","v":2020},{"$f":"IF(ISBLANK(INDIRECT(\"'\"&F5771&\"'!\"&G5771)),\"\",INDIRECT(\"'\"&F5771&\"'!\"&G5771))","v":""},{"$f":"IF(ISBLANK(INDIRECT(\"'\"&F5771&\"'!\"&H5771)),\"\",IFERROR(VLOOKUP(TEXT(INDIRECT(\"'\"&F5771&\"'!\"&H5771),\"0\"),Notes!$B$5:$C$100,2,FALSE),\"\"))","v":""},"2a","$O$16","$P$16"]
[24875,{"$f":"Menu!$F$29","v":"X"},{"$f":"Menu!$J$29","v":2020},{"$f":"IF(ISBLANK(INDIRECT(\"'\"&F5772&\"'!\"&G5772)),\"\",INDIRECT(\"'\"&F5772&\"'!\"&G5772))","v":""},{"$f":"IF(ISBLANK(INDIRECT(\"'\"&F5772&\"'!\"&H5772)),\"\",IFERROR(VLOOKUP(TEXT(INDIRECT(\"'\"&F5772&\"'!\"&H5772),\"0\"),Notes!$B$5:$C$100,2,FALSE),\"\"))","v":""},"2a","$M$16","$N$16"]
[24876,{"$f":"Menu!$F$29","v":"X"},{"$f":"Menu!$J$29","v":2020},{"$f":"IF(ISBLANK(INDIRECT(\"'\"&F5773&\"'!\"&G5773)),\"\",INDIRECT(\"'\"&F5773&\"'!\"&G5773))","v":""},{"$f":"IF(ISBLANK(INDIRECT(\"'\"&F5773&\"'!\"&H5773)),\"\",IFERROR(VLOOKUP(TEXT(INDIRECT(\"'\"&F5773&\"'!\"&H5773),\"0\"),Notes!$B$5:$C$100,2,FALSE),\"\"))","v":""},"2a","$E$16","$F$16"]
[24877,{"$f":"Menu!$F$29","v":"X"},{"$f":"Menu!$J$29","v":2020},{"$f":"IF(ISBLANK(INDIRECT(\"'\"&F5774&\"'!\"&G5774)),\"\",INDIRECT(\"'\"&F5774&\"'!\"&G5774))","v":""},{"$f":"IF(ISBLANK(INDIRECT(\"'\"&F5774&\"'!\"&H5774)),\"\",IFERROR(VLOOKUP(TEXT(INDIRECT(\"'\"&F5774&\"'!\"&H5774),\"0\"),Notes!$B$5:$C$100,2,FALSE),\"\"))","v":""},"2b","$K$18","$L$18"]
[24878,{"$f":"Menu!$F$29","v":"X"},{"$f":"Menu!$J$29","v":2020},{"$f":"IF(ISBLANK(INDIRECT(\"'\"&F5775&\"'!\"&G5775)),\"\",INDIRECT(\"'\"&F5775&\"'!\"&G5775))","v":""},{"$f":"IF(ISBLANK(INDIRECT(\"'\"&F5775&\"'!\"&H5775)),\"\",IFERROR(VLOOKUP(TEXT(INDIRECT(\"'\"&F5775&\"'!\"&H5775),\"0\"),Notes!$B$5:$C$100,2,FALSE),\"\"))","v":""},"2b","$O$18","$P$18"]
[24879,{"$f":"Menu!$F$29","v":"X"},{"$f":"Menu!$J$29","v":2020},{"$f":"IF(ISBLANK(INDIRECT(\"'\"&F5776&\"'!\"&G5776)),\"\",INDIRECT(\"'\"&F5776&\"'!\"&G5776))","v":""},{"$f":"IF(ISBLANK(INDIRECT(\"'\"&F5776&\"'!\"&H5776)),\"\",IFERROR(VLOOKUP(TEXT(INDIRECT(\"'\"&F5776&\"'!\"&H5776),\"0\"),Notes!$B$5:$C$100,2,FALSE),\"\"))","v":""},"2b","$M$18","$N$18"]
[24880,{"$f":"Menu!$F$29","v":"X"},{"$f":"Menu!$J$29","v":2020},{"$f":"IF(ISBLANK(INDIRECT(\"'\"&F5777&\"'!\"&G5777)),\"\",INDIRECT(\"'\"&F5777&\"'!\"&G5777))","v":""},{"$f":"IF(ISBLANK(INDIRECT(\"'\"&F5777&\"'!\"&H5777)),\"\",IFERROR(VLOOKUP(TEXT(INDIRECT(\"'\"&F5777&\"'!\"&H5777),\"0\"),Notes!$B$5:$C$100,2,FALSE),\"\"))","v":""},"2b","$Q$18","$R$18"]
[24881,{"$f":"Menu!$F$29","v":"X"},{"$f":"Menu!$J$29","v":2020},{"$f":"IF(ISBLANK(INDIRECT(\"'\"&F5778&\"'!\"&G5778)),\"\",INDIRECT(\"'\"&F5778&\"'!\"&G5778))","v":""},{"$f":"IF(ISBLANK(INDIRECT(\"'\"&F5778&\"'!\"&H5778)),\"\",IFERROR(VLOOKUP(TEXT(INDIRECT(\"'\"&F5778&\"'!\"&H5778),\"0\"),Notes!$B$5:$C$100,2,FALSE),\"\"))","v":""},"2b","$U$18","$V$18"]
[24882,{"$f":"Menu!$F$29","v":"X"},{"$f":"Menu!$J$29","v":2020},{"$f":"IF(ISBLANK(INDIRECT(\"'\"&F5779&\"'!\"&G5779)),\"\",INDIRECT(\"'\"&F5779&\"'!\"&G5779))","v":""},{"$f":"IF(ISBLANK(INDIRECT(\"'\"&F5779&\"'!\"&H5779)),\"\",IFERROR(VLOOKUP(TEXT(INDIRECT(\"'\"&F5779&\"'!\"&H5779),\"0\"),Notes!$B$5:$C$100,2,FALSE),\"\"))","v":""},"2b","$S$18","$T$18"]
[24886,{"$f":"Menu!$F$29","v":"X"},{"$f":"Menu!$J$29","v":2020},{"$f":"IF(ISBLANK(INDIRECT(\"'\"&F5780&\"'!\"&G5780)),\"\",INDIRECT(\"'\"&F5780&\"'!\"&G5780))","v":""},{"$f":"IF(ISBLANK(INDIRECT(\"'\"&F5780&\"'!\"&H5780)),\"\",IFERROR(VLOOKUP(TEXT(INDIRECT(\"'\"&F5780&\"'!\"&H5780),\"0\"),Notes!$B$5:$C$100,2,FALSE),\"\"))","v":""},"2a","$I$18","$J$18"]
[24887,{"$f":"Menu!$F$29","v":"X"},{"$f":"Menu!$J$29","v":2020},{"$f":"IF(ISBLANK(INDIRECT(\"'\"&F5781&\"'!\"&G5781)),\"\",INDIRECT(\"'\"&F5781&\"'!\"&G5781))","v":""},{"$f":"IF(ISBLANK(INDIRECT(\"'\"&F5781&\"'!\"&H5781)),\"\",IFERROR(VLOOKUP(TEXT(INDIRECT(\"'\"&F5781&\"'!\"&H5781),\"0\"),Notes!$B$5:$C$100,2,FALSE),\"\"))","v":""},"2c","$E$18","$F$18"]
[24888,{"$f":"Menu!$F$29","v":"X"},{"$f":"Menu!$J$29","v":2020},{"$f":"IF(ISBLANK(INDIRECT(\"'\"&F5782&\"'!\"&G5782)),\"\",INDIRECT(\"'\"&F5782&\"'!\"&G5782))","v":""},{"$f":"IF(ISBLANK(INDIRECT(\"'\"&F5782&\"'!\"&H5782)),\"\",IFERROR(VLOOKUP(TEXT(INDIRECT(\"'\"&F5782&\"'!\"&H5782),\"0\"),Notes!$B$5:$C$100,2,FALSE),\"\"))","v":""},"2c","$I$18","$J$18"]
[24889,{"$f":"Menu!$F$29","v":"X"},{"$f":"Menu!$J$29","v":2020},{"$f":"IF(ISBLANK(INDIRECT(\"'\"&F5783&\"'!\"&G5783)),\"\",INDIRECT(\"'\"&F5783&\"'!\"&G5783))","v":""},{"$f":"IF(ISBLANK(INDIRECT(\"'\"&F5783&\"'!\"&H5783)),\"\",IFERROR(VLOOKUP(TEXT(INDIRECT(\"'\"&F5783&\"'!\"&H5783),\"0\"),Notes!$B$5:$C$100,2,FALSE),\"\"))","v":""},"2c","$G$18","$H$18"]
[24893,{"$f":"Menu!$F$29","v":"X"},{"$f":"Menu!$J$29","v":2020},{"$f":"IF(ISBLANK(INDIRECT(\"'\"&F5784&\"'!\"&G5784)),\"\",INDIRECT(\"'\"&F5784&\"'!\"&G5784))","v":""},{"$f":"IF(ISBLANK(INDIRECT(\"'\"&F5784&\"'!\"&H5784)),\"\",IFERROR(VLOOKUP(TEXT(INDIRECT(\"'\"&F5784&\"'!\"&H5784),\"0\"),Notes!$B$5:$C$100,2,FALSE),\"\"))","v":""},"2c","$K$18","$L$18"]
[24894,{"$f":"Menu!$F$29","v":"X"},{"$f":"Menu!$J$29","v":2020},{"$f":"IF(ISBLANK(INDIRECT(\"'\"&F5785&\"'!\"&G5785)),\"\",INDIRECT(\"'\"&F5785&\"'!\"&G5785))","v":""},{"$f":"IF(ISBLANK(INDIRECT(\"'\"&F5785&\"'!\"&H5785)),\"\",IFERROR(VLOOKUP(TEXT(INDIRECT(\"'\"&F5785&\"'!\"&H5785),\"0\"),Notes!$B$5:$C$100,2,FALSE),\"\"))","v":""},"2c","$O$18","$P$18"]
[24895,{"$f":"Menu!$F$29","v":"X"},{"$f":"Menu!$J$29","v":2020},{"$f":"IF(ISBLANK(INDIRECT(\"'\"&F5786&\"'!\"&G5786)),\"\",INDIRECT(\"'\"&F5786&\"'!\"&G5786))","v":""},{"$f":"IF(ISBLANK(INDIRECT(\"'\"&F5786&\"'!\"&H5786)),\"\",IFERROR(VLOOKUP(TEXT(INDIRECT(\"'\"&F5786&\"'!\"&H5786),\"0\"),Notes!$B$5:$C$100,2,FALSE),\"\"))","v":""},"2c","$M$18","$N$18"]
[24896,{"$f":"Menu!$F$29","v":"X"},{"$f":"Menu!$J$29","v":2020},{"$f":"IF(ISBLANK(INDIRECT(\"'\"&F5787&\"'!\"&G5787)),\"\",INDIRECT(\"'\"&F5787&\"'!\"&G5787))","v":""},{"$f":"IF(ISBLANK(INDIRECT(\"'\"&F5787&\"'!\"&H5787)),\"\",IFERROR(VLOOKUP(TEXT(INDIRECT(\"'\"&F5787&\"'!\"&H5787),\"0\"),Notes!$B$5:$C$100,2,FALSE),\"\"))","v":""},"2c","$Q$18","$R$18"]
[24897,{"$f":"Menu!$F$29","v":"X"},{"$f":"Menu!$J$29","v":2020},{"$f":"IF(ISBLANK(INDIRECT(\"'\"&F5788&\"'!\"&G5788)),\"\",INDIRECT(\"'\"&F5788&\"'!\"&G5788))","v":""},{"$f":"IF(ISBLANK(INDIRECT(\"'\"&F5788&\"'!\"&H5788)),\"\",IFERROR(VLOOKUP(TEXT(INDIRECT(\"'\"&F5788&\"'!\"&H5788),\"0\"),Notes!$B$5:$C$100,2,FALSE),\"\"))","v":""},"2c","$U$18","$V$18"]
[24898,{"$f":"Menu!$F$29","v":"X"},{"$f":"Menu!$J$29","v":2020},{"$f":"IF(ISBLANK(INDIRECT(\"'\"&F5789&\"'!\"&G5789)),\"\",INDIRECT(\"'\"&F5789&\"'!\"&G5789))","v":""},{"$f":"IF(ISBLANK(INDIRECT(\"'\"&F5789&\"'!\"&H5789)),\"\",IFERROR(VLOOKUP(TEXT(INDIRECT(\"'\"&F5789&\"'!\"&H5789),\"0\"),Notes!$B$5:$C$100,2,FALSE),\"\"))","v":""},"2c","$S$18","$T$18"]
[24899,{"$f":"Menu!$F$29","v":"X"},{"$f":"Menu!$J$29","v":2020},{"$f":"IF(ISBLANK(INDIRECT(\"'\"&F5790&\"'!\"&G5790)),\"\",INDIRECT(\"'\"&F5790&\"'!\"&G5790))","v":""},{"$f":"IF(ISBLANK(INDIRECT(\"'\"&F5790&\"'!\"&H5790)),\"\",IFERROR(VLOOKUP(TEXT(INDIRECT(\"'\"&F5790&\"'!\"&H5790),\"0\"),Notes!$B$5:$C$100,2,FALSE),\"\"))","v":""},"2c","$W$18","$X$18"]
[24900,{"$f":"Menu!$F$29","v":"X"},{"$f":"Menu!$J$29","v":2020},{"$f":"IF(ISBLANK(INDIRECT(\"'\"&F5791&\"'!\"&G5791)),\"\",INDIRECT(\"'\"&F5791&\"'!\"&G5791))","v":""},{"$f":"IF(ISBLANK(INDIRECT(\"'\"&F5791&\"'!\"&H5791)),\"\",IFERROR(VLOOKUP(TEXT(INDIRECT(\"'\"&F5791&\"'!\"&H5791),\"0\"),Notes!$B$5:$C$100,2,FALSE),\"\"))","v":""},"2c","$AA$18","$AB$18"]
[24901,{"$f":"Menu!$F$29","v":"X"},{"$f":"Menu!$J$29","v":2020},{"$f":"IF(ISBLANK(INDIRECT(\"'\"&F5792&\"'!\"&G5792)),\"\",INDIRECT(\"'\"&F5792&\"'!\"&G5792))","v":""},{"$f":"IF(ISBLANK(INDIRECT(\"'\"&F5792&\"'!\"&H5792)),\"\",IFERROR(VLOOKUP(TEXT(INDIRECT(\"'\"&F5792&\"'!\"&H5792),\"0\"),Notes!$B$5:$C$100,2,FALSE),\"\"))","v":""},"2c","$Y$18","$Z$18"]
[24908,{"$f":"Menu!$F$29","v":"X"},{"$f":"Menu!$J$29","v":2020},{"$f":"IF(ISBLANK(INDIRECT(\"'\"&F5793&\"'!\"&G5793)),\"\",INDIRECT(\"'\"&F5793&\"'!\"&G5793))","v":""},{"$f":"IF(ISBLANK(INDIRECT(\"'\"&F5793&\"'!\"&H5793)),\"\",IFERROR(VLOOKUP(TEXT(INDIRECT(\"'\"&F5793&\"'!\"&H5793),\"0\"),Notes!$B$5:$C$100,2,FALSE),\"\"))","v":""},"2e","$BG$19","$BH$19"]
[24909,{"$f":"Menu!$F$29","v":"X"},{"$f":"Menu!$J$29","v":2020},{"$f":"IF(ISBLANK(INDIRECT(\"'\"&F5794&\"'!\"&G5794)),\"\",INDIRECT(\"'\"&F5794&\"'!\"&G5794))","v":""},{"$f":"IF(ISBLANK(INDIRECT(\"'\"&F5794&\"'!\"&H5794)),\"\",IFERROR(VLOOKUP(TEXT(INDIRECT(\"'\"&F5794&\"'!\"&H5794),\"0\"),Notes!$B$5:$C$100,2,FALSE),\"\"))","v":""},"2e","$BK$19","$BL$19"]
[24910,{"$f":"Menu!$F$29","v":"X"},{"$f":"Menu!$J$29","v":2020},{"$f":"IF(ISBLANK(INDIRECT(\"'\"&F5795&\"'!\"&G5795)),\"\",INDIRECT(\"'\"&F5795&\"'!\"&G5795))","v":""},{"$f":"IF(ISBLANK(INDIRECT(\"'\"&F5795&\"'!\"&H5795)),\"\",IFERROR(VLOOKUP(TEXT(INDIRECT(\"'\"&F5795&\"'!\"&H5795),\"0\"),Notes!$B$5:$C$100,2,FALSE),\"\"))","v":""},"2e","$BI$19","$BJ$19"]
[24911,{"$f":"Menu!$F$29","v":"X"},{"$f":"Menu!$J$29","v":2020},{"$f":"IF(ISBLANK(INDIRECT(\"'\"&F5796&\"'!\"&G5796)),\"\",INDIRECT(\"'\"&F5796&\"'!\"&G5796))","v":""},{"$f":"IF(ISBLANK(INDIRECT(\"'\"&F5796&\"'!\"&H5796)),\"\",IFERROR(VLOOKUP(TEXT(INDIRECT(\"'\"&F5796&\"'!\"&H5796),\"0\"),Notes!$B$5:$C$100,2,FALSE),\"\"))","v":""},"2e","$E$19","$F$19"]
[24912,{"$f":"Menu!$F$29","v":"X"},{"$f":"Menu!$J$29","v":2020},{"$f":"IF(ISBLANK(INDIRECT(\"'\"&F5797&\"'!\"&G5797)),\"\",INDIRECT(\"'\"&F5797&\"'!\"&G5797))","v":""},{"$f":"IF(ISBLANK(INDIRECT(\"'\"&F5797&\"'!\"&H5797)),\"\",IFERROR(VLOOKUP(TEXT(INDIRECT(\"'\"&F5797&\"'!\"&H5797),\"0\"),Notes!$B$5:$C$100,2,FALSE),\"\"))","v":""},"2e","$I$19","$J$19"]
[24913,{"$f":"Menu!$F$29","v":"X"},{"$f":"Menu!$J$29","v":2020},{"$f":"IF(ISBLANK(INDIRECT(\"'\"&F5798&\"'!\"&G5798)),\"\",INDIRECT(\"'\"&F5798&\"'!\"&G5798))","v":""},{"$f":"IF(ISBLANK(INDIRECT(\"'\"&F5798&\"'!\"&H5798)),\"\",IFERROR(VLOOKUP(TEXT(INDIRECT(\"'\"&F5798&\"'!\"&H5798),\"0\"),Notes!$B$5:$C$100,2,FALSE),\"\"))","v":""},"2e","$G$19","$H$19"]
[24914,{"$f":"Menu!$F$29","v":"X"},{"$f":"Menu!$J$29","v":2020},{"$f":"IF(ISBLANK(INDIRECT(\"'\"&F5799&\"'!\"&G5799)),\"\",INDIRECT(\"'\"&F5799&\"'!\"&G5799))","v":""},{"$f":"IF(ISBLANK(INDIRECT(\"'\"&F5799&\"'!\"&H5799)),\"\",IFERROR(VLOOKUP(TEXT(INDIRECT(\"'\"&F5799&\"'!\"&H5799),\"0\"),Notes!$B$5:$C$100,2,FALSE),\"\"))","v":""},"2e","$K$19","$L$19"]
[24915,{"$f":"Menu!$F$29","v":"X"},{"$f":"Menu!$J$29","v":2020},{"$f":"IF(ISBLANK(INDIRECT(\"'\"&F5800&\"'!\"&G5800)),\"\",INDIRECT(\"'\"&F5800&\"'!\"&G5800))","v":""},{"$f":"IF(ISBLANK(INDIRECT(\"'\"&F5800&\"'!\"&H5800)),\"\",IFERROR(VLOOKUP(TEXT(INDIRECT(\"'\"&F5800&\"'!\"&H5800),\"0\"),Notes!$B$5:$C$100,2,FALSE),\"\"))","v":""},"2e","$O$19","$P$19"]
[24916,{"$f":"Menu!$F$29","v":"X"},{"$f":"Menu!$J$29","v":2020},{"$f":"IF(ISBLANK(INDIRECT(\"'\"&F5801&\"'!\"&G5801)),\"\",INDIRECT(\"'\"&F5801&\"'!\"&G5801))","v":""},{"$f":"IF(ISBLANK(INDIRECT(\"'\"&F5801&\"'!\"&H5801)),\"\",IFERROR(VLOOKUP(TEXT(INDIRECT(\"'\"&F5801&\"'!\"&H5801),\"0\"),Notes!$B$5:$C$100,2,FALSE),\"\"))","v":""},"2e","$M$19","$N$19"]
[24917,{"$f":"Menu!$F$29","v":"X"},{"$f":"Menu!$J$29","v":2020},{"$f":"IF(ISBLANK(INDIRECT(\"'\"&F5802&\"'!\"&G5802)),\"\",INDIRECT(\"'\"&F5802&\"'!\"&G5802))","v":""},{"$f":"IF(ISBLANK(INDIRECT(\"'\"&F5802&\"'!\"&H5802)),\"\",IFERROR(VLOOKUP(TEXT(INDIRECT(\"'\"&F5802&\"'!\"&H5802),\"0\"),Notes!$B$5:$C$100,2,FALSE),\"\"))","v":""},"2e","$Q$19","$R$19"]
[24918,{"$f":"Menu!$F$29","v":"X"},{"$f":"Menu!$J$29","v":2020},{"$f":"IF(ISBLANK(INDIRECT(\"'\"&F5803&\"'!\"&G5803)),\"\",INDIRECT(\"'\"&F5803&\"'!\"&G5803))","v":""},{"$f":"IF(ISBLANK(INDIRECT(\"'\"&F5803&\"'!\"&H5803)),\"\",IFERROR(VLOOKUP(TEXT(INDIRECT(\"'\"&F5803&\"'!\"&H5803),\"0\"),Notes!$B$5:$C$100,2,FALSE),\"\"))","v":""},"2e","$U$19","$V$19"]
[24919,{"$f":"Menu!$F$29","v":"X"},{"$f":"Menu!$J$29","v":2020},{"$f":"IF(ISBLANK(INDIRECT(\"'\"&F5804&\"'!\"&G5804)),\"\",INDIRECT(\"'\"&F5804&\"'!\"&G5804))","v":""},{"$f":"IF(ISBLANK(INDIRECT(\"'\"&F5804&\"'!\"&H5804)),\"\",IFERROR(VLOOKUP(TEXT(INDIRECT(\"'\"&F5804&\"'!\"&H5804),\"0\"),Notes!$B$5:$C$100,2,FALSE),\"\"))","v":""},"2e","$S$19","$T$19"]
[24920,{"$f":"Menu!$F$29","v":"X"},{"$f":"Menu!$J$29","v":2020},{"$f":"IF(ISBLANK(INDIRECT(\"'\"&F5805&\"'!\"&G5805)),\"\",INDIRECT(\"'\"&F5805&\"'!\"&G5805))","v":""},{"$f":"IF(ISBLANK(INDIRECT(\"'\"&F5805&\"'!\"&H5805)),\"\",IFERROR(VLOOKUP(TEXT(INDIRECT(\"'\"&F5805&\"'!\"&H5805),\"0\"),Notes!$B$5:$C$100,2,FALSE),\"\"))","v":""},"2e","$W$19","$X$19"]
[24921,{"$f":"Menu!$F$29","v":"X"},{"$f":"Menu!$J$29","v":2020},{"$f":"IF(ISBLANK(INDIRECT(\"'\"&F5806&\"'!\"&G5806)),\"\",INDIRECT(\"'\"&F5806&\"'!\"&G5806))","v":""},{"$f":"IF(ISBLANK(INDIRECT(\"'\"&F5806&\"'!\"&H5806)),\"\",IFERROR(VLOOKUP(TEXT(INDIRECT(\"'\"&F5806&\"'!\"&H5806),\"0\"),Notes!$B$5:$C$100,2,FALSE),\"\"))","v":""},"2e","$AA$19","$AB$19"]
[24922,{"$f":"Menu!$F$29","v":"X"},{"$f":"Menu!$J$29","v":2020},{"$f":"IF(ISBLANK(INDIRECT(\"'\"&F5807&\"'!\"&G5807)),\"\",INDIRECT(\"'\"&F5807&\"'!\"&G5807))","v":""},{"$f":"IF(ISBLANK(INDIRECT(\"'\"&F5807&\"'!\"&H5807)),\"\",IFERROR(VLOOKUP(TEXT(INDIRECT(\"'\"&F5807&\"'!\"&H5807),\"0\"),Notes!$B$5:$C$100,2,FALSE),\"\"))","v":""},"2e","$Y$19","$Z$19"]
[24923,{"$f":"Menu!$F$29","v":"X"},{"$f":"Menu!$J$29","v":2020},{"$f":"IF(ISBLANK(INDIRECT(\"'\"&F5808&\"'!\"&G5808)),\"\",INDIRECT(\"'\"&F5808&\"'!\"&G5808))","v":""},{"$f":"IF(ISBLANK(INDIRECT(\"'\"&F5808&\"'!\"&H5808)),\"\",IFERROR(VLOOKUP(TEXT(INDIRECT(\"'\"&F5808&\"'!\"&H5808),\"0\"),Notes!$B$5:$C$100,2,FALSE),\"\"))","v":""},"2e","$AC$19","$AD$19"]
[24924,{"$f":"Menu!$F$29","v":"X"},{"$f":"Menu!$J$29","v":2020},{"$f":"IF(ISBLANK(INDIRECT(\"'\"&F5809&\"'!\"&G5809)),\"\",INDIRECT(\"'\"&F5809&\"'!\"&G5809))","v":""},{"$f":"IF(ISBLANK(INDIRECT(\"'\"&F5809&\"'!\"&H5809)),\"\",IFERROR(VLOOKUP(TEXT(INDIRECT(\"'\"&F5809&\"'!\"&H5809),\"0\"),Notes!$B$5:$C$100,2,FALSE),\"\"))","v":""},"2e","$AG$19","$AH$19"]
[24925,{"$f":"Menu!$F$29","v":"X"},{"$f":"Menu!$J$29","v":2020},{"$f":"IF(ISBLANK(INDIRECT(\"'\"&F5810&\"'!\"&G5810)),\"\",INDIRECT(\"'\"&F5810&\"'!\"&G5810))","v":""},{"$f":"IF(ISBLANK(INDIRECT(\"'\"&F5810&\"'!\"&H5810)),\"\",IFERROR(VLOOKUP(TEXT(INDIRECT(\"'\"&F5810&\"'!\"&H5810),\"0\"),Notes!$B$5:$C$100,2,FALSE),\"\"))","v":""},"2e","$AE$19","$AF$19"]
[24926,{"$f":"Menu!$F$29","v":"X"},{"$f":"Menu!$J$29","v":2020},{"$f":"IF(ISBLANK(INDIRECT(\"'\"&F5811&\"'!\"&G5811)),\"\",INDIRECT(\"'\"&F5811&\"'!\"&G5811))","v":""},{"$f":"IF(ISBLANK(INDIRECT(\"'\"&F5811&\"'!\"&H5811)),\"\",IFERROR(VLOOKUP(TEXT(INDIRECT(\"'\"&F5811&\"'!\"&H5811),\"0\"),Notes!$B$5:$C$100,2,FALSE),\"\"))","v":""},"2e","$AI$19","$AJ$19"]
[24927,{"$f":"Menu!$F$29","v":"X"},{"$f":"Menu!$J$29","v":2020},{"$f":"IF(ISBLANK(INDIRECT(\"'\"&F5812&\"'!\"&G5812)),\"\",INDIRECT(\"'\"&F5812&\"'!\"&G5812))","v":""},{"$f":"IF(ISBLANK(INDIRECT(\"'\"&F5812&\"'!\"&H5812)),\"\",IFERROR(VLOOKUP(TEXT(INDIRECT(\"'\"&F5812&\"'!\"&H5812),\"0\"),Notes!$B$5:$C$100,2,FALSE),\"\"))","v":""},"2e","$AM$19","$AN$19"]
[24928,{"$f":"Menu!$F$29","v":"X"},{"$f":"Menu!$J$29","v":2020},{"$f":"IF(ISBLANK(INDIRECT(\"'\"&F5813&\"'!\"&G5813)),\"\",INDIRECT(\"'\"&F5813&\"'!\"&G5813))","v":""},{"$f":"IF(ISBLANK(INDIRECT(\"'\"&F5813&\"'!\"&H5813)),\"\",IFERROR(VLOOKUP(TEXT(INDIRECT(\"'\"&F5813&\"'!\"&H5813),\"0\"),Notes!$B$5:$C$100,2,FALSE),\"\"))","v":""},"2e","$AK$19","$AL$19"]
[24929,{"$f":"Menu!$F$29","v":"X"},{"$f":"Menu!$J$29","v":2020},{"$f":"IF(ISBLANK(INDIRECT(\"'\"&F5814&\"'!\"&G5814)),\"\",INDIRECT(\"'\"&F5814&\"'!\"&G5814))","v":""},{"$f":"IF(ISBLANK(INDIRECT(\"'\"&F5814&\"'!\"&H5814)),\"\",IFERROR(VLOOKUP(TEXT(INDIRECT(\"'\"&F5814&\"'!\"&H5814),\"0\"),Notes!$B$5:$C$100,2,FALSE),\"\"))","v":""},"2e","$AO$19","$AP$19"]
[24930,{"$f":"Menu!$F$29","v":"X"},{"$f":"Menu!$J$29","v":2020},{"$f":"IF(ISBLANK(INDIRECT(\"'\"&F5815&\"'!\"&G5815)),\"\",INDIRECT(\"'\"&F5815&\"'!\"&G5815))","v":""},{"$f":"IF(ISBLANK(INDIRECT(\"'\"&F5815&\"'!\"&H5815)),\"\",IFERROR(VLOOKUP(TEXT(INDIRECT(\"'\"&F5815&\"'!\"&H5815),\"0\"),Notes!$B$5:$C$100,2,FALSE),\"\"))","v":""},"2e","$AS$19","$AT$19"]
[24931,{"$f":"Menu!$F$29","v":"X"},{"$f":"Menu!$J$29","v":2020},{"$f":"IF(ISBLANK(INDIRECT(\"'\"&F5816&\"'!\"&G5816)),\"\",INDIRECT(\"'\"&F5816&\"'!\"&G5816))","v":""},{"$f":"IF(ISBLANK(INDIRECT(\"'\"&F5816&\"'!\"&H5816)),\"\",IFERROR(VLOOKUP(TEXT(INDIRECT(\"'\"&F5816&\"'!\"&H5816),\"0\"),Notes!$B$5:$C$100,2,FALSE),\"\"))","v":""},"2e","$AQ$19","$AR$19"]
[24932,{"$f":"Menu!$F$29","v":"X"},{"$f":"Menu!$J$29","v":2020},{"$f":"IF(ISBLANK(INDIRECT(\"'\"&F5817&\"'!\"&G5817)),\"\",INDIRECT(\"'\"&F5817&\"'!\"&G5817))","v":""},{"$f":"IF(ISBLANK(INDIRECT(\"'\"&F5817&\"'!\"&H5817)),\"\",IFERROR(VLOOKUP(TEXT(INDIRECT(\"'\"&F5817&\"'!\"&H5817),\"0\"),Notes!$B$5:$C$100,2,FALSE),\"\"))","v":""},"2e","$AU$19","$AV$19"]
[24933,{"$f":"Menu!$F$29","v":"X"},{"$f":"Menu!$J$29","v":2020},{"$f":"IF(ISBLANK(INDIRECT(\"'\"&F5818&\"'!\"&G5818)),\"\",INDIRECT(\"'\"&F5818&\"'!\"&G5818))","v":""},{"$f":"IF(ISBLANK(INDIRECT(\"'\"&F5818&\"'!\"&H5818)),\"\",IFERROR(VLOOKUP(TEXT(INDIRECT(\"'\"&F5818&\"'!\"&H5818),\"0\"),Notes!$B$5:$C$100,2,FALSE),\"\"))","v":""},"2e","$AY$19","$AZ$19"]
[24934,{"$f":"Menu!$F$29","v":"X"},{"$f":"Menu!$J$29","v":2020},{"$f":"IF(ISBLANK(INDIRECT(\"'\"&F5819&\"'!\"&G5819)),\"\",INDIRECT(\"'\"&F5819&\"'!\"&G5819))","v":""},{"$f":"IF(ISBLANK(INDIRECT(\"'\"&F5819&\"'!\"&H5819)),\"\",IFERROR(VLOOKUP(TEXT(INDIRECT(\"'\"&F5819&\"'!\"&H5819),\"0\"),Notes!$B$5:$C$100,2,FALSE),\"\"))","v":""},"2e","$AW$19","$AX$19"]
[24935,{"$f":"Menu!$F$29","v":"X"},{"$f":"Menu!$J$29","v":2020},{"$f":"IF(ISBLANK(INDIRECT(\"'\"&F5820&\"'!\"&G5820)),\"\",INDIRECT(\"'\"&F5820&\"'!\"&G5820))","v":""},{"$f":"IF(ISBLANK(INDIRECT(\"'\"&F5820&\"'!\"&H5820)),\"\",IFERROR(VLOOKUP(TEXT(INDIRECT(\"'\"&F5820&\"'!\"&H5820),\"0\"),Notes!$B$5:$C$100,2,FALSE),\"\"))","v":""},"2e","$BA$19","$BB$19"]
[24936,{"$f":"Menu!$F$29","v":"X"},{"$f":"Menu!$J$29","v":2020},{"$f":"IF(ISBLANK(INDIRECT(\"'\"&F5821&\"'!\"&G5821)),\"\",INDIRECT(\"'\"&F5821&\"'!\"&G5821))","v":""},{"$f":"IF(ISBLANK(INDIRECT(\"'\"&F5821&\"'!\"&H5821)),\"\",IFERROR(VLOOKUP(TEXT(INDIRECT(\"'\"&F5821&\"'!\"&H5821),\"0\"),Notes!$B$5:$C$100,2,FALSE),\"\"))","v":""},"2e","$BE$19","$BF$19"]
[24937,{"$f":"Menu!$F$29","v":"X"},{"$f":"Menu!$J$29","v":2020},{"$f":"IF(ISBLANK(INDIRECT(\"'\"&F5822&\"'!\"&G5822)),\"\",INDIRECT(\"'\"&F5822&\"'!\"&G5822))","v":""},{"$f":"IF(ISBLANK(INDIRECT(\"'\"&F5822&\"'!\"&H5822)),\"\",IFERROR(VLOOKUP(TEXT(INDIRECT(\"'\"&F5822&\"'!\"&H5822),\"0\"),Notes!$B$5:$C$100,2,FALSE),\"\"))","v":""},"2e","$BC$19","$BD$19"]
[24938,{"$f":"Menu!$F$29","v":"X"},{"$f":"Menu!$J$29","v":2020},{"$f":"IF(ISBLANK(INDIRECT(\"'\"&F5823&\"'!\"&G5823)),\"\",INDIRECT(\"'\"&F5823&\"'!\"&G5823))","v":""},{"$f":"IF(ISBLANK(INDIRECT(\"'\"&F5823&\"'!\"&H5823)),\"\",IFERROR(VLOOKUP(TEXT(INDIRECT(\"'\"&F5823&\"'!\"&H5823),\"0\"),Notes!$B$5:$C$100,2,FALSE),\"\"))","v":""},"2b","$E$18","$F$18"]
[24939,{"$f":"Menu!$F$29","v":"X"},{"$f":"Menu!$J$29","v":2020},{"$f":"IF(ISBLANK(INDIRECT(\"'\"&F5824&\"'!\"&G5824)),\"\",INDIRECT(\"'\"&F5824&\"'!\"&G5824))","v":""},{"$f":"IF(ISBLANK(INDIRECT(\"'\"&F5824&\"'!\"&H5824)),\"\",IFERROR(VLOOKUP(TEXT(INDIRECT(\"'\"&F5824&\"'!\"&H5824),\"0\"),Notes!$B$5:$C$100,2,FALSE),\"\"))","v":""},"2b","$I$18","$J$18"]
[24940,{"$f":"Menu!$F$29","v":"X"},{"$f":"Menu!$J$29","v":2020},{"$f":"IF(ISBLANK(INDIRECT(\"'\"&F5825&\"'!\"&G5825)),\"\",INDIRECT(\"'\"&F5825&\"'!\"&G5825))","v":""},{"$f":"IF(ISBLANK(INDIRECT(\"'\"&F5825&\"'!\"&H5825)),\"\",IFERROR(VLOOKUP(TEXT(INDIRECT(\"'\"&F5825&\"'!\"&H5825),\"0\"),Notes!$B$5:$C$100,2,FALSE),\"\"))","v":""},"2b","$G$18","$H$18"]
[24941,{"$f":"Menu!$F$29","v":"X"},{"$f":"Menu!$J$29","v":2020},{"$f":"IF(ISBLANK(INDIRECT(\"'\"&F5826&\"'!\"&G5826)),\"\",INDIRECT(\"'\"&F5826&\"'!\"&G5826))","v":""},{"$f":"IF(ISBLANK(INDIRECT(\"'\"&F5826&\"'!\"&H5826)),\"\",IFERROR(VLOOKUP(TEXT(INDIRECT(\"'\"&F5826&\"'!\"&H5826),\"0\"),Notes!$B$5:$C$100,2,FALSE),\"\"))","v":""},"2a","$G$18",{"$f":"IF(LEN(TRIM(MID(G5826,4,10)))-LEN(SUBSTITUTE(TRIM(MID(G5826,4,10)),\"$\",\"\"))=0,\"$\"&CHAR(CODE(MID(G5826,2,1))+1)&\"$\"&TRIM(MID(G5826,4,10)),\"$\"&MID(G5826,2,1)&CHAR(CODE(MID(G5826,3,1))+1)&\"$\"&TRIM(MID(G5826,5,11)))","v":"$H$18"}]
[24942,{"$f":"Menu!$F$29","v":"X"},{"$f":"Menu!$J$29","v":2020},{"$f":"IF(ISBLANK(INDIRECT(\"'\"&F5827&\"'!\"&G5827)),\"\",INDIRECT(\"'\"&F5827&\"'!\"&G5827))","v":""},{"$f":"IF(ISBLANK(INDIRECT(\"'\"&F5827&\"'!\"&H5827)),\"\",IFERROR(VLOOKUP(TEXT(INDIRECT(\"'\"&F5827&\"'!\"&H5827),\"0\"),Notes!$B$5:$C$100,2,FALSE),\"\"))","v":""},"2b","$W$18","$X$18"]
[24943,{"$f":"Menu!$F$29","v":"X"},{"$f":"Menu!$J$29","v":2020},{"$f":"IF(ISBLANK(INDIRECT(\"'\"&F5828&\"'!\"&G5828)),\"\",INDIRECT(\"'\"&F5828&\"'!\"&G5828))","v":""},{"$f":"IF(ISBLANK(INDIRECT(\"'\"&F5828&\"'!\"&H5828)),\"\",IFERROR(VLOOKUP(TEXT(INDIRECT(\"'\"&F5828&\"'!\"&H5828),\"0\"),Notes!$B$5:$C$100,2,FALSE),\"\"))","v":""},"2b","$AA$18","$AB$18"]
[24944,{"$f":"Menu!$F$29","v":"X"},{"$f":"Menu!$J$29","v":2020},{"$f":"IF(ISBLANK(INDIRECT(\"'\"&F5829&\"'!\"&G5829)),\"\",INDIRECT(\"'\"&F5829&\"'!\"&G5829))","v":""},{"$f":"IF(ISBLANK(INDIRECT(\"'\"&F5829&\"'!\"&H5829)),\"\",IFERROR(VLOOKUP(TEXT(INDIRECT(\"'\"&F5829&\"'!\"&H5829),\"0\"),Notes!$B$5:$C$100,2,FALSE),\"\"))","v":""},"2b","$Y$18","$Z$18"]
[24945,{"$f":"Menu!$F$29","v":"X"},{"$f":"Menu!$J$29","v":2020},{"$f":"IF(ISBLANK(INDIRECT(\"'\"&F5830&\"'!\"&G5830)),\"\",INDIRECT(\"'\"&F5830&\"'!\"&G5830))","v":""},{"$f":"IF(ISBLANK(INDIRECT(\"'\"&F5830&\"'!\"&H5830)),\"\",IFERROR(VLOOKUP(TEXT(INDIRECT(\"'\"&F5830&\"'!\"&H5830),\"0\"),Notes!$B$5:$C$100,2,FALSE),\"\"))","v":""},"2d","$AC$18","$AD$18"]
[24946,{"$f":"Menu!$F$29","v":"X"},{"$f":"Menu!$J$29","v":2020},{"$f":"IF(ISBLANK(INDIRECT(\"'\"&F5831&\"'!\"&G5831)),\"\",INDIRECT(\"'\"&F5831&\"'!\"&G5831))","v":""},{"$f":"IF(ISBLANK(INDIRECT(\"'\"&F5831&\"'!\"&H5831)),\"\",IFERROR(VLOOKUP(TEXT(INDIRECT(\"'\"&F5831&\"'!\"&H5831),\"0\"),Notes!$B$5:$C$100,2,FALSE),\"\"))","v":""},"2d","$AG$18","$AH$18"]
[24947,{"$f":"Menu!$F$29","v":"X"},{"$f":"Menu!$J$29","v":2020},{"$f":"IF(ISBLANK(INDIRECT(\"'\"&F5832&\"'!\"&G5832)),\"\",INDIRECT(\"'\"&F5832&\"'!\"&G5832))","v":""},{"$f":"IF(ISBLANK(INDIRECT(\"'\"&F5832&\"'!\"&H5832)),\"\",IFERROR(VLOOKUP(TEXT(INDIRECT(\"'\"&F5832&\"'!\"&H5832),\"0\"),Notes!$B$5:$C$100,2,FALSE),\"\"))","v":""},"2d","$AE$18","$AF$18"]
[24948,{"$f":"Menu!$F$29","v":"X"},{"$f":"Menu!$J$29","v":2020},{"$f":"IF(ISBLANK(INDIRECT(\"'\"&F5833&\"'!\"&G5833)),\"\",INDIRECT(\"'\"&F5833&\"'!\"&G5833))","v":""},{"$f":"IF(ISBLANK(INDIRECT(\"'\"&F5833&\"'!\"&H5833)),\"\",IFERROR(VLOOKUP(TEXT(INDIRECT(\"'\"&F5833&\"'!\"&H5833),\"0\"),Notes!$B$5:$C$100,2,FALSE),\"\"))","v":""},"2d","$W$18","$X$18"]
[24949,{"$f":"Menu!$F$29","v":"X"},{"$f":"Menu!$J$29","v":2020},{"$f":"IF(ISBLANK(INDIRECT(\"'\"&F5834&\"'!\"&G5834)),\"\",INDIRECT(\"'\"&F5834&\"'!\"&G5834))","v":""},{"$f":"IF(ISBLANK(INDIRECT(\"'\"&F5834&\"'!\"&H5834)),\"\",IFERROR(VLOOKUP(TEXT(INDIRECT(\"'\"&F5834&\"'!\"&H5834),\"0\"),Notes!$B$5:$C$100,2,FALSE),\"\"))","v":""},"2d","$AA$18","$AB$18"]
[24950,{"$f":"Menu!$F$29","v":"X"},{"$f":"Menu!$J$29","v":2020},{"$f":"IF(ISBLANK(INDIRECT(\"'\"&F5835&\"'!\"&G5835)),\"\",INDIRECT(\"'\"&F5835&\"'!\"&G5835))","v":""},{"$f":"IF(ISBLANK(INDIRECT(\"'\"&F5835&\"'!\"&H5835)),\"\",IFERROR(VLOOKUP(TEXT(INDIRECT(\"'\"&F5835&\"'!\"&H5835),\"0\"),Notes!$B$5:$C$100,2,FALSE),\"\"))","v":""},"2d","$Y$18","$Z$18"]
[24951,{"$f":"Menu!$F$29","v":"X"},{"$f":"Menu!$J$29","v":2020},{"$f":"IF(ISBLANK(INDIRECT(\"'\"&F5836&\"'!\"&G5836)),\"\",INDIRECT(\"'\"&F5836&\"'!\"&G5836))","v":""},{"$f":"IF(ISBLANK(INDIRECT(\"'\"&F5836&\"'!\"&H5836)),\"\",IFERROR(VLOOKUP(TEXT(INDIRECT(\"'\"&F5836&\"'!\"&H5836),\"0\"),Notes!$B$5:$C$100,2,FALSE),\"\"))","v":""},"2d","$E$18","$F$18"]
[24952,{"$f":"Menu!$F$29","v":"X"},{"$f":"Menu!$J$29","v":2020},{"$f":"IF(ISBLANK(INDIRECT(\"'\"&F5837&\"'!\"&G5837)),\"\",INDIRECT(\"'\"&F5837&\"'!\"&G5837))","v":""},{"$f":"IF(ISBLANK(INDIRECT(\"'\"&F5837&\"'!\"&H5837)),\"\",IFERROR(VLOOKUP(TEXT(INDIRECT(\"'\"&F5837&\"'!\"&H5837),\"0\"),Notes!$B$5:$C$100,2,FALSE),\"\"))","v":""},"2d","$I$18","$J$18"]
[24953,{"$f":"Menu!$F$29","v":"X"},{"$f":"Menu!$J$29","v":2020},{"$f":"IF(ISBLANK(INDIRECT(\"'\"&F5838&\"'!\"&G5838)),\"\",INDIRECT(\"'\"&F5838&\"'!\"&G5838))","v":""},{"$f":"IF(ISBLANK(INDIRECT(\"'\"&F5838&\"'!\"&H5838)),\"\",IFERROR(VLOOKUP(TEXT(INDIRECT(\"'\"&F5838&\"'!\"&H5838),\"0\"),Notes!$B$5:$C$100,2,FALSE),\"\"))","v":""},"2d","$G$18","$H$18"]
[24954,{"$f":"Menu!$F$29","v":"X"},{"$f":"Menu!$J$29","v":2020},{"$f":"IF(ISBLANK(INDIRECT(\"'\"&F5839&\"'!\"&G5839)),\"\",INDIRECT(\"'\"&F5839&\"'!\"&G5839))","v":""},{"$f":"IF(ISBLANK(INDIRECT(\"'\"&F5839&\"'!\"&H5839)),\"\",IFERROR(VLOOKUP(TEXT(INDIRECT(\"'\"&F5839&\"'!\"&H5839),\"0\"),Notes!$B$5:$C$100,2,FALSE),\"\"))","v":""},"2a","$Q$18","$R$18"]
[24955,{"$f":"Menu!$F$29","v":"X"},{"$f":"Menu!$J$29","v":2020},{"$f":"IF(ISBLANK(INDIRECT(\"'\"&F5840&\"'!\"&G5840)),\"\",INDIRECT(\"'\"&F5840&\"'!\"&G5840))","v":""},{"$f":"IF(ISBLANK(INDIRECT(\"'\"&F5840&\"'!\"&H5840)),\"\",IFERROR(VLOOKUP(TEXT(INDIRECT(\"'\"&F5840&\"'!\"&H5840),\"0\"),Notes!$B$5:$C$100,2,FALSE),\"\"))","v":""},"2a","$U$18","$V$18"]
[24956,{"$f":"Menu!$F$29","v":"X"},{"$f":"Menu!$J$29","v":2020},{"$f":"IF(ISBLANK(INDIRECT(\"'\"&F5841&\"'!\"&G5841)),\"\",INDIRECT(\"'\"&F5841&\"'!\"&G5841))","v":""},{"$f":"IF(ISBLANK(INDIRECT(\"'\"&F5841&\"'!\"&H5841)),\"\",IFERROR(VLOOKUP(TEXT(INDIRECT(\"'\"&F5841&\"'!\"&H5841),\"0\"),Notes!$B$5:$C$100,2,FALSE),\"\"))","v":""},"2a","$S$18","$T$18"]
[24957,{"$f":"Menu!$F$29","v":"X"},{"$f":"Menu!$J$29","v":2020},{"$f":"IF(ISBLANK(INDIRECT(\"'\"&F5842&\"'!\"&G5842)),\"\",INDIRECT(\"'\"&F5842&\"'!\"&G5842))","v":""},{"$f":"IF(ISBLANK(INDIRECT(\"'\"&F5842&\"'!\"&H5842)),\"\",IFERROR(VLOOKUP(TEXT(INDIRECT(\"'\"&F5842&\"'!\"&H5842),\"0\"),Notes!$B$5:$C$100,2,FALSE),\"\"))","v":""},"2d","$K$18","$L$18"]
[24958,{"$f":"Menu!$F$29","v":"X"},{"$f":"Menu!$J$29","v":2020},{"$f":"IF(ISBLANK(INDIRECT(\"'\"&F5843&\"'!\"&G5843)),\"\",INDIRECT(\"'\"&F5843&\"'!\"&G5843))","v":""},{"$f":"IF(ISBLANK(INDIRECT(\"'\"&F5843&\"'!\"&H5843)),\"\",IFERROR(VLOOKUP(TEXT(INDIRECT(\"'\"&F5843&\"'!\"&H5843),\"0\"),Notes!$B$5:$C$100,2,FALSE),\"\"))","v":""},"2d","$O$18","$P$18"]
[24959,{"$f":"Menu!$F$29","v":"X"},{"$f":"Menu!$J$29","v":2020},{"$f":"IF(ISBLANK(INDIRECT(\"'\"&F5844&\"'!\"&G5844)),\"\",INDIRECT(\"'\"&F5844&\"'!\"&G5844))","v":""},{"$f":"IF(ISBLANK(INDIRECT(\"'\"&F5844&\"'!\"&H5844)),\"\",IFERROR(VLOOKUP(TEXT(INDIRECT(\"'\"&F5844&\"'!\"&H5844),\"0\"),Notes!$B$5:$C$100,2,FALSE),\"\"))","v":""},"2d","$M$18","$N$18"]
[24960,{"$f":"Menu!$F$29","v":"X"},{"$f":"Menu!$J$29","v":2020},{"$f":"IF(ISBLANK(INDIRECT(\"'\"&F5845&\"'!\"&G5845)),\"\",INDIRECT(\"'\"&F5845&\"'!\"&G5845))","v":""},{"$f":"IF(ISBLANK(INDIRECT(\"'\"&F5845&\"'!\"&H5845)),\"\",IFERROR(VLOOKUP(TEXT(INDIRECT(\"'\"&F5845&\"'!\"&H5845),\"0\"),Notes!$B$5:$C$100,2,FALSE),\"\"))","v":""},"2d","$Q$18","$R$18"]
[24961,{"$f":"Menu!$F$29","v":"X"},{"$f":"Menu!$J$29","v":2020},{"$f":"IF(ISBLANK(INDIRECT(\"'\"&F5846&\"'!\"&G5846)),\"\",INDIRECT(\"'\"&F5846&\"'!\"&G5846))","v":""},{"$f":"IF(ISBLANK(INDIRECT(\"'\"&F5846&\"'!\"&H5846)),\"\",IFERROR(VLOOKUP(TEXT(INDIRECT(\"'\"&F5846&\"'!\"&H5846),\"0\"),Notes!$B$5:$C$100,2,FALSE),\"\"))","v":""},"2d","$U$18","$V$18"]
[24962,{"$f":"Menu!$F$29","v":"X"},{"$f":"Menu!$J$29","v":2020},{"$f":"IF(ISBLANK(INDIRECT(\"'\"&F5847&\"'!\"&G5847)),\"\",INDIRECT(\"'\"&F5847&\"'!\"&G5847))","v":""},{"$f":"IF(ISBLANK(INDIRECT(\"'\"&F5847&\"'!\"&H5847)),\"\",IFERROR(VLOOKUP(TEXT(INDIRECT(\"'\"&F5847&\"'!\"&H5847),\"0\"),Notes!$B$5:$C$100,2,FALSE),\"\"))","v":""},"2d","$S$18","$T$18"]
[24963,{"$f":"Menu!$F$29","v":"X"},{"$f":"Menu!$J$29","v":2020},{"$f":"IF(ISBLANK(INDIRECT(\"'\"&F5848&\"'!\"&G5848)),\"\",INDIRECT(\"'\"&F5848&\"'!\"&G5848))","v":""},{"$f":"IF(ISBLANK(INDIRECT(\"'\"&F5848&\"'!\"&H5848)),\"\",IFERROR(VLOOKUP(TEXT(INDIRECT(\"'\"&F5848&\"'!\"&H5848),\"0\"),Notes!$B$5:$C$100,2,FALSE),\"\"))","v":""},"2a","$K$18","$L$18"]
[24964,{"$f":"Menu!$F$29","v":"X"},{"$f":"Menu!$J$29","v":2020},{"$f":"IF(ISBLANK(INDIRECT(\"'\"&F5849&\"'!\"&G5849)),\"\",INDIRECT(\"'\"&F5849&\"'!\"&G5849))","v":""},{"$f":"IF(ISBLANK(INDIRECT(\"'\"&F5849&\"'!\"&H5849)),\"\",IFERROR(VLOOKUP(TEXT(INDIRECT(\"'\"&F5849&\"'!\"&H5849),\"0\"),Notes!$B$5:$C$100,2,FALSE),\"\"))","v":""},"2a","$O$18","$P$18"]
[24965,{"$f":"Menu!$F$29","v":"X"},{"$f":"Menu!$J$29","v":2020},{"$f":"IF(ISBLANK(INDIRECT(\"'\"&F5850&\"'!\"&G5850)),\"\",INDIRECT(\"'\"&F5850&\"'!\"&G5850))","v":""},{"$f":"IF(ISBLANK(INDIRECT(\"'\"&F5850&\"'!\"&H5850)),\"\",IFERROR(VLOOKUP(TEXT(INDIRECT(\"'\"&F5850&\"'!\"&H5850),\"0\"),Notes!$B$5:$C$100,2,FALSE),\"\"))","v":""},"2a","$M$18","$N$18"]
[24966,{"$f":"Menu!$F$29","v":"X"},{"$f":"Menu!$J$29","v":2020},{"$f":"IF(ISBLANK(INDIRECT(\"'\"&F5851&\"'!\"&G5851)),\"\",INDIRECT(\"'\"&F5851&\"'!\"&G5851))","v":""},{"$f":"IF(ISBLANK(INDIRECT(\"'\"&F5851&\"'!\"&H5851)),\"\",IFERROR(VLOOKUP(TEXT(INDIRECT(\"'\"&F5851&\"'!\"&H5851),\"0\"),Notes!$B$5:$C$100,2,FALSE),\"\"))","v":""},"2a","$E$18","$F$18"]
[24967,{"$f":"Menu!$F$29","v":"X"},{"$f":"Menu!$J$29","v":2020},{"$f":"IF(ISBLANK(INDIRECT(\"'\"&F5852&\"'!\"&G5852)),\"\",INDIRECT(\"'\"&F5852&\"'!\"&G5852))","v":""},{"$f":"IF(ISBLANK(INDIRECT(\"'\"&F5852&\"'!\"&H5852)),\"\",IFERROR(VLOOKUP(TEXT(INDIRECT(\"'\"&F5852&\"'!\"&H5852),\"0\"),Notes!$B$5:$C$100,2,FALSE),\"\"))","v":""},"2b","$K$119","$L$119"]
[24968,{"$f":"Menu!$F$29","v":"X"},{"$f":"Menu!$J$29","v":2020},{"$f":"IF(ISBLANK(INDIRECT(\"'\"&F5853&\"'!\"&G5853)),\"\",INDIRECT(\"'\"&F5853&\"'!\"&G5853))","v":""},{"$f":"IF(ISBLANK(INDIRECT(\"'\"&F5853&\"'!\"&H5853)),\"\",IFERROR(VLOOKUP(TEXT(INDIRECT(\"'\"&F5853&\"'!\"&H5853),\"0\"),Notes!$B$5:$C$100,2,FALSE),\"\"))","v":""},"2b","$O$119","$P$119"]
[24969,{"$f":"Menu!$F$29","v":"X"},{"$f":"Menu!$J$29","v":2020},{"$f":"IF(ISBLANK(INDIRECT(\"'\"&F5854&\"'!\"&G5854)),\"\",INDIRECT(\"'\"&F5854&\"'!\"&G5854))","v":""},{"$f":"IF(ISBLANK(INDIRECT(\"'\"&F5854&\"'!\"&H5854)),\"\",IFERROR(VLOOKUP(TEXT(INDIRECT(\"'\"&F5854&\"'!\"&H5854),\"0\"),Notes!$B$5:$C$100,2,FALSE),\"\"))","v":""},"2b","$M$119","$N$119"]
[24970,{"$f":"Menu!$F$29","v":"X"},{"$f":"Menu!$J$29","v":2020},{"$f":"IF(ISBLANK(INDIRECT(\"'\"&F5855&\"'!\"&G5855)),\"\",INDIRECT(\"'\"&F5855&\"'!\"&G5855))","v":""},{"$f":"IF(ISBLANK(INDIRECT(\"'\"&F5855&\"'!\"&H5855)),\"\",IFERROR(VLOOKUP(TEXT(INDIRECT(\"'\"&F5855&\"'!\"&H5855),\"0\"),Notes!$B$5:$C$100,2,FALSE),\"\"))","v":""},"2b","$Q$119","$R$119"]
[24971,{"$f":"Menu!$F$29","v":"X"},{"$f":"Menu!$J$29","v":2020},{"$f":"IF(ISBLANK(INDIRECT(\"'\"&F5856&\"'!\"&G5856)),\"\",INDIRECT(\"'\"&F5856&\"'!\"&G5856))","v":""},{"$f":"IF(ISBLANK(INDIRECT(\"'\"&F5856&\"'!\"&H5856)),\"\",IFERROR(VLOOKUP(TEXT(INDIRECT(\"'\"&F5856&\"'!\"&H5856),\"0\"),Notes!$B$5:$C$100,2,FALSE),\"\"))","v":""},"2b","$U$119","$V$119"]
[24972,{"$f":"Menu!$F$29","v":"X"},{"$f":"Menu!$J$29","v":2020},{"$f":"IF(ISBLANK(INDIRECT(\"'\"&F5857&\"'!\"&G5857)),\"\",INDIRECT(\"'\"&F5857&\"'!\"&G5857))","v":""},{"$f":"IF(ISBLANK(INDIRECT(\"'\"&F5857&\"'!\"&H5857)),\"\",IFERROR(VLOOKUP(TEXT(INDIRECT(\"'\"&F5857&\"'!\"&H5857),\"0\"),Notes!$B$5:$C$100,2,FALSE),\"\"))","v":""},"2b","$S$119","$T$119"]
[24976,{"$f":"Menu!$F$29","v":"X"},{"$f":"Menu!$J$29","v":2020},{"$f":"IF(ISBLANK(INDIRECT(\"'\"&F5858&\"'!\"&G5858)),\"\",INDIRECT(\"'\"&F5858&\"'!\"&G5858))","v":""},{"$f":"IF(ISBLANK(INDIRECT(\"'\"&F5858&\"'!\"&H5858)),\"\",IFERROR(VLOOKUP(TEXT(INDIRECT(\"'\"&F5858&\"'!\"&H5858),\"0\"),Notes!$B$5:$C$100,2,FALSE),\"\"))","v":""},"2a","$I$119","$J$119"]
[24977,{"$f":"Menu!$F$29","v":"X"},{"$f":"Menu!$J$29","v":2020},{"$f":"IF(ISBLANK(INDIRECT(\"'\"&F5859&\"'!\"&G5859)),\"\",INDIRECT(\"'\"&F5859&\"'!\"&G5859))","v":""},{"$f":"IF(ISBLANK(INDIRECT(\"'\"&F5859&\"'!\"&H5859)),\"\",IFERROR(VLOOKUP(TEXT(INDIRECT(\"'\"&F5859&\"'!\"&H5859),\"0\"),Notes!$B$5:$C$100,2,FALSE),\"\"))","v":""},"2c","$E$119","$F$119"]
[24978,{"$f":"Menu!$F$29","v":"X"},{"$f":"Menu!$J$29","v":2020},{"$f":"IF(ISBLANK(INDIRECT(\"'\"&F5860&\"'!\"&G5860)),\"\",INDIRECT(\"'\"&F5860&\"'!\"&G5860))","v":""},{"$f":"IF(ISBLANK(INDIRECT(\"'\"&F5860&\"'!\"&H5860)),\"\",IFERROR(VLOOKUP(TEXT(INDIRECT(\"'\"&F5860&\"'!\"&H5860),\"0\"),Notes!$B$5:$C$100,2,FALSE),\"\"))","v":""},"2c","$I$119","$J$119"]
[24979,{"$f":"Menu!$F$29","v":"X"},{"$f":"Menu!$J$29","v":2020},{"$f":"IF(ISBLANK(INDIRECT(\"'\"&F5861&\"'!\"&G5861)),\"\",INDIRECT(\"'\"&F5861&\"'!\"&G5861))","v":""},{"$f":"IF(ISBLANK(INDIRECT(\"'\"&F5861&\"'!\"&H5861)),\"\",IFERROR(VLOOKUP(TEXT(INDIRECT(\"'\"&F5861&\"'!\"&H5861),\"0\"),Notes!$B$5:$C$100,2,FALSE),\"\"))","v":""},"2c","$G$119","$H$119"]
[24983,{"$f":"Menu!$F$29","v":"X"},{"$f":"Menu!$J$29","v":2020},{"$f":"IF(ISBLANK(INDIRECT(\"'\"&F5862&\"'!\"&G5862)),\"\",INDIRECT(\"'\"&F5862&\"'!\"&G5862))","v":""},{"$f":"IF(ISBLANK(INDIRECT(\"'\"&F5862&\"'!\"&H5862)),\"\",IFERROR(VLOOKUP(TEXT(INDIRECT(\"'\"&F5862&\"'!\"&H5862),\"0\"),Notes!$B$5:$C$100,2,FALSE),\"\"))","v":""},"2c","$K$119","$L$119"]
[24984,{"$f":"Menu!$F$29","v":"X"},{"$f":"Menu!$J$29","v":2020},{"$f":"IF(ISBLANK(INDIRECT(\"'\"&F5863&\"'!\"&G5863)),\"\",INDIRECT(\"'\"&F5863&\"'!\"&G5863))","v":""},{"$f":"IF(ISBLANK(INDIRECT(\"'\"&F5863&\"'!\"&H5863)),\"\",IFERROR(VLOOKUP(TEXT(INDIRECT(\"'\"&F5863&\"'!\"&H5863),\"0\"),Notes!$B$5:$C$100,2,FALSE),\"\"))","v":""},"2c","$O$119","$P$119"]
[24985,{"$f":"Menu!$F$29","v":"X"},{"$f":"Menu!$J$29","v":2020},{"$f":"IF(ISBLANK(INDIRECT(\"'\"&F5864&\"'!\"&G5864)),\"\",INDIRECT(\"'\"&F5864&\"'!\"&G5864))","v":""},{"$f":"IF(ISBLANK(INDIRECT(\"'\"&F5864&\"'!\"&H5864)),\"\",IFERROR(VLOOKUP(TEXT(INDIRECT(\"'\"&F5864&\"'!\"&H5864),\"0\"),Notes!$B$5:$C$100,2,FALSE),\"\"))","v":""},"2c","$M$119","$N$119"]
[24986,{"$f":"Menu!$F$29","v":"X"},{"$f":"Menu!$J$29","v":2020},{"$f":"IF(ISBLANK(INDIRECT(\"'\"&F5865&\"'!\"&G5865)),\"\",INDIRECT(\"'\"&F5865&\"'!\"&G5865))","v":""},{"$f":"IF(ISBLANK(INDIRECT(\"'\"&F5865&\"'!\"&H5865)),\"\",IFERROR(VLOOKUP(TEXT(INDIRECT(\"'\"&F5865&\"'!\"&H5865),\"0\"),Notes!$B$5:$C$100,2,FALSE),\"\"))","v":""},"2c","$Q$119","$R$119"]
[24987,{"$f":"Menu!$F$29","v":"X"},{"$f":"Menu!$J$29","v":2020},{"$f":"IF(ISBLANK(INDIRECT(\"'\"&F5866&\"'!\"&G5866)),\"\",INDIRECT(\"'\"&F5866&\"'!\"&G5866))","v":""},{"$f":"IF(ISBLANK(INDIRECT(\"'\"&F5866&\"'!\"&H5866)),\"\",IFERROR(VLOOKUP(TEXT(INDIRECT(\"'\"&F5866&\"'!\"&H5866),\"0\"),Notes!$B$5:$C$100,2,FALSE),\"\"))","v":""},"2c","$U$119","$V$119"]
[24988,{"$f":"Menu!$F$29","v":"X"},{"$f":"Menu!$J$29","v":2020},{"$f":"IF(ISBLANK(INDIRECT(\"'\"&F5867&\"'!\"&G5867)),\"\",INDIRECT(\"'\"&F5867&\"'!\"&G5867))","v":""},{"$f":"IF(ISBLANK(INDIRECT(\"'\"&F5867&\"'!\"&H5867)),\"\",IFERROR(VLOOKUP(TEXT(INDIRECT(\"'\"&F5867&\"'!\"&H5867),\"0\"),Notes!$B$5:$C$100,2,FALSE),\"\"))","v":""},"2c","$S$119","$T$119"]
[24989,{"$f":"Menu!$F$29","v":"X"},{"$f":"Menu!$J$29","v":2020},{"$f":"IF(ISBLANK(INDIRECT(\"'\"&F5868&\"'!\"&G5868)),\"\",INDIRECT(\"'\"&F5868&\"'!\"&G5868))","v":""},{"$f":"IF(ISBLANK(INDIRECT(\"'\"&F5868&\"'!\"&H5868)),\"\",IFERROR(VLOOKUP(TEXT(INDIRECT(\"'\"&F5868&\"'!\"&H5868),\"0\"),Notes!$B$5:$C$100,2,FALSE),\"\"))","v":""},"2c","$W$119","$X$119"]
[24990,{"$f":"Menu!$F$29","v":"X"},{"$f":"Menu!$J$29","v":2020},{"$f":"IF(ISBLANK(INDIRECT(\"'\"&F5869&\"'!\"&G5869)),\"\",INDIRECT(\"'\"&F5869&\"'!\"&G5869))","v":""},{"$f":"IF(ISBLANK(INDIRECT(\"'\"&F5869&\"'!\"&H5869)),\"\",IFERROR(VLOOKUP(TEXT(INDIRECT(\"'\"&F5869&\"'!\"&H5869),\"0\"),Notes!$B$5:$C$100,2,FALSE),\"\"))","v":""},"2c","$AA$119","$AB$119"]
[24991,{"$f":"Menu!$F$29","v":"X"},{"$f":"Menu!$J$29","v":2020},{"$f":"IF(ISBLANK(INDIRECT(\"'\"&F5870&\"'!\"&G5870)),\"\",INDIRECT(\"'\"&F5870&\"'!\"&G5870))","v":""},{"$f":"IF(ISBLANK(INDIRECT(\"'\"&F5870&\"'!\"&H5870)),\"\",IFERROR(VLOOKUP(TEXT(INDIRECT(\"'\"&F5870&\"'!\"&H5870),\"0\"),Notes!$B$5:$C$100,2,FALSE),\"\"))","v":""},"2c","$Y$119","$Z$119"]
[24998,{"$f":"Menu!$F$29","v":"X"},{"$f":"Menu!$J$29","v":2020},{"$f":"IF(ISBLANK(INDIRECT(\"'\"&F5871&\"'!\"&G5871)),\"\",INDIRECT(\"'\"&F5871&\"'!\"&G5871))","v":""},{"$f":"IF(ISBLANK(INDIRECT(\"'\"&F5871&\"'!\"&H5871)),\"\",IFERROR(VLOOKUP(TEXT(INDIRECT(\"'\"&F5871&\"'!\"&H5871),\"0\"),Notes!$B$5:$C$100,2,FALSE),\"\"))","v":""},"2e","$BG$120","$BH$120"]
[24999,{"$f":"Menu!$F$29","v":"X"},{"$f":"Menu!$J$29","v":2020},{"$f":"IF(ISBLANK(INDIRECT(\"'\"&F5872&\"'!\"&G5872)),\"\",INDIRECT(\"'\"&F5872&\"'!\"&G5872))","v":""},{"$f":"IF(ISBLANK(INDIRECT(\"'\"&F5872&\"'!\"&H5872)),\"\",IFERROR(VLOOKUP(TEXT(INDIRECT(\"'\"&F5872&\"'!\"&H5872),\"0\"),Notes!$B$5:$C$100,2,FALSE),\"\"))","v":""},"2e","$BK$120","$BL$120"]
[25000,{"$f":"Menu!$F$29","v":"X"},{"$f":"Menu!$J$29","v":2020},{"$f":"IF(ISBLANK(INDIRECT(\"'\"&F5873&\"'!\"&G5873)),\"\",INDIRECT(\"'\"&F5873&\"'!\"&G5873))","v":""},{"$f":"IF(ISBLANK(INDIRECT(\"'\"&F5873&\"'!\"&H5873)),\"\",IFERROR(VLOOKUP(TEXT(INDIRECT(\"'\"&F5873&\"'!\"&H5873),\"0\"),Notes!$B$5:$C$100,2,FALSE),\"\"))","v":""},"2e","$BI$120","$BJ$120"]
[25001,{"$f":"Menu!$F$29","v":"X"},{"$f":"Menu!$J$29","v":2020},{"$f":"IF(ISBLANK(INDIRECT(\"'\"&F5874&\"'!\"&G5874)),\"\",INDIRECT(\"'\"&F5874&\"'!\"&G5874))","v":""},{"$f":"IF(ISBLANK(INDIRECT(\"'\"&F5874&\"'!\"&H5874)),\"\",IFERROR(VLOOKUP(TEXT(INDIRECT(\"'\"&F5874&\"'!\"&H5874),\"0\"),Notes!$B$5:$C$100,2,FALSE),\"\"))","v":""},"2e","$E$120","$F$120"]
[25002,{"$f":"Menu!$F$29","v":"X"},{"$f":"Menu!$J$29","v":2020},{"$f":"IF(ISBLANK(INDIRECT(\"'\"&F5875&\"'!\"&G5875)),\"\",INDIRECT(\"'\"&F5875&\"'!\"&G5875))","v":""},{"$f":"IF(ISBLANK(INDIRECT(\"'\"&F5875&\"'!\"&H5875)),\"\",IFERROR(VLOOKUP(TEXT(INDIRECT(\"'\"&F5875&\"'!\"&H5875),\"0\"),Notes!$B$5:$C$100,2,FALSE),\"\"))","v":""},"2e","$I$120","$J$120"]
[25003,{"$f":"Menu!$F$29","v":"X"},{"$f":"Menu!$J$29","v":2020},{"$f":"IF(ISBLANK(INDIRECT(\"'\"&F5876&\"'!\"&G5876)),\"\",INDIRECT(\"'\"&F5876&\"'!\"&G5876))","v":""},{"$f":"IF(ISBLANK(INDIRECT(\"'\"&F5876&\"'!\"&H5876)),\"\",IFERROR(VLOOKUP(TEXT(INDIRECT(\"'\"&F5876&\"'!\"&H5876),\"0\"),Notes!$B$5:$C$100,2,FALSE),\"\"))","v":""},"2e","$G$120","$H$120"]
[25004,{"$f":"Menu!$F$29","v":"X"},{"$f":"Menu!$J$29","v":2020},{"$f":"IF(ISBLANK(INDIRECT(\"'\"&F5877&\"'!\"&G5877)),\"\",INDIRECT(\"'\"&F5877&\"'!\"&G5877))","v":""},{"$f":"IF(ISBLANK(INDIRECT(\"'\"&F5877&\"'!\"&H5877)),\"\",IFERROR(VLOOKUP(TEXT(INDIRECT(\"'\"&F5877&\"'!\"&H5877),\"0\"),Notes!$B$5:$C$100,2,FALSE),\"\"))","v":""},"2e","$K$120","$L$120"]
[25005,{"$f":"Menu!$F$29","v":"X"},{"$f":"Menu!$J$29","v":2020},{"$f":"IF(ISBLANK(INDIRECT(\"'\"&F5878&\"'!\"&G5878)),\"\",INDIRECT(\"'\"&F5878&\"'!\"&G5878))","v":""},{"$f":"IF(ISBLANK(INDIRECT(\"'\"&F5878&\"'!\"&H5878)),\"\",IFERROR(VLOOKUP(TEXT(INDIRECT(\"'\"&F5878&\"'!\"&H5878),\"0\"),Notes!$B$5:$C$100,2,FALSE),\"\"))","v":""},"2e","$O$120","$P$120"]
[25006,{"$f":"Menu!$F$29","v":"X"},{"$f":"Menu!$J$29","v":2020},{"$f":"IF(ISBLANK(INDIRECT(\"'\"&F5879&\"'!\"&G5879)),\"\",INDIRECT(\"'\"&F5879&\"'!\"&G5879))","v":""},{"$f":"IF(ISBLANK(INDIRECT(\"'\"&F5879&\"'!\"&H5879)),\"\",IFERROR(VLOOKUP(TEXT(INDIRECT(\"'\"&F5879&\"'!\"&H5879),\"0\"),Notes!$B$5:$C$100,2,FALSE),\"\"))","v":""},"2e","$M$120","$N$120"]
[25007,{"$f":"Menu!$F$29","v":"X"},{"$f":"Menu!$J$29","v":2020},{"$f":"IF(ISBLANK(INDIRECT(\"'\"&F5880&\"'!\"&G5880)),\"\",INDIRECT(\"'\"&F5880&\"'!\"&G5880))","v":""},{"$f":"IF(ISBLANK(INDIRECT(\"'\"&F5880&\"'!\"&H5880)),\"\",IFERROR(VLOOKUP(TEXT(INDIRECT(\"'\"&F5880&\"'!\"&H5880),\"0\"),Notes!$B$5:$C$100,2,FALSE),\"\"))","v":""},"2e","$Q$120","$R$120"]
[25008,{"$f":"Menu!$F$29","v":"X"},{"$f":"Menu!$J$29","v":2020},{"$f":"IF(ISBLANK(INDIRECT(\"'\"&F5881&\"'!\"&G5881)),\"\",INDIRECT(\"'\"&F5881&\"'!\"&G5881))","v":""},{"$f":"IF(ISBLANK(INDIRECT(\"'\"&F5881&\"'!\"&H5881)),\"\",IFERROR(VLOOKUP(TEXT(INDIRECT(\"'\"&F5881&\"'!\"&H5881),\"0\"),Notes!$B$5:$C$100,2,FALSE),\"\"))","v":""},"2e","$U$120","$V$120"]
[25009,{"$f":"Menu!$F$29","v":"X"},{"$f":"Menu!$J$29","v":2020},{"$f":"IF(ISBLANK(INDIRECT(\"'\"&F5882&\"'!\"&G5882)),\"\",INDIRECT(\"'\"&F5882&\"'!\"&G5882))","v":""},{"$f":"IF(ISBLANK(INDIRECT(\"'\"&F5882&\"'!\"&H5882)),\"\",IFERROR(VLOOKUP(TEXT(INDIRECT(\"'\"&F5882&\"'!\"&H5882),\"0\"),Notes!$B$5:$C$100,2,FALSE),\"\"))","v":""},"2e","$S$120","$T$120"]
[25010,{"$f":"Menu!$F$29","v":"X"},{"$f":"Menu!$J$29","v":2020},{"$f":"IF(ISBLANK(INDIRECT(\"'\"&F5883&\"'!\"&G5883)),\"\",INDIRECT(\"'\"&F5883&\"'!\"&G5883))","v":""},{"$f":"IF(ISBLANK(INDIRECT(\"'\"&F5883&\"'!\"&H5883)),\"\",IFERROR(VLOOKUP(TEXT(INDIRECT(\"'\"&F5883&\"'!\"&H5883),\"0\"),Notes!$B$5:$C$100,2,FALSE),\"\"))","v":""},"2e","$W$120","$X$120"]
[25011,{"$f":"Menu!$F$29","v":"X"},{"$f":"Menu!$J$29","v":2020},{"$f":"IF(ISBLANK(INDIRECT(\"'\"&F5884&\"'!\"&G5884)),\"\",INDIRECT(\"'\"&F5884&\"'!\"&G5884))","v":""},{"$f":"IF(ISBLANK(INDIRECT(\"'\"&F5884&\"'!\"&H5884)),\"\",IFERROR(VLOOKUP(TEXT(INDIRECT(\"'\"&F5884&\"'!\"&H5884),\"0\"),Notes!$B$5:$C$100,2,FALSE),\"\"))","v":""},"2e","$AA$120","$AB$120"]
[25012,{"$f":"Menu!$F$29","v":"X"},{"$f":"Menu!$J$29","v":2020},{"$f":"IF(ISBLANK(INDIRECT(\"'\"&F5885&\"'!\"&G5885)),\"\",INDIRECT(\"'\"&F5885&\"'!\"&G5885))","v":""},{"$f":"IF(ISBLANK(INDIRECT(\"'\"&F5885&\"'!\"&H5885)),\"\",IFERROR(VLOOKUP(TEXT(INDIRECT(\"'\"&F5885&\"'!\"&H5885),\"0\"),Notes!$B$5:$C$100,2,FALSE),\"\"))","v":""},"2e","$Y$120","$Z$120"]
[25013,{"$f":"Menu!$F$29","v":"X"},{"$f":"Menu!$J$29","v":2020},{"$f":"IF(ISBLANK(INDIRECT(\"'\"&F5886&\"'!\"&G5886)),\"\",INDIRECT(\"'\"&F5886&\"'!\"&G5886))","v":""},{"$f":"IF(ISBLANK(INDIRECT(\"'\"&F5886&\"'!\"&H5886)),\"\",IFERROR(VLOOKUP(TEXT(INDIRECT(\"'\"&F5886&\"'!\"&H5886),\"0\"),Notes!$B$5:$C$100,2,FALSE),\"\"))","v":""},"2e","$AC$120","$AD$120"]
[25014,{"$f":"Menu!$F$29","v":"X"},{"$f":"Menu!$J$29","v":2020},{"$f":"IF(ISBLANK(INDIRECT(\"'\"&F5887&\"'!\"&G5887)),\"\",INDIRECT(\"'\"&F5887&\"'!\"&G5887))","v":""},{"$f":"IF(ISBLANK(INDIRECT(\"'\"&F5887&\"'!\"&H5887)),\"\",IFERROR(VLOOKUP(TEXT(INDIRECT(\"'\"&F5887&\"'!\"&H5887),\"0\"),Notes!$B$5:$C$100,2,FALSE),\"\"))","v":""},"2e","$AG$120","$AH$120"]
[25015,{"$f":"Menu!$F$29","v":"X"},{"$f":"Menu!$J$29","v":2020},{"$f":"IF(ISBLANK(INDIRECT(\"'\"&F5888&\"'!\"&G5888)),\"\",INDIRECT(\"'\"&F5888&\"'!\"&G5888))","v":""},{"$f":"IF(ISBLANK(INDIRECT(\"'\"&F5888&\"'!\"&H5888)),\"\",IFERROR(VLOOKUP(TEXT(INDIRECT(\"'\"&F5888&\"'!\"&H5888),\"0\"),Notes!$B$5:$C$100,2,FALSE),\"\"))","v":""},"2e","$AE$120","$AF$120"]
[25016,{"$f":"Menu!$F$29","v":"X"},{"$f":"Menu!$J$29","v":2020},{"$f":"IF(ISBLANK(INDIRECT(\"'\"&F5889&\"'!\"&G5889)),\"\",INDIRECT(\"'\"&F5889&\"'!\"&G5889))","v":""},{"$f":"IF(ISBLANK(INDIRECT(\"'\"&F5889&\"'!\"&H5889)),\"\",IFERROR(VLOOKUP(TEXT(INDIRECT(\"'\"&F5889&\"'!\"&H5889),\"0\"),Notes!$B$5:$C$100,2,FALSE),\"\"))","v":""},"2e","$AI$120","$AJ$120"]
[25017,{"$f":"Menu!$F$29","v":"X"},{"$f":"Menu!$J$29","v":2020},{"$f":"IF(ISBLANK(INDIRECT(\"'\"&F5890&\"'!\"&G5890)),\"\",INDIRECT(\"'\"&F5890&\"'!\"&G5890))","v":""},{"$f":"IF(ISBLANK(INDIRECT(\"'\"&F5890&\"'!\"&H5890)),\"\",IFERROR(VLOOKUP(TEXT(INDIRECT(\"'\"&F5890&\"'!\"&H5890),\"0\"),Notes!$B$5:$C$100,2,FALSE),\"\"))","v":""},"2e","$AM$120",{"$f":"IF(LEN(TRIM(MID(G5890,4,10)))-LEN(SUBSTITUTE(TRIM(MID(G5890,4,10)),\"$\",\"\"))=0,\"$\"&CHAR(CODE(MID(G5890,2,1))+1)&\"$\"&TRIM(MID(G5890,4,10)),\"$\"&MID(G5890,2,1)&CHAR(CODE(MID(G5890,3,1))+1)&\"$\"&TRIM(MID(G5890,5,11)))","v":"$AN$120"}]
[25018,{"$f":"Menu!$F$29","v":"X"},{"$f":"Menu!$J$29","v":2020},{"$f":"IF(ISBLANK(INDIRECT(\"'\"&F5891&\"'!\"&G5891)),\"\",INDIRECT(\"'\"&F5891&\"'!\"&G5891))","v":""},{"$f":"IF(ISBLANK(INDIRECT(\"'\"&F5891&\"'!\"&H5891)),\"\",IFERROR(VLOOKUP(TEXT(INDIRECT(\"'\"&F5891&\"'!\"&H5891),\"0\"),Notes!$B$5:$C$100,2,FALSE),\"\"))","v":""},"2e","$AK$120","$AL$120"]
[25019,{"$f":"Menu!$F$29","v":"X"},{"$f":"Menu!$J$29","v":2020},{"$f":"IF(ISBLANK(INDIRECT(\"'\"&F5892&\"'!\"&G5892)),\"\",INDIRECT(\"'\"&F5892&\"'!\"&G5892))","v":""},{"$f":"IF(ISBLANK(INDIRECT(\"'\"&F5892&\"'!\"&H5892)),\"\",IFERROR(VLOOKUP(TEXT(INDIRECT(\"'\"&F5892&\"'!\"&H5892),\"0\"),Notes!$B$5:$C$100,2,FALSE),\"\"))","v":""},"2e","$AO$120","$AP$120"]
[25020,{"$f":"Menu!$F$29","v":"X"},{"$f":"Menu!$J$29","v":2020},{"$f":"IF(ISBLANK(INDIRECT(\"'\"&F5893&\"'!\"&G5893)),\"\",INDIRECT(\"'\"&F5893&\"'!\"&G5893))","v":""},{"$f":"IF(ISBLANK(INDIRECT(\"'\"&F5893&\"'!\"&H5893)),\"\",IFERROR(VLOOKUP(TEXT(INDIRECT(\"'\"&F5893&\"'!\"&H5893),\"0\"),Notes!$B$5:$C$100,2,FALSE),\"\"))","v":""},"2e","$AS$120","$AT$120"]
[25021,{"$f":"Menu!$F$29","v":"X"},{"$f":"Menu!$J$29","v":2020},{"$f":"IF(ISBLANK(INDIRECT(\"'\"&F5894&\"'!\"&G5894)),\"\",INDIRECT(\"'\"&F5894&\"'!\"&G5894))","v":""},{"$f":"IF(ISBLANK(INDIRECT(\"'\"&F5894&\"'!\"&H5894)),\"\",IFERROR(VLOOKUP(TEXT(INDIRECT(\"'\"&F5894&\"'!\"&H5894),\"0\"),Notes!$B$5:$C$100,2,FALSE),\"\"))","v":""},"2e","$AQ$120","$AR$120"]
[25022,{"$f":"Menu!$F$29","v":"X"},{"$f":"Menu!$J$29","v":2020},{"$f":"IF(ISBLANK(INDIRECT(\"'\"&F5895&\"'!\"&G5895)),\"\",INDIRECT(\"'\"&F5895&\"'!\"&G5895))","v":""},{"$f":"IF(ISBLANK(INDIRECT(\"'\"&F5895&\"'!\"&H5895)),\"\",IFERROR(VLOOKUP(TEXT(INDIRECT(\"'\"&F5895&\"'!\"&H5895),\"0\"),Notes!$B$5:$C$100,2,FALSE),\"\"))","v":""},"2e","$AU$120","$AV$120"]
[25023,{"$f":"Menu!$F$29","v":"X"},{"$f":"Menu!$J$29","v":2020},{"$f":"IF(ISBLANK(INDIRECT(\"'\"&F5896&\"'!\"&G5896)),\"\",INDIRECT(\"'\"&F5896&\"'!\"&G5896))","v":""},{"$f":"IF(ISBLANK(INDIRECT(\"'\"&F5896&\"'!\"&H5896)),\"\",IFERROR(VLOOKUP(TEXT(INDIRECT(\"'\"&F5896&\"'!\"&H5896),\"0\"),Notes!$B$5:$C$100,2,FALSE),\"\"))","v":""},"2e","$AY$120","$AZ$120"]
[25024,{"$f":"Menu!$F$29","v":"X"},{"$f":"Menu!$J$29","v":2020},{"$f":"IF(ISBLANK(INDIRECT(\"'\"&F5897&\"'!\"&G5897)),\"\",INDIRECT(\"'\"&F5897&\"'!\"&G5897))","v":""},{"$f":"IF(ISBLANK(INDIRECT(\"'\"&F5897&\"'!\"&H5897)),\"\",IFERROR(VLOOKUP(TEXT(INDIRECT(\"'\"&F5897&\"'!\"&H5897),\"0\"),Notes!$B$5:$C$100,2,FALSE),\"\"))","v":""},"2e","$AW$120","$AX$120"]
[25025,{"$f":"Menu!$F$29","v":"X"},{"$f":"Menu!$J$29","v":2020},{"$f":"IF(ISBLANK(INDIRECT(\"'\"&F5898&\"'!\"&G5898)),\"\",INDIRECT(\"'\"&F5898&\"'!\"&G5898))","v":""},{"$f":"IF(ISBLANK(INDIRECT(\"'\"&F5898&\"'!\"&H5898)),\"\",IFERROR(VLOOKUP(TEXT(INDIRECT(\"'\"&F5898&\"'!\"&H5898),\"0\"),Notes!$B$5:$C$100,2,FALSE),\"\"))","v":""},"2e","$BA$120","$BB$120"]
[25026,{"$f":"Menu!$F$29","v":"X"},{"$f":"Menu!$J$29","v":2020},{"$f":"IF(ISBLANK(INDIRECT(\"'\"&F5899&\"'!\"&G5899)),\"\",INDIRECT(\"'\"&F5899&\"'!\"&G5899))","v":""},{"$f":"IF(ISBLANK(INDIRECT(\"'\"&F5899&\"'!\"&H5899)),\"\",IFERROR(VLOOKUP(TEXT(INDIRECT(\"'\"&F5899&\"'!\"&H5899),\"0\"),Notes!$B$5:$C$100,2,FALSE),\"\"))","v":""},"2e","$BE$120","$BF$120"]
[25027,{"$f":"Menu!$F$29","v":"X"},{"$f":"Menu!$J$29","v":2020},{"$f":"IF(ISBLANK(INDIRECT(\"'\"&F5900&\"'!\"&G5900)),\"\",INDIRECT(\"'\"&F5900&\"'!\"&G5900))","v":""},{"$f":"IF(ISBLANK(INDIRECT(\"'\"&F5900&\"'!\"&H5900)),\"\",IFERROR(VLOOKUP(TEXT(INDIRECT(\"'\"&F5900&\"'!\"&H5900),\"0\"),Notes!$B$5:$C$100,2,FALSE),\"\"))","v":""},"2e","$BC$120","$BD$120"]
[25028,{"$f":"Menu!$F$29","v":"X"},{"$f":"Menu!$J$29","v":2020},{"$f":"IF(ISBLANK(INDIRECT(\"'\"&F5901&\"'!\"&G5901)),\"\",INDIRECT(\"'\"&F5901&\"'!\"&G5901))","v":""},{"$f":"IF(ISBLANK(INDIRECT(\"'\"&F5901&\"'!\"&H5901)),\"\",IFERROR(VLOOKUP(TEXT(INDIRECT(\"'\"&F5901&\"'!\"&H5901),\"0\"),Notes!$B$5:$C$100,2,FALSE),\"\"))","v":""},"2b","$E$119","$F$119"]
[25029,{"$f":"Menu!$F$29","v":"X"},{"$f":"Menu!$J$29","v":2020},{"$f":"IF(ISBLANK(INDIRECT(\"'\"&F5902&\"'!\"&G5902)),\"\",INDIRECT(\"'\"&F5902&\"'!\"&G5902))","v":""},{"$f":"IF(ISBLANK(INDIRECT(\"'\"&F5902&\"'!\"&H5902)),\"\",IFERROR(VLOOKUP(TEXT(INDIRECT(\"'\"&F5902&\"'!\"&H5902),\"0\"),Notes!$B$5:$C$100,2,FALSE),\"\"))","v":""},"2b","$I$119","$J$119"]
[25030,{"$f":"Menu!$F$29","v":"X"},{"$f":"Menu!$J$29","v":2020},{"$f":"IF(ISBLANK(INDIRECT(\"'\"&F5903&\"'!\"&G5903)),\"\",INDIRECT(\"'\"&F5903&\"'!\"&G5903))","v":""},{"$f":"IF(ISBLANK(INDIRECT(\"'\"&F5903&\"'!\"&H5903)),\"\",IFERROR(VLOOKUP(TEXT(INDIRECT(\"'\"&F5903&\"'!\"&H5903),\"0\"),Notes!$B$5:$C$100,2,FALSE),\"\"))","v":""},"2b","$G$119","$H$119"]
[25031,{"$f":"Menu!$F$29","v":"X"},{"$f":"Menu!$J$29","v":2020},{"$f":"IF(ISBLANK(INDIRECT(\"'\"&F5904&\"'!\"&G5904)),\"\",INDIRECT(\"'\"&F5904&\"'!\"&G5904))","v":""},{"$f":"IF(ISBLANK(INDIRECT(\"'\"&F5904&\"'!\"&H5904)),\"\",IFERROR(VLOOKUP(TEXT(INDIRECT(\"'\"&F5904&\"'!\"&H5904),\"0\"),Notes!$B$5:$C$100,2,FALSE),\"\"))","v":""},"2a","$G$119","$H$119"]
[25032,{"$f":"Menu!$F$29","v":"X"},{"$f":"Menu!$J$29","v":2020},{"$f":"IF(ISBLANK(INDIRECT(\"'\"&F5905&\"'!\"&G5905)),\"\",INDIRECT(\"'\"&F5905&\"'!\"&G5905))","v":""},{"$f":"IF(ISBLANK(INDIRECT(\"'\"&F5905&\"'!\"&H5905)),\"\",IFERROR(VLOOKUP(TEXT(INDIRECT(\"'\"&F5905&\"'!\"&H5905),\"0\"),Notes!$B$5:$C$100,2,FALSE),\"\"))","v":""},"2b","$W$119","$X$119"]
[25033,{"$f":"Menu!$F$29","v":"X"},{"$f":"Menu!$J$29","v":2020},{"$f":"IF(ISBLANK(INDIRECT(\"'\"&F5906&\"'!\"&G5906)),\"\",INDIRECT(\"'\"&F5906&\"'!\"&G5906))","v":""},{"$f":"IF(ISBLANK(INDIRECT(\"'\"&F5906&\"'!\"&H5906)),\"\",IFERROR(VLOOKUP(TEXT(INDIRECT(\"'\"&F5906&\"'!\"&H5906),\"0\"),Notes!$B$5:$C$100,2,FALSE),\"\"))","v":""},"2b","$AA$119","$AB$119"]
[25034,{"$f":"Menu!$F$29","v":"X"},{"$f":"Menu!$J$29","v":2020},{"$f":"IF(ISBLANK(INDIRECT(\"'\"&F5907&\"'!\"&G5907)),\"\",INDIRECT(\"'\"&F5907&\"'!\"&G5907))","v":""},{"$f":"IF(ISBLANK(INDIRECT(\"'\"&F5907&\"'!\"&H5907)),\"\",IFERROR(VLOOKUP(TEXT(INDIRECT(\"'\"&F5907&\"'!\"&H5907),\"0\"),Notes!$B$5:$C$100,2,FALSE),\"\"))","v":""},"2b","$Y$119","$Z$119"]
[25035,{"$f":"Menu!$F$29","v":"X"},{"$f":"Menu!$J$29","v":2020},{"$f":"IF(ISBLANK(INDIRECT(\"'\"&F5908&\"'!\"&G5908)),\"\",INDIRECT(\"'\"&F5908&\"'!\"&G5908))","v":""},{"$f":"IF(ISBLANK(INDIRECT(\"'\"&F5908&\"'!\"&H5908)),\"\",IFERROR(VLOOKUP(TEXT(INDIRECT(\"'\"&F5908&\"'!\"&H5908),\"0\"),Notes!$B$5:$C$100,2,FALSE),\"\"))","v":""},"2d","$AC$119","$AD$119"]
[25036,{"$f":"Menu!$F$29","v":"X"},{"$f":"Menu!$J$29","v":2020},{"$f":"IF(ISBLANK(INDIRECT(\"'\"&F5909&\"'!\"&G5909)),\"\",INDIRECT(\"'\"&F5909&\"'!\"&G5909))","v":""},{"$f":"IF(ISBLANK(INDIRECT(\"'\"&F5909&\"'!\"&H5909)),\"\",IFERROR(VLOOKUP(TEXT(INDIRECT(\"'\"&F5909&\"'!\"&H5909),\"0\"),Notes!$B$5:$C$100,2,FALSE),\"\"))","v":""},"2d","$AG$119","$AH$119"]
[25037,{"$f":"Menu!$F$29","v":"X"},{"$f":"Menu!$J$29","v":2020},{"$f":"IF(ISBLANK(INDIRECT(\"'\"&F5910&\"'!\"&G5910)),\"\",INDIRECT(\"'\"&F5910&\"'!\"&G5910))","v":""},{"$f":"IF(ISBLANK(INDIRECT(\"'\"&F5910&\"'!\"&H5910)),\"\",IFERROR(VLOOKUP(TEXT(INDIRECT(\"'\"&F5910&\"'!\"&H5910),\"0\"),Notes!$B$5:$C$100,2,FALSE),\"\"))","v":""},"2d","$AE$119","$AF$119"]
[25038,{"$f":"Menu!$F$29","v":"X"},{"$f":"Menu!$J$29","v":2020},{"$f":"IF(ISBLANK(INDIRECT(\"'\"&F5911&\"'!\"&G5911)),\"\",INDIRECT(\"'\"&F5911&\"'!\"&G5911))","v":""},{"$f":"IF(ISBLANK(INDIRECT(\"'\"&F5911&\"'!\"&H5911)),\"\",IFERROR(VLOOKUP(TEXT(INDIRECT(\"'\"&F5911&\"'!\"&H5911),\"0\"),Notes!$B$5:$C$100,2,FALSE),\"\"))","v":""},"2d","$W$119","$X$119"]
[25039,{"$f":"Menu!$F$29","v":"X"},{"$f":"Menu!$J$29","v":2020},{"$f":"IF(ISBLANK(INDIRECT(\"'\"&F5912&\"'!\"&G5912)),\"\",INDIRECT(\"'\"&F5912&\"'!\"&G5912))","v":""},{"$f":"IF(ISBLANK(INDIRECT(\"'\"&F5912&\"'!\"&H5912)),\"\",IFERROR(VLOOKUP(TEXT(INDIRECT(\"'\"&F5912&\"'!\"&H5912),\"0\"),Notes!$B$5:$C$100,2,FALSE),\"\"))","v":""},"2d","$AA$119","$AB$119"]
[25040,{"$f":"Menu!$F$29","v":"X"},{"$f":"Menu!$J$29","v":2020},{"$f":"IF(ISBLANK(INDIRECT(\"'\"&F5913&\"'!\"&G5913)),\"\",INDIRECT(\"'\"&F5913&\"'!\"&G5913))","v":""},{"$f":"IF(ISBLANK(INDIRECT(\"'\"&F5913&\"'!\"&H5913)),\"\",IFERROR(VLOOKUP(TEXT(INDIRECT(\"'\"&F5913&\"'!\"&H5913),\"0\"),Notes!$B$5:$C$100,2,FALSE),\"\"))","v":""},"2d","$Y$119","$Z$119"]
[25041,{"$f":"Menu!$F$29","v":"X"},{"$f":"Menu!$J$29","v":2020},{"$f":"IF(ISBLANK(INDIRECT(\"'\"&F5914&\"'!\"&G5914)),\"\",INDIRECT(\"'\"&F5914&\"'!\"&G5914))","v":""},{"$f":"IF(ISBLANK(INDIRECT(\"'\"&F5914&\"'!\"&H5914)),\"\",IFERROR(VLOOKUP(TEXT(INDIRECT(\"'\"&F5914&\"'!\"&H5914),\"0\"),Notes!$B$5:$C$100,2,FALSE),\"\"))","v":""},"2d","$E$119","$F$119"]
[25042,{"$f":"Menu!$F$29","v":"X"},{"$f":"Menu!$J$29","v":2020},{"$f":"IF(ISBLANK(INDIRECT(\"'\"&F5915&\"'!\"&G5915)),\"\",INDIRECT(\"'\"&F5915&\"'!\"&G5915))","v":""},{"$f":"IF(ISBLANK(INDIRECT(\"'\"&F5915&\"'!\"&H5915)),\"\",IFERROR(VLOOKUP(TEXT(INDIRECT(\"'\"&F5915&\"'!\"&H5915),\"0\"),Notes!$B$5:$C$100,2,FALSE),\"\"))","v":""},"2d","$I$119","$J$119"]
[25043,{"$f":"Menu!$F$29","v":"X"},{"$f":"Menu!$J$29","v":2020},{"$f":"IF(ISBLANK(INDIRECT(\"'\"&F5916&\"'!\"&G5916)),\"\",INDIRECT(\"'\"&F5916&\"'!\"&G5916))","v":""},{"$f":"IF(ISBLANK(INDIRECT(\"'\"&F5916&\"'!\"&H5916)),\"\",IFERROR(VLOOKUP(TEXT(INDIRECT(\"'\"&F5916&\"'!\"&H5916),\"0\"),Notes!$B$5:$C$100,2,FALSE),\"\"))","v":""},"2d","$G$119","$H$119"]
[25044,{"$f":"Menu!$F$29","v":"X"},{"$f":"Menu!$J$29","v":2020},{"$f":"IF(ISBLANK(INDIRECT(\"'\"&F5917&\"'!\"&G5917)),\"\",INDIRECT(\"'\"&F5917&\"'!\"&G5917))","v":""},{"$f":"IF(ISBLANK(INDIRECT(\"'\"&F5917&\"'!\"&H5917)),\"\",IFERROR(VLOOKUP(TEXT(INDIRECT(\"'\"&F5917&\"'!\"&H5917),\"0\"),Notes!$B$5:$C$100,2,FALSE),\"\"))","v":""},"2a","$Q$119","$R$119"]
[25045,{"$f":"Menu!$F$29","v":"X"},{"$f":"Menu!$J$29","v":2020},{"$f":"IF(ISBLANK(INDIRECT(\"'\"&F5918&\"'!\"&G5918)),\"\",INDIRECT(\"'\"&F5918&\"'!\"&G5918))","v":""},{"$f":"IF(ISBLANK(INDIRECT(\"'\"&F5918&\"'!\"&H5918)),\"\",IFERROR(VLOOKUP(TEXT(INDIRECT(\"'\"&F5918&\"'!\"&H5918),\"0\"),Notes!$B$5:$C$100,2,FALSE),\"\"))","v":""},"2a","$U$119","$V$119"]
[25046,{"$f":"Menu!$F$29","v":"X"},{"$f":"Menu!$J$29","v":2020},{"$f":"IF(ISBLANK(INDIRECT(\"'\"&F5919&\"'!\"&G5919)),\"\",INDIRECT(\"'\"&F5919&\"'!\"&G5919))","v":""},{"$f":"IF(ISBLANK(INDIRECT(\"'\"&F5919&\"'!\"&H5919)),\"\",IFERROR(VLOOKUP(TEXT(INDIRECT(\"'\"&F5919&\"'!\"&H5919),\"0\"),Notes!$B$5:$C$100,2,FALSE),\"\"))","v":""},"2a","$S$119","$T$119"]
[25047,{"$f":"Menu!$F$29","v":"X"},{"$f":"Menu!$J$29","v":2020},{"$f":"IF(ISBLANK(INDIRECT(\"'\"&F5920&\"'!\"&G5920)),\"\",INDIRECT(\"'\"&F5920&\"'!\"&G5920))","v":""},{"$f":"IF(ISBLANK(INDIRECT(\"'\"&F5920&\"'!\"&H5920)),\"\",IFERROR(VLOOKUP(TEXT(INDIRECT(\"'\"&F5920&\"'!\"&H5920),\"0\"),Notes!$B$5:$C$100,2,FALSE),\"\"))","v":""},"2d","$K$119","$L$119"]
[25048,{"$f":"Menu!$F$29","v":"X"},{"$f":"Menu!$J$29","v":2020},{"$f":"IF(ISBLANK(INDIRECT(\"'\"&F5921&\"'!\"&G5921)),\"\",INDIRECT(\"'\"&F5921&\"'!\"&G5921))","v":""},{"$f":"IF(ISBLANK(INDIRECT(\"'\"&F5921&\"'!\"&H5921)),\"\",IFERROR(VLOOKUP(TEXT(INDIRECT(\"'\"&F5921&\"'!\"&H5921),\"0\"),Notes!$B$5:$C$100,2,FALSE),\"\"))","v":""},"2d","$O$119","$P$119"]
[25049,{"$f":"Menu!$F$29","v":"X"},{"$f":"Menu!$J$29","v":2020},{"$f":"IF(ISBLANK(INDIRECT(\"'\"&F5922&\"'!\"&G5922)),\"\",INDIRECT(\"'\"&F5922&\"'!\"&G5922))","v":""},{"$f":"IF(ISBLANK(INDIRECT(\"'\"&F5922&\"'!\"&H5922)),\"\",IFERROR(VLOOKUP(TEXT(INDIRECT(\"'\"&F5922&\"'!\"&H5922),\"0\"),Notes!$B$5:$C$100,2,FALSE),\"\"))","v":""},"2d","$M$119","$N$119"]
[25050,{"$f":"Menu!$F$29","v":"X"},{"$f":"Menu!$J$29","v":2020},{"$f":"IF(ISBLANK(INDIRECT(\"'\"&F5923&\"'!\"&G5923)),\"\",INDIRECT(\"'\"&F5923&\"'!\"&G5923))","v":""},{"$f":"IF(ISBLANK(INDIRECT(\"'\"&F5923&\"'!\"&H5923)),\"\",IFERROR(VLOOKUP(TEXT(INDIRECT(\"'\"&F5923&\"'!\"&H5923),\"0\"),Notes!$B$5:$C$100,2,FALSE),\"\"))","v":""},"2d","$Q$119","$R$119"]
[25051,{"$f":"Menu!$F$29","v":"X"},{"$f":"Menu!$J$29","v":2020},{"$f":"IF(ISBLANK(INDIRECT(\"'\"&F5924&\"'!\"&G5924)),\"\",INDIRECT(\"'\"&F5924&\"'!\"&G5924))","v":""},{"$f":"IF(ISBLANK(INDIRECT(\"'\"&F5924&\"'!\"&H5924)),\"\",IFERROR(VLOOKUP(TEXT(INDIRECT(\"'\"&F5924&\"'!\"&H5924),\"0\"),Notes!$B$5:$C$100,2,FALSE),\"\"))","v":""},"2d","$U$119","$V$119"]
[25052,{"$f":"Menu!$F$29","v":"X"},{"$f":"Menu!$J$29","v":2020},{"$f":"IF(ISBLANK(INDIRECT(\"'\"&F5925&\"'!\"&G5925)),\"\",INDIRECT(\"'\"&F5925&\"'!\"&G5925))","v":""},{"$f":"IF(ISBLANK(INDIRECT(\"'\"&F5925&\"'!\"&H5925)),\"\",IFERROR(VLOOKUP(TEXT(INDIRECT(\"'\"&F5925&\"'!\"&H5925),\"0\"),Notes!$B$5:$C$100,2,FALSE),\"\"))","v":""},"2d","$S$119","$T$119"]
[25053,{"$f":"Menu!$F$29","v":"X"},{"$f":"Menu!$J$29","v":2020},{"$f":"IF(ISBLANK(INDIRECT(\"'\"&F5926&\"'!\"&G5926)),\"\",INDIRECT(\"'\"&F5926&\"'!\"&G5926))","v":""},{"$f":"IF(ISBLANK(INDIRECT(\"'\"&F5926&\"'!\"&H5926)),\"\",IFERROR(VLOOKUP(TEXT(INDIRECT(\"'\"&F5926&\"'!\"&H5926),\"0\"),Notes!$B$5:$C$100,2,FALSE),\"\"))","v":""},"2a","$K$119","$L$119"]
[25054,{"$f":"Menu!$F$29","v":"X"},{"$f":"Menu!$J$29","v":2020},{"$f":"IF(ISBLANK(INDIRECT(\"'\"&F5927&\"'!\"&G5927)),\"\",INDIRECT(\"'\"&F5927&\"'!\"&G5927))","v":""},{"$f":"IF(ISBLANK(INDIRECT(\"'\"&F5927&\"'!\"&H5927)),\"\",IFERROR(VLOOKUP(TEXT(INDIRECT(\"'\"&F5927&\"'!\"&H5927),\"0\"),Notes!$B$5:$C$100,2,FALSE),\"\"))","v":""},"2a","$O$119","$P$119"]
[25055,{"$f":"Menu!$F$29","v":"X"},{"$f":"Menu!$J$29","v":2020},{"$f":"IF(ISBLANK(INDIRECT(\"'\"&F5928&\"'!\"&G5928)),\"\",INDIRECT(\"'\"&F5928&\"'!\"&G5928))","v":""},{"$f":"IF(ISBLANK(INDIRECT(\"'\"&F5928&\"'!\"&H5928)),\"\",IFERROR(VLOOKUP(TEXT(INDIRECT(\"'\"&F5928&\"'!\"&H5928),\"0\"),Notes!$B$5:$C$100,2,FALSE),\"\"))","v":""},"2a","$M$119","$N$119"]
[25056,{"$f":"Menu!$F$29","v":"X"},{"$f":"Menu!$J$29","v":2020},{"$f":"IF(ISBLANK(INDIRECT(\"'\"&F5929&\"'!\"&G5929)),\"\",INDIRECT(\"'\"&F5929&\"'!\"&G5929))","v":""},{"$f":"IF(ISBLANK(INDIRECT(\"'\"&F5929&\"'!\"&H5929)),\"\",IFERROR(VLOOKUP(TEXT(INDIRECT(\"'\"&F5929&\"'!\"&H5929),\"0\"),Notes!$B$5:$C$100,2,FALSE),\"\"))","v":""},"2a","$E$119","$F$119"]
[25057,{"$f":"Menu!$F$29","v":"X"},{"$f":"Menu!$J$29","v":2020},{"$f":"IF(ISBLANK(INDIRECT(\"'\"&F5930&\"'!\"&G5930)),\"\",INDIRECT(\"'\"&F5930&\"'!\"&G5930))","v":""},{"$f":"IF(ISBLANK(INDIRECT(\"'\"&F5930&\"'!\"&H5930)),\"\",IFERROR(VLOOKUP(TEXT(INDIRECT(\"'\"&F5930&\"'!\"&H5930),\"0\"),Notes!$B$5:$C$100,2,FALSE),\"\"))","v":""},"2b","$K$120","$L$120"]
[25058,{"$f":"Menu!$F$29","v":"X"},{"$f":"Menu!$J$29","v":2020},{"$f":"IF(ISBLANK(INDIRECT(\"'\"&F5931&\"'!\"&G5931)),\"\",INDIRECT(\"'\"&F5931&\"'!\"&G5931))","v":""},{"$f":"IF(ISBLANK(INDIRECT(\"'\"&F5931&\"'!\"&H5931)),\"\",IFERROR(VLOOKUP(TEXT(INDIRECT(\"'\"&F5931&\"'!\"&H5931),\"0\"),Notes!$B$5:$C$100,2,FALSE),\"\"))","v":""},"2b","$O$120","$P$120"]
[25059,{"$f":"Menu!$F$29","v":"X"},{"$f":"Menu!$J$29","v":2020},{"$f":"IF(ISBLANK(INDIRECT(\"'\"&F5932&\"'!\"&G5932)),\"\",INDIRECT(\"'\"&F5932&\"'!\"&G5932))","v":""},{"$f":"IF(ISBLANK(INDIRECT(\"'\"&F5932&\"'!\"&H5932)),\"\",IFERROR(VLOOKUP(TEXT(INDIRECT(\"'\"&F5932&\"'!\"&H5932),\"0\"),Notes!$B$5:$C$100,2,FALSE),\"\"))","v":""},"2b","$M$120","$N$120"]
[25060,{"$f":"Menu!$F$29","v":"X"},{"$f":"Menu!$J$29","v":2020},{"$f":"IF(ISBLANK(INDIRECT(\"'\"&F5933&\"'!\"&G5933)),\"\",INDIRECT(\"'\"&F5933&\"'!\"&G5933))","v":""},{"$f":"IF(ISBLANK(INDIRECT(\"'\"&F5933&\"'!\"&H5933)),\"\",IFERROR(VLOOKUP(TEXT(INDIRECT(\"'\"&F5933&\"'!\"&H5933),\"0\"),Notes!$B$5:$C$100,2,FALSE),\"\"))","v":""},"2b","$Q$120","$R$120"]
[25061,{"$f":"Menu!$F$29","v":"X"},{"$f":"Menu!$J$29","v":2020},{"$f":"IF(ISBLANK(INDIRECT(\"'\"&F5934&\"'!\"&G5934)),\"\",INDIRECT(\"'\"&F5934&\"'!\"&G5934))","v":""},{"$f":"IF(ISBLANK(INDIRECT(\"'\"&F5934&\"'!\"&H5934)),\"\",IFERROR(VLOOKUP(TEXT(INDIRECT(\"'\"&F5934&\"'!\"&H5934),\"0\"),Notes!$B$5:$C$100,2,FALSE),\"\"))","v":""},"2b","$U$120","$V$120"]
[25062,{"$f":"Menu!$F$29","v":"X"},{"$f":"Menu!$J$29","v":2020},{"$f":"IF(ISBLANK(INDIRECT(\"'\"&F5935&\"'!\"&G5935)),\"\",INDIRECT(\"'\"&F5935&\"'!\"&G5935))","v":""},{"$f":"IF(ISBLANK(INDIRECT(\"'\"&F5935&\"'!\"&H5935)),\"\",IFERROR(VLOOKUP(TEXT(INDIRECT(\"'\"&F5935&\"'!\"&H5935),\"0\"),Notes!$B$5:$C$100,2,FALSE),\"\"))","v":""},"2b","$S$120","$T$120"]
[25066,{"$f":"Menu!$F$29","v":"X"},{"$f":"Menu!$J$29","v":2020},{"$f":"IF(ISBLANK(INDIRECT(\"'\"&F5936&\"'!\"&G5936)),\"\",INDIRECT(\"'\"&F5936&\"'!\"&G5936))","v":""},{"$f":"IF(ISBLANK(INDIRECT(\"'\"&F5936&\"'!\"&H5936)),\"\",IFERROR(VLOOKUP(TEXT(INDIRECT(\"'\"&F5936&\"'!\"&H5936),\"0\"),Notes!$B$5:$C$100,2,FALSE),\"\"))","v":""},"2a","$I$120","$J$120"]
[25067,{"$f":"Menu!$F$29","v":"X"},{"$f":"Menu!$J$29","v":2020},{"$f":"IF(ISBLANK(INDIRECT(\"'\"&F5937&\"'!\"&G5937)),\"\",INDIRECT(\"'\"&F5937&\"'!\"&G5937))","v":""},{"$f":"IF(ISBLANK(INDIRECT(\"'\"&F5937&\"'!\"&H5937)),\"\",IFERROR(VLOOKUP(TEXT(INDIRECT(\"'\"&F5937&\"'!\"&H5937),\"0\"),Notes!$B$5:$C$100,2,FALSE),\"\"))","v":""},"2c","$E$120","$F$120"]
[25068,{"$f":"Menu!$F$29","v":"X"},{"$f":"Menu!$J$29","v":2020},{"$f":"IF(ISBLANK(INDIRECT(\"'\"&F5938&\"'!\"&G5938)),\"\",INDIRECT(\"'\"&F5938&\"'!\"&G5938))","v":""},{"$f":"IF(ISBLANK(INDIRECT(\"'\"&F5938&\"'!\"&H5938)),\"\",IFERROR(VLOOKUP(TEXT(INDIRECT(\"'\"&F5938&\"'!\"&H5938),\"0\"),Notes!$B$5:$C$100,2,FALSE),\"\"))","v":""},"2c","$I$120","$J$120"]
[25069,{"$f":"Menu!$F$29","v":"X"},{"$f":"Menu!$J$29","v":2020},{"$f":"IF(ISBLANK(INDIRECT(\"'\"&F5939&\"'!\"&G5939)),\"\",INDIRECT(\"'\"&F5939&\"'!\"&G5939))","v":""},{"$f":"IF(ISBLANK(INDIRECT(\"'\"&F5939&\"'!\"&H5939)),\"\",IFERROR(VLOOKUP(TEXT(INDIRECT(\"'\"&F5939&\"'!\"&H5939),\"0\"),Notes!$B$5:$C$100,2,FALSE),\"\"))","v":""},"2c","$G$120","$H$120"]
[25073,{"$f":"Menu!$F$29","v":"X"},{"$f":"Menu!$J$29","v":2020},{"$f":"IF(ISBLANK(INDIRECT(\"'\"&F5940&\"'!\"&G5940)),\"\",INDIRECT(\"'\"&F5940&\"'!\"&G5940))","v":""},{"$f":"IF(ISBLANK(INDIRECT(\"'\"&F5940&\"'!\"&H5940)),\"\",IFERROR(VLOOKUP(TEXT(INDIRECT(\"'\"&F5940&\"'!\"&H5940),\"0\"),Notes!$B$5:$C$100,2,FALSE),\"\"))","v":""},"2c","$K$120","$L$120"]
[25074,{"$f":"Menu!$F$29","v":"X"},{"$f":"Menu!$J$29","v":2020},{"$f":"IF(ISBLANK(INDIRECT(\"'\"&F5941&\"'!\"&G5941)),\"\",INDIRECT(\"'\"&F5941&\"'!\"&G5941))","v":""},{"$f":"IF(ISBLANK(INDIRECT(\"'\"&F5941&\"'!\"&H5941)),\"\",IFERROR(VLOOKUP(TEXT(INDIRECT(\"'\"&F5941&\"'!\"&H5941),\"0\"),Notes!$B$5:$C$100,2,FALSE),\"\"))","v":""},"2c","$O$120","$P$120"]
[25075,{"$f":"Menu!$F$29","v":"X"},{"$f":"Menu!$J$29","v":2020},{"$f":"IF(ISBLANK(INDIRECT(\"'\"&F5942&\"'!\"&G5942)),\"\",INDIRECT(\"'\"&F5942&\"'!\"&G5942))","v":""},{"$f":"IF(ISBLANK(INDIRECT(\"'\"&F5942&\"'!\"&H5942)),\"\",IFERROR(VLOOKUP(TEXT(INDIRECT(\"'\"&F5942&\"'!\"&H5942),\"0\"),Notes!$B$5:$C$100,2,FALSE),\"\"))","v":""},"2c","$M$120","$N$120"]
[25076,{"$f":"Menu!$F$29","v":"X"},{"$f":"Menu!$J$29","v":2020},{"$f":"IF(ISBLANK(INDIRECT(\"'\"&F5943&\"'!\"&G5943)),\"\",INDIRECT(\"'\"&F5943&\"'!\"&G5943))","v":""},{"$f":"IF(ISBLANK(INDIRECT(\"'\"&F5943&\"'!\"&H5943)),\"\",IFERROR(VLOOKUP(TEXT(INDIRECT(\"'\"&F5943&\"'!\"&H5943),\"0\"),Notes!$B$5:$C$100,2,FALSE),\"\"))","v":""},"2c","$Q$120","$R$120"]
[25077,{"$f":"Menu!$F$29","v":"X"},{"$f":"Menu!$J$29","v":2020},{"$f":"IF(ISBLANK(INDIRECT(\"'\"&F5944&\"'!\"&G5944)),\"\",INDIRECT(\"'\"&F5944&\"'!\"&G5944))","v":""},{"$f":"IF(ISBLANK(INDIRECT(\"'\"&F5944&\"'!\"&H5944)),\"\",IFERROR(VLOOKUP(TEXT(INDIRECT(\"'\"&F5944&\"'!\"&H5944),\"0\"),Notes!$B$5:$C$100,2,FALSE),\"\"))","v":""},"2c","$U$120","$V$120"]
[25078,{"$f":"Menu!$F$29","v":"X"},{"$f":"Menu!$J$29","v":2020},{"$f":"IF(ISBLANK(INDIRECT(\"'\"&F5945&\"'!\"&G5945)),\"\",INDIRECT(\"'\"&F5945&\"'!\"&G5945))","v":""},{"$f":"IF(ISBLANK(INDIRECT(\"'\"&F5945&\"'!\"&H5945)),\"\",IFERROR(VLOOKUP(TEXT(INDIRECT(\"'\"&F5945&\"'!\"&H5945),\"0\"),Notes!$B$5:$C$100,2,FALSE),\"\"))","v":""},"2c","$S$120","$T$120"]
[25079,{"$f":"Menu!$F$29","v":"X"},{"$f":"Menu!$J$29","v":2020},{"$f":"IF(ISBLANK(INDIRECT(\"'\"&F5946&\"'!\"&G5946)),\"\",INDIRECT(\"'\"&F5946&\"'!\"&G5946))","v":""},{"$f":"IF(ISBLANK(INDIRECT(\"'\"&F5946&\"'!\"&H5946)),\"\",IFERROR(VLOOKUP(TEXT(INDIRECT(\"'\"&F5946&\"'!\"&H5946),\"0\"),Notes!$B$5:$C$100,2,FALSE),\"\"))","v":""},"2c","$W$120","$X$120"]
[25080,{"$f":"Menu!$F$29","v":"X"},{"$f":"Menu!$J$29","v":2020},{"$f":"IF(ISBLANK(INDIRECT(\"'\"&F5947&\"'!\"&G5947)),\"\",INDIRECT(\"'\"&F5947&\"'!\"&G5947))","v":""},{"$f":"IF(ISBLANK(INDIRECT(\"'\"&F5947&\"'!\"&H5947)),\"\",IFERROR(VLOOKUP(TEXT(INDIRECT(\"'\"&F5947&\"'!\"&H5947),\"0\"),Notes!$B$5:$C$100,2,FALSE),\"\"))","v":""},"2c","$AA$120","$AB$120"]
[25081,{"$f":"Menu!$F$29","v":"X"},{"$f":"Menu!$J$29","v":2020},{"$f":"IF(ISBLANK(INDIRECT(\"'\"&F5948&\"'!\"&G5948)),\"\",INDIRECT(\"'\"&F5948&\"'!\"&G5948))","v":""},{"$f":"IF(ISBLANK(INDIRECT(\"'\"&F5948&\"'!\"&H5948)),\"\",IFERROR(VLOOKUP(TEXT(INDIRECT(\"'\"&F5948&\"'!\"&H5948),\"0\"),Notes!$B$5:$C$100,2,FALSE),\"\"))","v":""},"2c","$Y$120","$Z$120"]
[25088,{"$f":"Menu!$F$29","v":"X"},{"$f":"Menu!$J$29","v":2020},{"$f":"IF(ISBLANK(INDIRECT(\"'\"&F5949&\"'!\"&G5949)),\"\",INDIRECT(\"'\"&F5949&\"'!\"&G5949))","v":""},{"$f":"IF(ISBLANK(INDIRECT(\"'\"&F5949&\"'!\"&H5949)),\"\",IFERROR(VLOOKUP(TEXT(INDIRECT(\"'\"&F5949&\"'!\"&H5949),\"0\"),Notes!$B$5:$C$100,2,FALSE),\"\"))","v":""},"2e","$BG$121","$BH$121"]
[25089,{"$f":"Menu!$F$29","v":"X"},{"$f":"Menu!$J$29","v":2020},{"$f":"IF(ISBLANK(INDIRECT(\"'\"&F5950&\"'!\"&G5950)),\"\",INDIRECT(\"'\"&F5950&\"'!\"&G5950))","v":""},{"$f":"IF(ISBLANK(INDIRECT(\"'\"&F5950&\"'!\"&H5950)),\"\",IFERROR(VLOOKUP(TEXT(INDIRECT(\"'\"&F5950&\"'!\"&H5950),\"0\"),Notes!$B$5:$C$100,2,FALSE),\"\"))","v":""},"2e","$BK$121","$BL$121"]
[25090,{"$f":"Menu!$F$29","v":"X"},{"$f":"Menu!$J$29","v":2020},{"$f":"IF(ISBLANK(INDIRECT(\"'\"&F5951&\"'!\"&G5951)),\"\",INDIRECT(\"'\"&F5951&\"'!\"&G5951))","v":""},{"$f":"IF(ISBLANK(INDIRECT(\"'\"&F5951&\"'!\"&H5951)),\"\",IFERROR(VLOOKUP(TEXT(INDIRECT(\"'\"&F5951&\"'!\"&H5951),\"0\"),Notes!$B$5:$C$100,2,FALSE),\"\"))","v":""},"2e","$BI$121","$BJ$121"]
[25091,{"$f":"Menu!$F$29","v":"X"},{"$f":"Menu!$J$29","v":2020},{"$f":"IF(ISBLANK(INDIRECT(\"'\"&F5952&\"'!\"&G5952)),\"\",INDIRECT(\"'\"&F5952&\"'!\"&G5952))","v":""},{"$f":"IF(ISBLANK(INDIRECT(\"'\"&F5952&\"'!\"&H5952)),\"\",IFERROR(VLOOKUP(TEXT(INDIRECT(\"'\"&F5952&\"'!\"&H5952),\"0\"),Notes!$B$5:$C$100,2,FALSE),\"\"))","v":""},"2e","$E$121","$F$121"]
[25092,{"$f":"Menu!$F$29","v":"X"},{"$f":"Menu!$J$29","v":2020},{"$f":"IF(ISBLANK(INDIRECT(\"'\"&F5953&\"'!\"&G5953)),\"\",INDIRECT(\"'\"&F5953&\"'!\"&G5953))","v":""},{"$f":"IF(ISBLANK(INDIRECT(\"'\"&F5953&\"'!\"&H5953)),\"\",IFERROR(VLOOKUP(TEXT(INDIRECT(\"'\"&F5953&\"'!\"&H5953),\"0\"),Notes!$B$5:$C$100,2,FALSE),\"\"))","v":""},"2e","$I$121","$J$121"]
[25093,{"$f":"Menu!$F$29","v":"X"},{"$f":"Menu!$J$29","v":2020},{"$f":"IF(ISBLANK(INDIRECT(\"'\"&F5954&\"'!\"&G5954)),\"\",INDIRECT(\"'\"&F5954&\"'!\"&G5954))","v":""},{"$f":"IF(ISBLANK(INDIRECT(\"'\"&F5954&\"'!\"&H5954)),\"\",IFERROR(VLOOKUP(TEXT(INDIRECT(\"'\"&F5954&\"'!\"&H5954),\"0\"),Notes!$B$5:$C$100,2,FALSE),\"\"))","v":""},"2e","$G$121",{"$f":"IF(LEN(TRIM(MID(G5954,4,10)))-LEN(SUBSTITUTE(TRIM(MID(G5954,4,10)),\"$\",\"\"))=0,\"$\"&CHAR(CODE(MID(G5954,2,1))+1)&\"$\"&TRIM(MID(G5954,4,10)),\"$\"&MID(G5954,2,1)&CHAR(CODE(MID(G5954,3,1))+1)&\"$\"&TRIM(MID(G5954,5,11)))","v":"$H$121"}]
[25094,{"$f":"Menu!$F$29","v":"X"},{"$f":"Menu!$J$29","v":2020},{"$f":"IF(ISBLANK(INDIRECT(\"'\"&F5955&\"'!\"&G5955)),\"\",INDIRECT(\"'\"&F5955&\"'!\"&G5955))","v":""},{"$f":"IF(ISBLANK(INDIRECT(\"'\"&F5955&\"'!\"&H5955)),\"\",IFERROR(VLOOKUP(TEXT(INDIRECT(\"'\"&F5955&\"'!\"&H5955),\"0\"),Notes!$B$5:$C$100,2,FALSE),\"\"))","v":""},"2e","$K$121","$L$121"]
[25095,{"$f":"Menu!$F$29","v":"X"},{"$f":"Menu!$J$29","v":2020},{"$f":"IF(ISBLANK(INDIRECT(\"'\"&F5956&\"'!\"&G5956)),\"\",INDIRECT(\"'\"&F5956&\"'!\"&G5956))","v":""},{"$f":"IF(ISBLANK(INDIRECT(\"'\"&F5956&\"'!\"&H5956)),\"\",IFERROR(VLOOKUP(TEXT(INDIRECT(\"'\"&F5956&\"'!\"&H5956),\"0\"),Notes!$B$5:$C$100,2,FALSE),\"\"))","v":""},"2e","$O$121","$P$121"]
[25096,{"$f":"Menu!$F$29","v":"X"},{"$f":"Menu!$J$29","v":2020},{"$f":"IF(ISBLANK(INDIRECT(\"'\"&F5957&\"'!\"&G5957)),\"\",INDIRECT(\"'\"&F5957&\"'!\"&G5957))","v":""},{"$f":"IF(ISBLANK(INDIRECT(\"'\"&F5957&\"'!\"&H5957)),\"\",IFERROR(VLOOKUP(TEXT(INDIRECT(\"'\"&F5957&\"'!\"&H5957),\"0\"),Notes!$B$5:$C$100,2,FALSE),\"\"))","v":""},"2e","$M$121","$N$121"]
[25097,{"$f":"Menu!$F$29","v":"X"},{"$f":"Menu!$J$29","v":2020},{"$f":"IF(ISBLANK(INDIRECT(\"'\"&F5958&\"'!\"&G5958)),\"\",INDIRECT(\"'\"&F5958&\"'!\"&G5958))","v":""},{"$f":"IF(ISBLANK(INDIRECT(\"'\"&F5958&\"'!\"&H5958)),\"\",IFERROR(VLOOKUP(TEXT(INDIRECT(\"'\"&F5958&\"'!\"&H5958),\"0\"),Notes!$B$5:$C$100,2,FALSE),\"\"))","v":""},"2e","$Q$121","$R$121"]
[25098,{"$f":"Menu!$F$29","v":"X"},{"$f":"Menu!$J$29","v":2020},{"$f":"IF(ISBLANK(INDIRECT(\"'\"&F5959&\"'!\"&G5959)),\"\",INDIRECT(\"'\"&F5959&\"'!\"&G5959))","v":""},{"$f":"IF(ISBLANK(INDIRECT(\"'\"&F5959&\"'!\"&H5959)),\"\",IFERROR(VLOOKUP(TEXT(INDIRECT(\"'\"&F5959&\"'!\"&H5959),\"0\"),Notes!$B$5:$C$100,2,FALSE),\"\"))","v":""},"2e","$U$121","$V$121"]
[25099,{"$f":"Menu!$F$29","v":"X"},{"$f":"Menu!$J$29","v":2020},{"$f":"IF(ISBLANK(INDIRECT(\"'\"&F5960&\"'!\"&G5960)),\"\",INDIRECT(\"'\"&F5960&\"'!\"&G5960))","v":""},{"$f":"IF(ISBLANK(INDIRECT(\"'\"&F5960&\"'!\"&H5960)),\"\",IFERROR(VLOOKUP(TEXT(INDIRECT(\"'\"&F5960&\"'!\"&H5960),\"0\"),Notes!$B$5:$C$100,2,FALSE),\"\"))","v":""},"2e","$S$121","$T$121"]
[25100,{"$f":"Menu!$F$29","v":"X"},{"$f":"Menu!$J$29","v":2020},{"$f":"IF(ISBLANK(INDIRECT(\"'\"&F5961&\"'!\"&G5961)),\"\",INDIRECT(\"'\"&F5961&\"'!\"&G5961))","v":""},{"$f":"IF(ISBLANK(INDIRECT(\"'\"&F5961&\"'!\"&H5961)),\"\",IFERROR(VLOOKUP(TEXT(INDIRECT(\"'\"&F5961&\"'!\"&H5961),\"0\"),Notes!$B$5:$C$100,2,FALSE),\"\"))","v":""},"2e","$W$121","$X$121"]
[25101,{"$f":"Menu!$F$29","v":"X"},{"$f":"Menu!$J$29","v":2020},{"$f":"IF(ISBLANK(INDIRECT(\"'\"&F5962&\"'!\"&G5962)),\"\",INDIRECT(\"'\"&F5962&\"'!\"&G5962))","v":""},{"$f":"IF(ISBLANK(INDIRECT(\"'\"&F5962&\"'!\"&H5962)),\"\",IFERROR(VLOOKUP(TEXT(INDIRECT(\"'\"&F5962&\"'!\"&H5962),\"0\"),Notes!$B$5:$C$100,2,FALSE),\"\"))","v":""},"2e","$AA$121","$AB$121"]
[25102,{"$f":"Menu!$F$29","v":"X"},{"$f":"Menu!$J$29","v":2020},{"$f":"IF(ISBLANK(INDIRECT(\"'\"&F5963&\"'!\"&G5963)),\"\",INDIRECT(\"'\"&F5963&\"'!\"&G5963))","v":""},{"$f":"IF(ISBLANK(INDIRECT(\"'\"&F5963&\"'!\"&H5963)),\"\",IFERROR(VLOOKUP(TEXT(INDIRECT(\"'\"&F5963&\"'!\"&H5963),\"0\"),Notes!$B$5:$C$100,2,FALSE),\"\"))","v":""},"2e","$Y$121","$Z$121"]
[25103,{"$f":"Menu!$F$29","v":"X"},{"$f":"Menu!$J$29","v":2020},{"$f":"IF(ISBLANK(INDIRECT(\"'\"&F5964&\"'!\"&G5964)),\"\",INDIRECT(\"'\"&F5964&\"'!\"&G5964))","v":""},{"$f":"IF(ISBLANK(INDIRECT(\"'\"&F5964&\"'!\"&H5964)),\"\",IFERROR(VLOOKUP(TEXT(INDIRECT(\"'\"&F5964&\"'!\"&H5964),\"0\"),Notes!$B$5:$C$100,2,FALSE),\"\"))","v":""},"2e","$AC$121","$AD$121"]
[25104,{"$f":"Menu!$F$29","v":"X"},{"$f":"Menu!$J$29","v":2020},{"$f":"IF(ISBLANK(INDIRECT(\"'\"&F5965&\"'!\"&G5965)),\"\",INDIRECT(\"'\"&F5965&\"'!\"&G5965))","v":""},{"$f":"IF(ISBLANK(INDIRECT(\"'\"&F5965&\"'!\"&H5965)),\"\",IFERROR(VLOOKUP(TEXT(INDIRECT(\"'\"&F5965&\"'!\"&H5965),\"0\"),Notes!$B$5:$C$100,2,FALSE),\"\"))","v":""},"2e","$AG$121","$AH$121"]
[25105,{"$f":"Menu!$F$29","v":"X"},{"$f":"Menu!$J$29","v":2020},{"$f":"IF(ISBLANK(INDIRECT(\"'\"&F5966&\"'!\"&G5966)),\"\",INDIRECT(\"'\"&F5966&\"'!\"&G5966))","v":""},{"$f":"IF(ISBLANK(INDIRECT(\"'\"&F5966&\"'!\"&H5966)),\"\",IFERROR(VLOOKUP(TEXT(INDIRECT(\"'\"&F5966&\"'!\"&H5966),\"0\"),Notes!$B$5:$C$100,2,FALSE),\"\"))","v":""},"2e","$AE$121","$AF$121"]
[25106,{"$f":"Menu!$F$29","v":"X"},{"$f":"Menu!$J$29","v":2020},{"$f":"IF(ISBLANK(INDIRECT(\"'\"&F5967&\"'!\"&G5967)),\"\",INDIRECT(\"'\"&F5967&\"'!\"&G5967))","v":""},{"$f":"IF(ISBLANK(INDIRECT(\"'\"&F5967&\"'!\"&H5967)),\"\",IFERROR(VLOOKUP(TEXT(INDIRECT(\"'\"&F5967&\"'!\"&H5967),\"0\"),Notes!$B$5:$C$100,2,FALSE),\"\"))","v":""},"2e","$AI$121","$AJ$121"]
[25107,{"$f":"Menu!$F$29","v":"X"},{"$f":"Menu!$J$29","v":2020},{"$f":"IF(ISBLANK(INDIRECT(\"'\"&F5968&\"'!\"&G5968)),\"\",INDIRECT(\"'\"&F5968&\"'!\"&G5968))","v":""},{"$f":"IF(ISBLANK(INDIRECT(\"'\"&F5968&\"'!\"&H5968)),\"\",IFERROR(VLOOKUP(TEXT(INDIRECT(\"'\"&F5968&\"'!\"&H5968),\"0\"),Notes!$B$5:$C$100,2,FALSE),\"\"))","v":""},"2e","$AM$121","$AN$121"]
[25108,{"$f":"Menu!$F$29","v":"X"},{"$f":"Menu!$J$29","v":2020},{"$f":"IF(ISBLANK(INDIRECT(\"'\"&F5969&\"'!\"&G5969)),\"\",INDIRECT(\"'\"&F5969&\"'!\"&G5969))","v":""},{"$f":"IF(ISBLANK(INDIRECT(\"'\"&F5969&\"'!\"&H5969)),\"\",IFERROR(VLOOKUP(TEXT(INDIRECT(\"'\"&F5969&\"'!\"&H5969),\"0\"),Notes!$B$5:$C$100,2,FALSE),\"\"))","v":""},"2e","$AK$121","$AL$121"]
[25109,{"$f":"Menu!$F$29","v":"X"},{"$f":"Menu!$J$29","v":2020},{"$f":"IF(ISBLANK(INDIRECT(\"'\"&F5970&\"'!\"&G5970)),\"\",INDIRECT(\"'\"&F5970&\"'!\"&G5970))","v":""},{"$f":"IF(ISBLANK(INDIRECT(\"'\"&F5970&\"'!\"&H5970)),\"\",IFERROR(VLOOKUP(TEXT(INDIRECT(\"'\"&F5970&\"'!\"&H5970),\"0\"),Notes!$B$5:$C$100,2,FALSE),\"\"))","v":""},"2e","$AO$121","$AP$121"]
[25110,{"$f":"Menu!$F$29","v":"X"},{"$f":"Menu!$J$29","v":2020},{"$f":"IF(ISBLANK(INDIRECT(\"'\"&F5971&\"'!\"&G5971)),\"\",INDIRECT(\"'\"&F5971&\"'!\"&G5971))","v":""},{"$f":"IF(ISBLANK(INDIRECT(\"'\"&F5971&\"'!\"&H5971)),\"\",IFERROR(VLOOKUP(TEXT(INDIRECT(\"'\"&F5971&\"'!\"&H5971),\"0\"),Notes!$B$5:$C$100,2,FALSE),\"\"))","v":""},"2e","$AS$121","$AT$121"]
[25111,{"$f":"Menu!$F$29","v":"X"},{"$f":"Menu!$J$29","v":2020},{"$f":"IF(ISBLANK(INDIRECT(\"'\"&F5972&\"'!\"&G5972)),\"\",INDIRECT(\"'\"&F5972&\"'!\"&G5972))","v":""},{"$f":"IF(ISBLANK(INDIRECT(\"'\"&F5972&\"'!\"&H5972)),\"\",IFERROR(VLOOKUP(TEXT(INDIRECT(\"'\"&F5972&\"'!\"&H5972),\"0\"),Notes!$B$5:$C$100,2,FALSE),\"\"))","v":""},"2e","$AQ$121","$AR$121"]
[25112,{"$f":"Menu!$F$29","v":"X"},{"$f":"Menu!$J$29","v":2020},{"$f":"IF(ISBLANK(INDIRECT(\"'\"&F5973&\"'!\"&G5973)),\"\",INDIRECT(\"'\"&F5973&\"'!\"&G5973))","v":""},{"$f":"IF(ISBLANK(INDIRECT(\"'\"&F5973&\"'!\"&H5973)),\"\",IFERROR(VLOOKUP(TEXT(INDIRECT(\"'\"&F5973&\"'!\"&H5973),\"0\"),Notes!$B$5:$C$100,2,FALSE),\"\"))","v":""},"2e","$AU$121","$AV$121"]
[25113,{"$f":"Menu!$F$29","v":"X"},{"$f":"Menu!$J$29","v":2020},{"$f":"IF(ISBLANK(INDIRECT(\"'\"&F5974&\"'!\"&G5974)),\"\",INDIRECT(\"'\"&F5974&\"'!\"&G5974))","v":""},{"$f":"IF(ISBLANK(INDIRECT(\"'\"&F5974&\"'!\"&H5974)),\"\",IFERROR(VLOOKUP(TEXT(INDIRECT(\"'\"&F5974&\"'!\"&H5974),\"0\"),Notes!$B$5:$C$100,2,FALSE),\"\"))","v":""},"2e","$AY$121","$AZ$121"]
[25114,{"$f":"Menu!$F$29","v":"X"},{"$f":"Menu!$J$29","v":2020},{"$f":"IF(ISBLANK(INDIRECT(\"'\"&F5975&\"'!\"&G5975)),\"\",INDIRECT(\"'\"&F5975&\"'!\"&G5975))","v":""},{"$f":"IF(ISBLANK(INDIRECT(\"'\"&F5975&\"'!\"&H5975)),\"\",IFERROR(VLOOKUP(TEXT(INDIRECT(\"'\"&F5975&\"'!\"&H5975),\"0\"),Notes!$B$5:$C$100,2,FALSE),\"\"))","v":""},"2e","$AW$121","$AX$121"]
[25115,{"$f":"Menu!$F$29","v":"X"},{"$f":"Menu!$J$29","v":2020},{"$f":"IF(ISBLANK(INDIRECT(\"'\"&F5976&\"'!\"&G5976)),\"\",INDIRECT(\"'\"&F5976&\"'!\"&G5976))","v":""},{"$f":"IF(ISBLANK(INDIRECT(\"'\"&F5976&\"'!\"&H5976)),\"\",IFERROR(VLOOKUP(TEXT(INDIRECT(\"'\"&F5976&\"'!\"&H5976),\"0\"),Notes!$B$5:$C$100,2,FALSE),\"\"))","v":""},"2e","$BA$121","$BB$121"]
[25116,{"$f":"Menu!$F$29","v":"X"},{"$f":"Menu!$J$29","v":2020},{"$f":"IF(ISBLANK(INDIRECT(\"'\"&F5977&\"'!\"&G5977)),\"\",INDIRECT(\"'\"&F5977&\"'!\"&G5977))","v":""},{"$f":"IF(ISBLANK(INDIRECT(\"'\"&F5977&\"'!\"&H5977)),\"\",IFERROR(VLOOKUP(TEXT(INDIRECT(\"'\"&F5977&\"'!\"&H5977),\"0\"),Notes!$B$5:$C$100,2,FALSE),\"\"))","v":""},"2e","$BE$121","$BF$121"]
[25117,{"$f":"Menu!$F$29","v":"X"},{"$f":"Menu!$J$29","v":2020},{"$f":"IF(ISBLANK(INDIRECT(\"'\"&F5978&\"'!\"&G5978)),\"\",INDIRECT(\"'\"&F5978&\"'!\"&G5978))","v":""},{"$f":"IF(ISBLANK(INDIRECT(\"'\"&F5978&\"'!\"&H5978)),\"\",IFERROR(VLOOKUP(TEXT(INDIRECT(\"'\"&F5978&\"'!\"&H5978),\"0\"),Notes!$B$5:$C$100,2,FALSE),\"\"))","v":""},"2e","$BC$121","$BD$121"]
[25118,{"$f":"Menu!$F$29","v":"X"},{"$f":"Menu!$J$29","v":2020},{"$f":"IF(ISBLANK(INDIRECT(\"'\"&F5979&\"'!\"&G5979)),\"\",INDIRECT(\"'\"&F5979&\"'!\"&G5979))","v":""},{"$f":"IF(ISBLANK(INDIRECT(\"'\"&F5979&\"'!\"&H5979)),\"\",IFERROR(VLOOKUP(TEXT(INDIRECT(\"'\"&F5979&\"'!\"&H5979),\"0\"),Notes!$B$5:$C$100,2,FALSE),\"\"))","v":""},"2b","$E$120","$F$120"]
[25119,{"$f":"Menu!$F$29","v":"X"},{"$f":"Menu!$J$29","v":2020},{"$f":"IF(ISBLANK(INDIRECT(\"'\"&F5980&\"'!\"&G5980)),\"\",INDIRECT(\"'\"&F5980&\"'!\"&G5980))","v":""},{"$f":"IF(ISBLANK(INDIRECT(\"'\"&F5980&\"'!\"&H5980)),\"\",IFERROR(VLOOKUP(TEXT(INDIRECT(\"'\"&F5980&\"'!\"&H5980),\"0\"),Notes!$B$5:$C$100,2,FALSE),\"\"))","v":""},"2b","$I$120","$J$120"]
[25120,{"$f":"Menu!$F$29","v":"X"},{"$f":"Menu!$J$29","v":2020},{"$f":"IF(ISBLANK(INDIRECT(\"'\"&F5981&\"'!\"&G5981)),\"\",INDIRECT(\"'\"&F5981&\"'!\"&G5981))","v":""},{"$f":"IF(ISBLANK(INDIRECT(\"'\"&F5981&\"'!\"&H5981)),\"\",IFERROR(VLOOKUP(TEXT(INDIRECT(\"'\"&F5981&\"'!\"&H5981),\"0\"),Notes!$B$5:$C$100,2,FALSE),\"\"))","v":""},"2b","$G$120","$H$120"]
[25121,{"$f":"Menu!$F$29","v":"X"},{"$f":"Menu!$J$29","v":2020},{"$f":"IF(ISBLANK(INDIRECT(\"'\"&F5982&\"'!\"&G5982)),\"\",INDIRECT(\"'\"&F5982&\"'!\"&G5982))","v":""},{"$f":"IF(ISBLANK(INDIRECT(\"'\"&F5982&\"'!\"&H5982)),\"\",IFERROR(VLOOKUP(TEXT(INDIRECT(\"'\"&F5982&\"'!\"&H5982),\"0\"),Notes!$B$5:$C$100,2,FALSE),\"\"))","v":""},"2a","$G$120","$H$120"]
[25122,{"$f":"Menu!$F$29","v":"X"},{"$f":"Menu!$J$29","v":2020},{"$f":"IF(ISBLANK(INDIRECT(\"'\"&F5983&\"'!\"&G5983)),\"\",INDIRECT(\"'\"&F5983&\"'!\"&G5983))","v":""},{"$f":"IF(ISBLANK(INDIRECT(\"'\"&F5983&\"'!\"&H5983)),\"\",IFERROR(VLOOKUP(TEXT(INDIRECT(\"'\"&F5983&\"'!\"&H5983),\"0\"),Notes!$B$5:$C$100,2,FALSE),\"\"))","v":""},"2b","$W$120","$X$120"]
[25123,{"$f":"Menu!$F$29","v":"X"},{"$f":"Menu!$J$29","v":2020},{"$f":"IF(ISBLANK(INDIRECT(\"'\"&F5984&\"'!\"&G5984)),\"\",INDIRECT(\"'\"&F5984&\"'!\"&G5984))","v":""},{"$f":"IF(ISBLANK(INDIRECT(\"'\"&F5984&\"'!\"&H5984)),\"\",IFERROR(VLOOKUP(TEXT(INDIRECT(\"'\"&F5984&\"'!\"&H5984),\"0\"),Notes!$B$5:$C$100,2,FALSE),\"\"))","v":""},"2b","$AA$120","$AB$120"]
[25124,{"$f":"Menu!$F$29","v":"X"},{"$f":"Menu!$J$29","v":2020},{"$f":"IF(ISBLANK(INDIRECT(\"'\"&F5985&\"'!\"&G5985)),\"\",INDIRECT(\"'\"&F5985&\"'!\"&G5985))","v":""},{"$f":"IF(ISBLANK(INDIRECT(\"'\"&F5985&\"'!\"&H5985)),\"\",IFERROR(VLOOKUP(TEXT(INDIRECT(\"'\"&F5985&\"'!\"&H5985),\"0\"),Notes!$B$5:$C$100,2,FALSE),\"\"))","v":""},"2b","$Y$120","$Z$120"]
[25125,{"$f":"Menu!$F$29","v":"X"},{"$f":"Menu!$J$29","v":2020},{"$f":"IF(ISBLANK(INDIRECT(\"'\"&F5986&\"'!\"&G5986)),\"\",INDIRECT(\"'\"&F5986&\"'!\"&G5986))","v":""},{"$f":"IF(ISBLANK(INDIRECT(\"'\"&F5986&\"'!\"&H5986)),\"\",IFERROR(VLOOKUP(TEXT(INDIRECT(\"'\"&F5986&\"'!\"&H5986),\"0\"),Notes!$B$5:$C$100,2,FALSE),\"\"))","v":""},"2d","$AC$120","$AD$120"]
[25126,{"$f":"Menu!$F$29","v":"X"},{"$f":"Menu!$J$29","v":2020},{"$f":"IF(ISBLANK(INDIRECT(\"'\"&F5987&\"'!\"&G5987)),\"\",INDIRECT(\"'\"&F5987&\"'!\"&G5987))","v":""},{"$f":"IF(ISBLANK(INDIRECT(\"'\"&F5987&\"'!\"&H5987)),\"\",IFERROR(VLOOKUP(TEXT(INDIRECT(\"'\"&F5987&\"'!\"&H5987),\"0\"),Notes!$B$5:$C$100,2,FALSE),\"\"))","v":""},"2d","$AG$120","$AH$120"]
[25127,{"$f":"Menu!$F$29","v":"X"},{"$f":"Menu!$J$29","v":2020},{"$f":"IF(ISBLANK(INDIRECT(\"'\"&F5988&\"'!\"&G5988)),\"\",INDIRECT(\"'\"&F5988&\"'!\"&G5988))","v":""},{"$f":"IF(ISBLANK(INDIRECT(\"'\"&F5988&\"'!\"&H5988)),\"\",IFERROR(VLOOKUP(TEXT(INDIRECT(\"'\"&F5988&\"'!\"&H5988),\"0\"),Notes!$B$5:$C$100,2,FALSE),\"\"))","v":""},"2d","$AE$120","$AF$120"]
[25128,{"$f":"Menu!$F$29","v":"X"},{"$f":"Menu!$J$29","v":2020},{"$f":"IF(ISBLANK(INDIRECT(\"'\"&F5989&\"'!\"&G5989)),\"\",INDIRECT(\"'\"&F5989&\"'!\"&G5989))","v":""},{"$f":"IF(ISBLANK(INDIRECT(\"'\"&F5989&\"'!\"&H5989)),\"\",IFERROR(VLOOKUP(TEXT(INDIRECT(\"'\"&F5989&\"'!\"&H5989),\"0\"),Notes!$B$5:$C$100,2,FALSE),\"\"))","v":""},"2d","$W$120","$X$120"]
[25129,{"$f":"Menu!$F$29","v":"X"},{"$f":"Menu!$J$29","v":2020},{"$f":"IF(ISBLANK(INDIRECT(\"'\"&F5990&\"'!\"&G5990)),\"\",INDIRECT(\"'\"&F5990&\"'!\"&G5990))","v":""},{"$f":"IF(ISBLANK(INDIRECT(\"'\"&F5990&\"'!\"&H5990)),\"\",IFERROR(VLOOKUP(TEXT(INDIRECT(\"'\"&F5990&\"'!\"&H5990),\"0\"),Notes!$B$5:$C$100,2,FALSE),\"\"))","v":""},"2d","$AA$120","$AB$120"]
[25130,{"$f":"Menu!$F$29","v":"X"},{"$f":"Menu!$J$29","v":2020},{"$f":"IF(ISBLANK(INDIRECT(\"'\"&F5991&\"'!\"&G5991)),\"\",INDIRECT(\"'\"&F5991&\"'!\"&G5991))","v":""},{"$f":"IF(ISBLANK(INDIRECT(\"'\"&F5991&\"'!\"&H5991)),\"\",IFERROR(VLOOKUP(TEXT(INDIRECT(\"'\"&F5991&\"'!\"&H5991),\"0\"),Notes!$B$5:$C$100,2,FALSE),\"\"))","v":""},"2d","$Y$120","$Z$120"]
[25131,{"$f":"Menu!$F$29","v":"X"},{"$f":"Menu!$J$29","v":2020},{"$f":"IF(ISBLANK(INDIRECT(\"'\"&F5992&\"'!\"&G5992)),\"\",INDIRECT(\"'\"&F5992&\"'!\"&G5992))","v":""},{"$f":"IF(ISBLANK(INDIRECT(\"'\"&F5992&\"'!\"&H5992)),\"\",IFERROR(VLOOKUP(TEXT(INDIRECT(\"'\"&F5992&\"'!\"&H5992),\"0\"),Notes!$B$5:$C$100,2,FALSE),\"\"))","v":""},"2d","$E$120","$F$120"]
[25132,{"$f":"Menu!$F$29","v":"X"},{"$f":"Menu!$J$29","v":2020},{"$f":"IF(ISBLANK(INDIRECT(\"'\"&F5993&\"'!\"&G5993)),\"\",INDIRECT(\"'\"&F5993&\"'!\"&G5993))","v":""},{"$f":"IF(ISBLANK(INDIRECT(\"'\"&F5993&\"'!\"&H5993)),\"\",IFERROR(VLOOKUP(TEXT(INDIRECT(\"'\"&F5993&\"'!\"&H5993),\"0\"),Notes!$B$5:$C$100,2,FALSE),\"\"))","v":""},"2d","$I$120","$J$120"]
[25133,{"$f":"Menu!$F$29","v":"X"},{"$f":"Menu!$J$29","v":2020},{"$f":"IF(ISBLANK(INDIRECT(\"'\"&F5994&\"'!\"&G5994)),\"\",INDIRECT(\"'\"&F5994&\"'!\"&G5994))","v":""},{"$f":"IF(ISBLANK(INDIRECT(\"'\"&F5994&\"'!\"&H5994)),\"\",IFERROR(VLOOKUP(TEXT(INDIRECT(\"'\"&F5994&\"'!\"&H5994),\"0\"),Notes!$B$5:$C$100,2,FALSE),\"\"))","v":""},"2d","$G$120","$H$120"]
[25134,{"$f":"Menu!$F$29","v":"X"},{"$f":"Menu!$J$29","v":2020},{"$f":"IF(ISBLANK(INDIRECT(\"'\"&F5995&\"'!\"&G5995)),\"\",INDIRECT(\"'\"&F5995&\"'!\"&G5995))","v":""},{"$f":"IF(ISBLANK(INDIRECT(\"'\"&F5995&\"'!\"&H5995)),\"\",IFERROR(VLOOKUP(TEXT(INDIRECT(\"'\"&F5995&\"'!\"&H5995),\"0\"),Notes!$B$5:$C$100,2,FALSE),\"\"))","v":""},"2a","$Q$120","$R$120"]
[25135,{"$f":"Menu!$F$29","v":"X"},{"$f":"Menu!$J$29","v":2020},{"$f":"IF(ISBLANK(INDIRECT(\"'\"&F5996&\"'!\"&G5996)),\"\",INDIRECT(\"'\"&F5996&\"'!\"&G5996))","v":""},{"$f":"IF(ISBLANK(INDIRECT(\"'\"&F5996&\"'!\"&H5996)),\"\",IFERROR(VLOOKUP(TEXT(INDIRECT(\"'\"&F5996&\"'!\"&H5996),\"0\"),Notes!$B$5:$C$100,2,FALSE),\"\"))","v":""},"2a","$U$120","$V$120"]
[25136,{"$f":"Menu!$F$29","v":"X"},{"$f":"Menu!$J$29","v":2020},{"$f":"IF(ISBLANK(INDIRECT(\"'\"&F5997&\"'!\"&G5997)),\"\",INDIRECT(\"'\"&F5997&\"'!\"&G5997))","v":""},{"$f":"IF(ISBLANK(INDIRECT(\"'\"&F5997&\"'!\"&H5997)),\"\",IFERROR(VLOOKUP(TEXT(INDIRECT(\"'\"&F5997&\"'!\"&H5997),\"0\"),Notes!$B$5:$C$100,2,FALSE),\"\"))","v":""},"2a","$S$120","$T$120"]
[25137,{"$f":"Menu!$F$29","v":"X"},{"$f":"Menu!$J$29","v":2020},{"$f":"IF(ISBLANK(INDIRECT(\"'\"&F5998&\"'!\"&G5998)),\"\",INDIRECT(\"'\"&F5998&\"'!\"&G5998))","v":""},{"$f":"IF(ISBLANK(INDIRECT(\"'\"&F5998&\"'!\"&H5998)),\"\",IFERROR(VLOOKUP(TEXT(INDIRECT(\"'\"&F5998&\"'!\"&H5998),\"0\"),Notes!$B$5:$C$100,2,FALSE),\"\"))","v":""},"2d","$K$120","$L$120"]
[25138,{"$f":"Menu!$F$29","v":"X"},{"$f":"Menu!$J$29","v":2020},{"$f":"IF(ISBLANK(INDIRECT(\"'\"&F5999&\"'!\"&G5999)),\"\",INDIRECT(\"'\"&F5999&\"'!\"&G5999))","v":""},{"$f":"IF(ISBLANK(INDIRECT(\"'\"&F5999&\"'!\"&H5999)),\"\",IFERROR(VLOOKUP(TEXT(INDIRECT(\"'\"&F5999&\"'!\"&H5999),\"0\"),Notes!$B$5:$C$100,2,FALSE),\"\"))","v":""},"2d","$O$120","$P$120"]
[25139,{"$f":"Menu!$F$29","v":"X"},{"$f":"Menu!$J$29","v":2020},{"$f":"IF(ISBLANK(INDIRECT(\"'\"&F6000&\"'!\"&G6000)),\"\",INDIRECT(\"'\"&F6000&\"'!\"&G6000))","v":""},{"$f":"IF(ISBLANK(INDIRECT(\"'\"&F6000&\"'!\"&H6000)),\"\",IFERROR(VLOOKUP(TEXT(INDIRECT(\"'\"&F6000&\"'!\"&H6000),\"0\"),Notes!$B$5:$C$100,2,FALSE),\"\"))","v":""},"2d","$M$120","$N$120"]
[25140,{"$f":"Menu!$F$29","v":"X"},{"$f":"Menu!$J$29","v":2020},{"$f":"IF(ISBLANK(INDIRECT(\"'\"&F6001&\"'!\"&G6001)),\"\",INDIRECT(\"'\"&F6001&\"'!\"&G6001))","v":""},{"$f":"IF(ISBLANK(INDIRECT(\"'\"&F6001&\"'!\"&H6001)),\"\",IFERROR(VLOOKUP(TEXT(INDIRECT(\"'\"&F6001&\"'!\"&H6001),\"0\"),Notes!$B$5:$C$100,2,FALSE),\"\"))","v":""},"2d","$Q$120","$R$120"]
[25141,{"$f":"Menu!$F$29","v":"X"},{"$f":"Menu!$J$29","v":2020},{"$f":"IF(ISBLANK(INDIRECT(\"'\"&F6002&\"'!\"&G6002)),\"\",INDIRECT(\"'\"&F6002&\"'!\"&G6002))","v":""},{"$f":"IF(ISBLANK(INDIRECT(\"'\"&F6002&\"'!\"&H6002)),\"\",IFERROR(VLOOKUP(TEXT(INDIRECT(\"'\"&F6002&\"'!\"&H6002),\"0\"),Notes!$B$5:$C$100,2,FALSE),\"\"))","v":""},"2d","$U$120","$V$120"]
[25142,{"$f":"Menu!$F$29","v":"X"},{"$f":"Menu!$J$29","v":2020},{"$f":"IF(ISBLANK(INDIRECT(\"'\"&F6003&\"'!\"&G6003)),\"\",INDIRECT(\"'\"&F6003&\"'!\"&G6003))","v":""},{"$f":"IF(ISBLANK(INDIRECT(\"'\"&F6003&\"'!\"&H6003)),\"\",IFERROR(VLOOKUP(TEXT(INDIRECT(\"'\"&F6003&\"'!\"&H6003),\"0\"),Notes!$B$5:$C$100,2,FALSE),\"\"))","v":""},"2d","$S$120","$T$120"]
[25143,{"$f":"Menu!$F$29","v":"X"},{"$f":"Menu!$J$29","v":2020},{"$f":"IF(ISBLANK(INDIRECT(\"'\"&F6004&\"'!\"&G6004)),\"\",INDIRECT(\"'\"&F6004&\"'!\"&G6004))","v":""},{"$f":"IF(ISBLANK(INDIRECT(\"'\"&F6004&\"'!\"&H6004)),\"\",IFERROR(VLOOKUP(TEXT(INDIRECT(\"'\"&F6004&\"'!\"&H6004),\"0\"),Notes!$B$5:$C$100,2,FALSE),\"\"))","v":""},"2a","$K$120","$L$120"]
[25144,{"$f":"Menu!$F$29","v":"X"},{"$f":"Menu!$J$29","v":2020},{"$f":"IF(ISBLANK(INDIRECT(\"'\"&F6005&\"'!\"&G6005)),\"\",INDIRECT(\"'\"&F6005&\"'!\"&G6005))","v":""},{"$f":"IF(ISBLANK(INDIRECT(\"'\"&F6005&\"'!\"&H6005)),\"\",IFERROR(VLOOKUP(TEXT(INDIRECT(\"'\"&F6005&\"'!\"&H6005),\"0\"),Notes!$B$5:$C$100,2,FALSE),\"\"))","v":""},"2a","$O$120","$P$120"]
[25145,{"$f":"Menu!$F$29","v":"X"},{"$f":"Menu!$J$29","v":2020},{"$f":"IF(ISBLANK(INDIRECT(\"'\"&F6006&\"'!\"&G6006)),\"\",INDIRECT(\"'\"&F6006&\"'!\"&G6006))","v":""},{"$f":"IF(ISBLANK(INDIRECT(\"'\"&F6006&\"'!\"&H6006)),\"\",IFERROR(VLOOKUP(TEXT(INDIRECT(\"'\"&F6006&\"'!\"&H6006),\"0\"),Notes!$B$5:$C$100,2,FALSE),\"\"))","v":""},"2a","$M$120","$N$120"]
[25146,{"$f":"Menu!$F$29","v":"X"},{"$f":"Menu!$J$29","v":2020},{"$f":"IF(ISBLANK(INDIRECT(\"'\"&F6007&\"'!\"&G6007)),\"\",INDIRECT(\"'\"&F6007&\"'!\"&G6007))","v":""},null,"2a","$E$120","$F$120"]
[25147,{"$f":"Menu!$F$29","v":"X"},{"$f":"Menu!$J$29","v":2020},{"$f":"IF(ISBLANK(INDIRECT(\"'\"&F6008&\"'!\"&G6008)),\"\",INDIRECT(\"'\"&F6008&\"'!\"&G6008))","v":""},{"$f":"IF(ISBLANK(INDIRECT(\"'\"&F6008&\"'!\"&H6008)),\"\",IFERROR(VLOOKUP(TEXT(INDIRECT(\"'\"&F6008&\"'!\"&H6008),\"0\"),Notes!$B$5:$C$100,2,FALSE),\"\"))","v":""},"2b","$K$121","$L$121"]
[25148,{"$f":"Menu!$F$29","v":"X"},{"$f":"Menu!$J$29","v":2020},{"$f":"IF(ISBLANK(INDIRECT(\"'\"&F6009&\"'!\"&G6009)),\"\",INDIRECT(\"'\"&F6009&\"'!\"&G6009))","v":""},{"$f":"IF(ISBLANK(INDIRECT(\"'\"&F6009&\"'!\"&H6009)),\"\",IFERROR(VLOOKUP(TEXT(INDIRECT(\"'\"&F6009&\"'!\"&H6009),\"0\"),Notes!$B$5:$C$100,2,FALSE),\"\"))","v":""},"2b","$O$121","$P$121"]
[25149,{"$f":"Menu!$F$29","v":"X"},{"$f":"Menu!$J$29","v":2020},{"$f":"IF(ISBLANK(INDIRECT(\"'\"&F6010&\"'!\"&G6010)),\"\",INDIRECT(\"'\"&F6010&\"'!\"&G6010))","v":""},{"$f":"IF(ISBLANK(INDIRECT(\"'\"&F6010&\"'!\"&H6010)),\"\",IFERROR(VLOOKUP(TEXT(INDIRECT(\"'\"&F6010&\"'!\"&H6010),\"0\"),Notes!$B$5:$C$100,2,FALSE),\"\"))","v":""},"2b","$M$121","$N$121"]
[25150,{"$f":"Menu!$F$29","v":"X"},{"$f":"Menu!$J$29","v":2020},{"$f":"IF(ISBLANK(INDIRECT(\"'\"&F6011&\"'!\"&G6011)),\"\",INDIRECT(\"'\"&F6011&\"'!\"&G6011))","v":""},{"$f":"IF(ISBLANK(INDIRECT(\"'\"&F6011&\"'!\"&H6011)),\"\",IFERROR(VLOOKUP(TEXT(INDIRECT(\"'\"&F6011&\"'!\"&H6011),\"0\"),Notes!$B$5:$C$100,2,FALSE),\"\"))","v":""},"2b","$Q$121","$R$121"]
[25151,{"$f":"Menu!$F$29","v":"X"},{"$f":"Menu!$J$29","v":2020},{"$f":"IF(ISBLANK(INDIRECT(\"'\"&F6012&\"'!\"&G6012)),\"\",INDIRECT(\"'\"&F6012&\"'!\"&G6012))","v":""},{"$f":"IF(ISBLANK(INDIRECT(\"'\"&F6012&\"'!\"&H6012)),\"\",IFERROR(VLOOKUP(TEXT(INDIRECT(\"'\"&F6012&\"'!\"&H6012),\"0\"),Notes!$B$5:$C$100,2,FALSE),\"\"))","v":""},"2b","$U$121","$V$121"]
[25152,{"$f":"Menu!$F$29","v":"X"},{"$f":"Menu!$J$29","v":2020},{"$f":"IF(ISBLANK(INDIRECT(\"'\"&F6013&\"'!\"&G6013)),\"\",INDIRECT(\"'\"&F6013&\"'!\"&G6013))","v":""},{"$f":"IF(ISBLANK(INDIRECT(\"'\"&F6013&\"'!\"&H6013)),\"\",IFERROR(VLOOKUP(TEXT(INDIRECT(\"'\"&F6013&\"'!\"&H6013),\"0\"),Notes!$B$5:$C$100,2,FALSE),\"\"))","v":""},"2b","$S$121","$T$121"]
[25156,{"$f":"Menu!$F$29","v":"X"},{"$f":"Menu!$J$29","v":2020},{"$f":"IF(ISBLANK(INDIRECT(\"'\"&F6014&\"'!\"&G6014)),\"\",INDIRECT(\"'\"&F6014&\"'!\"&G6014))","v":""},{"$f":"IF(ISBLANK(INDIRECT(\"'\"&F6014&\"'!\"&H6014)),\"\",IFERROR(VLOOKUP(TEXT(INDIRECT(\"'\"&F6014&\"'!\"&H6014),\"0\"),Notes!$B$5:$C$100,2,FALSE),\"\"))","v":""},"2a","$I$121","$J$121"]
[25157,{"$f":"Menu!$F$29","v":"X"},{"$f":"Menu!$J$29","v":2020},{"$f":"IF(ISBLANK(INDIRECT(\"'\"&F6015&\"'!\"&G6015)),\"\",INDIRECT(\"'\"&F6015&\"'!\"&G6015))","v":""},{"$f":"IF(ISBLANK(INDIRECT(\"'\"&F6015&\"'!\"&H6015)),\"\",IFERROR(VLOOKUP(TEXT(INDIRECT(\"'\"&F6015&\"'!\"&H6015),\"0\"),Notes!$B$5:$C$100,2,FALSE),\"\"))","v":""},"2c","$E$121","$F$121"]
[25158,{"$f":"Menu!$F$29","v":"X"},{"$f":"Menu!$J$29","v":2020},{"$f":"IF(ISBLANK(INDIRECT(\"'\"&F6016&\"'!\"&G6016)),\"\",INDIRECT(\"'\"&F6016&\"'!\"&G6016))","v":""},{"$f":"IF(ISBLANK(INDIRECT(\"'\"&F6016&\"'!\"&H6016)),\"\",IFERROR(VLOOKUP(TEXT(INDIRECT(\"'\"&F6016&\"'!\"&H6016),\"0\"),Notes!$B$5:$C$100,2,FALSE),\"\"))","v":""},"2c","$I$121","$J$121"]
[25159,{"$f":"Menu!$F$29","v":"X"},{"$f":"Menu!$J$29","v":2020},{"$f":"IF(ISBLANK(INDIRECT(\"'\"&F6017&\"'!\"&G6017)),\"\",INDIRECT(\"'\"&F6017&\"'!\"&G6017))","v":""},{"$f":"IF(ISBLANK(INDIRECT(\"'\"&F6017&\"'!\"&H6017)),\"\",IFERROR(VLOOKUP(TEXT(INDIRECT(\"'\"&F6017&\"'!\"&H6017),\"0\"),Notes!$B$5:$C$100,2,FALSE),\"\"))","v":""},"2c","$G$121","$H$121"]
[25163,{"$f":"Menu!$F$29","v":"X"},{"$f":"Menu!$J$29","v":2020},{"$f":"IF(ISBLANK(INDIRECT(\"'\"&F6018&\"'!\"&G6018)),\"\",INDIRECT(\"'\"&F6018&\"'!\"&G6018))","v":""},{"$f":"IF(ISBLANK(INDIRECT(\"'\"&F6018&\"'!\"&H6018)),\"\",IFERROR(VLOOKUP(TEXT(INDIRECT(\"'\"&F6018&\"'!\"&H6018),\"0\"),Notes!$B$5:$C$100,2,FALSE),\"\"))","v":""},"2c","$K$121",{"$f":"IF(LEN(TRIM(MID(G6018,4,10)))-LEN(SUBSTITUTE(TRIM(MID(G6018,4,10)),\"$\",\"\"))=0,\"$\"&CHAR(CODE(MID(G6018,2,1))+1)&\"$\"&TRIM(MID(G6018,4,10)),\"$\"&MID(G6018,2,1)&CHAR(CODE(MID(G6018,3,1))+1)&\"$\"&TRIM(MID(G6018,5,11)))","v":"$L$121"}]
[25164,{"$f":"Menu!$F$29","v":"X"},{"$f":"Menu!$J$29","v":2020},{"$f":"IF(ISBLANK(INDIRECT(\"'\"&F6019&\"'!\"&G6019)),\"\",INDIRECT(\"'\"&F6019&\"'!\"&G6019))","v":""},{"$f":"IF(ISBLANK(INDIRECT(\"'\"&F6019&\"'!\"&H6019)),\"\",IFERROR(VLOOKUP(TEXT(INDIRECT(\"'\"&F6019&\"'!\"&H6019),\"0\"),Notes!$B$5:$C$100,2,FALSE),\"\"))","v":""},"2c","$O$121","$P$121"]
[25165,{"$f":"Menu!$F$29","v":"X"},{"$f":"Menu!$J$29","v":2020},{"$f":"IF(ISBLANK(INDIRECT(\"'\"&F6020&\"'!\"&G6020)),\"\",INDIRECT(\"'\"&F6020&\"'!\"&G6020))","v":""},{"$f":"IF(ISBLANK(INDIRECT(\"'\"&F6020&\"'!\"&H6020)),\"\",IFERROR(VLOOKUP(TEXT(INDIRECT(\"'\"&F6020&\"'!\"&H6020),\"0\"),Notes!$B$5:$C$100,2,FALSE),\"\"))","v":""},"2c","$M$121","$N$121"]
[25166,{"$f":"Menu!$F$29","v":"X"},{"$f":"Menu!$J$29","v":2020},{"$f":"IF(ISBLANK(INDIRECT(\"'\"&F6021&\"'!\"&G6021)),\"\",INDIRECT(\"'\"&F6021&\"'!\"&G6021))","v":""},{"$f":"IF(ISBLANK(INDIRECT(\"'\"&F6021&\"'!\"&H6021)),\"\",IFERROR(VLOOKUP(TEXT(INDIRECT(\"'\"&F6021&\"'!\"&H6021),\"0\"),Notes!$B$5:$C$100,2,FALSE),\"\"))","v":""},"2c","$Q$121","$R$121"]
[25167,{"$f":"Menu!$F$29","v":"X"},{"$f":"Menu!$J$29","v":2020},{"$f":"IF(ISBLANK(INDIRECT(\"'\"&F6022&\"'!\"&G6022)),\"\",INDIRECT(\"'\"&F6022&\"'!\"&G6022))","v":""},{"$f":"IF(ISBLANK(INDIRECT(\"'\"&F6022&\"'!\"&H6022)),\"\",IFERROR(VLOOKUP(TEXT(INDIRECT(\"'\"&F6022&\"'!\"&H6022),\"0\"),Notes!$B$5:$C$100,2,FALSE),\"\"))","v":""},"2c","$U$121","$V$121"]
[25168,{"$f":"Menu!$F$29","v":"X"},{"$f":"Menu!$J$29","v":2020},{"$f":"IF(ISBLANK(INDIRECT(\"'\"&F6023&\"'!\"&G6023)),\"\",INDIRECT(\"'\"&F6023&\"'!\"&G6023))","v":""},{"$f":"IF(ISBLANK(INDIRECT(\"'\"&F6023&\"'!\"&H6023)),\"\",IFERROR(VLOOKUP(TEXT(INDIRECT(\"'\"&F6023&\"'!\"&H6023),\"0\"),Notes!$B$5:$C$100,2,FALSE),\"\"))","v":""},"2c","$S$121","$T$121"]
[25169,{"$f":"Menu!$F$29","v":"X"},{"$f":"Menu!$J$29","v":2020},{"$f":"IF(ISBLANK(INDIRECT(\"'\"&F6024&\"'!\"&G6024)),\"\",INDIRECT(\"'\"&F6024&\"'!\"&G6024))","v":""},{"$f":"IF(ISBLANK(INDIRECT(\"'\"&F6024&\"'!\"&H6024)),\"\",IFERROR(VLOOKUP(TEXT(INDIRECT(\"'\"&F6024&\"'!\"&H6024),\"0\"),Notes!$B$5:$C$100,2,FALSE),\"\"))","v":""},"2c","$W$121","$X$121"]
[25170,{"$f":"Menu!$F$29","v":"X"},{"$f":"Menu!$J$29","v":2020},{"$f":"IF(ISBLANK(INDIRECT(\"'\"&F6025&\"'!\"&G6025)),\"\",INDIRECT(\"'\"&F6025&\"'!\"&G6025))","v":""},{"$f":"IF(ISBLANK(INDIRECT(\"'\"&F6025&\"'!\"&H6025)),\"\",IFERROR(VLOOKUP(TEXT(INDIRECT(\"'\"&F6025&\"'!\"&H6025),\"0\"),Notes!$B$5:$C$100,2,FALSE),\"\"))","v":""},"2c","$AA$121","$AB$121"]
[25171,{"$f":"Menu!$F$29","v":"X"},{"$f":"Menu!$J$29","v":2020},{"$f":"IF(ISBLANK(INDIRECT(\"'\"&F6026&\"'!\"&G6026)),\"\",INDIRECT(\"'\"&F6026&\"'!\"&G6026))","v":""},{"$f":"IF(ISBLANK(INDIRECT(\"'\"&F6026&\"'!\"&H6026)),\"\",IFERROR(VLOOKUP(TEXT(INDIRECT(\"'\"&F6026&\"'!\"&H6026),\"0\"),Notes!$B$5:$C$100,2,FALSE),\"\"))","v":""},"2c","$Y$121","$Z$121"]
[25178,{"$f":"Menu!$F$29","v":"X"},{"$f":"Menu!$J$29","v":2020},{"$f":"IF(ISBLANK(INDIRECT(\"'\"&F6027&\"'!\"&G6027)),\"\",INDIRECT(\"'\"&F6027&\"'!\"&G6027))","v":""},{"$f":"IF(ISBLANK(INDIRECT(\"'\"&F6027&\"'!\"&H6027)),\"\",IFERROR(VLOOKUP(TEXT(INDIRECT(\"'\"&F6027&\"'!\"&H6027),\"0\"),Notes!$B$5:$C$100,2,FALSE),\"\"))","v":""},"2e","$BG$122","$BH$122"]
[25179,{"$f":"Menu!$F$29","v":"X"},{"$f":"Menu!$J$29","v":2020},{"$f":"IF(ISBLANK(INDIRECT(\"'\"&F6028&\"'!\"&G6028)),\"\",INDIRECT(\"'\"&F6028&\"'!\"&G6028))","v":""},{"$f":"IF(ISBLANK(INDIRECT(\"'\"&F6028&\"'!\"&H6028)),\"\",IFERROR(VLOOKUP(TEXT(INDIRECT(\"'\"&F6028&\"'!\"&H6028),\"0\"),Notes!$B$5:$C$100,2,FALSE),\"\"))","v":""},"2e","$BK$122","$BL$122"]
[25180,{"$f":"Menu!$F$29","v":"X"},{"$f":"Menu!$J$29","v":2020},{"$f":"IF(ISBLANK(INDIRECT(\"'\"&F6029&\"'!\"&G6029)),\"\",INDIRECT(\"'\"&F6029&\"'!\"&G6029))","v":""},{"$f":"IF(ISBLANK(INDIRECT(\"'\"&F6029&\"'!\"&H6029)),\"\",IFERROR(VLOOKUP(TEXT(INDIRECT(\"'\"&F6029&\"'!\"&H6029),\"0\"),Notes!$B$5:$C$100,2,FALSE),\"\"))","v":""},"2e","$BI$122","$BJ$122"]
[25181,{"$f":"Menu!$F$29","v":"X"},{"$f":"Menu!$J$29","v":2020},{"$f":"IF(ISBLANK(INDIRECT(\"'\"&F6030&\"'!\"&G6030)),\"\",INDIRECT(\"'\"&F6030&\"'!\"&G6030))","v":""},{"$f":"IF(ISBLANK(INDIRECT(\"'\"&F6030&\"'!\"&H6030)),\"\",IFERROR(VLOOKUP(TEXT(INDIRECT(\"'\"&F6030&\"'!\"&H6030),\"0\"),Notes!$B$5:$C$100,2,FALSE),\"\"))","v":""},"2e","$E$122","$F$122"]
[25182,{"$f":"Menu!$F$29","v":"X"},{"$f":"Menu!$J$29","v":2020},{"$f":"IF(ISBLANK(INDIRECT(\"'\"&F6031&\"'!\"&G6031)),\"\",INDIRECT(\"'\"&F6031&\"'!\"&G6031))","v":""},{"$f":"IF(ISBLANK(INDIRECT(\"'\"&F6031&\"'!\"&H6031)),\"\",IFERROR(VLOOKUP(TEXT(INDIRECT(\"'\"&F6031&\"'!\"&H6031),\"0\"),Notes!$B$5:$C$100,2,FALSE),\"\"))","v":""},"2e","$I$122","$J$122"]
[25183,{"$f":"Menu!$F$29","v":"X"},{"$f":"Menu!$J$29","v":2020},{"$f":"IF(ISBLANK(INDIRECT(\"'\"&F6032&\"'!\"&G6032)),\"\",INDIRECT(\"'\"&F6032&\"'!\"&G6032))","v":""},{"$f":"IF(ISBLANK(INDIRECT(\"'\"&F6032&\"'!\"&H6032)),\"\",IFERROR(VLOOKUP(TEXT(INDIRECT(\"'\"&F6032&\"'!\"&H6032),\"0\"),Notes!$B$5:$C$100,2,FALSE),\"\"))","v":""},"2e","$G$122","$H$122"]
[25184,{"$f":"Menu!$F$29","v":"X"},{"$f":"Menu!$J$29","v":2020},{"$f":"IF(ISBLANK(INDIRECT(\"'\"&F6033&\"'!\"&G6033)),\"\",INDIRECT(\"'\"&F6033&\"'!\"&G6033))","v":""},{"$f":"IF(ISBLANK(INDIRECT(\"'\"&F6033&\"'!\"&H6033)),\"\",IFERROR(VLOOKUP(TEXT(INDIRECT(\"'\"&F6033&\"'!\"&H6033),\"0\"),Notes!$B$5:$C$100,2,FALSE),\"\"))","v":""},"2e","$K$122","$L$122"]
[25185,{"$f":"Menu!$F$29","v":"X"},{"$f":"Menu!$J$29","v":2020},{"$f":"IF(ISBLANK(INDIRECT(\"'\"&F6034&\"'!\"&G6034)),\"\",INDIRECT(\"'\"&F6034&\"'!\"&G6034))","v":""},{"$f":"IF(ISBLANK(INDIRECT(\"'\"&F6034&\"'!\"&H6034)),\"\",IFERROR(VLOOKUP(TEXT(INDIRECT(\"'\"&F6034&\"'!\"&H6034),\"0\"),Notes!$B$5:$C$100,2,FALSE),\"\"))","v":""},"2e","$O$122","$P$122"]
[25186,{"$f":"Menu!$F$29","v":"X"},{"$f":"Menu!$J$29","v":2020},{"$f":"IF(ISBLANK(INDIRECT(\"'\"&F6035&\"'!\"&G6035)),\"\",INDIRECT(\"'\"&F6035&\"'!\"&G6035))","v":""},{"$f":"IF(ISBLANK(INDIRECT(\"'\"&F6035&\"'!\"&H6035)),\"\",IFERROR(VLOOKUP(TEXT(INDIRECT(\"'\"&F6035&\"'!\"&H6035),\"0\"),Notes!$B$5:$C$100,2,FALSE),\"\"))","v":""},"2e","$M$122","$N$122"]
[25187,{"$f":"Menu!$F$29","v":"X"},{"$f":"Menu!$J$29","v":2020},{"$f":"IF(ISBLANK(INDIRECT(\"'\"&F6036&\"'!\"&G6036)),\"\",INDIRECT(\"'\"&F6036&\"'!\"&G6036))","v":""},{"$f":"IF(ISBLANK(INDIRECT(\"'\"&F6036&\"'!\"&H6036)),\"\",IFERROR(VLOOKUP(TEXT(INDIRECT(\"'\"&F6036&\"'!\"&H6036),\"0\"),Notes!$B$5:$C$100,2,FALSE),\"\"))","v":""},"2e","$Q$122","$R$122"]
[25188,{"$f":"Menu!$F$29","v":"X"},{"$f":"Menu!$J$29","v":2020},{"$f":"IF(ISBLANK(INDIRECT(\"'\"&F6037&\"'!\"&G6037)),\"\",INDIRECT(\"'\"&F6037&\"'!\"&G6037))","v":""},{"$f":"IF(ISBLANK(INDIRECT(\"'\"&F6037&\"'!\"&H6037)),\"\",IFERROR(VLOOKUP(TEXT(INDIRECT(\"'\"&F6037&\"'!\"&H6037),\"0\"),Notes!$B$5:$C$100,2,FALSE),\"\"))","v":""},"2e","$U$122","$V$122"]
[25189,{"$f":"Menu!$F$29","v":"X"},{"$f":"Menu!$J$29","v":2020},{"$f":"IF(ISBLANK(INDIRECT(\"'\"&F6038&\"'!\"&G6038)),\"\",INDIRECT(\"'\"&F6038&\"'!\"&G6038))","v":""},{"$f":"IF(ISBLANK(INDIRECT(\"'\"&F6038&\"'!\"&H6038)),\"\",IFERROR(VLOOKUP(TEXT(INDIRECT(\"'\"&F6038&\"'!\"&H6038),\"0\"),Notes!$B$5:$C$100,2,FALSE),\"\"))","v":""},"2e","$S$122","$T$122"]
[25190,{"$f":"Menu!$F$29","v":"X"},{"$f":"Menu!$J$29","v":2020},{"$f":"IF(ISBLANK(INDIRECT(\"'\"&F6039&\"'!\"&G6039)),\"\",INDIRECT(\"'\"&F6039&\"'!\"&G6039))","v":""},{"$f":"IF(ISBLANK(INDIRECT(\"'\"&F6039&\"'!\"&H6039)),\"\",IFERROR(VLOOKUP(TEXT(INDIRECT(\"'\"&F6039&\"'!\"&H6039),\"0\"),Notes!$B$5:$C$100,2,FALSE),\"\"))","v":""},"2e","$W$122","$X$122"]
[25191,{"$f":"Menu!$F$29","v":"X"},{"$f":"Menu!$J$29","v":2020},{"$f":"IF(ISBLANK(INDIRECT(\"'\"&F6040&\"'!\"&G6040)),\"\",INDIRECT(\"'\"&F6040&\"'!\"&G6040))","v":""},{"$f":"IF(ISBLANK(INDIRECT(\"'\"&F6040&\"'!\"&H6040)),\"\",IFERROR(VLOOKUP(TEXT(INDIRECT(\"'\"&F6040&\"'!\"&H6040),\"0\"),Notes!$B$5:$C$100,2,FALSE),\"\"))","v":""},"2e","$AA$122","$AB$122"]
[25192,{"$f":"Menu!$F$29","v":"X"},{"$f":"Menu!$J$29","v":2020},{"$f":"IF(ISBLANK(INDIRECT(\"'\"&F6041&\"'!\"&G6041)),\"\",INDIRECT(\"'\"&F6041&\"'!\"&G6041))","v":""},{"$f":"IF(ISBLANK(INDIRECT(\"'\"&F6041&\"'!\"&H6041)),\"\",IFERROR(VLOOKUP(TEXT(INDIRECT(\"'\"&F6041&\"'!\"&H6041),\"0\"),Notes!$B$5:$C$100,2,FALSE),\"\"))","v":""},"2e","$Y$122","$Z$122"]
[25193,{"$f":"Menu!$F$29","v":"X"},{"$f":"Menu!$J$29","v":2020},{"$f":"IF(ISBLANK(INDIRECT(\"'\"&F6042&\"'!\"&G6042)),\"\",INDIRECT(\"'\"&F6042&\"'!\"&G6042))","v":""},{"$f":"IF(ISBLANK(INDIRECT(\"'\"&F6042&\"'!\"&H6042)),\"\",IFERROR(VLOOKUP(TEXT(INDIRECT(\"'\"&F6042&\"'!\"&H6042),\"0\"),Notes!$B$5:$C$100,2,FALSE),\"\"))","v":""},"2e","$AC$122","$AD$122"]
[25194,{"$f":"Menu!$F$29","v":"X"},{"$f":"Menu!$J$29","v":2020},{"$f":"IF(ISBLANK(INDIRECT(\"'\"&F6043&\"'!\"&G6043)),\"\",INDIRECT(\"'\"&F6043&\"'!\"&G6043))","v":""},{"$f":"IF(ISBLANK(INDIRECT(\"'\"&F6043&\"'!\"&H6043)),\"\",IFERROR(VLOOKUP(TEXT(INDIRECT(\"'\"&F6043&\"'!\"&H6043),\"0\"),Notes!$B$5:$C$100,2,FALSE),\"\"))","v":""},"2e","$AG$122","$AH$122"]
[25195,{"$f":"Menu!$F$29","v":"X"},{"$f":"Menu!$J$29","v":2020},{"$f":"IF(ISBLANK(INDIRECT(\"'\"&F6044&\"'!\"&G6044)),\"\",INDIRECT(\"'\"&F6044&\"'!\"&G6044))","v":""},{"$f":"IF(ISBLANK(INDIRECT(\"'\"&F6044&\"'!\"&H6044)),\"\",IFERROR(VLOOKUP(TEXT(INDIRECT(\"'\"&F6044&\"'!\"&H6044),\"0\"),Notes!$B$5:$C$100,2,FALSE),\"\"))","v":""},"2e","$AE$122","$AF$122"]
[25196,{"$f":"Menu!$F$29","v":"X"},{"$f":"Menu!$J$29","v":2020},{"$f":"IF(ISBLANK(INDIRECT(\"'\"&F6045&\"'!\"&G6045)),\"\",INDIRECT(\"'\"&F6045&\"'!\"&G6045))","v":""},{"$f":"IF(ISBLANK(INDIRECT(\"'\"&F6045&\"'!\"&H6045)),\"\",IFERROR(VLOOKUP(TEXT(INDIRECT(\"'\"&F6045&\"'!\"&H6045),\"0\"),Notes!$B$5:$C$100,2,FALSE),\"\"))","v":""},"2e","$AI$122","$AJ$122"]
[25197,{"$f":"Menu!$F$29","v":"X"},{"$f":"Menu!$J$29","v":2020},{"$f":"IF(ISBLANK(INDIRECT(\"'\"&F6046&\"'!\"&G6046)),\"\",INDIRECT(\"'\"&F6046&\"'!\"&G6046))","v":""},{"$f":"IF(ISBLANK(INDIRECT(\"'\"&F6046&\"'!\"&H6046)),\"\",IFERROR(VLOOKUP(TEXT(INDIRECT(\"'\"&F6046&\"'!\"&H6046),\"0\"),Notes!$B$5:$C$100,2,FALSE),\"\"))","v":""},"2e","$AM$122","$AN$122"]
[25198,{"$f":"Menu!$F$29","v":"X"},{"$f":"Menu!$J$29","v":2020},{"$f":"IF(ISBLANK(INDIRECT(\"'\"&F6047&\"'!\"&G6047)),\"\",INDIRECT(\"'\"&F6047&\"'!\"&G6047))","v":""},{"$f":"IF(ISBLANK(INDIRECT(\"'\"&F6047&\"'!\"&H6047)),\"\",IFERROR(VLOOKUP(TEXT(INDIRECT(\"'\"&F6047&\"'!\"&H6047),\"0\"),Notes!$B$5:$C$100,2,FALSE),\"\"))","v":""},"2e","$AK$122","$AL$122"]
[25199,{"$f":"Menu!$F$29","v":"X"},{"$f":"Menu!$J$29","v":2020},{"$f":"IF(ISBLANK(INDIRECT(\"'\"&F6048&\"'!\"&G6048)),\"\",INDIRECT(\"'\"&F6048&\"'!\"&G6048))","v":""},{"$f":"IF(ISBLANK(INDIRECT(\"'\"&F6048&\"'!\"&H6048)),\"\",IFERROR(VLOOKUP(TEXT(INDIRECT(\"'\"&F6048&\"'!\"&H6048),\"0\"),Notes!$B$5:$C$100,2,FALSE),\"\"))","v":""},"2e","$AO$122","$AP$122"]
[25200,{"$f":"Menu!$F$29","v":"X"},{"$f":"Menu!$J$29","v":2020},{"$f":"IF(ISBLANK(INDIRECT(\"'\"&F6049&\"'!\"&G6049)),\"\",INDIRECT(\"'\"&F6049&\"'!\"&G6049))","v":""},{"$f":"IF(ISBLANK(INDIRECT(\"'\"&F6049&\"'!\"&H6049)),\"\",IFERROR(VLOOKUP(TEXT(INDIRECT(\"'\"&F6049&\"'!\"&H6049),\"0\"),Notes!$B$5:$C$100,2,FALSE),\"\"))","v":""},"2e","$AS$122","$AT$122"]
[25201,{"$f":"Menu!$F$29","v":"X"},{"$f":"Menu!$J$29","v":2020},{"$f":"IF(ISBLANK(INDIRECT(\"'\"&F6050&\"'!\"&G6050)),\"\",INDIRECT(\"'\"&F6050&\"'!\"&G6050))","v":""},{"$f":"IF(ISBLANK(INDIRECT(\"'\"&F6050&\"'!\"&H6050)),\"\",IFERROR(VLOOKUP(TEXT(INDIRECT(\"'\"&F6050&\"'!\"&H6050),\"0\"),Notes!$B$5:$C$100,2,FALSE),\"\"))","v":""},"2e","$AQ$122","$AR$122"]
[25202,{"$f":"Menu!$F$29","v":"X"},{"$f":"Menu!$J$29","v":2020},{"$f":"IF(ISBLANK(INDIRECT(\"'\"&F6051&\"'!\"&G6051)),\"\",INDIRECT(\"'\"&F6051&\"'!\"&G6051))","v":""},{"$f":"IF(ISBLANK(INDIRECT(\"'\"&F6051&\"'!\"&H6051)),\"\",IFERROR(VLOOKUP(TEXT(INDIRECT(\"'\"&F6051&\"'!\"&H6051),\"0\"),Notes!$B$5:$C$100,2,FALSE),\"\"))","v":""},"2e","$AU$122","$AV$122"]
[25203,{"$f":"Menu!$F$29","v":"X"},{"$f":"Menu!$J$29","v":2020},{"$f":"IF(ISBLANK(INDIRECT(\"'\"&F6052&\"'!\"&G6052)),\"\",INDIRECT(\"'\"&F6052&\"'!\"&G6052))","v":""},{"$f":"IF(ISBLANK(INDIRECT(\"'\"&F6052&\"'!\"&H6052)),\"\",IFERROR(VLOOKUP(TEXT(INDIRECT(\"'\"&F6052&\"'!\"&H6052),\"0\"),Notes!$B$5:$C$100,2,FALSE),\"\"))","v":""},"2e","$AY$122","$AZ$122"]
[25204,{"$f":"Menu!$F$29","v":"X"},{"$f":"Menu!$J$29","v":2020},{"$f":"IF(ISBLANK(INDIRECT(\"'\"&F6053&\"'!\"&G6053)),\"\",INDIRECT(\"'\"&F6053&\"'!\"&G6053))","v":""},{"$f":"IF(ISBLANK(INDIRECT(\"'\"&F6053&\"'!\"&H6053)),\"\",IFERROR(VLOOKUP(TEXT(INDIRECT(\"'\"&F6053&\"'!\"&H6053),\"0\"),Notes!$B$5:$C$100,2,FALSE),\"\"))","v":""},"2e","$AW$122","$AX$122"]
[25205,{"$f":"Menu!$F$29","v":"X"},{"$f":"Menu!$J$29","v":2020},{"$f":"IF(ISBLANK(INDIRECT(\"'\"&F6054&\"'!\"&G6054)),\"\",INDIRECT(\"'\"&F6054&\"'!\"&G6054))","v":""},{"$f":"IF(ISBLANK(INDIRECT(\"'\"&F6054&\"'!\"&H6054)),\"\",IFERROR(VLOOKUP(TEXT(INDIRECT(\"'\"&F6054&\"'!\"&H6054),\"0\"),Notes!$B$5:$C$100,2,FALSE),\"\"))","v":""},"2e","$BA$122","$BB$122"]
[25206,{"$f":"Menu!$F$29","v":"X"},{"$f":"Menu!$J$29","v":2020},{"$f":"IF(ISBLANK(INDIRECT(\"'\"&F6055&\"'!\"&G6055)),\"\",INDIRECT(\"'\"&F6055&\"'!\"&G6055))","v":""},{"$f":"IF(ISBLANK(INDIRECT(\"'\"&F6055&\"'!\"&H6055)),\"\",IFERROR(VLOOKUP(TEXT(INDIRECT(\"'\"&F6055&\"'!\"&H6055),\"0\"),Notes!$B$5:$C$100,2,FALSE),\"\"))","v":""},"2e","$BE$122","$BF$122"]
[25207,{"$f":"Menu!$F$29","v":"X"},{"$f":"Menu!$J$29","v":2020},{"$f":"IF(ISBLANK(INDIRECT(\"'\"&F6056&\"'!\"&G6056)),\"\",INDIRECT(\"'\"&F6056&\"'!\"&G6056))","v":""},{"$f":"IF(ISBLANK(INDIRECT(\"'\"&F6056&\"'!\"&H6056)),\"\",IFERROR(VLOOKUP(TEXT(INDIRECT(\"'\"&F6056&\"'!\"&H6056),\"0\"),Notes!$B$5:$C$100,2,FALSE),\"\"))","v":""},"2e","$BC$122","$BD$122"]
[25208,{"$f":"Menu!$F$29","v":"X"},{"$f":"Menu!$J$29","v":2020},{"$f":"IF(ISBLANK(INDIRECT(\"'\"&F6057&\"'!\"&G6057)),\"\",INDIRECT(\"'\"&F6057&\"'!\"&G6057))","v":""},{"$f":"IF(ISBLANK(INDIRECT(\"'\"&F6057&\"'!\"&H6057)),\"\",IFERROR(VLOOKUP(TEXT(INDIRECT(\"'\"&F6057&\"'!\"&H6057),\"0\"),Notes!$B$5:$C$100,2,FALSE),\"\"))","v":""},"2b","$E$121","$F$121"]
[25209,{"$f":"Menu!$F$29","v":"X"},{"$f":"Menu!$J$29","v":2020},{"$f":"IF(ISBLANK(INDIRECT(\"'\"&F6058&\"'!\"&G6058)),\"\",INDIRECT(\"'\"&F6058&\"'!\"&G6058))","v":""},{"$f":"IF(ISBLANK(INDIRECT(\"'\"&F6058&\"'!\"&H6058)),\"\",IFERROR(VLOOKUP(TEXT(INDIRECT(\"'\"&F6058&\"'!\"&H6058),\"0\"),Notes!$B$5:$C$100,2,FALSE),\"\"))","v":""},"2b","$I$121","$J$121"]
[25210,{"$f":"Menu!$F$29","v":"X"},{"$f":"Menu!$J$29","v":2020},{"$f":"IF(ISBLANK(INDIRECT(\"'\"&F6059&\"'!\"&G6059)),\"\",INDIRECT(\"'\"&F6059&\"'!\"&G6059))","v":""},{"$f":"IF(ISBLANK(INDIRECT(\"'\"&F6059&\"'!\"&H6059)),\"\",IFERROR(VLOOKUP(TEXT(INDIRECT(\"'\"&F6059&\"'!\"&H6059),\"0\"),Notes!$B$5:$C$100,2,FALSE),\"\"))","v":""},"2b","$G$121","$H$121"]
[25211,{"$f":"Menu!$F$29","v":"X"},{"$f":"Menu!$J$29","v":2020},{"$f":"IF(ISBLANK(INDIRECT(\"'\"&F6060&\"'!\"&G6060)),\"\",INDIRECT(\"'\"&F6060&\"'!\"&G6060))","v":""},{"$f":"IF(ISBLANK(INDIRECT(\"'\"&F6060&\"'!\"&H6060)),\"\",IFERROR(VLOOKUP(TEXT(INDIRECT(\"'\"&F6060&\"'!\"&H6060),\"0\"),Notes!$B$5:$C$100,2,FALSE),\"\"))","v":""},"2a","$G$121","$H$121"]
[25212,{"$f":"Menu!$F$29","v":"X"},{"$f":"Menu!$J$29","v":2020},{"$f":"IF(ISBLANK(INDIRECT(\"'\"&F6061&\"'!\"&G6061)),\"\",INDIRECT(\"'\"&F6061&\"'!\"&G6061))","v":""},{"$f":"IF(ISBLANK(INDIRECT(\"'\"&F6061&\"'!\"&H6061)),\"\",IFERROR(VLOOKUP(TEXT(INDIRECT(\"'\"&F6061&\"'!\"&H6061),\"0\"),Notes!$B$5:$C$100,2,FALSE),\"\"))","v":""},"2b","$W$121","$X$121"]
[25213,{"$f":"Menu!$F$29","v":"X"},{"$f":"Menu!$J$29","v":2020},{"$f":"IF(ISBLANK(INDIRECT(\"'\"&F6062&\"'!\"&G6062)),\"\",INDIRECT(\"'\"&F6062&\"'!\"&G6062))","v":""},{"$f":"IF(ISBLANK(INDIRECT(\"'\"&F6062&\"'!\"&H6062)),\"\",IFERROR(VLOOKUP(TEXT(INDIRECT(\"'\"&F6062&\"'!\"&H6062),\"0\"),Notes!$B$5:$C$100,2,FALSE),\"\"))","v":""},"2b","$AA$121","$AB$121"]
[25214,{"$f":"Menu!$F$29","v":"X"},{"$f":"Menu!$J$29","v":2020},{"$f":"IF(ISBLANK(INDIRECT(\"'\"&F6063&\"'!\"&G6063)),\"\",INDIRECT(\"'\"&F6063&\"'!\"&G6063))","v":""},{"$f":"IF(ISBLANK(INDIRECT(\"'\"&F6063&\"'!\"&H6063)),\"\",IFERROR(VLOOKUP(TEXT(INDIRECT(\"'\"&F6063&\"'!\"&H6063),\"0\"),Notes!$B$5:$C$100,2,FALSE),\"\"))","v":""},"2b","$Y$121","$Z$121"]
[25215,{"$f":"Menu!$F$29","v":"X"},{"$f":"Menu!$J$29","v":2020},{"$f":"IF(ISBLANK(INDIRECT(\"'\"&F6064&\"'!\"&G6064)),\"\",INDIRECT(\"'\"&F6064&\"'!\"&G6064))","v":""},{"$f":"IF(ISBLANK(INDIRECT(\"'\"&F6064&\"'!\"&H6064)),\"\",IFERROR(VLOOKUP(TEXT(INDIRECT(\"'\"&F6064&\"'!\"&H6064),\"0\"),Notes!$B$5:$C$100,2,FALSE),\"\"))","v":""},"2d","$AC$121","$AD$121"]
[25216,{"$f":"Menu!$F$29","v":"X"},{"$f":"Menu!$J$29","v":2020},{"$f":"IF(ISBLANK(INDIRECT(\"'\"&F6065&\"'!\"&G6065)),\"\",INDIRECT(\"'\"&F6065&\"'!\"&G6065))","v":""},{"$f":"IF(ISBLANK(INDIRECT(\"'\"&F6065&\"'!\"&H6065)),\"\",IFERROR(VLOOKUP(TEXT(INDIRECT(\"'\"&F6065&\"'!\"&H6065),\"0\"),Notes!$B$5:$C$100,2,FALSE),\"\"))","v":""},"2d","$AG$121","$AH$121"]
[25217,{"$f":"Menu!$F$29","v":"X"},{"$f":"Menu!$J$29","v":2020},{"$f":"IF(ISBLANK(INDIRECT(\"'\"&F6066&\"'!\"&G6066)),\"\",INDIRECT(\"'\"&F6066&\"'!\"&G6066))","v":""},{"$f":"IF(ISBLANK(INDIRECT(\"'\"&F6066&\"'!\"&H6066)),\"\",IFERROR(VLOOKUP(TEXT(INDIRECT(\"'\"&F6066&\"'!\"&H6066),\"0\"),Notes!$B$5:$C$100,2,FALSE),\"\"))","v":""},"2d","$AE$121","$AF$121"]
[25218,{"$f":"Menu!$F$29","v":"X"},{"$f":"Menu!$J$29","v":2020},{"$f":"IF(ISBLANK(INDIRECT(\"'\"&F6067&\"'!\"&G6067)),\"\",INDIRECT(\"'\"&F6067&\"'!\"&G6067))","v":""},{"$f":"IF(ISBLANK(INDIRECT(\"'\"&F6067&\"'!\"&H6067)),\"\",IFERROR(VLOOKUP(TEXT(INDIRECT(\"'\"&F6067&\"'!\"&H6067),\"0\"),Notes!$B$5:$C$100,2,FALSE),\"\"))","v":""},"2d","$W$121","$X$121"]
[25219,{"$f":"Menu!$F$29","v":"X"},{"$f":"Menu!$J$29","v":2020},{"$f":"IF(ISBLANK(INDIRECT(\"'\"&F6068&\"'!\"&G6068)),\"\",INDIRECT(\"'\"&F6068&\"'!\"&G6068))","v":""},{"$f":"IF(ISBLANK(INDIRECT(\"'\"&F6068&\"'!\"&H6068)),\"\",IFERROR(VLOOKUP(TEXT(INDIRECT(\"'\"&F6068&\"'!\"&H6068),\"0\"),Notes!$B$5:$C$100,2,FALSE),\"\"))","v":""},"2d","$AA$121","$AB$121"]
[25220,{"$f":"Menu!$F$29","v":"X"},{"$f":"Menu!$J$29","v":2020},{"$f":"IF(ISBLANK(INDIRECT(\"'\"&F6069&\"'!\"&G6069)),\"\",INDIRECT(\"'\"&F6069&\"'!\"&G6069))","v":""},{"$f":"IF(ISBLANK(INDIRECT(\"'\"&F6069&\"'!\"&H6069)),\"\",IFERROR(VLOOKUP(TEXT(INDIRECT(\"'\"&F6069&\"'!\"&H6069),\"0\"),Notes!$B$5:$C$100,2,FALSE),\"\"))","v":""},"2d","$Y$121","$Z$121"]
[25221,{"$f":"Menu!$F$29","v":"X"},{"$f":"Menu!$J$29","v":2020},{"$f":"IF(ISBLANK(INDIRECT(\"'\"&F6070&\"'!\"&G6070)),\"\",INDIRECT(\"'\"&F6070&\"'!\"&G6070))","v":""},{"$f":"IF(ISBLANK(INDIRECT(\"'\"&F6070&\"'!\"&H6070)),\"\",IFERROR(VLOOKUP(TEXT(INDIRECT(\"'\"&F6070&\"'!\"&H6070),\"0\"),Notes!$B$5:$C$100,2,FALSE),\"\"))","v":""},"2d","$E$121","$F$121"]
[25222,{"$f":"Menu!$F$29","v":"X"},{"$f":"Menu!$J$29","v":2020},{"$f":"IF(ISBLANK(INDIRECT(\"'\"&F6071&\"'!\"&G6071)),\"\",INDIRECT(\"'\"&F6071&\"'!\"&G6071))","v":""},{"$f":"IF(ISBLANK(INDIRECT(\"'\"&F6071&\"'!\"&H6071)),\"\",IFERROR(VLOOKUP(TEXT(INDIRECT(\"'\"&F6071&\"'!\"&H6071),\"0\"),Notes!$B$5:$C$100,2,FALSE),\"\"))","v":""},"2d","$I$121","$J$121"]
[25223,{"$f":"Menu!$F$29","v":"X"},{"$f":"Menu!$J$29","v":2020},{"$f":"IF(ISBLANK(INDIRECT(\"'\"&F6072&\"'!\"&G6072)),\"\",INDIRECT(\"'\"&F6072&\"'!\"&G6072))","v":""},{"$f":"IF(ISBLANK(INDIRECT(\"'\"&F6072&\"'!\"&H6072)),\"\",IFERROR(VLOOKUP(TEXT(INDIRECT(\"'\"&F6072&\"'!\"&H6072),\"0\"),Notes!$B$5:$C$100,2,FALSE),\"\"))","v":""},"2d","$G$121","$H$121"]
[25224,{"$f":"Menu!$F$29","v":"X"},{"$f":"Menu!$J$29","v":2020},{"$f":"IF(ISBLANK(INDIRECT(\"'\"&F6073&\"'!\"&G6073)),\"\",INDIRECT(\"'\"&F6073&\"'!\"&G6073))","v":""},{"$f":"IF(ISBLANK(INDIRECT(\"'\"&F6073&\"'!\"&H6073)),\"\",IFERROR(VLOOKUP(TEXT(INDIRECT(\"'\"&F6073&\"'!\"&H6073),\"0\"),Notes!$B$5:$C$100,2,FALSE),\"\"))","v":""},"2a","$Q$121","$R$121"]
[25225,{"$f":"Menu!$F$29","v":"X"},{"$f":"Menu!$J$29","v":2020},{"$f":"IF(ISBLANK(INDIRECT(\"'\"&F6074&\"'!\"&G6074)),\"\",INDIRECT(\"'\"&F6074&\"'!\"&G6074))","v":""},{"$f":"IF(ISBLANK(INDIRECT(\"'\"&F6074&\"'!\"&H6074)),\"\",IFERROR(VLOOKUP(TEXT(INDIRECT(\"'\"&F6074&\"'!\"&H6074),\"0\"),Notes!$B$5:$C$100,2,FALSE),\"\"))","v":""},"2a","$U$121","$V$121"]
[25226,{"$f":"Menu!$F$29","v":"X"},{"$f":"Menu!$J$29","v":2020},{"$f":"IF(ISBLANK(INDIRECT(\"'\"&F6075&\"'!\"&G6075)),\"\",INDIRECT(\"'\"&F6075&\"'!\"&G6075))","v":""},{"$f":"IF(ISBLANK(INDIRECT(\"'\"&F6075&\"'!\"&H6075)),\"\",IFERROR(VLOOKUP(TEXT(INDIRECT(\"'\"&F6075&\"'!\"&H6075),\"0\"),Notes!$B$5:$C$100,2,FALSE),\"\"))","v":""},"2a","$S$121","$T$121"]
[25227,{"$f":"Menu!$F$29","v":"X"},{"$f":"Menu!$J$29","v":2020},{"$f":"IF(ISBLANK(INDIRECT(\"'\"&F6076&\"'!\"&G6076)),\"\",INDIRECT(\"'\"&F6076&\"'!\"&G6076))","v":""},{"$f":"IF(ISBLANK(INDIRECT(\"'\"&F6076&\"'!\"&H6076)),\"\",IFERROR(VLOOKUP(TEXT(INDIRECT(\"'\"&F6076&\"'!\"&H6076),\"0\"),Notes!$B$5:$C$100,2,FALSE),\"\"))","v":""},"2d","$K$121","$L$121"]
[25228,{"$f":"Menu!$F$29","v":"X"},{"$f":"Menu!$J$29","v":2020},{"$f":"IF(ISBLANK(INDIRECT(\"'\"&F6077&\"'!\"&G6077)),\"\",INDIRECT(\"'\"&F6077&\"'!\"&G6077))","v":""},{"$f":"IF(ISBLANK(INDIRECT(\"'\"&F6077&\"'!\"&H6077)),\"\",IFERROR(VLOOKUP(TEXT(INDIRECT(\"'\"&F6077&\"'!\"&H6077),\"0\"),Notes!$B$5:$C$100,2,FALSE),\"\"))","v":""},"2d","$O$121","$P$121"]
[25229,{"$f":"Menu!$F$29","v":"X"},{"$f":"Menu!$J$29","v":2020},{"$f":"IF(ISBLANK(INDIRECT(\"'\"&F6078&\"'!\"&G6078)),\"\",INDIRECT(\"'\"&F6078&\"'!\"&G6078))","v":""},{"$f":"IF(ISBLANK(INDIRECT(\"'\"&F6078&\"'!\"&H6078)),\"\",IFERROR(VLOOKUP(TEXT(INDIRECT(\"'\"&F6078&\"'!\"&H6078),\"0\"),Notes!$B$5:$C$100,2,FALSE),\"\"))","v":""},"2d","$M$121","$N$121"]
[25230,{"$f":"Menu!$F$29","v":"X"},{"$f":"Menu!$J$29","v":2020},{"$f":"IF(ISBLANK(INDIRECT(\"'\"&F6079&\"'!\"&G6079)),\"\",INDIRECT(\"'\"&F6079&\"'!\"&G6079))","v":""},{"$f":"IF(ISBLANK(INDIRECT(\"'\"&F6079&\"'!\"&H6079)),\"\",IFERROR(VLOOKUP(TEXT(INDIRECT(\"'\"&F6079&\"'!\"&H6079),\"0\"),Notes!$B$5:$C$100,2,FALSE),\"\"))","v":""},"2d","$Q$121","$R$121"]
[25231,{"$f":"Menu!$F$29","v":"X"},{"$f":"Menu!$J$29","v":2020},{"$f":"IF(ISBLANK(INDIRECT(\"'\"&F6080&\"'!\"&G6080)),\"\",INDIRECT(\"'\"&F6080&\"'!\"&G6080))","v":""},{"$f":"IF(ISBLANK(INDIRECT(\"'\"&F6080&\"'!\"&H6080)),\"\",IFERROR(VLOOKUP(TEXT(INDIRECT(\"'\"&F6080&\"'!\"&H6080),\"0\"),Notes!$B$5:$C$100,2,FALSE),\"\"))","v":""},"2d","$U$121","$V$121"]
[25232,{"$f":"Menu!$F$29","v":"X"},{"$f":"Menu!$J$29","v":2020},{"$f":"IF(ISBLANK(INDIRECT(\"'\"&F6081&\"'!\"&G6081)),\"\",INDIRECT(\"'\"&F6081&\"'!\"&G6081))","v":""},{"$f":"IF(ISBLANK(INDIRECT(\"'\"&F6081&\"'!\"&H6081)),\"\",IFERROR(VLOOKUP(TEXT(INDIRECT(\"'\"&F6081&\"'!\"&H6081),\"0\"),Notes!$B$5:$C$100,2,FALSE),\"\"))","v":""},"2d","$S$121","$T$121"]
[25233,{"$f":"Menu!$F$29","v":"X"},{"$f":"Menu!$J$29","v":2020},{"$f":"IF(ISBLANK(INDIRECT(\"'\"&F6082&\"'!\"&G6082)),\"\",INDIRECT(\"'\"&F6082&\"'!\"&G6082))","v":""},{"$f":"IF(ISBLANK(INDIRECT(\"'\"&F6082&\"'!\"&H6082)),\"\",IFERROR(VLOOKUP(TEXT(INDIRECT(\"'\"&F6082&\"'!\"&H6082),\"0\"),Notes!$B$5:$C$100,2,FALSE),\"\"))","v":""},"2a","$K$121",{"$f":"IF(LEN(TRIM(MID(G6082,4,10)))-LEN(SUBSTITUTE(TRIM(MID(G6082,4,10)),\"$\",\"\"))=0,\"$\"&CHAR(CODE(MID(G6082,2,1))+1)&\"$\"&TRIM(MID(G6082,4,10)),\"$\"&MID(G6082,2,1)&CHAR(CODE(MID(G6082,3,1))+1)&\"$\"&TRIM(MID(G6082,5,11)))","v":"$L$121"}]
[25234,{"$f":"Menu!$F$29","v":"X"},{"$f":"Menu!$J$29","v":2020},{"$f":"IF(ISBLANK(INDIRECT(\"'\"&F6083&\"'!\"&G6083)),\"\",INDIRECT(\"'\"&F6083&\"'!\"&G6083))","v":""},{"$f":"IF(ISBLANK(INDIRECT(\"'\"&F6083&\"'!\"&H6083)),\"\",IFERROR(VLOOKUP(TEXT(INDIRECT(\"'\"&F6083&\"'!\"&H6083),\"0\"),Notes!$B$5:$C$100,2,FALSE),\"\"))","v":""},"2a","$O$121","$P$121"]
[25235,{"$f":"Menu!$F$29","v":"X"},{"$f":"Menu!$J$29","v":2020},{"$f":"IF(ISBLANK(INDIRECT(\"'\"&F6084&\"'!\"&G6084)),\"\",INDIRECT(\"'\"&F6084&\"'!\"&G6084))","v":""},{"$f":"IF(ISBLANK(INDIRECT(\"'\"&F6084&\"'!\"&H6084)),\"\",IFERROR(VLOOKUP(TEXT(INDIRECT(\"'\"&F6084&\"'!\"&H6084),\"0\"),Notes!$B$5:$C$100,2,FALSE),\"\"))","v":""},"2a","$M$121","$N$121"]
[25236,{"$f":"Menu!$F$29","v":"X"},{"$f":"Menu!$J$29","v":2020},{"$f":"IF(ISBLANK(INDIRECT(\"'\"&F6085&\"'!\"&G6085)),\"\",INDIRECT(\"'\"&F6085&\"'!\"&G6085))","v":""},{"$f":"IF(ISBLANK(INDIRECT(\"'\"&F6085&\"'!\"&H6085)),\"\",IFERROR(VLOOKUP(TEXT(INDIRECT(\"'\"&F6085&\"'!\"&H6085),\"0\"),Notes!$B$5:$C$100,2,FALSE),\"\"))","v":""},"2a","$E$121","$F$121"]
[25237,{"$f":"Menu!$F$29","v":"X"},{"$f":"Menu!$J$29","v":2020},{"$f":"IF(ISBLANK(INDIRECT(\"'\"&F6086&\"'!\"&G6086)),\"\",INDIRECT(\"'\"&F6086&\"'!\"&G6086))","v":""},{"$f":"IF(ISBLANK(INDIRECT(\"'\"&F6086&\"'!\"&H6086)),\"\",IFERROR(VLOOKUP(TEXT(INDIRECT(\"'\"&F6086&\"'!\"&H6086),\"0\"),Notes!$B$5:$C$100,2,FALSE),\"\"))","v":""},"2b","$K$122","$L$122"]
[25238,{"$f":"Menu!$F$29","v":"X"},{"$f":"Menu!$J$29","v":2020},{"$f":"IF(ISBLANK(INDIRECT(\"'\"&F6087&\"'!\"&G6087)),\"\",INDIRECT(\"'\"&F6087&\"'!\"&G6087))","v":""},{"$f":"IF(ISBLANK(INDIRECT(\"'\"&F6087&\"'!\"&H6087)),\"\",IFERROR(VLOOKUP(TEXT(INDIRECT(\"'\"&F6087&\"'!\"&H6087),\"0\"),Notes!$B$5:$C$100,2,FALSE),\"\"))","v":""},"2b","$O$122","$P$122"]
[25239,{"$f":"Menu!$F$29","v":"X"},{"$f":"Menu!$J$29","v":2020},{"$f":"IF(ISBLANK(INDIRECT(\"'\"&F6088&\"'!\"&G6088)),\"\",INDIRECT(\"'\"&F6088&\"'!\"&G6088))","v":""},{"$f":"IF(ISBLANK(INDIRECT(\"'\"&F6088&\"'!\"&H6088)),\"\",IFERROR(VLOOKUP(TEXT(INDIRECT(\"'\"&F6088&\"'!\"&H6088),\"0\"),Notes!$B$5:$C$100,2,FALSE),\"\"))","v":""},"2b","$M$122","$N$122"]
[25240,{"$f":"Menu!$F$29","v":"X"},{"$f":"Menu!$J$29","v":2020},{"$f":"IF(ISBLANK(INDIRECT(\"'\"&F6089&\"'!\"&G6089)),\"\",INDIRECT(\"'\"&F6089&\"'!\"&G6089))","v":""},{"$f":"IF(ISBLANK(INDIRECT(\"'\"&F6089&\"'!\"&H6089)),\"\",IFERROR(VLOOKUP(TEXT(INDIRECT(\"'\"&F6089&\"'!\"&H6089),\"0\"),Notes!$B$5:$C$100,2,FALSE),\"\"))","v":""},"2b","$Q$122","$R$122"]
[25241,{"$f":"Menu!$F$29","v":"X"},{"$f":"Menu!$J$29","v":2020},{"$f":"IF(ISBLANK(INDIRECT(\"'\"&F6090&\"'!\"&G6090)),\"\",INDIRECT(\"'\"&F6090&\"'!\"&G6090))","v":""},{"$f":"IF(ISBLANK(INDIRECT(\"'\"&F6090&\"'!\"&H6090)),\"\",IFERROR(VLOOKUP(TEXT(INDIRECT(\"'\"&F6090&\"'!\"&H6090),\"0\"),Notes!$B$5:$C$100,2,FALSE),\"\"))","v":""},"2b","$U$122","$V$122"]
[25242,{"$f":"Menu!$F$29","v":"X"},{"$f":"Menu!$J$29","v":2020},{"$f":"IF(ISBLANK(INDIRECT(\"'\"&F6091&\"'!\"&G6091)),\"\",INDIRECT(\"'\"&F6091&\"'!\"&G6091))","v":""},{"$f":"IF(ISBLANK(INDIRECT(\"'\"&F6091&\"'!\"&H6091)),\"\",IFERROR(VLOOKUP(TEXT(INDIRECT(\"'\"&F6091&\"'!\"&H6091),\"0\"),Notes!$B$5:$C$100,2,FALSE),\"\"))","v":""},"2b","$S$122","$T$122"]
[25246,{"$f":"Menu!$F$29","v":"X"},{"$f":"Menu!$J$29","v":2020},{"$f":"IF(ISBLANK(INDIRECT(\"'\"&F6092&\"'!\"&G6092)),\"\",INDIRECT(\"'\"&F6092&\"'!\"&G6092))","v":""},{"$f":"IF(ISBLANK(INDIRECT(\"'\"&F6092&\"'!\"&H6092)),\"\",IFERROR(VLOOKUP(TEXT(INDIRECT(\"'\"&F6092&\"'!\"&H6092),\"0\"),Notes!$B$5:$C$100,2,FALSE),\"\"))","v":""},"2a","$I$122","$J$122"]
[25247,{"$f":"Menu!$F$29","v":"X"},{"$f":"Menu!$J$29","v":2020},{"$f":"IF(ISBLANK(INDIRECT(\"'\"&F6093&\"'!\"&G6093)),\"\",INDIRECT(\"'\"&F6093&\"'!\"&G6093))","v":""},{"$f":"IF(ISBLANK(INDIRECT(\"'\"&F6093&\"'!\"&H6093)),\"\",IFERROR(VLOOKUP(TEXT(INDIRECT(\"'\"&F6093&\"'!\"&H6093),\"0\"),Notes!$B$5:$C$100,2,FALSE),\"\"))","v":""},"2c","$E$122","$F$122"]
[25248,{"$f":"Menu!$F$29","v":"X"},{"$f":"Menu!$J$29","v":2020},{"$f":"IF(ISBLANK(INDIRECT(\"'\"&F6094&\"'!\"&G6094)),\"\",INDIRECT(\"'\"&F6094&\"'!\"&G6094))","v":""},{"$f":"IF(ISBLANK(INDIRECT(\"'\"&F6094&\"'!\"&H6094)),\"\",IFERROR(VLOOKUP(TEXT(INDIRECT(\"'\"&F6094&\"'!\"&H6094),\"0\"),Notes!$B$5:$C$100,2,FALSE),\"\"))","v":""},"2c","$I$122","$J$122"]
[25249,{"$f":"Menu!$F$29","v":"X"},{"$f":"Menu!$J$29","v":2020},{"$f":"IF(ISBLANK(INDIRECT(\"'\"&F6095&\"'!\"&G6095)),\"\",INDIRECT(\"'\"&F6095&\"'!\"&G6095))","v":""},{"$f":"IF(ISBLANK(INDIRECT(\"'\"&F6095&\"'!\"&H6095)),\"\",IFERROR(VLOOKUP(TEXT(INDIRECT(\"'\"&F6095&\"'!\"&H6095),\"0\"),Notes!$B$5:$C$100,2,FALSE),\"\"))","v":""},"2c","$G$122","$H$122"]
[25253,{"$f":"Menu!$F$29","v":"X"},{"$f":"Menu!$J$29","v":2020},{"$f":"IF(ISBLANK(INDIRECT(\"'\"&F6096&\"'!\"&G6096)),\"\",INDIRECT(\"'\"&F6096&\"'!\"&G6096))","v":""},{"$f":"IF(ISBLANK(INDIRECT(\"'\"&F6096&\"'!\"&H6096)),\"\",IFERROR(VLOOKUP(TEXT(INDIRECT(\"'\"&F6096&\"'!\"&H6096),\"0\"),Notes!$B$5:$C$100,2,FALSE),\"\"))","v":""},"2c","$K$122","$L$122"]
[25254,{"$f":"Menu!$F$29","v":"X"},{"$f":"Menu!$J$29","v":2020},{"$f":"IF(ISBLANK(INDIRECT(\"'\"&F6097&\"'!\"&G6097)),\"\",INDIRECT(\"'\"&F6097&\"'!\"&G6097))","v":""},{"$f":"IF(ISBLANK(INDIRECT(\"'\"&F6097&\"'!\"&H6097)),\"\",IFERROR(VLOOKUP(TEXT(INDIRECT(\"'\"&F6097&\"'!\"&H6097),\"0\"),Notes!$B$5:$C$100,2,FALSE),\"\"))","v":""},"2c","$O$122","$P$122"]
[25255,{"$f":"Menu!$F$29","v":"X"},{"$f":"Menu!$J$29","v":2020},{"$f":"IF(ISBLANK(INDIRECT(\"'\"&F6098&\"'!\"&G6098)),\"\",INDIRECT(\"'\"&F6098&\"'!\"&G6098))","v":""},{"$f":"IF(ISBLANK(INDIRECT(\"'\"&F6098&\"'!\"&H6098)),\"\",IFERROR(VLOOKUP(TEXT(INDIRECT(\"'\"&F6098&\"'!\"&H6098),\"0\"),Notes!$B$5:$C$100,2,FALSE),\"\"))","v":""},"2c","$M$122","$N$122"]
[25256,{"$f":"Menu!$F$29","v":"X"},{"$f":"Menu!$J$29","v":2020},{"$f":"IF(ISBLANK(INDIRECT(\"'\"&F6099&\"'!\"&G6099)),\"\",INDIRECT(\"'\"&F6099&\"'!\"&G6099))","v":""},{"$f":"IF(ISBLANK(INDIRECT(\"'\"&F6099&\"'!\"&H6099)),\"\",IFERROR(VLOOKUP(TEXT(INDIRECT(\"'\"&F6099&\"'!\"&H6099),\"0\"),Notes!$B$5:$C$100,2,FALSE),\"\"))","v":""},"2c","$Q$122","$R$122"]
[25257,{"$f":"Menu!$F$29","v":"X"},{"$f":"Menu!$J$29","v":2020},{"$f":"IF(ISBLANK(INDIRECT(\"'\"&F6100&\"'!\"&G6100)),\"\",INDIRECT(\"'\"&F6100&\"'!\"&G6100))","v":""},{"$f":"IF(ISBLANK(INDIRECT(\"'\"&F6100&\"'!\"&H6100)),\"\",IFERROR(VLOOKUP(TEXT(INDIRECT(\"'\"&F6100&\"'!\"&H6100),\"0\"),Notes!$B$5:$C$100,2,FALSE),\"\"))","v":""},"2c","$U$122","$V$122"]
[25258,{"$f":"Menu!$F$29","v":"X"},{"$f":"Menu!$J$29","v":2020},{"$f":"IF(ISBLANK(INDIRECT(\"'\"&F6101&\"'!\"&G6101)),\"\",INDIRECT(\"'\"&F6101&\"'!\"&G6101))","v":""},{"$f":"IF(ISBLANK(INDIRECT(\"'\"&F6101&\"'!\"&H6101)),\"\",IFERROR(VLOOKUP(TEXT(INDIRECT(\"'\"&F6101&\"'!\"&H6101),\"0\"),Notes!$B$5:$C$100,2,FALSE),\"\"))","v":""},"2c","$S$122","$T$122"]
[25259,{"$f":"Menu!$F$29","v":"X"},{"$f":"Menu!$J$29","v":2020},{"$f":"IF(ISBLANK(INDIRECT(\"'\"&F6102&\"'!\"&G6102)),\"\",INDIRECT(\"'\"&F6102&\"'!\"&G6102))","v":""},{"$f":"IF(ISBLANK(INDIRECT(\"'\"&F6102&\"'!\"&H6102)),\"\",IFERROR(VLOOKUP(TEXT(INDIRECT(\"'\"&F6102&\"'!\"&H6102),\"0\"),Notes!$B$5:$C$100,2,FALSE),\"\"))","v":""},"2c","$W$122","$X$122"]
[25260,{"$f":"Menu!$F$29","v":"X"},{"$f":"Menu!$J$29","v":2020},{"$f":"IF(ISBLANK(INDIRECT(\"'\"&F6103&\"'!\"&G6103)),\"\",INDIRECT(\"'\"&F6103&\"'!\"&G6103))","v":""},{"$f":"IF(ISBLANK(INDIRECT(\"'\"&F6103&\"'!\"&H6103)),\"\",IFERROR(VLOOKUP(TEXT(INDIRECT(\"'\"&F6103&\"'!\"&H6103),\"0\"),Notes!$B$5:$C$100,2,FALSE),\"\"))","v":""},"2c","$AA$122","$AB$122"]
[25261,{"$f":"Menu!$F$29","v":"X"},{"$f":"Menu!$J$29","v":2020},{"$f":"IF(ISBLANK(INDIRECT(\"'\"&F6104&\"'!\"&G6104)),\"\",INDIRECT(\"'\"&F6104&\"'!\"&G6104))","v":""},{"$f":"IF(ISBLANK(INDIRECT(\"'\"&F6104&\"'!\"&H6104)),\"\",IFERROR(VLOOKUP(TEXT(INDIRECT(\"'\"&F6104&\"'!\"&H6104),\"0\"),Notes!$B$5:$C$100,2,FALSE),\"\"))","v":""},"2c","$Y$122","$Z$122"]
[25268,{"$f":"Menu!$F$29","v":"X"},{"$f":"Menu!$J$29","v":2020},{"$f":"IF(ISBLANK(INDIRECT(\"'\"&F6105&\"'!\"&G6105)),\"\",INDIRECT(\"'\"&F6105&\"'!\"&G6105))","v":""},{"$f":"IF(ISBLANK(INDIRECT(\"'\"&F6105&\"'!\"&H6105)),\"\",IFERROR(VLOOKUP(TEXT(INDIRECT(\"'\"&F6105&\"'!\"&H6105),\"0\"),Notes!$B$5:$C$100,2,FALSE),\"\"))","v":""},"2e","$BG$123","$BH$123"]
[25269,{"$f":"Menu!$F$29","v":"X"},{"$f":"Menu!$J$29","v":2020},{"$f":"IF(ISBLANK(INDIRECT(\"'\"&F6106&\"'!\"&G6106)),\"\",INDIRECT(\"'\"&F6106&\"'!\"&G6106))","v":""},{"$f":"IF(ISBLANK(INDIRECT(\"'\"&F6106&\"'!\"&H6106)),\"\",IFERROR(VLOOKUP(TEXT(INDIRECT(\"'\"&F6106&\"'!\"&H6106),\"0\"),Notes!$B$5:$C$100,2,FALSE),\"\"))","v":""},"2e","$BK$123","$BL$123"]
[25270,{"$f":"Menu!$F$29","v":"X"},{"$f":"Menu!$J$29","v":2020},{"$f":"IF(ISBLANK(INDIRECT(\"'\"&F6107&\"'!\"&G6107)),\"\",INDIRECT(\"'\"&F6107&\"'!\"&G6107))","v":""},{"$f":"IF(ISBLANK(INDIRECT(\"'\"&F6107&\"'!\"&H6107)),\"\",IFERROR(VLOOKUP(TEXT(INDIRECT(\"'\"&F6107&\"'!\"&H6107),\"0\"),Notes!$B$5:$C$100,2,FALSE),\"\"))","v":""},"2e","$BI$123","$BJ$123"]
[25271,{"$f":"Menu!$F$29","v":"X"},{"$f":"Menu!$J$29","v":2020},{"$f":"IF(ISBLANK(INDIRECT(\"'\"&F6108&\"'!\"&G6108)),\"\",INDIRECT(\"'\"&F6108&\"'!\"&G6108))","v":""},{"$f":"IF(ISBLANK(INDIRECT(\"'\"&F6108&\"'!\"&H6108)),\"\",IFERROR(VLOOKUP(TEXT(INDIRECT(\"'\"&F6108&\"'!\"&H6108),\"0\"),Notes!$B$5:$C$100,2,FALSE),\"\"))","v":""},"2e","$E$123","$F$123"]
[25272,{"$f":"Menu!$F$29","v":"X"},{"$f":"Menu!$J$29","v":2020},{"$f":"IF(ISBLANK(INDIRECT(\"'\"&F6109&\"'!\"&G6109)),\"\",INDIRECT(\"'\"&F6109&\"'!\"&G6109))","v":""},{"$f":"IF(ISBLANK(INDIRECT(\"'\"&F6109&\"'!\"&H6109)),\"\",IFERROR(VLOOKUP(TEXT(INDIRECT(\"'\"&F6109&\"'!\"&H6109),\"0\"),Notes!$B$5:$C$100,2,FALSE),\"\"))","v":""},"2e","$I$123","$J$123"]
[25273,{"$f":"Menu!$F$29","v":"X"},{"$f":"Menu!$J$29","v":2020},{"$f":"IF(ISBLANK(INDIRECT(\"'\"&F6110&\"'!\"&G6110)),\"\",INDIRECT(\"'\"&F6110&\"'!\"&G6110))","v":""},{"$f":"IF(ISBLANK(INDIRECT(\"'\"&F6110&\"'!\"&H6110)),\"\",IFERROR(VLOOKUP(TEXT(INDIRECT(\"'\"&F6110&\"'!\"&H6110),\"0\"),Notes!$B$5:$C$100,2,FALSE),\"\"))","v":""},"2e","$G$123","$H$123"]
[25274,{"$f":"Menu!$F$29","v":"X"},{"$f":"Menu!$J$29","v":2020},{"$f":"IF(ISBLANK(INDIRECT(\"'\"&F6111&\"'!\"&G6111)),\"\",INDIRECT(\"'\"&F6111&\"'!\"&G6111))","v":""},{"$f":"IF(ISBLANK(INDIRECT(\"'\"&F6111&\"'!\"&H6111)),\"\",IFERROR(VLOOKUP(TEXT(INDIRECT(\"'\"&F6111&\"'!\"&H6111),\"0\"),Notes!$B$5:$C$100,2,FALSE),\"\"))","v":""},"2e","$K$123","$L$123"]
[25275,{"$f":"Menu!$F$29","v":"X"},{"$f":"Menu!$J$29","v":2020},{"$f":"IF(ISBLANK(INDIRECT(\"'\"&F6112&\"'!\"&G6112)),\"\",INDIRECT(\"'\"&F6112&\"'!\"&G6112))","v":""},{"$f":"IF(ISBLANK(INDIRECT(\"'\"&F6112&\"'!\"&H6112)),\"\",IFERROR(VLOOKUP(TEXT(INDIRECT(\"'\"&F6112&\"'!\"&H6112),\"0\"),Notes!$B$5:$C$100,2,FALSE),\"\"))","v":""},"2e","$O$123","$P$123"]
[25276,{"$f":"Menu!$F$29","v":"X"},{"$f":"Menu!$J$29","v":2020},{"$f":"IF(ISBLANK(INDIRECT(\"'\"&F6113&\"'!\"&G6113)),\"\",INDIRECT(\"'\"&F6113&\"'!\"&G6113))","v":""},{"$f":"IF(ISBLANK(INDIRECT(\"'\"&F6113&\"'!\"&H6113)),\"\",IFERROR(VLOOKUP(TEXT(INDIRECT(\"'\"&F6113&\"'!\"&H6113),\"0\"),Notes!$B$5:$C$100,2,FALSE),\"\"))","v":""},"2e","$M$123","$N$123"]
[25277,{"$f":"Menu!$F$29","v":"X"},{"$f":"Menu!$J$29","v":2020},{"$f":"IF(ISBLANK(INDIRECT(\"'\"&F6114&\"'!\"&G6114)),\"\",INDIRECT(\"'\"&F6114&\"'!\"&G6114))","v":""},{"$f":"IF(ISBLANK(INDIRECT(\"'\"&F6114&\"'!\"&H6114)),\"\",IFERROR(VLOOKUP(TEXT(INDIRECT(\"'\"&F6114&\"'!\"&H6114),\"0\"),Notes!$B$5:$C$100,2,FALSE),\"\"))","v":""},"2e","$Q$123","$R$123"]
[25278,{"$f":"Menu!$F$29","v":"X"},{"$f":"Menu!$J$29","v":2020},{"$f":"IF(ISBLANK(INDIRECT(\"'\"&F6115&\"'!\"&G6115)),\"\",INDIRECT(\"'\"&F6115&\"'!\"&G6115))","v":""},{"$f":"IF(ISBLANK(INDIRECT(\"'\"&F6115&\"'!\"&H6115)),\"\",IFERROR(VLOOKUP(TEXT(INDIRECT(\"'\"&F6115&\"'!\"&H6115),\"0\"),Notes!$B$5:$C$100,2,FALSE),\"\"))","v":""},"2e","$U$123","$V$123"]
[25279,{"$f":"Menu!$F$29","v":"X"},{"$f":"Menu!$J$29","v":2020},{"$f":"IF(ISBLANK(INDIRECT(\"'\"&F6116&\"'!\"&G6116)),\"\",INDIRECT(\"'\"&F6116&\"'!\"&G6116))","v":""},{"$f":"IF(ISBLANK(INDIRECT(\"'\"&F6116&\"'!\"&H6116)),\"\",IFERROR(VLOOKUP(TEXT(INDIRECT(\"'\"&F6116&\"'!\"&H6116),\"0\"),Notes!$B$5:$C$100,2,FALSE),\"\"))","v":""},"2e","$S$123","$T$123"]
[25280,{"$f":"Menu!$F$29","v":"X"},{"$f":"Menu!$J$29","v":2020},{"$f":"IF(ISBLANK(INDIRECT(\"'\"&F6117&\"'!\"&G6117)),\"\",INDIRECT(\"'\"&F6117&\"'!\"&G6117))","v":""},{"$f":"IF(ISBLANK(INDIRECT(\"'\"&F6117&\"'!\"&H6117)),\"\",IFERROR(VLOOKUP(TEXT(INDIRECT(\"'\"&F6117&\"'!\"&H6117),\"0\"),Notes!$B$5:$C$100,2,FALSE),\"\"))","v":""},"2e","$W$123","$X$123"]
[25281,{"$f":"Menu!$F$29","v":"X"},{"$f":"Menu!$J$29","v":2020},{"$f":"IF(ISBLANK(INDIRECT(\"'\"&F6118&\"'!\"&G6118)),\"\",INDIRECT(\"'\"&F6118&\"'!\"&G6118))","v":""},{"$f":"IF(ISBLANK(INDIRECT(\"'\"&F6118&\"'!\"&H6118)),\"\",IFERROR(VLOOKUP(TEXT(INDIRECT(\"'\"&F6118&\"'!\"&H6118),\"0\"),Notes!$B$5:$C$100,2,FALSE),\"\"))","v":""},"2e","$AA$123","$AB$123"]
[25282,{"$f":"Menu!$F$29","v":"X"},{"$f":"Menu!$J$29","v":2020},{"$f":"IF(ISBLANK(INDIRECT(\"'\"&F6119&\"'!\"&G6119)),\"\",INDIRECT(\"'\"&F6119&\"'!\"&G6119))","v":""},{"$f":"IF(ISBLANK(INDIRECT(\"'\"&F6119&\"'!\"&H6119)),\"\",IFERROR(VLOOKUP(TEXT(INDIRECT(\"'\"&F6119&\"'!\"&H6119),\"0\"),Notes!$B$5:$C$100,2,FALSE),\"\"))","v":""},"2e","$Y$123","$Z$123"]
[25283,{"$f":"Menu!$F$29","v":"X"},{"$f":"Menu!$J$29","v":2020},{"$f":"IF(ISBLANK(INDIRECT(\"'\"&F6120&\"'!\"&G6120)),\"\",INDIRECT(\"'\"&F6120&\"'!\"&G6120))","v":""},{"$f":"IF(ISBLANK(INDIRECT(\"'\"&F6120&\"'!\"&H6120)),\"\",IFERROR(VLOOKUP(TEXT(INDIRECT(\"'\"&F6120&\"'!\"&H6120),\"0\"),Notes!$B$5:$C$100,2,FALSE),\"\"))","v":""},"2e","$AC$123","$AD$123"]
[25284,{"$f":"Menu!$F$29","v":"X"},{"$f":"Menu!$J$29","v":2020},{"$f":"IF(ISBLANK(INDIRECT(\"'\"&F6121&\"'!\"&G6121)),\"\",INDIRECT(\"'\"&F6121&\"'!\"&G6121))","v":""},{"$f":"IF(ISBLANK(INDIRECT(\"'\"&F6121&\"'!\"&H6121)),\"\",IFERROR(VLOOKUP(TEXT(INDIRECT(\"'\"&F6121&\"'!\"&H6121),\"0\"),Notes!$B$5:$C$100,2,FALSE),\"\"))","v":""},"2e","$AG$123","$AH$123"]
[25285,{"$f":"Menu!$F$29","v":"X"},{"$f":"Menu!$J$29","v":2020},{"$f":"IF(ISBLANK(INDIRECT(\"'\"&F6122&\"'!\"&G6122)),\"\",INDIRECT(\"'\"&F6122&\"'!\"&G6122))","v":""},{"$f":"IF(ISBLANK(INDIRECT(\"'\"&F6122&\"'!\"&H6122)),\"\",IFERROR(VLOOKUP(TEXT(INDIRECT(\"'\"&F6122&\"'!\"&H6122),\"0\"),Notes!$B$5:$C$100,2,FALSE),\"\"))","v":""},"2e","$AE$123","$AF$123"]
[25286,{"$f":"Menu!$F$29","v":"X"},{"$f":"Menu!$J$29","v":2020},{"$f":"IF(ISBLANK(INDIRECT(\"'\"&F6123&\"'!\"&G6123)),\"\",INDIRECT(\"'\"&F6123&\"'!\"&G6123))","v":""},{"$f":"IF(ISBLANK(INDIRECT(\"'\"&F6123&\"'!\"&H6123)),\"\",IFERROR(VLOOKUP(TEXT(INDIRECT(\"'\"&F6123&\"'!\"&H6123),\"0\"),Notes!$B$5:$C$100,2,FALSE),\"\"))","v":""},"2e","$AI$123","$AJ$123"]
[25287,{"$f":"Menu!$F$29","v":"X"},{"$f":"Menu!$J$29","v":2020},{"$f":"IF(ISBLANK(INDIRECT(\"'\"&F6124&\"'!\"&G6124)),\"\",INDIRECT(\"'\"&F6124&\"'!\"&G6124))","v":""},{"$f":"IF(ISBLANK(INDIRECT(\"'\"&F6124&\"'!\"&H6124)),\"\",IFERROR(VLOOKUP(TEXT(INDIRECT(\"'\"&F6124&\"'!\"&H6124),\"0\"),Notes!$B$5:$C$100,2,FALSE),\"\"))","v":""},"2e","$AM$123","$AN$123"]
[25288,{"$f":"Menu!$F$29","v":"X"},{"$f":"Menu!$J$29","v":2020},{"$f":"IF(ISBLANK(INDIRECT(\"'\"&F6125&\"'!\"&G6125)),\"\",INDIRECT(\"'\"&F6125&\"'!\"&G6125))","v":""},{"$f":"IF(ISBLANK(INDIRECT(\"'\"&F6125&\"'!\"&H6125)),\"\",IFERROR(VLOOKUP(TEXT(INDIRECT(\"'\"&F6125&\"'!\"&H6125),\"0\"),Notes!$B$5:$C$100,2,FALSE),\"\"))","v":""},"2e","$AK$123","$AL$123"]
[25289,{"$f":"Menu!$F$29","v":"X"},{"$f":"Menu!$J$29","v":2020},{"$f":"IF(ISBLANK(INDIRECT(\"'\"&F6126&\"'!\"&G6126)),\"\",INDIRECT(\"'\"&F6126&\"'!\"&G6126))","v":""},{"$f":"IF(ISBLANK(INDIRECT(\"'\"&F6126&\"'!\"&H6126)),\"\",IFERROR(VLOOKUP(TEXT(INDIRECT(\"'\"&F6126&\"'!\"&H6126),\"0\"),Notes!$B$5:$C$100,2,FALSE),\"\"))","v":""},"2e","$AO$123","$AP$123"]
[25290,{"$f":"Menu!$F$29","v":"X"},{"$f":"Menu!$J$29","v":2020},{"$f":"IF(ISBLANK(INDIRECT(\"'\"&F6127&\"'!\"&G6127)),\"\",INDIRECT(\"'\"&F6127&\"'!\"&G6127))","v":""},{"$f":"IF(ISBLANK(INDIRECT(\"'\"&F6127&\"'!\"&H6127)),\"\",IFERROR(VLOOKUP(TEXT(INDIRECT(\"'\"&F6127&\"'!\"&H6127),\"0\"),Notes!$B$5:$C$100,2,FALSE),\"\"))","v":""},"2e","$AS$123","$AT$123"]
[25291,{"$f":"Menu!$F$29","v":"X"},{"$f":"Menu!$J$29","v":2020},{"$f":"IF(ISBLANK(INDIRECT(\"'\"&F6128&\"'!\"&G6128)),\"\",INDIRECT(\"'\"&F6128&\"'!\"&G6128))","v":""},{"$f":"IF(ISBLANK(INDIRECT(\"'\"&F6128&\"'!\"&H6128)),\"\",IFERROR(VLOOKUP(TEXT(INDIRECT(\"'\"&F6128&\"'!\"&H6128),\"0\"),Notes!$B$5:$C$100,2,FALSE),\"\"))","v":""},"2e","$AQ$123","$AR$123"]
[25292,{"$f":"Menu!$F$29","v":"X"},{"$f":"Menu!$J$29","v":2020},{"$f":"IF(ISBLANK(INDIRECT(\"'\"&F6129&\"'!\"&G6129)),\"\",INDIRECT(\"'\"&F6129&\"'!\"&G6129))","v":""},{"$f":"IF(ISBLANK(INDIRECT(\"'\"&F6129&\"'!\"&H6129)),\"\",IFERROR(VLOOKUP(TEXT(INDIRECT(\"'\"&F6129&\"'!\"&H6129),\"0\"),Notes!$B$5:$C$100,2,FALSE),\"\"))","v":""},"2e","$AU$123","$AV$123"]
[25293,{"$f":"Menu!$F$29","v":"X"},{"$f":"Menu!$J$29","v":2020},{"$f":"IF(ISBLANK(INDIRECT(\"'\"&F6130&\"'!\"&G6130)),\"\",INDIRECT(\"'\"&F6130&\"'!\"&G6130))","v":""},{"$f":"IF(ISBLANK(INDIRECT(\"'\"&F6130&\"'!\"&H6130)),\"\",IFERROR(VLOOKUP(TEXT(INDIRECT(\"'\"&F6130&\"'!\"&H6130),\"0\"),Notes!$B$5:$C$100,2,FALSE),\"\"))","v":""},"2e","$AY$123","$AZ$123"]
[25294,{"$f":"Menu!$F$29","v":"X"},{"$f":"Menu!$J$29","v":2020},{"$f":"IF(ISBLANK(INDIRECT(\"'\"&F6131&\"'!\"&G6131)),\"\",INDIRECT(\"'\"&F6131&\"'!\"&G6131))","v":""},{"$f":"IF(ISBLANK(INDIRECT(\"'\"&F6131&\"'!\"&H6131)),\"\",IFERROR(VLOOKUP(TEXT(INDIRECT(\"'\"&F6131&\"'!\"&H6131),\"0\"),Notes!$B$5:$C$100,2,FALSE),\"\"))","v":""},"2e","$AW$123","$AX$123"]
[25295,{"$f":"Menu!$F$29","v":"X"},{"$f":"Menu!$J$29","v":2020},{"$f":"IF(ISBLANK(INDIRECT(\"'\"&F6132&\"'!\"&G6132)),\"\",INDIRECT(\"'\"&F6132&\"'!\"&G6132))","v":""},{"$f":"IF(ISBLANK(INDIRECT(\"'\"&F6132&\"'!\"&H6132)),\"\",IFERROR(VLOOKUP(TEXT(INDIRECT(\"'\"&F6132&\"'!\"&H6132),\"0\"),Notes!$B$5:$C$100,2,FALSE),\"\"))","v":""},"2e","$BA$123","$BB$123"]
[25296,{"$f":"Menu!$F$29","v":"X"},{"$f":"Menu!$J$29","v":2020},{"$f":"IF(ISBLANK(INDIRECT(\"'\"&F6133&\"'!\"&G6133)),\"\",INDIRECT(\"'\"&F6133&\"'!\"&G6133))","v":""},{"$f":"IF(ISBLANK(INDIRECT(\"'\"&F6133&\"'!\"&H6133)),\"\",IFERROR(VLOOKUP(TEXT(INDIRECT(\"'\"&F6133&\"'!\"&H6133),\"0\"),Notes!$B$5:$C$100,2,FALSE),\"\"))","v":""},"2e","$BE$123","$BF$123"]
[25297,{"$f":"Menu!$F$29","v":"X"},{"$f":"Menu!$J$29","v":2020},{"$f":"IF(ISBLANK(INDIRECT(\"'\"&F6134&\"'!\"&G6134)),\"\",INDIRECT(\"'\"&F6134&\"'!\"&G6134))","v":""},{"$f":"IF(ISBLANK(INDIRECT(\"'\"&F6134&\"'!\"&H6134)),\"\",IFERROR(VLOOKUP(TEXT(INDIRECT(\"'\"&F6134&\"'!\"&H6134),\"0\"),Notes!$B$5:$C$100,2,FALSE),\"\"))","v":""},"2e","$BC$123","$BD$123"]
[25298,{"$f":"Menu!$F$29","v":"X"},{"$f":"Menu!$J$29","v":2020},{"$f":"IF(ISBLANK(INDIRECT(\"'\"&F6135&\"'!\"&G6135)),\"\",INDIRECT(\"'\"&F6135&\"'!\"&G6135))","v":""},{"$f":"IF(ISBLANK(INDIRECT(\"'\"&F6135&\"'!\"&H6135)),\"\",IFERROR(VLOOKUP(TEXT(INDIRECT(\"'\"&F6135&\"'!\"&H6135),\"0\"),Notes!$B$5:$C$100,2,FALSE),\"\"))","v":""},"2b","$E$122","$F$122"]
[25299,{"$f":"Menu!$F$29","v":"X"},{"$f":"Menu!$J$29","v":2020},{"$f":"IF(ISBLANK(INDIRECT(\"'\"&F6136&\"'!\"&G6136)),\"\",INDIRECT(\"'\"&F6136&\"'!\"&G6136))","v":""},{"$f":"IF(ISBLANK(INDIRECT(\"'\"&F6136&\"'!\"&H6136)),\"\",IFERROR(VLOOKUP(TEXT(INDIRECT(\"'\"&F6136&\"'!\"&H6136),\"0\"),Notes!$B$5:$C$100,2,FALSE),\"\"))","v":""},"2b","$I$122","$J$122"]
[25300,{"$f":"Menu!$F$29","v":"X"},{"$f":"Menu!$J$29","v":2020},{"$f":"IF(ISBLANK(INDIRECT(\"'\"&F6137&\"'!\"&G6137)),\"\",INDIRECT(\"'\"&F6137&\"'!\"&G6137))","v":""},{"$f":"IF(ISBLANK(INDIRECT(\"'\"&F6137&\"'!\"&H6137)),\"\",IFERROR(VLOOKUP(TEXT(INDIRECT(\"'\"&F6137&\"'!\"&H6137),\"0\"),Notes!$B$5:$C$100,2,FALSE),\"\"))","v":""},"2b","$G$122","$H$122"]
[25301,{"$f":"Menu!$F$29","v":"X"},{"$f":"Menu!$J$29","v":2020},{"$f":"IF(ISBLANK(INDIRECT(\"'\"&F6138&\"'!\"&G6138)),\"\",INDIRECT(\"'\"&F6138&\"'!\"&G6138))","v":""},{"$f":"IF(ISBLANK(INDIRECT(\"'\"&F6138&\"'!\"&H6138)),\"\",IFERROR(VLOOKUP(TEXT(INDIRECT(\"'\"&F6138&\"'!\"&H6138),\"0\"),Notes!$B$5:$C$100,2,FALSE),\"\"))","v":""},"2a","$G$122","$H$122"]
[25302,{"$f":"Menu!$F$29","v":"X"},{"$f":"Menu!$J$29","v":2020},{"$f":"IF(ISBLANK(INDIRECT(\"'\"&F6139&\"'!\"&G6139)),\"\",INDIRECT(\"'\"&F6139&\"'!\"&G6139))","v":""},{"$f":"IF(ISBLANK(INDIRECT(\"'\"&F6139&\"'!\"&H6139)),\"\",IFERROR(VLOOKUP(TEXT(INDIRECT(\"'\"&F6139&\"'!\"&H6139),\"0\"),Notes!$B$5:$C$100,2,FALSE),\"\"))","v":""},"2b","$W$122","$X$122"]
[25303,{"$f":"Menu!$F$29","v":"X"},{"$f":"Menu!$J$29","v":2020},{"$f":"IF(ISBLANK(INDIRECT(\"'\"&F6140&\"'!\"&G6140)),\"\",INDIRECT(\"'\"&F6140&\"'!\"&G6140))","v":""},{"$f":"IF(ISBLANK(INDIRECT(\"'\"&F6140&\"'!\"&H6140)),\"\",IFERROR(VLOOKUP(TEXT(INDIRECT(\"'\"&F6140&\"'!\"&H6140),\"0\"),Notes!$B$5:$C$100,2,FALSE),\"\"))","v":""},"2b","$AA$122","$AB$122"]
[25304,{"$f":"Menu!$F$29","v":"X"},{"$f":"Menu!$J$29","v":2020},{"$f":"IF(ISBLANK(INDIRECT(\"'\"&F6141&\"'!\"&G6141)),\"\",INDIRECT(\"'\"&F6141&\"'!\"&G6141))","v":""},{"$f":"IF(ISBLANK(INDIRECT(\"'\"&F6141&\"'!\"&H6141)),\"\",IFERROR(VLOOKUP(TEXT(INDIRECT(\"'\"&F6141&\"'!\"&H6141),\"0\"),Notes!$B$5:$C$100,2,FALSE),\"\"))","v":""},"2b","$Y$122","$Z$122"]
[25305,{"$f":"Menu!$F$29","v":"X"},{"$f":"Menu!$J$29","v":2020},{"$f":"IF(ISBLANK(INDIRECT(\"'\"&F6142&\"'!\"&G6142)),\"\",INDIRECT(\"'\"&F6142&\"'!\"&G6142))","v":""},{"$f":"IF(ISBLANK(INDIRECT(\"'\"&F6142&\"'!\"&H6142)),\"\",IFERROR(VLOOKUP(TEXT(INDIRECT(\"'\"&F6142&\"'!\"&H6142),\"0\"),Notes!$B$5:$C$100,2,FALSE),\"\"))","v":""},"2d","$AC$122","$AD$122"]
[25306,{"$f":"Menu!$F$29","v":"X"},{"$f":"Menu!$J$29","v":2020},{"$f":"IF(ISBLANK(INDIRECT(\"'\"&F6143&\"'!\"&G6143)),\"\",INDIRECT(\"'\"&F6143&\"'!\"&G6143))","v":""},{"$f":"IF(ISBLANK(INDIRECT(\"'\"&F6143&\"'!\"&H6143)),\"\",IFERROR(VLOOKUP(TEXT(INDIRECT(\"'\"&F6143&\"'!\"&H6143),\"0\"),Notes!$B$5:$C$100,2,FALSE),\"\"))","v":""},"2d","$AG$122","$AH$122"]
[25307,{"$f":"Menu!$F$29","v":"X"},{"$f":"Menu!$J$29","v":2020},{"$f":"IF(ISBLANK(INDIRECT(\"'\"&F6144&\"'!\"&G6144)),\"\",INDIRECT(\"'\"&F6144&\"'!\"&G6144))","v":""},{"$f":"IF(ISBLANK(INDIRECT(\"'\"&F6144&\"'!\"&H6144)),\"\",IFERROR(VLOOKUP(TEXT(INDIRECT(\"'\"&F6144&\"'!\"&H6144),\"0\"),Notes!$B$5:$C$100,2,FALSE),\"\"))","v":""},"2d","$AE$122","$AF$122"]
[25308,{"$f":"Menu!$F$29","v":"X"},{"$f":"Menu!$J$29","v":2020},{"$f":"IF(ISBLANK(INDIRECT(\"'\"&F6145&\"'!\"&G6145)),\"\",INDIRECT(\"'\"&F6145&\"'!\"&G6145))","v":""},{"$f":"IF(ISBLANK(INDIRECT(\"'\"&F6145&\"'!\"&H6145)),\"\",IFERROR(VLOOKUP(TEXT(INDIRECT(\"'\"&F6145&\"'!\"&H6145),\"0\"),Notes!$B$5:$C$100,2,FALSE),\"\"))","v":""},"2d","$W$122","$X$122"]
[25309,{"$f":"Menu!$F$29","v":"X"},{"$f":"Menu!$J$29","v":2020},{"$f":"IF(ISBLANK(INDIRECT(\"'\"&F6146&\"'!\"&G6146)),\"\",INDIRECT(\"'\"&F6146&\"'!\"&G6146))","v":""},{"$f":"IF(ISBLANK(INDIRECT(\"'\"&F6146&\"'!\"&H6146)),\"\",IFERROR(VLOOKUP(TEXT(INDIRECT(\"'\"&F6146&\"'!\"&H6146),\"0\"),Notes!$B$5:$C$100,2,FALSE),\"\"))","v":""},"2d","$AA$122",{"$f":"IF(LEN(TRIM(MID(G6146,4,10)))-LEN(SUBSTITUTE(TRIM(MID(G6146,4,10)),\"$\",\"\"))=0,\"$\"&CHAR(CODE(MID(G6146,2,1))+1)&\"$\"&TRIM(MID(G6146,4,10)),\"$\"&MID(G6146,2,1)&CHAR(CODE(MID(G6146,3,1))+1)&\"$\"&TRIM(MID(G6146,5,11)))","v":"$AB$122"}]
[25310,{"$f":"Menu!$F$29","v":"X"},{"$f":"Menu!$J$29","v":2020},{"$f":"IF(ISBLANK(INDIRECT(\"'\"&F6147&\"'!\"&G6147)),\"\",INDIRECT(\"'\"&F6147&\"'!\"&G6147))","v":""},{"$f":"IF(ISBLANK(INDIRECT(\"'\"&F6147&\"'!\"&H6147)),\"\",IFERROR(VLOOKUP(TEXT(INDIRECT(\"'\"&F6147&\"'!\"&H6147),\"0\"),Notes!$B$5:$C$100,2,FALSE),\"\"))","v":""},"2d","$Y$122","$Z$122"]
[25311,{"$f":"Menu!$F$29","v":"X"},{"$f":"Menu!$J$29","v":2020},{"$f":"IF(ISBLANK(INDIRECT(\"'\"&F6148&\"'!\"&G6148)),\"\",INDIRECT(\"'\"&F6148&\"'!\"&G6148))","v":""},{"$f":"IF(ISBLANK(INDIRECT(\"'\"&F6148&\"'!\"&H6148)),\"\",IFERROR(VLOOKUP(TEXT(INDIRECT(\"'\"&F6148&\"'!\"&H6148),\"0\"),Notes!$B$5:$C$100,2,FALSE),\"\"))","v":""},"2d","$E$122","$F$122"]
[25312,{"$f":"Menu!$F$29","v":"X"},{"$f":"Menu!$J$29","v":2020},{"$f":"IF(ISBLANK(INDIRECT(\"'\"&F6149&\"'!\"&G6149)),\"\",INDIRECT(\"'\"&F6149&\"'!\"&G6149))","v":""},{"$f":"IF(ISBLANK(INDIRECT(\"'\"&F6149&\"'!\"&H6149)),\"\",IFERROR(VLOOKUP(TEXT(INDIRECT(\"'\"&F6149&\"'!\"&H6149),\"0\"),Notes!$B$5:$C$100,2,FALSE),\"\"))","v":""},"2d","$I$122","$J$122"]
[25313,{"$f":"Menu!$F$29","v":"X"},{"$f":"Menu!$J$29","v":2020},{"$f":"IF(ISBLANK(INDIRECT(\"'\"&F6150&\"'!\"&G6150)),\"\",INDIRECT(\"'\"&F6150&\"'!\"&G6150))","v":""},{"$f":"IF(ISBLANK(INDIRECT(\"'\"&F6150&\"'!\"&H6150)),\"\",IFERROR(VLOOKUP(TEXT(INDIRECT(\"'\"&F6150&\"'!\"&H6150),\"0\"),Notes!$B$5:$C$100,2,FALSE),\"\"))","v":""},"2d","$G$122","$H$122"]
[25314,{"$f":"Menu!$F$29","v":"X"},{"$f":"Menu!$J$29","v":2020},{"$f":"IF(ISBLANK(INDIRECT(\"'\"&F6151&\"'!\"&G6151)),\"\",INDIRECT(\"'\"&F6151&\"'!\"&G6151))","v":""},{"$f":"IF(ISBLANK(INDIRECT(\"'\"&F6151&\"'!\"&H6151)),\"\",IFERROR(VLOOKUP(TEXT(INDIRECT(\"'\"&F6151&\"'!\"&H6151),\"0\"),Notes!$B$5:$C$100,2,FALSE),\"\"))","v":""},"2a","$Q$122","$R$122"]
[25315,{"$f":"Menu!$F$29","v":"X"},{"$f":"Menu!$J$29","v":2020},{"$f":"IF(ISBLANK(INDIRECT(\"'\"&F6152&\"'!\"&G6152)),\"\",INDIRECT(\"'\"&F6152&\"'!\"&G6152))","v":""},{"$f":"IF(ISBLANK(INDIRECT(\"'\"&F6152&\"'!\"&H6152)),\"\",IFERROR(VLOOKUP(TEXT(INDIRECT(\"'\"&F6152&\"'!\"&H6152),\"0\"),Notes!$B$5:$C$100,2,FALSE),\"\"))","v":""},"2a","$U$122","$V$122"]
[25316,{"$f":"Menu!$F$29","v":"X"},{"$f":"Menu!$J$29","v":2020},{"$f":"IF(ISBLANK(INDIRECT(\"'\"&F6153&\"'!\"&G6153)),\"\",INDIRECT(\"'\"&F6153&\"'!\"&G6153))","v":""},{"$f":"IF(ISBLANK(INDIRECT(\"'\"&F6153&\"'!\"&H6153)),\"\",IFERROR(VLOOKUP(TEXT(INDIRECT(\"'\"&F6153&\"'!\"&H6153),\"0\"),Notes!$B$5:$C$100,2,FALSE),\"\"))","v":""},"2a","$S$122","$T$122"]
[25317,{"$f":"Menu!$F$29","v":"X"},{"$f":"Menu!$J$29","v":2020},{"$f":"IF(ISBLANK(INDIRECT(\"'\"&F6154&\"'!\"&G6154)),\"\",INDIRECT(\"'\"&F6154&\"'!\"&G6154))","v":""},{"$f":"IF(ISBLANK(INDIRECT(\"'\"&F6154&\"'!\"&H6154)),\"\",IFERROR(VLOOKUP(TEXT(INDIRECT(\"'\"&F6154&\"'!\"&H6154),\"0\"),Notes!$B$5:$C$100,2,FALSE),\"\"))","v":""},"2d","$K$122","$L$122"]
[25318,{"$f":"Menu!$F$29","v":"X"},{"$f":"Menu!$J$29","v":2020},{"$f":"IF(ISBLANK(INDIRECT(\"'\"&F6155&\"'!\"&G6155)),\"\",INDIRECT(\"'\"&F6155&\"'!\"&G6155))","v":""},{"$f":"IF(ISBLANK(INDIRECT(\"'\"&F6155&\"'!\"&H6155)),\"\",IFERROR(VLOOKUP(TEXT(INDIRECT(\"'\"&F6155&\"'!\"&H6155),\"0\"),Notes!$B$5:$C$100,2,FALSE),\"\"))","v":""},"2d","$O$122","$P$122"]
[25319,{"$f":"Menu!$F$29","v":"X"},{"$f":"Menu!$J$29","v":2020},{"$f":"IF(ISBLANK(INDIRECT(\"'\"&F6156&\"'!\"&G6156)),\"\",INDIRECT(\"'\"&F6156&\"'!\"&G6156))","v":""},{"$f":"IF(ISBLANK(INDIRECT(\"'\"&F6156&\"'!\"&H6156)),\"\",IFERROR(VLOOKUP(TEXT(INDIRECT(\"'\"&F6156&\"'!\"&H6156),\"0\"),Notes!$B$5:$C$100,2,FALSE),\"\"))","v":""},"2d","$M$122","$N$122"]
[25320,{"$f":"Menu!$F$29","v":"X"},{"$f":"Menu!$J$29","v":2020},{"$f":"IF(ISBLANK(INDIRECT(\"'\"&F6157&\"'!\"&G6157)),\"\",INDIRECT(\"'\"&F6157&\"'!\"&G6157))","v":""},{"$f":"IF(ISBLANK(INDIRECT(\"'\"&F6157&\"'!\"&H6157)),\"\",IFERROR(VLOOKUP(TEXT(INDIRECT(\"'\"&F6157&\"'!\"&H6157),\"0\"),Notes!$B$5:$C$100,2,FALSE),\"\"))","v":""},"2d","$Q$122","$R$122"]
[25321,{"$f":"Menu!$F$29","v":"X"},{"$f":"Menu!$J$29","v":2020},{"$f":"IF(ISBLANK(INDIRECT(\"'\"&F6158&\"'!\"&G6158)),\"\",INDIRECT(\"'\"&F6158&\"'!\"&G6158))","v":""},{"$f":"IF(ISBLANK(INDIRECT(\"'\"&F6158&\"'!\"&H6158)),\"\",IFERROR(VLOOKUP(TEXT(INDIRECT(\"'\"&F6158&\"'!\"&H6158),\"0\"),Notes!$B$5:$C$100,2,FALSE),\"\"))","v":""},"2d","$U$122","$V$122"]
[25322,{"$f":"Menu!$F$29","v":"X"},{"$f":"Menu!$J$29","v":2020},{"$f":"IF(ISBLANK(INDIRECT(\"'\"&F6159&\"'!\"&G6159)),\"\",INDIRECT(\"'\"&F6159&\"'!\"&G6159))","v":""},{"$f":"IF(ISBLANK(INDIRECT(\"'\"&F6159&\"'!\"&H6159)),\"\",IFERROR(VLOOKUP(TEXT(INDIRECT(\"'\"&F6159&\"'!\"&H6159),\"0\"),Notes!$B$5:$C$100,2,FALSE),\"\"))","v":""},"2d","$S$122","$T$122"]
[25323,{"$f":"Menu!$F$29","v":"X"},{"$f":"Menu!$J$29","v":2020},{"$f":"IF(ISBLANK(INDIRECT(\"'\"&F6160&\"'!\"&G6160)),\"\",INDIRECT(\"'\"&F6160&\"'!\"&G6160))","v":""},{"$f":"IF(ISBLANK(INDIRECT(\"'\"&F6160&\"'!\"&H6160)),\"\",IFERROR(VLOOKUP(TEXT(INDIRECT(\"'\"&F6160&\"'!\"&H6160),\"0\"),Notes!$B$5:$C$100,2,FALSE),\"\"))","v":""},"2a","$K$122","$L$122"]
[25324,{"$f":"Menu!$F$29","v":"X"},{"$f":"Menu!$J$29","v":2020},{"$f":"IF(ISBLANK(INDIRECT(\"'\"&F6161&\"'!\"&G6161)),\"\",INDIRECT(\"'\"&F6161&\"'!\"&G6161))","v":""},{"$f":"IF(ISBLANK(INDIRECT(\"'\"&F6161&\"'!\"&H6161)),\"\",IFERROR(VLOOKUP(TEXT(INDIRECT(\"'\"&F6161&\"'!\"&H6161),\"0\"),Notes!$B$5:$C$100,2,FALSE),\"\"))","v":""},"2a","$O$122","$P$122"]
[25325,{"$f":"Menu!$F$29","v":"X"},{"$f":"Menu!$J$29","v":2020},{"$f":"IF(ISBLANK(INDIRECT(\"'\"&F6162&\"'!\"&G6162)),\"\",INDIRECT(\"'\"&F6162&\"'!\"&G6162))","v":""},{"$f":"IF(ISBLANK(INDIRECT(\"'\"&F6162&\"'!\"&H6162)),\"\",IFERROR(VLOOKUP(TEXT(INDIRECT(\"'\"&F6162&\"'!\"&H6162),\"0\"),Notes!$B$5:$C$100,2,FALSE),\"\"))","v":""},"2a","$M$122","$N$122"]
[25326,{"$f":"Menu!$F$29","v":"X"},{"$f":"Menu!$J$29","v":2020},{"$f":"IF(ISBLANK(INDIRECT(\"'\"&F6163&\"'!\"&G6163)),\"\",INDIRECT(\"'\"&F6163&\"'!\"&G6163))","v":""},{"$f":"IF(ISBLANK(INDIRECT(\"'\"&F6163&\"'!\"&H6163)),\"\",IFERROR(VLOOKUP(TEXT(INDIRECT(\"'\"&F6163&\"'!\"&H6163),\"0\"),Notes!$B$5:$C$100,2,FALSE),\"\"))","v":""},"2a","$E$122","$F$122"]
[25327,{"$f":"Menu!$F$29","v":"X"},{"$f":"Menu!$J$29","v":2020},{"$f":"IF(ISBLANK(INDIRECT(\"'\"&F6164&\"'!\"&G6164)),\"\",INDIRECT(\"'\"&F6164&\"'!\"&G6164))","v":""},{"$f":"IF(ISBLANK(INDIRECT(\"'\"&F6164&\"'!\"&H6164)),\"\",IFERROR(VLOOKUP(TEXT(INDIRECT(\"'\"&F6164&\"'!\"&H6164),\"0\"),Notes!$B$5:$C$100,2,FALSE),\"\"))","v":""},"2b","$K$123","$L$123"]
[25328,{"$f":"Menu!$F$29","v":"X"},{"$f":"Menu!$J$29","v":2020},{"$f":"IF(ISBLANK(INDIRECT(\"'\"&F6165&\"'!\"&G6165)),\"\",INDIRECT(\"'\"&F6165&\"'!\"&G6165))","v":""},{"$f":"IF(ISBLANK(INDIRECT(\"'\"&F6165&\"'!\"&H6165)),\"\",IFERROR(VLOOKUP(TEXT(INDIRECT(\"'\"&F6165&\"'!\"&H6165),\"0\"),Notes!$B$5:$C$100,2,FALSE),\"\"))","v":""},"2b","$O$123","$P$123"]
[25329,{"$f":"Menu!$F$29","v":"X"},{"$f":"Menu!$J$29","v":2020},{"$f":"IF(ISBLANK(INDIRECT(\"'\"&F6166&\"'!\"&G6166)),\"\",INDIRECT(\"'\"&F6166&\"'!\"&G6166))","v":""},{"$f":"IF(ISBLANK(INDIRECT(\"'\"&F6166&\"'!\"&H6166)),\"\",IFERROR(VLOOKUP(TEXT(INDIRECT(\"'\"&F6166&\"'!\"&H6166),\"0\"),Notes!$B$5:$C$100,2,FALSE),\"\"))","v":""},"2b","$M$123","$N$123"]
[25330,{"$f":"Menu!$F$29","v":"X"},{"$f":"Menu!$J$29","v":2020},{"$f":"IF(ISBLANK(INDIRECT(\"'\"&F6167&\"'!\"&G6167)),\"\",INDIRECT(\"'\"&F6167&\"'!\"&G6167))","v":""},{"$f":"IF(ISBLANK(INDIRECT(\"'\"&F6167&\"'!\"&H6167)),\"\",IFERROR(VLOOKUP(TEXT(INDIRECT(\"'\"&F6167&\"'!\"&H6167),\"0\"),Notes!$B$5:$C$100,2,FALSE),\"\"))","v":""},"2b","$Q$123","$R$123"]
[25331,{"$f":"Menu!$F$29","v":"X"},{"$f":"Menu!$J$29","v":2020},{"$f":"IF(ISBLANK(INDIRECT(\"'\"&F6168&\"'!\"&G6168)),\"\",INDIRECT(\"'\"&F6168&\"'!\"&G6168))","v":""},{"$f":"IF(ISBLANK(INDIRECT(\"'\"&F6168&\"'!\"&H6168)),\"\",IFERROR(VLOOKUP(TEXT(INDIRECT(\"'\"&F6168&\"'!\"&H6168),\"0\"),Notes!$B$5:$C$100,2,FALSE),\"\"))","v":""},"2b","$U$123","$V$123"]
[25332,{"$f":"Menu!$F$29","v":"X"},{"$f":"Menu!$J$29","v":2020},{"$f":"IF(ISBLANK(INDIRECT(\"'\"&F6169&\"'!\"&G6169)),\"\",INDIRECT(\"'\"&F6169&\"'!\"&G6169))","v":""},{"$f":"IF(ISBLANK(INDIRECT(\"'\"&F6169&\"'!\"&H6169)),\"\",IFERROR(VLOOKUP(TEXT(INDIRECT(\"'\"&F6169&\"'!\"&H6169),\"0\"),Notes!$B$5:$C$100,2,FALSE),\"\"))","v":""},"2b","$S$123","$T$123"]
[25336,{"$f":"Menu!$F$29","v":"X"},{"$f":"Menu!$J$29","v":2020},{"$f":"IF(ISBLANK(INDIRECT(\"'\"&F6170&\"'!\"&G6170)),\"\",INDIRECT(\"'\"&F6170&\"'!\"&G6170))","v":""},{"$f":"IF(ISBLANK(INDIRECT(\"'\"&F6170&\"'!\"&H6170)),\"\",IFERROR(VLOOKUP(TEXT(INDIRECT(\"'\"&F6170&\"'!\"&H6170),\"0\"),Notes!$B$5:$C$100,2,FALSE),\"\"))","v":""},"2a","$I$123","$J$123"]
[25337,{"$f":"Menu!$F$29","v":"X"},{"$f":"Menu!$J$29","v":2020},{"$f":"IF(ISBLANK(INDIRECT(\"'\"&F6171&\"'!\"&G6171)),\"\",INDIRECT(\"'\"&F6171&\"'!\"&G6171))","v":""},{"$f":"IF(ISBLANK(INDIRECT(\"'\"&F6171&\"'!\"&H6171)),\"\",IFERROR(VLOOKUP(TEXT(INDIRECT(\"'\"&F6171&\"'!\"&H6171),\"0\"),Notes!$B$5:$C$100,2,FALSE),\"\"))","v":""},"2c","$E$123","$F$123"]
[25338,{"$f":"Menu!$F$29","v":"X"},{"$f":"Menu!$J$29","v":2020},{"$f":"IF(ISBLANK(INDIRECT(\"'\"&F6172&\"'!\"&G6172)),\"\",INDIRECT(\"'\"&F6172&\"'!\"&G6172))","v":""},{"$f":"IF(ISBLANK(INDIRECT(\"'\"&F6172&\"'!\"&H6172)),\"\",IFERROR(VLOOKUP(TEXT(INDIRECT(\"'\"&F6172&\"'!\"&H6172),\"0\"),Notes!$B$5:$C$100,2,FALSE),\"\"))","v":""},"2c","$I$123","$J$123"]
[25339,{"$f":"Menu!$F$29","v":"X"},{"$f":"Menu!$J$29","v":2020},{"$f":"IF(ISBLANK(INDIRECT(\"'\"&F6173&\"'!\"&G6173)),\"\",INDIRECT(\"'\"&F6173&\"'!\"&G6173))","v":""},{"$f":"IF(ISBLANK(INDIRECT(\"'\"&F6173&\"'!\"&H6173)),\"\",IFERROR(VLOOKUP(TEXT(INDIRECT(\"'\"&F6173&\"'!\"&H6173),\"0\"),Notes!$B$5:$C$100,2,FALSE),\"\"))","v":""},"2c","$G$123","$H$123"]
[25343,{"$f":"Menu!$F$29","v":"X"},{"$f":"Menu!$J$29","v":2020},{"$f":"IF(ISBLANK(INDIRECT(\"'\"&F6174&\"'!\"&G6174)),\"\",INDIRECT(\"'\"&F6174&\"'!\"&G6174))","v":""},{"$f":"IF(ISBLANK(INDIRECT(\"'\"&F6174&\"'!\"&H6174)),\"\",IFERROR(VLOOKUP(TEXT(INDIRECT(\"'\"&F6174&\"'!\"&H6174),\"0\"),Notes!$B$5:$C$100,2,FALSE),\"\"))","v":""},"2c","$K$123","$L$123"]
[25344,{"$f":"Menu!$F$29","v":"X"},{"$f":"Menu!$J$29","v":2020},{"$f":"IF(ISBLANK(INDIRECT(\"'\"&F6175&\"'!\"&G6175)),\"\",INDIRECT(\"'\"&F6175&\"'!\"&G6175))","v":""},{"$f":"IF(ISBLANK(INDIRECT(\"'\"&F6175&\"'!\"&H6175)),\"\",IFERROR(VLOOKUP(TEXT(INDIRECT(\"'\"&F6175&\"'!\"&H6175),\"0\"),Notes!$B$5:$C$100,2,FALSE),\"\"))","v":""},"2c","$O$123","$P$123"]
[25345,{"$f":"Menu!$F$29","v":"X"},{"$f":"Menu!$J$29","v":2020},{"$f":"IF(ISBLANK(INDIRECT(\"'\"&F6176&\"'!\"&G6176)),\"\",INDIRECT(\"'\"&F6176&\"'!\"&G6176))","v":""},{"$f":"IF(ISBLANK(INDIRECT(\"'\"&F6176&\"'!\"&H6176)),\"\",IFERROR(VLOOKUP(TEXT(INDIRECT(\"'\"&F6176&\"'!\"&H6176),\"0\"),Notes!$B$5:$C$100,2,FALSE),\"\"))","v":""},"2c","$M$123","$N$123"]
[25346,{"$f":"Menu!$F$29","v":"X"},{"$f":"Menu!$J$29","v":2020},{"$f":"IF(ISBLANK(INDIRECT(\"'\"&F6177&\"'!\"&G6177)),\"\",INDIRECT(\"'\"&F6177&\"'!\"&G6177))","v":""},{"$f":"IF(ISBLANK(INDIRECT(\"'\"&F6177&\"'!\"&H6177)),\"\",IFERROR(VLOOKUP(TEXT(INDIRECT(\"'\"&F6177&\"'!\"&H6177),\"0\"),Notes!$B$5:$C$100,2,FALSE),\"\"))","v":""},"2c","$Q$123","$R$123"]
[25347,{"$f":"Menu!$F$29","v":"X"},{"$f":"Menu!$J$29","v":2020},{"$f":"IF(ISBLANK(INDIRECT(\"'\"&F6178&\"'!\"&G6178)),\"\",INDIRECT(\"'\"&F6178&\"'!\"&G6178))","v":""},{"$f":"IF(ISBLANK(INDIRECT(\"'\"&F6178&\"'!\"&H6178)),\"\",IFERROR(VLOOKUP(TEXT(INDIRECT(\"'\"&F6178&\"'!\"&H6178),\"0\"),Notes!$B$5:$C$100,2,FALSE),\"\"))","v":""},"2c","$U$123","$V$123"]
[25348,{"$f":"Menu!$F$29","v":"X"},{"$f":"Menu!$J$29","v":2020},{"$f":"IF(ISBLANK(INDIRECT(\"'\"&F6179&\"'!\"&G6179)),\"\",INDIRECT(\"'\"&F6179&\"'!\"&G6179))","v":""},{"$f":"IF(ISBLANK(INDIRECT(\"'\"&F6179&\"'!\"&H6179)),\"\",IFERROR(VLOOKUP(TEXT(INDIRECT(\"'\"&F6179&\"'!\"&H6179),\"0\"),Notes!$B$5:$C$100,2,FALSE),\"\"))","v":""},"2c","$S$123","$T$123"]
[25349,{"$f":"Menu!$F$29","v":"X"},{"$f":"Menu!$J$29","v":2020},{"$f":"IF(ISBLANK(INDIRECT(\"'\"&F6180&\"'!\"&G6180)),\"\",INDIRECT(\"'\"&F6180&\"'!\"&G6180))","v":""},{"$f":"IF(ISBLANK(INDIRECT(\"'\"&F6180&\"'!\"&H6180)),\"\",IFERROR(VLOOKUP(TEXT(INDIRECT(\"'\"&F6180&\"'!\"&H6180),\"0\"),Notes!$B$5:$C$100,2,FALSE),\"\"))","v":""},"2c","$W$123","$X$123"]
[25350,{"$f":"Menu!$F$29","v":"X"},{"$f":"Menu!$J$29","v":2020},{"$f":"IF(ISBLANK(INDIRECT(\"'\"&F6181&\"'!\"&G6181)),\"\",INDIRECT(\"'\"&F6181&\"'!\"&G6181))","v":""},{"$f":"IF(ISBLANK(INDIRECT(\"'\"&F6181&\"'!\"&H6181)),\"\",IFERROR(VLOOKUP(TEXT(INDIRECT(\"'\"&F6181&\"'!\"&H6181),\"0\"),Notes!$B$5:$C$100,2,FALSE),\"\"))","v":""},"2c","$AA$123","$AB$123"]
[25351,{"$f":"Menu!$F$29","v":"X"},{"$f":"Menu!$J$29","v":2020},{"$f":"IF(ISBLANK(INDIRECT(\"'\"&F6182&\"'!\"&G6182)),\"\",INDIRECT(\"'\"&F6182&\"'!\"&G6182))","v":""},{"$f":"IF(ISBLANK(INDIRECT(\"'\"&F6182&\"'!\"&H6182)),\"\",IFERROR(VLOOKUP(TEXT(INDIRECT(\"'\"&F6182&\"'!\"&H6182),\"0\"),Notes!$B$5:$C$100,2,FALSE),\"\"))","v":""},"2c","$Y$123","$Z$123"]
[25358,{"$f":"Menu!$F$29","v":"X"},{"$f":"Menu!$J$29","v":2020},{"$f":"IF(ISBLANK(INDIRECT(\"'\"&F6183&\"'!\"&G6183)),\"\",INDIRECT(\"'\"&F6183&\"'!\"&G6183))","v":""},{"$f":"IF(ISBLANK(INDIRECT(\"'\"&F6183&\"'!\"&H6183)),\"\",IFERROR(VLOOKUP(TEXT(INDIRECT(\"'\"&F6183&\"'!\"&H6183),\"0\"),Notes!$B$5:$C$100,2,FALSE),\"\"))","v":""},"2e","$BG$124","$BH$124"]
[25359,{"$f":"Menu!$F$29","v":"X"},{"$f":"Menu!$J$29","v":2020},{"$f":"IF(ISBLANK(INDIRECT(\"'\"&F6184&\"'!\"&G6184)),\"\",INDIRECT(\"'\"&F6184&\"'!\"&G6184))","v":""},{"$f":"IF(ISBLANK(INDIRECT(\"'\"&F6184&\"'!\"&H6184)),\"\",IFERROR(VLOOKUP(TEXT(INDIRECT(\"'\"&F6184&\"'!\"&H6184),\"0\"),Notes!$B$5:$C$100,2,FALSE),\"\"))","v":""},"2e","$BK$124","$BL$124"]
[25360,{"$f":"Menu!$F$29","v":"X"},{"$f":"Menu!$J$29","v":2020},{"$f":"IF(ISBLANK(INDIRECT(\"'\"&F6185&\"'!\"&G6185)),\"\",INDIRECT(\"'\"&F6185&\"'!\"&G6185))","v":""},{"$f":"IF(ISBLANK(INDIRECT(\"'\"&F6185&\"'!\"&H6185)),\"\",IFERROR(VLOOKUP(TEXT(INDIRECT(\"'\"&F6185&\"'!\"&H6185),\"0\"),Notes!$B$5:$C$100,2,FALSE),\"\"))","v":""},"2e","$BI$124","$BJ$124"]
[25361,{"$f":"Menu!$F$29","v":"X"},{"$f":"Menu!$J$29","v":2020},{"$f":"IF(ISBLANK(INDIRECT(\"'\"&F6186&\"'!\"&G6186)),\"\",INDIRECT(\"'\"&F6186&\"'!\"&G6186))","v":""},{"$f":"IF(ISBLANK(INDIRECT(\"'\"&F6186&\"'!\"&H6186)),\"\",IFERROR(VLOOKUP(TEXT(INDIRECT(\"'\"&F6186&\"'!\"&H6186),\"0\"),Notes!$B$5:$C$100,2,FALSE),\"\"))","v":""},"2e","$E$124","$F$124"]
[25362,{"$f":"Menu!$F$29","v":"X"},{"$f":"Menu!$J$29","v":2020},{"$f":"IF(ISBLANK(INDIRECT(\"'\"&F6187&\"'!\"&G6187)),\"\",INDIRECT(\"'\"&F6187&\"'!\"&G6187))","v":""},{"$f":"IF(ISBLANK(INDIRECT(\"'\"&F6187&\"'!\"&H6187)),\"\",IFERROR(VLOOKUP(TEXT(INDIRECT(\"'\"&F6187&\"'!\"&H6187),\"0\"),Notes!$B$5:$C$100,2,FALSE),\"\"))","v":""},"2e","$I$124","$J$124"]
[25363,{"$f":"Menu!$F$29","v":"X"},{"$f":"Menu!$J$29","v":2020},{"$f":"IF(ISBLANK(INDIRECT(\"'\"&F6188&\"'!\"&G6188)),\"\",INDIRECT(\"'\"&F6188&\"'!\"&G6188))","v":""},{"$f":"IF(ISBLANK(INDIRECT(\"'\"&F6188&\"'!\"&H6188)),\"\",IFERROR(VLOOKUP(TEXT(INDIRECT(\"'\"&F6188&\"'!\"&H6188),\"0\"),Notes!$B$5:$C$100,2,FALSE),\"\"))","v":""},"2e","$G$124","$H$124"]
[25364,{"$f":"Menu!$F$29","v":"X"},{"$f":"Menu!$J$29","v":2020},{"$f":"IF(ISBLANK(INDIRECT(\"'\"&F6189&\"'!\"&G6189)),\"\",INDIRECT(\"'\"&F6189&\"'!\"&G6189))","v":""},{"$f":"IF(ISBLANK(INDIRECT(\"'\"&F6189&\"'!\"&H6189)),\"\",IFERROR(VLOOKUP(TEXT(INDIRECT(\"'\"&F6189&\"'!\"&H6189),\"0\"),Notes!$B$5:$C$100,2,FALSE),\"\"))","v":""},"2e","$K$124","$L$124"]
[25365,{"$f":"Menu!$F$29","v":"X"},{"$f":"Menu!$J$29","v":2020},{"$f":"IF(ISBLANK(INDIRECT(\"'\"&F6190&\"'!\"&G6190)),\"\",INDIRECT(\"'\"&F6190&\"'!\"&G6190))","v":""},{"$f":"IF(ISBLANK(INDIRECT(\"'\"&F6190&\"'!\"&H6190)),\"\",IFERROR(VLOOKUP(TEXT(INDIRECT(\"'\"&F6190&\"'!\"&H6190),\"0\"),Notes!$B$5:$C$100,2,FALSE),\"\"))","v":""},"2e","$O$124","$P$124"]
[25366,{"$f":"Menu!$F$29","v":"X"},{"$f":"Menu!$J$29","v":2020},{"$f":"IF(ISBLANK(INDIRECT(\"'\"&F6191&\"'!\"&G6191)),\"\",INDIRECT(\"'\"&F6191&\"'!\"&G6191))","v":""},{"$f":"IF(ISBLANK(INDIRECT(\"'\"&F6191&\"'!\"&H6191)),\"\",IFERROR(VLOOKUP(TEXT(INDIRECT(\"'\"&F6191&\"'!\"&H6191),\"0\"),Notes!$B$5:$C$100,2,FALSE),\"\"))","v":""},"2e","$M$124","$N$124"]
[25367,{"$f":"Menu!$F$29","v":"X"},{"$f":"Menu!$J$29","v":2020},{"$f":"IF(ISBLANK(INDIRECT(\"'\"&F6192&\"'!\"&G6192)),\"\",INDIRECT(\"'\"&F6192&\"'!\"&G6192))","v":""},{"$f":"IF(ISBLANK(INDIRECT(\"'\"&F6192&\"'!\"&H6192)),\"\",IFERROR(VLOOKUP(TEXT(INDIRECT(\"'\"&F6192&\"'!\"&H6192),\"0\"),Notes!$B$5:$C$100,2,FALSE),\"\"))","v":""},"2e","$Q$124","$R$124"]
[25368,{"$f":"Menu!$F$29","v":"X"},{"$f":"Menu!$J$29","v":2020},{"$f":"IF(ISBLANK(INDIRECT(\"'\"&F6193&\"'!\"&G6193)),\"\",INDIRECT(\"'\"&F6193&\"'!\"&G6193))","v":""},{"$f":"IF(ISBLANK(INDIRECT(\"'\"&F6193&\"'!\"&H6193)),\"\",IFERROR(VLOOKUP(TEXT(INDIRECT(\"'\"&F6193&\"'!\"&H6193),\"0\"),Notes!$B$5:$C$100,2,FALSE),\"\"))","v":""},"2e","$U$124","$V$124"]
[25369,{"$f":"Menu!$F$29","v":"X"},{"$f":"Menu!$J$29","v":2020},{"$f":"IF(ISBLANK(INDIRECT(\"'\"&F6194&\"'!\"&G6194)),\"\",INDIRECT(\"'\"&F6194&\"'!\"&G6194))","v":""},{"$f":"IF(ISBLANK(INDIRECT(\"'\"&F6194&\"'!\"&H6194)),\"\",IFERROR(VLOOKUP(TEXT(INDIRECT(\"'\"&F6194&\"'!\"&H6194),\"0\"),Notes!$B$5:$C$100,2,FALSE),\"\"))","v":""},"2e","$S$124","$T$124"]
[25370,{"$f":"Menu!$F$29","v":"X"},{"$f":"Menu!$J$29","v":2020},{"$f":"IF(ISBLANK(INDIRECT(\"'\"&F6195&\"'!\"&G6195)),\"\",INDIRECT(\"'\"&F6195&\"'!\"&G6195))","v":""},{"$f":"IF(ISBLANK(INDIRECT(\"'\"&F6195&\"'!\"&H6195)),\"\",IFERROR(VLOOKUP(TEXT(INDIRECT(\"'\"&F6195&\"'!\"&H6195),\"0\"),Notes!$B$5:$C$100,2,FALSE),\"\"))","v":""},"2e","$W$124","$X$124"]
[25371,{"$f":"Menu!$F$29","v":"X"},{"$f":"Menu!$J$29","v":2020},{"$f":"IF(ISBLANK(INDIRECT(\"'\"&F6196&\"'!\"&G6196)),\"\",INDIRECT(\"'\"&F6196&\"'!\"&G6196))","v":""},{"$f":"IF(ISBLANK(INDIRECT(\"'\"&F6196&\"'!\"&H6196)),\"\",IFERROR(VLOOKUP(TEXT(INDIRECT(\"'\"&F6196&\"'!\"&H6196),\"0\"),Notes!$B$5:$C$100,2,FALSE),\"\"))","v":""},"2e","$AA$124","$AB$124"]
[25372,{"$f":"Menu!$F$29","v":"X"},{"$f":"Menu!$J$29","v":2020},{"$f":"IF(ISBLANK(INDIRECT(\"'\"&F6197&\"'!\"&G6197)),\"\",INDIRECT(\"'\"&F6197&\"'!\"&G6197))","v":""},{"$f":"IF(ISBLANK(INDIRECT(\"'\"&F6197&\"'!\"&H6197)),\"\",IFERROR(VLOOKUP(TEXT(INDIRECT(\"'\"&F6197&\"'!\"&H6197),\"0\"),Notes!$B$5:$C$100,2,FALSE),\"\"))","v":""},"2e","$Y$124","$Z$124"]
[25373,{"$f":"Menu!$F$29","v":"X"},{"$f":"Menu!$J$29","v":2020},{"$f":"IF(ISBLANK(INDIRECT(\"'\"&F6198&\"'!\"&G6198)),\"\",INDIRECT(\"'\"&F6198&\"'!\"&G6198))","v":""},{"$f":"IF(ISBLANK(INDIRECT(\"'\"&F6198&\"'!\"&H6198)),\"\",IFERROR(VLOOKUP(TEXT(INDIRECT(\"'\"&F6198&\"'!\"&H6198),\"0\"),Notes!$B$5:$C$100,2,FALSE),\"\"))","v":""},"2e","$AC$124","$AD$124"]
[25374,{"$f":"Menu!$F$29","v":"X"},{"$f":"Menu!$J$29","v":2020},{"$f":"IF(ISBLANK(INDIRECT(\"'\"&F6199&\"'!\"&G6199)),\"\",INDIRECT(\"'\"&F6199&\"'!\"&G6199))","v":""},{"$f":"IF(ISBLANK(INDIRECT(\"'\"&F6199&\"'!\"&H6199)),\"\",IFERROR(VLOOKUP(TEXT(INDIRECT(\"'\"&F6199&\"'!\"&H6199),\"0\"),Notes!$B$5:$C$100,2,FALSE),\"\"))","v":""},"2e","$AG$124","$AH$124"]
[25375,{"$f":"Menu!$F$29","v":"X"},{"$f":"Menu!$J$29","v":2020},{"$f":"IF(ISBLANK(INDIRECT(\"'\"&F6200&\"'!\"&G6200)),\"\",INDIRECT(\"'\"&F6200&\"'!\"&G6200))","v":""},{"$f":"IF(ISBLANK(INDIRECT(\"'\"&F6200&\"'!\"&H6200)),\"\",IFERROR(VLOOKUP(TEXT(INDIRECT(\"'\"&F6200&\"'!\"&H6200),\"0\"),Notes!$B$5:$C$100,2,FALSE),\"\"))","v":""},"2e","$AE$124","$AF$124"]
[25376,{"$f":"Menu!$F$29","v":"X"},{"$f":"Menu!$J$29","v":2020},{"$f":"IF(ISBLANK(INDIRECT(\"'\"&F6201&\"'!\"&G6201)),\"\",INDIRECT(\"'\"&F6201&\"'!\"&G6201))","v":""},{"$f":"IF(ISBLANK(INDIRECT(\"'\"&F6201&\"'!\"&H6201)),\"\",IFERROR(VLOOKUP(TEXT(INDIRECT(\"'\"&F6201&\"'!\"&H6201),\"0\"),Notes!$B$5:$C$100,2,FALSE),\"\"))","v":""},"2e","$AI$124","$AJ$124"]
[25377,{"$f":"Menu!$F$29","v":"X"},{"$f":"Menu!$J$29","v":2020},{"$f":"IF(ISBLANK(INDIRECT(\"'\"&F6202&\"'!\"&G6202)),\"\",INDIRECT(\"'\"&F6202&\"'!\"&G6202))","v":""},{"$f":"IF(ISBLANK(INDIRECT(\"'\"&F6202&\"'!\"&H6202)),\"\",IFERROR(VLOOKUP(TEXT(INDIRECT(\"'\"&F6202&\"'!\"&H6202),\"0\"),Notes!$B$5:$C$100,2,FALSE),\"\"))","v":""},"2e","$AM$124","$AN$124"]
[25378,{"$f":"Menu!$F$29","v":"X"},{"$f":"Menu!$J$29","v":2020},{"$f":"IF(ISBLANK(INDIRECT(\"'\"&F6203&\"'!\"&G6203)),\"\",INDIRECT(\"'\"&F6203&\"'!\"&G6203))","v":""},{"$f":"IF(ISBLANK(INDIRECT(\"'\"&F6203&\"'!\"&H6203)),\"\",IFERROR(VLOOKUP(TEXT(INDIRECT(\"'\"&F6203&\"'!\"&H6203),\"0\"),Notes!$B$5:$C$100,2,FALSE),\"\"))","v":""},"2e","$AK$124","$AL$124"]
[25379,{"$f":"Menu!$F$29","v":"X"},{"$f":"Menu!$J$29","v":2020},{"$f":"IF(ISBLANK(INDIRECT(\"'\"&F6204&\"'!\"&G6204)),\"\",INDIRECT(\"'\"&F6204&\"'!\"&G6204))","v":""},{"$f":"IF(ISBLANK(INDIRECT(\"'\"&F6204&\"'!\"&H6204)),\"\",IFERROR(VLOOKUP(TEXT(INDIRECT(\"'\"&F6204&\"'!\"&H6204),\"0\"),Notes!$B$5:$C$100,2,FALSE),\"\"))","v":""},"2e","$AO$124","$AP$124"]
[25380,{"$f":"Menu!$F$29","v":"X"},{"$f":"Menu!$J$29","v":2020},{"$f":"IF(ISBLANK(INDIRECT(\"'\"&F6205&\"'!\"&G6205)),\"\",INDIRECT(\"'\"&F6205&\"'!\"&G6205))","v":""},{"$f":"IF(ISBLANK(INDIRECT(\"'\"&F6205&\"'!\"&H6205)),\"\",IFERROR(VLOOKUP(TEXT(INDIRECT(\"'\"&F6205&\"'!\"&H6205),\"0\"),Notes!$B$5:$C$100,2,FALSE),\"\"))","v":""},"2e","$AS$124","$AT$124"]
[25381,{"$f":"Menu!$F$29","v":"X"},{"$f":"Menu!$J$29","v":2020},{"$f":"IF(ISBLANK(INDIRECT(\"'\"&F6206&\"'!\"&G6206)),\"\",INDIRECT(\"'\"&F6206&\"'!\"&G6206))","v":""},{"$f":"IF(ISBLANK(INDIRECT(\"'\"&F6206&\"'!\"&H6206)),\"\",IFERROR(VLOOKUP(TEXT(INDIRECT(\"'\"&F6206&\"'!\"&H6206),\"0\"),Notes!$B$5:$C$100,2,FALSE),\"\"))","v":""},"2e","$AQ$124","$AR$124"]
[25382,{"$f":"Menu!$F$29","v":"X"},{"$f":"Menu!$J$29","v":2020},{"$f":"IF(ISBLANK(INDIRECT(\"'\"&F6207&\"'!\"&G6207)),\"\",INDIRECT(\"'\"&F6207&\"'!\"&G6207))","v":""},{"$f":"IF(ISBLANK(INDIRECT(\"'\"&F6207&\"'!\"&H6207)),\"\",IFERROR(VLOOKUP(TEXT(INDIRECT(\"'\"&F6207&\"'!\"&H6207),\"0\"),Notes!$B$5:$C$100,2,FALSE),\"\"))","v":""},"2e","$AU$124","$AV$124"]
[25383,{"$f":"Menu!$F$29","v":"X"},{"$f":"Menu!$J$29","v":2020},{"$f":"IF(ISBLANK(INDIRECT(\"'\"&F6208&\"'!\"&G6208)),\"\",INDIRECT(\"'\"&F6208&\"'!\"&G6208))","v":""},{"$f":"IF(ISBLANK(INDIRECT(\"'\"&F6208&\"'!\"&H6208)),\"\",IFERROR(VLOOKUP(TEXT(INDIRECT(\"'\"&F6208&\"'!\"&H6208),\"0\"),Notes!$B$5:$C$100,2,FALSE),\"\"))","v":""},"2e","$AY$124","$AZ$124"]
[25384,{"$f":"Menu!$F$29","v":"X"},{"$f":"Menu!$J$29","v":2020},{"$f":"IF(ISBLANK(INDIRECT(\"'\"&F6209&\"'!\"&G6209)),\"\",INDIRECT(\"'\"&F6209&\"'!\"&G6209))","v":""},{"$f":"IF(ISBLANK(INDIRECT(\"'\"&F6209&\"'!\"&H6209)),\"\",IFERROR(VLOOKUP(TEXT(INDIRECT(\"'\"&F6209&\"'!\"&H6209),\"0\"),Notes!$B$5:$C$100,2,FALSE),\"\"))","v":""},"2e","$AW$124","$AX$124"]
[25385,{"$f":"Menu!$F$29","v":"X"},{"$f":"Menu!$J$29","v":2020},{"$f":"IF(ISBLANK(INDIRECT(\"'\"&F6210&\"'!\"&G6210)),\"\",INDIRECT(\"'\"&F6210&\"'!\"&G6210))","v":""},{"$f":"IF(ISBLANK(INDIRECT(\"'\"&F6210&\"'!\"&H6210)),\"\",IFERROR(VLOOKUP(TEXT(INDIRECT(\"'\"&F6210&\"'!\"&H6210),\"0\"),Notes!$B$5:$C$100,2,FALSE),\"\"))","v":""},"2e","$BA$124",{"$f":"IF(LEN(TRIM(MID(G6210,4,10)))-LEN(SUBSTITUTE(TRIM(MID(G6210,4,10)),\"$\",\"\"))=0,\"$\"&CHAR(CODE(MID(G6210,2,1))+1)&\"$\"&TRIM(MID(G6210,4,10)),\"$\"&MID(G6210,2,1)&CHAR(CODE(MID(G6210,3,1))+1)&\"$\"&TRIM(MID(G6210,5,11)))","v":"$BB$124"}]
[25386,{"$f":"Menu!$F$29","v":"X"},{"$f":"Menu!$J$29","v":2020},{"$f":"IF(ISBLANK(INDIRECT(\"'\"&F6211&\"'!\"&G6211)),\"\",INDIRECT(\"'\"&F6211&\"'!\"&G6211))","v":""},{"$f":"IF(ISBLANK(INDIRECT(\"'\"&F6211&\"'!\"&H6211)),\"\",IFERROR(VLOOKUP(TEXT(INDIRECT(\"'\"&F6211&\"'!\"&H6211),\"0\"),Notes!$B$5:$C$100,2,FALSE),\"\"))","v":""},"2e","$BE$124","$BF$124"]
[25387,{"$f":"Menu!$F$29","v":"X"},{"$f":"Menu!$J$29","v":2020},{"$f":"IF(ISBLANK(INDIRECT(\"'\"&F6212&\"'!\"&G6212)),\"\",INDIRECT(\"'\"&F6212&\"'!\"&G6212))","v":""},{"$f":"IF(ISBLANK(INDIRECT(\"'\"&F6212&\"'!\"&H6212)),\"\",IFERROR(VLOOKUP(TEXT(INDIRECT(\"'\"&F6212&\"'!\"&H6212),\"0\"),Notes!$B$5:$C$100,2,FALSE),\"\"))","v":""},"2e","$BC$124","$BD$124"]
[25388,{"$f":"Menu!$F$29","v":"X"},{"$f":"Menu!$J$29","v":2020},{"$f":"IF(ISBLANK(INDIRECT(\"'\"&F6213&\"'!\"&G6213)),\"\",INDIRECT(\"'\"&F6213&\"'!\"&G6213))","v":""},{"$f":"IF(ISBLANK(INDIRECT(\"'\"&F6213&\"'!\"&H6213)),\"\",IFERROR(VLOOKUP(TEXT(INDIRECT(\"'\"&F6213&\"'!\"&H6213),\"0\"),Notes!$B$5:$C$100,2,FALSE),\"\"))","v":""},"2b","$E$123","$F$123"]
[25389,{"$f":"Menu!$F$29","v":"X"},{"$f":"Menu!$J$29","v":2020},{"$f":"IF(ISBLANK(INDIRECT(\"'\"&F6214&\"'!\"&G6214)),\"\",INDIRECT(\"'\"&F6214&\"'!\"&G6214))","v":""},{"$f":"IF(ISBLANK(INDIRECT(\"'\"&F6214&\"'!\"&H6214)),\"\",IFERROR(VLOOKUP(TEXT(INDIRECT(\"'\"&F6214&\"'!\"&H6214),\"0\"),Notes!$B$5:$C$100,2,FALSE),\"\"))","v":""},"2b","$I$123","$J$123"]
[25390,{"$f":"Menu!$F$29","v":"X"},{"$f":"Menu!$J$29","v":2020},{"$f":"IF(ISBLANK(INDIRECT(\"'\"&F6215&\"'!\"&G6215)),\"\",INDIRECT(\"'\"&F6215&\"'!\"&G6215))","v":""},{"$f":"IF(ISBLANK(INDIRECT(\"'\"&F6215&\"'!\"&H6215)),\"\",IFERROR(VLOOKUP(TEXT(INDIRECT(\"'\"&F6215&\"'!\"&H6215),\"0\"),Notes!$B$5:$C$100,2,FALSE),\"\"))","v":""},"2b","$G$123","$H$123"]
[25391,{"$f":"Menu!$F$29","v":"X"},{"$f":"Menu!$J$29","v":2020},{"$f":"IF(ISBLANK(INDIRECT(\"'\"&F6216&\"'!\"&G6216)),\"\",INDIRECT(\"'\"&F6216&\"'!\"&G6216))","v":""},{"$f":"IF(ISBLANK(INDIRECT(\"'\"&F6216&\"'!\"&H6216)),\"\",IFERROR(VLOOKUP(TEXT(INDIRECT(\"'\"&F6216&\"'!\"&H6216),\"0\"),Notes!$B$5:$C$100,2,FALSE),\"\"))","v":""},"2a","$G$123","$H$123"]
[25392,{"$f":"Menu!$F$29","v":"X"},{"$f":"Menu!$J$29","v":2020},{"$f":"IF(ISBLANK(INDIRECT(\"'\"&F6217&\"'!\"&G6217)),\"\",INDIRECT(\"'\"&F6217&\"'!\"&G6217))","v":""},{"$f":"IF(ISBLANK(INDIRECT(\"'\"&F6217&\"'!\"&H6217)),\"\",IFERROR(VLOOKUP(TEXT(INDIRECT(\"'\"&F6217&\"'!\"&H6217),\"0\"),Notes!$B$5:$C$100,2,FALSE),\"\"))","v":""},"2b","$W$123","$X$123"]
[25393,{"$f":"Menu!$F$29","v":"X"},{"$f":"Menu!$J$29","v":2020},{"$f":"IF(ISBLANK(INDIRECT(\"'\"&F6218&\"'!\"&G6218)),\"\",INDIRECT(\"'\"&F6218&\"'!\"&G6218))","v":""},{"$f":"IF(ISBLANK(INDIRECT(\"'\"&F6218&\"'!\"&H6218)),\"\",IFERROR(VLOOKUP(TEXT(INDIRECT(\"'\"&F6218&\"'!\"&H6218),\"0\"),Notes!$B$5:$C$100,2,FALSE),\"\"))","v":""},"2b","$AA$123","$AB$123"]
[25394,{"$f":"Menu!$F$29","v":"X"},{"$f":"Menu!$J$29","v":2020},{"$f":"IF(ISBLANK(INDIRECT(\"'\"&F6219&\"'!\"&G6219)),\"\",INDIRECT(\"'\"&F6219&\"'!\"&G6219))","v":""},{"$f":"IF(ISBLANK(INDIRECT(\"'\"&F6219&\"'!\"&H6219)),\"\",IFERROR(VLOOKUP(TEXT(INDIRECT(\"'\"&F6219&\"'!\"&H6219),\"0\"),Notes!$B$5:$C$100,2,FALSE),\"\"))","v":""},"2b","$Y$123","$Z$123"]
[25395,{"$f":"Menu!$F$29","v":"X"},{"$f":"Menu!$J$29","v":2020},{"$f":"IF(ISBLANK(INDIRECT(\"'\"&F6220&\"'!\"&G6220)),\"\",INDIRECT(\"'\"&F6220&\"'!\"&G6220))","v":""},{"$f":"IF(ISBLANK(INDIRECT(\"'\"&F6220&\"'!\"&H6220)),\"\",IFERROR(VLOOKUP(TEXT(INDIRECT(\"'\"&F6220&\"'!\"&H6220),\"0\"),Notes!$B$5:$C$100,2,FALSE),\"\"))","v":""},"2d","$AC$123","$AD$123"]
[25396,{"$f":"Menu!$F$29","v":"X"},{"$f":"Menu!$J$29","v":2020},{"$f":"IF(ISBLANK(INDIRECT(\"'\"&F6221&\"'!\"&G6221)),\"\",INDIRECT(\"'\"&F6221&\"'!\"&G6221))","v":""},{"$f":"IF(ISBLANK(INDIRECT(\"'\"&F6221&\"'!\"&H6221)),\"\",IFERROR(VLOOKUP(TEXT(INDIRECT(\"'\"&F6221&\"'!\"&H6221),\"0\"),Notes!$B$5:$C$100,2,FALSE),\"\"))","v":""},"2d","$AG$123","$AH$123"]
[25397,{"$f":"Menu!$F$29","v":"X"},{"$f":"Menu!$J$29","v":2020},{"$f":"IF(ISBLANK(INDIRECT(\"'\"&F6222&\"'!\"&G6222)),\"\",INDIRECT(\"'\"&F6222&\"'!\"&G6222))","v":""},{"$f":"IF(ISBLANK(INDIRECT(\"'\"&F6222&\"'!\"&H6222)),\"\",IFERROR(VLOOKUP(TEXT(INDIRECT(\"'\"&F6222&\"'!\"&H6222),\"0\"),Notes!$B$5:$C$100,2,FALSE),\"\"))","v":""},"2d","$AE$123","$AF$123"]
[25398,{"$f":"Menu!$F$29","v":"X"},{"$f":"Menu!$J$29","v":2020},{"$f":"IF(ISBLANK(INDIRECT(\"'\"&F6223&\"'!\"&G6223)),\"\",INDIRECT(\"'\"&F6223&\"'!\"&G6223))","v":""},{"$f":"IF(ISBLANK(INDIRECT(\"'\"&F6223&\"'!\"&H6223)),\"\",IFERROR(VLOOKUP(TEXT(INDIRECT(\"'\"&F6223&\"'!\"&H6223),\"0\"),Notes!$B$5:$C$100,2,FALSE),\"\"))","v":""},"2d","$W$123","$X$123"]
[25399,{"$f":"Menu!$F$29","v":"X"},{"$f":"Menu!$J$29","v":2020},{"$f":"IF(ISBLANK(INDIRECT(\"'\"&F6224&\"'!\"&G6224)),\"\",INDIRECT(\"'\"&F6224&\"'!\"&G6224))","v":""},{"$f":"IF(ISBLANK(INDIRECT(\"'\"&F6224&\"'!\"&H6224)),\"\",IFERROR(VLOOKUP(TEXT(INDIRECT(\"'\"&F6224&\"'!\"&H6224),\"0\"),Notes!$B$5:$C$100,2,FALSE),\"\"))","v":""},"2d","$AA$123","$AB$123"]
[25400,{"$f":"Menu!$F$29","v":"X"},{"$f":"Menu!$J$29","v":2020},{"$f":"IF(ISBLANK(INDIRECT(\"'\"&F6225&\"'!\"&G6225)),\"\",INDIRECT(\"'\"&F6225&\"'!\"&G6225))","v":""},{"$f":"IF(ISBLANK(INDIRECT(\"'\"&F6225&\"'!\"&H6225)),\"\",IFERROR(VLOOKUP(TEXT(INDIRECT(\"'\"&F6225&\"'!\"&H6225),\"0\"),Notes!$B$5:$C$100,2,FALSE),\"\"))","v":""},"2d","$Y$123","$Z$123"]
[25401,{"$f":"Menu!$F$29","v":"X"},{"$f":"Menu!$J$29","v":2020},{"$f":"IF(ISBLANK(INDIRECT(\"'\"&F6226&\"'!\"&G6226)),\"\",INDIRECT(\"'\"&F6226&\"'!\"&G6226))","v":""},{"$f":"IF(ISBLANK(INDIRECT(\"'\"&F6226&\"'!\"&H6226)),\"\",IFERROR(VLOOKUP(TEXT(INDIRECT(\"'\"&F6226&\"'!\"&H6226),\"0\"),Notes!$B$5:$C$100,2,FALSE),\"\"))","v":""},"2d","$E$123","$F$123"]
[25402,{"$f":"Menu!$F$29","v":"X"},{"$f":"Menu!$J$29","v":2020},{"$f":"IF(ISBLANK(INDIRECT(\"'\"&F6227&\"'!\"&G6227)),\"\",INDIRECT(\"'\"&F6227&\"'!\"&G6227))","v":""},{"$f":"IF(ISBLANK(INDIRECT(\"'\"&F6227&\"'!\"&H6227)),\"\",IFERROR(VLOOKUP(TEXT(INDIRECT(\"'\"&F6227&\"'!\"&H6227),\"0\"),Notes!$B$5:$C$100,2,FALSE),\"\"))","v":""},"2d","$I$123","$J$123"]
[25403,{"$f":"Menu!$F$29","v":"X"},{"$f":"Menu!$J$29","v":2020},{"$f":"IF(ISBLANK(INDIRECT(\"'\"&F6228&\"'!\"&G6228)),\"\",INDIRECT(\"'\"&F6228&\"'!\"&G6228))","v":""},{"$f":"IF(ISBLANK(INDIRECT(\"'\"&F6228&\"'!\"&H6228)),\"\",IFERROR(VLOOKUP(TEXT(INDIRECT(\"'\"&F6228&\"'!\"&H6228),\"0\"),Notes!$B$5:$C$100,2,FALSE),\"\"))","v":""},"2d","$G$123","$H$123"]
[25404,{"$f":"Menu!$F$29","v":"X"},{"$f":"Menu!$J$29","v":2020},{"$f":"IF(ISBLANK(INDIRECT(\"'\"&F6229&\"'!\"&G6229)),\"\",INDIRECT(\"'\"&F6229&\"'!\"&G6229))","v":""},{"$f":"IF(ISBLANK(INDIRECT(\"'\"&F6229&\"'!\"&H6229)),\"\",IFERROR(VLOOKUP(TEXT(INDIRECT(\"'\"&F6229&\"'!\"&H6229),\"0\"),Notes!$B$5:$C$100,2,FALSE),\"\"))","v":""},"2a","$Q$123","$R$123"]
[25405,{"$f":"Menu!$F$29","v":"X"},{"$f":"Menu!$J$29","v":2020},{"$f":"IF(ISBLANK(INDIRECT(\"'\"&F6230&\"'!\"&G6230)),\"\",INDIRECT(\"'\"&F6230&\"'!\"&G6230))","v":""},{"$f":"IF(ISBLANK(INDIRECT(\"'\"&F6230&\"'!\"&H6230)),\"\",IFERROR(VLOOKUP(TEXT(INDIRECT(\"'\"&F6230&\"'!\"&H6230),\"0\"),Notes!$B$5:$C$100,2,FALSE),\"\"))","v":""},"2a","$U$123","$V$123"]
[25406,{"$f":"Menu!$F$29","v":"X"},{"$f":"Menu!$J$29","v":2020},{"$f":"IF(ISBLANK(INDIRECT(\"'\"&F6231&\"'!\"&G6231)),\"\",INDIRECT(\"'\"&F6231&\"'!\"&G6231))","v":""},{"$f":"IF(ISBLANK(INDIRECT(\"'\"&F6231&\"'!\"&H6231)),\"\",IFERROR(VLOOKUP(TEXT(INDIRECT(\"'\"&F6231&\"'!\"&H6231),\"0\"),Notes!$B$5:$C$100,2,FALSE),\"\"))","v":""},"2a","$S$123","$T$123"]
[25407,{"$f":"Menu!$F$29","v":"X"},{"$f":"Menu!$J$29","v":2020},{"$f":"IF(ISBLANK(INDIRECT(\"'\"&F6232&\"'!\"&G6232)),\"\",INDIRECT(\"'\"&F6232&\"'!\"&G6232))","v":""},{"$f":"IF(ISBLANK(INDIRECT(\"'\"&F6232&\"'!\"&H6232)),\"\",IFERROR(VLOOKUP(TEXT(INDIRECT(\"'\"&F6232&\"'!\"&H6232),\"0\"),Notes!$B$5:$C$100,2,FALSE),\"\"))","v":""},"2d","$K$123","$L$123"]
[25408,{"$f":"Menu!$F$29","v":"X"},{"$f":"Menu!$J$29","v":2020},{"$f":"IF(ISBLANK(INDIRECT(\"'\"&F6233&\"'!\"&G6233)),\"\",INDIRECT(\"'\"&F6233&\"'!\"&G6233))","v":""},{"$f":"IF(ISBLANK(INDIRECT(\"'\"&F6233&\"'!\"&H6233)),\"\",IFERROR(VLOOKUP(TEXT(INDIRECT(\"'\"&F6233&\"'!\"&H6233),\"0\"),Notes!$B$5:$C$100,2,FALSE),\"\"))","v":""},"2d","$O$123","$P$123"]
[25409,{"$f":"Menu!$F$29","v":"X"},{"$f":"Menu!$J$29","v":2020},{"$f":"IF(ISBLANK(INDIRECT(\"'\"&F6234&\"'!\"&G6234)),\"\",INDIRECT(\"'\"&F6234&\"'!\"&G6234))","v":""},{"$f":"IF(ISBLANK(INDIRECT(\"'\"&F6234&\"'!\"&H6234)),\"\",IFERROR(VLOOKUP(TEXT(INDIRECT(\"'\"&F6234&\"'!\"&H6234),\"0\"),Notes!$B$5:$C$100,2,FALSE),\"\"))","v":""},"2d","$M$123","$N$123"]
[25410,{"$f":"Menu!$F$29","v":"X"},{"$f":"Menu!$J$29","v":2020},{"$f":"IF(ISBLANK(INDIRECT(\"'\"&F6235&\"'!\"&G6235)),\"\",INDIRECT(\"'\"&F6235&\"'!\"&G6235))","v":""},{"$f":"IF(ISBLANK(INDIRECT(\"'\"&F6235&\"'!\"&H6235)),\"\",IFERROR(VLOOKUP(TEXT(INDIRECT(\"'\"&F6235&\"'!\"&H6235),\"0\"),Notes!$B$5:$C$100,2,FALSE),\"\"))","v":""},"2d","$Q$123","$R$123"]
[25411,{"$f":"Menu!$F$29","v":"X"},{"$f":"Menu!$J$29","v":2020},{"$f":"IF(ISBLANK(INDIRECT(\"'\"&F6236&\"'!\"&G6236)),\"\",INDIRECT(\"'\"&F6236&\"'!\"&G6236))","v":""},{"$f":"IF(ISBLANK(INDIRECT(\"'\"&F6236&\"'!\"&H6236)),\"\",IFERROR(VLOOKUP(TEXT(INDIRECT(\"'\"&F6236&\"'!\"&H6236),\"0\"),Notes!$B$5:$C$100,2,FALSE),\"\"))","v":""},"2d","$U$123","$V$123"]
[25412,{"$f":"Menu!$F$29","v":"X"},{"$f":"Menu!$J$29","v":2020},{"$f":"IF(ISBLANK(INDIRECT(\"'\"&F6237&\"'!\"&G6237)),\"\",INDIRECT(\"'\"&F6237&\"'!\"&G6237))","v":""},{"$f":"IF(ISBLANK(INDIRECT(\"'\"&F6237&\"'!\"&H6237)),\"\",IFERROR(VLOOKUP(TEXT(INDIRECT(\"'\"&F6237&\"'!\"&H6237),\"0\"),Notes!$B$5:$C$100,2,FALSE),\"\"))","v":""},"2d","$S$123","$T$123"]
[25413,{"$f":"Menu!$F$29","v":"X"},{"$f":"Menu!$J$29","v":2020},{"$f":"IF(ISBLANK(INDIRECT(\"'\"&F6238&\"'!\"&G6238)),\"\",INDIRECT(\"'\"&F6238&\"'!\"&G6238))","v":""},{"$f":"IF(ISBLANK(INDIRECT(\"'\"&F6238&\"'!\"&H6238)),\"\",IFERROR(VLOOKUP(TEXT(INDIRECT(\"'\"&F6238&\"'!\"&H6238),\"0\"),Notes!$B$5:$C$100,2,FALSE),\"\"))","v":""},"2a","$K$123","$L$123"]
[25414,{"$f":"Menu!$F$29","v":"X"},{"$f":"Menu!$J$29","v":2020},{"$f":"IF(ISBLANK(INDIRECT(\"'\"&F6239&\"'!\"&G6239)),\"\",INDIRECT(\"'\"&F6239&\"'!\"&G6239))","v":""},{"$f":"IF(ISBLANK(INDIRECT(\"'\"&F6239&\"'!\"&H6239)),\"\",IFERROR(VLOOKUP(TEXT(INDIRECT(\"'\"&F6239&\"'!\"&H6239),\"0\"),Notes!$B$5:$C$100,2,FALSE),\"\"))","v":""},"2a","$O$123","$P$123"]
[25415,{"$f":"Menu!$F$29","v":"X"},{"$f":"Menu!$J$29","v":2020},{"$f":"IF(ISBLANK(INDIRECT(\"'\"&F6240&\"'!\"&G6240)),\"\",INDIRECT(\"'\"&F6240&\"'!\"&G6240))","v":""},{"$f":"IF(ISBLANK(INDIRECT(\"'\"&F6240&\"'!\"&H6240)),\"\",IFERROR(VLOOKUP(TEXT(INDIRECT(\"'\"&F6240&\"'!\"&H6240),\"0\"),Notes!$B$5:$C$100,2,FALSE),\"\"))","v":""},"2a","$M$123","$N$123"]
[25416,{"$f":"Menu!$F$29","v":"X"},{"$f":"Menu!$J$29","v":2020},{"$f":"IF(ISBLANK(INDIRECT(\"'\"&F6241&\"'!\"&G6241)),\"\",INDIRECT(\"'\"&F6241&\"'!\"&G6241))","v":""},{"$f":"IF(ISBLANK(INDIRECT(\"'\"&F6241&\"'!\"&H6241)),\"\",IFERROR(VLOOKUP(TEXT(INDIRECT(\"'\"&F6241&\"'!\"&H6241),\"0\"),Notes!$B$5:$C$100,2,FALSE),\"\"))","v":""},"2a","$E$123","$F$123"]
[25417,{"$f":"Menu!$F$29","v":"X"},{"$f":"Menu!$J$29","v":2020},{"$f":"IF(ISBLANK(INDIRECT(\"'\"&F6242&\"'!\"&G6242)),\"\",INDIRECT(\"'\"&F6242&\"'!\"&G6242))","v":""},{"$f":"IF(ISBLANK(INDIRECT(\"'\"&F6242&\"'!\"&H6242)),\"\",IFERROR(VLOOKUP(TEXT(INDIRECT(\"'\"&F6242&\"'!\"&H6242),\"0\"),Notes!$B$5:$C$100,2,FALSE),\"\"))","v":""},"2b","$K$124","$L$124"]
[25418,{"$f":"Menu!$F$29","v":"X"},{"$f":"Menu!$J$29","v":2020},{"$f":"IF(ISBLANK(INDIRECT(\"'\"&F6243&\"'!\"&G6243)),\"\",INDIRECT(\"'\"&F6243&\"'!\"&G6243))","v":""},{"$f":"IF(ISBLANK(INDIRECT(\"'\"&F6243&\"'!\"&H6243)),\"\",IFERROR(VLOOKUP(TEXT(INDIRECT(\"'\"&F6243&\"'!\"&H6243),\"0\"),Notes!$B$5:$C$100,2,FALSE),\"\"))","v":""},"2b","$O$124","$P$124"]
[25419,{"$f":"Menu!$F$29","v":"X"},{"$f":"Menu!$J$29","v":2020},{"$f":"IF(ISBLANK(INDIRECT(\"'\"&F6244&\"'!\"&G6244)),\"\",INDIRECT(\"'\"&F6244&\"'!\"&G6244))","v":""},{"$f":"IF(ISBLANK(INDIRECT(\"'\"&F6244&\"'!\"&H6244)),\"\",IFERROR(VLOOKUP(TEXT(INDIRECT(\"'\"&F6244&\"'!\"&H6244),\"0\"),Notes!$B$5:$C$100,2,FALSE),\"\"))","v":""},"2b","$M$124","$N$124"]
[25420,{"$f":"Menu!$F$29","v":"X"},{"$f":"Menu!$J$29","v":2020},{"$f":"IF(ISBLANK(INDIRECT(\"'\"&F6245&\"'!\"&G6245)),\"\",INDIRECT(\"'\"&F6245&\"'!\"&G6245))","v":""},{"$f":"IF(ISBLANK(INDIRECT(\"'\"&F6245&\"'!\"&H6245)),\"\",IFERROR(VLOOKUP(TEXT(INDIRECT(\"'\"&F6245&\"'!\"&H6245),\"0\"),Notes!$B$5:$C$100,2,FALSE),\"\"))","v":""},"2b","$Q$124","$R$124"]
[25421,{"$f":"Menu!$F$29","v":"X"},{"$f":"Menu!$J$29","v":2020},{"$f":"IF(ISBLANK(INDIRECT(\"'\"&F6246&\"'!\"&G6246)),\"\",INDIRECT(\"'\"&F6246&\"'!\"&G6246))","v":""},{"$f":"IF(ISBLANK(INDIRECT(\"'\"&F6246&\"'!\"&H6246)),\"\",IFERROR(VLOOKUP(TEXT(INDIRECT(\"'\"&F6246&\"'!\"&H6246),\"0\"),Notes!$B$5:$C$100,2,FALSE),\"\"))","v":""},"2b","$U$124","$V$124"]
[25422,{"$f":"Menu!$F$29","v":"X"},{"$f":"Menu!$J$29","v":2020},{"$f":"IF(ISBLANK(INDIRECT(\"'\"&F6247&\"'!\"&G6247)),\"\",INDIRECT(\"'\"&F6247&\"'!\"&G6247))","v":""},{"$f":"IF(ISBLANK(INDIRECT(\"'\"&F6247&\"'!\"&H6247)),\"\",IFERROR(VLOOKUP(TEXT(INDIRECT(\"'\"&F6247&\"'!\"&H6247),\"0\"),Notes!$B$5:$C$100,2,FALSE),\"\"))","v":""},"2b","$S$124","$T$124"]
[25426,{"$f":"Menu!$F$29","v":"X"},{"$f":"Menu!$J$29","v":2020},{"$f":"IF(ISBLANK(INDIRECT(\"'\"&F6248&\"'!\"&G6248)),\"\",INDIRECT(\"'\"&F6248&\"'!\"&G6248))","v":""},{"$f":"IF(ISBLANK(INDIRECT(\"'\"&F6248&\"'!\"&H6248)),\"\",IFERROR(VLOOKUP(TEXT(INDIRECT(\"'\"&F6248&\"'!\"&H6248),\"0\"),Notes!$B$5:$C$100,2,FALSE),\"\"))","v":""},"2a","$I$124","$J$124"]
[25427,{"$f":"Menu!$F$29","v":"X"},{"$f":"Menu!$J$29","v":2020},{"$f":"IF(ISBLANK(INDIRECT(\"'\"&F6249&\"'!\"&G6249)),\"\",INDIRECT(\"'\"&F6249&\"'!\"&G6249))","v":""},{"$f":"IF(ISBLANK(INDIRECT(\"'\"&F6249&\"'!\"&H6249)),\"\",IFERROR(VLOOKUP(TEXT(INDIRECT(\"'\"&F6249&\"'!\"&H6249),\"0\"),Notes!$B$5:$C$100,2,FALSE),\"\"))","v":""},"2c","$E$124","$F$124"]
[25428,{"$f":"Menu!$F$29","v":"X"},{"$f":"Menu!$J$29","v":2020},{"$f":"IF(ISBLANK(INDIRECT(\"'\"&F6250&\"'!\"&G6250)),\"\",INDIRECT(\"'\"&F6250&\"'!\"&G6250))","v":""},{"$f":"IF(ISBLANK(INDIRECT(\"'\"&F6250&\"'!\"&H6250)),\"\",IFERROR(VLOOKUP(TEXT(INDIRECT(\"'\"&F6250&\"'!\"&H6250),\"0\"),Notes!$B$5:$C$100,2,FALSE),\"\"))","v":""},"2c","$I$124","$J$124"]
[25429,{"$f":"Menu!$F$29","v":"X"},{"$f":"Menu!$J$29","v":2020},{"$f":"IF(ISBLANK(INDIRECT(\"'\"&F6251&\"'!\"&G6251)),\"\",INDIRECT(\"'\"&F6251&\"'!\"&G6251))","v":""},{"$f":"IF(ISBLANK(INDIRECT(\"'\"&F6251&\"'!\"&H6251)),\"\",IFERROR(VLOOKUP(TEXT(INDIRECT(\"'\"&F6251&\"'!\"&H6251),\"0\"),Notes!$B$5:$C$100,2,FALSE),\"\"))","v":""},"2c","$G$124","$H$124"]
[25433,{"$f":"Menu!$F$29","v":"X"},{"$f":"Menu!$J$29","v":2020},{"$f":"IF(ISBLANK(INDIRECT(\"'\"&F6252&\"'!\"&G6252)),\"\",INDIRECT(\"'\"&F6252&\"'!\"&G6252))","v":""},{"$f":"IF(ISBLANK(INDIRECT(\"'\"&F6252&\"'!\"&H6252)),\"\",IFERROR(VLOOKUP(TEXT(INDIRECT(\"'\"&F6252&\"'!\"&H6252),\"0\"),Notes!$B$5:$C$100,2,FALSE),\"\"))","v":""},"2c","$K$124","$L$124"]
[25434,{"$f":"Menu!$F$29","v":"X"},{"$f":"Menu!$J$29","v":2020},{"$f":"IF(ISBLANK(INDIRECT(\"'\"&F6253&\"'!\"&G6253)),\"\",INDIRECT(\"'\"&F6253&\"'!\"&G6253))","v":""},{"$f":"IF(ISBLANK(INDIRECT(\"'\"&F6253&\"'!\"&H6253)),\"\",IFERROR(VLOOKUP(TEXT(INDIRECT(\"'\"&F6253&\"'!\"&H6253),\"0\"),Notes!$B$5:$C$100,2,FALSE),\"\"))","v":""},"2c","$O$124","$P$124"]
[25435,{"$f":"Menu!$F$29","v":"X"},{"$f":"Menu!$J$29","v":2020},{"$f":"IF(ISBLANK(INDIRECT(\"'\"&F6254&\"'!\"&G6254)),\"\",INDIRECT(\"'\"&F6254&\"'!\"&G6254))","v":""},{"$f":"IF(ISBLANK(INDIRECT(\"'\"&F6254&\"'!\"&H6254)),\"\",IFERROR(VLOOKUP(TEXT(INDIRECT(\"'\"&F6254&\"'!\"&H6254),\"0\"),Notes!$B$5:$C$100,2,FALSE),\"\"))","v":""},"2c","$M$124","$N$124"]
[25436,{"$f":"Menu!$F$29","v":"X"},{"$f":"Menu!$J$29","v":2020},{"$f":"IF(ISBLANK(INDIRECT(\"'\"&F6255&\"'!\"&G6255)),\"\",INDIRECT(\"'\"&F6255&\"'!\"&G6255))","v":""},{"$f":"IF(ISBLANK(INDIRECT(\"'\"&F6255&\"'!\"&H6255)),\"\",IFERROR(VLOOKUP(TEXT(INDIRECT(\"'\"&F6255&\"'!\"&H6255),\"0\"),Notes!$B$5:$C$100,2,FALSE),\"\"))","v":""},"2c","$Q$124","$R$124"]
[25437,{"$f":"Menu!$F$29","v":"X"},{"$f":"Menu!$J$29","v":2020},{"$f":"IF(ISBLANK(INDIRECT(\"'\"&F6256&\"'!\"&G6256)),\"\",INDIRECT(\"'\"&F6256&\"'!\"&G6256))","v":""},{"$f":"IF(ISBLANK(INDIRECT(\"'\"&F6256&\"'!\"&H6256)),\"\",IFERROR(VLOOKUP(TEXT(INDIRECT(\"'\"&F6256&\"'!\"&H6256),\"0\"),Notes!$B$5:$C$100,2,FALSE),\"\"))","v":""},"2c","$U$124","$V$124"]
[25438,{"$f":"Menu!$F$29","v":"X"},{"$f":"Menu!$J$29","v":2020},{"$f":"IF(ISBLANK(INDIRECT(\"'\"&F6257&\"'!\"&G6257)),\"\",INDIRECT(\"'\"&F6257&\"'!\"&G6257))","v":""},{"$f":"IF(ISBLANK(INDIRECT(\"'\"&F6257&\"'!\"&H6257)),\"\",IFERROR(VLOOKUP(TEXT(INDIRECT(\"'\"&F6257&\"'!\"&H6257),\"0\"),Notes!$B$5:$C$100,2,FALSE),\"\"))","v":""},"2c","$S$124","$T$124"]
[25439,{"$f":"Menu!$F$29","v":"X"},{"$f":"Menu!$J$29","v":2020},{"$f":"IF(ISBLANK(INDIRECT(\"'\"&F6258&\"'!\"&G6258)),\"\",INDIRECT(\"'\"&F6258&\"'!\"&G6258))","v":""},{"$f":"IF(ISBLANK(INDIRECT(\"'\"&F6258&\"'!\"&H6258)),\"\",IFERROR(VLOOKUP(TEXT(INDIRECT(\"'\"&F6258&\"'!\"&H6258),\"0\"),Notes!$B$5:$C$100,2,FALSE),\"\"))","v":""},"2c","$W$124","$X$124"]
[25440,{"$f":"Menu!$F$29","v":"X"},{"$f":"Menu!$J$29","v":2020},{"$f":"IF(ISBLANK(INDIRECT(\"'\"&F6259&\"'!\"&G6259)),\"\",INDIRECT(\"'\"&F6259&\"'!\"&G6259))","v":""},{"$f":"IF(ISBLANK(INDIRECT(\"'\"&F6259&\"'!\"&H6259)),\"\",IFERROR(VLOOKUP(TEXT(INDIRECT(\"'\"&F6259&\"'!\"&H6259),\"0\"),Notes!$B$5:$C$100,2,FALSE),\"\"))","v":""},"2c","$AA$124","$AB$124"]
[25441,{"$f":"Menu!$F$29","v":"X"},{"$f":"Menu!$J$29","v":2020},{"$f":"IF(ISBLANK(INDIRECT(\"'\"&F6260&\"'!\"&G6260)),\"\",INDIRECT(\"'\"&F6260&\"'!\"&G6260))","v":""},{"$f":"IF(ISBLANK(INDIRECT(\"'\"&F6260&\"'!\"&H6260)),\"\",IFERROR(VLOOKUP(TEXT(INDIRECT(\"'\"&F6260&\"'!\"&H6260),\"0\"),Notes!$B$5:$C$100,2,FALSE),\"\"))","v":""},"2c","$Y$124","$Z$124"]
[25448,{"$f":"Menu!$F$29","v":"X"},{"$f":"Menu!$J$29","v":2020},{"$f":"IF(ISBLANK(INDIRECT(\"'\"&F6261&\"'!\"&G6261)),\"\",INDIRECT(\"'\"&F6261&\"'!\"&G6261))","v":""},{"$f":"IF(ISBLANK(INDIRECT(\"'\"&F6261&\"'!\"&H6261)),\"\",IFERROR(VLOOKUP(TEXT(INDIRECT(\"'\"&F6261&\"'!\"&H6261),\"0\"),Notes!$B$5:$C$100,2,FALSE),\"\"))","v":""},"2e","$BG$125","$BH$125"]
[25449,{"$f":"Menu!$F$29","v":"X"},{"$f":"Menu!$J$29","v":2020},{"$f":"IF(ISBLANK(INDIRECT(\"'\"&F6262&\"'!\"&G6262)),\"\",INDIRECT(\"'\"&F6262&\"'!\"&G6262))","v":""},{"$f":"IF(ISBLANK(INDIRECT(\"'\"&F6262&\"'!\"&H6262)),\"\",IFERROR(VLOOKUP(TEXT(INDIRECT(\"'\"&F6262&\"'!\"&H6262),\"0\"),Notes!$B$5:$C$100,2,FALSE),\"\"))","v":""},"2e","$BK$125","$BL$125"]
[25450,{"$f":"Menu!$F$29","v":"X"},{"$f":"Menu!$J$29","v":2020},{"$f":"IF(ISBLANK(INDIRECT(\"'\"&F6263&\"'!\"&G6263)),\"\",INDIRECT(\"'\"&F6263&\"'!\"&G6263))","v":""},{"$f":"IF(ISBLANK(INDIRECT(\"'\"&F6263&\"'!\"&H6263)),\"\",IFERROR(VLOOKUP(TEXT(INDIRECT(\"'\"&F6263&\"'!\"&H6263),\"0\"),Notes!$B$5:$C$100,2,FALSE),\"\"))","v":""},"2e","$BI$125","$BJ$125"]
[25451,{"$f":"Menu!$F$29","v":"X"},{"$f":"Menu!$J$29","v":2020},{"$f":"IF(ISBLANK(INDIRECT(\"'\"&F6264&\"'!\"&G6264)),\"\",INDIRECT(\"'\"&F6264&\"'!\"&G6264))","v":""},{"$f":"IF(ISBLANK(INDIRECT(\"'\"&F6264&\"'!\"&H6264)),\"\",IFERROR(VLOOKUP(TEXT(INDIRECT(\"'\"&F6264&\"'!\"&H6264),\"0\"),Notes!$B$5:$C$100,2,FALSE),\"\"))","v":""},"2e","$E$125","$F$125"]
[25452,{"$f":"Menu!$F$29","v":"X"},{"$f":"Menu!$J$29","v":2020},{"$f":"IF(ISBLANK(INDIRECT(\"'\"&F6265&\"'!\"&G6265)),\"\",INDIRECT(\"'\"&F6265&\"'!\"&G6265))","v":""},{"$f":"IF(ISBLANK(INDIRECT(\"'\"&F6265&\"'!\"&H6265)),\"\",IFERROR(VLOOKUP(TEXT(INDIRECT(\"'\"&F6265&\"'!\"&H6265),\"0\"),Notes!$B$5:$C$100,2,FALSE),\"\"))","v":""},"2e","$I$125","$J$125"]
[25453,{"$f":"Menu!$F$29","v":"X"},{"$f":"Menu!$J$29","v":2020},{"$f":"IF(ISBLANK(INDIRECT(\"'\"&F6266&\"'!\"&G6266)),\"\",INDIRECT(\"'\"&F6266&\"'!\"&G6266))","v":""},{"$f":"IF(ISBLANK(INDIRECT(\"'\"&F6266&\"'!\"&H6266)),\"\",IFERROR(VLOOKUP(TEXT(INDIRECT(\"'\"&F6266&\"'!\"&H6266),\"0\"),Notes!$B$5:$C$100,2,FALSE),\"\"))","v":""},"2e","$G$125","$H$125"]
[25454,{"$f":"Menu!$F$29","v":"X"},{"$f":"Menu!$J$29","v":2020},{"$f":"IF(ISBLANK(INDIRECT(\"'\"&F6267&\"'!\"&G6267)),\"\",INDIRECT(\"'\"&F6267&\"'!\"&G6267))","v":""},{"$f":"IF(ISBLANK(INDIRECT(\"'\"&F6267&\"'!\"&H6267)),\"\",IFERROR(VLOOKUP(TEXT(INDIRECT(\"'\"&F6267&\"'!\"&H6267),\"0\"),Notes!$B$5:$C$100,2,FALSE),\"\"))","v":""},"2e","$K$125","$L$125"]
[25455,{"$f":"Menu!$F$29","v":"X"},{"$f":"Menu!$J$29","v":2020},{"$f":"IF(ISBLANK(INDIRECT(\"'\"&F6268&\"'!\"&G6268)),\"\",INDIRECT(\"'\"&F6268&\"'!\"&G6268))","v":""},{"$f":"IF(ISBLANK(INDIRECT(\"'\"&F6268&\"'!\"&H6268)),\"\",IFERROR(VLOOKUP(TEXT(INDIRECT(\"'\"&F6268&\"'!\"&H6268),\"0\"),Notes!$B$5:$C$100,2,FALSE),\"\"))","v":""},"2e","$O$125","$P$125"]
[25456,{"$f":"Menu!$F$29","v":"X"},{"$f":"Menu!$J$29","v":2020},{"$f":"IF(ISBLANK(INDIRECT(\"'\"&F6269&\"'!\"&G6269)),\"\",INDIRECT(\"'\"&F6269&\"'!\"&G6269))","v":""},{"$f":"IF(ISBLANK(INDIRECT(\"'\"&F6269&\"'!\"&H6269)),\"\",IFERROR(VLOOKUP(TEXT(INDIRECT(\"'\"&F6269&\"'!\"&H6269),\"0\"),Notes!$B$5:$C$100,2,FALSE),\"\"))","v":""},"2e","$M$125","$N$125"]
[25457,{"$f":"Menu!$F$29","v":"X"},{"$f":"Menu!$J$29","v":2020},{"$f":"IF(ISBLANK(INDIRECT(\"'\"&F6270&\"'!\"&G6270)),\"\",INDIRECT(\"'\"&F6270&\"'!\"&G6270))","v":""},{"$f":"IF(ISBLANK(INDIRECT(\"'\"&F6270&\"'!\"&H6270)),\"\",IFERROR(VLOOKUP(TEXT(INDIRECT(\"'\"&F6270&\"'!\"&H6270),\"0\"),Notes!$B$5:$C$100,2,FALSE),\"\"))","v":""},"2e","$Q$125","$R$125"]
[25458,{"$f":"Menu!$F$29","v":"X"},{"$f":"Menu!$J$29","v":2020},{"$f":"IF(ISBLANK(INDIRECT(\"'\"&F6271&\"'!\"&G6271)),\"\",INDIRECT(\"'\"&F6271&\"'!\"&G6271))","v":""},{"$f":"IF(ISBLANK(INDIRECT(\"'\"&F6271&\"'!\"&H6271)),\"\",IFERROR(VLOOKUP(TEXT(INDIRECT(\"'\"&F6271&\"'!\"&H6271),\"0\"),Notes!$B$5:$C$100,2,FALSE),\"\"))","v":""},"2e","$U$125","$V$125"]
[25459,{"$f":"Menu!$F$29","v":"X"},{"$f":"Menu!$J$29","v":2020},{"$f":"IF(ISBLANK(INDIRECT(\"'\"&F6272&\"'!\"&G6272)),\"\",INDIRECT(\"'\"&F6272&\"'!\"&G6272))","v":""},{"$f":"IF(ISBLANK(INDIRECT(\"'\"&F6272&\"'!\"&H6272)),\"\",IFERROR(VLOOKUP(TEXT(INDIRECT(\"'\"&F6272&\"'!\"&H6272),\"0\"),Notes!$B$5:$C$100,2,FALSE),\"\"))","v":""},"2e","$S$125","$T$125"]
[25460,{"$f":"Menu!$F$29","v":"X"},{"$f":"Menu!$J$29","v":2020},{"$f":"IF(ISBLANK(INDIRECT(\"'\"&F6273&\"'!\"&G6273)),\"\",INDIRECT(\"'\"&F6273&\"'!\"&G6273))","v":""},{"$f":"IF(ISBLANK(INDIRECT(\"'\"&F6273&\"'!\"&H6273)),\"\",IFERROR(VLOOKUP(TEXT(INDIRECT(\"'\"&F6273&\"'!\"&H6273),\"0\"),Notes!$B$5:$C$100,2,FALSE),\"\"))","v":""},"2e","$W$125","$X$125"]
[25461,{"$f":"Menu!$F$29","v":"X"},{"$f":"Menu!$J$29","v":2020},{"$f":"IF(ISBLANK(INDIRECT(\"'\"&F6274&\"'!\"&G6274)),\"\",INDIRECT(\"'\"&F6274&\"'!\"&G6274))","v":""},{"$f":"IF(ISBLANK(INDIRECT(\"'\"&F6274&\"'!\"&H6274)),\"\",IFERROR(VLOOKUP(TEXT(INDIRECT(\"'\"&F6274&\"'!\"&H6274),\"0\"),Notes!$B$5:$C$100,2,FALSE),\"\"))","v":""},"2e","$AA$125",{"$f":"IF(LEN(TRIM(MID(G6274,4,10)))-LEN(SUBSTITUTE(TRIM(MID(G6274,4,10)),\"$\",\"\"))=0,\"$\"&CHAR(CODE(MID(G6274,2,1))+1)&\"$\"&TRIM(MID(G6274,4,10)),\"$\"&MID(G6274,2,1)&CHAR(CODE(MID(G6274,3,1))+1)&\"$\"&TRIM(MID(G6274,5,11)))","v":"$AB$125"}]
[25462,{"$f":"Menu!$F$29","v":"X"},{"$f":"Menu!$J$29","v":2020},{"$f":"IF(ISBLANK(INDIRECT(\"'\"&F6275&\"'!\"&G6275)),\"\",INDIRECT(\"'\"&F6275&\"'!\"&G6275))","v":""},{"$f":"IF(ISBLANK(INDIRECT(\"'\"&F6275&\"'!\"&H6275)),\"\",IFERROR(VLOOKUP(TEXT(INDIRECT(\"'\"&F6275&\"'!\"&H6275),\"0\"),Notes!$B$5:$C$100,2,FALSE),\"\"))","v":""},"2e","$Y$125","$Z$125"]
[25463,{"$f":"Menu!$F$29","v":"X"},{"$f":"Menu!$J$29","v":2020},{"$f":"IF(ISBLANK(INDIRECT(\"'\"&F6276&\"'!\"&G6276)),\"\",INDIRECT(\"'\"&F6276&\"'!\"&G6276))","v":""},{"$f":"IF(ISBLANK(INDIRECT(\"'\"&F6276&\"'!\"&H6276)),\"\",IFERROR(VLOOKUP(TEXT(INDIRECT(\"'\"&F6276&\"'!\"&H6276),\"0\"),Notes!$B$5:$C$100,2,FALSE),\"\"))","v":""},"2e","$AC$125","$AD$125"]
[25464,{"$f":"Menu!$F$29","v":"X"},{"$f":"Menu!$J$29","v":2020},{"$f":"IF(ISBLANK(INDIRECT(\"'\"&F6277&\"'!\"&G6277)),\"\",INDIRECT(\"'\"&F6277&\"'!\"&G6277))","v":""},{"$f":"IF(ISBLANK(INDIRECT(\"'\"&F6277&\"'!\"&H6277)),\"\",IFERROR(VLOOKUP(TEXT(INDIRECT(\"'\"&F6277&\"'!\"&H6277),\"0\"),Notes!$B$5:$C$100,2,FALSE),\"\"))","v":""},"2e","$AG$125","$AH$125"]
[25465,{"$f":"Menu!$F$29","v":"X"},{"$f":"Menu!$J$29","v":2020},{"$f":"IF(ISBLANK(INDIRECT(\"'\"&F6278&\"'!\"&G6278)),\"\",INDIRECT(\"'\"&F6278&\"'!\"&G6278))","v":""},{"$f":"IF(ISBLANK(INDIRECT(\"'\"&F6278&\"'!\"&H6278)),\"\",IFERROR(VLOOKUP(TEXT(INDIRECT(\"'\"&F6278&\"'!\"&H6278),\"0\"),Notes!$B$5:$C$100,2,FALSE),\"\"))","v":""},"2e","$AE$125","$AF$125"]
[25466,{"$f":"Menu!$F$29","v":"X"},{"$f":"Menu!$J$29","v":2020},{"$f":"IF(ISBLANK(INDIRECT(\"'\"&F6279&\"'!\"&G6279)),\"\",INDIRECT(\"'\"&F6279&\"'!\"&G6279))","v":""},{"$f":"IF(ISBLANK(INDIRECT(\"'\"&F6279&\"'!\"&H6279)),\"\",IFERROR(VLOOKUP(TEXT(INDIRECT(\"'\"&F6279&\"'!\"&H6279),\"0\"),Notes!$B$5:$C$100,2,FALSE),\"\"))","v":""},"2e","$AI$125","$AJ$125"]
[25467,{"$f":"Menu!$F$29","v":"X"},{"$f":"Menu!$J$29","v":2020},{"$f":"IF(ISBLANK(INDIRECT(\"'\"&F6280&\"'!\"&G6280)),\"\",INDIRECT(\"'\"&F6280&\"'!\"&G6280))","v":""},{"$f":"IF(ISBLANK(INDIRECT(\"'\"&F6280&\"'!\"&H6280)),\"\",IFERROR(VLOOKUP(TEXT(INDIRECT(\"'\"&F6280&\"'!\"&H6280),\"0\"),Notes!$B$5:$C$100,2,FALSE),\"\"))","v":""},"2e","$AM$125","$AN$125"]
[25468,{"$f":"Menu!$F$29","v":"X"},{"$f":"Menu!$J$29","v":2020},{"$f":"IF(ISBLANK(INDIRECT(\"'\"&F6281&\"'!\"&G6281)),\"\",INDIRECT(\"'\"&F6281&\"'!\"&G6281))","v":""},{"$f":"IF(ISBLANK(INDIRECT(\"'\"&F6281&\"'!\"&H6281)),\"\",IFERROR(VLOOKUP(TEXT(INDIRECT(\"'\"&F6281&\"'!\"&H6281),\"0\"),Notes!$B$5:$C$100,2,FALSE),\"\"))","v":""},"2e","$AK$125","$AL$125"]
[25469,{"$f":"Menu!$F$29","v":"X"},{"$f":"Menu!$J$29","v":2020},{"$f":"IF(ISBLANK(INDIRECT(\"'\"&F6282&\"'!\"&G6282)),\"\",INDIRECT(\"'\"&F6282&\"'!\"&G6282))","v":""},{"$f":"IF(ISBLANK(INDIRECT(\"'\"&F6282&\"'!\"&H6282)),\"\",IFERROR(VLOOKUP(TEXT(INDIRECT(\"'\"&F6282&\"'!\"&H6282),\"0\"),Notes!$B$5:$C$100,2,FALSE),\"\"))","v":""},"2e","$AO$125","$AP$125"]
[25470,{"$f":"Menu!$F$29","v":"X"},{"$f":"Menu!$J$29","v":2020},{"$f":"IF(ISBLANK(INDIRECT(\"'\"&F6283&\"'!\"&G6283)),\"\",INDIRECT(\"'\"&F6283&\"'!\"&G6283))","v":""},{"$f":"IF(ISBLANK(INDIRECT(\"'\"&F6283&\"'!\"&H6283)),\"\",IFERROR(VLOOKUP(TEXT(INDIRECT(\"'\"&F6283&\"'!\"&H6283),\"0\"),Notes!$B$5:$C$100,2,FALSE),\"\"))","v":""},"2e","$AS$125","$AT$125"]
[25471,{"$f":"Menu!$F$29","v":"X"},{"$f":"Menu!$J$29","v":2020},{"$f":"IF(ISBLANK(INDIRECT(\"'\"&F6284&\"'!\"&G6284)),\"\",INDIRECT(\"'\"&F6284&\"'!\"&G6284))","v":""},{"$f":"IF(ISBLANK(INDIRECT(\"'\"&F6284&\"'!\"&H6284)),\"\",IFERROR(VLOOKUP(TEXT(INDIRECT(\"'\"&F6284&\"'!\"&H6284),\"0\"),Notes!$B$5:$C$100,2,FALSE),\"\"))","v":""},"2e","$AQ$125","$AR$125"]
[25472,{"$f":"Menu!$F$29","v":"X"},{"$f":"Menu!$J$29","v":2020},{"$f":"IF(ISBLANK(INDIRECT(\"'\"&F6285&\"'!\"&G6285)),\"\",INDIRECT(\"'\"&F6285&\"'!\"&G6285))","v":""},{"$f":"IF(ISBLANK(INDIRECT(\"'\"&F6285&\"'!\"&H6285)),\"\",IFERROR(VLOOKUP(TEXT(INDIRECT(\"'\"&F6285&\"'!\"&H6285),\"0\"),Notes!$B$5:$C$100,2,FALSE),\"\"))","v":""},"2e","$AU$125","$AV$125"]
[25473,{"$f":"Menu!$F$29","v":"X"},{"$f":"Menu!$J$29","v":2020},{"$f":"IF(ISBLANK(INDIRECT(\"'\"&F6286&\"'!\"&G6286)),\"\",INDIRECT(\"'\"&F6286&\"'!\"&G6286))","v":""},{"$f":"IF(ISBLANK(INDIRECT(\"'\"&F6286&\"'!\"&H6286)),\"\",IFERROR(VLOOKUP(TEXT(INDIRECT(\"'\"&F6286&\"'!\"&H6286),\"0\"),Notes!$B$5:$C$100,2,FALSE),\"\"))","v":""},"2e","$AY$125","$AZ$125"]
[25474,{"$f":"Menu!$F$29","v":"X"},{"$f":"Menu!$J$29","v":2020},{"$f":"IF(ISBLANK(INDIRECT(\"'\"&F6287&\"'!\"&G6287)),\"\",INDIRECT(\"'\"&F6287&\"'!\"&G6287))","v":""},{"$f":"IF(ISBLANK(INDIRECT(\"'\"&F6287&\"'!\"&H6287)),\"\",IFERROR(VLOOKUP(TEXT(INDIRECT(\"'\"&F6287&\"'!\"&H6287),\"0\"),Notes!$B$5:$C$100,2,FALSE),\"\"))","v":""},"2e","$AW$125","$AX$125"]
[25475,{"$f":"Menu!$F$29","v":"X"},{"$f":"Menu!$J$29","v":2020},{"$f":"IF(ISBLANK(INDIRECT(\"'\"&F6288&\"'!\"&G6288)),\"\",INDIRECT(\"'\"&F6288&\"'!\"&G6288))","v":""},{"$f":"IF(ISBLANK(INDIRECT(\"'\"&F6288&\"'!\"&H6288)),\"\",IFERROR(VLOOKUP(TEXT(INDIRECT(\"'\"&F6288&\"'!\"&H6288),\"0\"),Notes!$B$5:$C$100,2,FALSE),\"\"))","v":""},"2e","$BA$125","$BB$125"]
[25476,{"$f":"Menu!$F$29","v":"X"},{"$f":"Menu!$J$29","v":2020},{"$f":"IF(ISBLANK(INDIRECT(\"'\"&F6289&\"'!\"&G6289)),\"\",INDIRECT(\"'\"&F6289&\"'!\"&G6289))","v":""},{"$f":"IF(ISBLANK(INDIRECT(\"'\"&F6289&\"'!\"&H6289)),\"\",IFERROR(VLOOKUP(TEXT(INDIRECT(\"'\"&F6289&\"'!\"&H6289),\"0\"),Notes!$B$5:$C$100,2,FALSE),\"\"))","v":""},"2e","$BE$125","$BF$125"]
[25477,{"$f":"Menu!$F$29","v":"X"},{"$f":"Menu!$J$29","v":2020},{"$f":"IF(ISBLANK(INDIRECT(\"'\"&F6290&\"'!\"&G6290)),\"\",INDIRECT(\"'\"&F6290&\"'!\"&G6290))","v":""},{"$f":"IF(ISBLANK(INDIRECT(\"'\"&F6290&\"'!\"&H6290)),\"\",IFERROR(VLOOKUP(TEXT(INDIRECT(\"'\"&F6290&\"'!\"&H6290),\"0\"),Notes!$B$5:$C$100,2,FALSE),\"\"))","v":""},"2e","$BC$125","$BD$125"]
[25478,{"$f":"Menu!$F$29","v":"X"},{"$f":"Menu!$J$29","v":2020},{"$f":"IF(ISBLANK(INDIRECT(\"'\"&F6291&\"'!\"&G6291)),\"\",INDIRECT(\"'\"&F6291&\"'!\"&G6291))","v":""},{"$f":"IF(ISBLANK(INDIRECT(\"'\"&F6291&\"'!\"&H6291)),\"\",IFERROR(VLOOKUP(TEXT(INDIRECT(\"'\"&F6291&\"'!\"&H6291),\"0\"),Notes!$B$5:$C$100,2,FALSE),\"\"))","v":""},"2b","$E$124","$F$124"]
[25479,{"$f":"Menu!$F$29","v":"X"},{"$f":"Menu!$J$29","v":2020},{"$f":"IF(ISBLANK(INDIRECT(\"'\"&F6292&\"'!\"&G6292)),\"\",INDIRECT(\"'\"&F6292&\"'!\"&G6292))","v":""},{"$f":"IF(ISBLANK(INDIRECT(\"'\"&F6292&\"'!\"&H6292)),\"\",IFERROR(VLOOKUP(TEXT(INDIRECT(\"'\"&F6292&\"'!\"&H6292),\"0\"),Notes!$B$5:$C$100,2,FALSE),\"\"))","v":""},"2b","$I$124","$J$124"]
[25480,{"$f":"Menu!$F$29","v":"X"},{"$f":"Menu!$J$29","v":2020},{"$f":"IF(ISBLANK(INDIRECT(\"'\"&F6293&\"'!\"&G6293)),\"\",INDIRECT(\"'\"&F6293&\"'!\"&G6293))","v":""},{"$f":"IF(ISBLANK(INDIRECT(\"'\"&F6293&\"'!\"&H6293)),\"\",IFERROR(VLOOKUP(TEXT(INDIRECT(\"'\"&F6293&\"'!\"&H6293),\"0\"),Notes!$B$5:$C$100,2,FALSE),\"\"))","v":""},"2b","$G$124","$H$124"]
[25481,{"$f":"Menu!$F$29","v":"X"},{"$f":"Menu!$J$29","v":2020},{"$f":"IF(ISBLANK(INDIRECT(\"'\"&F6294&\"'!\"&G6294)),\"\",INDIRECT(\"'\"&F6294&\"'!\"&G6294))","v":""},{"$f":"IF(ISBLANK(INDIRECT(\"'\"&F6294&\"'!\"&H6294)),\"\",IFERROR(VLOOKUP(TEXT(INDIRECT(\"'\"&F6294&\"'!\"&H6294),\"0\"),Notes!$B$5:$C$100,2,FALSE),\"\"))","v":""},"2a","$G$124","$H$124"]
[25482,{"$f":"Menu!$F$29","v":"X"},{"$f":"Menu!$J$29","v":2020},{"$f":"IF(ISBLANK(INDIRECT(\"'\"&F6295&\"'!\"&G6295)),\"\",INDIRECT(\"'\"&F6295&\"'!\"&G6295))","v":""},{"$f":"IF(ISBLANK(INDIRECT(\"'\"&F6295&\"'!\"&H6295)),\"\",IFERROR(VLOOKUP(TEXT(INDIRECT(\"'\"&F6295&\"'!\"&H6295),\"0\"),Notes!$B$5:$C$100,2,FALSE),\"\"))","v":""},"2b","$W$124","$X$124"]
[25483,{"$f":"Menu!$F$29","v":"X"},{"$f":"Menu!$J$29","v":2020},{"$f":"IF(ISBLANK(INDIRECT(\"'\"&F6296&\"'!\"&G6296)),\"\",INDIRECT(\"'\"&F6296&\"'!\"&G6296))","v":""},{"$f":"IF(ISBLANK(INDIRECT(\"'\"&F6296&\"'!\"&H6296)),\"\",IFERROR(VLOOKUP(TEXT(INDIRECT(\"'\"&F6296&\"'!\"&H6296),\"0\"),Notes!$B$5:$C$100,2,FALSE),\"\"))","v":""},"2b","$AA$124","$AB$124"]
[25484,{"$f":"Menu!$F$29","v":"X"},{"$f":"Menu!$J$29","v":2020},{"$f":"IF(ISBLANK(INDIRECT(\"'\"&F6297&\"'!\"&G6297)),\"\",INDIRECT(\"'\"&F6297&\"'!\"&G6297))","v":""},{"$f":"IF(ISBLANK(INDIRECT(\"'\"&F6297&\"'!\"&H6297)),\"\",IFERROR(VLOOKUP(TEXT(INDIRECT(\"'\"&F6297&\"'!\"&H6297),\"0\"),Notes!$B$5:$C$100,2,FALSE),\"\"))","v":""},"2b","$Y$124","$Z$124"]
[25485,{"$f":"Menu!$F$29","v":"X"},{"$f":"Menu!$J$29","v":2020},{"$f":"IF(ISBLANK(INDIRECT(\"'\"&F6298&\"'!\"&G6298)),\"\",INDIRECT(\"'\"&F6298&\"'!\"&G6298))","v":""},{"$f":"IF(ISBLANK(INDIRECT(\"'\"&F6298&\"'!\"&H6298)),\"\",IFERROR(VLOOKUP(TEXT(INDIRECT(\"'\"&F6298&\"'!\"&H6298),\"0\"),Notes!$B$5:$C$100,2,FALSE),\"\"))","v":""},"2d","$AC$124","$AD$124"]
[25486,{"$f":"Menu!$F$29","v":"X"},{"$f":"Menu!$J$29","v":2020},{"$f":"IF(ISBLANK(INDIRECT(\"'\"&F6299&\"'!\"&G6299)),\"\",INDIRECT(\"'\"&F6299&\"'!\"&G6299))","v":""},{"$f":"IF(ISBLANK(INDIRECT(\"'\"&F6299&\"'!\"&H6299)),\"\",IFERROR(VLOOKUP(TEXT(INDIRECT(\"'\"&F6299&\"'!\"&H6299),\"0\"),Notes!$B$5:$C$100,2,FALSE),\"\"))","v":""},"2d","$AG$124","$AH$124"]
[25487,{"$f":"Menu!$F$29","v":"X"},{"$f":"Menu!$J$29","v":2020},{"$f":"IF(ISBLANK(INDIRECT(\"'\"&F6300&\"'!\"&G6300)),\"\",INDIRECT(\"'\"&F6300&\"'!\"&G6300))","v":""},{"$f":"IF(ISBLANK(INDIRECT(\"'\"&F6300&\"'!\"&H6300)),\"\",IFERROR(VLOOKUP(TEXT(INDIRECT(\"'\"&F6300&\"'!\"&H6300),\"0\"),Notes!$B$5:$C$100,2,FALSE),\"\"))","v":""},"2d","$AE$124","$AF$124"]
[25488,{"$f":"Menu!$F$29","v":"X"},{"$f":"Menu!$J$29","v":2020},{"$f":"IF(ISBLANK(INDIRECT(\"'\"&F6301&\"'!\"&G6301)),\"\",INDIRECT(\"'\"&F6301&\"'!\"&G6301))","v":""},{"$f":"IF(ISBLANK(INDIRECT(\"'\"&F6301&\"'!\"&H6301)),\"\",IFERROR(VLOOKUP(TEXT(INDIRECT(\"'\"&F6301&\"'!\"&H6301),\"0\"),Notes!$B$5:$C$100,2,FALSE),\"\"))","v":""},"2d","$W$124","$X$124"]
[25489,{"$f":"Menu!$F$29","v":"X"},{"$f":"Menu!$J$29","v":2020},{"$f":"IF(ISBLANK(INDIRECT(\"'\"&F6302&\"'!\"&G6302)),\"\",INDIRECT(\"'\"&F6302&\"'!\"&G6302))","v":""},{"$f":"IF(ISBLANK(INDIRECT(\"'\"&F6302&\"'!\"&H6302)),\"\",IFERROR(VLOOKUP(TEXT(INDIRECT(\"'\"&F6302&\"'!\"&H6302),\"0\"),Notes!$B$5:$C$100,2,FALSE),\"\"))","v":""},"2d","$AA$124","$AB$124"]
[25490,{"$f":"Menu!$F$29","v":"X"},{"$f":"Menu!$J$29","v":2020},{"$f":"IF(ISBLANK(INDIRECT(\"'\"&F6303&\"'!\"&G6303)),\"\",INDIRECT(\"'\"&F6303&\"'!\"&G6303))","v":""},{"$f":"IF(ISBLANK(INDIRECT(\"'\"&F6303&\"'!\"&H6303)),\"\",IFERROR(VLOOKUP(TEXT(INDIRECT(\"'\"&F6303&\"'!\"&H6303),\"0\"),Notes!$B$5:$C$100,2,FALSE),\"\"))","v":""},"2d","$Y$124","$Z$124"]
[25491,{"$f":"Menu!$F$29","v":"X"},{"$f":"Menu!$J$29","v":2020},{"$f":"IF(ISBLANK(INDIRECT(\"'\"&F6304&\"'!\"&G6304)),\"\",INDIRECT(\"'\"&F6304&\"'!\"&G6304))","v":""},{"$f":"IF(ISBLANK(INDIRECT(\"'\"&F6304&\"'!\"&H6304)),\"\",IFERROR(VLOOKUP(TEXT(INDIRECT(\"'\"&F6304&\"'!\"&H6304),\"0\"),Notes!$B$5:$C$100,2,FALSE),\"\"))","v":""},"2d","$E$124","$F$124"]
[25492,{"$f":"Menu!$F$29","v":"X"},{"$f":"Menu!$J$29","v":2020},{"$f":"IF(ISBLANK(INDIRECT(\"'\"&F6305&\"'!\"&G6305)),\"\",INDIRECT(\"'\"&F6305&\"'!\"&G6305))","v":""},{"$f":"IF(ISBLANK(INDIRECT(\"'\"&F6305&\"'!\"&H6305)),\"\",IFERROR(VLOOKUP(TEXT(INDIRECT(\"'\"&F6305&\"'!\"&H6305),\"0\"),Notes!$B$5:$C$100,2,FALSE),\"\"))","v":""},"2d","$I$124","$J$124"]
[25493,{"$f":"Menu!$F$29","v":"X"},{"$f":"Menu!$J$29","v":2020},{"$f":"IF(ISBLANK(INDIRECT(\"'\"&F6306&\"'!\"&G6306)),\"\",INDIRECT(\"'\"&F6306&\"'!\"&G6306))","v":""},{"$f":"IF(ISBLANK(INDIRECT(\"'\"&F6306&\"'!\"&H6306)),\"\",IFERROR(VLOOKUP(TEXT(INDIRECT(\"'\"&F6306&\"'!\"&H6306),\"0\"),Notes!$B$5:$C$100,2,FALSE),\"\"))","v":""},"2d","$G$124","$H$124"]
[25494,{"$f":"Menu!$F$29","v":"X"},{"$f":"Menu!$J$29","v":2020},{"$f":"IF(ISBLANK(INDIRECT(\"'\"&F6307&\"'!\"&G6307)),\"\",INDIRECT(\"'\"&F6307&\"'!\"&G6307))","v":""},{"$f":"IF(ISBLANK(INDIRECT(\"'\"&F6307&\"'!\"&H6307)),\"\",IFERROR(VLOOKUP(TEXT(INDIRECT(\"'\"&F6307&\"'!\"&H6307),\"0\"),Notes!$B$5:$C$100,2,FALSE),\"\"))","v":""},"2a","$Q$124","$R$124"]
[25495,{"$f":"Menu!$F$29","v":"X"},{"$f":"Menu!$J$29","v":2020},{"$f":"IF(ISBLANK(INDIRECT(\"'\"&F6308&\"'!\"&G6308)),\"\",INDIRECT(\"'\"&F6308&\"'!\"&G6308))","v":""},{"$f":"IF(ISBLANK(INDIRECT(\"'\"&F6308&\"'!\"&H6308)),\"\",IFERROR(VLOOKUP(TEXT(INDIRECT(\"'\"&F6308&\"'!\"&H6308),\"0\"),Notes!$B$5:$C$100,2,FALSE),\"\"))","v":""},"2a","$U$124","$V$124"]
[25496,{"$f":"Menu!$F$29","v":"X"},{"$f":"Menu!$J$29","v":2020},{"$f":"IF(ISBLANK(INDIRECT(\"'\"&F6309&\"'!\"&G6309)),\"\",INDIRECT(\"'\"&F6309&\"'!\"&G6309))","v":""},{"$f":"IF(ISBLANK(INDIRECT(\"'\"&F6309&\"'!\"&H6309)),\"\",IFERROR(VLOOKUP(TEXT(INDIRECT(\"'\"&F6309&\"'!\"&H6309),\"0\"),Notes!$B$5:$C$100,2,FALSE),\"\"))","v":""},"2a","$S$124","$T$124"]
[25497,{"$f":"Menu!$F$29","v":"X"},{"$f":"Menu!$J$29","v":2020},{"$f":"IF(ISBLANK(INDIRECT(\"'\"&F6310&\"'!\"&G6310)),\"\",INDIRECT(\"'\"&F6310&\"'!\"&G6310))","v":""},{"$f":"IF(ISBLANK(INDIRECT(\"'\"&F6310&\"'!\"&H6310)),\"\",IFERROR(VLOOKUP(TEXT(INDIRECT(\"'\"&F6310&\"'!\"&H6310),\"0\"),Notes!$B$5:$C$100,2,FALSE),\"\"))","v":""},"2d","$K$124","$L$124"]
[25498,{"$f":"Menu!$F$29","v":"X"},{"$f":"Menu!$J$29","v":2020},{"$f":"IF(ISBLANK(INDIRECT(\"'\"&F6311&\"'!\"&G6311)),\"\",INDIRECT(\"'\"&F6311&\"'!\"&G6311))","v":""},{"$f":"IF(ISBLANK(INDIRECT(\"'\"&F6311&\"'!\"&H6311)),\"\",IFERROR(VLOOKUP(TEXT(INDIRECT(\"'\"&F6311&\"'!\"&H6311),\"0\"),Notes!$B$5:$C$100,2,FALSE),\"\"))","v":""},"2d","$O$124","$P$124"]
[25499,{"$f":"Menu!$F$29","v":"X"},{"$f":"Menu!$J$29","v":2020},{"$f":"IF(ISBLANK(INDIRECT(\"'\"&F6312&\"'!\"&G6312)),\"\",INDIRECT(\"'\"&F6312&\"'!\"&G6312))","v":""},{"$f":"IF(ISBLANK(INDIRECT(\"'\"&F6312&\"'!\"&H6312)),\"\",IFERROR(VLOOKUP(TEXT(INDIRECT(\"'\"&F6312&\"'!\"&H6312),\"0\"),Notes!$B$5:$C$100,2,FALSE),\"\"))","v":""},"2d","$M$124","$N$124"]
[25500,{"$f":"Menu!$F$29","v":"X"},{"$f":"Menu!$J$29","v":2020},{"$f":"IF(ISBLANK(INDIRECT(\"'\"&F6313&\"'!\"&G6313)),\"\",INDIRECT(\"'\"&F6313&\"'!\"&G6313))","v":""},{"$f":"IF(ISBLANK(INDIRECT(\"'\"&F6313&\"'!\"&H6313)),\"\",IFERROR(VLOOKUP(TEXT(INDIRECT(\"'\"&F6313&\"'!\"&H6313),\"0\"),Notes!$B$5:$C$100,2,FALSE),\"\"))","v":""},"2d","$Q$124","$R$124"]
[25501,{"$f":"Menu!$F$29","v":"X"},{"$f":"Menu!$J$29","v":2020},{"$f":"IF(ISBLANK(INDIRECT(\"'\"&F6314&\"'!\"&G6314)),\"\",INDIRECT(\"'\"&F6314&\"'!\"&G6314))","v":""},{"$f":"IF(ISBLANK(INDIRECT(\"'\"&F6314&\"'!\"&H6314)),\"\",IFERROR(VLOOKUP(TEXT(INDIRECT(\"'\"&F6314&\"'!\"&H6314),\"0\"),Notes!$B$5:$C$100,2,FALSE),\"\"))","v":""},"2d","$U$124","$V$124"]
[25502,{"$f":"Menu!$F$29","v":"X"},{"$f":"Menu!$J$29","v":2020},{"$f":"IF(ISBLANK(INDIRECT(\"'\"&F6315&\"'!\"&G6315)),\"\",INDIRECT(\"'\"&F6315&\"'!\"&G6315))","v":""},{"$f":"IF(ISBLANK(INDIRECT(\"'\"&F6315&\"'!\"&H6315)),\"\",IFERROR(VLOOKUP(TEXT(INDIRECT(\"'\"&F6315&\"'!\"&H6315),\"0\"),Notes!$B$5:$C$100,2,FALSE),\"\"))","v":""},"2d","$S$124","$T$124"]
[25503,{"$f":"Menu!$F$29","v":"X"},{"$f":"Menu!$J$29","v":2020},{"$f":"IF(ISBLANK(INDIRECT(\"'\"&F6316&\"'!\"&G6316)),\"\",INDIRECT(\"'\"&F6316&\"'!\"&G6316))","v":""},{"$f":"IF(ISBLANK(INDIRECT(\"'\"&F6316&\"'!\"&H6316)),\"\",IFERROR(VLOOKUP(TEXT(INDIRECT(\"'\"&F6316&\"'!\"&H6316),\"0\"),Notes!$B$5:$C$100,2,FALSE),\"\"))","v":""},"2a","$K$124","$L$124"]
[25504,{"$f":"Menu!$F$29","v":"X"},{"$f":"Menu!$J$29","v":2020},{"$f":"IF(ISBLANK(INDIRECT(\"'\"&F6317&\"'!\"&G6317)),\"\",INDIRECT(\"'\"&F6317&\"'!\"&G6317))","v":""},{"$f":"IF(ISBLANK(INDIRECT(\"'\"&F6317&\"'!\"&H6317)),\"\",IFERROR(VLOOKUP(TEXT(INDIRECT(\"'\"&F6317&\"'!\"&H6317),\"0\"),Notes!$B$5:$C$100,2,FALSE),\"\"))","v":""},"2a","$O$124","$P$124"]
[25505,{"$f":"Menu!$F$29","v":"X"},{"$f":"Menu!$J$29","v":2020},{"$f":"IF(ISBLANK(INDIRECT(\"'\"&F6318&\"'!\"&G6318)),\"\",INDIRECT(\"'\"&F6318&\"'!\"&G6318))","v":""},{"$f":"IF(ISBLANK(INDIRECT(\"'\"&F6318&\"'!\"&H6318)),\"\",IFERROR(VLOOKUP(TEXT(INDIRECT(\"'\"&F6318&\"'!\"&H6318),\"0\"),Notes!$B$5:$C$100,2,FALSE),\"\"))","v":""},"2a","$M$124","$N$124"]
[25506,{"$f":"Menu!$F$29","v":"X"},{"$f":"Menu!$J$29","v":2020},{"$f":"IF(ISBLANK(INDIRECT(\"'\"&F6319&\"'!\"&G6319)),\"\",INDIRECT(\"'\"&F6319&\"'!\"&G6319))","v":""},{"$f":"IF(ISBLANK(INDIRECT(\"'\"&F6319&\"'!\"&H6319)),\"\",IFERROR(VLOOKUP(TEXT(INDIRECT(\"'\"&F6319&\"'!\"&H6319),\"0\"),Notes!$B$5:$C$100,2,FALSE),\"\"))","v":""},"2a","$E$124","$F$124"]
[25507,{"$f":"Menu!$F$29","v":"X"},{"$f":"Menu!$J$29","v":2020},{"$f":"IF(ISBLANK(INDIRECT(\"'\"&F6320&\"'!\"&G6320)),\"\",INDIRECT(\"'\"&F6320&\"'!\"&G6320))","v":""},{"$f":"IF(ISBLANK(INDIRECT(\"'\"&F6320&\"'!\"&H6320)),\"\",IFERROR(VLOOKUP(TEXT(INDIRECT(\"'\"&F6320&\"'!\"&H6320),\"0\"),Notes!$B$5:$C$100,2,FALSE),\"\"))","v":""},"2b","$K$125","$L$125"]
[25508,{"$f":"Menu!$F$29","v":"X"},{"$f":"Menu!$J$29","v":2020},{"$f":"IF(ISBLANK(INDIRECT(\"'\"&F6321&\"'!\"&G6321)),\"\",INDIRECT(\"'\"&F6321&\"'!\"&G6321))","v":""},{"$f":"IF(ISBLANK(INDIRECT(\"'\"&F6321&\"'!\"&H6321)),\"\",IFERROR(VLOOKUP(TEXT(INDIRECT(\"'\"&F6321&\"'!\"&H6321),\"0\"),Notes!$B$5:$C$100,2,FALSE),\"\"))","v":""},"2b","$O$125","$P$125"]
[25509,{"$f":"Menu!$F$29","v":"X"},{"$f":"Menu!$J$29","v":2020},{"$f":"IF(ISBLANK(INDIRECT(\"'\"&F6322&\"'!\"&G6322)),\"\",INDIRECT(\"'\"&F6322&\"'!\"&G6322))","v":""},{"$f":"IF(ISBLANK(INDIRECT(\"'\"&F6322&\"'!\"&H6322)),\"\",IFERROR(VLOOKUP(TEXT(INDIRECT(\"'\"&F6322&\"'!\"&H6322),\"0\"),Notes!$B$5:$C$100,2,FALSE),\"\"))","v":""},"2b","$M$125","$N$125"]
[25510,{"$f":"Menu!$F$29","v":"X"},{"$f":"Menu!$J$29","v":2020},{"$f":"IF(ISBLANK(INDIRECT(\"'\"&F6323&\"'!\"&G6323)),\"\",INDIRECT(\"'\"&F6323&\"'!\"&G6323))","v":""},{"$f":"IF(ISBLANK(INDIRECT(\"'\"&F6323&\"'!\"&H6323)),\"\",IFERROR(VLOOKUP(TEXT(INDIRECT(\"'\"&F6323&\"'!\"&H6323),\"0\"),Notes!$B$5:$C$100,2,FALSE),\"\"))","v":""},"2b","$Q$125","$R$125"]
[25511,{"$f":"Menu!$F$29","v":"X"},{"$f":"Menu!$J$29","v":2020},{"$f":"IF(ISBLANK(INDIRECT(\"'\"&F6324&\"'!\"&G6324)),\"\",INDIRECT(\"'\"&F6324&\"'!\"&G6324))","v":""},{"$f":"IF(ISBLANK(INDIRECT(\"'\"&F6324&\"'!\"&H6324)),\"\",IFERROR(VLOOKUP(TEXT(INDIRECT(\"'\"&F6324&\"'!\"&H6324),\"0\"),Notes!$B$5:$C$100,2,FALSE),\"\"))","v":""},"2b","$U$125","$V$125"]
[25512,{"$f":"Menu!$F$29","v":"X"},{"$f":"Menu!$J$29","v":2020},{"$f":"IF(ISBLANK(INDIRECT(\"'\"&F6325&\"'!\"&G6325)),\"\",INDIRECT(\"'\"&F6325&\"'!\"&G6325))","v":""},{"$f":"IF(ISBLANK(INDIRECT(\"'\"&F6325&\"'!\"&H6325)),\"\",IFERROR(VLOOKUP(TEXT(INDIRECT(\"'\"&F6325&\"'!\"&H6325),\"0\"),Notes!$B$5:$C$100,2,FALSE),\"\"))","v":""},"2b","$S$125","$T$125"]
[25516,{"$f":"Menu!$F$29","v":"X"},{"$f":"Menu!$J$29","v":2020},{"$f":"IF(ISBLANK(INDIRECT(\"'\"&F6326&\"'!\"&G6326)),\"\",INDIRECT(\"'\"&F6326&\"'!\"&G6326))","v":""},{"$f":"IF(ISBLANK(INDIRECT(\"'\"&F6326&\"'!\"&H6326)),\"\",IFERROR(VLOOKUP(TEXT(INDIRECT(\"'\"&F6326&\"'!\"&H6326),\"0\"),Notes!$B$5:$C$100,2,FALSE),\"\"))","v":""},"2a","$I$125","$J$125"]
[25517,{"$f":"Menu!$F$29","v":"X"},{"$f":"Menu!$J$29","v":2020},{"$f":"IF(ISBLANK(INDIRECT(\"'\"&F6327&\"'!\"&G6327)),\"\",INDIRECT(\"'\"&F6327&\"'!\"&G6327))","v":""},{"$f":"IF(ISBLANK(INDIRECT(\"'\"&F6327&\"'!\"&H6327)),\"\",IFERROR(VLOOKUP(TEXT(INDIRECT(\"'\"&F6327&\"'!\"&H6327),\"0\"),Notes!$B$5:$C$100,2,FALSE),\"\"))","v":""},"2c","$E$125","$F$125"]
[25518,{"$f":"Menu!$F$29","v":"X"},{"$f":"Menu!$J$29","v":2020},{"$f":"IF(ISBLANK(INDIRECT(\"'\"&F6328&\"'!\"&G6328)),\"\",INDIRECT(\"'\"&F6328&\"'!\"&G6328))","v":""},{"$f":"IF(ISBLANK(INDIRECT(\"'\"&F6328&\"'!\"&H6328)),\"\",IFERROR(VLOOKUP(TEXT(INDIRECT(\"'\"&F6328&\"'!\"&H6328),\"0\"),Notes!$B$5:$C$100,2,FALSE),\"\"))","v":""},"2c","$I$125","$J$125"]
[25519,{"$f":"Menu!$F$29","v":"X"},{"$f":"Menu!$J$29","v":2020},{"$f":"IF(ISBLANK(INDIRECT(\"'\"&F6329&\"'!\"&G6329)),\"\",INDIRECT(\"'\"&F6329&\"'!\"&G6329))","v":""},{"$f":"IF(ISBLANK(INDIRECT(\"'\"&F6329&\"'!\"&H6329)),\"\",IFERROR(VLOOKUP(TEXT(INDIRECT(\"'\"&F6329&\"'!\"&H6329),\"0\"),Notes!$B$5:$C$100,2,FALSE),\"\"))","v":""},"2c","$G$125","$H$125"]
[25523,{"$f":"Menu!$F$29","v":"X"},{"$f":"Menu!$J$29","v":2020},{"$f":"IF(ISBLANK(INDIRECT(\"'\"&F6330&\"'!\"&G6330)),\"\",INDIRECT(\"'\"&F6330&\"'!\"&G6330))","v":""},{"$f":"IF(ISBLANK(INDIRECT(\"'\"&F6330&\"'!\"&H6330)),\"\",IFERROR(VLOOKUP(TEXT(INDIRECT(\"'\"&F6330&\"'!\"&H6330),\"0\"),Notes!$B$5:$C$100,2,FALSE),\"\"))","v":""},"2c","$K$125","$L$125"]
[25524,{"$f":"Menu!$F$29","v":"X"},{"$f":"Menu!$J$29","v":2020},{"$f":"IF(ISBLANK(INDIRECT(\"'\"&F6331&\"'!\"&G6331)),\"\",INDIRECT(\"'\"&F6331&\"'!\"&G6331))","v":""},{"$f":"IF(ISBLANK(INDIRECT(\"'\"&F6331&\"'!\"&H6331)),\"\",IFERROR(VLOOKUP(TEXT(INDIRECT(\"'\"&F6331&\"'!\"&H6331),\"0\"),Notes!$B$5:$C$100,2,FALSE),\"\"))","v":""},"2c","$O$125","$P$125"]
[25525,{"$f":"Menu!$F$29","v":"X"},{"$f":"Menu!$J$29","v":2020},{"$f":"IF(ISBLANK(INDIRECT(\"'\"&F6332&\"'!\"&G6332)),\"\",INDIRECT(\"'\"&F6332&\"'!\"&G6332))","v":""},{"$f":"IF(ISBLANK(INDIRECT(\"'\"&F6332&\"'!\"&H6332)),\"\",IFERROR(VLOOKUP(TEXT(INDIRECT(\"'\"&F6332&\"'!\"&H6332),\"0\"),Notes!$B$5:$C$100,2,FALSE),\"\"))","v":""},"2c","$M$125","$N$125"]
[25526,{"$f":"Menu!$F$29","v":"X"},{"$f":"Menu!$J$29","v":2020},{"$f":"IF(ISBLANK(INDIRECT(\"'\"&F6333&\"'!\"&G6333)),\"\",INDIRECT(\"'\"&F6333&\"'!\"&G6333))","v":""},{"$f":"IF(ISBLANK(INDIRECT(\"'\"&F6333&\"'!\"&H6333)),\"\",IFERROR(VLOOKUP(TEXT(INDIRECT(\"'\"&F6333&\"'!\"&H6333),\"0\"),Notes!$B$5:$C$100,2,FALSE),\"\"))","v":""},"2c","$Q$125","$R$125"]
[25527,{"$f":"Menu!$F$29","v":"X"},{"$f":"Menu!$J$29","v":2020},{"$f":"IF(ISBLANK(INDIRECT(\"'\"&F6334&\"'!\"&G6334)),\"\",INDIRECT(\"'\"&F6334&\"'!\"&G6334))","v":""},{"$f":"IF(ISBLANK(INDIRECT(\"'\"&F6334&\"'!\"&H6334)),\"\",IFERROR(VLOOKUP(TEXT(INDIRECT(\"'\"&F6334&\"'!\"&H6334),\"0\"),Notes!$B$5:$C$100,2,FALSE),\"\"))","v":""},"2c","$U$125","$V$125"]
[25528,{"$f":"Menu!$F$29","v":"X"},{"$f":"Menu!$J$29","v":2020},{"$f":"IF(ISBLANK(INDIRECT(\"'\"&F6335&\"'!\"&G6335)),\"\",INDIRECT(\"'\"&F6335&\"'!\"&G6335))","v":""},{"$f":"IF(ISBLANK(INDIRECT(\"'\"&F6335&\"'!\"&H6335)),\"\",IFERROR(VLOOKUP(TEXT(INDIRECT(\"'\"&F6335&\"'!\"&H6335),\"0\"),Notes!$B$5:$C$100,2,FALSE),\"\"))","v":""},"2c","$S$125","$T$125"]
[25529,{"$f":"Menu!$F$29","v":"X"},{"$f":"Menu!$J$29","v":2020},{"$f":"IF(ISBLANK(INDIRECT(\"'\"&F6336&\"'!\"&G6336)),\"\",INDIRECT(\"'\"&F6336&\"'!\"&G6336))","v":""},{"$f":"IF(ISBLANK(INDIRECT(\"'\"&F6336&\"'!\"&H6336)),\"\",IFERROR(VLOOKUP(TEXT(INDIRECT(\"'\"&F6336&\"'!\"&H6336),\"0\"),Notes!$B$5:$C$100,2,FALSE),\"\"))","v":""},"2c","$W$125","$X$125"]
[25530,{"$f":"Menu!$F$29","v":"X"},{"$f":"Menu!$J$29","v":2020},{"$f":"IF(ISBLANK(INDIRECT(\"'\"&F6337&\"'!\"&G6337)),\"\",INDIRECT(\"'\"&F6337&\"'!\"&G6337))","v":""},{"$f":"IF(ISBLANK(INDIRECT(\"'\"&F6337&\"'!\"&H6337)),\"\",IFERROR(VLOOKUP(TEXT(INDIRECT(\"'\"&F6337&\"'!\"&H6337),\"0\"),Notes!$B$5:$C$100,2,FALSE),\"\"))","v":""},"2c","$AA$125","$AB$125"]
[25531,{"$f":"Menu!$F$29","v":"X"},{"$f":"Menu!$J$29","v":2020},{"$f":"IF(ISBLANK(INDIRECT(\"'\"&F6338&\"'!\"&G6338)),\"\",INDIRECT(\"'\"&F6338&\"'!\"&G6338))","v":""},{"$f":"IF(ISBLANK(INDIRECT(\"'\"&F6338&\"'!\"&H6338)),\"\",IFERROR(VLOOKUP(TEXT(INDIRECT(\"'\"&F6338&\"'!\"&H6338),\"0\"),Notes!$B$5:$C$100,2,FALSE),\"\"))","v":""},"2c","$Y$125",{"$f":"IF(LEN(TRIM(MID(G6338,4,10)))-LEN(SUBSTITUTE(TRIM(MID(G6338,4,10)),\"$\",\"\"))=0,\"$\"&CHAR(CODE(MID(G6338,2,1))+1)&\"$\"&TRIM(MID(G6338,4,10)),\"$\"&MID(G6338,2,1)&CHAR(CODE(MID(G6338,3,1))+1)&\"$\"&TRIM(MID(G6338,5,11)))","v":"$Z$125"}]
[25538,{"$f":"Menu!$F$29","v":"X"},{"$f":"Menu!$J$29","v":2020},{"$f":"IF(ISBLANK(INDIRECT(\"'\"&F6339&\"'!\"&G6339)),\"\",INDIRECT(\"'\"&F6339&\"'!\"&G6339))","v":""},{"$f":"IF(ISBLANK(INDIRECT(\"'\"&F6339&\"'!\"&H6339)),\"\",IFERROR(VLOOKUP(TEXT(INDIRECT(\"'\"&F6339&\"'!\"&H6339),\"0\"),Notes!$B$5:$C$100,2,FALSE),\"\"))","v":""},"2e","$BG$126","$BH$126"]
[25539,{"$f":"Menu!$F$29","v":"X"},{"$f":"Menu!$J$29","v":2020},{"$f":"IF(ISBLANK(INDIRECT(\"'\"&F6340&\"'!\"&G6340)),\"\",INDIRECT(\"'\"&F6340&\"'!\"&G6340))","v":""},{"$f":"IF(ISBLANK(INDIRECT(\"'\"&F6340&\"'!\"&H6340)),\"\",IFERROR(VLOOKUP(TEXT(INDIRECT(\"'\"&F6340&\"'!\"&H6340),\"0\"),Notes!$B$5:$C$100,2,FALSE),\"\"))","v":""},"2e","$BK$126","$BL$126"]
[25540,{"$f":"Menu!$F$29","v":"X"},{"$f":"Menu!$J$29","v":2020},{"$f":"IF(ISBLANK(INDIRECT(\"'\"&F6341&\"'!\"&G6341)),\"\",INDIRECT(\"'\"&F6341&\"'!\"&G6341))","v":""},{"$f":"IF(ISBLANK(INDIRECT(\"'\"&F6341&\"'!\"&H6341)),\"\",IFERROR(VLOOKUP(TEXT(INDIRECT(\"'\"&F6341&\"'!\"&H6341),\"0\"),Notes!$B$5:$C$100,2,FALSE),\"\"))","v":""},"2e","$BI$126","$BJ$126"]
[25541,{"$f":"Menu!$F$29","v":"X"},{"$f":"Menu!$J$29","v":2020},{"$f":"IF(ISBLANK(INDIRECT(\"'\"&F6342&\"'!\"&G6342)),\"\",INDIRECT(\"'\"&F6342&\"'!\"&G6342))","v":""},{"$f":"IF(ISBLANK(INDIRECT(\"'\"&F6342&\"'!\"&H6342)),\"\",IFERROR(VLOOKUP(TEXT(INDIRECT(\"'\"&F6342&\"'!\"&H6342),\"0\"),Notes!$B$5:$C$100,2,FALSE),\"\"))","v":""},"2e","$E$126","$F$126"]
[25542,{"$f":"Menu!$F$29","v":"X"},{"$f":"Menu!$J$29","v":2020},{"$f":"IF(ISBLANK(INDIRECT(\"'\"&F6343&\"'!\"&G6343)),\"\",INDIRECT(\"'\"&F6343&\"'!\"&G6343))","v":""},{"$f":"IF(ISBLANK(INDIRECT(\"'\"&F6343&\"'!\"&H6343)),\"\",IFERROR(VLOOKUP(TEXT(INDIRECT(\"'\"&F6343&\"'!\"&H6343),\"0\"),Notes!$B$5:$C$100,2,FALSE),\"\"))","v":""},"2e","$I$126","$J$126"]
[25543,{"$f":"Menu!$F$29","v":"X"},{"$f":"Menu!$J$29","v":2020},{"$f":"IF(ISBLANK(INDIRECT(\"'\"&F6344&\"'!\"&G6344)),\"\",INDIRECT(\"'\"&F6344&\"'!\"&G6344))","v":""},{"$f":"IF(ISBLANK(INDIRECT(\"'\"&F6344&\"'!\"&H6344)),\"\",IFERROR(VLOOKUP(TEXT(INDIRECT(\"'\"&F6344&\"'!\"&H6344),\"0\"),Notes!$B$5:$C$100,2,FALSE),\"\"))","v":""},"2e","$G$126","$H$126"]
[25544,{"$f":"Menu!$F$29","v":"X"},{"$f":"Menu!$J$29","v":2020},{"$f":"IF(ISBLANK(INDIRECT(\"'\"&F6345&\"'!\"&G6345)),\"\",INDIRECT(\"'\"&F6345&\"'!\"&G6345))","v":""},{"$f":"IF(ISBLANK(INDIRECT(\"'\"&F6345&\"'!\"&H6345)),\"\",IFERROR(VLOOKUP(TEXT(INDIRECT(\"'\"&F6345&\"'!\"&H6345),\"0\"),Notes!$B$5:$C$100,2,FALSE),\"\"))","v":""},"2e","$K$126","$L$126"]
[25545,{"$f":"Menu!$F$29","v":"X"},{"$f":"Menu!$J$29","v":2020},{"$f":"IF(ISBLANK(INDIRECT(\"'\"&F6346&\"'!\"&G6346)),\"\",INDIRECT(\"'\"&F6346&\"'!\"&G6346))","v":""},{"$f":"IF(ISBLANK(INDIRECT(\"'\"&F6346&\"'!\"&H6346)),\"\",IFERROR(VLOOKUP(TEXT(INDIRECT(\"'\"&F6346&\"'!\"&H6346),\"0\"),Notes!$B$5:$C$100,2,FALSE),\"\"))","v":""},"2e","$O$126","$P$126"]
[25546,{"$f":"Menu!$F$29","v":"X"},{"$f":"Menu!$J$29","v":2020},{"$f":"IF(ISBLANK(INDIRECT(\"'\"&F6347&\"'!\"&G6347)),\"\",INDIRECT(\"'\"&F6347&\"'!\"&G6347))","v":""},{"$f":"IF(ISBLANK(INDIRECT(\"'\"&F6347&\"'!\"&H6347)),\"\",IFERROR(VLOOKUP(TEXT(INDIRECT(\"'\"&F6347&\"'!\"&H6347),\"0\"),Notes!$B$5:$C$100,2,FALSE),\"\"))","v":""},"2e","$M$126","$N$126"]
[25547,{"$f":"Menu!$F$29","v":"X"},{"$f":"Menu!$J$29","v":2020},{"$f":"IF(ISBLANK(INDIRECT(\"'\"&F6348&\"'!\"&G6348)),\"\",INDIRECT(\"'\"&F6348&\"'!\"&G6348))","v":""},{"$f":"IF(ISBLANK(INDIRECT(\"'\"&F6348&\"'!\"&H6348)),\"\",IFERROR(VLOOKUP(TEXT(INDIRECT(\"'\"&F6348&\"'!\"&H6348),\"0\"),Notes!$B$5:$C$100,2,FALSE),\"\"))","v":""},"2e","$Q$126","$R$126"]
[25548,{"$f":"Menu!$F$29","v":"X"},{"$f":"Menu!$J$29","v":2020},{"$f":"IF(ISBLANK(INDIRECT(\"'\"&F6349&\"'!\"&G6349)),\"\",INDIRECT(\"'\"&F6349&\"'!\"&G6349))","v":""},{"$f":"IF(ISBLANK(INDIRECT(\"'\"&F6349&\"'!\"&H6349)),\"\",IFERROR(VLOOKUP(TEXT(INDIRECT(\"'\"&F6349&\"'!\"&H6349),\"0\"),Notes!$B$5:$C$100,2,FALSE),\"\"))","v":""},"2e","$U$126","$V$126"]
[25549,{"$f":"Menu!$F$29","v":"X"},{"$f":"Menu!$J$29","v":2020},{"$f":"IF(ISBLANK(INDIRECT(\"'\"&F6350&\"'!\"&G6350)),\"\",INDIRECT(\"'\"&F6350&\"'!\"&G6350))","v":""},{"$f":"IF(ISBLANK(INDIRECT(\"'\"&F6350&\"'!\"&H6350)),\"\",IFERROR(VLOOKUP(TEXT(INDIRECT(\"'\"&F6350&\"'!\"&H6350),\"0\"),Notes!$B$5:$C$100,2,FALSE),\"\"))","v":""},"2e","$S$126","$T$126"]
[25550,{"$f":"Menu!$F$29","v":"X"},{"$f":"Menu!$J$29","v":2020},{"$f":"IF(ISBLANK(INDIRECT(\"'\"&F6351&\"'!\"&G6351)),\"\",INDIRECT(\"'\"&F6351&\"'!\"&G6351))","v":""},{"$f":"IF(ISBLANK(INDIRECT(\"'\"&F6351&\"'!\"&H6351)),\"\",IFERROR(VLOOKUP(TEXT(INDIRECT(\"'\"&F6351&\"'!\"&H6351),\"0\"),Notes!$B$5:$C$100,2,FALSE),\"\"))","v":""},"2e","$W$126","$X$126"]
[25551,{"$f":"Menu!$F$29","v":"X"},{"$f":"Menu!$J$29","v":2020},{"$f":"IF(ISBLANK(INDIRECT(\"'\"&F6352&\"'!\"&G6352)),\"\",INDIRECT(\"'\"&F6352&\"'!\"&G6352))","v":""},{"$f":"IF(ISBLANK(INDIRECT(\"'\"&F6352&\"'!\"&H6352)),\"\",IFERROR(VLOOKUP(TEXT(INDIRECT(\"'\"&F6352&\"'!\"&H6352),\"0\"),Notes!$B$5:$C$100,2,FALSE),\"\"))","v":""},"2e","$AA$126","$AB$126"]
[25552,{"$f":"Menu!$F$29","v":"X"},{"$f":"Menu!$J$29","v":2020},{"$f":"IF(ISBLANK(INDIRECT(\"'\"&F6353&\"'!\"&G6353)),\"\",INDIRECT(\"'\"&F6353&\"'!\"&G6353))","v":""},{"$f":"IF(ISBLANK(INDIRECT(\"'\"&F6353&\"'!\"&H6353)),\"\",IFERROR(VLOOKUP(TEXT(INDIRECT(\"'\"&F6353&\"'!\"&H6353),\"0\"),Notes!$B$5:$C$100,2,FALSE),\"\"))","v":""},"2e","$Y$126","$Z$126"]
[25553,{"$f":"Menu!$F$29","v":"X"},{"$f":"Menu!$J$29","v":2020},{"$f":"IF(ISBLANK(INDIRECT(\"'\"&F6354&\"'!\"&G6354)),\"\",INDIRECT(\"'\"&F6354&\"'!\"&G6354))","v":""},{"$f":"IF(ISBLANK(INDIRECT(\"'\"&F6354&\"'!\"&H6354)),\"\",IFERROR(VLOOKUP(TEXT(INDIRECT(\"'\"&F6354&\"'!\"&H6354),\"0\"),Notes!$B$5:$C$100,2,FALSE),\"\"))","v":""},"2e","$AC$126","$AD$126"]
[25554,{"$f":"Menu!$F$29","v":"X"},{"$f":"Menu!$J$29","v":2020},{"$f":"IF(ISBLANK(INDIRECT(\"'\"&F6355&\"'!\"&G6355)),\"\",INDIRECT(\"'\"&F6355&\"'!\"&G6355))","v":""},{"$f":"IF(ISBLANK(INDIRECT(\"'\"&F6355&\"'!\"&H6355)),\"\",IFERROR(VLOOKUP(TEXT(INDIRECT(\"'\"&F6355&\"'!\"&H6355),\"0\"),Notes!$B$5:$C$100,2,FALSE),\"\"))","v":""},"2e","$AG$126","$AH$126"]
[25555,{"$f":"Menu!$F$29","v":"X"},{"$f":"Menu!$J$29","v":2020},{"$f":"IF(ISBLANK(INDIRECT(\"'\"&F6356&\"'!\"&G6356)),\"\",INDIRECT(\"'\"&F6356&\"'!\"&G6356))","v":""},{"$f":"IF(ISBLANK(INDIRECT(\"'\"&F6356&\"'!\"&H6356)),\"\",IFERROR(VLOOKUP(TEXT(INDIRECT(\"'\"&F6356&\"'!\"&H6356),\"0\"),Notes!$B$5:$C$100,2,FALSE),\"\"))","v":""},"2e","$AE$126","$AF$126"]
[25556,{"$f":"Menu!$F$29","v":"X"},{"$f":"Menu!$J$29","v":2020},{"$f":"IF(ISBLANK(INDIRECT(\"'\"&F6357&\"'!\"&G6357)),\"\",INDIRECT(\"'\"&F6357&\"'!\"&G6357))","v":""},{"$f":"IF(ISBLANK(INDIRECT(\"'\"&F6357&\"'!\"&H6357)),\"\",IFERROR(VLOOKUP(TEXT(INDIRECT(\"'\"&F6357&\"'!\"&H6357),\"0\"),Notes!$B$5:$C$100,2,FALSE),\"\"))","v":""},"2e","$AI$126","$AJ$126"]
[25557,{"$f":"Menu!$F$29","v":"X"},{"$f":"Menu!$J$29","v":2020},{"$f":"IF(ISBLANK(INDIRECT(\"'\"&F6358&\"'!\"&G6358)),\"\",INDIRECT(\"'\"&F6358&\"'!\"&G6358))","v":""},{"$f":"IF(ISBLANK(INDIRECT(\"'\"&F6358&\"'!\"&H6358)),\"\",IFERROR(VLOOKUP(TEXT(INDIRECT(\"'\"&F6358&\"'!\"&H6358),\"0\"),Notes!$B$5:$C$100,2,FALSE),\"\"))","v":""},"2e","$AM$126","$AN$126"]
[25558,{"$f":"Menu!$F$29","v":"X"},{"$f":"Menu!$J$29","v":2020},{"$f":"IF(ISBLANK(INDIRECT(\"'\"&F6359&\"'!\"&G6359)),\"\",INDIRECT(\"'\"&F6359&\"'!\"&G6359))","v":""},{"$f":"IF(ISBLANK(INDIRECT(\"'\"&F6359&\"'!\"&H6359)),\"\",IFERROR(VLOOKUP(TEXT(INDIRECT(\"'\"&F6359&\"'!\"&H6359),\"0\"),Notes!$B$5:$C$100,2,FALSE),\"\"))","v":""},"2e","$AK$126","$AL$126"]
[25559,{"$f":"Menu!$F$29","v":"X"},{"$f":"Menu!$J$29","v":2020},{"$f":"IF(ISBLANK(INDIRECT(\"'\"&F6360&\"'!\"&G6360)),\"\",INDIRECT(\"'\"&F6360&\"'!\"&G6360))","v":""},{"$f":"IF(ISBLANK(INDIRECT(\"'\"&F6360&\"'!\"&H6360)),\"\",IFERROR(VLOOKUP(TEXT(INDIRECT(\"'\"&F6360&\"'!\"&H6360),\"0\"),Notes!$B$5:$C$100,2,FALSE),\"\"))","v":""},"2e","$AO$126","$AP$126"]
[25560,{"$f":"Menu!$F$29","v":"X"},{"$f":"Menu!$J$29","v":2020},{"$f":"IF(ISBLANK(INDIRECT(\"'\"&F6361&\"'!\"&G6361)),\"\",INDIRECT(\"'\"&F6361&\"'!\"&G6361))","v":""},{"$f":"IF(ISBLANK(INDIRECT(\"'\"&F6361&\"'!\"&H6361)),\"\",IFERROR(VLOOKUP(TEXT(INDIRECT(\"'\"&F6361&\"'!\"&H6361),\"0\"),Notes!$B$5:$C$100,2,FALSE),\"\"))","v":""},"2e","$AS$126","$AT$126"]
[25561,{"$f":"Menu!$F$29","v":"X"},{"$f":"Menu!$J$29","v":2020},{"$f":"IF(ISBLANK(INDIRECT(\"'\"&F6362&\"'!\"&G6362)),\"\",INDIRECT(\"'\"&F6362&\"'!\"&G6362))","v":""},{"$f":"IF(ISBLANK(INDIRECT(\"'\"&F6362&\"'!\"&H6362)),\"\",IFERROR(VLOOKUP(TEXT(INDIRECT(\"'\"&F6362&\"'!\"&H6362),\"0\"),Notes!$B$5:$C$100,2,FALSE),\"\"))","v":""},"2e","$AQ$126","$AR$126"]
[25562,{"$f":"Menu!$F$29","v":"X"},{"$f":"Menu!$J$29","v":2020},{"$f":"IF(ISBLANK(INDIRECT(\"'\"&F6363&\"'!\"&G6363)),\"\",INDIRECT(\"'\"&F6363&\"'!\"&G6363))","v":""},{"$f":"IF(ISBLANK(INDIRECT(\"'\"&F6363&\"'!\"&H6363)),\"\",IFERROR(VLOOKUP(TEXT(INDIRECT(\"'\"&F6363&\"'!\"&H6363),\"0\"),Notes!$B$5:$C$100,2,FALSE),\"\"))","v":""},"2e","$AU$126","$AV$126"]
[25563,{"$f":"Menu!$F$29","v":"X"},{"$f":"Menu!$J$29","v":2020},{"$f":"IF(ISBLANK(INDIRECT(\"'\"&F6364&\"'!\"&G6364)),\"\",INDIRECT(\"'\"&F6364&\"'!\"&G6364))","v":""},{"$f":"IF(ISBLANK(INDIRECT(\"'\"&F6364&\"'!\"&H6364)),\"\",IFERROR(VLOOKUP(TEXT(INDIRECT(\"'\"&F6364&\"'!\"&H6364),\"0\"),Notes!$B$5:$C$100,2,FALSE),\"\"))","v":""},"2e","$AY$126","$AZ$126"]
[25564,{"$f":"Menu!$F$29","v":"X"},{"$f":"Menu!$J$29","v":2020},{"$f":"IF(ISBLANK(INDIRECT(\"'\"&F6365&\"'!\"&G6365)),\"\",INDIRECT(\"'\"&F6365&\"'!\"&G6365))","v":""},{"$f":"IF(ISBLANK(INDIRECT(\"'\"&F6365&\"'!\"&H6365)),\"\",IFERROR(VLOOKUP(TEXT(INDIRECT(\"'\"&F6365&\"'!\"&H6365),\"0\"),Notes!$B$5:$C$100,2,FALSE),\"\"))","v":""},"2e","$AW$126","$AX$126"]
[25565,{"$f":"Menu!$F$29","v":"X"},{"$f":"Menu!$J$29","v":2020},{"$f":"IF(ISBLANK(INDIRECT(\"'\"&F6366&\"'!\"&G6366)),\"\",INDIRECT(\"'\"&F6366&\"'!\"&G6366))","v":""},{"$f":"IF(ISBLANK(INDIRECT(\"'\"&F6366&\"'!\"&H6366)),\"\",IFERROR(VLOOKUP(TEXT(INDIRECT(\"'\"&F6366&\"'!\"&H6366),\"0\"),Notes!$B$5:$C$100,2,FALSE),\"\"))","v":""},"2e","$BA$126","$BB$126"]
[25566,{"$f":"Menu!$F$29","v":"X"},{"$f":"Menu!$J$29","v":2020},{"$f":"IF(ISBLANK(INDIRECT(\"'\"&F6367&\"'!\"&G6367)),\"\",INDIRECT(\"'\"&F6367&\"'!\"&G6367))","v":""},{"$f":"IF(ISBLANK(INDIRECT(\"'\"&F6367&\"'!\"&H6367)),\"\",IFERROR(VLOOKUP(TEXT(INDIRECT(\"'\"&F6367&\"'!\"&H6367),\"0\"),Notes!$B$5:$C$100,2,FALSE),\"\"))","v":""},"2e","$BE$126","$BF$126"]
[25567,{"$f":"Menu!$F$29","v":"X"},{"$f":"Menu!$J$29","v":2020},{"$f":"IF(ISBLANK(INDIRECT(\"'\"&F6368&\"'!\"&G6368)),\"\",INDIRECT(\"'\"&F6368&\"'!\"&G6368))","v":""},{"$f":"IF(ISBLANK(INDIRECT(\"'\"&F6368&\"'!\"&H6368)),\"\",IFERROR(VLOOKUP(TEXT(INDIRECT(\"'\"&F6368&\"'!\"&H6368),\"0\"),Notes!$B$5:$C$100,2,FALSE),\"\"))","v":""},"2e","$BC$126","$BD$126"]
[25568,{"$f":"Menu!$F$29","v":"X"},{"$f":"Menu!$J$29","v":2020},{"$f":"IF(ISBLANK(INDIRECT(\"'\"&F6369&\"'!\"&G6369)),\"\",INDIRECT(\"'\"&F6369&\"'!\"&G6369))","v":""},{"$f":"IF(ISBLANK(INDIRECT(\"'\"&F6369&\"'!\"&H6369)),\"\",IFERROR(VLOOKUP(TEXT(INDIRECT(\"'\"&F6369&\"'!\"&H6369),\"0\"),Notes!$B$5:$C$100,2,FALSE),\"\"))","v":""},"2b","$E$125","$F$125"]
[25569,{"$f":"Menu!$F$29","v":"X"},{"$f":"Menu!$J$29","v":2020},{"$f":"IF(ISBLANK(INDIRECT(\"'\"&F6370&\"'!\"&G6370)),\"\",INDIRECT(\"'\"&F6370&\"'!\"&G6370))","v":""},{"$f":"IF(ISBLANK(INDIRECT(\"'\"&F6370&\"'!\"&H6370)),\"\",IFERROR(VLOOKUP(TEXT(INDIRECT(\"'\"&F6370&\"'!\"&H6370),\"0\"),Notes!$B$5:$C$100,2,FALSE),\"\"))","v":""},"2b","$I$125","$J$125"]
[25570,{"$f":"Menu!$F$29","v":"X"},{"$f":"Menu!$J$29","v":2020},{"$f":"IF(ISBLANK(INDIRECT(\"'\"&F6371&\"'!\"&G6371)),\"\",INDIRECT(\"'\"&F6371&\"'!\"&G6371))","v":""},{"$f":"IF(ISBLANK(INDIRECT(\"'\"&F6371&\"'!\"&H6371)),\"\",IFERROR(VLOOKUP(TEXT(INDIRECT(\"'\"&F6371&\"'!\"&H6371),\"0\"),Notes!$B$5:$C$100,2,FALSE),\"\"))","v":""},"2b","$G$125","$H$125"]
[25571,{"$f":"Menu!$F$29","v":"X"},{"$f":"Menu!$J$29","v":2020},{"$f":"IF(ISBLANK(INDIRECT(\"'\"&F6372&\"'!\"&G6372)),\"\",INDIRECT(\"'\"&F6372&\"'!\"&G6372))","v":""},{"$f":"IF(ISBLANK(INDIRECT(\"'\"&F6372&\"'!\"&H6372)),\"\",IFERROR(VLOOKUP(TEXT(INDIRECT(\"'\"&F6372&\"'!\"&H6372),\"0\"),Notes!$B$5:$C$100,2,FALSE),\"\"))","v":""},"2a","$G$125","$H$125"]
[25572,{"$f":"Menu!$F$29","v":"X"},{"$f":"Menu!$J$29","v":2020},{"$f":"IF(ISBLANK(INDIRECT(\"'\"&F6373&\"'!\"&G6373)),\"\",INDIRECT(\"'\"&F6373&\"'!\"&G6373))","v":""},{"$f":"IF(ISBLANK(INDIRECT(\"'\"&F6373&\"'!\"&H6373)),\"\",IFERROR(VLOOKUP(TEXT(INDIRECT(\"'\"&F6373&\"'!\"&H6373),\"0\"),Notes!$B$5:$C$100,2,FALSE),\"\"))","v":""},"2b","$W$125","$X$125"]
[25573,{"$f":"Menu!$F$29","v":"X"},{"$f":"Menu!$J$29","v":2020},{"$f":"IF(ISBLANK(INDIRECT(\"'\"&F6374&\"'!\"&G6374)),\"\",INDIRECT(\"'\"&F6374&\"'!\"&G6374))","v":""},{"$f":"IF(ISBLANK(INDIRECT(\"'\"&F6374&\"'!\"&H6374)),\"\",IFERROR(VLOOKUP(TEXT(INDIRECT(\"'\"&F6374&\"'!\"&H6374),\"0\"),Notes!$B$5:$C$100,2,FALSE),\"\"))","v":""},"2b","$AA$125","$AB$125"]
[25574,{"$f":"Menu!$F$29","v":"X"},{"$f":"Menu!$J$29","v":2020},{"$f":"IF(ISBLANK(INDIRECT(\"'\"&F6375&\"'!\"&G6375)),\"\",INDIRECT(\"'\"&F6375&\"'!\"&G6375))","v":""},{"$f":"IF(ISBLANK(INDIRECT(\"'\"&F6375&\"'!\"&H6375)),\"\",IFERROR(VLOOKUP(TEXT(INDIRECT(\"'\"&F6375&\"'!\"&H6375),\"0\"),Notes!$B$5:$C$100,2,FALSE),\"\"))","v":""},"2b","$Y$125","$Z$125"]
[25575,{"$f":"Menu!$F$29","v":"X"},{"$f":"Menu!$J$29","v":2020},{"$f":"IF(ISBLANK(INDIRECT(\"'\"&F6376&\"'!\"&G6376)),\"\",INDIRECT(\"'\"&F6376&\"'!\"&G6376))","v":""},{"$f":"IF(ISBLANK(INDIRECT(\"'\"&F6376&\"'!\"&H6376)),\"\",IFERROR(VLOOKUP(TEXT(INDIRECT(\"'\"&F6376&\"'!\"&H6376),\"0\"),Notes!$B$5:$C$100,2,FALSE),\"\"))","v":""},"2d","$AC$125","$AD$125"]
[25576,{"$f":"Menu!$F$29","v":"X"},{"$f":"Menu!$J$29","v":2020},{"$f":"IF(ISBLANK(INDIRECT(\"'\"&F6377&\"'!\"&G6377)),\"\",INDIRECT(\"'\"&F6377&\"'!\"&G6377))","v":""},{"$f":"IF(ISBLANK(INDIRECT(\"'\"&F6377&\"'!\"&H6377)),\"\",IFERROR(VLOOKUP(TEXT(INDIRECT(\"'\"&F6377&\"'!\"&H6377),\"0\"),Notes!$B$5:$C$100,2,FALSE),\"\"))","v":""},"2d","$AG$125","$AH$125"]
[25577,{"$f":"Menu!$F$29","v":"X"},{"$f":"Menu!$J$29","v":2020},{"$f":"IF(ISBLANK(INDIRECT(\"'\"&F6378&\"'!\"&G6378)),\"\",INDIRECT(\"'\"&F6378&\"'!\"&G6378))","v":""},{"$f":"IF(ISBLANK(INDIRECT(\"'\"&F6378&\"'!\"&H6378)),\"\",IFERROR(VLOOKUP(TEXT(INDIRECT(\"'\"&F6378&\"'!\"&H6378),\"0\"),Notes!$B$5:$C$100,2,FALSE),\"\"))","v":""},"2d","$AE$125","$AF$125"]
[25578,{"$f":"Menu!$F$29","v":"X"},{"$f":"Menu!$J$29","v":2020},{"$f":"IF(ISBLANK(INDIRECT(\"'\"&F6379&\"'!\"&G6379)),\"\",INDIRECT(\"'\"&F6379&\"'!\"&G6379))","v":""},{"$f":"IF(ISBLANK(INDIRECT(\"'\"&F6379&\"'!\"&H6379)),\"\",IFERROR(VLOOKUP(TEXT(INDIRECT(\"'\"&F6379&\"'!\"&H6379),\"0\"),Notes!$B$5:$C$100,2,FALSE),\"\"))","v":""},"2d","$W$125","$X$125"]
[25579,{"$f":"Menu!$F$29","v":"X"},{"$f":"Menu!$J$29","v":2020},{"$f":"IF(ISBLANK(INDIRECT(\"'\"&F6380&\"'!\"&G6380)),\"\",INDIRECT(\"'\"&F6380&\"'!\"&G6380))","v":""},{"$f":"IF(ISBLANK(INDIRECT(\"'\"&F6380&\"'!\"&H6380)),\"\",IFERROR(VLOOKUP(TEXT(INDIRECT(\"'\"&F6380&\"'!\"&H6380),\"0\"),Notes!$B$5:$C$100,2,FALSE),\"\"))","v":""},"2d","$AA$125","$AB$125"]
[25580,{"$f":"Menu!$F$29","v":"X"},{"$f":"Menu!$J$29","v":2020},{"$f":"IF(ISBLANK(INDIRECT(\"'\"&F6381&\"'!\"&G6381)),\"\",INDIRECT(\"'\"&F6381&\"'!\"&G6381))","v":""},{"$f":"IF(ISBLANK(INDIRECT(\"'\"&F6381&\"'!\"&H6381)),\"\",IFERROR(VLOOKUP(TEXT(INDIRECT(\"'\"&F6381&\"'!\"&H6381),\"0\"),Notes!$B$5:$C$100,2,FALSE),\"\"))","v":""},"2d","$Y$125","$Z$125"]
[25581,{"$f":"Menu!$F$29","v":"X"},{"$f":"Menu!$J$29","v":2020},{"$f":"IF(ISBLANK(INDIRECT(\"'\"&F6382&\"'!\"&G6382)),\"\",INDIRECT(\"'\"&F6382&\"'!\"&G6382))","v":""},{"$f":"IF(ISBLANK(INDIRECT(\"'\"&F6382&\"'!\"&H6382)),\"\",IFERROR(VLOOKUP(TEXT(INDIRECT(\"'\"&F6382&\"'!\"&H6382),\"0\"),Notes!$B$5:$C$100,2,FALSE),\"\"))","v":""},"2d","$E$125","$F$125"]
[25582,{"$f":"Menu!$F$29","v":"X"},{"$f":"Menu!$J$29","v":2020},{"$f":"IF(ISBLANK(INDIRECT(\"'\"&F6383&\"'!\"&G6383)),\"\",INDIRECT(\"'\"&F6383&\"'!\"&G6383))","v":""},{"$f":"IF(ISBLANK(INDIRECT(\"'\"&F6383&\"'!\"&H6383)),\"\",IFERROR(VLOOKUP(TEXT(INDIRECT(\"'\"&F6383&\"'!\"&H6383),\"0\"),Notes!$B$5:$C$100,2,FALSE),\"\"))","v":""},"2d","$I$125","$J$125"]
[25583,{"$f":"Menu!$F$29","v":"X"},{"$f":"Menu!$J$29","v":2020},{"$f":"IF(ISBLANK(INDIRECT(\"'\"&F6384&\"'!\"&G6384)),\"\",INDIRECT(\"'\"&F6384&\"'!\"&G6384))","v":""},{"$f":"IF(ISBLANK(INDIRECT(\"'\"&F6384&\"'!\"&H6384)),\"\",IFERROR(VLOOKUP(TEXT(INDIRECT(\"'\"&F6384&\"'!\"&H6384),\"0\"),Notes!$B$5:$C$100,2,FALSE),\"\"))","v":""},"2d","$G$125","$H$125"]
[25584,{"$f":"Menu!$F$29","v":"X"},{"$f":"Menu!$J$29","v":2020},{"$f":"IF(ISBLANK(INDIRECT(\"'\"&F6385&\"'!\"&G6385)),\"\",INDIRECT(\"'\"&F6385&\"'!\"&G6385))","v":""},{"$f":"IF(ISBLANK(INDIRECT(\"'\"&F6385&\"'!\"&H6385)),\"\",IFERROR(VLOOKUP(TEXT(INDIRECT(\"'\"&F6385&\"'!\"&H6385),\"0\"),Notes!$B$5:$C$100,2,FALSE),\"\"))","v":""},"2a","$Q$125","$R$125"]
[25585,{"$f":"Menu!$F$29","v":"X"},{"$f":"Menu!$J$29","v":2020},{"$f":"IF(ISBLANK(INDIRECT(\"'\"&F6386&\"'!\"&G6386)),\"\",INDIRECT(\"'\"&F6386&\"'!\"&G6386))","v":""},{"$f":"IF(ISBLANK(INDIRECT(\"'\"&F6386&\"'!\"&H6386)),\"\",IFERROR(VLOOKUP(TEXT(INDIRECT(\"'\"&F6386&\"'!\"&H6386),\"0\"),Notes!$B$5:$C$100,2,FALSE),\"\"))","v":""},"2a","$U$125","$V$125"]
[25586,{"$f":"Menu!$F$29","v":"X"},{"$f":"Menu!$J$29","v":2020},{"$f":"IF(ISBLANK(INDIRECT(\"'\"&F6387&\"'!\"&G6387)),\"\",INDIRECT(\"'\"&F6387&\"'!\"&G6387))","v":""},{"$f":"IF(ISBLANK(INDIRECT(\"'\"&F6387&\"'!\"&H6387)),\"\",IFERROR(VLOOKUP(TEXT(INDIRECT(\"'\"&F6387&\"'!\"&H6387),\"0\"),Notes!$B$5:$C$100,2,FALSE),\"\"))","v":""},"2a","$S$125","$T$125"]
[25587,{"$f":"Menu!$F$29","v":"X"},{"$f":"Menu!$J$29","v":2020},{"$f":"IF(ISBLANK(INDIRECT(\"'\"&F6388&\"'!\"&G6388)),\"\",INDIRECT(\"'\"&F6388&\"'!\"&G6388))","v":""},{"$f":"IF(ISBLANK(INDIRECT(\"'\"&F6388&\"'!\"&H6388)),\"\",IFERROR(VLOOKUP(TEXT(INDIRECT(\"'\"&F6388&\"'!\"&H6388),\"0\"),Notes!$B$5:$C$100,2,FALSE),\"\"))","v":""},"2d","$K$125","$L$125"]
[25588,{"$f":"Menu!$F$29","v":"X"},{"$f":"Menu!$J$29","v":2020},{"$f":"IF(ISBLANK(INDIRECT(\"'\"&F6389&\"'!\"&G6389)),\"\",INDIRECT(\"'\"&F6389&\"'!\"&G6389))","v":""},{"$f":"IF(ISBLANK(INDIRECT(\"'\"&F6389&\"'!\"&H6389)),\"\",IFERROR(VLOOKUP(TEXT(INDIRECT(\"'\"&F6389&\"'!\"&H6389),\"0\"),Notes!$B$5:$C$100,2,FALSE),\"\"))","v":""},"2d","$O$125","$P$125"]
[25589,{"$f":"Menu!$F$29","v":"X"},{"$f":"Menu!$J$29","v":2020},{"$f":"IF(ISBLANK(INDIRECT(\"'\"&F6390&\"'!\"&G6390)),\"\",INDIRECT(\"'\"&F6390&\"'!\"&G6390))","v":""},{"$f":"IF(ISBLANK(INDIRECT(\"'\"&F6390&\"'!\"&H6390)),\"\",IFERROR(VLOOKUP(TEXT(INDIRECT(\"'\"&F6390&\"'!\"&H6390),\"0\"),Notes!$B$5:$C$100,2,FALSE),\"\"))","v":""},"2d","$M$125","$N$125"]
[25590,{"$f":"Menu!$F$29","v":"X"},{"$f":"Menu!$J$29","v":2020},{"$f":"IF(ISBLANK(INDIRECT(\"'\"&F6391&\"'!\"&G6391)),\"\",INDIRECT(\"'\"&F6391&\"'!\"&G6391))","v":""},{"$f":"IF(ISBLANK(INDIRECT(\"'\"&F6391&\"'!\"&H6391)),\"\",IFERROR(VLOOKUP(TEXT(INDIRECT(\"'\"&F6391&\"'!\"&H6391),\"0\"),Notes!$B$5:$C$100,2,FALSE),\"\"))","v":""},"2d","$Q$125","$R$125"]
[25591,{"$f":"Menu!$F$29","v":"X"},{"$f":"Menu!$J$29","v":2020},{"$f":"IF(ISBLANK(INDIRECT(\"'\"&F6392&\"'!\"&G6392)),\"\",INDIRECT(\"'\"&F6392&\"'!\"&G6392))","v":""},{"$f":"IF(ISBLANK(INDIRECT(\"'\"&F6392&\"'!\"&H6392)),\"\",IFERROR(VLOOKUP(TEXT(INDIRECT(\"'\"&F6392&\"'!\"&H6392),\"0\"),Notes!$B$5:$C$100,2,FALSE),\"\"))","v":""},"2d","$U$125","$V$125"]
[25592,{"$f":"Menu!$F$29","v":"X"},{"$f":"Menu!$J$29","v":2020},{"$f":"IF(ISBLANK(INDIRECT(\"'\"&F6393&\"'!\"&G6393)),\"\",INDIRECT(\"'\"&F6393&\"'!\"&G6393))","v":""},{"$f":"IF(ISBLANK(INDIRECT(\"'\"&F6393&\"'!\"&H6393)),\"\",IFERROR(VLOOKUP(TEXT(INDIRECT(\"'\"&F6393&\"'!\"&H6393),\"0\"),Notes!$B$5:$C$100,2,FALSE),\"\"))","v":""},"2d","$S$125","$T$125"]
[25593,{"$f":"Menu!$F$29","v":"X"},{"$f":"Menu!$J$29","v":2020},{"$f":"IF(ISBLANK(INDIRECT(\"'\"&F6394&\"'!\"&G6394)),\"\",INDIRECT(\"'\"&F6394&\"'!\"&G6394))","v":""},{"$f":"IF(ISBLANK(INDIRECT(\"'\"&F6394&\"'!\"&H6394)),\"\",IFERROR(VLOOKUP(TEXT(INDIRECT(\"'\"&F6394&\"'!\"&H6394),\"0\"),Notes!$B$5:$C$100,2,FALSE),\"\"))","v":""},"2a","$K$125","$L$125"]
[25594,{"$f":"Menu!$F$29","v":"X"},{"$f":"Menu!$J$29","v":2020},{"$f":"IF(ISBLANK(INDIRECT(\"'\"&F6395&\"'!\"&G6395)),\"\",INDIRECT(\"'\"&F6395&\"'!\"&G6395))","v":""},{"$f":"IF(ISBLANK(INDIRECT(\"'\"&F6395&\"'!\"&H6395)),\"\",IFERROR(VLOOKUP(TEXT(INDIRECT(\"'\"&F6395&\"'!\"&H6395),\"0\"),Notes!$B$5:$C$100,2,FALSE),\"\"))","v":""},"2a","$O$125","$P$125"]
[25595,{"$f":"Menu!$F$29","v":"X"},{"$f":"Menu!$J$29","v":2020},{"$f":"IF(ISBLANK(INDIRECT(\"'\"&F6396&\"'!\"&G6396)),\"\",INDIRECT(\"'\"&F6396&\"'!\"&G6396))","v":""},{"$f":"IF(ISBLANK(INDIRECT(\"'\"&F6396&\"'!\"&H6396)),\"\",IFERROR(VLOOKUP(TEXT(INDIRECT(\"'\"&F6396&\"'!\"&H6396),\"0\"),Notes!$B$5:$C$100,2,FALSE),\"\"))","v":""},"2a","$M$125","$N$125"]
[25596,{"$f":"Menu!$F$29","v":"X"},{"$f":"Menu!$J$29","v":2020},{"$f":"IF(ISBLANK(INDIRECT(\"'\"&F6397&\"'!\"&G6397)),\"\",INDIRECT(\"'\"&F6397&\"'!\"&G6397))","v":""},{"$f":"IF(ISBLANK(INDIRECT(\"'\"&F6397&\"'!\"&H6397)),\"\",IFERROR(VLOOKUP(TEXT(INDIRECT(\"'\"&F6397&\"'!\"&H6397),\"0\"),Notes!$B$5:$C$100,2,FALSE),\"\"))","v":""},"2a","$E$125","$F$125"]
[25597,{"$f":"Menu!$F$29","v":"X"},{"$f":"Menu!$J$29","v":2020},{"$f":"IF(ISBLANK(INDIRECT(\"'\"&F6398&\"'!\"&G6398)),\"\",INDIRECT(\"'\"&F6398&\"'!\"&G6398))","v":""},{"$f":"IF(ISBLANK(INDIRECT(\"'\"&F6398&\"'!\"&H6398)),\"\",IFERROR(VLOOKUP(TEXT(INDIRECT(\"'\"&F6398&\"'!\"&H6398),\"0\"),Notes!$B$5:$C$100,2,FALSE),\"\"))","v":""},"2b","$K$126","$L$126"]
[25598,{"$f":"Menu!$F$29","v":"X"},{"$f":"Menu!$J$29","v":2020},{"$f":"IF(ISBLANK(INDIRECT(\"'\"&F6399&\"'!\"&G6399)),\"\",INDIRECT(\"'\"&F6399&\"'!\"&G6399))","v":""},{"$f":"IF(ISBLANK(INDIRECT(\"'\"&F6399&\"'!\"&H6399)),\"\",IFERROR(VLOOKUP(TEXT(INDIRECT(\"'\"&F6399&\"'!\"&H6399),\"0\"),Notes!$B$5:$C$100,2,FALSE),\"\"))","v":""},"2b","$O$126","$P$126"]
[25599,{"$f":"Menu!$F$29","v":"X"},{"$f":"Menu!$J$29","v":2020},{"$f":"IF(ISBLANK(INDIRECT(\"'\"&F6400&\"'!\"&G6400)),\"\",INDIRECT(\"'\"&F6400&\"'!\"&G6400))","v":""},{"$f":"IF(ISBLANK(INDIRECT(\"'\"&F6400&\"'!\"&H6400)),\"\",IFERROR(VLOOKUP(TEXT(INDIRECT(\"'\"&F6400&\"'!\"&H6400),\"0\"),Notes!$B$5:$C$100,2,FALSE),\"\"))","v":""},"2b","$M$126","$N$126"]
[25600,{"$f":"Menu!$F$29","v":"X"},{"$f":"Menu!$J$29","v":2020},{"$f":"IF(ISBLANK(INDIRECT(\"'\"&F6401&\"'!\"&G6401)),\"\",INDIRECT(\"'\"&F6401&\"'!\"&G6401))","v":""},{"$f":"IF(ISBLANK(INDIRECT(\"'\"&F6401&\"'!\"&H6401)),\"\",IFERROR(VLOOKUP(TEXT(INDIRECT(\"'\"&F6401&\"'!\"&H6401),\"0\"),Notes!$B$5:$C$100,2,FALSE),\"\"))","v":""},"2b","$Q$126","$R$126"]
[25601,{"$f":"Menu!$F$29","v":"X"},{"$f":"Menu!$J$29","v":2020},{"$f":"IF(ISBLANK(INDIRECT(\"'\"&F6402&\"'!\"&G6402)),\"\",INDIRECT(\"'\"&F6402&\"'!\"&G6402))","v":""},{"$f":"IF(ISBLANK(INDIRECT(\"'\"&F6402&\"'!\"&H6402)),\"\",IFERROR(VLOOKUP(TEXT(INDIRECT(\"'\"&F6402&\"'!\"&H6402),\"0\"),Notes!$B$5:$C$100,2,FALSE),\"\"))","v":""},"2b","$U$126",{"$f":"IF(LEN(TRIM(MID(G6402,4,10)))-LEN(SUBSTITUTE(TRIM(MID(G6402,4,10)),\"$\",\"\"))=0,\"$\"&CHAR(CODE(MID(G6402,2,1))+1)&\"$\"&TRIM(MID(G6402,4,10)),\"$\"&MID(G6402,2,1)&CHAR(CODE(MID(G6402,3,1))+1)&\"$\"&TRIM(MID(G6402,5,11)))","v":"$V$126"}]
[25602,{"$f":"Menu!$F$29","v":"X"},{"$f":"Menu!$J$29","v":2020},{"$f":"IF(ISBLANK(INDIRECT(\"'\"&F6403&\"'!\"&G6403)),\"\",INDIRECT(\"'\"&F6403&\"'!\"&G6403))","v":""},{"$f":"IF(ISBLANK(INDIRECT(\"'\"&F6403&\"'!\"&H6403)),\"\",IFERROR(VLOOKUP(TEXT(INDIRECT(\"'\"&F6403&\"'!\"&H6403),\"0\"),Notes!$B$5:$C$100,2,FALSE),\"\"))","v":""},"2b","$S$126","$T$126"]
[25606,{"$f":"Menu!$F$29","v":"X"},{"$f":"Menu!$J$29","v":2020},{"$f":"IF(ISBLANK(INDIRECT(\"'\"&F6404&\"'!\"&G6404)),\"\",INDIRECT(\"'\"&F6404&\"'!\"&G6404))","v":""},{"$f":"IF(ISBLANK(INDIRECT(\"'\"&F6404&\"'!\"&H6404)),\"\",IFERROR(VLOOKUP(TEXT(INDIRECT(\"'\"&F6404&\"'!\"&H6404),\"0\"),Notes!$B$5:$C$100,2,FALSE),\"\"))","v":""},"2a","$I$126","$J$126"]
[25607,{"$f":"Menu!$F$29","v":"X"},{"$f":"Menu!$J$29","v":2020},{"$f":"IF(ISBLANK(INDIRECT(\"'\"&F6405&\"'!\"&G6405)),\"\",INDIRECT(\"'\"&F6405&\"'!\"&G6405))","v":""},{"$f":"IF(ISBLANK(INDIRECT(\"'\"&F6405&\"'!\"&H6405)),\"\",IFERROR(VLOOKUP(TEXT(INDIRECT(\"'\"&F6405&\"'!\"&H6405),\"0\"),Notes!$B$5:$C$100,2,FALSE),\"\"))","v":""},"2c","$E$126","$F$126"]
[25608,{"$f":"Menu!$F$29","v":"X"},{"$f":"Menu!$J$29","v":2020},{"$f":"IF(ISBLANK(INDIRECT(\"'\"&F6406&\"'!\"&G6406)),\"\",INDIRECT(\"'\"&F6406&\"'!\"&G6406))","v":""},{"$f":"IF(ISBLANK(INDIRECT(\"'\"&F6406&\"'!\"&H6406)),\"\",IFERROR(VLOOKUP(TEXT(INDIRECT(\"'\"&F6406&\"'!\"&H6406),\"0\"),Notes!$B$5:$C$100,2,FALSE),\"\"))","v":""},"2c","$I$126","$J$126"]
[25609,{"$f":"Menu!$F$29","v":"X"},{"$f":"Menu!$J$29","v":2020},{"$f":"IF(ISBLANK(INDIRECT(\"'\"&F6407&\"'!\"&G6407)),\"\",INDIRECT(\"'\"&F6407&\"'!\"&G6407))","v":""},{"$f":"IF(ISBLANK(INDIRECT(\"'\"&F6407&\"'!\"&H6407)),\"\",IFERROR(VLOOKUP(TEXT(INDIRECT(\"'\"&F6407&\"'!\"&H6407),\"0\"),Notes!$B$5:$C$100,2,FALSE),\"\"))","v":""},"2c","$G$126","$H$126"]
[25613,{"$f":"Menu!$F$29","v":"X"},{"$f":"Menu!$J$29","v":2020},{"$f":"IF(ISBLANK(INDIRECT(\"'\"&F6408&\"'!\"&G6408)),\"\",INDIRECT(\"'\"&F6408&\"'!\"&G6408))","v":""},{"$f":"IF(ISBLANK(INDIRECT(\"'\"&F6408&\"'!\"&H6408)),\"\",IFERROR(VLOOKUP(TEXT(INDIRECT(\"'\"&F6408&\"'!\"&H6408),\"0\"),Notes!$B$5:$C$100,2,FALSE),\"\"))","v":""},"2c","$K$126","$L$126"]
[25614,{"$f":"Menu!$F$29","v":"X"},{"$f":"Menu!$J$29","v":2020},{"$f":"IF(ISBLANK(INDIRECT(\"'\"&F6409&\"'!\"&G6409)),\"\",INDIRECT(\"'\"&F6409&\"'!\"&G6409))","v":""},{"$f":"IF(ISBLANK(INDIRECT(\"'\"&F6409&\"'!\"&H6409)),\"\",IFERROR(VLOOKUP(TEXT(INDIRECT(\"'\"&F6409&\"'!\"&H6409),\"0\"),Notes!$B$5:$C$100,2,FALSE),\"\"))","v":""},"2c","$O$126","$P$126"]
[25615,{"$f":"Menu!$F$29","v":"X"},{"$f":"Menu!$J$29","v":2020},{"$f":"IF(ISBLANK(INDIRECT(\"'\"&F6410&\"'!\"&G6410)),\"\",INDIRECT(\"'\"&F6410&\"'!\"&G6410))","v":""},{"$f":"IF(ISBLANK(INDIRECT(\"'\"&F6410&\"'!\"&H6410)),\"\",IFERROR(VLOOKUP(TEXT(INDIRECT(\"'\"&F6410&\"'!\"&H6410),\"0\"),Notes!$B$5:$C$100,2,FALSE),\"\"))","v":""},"2c","$M$126","$N$126"]
[25616,{"$f":"Menu!$F$29","v":"X"},{"$f":"Menu!$J$29","v":2020},{"$f":"IF(ISBLANK(INDIRECT(\"'\"&F6411&\"'!\"&G6411)),\"\",INDIRECT(\"'\"&F6411&\"'!\"&G6411))","v":""},{"$f":"IF(ISBLANK(INDIRECT(\"'\"&F6411&\"'!\"&H6411)),\"\",IFERROR(VLOOKUP(TEXT(INDIRECT(\"'\"&F6411&\"'!\"&H6411),\"0\"),Notes!$B$5:$C$100,2,FALSE),\"\"))","v":""},"2c","$Q$126","$R$126"]
[25617,{"$f":"Menu!$F$29","v":"X"},{"$f":"Menu!$J$29","v":2020},{"$f":"IF(ISBLANK(INDIRECT(\"'\"&F6412&\"'!\"&G6412)),\"\",INDIRECT(\"'\"&F6412&\"'!\"&G6412))","v":""},{"$f":"IF(ISBLANK(INDIRECT(\"'\"&F6412&\"'!\"&H6412)),\"\",IFERROR(VLOOKUP(TEXT(INDIRECT(\"'\"&F6412&\"'!\"&H6412),\"0\"),Notes!$B$5:$C$100,2,FALSE),\"\"))","v":""},"2c","$U$126","$V$126"]
[25618,{"$f":"Menu!$F$29","v":"X"},{"$f":"Menu!$J$29","v":2020},{"$f":"IF(ISBLANK(INDIRECT(\"'\"&F6413&\"'!\"&G6413)),\"\",INDIRECT(\"'\"&F6413&\"'!\"&G6413))","v":""},{"$f":"IF(ISBLANK(INDIRECT(\"'\"&F6413&\"'!\"&H6413)),\"\",IFERROR(VLOOKUP(TEXT(INDIRECT(\"'\"&F6413&\"'!\"&H6413),\"0\"),Notes!$B$5:$C$100,2,FALSE),\"\"))","v":""},"2c","$S$126","$T$126"]
[25619,{"$f":"Menu!$F$29","v":"X"},{"$f":"Menu!$J$29","v":2020},{"$f":"IF(ISBLANK(INDIRECT(\"'\"&F6414&\"'!\"&G6414)),\"\",INDIRECT(\"'\"&F6414&\"'!\"&G6414))","v":""},{"$f":"IF(ISBLANK(INDIRECT(\"'\"&F6414&\"'!\"&H6414)),\"\",IFERROR(VLOOKUP(TEXT(INDIRECT(\"'\"&F6414&\"'!\"&H6414),\"0\"),Notes!$B$5:$C$100,2,FALSE),\"\"))","v":""},"2c","$W$126","$X$126"]
[25620,{"$f":"Menu!$F$29","v":"X"},{"$f":"Menu!$J$29","v":2020},{"$f":"IF(ISBLANK(INDIRECT(\"'\"&F6415&\"'!\"&G6415)),\"\",INDIRECT(\"'\"&F6415&\"'!\"&G6415))","v":""},{"$f":"IF(ISBLANK(INDIRECT(\"'\"&F6415&\"'!\"&H6415)),\"\",IFERROR(VLOOKUP(TEXT(INDIRECT(\"'\"&F6415&\"'!\"&H6415),\"0\"),Notes!$B$5:$C$100,2,FALSE),\"\"))","v":""},"2c","$AA$126","$AB$126"]
[25621,{"$f":"Menu!$F$29","v":"X"},{"$f":"Menu!$J$29","v":2020},{"$f":"IF(ISBLANK(INDIRECT(\"'\"&F6416&\"'!\"&G6416)),\"\",INDIRECT(\"'\"&F6416&\"'!\"&G6416))","v":""},{"$f":"IF(ISBLANK(INDIRECT(\"'\"&F6416&\"'!\"&H6416)),\"\",IFERROR(VLOOKUP(TEXT(INDIRECT(\"'\"&F6416&\"'!\"&H6416),\"0\"),Notes!$B$5:$C$100,2,FALSE),\"\"))","v":""},"2c","$Y$126","$Z$126"]
[25628,{"$f":"Menu!$F$29","v":"X"},{"$f":"Menu!$J$29","v":2020},{"$f":"IF(ISBLANK(INDIRECT(\"'\"&F6417&\"'!\"&G6417)),\"\",INDIRECT(\"'\"&F6417&\"'!\"&G6417))","v":""},{"$f":"IF(ISBLANK(INDIRECT(\"'\"&F6417&\"'!\"&H6417)),\"\",IFERROR(VLOOKUP(TEXT(INDIRECT(\"'\"&F6417&\"'!\"&H6417),\"0\"),Notes!$B$5:$C$100,2,FALSE),\"\"))","v":""},"2e","$BG$127","$BH$127"]
[25629,{"$f":"Menu!$F$29","v":"X"},{"$f":"Menu!$J$29","v":2020},{"$f":"IF(ISBLANK(INDIRECT(\"'\"&F6418&\"'!\"&G6418)),\"\",INDIRECT(\"'\"&F6418&\"'!\"&G6418))","v":""},{"$f":"IF(ISBLANK(INDIRECT(\"'\"&F6418&\"'!\"&H6418)),\"\",IFERROR(VLOOKUP(TEXT(INDIRECT(\"'\"&F6418&\"'!\"&H6418),\"0\"),Notes!$B$5:$C$100,2,FALSE),\"\"))","v":""},"2e","$BK$127","$BL$127"]
[25630,{"$f":"Menu!$F$29","v":"X"},{"$f":"Menu!$J$29","v":2020},{"$f":"IF(ISBLANK(INDIRECT(\"'\"&F6419&\"'!\"&G6419)),\"\",INDIRECT(\"'\"&F6419&\"'!\"&G6419))","v":""},{"$f":"IF(ISBLANK(INDIRECT(\"'\"&F6419&\"'!\"&H6419)),\"\",IFERROR(VLOOKUP(TEXT(INDIRECT(\"'\"&F6419&\"'!\"&H6419),\"0\"),Notes!$B$5:$C$100,2,FALSE),\"\"))","v":""},"2e","$BI$127","$BJ$127"]
[25631,{"$f":"Menu!$F$29","v":"X"},{"$f":"Menu!$J$29","v":2020},{"$f":"IF(ISBLANK(INDIRECT(\"'\"&F6420&\"'!\"&G6420)),\"\",INDIRECT(\"'\"&F6420&\"'!\"&G6420))","v":""},{"$f":"IF(ISBLANK(INDIRECT(\"'\"&F6420&\"'!\"&H6420)),\"\",IFERROR(VLOOKUP(TEXT(INDIRECT(\"'\"&F6420&\"'!\"&H6420),\"0\"),Notes!$B$5:$C$100,2,FALSE),\"\"))","v":""},"2e","$E$127","$F$127"]
[25632,{"$f":"Menu!$F$29","v":"X"},{"$f":"Menu!$J$29","v":2020},{"$f":"IF(ISBLANK(INDIRECT(\"'\"&F6421&\"'!\"&G6421)),\"\",INDIRECT(\"'\"&F6421&\"'!\"&G6421))","v":""},{"$f":"IF(ISBLANK(INDIRECT(\"'\"&F6421&\"'!\"&H6421)),\"\",IFERROR(VLOOKUP(TEXT(INDIRECT(\"'\"&F6421&\"'!\"&H6421),\"0\"),Notes!$B$5:$C$100,2,FALSE),\"\"))","v":""},"2e","$I$127","$J$127"]
[25633,{"$f":"Menu!$F$29","v":"X"},{"$f":"Menu!$J$29","v":2020},{"$f":"IF(ISBLANK(INDIRECT(\"'\"&F6422&\"'!\"&G6422)),\"\",INDIRECT(\"'\"&F6422&\"'!\"&G6422))","v":""},{"$f":"IF(ISBLANK(INDIRECT(\"'\"&F6422&\"'!\"&H6422)),\"\",IFERROR(VLOOKUP(TEXT(INDIRECT(\"'\"&F6422&\"'!\"&H6422),\"0\"),Notes!$B$5:$C$100,2,FALSE),\"\"))","v":""},"2e","$G$127","$H$127"]
[25634,{"$f":"Menu!$F$29","v":"X"},{"$f":"Menu!$J$29","v":2020},{"$f":"IF(ISBLANK(INDIRECT(\"'\"&F6423&\"'!\"&G6423)),\"\",INDIRECT(\"'\"&F6423&\"'!\"&G6423))","v":""},{"$f":"IF(ISBLANK(INDIRECT(\"'\"&F6423&\"'!\"&H6423)),\"\",IFERROR(VLOOKUP(TEXT(INDIRECT(\"'\"&F6423&\"'!\"&H6423),\"0\"),Notes!$B$5:$C$100,2,FALSE),\"\"))","v":""},"2e","$K$127","$L$127"]
[25635,{"$f":"Menu!$F$29","v":"X"},{"$f":"Menu!$J$29","v":2020},{"$f":"IF(ISBLANK(INDIRECT(\"'\"&F6424&\"'!\"&G6424)),\"\",INDIRECT(\"'\"&F6424&\"'!\"&G6424))","v":""},{"$f":"IF(ISBLANK(INDIRECT(\"'\"&F6424&\"'!\"&H6424)),\"\",IFERROR(VLOOKUP(TEXT(INDIRECT(\"'\"&F6424&\"'!\"&H6424),\"0\"),Notes!$B$5:$C$100,2,FALSE),\"\"))","v":""},"2e","$O$127","$P$127"]
[25636,{"$f":"Menu!$F$29","v":"X"},{"$f":"Menu!$J$29","v":2020},{"$f":"IF(ISBLANK(INDIRECT(\"'\"&F6425&\"'!\"&G6425)),\"\",INDIRECT(\"'\"&F6425&\"'!\"&G6425))","v":""},{"$f":"IF(ISBLANK(INDIRECT(\"'\"&F6425&\"'!\"&H6425)),\"\",IFERROR(VLOOKUP(TEXT(INDIRECT(\"'\"&F6425&\"'!\"&H6425),\"0\"),Notes!$B$5:$C$100,2,FALSE),\"\"))","v":""},"2e","$M$127","$N$127"]
[25637,{"$f":"Menu!$F$29","v":"X"},{"$f":"Menu!$J$29","v":2020},{"$f":"IF(ISBLANK(INDIRECT(\"'\"&F6426&\"'!\"&G6426)),\"\",INDIRECT(\"'\"&F6426&\"'!\"&G6426))","v":""},{"$f":"IF(ISBLANK(INDIRECT(\"'\"&F6426&\"'!\"&H6426)),\"\",IFERROR(VLOOKUP(TEXT(INDIRECT(\"'\"&F6426&\"'!\"&H6426),\"0\"),Notes!$B$5:$C$100,2,FALSE),\"\"))","v":""},"2e","$Q$127","$R$127"]
[25638,{"$f":"Menu!$F$29","v":"X"},{"$f":"Menu!$J$29","v":2020},{"$f":"IF(ISBLANK(INDIRECT(\"'\"&F6427&\"'!\"&G6427)),\"\",INDIRECT(\"'\"&F6427&\"'!\"&G6427))","v":""},{"$f":"IF(ISBLANK(INDIRECT(\"'\"&F6427&\"'!\"&H6427)),\"\",IFERROR(VLOOKUP(TEXT(INDIRECT(\"'\"&F6427&\"'!\"&H6427),\"0\"),Notes!$B$5:$C$100,2,FALSE),\"\"))","v":""},"2e","$U$127","$V$127"]
[25639,{"$f":"Menu!$F$29","v":"X"},{"$f":"Menu!$J$29","v":2020},{"$f":"IF(ISBLANK(INDIRECT(\"'\"&F6428&\"'!\"&G6428)),\"\",INDIRECT(\"'\"&F6428&\"'!\"&G6428))","v":""},{"$f":"IF(ISBLANK(INDIRECT(\"'\"&F6428&\"'!\"&H6428)),\"\",IFERROR(VLOOKUP(TEXT(INDIRECT(\"'\"&F6428&\"'!\"&H6428),\"0\"),Notes!$B$5:$C$100,2,FALSE),\"\"))","v":""},"2e","$S$127","$T$127"]
[25640,{"$f":"Menu!$F$29","v":"X"},{"$f":"Menu!$J$29","v":2020},{"$f":"IF(ISBLANK(INDIRECT(\"'\"&F6429&\"'!\"&G6429)),\"\",INDIRECT(\"'\"&F6429&\"'!\"&G6429))","v":""},{"$f":"IF(ISBLANK(INDIRECT(\"'\"&F6429&\"'!\"&H6429)),\"\",IFERROR(VLOOKUP(TEXT(INDIRECT(\"'\"&F6429&\"'!\"&H6429),\"0\"),Notes!$B$5:$C$100,2,FALSE),\"\"))","v":""},"2e","$W$127","$X$127"]
[25641,{"$f":"Menu!$F$29","v":"X"},{"$f":"Menu!$J$29","v":2020},{"$f":"IF(ISBLANK(INDIRECT(\"'\"&F6430&\"'!\"&G6430)),\"\",INDIRECT(\"'\"&F6430&\"'!\"&G6430))","v":""},{"$f":"IF(ISBLANK(INDIRECT(\"'\"&F6430&\"'!\"&H6430)),\"\",IFERROR(VLOOKUP(TEXT(INDIRECT(\"'\"&F6430&\"'!\"&H6430),\"0\"),Notes!$B$5:$C$100,2,FALSE),\"\"))","v":""},"2e","$AA$127","$AB$127"]
[25642,{"$f":"Menu!$F$29","v":"X"},{"$f":"Menu!$J$29","v":2020},{"$f":"IF(ISBLANK(INDIRECT(\"'\"&F6431&\"'!\"&G6431)),\"\",INDIRECT(\"'\"&F6431&\"'!\"&G6431))","v":""},{"$f":"IF(ISBLANK(INDIRECT(\"'\"&F6431&\"'!\"&H6431)),\"\",IFERROR(VLOOKUP(TEXT(INDIRECT(\"'\"&F6431&\"'!\"&H6431),\"0\"),Notes!$B$5:$C$100,2,FALSE),\"\"))","v":""},"2e","$Y$127","$Z$127"]
[25643,{"$f":"Menu!$F$29","v":"X"},{"$f":"Menu!$J$29","v":2020},{"$f":"IF(ISBLANK(INDIRECT(\"'\"&F6432&\"'!\"&G6432)),\"\",INDIRECT(\"'\"&F6432&\"'!\"&G6432))","v":""},{"$f":"IF(ISBLANK(INDIRECT(\"'\"&F6432&\"'!\"&H6432)),\"\",IFERROR(VLOOKUP(TEXT(INDIRECT(\"'\"&F6432&\"'!\"&H6432),\"0\"),Notes!$B$5:$C$100,2,FALSE),\"\"))","v":""},"2e","$AC$127","$AD$127"]
[25644,{"$f":"Menu!$F$29","v":"X"},{"$f":"Menu!$J$29","v":2020},{"$f":"IF(ISBLANK(INDIRECT(\"'\"&F6433&\"'!\"&G6433)),\"\",INDIRECT(\"'\"&F6433&\"'!\"&G6433))","v":""},{"$f":"IF(ISBLANK(INDIRECT(\"'\"&F6433&\"'!\"&H6433)),\"\",IFERROR(VLOOKUP(TEXT(INDIRECT(\"'\"&F6433&\"'!\"&H6433),\"0\"),Notes!$B$5:$C$100,2,FALSE),\"\"))","v":""},"2e","$AG$127","$AH$127"]
[25645,{"$f":"Menu!$F$29","v":"X"},{"$f":"Menu!$J$29","v":2020},{"$f":"IF(ISBLANK(INDIRECT(\"'\"&F6434&\"'!\"&G6434)),\"\",INDIRECT(\"'\"&F6434&\"'!\"&G6434))","v":""},{"$f":"IF(ISBLANK(INDIRECT(\"'\"&F6434&\"'!\"&H6434)),\"\",IFERROR(VLOOKUP(TEXT(INDIRECT(\"'\"&F6434&\"'!\"&H6434),\"0\"),Notes!$B$5:$C$100,2,FALSE),\"\"))","v":""},"2e","$AE$127","$AF$127"]
[25646,{"$f":"Menu!$F$29","v":"X"},{"$f":"Menu!$J$29","v":2020},{"$f":"IF(ISBLANK(INDIRECT(\"'\"&F6435&\"'!\"&G6435)),\"\",INDIRECT(\"'\"&F6435&\"'!\"&G6435))","v":""},{"$f":"IF(ISBLANK(INDIRECT(\"'\"&F6435&\"'!\"&H6435)),\"\",IFERROR(VLOOKUP(TEXT(INDIRECT(\"'\"&F6435&\"'!\"&H6435),\"0\"),Notes!$B$5:$C$100,2,FALSE),\"\"))","v":""},"2e","$AI$127","$AJ$127"]
[25647,{"$f":"Menu!$F$29","v":"X"},{"$f":"Menu!$J$29","v":2020},{"$f":"IF(ISBLANK(INDIRECT(\"'\"&F6436&\"'!\"&G6436)),\"\",INDIRECT(\"'\"&F6436&\"'!\"&G6436))","v":""},{"$f":"IF(ISBLANK(INDIRECT(\"'\"&F6436&\"'!\"&H6436)),\"\",IFERROR(VLOOKUP(TEXT(INDIRECT(\"'\"&F6436&\"'!\"&H6436),\"0\"),Notes!$B$5:$C$100,2,FALSE),\"\"))","v":""},"2e","$AM$127","$AN$127"]
[25648,{"$f":"Menu!$F$29","v":"X"},{"$f":"Menu!$J$29","v":2020},{"$f":"IF(ISBLANK(INDIRECT(\"'\"&F6437&\"'!\"&G6437)),\"\",INDIRECT(\"'\"&F6437&\"'!\"&G6437))","v":""},{"$f":"IF(ISBLANK(INDIRECT(\"'\"&F6437&\"'!\"&H6437)),\"\",IFERROR(VLOOKUP(TEXT(INDIRECT(\"'\"&F6437&\"'!\"&H6437),\"0\"),Notes!$B$5:$C$100,2,FALSE),\"\"))","v":""},"2e","$AK$127","$AL$127"]
[25649,{"$f":"Menu!$F$29","v":"X"},{"$f":"Menu!$J$29","v":2020},{"$f":"IF(ISBLANK(INDIRECT(\"'\"&F6438&\"'!\"&G6438)),\"\",INDIRECT(\"'\"&F6438&\"'!\"&G6438))","v":""},{"$f":"IF(ISBLANK(INDIRECT(\"'\"&F6438&\"'!\"&H6438)),\"\",IFERROR(VLOOKUP(TEXT(INDIRECT(\"'\"&F6438&\"'!\"&H6438),\"0\"),Notes!$B$5:$C$100,2,FALSE),\"\"))","v":""},"2e","$AO$127","$AP$127"]
[25650,{"$f":"Menu!$F$29","v":"X"},{"$f":"Menu!$J$29","v":2020},{"$f":"IF(ISBLANK(INDIRECT(\"'\"&F6439&\"'!\"&G6439)),\"\",INDIRECT(\"'\"&F6439&\"'!\"&G6439))","v":""},{"$f":"IF(ISBLANK(INDIRECT(\"'\"&F6439&\"'!\"&H6439)),\"\",IFERROR(VLOOKUP(TEXT(INDIRECT(\"'\"&F6439&\"'!\"&H6439),\"0\"),Notes!$B$5:$C$100,2,FALSE),\"\"))","v":""},"2e","$AS$127","$AT$127"]
[25651,{"$f":"Menu!$F$29","v":"X"},{"$f":"Menu!$J$29","v":2020},{"$f":"IF(ISBLANK(INDIRECT(\"'\"&F6440&\"'!\"&G6440)),\"\",INDIRECT(\"'\"&F6440&\"'!\"&G6440))","v":""},{"$f":"IF(ISBLANK(INDIRECT(\"'\"&F6440&\"'!\"&H6440)),\"\",IFERROR(VLOOKUP(TEXT(INDIRECT(\"'\"&F6440&\"'!\"&H6440),\"0\"),Notes!$B$5:$C$100,2,FALSE),\"\"))","v":""},"2e","$AQ$127","$AR$127"]
[25652,{"$f":"Menu!$F$29","v":"X"},{"$f":"Menu!$J$29","v":2020},{"$f":"IF(ISBLANK(INDIRECT(\"'\"&F6441&\"'!\"&G6441)),\"\",INDIRECT(\"'\"&F6441&\"'!\"&G6441))","v":""},{"$f":"IF(ISBLANK(INDIRECT(\"'\"&F6441&\"'!\"&H6441)),\"\",IFERROR(VLOOKUP(TEXT(INDIRECT(\"'\"&F6441&\"'!\"&H6441),\"0\"),Notes!$B$5:$C$100,2,FALSE),\"\"))","v":""},"2e","$AU$127","$AV$127"]
[25653,{"$f":"Menu!$F$29","v":"X"},{"$f":"Menu!$J$29","v":2020},{"$f":"IF(ISBLANK(INDIRECT(\"'\"&F6442&\"'!\"&G6442)),\"\",INDIRECT(\"'\"&F6442&\"'!\"&G6442))","v":""},{"$f":"IF(ISBLANK(INDIRECT(\"'\"&F6442&\"'!\"&H6442)),\"\",IFERROR(VLOOKUP(TEXT(INDIRECT(\"'\"&F6442&\"'!\"&H6442),\"0\"),Notes!$B$5:$C$100,2,FALSE),\"\"))","v":""},"2e","$AY$127","$AZ$127"]
[25654,{"$f":"Menu!$F$29","v":"X"},{"$f":"Menu!$J$29","v":2020},{"$f":"IF(ISBLANK(INDIRECT(\"'\"&F6443&\"'!\"&G6443)),\"\",INDIRECT(\"'\"&F6443&\"'!\"&G6443))","v":""},{"$f":"IF(ISBLANK(INDIRECT(\"'\"&F6443&\"'!\"&H6443)),\"\",IFERROR(VLOOKUP(TEXT(INDIRECT(\"'\"&F6443&\"'!\"&H6443),\"0\"),Notes!$B$5:$C$100,2,FALSE),\"\"))","v":""},"2e","$AW$127","$AX$127"]
[25655,{"$f":"Menu!$F$29","v":"X"},{"$f":"Menu!$J$29","v":2020},{"$f":"IF(ISBLANK(INDIRECT(\"'\"&F6444&\"'!\"&G6444)),\"\",INDIRECT(\"'\"&F6444&\"'!\"&G6444))","v":""},{"$f":"IF(ISBLANK(INDIRECT(\"'\"&F6444&\"'!\"&H6444)),\"\",IFERROR(VLOOKUP(TEXT(INDIRECT(\"'\"&F6444&\"'!\"&H6444),\"0\"),Notes!$B$5:$C$100,2,FALSE),\"\"))","v":""},"2e","$BA$127","$BB$127"]
[25656,{"$f":"Menu!$F$29","v":"X"},{"$f":"Menu!$J$29","v":2020},{"$f":"IF(ISBLANK(INDIRECT(\"'\"&F6445&\"'!\"&G6445)),\"\",INDIRECT(\"'\"&F6445&\"'!\"&G6445))","v":""},{"$f":"IF(ISBLANK(INDIRECT(\"'\"&F6445&\"'!\"&H6445)),\"\",IFERROR(VLOOKUP(TEXT(INDIRECT(\"'\"&F6445&\"'!\"&H6445),\"0\"),Notes!$B$5:$C$100,2,FALSE),\"\"))","v":""},"2e","$BE$127","$BF$127"]
[25657,{"$f":"Menu!$F$29","v":"X"},{"$f":"Menu!$J$29","v":2020},{"$f":"IF(ISBLANK(INDIRECT(\"'\"&F6446&\"'!\"&G6446)),\"\",INDIRECT(\"'\"&F6446&\"'!\"&G6446))","v":""},{"$f":"IF(ISBLANK(INDIRECT(\"'\"&F6446&\"'!\"&H6446)),\"\",IFERROR(VLOOKUP(TEXT(INDIRECT(\"'\"&F6446&\"'!\"&H6446),\"0\"),Notes!$B$5:$C$100,2,FALSE),\"\"))","v":""},"2e","$BC$127","$BD$127"]
[25658,{"$f":"Menu!$F$29","v":"X"},{"$f":"Menu!$J$29","v":2020},{"$f":"IF(ISBLANK(INDIRECT(\"'\"&F6447&\"'!\"&G6447)),\"\",INDIRECT(\"'\"&F6447&\"'!\"&G6447))","v":""},{"$f":"IF(ISBLANK(INDIRECT(\"'\"&F6447&\"'!\"&H6447)),\"\",IFERROR(VLOOKUP(TEXT(INDIRECT(\"'\"&F6447&\"'!\"&H6447),\"0\"),Notes!$B$5:$C$100,2,FALSE),\"\"))","v":""},"2b","$E$126","$F$126"]
[25659,{"$f":"Menu!$F$29","v":"X"},{"$f":"Menu!$J$29","v":2020},{"$f":"IF(ISBLANK(INDIRECT(\"'\"&F6448&\"'!\"&G6448)),\"\",INDIRECT(\"'\"&F6448&\"'!\"&G6448))","v":""},{"$f":"IF(ISBLANK(INDIRECT(\"'\"&F6448&\"'!\"&H6448)),\"\",IFERROR(VLOOKUP(TEXT(INDIRECT(\"'\"&F6448&\"'!\"&H6448),\"0\"),Notes!$B$5:$C$100,2,FALSE),\"\"))","v":""},"2b","$I$126","$J$126"]
[25660,{"$f":"Menu!$F$29","v":"X"},{"$f":"Menu!$J$29","v":2020},{"$f":"IF(ISBLANK(INDIRECT(\"'\"&F6449&\"'!\"&G6449)),\"\",INDIRECT(\"'\"&F6449&\"'!\"&G6449))","v":""},{"$f":"IF(ISBLANK(INDIRECT(\"'\"&F6449&\"'!\"&H6449)),\"\",IFERROR(VLOOKUP(TEXT(INDIRECT(\"'\"&F6449&\"'!\"&H6449),\"0\"),Notes!$B$5:$C$100,2,FALSE),\"\"))","v":""},"2b","$G$126","$H$126"]
[25661,{"$f":"Menu!$F$29","v":"X"},{"$f":"Menu!$J$29","v":2020},{"$f":"IF(ISBLANK(INDIRECT(\"'\"&F6450&\"'!\"&G6450)),\"\",INDIRECT(\"'\"&F6450&\"'!\"&G6450))","v":""},{"$f":"IF(ISBLANK(INDIRECT(\"'\"&F6450&\"'!\"&H6450)),\"\",IFERROR(VLOOKUP(TEXT(INDIRECT(\"'\"&F6450&\"'!\"&H6450),\"0\"),Notes!$B$5:$C$100,2,FALSE),\"\"))","v":""},"2a","$G$126","$H$126"]
[25662,{"$f":"Menu!$F$29","v":"X"},{"$f":"Menu!$J$29","v":2020},{"$f":"IF(ISBLANK(INDIRECT(\"'\"&F6451&\"'!\"&G6451)),\"\",INDIRECT(\"'\"&F6451&\"'!\"&G6451))","v":""},{"$f":"IF(ISBLANK(INDIRECT(\"'\"&F6451&\"'!\"&H6451)),\"\",IFERROR(VLOOKUP(TEXT(INDIRECT(\"'\"&F6451&\"'!\"&H6451),\"0\"),Notes!$B$5:$C$100,2,FALSE),\"\"))","v":""},"2b","$W$126","$X$126"]
[25663,{"$f":"Menu!$F$29","v":"X"},{"$f":"Menu!$J$29","v":2020},{"$f":"IF(ISBLANK(INDIRECT(\"'\"&F6452&\"'!\"&G6452)),\"\",INDIRECT(\"'\"&F6452&\"'!\"&G6452))","v":""},{"$f":"IF(ISBLANK(INDIRECT(\"'\"&F6452&\"'!\"&H6452)),\"\",IFERROR(VLOOKUP(TEXT(INDIRECT(\"'\"&F6452&\"'!\"&H6452),\"0\"),Notes!$B$5:$C$100,2,FALSE),\"\"))","v":""},"2b","$AA$126","$AB$126"]
[25664,{"$f":"Menu!$F$29","v":"X"},{"$f":"Menu!$J$29","v":2020},{"$f":"IF(ISBLANK(INDIRECT(\"'\"&F6453&\"'!\"&G6453)),\"\",INDIRECT(\"'\"&F6453&\"'!\"&G6453))","v":""},{"$f":"IF(ISBLANK(INDIRECT(\"'\"&F6453&\"'!\"&H6453)),\"\",IFERROR(VLOOKUP(TEXT(INDIRECT(\"'\"&F6453&\"'!\"&H6453),\"0\"),Notes!$B$5:$C$100,2,FALSE),\"\"))","v":""},"2b","$Y$126","$Z$126"]
[25665,{"$f":"Menu!$F$29","v":"X"},{"$f":"Menu!$J$29","v":2020},{"$f":"IF(ISBLANK(INDIRECT(\"'\"&F6454&\"'!\"&G6454)),\"\",INDIRECT(\"'\"&F6454&\"'!\"&G6454))","v":""},{"$f":"IF(ISBLANK(INDIRECT(\"'\"&F6454&\"'!\"&H6454)),\"\",IFERROR(VLOOKUP(TEXT(INDIRECT(\"'\"&F6454&\"'!\"&H6454),\"0\"),Notes!$B$5:$C$100,2,FALSE),\"\"))","v":""},"2d","$AC$126","$AD$126"]
[25666,{"$f":"Menu!$F$29","v":"X"},{"$f":"Menu!$J$29","v":2020},{"$f":"IF(ISBLANK(INDIRECT(\"'\"&F6455&\"'!\"&G6455)),\"\",INDIRECT(\"'\"&F6455&\"'!\"&G6455))","v":""},{"$f":"IF(ISBLANK(INDIRECT(\"'\"&F6455&\"'!\"&H6455)),\"\",IFERROR(VLOOKUP(TEXT(INDIRECT(\"'\"&F6455&\"'!\"&H6455),\"0\"),Notes!$B$5:$C$100,2,FALSE),\"\"))","v":""},"2d","$AG$126","$AH$126"]
[25667,{"$f":"Menu!$F$29","v":"X"},{"$f":"Menu!$J$29","v":2020},{"$f":"IF(ISBLANK(INDIRECT(\"'\"&F6456&\"'!\"&G6456)),\"\",INDIRECT(\"'\"&F6456&\"'!\"&G6456))","v":""},{"$f":"IF(ISBLANK(INDIRECT(\"'\"&F6456&\"'!\"&H6456)),\"\",IFERROR(VLOOKUP(TEXT(INDIRECT(\"'\"&F6456&\"'!\"&H6456),\"0\"),Notes!$B$5:$C$100,2,FALSE),\"\"))","v":""},"2d","$AE$126","$AF$126"]
[25668,{"$f":"Menu!$F$29","v":"X"},{"$f":"Menu!$J$29","v":2020},{"$f":"IF(ISBLANK(INDIRECT(\"'\"&F6457&\"'!\"&G6457)),\"\",INDIRECT(\"'\"&F6457&\"'!\"&G6457))","v":""},{"$f":"IF(ISBLANK(INDIRECT(\"'\"&F6457&\"'!\"&H6457)),\"\",IFERROR(VLOOKUP(TEXT(INDIRECT(\"'\"&F6457&\"'!\"&H6457),\"0\"),Notes!$B$5:$C$100,2,FALSE),\"\"))","v":""},"2d","$W$126","$X$126"]
[25669,{"$f":"Menu!$F$29","v":"X"},{"$f":"Menu!$J$29","v":2020},{"$f":"IF(ISBLANK(INDIRECT(\"'\"&F6458&\"'!\"&G6458)),\"\",INDIRECT(\"'\"&F6458&\"'!\"&G6458))","v":""},{"$f":"IF(ISBLANK(INDIRECT(\"'\"&F6458&\"'!\"&H6458)),\"\",IFERROR(VLOOKUP(TEXT(INDIRECT(\"'\"&F6458&\"'!\"&H6458),\"0\"),Notes!$B$5:$C$100,2,FALSE),\"\"))","v":""},"2d","$AA$126","$AB$126"]
[25670,{"$f":"Menu!$F$29","v":"X"},{"$f":"Menu!$J$29","v":2020},{"$f":"IF(ISBLANK(INDIRECT(\"'\"&F6459&\"'!\"&G6459)),\"\",INDIRECT(\"'\"&F6459&\"'!\"&G6459))","v":""},{"$f":"IF(ISBLANK(INDIRECT(\"'\"&F6459&\"'!\"&H6459)),\"\",IFERROR(VLOOKUP(TEXT(INDIRECT(\"'\"&F6459&\"'!\"&H6459),\"0\"),Notes!$B$5:$C$100,2,FALSE),\"\"))","v":""},"2d","$Y$126","$Z$126"]
[25671,{"$f":"Menu!$F$29","v":"X"},{"$f":"Menu!$J$29","v":2020},{"$f":"IF(ISBLANK(INDIRECT(\"'\"&F6460&\"'!\"&G6460)),\"\",INDIRECT(\"'\"&F6460&\"'!\"&G6460))","v":""},{"$f":"IF(ISBLANK(INDIRECT(\"'\"&F6460&\"'!\"&H6460)),\"\",IFERROR(VLOOKUP(TEXT(INDIRECT(\"'\"&F6460&\"'!\"&H6460),\"0\"),Notes!$B$5:$C$100,2,FALSE),\"\"))","v":""},"2d","$E$126","$F$126"]
[25672,{"$f":"Menu!$F$29","v":"X"},{"$f":"Menu!$J$29","v":2020},{"$f":"IF(ISBLANK(INDIRECT(\"'\"&F6461&\"'!\"&G6461)),\"\",INDIRECT(\"'\"&F6461&\"'!\"&G6461))","v":""},{"$f":"IF(ISBLANK(INDIRECT(\"'\"&F6461&\"'!\"&H6461)),\"\",IFERROR(VLOOKUP(TEXT(INDIRECT(\"'\"&F6461&\"'!\"&H6461),\"0\"),Notes!$B$5:$C$100,2,FALSE),\"\"))","v":""},"2d","$I$126","$J$126"]
[25673,{"$f":"Menu!$F$29","v":"X"},{"$f":"Menu!$J$29","v":2020},{"$f":"IF(ISBLANK(INDIRECT(\"'\"&F6462&\"'!\"&G6462)),\"\",INDIRECT(\"'\"&F6462&\"'!\"&G6462))","v":""},{"$f":"IF(ISBLANK(INDIRECT(\"'\"&F6462&\"'!\"&H6462)),\"\",IFERROR(VLOOKUP(TEXT(INDIRECT(\"'\"&F6462&\"'!\"&H6462),\"0\"),Notes!$B$5:$C$100,2,FALSE),\"\"))","v":""},"2d","$G$126","$H$126"]
[25674,{"$f":"Menu!$F$29","v":"X"},{"$f":"Menu!$J$29","v":2020},{"$f":"IF(ISBLANK(INDIRECT(\"'\"&F6463&\"'!\"&G6463)),\"\",INDIRECT(\"'\"&F6463&\"'!\"&G6463))","v":""},{"$f":"IF(ISBLANK(INDIRECT(\"'\"&F6463&\"'!\"&H6463)),\"\",IFERROR(VLOOKUP(TEXT(INDIRECT(\"'\"&F6463&\"'!\"&H6463),\"0\"),Notes!$B$5:$C$100,2,FALSE),\"\"))","v":""},"2a","$Q$126","$R$126"]
[25675,{"$f":"Menu!$F$29","v":"X"},{"$f":"Menu!$J$29","v":2020},{"$f":"IF(ISBLANK(INDIRECT(\"'\"&F6464&\"'!\"&G6464)),\"\",INDIRECT(\"'\"&F6464&\"'!\"&G6464))","v":""},{"$f":"IF(ISBLANK(INDIRECT(\"'\"&F6464&\"'!\"&H6464)),\"\",IFERROR(VLOOKUP(TEXT(INDIRECT(\"'\"&F6464&\"'!\"&H6464),\"0\"),Notes!$B$5:$C$100,2,FALSE),\"\"))","v":""},"2a","$U$126","$V$126"]
[25676,{"$f":"Menu!$F$29","v":"X"},{"$f":"Menu!$J$29","v":2020},{"$f":"IF(ISBLANK(INDIRECT(\"'\"&F6465&\"'!\"&G6465)),\"\",INDIRECT(\"'\"&F6465&\"'!\"&G6465))","v":""},{"$f":"IF(ISBLANK(INDIRECT(\"'\"&F6465&\"'!\"&H6465)),\"\",IFERROR(VLOOKUP(TEXT(INDIRECT(\"'\"&F6465&\"'!\"&H6465),\"0\"),Notes!$B$5:$C$100,2,FALSE),\"\"))","v":""},"2a","$S$126","$T$126"]
[25677,{"$f":"Menu!$F$29","v":"X"},{"$f":"Menu!$J$29","v":2020},{"$f":"IF(ISBLANK(INDIRECT(\"'\"&F6466&\"'!\"&G6466)),\"\",INDIRECT(\"'\"&F6466&\"'!\"&G6466))","v":""},{"$f":"IF(ISBLANK(INDIRECT(\"'\"&F6466&\"'!\"&H6466)),\"\",IFERROR(VLOOKUP(TEXT(INDIRECT(\"'\"&F6466&\"'!\"&H6466),\"0\"),Notes!$B$5:$C$100,2,FALSE),\"\"))","v":""},"2d","$K$126",{"$f":"IF(LEN(TRIM(MID(G6466,4,10)))-LEN(SUBSTITUTE(TRIM(MID(G6466,4,10)),\"$\",\"\"))=0,\"$\"&CHAR(CODE(MID(G6466,2,1))+1)&\"$\"&TRIM(MID(G6466,4,10)),\"$\"&MID(G6466,2,1)&CHAR(CODE(MID(G6466,3,1))+1)&\"$\"&TRIM(MID(G6466,5,11)))","v":"$L$126"}]
[25678,{"$f":"Menu!$F$29","v":"X"},{"$f":"Menu!$J$29","v":2020},{"$f":"IF(ISBLANK(INDIRECT(\"'\"&F6467&\"'!\"&G6467)),\"\",INDIRECT(\"'\"&F6467&\"'!\"&G6467))","v":""},{"$f":"IF(ISBLANK(INDIRECT(\"'\"&F6467&\"'!\"&H6467)),\"\",IFERROR(VLOOKUP(TEXT(INDIRECT(\"'\"&F6467&\"'!\"&H6467),\"0\"),Notes!$B$5:$C$100,2,FALSE),\"\"))","v":""},"2d","$O$126","$P$126"]
[25679,{"$f":"Menu!$F$29","v":"X"},{"$f":"Menu!$J$29","v":2020},{"$f":"IF(ISBLANK(INDIRECT(\"'\"&F6468&\"'!\"&G6468)),\"\",INDIRECT(\"'\"&F6468&\"'!\"&G6468))","v":""},{"$f":"IF(ISBLANK(INDIRECT(\"'\"&F6468&\"'!\"&H6468)),\"\",IFERROR(VLOOKUP(TEXT(INDIRECT(\"'\"&F6468&\"'!\"&H6468),\"0\"),Notes!$B$5:$C$100,2,FALSE),\"\"))","v":""},"2d","$M$126","$N$126"]
[25680,{"$f":"Menu!$F$29","v":"X"},{"$f":"Menu!$J$29","v":2020},{"$f":"IF(ISBLANK(INDIRECT(\"'\"&F6469&\"'!\"&G6469)),\"\",INDIRECT(\"'\"&F6469&\"'!\"&G6469))","v":""},{"$f":"IF(ISBLANK(INDIRECT(\"'\"&F6469&\"'!\"&H6469)),\"\",IFERROR(VLOOKUP(TEXT(INDIRECT(\"'\"&F6469&\"'!\"&H6469),\"0\"),Notes!$B$5:$C$100,2,FALSE),\"\"))","v":""},"2d","$Q$126","$R$126"]
[25681,{"$f":"Menu!$F$29","v":"X"},{"$f":"Menu!$J$29","v":2020},{"$f":"IF(ISBLANK(INDIRECT(\"'\"&F6470&\"'!\"&G6470)),\"\",INDIRECT(\"'\"&F6470&\"'!\"&G6470))","v":""},{"$f":"IF(ISBLANK(INDIRECT(\"'\"&F6470&\"'!\"&H6470)),\"\",IFERROR(VLOOKUP(TEXT(INDIRECT(\"'\"&F6470&\"'!\"&H6470),\"0\"),Notes!$B$5:$C$100,2,FALSE),\"\"))","v":""},"2d","$U$126","$V$126"]
[25682,{"$f":"Menu!$F$29","v":"X"},{"$f":"Menu!$J$29","v":2020},{"$f":"IF(ISBLANK(INDIRECT(\"'\"&F6471&\"'!\"&G6471)),\"\",INDIRECT(\"'\"&F6471&\"'!\"&G6471))","v":""},{"$f":"IF(ISBLANK(INDIRECT(\"'\"&F6471&\"'!\"&H6471)),\"\",IFERROR(VLOOKUP(TEXT(INDIRECT(\"'\"&F6471&\"'!\"&H6471),\"0\"),Notes!$B$5:$C$100,2,FALSE),\"\"))","v":""},"2d","$S$126","$T$126"]
[25683,{"$f":"Menu!$F$29","v":"X"},{"$f":"Menu!$J$29","v":2020},{"$f":"IF(ISBLANK(INDIRECT(\"'\"&F6472&\"'!\"&G6472)),\"\",INDIRECT(\"'\"&F6472&\"'!\"&G6472))","v":""},{"$f":"IF(ISBLANK(INDIRECT(\"'\"&F6472&\"'!\"&H6472)),\"\",IFERROR(VLOOKUP(TEXT(INDIRECT(\"'\"&F6472&\"'!\"&H6472),\"0\"),Notes!$B$5:$C$100,2,FALSE),\"\"))","v":""},"2a","$K$126","$L$126"]
[25684,{"$f":"Menu!$F$29","v":"X"},{"$f":"Menu!$J$29","v":2020},{"$f":"IF(ISBLANK(INDIRECT(\"'\"&F6473&\"'!\"&G6473)),\"\",INDIRECT(\"'\"&F6473&\"'!\"&G6473))","v":""},{"$f":"IF(ISBLANK(INDIRECT(\"'\"&F6473&\"'!\"&H6473)),\"\",IFERROR(VLOOKUP(TEXT(INDIRECT(\"'\"&F6473&\"'!\"&H6473),\"0\"),Notes!$B$5:$C$100,2,FALSE),\"\"))","v":""},"2a","$O$126","$P$126"]
[25685,{"$f":"Menu!$F$29","v":"X"},{"$f":"Menu!$J$29","v":2020},{"$f":"IF(ISBLANK(INDIRECT(\"'\"&F6474&\"'!\"&G6474)),\"\",INDIRECT(\"'\"&F6474&\"'!\"&G6474))","v":""},{"$f":"IF(ISBLANK(INDIRECT(\"'\"&F6474&\"'!\"&H6474)),\"\",IFERROR(VLOOKUP(TEXT(INDIRECT(\"'\"&F6474&\"'!\"&H6474),\"0\"),Notes!$B$5:$C$100,2,FALSE),\"\"))","v":""},"2a","$M$126","$N$126"]
[25686,{"$f":"Menu!$F$29","v":"X"},{"$f":"Menu!$J$29","v":2020},{"$f":"IF(ISBLANK(INDIRECT(\"'\"&F6475&\"'!\"&G6475)),\"\",INDIRECT(\"'\"&F6475&\"'!\"&G6475))","v":""},{"$f":"IF(ISBLANK(INDIRECT(\"'\"&F6475&\"'!\"&H6475)),\"\",IFERROR(VLOOKUP(TEXT(INDIRECT(\"'\"&F6475&\"'!\"&H6475),\"0\"),Notes!$B$5:$C$100,2,FALSE),\"\"))","v":""},"2a","$E$126","$F$126"]
[25687,{"$f":"Menu!$F$29","v":"X"},{"$f":"Menu!$J$29","v":2020},{"$f":"IF(ISBLANK(INDIRECT(\"'\"&F6476&\"'!\"&G6476)),\"\",INDIRECT(\"'\"&F6476&\"'!\"&G6476))","v":""},{"$f":"IF(ISBLANK(INDIRECT(\"'\"&F6476&\"'!\"&H6476)),\"\",IFERROR(VLOOKUP(TEXT(INDIRECT(\"'\"&F6476&\"'!\"&H6476),\"0\"),Notes!$B$5:$C$100,2,FALSE),\"\"))","v":""},"2b","$K$127","$L$127"]
[25688,{"$f":"Menu!$F$29","v":"X"},{"$f":"Menu!$J$29","v":2020},{"$f":"IF(ISBLANK(INDIRECT(\"'\"&F6477&\"'!\"&G6477)),\"\",INDIRECT(\"'\"&F6477&\"'!\"&G6477))","v":""},{"$f":"IF(ISBLANK(INDIRECT(\"'\"&F6477&\"'!\"&H6477)),\"\",IFERROR(VLOOKUP(TEXT(INDIRECT(\"'\"&F6477&\"'!\"&H6477),\"0\"),Notes!$B$5:$C$100,2,FALSE),\"\"))","v":""},"2b","$O$127","$P$127"]
[25689,{"$f":"Menu!$F$29","v":"X"},{"$f":"Menu!$J$29","v":2020},{"$f":"IF(ISBLANK(INDIRECT(\"'\"&F6478&\"'!\"&G6478)),\"\",INDIRECT(\"'\"&F6478&\"'!\"&G6478))","v":""},{"$f":"IF(ISBLANK(INDIRECT(\"'\"&F6478&\"'!\"&H6478)),\"\",IFERROR(VLOOKUP(TEXT(INDIRECT(\"'\"&F6478&\"'!\"&H6478),\"0\"),Notes!$B$5:$C$100,2,FALSE),\"\"))","v":""},"2b","$M$127","$N$127"]
[25690,{"$f":"Menu!$F$29","v":"X"},{"$f":"Menu!$J$29","v":2020},{"$f":"IF(ISBLANK(INDIRECT(\"'\"&F6479&\"'!\"&G6479)),\"\",INDIRECT(\"'\"&F6479&\"'!\"&G6479))","v":""},{"$f":"IF(ISBLANK(INDIRECT(\"'\"&F6479&\"'!\"&H6479)),\"\",IFERROR(VLOOKUP(TEXT(INDIRECT(\"'\"&F6479&\"'!\"&H6479),\"0\"),Notes!$B$5:$C$100,2,FALSE),\"\"))","v":""},"2b","$Q$127","$R$127"]
[25691,{"$f":"Menu!$F$29","v":"X"},{"$f":"Menu!$J$29","v":2020},{"$f":"IF(ISBLANK(INDIRECT(\"'\"&F6480&\"'!\"&G6480)),\"\",INDIRECT(\"'\"&F6480&\"'!\"&G6480))","v":""},{"$f":"IF(ISBLANK(INDIRECT(\"'\"&F6480&\"'!\"&H6480)),\"\",IFERROR(VLOOKUP(TEXT(INDIRECT(\"'\"&F6480&\"'!\"&H6480),\"0\"),Notes!$B$5:$C$100,2,FALSE),\"\"))","v":""},"2b","$U$127","$V$127"]
[25692,{"$f":"Menu!$F$29","v":"X"},{"$f":"Menu!$J$29","v":2020},{"$f":"IF(ISBLANK(INDIRECT(\"'\"&F6481&\"'!\"&G6481)),\"\",INDIRECT(\"'\"&F6481&\"'!\"&G6481))","v":""},{"$f":"IF(ISBLANK(INDIRECT(\"'\"&F6481&\"'!\"&H6481)),\"\",IFERROR(VLOOKUP(TEXT(INDIRECT(\"'\"&F6481&\"'!\"&H6481),\"0\"),Notes!$B$5:$C$100,2,FALSE),\"\"))","v":""},"2b","$S$127","$T$127"]
[25696,{"$f":"Menu!$F$29","v":"X"},{"$f":"Menu!$J$29","v":2020},{"$f":"IF(ISBLANK(INDIRECT(\"'\"&F6482&\"'!\"&G6482)),\"\",INDIRECT(\"'\"&F6482&\"'!\"&G6482))","v":""},{"$f":"IF(ISBLANK(INDIRECT(\"'\"&F6482&\"'!\"&H6482)),\"\",IFERROR(VLOOKUP(TEXT(INDIRECT(\"'\"&F6482&\"'!\"&H6482),\"0\"),Notes!$B$5:$C$100,2,FALSE),\"\"))","v":""},"2a","$I$127","$J$127"]
[25697,{"$f":"Menu!$F$29","v":"X"},{"$f":"Menu!$J$29","v":2020},{"$f":"IF(ISBLANK(INDIRECT(\"'\"&F6483&\"'!\"&G6483)),\"\",INDIRECT(\"'\"&F6483&\"'!\"&G6483))","v":""},{"$f":"IF(ISBLANK(INDIRECT(\"'\"&F6483&\"'!\"&H6483)),\"\",IFERROR(VLOOKUP(TEXT(INDIRECT(\"'\"&F6483&\"'!\"&H6483),\"0\"),Notes!$B$5:$C$100,2,FALSE),\"\"))","v":""},"2c","$E$127","$F$127"]
[25698,{"$f":"Menu!$F$29","v":"X"},{"$f":"Menu!$J$29","v":2020},{"$f":"IF(ISBLANK(INDIRECT(\"'\"&F6484&\"'!\"&G6484)),\"\",INDIRECT(\"'\"&F6484&\"'!\"&G6484))","v":""},{"$f":"IF(ISBLANK(INDIRECT(\"'\"&F6484&\"'!\"&H6484)),\"\",IFERROR(VLOOKUP(TEXT(INDIRECT(\"'\"&F6484&\"'!\"&H6484),\"0\"),Notes!$B$5:$C$100,2,FALSE),\"\"))","v":""},"2c","$I$127","$J$127"]
[25699,{"$f":"Menu!$F$29","v":"X"},{"$f":"Menu!$J$29","v":2020},{"$f":"IF(ISBLANK(INDIRECT(\"'\"&F6485&\"'!\"&G6485)),\"\",INDIRECT(\"'\"&F6485&\"'!\"&G6485))","v":""},{"$f":"IF(ISBLANK(INDIRECT(\"'\"&F6485&\"'!\"&H6485)),\"\",IFERROR(VLOOKUP(TEXT(INDIRECT(\"'\"&F6485&\"'!\"&H6485),\"0\"),Notes!$B$5:$C$100,2,FALSE),\"\"))","v":""},"2c","$G$127","$H$127"]
[25703,{"$f":"Menu!$F$29","v":"X"},{"$f":"Menu!$J$29","v":2020},{"$f":"IF(ISBLANK(INDIRECT(\"'\"&F6486&\"'!\"&G6486)),\"\",INDIRECT(\"'\"&F6486&\"'!\"&G6486))","v":""},{"$f":"IF(ISBLANK(INDIRECT(\"'\"&F6486&\"'!\"&H6486)),\"\",IFERROR(VLOOKUP(TEXT(INDIRECT(\"'\"&F6486&\"'!\"&H6486),\"0\"),Notes!$B$5:$C$100,2,FALSE),\"\"))","v":""},"2c","$K$127","$L$127"]
[25704,{"$f":"Menu!$F$29","v":"X"},{"$f":"Menu!$J$29","v":2020},{"$f":"IF(ISBLANK(INDIRECT(\"'\"&F6487&\"'!\"&G6487)),\"\",INDIRECT(\"'\"&F6487&\"'!\"&G6487))","v":""},{"$f":"IF(ISBLANK(INDIRECT(\"'\"&F6487&\"'!\"&H6487)),\"\",IFERROR(VLOOKUP(TEXT(INDIRECT(\"'\"&F6487&\"'!\"&H6487),\"0\"),Notes!$B$5:$C$100,2,FALSE),\"\"))","v":""},"2c","$O$127","$P$127"]
[25705,{"$f":"Menu!$F$29","v":"X"},{"$f":"Menu!$J$29","v":2020},{"$f":"IF(ISBLANK(INDIRECT(\"'\"&F6488&\"'!\"&G6488)),\"\",INDIRECT(\"'\"&F6488&\"'!\"&G6488))","v":""},{"$f":"IF(ISBLANK(INDIRECT(\"'\"&F6488&\"'!\"&H6488)),\"\",IFERROR(VLOOKUP(TEXT(INDIRECT(\"'\"&F6488&\"'!\"&H6488),\"0\"),Notes!$B$5:$C$100,2,FALSE),\"\"))","v":""},"2c","$M$127","$N$127"]
[25706,{"$f":"Menu!$F$29","v":"X"},{"$f":"Menu!$J$29","v":2020},{"$f":"IF(ISBLANK(INDIRECT(\"'\"&F6489&\"'!\"&G6489)),\"\",INDIRECT(\"'\"&F6489&\"'!\"&G6489))","v":""},{"$f":"IF(ISBLANK(INDIRECT(\"'\"&F6489&\"'!\"&H6489)),\"\",IFERROR(VLOOKUP(TEXT(INDIRECT(\"'\"&F6489&\"'!\"&H6489),\"0\"),Notes!$B$5:$C$100,2,FALSE),\"\"))","v":""},"2c","$Q$127","$R$127"]
[25707,{"$f":"Menu!$F$29","v":"X"},{"$f":"Menu!$J$29","v":2020},{"$f":"IF(ISBLANK(INDIRECT(\"'\"&F6490&\"'!\"&G6490)),\"\",INDIRECT(\"'\"&F6490&\"'!\"&G6490))","v":""},{"$f":"IF(ISBLANK(INDIRECT(\"'\"&F6490&\"'!\"&H6490)),\"\",IFERROR(VLOOKUP(TEXT(INDIRECT(\"'\"&F6490&\"'!\"&H6490),\"0\"),Notes!$B$5:$C$100,2,FALSE),\"\"))","v":""},"2c","$U$127","$V$127"]
[25708,{"$f":"Menu!$F$29","v":"X"},{"$f":"Menu!$J$29","v":2020},{"$f":"IF(ISBLANK(INDIRECT(\"'\"&F6491&\"'!\"&G6491)),\"\",INDIRECT(\"'\"&F6491&\"'!\"&G6491))","v":""},{"$f":"IF(ISBLANK(INDIRECT(\"'\"&F6491&\"'!\"&H6491)),\"\",IFERROR(VLOOKUP(TEXT(INDIRECT(\"'\"&F6491&\"'!\"&H6491),\"0\"),Notes!$B$5:$C$100,2,FALSE),\"\"))","v":""},"2c","$S$127","$T$127"]
[25709,{"$f":"Menu!$F$29","v":"X"},{"$f":"Menu!$J$29","v":2020},{"$f":"IF(ISBLANK(INDIRECT(\"'\"&F6492&\"'!\"&G6492)),\"\",INDIRECT(\"'\"&F6492&\"'!\"&G6492))","v":""},{"$f":"IF(ISBLANK(INDIRECT(\"'\"&F6492&\"'!\"&H6492)),\"\",IFERROR(VLOOKUP(TEXT(INDIRECT(\"'\"&F6492&\"'!\"&H6492),\"0\"),Notes!$B$5:$C$100,2,FALSE),\"\"))","v":""},"2c","$W$127","$X$127"]
[25710,{"$f":"Menu!$F$29","v":"X"},{"$f":"Menu!$J$29","v":2020},{"$f":"IF(ISBLANK(INDIRECT(\"'\"&F6493&\"'!\"&G6493)),\"\",INDIRECT(\"'\"&F6493&\"'!\"&G6493))","v":""},{"$f":"IF(ISBLANK(INDIRECT(\"'\"&F6493&\"'!\"&H6493)),\"\",IFERROR(VLOOKUP(TEXT(INDIRECT(\"'\"&F6493&\"'!\"&H6493),\"0\"),Notes!$B$5:$C$100,2,FALSE),\"\"))","v":""},"2c","$AA$127","$AB$127"]
[25711,{"$f":"Menu!$F$29","v":"X"},{"$f":"Menu!$J$29","v":2020},{"$f":"IF(ISBLANK(INDIRECT(\"'\"&F6494&\"'!\"&G6494)),\"\",INDIRECT(\"'\"&F6494&\"'!\"&G6494))","v":""},{"$f":"IF(ISBLANK(INDIRECT(\"'\"&F6494&\"'!\"&H6494)),\"\",IFERROR(VLOOKUP(TEXT(INDIRECT(\"'\"&F6494&\"'!\"&H6494),\"0\"),Notes!$B$5:$C$100,2,FALSE),\"\"))","v":""},"2c","$Y$127","$Z$127"]
[25718,{"$f":"Menu!$F$29","v":"X"},{"$f":"Menu!$J$29","v":2020},{"$f":"IF(ISBLANK(INDIRECT(\"'\"&F6495&\"'!\"&G6495)),\"\",INDIRECT(\"'\"&F6495&\"'!\"&G6495))","v":""},{"$f":"IF(ISBLANK(INDIRECT(\"'\"&F6495&\"'!\"&H6495)),\"\",IFERROR(VLOOKUP(TEXT(INDIRECT(\"'\"&F6495&\"'!\"&H6495),\"0\"),Notes!$B$5:$C$100,2,FALSE),\"\"))","v":""},"2e","$BG$128","$BH$128"]
[25719,{"$f":"Menu!$F$29","v":"X"},{"$f":"Menu!$J$29","v":2020},{"$f":"IF(ISBLANK(INDIRECT(\"'\"&F6496&\"'!\"&G6496)),\"\",INDIRECT(\"'\"&F6496&\"'!\"&G6496))","v":""},{"$f":"IF(ISBLANK(INDIRECT(\"'\"&F6496&\"'!\"&H6496)),\"\",IFERROR(VLOOKUP(TEXT(INDIRECT(\"'\"&F6496&\"'!\"&H6496),\"0\"),Notes!$B$5:$C$100,2,FALSE),\"\"))","v":""},"2e","$BK$128","$BL$128"]
[25720,{"$f":"Menu!$F$29","v":"X"},{"$f":"Menu!$J$29","v":2020},{"$f":"IF(ISBLANK(INDIRECT(\"'\"&F6497&\"'!\"&G6497)),\"\",INDIRECT(\"'\"&F6497&\"'!\"&G6497))","v":""},{"$f":"IF(ISBLANK(INDIRECT(\"'\"&F6497&\"'!\"&H6497)),\"\",IFERROR(VLOOKUP(TEXT(INDIRECT(\"'\"&F6497&\"'!\"&H6497),\"0\"),Notes!$B$5:$C$100,2,FALSE),\"\"))","v":""},"2e","$BI$128","$BJ$128"]
[25721,{"$f":"Menu!$F$29","v":"X"},{"$f":"Menu!$J$29","v":2020},{"$f":"IF(ISBLANK(INDIRECT(\"'\"&F6498&\"'!\"&G6498)),\"\",INDIRECT(\"'\"&F6498&\"'!\"&G6498))","v":""},{"$f":"IF(ISBLANK(INDIRECT(\"'\"&F6498&\"'!\"&H6498)),\"\",IFERROR(VLOOKUP(TEXT(INDIRECT(\"'\"&F6498&\"'!\"&H6498),\"0\"),Notes!$B$5:$C$100,2,FALSE),\"\"))","v":""},"2e","$E$128","$F$128"]
[25722,{"$f":"Menu!$F$29","v":"X"},{"$f":"Menu!$J$29","v":2020},{"$f":"IF(ISBLANK(INDIRECT(\"'\"&F6499&\"'!\"&G6499)),\"\",INDIRECT(\"'\"&F6499&\"'!\"&G6499))","v":""},{"$f":"IF(ISBLANK(INDIRECT(\"'\"&F6499&\"'!\"&H6499)),\"\",IFERROR(VLOOKUP(TEXT(INDIRECT(\"'\"&F6499&\"'!\"&H6499),\"0\"),Notes!$B$5:$C$100,2,FALSE),\"\"))","v":""},"2e","$I$128","$J$128"]
[25723,{"$f":"Menu!$F$29","v":"X"},{"$f":"Menu!$J$29","v":2020},{"$f":"IF(ISBLANK(INDIRECT(\"'\"&F6500&\"'!\"&G6500)),\"\",INDIRECT(\"'\"&F6500&\"'!\"&G6500))","v":""},{"$f":"IF(ISBLANK(INDIRECT(\"'\"&F6500&\"'!\"&H6500)),\"\",IFERROR(VLOOKUP(TEXT(INDIRECT(\"'\"&F6500&\"'!\"&H6500),\"0\"),Notes!$B$5:$C$100,2,FALSE),\"\"))","v":""},"2e","$G$128","$H$128"]
[25724,{"$f":"Menu!$F$29","v":"X"},{"$f":"Menu!$J$29","v":2020},{"$f":"IF(ISBLANK(INDIRECT(\"'\"&F6501&\"'!\"&G6501)),\"\",INDIRECT(\"'\"&F6501&\"'!\"&G6501))","v":""},{"$f":"IF(ISBLANK(INDIRECT(\"'\"&F6501&\"'!\"&H6501)),\"\",IFERROR(VLOOKUP(TEXT(INDIRECT(\"'\"&F6501&\"'!\"&H6501),\"0\"),Notes!$B$5:$C$100,2,FALSE),\"\"))","v":""},"2e","$K$128","$L$128"]
[25725,{"$f":"Menu!$F$29","v":"X"},{"$f":"Menu!$J$29","v":2020},{"$f":"IF(ISBLANK(INDIRECT(\"'\"&F6502&\"'!\"&G6502)),\"\",INDIRECT(\"'\"&F6502&\"'!\"&G6502))","v":""},{"$f":"IF(ISBLANK(INDIRECT(\"'\"&F6502&\"'!\"&H6502)),\"\",IFERROR(VLOOKUP(TEXT(INDIRECT(\"'\"&F6502&\"'!\"&H6502),\"0\"),Notes!$B$5:$C$100,2,FALSE),\"\"))","v":""},"2e","$O$128","$P$128"]
[25726,{"$f":"Menu!$F$29","v":"X"},{"$f":"Menu!$J$29","v":2020},{"$f":"IF(ISBLANK(INDIRECT(\"'\"&F6503&\"'!\"&G6503)),\"\",INDIRECT(\"'\"&F6503&\"'!\"&G6503))","v":""},{"$f":"IF(ISBLANK(INDIRECT(\"'\"&F6503&\"'!\"&H6503)),\"\",IFERROR(VLOOKUP(TEXT(INDIRECT(\"'\"&F6503&\"'!\"&H6503),\"0\"),Notes!$B$5:$C$100,2,FALSE),\"\"))","v":""},"2e","$M$128","$N$128"]
[25727,{"$f":"Menu!$F$29","v":"X"},{"$f":"Menu!$J$29","v":2020},{"$f":"IF(ISBLANK(INDIRECT(\"'\"&F6504&\"'!\"&G6504)),\"\",INDIRECT(\"'\"&F6504&\"'!\"&G6504))","v":""},{"$f":"IF(ISBLANK(INDIRECT(\"'\"&F6504&\"'!\"&H6504)),\"\",IFERROR(VLOOKUP(TEXT(INDIRECT(\"'\"&F6504&\"'!\"&H6504),\"0\"),Notes!$B$5:$C$100,2,FALSE),\"\"))","v":""},"2e","$Q$128","$R$128"]
[25728,{"$f":"Menu!$F$29","v":"X"},{"$f":"Menu!$J$29","v":2020},{"$f":"IF(ISBLANK(INDIRECT(\"'\"&F6505&\"'!\"&G6505)),\"\",INDIRECT(\"'\"&F6505&\"'!\"&G6505))","v":""},{"$f":"IF(ISBLANK(INDIRECT(\"'\"&F6505&\"'!\"&H6505)),\"\",IFERROR(VLOOKUP(TEXT(INDIRECT(\"'\"&F6505&\"'!\"&H6505),\"0\"),Notes!$B$5:$C$100,2,FALSE),\"\"))","v":""},"2e","$U$128","$V$128"]
[25729,{"$f":"Menu!$F$29","v":"X"},{"$f":"Menu!$J$29","v":2020},{"$f":"IF(ISBLANK(INDIRECT(\"'\"&F6506&\"'!\"&G6506)),\"\",INDIRECT(\"'\"&F6506&\"'!\"&G6506))","v":""},{"$f":"IF(ISBLANK(INDIRECT(\"'\"&F6506&\"'!\"&H6506)),\"\",IFERROR(VLOOKUP(TEXT(INDIRECT(\"'\"&F6506&\"'!\"&H6506),\"0\"),Notes!$B$5:$C$100,2,FALSE),\"\"))","v":""},"2e","$S$128","$T$128"]
[25730,{"$f":"Menu!$F$29","v":"X"},{"$f":"Menu!$J$29","v":2020},{"$f":"IF(ISBLANK(INDIRECT(\"'\"&F6507&\"'!\"&G6507)),\"\",INDIRECT(\"'\"&F6507&\"'!\"&G6507))","v":""},{"$f":"IF(ISBLANK(INDIRECT(\"'\"&F6507&\"'!\"&H6507)),\"\",IFERROR(VLOOKUP(TEXT(INDIRECT(\"'\"&F6507&\"'!\"&H6507),\"0\"),Notes!$B$5:$C$100,2,FALSE),\"\"))","v":""},"2e","$W$128","$X$128"]
[25731,{"$f":"Menu!$F$29","v":"X"},{"$f":"Menu!$J$29","v":2020},{"$f":"IF(ISBLANK(INDIRECT(\"'\"&F6508&\"'!\"&G6508)),\"\",INDIRECT(\"'\"&F6508&\"'!\"&G6508))","v":""},{"$f":"IF(ISBLANK(INDIRECT(\"'\"&F6508&\"'!\"&H6508)),\"\",IFERROR(VLOOKUP(TEXT(INDIRECT(\"'\"&F6508&\"'!\"&H6508),\"0\"),Notes!$B$5:$C$100,2,FALSE),\"\"))","v":""},"2e","$AA$128","$AB$128"]
[25732,{"$f":"Menu!$F$29","v":"X"},{"$f":"Menu!$J$29","v":2020},{"$f":"IF(ISBLANK(INDIRECT(\"'\"&F6509&\"'!\"&G6509)),\"\",INDIRECT(\"'\"&F6509&\"'!\"&G6509))","v":""},{"$f":"IF(ISBLANK(INDIRECT(\"'\"&F6509&\"'!\"&H6509)),\"\",IFERROR(VLOOKUP(TEXT(INDIRECT(\"'\"&F6509&\"'!\"&H6509),\"0\"),Notes!$B$5:$C$100,2,FALSE),\"\"))","v":""},"2e","$Y$128","$Z$128"]
[25733,{"$f":"Menu!$F$29","v":"X"},{"$f":"Menu!$J$29","v":2020},{"$f":"IF(ISBLANK(INDIRECT(\"'\"&F6510&\"'!\"&G6510)),\"\",INDIRECT(\"'\"&F6510&\"'!\"&G6510))","v":""},{"$f":"IF(ISBLANK(INDIRECT(\"'\"&F6510&\"'!\"&H6510)),\"\",IFERROR(VLOOKUP(TEXT(INDIRECT(\"'\"&F6510&\"'!\"&H6510),\"0\"),Notes!$B$5:$C$100,2,FALSE),\"\"))","v":""},"2e","$AC$128","$AD$128"]
[25734,{"$f":"Menu!$F$29","v":"X"},{"$f":"Menu!$J$29","v":2020},{"$f":"IF(ISBLANK(INDIRECT(\"'\"&F6511&\"'!\"&G6511)),\"\",INDIRECT(\"'\"&F6511&\"'!\"&G6511))","v":""},{"$f":"IF(ISBLANK(INDIRECT(\"'\"&F6511&\"'!\"&H6511)),\"\",IFERROR(VLOOKUP(TEXT(INDIRECT(\"'\"&F6511&\"'!\"&H6511),\"0\"),Notes!$B$5:$C$100,2,FALSE),\"\"))","v":""},"2e","$AG$128","$AH$128"]
[25735,{"$f":"Menu!$F$29","v":"X"},{"$f":"Menu!$J$29","v":2020},{"$f":"IF(ISBLANK(INDIRECT(\"'\"&F6512&\"'!\"&G6512)),\"\",INDIRECT(\"'\"&F6512&\"'!\"&G6512))","v":""},{"$f":"IF(ISBLANK(INDIRECT(\"'\"&F6512&\"'!\"&H6512)),\"\",IFERROR(VLOOKUP(TEXT(INDIRECT(\"'\"&F6512&\"'!\"&H6512),\"0\"),Notes!$B$5:$C$100,2,FALSE),\"\"))","v":""},"2e","$AE$128","$AF$128"]
[25736,{"$f":"Menu!$F$29","v":"X"},{"$f":"Menu!$J$29","v":2020},{"$f":"IF(ISBLANK(INDIRECT(\"'\"&F6513&\"'!\"&G6513)),\"\",INDIRECT(\"'\"&F6513&\"'!\"&G6513))","v":""},{"$f":"IF(ISBLANK(INDIRECT(\"'\"&F6513&\"'!\"&H6513)),\"\",IFERROR(VLOOKUP(TEXT(INDIRECT(\"'\"&F6513&\"'!\"&H6513),\"0\"),Notes!$B$5:$C$100,2,FALSE),\"\"))","v":""},"2e","$AI$128","$AJ$128"]
[25737,{"$f":"Menu!$F$29","v":"X"},{"$f":"Menu!$J$29","v":2020},{"$f":"IF(ISBLANK(INDIRECT(\"'\"&F6514&\"'!\"&G6514)),\"\",INDIRECT(\"'\"&F6514&\"'!\"&G6514))","v":""},{"$f":"IF(ISBLANK(INDIRECT(\"'\"&F6514&\"'!\"&H6514)),\"\",IFERROR(VLOOKUP(TEXT(INDIRECT(\"'\"&F6514&\"'!\"&H6514),\"0\"),Notes!$B$5:$C$100,2,FALSE),\"\"))","v":""},"2e","$AM$128","$AN$128"]
[25738,{"$f":"Menu!$F$29","v":"X"},{"$f":"Menu!$J$29","v":2020},{"$f":"IF(ISBLANK(INDIRECT(\"'\"&F6515&\"'!\"&G6515)),\"\",INDIRECT(\"'\"&F6515&\"'!\"&G6515))","v":""},{"$f":"IF(ISBLANK(INDIRECT(\"'\"&F6515&\"'!\"&H6515)),\"\",IFERROR(VLOOKUP(TEXT(INDIRECT(\"'\"&F6515&\"'!\"&H6515),\"0\"),Notes!$B$5:$C$100,2,FALSE),\"\"))","v":""},"2e","$AK$128","$AL$128"]
[25739,{"$f":"Menu!$F$29","v":"X"},{"$f":"Menu!$J$29","v":2020},{"$f":"IF(ISBLANK(INDIRECT(\"'\"&F6516&\"'!\"&G6516)),\"\",INDIRECT(\"'\"&F6516&\"'!\"&G6516))","v":""},{"$f":"IF(ISBLANK(INDIRECT(\"'\"&F6516&\"'!\"&H6516)),\"\",IFERROR(VLOOKUP(TEXT(INDIRECT(\"'\"&F6516&\"'!\"&H6516),\"0\"),Notes!$B$5:$C$100,2,FALSE),\"\"))","v":""},"2e","$AO$128","$AP$128"]
[25740,{"$f":"Menu!$F$29","v":"X"},{"$f":"Menu!$J$29","v":2020},{"$f":"IF(ISBLANK(INDIRECT(\"'\"&F6517&\"'!\"&G6517)),\"\",INDIRECT(\"'\"&F6517&\"'!\"&G6517))","v":""},{"$f":"IF(ISBLANK(INDIRECT(\"'\"&F6517&\"'!\"&H6517)),\"\",IFERROR(VLOOKUP(TEXT(INDIRECT(\"'\"&F6517&\"'!\"&H6517),\"0\"),Notes!$B$5:$C$100,2,FALSE),\"\"))","v":""},"2e","$AS$128","$AT$128"]
[25741,{"$f":"Menu!$F$29","v":"X"},{"$f":"Menu!$J$29","v":2020},{"$f":"IF(ISBLANK(INDIRECT(\"'\"&F6518&\"'!\"&G6518)),\"\",INDIRECT(\"'\"&F6518&\"'!\"&G6518))","v":""},{"$f":"IF(ISBLANK(INDIRECT(\"'\"&F6518&\"'!\"&H6518)),\"\",IFERROR(VLOOKUP(TEXT(INDIRECT(\"'\"&F6518&\"'!\"&H6518),\"0\"),Notes!$B$5:$C$100,2,FALSE),\"\"))","v":""},"2e","$AQ$128","$AR$128"]
[25742,{"$f":"Menu!$F$29","v":"X"},{"$f":"Menu!$J$29","v":2020},{"$f":"IF(ISBLANK(INDIRECT(\"'\"&F6519&\"'!\"&G6519)),\"\",INDIRECT(\"'\"&F6519&\"'!\"&G6519))","v":""},{"$f":"IF(ISBLANK(INDIRECT(\"'\"&F6519&\"'!\"&H6519)),\"\",IFERROR(VLOOKUP(TEXT(INDIRECT(\"'\"&F6519&\"'!\"&H6519),\"0\"),Notes!$B$5:$C$100,2,FALSE),\"\"))","v":""},"2e","$AU$128","$AV$128"]
[25743,{"$f":"Menu!$F$29","v":"X"},{"$f":"Menu!$J$29","v":2020},{"$f":"IF(ISBLANK(INDIRECT(\"'\"&F6520&\"'!\"&G6520)),\"\",INDIRECT(\"'\"&F6520&\"'!\"&G6520))","v":""},{"$f":"IF(ISBLANK(INDIRECT(\"'\"&F6520&\"'!\"&H6520)),\"\",IFERROR(VLOOKUP(TEXT(INDIRECT(\"'\"&F6520&\"'!\"&H6520),\"0\"),Notes!$B$5:$C$100,2,FALSE),\"\"))","v":""},"2e","$AY$128","$AZ$128"]
[25744,{"$f":"Menu!$F$29","v":"X"},{"$f":"Menu!$J$29","v":2020},{"$f":"IF(ISBLANK(INDIRECT(\"'\"&F6521&\"'!\"&G6521)),\"\",INDIRECT(\"'\"&F6521&\"'!\"&G6521))","v":""},{"$f":"IF(ISBLANK(INDIRECT(\"'\"&F6521&\"'!\"&H6521)),\"\",IFERROR(VLOOKUP(TEXT(INDIRECT(\"'\"&F6521&\"'!\"&H6521),\"0\"),Notes!$B$5:$C$100,2,FALSE),\"\"))","v":""},"2e","$AW$128","$AX$128"]
[25745,{"$f":"Menu!$F$29","v":"X"},{"$f":"Menu!$J$29","v":2020},{"$f":"IF(ISBLANK(INDIRECT(\"'\"&F6522&\"'!\"&G6522)),\"\",INDIRECT(\"'\"&F6522&\"'!\"&G6522))","v":""},{"$f":"IF(ISBLANK(INDIRECT(\"'\"&F6522&\"'!\"&H6522)),\"\",IFERROR(VLOOKUP(TEXT(INDIRECT(\"'\"&F6522&\"'!\"&H6522),\"0\"),Notes!$B$5:$C$100,2,FALSE),\"\"))","v":""},"2e","$BA$128","$BB$128"]
[25746,{"$f":"Menu!$F$29","v":"X"},{"$f":"Menu!$J$29","v":2020},{"$f":"IF(ISBLANK(INDIRECT(\"'\"&F6523&\"'!\"&G6523)),\"\",INDIRECT(\"'\"&F6523&\"'!\"&G6523))","v":""},{"$f":"IF(ISBLANK(INDIRECT(\"'\"&F6523&\"'!\"&H6523)),\"\",IFERROR(VLOOKUP(TEXT(INDIRECT(\"'\"&F6523&\"'!\"&H6523),\"0\"),Notes!$B$5:$C$100,2,FALSE),\"\"))","v":""},"2e","$BE$128","$BF$128"]
[25747,{"$f":"Menu!$F$29","v":"X"},{"$f":"Menu!$J$29","v":2020},{"$f":"IF(ISBLANK(INDIRECT(\"'\"&F6524&\"'!\"&G6524)),\"\",INDIRECT(\"'\"&F6524&\"'!\"&G6524))","v":""},{"$f":"IF(ISBLANK(INDIRECT(\"'\"&F6524&\"'!\"&H6524)),\"\",IFERROR(VLOOKUP(TEXT(INDIRECT(\"'\"&F6524&\"'!\"&H6524),\"0\"),Notes!$B$5:$C$100,2,FALSE),\"\"))","v":""},"2e","$BC$128","$BD$128"]
[25748,{"$f":"Menu!$F$29","v":"X"},{"$f":"Menu!$J$29","v":2020},{"$f":"IF(ISBLANK(INDIRECT(\"'\"&F6525&\"'!\"&G6525)),\"\",INDIRECT(\"'\"&F6525&\"'!\"&G6525))","v":""},{"$f":"IF(ISBLANK(INDIRECT(\"'\"&F6525&\"'!\"&H6525)),\"\",IFERROR(VLOOKUP(TEXT(INDIRECT(\"'\"&F6525&\"'!\"&H6525),\"0\"),Notes!$B$5:$C$100,2,FALSE),\"\"))","v":""},"2b","$E$127","$F$127"]
[25749,{"$f":"Menu!$F$29","v":"X"},{"$f":"Menu!$J$29","v":2020},{"$f":"IF(ISBLANK(INDIRECT(\"'\"&F6526&\"'!\"&G6526)),\"\",INDIRECT(\"'\"&F6526&\"'!\"&G6526))","v":""},{"$f":"IF(ISBLANK(INDIRECT(\"'\"&F6526&\"'!\"&H6526)),\"\",IFERROR(VLOOKUP(TEXT(INDIRECT(\"'\"&F6526&\"'!\"&H6526),\"0\"),Notes!$B$5:$C$100,2,FALSE),\"\"))","v":""},"2b","$I$127","$J$127"]
[25750,{"$f":"Menu!$F$29","v":"X"},{"$f":"Menu!$J$29","v":2020},{"$f":"IF(ISBLANK(INDIRECT(\"'\"&F6527&\"'!\"&G6527)),\"\",INDIRECT(\"'\"&F6527&\"'!\"&G6527))","v":""},{"$f":"IF(ISBLANK(INDIRECT(\"'\"&F6527&\"'!\"&H6527)),\"\",IFERROR(VLOOKUP(TEXT(INDIRECT(\"'\"&F6527&\"'!\"&H6527),\"0\"),Notes!$B$5:$C$100,2,FALSE),\"\"))","v":""},"2b","$G$127","$H$127"]
[25751,{"$f":"Menu!$F$29","v":"X"},{"$f":"Menu!$J$29","v":2020},{"$f":"IF(ISBLANK(INDIRECT(\"'\"&F6528&\"'!\"&G6528)),\"\",INDIRECT(\"'\"&F6528&\"'!\"&G6528))","v":""},{"$f":"IF(ISBLANK(INDIRECT(\"'\"&F6528&\"'!\"&H6528)),\"\",IFERROR(VLOOKUP(TEXT(INDIRECT(\"'\"&F6528&\"'!\"&H6528),\"0\"),Notes!$B$5:$C$100,2,FALSE),\"\"))","v":""},"2a","$G$127","$H$127"]
[25752,{"$f":"Menu!$F$29","v":"X"},{"$f":"Menu!$J$29","v":2020},{"$f":"IF(ISBLANK(INDIRECT(\"'\"&F6529&\"'!\"&G6529)),\"\",INDIRECT(\"'\"&F6529&\"'!\"&G6529))","v":""},{"$f":"IF(ISBLANK(INDIRECT(\"'\"&F6529&\"'!\"&H6529)),\"\",IFERROR(VLOOKUP(TEXT(INDIRECT(\"'\"&F6529&\"'!\"&H6529),\"0\"),Notes!$B$5:$C$100,2,FALSE),\"\"))","v":""},"2b","$W$127","$X$127"]
[25753,{"$f":"Menu!$F$29","v":"X"},{"$f":"Menu!$J$29","v":2020},{"$f":"IF(ISBLANK(INDIRECT(\"'\"&F6530&\"'!\"&G6530)),\"\",INDIRECT(\"'\"&F6530&\"'!\"&G6530))","v":""},{"$f":"IF(ISBLANK(INDIRECT(\"'\"&F6530&\"'!\"&H6530)),\"\",IFERROR(VLOOKUP(TEXT(INDIRECT(\"'\"&F6530&\"'!\"&H6530),\"0\"),Notes!$B$5:$C$100,2,FALSE),\"\"))","v":""},"2b","$AA$127",{"$f":"IF(LEN(TRIM(MID(G6530,4,10)))-LEN(SUBSTITUTE(TRIM(MID(G6530,4,10)),\"$\",\"\"))=0,\"$\"&CHAR(CODE(MID(G6530,2,1))+1)&\"$\"&TRIM(MID(G6530,4,10)),\"$\"&MID(G6530,2,1)&CHAR(CODE(MID(G6530,3,1))+1)&\"$\"&TRIM(MID(G6530,5,11)))","v":"$AB$127"}]
[25754,{"$f":"Menu!$F$29","v":"X"},{"$f":"Menu!$J$29","v":2020},{"$f":"IF(ISBLANK(INDIRECT(\"'\"&F6531&\"'!\"&G6531)),\"\",INDIRECT(\"'\"&F6531&\"'!\"&G6531))","v":""},{"$f":"IF(ISBLANK(INDIRECT(\"'\"&F6531&\"'!\"&H6531)),\"\",IFERROR(VLOOKUP(TEXT(INDIRECT(\"'\"&F6531&\"'!\"&H6531),\"0\"),Notes!$B$5:$C$100,2,FALSE),\"\"))","v":""},"2b","$Y$127","$Z$127"]
[25755,{"$f":"Menu!$F$29","v":"X"},{"$f":"Menu!$J$29","v":2020},{"$f":"IF(ISBLANK(INDIRECT(\"'\"&F6532&\"'!\"&G6532)),\"\",INDIRECT(\"'\"&F6532&\"'!\"&G6532))","v":""},{"$f":"IF(ISBLANK(INDIRECT(\"'\"&F6532&\"'!\"&H6532)),\"\",IFERROR(VLOOKUP(TEXT(INDIRECT(\"'\"&F6532&\"'!\"&H6532),\"0\"),Notes!$B$5:$C$100,2,FALSE),\"\"))","v":""},"2d","$AC$127","$AD$127"]
[25756,{"$f":"Menu!$F$29","v":"X"},{"$f":"Menu!$J$29","v":2020},{"$f":"IF(ISBLANK(INDIRECT(\"'\"&F6533&\"'!\"&G6533)),\"\",INDIRECT(\"'\"&F6533&\"'!\"&G6533))","v":""},{"$f":"IF(ISBLANK(INDIRECT(\"'\"&F6533&\"'!\"&H6533)),\"\",IFERROR(VLOOKUP(TEXT(INDIRECT(\"'\"&F6533&\"'!\"&H6533),\"0\"),Notes!$B$5:$C$100,2,FALSE),\"\"))","v":""},"2d","$AG$127","$AH$127"]
[25757,{"$f":"Menu!$F$29","v":"X"},{"$f":"Menu!$J$29","v":2020},{"$f":"IF(ISBLANK(INDIRECT(\"'\"&F6534&\"'!\"&G6534)),\"\",INDIRECT(\"'\"&F6534&\"'!\"&G6534))","v":""},{"$f":"IF(ISBLANK(INDIRECT(\"'\"&F6534&\"'!\"&H6534)),\"\",IFERROR(VLOOKUP(TEXT(INDIRECT(\"'\"&F6534&\"'!\"&H6534),\"0\"),Notes!$B$5:$C$100,2,FALSE),\"\"))","v":""},"2d","$AE$127","$AF$127"]
[25758,{"$f":"Menu!$F$29","v":"X"},{"$f":"Menu!$J$29","v":2020},{"$f":"IF(ISBLANK(INDIRECT(\"'\"&F6535&\"'!\"&G6535)),\"\",INDIRECT(\"'\"&F6535&\"'!\"&G6535))","v":""},{"$f":"IF(ISBLANK(INDIRECT(\"'\"&F6535&\"'!\"&H6535)),\"\",IFERROR(VLOOKUP(TEXT(INDIRECT(\"'\"&F6535&\"'!\"&H6535),\"0\"),Notes!$B$5:$C$100,2,FALSE),\"\"))","v":""},"2d","$W$127","$X$127"]
[25759,{"$f":"Menu!$F$29","v":"X"},{"$f":"Menu!$J$29","v":2020},{"$f":"IF(ISBLANK(INDIRECT(\"'\"&F6536&\"'!\"&G6536)),\"\",INDIRECT(\"'\"&F6536&\"'!\"&G6536))","v":""},{"$f":"IF(ISBLANK(INDIRECT(\"'\"&F6536&\"'!\"&H6536)),\"\",IFERROR(VLOOKUP(TEXT(INDIRECT(\"'\"&F6536&\"'!\"&H6536),\"0\"),Notes!$B$5:$C$100,2,FALSE),\"\"))","v":""},"2d","$AA$127","$AB$127"]
[25760,{"$f":"Menu!$F$29","v":"X"},{"$f":"Menu!$J$29","v":2020},{"$f":"IF(ISBLANK(INDIRECT(\"'\"&F6537&\"'!\"&G6537)),\"\",INDIRECT(\"'\"&F6537&\"'!\"&G6537))","v":""},{"$f":"IF(ISBLANK(INDIRECT(\"'\"&F6537&\"'!\"&H6537)),\"\",IFERROR(VLOOKUP(TEXT(INDIRECT(\"'\"&F6537&\"'!\"&H6537),\"0\"),Notes!$B$5:$C$100,2,FALSE),\"\"))","v":""},"2d","$Y$127","$Z$127"]
[25761,{"$f":"Menu!$F$29","v":"X"},{"$f":"Menu!$J$29","v":2020},{"$f":"IF(ISBLANK(INDIRECT(\"'\"&F6538&\"'!\"&G6538)),\"\",INDIRECT(\"'\"&F6538&\"'!\"&G6538))","v":""},{"$f":"IF(ISBLANK(INDIRECT(\"'\"&F6538&\"'!\"&H6538)),\"\",IFERROR(VLOOKUP(TEXT(INDIRECT(\"'\"&F6538&\"'!\"&H6538),\"0\"),Notes!$B$5:$C$100,2,FALSE),\"\"))","v":""},"2d","$E$127","$F$127"]
[25762,{"$f":"Menu!$F$29","v":"X"},{"$f":"Menu!$J$29","v":2020},{"$f":"IF(ISBLANK(INDIRECT(\"'\"&F6539&\"'!\"&G6539)),\"\",INDIRECT(\"'\"&F6539&\"'!\"&G6539))","v":""},{"$f":"IF(ISBLANK(INDIRECT(\"'\"&F6539&\"'!\"&H6539)),\"\",IFERROR(VLOOKUP(TEXT(INDIRECT(\"'\"&F6539&\"'!\"&H6539),\"0\"),Notes!$B$5:$C$100,2,FALSE),\"\"))","v":""},"2d","$I$127","$J$127"]
[25763,{"$f":"Menu!$F$29","v":"X"},{"$f":"Menu!$J$29","v":2020},{"$f":"IF(ISBLANK(INDIRECT(\"'\"&F6540&\"'!\"&G6540)),\"\",INDIRECT(\"'\"&F6540&\"'!\"&G6540))","v":""},{"$f":"IF(ISBLANK(INDIRECT(\"'\"&F6540&\"'!\"&H6540)),\"\",IFERROR(VLOOKUP(TEXT(INDIRECT(\"'\"&F6540&\"'!\"&H6540),\"0\"),Notes!$B$5:$C$100,2,FALSE),\"\"))","v":""},"2d","$G$127","$H$127"]
[25764,{"$f":"Menu!$F$29","v":"X"},{"$f":"Menu!$J$29","v":2020},{"$f":"IF(ISBLANK(INDIRECT(\"'\"&F6541&\"'!\"&G6541)),\"\",INDIRECT(\"'\"&F6541&\"'!\"&G6541))","v":""},{"$f":"IF(ISBLANK(INDIRECT(\"'\"&F6541&\"'!\"&H6541)),\"\",IFERROR(VLOOKUP(TEXT(INDIRECT(\"'\"&F6541&\"'!\"&H6541),\"0\"),Notes!$B$5:$C$100,2,FALSE),\"\"))","v":""},"2a","$Q$127","$R$127"]
[25765,{"$f":"Menu!$F$29","v":"X"},{"$f":"Menu!$J$29","v":2020},{"$f":"IF(ISBLANK(INDIRECT(\"'\"&F6542&\"'!\"&G6542)),\"\",INDIRECT(\"'\"&F6542&\"'!\"&G6542))","v":""},{"$f":"IF(ISBLANK(INDIRECT(\"'\"&F6542&\"'!\"&H6542)),\"\",IFERROR(VLOOKUP(TEXT(INDIRECT(\"'\"&F6542&\"'!\"&H6542),\"0\"),Notes!$B$5:$C$100,2,FALSE),\"\"))","v":""},"2a","$U$127","$V$127"]
[25766,{"$f":"Menu!$F$29","v":"X"},{"$f":"Menu!$J$29","v":2020},{"$f":"IF(ISBLANK(INDIRECT(\"'\"&F6543&\"'!\"&G6543)),\"\",INDIRECT(\"'\"&F6543&\"'!\"&G6543))","v":""},{"$f":"IF(ISBLANK(INDIRECT(\"'\"&F6543&\"'!\"&H6543)),\"\",IFERROR(VLOOKUP(TEXT(INDIRECT(\"'\"&F6543&\"'!\"&H6543),\"0\"),Notes!$B$5:$C$100,2,FALSE),\"\"))","v":""},"2a","$S$127","$T$127"]
[25767,{"$f":"Menu!$F$29","v":"X"},{"$f":"Menu!$J$29","v":2020},{"$f":"IF(ISBLANK(INDIRECT(\"'\"&F6544&\"'!\"&G6544)),\"\",INDIRECT(\"'\"&F6544&\"'!\"&G6544))","v":""},{"$f":"IF(ISBLANK(INDIRECT(\"'\"&F6544&\"'!\"&H6544)),\"\",IFERROR(VLOOKUP(TEXT(INDIRECT(\"'\"&F6544&\"'!\"&H6544),\"0\"),Notes!$B$5:$C$100,2,FALSE),\"\"))","v":""},"2d","$K$127","$L$127"]
[25768,{"$f":"Menu!$F$29","v":"X"},{"$f":"Menu!$J$29","v":2020},{"$f":"IF(ISBLANK(INDIRECT(\"'\"&F6545&\"'!\"&G6545)),\"\",INDIRECT(\"'\"&F6545&\"'!\"&G6545))","v":""},{"$f":"IF(ISBLANK(INDIRECT(\"'\"&F6545&\"'!\"&H6545)),\"\",IFERROR(VLOOKUP(TEXT(INDIRECT(\"'\"&F6545&\"'!\"&H6545),\"0\"),Notes!$B$5:$C$100,2,FALSE),\"\"))","v":""},"2d","$O$127","$P$127"]
[25769,{"$f":"Menu!$F$29","v":"X"},{"$f":"Menu!$J$29","v":2020},{"$f":"IF(ISBLANK(INDIRECT(\"'\"&F6546&\"'!\"&G6546)),\"\",INDIRECT(\"'\"&F6546&\"'!\"&G6546))","v":""},{"$f":"IF(ISBLANK(INDIRECT(\"'\"&F6546&\"'!\"&H6546)),\"\",IFERROR(VLOOKUP(TEXT(INDIRECT(\"'\"&F6546&\"'!\"&H6546),\"0\"),Notes!$B$5:$C$100,2,FALSE),\"\"))","v":""},"2d","$M$127","$N$127"]
[25770,{"$f":"Menu!$F$29","v":"X"},{"$f":"Menu!$J$29","v":2020},{"$f":"IF(ISBLANK(INDIRECT(\"'\"&F6547&\"'!\"&G6547)),\"\",INDIRECT(\"'\"&F6547&\"'!\"&G6547))","v":""},{"$f":"IF(ISBLANK(INDIRECT(\"'\"&F6547&\"'!\"&H6547)),\"\",IFERROR(VLOOKUP(TEXT(INDIRECT(\"'\"&F6547&\"'!\"&H6547),\"0\"),Notes!$B$5:$C$100,2,FALSE),\"\"))","v":""},"2d","$Q$127","$R$127"]
[25771,{"$f":"Menu!$F$29","v":"X"},{"$f":"Menu!$J$29","v":2020},{"$f":"IF(ISBLANK(INDIRECT(\"'\"&F6548&\"'!\"&G6548)),\"\",INDIRECT(\"'\"&F6548&\"'!\"&G6548))","v":""},{"$f":"IF(ISBLANK(INDIRECT(\"'\"&F6548&\"'!\"&H6548)),\"\",IFERROR(VLOOKUP(TEXT(INDIRECT(\"'\"&F6548&\"'!\"&H6548),\"0\"),Notes!$B$5:$C$100,2,FALSE),\"\"))","v":""},"2d","$U$127","$V$127"]
[25772,{"$f":"Menu!$F$29","v":"X"},{"$f":"Menu!$J$29","v":2020},{"$f":"IF(ISBLANK(INDIRECT(\"'\"&F6549&\"'!\"&G6549)),\"\",INDIRECT(\"'\"&F6549&\"'!\"&G6549))","v":""},{"$f":"IF(ISBLANK(INDIRECT(\"'\"&F6549&\"'!\"&H6549)),\"\",IFERROR(VLOOKUP(TEXT(INDIRECT(\"'\"&F6549&\"'!\"&H6549),\"0\"),Notes!$B$5:$C$100,2,FALSE),\"\"))","v":""},"2d","$S$127","$T$127"]
[25773,{"$f":"Menu!$F$29","v":"X"},{"$f":"Menu!$J$29","v":2020},{"$f":"IF(ISBLANK(INDIRECT(\"'\"&F6550&\"'!\"&G6550)),\"\",INDIRECT(\"'\"&F6550&\"'!\"&G6550))","v":""},{"$f":"IF(ISBLANK(INDIRECT(\"'\"&F6550&\"'!\"&H6550)),\"\",IFERROR(VLOOKUP(TEXT(INDIRECT(\"'\"&F6550&\"'!\"&H6550),\"0\"),Notes!$B$5:$C$100,2,FALSE),\"\"))","v":""},"2a","$K$127","$L$127"]
[25774,{"$f":"Menu!$F$29","v":"X"},{"$f":"Menu!$J$29","v":2020},{"$f":"IF(ISBLANK(INDIRECT(\"'\"&F6551&\"'!\"&G6551)),\"\",INDIRECT(\"'\"&F6551&\"'!\"&G6551))","v":""},{"$f":"IF(ISBLANK(INDIRECT(\"'\"&F6551&\"'!\"&H6551)),\"\",IFERROR(VLOOKUP(TEXT(INDIRECT(\"'\"&F6551&\"'!\"&H6551),\"0\"),Notes!$B$5:$C$100,2,FALSE),\"\"))","v":""},"2a","$O$127","$P$127"]
[25775,{"$f":"Menu!$F$29","v":"X"},{"$f":"Menu!$J$29","v":2020},{"$f":"IF(ISBLANK(INDIRECT(\"'\"&F6552&\"'!\"&G6552)),\"\",INDIRECT(\"'\"&F6552&\"'!\"&G6552))","v":""},{"$f":"IF(ISBLANK(INDIRECT(\"'\"&F6552&\"'!\"&H6552)),\"\",IFERROR(VLOOKUP(TEXT(INDIRECT(\"'\"&F6552&\"'!\"&H6552),\"0\"),Notes!$B$5:$C$100,2,FALSE),\"\"))","v":""},"2a","$M$127","$N$127"]
[25776,{"$f":"Menu!$F$29","v":"X"},{"$f":"Menu!$J$29","v":2020},{"$f":"IF(ISBLANK(INDIRECT(\"'\"&F6553&\"'!\"&G6553)),\"\",INDIRECT(\"'\"&F6553&\"'!\"&G6553))","v":""},{"$f":"IF(ISBLANK(INDIRECT(\"'\"&F6553&\"'!\"&H6553)),\"\",IFERROR(VLOOKUP(TEXT(INDIRECT(\"'\"&F6553&\"'!\"&H6553),\"0\"),Notes!$B$5:$C$100,2,FALSE),\"\"))","v":""},"2a","$E$127","$F$127"]
[25777,{"$f":"Menu!$F$29","v":"X"},{"$f":"Menu!$J$29","v":2020},{"$f":"IF(ISBLANK(INDIRECT(\"'\"&F6554&\"'!\"&G6554)),\"\",INDIRECT(\"'\"&F6554&\"'!\"&G6554))","v":""},{"$f":"IF(ISBLANK(INDIRECT(\"'\"&F6554&\"'!\"&H6554)),\"\",IFERROR(VLOOKUP(TEXT(INDIRECT(\"'\"&F6554&\"'!\"&H6554),\"0\"),Notes!$B$5:$C$100,2,FALSE),\"\"))","v":""},"2b","$K$128","$L$128"]
[25778,{"$f":"Menu!$F$29","v":"X"},{"$f":"Menu!$J$29","v":2020},{"$f":"IF(ISBLANK(INDIRECT(\"'\"&F6555&\"'!\"&G6555)),\"\",INDIRECT(\"'\"&F6555&\"'!\"&G6555))","v":""},{"$f":"IF(ISBLANK(INDIRECT(\"'\"&F6555&\"'!\"&H6555)),\"\",IFERROR(VLOOKUP(TEXT(INDIRECT(\"'\"&F6555&\"'!\"&H6555),\"0\"),Notes!$B$5:$C$100,2,FALSE),\"\"))","v":""},"2b","$O$128","$P$128"]
[25779,{"$f":"Menu!$F$29","v":"X"},{"$f":"Menu!$J$29","v":2020},{"$f":"IF(ISBLANK(INDIRECT(\"'\"&F6556&\"'!\"&G6556)),\"\",INDIRECT(\"'\"&F6556&\"'!\"&G6556))","v":""},{"$f":"IF(ISBLANK(INDIRECT(\"'\"&F6556&\"'!\"&H6556)),\"\",IFERROR(VLOOKUP(TEXT(INDIRECT(\"'\"&F6556&\"'!\"&H6556),\"0\"),Notes!$B$5:$C$100,2,FALSE),\"\"))","v":""},"2b","$M$128","$N$128"]
[25780,{"$f":"Menu!$F$29","v":"X"},{"$f":"Menu!$J$29","v":2020},{"$f":"IF(ISBLANK(INDIRECT(\"'\"&F6557&\"'!\"&G6557)),\"\",INDIRECT(\"'\"&F6557&\"'!\"&G6557))","v":""},{"$f":"IF(ISBLANK(INDIRECT(\"'\"&F6557&\"'!\"&H6557)),\"\",IFERROR(VLOOKUP(TEXT(INDIRECT(\"'\"&F6557&\"'!\"&H6557),\"0\"),Notes!$B$5:$C$100,2,FALSE),\"\"))","v":""},"2b","$Q$128","$R$128"]
[25781,{"$f":"Menu!$F$29","v":"X"},{"$f":"Menu!$J$29","v":2020},{"$f":"IF(ISBLANK(INDIRECT(\"'\"&F6558&\"'!\"&G6558)),\"\",INDIRECT(\"'\"&F6558&\"'!\"&G6558))","v":""},{"$f":"IF(ISBLANK(INDIRECT(\"'\"&F6558&\"'!\"&H6558)),\"\",IFERROR(VLOOKUP(TEXT(INDIRECT(\"'\"&F6558&\"'!\"&H6558),\"0\"),Notes!$B$5:$C$100,2,FALSE),\"\"))","v":""},"2b","$U$128","$V$128"]
[25782,{"$f":"Menu!$F$29","v":"X"},{"$f":"Menu!$J$29","v":2020},{"$f":"IF(ISBLANK(INDIRECT(\"'\"&F6559&\"'!\"&G6559)),\"\",INDIRECT(\"'\"&F6559&\"'!\"&G6559))","v":""},{"$f":"IF(ISBLANK(INDIRECT(\"'\"&F6559&\"'!\"&H6559)),\"\",IFERROR(VLOOKUP(TEXT(INDIRECT(\"'\"&F6559&\"'!\"&H6559),\"0\"),Notes!$B$5:$C$100,2,FALSE),\"\"))","v":""},"2b","$S$128","$T$128"]
[25786,{"$f":"Menu!$F$29","v":"X"},{"$f":"Menu!$J$29","v":2020},{"$f":"IF(ISBLANK(INDIRECT(\"'\"&F6560&\"'!\"&G6560)),\"\",INDIRECT(\"'\"&F6560&\"'!\"&G6560))","v":""},{"$f":"IF(ISBLANK(INDIRECT(\"'\"&F6560&\"'!\"&H6560)),\"\",IFERROR(VLOOKUP(TEXT(INDIRECT(\"'\"&F6560&\"'!\"&H6560),\"0\"),Notes!$B$5:$C$100,2,FALSE),\"\"))","v":""},"2a","$I$128","$J$128"]
[25787,{"$f":"Menu!$F$29","v":"X"},{"$f":"Menu!$J$29","v":2020},{"$f":"IF(ISBLANK(INDIRECT(\"'\"&F6561&\"'!\"&G6561)),\"\",INDIRECT(\"'\"&F6561&\"'!\"&G6561))","v":""},{"$f":"IF(ISBLANK(INDIRECT(\"'\"&F6561&\"'!\"&H6561)),\"\",IFERROR(VLOOKUP(TEXT(INDIRECT(\"'\"&F6561&\"'!\"&H6561),\"0\"),Notes!$B$5:$C$100,2,FALSE),\"\"))","v":""},"2c","$E$128","$F$128"]
[25788,{"$f":"Menu!$F$29","v":"X"},{"$f":"Menu!$J$29","v":2020},{"$f":"IF(ISBLANK(INDIRECT(\"'\"&F6562&\"'!\"&G6562)),\"\",INDIRECT(\"'\"&F6562&\"'!\"&G6562))","v":""},{"$f":"IF(ISBLANK(INDIRECT(\"'\"&F6562&\"'!\"&H6562)),\"\",IFERROR(VLOOKUP(TEXT(INDIRECT(\"'\"&F6562&\"'!\"&H6562),\"0\"),Notes!$B$5:$C$100,2,FALSE),\"\"))","v":""},"2c","$I$128","$J$128"]
[25789,{"$f":"Menu!$F$29","v":"X"},{"$f":"Menu!$J$29","v":2020},{"$f":"IF(ISBLANK(INDIRECT(\"'\"&F6563&\"'!\"&G6563)),\"\",INDIRECT(\"'\"&F6563&\"'!\"&G6563))","v":""},{"$f":"IF(ISBLANK(INDIRECT(\"'\"&F6563&\"'!\"&H6563)),\"\",IFERROR(VLOOKUP(TEXT(INDIRECT(\"'\"&F6563&\"'!\"&H6563),\"0\"),Notes!$B$5:$C$100,2,FALSE),\"\"))","v":""},"2c","$G$128","$H$128"]
[25793,{"$f":"Menu!$F$29","v":"X"},{"$f":"Menu!$J$29","v":2020},{"$f":"IF(ISBLANK(INDIRECT(\"'\"&F6564&\"'!\"&G6564)),\"\",INDIRECT(\"'\"&F6564&\"'!\"&G6564))","v":""},{"$f":"IF(ISBLANK(INDIRECT(\"'\"&F6564&\"'!\"&H6564)),\"\",IFERROR(VLOOKUP(TEXT(INDIRECT(\"'\"&F6564&\"'!\"&H6564),\"0\"),Notes!$B$5:$C$100,2,FALSE),\"\"))","v":""},"2c","$K$128","$L$128"]
[25794,{"$f":"Menu!$F$29","v":"X"},{"$f":"Menu!$J$29","v":2020},{"$f":"IF(ISBLANK(INDIRECT(\"'\"&F6565&\"'!\"&G6565)),\"\",INDIRECT(\"'\"&F6565&\"'!\"&G6565))","v":""},{"$f":"IF(ISBLANK(INDIRECT(\"'\"&F6565&\"'!\"&H6565)),\"\",IFERROR(VLOOKUP(TEXT(INDIRECT(\"'\"&F6565&\"'!\"&H6565),\"0\"),Notes!$B$5:$C$100,2,FALSE),\"\"))","v":""},"2c","$O$128","$P$128"]
[25795,{"$f":"Menu!$F$29","v":"X"},{"$f":"Menu!$J$29","v":2020},{"$f":"IF(ISBLANK(INDIRECT(\"'\"&F6566&\"'!\"&G6566)),\"\",INDIRECT(\"'\"&F6566&\"'!\"&G6566))","v":""},{"$f":"IF(ISBLANK(INDIRECT(\"'\"&F6566&\"'!\"&H6566)),\"\",IFERROR(VLOOKUP(TEXT(INDIRECT(\"'\"&F6566&\"'!\"&H6566),\"0\"),Notes!$B$5:$C$100,2,FALSE),\"\"))","v":""},"2c","$M$128","$N$128"]
[25796,{"$f":"Menu!$F$29","v":"X"},{"$f":"Menu!$J$29","v":2020},{"$f":"IF(ISBLANK(INDIRECT(\"'\"&F6567&\"'!\"&G6567)),\"\",INDIRECT(\"'\"&F6567&\"'!\"&G6567))","v":""},{"$f":"IF(ISBLANK(INDIRECT(\"'\"&F6567&\"'!\"&H6567)),\"\",IFERROR(VLOOKUP(TEXT(INDIRECT(\"'\"&F6567&\"'!\"&H6567),\"0\"),Notes!$B$5:$C$100,2,FALSE),\"\"))","v":""},"2c","$Q$128","$R$128"]
[25797,{"$f":"Menu!$F$29","v":"X"},{"$f":"Menu!$J$29","v":2020},{"$f":"IF(ISBLANK(INDIRECT(\"'\"&F6568&\"'!\"&G6568)),\"\",INDIRECT(\"'\"&F6568&\"'!\"&G6568))","v":""},{"$f":"IF(ISBLANK(INDIRECT(\"'\"&F6568&\"'!\"&H6568)),\"\",IFERROR(VLOOKUP(TEXT(INDIRECT(\"'\"&F6568&\"'!\"&H6568),\"0\"),Notes!$B$5:$C$100,2,FALSE),\"\"))","v":""},"2c","$U$128","$V$128"]
[25798,{"$f":"Menu!$F$29","v":"X"},{"$f":"Menu!$J$29","v":2020},{"$f":"IF(ISBLANK(INDIRECT(\"'\"&F6569&\"'!\"&G6569)),\"\",INDIRECT(\"'\"&F6569&\"'!\"&G6569))","v":""},{"$f":"IF(ISBLANK(INDIRECT(\"'\"&F6569&\"'!\"&H6569)),\"\",IFERROR(VLOOKUP(TEXT(INDIRECT(\"'\"&F6569&\"'!\"&H6569),\"0\"),Notes!$B$5:$C$100,2,FALSE),\"\"))","v":""},"2c","$S$128","$T$128"]
[25799,{"$f":"Menu!$F$29","v":"X"},{"$f":"Menu!$J$29","v":2020},{"$f":"IF(ISBLANK(INDIRECT(\"'\"&F6570&\"'!\"&G6570)),\"\",INDIRECT(\"'\"&F6570&\"'!\"&G6570))","v":""},{"$f":"IF(ISBLANK(INDIRECT(\"'\"&F6570&\"'!\"&H6570)),\"\",IFERROR(VLOOKUP(TEXT(INDIRECT(\"'\"&F6570&\"'!\"&H6570),\"0\"),Notes!$B$5:$C$100,2,FALSE),\"\"))","v":""},"2c","$W$128","$X$128"]
[25800,{"$f":"Menu!$F$29","v":"X"},{"$f":"Menu!$J$29","v":2020},{"$f":"IF(ISBLANK(INDIRECT(\"'\"&F6571&\"'!\"&G6571)),\"\",INDIRECT(\"'\"&F6571&\"'!\"&G6571))","v":""},{"$f":"IF(ISBLANK(INDIRECT(\"'\"&F6571&\"'!\"&H6571)),\"\",IFERROR(VLOOKUP(TEXT(INDIRECT(\"'\"&F6571&\"'!\"&H6571),\"0\"),Notes!$B$5:$C$100,2,FALSE),\"\"))","v":""},"2c","$AA$128","$AB$128"]
[25801,{"$f":"Menu!$F$29","v":"X"},{"$f":"Menu!$J$29","v":2020},{"$f":"IF(ISBLANK(INDIRECT(\"'\"&F6572&\"'!\"&G6572)),\"\",INDIRECT(\"'\"&F6572&\"'!\"&G6572))","v":""},{"$f":"IF(ISBLANK(INDIRECT(\"'\"&F6572&\"'!\"&H6572)),\"\",IFERROR(VLOOKUP(TEXT(INDIRECT(\"'\"&F6572&\"'!\"&H6572),\"0\"),Notes!$B$5:$C$100,2,FALSE),\"\"))","v":""},"2c","$Y$128","$Z$128"]
[25808,{"$f":"Menu!$F$29","v":"X"},{"$f":"Menu!$J$29","v":2020},{"$f":"IF(ISBLANK(INDIRECT(\"'\"&F6573&\"'!\"&G6573)),\"\",INDIRECT(\"'\"&F6573&\"'!\"&G6573))","v":""},{"$f":"IF(ISBLANK(INDIRECT(\"'\"&F6573&\"'!\"&H6573)),\"\",IFERROR(VLOOKUP(TEXT(INDIRECT(\"'\"&F6573&\"'!\"&H6573),\"0\"),Notes!$B$5:$C$100,2,FALSE),\"\"))","v":""},"2e","$BG$129","$BH$129"]
[25809,{"$f":"Menu!$F$29","v":"X"},{"$f":"Menu!$J$29","v":2020},{"$f":"IF(ISBLANK(INDIRECT(\"'\"&F6574&\"'!\"&G6574)),\"\",INDIRECT(\"'\"&F6574&\"'!\"&G6574))","v":""},{"$f":"IF(ISBLANK(INDIRECT(\"'\"&F6574&\"'!\"&H6574)),\"\",IFERROR(VLOOKUP(TEXT(INDIRECT(\"'\"&F6574&\"'!\"&H6574),\"0\"),Notes!$B$5:$C$100,2,FALSE),\"\"))","v":""},"2e","$BK$129","$BL$129"]
[25810,{"$f":"Menu!$F$29","v":"X"},{"$f":"Menu!$J$29","v":2020},{"$f":"IF(ISBLANK(INDIRECT(\"'\"&F6575&\"'!\"&G6575)),\"\",INDIRECT(\"'\"&F6575&\"'!\"&G6575))","v":""},{"$f":"IF(ISBLANK(INDIRECT(\"'\"&F6575&\"'!\"&H6575)),\"\",IFERROR(VLOOKUP(TEXT(INDIRECT(\"'\"&F6575&\"'!\"&H6575),\"0\"),Notes!$B$5:$C$100,2,FALSE),\"\"))","v":""},"2e","$BI$129","$BJ$129"]
[25811,{"$f":"Menu!$F$29","v":"X"},{"$f":"Menu!$J$29","v":2020},{"$f":"IF(ISBLANK(INDIRECT(\"'\"&F6576&\"'!\"&G6576)),\"\",INDIRECT(\"'\"&F6576&\"'!\"&G6576))","v":""},{"$f":"IF(ISBLANK(INDIRECT(\"'\"&F6576&\"'!\"&H6576)),\"\",IFERROR(VLOOKUP(TEXT(INDIRECT(\"'\"&F6576&\"'!\"&H6576),\"0\"),Notes!$B$5:$C$100,2,FALSE),\"\"))","v":""},"2e","$E$129","$F$129"]
[25812,{"$f":"Menu!$F$29","v":"X"},{"$f":"Menu!$J$29","v":2020},{"$f":"IF(ISBLANK(INDIRECT(\"'\"&F6577&\"'!\"&G6577)),\"\",INDIRECT(\"'\"&F6577&\"'!\"&G6577))","v":""},{"$f":"IF(ISBLANK(INDIRECT(\"'\"&F6577&\"'!\"&H6577)),\"\",IFERROR(VLOOKUP(TEXT(INDIRECT(\"'\"&F6577&\"'!\"&H6577),\"0\"),Notes!$B$5:$C$100,2,FALSE),\"\"))","v":""},"2e","$I$129","$J$129"]
[25813,{"$f":"Menu!$F$29","v":"X"},{"$f":"Menu!$J$29","v":2020},{"$f":"IF(ISBLANK(INDIRECT(\"'\"&F6578&\"'!\"&G6578)),\"\",INDIRECT(\"'\"&F6578&\"'!\"&G6578))","v":""},{"$f":"IF(ISBLANK(INDIRECT(\"'\"&F6578&\"'!\"&H6578)),\"\",IFERROR(VLOOKUP(TEXT(INDIRECT(\"'\"&F6578&\"'!\"&H6578),\"0\"),Notes!$B$5:$C$100,2,FALSE),\"\"))","v":""},"2e","$G$129","$H$129"]
[25814,{"$f":"Menu!$F$29","v":"X"},{"$f":"Menu!$J$29","v":2020},{"$f":"IF(ISBLANK(INDIRECT(\"'\"&F6579&\"'!\"&G6579)),\"\",INDIRECT(\"'\"&F6579&\"'!\"&G6579))","v":""},{"$f":"IF(ISBLANK(INDIRECT(\"'\"&F6579&\"'!\"&H6579)),\"\",IFERROR(VLOOKUP(TEXT(INDIRECT(\"'\"&F6579&\"'!\"&H6579),\"0\"),Notes!$B$5:$C$100,2,FALSE),\"\"))","v":""},"2e","$K$129","$L$129"]
[25815,{"$f":"Menu!$F$29","v":"X"},{"$f":"Menu!$J$29","v":2020},{"$f":"IF(ISBLANK(INDIRECT(\"'\"&F6580&\"'!\"&G6580)),\"\",INDIRECT(\"'\"&F6580&\"'!\"&G6580))","v":""},{"$f":"IF(ISBLANK(INDIRECT(\"'\"&F6580&\"'!\"&H6580)),\"\",IFERROR(VLOOKUP(TEXT(INDIRECT(\"'\"&F6580&\"'!\"&H6580),\"0\"),Notes!$B$5:$C$100,2,FALSE),\"\"))","v":""},"2e","$O$129","$P$129"]
[25816,{"$f":"Menu!$F$29","v":"X"},{"$f":"Menu!$J$29","v":2020},{"$f":"IF(ISBLANK(INDIRECT(\"'\"&F6581&\"'!\"&G6581)),\"\",INDIRECT(\"'\"&F6581&\"'!\"&G6581))","v":""},{"$f":"IF(ISBLANK(INDIRECT(\"'\"&F6581&\"'!\"&H6581)),\"\",IFERROR(VLOOKUP(TEXT(INDIRECT(\"'\"&F6581&\"'!\"&H6581),\"0\"),Notes!$B$5:$C$100,2,FALSE),\"\"))","v":""},"2e","$M$129","$N$129"]
[25817,{"$f":"Menu!$F$29","v":"X"},{"$f":"Menu!$J$29","v":2020},{"$f":"IF(ISBLANK(INDIRECT(\"'\"&F6582&\"'!\"&G6582)),\"\",INDIRECT(\"'\"&F6582&\"'!\"&G6582))","v":""},{"$f":"IF(ISBLANK(INDIRECT(\"'\"&F6582&\"'!\"&H6582)),\"\",IFERROR(VLOOKUP(TEXT(INDIRECT(\"'\"&F6582&\"'!\"&H6582),\"0\"),Notes!$B$5:$C$100,2,FALSE),\"\"))","v":""},"2e","$Q$129","$R$129"]
[25818,{"$f":"Menu!$F$29","v":"X"},{"$f":"Menu!$J$29","v":2020},{"$f":"IF(ISBLANK(INDIRECT(\"'\"&F6583&\"'!\"&G6583)),\"\",INDIRECT(\"'\"&F6583&\"'!\"&G6583))","v":""},{"$f":"IF(ISBLANK(INDIRECT(\"'\"&F6583&\"'!\"&H6583)),\"\",IFERROR(VLOOKUP(TEXT(INDIRECT(\"'\"&F6583&\"'!\"&H6583),\"0\"),Notes!$B$5:$C$100,2,FALSE),\"\"))","v":""},"2e","$U$129","$V$129"]
[25819,{"$f":"Menu!$F$29","v":"X"},{"$f":"Menu!$J$29","v":2020},{"$f":"IF(ISBLANK(INDIRECT(\"'\"&F6584&\"'!\"&G6584)),\"\",INDIRECT(\"'\"&F6584&\"'!\"&G6584))","v":""},{"$f":"IF(ISBLANK(INDIRECT(\"'\"&F6584&\"'!\"&H6584)),\"\",IFERROR(VLOOKUP(TEXT(INDIRECT(\"'\"&F6584&\"'!\"&H6584),\"0\"),Notes!$B$5:$C$100,2,FALSE),\"\"))","v":""},"2e","$S$129","$T$129"]
[25820,{"$f":"Menu!$F$29","v":"X"},{"$f":"Menu!$J$29","v":2020},{"$f":"IF(ISBLANK(INDIRECT(\"'\"&F6585&\"'!\"&G6585)),\"\",INDIRECT(\"'\"&F6585&\"'!\"&G6585))","v":""},{"$f":"IF(ISBLANK(INDIRECT(\"'\"&F6585&\"'!\"&H6585)),\"\",IFERROR(VLOOKUP(TEXT(INDIRECT(\"'\"&F6585&\"'!\"&H6585),\"0\"),Notes!$B$5:$C$100,2,FALSE),\"\"))","v":""},"2e","$W$129","$X$129"]
[25821,{"$f":"Menu!$F$29","v":"X"},{"$f":"Menu!$J$29","v":2020},{"$f":"IF(ISBLANK(INDIRECT(\"'\"&F6586&\"'!\"&G6586)),\"\",INDIRECT(\"'\"&F6586&\"'!\"&G6586))","v":""},{"$f":"IF(ISBLANK(INDIRECT(\"'\"&F6586&\"'!\"&H6586)),\"\",IFERROR(VLOOKUP(TEXT(INDIRECT(\"'\"&F6586&\"'!\"&H6586),\"0\"),Notes!$B$5:$C$100,2,FALSE),\"\"))","v":""},"2e","$AA$129","$AB$129"]
[25822,{"$f":"Menu!$F$29","v":"X"},{"$f":"Menu!$J$29","v":2020},{"$f":"IF(ISBLANK(INDIRECT(\"'\"&F6587&\"'!\"&G6587)),\"\",INDIRECT(\"'\"&F6587&\"'!\"&G6587))","v":""},{"$f":"IF(ISBLANK(INDIRECT(\"'\"&F6587&\"'!\"&H6587)),\"\",IFERROR(VLOOKUP(TEXT(INDIRECT(\"'\"&F6587&\"'!\"&H6587),\"0\"),Notes!$B$5:$C$100,2,FALSE),\"\"))","v":""},"2e","$Y$129","$Z$129"]
[25823,{"$f":"Menu!$F$29","v":"X"},{"$f":"Menu!$J$29","v":2020},{"$f":"IF(ISBLANK(INDIRECT(\"'\"&F6588&\"'!\"&G6588)),\"\",INDIRECT(\"'\"&F6588&\"'!\"&G6588))","v":""},{"$f":"IF(ISBLANK(INDIRECT(\"'\"&F6588&\"'!\"&H6588)),\"\",IFERROR(VLOOKUP(TEXT(INDIRECT(\"'\"&F6588&\"'!\"&H6588),\"0\"),Notes!$B$5:$C$100,2,FALSE),\"\"))","v":""},"2e","$AC$129","$AD$129"]
[25824,{"$f":"Menu!$F$29","v":"X"},{"$f":"Menu!$J$29","v":2020},{"$f":"IF(ISBLANK(INDIRECT(\"'\"&F6589&\"'!\"&G6589)),\"\",INDIRECT(\"'\"&F6589&\"'!\"&G6589))","v":""},{"$f":"IF(ISBLANK(INDIRECT(\"'\"&F6589&\"'!\"&H6589)),\"\",IFERROR(VLOOKUP(TEXT(INDIRECT(\"'\"&F6589&\"'!\"&H6589),\"0\"),Notes!$B$5:$C$100,2,FALSE),\"\"))","v":""},"2e","$AG$129","$AH$129"]
[25825,{"$f":"Menu!$F$29","v":"X"},{"$f":"Menu!$J$29","v":2020},{"$f":"IF(ISBLANK(INDIRECT(\"'\"&F6590&\"'!\"&G6590)),\"\",INDIRECT(\"'\"&F6590&\"'!\"&G6590))","v":""},{"$f":"IF(ISBLANK(INDIRECT(\"'\"&F6590&\"'!\"&H6590)),\"\",IFERROR(VLOOKUP(TEXT(INDIRECT(\"'\"&F6590&\"'!\"&H6590),\"0\"),Notes!$B$5:$C$100,2,FALSE),\"\"))","v":""},"2e","$AE$129","$AF$129"]
[25826,{"$f":"Menu!$F$29","v":"X"},{"$f":"Menu!$J$29","v":2020},{"$f":"IF(ISBLANK(INDIRECT(\"'\"&F6591&\"'!\"&G6591)),\"\",INDIRECT(\"'\"&F6591&\"'!\"&G6591))","v":""},{"$f":"IF(ISBLANK(INDIRECT(\"'\"&F6591&\"'!\"&H6591)),\"\",IFERROR(VLOOKUP(TEXT(INDIRECT(\"'\"&F6591&\"'!\"&H6591),\"0\"),Notes!$B$5:$C$100,2,FALSE),\"\"))","v":""},"2e","$AI$129","$AJ$129"]
[25827,{"$f":"Menu!$F$29","v":"X"},{"$f":"Menu!$J$29","v":2020},{"$f":"IF(ISBLANK(INDIRECT(\"'\"&F6592&\"'!\"&G6592)),\"\",INDIRECT(\"'\"&F6592&\"'!\"&G6592))","v":""},{"$f":"IF(ISBLANK(INDIRECT(\"'\"&F6592&\"'!\"&H6592)),\"\",IFERROR(VLOOKUP(TEXT(INDIRECT(\"'\"&F6592&\"'!\"&H6592),\"0\"),Notes!$B$5:$C$100,2,FALSE),\"\"))","v":""},"2e","$AM$129","$AN$129"]
[25828,{"$f":"Menu!$F$29","v":"X"},{"$f":"Menu!$J$29","v":2020},{"$f":"IF(ISBLANK(INDIRECT(\"'\"&F6593&\"'!\"&G6593)),\"\",INDIRECT(\"'\"&F6593&\"'!\"&G6593))","v":""},{"$f":"IF(ISBLANK(INDIRECT(\"'\"&F6593&\"'!\"&H6593)),\"\",IFERROR(VLOOKUP(TEXT(INDIRECT(\"'\"&F6593&\"'!\"&H6593),\"0\"),Notes!$B$5:$C$100,2,FALSE),\"\"))","v":""},"2e","$AK$129","$AL$129"]
[25829,{"$f":"Menu!$F$29","v":"X"},{"$f":"Menu!$J$29","v":2020},{"$f":"IF(ISBLANK(INDIRECT(\"'\"&F6594&\"'!\"&G6594)),\"\",INDIRECT(\"'\"&F6594&\"'!\"&G6594))","v":""},{"$f":"IF(ISBLANK(INDIRECT(\"'\"&F6594&\"'!\"&H6594)),\"\",IFERROR(VLOOKUP(TEXT(INDIRECT(\"'\"&F6594&\"'!\"&H6594),\"0\"),Notes!$B$5:$C$100,2,FALSE),\"\"))","v":""},"2e","$AO$129",{"$f":"IF(LEN(TRIM(MID(G6594,4,10)))-LEN(SUBSTITUTE(TRIM(MID(G6594,4,10)),\"$\",\"\"))=0,\"$\"&CHAR(CODE(MID(G6594,2,1))+1)&\"$\"&TRIM(MID(G6594,4,10)),\"$\"&MID(G6594,2,1)&CHAR(CODE(MID(G6594,3,1))+1)&\"$\"&TRIM(MID(G6594,5,11)))","v":"$AP$129"}]
[25830,{"$f":"Menu!$F$29","v":"X"},{"$f":"Menu!$J$29","v":2020},{"$f":"IF(ISBLANK(INDIRECT(\"'\"&F6595&\"'!\"&G6595)),\"\",INDIRECT(\"'\"&F6595&\"'!\"&G6595))","v":""},{"$f":"IF(ISBLANK(INDIRECT(\"'\"&F6595&\"'!\"&H6595)),\"\",IFERROR(VLOOKUP(TEXT(INDIRECT(\"'\"&F6595&\"'!\"&H6595),\"0\"),Notes!$B$5:$C$100,2,FALSE),\"\"))","v":""},"2e","$AS$129","$AT$129"]
[25831,{"$f":"Menu!$F$29","v":"X"},{"$f":"Menu!$J$29","v":2020},{"$f":"IF(ISBLANK(INDIRECT(\"'\"&F6596&\"'!\"&G6596)),\"\",INDIRECT(\"'\"&F6596&\"'!\"&G6596))","v":""},{"$f":"IF(ISBLANK(INDIRECT(\"'\"&F6596&\"'!\"&H6596)),\"\",IFERROR(VLOOKUP(TEXT(INDIRECT(\"'\"&F6596&\"'!\"&H6596),\"0\"),Notes!$B$5:$C$100,2,FALSE),\"\"))","v":""},"2e","$AQ$129","$AR$129"]
[25832,{"$f":"Menu!$F$29","v":"X"},{"$f":"Menu!$J$29","v":2020},{"$f":"IF(ISBLANK(INDIRECT(\"'\"&F6597&\"'!\"&G6597)),\"\",INDIRECT(\"'\"&F6597&\"'!\"&G6597))","v":""},{"$f":"IF(ISBLANK(INDIRECT(\"'\"&F6597&\"'!\"&H6597)),\"\",IFERROR(VLOOKUP(TEXT(INDIRECT(\"'\"&F6597&\"'!\"&H6597),\"0\"),Notes!$B$5:$C$100,2,FALSE),\"\"))","v":""},"2e","$AU$129","$AV$129"]
[25833,{"$f":"Menu!$F$29","v":"X"},{"$f":"Menu!$J$29","v":2020},{"$f":"IF(ISBLANK(INDIRECT(\"'\"&F6598&\"'!\"&G6598)),\"\",INDIRECT(\"'\"&F6598&\"'!\"&G6598))","v":""},{"$f":"IF(ISBLANK(INDIRECT(\"'\"&F6598&\"'!\"&H6598)),\"\",IFERROR(VLOOKUP(TEXT(INDIRECT(\"'\"&F6598&\"'!\"&H6598),\"0\"),Notes!$B$5:$C$100,2,FALSE),\"\"))","v":""},"2e","$AY$129","$AZ$129"]
[25834,{"$f":"Menu!$F$29","v":"X"},{"$f":"Menu!$J$29","v":2020},{"$f":"IF(ISBLANK(INDIRECT(\"'\"&F6599&\"'!\"&G6599)),\"\",INDIRECT(\"'\"&F6599&\"'!\"&G6599))","v":""},{"$f":"IF(ISBLANK(INDIRECT(\"'\"&F6599&\"'!\"&H6599)),\"\",IFERROR(VLOOKUP(TEXT(INDIRECT(\"'\"&F6599&\"'!\"&H6599),\"0\"),Notes!$B$5:$C$100,2,FALSE),\"\"))","v":""},"2e","$AW$129","$AX$129"]
[25835,{"$f":"Menu!$F$29","v":"X"},{"$f":"Menu!$J$29","v":2020},{"$f":"IF(ISBLANK(INDIRECT(\"'\"&F6600&\"'!\"&G6600)),\"\",INDIRECT(\"'\"&F6600&\"'!\"&G6600))","v":""},{"$f":"IF(ISBLANK(INDIRECT(\"'\"&F6600&\"'!\"&H6600)),\"\",IFERROR(VLOOKUP(TEXT(INDIRECT(\"'\"&F6600&\"'!\"&H6600),\"0\"),Notes!$B$5:$C$100,2,FALSE),\"\"))","v":""},"2e","$BA$129","$BB$129"]
[25836,{"$f":"Menu!$F$29","v":"X"},{"$f":"Menu!$J$29","v":2020},{"$f":"IF(ISBLANK(INDIRECT(\"'\"&F6601&\"'!\"&G6601)),\"\",INDIRECT(\"'\"&F6601&\"'!\"&G6601))","v":""},{"$f":"IF(ISBLANK(INDIRECT(\"'\"&F6601&\"'!\"&H6601)),\"\",IFERROR(VLOOKUP(TEXT(INDIRECT(\"'\"&F6601&\"'!\"&H6601),\"0\"),Notes!$B$5:$C$100,2,FALSE),\"\"))","v":""},"2e","$BE$129","$BF$129"]
[25837,{"$f":"Menu!$F$29","v":"X"},{"$f":"Menu!$J$29","v":2020},{"$f":"IF(ISBLANK(INDIRECT(\"'\"&F6602&\"'!\"&G6602)),\"\",INDIRECT(\"'\"&F6602&\"'!\"&G6602))","v":""},{"$f":"IF(ISBLANK(INDIRECT(\"'\"&F6602&\"'!\"&H6602)),\"\",IFERROR(VLOOKUP(TEXT(INDIRECT(\"'\"&F6602&\"'!\"&H6602),\"0\"),Notes!$B$5:$C$100,2,FALSE),\"\"))","v":""},"2e","$BC$129","$BD$129"]
[25838,{"$f":"Menu!$F$29","v":"X"},{"$f":"Menu!$J$29","v":2020},{"$f":"IF(ISBLANK(INDIRECT(\"'\"&F6603&\"'!\"&G6603)),\"\",INDIRECT(\"'\"&F6603&\"'!\"&G6603))","v":""},{"$f":"IF(ISBLANK(INDIRECT(\"'\"&F6603&\"'!\"&H6603)),\"\",IFERROR(VLOOKUP(TEXT(INDIRECT(\"'\"&F6603&\"'!\"&H6603),\"0\"),Notes!$B$5:$C$100,2,FALSE),\"\"))","v":""},"2b","$E$128","$F$128"]
[25839,{"$f":"Menu!$F$29","v":"X"},{"$f":"Menu!$J$29","v":2020},{"$f":"IF(ISBLANK(INDIRECT(\"'\"&F6604&\"'!\"&G6604)),\"\",INDIRECT(\"'\"&F6604&\"'!\"&G6604))","v":""},{"$f":"IF(ISBLANK(INDIRECT(\"'\"&F6604&\"'!\"&H6604)),\"\",IFERROR(VLOOKUP(TEXT(INDIRECT(\"'\"&F6604&\"'!\"&H6604),\"0\"),Notes!$B$5:$C$100,2,FALSE),\"\"))","v":""},"2b","$I$128","$J$128"]
[25840,{"$f":"Menu!$F$29","v":"X"},{"$f":"Menu!$J$29","v":2020},{"$f":"IF(ISBLANK(INDIRECT(\"'\"&F6605&\"'!\"&G6605)),\"\",INDIRECT(\"'\"&F6605&\"'!\"&G6605))","v":""},{"$f":"IF(ISBLANK(INDIRECT(\"'\"&F6605&\"'!\"&H6605)),\"\",IFERROR(VLOOKUP(TEXT(INDIRECT(\"'\"&F6605&\"'!\"&H6605),\"0\"),Notes!$B$5:$C$100,2,FALSE),\"\"))","v":""},"2b","$G$128","$H$128"]
[25841,{"$f":"Menu!$F$29","v":"X"},{"$f":"Menu!$J$29","v":2020},{"$f":"IF(ISBLANK(INDIRECT(\"'\"&F6606&\"'!\"&G6606)),\"\",INDIRECT(\"'\"&F6606&\"'!\"&G6606))","v":""},{"$f":"IF(ISBLANK(INDIRECT(\"'\"&F6606&\"'!\"&H6606)),\"\",IFERROR(VLOOKUP(TEXT(INDIRECT(\"'\"&F6606&\"'!\"&H6606),\"0\"),Notes!$B$5:$C$100,2,FALSE),\"\"))","v":""},"2a","$G$128","$H$128"]
[25842,{"$f":"Menu!$F$29","v":"X"},{"$f":"Menu!$J$29","v":2020},{"$f":"IF(ISBLANK(INDIRECT(\"'\"&F6607&\"'!\"&G6607)),\"\",INDIRECT(\"'\"&F6607&\"'!\"&G6607))","v":""},{"$f":"IF(ISBLANK(INDIRECT(\"'\"&F6607&\"'!\"&H6607)),\"\",IFERROR(VLOOKUP(TEXT(INDIRECT(\"'\"&F6607&\"'!\"&H6607),\"0\"),Notes!$B$5:$C$100,2,FALSE),\"\"))","v":""},"2b","$W$128","$X$128"]
[25843,{"$f":"Menu!$F$29","v":"X"},{"$f":"Menu!$J$29","v":2020},{"$f":"IF(ISBLANK(INDIRECT(\"'\"&F6608&\"'!\"&G6608)),\"\",INDIRECT(\"'\"&F6608&\"'!\"&G6608))","v":""},{"$f":"IF(ISBLANK(INDIRECT(\"'\"&F6608&\"'!\"&H6608)),\"\",IFERROR(VLOOKUP(TEXT(INDIRECT(\"'\"&F6608&\"'!\"&H6608),\"0\"),Notes!$B$5:$C$100,2,FALSE),\"\"))","v":""},"2b","$AA$128","$AB$128"]
[25844,{"$f":"Menu!$F$29","v":"X"},{"$f":"Menu!$J$29","v":2020},{"$f":"IF(ISBLANK(INDIRECT(\"'\"&F6609&\"'!\"&G6609)),\"\",INDIRECT(\"'\"&F6609&\"'!\"&G6609))","v":""},{"$f":"IF(ISBLANK(INDIRECT(\"'\"&F6609&\"'!\"&H6609)),\"\",IFERROR(VLOOKUP(TEXT(INDIRECT(\"'\"&F6609&\"'!\"&H6609),\"0\"),Notes!$B$5:$C$100,2,FALSE),\"\"))","v":""},"2b","$Y$128","$Z$128"]
[25845,{"$f":"Menu!$F$29","v":"X"},{"$f":"Menu!$J$29","v":2020},{"$f":"IF(ISBLANK(INDIRECT(\"'\"&F6610&\"'!\"&G6610)),\"\",INDIRECT(\"'\"&F6610&\"'!\"&G6610))","v":""},{"$f":"IF(ISBLANK(INDIRECT(\"'\"&F6610&\"'!\"&H6610)),\"\",IFERROR(VLOOKUP(TEXT(INDIRECT(\"'\"&F6610&\"'!\"&H6610),\"0\"),Notes!$B$5:$C$100,2,FALSE),\"\"))","v":""},"2d","$AC$128","$AD$128"]
[25846,{"$f":"Menu!$F$29","v":"X"},{"$f":"Menu!$J$29","v":2020},{"$f":"IF(ISBLANK(INDIRECT(\"'\"&F6611&\"'!\"&G6611)),\"\",INDIRECT(\"'\"&F6611&\"'!\"&G6611))","v":""},{"$f":"IF(ISBLANK(INDIRECT(\"'\"&F6611&\"'!\"&H6611)),\"\",IFERROR(VLOOKUP(TEXT(INDIRECT(\"'\"&F6611&\"'!\"&H6611),\"0\"),Notes!$B$5:$C$100,2,FALSE),\"\"))","v":""},"2d","$AG$128","$AH$128"]
[25847,{"$f":"Menu!$F$29","v":"X"},{"$f":"Menu!$J$29","v":2020},{"$f":"IF(ISBLANK(INDIRECT(\"'\"&F6612&\"'!\"&G6612)),\"\",INDIRECT(\"'\"&F6612&\"'!\"&G6612))","v":""},{"$f":"IF(ISBLANK(INDIRECT(\"'\"&F6612&\"'!\"&H6612)),\"\",IFERROR(VLOOKUP(TEXT(INDIRECT(\"'\"&F6612&\"'!\"&H6612),\"0\"),Notes!$B$5:$C$100,2,FALSE),\"\"))","v":""},"2d","$AE$128","$AF$128"]
[25848,{"$f":"Menu!$F$29","v":"X"},{"$f":"Menu!$J$29","v":2020},{"$f":"IF(ISBLANK(INDIRECT(\"'\"&F6613&\"'!\"&G6613)),\"\",INDIRECT(\"'\"&F6613&\"'!\"&G6613))","v":""},{"$f":"IF(ISBLANK(INDIRECT(\"'\"&F6613&\"'!\"&H6613)),\"\",IFERROR(VLOOKUP(TEXT(INDIRECT(\"'\"&F6613&\"'!\"&H6613),\"0\"),Notes!$B$5:$C$100,2,FALSE),\"\"))","v":""},"2d","$W$128","$X$128"]
[25849,{"$f":"Menu!$F$29","v":"X"},{"$f":"Menu!$J$29","v":2020},{"$f":"IF(ISBLANK(INDIRECT(\"'\"&F6614&\"'!\"&G6614)),\"\",INDIRECT(\"'\"&F6614&\"'!\"&G6614))","v":""},{"$f":"IF(ISBLANK(INDIRECT(\"'\"&F6614&\"'!\"&H6614)),\"\",IFERROR(VLOOKUP(TEXT(INDIRECT(\"'\"&F6614&\"'!\"&H6614),\"0\"),Notes!$B$5:$C$100,2,FALSE),\"\"))","v":""},"2d","$AA$128","$AB$128"]
[25850,{"$f":"Menu!$F$29","v":"X"},{"$f":"Menu!$J$29","v":2020},{"$f":"IF(ISBLANK(INDIRECT(\"'\"&F6615&\"'!\"&G6615)),\"\",INDIRECT(\"'\"&F6615&\"'!\"&G6615))","v":""},{"$f":"IF(ISBLANK(INDIRECT(\"'\"&F6615&\"'!\"&H6615)),\"\",IFERROR(VLOOKUP(TEXT(INDIRECT(\"'\"&F6615&\"'!\"&H6615),\"0\"),Notes!$B$5:$C$100,2,FALSE),\"\"))","v":""},"2d","$Y$128","$Z$128"]
[25851,{"$f":"Menu!$F$29","v":"X"},{"$f":"Menu!$J$29","v":2020},{"$f":"IF(ISBLANK(INDIRECT(\"'\"&F6616&\"'!\"&G6616)),\"\",INDIRECT(\"'\"&F6616&\"'!\"&G6616))","v":""},{"$f":"IF(ISBLANK(INDIRECT(\"'\"&F6616&\"'!\"&H6616)),\"\",IFERROR(VLOOKUP(TEXT(INDIRECT(\"'\"&F6616&\"'!\"&H6616),\"0\"),Notes!$B$5:$C$100,2,FALSE),\"\"))","v":""},"2d","$E$128","$F$128"]
[25852,{"$f":"Menu!$F$29","v":"X"},{"$f":"Menu!$J$29","v":2020},{"$f":"IF(ISBLANK(INDIRECT(\"'\"&F6617&\"'!\"&G6617)),\"\",INDIRECT(\"'\"&F6617&\"'!\"&G6617))","v":""},{"$f":"IF(ISBLANK(INDIRECT(\"'\"&F6617&\"'!\"&H6617)),\"\",IFERROR(VLOOKUP(TEXT(INDIRECT(\"'\"&F6617&\"'!\"&H6617),\"0\"),Notes!$B$5:$C$100,2,FALSE),\"\"))","v":""},"2d","$I$128","$J$128"]
[25853,{"$f":"Menu!$F$29","v":"X"},{"$f":"Menu!$J$29","v":2020},{"$f":"IF(ISBLANK(INDIRECT(\"'\"&F6618&\"'!\"&G6618)),\"\",INDIRECT(\"'\"&F6618&\"'!\"&G6618))","v":""},{"$f":"IF(ISBLANK(INDIRECT(\"'\"&F6618&\"'!\"&H6618)),\"\",IFERROR(VLOOKUP(TEXT(INDIRECT(\"'\"&F6618&\"'!\"&H6618),\"0\"),Notes!$B$5:$C$100,2,FALSE),\"\"))","v":""},"2d","$G$128","$H$128"]
[25854,{"$f":"Menu!$F$29","v":"X"},{"$f":"Menu!$J$29","v":2020},{"$f":"IF(ISBLANK(INDIRECT(\"'\"&F6619&\"'!\"&G6619)),\"\",INDIRECT(\"'\"&F6619&\"'!\"&G6619))","v":""},{"$f":"IF(ISBLANK(INDIRECT(\"'\"&F6619&\"'!\"&H6619)),\"\",IFERROR(VLOOKUP(TEXT(INDIRECT(\"'\"&F6619&\"'!\"&H6619),\"0\"),Notes!$B$5:$C$100,2,FALSE),\"\"))","v":""},"2a","$Q$128","$R$128"]
[25855,{"$f":"Menu!$F$29","v":"X"},{"$f":"Menu!$J$29","v":2020},{"$f":"IF(ISBLANK(INDIRECT(\"'\"&F6620&\"'!\"&G6620)),\"\",INDIRECT(\"'\"&F6620&\"'!\"&G6620))","v":""},{"$f":"IF(ISBLANK(INDIRECT(\"'\"&F6620&\"'!\"&H6620)),\"\",IFERROR(VLOOKUP(TEXT(INDIRECT(\"'\"&F6620&\"'!\"&H6620),\"0\"),Notes!$B$5:$C$100,2,FALSE),\"\"))","v":""},"2a","$U$128","$V$128"]
[25856,{"$f":"Menu!$F$29","v":"X"},{"$f":"Menu!$J$29","v":2020},{"$f":"IF(ISBLANK(INDIRECT(\"'\"&F6621&\"'!\"&G6621)),\"\",INDIRECT(\"'\"&F6621&\"'!\"&G6621))","v":""},{"$f":"IF(ISBLANK(INDIRECT(\"'\"&F6621&\"'!\"&H6621)),\"\",IFERROR(VLOOKUP(TEXT(INDIRECT(\"'\"&F6621&\"'!\"&H6621),\"0\"),Notes!$B$5:$C$100,2,FALSE),\"\"))","v":""},"2a","$S$128","$T$128"]
[25857,{"$f":"Menu!$F$29","v":"X"},{"$f":"Menu!$J$29","v":2020},{"$f":"IF(ISBLANK(INDIRECT(\"'\"&F6622&\"'!\"&G6622)),\"\",INDIRECT(\"'\"&F6622&\"'!\"&G6622))","v":""},{"$f":"IF(ISBLANK(INDIRECT(\"'\"&F6622&\"'!\"&H6622)),\"\",IFERROR(VLOOKUP(TEXT(INDIRECT(\"'\"&F6622&\"'!\"&H6622),\"0\"),Notes!$B$5:$C$100,2,FALSE),\"\"))","v":""},"2d","$K$128","$L$128"]
[25858,{"$f":"Menu!$F$29","v":"X"},{"$f":"Menu!$J$29","v":2020},{"$f":"IF(ISBLANK(INDIRECT(\"'\"&F6623&\"'!\"&G6623)),\"\",INDIRECT(\"'\"&F6623&\"'!\"&G6623))","v":""},{"$f":"IF(ISBLANK(INDIRECT(\"'\"&F6623&\"'!\"&H6623)),\"\",IFERROR(VLOOKUP(TEXT(INDIRECT(\"'\"&F6623&\"'!\"&H6623),\"0\"),Notes!$B$5:$C$100,2,FALSE),\"\"))","v":""},"2d","$O$128","$P$128"]
[25859,{"$f":"Menu!$F$29","v":"X"},{"$f":"Menu!$J$29","v":2020},{"$f":"IF(ISBLANK(INDIRECT(\"'\"&F6624&\"'!\"&G6624)),\"\",INDIRECT(\"'\"&F6624&\"'!\"&G6624))","v":""},{"$f":"IF(ISBLANK(INDIRECT(\"'\"&F6624&\"'!\"&H6624)),\"\",IFERROR(VLOOKUP(TEXT(INDIRECT(\"'\"&F6624&\"'!\"&H6624),\"0\"),Notes!$B$5:$C$100,2,FALSE),\"\"))","v":""},"2d","$M$128","$N$128"]
[25860,{"$f":"Menu!$F$29","v":"X"},{"$f":"Menu!$J$29","v":2020},{"$f":"IF(ISBLANK(INDIRECT(\"'\"&F6625&\"'!\"&G6625)),\"\",INDIRECT(\"'\"&F6625&\"'!\"&G6625))","v":""},{"$f":"IF(ISBLANK(INDIRECT(\"'\"&F6625&\"'!\"&H6625)),\"\",IFERROR(VLOOKUP(TEXT(INDIRECT(\"'\"&F6625&\"'!\"&H6625),\"0\"),Notes!$B$5:$C$100,2,FALSE),\"\"))","v":""},"2d","$Q$128","$R$128"]
[25861,{"$f":"Menu!$F$29","v":"X"},{"$f":"Menu!$J$29","v":2020},{"$f":"IF(ISBLANK(INDIRECT(\"'\"&F6626&\"'!\"&G6626)),\"\",INDIRECT(\"'\"&F6626&\"'!\"&G6626))","v":""},{"$f":"IF(ISBLANK(INDIRECT(\"'\"&F6626&\"'!\"&H6626)),\"\",IFERROR(VLOOKUP(TEXT(INDIRECT(\"'\"&F6626&\"'!\"&H6626),\"0\"),Notes!$B$5:$C$100,2,FALSE),\"\"))","v":""},"2d","$U$128","$V$128"]
[25862,{"$f":"Menu!$F$29","v":"X"},{"$f":"Menu!$J$29","v":2020},{"$f":"IF(ISBLANK(INDIRECT(\"'\"&F6627&\"'!\"&G6627)),\"\",INDIRECT(\"'\"&F6627&\"'!\"&G6627))","v":""},{"$f":"IF(ISBLANK(INDIRECT(\"'\"&F6627&\"'!\"&H6627)),\"\",IFERROR(VLOOKUP(TEXT(INDIRECT(\"'\"&F6627&\"'!\"&H6627),\"0\"),Notes!$B$5:$C$100,2,FALSE),\"\"))","v":""},"2d","$S$128","$T$128"]
[25863,{"$f":"Menu!$F$29","v":"X"},{"$f":"Menu!$J$29","v":2020},{"$f":"IF(ISBLANK(INDIRECT(\"'\"&F6628&\"'!\"&G6628)),\"\",INDIRECT(\"'\"&F6628&\"'!\"&G6628))","v":""},{"$f":"IF(ISBLANK(INDIRECT(\"'\"&F6628&\"'!\"&H6628)),\"\",IFERROR(VLOOKUP(TEXT(INDIRECT(\"'\"&F6628&\"'!\"&H6628),\"0\"),Notes!$B$5:$C$100,2,FALSE),\"\"))","v":""},"2a","$K$128","$L$128"]
[25864,{"$f":"Menu!$F$29","v":"X"},{"$f":"Menu!$J$29","v":2020},{"$f":"IF(ISBLANK(INDIRECT(\"'\"&F6629&\"'!\"&G6629)),\"\",INDIRECT(\"'\"&F6629&\"'!\"&G6629))","v":""},{"$f":"IF(ISBLANK(INDIRECT(\"'\"&F6629&\"'!\"&H6629)),\"\",IFERROR(VLOOKUP(TEXT(INDIRECT(\"'\"&F6629&\"'!\"&H6629),\"0\"),Notes!$B$5:$C$100,2,FALSE),\"\"))","v":""},"2a","$O$128","$P$128"]
[25865,{"$f":"Menu!$F$29","v":"X"},{"$f":"Menu!$J$29","v":2020},{"$f":"IF(ISBLANK(INDIRECT(\"'\"&F6630&\"'!\"&G6630)),\"\",INDIRECT(\"'\"&F6630&\"'!\"&G6630))","v":""},{"$f":"IF(ISBLANK(INDIRECT(\"'\"&F6630&\"'!\"&H6630)),\"\",IFERROR(VLOOKUP(TEXT(INDIRECT(\"'\"&F6630&\"'!\"&H6630),\"0\"),Notes!$B$5:$C$100,2,FALSE),\"\"))","v":""},"2a","$M$128","$N$128"]
[25866,{"$f":"Menu!$F$29","v":"X"},{"$f":"Menu!$J$29","v":2020},{"$f":"IF(ISBLANK(INDIRECT(\"'\"&F6631&\"'!\"&G6631)),\"\",INDIRECT(\"'\"&F6631&\"'!\"&G6631))","v":""},{"$f":"IF(ISBLANK(INDIRECT(\"'\"&F6631&\"'!\"&H6631)),\"\",IFERROR(VLOOKUP(TEXT(INDIRECT(\"'\"&F6631&\"'!\"&H6631),\"0\"),Notes!$B$5:$C$100,2,FALSE),\"\"))","v":""},"2a","$E$128","$F$128"]
[25867,{"$f":"Menu!$F$29","v":"X"},{"$f":"Menu!$J$29","v":2020},{"$f":"IF(ISBLANK(INDIRECT(\"'\"&F6632&\"'!\"&G6632)),\"\",INDIRECT(\"'\"&F6632&\"'!\"&G6632))","v":""},{"$f":"IF(ISBLANK(INDIRECT(\"'\"&F6632&\"'!\"&H6632)),\"\",IFERROR(VLOOKUP(TEXT(INDIRECT(\"'\"&F6632&\"'!\"&H6632),\"0\"),Notes!$B$5:$C$100,2,FALSE),\"\"))","v":""},"2b","$K$129","$L$129"]
[25868,{"$f":"Menu!$F$29","v":"X"},{"$f":"Menu!$J$29","v":2020},{"$f":"IF(ISBLANK(INDIRECT(\"'\"&F6633&\"'!\"&G6633)),\"\",INDIRECT(\"'\"&F6633&\"'!\"&G6633))","v":""},{"$f":"IF(ISBLANK(INDIRECT(\"'\"&F6633&\"'!\"&H6633)),\"\",IFERROR(VLOOKUP(TEXT(INDIRECT(\"'\"&F6633&\"'!\"&H6633),\"0\"),Notes!$B$5:$C$100,2,FALSE),\"\"))","v":""},"2b","$O$129","$P$129"]
[25869,{"$f":"Menu!$F$29","v":"X"},{"$f":"Menu!$J$29","v":2020},{"$f":"IF(ISBLANK(INDIRECT(\"'\"&F6634&\"'!\"&G6634)),\"\",INDIRECT(\"'\"&F6634&\"'!\"&G6634))","v":""},{"$f":"IF(ISBLANK(INDIRECT(\"'\"&F6634&\"'!\"&H6634)),\"\",IFERROR(VLOOKUP(TEXT(INDIRECT(\"'\"&F6634&\"'!\"&H6634),\"0\"),Notes!$B$5:$C$100,2,FALSE),\"\"))","v":""},"2b","$M$129","$N$129"]
[25870,{"$f":"Menu!$F$29","v":"X"},{"$f":"Menu!$J$29","v":2020},{"$f":"IF(ISBLANK(INDIRECT(\"'\"&F6635&\"'!\"&G6635)),\"\",INDIRECT(\"'\"&F6635&\"'!\"&G6635))","v":""},{"$f":"IF(ISBLANK(INDIRECT(\"'\"&F6635&\"'!\"&H6635)),\"\",IFERROR(VLOOKUP(TEXT(INDIRECT(\"'\"&F6635&\"'!\"&H6635),\"0\"),Notes!$B$5:$C$100,2,FALSE),\"\"))","v":""},"2b","$Q$129","$R$129"]
[25871,{"$f":"Menu!$F$29","v":"X"},{"$f":"Menu!$J$29","v":2020},{"$f":"IF(ISBLANK(INDIRECT(\"'\"&F6636&\"'!\"&G6636)),\"\",INDIRECT(\"'\"&F6636&\"'!\"&G6636))","v":""},{"$f":"IF(ISBLANK(INDIRECT(\"'\"&F6636&\"'!\"&H6636)),\"\",IFERROR(VLOOKUP(TEXT(INDIRECT(\"'\"&F6636&\"'!\"&H6636),\"0\"),Notes!$B$5:$C$100,2,FALSE),\"\"))","v":""},"2b","$U$129","$V$129"]
[25872,{"$f":"Menu!$F$29","v":"X"},{"$f":"Menu!$J$29","v":2020},{"$f":"IF(ISBLANK(INDIRECT(\"'\"&F6637&\"'!\"&G6637)),\"\",INDIRECT(\"'\"&F6637&\"'!\"&G6637))","v":""},{"$f":"IF(ISBLANK(INDIRECT(\"'\"&F6637&\"'!\"&H6637)),\"\",IFERROR(VLOOKUP(TEXT(INDIRECT(\"'\"&F6637&\"'!\"&H6637),\"0\"),Notes!$B$5:$C$100,2,FALSE),\"\"))","v":""},"2b","$S$129","$T$129"]
[25876,{"$f":"Menu!$F$29","v":"X"},{"$f":"Menu!$J$29","v":2020},{"$f":"IF(ISBLANK(INDIRECT(\"'\"&F6638&\"'!\"&G6638)),\"\",INDIRECT(\"'\"&F6638&\"'!\"&G6638))","v":""},{"$f":"IF(ISBLANK(INDIRECT(\"'\"&F6638&\"'!\"&H6638)),\"\",IFERROR(VLOOKUP(TEXT(INDIRECT(\"'\"&F6638&\"'!\"&H6638),\"0\"),Notes!$B$5:$C$100,2,FALSE),\"\"))","v":""},"2a","$I$129","$J$129"]
[25877,{"$f":"Menu!$F$29","v":"X"},{"$f":"Menu!$J$29","v":2020},{"$f":"IF(ISBLANK(INDIRECT(\"'\"&F6639&\"'!\"&G6639)),\"\",INDIRECT(\"'\"&F6639&\"'!\"&G6639))","v":""},{"$f":"IF(ISBLANK(INDIRECT(\"'\"&F6639&\"'!\"&H6639)),\"\",IFERROR(VLOOKUP(TEXT(INDIRECT(\"'\"&F6639&\"'!\"&H6639),\"0\"),Notes!$B$5:$C$100,2,FALSE),\"\"))","v":""},"2c","$E$129","$F$129"]
[25878,{"$f":"Menu!$F$29","v":"X"},{"$f":"Menu!$J$29","v":2020},{"$f":"IF(ISBLANK(INDIRECT(\"'\"&F6640&\"'!\"&G6640)),\"\",INDIRECT(\"'\"&F6640&\"'!\"&G6640))","v":""},{"$f":"IF(ISBLANK(INDIRECT(\"'\"&F6640&\"'!\"&H6640)),\"\",IFERROR(VLOOKUP(TEXT(INDIRECT(\"'\"&F6640&\"'!\"&H6640),\"0\"),Notes!$B$5:$C$100,2,FALSE),\"\"))","v":""},"2c","$I$129","$J$129"]
[25879,{"$f":"Menu!$F$29","v":"X"},{"$f":"Menu!$J$29","v":2020},{"$f":"IF(ISBLANK(INDIRECT(\"'\"&F6641&\"'!\"&G6641)),\"\",INDIRECT(\"'\"&F6641&\"'!\"&G6641))","v":""},{"$f":"IF(ISBLANK(INDIRECT(\"'\"&F6641&\"'!\"&H6641)),\"\",IFERROR(VLOOKUP(TEXT(INDIRECT(\"'\"&F6641&\"'!\"&H6641),\"0\"),Notes!$B$5:$C$100,2,FALSE),\"\"))","v":""},"2c","$G$129","$H$129"]
[25883,{"$f":"Menu!$F$29","v":"X"},{"$f":"Menu!$J$29","v":2020},{"$f":"IF(ISBLANK(INDIRECT(\"'\"&F6642&\"'!\"&G6642)),\"\",INDIRECT(\"'\"&F6642&\"'!\"&G6642))","v":""},{"$f":"IF(ISBLANK(INDIRECT(\"'\"&F6642&\"'!\"&H6642)),\"\",IFERROR(VLOOKUP(TEXT(INDIRECT(\"'\"&F6642&\"'!\"&H6642),\"0\"),Notes!$B$5:$C$100,2,FALSE),\"\"))","v":""},"2c","$K$129","$L$129"]
[25884,{"$f":"Menu!$F$29","v":"X"},{"$f":"Menu!$J$29","v":2020},{"$f":"IF(ISBLANK(INDIRECT(\"'\"&F6643&\"'!\"&G6643)),\"\",INDIRECT(\"'\"&F6643&\"'!\"&G6643))","v":""},{"$f":"IF(ISBLANK(INDIRECT(\"'\"&F6643&\"'!\"&H6643)),\"\",IFERROR(VLOOKUP(TEXT(INDIRECT(\"'\"&F6643&\"'!\"&H6643),\"0\"),Notes!$B$5:$C$100,2,FALSE),\"\"))","v":""},"2c","$O$129","$P$129"]
[25885,{"$f":"Menu!$F$29","v":"X"},{"$f":"Menu!$J$29","v":2020},{"$f":"IF(ISBLANK(INDIRECT(\"'\"&F6644&\"'!\"&G6644)),\"\",INDIRECT(\"'\"&F6644&\"'!\"&G6644))","v":""},{"$f":"IF(ISBLANK(INDIRECT(\"'\"&F6644&\"'!\"&H6644)),\"\",IFERROR(VLOOKUP(TEXT(INDIRECT(\"'\"&F6644&\"'!\"&H6644),\"0\"),Notes!$B$5:$C$100,2,FALSE),\"\"))","v":""},"2c","$M$129","$N$129"]
[25886,{"$f":"Menu!$F$29","v":"X"},{"$f":"Menu!$J$29","v":2020},{"$f":"IF(ISBLANK(INDIRECT(\"'\"&F6645&\"'!\"&G6645)),\"\",INDIRECT(\"'\"&F6645&\"'!\"&G6645))","v":""},{"$f":"IF(ISBLANK(INDIRECT(\"'\"&F6645&\"'!\"&H6645)),\"\",IFERROR(VLOOKUP(TEXT(INDIRECT(\"'\"&F6645&\"'!\"&H6645),\"0\"),Notes!$B$5:$C$100,2,FALSE),\"\"))","v":""},"2c","$Q$129","$R$129"]
[25887,{"$f":"Menu!$F$29","v":"X"},{"$f":"Menu!$J$29","v":2020},{"$f":"IF(ISBLANK(INDIRECT(\"'\"&F6646&\"'!\"&G6646)),\"\",INDIRECT(\"'\"&F6646&\"'!\"&G6646))","v":""},{"$f":"IF(ISBLANK(INDIRECT(\"'\"&F6646&\"'!\"&H6646)),\"\",IFERROR(VLOOKUP(TEXT(INDIRECT(\"'\"&F6646&\"'!\"&H6646),\"0\"),Notes!$B$5:$C$100,2,FALSE),\"\"))","v":""},"2c","$U$129","$V$129"]
[25888,{"$f":"Menu!$F$29","v":"X"},{"$f":"Menu!$J$29","v":2020},{"$f":"IF(ISBLANK(INDIRECT(\"'\"&F6647&\"'!\"&G6647)),\"\",INDIRECT(\"'\"&F6647&\"'!\"&G6647))","v":""},{"$f":"IF(ISBLANK(INDIRECT(\"'\"&F6647&\"'!\"&H6647)),\"\",IFERROR(VLOOKUP(TEXT(INDIRECT(\"'\"&F6647&\"'!\"&H6647),\"0\"),Notes!$B$5:$C$100,2,FALSE),\"\"))","v":""},"2c","$S$129","$T$129"]
[25889,{"$f":"Menu!$F$29","v":"X"},{"$f":"Menu!$J$29","v":2020},{"$f":"IF(ISBLANK(INDIRECT(\"'\"&F6648&\"'!\"&G6648)),\"\",INDIRECT(\"'\"&F6648&\"'!\"&G6648))","v":""},{"$f":"IF(ISBLANK(INDIRECT(\"'\"&F6648&\"'!\"&H6648)),\"\",IFERROR(VLOOKUP(TEXT(INDIRECT(\"'\"&F6648&\"'!\"&H6648),\"0\"),Notes!$B$5:$C$100,2,FALSE),\"\"))","v":""},"2c","$W$129","$X$129"]
[25890,{"$f":"Menu!$F$29","v":"X"},{"$f":"Menu!$J$29","v":2020},{"$f":"IF(ISBLANK(INDIRECT(\"'\"&F6649&\"'!\"&G6649)),\"\",INDIRECT(\"'\"&F6649&\"'!\"&G6649))","v":""},{"$f":"IF(ISBLANK(INDIRECT(\"'\"&F6649&\"'!\"&H6649)),\"\",IFERROR(VLOOKUP(TEXT(INDIRECT(\"'\"&F6649&\"'!\"&H6649),\"0\"),Notes!$B$5:$C$100,2,FALSE),\"\"))","v":""},"2c","$AA$129","$AB$129"]
[25891,{"$f":"Menu!$F$29","v":"X"},{"$f":"Menu!$J$29","v":2020},{"$f":"IF(ISBLANK(INDIRECT(\"'\"&F6650&\"'!\"&G6650)),\"\",INDIRECT(\"'\"&F6650&\"'!\"&G6650))","v":""},{"$f":"IF(ISBLANK(INDIRECT(\"'\"&F6650&\"'!\"&H6650)),\"\",IFERROR(VLOOKUP(TEXT(INDIRECT(\"'\"&F6650&\"'!\"&H6650),\"0\"),Notes!$B$5:$C$100,2,FALSE),\"\"))","v":""},"2c","$Y$129","$Z$129"]
[25898,{"$f":"Menu!$F$29","v":"X"},{"$f":"Menu!$J$29","v":2020},{"$f":"IF(ISBLANK(INDIRECT(\"'\"&F6651&\"'!\"&G6651)),\"\",INDIRECT(\"'\"&F6651&\"'!\"&G6651))","v":""},{"$f":"IF(ISBLANK(INDIRECT(\"'\"&F6651&\"'!\"&H6651)),\"\",IFERROR(VLOOKUP(TEXT(INDIRECT(\"'\"&F6651&\"'!\"&H6651),\"0\"),Notes!$B$5:$C$100,2,FALSE),\"\"))","v":""},"2e","$BG$130","$BH$130"]
[25899,{"$f":"Menu!$F$29","v":"X"},{"$f":"Menu!$J$29","v":2020},{"$f":"IF(ISBLANK(INDIRECT(\"'\"&F6652&\"'!\"&G6652)),\"\",INDIRECT(\"'\"&F6652&\"'!\"&G6652))","v":""},{"$f":"IF(ISBLANK(INDIRECT(\"'\"&F6652&\"'!\"&H6652)),\"\",IFERROR(VLOOKUP(TEXT(INDIRECT(\"'\"&F6652&\"'!\"&H6652),\"0\"),Notes!$B$5:$C$100,2,FALSE),\"\"))","v":""},"2e","$BK$130","$BL$130"]
[25900,{"$f":"Menu!$F$29","v":"X"},{"$f":"Menu!$J$29","v":2020},{"$f":"IF(ISBLANK(INDIRECT(\"'\"&F6653&\"'!\"&G6653)),\"\",INDIRECT(\"'\"&F6653&\"'!\"&G6653))","v":""},{"$f":"IF(ISBLANK(INDIRECT(\"'\"&F6653&\"'!\"&H6653)),\"\",IFERROR(VLOOKUP(TEXT(INDIRECT(\"'\"&F6653&\"'!\"&H6653),\"0\"),Notes!$B$5:$C$100,2,FALSE),\"\"))","v":""},"2e","$BI$130","$BJ$130"]
[25901,{"$f":"Menu!$F$29","v":"X"},{"$f":"Menu!$J$29","v":2020},{"$f":"IF(ISBLANK(INDIRECT(\"'\"&F6654&\"'!\"&G6654)),\"\",INDIRECT(\"'\"&F6654&\"'!\"&G6654))","v":""},{"$f":"IF(ISBLANK(INDIRECT(\"'\"&F6654&\"'!\"&H6654)),\"\",IFERROR(VLOOKUP(TEXT(INDIRECT(\"'\"&F6654&\"'!\"&H6654),\"0\"),Notes!$B$5:$C$100,2,FALSE),\"\"))","v":""},"2e","$E$130","$F$130"]
[25902,{"$f":"Menu!$F$29","v":"X"},{"$f":"Menu!$J$29","v":2020},{"$f":"IF(ISBLANK(INDIRECT(\"'\"&F6655&\"'!\"&G6655)),\"\",INDIRECT(\"'\"&F6655&\"'!\"&G6655))","v":""},{"$f":"IF(ISBLANK(INDIRECT(\"'\"&F6655&\"'!\"&H6655)),\"\",IFERROR(VLOOKUP(TEXT(INDIRECT(\"'\"&F6655&\"'!\"&H6655),\"0\"),Notes!$B$5:$C$100,2,FALSE),\"\"))","v":""},"2e","$I$130","$J$130"]
[25903,{"$f":"Menu!$F$29","v":"X"},{"$f":"Menu!$J$29","v":2020},{"$f":"IF(ISBLANK(INDIRECT(\"'\"&F6656&\"'!\"&G6656)),\"\",INDIRECT(\"'\"&F6656&\"'!\"&G6656))","v":""},{"$f":"IF(ISBLANK(INDIRECT(\"'\"&F6656&\"'!\"&H6656)),\"\",IFERROR(VLOOKUP(TEXT(INDIRECT(\"'\"&F6656&\"'!\"&H6656),\"0\"),Notes!$B$5:$C$100,2,FALSE),\"\"))","v":""},"2e","$G$130","$H$130"]
[25904,{"$f":"Menu!$F$29","v":"X"},{"$f":"Menu!$J$29","v":2020},{"$f":"IF(ISBLANK(INDIRECT(\"'\"&F6657&\"'!\"&G6657)),\"\",INDIRECT(\"'\"&F6657&\"'!\"&G6657))","v":""},{"$f":"IF(ISBLANK(INDIRECT(\"'\"&F6657&\"'!\"&H6657)),\"\",IFERROR(VLOOKUP(TEXT(INDIRECT(\"'\"&F6657&\"'!\"&H6657),\"0\"),Notes!$B$5:$C$100,2,FALSE),\"\"))","v":""},"2e","$K$130","$L$130"]
[25905,{"$f":"Menu!$F$29","v":"X"},{"$f":"Menu!$J$29","v":2020},{"$f":"IF(ISBLANK(INDIRECT(\"'\"&F6658&\"'!\"&G6658)),\"\",INDIRECT(\"'\"&F6658&\"'!\"&G6658))","v":""},{"$f":"IF(ISBLANK(INDIRECT(\"'\"&F6658&\"'!\"&H6658)),\"\",IFERROR(VLOOKUP(TEXT(INDIRECT(\"'\"&F6658&\"'!\"&H6658),\"0\"),Notes!$B$5:$C$100,2,FALSE),\"\"))","v":""},"2e","$O$130",{"$f":"IF(LEN(TRIM(MID(G6658,4,10)))-LEN(SUBSTITUTE(TRIM(MID(G6658,4,10)),\"$\",\"\"))=0,\"$\"&CHAR(CODE(MID(G6658,2,1))+1)&\"$\"&TRIM(MID(G6658,4,10)),\"$\"&MID(G6658,2,1)&CHAR(CODE(MID(G6658,3,1))+1)&\"$\"&TRIM(MID(G6658,5,11)))","v":"$P$130"}]
[25906,{"$f":"Menu!$F$29","v":"X"},{"$f":"Menu!$J$29","v":2020},{"$f":"IF(ISBLANK(INDIRECT(\"'\"&F6659&\"'!\"&G6659)),\"\",INDIRECT(\"'\"&F6659&\"'!\"&G6659))","v":""},{"$f":"IF(ISBLANK(INDIRECT(\"'\"&F6659&\"'!\"&H6659)),\"\",IFERROR(VLOOKUP(TEXT(INDIRECT(\"'\"&F6659&\"'!\"&H6659),\"0\"),Notes!$B$5:$C$100,2,FALSE),\"\"))","v":""},"2e","$M$130","$N$130"]
[25907,{"$f":"Menu!$F$29","v":"X"},{"$f":"Menu!$J$29","v":2020},{"$f":"IF(ISBLANK(INDIRECT(\"'\"&F6660&\"'!\"&G6660)),\"\",INDIRECT(\"'\"&F6660&\"'!\"&G6660))","v":""},{"$f":"IF(ISBLANK(INDIRECT(\"'\"&F6660&\"'!\"&H6660)),\"\",IFERROR(VLOOKUP(TEXT(INDIRECT(\"'\"&F6660&\"'!\"&H6660),\"0\"),Notes!$B$5:$C$100,2,FALSE),\"\"))","v":""},"2e","$Q$130","$R$130"]
[25908,{"$f":"Menu!$F$29","v":"X"},{"$f":"Menu!$J$29","v":2020},{"$f":"IF(ISBLANK(INDIRECT(\"'\"&F6661&\"'!\"&G6661)),\"\",INDIRECT(\"'\"&F6661&\"'!\"&G6661))","v":""},{"$f":"IF(ISBLANK(INDIRECT(\"'\"&F6661&\"'!\"&H6661)),\"\",IFERROR(VLOOKUP(TEXT(INDIRECT(\"'\"&F6661&\"'!\"&H6661),\"0\"),Notes!$B$5:$C$100,2,FALSE),\"\"))","v":""},"2e","$U$130","$V$130"]
[25909,{"$f":"Menu!$F$29","v":"X"},{"$f":"Menu!$J$29","v":2020},{"$f":"IF(ISBLANK(INDIRECT(\"'\"&F6662&\"'!\"&G6662)),\"\",INDIRECT(\"'\"&F6662&\"'!\"&G6662))","v":""},{"$f":"IF(ISBLANK(INDIRECT(\"'\"&F6662&\"'!\"&H6662)),\"\",IFERROR(VLOOKUP(TEXT(INDIRECT(\"'\"&F6662&\"'!\"&H6662),\"0\"),Notes!$B$5:$C$100,2,FALSE),\"\"))","v":""},"2e","$S$130","$T$130"]
[25910,{"$f":"Menu!$F$29","v":"X"},{"$f":"Menu!$J$29","v":2020},{"$f":"IF(ISBLANK(INDIRECT(\"'\"&F6663&\"'!\"&G6663)),\"\",INDIRECT(\"'\"&F6663&\"'!\"&G6663))","v":""},{"$f":"IF(ISBLANK(INDIRECT(\"'\"&F6663&\"'!\"&H6663)),\"\",IFERROR(VLOOKUP(TEXT(INDIRECT(\"'\"&F6663&\"'!\"&H6663),\"0\"),Notes!$B$5:$C$100,2,FALSE),\"\"))","v":""},"2e","$W$130","$X$130"]
[25911,{"$f":"Menu!$F$29","v":"X"},{"$f":"Menu!$J$29","v":2020},{"$f":"IF(ISBLANK(INDIRECT(\"'\"&F6664&\"'!\"&G6664)),\"\",INDIRECT(\"'\"&F6664&\"'!\"&G6664))","v":""},{"$f":"IF(ISBLANK(INDIRECT(\"'\"&F6664&\"'!\"&H6664)),\"\",IFERROR(VLOOKUP(TEXT(INDIRECT(\"'\"&F6664&\"'!\"&H6664),\"0\"),Notes!$B$5:$C$100,2,FALSE),\"\"))","v":""},"2e","$AA$130","$AB$130"]
[25912,{"$f":"Menu!$F$29","v":"X"},{"$f":"Menu!$J$29","v":2020},{"$f":"IF(ISBLANK(INDIRECT(\"'\"&F6665&\"'!\"&G6665)),\"\",INDIRECT(\"'\"&F6665&\"'!\"&G6665))","v":""},{"$f":"IF(ISBLANK(INDIRECT(\"'\"&F6665&\"'!\"&H6665)),\"\",IFERROR(VLOOKUP(TEXT(INDIRECT(\"'\"&F6665&\"'!\"&H6665),\"0\"),Notes!$B$5:$C$100,2,FALSE),\"\"))","v":""},"2e","$Y$130","$Z$130"]
[25913,{"$f":"Menu!$F$29","v":"X"},{"$f":"Menu!$J$29","v":2020},{"$f":"IF(ISBLANK(INDIRECT(\"'\"&F6666&\"'!\"&G6666)),\"\",INDIRECT(\"'\"&F6666&\"'!\"&G6666))","v":""},{"$f":"IF(ISBLANK(INDIRECT(\"'\"&F6666&\"'!\"&H6666)),\"\",IFERROR(VLOOKUP(TEXT(INDIRECT(\"'\"&F6666&\"'!\"&H6666),\"0\"),Notes!$B$5:$C$100,2,FALSE),\"\"))","v":""},"2e","$AC$130","$AD$130"]
[25914,{"$f":"Menu!$F$29","v":"X"},{"$f":"Menu!$J$29","v":2020},{"$f":"IF(ISBLANK(INDIRECT(\"'\"&F6667&\"'!\"&G6667)),\"\",INDIRECT(\"'\"&F6667&\"'!\"&G6667))","v":""},{"$f":"IF(ISBLANK(INDIRECT(\"'\"&F6667&\"'!\"&H6667)),\"\",IFERROR(VLOOKUP(TEXT(INDIRECT(\"'\"&F6667&\"'!\"&H6667),\"0\"),Notes!$B$5:$C$100,2,FALSE),\"\"))","v":""},"2e","$AG$130","$AH$130"]
[25915,{"$f":"Menu!$F$29","v":"X"},{"$f":"Menu!$J$29","v":2020},{"$f":"IF(ISBLANK(INDIRECT(\"'\"&F6668&\"'!\"&G6668)),\"\",INDIRECT(\"'\"&F6668&\"'!\"&G6668))","v":""},{"$f":"IF(ISBLANK(INDIRECT(\"'\"&F6668&\"'!\"&H6668)),\"\",IFERROR(VLOOKUP(TEXT(INDIRECT(\"'\"&F6668&\"'!\"&H6668),\"0\"),Notes!$B$5:$C$100,2,FALSE),\"\"))","v":""},"2e","$AE$130","$AF$130"]
[25916,{"$f":"Menu!$F$29","v":"X"},{"$f":"Menu!$J$29","v":2020},{"$f":"IF(ISBLANK(INDIRECT(\"'\"&F6669&\"'!\"&G6669)),\"\",INDIRECT(\"'\"&F6669&\"'!\"&G6669))","v":""},{"$f":"IF(ISBLANK(INDIRECT(\"'\"&F6669&\"'!\"&H6669)),\"\",IFERROR(VLOOKUP(TEXT(INDIRECT(\"'\"&F6669&\"'!\"&H6669),\"0\"),Notes!$B$5:$C$100,2,FALSE),\"\"))","v":""},"2e","$AI$130","$AJ$130"]
[25917,{"$f":"Menu!$F$29","v":"X"},{"$f":"Menu!$J$29","v":2020},{"$f":"IF(ISBLANK(INDIRECT(\"'\"&F6670&\"'!\"&G6670)),\"\",INDIRECT(\"'\"&F6670&\"'!\"&G6670))","v":""},{"$f":"IF(ISBLANK(INDIRECT(\"'\"&F6670&\"'!\"&H6670)),\"\",IFERROR(VLOOKUP(TEXT(INDIRECT(\"'\"&F6670&\"'!\"&H6670),\"0\"),Notes!$B$5:$C$100,2,FALSE),\"\"))","v":""},"2e","$AM$130","$AN$130"]
[25918,{"$f":"Menu!$F$29","v":"X"},{"$f":"Menu!$J$29","v":2020},{"$f":"IF(ISBLANK(INDIRECT(\"'\"&F6671&\"'!\"&G6671)),\"\",INDIRECT(\"'\"&F6671&\"'!\"&G6671))","v":""},{"$f":"IF(ISBLANK(INDIRECT(\"'\"&F6671&\"'!\"&H6671)),\"\",IFERROR(VLOOKUP(TEXT(INDIRECT(\"'\"&F6671&\"'!\"&H6671),\"0\"),Notes!$B$5:$C$100,2,FALSE),\"\"))","v":""},"2e","$AK$130","$AL$130"]
[25919,{"$f":"Menu!$F$29","v":"X"},{"$f":"Menu!$J$29","v":2020},{"$f":"IF(ISBLANK(INDIRECT(\"'\"&F6672&\"'!\"&G6672)),\"\",INDIRECT(\"'\"&F6672&\"'!\"&G6672))","v":""},{"$f":"IF(ISBLANK(INDIRECT(\"'\"&F6672&\"'!\"&H6672)),\"\",IFERROR(VLOOKUP(TEXT(INDIRECT(\"'\"&F6672&\"'!\"&H6672),\"0\"),Notes!$B$5:$C$100,2,FALSE),\"\"))","v":""},"2e","$AO$130","$AP$130"]
[25920,{"$f":"Menu!$F$29","v":"X"},{"$f":"Menu!$J$29","v":2020},{"$f":"IF(ISBLANK(INDIRECT(\"'\"&F6673&\"'!\"&G6673)),\"\",INDIRECT(\"'\"&F6673&\"'!\"&G6673))","v":""},{"$f":"IF(ISBLANK(INDIRECT(\"'\"&F6673&\"'!\"&H6673)),\"\",IFERROR(VLOOKUP(TEXT(INDIRECT(\"'\"&F6673&\"'!\"&H6673),\"0\"),Notes!$B$5:$C$100,2,FALSE),\"\"))","v":""},"2e","$AS$130","$AT$130"]
[25921,{"$f":"Menu!$F$29","v":"X"},{"$f":"Menu!$J$29","v":2020},{"$f":"IF(ISBLANK(INDIRECT(\"'\"&F6674&\"'!\"&G6674)),\"\",INDIRECT(\"'\"&F6674&\"'!\"&G6674))","v":""},{"$f":"IF(ISBLANK(INDIRECT(\"'\"&F6674&\"'!\"&H6674)),\"\",IFERROR(VLOOKUP(TEXT(INDIRECT(\"'\"&F6674&\"'!\"&H6674),\"0\"),Notes!$B$5:$C$100,2,FALSE),\"\"))","v":""},"2e","$AQ$130","$AR$130"]
[25922,{"$f":"Menu!$F$29","v":"X"},{"$f":"Menu!$J$29","v":2020},{"$f":"IF(ISBLANK(INDIRECT(\"'\"&F6675&\"'!\"&G6675)),\"\",INDIRECT(\"'\"&F6675&\"'!\"&G6675))","v":""},{"$f":"IF(ISBLANK(INDIRECT(\"'\"&F6675&\"'!\"&H6675)),\"\",IFERROR(VLOOKUP(TEXT(INDIRECT(\"'\"&F6675&\"'!\"&H6675),\"0\"),Notes!$B$5:$C$100,2,FALSE),\"\"))","v":""},"2e","$AU$130","$AV$130"]
[25923,{"$f":"Menu!$F$29","v":"X"},{"$f":"Menu!$J$29","v":2020},{"$f":"IF(ISBLANK(INDIRECT(\"'\"&F6676&\"'!\"&G6676)),\"\",INDIRECT(\"'\"&F6676&\"'!\"&G6676))","v":""},{"$f":"IF(ISBLANK(INDIRECT(\"'\"&F6676&\"'!\"&H6676)),\"\",IFERROR(VLOOKUP(TEXT(INDIRECT(\"'\"&F6676&\"'!\"&H6676),\"0\"),Notes!$B$5:$C$100,2,FALSE),\"\"))","v":""},"2e","$AY$130","$AZ$130"]
[25924,{"$f":"Menu!$F$29","v":"X"},{"$f":"Menu!$J$29","v":2020},{"$f":"IF(ISBLANK(INDIRECT(\"'\"&F6677&\"'!\"&G6677)),\"\",INDIRECT(\"'\"&F6677&\"'!\"&G6677))","v":""},{"$f":"IF(ISBLANK(INDIRECT(\"'\"&F6677&\"'!\"&H6677)),\"\",IFERROR(VLOOKUP(TEXT(INDIRECT(\"'\"&F6677&\"'!\"&H6677),\"0\"),Notes!$B$5:$C$100,2,FALSE),\"\"))","v":""},"2e","$AW$130","$AX$130"]
[25925,{"$f":"Menu!$F$29","v":"X"},{"$f":"Menu!$J$29","v":2020},{"$f":"IF(ISBLANK(INDIRECT(\"'\"&F6678&\"'!\"&G6678)),\"\",INDIRECT(\"'\"&F6678&\"'!\"&G6678))","v":""},{"$f":"IF(ISBLANK(INDIRECT(\"'\"&F6678&\"'!\"&H6678)),\"\",IFERROR(VLOOKUP(TEXT(INDIRECT(\"'\"&F6678&\"'!\"&H6678),\"0\"),Notes!$B$5:$C$100,2,FALSE),\"\"))","v":""},"2e","$BA$130","$BB$130"]
[25926,{"$f":"Menu!$F$29","v":"X"},{"$f":"Menu!$J$29","v":2020},{"$f":"IF(ISBLANK(INDIRECT(\"'\"&F6679&\"'!\"&G6679)),\"\",INDIRECT(\"'\"&F6679&\"'!\"&G6679))","v":""},{"$f":"IF(ISBLANK(INDIRECT(\"'\"&F6679&\"'!\"&H6679)),\"\",IFERROR(VLOOKUP(TEXT(INDIRECT(\"'\"&F6679&\"'!\"&H6679),\"0\"),Notes!$B$5:$C$100,2,FALSE),\"\"))","v":""},"2e","$BE$130","$BF$130"]
[25927,{"$f":"Menu!$F$29","v":"X"},{"$f":"Menu!$J$29","v":2020},{"$f":"IF(ISBLANK(INDIRECT(\"'\"&F6680&\"'!\"&G6680)),\"\",INDIRECT(\"'\"&F6680&\"'!\"&G6680))","v":""},{"$f":"IF(ISBLANK(INDIRECT(\"'\"&F6680&\"'!\"&H6680)),\"\",IFERROR(VLOOKUP(TEXT(INDIRECT(\"'\"&F6680&\"'!\"&H6680),\"0\"),Notes!$B$5:$C$100,2,FALSE),\"\"))","v":""},"2e","$BC$130","$BD$130"]
[25928,{"$f":"Menu!$F$29","v":"X"},{"$f":"Menu!$J$29","v":2020},{"$f":"IF(ISBLANK(INDIRECT(\"'\"&F6681&\"'!\"&G6681)),\"\",INDIRECT(\"'\"&F6681&\"'!\"&G6681))","v":""},{"$f":"IF(ISBLANK(INDIRECT(\"'\"&F6681&\"'!\"&H6681)),\"\",IFERROR(VLOOKUP(TEXT(INDIRECT(\"'\"&F6681&\"'!\"&H6681),\"0\"),Notes!$B$5:$C$100,2,FALSE),\"\"))","v":""},"2b","$E$129","$F$129"]
[25929,{"$f":"Menu!$F$29","v":"X"},{"$f":"Menu!$J$29","v":2020},{"$f":"IF(ISBLANK(INDIRECT(\"'\"&F6682&\"'!\"&G6682)),\"\",INDIRECT(\"'\"&F6682&\"'!\"&G6682))","v":""},{"$f":"IF(ISBLANK(INDIRECT(\"'\"&F6682&\"'!\"&H6682)),\"\",IFERROR(VLOOKUP(TEXT(INDIRECT(\"'\"&F6682&\"'!\"&H6682),\"0\"),Notes!$B$5:$C$100,2,FALSE),\"\"))","v":""},"2b","$I$129","$J$129"]
[25930,{"$f":"Menu!$F$29","v":"X"},{"$f":"Menu!$J$29","v":2020},{"$f":"IF(ISBLANK(INDIRECT(\"'\"&F6683&\"'!\"&G6683)),\"\",INDIRECT(\"'\"&F6683&\"'!\"&G6683))","v":""},{"$f":"IF(ISBLANK(INDIRECT(\"'\"&F6683&\"'!\"&H6683)),\"\",IFERROR(VLOOKUP(TEXT(INDIRECT(\"'\"&F6683&\"'!\"&H6683),\"0\"),Notes!$B$5:$C$100,2,FALSE),\"\"))","v":""},"2b","$G$129","$H$129"]
[25931,{"$f":"Menu!$F$29","v":"X"},{"$f":"Menu!$J$29","v":2020},{"$f":"IF(ISBLANK(INDIRECT(\"'\"&F6684&\"'!\"&G6684)),\"\",INDIRECT(\"'\"&F6684&\"'!\"&G6684))","v":""},{"$f":"IF(ISBLANK(INDIRECT(\"'\"&F6684&\"'!\"&H6684)),\"\",IFERROR(VLOOKUP(TEXT(INDIRECT(\"'\"&F6684&\"'!\"&H6684),\"0\"),Notes!$B$5:$C$100,2,FALSE),\"\"))","v":""},"2a","$G$129","$H$129"]
[25932,{"$f":"Menu!$F$29","v":"X"},{"$f":"Menu!$J$29","v":2020},{"$f":"IF(ISBLANK(INDIRECT(\"'\"&F6685&\"'!\"&G6685)),\"\",INDIRECT(\"'\"&F6685&\"'!\"&G6685))","v":""},{"$f":"IF(ISBLANK(INDIRECT(\"'\"&F6685&\"'!\"&H6685)),\"\",IFERROR(VLOOKUP(TEXT(INDIRECT(\"'\"&F6685&\"'!\"&H6685),\"0\"),Notes!$B$5:$C$100,2,FALSE),\"\"))","v":""},"2b","$W$129","$X$129"]
[25933,{"$f":"Menu!$F$29","v":"X"},{"$f":"Menu!$J$29","v":2020},{"$f":"IF(ISBLANK(INDIRECT(\"'\"&F6686&\"'!\"&G6686)),\"\",INDIRECT(\"'\"&F6686&\"'!\"&G6686))","v":""},{"$f":"IF(ISBLANK(INDIRECT(\"'\"&F6686&\"'!\"&H6686)),\"\",IFERROR(VLOOKUP(TEXT(INDIRECT(\"'\"&F6686&\"'!\"&H6686),\"0\"),Notes!$B$5:$C$100,2,FALSE),\"\"))","v":""},"2b","$AA$129","$AB$129"]
[25934,{"$f":"Menu!$F$29","v":"X"},{"$f":"Menu!$J$29","v":2020},{"$f":"IF(ISBLANK(INDIRECT(\"'\"&F6687&\"'!\"&G6687)),\"\",INDIRECT(\"'\"&F6687&\"'!\"&G6687))","v":""},{"$f":"IF(ISBLANK(INDIRECT(\"'\"&F6687&\"'!\"&H6687)),\"\",IFERROR(VLOOKUP(TEXT(INDIRECT(\"'\"&F6687&\"'!\"&H6687),\"0\"),Notes!$B$5:$C$100,2,FALSE),\"\"))","v":""},"2b","$Y$129","$Z$129"]
[25935,{"$f":"Menu!$F$29","v":"X"},{"$f":"Menu!$J$29","v":2020},{"$f":"IF(ISBLANK(INDIRECT(\"'\"&F6688&\"'!\"&G6688)),\"\",INDIRECT(\"'\"&F6688&\"'!\"&G6688))","v":""},{"$f":"IF(ISBLANK(INDIRECT(\"'\"&F6688&\"'!\"&H6688)),\"\",IFERROR(VLOOKUP(TEXT(INDIRECT(\"'\"&F6688&\"'!\"&H6688),\"0\"),Notes!$B$5:$C$100,2,FALSE),\"\"))","v":""},"2d","$AC$129","$AD$129"]
[25936,{"$f":"Menu!$F$29","v":"X"},{"$f":"Menu!$J$29","v":2020},{"$f":"IF(ISBLANK(INDIRECT(\"'\"&F6689&\"'!\"&G6689)),\"\",INDIRECT(\"'\"&F6689&\"'!\"&G6689))","v":""},{"$f":"IF(ISBLANK(INDIRECT(\"'\"&F6689&\"'!\"&H6689)),\"\",IFERROR(VLOOKUP(TEXT(INDIRECT(\"'\"&F6689&\"'!\"&H6689),\"0\"),Notes!$B$5:$C$100,2,FALSE),\"\"))","v":""},"2d","$AG$129","$AH$129"]
[25937,{"$f":"Menu!$F$29","v":"X"},{"$f":"Menu!$J$29","v":2020},{"$f":"IF(ISBLANK(INDIRECT(\"'\"&F6690&\"'!\"&G6690)),\"\",INDIRECT(\"'\"&F6690&\"'!\"&G6690))","v":""},{"$f":"IF(ISBLANK(INDIRECT(\"'\"&F6690&\"'!\"&H6690)),\"\",IFERROR(VLOOKUP(TEXT(INDIRECT(\"'\"&F6690&\"'!\"&H6690),\"0\"),Notes!$B$5:$C$100,2,FALSE),\"\"))","v":""},"2d","$AE$129","$AF$129"]
[25938,{"$f":"Menu!$F$29","v":"X"},{"$f":"Menu!$J$29","v":2020},{"$f":"IF(ISBLANK(INDIRECT(\"'\"&F6691&\"'!\"&G6691)),\"\",INDIRECT(\"'\"&F6691&\"'!\"&G6691))","v":""},{"$f":"IF(ISBLANK(INDIRECT(\"'\"&F6691&\"'!\"&H6691)),\"\",IFERROR(VLOOKUP(TEXT(INDIRECT(\"'\"&F6691&\"'!\"&H6691),\"0\"),Notes!$B$5:$C$100,2,FALSE),\"\"))","v":""},"2d","$W$129","$X$129"]
[25939,{"$f":"Menu!$F$29","v":"X"},{"$f":"Menu!$J$29","v":2020},{"$f":"IF(ISBLANK(INDIRECT(\"'\"&F6692&\"'!\"&G6692)),\"\",INDIRECT(\"'\"&F6692&\"'!\"&G6692))","v":""},{"$f":"IF(ISBLANK(INDIRECT(\"'\"&F6692&\"'!\"&H6692)),\"\",IFERROR(VLOOKUP(TEXT(INDIRECT(\"'\"&F6692&\"'!\"&H6692),\"0\"),Notes!$B$5:$C$100,2,FALSE),\"\"))","v":""},"2d","$AA$129","$AB$129"]
[25940,{"$f":"Menu!$F$29","v":"X"},{"$f":"Menu!$J$29","v":2020},{"$f":"IF(ISBLANK(INDIRECT(\"'\"&F6693&\"'!\"&G6693)),\"\",INDIRECT(\"'\"&F6693&\"'!\"&G6693))","v":""},{"$f":"IF(ISBLANK(INDIRECT(\"'\"&F6693&\"'!\"&H6693)),\"\",IFERROR(VLOOKUP(TEXT(INDIRECT(\"'\"&F6693&\"'!\"&H6693),\"0\"),Notes!$B$5:$C$100,2,FALSE),\"\"))","v":""},"2d","$Y$129","$Z$129"]
[25941,{"$f":"Menu!$F$29","v":"X"},{"$f":"Menu!$J$29","v":2020},{"$f":"IF(ISBLANK(INDIRECT(\"'\"&F6694&\"'!\"&G6694)),\"\",INDIRECT(\"'\"&F6694&\"'!\"&G6694))","v":""},{"$f":"IF(ISBLANK(INDIRECT(\"'\"&F6694&\"'!\"&H6694)),\"\",IFERROR(VLOOKUP(TEXT(INDIRECT(\"'\"&F6694&\"'!\"&H6694),\"0\"),Notes!$B$5:$C$100,2,FALSE),\"\"))","v":""},"2d","$E$129","$F$129"]
[25942,{"$f":"Menu!$F$29","v":"X"},{"$f":"Menu!$J$29","v":2020},{"$f":"IF(ISBLANK(INDIRECT(\"'\"&F6695&\"'!\"&G6695)),\"\",INDIRECT(\"'\"&F6695&\"'!\"&G6695))","v":""},{"$f":"IF(ISBLANK(INDIRECT(\"'\"&F6695&\"'!\"&H6695)),\"\",IFERROR(VLOOKUP(TEXT(INDIRECT(\"'\"&F6695&\"'!\"&H6695),\"0\"),Notes!$B$5:$C$100,2,FALSE),\"\"))","v":""},"2d","$I$129","$J$129"]
[25943,{"$f":"Menu!$F$29","v":"X"},{"$f":"Menu!$J$29","v":2020},{"$f":"IF(ISBLANK(INDIRECT(\"'\"&F6696&\"'!\"&G6696)),\"\",INDIRECT(\"'\"&F6696&\"'!\"&G6696))","v":""},{"$f":"IF(ISBLANK(INDIRECT(\"'\"&F6696&\"'!\"&H6696)),\"\",IFERROR(VLOOKUP(TEXT(INDIRECT(\"'\"&F6696&\"'!\"&H6696),\"0\"),Notes!$B$5:$C$100,2,FALSE),\"\"))","v":""},"2d","$G$129","$H$129"]
[25944,{"$f":"Menu!$F$29","v":"X"},{"$f":"Menu!$J$29","v":2020},{"$f":"IF(ISBLANK(INDIRECT(\"'\"&F6697&\"'!\"&G6697)),\"\",INDIRECT(\"'\"&F6697&\"'!\"&G6697))","v":""},{"$f":"IF(ISBLANK(INDIRECT(\"'\"&F6697&\"'!\"&H6697)),\"\",IFERROR(VLOOKUP(TEXT(INDIRECT(\"'\"&F6697&\"'!\"&H6697),\"0\"),Notes!$B$5:$C$100,2,FALSE),\"\"))","v":""},"2a","$Q$129","$R$129"]
[25945,{"$f":"Menu!$F$29","v":"X"},{"$f":"Menu!$J$29","v":2020},{"$f":"IF(ISBLANK(INDIRECT(\"'\"&F6698&\"'!\"&G6698)),\"\",INDIRECT(\"'\"&F6698&\"'!\"&G6698))","v":""},{"$f":"IF(ISBLANK(INDIRECT(\"'\"&F6698&\"'!\"&H6698)),\"\",IFERROR(VLOOKUP(TEXT(INDIRECT(\"'\"&F6698&\"'!\"&H6698),\"0\"),Notes!$B$5:$C$100,2,FALSE),\"\"))","v":""},"2a","$U$129","$V$129"]
[25946,{"$f":"Menu!$F$29","v":"X"},{"$f":"Menu!$J$29","v":2020},{"$f":"IF(ISBLANK(INDIRECT(\"'\"&F6699&\"'!\"&G6699)),\"\",INDIRECT(\"'\"&F6699&\"'!\"&G6699))","v":""},{"$f":"IF(ISBLANK(INDIRECT(\"'\"&F6699&\"'!\"&H6699)),\"\",IFERROR(VLOOKUP(TEXT(INDIRECT(\"'\"&F6699&\"'!\"&H6699),\"0\"),Notes!$B$5:$C$100,2,FALSE),\"\"))","v":""},"2a","$S$129","$T$129"]
[25947,{"$f":"Menu!$F$29","v":"X"},{"$f":"Menu!$J$29","v":2020},{"$f":"IF(ISBLANK(INDIRECT(\"'\"&F6700&\"'!\"&G6700)),\"\",INDIRECT(\"'\"&F6700&\"'!\"&G6700))","v":""},{"$f":"IF(ISBLANK(INDIRECT(\"'\"&F6700&\"'!\"&H6700)),\"\",IFERROR(VLOOKUP(TEXT(INDIRECT(\"'\"&F6700&\"'!\"&H6700),\"0\"),Notes!$B$5:$C$100,2,FALSE),\"\"))","v":""},"2d","$K$129","$L$129"]
[25948,{"$f":"Menu!$F$29","v":"X"},{"$f":"Menu!$J$29","v":2020},{"$f":"IF(ISBLANK(INDIRECT(\"'\"&F6701&\"'!\"&G6701)),\"\",INDIRECT(\"'\"&F6701&\"'!\"&G6701))","v":""},{"$f":"IF(ISBLANK(INDIRECT(\"'\"&F6701&\"'!\"&H6701)),\"\",IFERROR(VLOOKUP(TEXT(INDIRECT(\"'\"&F6701&\"'!\"&H6701),\"0\"),Notes!$B$5:$C$100,2,FALSE),\"\"))","v":""},"2d","$O$129","$P$129"]
[25949,{"$f":"Menu!$F$29","v":"X"},{"$f":"Menu!$J$29","v":2020},{"$f":"IF(ISBLANK(INDIRECT(\"'\"&F6702&\"'!\"&G6702)),\"\",INDIRECT(\"'\"&F6702&\"'!\"&G6702))","v":""},{"$f":"IF(ISBLANK(INDIRECT(\"'\"&F6702&\"'!\"&H6702)),\"\",IFERROR(VLOOKUP(TEXT(INDIRECT(\"'\"&F6702&\"'!\"&H6702),\"0\"),Notes!$B$5:$C$100,2,FALSE),\"\"))","v":""},"2d","$M$129","$N$129"]
[25950,{"$f":"Menu!$F$29","v":"X"},{"$f":"Menu!$J$29","v":2020},{"$f":"IF(ISBLANK(INDIRECT(\"'\"&F6703&\"'!\"&G6703)),\"\",INDIRECT(\"'\"&F6703&\"'!\"&G6703))","v":""},{"$f":"IF(ISBLANK(INDIRECT(\"'\"&F6703&\"'!\"&H6703)),\"\",IFERROR(VLOOKUP(TEXT(INDIRECT(\"'\"&F6703&\"'!\"&H6703),\"0\"),Notes!$B$5:$C$100,2,FALSE),\"\"))","v":""},"2d","$Q$129","$R$129"]
[25951,{"$f":"Menu!$F$29","v":"X"},{"$f":"Menu!$J$29","v":2020},{"$f":"IF(ISBLANK(INDIRECT(\"'\"&F6704&\"'!\"&G6704)),\"\",INDIRECT(\"'\"&F6704&\"'!\"&G6704))","v":""},{"$f":"IF(ISBLANK(INDIRECT(\"'\"&F6704&\"'!\"&H6704)),\"\",IFERROR(VLOOKUP(TEXT(INDIRECT(\"'\"&F6704&\"'!\"&H6704),\"0\"),Notes!$B$5:$C$100,2,FALSE),\"\"))","v":""},"2d","$U$129","$V$129"]
[25952,{"$f":"Menu!$F$29","v":"X"},{"$f":"Menu!$J$29","v":2020},{"$f":"IF(ISBLANK(INDIRECT(\"'\"&F6705&\"'!\"&G6705)),\"\",INDIRECT(\"'\"&F6705&\"'!\"&G6705))","v":""},{"$f":"IF(ISBLANK(INDIRECT(\"'\"&F6705&\"'!\"&H6705)),\"\",IFERROR(VLOOKUP(TEXT(INDIRECT(\"'\"&F6705&\"'!\"&H6705),\"0\"),Notes!$B$5:$C$100,2,FALSE),\"\"))","v":""},"2d","$S$129","$T$129"]
[25953,{"$f":"Menu!$F$29","v":"X"},{"$f":"Menu!$J$29","v":2020},{"$f":"IF(ISBLANK(INDIRECT(\"'\"&F6706&\"'!\"&G6706)),\"\",INDIRECT(\"'\"&F6706&\"'!\"&G6706))","v":""},{"$f":"IF(ISBLANK(INDIRECT(\"'\"&F6706&\"'!\"&H6706)),\"\",IFERROR(VLOOKUP(TEXT(INDIRECT(\"'\"&F6706&\"'!\"&H6706),\"0\"),Notes!$B$5:$C$100,2,FALSE),\"\"))","v":""},"2a","$K$129","$L$129"]
[25954,{"$f":"Menu!$F$29","v":"X"},{"$f":"Menu!$J$29","v":2020},{"$f":"IF(ISBLANK(INDIRECT(\"'\"&F6707&\"'!\"&G6707)),\"\",INDIRECT(\"'\"&F6707&\"'!\"&G6707))","v":""},{"$f":"IF(ISBLANK(INDIRECT(\"'\"&F6707&\"'!\"&H6707)),\"\",IFERROR(VLOOKUP(TEXT(INDIRECT(\"'\"&F6707&\"'!\"&H6707),\"0\"),Notes!$B$5:$C$100,2,FALSE),\"\"))","v":""},"2a","$O$129","$P$129"]
[25955,{"$f":"Menu!$F$29","v":"X"},{"$f":"Menu!$J$29","v":2020},{"$f":"IF(ISBLANK(INDIRECT(\"'\"&F6708&\"'!\"&G6708)),\"\",INDIRECT(\"'\"&F6708&\"'!\"&G6708))","v":""},{"$f":"IF(ISBLANK(INDIRECT(\"'\"&F6708&\"'!\"&H6708)),\"\",IFERROR(VLOOKUP(TEXT(INDIRECT(\"'\"&F6708&\"'!\"&H6708),\"0\"),Notes!$B$5:$C$100,2,FALSE),\"\"))","v":""},"2a","$M$129","$N$129"]
[25956,{"$f":"Menu!$F$29","v":"X"},{"$f":"Menu!$J$29","v":2020},{"$f":"IF(ISBLANK(INDIRECT(\"'\"&F6709&\"'!\"&G6709)),\"\",INDIRECT(\"'\"&F6709&\"'!\"&G6709))","v":""},{"$f":"IF(ISBLANK(INDIRECT(\"'\"&F6709&\"'!\"&H6709)),\"\",IFERROR(VLOOKUP(TEXT(INDIRECT(\"'\"&F6709&\"'!\"&H6709),\"0\"),Notes!$B$5:$C$100,2,FALSE),\"\"))","v":""},"2a","$E$129","$F$129"]
[25957,{"$f":"Menu!$F$29","v":"X"},{"$f":"Menu!$J$29","v":2020},{"$f":"IF(ISBLANK(INDIRECT(\"'\"&F6710&\"'!\"&G6710)),\"\",INDIRECT(\"'\"&F6710&\"'!\"&G6710))","v":""},{"$f":"IF(ISBLANK(INDIRECT(\"'\"&F6710&\"'!\"&H6710)),\"\",IFERROR(VLOOKUP(TEXT(INDIRECT(\"'\"&F6710&\"'!\"&H6710),\"0\"),Notes!$B$5:$C$100,2,FALSE),\"\"))","v":""},"2b","$K$130","$L$130"]
[25958,{"$f":"Menu!$F$29","v":"X"},{"$f":"Menu!$J$29","v":2020},{"$f":"IF(ISBLANK(INDIRECT(\"'\"&F6711&\"'!\"&G6711)),\"\",INDIRECT(\"'\"&F6711&\"'!\"&G6711))","v":""},{"$f":"IF(ISBLANK(INDIRECT(\"'\"&F6711&\"'!\"&H6711)),\"\",IFERROR(VLOOKUP(TEXT(INDIRECT(\"'\"&F6711&\"'!\"&H6711),\"0\"),Notes!$B$5:$C$100,2,FALSE),\"\"))","v":""},"2b","$O$130","$P$130"]
[25959,{"$f":"Menu!$F$29","v":"X"},{"$f":"Menu!$J$29","v":2020},{"$f":"IF(ISBLANK(INDIRECT(\"'\"&F6712&\"'!\"&G6712)),\"\",INDIRECT(\"'\"&F6712&\"'!\"&G6712))","v":""},{"$f":"IF(ISBLANK(INDIRECT(\"'\"&F6712&\"'!\"&H6712)),\"\",IFERROR(VLOOKUP(TEXT(INDIRECT(\"'\"&F6712&\"'!\"&H6712),\"0\"),Notes!$B$5:$C$100,2,FALSE),\"\"))","v":""},"2b","$M$130","$N$130"]
[25960,{"$f":"Menu!$F$29","v":"X"},{"$f":"Menu!$J$29","v":2020},{"$f":"IF(ISBLANK(INDIRECT(\"'\"&F6713&\"'!\"&G6713)),\"\",INDIRECT(\"'\"&F6713&\"'!\"&G6713))","v":""},{"$f":"IF(ISBLANK(INDIRECT(\"'\"&F6713&\"'!\"&H6713)),\"\",IFERROR(VLOOKUP(TEXT(INDIRECT(\"'\"&F6713&\"'!\"&H6713),\"0\"),Notes!$B$5:$C$100,2,FALSE),\"\"))","v":""},"2b","$Q$130","$R$130"]
[25961,{"$f":"Menu!$F$29","v":"X"},{"$f":"Menu!$J$29","v":2020},{"$f":"IF(ISBLANK(INDIRECT(\"'\"&F6714&\"'!\"&G6714)),\"\",INDIRECT(\"'\"&F6714&\"'!\"&G6714))","v":""},{"$f":"IF(ISBLANK(INDIRECT(\"'\"&F6714&\"'!\"&H6714)),\"\",IFERROR(VLOOKUP(TEXT(INDIRECT(\"'\"&F6714&\"'!\"&H6714),\"0\"),Notes!$B$5:$C$100,2,FALSE),\"\"))","v":""},"2b","$U$130","$V$130"]
[25962,{"$f":"Menu!$F$29","v":"X"},{"$f":"Menu!$J$29","v":2020},{"$f":"IF(ISBLANK(INDIRECT(\"'\"&F6715&\"'!\"&G6715)),\"\",INDIRECT(\"'\"&F6715&\"'!\"&G6715))","v":""},{"$f":"IF(ISBLANK(INDIRECT(\"'\"&F6715&\"'!\"&H6715)),\"\",IFERROR(VLOOKUP(TEXT(INDIRECT(\"'\"&F6715&\"'!\"&H6715),\"0\"),Notes!$B$5:$C$100,2,FALSE),\"\"))","v":""},"2b","$S$130","$T$130"]
[25966,{"$f":"Menu!$F$29","v":"X"},{"$f":"Menu!$J$29","v":2020},{"$f":"IF(ISBLANK(INDIRECT(\"'\"&F6716&\"'!\"&G6716)),\"\",INDIRECT(\"'\"&F6716&\"'!\"&G6716))","v":""},{"$f":"IF(ISBLANK(INDIRECT(\"'\"&F6716&\"'!\"&H6716)),\"\",IFERROR(VLOOKUP(TEXT(INDIRECT(\"'\"&F6716&\"'!\"&H6716),\"0\"),Notes!$B$5:$C$100,2,FALSE),\"\"))","v":""},"2a","$I$130","$J$130"]
[25967,{"$f":"Menu!$F$29","v":"X"},{"$f":"Menu!$J$29","v":2020},{"$f":"IF(ISBLANK(INDIRECT(\"'\"&F6717&\"'!\"&G6717)),\"\",INDIRECT(\"'\"&F6717&\"'!\"&G6717))","v":""},{"$f":"IF(ISBLANK(INDIRECT(\"'\"&F6717&\"'!\"&H6717)),\"\",IFERROR(VLOOKUP(TEXT(INDIRECT(\"'\"&F6717&\"'!\"&H6717),\"0\"),Notes!$B$5:$C$100,2,FALSE),\"\"))","v":""},"2c","$E$130","$F$130"]
[25968,{"$f":"Menu!$F$29","v":"X"},{"$f":"Menu!$J$29","v":2020},{"$f":"IF(ISBLANK(INDIRECT(\"'\"&F6718&\"'!\"&G6718)),\"\",INDIRECT(\"'\"&F6718&\"'!\"&G6718))","v":""},{"$f":"IF(ISBLANK(INDIRECT(\"'\"&F6718&\"'!\"&H6718)),\"\",IFERROR(VLOOKUP(TEXT(INDIRECT(\"'\"&F6718&\"'!\"&H6718),\"0\"),Notes!$B$5:$C$100,2,FALSE),\"\"))","v":""},"2c","$I$130","$J$130"]
[25969,{"$f":"Menu!$F$29","v":"X"},{"$f":"Menu!$J$29","v":2020},{"$f":"IF(ISBLANK(INDIRECT(\"'\"&F6719&\"'!\"&G6719)),\"\",INDIRECT(\"'\"&F6719&\"'!\"&G6719))","v":""},{"$f":"IF(ISBLANK(INDIRECT(\"'\"&F6719&\"'!\"&H6719)),\"\",IFERROR(VLOOKUP(TEXT(INDIRECT(\"'\"&F6719&\"'!\"&H6719),\"0\"),Notes!$B$5:$C$100,2,FALSE),\"\"))","v":""},"2c","$G$130","$H$130"]
[25973,{"$f":"Menu!$F$29","v":"X"},{"$f":"Menu!$J$29","v":2020},{"$f":"IF(ISBLANK(INDIRECT(\"'\"&F6720&\"'!\"&G6720)),\"\",INDIRECT(\"'\"&F6720&\"'!\"&G6720))","v":""},{"$f":"IF(ISBLANK(INDIRECT(\"'\"&F6720&\"'!\"&H6720)),\"\",IFERROR(VLOOKUP(TEXT(INDIRECT(\"'\"&F6720&\"'!\"&H6720),\"0\"),Notes!$B$5:$C$100,2,FALSE),\"\"))","v":""},"2c","$K$130","$L$130"]
[25974,{"$f":"Menu!$F$29","v":"X"},{"$f":"Menu!$J$29","v":2020},{"$f":"IF(ISBLANK(INDIRECT(\"'\"&F6721&\"'!\"&G6721)),\"\",INDIRECT(\"'\"&F6721&\"'!\"&G6721))","v":""},{"$f":"IF(ISBLANK(INDIRECT(\"'\"&F6721&\"'!\"&H6721)),\"\",IFERROR(VLOOKUP(TEXT(INDIRECT(\"'\"&F6721&\"'!\"&H6721),\"0\"),Notes!$B$5:$C$100,2,FALSE),\"\"))","v":""},"2c","$O$130","$P$130"]
[25975,{"$f":"Menu!$F$29","v":"X"},{"$f":"Menu!$J$29","v":2020},{"$f":"IF(ISBLANK(INDIRECT(\"'\"&F6722&\"'!\"&G6722)),\"\",INDIRECT(\"'\"&F6722&\"'!\"&G6722))","v":""},{"$f":"IF(ISBLANK(INDIRECT(\"'\"&F6722&\"'!\"&H6722)),\"\",IFERROR(VLOOKUP(TEXT(INDIRECT(\"'\"&F6722&\"'!\"&H6722),\"0\"),Notes!$B$5:$C$100,2,FALSE),\"\"))","v":""},"2c","$M$130",{"$f":"IF(LEN(TRIM(MID(G6722,4,10)))-LEN(SUBSTITUTE(TRIM(MID(G6722,4,10)),\"$\",\"\"))=0,\"$\"&CHAR(CODE(MID(G6722,2,1))+1)&\"$\"&TRIM(MID(G6722,4,10)),\"$\"&MID(G6722,2,1)&CHAR(CODE(MID(G6722,3,1))+1)&\"$\"&TRIM(MID(G6722,5,11)))","v":"$N$130"}]
[25976,{"$f":"Menu!$F$29","v":"X"},{"$f":"Menu!$J$29","v":2020},{"$f":"IF(ISBLANK(INDIRECT(\"'\"&F6723&\"'!\"&G6723)),\"\",INDIRECT(\"'\"&F6723&\"'!\"&G6723))","v":""},{"$f":"IF(ISBLANK(INDIRECT(\"'\"&F6723&\"'!\"&H6723)),\"\",IFERROR(VLOOKUP(TEXT(INDIRECT(\"'\"&F6723&\"'!\"&H6723),\"0\"),Notes!$B$5:$C$100,2,FALSE),\"\"))","v":""},"2c","$Q$130","$R$130"]
[25977,{"$f":"Menu!$F$29","v":"X"},{"$f":"Menu!$J$29","v":2020},{"$f":"IF(ISBLANK(INDIRECT(\"'\"&F6724&\"'!\"&G6724)),\"\",INDIRECT(\"'\"&F6724&\"'!\"&G6724))","v":""},{"$f":"IF(ISBLANK(INDIRECT(\"'\"&F6724&\"'!\"&H6724)),\"\",IFERROR(VLOOKUP(TEXT(INDIRECT(\"'\"&F6724&\"'!\"&H6724),\"0\"),Notes!$B$5:$C$100,2,FALSE),\"\"))","v":""},"2c","$U$130","$V$130"]
[25978,{"$f":"Menu!$F$29","v":"X"},{"$f":"Menu!$J$29","v":2020},{"$f":"IF(ISBLANK(INDIRECT(\"'\"&F6725&\"'!\"&G6725)),\"\",INDIRECT(\"'\"&F6725&\"'!\"&G6725))","v":""},{"$f":"IF(ISBLANK(INDIRECT(\"'\"&F6725&\"'!\"&H6725)),\"\",IFERROR(VLOOKUP(TEXT(INDIRECT(\"'\"&F6725&\"'!\"&H6725),\"0\"),Notes!$B$5:$C$100,2,FALSE),\"\"))","v":""},"2c","$S$130","$T$130"]
[25979,{"$f":"Menu!$F$29","v":"X"},{"$f":"Menu!$J$29","v":2020},{"$f":"IF(ISBLANK(INDIRECT(\"'\"&F6726&\"'!\"&G6726)),\"\",INDIRECT(\"'\"&F6726&\"'!\"&G6726))","v":""},{"$f":"IF(ISBLANK(INDIRECT(\"'\"&F6726&\"'!\"&H6726)),\"\",IFERROR(VLOOKUP(TEXT(INDIRECT(\"'\"&F6726&\"'!\"&H6726),\"0\"),Notes!$B$5:$C$100,2,FALSE),\"\"))","v":""},"2c","$W$130","$X$130"]
[25980,{"$f":"Menu!$F$29","v":"X"},{"$f":"Menu!$J$29","v":2020},{"$f":"IF(ISBLANK(INDIRECT(\"'\"&F6727&\"'!\"&G6727)),\"\",INDIRECT(\"'\"&F6727&\"'!\"&G6727))","v":""},{"$f":"IF(ISBLANK(INDIRECT(\"'\"&F6727&\"'!\"&H6727)),\"\",IFERROR(VLOOKUP(TEXT(INDIRECT(\"'\"&F6727&\"'!\"&H6727),\"0\"),Notes!$B$5:$C$100,2,FALSE),\"\"))","v":""},"2c","$AA$130","$AB$130"]
[25981,{"$f":"Menu!$F$29","v":"X"},{"$f":"Menu!$J$29","v":2020},{"$f":"IF(ISBLANK(INDIRECT(\"'\"&F6728&\"'!\"&G6728)),\"\",INDIRECT(\"'\"&F6728&\"'!\"&G6728))","v":""},{"$f":"IF(ISBLANK(INDIRECT(\"'\"&F6728&\"'!\"&H6728)),\"\",IFERROR(VLOOKUP(TEXT(INDIRECT(\"'\"&F6728&\"'!\"&H6728),\"0\"),Notes!$B$5:$C$100,2,FALSE),\"\"))","v":""},"2c","$Y$130","$Z$130"]
[25988,{"$f":"Menu!$F$29","v":"X"},{"$f":"Menu!$J$29","v":2020},{"$f":"IF(ISBLANK(INDIRECT(\"'\"&F6729&\"'!\"&G6729)),\"\",INDIRECT(\"'\"&F6729&\"'!\"&G6729))","v":""},{"$f":"IF(ISBLANK(INDIRECT(\"'\"&F6729&\"'!\"&H6729)),\"\",IFERROR(VLOOKUP(TEXT(INDIRECT(\"'\"&F6729&\"'!\"&H6729),\"0\"),Notes!$B$5:$C$100,2,FALSE),\"\"))","v":""},"2e","$BG$131","$BH$131"]
[25989,{"$f":"Menu!$F$29","v":"X"},{"$f":"Menu!$J$29","v":2020},{"$f":"IF(ISBLANK(INDIRECT(\"'\"&F6730&\"'!\"&G6730)),\"\",INDIRECT(\"'\"&F6730&\"'!\"&G6730))","v":""},{"$f":"IF(ISBLANK(INDIRECT(\"'\"&F6730&\"'!\"&H6730)),\"\",IFERROR(VLOOKUP(TEXT(INDIRECT(\"'\"&F6730&\"'!\"&H6730),\"0\"),Notes!$B$5:$C$100,2,FALSE),\"\"))","v":""},"2e","$BK$131","$BL$131"]
[25990,{"$f":"Menu!$F$29","v":"X"},{"$f":"Menu!$J$29","v":2020},{"$f":"IF(ISBLANK(INDIRECT(\"'\"&F6731&\"'!\"&G6731)),\"\",INDIRECT(\"'\"&F6731&\"'!\"&G6731))","v":""},{"$f":"IF(ISBLANK(INDIRECT(\"'\"&F6731&\"'!\"&H6731)),\"\",IFERROR(VLOOKUP(TEXT(INDIRECT(\"'\"&F6731&\"'!\"&H6731),\"0\"),Notes!$B$5:$C$100,2,FALSE),\"\"))","v":""},"2e","$BI$131","$BJ$131"]
[25991,{"$f":"Menu!$F$29","v":"X"},{"$f":"Menu!$J$29","v":2020},{"$f":"IF(ISBLANK(INDIRECT(\"'\"&F6732&\"'!\"&G6732)),\"\",INDIRECT(\"'\"&F6732&\"'!\"&G6732))","v":""},{"$f":"IF(ISBLANK(INDIRECT(\"'\"&F6732&\"'!\"&H6732)),\"\",IFERROR(VLOOKUP(TEXT(INDIRECT(\"'\"&F6732&\"'!\"&H6732),\"0\"),Notes!$B$5:$C$100,2,FALSE),\"\"))","v":""},"2e","$E$131","$F$131"]
[25992,{"$f":"Menu!$F$29","v":"X"},{"$f":"Menu!$J$29","v":2020},{"$f":"IF(ISBLANK(INDIRECT(\"'\"&F6733&\"'!\"&G6733)),\"\",INDIRECT(\"'\"&F6733&\"'!\"&G6733))","v":""},{"$f":"IF(ISBLANK(INDIRECT(\"'\"&F6733&\"'!\"&H6733)),\"\",IFERROR(VLOOKUP(TEXT(INDIRECT(\"'\"&F6733&\"'!\"&H6733),\"0\"),Notes!$B$5:$C$100,2,FALSE),\"\"))","v":""},"2e","$I$131","$J$131"]
[25993,{"$f":"Menu!$F$29","v":"X"},{"$f":"Menu!$J$29","v":2020},{"$f":"IF(ISBLANK(INDIRECT(\"'\"&F6734&\"'!\"&G6734)),\"\",INDIRECT(\"'\"&F6734&\"'!\"&G6734))","v":""},{"$f":"IF(ISBLANK(INDIRECT(\"'\"&F6734&\"'!\"&H6734)),\"\",IFERROR(VLOOKUP(TEXT(INDIRECT(\"'\"&F6734&\"'!\"&H6734),\"0\"),Notes!$B$5:$C$100,2,FALSE),\"\"))","v":""},"2e","$G$131","$H$131"]
[25994,{"$f":"Menu!$F$29","v":"X"},{"$f":"Menu!$J$29","v":2020},{"$f":"IF(ISBLANK(INDIRECT(\"'\"&F6735&\"'!\"&G6735)),\"\",INDIRECT(\"'\"&F6735&\"'!\"&G6735))","v":""},{"$f":"IF(ISBLANK(INDIRECT(\"'\"&F6735&\"'!\"&H6735)),\"\",IFERROR(VLOOKUP(TEXT(INDIRECT(\"'\"&F6735&\"'!\"&H6735),\"0\"),Notes!$B$5:$C$100,2,FALSE),\"\"))","v":""},"2e","$K$131","$L$131"]
[25995,{"$f":"Menu!$F$29","v":"X"},{"$f":"Menu!$J$29","v":2020},{"$f":"IF(ISBLANK(INDIRECT(\"'\"&F6736&\"'!\"&G6736)),\"\",INDIRECT(\"'\"&F6736&\"'!\"&G6736))","v":""},{"$f":"IF(ISBLANK(INDIRECT(\"'\"&F6736&\"'!\"&H6736)),\"\",IFERROR(VLOOKUP(TEXT(INDIRECT(\"'\"&F6736&\"'!\"&H6736),\"0\"),Notes!$B$5:$C$100,2,FALSE),\"\"))","v":""},"2e","$O$131","$P$131"]
[25996,{"$f":"Menu!$F$29","v":"X"},{"$f":"Menu!$J$29","v":2020},{"$f":"IF(ISBLANK(INDIRECT(\"'\"&F6737&\"'!\"&G6737)),\"\",INDIRECT(\"'\"&F6737&\"'!\"&G6737))","v":""},{"$f":"IF(ISBLANK(INDIRECT(\"'\"&F6737&\"'!\"&H6737)),\"\",IFERROR(VLOOKUP(TEXT(INDIRECT(\"'\"&F6737&\"'!\"&H6737),\"0\"),Notes!$B$5:$C$100,2,FALSE),\"\"))","v":""},"2e","$M$131","$N$131"]
[25997,{"$f":"Menu!$F$29","v":"X"},{"$f":"Menu!$J$29","v":2020},{"$f":"IF(ISBLANK(INDIRECT(\"'\"&F6738&\"'!\"&G6738)),\"\",INDIRECT(\"'\"&F6738&\"'!\"&G6738))","v":""},{"$f":"IF(ISBLANK(INDIRECT(\"'\"&F6738&\"'!\"&H6738)),\"\",IFERROR(VLOOKUP(TEXT(INDIRECT(\"'\"&F6738&\"'!\"&H6738),\"0\"),Notes!$B$5:$C$100,2,FALSE),\"\"))","v":""},"2e","$Q$131","$R$131"]
[25998,{"$f":"Menu!$F$29","v":"X"},{"$f":"Menu!$J$29","v":2020},{"$f":"IF(ISBLANK(INDIRECT(\"'\"&F6739&\"'!\"&G6739)),\"\",INDIRECT(\"'\"&F6739&\"'!\"&G6739))","v":""},{"$f":"IF(ISBLANK(INDIRECT(\"'\"&F6739&\"'!\"&H6739)),\"\",IFERROR(VLOOKUP(TEXT(INDIRECT(\"'\"&F6739&\"'!\"&H6739),\"0\"),Notes!$B$5:$C$100,2,FALSE),\"\"))","v":""},"2e","$U$131","$V$131"]
[25999,{"$f":"Menu!$F$29","v":"X"},{"$f":"Menu!$J$29","v":2020},{"$f":"IF(ISBLANK(INDIRECT(\"'\"&F6740&\"'!\"&G6740)),\"\",INDIRECT(\"'\"&F6740&\"'!\"&G6740))","v":""},{"$f":"IF(ISBLANK(INDIRECT(\"'\"&F6740&\"'!\"&H6740)),\"\",IFERROR(VLOOKUP(TEXT(INDIRECT(\"'\"&F6740&\"'!\"&H6740),\"0\"),Notes!$B$5:$C$100,2,FALSE),\"\"))","v":""},"2e","$S$131","$T$131"]
[26000,{"$f":"Menu!$F$29","v":"X"},{"$f":"Menu!$J$29","v":2020},{"$f":"IF(ISBLANK(INDIRECT(\"'\"&F6741&\"'!\"&G6741)),\"\",INDIRECT(\"'\"&F6741&\"'!\"&G6741))","v":""},{"$f":"IF(ISBLANK(INDIRECT(\"'\"&F6741&\"'!\"&H6741)),\"\",IFERROR(VLOOKUP(TEXT(INDIRECT(\"'\"&F6741&\"'!\"&H6741),\"0\"),Notes!$B$5:$C$100,2,FALSE),\"\"))","v":""},"2e","$W$131","$X$131"]
[26001,{"$f":"Menu!$F$29","v":"X"},{"$f":"Menu!$J$29","v":2020},{"$f":"IF(ISBLANK(INDIRECT(\"'\"&F6742&\"'!\"&G6742)),\"\",INDIRECT(\"'\"&F6742&\"'!\"&G6742))","v":""},{"$f":"IF(ISBLANK(INDIRECT(\"'\"&F6742&\"'!\"&H6742)),\"\",IFERROR(VLOOKUP(TEXT(INDIRECT(\"'\"&F6742&\"'!\"&H6742),\"0\"),Notes!$B$5:$C$100,2,FALSE),\"\"))","v":""},"2e","$AA$131","$AB$131"]
[26002,{"$f":"Menu!$F$29","v":"X"},{"$f":"Menu!$J$29","v":2020},{"$f":"IF(ISBLANK(INDIRECT(\"'\"&F6743&\"'!\"&G6743)),\"\",INDIRECT(\"'\"&F6743&\"'!\"&G6743))","v":""},{"$f":"IF(ISBLANK(INDIRECT(\"'\"&F6743&\"'!\"&H6743)),\"\",IFERROR(VLOOKUP(TEXT(INDIRECT(\"'\"&F6743&\"'!\"&H6743),\"0\"),Notes!$B$5:$C$100,2,FALSE),\"\"))","v":""},"2e","$Y$131","$Z$131"]
[26003,{"$f":"Menu!$F$29","v":"X"},{"$f":"Menu!$J$29","v":2020},{"$f":"IF(ISBLANK(INDIRECT(\"'\"&F6744&\"'!\"&G6744)),\"\",INDIRECT(\"'\"&F6744&\"'!\"&G6744))","v":""},{"$f":"IF(ISBLANK(INDIRECT(\"'\"&F6744&\"'!\"&H6744)),\"\",IFERROR(VLOOKUP(TEXT(INDIRECT(\"'\"&F6744&\"'!\"&H6744),\"0\"),Notes!$B$5:$C$100,2,FALSE),\"\"))","v":""},"2e","$AC$131","$AD$131"]
[26004,{"$f":"Menu!$F$29","v":"X"},{"$f":"Menu!$J$29","v":2020},{"$f":"IF(ISBLANK(INDIRECT(\"'\"&F6745&\"'!\"&G6745)),\"\",INDIRECT(\"'\"&F6745&\"'!\"&G6745))","v":""},{"$f":"IF(ISBLANK(INDIRECT(\"'\"&F6745&\"'!\"&H6745)),\"\",IFERROR(VLOOKUP(TEXT(INDIRECT(\"'\"&F6745&\"'!\"&H6745),\"0\"),Notes!$B$5:$C$100,2,FALSE),\"\"))","v":""},"2e","$AG$131","$AH$131"]
[26005,{"$f":"Menu!$F$29","v":"X"},{"$f":"Menu!$J$29","v":2020},{"$f":"IF(ISBLANK(INDIRECT(\"'\"&F6746&\"'!\"&G6746)),\"\",INDIRECT(\"'\"&F6746&\"'!\"&G6746))","v":""},{"$f":"IF(ISBLANK(INDIRECT(\"'\"&F6746&\"'!\"&H6746)),\"\",IFERROR(VLOOKUP(TEXT(INDIRECT(\"'\"&F6746&\"'!\"&H6746),\"0\"),Notes!$B$5:$C$100,2,FALSE),\"\"))","v":""},"2e","$AE$131","$AF$131"]
[26006,{"$f":"Menu!$F$29","v":"X"},{"$f":"Menu!$J$29","v":2020},{"$f":"IF(ISBLANK(INDIRECT(\"'\"&F6747&\"'!\"&G6747)),\"\",INDIRECT(\"'\"&F6747&\"'!\"&G6747))","v":""},{"$f":"IF(ISBLANK(INDIRECT(\"'\"&F6747&\"'!\"&H6747)),\"\",IFERROR(VLOOKUP(TEXT(INDIRECT(\"'\"&F6747&\"'!\"&H6747),\"0\"),Notes!$B$5:$C$100,2,FALSE),\"\"))","v":""},"2e","$AI$131","$AJ$131"]
[26007,{"$f":"Menu!$F$29","v":"X"},{"$f":"Menu!$J$29","v":2020},{"$f":"IF(ISBLANK(INDIRECT(\"'\"&F6748&\"'!\"&G6748)),\"\",INDIRECT(\"'\"&F6748&\"'!\"&G6748))","v":""},{"$f":"IF(ISBLANK(INDIRECT(\"'\"&F6748&\"'!\"&H6748)),\"\",IFERROR(VLOOKUP(TEXT(INDIRECT(\"'\"&F6748&\"'!\"&H6748),\"0\"),Notes!$B$5:$C$100,2,FALSE),\"\"))","v":""},"2e","$AM$131","$AN$131"]
[26008,{"$f":"Menu!$F$29","v":"X"},{"$f":"Menu!$J$29","v":2020},{"$f":"IF(ISBLANK(INDIRECT(\"'\"&F6749&\"'!\"&G6749)),\"\",INDIRECT(\"'\"&F6749&\"'!\"&G6749))","v":""},{"$f":"IF(ISBLANK(INDIRECT(\"'\"&F6749&\"'!\"&H6749)),\"\",IFERROR(VLOOKUP(TEXT(INDIRECT(\"'\"&F6749&\"'!\"&H6749),\"0\"),Notes!$B$5:$C$100,2,FALSE),\"\"))","v":""},"2e","$AK$131","$AL$131"]
[26009,{"$f":"Menu!$F$29","v":"X"},{"$f":"Menu!$J$29","v":2020},{"$f":"IF(ISBLANK(INDIRECT(\"'\"&F6750&\"'!\"&G6750)),\"\",INDIRECT(\"'\"&F6750&\"'!\"&G6750))","v":""},{"$f":"IF(ISBLANK(INDIRECT(\"'\"&F6750&\"'!\"&H6750)),\"\",IFERROR(VLOOKUP(TEXT(INDIRECT(\"'\"&F6750&\"'!\"&H6750),\"0\"),Notes!$B$5:$C$100,2,FALSE),\"\"))","v":""},"2e","$AO$131","$AP$131"]
[26010,{"$f":"Menu!$F$29","v":"X"},{"$f":"Menu!$J$29","v":2020},{"$f":"IF(ISBLANK(INDIRECT(\"'\"&F6751&\"'!\"&G6751)),\"\",INDIRECT(\"'\"&F6751&\"'!\"&G6751))","v":""},{"$f":"IF(ISBLANK(INDIRECT(\"'\"&F6751&\"'!\"&H6751)),\"\",IFERROR(VLOOKUP(TEXT(INDIRECT(\"'\"&F6751&\"'!\"&H6751),\"0\"),Notes!$B$5:$C$100,2,FALSE),\"\"))","v":""},"2e","$AS$131","$AT$131"]
[26011,{"$f":"Menu!$F$29","v":"X"},{"$f":"Menu!$J$29","v":2020},{"$f":"IF(ISBLANK(INDIRECT(\"'\"&F6752&\"'!\"&G6752)),\"\",INDIRECT(\"'\"&F6752&\"'!\"&G6752))","v":""},{"$f":"IF(ISBLANK(INDIRECT(\"'\"&F6752&\"'!\"&H6752)),\"\",IFERROR(VLOOKUP(TEXT(INDIRECT(\"'\"&F6752&\"'!\"&H6752),\"0\"),Notes!$B$5:$C$100,2,FALSE),\"\"))","v":""},"2e","$AQ$131","$AR$131"]
[26012,{"$f":"Menu!$F$29","v":"X"},{"$f":"Menu!$J$29","v":2020},{"$f":"IF(ISBLANK(INDIRECT(\"'\"&F6753&\"'!\"&G6753)),\"\",INDIRECT(\"'\"&F6753&\"'!\"&G6753))","v":""},{"$f":"IF(ISBLANK(INDIRECT(\"'\"&F6753&\"'!\"&H6753)),\"\",IFERROR(VLOOKUP(TEXT(INDIRECT(\"'\"&F6753&\"'!\"&H6753),\"0\"),Notes!$B$5:$C$100,2,FALSE),\"\"))","v":""},"2e","$AU$131","$AV$131"]
[26013,{"$f":"Menu!$F$29","v":"X"},{"$f":"Menu!$J$29","v":2020},{"$f":"IF(ISBLANK(INDIRECT(\"'\"&F6754&\"'!\"&G6754)),\"\",INDIRECT(\"'\"&F6754&\"'!\"&G6754))","v":""},{"$f":"IF(ISBLANK(INDIRECT(\"'\"&F6754&\"'!\"&H6754)),\"\",IFERROR(VLOOKUP(TEXT(INDIRECT(\"'\"&F6754&\"'!\"&H6754),\"0\"),Notes!$B$5:$C$100,2,FALSE),\"\"))","v":""},"2e","$AY$131","$AZ$131"]
[26014,{"$f":"Menu!$F$29","v":"X"},{"$f":"Menu!$J$29","v":2020},{"$f":"IF(ISBLANK(INDIRECT(\"'\"&F6755&\"'!\"&G6755)),\"\",INDIRECT(\"'\"&F6755&\"'!\"&G6755))","v":""},{"$f":"IF(ISBLANK(INDIRECT(\"'\"&F6755&\"'!\"&H6755)),\"\",IFERROR(VLOOKUP(TEXT(INDIRECT(\"'\"&F6755&\"'!\"&H6755),\"0\"),Notes!$B$5:$C$100,2,FALSE),\"\"))","v":""},"2e","$AW$131","$AX$131"]
[26015,{"$f":"Menu!$F$29","v":"X"},{"$f":"Menu!$J$29","v":2020},{"$f":"IF(ISBLANK(INDIRECT(\"'\"&F6756&\"'!\"&G6756)),\"\",INDIRECT(\"'\"&F6756&\"'!\"&G6756))","v":""},{"$f":"IF(ISBLANK(INDIRECT(\"'\"&F6756&\"'!\"&H6756)),\"\",IFERROR(VLOOKUP(TEXT(INDIRECT(\"'\"&F6756&\"'!\"&H6756),\"0\"),Notes!$B$5:$C$100,2,FALSE),\"\"))","v":""},"2e","$BA$131","$BB$131"]
[26016,{"$f":"Menu!$F$29","v":"X"},{"$f":"Menu!$J$29","v":2020},{"$f":"IF(ISBLANK(INDIRECT(\"'\"&F6757&\"'!\"&G6757)),\"\",INDIRECT(\"'\"&F6757&\"'!\"&G6757))","v":""},{"$f":"IF(ISBLANK(INDIRECT(\"'\"&F6757&\"'!\"&H6757)),\"\",IFERROR(VLOOKUP(TEXT(INDIRECT(\"'\"&F6757&\"'!\"&H6757),\"0\"),Notes!$B$5:$C$100,2,FALSE),\"\"))","v":""},"2e","$BE$131","$BF$131"]
[26017,{"$f":"Menu!$F$29","v":"X"},{"$f":"Menu!$J$29","v":2020},{"$f":"IF(ISBLANK(INDIRECT(\"'\"&F6758&\"'!\"&G6758)),\"\",INDIRECT(\"'\"&F6758&\"'!\"&G6758))","v":""},{"$f":"IF(ISBLANK(INDIRECT(\"'\"&F6758&\"'!\"&H6758)),\"\",IFERROR(VLOOKUP(TEXT(INDIRECT(\"'\"&F6758&\"'!\"&H6758),\"0\"),Notes!$B$5:$C$100,2,FALSE),\"\"))","v":""},"2e","$BC$131","$BD$131"]
[26018,{"$f":"Menu!$F$29","v":"X"},{"$f":"Menu!$J$29","v":2020},{"$f":"IF(ISBLANK(INDIRECT(\"'\"&F6759&\"'!\"&G6759)),\"\",INDIRECT(\"'\"&F6759&\"'!\"&G6759))","v":""},{"$f":"IF(ISBLANK(INDIRECT(\"'\"&F6759&\"'!\"&H6759)),\"\",IFERROR(VLOOKUP(TEXT(INDIRECT(\"'\"&F6759&\"'!\"&H6759),\"0\"),Notes!$B$5:$C$100,2,FALSE),\"\"))","v":""},"2b","$E$130","$F$130"]
[26019,{"$f":"Menu!$F$29","v":"X"},{"$f":"Menu!$J$29","v":2020},{"$f":"IF(ISBLANK(INDIRECT(\"'\"&F6760&\"'!\"&G6760)),\"\",INDIRECT(\"'\"&F6760&\"'!\"&G6760))","v":""},{"$f":"IF(ISBLANK(INDIRECT(\"'\"&F6760&\"'!\"&H6760)),\"\",IFERROR(VLOOKUP(TEXT(INDIRECT(\"'\"&F6760&\"'!\"&H6760),\"0\"),Notes!$B$5:$C$100,2,FALSE),\"\"))","v":""},"2b","$I$130","$J$130"]
[26020,{"$f":"Menu!$F$29","v":"X"},{"$f":"Menu!$J$29","v":2020},{"$f":"IF(ISBLANK(INDIRECT(\"'\"&F6761&\"'!\"&G6761)),\"\",INDIRECT(\"'\"&F6761&\"'!\"&G6761))","v":""},{"$f":"IF(ISBLANK(INDIRECT(\"'\"&F6761&\"'!\"&H6761)),\"\",IFERROR(VLOOKUP(TEXT(INDIRECT(\"'\"&F6761&\"'!\"&H6761),\"0\"),Notes!$B$5:$C$100,2,FALSE),\"\"))","v":""},"2b","$G$130","$H$130"]
[26021,{"$f":"Menu!$F$29","v":"X"},{"$f":"Menu!$J$29","v":2020},{"$f":"IF(ISBLANK(INDIRECT(\"'\"&F6762&\"'!\"&G6762)),\"\",INDIRECT(\"'\"&F6762&\"'!\"&G6762))","v":""},{"$f":"IF(ISBLANK(INDIRECT(\"'\"&F6762&\"'!\"&H6762)),\"\",IFERROR(VLOOKUP(TEXT(INDIRECT(\"'\"&F6762&\"'!\"&H6762),\"0\"),Notes!$B$5:$C$100,2,FALSE),\"\"))","v":""},"2a","$G$130","$H$130"]
[26022,{"$f":"Menu!$F$29","v":"X"},{"$f":"Menu!$J$29","v":2020},{"$f":"IF(ISBLANK(INDIRECT(\"'\"&F6763&\"'!\"&G6763)),\"\",INDIRECT(\"'\"&F6763&\"'!\"&G6763))","v":""},{"$f":"IF(ISBLANK(INDIRECT(\"'\"&F6763&\"'!\"&H6763)),\"\",IFERROR(VLOOKUP(TEXT(INDIRECT(\"'\"&F6763&\"'!\"&H6763),\"0\"),Notes!$B$5:$C$100,2,FALSE),\"\"))","v":""},"2b","$W$130","$X$130"]
[26023,{"$f":"Menu!$F$29","v":"X"},{"$f":"Menu!$J$29","v":2020},{"$f":"IF(ISBLANK(INDIRECT(\"'\"&F6764&\"'!\"&G6764)),\"\",INDIRECT(\"'\"&F6764&\"'!\"&G6764))","v":""},{"$f":"IF(ISBLANK(INDIRECT(\"'\"&F6764&\"'!\"&H6764)),\"\",IFERROR(VLOOKUP(TEXT(INDIRECT(\"'\"&F6764&\"'!\"&H6764),\"0\"),Notes!$B$5:$C$100,2,FALSE),\"\"))","v":""},"2b","$AA$130","$AB$130"]
[26024,{"$f":"Menu!$F$29","v":"X"},{"$f":"Menu!$J$29","v":2020},{"$f":"IF(ISBLANK(INDIRECT(\"'\"&F6765&\"'!\"&G6765)),\"\",INDIRECT(\"'\"&F6765&\"'!\"&G6765))","v":""},{"$f":"IF(ISBLANK(INDIRECT(\"'\"&F6765&\"'!\"&H6765)),\"\",IFERROR(VLOOKUP(TEXT(INDIRECT(\"'\"&F6765&\"'!\"&H6765),\"0\"),Notes!$B$5:$C$100,2,FALSE),\"\"))","v":""},"2b","$Y$130","$Z$130"]
[26025,{"$f":"Menu!$F$29","v":"X"},{"$f":"Menu!$J$29","v":2020},{"$f":"IF(ISBLANK(INDIRECT(\"'\"&F6766&\"'!\"&G6766)),\"\",INDIRECT(\"'\"&F6766&\"'!\"&G6766))","v":""},{"$f":"IF(ISBLANK(INDIRECT(\"'\"&F6766&\"'!\"&H6766)),\"\",IFERROR(VLOOKUP(TEXT(INDIRECT(\"'\"&F6766&\"'!\"&H6766),\"0\"),Notes!$B$5:$C$100,2,FALSE),\"\"))","v":""},"2d","$AC$130","$AD$130"]
[26026,{"$f":"Menu!$F$29","v":"X"},{"$f":"Menu!$J$29","v":2020},{"$f":"IF(ISBLANK(INDIRECT(\"'\"&F6767&\"'!\"&G6767)),\"\",INDIRECT(\"'\"&F6767&\"'!\"&G6767))","v":""},{"$f":"IF(ISBLANK(INDIRECT(\"'\"&F6767&\"'!\"&H6767)),\"\",IFERROR(VLOOKUP(TEXT(INDIRECT(\"'\"&F6767&\"'!\"&H6767),\"0\"),Notes!$B$5:$C$100,2,FALSE),\"\"))","v":""},"2d","$AG$130","$AH$130"]
[26027,{"$f":"Menu!$F$29","v":"X"},{"$f":"Menu!$J$29","v":2020},{"$f":"IF(ISBLANK(INDIRECT(\"'\"&F6768&\"'!\"&G6768)),\"\",INDIRECT(\"'\"&F6768&\"'!\"&G6768))","v":""},{"$f":"IF(ISBLANK(INDIRECT(\"'\"&F6768&\"'!\"&H6768)),\"\",IFERROR(VLOOKUP(TEXT(INDIRECT(\"'\"&F6768&\"'!\"&H6768),\"0\"),Notes!$B$5:$C$100,2,FALSE),\"\"))","v":""},"2d","$AE$130","$AF$130"]
[26028,{"$f":"Menu!$F$29","v":"X"},{"$f":"Menu!$J$29","v":2020},{"$f":"IF(ISBLANK(INDIRECT(\"'\"&F6769&\"'!\"&G6769)),\"\",INDIRECT(\"'\"&F6769&\"'!\"&G6769))","v":""},{"$f":"IF(ISBLANK(INDIRECT(\"'\"&F6769&\"'!\"&H6769)),\"\",IFERROR(VLOOKUP(TEXT(INDIRECT(\"'\"&F6769&\"'!\"&H6769),\"0\"),Notes!$B$5:$C$100,2,FALSE),\"\"))","v":""},"2d","$W$130","$X$130"]
[26029,{"$f":"Menu!$F$29","v":"X"},{"$f":"Menu!$J$29","v":2020},{"$f":"IF(ISBLANK(INDIRECT(\"'\"&F6770&\"'!\"&G6770)),\"\",INDIRECT(\"'\"&F6770&\"'!\"&G6770))","v":""},{"$f":"IF(ISBLANK(INDIRECT(\"'\"&F6770&\"'!\"&H6770)),\"\",IFERROR(VLOOKUP(TEXT(INDIRECT(\"'\"&F6770&\"'!\"&H6770),\"0\"),Notes!$B$5:$C$100,2,FALSE),\"\"))","v":""},"2d","$AA$130","$AB$130"]
[26030,{"$f":"Menu!$F$29","v":"X"},{"$f":"Menu!$J$29","v":2020},{"$f":"IF(ISBLANK(INDIRECT(\"'\"&F6771&\"'!\"&G6771)),\"\",INDIRECT(\"'\"&F6771&\"'!\"&G6771))","v":""},{"$f":"IF(ISBLANK(INDIRECT(\"'\"&F6771&\"'!\"&H6771)),\"\",IFERROR(VLOOKUP(TEXT(INDIRECT(\"'\"&F6771&\"'!\"&H6771),\"0\"),Notes!$B$5:$C$100,2,FALSE),\"\"))","v":""},"2d","$Y$130","$Z$130"]
[26031,{"$f":"Menu!$F$29","v":"X"},{"$f":"Menu!$J$29","v":2020},{"$f":"IF(ISBLANK(INDIRECT(\"'\"&F6772&\"'!\"&G6772)),\"\",INDIRECT(\"'\"&F6772&\"'!\"&G6772))","v":""},{"$f":"IF(ISBLANK(INDIRECT(\"'\"&F6772&\"'!\"&H6772)),\"\",IFERROR(VLOOKUP(TEXT(INDIRECT(\"'\"&F6772&\"'!\"&H6772),\"0\"),Notes!$B$5:$C$100,2,FALSE),\"\"))","v":""},"2d","$E$130","$F$130"]
[26032,{"$f":"Menu!$F$29","v":"X"},{"$f":"Menu!$J$29","v":2020},{"$f":"IF(ISBLANK(INDIRECT(\"'\"&F6773&\"'!\"&G6773)),\"\",INDIRECT(\"'\"&F6773&\"'!\"&G6773))","v":""},{"$f":"IF(ISBLANK(INDIRECT(\"'\"&F6773&\"'!\"&H6773)),\"\",IFERROR(VLOOKUP(TEXT(INDIRECT(\"'\"&F6773&\"'!\"&H6773),\"0\"),Notes!$B$5:$C$100,2,FALSE),\"\"))","v":""},"2d","$I$130","$J$130"]
[26033,{"$f":"Menu!$F$29","v":"X"},{"$f":"Menu!$J$29","v":2020},{"$f":"IF(ISBLANK(INDIRECT(\"'\"&F6774&\"'!\"&G6774)),\"\",INDIRECT(\"'\"&F6774&\"'!\"&G6774))","v":""},{"$f":"IF(ISBLANK(INDIRECT(\"'\"&F6774&\"'!\"&H6774)),\"\",IFERROR(VLOOKUP(TEXT(INDIRECT(\"'\"&F6774&\"'!\"&H6774),\"0\"),Notes!$B$5:$C$100,2,FALSE),\"\"))","v":""},"2d","$G$130","$H$130"]
[26034,{"$f":"Menu!$F$29","v":"X"},{"$f":"Menu!$J$29","v":2020},{"$f":"IF(ISBLANK(INDIRECT(\"'\"&F6775&\"'!\"&G6775)),\"\",INDIRECT(\"'\"&F6775&\"'!\"&G6775))","v":""},{"$f":"IF(ISBLANK(INDIRECT(\"'\"&F6775&\"'!\"&H6775)),\"\",IFERROR(VLOOKUP(TEXT(INDIRECT(\"'\"&F6775&\"'!\"&H6775),\"0\"),Notes!$B$5:$C$100,2,FALSE),\"\"))","v":""},"2a","$Q$130","$R$130"]
[26035,{"$f":"Menu!$F$29","v":"X"},{"$f":"Menu!$J$29","v":2020},{"$f":"IF(ISBLANK(INDIRECT(\"'\"&F6776&\"'!\"&G6776)),\"\",INDIRECT(\"'\"&F6776&\"'!\"&G6776))","v":""},{"$f":"IF(ISBLANK(INDIRECT(\"'\"&F6776&\"'!\"&H6776)),\"\",IFERROR(VLOOKUP(TEXT(INDIRECT(\"'\"&F6776&\"'!\"&H6776),\"0\"),Notes!$B$5:$C$100,2,FALSE),\"\"))","v":""},"2a","$U$130","$V$130"]
[26036,{"$f":"Menu!$F$29","v":"X"},{"$f":"Menu!$J$29","v":2020},{"$f":"IF(ISBLANK(INDIRECT(\"'\"&F6777&\"'!\"&G6777)),\"\",INDIRECT(\"'\"&F6777&\"'!\"&G6777))","v":""},{"$f":"IF(ISBLANK(INDIRECT(\"'\"&F6777&\"'!\"&H6777)),\"\",IFERROR(VLOOKUP(TEXT(INDIRECT(\"'\"&F6777&\"'!\"&H6777),\"0\"),Notes!$B$5:$C$100,2,FALSE),\"\"))","v":""},"2a","$S$130","$T$130"]
[26037,{"$f":"Menu!$F$29","v":"X"},{"$f":"Menu!$J$29","v":2020},{"$f":"IF(ISBLANK(INDIRECT(\"'\"&F6778&\"'!\"&G6778)),\"\",INDIRECT(\"'\"&F6778&\"'!\"&G6778))","v":""},{"$f":"IF(ISBLANK(INDIRECT(\"'\"&F6778&\"'!\"&H6778)),\"\",IFERROR(VLOOKUP(TEXT(INDIRECT(\"'\"&F6778&\"'!\"&H6778),\"0\"),Notes!$B$5:$C$100,2,FALSE),\"\"))","v":""},"2d","$K$130","$L$130"]
[26038,{"$f":"Menu!$F$29","v":"X"},{"$f":"Menu!$J$29","v":2020},{"$f":"IF(ISBLANK(INDIRECT(\"'\"&F6779&\"'!\"&G6779)),\"\",INDIRECT(\"'\"&F6779&\"'!\"&G6779))","v":""},{"$f":"IF(ISBLANK(INDIRECT(\"'\"&F6779&\"'!\"&H6779)),\"\",IFERROR(VLOOKUP(TEXT(INDIRECT(\"'\"&F6779&\"'!\"&H6779),\"0\"),Notes!$B$5:$C$100,2,FALSE),\"\"))","v":""},"2d","$O$130","$P$130"]
[26039,{"$f":"Menu!$F$29","v":"X"},{"$f":"Menu!$J$29","v":2020},{"$f":"IF(ISBLANK(INDIRECT(\"'\"&F6780&\"'!\"&G6780)),\"\",INDIRECT(\"'\"&F6780&\"'!\"&G6780))","v":""},{"$f":"IF(ISBLANK(INDIRECT(\"'\"&F6780&\"'!\"&H6780)),\"\",IFERROR(VLOOKUP(TEXT(INDIRECT(\"'\"&F6780&\"'!\"&H6780),\"0\"),Notes!$B$5:$C$100,2,FALSE),\"\"))","v":""},"2d","$M$130","$N$130"]
[26040,{"$f":"Menu!$F$29","v":"X"},{"$f":"Menu!$J$29","v":2020},{"$f":"IF(ISBLANK(INDIRECT(\"'\"&F6781&\"'!\"&G6781)),\"\",INDIRECT(\"'\"&F6781&\"'!\"&G6781))","v":""},{"$f":"IF(ISBLANK(INDIRECT(\"'\"&F6781&\"'!\"&H6781)),\"\",IFERROR(VLOOKUP(TEXT(INDIRECT(\"'\"&F6781&\"'!\"&H6781),\"0\"),Notes!$B$5:$C$100,2,FALSE),\"\"))","v":""},"2d","$Q$130","$R$130"]
[26041,{"$f":"Menu!$F$29","v":"X"},{"$f":"Menu!$J$29","v":2020},{"$f":"IF(ISBLANK(INDIRECT(\"'\"&F6782&\"'!\"&G6782)),\"\",INDIRECT(\"'\"&F6782&\"'!\"&G6782))","v":""},{"$f":"IF(ISBLANK(INDIRECT(\"'\"&F6782&\"'!\"&H6782)),\"\",IFERROR(VLOOKUP(TEXT(INDIRECT(\"'\"&F6782&\"'!\"&H6782),\"0\"),Notes!$B$5:$C$100,2,FALSE),\"\"))","v":""},"2d","$U$130","$V$130"]
[26042,{"$f":"Menu!$F$29","v":"X"},{"$f":"Menu!$J$29","v":2020},{"$f":"IF(ISBLANK(INDIRECT(\"'\"&F6783&\"'!\"&G6783)),\"\",INDIRECT(\"'\"&F6783&\"'!\"&G6783))","v":""},{"$f":"IF(ISBLANK(INDIRECT(\"'\"&F6783&\"'!\"&H6783)),\"\",IFERROR(VLOOKUP(TEXT(INDIRECT(\"'\"&F6783&\"'!\"&H6783),\"0\"),Notes!$B$5:$C$100,2,FALSE),\"\"))","v":""},"2d","$S$130","$T$130"]
[26043,{"$f":"Menu!$F$29","v":"X"},{"$f":"Menu!$J$29","v":2020},{"$f":"IF(ISBLANK(INDIRECT(\"'\"&F6784&\"'!\"&G6784)),\"\",INDIRECT(\"'\"&F6784&\"'!\"&G6784))","v":""},{"$f":"IF(ISBLANK(INDIRECT(\"'\"&F6784&\"'!\"&H6784)),\"\",IFERROR(VLOOKUP(TEXT(INDIRECT(\"'\"&F6784&\"'!\"&H6784),\"0\"),Notes!$B$5:$C$100,2,FALSE),\"\"))","v":""},"2a","$K$130","$L$130"]
[26044,{"$f":"Menu!$F$29","v":"X"},{"$f":"Menu!$J$29","v":2020},{"$f":"IF(ISBLANK(INDIRECT(\"'\"&F6785&\"'!\"&G6785)),\"\",INDIRECT(\"'\"&F6785&\"'!\"&G6785))","v":""},{"$f":"IF(ISBLANK(INDIRECT(\"'\"&F6785&\"'!\"&H6785)),\"\",IFERROR(VLOOKUP(TEXT(INDIRECT(\"'\"&F6785&\"'!\"&H6785),\"0\"),Notes!$B$5:$C$100,2,FALSE),\"\"))","v":""},"2a","$O$130","$P$130"]
[26045,{"$f":"Menu!$F$29","v":"X"},{"$f":"Menu!$J$29","v":2020},{"$f":"IF(ISBLANK(INDIRECT(\"'\"&F6786&\"'!\"&G6786)),\"\",INDIRECT(\"'\"&F6786&\"'!\"&G6786))","v":""},{"$f":"IF(ISBLANK(INDIRECT(\"'\"&F6786&\"'!\"&H6786)),\"\",IFERROR(VLOOKUP(TEXT(INDIRECT(\"'\"&F6786&\"'!\"&H6786),\"0\"),Notes!$B$5:$C$100,2,FALSE),\"\"))","v":""},"2a","$M$130",{"$f":"IF(LEN(TRIM(MID(G6786,4,10)))-LEN(SUBSTITUTE(TRIM(MID(G6786,4,10)),\"$\",\"\"))=0,\"$\"&CHAR(CODE(MID(G6786,2,1))+1)&\"$\"&TRIM(MID(G6786,4,10)),\"$\"&MID(G6786,2,1)&CHAR(CODE(MID(G6786,3,1))+1)&\"$\"&TRIM(MID(G6786,5,11)))","v":"$N$130"}]
[26046,{"$f":"Menu!$F$29","v":"X"},{"$f":"Menu!$J$29","v":2020},{"$f":"IF(ISBLANK(INDIRECT(\"'\"&F6787&\"'!\"&G6787)),\"\",INDIRECT(\"'\"&F6787&\"'!\"&G6787))","v":""},{"$f":"IF(ISBLANK(INDIRECT(\"'\"&F6787&\"'!\"&H6787)),\"\",IFERROR(VLOOKUP(TEXT(INDIRECT(\"'\"&F6787&\"'!\"&H6787),\"0\"),Notes!$B$5:$C$100,2,FALSE),\"\"))","v":""},"2a","$E$130","$F$130"]
[26047,{"$f":"Menu!$F$29","v":"X"},{"$f":"Menu!$J$29","v":2020},{"$f":"IF(ISBLANK(INDIRECT(\"'\"&F6788&\"'!\"&G6788)),\"\",INDIRECT(\"'\"&F6788&\"'!\"&G6788))","v":""},{"$f":"IF(ISBLANK(INDIRECT(\"'\"&F6788&\"'!\"&H6788)),\"\",IFERROR(VLOOKUP(TEXT(INDIRECT(\"'\"&F6788&\"'!\"&H6788),\"0\"),Notes!$B$5:$C$100,2,FALSE),\"\"))","v":""},"2b","$K$131","$L$131"]
[26048,{"$f":"Menu!$F$29","v":"X"},{"$f":"Menu!$J$29","v":2020},{"$f":"IF(ISBLANK(INDIRECT(\"'\"&F6789&\"'!\"&G6789)),\"\",INDIRECT(\"'\"&F6789&\"'!\"&G6789))","v":""},{"$f":"IF(ISBLANK(INDIRECT(\"'\"&F6789&\"'!\"&H6789)),\"\",IFERROR(VLOOKUP(TEXT(INDIRECT(\"'\"&F6789&\"'!\"&H6789),\"0\"),Notes!$B$5:$C$100,2,FALSE),\"\"))","v":""},"2b","$O$131","$P$131"]
[26049,{"$f":"Menu!$F$29","v":"X"},{"$f":"Menu!$J$29","v":2020},{"$f":"IF(ISBLANK(INDIRECT(\"'\"&F6790&\"'!\"&G6790)),\"\",INDIRECT(\"'\"&F6790&\"'!\"&G6790))","v":""},{"$f":"IF(ISBLANK(INDIRECT(\"'\"&F6790&\"'!\"&H6790)),\"\",IFERROR(VLOOKUP(TEXT(INDIRECT(\"'\"&F6790&\"'!\"&H6790),\"0\"),Notes!$B$5:$C$100,2,FALSE),\"\"))","v":""},"2b","$M$131","$N$131"]
[26050,{"$f":"Menu!$F$29","v":"X"},{"$f":"Menu!$J$29","v":2020},{"$f":"IF(ISBLANK(INDIRECT(\"'\"&F6791&\"'!\"&G6791)),\"\",INDIRECT(\"'\"&F6791&\"'!\"&G6791))","v":""},{"$f":"IF(ISBLANK(INDIRECT(\"'\"&F6791&\"'!\"&H6791)),\"\",IFERROR(VLOOKUP(TEXT(INDIRECT(\"'\"&F6791&\"'!\"&H6791),\"0\"),Notes!$B$5:$C$100,2,FALSE),\"\"))","v":""},"2b","$Q$131","$R$131"]
[26051,{"$f":"Menu!$F$29","v":"X"},{"$f":"Menu!$J$29","v":2020},{"$f":"IF(ISBLANK(INDIRECT(\"'\"&F6792&\"'!\"&G6792)),\"\",INDIRECT(\"'\"&F6792&\"'!\"&G6792))","v":""},{"$f":"IF(ISBLANK(INDIRECT(\"'\"&F6792&\"'!\"&H6792)),\"\",IFERROR(VLOOKUP(TEXT(INDIRECT(\"'\"&F6792&\"'!\"&H6792),\"0\"),Notes!$B$5:$C$100,2,FALSE),\"\"))","v":""},"2b","$U$131","$V$131"]
[26052,{"$f":"Menu!$F$29","v":"X"},{"$f":"Menu!$J$29","v":2020},{"$f":"IF(ISBLANK(INDIRECT(\"'\"&F6793&\"'!\"&G6793)),\"\",INDIRECT(\"'\"&F6793&\"'!\"&G6793))","v":""},{"$f":"IF(ISBLANK(INDIRECT(\"'\"&F6793&\"'!\"&H6793)),\"\",IFERROR(VLOOKUP(TEXT(INDIRECT(\"'\"&F6793&\"'!\"&H6793),\"0\"),Notes!$B$5:$C$100,2,FALSE),\"\"))","v":""},"2b","$S$131","$T$131"]
[26056,{"$f":"Menu!$F$29","v":"X"},{"$f":"Menu!$J$29","v":2020},{"$f":"IF(ISBLANK(INDIRECT(\"'\"&F6794&\"'!\"&G6794)),\"\",INDIRECT(\"'\"&F6794&\"'!\"&G6794))","v":""},{"$f":"IF(ISBLANK(INDIRECT(\"'\"&F6794&\"'!\"&H6794)),\"\",IFERROR(VLOOKUP(TEXT(INDIRECT(\"'\"&F6794&\"'!\"&H6794),\"0\"),Notes!$B$5:$C$100,2,FALSE),\"\"))","v":""},"2a","$I$131","$J$131"]
[26057,{"$f":"Menu!$F$29","v":"X"},{"$f":"Menu!$J$29","v":2020},{"$f":"IF(ISBLANK(INDIRECT(\"'\"&F6795&\"'!\"&G6795)),\"\",INDIRECT(\"'\"&F6795&\"'!\"&G6795))","v":""},{"$f":"IF(ISBLANK(INDIRECT(\"'\"&F6795&\"'!\"&H6795)),\"\",IFERROR(VLOOKUP(TEXT(INDIRECT(\"'\"&F6795&\"'!\"&H6795),\"0\"),Notes!$B$5:$C$100,2,FALSE),\"\"))","v":""},"2c","$E$131","$F$131"]
[26058,{"$f":"Menu!$F$29","v":"X"},{"$f":"Menu!$J$29","v":2020},{"$f":"IF(ISBLANK(INDIRECT(\"'\"&F6796&\"'!\"&G6796)),\"\",INDIRECT(\"'\"&F6796&\"'!\"&G6796))","v":""},{"$f":"IF(ISBLANK(INDIRECT(\"'\"&F6796&\"'!\"&H6796)),\"\",IFERROR(VLOOKUP(TEXT(INDIRECT(\"'\"&F6796&\"'!\"&H6796),\"0\"),Notes!$B$5:$C$100,2,FALSE),\"\"))","v":""},"2c","$I$131","$J$131"]
[26059,{"$f":"Menu!$F$29","v":"X"},{"$f":"Menu!$J$29","v":2020},{"$f":"IF(ISBLANK(INDIRECT(\"'\"&F6797&\"'!\"&G6797)),\"\",INDIRECT(\"'\"&F6797&\"'!\"&G6797))","v":""},{"$f":"IF(ISBLANK(INDIRECT(\"'\"&F6797&\"'!\"&H6797)),\"\",IFERROR(VLOOKUP(TEXT(INDIRECT(\"'\"&F6797&\"'!\"&H6797),\"0\"),Notes!$B$5:$C$100,2,FALSE),\"\"))","v":""},"2c","$G$131","$H$131"]
[26063,{"$f":"Menu!$F$29","v":"X"},{"$f":"Menu!$J$29","v":2020},{"$f":"IF(ISBLANK(INDIRECT(\"'\"&F6798&\"'!\"&G6798)),\"\",INDIRECT(\"'\"&F6798&\"'!\"&G6798))","v":""},{"$f":"IF(ISBLANK(INDIRECT(\"'\"&F6798&\"'!\"&H6798)),\"\",IFERROR(VLOOKUP(TEXT(INDIRECT(\"'\"&F6798&\"'!\"&H6798),\"0\"),Notes!$B$5:$C$100,2,FALSE),\"\"))","v":""},"2c","$K$131","$L$131"]
[26064,{"$f":"Menu!$F$29","v":"X"},{"$f":"Menu!$J$29","v":2020},{"$f":"IF(ISBLANK(INDIRECT(\"'\"&F6799&\"'!\"&G6799)),\"\",INDIRECT(\"'\"&F6799&\"'!\"&G6799))","v":""},{"$f":"IF(ISBLANK(INDIRECT(\"'\"&F6799&\"'!\"&H6799)),\"\",IFERROR(VLOOKUP(TEXT(INDIRECT(\"'\"&F6799&\"'!\"&H6799),\"0\"),Notes!$B$5:$C$100,2,FALSE),\"\"))","v":""},"2c","$O$131","$P$131"]
[26065,{"$f":"Menu!$F$29","v":"X"},{"$f":"Menu!$J$29","v":2020},{"$f":"IF(ISBLANK(INDIRECT(\"'\"&F6800&\"'!\"&G6800)),\"\",INDIRECT(\"'\"&F6800&\"'!\"&G6800))","v":""},{"$f":"IF(ISBLANK(INDIRECT(\"'\"&F6800&\"'!\"&H6800)),\"\",IFERROR(VLOOKUP(TEXT(INDIRECT(\"'\"&F6800&\"'!\"&H6800),\"0\"),Notes!$B$5:$C$100,2,FALSE),\"\"))","v":""},"2c","$M$131","$N$131"]
[26066,{"$f":"Menu!$F$29","v":"X"},{"$f":"Menu!$J$29","v":2020},{"$f":"IF(ISBLANK(INDIRECT(\"'\"&F6801&\"'!\"&G6801)),\"\",INDIRECT(\"'\"&F6801&\"'!\"&G6801))","v":""},{"$f":"IF(ISBLANK(INDIRECT(\"'\"&F6801&\"'!\"&H6801)),\"\",IFERROR(VLOOKUP(TEXT(INDIRECT(\"'\"&F6801&\"'!\"&H6801),\"0\"),Notes!$B$5:$C$100,2,FALSE),\"\"))","v":""},"2c","$Q$131","$R$131"]
[26067,{"$f":"Menu!$F$29","v":"X"},{"$f":"Menu!$J$29","v":2020},{"$f":"IF(ISBLANK(INDIRECT(\"'\"&F6802&\"'!\"&G6802)),\"\",INDIRECT(\"'\"&F6802&\"'!\"&G6802))","v":""},{"$f":"IF(ISBLANK(INDIRECT(\"'\"&F6802&\"'!\"&H6802)),\"\",IFERROR(VLOOKUP(TEXT(INDIRECT(\"'\"&F6802&\"'!\"&H6802),\"0\"),Notes!$B$5:$C$100,2,FALSE),\"\"))","v":""},"2c","$U$131","$V$131"]
[26068,{"$f":"Menu!$F$29","v":"X"},{"$f":"Menu!$J$29","v":2020},{"$f":"IF(ISBLANK(INDIRECT(\"'\"&F6803&\"'!\"&G6803)),\"\",INDIRECT(\"'\"&F6803&\"'!\"&G6803))","v":""},{"$f":"IF(ISBLANK(INDIRECT(\"'\"&F6803&\"'!\"&H6803)),\"\",IFERROR(VLOOKUP(TEXT(INDIRECT(\"'\"&F6803&\"'!\"&H6803),\"0\"),Notes!$B$5:$C$100,2,FALSE),\"\"))","v":""},"2c","$S$131","$T$131"]
[26069,{"$f":"Menu!$F$29","v":"X"},{"$f":"Menu!$J$29","v":2020},{"$f":"IF(ISBLANK(INDIRECT(\"'\"&F6804&\"'!\"&G6804)),\"\",INDIRECT(\"'\"&F6804&\"'!\"&G6804))","v":""},{"$f":"IF(ISBLANK(INDIRECT(\"'\"&F6804&\"'!\"&H6804)),\"\",IFERROR(VLOOKUP(TEXT(INDIRECT(\"'\"&F6804&\"'!\"&H6804),\"0\"),Notes!$B$5:$C$100,2,FALSE),\"\"))","v":""},"2c","$W$131","$X$131"]
[26070,{"$f":"Menu!$F$29","v":"X"},{"$f":"Menu!$J$29","v":2020},{"$f":"IF(ISBLANK(INDIRECT(\"'\"&F6805&\"'!\"&G6805)),\"\",INDIRECT(\"'\"&F6805&\"'!\"&G6805))","v":""},{"$f":"IF(ISBLANK(INDIRECT(\"'\"&F6805&\"'!\"&H6805)),\"\",IFERROR(VLOOKUP(TEXT(INDIRECT(\"'\"&F6805&\"'!\"&H6805),\"0\"),Notes!$B$5:$C$100,2,FALSE),\"\"))","v":""},"2c","$AA$131","$AB$131"]
[26071,{"$f":"Menu!$F$29","v":"X"},{"$f":"Menu!$J$29","v":2020},{"$f":"IF(ISBLANK(INDIRECT(\"'\"&F6806&\"'!\"&G6806)),\"\",INDIRECT(\"'\"&F6806&\"'!\"&G6806))","v":""},{"$f":"IF(ISBLANK(INDIRECT(\"'\"&F6806&\"'!\"&H6806)),\"\",IFERROR(VLOOKUP(TEXT(INDIRECT(\"'\"&F6806&\"'!\"&H6806),\"0\"),Notes!$B$5:$C$100,2,FALSE),\"\"))","v":""},"2c","$Y$131","$Z$131"]
[26078,{"$f":"Menu!$F$29","v":"X"},{"$f":"Menu!$J$29","v":2020},{"$f":"IF(ISBLANK(INDIRECT(\"'\"&F6807&\"'!\"&G6807)),\"\",INDIRECT(\"'\"&F6807&\"'!\"&G6807))","v":""},{"$f":"IF(ISBLANK(INDIRECT(\"'\"&F6807&\"'!\"&H6807)),\"\",IFERROR(VLOOKUP(TEXT(INDIRECT(\"'\"&F6807&\"'!\"&H6807),\"0\"),Notes!$B$5:$C$100,2,FALSE),\"\"))","v":""},"2e","$BG$132","$BH$132"]
[26079,{"$f":"Menu!$F$29","v":"X"},{"$f":"Menu!$J$29","v":2020},{"$f":"IF(ISBLANK(INDIRECT(\"'\"&F6808&\"'!\"&G6808)),\"\",INDIRECT(\"'\"&F6808&\"'!\"&G6808))","v":""},{"$f":"IF(ISBLANK(INDIRECT(\"'\"&F6808&\"'!\"&H6808)),\"\",IFERROR(VLOOKUP(TEXT(INDIRECT(\"'\"&F6808&\"'!\"&H6808),\"0\"),Notes!$B$5:$C$100,2,FALSE),\"\"))","v":""},"2e","$BK$132","$BL$132"]
[26080,{"$f":"Menu!$F$29","v":"X"},{"$f":"Menu!$J$29","v":2020},{"$f":"IF(ISBLANK(INDIRECT(\"'\"&F6809&\"'!\"&G6809)),\"\",INDIRECT(\"'\"&F6809&\"'!\"&G6809))","v":""},{"$f":"IF(ISBLANK(INDIRECT(\"'\"&F6809&\"'!\"&H6809)),\"\",IFERROR(VLOOKUP(TEXT(INDIRECT(\"'\"&F6809&\"'!\"&H6809),\"0\"),Notes!$B$5:$C$100,2,FALSE),\"\"))","v":""},"2e","$BI$132","$BJ$132"]
[26081,{"$f":"Menu!$F$29","v":"X"},{"$f":"Menu!$J$29","v":2020},{"$f":"IF(ISBLANK(INDIRECT(\"'\"&F6810&\"'!\"&G6810)),\"\",INDIRECT(\"'\"&F6810&\"'!\"&G6810))","v":""},{"$f":"IF(ISBLANK(INDIRECT(\"'\"&F6810&\"'!\"&H6810)),\"\",IFERROR(VLOOKUP(TEXT(INDIRECT(\"'\"&F6810&\"'!\"&H6810),\"0\"),Notes!$B$5:$C$100,2,FALSE),\"\"))","v":""},"2e","$E$132","$F$132"]
[26082,{"$f":"Menu!$F$29","v":"X"},{"$f":"Menu!$J$29","v":2020},{"$f":"IF(ISBLANK(INDIRECT(\"'\"&F6811&\"'!\"&G6811)),\"\",INDIRECT(\"'\"&F6811&\"'!\"&G6811))","v":""},{"$f":"IF(ISBLANK(INDIRECT(\"'\"&F6811&\"'!\"&H6811)),\"\",IFERROR(VLOOKUP(TEXT(INDIRECT(\"'\"&F6811&\"'!\"&H6811),\"0\"),Notes!$B$5:$C$100,2,FALSE),\"\"))","v":""},"2e","$I$132","$J$132"]
[26083,{"$f":"Menu!$F$29","v":"X"},{"$f":"Menu!$J$29","v":2020},{"$f":"IF(ISBLANK(INDIRECT(\"'\"&F6812&\"'!\"&G6812)),\"\",INDIRECT(\"'\"&F6812&\"'!\"&G6812))","v":""},{"$f":"IF(ISBLANK(INDIRECT(\"'\"&F6812&\"'!\"&H6812)),\"\",IFERROR(VLOOKUP(TEXT(INDIRECT(\"'\"&F6812&\"'!\"&H6812),\"0\"),Notes!$B$5:$C$100,2,FALSE),\"\"))","v":""},"2e","$G$132","$H$132"]
[26084,{"$f":"Menu!$F$29","v":"X"},{"$f":"Menu!$J$29","v":2020},{"$f":"IF(ISBLANK(INDIRECT(\"'\"&F6813&\"'!\"&G6813)),\"\",INDIRECT(\"'\"&F6813&\"'!\"&G6813))","v":""},{"$f":"IF(ISBLANK(INDIRECT(\"'\"&F6813&\"'!\"&H6813)),\"\",IFERROR(VLOOKUP(TEXT(INDIRECT(\"'\"&F6813&\"'!\"&H6813),\"0\"),Notes!$B$5:$C$100,2,FALSE),\"\"))","v":""},"2e","$K$132","$L$132"]
[26085,{"$f":"Menu!$F$29","v":"X"},{"$f":"Menu!$J$29","v":2020},{"$f":"IF(ISBLANK(INDIRECT(\"'\"&F6814&\"'!\"&G6814)),\"\",INDIRECT(\"'\"&F6814&\"'!\"&G6814))","v":""},{"$f":"IF(ISBLANK(INDIRECT(\"'\"&F6814&\"'!\"&H6814)),\"\",IFERROR(VLOOKUP(TEXT(INDIRECT(\"'\"&F6814&\"'!\"&H6814),\"0\"),Notes!$B$5:$C$100,2,FALSE),\"\"))","v":""},"2e","$O$132","$P$132"]
[26086,{"$f":"Menu!$F$29","v":"X"},{"$f":"Menu!$J$29","v":2020},{"$f":"IF(ISBLANK(INDIRECT(\"'\"&F6815&\"'!\"&G6815)),\"\",INDIRECT(\"'\"&F6815&\"'!\"&G6815))","v":""},{"$f":"IF(ISBLANK(INDIRECT(\"'\"&F6815&\"'!\"&H6815)),\"\",IFERROR(VLOOKUP(TEXT(INDIRECT(\"'\"&F6815&\"'!\"&H6815),\"0\"),Notes!$B$5:$C$100,2,FALSE),\"\"))","v":""},"2e","$M$132","$N$132"]
[26087,{"$f":"Menu!$F$29","v":"X"},{"$f":"Menu!$J$29","v":2020},{"$f":"IF(ISBLANK(INDIRECT(\"'\"&F6816&\"'!\"&G6816)),\"\",INDIRECT(\"'\"&F6816&\"'!\"&G6816))","v":""},{"$f":"IF(ISBLANK(INDIRECT(\"'\"&F6816&\"'!\"&H6816)),\"\",IFERROR(VLOOKUP(TEXT(INDIRECT(\"'\"&F6816&\"'!\"&H6816),\"0\"),Notes!$B$5:$C$100,2,FALSE),\"\"))","v":""},"2e","$Q$132","$R$132"]
[26088,{"$f":"Menu!$F$29","v":"X"},{"$f":"Menu!$J$29","v":2020},{"$f":"IF(ISBLANK(INDIRECT(\"'\"&F6817&\"'!\"&G6817)),\"\",INDIRECT(\"'\"&F6817&\"'!\"&G6817))","v":""},{"$f":"IF(ISBLANK(INDIRECT(\"'\"&F6817&\"'!\"&H6817)),\"\",IFERROR(VLOOKUP(TEXT(INDIRECT(\"'\"&F6817&\"'!\"&H6817),\"0\"),Notes!$B$5:$C$100,2,FALSE),\"\"))","v":""},"2e","$U$132","$V$132"]
[26089,{"$f":"Menu!$F$29","v":"X"},{"$f":"Menu!$J$29","v":2020},{"$f":"IF(ISBLANK(INDIRECT(\"'\"&F6818&\"'!\"&G6818)),\"\",INDIRECT(\"'\"&F6818&\"'!\"&G6818))","v":""},{"$f":"IF(ISBLANK(INDIRECT(\"'\"&F6818&\"'!\"&H6818)),\"\",IFERROR(VLOOKUP(TEXT(INDIRECT(\"'\"&F6818&\"'!\"&H6818),\"0\"),Notes!$B$5:$C$100,2,FALSE),\"\"))","v":""},"2e","$S$132","$T$132"]
[26090,{"$f":"Menu!$F$29","v":"X"},{"$f":"Menu!$J$29","v":2020},{"$f":"IF(ISBLANK(INDIRECT(\"'\"&F6819&\"'!\"&G6819)),\"\",INDIRECT(\"'\"&F6819&\"'!\"&G6819))","v":""},{"$f":"IF(ISBLANK(INDIRECT(\"'\"&F6819&\"'!\"&H6819)),\"\",IFERROR(VLOOKUP(TEXT(INDIRECT(\"'\"&F6819&\"'!\"&H6819),\"0\"),Notes!$B$5:$C$100,2,FALSE),\"\"))","v":""},"2e","$W$132","$X$132"]
[26091,{"$f":"Menu!$F$29","v":"X"},{"$f":"Menu!$J$29","v":2020},{"$f":"IF(ISBLANK(INDIRECT(\"'\"&F6820&\"'!\"&G6820)),\"\",INDIRECT(\"'\"&F6820&\"'!\"&G6820))","v":""},{"$f":"IF(ISBLANK(INDIRECT(\"'\"&F6820&\"'!\"&H6820)),\"\",IFERROR(VLOOKUP(TEXT(INDIRECT(\"'\"&F6820&\"'!\"&H6820),\"0\"),Notes!$B$5:$C$100,2,FALSE),\"\"))","v":""},"2e","$AA$132","$AB$132"]
[26092,{"$f":"Menu!$F$29","v":"X"},{"$f":"Menu!$J$29","v":2020},{"$f":"IF(ISBLANK(INDIRECT(\"'\"&F6821&\"'!\"&G6821)),\"\",INDIRECT(\"'\"&F6821&\"'!\"&G6821))","v":""},{"$f":"IF(ISBLANK(INDIRECT(\"'\"&F6821&\"'!\"&H6821)),\"\",IFERROR(VLOOKUP(TEXT(INDIRECT(\"'\"&F6821&\"'!\"&H6821),\"0\"),Notes!$B$5:$C$100,2,FALSE),\"\"))","v":""},"2e","$Y$132","$Z$132"]
[26093,{"$f":"Menu!$F$29","v":"X"},{"$f":"Menu!$J$29","v":2020},{"$f":"IF(ISBLANK(INDIRECT(\"'\"&F6822&\"'!\"&G6822)),\"\",INDIRECT(\"'\"&F6822&\"'!\"&G6822))","v":""},{"$f":"IF(ISBLANK(INDIRECT(\"'\"&F6822&\"'!\"&H6822)),\"\",IFERROR(VLOOKUP(TEXT(INDIRECT(\"'\"&F6822&\"'!\"&H6822),\"0\"),Notes!$B$5:$C$100,2,FALSE),\"\"))","v":""},"2e","$AC$132","$AD$132"]
[26094,{"$f":"Menu!$F$29","v":"X"},{"$f":"Menu!$J$29","v":2020},{"$f":"IF(ISBLANK(INDIRECT(\"'\"&F6823&\"'!\"&G6823)),\"\",INDIRECT(\"'\"&F6823&\"'!\"&G6823))","v":""},{"$f":"IF(ISBLANK(INDIRECT(\"'\"&F6823&\"'!\"&H6823)),\"\",IFERROR(VLOOKUP(TEXT(INDIRECT(\"'\"&F6823&\"'!\"&H6823),\"0\"),Notes!$B$5:$C$100,2,FALSE),\"\"))","v":""},"2e","$AG$132","$AH$132"]
[26095,{"$f":"Menu!$F$29","v":"X"},{"$f":"Menu!$J$29","v":2020},{"$f":"IF(ISBLANK(INDIRECT(\"'\"&F6824&\"'!\"&G6824)),\"\",INDIRECT(\"'\"&F6824&\"'!\"&G6824))","v":""},{"$f":"IF(ISBLANK(INDIRECT(\"'\"&F6824&\"'!\"&H6824)),\"\",IFERROR(VLOOKUP(TEXT(INDIRECT(\"'\"&F6824&\"'!\"&H6824),\"0\"),Notes!$B$5:$C$100,2,FALSE),\"\"))","v":""},"2e","$AE$132","$AF$132"]
[26096,{"$f":"Menu!$F$29","v":"X"},{"$f":"Menu!$J$29","v":2020},{"$f":"IF(ISBLANK(INDIRECT(\"'\"&F6825&\"'!\"&G6825)),\"\",INDIRECT(\"'\"&F6825&\"'!\"&G6825))","v":""},{"$f":"IF(ISBLANK(INDIRECT(\"'\"&F6825&\"'!\"&H6825)),\"\",IFERROR(VLOOKUP(TEXT(INDIRECT(\"'\"&F6825&\"'!\"&H6825),\"0\"),Notes!$B$5:$C$100,2,FALSE),\"\"))","v":""},"2e","$AI$132","$AJ$132"]
[26097,{"$f":"Menu!$F$29","v":"X"},{"$f":"Menu!$J$29","v":2020},{"$f":"IF(ISBLANK(INDIRECT(\"'\"&F6826&\"'!\"&G6826)),\"\",INDIRECT(\"'\"&F6826&\"'!\"&G6826))","v":""},{"$f":"IF(ISBLANK(INDIRECT(\"'\"&F6826&\"'!\"&H6826)),\"\",IFERROR(VLOOKUP(TEXT(INDIRECT(\"'\"&F6826&\"'!\"&H6826),\"0\"),Notes!$B$5:$C$100,2,FALSE),\"\"))","v":""},"2e","$AM$132","$AN$132"]
[26098,{"$f":"Menu!$F$29","v":"X"},{"$f":"Menu!$J$29","v":2020},{"$f":"IF(ISBLANK(INDIRECT(\"'\"&F6827&\"'!\"&G6827)),\"\",INDIRECT(\"'\"&F6827&\"'!\"&G6827))","v":""},{"$f":"IF(ISBLANK(INDIRECT(\"'\"&F6827&\"'!\"&H6827)),\"\",IFERROR(VLOOKUP(TEXT(INDIRECT(\"'\"&F6827&\"'!\"&H6827),\"0\"),Notes!$B$5:$C$100,2,FALSE),\"\"))","v":""},"2e","$AK$132","$AL$132"]
[26099,{"$f":"Menu!$F$29","v":"X"},{"$f":"Menu!$J$29","v":2020},{"$f":"IF(ISBLANK(INDIRECT(\"'\"&F6828&\"'!\"&G6828)),\"\",INDIRECT(\"'\"&F6828&\"'!\"&G6828))","v":""},{"$f":"IF(ISBLANK(INDIRECT(\"'\"&F6828&\"'!\"&H6828)),\"\",IFERROR(VLOOKUP(TEXT(INDIRECT(\"'\"&F6828&\"'!\"&H6828),\"0\"),Notes!$B$5:$C$100,2,FALSE),\"\"))","v":""},"2e","$AO$132","$AP$132"]
[26100,{"$f":"Menu!$F$29","v":"X"},{"$f":"Menu!$J$29","v":2020},{"$f":"IF(ISBLANK(INDIRECT(\"'\"&F6829&\"'!\"&G6829)),\"\",INDIRECT(\"'\"&F6829&\"'!\"&G6829))","v":""},{"$f":"IF(ISBLANK(INDIRECT(\"'\"&F6829&\"'!\"&H6829)),\"\",IFERROR(VLOOKUP(TEXT(INDIRECT(\"'\"&F6829&\"'!\"&H6829),\"0\"),Notes!$B$5:$C$100,2,FALSE),\"\"))","v":""},"2e","$AS$132","$AT$132"]
[26101,{"$f":"Menu!$F$29","v":"X"},{"$f":"Menu!$J$29","v":2020},{"$f":"IF(ISBLANK(INDIRECT(\"'\"&F6830&\"'!\"&G6830)),\"\",INDIRECT(\"'\"&F6830&\"'!\"&G6830))","v":""},{"$f":"IF(ISBLANK(INDIRECT(\"'\"&F6830&\"'!\"&H6830)),\"\",IFERROR(VLOOKUP(TEXT(INDIRECT(\"'\"&F6830&\"'!\"&H6830),\"0\"),Notes!$B$5:$C$100,2,FALSE),\"\"))","v":""},"2e","$AQ$132","$AR$132"]
[26102,{"$f":"Menu!$F$29","v":"X"},{"$f":"Menu!$J$29","v":2020},{"$f":"IF(ISBLANK(INDIRECT(\"'\"&F6831&\"'!\"&G6831)),\"\",INDIRECT(\"'\"&F6831&\"'!\"&G6831))","v":""},{"$f":"IF(ISBLANK(INDIRECT(\"'\"&F6831&\"'!\"&H6831)),\"\",IFERROR(VLOOKUP(TEXT(INDIRECT(\"'\"&F6831&\"'!\"&H6831),\"0\"),Notes!$B$5:$C$100,2,FALSE),\"\"))","v":""},"2e","$AU$132","$AV$132"]
[26103,{"$f":"Menu!$F$29","v":"X"},{"$f":"Menu!$J$29","v":2020},{"$f":"IF(ISBLANK(INDIRECT(\"'\"&F6832&\"'!\"&G6832)),\"\",INDIRECT(\"'\"&F6832&\"'!\"&G6832))","v":""},{"$f":"IF(ISBLANK(INDIRECT(\"'\"&F6832&\"'!\"&H6832)),\"\",IFERROR(VLOOKUP(TEXT(INDIRECT(\"'\"&F6832&\"'!\"&H6832),\"0\"),Notes!$B$5:$C$100,2,FALSE),\"\"))","v":""},"2e","$AY$132","$AZ$132"]
[26104,{"$f":"Menu!$F$29","v":"X"},{"$f":"Menu!$J$29","v":2020},{"$f":"IF(ISBLANK(INDIRECT(\"'\"&F6833&\"'!\"&G6833)),\"\",INDIRECT(\"'\"&F6833&\"'!\"&G6833))","v":""},{"$f":"IF(ISBLANK(INDIRECT(\"'\"&F6833&\"'!\"&H6833)),\"\",IFERROR(VLOOKUP(TEXT(INDIRECT(\"'\"&F6833&\"'!\"&H6833),\"0\"),Notes!$B$5:$C$100,2,FALSE),\"\"))","v":""},"2e","$AW$132","$AX$132"]
[26105,{"$f":"Menu!$F$29","v":"X"},{"$f":"Menu!$J$29","v":2020},{"$f":"IF(ISBLANK(INDIRECT(\"'\"&F6834&\"'!\"&G6834)),\"\",INDIRECT(\"'\"&F6834&\"'!\"&G6834))","v":""},{"$f":"IF(ISBLANK(INDIRECT(\"'\"&F6834&\"'!\"&H6834)),\"\",IFERROR(VLOOKUP(TEXT(INDIRECT(\"'\"&F6834&\"'!\"&H6834),\"0\"),Notes!$B$5:$C$100,2,FALSE),\"\"))","v":""},"2e","$BA$132","$BB$132"]
[26106,{"$f":"Menu!$F$29","v":"X"},{"$f":"Menu!$J$29","v":2020},{"$f":"IF(ISBLANK(INDIRECT(\"'\"&F6835&\"'!\"&G6835)),\"\",INDIRECT(\"'\"&F6835&\"'!\"&G6835))","v":""},{"$f":"IF(ISBLANK(INDIRECT(\"'\"&F6835&\"'!\"&H6835)),\"\",IFERROR(VLOOKUP(TEXT(INDIRECT(\"'\"&F6835&\"'!\"&H6835),\"0\"),Notes!$B$5:$C$100,2,FALSE),\"\"))","v":""},"2e","$BE$132","$BF$132"]
[26107,{"$f":"Menu!$F$29","v":"X"},{"$f":"Menu!$J$29","v":2020},{"$f":"IF(ISBLANK(INDIRECT(\"'\"&F6836&\"'!\"&G6836)),\"\",INDIRECT(\"'\"&F6836&\"'!\"&G6836))","v":""},{"$f":"IF(ISBLANK(INDIRECT(\"'\"&F6836&\"'!\"&H6836)),\"\",IFERROR(VLOOKUP(TEXT(INDIRECT(\"'\"&F6836&\"'!\"&H6836),\"0\"),Notes!$B$5:$C$100,2,FALSE),\"\"))","v":""},"2e","$BC$132","$BD$132"]
[26108,{"$f":"Menu!$F$29","v":"X"},{"$f":"Menu!$J$29","v":2020},{"$f":"IF(ISBLANK(INDIRECT(\"'\"&F6837&\"'!\"&G6837)),\"\",INDIRECT(\"'\"&F6837&\"'!\"&G6837))","v":""},{"$f":"IF(ISBLANK(INDIRECT(\"'\"&F6837&\"'!\"&H6837)),\"\",IFERROR(VLOOKUP(TEXT(INDIRECT(\"'\"&F6837&\"'!\"&H6837),\"0\"),Notes!$B$5:$C$100,2,FALSE),\"\"))","v":""},"2b","$E$131","$F$131"]
[26109,{"$f":"Menu!$F$29","v":"X"},{"$f":"Menu!$J$29","v":2020},{"$f":"IF(ISBLANK(INDIRECT(\"'\"&F6838&\"'!\"&G6838)),\"\",INDIRECT(\"'\"&F6838&\"'!\"&G6838))","v":""},{"$f":"IF(ISBLANK(INDIRECT(\"'\"&F6838&\"'!\"&H6838)),\"\",IFERROR(VLOOKUP(TEXT(INDIRECT(\"'\"&F6838&\"'!\"&H6838),\"0\"),Notes!$B$5:$C$100,2,FALSE),\"\"))","v":""},"2b","$I$131","$J$131"]
[26110,{"$f":"Menu!$F$29","v":"X"},{"$f":"Menu!$J$29","v":2020},{"$f":"IF(ISBLANK(INDIRECT(\"'\"&F6839&\"'!\"&G6839)),\"\",INDIRECT(\"'\"&F6839&\"'!\"&G6839))","v":""},{"$f":"IF(ISBLANK(INDIRECT(\"'\"&F6839&\"'!\"&H6839)),\"\",IFERROR(VLOOKUP(TEXT(INDIRECT(\"'\"&F6839&\"'!\"&H6839),\"0\"),Notes!$B$5:$C$100,2,FALSE),\"\"))","v":""},"2b","$G$131","$H$131"]
[26111,{"$f":"Menu!$F$29","v":"X"},{"$f":"Menu!$J$29","v":2020},{"$f":"IF(ISBLANK(INDIRECT(\"'\"&F6840&\"'!\"&G6840)),\"\",INDIRECT(\"'\"&F6840&\"'!\"&G6840))","v":""},{"$f":"IF(ISBLANK(INDIRECT(\"'\"&F6840&\"'!\"&H6840)),\"\",IFERROR(VLOOKUP(TEXT(INDIRECT(\"'\"&F6840&\"'!\"&H6840),\"0\"),Notes!$B$5:$C$100,2,FALSE),\"\"))","v":""},"2a","$G$131","$H$131"]
[26112,{"$f":"Menu!$F$29","v":"X"},{"$f":"Menu!$J$29","v":2020},{"$f":"IF(ISBLANK(INDIRECT(\"'\"&F6841&\"'!\"&G6841)),\"\",INDIRECT(\"'\"&F6841&\"'!\"&G6841))","v":""},{"$f":"IF(ISBLANK(INDIRECT(\"'\"&F6841&\"'!\"&H6841)),\"\",IFERROR(VLOOKUP(TEXT(INDIRECT(\"'\"&F6841&\"'!\"&H6841),\"0\"),Notes!$B$5:$C$100,2,FALSE),\"\"))","v":""},"2b","$W$131","$X$131"]
[26113,{"$f":"Menu!$F$29","v":"X"},{"$f":"Menu!$J$29","v":2020},{"$f":"IF(ISBLANK(INDIRECT(\"'\"&F6842&\"'!\"&G6842)),\"\",INDIRECT(\"'\"&F6842&\"'!\"&G6842))","v":""},{"$f":"IF(ISBLANK(INDIRECT(\"'\"&F6842&\"'!\"&H6842)),\"\",IFERROR(VLOOKUP(TEXT(INDIRECT(\"'\"&F6842&\"'!\"&H6842),\"0\"),Notes!$B$5:$C$100,2,FALSE),\"\"))","v":""},"2b","$AA$131","$AB$131"]
[26114,{"$f":"Menu!$F$29","v":"X"},{"$f":"Menu!$J$29","v":2020},{"$f":"IF(ISBLANK(INDIRECT(\"'\"&F6843&\"'!\"&G6843)),\"\",INDIRECT(\"'\"&F6843&\"'!\"&G6843))","v":""},{"$f":"IF(ISBLANK(INDIRECT(\"'\"&F6843&\"'!\"&H6843)),\"\",IFERROR(VLOOKUP(TEXT(INDIRECT(\"'\"&F6843&\"'!\"&H6843),\"0\"),Notes!$B$5:$C$100,2,FALSE),\"\"))","v":""},"2b","$Y$131","$Z$131"]
[26115,{"$f":"Menu!$F$29","v":"X"},{"$f":"Menu!$J$29","v":2020},{"$f":"IF(ISBLANK(INDIRECT(\"'\"&F6844&\"'!\"&G6844)),\"\",INDIRECT(\"'\"&F6844&\"'!\"&G6844))","v":""},{"$f":"IF(ISBLANK(INDIRECT(\"'\"&F6844&\"'!\"&H6844)),\"\",IFERROR(VLOOKUP(TEXT(INDIRECT(\"'\"&F6844&\"'!\"&H6844),\"0\"),Notes!$B$5:$C$100,2,FALSE),\"\"))","v":""},"2d","$AC$131","$AD$131"]
[26116,{"$f":"Menu!$F$29","v":"X"},{"$f":"Menu!$J$29","v":2020},{"$f":"IF(ISBLANK(INDIRECT(\"'\"&F6845&\"'!\"&G6845)),\"\",INDIRECT(\"'\"&F6845&\"'!\"&G6845))","v":""},{"$f":"IF(ISBLANK(INDIRECT(\"'\"&F6845&\"'!\"&H6845)),\"\",IFERROR(VLOOKUP(TEXT(INDIRECT(\"'\"&F6845&\"'!\"&H6845),\"0\"),Notes!$B$5:$C$100,2,FALSE),\"\"))","v":""},"2d","$AG$131","$AH$131"]
[26117,{"$f":"Menu!$F$29","v":"X"},{"$f":"Menu!$J$29","v":2020},{"$f":"IF(ISBLANK(INDIRECT(\"'\"&F6846&\"'!\"&G6846)),\"\",INDIRECT(\"'\"&F6846&\"'!\"&G6846))","v":""},{"$f":"IF(ISBLANK(INDIRECT(\"'\"&F6846&\"'!\"&H6846)),\"\",IFERROR(VLOOKUP(TEXT(INDIRECT(\"'\"&F6846&\"'!\"&H6846),\"0\"),Notes!$B$5:$C$100,2,FALSE),\"\"))","v":""},"2d","$AE$131","$AF$131"]
[26118,{"$f":"Menu!$F$29","v":"X"},{"$f":"Menu!$J$29","v":2020},{"$f":"IF(ISBLANK(INDIRECT(\"'\"&F6847&\"'!\"&G6847)),\"\",INDIRECT(\"'\"&F6847&\"'!\"&G6847))","v":""},{"$f":"IF(ISBLANK(INDIRECT(\"'\"&F6847&\"'!\"&H6847)),\"\",IFERROR(VLOOKUP(TEXT(INDIRECT(\"'\"&F6847&\"'!\"&H6847),\"0\"),Notes!$B$5:$C$100,2,FALSE),\"\"))","v":""},"2d","$W$131","$X$131"]
[26119,{"$f":"Menu!$F$29","v":"X"},{"$f":"Menu!$J$29","v":2020},{"$f":"IF(ISBLANK(INDIRECT(\"'\"&F6848&\"'!\"&G6848)),\"\",INDIRECT(\"'\"&F6848&\"'!\"&G6848))","v":""},{"$f":"IF(ISBLANK(INDIRECT(\"'\"&F6848&\"'!\"&H6848)),\"\",IFERROR(VLOOKUP(TEXT(INDIRECT(\"'\"&F6848&\"'!\"&H6848),\"0\"),Notes!$B$5:$C$100,2,FALSE),\"\"))","v":""},"2d","$AA$131","$AB$131"]
[26120,{"$f":"Menu!$F$29","v":"X"},{"$f":"Menu!$J$29","v":2020},{"$f":"IF(ISBLANK(INDIRECT(\"'\"&F6849&\"'!\"&G6849)),\"\",INDIRECT(\"'\"&F6849&\"'!\"&G6849))","v":""},{"$f":"IF(ISBLANK(INDIRECT(\"'\"&F6849&\"'!\"&H6849)),\"\",IFERROR(VLOOKUP(TEXT(INDIRECT(\"'\"&F6849&\"'!\"&H6849),\"0\"),Notes!$B$5:$C$100,2,FALSE),\"\"))","v":""},"2d","$Y$131","$Z$131"]
[26121,{"$f":"Menu!$F$29","v":"X"},{"$f":"Menu!$J$29","v":2020},{"$f":"IF(ISBLANK(INDIRECT(\"'\"&F6850&\"'!\"&G6850)),\"\",INDIRECT(\"'\"&F6850&\"'!\"&G6850))","v":""},{"$f":"IF(ISBLANK(INDIRECT(\"'\"&F6850&\"'!\"&H6850)),\"\",IFERROR(VLOOKUP(TEXT(INDIRECT(\"'\"&F6850&\"'!\"&H6850),\"0\"),Notes!$B$5:$C$100,2,FALSE),\"\"))","v":""},"2d","$E$131",{"$f":"IF(LEN(TRIM(MID(G6850,4,10)))-LEN(SUBSTITUTE(TRIM(MID(G6850,4,10)),\"$\",\"\"))=0,\"$\"&CHAR(CODE(MID(G6850,2,1))+1)&\"$\"&TRIM(MID(G6850,4,10)),\"$\"&MID(G6850,2,1)&CHAR(CODE(MID(G6850,3,1))+1)&\"$\"&TRIM(MID(G6850,5,11)))","v":"$F$131"}]
[26122,{"$f":"Menu!$F$29","v":"X"},{"$f":"Menu!$J$29","v":2020},{"$f":"IF(ISBLANK(INDIRECT(\"'\"&F6851&\"'!\"&G6851)),\"\",INDIRECT(\"'\"&F6851&\"'!\"&G6851))","v":""},{"$f":"IF(ISBLANK(INDIRECT(\"'\"&F6851&\"'!\"&H6851)),\"\",IFERROR(VLOOKUP(TEXT(INDIRECT(\"'\"&F6851&\"'!\"&H6851),\"0\"),Notes!$B$5:$C$100,2,FALSE),\"\"))","v":""},"2d","$I$131","$J$131"]
[26123,{"$f":"Menu!$F$29","v":"X"},{"$f":"Menu!$J$29","v":2020},{"$f":"IF(ISBLANK(INDIRECT(\"'\"&F6852&\"'!\"&G6852)),\"\",INDIRECT(\"'\"&F6852&\"'!\"&G6852))","v":""},{"$f":"IF(ISBLANK(INDIRECT(\"'\"&F6852&\"'!\"&H6852)),\"\",IFERROR(VLOOKUP(TEXT(INDIRECT(\"'\"&F6852&\"'!\"&H6852),\"0\"),Notes!$B$5:$C$100,2,FALSE),\"\"))","v":""},"2d","$G$131","$H$131"]
[26124,{"$f":"Menu!$F$29","v":"X"},{"$f":"Menu!$J$29","v":2020},{"$f":"IF(ISBLANK(INDIRECT(\"'\"&F6853&\"'!\"&G6853)),\"\",INDIRECT(\"'\"&F6853&\"'!\"&G6853))","v":""},{"$f":"IF(ISBLANK(INDIRECT(\"'\"&F6853&\"'!\"&H6853)),\"\",IFERROR(VLOOKUP(TEXT(INDIRECT(\"'\"&F6853&\"'!\"&H6853),\"0\"),Notes!$B$5:$C$100,2,FALSE),\"\"))","v":""},"2a","$Q$131","$R$131"]
[26125,{"$f":"Menu!$F$29","v":"X"},{"$f":"Menu!$J$29","v":2020},{"$f":"IF(ISBLANK(INDIRECT(\"'\"&F6854&\"'!\"&G6854)),\"\",INDIRECT(\"'\"&F6854&\"'!\"&G6854))","v":""},{"$f":"IF(ISBLANK(INDIRECT(\"'\"&F6854&\"'!\"&H6854)),\"\",IFERROR(VLOOKUP(TEXT(INDIRECT(\"'\"&F6854&\"'!\"&H6854),\"0\"),Notes!$B$5:$C$100,2,FALSE),\"\"))","v":""},"2a","$U$131","$V$131"]
[26126,{"$f":"Menu!$F$29","v":"X"},{"$f":"Menu!$J$29","v":2020},{"$f":"IF(ISBLANK(INDIRECT(\"'\"&F6855&\"'!\"&G6855)),\"\",INDIRECT(\"'\"&F6855&\"'!\"&G6855))","v":""},{"$f":"IF(ISBLANK(INDIRECT(\"'\"&F6855&\"'!\"&H6855)),\"\",IFERROR(VLOOKUP(TEXT(INDIRECT(\"'\"&F6855&\"'!\"&H6855),\"0\"),Notes!$B$5:$C$100,2,FALSE),\"\"))","v":""},"2a","$S$131","$T$131"]
[26127,{"$f":"Menu!$F$29","v":"X"},{"$f":"Menu!$J$29","v":2020},{"$f":"IF(ISBLANK(INDIRECT(\"'\"&F6856&\"'!\"&G6856)),\"\",INDIRECT(\"'\"&F6856&\"'!\"&G6856))","v":""},{"$f":"IF(ISBLANK(INDIRECT(\"'\"&F6856&\"'!\"&H6856)),\"\",IFERROR(VLOOKUP(TEXT(INDIRECT(\"'\"&F6856&\"'!\"&H6856),\"0\"),Notes!$B$5:$C$100,2,FALSE),\"\"))","v":""},"2d","$K$131","$L$131"]
[26128,{"$f":"Menu!$F$29","v":"X"},{"$f":"Menu!$J$29","v":2020},{"$f":"IF(ISBLANK(INDIRECT(\"'\"&F6857&\"'!\"&G6857)),\"\",INDIRECT(\"'\"&F6857&\"'!\"&G6857))","v":""},{"$f":"IF(ISBLANK(INDIRECT(\"'\"&F6857&\"'!\"&H6857)),\"\",IFERROR(VLOOKUP(TEXT(INDIRECT(\"'\"&F6857&\"'!\"&H6857),\"0\"),Notes!$B$5:$C$100,2,FALSE),\"\"))","v":""},"2d","$O$131","$P$131"]
[26129,{"$f":"Menu!$F$29","v":"X"},{"$f":"Menu!$J$29","v":2020},{"$f":"IF(ISBLANK(INDIRECT(\"'\"&F6858&\"'!\"&G6858)),\"\",INDIRECT(\"'\"&F6858&\"'!\"&G6858))","v":""},{"$f":"IF(ISBLANK(INDIRECT(\"'\"&F6858&\"'!\"&H6858)),\"\",IFERROR(VLOOKUP(TEXT(INDIRECT(\"'\"&F6858&\"'!\"&H6858),\"0\"),Notes!$B$5:$C$100,2,FALSE),\"\"))","v":""},"2d","$M$131","$N$131"]
[26130,{"$f":"Menu!$F$29","v":"X"},{"$f":"Menu!$J$29","v":2020},{"$f":"IF(ISBLANK(INDIRECT(\"'\"&F6859&\"'!\"&G6859)),\"\",INDIRECT(\"'\"&F6859&\"'!\"&G6859))","v":""},{"$f":"IF(ISBLANK(INDIRECT(\"'\"&F6859&\"'!\"&H6859)),\"\",IFERROR(VLOOKUP(TEXT(INDIRECT(\"'\"&F6859&\"'!\"&H6859),\"0\"),Notes!$B$5:$C$100,2,FALSE),\"\"))","v":""},"2d","$Q$131","$R$131"]
[26131,{"$f":"Menu!$F$29","v":"X"},{"$f":"Menu!$J$29","v":2020},{"$f":"IF(ISBLANK(INDIRECT(\"'\"&F6860&\"'!\"&G6860)),\"\",INDIRECT(\"'\"&F6860&\"'!\"&G6860))","v":""},{"$f":"IF(ISBLANK(INDIRECT(\"'\"&F6860&\"'!\"&H6860)),\"\",IFERROR(VLOOKUP(TEXT(INDIRECT(\"'\"&F6860&\"'!\"&H6860),\"0\"),Notes!$B$5:$C$100,2,FALSE),\"\"))","v":""},"2d","$U$131","$V$131"]
[26132,{"$f":"Menu!$F$29","v":"X"},{"$f":"Menu!$J$29","v":2020},{"$f":"IF(ISBLANK(INDIRECT(\"'\"&F6861&\"'!\"&G6861)),\"\",INDIRECT(\"'\"&F6861&\"'!\"&G6861))","v":""},{"$f":"IF(ISBLANK(INDIRECT(\"'\"&F6861&\"'!\"&H6861)),\"\",IFERROR(VLOOKUP(TEXT(INDIRECT(\"'\"&F6861&\"'!\"&H6861),\"0\"),Notes!$B$5:$C$100,2,FALSE),\"\"))","v":""},"2d","$S$131","$T$131"]
[26133,{"$f":"Menu!$F$29","v":"X"},{"$f":"Menu!$J$29","v":2020},{"$f":"IF(ISBLANK(INDIRECT(\"'\"&F6862&\"'!\"&G6862)),\"\",INDIRECT(\"'\"&F6862&\"'!\"&G6862))","v":""},null,"2a","$K$131","$L$131"]
[26134,{"$f":"Menu!$F$29","v":"X"},{"$f":"Menu!$J$29","v":2020},{"$f":"IF(ISBLANK(INDIRECT(\"'\"&F6863&\"'!\"&G6863)),\"\",INDIRECT(\"'\"&F6863&\"'!\"&G6863))","v":""},{"$f":"IF(ISBLANK(INDIRECT(\"'\"&F6863&\"'!\"&H6863)),\"\",IFERROR(VLOOKUP(TEXT(INDIRECT(\"'\"&F6863&\"'!\"&H6863),\"0\"),Notes!$B$5:$C$100,2,FALSE),\"\"))","v":""},"2a","$O$131","$P$131"]
[26135,{"$f":"Menu!$F$29","v":"X"},{"$f":"Menu!$J$29","v":2020},{"$f":"IF(ISBLANK(INDIRECT(\"'\"&F6864&\"'!\"&G6864)),\"\",INDIRECT(\"'\"&F6864&\"'!\"&G6864))","v":""},{"$f":"IF(ISBLANK(INDIRECT(\"'\"&F6864&\"'!\"&H6864)),\"\",IFERROR(VLOOKUP(TEXT(INDIRECT(\"'\"&F6864&\"'!\"&H6864),\"0\"),Notes!$B$5:$C$100,2,FALSE),\"\"))","v":""},"2a","$M$131","$N$131"]
[26136,{"$f":"Menu!$F$29","v":"X"},{"$f":"Menu!$J$29","v":2020},{"$f":"IF(ISBLANK(INDIRECT(\"'\"&F6865&\"'!\"&G6865)),\"\",INDIRECT(\"'\"&F6865&\"'!\"&G6865))","v":""},{"$f":"IF(ISBLANK(INDIRECT(\"'\"&F6865&\"'!\"&H6865)),\"\",IFERROR(VLOOKUP(TEXT(INDIRECT(\"'\"&F6865&\"'!\"&H6865),\"0\"),Notes!$B$5:$C$100,2,FALSE),\"\"))","v":""},"2a","$E$131","$F$131"]
[26137,{"$f":"Menu!$F$29","v":"X"},{"$f":"Menu!$J$29","v":2020},{"$f":"IF(ISBLANK(INDIRECT(\"'\"&F6866&\"'!\"&G6866)),\"\",INDIRECT(\"'\"&F6866&\"'!\"&G6866))","v":""},{"$f":"IF(ISBLANK(INDIRECT(\"'\"&F6866&\"'!\"&H6866)),\"\",IFERROR(VLOOKUP(TEXT(INDIRECT(\"'\"&F6866&\"'!\"&H6866),\"0\"),Notes!$B$5:$C$100,2,FALSE),\"\"))","v":""},"2b","$K$132","$L$132"]
[26138,{"$f":"Menu!$F$29","v":"X"},{"$f":"Menu!$J$29","v":2020},{"$f":"IF(ISBLANK(INDIRECT(\"'\"&F6867&\"'!\"&G6867)),\"\",INDIRECT(\"'\"&F6867&\"'!\"&G6867))","v":""},{"$f":"IF(ISBLANK(INDIRECT(\"'\"&F6867&\"'!\"&H6867)),\"\",IFERROR(VLOOKUP(TEXT(INDIRECT(\"'\"&F6867&\"'!\"&H6867),\"0\"),Notes!$B$5:$C$100,2,FALSE),\"\"))","v":""},"2b","$O$132","$P$132"]
[26139,{"$f":"Menu!$F$29","v":"X"},{"$f":"Menu!$J$29","v":2020},{"$f":"IF(ISBLANK(INDIRECT(\"'\"&F6868&\"'!\"&G6868)),\"\",INDIRECT(\"'\"&F6868&\"'!\"&G6868))","v":""},{"$f":"IF(ISBLANK(INDIRECT(\"'\"&F6868&\"'!\"&H6868)),\"\",IFERROR(VLOOKUP(TEXT(INDIRECT(\"'\"&F6868&\"'!\"&H6868),\"0\"),Notes!$B$5:$C$100,2,FALSE),\"\"))","v":""},"2b","$M$132","$N$132"]
[26140,{"$f":"Menu!$F$29","v":"X"},{"$f":"Menu!$J$29","v":2020},{"$f":"IF(ISBLANK(INDIRECT(\"'\"&F6869&\"'!\"&G6869)),\"\",INDIRECT(\"'\"&F6869&\"'!\"&G6869))","v":""},{"$f":"IF(ISBLANK(INDIRECT(\"'\"&F6869&\"'!\"&H6869)),\"\",IFERROR(VLOOKUP(TEXT(INDIRECT(\"'\"&F6869&\"'!\"&H6869),\"0\"),Notes!$B$5:$C$100,2,FALSE),\"\"))","v":""},"2b","$Q$132","$R$132"]
[26141,{"$f":"Menu!$F$29","v":"X"},{"$f":"Menu!$J$29","v":2020},{"$f":"IF(ISBLANK(INDIRECT(\"'\"&F6870&\"'!\"&G6870)),\"\",INDIRECT(\"'\"&F6870&\"'!\"&G6870))","v":""},{"$f":"IF(ISBLANK(INDIRECT(\"'\"&F6870&\"'!\"&H6870)),\"\",IFERROR(VLOOKUP(TEXT(INDIRECT(\"'\"&F6870&\"'!\"&H6870),\"0\"),Notes!$B$5:$C$100,2,FALSE),\"\"))","v":""},"2b","$U$132","$V$132"]
[26142,{"$f":"Menu!$F$29","v":"X"},{"$f":"Menu!$J$29","v":2020},{"$f":"IF(ISBLANK(INDIRECT(\"'\"&F6871&\"'!\"&G6871)),\"\",INDIRECT(\"'\"&F6871&\"'!\"&G6871))","v":""},{"$f":"IF(ISBLANK(INDIRECT(\"'\"&F6871&\"'!\"&H6871)),\"\",IFERROR(VLOOKUP(TEXT(INDIRECT(\"'\"&F6871&\"'!\"&H6871),\"0\"),Notes!$B$5:$C$100,2,FALSE),\"\"))","v":""},"2b","$S$132","$T$132"]
[26146,{"$f":"Menu!$F$29","v":"X"},{"$f":"Menu!$J$29","v":2020},{"$f":"IF(ISBLANK(INDIRECT(\"'\"&F6872&\"'!\"&G6872)),\"\",INDIRECT(\"'\"&F6872&\"'!\"&G6872))","v":""},{"$f":"IF(ISBLANK(INDIRECT(\"'\"&F6872&\"'!\"&H6872)),\"\",IFERROR(VLOOKUP(TEXT(INDIRECT(\"'\"&F6872&\"'!\"&H6872),\"0\"),Notes!$B$5:$C$100,2,FALSE),\"\"))","v":""},"2a","$I$132","$J$132"]
[26147,{"$f":"Menu!$F$29","v":"X"},{"$f":"Menu!$J$29","v":2020},{"$f":"IF(ISBLANK(INDIRECT(\"'\"&F6873&\"'!\"&G6873)),\"\",INDIRECT(\"'\"&F6873&\"'!\"&G6873))","v":""},{"$f":"IF(ISBLANK(INDIRECT(\"'\"&F6873&\"'!\"&H6873)),\"\",IFERROR(VLOOKUP(TEXT(INDIRECT(\"'\"&F6873&\"'!\"&H6873),\"0\"),Notes!$B$5:$C$100,2,FALSE),\"\"))","v":""},"2c","$E$132","$F$132"]
[26148,{"$f":"Menu!$F$29","v":"X"},{"$f":"Menu!$J$29","v":2020},{"$f":"IF(ISBLANK(INDIRECT(\"'\"&F6874&\"'!\"&G6874)),\"\",INDIRECT(\"'\"&F6874&\"'!\"&G6874))","v":""},{"$f":"IF(ISBLANK(INDIRECT(\"'\"&F6874&\"'!\"&H6874)),\"\",IFERROR(VLOOKUP(TEXT(INDIRECT(\"'\"&F6874&\"'!\"&H6874),\"0\"),Notes!$B$5:$C$100,2,FALSE),\"\"))","v":""},"2c","$I$132","$J$132"]
[26149,{"$f":"Menu!$F$29","v":"X"},{"$f":"Menu!$J$29","v":2020},{"$f":"IF(ISBLANK(INDIRECT(\"'\"&F6875&\"'!\"&G6875)),\"\",INDIRECT(\"'\"&F6875&\"'!\"&G6875))","v":""},{"$f":"IF(ISBLANK(INDIRECT(\"'\"&F6875&\"'!\"&H6875)),\"\",IFERROR(VLOOKUP(TEXT(INDIRECT(\"'\"&F6875&\"'!\"&H6875),\"0\"),Notes!$B$5:$C$100,2,FALSE),\"\"))","v":""},"2c","$G$132","$H$132"]
[26153,{"$f":"Menu!$F$29","v":"X"},{"$f":"Menu!$J$29","v":2020},{"$f":"IF(ISBLANK(INDIRECT(\"'\"&F6876&\"'!\"&G6876)),\"\",INDIRECT(\"'\"&F6876&\"'!\"&G6876))","v":""},{"$f":"IF(ISBLANK(INDIRECT(\"'\"&F6876&\"'!\"&H6876)),\"\",IFERROR(VLOOKUP(TEXT(INDIRECT(\"'\"&F6876&\"'!\"&H6876),\"0\"),Notes!$B$5:$C$100,2,FALSE),\"\"))","v":""},"2c","$K$132","$L$132"]
[26154,{"$f":"Menu!$F$29","v":"X"},{"$f":"Menu!$J$29","v":2020},{"$f":"IF(ISBLANK(INDIRECT(\"'\"&F6877&\"'!\"&G6877)),\"\",INDIRECT(\"'\"&F6877&\"'!\"&G6877))","v":""},{"$f":"IF(ISBLANK(INDIRECT(\"'\"&F6877&\"'!\"&H6877)),\"\",IFERROR(VLOOKUP(TEXT(INDIRECT(\"'\"&F6877&\"'!\"&H6877),\"0\"),Notes!$B$5:$C$100,2,FALSE),\"\"))","v":""},"2c","$O$132","$P$132"]
[26155,{"$f":"Menu!$F$29","v":"X"},{"$f":"Menu!$J$29","v":2020},{"$f":"IF(ISBLANK(INDIRECT(\"'\"&F6878&\"'!\"&G6878)),\"\",INDIRECT(\"'\"&F6878&\"'!\"&G6878))","v":""},{"$f":"IF(ISBLANK(INDIRECT(\"'\"&F6878&\"'!\"&H6878)),\"\",IFERROR(VLOOKUP(TEXT(INDIRECT(\"'\"&F6878&\"'!\"&H6878),\"0\"),Notes!$B$5:$C$100,2,FALSE),\"\"))","v":""},"2c","$M$132","$N$132"]
[26156,{"$f":"Menu!$F$29","v":"X"},{"$f":"Menu!$J$29","v":2020},{"$f":"IF(ISBLANK(INDIRECT(\"'\"&F6879&\"'!\"&G6879)),\"\",INDIRECT(\"'\"&F6879&\"'!\"&G6879))","v":""},{"$f":"IF(ISBLANK(INDIRECT(\"'\"&F6879&\"'!\"&H6879)),\"\",IFERROR(VLOOKUP(TEXT(INDIRECT(\"'\"&F6879&\"'!\"&H6879),\"0\"),Notes!$B$5:$C$100,2,FALSE),\"\"))","v":""},"2c","$Q$132","$R$132"]
[26157,{"$f":"Menu!$F$29","v":"X"},{"$f":"Menu!$J$29","v":2020},{"$f":"IF(ISBLANK(INDIRECT(\"'\"&F6880&\"'!\"&G6880)),\"\",INDIRECT(\"'\"&F6880&\"'!\"&G6880))","v":""},{"$f":"IF(ISBLANK(INDIRECT(\"'\"&F6880&\"'!\"&H6880)),\"\",IFERROR(VLOOKUP(TEXT(INDIRECT(\"'\"&F6880&\"'!\"&H6880),\"0\"),Notes!$B$5:$C$100,2,FALSE),\"\"))","v":""},"2c","$U$132","$V$132"]
[26158,{"$f":"Menu!$F$29","v":"X"},{"$f":"Menu!$J$29","v":2020},{"$f":"IF(ISBLANK(INDIRECT(\"'\"&F6881&\"'!\"&G6881)),\"\",INDIRECT(\"'\"&F6881&\"'!\"&G6881))","v":""},{"$f":"IF(ISBLANK(INDIRECT(\"'\"&F6881&\"'!\"&H6881)),\"\",IFERROR(VLOOKUP(TEXT(INDIRECT(\"'\"&F6881&\"'!\"&H6881),\"0\"),Notes!$B$5:$C$100,2,FALSE),\"\"))","v":""},"2c","$S$132","$T$132"]
[26159,{"$f":"Menu!$F$29","v":"X"},{"$f":"Menu!$J$29","v":2020},{"$f":"IF(ISBLANK(INDIRECT(\"'\"&F6882&\"'!\"&G6882)),\"\",INDIRECT(\"'\"&F6882&\"'!\"&G6882))","v":""},{"$f":"IF(ISBLANK(INDIRECT(\"'\"&F6882&\"'!\"&H6882)),\"\",IFERROR(VLOOKUP(TEXT(INDIRECT(\"'\"&F6882&\"'!\"&H6882),\"0\"),Notes!$B$5:$C$100,2,FALSE),\"\"))","v":""},"2c","$W$132","$X$132"]
[26160,{"$f":"Menu!$F$29","v":"X"},{"$f":"Menu!$J$29","v":2020},{"$f":"IF(ISBLANK(INDIRECT(\"'\"&F6883&\"'!\"&G6883)),\"\",INDIRECT(\"'\"&F6883&\"'!\"&G6883))","v":""},{"$f":"IF(ISBLANK(INDIRECT(\"'\"&F6883&\"'!\"&H6883)),\"\",IFERROR(VLOOKUP(TEXT(INDIRECT(\"'\"&F6883&\"'!\"&H6883),\"0\"),Notes!$B$5:$C$100,2,FALSE),\"\"))","v":""},"2c","$AA$132","$AB$132"]
[26161,{"$f":"Menu!$F$29","v":"X"},{"$f":"Menu!$J$29","v":2020},{"$f":"IF(ISBLANK(INDIRECT(\"'\"&F6884&\"'!\"&G6884)),\"\",INDIRECT(\"'\"&F6884&\"'!\"&G6884))","v":""},{"$f":"IF(ISBLANK(INDIRECT(\"'\"&F6884&\"'!\"&H6884)),\"\",IFERROR(VLOOKUP(TEXT(INDIRECT(\"'\"&F6884&\"'!\"&H6884),\"0\"),Notes!$B$5:$C$100,2,FALSE),\"\"))","v":""},"2c","$Y$132","$Z$132"]
[26168,{"$f":"Menu!$F$29","v":"X"},{"$f":"Menu!$J$29","v":2020},{"$f":"IF(ISBLANK(INDIRECT(\"'\"&F6885&\"'!\"&G6885)),\"\",INDIRECT(\"'\"&F6885&\"'!\"&G6885))","v":""},{"$f":"IF(ISBLANK(INDIRECT(\"'\"&F6885&\"'!\"&H6885)),\"\",IFERROR(VLOOKUP(TEXT(INDIRECT(\"'\"&F6885&\"'!\"&H6885),\"0\"),Notes!$B$5:$C$100,2,FALSE),\"\"))","v":""},"2e","$BG$133","$BH$133"]
[26169,{"$f":"Menu!$F$29","v":"X"},{"$f":"Menu!$J$29","v":2020},{"$f":"IF(ISBLANK(INDIRECT(\"'\"&F6886&\"'!\"&G6886)),\"\",INDIRECT(\"'\"&F6886&\"'!\"&G6886))","v":""},{"$f":"IF(ISBLANK(INDIRECT(\"'\"&F6886&\"'!\"&H6886)),\"\",IFERROR(VLOOKUP(TEXT(INDIRECT(\"'\"&F6886&\"'!\"&H6886),\"0\"),Notes!$B$5:$C$100,2,FALSE),\"\"))","v":""},"2e","$BK$133","$BL$133"]
[26170,{"$f":"Menu!$F$29","v":"X"},{"$f":"Menu!$J$29","v":2020},{"$f":"IF(ISBLANK(INDIRECT(\"'\"&F6887&\"'!\"&G6887)),\"\",INDIRECT(\"'\"&F6887&\"'!\"&G6887))","v":""},{"$f":"IF(ISBLANK(INDIRECT(\"'\"&F6887&\"'!\"&H6887)),\"\",IFERROR(VLOOKUP(TEXT(INDIRECT(\"'\"&F6887&\"'!\"&H6887),\"0\"),Notes!$B$5:$C$100,2,FALSE),\"\"))","v":""},"2e","$BI$133","$BJ$133"]
[26171,{"$f":"Menu!$F$29","v":"X"},{"$f":"Menu!$J$29","v":2020},{"$f":"IF(ISBLANK(INDIRECT(\"'\"&F6888&\"'!\"&G6888)),\"\",INDIRECT(\"'\"&F6888&\"'!\"&G6888))","v":""},{"$f":"IF(ISBLANK(INDIRECT(\"'\"&F6888&\"'!\"&H6888)),\"\",IFERROR(VLOOKUP(TEXT(INDIRECT(\"'\"&F6888&\"'!\"&H6888),\"0\"),Notes!$B$5:$C$100,2,FALSE),\"\"))","v":""},"2e","$E$133","$F$133"]
[26172,{"$f":"Menu!$F$29","v":"X"},{"$f":"Menu!$J$29","v":2020},{"$f":"IF(ISBLANK(INDIRECT(\"'\"&F6889&\"'!\"&G6889)),\"\",INDIRECT(\"'\"&F6889&\"'!\"&G6889))","v":""},{"$f":"IF(ISBLANK(INDIRECT(\"'\"&F6889&\"'!\"&H6889)),\"\",IFERROR(VLOOKUP(TEXT(INDIRECT(\"'\"&F6889&\"'!\"&H6889),\"0\"),Notes!$B$5:$C$100,2,FALSE),\"\"))","v":""},"2e","$I$133","$J$133"]
[26173,{"$f":"Menu!$F$29","v":"X"},{"$f":"Menu!$J$29","v":2020},{"$f":"IF(ISBLANK(INDIRECT(\"'\"&F6890&\"'!\"&G6890)),\"\",INDIRECT(\"'\"&F6890&\"'!\"&G6890))","v":""},{"$f":"IF(ISBLANK(INDIRECT(\"'\"&F6890&\"'!\"&H6890)),\"\",IFERROR(VLOOKUP(TEXT(INDIRECT(\"'\"&F6890&\"'!\"&H6890),\"0\"),Notes!$B$5:$C$100,2,FALSE),\"\"))","v":""},"2e","$G$133","$H$133"]
[26174,{"$f":"Menu!$F$29","v":"X"},{"$f":"Menu!$J$29","v":2020},{"$f":"IF(ISBLANK(INDIRECT(\"'\"&F6891&\"'!\"&G6891)),\"\",INDIRECT(\"'\"&F6891&\"'!\"&G6891))","v":""},{"$f":"IF(ISBLANK(INDIRECT(\"'\"&F6891&\"'!\"&H6891)),\"\",IFERROR(VLOOKUP(TEXT(INDIRECT(\"'\"&F6891&\"'!\"&H6891),\"0\"),Notes!$B$5:$C$100,2,FALSE),\"\"))","v":""},"2e","$K$133","$L$133"]
[26175,{"$f":"Menu!$F$29","v":"X"},{"$f":"Menu!$J$29","v":2020},{"$f":"IF(ISBLANK(INDIRECT(\"'\"&F6892&\"'!\"&G6892)),\"\",INDIRECT(\"'\"&F6892&\"'!\"&G6892))","v":""},{"$f":"IF(ISBLANK(INDIRECT(\"'\"&F6892&\"'!\"&H6892)),\"\",IFERROR(VLOOKUP(TEXT(INDIRECT(\"'\"&F6892&\"'!\"&H6892),\"0\"),Notes!$B$5:$C$100,2,FALSE),\"\"))","v":""},"2e","$O$133","$P$133"]
[26176,{"$f":"Menu!$F$29","v":"X"},{"$f":"Menu!$J$29","v":2020},{"$f":"IF(ISBLANK(INDIRECT(\"'\"&F6893&\"'!\"&G6893)),\"\",INDIRECT(\"'\"&F6893&\"'!\"&G6893))","v":""},{"$f":"IF(ISBLANK(INDIRECT(\"'\"&F6893&\"'!\"&H6893)),\"\",IFERROR(VLOOKUP(TEXT(INDIRECT(\"'\"&F6893&\"'!\"&H6893),\"0\"),Notes!$B$5:$C$100,2,FALSE),\"\"))","v":""},"2e","$M$133","$N$133"]
[26177,{"$f":"Menu!$F$29","v":"X"},{"$f":"Menu!$J$29","v":2020},{"$f":"IF(ISBLANK(INDIRECT(\"'\"&F6894&\"'!\"&G6894)),\"\",INDIRECT(\"'\"&F6894&\"'!\"&G6894))","v":""},{"$f":"IF(ISBLANK(INDIRECT(\"'\"&F6894&\"'!\"&H6894)),\"\",IFERROR(VLOOKUP(TEXT(INDIRECT(\"'\"&F6894&\"'!\"&H6894),\"0\"),Notes!$B$5:$C$100,2,FALSE),\"\"))","v":""},"2e","$Q$133","$R$133"]
[26178,{"$f":"Menu!$F$29","v":"X"},{"$f":"Menu!$J$29","v":2020},{"$f":"IF(ISBLANK(INDIRECT(\"'\"&F6895&\"'!\"&G6895)),\"\",INDIRECT(\"'\"&F6895&\"'!\"&G6895))","v":""},{"$f":"IF(ISBLANK(INDIRECT(\"'\"&F6895&\"'!\"&H6895)),\"\",IFERROR(VLOOKUP(TEXT(INDIRECT(\"'\"&F6895&\"'!\"&H6895),\"0\"),Notes!$B$5:$C$100,2,FALSE),\"\"))","v":""},"2e","$U$133","$V$133"]
[26179,{"$f":"Menu!$F$29","v":"X"},{"$f":"Menu!$J$29","v":2020},{"$f":"IF(ISBLANK(INDIRECT(\"'\"&F6896&\"'!\"&G6896)),\"\",INDIRECT(\"'\"&F6896&\"'!\"&G6896))","v":""},{"$f":"IF(ISBLANK(INDIRECT(\"'\"&F6896&\"'!\"&H6896)),\"\",IFERROR(VLOOKUP(TEXT(INDIRECT(\"'\"&F6896&\"'!\"&H6896),\"0\"),Notes!$B$5:$C$100,2,FALSE),\"\"))","v":""},"2e","$S$133","$T$133"]
[26180,{"$f":"Menu!$F$29","v":"X"},{"$f":"Menu!$J$29","v":2020},{"$f":"IF(ISBLANK(INDIRECT(\"'\"&F6897&\"'!\"&G6897)),\"\",INDIRECT(\"'\"&F6897&\"'!\"&G6897))","v":""},{"$f":"IF(ISBLANK(INDIRECT(\"'\"&F6897&\"'!\"&H6897)),\"\",IFERROR(VLOOKUP(TEXT(INDIRECT(\"'\"&F6897&\"'!\"&H6897),\"0\"),Notes!$B$5:$C$100,2,FALSE),\"\"))","v":""},"2e","$W$133","$X$133"]
[26181,{"$f":"Menu!$F$29","v":"X"},{"$f":"Menu!$J$29","v":2020},{"$f":"IF(ISBLANK(INDIRECT(\"'\"&F6898&\"'!\"&G6898)),\"\",INDIRECT(\"'\"&F6898&\"'!\"&G6898))","v":""},{"$f":"IF(ISBLANK(INDIRECT(\"'\"&F6898&\"'!\"&H6898)),\"\",IFERROR(VLOOKUP(TEXT(INDIRECT(\"'\"&F6898&\"'!\"&H6898),\"0\"),Notes!$B$5:$C$100,2,FALSE),\"\"))","v":""},"2e","$AA$133","$AB$133"]
[26182,{"$f":"Menu!$F$29","v":"X"},{"$f":"Menu!$J$29","v":2020},{"$f":"IF(ISBLANK(INDIRECT(\"'\"&F6899&\"'!\"&G6899)),\"\",INDIRECT(\"'\"&F6899&\"'!\"&G6899))","v":""},{"$f":"IF(ISBLANK(INDIRECT(\"'\"&F6899&\"'!\"&H6899)),\"\",IFERROR(VLOOKUP(TEXT(INDIRECT(\"'\"&F6899&\"'!\"&H6899),\"0\"),Notes!$B$5:$C$100,2,FALSE),\"\"))","v":""},"2e","$Y$133","$Z$133"]
[26183,{"$f":"Menu!$F$29","v":"X"},{"$f":"Menu!$J$29","v":2020},{"$f":"IF(ISBLANK(INDIRECT(\"'\"&F6900&\"'!\"&G6900)),\"\",INDIRECT(\"'\"&F6900&\"'!\"&G6900))","v":""},{"$f":"IF(ISBLANK(INDIRECT(\"'\"&F6900&\"'!\"&H6900)),\"\",IFERROR(VLOOKUP(TEXT(INDIRECT(\"'\"&F6900&\"'!\"&H6900),\"0\"),Notes!$B$5:$C$100,2,FALSE),\"\"))","v":""},"2e","$AC$133","$AD$133"]
[26184,{"$f":"Menu!$F$29","v":"X"},{"$f":"Menu!$J$29","v":2020},{"$f":"IF(ISBLANK(INDIRECT(\"'\"&F6901&\"'!\"&G6901)),\"\",INDIRECT(\"'\"&F6901&\"'!\"&G6901))","v":""},{"$f":"IF(ISBLANK(INDIRECT(\"'\"&F6901&\"'!\"&H6901)),\"\",IFERROR(VLOOKUP(TEXT(INDIRECT(\"'\"&F6901&\"'!\"&H6901),\"0\"),Notes!$B$5:$C$100,2,FALSE),\"\"))","v":""},"2e","$AG$133","$AH$133"]
[26185,{"$f":"Menu!$F$29","v":"X"},{"$f":"Menu!$J$29","v":2020},{"$f":"IF(ISBLANK(INDIRECT(\"'\"&F6902&\"'!\"&G6902)),\"\",INDIRECT(\"'\"&F6902&\"'!\"&G6902))","v":""},{"$f":"IF(ISBLANK(INDIRECT(\"'\"&F6902&\"'!\"&H6902)),\"\",IFERROR(VLOOKUP(TEXT(INDIRECT(\"'\"&F6902&\"'!\"&H6902),\"0\"),Notes!$B$5:$C$100,2,FALSE),\"\"))","v":""},"2e","$AE$133","$AF$133"]
[26186,{"$f":"Menu!$F$29","v":"X"},{"$f":"Menu!$J$29","v":2020},{"$f":"IF(ISBLANK(INDIRECT(\"'\"&F6903&\"'!\"&G6903)),\"\",INDIRECT(\"'\"&F6903&\"'!\"&G6903))","v":""},{"$f":"IF(ISBLANK(INDIRECT(\"'\"&F6903&\"'!\"&H6903)),\"\",IFERROR(VLOOKUP(TEXT(INDIRECT(\"'\"&F6903&\"'!\"&H6903),\"0\"),Notes!$B$5:$C$100,2,FALSE),\"\"))","v":""},"2e","$AI$133","$AJ$133"]
[26187,{"$f":"Menu!$F$29","v":"X"},{"$f":"Menu!$J$29","v":2020},{"$f":"IF(ISBLANK(INDIRECT(\"'\"&F6904&\"'!\"&G6904)),\"\",INDIRECT(\"'\"&F6904&\"'!\"&G6904))","v":""},{"$f":"IF(ISBLANK(INDIRECT(\"'\"&F6904&\"'!\"&H6904)),\"\",IFERROR(VLOOKUP(TEXT(INDIRECT(\"'\"&F6904&\"'!\"&H6904),\"0\"),Notes!$B$5:$C$100,2,FALSE),\"\"))","v":""},"2e","$AM$133","$AN$133"]
[26188,{"$f":"Menu!$F$29","v":"X"},{"$f":"Menu!$J$29","v":2020},{"$f":"IF(ISBLANK(INDIRECT(\"'\"&F6905&\"'!\"&G6905)),\"\",INDIRECT(\"'\"&F6905&\"'!\"&G6905))","v":""},{"$f":"IF(ISBLANK(INDIRECT(\"'\"&F6905&\"'!\"&H6905)),\"\",IFERROR(VLOOKUP(TEXT(INDIRECT(\"'\"&F6905&\"'!\"&H6905),\"0\"),Notes!$B$5:$C$100,2,FALSE),\"\"))","v":""},"2e","$AK$133","$AL$133"]
[26189,{"$f":"Menu!$F$29","v":"X"},{"$f":"Menu!$J$29","v":2020},{"$f":"IF(ISBLANK(INDIRECT(\"'\"&F6906&\"'!\"&G6906)),\"\",INDIRECT(\"'\"&F6906&\"'!\"&G6906))","v":""},{"$f":"IF(ISBLANK(INDIRECT(\"'\"&F6906&\"'!\"&H6906)),\"\",IFERROR(VLOOKUP(TEXT(INDIRECT(\"'\"&F6906&\"'!\"&H6906),\"0\"),Notes!$B$5:$C$100,2,FALSE),\"\"))","v":""},"2e","$AO$133","$AP$133"]
[26190,{"$f":"Menu!$F$29","v":"X"},{"$f":"Menu!$J$29","v":2020},{"$f":"IF(ISBLANK(INDIRECT(\"'\"&F6907&\"'!\"&G6907)),\"\",INDIRECT(\"'\"&F6907&\"'!\"&G6907))","v":""},{"$f":"IF(ISBLANK(INDIRECT(\"'\"&F6907&\"'!\"&H6907)),\"\",IFERROR(VLOOKUP(TEXT(INDIRECT(\"'\"&F6907&\"'!\"&H6907),\"0\"),Notes!$B$5:$C$100,2,FALSE),\"\"))","v":""},"2e","$AS$133","$AT$133"]
[26191,{"$f":"Menu!$F$29","v":"X"},{"$f":"Menu!$J$29","v":2020},{"$f":"IF(ISBLANK(INDIRECT(\"'\"&F6908&\"'!\"&G6908)),\"\",INDIRECT(\"'\"&F6908&\"'!\"&G6908))","v":""},{"$f":"IF(ISBLANK(INDIRECT(\"'\"&F6908&\"'!\"&H6908)),\"\",IFERROR(VLOOKUP(TEXT(INDIRECT(\"'\"&F6908&\"'!\"&H6908),\"0\"),Notes!$B$5:$C$100,2,FALSE),\"\"))","v":""},"2e","$AQ$133","$AR$133"]
[26192,{"$f":"Menu!$F$29","v":"X"},{"$f":"Menu!$J$29","v":2020},{"$f":"IF(ISBLANK(INDIRECT(\"'\"&F6909&\"'!\"&G6909)),\"\",INDIRECT(\"'\"&F6909&\"'!\"&G6909))","v":""},{"$f":"IF(ISBLANK(INDIRECT(\"'\"&F6909&\"'!\"&H6909)),\"\",IFERROR(VLOOKUP(TEXT(INDIRECT(\"'\"&F6909&\"'!\"&H6909),\"0\"),Notes!$B$5:$C$100,2,FALSE),\"\"))","v":""},"2e","$AU$133","$AV$133"]
[26193,{"$f":"Menu!$F$29","v":"X"},{"$f":"Menu!$J$29","v":2020},{"$f":"IF(ISBLANK(INDIRECT(\"'\"&F6910&\"'!\"&G6910)),\"\",INDIRECT(\"'\"&F6910&\"'!\"&G6910))","v":""},{"$f":"IF(ISBLANK(INDIRECT(\"'\"&F6910&\"'!\"&H6910)),\"\",IFERROR(VLOOKUP(TEXT(INDIRECT(\"'\"&F6910&\"'!\"&H6910),\"0\"),Notes!$B$5:$C$100,2,FALSE),\"\"))","v":""},"2e","$AY$133","$AZ$133"]
[26194,{"$f":"Menu!$F$29","v":"X"},{"$f":"Menu!$J$29","v":2020},{"$f":"IF(ISBLANK(INDIRECT(\"'\"&F6911&\"'!\"&G6911)),\"\",INDIRECT(\"'\"&F6911&\"'!\"&G6911))","v":""},{"$f":"IF(ISBLANK(INDIRECT(\"'\"&F6911&\"'!\"&H6911)),\"\",IFERROR(VLOOKUP(TEXT(INDIRECT(\"'\"&F6911&\"'!\"&H6911),\"0\"),Notes!$B$5:$C$100,2,FALSE),\"\"))","v":""},"2e","$AW$133","$AX$133"]
[26195,{"$f":"Menu!$F$29","v":"X"},{"$f":"Menu!$J$29","v":2020},{"$f":"IF(ISBLANK(INDIRECT(\"'\"&F6912&\"'!\"&G6912)),\"\",INDIRECT(\"'\"&F6912&\"'!\"&G6912))","v":""},{"$f":"IF(ISBLANK(INDIRECT(\"'\"&F6912&\"'!\"&H6912)),\"\",IFERROR(VLOOKUP(TEXT(INDIRECT(\"'\"&F6912&\"'!\"&H6912),\"0\"),Notes!$B$5:$C$100,2,FALSE),\"\"))","v":""},"2e","$BA$133","$BB$133"]
[26196,{"$f":"Menu!$F$29","v":"X"},{"$f":"Menu!$J$29","v":2020},{"$f":"IF(ISBLANK(INDIRECT(\"'\"&F6913&\"'!\"&G6913)),\"\",INDIRECT(\"'\"&F6913&\"'!\"&G6913))","v":""},{"$f":"IF(ISBLANK(INDIRECT(\"'\"&F6913&\"'!\"&H6913)),\"\",IFERROR(VLOOKUP(TEXT(INDIRECT(\"'\"&F6913&\"'!\"&H6913),\"0\"),Notes!$B$5:$C$100,2,FALSE),\"\"))","v":""},"2e","$BE$133","$BF$133"]
[26197,{"$f":"Menu!$F$29","v":"X"},{"$f":"Menu!$J$29","v":2020},{"$f":"IF(ISBLANK(INDIRECT(\"'\"&F6914&\"'!\"&G6914)),\"\",INDIRECT(\"'\"&F6914&\"'!\"&G6914))","v":""},{"$f":"IF(ISBLANK(INDIRECT(\"'\"&F6914&\"'!\"&H6914)),\"\",IFERROR(VLOOKUP(TEXT(INDIRECT(\"'\"&F6914&\"'!\"&H6914),\"0\"),Notes!$B$5:$C$100,2,FALSE),\"\"))","v":""},"2e","$BC$133",{"$f":"IF(LEN(TRIM(MID(G6914,4,10)))-LEN(SUBSTITUTE(TRIM(MID(G6914,4,10)),\"$\",\"\"))=0,\"$\"&CHAR(CODE(MID(G6914,2,1))+1)&\"$\"&TRIM(MID(G6914,4,10)),\"$\"&MID(G6914,2,1)&CHAR(CODE(MID(G6914,3,1))+1)&\"$\"&TRIM(MID(G6914,5,11)))","v":"$BD$133"}]
[26198,{"$f":"Menu!$F$29","v":"X"},{"$f":"Menu!$J$29","v":2020},{"$f":"IF(ISBLANK(INDIRECT(\"'\"&F6915&\"'!\"&G6915)),\"\",INDIRECT(\"'\"&F6915&\"'!\"&G6915))","v":""},{"$f":"IF(ISBLANK(INDIRECT(\"'\"&F6915&\"'!\"&H6915)),\"\",IFERROR(VLOOKUP(TEXT(INDIRECT(\"'\"&F6915&\"'!\"&H6915),\"0\"),Notes!$B$5:$C$100,2,FALSE),\"\"))","v":""},"2b","$E$132","$F$132"]
[26199,{"$f":"Menu!$F$29","v":"X"},{"$f":"Menu!$J$29","v":2020},{"$f":"IF(ISBLANK(INDIRECT(\"'\"&F6916&\"'!\"&G6916)),\"\",INDIRECT(\"'\"&F6916&\"'!\"&G6916))","v":""},{"$f":"IF(ISBLANK(INDIRECT(\"'\"&F6916&\"'!\"&H6916)),\"\",IFERROR(VLOOKUP(TEXT(INDIRECT(\"'\"&F6916&\"'!\"&H6916),\"0\"),Notes!$B$5:$C$100,2,FALSE),\"\"))","v":""},"2b","$I$132","$J$132"]
[26200,{"$f":"Menu!$F$29","v":"X"},{"$f":"Menu!$J$29","v":2020},{"$f":"IF(ISBLANK(INDIRECT(\"'\"&F6917&\"'!\"&G6917)),\"\",INDIRECT(\"'\"&F6917&\"'!\"&G6917))","v":""},{"$f":"IF(ISBLANK(INDIRECT(\"'\"&F6917&\"'!\"&H6917)),\"\",IFERROR(VLOOKUP(TEXT(INDIRECT(\"'\"&F6917&\"'!\"&H6917),\"0\"),Notes!$B$5:$C$100,2,FALSE),\"\"))","v":""},"2b","$G$132","$H$132"]
[26201,{"$f":"Menu!$F$29","v":"X"},{"$f":"Menu!$J$29","v":2020},{"$f":"IF(ISBLANK(INDIRECT(\"'\"&F6918&\"'!\"&G6918)),\"\",INDIRECT(\"'\"&F6918&\"'!\"&G6918))","v":""},{"$f":"IF(ISBLANK(INDIRECT(\"'\"&F6918&\"'!\"&H6918)),\"\",IFERROR(VLOOKUP(TEXT(INDIRECT(\"'\"&F6918&\"'!\"&H6918),\"0\"),Notes!$B$5:$C$100,2,FALSE),\"\"))","v":""},"2a","$G$132","$H$132"]
[26202,{"$f":"Menu!$F$29","v":"X"},{"$f":"Menu!$J$29","v":2020},{"$f":"IF(ISBLANK(INDIRECT(\"'\"&F6919&\"'!\"&G6919)),\"\",INDIRECT(\"'\"&F6919&\"'!\"&G6919))","v":""},{"$f":"IF(ISBLANK(INDIRECT(\"'\"&F6919&\"'!\"&H6919)),\"\",IFERROR(VLOOKUP(TEXT(INDIRECT(\"'\"&F6919&\"'!\"&H6919),\"0\"),Notes!$B$5:$C$100,2,FALSE),\"\"))","v":""},"2b","$W$132","$X$132"]
[26203,{"$f":"Menu!$F$29","v":"X"},{"$f":"Menu!$J$29","v":2020},{"$f":"IF(ISBLANK(INDIRECT(\"'\"&F6920&\"'!\"&G6920)),\"\",INDIRECT(\"'\"&F6920&\"'!\"&G6920))","v":""},{"$f":"IF(ISBLANK(INDIRECT(\"'\"&F6920&\"'!\"&H6920)),\"\",IFERROR(VLOOKUP(TEXT(INDIRECT(\"'\"&F6920&\"'!\"&H6920),\"0\"),Notes!$B$5:$C$100,2,FALSE),\"\"))","v":""},"2b","$AA$132","$AB$132"]
[26204,{"$f":"Menu!$F$29","v":"X"},{"$f":"Menu!$J$29","v":2020},{"$f":"IF(ISBLANK(INDIRECT(\"'\"&F6921&\"'!\"&G6921)),\"\",INDIRECT(\"'\"&F6921&\"'!\"&G6921))","v":""},{"$f":"IF(ISBLANK(INDIRECT(\"'\"&F6921&\"'!\"&H6921)),\"\",IFERROR(VLOOKUP(TEXT(INDIRECT(\"'\"&F6921&\"'!\"&H6921),\"0\"),Notes!$B$5:$C$100,2,FALSE),\"\"))","v":""},"2b","$Y$132","$Z$132"]
[26205,{"$f":"Menu!$F$29","v":"X"},{"$f":"Menu!$J$29","v":2020},{"$f":"IF(ISBLANK(INDIRECT(\"'\"&F6922&\"'!\"&G6922)),\"\",INDIRECT(\"'\"&F6922&\"'!\"&G6922))","v":""},{"$f":"IF(ISBLANK(INDIRECT(\"'\"&F6922&\"'!\"&H6922)),\"\",IFERROR(VLOOKUP(TEXT(INDIRECT(\"'\"&F6922&\"'!\"&H6922),\"0\"),Notes!$B$5:$C$100,2,FALSE),\"\"))","v":""},"2d","$AC$132","$AD$132"]
[26206,{"$f":"Menu!$F$29","v":"X"},{"$f":"Menu!$J$29","v":2020},{"$f":"IF(ISBLANK(INDIRECT(\"'\"&F6923&\"'!\"&G6923)),\"\",INDIRECT(\"'\"&F6923&\"'!\"&G6923))","v":""},{"$f":"IF(ISBLANK(INDIRECT(\"'\"&F6923&\"'!\"&H6923)),\"\",IFERROR(VLOOKUP(TEXT(INDIRECT(\"'\"&F6923&\"'!\"&H6923),\"0\"),Notes!$B$5:$C$100,2,FALSE),\"\"))","v":""},"2d","$AG$132","$AH$132"]
[26207,{"$f":"Menu!$F$29","v":"X"},{"$f":"Menu!$J$29","v":2020},{"$f":"IF(ISBLANK(INDIRECT(\"'\"&F6924&\"'!\"&G6924)),\"\",INDIRECT(\"'\"&F6924&\"'!\"&G6924))","v":""},{"$f":"IF(ISBLANK(INDIRECT(\"'\"&F6924&\"'!\"&H6924)),\"\",IFERROR(VLOOKUP(TEXT(INDIRECT(\"'\"&F6924&\"'!\"&H6924),\"0\"),Notes!$B$5:$C$100,2,FALSE),\"\"))","v":""},"2d","$AE$132","$AF$132"]
[26208,{"$f":"Menu!$F$29","v":"X"},{"$f":"Menu!$J$29","v":2020},{"$f":"IF(ISBLANK(INDIRECT(\"'\"&F6925&\"'!\"&G6925)),\"\",INDIRECT(\"'\"&F6925&\"'!\"&G6925))","v":""},{"$f":"IF(ISBLANK(INDIRECT(\"'\"&F6925&\"'!\"&H6925)),\"\",IFERROR(VLOOKUP(TEXT(INDIRECT(\"'\"&F6925&\"'!\"&H6925),\"0\"),Notes!$B$5:$C$100,2,FALSE),\"\"))","v":""},"2d","$W$132","$X$132"]
[26209,{"$f":"Menu!$F$29","v":"X"},{"$f":"Menu!$J$29","v":2020},{"$f":"IF(ISBLANK(INDIRECT(\"'\"&F6926&\"'!\"&G6926)),\"\",INDIRECT(\"'\"&F6926&\"'!\"&G6926))","v":""},{"$f":"IF(ISBLANK(INDIRECT(\"'\"&F6926&\"'!\"&H6926)),\"\",IFERROR(VLOOKUP(TEXT(INDIRECT(\"'\"&F6926&\"'!\"&H6926),\"0\"),Notes!$B$5:$C$100,2,FALSE),\"\"))","v":""},"2d","$AA$132","$AB$132"]
[26210,{"$f":"Menu!$F$29","v":"X"},{"$f":"Menu!$J$29","v":2020},{"$f":"IF(ISBLANK(INDIRECT(\"'\"&F6927&\"'!\"&G6927)),\"\",INDIRECT(\"'\"&F6927&\"'!\"&G6927))","v":""},{"$f":"IF(ISBLANK(INDIRECT(\"'\"&F6927&\"'!\"&H6927)),\"\",IFERROR(VLOOKUP(TEXT(INDIRECT(\"'\"&F6927&\"'!\"&H6927),\"0\"),Notes!$B$5:$C$100,2,FALSE),\"\"))","v":""},"2d","$Y$132","$Z$132"]
[26211,{"$f":"Menu!$F$29","v":"X"},{"$f":"Menu!$J$29","v":2020},{"$f":"IF(ISBLANK(INDIRECT(\"'\"&F6928&\"'!\"&G6928)),\"\",INDIRECT(\"'\"&F6928&\"'!\"&G6928))","v":""},{"$f":"IF(ISBLANK(INDIRECT(\"'\"&F6928&\"'!\"&H6928)),\"\",IFERROR(VLOOKUP(TEXT(INDIRECT(\"'\"&F6928&\"'!\"&H6928),\"0\"),Notes!$B$5:$C$100,2,FALSE),\"\"))","v":""},"2d","$E$132","$F$132"]
[26212,{"$f":"Menu!$F$29","v":"X"},{"$f":"Menu!$J$29","v":2020},{"$f":"IF(ISBLANK(INDIRECT(\"'\"&F6929&\"'!\"&G6929)),\"\",INDIRECT(\"'\"&F6929&\"'!\"&G6929))","v":""},{"$f":"IF(ISBLANK(INDIRECT(\"'\"&F6929&\"'!\"&H6929)),\"\",IFERROR(VLOOKUP(TEXT(INDIRECT(\"'\"&F6929&\"'!\"&H6929),\"0\"),Notes!$B$5:$C$100,2,FALSE),\"\"))","v":""},"2d","$I$132","$J$132"]
[26213,{"$f":"Menu!$F$29","v":"X"},{"$f":"Menu!$J$29","v":2020},{"$f":"IF(ISBLANK(INDIRECT(\"'\"&F6930&\"'!\"&G6930)),\"\",INDIRECT(\"'\"&F6930&\"'!\"&G6930))","v":""},{"$f":"IF(ISBLANK(INDIRECT(\"'\"&F6930&\"'!\"&H6930)),\"\",IFERROR(VLOOKUP(TEXT(INDIRECT(\"'\"&F6930&\"'!\"&H6930),\"0\"),Notes!$B$5:$C$100,2,FALSE),\"\"))","v":""},"2d","$G$132","$H$132"]
[26214,{"$f":"Menu!$F$29","v":"X"},{"$f":"Menu!$J$29","v":2020},{"$f":"IF(ISBLANK(INDIRECT(\"'\"&F6931&\"'!\"&G6931)),\"\",INDIRECT(\"'\"&F6931&\"'!\"&G6931))","v":""},{"$f":"IF(ISBLANK(INDIRECT(\"'\"&F6931&\"'!\"&H6931)),\"\",IFERROR(VLOOKUP(TEXT(INDIRECT(\"'\"&F6931&\"'!\"&H6931),\"0\"),Notes!$B$5:$C$100,2,FALSE),\"\"))","v":""},"2a","$Q$132","$R$132"]
[26215,{"$f":"Menu!$F$29","v":"X"},{"$f":"Menu!$J$29","v":2020},{"$f":"IF(ISBLANK(INDIRECT(\"'\"&F6932&\"'!\"&G6932)),\"\",INDIRECT(\"'\"&F6932&\"'!\"&G6932))","v":""},{"$f":"IF(ISBLANK(INDIRECT(\"'\"&F6932&\"'!\"&H6932)),\"\",IFERROR(VLOOKUP(TEXT(INDIRECT(\"'\"&F6932&\"'!\"&H6932),\"0\"),Notes!$B$5:$C$100,2,FALSE),\"\"))","v":""},"2a","$U$132","$V$132"]
[26216,{"$f":"Menu!$F$29","v":"X"},{"$f":"Menu!$J$29","v":2020},{"$f":"IF(ISBLANK(INDIRECT(\"'\"&F6933&\"'!\"&G6933)),\"\",INDIRECT(\"'\"&F6933&\"'!\"&G6933))","v":""},{"$f":"IF(ISBLANK(INDIRECT(\"'\"&F6933&\"'!\"&H6933)),\"\",IFERROR(VLOOKUP(TEXT(INDIRECT(\"'\"&F6933&\"'!\"&H6933),\"0\"),Notes!$B$5:$C$100,2,FALSE),\"\"))","v":""},"2a","$S$132","$T$132"]
[26217,{"$f":"Menu!$F$29","v":"X"},{"$f":"Menu!$J$29","v":2020},{"$f":"IF(ISBLANK(INDIRECT(\"'\"&F6934&\"'!\"&G6934)),\"\",INDIRECT(\"'\"&F6934&\"'!\"&G6934))","v":""},{"$f":"IF(ISBLANK(INDIRECT(\"'\"&F6934&\"'!\"&H6934)),\"\",IFERROR(VLOOKUP(TEXT(INDIRECT(\"'\"&F6934&\"'!\"&H6934),\"0\"),Notes!$B$5:$C$100,2,FALSE),\"\"))","v":""},"2d","$K$132","$L$132"]
[26218,{"$f":"Menu!$F$29","v":"X"},{"$f":"Menu!$J$29","v":2020},{"$f":"IF(ISBLANK(INDIRECT(\"'\"&F6935&\"'!\"&G6935)),\"\",INDIRECT(\"'\"&F6935&\"'!\"&G6935))","v":""},{"$f":"IF(ISBLANK(INDIRECT(\"'\"&F6935&\"'!\"&H6935)),\"\",IFERROR(VLOOKUP(TEXT(INDIRECT(\"'\"&F6935&\"'!\"&H6935),\"0\"),Notes!$B$5:$C$100,2,FALSE),\"\"))","v":""},"2d","$O$132","$P$132"]
[26219,{"$f":"Menu!$F$29","v":"X"},{"$f":"Menu!$J$29","v":2020},{"$f":"IF(ISBLANK(INDIRECT(\"'\"&F6936&\"'!\"&G6936)),\"\",INDIRECT(\"'\"&F6936&\"'!\"&G6936))","v":""},{"$f":"IF(ISBLANK(INDIRECT(\"'\"&F6936&\"'!\"&H6936)),\"\",IFERROR(VLOOKUP(TEXT(INDIRECT(\"'\"&F6936&\"'!\"&H6936),\"0\"),Notes!$B$5:$C$100,2,FALSE),\"\"))","v":""},"2d","$M$132","$N$132"]
[26220,{"$f":"Menu!$F$29","v":"X"},{"$f":"Menu!$J$29","v":2020},{"$f":"IF(ISBLANK(INDIRECT(\"'\"&F6937&\"'!\"&G6937)),\"\",INDIRECT(\"'\"&F6937&\"'!\"&G6937))","v":""},{"$f":"IF(ISBLANK(INDIRECT(\"'\"&F6937&\"'!\"&H6937)),\"\",IFERROR(VLOOKUP(TEXT(INDIRECT(\"'\"&F6937&\"'!\"&H6937),\"0\"),Notes!$B$5:$C$100,2,FALSE),\"\"))","v":""},"2d","$Q$132","$R$132"]
[26221,{"$f":"Menu!$F$29","v":"X"},{"$f":"Menu!$J$29","v":2020},{"$f":"IF(ISBLANK(INDIRECT(\"'\"&F6938&\"'!\"&G6938)),\"\",INDIRECT(\"'\"&F6938&\"'!\"&G6938))","v":""},{"$f":"IF(ISBLANK(INDIRECT(\"'\"&F6938&\"'!\"&H6938)),\"\",IFERROR(VLOOKUP(TEXT(INDIRECT(\"'\"&F6938&\"'!\"&H6938),\"0\"),Notes!$B$5:$C$100,2,FALSE),\"\"))","v":""},"2d","$U$132","$V$132"]
[26222,{"$f":"Menu!$F$29","v":"X"},{"$f":"Menu!$J$29","v":2020},{"$f":"IF(ISBLANK(INDIRECT(\"'\"&F6939&\"'!\"&G6939)),\"\",INDIRECT(\"'\"&F6939&\"'!\"&G6939))","v":""},{"$f":"IF(ISBLANK(INDIRECT(\"'\"&F6939&\"'!\"&H6939)),\"\",IFERROR(VLOOKUP(TEXT(INDIRECT(\"'\"&F6939&\"'!\"&H6939),\"0\"),Notes!$B$5:$C$100,2,FALSE),\"\"))","v":""},"2d","$S$132","$T$132"]
[26223,{"$f":"Menu!$F$29","v":"X"},{"$f":"Menu!$J$29","v":2020},{"$f":"IF(ISBLANK(INDIRECT(\"'\"&F6940&\"'!\"&G6940)),\"\",INDIRECT(\"'\"&F6940&\"'!\"&G6940))","v":""},null,"2a","$K$132","$L$132"]
[26224,{"$f":"Menu!$F$29","v":"X"},{"$f":"Menu!$J$29","v":2020},{"$f":"IF(ISBLANK(INDIRECT(\"'\"&F6941&\"'!\"&G6941)),\"\",INDIRECT(\"'\"&F6941&\"'!\"&G6941))","v":""},{"$f":"IF(ISBLANK(INDIRECT(\"'\"&F6941&\"'!\"&H6941)),\"\",IFERROR(VLOOKUP(TEXT(INDIRECT(\"'\"&F6941&\"'!\"&H6941),\"0\"),Notes!$B$5:$C$100,2,FALSE),\"\"))","v":""},"2a","$O$132","$P$132"]
[26225,{"$f":"Menu!$F$29","v":"X"},{"$f":"Menu!$J$29","v":2020},{"$f":"IF(ISBLANK(INDIRECT(\"'\"&F6942&\"'!\"&G6942)),\"\",INDIRECT(\"'\"&F6942&\"'!\"&G6942))","v":""},{"$f":"IF(ISBLANK(INDIRECT(\"'\"&F6942&\"'!\"&H6942)),\"\",IFERROR(VLOOKUP(TEXT(INDIRECT(\"'\"&F6942&\"'!\"&H6942),\"0\"),Notes!$B$5:$C$100,2,FALSE),\"\"))","v":""},"2a","$M$132","$N$132"]
[26226,{"$f":"Menu!$F$29","v":"X"},{"$f":"Menu!$J$29","v":2020},{"$f":"IF(ISBLANK(INDIRECT(\"'\"&F6943&\"'!\"&G6943)),\"\",INDIRECT(\"'\"&F6943&\"'!\"&G6943))","v":""},{"$f":"IF(ISBLANK(INDIRECT(\"'\"&F6943&\"'!\"&H6943)),\"\",IFERROR(VLOOKUP(TEXT(INDIRECT(\"'\"&F6943&\"'!\"&H6943),\"0\"),Notes!$B$5:$C$100,2,FALSE),\"\"))","v":""},"2a","$E$132","$F$132"]
[26227,{"$f":"Menu!$F$29","v":"X"},{"$f":"Menu!$J$29","v":2020},{"$f":"IF(ISBLANK(INDIRECT(\"'\"&F6944&\"'!\"&G6944)),\"\",INDIRECT(\"'\"&F6944&\"'!\"&G6944))","v":""},{"$f":"IF(ISBLANK(INDIRECT(\"'\"&F6944&\"'!\"&H6944)),\"\",IFERROR(VLOOKUP(TEXT(INDIRECT(\"'\"&F6944&\"'!\"&H6944),\"0\"),Notes!$B$5:$C$100,2,FALSE),\"\"))","v":""},"2b","$K$133","$L$133"]
[26228,{"$f":"Menu!$F$29","v":"X"},{"$f":"Menu!$J$29","v":2020},{"$f":"IF(ISBLANK(INDIRECT(\"'\"&F6945&\"'!\"&G6945)),\"\",INDIRECT(\"'\"&F6945&\"'!\"&G6945))","v":""},{"$f":"IF(ISBLANK(INDIRECT(\"'\"&F6945&\"'!\"&H6945)),\"\",IFERROR(VLOOKUP(TEXT(INDIRECT(\"'\"&F6945&\"'!\"&H6945),\"0\"),Notes!$B$5:$C$100,2,FALSE),\"\"))","v":""},"2b","$O$133","$P$133"]
[26229,{"$f":"Menu!$F$29","v":"X"},{"$f":"Menu!$J$29","v":2020},{"$f":"IF(ISBLANK(INDIRECT(\"'\"&F6946&\"'!\"&G6946)),\"\",INDIRECT(\"'\"&F6946&\"'!\"&G6946))","v":""},{"$f":"IF(ISBLANK(INDIRECT(\"'\"&F6946&\"'!\"&H6946)),\"\",IFERROR(VLOOKUP(TEXT(INDIRECT(\"'\"&F6946&\"'!\"&H6946),\"0\"),Notes!$B$5:$C$100,2,FALSE),\"\"))","v":""},"2b","$M$133","$N$133"]
[26230,{"$f":"Menu!$F$29","v":"X"},{"$f":"Menu!$J$29","v":2020},{"$f":"IF(ISBLANK(INDIRECT(\"'\"&F6947&\"'!\"&G6947)),\"\",INDIRECT(\"'\"&F6947&\"'!\"&G6947))","v":""},{"$f":"IF(ISBLANK(INDIRECT(\"'\"&F6947&\"'!\"&H6947)),\"\",IFERROR(VLOOKUP(TEXT(INDIRECT(\"'\"&F6947&\"'!\"&H6947),\"0\"),Notes!$B$5:$C$100,2,FALSE),\"\"))","v":""},"2b","$Q$133","$R$133"]
[26231,{"$f":"Menu!$F$29","v":"X"},{"$f":"Menu!$J$29","v":2020},{"$f":"IF(ISBLANK(INDIRECT(\"'\"&F6948&\"'!\"&G6948)),\"\",INDIRECT(\"'\"&F6948&\"'!\"&G6948))","v":""},{"$f":"IF(ISBLANK(INDIRECT(\"'\"&F6948&\"'!\"&H6948)),\"\",IFERROR(VLOOKUP(TEXT(INDIRECT(\"'\"&F6948&\"'!\"&H6948),\"0\"),Notes!$B$5:$C$100,2,FALSE),\"\"))","v":""},"2b","$U$133","$V$133"]
[26232,{"$f":"Menu!$F$29","v":"X"},{"$f":"Menu!$J$29","v":2020},{"$f":"IF(ISBLANK(INDIRECT(\"'\"&F6949&\"'!\"&G6949)),\"\",INDIRECT(\"'\"&F6949&\"'!\"&G6949))","v":""},{"$f":"IF(ISBLANK(INDIRECT(\"'\"&F6949&\"'!\"&H6949)),\"\",IFERROR(VLOOKUP(TEXT(INDIRECT(\"'\"&F6949&\"'!\"&H6949),\"0\"),Notes!$B$5:$C$100,2,FALSE),\"\"))","v":""},"2b","$S$133","$T$133"]
[26236,{"$f":"Menu!$F$29","v":"X"},{"$f":"Menu!$J$29","v":2020},{"$f":"IF(ISBLANK(INDIRECT(\"'\"&F6950&\"'!\"&G6950)),\"\",INDIRECT(\"'\"&F6950&\"'!\"&G6950))","v":""},{"$f":"IF(ISBLANK(INDIRECT(\"'\"&F6950&\"'!\"&H6950)),\"\",IFERROR(VLOOKUP(TEXT(INDIRECT(\"'\"&F6950&\"'!\"&H6950),\"0\"),Notes!$B$5:$C$100,2,FALSE),\"\"))","v":""},"2a","$I$133","$J$133"]
[26237,{"$f":"Menu!$F$29","v":"X"},{"$f":"Menu!$J$29","v":2020},{"$f":"IF(ISBLANK(INDIRECT(\"'\"&F6951&\"'!\"&G6951)),\"\",INDIRECT(\"'\"&F6951&\"'!\"&G6951))","v":""},{"$f":"IF(ISBLANK(INDIRECT(\"'\"&F6951&\"'!\"&H6951)),\"\",IFERROR(VLOOKUP(TEXT(INDIRECT(\"'\"&F6951&\"'!\"&H6951),\"0\"),Notes!$B$5:$C$100,2,FALSE),\"\"))","v":""},"2c","$E$133","$F$133"]
[26238,{"$f":"Menu!$F$29","v":"X"},{"$f":"Menu!$J$29","v":2020},{"$f":"IF(ISBLANK(INDIRECT(\"'\"&F6952&\"'!\"&G6952)),\"\",INDIRECT(\"'\"&F6952&\"'!\"&G6952))","v":""},{"$f":"IF(ISBLANK(INDIRECT(\"'\"&F6952&\"'!\"&H6952)),\"\",IFERROR(VLOOKUP(TEXT(INDIRECT(\"'\"&F6952&\"'!\"&H6952),\"0\"),Notes!$B$5:$C$100,2,FALSE),\"\"))","v":""},"2c","$I$133","$J$133"]
[26239,{"$f":"Menu!$F$29","v":"X"},{"$f":"Menu!$J$29","v":2020},{"$f":"IF(ISBLANK(INDIRECT(\"'\"&F6953&\"'!\"&G6953)),\"\",INDIRECT(\"'\"&F6953&\"'!\"&G6953))","v":""},{"$f":"IF(ISBLANK(INDIRECT(\"'\"&F6953&\"'!\"&H6953)),\"\",IFERROR(VLOOKUP(TEXT(INDIRECT(\"'\"&F6953&\"'!\"&H6953),\"0\"),Notes!$B$5:$C$100,2,FALSE),\"\"))","v":""},"2c","$G$133","$H$133"]
[26243,{"$f":"Menu!$F$29","v":"X"},{"$f":"Menu!$J$29","v":2020},{"$f":"IF(ISBLANK(INDIRECT(\"'\"&F6954&\"'!\"&G6954)),\"\",INDIRECT(\"'\"&F6954&\"'!\"&G6954))","v":""},{"$f":"IF(ISBLANK(INDIRECT(\"'\"&F6954&\"'!\"&H6954)),\"\",IFERROR(VLOOKUP(TEXT(INDIRECT(\"'\"&F6954&\"'!\"&H6954),\"0\"),Notes!$B$5:$C$100,2,FALSE),\"\"))","v":""},"2c","$K$133","$L$133"]
[26244,{"$f":"Menu!$F$29","v":"X"},{"$f":"Menu!$J$29","v":2020},{"$f":"IF(ISBLANK(INDIRECT(\"'\"&F6955&\"'!\"&G6955)),\"\",INDIRECT(\"'\"&F6955&\"'!\"&G6955))","v":""},{"$f":"IF(ISBLANK(INDIRECT(\"'\"&F6955&\"'!\"&H6955)),\"\",IFERROR(VLOOKUP(TEXT(INDIRECT(\"'\"&F6955&\"'!\"&H6955),\"0\"),Notes!$B$5:$C$100,2,FALSE),\"\"))","v":""},"2c","$O$133","$P$133"]
[26245,{"$f":"Menu!$F$29","v":"X"},{"$f":"Menu!$J$29","v":2020},{"$f":"IF(ISBLANK(INDIRECT(\"'\"&F6956&\"'!\"&G6956)),\"\",INDIRECT(\"'\"&F6956&\"'!\"&G6956))","v":""},{"$f":"IF(ISBLANK(INDIRECT(\"'\"&F6956&\"'!\"&H6956)),\"\",IFERROR(VLOOKUP(TEXT(INDIRECT(\"'\"&F6956&\"'!\"&H6956),\"0\"),Notes!$B$5:$C$100,2,FALSE),\"\"))","v":""},"2c","$M$133","$N$133"]
[26246,{"$f":"Menu!$F$29","v":"X"},{"$f":"Menu!$J$29","v":2020},{"$f":"IF(ISBLANK(INDIRECT(\"'\"&F6957&\"'!\"&G6957)),\"\",INDIRECT(\"'\"&F6957&\"'!\"&G6957))","v":""},{"$f":"IF(ISBLANK(INDIRECT(\"'\"&F6957&\"'!\"&H6957)),\"\",IFERROR(VLOOKUP(TEXT(INDIRECT(\"'\"&F6957&\"'!\"&H6957),\"0\"),Notes!$B$5:$C$100,2,FALSE),\"\"))","v":""},"2c","$Q$133","$R$133"]
[26247,{"$f":"Menu!$F$29","v":"X"},{"$f":"Menu!$J$29","v":2020},{"$f":"IF(ISBLANK(INDIRECT(\"'\"&F6958&\"'!\"&G6958)),\"\",INDIRECT(\"'\"&F6958&\"'!\"&G6958))","v":""},{"$f":"IF(ISBLANK(INDIRECT(\"'\"&F6958&\"'!\"&H6958)),\"\",IFERROR(VLOOKUP(TEXT(INDIRECT(\"'\"&F6958&\"'!\"&H6958),\"0\"),Notes!$B$5:$C$100,2,FALSE),\"\"))","v":""},"2c","$U$133","$V$133"]
[26248,{"$f":"Menu!$F$29","v":"X"},{"$f":"Menu!$J$29","v":2020},{"$f":"IF(ISBLANK(INDIRECT(\"'\"&F6959&\"'!\"&G6959)),\"\",INDIRECT(\"'\"&F6959&\"'!\"&G6959))","v":""},{"$f":"IF(ISBLANK(INDIRECT(\"'\"&F6959&\"'!\"&H6959)),\"\",IFERROR(VLOOKUP(TEXT(INDIRECT(\"'\"&F6959&\"'!\"&H6959),\"0\"),Notes!$B$5:$C$100,2,FALSE),\"\"))","v":""},"2c","$S$133","$T$133"]
[26249,{"$f":"Menu!$F$29","v":"X"},{"$f":"Menu!$J$29","v":2020},{"$f":"IF(ISBLANK(INDIRECT(\"'\"&F6960&\"'!\"&G6960)),\"\",INDIRECT(\"'\"&F6960&\"'!\"&G6960))","v":""},{"$f":"IF(ISBLANK(INDIRECT(\"'\"&F6960&\"'!\"&H6960)),\"\",IFERROR(VLOOKUP(TEXT(INDIRECT(\"'\"&F6960&\"'!\"&H6960),\"0\"),Notes!$B$5:$C$100,2,FALSE),\"\"))","v":""},"2c","$W$133","$X$133"]
[26250,{"$f":"Menu!$F$29","v":"X"},{"$f":"Menu!$J$29","v":2020},{"$f":"IF(ISBLANK(INDIRECT(\"'\"&F6961&\"'!\"&G6961)),\"\",INDIRECT(\"'\"&F6961&\"'!\"&G6961))","v":""},{"$f":"IF(ISBLANK(INDIRECT(\"'\"&F6961&\"'!\"&H6961)),\"\",IFERROR(VLOOKUP(TEXT(INDIRECT(\"'\"&F6961&\"'!\"&H6961),\"0\"),Notes!$B$5:$C$100,2,FALSE),\"\"))","v":""},"2c","$AA$133","$AB$133"]
[26251,{"$f":"Menu!$F$29","v":"X"},{"$f":"Menu!$J$29","v":2020},{"$f":"IF(ISBLANK(INDIRECT(\"'\"&F6962&\"'!\"&G6962)),\"\",INDIRECT(\"'\"&F6962&\"'!\"&G6962))","v":""},{"$f":"IF(ISBLANK(INDIRECT(\"'\"&F6962&\"'!\"&H6962)),\"\",IFERROR(VLOOKUP(TEXT(INDIRECT(\"'\"&F6962&\"'!\"&H6962),\"0\"),Notes!$B$5:$C$100,2,FALSE),\"\"))","v":""},"2c","$Y$133","$Z$133"]
[26258,{"$f":"Menu!$F$29","v":"X"},{"$f":"Menu!$J$29","v":2020},{"$f":"IF(ISBLANK(INDIRECT(\"'\"&F6963&\"'!\"&G6963)),\"\",INDIRECT(\"'\"&F6963&\"'!\"&G6963))","v":""},{"$f":"IF(ISBLANK(INDIRECT(\"'\"&F6963&\"'!\"&H6963)),\"\",IFERROR(VLOOKUP(TEXT(INDIRECT(\"'\"&F6963&\"'!\"&H6963),\"0\"),Notes!$B$5:$C$100,2,FALSE),\"\"))","v":""},"2e","$BG$134","$BH$134"]
[26259,{"$f":"Menu!$F$29","v":"X"},{"$f":"Menu!$J$29","v":2020},{"$f":"IF(ISBLANK(INDIRECT(\"'\"&F6964&\"'!\"&G6964)),\"\",INDIRECT(\"'\"&F6964&\"'!\"&G6964))","v":""},{"$f":"IF(ISBLANK(INDIRECT(\"'\"&F6964&\"'!\"&H6964)),\"\",IFERROR(VLOOKUP(TEXT(INDIRECT(\"'\"&F6964&\"'!\"&H6964),\"0\"),Notes!$B$5:$C$100,2,FALSE),\"\"))","v":""},"2e","$BK$134","$BL$134"]
[26260,{"$f":"Menu!$F$29","v":"X"},{"$f":"Menu!$J$29","v":2020},{"$f":"IF(ISBLANK(INDIRECT(\"'\"&F6965&\"'!\"&G6965)),\"\",INDIRECT(\"'\"&F6965&\"'!\"&G6965))","v":""},{"$f":"IF(ISBLANK(INDIRECT(\"'\"&F6965&\"'!\"&H6965)),\"\",IFERROR(VLOOKUP(TEXT(INDIRECT(\"'\"&F6965&\"'!\"&H6965),\"0\"),Notes!$B$5:$C$100,2,FALSE),\"\"))","v":""},"2e","$BI$134","$BJ$134"]
[26261,{"$f":"Menu!$F$29","v":"X"},{"$f":"Menu!$J$29","v":2020},{"$f":"IF(ISBLANK(INDIRECT(\"'\"&F6966&\"'!\"&G6966)),\"\",INDIRECT(\"'\"&F6966&\"'!\"&G6966))","v":""},{"$f":"IF(ISBLANK(INDIRECT(\"'\"&F6966&\"'!\"&H6966)),\"\",IFERROR(VLOOKUP(TEXT(INDIRECT(\"'\"&F6966&\"'!\"&H6966),\"0\"),Notes!$B$5:$C$100,2,FALSE),\"\"))","v":""},"2e","$E$134","$F$134"]
[26262,{"$f":"Menu!$F$29","v":"X"},{"$f":"Menu!$J$29","v":2020},{"$f":"IF(ISBLANK(INDIRECT(\"'\"&F6967&\"'!\"&G6967)),\"\",INDIRECT(\"'\"&F6967&\"'!\"&G6967))","v":""},{"$f":"IF(ISBLANK(INDIRECT(\"'\"&F6967&\"'!\"&H6967)),\"\",IFERROR(VLOOKUP(TEXT(INDIRECT(\"'\"&F6967&\"'!\"&H6967),\"0\"),Notes!$B$5:$C$100,2,FALSE),\"\"))","v":""},"2e","$I$134","$J$134"]
[26263,{"$f":"Menu!$F$29","v":"X"},{"$f":"Menu!$J$29","v":2020},{"$f":"IF(ISBLANK(INDIRECT(\"'\"&F6968&\"'!\"&G6968)),\"\",INDIRECT(\"'\"&F6968&\"'!\"&G6968))","v":""},{"$f":"IF(ISBLANK(INDIRECT(\"'\"&F6968&\"'!\"&H6968)),\"\",IFERROR(VLOOKUP(TEXT(INDIRECT(\"'\"&F6968&\"'!\"&H6968),\"0\"),Notes!$B$5:$C$100,2,FALSE),\"\"))","v":""},"2e","$G$134","$H$134"]
[26264,{"$f":"Menu!$F$29","v":"X"},{"$f":"Menu!$J$29","v":2020},{"$f":"IF(ISBLANK(INDIRECT(\"'\"&F6969&\"'!\"&G6969)),\"\",INDIRECT(\"'\"&F6969&\"'!\"&G6969))","v":""},{"$f":"IF(ISBLANK(INDIRECT(\"'\"&F6969&\"'!\"&H6969)),\"\",IFERROR(VLOOKUP(TEXT(INDIRECT(\"'\"&F6969&\"'!\"&H6969),\"0\"),Notes!$B$5:$C$100,2,FALSE),\"\"))","v":""},"2e","$K$134","$L$134"]
[26265,{"$f":"Menu!$F$29","v":"X"},{"$f":"Menu!$J$29","v":2020},{"$f":"IF(ISBLANK(INDIRECT(\"'\"&F6970&\"'!\"&G6970)),\"\",INDIRECT(\"'\"&F6970&\"'!\"&G6970))","v":""},{"$f":"IF(ISBLANK(INDIRECT(\"'\"&F6970&\"'!\"&H6970)),\"\",IFERROR(VLOOKUP(TEXT(INDIRECT(\"'\"&F6970&\"'!\"&H6970),\"0\"),Notes!$B$5:$C$100,2,FALSE),\"\"))","v":""},"2e","$O$134","$P$134"]
[26266,{"$f":"Menu!$F$29","v":"X"},{"$f":"Menu!$J$29","v":2020},{"$f":"IF(ISBLANK(INDIRECT(\"'\"&F6971&\"'!\"&G6971)),\"\",INDIRECT(\"'\"&F6971&\"'!\"&G6971))","v":""},{"$f":"IF(ISBLANK(INDIRECT(\"'\"&F6971&\"'!\"&H6971)),\"\",IFERROR(VLOOKUP(TEXT(INDIRECT(\"'\"&F6971&\"'!\"&H6971),\"0\"),Notes!$B$5:$C$100,2,FALSE),\"\"))","v":""},"2e","$M$134","$N$134"]
[26267,{"$f":"Menu!$F$29","v":"X"},{"$f":"Menu!$J$29","v":2020},{"$f":"IF(ISBLANK(INDIRECT(\"'\"&F6972&\"'!\"&G6972)),\"\",INDIRECT(\"'\"&F6972&\"'!\"&G6972))","v":""},{"$f":"IF(ISBLANK(INDIRECT(\"'\"&F6972&\"'!\"&H6972)),\"\",IFERROR(VLOOKUP(TEXT(INDIRECT(\"'\"&F6972&\"'!\"&H6972),\"0\"),Notes!$B$5:$C$100,2,FALSE),\"\"))","v":""},"2e","$Q$134","$R$134"]
[26268,{"$f":"Menu!$F$29","v":"X"},{"$f":"Menu!$J$29","v":2020},{"$f":"IF(ISBLANK(INDIRECT(\"'\"&F6973&\"'!\"&G6973)),\"\",INDIRECT(\"'\"&F6973&\"'!\"&G6973))","v":""},{"$f":"IF(ISBLANK(INDIRECT(\"'\"&F6973&\"'!\"&H6973)),\"\",IFERROR(VLOOKUP(TEXT(INDIRECT(\"'\"&F6973&\"'!\"&H6973),\"0\"),Notes!$B$5:$C$100,2,FALSE),\"\"))","v":""},"2e","$U$134","$V$134"]
[26269,{"$f":"Menu!$F$29","v":"X"},{"$f":"Menu!$J$29","v":2020},{"$f":"IF(ISBLANK(INDIRECT(\"'\"&F6974&\"'!\"&G6974)),\"\",INDIRECT(\"'\"&F6974&\"'!\"&G6974))","v":""},{"$f":"IF(ISBLANK(INDIRECT(\"'\"&F6974&\"'!\"&H6974)),\"\",IFERROR(VLOOKUP(TEXT(INDIRECT(\"'\"&F6974&\"'!\"&H6974),\"0\"),Notes!$B$5:$C$100,2,FALSE),\"\"))","v":""},"2e","$S$134","$T$134"]
[26270,{"$f":"Menu!$F$29","v":"X"},{"$f":"Menu!$J$29","v":2020},{"$f":"IF(ISBLANK(INDIRECT(\"'\"&F6975&\"'!\"&G6975)),\"\",INDIRECT(\"'\"&F6975&\"'!\"&G6975))","v":""},{"$f":"IF(ISBLANK(INDIRECT(\"'\"&F6975&\"'!\"&H6975)),\"\",IFERROR(VLOOKUP(TEXT(INDIRECT(\"'\"&F6975&\"'!\"&H6975),\"0\"),Notes!$B$5:$C$100,2,FALSE),\"\"))","v":""},"2e","$W$134","$X$134"]
[26271,{"$f":"Menu!$F$29","v":"X"},{"$f":"Menu!$J$29","v":2020},{"$f":"IF(ISBLANK(INDIRECT(\"'\"&F6976&\"'!\"&G6976)),\"\",INDIRECT(\"'\"&F6976&\"'!\"&G6976))","v":""},{"$f":"IF(ISBLANK(INDIRECT(\"'\"&F6976&\"'!\"&H6976)),\"\",IFERROR(VLOOKUP(TEXT(INDIRECT(\"'\"&F6976&\"'!\"&H6976),\"0\"),Notes!$B$5:$C$100,2,FALSE),\"\"))","v":""},"2e","$AA$134","$AB$134"]
[26272,{"$f":"Menu!$F$29","v":"X"},{"$f":"Menu!$J$29","v":2020},{"$f":"IF(ISBLANK(INDIRECT(\"'\"&F6977&\"'!\"&G6977)),\"\",INDIRECT(\"'\"&F6977&\"'!\"&G6977))","v":""},{"$f":"IF(ISBLANK(INDIRECT(\"'\"&F6977&\"'!\"&H6977)),\"\",IFERROR(VLOOKUP(TEXT(INDIRECT(\"'\"&F6977&\"'!\"&H6977),\"0\"),Notes!$B$5:$C$100,2,FALSE),\"\"))","v":""},"2e","$Y$134","$Z$134"]
[26273,{"$f":"Menu!$F$29","v":"X"},{"$f":"Menu!$J$29","v":2020},{"$f":"IF(ISBLANK(INDIRECT(\"'\"&F6978&\"'!\"&G6978)),\"\",INDIRECT(\"'\"&F6978&\"'!\"&G6978))","v":""},{"$f":"IF(ISBLANK(INDIRECT(\"'\"&F6978&\"'!\"&H6978)),\"\",IFERROR(VLOOKUP(TEXT(INDIRECT(\"'\"&F6978&\"'!\"&H6978),\"0\"),Notes!$B$5:$C$100,2,FALSE),\"\"))","v":""},"2e","$AC$134",{"$f":"IF(LEN(TRIM(MID(G6978,4,10)))-LEN(SUBSTITUTE(TRIM(MID(G6978,4,10)),\"$\",\"\"))=0,\"$\"&CHAR(CODE(MID(G6978,2,1))+1)&\"$\"&TRIM(MID(G6978,4,10)),\"$\"&MID(G6978,2,1)&CHAR(CODE(MID(G6978,3,1))+1)&\"$\"&TRIM(MID(G6978,5,11)))","v":"$AD$134"}]
[26274,{"$f":"Menu!$F$29","v":"X"},{"$f":"Menu!$J$29","v":2020},{"$f":"IF(ISBLANK(INDIRECT(\"'\"&F6979&\"'!\"&G6979)),\"\",INDIRECT(\"'\"&F6979&\"'!\"&G6979))","v":""},{"$f":"IF(ISBLANK(INDIRECT(\"'\"&F6979&\"'!\"&H6979)),\"\",IFERROR(VLOOKUP(TEXT(INDIRECT(\"'\"&F6979&\"'!\"&H6979),\"0\"),Notes!$B$5:$C$100,2,FALSE),\"\"))","v":""},"2e","$AG$134","$AH$134"]
[26275,{"$f":"Menu!$F$29","v":"X"},{"$f":"Menu!$J$29","v":2020},{"$f":"IF(ISBLANK(INDIRECT(\"'\"&F6980&\"'!\"&G6980)),\"\",INDIRECT(\"'\"&F6980&\"'!\"&G6980))","v":""},{"$f":"IF(ISBLANK(INDIRECT(\"'\"&F6980&\"'!\"&H6980)),\"\",IFERROR(VLOOKUP(TEXT(INDIRECT(\"'\"&F6980&\"'!\"&H6980),\"0\"),Notes!$B$5:$C$100,2,FALSE),\"\"))","v":""},"2e","$AE$134","$AF$134"]
[26276,{"$f":"Menu!$F$29","v":"X"},{"$f":"Menu!$J$29","v":2020},{"$f":"IF(ISBLANK(INDIRECT(\"'\"&F6981&\"'!\"&G6981)),\"\",INDIRECT(\"'\"&F6981&\"'!\"&G6981))","v":""},{"$f":"IF(ISBLANK(INDIRECT(\"'\"&F6981&\"'!\"&H6981)),\"\",IFERROR(VLOOKUP(TEXT(INDIRECT(\"'\"&F6981&\"'!\"&H6981),\"0\"),Notes!$B$5:$C$100,2,FALSE),\"\"))","v":""},"2e","$AI$134","$AJ$134"]
[26277,{"$f":"Menu!$F$29","v":"X"},{"$f":"Menu!$J$29","v":2020},{"$f":"IF(ISBLANK(INDIRECT(\"'\"&F6982&\"'!\"&G6982)),\"\",INDIRECT(\"'\"&F6982&\"'!\"&G6982))","v":""},{"$f":"IF(ISBLANK(INDIRECT(\"'\"&F6982&\"'!\"&H6982)),\"\",IFERROR(VLOOKUP(TEXT(INDIRECT(\"'\"&F6982&\"'!\"&H6982),\"0\"),Notes!$B$5:$C$100,2,FALSE),\"\"))","v":""},"2e","$AM$134","$AN$134"]
[26278,{"$f":"Menu!$F$29","v":"X"},{"$f":"Menu!$J$29","v":2020},{"$f":"IF(ISBLANK(INDIRECT(\"'\"&F6983&\"'!\"&G6983)),\"\",INDIRECT(\"'\"&F6983&\"'!\"&G6983))","v":""},{"$f":"IF(ISBLANK(INDIRECT(\"'\"&F6983&\"'!\"&H6983)),\"\",IFERROR(VLOOKUP(TEXT(INDIRECT(\"'\"&F6983&\"'!\"&H6983),\"0\"),Notes!$B$5:$C$100,2,FALSE),\"\"))","v":""},"2e","$AK$134","$AL$134"]
[26279,{"$f":"Menu!$F$29","v":"X"},{"$f":"Menu!$J$29","v":2020},{"$f":"IF(ISBLANK(INDIRECT(\"'\"&F6984&\"'!\"&G6984)),\"\",INDIRECT(\"'\"&F6984&\"'!\"&G6984))","v":""},{"$f":"IF(ISBLANK(INDIRECT(\"'\"&F6984&\"'!\"&H6984)),\"\",IFERROR(VLOOKUP(TEXT(INDIRECT(\"'\"&F6984&\"'!\"&H6984),\"0\"),Notes!$B$5:$C$100,2,FALSE),\"\"))","v":""},"2e","$AO$134","$AP$134"]
[26280,{"$f":"Menu!$F$29","v":"X"},{"$f":"Menu!$J$29","v":2020},{"$f":"IF(ISBLANK(INDIRECT(\"'\"&F6985&\"'!\"&G6985)),\"\",INDIRECT(\"'\"&F6985&\"'!\"&G6985))","v":""},{"$f":"IF(ISBLANK(INDIRECT(\"'\"&F6985&\"'!\"&H6985)),\"\",IFERROR(VLOOKUP(TEXT(INDIRECT(\"'\"&F6985&\"'!\"&H6985),\"0\"),Notes!$B$5:$C$100,2,FALSE),\"\"))","v":""},"2e","$AS$134","$AT$134"]
[26281,{"$f":"Menu!$F$29","v":"X"},{"$f":"Menu!$J$29","v":2020},{"$f":"IF(ISBLANK(INDIRECT(\"'\"&F6986&\"'!\"&G6986)),\"\",INDIRECT(\"'\"&F6986&\"'!\"&G6986))","v":""},{"$f":"IF(ISBLANK(INDIRECT(\"'\"&F6986&\"'!\"&H6986)),\"\",IFERROR(VLOOKUP(TEXT(INDIRECT(\"'\"&F6986&\"'!\"&H6986),\"0\"),Notes!$B$5:$C$100,2,FALSE),\"\"))","v":""},"2e","$AQ$134","$AR$134"]
[26282,{"$f":"Menu!$F$29","v":"X"},{"$f":"Menu!$J$29","v":2020},{"$f":"IF(ISBLANK(INDIRECT(\"'\"&F6987&\"'!\"&G6987)),\"\",INDIRECT(\"'\"&F6987&\"'!\"&G6987))","v":""},{"$f":"IF(ISBLANK(INDIRECT(\"'\"&F6987&\"'!\"&H6987)),\"\",IFERROR(VLOOKUP(TEXT(INDIRECT(\"'\"&F6987&\"'!\"&H6987),\"0\"),Notes!$B$5:$C$100,2,FALSE),\"\"))","v":""},"2e","$AU$134","$AV$134"]
[26283,{"$f":"Menu!$F$29","v":"X"},{"$f":"Menu!$J$29","v":2020},{"$f":"IF(ISBLANK(INDIRECT(\"'\"&F6988&\"'!\"&G6988)),\"\",INDIRECT(\"'\"&F6988&\"'!\"&G6988))","v":""},{"$f":"IF(ISBLANK(INDIRECT(\"'\"&F6988&\"'!\"&H6988)),\"\",IFERROR(VLOOKUP(TEXT(INDIRECT(\"'\"&F6988&\"'!\"&H6988),\"0\"),Notes!$B$5:$C$100,2,FALSE),\"\"))","v":""},"2e","$AY$134","$AZ$134"]
[26284,{"$f":"Menu!$F$29","v":"X"},{"$f":"Menu!$J$29","v":2020},{"$f":"IF(ISBLANK(INDIRECT(\"'\"&F6989&\"'!\"&G6989)),\"\",INDIRECT(\"'\"&F6989&\"'!\"&G6989))","v":""},{"$f":"IF(ISBLANK(INDIRECT(\"'\"&F6989&\"'!\"&H6989)),\"\",IFERROR(VLOOKUP(TEXT(INDIRECT(\"'\"&F6989&\"'!\"&H6989),\"0\"),Notes!$B$5:$C$100,2,FALSE),\"\"))","v":""},"2e","$AW$134","$AX$134"]
[26285,{"$f":"Menu!$F$29","v":"X"},{"$f":"Menu!$J$29","v":2020},{"$f":"IF(ISBLANK(INDIRECT(\"'\"&F6990&\"'!\"&G6990)),\"\",INDIRECT(\"'\"&F6990&\"'!\"&G6990))","v":""},{"$f":"IF(ISBLANK(INDIRECT(\"'\"&F6990&\"'!\"&H6990)),\"\",IFERROR(VLOOKUP(TEXT(INDIRECT(\"'\"&F6990&\"'!\"&H6990),\"0\"),Notes!$B$5:$C$100,2,FALSE),\"\"))","v":""},"2e","$BA$134","$BB$134"]
[26286,{"$f":"Menu!$F$29","v":"X"},{"$f":"Menu!$J$29","v":2020},{"$f":"IF(ISBLANK(INDIRECT(\"'\"&F6991&\"'!\"&G6991)),\"\",INDIRECT(\"'\"&F6991&\"'!\"&G6991))","v":""},{"$f":"IF(ISBLANK(INDIRECT(\"'\"&F6991&\"'!\"&H6991)),\"\",IFERROR(VLOOKUP(TEXT(INDIRECT(\"'\"&F6991&\"'!\"&H6991),\"0\"),Notes!$B$5:$C$100,2,FALSE),\"\"))","v":""},"2e","$BE$134","$BF$134"]
[26287,{"$f":"Menu!$F$29","v":"X"},{"$f":"Menu!$J$29","v":2020},{"$f":"IF(ISBLANK(INDIRECT(\"'\"&F6992&\"'!\"&G6992)),\"\",INDIRECT(\"'\"&F6992&\"'!\"&G6992))","v":""},{"$f":"IF(ISBLANK(INDIRECT(\"'\"&F6992&\"'!\"&H6992)),\"\",IFERROR(VLOOKUP(TEXT(INDIRECT(\"'\"&F6992&\"'!\"&H6992),\"0\"),Notes!$B$5:$C$100,2,FALSE),\"\"))","v":""},"2e","$BC$134","$BD$134"]
[26288,{"$f":"Menu!$F$29","v":"X"},{"$f":"Menu!$J$29","v":2020},{"$f":"IF(ISBLANK(INDIRECT(\"'\"&F6993&\"'!\"&G6993)),\"\",INDIRECT(\"'\"&F6993&\"'!\"&G6993))","v":""},{"$f":"IF(ISBLANK(INDIRECT(\"'\"&F6993&\"'!\"&H6993)),\"\",IFERROR(VLOOKUP(TEXT(INDIRECT(\"'\"&F6993&\"'!\"&H6993),\"0\"),Notes!$B$5:$C$100,2,FALSE),\"\"))","v":""},"2b","$E$133","$F$133"]
[26289,{"$f":"Menu!$F$29","v":"X"},{"$f":"Menu!$J$29","v":2020},{"$f":"IF(ISBLANK(INDIRECT(\"'\"&F6994&\"'!\"&G6994)),\"\",INDIRECT(\"'\"&F6994&\"'!\"&G6994))","v":""},{"$f":"IF(ISBLANK(INDIRECT(\"'\"&F6994&\"'!\"&H6994)),\"\",IFERROR(VLOOKUP(TEXT(INDIRECT(\"'\"&F6994&\"'!\"&H6994),\"0\"),Notes!$B$5:$C$100,2,FALSE),\"\"))","v":""},"2b","$I$133","$J$133"]
[26290,{"$f":"Menu!$F$29","v":"X"},{"$f":"Menu!$J$29","v":2020},{"$f":"IF(ISBLANK(INDIRECT(\"'\"&F6995&\"'!\"&G6995)),\"\",INDIRECT(\"'\"&F6995&\"'!\"&G6995))","v":""},{"$f":"IF(ISBLANK(INDIRECT(\"'\"&F6995&\"'!\"&H6995)),\"\",IFERROR(VLOOKUP(TEXT(INDIRECT(\"'\"&F6995&\"'!\"&H6995),\"0\"),Notes!$B$5:$C$100,2,FALSE),\"\"))","v":""},"2b","$G$133","$H$133"]
[26291,{"$f":"Menu!$F$29","v":"X"},{"$f":"Menu!$J$29","v":2020},{"$f":"IF(ISBLANK(INDIRECT(\"'\"&F6996&\"'!\"&G6996)),\"\",INDIRECT(\"'\"&F6996&\"'!\"&G6996))","v":""},{"$f":"IF(ISBLANK(INDIRECT(\"'\"&F6996&\"'!\"&H6996)),\"\",IFERROR(VLOOKUP(TEXT(INDIRECT(\"'\"&F6996&\"'!\"&H6996),\"0\"),Notes!$B$5:$C$100,2,FALSE),\"\"))","v":""},"2a","$G$133","$H$133"]
[26292,{"$f":"Menu!$F$29","v":"X"},{"$f":"Menu!$J$29","v":2020},{"$f":"IF(ISBLANK(INDIRECT(\"'\"&F6997&\"'!\"&G6997)),\"\",INDIRECT(\"'\"&F6997&\"'!\"&G6997))","v":""},{"$f":"IF(ISBLANK(INDIRECT(\"'\"&F6997&\"'!\"&H6997)),\"\",IFERROR(VLOOKUP(TEXT(INDIRECT(\"'\"&F6997&\"'!\"&H6997),\"0\"),Notes!$B$5:$C$100,2,FALSE),\"\"))","v":""},"2b","$W$133","$X$133"]
[26293,{"$f":"Menu!$F$29","v":"X"},{"$f":"Menu!$J$29","v":2020},{"$f":"IF(ISBLANK(INDIRECT(\"'\"&F6998&\"'!\"&G6998)),\"\",INDIRECT(\"'\"&F6998&\"'!\"&G6998))","v":""},{"$f":"IF(ISBLANK(INDIRECT(\"'\"&F6998&\"'!\"&H6998)),\"\",IFERROR(VLOOKUP(TEXT(INDIRECT(\"'\"&F6998&\"'!\"&H6998),\"0\"),Notes!$B$5:$C$100,2,FALSE),\"\"))","v":""},"2b","$AA$133","$AB$133"]
[26294,{"$f":"Menu!$F$29","v":"X"},{"$f":"Menu!$J$29","v":2020},{"$f":"IF(ISBLANK(INDIRECT(\"'\"&F6999&\"'!\"&G6999)),\"\",INDIRECT(\"'\"&F6999&\"'!\"&G6999))","v":""},{"$f":"IF(ISBLANK(INDIRECT(\"'\"&F6999&\"'!\"&H6999)),\"\",IFERROR(VLOOKUP(TEXT(INDIRECT(\"'\"&F6999&\"'!\"&H6999),\"0\"),Notes!$B$5:$C$100,2,FALSE),\"\"))","v":""},"2b","$Y$133","$Z$133"]
[26295,{"$f":"Menu!$F$29","v":"X"},{"$f":"Menu!$J$29","v":2020},{"$f":"IF(ISBLANK(INDIRECT(\"'\"&F7000&\"'!\"&G7000)),\"\",INDIRECT(\"'\"&F7000&\"'!\"&G7000))","v":""},{"$f":"IF(ISBLANK(INDIRECT(\"'\"&F7000&\"'!\"&H7000)),\"\",IFERROR(VLOOKUP(TEXT(INDIRECT(\"'\"&F7000&\"'!\"&H7000),\"0\"),Notes!$B$5:$C$100,2,FALSE),\"\"))","v":""},"2d","$AC$133","$AD$133"]
[26296,{"$f":"Menu!$F$29","v":"X"},{"$f":"Menu!$J$29","v":2020},{"$f":"IF(ISBLANK(INDIRECT(\"'\"&F7001&\"'!\"&G7001)),\"\",INDIRECT(\"'\"&F7001&\"'!\"&G7001))","v":""},{"$f":"IF(ISBLANK(INDIRECT(\"'\"&F7001&\"'!\"&H7001)),\"\",IFERROR(VLOOKUP(TEXT(INDIRECT(\"'\"&F7001&\"'!\"&H7001),\"0\"),Notes!$B$5:$C$100,2,FALSE),\"\"))","v":""},"2d","$AG$133","$AH$133"]
[26297,{"$f":"Menu!$F$29","v":"X"},{"$f":"Menu!$J$29","v":2020},{"$f":"IF(ISBLANK(INDIRECT(\"'\"&F7002&\"'!\"&G7002)),\"\",INDIRECT(\"'\"&F7002&\"'!\"&G7002))","v":""},{"$f":"IF(ISBLANK(INDIRECT(\"'\"&F7002&\"'!\"&H7002)),\"\",IFERROR(VLOOKUP(TEXT(INDIRECT(\"'\"&F7002&\"'!\"&H7002),\"0\"),Notes!$B$5:$C$100,2,FALSE),\"\"))","v":""},"2d","$AE$133","$AF$133"]
[26298,{"$f":"Menu!$F$29","v":"X"},{"$f":"Menu!$J$29","v":2020},{"$f":"IF(ISBLANK(INDIRECT(\"'\"&F7003&\"'!\"&G7003)),\"\",INDIRECT(\"'\"&F7003&\"'!\"&G7003))","v":""},{"$f":"IF(ISBLANK(INDIRECT(\"'\"&F7003&\"'!\"&H7003)),\"\",IFERROR(VLOOKUP(TEXT(INDIRECT(\"'\"&F7003&\"'!\"&H7003),\"0\"),Notes!$B$5:$C$100,2,FALSE),\"\"))","v":""},"2d","$W$133","$X$133"]
[26299,{"$f":"Menu!$F$29","v":"X"},{"$f":"Menu!$J$29","v":2020},{"$f":"IF(ISBLANK(INDIRECT(\"'\"&F7004&\"'!\"&G7004)),\"\",INDIRECT(\"'\"&F7004&\"'!\"&G7004))","v":""},{"$f":"IF(ISBLANK(INDIRECT(\"'\"&F7004&\"'!\"&H7004)),\"\",IFERROR(VLOOKUP(TEXT(INDIRECT(\"'\"&F7004&\"'!\"&H7004),\"0\"),Notes!$B$5:$C$100,2,FALSE),\"\"))","v":""},"2d","$AA$133","$AB$133"]
[26300,{"$f":"Menu!$F$29","v":"X"},{"$f":"Menu!$J$29","v":2020},{"$f":"IF(ISBLANK(INDIRECT(\"'\"&F7005&\"'!\"&G7005)),\"\",INDIRECT(\"'\"&F7005&\"'!\"&G7005))","v":""},{"$f":"IF(ISBLANK(INDIRECT(\"'\"&F7005&\"'!\"&H7005)),\"\",IFERROR(VLOOKUP(TEXT(INDIRECT(\"'\"&F7005&\"'!\"&H7005),\"0\"),Notes!$B$5:$C$100,2,FALSE),\"\"))","v":""},"2d","$Y$133","$Z$133"]
[26301,{"$f":"Menu!$F$29","v":"X"},{"$f":"Menu!$J$29","v":2020},{"$f":"IF(ISBLANK(INDIRECT(\"'\"&F7006&\"'!\"&G7006)),\"\",INDIRECT(\"'\"&F7006&\"'!\"&G7006))","v":""},{"$f":"IF(ISBLANK(INDIRECT(\"'\"&F7006&\"'!\"&H7006)),\"\",IFERROR(VLOOKUP(TEXT(INDIRECT(\"'\"&F7006&\"'!\"&H7006),\"0\"),Notes!$B$5:$C$100,2,FALSE),\"\"))","v":""},"2d","$E$133","$F$133"]
[26302,{"$f":"Menu!$F$29","v":"X"},{"$f":"Menu!$J$29","v":2020},{"$f":"IF(ISBLANK(INDIRECT(\"'\"&F7007&\"'!\"&G7007)),\"\",INDIRECT(\"'\"&F7007&\"'!\"&G7007))","v":""},{"$f":"IF(ISBLANK(INDIRECT(\"'\"&F7007&\"'!\"&H7007)),\"\",IFERROR(VLOOKUP(TEXT(INDIRECT(\"'\"&F7007&\"'!\"&H7007),\"0\"),Notes!$B$5:$C$100,2,FALSE),\"\"))","v":""},"2d","$I$133","$J$133"]
[26303,{"$f":"Menu!$F$29","v":"X"},{"$f":"Menu!$J$29","v":2020},{"$f":"IF(ISBLANK(INDIRECT(\"'\"&F7008&\"'!\"&G7008)),\"\",INDIRECT(\"'\"&F7008&\"'!\"&G7008))","v":""},{"$f":"IF(ISBLANK(INDIRECT(\"'\"&F7008&\"'!\"&H7008)),\"\",IFERROR(VLOOKUP(TEXT(INDIRECT(\"'\"&F7008&\"'!\"&H7008),\"0\"),Notes!$B$5:$C$100,2,FALSE),\"\"))","v":""},"2d","$G$133","$H$133"]
[26304,{"$f":"Menu!$F$29","v":"X"},{"$f":"Menu!$J$29","v":2020},{"$f":"IF(ISBLANK(INDIRECT(\"'\"&F7009&\"'!\"&G7009)),\"\",INDIRECT(\"'\"&F7009&\"'!\"&G7009))","v":""},{"$f":"IF(ISBLANK(INDIRECT(\"'\"&F7009&\"'!\"&H7009)),\"\",IFERROR(VLOOKUP(TEXT(INDIRECT(\"'\"&F7009&\"'!\"&H7009),\"0\"),Notes!$B$5:$C$100,2,FALSE),\"\"))","v":""},"2a","$Q$133","$R$133"]
[26305,{"$f":"Menu!$F$29","v":"X"},{"$f":"Menu!$J$29","v":2020},{"$f":"IF(ISBLANK(INDIRECT(\"'\"&F7010&\"'!\"&G7010)),\"\",INDIRECT(\"'\"&F7010&\"'!\"&G7010))","v":""},{"$f":"IF(ISBLANK(INDIRECT(\"'\"&F7010&\"'!\"&H7010)),\"\",IFERROR(VLOOKUP(TEXT(INDIRECT(\"'\"&F7010&\"'!\"&H7010),\"0\"),Notes!$B$5:$C$100,2,FALSE),\"\"))","v":""},"2a","$U$133","$V$133"]
[26306,{"$f":"Menu!$F$29","v":"X"},{"$f":"Menu!$J$29","v":2020},{"$f":"IF(ISBLANK(INDIRECT(\"'\"&F7011&\"'!\"&G7011)),\"\",INDIRECT(\"'\"&F7011&\"'!\"&G7011))","v":""},{"$f":"IF(ISBLANK(INDIRECT(\"'\"&F7011&\"'!\"&H7011)),\"\",IFERROR(VLOOKUP(TEXT(INDIRECT(\"'\"&F7011&\"'!\"&H7011),\"0\"),Notes!$B$5:$C$100,2,FALSE),\"\"))","v":""},"2a","$S$133","$T$133"]
[26307,{"$f":"Menu!$F$29","v":"X"},{"$f":"Menu!$J$29","v":2020},{"$f":"IF(ISBLANK(INDIRECT(\"'\"&F7012&\"'!\"&G7012)),\"\",INDIRECT(\"'\"&F7012&\"'!\"&G7012))","v":""},{"$f":"IF(ISBLANK(INDIRECT(\"'\"&F7012&\"'!\"&H7012)),\"\",IFERROR(VLOOKUP(TEXT(INDIRECT(\"'\"&F7012&\"'!\"&H7012),\"0\"),Notes!$B$5:$C$100,2,FALSE),\"\"))","v":""},"2d","$K$133","$L$133"]
[26308,{"$f":"Menu!$F$29","v":"X"},{"$f":"Menu!$J$29","v":2020},{"$f":"IF(ISBLANK(INDIRECT(\"'\"&F7013&\"'!\"&G7013)),\"\",INDIRECT(\"'\"&F7013&\"'!\"&G7013))","v":""},{"$f":"IF(ISBLANK(INDIRECT(\"'\"&F7013&\"'!\"&H7013)),\"\",IFERROR(VLOOKUP(TEXT(INDIRECT(\"'\"&F7013&\"'!\"&H7013),\"0\"),Notes!$B$5:$C$100,2,FALSE),\"\"))","v":""},"2d","$O$133","$P$133"]
[26309,{"$f":"Menu!$F$29","v":"X"},{"$f":"Menu!$J$29","v":2020},{"$f":"IF(ISBLANK(INDIRECT(\"'\"&F7014&\"'!\"&G7014)),\"\",INDIRECT(\"'\"&F7014&\"'!\"&G7014))","v":""},{"$f":"IF(ISBLANK(INDIRECT(\"'\"&F7014&\"'!\"&H7014)),\"\",IFERROR(VLOOKUP(TEXT(INDIRECT(\"'\"&F7014&\"'!\"&H7014),\"0\"),Notes!$B$5:$C$100,2,FALSE),\"\"))","v":""},"2d","$M$133","$N$133"]
[26310,{"$f":"Menu!$F$29","v":"X"},{"$f":"Menu!$J$29","v":2020},{"$f":"IF(ISBLANK(INDIRECT(\"'\"&F7015&\"'!\"&G7015)),\"\",INDIRECT(\"'\"&F7015&\"'!\"&G7015))","v":""},{"$f":"IF(ISBLANK(INDIRECT(\"'\"&F7015&\"'!\"&H7015)),\"\",IFERROR(VLOOKUP(TEXT(INDIRECT(\"'\"&F7015&\"'!\"&H7015),\"0\"),Notes!$B$5:$C$100,2,FALSE),\"\"))","v":""},"2d","$Q$133","$R$133"]
[26311,{"$f":"Menu!$F$29","v":"X"},{"$f":"Menu!$J$29","v":2020},{"$f":"IF(ISBLANK(INDIRECT(\"'\"&F7016&\"'!\"&G7016)),\"\",INDIRECT(\"'\"&F7016&\"'!\"&G7016))","v":""},{"$f":"IF(ISBLANK(INDIRECT(\"'\"&F7016&\"'!\"&H7016)),\"\",IFERROR(VLOOKUP(TEXT(INDIRECT(\"'\"&F7016&\"'!\"&H7016),\"0\"),Notes!$B$5:$C$100,2,FALSE),\"\"))","v":""},"2d","$U$133","$V$133"]
[26312,{"$f":"Menu!$F$29","v":"X"},{"$f":"Menu!$J$29","v":2020},{"$f":"IF(ISBLANK(INDIRECT(\"'\"&F7017&\"'!\"&G7017)),\"\",INDIRECT(\"'\"&F7017&\"'!\"&G7017))","v":""},{"$f":"IF(ISBLANK(INDIRECT(\"'\"&F7017&\"'!\"&H7017)),\"\",IFERROR(VLOOKUP(TEXT(INDIRECT(\"'\"&F7017&\"'!\"&H7017),\"0\"),Notes!$B$5:$C$100,2,FALSE),\"\"))","v":""},"2d","$S$133","$T$133"]
[26313,{"$f":"Menu!$F$29","v":"X"},{"$f":"Menu!$J$29","v":2020},{"$f":"IF(ISBLANK(INDIRECT(\"'\"&F7018&\"'!\"&G7018)),\"\",INDIRECT(\"'\"&F7018&\"'!\"&G7018))","v":""},null,"2a","$K$133","$L$133"]
[26314,{"$f":"Menu!$F$29","v":"X"},{"$f":"Menu!$J$29","v":2020},{"$f":"IF(ISBLANK(INDIRECT(\"'\"&F7019&\"'!\"&G7019)),\"\",INDIRECT(\"'\"&F7019&\"'!\"&G7019))","v":""},{"$f":"IF(ISBLANK(INDIRECT(\"'\"&F7019&\"'!\"&H7019)),\"\",IFERROR(VLOOKUP(TEXT(INDIRECT(\"'\"&F7019&\"'!\"&H7019),\"0\"),Notes!$B$5:$C$100,2,FALSE),\"\"))","v":""},"2a","$O$133","$P$133"]
[26315,{"$f":"Menu!$F$29","v":"X"},{"$f":"Menu!$J$29","v":2020},{"$f":"IF(ISBLANK(INDIRECT(\"'\"&F7020&\"'!\"&G7020)),\"\",INDIRECT(\"'\"&F7020&\"'!\"&G7020))","v":""},{"$f":"IF(ISBLANK(INDIRECT(\"'\"&F7020&\"'!\"&H7020)),\"\",IFERROR(VLOOKUP(TEXT(INDIRECT(\"'\"&F7020&\"'!\"&H7020),\"0\"),Notes!$B$5:$C$100,2,FALSE),\"\"))","v":""},"2a","$M$133","$N$133"]
[26316,{"$f":"Menu!$F$29","v":"X"},{"$f":"Menu!$J$29","v":2020},{"$f":"IF(ISBLANK(INDIRECT(\"'\"&F7021&\"'!\"&G7021)),\"\",INDIRECT(\"'\"&F7021&\"'!\"&G7021))","v":""},{"$f":"IF(ISBLANK(INDIRECT(\"'\"&F7021&\"'!\"&H7021)),\"\",IFERROR(VLOOKUP(TEXT(INDIRECT(\"'\"&F7021&\"'!\"&H7021),\"0\"),Notes!$B$5:$C$100,2,FALSE),\"\"))","v":""},"2a","$E$133","$F$133"]
[26317,{"$f":"Menu!$F$29","v":"X"},{"$f":"Menu!$J$29","v":2020},{"$f":"IF(ISBLANK(INDIRECT(\"'\"&F7022&\"'!\"&G7022)),\"\",INDIRECT(\"'\"&F7022&\"'!\"&G7022))","v":""},{"$f":"IF(ISBLANK(INDIRECT(\"'\"&F7022&\"'!\"&H7022)),\"\",IFERROR(VLOOKUP(TEXT(INDIRECT(\"'\"&F7022&\"'!\"&H7022),\"0\"),Notes!$B$5:$C$100,2,FALSE),\"\"))","v":""},"2b","$K$134","$L$134"]
[26318,{"$f":"Menu!$F$29","v":"X"},{"$f":"Menu!$J$29","v":2020},{"$f":"IF(ISBLANK(INDIRECT(\"'\"&F7023&\"'!\"&G7023)),\"\",INDIRECT(\"'\"&F7023&\"'!\"&G7023))","v":""},{"$f":"IF(ISBLANK(INDIRECT(\"'\"&F7023&\"'!\"&H7023)),\"\",IFERROR(VLOOKUP(TEXT(INDIRECT(\"'\"&F7023&\"'!\"&H7023),\"0\"),Notes!$B$5:$C$100,2,FALSE),\"\"))","v":""},"2b","$O$134","$P$134"]
[26319,{"$f":"Menu!$F$29","v":"X"},{"$f":"Menu!$J$29","v":2020},{"$f":"IF(ISBLANK(INDIRECT(\"'\"&F7024&\"'!\"&G7024)),\"\",INDIRECT(\"'\"&F7024&\"'!\"&G7024))","v":""},{"$f":"IF(ISBLANK(INDIRECT(\"'\"&F7024&\"'!\"&H7024)),\"\",IFERROR(VLOOKUP(TEXT(INDIRECT(\"'\"&F7024&\"'!\"&H7024),\"0\"),Notes!$B$5:$C$100,2,FALSE),\"\"))","v":""},"2b","$M$134","$N$134"]
[26320,{"$f":"Menu!$F$29","v":"X"},{"$f":"Menu!$J$29","v":2020},{"$f":"IF(ISBLANK(INDIRECT(\"'\"&F7025&\"'!\"&G7025)),\"\",INDIRECT(\"'\"&F7025&\"'!\"&G7025))","v":""},{"$f":"IF(ISBLANK(INDIRECT(\"'\"&F7025&\"'!\"&H7025)),\"\",IFERROR(VLOOKUP(TEXT(INDIRECT(\"'\"&F7025&\"'!\"&H7025),\"0\"),Notes!$B$5:$C$100,2,FALSE),\"\"))","v":""},"2b","$Q$134","$R$134"]
[26321,{"$f":"Menu!$F$29","v":"X"},{"$f":"Menu!$J$29","v":2020},{"$f":"IF(ISBLANK(INDIRECT(\"'\"&F7026&\"'!\"&G7026)),\"\",INDIRECT(\"'\"&F7026&\"'!\"&G7026))","v":""},{"$f":"IF(ISBLANK(INDIRECT(\"'\"&F7026&\"'!\"&H7026)),\"\",IFERROR(VLOOKUP(TEXT(INDIRECT(\"'\"&F7026&\"'!\"&H7026),\"0\"),Notes!$B$5:$C$100,2,FALSE),\"\"))","v":""},"2b","$U$134","$V$134"]
[26322,{"$f":"Menu!$F$29","v":"X"},{"$f":"Menu!$J$29","v":2020},{"$f":"IF(ISBLANK(INDIRECT(\"'\"&F7027&\"'!\"&G7027)),\"\",INDIRECT(\"'\"&F7027&\"'!\"&G7027))","v":""},{"$f":"IF(ISBLANK(INDIRECT(\"'\"&F7027&\"'!\"&H7027)),\"\",IFERROR(VLOOKUP(TEXT(INDIRECT(\"'\"&F7027&\"'!\"&H7027),\"0\"),Notes!$B$5:$C$100,2,FALSE),\"\"))","v":""},"2b","$S$134","$T$134"]
[26326,{"$f":"Menu!$F$29","v":"X"},{"$f":"Menu!$J$29","v":2020},{"$f":"IF(ISBLANK(INDIRECT(\"'\"&F7028&\"'!\"&G7028)),\"\",INDIRECT(\"'\"&F7028&\"'!\"&G7028))","v":""},{"$f":"IF(ISBLANK(INDIRECT(\"'\"&F7028&\"'!\"&H7028)),\"\",IFERROR(VLOOKUP(TEXT(INDIRECT(\"'\"&F7028&\"'!\"&H7028),\"0\"),Notes!$B$5:$C$100,2,FALSE),\"\"))","v":""},"2a","$I$134","$J$134"]
[26327,{"$f":"Menu!$F$29","v":"X"},{"$f":"Menu!$J$29","v":2020},{"$f":"IF(ISBLANK(INDIRECT(\"'\"&F7029&\"'!\"&G7029)),\"\",INDIRECT(\"'\"&F7029&\"'!\"&G7029))","v":""},{"$f":"IF(ISBLANK(INDIRECT(\"'\"&F7029&\"'!\"&H7029)),\"\",IFERROR(VLOOKUP(TEXT(INDIRECT(\"'\"&F7029&\"'!\"&H7029),\"0\"),Notes!$B$5:$C$100,2,FALSE),\"\"))","v":""},"2c","$E$134","$F$134"]
[26328,{"$f":"Menu!$F$29","v":"X"},{"$f":"Menu!$J$29","v":2020},{"$f":"IF(ISBLANK(INDIRECT(\"'\"&F7030&\"'!\"&G7030)),\"\",INDIRECT(\"'\"&F7030&\"'!\"&G7030))","v":""},{"$f":"IF(ISBLANK(INDIRECT(\"'\"&F7030&\"'!\"&H7030)),\"\",IFERROR(VLOOKUP(TEXT(INDIRECT(\"'\"&F7030&\"'!\"&H7030),\"0\"),Notes!$B$5:$C$100,2,FALSE),\"\"))","v":""},"2c","$I$134","$J$134"]
[26329,{"$f":"Menu!$F$29","v":"X"},{"$f":"Menu!$J$29","v":2020},{"$f":"IF(ISBLANK(INDIRECT(\"'\"&F7031&\"'!\"&G7031)),\"\",INDIRECT(\"'\"&F7031&\"'!\"&G7031))","v":""},{"$f":"IF(ISBLANK(INDIRECT(\"'\"&F7031&\"'!\"&H7031)),\"\",IFERROR(VLOOKUP(TEXT(INDIRECT(\"'\"&F7031&\"'!\"&H7031),\"0\"),Notes!$B$5:$C$100,2,FALSE),\"\"))","v":""},"2c","$G$134","$H$134"]
[26333,{"$f":"Menu!$F$29","v":"X"},{"$f":"Menu!$J$29","v":2020},{"$f":"IF(ISBLANK(INDIRECT(\"'\"&F7032&\"'!\"&G7032)),\"\",INDIRECT(\"'\"&F7032&\"'!\"&G7032))","v":""},{"$f":"IF(ISBLANK(INDIRECT(\"'\"&F7032&\"'!\"&H7032)),\"\",IFERROR(VLOOKUP(TEXT(INDIRECT(\"'\"&F7032&\"'!\"&H7032),\"0\"),Notes!$B$5:$C$100,2,FALSE),\"\"))","v":""},"2c","$K$134","$L$134"]
[26334,{"$f":"Menu!$F$29","v":"X"},{"$f":"Menu!$J$29","v":2020},{"$f":"IF(ISBLANK(INDIRECT(\"'\"&F7033&\"'!\"&G7033)),\"\",INDIRECT(\"'\"&F7033&\"'!\"&G7033))","v":""},{"$f":"IF(ISBLANK(INDIRECT(\"'\"&F7033&\"'!\"&H7033)),\"\",IFERROR(VLOOKUP(TEXT(INDIRECT(\"'\"&F7033&\"'!\"&H7033),\"0\"),Notes!$B$5:$C$100,2,FALSE),\"\"))","v":""},"2c","$O$134","$P$134"]
[26335,{"$f":"Menu!$F$29","v":"X"},{"$f":"Menu!$J$29","v":2020},{"$f":"IF(ISBLANK(INDIRECT(\"'\"&F7034&\"'!\"&G7034)),\"\",INDIRECT(\"'\"&F7034&\"'!\"&G7034))","v":""},{"$f":"IF(ISBLANK(INDIRECT(\"'\"&F7034&\"'!\"&H7034)),\"\",IFERROR(VLOOKUP(TEXT(INDIRECT(\"'\"&F7034&\"'!\"&H7034),\"0\"),Notes!$B$5:$C$100,2,FALSE),\"\"))","v":""},"2c","$M$134","$N$134"]
[26336,{"$f":"Menu!$F$29","v":"X"},{"$f":"Menu!$J$29","v":2020},{"$f":"IF(ISBLANK(INDIRECT(\"'\"&F7035&\"'!\"&G7035)),\"\",INDIRECT(\"'\"&F7035&\"'!\"&G7035))","v":""},{"$f":"IF(ISBLANK(INDIRECT(\"'\"&F7035&\"'!\"&H7035)),\"\",IFERROR(VLOOKUP(TEXT(INDIRECT(\"'\"&F7035&\"'!\"&H7035),\"0\"),Notes!$B$5:$C$100,2,FALSE),\"\"))","v":""},"2c","$Q$134","$R$134"]
[26337,{"$f":"Menu!$F$29","v":"X"},{"$f":"Menu!$J$29","v":2020},{"$f":"IF(ISBLANK(INDIRECT(\"'\"&F7036&\"'!\"&G7036)),\"\",INDIRECT(\"'\"&F7036&\"'!\"&G7036))","v":""},{"$f":"IF(ISBLANK(INDIRECT(\"'\"&F7036&\"'!\"&H7036)),\"\",IFERROR(VLOOKUP(TEXT(INDIRECT(\"'\"&F7036&\"'!\"&H7036),\"0\"),Notes!$B$5:$C$100,2,FALSE),\"\"))","v":""},"2c","$U$134","$V$134"]
[26338,{"$f":"Menu!$F$29","v":"X"},{"$f":"Menu!$J$29","v":2020},{"$f":"IF(ISBLANK(INDIRECT(\"'\"&F7037&\"'!\"&G7037)),\"\",INDIRECT(\"'\"&F7037&\"'!\"&G7037))","v":""},{"$f":"IF(ISBLANK(INDIRECT(\"'\"&F7037&\"'!\"&H7037)),\"\",IFERROR(VLOOKUP(TEXT(INDIRECT(\"'\"&F7037&\"'!\"&H7037),\"0\"),Notes!$B$5:$C$100,2,FALSE),\"\"))","v":""},"2c","$S$134","$T$134"]
[26339,{"$f":"Menu!$F$29","v":"X"},{"$f":"Menu!$J$29","v":2020},{"$f":"IF(ISBLANK(INDIRECT(\"'\"&F7038&\"'!\"&G7038)),\"\",INDIRECT(\"'\"&F7038&\"'!\"&G7038))","v":""},{"$f":"IF(ISBLANK(INDIRECT(\"'\"&F7038&\"'!\"&H7038)),\"\",IFERROR(VLOOKUP(TEXT(INDIRECT(\"'\"&F7038&\"'!\"&H7038),\"0\"),Notes!$B$5:$C$100,2,FALSE),\"\"))","v":""},"2c","$W$134","$X$134"]
[26340,{"$f":"Menu!$F$29","v":"X"},{"$f":"Menu!$J$29","v":2020},{"$f":"IF(ISBLANK(INDIRECT(\"'\"&F7039&\"'!\"&G7039)),\"\",INDIRECT(\"'\"&F7039&\"'!\"&G7039))","v":""},{"$f":"IF(ISBLANK(INDIRECT(\"'\"&F7039&\"'!\"&H7039)),\"\",IFERROR(VLOOKUP(TEXT(INDIRECT(\"'\"&F7039&\"'!\"&H7039),\"0\"),Notes!$B$5:$C$100,2,FALSE),\"\"))","v":""},"2c","$AA$134","$AB$134"]
[26341,{"$f":"Menu!$F$29","v":"X"},{"$f":"Menu!$J$29","v":2020},{"$f":"IF(ISBLANK(INDIRECT(\"'\"&F7040&\"'!\"&G7040)),\"\",INDIRECT(\"'\"&F7040&\"'!\"&G7040))","v":""},{"$f":"IF(ISBLANK(INDIRECT(\"'\"&F7040&\"'!\"&H7040)),\"\",IFERROR(VLOOKUP(TEXT(INDIRECT(\"'\"&F7040&\"'!\"&H7040),\"0\"),Notes!$B$5:$C$100,2,FALSE),\"\"))","v":""},"2c","$Y$134","$Z$134"]
[26348,{"$f":"Menu!$F$29","v":"X"},{"$f":"Menu!$J$29","v":2020},{"$f":"IF(ISBLANK(INDIRECT(\"'\"&F7041&\"'!\"&G7041)),\"\",INDIRECT(\"'\"&F7041&\"'!\"&G7041))","v":""},{"$f":"IF(ISBLANK(INDIRECT(\"'\"&F7041&\"'!\"&H7041)),\"\",IFERROR(VLOOKUP(TEXT(INDIRECT(\"'\"&F7041&\"'!\"&H7041),\"0\"),Notes!$B$5:$C$100,2,FALSE),\"\"))","v":""},"2e","$BG$135","$BH$135"]
[26349,{"$f":"Menu!$F$29","v":"X"},{"$f":"Menu!$J$29","v":2020},{"$f":"IF(ISBLANK(INDIRECT(\"'\"&F7042&\"'!\"&G7042)),\"\",INDIRECT(\"'\"&F7042&\"'!\"&G7042))","v":""},{"$f":"IF(ISBLANK(INDIRECT(\"'\"&F7042&\"'!\"&H7042)),\"\",IFERROR(VLOOKUP(TEXT(INDIRECT(\"'\"&F7042&\"'!\"&H7042),\"0\"),Notes!$B$5:$C$100,2,FALSE),\"\"))","v":""},"2e","$BK$135",{"$f":"IF(LEN(TRIM(MID(G7042,4,10)))-LEN(SUBSTITUTE(TRIM(MID(G7042,4,10)),\"$\",\"\"))=0,\"$\"&CHAR(CODE(MID(G7042,2,1))+1)&\"$\"&TRIM(MID(G7042,4,10)),\"$\"&MID(G7042,2,1)&CHAR(CODE(MID(G7042,3,1))+1)&\"$\"&TRIM(MID(G7042,5,11)))","v":"$BL$135"}]
[26350,{"$f":"Menu!$F$29","v":"X"},{"$f":"Menu!$J$29","v":2020},{"$f":"IF(ISBLANK(INDIRECT(\"'\"&F7043&\"'!\"&G7043)),\"\",INDIRECT(\"'\"&F7043&\"'!\"&G7043))","v":""},{"$f":"IF(ISBLANK(INDIRECT(\"'\"&F7043&\"'!\"&H7043)),\"\",IFERROR(VLOOKUP(TEXT(INDIRECT(\"'\"&F7043&\"'!\"&H7043),\"0\"),Notes!$B$5:$C$100,2,FALSE),\"\"))","v":""},"2e","$BI$135","$BJ$135"]
[26351,{"$f":"Menu!$F$29","v":"X"},{"$f":"Menu!$J$29","v":2020},{"$f":"IF(ISBLANK(INDIRECT(\"'\"&F7044&\"'!\"&G7044)),\"\",INDIRECT(\"'\"&F7044&\"'!\"&G7044))","v":""},{"$f":"IF(ISBLANK(INDIRECT(\"'\"&F7044&\"'!\"&H7044)),\"\",IFERROR(VLOOKUP(TEXT(INDIRECT(\"'\"&F7044&\"'!\"&H7044),\"0\"),Notes!$B$5:$C$100,2,FALSE),\"\"))","v":""},"2e","$E$135","$F$135"]
[26352,{"$f":"Menu!$F$29","v":"X"},{"$f":"Menu!$J$29","v":2020},{"$f":"IF(ISBLANK(INDIRECT(\"'\"&F7045&\"'!\"&G7045)),\"\",INDIRECT(\"'\"&F7045&\"'!\"&G7045))","v":""},{"$f":"IF(ISBLANK(INDIRECT(\"'\"&F7045&\"'!\"&H7045)),\"\",IFERROR(VLOOKUP(TEXT(INDIRECT(\"'\"&F7045&\"'!\"&H7045),\"0\"),Notes!$B$5:$C$100,2,FALSE),\"\"))","v":""},"2e","$I$135","$J$135"]
[26353,{"$f":"Menu!$F$29","v":"X"},{"$f":"Menu!$J$29","v":2020},{"$f":"IF(ISBLANK(INDIRECT(\"'\"&F7046&\"'!\"&G7046)),\"\",INDIRECT(\"'\"&F7046&\"'!\"&G7046))","v":""},{"$f":"IF(ISBLANK(INDIRECT(\"'\"&F7046&\"'!\"&H7046)),\"\",IFERROR(VLOOKUP(TEXT(INDIRECT(\"'\"&F7046&\"'!\"&H7046),\"0\"),Notes!$B$5:$C$100,2,FALSE),\"\"))","v":""},"2e","$G$135","$H$135"]
[26354,{"$f":"Menu!$F$29","v":"X"},{"$f":"Menu!$J$29","v":2020},{"$f":"IF(ISBLANK(INDIRECT(\"'\"&F7047&\"'!\"&G7047)),\"\",INDIRECT(\"'\"&F7047&\"'!\"&G7047))","v":""},{"$f":"IF(ISBLANK(INDIRECT(\"'\"&F7047&\"'!\"&H7047)),\"\",IFERROR(VLOOKUP(TEXT(INDIRECT(\"'\"&F7047&\"'!\"&H7047),\"0\"),Notes!$B$5:$C$100,2,FALSE),\"\"))","v":""},"2e","$K$135","$L$135"]
[26355,{"$f":"Menu!$F$29","v":"X"},{"$f":"Menu!$J$29","v":2020},{"$f":"IF(ISBLANK(INDIRECT(\"'\"&F7048&\"'!\"&G7048)),\"\",INDIRECT(\"'\"&F7048&\"'!\"&G7048))","v":""},{"$f":"IF(ISBLANK(INDIRECT(\"'\"&F7048&\"'!\"&H7048)),\"\",IFERROR(VLOOKUP(TEXT(INDIRECT(\"'\"&F7048&\"'!\"&H7048),\"0\"),Notes!$B$5:$C$100,2,FALSE),\"\"))","v":""},"2e","$O$135","$P$135"]
[26356,{"$f":"Menu!$F$29","v":"X"},{"$f":"Menu!$J$29","v":2020},{"$f":"IF(ISBLANK(INDIRECT(\"'\"&F7049&\"'!\"&G7049)),\"\",INDIRECT(\"'\"&F7049&\"'!\"&G7049))","v":""},{"$f":"IF(ISBLANK(INDIRECT(\"'\"&F7049&\"'!\"&H7049)),\"\",IFERROR(VLOOKUP(TEXT(INDIRECT(\"'\"&F7049&\"'!\"&H7049),\"0\"),Notes!$B$5:$C$100,2,FALSE),\"\"))","v":""},"2e","$M$135","$N$135"]
[26357,{"$f":"Menu!$F$29","v":"X"},{"$f":"Menu!$J$29","v":2020},{"$f":"IF(ISBLANK(INDIRECT(\"'\"&F7050&\"'!\"&G7050)),\"\",INDIRECT(\"'\"&F7050&\"'!\"&G7050))","v":""},{"$f":"IF(ISBLANK(INDIRECT(\"'\"&F7050&\"'!\"&H7050)),\"\",IFERROR(VLOOKUP(TEXT(INDIRECT(\"'\"&F7050&\"'!\"&H7050),\"0\"),Notes!$B$5:$C$100,2,FALSE),\"\"))","v":""},"2e","$Q$135","$R$135"]
[26358,{"$f":"Menu!$F$29","v":"X"},{"$f":"Menu!$J$29","v":2020},{"$f":"IF(ISBLANK(INDIRECT(\"'\"&F7051&\"'!\"&G7051)),\"\",INDIRECT(\"'\"&F7051&\"'!\"&G7051))","v":""},{"$f":"IF(ISBLANK(INDIRECT(\"'\"&F7051&\"'!\"&H7051)),\"\",IFERROR(VLOOKUP(TEXT(INDIRECT(\"'\"&F7051&\"'!\"&H7051),\"0\"),Notes!$B$5:$C$100,2,FALSE),\"\"))","v":""},"2e","$U$135","$V$135"]
[26359,{"$f":"Menu!$F$29","v":"X"},{"$f":"Menu!$J$29","v":2020},{"$f":"IF(ISBLANK(INDIRECT(\"'\"&F7052&\"'!\"&G7052)),\"\",INDIRECT(\"'\"&F7052&\"'!\"&G7052))","v":""},{"$f":"IF(ISBLANK(INDIRECT(\"'\"&F7052&\"'!\"&H7052)),\"\",IFERROR(VLOOKUP(TEXT(INDIRECT(\"'\"&F7052&\"'!\"&H7052),\"0\"),Notes!$B$5:$C$100,2,FALSE),\"\"))","v":""},"2e","$S$135","$T$135"]
[26360,{"$f":"Menu!$F$29","v":"X"},{"$f":"Menu!$J$29","v":2020},{"$f":"IF(ISBLANK(INDIRECT(\"'\"&F7053&\"'!\"&G7053)),\"\",INDIRECT(\"'\"&F7053&\"'!\"&G7053))","v":""},{"$f":"IF(ISBLANK(INDIRECT(\"'\"&F7053&\"'!\"&H7053)),\"\",IFERROR(VLOOKUP(TEXT(INDIRECT(\"'\"&F7053&\"'!\"&H7053),\"0\"),Notes!$B$5:$C$100,2,FALSE),\"\"))","v":""},"2e","$W$135","$X$135"]
[26361,{"$f":"Menu!$F$29","v":"X"},{"$f":"Menu!$J$29","v":2020},{"$f":"IF(ISBLANK(INDIRECT(\"'\"&F7054&\"'!\"&G7054)),\"\",INDIRECT(\"'\"&F7054&\"'!\"&G7054))","v":""},{"$f":"IF(ISBLANK(INDIRECT(\"'\"&F7054&\"'!\"&H7054)),\"\",IFERROR(VLOOKUP(TEXT(INDIRECT(\"'\"&F7054&\"'!\"&H7054),\"0\"),Notes!$B$5:$C$100,2,FALSE),\"\"))","v":""},"2e","$AA$135","$AB$135"]
[26362,{"$f":"Menu!$F$29","v":"X"},{"$f":"Menu!$J$29","v":2020},{"$f":"IF(ISBLANK(INDIRECT(\"'\"&F7055&\"'!\"&G7055)),\"\",INDIRECT(\"'\"&F7055&\"'!\"&G7055))","v":""},{"$f":"IF(ISBLANK(INDIRECT(\"'\"&F7055&\"'!\"&H7055)),\"\",IFERROR(VLOOKUP(TEXT(INDIRECT(\"'\"&F7055&\"'!\"&H7055),\"0\"),Notes!$B$5:$C$100,2,FALSE),\"\"))","v":""},"2e","$Y$135","$Z$135"]
[26363,{"$f":"Menu!$F$29","v":"X"},{"$f":"Menu!$J$29","v":2020},{"$f":"IF(ISBLANK(INDIRECT(\"'\"&F7056&\"'!\"&G7056)),\"\",INDIRECT(\"'\"&F7056&\"'!\"&G7056))","v":""},{"$f":"IF(ISBLANK(INDIRECT(\"'\"&F7056&\"'!\"&H7056)),\"\",IFERROR(VLOOKUP(TEXT(INDIRECT(\"'\"&F7056&\"'!\"&H7056),\"0\"),Notes!$B$5:$C$100,2,FALSE),\"\"))","v":""},"2e","$AC$135","$AD$135"]
[26364,{"$f":"Menu!$F$29","v":"X"},{"$f":"Menu!$J$29","v":2020},{"$f":"IF(ISBLANK(INDIRECT(\"'\"&F7057&\"'!\"&G7057)),\"\",INDIRECT(\"'\"&F7057&\"'!\"&G7057))","v":""},{"$f":"IF(ISBLANK(INDIRECT(\"'\"&F7057&\"'!\"&H7057)),\"\",IFERROR(VLOOKUP(TEXT(INDIRECT(\"'\"&F7057&\"'!\"&H7057),\"0\"),Notes!$B$5:$C$100,2,FALSE),\"\"))","v":""},"2e","$AG$135","$AH$135"]
[26365,{"$f":"Menu!$F$29","v":"X"},{"$f":"Menu!$J$29","v":2020},{"$f":"IF(ISBLANK(INDIRECT(\"'\"&F7058&\"'!\"&G7058)),\"\",INDIRECT(\"'\"&F7058&\"'!\"&G7058))","v":""},{"$f":"IF(ISBLANK(INDIRECT(\"'\"&F7058&\"'!\"&H7058)),\"\",IFERROR(VLOOKUP(TEXT(INDIRECT(\"'\"&F7058&\"'!\"&H7058),\"0\"),Notes!$B$5:$C$100,2,FALSE),\"\"))","v":""},"2e","$AE$135","$AF$135"]
[26366,{"$f":"Menu!$F$29","v":"X"},{"$f":"Menu!$J$29","v":2020},{"$f":"IF(ISBLANK(INDIRECT(\"'\"&F7059&\"'!\"&G7059)),\"\",INDIRECT(\"'\"&F7059&\"'!\"&G7059))","v":""},{"$f":"IF(ISBLANK(INDIRECT(\"'\"&F7059&\"'!\"&H7059)),\"\",IFERROR(VLOOKUP(TEXT(INDIRECT(\"'\"&F7059&\"'!\"&H7059),\"0\"),Notes!$B$5:$C$100,2,FALSE),\"\"))","v":""},"2e","$AI$135","$AJ$135"]
[26367,{"$f":"Menu!$F$29","v":"X"},{"$f":"Menu!$J$29","v":2020},{"$f":"IF(ISBLANK(INDIRECT(\"'\"&F7060&\"'!\"&G7060)),\"\",INDIRECT(\"'\"&F7060&\"'!\"&G7060))","v":""},{"$f":"IF(ISBLANK(INDIRECT(\"'\"&F7060&\"'!\"&H7060)),\"\",IFERROR(VLOOKUP(TEXT(INDIRECT(\"'\"&F7060&\"'!\"&H7060),\"0\"),Notes!$B$5:$C$100,2,FALSE),\"\"))","v":""},"2e","$AM$135","$AN$135"]
[26368,{"$f":"Menu!$F$29","v":"X"},{"$f":"Menu!$J$29","v":2020},{"$f":"IF(ISBLANK(INDIRECT(\"'\"&F7061&\"'!\"&G7061)),\"\",INDIRECT(\"'\"&F7061&\"'!\"&G7061))","v":""},{"$f":"IF(ISBLANK(INDIRECT(\"'\"&F7061&\"'!\"&H7061)),\"\",IFERROR(VLOOKUP(TEXT(INDIRECT(\"'\"&F7061&\"'!\"&H7061),\"0\"),Notes!$B$5:$C$100,2,FALSE),\"\"))","v":""},"2e","$AK$135","$AL$135"]
[26369,{"$f":"Menu!$F$29","v":"X"},{"$f":"Menu!$J$29","v":2020},{"$f":"IF(ISBLANK(INDIRECT(\"'\"&F7062&\"'!\"&G7062)),\"\",INDIRECT(\"'\"&F7062&\"'!\"&G7062))","v":""},{"$f":"IF(ISBLANK(INDIRECT(\"'\"&F7062&\"'!\"&H7062)),\"\",IFERROR(VLOOKUP(TEXT(INDIRECT(\"'\"&F7062&\"'!\"&H7062),\"0\"),Notes!$B$5:$C$100,2,FALSE),\"\"))","v":""},"2e","$AO$135","$AP$135"]
[26370,{"$f":"Menu!$F$29","v":"X"},{"$f":"Menu!$J$29","v":2020},{"$f":"IF(ISBLANK(INDIRECT(\"'\"&F7063&\"'!\"&G7063)),\"\",INDIRECT(\"'\"&F7063&\"'!\"&G7063))","v":""},{"$f":"IF(ISBLANK(INDIRECT(\"'\"&F7063&\"'!\"&H7063)),\"\",IFERROR(VLOOKUP(TEXT(INDIRECT(\"'\"&F7063&\"'!\"&H7063),\"0\"),Notes!$B$5:$C$100,2,FALSE),\"\"))","v":""},"2e","$AS$135","$AT$135"]
[26371,{"$f":"Menu!$F$29","v":"X"},{"$f":"Menu!$J$29","v":2020},{"$f":"IF(ISBLANK(INDIRECT(\"'\"&F7064&\"'!\"&G7064)),\"\",INDIRECT(\"'\"&F7064&\"'!\"&G7064))","v":""},{"$f":"IF(ISBLANK(INDIRECT(\"'\"&F7064&\"'!\"&H7064)),\"\",IFERROR(VLOOKUP(TEXT(INDIRECT(\"'\"&F7064&\"'!\"&H7064),\"0\"),Notes!$B$5:$C$100,2,FALSE),\"\"))","v":""},"2e","$AQ$135","$AR$135"]
[26372,{"$f":"Menu!$F$29","v":"X"},{"$f":"Menu!$J$29","v":2020},{"$f":"IF(ISBLANK(INDIRECT(\"'\"&F7065&\"'!\"&G7065)),\"\",INDIRECT(\"'\"&F7065&\"'!\"&G7065))","v":""},{"$f":"IF(ISBLANK(INDIRECT(\"'\"&F7065&\"'!\"&H7065)),\"\",IFERROR(VLOOKUP(TEXT(INDIRECT(\"'\"&F7065&\"'!\"&H7065),\"0\"),Notes!$B$5:$C$100,2,FALSE),\"\"))","v":""},"2e","$AU$135","$AV$135"]
[26373,{"$f":"Menu!$F$29","v":"X"},{"$f":"Menu!$J$29","v":2020},{"$f":"IF(ISBLANK(INDIRECT(\"'\"&F7066&\"'!\"&G7066)),\"\",INDIRECT(\"'\"&F7066&\"'!\"&G7066))","v":""},{"$f":"IF(ISBLANK(INDIRECT(\"'\"&F7066&\"'!\"&H7066)),\"\",IFERROR(VLOOKUP(TEXT(INDIRECT(\"'\"&F7066&\"'!\"&H7066),\"0\"),Notes!$B$5:$C$100,2,FALSE),\"\"))","v":""},"2e","$AY$135","$AZ$135"]
[26374,{"$f":"Menu!$F$29","v":"X"},{"$f":"Menu!$J$29","v":2020},{"$f":"IF(ISBLANK(INDIRECT(\"'\"&F7067&\"'!\"&G7067)),\"\",INDIRECT(\"'\"&F7067&\"'!\"&G7067))","v":""},{"$f":"IF(ISBLANK(INDIRECT(\"'\"&F7067&\"'!\"&H7067)),\"\",IFERROR(VLOOKUP(TEXT(INDIRECT(\"'\"&F7067&\"'!\"&H7067),\"0\"),Notes!$B$5:$C$100,2,FALSE),\"\"))","v":""},"2e","$AW$135","$AX$135"]
[26375,{"$f":"Menu!$F$29","v":"X"},{"$f":"Menu!$J$29","v":2020},{"$f":"IF(ISBLANK(INDIRECT(\"'\"&F7068&\"'!\"&G7068)),\"\",INDIRECT(\"'\"&F7068&\"'!\"&G7068))","v":""},{"$f":"IF(ISBLANK(INDIRECT(\"'\"&F7068&\"'!\"&H7068)),\"\",IFERROR(VLOOKUP(TEXT(INDIRECT(\"'\"&F7068&\"'!\"&H7068),\"0\"),Notes!$B$5:$C$100,2,FALSE),\"\"))","v":""},"2e","$BA$135","$BB$135"]
[26376,{"$f":"Menu!$F$29","v":"X"},{"$f":"Menu!$J$29","v":2020},{"$f":"IF(ISBLANK(INDIRECT(\"'\"&F7069&\"'!\"&G7069)),\"\",INDIRECT(\"'\"&F7069&\"'!\"&G7069))","v":""},{"$f":"IF(ISBLANK(INDIRECT(\"'\"&F7069&\"'!\"&H7069)),\"\",IFERROR(VLOOKUP(TEXT(INDIRECT(\"'\"&F7069&\"'!\"&H7069),\"0\"),Notes!$B$5:$C$100,2,FALSE),\"\"))","v":""},"2e","$BE$135","$BF$135"]
[26377,{"$f":"Menu!$F$29","v":"X"},{"$f":"Menu!$J$29","v":2020},{"$f":"IF(ISBLANK(INDIRECT(\"'\"&F7070&\"'!\"&G7070)),\"\",INDIRECT(\"'\"&F7070&\"'!\"&G7070))","v":""},{"$f":"IF(ISBLANK(INDIRECT(\"'\"&F7070&\"'!\"&H7070)),\"\",IFERROR(VLOOKUP(TEXT(INDIRECT(\"'\"&F7070&\"'!\"&H7070),\"0\"),Notes!$B$5:$C$100,2,FALSE),\"\"))","v":""},"2e","$BC$135","$BD$135"]
[26378,{"$f":"Menu!$F$29","v":"X"},{"$f":"Menu!$J$29","v":2020},{"$f":"IF(ISBLANK(INDIRECT(\"'\"&F7071&\"'!\"&G7071)),\"\",INDIRECT(\"'\"&F7071&\"'!\"&G7071))","v":""},{"$f":"IF(ISBLANK(INDIRECT(\"'\"&F7071&\"'!\"&H7071)),\"\",IFERROR(VLOOKUP(TEXT(INDIRECT(\"'\"&F7071&\"'!\"&H7071),\"0\"),Notes!$B$5:$C$100,2,FALSE),\"\"))","v":""},"2b","$E$134","$F$134"]
[26379,{"$f":"Menu!$F$29","v":"X"},{"$f":"Menu!$J$29","v":2020},{"$f":"IF(ISBLANK(INDIRECT(\"'\"&F7072&\"'!\"&G7072)),\"\",INDIRECT(\"'\"&F7072&\"'!\"&G7072))","v":""},{"$f":"IF(ISBLANK(INDIRECT(\"'\"&F7072&\"'!\"&H7072)),\"\",IFERROR(VLOOKUP(TEXT(INDIRECT(\"'\"&F7072&\"'!\"&H7072),\"0\"),Notes!$B$5:$C$100,2,FALSE),\"\"))","v":""},"2b","$I$134","$J$134"]
[26380,{"$f":"Menu!$F$29","v":"X"},{"$f":"Menu!$J$29","v":2020},{"$f":"IF(ISBLANK(INDIRECT(\"'\"&F7073&\"'!\"&G7073)),\"\",INDIRECT(\"'\"&F7073&\"'!\"&G7073))","v":""},{"$f":"IF(ISBLANK(INDIRECT(\"'\"&F7073&\"'!\"&H7073)),\"\",IFERROR(VLOOKUP(TEXT(INDIRECT(\"'\"&F7073&\"'!\"&H7073),\"0\"),Notes!$B$5:$C$100,2,FALSE),\"\"))","v":""},"2b","$G$134","$H$134"]
[26381,{"$f":"Menu!$F$29","v":"X"},{"$f":"Menu!$J$29","v":2020},{"$f":"IF(ISBLANK(INDIRECT(\"'\"&F7074&\"'!\"&G7074)),\"\",INDIRECT(\"'\"&F7074&\"'!\"&G7074))","v":""},null,"2a","$G$134","$H$134"]
[26382,{"$f":"Menu!$F$29","v":"X"},{"$f":"Menu!$J$29","v":2020},{"$f":"IF(ISBLANK(INDIRECT(\"'\"&F7075&\"'!\"&G7075)),\"\",INDIRECT(\"'\"&F7075&\"'!\"&G7075))","v":""},{"$f":"IF(ISBLANK(INDIRECT(\"'\"&F7075&\"'!\"&H7075)),\"\",IFERROR(VLOOKUP(TEXT(INDIRECT(\"'\"&F7075&\"'!\"&H7075),\"0\"),Notes!$B$5:$C$100,2,FALSE),\"\"))","v":""},"2b","$W$134","$X$134"]
[26383,{"$f":"Menu!$F$29","v":"X"},{"$f":"Menu!$J$29","v":2020},{"$f":"IF(ISBLANK(INDIRECT(\"'\"&F7076&\"'!\"&G7076)),\"\",INDIRECT(\"'\"&F7076&\"'!\"&G7076))","v":""},{"$f":"IF(ISBLANK(INDIRECT(\"'\"&F7076&\"'!\"&H7076)),\"\",IFERROR(VLOOKUP(TEXT(INDIRECT(\"'\"&F7076&\"'!\"&H7076),\"0\"),Notes!$B$5:$C$100,2,FALSE),\"\"))","v":""},"2b","$AA$134","$AB$134"]
[26384,{"$f":"Menu!$F$29","v":"X"},{"$f":"Menu!$J$29","v":2020},{"$f":"IF(ISBLANK(INDIRECT(\"'\"&F7077&\"'!\"&G7077)),\"\",INDIRECT(\"'\"&F7077&\"'!\"&G7077))","v":""},{"$f":"IF(ISBLANK(INDIRECT(\"'\"&F7077&\"'!\"&H7077)),\"\",IFERROR(VLOOKUP(TEXT(INDIRECT(\"'\"&F7077&\"'!\"&H7077),\"0\"),Notes!$B$5:$C$100,2,FALSE),\"\"))","v":""},"2b","$Y$134","$Z$134"]
[26385,{"$f":"Menu!$F$29","v":"X"},{"$f":"Menu!$J$29","v":2020},{"$f":"IF(ISBLANK(INDIRECT(\"'\"&F7078&\"'!\"&G7078)),\"\",INDIRECT(\"'\"&F7078&\"'!\"&G7078))","v":""},{"$f":"IF(ISBLANK(INDIRECT(\"'\"&F7078&\"'!\"&H7078)),\"\",IFERROR(VLOOKUP(TEXT(INDIRECT(\"'\"&F7078&\"'!\"&H7078),\"0\"),Notes!$B$5:$C$100,2,FALSE),\"\"))","v":""},"2d","$AC$134","$AD$134"]
[26386,{"$f":"Menu!$F$29","v":"X"},{"$f":"Menu!$J$29","v":2020},{"$f":"IF(ISBLANK(INDIRECT(\"'\"&F7079&\"'!\"&G7079)),\"\",INDIRECT(\"'\"&F7079&\"'!\"&G7079))","v":""},{"$f":"IF(ISBLANK(INDIRECT(\"'\"&F7079&\"'!\"&H7079)),\"\",IFERROR(VLOOKUP(TEXT(INDIRECT(\"'\"&F7079&\"'!\"&H7079),\"0\"),Notes!$B$5:$C$100,2,FALSE),\"\"))","v":""},"2d","$AG$134","$AH$134"]
[26387,{"$f":"Menu!$F$29","v":"X"},{"$f":"Menu!$J$29","v":2020},{"$f":"IF(ISBLANK(INDIRECT(\"'\"&F7080&\"'!\"&G7080)),\"\",INDIRECT(\"'\"&F7080&\"'!\"&G7080))","v":""},{"$f":"IF(ISBLANK(INDIRECT(\"'\"&F7080&\"'!\"&H7080)),\"\",IFERROR(VLOOKUP(TEXT(INDIRECT(\"'\"&F7080&\"'!\"&H7080),\"0\"),Notes!$B$5:$C$100,2,FALSE),\"\"))","v":""},"2d","$AE$134","$AF$134"]
[26388,{"$f":"Menu!$F$29","v":"X"},{"$f":"Menu!$J$29","v":2020},{"$f":"IF(ISBLANK(INDIRECT(\"'\"&F7081&\"'!\"&G7081)),\"\",INDIRECT(\"'\"&F7081&\"'!\"&G7081))","v":""},{"$f":"IF(ISBLANK(INDIRECT(\"'\"&F7081&\"'!\"&H7081)),\"\",IFERROR(VLOOKUP(TEXT(INDIRECT(\"'\"&F7081&\"'!\"&H7081),\"0\"),Notes!$B$5:$C$100,2,FALSE),\"\"))","v":""},"2d","$W$134","$X$134"]
[26389,{"$f":"Menu!$F$29","v":"X"},{"$f":"Menu!$J$29","v":2020},{"$f":"IF(ISBLANK(INDIRECT(\"'\"&F7082&\"'!\"&G7082)),\"\",INDIRECT(\"'\"&F7082&\"'!\"&G7082))","v":""},{"$f":"IF(ISBLANK(INDIRECT(\"'\"&F7082&\"'!\"&H7082)),\"\",IFERROR(VLOOKUP(TEXT(INDIRECT(\"'\"&F7082&\"'!\"&H7082),\"0\"),Notes!$B$5:$C$100,2,FALSE),\"\"))","v":""},"2d","$AA$134","$AB$134"]
[26390,{"$f":"Menu!$F$29","v":"X"},{"$f":"Menu!$J$29","v":2020},{"$f":"IF(ISBLANK(INDIRECT(\"'\"&F7083&\"'!\"&G7083)),\"\",INDIRECT(\"'\"&F7083&\"'!\"&G7083))","v":""},{"$f":"IF(ISBLANK(INDIRECT(\"'\"&F7083&\"'!\"&H7083)),\"\",IFERROR(VLOOKUP(TEXT(INDIRECT(\"'\"&F7083&\"'!\"&H7083),\"0\"),Notes!$B$5:$C$100,2,FALSE),\"\"))","v":""},"2d","$Y$134","$Z$134"]
[26391,{"$f":"Menu!$F$29","v":"X"},{"$f":"Menu!$J$29","v":2020},{"$f":"IF(ISBLANK(INDIRECT(\"'\"&F7084&\"'!\"&G7084)),\"\",INDIRECT(\"'\"&F7084&\"'!\"&G7084))","v":""},{"$f":"IF(ISBLANK(INDIRECT(\"'\"&F7084&\"'!\"&H7084)),\"\",IFERROR(VLOOKUP(TEXT(INDIRECT(\"'\"&F7084&\"'!\"&H7084),\"0\"),Notes!$B$5:$C$100,2,FALSE),\"\"))","v":""},"2d","$E$134","$F$134"]
[26392,{"$f":"Menu!$F$29","v":"X"},{"$f":"Menu!$J$29","v":2020},{"$f":"IF(ISBLANK(INDIRECT(\"'\"&F7085&\"'!\"&G7085)),\"\",INDIRECT(\"'\"&F7085&\"'!\"&G7085))","v":""},{"$f":"IF(ISBLANK(INDIRECT(\"'\"&F7085&\"'!\"&H7085)),\"\",IFERROR(VLOOKUP(TEXT(INDIRECT(\"'\"&F7085&\"'!\"&H7085),\"0\"),Notes!$B$5:$C$100,2,FALSE),\"\"))","v":""},"2d","$I$134","$J$134"]
[26393,{"$f":"Menu!$F$29","v":"X"},{"$f":"Menu!$J$29","v":2020},{"$f":"IF(ISBLANK(INDIRECT(\"'\"&F7086&\"'!\"&G7086)),\"\",INDIRECT(\"'\"&F7086&\"'!\"&G7086))","v":""},{"$f":"IF(ISBLANK(INDIRECT(\"'\"&F7086&\"'!\"&H7086)),\"\",IFERROR(VLOOKUP(TEXT(INDIRECT(\"'\"&F7086&\"'!\"&H7086),\"0\"),Notes!$B$5:$C$100,2,FALSE),\"\"))","v":""},"2d","$G$134","$H$134"]
[26394,{"$f":"Menu!$F$29","v":"X"},{"$f":"Menu!$J$29","v":2020},{"$f":"IF(ISBLANK(INDIRECT(\"'\"&F7087&\"'!\"&G7087)),\"\",INDIRECT(\"'\"&F7087&\"'!\"&G7087))","v":""},{"$f":"IF(ISBLANK(INDIRECT(\"'\"&F7087&\"'!\"&H7087)),\"\",IFERROR(VLOOKUP(TEXT(INDIRECT(\"'\"&F7087&\"'!\"&H7087),\"0\"),Notes!$B$5:$C$100,2,FALSE),\"\"))","v":""},"2a","$Q$134","$R$134"]
[26395,{"$f":"Menu!$F$29","v":"X"},{"$f":"Menu!$J$29","v":2020},{"$f":"IF(ISBLANK(INDIRECT(\"'\"&F7088&\"'!\"&G7088)),\"\",INDIRECT(\"'\"&F7088&\"'!\"&G7088))","v":""},{"$f":"IF(ISBLANK(INDIRECT(\"'\"&F7088&\"'!\"&H7088)),\"\",IFERROR(VLOOKUP(TEXT(INDIRECT(\"'\"&F7088&\"'!\"&H7088),\"0\"),Notes!$B$5:$C$100,2,FALSE),\"\"))","v":""},"2a","$U$134","$V$134"]
[26396,{"$f":"Menu!$F$29","v":"X"},{"$f":"Menu!$J$29","v":2020},{"$f":"IF(ISBLANK(INDIRECT(\"'\"&F7089&\"'!\"&G7089)),\"\",INDIRECT(\"'\"&F7089&\"'!\"&G7089))","v":""},{"$f":"IF(ISBLANK(INDIRECT(\"'\"&F7089&\"'!\"&H7089)),\"\",IFERROR(VLOOKUP(TEXT(INDIRECT(\"'\"&F7089&\"'!\"&H7089),\"0\"),Notes!$B$5:$C$100,2,FALSE),\"\"))","v":""},"2a","$S$134","$T$134"]
[26397,{"$f":"Menu!$F$29","v":"X"},{"$f":"Menu!$J$29","v":2020},{"$f":"IF(ISBLANK(INDIRECT(\"'\"&F7090&\"'!\"&G7090)),\"\",INDIRECT(\"'\"&F7090&\"'!\"&G7090))","v":""},{"$f":"IF(ISBLANK(INDIRECT(\"'\"&F7090&\"'!\"&H7090)),\"\",IFERROR(VLOOKUP(TEXT(INDIRECT(\"'\"&F7090&\"'!\"&H7090),\"0\"),Notes!$B$5:$C$100,2,FALSE),\"\"))","v":""},"2d","$K$134","$L$134"]
[26398,{"$f":"Menu!$F$29","v":"X"},{"$f":"Menu!$J$29","v":2020},{"$f":"IF(ISBLANK(INDIRECT(\"'\"&F7091&\"'!\"&G7091)),\"\",INDIRECT(\"'\"&F7091&\"'!\"&G7091))","v":""},{"$f":"IF(ISBLANK(INDIRECT(\"'\"&F7091&\"'!\"&H7091)),\"\",IFERROR(VLOOKUP(TEXT(INDIRECT(\"'\"&F7091&\"'!\"&H7091),\"0\"),Notes!$B$5:$C$100,2,FALSE),\"\"))","v":""},"2d","$O$134","$P$134"]
[26399,{"$f":"Menu!$F$29","v":"X"},{"$f":"Menu!$J$29","v":2020},{"$f":"IF(ISBLANK(INDIRECT(\"'\"&F7092&\"'!\"&G7092)),\"\",INDIRECT(\"'\"&F7092&\"'!\"&G7092))","v":""},{"$f":"IF(ISBLANK(INDIRECT(\"'\"&F7092&\"'!\"&H7092)),\"\",IFERROR(VLOOKUP(TEXT(INDIRECT(\"'\"&F7092&\"'!\"&H7092),\"0\"),Notes!$B$5:$C$100,2,FALSE),\"\"))","v":""},"2d","$M$134","$N$134"]
[26400,{"$f":"Menu!$F$29","v":"X"},{"$f":"Menu!$J$29","v":2020},{"$f":"IF(ISBLANK(INDIRECT(\"'\"&F7093&\"'!\"&G7093)),\"\",INDIRECT(\"'\"&F7093&\"'!\"&G7093))","v":""},{"$f":"IF(ISBLANK(INDIRECT(\"'\"&F7093&\"'!\"&H7093)),\"\",IFERROR(VLOOKUP(TEXT(INDIRECT(\"'\"&F7093&\"'!\"&H7093),\"0\"),Notes!$B$5:$C$100,2,FALSE),\"\"))","v":""},"2d","$Q$134","$R$134"]
[26401,{"$f":"Menu!$F$29","v":"X"},{"$f":"Menu!$J$29","v":2020},{"$f":"IF(ISBLANK(INDIRECT(\"'\"&F7094&\"'!\"&G7094)),\"\",INDIRECT(\"'\"&F7094&\"'!\"&G7094))","v":""},{"$f":"IF(ISBLANK(INDIRECT(\"'\"&F7094&\"'!\"&H7094)),\"\",IFERROR(VLOOKUP(TEXT(INDIRECT(\"'\"&F7094&\"'!\"&H7094),\"0\"),Notes!$B$5:$C$100,2,FALSE),\"\"))","v":""},"2d","$U$134","$V$134"]
[26402,{"$f":"Menu!$F$29","v":"X"},{"$f":"Menu!$J$29","v":2020},{"$f":"IF(ISBLANK(INDIRECT(\"'\"&F7095&\"'!\"&G7095)),\"\",INDIRECT(\"'\"&F7095&\"'!\"&G7095))","v":""},{"$f":"IF(ISBLANK(INDIRECT(\"'\"&F7095&\"'!\"&H7095)),\"\",IFERROR(VLOOKUP(TEXT(INDIRECT(\"'\"&F7095&\"'!\"&H7095),\"0\"),Notes!$B$5:$C$100,2,FALSE),\"\"))","v":""},"2d","$S$134","$T$134"]
[26403,{"$f":"Menu!$F$29","v":"X"},{"$f":"Menu!$J$29","v":2020},{"$f":"IF(ISBLANK(INDIRECT(\"'\"&F7096&\"'!\"&G7096)),\"\",INDIRECT(\"'\"&F7096&\"'!\"&G7096))","v":""},null,"2a","$K$134","$L$134"]
[26404,{"$f":"Menu!$F$29","v":"X"},{"$f":"Menu!$J$29","v":2020},{"$f":"IF(ISBLANK(INDIRECT(\"'\"&F7097&\"'!\"&G7097)),\"\",INDIRECT(\"'\"&F7097&\"'!\"&G7097))","v":""},{"$f":"IF(ISBLANK(INDIRECT(\"'\"&F7097&\"'!\"&H7097)),\"\",IFERROR(VLOOKUP(TEXT(INDIRECT(\"'\"&F7097&\"'!\"&H7097),\"0\"),Notes!$B$5:$C$100,2,FALSE),\"\"))","v":""},"2a","$O$134","$P$134"]
[26405,{"$f":"Menu!$F$29","v":"X"},{"$f":"Menu!$J$29","v":2020},{"$f":"IF(ISBLANK(INDIRECT(\"'\"&F7098&\"'!\"&G7098)),\"\",INDIRECT(\"'\"&F7098&\"'!\"&G7098))","v":""},{"$f":"IF(ISBLANK(INDIRECT(\"'\"&F7098&\"'!\"&H7098)),\"\",IFERROR(VLOOKUP(TEXT(INDIRECT(\"'\"&F7098&\"'!\"&H7098),\"0\"),Notes!$B$5:$C$100,2,FALSE),\"\"))","v":""},"2a","$M$134","$N$134"]
[26406,{"$f":"Menu!$F$29","v":"X"},{"$f":"Menu!$J$29","v":2020},{"$f":"IF(ISBLANK(INDIRECT(\"'\"&F7099&\"'!\"&G7099)),\"\",INDIRECT(\"'\"&F7099&\"'!\"&G7099))","v":""},{"$f":"IF(ISBLANK(INDIRECT(\"'\"&F7099&\"'!\"&H7099)),\"\",IFERROR(VLOOKUP(TEXT(INDIRECT(\"'\"&F7099&\"'!\"&H7099),\"0\"),Notes!$B$5:$C$100,2,FALSE),\"\"))","v":""},"2a","$E$134","$F$134"]
[26407,{"$f":"Menu!$F$29","v":"X"},{"$f":"Menu!$J$29","v":2020},{"$f":"IF(ISBLANK(INDIRECT(\"'\"&F7100&\"'!\"&G7100)),\"\",INDIRECT(\"'\"&F7100&\"'!\"&G7100))","v":""},{"$f":"IF(ISBLANK(INDIRECT(\"'\"&F7100&\"'!\"&H7100)),\"\",IFERROR(VLOOKUP(TEXT(INDIRECT(\"'\"&F7100&\"'!\"&H7100),\"0\"),Notes!$B$5:$C$100,2,FALSE),\"\"))","v":""},"2b","$K$136","$L$136"]
[26408,{"$f":"Menu!$F$29","v":"X"},{"$f":"Menu!$J$29","v":2020},{"$f":"IF(ISBLANK(INDIRECT(\"'\"&F7101&\"'!\"&G7101)),\"\",INDIRECT(\"'\"&F7101&\"'!\"&G7101))","v":""},{"$f":"IF(ISBLANK(INDIRECT(\"'\"&F7101&\"'!\"&H7101)),\"\",IFERROR(VLOOKUP(TEXT(INDIRECT(\"'\"&F7101&\"'!\"&H7101),\"0\"),Notes!$B$5:$C$100,2,FALSE),\"\"))","v":""},"2b","$O$136","$P$136"]
[26409,{"$f":"Menu!$F$29","v":"X"},{"$f":"Menu!$J$29","v":2020},{"$f":"IF(ISBLANK(INDIRECT(\"'\"&F7102&\"'!\"&G7102)),\"\",INDIRECT(\"'\"&F7102&\"'!\"&G7102))","v":""},{"$f":"IF(ISBLANK(INDIRECT(\"'\"&F7102&\"'!\"&H7102)),\"\",IFERROR(VLOOKUP(TEXT(INDIRECT(\"'\"&F7102&\"'!\"&H7102),\"0\"),Notes!$B$5:$C$100,2,FALSE),\"\"))","v":""},"2b","$M$136","$N$136"]
[26410,{"$f":"Menu!$F$29","v":"X"},{"$f":"Menu!$J$29","v":2020},{"$f":"IF(ISBLANK(INDIRECT(\"'\"&F7103&\"'!\"&G7103)),\"\",INDIRECT(\"'\"&F7103&\"'!\"&G7103))","v":""},{"$f":"IF(ISBLANK(INDIRECT(\"'\"&F7103&\"'!\"&H7103)),\"\",IFERROR(VLOOKUP(TEXT(INDIRECT(\"'\"&F7103&\"'!\"&H7103),\"0\"),Notes!$B$5:$C$100,2,FALSE),\"\"))","v":""},"2b","$Q$136","$R$136"]
[26411,{"$f":"Menu!$F$29","v":"X"},{"$f":"Menu!$J$29","v":2020},{"$f":"IF(ISBLANK(INDIRECT(\"'\"&F7104&\"'!\"&G7104)),\"\",INDIRECT(\"'\"&F7104&\"'!\"&G7104))","v":""},{"$f":"IF(ISBLANK(INDIRECT(\"'\"&F7104&\"'!\"&H7104)),\"\",IFERROR(VLOOKUP(TEXT(INDIRECT(\"'\"&F7104&\"'!\"&H7104),\"0\"),Notes!$B$5:$C$100,2,FALSE),\"\"))","v":""},"2b","$U$136","$V$136"]
[26412,{"$f":"Menu!$F$29","v":"X"},{"$f":"Menu!$J$29","v":2020},{"$f":"IF(ISBLANK(INDIRECT(\"'\"&F7105&\"'!\"&G7105)),\"\",INDIRECT(\"'\"&F7105&\"'!\"&G7105))","v":""},{"$f":"IF(ISBLANK(INDIRECT(\"'\"&F7105&\"'!\"&H7105)),\"\",IFERROR(VLOOKUP(TEXT(INDIRECT(\"'\"&F7105&\"'!\"&H7105),\"0\"),Notes!$B$5:$C$100,2,FALSE),\"\"))","v":""},"2b","$S$136","$T$136"]
[26416,{"$f":"Menu!$F$29","v":"X"},{"$f":"Menu!$J$29","v":2020},{"$f":"IF(ISBLANK(INDIRECT(\"'\"&F7106&\"'!\"&G7106)),\"\",INDIRECT(\"'\"&F7106&\"'!\"&G7106))","v":""},{"$f":"IF(ISBLANK(INDIRECT(\"'\"&F7106&\"'!\"&H7106)),\"\",IFERROR(VLOOKUP(TEXT(INDIRECT(\"'\"&F7106&\"'!\"&H7106),\"0\"),Notes!$B$5:$C$100,2,FALSE),\"\"))","v":""},"2a","$I$136",{"$f":"IF(LEN(TRIM(MID(G7106,4,10)))-LEN(SUBSTITUTE(TRIM(MID(G7106,4,10)),\"$\",\"\"))=0,\"$\"&CHAR(CODE(MID(G7106,2,1))+1)&\"$\"&TRIM(MID(G7106,4,10)),\"$\"&MID(G7106,2,1)&CHAR(CODE(MID(G7106,3,1))+1)&\"$\"&TRIM(MID(G7106,5,11)))","v":"$J$136"}]
[26417,{"$f":"Menu!$F$29","v":"X"},{"$f":"Menu!$J$29","v":2020},{"$f":"IF(ISBLANK(INDIRECT(\"'\"&F7107&\"'!\"&G7107)),\"\",INDIRECT(\"'\"&F7107&\"'!\"&G7107))","v":""},{"$f":"IF(ISBLANK(INDIRECT(\"'\"&F7107&\"'!\"&H7107)),\"\",IFERROR(VLOOKUP(TEXT(INDIRECT(\"'\"&F7107&\"'!\"&H7107),\"0\"),Notes!$B$5:$C$100,2,FALSE),\"\"))","v":""},"2c","$E$136","$F$136"]
[26418,{"$f":"Menu!$F$29","v":"X"},{"$f":"Menu!$J$29","v":2020},{"$f":"IF(ISBLANK(INDIRECT(\"'\"&F7108&\"'!\"&G7108)),\"\",INDIRECT(\"'\"&F7108&\"'!\"&G7108))","v":""},{"$f":"IF(ISBLANK(INDIRECT(\"'\"&F7108&\"'!\"&H7108)),\"\",IFERROR(VLOOKUP(TEXT(INDIRECT(\"'\"&F7108&\"'!\"&H7108),\"0\"),Notes!$B$5:$C$100,2,FALSE),\"\"))","v":""},"2c","$I$136","$J$136"]
[26419,{"$f":"Menu!$F$29","v":"X"},{"$f":"Menu!$J$29","v":2020},{"$f":"IF(ISBLANK(INDIRECT(\"'\"&F7109&\"'!\"&G7109)),\"\",INDIRECT(\"'\"&F7109&\"'!\"&G7109))","v":""},{"$f":"IF(ISBLANK(INDIRECT(\"'\"&F7109&\"'!\"&H7109)),\"\",IFERROR(VLOOKUP(TEXT(INDIRECT(\"'\"&F7109&\"'!\"&H7109),\"0\"),Notes!$B$5:$C$100,2,FALSE),\"\"))","v":""},"2c","$G$136","$H$136"]
[26423,{"$f":"Menu!$F$29","v":"X"},{"$f":"Menu!$J$29","v":2020},{"$f":"IF(ISBLANK(INDIRECT(\"'\"&F7110&\"'!\"&G7110)),\"\",INDIRECT(\"'\"&F7110&\"'!\"&G7110))","v":""},{"$f":"IF(ISBLANK(INDIRECT(\"'\"&F7110&\"'!\"&H7110)),\"\",IFERROR(VLOOKUP(TEXT(INDIRECT(\"'\"&F7110&\"'!\"&H7110),\"0\"),Notes!$B$5:$C$100,2,FALSE),\"\"))","v":""},"2c","$K$136","$L$136"]
[26424,{"$f":"Menu!$F$29","v":"X"},{"$f":"Menu!$J$29","v":2020},{"$f":"IF(ISBLANK(INDIRECT(\"'\"&F7111&\"'!\"&G7111)),\"\",INDIRECT(\"'\"&F7111&\"'!\"&G7111))","v":""},{"$f":"IF(ISBLANK(INDIRECT(\"'\"&F7111&\"'!\"&H7111)),\"\",IFERROR(VLOOKUP(TEXT(INDIRECT(\"'\"&F7111&\"'!\"&H7111),\"0\"),Notes!$B$5:$C$100,2,FALSE),\"\"))","v":""},"2c","$O$136","$P$136"]
[26425,{"$f":"Menu!$F$29","v":"X"},{"$f":"Menu!$J$29","v":2020},{"$f":"IF(ISBLANK(INDIRECT(\"'\"&F7112&\"'!\"&G7112)),\"\",INDIRECT(\"'\"&F7112&\"'!\"&G7112))","v":""},{"$f":"IF(ISBLANK(INDIRECT(\"'\"&F7112&\"'!\"&H7112)),\"\",IFERROR(VLOOKUP(TEXT(INDIRECT(\"'\"&F7112&\"'!\"&H7112),\"0\"),Notes!$B$5:$C$100,2,FALSE),\"\"))","v":""},"2c","$M$136","$N$136"]
[26426,{"$f":"Menu!$F$29","v":"X"},{"$f":"Menu!$J$29","v":2020},{"$f":"IF(ISBLANK(INDIRECT(\"'\"&F7113&\"'!\"&G7113)),\"\",INDIRECT(\"'\"&F7113&\"'!\"&G7113))","v":""},{"$f":"IF(ISBLANK(INDIRECT(\"'\"&F7113&\"'!\"&H7113)),\"\",IFERROR(VLOOKUP(TEXT(INDIRECT(\"'\"&F7113&\"'!\"&H7113),\"0\"),Notes!$B$5:$C$100,2,FALSE),\"\"))","v":""},"2c","$Q$136","$R$136"]
[26427,{"$f":"Menu!$F$29","v":"X"},{"$f":"Menu!$J$29","v":2020},{"$f":"IF(ISBLANK(INDIRECT(\"'\"&F7114&\"'!\"&G7114)),\"\",INDIRECT(\"'\"&F7114&\"'!\"&G7114))","v":""},{"$f":"IF(ISBLANK(INDIRECT(\"'\"&F7114&\"'!\"&H7114)),\"\",IFERROR(VLOOKUP(TEXT(INDIRECT(\"'\"&F7114&\"'!\"&H7114),\"0\"),Notes!$B$5:$C$100,2,FALSE),\"\"))","v":""},"2c","$U$136","$V$136"]
[26428,{"$f":"Menu!$F$29","v":"X"},{"$f":"Menu!$J$29","v":2020},{"$f":"IF(ISBLANK(INDIRECT(\"'\"&F7115&\"'!\"&G7115)),\"\",INDIRECT(\"'\"&F7115&\"'!\"&G7115))","v":""},{"$f":"IF(ISBLANK(INDIRECT(\"'\"&F7115&\"'!\"&H7115)),\"\",IFERROR(VLOOKUP(TEXT(INDIRECT(\"'\"&F7115&\"'!\"&H7115),\"0\"),Notes!$B$5:$C$100,2,FALSE),\"\"))","v":""},"2c","$S$136","$T$136"]
[26429,{"$f":"Menu!$F$29","v":"X"},{"$f":"Menu!$J$29","v":2020},{"$f":"IF(ISBLANK(INDIRECT(\"'\"&F7116&\"'!\"&G7116)),\"\",INDIRECT(\"'\"&F7116&\"'!\"&G7116))","v":""},{"$f":"IF(ISBLANK(INDIRECT(\"'\"&F7116&\"'!\"&H7116)),\"\",IFERROR(VLOOKUP(TEXT(INDIRECT(\"'\"&F7116&\"'!\"&H7116),\"0\"),Notes!$B$5:$C$100,2,FALSE),\"\"))","v":""},"2c","$W$136","$X$136"]
[26430,{"$f":"Menu!$F$29","v":"X"},{"$f":"Menu!$J$29","v":2020},{"$f":"IF(ISBLANK(INDIRECT(\"'\"&F7117&\"'!\"&G7117)),\"\",INDIRECT(\"'\"&F7117&\"'!\"&G7117))","v":""},{"$f":"IF(ISBLANK(INDIRECT(\"'\"&F7117&\"'!\"&H7117)),\"\",IFERROR(VLOOKUP(TEXT(INDIRECT(\"'\"&F7117&\"'!\"&H7117),\"0\"),Notes!$B$5:$C$100,2,FALSE),\"\"))","v":""},"2c","$AA$136","$AB$136"]
[26431,{"$f":"Menu!$F$29","v":"X"},{"$f":"Menu!$J$29","v":2020},{"$f":"IF(ISBLANK(INDIRECT(\"'\"&F7118&\"'!\"&G7118)),\"\",INDIRECT(\"'\"&F7118&\"'!\"&G7118))","v":""},{"$f":"IF(ISBLANK(INDIRECT(\"'\"&F7118&\"'!\"&H7118)),\"\",IFERROR(VLOOKUP(TEXT(INDIRECT(\"'\"&F7118&\"'!\"&H7118),\"0\"),Notes!$B$5:$C$100,2,FALSE),\"\"))","v":""},"2c","$Y$136","$Z$136"]
[26438,{"$f":"Menu!$F$29","v":"X"},{"$f":"Menu!$J$29","v":2020},{"$f":"IF(ISBLANK(INDIRECT(\"'\"&F7119&\"'!\"&G7119)),\"\",INDIRECT(\"'\"&F7119&\"'!\"&G7119))","v":""},{"$f":"IF(ISBLANK(INDIRECT(\"'\"&F7119&\"'!\"&H7119)),\"\",IFERROR(VLOOKUP(TEXT(INDIRECT(\"'\"&F7119&\"'!\"&H7119),\"0\"),Notes!$B$5:$C$100,2,FALSE),\"\"))","v":""},"2e","$BG$137","$BH$137"]
[26439,{"$f":"Menu!$F$29","v":"X"},{"$f":"Menu!$J$29","v":2020},{"$f":"IF(ISBLANK(INDIRECT(\"'\"&F7120&\"'!\"&G7120)),\"\",INDIRECT(\"'\"&F7120&\"'!\"&G7120))","v":""},{"$f":"IF(ISBLANK(INDIRECT(\"'\"&F7120&\"'!\"&H7120)),\"\",IFERROR(VLOOKUP(TEXT(INDIRECT(\"'\"&F7120&\"'!\"&H7120),\"0\"),Notes!$B$5:$C$100,2,FALSE),\"\"))","v":""},"2e","$BK$137","$BL$137"]
[26440,{"$f":"Menu!$F$29","v":"X"},{"$f":"Menu!$J$29","v":2020},{"$f":"IF(ISBLANK(INDIRECT(\"'\"&F7121&\"'!\"&G7121)),\"\",INDIRECT(\"'\"&F7121&\"'!\"&G7121))","v":""},{"$f":"IF(ISBLANK(INDIRECT(\"'\"&F7121&\"'!\"&H7121)),\"\",IFERROR(VLOOKUP(TEXT(INDIRECT(\"'\"&F7121&\"'!\"&H7121),\"0\"),Notes!$B$5:$C$100,2,FALSE),\"\"))","v":""},"2e","$BI$137","$BJ$137"]
[26441,{"$f":"Menu!$F$29","v":"X"},{"$f":"Menu!$J$29","v":2020},{"$f":"IF(ISBLANK(INDIRECT(\"'\"&F7122&\"'!\"&G7122)),\"\",INDIRECT(\"'\"&F7122&\"'!\"&G7122))","v":""},{"$f":"IF(ISBLANK(INDIRECT(\"'\"&F7122&\"'!\"&H7122)),\"\",IFERROR(VLOOKUP(TEXT(INDIRECT(\"'\"&F7122&\"'!\"&H7122),\"0\"),Notes!$B$5:$C$100,2,FALSE),\"\"))","v":""},"2e","$E$137","$F$137"]
[26442,{"$f":"Menu!$F$29","v":"X"},{"$f":"Menu!$J$29","v":2020},{"$f":"IF(ISBLANK(INDIRECT(\"'\"&F7123&\"'!\"&G7123)),\"\",INDIRECT(\"'\"&F7123&\"'!\"&G7123))","v":""},{"$f":"IF(ISBLANK(INDIRECT(\"'\"&F7123&\"'!\"&H7123)),\"\",IFERROR(VLOOKUP(TEXT(INDIRECT(\"'\"&F7123&\"'!\"&H7123),\"0\"),Notes!$B$5:$C$100,2,FALSE),\"\"))","v":""},"2e","$I$137","$J$137"]
[26443,{"$f":"Menu!$F$29","v":"X"},{"$f":"Menu!$J$29","v":2020},{"$f":"IF(ISBLANK(INDIRECT(\"'\"&F7124&\"'!\"&G7124)),\"\",INDIRECT(\"'\"&F7124&\"'!\"&G7124))","v":""},{"$f":"IF(ISBLANK(INDIRECT(\"'\"&F7124&\"'!\"&H7124)),\"\",IFERROR(VLOOKUP(TEXT(INDIRECT(\"'\"&F7124&\"'!\"&H7124),\"0\"),Notes!$B$5:$C$100,2,FALSE),\"\"))","v":""},"2e","$G$137","$H$137"]
[26444,{"$f":"Menu!$F$29","v":"X"},{"$f":"Menu!$J$29","v":2020},{"$f":"IF(ISBLANK(INDIRECT(\"'\"&F7125&\"'!\"&G7125)),\"\",INDIRECT(\"'\"&F7125&\"'!\"&G7125))","v":""},{"$f":"IF(ISBLANK(INDIRECT(\"'\"&F7125&\"'!\"&H7125)),\"\",IFERROR(VLOOKUP(TEXT(INDIRECT(\"'\"&F7125&\"'!\"&H7125),\"0\"),Notes!$B$5:$C$100,2,FALSE),\"\"))","v":""},"2e","$K$137","$L$137"]
[26445,{"$f":"Menu!$F$29","v":"X"},{"$f":"Menu!$J$29","v":2020},{"$f":"IF(ISBLANK(INDIRECT(\"'\"&F7126&\"'!\"&G7126)),\"\",INDIRECT(\"'\"&F7126&\"'!\"&G7126))","v":""},{"$f":"IF(ISBLANK(INDIRECT(\"'\"&F7126&\"'!\"&H7126)),\"\",IFERROR(VLOOKUP(TEXT(INDIRECT(\"'\"&F7126&\"'!\"&H7126),\"0\"),Notes!$B$5:$C$100,2,FALSE),\"\"))","v":""},"2e","$O$137","$P$137"]
[26446,{"$f":"Menu!$F$29","v":"X"},{"$f":"Menu!$J$29","v":2020},{"$f":"IF(ISBLANK(INDIRECT(\"'\"&F7127&\"'!\"&G7127)),\"\",INDIRECT(\"'\"&F7127&\"'!\"&G7127))","v":""},{"$f":"IF(ISBLANK(INDIRECT(\"'\"&F7127&\"'!\"&H7127)),\"\",IFERROR(VLOOKUP(TEXT(INDIRECT(\"'\"&F7127&\"'!\"&H7127),\"0\"),Notes!$B$5:$C$100,2,FALSE),\"\"))","v":""},"2e","$M$137","$N$137"]
[26447,{"$f":"Menu!$F$29","v":"X"},{"$f":"Menu!$J$29","v":2020},{"$f":"IF(ISBLANK(INDIRECT(\"'\"&F7128&\"'!\"&G7128)),\"\",INDIRECT(\"'\"&F7128&\"'!\"&G7128))","v":""},{"$f":"IF(ISBLANK(INDIRECT(\"'\"&F7128&\"'!\"&H7128)),\"\",IFERROR(VLOOKUP(TEXT(INDIRECT(\"'\"&F7128&\"'!\"&H7128),\"0\"),Notes!$B$5:$C$100,2,FALSE),\"\"))","v":""},"2e","$Q$137","$R$137"]
[26448,{"$f":"Menu!$F$29","v":"X"},{"$f":"Menu!$J$29","v":2020},{"$f":"IF(ISBLANK(INDIRECT(\"'\"&F7129&\"'!\"&G7129)),\"\",INDIRECT(\"'\"&F7129&\"'!\"&G7129))","v":""},{"$f":"IF(ISBLANK(INDIRECT(\"'\"&F7129&\"'!\"&H7129)),\"\",IFERROR(VLOOKUP(TEXT(INDIRECT(\"'\"&F7129&\"'!\"&H7129),\"0\"),Notes!$B$5:$C$100,2,FALSE),\"\"))","v":""},"2e","$U$137","$V$137"]
[26449,{"$f":"Menu!$F$29","v":"X"},{"$f":"Menu!$J$29","v":2020},{"$f":"IF(ISBLANK(INDIRECT(\"'\"&F7130&\"'!\"&G7130)),\"\",INDIRECT(\"'\"&F7130&\"'!\"&G7130))","v":""},{"$f":"IF(ISBLANK(INDIRECT(\"'\"&F7130&\"'!\"&H7130)),\"\",IFERROR(VLOOKUP(TEXT(INDIRECT(\"'\"&F7130&\"'!\"&H7130),\"0\"),Notes!$B$5:$C$100,2,FALSE),\"\"))","v":""},"2e","$S$137","$T$137"]
[26450,{"$f":"Menu!$F$29","v":"X"},{"$f":"Menu!$J$29","v":2020},{"$f":"IF(ISBLANK(INDIRECT(\"'\"&F7131&\"'!\"&G7131)),\"\",INDIRECT(\"'\"&F7131&\"'!\"&G7131))","v":""},{"$f":"IF(ISBLANK(INDIRECT(\"'\"&F7131&\"'!\"&H7131)),\"\",IFERROR(VLOOKUP(TEXT(INDIRECT(\"'\"&F7131&\"'!\"&H7131),\"0\"),Notes!$B$5:$C$100,2,FALSE),\"\"))","v":""},"2e","$W$137","$X$137"]
[26451,{"$f":"Menu!$F$29","v":"X"},{"$f":"Menu!$J$29","v":2020},{"$f":"IF(ISBLANK(INDIRECT(\"'\"&F7132&\"'!\"&G7132)),\"\",INDIRECT(\"'\"&F7132&\"'!\"&G7132))","v":""},{"$f":"IF(ISBLANK(INDIRECT(\"'\"&F7132&\"'!\"&H7132)),\"\",IFERROR(VLOOKUP(TEXT(INDIRECT(\"'\"&F7132&\"'!\"&H7132),\"0\"),Notes!$B$5:$C$100,2,FALSE),\"\"))","v":""},"2e","$AA$137","$AB$137"]
[26452,{"$f":"Menu!$F$29","v":"X"},{"$f":"Menu!$J$29","v":2020},{"$f":"IF(ISBLANK(INDIRECT(\"'\"&F7133&\"'!\"&G7133)),\"\",INDIRECT(\"'\"&F7133&\"'!\"&G7133))","v":""},{"$f":"IF(ISBLANK(INDIRECT(\"'\"&F7133&\"'!\"&H7133)),\"\",IFERROR(VLOOKUP(TEXT(INDIRECT(\"'\"&F7133&\"'!\"&H7133),\"0\"),Notes!$B$5:$C$100,2,FALSE),\"\"))","v":""},"2e","$Y$137","$Z$137"]
[26453,{"$f":"Menu!$F$29","v":"X"},{"$f":"Menu!$J$29","v":2020},{"$f":"IF(ISBLANK(INDIRECT(\"'\"&F7134&\"'!\"&G7134)),\"\",INDIRECT(\"'\"&F7134&\"'!\"&G7134))","v":""},{"$f":"IF(ISBLANK(INDIRECT(\"'\"&F7134&\"'!\"&H7134)),\"\",IFERROR(VLOOKUP(TEXT(INDIRECT(\"'\"&F7134&\"'!\"&H7134),\"0\"),Notes!$B$5:$C$100,2,FALSE),\"\"))","v":""},"2e","$AC$137","$AD$137"]
[26454,{"$f":"Menu!$F$29","v":"X"},{"$f":"Menu!$J$29","v":2020},{"$f":"IF(ISBLANK(INDIRECT(\"'\"&F7135&\"'!\"&G7135)),\"\",INDIRECT(\"'\"&F7135&\"'!\"&G7135))","v":""},{"$f":"IF(ISBLANK(INDIRECT(\"'\"&F7135&\"'!\"&H7135)),\"\",IFERROR(VLOOKUP(TEXT(INDIRECT(\"'\"&F7135&\"'!\"&H7135),\"0\"),Notes!$B$5:$C$100,2,FALSE),\"\"))","v":""},"2e","$AG$137","$AH$137"]
[26455,{"$f":"Menu!$F$29","v":"X"},{"$f":"Menu!$J$29","v":2020},{"$f":"IF(ISBLANK(INDIRECT(\"'\"&F7136&\"'!\"&G7136)),\"\",INDIRECT(\"'\"&F7136&\"'!\"&G7136))","v":""},{"$f":"IF(ISBLANK(INDIRECT(\"'\"&F7136&\"'!\"&H7136)),\"\",IFERROR(VLOOKUP(TEXT(INDIRECT(\"'\"&F7136&\"'!\"&H7136),\"0\"),Notes!$B$5:$C$100,2,FALSE),\"\"))","v":""},"2e","$AE$137","$AF$137"]
[26456,{"$f":"Menu!$F$29","v":"X"},{"$f":"Menu!$J$29","v":2020},{"$f":"IF(ISBLANK(INDIRECT(\"'\"&F7137&\"'!\"&G7137)),\"\",INDIRECT(\"'\"&F7137&\"'!\"&G7137))","v":""},{"$f":"IF(ISBLANK(INDIRECT(\"'\"&F7137&\"'!\"&H7137)),\"\",IFERROR(VLOOKUP(TEXT(INDIRECT(\"'\"&F7137&\"'!\"&H7137),\"0\"),Notes!$B$5:$C$100,2,FALSE),\"\"))","v":""},"2e","$AI$137","$AJ$137"]
[26457,{"$f":"Menu!$F$29","v":"X"},{"$f":"Menu!$J$29","v":2020},{"$f":"IF(ISBLANK(INDIRECT(\"'\"&F7138&\"'!\"&G7138)),\"\",INDIRECT(\"'\"&F7138&\"'!\"&G7138))","v":""},{"$f":"IF(ISBLANK(INDIRECT(\"'\"&F7138&\"'!\"&H7138)),\"\",IFERROR(VLOOKUP(TEXT(INDIRECT(\"'\"&F7138&\"'!\"&H7138),\"0\"),Notes!$B$5:$C$100,2,FALSE),\"\"))","v":""},"2e","$AM$137","$AN$137"]
[26458,{"$f":"Menu!$F$29","v":"X"},{"$f":"Menu!$J$29","v":2020},{"$f":"IF(ISBLANK(INDIRECT(\"'\"&F7139&\"'!\"&G7139)),\"\",INDIRECT(\"'\"&F7139&\"'!\"&G7139))","v":""},{"$f":"IF(ISBLANK(INDIRECT(\"'\"&F7139&\"'!\"&H7139)),\"\",IFERROR(VLOOKUP(TEXT(INDIRECT(\"'\"&F7139&\"'!\"&H7139),\"0\"),Notes!$B$5:$C$100,2,FALSE),\"\"))","v":""},"2e","$AK$137","$AL$137"]
[26459,{"$f":"Menu!$F$29","v":"X"},{"$f":"Menu!$J$29","v":2020},{"$f":"IF(ISBLANK(INDIRECT(\"'\"&F7140&\"'!\"&G7140)),\"\",INDIRECT(\"'\"&F7140&\"'!\"&G7140))","v":""},{"$f":"IF(ISBLANK(INDIRECT(\"'\"&F7140&\"'!\"&H7140)),\"\",IFERROR(VLOOKUP(TEXT(INDIRECT(\"'\"&F7140&\"'!\"&H7140),\"0\"),Notes!$B$5:$C$100,2,FALSE),\"\"))","v":""},"2e","$AO$137","$AP$137"]
[26460,{"$f":"Menu!$F$29","v":"X"},{"$f":"Menu!$J$29","v":2020},{"$f":"IF(ISBLANK(INDIRECT(\"'\"&F7141&\"'!\"&G7141)),\"\",INDIRECT(\"'\"&F7141&\"'!\"&G7141))","v":""},{"$f":"IF(ISBLANK(INDIRECT(\"'\"&F7141&\"'!\"&H7141)),\"\",IFERROR(VLOOKUP(TEXT(INDIRECT(\"'\"&F7141&\"'!\"&H7141),\"0\"),Notes!$B$5:$C$100,2,FALSE),\"\"))","v":""},"2e","$AS$137","$AT$137"]
[26461,{"$f":"Menu!$F$29","v":"X"},{"$f":"Menu!$J$29","v":2020},{"$f":"IF(ISBLANK(INDIRECT(\"'\"&F7142&\"'!\"&G7142)),\"\",INDIRECT(\"'\"&F7142&\"'!\"&G7142))","v":""},{"$f":"IF(ISBLANK(INDIRECT(\"'\"&F7142&\"'!\"&H7142)),\"\",IFERROR(VLOOKUP(TEXT(INDIRECT(\"'\"&F7142&\"'!\"&H7142),\"0\"),Notes!$B$5:$C$100,2,FALSE),\"\"))","v":""},"2e","$AQ$137","$AR$137"]
[26462,{"$f":"Menu!$F$29","v":"X"},{"$f":"Menu!$J$29","v":2020},{"$f":"IF(ISBLANK(INDIRECT(\"'\"&F7143&\"'!\"&G7143)),\"\",INDIRECT(\"'\"&F7143&\"'!\"&G7143))","v":""},{"$f":"IF(ISBLANK(INDIRECT(\"'\"&F7143&\"'!\"&H7143)),\"\",IFERROR(VLOOKUP(TEXT(INDIRECT(\"'\"&F7143&\"'!\"&H7143),\"0\"),Notes!$B$5:$C$100,2,FALSE),\"\"))","v":""},"2e","$AU$137","$AV$137"]
[26463,{"$f":"Menu!$F$29","v":"X"},{"$f":"Menu!$J$29","v":2020},{"$f":"IF(ISBLANK(INDIRECT(\"'\"&F7144&\"'!\"&G7144)),\"\",INDIRECT(\"'\"&F7144&\"'!\"&G7144))","v":""},{"$f":"IF(ISBLANK(INDIRECT(\"'\"&F7144&\"'!\"&H7144)),\"\",IFERROR(VLOOKUP(TEXT(INDIRECT(\"'\"&F7144&\"'!\"&H7144),\"0\"),Notes!$B$5:$C$100,2,FALSE),\"\"))","v":""},"2e","$AY$137","$AZ$137"]
[26464,{"$f":"Menu!$F$29","v":"X"},{"$f":"Menu!$J$29","v":2020},{"$f":"IF(ISBLANK(INDIRECT(\"'\"&F7145&\"'!\"&G7145)),\"\",INDIRECT(\"'\"&F7145&\"'!\"&G7145))","v":""},{"$f":"IF(ISBLANK(INDIRECT(\"'\"&F7145&\"'!\"&H7145)),\"\",IFERROR(VLOOKUP(TEXT(INDIRECT(\"'\"&F7145&\"'!\"&H7145),\"0\"),Notes!$B$5:$C$100,2,FALSE),\"\"))","v":""},"2e","$AW$137","$AX$137"]
[26465,{"$f":"Menu!$F$29","v":"X"},{"$f":"Menu!$J$29","v":2020},{"$f":"IF(ISBLANK(INDIRECT(\"'\"&F7146&\"'!\"&G7146)),\"\",INDIRECT(\"'\"&F7146&\"'!\"&G7146))","v":""},{"$f":"IF(ISBLANK(INDIRECT(\"'\"&F7146&\"'!\"&H7146)),\"\",IFERROR(VLOOKUP(TEXT(INDIRECT(\"'\"&F7146&\"'!\"&H7146),\"0\"),Notes!$B$5:$C$100,2,FALSE),\"\"))","v":""},"2e","$BA$137","$BB$137"]
[26466,{"$f":"Menu!$F$29","v":"X"},{"$f":"Menu!$J$29","v":2020},{"$f":"IF(ISBLANK(INDIRECT(\"'\"&F7147&\"'!\"&G7147)),\"\",INDIRECT(\"'\"&F7147&\"'!\"&G7147))","v":""},{"$f":"IF(ISBLANK(INDIRECT(\"'\"&F7147&\"'!\"&H7147)),\"\",IFERROR(VLOOKUP(TEXT(INDIRECT(\"'\"&F7147&\"'!\"&H7147),\"0\"),Notes!$B$5:$C$100,2,FALSE),\"\"))","v":""},"2e","$BE$137","$BF$137"]
[26467,{"$f":"Menu!$F$29","v":"X"},{"$f":"Menu!$J$29","v":2020},{"$f":"IF(ISBLANK(INDIRECT(\"'\"&F7148&\"'!\"&G7148)),\"\",INDIRECT(\"'\"&F7148&\"'!\"&G7148))","v":""},{"$f":"IF(ISBLANK(INDIRECT(\"'\"&F7148&\"'!\"&H7148)),\"\",IFERROR(VLOOKUP(TEXT(INDIRECT(\"'\"&F7148&\"'!\"&H7148),\"0\"),Notes!$B$5:$C$100,2,FALSE),\"\"))","v":""},"2e","$BC$137","$BD$137"]
[26468,{"$f":"Menu!$F$29","v":"X"},{"$f":"Menu!$J$29","v":2020},{"$f":"IF(ISBLANK(INDIRECT(\"'\"&F7149&\"'!\"&G7149)),\"\",INDIRECT(\"'\"&F7149&\"'!\"&G7149))","v":""},{"$f":"IF(ISBLANK(INDIRECT(\"'\"&F7149&\"'!\"&H7149)),\"\",IFERROR(VLOOKUP(TEXT(INDIRECT(\"'\"&F7149&\"'!\"&H7149),\"0\"),Notes!$B$5:$C$100,2,FALSE),\"\"))","v":""},"2b","$E$136","$F$136"]
[26469,{"$f":"Menu!$F$29","v":"X"},{"$f":"Menu!$J$29","v":2020},{"$f":"IF(ISBLANK(INDIRECT(\"'\"&F7150&\"'!\"&G7150)),\"\",INDIRECT(\"'\"&F7150&\"'!\"&G7150))","v":""},{"$f":"IF(ISBLANK(INDIRECT(\"'\"&F7150&\"'!\"&H7150)),\"\",IFERROR(VLOOKUP(TEXT(INDIRECT(\"'\"&F7150&\"'!\"&H7150),\"0\"),Notes!$B$5:$C$100,2,FALSE),\"\"))","v":""},"2b","$I$136","$J$136"]
[26470,{"$f":"Menu!$F$29","v":"X"},{"$f":"Menu!$J$29","v":2020},{"$f":"IF(ISBLANK(INDIRECT(\"'\"&F7151&\"'!\"&G7151)),\"\",INDIRECT(\"'\"&F7151&\"'!\"&G7151))","v":""},{"$f":"IF(ISBLANK(INDIRECT(\"'\"&F7151&\"'!\"&H7151)),\"\",IFERROR(VLOOKUP(TEXT(INDIRECT(\"'\"&F7151&\"'!\"&H7151),\"0\"),Notes!$B$5:$C$100,2,FALSE),\"\"))","v":""},"2b","$G$136","$H$136"]
[26471,{"$f":"Menu!$F$29","v":"X"},{"$f":"Menu!$J$29","v":2020},{"$f":"IF(ISBLANK(INDIRECT(\"'\"&F7152&\"'!\"&G7152)),\"\",INDIRECT(\"'\"&F7152&\"'!\"&G7152))","v":""},{"$f":"IF(ISBLANK(INDIRECT(\"'\"&F7152&\"'!\"&H7152)),\"\",IFERROR(VLOOKUP(TEXT(INDIRECT(\"'\"&F7152&\"'!\"&H7152),\"0\"),Notes!$B$5:$C$100,2,FALSE),\"\"))","v":""},"2a","$G$136","$H$136"]
[26472,{"$f":"Menu!$F$29","v":"X"},{"$f":"Menu!$J$29","v":2020},{"$f":"IF(ISBLANK(INDIRECT(\"'\"&F7153&\"'!\"&G7153)),\"\",INDIRECT(\"'\"&F7153&\"'!\"&G7153))","v":""},{"$f":"IF(ISBLANK(INDIRECT(\"'\"&F7153&\"'!\"&H7153)),\"\",IFERROR(VLOOKUP(TEXT(INDIRECT(\"'\"&F7153&\"'!\"&H7153),\"0\"),Notes!$B$5:$C$100,2,FALSE),\"\"))","v":""},"2b","$W$136","$X$136"]
[26473,{"$f":"Menu!$F$29","v":"X"},{"$f":"Menu!$J$29","v":2020},{"$f":"IF(ISBLANK(INDIRECT(\"'\"&F7154&\"'!\"&G7154)),\"\",INDIRECT(\"'\"&F7154&\"'!\"&G7154))","v":""},{"$f":"IF(ISBLANK(INDIRECT(\"'\"&F7154&\"'!\"&H7154)),\"\",IFERROR(VLOOKUP(TEXT(INDIRECT(\"'\"&F7154&\"'!\"&H7154),\"0\"),Notes!$B$5:$C$100,2,FALSE),\"\"))","v":""},"2b","$AA$136","$AB$136"]
[26474,{"$f":"Menu!$F$29","v":"X"},{"$f":"Menu!$J$29","v":2020},{"$f":"IF(ISBLANK(INDIRECT(\"'\"&F7155&\"'!\"&G7155)),\"\",INDIRECT(\"'\"&F7155&\"'!\"&G7155))","v":""},{"$f":"IF(ISBLANK(INDIRECT(\"'\"&F7155&\"'!\"&H7155)),\"\",IFERROR(VLOOKUP(TEXT(INDIRECT(\"'\"&F7155&\"'!\"&H7155),\"0\"),Notes!$B$5:$C$100,2,FALSE),\"\"))","v":""},"2b","$Y$136","$Z$136"]
[26475,{"$f":"Menu!$F$29","v":"X"},{"$f":"Menu!$J$29","v":2020},{"$f":"IF(ISBLANK(INDIRECT(\"'\"&F7156&\"'!\"&G7156)),\"\",INDIRECT(\"'\"&F7156&\"'!\"&G7156))","v":""},{"$f":"IF(ISBLANK(INDIRECT(\"'\"&F7156&\"'!\"&H7156)),\"\",IFERROR(VLOOKUP(TEXT(INDIRECT(\"'\"&F7156&\"'!\"&H7156),\"0\"),Notes!$B$5:$C$100,2,FALSE),\"\"))","v":""},"2d","$AC$136","$AD$136"]
[26476,{"$f":"Menu!$F$29","v":"X"},{"$f":"Menu!$J$29","v":2020},{"$f":"IF(ISBLANK(INDIRECT(\"'\"&F7157&\"'!\"&G7157)),\"\",INDIRECT(\"'\"&F7157&\"'!\"&G7157))","v":""},{"$f":"IF(ISBLANK(INDIRECT(\"'\"&F7157&\"'!\"&H7157)),\"\",IFERROR(VLOOKUP(TEXT(INDIRECT(\"'\"&F7157&\"'!\"&H7157),\"0\"),Notes!$B$5:$C$100,2,FALSE),\"\"))","v":""},"2d","$AG$136","$AH$136"]
[26477,{"$f":"Menu!$F$29","v":"X"},{"$f":"Menu!$J$29","v":2020},{"$f":"IF(ISBLANK(INDIRECT(\"'\"&F7158&\"'!\"&G7158)),\"\",INDIRECT(\"'\"&F7158&\"'!\"&G7158))","v":""},{"$f":"IF(ISBLANK(INDIRECT(\"'\"&F7158&\"'!\"&H7158)),\"\",IFERROR(VLOOKUP(TEXT(INDIRECT(\"'\"&F7158&\"'!\"&H7158),\"0\"),Notes!$B$5:$C$100,2,FALSE),\"\"))","v":""},"2d","$AE$136","$AF$136"]
[26478,{"$f":"Menu!$F$29","v":"X"},{"$f":"Menu!$J$29","v":2020},{"$f":"IF(ISBLANK(INDIRECT(\"'\"&F7159&\"'!\"&G7159)),\"\",INDIRECT(\"'\"&F7159&\"'!\"&G7159))","v":""},{"$f":"IF(ISBLANK(INDIRECT(\"'\"&F7159&\"'!\"&H7159)),\"\",IFERROR(VLOOKUP(TEXT(INDIRECT(\"'\"&F7159&\"'!\"&H7159),\"0\"),Notes!$B$5:$C$100,2,FALSE),\"\"))","v":""},"2d","$W$136","$X$136"]
[26479,{"$f":"Menu!$F$29","v":"X"},{"$f":"Menu!$J$29","v":2020},{"$f":"IF(ISBLANK(INDIRECT(\"'\"&F7160&\"'!\"&G7160)),\"\",INDIRECT(\"'\"&F7160&\"'!\"&G7160))","v":""},{"$f":"IF(ISBLANK(INDIRECT(\"'\"&F7160&\"'!\"&H7160)),\"\",IFERROR(VLOOKUP(TEXT(INDIRECT(\"'\"&F7160&\"'!\"&H7160),\"0\"),Notes!$B$5:$C$100,2,FALSE),\"\"))","v":""},"2d","$AA$136","$AB$136"]
[26480,{"$f":"Menu!$F$29","v":"X"},{"$f":"Menu!$J$29","v":2020},{"$f":"IF(ISBLANK(INDIRECT(\"'\"&F7161&\"'!\"&G7161)),\"\",INDIRECT(\"'\"&F7161&\"'!\"&G7161))","v":""},{"$f":"IF(ISBLANK(INDIRECT(\"'\"&F7161&\"'!\"&H7161)),\"\",IFERROR(VLOOKUP(TEXT(INDIRECT(\"'\"&F7161&\"'!\"&H7161),\"0\"),Notes!$B$5:$C$100,2,FALSE),\"\"))","v":""},"2d","$Y$136","$Z$136"]
[26481,{"$f":"Menu!$F$29","v":"X"},{"$f":"Menu!$J$29","v":2020},{"$f":"IF(ISBLANK(INDIRECT(\"'\"&F7162&\"'!\"&G7162)),\"\",INDIRECT(\"'\"&F7162&\"'!\"&G7162))","v":""},{"$f":"IF(ISBLANK(INDIRECT(\"'\"&F7162&\"'!\"&H7162)),\"\",IFERROR(VLOOKUP(TEXT(INDIRECT(\"'\"&F7162&\"'!\"&H7162),\"0\"),Notes!$B$5:$C$100,2,FALSE),\"\"))","v":""},"2d","$E$136","$F$136"]
[26482,{"$f":"Menu!$F$29","v":"X"},{"$f":"Menu!$J$29","v":2020},{"$f":"IF(ISBLANK(INDIRECT(\"'\"&F7163&\"'!\"&G7163)),\"\",INDIRECT(\"'\"&F7163&\"'!\"&G7163))","v":""},{"$f":"IF(ISBLANK(INDIRECT(\"'\"&F7163&\"'!\"&H7163)),\"\",IFERROR(VLOOKUP(TEXT(INDIRECT(\"'\"&F7163&\"'!\"&H7163),\"0\"),Notes!$B$5:$C$100,2,FALSE),\"\"))","v":""},"2d","$I$136","$J$136"]
[26483,{"$f":"Menu!$F$29","v":"X"},{"$f":"Menu!$J$29","v":2020},{"$f":"IF(ISBLANK(INDIRECT(\"'\"&F7164&\"'!\"&G7164)),\"\",INDIRECT(\"'\"&F7164&\"'!\"&G7164))","v":""},{"$f":"IF(ISBLANK(INDIRECT(\"'\"&F7164&\"'!\"&H7164)),\"\",IFERROR(VLOOKUP(TEXT(INDIRECT(\"'\"&F7164&\"'!\"&H7164),\"0\"),Notes!$B$5:$C$100,2,FALSE),\"\"))","v":""},"2d","$G$136","$H$136"]
[26484,{"$f":"Menu!$F$29","v":"X"},{"$f":"Menu!$J$29","v":2020},{"$f":"IF(ISBLANK(INDIRECT(\"'\"&F7165&\"'!\"&G7165)),\"\",INDIRECT(\"'\"&F7165&\"'!\"&G7165))","v":""},{"$f":"IF(ISBLANK(INDIRECT(\"'\"&F7165&\"'!\"&H7165)),\"\",IFERROR(VLOOKUP(TEXT(INDIRECT(\"'\"&F7165&\"'!\"&H7165),\"0\"),Notes!$B$5:$C$100,2,FALSE),\"\"))","v":""},"2a","$Q$136","$R$136"]
[26485,{"$f":"Menu!$F$29","v":"X"},{"$f":"Menu!$J$29","v":2020},{"$f":"IF(ISBLANK(INDIRECT(\"'\"&F7166&\"'!\"&G7166)),\"\",INDIRECT(\"'\"&F7166&\"'!\"&G7166))","v":""},{"$f":"IF(ISBLANK(INDIRECT(\"'\"&F7166&\"'!\"&H7166)),\"\",IFERROR(VLOOKUP(TEXT(INDIRECT(\"'\"&F7166&\"'!\"&H7166),\"0\"),Notes!$B$5:$C$100,2,FALSE),\"\"))","v":""},"2a","$U$136","$V$136"]
[26486,{"$f":"Menu!$F$29","v":"X"},{"$f":"Menu!$J$29","v":2020},{"$f":"IF(ISBLANK(INDIRECT(\"'\"&F7167&\"'!\"&G7167)),\"\",INDIRECT(\"'\"&F7167&\"'!\"&G7167))","v":""},{"$f":"IF(ISBLANK(INDIRECT(\"'\"&F7167&\"'!\"&H7167)),\"\",IFERROR(VLOOKUP(TEXT(INDIRECT(\"'\"&F7167&\"'!\"&H7167),\"0\"),Notes!$B$5:$C$100,2,FALSE),\"\"))","v":""},"2a","$S$136","$T$136"]
[26487,{"$f":"Menu!$F$29","v":"X"},{"$f":"Menu!$J$29","v":2020},{"$f":"IF(ISBLANK(INDIRECT(\"'\"&F7168&\"'!\"&G7168)),\"\",INDIRECT(\"'\"&F7168&\"'!\"&G7168))","v":""},{"$f":"IF(ISBLANK(INDIRECT(\"'\"&F7168&\"'!\"&H7168)),\"\",IFERROR(VLOOKUP(TEXT(INDIRECT(\"'\"&F7168&\"'!\"&H7168),\"0\"),Notes!$B$5:$C$100,2,FALSE),\"\"))","v":""},"2d","$K$136","$L$136"]
[26488,{"$f":"Menu!$F$29","v":"X"},{"$f":"Menu!$J$29","v":2020},{"$f":"IF(ISBLANK(INDIRECT(\"'\"&F7169&\"'!\"&G7169)),\"\",INDIRECT(\"'\"&F7169&\"'!\"&G7169))","v":""},{"$f":"IF(ISBLANK(INDIRECT(\"'\"&F7169&\"'!\"&H7169)),\"\",IFERROR(VLOOKUP(TEXT(INDIRECT(\"'\"&F7169&\"'!\"&H7169),\"0\"),Notes!$B$5:$C$100,2,FALSE),\"\"))","v":""},"2d","$O$136","$P$136"]
[26489,{"$f":"Menu!$F$29","v":"X"},{"$f":"Menu!$J$29","v":2020},{"$f":"IF(ISBLANK(INDIRECT(\"'\"&F7170&\"'!\"&G7170)),\"\",INDIRECT(\"'\"&F7170&\"'!\"&G7170))","v":""},{"$f":"IF(ISBLANK(INDIRECT(\"'\"&F7170&\"'!\"&H7170)),\"\",IFERROR(VLOOKUP(TEXT(INDIRECT(\"'\"&F7170&\"'!\"&H7170),\"0\"),Notes!$B$5:$C$100,2,FALSE),\"\"))","v":""},"2d","$M$136",{"$f":"IF(LEN(TRIM(MID(G7170,4,10)))-LEN(SUBSTITUTE(TRIM(MID(G7170,4,10)),\"$\",\"\"))=0,\"$\"&CHAR(CODE(MID(G7170,2,1))+1)&\"$\"&TRIM(MID(G7170,4,10)),\"$\"&MID(G7170,2,1)&CHAR(CODE(MID(G7170,3,1))+1)&\"$\"&TRIM(MID(G7170,5,11)))","v":"$N$136"}]
[26490,{"$f":"Menu!$F$29","v":"X"},{"$f":"Menu!$J$29","v":2020},{"$f":"IF(ISBLANK(INDIRECT(\"'\"&F7171&\"'!\"&G7171)),\"\",INDIRECT(\"'\"&F7171&\"'!\"&G7171))","v":""},{"$f":"IF(ISBLANK(INDIRECT(\"'\"&F7171&\"'!\"&H7171)),\"\",IFERROR(VLOOKUP(TEXT(INDIRECT(\"'\"&F7171&\"'!\"&H7171),\"0\"),Notes!$B$5:$C$100,2,FALSE),\"\"))","v":""},"2d","$Q$136","$R$136"]
[26491,{"$f":"Menu!$F$29","v":"X"},{"$f":"Menu!$J$29","v":2020},{"$f":"IF(ISBLANK(INDIRECT(\"'\"&F7172&\"'!\"&G7172)),\"\",INDIRECT(\"'\"&F7172&\"'!\"&G7172))","v":""},{"$f":"IF(ISBLANK(INDIRECT(\"'\"&F7172&\"'!\"&H7172)),\"\",IFERROR(VLOOKUP(TEXT(INDIRECT(\"'\"&F7172&\"'!\"&H7172),\"0\"),Notes!$B$5:$C$100,2,FALSE),\"\"))","v":""},"2d","$U$136","$V$136"]
[26492,{"$f":"Menu!$F$29","v":"X"},{"$f":"Menu!$J$29","v":2020},{"$f":"IF(ISBLANK(INDIRECT(\"'\"&F7173&\"'!\"&G7173)),\"\",INDIRECT(\"'\"&F7173&\"'!\"&G7173))","v":""},{"$f":"IF(ISBLANK(INDIRECT(\"'\"&F7173&\"'!\"&H7173)),\"\",IFERROR(VLOOKUP(TEXT(INDIRECT(\"'\"&F7173&\"'!\"&H7173),\"0\"),Notes!$B$5:$C$100,2,FALSE),\"\"))","v":""},"2d","$S$136","$T$136"]
[26493,{"$f":"Menu!$F$29","v":"X"},{"$f":"Menu!$J$29","v":2020},{"$f":"IF(ISBLANK(INDIRECT(\"'\"&F7174&\"'!\"&G7174)),\"\",INDIRECT(\"'\"&F7174&\"'!\"&G7174))","v":""},null,"2a","$K$136","$L$136"]
[26494,{"$f":"Menu!$F$29","v":"X"},{"$f":"Menu!$J$29","v":2020},{"$f":"IF(ISBLANK(INDIRECT(\"'\"&F7175&\"'!\"&G7175)),\"\",INDIRECT(\"'\"&F7175&\"'!\"&G7175))","v":""},{"$f":"IF(ISBLANK(INDIRECT(\"'\"&F7175&\"'!\"&H7175)),\"\",IFERROR(VLOOKUP(TEXT(INDIRECT(\"'\"&F7175&\"'!\"&H7175),\"0\"),Notes!$B$5:$C$100,2,FALSE),\"\"))","v":""},"2a","$O$136","$P$136"]
[26495,{"$f":"Menu!$F$29","v":"X"},{"$f":"Menu!$J$29","v":2020},{"$f":"IF(ISBLANK(INDIRECT(\"'\"&F7176&\"'!\"&G7176)),\"\",INDIRECT(\"'\"&F7176&\"'!\"&G7176))","v":""},{"$f":"IF(ISBLANK(INDIRECT(\"'\"&F7176&\"'!\"&H7176)),\"\",IFERROR(VLOOKUP(TEXT(INDIRECT(\"'\"&F7176&\"'!\"&H7176),\"0\"),Notes!$B$5:$C$100,2,FALSE),\"\"))","v":""},"2a","$M$136","$N$136"]
[26496,{"$f":"Menu!$F$29","v":"X"},{"$f":"Menu!$J$29","v":2020},{"$f":"IF(ISBLANK(INDIRECT(\"'\"&F7177&\"'!\"&G7177)),\"\",INDIRECT(\"'\"&F7177&\"'!\"&G7177))","v":""},{"$f":"IF(ISBLANK(INDIRECT(\"'\"&F7177&\"'!\"&H7177)),\"\",IFERROR(VLOOKUP(TEXT(INDIRECT(\"'\"&F7177&\"'!\"&H7177),\"0\"),Notes!$B$5:$C$100,2,FALSE),\"\"))","v":""},"2a","$E$136","$F$136"]
[26497,{"$f":"Menu!$F$29","v":"X"},{"$f":"Menu!$J$29","v":2020},{"$f":"IF(ISBLANK(INDIRECT(\"'\"&F7178&\"'!\"&G7178)),\"\",INDIRECT(\"'\"&F7178&\"'!\"&G7178))","v":""},{"$f":"IF(ISBLANK(INDIRECT(\"'\"&F7178&\"'!\"&H7178)),\"\",IFERROR(VLOOKUP(TEXT(INDIRECT(\"'\"&F7178&\"'!\"&H7178),\"0\"),Notes!$B$5:$C$100,2,FALSE),\"\"))","v":""},"2b","$K$137","$L$137"]
[26498,{"$f":"Menu!$F$29","v":"X"},{"$f":"Menu!$J$29","v":2020},{"$f":"IF(ISBLANK(INDIRECT(\"'\"&F7179&\"'!\"&G7179)),\"\",INDIRECT(\"'\"&F7179&\"'!\"&G7179))","v":""},{"$f":"IF(ISBLANK(INDIRECT(\"'\"&F7179&\"'!\"&H7179)),\"\",IFERROR(VLOOKUP(TEXT(INDIRECT(\"'\"&F7179&\"'!\"&H7179),\"0\"),Notes!$B$5:$C$100,2,FALSE),\"\"))","v":""},"2b","$O$137","$P$137"]
[26499,{"$f":"Menu!$F$29","v":"X"},{"$f":"Menu!$J$29","v":2020},{"$f":"IF(ISBLANK(INDIRECT(\"'\"&F7180&\"'!\"&G7180)),\"\",INDIRECT(\"'\"&F7180&\"'!\"&G7180))","v":""},{"$f":"IF(ISBLANK(INDIRECT(\"'\"&F7180&\"'!\"&H7180)),\"\",IFERROR(VLOOKUP(TEXT(INDIRECT(\"'\"&F7180&\"'!\"&H7180),\"0\"),Notes!$B$5:$C$100,2,FALSE),\"\"))","v":""},"2b","$M$137","$N$137"]
[26500,{"$f":"Menu!$F$29","v":"X"},{"$f":"Menu!$J$29","v":2020},{"$f":"IF(ISBLANK(INDIRECT(\"'\"&F7181&\"'!\"&G7181)),\"\",INDIRECT(\"'\"&F7181&\"'!\"&G7181))","v":""},{"$f":"IF(ISBLANK(INDIRECT(\"'\"&F7181&\"'!\"&H7181)),\"\",IFERROR(VLOOKUP(TEXT(INDIRECT(\"'\"&F7181&\"'!\"&H7181),\"0\"),Notes!$B$5:$C$100,2,FALSE),\"\"))","v":""},"2b","$Q$137","$R$137"]
[26501,{"$f":"Menu!$F$29","v":"X"},{"$f":"Menu!$J$29","v":2020},{"$f":"IF(ISBLANK(INDIRECT(\"'\"&F7182&\"'!\"&G7182)),\"\",INDIRECT(\"'\"&F7182&\"'!\"&G7182))","v":""},{"$f":"IF(ISBLANK(INDIRECT(\"'\"&F7182&\"'!\"&H7182)),\"\",IFERROR(VLOOKUP(TEXT(INDIRECT(\"'\"&F7182&\"'!\"&H7182),\"0\"),Notes!$B$5:$C$100,2,FALSE),\"\"))","v":""},"2b","$U$137","$V$137"]
[26502,{"$f":"Menu!$F$29","v":"X"},{"$f":"Menu!$J$29","v":2020},{"$f":"IF(ISBLANK(INDIRECT(\"'\"&F7183&\"'!\"&G7183)),\"\",INDIRECT(\"'\"&F7183&\"'!\"&G7183))","v":""},{"$f":"IF(ISBLANK(INDIRECT(\"'\"&F7183&\"'!\"&H7183)),\"\",IFERROR(VLOOKUP(TEXT(INDIRECT(\"'\"&F7183&\"'!\"&H7183),\"0\"),Notes!$B$5:$C$100,2,FALSE),\"\"))","v":""},"2b","$S$137","$T$137"]
[26506,{"$f":"Menu!$F$29","v":"X"},{"$f":"Menu!$J$29","v":2020},{"$f":"IF(ISBLANK(INDIRECT(\"'\"&F7184&\"'!\"&G7184)),\"\",INDIRECT(\"'\"&F7184&\"'!\"&G7184))","v":""},{"$f":"IF(ISBLANK(INDIRECT(\"'\"&F7184&\"'!\"&H7184)),\"\",IFERROR(VLOOKUP(TEXT(INDIRECT(\"'\"&F7184&\"'!\"&H7184),\"0\"),Notes!$B$5:$C$100,2,FALSE),\"\"))","v":""},"2a","$I$137","$J$137"]
[26507,{"$f":"Menu!$F$29","v":"X"},{"$f":"Menu!$J$29","v":2020},{"$f":"IF(ISBLANK(INDIRECT(\"'\"&F7185&\"'!\"&G7185)),\"\",INDIRECT(\"'\"&F7185&\"'!\"&G7185))","v":""},{"$f":"IF(ISBLANK(INDIRECT(\"'\"&F7185&\"'!\"&H7185)),\"\",IFERROR(VLOOKUP(TEXT(INDIRECT(\"'\"&F7185&\"'!\"&H7185),\"0\"),Notes!$B$5:$C$100,2,FALSE),\"\"))","v":""},"2c","$E$137","$F$137"]
[26508,{"$f":"Menu!$F$29","v":"X"},{"$f":"Menu!$J$29","v":2020},{"$f":"IF(ISBLANK(INDIRECT(\"'\"&F7186&\"'!\"&G7186)),\"\",INDIRECT(\"'\"&F7186&\"'!\"&G7186))","v":""},{"$f":"IF(ISBLANK(INDIRECT(\"'\"&F7186&\"'!\"&H7186)),\"\",IFERROR(VLOOKUP(TEXT(INDIRECT(\"'\"&F7186&\"'!\"&H7186),\"0\"),Notes!$B$5:$C$100,2,FALSE),\"\"))","v":""},"2c","$I$137","$J$137"]
[26509,{"$f":"Menu!$F$29","v":"X"},{"$f":"Menu!$J$29","v":2020},{"$f":"IF(ISBLANK(INDIRECT(\"'\"&F7187&\"'!\"&G7187)),\"\",INDIRECT(\"'\"&F7187&\"'!\"&G7187))","v":""},{"$f":"IF(ISBLANK(INDIRECT(\"'\"&F7187&\"'!\"&H7187)),\"\",IFERROR(VLOOKUP(TEXT(INDIRECT(\"'\"&F7187&\"'!\"&H7187),\"0\"),Notes!$B$5:$C$100,2,FALSE),\"\"))","v":""},"2c","$G$137","$H$137"]
[26513,{"$f":"Menu!$F$29","v":"X"},{"$f":"Menu!$J$29","v":2020},{"$f":"IF(ISBLANK(INDIRECT(\"'\"&F7188&\"'!\"&G7188)),\"\",INDIRECT(\"'\"&F7188&\"'!\"&G7188))","v":""},{"$f":"IF(ISBLANK(INDIRECT(\"'\"&F7188&\"'!\"&H7188)),\"\",IFERROR(VLOOKUP(TEXT(INDIRECT(\"'\"&F7188&\"'!\"&H7188),\"0\"),Notes!$B$5:$C$100,2,FALSE),\"\"))","v":""},"2c","$K$137","$L$137"]
[26514,{"$f":"Menu!$F$29","v":"X"},{"$f":"Menu!$J$29","v":2020},{"$f":"IF(ISBLANK(INDIRECT(\"'\"&F7189&\"'!\"&G7189)),\"\",INDIRECT(\"'\"&F7189&\"'!\"&G7189))","v":""},{"$f":"IF(ISBLANK(INDIRECT(\"'\"&F7189&\"'!\"&H7189)),\"\",IFERROR(VLOOKUP(TEXT(INDIRECT(\"'\"&F7189&\"'!\"&H7189),\"0\"),Notes!$B$5:$C$100,2,FALSE),\"\"))","v":""},"2c","$O$137","$P$137"]
[26515,{"$f":"Menu!$F$29","v":"X"},{"$f":"Menu!$J$29","v":2020},{"$f":"IF(ISBLANK(INDIRECT(\"'\"&F7190&\"'!\"&G7190)),\"\",INDIRECT(\"'\"&F7190&\"'!\"&G7190))","v":""},{"$f":"IF(ISBLANK(INDIRECT(\"'\"&F7190&\"'!\"&H7190)),\"\",IFERROR(VLOOKUP(TEXT(INDIRECT(\"'\"&F7190&\"'!\"&H7190),\"0\"),Notes!$B$5:$C$100,2,FALSE),\"\"))","v":""},"2c","$M$137","$N$137"]
[26516,{"$f":"Menu!$F$29","v":"X"},{"$f":"Menu!$J$29","v":2020},{"$f":"IF(ISBLANK(INDIRECT(\"'\"&F7191&\"'!\"&G7191)),\"\",INDIRECT(\"'\"&F7191&\"'!\"&G7191))","v":""},{"$f":"IF(ISBLANK(INDIRECT(\"'\"&F7191&\"'!\"&H7191)),\"\",IFERROR(VLOOKUP(TEXT(INDIRECT(\"'\"&F7191&\"'!\"&H7191),\"0\"),Notes!$B$5:$C$100,2,FALSE),\"\"))","v":""},"2c","$Q$137","$R$137"]
[26517,{"$f":"Menu!$F$29","v":"X"},{"$f":"Menu!$J$29","v":2020},{"$f":"IF(ISBLANK(INDIRECT(\"'\"&F7192&\"'!\"&G7192)),\"\",INDIRECT(\"'\"&F7192&\"'!\"&G7192))","v":""},{"$f":"IF(ISBLANK(INDIRECT(\"'\"&F7192&\"'!\"&H7192)),\"\",IFERROR(VLOOKUP(TEXT(INDIRECT(\"'\"&F7192&\"'!\"&H7192),\"0\"),Notes!$B$5:$C$100,2,FALSE),\"\"))","v":""},"2c","$U$137","$V$137"]
[26518,{"$f":"Menu!$F$29","v":"X"},{"$f":"Menu!$J$29","v":2020},{"$f":"IF(ISBLANK(INDIRECT(\"'\"&F7193&\"'!\"&G7193)),\"\",INDIRECT(\"'\"&F7193&\"'!\"&G7193))","v":""},{"$f":"IF(ISBLANK(INDIRECT(\"'\"&F7193&\"'!\"&H7193)),\"\",IFERROR(VLOOKUP(TEXT(INDIRECT(\"'\"&F7193&\"'!\"&H7193),\"0\"),Notes!$B$5:$C$100,2,FALSE),\"\"))","v":""},"2c","$S$137","$T$137"]
[26519,{"$f":"Menu!$F$29","v":"X"},{"$f":"Menu!$J$29","v":2020},{"$f":"IF(ISBLANK(INDIRECT(\"'\"&F7194&\"'!\"&G7194)),\"\",INDIRECT(\"'\"&F7194&\"'!\"&G7194))","v":""},{"$f":"IF(ISBLANK(INDIRECT(\"'\"&F7194&\"'!\"&H7194)),\"\",IFERROR(VLOOKUP(TEXT(INDIRECT(\"'\"&F7194&\"'!\"&H7194),\"0\"),Notes!$B$5:$C$100,2,FALSE),\"\"))","v":""},"2c","$W$137","$X$137"]
[26520,{"$f":"Menu!$F$29","v":"X"},{"$f":"Menu!$J$29","v":2020},{"$f":"IF(ISBLANK(INDIRECT(\"'\"&F7195&\"'!\"&G7195)),\"\",INDIRECT(\"'\"&F7195&\"'!\"&G7195))","v":""},{"$f":"IF(ISBLANK(INDIRECT(\"'\"&F7195&\"'!\"&H7195)),\"\",IFERROR(VLOOKUP(TEXT(INDIRECT(\"'\"&F7195&\"'!\"&H7195),\"0\"),Notes!$B$5:$C$100,2,FALSE),\"\"))","v":""},"2c","$AA$137","$AB$137"]
[26521,{"$f":"Menu!$F$29","v":"X"},{"$f":"Menu!$J$29","v":2020},{"$f":"IF(ISBLANK(INDIRECT(\"'\"&F7196&\"'!\"&G7196)),\"\",INDIRECT(\"'\"&F7196&\"'!\"&G7196))","v":""},{"$f":"IF(ISBLANK(INDIRECT(\"'\"&F7196&\"'!\"&H7196)),\"\",IFERROR(VLOOKUP(TEXT(INDIRECT(\"'\"&F7196&\"'!\"&H7196),\"0\"),Notes!$B$5:$C$100,2,FALSE),\"\"))","v":""},"2c","$Y$137","$Z$137"]
[26528,{"$f":"Menu!$F$29","v":"X"},{"$f":"Menu!$J$29","v":2020},{"$f":"IF(ISBLANK(INDIRECT(\"'\"&F7197&\"'!\"&G7197)),\"\",INDIRECT(\"'\"&F7197&\"'!\"&G7197))","v":""},{"$f":"IF(ISBLANK(INDIRECT(\"'\"&F7197&\"'!\"&H7197)),\"\",IFERROR(VLOOKUP(TEXT(INDIRECT(\"'\"&F7197&\"'!\"&H7197),\"0\"),Notes!$B$5:$C$100,2,FALSE),\"\"))","v":""},"2e","$BG$138","$BH$138"]
[26529,{"$f":"Menu!$F$29","v":"X"},{"$f":"Menu!$J$29","v":2020},{"$f":"IF(ISBLANK(INDIRECT(\"'\"&F7198&\"'!\"&G7198)),\"\",INDIRECT(\"'\"&F7198&\"'!\"&G7198))","v":""},{"$f":"IF(ISBLANK(INDIRECT(\"'\"&F7198&\"'!\"&H7198)),\"\",IFERROR(VLOOKUP(TEXT(INDIRECT(\"'\"&F7198&\"'!\"&H7198),\"0\"),Notes!$B$5:$C$100,2,FALSE),\"\"))","v":""},"2e","$BK$138","$BL$138"]
[26530,{"$f":"Menu!$F$29","v":"X"},{"$f":"Menu!$J$29","v":2020},{"$f":"IF(ISBLANK(INDIRECT(\"'\"&F7199&\"'!\"&G7199)),\"\",INDIRECT(\"'\"&F7199&\"'!\"&G7199))","v":""},{"$f":"IF(ISBLANK(INDIRECT(\"'\"&F7199&\"'!\"&H7199)),\"\",IFERROR(VLOOKUP(TEXT(INDIRECT(\"'\"&F7199&\"'!\"&H7199),\"0\"),Notes!$B$5:$C$100,2,FALSE),\"\"))","v":""},"2e","$BI$138","$BJ$138"]
[26531,{"$f":"Menu!$F$29","v":"X"},{"$f":"Menu!$J$29","v":2020},{"$f":"IF(ISBLANK(INDIRECT(\"'\"&F7200&\"'!\"&G7200)),\"\",INDIRECT(\"'\"&F7200&\"'!\"&G7200))","v":""},{"$f":"IF(ISBLANK(INDIRECT(\"'\"&F7200&\"'!\"&H7200)),\"\",IFERROR(VLOOKUP(TEXT(INDIRECT(\"'\"&F7200&\"'!\"&H7200),\"0\"),Notes!$B$5:$C$100,2,FALSE),\"\"))","v":""},"2e","$E$138","$F$138"]
[26532,{"$f":"Menu!$F$29","v":"X"},{"$f":"Menu!$J$29","v":2020},{"$f":"IF(ISBLANK(INDIRECT(\"'\"&F7201&\"'!\"&G7201)),\"\",INDIRECT(\"'\"&F7201&\"'!\"&G7201))","v":""},{"$f":"IF(ISBLANK(INDIRECT(\"'\"&F7201&\"'!\"&H7201)),\"\",IFERROR(VLOOKUP(TEXT(INDIRECT(\"'\"&F7201&\"'!\"&H7201),\"0\"),Notes!$B$5:$C$100,2,FALSE),\"\"))","v":""},"2e","$I$138","$J$138"]
[26533,{"$f":"Menu!$F$29","v":"X"},{"$f":"Menu!$J$29","v":2020},{"$f":"IF(ISBLANK(INDIRECT(\"'\"&F7202&\"'!\"&G7202)),\"\",INDIRECT(\"'\"&F7202&\"'!\"&G7202))","v":""},{"$f":"IF(ISBLANK(INDIRECT(\"'\"&F7202&\"'!\"&H7202)),\"\",IFERROR(VLOOKUP(TEXT(INDIRECT(\"'\"&F7202&\"'!\"&H7202),\"0\"),Notes!$B$5:$C$100,2,FALSE),\"\"))","v":""},"2e","$G$138","$H$138"]
[26534,{"$f":"Menu!$F$29","v":"X"},{"$f":"Menu!$J$29","v":2020},{"$f":"IF(ISBLANK(INDIRECT(\"'\"&F7203&\"'!\"&G7203)),\"\",INDIRECT(\"'\"&F7203&\"'!\"&G7203))","v":""},{"$f":"IF(ISBLANK(INDIRECT(\"'\"&F7203&\"'!\"&H7203)),\"\",IFERROR(VLOOKUP(TEXT(INDIRECT(\"'\"&F7203&\"'!\"&H7203),\"0\"),Notes!$B$5:$C$100,2,FALSE),\"\"))","v":""},"2e","$K$138","$L$138"]
[26535,{"$f":"Menu!$F$29","v":"X"},{"$f":"Menu!$J$29","v":2020},{"$f":"IF(ISBLANK(INDIRECT(\"'\"&F7204&\"'!\"&G7204)),\"\",INDIRECT(\"'\"&F7204&\"'!\"&G7204))","v":""},{"$f":"IF(ISBLANK(INDIRECT(\"'\"&F7204&\"'!\"&H7204)),\"\",IFERROR(VLOOKUP(TEXT(INDIRECT(\"'\"&F7204&\"'!\"&H7204),\"0\"),Notes!$B$5:$C$100,2,FALSE),\"\"))","v":""},"2e","$O$138","$P$138"]
[26536,{"$f":"Menu!$F$29","v":"X"},{"$f":"Menu!$J$29","v":2020},{"$f":"IF(ISBLANK(INDIRECT(\"'\"&F7205&\"'!\"&G7205)),\"\",INDIRECT(\"'\"&F7205&\"'!\"&G7205))","v":""},{"$f":"IF(ISBLANK(INDIRECT(\"'\"&F7205&\"'!\"&H7205)),\"\",IFERROR(VLOOKUP(TEXT(INDIRECT(\"'\"&F7205&\"'!\"&H7205),\"0\"),Notes!$B$5:$C$100,2,FALSE),\"\"))","v":""},"2e","$M$138","$N$138"]
[26537,{"$f":"Menu!$F$29","v":"X"},{"$f":"Menu!$J$29","v":2020},{"$f":"IF(ISBLANK(INDIRECT(\"'\"&F7206&\"'!\"&G7206)),\"\",INDIRECT(\"'\"&F7206&\"'!\"&G7206))","v":""},{"$f":"IF(ISBLANK(INDIRECT(\"'\"&F7206&\"'!\"&H7206)),\"\",IFERROR(VLOOKUP(TEXT(INDIRECT(\"'\"&F7206&\"'!\"&H7206),\"0\"),Notes!$B$5:$C$100,2,FALSE),\"\"))","v":""},"2e","$Q$138","$R$138"]
[26538,{"$f":"Menu!$F$29","v":"X"},{"$f":"Menu!$J$29","v":2020},{"$f":"IF(ISBLANK(INDIRECT(\"'\"&F7207&\"'!\"&G7207)),\"\",INDIRECT(\"'\"&F7207&\"'!\"&G7207))","v":""},{"$f":"IF(ISBLANK(INDIRECT(\"'\"&F7207&\"'!\"&H7207)),\"\",IFERROR(VLOOKUP(TEXT(INDIRECT(\"'\"&F7207&\"'!\"&H7207),\"0\"),Notes!$B$5:$C$100,2,FALSE),\"\"))","v":""},"2e","$U$138","$V$138"]
[26539,{"$f":"Menu!$F$29","v":"X"},{"$f":"Menu!$J$29","v":2020},{"$f":"IF(ISBLANK(INDIRECT(\"'\"&F7208&\"'!\"&G7208)),\"\",INDIRECT(\"'\"&F7208&\"'!\"&G7208))","v":""},{"$f":"IF(ISBLANK(INDIRECT(\"'\"&F7208&\"'!\"&H7208)),\"\",IFERROR(VLOOKUP(TEXT(INDIRECT(\"'\"&F7208&\"'!\"&H7208),\"0\"),Notes!$B$5:$C$100,2,FALSE),\"\"))","v":""},"2e","$S$138","$T$138"]
[26540,{"$f":"Menu!$F$29","v":"X"},{"$f":"Menu!$J$29","v":2020},{"$f":"IF(ISBLANK(INDIRECT(\"'\"&F7209&\"'!\"&G7209)),\"\",INDIRECT(\"'\"&F7209&\"'!\"&G7209))","v":""},{"$f":"IF(ISBLANK(INDIRECT(\"'\"&F7209&\"'!\"&H7209)),\"\",IFERROR(VLOOKUP(TEXT(INDIRECT(\"'\"&F7209&\"'!\"&H7209),\"0\"),Notes!$B$5:$C$100,2,FALSE),\"\"))","v":""},"2e","$W$138","$X$138"]
[26541,{"$f":"Menu!$F$29","v":"X"},{"$f":"Menu!$J$29","v":2020},{"$f":"IF(ISBLANK(INDIRECT(\"'\"&F7210&\"'!\"&G7210)),\"\",INDIRECT(\"'\"&F7210&\"'!\"&G7210))","v":""},{"$f":"IF(ISBLANK(INDIRECT(\"'\"&F7210&\"'!\"&H7210)),\"\",IFERROR(VLOOKUP(TEXT(INDIRECT(\"'\"&F7210&\"'!\"&H7210),\"0\"),Notes!$B$5:$C$100,2,FALSE),\"\"))","v":""},"2e","$AA$138","$AB$138"]
[26542,{"$f":"Menu!$F$29","v":"X"},{"$f":"Menu!$J$29","v":2020},{"$f":"IF(ISBLANK(INDIRECT(\"'\"&F7211&\"'!\"&G7211)),\"\",INDIRECT(\"'\"&F7211&\"'!\"&G7211))","v":""},{"$f":"IF(ISBLANK(INDIRECT(\"'\"&F7211&\"'!\"&H7211)),\"\",IFERROR(VLOOKUP(TEXT(INDIRECT(\"'\"&F7211&\"'!\"&H7211),\"0\"),Notes!$B$5:$C$100,2,FALSE),\"\"))","v":""},"2e","$Y$138","$Z$138"]
[26543,{"$f":"Menu!$F$29","v":"X"},{"$f":"Menu!$J$29","v":2020},{"$f":"IF(ISBLANK(INDIRECT(\"'\"&F7212&\"'!\"&G7212)),\"\",INDIRECT(\"'\"&F7212&\"'!\"&G7212))","v":""},{"$f":"IF(ISBLANK(INDIRECT(\"'\"&F7212&\"'!\"&H7212)),\"\",IFERROR(VLOOKUP(TEXT(INDIRECT(\"'\"&F7212&\"'!\"&H7212),\"0\"),Notes!$B$5:$C$100,2,FALSE),\"\"))","v":""},"2e","$AC$138","$AD$138"]
[26544,{"$f":"Menu!$F$29","v":"X"},{"$f":"Menu!$J$29","v":2020},{"$f":"IF(ISBLANK(INDIRECT(\"'\"&F7213&\"'!\"&G7213)),\"\",INDIRECT(\"'\"&F7213&\"'!\"&G7213))","v":""},{"$f":"IF(ISBLANK(INDIRECT(\"'\"&F7213&\"'!\"&H7213)),\"\",IFERROR(VLOOKUP(TEXT(INDIRECT(\"'\"&F7213&\"'!\"&H7213),\"0\"),Notes!$B$5:$C$100,2,FALSE),\"\"))","v":""},"2e","$AG$138","$AH$138"]
[26545,{"$f":"Menu!$F$29","v":"X"},{"$f":"Menu!$J$29","v":2020},{"$f":"IF(ISBLANK(INDIRECT(\"'\"&F7214&\"'!\"&G7214)),\"\",INDIRECT(\"'\"&F7214&\"'!\"&G7214))","v":""},{"$f":"IF(ISBLANK(INDIRECT(\"'\"&F7214&\"'!\"&H7214)),\"\",IFERROR(VLOOKUP(TEXT(INDIRECT(\"'\"&F7214&\"'!\"&H7214),\"0\"),Notes!$B$5:$C$100,2,FALSE),\"\"))","v":""},"2e","$AE$138","$AF$138"]
[26546,{"$f":"Menu!$F$29","v":"X"},{"$f":"Menu!$J$29","v":2020},{"$f":"IF(ISBLANK(INDIRECT(\"'\"&F7215&\"'!\"&G7215)),\"\",INDIRECT(\"'\"&F7215&\"'!\"&G7215))","v":""},{"$f":"IF(ISBLANK(INDIRECT(\"'\"&F7215&\"'!\"&H7215)),\"\",IFERROR(VLOOKUP(TEXT(INDIRECT(\"'\"&F7215&\"'!\"&H7215),\"0\"),Notes!$B$5:$C$100,2,FALSE),\"\"))","v":""},"2e","$AI$138","$AJ$138"]
[26547,{"$f":"Menu!$F$29","v":"X"},{"$f":"Menu!$J$29","v":2020},{"$f":"IF(ISBLANK(INDIRECT(\"'\"&F7216&\"'!\"&G7216)),\"\",INDIRECT(\"'\"&F7216&\"'!\"&G7216))","v":""},{"$f":"IF(ISBLANK(INDIRECT(\"'\"&F7216&\"'!\"&H7216)),\"\",IFERROR(VLOOKUP(TEXT(INDIRECT(\"'\"&F7216&\"'!\"&H7216),\"0\"),Notes!$B$5:$C$100,2,FALSE),\"\"))","v":""},"2e","$AM$138","$AN$138"]
[26548,{"$f":"Menu!$F$29","v":"X"},{"$f":"Menu!$J$29","v":2020},{"$f":"IF(ISBLANK(INDIRECT(\"'\"&F7217&\"'!\"&G7217)),\"\",INDIRECT(\"'\"&F7217&\"'!\"&G7217))","v":""},{"$f":"IF(ISBLANK(INDIRECT(\"'\"&F7217&\"'!\"&H7217)),\"\",IFERROR(VLOOKUP(TEXT(INDIRECT(\"'\"&F7217&\"'!\"&H7217),\"0\"),Notes!$B$5:$C$100,2,FALSE),\"\"))","v":""},"2e","$AK$138","$AL$138"]
[26549,{"$f":"Menu!$F$29","v":"X"},{"$f":"Menu!$J$29","v":2020},{"$f":"IF(ISBLANK(INDIRECT(\"'\"&F7218&\"'!\"&G7218)),\"\",INDIRECT(\"'\"&F7218&\"'!\"&G7218))","v":""},{"$f":"IF(ISBLANK(INDIRECT(\"'\"&F7218&\"'!\"&H7218)),\"\",IFERROR(VLOOKUP(TEXT(INDIRECT(\"'\"&F7218&\"'!\"&H7218),\"0\"),Notes!$B$5:$C$100,2,FALSE),\"\"))","v":""},"2e","$AO$138","$AP$138"]
[26550,{"$f":"Menu!$F$29","v":"X"},{"$f":"Menu!$J$29","v":2020},{"$f":"IF(ISBLANK(INDIRECT(\"'\"&F7219&\"'!\"&G7219)),\"\",INDIRECT(\"'\"&F7219&\"'!\"&G7219))","v":""},{"$f":"IF(ISBLANK(INDIRECT(\"'\"&F7219&\"'!\"&H7219)),\"\",IFERROR(VLOOKUP(TEXT(INDIRECT(\"'\"&F7219&\"'!\"&H7219),\"0\"),Notes!$B$5:$C$100,2,FALSE),\"\"))","v":""},"2e","$AS$138","$AT$138"]
[26551,{"$f":"Menu!$F$29","v":"X"},{"$f":"Menu!$J$29","v":2020},{"$f":"IF(ISBLANK(INDIRECT(\"'\"&F7220&\"'!\"&G7220)),\"\",INDIRECT(\"'\"&F7220&\"'!\"&G7220))","v":""},{"$f":"IF(ISBLANK(INDIRECT(\"'\"&F7220&\"'!\"&H7220)),\"\",IFERROR(VLOOKUP(TEXT(INDIRECT(\"'\"&F7220&\"'!\"&H7220),\"0\"),Notes!$B$5:$C$100,2,FALSE),\"\"))","v":""},"2e","$AQ$138","$AR$138"]
[26552,{"$f":"Menu!$F$29","v":"X"},{"$f":"Menu!$J$29","v":2020},{"$f":"IF(ISBLANK(INDIRECT(\"'\"&F7221&\"'!\"&G7221)),\"\",INDIRECT(\"'\"&F7221&\"'!\"&G7221))","v":""},{"$f":"IF(ISBLANK(INDIRECT(\"'\"&F7221&\"'!\"&H7221)),\"\",IFERROR(VLOOKUP(TEXT(INDIRECT(\"'\"&F7221&\"'!\"&H7221),\"0\"),Notes!$B$5:$C$100,2,FALSE),\"\"))","v":""},"2e","$AU$138","$AV$138"]
[26553,{"$f":"Menu!$F$29","v":"X"},{"$f":"Menu!$J$29","v":2020},{"$f":"IF(ISBLANK(INDIRECT(\"'\"&F7222&\"'!\"&G7222)),\"\",INDIRECT(\"'\"&F7222&\"'!\"&G7222))","v":""},{"$f":"IF(ISBLANK(INDIRECT(\"'\"&F7222&\"'!\"&H7222)),\"\",IFERROR(VLOOKUP(TEXT(INDIRECT(\"'\"&F7222&\"'!\"&H7222),\"0\"),Notes!$B$5:$C$100,2,FALSE),\"\"))","v":""},"2e","$AY$138","$AZ$138"]
[26554,{"$f":"Menu!$F$29","v":"X"},{"$f":"Menu!$J$29","v":2020},{"$f":"IF(ISBLANK(INDIRECT(\"'\"&F7223&\"'!\"&G7223)),\"\",INDIRECT(\"'\"&F7223&\"'!\"&G7223))","v":""},{"$f":"IF(ISBLANK(INDIRECT(\"'\"&F7223&\"'!\"&H7223)),\"\",IFERROR(VLOOKUP(TEXT(INDIRECT(\"'\"&F7223&\"'!\"&H7223),\"0\"),Notes!$B$5:$C$100,2,FALSE),\"\"))","v":""},"2e","$AW$138","$AX$138"]
[26555,{"$f":"Menu!$F$29","v":"X"},{"$f":"Menu!$J$29","v":2020},{"$f":"IF(ISBLANK(INDIRECT(\"'\"&F7224&\"'!\"&G7224)),\"\",INDIRECT(\"'\"&F7224&\"'!\"&G7224))","v":""},{"$f":"IF(ISBLANK(INDIRECT(\"'\"&F7224&\"'!\"&H7224)),\"\",IFERROR(VLOOKUP(TEXT(INDIRECT(\"'\"&F7224&\"'!\"&H7224),\"0\"),Notes!$B$5:$C$100,2,FALSE),\"\"))","v":""},"2e","$BA$138","$BB$138"]
[26556,{"$f":"Menu!$F$29","v":"X"},{"$f":"Menu!$J$29","v":2020},{"$f":"IF(ISBLANK(INDIRECT(\"'\"&F7225&\"'!\"&G7225)),\"\",INDIRECT(\"'\"&F7225&\"'!\"&G7225))","v":""},{"$f":"IF(ISBLANK(INDIRECT(\"'\"&F7225&\"'!\"&H7225)),\"\",IFERROR(VLOOKUP(TEXT(INDIRECT(\"'\"&F7225&\"'!\"&H7225),\"0\"),Notes!$B$5:$C$100,2,FALSE),\"\"))","v":""},"2e","$BE$138","$BF$138"]
[26557,{"$f":"Menu!$F$29","v":"X"},{"$f":"Menu!$J$29","v":2020},{"$f":"IF(ISBLANK(INDIRECT(\"'\"&F7226&\"'!\"&G7226)),\"\",INDIRECT(\"'\"&F7226&\"'!\"&G7226))","v":""},{"$f":"IF(ISBLANK(INDIRECT(\"'\"&F7226&\"'!\"&H7226)),\"\",IFERROR(VLOOKUP(TEXT(INDIRECT(\"'\"&F7226&\"'!\"&H7226),\"0\"),Notes!$B$5:$C$100,2,FALSE),\"\"))","v":""},"2e","$BC$138","$BD$138"]
[26558,{"$f":"Menu!$F$29","v":"X"},{"$f":"Menu!$J$29","v":2020},{"$f":"IF(ISBLANK(INDIRECT(\"'\"&F7227&\"'!\"&G7227)),\"\",INDIRECT(\"'\"&F7227&\"'!\"&G7227))","v":""},{"$f":"IF(ISBLANK(INDIRECT(\"'\"&F7227&\"'!\"&H7227)),\"\",IFERROR(VLOOKUP(TEXT(INDIRECT(\"'\"&F7227&\"'!\"&H7227),\"0\"),Notes!$B$5:$C$100,2,FALSE),\"\"))","v":""},"2b","$E$137","$F$137"]
[26559,{"$f":"Menu!$F$29","v":"X"},{"$f":"Menu!$J$29","v":2020},{"$f":"IF(ISBLANK(INDIRECT(\"'\"&F7228&\"'!\"&G7228)),\"\",INDIRECT(\"'\"&F7228&\"'!\"&G7228))","v":""},{"$f":"IF(ISBLANK(INDIRECT(\"'\"&F7228&\"'!\"&H7228)),\"\",IFERROR(VLOOKUP(TEXT(INDIRECT(\"'\"&F7228&\"'!\"&H7228),\"0\"),Notes!$B$5:$C$100,2,FALSE),\"\"))","v":""},"2b","$I$137","$J$137"]
[26560,{"$f":"Menu!$F$29","v":"X"},{"$f":"Menu!$J$29","v":2020},{"$f":"IF(ISBLANK(INDIRECT(\"'\"&F7229&\"'!\"&G7229)),\"\",INDIRECT(\"'\"&F7229&\"'!\"&G7229))","v":""},{"$f":"IF(ISBLANK(INDIRECT(\"'\"&F7229&\"'!\"&H7229)),\"\",IFERROR(VLOOKUP(TEXT(INDIRECT(\"'\"&F7229&\"'!\"&H7229),\"0\"),Notes!$B$5:$C$100,2,FALSE),\"\"))","v":""},"2b","$G$137","$H$137"]
[26561,{"$f":"Menu!$F$29","v":"X"},{"$f":"Menu!$J$29","v":2020},{"$f":"IF(ISBLANK(INDIRECT(\"'\"&F7230&\"'!\"&G7230)),\"\",INDIRECT(\"'\"&F7230&\"'!\"&G7230))","v":""},null,"2a","$G$137","$H$137"]
[26562,{"$f":"Menu!$F$29","v":"X"},{"$f":"Menu!$J$29","v":2020},{"$f":"IF(ISBLANK(INDIRECT(\"'\"&F7231&\"'!\"&G7231)),\"\",INDIRECT(\"'\"&F7231&\"'!\"&G7231))","v":""},{"$f":"IF(ISBLANK(INDIRECT(\"'\"&F7231&\"'!\"&H7231)),\"\",IFERROR(VLOOKUP(TEXT(INDIRECT(\"'\"&F7231&\"'!\"&H7231),\"0\"),Notes!$B$5:$C$100,2,FALSE),\"\"))","v":""},"2b","$W$137","$X$137"]
[26563,{"$f":"Menu!$F$29","v":"X"},{"$f":"Menu!$J$29","v":2020},{"$f":"IF(ISBLANK(INDIRECT(\"'\"&F7232&\"'!\"&G7232)),\"\",INDIRECT(\"'\"&F7232&\"'!\"&G7232))","v":""},{"$f":"IF(ISBLANK(INDIRECT(\"'\"&F7232&\"'!\"&H7232)),\"\",IFERROR(VLOOKUP(TEXT(INDIRECT(\"'\"&F7232&\"'!\"&H7232),\"0\"),Notes!$B$5:$C$100,2,FALSE),\"\"))","v":""},"2b","$AA$137","$AB$137"]
[26564,{"$f":"Menu!$F$29","v":"X"},{"$f":"Menu!$J$29","v":2020},{"$f":"IF(ISBLANK(INDIRECT(\"'\"&F7233&\"'!\"&G7233)),\"\",INDIRECT(\"'\"&F7233&\"'!\"&G7233))","v":""},{"$f":"IF(ISBLANK(INDIRECT(\"'\"&F7233&\"'!\"&H7233)),\"\",IFERROR(VLOOKUP(TEXT(INDIRECT(\"'\"&F7233&\"'!\"&H7233),\"0\"),Notes!$B$5:$C$100,2,FALSE),\"\"))","v":""},"2b","$Y$137","$Z$137"]
[26565,{"$f":"Menu!$F$29","v":"X"},{"$f":"Menu!$J$29","v":2020},{"$f":"IF(ISBLANK(INDIRECT(\"'\"&F7234&\"'!\"&G7234)),\"\",INDIRECT(\"'\"&F7234&\"'!\"&G7234))","v":""},{"$f":"IF(ISBLANK(INDIRECT(\"'\"&F7234&\"'!\"&H7234)),\"\",IFERROR(VLOOKUP(TEXT(INDIRECT(\"'\"&F7234&\"'!\"&H7234),\"0\"),Notes!$B$5:$C$100,2,FALSE),\"\"))","v":""},"2d","$AC$137",{"$f":"IF(LEN(TRIM(MID(G7234,4,10)))-LEN(SUBSTITUTE(TRIM(MID(G7234,4,10)),\"$\",\"\"))=0,\"$\"&CHAR(CODE(MID(G7234,2,1))+1)&\"$\"&TRIM(MID(G7234,4,10)),\"$\"&MID(G7234,2,1)&CHAR(CODE(MID(G7234,3,1))+1)&\"$\"&TRIM(MID(G7234,5,11)))","v":"$AD$137"}]
[26566,{"$f":"Menu!$F$29","v":"X"},{"$f":"Menu!$J$29","v":2020},{"$f":"IF(ISBLANK(INDIRECT(\"'\"&F7235&\"'!\"&G7235)),\"\",INDIRECT(\"'\"&F7235&\"'!\"&G7235))","v":""},{"$f":"IF(ISBLANK(INDIRECT(\"'\"&F7235&\"'!\"&H7235)),\"\",IFERROR(VLOOKUP(TEXT(INDIRECT(\"'\"&F7235&\"'!\"&H7235),\"0\"),Notes!$B$5:$C$100,2,FALSE),\"\"))","v":""},"2d","$AG$137","$AH$137"]
[26567,{"$f":"Menu!$F$29","v":"X"},{"$f":"Menu!$J$29","v":2020},{"$f":"IF(ISBLANK(INDIRECT(\"'\"&F7236&\"'!\"&G7236)),\"\",INDIRECT(\"'\"&F7236&\"'!\"&G7236))","v":""},{"$f":"IF(ISBLANK(INDIRECT(\"'\"&F7236&\"'!\"&H7236)),\"\",IFERROR(VLOOKUP(TEXT(INDIRECT(\"'\"&F7236&\"'!\"&H7236),\"0\"),Notes!$B$5:$C$100,2,FALSE),\"\"))","v":""},"2d","$AE$137","$AF$137"]
[26568,{"$f":"Menu!$F$29","v":"X"},{"$f":"Menu!$J$29","v":2020},{"$f":"IF(ISBLANK(INDIRECT(\"'\"&F7237&\"'!\"&G7237)),\"\",INDIRECT(\"'\"&F7237&\"'!\"&G7237))","v":""},{"$f":"IF(ISBLANK(INDIRECT(\"'\"&F7237&\"'!\"&H7237)),\"\",IFERROR(VLOOKUP(TEXT(INDIRECT(\"'\"&F7237&\"'!\"&H7237),\"0\"),Notes!$B$5:$C$100,2,FALSE),\"\"))","v":""},"2d","$W$137","$X$137"]
[26569,{"$f":"Menu!$F$29","v":"X"},{"$f":"Menu!$J$29","v":2020},{"$f":"IF(ISBLANK(INDIRECT(\"'\"&F7238&\"'!\"&G7238)),\"\",INDIRECT(\"'\"&F7238&\"'!\"&G7238))","v":""},{"$f":"IF(ISBLANK(INDIRECT(\"'\"&F7238&\"'!\"&H7238)),\"\",IFERROR(VLOOKUP(TEXT(INDIRECT(\"'\"&F7238&\"'!\"&H7238),\"0\"),Notes!$B$5:$C$100,2,FALSE),\"\"))","v":""},"2d","$AA$137","$AB$137"]
[26570,{"$f":"Menu!$F$29","v":"X"},{"$f":"Menu!$J$29","v":2020},{"$f":"IF(ISBLANK(INDIRECT(\"'\"&F7239&\"'!\"&G7239)),\"\",INDIRECT(\"'\"&F7239&\"'!\"&G7239))","v":""},{"$f":"IF(ISBLANK(INDIRECT(\"'\"&F7239&\"'!\"&H7239)),\"\",IFERROR(VLOOKUP(TEXT(INDIRECT(\"'\"&F7239&\"'!\"&H7239),\"0\"),Notes!$B$5:$C$100,2,FALSE),\"\"))","v":""},"2d","$Y$137","$Z$137"]
[26571,{"$f":"Menu!$F$29","v":"X"},{"$f":"Menu!$J$29","v":2020},{"$f":"IF(ISBLANK(INDIRECT(\"'\"&F7240&\"'!\"&G7240)),\"\",INDIRECT(\"'\"&F7240&\"'!\"&G7240))","v":""},{"$f":"IF(ISBLANK(INDIRECT(\"'\"&F7240&\"'!\"&H7240)),\"\",IFERROR(VLOOKUP(TEXT(INDIRECT(\"'\"&F7240&\"'!\"&H7240),\"0\"),Notes!$B$5:$C$100,2,FALSE),\"\"))","v":""},"2d","$E$137","$F$137"]
[26572,{"$f":"Menu!$F$29","v":"X"},{"$f":"Menu!$J$29","v":2020},{"$f":"IF(ISBLANK(INDIRECT(\"'\"&F7241&\"'!\"&G7241)),\"\",INDIRECT(\"'\"&F7241&\"'!\"&G7241))","v":""},{"$f":"IF(ISBLANK(INDIRECT(\"'\"&F7241&\"'!\"&H7241)),\"\",IFERROR(VLOOKUP(TEXT(INDIRECT(\"'\"&F7241&\"'!\"&H7241),\"0\"),Notes!$B$5:$C$100,2,FALSE),\"\"))","v":""},"2d","$I$137","$J$137"]
[26573,{"$f":"Menu!$F$29","v":"X"},{"$f":"Menu!$J$29","v":2020},{"$f":"IF(ISBLANK(INDIRECT(\"'\"&F7242&\"'!\"&G7242)),\"\",INDIRECT(\"'\"&F7242&\"'!\"&G7242))","v":""},{"$f":"IF(ISBLANK(INDIRECT(\"'\"&F7242&\"'!\"&H7242)),\"\",IFERROR(VLOOKUP(TEXT(INDIRECT(\"'\"&F7242&\"'!\"&H7242),\"0\"),Notes!$B$5:$C$100,2,FALSE),\"\"))","v":""},"2d","$G$137","$H$137"]
[26574,{"$f":"Menu!$F$29","v":"X"},{"$f":"Menu!$J$29","v":2020},{"$f":"IF(ISBLANK(INDIRECT(\"'\"&F7243&\"'!\"&G7243)),\"\",INDIRECT(\"'\"&F7243&\"'!\"&G7243))","v":""},{"$f":"IF(ISBLANK(INDIRECT(\"'\"&F7243&\"'!\"&H7243)),\"\",IFERROR(VLOOKUP(TEXT(INDIRECT(\"'\"&F7243&\"'!\"&H7243),\"0\"),Notes!$B$5:$C$100,2,FALSE),\"\"))","v":""},"2a","$Q$137","$R$137"]
[26575,{"$f":"Menu!$F$29","v":"X"},{"$f":"Menu!$J$29","v":2020},{"$f":"IF(ISBLANK(INDIRECT(\"'\"&F7244&\"'!\"&G7244)),\"\",INDIRECT(\"'\"&F7244&\"'!\"&G7244))","v":""},{"$f":"IF(ISBLANK(INDIRECT(\"'\"&F7244&\"'!\"&H7244)),\"\",IFERROR(VLOOKUP(TEXT(INDIRECT(\"'\"&F7244&\"'!\"&H7244),\"0\"),Notes!$B$5:$C$100,2,FALSE),\"\"))","v":""},"2a","$U$137","$V$137"]
[26576,{"$f":"Menu!$F$29","v":"X"},{"$f":"Menu!$J$29","v":2020},{"$f":"IF(ISBLANK(INDIRECT(\"'\"&F7245&\"'!\"&G7245)),\"\",INDIRECT(\"'\"&F7245&\"'!\"&G7245))","v":""},{"$f":"IF(ISBLANK(INDIRECT(\"'\"&F7245&\"'!\"&H7245)),\"\",IFERROR(VLOOKUP(TEXT(INDIRECT(\"'\"&F7245&\"'!\"&H7245),\"0\"),Notes!$B$5:$C$100,2,FALSE),\"\"))","v":""},"2a","$S$137","$T$137"]
[26577,{"$f":"Menu!$F$29","v":"X"},{"$f":"Menu!$J$29","v":2020},{"$f":"IF(ISBLANK(INDIRECT(\"'\"&F7246&\"'!\"&G7246)),\"\",INDIRECT(\"'\"&F7246&\"'!\"&G7246))","v":""},{"$f":"IF(ISBLANK(INDIRECT(\"'\"&F7246&\"'!\"&H7246)),\"\",IFERROR(VLOOKUP(TEXT(INDIRECT(\"'\"&F7246&\"'!\"&H7246),\"0\"),Notes!$B$5:$C$100,2,FALSE),\"\"))","v":""},"2d","$K$137","$L$137"]
[26578,{"$f":"Menu!$F$29","v":"X"},{"$f":"Menu!$J$29","v":2020},{"$f":"IF(ISBLANK(INDIRECT(\"'\"&F7247&\"'!\"&G7247)),\"\",INDIRECT(\"'\"&F7247&\"'!\"&G7247))","v":""},{"$f":"IF(ISBLANK(INDIRECT(\"'\"&F7247&\"'!\"&H7247)),\"\",IFERROR(VLOOKUP(TEXT(INDIRECT(\"'\"&F7247&\"'!\"&H7247),\"0\"),Notes!$B$5:$C$100,2,FALSE),\"\"))","v":""},"2d","$O$137","$P$137"]
[26579,{"$f":"Menu!$F$29","v":"X"},{"$f":"Menu!$J$29","v":2020},{"$f":"IF(ISBLANK(INDIRECT(\"'\"&F7248&\"'!\"&G7248)),\"\",INDIRECT(\"'\"&F7248&\"'!\"&G7248))","v":""},{"$f":"IF(ISBLANK(INDIRECT(\"'\"&F7248&\"'!\"&H7248)),\"\",IFERROR(VLOOKUP(TEXT(INDIRECT(\"'\"&F7248&\"'!\"&H7248),\"0\"),Notes!$B$5:$C$100,2,FALSE),\"\"))","v":""},"2d","$M$137","$N$137"]
[26580,{"$f":"Menu!$F$29","v":"X"},{"$f":"Menu!$J$29","v":2020},{"$f":"IF(ISBLANK(INDIRECT(\"'\"&F7249&\"'!\"&G7249)),\"\",INDIRECT(\"'\"&F7249&\"'!\"&G7249))","v":""},{"$f":"IF(ISBLANK(INDIRECT(\"'\"&F7249&\"'!\"&H7249)),\"\",IFERROR(VLOOKUP(TEXT(INDIRECT(\"'\"&F7249&\"'!\"&H7249),\"0\"),Notes!$B$5:$C$100,2,FALSE),\"\"))","v":""},"2d","$Q$137","$R$137"]
[26581,{"$f":"Menu!$F$29","v":"X"},{"$f":"Menu!$J$29","v":2020},{"$f":"IF(ISBLANK(INDIRECT(\"'\"&F7250&\"'!\"&G7250)),\"\",INDIRECT(\"'\"&F7250&\"'!\"&G7250))","v":""},{"$f":"IF(ISBLANK(INDIRECT(\"'\"&F7250&\"'!\"&H7250)),\"\",IFERROR(VLOOKUP(TEXT(INDIRECT(\"'\"&F7250&\"'!\"&H7250),\"0\"),Notes!$B$5:$C$100,2,FALSE),\"\"))","v":""},"2d","$U$137","$V$137"]
[26582,{"$f":"Menu!$F$29","v":"X"},{"$f":"Menu!$J$29","v":2020},{"$f":"IF(ISBLANK(INDIRECT(\"'\"&F7251&\"'!\"&G7251)),\"\",INDIRECT(\"'\"&F7251&\"'!\"&G7251))","v":""},{"$f":"IF(ISBLANK(INDIRECT(\"'\"&F7251&\"'!\"&H7251)),\"\",IFERROR(VLOOKUP(TEXT(INDIRECT(\"'\"&F7251&\"'!\"&H7251),\"0\"),Notes!$B$5:$C$100,2,FALSE),\"\"))","v":""},"2d","$S$137","$T$137"]
[26583,{"$f":"Menu!$F$29","v":"X"},{"$f":"Menu!$J$29","v":2020},{"$f":"IF(ISBLANK(INDIRECT(\"'\"&F7252&\"'!\"&G7252)),\"\",INDIRECT(\"'\"&F7252&\"'!\"&G7252))","v":""},null,"2a","$K$137","$L$137"]
[26584,{"$f":"Menu!$F$29","v":"X"},{"$f":"Menu!$J$29","v":2020},{"$f":"IF(ISBLANK(INDIRECT(\"'\"&F7253&\"'!\"&G7253)),\"\",INDIRECT(\"'\"&F7253&\"'!\"&G7253))","v":""},{"$f":"IF(ISBLANK(INDIRECT(\"'\"&F7253&\"'!\"&H7253)),\"\",IFERROR(VLOOKUP(TEXT(INDIRECT(\"'\"&F7253&\"'!\"&H7253),\"0\"),Notes!$B$5:$C$100,2,FALSE),\"\"))","v":""},"2a","$O$137","$P$137"]
[26585,{"$f":"Menu!$F$29","v":"X"},{"$f":"Menu!$J$29","v":2020},{"$f":"IF(ISBLANK(INDIRECT(\"'\"&F7254&\"'!\"&G7254)),\"\",INDIRECT(\"'\"&F7254&\"'!\"&G7254))","v":""},{"$f":"IF(ISBLANK(INDIRECT(\"'\"&F7254&\"'!\"&H7254)),\"\",IFERROR(VLOOKUP(TEXT(INDIRECT(\"'\"&F7254&\"'!\"&H7254),\"0\"),Notes!$B$5:$C$100,2,FALSE),\"\"))","v":""},"2a","$M$137","$N$137"]
[26586,{"$f":"Menu!$F$29","v":"X"},{"$f":"Menu!$J$29","v":2020},{"$f":"IF(ISBLANK(INDIRECT(\"'\"&F7255&\"'!\"&G7255)),\"\",INDIRECT(\"'\"&F7255&\"'!\"&G7255))","v":""},{"$f":"IF(ISBLANK(INDIRECT(\"'\"&F7255&\"'!\"&H7255)),\"\",IFERROR(VLOOKUP(TEXT(INDIRECT(\"'\"&F7255&\"'!\"&H7255),\"0\"),Notes!$B$5:$C$100,2,FALSE),\"\"))","v":""},"2a","$E$137","$F$137"]
[26587,{"$f":"Menu!$F$29","v":"X"},{"$f":"Menu!$J$29","v":2020},{"$f":"IF(ISBLANK(INDIRECT(\"'\"&F7256&\"'!\"&G7256)),\"\",INDIRECT(\"'\"&F7256&\"'!\"&G7256))","v":""},{"$f":"IF(ISBLANK(INDIRECT(\"'\"&F7256&\"'!\"&H7256)),\"\",IFERROR(VLOOKUP(TEXT(INDIRECT(\"'\"&F7256&\"'!\"&H7256),\"0\"),Notes!$B$5:$C$100,2,FALSE),\"\"))","v":""},"2b","$K$138","$L$138"]
[26588,{"$f":"Menu!$F$29","v":"X"},{"$f":"Menu!$J$29","v":2020},{"$f":"IF(ISBLANK(INDIRECT(\"'\"&F7257&\"'!\"&G7257)),\"\",INDIRECT(\"'\"&F7257&\"'!\"&G7257))","v":""},{"$f":"IF(ISBLANK(INDIRECT(\"'\"&F7257&\"'!\"&H7257)),\"\",IFERROR(VLOOKUP(TEXT(INDIRECT(\"'\"&F7257&\"'!\"&H7257),\"0\"),Notes!$B$5:$C$100,2,FALSE),\"\"))","v":""},"2b","$O$138","$P$138"]
[26589,{"$f":"Menu!$F$29","v":"X"},{"$f":"Menu!$J$29","v":2020},{"$f":"IF(ISBLANK(INDIRECT(\"'\"&F7258&\"'!\"&G7258)),\"\",INDIRECT(\"'\"&F7258&\"'!\"&G7258))","v":""},{"$f":"IF(ISBLANK(INDIRECT(\"'\"&F7258&\"'!\"&H7258)),\"\",IFERROR(VLOOKUP(TEXT(INDIRECT(\"'\"&F7258&\"'!\"&H7258),\"0\"),Notes!$B$5:$C$100,2,FALSE),\"\"))","v":""},"2b","$M$138","$N$138"]
[26590,{"$f":"Menu!$F$29","v":"X"},{"$f":"Menu!$J$29","v":2020},{"$f":"IF(ISBLANK(INDIRECT(\"'\"&F7259&\"'!\"&G7259)),\"\",INDIRECT(\"'\"&F7259&\"'!\"&G7259))","v":""},{"$f":"IF(ISBLANK(INDIRECT(\"'\"&F7259&\"'!\"&H7259)),\"\",IFERROR(VLOOKUP(TEXT(INDIRECT(\"'\"&F7259&\"'!\"&H7259),\"0\"),Notes!$B$5:$C$100,2,FALSE),\"\"))","v":""},"2b","$Q$138","$R$138"]
[26591,{"$f":"Menu!$F$29","v":"X"},{"$f":"Menu!$J$29","v":2020},{"$f":"IF(ISBLANK(INDIRECT(\"'\"&F7260&\"'!\"&G7260)),\"\",INDIRECT(\"'\"&F7260&\"'!\"&G7260))","v":""},{"$f":"IF(ISBLANK(INDIRECT(\"'\"&F7260&\"'!\"&H7260)),\"\",IFERROR(VLOOKUP(TEXT(INDIRECT(\"'\"&F7260&\"'!\"&H7260),\"0\"),Notes!$B$5:$C$100,2,FALSE),\"\"))","v":""},"2b","$U$138","$V$138"]
[26592,{"$f":"Menu!$F$29","v":"X"},{"$f":"Menu!$J$29","v":2020},{"$f":"IF(ISBLANK(INDIRECT(\"'\"&F7261&\"'!\"&G7261)),\"\",INDIRECT(\"'\"&F7261&\"'!\"&G7261))","v":""},{"$f":"IF(ISBLANK(INDIRECT(\"'\"&F7261&\"'!\"&H7261)),\"\",IFERROR(VLOOKUP(TEXT(INDIRECT(\"'\"&F7261&\"'!\"&H7261),\"0\"),Notes!$B$5:$C$100,2,FALSE),\"\"))","v":""},"2b","$S$138","$T$138"]
[26596,{"$f":"Menu!$F$29","v":"X"},{"$f":"Menu!$J$29","v":2020},{"$f":"IF(ISBLANK(INDIRECT(\"'\"&F7262&\"'!\"&G7262)),\"\",INDIRECT(\"'\"&F7262&\"'!\"&G7262))","v":""},{"$f":"IF(ISBLANK(INDIRECT(\"'\"&F7262&\"'!\"&H7262)),\"\",IFERROR(VLOOKUP(TEXT(INDIRECT(\"'\"&F7262&\"'!\"&H7262),\"0\"),Notes!$B$5:$C$100,2,FALSE),\"\"))","v":""},"2a","$I$138","$J$138"]
[26597,{"$f":"Menu!$F$29","v":"X"},{"$f":"Menu!$J$29","v":2020},{"$f":"IF(ISBLANK(INDIRECT(\"'\"&F7263&\"'!\"&G7263)),\"\",INDIRECT(\"'\"&F7263&\"'!\"&G7263))","v":""},{"$f":"IF(ISBLANK(INDIRECT(\"'\"&F7263&\"'!\"&H7263)),\"\",IFERROR(VLOOKUP(TEXT(INDIRECT(\"'\"&F7263&\"'!\"&H7263),\"0\"),Notes!$B$5:$C$100,2,FALSE),\"\"))","v":""},"2c","$E$138","$F$138"]
[26598,{"$f":"Menu!$F$29","v":"X"},{"$f":"Menu!$J$29","v":2020},{"$f":"IF(ISBLANK(INDIRECT(\"'\"&F7264&\"'!\"&G7264)),\"\",INDIRECT(\"'\"&F7264&\"'!\"&G7264))","v":""},{"$f":"IF(ISBLANK(INDIRECT(\"'\"&F7264&\"'!\"&H7264)),\"\",IFERROR(VLOOKUP(TEXT(INDIRECT(\"'\"&F7264&\"'!\"&H7264),\"0\"),Notes!$B$5:$C$100,2,FALSE),\"\"))","v":""},"2c","$I$138","$J$138"]
[26599,{"$f":"Menu!$F$29","v":"X"},{"$f":"Menu!$J$29","v":2020},{"$f":"IF(ISBLANK(INDIRECT(\"'\"&F7265&\"'!\"&G7265)),\"\",INDIRECT(\"'\"&F7265&\"'!\"&G7265))","v":""},{"$f":"IF(ISBLANK(INDIRECT(\"'\"&F7265&\"'!\"&H7265)),\"\",IFERROR(VLOOKUP(TEXT(INDIRECT(\"'\"&F7265&\"'!\"&H7265),\"0\"),Notes!$B$5:$C$100,2,FALSE),\"\"))","v":""},"2c","$G$138","$H$138"]
[26603,{"$f":"Menu!$F$29","v":"X"},{"$f":"Menu!$J$29","v":2020},{"$f":"IF(ISBLANK(INDIRECT(\"'\"&F7266&\"'!\"&G7266)),\"\",INDIRECT(\"'\"&F7266&\"'!\"&G7266))","v":""},{"$f":"IF(ISBLANK(INDIRECT(\"'\"&F7266&\"'!\"&H7266)),\"\",IFERROR(VLOOKUP(TEXT(INDIRECT(\"'\"&F7266&\"'!\"&H7266),\"0\"),Notes!$B$5:$C$100,2,FALSE),\"\"))","v":""},"2c","$K$138","$L$138"]
[26604,{"$f":"Menu!$F$29","v":"X"},{"$f":"Menu!$J$29","v":2020},{"$f":"IF(ISBLANK(INDIRECT(\"'\"&F7267&\"'!\"&G7267)),\"\",INDIRECT(\"'\"&F7267&\"'!\"&G7267))","v":""},{"$f":"IF(ISBLANK(INDIRECT(\"'\"&F7267&\"'!\"&H7267)),\"\",IFERROR(VLOOKUP(TEXT(INDIRECT(\"'\"&F7267&\"'!\"&H7267),\"0\"),Notes!$B$5:$C$100,2,FALSE),\"\"))","v":""},"2c","$O$138","$P$138"]
[26605,{"$f":"Menu!$F$29","v":"X"},{"$f":"Menu!$J$29","v":2020},{"$f":"IF(ISBLANK(INDIRECT(\"'\"&F7268&\"'!\"&G7268)),\"\",INDIRECT(\"'\"&F7268&\"'!\"&G7268))","v":""},{"$f":"IF(ISBLANK(INDIRECT(\"'\"&F7268&\"'!\"&H7268)),\"\",IFERROR(VLOOKUP(TEXT(INDIRECT(\"'\"&F7268&\"'!\"&H7268),\"0\"),Notes!$B$5:$C$100,2,FALSE),\"\"))","v":""},"2c","$M$138","$N$138"]
[26606,{"$f":"Menu!$F$29","v":"X"},{"$f":"Menu!$J$29","v":2020},{"$f":"IF(ISBLANK(INDIRECT(\"'\"&F7269&\"'!\"&G7269)),\"\",INDIRECT(\"'\"&F7269&\"'!\"&G7269))","v":""},{"$f":"IF(ISBLANK(INDIRECT(\"'\"&F7269&\"'!\"&H7269)),\"\",IFERROR(VLOOKUP(TEXT(INDIRECT(\"'\"&F7269&\"'!\"&H7269),\"0\"),Notes!$B$5:$C$100,2,FALSE),\"\"))","v":""},"2c","$Q$138","$R$138"]
[26607,{"$f":"Menu!$F$29","v":"X"},{"$f":"Menu!$J$29","v":2020},{"$f":"IF(ISBLANK(INDIRECT(\"'\"&F7270&\"'!\"&G7270)),\"\",INDIRECT(\"'\"&F7270&\"'!\"&G7270))","v":""},{"$f":"IF(ISBLANK(INDIRECT(\"'\"&F7270&\"'!\"&H7270)),\"\",IFERROR(VLOOKUP(TEXT(INDIRECT(\"'\"&F7270&\"'!\"&H7270),\"0\"),Notes!$B$5:$C$100,2,FALSE),\"\"))","v":""},"2c","$U$138","$V$138"]
[26608,{"$f":"Menu!$F$29","v":"X"},{"$f":"Menu!$J$29","v":2020},{"$f":"IF(ISBLANK(INDIRECT(\"'\"&F7271&\"'!\"&G7271)),\"\",INDIRECT(\"'\"&F7271&\"'!\"&G7271))","v":""},{"$f":"IF(ISBLANK(INDIRECT(\"'\"&F7271&\"'!\"&H7271)),\"\",IFERROR(VLOOKUP(TEXT(INDIRECT(\"'\"&F7271&\"'!\"&H7271),\"0\"),Notes!$B$5:$C$100,2,FALSE),\"\"))","v":""},"2c","$S$138","$T$138"]
[26609,{"$f":"Menu!$F$29","v":"X"},{"$f":"Menu!$J$29","v":2020},{"$f":"IF(ISBLANK(INDIRECT(\"'\"&F7272&\"'!\"&G7272)),\"\",INDIRECT(\"'\"&F7272&\"'!\"&G7272))","v":""},{"$f":"IF(ISBLANK(INDIRECT(\"'\"&F7272&\"'!\"&H7272)),\"\",IFERROR(VLOOKUP(TEXT(INDIRECT(\"'\"&F7272&\"'!\"&H7272),\"0\"),Notes!$B$5:$C$100,2,FALSE),\"\"))","v":""},"2c","$W$138","$X$138"]
[26610,{"$f":"Menu!$F$29","v":"X"},{"$f":"Menu!$J$29","v":2020},{"$f":"IF(ISBLANK(INDIRECT(\"'\"&F7273&\"'!\"&G7273)),\"\",INDIRECT(\"'\"&F7273&\"'!\"&G7273))","v":""},{"$f":"IF(ISBLANK(INDIRECT(\"'\"&F7273&\"'!\"&H7273)),\"\",IFERROR(VLOOKUP(TEXT(INDIRECT(\"'\"&F7273&\"'!\"&H7273),\"0\"),Notes!$B$5:$C$100,2,FALSE),\"\"))","v":""},"2c","$AA$138","$AB$138"]
[26611,{"$f":"Menu!$F$29","v":"X"},{"$f":"Menu!$J$29","v":2020},{"$f":"IF(ISBLANK(INDIRECT(\"'\"&F7274&\"'!\"&G7274)),\"\",INDIRECT(\"'\"&F7274&\"'!\"&G7274))","v":""},{"$f":"IF(ISBLANK(INDIRECT(\"'\"&F7274&\"'!\"&H7274)),\"\",IFERROR(VLOOKUP(TEXT(INDIRECT(\"'\"&F7274&\"'!\"&H7274),\"0\"),Notes!$B$5:$C$100,2,FALSE),\"\"))","v":""},"2c","$Y$138","$Z$138"]
[26618,{"$f":"Menu!$F$29","v":"X"},{"$f":"Menu!$J$29","v":2020},{"$f":"IF(ISBLANK(INDIRECT(\"'\"&F7275&\"'!\"&G7275)),\"\",INDIRECT(\"'\"&F7275&\"'!\"&G7275))","v":""},{"$f":"IF(ISBLANK(INDIRECT(\"'\"&F7275&\"'!\"&H7275)),\"\",IFERROR(VLOOKUP(TEXT(INDIRECT(\"'\"&F7275&\"'!\"&H7275),\"0\"),Notes!$B$5:$C$100,2,FALSE),\"\"))","v":""},"2e","$BG$139","$BH$139"]
[26619,{"$f":"Menu!$F$29","v":"X"},{"$f":"Menu!$J$29","v":2020},{"$f":"IF(ISBLANK(INDIRECT(\"'\"&F7276&\"'!\"&G7276)),\"\",INDIRECT(\"'\"&F7276&\"'!\"&G7276))","v":""},{"$f":"IF(ISBLANK(INDIRECT(\"'\"&F7276&\"'!\"&H7276)),\"\",IFERROR(VLOOKUP(TEXT(INDIRECT(\"'\"&F7276&\"'!\"&H7276),\"0\"),Notes!$B$5:$C$100,2,FALSE),\"\"))","v":""},"2e","$BK$139","$BL$139"]
[26620,{"$f":"Menu!$F$29","v":"X"},{"$f":"Menu!$J$29","v":2020},{"$f":"IF(ISBLANK(INDIRECT(\"'\"&F7277&\"'!\"&G7277)),\"\",INDIRECT(\"'\"&F7277&\"'!\"&G7277))","v":""},{"$f":"IF(ISBLANK(INDIRECT(\"'\"&F7277&\"'!\"&H7277)),\"\",IFERROR(VLOOKUP(TEXT(INDIRECT(\"'\"&F7277&\"'!\"&H7277),\"0\"),Notes!$B$5:$C$100,2,FALSE),\"\"))","v":""},"2e","$BI$139","$BJ$139"]
[26621,{"$f":"Menu!$F$29","v":"X"},{"$f":"Menu!$J$29","v":2020},{"$f":"IF(ISBLANK(INDIRECT(\"'\"&F7278&\"'!\"&G7278)),\"\",INDIRECT(\"'\"&F7278&\"'!\"&G7278))","v":""},{"$f":"IF(ISBLANK(INDIRECT(\"'\"&F7278&\"'!\"&H7278)),\"\",IFERROR(VLOOKUP(TEXT(INDIRECT(\"'\"&F7278&\"'!\"&H7278),\"0\"),Notes!$B$5:$C$100,2,FALSE),\"\"))","v":""},"2e","$E$139","$F$139"]
[26622,{"$f":"Menu!$F$29","v":"X"},{"$f":"Menu!$J$29","v":2020},{"$f":"IF(ISBLANK(INDIRECT(\"'\"&F7279&\"'!\"&G7279)),\"\",INDIRECT(\"'\"&F7279&\"'!\"&G7279))","v":""},{"$f":"IF(ISBLANK(INDIRECT(\"'\"&F7279&\"'!\"&H7279)),\"\",IFERROR(VLOOKUP(TEXT(INDIRECT(\"'\"&F7279&\"'!\"&H7279),\"0\"),Notes!$B$5:$C$100,2,FALSE),\"\"))","v":""},"2e","$I$139","$J$139"]
[26623,{"$f":"Menu!$F$29","v":"X"},{"$f":"Menu!$J$29","v":2020},{"$f":"IF(ISBLANK(INDIRECT(\"'\"&F7280&\"'!\"&G7280)),\"\",INDIRECT(\"'\"&F7280&\"'!\"&G7280))","v":""},{"$f":"IF(ISBLANK(INDIRECT(\"'\"&F7280&\"'!\"&H7280)),\"\",IFERROR(VLOOKUP(TEXT(INDIRECT(\"'\"&F7280&\"'!\"&H7280),\"0\"),Notes!$B$5:$C$100,2,FALSE),\"\"))","v":""},"2e","$G$139","$H$139"]
[26624,{"$f":"Menu!$F$29","v":"X"},{"$f":"Menu!$J$29","v":2020},{"$f":"IF(ISBLANK(INDIRECT(\"'\"&F7281&\"'!\"&G7281)),\"\",INDIRECT(\"'\"&F7281&\"'!\"&G7281))","v":""},{"$f":"IF(ISBLANK(INDIRECT(\"'\"&F7281&\"'!\"&H7281)),\"\",IFERROR(VLOOKUP(TEXT(INDIRECT(\"'\"&F7281&\"'!\"&H7281),\"0\"),Notes!$B$5:$C$100,2,FALSE),\"\"))","v":""},"2e","$K$139","$L$139"]
[26625,{"$f":"Menu!$F$29","v":"X"},{"$f":"Menu!$J$29","v":2020},{"$f":"IF(ISBLANK(INDIRECT(\"'\"&F7282&\"'!\"&G7282)),\"\",INDIRECT(\"'\"&F7282&\"'!\"&G7282))","v":""},{"$f":"IF(ISBLANK(INDIRECT(\"'\"&F7282&\"'!\"&H7282)),\"\",IFERROR(VLOOKUP(TEXT(INDIRECT(\"'\"&F7282&\"'!\"&H7282),\"0\"),Notes!$B$5:$C$100,2,FALSE),\"\"))","v":""},"2e","$O$139","$P$139"]
[26626,{"$f":"Menu!$F$29","v":"X"},{"$f":"Menu!$J$29","v":2020},{"$f":"IF(ISBLANK(INDIRECT(\"'\"&F7283&\"'!\"&G7283)),\"\",INDIRECT(\"'\"&F7283&\"'!\"&G7283))","v":""},{"$f":"IF(ISBLANK(INDIRECT(\"'\"&F7283&\"'!\"&H7283)),\"\",IFERROR(VLOOKUP(TEXT(INDIRECT(\"'\"&F7283&\"'!\"&H7283),\"0\"),Notes!$B$5:$C$100,2,FALSE),\"\"))","v":""},"2e","$M$139","$N$139"]
[26627,{"$f":"Menu!$F$29","v":"X"},{"$f":"Menu!$J$29","v":2020},{"$f":"IF(ISBLANK(INDIRECT(\"'\"&F7284&\"'!\"&G7284)),\"\",INDIRECT(\"'\"&F7284&\"'!\"&G7284))","v":""},{"$f":"IF(ISBLANK(INDIRECT(\"'\"&F7284&\"'!\"&H7284)),\"\",IFERROR(VLOOKUP(TEXT(INDIRECT(\"'\"&F7284&\"'!\"&H7284),\"0\"),Notes!$B$5:$C$100,2,FALSE),\"\"))","v":""},"2e","$Q$139","$R$139"]
[26628,{"$f":"Menu!$F$29","v":"X"},{"$f":"Menu!$J$29","v":2020},{"$f":"IF(ISBLANK(INDIRECT(\"'\"&F7285&\"'!\"&G7285)),\"\",INDIRECT(\"'\"&F7285&\"'!\"&G7285))","v":""},{"$f":"IF(ISBLANK(INDIRECT(\"'\"&F7285&\"'!\"&H7285)),\"\",IFERROR(VLOOKUP(TEXT(INDIRECT(\"'\"&F7285&\"'!\"&H7285),\"0\"),Notes!$B$5:$C$100,2,FALSE),\"\"))","v":""},"2e","$U$139","$V$139"]
[26629,{"$f":"Menu!$F$29","v":"X"},{"$f":"Menu!$J$29","v":2020},{"$f":"IF(ISBLANK(INDIRECT(\"'\"&F7286&\"'!\"&G7286)),\"\",INDIRECT(\"'\"&F7286&\"'!\"&G7286))","v":""},{"$f":"IF(ISBLANK(INDIRECT(\"'\"&F7286&\"'!\"&H7286)),\"\",IFERROR(VLOOKUP(TEXT(INDIRECT(\"'\"&F7286&\"'!\"&H7286),\"0\"),Notes!$B$5:$C$100,2,FALSE),\"\"))","v":""},"2e","$S$139","$T$139"]
[26630,{"$f":"Menu!$F$29","v":"X"},{"$f":"Menu!$J$29","v":2020},{"$f":"IF(ISBLANK(INDIRECT(\"'\"&F7287&\"'!\"&G7287)),\"\",INDIRECT(\"'\"&F7287&\"'!\"&G7287))","v":""},{"$f":"IF(ISBLANK(INDIRECT(\"'\"&F7287&\"'!\"&H7287)),\"\",IFERROR(VLOOKUP(TEXT(INDIRECT(\"'\"&F7287&\"'!\"&H7287),\"0\"),Notes!$B$5:$C$100,2,FALSE),\"\"))","v":""},"2e","$W$139","$X$139"]
[26631,{"$f":"Menu!$F$29","v":"X"},{"$f":"Menu!$J$29","v":2020},{"$f":"IF(ISBLANK(INDIRECT(\"'\"&F7288&\"'!\"&G7288)),\"\",INDIRECT(\"'\"&F7288&\"'!\"&G7288))","v":""},{"$f":"IF(ISBLANK(INDIRECT(\"'\"&F7288&\"'!\"&H7288)),\"\",IFERROR(VLOOKUP(TEXT(INDIRECT(\"'\"&F7288&\"'!\"&H7288),\"0\"),Notes!$B$5:$C$100,2,FALSE),\"\"))","v":""},"2e","$AA$139","$AB$139"]
[26632,{"$f":"Menu!$F$29","v":"X"},{"$f":"Menu!$J$29","v":2020},{"$f":"IF(ISBLANK(INDIRECT(\"'\"&F7289&\"'!\"&G7289)),\"\",INDIRECT(\"'\"&F7289&\"'!\"&G7289))","v":""},{"$f":"IF(ISBLANK(INDIRECT(\"'\"&F7289&\"'!\"&H7289)),\"\",IFERROR(VLOOKUP(TEXT(INDIRECT(\"'\"&F7289&\"'!\"&H7289),\"0\"),Notes!$B$5:$C$100,2,FALSE),\"\"))","v":""},"2e","$Y$139","$Z$139"]
[26633,{"$f":"Menu!$F$29","v":"X"},{"$f":"Menu!$J$29","v":2020},{"$f":"IF(ISBLANK(INDIRECT(\"'\"&F7290&\"'!\"&G7290)),\"\",INDIRECT(\"'\"&F7290&\"'!\"&G7290))","v":""},{"$f":"IF(ISBLANK(INDIRECT(\"'\"&F7290&\"'!\"&H7290)),\"\",IFERROR(VLOOKUP(TEXT(INDIRECT(\"'\"&F7290&\"'!\"&H7290),\"0\"),Notes!$B$5:$C$100,2,FALSE),\"\"))","v":""},"2e","$AC$139","$AD$139"]
[26634,{"$f":"Menu!$F$29","v":"X"},{"$f":"Menu!$J$29","v":2020},{"$f":"IF(ISBLANK(INDIRECT(\"'\"&F7291&\"'!\"&G7291)),\"\",INDIRECT(\"'\"&F7291&\"'!\"&G7291))","v":""},{"$f":"IF(ISBLANK(INDIRECT(\"'\"&F7291&\"'!\"&H7291)),\"\",IFERROR(VLOOKUP(TEXT(INDIRECT(\"'\"&F7291&\"'!\"&H7291),\"0\"),Notes!$B$5:$C$100,2,FALSE),\"\"))","v":""},"2e","$AG$139","$AH$139"]
[26635,{"$f":"Menu!$F$29","v":"X"},{"$f":"Menu!$J$29","v":2020},{"$f":"IF(ISBLANK(INDIRECT(\"'\"&F7292&\"'!\"&G7292)),\"\",INDIRECT(\"'\"&F7292&\"'!\"&G7292))","v":""},{"$f":"IF(ISBLANK(INDIRECT(\"'\"&F7292&\"'!\"&H7292)),\"\",IFERROR(VLOOKUP(TEXT(INDIRECT(\"'\"&F7292&\"'!\"&H7292),\"0\"),Notes!$B$5:$C$100,2,FALSE),\"\"))","v":""},"2e","$AE$139","$AF$139"]
[26636,{"$f":"Menu!$F$29","v":"X"},{"$f":"Menu!$J$29","v":2020},{"$f":"IF(ISBLANK(INDIRECT(\"'\"&F7293&\"'!\"&G7293)),\"\",INDIRECT(\"'\"&F7293&\"'!\"&G7293))","v":""},{"$f":"IF(ISBLANK(INDIRECT(\"'\"&F7293&\"'!\"&H7293)),\"\",IFERROR(VLOOKUP(TEXT(INDIRECT(\"'\"&F7293&\"'!\"&H7293),\"0\"),Notes!$B$5:$C$100,2,FALSE),\"\"))","v":""},"2e","$AI$139","$AJ$139"]
[26637,{"$f":"Menu!$F$29","v":"X"},{"$f":"Menu!$J$29","v":2020},{"$f":"IF(ISBLANK(INDIRECT(\"'\"&F7294&\"'!\"&G7294)),\"\",INDIRECT(\"'\"&F7294&\"'!\"&G7294))","v":""},{"$f":"IF(ISBLANK(INDIRECT(\"'\"&F7294&\"'!\"&H7294)),\"\",IFERROR(VLOOKUP(TEXT(INDIRECT(\"'\"&F7294&\"'!\"&H7294),\"0\"),Notes!$B$5:$C$100,2,FALSE),\"\"))","v":""},"2e","$AM$139","$AN$139"]
[26638,{"$f":"Menu!$F$29","v":"X"},{"$f":"Menu!$J$29","v":2020},{"$f":"IF(ISBLANK(INDIRECT(\"'\"&F7295&\"'!\"&G7295)),\"\",INDIRECT(\"'\"&F7295&\"'!\"&G7295))","v":""},{"$f":"IF(ISBLANK(INDIRECT(\"'\"&F7295&\"'!\"&H7295)),\"\",IFERROR(VLOOKUP(TEXT(INDIRECT(\"'\"&F7295&\"'!\"&H7295),\"0\"),Notes!$B$5:$C$100,2,FALSE),\"\"))","v":""},"2e","$AK$139","$AL$139"]
[26639,{"$f":"Menu!$F$29","v":"X"},{"$f":"Menu!$J$29","v":2020},{"$f":"IF(ISBLANK(INDIRECT(\"'\"&F7296&\"'!\"&G7296)),\"\",INDIRECT(\"'\"&F7296&\"'!\"&G7296))","v":""},{"$f":"IF(ISBLANK(INDIRECT(\"'\"&F7296&\"'!\"&H7296)),\"\",IFERROR(VLOOKUP(TEXT(INDIRECT(\"'\"&F7296&\"'!\"&H7296),\"0\"),Notes!$B$5:$C$100,2,FALSE),\"\"))","v":""},"2e","$AO$139","$AP$139"]
[26640,{"$f":"Menu!$F$29","v":"X"},{"$f":"Menu!$J$29","v":2020},{"$f":"IF(ISBLANK(INDIRECT(\"'\"&F7297&\"'!\"&G7297)),\"\",INDIRECT(\"'\"&F7297&\"'!\"&G7297))","v":""},{"$f":"IF(ISBLANK(INDIRECT(\"'\"&F7297&\"'!\"&H7297)),\"\",IFERROR(VLOOKUP(TEXT(INDIRECT(\"'\"&F7297&\"'!\"&H7297),\"0\"),Notes!$B$5:$C$100,2,FALSE),\"\"))","v":""},"2e","$AS$139","$AT$139"]
[26641,{"$f":"Menu!$F$29","v":"X"},{"$f":"Menu!$J$29","v":2020},{"$f":"IF(ISBLANK(INDIRECT(\"'\"&F7298&\"'!\"&G7298)),\"\",INDIRECT(\"'\"&F7298&\"'!\"&G7298))","v":""},{"$f":"IF(ISBLANK(INDIRECT(\"'\"&F7298&\"'!\"&H7298)),\"\",IFERROR(VLOOKUP(TEXT(INDIRECT(\"'\"&F7298&\"'!\"&H7298),\"0\"),Notes!$B$5:$C$100,2,FALSE),\"\"))","v":""},"2e","$AQ$139",{"$f":"IF(LEN(TRIM(MID(G7298,4,10)))-LEN(SUBSTITUTE(TRIM(MID(G7298,4,10)),\"$\",\"\"))=0,\"$\"&CHAR(CODE(MID(G7298,2,1))+1)&\"$\"&TRIM(MID(G7298,4,10)),\"$\"&MID(G7298,2,1)&CHAR(CODE(MID(G7298,3,1))+1)&\"$\"&TRIM(MID(G7298,5,11)))","v":"$AR$139"}]
[26642,{"$f":"Menu!$F$29","v":"X"},{"$f":"Menu!$J$29","v":2020},{"$f":"IF(ISBLANK(INDIRECT(\"'\"&F7299&\"'!\"&G7299)),\"\",INDIRECT(\"'\"&F7299&\"'!\"&G7299))","v":""},{"$f":"IF(ISBLANK(INDIRECT(\"'\"&F7299&\"'!\"&H7299)),\"\",IFERROR(VLOOKUP(TEXT(INDIRECT(\"'\"&F7299&\"'!\"&H7299),\"0\"),Notes!$B$5:$C$100,2,FALSE),\"\"))","v":""},"2e","$AU$139","$AV$139"]
[26643,{"$f":"Menu!$F$29","v":"X"},{"$f":"Menu!$J$29","v":2020},{"$f":"IF(ISBLANK(INDIRECT(\"'\"&F7300&\"'!\"&G7300)),\"\",INDIRECT(\"'\"&F7300&\"'!\"&G7300))","v":""},{"$f":"IF(ISBLANK(INDIRECT(\"'\"&F7300&\"'!\"&H7300)),\"\",IFERROR(VLOOKUP(TEXT(INDIRECT(\"'\"&F7300&\"'!\"&H7300),\"0\"),Notes!$B$5:$C$100,2,FALSE),\"\"))","v":""},"2e","$AY$139","$AZ$139"]
[26644,{"$f":"Menu!$F$29","v":"X"},{"$f":"Menu!$J$29","v":2020},{"$f":"IF(ISBLANK(INDIRECT(\"'\"&F7301&\"'!\"&G7301)),\"\",INDIRECT(\"'\"&F7301&\"'!\"&G7301))","v":""},{"$f":"IF(ISBLANK(INDIRECT(\"'\"&F7301&\"'!\"&H7301)),\"\",IFERROR(VLOOKUP(TEXT(INDIRECT(\"'\"&F7301&\"'!\"&H7301),\"0\"),Notes!$B$5:$C$100,2,FALSE),\"\"))","v":""},"2e","$AW$139","$AX$139"]
[26645,{"$f":"Menu!$F$29","v":"X"},{"$f":"Menu!$J$29","v":2020},{"$f":"IF(ISBLANK(INDIRECT(\"'\"&F7302&\"'!\"&G7302)),\"\",INDIRECT(\"'\"&F7302&\"'!\"&G7302))","v":""},{"$f":"IF(ISBLANK(INDIRECT(\"'\"&F7302&\"'!\"&H7302)),\"\",IFERROR(VLOOKUP(TEXT(INDIRECT(\"'\"&F7302&\"'!\"&H7302),\"0\"),Notes!$B$5:$C$100,2,FALSE),\"\"))","v":""},"2e","$BA$139","$BB$139"]
[26646,{"$f":"Menu!$F$29","v":"X"},{"$f":"Menu!$J$29","v":2020},{"$f":"IF(ISBLANK(INDIRECT(\"'\"&F7303&\"'!\"&G7303)),\"\",INDIRECT(\"'\"&F7303&\"'!\"&G7303))","v":""},{"$f":"IF(ISBLANK(INDIRECT(\"'\"&F7303&\"'!\"&H7303)),\"\",IFERROR(VLOOKUP(TEXT(INDIRECT(\"'\"&F7303&\"'!\"&H7303),\"0\"),Notes!$B$5:$C$100,2,FALSE),\"\"))","v":""},"2e","$BE$139","$BF$139"]
[26647,{"$f":"Menu!$F$29","v":"X"},{"$f":"Menu!$J$29","v":2020},{"$f":"IF(ISBLANK(INDIRECT(\"'\"&F7304&\"'!\"&G7304)),\"\",INDIRECT(\"'\"&F7304&\"'!\"&G7304))","v":""},{"$f":"IF(ISBLANK(INDIRECT(\"'\"&F7304&\"'!\"&H7304)),\"\",IFERROR(VLOOKUP(TEXT(INDIRECT(\"'\"&F7304&\"'!\"&H7304),\"0\"),Notes!$B$5:$C$100,2,FALSE),\"\"))","v":""},"2e","$BC$139","$BD$139"]
[26648,{"$f":"Menu!$F$29","v":"X"},{"$f":"Menu!$J$29","v":2020},{"$f":"IF(ISBLANK(INDIRECT(\"'\"&F7305&\"'!\"&G7305)),\"\",INDIRECT(\"'\"&F7305&\"'!\"&G7305))","v":""},{"$f":"IF(ISBLANK(INDIRECT(\"'\"&F7305&\"'!\"&H7305)),\"\",IFERROR(VLOOKUP(TEXT(INDIRECT(\"'\"&F7305&\"'!\"&H7305),\"0\"),Notes!$B$5:$C$100,2,FALSE),\"\"))","v":""},"2b","$E$138","$F$138"]
[26649,{"$f":"Menu!$F$29","v":"X"},{"$f":"Menu!$J$29","v":2020},{"$f":"IF(ISBLANK(INDIRECT(\"'\"&F7306&\"'!\"&G7306)),\"\",INDIRECT(\"'\"&F7306&\"'!\"&G7306))","v":""},{"$f":"IF(ISBLANK(INDIRECT(\"'\"&F7306&\"'!\"&H7306)),\"\",IFERROR(VLOOKUP(TEXT(INDIRECT(\"'\"&F7306&\"'!\"&H7306),\"0\"),Notes!$B$5:$C$100,2,FALSE),\"\"))","v":""},"2b","$I$138","$J$138"]
[26650,{"$f":"Menu!$F$29","v":"X"},{"$f":"Menu!$J$29","v":2020},{"$f":"IF(ISBLANK(INDIRECT(\"'\"&F7307&\"'!\"&G7307)),\"\",INDIRECT(\"'\"&F7307&\"'!\"&G7307))","v":""},{"$f":"IF(ISBLANK(INDIRECT(\"'\"&F7307&\"'!\"&H7307)),\"\",IFERROR(VLOOKUP(TEXT(INDIRECT(\"'\"&F7307&\"'!\"&H7307),\"0\"),Notes!$B$5:$C$100,2,FALSE),\"\"))","v":""},"2b","$G$138","$H$138"]
[26651,{"$f":"Menu!$F$29","v":"X"},{"$f":"Menu!$J$29","v":2020},{"$f":"IF(ISBLANK(INDIRECT(\"'\"&F7308&\"'!\"&G7308)),\"\",INDIRECT(\"'\"&F7308&\"'!\"&G7308))","v":""},null,"2a","$G$138","$H$138"]
[26652,{"$f":"Menu!$F$29","v":"X"},{"$f":"Menu!$J$29","v":2020},{"$f":"IF(ISBLANK(INDIRECT(\"'\"&F7309&\"'!\"&G7309)),\"\",INDIRECT(\"'\"&F7309&\"'!\"&G7309))","v":""},{"$f":"IF(ISBLANK(INDIRECT(\"'\"&F7309&\"'!\"&H7309)),\"\",IFERROR(VLOOKUP(TEXT(INDIRECT(\"'\"&F7309&\"'!\"&H7309),\"0\"),Notes!$B$5:$C$100,2,FALSE),\"\"))","v":""},"2b","$W$138","$X$138"]
[26653,{"$f":"Menu!$F$29","v":"X"},{"$f":"Menu!$J$29","v":2020},{"$f":"IF(ISBLANK(INDIRECT(\"'\"&F7310&\"'!\"&G7310)),\"\",INDIRECT(\"'\"&F7310&\"'!\"&G7310))","v":""},{"$f":"IF(ISBLANK(INDIRECT(\"'\"&F7310&\"'!\"&H7310)),\"\",IFERROR(VLOOKUP(TEXT(INDIRECT(\"'\"&F7310&\"'!\"&H7310),\"0\"),Notes!$B$5:$C$100,2,FALSE),\"\"))","v":""},"2b","$AA$138","$AB$138"]
[26654,{"$f":"Menu!$F$29","v":"X"},{"$f":"Menu!$J$29","v":2020},{"$f":"IF(ISBLANK(INDIRECT(\"'\"&F7311&\"'!\"&G7311)),\"\",INDIRECT(\"'\"&F7311&\"'!\"&G7311))","v":""},{"$f":"IF(ISBLANK(INDIRECT(\"'\"&F7311&\"'!\"&H7311)),\"\",IFERROR(VLOOKUP(TEXT(INDIRECT(\"'\"&F7311&\"'!\"&H7311),\"0\"),Notes!$B$5:$C$100,2,FALSE),\"\"))","v":""},"2b","$Y$138","$Z$138"]
[26655,{"$f":"Menu!$F$29","v":"X"},{"$f":"Menu!$J$29","v":2020},{"$f":"IF(ISBLANK(INDIRECT(\"'\"&F7312&\"'!\"&G7312)),\"\",INDIRECT(\"'\"&F7312&\"'!\"&G7312))","v":""},{"$f":"IF(ISBLANK(INDIRECT(\"'\"&F7312&\"'!\"&H7312)),\"\",IFERROR(VLOOKUP(TEXT(INDIRECT(\"'\"&F7312&\"'!\"&H7312),\"0\"),Notes!$B$5:$C$100,2,FALSE),\"\"))","v":""},"2d","$AC$138","$AD$138"]
[26656,{"$f":"Menu!$F$29","v":"X"},{"$f":"Menu!$J$29","v":2020},{"$f":"IF(ISBLANK(INDIRECT(\"'\"&F7313&\"'!\"&G7313)),\"\",INDIRECT(\"'\"&F7313&\"'!\"&G7313))","v":""},{"$f":"IF(ISBLANK(INDIRECT(\"'\"&F7313&\"'!\"&H7313)),\"\",IFERROR(VLOOKUP(TEXT(INDIRECT(\"'\"&F7313&\"'!\"&H7313),\"0\"),Notes!$B$5:$C$100,2,FALSE),\"\"))","v":""},"2d","$AG$138","$AH$138"]
[26657,{"$f":"Menu!$F$29","v":"X"},{"$f":"Menu!$J$29","v":2020},{"$f":"IF(ISBLANK(INDIRECT(\"'\"&F7314&\"'!\"&G7314)),\"\",INDIRECT(\"'\"&F7314&\"'!\"&G7314))","v":""},{"$f":"IF(ISBLANK(INDIRECT(\"'\"&F7314&\"'!\"&H7314)),\"\",IFERROR(VLOOKUP(TEXT(INDIRECT(\"'\"&F7314&\"'!\"&H7314),\"0\"),Notes!$B$5:$C$100,2,FALSE),\"\"))","v":""},"2d","$AE$138","$AF$138"]
[26658,{"$f":"Menu!$F$29","v":"X"},{"$f":"Menu!$J$29","v":2020},{"$f":"IF(ISBLANK(INDIRECT(\"'\"&F7315&\"'!\"&G7315)),\"\",INDIRECT(\"'\"&F7315&\"'!\"&G7315))","v":""},{"$f":"IF(ISBLANK(INDIRECT(\"'\"&F7315&\"'!\"&H7315)),\"\",IFERROR(VLOOKUP(TEXT(INDIRECT(\"'\"&F7315&\"'!\"&H7315),\"0\"),Notes!$B$5:$C$100,2,FALSE),\"\"))","v":""},"2d","$W$138","$X$138"]
[26659,{"$f":"Menu!$F$29","v":"X"},{"$f":"Menu!$J$29","v":2020},{"$f":"IF(ISBLANK(INDIRECT(\"'\"&F7316&\"'!\"&G7316)),\"\",INDIRECT(\"'\"&F7316&\"'!\"&G7316))","v":""},{"$f":"IF(ISBLANK(INDIRECT(\"'\"&F7316&\"'!\"&H7316)),\"\",IFERROR(VLOOKUP(TEXT(INDIRECT(\"'\"&F7316&\"'!\"&H7316),\"0\"),Notes!$B$5:$C$100,2,FALSE),\"\"))","v":""},"2d","$AA$138","$AB$138"]
[26660,{"$f":"Menu!$F$29","v":"X"},{"$f":"Menu!$J$29","v":2020},{"$f":"IF(ISBLANK(INDIRECT(\"'\"&F7317&\"'!\"&G7317)),\"\",INDIRECT(\"'\"&F7317&\"'!\"&G7317))","v":""},{"$f":"IF(ISBLANK(INDIRECT(\"'\"&F7317&\"'!\"&H7317)),\"\",IFERROR(VLOOKUP(TEXT(INDIRECT(\"'\"&F7317&\"'!\"&H7317),\"0\"),Notes!$B$5:$C$100,2,FALSE),\"\"))","v":""},"2d","$Y$138","$Z$138"]
[26661,{"$f":"Menu!$F$29","v":"X"},{"$f":"Menu!$J$29","v":2020},{"$f":"IF(ISBLANK(INDIRECT(\"'\"&F7318&\"'!\"&G7318)),\"\",INDIRECT(\"'\"&F7318&\"'!\"&G7318))","v":""},{"$f":"IF(ISBLANK(INDIRECT(\"'\"&F7318&\"'!\"&H7318)),\"\",IFERROR(VLOOKUP(TEXT(INDIRECT(\"'\"&F7318&\"'!\"&H7318),\"0\"),Notes!$B$5:$C$100,2,FALSE),\"\"))","v":""},"2d","$E$138","$F$138"]
[26662,{"$f":"Menu!$F$29","v":"X"},{"$f":"Menu!$J$29","v":2020},{"$f":"IF(ISBLANK(INDIRECT(\"'\"&F7319&\"'!\"&G7319)),\"\",INDIRECT(\"'\"&F7319&\"'!\"&G7319))","v":""},{"$f":"IF(ISBLANK(INDIRECT(\"'\"&F7319&\"'!\"&H7319)),\"\",IFERROR(VLOOKUP(TEXT(INDIRECT(\"'\"&F7319&\"'!\"&H7319),\"0\"),Notes!$B$5:$C$100,2,FALSE),\"\"))","v":""},"2d","$I$138","$J$138"]
[26663,{"$f":"Menu!$F$29","v":"X"},{"$f":"Menu!$J$29","v":2020},{"$f":"IF(ISBLANK(INDIRECT(\"'\"&F7320&\"'!\"&G7320)),\"\",INDIRECT(\"'\"&F7320&\"'!\"&G7320))","v":""},{"$f":"IF(ISBLANK(INDIRECT(\"'\"&F7320&\"'!\"&H7320)),\"\",IFERROR(VLOOKUP(TEXT(INDIRECT(\"'\"&F7320&\"'!\"&H7320),\"0\"),Notes!$B$5:$C$100,2,FALSE),\"\"))","v":""},"2d","$G$138","$H$138"]
[26664,{"$f":"Menu!$F$29","v":"X"},{"$f":"Menu!$J$29","v":2020},{"$f":"IF(ISBLANK(INDIRECT(\"'\"&F7321&\"'!\"&G7321)),\"\",INDIRECT(\"'\"&F7321&\"'!\"&G7321))","v":""},{"$f":"IF(ISBLANK(INDIRECT(\"'\"&F7321&\"'!\"&H7321)),\"\",IFERROR(VLOOKUP(TEXT(INDIRECT(\"'\"&F7321&\"'!\"&H7321),\"0\"),Notes!$B$5:$C$100,2,FALSE),\"\"))","v":""},"2a","$Q$138","$R$138"]
[26665,{"$f":"Menu!$F$29","v":"X"},{"$f":"Menu!$J$29","v":2020},{"$f":"IF(ISBLANK(INDIRECT(\"'\"&F7322&\"'!\"&G7322)),\"\",INDIRECT(\"'\"&F7322&\"'!\"&G7322))","v":""},{"$f":"IF(ISBLANK(INDIRECT(\"'\"&F7322&\"'!\"&H7322)),\"\",IFERROR(VLOOKUP(TEXT(INDIRECT(\"'\"&F7322&\"'!\"&H7322),\"0\"),Notes!$B$5:$C$100,2,FALSE),\"\"))","v":""},"2a","$U$138","$V$138"]
[26666,{"$f":"Menu!$F$29","v":"X"},{"$f":"Menu!$J$29","v":2020},{"$f":"IF(ISBLANK(INDIRECT(\"'\"&F7323&\"'!\"&G7323)),\"\",INDIRECT(\"'\"&F7323&\"'!\"&G7323))","v":""},{"$f":"IF(ISBLANK(INDIRECT(\"'\"&F7323&\"'!\"&H7323)),\"\",IFERROR(VLOOKUP(TEXT(INDIRECT(\"'\"&F7323&\"'!\"&H7323),\"0\"),Notes!$B$5:$C$100,2,FALSE),\"\"))","v":""},"2a","$S$138","$T$138"]
[26667,{"$f":"Menu!$F$29","v":"X"},{"$f":"Menu!$J$29","v":2020},{"$f":"IF(ISBLANK(INDIRECT(\"'\"&F7324&\"'!\"&G7324)),\"\",INDIRECT(\"'\"&F7324&\"'!\"&G7324))","v":""},{"$f":"IF(ISBLANK(INDIRECT(\"'\"&F7324&\"'!\"&H7324)),\"\",IFERROR(VLOOKUP(TEXT(INDIRECT(\"'\"&F7324&\"'!\"&H7324),\"0\"),Notes!$B$5:$C$100,2,FALSE),\"\"))","v":""},"2d","$K$138","$L$138"]
[26668,{"$f":"Menu!$F$29","v":"X"},{"$f":"Menu!$J$29","v":2020},{"$f":"IF(ISBLANK(INDIRECT(\"'\"&F7325&\"'!\"&G7325)),\"\",INDIRECT(\"'\"&F7325&\"'!\"&G7325))","v":""},{"$f":"IF(ISBLANK(INDIRECT(\"'\"&F7325&\"'!\"&H7325)),\"\",IFERROR(VLOOKUP(TEXT(INDIRECT(\"'\"&F7325&\"'!\"&H7325),\"0\"),Notes!$B$5:$C$100,2,FALSE),\"\"))","v":""},"2d","$O$138","$P$138"]
[26669,{"$f":"Menu!$F$29","v":"X"},{"$f":"Menu!$J$29","v":2020},{"$f":"IF(ISBLANK(INDIRECT(\"'\"&F7326&\"'!\"&G7326)),\"\",INDIRECT(\"'\"&F7326&\"'!\"&G7326))","v":""},{"$f":"IF(ISBLANK(INDIRECT(\"'\"&F7326&\"'!\"&H7326)),\"\",IFERROR(VLOOKUP(TEXT(INDIRECT(\"'\"&F7326&\"'!\"&H7326),\"0\"),Notes!$B$5:$C$100,2,FALSE),\"\"))","v":""},"2d","$M$138","$N$138"]
[26670,{"$f":"Menu!$F$29","v":"X"},{"$f":"Menu!$J$29","v":2020},{"$f":"IF(ISBLANK(INDIRECT(\"'\"&F7327&\"'!\"&G7327)),\"\",INDIRECT(\"'\"&F7327&\"'!\"&G7327))","v":""},{"$f":"IF(ISBLANK(INDIRECT(\"'\"&F7327&\"'!\"&H7327)),\"\",IFERROR(VLOOKUP(TEXT(INDIRECT(\"'\"&F7327&\"'!\"&H7327),\"0\"),Notes!$B$5:$C$100,2,FALSE),\"\"))","v":""},"2d","$Q$138","$R$138"]
[26671,{"$f":"Menu!$F$29","v":"X"},{"$f":"Menu!$J$29","v":2020},{"$f":"IF(ISBLANK(INDIRECT(\"'\"&F7328&\"'!\"&G7328)),\"\",INDIRECT(\"'\"&F7328&\"'!\"&G7328))","v":""},{"$f":"IF(ISBLANK(INDIRECT(\"'\"&F7328&\"'!\"&H7328)),\"\",IFERROR(VLOOKUP(TEXT(INDIRECT(\"'\"&F7328&\"'!\"&H7328),\"0\"),Notes!$B$5:$C$100,2,FALSE),\"\"))","v":""},"2d","$U$138","$V$138"]
[26672,{"$f":"Menu!$F$29","v":"X"},{"$f":"Menu!$J$29","v":2020},{"$f":"IF(ISBLANK(INDIRECT(\"'\"&F7329&\"'!\"&G7329)),\"\",INDIRECT(\"'\"&F7329&\"'!\"&G7329))","v":""},{"$f":"IF(ISBLANK(INDIRECT(\"'\"&F7329&\"'!\"&H7329)),\"\",IFERROR(VLOOKUP(TEXT(INDIRECT(\"'\"&F7329&\"'!\"&H7329),\"0\"),Notes!$B$5:$C$100,2,FALSE),\"\"))","v":""},"2d","$S$138","$T$138"]
[26673,{"$f":"Menu!$F$29","v":"X"},{"$f":"Menu!$J$29","v":2020},{"$f":"IF(ISBLANK(INDIRECT(\"'\"&F7330&\"'!\"&G7330)),\"\",INDIRECT(\"'\"&F7330&\"'!\"&G7330))","v":""},null,"2a","$K$138","$L$138"]
[26674,{"$f":"Menu!$F$29","v":"X"},{"$f":"Menu!$J$29","v":2020},{"$f":"IF(ISBLANK(INDIRECT(\"'\"&F7331&\"'!\"&G7331)),\"\",INDIRECT(\"'\"&F7331&\"'!\"&G7331))","v":""},{"$f":"IF(ISBLANK(INDIRECT(\"'\"&F7331&\"'!\"&H7331)),\"\",IFERROR(VLOOKUP(TEXT(INDIRECT(\"'\"&F7331&\"'!\"&H7331),\"0\"),Notes!$B$5:$C$100,2,FALSE),\"\"))","v":""},"2a","$O$138","$P$138"]
[26675,{"$f":"Menu!$F$29","v":"X"},{"$f":"Menu!$J$29","v":2020},{"$f":"IF(ISBLANK(INDIRECT(\"'\"&F7332&\"'!\"&G7332)),\"\",INDIRECT(\"'\"&F7332&\"'!\"&G7332))","v":""},{"$f":"IF(ISBLANK(INDIRECT(\"'\"&F7332&\"'!\"&H7332)),\"\",IFERROR(VLOOKUP(TEXT(INDIRECT(\"'\"&F7332&\"'!\"&H7332),\"0\"),Notes!$B$5:$C$100,2,FALSE),\"\"))","v":""},"2a","$M$138","$N$138"]
[26676,{"$f":"Menu!$F$29","v":"X"},{"$f":"Menu!$J$29","v":2020},{"$f":"IF(ISBLANK(INDIRECT(\"'\"&F7333&\"'!\"&G7333)),\"\",INDIRECT(\"'\"&F7333&\"'!\"&G7333))","v":""},{"$f":"IF(ISBLANK(INDIRECT(\"'\"&F7333&\"'!\"&H7333)),\"\",IFERROR(VLOOKUP(TEXT(INDIRECT(\"'\"&F7333&\"'!\"&H7333),\"0\"),Notes!$B$5:$C$100,2,FALSE),\"\"))","v":""},"2a","$E$138","$F$138"]
[26677,{"$f":"Menu!$F$29","v":"X"},{"$f":"Menu!$J$29","v":2020},{"$f":"IF(ISBLANK(INDIRECT(\"'\"&F7334&\"'!\"&G7334)),\"\",INDIRECT(\"'\"&F7334&\"'!\"&G7334))","v":""},{"$f":"IF(ISBLANK(INDIRECT(\"'\"&F7334&\"'!\"&H7334)),\"\",IFERROR(VLOOKUP(TEXT(INDIRECT(\"'\"&F7334&\"'!\"&H7334),\"0\"),Notes!$B$5:$C$100,2,FALSE),\"\"))","v":""},"2b","$K$139","$L$139"]
[26678,{"$f":"Menu!$F$29","v":"X"},{"$f":"Menu!$J$29","v":2020},{"$f":"IF(ISBLANK(INDIRECT(\"'\"&F7335&\"'!\"&G7335)),\"\",INDIRECT(\"'\"&F7335&\"'!\"&G7335))","v":""},{"$f":"IF(ISBLANK(INDIRECT(\"'\"&F7335&\"'!\"&H7335)),\"\",IFERROR(VLOOKUP(TEXT(INDIRECT(\"'\"&F7335&\"'!\"&H7335),\"0\"),Notes!$B$5:$C$100,2,FALSE),\"\"))","v":""},"2b","$O$139","$P$139"]
[26679,{"$f":"Menu!$F$29","v":"X"},{"$f":"Menu!$J$29","v":2020},{"$f":"IF(ISBLANK(INDIRECT(\"'\"&F7336&\"'!\"&G7336)),\"\",INDIRECT(\"'\"&F7336&\"'!\"&G7336))","v":""},{"$f":"IF(ISBLANK(INDIRECT(\"'\"&F7336&\"'!\"&H7336)),\"\",IFERROR(VLOOKUP(TEXT(INDIRECT(\"'\"&F7336&\"'!\"&H7336),\"0\"),Notes!$B$5:$C$100,2,FALSE),\"\"))","v":""},"2b","$M$139","$N$139"]
[26680,{"$f":"Menu!$F$29","v":"X"},{"$f":"Menu!$J$29","v":2020},{"$f":"IF(ISBLANK(INDIRECT(\"'\"&F7337&\"'!\"&G7337)),\"\",INDIRECT(\"'\"&F7337&\"'!\"&G7337))","v":""},{"$f":"IF(ISBLANK(INDIRECT(\"'\"&F7337&\"'!\"&H7337)),\"\",IFERROR(VLOOKUP(TEXT(INDIRECT(\"'\"&F7337&\"'!\"&H7337),\"0\"),Notes!$B$5:$C$100,2,FALSE),\"\"))","v":""},"2b","$Q$139","$R$139"]
[26681,{"$f":"Menu!$F$29","v":"X"},{"$f":"Menu!$J$29","v":2020},{"$f":"IF(ISBLANK(INDIRECT(\"'\"&F7338&\"'!\"&G7338)),\"\",INDIRECT(\"'\"&F7338&\"'!\"&G7338))","v":""},{"$f":"IF(ISBLANK(INDIRECT(\"'\"&F7338&\"'!\"&H7338)),\"\",IFERROR(VLOOKUP(TEXT(INDIRECT(\"'\"&F7338&\"'!\"&H7338),\"0\"),Notes!$B$5:$C$100,2,FALSE),\"\"))","v":""},"2b","$U$139","$V$139"]
[26682,{"$f":"Menu!$F$29","v":"X"},{"$f":"Menu!$J$29","v":2020},{"$f":"IF(ISBLANK(INDIRECT(\"'\"&F7339&\"'!\"&G7339)),\"\",INDIRECT(\"'\"&F7339&\"'!\"&G7339))","v":""},{"$f":"IF(ISBLANK(INDIRECT(\"'\"&F7339&\"'!\"&H7339)),\"\",IFERROR(VLOOKUP(TEXT(INDIRECT(\"'\"&F7339&\"'!\"&H7339),\"0\"),Notes!$B$5:$C$100,2,FALSE),\"\"))","v":""},"2b","$S$139","$T$139"]
[26686,{"$f":"Menu!$F$29","v":"X"},{"$f":"Menu!$J$29","v":2020},{"$f":"IF(ISBLANK(INDIRECT(\"'\"&F7340&\"'!\"&G7340)),\"\",INDIRECT(\"'\"&F7340&\"'!\"&G7340))","v":""},null,"2a","$I$139","$J$139"]
[26687,{"$f":"Menu!$F$29","v":"X"},{"$f":"Menu!$J$29","v":2020},{"$f":"IF(ISBLANK(INDIRECT(\"'\"&F7341&\"'!\"&G7341)),\"\",INDIRECT(\"'\"&F7341&\"'!\"&G7341))","v":""},{"$f":"IF(ISBLANK(INDIRECT(\"'\"&F7341&\"'!\"&H7341)),\"\",IFERROR(VLOOKUP(TEXT(INDIRECT(\"'\"&F7341&\"'!\"&H7341),\"0\"),Notes!$B$5:$C$100,2,FALSE),\"\"))","v":""},"2c","$E$139","$F$139"]
[26688,{"$f":"Menu!$F$29","v":"X"},{"$f":"Menu!$J$29","v":2020},{"$f":"IF(ISBLANK(INDIRECT(\"'\"&F7342&\"'!\"&G7342)),\"\",INDIRECT(\"'\"&F7342&\"'!\"&G7342))","v":""},{"$f":"IF(ISBLANK(INDIRECT(\"'\"&F7342&\"'!\"&H7342)),\"\",IFERROR(VLOOKUP(TEXT(INDIRECT(\"'\"&F7342&\"'!\"&H7342),\"0\"),Notes!$B$5:$C$100,2,FALSE),\"\"))","v":""},"2c","$I$139","$J$139"]
[26689,{"$f":"Menu!$F$29","v":"X"},{"$f":"Menu!$J$29","v":2020},{"$f":"IF(ISBLANK(INDIRECT(\"'\"&F7343&\"'!\"&G7343)),\"\",INDIRECT(\"'\"&F7343&\"'!\"&G7343))","v":""},{"$f":"IF(ISBLANK(INDIRECT(\"'\"&F7343&\"'!\"&H7343)),\"\",IFERROR(VLOOKUP(TEXT(INDIRECT(\"'\"&F7343&\"'!\"&H7343),\"0\"),Notes!$B$5:$C$100,2,FALSE),\"\"))","v":""},"2c","$G$139","$H$139"]
[26693,{"$f":"Menu!$F$29","v":"X"},{"$f":"Menu!$J$29","v":2020},{"$f":"IF(ISBLANK(INDIRECT(\"'\"&F7344&\"'!\"&G7344)),\"\",INDIRECT(\"'\"&F7344&\"'!\"&G7344))","v":""},{"$f":"IF(ISBLANK(INDIRECT(\"'\"&F7344&\"'!\"&H7344)),\"\",IFERROR(VLOOKUP(TEXT(INDIRECT(\"'\"&F7344&\"'!\"&H7344),\"0\"),Notes!$B$5:$C$100,2,FALSE),\"\"))","v":""},"2c","$K$139","$L$139"]
[26694,{"$f":"Menu!$F$29","v":"X"},{"$f":"Menu!$J$29","v":2020},{"$f":"IF(ISBLANK(INDIRECT(\"'\"&F7345&\"'!\"&G7345)),\"\",INDIRECT(\"'\"&F7345&\"'!\"&G7345))","v":""},{"$f":"IF(ISBLANK(INDIRECT(\"'\"&F7345&\"'!\"&H7345)),\"\",IFERROR(VLOOKUP(TEXT(INDIRECT(\"'\"&F7345&\"'!\"&H7345),\"0\"),Notes!$B$5:$C$100,2,FALSE),\"\"))","v":""},"2c","$O$139","$P$139"]
[26695,{"$f":"Menu!$F$29","v":"X"},{"$f":"Menu!$J$29","v":2020},{"$f":"IF(ISBLANK(INDIRECT(\"'\"&F7346&\"'!\"&G7346)),\"\",INDIRECT(\"'\"&F7346&\"'!\"&G7346))","v":""},{"$f":"IF(ISBLANK(INDIRECT(\"'\"&F7346&\"'!\"&H7346)),\"\",IFERROR(VLOOKUP(TEXT(INDIRECT(\"'\"&F7346&\"'!\"&H7346),\"0\"),Notes!$B$5:$C$100,2,FALSE),\"\"))","v":""},"2c","$M$139","$N$139"]
[26696,{"$f":"Menu!$F$29","v":"X"},{"$f":"Menu!$J$29","v":2020},{"$f":"IF(ISBLANK(INDIRECT(\"'\"&F7347&\"'!\"&G7347)),\"\",INDIRECT(\"'\"&F7347&\"'!\"&G7347))","v":""},{"$f":"IF(ISBLANK(INDIRECT(\"'\"&F7347&\"'!\"&H7347)),\"\",IFERROR(VLOOKUP(TEXT(INDIRECT(\"'\"&F7347&\"'!\"&H7347),\"0\"),Notes!$B$5:$C$100,2,FALSE),\"\"))","v":""},"2c","$Q$139","$R$139"]
[26697,{"$f":"Menu!$F$29","v":"X"},{"$f":"Menu!$J$29","v":2020},{"$f":"IF(ISBLANK(INDIRECT(\"'\"&F7348&\"'!\"&G7348)),\"\",INDIRECT(\"'\"&F7348&\"'!\"&G7348))","v":""},{"$f":"IF(ISBLANK(INDIRECT(\"'\"&F7348&\"'!\"&H7348)),\"\",IFERROR(VLOOKUP(TEXT(INDIRECT(\"'\"&F7348&\"'!\"&H7348),\"0\"),Notes!$B$5:$C$100,2,FALSE),\"\"))","v":""},"2c","$U$139","$V$139"]
[26698,{"$f":"Menu!$F$29","v":"X"},{"$f":"Menu!$J$29","v":2020},{"$f":"IF(ISBLANK(INDIRECT(\"'\"&F7349&\"'!\"&G7349)),\"\",INDIRECT(\"'\"&F7349&\"'!\"&G7349))","v":""},{"$f":"IF(ISBLANK(INDIRECT(\"'\"&F7349&\"'!\"&H7349)),\"\",IFERROR(VLOOKUP(TEXT(INDIRECT(\"'\"&F7349&\"'!\"&H7349),\"0\"),Notes!$B$5:$C$100,2,FALSE),\"\"))","v":""},"2c","$S$139","$T$139"]
[26699,{"$f":"Menu!$F$29","v":"X"},{"$f":"Menu!$J$29","v":2020},{"$f":"IF(ISBLANK(INDIRECT(\"'\"&F7350&\"'!\"&G7350)),\"\",INDIRECT(\"'\"&F7350&\"'!\"&G7350))","v":""},{"$f":"IF(ISBLANK(INDIRECT(\"'\"&F7350&\"'!\"&H7350)),\"\",IFERROR(VLOOKUP(TEXT(INDIRECT(\"'\"&F7350&\"'!\"&H7350),\"0\"),Notes!$B$5:$C$100,2,FALSE),\"\"))","v":""},"2c","$W$139","$X$139"]
[26700,{"$f":"Menu!$F$29","v":"X"},{"$f":"Menu!$J$29","v":2020},{"$f":"IF(ISBLANK(INDIRECT(\"'\"&F7351&\"'!\"&G7351)),\"\",INDIRECT(\"'\"&F7351&\"'!\"&G7351))","v":""},{"$f":"IF(ISBLANK(INDIRECT(\"'\"&F7351&\"'!\"&H7351)),\"\",IFERROR(VLOOKUP(TEXT(INDIRECT(\"'\"&F7351&\"'!\"&H7351),\"0\"),Notes!$B$5:$C$100,2,FALSE),\"\"))","v":""},"2c","$AA$139","$AB$139"]
[26701,{"$f":"Menu!$F$29","v":"X"},{"$f":"Menu!$J$29","v":2020},{"$f":"IF(ISBLANK(INDIRECT(\"'\"&F7352&\"'!\"&G7352)),\"\",INDIRECT(\"'\"&F7352&\"'!\"&G7352))","v":""},{"$f":"IF(ISBLANK(INDIRECT(\"'\"&F7352&\"'!\"&H7352)),\"\",IFERROR(VLOOKUP(TEXT(INDIRECT(\"'\"&F7352&\"'!\"&H7352),\"0\"),Notes!$B$5:$C$100,2,FALSE),\"\"))","v":""},"2c","$Y$139","$Z$139"]
[26708,{"$f":"Menu!$F$29","v":"X"},{"$f":"Menu!$J$29","v":2020},{"$f":"IF(ISBLANK(INDIRECT(\"'\"&F7353&\"'!\"&G7353)),\"\",INDIRECT(\"'\"&F7353&\"'!\"&G7353))","v":""},{"$f":"IF(ISBLANK(INDIRECT(\"'\"&F7353&\"'!\"&H7353)),\"\",IFERROR(VLOOKUP(TEXT(INDIRECT(\"'\"&F7353&\"'!\"&H7353),\"0\"),Notes!$B$5:$C$100,2,FALSE),\"\"))","v":""},"2e","$BG$140","$BH$140"]
[26709,{"$f":"Menu!$F$29","v":"X"},{"$f":"Menu!$J$29","v":2020},{"$f":"IF(ISBLANK(INDIRECT(\"'\"&F7354&\"'!\"&G7354)),\"\",INDIRECT(\"'\"&F7354&\"'!\"&G7354))","v":""},{"$f":"IF(ISBLANK(INDIRECT(\"'\"&F7354&\"'!\"&H7354)),\"\",IFERROR(VLOOKUP(TEXT(INDIRECT(\"'\"&F7354&\"'!\"&H7354),\"0\"),Notes!$B$5:$C$100,2,FALSE),\"\"))","v":""},"2e","$BK$140","$BL$140"]
[26710,{"$f":"Menu!$F$29","v":"X"},{"$f":"Menu!$J$29","v":2020},{"$f":"IF(ISBLANK(INDIRECT(\"'\"&F7355&\"'!\"&G7355)),\"\",INDIRECT(\"'\"&F7355&\"'!\"&G7355))","v":""},{"$f":"IF(ISBLANK(INDIRECT(\"'\"&F7355&\"'!\"&H7355)),\"\",IFERROR(VLOOKUP(TEXT(INDIRECT(\"'\"&F7355&\"'!\"&H7355),\"0\"),Notes!$B$5:$C$100,2,FALSE),\"\"))","v":""},"2e","$BI$140","$BJ$140"]
[26711,{"$f":"Menu!$F$29","v":"X"},{"$f":"Menu!$J$29","v":2020},{"$f":"IF(ISBLANK(INDIRECT(\"'\"&F7356&\"'!\"&G7356)),\"\",INDIRECT(\"'\"&F7356&\"'!\"&G7356))","v":""},{"$f":"IF(ISBLANK(INDIRECT(\"'\"&F7356&\"'!\"&H7356)),\"\",IFERROR(VLOOKUP(TEXT(INDIRECT(\"'\"&F7356&\"'!\"&H7356),\"0\"),Notes!$B$5:$C$100,2,FALSE),\"\"))","v":""},"2e","$E$140","$F$140"]
[26712,{"$f":"Menu!$F$29","v":"X"},{"$f":"Menu!$J$29","v":2020},{"$f":"IF(ISBLANK(INDIRECT(\"'\"&F7357&\"'!\"&G7357)),\"\",INDIRECT(\"'\"&F7357&\"'!\"&G7357))","v":""},{"$f":"IF(ISBLANK(INDIRECT(\"'\"&F7357&\"'!\"&H7357)),\"\",IFERROR(VLOOKUP(TEXT(INDIRECT(\"'\"&F7357&\"'!\"&H7357),\"0\"),Notes!$B$5:$C$100,2,FALSE),\"\"))","v":""},"2e","$I$140","$J$140"]
[26713,{"$f":"Menu!$F$29","v":"X"},{"$f":"Menu!$J$29","v":2020},{"$f":"IF(ISBLANK(INDIRECT(\"'\"&F7358&\"'!\"&G7358)),\"\",INDIRECT(\"'\"&F7358&\"'!\"&G7358))","v":""},{"$f":"IF(ISBLANK(INDIRECT(\"'\"&F7358&\"'!\"&H7358)),\"\",IFERROR(VLOOKUP(TEXT(INDIRECT(\"'\"&F7358&\"'!\"&H7358),\"0\"),Notes!$B$5:$C$100,2,FALSE),\"\"))","v":""},"2e","$G$140","$H$140"]
[26714,{"$f":"Menu!$F$29","v":"X"},{"$f":"Menu!$J$29","v":2020},{"$f":"IF(ISBLANK(INDIRECT(\"'\"&F7359&\"'!\"&G7359)),\"\",INDIRECT(\"'\"&F7359&\"'!\"&G7359))","v":""},{"$f":"IF(ISBLANK(INDIRECT(\"'\"&F7359&\"'!\"&H7359)),\"\",IFERROR(VLOOKUP(TEXT(INDIRECT(\"'\"&F7359&\"'!\"&H7359),\"0\"),Notes!$B$5:$C$100,2,FALSE),\"\"))","v":""},"2e","$K$140","$L$140"]
[26715,{"$f":"Menu!$F$29","v":"X"},{"$f":"Menu!$J$29","v":2020},{"$f":"IF(ISBLANK(INDIRECT(\"'\"&F7360&\"'!\"&G7360)),\"\",INDIRECT(\"'\"&F7360&\"'!\"&G7360))","v":""},{"$f":"IF(ISBLANK(INDIRECT(\"'\"&F7360&\"'!\"&H7360)),\"\",IFERROR(VLOOKUP(TEXT(INDIRECT(\"'\"&F7360&\"'!\"&H7360),\"0\"),Notes!$B$5:$C$100,2,FALSE),\"\"))","v":""},"2e","$O$140","$P$140"]
[26716,{"$f":"Menu!$F$29","v":"X"},{"$f":"Menu!$J$29","v":2020},{"$f":"IF(ISBLANK(INDIRECT(\"'\"&F7361&\"'!\"&G7361)),\"\",INDIRECT(\"'\"&F7361&\"'!\"&G7361))","v":""},{"$f":"IF(ISBLANK(INDIRECT(\"'\"&F7361&\"'!\"&H7361)),\"\",IFERROR(VLOOKUP(TEXT(INDIRECT(\"'\"&F7361&\"'!\"&H7361),\"0\"),Notes!$B$5:$C$100,2,FALSE),\"\"))","v":""},"2e","$M$140","$N$140"]
[26717,{"$f":"Menu!$F$29","v":"X"},{"$f":"Menu!$J$29","v":2020},{"$f":"IF(ISBLANK(INDIRECT(\"'\"&F7362&\"'!\"&G7362)),\"\",INDIRECT(\"'\"&F7362&\"'!\"&G7362))","v":""},{"$f":"IF(ISBLANK(INDIRECT(\"'\"&F7362&\"'!\"&H7362)),\"\",IFERROR(VLOOKUP(TEXT(INDIRECT(\"'\"&F7362&\"'!\"&H7362),\"0\"),Notes!$B$5:$C$100,2,FALSE),\"\"))","v":""},"2e","$Q$140",{"$f":"IF(LEN(TRIM(MID(G7362,4,10)))-LEN(SUBSTITUTE(TRIM(MID(G7362,4,10)),\"$\",\"\"))=0,\"$\"&CHAR(CODE(MID(G7362,2,1))+1)&\"$\"&TRIM(MID(G7362,4,10)),\"$\"&MID(G7362,2,1)&CHAR(CODE(MID(G7362,3,1))+1)&\"$\"&TRIM(MID(G7362,5,11)))","v":"$R$140"}]
[26718,{"$f":"Menu!$F$29","v":"X"},{"$f":"Menu!$J$29","v":2020},{"$f":"IF(ISBLANK(INDIRECT(\"'\"&F7363&\"'!\"&G7363)),\"\",INDIRECT(\"'\"&F7363&\"'!\"&G7363))","v":""},{"$f":"IF(ISBLANK(INDIRECT(\"'\"&F7363&\"'!\"&H7363)),\"\",IFERROR(VLOOKUP(TEXT(INDIRECT(\"'\"&F7363&\"'!\"&H7363),\"0\"),Notes!$B$5:$C$100,2,FALSE),\"\"))","v":""},"2e","$U$140","$V$140"]
[26719,{"$f":"Menu!$F$29","v":"X"},{"$f":"Menu!$J$29","v":2020},{"$f":"IF(ISBLANK(INDIRECT(\"'\"&F7364&\"'!\"&G7364)),\"\",INDIRECT(\"'\"&F7364&\"'!\"&G7364))","v":""},{"$f":"IF(ISBLANK(INDIRECT(\"'\"&F7364&\"'!\"&H7364)),\"\",IFERROR(VLOOKUP(TEXT(INDIRECT(\"'\"&F7364&\"'!\"&H7364),\"0\"),Notes!$B$5:$C$100,2,FALSE),\"\"))","v":""},"2e","$S$140","$T$140"]
[26720,{"$f":"Menu!$F$29","v":"X"},{"$f":"Menu!$J$29","v":2020},{"$f":"IF(ISBLANK(INDIRECT(\"'\"&F7365&\"'!\"&G7365)),\"\",INDIRECT(\"'\"&F7365&\"'!\"&G7365))","v":""},{"$f":"IF(ISBLANK(INDIRECT(\"'\"&F7365&\"'!\"&H7365)),\"\",IFERROR(VLOOKUP(TEXT(INDIRECT(\"'\"&F7365&\"'!\"&H7365),\"0\"),Notes!$B$5:$C$100,2,FALSE),\"\"))","v":""},"2e","$W$140","$X$140"]
[26721,{"$f":"Menu!$F$29","v":"X"},{"$f":"Menu!$J$29","v":2020},{"$f":"IF(ISBLANK(INDIRECT(\"'\"&F7366&\"'!\"&G7366)),\"\",INDIRECT(\"'\"&F7366&\"'!\"&G7366))","v":""},{"$f":"IF(ISBLANK(INDIRECT(\"'\"&F7366&\"'!\"&H7366)),\"\",IFERROR(VLOOKUP(TEXT(INDIRECT(\"'\"&F7366&\"'!\"&H7366),\"0\"),Notes!$B$5:$C$100,2,FALSE),\"\"))","v":""},"2e","$AA$140","$AB$140"]
[26722,{"$f":"Menu!$F$29","v":"X"},{"$f":"Menu!$J$29","v":2020},{"$f":"IF(ISBLANK(INDIRECT(\"'\"&F7367&\"'!\"&G7367)),\"\",INDIRECT(\"'\"&F7367&\"'!\"&G7367))","v":""},{"$f":"IF(ISBLANK(INDIRECT(\"'\"&F7367&\"'!\"&H7367)),\"\",IFERROR(VLOOKUP(TEXT(INDIRECT(\"'\"&F7367&\"'!\"&H7367),\"0\"),Notes!$B$5:$C$100,2,FALSE),\"\"))","v":""},"2e","$Y$140","$Z$140"]
[26723,{"$f":"Menu!$F$29","v":"X"},{"$f":"Menu!$J$29","v":2020},{"$f":"IF(ISBLANK(INDIRECT(\"'\"&F7368&\"'!\"&G7368)),\"\",INDIRECT(\"'\"&F7368&\"'!\"&G7368))","v":""},{"$f":"IF(ISBLANK(INDIRECT(\"'\"&F7368&\"'!\"&H7368)),\"\",IFERROR(VLOOKUP(TEXT(INDIRECT(\"'\"&F7368&\"'!\"&H7368),\"0\"),Notes!$B$5:$C$100,2,FALSE),\"\"))","v":""},"2e","$AC$140","$AD$140"]
[26724,{"$f":"Menu!$F$29","v":"X"},{"$f":"Menu!$J$29","v":2020},{"$f":"IF(ISBLANK(INDIRECT(\"'\"&F7369&\"'!\"&G7369)),\"\",INDIRECT(\"'\"&F7369&\"'!\"&G7369))","v":""},{"$f":"IF(ISBLANK(INDIRECT(\"'\"&F7369&\"'!\"&H7369)),\"\",IFERROR(VLOOKUP(TEXT(INDIRECT(\"'\"&F7369&\"'!\"&H7369),\"0\"),Notes!$B$5:$C$100,2,FALSE),\"\"))","v":""},"2e","$AG$140","$AH$140"]
[26725,{"$f":"Menu!$F$29","v":"X"},{"$f":"Menu!$J$29","v":2020},{"$f":"IF(ISBLANK(INDIRECT(\"'\"&F7370&\"'!\"&G7370)),\"\",INDIRECT(\"'\"&F7370&\"'!\"&G7370))","v":""},{"$f":"IF(ISBLANK(INDIRECT(\"'\"&F7370&\"'!\"&H7370)),\"\",IFERROR(VLOOKUP(TEXT(INDIRECT(\"'\"&F7370&\"'!\"&H7370),\"0\"),Notes!$B$5:$C$100,2,FALSE),\"\"))","v":""},"2e","$AE$140","$AF$140"]
[26726,{"$f":"Menu!$F$29","v":"X"},{"$f":"Menu!$J$29","v":2020},{"$f":"IF(ISBLANK(INDIRECT(\"'\"&F7371&\"'!\"&G7371)),\"\",INDIRECT(\"'\"&F7371&\"'!\"&G7371))","v":""},{"$f":"IF(ISBLANK(INDIRECT(\"'\"&F7371&\"'!\"&H7371)),\"\",IFERROR(VLOOKUP(TEXT(INDIRECT(\"'\"&F7371&\"'!\"&H7371),\"0\"),Notes!$B$5:$C$100,2,FALSE),\"\"))","v":""},"2e","$AI$140","$AJ$140"]
[26727,{"$f":"Menu!$F$29","v":"X"},{"$f":"Menu!$J$29","v":2020},{"$f":"IF(ISBLANK(INDIRECT(\"'\"&F7372&\"'!\"&G7372)),\"\",INDIRECT(\"'\"&F7372&\"'!\"&G7372))","v":""},{"$f":"IF(ISBLANK(INDIRECT(\"'\"&F7372&\"'!\"&H7372)),\"\",IFERROR(VLOOKUP(TEXT(INDIRECT(\"'\"&F7372&\"'!\"&H7372),\"0\"),Notes!$B$5:$C$100,2,FALSE),\"\"))","v":""},"2e","$AM$140","$AN$140"]
[26728,{"$f":"Menu!$F$29","v":"X"},{"$f":"Menu!$J$29","v":2020},{"$f":"IF(ISBLANK(INDIRECT(\"'\"&F7373&\"'!\"&G7373)),\"\",INDIRECT(\"'\"&F7373&\"'!\"&G7373))","v":""},{"$f":"IF(ISBLANK(INDIRECT(\"'\"&F7373&\"'!\"&H7373)),\"\",IFERROR(VLOOKUP(TEXT(INDIRECT(\"'\"&F7373&\"'!\"&H7373),\"0\"),Notes!$B$5:$C$100,2,FALSE),\"\"))","v":""},"2e","$AK$140","$AL$140"]
[26729,{"$f":"Menu!$F$29","v":"X"},{"$f":"Menu!$J$29","v":2020},{"$f":"IF(ISBLANK(INDIRECT(\"'\"&F7374&\"'!\"&G7374)),\"\",INDIRECT(\"'\"&F7374&\"'!\"&G7374))","v":""},{"$f":"IF(ISBLANK(INDIRECT(\"'\"&F7374&\"'!\"&H7374)),\"\",IFERROR(VLOOKUP(TEXT(INDIRECT(\"'\"&F7374&\"'!\"&H7374),\"0\"),Notes!$B$5:$C$100,2,FALSE),\"\"))","v":""},"2e","$AO$140","$AP$140"]
[26730,{"$f":"Menu!$F$29","v":"X"},{"$f":"Menu!$J$29","v":2020},{"$f":"IF(ISBLANK(INDIRECT(\"'\"&F7375&\"'!\"&G7375)),\"\",INDIRECT(\"'\"&F7375&\"'!\"&G7375))","v":""},{"$f":"IF(ISBLANK(INDIRECT(\"'\"&F7375&\"'!\"&H7375)),\"\",IFERROR(VLOOKUP(TEXT(INDIRECT(\"'\"&F7375&\"'!\"&H7375),\"0\"),Notes!$B$5:$C$100,2,FALSE),\"\"))","v":""},"2e","$AS$140","$AT$140"]
[26731,{"$f":"Menu!$F$29","v":"X"},{"$f":"Menu!$J$29","v":2020},{"$f":"IF(ISBLANK(INDIRECT(\"'\"&F7376&\"'!\"&G7376)),\"\",INDIRECT(\"'\"&F7376&\"'!\"&G7376))","v":""},{"$f":"IF(ISBLANK(INDIRECT(\"'\"&F7376&\"'!\"&H7376)),\"\",IFERROR(VLOOKUP(TEXT(INDIRECT(\"'\"&F7376&\"'!\"&H7376),\"0\"),Notes!$B$5:$C$100,2,FALSE),\"\"))","v":""},"2e","$AQ$140","$AR$140"]
[26732,{"$f":"Menu!$F$29","v":"X"},{"$f":"Menu!$J$29","v":2020},{"$f":"IF(ISBLANK(INDIRECT(\"'\"&F7377&\"'!\"&G7377)),\"\",INDIRECT(\"'\"&F7377&\"'!\"&G7377))","v":""},{"$f":"IF(ISBLANK(INDIRECT(\"'\"&F7377&\"'!\"&H7377)),\"\",IFERROR(VLOOKUP(TEXT(INDIRECT(\"'\"&F7377&\"'!\"&H7377),\"0\"),Notes!$B$5:$C$100,2,FALSE),\"\"))","v":""},"2e","$AU$140","$AV$140"]
[26733,{"$f":"Menu!$F$29","v":"X"},{"$f":"Menu!$J$29","v":2020},{"$f":"IF(ISBLANK(INDIRECT(\"'\"&F7378&\"'!\"&G7378)),\"\",INDIRECT(\"'\"&F7378&\"'!\"&G7378))","v":""},{"$f":"IF(ISBLANK(INDIRECT(\"'\"&F7378&\"'!\"&H7378)),\"\",IFERROR(VLOOKUP(TEXT(INDIRECT(\"'\"&F7378&\"'!\"&H7378),\"0\"),Notes!$B$5:$C$100,2,FALSE),\"\"))","v":""},"2e","$AY$140","$AZ$140"]
[26734,{"$f":"Menu!$F$29","v":"X"},{"$f":"Menu!$J$29","v":2020},{"$f":"IF(ISBLANK(INDIRECT(\"'\"&F7379&\"'!\"&G7379)),\"\",INDIRECT(\"'\"&F7379&\"'!\"&G7379))","v":""},{"$f":"IF(ISBLANK(INDIRECT(\"'\"&F7379&\"'!\"&H7379)),\"\",IFERROR(VLOOKUP(TEXT(INDIRECT(\"'\"&F7379&\"'!\"&H7379),\"0\"),Notes!$B$5:$C$100,2,FALSE),\"\"))","v":""},"2e","$AW$140","$AX$140"]
[26735,{"$f":"Menu!$F$29","v":"X"},{"$f":"Menu!$J$29","v":2020},{"$f":"IF(ISBLANK(INDIRECT(\"'\"&F7380&\"'!\"&G7380)),\"\",INDIRECT(\"'\"&F7380&\"'!\"&G7380))","v":""},{"$f":"IF(ISBLANK(INDIRECT(\"'\"&F7380&\"'!\"&H7380)),\"\",IFERROR(VLOOKUP(TEXT(INDIRECT(\"'\"&F7380&\"'!\"&H7380),\"0\"),Notes!$B$5:$C$100,2,FALSE),\"\"))","v":""},"2e","$BA$140","$BB$140"]
[26736,{"$f":"Menu!$F$29","v":"X"},{"$f":"Menu!$J$29","v":2020},{"$f":"IF(ISBLANK(INDIRECT(\"'\"&F7381&\"'!\"&G7381)),\"\",INDIRECT(\"'\"&F7381&\"'!\"&G7381))","v":""},{"$f":"IF(ISBLANK(INDIRECT(\"'\"&F7381&\"'!\"&H7381)),\"\",IFERROR(VLOOKUP(TEXT(INDIRECT(\"'\"&F7381&\"'!\"&H7381),\"0\"),Notes!$B$5:$C$100,2,FALSE),\"\"))","v":""},"2e","$BE$140","$BF$140"]
[26737,{"$f":"Menu!$F$29","v":"X"},{"$f":"Menu!$J$29","v":2020},{"$f":"IF(ISBLANK(INDIRECT(\"'\"&F7382&\"'!\"&G7382)),\"\",INDIRECT(\"'\"&F7382&\"'!\"&G7382))","v":""},{"$f":"IF(ISBLANK(INDIRECT(\"'\"&F7382&\"'!\"&H7382)),\"\",IFERROR(VLOOKUP(TEXT(INDIRECT(\"'\"&F7382&\"'!\"&H7382),\"0\"),Notes!$B$5:$C$100,2,FALSE),\"\"))","v":""},"2e","$BC$140","$BD$140"]
[26738,{"$f":"Menu!$F$29","v":"X"},{"$f":"Menu!$J$29","v":2020},{"$f":"IF(ISBLANK(INDIRECT(\"'\"&F7383&\"'!\"&G7383)),\"\",INDIRECT(\"'\"&F7383&\"'!\"&G7383))","v":""},{"$f":"IF(ISBLANK(INDIRECT(\"'\"&F7383&\"'!\"&H7383)),\"\",IFERROR(VLOOKUP(TEXT(INDIRECT(\"'\"&F7383&\"'!\"&H7383),\"0\"),Notes!$B$5:$C$100,2,FALSE),\"\"))","v":""},"2b","$E$139","$F$139"]
[26739,{"$f":"Menu!$F$29","v":"X"},{"$f":"Menu!$J$29","v":2020},{"$f":"IF(ISBLANK(INDIRECT(\"'\"&F7384&\"'!\"&G7384)),\"\",INDIRECT(\"'\"&F7384&\"'!\"&G7384))","v":""},{"$f":"IF(ISBLANK(INDIRECT(\"'\"&F7384&\"'!\"&H7384)),\"\",IFERROR(VLOOKUP(TEXT(INDIRECT(\"'\"&F7384&\"'!\"&H7384),\"0\"),Notes!$B$5:$C$100,2,FALSE),\"\"))","v":""},"2b","$I$139","$J$139"]
[26740,{"$f":"Menu!$F$29","v":"X"},{"$f":"Menu!$J$29","v":2020},{"$f":"IF(ISBLANK(INDIRECT(\"'\"&F7385&\"'!\"&G7385)),\"\",INDIRECT(\"'\"&F7385&\"'!\"&G7385))","v":""},{"$f":"IF(ISBLANK(INDIRECT(\"'\"&F7385&\"'!\"&H7385)),\"\",IFERROR(VLOOKUP(TEXT(INDIRECT(\"'\"&F7385&\"'!\"&H7385),\"0\"),Notes!$B$5:$C$100,2,FALSE),\"\"))","v":""},"2b","$G$139","$H$139"]
[26741,{"$f":"Menu!$F$29","v":"X"},{"$f":"Menu!$J$29","v":2020},{"$f":"IF(ISBLANK(INDIRECT(\"'\"&F7386&\"'!\"&G7386)),\"\",INDIRECT(\"'\"&F7386&\"'!\"&G7386))","v":""},null,"2a","$G$139","$H$139"]
[26742,{"$f":"Menu!$F$29","v":"X"},{"$f":"Menu!$J$29","v":2020},{"$f":"IF(ISBLANK(INDIRECT(\"'\"&F7387&\"'!\"&G7387)),\"\",INDIRECT(\"'\"&F7387&\"'!\"&G7387))","v":""},{"$f":"IF(ISBLANK(INDIRECT(\"'\"&F7387&\"'!\"&H7387)),\"\",IFERROR(VLOOKUP(TEXT(INDIRECT(\"'\"&F7387&\"'!\"&H7387),\"0\"),Notes!$B$5:$C$100,2,FALSE),\"\"))","v":""},"2b","$W$139","$X$139"]
[26743,{"$f":"Menu!$F$29","v":"X"},{"$f":"Menu!$J$29","v":2020},{"$f":"IF(ISBLANK(INDIRECT(\"'\"&F7388&\"'!\"&G7388)),\"\",INDIRECT(\"'\"&F7388&\"'!\"&G7388))","v":""},{"$f":"IF(ISBLANK(INDIRECT(\"'\"&F7388&\"'!\"&H7388)),\"\",IFERROR(VLOOKUP(TEXT(INDIRECT(\"'\"&F7388&\"'!\"&H7388),\"0\"),Notes!$B$5:$C$100,2,FALSE),\"\"))","v":""},"2b","$AA$139","$AB$139"]
[26744,{"$f":"Menu!$F$29","v":"X"},{"$f":"Menu!$J$29","v":2020},{"$f":"IF(ISBLANK(INDIRECT(\"'\"&F7389&\"'!\"&G7389)),\"\",INDIRECT(\"'\"&F7389&\"'!\"&G7389))","v":""},{"$f":"IF(ISBLANK(INDIRECT(\"'\"&F7389&\"'!\"&H7389)),\"\",IFERROR(VLOOKUP(TEXT(INDIRECT(\"'\"&F7389&\"'!\"&H7389),\"0\"),Notes!$B$5:$C$100,2,FALSE),\"\"))","v":""},"2b","$Y$139","$Z$139"]
[26745,{"$f":"Menu!$F$29","v":"X"},{"$f":"Menu!$J$29","v":2020},{"$f":"IF(ISBLANK(INDIRECT(\"'\"&F7390&\"'!\"&G7390)),\"\",INDIRECT(\"'\"&F7390&\"'!\"&G7390))","v":""},{"$f":"IF(ISBLANK(INDIRECT(\"'\"&F7390&\"'!\"&H7390)),\"\",IFERROR(VLOOKUP(TEXT(INDIRECT(\"'\"&F7390&\"'!\"&H7390),\"0\"),Notes!$B$5:$C$100,2,FALSE),\"\"))","v":""},"2d","$AC$139","$AD$139"]
[26746,{"$f":"Menu!$F$29","v":"X"},{"$f":"Menu!$J$29","v":2020},{"$f":"IF(ISBLANK(INDIRECT(\"'\"&F7391&\"'!\"&G7391)),\"\",INDIRECT(\"'\"&F7391&\"'!\"&G7391))","v":""},{"$f":"IF(ISBLANK(INDIRECT(\"'\"&F7391&\"'!\"&H7391)),\"\",IFERROR(VLOOKUP(TEXT(INDIRECT(\"'\"&F7391&\"'!\"&H7391),\"0\"),Notes!$B$5:$C$100,2,FALSE),\"\"))","v":""},"2d","$AG$139","$AH$139"]
[26747,{"$f":"Menu!$F$29","v":"X"},{"$f":"Menu!$J$29","v":2020},{"$f":"IF(ISBLANK(INDIRECT(\"'\"&F7392&\"'!\"&G7392)),\"\",INDIRECT(\"'\"&F7392&\"'!\"&G7392))","v":""},{"$f":"IF(ISBLANK(INDIRECT(\"'\"&F7392&\"'!\"&H7392)),\"\",IFERROR(VLOOKUP(TEXT(INDIRECT(\"'\"&F7392&\"'!\"&H7392),\"0\"),Notes!$B$5:$C$100,2,FALSE),\"\"))","v":""},"2d","$AE$139","$AF$139"]
[26748,{"$f":"Menu!$F$29","v":"X"},{"$f":"Menu!$J$29","v":2020},{"$f":"IF(ISBLANK(INDIRECT(\"'\"&F7393&\"'!\"&G7393)),\"\",INDIRECT(\"'\"&F7393&\"'!\"&G7393))","v":""},{"$f":"IF(ISBLANK(INDIRECT(\"'\"&F7393&\"'!\"&H7393)),\"\",IFERROR(VLOOKUP(TEXT(INDIRECT(\"'\"&F7393&\"'!\"&H7393),\"0\"),Notes!$B$5:$C$100,2,FALSE),\"\"))","v":""},"2d","$W$139","$X$139"]
[26749,{"$f":"Menu!$F$29","v":"X"},{"$f":"Menu!$J$29","v":2020},{"$f":"IF(ISBLANK(INDIRECT(\"'\"&F7394&\"'!\"&G7394)),\"\",INDIRECT(\"'\"&F7394&\"'!\"&G7394))","v":""},{"$f":"IF(ISBLANK(INDIRECT(\"'\"&F7394&\"'!\"&H7394)),\"\",IFERROR(VLOOKUP(TEXT(INDIRECT(\"'\"&F7394&\"'!\"&H7394),\"0\"),Notes!$B$5:$C$100,2,FALSE),\"\"))","v":""},"2d","$AA$139","$AB$139"]
[26750,{"$f":"Menu!$F$29","v":"X"},{"$f":"Menu!$J$29","v":2020},{"$f":"IF(ISBLANK(INDIRECT(\"'\"&F7395&\"'!\"&G7395)),\"\",INDIRECT(\"'\"&F7395&\"'!\"&G7395))","v":""},{"$f":"IF(ISBLANK(INDIRECT(\"'\"&F7395&\"'!\"&H7395)),\"\",IFERROR(VLOOKUP(TEXT(INDIRECT(\"'\"&F7395&\"'!\"&H7395),\"0\"),Notes!$B$5:$C$100,2,FALSE),\"\"))","v":""},"2d","$Y$139","$Z$139"]
[26751,{"$f":"Menu!$F$29","v":"X"},{"$f":"Menu!$J$29","v":2020},{"$f":"IF(ISBLANK(INDIRECT(\"'\"&F7396&\"'!\"&G7396)),\"\",INDIRECT(\"'\"&F7396&\"'!\"&G7396))","v":""},{"$f":"IF(ISBLANK(INDIRECT(\"'\"&F7396&\"'!\"&H7396)),\"\",IFERROR(VLOOKUP(TEXT(INDIRECT(\"'\"&F7396&\"'!\"&H7396),\"0\"),Notes!$B$5:$C$100,2,FALSE),\"\"))","v":""},"2d","$E$139","$F$139"]
[26752,{"$f":"Menu!$F$29","v":"X"},{"$f":"Menu!$J$29","v":2020},{"$f":"IF(ISBLANK(INDIRECT(\"'\"&F7397&\"'!\"&G7397)),\"\",INDIRECT(\"'\"&F7397&\"'!\"&G7397))","v":""},{"$f":"IF(ISBLANK(INDIRECT(\"'\"&F7397&\"'!\"&H7397)),\"\",IFERROR(VLOOKUP(TEXT(INDIRECT(\"'\"&F7397&\"'!\"&H7397),\"0\"),Notes!$B$5:$C$100,2,FALSE),\"\"))","v":""},"2d","$I$139","$J$139"]
[26753,{"$f":"Menu!$F$29","v":"X"},{"$f":"Menu!$J$29","v":2020},{"$f":"IF(ISBLANK(INDIRECT(\"'\"&F7398&\"'!\"&G7398)),\"\",INDIRECT(\"'\"&F7398&\"'!\"&G7398))","v":""},{"$f":"IF(ISBLANK(INDIRECT(\"'\"&F7398&\"'!\"&H7398)),\"\",IFERROR(VLOOKUP(TEXT(INDIRECT(\"'\"&F7398&\"'!\"&H7398),\"0\"),Notes!$B$5:$C$100,2,FALSE),\"\"))","v":""},"2d","$G$139","$H$139"]
[26754,{"$f":"Menu!$F$29","v":"X"},{"$f":"Menu!$J$29","v":2020},{"$f":"IF(ISBLANK(INDIRECT(\"'\"&F7399&\"'!\"&G7399)),\"\",INDIRECT(\"'\"&F7399&\"'!\"&G7399))","v":""},{"$f":"IF(ISBLANK(INDIRECT(\"'\"&F7399&\"'!\"&H7399)),\"\",IFERROR(VLOOKUP(TEXT(INDIRECT(\"'\"&F7399&\"'!\"&H7399),\"0\"),Notes!$B$5:$C$100,2,FALSE),\"\"))","v":""},"2a","$Q$139","$R$139"]
[26755,{"$f":"Menu!$F$29","v":"X"},{"$f":"Menu!$J$29","v":2020},{"$f":"IF(ISBLANK(INDIRECT(\"'\"&F7400&\"'!\"&G7400)),\"\",INDIRECT(\"'\"&F7400&\"'!\"&G7400))","v":""},{"$f":"IF(ISBLANK(INDIRECT(\"'\"&F7400&\"'!\"&H7400)),\"\",IFERROR(VLOOKUP(TEXT(INDIRECT(\"'\"&F7400&\"'!\"&H7400),\"0\"),Notes!$B$5:$C$100,2,FALSE),\"\"))","v":""},"2a","$U$139","$V$139"]
[26756,{"$f":"Menu!$F$29","v":"X"},{"$f":"Menu!$J$29","v":2020},{"$f":"IF(ISBLANK(INDIRECT(\"'\"&F7401&\"'!\"&G7401)),\"\",INDIRECT(\"'\"&F7401&\"'!\"&G7401))","v":""},{"$f":"IF(ISBLANK(INDIRECT(\"'\"&F7401&\"'!\"&H7401)),\"\",IFERROR(VLOOKUP(TEXT(INDIRECT(\"'\"&F7401&\"'!\"&H7401),\"0\"),Notes!$B$5:$C$100,2,FALSE),\"\"))","v":""},"2a","$S$139","$T$139"]
[26757,{"$f":"Menu!$F$29","v":"X"},{"$f":"Menu!$J$29","v":2020},{"$f":"IF(ISBLANK(INDIRECT(\"'\"&F7402&\"'!\"&G7402)),\"\",INDIRECT(\"'\"&F7402&\"'!\"&G7402))","v":""},{"$f":"IF(ISBLANK(INDIRECT(\"'\"&F7402&\"'!\"&H7402)),\"\",IFERROR(VLOOKUP(TEXT(INDIRECT(\"'\"&F7402&\"'!\"&H7402),\"0\"),Notes!$B$5:$C$100,2,FALSE),\"\"))","v":""},"2d","$K$139","$L$139"]
[26758,{"$f":"Menu!$F$29","v":"X"},{"$f":"Menu!$J$29","v":2020},{"$f":"IF(ISBLANK(INDIRECT(\"'\"&F7403&\"'!\"&G7403)),\"\",INDIRECT(\"'\"&F7403&\"'!\"&G7403))","v":""},{"$f":"IF(ISBLANK(INDIRECT(\"'\"&F7403&\"'!\"&H7403)),\"\",IFERROR(VLOOKUP(TEXT(INDIRECT(\"'\"&F7403&\"'!\"&H7403),\"0\"),Notes!$B$5:$C$100,2,FALSE),\"\"))","v":""},"2d","$O$139","$P$139"]
[26759,{"$f":"Menu!$F$29","v":"X"},{"$f":"Menu!$J$29","v":2020},{"$f":"IF(ISBLANK(INDIRECT(\"'\"&F7404&\"'!\"&G7404)),\"\",INDIRECT(\"'\"&F7404&\"'!\"&G7404))","v":""},{"$f":"IF(ISBLANK(INDIRECT(\"'\"&F7404&\"'!\"&H7404)),\"\",IFERROR(VLOOKUP(TEXT(INDIRECT(\"'\"&F7404&\"'!\"&H7404),\"0\"),Notes!$B$5:$C$100,2,FALSE),\"\"))","v":""},"2d","$M$139","$N$139"]
[26760,{"$f":"Menu!$F$29","v":"X"},{"$f":"Menu!$J$29","v":2020},{"$f":"IF(ISBLANK(INDIRECT(\"'\"&F7405&\"'!\"&G7405)),\"\",INDIRECT(\"'\"&F7405&\"'!\"&G7405))","v":""},{"$f":"IF(ISBLANK(INDIRECT(\"'\"&F7405&\"'!\"&H7405)),\"\",IFERROR(VLOOKUP(TEXT(INDIRECT(\"'\"&F7405&\"'!\"&H7405),\"0\"),Notes!$B$5:$C$100,2,FALSE),\"\"))","v":""},"2d","$Q$139","$R$139"]
[26761,{"$f":"Menu!$F$29","v":"X"},{"$f":"Menu!$J$29","v":2020},{"$f":"IF(ISBLANK(INDIRECT(\"'\"&F7406&\"'!\"&G7406)),\"\",INDIRECT(\"'\"&F7406&\"'!\"&G7406))","v":""},{"$f":"IF(ISBLANK(INDIRECT(\"'\"&F7406&\"'!\"&H7406)),\"\",IFERROR(VLOOKUP(TEXT(INDIRECT(\"'\"&F7406&\"'!\"&H7406),\"0\"),Notes!$B$5:$C$100,2,FALSE),\"\"))","v":""},"2d","$U$139","$V$139"]
[26762,{"$f":"Menu!$F$29","v":"X"},{"$f":"Menu!$J$29","v":2020},{"$f":"IF(ISBLANK(INDIRECT(\"'\"&F7407&\"'!\"&G7407)),\"\",INDIRECT(\"'\"&F7407&\"'!\"&G7407))","v":""},{"$f":"IF(ISBLANK(INDIRECT(\"'\"&F7407&\"'!\"&H7407)),\"\",IFERROR(VLOOKUP(TEXT(INDIRECT(\"'\"&F7407&\"'!\"&H7407),\"0\"),Notes!$B$5:$C$100,2,FALSE),\"\"))","v":""},"2d","$S$139","$T$139"]
[26763,{"$f":"Menu!$F$29","v":"X"},{"$f":"Menu!$J$29","v":2020},{"$f":"IF(ISBLANK(INDIRECT(\"'\"&F7408&\"'!\"&G7408)),\"\",INDIRECT(\"'\"&F7408&\"'!\"&G7408))","v":""},null,"2a","$K$139","$L$139"]
[26764,{"$f":"Menu!$F$29","v":"X"},{"$f":"Menu!$J$29","v":2020},{"$f":"IF(ISBLANK(INDIRECT(\"'\"&F7409&\"'!\"&G7409)),\"\",INDIRECT(\"'\"&F7409&\"'!\"&G7409))","v":""},{"$f":"IF(ISBLANK(INDIRECT(\"'\"&F7409&\"'!\"&H7409)),\"\",IFERROR(VLOOKUP(TEXT(INDIRECT(\"'\"&F7409&\"'!\"&H7409),\"0\"),Notes!$B$5:$C$100,2,FALSE),\"\"))","v":""},"2a","$O$139","$P$139"]
[26765,{"$f":"Menu!$F$29","v":"X"},{"$f":"Menu!$J$29","v":2020},{"$f":"IF(ISBLANK(INDIRECT(\"'\"&F7410&\"'!\"&G7410)),\"\",INDIRECT(\"'\"&F7410&\"'!\"&G7410))","v":""},{"$f":"IF(ISBLANK(INDIRECT(\"'\"&F7410&\"'!\"&H7410)),\"\",IFERROR(VLOOKUP(TEXT(INDIRECT(\"'\"&F7410&\"'!\"&H7410),\"0\"),Notes!$B$5:$C$100,2,FALSE),\"\"))","v":""},"2a","$M$139","$N$139"]
[26766,{"$f":"Menu!$F$29","v":"X"},{"$f":"Menu!$J$29","v":2020},{"$f":"IF(ISBLANK(INDIRECT(\"'\"&F7411&\"'!\"&G7411)),\"\",INDIRECT(\"'\"&F7411&\"'!\"&G7411))","v":""},{"$f":"IF(ISBLANK(INDIRECT(\"'\"&F7411&\"'!\"&H7411)),\"\",IFERROR(VLOOKUP(TEXT(INDIRECT(\"'\"&F7411&\"'!\"&H7411),\"0\"),Notes!$B$5:$C$100,2,FALSE),\"\"))","v":""},"2a","$E$139","$F$139"]
[26767,{"$f":"Menu!$F$29","v":"X"},{"$f":"Menu!$J$29","v":2020},{"$f":"IF(ISBLANK(INDIRECT(\"'\"&F7412&\"'!\"&G7412)),\"\",INDIRECT(\"'\"&F7412&\"'!\"&G7412))","v":""},{"$f":"IF(ISBLANK(INDIRECT(\"'\"&F7412&\"'!\"&H7412)),\"\",IFERROR(VLOOKUP(TEXT(INDIRECT(\"'\"&F7412&\"'!\"&H7412),\"0\"),Notes!$B$5:$C$100,2,FALSE),\"\"))","v":""},"2b","$K$140","$L$140"]
[26768,{"$f":"Menu!$F$29","v":"X"},{"$f":"Menu!$J$29","v":2020},{"$f":"IF(ISBLANK(INDIRECT(\"'\"&F7413&\"'!\"&G7413)),\"\",INDIRECT(\"'\"&F7413&\"'!\"&G7413))","v":""},{"$f":"IF(ISBLANK(INDIRECT(\"'\"&F7413&\"'!\"&H7413)),\"\",IFERROR(VLOOKUP(TEXT(INDIRECT(\"'\"&F7413&\"'!\"&H7413),\"0\"),Notes!$B$5:$C$100,2,FALSE),\"\"))","v":""},"2b","$O$140","$P$140"]
[26769,{"$f":"Menu!$F$29","v":"X"},{"$f":"Menu!$J$29","v":2020},{"$f":"IF(ISBLANK(INDIRECT(\"'\"&F7414&\"'!\"&G7414)),\"\",INDIRECT(\"'\"&F7414&\"'!\"&G7414))","v":""},{"$f":"IF(ISBLANK(INDIRECT(\"'\"&F7414&\"'!\"&H7414)),\"\",IFERROR(VLOOKUP(TEXT(INDIRECT(\"'\"&F7414&\"'!\"&H7414),\"0\"),Notes!$B$5:$C$100,2,FALSE),\"\"))","v":""},"2b","$M$140","$N$140"]
[26770,{"$f":"Menu!$F$29","v":"X"},{"$f":"Menu!$J$29","v":2020},{"$f":"IF(ISBLANK(INDIRECT(\"'\"&F7415&\"'!\"&G7415)),\"\",INDIRECT(\"'\"&F7415&\"'!\"&G7415))","v":""},{"$f":"IF(ISBLANK(INDIRECT(\"'\"&F7415&\"'!\"&H7415)),\"\",IFERROR(VLOOKUP(TEXT(INDIRECT(\"'\"&F7415&\"'!\"&H7415),\"0\"),Notes!$B$5:$C$100,2,FALSE),\"\"))","v":""},"2b","$Q$140","$R$140"]
[26771,{"$f":"Menu!$F$29","v":"X"},{"$f":"Menu!$J$29","v":2020},{"$f":"IF(ISBLANK(INDIRECT(\"'\"&F7416&\"'!\"&G7416)),\"\",INDIRECT(\"'\"&F7416&\"'!\"&G7416))","v":""},{"$f":"IF(ISBLANK(INDIRECT(\"'\"&F7416&\"'!\"&H7416)),\"\",IFERROR(VLOOKUP(TEXT(INDIRECT(\"'\"&F7416&\"'!\"&H7416),\"0\"),Notes!$B$5:$C$100,2,FALSE),\"\"))","v":""},"2b","$U$140","$V$140"]
[26772,{"$f":"Menu!$F$29","v":"X"},{"$f":"Menu!$J$29","v":2020},{"$f":"IF(ISBLANK(INDIRECT(\"'\"&F7417&\"'!\"&G7417)),\"\",INDIRECT(\"'\"&F7417&\"'!\"&G7417))","v":""},{"$f":"IF(ISBLANK(INDIRECT(\"'\"&F7417&\"'!\"&H7417)),\"\",IFERROR(VLOOKUP(TEXT(INDIRECT(\"'\"&F7417&\"'!\"&H7417),\"0\"),Notes!$B$5:$C$100,2,FALSE),\"\"))","v":""},"2b","$S$140","$T$140"]
[26776,{"$f":"Menu!$F$29","v":"X"},{"$f":"Menu!$J$29","v":2020},{"$f":"IF(ISBLANK(INDIRECT(\"'\"&F7418&\"'!\"&G7418)),\"\",INDIRECT(\"'\"&F7418&\"'!\"&G7418))","v":""},null,"2a","$I$140","$J$140"]
[26777,{"$f":"Menu!$F$29","v":"X"},{"$f":"Menu!$J$29","v":2020},{"$f":"IF(ISBLANK(INDIRECT(\"'\"&F7419&\"'!\"&G7419)),\"\",INDIRECT(\"'\"&F7419&\"'!\"&G7419))","v":""},{"$f":"IF(ISBLANK(INDIRECT(\"'\"&F7419&\"'!\"&H7419)),\"\",IFERROR(VLOOKUP(TEXT(INDIRECT(\"'\"&F7419&\"'!\"&H7419),\"0\"),Notes!$B$5:$C$100,2,FALSE),\"\"))","v":""},"2c","$E$140","$F$140"]
[26778,{"$f":"Menu!$F$29","v":"X"},{"$f":"Menu!$J$29","v":2020},{"$f":"IF(ISBLANK(INDIRECT(\"'\"&F7420&\"'!\"&G7420)),\"\",INDIRECT(\"'\"&F7420&\"'!\"&G7420))","v":""},{"$f":"IF(ISBLANK(INDIRECT(\"'\"&F7420&\"'!\"&H7420)),\"\",IFERROR(VLOOKUP(TEXT(INDIRECT(\"'\"&F7420&\"'!\"&H7420),\"0\"),Notes!$B$5:$C$100,2,FALSE),\"\"))","v":""},"2c","$I$140","$J$140"]
[26779,{"$f":"Menu!$F$29","v":"X"},{"$f":"Menu!$J$29","v":2020},{"$f":"IF(ISBLANK(INDIRECT(\"'\"&F7421&\"'!\"&G7421)),\"\",INDIRECT(\"'\"&F7421&\"'!\"&G7421))","v":""},{"$f":"IF(ISBLANK(INDIRECT(\"'\"&F7421&\"'!\"&H7421)),\"\",IFERROR(VLOOKUP(TEXT(INDIRECT(\"'\"&F7421&\"'!\"&H7421),\"0\"),Notes!$B$5:$C$100,2,FALSE),\"\"))","v":""},"2c","$G$140","$H$140"]
[26783,{"$f":"Menu!$F$29","v":"X"},{"$f":"Menu!$J$29","v":2020},{"$f":"IF(ISBLANK(INDIRECT(\"'\"&F7422&\"'!\"&G7422)),\"\",INDIRECT(\"'\"&F7422&\"'!\"&G7422))","v":""},{"$f":"IF(ISBLANK(INDIRECT(\"'\"&F7422&\"'!\"&H7422)),\"\",IFERROR(VLOOKUP(TEXT(INDIRECT(\"'\"&F7422&\"'!\"&H7422),\"0\"),Notes!$B$5:$C$100,2,FALSE),\"\"))","v":""},"2c","$K$140","$L$140"]
[26784,{"$f":"Menu!$F$29","v":"X"},{"$f":"Menu!$J$29","v":2020},{"$f":"IF(ISBLANK(INDIRECT(\"'\"&F7423&\"'!\"&G7423)),\"\",INDIRECT(\"'\"&F7423&\"'!\"&G7423))","v":""},{"$f":"IF(ISBLANK(INDIRECT(\"'\"&F7423&\"'!\"&H7423)),\"\",IFERROR(VLOOKUP(TEXT(INDIRECT(\"'\"&F7423&\"'!\"&H7423),\"0\"),Notes!$B$5:$C$100,2,FALSE),\"\"))","v":""},"2c","$O$140","$P$140"]
[26785,{"$f":"Menu!$F$29","v":"X"},{"$f":"Menu!$J$29","v":2020},{"$f":"IF(ISBLANK(INDIRECT(\"'\"&F7424&\"'!\"&G7424)),\"\",INDIRECT(\"'\"&F7424&\"'!\"&G7424))","v":""},{"$f":"IF(ISBLANK(INDIRECT(\"'\"&F7424&\"'!\"&H7424)),\"\",IFERROR(VLOOKUP(TEXT(INDIRECT(\"'\"&F7424&\"'!\"&H7424),\"0\"),Notes!$B$5:$C$100,2,FALSE),\"\"))","v":""},"2c","$M$140","$N$140"]
[26786,{"$f":"Menu!$F$29","v":"X"},{"$f":"Menu!$J$29","v":2020},{"$f":"IF(ISBLANK(INDIRECT(\"'\"&F7425&\"'!\"&G7425)),\"\",INDIRECT(\"'\"&F7425&\"'!\"&G7425))","v":""},{"$f":"IF(ISBLANK(INDIRECT(\"'\"&F7425&\"'!\"&H7425)),\"\",IFERROR(VLOOKUP(TEXT(INDIRECT(\"'\"&F7425&\"'!\"&H7425),\"0\"),Notes!$B$5:$C$100,2,FALSE),\"\"))","v":""},"2c","$Q$140","$R$140"]
[26787,{"$f":"Menu!$F$29","v":"X"},{"$f":"Menu!$J$29","v":2020},{"$f":"IF(ISBLANK(INDIRECT(\"'\"&F7426&\"'!\"&G7426)),\"\",INDIRECT(\"'\"&F7426&\"'!\"&G7426))","v":""},{"$f":"IF(ISBLANK(INDIRECT(\"'\"&F7426&\"'!\"&H7426)),\"\",IFERROR(VLOOKUP(TEXT(INDIRECT(\"'\"&F7426&\"'!\"&H7426),\"0\"),Notes!$B$5:$C$100,2,FALSE),\"\"))","v":""},"2c","$U$140",{"$f":"IF(LEN(TRIM(MID(G7426,4,10)))-LEN(SUBSTITUTE(TRIM(MID(G7426,4,10)),\"$\",\"\"))=0,\"$\"&CHAR(CODE(MID(G7426,2,1))+1)&\"$\"&TRIM(MID(G7426,4,10)),\"$\"&MID(G7426,2,1)&CHAR(CODE(MID(G7426,3,1))+1)&\"$\"&TRIM(MID(G7426,5,11)))","v":"$V$140"}]
[26788,{"$f":"Menu!$F$29","v":"X"},{"$f":"Menu!$J$29","v":2020},{"$f":"IF(ISBLANK(INDIRECT(\"'\"&F7427&\"'!\"&G7427)),\"\",INDIRECT(\"'\"&F7427&\"'!\"&G7427))","v":""},{"$f":"IF(ISBLANK(INDIRECT(\"'\"&F7427&\"'!\"&H7427)),\"\",IFERROR(VLOOKUP(TEXT(INDIRECT(\"'\"&F7427&\"'!\"&H7427),\"0\"),Notes!$B$5:$C$100,2,FALSE),\"\"))","v":""},"2c","$S$140","$T$140"]
[26789,{"$f":"Menu!$F$29","v":"X"},{"$f":"Menu!$J$29","v":2020},{"$f":"IF(ISBLANK(INDIRECT(\"'\"&F7428&\"'!\"&G7428)),\"\",INDIRECT(\"'\"&F7428&\"'!\"&G7428))","v":""},{"$f":"IF(ISBLANK(INDIRECT(\"'\"&F7428&\"'!\"&H7428)),\"\",IFERROR(VLOOKUP(TEXT(INDIRECT(\"'\"&F7428&\"'!\"&H7428),\"0\"),Notes!$B$5:$C$100,2,FALSE),\"\"))","v":""},"2c","$W$140","$X$140"]
[26790,{"$f":"Menu!$F$29","v":"X"},{"$f":"Menu!$J$29","v":2020},{"$f":"IF(ISBLANK(INDIRECT(\"'\"&F7429&\"'!\"&G7429)),\"\",INDIRECT(\"'\"&F7429&\"'!\"&G7429))","v":""},{"$f":"IF(ISBLANK(INDIRECT(\"'\"&F7429&\"'!\"&H7429)),\"\",IFERROR(VLOOKUP(TEXT(INDIRECT(\"'\"&F7429&\"'!\"&H7429),\"0\"),Notes!$B$5:$C$100,2,FALSE),\"\"))","v":""},"2c","$AA$140","$AB$140"]
[26791,{"$f":"Menu!$F$29","v":"X"},{"$f":"Menu!$J$29","v":2020},{"$f":"IF(ISBLANK(INDIRECT(\"'\"&F7430&\"'!\"&G7430)),\"\",INDIRECT(\"'\"&F7430&\"'!\"&G7430))","v":""},{"$f":"IF(ISBLANK(INDIRECT(\"'\"&F7430&\"'!\"&H7430)),\"\",IFERROR(VLOOKUP(TEXT(INDIRECT(\"'\"&F7430&\"'!\"&H7430),\"0\"),Notes!$B$5:$C$100,2,FALSE),\"\"))","v":""},"2c","$Y$140","$Z$140"]
[26798,{"$f":"Menu!$F$29","v":"X"},{"$f":"Menu!$J$29","v":2020},{"$f":"IF(ISBLANK(INDIRECT(\"'\"&F7431&\"'!\"&G7431)),\"\",INDIRECT(\"'\"&F7431&\"'!\"&G7431))","v":""},{"$f":"IF(ISBLANK(INDIRECT(\"'\"&F7431&\"'!\"&H7431)),\"\",IFERROR(VLOOKUP(TEXT(INDIRECT(\"'\"&F7431&\"'!\"&H7431),\"0\"),Notes!$B$5:$C$100,2,FALSE),\"\"))","v":""},"2e","$BG$141","$BH$141"]
[26799,{"$f":"Menu!$F$29","v":"X"},{"$f":"Menu!$J$29","v":2020},{"$f":"IF(ISBLANK(INDIRECT(\"'\"&F7432&\"'!\"&G7432)),\"\",INDIRECT(\"'\"&F7432&\"'!\"&G7432))","v":""},{"$f":"IF(ISBLANK(INDIRECT(\"'\"&F7432&\"'!\"&H7432)),\"\",IFERROR(VLOOKUP(TEXT(INDIRECT(\"'\"&F7432&\"'!\"&H7432),\"0\"),Notes!$B$5:$C$100,2,FALSE),\"\"))","v":""},"2e","$BK$141","$BL$141"]
[26800,{"$f":"Menu!$F$29","v":"X"},{"$f":"Menu!$J$29","v":2020},{"$f":"IF(ISBLANK(INDIRECT(\"'\"&F7433&\"'!\"&G7433)),\"\",INDIRECT(\"'\"&F7433&\"'!\"&G7433))","v":""},{"$f":"IF(ISBLANK(INDIRECT(\"'\"&F7433&\"'!\"&H7433)),\"\",IFERROR(VLOOKUP(TEXT(INDIRECT(\"'\"&F7433&\"'!\"&H7433),\"0\"),Notes!$B$5:$C$100,2,FALSE),\"\"))","v":""},"2e","$BI$141","$BJ$141"]
[26801,{"$f":"Menu!$F$29","v":"X"},{"$f":"Menu!$J$29","v":2020},{"$f":"IF(ISBLANK(INDIRECT(\"'\"&F7434&\"'!\"&G7434)),\"\",INDIRECT(\"'\"&F7434&\"'!\"&G7434))","v":""},{"$f":"IF(ISBLANK(INDIRECT(\"'\"&F7434&\"'!\"&H7434)),\"\",IFERROR(VLOOKUP(TEXT(INDIRECT(\"'\"&F7434&\"'!\"&H7434),\"0\"),Notes!$B$5:$C$100,2,FALSE),\"\"))","v":""},"2e","$E$141","$F$141"]
[26802,{"$f":"Menu!$F$29","v":"X"},{"$f":"Menu!$J$29","v":2020},{"$f":"IF(ISBLANK(INDIRECT(\"'\"&F7435&\"'!\"&G7435)),\"\",INDIRECT(\"'\"&F7435&\"'!\"&G7435))","v":""},{"$f":"IF(ISBLANK(INDIRECT(\"'\"&F7435&\"'!\"&H7435)),\"\",IFERROR(VLOOKUP(TEXT(INDIRECT(\"'\"&F7435&\"'!\"&H7435),\"0\"),Notes!$B$5:$C$100,2,FALSE),\"\"))","v":""},"2e","$I$141","$J$141"]
[26803,{"$f":"Menu!$F$29","v":"X"},{"$f":"Menu!$J$29","v":2020},{"$f":"IF(ISBLANK(INDIRECT(\"'\"&F7436&\"'!\"&G7436)),\"\",INDIRECT(\"'\"&F7436&\"'!\"&G7436))","v":""},{"$f":"IF(ISBLANK(INDIRECT(\"'\"&F7436&\"'!\"&H7436)),\"\",IFERROR(VLOOKUP(TEXT(INDIRECT(\"'\"&F7436&\"'!\"&H7436),\"0\"),Notes!$B$5:$C$100,2,FALSE),\"\"))","v":""},"2e","$G$141","$H$141"]
[26804,{"$f":"Menu!$F$29","v":"X"},{"$f":"Menu!$J$29","v":2020},{"$f":"IF(ISBLANK(INDIRECT(\"'\"&F7437&\"'!\"&G7437)),\"\",INDIRECT(\"'\"&F7437&\"'!\"&G7437))","v":""},{"$f":"IF(ISBLANK(INDIRECT(\"'\"&F7437&\"'!\"&H7437)),\"\",IFERROR(VLOOKUP(TEXT(INDIRECT(\"'\"&F7437&\"'!\"&H7437),\"0\"),Notes!$B$5:$C$100,2,FALSE),\"\"))","v":""},"2e","$K$141","$L$141"]
[26805,{"$f":"Menu!$F$29","v":"X"},{"$f":"Menu!$J$29","v":2020},{"$f":"IF(ISBLANK(INDIRECT(\"'\"&F7438&\"'!\"&G7438)),\"\",INDIRECT(\"'\"&F7438&\"'!\"&G7438))","v":""},{"$f":"IF(ISBLANK(INDIRECT(\"'\"&F7438&\"'!\"&H7438)),\"\",IFERROR(VLOOKUP(TEXT(INDIRECT(\"'\"&F7438&\"'!\"&H7438),\"0\"),Notes!$B$5:$C$100,2,FALSE),\"\"))","v":""},"2e","$O$141","$P$141"]
[26806,{"$f":"Menu!$F$29","v":"X"},{"$f":"Menu!$J$29","v":2020},{"$f":"IF(ISBLANK(INDIRECT(\"'\"&F7439&\"'!\"&G7439)),\"\",INDIRECT(\"'\"&F7439&\"'!\"&G7439))","v":""},{"$f":"IF(ISBLANK(INDIRECT(\"'\"&F7439&\"'!\"&H7439)),\"\",IFERROR(VLOOKUP(TEXT(INDIRECT(\"'\"&F7439&\"'!\"&H7439),\"0\"),Notes!$B$5:$C$100,2,FALSE),\"\"))","v":""},"2e","$M$141","$N$141"]
[26807,{"$f":"Menu!$F$29","v":"X"},{"$f":"Menu!$J$29","v":2020},{"$f":"IF(ISBLANK(INDIRECT(\"'\"&F7440&\"'!\"&G7440)),\"\",INDIRECT(\"'\"&F7440&\"'!\"&G7440))","v":""},{"$f":"IF(ISBLANK(INDIRECT(\"'\"&F7440&\"'!\"&H7440)),\"\",IFERROR(VLOOKUP(TEXT(INDIRECT(\"'\"&F7440&\"'!\"&H7440),\"0\"),Notes!$B$5:$C$100,2,FALSE),\"\"))","v":""},"2e","$Q$141","$R$141"]
[26808,{"$f":"Menu!$F$29","v":"X"},{"$f":"Menu!$J$29","v":2020},{"$f":"IF(ISBLANK(INDIRECT(\"'\"&F7441&\"'!\"&G7441)),\"\",INDIRECT(\"'\"&F7441&\"'!\"&G7441))","v":""},{"$f":"IF(ISBLANK(INDIRECT(\"'\"&F7441&\"'!\"&H7441)),\"\",IFERROR(VLOOKUP(TEXT(INDIRECT(\"'\"&F7441&\"'!\"&H7441),\"0\"),Notes!$B$5:$C$100,2,FALSE),\"\"))","v":""},"2e","$U$141","$V$141"]
[26809,{"$f":"Menu!$F$29","v":"X"},{"$f":"Menu!$J$29","v":2020},{"$f":"IF(ISBLANK(INDIRECT(\"'\"&F7442&\"'!\"&G7442)),\"\",INDIRECT(\"'\"&F7442&\"'!\"&G7442))","v":""},{"$f":"IF(ISBLANK(INDIRECT(\"'\"&F7442&\"'!\"&H7442)),\"\",IFERROR(VLOOKUP(TEXT(INDIRECT(\"'\"&F7442&\"'!\"&H7442),\"0\"),Notes!$B$5:$C$100,2,FALSE),\"\"))","v":""},"2e","$S$141","$T$141"]
[26810,{"$f":"Menu!$F$29","v":"X"},{"$f":"Menu!$J$29","v":2020},{"$f":"IF(ISBLANK(INDIRECT(\"'\"&F7443&\"'!\"&G7443)),\"\",INDIRECT(\"'\"&F7443&\"'!\"&G7443))","v":""},{"$f":"IF(ISBLANK(INDIRECT(\"'\"&F7443&\"'!\"&H7443)),\"\",IFERROR(VLOOKUP(TEXT(INDIRECT(\"'\"&F7443&\"'!\"&H7443),\"0\"),Notes!$B$5:$C$100,2,FALSE),\"\"))","v":""},"2e","$W$141","$X$141"]
[26811,{"$f":"Menu!$F$29","v":"X"},{"$f":"Menu!$J$29","v":2020},{"$f":"IF(ISBLANK(INDIRECT(\"'\"&F7444&\"'!\"&G7444)),\"\",INDIRECT(\"'\"&F7444&\"'!\"&G7444))","v":""},{"$f":"IF(ISBLANK(INDIRECT(\"'\"&F7444&\"'!\"&H7444)),\"\",IFERROR(VLOOKUP(TEXT(INDIRECT(\"'\"&F7444&\"'!\"&H7444),\"0\"),Notes!$B$5:$C$100,2,FALSE),\"\"))","v":""},"2e","$AA$141","$AB$141"]
[26812,{"$f":"Menu!$F$29","v":"X"},{"$f":"Menu!$J$29","v":2020},{"$f":"IF(ISBLANK(INDIRECT(\"'\"&F7445&\"'!\"&G7445)),\"\",INDIRECT(\"'\"&F7445&\"'!\"&G7445))","v":""},{"$f":"IF(ISBLANK(INDIRECT(\"'\"&F7445&\"'!\"&H7445)),\"\",IFERROR(VLOOKUP(TEXT(INDIRECT(\"'\"&F7445&\"'!\"&H7445),\"0\"),Notes!$B$5:$C$100,2,FALSE),\"\"))","v":""},"2e","$Y$141","$Z$141"]
[26813,{"$f":"Menu!$F$29","v":"X"},{"$f":"Menu!$J$29","v":2020},{"$f":"IF(ISBLANK(INDIRECT(\"'\"&F7446&\"'!\"&G7446)),\"\",INDIRECT(\"'\"&F7446&\"'!\"&G7446))","v":""},{"$f":"IF(ISBLANK(INDIRECT(\"'\"&F7446&\"'!\"&H7446)),\"\",IFERROR(VLOOKUP(TEXT(INDIRECT(\"'\"&F7446&\"'!\"&H7446),\"0\"),Notes!$B$5:$C$100,2,FALSE),\"\"))","v":""},"2e","$AC$141","$AD$141"]
[26814,{"$f":"Menu!$F$29","v":"X"},{"$f":"Menu!$J$29","v":2020},{"$f":"IF(ISBLANK(INDIRECT(\"'\"&F7447&\"'!\"&G7447)),\"\",INDIRECT(\"'\"&F7447&\"'!\"&G7447))","v":""},{"$f":"IF(ISBLANK(INDIRECT(\"'\"&F7447&\"'!\"&H7447)),\"\",IFERROR(VLOOKUP(TEXT(INDIRECT(\"'\"&F7447&\"'!\"&H7447),\"0\"),Notes!$B$5:$C$100,2,FALSE),\"\"))","v":""},"2e","$AG$141","$AH$141"]
[26815,{"$f":"Menu!$F$29","v":"X"},{"$f":"Menu!$J$29","v":2020},{"$f":"IF(ISBLANK(INDIRECT(\"'\"&F7448&\"'!\"&G7448)),\"\",INDIRECT(\"'\"&F7448&\"'!\"&G7448))","v":""},{"$f":"IF(ISBLANK(INDIRECT(\"'\"&F7448&\"'!\"&H7448)),\"\",IFERROR(VLOOKUP(TEXT(INDIRECT(\"'\"&F7448&\"'!\"&H7448),\"0\"),Notes!$B$5:$C$100,2,FALSE),\"\"))","v":""},"2e","$AE$141","$AF$141"]
[26816,{"$f":"Menu!$F$29","v":"X"},{"$f":"Menu!$J$29","v":2020},{"$f":"IF(ISBLANK(INDIRECT(\"'\"&F7449&\"'!\"&G7449)),\"\",INDIRECT(\"'\"&F7449&\"'!\"&G7449))","v":""},{"$f":"IF(ISBLANK(INDIRECT(\"'\"&F7449&\"'!\"&H7449)),\"\",IFERROR(VLOOKUP(TEXT(INDIRECT(\"'\"&F7449&\"'!\"&H7449),\"0\"),Notes!$B$5:$C$100,2,FALSE),\"\"))","v":""},"2e","$AI$141","$AJ$141"]
[26817,{"$f":"Menu!$F$29","v":"X"},{"$f":"Menu!$J$29","v":2020},{"$f":"IF(ISBLANK(INDIRECT(\"'\"&F7450&\"'!\"&G7450)),\"\",INDIRECT(\"'\"&F7450&\"'!\"&G7450))","v":""},{"$f":"IF(ISBLANK(INDIRECT(\"'\"&F7450&\"'!\"&H7450)),\"\",IFERROR(VLOOKUP(TEXT(INDIRECT(\"'\"&F7450&\"'!\"&H7450),\"0\"),Notes!$B$5:$C$100,2,FALSE),\"\"))","v":""},"2e","$AM$141","$AN$141"]
[26818,{"$f":"Menu!$F$29","v":"X"},{"$f":"Menu!$J$29","v":2020},{"$f":"IF(ISBLANK(INDIRECT(\"'\"&F7451&\"'!\"&G7451)),\"\",INDIRECT(\"'\"&F7451&\"'!\"&G7451))","v":""},{"$f":"IF(ISBLANK(INDIRECT(\"'\"&F7451&\"'!\"&H7451)),\"\",IFERROR(VLOOKUP(TEXT(INDIRECT(\"'\"&F7451&\"'!\"&H7451),\"0\"),Notes!$B$5:$C$100,2,FALSE),\"\"))","v":""},"2e","$AK$141","$AL$141"]
[26819,{"$f":"Menu!$F$29","v":"X"},{"$f":"Menu!$J$29","v":2020},{"$f":"IF(ISBLANK(INDIRECT(\"'\"&F7452&\"'!\"&G7452)),\"\",INDIRECT(\"'\"&F7452&\"'!\"&G7452))","v":""},{"$f":"IF(ISBLANK(INDIRECT(\"'\"&F7452&\"'!\"&H7452)),\"\",IFERROR(VLOOKUP(TEXT(INDIRECT(\"'\"&F7452&\"'!\"&H7452),\"0\"),Notes!$B$5:$C$100,2,FALSE),\"\"))","v":""},"2e","$AO$141","$AP$141"]
[26820,{"$f":"Menu!$F$29","v":"X"},{"$f":"Menu!$J$29","v":2020},{"$f":"IF(ISBLANK(INDIRECT(\"'\"&F7453&\"'!\"&G7453)),\"\",INDIRECT(\"'\"&F7453&\"'!\"&G7453))","v":""},{"$f":"IF(ISBLANK(INDIRECT(\"'\"&F7453&\"'!\"&H7453)),\"\",IFERROR(VLOOKUP(TEXT(INDIRECT(\"'\"&F7453&\"'!\"&H7453),\"0\"),Notes!$B$5:$C$100,2,FALSE),\"\"))","v":""},"2e","$AS$141","$AT$141"]
[26821,{"$f":"Menu!$F$29","v":"X"},{"$f":"Menu!$J$29","v":2020},{"$f":"IF(ISBLANK(INDIRECT(\"'\"&F7454&\"'!\"&G7454)),\"\",INDIRECT(\"'\"&F7454&\"'!\"&G7454))","v":""},{"$f":"IF(ISBLANK(INDIRECT(\"'\"&F7454&\"'!\"&H7454)),\"\",IFERROR(VLOOKUP(TEXT(INDIRECT(\"'\"&F7454&\"'!\"&H7454),\"0\"),Notes!$B$5:$C$100,2,FALSE),\"\"))","v":""},"2e","$AQ$141","$AR$141"]
[26822,{"$f":"Menu!$F$29","v":"X"},{"$f":"Menu!$J$29","v":2020},{"$f":"IF(ISBLANK(INDIRECT(\"'\"&F7455&\"'!\"&G7455)),\"\",INDIRECT(\"'\"&F7455&\"'!\"&G7455))","v":""},{"$f":"IF(ISBLANK(INDIRECT(\"'\"&F7455&\"'!\"&H7455)),\"\",IFERROR(VLOOKUP(TEXT(INDIRECT(\"'\"&F7455&\"'!\"&H7455),\"0\"),Notes!$B$5:$C$100,2,FALSE),\"\"))","v":""},"2e","$AU$141","$AV$141"]
[26823,{"$f":"Menu!$F$29","v":"X"},{"$f":"Menu!$J$29","v":2020},{"$f":"IF(ISBLANK(INDIRECT(\"'\"&F7456&\"'!\"&G7456)),\"\",INDIRECT(\"'\"&F7456&\"'!\"&G7456))","v":""},{"$f":"IF(ISBLANK(INDIRECT(\"'\"&F7456&\"'!\"&H7456)),\"\",IFERROR(VLOOKUP(TEXT(INDIRECT(\"'\"&F7456&\"'!\"&H7456),\"0\"),Notes!$B$5:$C$100,2,FALSE),\"\"))","v":""},"2e","$AY$141","$AZ$141"]
[26824,{"$f":"Menu!$F$29","v":"X"},{"$f":"Menu!$J$29","v":2020},{"$f":"IF(ISBLANK(INDIRECT(\"'\"&F7457&\"'!\"&G7457)),\"\",INDIRECT(\"'\"&F7457&\"'!\"&G7457))","v":""},{"$f":"IF(ISBLANK(INDIRECT(\"'\"&F7457&\"'!\"&H7457)),\"\",IFERROR(VLOOKUP(TEXT(INDIRECT(\"'\"&F7457&\"'!\"&H7457),\"0\"),Notes!$B$5:$C$100,2,FALSE),\"\"))","v":""},"2e","$AW$141","$AX$141"]
[26825,{"$f":"Menu!$F$29","v":"X"},{"$f":"Menu!$J$29","v":2020},{"$f":"IF(ISBLANK(INDIRECT(\"'\"&F7458&\"'!\"&G7458)),\"\",INDIRECT(\"'\"&F7458&\"'!\"&G7458))","v":""},{"$f":"IF(ISBLANK(INDIRECT(\"'\"&F7458&\"'!\"&H7458)),\"\",IFERROR(VLOOKUP(TEXT(INDIRECT(\"'\"&F7458&\"'!\"&H7458),\"0\"),Notes!$B$5:$C$100,2,FALSE),\"\"))","v":""},"2e","$BA$141","$BB$141"]
[26826,{"$f":"Menu!$F$29","v":"X"},{"$f":"Menu!$J$29","v":2020},{"$f":"IF(ISBLANK(INDIRECT(\"'\"&F7459&\"'!\"&G7459)),\"\",INDIRECT(\"'\"&F7459&\"'!\"&G7459))","v":""},{"$f":"IF(ISBLANK(INDIRECT(\"'\"&F7459&\"'!\"&H7459)),\"\",IFERROR(VLOOKUP(TEXT(INDIRECT(\"'\"&F7459&\"'!\"&H7459),\"0\"),Notes!$B$5:$C$100,2,FALSE),\"\"))","v":""},"2e","$BE$141","$BF$141"]
[26827,{"$f":"Menu!$F$29","v":"X"},{"$f":"Menu!$J$29","v":2020},{"$f":"IF(ISBLANK(INDIRECT(\"'\"&F7460&\"'!\"&G7460)),\"\",INDIRECT(\"'\"&F7460&\"'!\"&G7460))","v":""},{"$f":"IF(ISBLANK(INDIRECT(\"'\"&F7460&\"'!\"&H7460)),\"\",IFERROR(VLOOKUP(TEXT(INDIRECT(\"'\"&F7460&\"'!\"&H7460),\"0\"),Notes!$B$5:$C$100,2,FALSE),\"\"))","v":""},"2e","$BC$141","$BD$141"]
[26828,{"$f":"Menu!$F$29","v":"X"},{"$f":"Menu!$J$29","v":2020},{"$f":"IF(ISBLANK(INDIRECT(\"'\"&F7461&\"'!\"&G7461)),\"\",INDIRECT(\"'\"&F7461&\"'!\"&G7461))","v":""},{"$f":"IF(ISBLANK(INDIRECT(\"'\"&F7461&\"'!\"&H7461)),\"\",IFERROR(VLOOKUP(TEXT(INDIRECT(\"'\"&F7461&\"'!\"&H7461),\"0\"),Notes!$B$5:$C$100,2,FALSE),\"\"))","v":""},"2b","$E$140","$F$140"]
[26829,{"$f":"Menu!$F$29","v":"X"},{"$f":"Menu!$J$29","v":2020},{"$f":"IF(ISBLANK(INDIRECT(\"'\"&F7462&\"'!\"&G7462)),\"\",INDIRECT(\"'\"&F7462&\"'!\"&G7462))","v":""},{"$f":"IF(ISBLANK(INDIRECT(\"'\"&F7462&\"'!\"&H7462)),\"\",IFERROR(VLOOKUP(TEXT(INDIRECT(\"'\"&F7462&\"'!\"&H7462),\"0\"),Notes!$B$5:$C$100,2,FALSE),\"\"))","v":""},"2b","$I$140","$J$140"]
[26830,{"$f":"Menu!$F$29","v":"X"},{"$f":"Menu!$J$29","v":2020},{"$f":"IF(ISBLANK(INDIRECT(\"'\"&F7463&\"'!\"&G7463)),\"\",INDIRECT(\"'\"&F7463&\"'!\"&G7463))","v":""},{"$f":"IF(ISBLANK(INDIRECT(\"'\"&F7463&\"'!\"&H7463)),\"\",IFERROR(VLOOKUP(TEXT(INDIRECT(\"'\"&F7463&\"'!\"&H7463),\"0\"),Notes!$B$5:$C$100,2,FALSE),\"\"))","v":""},"2b","$G$140","$H$140"]
[26831,{"$f":"Menu!$F$29","v":"X"},{"$f":"Menu!$J$29","v":2020},{"$f":"IF(ISBLANK(INDIRECT(\"'\"&F7464&\"'!\"&G7464)),\"\",INDIRECT(\"'\"&F7464&\"'!\"&G7464))","v":""},null,"2a","$G$140","$H$140"]
[26832,{"$f":"Menu!$F$29","v":"X"},{"$f":"Menu!$J$29","v":2020},{"$f":"IF(ISBLANK(INDIRECT(\"'\"&F7465&\"'!\"&G7465)),\"\",INDIRECT(\"'\"&F7465&\"'!\"&G7465))","v":""},{"$f":"IF(ISBLANK(INDIRECT(\"'\"&F7465&\"'!\"&H7465)),\"\",IFERROR(VLOOKUP(TEXT(INDIRECT(\"'\"&F7465&\"'!\"&H7465),\"0\"),Notes!$B$5:$C$100,2,FALSE),\"\"))","v":""},"2b","$W$140","$X$140"]
[26833,{"$f":"Menu!$F$29","v":"X"},{"$f":"Menu!$J$29","v":2020},{"$f":"IF(ISBLANK(INDIRECT(\"'\"&F7466&\"'!\"&G7466)),\"\",INDIRECT(\"'\"&F7466&\"'!\"&G7466))","v":""},{"$f":"IF(ISBLANK(INDIRECT(\"'\"&F7466&\"'!\"&H7466)),\"\",IFERROR(VLOOKUP(TEXT(INDIRECT(\"'\"&F7466&\"'!\"&H7466),\"0\"),Notes!$B$5:$C$100,2,FALSE),\"\"))","v":""},"2b","$AA$140","$AB$140"]
[26834,{"$f":"Menu!$F$29","v":"X"},{"$f":"Menu!$J$29","v":2020},{"$f":"IF(ISBLANK(INDIRECT(\"'\"&F7467&\"'!\"&G7467)),\"\",INDIRECT(\"'\"&F7467&\"'!\"&G7467))","v":""},{"$f":"IF(ISBLANK(INDIRECT(\"'\"&F7467&\"'!\"&H7467)),\"\",IFERROR(VLOOKUP(TEXT(INDIRECT(\"'\"&F7467&\"'!\"&H7467),\"0\"),Notes!$B$5:$C$100,2,FALSE),\"\"))","v":""},"2b","$Y$140","$Z$140"]
[26835,{"$f":"Menu!$F$29","v":"X"},{"$f":"Menu!$J$29","v":2020},{"$f":"IF(ISBLANK(INDIRECT(\"'\"&F7468&\"'!\"&G7468)),\"\",INDIRECT(\"'\"&F7468&\"'!\"&G7468))","v":""},{"$f":"IF(ISBLANK(INDIRECT(\"'\"&F7468&\"'!\"&H7468)),\"\",IFERROR(VLOOKUP(TEXT(INDIRECT(\"'\"&F7468&\"'!\"&H7468),\"0\"),Notes!$B$5:$C$100,2,FALSE),\"\"))","v":""},"2d","$AC$140","$AD$140"]
[26836,{"$f":"Menu!$F$29","v":"X"},{"$f":"Menu!$J$29","v":2020},{"$f":"IF(ISBLANK(INDIRECT(\"'\"&F7469&\"'!\"&G7469)),\"\",INDIRECT(\"'\"&F7469&\"'!\"&G7469))","v":""},{"$f":"IF(ISBLANK(INDIRECT(\"'\"&F7469&\"'!\"&H7469)),\"\",IFERROR(VLOOKUP(TEXT(INDIRECT(\"'\"&F7469&\"'!\"&H7469),\"0\"),Notes!$B$5:$C$100,2,FALSE),\"\"))","v":""},"2d","$AG$140","$AH$140"]
[26837,{"$f":"Menu!$F$29","v":"X"},{"$f":"Menu!$J$29","v":2020},{"$f":"IF(ISBLANK(INDIRECT(\"'\"&F7470&\"'!\"&G7470)),\"\",INDIRECT(\"'\"&F7470&\"'!\"&G7470))","v":""},{"$f":"IF(ISBLANK(INDIRECT(\"'\"&F7470&\"'!\"&H7470)),\"\",IFERROR(VLOOKUP(TEXT(INDIRECT(\"'\"&F7470&\"'!\"&H7470),\"0\"),Notes!$B$5:$C$100,2,FALSE),\"\"))","v":""},"2d","$AE$140","$AF$140"]
[26838,{"$f":"Menu!$F$29","v":"X"},{"$f":"Menu!$J$29","v":2020},{"$f":"IF(ISBLANK(INDIRECT(\"'\"&F7471&\"'!\"&G7471)),\"\",INDIRECT(\"'\"&F7471&\"'!\"&G7471))","v":""},{"$f":"IF(ISBLANK(INDIRECT(\"'\"&F7471&\"'!\"&H7471)),\"\",IFERROR(VLOOKUP(TEXT(INDIRECT(\"'\"&F7471&\"'!\"&H7471),\"0\"),Notes!$B$5:$C$100,2,FALSE),\"\"))","v":""},"2d","$W$140","$X$140"]
[26839,{"$f":"Menu!$F$29","v":"X"},{"$f":"Menu!$J$29","v":2020},{"$f":"IF(ISBLANK(INDIRECT(\"'\"&F7472&\"'!\"&G7472)),\"\",INDIRECT(\"'\"&F7472&\"'!\"&G7472))","v":""},{"$f":"IF(ISBLANK(INDIRECT(\"'\"&F7472&\"'!\"&H7472)),\"\",IFERROR(VLOOKUP(TEXT(INDIRECT(\"'\"&F7472&\"'!\"&H7472),\"0\"),Notes!$B$5:$C$100,2,FALSE),\"\"))","v":""},"2d","$AA$140","$AB$140"]
[26840,{"$f":"Menu!$F$29","v":"X"},{"$f":"Menu!$J$29","v":2020},{"$f":"IF(ISBLANK(INDIRECT(\"'\"&F7473&\"'!\"&G7473)),\"\",INDIRECT(\"'\"&F7473&\"'!\"&G7473))","v":""},{"$f":"IF(ISBLANK(INDIRECT(\"'\"&F7473&\"'!\"&H7473)),\"\",IFERROR(VLOOKUP(TEXT(INDIRECT(\"'\"&F7473&\"'!\"&H7473),\"0\"),Notes!$B$5:$C$100,2,FALSE),\"\"))","v":""},"2d","$Y$140","$Z$140"]
[26841,{"$f":"Menu!$F$29","v":"X"},{"$f":"Menu!$J$29","v":2020},{"$f":"IF(ISBLANK(INDIRECT(\"'\"&F7474&\"'!\"&G7474)),\"\",INDIRECT(\"'\"&F7474&\"'!\"&G7474))","v":""},{"$f":"IF(ISBLANK(INDIRECT(\"'\"&F7474&\"'!\"&H7474)),\"\",IFERROR(VLOOKUP(TEXT(INDIRECT(\"'\"&F7474&\"'!\"&H7474),\"0\"),Notes!$B$5:$C$100,2,FALSE),\"\"))","v":""},"2d","$E$140","$F$140"]
[26842,{"$f":"Menu!$F$29","v":"X"},{"$f":"Menu!$J$29","v":2020},{"$f":"IF(ISBLANK(INDIRECT(\"'\"&F7475&\"'!\"&G7475)),\"\",INDIRECT(\"'\"&F7475&\"'!\"&G7475))","v":""},{"$f":"IF(ISBLANK(INDIRECT(\"'\"&F7475&\"'!\"&H7475)),\"\",IFERROR(VLOOKUP(TEXT(INDIRECT(\"'\"&F7475&\"'!\"&H7475),\"0\"),Notes!$B$5:$C$100,2,FALSE),\"\"))","v":""},"2d","$I$140","$J$140"]
[26843,{"$f":"Menu!$F$29","v":"X"},{"$f":"Menu!$J$29","v":2020},{"$f":"IF(ISBLANK(INDIRECT(\"'\"&F7476&\"'!\"&G7476)),\"\",INDIRECT(\"'\"&F7476&\"'!\"&G7476))","v":""},{"$f":"IF(ISBLANK(INDIRECT(\"'\"&F7476&\"'!\"&H7476)),\"\",IFERROR(VLOOKUP(TEXT(INDIRECT(\"'\"&F7476&\"'!\"&H7476),\"0\"),Notes!$B$5:$C$100,2,FALSE),\"\"))","v":""},"2d","$G$140","$H$140"]
[26844,{"$f":"Menu!$F$29","v":"X"},{"$f":"Menu!$J$29","v":2020},{"$f":"IF(ISBLANK(INDIRECT(\"'\"&F7477&\"'!\"&G7477)),\"\",INDIRECT(\"'\"&F7477&\"'!\"&G7477))","v":""},{"$f":"IF(ISBLANK(INDIRECT(\"'\"&F7477&\"'!\"&H7477)),\"\",IFERROR(VLOOKUP(TEXT(INDIRECT(\"'\"&F7477&\"'!\"&H7477),\"0\"),Notes!$B$5:$C$100,2,FALSE),\"\"))","v":""},"2a","$Q$140","$R$140"]
[26845,{"$f":"Menu!$F$29","v":"X"},{"$f":"Menu!$J$29","v":2020},{"$f":"IF(ISBLANK(INDIRECT(\"'\"&F7478&\"'!\"&G7478)),\"\",INDIRECT(\"'\"&F7478&\"'!\"&G7478))","v":""},{"$f":"IF(ISBLANK(INDIRECT(\"'\"&F7478&\"'!\"&H7478)),\"\",IFERROR(VLOOKUP(TEXT(INDIRECT(\"'\"&F7478&\"'!\"&H7478),\"0\"),Notes!$B$5:$C$100,2,FALSE),\"\"))","v":""},"2a","$U$140","$V$140"]
[26846,{"$f":"Menu!$F$29","v":"X"},{"$f":"Menu!$J$29","v":2020},{"$f":"IF(ISBLANK(INDIRECT(\"'\"&F7479&\"'!\"&G7479)),\"\",INDIRECT(\"'\"&F7479&\"'!\"&G7479))","v":""},{"$f":"IF(ISBLANK(INDIRECT(\"'\"&F7479&\"'!\"&H7479)),\"\",IFERROR(VLOOKUP(TEXT(INDIRECT(\"'\"&F7479&\"'!\"&H7479),\"0\"),Notes!$B$5:$C$100,2,FALSE),\"\"))","v":""},"2a","$S$140","$T$140"]
[26847,{"$f":"Menu!$F$29","v":"X"},{"$f":"Menu!$J$29","v":2020},{"$f":"IF(ISBLANK(INDIRECT(\"'\"&F7480&\"'!\"&G7480)),\"\",INDIRECT(\"'\"&F7480&\"'!\"&G7480))","v":""},{"$f":"IF(ISBLANK(INDIRECT(\"'\"&F7480&\"'!\"&H7480)),\"\",IFERROR(VLOOKUP(TEXT(INDIRECT(\"'\"&F7480&\"'!\"&H7480),\"0\"),Notes!$B$5:$C$100,2,FALSE),\"\"))","v":""},"2d","$K$140","$L$140"]
[26848,{"$f":"Menu!$F$29","v":"X"},{"$f":"Menu!$J$29","v":2020},{"$f":"IF(ISBLANK(INDIRECT(\"'\"&F7481&\"'!\"&G7481)),\"\",INDIRECT(\"'\"&F7481&\"'!\"&G7481))","v":""},{"$f":"IF(ISBLANK(INDIRECT(\"'\"&F7481&\"'!\"&H7481)),\"\",IFERROR(VLOOKUP(TEXT(INDIRECT(\"'\"&F7481&\"'!\"&H7481),\"0\"),Notes!$B$5:$C$100,2,FALSE),\"\"))","v":""},"2d","$O$140","$P$140"]
[26849,{"$f":"Menu!$F$29","v":"X"},{"$f":"Menu!$J$29","v":2020},{"$f":"IF(ISBLANK(INDIRECT(\"'\"&F7482&\"'!\"&G7482)),\"\",INDIRECT(\"'\"&F7482&\"'!\"&G7482))","v":""},{"$f":"IF(ISBLANK(INDIRECT(\"'\"&F7482&\"'!\"&H7482)),\"\",IFERROR(VLOOKUP(TEXT(INDIRECT(\"'\"&F7482&\"'!\"&H7482),\"0\"),Notes!$B$5:$C$100,2,FALSE),\"\"))","v":""},"2d","$M$140","$N$140"]
[26850,{"$f":"Menu!$F$29","v":"X"},{"$f":"Menu!$J$29","v":2020},{"$f":"IF(ISBLANK(INDIRECT(\"'\"&F7483&\"'!\"&G7483)),\"\",INDIRECT(\"'\"&F7483&\"'!\"&G7483))","v":""},{"$f":"IF(ISBLANK(INDIRECT(\"'\"&F7483&\"'!\"&H7483)),\"\",IFERROR(VLOOKUP(TEXT(INDIRECT(\"'\"&F7483&\"'!\"&H7483),\"0\"),Notes!$B$5:$C$100,2,FALSE),\"\"))","v":""},"2d","$Q$140","$R$140"]
[26851,{"$f":"Menu!$F$29","v":"X"},{"$f":"Menu!$J$29","v":2020},{"$f":"IF(ISBLANK(INDIRECT(\"'\"&F7484&\"'!\"&G7484)),\"\",INDIRECT(\"'\"&F7484&\"'!\"&G7484))","v":""},{"$f":"IF(ISBLANK(INDIRECT(\"'\"&F7484&\"'!\"&H7484)),\"\",IFERROR(VLOOKUP(TEXT(INDIRECT(\"'\"&F7484&\"'!\"&H7484),\"0\"),Notes!$B$5:$C$100,2,FALSE),\"\"))","v":""},"2d","$U$140","$V$140"]
[26852,{"$f":"Menu!$F$29","v":"X"},{"$f":"Menu!$J$29","v":2020},{"$f":"IF(ISBLANK(INDIRECT(\"'\"&F7485&\"'!\"&G7485)),\"\",INDIRECT(\"'\"&F7485&\"'!\"&G7485))","v":""},{"$f":"IF(ISBLANK(INDIRECT(\"'\"&F7485&\"'!\"&H7485)),\"\",IFERROR(VLOOKUP(TEXT(INDIRECT(\"'\"&F7485&\"'!\"&H7485),\"0\"),Notes!$B$5:$C$100,2,FALSE),\"\"))","v":""},"2d","$S$140","$T$140"]
[26853,{"$f":"Menu!$F$29","v":"X"},{"$f":"Menu!$J$29","v":2020},{"$f":"IF(ISBLANK(INDIRECT(\"'\"&F7486&\"'!\"&G7486)),\"\",INDIRECT(\"'\"&F7486&\"'!\"&G7486))","v":""},{"$f":"IF(ISBLANK(INDIRECT(\"'\"&F7486&\"'!\"&H7486)),\"\",IFERROR(VLOOKUP(TEXT(INDIRECT(\"'\"&F7486&\"'!\"&H7486),\"0\"),Notes!$B$5:$C$100,2,FALSE),\"\"))","v":""},"2a","$K$140","$L$140"]
[26854,{"$f":"Menu!$F$29","v":"X"},{"$f":"Menu!$J$29","v":2020},{"$f":"IF(ISBLANK(INDIRECT(\"'\"&F7487&\"'!\"&G7487)),\"\",INDIRECT(\"'\"&F7487&\"'!\"&G7487))","v":""},{"$f":"IF(ISBLANK(INDIRECT(\"'\"&F7487&\"'!\"&H7487)),\"\",IFERROR(VLOOKUP(TEXT(INDIRECT(\"'\"&F7487&\"'!\"&H7487),\"0\"),Notes!$B$5:$C$100,2,FALSE),\"\"))","v":""},"2a","$O$140","$P$140"]
[26855,{"$f":"Menu!$F$29","v":"X"},{"$f":"Menu!$J$29","v":2020},{"$f":"IF(ISBLANK(INDIRECT(\"'\"&F7488&\"'!\"&G7488)),\"\",INDIRECT(\"'\"&F7488&\"'!\"&G7488))","v":""},{"$f":"IF(ISBLANK(INDIRECT(\"'\"&F7488&\"'!\"&H7488)),\"\",IFERROR(VLOOKUP(TEXT(INDIRECT(\"'\"&F7488&\"'!\"&H7488),\"0\"),Notes!$B$5:$C$100,2,FALSE),\"\"))","v":""},"2a","$M$140","$N$140"]
[26856,{"$f":"Menu!$F$29","v":"X"},{"$f":"Menu!$J$29","v":2020},{"$f":"IF(ISBLANK(INDIRECT(\"'\"&F7489&\"'!\"&G7489)),\"\",INDIRECT(\"'\"&F7489&\"'!\"&G7489))","v":""},{"$f":"IF(ISBLANK(INDIRECT(\"'\"&F7489&\"'!\"&H7489)),\"\",IFERROR(VLOOKUP(TEXT(INDIRECT(\"'\"&F7489&\"'!\"&H7489),\"0\"),Notes!$B$5:$C$100,2,FALSE),\"\"))","v":""},"2a","$E$140","$F$140"]
[26857,{"$f":"Menu!$F$29","v":"X"},{"$f":"Menu!$J$29","v":2020},{"$f":"IF(ISBLANK(INDIRECT(\"'\"&F7490&\"'!\"&G7490)),\"\",INDIRECT(\"'\"&F7490&\"'!\"&G7490))","v":""},{"$f":"IF(ISBLANK(INDIRECT(\"'\"&F7490&\"'!\"&H7490)),\"\",IFERROR(VLOOKUP(TEXT(INDIRECT(\"'\"&F7490&\"'!\"&H7490),\"0\"),Notes!$B$5:$C$100,2,FALSE),\"\"))","v":""},"2b","$K$141",{"$f":"IF(LEN(TRIM(MID(G7490,4,10)))-LEN(SUBSTITUTE(TRIM(MID(G7490,4,10)),\"$\",\"\"))=0,\"$\"&CHAR(CODE(MID(G7490,2,1))+1)&\"$\"&TRIM(MID(G7490,4,10)),\"$\"&MID(G7490,2,1)&CHAR(CODE(MID(G7490,3,1))+1)&\"$\"&TRIM(MID(G7490,5,11)))","v":"$L$141"}]
[26858,{"$f":"Menu!$F$29","v":"X"},{"$f":"Menu!$J$29","v":2020},{"$f":"IF(ISBLANK(INDIRECT(\"'\"&F7491&\"'!\"&G7491)),\"\",INDIRECT(\"'\"&F7491&\"'!\"&G7491))","v":""},{"$f":"IF(ISBLANK(INDIRECT(\"'\"&F7491&\"'!\"&H7491)),\"\",IFERROR(VLOOKUP(TEXT(INDIRECT(\"'\"&F7491&\"'!\"&H7491),\"0\"),Notes!$B$5:$C$100,2,FALSE),\"\"))","v":""},"2b","$O$141","$P$141"]
[26859,{"$f":"Menu!$F$29","v":"X"},{"$f":"Menu!$J$29","v":2020},{"$f":"IF(ISBLANK(INDIRECT(\"'\"&F7492&\"'!\"&G7492)),\"\",INDIRECT(\"'\"&F7492&\"'!\"&G7492))","v":""},{"$f":"IF(ISBLANK(INDIRECT(\"'\"&F7492&\"'!\"&H7492)),\"\",IFERROR(VLOOKUP(TEXT(INDIRECT(\"'\"&F7492&\"'!\"&H7492),\"0\"),Notes!$B$5:$C$100,2,FALSE),\"\"))","v":""},"2b","$M$141","$N$141"]
[26860,{"$f":"Menu!$F$29","v":"X"},{"$f":"Menu!$J$29","v":2020},{"$f":"IF(ISBLANK(INDIRECT(\"'\"&F7493&\"'!\"&G7493)),\"\",INDIRECT(\"'\"&F7493&\"'!\"&G7493))","v":""},{"$f":"IF(ISBLANK(INDIRECT(\"'\"&F7493&\"'!\"&H7493)),\"\",IFERROR(VLOOKUP(TEXT(INDIRECT(\"'\"&F7493&\"'!\"&H7493),\"0\"),Notes!$B$5:$C$100,2,FALSE),\"\"))","v":""},"2b","$Q$141","$R$141"]
[26861,{"$f":"Menu!$F$29","v":"X"},{"$f":"Menu!$J$29","v":2020},{"$f":"IF(ISBLANK(INDIRECT(\"'\"&F7494&\"'!\"&G7494)),\"\",INDIRECT(\"'\"&F7494&\"'!\"&G7494))","v":""},{"$f":"IF(ISBLANK(INDIRECT(\"'\"&F7494&\"'!\"&H7494)),\"\",IFERROR(VLOOKUP(TEXT(INDIRECT(\"'\"&F7494&\"'!\"&H7494),\"0\"),Notes!$B$5:$C$100,2,FALSE),\"\"))","v":""},"2b","$U$141","$V$141"]
[26862,{"$f":"Menu!$F$29","v":"X"},{"$f":"Menu!$J$29","v":2020},{"$f":"IF(ISBLANK(INDIRECT(\"'\"&F7495&\"'!\"&G7495)),\"\",INDIRECT(\"'\"&F7495&\"'!\"&G7495))","v":""},{"$f":"IF(ISBLANK(INDIRECT(\"'\"&F7495&\"'!\"&H7495)),\"\",IFERROR(VLOOKUP(TEXT(INDIRECT(\"'\"&F7495&\"'!\"&H7495),\"0\"),Notes!$B$5:$C$100,2,FALSE),\"\"))","v":""},"2b","$S$141","$T$141"]
[26866,{"$f":"Menu!$F$29","v":"X"},{"$f":"Menu!$J$29","v":2020},{"$f":"IF(ISBLANK(INDIRECT(\"'\"&F7496&\"'!\"&G7496)),\"\",INDIRECT(\"'\"&F7496&\"'!\"&G7496))","v":""},null,"2a","$I$141","$J$141"]
[26867,{"$f":"Menu!$F$29","v":"X"},{"$f":"Menu!$J$29","v":2020},{"$f":"IF(ISBLANK(INDIRECT(\"'\"&F7497&\"'!\"&G7497)),\"\",INDIRECT(\"'\"&F7497&\"'!\"&G7497))","v":""},{"$f":"IF(ISBLANK(INDIRECT(\"'\"&F7497&\"'!\"&H7497)),\"\",IFERROR(VLOOKUP(TEXT(INDIRECT(\"'\"&F7497&\"'!\"&H7497),\"0\"),Notes!$B$5:$C$100,2,FALSE),\"\"))","v":""},"2c","$E$141","$F$141"]
[26868,{"$f":"Menu!$F$29","v":"X"},{"$f":"Menu!$J$29","v":2020},{"$f":"IF(ISBLANK(INDIRECT(\"'\"&F7498&\"'!\"&G7498)),\"\",INDIRECT(\"'\"&F7498&\"'!\"&G7498))","v":""},{"$f":"IF(ISBLANK(INDIRECT(\"'\"&F7498&\"'!\"&H7498)),\"\",IFERROR(VLOOKUP(TEXT(INDIRECT(\"'\"&F7498&\"'!\"&H7498),\"0\"),Notes!$B$5:$C$100,2,FALSE),\"\"))","v":""},"2c","$I$141","$J$141"]
[26869,{"$f":"Menu!$F$29","v":"X"},{"$f":"Menu!$J$29","v":2020},{"$f":"IF(ISBLANK(INDIRECT(\"'\"&F7499&\"'!\"&G7499)),\"\",INDIRECT(\"'\"&F7499&\"'!\"&G7499))","v":""},{"$f":"IF(ISBLANK(INDIRECT(\"'\"&F7499&\"'!\"&H7499)),\"\",IFERROR(VLOOKUP(TEXT(INDIRECT(\"'\"&F7499&\"'!\"&H7499),\"0\"),Notes!$B$5:$C$100,2,FALSE),\"\"))","v":""},"2c","$G$141","$H$141"]
[26873,{"$f":"Menu!$F$29","v":"X"},{"$f":"Menu!$J$29","v":2020},{"$f":"IF(ISBLANK(INDIRECT(\"'\"&F7500&\"'!\"&G7500)),\"\",INDIRECT(\"'\"&F7500&\"'!\"&G7500))","v":""},{"$f":"IF(ISBLANK(INDIRECT(\"'\"&F7500&\"'!\"&H7500)),\"\",IFERROR(VLOOKUP(TEXT(INDIRECT(\"'\"&F7500&\"'!\"&H7500),\"0\"),Notes!$B$5:$C$100,2,FALSE),\"\"))","v":""},"2c","$K$141","$L$141"]
[26874,{"$f":"Menu!$F$29","v":"X"},{"$f":"Menu!$J$29","v":2020},{"$f":"IF(ISBLANK(INDIRECT(\"'\"&F7501&\"'!\"&G7501)),\"\",INDIRECT(\"'\"&F7501&\"'!\"&G7501))","v":""},{"$f":"IF(ISBLANK(INDIRECT(\"'\"&F7501&\"'!\"&H7501)),\"\",IFERROR(VLOOKUP(TEXT(INDIRECT(\"'\"&F7501&\"'!\"&H7501),\"0\"),Notes!$B$5:$C$100,2,FALSE),\"\"))","v":""},"2c","$O$141","$P$141"]
[26875,{"$f":"Menu!$F$29","v":"X"},{"$f":"Menu!$J$29","v":2020},{"$f":"IF(ISBLANK(INDIRECT(\"'\"&F7502&\"'!\"&G7502)),\"\",INDIRECT(\"'\"&F7502&\"'!\"&G7502))","v":""},{"$f":"IF(ISBLANK(INDIRECT(\"'\"&F7502&\"'!\"&H7502)),\"\",IFERROR(VLOOKUP(TEXT(INDIRECT(\"'\"&F7502&\"'!\"&H7502),\"0\"),Notes!$B$5:$C$100,2,FALSE),\"\"))","v":""},"2c","$M$141","$N$141"]
[26876,{"$f":"Menu!$F$29","v":"X"},{"$f":"Menu!$J$29","v":2020},{"$f":"IF(ISBLANK(INDIRECT(\"'\"&F7503&\"'!\"&G7503)),\"\",INDIRECT(\"'\"&F7503&\"'!\"&G7503))","v":""},{"$f":"IF(ISBLANK(INDIRECT(\"'\"&F7503&\"'!\"&H7503)),\"\",IFERROR(VLOOKUP(TEXT(INDIRECT(\"'\"&F7503&\"'!\"&H7503),\"0\"),Notes!$B$5:$C$100,2,FALSE),\"\"))","v":""},"2c","$Q$141","$R$141"]
[26877,{"$f":"Menu!$F$29","v":"X"},{"$f":"Menu!$J$29","v":2020},{"$f":"IF(ISBLANK(INDIRECT(\"'\"&F7504&\"'!\"&G7504)),\"\",INDIRECT(\"'\"&F7504&\"'!\"&G7504))","v":""},{"$f":"IF(ISBLANK(INDIRECT(\"'\"&F7504&\"'!\"&H7504)),\"\",IFERROR(VLOOKUP(TEXT(INDIRECT(\"'\"&F7504&\"'!\"&H7504),\"0\"),Notes!$B$5:$C$100,2,FALSE),\"\"))","v":""},"2c","$U$141","$V$141"]
[26878,{"$f":"Menu!$F$29","v":"X"},{"$f":"Menu!$J$29","v":2020},{"$f":"IF(ISBLANK(INDIRECT(\"'\"&F7505&\"'!\"&G7505)),\"\",INDIRECT(\"'\"&F7505&\"'!\"&G7505))","v":""},{"$f":"IF(ISBLANK(INDIRECT(\"'\"&F7505&\"'!\"&H7505)),\"\",IFERROR(VLOOKUP(TEXT(INDIRECT(\"'\"&F7505&\"'!\"&H7505),\"0\"),Notes!$B$5:$C$100,2,FALSE),\"\"))","v":""},"2c","$S$141","$T$141"]
[26879,{"$f":"Menu!$F$29","v":"X"},{"$f":"Menu!$J$29","v":2020},{"$f":"IF(ISBLANK(INDIRECT(\"'\"&F7506&\"'!\"&G7506)),\"\",INDIRECT(\"'\"&F7506&\"'!\"&G7506))","v":""},{"$f":"IF(ISBLANK(INDIRECT(\"'\"&F7506&\"'!\"&H7506)),\"\",IFERROR(VLOOKUP(TEXT(INDIRECT(\"'\"&F7506&\"'!\"&H7506),\"0\"),Notes!$B$5:$C$100,2,FALSE),\"\"))","v":""},"2c","$W$141","$X$141"]
[26880,{"$f":"Menu!$F$29","v":"X"},{"$f":"Menu!$J$29","v":2020},{"$f":"IF(ISBLANK(INDIRECT(\"'\"&F7507&\"'!\"&G7507)),\"\",INDIRECT(\"'\"&F7507&\"'!\"&G7507))","v":""},{"$f":"IF(ISBLANK(INDIRECT(\"'\"&F7507&\"'!\"&H7507)),\"\",IFERROR(VLOOKUP(TEXT(INDIRECT(\"'\"&F7507&\"'!\"&H7507),\"0\"),Notes!$B$5:$C$100,2,FALSE),\"\"))","v":""},"2c","$AA$141","$AB$141"]
[26881,{"$f":"Menu!$F$29","v":"X"},{"$f":"Menu!$J$29","v":2020},{"$f":"IF(ISBLANK(INDIRECT(\"'\"&F7508&\"'!\"&G7508)),\"\",INDIRECT(\"'\"&F7508&\"'!\"&G7508))","v":""},{"$f":"IF(ISBLANK(INDIRECT(\"'\"&F7508&\"'!\"&H7508)),\"\",IFERROR(VLOOKUP(TEXT(INDIRECT(\"'\"&F7508&\"'!\"&H7508),\"0\"),Notes!$B$5:$C$100,2,FALSE),\"\"))","v":""},"2c","$Y$141","$Z$141"]
[26888,{"$f":"Menu!$F$29","v":"X"},{"$f":"Menu!$J$29","v":2020},{"$f":"IF(ISBLANK(INDIRECT(\"'\"&F7509&\"'!\"&G7509)),\"\",INDIRECT(\"'\"&F7509&\"'!\"&G7509))","v":""},{"$f":"IF(ISBLANK(INDIRECT(\"'\"&F7509&\"'!\"&H7509)),\"\",IFERROR(VLOOKUP(TEXT(INDIRECT(\"'\"&F7509&\"'!\"&H7509),\"0\"),Notes!$B$5:$C$100,2,FALSE),\"\"))","v":""},"2e","$BG$142","$BH$142"]
[26889,{"$f":"Menu!$F$29","v":"X"},{"$f":"Menu!$J$29","v":2020},{"$f":"IF(ISBLANK(INDIRECT(\"'\"&F7510&\"'!\"&G7510)),\"\",INDIRECT(\"'\"&F7510&\"'!\"&G7510))","v":""},{"$f":"IF(ISBLANK(INDIRECT(\"'\"&F7510&\"'!\"&H7510)),\"\",IFERROR(VLOOKUP(TEXT(INDIRECT(\"'\"&F7510&\"'!\"&H7510),\"0\"),Notes!$B$5:$C$100,2,FALSE),\"\"))","v":""},"2e","$BK$142","$BL$142"]
[26890,{"$f":"Menu!$F$29","v":"X"},{"$f":"Menu!$J$29","v":2020},{"$f":"IF(ISBLANK(INDIRECT(\"'\"&F7511&\"'!\"&G7511)),\"\",INDIRECT(\"'\"&F7511&\"'!\"&G7511))","v":""},{"$f":"IF(ISBLANK(INDIRECT(\"'\"&F7511&\"'!\"&H7511)),\"\",IFERROR(VLOOKUP(TEXT(INDIRECT(\"'\"&F7511&\"'!\"&H7511),\"0\"),Notes!$B$5:$C$100,2,FALSE),\"\"))","v":""},"2e","$BI$142","$BJ$142"]
[26891,{"$f":"Menu!$F$29","v":"X"},{"$f":"Menu!$J$29","v":2020},{"$f":"IF(ISBLANK(INDIRECT(\"'\"&F7512&\"'!\"&G7512)),\"\",INDIRECT(\"'\"&F7512&\"'!\"&G7512))","v":""},{"$f":"IF(ISBLANK(INDIRECT(\"'\"&F7512&\"'!\"&H7512)),\"\",IFERROR(VLOOKUP(TEXT(INDIRECT(\"'\"&F7512&\"'!\"&H7512),\"0\"),Notes!$B$5:$C$100,2,FALSE),\"\"))","v":""},"2e","$E$142","$F$142"]
[26892,{"$f":"Menu!$F$29","v":"X"},{"$f":"Menu!$J$29","v":2020},{"$f":"IF(ISBLANK(INDIRECT(\"'\"&F7513&\"'!\"&G7513)),\"\",INDIRECT(\"'\"&F7513&\"'!\"&G7513))","v":""},{"$f":"IF(ISBLANK(INDIRECT(\"'\"&F7513&\"'!\"&H7513)),\"\",IFERROR(VLOOKUP(TEXT(INDIRECT(\"'\"&F7513&\"'!\"&H7513),\"0\"),Notes!$B$5:$C$100,2,FALSE),\"\"))","v":""},"2e","$I$142","$J$142"]
[26893,{"$f":"Menu!$F$29","v":"X"},{"$f":"Menu!$J$29","v":2020},{"$f":"IF(ISBLANK(INDIRECT(\"'\"&F7514&\"'!\"&G7514)),\"\",INDIRECT(\"'\"&F7514&\"'!\"&G7514))","v":""},{"$f":"IF(ISBLANK(INDIRECT(\"'\"&F7514&\"'!\"&H7514)),\"\",IFERROR(VLOOKUP(TEXT(INDIRECT(\"'\"&F7514&\"'!\"&H7514),\"0\"),Notes!$B$5:$C$100,2,FALSE),\"\"))","v":""},"2e","$G$142","$H$142"]
[26894,{"$f":"Menu!$F$29","v":"X"},{"$f":"Menu!$J$29","v":2020},{"$f":"IF(ISBLANK(INDIRECT(\"'\"&F7515&\"'!\"&G7515)),\"\",INDIRECT(\"'\"&F7515&\"'!\"&G7515))","v":""},{"$f":"IF(ISBLANK(INDIRECT(\"'\"&F7515&\"'!\"&H7515)),\"\",IFERROR(VLOOKUP(TEXT(INDIRECT(\"'\"&F7515&\"'!\"&H7515),\"0\"),Notes!$B$5:$C$100,2,FALSE),\"\"))","v":""},"2e","$K$142","$L$142"]
[26895,{"$f":"Menu!$F$29","v":"X"},{"$f":"Menu!$J$29","v":2020},{"$f":"IF(ISBLANK(INDIRECT(\"'\"&F7516&\"'!\"&G7516)),\"\",INDIRECT(\"'\"&F7516&\"'!\"&G7516))","v":""},{"$f":"IF(ISBLANK(INDIRECT(\"'\"&F7516&\"'!\"&H7516)),\"\",IFERROR(VLOOKUP(TEXT(INDIRECT(\"'\"&F7516&\"'!\"&H7516),\"0\"),Notes!$B$5:$C$100,2,FALSE),\"\"))","v":""},"2e","$O$142","$P$142"]
[26896,{"$f":"Menu!$F$29","v":"X"},{"$f":"Menu!$J$29","v":2020},{"$f":"IF(ISBLANK(INDIRECT(\"'\"&F7517&\"'!\"&G7517)),\"\",INDIRECT(\"'\"&F7517&\"'!\"&G7517))","v":""},{"$f":"IF(ISBLANK(INDIRECT(\"'\"&F7517&\"'!\"&H7517)),\"\",IFERROR(VLOOKUP(TEXT(INDIRECT(\"'\"&F7517&\"'!\"&H7517),\"0\"),Notes!$B$5:$C$100,2,FALSE),\"\"))","v":""},"2e","$M$142","$N$142"]
[26897,{"$f":"Menu!$F$29","v":"X"},{"$f":"Menu!$J$29","v":2020},{"$f":"IF(ISBLANK(INDIRECT(\"'\"&F7518&\"'!\"&G7518)),\"\",INDIRECT(\"'\"&F7518&\"'!\"&G7518))","v":""},{"$f":"IF(ISBLANK(INDIRECT(\"'\"&F7518&\"'!\"&H7518)),\"\",IFERROR(VLOOKUP(TEXT(INDIRECT(\"'\"&F7518&\"'!\"&H7518),\"0\"),Notes!$B$5:$C$100,2,FALSE),\"\"))","v":""},"2e","$Q$142","$R$142"]
[26898,{"$f":"Menu!$F$29","v":"X"},{"$f":"Menu!$J$29","v":2020},{"$f":"IF(ISBLANK(INDIRECT(\"'\"&F7519&\"'!\"&G7519)),\"\",INDIRECT(\"'\"&F7519&\"'!\"&G7519))","v":""},{"$f":"IF(ISBLANK(INDIRECT(\"'\"&F7519&\"'!\"&H7519)),\"\",IFERROR(VLOOKUP(TEXT(INDIRECT(\"'\"&F7519&\"'!\"&H7519),\"0\"),Notes!$B$5:$C$100,2,FALSE),\"\"))","v":""},"2e","$U$142","$V$142"]
[26899,{"$f":"Menu!$F$29","v":"X"},{"$f":"Menu!$J$29","v":2020},{"$f":"IF(ISBLANK(INDIRECT(\"'\"&F7520&\"'!\"&G7520)),\"\",INDIRECT(\"'\"&F7520&\"'!\"&G7520))","v":""},{"$f":"IF(ISBLANK(INDIRECT(\"'\"&F7520&\"'!\"&H7520)),\"\",IFERROR(VLOOKUP(TEXT(INDIRECT(\"'\"&F7520&\"'!\"&H7520),\"0\"),Notes!$B$5:$C$100,2,FALSE),\"\"))","v":""},"2e","$S$142","$T$142"]
[26900,{"$f":"Menu!$F$29","v":"X"},{"$f":"Menu!$J$29","v":2020},{"$f":"IF(ISBLANK(INDIRECT(\"'\"&F7521&\"'!\"&G7521)),\"\",INDIRECT(\"'\"&F7521&\"'!\"&G7521))","v":""},{"$f":"IF(ISBLANK(INDIRECT(\"'\"&F7521&\"'!\"&H7521)),\"\",IFERROR(VLOOKUP(TEXT(INDIRECT(\"'\"&F7521&\"'!\"&H7521),\"0\"),Notes!$B$5:$C$100,2,FALSE),\"\"))","v":""},"2e","$W$142","$X$142"]
[26901,{"$f":"Menu!$F$29","v":"X"},{"$f":"Menu!$J$29","v":2020},{"$f":"IF(ISBLANK(INDIRECT(\"'\"&F7522&\"'!\"&G7522)),\"\",INDIRECT(\"'\"&F7522&\"'!\"&G7522))","v":""},{"$f":"IF(ISBLANK(INDIRECT(\"'\"&F7522&\"'!\"&H7522)),\"\",IFERROR(VLOOKUP(TEXT(INDIRECT(\"'\"&F7522&\"'!\"&H7522),\"0\"),Notes!$B$5:$C$100,2,FALSE),\"\"))","v":""},"2e","$AA$142","$AB$142"]
[26902,{"$f":"Menu!$F$29","v":"X"},{"$f":"Menu!$J$29","v":2020},{"$f":"IF(ISBLANK(INDIRECT(\"'\"&F7523&\"'!\"&G7523)),\"\",INDIRECT(\"'\"&F7523&\"'!\"&G7523))","v":""},{"$f":"IF(ISBLANK(INDIRECT(\"'\"&F7523&\"'!\"&H7523)),\"\",IFERROR(VLOOKUP(TEXT(INDIRECT(\"'\"&F7523&\"'!\"&H7523),\"0\"),Notes!$B$5:$C$100,2,FALSE),\"\"))","v":""},"2e","$Y$142","$Z$142"]
[26903,{"$f":"Menu!$F$29","v":"X"},{"$f":"Menu!$J$29","v":2020},{"$f":"IF(ISBLANK(INDIRECT(\"'\"&F7524&\"'!\"&G7524)),\"\",INDIRECT(\"'\"&F7524&\"'!\"&G7524))","v":""},{"$f":"IF(ISBLANK(INDIRECT(\"'\"&F7524&\"'!\"&H7524)),\"\",IFERROR(VLOOKUP(TEXT(INDIRECT(\"'\"&F7524&\"'!\"&H7524),\"0\"),Notes!$B$5:$C$100,2,FALSE),\"\"))","v":""},"2e","$AC$142","$AD$142"]
[26904,{"$f":"Menu!$F$29","v":"X"},{"$f":"Menu!$J$29","v":2020},{"$f":"IF(ISBLANK(INDIRECT(\"'\"&F7525&\"'!\"&G7525)),\"\",INDIRECT(\"'\"&F7525&\"'!\"&G7525))","v":""},{"$f":"IF(ISBLANK(INDIRECT(\"'\"&F7525&\"'!\"&H7525)),\"\",IFERROR(VLOOKUP(TEXT(INDIRECT(\"'\"&F7525&\"'!\"&H7525),\"0\"),Notes!$B$5:$C$100,2,FALSE),\"\"))","v":""},"2e","$AG$142","$AH$142"]
[26905,{"$f":"Menu!$F$29","v":"X"},{"$f":"Menu!$J$29","v":2020},{"$f":"IF(ISBLANK(INDIRECT(\"'\"&F7526&\"'!\"&G7526)),\"\",INDIRECT(\"'\"&F7526&\"'!\"&G7526))","v":""},{"$f":"IF(ISBLANK(INDIRECT(\"'\"&F7526&\"'!\"&H7526)),\"\",IFERROR(VLOOKUP(TEXT(INDIRECT(\"'\"&F7526&\"'!\"&H7526),\"0\"),Notes!$B$5:$C$100,2,FALSE),\"\"))","v":""},"2e","$AE$142","$AF$142"]
[26906,{"$f":"Menu!$F$29","v":"X"},{"$f":"Menu!$J$29","v":2020},{"$f":"IF(ISBLANK(INDIRECT(\"'\"&F7527&\"'!\"&G7527)),\"\",INDIRECT(\"'\"&F7527&\"'!\"&G7527))","v":""},{"$f":"IF(ISBLANK(INDIRECT(\"'\"&F7527&\"'!\"&H7527)),\"\",IFERROR(VLOOKUP(TEXT(INDIRECT(\"'\"&F7527&\"'!\"&H7527),\"0\"),Notes!$B$5:$C$100,2,FALSE),\"\"))","v":""},"2e","$AI$142","$AJ$142"]
[26907,{"$f":"Menu!$F$29","v":"X"},{"$f":"Menu!$J$29","v":2020},{"$f":"IF(ISBLANK(INDIRECT(\"'\"&F7528&\"'!\"&G7528)),\"\",INDIRECT(\"'\"&F7528&\"'!\"&G7528))","v":""},{"$f":"IF(ISBLANK(INDIRECT(\"'\"&F7528&\"'!\"&H7528)),\"\",IFERROR(VLOOKUP(TEXT(INDIRECT(\"'\"&F7528&\"'!\"&H7528),\"0\"),Notes!$B$5:$C$100,2,FALSE),\"\"))","v":""},"2e","$AM$142","$AN$142"]
[26908,{"$f":"Menu!$F$29","v":"X"},{"$f":"Menu!$J$29","v":2020},{"$f":"IF(ISBLANK(INDIRECT(\"'\"&F7529&\"'!\"&G7529)),\"\",INDIRECT(\"'\"&F7529&\"'!\"&G7529))","v":""},{"$f":"IF(ISBLANK(INDIRECT(\"'\"&F7529&\"'!\"&H7529)),\"\",IFERROR(VLOOKUP(TEXT(INDIRECT(\"'\"&F7529&\"'!\"&H7529),\"0\"),Notes!$B$5:$C$100,2,FALSE),\"\"))","v":""},"2e","$AK$142","$AL$142"]
[26909,{"$f":"Menu!$F$29","v":"X"},{"$f":"Menu!$J$29","v":2020},{"$f":"IF(ISBLANK(INDIRECT(\"'\"&F7530&\"'!\"&G7530)),\"\",INDIRECT(\"'\"&F7530&\"'!\"&G7530))","v":""},{"$f":"IF(ISBLANK(INDIRECT(\"'\"&F7530&\"'!\"&H7530)),\"\",IFERROR(VLOOKUP(TEXT(INDIRECT(\"'\"&F7530&\"'!\"&H7530),\"0\"),Notes!$B$5:$C$100,2,FALSE),\"\"))","v":""},"2e","$AO$142","$AP$142"]
[26910,{"$f":"Menu!$F$29","v":"X"},{"$f":"Menu!$J$29","v":2020},{"$f":"IF(ISBLANK(INDIRECT(\"'\"&F7531&\"'!\"&G7531)),\"\",INDIRECT(\"'\"&F7531&\"'!\"&G7531))","v":""},{"$f":"IF(ISBLANK(INDIRECT(\"'\"&F7531&\"'!\"&H7531)),\"\",IFERROR(VLOOKUP(TEXT(INDIRECT(\"'\"&F7531&\"'!\"&H7531),\"0\"),Notes!$B$5:$C$100,2,FALSE),\"\"))","v":""},"2e","$AS$142","$AT$142"]
[26911,{"$f":"Menu!$F$29","v":"X"},{"$f":"Menu!$J$29","v":2020},{"$f":"IF(ISBLANK(INDIRECT(\"'\"&F7532&\"'!\"&G7532)),\"\",INDIRECT(\"'\"&F7532&\"'!\"&G7532))","v":""},{"$f":"IF(ISBLANK(INDIRECT(\"'\"&F7532&\"'!\"&H7532)),\"\",IFERROR(VLOOKUP(TEXT(INDIRECT(\"'\"&F7532&\"'!\"&H7532),\"0\"),Notes!$B$5:$C$100,2,FALSE),\"\"))","v":""},"2e","$AQ$142","$AR$142"]
[26912,{"$f":"Menu!$F$29","v":"X"},{"$f":"Menu!$J$29","v":2020},{"$f":"IF(ISBLANK(INDIRECT(\"'\"&F7533&\"'!\"&G7533)),\"\",INDIRECT(\"'\"&F7533&\"'!\"&G7533))","v":""},{"$f":"IF(ISBLANK(INDIRECT(\"'\"&F7533&\"'!\"&H7533)),\"\",IFERROR(VLOOKUP(TEXT(INDIRECT(\"'\"&F7533&\"'!\"&H7533),\"0\"),Notes!$B$5:$C$100,2,FALSE),\"\"))","v":""},"2e","$AU$142","$AV$142"]
[26913,{"$f":"Menu!$F$29","v":"X"},{"$f":"Menu!$J$29","v":2020},{"$f":"IF(ISBLANK(INDIRECT(\"'\"&F7534&\"'!\"&G7534)),\"\",INDIRECT(\"'\"&F7534&\"'!\"&G7534))","v":""},{"$f":"IF(ISBLANK(INDIRECT(\"'\"&F7534&\"'!\"&H7534)),\"\",IFERROR(VLOOKUP(TEXT(INDIRECT(\"'\"&F7534&\"'!\"&H7534),\"0\"),Notes!$B$5:$C$100,2,FALSE),\"\"))","v":""},"2e","$AY$142","$AZ$142"]
[26914,{"$f":"Menu!$F$29","v":"X"},{"$f":"Menu!$J$29","v":2020},{"$f":"IF(ISBLANK(INDIRECT(\"'\"&F7535&\"'!\"&G7535)),\"\",INDIRECT(\"'\"&F7535&\"'!\"&G7535))","v":""},{"$f":"IF(ISBLANK(INDIRECT(\"'\"&F7535&\"'!\"&H7535)),\"\",IFERROR(VLOOKUP(TEXT(INDIRECT(\"'\"&F7535&\"'!\"&H7535),\"0\"),Notes!$B$5:$C$100,2,FALSE),\"\"))","v":""},"2e","$AW$142","$AX$142"]
[26915,{"$f":"Menu!$F$29","v":"X"},{"$f":"Menu!$J$29","v":2020},{"$f":"IF(ISBLANK(INDIRECT(\"'\"&F7536&\"'!\"&G7536)),\"\",INDIRECT(\"'\"&F7536&\"'!\"&G7536))","v":""},{"$f":"IF(ISBLANK(INDIRECT(\"'\"&F7536&\"'!\"&H7536)),\"\",IFERROR(VLOOKUP(TEXT(INDIRECT(\"'\"&F7536&\"'!\"&H7536),\"0\"),Notes!$B$5:$C$100,2,FALSE),\"\"))","v":""},"2e","$BA$142","$BB$142"]
[26916,{"$f":"Menu!$F$29","v":"X"},{"$f":"Menu!$J$29","v":2020},{"$f":"IF(ISBLANK(INDIRECT(\"'\"&F7537&\"'!\"&G7537)),\"\",INDIRECT(\"'\"&F7537&\"'!\"&G7537))","v":""},{"$f":"IF(ISBLANK(INDIRECT(\"'\"&F7537&\"'!\"&H7537)),\"\",IFERROR(VLOOKUP(TEXT(INDIRECT(\"'\"&F7537&\"'!\"&H7537),\"0\"),Notes!$B$5:$C$100,2,FALSE),\"\"))","v":""},"2e","$BE$142","$BF$142"]
[26917,{"$f":"Menu!$F$29","v":"X"},{"$f":"Menu!$J$29","v":2020},{"$f":"IF(ISBLANK(INDIRECT(\"'\"&F7538&\"'!\"&G7538)),\"\",INDIRECT(\"'\"&F7538&\"'!\"&G7538))","v":""},{"$f":"IF(ISBLANK(INDIRECT(\"'\"&F7538&\"'!\"&H7538)),\"\",IFERROR(VLOOKUP(TEXT(INDIRECT(\"'\"&F7538&\"'!\"&H7538),\"0\"),Notes!$B$5:$C$100,2,FALSE),\"\"))","v":""},"2e","$BC$142","$BD$142"]
[26918,{"$f":"Menu!$F$29","v":"X"},{"$f":"Menu!$J$29","v":2020},{"$f":"IF(ISBLANK(INDIRECT(\"'\"&F7539&\"'!\"&G7539)),\"\",INDIRECT(\"'\"&F7539&\"'!\"&G7539))","v":""},{"$f":"IF(ISBLANK(INDIRECT(\"'\"&F7539&\"'!\"&H7539)),\"\",IFERROR(VLOOKUP(TEXT(INDIRECT(\"'\"&F7539&\"'!\"&H7539),\"0\"),Notes!$B$5:$C$100,2,FALSE),\"\"))","v":""},"2b","$E$141","$F$141"]
[26919,{"$f":"Menu!$F$29","v":"X"},{"$f":"Menu!$J$29","v":2020},{"$f":"IF(ISBLANK(INDIRECT(\"'\"&F7540&\"'!\"&G7540)),\"\",INDIRECT(\"'\"&F7540&\"'!\"&G7540))","v":""},{"$f":"IF(ISBLANK(INDIRECT(\"'\"&F7540&\"'!\"&H7540)),\"\",IFERROR(VLOOKUP(TEXT(INDIRECT(\"'\"&F7540&\"'!\"&H7540),\"0\"),Notes!$B$5:$C$100,2,FALSE),\"\"))","v":""},"2b","$I$141","$J$141"]
[26920,{"$f":"Menu!$F$29","v":"X"},{"$f":"Menu!$J$29","v":2020},{"$f":"IF(ISBLANK(INDIRECT(\"'\"&F7541&\"'!\"&G7541)),\"\",INDIRECT(\"'\"&F7541&\"'!\"&G7541))","v":""},{"$f":"IF(ISBLANK(INDIRECT(\"'\"&F7541&\"'!\"&H7541)),\"\",IFERROR(VLOOKUP(TEXT(INDIRECT(\"'\"&F7541&\"'!\"&H7541),\"0\"),Notes!$B$5:$C$100,2,FALSE),\"\"))","v":""},"2b","$G$141","$H$141"]
[26921,{"$f":"Menu!$F$29","v":"X"},{"$f":"Menu!$J$29","v":2020},{"$f":"IF(ISBLANK(INDIRECT(\"'\"&F7542&\"'!\"&G7542)),\"\",INDIRECT(\"'\"&F7542&\"'!\"&G7542))","v":""},null,"2a","$G$141","$H$141"]
[26922,{"$f":"Menu!$F$29","v":"X"},{"$f":"Menu!$J$29","v":2020},{"$f":"IF(ISBLANK(INDIRECT(\"'\"&F7543&\"'!\"&G7543)),\"\",INDIRECT(\"'\"&F7543&\"'!\"&G7543))","v":""},{"$f":"IF(ISBLANK(INDIRECT(\"'\"&F7543&\"'!\"&H7543)),\"\",IFERROR(VLOOKUP(TEXT(INDIRECT(\"'\"&F7543&\"'!\"&H7543),\"0\"),Notes!$B$5:$C$100,2,FALSE),\"\"))","v":""},"2b","$W$141","$X$141"]
[26923,{"$f":"Menu!$F$29","v":"X"},{"$f":"Menu!$J$29","v":2020},{"$f":"IF(ISBLANK(INDIRECT(\"'\"&F7544&\"'!\"&G7544)),\"\",INDIRECT(\"'\"&F7544&\"'!\"&G7544))","v":""},{"$f":"IF(ISBLANK(INDIRECT(\"'\"&F7544&\"'!\"&H7544)),\"\",IFERROR(VLOOKUP(TEXT(INDIRECT(\"'\"&F7544&\"'!\"&H7544),\"0\"),Notes!$B$5:$C$100,2,FALSE),\"\"))","v":""},"2b","$AA$141","$AB$141"]
[26924,{"$f":"Menu!$F$29","v":"X"},{"$f":"Menu!$J$29","v":2020},{"$f":"IF(ISBLANK(INDIRECT(\"'\"&F7545&\"'!\"&G7545)),\"\",INDIRECT(\"'\"&F7545&\"'!\"&G7545))","v":""},{"$f":"IF(ISBLANK(INDIRECT(\"'\"&F7545&\"'!\"&H7545)),\"\",IFERROR(VLOOKUP(TEXT(INDIRECT(\"'\"&F7545&\"'!\"&H7545),\"0\"),Notes!$B$5:$C$100,2,FALSE),\"\"))","v":""},"2b","$Y$141","$Z$141"]
[26925,{"$f":"Menu!$F$29","v":"X"},{"$f":"Menu!$J$29","v":2020},{"$f":"IF(ISBLANK(INDIRECT(\"'\"&F7546&\"'!\"&G7546)),\"\",INDIRECT(\"'\"&F7546&\"'!\"&G7546))","v":""},{"$f":"IF(ISBLANK(INDIRECT(\"'\"&F7546&\"'!\"&H7546)),\"\",IFERROR(VLOOKUP(TEXT(INDIRECT(\"'\"&F7546&\"'!\"&H7546),\"0\"),Notes!$B$5:$C$100,2,FALSE),\"\"))","v":""},"2d","$AC$141","$AD$141"]
[26926,{"$f":"Menu!$F$29","v":"X"},{"$f":"Menu!$J$29","v":2020},{"$f":"IF(ISBLANK(INDIRECT(\"'\"&F7547&\"'!\"&G7547)),\"\",INDIRECT(\"'\"&F7547&\"'!\"&G7547))","v":""},{"$f":"IF(ISBLANK(INDIRECT(\"'\"&F7547&\"'!\"&H7547)),\"\",IFERROR(VLOOKUP(TEXT(INDIRECT(\"'\"&F7547&\"'!\"&H7547),\"0\"),Notes!$B$5:$C$100,2,FALSE),\"\"))","v":""},"2d","$AG$141","$AH$141"]
[26927,{"$f":"Menu!$F$29","v":"X"},{"$f":"Menu!$J$29","v":2020},{"$f":"IF(ISBLANK(INDIRECT(\"'\"&F7548&\"'!\"&G7548)),\"\",INDIRECT(\"'\"&F7548&\"'!\"&G7548))","v":""},{"$f":"IF(ISBLANK(INDIRECT(\"'\"&F7548&\"'!\"&H7548)),\"\",IFERROR(VLOOKUP(TEXT(INDIRECT(\"'\"&F7548&\"'!\"&H7548),\"0\"),Notes!$B$5:$C$100,2,FALSE),\"\"))","v":""},"2d","$AE$141","$AF$141"]
[26928,{"$f":"Menu!$F$29","v":"X"},{"$f":"Menu!$J$29","v":2020},{"$f":"IF(ISBLANK(INDIRECT(\"'\"&F7549&\"'!\"&G7549)),\"\",INDIRECT(\"'\"&F7549&\"'!\"&G7549))","v":""},{"$f":"IF(ISBLANK(INDIRECT(\"'\"&F7549&\"'!\"&H7549)),\"\",IFERROR(VLOOKUP(TEXT(INDIRECT(\"'\"&F7549&\"'!\"&H7549),\"0\"),Notes!$B$5:$C$100,2,FALSE),\"\"))","v":""},"2d","$W$141","$X$141"]
[26929,{"$f":"Menu!$F$29","v":"X"},{"$f":"Menu!$J$29","v":2020},{"$f":"IF(ISBLANK(INDIRECT(\"'\"&F7550&\"'!\"&G7550)),\"\",INDIRECT(\"'\"&F7550&\"'!\"&G7550))","v":""},{"$f":"IF(ISBLANK(INDIRECT(\"'\"&F7550&\"'!\"&H7550)),\"\",IFERROR(VLOOKUP(TEXT(INDIRECT(\"'\"&F7550&\"'!\"&H7550),\"0\"),Notes!$B$5:$C$100,2,FALSE),\"\"))","v":""},"2d","$AA$141","$AB$141"]
[26930,{"$f":"Menu!$F$29","v":"X"},{"$f":"Menu!$J$29","v":2020},{"$f":"IF(ISBLANK(INDIRECT(\"'\"&F7551&\"'!\"&G7551)),\"\",INDIRECT(\"'\"&F7551&\"'!\"&G7551))","v":""},{"$f":"IF(ISBLANK(INDIRECT(\"'\"&F7551&\"'!\"&H7551)),\"\",IFERROR(VLOOKUP(TEXT(INDIRECT(\"'\"&F7551&\"'!\"&H7551),\"0\"),Notes!$B$5:$C$100,2,FALSE),\"\"))","v":""},"2d","$Y$141","$Z$141"]
[26931,{"$f":"Menu!$F$29","v":"X"},{"$f":"Menu!$J$29","v":2020},{"$f":"IF(ISBLANK(INDIRECT(\"'\"&F7552&\"'!\"&G7552)),\"\",INDIRECT(\"'\"&F7552&\"'!\"&G7552))","v":""},{"$f":"IF(ISBLANK(INDIRECT(\"'\"&F7552&\"'!\"&H7552)),\"\",IFERROR(VLOOKUP(TEXT(INDIRECT(\"'\"&F7552&\"'!\"&H7552),\"0\"),Notes!$B$5:$C$100,2,FALSE),\"\"))","v":""},"2d","$E$141","$F$141"]
[26932,{"$f":"Menu!$F$29","v":"X"},{"$f":"Menu!$J$29","v":2020},{"$f":"IF(ISBLANK(INDIRECT(\"'\"&F7553&\"'!\"&G7553)),\"\",INDIRECT(\"'\"&F7553&\"'!\"&G7553))","v":""},{"$f":"IF(ISBLANK(INDIRECT(\"'\"&F7553&\"'!\"&H7553)),\"\",IFERROR(VLOOKUP(TEXT(INDIRECT(\"'\"&F7553&\"'!\"&H7553),\"0\"),Notes!$B$5:$C$100,2,FALSE),\"\"))","v":""},"2d","$I$141","$J$141"]
[26933,{"$f":"Menu!$F$29","v":"X"},{"$f":"Menu!$J$29","v":2020},{"$f":"IF(ISBLANK(INDIRECT(\"'\"&F7554&\"'!\"&G7554)),\"\",INDIRECT(\"'\"&F7554&\"'!\"&G7554))","v":""},{"$f":"IF(ISBLANK(INDIRECT(\"'\"&F7554&\"'!\"&H7554)),\"\",IFERROR(VLOOKUP(TEXT(INDIRECT(\"'\"&F7554&\"'!\"&H7554),\"0\"),Notes!$B$5:$C$100,2,FALSE),\"\"))","v":""},"2d","$G$141",{"$f":"IF(LEN(TRIM(MID(G7554,4,10)))-LEN(SUBSTITUTE(TRIM(MID(G7554,4,10)),\"$\",\"\"))=0,\"$\"&CHAR(CODE(MID(G7554,2,1))+1)&\"$\"&TRIM(MID(G7554,4,10)),\"$\"&MID(G7554,2,1)&CHAR(CODE(MID(G7554,3,1))+1)&\"$\"&TRIM(MID(G7554,5,11)))","v":"$H$141"}]
[26934,{"$f":"Menu!$F$29","v":"X"},{"$f":"Menu!$J$29","v":2020},{"$f":"IF(ISBLANK(INDIRECT(\"'\"&F7555&\"'!\"&G7555)),\"\",INDIRECT(\"'\"&F7555&\"'!\"&G7555))","v":""},{"$f":"IF(ISBLANK(INDIRECT(\"'\"&F7555&\"'!\"&H7555)),\"\",IFERROR(VLOOKUP(TEXT(INDIRECT(\"'\"&F7555&\"'!\"&H7555),\"0\"),Notes!$B$5:$C$100,2,FALSE),\"\"))","v":""},"2a","$Q$141","$R$141"]
[26935,{"$f":"Menu!$F$29","v":"X"},{"$f":"Menu!$J$29","v":2020},{"$f":"IF(ISBLANK(INDIRECT(\"'\"&F7556&\"'!\"&G7556)),\"\",INDIRECT(\"'\"&F7556&\"'!\"&G7556))","v":""},{"$f":"IF(ISBLANK(INDIRECT(\"'\"&F7556&\"'!\"&H7556)),\"\",IFERROR(VLOOKUP(TEXT(INDIRECT(\"'\"&F7556&\"'!\"&H7556),\"0\"),Notes!$B$5:$C$100,2,FALSE),\"\"))","v":""},"2a","$U$141","$V$141"]
[26936,{"$f":"Menu!$F$29","v":"X"},{"$f":"Menu!$J$29","v":2020},{"$f":"IF(ISBLANK(INDIRECT(\"'\"&F7557&\"'!\"&G7557)),\"\",INDIRECT(\"'\"&F7557&\"'!\"&G7557))","v":""},{"$f":"IF(ISBLANK(INDIRECT(\"'\"&F7557&\"'!\"&H7557)),\"\",IFERROR(VLOOKUP(TEXT(INDIRECT(\"'\"&F7557&\"'!\"&H7557),\"0\"),Notes!$B$5:$C$100,2,FALSE),\"\"))","v":""},"2a","$S$141","$T$141"]
[26937,{"$f":"Menu!$F$29","v":"X"},{"$f":"Menu!$J$29","v":2020},{"$f":"IF(ISBLANK(INDIRECT(\"'\"&F7558&\"'!\"&G7558)),\"\",INDIRECT(\"'\"&F7558&\"'!\"&G7558))","v":""},{"$f":"IF(ISBLANK(INDIRECT(\"'\"&F7558&\"'!\"&H7558)),\"\",IFERROR(VLOOKUP(TEXT(INDIRECT(\"'\"&F7558&\"'!\"&H7558),\"0\"),Notes!$B$5:$C$100,2,FALSE),\"\"))","v":""},"2d","$K$141","$L$141"]
[26938,{"$f":"Menu!$F$29","v":"X"},{"$f":"Menu!$J$29","v":2020},{"$f":"IF(ISBLANK(INDIRECT(\"'\"&F7559&\"'!\"&G7559)),\"\",INDIRECT(\"'\"&F7559&\"'!\"&G7559))","v":""},{"$f":"IF(ISBLANK(INDIRECT(\"'\"&F7559&\"'!\"&H7559)),\"\",IFERROR(VLOOKUP(TEXT(INDIRECT(\"'\"&F7559&\"'!\"&H7559),\"0\"),Notes!$B$5:$C$100,2,FALSE),\"\"))","v":""},"2d","$O$141","$P$141"]
[26939,{"$f":"Menu!$F$29","v":"X"},{"$f":"Menu!$J$29","v":2020},{"$f":"IF(ISBLANK(INDIRECT(\"'\"&F7560&\"'!\"&G7560)),\"\",INDIRECT(\"'\"&F7560&\"'!\"&G7560))","v":""},{"$f":"IF(ISBLANK(INDIRECT(\"'\"&F7560&\"'!\"&H7560)),\"\",IFERROR(VLOOKUP(TEXT(INDIRECT(\"'\"&F7560&\"'!\"&H7560),\"0\"),Notes!$B$5:$C$100,2,FALSE),\"\"))","v":""},"2d","$M$141","$N$141"]
[26940,{"$f":"Menu!$F$29","v":"X"},{"$f":"Menu!$J$29","v":2020},{"$f":"IF(ISBLANK(INDIRECT(\"'\"&F7561&\"'!\"&G7561)),\"\",INDIRECT(\"'\"&F7561&\"'!\"&G7561))","v":""},{"$f":"IF(ISBLANK(INDIRECT(\"'\"&F7561&\"'!\"&H7561)),\"\",IFERROR(VLOOKUP(TEXT(INDIRECT(\"'\"&F7561&\"'!\"&H7561),\"0\"),Notes!$B$5:$C$100,2,FALSE),\"\"))","v":""},"2d","$Q$141","$R$141"]
[26941,{"$f":"Menu!$F$29","v":"X"},{"$f":"Menu!$J$29","v":2020},{"$f":"IF(ISBLANK(INDIRECT(\"'\"&F7562&\"'!\"&G7562)),\"\",INDIRECT(\"'\"&F7562&\"'!\"&G7562))","v":""},{"$f":"IF(ISBLANK(INDIRECT(\"'\"&F7562&\"'!\"&H7562)),\"\",IFERROR(VLOOKUP(TEXT(INDIRECT(\"'\"&F7562&\"'!\"&H7562),\"0\"),Notes!$B$5:$C$100,2,FALSE),\"\"))","v":""},"2d","$U$141","$V$141"]
[26942,{"$f":"Menu!$F$29","v":"X"},{"$f":"Menu!$J$29","v":2020},{"$f":"IF(ISBLANK(INDIRECT(\"'\"&F7563&\"'!\"&G7563)),\"\",INDIRECT(\"'\"&F7563&\"'!\"&G7563))","v":""},{"$f":"IF(ISBLANK(INDIRECT(\"'\"&F7563&\"'!\"&H7563)),\"\",IFERROR(VLOOKUP(TEXT(INDIRECT(\"'\"&F7563&\"'!\"&H7563),\"0\"),Notes!$B$5:$C$100,2,FALSE),\"\"))","v":""},"2d","$S$141","$T$141"]
[26943,{"$f":"Menu!$F$29","v":"X"},{"$f":"Menu!$J$29","v":2020},{"$f":"IF(ISBLANK(INDIRECT(\"'\"&F7564&\"'!\"&G7564)),\"\",INDIRECT(\"'\"&F7564&\"'!\"&G7564))","v":""},{"$f":"IF(ISBLANK(INDIRECT(\"'\"&F7564&\"'!\"&H7564)),\"\",IFERROR(VLOOKUP(TEXT(INDIRECT(\"'\"&F7564&\"'!\"&H7564),\"0\"),Notes!$B$5:$C$100,2,FALSE),\"\"))","v":""},"2a","$K$141","$L$141"]
[26944,{"$f":"Menu!$F$29","v":"X"},{"$f":"Menu!$J$29","v":2020},{"$f":"IF(ISBLANK(INDIRECT(\"'\"&F7565&\"'!\"&G7565)),\"\",INDIRECT(\"'\"&F7565&\"'!\"&G7565))","v":""},{"$f":"IF(ISBLANK(INDIRECT(\"'\"&F7565&\"'!\"&H7565)),\"\",IFERROR(VLOOKUP(TEXT(INDIRECT(\"'\"&F7565&\"'!\"&H7565),\"0\"),Notes!$B$5:$C$100,2,FALSE),\"\"))","v":""},"2a","$O$141","$P$141"]
[26945,{"$f":"Menu!$F$29","v":"X"},{"$f":"Menu!$J$29","v":2020},{"$f":"IF(ISBLANK(INDIRECT(\"'\"&F7566&\"'!\"&G7566)),\"\",INDIRECT(\"'\"&F7566&\"'!\"&G7566))","v":""},{"$f":"IF(ISBLANK(INDIRECT(\"'\"&F7566&\"'!\"&H7566)),\"\",IFERROR(VLOOKUP(TEXT(INDIRECT(\"'\"&F7566&\"'!\"&H7566),\"0\"),Notes!$B$5:$C$100,2,FALSE),\"\"))","v":""},"2a","$M$141","$N$141"]
[26946,{"$f":"Menu!$F$29","v":"X"},{"$f":"Menu!$J$29","v":2020},{"$f":"IF(ISBLANK(INDIRECT(\"'\"&F7567&\"'!\"&G7567)),\"\",INDIRECT(\"'\"&F7567&\"'!\"&G7567))","v":""},{"$f":"IF(ISBLANK(INDIRECT(\"'\"&F7567&\"'!\"&H7567)),\"\",IFERROR(VLOOKUP(TEXT(INDIRECT(\"'\"&F7567&\"'!\"&H7567),\"0\"),Notes!$B$5:$C$100,2,FALSE),\"\"))","v":""},"2a","$E$141","$F$141"]
[26947,{"$f":"Menu!$F$29","v":"X"},{"$f":"Menu!$J$29","v":2020},{"$f":"IF(ISBLANK(INDIRECT(\"'\"&F7568&\"'!\"&G7568)),\"\",INDIRECT(\"'\"&F7568&\"'!\"&G7568))","v":""},{"$f":"IF(ISBLANK(INDIRECT(\"'\"&F7568&\"'!\"&H7568)),\"\",IFERROR(VLOOKUP(TEXT(INDIRECT(\"'\"&F7568&\"'!\"&H7568),\"0\"),Notes!$B$5:$C$100,2,FALSE),\"\"))","v":""},"2b","$K$142","$L$142"]
[26948,{"$f":"Menu!$F$29","v":"X"},{"$f":"Menu!$J$29","v":2020},{"$f":"IF(ISBLANK(INDIRECT(\"'\"&F7569&\"'!\"&G7569)),\"\",INDIRECT(\"'\"&F7569&\"'!\"&G7569))","v":""},{"$f":"IF(ISBLANK(INDIRECT(\"'\"&F7569&\"'!\"&H7569)),\"\",IFERROR(VLOOKUP(TEXT(INDIRECT(\"'\"&F7569&\"'!\"&H7569),\"0\"),Notes!$B$5:$C$100,2,FALSE),\"\"))","v":""},"2b","$O$142","$P$142"]
[26949,{"$f":"Menu!$F$29","v":"X"},{"$f":"Menu!$J$29","v":2020},{"$f":"IF(ISBLANK(INDIRECT(\"'\"&F7570&\"'!\"&G7570)),\"\",INDIRECT(\"'\"&F7570&\"'!\"&G7570))","v":""},{"$f":"IF(ISBLANK(INDIRECT(\"'\"&F7570&\"'!\"&H7570)),\"\",IFERROR(VLOOKUP(TEXT(INDIRECT(\"'\"&F7570&\"'!\"&H7570),\"0\"),Notes!$B$5:$C$100,2,FALSE),\"\"))","v":""},"2b","$M$142","$N$142"]
[26950,{"$f":"Menu!$F$29","v":"X"},{"$f":"Menu!$J$29","v":2020},{"$f":"IF(ISBLANK(INDIRECT(\"'\"&F7571&\"'!\"&G7571)),\"\",INDIRECT(\"'\"&F7571&\"'!\"&G7571))","v":""},{"$f":"IF(ISBLANK(INDIRECT(\"'\"&F7571&\"'!\"&H7571)),\"\",IFERROR(VLOOKUP(TEXT(INDIRECT(\"'\"&F7571&\"'!\"&H7571),\"0\"),Notes!$B$5:$C$100,2,FALSE),\"\"))","v":""},"2b","$Q$142","$R$142"]
[26951,{"$f":"Menu!$F$29","v":"X"},{"$f":"Menu!$J$29","v":2020},{"$f":"IF(ISBLANK(INDIRECT(\"'\"&F7572&\"'!\"&G7572)),\"\",INDIRECT(\"'\"&F7572&\"'!\"&G7572))","v":""},{"$f":"IF(ISBLANK(INDIRECT(\"'\"&F7572&\"'!\"&H7572)),\"\",IFERROR(VLOOKUP(TEXT(INDIRECT(\"'\"&F7572&\"'!\"&H7572),\"0\"),Notes!$B$5:$C$100,2,FALSE),\"\"))","v":""},"2b","$U$142","$V$142"]
[26952,{"$f":"Menu!$F$29","v":"X"},{"$f":"Menu!$J$29","v":2020},{"$f":"IF(ISBLANK(INDIRECT(\"'\"&F7573&\"'!\"&G7573)),\"\",INDIRECT(\"'\"&F7573&\"'!\"&G7573))","v":""},{"$f":"IF(ISBLANK(INDIRECT(\"'\"&F7573&\"'!\"&H7573)),\"\",IFERROR(VLOOKUP(TEXT(INDIRECT(\"'\"&F7573&\"'!\"&H7573),\"0\"),Notes!$B$5:$C$100,2,FALSE),\"\"))","v":""},"2b","$S$142","$T$142"]
[26956,{"$f":"Menu!$F$29","v":"X"},{"$f":"Menu!$J$29","v":2020},{"$f":"IF(ISBLANK(INDIRECT(\"'\"&F7574&\"'!\"&G7574)),\"\",INDIRECT(\"'\"&F7574&\"'!\"&G7574))","v":""},null,"2a","$I$142","$J$142"]
[26957,{"$f":"Menu!$F$29","v":"X"},{"$f":"Menu!$J$29","v":2020},{"$f":"IF(ISBLANK(INDIRECT(\"'\"&F7575&\"'!\"&G7575)),\"\",INDIRECT(\"'\"&F7575&\"'!\"&G7575))","v":""},{"$f":"IF(ISBLANK(INDIRECT(\"'\"&F7575&\"'!\"&H7575)),\"\",IFERROR(VLOOKUP(TEXT(INDIRECT(\"'\"&F7575&\"'!\"&H7575),\"0\"),Notes!$B$5:$C$100,2,FALSE),\"\"))","v":""},"2c","$E$142","$F$142"]
[26958,{"$f":"Menu!$F$29","v":"X"},{"$f":"Menu!$J$29","v":2020},{"$f":"IF(ISBLANK(INDIRECT(\"'\"&F7576&\"'!\"&G7576)),\"\",INDIRECT(\"'\"&F7576&\"'!\"&G7576))","v":""},{"$f":"IF(ISBLANK(INDIRECT(\"'\"&F7576&\"'!\"&H7576)),\"\",IFERROR(VLOOKUP(TEXT(INDIRECT(\"'\"&F7576&\"'!\"&H7576),\"0\"),Notes!$B$5:$C$100,2,FALSE),\"\"))","v":""},"2c","$I$142","$J$142"]
[26959,{"$f":"Menu!$F$29","v":"X"},{"$f":"Menu!$J$29","v":2020},{"$f":"IF(ISBLANK(INDIRECT(\"'\"&F7577&\"'!\"&G7577)),\"\",INDIRECT(\"'\"&F7577&\"'!\"&G7577))","v":""},{"$f":"IF(ISBLANK(INDIRECT(\"'\"&F7577&\"'!\"&H7577)),\"\",IFERROR(VLOOKUP(TEXT(INDIRECT(\"'\"&F7577&\"'!\"&H7577),\"0\"),Notes!$B$5:$C$100,2,FALSE),\"\"))","v":""},"2c","$G$142","$H$142"]
[26963,{"$f":"Menu!$F$29","v":"X"},{"$f":"Menu!$J$29","v":2020},{"$f":"IF(ISBLANK(INDIRECT(\"'\"&F7578&\"'!\"&G7578)),\"\",INDIRECT(\"'\"&F7578&\"'!\"&G7578))","v":""},{"$f":"IF(ISBLANK(INDIRECT(\"'\"&F7578&\"'!\"&H7578)),\"\",IFERROR(VLOOKUP(TEXT(INDIRECT(\"'\"&F7578&\"'!\"&H7578),\"0\"),Notes!$B$5:$C$100,2,FALSE),\"\"))","v":""},"2c","$K$142","$L$142"]
[26964,{"$f":"Menu!$F$29","v":"X"},{"$f":"Menu!$J$29","v":2020},{"$f":"IF(ISBLANK(INDIRECT(\"'\"&F7579&\"'!\"&G7579)),\"\",INDIRECT(\"'\"&F7579&\"'!\"&G7579))","v":""},{"$f":"IF(ISBLANK(INDIRECT(\"'\"&F7579&\"'!\"&H7579)),\"\",IFERROR(VLOOKUP(TEXT(INDIRECT(\"'\"&F7579&\"'!\"&H7579),\"0\"),Notes!$B$5:$C$100,2,FALSE),\"\"))","v":""},"2c","$O$142","$P$142"]
[26965,{"$f":"Menu!$F$29","v":"X"},{"$f":"Menu!$J$29","v":2020},{"$f":"IF(ISBLANK(INDIRECT(\"'\"&F7580&\"'!\"&G7580)),\"\",INDIRECT(\"'\"&F7580&\"'!\"&G7580))","v":""},{"$f":"IF(ISBLANK(INDIRECT(\"'\"&F7580&\"'!\"&H7580)),\"\",IFERROR(VLOOKUP(TEXT(INDIRECT(\"'\"&F7580&\"'!\"&H7580),\"0\"),Notes!$B$5:$C$100,2,FALSE),\"\"))","v":""},"2c","$M$142","$N$142"]
[26966,{"$f":"Menu!$F$29","v":"X"},{"$f":"Menu!$J$29","v":2020},{"$f":"IF(ISBLANK(INDIRECT(\"'\"&F7581&\"'!\"&G7581)),\"\",INDIRECT(\"'\"&F7581&\"'!\"&G7581))","v":""},{"$f":"IF(ISBLANK(INDIRECT(\"'\"&F7581&\"'!\"&H7581)),\"\",IFERROR(VLOOKUP(TEXT(INDIRECT(\"'\"&F7581&\"'!\"&H7581),\"0\"),Notes!$B$5:$C$100,2,FALSE),\"\"))","v":""},"2c","$Q$142","$R$142"]
[26967,{"$f":"Menu!$F$29","v":"X"},{"$f":"Menu!$J$29","v":2020},{"$f":"IF(ISBLANK(INDIRECT(\"'\"&F7582&\"'!\"&G7582)),\"\",INDIRECT(\"'\"&F7582&\"'!\"&G7582))","v":""},{"$f":"IF(ISBLANK(INDIRECT(\"'\"&F7582&\"'!\"&H7582)),\"\",IFERROR(VLOOKUP(TEXT(INDIRECT(\"'\"&F7582&\"'!\"&H7582),\"0\"),Notes!$B$5:$C$100,2,FALSE),\"\"))","v":""},"2c","$U$142","$V$142"]
[26968,{"$f":"Menu!$F$29","v":"X"},{"$f":"Menu!$J$29","v":2020},{"$f":"IF(ISBLANK(INDIRECT(\"'\"&F7583&\"'!\"&G7583)),\"\",INDIRECT(\"'\"&F7583&\"'!\"&G7583))","v":""},{"$f":"IF(ISBLANK(INDIRECT(\"'\"&F7583&\"'!\"&H7583)),\"\",IFERROR(VLOOKUP(TEXT(INDIRECT(\"'\"&F7583&\"'!\"&H7583),\"0\"),Notes!$B$5:$C$100,2,FALSE),\"\"))","v":""},"2c","$S$142","$T$142"]
[26969,{"$f":"Menu!$F$29","v":"X"},{"$f":"Menu!$J$29","v":2020},{"$f":"IF(ISBLANK(INDIRECT(\"'\"&F7584&\"'!\"&G7584)),\"\",INDIRECT(\"'\"&F7584&\"'!\"&G7584))","v":""},{"$f":"IF(ISBLANK(INDIRECT(\"'\"&F7584&\"'!\"&H7584)),\"\",IFERROR(VLOOKUP(TEXT(INDIRECT(\"'\"&F7584&\"'!\"&H7584),\"0\"),Notes!$B$5:$C$100,2,FALSE),\"\"))","v":""},"2c","$W$142","$X$142"]
[26970,{"$f":"Menu!$F$29","v":"X"},{"$f":"Menu!$J$29","v":2020},{"$f":"IF(ISBLANK(INDIRECT(\"'\"&F7585&\"'!\"&G7585)),\"\",INDIRECT(\"'\"&F7585&\"'!\"&G7585))","v":""},{"$f":"IF(ISBLANK(INDIRECT(\"'\"&F7585&\"'!\"&H7585)),\"\",IFERROR(VLOOKUP(TEXT(INDIRECT(\"'\"&F7585&\"'!\"&H7585),\"0\"),Notes!$B$5:$C$100,2,FALSE),\"\"))","v":""},"2c","$AA$142","$AB$142"]
[26971,{"$f":"Menu!$F$29","v":"X"},{"$f":"Menu!$J$29","v":2020},{"$f":"IF(ISBLANK(INDIRECT(\"'\"&F7586&\"'!\"&G7586)),\"\",INDIRECT(\"'\"&F7586&\"'!\"&G7586))","v":""},{"$f":"IF(ISBLANK(INDIRECT(\"'\"&F7586&\"'!\"&H7586)),\"\",IFERROR(VLOOKUP(TEXT(INDIRECT(\"'\"&F7586&\"'!\"&H7586),\"0\"),Notes!$B$5:$C$100,2,FALSE),\"\"))","v":""},"2c","$Y$142","$Z$142"]
[26978,{"$f":"Menu!$F$29","v":"X"},{"$f":"Menu!$J$29","v":2020},{"$f":"IF(ISBLANK(INDIRECT(\"'\"&F7587&\"'!\"&G7587)),\"\",INDIRECT(\"'\"&F7587&\"'!\"&G7587))","v":""},{"$f":"IF(ISBLANK(INDIRECT(\"'\"&F7587&\"'!\"&H7587)),\"\",IFERROR(VLOOKUP(TEXT(INDIRECT(\"'\"&F7587&\"'!\"&H7587),\"0\"),Notes!$B$5:$C$100,2,FALSE),\"\"))","v":""},"2e","$BG$143","$BH$143"]
[26979,{"$f":"Menu!$F$29","v":"X"},{"$f":"Menu!$J$29","v":2020},{"$f":"IF(ISBLANK(INDIRECT(\"'\"&F7588&\"'!\"&G7588)),\"\",INDIRECT(\"'\"&F7588&\"'!\"&G7588))","v":""},{"$f":"IF(ISBLANK(INDIRECT(\"'\"&F7588&\"'!\"&H7588)),\"\",IFERROR(VLOOKUP(TEXT(INDIRECT(\"'\"&F7588&\"'!\"&H7588),\"0\"),Notes!$B$5:$C$100,2,FALSE),\"\"))","v":""},"2e","$BK$143","$BL$143"]
[26980,{"$f":"Menu!$F$29","v":"X"},{"$f":"Menu!$J$29","v":2020},{"$f":"IF(ISBLANK(INDIRECT(\"'\"&F7589&\"'!\"&G7589)),\"\",INDIRECT(\"'\"&F7589&\"'!\"&G7589))","v":""},{"$f":"IF(ISBLANK(INDIRECT(\"'\"&F7589&\"'!\"&H7589)),\"\",IFERROR(VLOOKUP(TEXT(INDIRECT(\"'\"&F7589&\"'!\"&H7589),\"0\"),Notes!$B$5:$C$100,2,FALSE),\"\"))","v":""},"2e","$BI$143","$BJ$143"]
[26981,{"$f":"Menu!$F$29","v":"X"},{"$f":"Menu!$J$29","v":2020},{"$f":"IF(ISBLANK(INDIRECT(\"'\"&F7590&\"'!\"&G7590)),\"\",INDIRECT(\"'\"&F7590&\"'!\"&G7590))","v":""},{"$f":"IF(ISBLANK(INDIRECT(\"'\"&F7590&\"'!\"&H7590)),\"\",IFERROR(VLOOKUP(TEXT(INDIRECT(\"'\"&F7590&\"'!\"&H7590),\"0\"),Notes!$B$5:$C$100,2,FALSE),\"\"))","v":""},"2e","$E$143","$F$143"]
[26982,{"$f":"Menu!$F$29","v":"X"},{"$f":"Menu!$J$29","v":2020},{"$f":"IF(ISBLANK(INDIRECT(\"'\"&F7591&\"'!\"&G7591)),\"\",INDIRECT(\"'\"&F7591&\"'!\"&G7591))","v":""},{"$f":"IF(ISBLANK(INDIRECT(\"'\"&F7591&\"'!\"&H7591)),\"\",IFERROR(VLOOKUP(TEXT(INDIRECT(\"'\"&F7591&\"'!\"&H7591),\"0\"),Notes!$B$5:$C$100,2,FALSE),\"\"))","v":""},"2e","$I$143","$J$143"]
[26983,{"$f":"Menu!$F$29","v":"X"},{"$f":"Menu!$J$29","v":2020},{"$f":"IF(ISBLANK(INDIRECT(\"'\"&F7592&\"'!\"&G7592)),\"\",INDIRECT(\"'\"&F7592&\"'!\"&G7592))","v":""},{"$f":"IF(ISBLANK(INDIRECT(\"'\"&F7592&\"'!\"&H7592)),\"\",IFERROR(VLOOKUP(TEXT(INDIRECT(\"'\"&F7592&\"'!\"&H7592),\"0\"),Notes!$B$5:$C$100,2,FALSE),\"\"))","v":""},"2e","$G$143","$H$143"]
[26984,{"$f":"Menu!$F$29","v":"X"},{"$f":"Menu!$J$29","v":2020},{"$f":"IF(ISBLANK(INDIRECT(\"'\"&F7593&\"'!\"&G7593)),\"\",INDIRECT(\"'\"&F7593&\"'!\"&G7593))","v":""},{"$f":"IF(ISBLANK(INDIRECT(\"'\"&F7593&\"'!\"&H7593)),\"\",IFERROR(VLOOKUP(TEXT(INDIRECT(\"'\"&F7593&\"'!\"&H7593),\"0\"),Notes!$B$5:$C$100,2,FALSE),\"\"))","v":""},"2e","$K$143","$L$143"]
[26985,{"$f":"Menu!$F$29","v":"X"},{"$f":"Menu!$J$29","v":2020},{"$f":"IF(ISBLANK(INDIRECT(\"'\"&F7594&\"'!\"&G7594)),\"\",INDIRECT(\"'\"&F7594&\"'!\"&G7594))","v":""},{"$f":"IF(ISBLANK(INDIRECT(\"'\"&F7594&\"'!\"&H7594)),\"\",IFERROR(VLOOKUP(TEXT(INDIRECT(\"'\"&F7594&\"'!\"&H7594),\"0\"),Notes!$B$5:$C$100,2,FALSE),\"\"))","v":""},"2e","$O$143","$P$143"]
[26986,{"$f":"Menu!$F$29","v":"X"},{"$f":"Menu!$J$29","v":2020},{"$f":"IF(ISBLANK(INDIRECT(\"'\"&F7595&\"'!\"&G7595)),\"\",INDIRECT(\"'\"&F7595&\"'!\"&G7595))","v":""},{"$f":"IF(ISBLANK(INDIRECT(\"'\"&F7595&\"'!\"&H7595)),\"\",IFERROR(VLOOKUP(TEXT(INDIRECT(\"'\"&F7595&\"'!\"&H7595),\"0\"),Notes!$B$5:$C$100,2,FALSE),\"\"))","v":""},"2e","$M$143","$N$143"]
[26987,{"$f":"Menu!$F$29","v":"X"},{"$f":"Menu!$J$29","v":2020},{"$f":"IF(ISBLANK(INDIRECT(\"'\"&F7596&\"'!\"&G7596)),\"\",INDIRECT(\"'\"&F7596&\"'!\"&G7596))","v":""},{"$f":"IF(ISBLANK(INDIRECT(\"'\"&F7596&\"'!\"&H7596)),\"\",IFERROR(VLOOKUP(TEXT(INDIRECT(\"'\"&F7596&\"'!\"&H7596),\"0\"),Notes!$B$5:$C$100,2,FALSE),\"\"))","v":""},"2e","$Q$143","$R$143"]
[26988,{"$f":"Menu!$F$29","v":"X"},{"$f":"Menu!$J$29","v":2020},{"$f":"IF(ISBLANK(INDIRECT(\"'\"&F7597&\"'!\"&G7597)),\"\",INDIRECT(\"'\"&F7597&\"'!\"&G7597))","v":""},{"$f":"IF(ISBLANK(INDIRECT(\"'\"&F7597&\"'!\"&H7597)),\"\",IFERROR(VLOOKUP(TEXT(INDIRECT(\"'\"&F7597&\"'!\"&H7597),\"0\"),Notes!$B$5:$C$100,2,FALSE),\"\"))","v":""},"2e","$U$143","$V$143"]
[26989,{"$f":"Menu!$F$29","v":"X"},{"$f":"Menu!$J$29","v":2020},{"$f":"IF(ISBLANK(INDIRECT(\"'\"&F7598&\"'!\"&G7598)),\"\",INDIRECT(\"'\"&F7598&\"'!\"&G7598))","v":""},{"$f":"IF(ISBLANK(INDIRECT(\"'\"&F7598&\"'!\"&H7598)),\"\",IFERROR(VLOOKUP(TEXT(INDIRECT(\"'\"&F7598&\"'!\"&H7598),\"0\"),Notes!$B$5:$C$100,2,FALSE),\"\"))","v":""},"2e","$S$143","$T$143"]
[26990,{"$f":"Menu!$F$29","v":"X"},{"$f":"Menu!$J$29","v":2020},{"$f":"IF(ISBLANK(INDIRECT(\"'\"&F7599&\"'!\"&G7599)),\"\",INDIRECT(\"'\"&F7599&\"'!\"&G7599))","v":""},{"$f":"IF(ISBLANK(INDIRECT(\"'\"&F7599&\"'!\"&H7599)),\"\",IFERROR(VLOOKUP(TEXT(INDIRECT(\"'\"&F7599&\"'!\"&H7599),\"0\"),Notes!$B$5:$C$100,2,FALSE),\"\"))","v":""},"2e","$W$143","$X$143"]
[26991,{"$f":"Menu!$F$29","v":"X"},{"$f":"Menu!$J$29","v":2020},{"$f":"IF(ISBLANK(INDIRECT(\"'\"&F7600&\"'!\"&G7600)),\"\",INDIRECT(\"'\"&F7600&\"'!\"&G7600))","v":""},{"$f":"IF(ISBLANK(INDIRECT(\"'\"&F7600&\"'!\"&H7600)),\"\",IFERROR(VLOOKUP(TEXT(INDIRECT(\"'\"&F7600&\"'!\"&H7600),\"0\"),Notes!$B$5:$C$100,2,FALSE),\"\"))","v":""},"2e","$AA$143","$AB$143"]
[26992,{"$f":"Menu!$F$29","v":"X"},{"$f":"Menu!$J$29","v":2020},{"$f":"IF(ISBLANK(INDIRECT(\"'\"&F7601&\"'!\"&G7601)),\"\",INDIRECT(\"'\"&F7601&\"'!\"&G7601))","v":""},{"$f":"IF(ISBLANK(INDIRECT(\"'\"&F7601&\"'!\"&H7601)),\"\",IFERROR(VLOOKUP(TEXT(INDIRECT(\"'\"&F7601&\"'!\"&H7601),\"0\"),Notes!$B$5:$C$100,2,FALSE),\"\"))","v":""},"2e","$Y$143","$Z$143"]
[26993,{"$f":"Menu!$F$29","v":"X"},{"$f":"Menu!$J$29","v":2020},{"$f":"IF(ISBLANK(INDIRECT(\"'\"&F7602&\"'!\"&G7602)),\"\",INDIRECT(\"'\"&F7602&\"'!\"&G7602))","v":""},{"$f":"IF(ISBLANK(INDIRECT(\"'\"&F7602&\"'!\"&H7602)),\"\",IFERROR(VLOOKUP(TEXT(INDIRECT(\"'\"&F7602&\"'!\"&H7602),\"0\"),Notes!$B$5:$C$100,2,FALSE),\"\"))","v":""},"2e","$AC$143","$AD$143"]
[26994,{"$f":"Menu!$F$29","v":"X"},{"$f":"Menu!$J$29","v":2020},{"$f":"IF(ISBLANK(INDIRECT(\"'\"&F7603&\"'!\"&G7603)),\"\",INDIRECT(\"'\"&F7603&\"'!\"&G7603))","v":""},{"$f":"IF(ISBLANK(INDIRECT(\"'\"&F7603&\"'!\"&H7603)),\"\",IFERROR(VLOOKUP(TEXT(INDIRECT(\"'\"&F7603&\"'!\"&H7603),\"0\"),Notes!$B$5:$C$100,2,FALSE),\"\"))","v":""},"2e","$AG$143","$AH$143"]
[26995,{"$f":"Menu!$F$29","v":"X"},{"$f":"Menu!$J$29","v":2020},{"$f":"IF(ISBLANK(INDIRECT(\"'\"&F7604&\"'!\"&G7604)),\"\",INDIRECT(\"'\"&F7604&\"'!\"&G7604))","v":""},{"$f":"IF(ISBLANK(INDIRECT(\"'\"&F7604&\"'!\"&H7604)),\"\",IFERROR(VLOOKUP(TEXT(INDIRECT(\"'\"&F7604&\"'!\"&H7604),\"0\"),Notes!$B$5:$C$100,2,FALSE),\"\"))","v":""},"2e","$AE$143","$AF$143"]
[26996,{"$f":"Menu!$F$29","v":"X"},{"$f":"Menu!$J$29","v":2020},{"$f":"IF(ISBLANK(INDIRECT(\"'\"&F7605&\"'!\"&G7605)),\"\",INDIRECT(\"'\"&F7605&\"'!\"&G7605))","v":""},{"$f":"IF(ISBLANK(INDIRECT(\"'\"&F7605&\"'!\"&H7605)),\"\",IFERROR(VLOOKUP(TEXT(INDIRECT(\"'\"&F7605&\"'!\"&H7605),\"0\"),Notes!$B$5:$C$100,2,FALSE),\"\"))","v":""},"2e","$AI$143","$AJ$143"]
[26997,{"$f":"Menu!$F$29","v":"X"},{"$f":"Menu!$J$29","v":2020},{"$f":"IF(ISBLANK(INDIRECT(\"'\"&F7606&\"'!\"&G7606)),\"\",INDIRECT(\"'\"&F7606&\"'!\"&G7606))","v":""},{"$f":"IF(ISBLANK(INDIRECT(\"'\"&F7606&\"'!\"&H7606)),\"\",IFERROR(VLOOKUP(TEXT(INDIRECT(\"'\"&F7606&\"'!\"&H7606),\"0\"),Notes!$B$5:$C$100,2,FALSE),\"\"))","v":""},"2e","$AM$143","$AN$143"]
[26998,{"$f":"Menu!$F$29","v":"X"},{"$f":"Menu!$J$29","v":2020},{"$f":"IF(ISBLANK(INDIRECT(\"'\"&F7607&\"'!\"&G7607)),\"\",INDIRECT(\"'\"&F7607&\"'!\"&G7607))","v":""},{"$f":"IF(ISBLANK(INDIRECT(\"'\"&F7607&\"'!\"&H7607)),\"\",IFERROR(VLOOKUP(TEXT(INDIRECT(\"'\"&F7607&\"'!\"&H7607),\"0\"),Notes!$B$5:$C$100,2,FALSE),\"\"))","v":""},"2e","$AK$143","$AL$143"]
[26999,{"$f":"Menu!$F$29","v":"X"},{"$f":"Menu!$J$29","v":2020},{"$f":"IF(ISBLANK(INDIRECT(\"'\"&F7608&\"'!\"&G7608)),\"\",INDIRECT(\"'\"&F7608&\"'!\"&G7608))","v":""},{"$f":"IF(ISBLANK(INDIRECT(\"'\"&F7608&\"'!\"&H7608)),\"\",IFERROR(VLOOKUP(TEXT(INDIRECT(\"'\"&F7608&\"'!\"&H7608),\"0\"),Notes!$B$5:$C$100,2,FALSE),\"\"))","v":""},"2e","$AO$143","$AP$143"]
[27000,{"$f":"Menu!$F$29","v":"X"},{"$f":"Menu!$J$29","v":2020},{"$f":"IF(ISBLANK(INDIRECT(\"'\"&F7609&\"'!\"&G7609)),\"\",INDIRECT(\"'\"&F7609&\"'!\"&G7609))","v":""},{"$f":"IF(ISBLANK(INDIRECT(\"'\"&F7609&\"'!\"&H7609)),\"\",IFERROR(VLOOKUP(TEXT(INDIRECT(\"'\"&F7609&\"'!\"&H7609),\"0\"),Notes!$B$5:$C$100,2,FALSE),\"\"))","v":""},"2e","$AS$143","$AT$143"]
[27001,{"$f":"Menu!$F$29","v":"X"},{"$f":"Menu!$J$29","v":2020},{"$f":"IF(ISBLANK(INDIRECT(\"'\"&F7610&\"'!\"&G7610)),\"\",INDIRECT(\"'\"&F7610&\"'!\"&G7610))","v":""},{"$f":"IF(ISBLANK(INDIRECT(\"'\"&F7610&\"'!\"&H7610)),\"\",IFERROR(VLOOKUP(TEXT(INDIRECT(\"'\"&F7610&\"'!\"&H7610),\"0\"),Notes!$B$5:$C$100,2,FALSE),\"\"))","v":""},"2e","$AQ$143","$AR$143"]
[27002,{"$f":"Menu!$F$29","v":"X"},{"$f":"Menu!$J$29","v":2020},{"$f":"IF(ISBLANK(INDIRECT(\"'\"&F7611&\"'!\"&G7611)),\"\",INDIRECT(\"'\"&F7611&\"'!\"&G7611))","v":""},{"$f":"IF(ISBLANK(INDIRECT(\"'\"&F7611&\"'!\"&H7611)),\"\",IFERROR(VLOOKUP(TEXT(INDIRECT(\"'\"&F7611&\"'!\"&H7611),\"0\"),Notes!$B$5:$C$100,2,FALSE),\"\"))","v":""},"2e","$AU$143","$AV$143"]
[27003,{"$f":"Menu!$F$29","v":"X"},{"$f":"Menu!$J$29","v":2020},{"$f":"IF(ISBLANK(INDIRECT(\"'\"&F7612&\"'!\"&G7612)),\"\",INDIRECT(\"'\"&F7612&\"'!\"&G7612))","v":""},{"$f":"IF(ISBLANK(INDIRECT(\"'\"&F7612&\"'!\"&H7612)),\"\",IFERROR(VLOOKUP(TEXT(INDIRECT(\"'\"&F7612&\"'!\"&H7612),\"0\"),Notes!$B$5:$C$100,2,FALSE),\"\"))","v":""},"2e","$AY$143","$AZ$143"]
[27004,{"$f":"Menu!$F$29","v":"X"},{"$f":"Menu!$J$29","v":2020},{"$f":"IF(ISBLANK(INDIRECT(\"'\"&F7613&\"'!\"&G7613)),\"\",INDIRECT(\"'\"&F7613&\"'!\"&G7613))","v":""},{"$f":"IF(ISBLANK(INDIRECT(\"'\"&F7613&\"'!\"&H7613)),\"\",IFERROR(VLOOKUP(TEXT(INDIRECT(\"'\"&F7613&\"'!\"&H7613),\"0\"),Notes!$B$5:$C$100,2,FALSE),\"\"))","v":""},"2e","$AW$143","$AX$143"]
[27005,{"$f":"Menu!$F$29","v":"X"},{"$f":"Menu!$J$29","v":2020},{"$f":"IF(ISBLANK(INDIRECT(\"'\"&F7614&\"'!\"&G7614)),\"\",INDIRECT(\"'\"&F7614&\"'!\"&G7614))","v":""},{"$f":"IF(ISBLANK(INDIRECT(\"'\"&F7614&\"'!\"&H7614)),\"\",IFERROR(VLOOKUP(TEXT(INDIRECT(\"'\"&F7614&\"'!\"&H7614),\"0\"),Notes!$B$5:$C$100,2,FALSE),\"\"))","v":""},"2e","$BA$143","$BB$143"]
[27006,{"$f":"Menu!$F$29","v":"X"},{"$f":"Menu!$J$29","v":2020},{"$f":"IF(ISBLANK(INDIRECT(\"'\"&F7615&\"'!\"&G7615)),\"\",INDIRECT(\"'\"&F7615&\"'!\"&G7615))","v":""},{"$f":"IF(ISBLANK(INDIRECT(\"'\"&F7615&\"'!\"&H7615)),\"\",IFERROR(VLOOKUP(TEXT(INDIRECT(\"'\"&F7615&\"'!\"&H7615),\"0\"),Notes!$B$5:$C$100,2,FALSE),\"\"))","v":""},"2e","$BE$143","$BF$143"]
[27007,{"$f":"Menu!$F$29","v":"X"},{"$f":"Menu!$J$29","v":2020},{"$f":"IF(ISBLANK(INDIRECT(\"'\"&F7616&\"'!\"&G7616)),\"\",INDIRECT(\"'\"&F7616&\"'!\"&G7616))","v":""},{"$f":"IF(ISBLANK(INDIRECT(\"'\"&F7616&\"'!\"&H7616)),\"\",IFERROR(VLOOKUP(TEXT(INDIRECT(\"'\"&F7616&\"'!\"&H7616),\"0\"),Notes!$B$5:$C$100,2,FALSE),\"\"))","v":""},"2e","$BC$143","$BD$143"]
[27008,{"$f":"Menu!$F$29","v":"X"},{"$f":"Menu!$J$29","v":2020},{"$f":"IF(ISBLANK(INDIRECT(\"'\"&F7617&\"'!\"&G7617)),\"\",INDIRECT(\"'\"&F7617&\"'!\"&G7617))","v":""},{"$f":"IF(ISBLANK(INDIRECT(\"'\"&F7617&\"'!\"&H7617)),\"\",IFERROR(VLOOKUP(TEXT(INDIRECT(\"'\"&F7617&\"'!\"&H7617),\"0\"),Notes!$B$5:$C$100,2,FALSE),\"\"))","v":""},"2b","$E$142","$F$142"]
[27009,{"$f":"Menu!$F$29","v":"X"},{"$f":"Menu!$J$29","v":2020},{"$f":"IF(ISBLANK(INDIRECT(\"'\"&F7618&\"'!\"&G7618)),\"\",INDIRECT(\"'\"&F7618&\"'!\"&G7618))","v":""},{"$f":"IF(ISBLANK(INDIRECT(\"'\"&F7618&\"'!\"&H7618)),\"\",IFERROR(VLOOKUP(TEXT(INDIRECT(\"'\"&F7618&\"'!\"&H7618),\"0\"),Notes!$B$5:$C$100,2,FALSE),\"\"))","v":""},"2b","$I$142",{"$f":"IF(LEN(TRIM(MID(G7618,4,10)))-LEN(SUBSTITUTE(TRIM(MID(G7618,4,10)),\"$\",\"\"))=0,\"$\"&CHAR(CODE(MID(G7618,2,1))+1)&\"$\"&TRIM(MID(G7618,4,10)),\"$\"&MID(G7618,2,1)&CHAR(CODE(MID(G7618,3,1))+1)&\"$\"&TRIM(MID(G7618,5,11)))","v":"$J$142"}]
[27010,{"$f":"Menu!$F$29","v":"X"},{"$f":"Menu!$J$29","v":2020},{"$f":"IF(ISBLANK(INDIRECT(\"'\"&F7619&\"'!\"&G7619)),\"\",INDIRECT(\"'\"&F7619&\"'!\"&G7619))","v":""},{"$f":"IF(ISBLANK(INDIRECT(\"'\"&F7619&\"'!\"&H7619)),\"\",IFERROR(VLOOKUP(TEXT(INDIRECT(\"'\"&F7619&\"'!\"&H7619),\"0\"),Notes!$B$5:$C$100,2,FALSE),\"\"))","v":""},"2b","$G$142","$H$142"]
[27011,{"$f":"Menu!$F$29","v":"X"},{"$f":"Menu!$J$29","v":2020},{"$f":"IF(ISBLANK(INDIRECT(\"'\"&F7620&\"'!\"&G7620)),\"\",INDIRECT(\"'\"&F7620&\"'!\"&G7620))","v":""},null,"2a","$G$142","$H$142"]
[27012,{"$f":"Menu!$F$29","v":"X"},{"$f":"Menu!$J$29","v":2020},{"$f":"IF(ISBLANK(INDIRECT(\"'\"&F7621&\"'!\"&G7621)),\"\",INDIRECT(\"'\"&F7621&\"'!\"&G7621))","v":""},{"$f":"IF(ISBLANK(INDIRECT(\"'\"&F7621&\"'!\"&H7621)),\"\",IFERROR(VLOOKUP(TEXT(INDIRECT(\"'\"&F7621&\"'!\"&H7621),\"0\"),Notes!$B$5:$C$100,2,FALSE),\"\"))","v":""},"2b","$W$142","$X$142"]
[27013,{"$f":"Menu!$F$29","v":"X"},{"$f":"Menu!$J$29","v":2020},{"$f":"IF(ISBLANK(INDIRECT(\"'\"&F7622&\"'!\"&G7622)),\"\",INDIRECT(\"'\"&F7622&\"'!\"&G7622))","v":""},{"$f":"IF(ISBLANK(INDIRECT(\"'\"&F7622&\"'!\"&H7622)),\"\",IFERROR(VLOOKUP(TEXT(INDIRECT(\"'\"&F7622&\"'!\"&H7622),\"0\"),Notes!$B$5:$C$100,2,FALSE),\"\"))","v":""},"2b","$AA$142","$AB$142"]
[27014,{"$f":"Menu!$F$29","v":"X"},{"$f":"Menu!$J$29","v":2020},{"$f":"IF(ISBLANK(INDIRECT(\"'\"&F7623&\"'!\"&G7623)),\"\",INDIRECT(\"'\"&F7623&\"'!\"&G7623))","v":""},{"$f":"IF(ISBLANK(INDIRECT(\"'\"&F7623&\"'!\"&H7623)),\"\",IFERROR(VLOOKUP(TEXT(INDIRECT(\"'\"&F7623&\"'!\"&H7623),\"0\"),Notes!$B$5:$C$100,2,FALSE),\"\"))","v":""},"2b","$Y$142","$Z$142"]
[27015,{"$f":"Menu!$F$29","v":"X"},{"$f":"Menu!$J$29","v":2020},{"$f":"IF(ISBLANK(INDIRECT(\"'\"&F7624&\"'!\"&G7624)),\"\",INDIRECT(\"'\"&F7624&\"'!\"&G7624))","v":""},{"$f":"IF(ISBLANK(INDIRECT(\"'\"&F7624&\"'!\"&H7624)),\"\",IFERROR(VLOOKUP(TEXT(INDIRECT(\"'\"&F7624&\"'!\"&H7624),\"0\"),Notes!$B$5:$C$100,2,FALSE),\"\"))","v":""},"2d","$AC$142","$AD$142"]
[27016,{"$f":"Menu!$F$29","v":"X"},{"$f":"Menu!$J$29","v":2020},{"$f":"IF(ISBLANK(INDIRECT(\"'\"&F7625&\"'!\"&G7625)),\"\",INDIRECT(\"'\"&F7625&\"'!\"&G7625))","v":""},{"$f":"IF(ISBLANK(INDIRECT(\"'\"&F7625&\"'!\"&H7625)),\"\",IFERROR(VLOOKUP(TEXT(INDIRECT(\"'\"&F7625&\"'!\"&H7625),\"0\"),Notes!$B$5:$C$100,2,FALSE),\"\"))","v":""},"2d","$AG$142","$AH$142"]
[27017,{"$f":"Menu!$F$29","v":"X"},{"$f":"Menu!$J$29","v":2020},{"$f":"IF(ISBLANK(INDIRECT(\"'\"&F7626&\"'!\"&G7626)),\"\",INDIRECT(\"'\"&F7626&\"'!\"&G7626))","v":""},{"$f":"IF(ISBLANK(INDIRECT(\"'\"&F7626&\"'!\"&H7626)),\"\",IFERROR(VLOOKUP(TEXT(INDIRECT(\"'\"&F7626&\"'!\"&H7626),\"0\"),Notes!$B$5:$C$100,2,FALSE),\"\"))","v":""},"2d","$AE$142","$AF$142"]
[27018,{"$f":"Menu!$F$29","v":"X"},{"$f":"Menu!$J$29","v":2020},{"$f":"IF(ISBLANK(INDIRECT(\"'\"&F7627&\"'!\"&G7627)),\"\",INDIRECT(\"'\"&F7627&\"'!\"&G7627))","v":""},{"$f":"IF(ISBLANK(INDIRECT(\"'\"&F7627&\"'!\"&H7627)),\"\",IFERROR(VLOOKUP(TEXT(INDIRECT(\"'\"&F7627&\"'!\"&H7627),\"0\"),Notes!$B$5:$C$100,2,FALSE),\"\"))","v":""},"2d","$W$142","$X$142"]
[27019,{"$f":"Menu!$F$29","v":"X"},{"$f":"Menu!$J$29","v":2020},{"$f":"IF(ISBLANK(INDIRECT(\"'\"&F7628&\"'!\"&G7628)),\"\",INDIRECT(\"'\"&F7628&\"'!\"&G7628))","v":""},{"$f":"IF(ISBLANK(INDIRECT(\"'\"&F7628&\"'!\"&H7628)),\"\",IFERROR(VLOOKUP(TEXT(INDIRECT(\"'\"&F7628&\"'!\"&H7628),\"0\"),Notes!$B$5:$C$100,2,FALSE),\"\"))","v":""},"2d","$AA$142","$AB$142"]
[27020,{"$f":"Menu!$F$29","v":"X"},{"$f":"Menu!$J$29","v":2020},{"$f":"IF(ISBLANK(INDIRECT(\"'\"&F7629&\"'!\"&G7629)),\"\",INDIRECT(\"'\"&F7629&\"'!\"&G7629))","v":""},{"$f":"IF(ISBLANK(INDIRECT(\"'\"&F7629&\"'!\"&H7629)),\"\",IFERROR(VLOOKUP(TEXT(INDIRECT(\"'\"&F7629&\"'!\"&H7629),\"0\"),Notes!$B$5:$C$100,2,FALSE),\"\"))","v":""},"2d","$Y$142","$Z$142"]
[27021,{"$f":"Menu!$F$29","v":"X"},{"$f":"Menu!$J$29","v":2020},{"$f":"IF(ISBLANK(INDIRECT(\"'\"&F7630&\"'!\"&G7630)),\"\",INDIRECT(\"'\"&F7630&\"'!\"&G7630))","v":""},{"$f":"IF(ISBLANK(INDIRECT(\"'\"&F7630&\"'!\"&H7630)),\"\",IFERROR(VLOOKUP(TEXT(INDIRECT(\"'\"&F7630&\"'!\"&H7630),\"0\"),Notes!$B$5:$C$100,2,FALSE),\"\"))","v":""},"2d","$E$142","$F$142"]
[27022,{"$f":"Menu!$F$29","v":"X"},{"$f":"Menu!$J$29","v":2020},{"$f":"IF(ISBLANK(INDIRECT(\"'\"&F7631&\"'!\"&G7631)),\"\",INDIRECT(\"'\"&F7631&\"'!\"&G7631))","v":""},{"$f":"IF(ISBLANK(INDIRECT(\"'\"&F7631&\"'!\"&H7631)),\"\",IFERROR(VLOOKUP(TEXT(INDIRECT(\"'\"&F7631&\"'!\"&H7631),\"0\"),Notes!$B$5:$C$100,2,FALSE),\"\"))","v":""},"2d","$I$142","$J$142"]
[27023,{"$f":"Menu!$F$29","v":"X"},{"$f":"Menu!$J$29","v":2020},{"$f":"IF(ISBLANK(INDIRECT(\"'\"&F7632&\"'!\"&G7632)),\"\",INDIRECT(\"'\"&F7632&\"'!\"&G7632))","v":""},{"$f":"IF(ISBLANK(INDIRECT(\"'\"&F7632&\"'!\"&H7632)),\"\",IFERROR(VLOOKUP(TEXT(INDIRECT(\"'\"&F7632&\"'!\"&H7632),\"0\"),Notes!$B$5:$C$100,2,FALSE),\"\"))","v":""},"2d","$G$142","$H$142"]
[27024,{"$f":"Menu!$F$29","v":"X"},{"$f":"Menu!$J$29","v":2020},{"$f":"IF(ISBLANK(INDIRECT(\"'\"&F7633&\"'!\"&G7633)),\"\",INDIRECT(\"'\"&F7633&\"'!\"&G7633))","v":""},{"$f":"IF(ISBLANK(INDIRECT(\"'\"&F7633&\"'!\"&H7633)),\"\",IFERROR(VLOOKUP(TEXT(INDIRECT(\"'\"&F7633&\"'!\"&H7633),\"0\"),Notes!$B$5:$C$100,2,FALSE),\"\"))","v":""},"2a","$Q$142","$R$142"]
[27025,{"$f":"Menu!$F$29","v":"X"},{"$f":"Menu!$J$29","v":2020},{"$f":"IF(ISBLANK(INDIRECT(\"'\"&F7634&\"'!\"&G7634)),\"\",INDIRECT(\"'\"&F7634&\"'!\"&G7634))","v":""},{"$f":"IF(ISBLANK(INDIRECT(\"'\"&F7634&\"'!\"&H7634)),\"\",IFERROR(VLOOKUP(TEXT(INDIRECT(\"'\"&F7634&\"'!\"&H7634),\"0\"),Notes!$B$5:$C$100,2,FALSE),\"\"))","v":""},"2a","$U$142","$V$142"]
[27026,{"$f":"Menu!$F$29","v":"X"},{"$f":"Menu!$J$29","v":2020},{"$f":"IF(ISBLANK(INDIRECT(\"'\"&F7635&\"'!\"&G7635)),\"\",INDIRECT(\"'\"&F7635&\"'!\"&G7635))","v":""},{"$f":"IF(ISBLANK(INDIRECT(\"'\"&F7635&\"'!\"&H7635)),\"\",IFERROR(VLOOKUP(TEXT(INDIRECT(\"'\"&F7635&\"'!\"&H7635),\"0\"),Notes!$B$5:$C$100,2,FALSE),\"\"))","v":""},"2a","$S$142","$T$142"]
[27027,{"$f":"Menu!$F$29","v":"X"},{"$f":"Menu!$J$29","v":2020},{"$f":"IF(ISBLANK(INDIRECT(\"'\"&F7636&\"'!\"&G7636)),\"\",INDIRECT(\"'\"&F7636&\"'!\"&G7636))","v":""},{"$f":"IF(ISBLANK(INDIRECT(\"'\"&F7636&\"'!\"&H7636)),\"\",IFERROR(VLOOKUP(TEXT(INDIRECT(\"'\"&F7636&\"'!\"&H7636),\"0\"),Notes!$B$5:$C$100,2,FALSE),\"\"))","v":""},"2d","$K$142","$L$142"]
[27028,{"$f":"Menu!$F$29","v":"X"},{"$f":"Menu!$J$29","v":2020},{"$f":"IF(ISBLANK(INDIRECT(\"'\"&F7637&\"'!\"&G7637)),\"\",INDIRECT(\"'\"&F7637&\"'!\"&G7637))","v":""},{"$f":"IF(ISBLANK(INDIRECT(\"'\"&F7637&\"'!\"&H7637)),\"\",IFERROR(VLOOKUP(TEXT(INDIRECT(\"'\"&F7637&\"'!\"&H7637),\"0\"),Notes!$B$5:$C$100,2,FALSE),\"\"))","v":""},"2d","$O$142","$P$142"]
[27029,{"$f":"Menu!$F$29","v":"X"},{"$f":"Menu!$J$29","v":2020},{"$f":"IF(ISBLANK(INDIRECT(\"'\"&F7638&\"'!\"&G7638)),\"\",INDIRECT(\"'\"&F7638&\"'!\"&G7638))","v":""},{"$f":"IF(ISBLANK(INDIRECT(\"'\"&F7638&\"'!\"&H7638)),\"\",IFERROR(VLOOKUP(TEXT(INDIRECT(\"'\"&F7638&\"'!\"&H7638),\"0\"),Notes!$B$5:$C$100,2,FALSE),\"\"))","v":""},"2d","$M$142","$N$142"]
[27030,{"$f":"Menu!$F$29","v":"X"},{"$f":"Menu!$J$29","v":2020},{"$f":"IF(ISBLANK(INDIRECT(\"'\"&F7639&\"'!\"&G7639)),\"\",INDIRECT(\"'\"&F7639&\"'!\"&G7639))","v":""},{"$f":"IF(ISBLANK(INDIRECT(\"'\"&F7639&\"'!\"&H7639)),\"\",IFERROR(VLOOKUP(TEXT(INDIRECT(\"'\"&F7639&\"'!\"&H7639),\"0\"),Notes!$B$5:$C$100,2,FALSE),\"\"))","v":""},"2d","$Q$142","$R$142"]
[27031,{"$f":"Menu!$F$29","v":"X"},{"$f":"Menu!$J$29","v":2020},{"$f":"IF(ISBLANK(INDIRECT(\"'\"&F7640&\"'!\"&G7640)),\"\",INDIRECT(\"'\"&F7640&\"'!\"&G7640))","v":""},{"$f":"IF(ISBLANK(INDIRECT(\"'\"&F7640&\"'!\"&H7640)),\"\",IFERROR(VLOOKUP(TEXT(INDIRECT(\"'\"&F7640&\"'!\"&H7640),\"0\"),Notes!$B$5:$C$100,2,FALSE),\"\"))","v":""},"2d","$U$142","$V$142"]
[27032,{"$f":"Menu!$F$29","v":"X"},{"$f":"Menu!$J$29","v":2020},{"$f":"IF(ISBLANK(INDIRECT(\"'\"&F7641&\"'!\"&G7641)),\"\",INDIRECT(\"'\"&F7641&\"'!\"&G7641))","v":""},{"$f":"IF(ISBLANK(INDIRECT(\"'\"&F7641&\"'!\"&H7641)),\"\",IFERROR(VLOOKUP(TEXT(INDIRECT(\"'\"&F7641&\"'!\"&H7641),\"0\"),Notes!$B$5:$C$100,2,FALSE),\"\"))","v":""},"2d","$S$142","$T$142"]
[27033,{"$f":"Menu!$F$29","v":"X"},{"$f":"Menu!$J$29","v":2020},{"$f":"IF(ISBLANK(INDIRECT(\"'\"&F7642&\"'!\"&G7642)),\"\",INDIRECT(\"'\"&F7642&\"'!\"&G7642))","v":""},{"$f":"IF(ISBLANK(INDIRECT(\"'\"&F7642&\"'!\"&H7642)),\"\",IFERROR(VLOOKUP(TEXT(INDIRECT(\"'\"&F7642&\"'!\"&H7642),\"0\"),Notes!$B$5:$C$100,2,FALSE),\"\"))","v":""},"2a","$K$142","$L$142"]
[27034,{"$f":"Menu!$F$29","v":"X"},{"$f":"Menu!$J$29","v":2020},{"$f":"IF(ISBLANK(INDIRECT(\"'\"&F7643&\"'!\"&G7643)),\"\",INDIRECT(\"'\"&F7643&\"'!\"&G7643))","v":""},{"$f":"IF(ISBLANK(INDIRECT(\"'\"&F7643&\"'!\"&H7643)),\"\",IFERROR(VLOOKUP(TEXT(INDIRECT(\"'\"&F7643&\"'!\"&H7643),\"0\"),Notes!$B$5:$C$100,2,FALSE),\"\"))","v":""},"2a","$O$142","$P$142"]
[27035,{"$f":"Menu!$F$29","v":"X"},{"$f":"Menu!$J$29","v":2020},{"$f":"IF(ISBLANK(INDIRECT(\"'\"&F7644&\"'!\"&G7644)),\"\",INDIRECT(\"'\"&F7644&\"'!\"&G7644))","v":""},{"$f":"IF(ISBLANK(INDIRECT(\"'\"&F7644&\"'!\"&H7644)),\"\",IFERROR(VLOOKUP(TEXT(INDIRECT(\"'\"&F7644&\"'!\"&H7644),\"0\"),Notes!$B$5:$C$100,2,FALSE),\"\"))","v":""},"2a","$M$142","$N$142"]
[27036,{"$f":"Menu!$F$29","v":"X"},{"$f":"Menu!$J$29","v":2020},{"$f":"IF(ISBLANK(INDIRECT(\"'\"&F7645&\"'!\"&G7645)),\"\",INDIRECT(\"'\"&F7645&\"'!\"&G7645))","v":""},{"$f":"IF(ISBLANK(INDIRECT(\"'\"&F7645&\"'!\"&H7645)),\"\",IFERROR(VLOOKUP(TEXT(INDIRECT(\"'\"&F7645&\"'!\"&H7645),\"0\"),Notes!$B$5:$C$100,2,FALSE),\"\"))","v":""},"2a","$E$142","$F$142"]
[27037,{"$f":"Menu!$F$29","v":"X"},{"$f":"Menu!$J$29","v":2020},{"$f":"IF(ISBLANK(INDIRECT(\"'\"&F7646&\"'!\"&G7646)),\"\",INDIRECT(\"'\"&F7646&\"'!\"&G7646))","v":""},{"$f":"IF(ISBLANK(INDIRECT(\"'\"&F7646&\"'!\"&H7646)),\"\",IFERROR(VLOOKUP(TEXT(INDIRECT(\"'\"&F7646&\"'!\"&H7646),\"0\"),Notes!$B$5:$C$100,2,FALSE),\"\"))","v":""},"2b","$K$143","$L$143"]
[27038,{"$f":"Menu!$F$29","v":"X"},{"$f":"Menu!$J$29","v":2020},{"$f":"IF(ISBLANK(INDIRECT(\"'\"&F7647&\"'!\"&G7647)),\"\",INDIRECT(\"'\"&F7647&\"'!\"&G7647))","v":""},{"$f":"IF(ISBLANK(INDIRECT(\"'\"&F7647&\"'!\"&H7647)),\"\",IFERROR(VLOOKUP(TEXT(INDIRECT(\"'\"&F7647&\"'!\"&H7647),\"0\"),Notes!$B$5:$C$100,2,FALSE),\"\"))","v":""},"2b","$O$143","$P$143"]
[27039,{"$f":"Menu!$F$29","v":"X"},{"$f":"Menu!$J$29","v":2020},{"$f":"IF(ISBLANK(INDIRECT(\"'\"&F7648&\"'!\"&G7648)),\"\",INDIRECT(\"'\"&F7648&\"'!\"&G7648))","v":""},{"$f":"IF(ISBLANK(INDIRECT(\"'\"&F7648&\"'!\"&H7648)),\"\",IFERROR(VLOOKUP(TEXT(INDIRECT(\"'\"&F7648&\"'!\"&H7648),\"0\"),Notes!$B$5:$C$100,2,FALSE),\"\"))","v":""},"2b","$M$143","$N$143"]
[27040,{"$f":"Menu!$F$29","v":"X"},{"$f":"Menu!$J$29","v":2020},{"$f":"IF(ISBLANK(INDIRECT(\"'\"&F7649&\"'!\"&G7649)),\"\",INDIRECT(\"'\"&F7649&\"'!\"&G7649))","v":""},{"$f":"IF(ISBLANK(INDIRECT(\"'\"&F7649&\"'!\"&H7649)),\"\",IFERROR(VLOOKUP(TEXT(INDIRECT(\"'\"&F7649&\"'!\"&H7649),\"0\"),Notes!$B$5:$C$100,2,FALSE),\"\"))","v":""},"2b","$Q$143","$R$143"]
[27041,{"$f":"Menu!$F$29","v":"X"},{"$f":"Menu!$J$29","v":2020},{"$f":"IF(ISBLANK(INDIRECT(\"'\"&F7650&\"'!\"&G7650)),\"\",INDIRECT(\"'\"&F7650&\"'!\"&G7650))","v":""},{"$f":"IF(ISBLANK(INDIRECT(\"'\"&F7650&\"'!\"&H7650)),\"\",IFERROR(VLOOKUP(TEXT(INDIRECT(\"'\"&F7650&\"'!\"&H7650),\"0\"),Notes!$B$5:$C$100,2,FALSE),\"\"))","v":""},"2b","$U$143","$V$143"]
[27042,{"$f":"Menu!$F$29","v":"X"},{"$f":"Menu!$J$29","v":2020},{"$f":"IF(ISBLANK(INDIRECT(\"'\"&F7651&\"'!\"&G7651)),\"\",INDIRECT(\"'\"&F7651&\"'!\"&G7651))","v":""},{"$f":"IF(ISBLANK(INDIRECT(\"'\"&F7651&\"'!\"&H7651)),\"\",IFERROR(VLOOKUP(TEXT(INDIRECT(\"'\"&F7651&\"'!\"&H7651),\"0\"),Notes!$B$5:$C$100,2,FALSE),\"\"))","v":""},"2b","$S$143","$T$143"]
[27046,{"$f":"Menu!$F$29","v":"X"},{"$f":"Menu!$J$29","v":2020},{"$f":"IF(ISBLANK(INDIRECT(\"'\"&F7652&\"'!\"&G7652)),\"\",INDIRECT(\"'\"&F7652&\"'!\"&G7652))","v":""},null,"2a","$I$143","$J$143"]
[27047,{"$f":"Menu!$F$29","v":"X"},{"$f":"Menu!$J$29","v":2020},{"$f":"IF(ISBLANK(INDIRECT(\"'\"&F7653&\"'!\"&G7653)),\"\",INDIRECT(\"'\"&F7653&\"'!\"&G7653))","v":""},{"$f":"IF(ISBLANK(INDIRECT(\"'\"&F7653&\"'!\"&H7653)),\"\",IFERROR(VLOOKUP(TEXT(INDIRECT(\"'\"&F7653&\"'!\"&H7653),\"0\"),Notes!$B$5:$C$100,2,FALSE),\"\"))","v":""},"2c","$E$143","$F$143"]
[27048,{"$f":"Menu!$F$29","v":"X"},{"$f":"Menu!$J$29","v":2020},{"$f":"IF(ISBLANK(INDIRECT(\"'\"&F7654&\"'!\"&G7654)),\"\",INDIRECT(\"'\"&F7654&\"'!\"&G7654))","v":""},{"$f":"IF(ISBLANK(INDIRECT(\"'\"&F7654&\"'!\"&H7654)),\"\",IFERROR(VLOOKUP(TEXT(INDIRECT(\"'\"&F7654&\"'!\"&H7654),\"0\"),Notes!$B$5:$C$100,2,FALSE),\"\"))","v":""},"2c","$I$143","$J$143"]
[27049,{"$f":"Menu!$F$29","v":"X"},{"$f":"Menu!$J$29","v":2020},{"$f":"IF(ISBLANK(INDIRECT(\"'\"&F7655&\"'!\"&G7655)),\"\",INDIRECT(\"'\"&F7655&\"'!\"&G7655))","v":""},{"$f":"IF(ISBLANK(INDIRECT(\"'\"&F7655&\"'!\"&H7655)),\"\",IFERROR(VLOOKUP(TEXT(INDIRECT(\"'\"&F7655&\"'!\"&H7655),\"0\"),Notes!$B$5:$C$100,2,FALSE),\"\"))","v":""},"2c","$G$143","$H$143"]
[27053,{"$f":"Menu!$F$29","v":"X"},{"$f":"Menu!$J$29","v":2020},{"$f":"IF(ISBLANK(INDIRECT(\"'\"&F7656&\"'!\"&G7656)),\"\",INDIRECT(\"'\"&F7656&\"'!\"&G7656))","v":""},{"$f":"IF(ISBLANK(INDIRECT(\"'\"&F7656&\"'!\"&H7656)),\"\",IFERROR(VLOOKUP(TEXT(INDIRECT(\"'\"&F7656&\"'!\"&H7656),\"0\"),Notes!$B$5:$C$100,2,FALSE),\"\"))","v":""},"2c","$K$143","$L$143"]
[27054,{"$f":"Menu!$F$29","v":"X"},{"$f":"Menu!$J$29","v":2020},{"$f":"IF(ISBLANK(INDIRECT(\"'\"&F7657&\"'!\"&G7657)),\"\",INDIRECT(\"'\"&F7657&\"'!\"&G7657))","v":""},{"$f":"IF(ISBLANK(INDIRECT(\"'\"&F7657&\"'!\"&H7657)),\"\",IFERROR(VLOOKUP(TEXT(INDIRECT(\"'\"&F7657&\"'!\"&H7657),\"0\"),Notes!$B$5:$C$100,2,FALSE),\"\"))","v":""},"2c","$O$143","$P$143"]
[27055,{"$f":"Menu!$F$29","v":"X"},{"$f":"Menu!$J$29","v":2020},{"$f":"IF(ISBLANK(INDIRECT(\"'\"&F7658&\"'!\"&G7658)),\"\",INDIRECT(\"'\"&F7658&\"'!\"&G7658))","v":""},{"$f":"IF(ISBLANK(INDIRECT(\"'\"&F7658&\"'!\"&H7658)),\"\",IFERROR(VLOOKUP(TEXT(INDIRECT(\"'\"&F7658&\"'!\"&H7658),\"0\"),Notes!$B$5:$C$100,2,FALSE),\"\"))","v":""},"2c","$M$143","$N$143"]
[27056,{"$f":"Menu!$F$29","v":"X"},{"$f":"Menu!$J$29","v":2020},{"$f":"IF(ISBLANK(INDIRECT(\"'\"&F7659&\"'!\"&G7659)),\"\",INDIRECT(\"'\"&F7659&\"'!\"&G7659))","v":""},{"$f":"IF(ISBLANK(INDIRECT(\"'\"&F7659&\"'!\"&H7659)),\"\",IFERROR(VLOOKUP(TEXT(INDIRECT(\"'\"&F7659&\"'!\"&H7659),\"0\"),Notes!$B$5:$C$100,2,FALSE),\"\"))","v":""},"2c","$Q$143","$R$143"]
[27057,{"$f":"Menu!$F$29","v":"X"},{"$f":"Menu!$J$29","v":2020},{"$f":"IF(ISBLANK(INDIRECT(\"'\"&F7660&\"'!\"&G7660)),\"\",INDIRECT(\"'\"&F7660&\"'!\"&G7660))","v":""},{"$f":"IF(ISBLANK(INDIRECT(\"'\"&F7660&\"'!\"&H7660)),\"\",IFERROR(VLOOKUP(TEXT(INDIRECT(\"'\"&F7660&\"'!\"&H7660),\"0\"),Notes!$B$5:$C$100,2,FALSE),\"\"))","v":""},"2c","$U$143","$V$143"]
[27058,{"$f":"Menu!$F$29","v":"X"},{"$f":"Menu!$J$29","v":2020},{"$f":"IF(ISBLANK(INDIRECT(\"'\"&F7661&\"'!\"&G7661)),\"\",INDIRECT(\"'\"&F7661&\"'!\"&G7661))","v":""},{"$f":"IF(ISBLANK(INDIRECT(\"'\"&F7661&\"'!\"&H7661)),\"\",IFERROR(VLOOKUP(TEXT(INDIRECT(\"'\"&F7661&\"'!\"&H7661),\"0\"),Notes!$B$5:$C$100,2,FALSE),\"\"))","v":""},"2c","$S$143","$T$143"]
[27059,{"$f":"Menu!$F$29","v":"X"},{"$f":"Menu!$J$29","v":2020},{"$f":"IF(ISBLANK(INDIRECT(\"'\"&F7662&\"'!\"&G7662)),\"\",INDIRECT(\"'\"&F7662&\"'!\"&G7662))","v":""},{"$f":"IF(ISBLANK(INDIRECT(\"'\"&F7662&\"'!\"&H7662)),\"\",IFERROR(VLOOKUP(TEXT(INDIRECT(\"'\"&F7662&\"'!\"&H7662),\"0\"),Notes!$B$5:$C$100,2,FALSE),\"\"))","v":""},"2c","$W$143","$X$143"]
[27060,{"$f":"Menu!$F$29","v":"X"},{"$f":"Menu!$J$29","v":2020},{"$f":"IF(ISBLANK(INDIRECT(\"'\"&F7663&\"'!\"&G7663)),\"\",INDIRECT(\"'\"&F7663&\"'!\"&G7663))","v":""},{"$f":"IF(ISBLANK(INDIRECT(\"'\"&F7663&\"'!\"&H7663)),\"\",IFERROR(VLOOKUP(TEXT(INDIRECT(\"'\"&F7663&\"'!\"&H7663),\"0\"),Notes!$B$5:$C$100,2,FALSE),\"\"))","v":""},"2c","$AA$143","$AB$143"]
[27061,{"$f":"Menu!$F$29","v":"X"},{"$f":"Menu!$J$29","v":2020},{"$f":"IF(ISBLANK(INDIRECT(\"'\"&F7664&\"'!\"&G7664)),\"\",INDIRECT(\"'\"&F7664&\"'!\"&G7664))","v":""},{"$f":"IF(ISBLANK(INDIRECT(\"'\"&F7664&\"'!\"&H7664)),\"\",IFERROR(VLOOKUP(TEXT(INDIRECT(\"'\"&F7664&\"'!\"&H7664),\"0\"),Notes!$B$5:$C$100,2,FALSE),\"\"))","v":""},"2c","$Y$143","$Z$143"]
[27068,{"$f":"Menu!$F$29","v":"X"},{"$f":"Menu!$J$29","v":2020},{"$f":"IF(ISBLANK(INDIRECT(\"'\"&F7665&\"'!\"&G7665)),\"\",INDIRECT(\"'\"&F7665&\"'!\"&G7665))","v":""},{"$f":"IF(ISBLANK(INDIRECT(\"'\"&F7665&\"'!\"&H7665)),\"\",IFERROR(VLOOKUP(TEXT(INDIRECT(\"'\"&F7665&\"'!\"&H7665),\"0\"),Notes!$B$5:$C$100,2,FALSE),\"\"))","v":""},"2e","$BG$144","$BH$144"]
[27069,{"$f":"Menu!$F$29","v":"X"},{"$f":"Menu!$J$29","v":2020},{"$f":"IF(ISBLANK(INDIRECT(\"'\"&F7666&\"'!\"&G7666)),\"\",INDIRECT(\"'\"&F7666&\"'!\"&G7666))","v":""},{"$f":"IF(ISBLANK(INDIRECT(\"'\"&F7666&\"'!\"&H7666)),\"\",IFERROR(VLOOKUP(TEXT(INDIRECT(\"'\"&F7666&\"'!\"&H7666),\"0\"),Notes!$B$5:$C$100,2,FALSE),\"\"))","v":""},"2e","$BK$144","$BL$144"]
[27070,{"$f":"Menu!$F$29","v":"X"},{"$f":"Menu!$J$29","v":2020},{"$f":"IF(ISBLANK(INDIRECT(\"'\"&F7667&\"'!\"&G7667)),\"\",INDIRECT(\"'\"&F7667&\"'!\"&G7667))","v":""},{"$f":"IF(ISBLANK(INDIRECT(\"'\"&F7667&\"'!\"&H7667)),\"\",IFERROR(VLOOKUP(TEXT(INDIRECT(\"'\"&F7667&\"'!\"&H7667),\"0\"),Notes!$B$5:$C$100,2,FALSE),\"\"))","v":""},"2e","$BI$144","$BJ$144"]
[27071,{"$f":"Menu!$F$29","v":"X"},{"$f":"Menu!$J$29","v":2020},{"$f":"IF(ISBLANK(INDIRECT(\"'\"&F7668&\"'!\"&G7668)),\"\",INDIRECT(\"'\"&F7668&\"'!\"&G7668))","v":""},{"$f":"IF(ISBLANK(INDIRECT(\"'\"&F7668&\"'!\"&H7668)),\"\",IFERROR(VLOOKUP(TEXT(INDIRECT(\"'\"&F7668&\"'!\"&H7668),\"0\"),Notes!$B$5:$C$100,2,FALSE),\"\"))","v":""},"2e","$E$144","$F$144"]
[27072,{"$f":"Menu!$F$29","v":"X"},{"$f":"Menu!$J$29","v":2020},{"$f":"IF(ISBLANK(INDIRECT(\"'\"&F7669&\"'!\"&G7669)),\"\",INDIRECT(\"'\"&F7669&\"'!\"&G7669))","v":""},{"$f":"IF(ISBLANK(INDIRECT(\"'\"&F7669&\"'!\"&H7669)),\"\",IFERROR(VLOOKUP(TEXT(INDIRECT(\"'\"&F7669&\"'!\"&H7669),\"0\"),Notes!$B$5:$C$100,2,FALSE),\"\"))","v":""},"2e","$I$144","$J$144"]
[27073,{"$f":"Menu!$F$29","v":"X"},{"$f":"Menu!$J$29","v":2020},{"$f":"IF(ISBLANK(INDIRECT(\"'\"&F7670&\"'!\"&G7670)),\"\",INDIRECT(\"'\"&F7670&\"'!\"&G7670))","v":""},{"$f":"IF(ISBLANK(INDIRECT(\"'\"&F7670&\"'!\"&H7670)),\"\",IFERROR(VLOOKUP(TEXT(INDIRECT(\"'\"&F7670&\"'!\"&H7670),\"0\"),Notes!$B$5:$C$100,2,FALSE),\"\"))","v":""},"2e","$G$144","$H$144"]
[27074,{"$f":"Menu!$F$29","v":"X"},{"$f":"Menu!$J$29","v":2020},{"$f":"IF(ISBLANK(INDIRECT(\"'\"&F7671&\"'!\"&G7671)),\"\",INDIRECT(\"'\"&F7671&\"'!\"&G7671))","v":""},{"$f":"IF(ISBLANK(INDIRECT(\"'\"&F7671&\"'!\"&H7671)),\"\",IFERROR(VLOOKUP(TEXT(INDIRECT(\"'\"&F7671&\"'!\"&H7671),\"0\"),Notes!$B$5:$C$100,2,FALSE),\"\"))","v":""},"2e","$K$144","$L$144"]
[27075,{"$f":"Menu!$F$29","v":"X"},{"$f":"Menu!$J$29","v":2020},{"$f":"IF(ISBLANK(INDIRECT(\"'\"&F7672&\"'!\"&G7672)),\"\",INDIRECT(\"'\"&F7672&\"'!\"&G7672))","v":""},{"$f":"IF(ISBLANK(INDIRECT(\"'\"&F7672&\"'!\"&H7672)),\"\",IFERROR(VLOOKUP(TEXT(INDIRECT(\"'\"&F7672&\"'!\"&H7672),\"0\"),Notes!$B$5:$C$100,2,FALSE),\"\"))","v":""},"2e","$O$144","$P$144"]
[27076,{"$f":"Menu!$F$29","v":"X"},{"$f":"Menu!$J$29","v":2020},{"$f":"IF(ISBLANK(INDIRECT(\"'\"&F7673&\"'!\"&G7673)),\"\",INDIRECT(\"'\"&F7673&\"'!\"&G7673))","v":""},{"$f":"IF(ISBLANK(INDIRECT(\"'\"&F7673&\"'!\"&H7673)),\"\",IFERROR(VLOOKUP(TEXT(INDIRECT(\"'\"&F7673&\"'!\"&H7673),\"0\"),Notes!$B$5:$C$100,2,FALSE),\"\"))","v":""},"2e","$M$144","$N$144"]
[27077,{"$f":"Menu!$F$29","v":"X"},{"$f":"Menu!$J$29","v":2020},{"$f":"IF(ISBLANK(INDIRECT(\"'\"&F7674&\"'!\"&G7674)),\"\",INDIRECT(\"'\"&F7674&\"'!\"&G7674))","v":""},{"$f":"IF(ISBLANK(INDIRECT(\"'\"&F7674&\"'!\"&H7674)),\"\",IFERROR(VLOOKUP(TEXT(INDIRECT(\"'\"&F7674&\"'!\"&H7674),\"0\"),Notes!$B$5:$C$100,2,FALSE),\"\"))","v":""},"2e","$Q$144","$R$144"]
[27078,{"$f":"Menu!$F$29","v":"X"},{"$f":"Menu!$J$29","v":2020},{"$f":"IF(ISBLANK(INDIRECT(\"'\"&F7675&\"'!\"&G7675)),\"\",INDIRECT(\"'\"&F7675&\"'!\"&G7675))","v":""},{"$f":"IF(ISBLANK(INDIRECT(\"'\"&F7675&\"'!\"&H7675)),\"\",IFERROR(VLOOKUP(TEXT(INDIRECT(\"'\"&F7675&\"'!\"&H7675),\"0\"),Notes!$B$5:$C$100,2,FALSE),\"\"))","v":""},"2e","$U$144","$V$144"]
[27079,{"$f":"Menu!$F$29","v":"X"},{"$f":"Menu!$J$29","v":2020},{"$f":"IF(ISBLANK(INDIRECT(\"'\"&F7676&\"'!\"&G7676)),\"\",INDIRECT(\"'\"&F7676&\"'!\"&G7676))","v":""},{"$f":"IF(ISBLANK(INDIRECT(\"'\"&F7676&\"'!\"&H7676)),\"\",IFERROR(VLOOKUP(TEXT(INDIRECT(\"'\"&F7676&\"'!\"&H7676),\"0\"),Notes!$B$5:$C$100,2,FALSE),\"\"))","v":""},"2e","$S$144","$T$144"]
[27080,{"$f":"Menu!$F$29","v":"X"},{"$f":"Menu!$J$29","v":2020},{"$f":"IF(ISBLANK(INDIRECT(\"'\"&F7677&\"'!\"&G7677)),\"\",INDIRECT(\"'\"&F7677&\"'!\"&G7677))","v":""},{"$f":"IF(ISBLANK(INDIRECT(\"'\"&F7677&\"'!\"&H7677)),\"\",IFERROR(VLOOKUP(TEXT(INDIRECT(\"'\"&F7677&\"'!\"&H7677),\"0\"),Notes!$B$5:$C$100,2,FALSE),\"\"))","v":""},"2e","$W$144","$X$144"]
[27081,{"$f":"Menu!$F$29","v":"X"},{"$f":"Menu!$J$29","v":2020},{"$f":"IF(ISBLANK(INDIRECT(\"'\"&F7678&\"'!\"&G7678)),\"\",INDIRECT(\"'\"&F7678&\"'!\"&G7678))","v":""},{"$f":"IF(ISBLANK(INDIRECT(\"'\"&F7678&\"'!\"&H7678)),\"\",IFERROR(VLOOKUP(TEXT(INDIRECT(\"'\"&F7678&\"'!\"&H7678),\"0\"),Notes!$B$5:$C$100,2,FALSE),\"\"))","v":""},"2e","$AA$144","$AB$144"]
[27082,{"$f":"Menu!$F$29","v":"X"},{"$f":"Menu!$J$29","v":2020},{"$f":"IF(ISBLANK(INDIRECT(\"'\"&F7679&\"'!\"&G7679)),\"\",INDIRECT(\"'\"&F7679&\"'!\"&G7679))","v":""},{"$f":"IF(ISBLANK(INDIRECT(\"'\"&F7679&\"'!\"&H7679)),\"\",IFERROR(VLOOKUP(TEXT(INDIRECT(\"'\"&F7679&\"'!\"&H7679),\"0\"),Notes!$B$5:$C$100,2,FALSE),\"\"))","v":""},"2e","$Y$144","$Z$144"]
[27083,{"$f":"Menu!$F$29","v":"X"},{"$f":"Menu!$J$29","v":2020},{"$f":"IF(ISBLANK(INDIRECT(\"'\"&F7680&\"'!\"&G7680)),\"\",INDIRECT(\"'\"&F7680&\"'!\"&G7680))","v":""},{"$f":"IF(ISBLANK(INDIRECT(\"'\"&F7680&\"'!\"&H7680)),\"\",IFERROR(VLOOKUP(TEXT(INDIRECT(\"'\"&F7680&\"'!\"&H7680),\"0\"),Notes!$B$5:$C$100,2,FALSE),\"\"))","v":""},"2e","$AC$144","$AD$144"]
[27084,{"$f":"Menu!$F$29","v":"X"},{"$f":"Menu!$J$29","v":2020},{"$f":"IF(ISBLANK(INDIRECT(\"'\"&F7681&\"'!\"&G7681)),\"\",INDIRECT(\"'\"&F7681&\"'!\"&G7681))","v":""},{"$f":"IF(ISBLANK(INDIRECT(\"'\"&F7681&\"'!\"&H7681)),\"\",IFERROR(VLOOKUP(TEXT(INDIRECT(\"'\"&F7681&\"'!\"&H7681),\"0\"),Notes!$B$5:$C$100,2,FALSE),\"\"))","v":""},"2e","$AG$144","$AH$144"]
[27085,{"$f":"Menu!$F$29","v":"X"},{"$f":"Menu!$J$29","v":2020},{"$f":"IF(ISBLANK(INDIRECT(\"'\"&F7682&\"'!\"&G7682)),\"\",INDIRECT(\"'\"&F7682&\"'!\"&G7682))","v":""},{"$f":"IF(ISBLANK(INDIRECT(\"'\"&F7682&\"'!\"&H7682)),\"\",IFERROR(VLOOKUP(TEXT(INDIRECT(\"'\"&F7682&\"'!\"&H7682),\"0\"),Notes!$B$5:$C$100,2,FALSE),\"\"))","v":""},"2e","$AE$144",{"$f":"IF(LEN(TRIM(MID(G7682,4,10)))-LEN(SUBSTITUTE(TRIM(MID(G7682,4,10)),\"$\",\"\"))=0,\"$\"&CHAR(CODE(MID(G7682,2,1))+1)&\"$\"&TRIM(MID(G7682,4,10)),\"$\"&MID(G7682,2,1)&CHAR(CODE(MID(G7682,3,1))+1)&\"$\"&TRIM(MID(G7682,5,11)))","v":"$AF$144"}]
[27086,{"$f":"Menu!$F$29","v":"X"},{"$f":"Menu!$J$29","v":2020},{"$f":"IF(ISBLANK(INDIRECT(\"'\"&F7683&\"'!\"&G7683)),\"\",INDIRECT(\"'\"&F7683&\"'!\"&G7683))","v":""},{"$f":"IF(ISBLANK(INDIRECT(\"'\"&F7683&\"'!\"&H7683)),\"\",IFERROR(VLOOKUP(TEXT(INDIRECT(\"'\"&F7683&\"'!\"&H7683),\"0\"),Notes!$B$5:$C$100,2,FALSE),\"\"))","v":""},"2e","$AI$144","$AJ$144"]
[27087,{"$f":"Menu!$F$29","v":"X"},{"$f":"Menu!$J$29","v":2020},{"$f":"IF(ISBLANK(INDIRECT(\"'\"&F7684&\"'!\"&G7684)),\"\",INDIRECT(\"'\"&F7684&\"'!\"&G7684))","v":""},{"$f":"IF(ISBLANK(INDIRECT(\"'\"&F7684&\"'!\"&H7684)),\"\",IFERROR(VLOOKUP(TEXT(INDIRECT(\"'\"&F7684&\"'!\"&H7684),\"0\"),Notes!$B$5:$C$100,2,FALSE),\"\"))","v":""},"2e","$AM$144","$AN$144"]
[27088,{"$f":"Menu!$F$29","v":"X"},{"$f":"Menu!$J$29","v":2020},{"$f":"IF(ISBLANK(INDIRECT(\"'\"&F7685&\"'!\"&G7685)),\"\",INDIRECT(\"'\"&F7685&\"'!\"&G7685))","v":""},{"$f":"IF(ISBLANK(INDIRECT(\"'\"&F7685&\"'!\"&H7685)),\"\",IFERROR(VLOOKUP(TEXT(INDIRECT(\"'\"&F7685&\"'!\"&H7685),\"0\"),Notes!$B$5:$C$100,2,FALSE),\"\"))","v":""},"2e","$AK$144","$AL$144"]
[27089,{"$f":"Menu!$F$29","v":"X"},{"$f":"Menu!$J$29","v":2020},{"$f":"IF(ISBLANK(INDIRECT(\"'\"&F7686&\"'!\"&G7686)),\"\",INDIRECT(\"'\"&F7686&\"'!\"&G7686))","v":""},{"$f":"IF(ISBLANK(INDIRECT(\"'\"&F7686&\"'!\"&H7686)),\"\",IFERROR(VLOOKUP(TEXT(INDIRECT(\"'\"&F7686&\"'!\"&H7686),\"0\"),Notes!$B$5:$C$100,2,FALSE),\"\"))","v":""},"2e","$AO$144","$AP$144"]
[27090,{"$f":"Menu!$F$29","v":"X"},{"$f":"Menu!$J$29","v":2020},{"$f":"IF(ISBLANK(INDIRECT(\"'\"&F7687&\"'!\"&G7687)),\"\",INDIRECT(\"'\"&F7687&\"'!\"&G7687))","v":""},{"$f":"IF(ISBLANK(INDIRECT(\"'\"&F7687&\"'!\"&H7687)),\"\",IFERROR(VLOOKUP(TEXT(INDIRECT(\"'\"&F7687&\"'!\"&H7687),\"0\"),Notes!$B$5:$C$100,2,FALSE),\"\"))","v":""},"2e","$AS$144","$AT$144"]
[27091,{"$f":"Menu!$F$29","v":"X"},{"$f":"Menu!$J$29","v":2020},{"$f":"IF(ISBLANK(INDIRECT(\"'\"&F7688&\"'!\"&G7688)),\"\",INDIRECT(\"'\"&F7688&\"'!\"&G7688))","v":""},{"$f":"IF(ISBLANK(INDIRECT(\"'\"&F7688&\"'!\"&H7688)),\"\",IFERROR(VLOOKUP(TEXT(INDIRECT(\"'\"&F7688&\"'!\"&H7688),\"0\"),Notes!$B$5:$C$100,2,FALSE),\"\"))","v":""},"2e","$AQ$144","$AR$144"]
[27092,{"$f":"Menu!$F$29","v":"X"},{"$f":"Menu!$J$29","v":2020},{"$f":"IF(ISBLANK(INDIRECT(\"'\"&F7689&\"'!\"&G7689)),\"\",INDIRECT(\"'\"&F7689&\"'!\"&G7689))","v":""},{"$f":"IF(ISBLANK(INDIRECT(\"'\"&F7689&\"'!\"&H7689)),\"\",IFERROR(VLOOKUP(TEXT(INDIRECT(\"'\"&F7689&\"'!\"&H7689),\"0\"),Notes!$B$5:$C$100,2,FALSE),\"\"))","v":""},"2e","$AU$144","$AV$144"]
[27093,{"$f":"Menu!$F$29","v":"X"},{"$f":"Menu!$J$29","v":2020},{"$f":"IF(ISBLANK(INDIRECT(\"'\"&F7690&\"'!\"&G7690)),\"\",INDIRECT(\"'\"&F7690&\"'!\"&G7690))","v":""},{"$f":"IF(ISBLANK(INDIRECT(\"'\"&F7690&\"'!\"&H7690)),\"\",IFERROR(VLOOKUP(TEXT(INDIRECT(\"'\"&F7690&\"'!\"&H7690),\"0\"),Notes!$B$5:$C$100,2,FALSE),\"\"))","v":""},"2e","$AY$144","$AZ$144"]
[27094,{"$f":"Menu!$F$29","v":"X"},{"$f":"Menu!$J$29","v":2020},{"$f":"IF(ISBLANK(INDIRECT(\"'\"&F7691&\"'!\"&G7691)),\"\",INDIRECT(\"'\"&F7691&\"'!\"&G7691))","v":""},{"$f":"IF(ISBLANK(INDIRECT(\"'\"&F7691&\"'!\"&H7691)),\"\",IFERROR(VLOOKUP(TEXT(INDIRECT(\"'\"&F7691&\"'!\"&H7691),\"0\"),Notes!$B$5:$C$100,2,FALSE),\"\"))","v":""},"2e","$AW$144","$AX$144"]
[27095,{"$f":"Menu!$F$29","v":"X"},{"$f":"Menu!$J$29","v":2020},{"$f":"IF(ISBLANK(INDIRECT(\"'\"&F7692&\"'!\"&G7692)),\"\",INDIRECT(\"'\"&F7692&\"'!\"&G7692))","v":""},{"$f":"IF(ISBLANK(INDIRECT(\"'\"&F7692&\"'!\"&H7692)),\"\",IFERROR(VLOOKUP(TEXT(INDIRECT(\"'\"&F7692&\"'!\"&H7692),\"0\"),Notes!$B$5:$C$100,2,FALSE),\"\"))","v":""},"2e","$BA$144","$BB$144"]
[27096,{"$f":"Menu!$F$29","v":"X"},{"$f":"Menu!$J$29","v":2020},{"$f":"IF(ISBLANK(INDIRECT(\"'\"&F7693&\"'!\"&G7693)),\"\",INDIRECT(\"'\"&F7693&\"'!\"&G7693))","v":""},{"$f":"IF(ISBLANK(INDIRECT(\"'\"&F7693&\"'!\"&H7693)),\"\",IFERROR(VLOOKUP(TEXT(INDIRECT(\"'\"&F7693&\"'!\"&H7693),\"0\"),Notes!$B$5:$C$100,2,FALSE),\"\"))","v":""},"2e","$BE$144","$BF$144"]
[27097,{"$f":"Menu!$F$29","v":"X"},{"$f":"Menu!$J$29","v":2020},{"$f":"IF(ISBLANK(INDIRECT(\"'\"&F7694&\"'!\"&G7694)),\"\",INDIRECT(\"'\"&F7694&\"'!\"&G7694))","v":""},{"$f":"IF(ISBLANK(INDIRECT(\"'\"&F7694&\"'!\"&H7694)),\"\",IFERROR(VLOOKUP(TEXT(INDIRECT(\"'\"&F7694&\"'!\"&H7694),\"0\"),Notes!$B$5:$C$100,2,FALSE),\"\"))","v":""},"2e","$BC$144","$BD$144"]
[27098,{"$f":"Menu!$F$29","v":"X"},{"$f":"Menu!$J$29","v":2020},{"$f":"IF(ISBLANK(INDIRECT(\"'\"&F7695&\"'!\"&G7695)),\"\",INDIRECT(\"'\"&F7695&\"'!\"&G7695))","v":""},{"$f":"IF(ISBLANK(INDIRECT(\"'\"&F7695&\"'!\"&H7695)),\"\",IFERROR(VLOOKUP(TEXT(INDIRECT(\"'\"&F7695&\"'!\"&H7695),\"0\"),Notes!$B$5:$C$100,2,FALSE),\"\"))","v":""},"2b","$E$143","$F$143"]
[27099,{"$f":"Menu!$F$29","v":"X"},{"$f":"Menu!$J$29","v":2020},{"$f":"IF(ISBLANK(INDIRECT(\"'\"&F7696&\"'!\"&G7696)),\"\",INDIRECT(\"'\"&F7696&\"'!\"&G7696))","v":""},{"$f":"IF(ISBLANK(INDIRECT(\"'\"&F7696&\"'!\"&H7696)),\"\",IFERROR(VLOOKUP(TEXT(INDIRECT(\"'\"&F7696&\"'!\"&H7696),\"0\"),Notes!$B$5:$C$100,2,FALSE),\"\"))","v":""},"2b","$I$143","$J$143"]
[27100,{"$f":"Menu!$F$29","v":"X"},{"$f":"Menu!$J$29","v":2020},{"$f":"IF(ISBLANK(INDIRECT(\"'\"&F7697&\"'!\"&G7697)),\"\",INDIRECT(\"'\"&F7697&\"'!\"&G7697))","v":""},{"$f":"IF(ISBLANK(INDIRECT(\"'\"&F7697&\"'!\"&H7697)),\"\",IFERROR(VLOOKUP(TEXT(INDIRECT(\"'\"&F7697&\"'!\"&H7697),\"0\"),Notes!$B$5:$C$100,2,FALSE),\"\"))","v":""},"2b","$G$143","$H$143"]
[27101,{"$f":"Menu!$F$29","v":"X"},{"$f":"Menu!$J$29","v":2020},{"$f":"IF(ISBLANK(INDIRECT(\"'\"&F7698&\"'!\"&G7698)),\"\",INDIRECT(\"'\"&F7698&\"'!\"&G7698))","v":""},null,"2a","$G$143","$H$143"]
[27102,{"$f":"Menu!$F$29","v":"X"},{"$f":"Menu!$J$29","v":2020},{"$f":"IF(ISBLANK(INDIRECT(\"'\"&F7699&\"'!\"&G7699)),\"\",INDIRECT(\"'\"&F7699&\"'!\"&G7699))","v":""},{"$f":"IF(ISBLANK(INDIRECT(\"'\"&F7699&\"'!\"&H7699)),\"\",IFERROR(VLOOKUP(TEXT(INDIRECT(\"'\"&F7699&\"'!\"&H7699),\"0\"),Notes!$B$5:$C$100,2,FALSE),\"\"))","v":""},"2b","$W$143","$X$143"]
[27103,{"$f":"Menu!$F$29","v":"X"},{"$f":"Menu!$J$29","v":2020},{"$f":"IF(ISBLANK(INDIRECT(\"'\"&F7700&\"'!\"&G7700)),\"\",INDIRECT(\"'\"&F7700&\"'!\"&G7700))","v":""},{"$f":"IF(ISBLANK(INDIRECT(\"'\"&F7700&\"'!\"&H7700)),\"\",IFERROR(VLOOKUP(TEXT(INDIRECT(\"'\"&F7700&\"'!\"&H7700),\"0\"),Notes!$B$5:$C$100,2,FALSE),\"\"))","v":""},"2b","$AA$143","$AB$143"]
[27104,{"$f":"Menu!$F$29","v":"X"},{"$f":"Menu!$J$29","v":2020},{"$f":"IF(ISBLANK(INDIRECT(\"'\"&F7701&\"'!\"&G7701)),\"\",INDIRECT(\"'\"&F7701&\"'!\"&G7701))","v":""},{"$f":"IF(ISBLANK(INDIRECT(\"'\"&F7701&\"'!\"&H7701)),\"\",IFERROR(VLOOKUP(TEXT(INDIRECT(\"'\"&F7701&\"'!\"&H7701),\"0\"),Notes!$B$5:$C$100,2,FALSE),\"\"))","v":""},"2b","$Y$143","$Z$143"]
[27105,{"$f":"Menu!$F$29","v":"X"},{"$f":"Menu!$J$29","v":2020},{"$f":"IF(ISBLANK(INDIRECT(\"'\"&F7702&\"'!\"&G7702)),\"\",INDIRECT(\"'\"&F7702&\"'!\"&G7702))","v":""},{"$f":"IF(ISBLANK(INDIRECT(\"'\"&F7702&\"'!\"&H7702)),\"\",IFERROR(VLOOKUP(TEXT(INDIRECT(\"'\"&F7702&\"'!\"&H7702),\"0\"),Notes!$B$5:$C$100,2,FALSE),\"\"))","v":""},"2d","$AC$143","$AD$143"]
[27106,{"$f":"Menu!$F$29","v":"X"},{"$f":"Menu!$J$29","v":2020},{"$f":"IF(ISBLANK(INDIRECT(\"'\"&F7703&\"'!\"&G7703)),\"\",INDIRECT(\"'\"&F7703&\"'!\"&G7703))","v":""},{"$f":"IF(ISBLANK(INDIRECT(\"'\"&F7703&\"'!\"&H7703)),\"\",IFERROR(VLOOKUP(TEXT(INDIRECT(\"'\"&F7703&\"'!\"&H7703),\"0\"),Notes!$B$5:$C$100,2,FALSE),\"\"))","v":""},"2d","$AG$143","$AH$143"]
[27107,{"$f":"Menu!$F$29","v":"X"},{"$f":"Menu!$J$29","v":2020},{"$f":"IF(ISBLANK(INDIRECT(\"'\"&F7704&\"'!\"&G7704)),\"\",INDIRECT(\"'\"&F7704&\"'!\"&G7704))","v":""},{"$f":"IF(ISBLANK(INDIRECT(\"'\"&F7704&\"'!\"&H7704)),\"\",IFERROR(VLOOKUP(TEXT(INDIRECT(\"'\"&F7704&\"'!\"&H7704),\"0\"),Notes!$B$5:$C$100,2,FALSE),\"\"))","v":""},"2d","$AE$143","$AF$143"]
[27108,{"$f":"Menu!$F$29","v":"X"},{"$f":"Menu!$J$29","v":2020},{"$f":"IF(ISBLANK(INDIRECT(\"'\"&F7705&\"'!\"&G7705)),\"\",INDIRECT(\"'\"&F7705&\"'!\"&G7705))","v":""},{"$f":"IF(ISBLANK(INDIRECT(\"'\"&F7705&\"'!\"&H7705)),\"\",IFERROR(VLOOKUP(TEXT(INDIRECT(\"'\"&F7705&\"'!\"&H7705),\"0\"),Notes!$B$5:$C$100,2,FALSE),\"\"))","v":""},"2d","$W$143","$X$143"]
[27109,{"$f":"Menu!$F$29","v":"X"},{"$f":"Menu!$J$29","v":2020},{"$f":"IF(ISBLANK(INDIRECT(\"'\"&F7706&\"'!\"&G7706)),\"\",INDIRECT(\"'\"&F7706&\"'!\"&G7706))","v":""},{"$f":"IF(ISBLANK(INDIRECT(\"'\"&F7706&\"'!\"&H7706)),\"\",IFERROR(VLOOKUP(TEXT(INDIRECT(\"'\"&F7706&\"'!\"&H7706),\"0\"),Notes!$B$5:$C$100,2,FALSE),\"\"))","v":""},"2d","$AA$143","$AB$143"]
[27110,{"$f":"Menu!$F$29","v":"X"},{"$f":"Menu!$J$29","v":2020},{"$f":"IF(ISBLANK(INDIRECT(\"'\"&F7707&\"'!\"&G7707)),\"\",INDIRECT(\"'\"&F7707&\"'!\"&G7707))","v":""},{"$f":"IF(ISBLANK(INDIRECT(\"'\"&F7707&\"'!\"&H7707)),\"\",IFERROR(VLOOKUP(TEXT(INDIRECT(\"'\"&F7707&\"'!\"&H7707),\"0\"),Notes!$B$5:$C$100,2,FALSE),\"\"))","v":""},"2d","$Y$143","$Z$143"]
[27111,{"$f":"Menu!$F$29","v":"X"},{"$f":"Menu!$J$29","v":2020},{"$f":"IF(ISBLANK(INDIRECT(\"'\"&F7708&\"'!\"&G7708)),\"\",INDIRECT(\"'\"&F7708&\"'!\"&G7708))","v":""},{"$f":"IF(ISBLANK(INDIRECT(\"'\"&F7708&\"'!\"&H7708)),\"\",IFERROR(VLOOKUP(TEXT(INDIRECT(\"'\"&F7708&\"'!\"&H7708),\"0\"),Notes!$B$5:$C$100,2,FALSE),\"\"))","v":""},"2d","$E$143","$F$143"]
[27112,{"$f":"Menu!$F$29","v":"X"},{"$f":"Menu!$J$29","v":2020},{"$f":"IF(ISBLANK(INDIRECT(\"'\"&F7709&\"'!\"&G7709)),\"\",INDIRECT(\"'\"&F7709&\"'!\"&G7709))","v":""},{"$f":"IF(ISBLANK(INDIRECT(\"'\"&F7709&\"'!\"&H7709)),\"\",IFERROR(VLOOKUP(TEXT(INDIRECT(\"'\"&F7709&\"'!\"&H7709),\"0\"),Notes!$B$5:$C$100,2,FALSE),\"\"))","v":""},"2d","$I$143","$J$143"]
[27113,{"$f":"Menu!$F$29","v":"X"},{"$f":"Menu!$J$29","v":2020},{"$f":"IF(ISBLANK(INDIRECT(\"'\"&F7710&\"'!\"&G7710)),\"\",INDIRECT(\"'\"&F7710&\"'!\"&G7710))","v":""},{"$f":"IF(ISBLANK(INDIRECT(\"'\"&F7710&\"'!\"&H7710)),\"\",IFERROR(VLOOKUP(TEXT(INDIRECT(\"'\"&F7710&\"'!\"&H7710),\"0\"),Notes!$B$5:$C$100,2,FALSE),\"\"))","v":""},"2d","$G$143","$H$143"]
[27114,{"$f":"Menu!$F$29","v":"X"},{"$f":"Menu!$J$29","v":2020},{"$f":"IF(ISBLANK(INDIRECT(\"'\"&F7711&\"'!\"&G7711)),\"\",INDIRECT(\"'\"&F7711&\"'!\"&G7711))","v":""},{"$f":"IF(ISBLANK(INDIRECT(\"'\"&F7711&\"'!\"&H7711)),\"\",IFERROR(VLOOKUP(TEXT(INDIRECT(\"'\"&F7711&\"'!\"&H7711),\"0\"),Notes!$B$5:$C$100,2,FALSE),\"\"))","v":""},"2a","$Q$143","$R$143"]
[27115,{"$f":"Menu!$F$29","v":"X"},{"$f":"Menu!$J$29","v":2020},{"$f":"IF(ISBLANK(INDIRECT(\"'\"&F7712&\"'!\"&G7712)),\"\",INDIRECT(\"'\"&F7712&\"'!\"&G7712))","v":""},{"$f":"IF(ISBLANK(INDIRECT(\"'\"&F7712&\"'!\"&H7712)),\"\",IFERROR(VLOOKUP(TEXT(INDIRECT(\"'\"&F7712&\"'!\"&H7712),\"0\"),Notes!$B$5:$C$100,2,FALSE),\"\"))","v":""},"2a","$U$143","$V$143"]
[27116,{"$f":"Menu!$F$29","v":"X"},{"$f":"Menu!$J$29","v":2020},{"$f":"IF(ISBLANK(INDIRECT(\"'\"&F7713&\"'!\"&G7713)),\"\",INDIRECT(\"'\"&F7713&\"'!\"&G7713))","v":""},{"$f":"IF(ISBLANK(INDIRECT(\"'\"&F7713&\"'!\"&H7713)),\"\",IFERROR(VLOOKUP(TEXT(INDIRECT(\"'\"&F7713&\"'!\"&H7713),\"0\"),Notes!$B$5:$C$100,2,FALSE),\"\"))","v":""},"2a","$S$143","$T$143"]
[27117,{"$f":"Menu!$F$29","v":"X"},{"$f":"Menu!$J$29","v":2020},{"$f":"IF(ISBLANK(INDIRECT(\"'\"&F7714&\"'!\"&G7714)),\"\",INDIRECT(\"'\"&F7714&\"'!\"&G7714))","v":""},{"$f":"IF(ISBLANK(INDIRECT(\"'\"&F7714&\"'!\"&H7714)),\"\",IFERROR(VLOOKUP(TEXT(INDIRECT(\"'\"&F7714&\"'!\"&H7714),\"0\"),Notes!$B$5:$C$100,2,FALSE),\"\"))","v":""},"2d","$K$143","$L$143"]
[27118,{"$f":"Menu!$F$29","v":"X"},{"$f":"Menu!$J$29","v":2020},{"$f":"IF(ISBLANK(INDIRECT(\"'\"&F7715&\"'!\"&G7715)),\"\",INDIRECT(\"'\"&F7715&\"'!\"&G7715))","v":""},{"$f":"IF(ISBLANK(INDIRECT(\"'\"&F7715&\"'!\"&H7715)),\"\",IFERROR(VLOOKUP(TEXT(INDIRECT(\"'\"&F7715&\"'!\"&H7715),\"0\"),Notes!$B$5:$C$100,2,FALSE),\"\"))","v":""},"2d","$O$143","$P$143"]
[27119,{"$f":"Menu!$F$29","v":"X"},{"$f":"Menu!$J$29","v":2020},{"$f":"IF(ISBLANK(INDIRECT(\"'\"&F7716&\"'!\"&G7716)),\"\",INDIRECT(\"'\"&F7716&\"'!\"&G7716))","v":""},{"$f":"IF(ISBLANK(INDIRECT(\"'\"&F7716&\"'!\"&H7716)),\"\",IFERROR(VLOOKUP(TEXT(INDIRECT(\"'\"&F7716&\"'!\"&H7716),\"0\"),Notes!$B$5:$C$100,2,FALSE),\"\"))","v":""},"2d","$M$143","$N$143"]
[27120,{"$f":"Menu!$F$29","v":"X"},{"$f":"Menu!$J$29","v":2020},{"$f":"IF(ISBLANK(INDIRECT(\"'\"&F7717&\"'!\"&G7717)),\"\",INDIRECT(\"'\"&F7717&\"'!\"&G7717))","v":""},{"$f":"IF(ISBLANK(INDIRECT(\"'\"&F7717&\"'!\"&H7717)),\"\",IFERROR(VLOOKUP(TEXT(INDIRECT(\"'\"&F7717&\"'!\"&H7717),\"0\"),Notes!$B$5:$C$100,2,FALSE),\"\"))","v":""},"2d","$Q$143","$R$143"]
[27121,{"$f":"Menu!$F$29","v":"X"},{"$f":"Menu!$J$29","v":2020},{"$f":"IF(ISBLANK(INDIRECT(\"'\"&F7718&\"'!\"&G7718)),\"\",INDIRECT(\"'\"&F7718&\"'!\"&G7718))","v":""},{"$f":"IF(ISBLANK(INDIRECT(\"'\"&F7718&\"'!\"&H7718)),\"\",IFERROR(VLOOKUP(TEXT(INDIRECT(\"'\"&F7718&\"'!\"&H7718),\"0\"),Notes!$B$5:$C$100,2,FALSE),\"\"))","v":""},"2d","$U$143","$V$143"]
[27122,{"$f":"Menu!$F$29","v":"X"},{"$f":"Menu!$J$29","v":2020},{"$f":"IF(ISBLANK(INDIRECT(\"'\"&F7719&\"'!\"&G7719)),\"\",INDIRECT(\"'\"&F7719&\"'!\"&G7719))","v":""},{"$f":"IF(ISBLANK(INDIRECT(\"'\"&F7719&\"'!\"&H7719)),\"\",IFERROR(VLOOKUP(TEXT(INDIRECT(\"'\"&F7719&\"'!\"&H7719),\"0\"),Notes!$B$5:$C$100,2,FALSE),\"\"))","v":""},"2d","$S$143","$T$143"]
[27123,{"$f":"Menu!$F$29","v":"X"},{"$f":"Menu!$J$29","v":2020},{"$f":"IF(ISBLANK(INDIRECT(\"'\"&F7720&\"'!\"&G7720)),\"\",INDIRECT(\"'\"&F7720&\"'!\"&G7720))","v":""},{"$f":"IF(ISBLANK(INDIRECT(\"'\"&F7720&\"'!\"&H7720)),\"\",IFERROR(VLOOKUP(TEXT(INDIRECT(\"'\"&F7720&\"'!\"&H7720),\"0\"),Notes!$B$5:$C$100,2,FALSE),\"\"))","v":""},"2a","$K$143","$L$143"]
[27124,{"$f":"Menu!$F$29","v":"X"},{"$f":"Menu!$J$29","v":2020},{"$f":"IF(ISBLANK(INDIRECT(\"'\"&F7721&\"'!\"&G7721)),\"\",INDIRECT(\"'\"&F7721&\"'!\"&G7721))","v":""},{"$f":"IF(ISBLANK(INDIRECT(\"'\"&F7721&\"'!\"&H7721)),\"\",IFERROR(VLOOKUP(TEXT(INDIRECT(\"'\"&F7721&\"'!\"&H7721),\"0\"),Notes!$B$5:$C$100,2,FALSE),\"\"))","v":""},"2a","$O$143","$P$143"]
[27125,{"$f":"Menu!$F$29","v":"X"},{"$f":"Menu!$J$29","v":2020},{"$f":"IF(ISBLANK(INDIRECT(\"'\"&F7722&\"'!\"&G7722)),\"\",INDIRECT(\"'\"&F7722&\"'!\"&G7722))","v":""},{"$f":"IF(ISBLANK(INDIRECT(\"'\"&F7722&\"'!\"&H7722)),\"\",IFERROR(VLOOKUP(TEXT(INDIRECT(\"'\"&F7722&\"'!\"&H7722),\"0\"),Notes!$B$5:$C$100,2,FALSE),\"\"))","v":""},"2a","$M$143","$N$143"]
[27126,{"$f":"Menu!$F$29","v":"X"},{"$f":"Menu!$J$29","v":2020},{"$f":"IF(ISBLANK(INDIRECT(\"'\"&F7723&\"'!\"&G7723)),\"\",INDIRECT(\"'\"&F7723&\"'!\"&G7723))","v":""},{"$f":"IF(ISBLANK(INDIRECT(\"'\"&F7723&\"'!\"&H7723)),\"\",IFERROR(VLOOKUP(TEXT(INDIRECT(\"'\"&F7723&\"'!\"&H7723),\"0\"),Notes!$B$5:$C$100,2,FALSE),\"\"))","v":""},"2a","$E$143","$F$143"]
[27127,{"$f":"Menu!$F$29","v":"X"},{"$f":"Menu!$J$29","v":2020},{"$f":"IF(ISBLANK(INDIRECT(\"'\"&F7724&\"'!\"&G7724)),\"\",INDIRECT(\"'\"&F7724&\"'!\"&G7724))","v":""},{"$f":"IF(ISBLANK(INDIRECT(\"'\"&F7724&\"'!\"&H7724)),\"\",IFERROR(VLOOKUP(TEXT(INDIRECT(\"'\"&F7724&\"'!\"&H7724),\"0\"),Notes!$B$5:$C$100,2,FALSE),\"\"))","v":""},"2b","$K$145","$L$145"]
[27128,{"$f":"Menu!$F$29","v":"X"},{"$f":"Menu!$J$29","v":2020},{"$f":"IF(ISBLANK(INDIRECT(\"'\"&F7725&\"'!\"&G7725)),\"\",INDIRECT(\"'\"&F7725&\"'!\"&G7725))","v":""},{"$f":"IF(ISBLANK(INDIRECT(\"'\"&F7725&\"'!\"&H7725)),\"\",IFERROR(VLOOKUP(TEXT(INDIRECT(\"'\"&F7725&\"'!\"&H7725),\"0\"),Notes!$B$5:$C$100,2,FALSE),\"\"))","v":""},"2b","$O$145","$P$145"]
[27129,{"$f":"Menu!$F$29","v":"X"},{"$f":"Menu!$J$29","v":2020},{"$f":"IF(ISBLANK(INDIRECT(\"'\"&F7726&\"'!\"&G7726)),\"\",INDIRECT(\"'\"&F7726&\"'!\"&G7726))","v":""},{"$f":"IF(ISBLANK(INDIRECT(\"'\"&F7726&\"'!\"&H7726)),\"\",IFERROR(VLOOKUP(TEXT(INDIRECT(\"'\"&F7726&\"'!\"&H7726),\"0\"),Notes!$B$5:$C$100,2,FALSE),\"\"))","v":""},"2b","$M$145","$N$145"]
[27130,{"$f":"Menu!$F$29","v":"X"},{"$f":"Menu!$J$29","v":2020},{"$f":"IF(ISBLANK(INDIRECT(\"'\"&F7727&\"'!\"&G7727)),\"\",INDIRECT(\"'\"&F7727&\"'!\"&G7727))","v":""},{"$f":"IF(ISBLANK(INDIRECT(\"'\"&F7727&\"'!\"&H7727)),\"\",IFERROR(VLOOKUP(TEXT(INDIRECT(\"'\"&F7727&\"'!\"&H7727),\"0\"),Notes!$B$5:$C$100,2,FALSE),\"\"))","v":""},"2b","$Q$145","$R$145"]
[27131,{"$f":"Menu!$F$29","v":"X"},{"$f":"Menu!$J$29","v":2020},{"$f":"IF(ISBLANK(INDIRECT(\"'\"&F7728&\"'!\"&G7728)),\"\",INDIRECT(\"'\"&F7728&\"'!\"&G7728))","v":""},{"$f":"IF(ISBLANK(INDIRECT(\"'\"&F7728&\"'!\"&H7728)),\"\",IFERROR(VLOOKUP(TEXT(INDIRECT(\"'\"&F7728&\"'!\"&H7728),\"0\"),Notes!$B$5:$C$100,2,FALSE),\"\"))","v":""},"2b","$U$145","$V$145"]
[27132,{"$f":"Menu!$F$29","v":"X"},{"$f":"Menu!$J$29","v":2020},{"$f":"IF(ISBLANK(INDIRECT(\"'\"&F7729&\"'!\"&G7729)),\"\",INDIRECT(\"'\"&F7729&\"'!\"&G7729))","v":""},{"$f":"IF(ISBLANK(INDIRECT(\"'\"&F7729&\"'!\"&H7729)),\"\",IFERROR(VLOOKUP(TEXT(INDIRECT(\"'\"&F7729&\"'!\"&H7729),\"0\"),Notes!$B$5:$C$100,2,FALSE),\"\"))","v":""},"2b","$S$145","$T$145"]
[27136,{"$f":"Menu!$F$29","v":"X"},{"$f":"Menu!$J$29","v":2020},{"$f":"IF(ISBLANK(INDIRECT(\"'\"&F7730&\"'!\"&G7730)),\"\",INDIRECT(\"'\"&F7730&\"'!\"&G7730))","v":""},null,"2a","$I$145","$J$145"]
[27137,{"$f":"Menu!$F$29","v":"X"},{"$f":"Menu!$J$29","v":2020},{"$f":"IF(ISBLANK(INDIRECT(\"'\"&F7731&\"'!\"&G7731)),\"\",INDIRECT(\"'\"&F7731&\"'!\"&G7731))","v":""},{"$f":"IF(ISBLANK(INDIRECT(\"'\"&F7731&\"'!\"&H7731)),\"\",IFERROR(VLOOKUP(TEXT(INDIRECT(\"'\"&F7731&\"'!\"&H7731),\"0\"),Notes!$B$5:$C$100,2,FALSE),\"\"))","v":""},"2c","$E$145","$F$145"]
[27138,{"$f":"Menu!$F$29","v":"X"},{"$f":"Menu!$J$29","v":2020},{"$f":"IF(ISBLANK(INDIRECT(\"'\"&F7732&\"'!\"&G7732)),\"\",INDIRECT(\"'\"&F7732&\"'!\"&G7732))","v":""},{"$f":"IF(ISBLANK(INDIRECT(\"'\"&F7732&\"'!\"&H7732)),\"\",IFERROR(VLOOKUP(TEXT(INDIRECT(\"'\"&F7732&\"'!\"&H7732),\"0\"),Notes!$B$5:$C$100,2,FALSE),\"\"))","v":""},"2c","$I$145","$J$145"]
[27139,{"$f":"Menu!$F$29","v":"X"},{"$f":"Menu!$J$29","v":2020},{"$f":"IF(ISBLANK(INDIRECT(\"'\"&F7733&\"'!\"&G7733)),\"\",INDIRECT(\"'\"&F7733&\"'!\"&G7733))","v":""},{"$f":"IF(ISBLANK(INDIRECT(\"'\"&F7733&\"'!\"&H7733)),\"\",IFERROR(VLOOKUP(TEXT(INDIRECT(\"'\"&F7733&\"'!\"&H7733),\"0\"),Notes!$B$5:$C$100,2,FALSE),\"\"))","v":""},"2c","$G$145","$H$145"]
[27143,{"$f":"Menu!$F$29","v":"X"},{"$f":"Menu!$J$29","v":2020},{"$f":"IF(ISBLANK(INDIRECT(\"'\"&F7734&\"'!\"&G7734)),\"\",INDIRECT(\"'\"&F7734&\"'!\"&G7734))","v":""},{"$f":"IF(ISBLANK(INDIRECT(\"'\"&F7734&\"'!\"&H7734)),\"\",IFERROR(VLOOKUP(TEXT(INDIRECT(\"'\"&F7734&\"'!\"&H7734),\"0\"),Notes!$B$5:$C$100,2,FALSE),\"\"))","v":""},"2c","$K$145","$L$145"]
[27144,{"$f":"Menu!$F$29","v":"X"},{"$f":"Menu!$J$29","v":2020},{"$f":"IF(ISBLANK(INDIRECT(\"'\"&F7735&\"'!\"&G7735)),\"\",INDIRECT(\"'\"&F7735&\"'!\"&G7735))","v":""},{"$f":"IF(ISBLANK(INDIRECT(\"'\"&F7735&\"'!\"&H7735)),\"\",IFERROR(VLOOKUP(TEXT(INDIRECT(\"'\"&F7735&\"'!\"&H7735),\"0\"),Notes!$B$5:$C$100,2,FALSE),\"\"))","v":""},"2c","$O$145","$P$145"]
[27145,{"$f":"Menu!$F$29","v":"X"},{"$f":"Menu!$J$29","v":2020},{"$f":"IF(ISBLANK(INDIRECT(\"'\"&F7736&\"'!\"&G7736)),\"\",INDIRECT(\"'\"&F7736&\"'!\"&G7736))","v":""},{"$f":"IF(ISBLANK(INDIRECT(\"'\"&F7736&\"'!\"&H7736)),\"\",IFERROR(VLOOKUP(TEXT(INDIRECT(\"'\"&F7736&\"'!\"&H7736),\"0\"),Notes!$B$5:$C$100,2,FALSE),\"\"))","v":""},"2c","$M$145","$N$145"]
[27146,{"$f":"Menu!$F$29","v":"X"},{"$f":"Menu!$J$29","v":2020},{"$f":"IF(ISBLANK(INDIRECT(\"'\"&F7737&\"'!\"&G7737)),\"\",INDIRECT(\"'\"&F7737&\"'!\"&G7737))","v":""},{"$f":"IF(ISBLANK(INDIRECT(\"'\"&F7737&\"'!\"&H7737)),\"\",IFERROR(VLOOKUP(TEXT(INDIRECT(\"'\"&F7737&\"'!\"&H7737),\"0\"),Notes!$B$5:$C$100,2,FALSE),\"\"))","v":""},"2c","$Q$145","$R$145"]
[27147,{"$f":"Menu!$F$29","v":"X"},{"$f":"Menu!$J$29","v":2020},{"$f":"IF(ISBLANK(INDIRECT(\"'\"&F7738&\"'!\"&G7738)),\"\",INDIRECT(\"'\"&F7738&\"'!\"&G7738))","v":""},{"$f":"IF(ISBLANK(INDIRECT(\"'\"&F7738&\"'!\"&H7738)),\"\",IFERROR(VLOOKUP(TEXT(INDIRECT(\"'\"&F7738&\"'!\"&H7738),\"0\"),Notes!$B$5:$C$100,2,FALSE),\"\"))","v":""},"2c","$U$145","$V$145"]
[27148,{"$f":"Menu!$F$29","v":"X"},{"$f":"Menu!$J$29","v":2020},{"$f":"IF(ISBLANK(INDIRECT(\"'\"&F7739&\"'!\"&G7739)),\"\",INDIRECT(\"'\"&F7739&\"'!\"&G7739))","v":""},{"$f":"IF(ISBLANK(INDIRECT(\"'\"&F7739&\"'!\"&H7739)),\"\",IFERROR(VLOOKUP(TEXT(INDIRECT(\"'\"&F7739&\"'!\"&H7739),\"0\"),Notes!$B$5:$C$100,2,FALSE),\"\"))","v":""},"2c","$S$145","$T$145"]
[27149,{"$f":"Menu!$F$29","v":"X"},{"$f":"Menu!$J$29","v":2020},{"$f":"IF(ISBLANK(INDIRECT(\"'\"&F7740&\"'!\"&G7740)),\"\",INDIRECT(\"'\"&F7740&\"'!\"&G7740))","v":""},{"$f":"IF(ISBLANK(INDIRECT(\"'\"&F7740&\"'!\"&H7740)),\"\",IFERROR(VLOOKUP(TEXT(INDIRECT(\"'\"&F7740&\"'!\"&H7740),\"0\"),Notes!$B$5:$C$100,2,FALSE),\"\"))","v":""},"2c","$W$145","$X$145"]
[27150,{"$f":"Menu!$F$29","v":"X"},{"$f":"Menu!$J$29","v":2020},{"$f":"IF(ISBLANK(INDIRECT(\"'\"&F7741&\"'!\"&G7741)),\"\",INDIRECT(\"'\"&F7741&\"'!\"&G7741))","v":""},{"$f":"IF(ISBLANK(INDIRECT(\"'\"&F7741&\"'!\"&H7741)),\"\",IFERROR(VLOOKUP(TEXT(INDIRECT(\"'\"&F7741&\"'!\"&H7741),\"0\"),Notes!$B$5:$C$100,2,FALSE),\"\"))","v":""},"2c","$AA$145","$AB$145"]
[27151,{"$f":"Menu!$F$29","v":"X"},{"$f":"Menu!$J$29","v":2020},{"$f":"IF(ISBLANK(INDIRECT(\"'\"&F7742&\"'!\"&G7742)),\"\",INDIRECT(\"'\"&F7742&\"'!\"&G7742))","v":""},{"$f":"IF(ISBLANK(INDIRECT(\"'\"&F7742&\"'!\"&H7742)),\"\",IFERROR(VLOOKUP(TEXT(INDIRECT(\"'\"&F7742&\"'!\"&H7742),\"0\"),Notes!$B$5:$C$100,2,FALSE),\"\"))","v":""},"2c","$Y$145","$Z$145"]
[27158,{"$f":"Menu!$F$29","v":"X"},{"$f":"Menu!$J$29","v":2020},{"$f":"IF(ISBLANK(INDIRECT(\"'\"&F7743&\"'!\"&G7743)),\"\",INDIRECT(\"'\"&F7743&\"'!\"&G7743))","v":""},{"$f":"IF(ISBLANK(INDIRECT(\"'\"&F7743&\"'!\"&H7743)),\"\",IFERROR(VLOOKUP(TEXT(INDIRECT(\"'\"&F7743&\"'!\"&H7743),\"0\"),Notes!$B$5:$C$100,2,FALSE),\"\"))","v":""},"2e","$BG$146","$BH$146"]
[27159,{"$f":"Menu!$F$29","v":"X"},{"$f":"Menu!$J$29","v":2020},{"$f":"IF(ISBLANK(INDIRECT(\"'\"&F7744&\"'!\"&G7744)),\"\",INDIRECT(\"'\"&F7744&\"'!\"&G7744))","v":""},{"$f":"IF(ISBLANK(INDIRECT(\"'\"&F7744&\"'!\"&H7744)),\"\",IFERROR(VLOOKUP(TEXT(INDIRECT(\"'\"&F7744&\"'!\"&H7744),\"0\"),Notes!$B$5:$C$100,2,FALSE),\"\"))","v":""},"2e","$BK$146","$BL$146"]
[27160,{"$f":"Menu!$F$29","v":"X"},{"$f":"Menu!$J$29","v":2020},{"$f":"IF(ISBLANK(INDIRECT(\"'\"&F7745&\"'!\"&G7745)),\"\",INDIRECT(\"'\"&F7745&\"'!\"&G7745))","v":""},{"$f":"IF(ISBLANK(INDIRECT(\"'\"&F7745&\"'!\"&H7745)),\"\",IFERROR(VLOOKUP(TEXT(INDIRECT(\"'\"&F7745&\"'!\"&H7745),\"0\"),Notes!$B$5:$C$100,2,FALSE),\"\"))","v":""},"2e","$BI$146","$BJ$146"]
[27161,{"$f":"Menu!$F$29","v":"X"},{"$f":"Menu!$J$29","v":2020},{"$f":"IF(ISBLANK(INDIRECT(\"'\"&F7746&\"'!\"&G7746)),\"\",INDIRECT(\"'\"&F7746&\"'!\"&G7746))","v":""},{"$f":"IF(ISBLANK(INDIRECT(\"'\"&F7746&\"'!\"&H7746)),\"\",IFERROR(VLOOKUP(TEXT(INDIRECT(\"'\"&F7746&\"'!\"&H7746),\"0\"),Notes!$B$5:$C$100,2,FALSE),\"\"))","v":""},"2e","$E$146",{"$f":"IF(LEN(TRIM(MID(G7746,4,10)))-LEN(SUBSTITUTE(TRIM(MID(G7746,4,10)),\"$\",\"\"))=0,\"$\"&CHAR(CODE(MID(G7746,2,1))+1)&\"$\"&TRIM(MID(G7746,4,10)),\"$\"&MID(G7746,2,1)&CHAR(CODE(MID(G7746,3,1))+1)&\"$\"&TRIM(MID(G7746,5,11)))","v":"$F$146"}]
[27162,{"$f":"Menu!$F$29","v":"X"},{"$f":"Menu!$J$29","v":2020},{"$f":"IF(ISBLANK(INDIRECT(\"'\"&F7747&\"'!\"&G7747)),\"\",INDIRECT(\"'\"&F7747&\"'!\"&G7747))","v":""},{"$f":"IF(ISBLANK(INDIRECT(\"'\"&F7747&\"'!\"&H7747)),\"\",IFERROR(VLOOKUP(TEXT(INDIRECT(\"'\"&F7747&\"'!\"&H7747),\"0\"),Notes!$B$5:$C$100,2,FALSE),\"\"))","v":""},"2e","$I$146","$J$146"]
[27163,{"$f":"Menu!$F$29","v":"X"},{"$f":"Menu!$J$29","v":2020},{"$f":"IF(ISBLANK(INDIRECT(\"'\"&F7748&\"'!\"&G7748)),\"\",INDIRECT(\"'\"&F7748&\"'!\"&G7748))","v":""},{"$f":"IF(ISBLANK(INDIRECT(\"'\"&F7748&\"'!\"&H7748)),\"\",IFERROR(VLOOKUP(TEXT(INDIRECT(\"'\"&F7748&\"'!\"&H7748),\"0\"),Notes!$B$5:$C$100,2,FALSE),\"\"))","v":""},"2e","$G$146","$H$146"]
[27164,{"$f":"Menu!$F$29","v":"X"},{"$f":"Menu!$J$29","v":2020},{"$f":"IF(ISBLANK(INDIRECT(\"'\"&F7749&\"'!\"&G7749)),\"\",INDIRECT(\"'\"&F7749&\"'!\"&G7749))","v":""},{"$f":"IF(ISBLANK(INDIRECT(\"'\"&F7749&\"'!\"&H7749)),\"\",IFERROR(VLOOKUP(TEXT(INDIRECT(\"'\"&F7749&\"'!\"&H7749),\"0\"),Notes!$B$5:$C$100,2,FALSE),\"\"))","v":""},"2e","$K$146","$L$146"]
[27165,{"$f":"Menu!$F$29","v":"X"},{"$f":"Menu!$J$29","v":2020},{"$f":"IF(ISBLANK(INDIRECT(\"'\"&F7750&\"'!\"&G7750)),\"\",INDIRECT(\"'\"&F7750&\"'!\"&G7750))","v":""},{"$f":"IF(ISBLANK(INDIRECT(\"'\"&F7750&\"'!\"&H7750)),\"\",IFERROR(VLOOKUP(TEXT(INDIRECT(\"'\"&F7750&\"'!\"&H7750),\"0\"),Notes!$B$5:$C$100,2,FALSE),\"\"))","v":""},"2e","$O$146","$P$146"]
[27166,{"$f":"Menu!$F$29","v":"X"},{"$f":"Menu!$J$29","v":2020},{"$f":"IF(ISBLANK(INDIRECT(\"'\"&F7751&\"'!\"&G7751)),\"\",INDIRECT(\"'\"&F7751&\"'!\"&G7751))","v":""},{"$f":"IF(ISBLANK(INDIRECT(\"'\"&F7751&\"'!\"&H7751)),\"\",IFERROR(VLOOKUP(TEXT(INDIRECT(\"'\"&F7751&\"'!\"&H7751),\"0\"),Notes!$B$5:$C$100,2,FALSE),\"\"))","v":""},"2e","$M$146","$N$146"]
[27167,{"$f":"Menu!$F$29","v":"X"},{"$f":"Menu!$J$29","v":2020},{"$f":"IF(ISBLANK(INDIRECT(\"'\"&F7752&\"'!\"&G7752)),\"\",INDIRECT(\"'\"&F7752&\"'!\"&G7752))","v":""},{"$f":"IF(ISBLANK(INDIRECT(\"'\"&F7752&\"'!\"&H7752)),\"\",IFERROR(VLOOKUP(TEXT(INDIRECT(\"'\"&F7752&\"'!\"&H7752),\"0\"),Notes!$B$5:$C$100,2,FALSE),\"\"))","v":""},"2e","$Q$146","$R$146"]
[27168,{"$f":"Menu!$F$29","v":"X"},{"$f":"Menu!$J$29","v":2020},{"$f":"IF(ISBLANK(INDIRECT(\"'\"&F7753&\"'!\"&G7753)),\"\",INDIRECT(\"'\"&F7753&\"'!\"&G7753))","v":""},{"$f":"IF(ISBLANK(INDIRECT(\"'\"&F7753&\"'!\"&H7753)),\"\",IFERROR(VLOOKUP(TEXT(INDIRECT(\"'\"&F7753&\"'!\"&H7753),\"0\"),Notes!$B$5:$C$100,2,FALSE),\"\"))","v":""},"2e","$U$146","$V$146"]
[27169,{"$f":"Menu!$F$29","v":"X"},{"$f":"Menu!$J$29","v":2020},{"$f":"IF(ISBLANK(INDIRECT(\"'\"&F7754&\"'!\"&G7754)),\"\",INDIRECT(\"'\"&F7754&\"'!\"&G7754))","v":""},{"$f":"IF(ISBLANK(INDIRECT(\"'\"&F7754&\"'!\"&H7754)),\"\",IFERROR(VLOOKUP(TEXT(INDIRECT(\"'\"&F7754&\"'!\"&H7754),\"0\"),Notes!$B$5:$C$100,2,FALSE),\"\"))","v":""},"2e","$S$146","$T$146"]
[27170,{"$f":"Menu!$F$29","v":"X"},{"$f":"Menu!$J$29","v":2020},{"$f":"IF(ISBLANK(INDIRECT(\"'\"&F7755&\"'!\"&G7755)),\"\",INDIRECT(\"'\"&F7755&\"'!\"&G7755))","v":""},{"$f":"IF(ISBLANK(INDIRECT(\"'\"&F7755&\"'!\"&H7755)),\"\",IFERROR(VLOOKUP(TEXT(INDIRECT(\"'\"&F7755&\"'!\"&H7755),\"0\"),Notes!$B$5:$C$100,2,FALSE),\"\"))","v":""},"2e","$W$146","$X$146"]
[27171,{"$f":"Menu!$F$29","v":"X"},{"$f":"Menu!$J$29","v":2020},{"$f":"IF(ISBLANK(INDIRECT(\"'\"&F7756&\"'!\"&G7756)),\"\",INDIRECT(\"'\"&F7756&\"'!\"&G7756))","v":""},{"$f":"IF(ISBLANK(INDIRECT(\"'\"&F7756&\"'!\"&H7756)),\"\",IFERROR(VLOOKUP(TEXT(INDIRECT(\"'\"&F7756&\"'!\"&H7756),\"0\"),Notes!$B$5:$C$100,2,FALSE),\"\"))","v":""},"2e","$AA$146","$AB$146"]
[27172,{"$f":"Menu!$F$29","v":"X"},{"$f":"Menu!$J$29","v":2020},{"$f":"IF(ISBLANK(INDIRECT(\"'\"&F7757&\"'!\"&G7757)),\"\",INDIRECT(\"'\"&F7757&\"'!\"&G7757))","v":""},{"$f":"IF(ISBLANK(INDIRECT(\"'\"&F7757&\"'!\"&H7757)),\"\",IFERROR(VLOOKUP(TEXT(INDIRECT(\"'\"&F7757&\"'!\"&H7757),\"0\"),Notes!$B$5:$C$100,2,FALSE),\"\"))","v":""},"2e","$Y$146","$Z$146"]
[27173,{"$f":"Menu!$F$29","v":"X"},{"$f":"Menu!$J$29","v":2020},{"$f":"IF(ISBLANK(INDIRECT(\"'\"&F7758&\"'!\"&G7758)),\"\",INDIRECT(\"'\"&F7758&\"'!\"&G7758))","v":""},{"$f":"IF(ISBLANK(INDIRECT(\"'\"&F7758&\"'!\"&H7758)),\"\",IFERROR(VLOOKUP(TEXT(INDIRECT(\"'\"&F7758&\"'!\"&H7758),\"0\"),Notes!$B$5:$C$100,2,FALSE),\"\"))","v":""},"2e","$AC$146","$AD$146"]
[27174,{"$f":"Menu!$F$29","v":"X"},{"$f":"Menu!$J$29","v":2020},{"$f":"IF(ISBLANK(INDIRECT(\"'\"&F7759&\"'!\"&G7759)),\"\",INDIRECT(\"'\"&F7759&\"'!\"&G7759))","v":""},{"$f":"IF(ISBLANK(INDIRECT(\"'\"&F7759&\"'!\"&H7759)),\"\",IFERROR(VLOOKUP(TEXT(INDIRECT(\"'\"&F7759&\"'!\"&H7759),\"0\"),Notes!$B$5:$C$100,2,FALSE),\"\"))","v":""},"2e","$AG$146","$AH$146"]
[27175,{"$f":"Menu!$F$29","v":"X"},{"$f":"Menu!$J$29","v":2020},{"$f":"IF(ISBLANK(INDIRECT(\"'\"&F7760&\"'!\"&G7760)),\"\",INDIRECT(\"'\"&F7760&\"'!\"&G7760))","v":""},{"$f":"IF(ISBLANK(INDIRECT(\"'\"&F7760&\"'!\"&H7760)),\"\",IFERROR(VLOOKUP(TEXT(INDIRECT(\"'\"&F7760&\"'!\"&H7760),\"0\"),Notes!$B$5:$C$100,2,FALSE),\"\"))","v":""},"2e","$AE$146","$AF$146"]
[27176,{"$f":"Menu!$F$29","v":"X"},{"$f":"Menu!$J$29","v":2020},{"$f":"IF(ISBLANK(INDIRECT(\"'\"&F7761&\"'!\"&G7761)),\"\",INDIRECT(\"'\"&F7761&\"'!\"&G7761))","v":""},{"$f":"IF(ISBLANK(INDIRECT(\"'\"&F7761&\"'!\"&H7761)),\"\",IFERROR(VLOOKUP(TEXT(INDIRECT(\"'\"&F7761&\"'!\"&H7761),\"0\"),Notes!$B$5:$C$100,2,FALSE),\"\"))","v":""},"2e","$AI$146","$AJ$146"]
[27177,{"$f":"Menu!$F$29","v":"X"},{"$f":"Menu!$J$29","v":2020},{"$f":"IF(ISBLANK(INDIRECT(\"'\"&F7762&\"'!\"&G7762)),\"\",INDIRECT(\"'\"&F7762&\"'!\"&G7762))","v":""},{"$f":"IF(ISBLANK(INDIRECT(\"'\"&F7762&\"'!\"&H7762)),\"\",IFERROR(VLOOKUP(TEXT(INDIRECT(\"'\"&F7762&\"'!\"&H7762),\"0\"),Notes!$B$5:$C$100,2,FALSE),\"\"))","v":""},"2e","$AM$146","$AN$146"]
[27178,{"$f":"Menu!$F$29","v":"X"},{"$f":"Menu!$J$29","v":2020},{"$f":"IF(ISBLANK(INDIRECT(\"'\"&F7763&\"'!\"&G7763)),\"\",INDIRECT(\"'\"&F7763&\"'!\"&G7763))","v":""},{"$f":"IF(ISBLANK(INDIRECT(\"'\"&F7763&\"'!\"&H7763)),\"\",IFERROR(VLOOKUP(TEXT(INDIRECT(\"'\"&F7763&\"'!\"&H7763),\"0\"),Notes!$B$5:$C$100,2,FALSE),\"\"))","v":""},"2e","$AK$146","$AL$146"]
[27179,{"$f":"Menu!$F$29","v":"X"},{"$f":"Menu!$J$29","v":2020},{"$f":"IF(ISBLANK(INDIRECT(\"'\"&F7764&\"'!\"&G7764)),\"\",INDIRECT(\"'\"&F7764&\"'!\"&G7764))","v":""},{"$f":"IF(ISBLANK(INDIRECT(\"'\"&F7764&\"'!\"&H7764)),\"\",IFERROR(VLOOKUP(TEXT(INDIRECT(\"'\"&F7764&\"'!\"&H7764),\"0\"),Notes!$B$5:$C$100,2,FALSE),\"\"))","v":""},"2e","$AO$146","$AP$146"]
[27180,{"$f":"Menu!$F$29","v":"X"},{"$f":"Menu!$J$29","v":2020},{"$f":"IF(ISBLANK(INDIRECT(\"'\"&F7765&\"'!\"&G7765)),\"\",INDIRECT(\"'\"&F7765&\"'!\"&G7765))","v":""},{"$f":"IF(ISBLANK(INDIRECT(\"'\"&F7765&\"'!\"&H7765)),\"\",IFERROR(VLOOKUP(TEXT(INDIRECT(\"'\"&F7765&\"'!\"&H7765),\"0\"),Notes!$B$5:$C$100,2,FALSE),\"\"))","v":""},"2e","$AS$146","$AT$146"]
[27181,{"$f":"Menu!$F$29","v":"X"},{"$f":"Menu!$J$29","v":2020},{"$f":"IF(ISBLANK(INDIRECT(\"'\"&F7766&\"'!\"&G7766)),\"\",INDIRECT(\"'\"&F7766&\"'!\"&G7766))","v":""},{"$f":"IF(ISBLANK(INDIRECT(\"'\"&F7766&\"'!\"&H7766)),\"\",IFERROR(VLOOKUP(TEXT(INDIRECT(\"'\"&F7766&\"'!\"&H7766),\"0\"),Notes!$B$5:$C$100,2,FALSE),\"\"))","v":""},"2e","$AQ$146","$AR$146"]
[27182,{"$f":"Menu!$F$29","v":"X"},{"$f":"Menu!$J$29","v":2020},{"$f":"IF(ISBLANK(INDIRECT(\"'\"&F7767&\"'!\"&G7767)),\"\",INDIRECT(\"'\"&F7767&\"'!\"&G7767))","v":""},{"$f":"IF(ISBLANK(INDIRECT(\"'\"&F7767&\"'!\"&H7767)),\"\",IFERROR(VLOOKUP(TEXT(INDIRECT(\"'\"&F7767&\"'!\"&H7767),\"0\"),Notes!$B$5:$C$100,2,FALSE),\"\"))","v":""},"2e","$AU$146","$AV$146"]
[27183,{"$f":"Menu!$F$29","v":"X"},{"$f":"Menu!$J$29","v":2020},{"$f":"IF(ISBLANK(INDIRECT(\"'\"&F7768&\"'!\"&G7768)),\"\",INDIRECT(\"'\"&F7768&\"'!\"&G7768))","v":""},{"$f":"IF(ISBLANK(INDIRECT(\"'\"&F7768&\"'!\"&H7768)),\"\",IFERROR(VLOOKUP(TEXT(INDIRECT(\"'\"&F7768&\"'!\"&H7768),\"0\"),Notes!$B$5:$C$100,2,FALSE),\"\"))","v":""},"2e","$AY$146","$AZ$146"]
[27184,{"$f":"Menu!$F$29","v":"X"},{"$f":"Menu!$J$29","v":2020},{"$f":"IF(ISBLANK(INDIRECT(\"'\"&F7769&\"'!\"&G7769)),\"\",INDIRECT(\"'\"&F7769&\"'!\"&G7769))","v":""},{"$f":"IF(ISBLANK(INDIRECT(\"'\"&F7769&\"'!\"&H7769)),\"\",IFERROR(VLOOKUP(TEXT(INDIRECT(\"'\"&F7769&\"'!\"&H7769),\"0\"),Notes!$B$5:$C$100,2,FALSE),\"\"))","v":""},"2e","$AW$146","$AX$146"]
[27185,{"$f":"Menu!$F$29","v":"X"},{"$f":"Menu!$J$29","v":2020},{"$f":"IF(ISBLANK(INDIRECT(\"'\"&F7770&\"'!\"&G7770)),\"\",INDIRECT(\"'\"&F7770&\"'!\"&G7770))","v":""},{"$f":"IF(ISBLANK(INDIRECT(\"'\"&F7770&\"'!\"&H7770)),\"\",IFERROR(VLOOKUP(TEXT(INDIRECT(\"'\"&F7770&\"'!\"&H7770),\"0\"),Notes!$B$5:$C$100,2,FALSE),\"\"))","v":""},"2e","$BA$146","$BB$146"]
[27186,{"$f":"Menu!$F$29","v":"X"},{"$f":"Menu!$J$29","v":2020},{"$f":"IF(ISBLANK(INDIRECT(\"'\"&F7771&\"'!\"&G7771)),\"\",INDIRECT(\"'\"&F7771&\"'!\"&G7771))","v":""},{"$f":"IF(ISBLANK(INDIRECT(\"'\"&F7771&\"'!\"&H7771)),\"\",IFERROR(VLOOKUP(TEXT(INDIRECT(\"'\"&F7771&\"'!\"&H7771),\"0\"),Notes!$B$5:$C$100,2,FALSE),\"\"))","v":""},"2e","$BE$146","$BF$146"]
[27187,{"$f":"Menu!$F$29","v":"X"},{"$f":"Menu!$J$29","v":2020},{"$f":"IF(ISBLANK(INDIRECT(\"'\"&F7772&\"'!\"&G7772)),\"\",INDIRECT(\"'\"&F7772&\"'!\"&G7772))","v":""},{"$f":"IF(ISBLANK(INDIRECT(\"'\"&F7772&\"'!\"&H7772)),\"\",IFERROR(VLOOKUP(TEXT(INDIRECT(\"'\"&F7772&\"'!\"&H7772),\"0\"),Notes!$B$5:$C$100,2,FALSE),\"\"))","v":""},"2e","$BC$146","$BD$146"]
[27188,{"$f":"Menu!$F$29","v":"X"},{"$f":"Menu!$J$29","v":2020},{"$f":"IF(ISBLANK(INDIRECT(\"'\"&F7773&\"'!\"&G7773)),\"\",INDIRECT(\"'\"&F7773&\"'!\"&G7773))","v":""},{"$f":"IF(ISBLANK(INDIRECT(\"'\"&F7773&\"'!\"&H7773)),\"\",IFERROR(VLOOKUP(TEXT(INDIRECT(\"'\"&F7773&\"'!\"&H7773),\"0\"),Notes!$B$5:$C$100,2,FALSE),\"\"))","v":""},"2b","$E$145","$F$145"]
[27189,{"$f":"Menu!$F$29","v":"X"},{"$f":"Menu!$J$29","v":2020},{"$f":"IF(ISBLANK(INDIRECT(\"'\"&F7774&\"'!\"&G7774)),\"\",INDIRECT(\"'\"&F7774&\"'!\"&G7774))","v":""},{"$f":"IF(ISBLANK(INDIRECT(\"'\"&F7774&\"'!\"&H7774)),\"\",IFERROR(VLOOKUP(TEXT(INDIRECT(\"'\"&F7774&\"'!\"&H7774),\"0\"),Notes!$B$5:$C$100,2,FALSE),\"\"))","v":""},"2b","$I$145","$J$145"]
[27190,{"$f":"Menu!$F$29","v":"X"},{"$f":"Menu!$J$29","v":2020},{"$f":"IF(ISBLANK(INDIRECT(\"'\"&F7775&\"'!\"&G7775)),\"\",INDIRECT(\"'\"&F7775&\"'!\"&G7775))","v":""},{"$f":"IF(ISBLANK(INDIRECT(\"'\"&F7775&\"'!\"&H7775)),\"\",IFERROR(VLOOKUP(TEXT(INDIRECT(\"'\"&F7775&\"'!\"&H7775),\"0\"),Notes!$B$5:$C$100,2,FALSE),\"\"))","v":""},"2b","$G$145","$H$145"]
[27191,{"$f":"Menu!$F$29","v":"X"},{"$f":"Menu!$J$29","v":2020},{"$f":"IF(ISBLANK(INDIRECT(\"'\"&F7776&\"'!\"&G7776)),\"\",INDIRECT(\"'\"&F7776&\"'!\"&G7776))","v":""},null,"2a","$G$145","$H$145"]
[27192,{"$f":"Menu!$F$29","v":"X"},{"$f":"Menu!$J$29","v":2020},{"$f":"IF(ISBLANK(INDIRECT(\"'\"&F7777&\"'!\"&G7777)),\"\",INDIRECT(\"'\"&F7777&\"'!\"&G7777))","v":""},{"$f":"IF(ISBLANK(INDIRECT(\"'\"&F7777&\"'!\"&H7777)),\"\",IFERROR(VLOOKUP(TEXT(INDIRECT(\"'\"&F7777&\"'!\"&H7777),\"0\"),Notes!$B$5:$C$100,2,FALSE),\"\"))","v":""},"2b","$W$145","$X$145"]
[27193,{"$f":"Menu!$F$29","v":"X"},{"$f":"Menu!$J$29","v":2020},{"$f":"IF(ISBLANK(INDIRECT(\"'\"&F7778&\"'!\"&G7778)),\"\",INDIRECT(\"'\"&F7778&\"'!\"&G7778))","v":""},{"$f":"IF(ISBLANK(INDIRECT(\"'\"&F7778&\"'!\"&H7778)),\"\",IFERROR(VLOOKUP(TEXT(INDIRECT(\"'\"&F7778&\"'!\"&H7778),\"0\"),Notes!$B$5:$C$100,2,FALSE),\"\"))","v":""},"2b","$AA$145","$AB$145"]
[27194,{"$f":"Menu!$F$29","v":"X"},{"$f":"Menu!$J$29","v":2020},{"$f":"IF(ISBLANK(INDIRECT(\"'\"&F7779&\"'!\"&G7779)),\"\",INDIRECT(\"'\"&F7779&\"'!\"&G7779))","v":""},{"$f":"IF(ISBLANK(INDIRECT(\"'\"&F7779&\"'!\"&H7779)),\"\",IFERROR(VLOOKUP(TEXT(INDIRECT(\"'\"&F7779&\"'!\"&H7779),\"0\"),Notes!$B$5:$C$100,2,FALSE),\"\"))","v":""},"2b","$Y$145","$Z$145"]
[27195,{"$f":"Menu!$F$29","v":"X"},{"$f":"Menu!$J$29","v":2020},{"$f":"IF(ISBLANK(INDIRECT(\"'\"&F7780&\"'!\"&G7780)),\"\",INDIRECT(\"'\"&F7780&\"'!\"&G7780))","v":""},{"$f":"IF(ISBLANK(INDIRECT(\"'\"&F7780&\"'!\"&H7780)),\"\",IFERROR(VLOOKUP(TEXT(INDIRECT(\"'\"&F7780&\"'!\"&H7780),\"0\"),Notes!$B$5:$C$100,2,FALSE),\"\"))","v":""},"2d","$AC$145","$AD$145"]
[27196,{"$f":"Menu!$F$29","v":"X"},{"$f":"Menu!$J$29","v":2020},{"$f":"IF(ISBLANK(INDIRECT(\"'\"&F7781&\"'!\"&G7781)),\"\",INDIRECT(\"'\"&F7781&\"'!\"&G7781))","v":""},{"$f":"IF(ISBLANK(INDIRECT(\"'\"&F7781&\"'!\"&H7781)),\"\",IFERROR(VLOOKUP(TEXT(INDIRECT(\"'\"&F7781&\"'!\"&H7781),\"0\"),Notes!$B$5:$C$100,2,FALSE),\"\"))","v":""},"2d","$AG$145","$AH$145"]
[27197,{"$f":"Menu!$F$29","v":"X"},{"$f":"Menu!$J$29","v":2020},{"$f":"IF(ISBLANK(INDIRECT(\"'\"&F7782&\"'!\"&G7782)),\"\",INDIRECT(\"'\"&F7782&\"'!\"&G7782))","v":""},{"$f":"IF(ISBLANK(INDIRECT(\"'\"&F7782&\"'!\"&H7782)),\"\",IFERROR(VLOOKUP(TEXT(INDIRECT(\"'\"&F7782&\"'!\"&H7782),\"0\"),Notes!$B$5:$C$100,2,FALSE),\"\"))","v":""},"2d","$AE$145","$AF$145"]
[27198,{"$f":"Menu!$F$29","v":"X"},{"$f":"Menu!$J$29","v":2020},{"$f":"IF(ISBLANK(INDIRECT(\"'\"&F7783&\"'!\"&G7783)),\"\",INDIRECT(\"'\"&F7783&\"'!\"&G7783))","v":""},{"$f":"IF(ISBLANK(INDIRECT(\"'\"&F7783&\"'!\"&H7783)),\"\",IFERROR(VLOOKUP(TEXT(INDIRECT(\"'\"&F7783&\"'!\"&H7783),\"0\"),Notes!$B$5:$C$100,2,FALSE),\"\"))","v":""},"2d","$W$145","$X$145"]
[27199,{"$f":"Menu!$F$29","v":"X"},{"$f":"Menu!$J$29","v":2020},{"$f":"IF(ISBLANK(INDIRECT(\"'\"&F7784&\"'!\"&G7784)),\"\",INDIRECT(\"'\"&F7784&\"'!\"&G7784))","v":""},{"$f":"IF(ISBLANK(INDIRECT(\"'\"&F7784&\"'!\"&H7784)),\"\",IFERROR(VLOOKUP(TEXT(INDIRECT(\"'\"&F7784&\"'!\"&H7784),\"0\"),Notes!$B$5:$C$100,2,FALSE),\"\"))","v":""},"2d","$AA$145","$AB$145"]
[27200,{"$f":"Menu!$F$29","v":"X"},{"$f":"Menu!$J$29","v":2020},{"$f":"IF(ISBLANK(INDIRECT(\"'\"&F7785&\"'!\"&G7785)),\"\",INDIRECT(\"'\"&F7785&\"'!\"&G7785))","v":""},{"$f":"IF(ISBLANK(INDIRECT(\"'\"&F7785&\"'!\"&H7785)),\"\",IFERROR(VLOOKUP(TEXT(INDIRECT(\"'\"&F7785&\"'!\"&H7785),\"0\"),Notes!$B$5:$C$100,2,FALSE),\"\"))","v":""},"2d","$Y$145","$Z$145"]
[27201,{"$f":"Menu!$F$29","v":"X"},{"$f":"Menu!$J$29","v":2020},{"$f":"IF(ISBLANK(INDIRECT(\"'\"&F7786&\"'!\"&G7786)),\"\",INDIRECT(\"'\"&F7786&\"'!\"&G7786))","v":""},{"$f":"IF(ISBLANK(INDIRECT(\"'\"&F7786&\"'!\"&H7786)),\"\",IFERROR(VLOOKUP(TEXT(INDIRECT(\"'\"&F7786&\"'!\"&H7786),\"0\"),Notes!$B$5:$C$100,2,FALSE),\"\"))","v":""},"2d","$E$145","$F$145"]
[27202,{"$f":"Menu!$F$29","v":"X"},{"$f":"Menu!$J$29","v":2020},{"$f":"IF(ISBLANK(INDIRECT(\"'\"&F7787&\"'!\"&G7787)),\"\",INDIRECT(\"'\"&F7787&\"'!\"&G7787))","v":""},{"$f":"IF(ISBLANK(INDIRECT(\"'\"&F7787&\"'!\"&H7787)),\"\",IFERROR(VLOOKUP(TEXT(INDIRECT(\"'\"&F7787&\"'!\"&H7787),\"0\"),Notes!$B$5:$C$100,2,FALSE),\"\"))","v":""},"2d","$I$145","$J$145"]
[27203,{"$f":"Menu!$F$29","v":"X"},{"$f":"Menu!$J$29","v":2020},{"$f":"IF(ISBLANK(INDIRECT(\"'\"&F7788&\"'!\"&G7788)),\"\",INDIRECT(\"'\"&F7788&\"'!\"&G7788))","v":""},{"$f":"IF(ISBLANK(INDIRECT(\"'\"&F7788&\"'!\"&H7788)),\"\",IFERROR(VLOOKUP(TEXT(INDIRECT(\"'\"&F7788&\"'!\"&H7788),\"0\"),Notes!$B$5:$C$100,2,FALSE),\"\"))","v":""},"2d","$G$145","$H$145"]
[27204,{"$f":"Menu!$F$29","v":"X"},{"$f":"Menu!$J$29","v":2020},{"$f":"IF(ISBLANK(INDIRECT(\"'\"&F7789&\"'!\"&G7789)),\"\",INDIRECT(\"'\"&F7789&\"'!\"&G7789))","v":""},{"$f":"IF(ISBLANK(INDIRECT(\"'\"&F7789&\"'!\"&H7789)),\"\",IFERROR(VLOOKUP(TEXT(INDIRECT(\"'\"&F7789&\"'!\"&H7789),\"0\"),Notes!$B$5:$C$100,2,FALSE),\"\"))","v":""},"2a","$Q$145","$R$145"]
[27205,{"$f":"Menu!$F$29","v":"X"},{"$f":"Menu!$J$29","v":2020},{"$f":"IF(ISBLANK(INDIRECT(\"'\"&F7790&\"'!\"&G7790)),\"\",INDIRECT(\"'\"&F7790&\"'!\"&G7790))","v":""},{"$f":"IF(ISBLANK(INDIRECT(\"'\"&F7790&\"'!\"&H7790)),\"\",IFERROR(VLOOKUP(TEXT(INDIRECT(\"'\"&F7790&\"'!\"&H7790),\"0\"),Notes!$B$5:$C$100,2,FALSE),\"\"))","v":""},"2a","$U$145","$V$145"]
[27206,{"$f":"Menu!$F$29","v":"X"},{"$f":"Menu!$J$29","v":2020},{"$f":"IF(ISBLANK(INDIRECT(\"'\"&F7791&\"'!\"&G7791)),\"\",INDIRECT(\"'\"&F7791&\"'!\"&G7791))","v":""},{"$f":"IF(ISBLANK(INDIRECT(\"'\"&F7791&\"'!\"&H7791)),\"\",IFERROR(VLOOKUP(TEXT(INDIRECT(\"'\"&F7791&\"'!\"&H7791),\"0\"),Notes!$B$5:$C$100,2,FALSE),\"\"))","v":""},"2a","$S$145","$T$145"]
[27207,{"$f":"Menu!$F$29","v":"X"},{"$f":"Menu!$J$29","v":2020},{"$f":"IF(ISBLANK(INDIRECT(\"'\"&F7792&\"'!\"&G7792)),\"\",INDIRECT(\"'\"&F7792&\"'!\"&G7792))","v":""},{"$f":"IF(ISBLANK(INDIRECT(\"'\"&F7792&\"'!\"&H7792)),\"\",IFERROR(VLOOKUP(TEXT(INDIRECT(\"'\"&F7792&\"'!\"&H7792),\"0\"),Notes!$B$5:$C$100,2,FALSE),\"\"))","v":""},"2d","$K$145","$L$145"]
[27208,{"$f":"Menu!$F$29","v":"X"},{"$f":"Menu!$J$29","v":2020},{"$f":"IF(ISBLANK(INDIRECT(\"'\"&F7793&\"'!\"&G7793)),\"\",INDIRECT(\"'\"&F7793&\"'!\"&G7793))","v":""},{"$f":"IF(ISBLANK(INDIRECT(\"'\"&F7793&\"'!\"&H7793)),\"\",IFERROR(VLOOKUP(TEXT(INDIRECT(\"'\"&F7793&\"'!\"&H7793),\"0\"),Notes!$B$5:$C$100,2,FALSE),\"\"))","v":""},"2d","$O$145","$P$145"]
[27209,{"$f":"Menu!$F$29","v":"X"},{"$f":"Menu!$J$29","v":2020},{"$f":"IF(ISBLANK(INDIRECT(\"'\"&F7794&\"'!\"&G7794)),\"\",INDIRECT(\"'\"&F7794&\"'!\"&G7794))","v":""},{"$f":"IF(ISBLANK(INDIRECT(\"'\"&F7794&\"'!\"&H7794)),\"\",IFERROR(VLOOKUP(TEXT(INDIRECT(\"'\"&F7794&\"'!\"&H7794),\"0\"),Notes!$B$5:$C$100,2,FALSE),\"\"))","v":""},"2d","$M$145","$N$145"]
[27210,{"$f":"Menu!$F$29","v":"X"},{"$f":"Menu!$J$29","v":2020},{"$f":"IF(ISBLANK(INDIRECT(\"'\"&F7795&\"'!\"&G7795)),\"\",INDIRECT(\"'\"&F7795&\"'!\"&G7795))","v":""},{"$f":"IF(ISBLANK(INDIRECT(\"'\"&F7795&\"'!\"&H7795)),\"\",IFERROR(VLOOKUP(TEXT(INDIRECT(\"'\"&F7795&\"'!\"&H7795),\"0\"),Notes!$B$5:$C$100,2,FALSE),\"\"))","v":""},"2d","$Q$145","$R$145"]
[27211,{"$f":"Menu!$F$29","v":"X"},{"$f":"Menu!$J$29","v":2020},{"$f":"IF(ISBLANK(INDIRECT(\"'\"&F7796&\"'!\"&G7796)),\"\",INDIRECT(\"'\"&F7796&\"'!\"&G7796))","v":""},{"$f":"IF(ISBLANK(INDIRECT(\"'\"&F7796&\"'!\"&H7796)),\"\",IFERROR(VLOOKUP(TEXT(INDIRECT(\"'\"&F7796&\"'!\"&H7796),\"0\"),Notes!$B$5:$C$100,2,FALSE),\"\"))","v":""},"2d","$U$145","$V$145"]
[27212,{"$f":"Menu!$F$29","v":"X"},{"$f":"Menu!$J$29","v":2020},{"$f":"IF(ISBLANK(INDIRECT(\"'\"&F7797&\"'!\"&G7797)),\"\",INDIRECT(\"'\"&F7797&\"'!\"&G7797))","v":""},{"$f":"IF(ISBLANK(INDIRECT(\"'\"&F7797&\"'!\"&H7797)),\"\",IFERROR(VLOOKUP(TEXT(INDIRECT(\"'\"&F7797&\"'!\"&H7797),\"0\"),Notes!$B$5:$C$100,2,FALSE),\"\"))","v":""},"2d","$S$145","$T$145"]
[27213,{"$f":"Menu!$F$29","v":"X"},{"$f":"Menu!$J$29","v":2020},{"$f":"IF(ISBLANK(INDIRECT(\"'\"&F7798&\"'!\"&G7798)),\"\",INDIRECT(\"'\"&F7798&\"'!\"&G7798))","v":""},{"$f":"IF(ISBLANK(INDIRECT(\"'\"&F7798&\"'!\"&H7798)),\"\",IFERROR(VLOOKUP(TEXT(INDIRECT(\"'\"&F7798&\"'!\"&H7798),\"0\"),Notes!$B$5:$C$100,2,FALSE),\"\"))","v":""},"2a","$K$145","$L$145"]
[27214,{"$f":"Menu!$F$29","v":"X"},{"$f":"Menu!$J$29","v":2020},{"$f":"IF(ISBLANK(INDIRECT(\"'\"&F7799&\"'!\"&G7799)),\"\",INDIRECT(\"'\"&F7799&\"'!\"&G7799))","v":""},{"$f":"IF(ISBLANK(INDIRECT(\"'\"&F7799&\"'!\"&H7799)),\"\",IFERROR(VLOOKUP(TEXT(INDIRECT(\"'\"&F7799&\"'!\"&H7799),\"0\"),Notes!$B$5:$C$100,2,FALSE),\"\"))","v":""},"2a","$O$145","$P$145"]
[27215,{"$f":"Menu!$F$29","v":"X"},{"$f":"Menu!$J$29","v":2020},{"$f":"IF(ISBLANK(INDIRECT(\"'\"&F7800&\"'!\"&G7800)),\"\",INDIRECT(\"'\"&F7800&\"'!\"&G7800))","v":""},{"$f":"IF(ISBLANK(INDIRECT(\"'\"&F7800&\"'!\"&H7800)),\"\",IFERROR(VLOOKUP(TEXT(INDIRECT(\"'\"&F7800&\"'!\"&H7800),\"0\"),Notes!$B$5:$C$100,2,FALSE),\"\"))","v":""},"2a","$M$145","$N$145"]
[27216,{"$f":"Menu!$F$29","v":"X"},{"$f":"Menu!$J$29","v":2020},{"$f":"IF(ISBLANK(INDIRECT(\"'\"&F7801&\"'!\"&G7801)),\"\",INDIRECT(\"'\"&F7801&\"'!\"&G7801))","v":""},{"$f":"IF(ISBLANK(INDIRECT(\"'\"&F7801&\"'!\"&H7801)),\"\",IFERROR(VLOOKUP(TEXT(INDIRECT(\"'\"&F7801&\"'!\"&H7801),\"0\"),Notes!$B$5:$C$100,2,FALSE),\"\"))","v":""},"2a","$E$145","$F$145"]
[27217,{"$f":"Menu!$F$29","v":"X"},{"$f":"Menu!$J$29","v":2020},{"$f":"IF(ISBLANK(INDIRECT(\"'\"&F7802&\"'!\"&G7802)),\"\",INDIRECT(\"'\"&F7802&\"'!\"&G7802))","v":""},{"$f":"IF(ISBLANK(INDIRECT(\"'\"&F7802&\"'!\"&H7802)),\"\",IFERROR(VLOOKUP(TEXT(INDIRECT(\"'\"&F7802&\"'!\"&H7802),\"0\"),Notes!$B$5:$C$100,2,FALSE),\"\"))","v":""},"2b","$K$146","$L$146"]
[27218,{"$f":"Menu!$F$29","v":"X"},{"$f":"Menu!$J$29","v":2020},{"$f":"IF(ISBLANK(INDIRECT(\"'\"&F7803&\"'!\"&G7803)),\"\",INDIRECT(\"'\"&F7803&\"'!\"&G7803))","v":""},{"$f":"IF(ISBLANK(INDIRECT(\"'\"&F7803&\"'!\"&H7803)),\"\",IFERROR(VLOOKUP(TEXT(INDIRECT(\"'\"&F7803&\"'!\"&H7803),\"0\"),Notes!$B$5:$C$100,2,FALSE),\"\"))","v":""},"2b","$O$146","$P$146"]
[27219,{"$f":"Menu!$F$29","v":"X"},{"$f":"Menu!$J$29","v":2020},{"$f":"IF(ISBLANK(INDIRECT(\"'\"&F7804&\"'!\"&G7804)),\"\",INDIRECT(\"'\"&F7804&\"'!\"&G7804))","v":""},{"$f":"IF(ISBLANK(INDIRECT(\"'\"&F7804&\"'!\"&H7804)),\"\",IFERROR(VLOOKUP(TEXT(INDIRECT(\"'\"&F7804&\"'!\"&H7804),\"0\"),Notes!$B$5:$C$100,2,FALSE),\"\"))","v":""},"2b","$M$146","$N$146"]
[27220,{"$f":"Menu!$F$29","v":"X"},{"$f":"Menu!$J$29","v":2020},{"$f":"IF(ISBLANK(INDIRECT(\"'\"&F7805&\"'!\"&G7805)),\"\",INDIRECT(\"'\"&F7805&\"'!\"&G7805))","v":""},{"$f":"IF(ISBLANK(INDIRECT(\"'\"&F7805&\"'!\"&H7805)),\"\",IFERROR(VLOOKUP(TEXT(INDIRECT(\"'\"&F7805&\"'!\"&H7805),\"0\"),Notes!$B$5:$C$100,2,FALSE),\"\"))","v":""},"2b","$Q$146","$R$146"]
[27221,{"$f":"Menu!$F$29","v":"X"},{"$f":"Menu!$J$29","v":2020},{"$f":"IF(ISBLANK(INDIRECT(\"'\"&F7806&\"'!\"&G7806)),\"\",INDIRECT(\"'\"&F7806&\"'!\"&G7806))","v":""},{"$f":"IF(ISBLANK(INDIRECT(\"'\"&F7806&\"'!\"&H7806)),\"\",IFERROR(VLOOKUP(TEXT(INDIRECT(\"'\"&F7806&\"'!\"&H7806),\"0\"),Notes!$B$5:$C$100,2,FALSE),\"\"))","v":""},"2b","$U$146","$V$146"]
[27222,{"$f":"Menu!$F$29","v":"X"},{"$f":"Menu!$J$29","v":2020},{"$f":"IF(ISBLANK(INDIRECT(\"'\"&F7807&\"'!\"&G7807)),\"\",INDIRECT(\"'\"&F7807&\"'!\"&G7807))","v":""},{"$f":"IF(ISBLANK(INDIRECT(\"'\"&F7807&\"'!\"&H7807)),\"\",IFERROR(VLOOKUP(TEXT(INDIRECT(\"'\"&F7807&\"'!\"&H7807),\"0\"),Notes!$B$5:$C$100,2,FALSE),\"\"))","v":""},"2b","$S$146","$T$146"]
[27226,{"$f":"Menu!$F$29","v":"X"},{"$f":"Menu!$J$29","v":2020},{"$f":"IF(ISBLANK(INDIRECT(\"'\"&F7808&\"'!\"&G7808)),\"\",INDIRECT(\"'\"&F7808&\"'!\"&G7808))","v":""},null,"2a","$I$146","$J$146"]
[27227,{"$f":"Menu!$F$29","v":"X"},{"$f":"Menu!$J$29","v":2020},{"$f":"IF(ISBLANK(INDIRECT(\"'\"&F7809&\"'!\"&G7809)),\"\",INDIRECT(\"'\"&F7809&\"'!\"&G7809))","v":""},{"$f":"IF(ISBLANK(INDIRECT(\"'\"&F7809&\"'!\"&H7809)),\"\",IFERROR(VLOOKUP(TEXT(INDIRECT(\"'\"&F7809&\"'!\"&H7809),\"0\"),Notes!$B$5:$C$100,2,FALSE),\"\"))","v":""},"2c","$E$146","$F$146"]
[27228,{"$f":"Menu!$F$29","v":"X"},{"$f":"Menu!$J$29","v":2020},{"$f":"IF(ISBLANK(INDIRECT(\"'\"&F7810&\"'!\"&G7810)),\"\",INDIRECT(\"'\"&F7810&\"'!\"&G7810))","v":""},{"$f":"IF(ISBLANK(INDIRECT(\"'\"&F7810&\"'!\"&H7810)),\"\",IFERROR(VLOOKUP(TEXT(INDIRECT(\"'\"&F7810&\"'!\"&H7810),\"0\"),Notes!$B$5:$C$100,2,FALSE),\"\"))","v":""},"2c","$I$146",{"$f":"IF(LEN(TRIM(MID(G7810,4,10)))-LEN(SUBSTITUTE(TRIM(MID(G7810,4,10)),\"$\",\"\"))=0,\"$\"&CHAR(CODE(MID(G7810,2,1))+1)&\"$\"&TRIM(MID(G7810,4,10)),\"$\"&MID(G7810,2,1)&CHAR(CODE(MID(G7810,3,1))+1)&\"$\"&TRIM(MID(G7810,5,11)))","v":"$J$146"}]
[27229,{"$f":"Menu!$F$29","v":"X"},{"$f":"Menu!$J$29","v":2020},{"$f":"IF(ISBLANK(INDIRECT(\"'\"&F7811&\"'!\"&G7811)),\"\",INDIRECT(\"'\"&F7811&\"'!\"&G7811))","v":""},{"$f":"IF(ISBLANK(INDIRECT(\"'\"&F7811&\"'!\"&H7811)),\"\",IFERROR(VLOOKUP(TEXT(INDIRECT(\"'\"&F7811&\"'!\"&H7811),\"0\"),Notes!$B$5:$C$100,2,FALSE),\"\"))","v":""},"2c","$G$146","$H$146"]
[27233,{"$f":"Menu!$F$29","v":"X"},{"$f":"Menu!$J$29","v":2020},{"$f":"IF(ISBLANK(INDIRECT(\"'\"&F7812&\"'!\"&G7812)),\"\",INDIRECT(\"'\"&F7812&\"'!\"&G7812))","v":""},{"$f":"IF(ISBLANK(INDIRECT(\"'\"&F7812&\"'!\"&H7812)),\"\",IFERROR(VLOOKUP(TEXT(INDIRECT(\"'\"&F7812&\"'!\"&H7812),\"0\"),Notes!$B$5:$C$100,2,FALSE),\"\"))","v":""},"2c","$K$146","$L$146"]
[27234,{"$f":"Menu!$F$29","v":"X"},{"$f":"Menu!$J$29","v":2020},{"$f":"IF(ISBLANK(INDIRECT(\"'\"&F7813&\"'!\"&G7813)),\"\",INDIRECT(\"'\"&F7813&\"'!\"&G7813))","v":""},{"$f":"IF(ISBLANK(INDIRECT(\"'\"&F7813&\"'!\"&H7813)),\"\",IFERROR(VLOOKUP(TEXT(INDIRECT(\"'\"&F7813&\"'!\"&H7813),\"0\"),Notes!$B$5:$C$100,2,FALSE),\"\"))","v":""},"2c","$O$146","$P$146"]
[27235,{"$f":"Menu!$F$29","v":"X"},{"$f":"Menu!$J$29","v":2020},{"$f":"IF(ISBLANK(INDIRECT(\"'\"&F7814&\"'!\"&G7814)),\"\",INDIRECT(\"'\"&F7814&\"'!\"&G7814))","v":""},{"$f":"IF(ISBLANK(INDIRECT(\"'\"&F7814&\"'!\"&H7814)),\"\",IFERROR(VLOOKUP(TEXT(INDIRECT(\"'\"&F7814&\"'!\"&H7814),\"0\"),Notes!$B$5:$C$100,2,FALSE),\"\"))","v":""},"2c","$M$146","$N$146"]
[27236,{"$f":"Menu!$F$29","v":"X"},{"$f":"Menu!$J$29","v":2020},{"$f":"IF(ISBLANK(INDIRECT(\"'\"&F7815&\"'!\"&G7815)),\"\",INDIRECT(\"'\"&F7815&\"'!\"&G7815))","v":""},{"$f":"IF(ISBLANK(INDIRECT(\"'\"&F7815&\"'!\"&H7815)),\"\",IFERROR(VLOOKUP(TEXT(INDIRECT(\"'\"&F7815&\"'!\"&H7815),\"0\"),Notes!$B$5:$C$100,2,FALSE),\"\"))","v":""},"2c","$Q$146","$R$146"]
[27237,{"$f":"Menu!$F$29","v":"X"},{"$f":"Menu!$J$29","v":2020},{"$f":"IF(ISBLANK(INDIRECT(\"'\"&F7816&\"'!\"&G7816)),\"\",INDIRECT(\"'\"&F7816&\"'!\"&G7816))","v":""},{"$f":"IF(ISBLANK(INDIRECT(\"'\"&F7816&\"'!\"&H7816)),\"\",IFERROR(VLOOKUP(TEXT(INDIRECT(\"'\"&F7816&\"'!\"&H7816),\"0\"),Notes!$B$5:$C$100,2,FALSE),\"\"))","v":""},"2c","$U$146","$V$146"]
[27238,{"$f":"Menu!$F$29","v":"X"},{"$f":"Menu!$J$29","v":2020},{"$f":"IF(ISBLANK(INDIRECT(\"'\"&F7817&\"'!\"&G7817)),\"\",INDIRECT(\"'\"&F7817&\"'!\"&G7817))","v":""},{"$f":"IF(ISBLANK(INDIRECT(\"'\"&F7817&\"'!\"&H7817)),\"\",IFERROR(VLOOKUP(TEXT(INDIRECT(\"'\"&F7817&\"'!\"&H7817),\"0\"),Notes!$B$5:$C$100,2,FALSE),\"\"))","v":""},"2c","$S$146","$T$146"]
[27239,{"$f":"Menu!$F$29","v":"X"},{"$f":"Menu!$J$29","v":2020},{"$f":"IF(ISBLANK(INDIRECT(\"'\"&F7818&\"'!\"&G7818)),\"\",INDIRECT(\"'\"&F7818&\"'!\"&G7818))","v":""},{"$f":"IF(ISBLANK(INDIRECT(\"'\"&F7818&\"'!\"&H7818)),\"\",IFERROR(VLOOKUP(TEXT(INDIRECT(\"'\"&F7818&\"'!\"&H7818),\"0\"),Notes!$B$5:$C$100,2,FALSE),\"\"))","v":""},"2c","$W$146","$X$146"]
[27240,{"$f":"Menu!$F$29","v":"X"},{"$f":"Menu!$J$29","v":2020},{"$f":"IF(ISBLANK(INDIRECT(\"'\"&F7819&\"'!\"&G7819)),\"\",INDIRECT(\"'\"&F7819&\"'!\"&G7819))","v":""},{"$f":"IF(ISBLANK(INDIRECT(\"'\"&F7819&\"'!\"&H7819)),\"\",IFERROR(VLOOKUP(TEXT(INDIRECT(\"'\"&F7819&\"'!\"&H7819),\"0\"),Notes!$B$5:$C$100,2,FALSE),\"\"))","v":""},"2c","$AA$146","$AB$146"]
[27241,{"$f":"Menu!$F$29","v":"X"},{"$f":"Menu!$J$29","v":2020},{"$f":"IF(ISBLANK(INDIRECT(\"'\"&F7820&\"'!\"&G7820)),\"\",INDIRECT(\"'\"&F7820&\"'!\"&G7820))","v":""},{"$f":"IF(ISBLANK(INDIRECT(\"'\"&F7820&\"'!\"&H7820)),\"\",IFERROR(VLOOKUP(TEXT(INDIRECT(\"'\"&F7820&\"'!\"&H7820),\"0\"),Notes!$B$5:$C$100,2,FALSE),\"\"))","v":""},"2c","$Y$146","$Z$146"]
[27248,{"$f":"Menu!$F$29","v":"X"},{"$f":"Menu!$J$29","v":2020},{"$f":"IF(ISBLANK(INDIRECT(\"'\"&F7821&\"'!\"&G7821)),\"\",INDIRECT(\"'\"&F7821&\"'!\"&G7821))","v":""},{"$f":"IF(ISBLANK(INDIRECT(\"'\"&F7821&\"'!\"&H7821)),\"\",IFERROR(VLOOKUP(TEXT(INDIRECT(\"'\"&F7821&\"'!\"&H7821),\"0\"),Notes!$B$5:$C$100,2,FALSE),\"\"))","v":""},"2e","$BG$147","$BH$147"]
[27249,{"$f":"Menu!$F$29","v":"X"},{"$f":"Menu!$J$29","v":2020},{"$f":"IF(ISBLANK(INDIRECT(\"'\"&F7822&\"'!\"&G7822)),\"\",INDIRECT(\"'\"&F7822&\"'!\"&G7822))","v":""},{"$f":"IF(ISBLANK(INDIRECT(\"'\"&F7822&\"'!\"&H7822)),\"\",IFERROR(VLOOKUP(TEXT(INDIRECT(\"'\"&F7822&\"'!\"&H7822),\"0\"),Notes!$B$5:$C$100,2,FALSE),\"\"))","v":""},"2e","$BK$147","$BL$147"]
[27250,{"$f":"Menu!$F$29","v":"X"},{"$f":"Menu!$J$29","v":2020},{"$f":"IF(ISBLANK(INDIRECT(\"'\"&F7823&\"'!\"&G7823)),\"\",INDIRECT(\"'\"&F7823&\"'!\"&G7823))","v":""},{"$f":"IF(ISBLANK(INDIRECT(\"'\"&F7823&\"'!\"&H7823)),\"\",IFERROR(VLOOKUP(TEXT(INDIRECT(\"'\"&F7823&\"'!\"&H7823),\"0\"),Notes!$B$5:$C$100,2,FALSE),\"\"))","v":""},"2e","$BI$147","$BJ$147"]
[27251,{"$f":"Menu!$F$29","v":"X"},{"$f":"Menu!$J$29","v":2020},{"$f":"IF(ISBLANK(INDIRECT(\"'\"&F7824&\"'!\"&G7824)),\"\",INDIRECT(\"'\"&F7824&\"'!\"&G7824))","v":""},{"$f":"IF(ISBLANK(INDIRECT(\"'\"&F7824&\"'!\"&H7824)),\"\",IFERROR(VLOOKUP(TEXT(INDIRECT(\"'\"&F7824&\"'!\"&H7824),\"0\"),Notes!$B$5:$C$100,2,FALSE),\"\"))","v":""},"2e","$E$147","$F$147"]
[27252,{"$f":"Menu!$F$29","v":"X"},{"$f":"Menu!$J$29","v":2020},{"$f":"IF(ISBLANK(INDIRECT(\"'\"&F7825&\"'!\"&G7825)),\"\",INDIRECT(\"'\"&F7825&\"'!\"&G7825))","v":""},{"$f":"IF(ISBLANK(INDIRECT(\"'\"&F7825&\"'!\"&H7825)),\"\",IFERROR(VLOOKUP(TEXT(INDIRECT(\"'\"&F7825&\"'!\"&H7825),\"0\"),Notes!$B$5:$C$100,2,FALSE),\"\"))","v":""},"2e","$I$147","$J$147"]
[27253,{"$f":"Menu!$F$29","v":"X"},{"$f":"Menu!$J$29","v":2020},{"$f":"IF(ISBLANK(INDIRECT(\"'\"&F7826&\"'!\"&G7826)),\"\",INDIRECT(\"'\"&F7826&\"'!\"&G7826))","v":""},{"$f":"IF(ISBLANK(INDIRECT(\"'\"&F7826&\"'!\"&H7826)),\"\",IFERROR(VLOOKUP(TEXT(INDIRECT(\"'\"&F7826&\"'!\"&H7826),\"0\"),Notes!$B$5:$C$100,2,FALSE),\"\"))","v":""},"2e","$G$147","$H$147"]
[27254,{"$f":"Menu!$F$29","v":"X"},{"$f":"Menu!$J$29","v":2020},{"$f":"IF(ISBLANK(INDIRECT(\"'\"&F7827&\"'!\"&G7827)),\"\",INDIRECT(\"'\"&F7827&\"'!\"&G7827))","v":""},{"$f":"IF(ISBLANK(INDIRECT(\"'\"&F7827&\"'!\"&H7827)),\"\",IFERROR(VLOOKUP(TEXT(INDIRECT(\"'\"&F7827&\"'!\"&H7827),\"0\"),Notes!$B$5:$C$100,2,FALSE),\"\"))","v":""},"2e","$K$147","$L$147"]
[27255,{"$f":"Menu!$F$29","v":"X"},{"$f":"Menu!$J$29","v":2020},{"$f":"IF(ISBLANK(INDIRECT(\"'\"&F7828&\"'!\"&G7828)),\"\",INDIRECT(\"'\"&F7828&\"'!\"&G7828))","v":""},{"$f":"IF(ISBLANK(INDIRECT(\"'\"&F7828&\"'!\"&H7828)),\"\",IFERROR(VLOOKUP(TEXT(INDIRECT(\"'\"&F7828&\"'!\"&H7828),\"0\"),Notes!$B$5:$C$100,2,FALSE),\"\"))","v":""},"2e","$O$147","$P$147"]
[27256,{"$f":"Menu!$F$29","v":"X"},{"$f":"Menu!$J$29","v":2020},{"$f":"IF(ISBLANK(INDIRECT(\"'\"&F7829&\"'!\"&G7829)),\"\",INDIRECT(\"'\"&F7829&\"'!\"&G7829))","v":""},{"$f":"IF(ISBLANK(INDIRECT(\"'\"&F7829&\"'!\"&H7829)),\"\",IFERROR(VLOOKUP(TEXT(INDIRECT(\"'\"&F7829&\"'!\"&H7829),\"0\"),Notes!$B$5:$C$100,2,FALSE),\"\"))","v":""},"2e","$M$147","$N$147"]
[27257,{"$f":"Menu!$F$29","v":"X"},{"$f":"Menu!$J$29","v":2020},{"$f":"IF(ISBLANK(INDIRECT(\"'\"&F7830&\"'!\"&G7830)),\"\",INDIRECT(\"'\"&F7830&\"'!\"&G7830))","v":""},{"$f":"IF(ISBLANK(INDIRECT(\"'\"&F7830&\"'!\"&H7830)),\"\",IFERROR(VLOOKUP(TEXT(INDIRECT(\"'\"&F7830&\"'!\"&H7830),\"0\"),Notes!$B$5:$C$100,2,FALSE),\"\"))","v":""},"2e","$Q$147","$R$147"]
[27258,{"$f":"Menu!$F$29","v":"X"},{"$f":"Menu!$J$29","v":2020},{"$f":"IF(ISBLANK(INDIRECT(\"'\"&F7831&\"'!\"&G7831)),\"\",INDIRECT(\"'\"&F7831&\"'!\"&G7831))","v":""},{"$f":"IF(ISBLANK(INDIRECT(\"'\"&F7831&\"'!\"&H7831)),\"\",IFERROR(VLOOKUP(TEXT(INDIRECT(\"'\"&F7831&\"'!\"&H7831),\"0\"),Notes!$B$5:$C$100,2,FALSE),\"\"))","v":""},"2e","$U$147","$V$147"]
[27259,{"$f":"Menu!$F$29","v":"X"},{"$f":"Menu!$J$29","v":2020},{"$f":"IF(ISBLANK(INDIRECT(\"'\"&F7832&\"'!\"&G7832)),\"\",INDIRECT(\"'\"&F7832&\"'!\"&G7832))","v":""},{"$f":"IF(ISBLANK(INDIRECT(\"'\"&F7832&\"'!\"&H7832)),\"\",IFERROR(VLOOKUP(TEXT(INDIRECT(\"'\"&F7832&\"'!\"&H7832),\"0\"),Notes!$B$5:$C$100,2,FALSE),\"\"))","v":""},"2e","$S$147","$T$147"]
[27260,{"$f":"Menu!$F$29","v":"X"},{"$f":"Menu!$J$29","v":2020},{"$f":"IF(ISBLANK(INDIRECT(\"'\"&F7833&\"'!\"&G7833)),\"\",INDIRECT(\"'\"&F7833&\"'!\"&G7833))","v":""},{"$f":"IF(ISBLANK(INDIRECT(\"'\"&F7833&\"'!\"&H7833)),\"\",IFERROR(VLOOKUP(TEXT(INDIRECT(\"'\"&F7833&\"'!\"&H7833),\"0\"),Notes!$B$5:$C$100,2,FALSE),\"\"))","v":""},"2e","$W$147","$X$147"]
[27261,{"$f":"Menu!$F$29","v":"X"},{"$f":"Menu!$J$29","v":2020},{"$f":"IF(ISBLANK(INDIRECT(\"'\"&F7834&\"'!\"&G7834)),\"\",INDIRECT(\"'\"&F7834&\"'!\"&G7834))","v":""},{"$f":"IF(ISBLANK(INDIRECT(\"'\"&F7834&\"'!\"&H7834)),\"\",IFERROR(VLOOKUP(TEXT(INDIRECT(\"'\"&F7834&\"'!\"&H7834),\"0\"),Notes!$B$5:$C$100,2,FALSE),\"\"))","v":""},"2e","$AA$147","$AB$147"]
[27262,{"$f":"Menu!$F$29","v":"X"},{"$f":"Menu!$J$29","v":2020},{"$f":"IF(ISBLANK(INDIRECT(\"'\"&F7835&\"'!\"&G7835)),\"\",INDIRECT(\"'\"&F7835&\"'!\"&G7835))","v":""},{"$f":"IF(ISBLANK(INDIRECT(\"'\"&F7835&\"'!\"&H7835)),\"\",IFERROR(VLOOKUP(TEXT(INDIRECT(\"'\"&F7835&\"'!\"&H7835),\"0\"),Notes!$B$5:$C$100,2,FALSE),\"\"))","v":""},"2e","$Y$147","$Z$147"]
[27263,{"$f":"Menu!$F$29","v":"X"},{"$f":"Menu!$J$29","v":2020},{"$f":"IF(ISBLANK(INDIRECT(\"'\"&F7836&\"'!\"&G7836)),\"\",INDIRECT(\"'\"&F7836&\"'!\"&G7836))","v":""},{"$f":"IF(ISBLANK(INDIRECT(\"'\"&F7836&\"'!\"&H7836)),\"\",IFERROR(VLOOKUP(TEXT(INDIRECT(\"'\"&F7836&\"'!\"&H7836),\"0\"),Notes!$B$5:$C$100,2,FALSE),\"\"))","v":""},"2e","$AC$147","$AD$147"]
[27264,{"$f":"Menu!$F$29","v":"X"},{"$f":"Menu!$J$29","v":2020},{"$f":"IF(ISBLANK(INDIRECT(\"'\"&F7837&\"'!\"&G7837)),\"\",INDIRECT(\"'\"&F7837&\"'!\"&G7837))","v":""},{"$f":"IF(ISBLANK(INDIRECT(\"'\"&F7837&\"'!\"&H7837)),\"\",IFERROR(VLOOKUP(TEXT(INDIRECT(\"'\"&F7837&\"'!\"&H7837),\"0\"),Notes!$B$5:$C$100,2,FALSE),\"\"))","v":""},"2e","$AG$147","$AH$147"]
[27265,{"$f":"Menu!$F$29","v":"X"},{"$f":"Menu!$J$29","v":2020},{"$f":"IF(ISBLANK(INDIRECT(\"'\"&F7838&\"'!\"&G7838)),\"\",INDIRECT(\"'\"&F7838&\"'!\"&G7838))","v":""},{"$f":"IF(ISBLANK(INDIRECT(\"'\"&F7838&\"'!\"&H7838)),\"\",IFERROR(VLOOKUP(TEXT(INDIRECT(\"'\"&F7838&\"'!\"&H7838),\"0\"),Notes!$B$5:$C$100,2,FALSE),\"\"))","v":""},"2e","$AE$147","$AF$147"]
[27266,{"$f":"Menu!$F$29","v":"X"},{"$f":"Menu!$J$29","v":2020},{"$f":"IF(ISBLANK(INDIRECT(\"'\"&F7839&\"'!\"&G7839)),\"\",INDIRECT(\"'\"&F7839&\"'!\"&G7839))","v":""},{"$f":"IF(ISBLANK(INDIRECT(\"'\"&F7839&\"'!\"&H7839)),\"\",IFERROR(VLOOKUP(TEXT(INDIRECT(\"'\"&F7839&\"'!\"&H7839),\"0\"),Notes!$B$5:$C$100,2,FALSE),\"\"))","v":""},"2e","$AI$147","$AJ$147"]
[27267,{"$f":"Menu!$F$29","v":"X"},{"$f":"Menu!$J$29","v":2020},{"$f":"IF(ISBLANK(INDIRECT(\"'\"&F7840&\"'!\"&G7840)),\"\",INDIRECT(\"'\"&F7840&\"'!\"&G7840))","v":""},{"$f":"IF(ISBLANK(INDIRECT(\"'\"&F7840&\"'!\"&H7840)),\"\",IFERROR(VLOOKUP(TEXT(INDIRECT(\"'\"&F7840&\"'!\"&H7840),\"0\"),Notes!$B$5:$C$100,2,FALSE),\"\"))","v":""},"2e","$AM$147","$AN$147"]
[27268,{"$f":"Menu!$F$29","v":"X"},{"$f":"Menu!$J$29","v":2020},{"$f":"IF(ISBLANK(INDIRECT(\"'\"&F7841&\"'!\"&G7841)),\"\",INDIRECT(\"'\"&F7841&\"'!\"&G7841))","v":""},{"$f":"IF(ISBLANK(INDIRECT(\"'\"&F7841&\"'!\"&H7841)),\"\",IFERROR(VLOOKUP(TEXT(INDIRECT(\"'\"&F7841&\"'!\"&H7841),\"0\"),Notes!$B$5:$C$100,2,FALSE),\"\"))","v":""},"2e","$AK$147","$AL$147"]
[27269,{"$f":"Menu!$F$29","v":"X"},{"$f":"Menu!$J$29","v":2020},{"$f":"IF(ISBLANK(INDIRECT(\"'\"&F7842&\"'!\"&G7842)),\"\",INDIRECT(\"'\"&F7842&\"'!\"&G7842))","v":""},{"$f":"IF(ISBLANK(INDIRECT(\"'\"&F7842&\"'!\"&H7842)),\"\",IFERROR(VLOOKUP(TEXT(INDIRECT(\"'\"&F7842&\"'!\"&H7842),\"0\"),Notes!$B$5:$C$100,2,FALSE),\"\"))","v":""},"2e","$AO$147","$AP$147"]
[27270,{"$f":"Menu!$F$29","v":"X"},{"$f":"Menu!$J$29","v":2020},{"$f":"IF(ISBLANK(INDIRECT(\"'\"&F7843&\"'!\"&G7843)),\"\",INDIRECT(\"'\"&F7843&\"'!\"&G7843))","v":""},{"$f":"IF(ISBLANK(INDIRECT(\"'\"&F7843&\"'!\"&H7843)),\"\",IFERROR(VLOOKUP(TEXT(INDIRECT(\"'\"&F7843&\"'!\"&H7843),\"0\"),Notes!$B$5:$C$100,2,FALSE),\"\"))","v":""},"2e","$AS$147","$AT$147"]
[27271,{"$f":"Menu!$F$29","v":"X"},{"$f":"Menu!$J$29","v":2020},{"$f":"IF(ISBLANK(INDIRECT(\"'\"&F7844&\"'!\"&G7844)),\"\",INDIRECT(\"'\"&F7844&\"'!\"&G7844))","v":""},{"$f":"IF(ISBLANK(INDIRECT(\"'\"&F7844&\"'!\"&H7844)),\"\",IFERROR(VLOOKUP(TEXT(INDIRECT(\"'\"&F7844&\"'!\"&H7844),\"0\"),Notes!$B$5:$C$100,2,FALSE),\"\"))","v":""},"2e","$AQ$147","$AR$147"]
[27272,{"$f":"Menu!$F$29","v":"X"},{"$f":"Menu!$J$29","v":2020},{"$f":"IF(ISBLANK(INDIRECT(\"'\"&F7845&\"'!\"&G7845)),\"\",INDIRECT(\"'\"&F7845&\"'!\"&G7845))","v":""},{"$f":"IF(ISBLANK(INDIRECT(\"'\"&F7845&\"'!\"&H7845)),\"\",IFERROR(VLOOKUP(TEXT(INDIRECT(\"'\"&F7845&\"'!\"&H7845),\"0\"),Notes!$B$5:$C$100,2,FALSE),\"\"))","v":""},"2e","$AU$147","$AV$147"]
[27273,{"$f":"Menu!$F$29","v":"X"},{"$f":"Menu!$J$29","v":2020},{"$f":"IF(ISBLANK(INDIRECT(\"'\"&F7846&\"'!\"&G7846)),\"\",INDIRECT(\"'\"&F7846&\"'!\"&G7846))","v":""},{"$f":"IF(ISBLANK(INDIRECT(\"'\"&F7846&\"'!\"&H7846)),\"\",IFERROR(VLOOKUP(TEXT(INDIRECT(\"'\"&F7846&\"'!\"&H7846),\"0\"),Notes!$B$5:$C$100,2,FALSE),\"\"))","v":""},"2e","$AY$147","$AZ$147"]
[27274,{"$f":"Menu!$F$29","v":"X"},{"$f":"Menu!$J$29","v":2020},{"$f":"IF(ISBLANK(INDIRECT(\"'\"&F7847&\"'!\"&G7847)),\"\",INDIRECT(\"'\"&F7847&\"'!\"&G7847))","v":""},{"$f":"IF(ISBLANK(INDIRECT(\"'\"&F7847&\"'!\"&H7847)),\"\",IFERROR(VLOOKUP(TEXT(INDIRECT(\"'\"&F7847&\"'!\"&H7847),\"0\"),Notes!$B$5:$C$100,2,FALSE),\"\"))","v":""},"2e","$AW$147","$AX$147"]
[27275,{"$f":"Menu!$F$29","v":"X"},{"$f":"Menu!$J$29","v":2020},{"$f":"IF(ISBLANK(INDIRECT(\"'\"&F7848&\"'!\"&G7848)),\"\",INDIRECT(\"'\"&F7848&\"'!\"&G7848))","v":""},{"$f":"IF(ISBLANK(INDIRECT(\"'\"&F7848&\"'!\"&H7848)),\"\",IFERROR(VLOOKUP(TEXT(INDIRECT(\"'\"&F7848&\"'!\"&H7848),\"0\"),Notes!$B$5:$C$100,2,FALSE),\"\"))","v":""},"2e","$BA$147","$BB$147"]
[27276,{"$f":"Menu!$F$29","v":"X"},{"$f":"Menu!$J$29","v":2020},{"$f":"IF(ISBLANK(INDIRECT(\"'\"&F7849&\"'!\"&G7849)),\"\",INDIRECT(\"'\"&F7849&\"'!\"&G7849))","v":""},{"$f":"IF(ISBLANK(INDIRECT(\"'\"&F7849&\"'!\"&H7849)),\"\",IFERROR(VLOOKUP(TEXT(INDIRECT(\"'\"&F7849&\"'!\"&H7849),\"0\"),Notes!$B$5:$C$100,2,FALSE),\"\"))","v":""},"2e","$BE$147","$BF$147"]
[27277,{"$f":"Menu!$F$29","v":"X"},{"$f":"Menu!$J$29","v":2020},{"$f":"IF(ISBLANK(INDIRECT(\"'\"&F7850&\"'!\"&G7850)),\"\",INDIRECT(\"'\"&F7850&\"'!\"&G7850))","v":""},{"$f":"IF(ISBLANK(INDIRECT(\"'\"&F7850&\"'!\"&H7850)),\"\",IFERROR(VLOOKUP(TEXT(INDIRECT(\"'\"&F7850&\"'!\"&H7850),\"0\"),Notes!$B$5:$C$100,2,FALSE),\"\"))","v":""},"2e","$BC$147","$BD$147"]
[27278,{"$f":"Menu!$F$29","v":"X"},{"$f":"Menu!$J$29","v":2020},{"$f":"IF(ISBLANK(INDIRECT(\"'\"&F7851&\"'!\"&G7851)),\"\",INDIRECT(\"'\"&F7851&\"'!\"&G7851))","v":""},{"$f":"IF(ISBLANK(INDIRECT(\"'\"&F7851&\"'!\"&H7851)),\"\",IFERROR(VLOOKUP(TEXT(INDIRECT(\"'\"&F7851&\"'!\"&H7851),\"0\"),Notes!$B$5:$C$100,2,FALSE),\"\"))","v":""},"2b","$E$146","$F$146"]
[27279,{"$f":"Menu!$F$29","v":"X"},{"$f":"Menu!$J$29","v":2020},{"$f":"IF(ISBLANK(INDIRECT(\"'\"&F7852&\"'!\"&G7852)),\"\",INDIRECT(\"'\"&F7852&\"'!\"&G7852))","v":""},{"$f":"IF(ISBLANK(INDIRECT(\"'\"&F7852&\"'!\"&H7852)),\"\",IFERROR(VLOOKUP(TEXT(INDIRECT(\"'\"&F7852&\"'!\"&H7852),\"0\"),Notes!$B$5:$C$100,2,FALSE),\"\"))","v":""},"2b","$I$146","$J$146"]
[27280,{"$f":"Menu!$F$29","v":"X"},{"$f":"Menu!$J$29","v":2020},{"$f":"IF(ISBLANK(INDIRECT(\"'\"&F7853&\"'!\"&G7853)),\"\",INDIRECT(\"'\"&F7853&\"'!\"&G7853))","v":""},{"$f":"IF(ISBLANK(INDIRECT(\"'\"&F7853&\"'!\"&H7853)),\"\",IFERROR(VLOOKUP(TEXT(INDIRECT(\"'\"&F7853&\"'!\"&H7853),\"0\"),Notes!$B$5:$C$100,2,FALSE),\"\"))","v":""},"2b","$G$146","$H$146"]
[27281,{"$f":"Menu!$F$29","v":"X"},{"$f":"Menu!$J$29","v":2020},{"$f":"IF(ISBLANK(INDIRECT(\"'\"&F7854&\"'!\"&G7854)),\"\",INDIRECT(\"'\"&F7854&\"'!\"&G7854))","v":""},{"$f":"IF(ISBLANK(INDIRECT(\"'\"&F7854&\"'!\"&H7854)),\"\",IFERROR(VLOOKUP(TEXT(INDIRECT(\"'\"&F7854&\"'!\"&H7854),\"0\"),Notes!$B$5:$C$100,2,FALSE),\"\"))","v":""},"2a","$G$146","$H$146"]
[27282,{"$f":"Menu!$F$29","v":"X"},{"$f":"Menu!$J$29","v":2020},{"$f":"IF(ISBLANK(INDIRECT(\"'\"&F7855&\"'!\"&G7855)),\"\",INDIRECT(\"'\"&F7855&\"'!\"&G7855))","v":""},{"$f":"IF(ISBLANK(INDIRECT(\"'\"&F7855&\"'!\"&H7855)),\"\",IFERROR(VLOOKUP(TEXT(INDIRECT(\"'\"&F7855&\"'!\"&H7855),\"0\"),Notes!$B$5:$C$100,2,FALSE),\"\"))","v":""},"2b","$W$146","$X$146"]
[27283,{"$f":"Menu!$F$29","v":"X"},{"$f":"Menu!$J$29","v":2020},{"$f":"IF(ISBLANK(INDIRECT(\"'\"&F7856&\"'!\"&G7856)),\"\",INDIRECT(\"'\"&F7856&\"'!\"&G7856))","v":""},{"$f":"IF(ISBLANK(INDIRECT(\"'\"&F7856&\"'!\"&H7856)),\"\",IFERROR(VLOOKUP(TEXT(INDIRECT(\"'\"&F7856&\"'!\"&H7856),\"0\"),Notes!$B$5:$C$100,2,FALSE),\"\"))","v":""},"2b","$AA$146","$AB$146"]
[27284,{"$f":"Menu!$F$29","v":"X"},{"$f":"Menu!$J$29","v":2020},{"$f":"IF(ISBLANK(INDIRECT(\"'\"&F7857&\"'!\"&G7857)),\"\",INDIRECT(\"'\"&F7857&\"'!\"&G7857))","v":""},{"$f":"IF(ISBLANK(INDIRECT(\"'\"&F7857&\"'!\"&H7857)),\"\",IFERROR(VLOOKUP(TEXT(INDIRECT(\"'\"&F7857&\"'!\"&H7857),\"0\"),Notes!$B$5:$C$100,2,FALSE),\"\"))","v":""},"2b","$Y$146","$Z$146"]
[27285,{"$f":"Menu!$F$29","v":"X"},{"$f":"Menu!$J$29","v":2020},{"$f":"IF(ISBLANK(INDIRECT(\"'\"&F7858&\"'!\"&G7858)),\"\",INDIRECT(\"'\"&F7858&\"'!\"&G7858))","v":""},{"$f":"IF(ISBLANK(INDIRECT(\"'\"&F7858&\"'!\"&H7858)),\"\",IFERROR(VLOOKUP(TEXT(INDIRECT(\"'\"&F7858&\"'!\"&H7858),\"0\"),Notes!$B$5:$C$100,2,FALSE),\"\"))","v":""},"2d","$AC$146","$AD$146"]
[27286,{"$f":"Menu!$F$29","v":"X"},{"$f":"Menu!$J$29","v":2020},{"$f":"IF(ISBLANK(INDIRECT(\"'\"&F7859&\"'!\"&G7859)),\"\",INDIRECT(\"'\"&F7859&\"'!\"&G7859))","v":""},{"$f":"IF(ISBLANK(INDIRECT(\"'\"&F7859&\"'!\"&H7859)),\"\",IFERROR(VLOOKUP(TEXT(INDIRECT(\"'\"&F7859&\"'!\"&H7859),\"0\"),Notes!$B$5:$C$100,2,FALSE),\"\"))","v":""},"2d","$AG$146","$AH$146"]
[27287,{"$f":"Menu!$F$29","v":"X"},{"$f":"Menu!$J$29","v":2020},{"$f":"IF(ISBLANK(INDIRECT(\"'\"&F7860&\"'!\"&G7860)),\"\",INDIRECT(\"'\"&F7860&\"'!\"&G7860))","v":""},{"$f":"IF(ISBLANK(INDIRECT(\"'\"&F7860&\"'!\"&H7860)),\"\",IFERROR(VLOOKUP(TEXT(INDIRECT(\"'\"&F7860&\"'!\"&H7860),\"0\"),Notes!$B$5:$C$100,2,FALSE),\"\"))","v":""},"2d","$AE$146","$AF$146"]
[27288,{"$f":"Menu!$F$29","v":"X"},{"$f":"Menu!$J$29","v":2020},{"$f":"IF(ISBLANK(INDIRECT(\"'\"&F7861&\"'!\"&G7861)),\"\",INDIRECT(\"'\"&F7861&\"'!\"&G7861))","v":""},{"$f":"IF(ISBLANK(INDIRECT(\"'\"&F7861&\"'!\"&H7861)),\"\",IFERROR(VLOOKUP(TEXT(INDIRECT(\"'\"&F7861&\"'!\"&H7861),\"0\"),Notes!$B$5:$C$100,2,FALSE),\"\"))","v":""},"2d","$W$146","$X$146"]
[27289,{"$f":"Menu!$F$29","v":"X"},{"$f":"Menu!$J$29","v":2020},{"$f":"IF(ISBLANK(INDIRECT(\"'\"&F7862&\"'!\"&G7862)),\"\",INDIRECT(\"'\"&F7862&\"'!\"&G7862))","v":""},{"$f":"IF(ISBLANK(INDIRECT(\"'\"&F7862&\"'!\"&H7862)),\"\",IFERROR(VLOOKUP(TEXT(INDIRECT(\"'\"&F7862&\"'!\"&H7862),\"0\"),Notes!$B$5:$C$100,2,FALSE),\"\"))","v":""},"2d","$AA$146","$AB$146"]
[27290,{"$f":"Menu!$F$29","v":"X"},{"$f":"Menu!$J$29","v":2020},{"$f":"IF(ISBLANK(INDIRECT(\"'\"&F7863&\"'!\"&G7863)),\"\",INDIRECT(\"'\"&F7863&\"'!\"&G7863))","v":""},{"$f":"IF(ISBLANK(INDIRECT(\"'\"&F7863&\"'!\"&H7863)),\"\",IFERROR(VLOOKUP(TEXT(INDIRECT(\"'\"&F7863&\"'!\"&H7863),\"0\"),Notes!$B$5:$C$100,2,FALSE),\"\"))","v":""},"2d","$Y$146","$Z$146"]
[27291,{"$f":"Menu!$F$29","v":"X"},{"$f":"Menu!$J$29","v":2020},{"$f":"IF(ISBLANK(INDIRECT(\"'\"&F7864&\"'!\"&G7864)),\"\",INDIRECT(\"'\"&F7864&\"'!\"&G7864))","v":""},{"$f":"IF(ISBLANK(INDIRECT(\"'\"&F7864&\"'!\"&H7864)),\"\",IFERROR(VLOOKUP(TEXT(INDIRECT(\"'\"&F7864&\"'!\"&H7864),\"0\"),Notes!$B$5:$C$100,2,FALSE),\"\"))","v":""},"2d","$E$146","$F$146"]
[27292,{"$f":"Menu!$F$29","v":"X"},{"$f":"Menu!$J$29","v":2020},{"$f":"IF(ISBLANK(INDIRECT(\"'\"&F7865&\"'!\"&G7865)),\"\",INDIRECT(\"'\"&F7865&\"'!\"&G7865))","v":""},{"$f":"IF(ISBLANK(INDIRECT(\"'\"&F7865&\"'!\"&H7865)),\"\",IFERROR(VLOOKUP(TEXT(INDIRECT(\"'\"&F7865&\"'!\"&H7865),\"0\"),Notes!$B$5:$C$100,2,FALSE),\"\"))","v":""},"2d","$I$146","$J$146"]
[27293,{"$f":"Menu!$F$29","v":"X"},{"$f":"Menu!$J$29","v":2020},{"$f":"IF(ISBLANK(INDIRECT(\"'\"&F7866&\"'!\"&G7866)),\"\",INDIRECT(\"'\"&F7866&\"'!\"&G7866))","v":""},{"$f":"IF(ISBLANK(INDIRECT(\"'\"&F7866&\"'!\"&H7866)),\"\",IFERROR(VLOOKUP(TEXT(INDIRECT(\"'\"&F7866&\"'!\"&H7866),\"0\"),Notes!$B$5:$C$100,2,FALSE),\"\"))","v":""},"2d","$G$146","$H$146"]
[27294,{"$f":"Menu!$F$29","v":"X"},{"$f":"Menu!$J$29","v":2020},{"$f":"IF(ISBLANK(INDIRECT(\"'\"&F7867&\"'!\"&G7867)),\"\",INDIRECT(\"'\"&F7867&\"'!\"&G7867))","v":""},{"$f":"IF(ISBLANK(INDIRECT(\"'\"&F7867&\"'!\"&H7867)),\"\",IFERROR(VLOOKUP(TEXT(INDIRECT(\"'\"&F7867&\"'!\"&H7867),\"0\"),Notes!$B$5:$C$100,2,FALSE),\"\"))","v":""},"2a","$Q$146","$R$146"]
[27295,{"$f":"Menu!$F$29","v":"X"},{"$f":"Menu!$J$29","v":2020},{"$f":"IF(ISBLANK(INDIRECT(\"'\"&F7868&\"'!\"&G7868)),\"\",INDIRECT(\"'\"&F7868&\"'!\"&G7868))","v":""},{"$f":"IF(ISBLANK(INDIRECT(\"'\"&F7868&\"'!\"&H7868)),\"\",IFERROR(VLOOKUP(TEXT(INDIRECT(\"'\"&F7868&\"'!\"&H7868),\"0\"),Notes!$B$5:$C$100,2,FALSE),\"\"))","v":""},"2a","$U$146","$V$146"]
[27296,{"$f":"Menu!$F$29","v":"X"},{"$f":"Menu!$J$29","v":2020},{"$f":"IF(ISBLANK(INDIRECT(\"'\"&F7869&\"'!\"&G7869)),\"\",INDIRECT(\"'\"&F7869&\"'!\"&G7869))","v":""},{"$f":"IF(ISBLANK(INDIRECT(\"'\"&F7869&\"'!\"&H7869)),\"\",IFERROR(VLOOKUP(TEXT(INDIRECT(\"'\"&F7869&\"'!\"&H7869),\"0\"),Notes!$B$5:$C$100,2,FALSE),\"\"))","v":""},"2a","$S$146","$T$146"]
[27297,{"$f":"Menu!$F$29","v":"X"},{"$f":"Menu!$J$29","v":2020},{"$f":"IF(ISBLANK(INDIRECT(\"'\"&F7870&\"'!\"&G7870)),\"\",INDIRECT(\"'\"&F7870&\"'!\"&G7870))","v":""},{"$f":"IF(ISBLANK(INDIRECT(\"'\"&F7870&\"'!\"&H7870)),\"\",IFERROR(VLOOKUP(TEXT(INDIRECT(\"'\"&F7870&\"'!\"&H7870),\"0\"),Notes!$B$5:$C$100,2,FALSE),\"\"))","v":""},"2d","$K$146","$L$146"]
[27298,{"$f":"Menu!$F$29","v":"X"},{"$f":"Menu!$J$29","v":2020},{"$f":"IF(ISBLANK(INDIRECT(\"'\"&F7871&\"'!\"&G7871)),\"\",INDIRECT(\"'\"&F7871&\"'!\"&G7871))","v":""},{"$f":"IF(ISBLANK(INDIRECT(\"'\"&F7871&\"'!\"&H7871)),\"\",IFERROR(VLOOKUP(TEXT(INDIRECT(\"'\"&F7871&\"'!\"&H7871),\"0\"),Notes!$B$5:$C$100,2,FALSE),\"\"))","v":""},"2d","$O$146","$P$146"]
[27299,{"$f":"Menu!$F$29","v":"X"},{"$f":"Menu!$J$29","v":2020},{"$f":"IF(ISBLANK(INDIRECT(\"'\"&F7872&\"'!\"&G7872)),\"\",INDIRECT(\"'\"&F7872&\"'!\"&G7872))","v":""},{"$f":"IF(ISBLANK(INDIRECT(\"'\"&F7872&\"'!\"&H7872)),\"\",IFERROR(VLOOKUP(TEXT(INDIRECT(\"'\"&F7872&\"'!\"&H7872),\"0\"),Notes!$B$5:$C$100,2,FALSE),\"\"))","v":""},"2d","$M$146","$N$146"]
[27300,{"$f":"Menu!$F$29","v":"X"},{"$f":"Menu!$J$29","v":2020},{"$f":"IF(ISBLANK(INDIRECT(\"'\"&F7873&\"'!\"&G7873)),\"\",INDIRECT(\"'\"&F7873&\"'!\"&G7873))","v":""},{"$f":"IF(ISBLANK(INDIRECT(\"'\"&F7873&\"'!\"&H7873)),\"\",IFERROR(VLOOKUP(TEXT(INDIRECT(\"'\"&F7873&\"'!\"&H7873),\"0\"),Notes!$B$5:$C$100,2,FALSE),\"\"))","v":""},"2d","$Q$146","$R$146"]
[27301,{"$f":"Menu!$F$29","v":"X"},{"$f":"Menu!$J$29","v":2020},{"$f":"IF(ISBLANK(INDIRECT(\"'\"&F7874&\"'!\"&G7874)),\"\",INDIRECT(\"'\"&F7874&\"'!\"&G7874))","v":""},{"$f":"IF(ISBLANK(INDIRECT(\"'\"&F7874&\"'!\"&H7874)),\"\",IFERROR(VLOOKUP(TEXT(INDIRECT(\"'\"&F7874&\"'!\"&H7874),\"0\"),Notes!$B$5:$C$100,2,FALSE),\"\"))","v":""},"2d","$U$146",{"$f":"IF(LEN(TRIM(MID(G7874,4,10)))-LEN(SUBSTITUTE(TRIM(MID(G7874,4,10)),\"$\",\"\"))=0,\"$\"&CHAR(CODE(MID(G7874,2,1))+1)&\"$\"&TRIM(MID(G7874,4,10)),\"$\"&MID(G7874,2,1)&CHAR(CODE(MID(G7874,3,1))+1)&\"$\"&TRIM(MID(G7874,5,11)))","v":"$V$146"}]
[27302,{"$f":"Menu!$F$29","v":"X"},{"$f":"Menu!$J$29","v":2020},{"$f":"IF(ISBLANK(INDIRECT(\"'\"&F7875&\"'!\"&G7875)),\"\",INDIRECT(\"'\"&F7875&\"'!\"&G7875))","v":""},{"$f":"IF(ISBLANK(INDIRECT(\"'\"&F7875&\"'!\"&H7875)),\"\",IFERROR(VLOOKUP(TEXT(INDIRECT(\"'\"&F7875&\"'!\"&H7875),\"0\"),Notes!$B$5:$C$100,2,FALSE),\"\"))","v":""},"2d","$S$146","$T$146"]
[27303,{"$f":"Menu!$F$29","v":"X"},{"$f":"Menu!$J$29","v":2020},{"$f":"IF(ISBLANK(INDIRECT(\"'\"&F7876&\"'!\"&G7876)),\"\",INDIRECT(\"'\"&F7876&\"'!\"&G7876))","v":""},{"$f":"IF(ISBLANK(INDIRECT(\"'\"&F7876&\"'!\"&H7876)),\"\",IFERROR(VLOOKUP(TEXT(INDIRECT(\"'\"&F7876&\"'!\"&H7876),\"0\"),Notes!$B$5:$C$100,2,FALSE),\"\"))","v":""},"2a","$K$146","$L$146"]
[27304,{"$f":"Menu!$F$29","v":"X"},{"$f":"Menu!$J$29","v":2020},{"$f":"IF(ISBLANK(INDIRECT(\"'\"&F7877&\"'!\"&G7877)),\"\",INDIRECT(\"'\"&F7877&\"'!\"&G7877))","v":""},{"$f":"IF(ISBLANK(INDIRECT(\"'\"&F7877&\"'!\"&H7877)),\"\",IFERROR(VLOOKUP(TEXT(INDIRECT(\"'\"&F7877&\"'!\"&H7877),\"0\"),Notes!$B$5:$C$100,2,FALSE),\"\"))","v":""},"2a","$O$146","$P$146"]
[27305,{"$f":"Menu!$F$29","v":"X"},{"$f":"Menu!$J$29","v":2020},{"$f":"IF(ISBLANK(INDIRECT(\"'\"&F7878&\"'!\"&G7878)),\"\",INDIRECT(\"'\"&F7878&\"'!\"&G7878))","v":""},{"$f":"IF(ISBLANK(INDIRECT(\"'\"&F7878&\"'!\"&H7878)),\"\",IFERROR(VLOOKUP(TEXT(INDIRECT(\"'\"&F7878&\"'!\"&H7878),\"0\"),Notes!$B$5:$C$100,2,FALSE),\"\"))","v":""},"2a","$M$146","$N$146"]
[27306,{"$f":"Menu!$F$29","v":"X"},{"$f":"Menu!$J$29","v":2020},{"$f":"IF(ISBLANK(INDIRECT(\"'\"&F7879&\"'!\"&G7879)),\"\",INDIRECT(\"'\"&F7879&\"'!\"&G7879))","v":""},{"$f":"IF(ISBLANK(INDIRECT(\"'\"&F7879&\"'!\"&H7879)),\"\",IFERROR(VLOOKUP(TEXT(INDIRECT(\"'\"&F7879&\"'!\"&H7879),\"0\"),Notes!$B$5:$C$100,2,FALSE),\"\"))","v":""},"2a","$E$146","$F$146"]
[27307,{"$f":"Menu!$F$29","v":"X"},{"$f":"Menu!$J$29","v":2020},{"$f":"IF(ISBLANK(INDIRECT(\"'\"&F7880&\"'!\"&G7880)),\"\",INDIRECT(\"'\"&F7880&\"'!\"&G7880))","v":""},{"$f":"IF(ISBLANK(INDIRECT(\"'\"&F7880&\"'!\"&H7880)),\"\",IFERROR(VLOOKUP(TEXT(INDIRECT(\"'\"&F7880&\"'!\"&H7880),\"0\"),Notes!$B$5:$C$100,2,FALSE),\"\"))","v":""},"2b","$K$147","$L$147"]
[27308,{"$f":"Menu!$F$29","v":"X"},{"$f":"Menu!$J$29","v":2020},{"$f":"IF(ISBLANK(INDIRECT(\"'\"&F7881&\"'!\"&G7881)),\"\",INDIRECT(\"'\"&F7881&\"'!\"&G7881))","v":""},{"$f":"IF(ISBLANK(INDIRECT(\"'\"&F7881&\"'!\"&H7881)),\"\",IFERROR(VLOOKUP(TEXT(INDIRECT(\"'\"&F7881&\"'!\"&H7881),\"0\"),Notes!$B$5:$C$100,2,FALSE),\"\"))","v":""},"2b","$O$147","$P$147"]
[27309,{"$f":"Menu!$F$29","v":"X"},{"$f":"Menu!$J$29","v":2020},{"$f":"IF(ISBLANK(INDIRECT(\"'\"&F7882&\"'!\"&G7882)),\"\",INDIRECT(\"'\"&F7882&\"'!\"&G7882))","v":""},{"$f":"IF(ISBLANK(INDIRECT(\"'\"&F7882&\"'!\"&H7882)),\"\",IFERROR(VLOOKUP(TEXT(INDIRECT(\"'\"&F7882&\"'!\"&H7882),\"0\"),Notes!$B$5:$C$100,2,FALSE),\"\"))","v":""},"2b","$M$147","$N$147"]
[27310,{"$f":"Menu!$F$29","v":"X"},{"$f":"Menu!$J$29","v":2020},{"$f":"IF(ISBLANK(INDIRECT(\"'\"&F7883&\"'!\"&G7883)),\"\",INDIRECT(\"'\"&F7883&\"'!\"&G7883))","v":""},{"$f":"IF(ISBLANK(INDIRECT(\"'\"&F7883&\"'!\"&H7883)),\"\",IFERROR(VLOOKUP(TEXT(INDIRECT(\"'\"&F7883&\"'!\"&H7883),\"0\"),Notes!$B$5:$C$100,2,FALSE),\"\"))","v":""},"2b","$Q$147","$R$147"]
[27311,{"$f":"Menu!$F$29","v":"X"},{"$f":"Menu!$J$29","v":2020},{"$f":"IF(ISBLANK(INDIRECT(\"'\"&F7884&\"'!\"&G7884)),\"\",INDIRECT(\"'\"&F7884&\"'!\"&G7884))","v":""},{"$f":"IF(ISBLANK(INDIRECT(\"'\"&F7884&\"'!\"&H7884)),\"\",IFERROR(VLOOKUP(TEXT(INDIRECT(\"'\"&F7884&\"'!\"&H7884),\"0\"),Notes!$B$5:$C$100,2,FALSE),\"\"))","v":""},"2b","$U$147","$V$147"]
[27312,{"$f":"Menu!$F$29","v":"X"},{"$f":"Menu!$J$29","v":2020},{"$f":"IF(ISBLANK(INDIRECT(\"'\"&F7885&\"'!\"&G7885)),\"\",INDIRECT(\"'\"&F7885&\"'!\"&G7885))","v":""},{"$f":"IF(ISBLANK(INDIRECT(\"'\"&F7885&\"'!\"&H7885)),\"\",IFERROR(VLOOKUP(TEXT(INDIRECT(\"'\"&F7885&\"'!\"&H7885),\"0\"),Notes!$B$5:$C$100,2,FALSE),\"\"))","v":""},"2b","$S$147","$T$147"]
[27316,{"$f":"Menu!$F$29","v":"X"},{"$f":"Menu!$J$29","v":2020},{"$f":"IF(ISBLANK(INDIRECT(\"'\"&F7886&\"'!\"&G7886)),\"\",INDIRECT(\"'\"&F7886&\"'!\"&G7886))","v":""},{"$f":"IF(ISBLANK(INDIRECT(\"'\"&F7886&\"'!\"&H7886)),\"\",IFERROR(VLOOKUP(TEXT(INDIRECT(\"'\"&F7886&\"'!\"&H7886),\"0\"),Notes!$B$5:$C$100,2,FALSE),\"\"))","v":""},"2a","$I$147","$J$147"]
[27317,{"$f":"Menu!$F$29","v":"X"},{"$f":"Menu!$J$29","v":2020},{"$f":"IF(ISBLANK(INDIRECT(\"'\"&F7887&\"'!\"&G7887)),\"\",INDIRECT(\"'\"&F7887&\"'!\"&G7887))","v":""},{"$f":"IF(ISBLANK(INDIRECT(\"'\"&F7887&\"'!\"&H7887)),\"\",IFERROR(VLOOKUP(TEXT(INDIRECT(\"'\"&F7887&\"'!\"&H7887),\"0\"),Notes!$B$5:$C$100,2,FALSE),\"\"))","v":""},"2c","$E$147","$F$147"]
[27318,{"$f":"Menu!$F$29","v":"X"},{"$f":"Menu!$J$29","v":2020},{"$f":"IF(ISBLANK(INDIRECT(\"'\"&F7888&\"'!\"&G7888)),\"\",INDIRECT(\"'\"&F7888&\"'!\"&G7888))","v":""},{"$f":"IF(ISBLANK(INDIRECT(\"'\"&F7888&\"'!\"&H7888)),\"\",IFERROR(VLOOKUP(TEXT(INDIRECT(\"'\"&F7888&\"'!\"&H7888),\"0\"),Notes!$B$5:$C$100,2,FALSE),\"\"))","v":""},"2c","$I$147","$J$147"]
[27319,{"$f":"Menu!$F$29","v":"X"},{"$f":"Menu!$J$29","v":2020},{"$f":"IF(ISBLANK(INDIRECT(\"'\"&F7889&\"'!\"&G7889)),\"\",INDIRECT(\"'\"&F7889&\"'!\"&G7889))","v":""},{"$f":"IF(ISBLANK(INDIRECT(\"'\"&F7889&\"'!\"&H7889)),\"\",IFERROR(VLOOKUP(TEXT(INDIRECT(\"'\"&F7889&\"'!\"&H7889),\"0\"),Notes!$B$5:$C$100,2,FALSE),\"\"))","v":""},"2c","$G$147","$H$147"]
[27323,{"$f":"Menu!$F$29","v":"X"},{"$f":"Menu!$J$29","v":2020},{"$f":"IF(ISBLANK(INDIRECT(\"'\"&F7890&\"'!\"&G7890)),\"\",INDIRECT(\"'\"&F7890&\"'!\"&G7890))","v":""},{"$f":"IF(ISBLANK(INDIRECT(\"'\"&F7890&\"'!\"&H7890)),\"\",IFERROR(VLOOKUP(TEXT(INDIRECT(\"'\"&F7890&\"'!\"&H7890),\"0\"),Notes!$B$5:$C$100,2,FALSE),\"\"))","v":""},"2c","$K$147","$L$147"]
[27324,{"$f":"Menu!$F$29","v":"X"},{"$f":"Menu!$J$29","v":2020},{"$f":"IF(ISBLANK(INDIRECT(\"'\"&F7891&\"'!\"&G7891)),\"\",INDIRECT(\"'\"&F7891&\"'!\"&G7891))","v":""},{"$f":"IF(ISBLANK(INDIRECT(\"'\"&F7891&\"'!\"&H7891)),\"\",IFERROR(VLOOKUP(TEXT(INDIRECT(\"'\"&F7891&\"'!\"&H7891),\"0\"),Notes!$B$5:$C$100,2,FALSE),\"\"))","v":""},"2c","$O$147","$P$147"]
[27325,{"$f":"Menu!$F$29","v":"X"},{"$f":"Menu!$J$29","v":2020},{"$f":"IF(ISBLANK(INDIRECT(\"'\"&F7892&\"'!\"&G7892)),\"\",INDIRECT(\"'\"&F7892&\"'!\"&G7892))","v":""},{"$f":"IF(ISBLANK(INDIRECT(\"'\"&F7892&\"'!\"&H7892)),\"\",IFERROR(VLOOKUP(TEXT(INDIRECT(\"'\"&F7892&\"'!\"&H7892),\"0\"),Notes!$B$5:$C$100,2,FALSE),\"\"))","v":""},"2c","$M$147","$N$147"]
[27326,{"$f":"Menu!$F$29","v":"X"},{"$f":"Menu!$J$29","v":2020},{"$f":"IF(ISBLANK(INDIRECT(\"'\"&F7893&\"'!\"&G7893)),\"\",INDIRECT(\"'\"&F7893&\"'!\"&G7893))","v":""},{"$f":"IF(ISBLANK(INDIRECT(\"'\"&F7893&\"'!\"&H7893)),\"\",IFERROR(VLOOKUP(TEXT(INDIRECT(\"'\"&F7893&\"'!\"&H7893),\"0\"),Notes!$B$5:$C$100,2,FALSE),\"\"))","v":""},"2c","$Q$147","$R$147"]
[27327,{"$f":"Menu!$F$29","v":"X"},{"$f":"Menu!$J$29","v":2020},{"$f":"IF(ISBLANK(INDIRECT(\"'\"&F7894&\"'!\"&G7894)),\"\",INDIRECT(\"'\"&F7894&\"'!\"&G7894))","v":""},{"$f":"IF(ISBLANK(INDIRECT(\"'\"&F7894&\"'!\"&H7894)),\"\",IFERROR(VLOOKUP(TEXT(INDIRECT(\"'\"&F7894&\"'!\"&H7894),\"0\"),Notes!$B$5:$C$100,2,FALSE),\"\"))","v":""},"2c","$U$147","$V$147"]
[27328,{"$f":"Menu!$F$29","v":"X"},{"$f":"Menu!$J$29","v":2020},{"$f":"IF(ISBLANK(INDIRECT(\"'\"&F7895&\"'!\"&G7895)),\"\",INDIRECT(\"'\"&F7895&\"'!\"&G7895))","v":""},{"$f":"IF(ISBLANK(INDIRECT(\"'\"&F7895&\"'!\"&H7895)),\"\",IFERROR(VLOOKUP(TEXT(INDIRECT(\"'\"&F7895&\"'!\"&H7895),\"0\"),Notes!$B$5:$C$100,2,FALSE),\"\"))","v":""},"2c","$S$147","$T$147"]
[27329,{"$f":"Menu!$F$29","v":"X"},{"$f":"Menu!$J$29","v":2020},{"$f":"IF(ISBLANK(INDIRECT(\"'\"&F7896&\"'!\"&G7896)),\"\",INDIRECT(\"'\"&F7896&\"'!\"&G7896))","v":""},{"$f":"IF(ISBLANK(INDIRECT(\"'\"&F7896&\"'!\"&H7896)),\"\",IFERROR(VLOOKUP(TEXT(INDIRECT(\"'\"&F7896&\"'!\"&H7896),\"0\"),Notes!$B$5:$C$100,2,FALSE),\"\"))","v":""},"2c","$W$147","$X$147"]
[27330,{"$f":"Menu!$F$29","v":"X"},{"$f":"Menu!$J$29","v":2020},{"$f":"IF(ISBLANK(INDIRECT(\"'\"&F7897&\"'!\"&G7897)),\"\",INDIRECT(\"'\"&F7897&\"'!\"&G7897))","v":""},{"$f":"IF(ISBLANK(INDIRECT(\"'\"&F7897&\"'!\"&H7897)),\"\",IFERROR(VLOOKUP(TEXT(INDIRECT(\"'\"&F7897&\"'!\"&H7897),\"0\"),Notes!$B$5:$C$100,2,FALSE),\"\"))","v":""},"2c","$AA$147","$AB$147"]
[27331,{"$f":"Menu!$F$29","v":"X"},{"$f":"Menu!$J$29","v":2020},{"$f":"IF(ISBLANK(INDIRECT(\"'\"&F7898&\"'!\"&G7898)),\"\",INDIRECT(\"'\"&F7898&\"'!\"&G7898))","v":""},{"$f":"IF(ISBLANK(INDIRECT(\"'\"&F7898&\"'!\"&H7898)),\"\",IFERROR(VLOOKUP(TEXT(INDIRECT(\"'\"&F7898&\"'!\"&H7898),\"0\"),Notes!$B$5:$C$100,2,FALSE),\"\"))","v":""},"2c","$Y$147","$Z$147"]
[27338,{"$f":"Menu!$F$29","v":"X"},{"$f":"Menu!$J$29","v":2020},{"$f":"IF(ISBLANK(INDIRECT(\"'\"&F7899&\"'!\"&G7899)),\"\",INDIRECT(\"'\"&F7899&\"'!\"&G7899))","v":""},{"$f":"IF(ISBLANK(INDIRECT(\"'\"&F7899&\"'!\"&H7899)),\"\",IFERROR(VLOOKUP(TEXT(INDIRECT(\"'\"&F7899&\"'!\"&H7899),\"0\"),Notes!$B$5:$C$100,2,FALSE),\"\"))","v":""},"2e","$BG$148","$BH$148"]
[27339,{"$f":"Menu!$F$29","v":"X"},{"$f":"Menu!$J$29","v":2020},{"$f":"IF(ISBLANK(INDIRECT(\"'\"&F7900&\"'!\"&G7900)),\"\",INDIRECT(\"'\"&F7900&\"'!\"&G7900))","v":""},{"$f":"IF(ISBLANK(INDIRECT(\"'\"&F7900&\"'!\"&H7900)),\"\",IFERROR(VLOOKUP(TEXT(INDIRECT(\"'\"&F7900&\"'!\"&H7900),\"0\"),Notes!$B$5:$C$100,2,FALSE),\"\"))","v":""},"2e","$BK$148","$BL$148"]
[27340,{"$f":"Menu!$F$29","v":"X"},{"$f":"Menu!$J$29","v":2020},{"$f":"IF(ISBLANK(INDIRECT(\"'\"&F7901&\"'!\"&G7901)),\"\",INDIRECT(\"'\"&F7901&\"'!\"&G7901))","v":""},{"$f":"IF(ISBLANK(INDIRECT(\"'\"&F7901&\"'!\"&H7901)),\"\",IFERROR(VLOOKUP(TEXT(INDIRECT(\"'\"&F7901&\"'!\"&H7901),\"0\"),Notes!$B$5:$C$100,2,FALSE),\"\"))","v":""},"2e","$BI$148","$BJ$148"]
[27341,{"$f":"Menu!$F$29","v":"X"},{"$f":"Menu!$J$29","v":2020},{"$f":"IF(ISBLANK(INDIRECT(\"'\"&F7902&\"'!\"&G7902)),\"\",INDIRECT(\"'\"&F7902&\"'!\"&G7902))","v":""},{"$f":"IF(ISBLANK(INDIRECT(\"'\"&F7902&\"'!\"&H7902)),\"\",IFERROR(VLOOKUP(TEXT(INDIRECT(\"'\"&F7902&\"'!\"&H7902),\"0\"),Notes!$B$5:$C$100,2,FALSE),\"\"))","v":""},"2e","$E$148","$F$148"]
[27342,{"$f":"Menu!$F$29","v":"X"},{"$f":"Menu!$J$29","v":2020},{"$f":"IF(ISBLANK(INDIRECT(\"'\"&F7903&\"'!\"&G7903)),\"\",INDIRECT(\"'\"&F7903&\"'!\"&G7903))","v":""},{"$f":"IF(ISBLANK(INDIRECT(\"'\"&F7903&\"'!\"&H7903)),\"\",IFERROR(VLOOKUP(TEXT(INDIRECT(\"'\"&F7903&\"'!\"&H7903),\"0\"),Notes!$B$5:$C$100,2,FALSE),\"\"))","v":""},"2e","$I$148","$J$148"]
[27343,{"$f":"Menu!$F$29","v":"X"},{"$f":"Menu!$J$29","v":2020},{"$f":"IF(ISBLANK(INDIRECT(\"'\"&F7904&\"'!\"&G7904)),\"\",INDIRECT(\"'\"&F7904&\"'!\"&G7904))","v":""},{"$f":"IF(ISBLANK(INDIRECT(\"'\"&F7904&\"'!\"&H7904)),\"\",IFERROR(VLOOKUP(TEXT(INDIRECT(\"'\"&F7904&\"'!\"&H7904),\"0\"),Notes!$B$5:$C$100,2,FALSE),\"\"))","v":""},"2e","$G$148","$H$148"]
[27344,{"$f":"Menu!$F$29","v":"X"},{"$f":"Menu!$J$29","v":2020},{"$f":"IF(ISBLANK(INDIRECT(\"'\"&F7905&\"'!\"&G7905)),\"\",INDIRECT(\"'\"&F7905&\"'!\"&G7905))","v":""},{"$f":"IF(ISBLANK(INDIRECT(\"'\"&F7905&\"'!\"&H7905)),\"\",IFERROR(VLOOKUP(TEXT(INDIRECT(\"'\"&F7905&\"'!\"&H7905),\"0\"),Notes!$B$5:$C$100,2,FALSE),\"\"))","v":""},"2e","$K$148","$L$148"]
[27345,{"$f":"Menu!$F$29","v":"X"},{"$f":"Menu!$J$29","v":2020},{"$f":"IF(ISBLANK(INDIRECT(\"'\"&F7906&\"'!\"&G7906)),\"\",INDIRECT(\"'\"&F7906&\"'!\"&G7906))","v":""},{"$f":"IF(ISBLANK(INDIRECT(\"'\"&F7906&\"'!\"&H7906)),\"\",IFERROR(VLOOKUP(TEXT(INDIRECT(\"'\"&F7906&\"'!\"&H7906),\"0\"),Notes!$B$5:$C$100,2,FALSE),\"\"))","v":""},"2e","$O$148","$P$148"]
[27346,{"$f":"Menu!$F$29","v":"X"},{"$f":"Menu!$J$29","v":2020},{"$f":"IF(ISBLANK(INDIRECT(\"'\"&F7907&\"'!\"&G7907)),\"\",INDIRECT(\"'\"&F7907&\"'!\"&G7907))","v":""},{"$f":"IF(ISBLANK(INDIRECT(\"'\"&F7907&\"'!\"&H7907)),\"\",IFERROR(VLOOKUP(TEXT(INDIRECT(\"'\"&F7907&\"'!\"&H7907),\"0\"),Notes!$B$5:$C$100,2,FALSE),\"\"))","v":""},"2e","$M$148","$N$148"]
[27347,{"$f":"Menu!$F$29","v":"X"},{"$f":"Menu!$J$29","v":2020},{"$f":"IF(ISBLANK(INDIRECT(\"'\"&F7908&\"'!\"&G7908)),\"\",INDIRECT(\"'\"&F7908&\"'!\"&G7908))","v":""},{"$f":"IF(ISBLANK(INDIRECT(\"'\"&F7908&\"'!\"&H7908)),\"\",IFERROR(VLOOKUP(TEXT(INDIRECT(\"'\"&F7908&\"'!\"&H7908),\"0\"),Notes!$B$5:$C$100,2,FALSE),\"\"))","v":""},"2e","$Q$148","$R$148"]
[27348,{"$f":"Menu!$F$29","v":"X"},{"$f":"Menu!$J$29","v":2020},{"$f":"IF(ISBLANK(INDIRECT(\"'\"&F7909&\"'!\"&G7909)),\"\",INDIRECT(\"'\"&F7909&\"'!\"&G7909))","v":""},{"$f":"IF(ISBLANK(INDIRECT(\"'\"&F7909&\"'!\"&H7909)),\"\",IFERROR(VLOOKUP(TEXT(INDIRECT(\"'\"&F7909&\"'!\"&H7909),\"0\"),Notes!$B$5:$C$100,2,FALSE),\"\"))","v":""},"2e","$U$148","$V$148"]
[27349,{"$f":"Menu!$F$29","v":"X"},{"$f":"Menu!$J$29","v":2020},{"$f":"IF(ISBLANK(INDIRECT(\"'\"&F7910&\"'!\"&G7910)),\"\",INDIRECT(\"'\"&F7910&\"'!\"&G7910))","v":""},{"$f":"IF(ISBLANK(INDIRECT(\"'\"&F7910&\"'!\"&H7910)),\"\",IFERROR(VLOOKUP(TEXT(INDIRECT(\"'\"&F7910&\"'!\"&H7910),\"0\"),Notes!$B$5:$C$100,2,FALSE),\"\"))","v":""},"2e","$S$148","$T$148"]
[27350,{"$f":"Menu!$F$29","v":"X"},{"$f":"Menu!$J$29","v":2020},{"$f":"IF(ISBLANK(INDIRECT(\"'\"&F7911&\"'!\"&G7911)),\"\",INDIRECT(\"'\"&F7911&\"'!\"&G7911))","v":""},{"$f":"IF(ISBLANK(INDIRECT(\"'\"&F7911&\"'!\"&H7911)),\"\",IFERROR(VLOOKUP(TEXT(INDIRECT(\"'\"&F7911&\"'!\"&H7911),\"0\"),Notes!$B$5:$C$100,2,FALSE),\"\"))","v":""},"2e","$W$148","$X$148"]
[27351,{"$f":"Menu!$F$29","v":"X"},{"$f":"Menu!$J$29","v":2020},{"$f":"IF(ISBLANK(INDIRECT(\"'\"&F7912&\"'!\"&G7912)),\"\",INDIRECT(\"'\"&F7912&\"'!\"&G7912))","v":""},{"$f":"IF(ISBLANK(INDIRECT(\"'\"&F7912&\"'!\"&H7912)),\"\",IFERROR(VLOOKUP(TEXT(INDIRECT(\"'\"&F7912&\"'!\"&H7912),\"0\"),Notes!$B$5:$C$100,2,FALSE),\"\"))","v":""},"2e","$AA$148","$AB$148"]
[27352,{"$f":"Menu!$F$29","v":"X"},{"$f":"Menu!$J$29","v":2020},{"$f":"IF(ISBLANK(INDIRECT(\"'\"&F7913&\"'!\"&G7913)),\"\",INDIRECT(\"'\"&F7913&\"'!\"&G7913))","v":""},{"$f":"IF(ISBLANK(INDIRECT(\"'\"&F7913&\"'!\"&H7913)),\"\",IFERROR(VLOOKUP(TEXT(INDIRECT(\"'\"&F7913&\"'!\"&H7913),\"0\"),Notes!$B$5:$C$100,2,FALSE),\"\"))","v":""},"2e","$Y$148","$Z$148"]
[27353,{"$f":"Menu!$F$29","v":"X"},{"$f":"Menu!$J$29","v":2020},{"$f":"IF(ISBLANK(INDIRECT(\"'\"&F7914&\"'!\"&G7914)),\"\",INDIRECT(\"'\"&F7914&\"'!\"&G7914))","v":""},{"$f":"IF(ISBLANK(INDIRECT(\"'\"&F7914&\"'!\"&H7914)),\"\",IFERROR(VLOOKUP(TEXT(INDIRECT(\"'\"&F7914&\"'!\"&H7914),\"0\"),Notes!$B$5:$C$100,2,FALSE),\"\"))","v":""},"2e","$AC$148","$AD$148"]
[27354,{"$f":"Menu!$F$29","v":"X"},{"$f":"Menu!$J$29","v":2020},{"$f":"IF(ISBLANK(INDIRECT(\"'\"&F7915&\"'!\"&G7915)),\"\",INDIRECT(\"'\"&F7915&\"'!\"&G7915))","v":""},{"$f":"IF(ISBLANK(INDIRECT(\"'\"&F7915&\"'!\"&H7915)),\"\",IFERROR(VLOOKUP(TEXT(INDIRECT(\"'\"&F7915&\"'!\"&H7915),\"0\"),Notes!$B$5:$C$100,2,FALSE),\"\"))","v":""},"2e","$AG$148","$AH$148"]
[27355,{"$f":"Menu!$F$29","v":"X"},{"$f":"Menu!$J$29","v":2020},{"$f":"IF(ISBLANK(INDIRECT(\"'\"&F7916&\"'!\"&G7916)),\"\",INDIRECT(\"'\"&F7916&\"'!\"&G7916))","v":""},{"$f":"IF(ISBLANK(INDIRECT(\"'\"&F7916&\"'!\"&H7916)),\"\",IFERROR(VLOOKUP(TEXT(INDIRECT(\"'\"&F7916&\"'!\"&H7916),\"0\"),Notes!$B$5:$C$100,2,FALSE),\"\"))","v":""},"2e","$AE$148","$AF$148"]
[27356,{"$f":"Menu!$F$29","v":"X"},{"$f":"Menu!$J$29","v":2020},{"$f":"IF(ISBLANK(INDIRECT(\"'\"&F7917&\"'!\"&G7917)),\"\",INDIRECT(\"'\"&F7917&\"'!\"&G7917))","v":""},{"$f":"IF(ISBLANK(INDIRECT(\"'\"&F7917&\"'!\"&H7917)),\"\",IFERROR(VLOOKUP(TEXT(INDIRECT(\"'\"&F7917&\"'!\"&H7917),\"0\"),Notes!$B$5:$C$100,2,FALSE),\"\"))","v":""},"2e","$AI$148","$AJ$148"]
[27357,{"$f":"Menu!$F$29","v":"X"},{"$f":"Menu!$J$29","v":2020},{"$f":"IF(ISBLANK(INDIRECT(\"'\"&F7918&\"'!\"&G7918)),\"\",INDIRECT(\"'\"&F7918&\"'!\"&G7918))","v":""},{"$f":"IF(ISBLANK(INDIRECT(\"'\"&F7918&\"'!\"&H7918)),\"\",IFERROR(VLOOKUP(TEXT(INDIRECT(\"'\"&F7918&\"'!\"&H7918),\"0\"),Notes!$B$5:$C$100,2,FALSE),\"\"))","v":""},"2e","$AM$148","$AN$148"]
[27358,{"$f":"Menu!$F$29","v":"X"},{"$f":"Menu!$J$29","v":2020},{"$f":"IF(ISBLANK(INDIRECT(\"'\"&F7919&\"'!\"&G7919)),\"\",INDIRECT(\"'\"&F7919&\"'!\"&G7919))","v":""},{"$f":"IF(ISBLANK(INDIRECT(\"'\"&F7919&\"'!\"&H7919)),\"\",IFERROR(VLOOKUP(TEXT(INDIRECT(\"'\"&F7919&\"'!\"&H7919),\"0\"),Notes!$B$5:$C$100,2,FALSE),\"\"))","v":""},"2e","$AK$148","$AL$148"]
[27359,{"$f":"Menu!$F$29","v":"X"},{"$f":"Menu!$J$29","v":2020},{"$f":"IF(ISBLANK(INDIRECT(\"'\"&F7920&\"'!\"&G7920)),\"\",INDIRECT(\"'\"&F7920&\"'!\"&G7920))","v":""},{"$f":"IF(ISBLANK(INDIRECT(\"'\"&F7920&\"'!\"&H7920)),\"\",IFERROR(VLOOKUP(TEXT(INDIRECT(\"'\"&F7920&\"'!\"&H7920),\"0\"),Notes!$B$5:$C$100,2,FALSE),\"\"))","v":""},"2e","$AO$148","$AP$148"]
[27360,{"$f":"Menu!$F$29","v":"X"},{"$f":"Menu!$J$29","v":2020},{"$f":"IF(ISBLANK(INDIRECT(\"'\"&F7921&\"'!\"&G7921)),\"\",INDIRECT(\"'\"&F7921&\"'!\"&G7921))","v":""},{"$f":"IF(ISBLANK(INDIRECT(\"'\"&F7921&\"'!\"&H7921)),\"\",IFERROR(VLOOKUP(TEXT(INDIRECT(\"'\"&F7921&\"'!\"&H7921),\"0\"),Notes!$B$5:$C$100,2,FALSE),\"\"))","v":""},"2e","$AS$148","$AT$148"]
[27361,{"$f":"Menu!$F$29","v":"X"},{"$f":"Menu!$J$29","v":2020},{"$f":"IF(ISBLANK(INDIRECT(\"'\"&F7922&\"'!\"&G7922)),\"\",INDIRECT(\"'\"&F7922&\"'!\"&G7922))","v":""},{"$f":"IF(ISBLANK(INDIRECT(\"'\"&F7922&\"'!\"&H7922)),\"\",IFERROR(VLOOKUP(TEXT(INDIRECT(\"'\"&F7922&\"'!\"&H7922),\"0\"),Notes!$B$5:$C$100,2,FALSE),\"\"))","v":""},"2e","$AQ$148","$AR$148"]
[27362,{"$f":"Menu!$F$29","v":"X"},{"$f":"Menu!$J$29","v":2020},{"$f":"IF(ISBLANK(INDIRECT(\"'\"&F7923&\"'!\"&G7923)),\"\",INDIRECT(\"'\"&F7923&\"'!\"&G7923))","v":""},{"$f":"IF(ISBLANK(INDIRECT(\"'\"&F7923&\"'!\"&H7923)),\"\",IFERROR(VLOOKUP(TEXT(INDIRECT(\"'\"&F7923&\"'!\"&H7923),\"0\"),Notes!$B$5:$C$100,2,FALSE),\"\"))","v":""},"2e","$AU$148","$AV$148"]
[27363,{"$f":"Menu!$F$29","v":"X"},{"$f":"Menu!$J$29","v":2020},{"$f":"IF(ISBLANK(INDIRECT(\"'\"&F7924&\"'!\"&G7924)),\"\",INDIRECT(\"'\"&F7924&\"'!\"&G7924))","v":""},{"$f":"IF(ISBLANK(INDIRECT(\"'\"&F7924&\"'!\"&H7924)),\"\",IFERROR(VLOOKUP(TEXT(INDIRECT(\"'\"&F7924&\"'!\"&H7924),\"0\"),Notes!$B$5:$C$100,2,FALSE),\"\"))","v":""},"2e","$AY$148","$AZ$148"]
[27364,{"$f":"Menu!$F$29","v":"X"},{"$f":"Menu!$J$29","v":2020},{"$f":"IF(ISBLANK(INDIRECT(\"'\"&F7925&\"'!\"&G7925)),\"\",INDIRECT(\"'\"&F7925&\"'!\"&G7925))","v":""},{"$f":"IF(ISBLANK(INDIRECT(\"'\"&F7925&\"'!\"&H7925)),\"\",IFERROR(VLOOKUP(TEXT(INDIRECT(\"'\"&F7925&\"'!\"&H7925),\"0\"),Notes!$B$5:$C$100,2,FALSE),\"\"))","v":""},"2e","$AW$148","$AX$148"]
[27365,{"$f":"Menu!$F$29","v":"X"},{"$f":"Menu!$J$29","v":2020},{"$f":"IF(ISBLANK(INDIRECT(\"'\"&F7926&\"'!\"&G7926)),\"\",INDIRECT(\"'\"&F7926&\"'!\"&G7926))","v":""},{"$f":"IF(ISBLANK(INDIRECT(\"'\"&F7926&\"'!\"&H7926)),\"\",IFERROR(VLOOKUP(TEXT(INDIRECT(\"'\"&F7926&\"'!\"&H7926),\"0\"),Notes!$B$5:$C$100,2,FALSE),\"\"))","v":""},"2e","$BA$148","$BB$148"]
[27366,{"$f":"Menu!$F$29","v":"X"},{"$f":"Menu!$J$29","v":2020},{"$f":"IF(ISBLANK(INDIRECT(\"'\"&F7927&\"'!\"&G7927)),\"\",INDIRECT(\"'\"&F7927&\"'!\"&G7927))","v":""},{"$f":"IF(ISBLANK(INDIRECT(\"'\"&F7927&\"'!\"&H7927)),\"\",IFERROR(VLOOKUP(TEXT(INDIRECT(\"'\"&F7927&\"'!\"&H7927),\"0\"),Notes!$B$5:$C$100,2,FALSE),\"\"))","v":""},"2e","$BE$148","$BF$148"]
[27367,{"$f":"Menu!$F$29","v":"X"},{"$f":"Menu!$J$29","v":2020},{"$f":"IF(ISBLANK(INDIRECT(\"'\"&F7928&\"'!\"&G7928)),\"\",INDIRECT(\"'\"&F7928&\"'!\"&G7928))","v":""},{"$f":"IF(ISBLANK(INDIRECT(\"'\"&F7928&\"'!\"&H7928)),\"\",IFERROR(VLOOKUP(TEXT(INDIRECT(\"'\"&F7928&\"'!\"&H7928),\"0\"),Notes!$B$5:$C$100,2,FALSE),\"\"))","v":""},"2e","$BC$148","$BD$148"]
[27368,{"$f":"Menu!$F$29","v":"X"},{"$f":"Menu!$J$29","v":2020},{"$f":"IF(ISBLANK(INDIRECT(\"'\"&F7929&\"'!\"&G7929)),\"\",INDIRECT(\"'\"&F7929&\"'!\"&G7929))","v":""},{"$f":"IF(ISBLANK(INDIRECT(\"'\"&F7929&\"'!\"&H7929)),\"\",IFERROR(VLOOKUP(TEXT(INDIRECT(\"'\"&F7929&\"'!\"&H7929),\"0\"),Notes!$B$5:$C$100,2,FALSE),\"\"))","v":""},"2b","$E$147","$F$147"]
[27369,{"$f":"Menu!$F$29","v":"X"},{"$f":"Menu!$J$29","v":2020},{"$f":"IF(ISBLANK(INDIRECT(\"'\"&F7930&\"'!\"&G7930)),\"\",INDIRECT(\"'\"&F7930&\"'!\"&G7930))","v":""},{"$f":"IF(ISBLANK(INDIRECT(\"'\"&F7930&\"'!\"&H7930)),\"\",IFERROR(VLOOKUP(TEXT(INDIRECT(\"'\"&F7930&\"'!\"&H7930),\"0\"),Notes!$B$5:$C$100,2,FALSE),\"\"))","v":""},"2b","$I$147","$J$147"]
[27370,{"$f":"Menu!$F$29","v":"X"},{"$f":"Menu!$J$29","v":2020},{"$f":"IF(ISBLANK(INDIRECT(\"'\"&F7931&\"'!\"&G7931)),\"\",INDIRECT(\"'\"&F7931&\"'!\"&G7931))","v":""},{"$f":"IF(ISBLANK(INDIRECT(\"'\"&F7931&\"'!\"&H7931)),\"\",IFERROR(VLOOKUP(TEXT(INDIRECT(\"'\"&F7931&\"'!\"&H7931),\"0\"),Notes!$B$5:$C$100,2,FALSE),\"\"))","v":""},"2b","$G$147","$H$147"]
[27371,{"$f":"Menu!$F$29","v":"X"},{"$f":"Menu!$J$29","v":2020},{"$f":"IF(ISBLANK(INDIRECT(\"'\"&F7932&\"'!\"&G7932)),\"\",INDIRECT(\"'\"&F7932&\"'!\"&G7932))","v":""},null,"2a","$G$147","$H$147"]
[27372,{"$f":"Menu!$F$29","v":"X"},{"$f":"Menu!$J$29","v":2020},{"$f":"IF(ISBLANK(INDIRECT(\"'\"&F7933&\"'!\"&G7933)),\"\",INDIRECT(\"'\"&F7933&\"'!\"&G7933))","v":""},{"$f":"IF(ISBLANK(INDIRECT(\"'\"&F7933&\"'!\"&H7933)),\"\",IFERROR(VLOOKUP(TEXT(INDIRECT(\"'\"&F7933&\"'!\"&H7933),\"0\"),Notes!$B$5:$C$100,2,FALSE),\"\"))","v":""},"2b","$W$147","$X$147"]
[27373,{"$f":"Menu!$F$29","v":"X"},{"$f":"Menu!$J$29","v":2020},{"$f":"IF(ISBLANK(INDIRECT(\"'\"&F7934&\"'!\"&G7934)),\"\",INDIRECT(\"'\"&F7934&\"'!\"&G7934))","v":""},{"$f":"IF(ISBLANK(INDIRECT(\"'\"&F7934&\"'!\"&H7934)),\"\",IFERROR(VLOOKUP(TEXT(INDIRECT(\"'\"&F7934&\"'!\"&H7934),\"0\"),Notes!$B$5:$C$100,2,FALSE),\"\"))","v":""},"2b","$AA$147","$AB$147"]
[27374,{"$f":"Menu!$F$29","v":"X"},{"$f":"Menu!$J$29","v":2020},{"$f":"IF(ISBLANK(INDIRECT(\"'\"&F7935&\"'!\"&G7935)),\"\",INDIRECT(\"'\"&F7935&\"'!\"&G7935))","v":""},{"$f":"IF(ISBLANK(INDIRECT(\"'\"&F7935&\"'!\"&H7935)),\"\",IFERROR(VLOOKUP(TEXT(INDIRECT(\"'\"&F7935&\"'!\"&H7935),\"0\"),Notes!$B$5:$C$100,2,FALSE),\"\"))","v":""},"2b","$Y$147","$Z$147"]
[27375,{"$f":"Menu!$F$29","v":"X"},{"$f":"Menu!$J$29","v":2020},{"$f":"IF(ISBLANK(INDIRECT(\"'\"&F7936&\"'!\"&G7936)),\"\",INDIRECT(\"'\"&F7936&\"'!\"&G7936))","v":""},{"$f":"IF(ISBLANK(INDIRECT(\"'\"&F7936&\"'!\"&H7936)),\"\",IFERROR(VLOOKUP(TEXT(INDIRECT(\"'\"&F7936&\"'!\"&H7936),\"0\"),Notes!$B$5:$C$100,2,FALSE),\"\"))","v":""},"2d","$AC$147","$AD$147"]
[27376,{"$f":"Menu!$F$29","v":"X"},{"$f":"Menu!$J$29","v":2020},{"$f":"IF(ISBLANK(INDIRECT(\"'\"&F7937&\"'!\"&G7937)),\"\",INDIRECT(\"'\"&F7937&\"'!\"&G7937))","v":""},{"$f":"IF(ISBLANK(INDIRECT(\"'\"&F7937&\"'!\"&H7937)),\"\",IFERROR(VLOOKUP(TEXT(INDIRECT(\"'\"&F7937&\"'!\"&H7937),\"0\"),Notes!$B$5:$C$100,2,FALSE),\"\"))","v":""},"2d","$AG$147","$AH$147"]
[27377,{"$f":"Menu!$F$29","v":"X"},{"$f":"Menu!$J$29","v":2020},{"$f":"IF(ISBLANK(INDIRECT(\"'\"&F7938&\"'!\"&G7938)),\"\",INDIRECT(\"'\"&F7938&\"'!\"&G7938))","v":""},{"$f":"IF(ISBLANK(INDIRECT(\"'\"&F7938&\"'!\"&H7938)),\"\",IFERROR(VLOOKUP(TEXT(INDIRECT(\"'\"&F7938&\"'!\"&H7938),\"0\"),Notes!$B$5:$C$100,2,FALSE),\"\"))","v":""},"2d","$AE$147",{"$f":"IF(LEN(TRIM(MID(G7938,4,10)))-LEN(SUBSTITUTE(TRIM(MID(G7938,4,10)),\"$\",\"\"))=0,\"$\"&CHAR(CODE(MID(G7938,2,1))+1)&\"$\"&TRIM(MID(G7938,4,10)),\"$\"&MID(G7938,2,1)&CHAR(CODE(MID(G7938,3,1))+1)&\"$\"&TRIM(MID(G7938,5,11)))","v":"$AF$147"}]
[27378,{"$f":"Menu!$F$29","v":"X"},{"$f":"Menu!$J$29","v":2020},{"$f":"IF(ISBLANK(INDIRECT(\"'\"&F7939&\"'!\"&G7939)),\"\",INDIRECT(\"'\"&F7939&\"'!\"&G7939))","v":""},{"$f":"IF(ISBLANK(INDIRECT(\"'\"&F7939&\"'!\"&H7939)),\"\",IFERROR(VLOOKUP(TEXT(INDIRECT(\"'\"&F7939&\"'!\"&H7939),\"0\"),Notes!$B$5:$C$100,2,FALSE),\"\"))","v":""},"2d","$W$147","$X$147"]
[27379,{"$f":"Menu!$F$29","v":"X"},{"$f":"Menu!$J$29","v":2020},{"$f":"IF(ISBLANK(INDIRECT(\"'\"&F7940&\"'!\"&G7940)),\"\",INDIRECT(\"'\"&F7940&\"'!\"&G7940))","v":""},{"$f":"IF(ISBLANK(INDIRECT(\"'\"&F7940&\"'!\"&H7940)),\"\",IFERROR(VLOOKUP(TEXT(INDIRECT(\"'\"&F7940&\"'!\"&H7940),\"0\"),Notes!$B$5:$C$100,2,FALSE),\"\"))","v":""},"2d","$AA$147","$AB$147"]
[27380,{"$f":"Menu!$F$29","v":"X"},{"$f":"Menu!$J$29","v":2020},{"$f":"IF(ISBLANK(INDIRECT(\"'\"&F7941&\"'!\"&G7941)),\"\",INDIRECT(\"'\"&F7941&\"'!\"&G7941))","v":""},{"$f":"IF(ISBLANK(INDIRECT(\"'\"&F7941&\"'!\"&H7941)),\"\",IFERROR(VLOOKUP(TEXT(INDIRECT(\"'\"&F7941&\"'!\"&H7941),\"0\"),Notes!$B$5:$C$100,2,FALSE),\"\"))","v":""},"2d","$Y$147","$Z$147"]
[27381,{"$f":"Menu!$F$29","v":"X"},{"$f":"Menu!$J$29","v":2020},{"$f":"IF(ISBLANK(INDIRECT(\"'\"&F7942&\"'!\"&G7942)),\"\",INDIRECT(\"'\"&F7942&\"'!\"&G7942))","v":""},{"$f":"IF(ISBLANK(INDIRECT(\"'\"&F7942&\"'!\"&H7942)),\"\",IFERROR(VLOOKUP(TEXT(INDIRECT(\"'\"&F7942&\"'!\"&H7942),\"0\"),Notes!$B$5:$C$100,2,FALSE),\"\"))","v":""},"2d","$E$147","$F$147"]
[27382,{"$f":"Menu!$F$29","v":"X"},{"$f":"Menu!$J$29","v":2020},{"$f":"IF(ISBLANK(INDIRECT(\"'\"&F7943&\"'!\"&G7943)),\"\",INDIRECT(\"'\"&F7943&\"'!\"&G7943))","v":""},{"$f":"IF(ISBLANK(INDIRECT(\"'\"&F7943&\"'!\"&H7943)),\"\",IFERROR(VLOOKUP(TEXT(INDIRECT(\"'\"&F7943&\"'!\"&H7943),\"0\"),Notes!$B$5:$C$100,2,FALSE),\"\"))","v":""},"2d","$I$147","$J$147"]
[27383,{"$f":"Menu!$F$29","v":"X"},{"$f":"Menu!$J$29","v":2020},{"$f":"IF(ISBLANK(INDIRECT(\"'\"&F7944&\"'!\"&G7944)),\"\",INDIRECT(\"'\"&F7944&\"'!\"&G7944))","v":""},{"$f":"IF(ISBLANK(INDIRECT(\"'\"&F7944&\"'!\"&H7944)),\"\",IFERROR(VLOOKUP(TEXT(INDIRECT(\"'\"&F7944&\"'!\"&H7944),\"0\"),Notes!$B$5:$C$100,2,FALSE),\"\"))","v":""},"2d","$G$147","$H$147"]
[27384,{"$f":"Menu!$F$29","v":"X"},{"$f":"Menu!$J$29","v":2020},{"$f":"IF(ISBLANK(INDIRECT(\"'\"&F7945&\"'!\"&G7945)),\"\",INDIRECT(\"'\"&F7945&\"'!\"&G7945))","v":""},{"$f":"IF(ISBLANK(INDIRECT(\"'\"&F7945&\"'!\"&H7945)),\"\",IFERROR(VLOOKUP(TEXT(INDIRECT(\"'\"&F7945&\"'!\"&H7945),\"0\"),Notes!$B$5:$C$100,2,FALSE),\"\"))","v":""},"2a","$Q$147","$R$147"]
[27385,{"$f":"Menu!$F$29","v":"X"},{"$f":"Menu!$J$29","v":2020},{"$f":"IF(ISBLANK(INDIRECT(\"'\"&F7946&\"'!\"&G7946)),\"\",INDIRECT(\"'\"&F7946&\"'!\"&G7946))","v":""},{"$f":"IF(ISBLANK(INDIRECT(\"'\"&F7946&\"'!\"&H7946)),\"\",IFERROR(VLOOKUP(TEXT(INDIRECT(\"'\"&F7946&\"'!\"&H7946),\"0\"),Notes!$B$5:$C$100,2,FALSE),\"\"))","v":""},"2a","$U$147","$V$147"]
[27386,{"$f":"Menu!$F$29","v":"X"},{"$f":"Menu!$J$29","v":2020},{"$f":"IF(ISBLANK(INDIRECT(\"'\"&F7947&\"'!\"&G7947)),\"\",INDIRECT(\"'\"&F7947&\"'!\"&G7947))","v":""},{"$f":"IF(ISBLANK(INDIRECT(\"'\"&F7947&\"'!\"&H7947)),\"\",IFERROR(VLOOKUP(TEXT(INDIRECT(\"'\"&F7947&\"'!\"&H7947),\"0\"),Notes!$B$5:$C$100,2,FALSE),\"\"))","v":""},"2a","$S$147","$T$147"]
[27387,{"$f":"Menu!$F$29","v":"X"},{"$f":"Menu!$J$29","v":2020},{"$f":"IF(ISBLANK(INDIRECT(\"'\"&F7948&\"'!\"&G7948)),\"\",INDIRECT(\"'\"&F7948&\"'!\"&G7948))","v":""},{"$f":"IF(ISBLANK(INDIRECT(\"'\"&F7948&\"'!\"&H7948)),\"\",IFERROR(VLOOKUP(TEXT(INDIRECT(\"'\"&F7948&\"'!\"&H7948),\"0\"),Notes!$B$5:$C$100,2,FALSE),\"\"))","v":""},"2d","$K$147","$L$147"]
[27388,{"$f":"Menu!$F$29","v":"X"},{"$f":"Menu!$J$29","v":2020},{"$f":"IF(ISBLANK(INDIRECT(\"'\"&F7949&\"'!\"&G7949)),\"\",INDIRECT(\"'\"&F7949&\"'!\"&G7949))","v":""},{"$f":"IF(ISBLANK(INDIRECT(\"'\"&F7949&\"'!\"&H7949)),\"\",IFERROR(VLOOKUP(TEXT(INDIRECT(\"'\"&F7949&\"'!\"&H7949),\"0\"),Notes!$B$5:$C$100,2,FALSE),\"\"))","v":""},"2d","$O$147","$P$147"]
[27389,{"$f":"Menu!$F$29","v":"X"},{"$f":"Menu!$J$29","v":2020},{"$f":"IF(ISBLANK(INDIRECT(\"'\"&F7950&\"'!\"&G7950)),\"\",INDIRECT(\"'\"&F7950&\"'!\"&G7950))","v":""},{"$f":"IF(ISBLANK(INDIRECT(\"'\"&F7950&\"'!\"&H7950)),\"\",IFERROR(VLOOKUP(TEXT(INDIRECT(\"'\"&F7950&\"'!\"&H7950),\"0\"),Notes!$B$5:$C$100,2,FALSE),\"\"))","v":""},"2d","$M$147","$N$147"]
[27390,{"$f":"Menu!$F$29","v":"X"},{"$f":"Menu!$J$29","v":2020},{"$f":"IF(ISBLANK(INDIRECT(\"'\"&F7951&\"'!\"&G7951)),\"\",INDIRECT(\"'\"&F7951&\"'!\"&G7951))","v":""},{"$f":"IF(ISBLANK(INDIRECT(\"'\"&F7951&\"'!\"&H7951)),\"\",IFERROR(VLOOKUP(TEXT(INDIRECT(\"'\"&F7951&\"'!\"&H7951),\"0\"),Notes!$B$5:$C$100,2,FALSE),\"\"))","v":""},"2d","$Q$147","$R$147"]
[27391,{"$f":"Menu!$F$29","v":"X"},{"$f":"Menu!$J$29","v":2020},{"$f":"IF(ISBLANK(INDIRECT(\"'\"&F7952&\"'!\"&G7952)),\"\",INDIRECT(\"'\"&F7952&\"'!\"&G7952))","v":""},{"$f":"IF(ISBLANK(INDIRECT(\"'\"&F7952&\"'!\"&H7952)),\"\",IFERROR(VLOOKUP(TEXT(INDIRECT(\"'\"&F7952&\"'!\"&H7952),\"0\"),Notes!$B$5:$C$100,2,FALSE),\"\"))","v":""},"2d","$U$147","$V$147"]
[27392,{"$f":"Menu!$F$29","v":"X"},{"$f":"Menu!$J$29","v":2020},{"$f":"IF(ISBLANK(INDIRECT(\"'\"&F7953&\"'!\"&G7953)),\"\",INDIRECT(\"'\"&F7953&\"'!\"&G7953))","v":""},{"$f":"IF(ISBLANK(INDIRECT(\"'\"&F7953&\"'!\"&H7953)),\"\",IFERROR(VLOOKUP(TEXT(INDIRECT(\"'\"&F7953&\"'!\"&H7953),\"0\"),Notes!$B$5:$C$100,2,FALSE),\"\"))","v":""},"2d","$S$147","$T$147"]
[27393,{"$f":"Menu!$F$29","v":"X"},{"$f":"Menu!$J$29","v":2020},{"$f":"IF(ISBLANK(INDIRECT(\"'\"&F7954&\"'!\"&G7954)),\"\",INDIRECT(\"'\"&F7954&\"'!\"&G7954))","v":""},{"$f":"IF(ISBLANK(INDIRECT(\"'\"&F7954&\"'!\"&H7954)),\"\",IFERROR(VLOOKUP(TEXT(INDIRECT(\"'\"&F7954&\"'!\"&H7954),\"0\"),Notes!$B$5:$C$100,2,FALSE),\"\"))","v":""},"2a","$K$147","$L$147"]
[27394,{"$f":"Menu!$F$29","v":"X"},{"$f":"Menu!$J$29","v":2020},{"$f":"IF(ISBLANK(INDIRECT(\"'\"&F7955&\"'!\"&G7955)),\"\",INDIRECT(\"'\"&F7955&\"'!\"&G7955))","v":""},{"$f":"IF(ISBLANK(INDIRECT(\"'\"&F7955&\"'!\"&H7955)),\"\",IFERROR(VLOOKUP(TEXT(INDIRECT(\"'\"&F7955&\"'!\"&H7955),\"0\"),Notes!$B$5:$C$100,2,FALSE),\"\"))","v":""},"2a","$O$147","$P$147"]
[27395,{"$f":"Menu!$F$29","v":"X"},{"$f":"Menu!$J$29","v":2020},{"$f":"IF(ISBLANK(INDIRECT(\"'\"&F7956&\"'!\"&G7956)),\"\",INDIRECT(\"'\"&F7956&\"'!\"&G7956))","v":""},{"$f":"IF(ISBLANK(INDIRECT(\"'\"&F7956&\"'!\"&H7956)),\"\",IFERROR(VLOOKUP(TEXT(INDIRECT(\"'\"&F7956&\"'!\"&H7956),\"0\"),Notes!$B$5:$C$100,2,FALSE),\"\"))","v":""},"2a","$M$147","$N$147"]
[27396,{"$f":"Menu!$F$29","v":"X"},{"$f":"Menu!$J$29","v":2020},{"$f":"IF(ISBLANK(INDIRECT(\"'\"&F7957&\"'!\"&G7957)),\"\",INDIRECT(\"'\"&F7957&\"'!\"&G7957))","v":""},{"$f":"IF(ISBLANK(INDIRECT(\"'\"&F7957&\"'!\"&H7957)),\"\",IFERROR(VLOOKUP(TEXT(INDIRECT(\"'\"&F7957&\"'!\"&H7957),\"0\"),Notes!$B$5:$C$100,2,FALSE),\"\"))","v":""},"2a","$E$147","$F$147"]
[27397,{"$f":"Menu!$F$29","v":"X"},{"$f":"Menu!$J$29","v":2020},{"$f":"IF(ISBLANK(INDIRECT(\"'\"&F7958&\"'!\"&G7958)),\"\",INDIRECT(\"'\"&F7958&\"'!\"&G7958))","v":""},{"$f":"IF(ISBLANK(INDIRECT(\"'\"&F7958&\"'!\"&H7958)),\"\",IFERROR(VLOOKUP(TEXT(INDIRECT(\"'\"&F7958&\"'!\"&H7958),\"0\"),Notes!$B$5:$C$100,2,FALSE),\"\"))","v":""},"2b","$K$149","$L$149"]
[27398,{"$f":"Menu!$F$29","v":"X"},{"$f":"Menu!$J$29","v":2020},{"$f":"IF(ISBLANK(INDIRECT(\"'\"&F7959&\"'!\"&G7959)),\"\",INDIRECT(\"'\"&F7959&\"'!\"&G7959))","v":""},{"$f":"IF(ISBLANK(INDIRECT(\"'\"&F7959&\"'!\"&H7959)),\"\",IFERROR(VLOOKUP(TEXT(INDIRECT(\"'\"&F7959&\"'!\"&H7959),\"0\"),Notes!$B$5:$C$100,2,FALSE),\"\"))","v":""},"2b","$O$149","$P$149"]
[27399,{"$f":"Menu!$F$29","v":"X"},{"$f":"Menu!$J$29","v":2020},{"$f":"IF(ISBLANK(INDIRECT(\"'\"&F7960&\"'!\"&G7960)),\"\",INDIRECT(\"'\"&F7960&\"'!\"&G7960))","v":""},{"$f":"IF(ISBLANK(INDIRECT(\"'\"&F7960&\"'!\"&H7960)),\"\",IFERROR(VLOOKUP(TEXT(INDIRECT(\"'\"&F7960&\"'!\"&H7960),\"0\"),Notes!$B$5:$C$100,2,FALSE),\"\"))","v":""},"2b","$M$149","$N$149"]
[27400,{"$f":"Menu!$F$29","v":"X"},{"$f":"Menu!$J$29","v":2020},{"$f":"IF(ISBLANK(INDIRECT(\"'\"&F7961&\"'!\"&G7961)),\"\",INDIRECT(\"'\"&F7961&\"'!\"&G7961))","v":""},{"$f":"IF(ISBLANK(INDIRECT(\"'\"&F7961&\"'!\"&H7961)),\"\",IFERROR(VLOOKUP(TEXT(INDIRECT(\"'\"&F7961&\"'!\"&H7961),\"0\"),Notes!$B$5:$C$100,2,FALSE),\"\"))","v":""},"2b","$Q$149","$R$149"]
[27401,{"$f":"Menu!$F$29","v":"X"},{"$f":"Menu!$J$29","v":2020},{"$f":"IF(ISBLANK(INDIRECT(\"'\"&F7962&\"'!\"&G7962)),\"\",INDIRECT(\"'\"&F7962&\"'!\"&G7962))","v":""},{"$f":"IF(ISBLANK(INDIRECT(\"'\"&F7962&\"'!\"&H7962)),\"\",IFERROR(VLOOKUP(TEXT(INDIRECT(\"'\"&F7962&\"'!\"&H7962),\"0\"),Notes!$B$5:$C$100,2,FALSE),\"\"))","v":""},"2b","$U$149","$V$149"]
[27402,{"$f":"Menu!$F$29","v":"X"},{"$f":"Menu!$J$29","v":2020},{"$f":"IF(ISBLANK(INDIRECT(\"'\"&F7963&\"'!\"&G7963)),\"\",INDIRECT(\"'\"&F7963&\"'!\"&G7963))","v":""},{"$f":"IF(ISBLANK(INDIRECT(\"'\"&F7963&\"'!\"&H7963)),\"\",IFERROR(VLOOKUP(TEXT(INDIRECT(\"'\"&F7963&\"'!\"&H7963),\"0\"),Notes!$B$5:$C$100,2,FALSE),\"\"))","v":""},"2b","$S$149","$T$149"]
[27406,{"$f":"Menu!$F$29","v":"X"},{"$f":"Menu!$J$29","v":2020},{"$f":"IF(ISBLANK(INDIRECT(\"'\"&F7964&\"'!\"&G7964)),\"\",INDIRECT(\"'\"&F7964&\"'!\"&G7964))","v":""},{"$f":"IF(ISBLANK(INDIRECT(\"'\"&F7964&\"'!\"&H7964)),\"\",IFERROR(VLOOKUP(TEXT(INDIRECT(\"'\"&F7964&\"'!\"&H7964),\"0\"),Notes!$B$5:$C$100,2,FALSE),\"\"))","v":""},"2a","$I$149","$J$149"]
[27407,{"$f":"Menu!$F$29","v":"X"},{"$f":"Menu!$J$29","v":2020},{"$f":"IF(ISBLANK(INDIRECT(\"'\"&F7965&\"'!\"&G7965)),\"\",INDIRECT(\"'\"&F7965&\"'!\"&G7965))","v":""},{"$f":"IF(ISBLANK(INDIRECT(\"'\"&F7965&\"'!\"&H7965)),\"\",IFERROR(VLOOKUP(TEXT(INDIRECT(\"'\"&F7965&\"'!\"&H7965),\"0\"),Notes!$B$5:$C$100,2,FALSE),\"\"))","v":""},"2c","$E$149","$F$149"]
[27408,{"$f":"Menu!$F$29","v":"X"},{"$f":"Menu!$J$29","v":2020},{"$f":"IF(ISBLANK(INDIRECT(\"'\"&F7966&\"'!\"&G7966)),\"\",INDIRECT(\"'\"&F7966&\"'!\"&G7966))","v":""},{"$f":"IF(ISBLANK(INDIRECT(\"'\"&F7966&\"'!\"&H7966)),\"\",IFERROR(VLOOKUP(TEXT(INDIRECT(\"'\"&F7966&\"'!\"&H7966),\"0\"),Notes!$B$5:$C$100,2,FALSE),\"\"))","v":""},"2c","$I$149","$J$149"]
[27409,{"$f":"Menu!$F$29","v":"X"},{"$f":"Menu!$J$29","v":2020},{"$f":"IF(ISBLANK(INDIRECT(\"'\"&F7967&\"'!\"&G7967)),\"\",INDIRECT(\"'\"&F7967&\"'!\"&G7967))","v":""},{"$f":"IF(ISBLANK(INDIRECT(\"'\"&F7967&\"'!\"&H7967)),\"\",IFERROR(VLOOKUP(TEXT(INDIRECT(\"'\"&F7967&\"'!\"&H7967),\"0\"),Notes!$B$5:$C$100,2,FALSE),\"\"))","v":""},"2c","$G$149","$H$149"]
[27413,{"$f":"Menu!$F$29","v":"X"},{"$f":"Menu!$J$29","v":2020},{"$f":"IF(ISBLANK(INDIRECT(\"'\"&F7968&\"'!\"&G7968)),\"\",INDIRECT(\"'\"&F7968&\"'!\"&G7968))","v":""},{"$f":"IF(ISBLANK(INDIRECT(\"'\"&F7968&\"'!\"&H7968)),\"\",IFERROR(VLOOKUP(TEXT(INDIRECT(\"'\"&F7968&\"'!\"&H7968),\"0\"),Notes!$B$5:$C$100,2,FALSE),\"\"))","v":""},"2c","$K$149","$L$149"]
[27414,{"$f":"Menu!$F$29","v":"X"},{"$f":"Menu!$J$29","v":2020},{"$f":"IF(ISBLANK(INDIRECT(\"'\"&F7969&\"'!\"&G7969)),\"\",INDIRECT(\"'\"&F7969&\"'!\"&G7969))","v":""},{"$f":"IF(ISBLANK(INDIRECT(\"'\"&F7969&\"'!\"&H7969)),\"\",IFERROR(VLOOKUP(TEXT(INDIRECT(\"'\"&F7969&\"'!\"&H7969),\"0\"),Notes!$B$5:$C$100,2,FALSE),\"\"))","v":""},"2c","$O$149","$P$149"]
[27415,{"$f":"Menu!$F$29","v":"X"},{"$f":"Menu!$J$29","v":2020},{"$f":"IF(ISBLANK(INDIRECT(\"'\"&F7970&\"'!\"&G7970)),\"\",INDIRECT(\"'\"&F7970&\"'!\"&G7970))","v":""},{"$f":"IF(ISBLANK(INDIRECT(\"'\"&F7970&\"'!\"&H7970)),\"\",IFERROR(VLOOKUP(TEXT(INDIRECT(\"'\"&F7970&\"'!\"&H7970),\"0\"),Notes!$B$5:$C$100,2,FALSE),\"\"))","v":""},"2c","$M$149","$N$149"]
[27416,{"$f":"Menu!$F$29","v":"X"},{"$f":"Menu!$J$29","v":2020},{"$f":"IF(ISBLANK(INDIRECT(\"'\"&F7971&\"'!\"&G7971)),\"\",INDIRECT(\"'\"&F7971&\"'!\"&G7971))","v":""},{"$f":"IF(ISBLANK(INDIRECT(\"'\"&F7971&\"'!\"&H7971)),\"\",IFERROR(VLOOKUP(TEXT(INDIRECT(\"'\"&F7971&\"'!\"&H7971),\"0\"),Notes!$B$5:$C$100,2,FALSE),\"\"))","v":""},"2c","$Q$149","$R$149"]
[27417,{"$f":"Menu!$F$29","v":"X"},{"$f":"Menu!$J$29","v":2020},{"$f":"IF(ISBLANK(INDIRECT(\"'\"&F7972&\"'!\"&G7972)),\"\",INDIRECT(\"'\"&F7972&\"'!\"&G7972))","v":""},{"$f":"IF(ISBLANK(INDIRECT(\"'\"&F7972&\"'!\"&H7972)),\"\",IFERROR(VLOOKUP(TEXT(INDIRECT(\"'\"&F7972&\"'!\"&H7972),\"0\"),Notes!$B$5:$C$100,2,FALSE),\"\"))","v":""},"2c","$U$149","$V$149"]
[27418,{"$f":"Menu!$F$29","v":"X"},{"$f":"Menu!$J$29","v":2020},{"$f":"IF(ISBLANK(INDIRECT(\"'\"&F7973&\"'!\"&G7973)),\"\",INDIRECT(\"'\"&F7973&\"'!\"&G7973))","v":""},{"$f":"IF(ISBLANK(INDIRECT(\"'\"&F7973&\"'!\"&H7973)),\"\",IFERROR(VLOOKUP(TEXT(INDIRECT(\"'\"&F7973&\"'!\"&H7973),\"0\"),Notes!$B$5:$C$100,2,FALSE),\"\"))","v":""},"2c","$S$149","$T$149"]
[27419,{"$f":"Menu!$F$29","v":"X"},{"$f":"Menu!$J$29","v":2020},{"$f":"IF(ISBLANK(INDIRECT(\"'\"&F7974&\"'!\"&G7974)),\"\",INDIRECT(\"'\"&F7974&\"'!\"&G7974))","v":""},{"$f":"IF(ISBLANK(INDIRECT(\"'\"&F7974&\"'!\"&H7974)),\"\",IFERROR(VLOOKUP(TEXT(INDIRECT(\"'\"&F7974&\"'!\"&H7974),\"0\"),Notes!$B$5:$C$100,2,FALSE),\"\"))","v":""},"2c","$W$149","$X$149"]
[27420,{"$f":"Menu!$F$29","v":"X"},{"$f":"Menu!$J$29","v":2020},{"$f":"IF(ISBLANK(INDIRECT(\"'\"&F7975&\"'!\"&G7975)),\"\",INDIRECT(\"'\"&F7975&\"'!\"&G7975))","v":""},{"$f":"IF(ISBLANK(INDIRECT(\"'\"&F7975&\"'!\"&H7975)),\"\",IFERROR(VLOOKUP(TEXT(INDIRECT(\"'\"&F7975&\"'!\"&H7975),\"0\"),Notes!$B$5:$C$100,2,FALSE),\"\"))","v":""},"2c","$AA$149","$AB$149"]
[27421,{"$f":"Menu!$F$29","v":"X"},{"$f":"Menu!$J$29","v":2020},{"$f":"IF(ISBLANK(INDIRECT(\"'\"&F7976&\"'!\"&G7976)),\"\",INDIRECT(\"'\"&F7976&\"'!\"&G7976))","v":""},{"$f":"IF(ISBLANK(INDIRECT(\"'\"&F7976&\"'!\"&H7976)),\"\",IFERROR(VLOOKUP(TEXT(INDIRECT(\"'\"&F7976&\"'!\"&H7976),\"0\"),Notes!$B$5:$C$100,2,FALSE),\"\"))","v":""},"2c","$Y$149","$Z$149"]
[27428,{"$f":"Menu!$F$29","v":"X"},{"$f":"Menu!$J$29","v":2020},{"$f":"IF(ISBLANK(INDIRECT(\"'\"&F7977&\"'!\"&G7977)),\"\",INDIRECT(\"'\"&F7977&\"'!\"&G7977))","v":""},{"$f":"IF(ISBLANK(INDIRECT(\"'\"&F7977&\"'!\"&H7977)),\"\",IFERROR(VLOOKUP(TEXT(INDIRECT(\"'\"&F7977&\"'!\"&H7977),\"0\"),Notes!$B$5:$C$100,2,FALSE),\"\"))","v":""},"2e","$BG$150","$BH$150"]
[27429,{"$f":"Menu!$F$29","v":"X"},{"$f":"Menu!$J$29","v":2020},{"$f":"IF(ISBLANK(INDIRECT(\"'\"&F7978&\"'!\"&G7978)),\"\",INDIRECT(\"'\"&F7978&\"'!\"&G7978))","v":""},{"$f":"IF(ISBLANK(INDIRECT(\"'\"&F7978&\"'!\"&H7978)),\"\",IFERROR(VLOOKUP(TEXT(INDIRECT(\"'\"&F7978&\"'!\"&H7978),\"0\"),Notes!$B$5:$C$100,2,FALSE),\"\"))","v":""},"2e","$BK$150","$BL$150"]
[27430,{"$f":"Menu!$F$29","v":"X"},{"$f":"Menu!$J$29","v":2020},{"$f":"IF(ISBLANK(INDIRECT(\"'\"&F7979&\"'!\"&G7979)),\"\",INDIRECT(\"'\"&F7979&\"'!\"&G7979))","v":""},{"$f":"IF(ISBLANK(INDIRECT(\"'\"&F7979&\"'!\"&H7979)),\"\",IFERROR(VLOOKUP(TEXT(INDIRECT(\"'\"&F7979&\"'!\"&H7979),\"0\"),Notes!$B$5:$C$100,2,FALSE),\"\"))","v":""},"2e","$BI$150","$BJ$150"]
[27431,{"$f":"Menu!$F$29","v":"X"},{"$f":"Menu!$J$29","v":2020},{"$f":"IF(ISBLANK(INDIRECT(\"'\"&F7980&\"'!\"&G7980)),\"\",INDIRECT(\"'\"&F7980&\"'!\"&G7980))","v":""},{"$f":"IF(ISBLANK(INDIRECT(\"'\"&F7980&\"'!\"&H7980)),\"\",IFERROR(VLOOKUP(TEXT(INDIRECT(\"'\"&F7980&\"'!\"&H7980),\"0\"),Notes!$B$5:$C$100,2,FALSE),\"\"))","v":""},"2e","$E$150","$F$150"]
[27432,{"$f":"Menu!$F$29","v":"X"},{"$f":"Menu!$J$29","v":2020},{"$f":"IF(ISBLANK(INDIRECT(\"'\"&F7981&\"'!\"&G7981)),\"\",INDIRECT(\"'\"&F7981&\"'!\"&G7981))","v":""},{"$f":"IF(ISBLANK(INDIRECT(\"'\"&F7981&\"'!\"&H7981)),\"\",IFERROR(VLOOKUP(TEXT(INDIRECT(\"'\"&F7981&\"'!\"&H7981),\"0\"),Notes!$B$5:$C$100,2,FALSE),\"\"))","v":""},"2e","$I$150","$J$150"]
[27433,{"$f":"Menu!$F$29","v":"X"},{"$f":"Menu!$J$29","v":2020},{"$f":"IF(ISBLANK(INDIRECT(\"'\"&F7982&\"'!\"&G7982)),\"\",INDIRECT(\"'\"&F7982&\"'!\"&G7982))","v":""},{"$f":"IF(ISBLANK(INDIRECT(\"'\"&F7982&\"'!\"&H7982)),\"\",IFERROR(VLOOKUP(TEXT(INDIRECT(\"'\"&F7982&\"'!\"&H7982),\"0\"),Notes!$B$5:$C$100,2,FALSE),\"\"))","v":""},"2e","$G$150","$H$150"]
[27434,{"$f":"Menu!$F$29","v":"X"},{"$f":"Menu!$J$29","v":2020},{"$f":"IF(ISBLANK(INDIRECT(\"'\"&F7983&\"'!\"&G7983)),\"\",INDIRECT(\"'\"&F7983&\"'!\"&G7983))","v":""},{"$f":"IF(ISBLANK(INDIRECT(\"'\"&F7983&\"'!\"&H7983)),\"\",IFERROR(VLOOKUP(TEXT(INDIRECT(\"'\"&F7983&\"'!\"&H7983),\"0\"),Notes!$B$5:$C$100,2,FALSE),\"\"))","v":""},"2e","$K$150","$L$150"]
[27435,{"$f":"Menu!$F$29","v":"X"},{"$f":"Menu!$J$29","v":2020},{"$f":"IF(ISBLANK(INDIRECT(\"'\"&F7984&\"'!\"&G7984)),\"\",INDIRECT(\"'\"&F7984&\"'!\"&G7984))","v":""},{"$f":"IF(ISBLANK(INDIRECT(\"'\"&F7984&\"'!\"&H7984)),\"\",IFERROR(VLOOKUP(TEXT(INDIRECT(\"'\"&F7984&\"'!\"&H7984),\"0\"),Notes!$B$5:$C$100,2,FALSE),\"\"))","v":""},"2e","$O$150","$P$150"]
[27436,{"$f":"Menu!$F$29","v":"X"},{"$f":"Menu!$J$29","v":2020},{"$f":"IF(ISBLANK(INDIRECT(\"'\"&F7985&\"'!\"&G7985)),\"\",INDIRECT(\"'\"&F7985&\"'!\"&G7985))","v":""},{"$f":"IF(ISBLANK(INDIRECT(\"'\"&F7985&\"'!\"&H7985)),\"\",IFERROR(VLOOKUP(TEXT(INDIRECT(\"'\"&F7985&\"'!\"&H7985),\"0\"),Notes!$B$5:$C$100,2,FALSE),\"\"))","v":""},"2e","$M$150","$N$150"]
[27437,{"$f":"Menu!$F$29","v":"X"},{"$f":"Menu!$J$29","v":2020},{"$f":"IF(ISBLANK(INDIRECT(\"'\"&F7986&\"'!\"&G7986)),\"\",INDIRECT(\"'\"&F7986&\"'!\"&G7986))","v":""},{"$f":"IF(ISBLANK(INDIRECT(\"'\"&F7986&\"'!\"&H7986)),\"\",IFERROR(VLOOKUP(TEXT(INDIRECT(\"'\"&F7986&\"'!\"&H7986),\"0\"),Notes!$B$5:$C$100,2,FALSE),\"\"))","v":""},"2e","$Q$150","$R$150"]
[27438,{"$f":"Menu!$F$29","v":"X"},{"$f":"Menu!$J$29","v":2020},{"$f":"IF(ISBLANK(INDIRECT(\"'\"&F7987&\"'!\"&G7987)),\"\",INDIRECT(\"'\"&F7987&\"'!\"&G7987))","v":""},{"$f":"IF(ISBLANK(INDIRECT(\"'\"&F7987&\"'!\"&H7987)),\"\",IFERROR(VLOOKUP(TEXT(INDIRECT(\"'\"&F7987&\"'!\"&H7987),\"0\"),Notes!$B$5:$C$100,2,FALSE),\"\"))","v":""},"2e","$U$150","$V$150"]
[27439,{"$f":"Menu!$F$29","v":"X"},{"$f":"Menu!$J$29","v":2020},{"$f":"IF(ISBLANK(INDIRECT(\"'\"&F7988&\"'!\"&G7988)),\"\",INDIRECT(\"'\"&F7988&\"'!\"&G7988))","v":""},{"$f":"IF(ISBLANK(INDIRECT(\"'\"&F7988&\"'!\"&H7988)),\"\",IFERROR(VLOOKUP(TEXT(INDIRECT(\"'\"&F7988&\"'!\"&H7988),\"0\"),Notes!$B$5:$C$100,2,FALSE),\"\"))","v":""},"2e","$S$150","$T$150"]
[27440,{"$f":"Menu!$F$29","v":"X"},{"$f":"Menu!$J$29","v":2020},{"$f":"IF(ISBLANK(INDIRECT(\"'\"&F7989&\"'!\"&G7989)),\"\",INDIRECT(\"'\"&F7989&\"'!\"&G7989))","v":""},{"$f":"IF(ISBLANK(INDIRECT(\"'\"&F7989&\"'!\"&H7989)),\"\",IFERROR(VLOOKUP(TEXT(INDIRECT(\"'\"&F7989&\"'!\"&H7989),\"0\"),Notes!$B$5:$C$100,2,FALSE),\"\"))","v":""},"2e","$W$150","$X$150"]
[27441,{"$f":"Menu!$F$29","v":"X"},{"$f":"Menu!$J$29","v":2020},{"$f":"IF(ISBLANK(INDIRECT(\"'\"&F7990&\"'!\"&G7990)),\"\",INDIRECT(\"'\"&F7990&\"'!\"&G7990))","v":""},{"$f":"IF(ISBLANK(INDIRECT(\"'\"&F7990&\"'!\"&H7990)),\"\",IFERROR(VLOOKUP(TEXT(INDIRECT(\"'\"&F7990&\"'!\"&H7990),\"0\"),Notes!$B$5:$C$100,2,FALSE),\"\"))","v":""},"2e","$AA$150","$AB$150"]
[27442,{"$f":"Menu!$F$29","v":"X"},{"$f":"Menu!$J$29","v":2020},{"$f":"IF(ISBLANK(INDIRECT(\"'\"&F7991&\"'!\"&G7991)),\"\",INDIRECT(\"'\"&F7991&\"'!\"&G7991))","v":""},{"$f":"IF(ISBLANK(INDIRECT(\"'\"&F7991&\"'!\"&H7991)),\"\",IFERROR(VLOOKUP(TEXT(INDIRECT(\"'\"&F7991&\"'!\"&H7991),\"0\"),Notes!$B$5:$C$100,2,FALSE),\"\"))","v":""},"2e","$Y$150","$Z$150"]
[27443,{"$f":"Menu!$F$29","v":"X"},{"$f":"Menu!$J$29","v":2020},{"$f":"IF(ISBLANK(INDIRECT(\"'\"&F7992&\"'!\"&G7992)),\"\",INDIRECT(\"'\"&F7992&\"'!\"&G7992))","v":""},{"$f":"IF(ISBLANK(INDIRECT(\"'\"&F7992&\"'!\"&H7992)),\"\",IFERROR(VLOOKUP(TEXT(INDIRECT(\"'\"&F7992&\"'!\"&H7992),\"0\"),Notes!$B$5:$C$100,2,FALSE),\"\"))","v":""},"2e","$AC$150","$AD$150"]
[27444,{"$f":"Menu!$F$29","v":"X"},{"$f":"Menu!$J$29","v":2020},{"$f":"IF(ISBLANK(INDIRECT(\"'\"&F7993&\"'!\"&G7993)),\"\",INDIRECT(\"'\"&F7993&\"'!\"&G7993))","v":""},{"$f":"IF(ISBLANK(INDIRECT(\"'\"&F7993&\"'!\"&H7993)),\"\",IFERROR(VLOOKUP(TEXT(INDIRECT(\"'\"&F7993&\"'!\"&H7993),\"0\"),Notes!$B$5:$C$100,2,FALSE),\"\"))","v":""},"2e","$AG$150","$AH$150"]
[27445,{"$f":"Menu!$F$29","v":"X"},{"$f":"Menu!$J$29","v":2020},{"$f":"IF(ISBLANK(INDIRECT(\"'\"&F7994&\"'!\"&G7994)),\"\",INDIRECT(\"'\"&F7994&\"'!\"&G7994))","v":""},{"$f":"IF(ISBLANK(INDIRECT(\"'\"&F7994&\"'!\"&H7994)),\"\",IFERROR(VLOOKUP(TEXT(INDIRECT(\"'\"&F7994&\"'!\"&H7994),\"0\"),Notes!$B$5:$C$100,2,FALSE),\"\"))","v":""},"2e","$AE$150","$AF$150"]
[27446,{"$f":"Menu!$F$29","v":"X"},{"$f":"Menu!$J$29","v":2020},{"$f":"IF(ISBLANK(INDIRECT(\"'\"&F7995&\"'!\"&G7995)),\"\",INDIRECT(\"'\"&F7995&\"'!\"&G7995))","v":""},{"$f":"IF(ISBLANK(INDIRECT(\"'\"&F7995&\"'!\"&H7995)),\"\",IFERROR(VLOOKUP(TEXT(INDIRECT(\"'\"&F7995&\"'!\"&H7995),\"0\"),Notes!$B$5:$C$100,2,FALSE),\"\"))","v":""},"2e","$AI$150","$AJ$150"]
[27447,{"$f":"Menu!$F$29","v":"X"},{"$f":"Menu!$J$29","v":2020},{"$f":"IF(ISBLANK(INDIRECT(\"'\"&F7996&\"'!\"&G7996)),\"\",INDIRECT(\"'\"&F7996&\"'!\"&G7996))","v":""},{"$f":"IF(ISBLANK(INDIRECT(\"'\"&F7996&\"'!\"&H7996)),\"\",IFERROR(VLOOKUP(TEXT(INDIRECT(\"'\"&F7996&\"'!\"&H7996),\"0\"),Notes!$B$5:$C$100,2,FALSE),\"\"))","v":""},"2e","$AM$150","$AN$150"]
[27448,{"$f":"Menu!$F$29","v":"X"},{"$f":"Menu!$J$29","v":2020},{"$f":"IF(ISBLANK(INDIRECT(\"'\"&F7997&\"'!\"&G7997)),\"\",INDIRECT(\"'\"&F7997&\"'!\"&G7997))","v":""},{"$f":"IF(ISBLANK(INDIRECT(\"'\"&F7997&\"'!\"&H7997)),\"\",IFERROR(VLOOKUP(TEXT(INDIRECT(\"'\"&F7997&\"'!\"&H7997),\"0\"),Notes!$B$5:$C$100,2,FALSE),\"\"))","v":""},"2e","$AK$150","$AL$150"]
[27449,{"$f":"Menu!$F$29","v":"X"},{"$f":"Menu!$J$29","v":2020},{"$f":"IF(ISBLANK(INDIRECT(\"'\"&F7998&\"'!\"&G7998)),\"\",INDIRECT(\"'\"&F7998&\"'!\"&G7998))","v":""},{"$f":"IF(ISBLANK(INDIRECT(\"'\"&F7998&\"'!\"&H7998)),\"\",IFERROR(VLOOKUP(TEXT(INDIRECT(\"'\"&F7998&\"'!\"&H7998),\"0\"),Notes!$B$5:$C$100,2,FALSE),\"\"))","v":""},"2e","$AO$150","$AP$150"]
[27450,{"$f":"Menu!$F$29","v":"X"},{"$f":"Menu!$J$29","v":2020},{"$f":"IF(ISBLANK(INDIRECT(\"'\"&F7999&\"'!\"&G7999)),\"\",INDIRECT(\"'\"&F7999&\"'!\"&G7999))","v":""},{"$f":"IF(ISBLANK(INDIRECT(\"'\"&F7999&\"'!\"&H7999)),\"\",IFERROR(VLOOKUP(TEXT(INDIRECT(\"'\"&F7999&\"'!\"&H7999),\"0\"),Notes!$B$5:$C$100,2,FALSE),\"\"))","v":""},"2e","$AS$150","$AT$150"]
[27451,{"$f":"Menu!$F$29","v":"X"},{"$f":"Menu!$J$29","v":2020},{"$f":"IF(ISBLANK(INDIRECT(\"'\"&F8000&\"'!\"&G8000)),\"\",INDIRECT(\"'\"&F8000&\"'!\"&G8000))","v":""},{"$f":"IF(ISBLANK(INDIRECT(\"'\"&F8000&\"'!\"&H8000)),\"\",IFERROR(VLOOKUP(TEXT(INDIRECT(\"'\"&F8000&\"'!\"&H8000),\"0\"),Notes!$B$5:$C$100,2,FALSE),\"\"))","v":""},"2e","$AQ$150","$AR$150"]
[27452,{"$f":"Menu!$F$29","v":"X"},{"$f":"Menu!$J$29","v":2020},{"$f":"IF(ISBLANK(INDIRECT(\"'\"&F8001&\"'!\"&G8001)),\"\",INDIRECT(\"'\"&F8001&\"'!\"&G8001))","v":""},{"$f":"IF(ISBLANK(INDIRECT(\"'\"&F8001&\"'!\"&H8001)),\"\",IFERROR(VLOOKUP(TEXT(INDIRECT(\"'\"&F8001&\"'!\"&H8001),\"0\"),Notes!$B$5:$C$100,2,FALSE),\"\"))","v":""},"2e","$AU$150","$AV$150"]
[27453,{"$f":"Menu!$F$29","v":"X"},{"$f":"Menu!$J$29","v":2020},{"$f":"IF(ISBLANK(INDIRECT(\"'\"&F8002&\"'!\"&G8002)),\"\",INDIRECT(\"'\"&F8002&\"'!\"&G8002))","v":""},{"$f":"IF(ISBLANK(INDIRECT(\"'\"&F8002&\"'!\"&H8002)),\"\",IFERROR(VLOOKUP(TEXT(INDIRECT(\"'\"&F8002&\"'!\"&H8002),\"0\"),Notes!$B$5:$C$100,2,FALSE),\"\"))","v":""},"2e","$AY$150",{"$f":"IF(LEN(TRIM(MID(G8002,4,10)))-LEN(SUBSTITUTE(TRIM(MID(G8002,4,10)),\"$\",\"\"))=0,\"$\"&CHAR(CODE(MID(G8002,2,1))+1)&\"$\"&TRIM(MID(G8002,4,10)),\"$\"&MID(G8002,2,1)&CHAR(CODE(MID(G8002,3,1))+1)&\"$\"&TRIM(MID(G8002,5,11)))","v":"$AZ$150"}]
[27454,{"$f":"Menu!$F$29","v":"X"},{"$f":"Menu!$J$29","v":2020},{"$f":"IF(ISBLANK(INDIRECT(\"'\"&F8003&\"'!\"&G8003)),\"\",INDIRECT(\"'\"&F8003&\"'!\"&G8003))","v":""},{"$f":"IF(ISBLANK(INDIRECT(\"'\"&F8003&\"'!\"&H8003)),\"\",IFERROR(VLOOKUP(TEXT(INDIRECT(\"'\"&F8003&\"'!\"&H8003),\"0\"),Notes!$B$5:$C$100,2,FALSE),\"\"))","v":""},"2e","$AW$150","$AX$150"]
[27455,{"$f":"Menu!$F$29","v":"X"},{"$f":"Menu!$J$29","v":2020},{"$f":"IF(ISBLANK(INDIRECT(\"'\"&F8004&\"'!\"&G8004)),\"\",INDIRECT(\"'\"&F8004&\"'!\"&G8004))","v":""},{"$f":"IF(ISBLANK(INDIRECT(\"'\"&F8004&\"'!\"&H8004)),\"\",IFERROR(VLOOKUP(TEXT(INDIRECT(\"'\"&F8004&\"'!\"&H8004),\"0\"),Notes!$B$5:$C$100,2,FALSE),\"\"))","v":""},"2e","$BA$150","$BB$150"]
[27456,{"$f":"Menu!$F$29","v":"X"},{"$f":"Menu!$J$29","v":2020},{"$f":"IF(ISBLANK(INDIRECT(\"'\"&F8005&\"'!\"&G8005)),\"\",INDIRECT(\"'\"&F8005&\"'!\"&G8005))","v":""},{"$f":"IF(ISBLANK(INDIRECT(\"'\"&F8005&\"'!\"&H8005)),\"\",IFERROR(VLOOKUP(TEXT(INDIRECT(\"'\"&F8005&\"'!\"&H8005),\"0\"),Notes!$B$5:$C$100,2,FALSE),\"\"))","v":""},"2e","$BE$150","$BF$150"]
[27457,{"$f":"Menu!$F$29","v":"X"},{"$f":"Menu!$J$29","v":2020},{"$f":"IF(ISBLANK(INDIRECT(\"'\"&F8006&\"'!\"&G8006)),\"\",INDIRECT(\"'\"&F8006&\"'!\"&G8006))","v":""},{"$f":"IF(ISBLANK(INDIRECT(\"'\"&F8006&\"'!\"&H8006)),\"\",IFERROR(VLOOKUP(TEXT(INDIRECT(\"'\"&F8006&\"'!\"&H8006),\"0\"),Notes!$B$5:$C$100,2,FALSE),\"\"))","v":""},"2e","$BC$150","$BD$150"]
[27458,{"$f":"Menu!$F$29","v":"X"},{"$f":"Menu!$J$29","v":2020},{"$f":"IF(ISBLANK(INDIRECT(\"'\"&F8007&\"'!\"&G8007)),\"\",INDIRECT(\"'\"&F8007&\"'!\"&G8007))","v":""},{"$f":"IF(ISBLANK(INDIRECT(\"'\"&F8007&\"'!\"&H8007)),\"\",IFERROR(VLOOKUP(TEXT(INDIRECT(\"'\"&F8007&\"'!\"&H8007),\"0\"),Notes!$B$5:$C$100,2,FALSE),\"\"))","v":""},"2b","$E$149","$F$149"]
[27459,{"$f":"Menu!$F$29","v":"X"},{"$f":"Menu!$J$29","v":2020},{"$f":"IF(ISBLANK(INDIRECT(\"'\"&F8008&\"'!\"&G8008)),\"\",INDIRECT(\"'\"&F8008&\"'!\"&G8008))","v":""},{"$f":"IF(ISBLANK(INDIRECT(\"'\"&F8008&\"'!\"&H8008)),\"\",IFERROR(VLOOKUP(TEXT(INDIRECT(\"'\"&F8008&\"'!\"&H8008),\"0\"),Notes!$B$5:$C$100,2,FALSE),\"\"))","v":""},"2b","$I$149","$J$149"]
[27460,{"$f":"Menu!$F$29","v":"X"},{"$f":"Menu!$J$29","v":2020},{"$f":"IF(ISBLANK(INDIRECT(\"'\"&F8009&\"'!\"&G8009)),\"\",INDIRECT(\"'\"&F8009&\"'!\"&G8009))","v":""},{"$f":"IF(ISBLANK(INDIRECT(\"'\"&F8009&\"'!\"&H8009)),\"\",IFERROR(VLOOKUP(TEXT(INDIRECT(\"'\"&F8009&\"'!\"&H8009),\"0\"),Notes!$B$5:$C$100,2,FALSE),\"\"))","v":""},"2b","$G$149","$H$149"]
[27461,{"$f":"Menu!$F$29","v":"X"},{"$f":"Menu!$J$29","v":2020},{"$f":"IF(ISBLANK(INDIRECT(\"'\"&F8010&\"'!\"&G8010)),\"\",INDIRECT(\"'\"&F8010&\"'!\"&G8010))","v":""},null,"2a","$G$149","$H$149"]
[27462,{"$f":"Menu!$F$29","v":"X"},{"$f":"Menu!$J$29","v":2020},{"$f":"IF(ISBLANK(INDIRECT(\"'\"&F8011&\"'!\"&G8011)),\"\",INDIRECT(\"'\"&F8011&\"'!\"&G8011))","v":""},{"$f":"IF(ISBLANK(INDIRECT(\"'\"&F8011&\"'!\"&H8011)),\"\",IFERROR(VLOOKUP(TEXT(INDIRECT(\"'\"&F8011&\"'!\"&H8011),\"0\"),Notes!$B$5:$C$100,2,FALSE),\"\"))","v":""},"2b","$W$149","$X$149"]
[27463,{"$f":"Menu!$F$29","v":"X"},{"$f":"Menu!$J$29","v":2020},{"$f":"IF(ISBLANK(INDIRECT(\"'\"&F8012&\"'!\"&G8012)),\"\",INDIRECT(\"'\"&F8012&\"'!\"&G8012))","v":""},{"$f":"IF(ISBLANK(INDIRECT(\"'\"&F8012&\"'!\"&H8012)),\"\",IFERROR(VLOOKUP(TEXT(INDIRECT(\"'\"&F8012&\"'!\"&H8012),\"0\"),Notes!$B$5:$C$100,2,FALSE),\"\"))","v":""},"2b","$AA$149","$AB$149"]
[27464,{"$f":"Menu!$F$29","v":"X"},{"$f":"Menu!$J$29","v":2020},{"$f":"IF(ISBLANK(INDIRECT(\"'\"&F8013&\"'!\"&G8013)),\"\",INDIRECT(\"'\"&F8013&\"'!\"&G8013))","v":""},{"$f":"IF(ISBLANK(INDIRECT(\"'\"&F8013&\"'!\"&H8013)),\"\",IFERROR(VLOOKUP(TEXT(INDIRECT(\"'\"&F8013&\"'!\"&H8013),\"0\"),Notes!$B$5:$C$100,2,FALSE),\"\"))","v":""},"2b","$Y$149","$Z$149"]
[27465,{"$f":"Menu!$F$29","v":"X"},{"$f":"Menu!$J$29","v":2020},{"$f":"IF(ISBLANK(INDIRECT(\"'\"&F8014&\"'!\"&G8014)),\"\",INDIRECT(\"'\"&F8014&\"'!\"&G8014))","v":""},{"$f":"IF(ISBLANK(INDIRECT(\"'\"&F8014&\"'!\"&H8014)),\"\",IFERROR(VLOOKUP(TEXT(INDIRECT(\"'\"&F8014&\"'!\"&H8014),\"0\"),Notes!$B$5:$C$100,2,FALSE),\"\"))","v":""},"2d","$AC$149","$AD$149"]
[27466,{"$f":"Menu!$F$29","v":"X"},{"$f":"Menu!$J$29","v":2020},{"$f":"IF(ISBLANK(INDIRECT(\"'\"&F8015&\"'!\"&G8015)),\"\",INDIRECT(\"'\"&F8015&\"'!\"&G8015))","v":""},{"$f":"IF(ISBLANK(INDIRECT(\"'\"&F8015&\"'!\"&H8015)),\"\",IFERROR(VLOOKUP(TEXT(INDIRECT(\"'\"&F8015&\"'!\"&H8015),\"0\"),Notes!$B$5:$C$100,2,FALSE),\"\"))","v":""},"2d","$AG$149","$AH$149"]
[27467,{"$f":"Menu!$F$29","v":"X"},{"$f":"Menu!$J$29","v":2020},{"$f":"IF(ISBLANK(INDIRECT(\"'\"&F8016&\"'!\"&G8016)),\"\",INDIRECT(\"'\"&F8016&\"'!\"&G8016))","v":""},{"$f":"IF(ISBLANK(INDIRECT(\"'\"&F8016&\"'!\"&H8016)),\"\",IFERROR(VLOOKUP(TEXT(INDIRECT(\"'\"&F8016&\"'!\"&H8016),\"0\"),Notes!$B$5:$C$100,2,FALSE),\"\"))","v":""},"2d","$AE$149","$AF$149"]
[27468,{"$f":"Menu!$F$29","v":"X"},{"$f":"Menu!$J$29","v":2020},{"$f":"IF(ISBLANK(INDIRECT(\"'\"&F8017&\"'!\"&G8017)),\"\",INDIRECT(\"'\"&F8017&\"'!\"&G8017))","v":""},{"$f":"IF(ISBLANK(INDIRECT(\"'\"&F8017&\"'!\"&H8017)),\"\",IFERROR(VLOOKUP(TEXT(INDIRECT(\"'\"&F8017&\"'!\"&H8017),\"0\"),Notes!$B$5:$C$100,2,FALSE),\"\"))","v":""},"2d","$W$149","$X$149"]
[27469,{"$f":"Menu!$F$29","v":"X"},{"$f":"Menu!$J$29","v":2020},{"$f":"IF(ISBLANK(INDIRECT(\"'\"&F8018&\"'!\"&G8018)),\"\",INDIRECT(\"'\"&F8018&\"'!\"&G8018))","v":""},{"$f":"IF(ISBLANK(INDIRECT(\"'\"&F8018&\"'!\"&H8018)),\"\",IFERROR(VLOOKUP(TEXT(INDIRECT(\"'\"&F8018&\"'!\"&H8018),\"0\"),Notes!$B$5:$C$100,2,FALSE),\"\"))","v":""},"2d","$AA$149","$AB$149"]
[27470,{"$f":"Menu!$F$29","v":"X"},{"$f":"Menu!$J$29","v":2020},{"$f":"IF(ISBLANK(INDIRECT(\"'\"&F8019&\"'!\"&G8019)),\"\",INDIRECT(\"'\"&F8019&\"'!\"&G8019))","v":""},{"$f":"IF(ISBLANK(INDIRECT(\"'\"&F8019&\"'!\"&H8019)),\"\",IFERROR(VLOOKUP(TEXT(INDIRECT(\"'\"&F8019&\"'!\"&H8019),\"0\"),Notes!$B$5:$C$100,2,FALSE),\"\"))","v":""},"2d","$Y$149","$Z$149"]
[27471,{"$f":"Menu!$F$29","v":"X"},{"$f":"Menu!$J$29","v":2020},{"$f":"IF(ISBLANK(INDIRECT(\"'\"&F8020&\"'!\"&G8020)),\"\",INDIRECT(\"'\"&F8020&\"'!\"&G8020))","v":""},{"$f":"IF(ISBLANK(INDIRECT(\"'\"&F8020&\"'!\"&H8020)),\"\",IFERROR(VLOOKUP(TEXT(INDIRECT(\"'\"&F8020&\"'!\"&H8020),\"0\"),Notes!$B$5:$C$100,2,FALSE),\"\"))","v":""},"2d","$E$149","$F$149"]
[27472,{"$f":"Menu!$F$29","v":"X"},{"$f":"Menu!$J$29","v":2020},{"$f":"IF(ISBLANK(INDIRECT(\"'\"&F8021&\"'!\"&G8021)),\"\",INDIRECT(\"'\"&F8021&\"'!\"&G8021))","v":""},{"$f":"IF(ISBLANK(INDIRECT(\"'\"&F8021&\"'!\"&H8021)),\"\",IFERROR(VLOOKUP(TEXT(INDIRECT(\"'\"&F8021&\"'!\"&H8021),\"0\"),Notes!$B$5:$C$100,2,FALSE),\"\"))","v":""},"2d","$I$149","$J$149"]
[27473,{"$f":"Menu!$F$29","v":"X"},{"$f":"Menu!$J$29","v":2020},{"$f":"IF(ISBLANK(INDIRECT(\"'\"&F8022&\"'!\"&G8022)),\"\",INDIRECT(\"'\"&F8022&\"'!\"&G8022))","v":""},{"$f":"IF(ISBLANK(INDIRECT(\"'\"&F8022&\"'!\"&H8022)),\"\",IFERROR(VLOOKUP(TEXT(INDIRECT(\"'\"&F8022&\"'!\"&H8022),\"0\"),Notes!$B$5:$C$100,2,FALSE),\"\"))","v":""},"2d","$G$149","$H$149"]
[27474,{"$f":"Menu!$F$29","v":"X"},{"$f":"Menu!$J$29","v":2020},{"$f":"IF(ISBLANK(INDIRECT(\"'\"&F8023&\"'!\"&G8023)),\"\",INDIRECT(\"'\"&F8023&\"'!\"&G8023))","v":""},{"$f":"IF(ISBLANK(INDIRECT(\"'\"&F8023&\"'!\"&H8023)),\"\",IFERROR(VLOOKUP(TEXT(INDIRECT(\"'\"&F8023&\"'!\"&H8023),\"0\"),Notes!$B$5:$C$100,2,FALSE),\"\"))","v":""},"2a","$Q$149","$R$149"]
[27475,{"$f":"Menu!$F$29","v":"X"},{"$f":"Menu!$J$29","v":2020},{"$f":"IF(ISBLANK(INDIRECT(\"'\"&F8024&\"'!\"&G8024)),\"\",INDIRECT(\"'\"&F8024&\"'!\"&G8024))","v":""},{"$f":"IF(ISBLANK(INDIRECT(\"'\"&F8024&\"'!\"&H8024)),\"\",IFERROR(VLOOKUP(TEXT(INDIRECT(\"'\"&F8024&\"'!\"&H8024),\"0\"),Notes!$B$5:$C$100,2,FALSE),\"\"))","v":""},"2a","$U$149","$V$149"]
[27476,{"$f":"Menu!$F$29","v":"X"},{"$f":"Menu!$J$29","v":2020},{"$f":"IF(ISBLANK(INDIRECT(\"'\"&F8025&\"'!\"&G8025)),\"\",INDIRECT(\"'\"&F8025&\"'!\"&G8025))","v":""},{"$f":"IF(ISBLANK(INDIRECT(\"'\"&F8025&\"'!\"&H8025)),\"\",IFERROR(VLOOKUP(TEXT(INDIRECT(\"'\"&F8025&\"'!\"&H8025),\"0\"),Notes!$B$5:$C$100,2,FALSE),\"\"))","v":""},"2a","$S$149","$T$149"]
[27477,{"$f":"Menu!$F$29","v":"X"},{"$f":"Menu!$J$29","v":2020},{"$f":"IF(ISBLANK(INDIRECT(\"'\"&F8026&\"'!\"&G8026)),\"\",INDIRECT(\"'\"&F8026&\"'!\"&G8026))","v":""},{"$f":"IF(ISBLANK(INDIRECT(\"'\"&F8026&\"'!\"&H8026)),\"\",IFERROR(VLOOKUP(TEXT(INDIRECT(\"'\"&F8026&\"'!\"&H8026),\"0\"),Notes!$B$5:$C$100,2,FALSE),\"\"))","v":""},"2d","$K$149","$L$149"]
[27478,{"$f":"Menu!$F$29","v":"X"},{"$f":"Menu!$J$29","v":2020},{"$f":"IF(ISBLANK(INDIRECT(\"'\"&F8027&\"'!\"&G8027)),\"\",INDIRECT(\"'\"&F8027&\"'!\"&G8027))","v":""},{"$f":"IF(ISBLANK(INDIRECT(\"'\"&F8027&\"'!\"&H8027)),\"\",IFERROR(VLOOKUP(TEXT(INDIRECT(\"'\"&F8027&\"'!\"&H8027),\"0\"),Notes!$B$5:$C$100,2,FALSE),\"\"))","v":""},"2d","$O$149","$P$149"]
[27479,{"$f":"Menu!$F$29","v":"X"},{"$f":"Menu!$J$29","v":2020},{"$f":"IF(ISBLANK(INDIRECT(\"'\"&F8028&\"'!\"&G8028)),\"\",INDIRECT(\"'\"&F8028&\"'!\"&G8028))","v":""},{"$f":"IF(ISBLANK(INDIRECT(\"'\"&F8028&\"'!\"&H8028)),\"\",IFERROR(VLOOKUP(TEXT(INDIRECT(\"'\"&F8028&\"'!\"&H8028),\"0\"),Notes!$B$5:$C$100,2,FALSE),\"\"))","v":""},"2d","$M$149","$N$149"]
[27480,{"$f":"Menu!$F$29","v":"X"},{"$f":"Menu!$J$29","v":2020},{"$f":"IF(ISBLANK(INDIRECT(\"'\"&F8029&\"'!\"&G8029)),\"\",INDIRECT(\"'\"&F8029&\"'!\"&G8029))","v":""},{"$f":"IF(ISBLANK(INDIRECT(\"'\"&F8029&\"'!\"&H8029)),\"\",IFERROR(VLOOKUP(TEXT(INDIRECT(\"'\"&F8029&\"'!\"&H8029),\"0\"),Notes!$B$5:$C$100,2,FALSE),\"\"))","v":""},"2d","$Q$149","$R$149"]
[27481,{"$f":"Menu!$F$29","v":"X"},{"$f":"Menu!$J$29","v":2020},{"$f":"IF(ISBLANK(INDIRECT(\"'\"&F8030&\"'!\"&G8030)),\"\",INDIRECT(\"'\"&F8030&\"'!\"&G8030))","v":""},{"$f":"IF(ISBLANK(INDIRECT(\"'\"&F8030&\"'!\"&H8030)),\"\",IFERROR(VLOOKUP(TEXT(INDIRECT(\"'\"&F8030&\"'!\"&H8030),\"0\"),Notes!$B$5:$C$100,2,FALSE),\"\"))","v":""},"2d","$U$149","$V$149"]
[27482,{"$f":"Menu!$F$29","v":"X"},{"$f":"Menu!$J$29","v":2020},{"$f":"IF(ISBLANK(INDIRECT(\"'\"&F8031&\"'!\"&G8031)),\"\",INDIRECT(\"'\"&F8031&\"'!\"&G8031))","v":""},{"$f":"IF(ISBLANK(INDIRECT(\"'\"&F8031&\"'!\"&H8031)),\"\",IFERROR(VLOOKUP(TEXT(INDIRECT(\"'\"&F8031&\"'!\"&H8031),\"0\"),Notes!$B$5:$C$100,2,FALSE),\"\"))","v":""},"2d","$S$149","$T$149"]
[27483,{"$f":"Menu!$F$29","v":"X"},{"$f":"Menu!$J$29","v":2020},{"$f":"IF(ISBLANK(INDIRECT(\"'\"&F8032&\"'!\"&G8032)),\"\",INDIRECT(\"'\"&F8032&\"'!\"&G8032))","v":""},{"$f":"IF(ISBLANK(INDIRECT(\"'\"&F8032&\"'!\"&H8032)),\"\",IFERROR(VLOOKUP(TEXT(INDIRECT(\"'\"&F8032&\"'!\"&H8032),\"0\"),Notes!$B$5:$C$100,2,FALSE),\"\"))","v":""},"2a","$K$149","$L$149"]
[27484,{"$f":"Menu!$F$29","v":"X"},{"$f":"Menu!$J$29","v":2020},{"$f":"IF(ISBLANK(INDIRECT(\"'\"&F8033&\"'!\"&G8033)),\"\",INDIRECT(\"'\"&F8033&\"'!\"&G8033))","v":""},{"$f":"IF(ISBLANK(INDIRECT(\"'\"&F8033&\"'!\"&H8033)),\"\",IFERROR(VLOOKUP(TEXT(INDIRECT(\"'\"&F8033&\"'!\"&H8033),\"0\"),Notes!$B$5:$C$100,2,FALSE),\"\"))","v":""},"2a","$O$149","$P$149"]
[27485,{"$f":"Menu!$F$29","v":"X"},{"$f":"Menu!$J$29","v":2020},{"$f":"IF(ISBLANK(INDIRECT(\"'\"&F8034&\"'!\"&G8034)),\"\",INDIRECT(\"'\"&F8034&\"'!\"&G8034))","v":""},{"$f":"IF(ISBLANK(INDIRECT(\"'\"&F8034&\"'!\"&H8034)),\"\",IFERROR(VLOOKUP(TEXT(INDIRECT(\"'\"&F8034&\"'!\"&H8034),\"0\"),Notes!$B$5:$C$100,2,FALSE),\"\"))","v":""},"2a","$M$149","$N$149"]
[27486,{"$f":"Menu!$F$29","v":"X"},{"$f":"Menu!$J$29","v":2020},{"$f":"IF(ISBLANK(INDIRECT(\"'\"&F8035&\"'!\"&G8035)),\"\",INDIRECT(\"'\"&F8035&\"'!\"&G8035))","v":""},{"$f":"IF(ISBLANK(INDIRECT(\"'\"&F8035&\"'!\"&H8035)),\"\",IFERROR(VLOOKUP(TEXT(INDIRECT(\"'\"&F8035&\"'!\"&H8035),\"0\"),Notes!$B$5:$C$100,2,FALSE),\"\"))","v":""},"2a","$E$149","$F$149"]
[27487,{"$f":"Menu!$F$29","v":"X"},{"$f":"Menu!$J$29","v":2020},{"$f":"IF(ISBLANK(INDIRECT(\"'\"&F8036&\"'!\"&G8036)),\"\",INDIRECT(\"'\"&F8036&\"'!\"&G8036))","v":""},{"$f":"IF(ISBLANK(INDIRECT(\"'\"&F8036&\"'!\"&H8036)),\"\",IFERROR(VLOOKUP(TEXT(INDIRECT(\"'\"&F8036&\"'!\"&H8036),\"0\"),Notes!$B$5:$C$100,2,FALSE),\"\"))","v":""},"2b","$K$150","$L$150"]
[27488,{"$f":"Menu!$F$29","v":"X"},{"$f":"Menu!$J$29","v":2020},{"$f":"IF(ISBLANK(INDIRECT(\"'\"&F8037&\"'!\"&G8037)),\"\",INDIRECT(\"'\"&F8037&\"'!\"&G8037))","v":""},{"$f":"IF(ISBLANK(INDIRECT(\"'\"&F8037&\"'!\"&H8037)),\"\",IFERROR(VLOOKUP(TEXT(INDIRECT(\"'\"&F8037&\"'!\"&H8037),\"0\"),Notes!$B$5:$C$100,2,FALSE),\"\"))","v":""},"2b","$O$150","$P$150"]
[27489,{"$f":"Menu!$F$29","v":"X"},{"$f":"Menu!$J$29","v":2020},{"$f":"IF(ISBLANK(INDIRECT(\"'\"&F8038&\"'!\"&G8038)),\"\",INDIRECT(\"'\"&F8038&\"'!\"&G8038))","v":""},{"$f":"IF(ISBLANK(INDIRECT(\"'\"&F8038&\"'!\"&H8038)),\"\",IFERROR(VLOOKUP(TEXT(INDIRECT(\"'\"&F8038&\"'!\"&H8038),\"0\"),Notes!$B$5:$C$100,2,FALSE),\"\"))","v":""},"2b","$M$150","$N$150"]
[27490,{"$f":"Menu!$F$29","v":"X"},{"$f":"Menu!$J$29","v":2020},{"$f":"IF(ISBLANK(INDIRECT(\"'\"&F8039&\"'!\"&G8039)),\"\",INDIRECT(\"'\"&F8039&\"'!\"&G8039))","v":""},{"$f":"IF(ISBLANK(INDIRECT(\"'\"&F8039&\"'!\"&H8039)),\"\",IFERROR(VLOOKUP(TEXT(INDIRECT(\"'\"&F8039&\"'!\"&H8039),\"0\"),Notes!$B$5:$C$100,2,FALSE),\"\"))","v":""},"2b","$Q$150","$R$150"]
[27491,{"$f":"Menu!$F$29","v":"X"},{"$f":"Menu!$J$29","v":2020},{"$f":"IF(ISBLANK(INDIRECT(\"'\"&F8040&\"'!\"&G8040)),\"\",INDIRECT(\"'\"&F8040&\"'!\"&G8040))","v":""},{"$f":"IF(ISBLANK(INDIRECT(\"'\"&F8040&\"'!\"&H8040)),\"\",IFERROR(VLOOKUP(TEXT(INDIRECT(\"'\"&F8040&\"'!\"&H8040),\"0\"),Notes!$B$5:$C$100,2,FALSE),\"\"))","v":""},"2b","$U$150","$V$150"]
[27492,{"$f":"Menu!$F$29","v":"X"},{"$f":"Menu!$J$29","v":2020},{"$f":"IF(ISBLANK(INDIRECT(\"'\"&F8041&\"'!\"&G8041)),\"\",INDIRECT(\"'\"&F8041&\"'!\"&G8041))","v":""},{"$f":"IF(ISBLANK(INDIRECT(\"'\"&F8041&\"'!\"&H8041)),\"\",IFERROR(VLOOKUP(TEXT(INDIRECT(\"'\"&F8041&\"'!\"&H8041),\"0\"),Notes!$B$5:$C$100,2,FALSE),\"\"))","v":""},"2b","$S$150","$T$150"]
[27496,{"$f":"Menu!$F$29","v":"X"},{"$f":"Menu!$J$29","v":2020},{"$f":"IF(ISBLANK(INDIRECT(\"'\"&F8042&\"'!\"&G8042)),\"\",INDIRECT(\"'\"&F8042&\"'!\"&G8042))","v":""},{"$f":"IF(ISBLANK(INDIRECT(\"'\"&F8042&\"'!\"&H8042)),\"\",IFERROR(VLOOKUP(TEXT(INDIRECT(\"'\"&F8042&\"'!\"&H8042),\"0\"),Notes!$B$5:$C$100,2,FALSE),\"\"))","v":""},"2a","$I$150","$J$150"]
[27497,{"$f":"Menu!$F$29","v":"X"},{"$f":"Menu!$J$29","v":2020},{"$f":"IF(ISBLANK(INDIRECT(\"'\"&F8043&\"'!\"&G8043)),\"\",INDIRECT(\"'\"&F8043&\"'!\"&G8043))","v":""},{"$f":"IF(ISBLANK(INDIRECT(\"'\"&F8043&\"'!\"&H8043)),\"\",IFERROR(VLOOKUP(TEXT(INDIRECT(\"'\"&F8043&\"'!\"&H8043),\"0\"),Notes!$B$5:$C$100,2,FALSE),\"\"))","v":""},"2c","$E$150","$F$150"]
[27498,{"$f":"Menu!$F$29","v":"X"},{"$f":"Menu!$J$29","v":2020},{"$f":"IF(ISBLANK(INDIRECT(\"'\"&F8044&\"'!\"&G8044)),\"\",INDIRECT(\"'\"&F8044&\"'!\"&G8044))","v":""},{"$f":"IF(ISBLANK(INDIRECT(\"'\"&F8044&\"'!\"&H8044)),\"\",IFERROR(VLOOKUP(TEXT(INDIRECT(\"'\"&F8044&\"'!\"&H8044),\"0\"),Notes!$B$5:$C$100,2,FALSE),\"\"))","v":""},"2c","$I$150","$J$150"]
[27499,{"$f":"Menu!$F$29","v":"X"},{"$f":"Menu!$J$29","v":2020},{"$f":"IF(ISBLANK(INDIRECT(\"'\"&F8045&\"'!\"&G8045)),\"\",INDIRECT(\"'\"&F8045&\"'!\"&G8045))","v":""},{"$f":"IF(ISBLANK(INDIRECT(\"'\"&F8045&\"'!\"&H8045)),\"\",IFERROR(VLOOKUP(TEXT(INDIRECT(\"'\"&F8045&\"'!\"&H8045),\"0\"),Notes!$B$5:$C$100,2,FALSE),\"\"))","v":""},"2c","$G$150","$H$150"]
[27503,{"$f":"Menu!$F$29","v":"X"},{"$f":"Menu!$J$29","v":2020},{"$f":"IF(ISBLANK(INDIRECT(\"'\"&F8046&\"'!\"&G8046)),\"\",INDIRECT(\"'\"&F8046&\"'!\"&G8046))","v":""},{"$f":"IF(ISBLANK(INDIRECT(\"'\"&F8046&\"'!\"&H8046)),\"\",IFERROR(VLOOKUP(TEXT(INDIRECT(\"'\"&F8046&\"'!\"&H8046),\"0\"),Notes!$B$5:$C$100,2,FALSE),\"\"))","v":""},"2c","$K$150","$L$150"]
[27504,{"$f":"Menu!$F$29","v":"X"},{"$f":"Menu!$J$29","v":2020},{"$f":"IF(ISBLANK(INDIRECT(\"'\"&F8047&\"'!\"&G8047)),\"\",INDIRECT(\"'\"&F8047&\"'!\"&G8047))","v":""},{"$f":"IF(ISBLANK(INDIRECT(\"'\"&F8047&\"'!\"&H8047)),\"\",IFERROR(VLOOKUP(TEXT(INDIRECT(\"'\"&F8047&\"'!\"&H8047),\"0\"),Notes!$B$5:$C$100,2,FALSE),\"\"))","v":""},"2c","$O$150","$P$150"]
[27505,{"$f":"Menu!$F$29","v":"X"},{"$f":"Menu!$J$29","v":2020},{"$f":"IF(ISBLANK(INDIRECT(\"'\"&F8048&\"'!\"&G8048)),\"\",INDIRECT(\"'\"&F8048&\"'!\"&G8048))","v":""},{"$f":"IF(ISBLANK(INDIRECT(\"'\"&F8048&\"'!\"&H8048)),\"\",IFERROR(VLOOKUP(TEXT(INDIRECT(\"'\"&F8048&\"'!\"&H8048),\"0\"),Notes!$B$5:$C$100,2,FALSE),\"\"))","v":""},"2c","$M$150","$N$150"]
[27506,{"$f":"Menu!$F$29","v":"X"},{"$f":"Menu!$J$29","v":2020},{"$f":"IF(ISBLANK(INDIRECT(\"'\"&F8049&\"'!\"&G8049)),\"\",INDIRECT(\"'\"&F8049&\"'!\"&G8049))","v":""},{"$f":"IF(ISBLANK(INDIRECT(\"'\"&F8049&\"'!\"&H8049)),\"\",IFERROR(VLOOKUP(TEXT(INDIRECT(\"'\"&F8049&\"'!\"&H8049),\"0\"),Notes!$B$5:$C$100,2,FALSE),\"\"))","v":""},"2c","$Q$150","$R$150"]
[27507,{"$f":"Menu!$F$29","v":"X"},{"$f":"Menu!$J$29","v":2020},{"$f":"IF(ISBLANK(INDIRECT(\"'\"&F8050&\"'!\"&G8050)),\"\",INDIRECT(\"'\"&F8050&\"'!\"&G8050))","v":""},{"$f":"IF(ISBLANK(INDIRECT(\"'\"&F8050&\"'!\"&H8050)),\"\",IFERROR(VLOOKUP(TEXT(INDIRECT(\"'\"&F8050&\"'!\"&H8050),\"0\"),Notes!$B$5:$C$100,2,FALSE),\"\"))","v":""},"2c","$U$150","$V$150"]
[27508,{"$f":"Menu!$F$29","v":"X"},{"$f":"Menu!$J$29","v":2020},{"$f":"IF(ISBLANK(INDIRECT(\"'\"&F8051&\"'!\"&G8051)),\"\",INDIRECT(\"'\"&F8051&\"'!\"&G8051))","v":""},{"$f":"IF(ISBLANK(INDIRECT(\"'\"&F8051&\"'!\"&H8051)),\"\",IFERROR(VLOOKUP(TEXT(INDIRECT(\"'\"&F8051&\"'!\"&H8051),\"0\"),Notes!$B$5:$C$100,2,FALSE),\"\"))","v":""},"2c","$S$150","$T$150"]
[27509,{"$f":"Menu!$F$29","v":"X"},{"$f":"Menu!$J$29","v":2020},{"$f":"IF(ISBLANK(INDIRECT(\"'\"&F8052&\"'!\"&G8052)),\"\",INDIRECT(\"'\"&F8052&\"'!\"&G8052))","v":""},{"$f":"IF(ISBLANK(INDIRECT(\"'\"&F8052&\"'!\"&H8052)),\"\",IFERROR(VLOOKUP(TEXT(INDIRECT(\"'\"&F8052&\"'!\"&H8052),\"0\"),Notes!$B$5:$C$100,2,FALSE),\"\"))","v":""},"2c","$W$150","$X$150"]
[27510,{"$f":"Menu!$F$29","v":"X"},{"$f":"Menu!$J$29","v":2020},{"$f":"IF(ISBLANK(INDIRECT(\"'\"&F8053&\"'!\"&G8053)),\"\",INDIRECT(\"'\"&F8053&\"'!\"&G8053))","v":""},{"$f":"IF(ISBLANK(INDIRECT(\"'\"&F8053&\"'!\"&H8053)),\"\",IFERROR(VLOOKUP(TEXT(INDIRECT(\"'\"&F8053&\"'!\"&H8053),\"0\"),Notes!$B$5:$C$100,2,FALSE),\"\"))","v":""},"2c","$AA$150","$AB$150"]
[27511,{"$f":"Menu!$F$29","v":"X"},{"$f":"Menu!$J$29","v":2020},{"$f":"IF(ISBLANK(INDIRECT(\"'\"&F8054&\"'!\"&G8054)),\"\",INDIRECT(\"'\"&F8054&\"'!\"&G8054))","v":""},{"$f":"IF(ISBLANK(INDIRECT(\"'\"&F8054&\"'!\"&H8054)),\"\",IFERROR(VLOOKUP(TEXT(INDIRECT(\"'\"&F8054&\"'!\"&H8054),\"0\"),Notes!$B$5:$C$100,2,FALSE),\"\"))","v":""},"2c","$Y$150","$Z$150"]
[27518,{"$f":"Menu!$F$29","v":"X"},{"$f":"Menu!$J$29","v":2020},{"$f":"IF(ISBLANK(INDIRECT(\"'\"&F8055&\"'!\"&G8055)),\"\",INDIRECT(\"'\"&F8055&\"'!\"&G8055))","v":""},{"$f":"IF(ISBLANK(INDIRECT(\"'\"&F8055&\"'!\"&H8055)),\"\",IFERROR(VLOOKUP(TEXT(INDIRECT(\"'\"&F8055&\"'!\"&H8055),\"0\"),Notes!$B$5:$C$100,2,FALSE),\"\"))","v":""},"2e","$BG$151","$BH$151"]
[27519,{"$f":"Menu!$F$29","v":"X"},{"$f":"Menu!$J$29","v":2020},{"$f":"IF(ISBLANK(INDIRECT(\"'\"&F8056&\"'!\"&G8056)),\"\",INDIRECT(\"'\"&F8056&\"'!\"&G8056))","v":""},{"$f":"IF(ISBLANK(INDIRECT(\"'\"&F8056&\"'!\"&H8056)),\"\",IFERROR(VLOOKUP(TEXT(INDIRECT(\"'\"&F8056&\"'!\"&H8056),\"0\"),Notes!$B$5:$C$100,2,FALSE),\"\"))","v":""},"2e","$BK$151","$BL$151"]
[27520,{"$f":"Menu!$F$29","v":"X"},{"$f":"Menu!$J$29","v":2020},{"$f":"IF(ISBLANK(INDIRECT(\"'\"&F8057&\"'!\"&G8057)),\"\",INDIRECT(\"'\"&F8057&\"'!\"&G8057))","v":""},{"$f":"IF(ISBLANK(INDIRECT(\"'\"&F8057&\"'!\"&H8057)),\"\",IFERROR(VLOOKUP(TEXT(INDIRECT(\"'\"&F8057&\"'!\"&H8057),\"0\"),Notes!$B$5:$C$100,2,FALSE),\"\"))","v":""},"2e","$BI$151","$BJ$151"]
[27521,{"$f":"Menu!$F$29","v":"X"},{"$f":"Menu!$J$29","v":2020},{"$f":"IF(ISBLANK(INDIRECT(\"'\"&F8058&\"'!\"&G8058)),\"\",INDIRECT(\"'\"&F8058&\"'!\"&G8058))","v":""},{"$f":"IF(ISBLANK(INDIRECT(\"'\"&F8058&\"'!\"&H8058)),\"\",IFERROR(VLOOKUP(TEXT(INDIRECT(\"'\"&F8058&\"'!\"&H8058),\"0\"),Notes!$B$5:$C$100,2,FALSE),\"\"))","v":""},"2e","$E$151","$F$151"]
[27522,{"$f":"Menu!$F$29","v":"X"},{"$f":"Menu!$J$29","v":2020},{"$f":"IF(ISBLANK(INDIRECT(\"'\"&F8059&\"'!\"&G8059)),\"\",INDIRECT(\"'\"&F8059&\"'!\"&G8059))","v":""},{"$f":"IF(ISBLANK(INDIRECT(\"'\"&F8059&\"'!\"&H8059)),\"\",IFERROR(VLOOKUP(TEXT(INDIRECT(\"'\"&F8059&\"'!\"&H8059),\"0\"),Notes!$B$5:$C$100,2,FALSE),\"\"))","v":""},"2e","$I$151","$J$151"]
[27523,{"$f":"Menu!$F$29","v":"X"},{"$f":"Menu!$J$29","v":2020},{"$f":"IF(ISBLANK(INDIRECT(\"'\"&F8060&\"'!\"&G8060)),\"\",INDIRECT(\"'\"&F8060&\"'!\"&G8060))","v":""},{"$f":"IF(ISBLANK(INDIRECT(\"'\"&F8060&\"'!\"&H8060)),\"\",IFERROR(VLOOKUP(TEXT(INDIRECT(\"'\"&F8060&\"'!\"&H8060),\"0\"),Notes!$B$5:$C$100,2,FALSE),\"\"))","v":""},"2e","$G$151","$H$151"]
[27524,{"$f":"Menu!$F$29","v":"X"},{"$f":"Menu!$J$29","v":2020},{"$f":"IF(ISBLANK(INDIRECT(\"'\"&F8061&\"'!\"&G8061)),\"\",INDIRECT(\"'\"&F8061&\"'!\"&G8061))","v":""},{"$f":"IF(ISBLANK(INDIRECT(\"'\"&F8061&\"'!\"&H8061)),\"\",IFERROR(VLOOKUP(TEXT(INDIRECT(\"'\"&F8061&\"'!\"&H8061),\"0\"),Notes!$B$5:$C$100,2,FALSE),\"\"))","v":""},"2e","$K$151","$L$151"]
[27525,{"$f":"Menu!$F$29","v":"X"},{"$f":"Menu!$J$29","v":2020},{"$f":"IF(ISBLANK(INDIRECT(\"'\"&F8062&\"'!\"&G8062)),\"\",INDIRECT(\"'\"&F8062&\"'!\"&G8062))","v":""},{"$f":"IF(ISBLANK(INDIRECT(\"'\"&F8062&\"'!\"&H8062)),\"\",IFERROR(VLOOKUP(TEXT(INDIRECT(\"'\"&F8062&\"'!\"&H8062),\"0\"),Notes!$B$5:$C$100,2,FALSE),\"\"))","v":""},"2e","$O$151","$P$151"]
[27526,{"$f":"Menu!$F$29","v":"X"},{"$f":"Menu!$J$29","v":2020},{"$f":"IF(ISBLANK(INDIRECT(\"'\"&F8063&\"'!\"&G8063)),\"\",INDIRECT(\"'\"&F8063&\"'!\"&G8063))","v":""},{"$f":"IF(ISBLANK(INDIRECT(\"'\"&F8063&\"'!\"&H8063)),\"\",IFERROR(VLOOKUP(TEXT(INDIRECT(\"'\"&F8063&\"'!\"&H8063),\"0\"),Notes!$B$5:$C$100,2,FALSE),\"\"))","v":""},"2e","$M$151","$N$151"]
[27527,{"$f":"Menu!$F$29","v":"X"},{"$f":"Menu!$J$29","v":2020},{"$f":"IF(ISBLANK(INDIRECT(\"'\"&F8064&\"'!\"&G8064)),\"\",INDIRECT(\"'\"&F8064&\"'!\"&G8064))","v":""},{"$f":"IF(ISBLANK(INDIRECT(\"'\"&F8064&\"'!\"&H8064)),\"\",IFERROR(VLOOKUP(TEXT(INDIRECT(\"'\"&F8064&\"'!\"&H8064),\"0\"),Notes!$B$5:$C$100,2,FALSE),\"\"))","v":""},"2e","$Q$151","$R$151"]
[27528,{"$f":"Menu!$F$29","v":"X"},{"$f":"Menu!$J$29","v":2020},{"$f":"IF(ISBLANK(INDIRECT(\"'\"&F8065&\"'!\"&G8065)),\"\",INDIRECT(\"'\"&F8065&\"'!\"&G8065))","v":""},{"$f":"IF(ISBLANK(INDIRECT(\"'\"&F8065&\"'!\"&H8065)),\"\",IFERROR(VLOOKUP(TEXT(INDIRECT(\"'\"&F8065&\"'!\"&H8065),\"0\"),Notes!$B$5:$C$100,2,FALSE),\"\"))","v":""},"2e","$U$151","$V$151"]
[27529,{"$f":"Menu!$F$29","v":"X"},{"$f":"Menu!$J$29","v":2020},{"$f":"IF(ISBLANK(INDIRECT(\"'\"&F8066&\"'!\"&G8066)),\"\",INDIRECT(\"'\"&F8066&\"'!\"&G8066))","v":""},{"$f":"IF(ISBLANK(INDIRECT(\"'\"&F8066&\"'!\"&H8066)),\"\",IFERROR(VLOOKUP(TEXT(INDIRECT(\"'\"&F8066&\"'!\"&H8066),\"0\"),Notes!$B$5:$C$100,2,FALSE),\"\"))","v":""},"2e","$S$151",{"$f":"IF(LEN(TRIM(MID(G8066,4,10)))-LEN(SUBSTITUTE(TRIM(MID(G8066,4,10)),\"$\",\"\"))=0,\"$\"&CHAR(CODE(MID(G8066,2,1))+1)&\"$\"&TRIM(MID(G8066,4,10)),\"$\"&MID(G8066,2,1)&CHAR(CODE(MID(G8066,3,1))+1)&\"$\"&TRIM(MID(G8066,5,11)))","v":"$T$151"}]
[27530,{"$f":"Menu!$F$29","v":"X"},{"$f":"Menu!$J$29","v":2020},{"$f":"IF(ISBLANK(INDIRECT(\"'\"&F8067&\"'!\"&G8067)),\"\",INDIRECT(\"'\"&F8067&\"'!\"&G8067))","v":""},{"$f":"IF(ISBLANK(INDIRECT(\"'\"&F8067&\"'!\"&H8067)),\"\",IFERROR(VLOOKUP(TEXT(INDIRECT(\"'\"&F8067&\"'!\"&H8067),\"0\"),Notes!$B$5:$C$100,2,FALSE),\"\"))","v":""},"2e","$W$151","$X$151"]
[27531,{"$f":"Menu!$F$29","v":"X"},{"$f":"Menu!$J$29","v":2020},{"$f":"IF(ISBLANK(INDIRECT(\"'\"&F8068&\"'!\"&G8068)),\"\",INDIRECT(\"'\"&F8068&\"'!\"&G8068))","v":""},{"$f":"IF(ISBLANK(INDIRECT(\"'\"&F8068&\"'!\"&H8068)),\"\",IFERROR(VLOOKUP(TEXT(INDIRECT(\"'\"&F8068&\"'!\"&H8068),\"0\"),Notes!$B$5:$C$100,2,FALSE),\"\"))","v":""},"2e","$AA$151","$AB$151"]
[27532,{"$f":"Menu!$F$29","v":"X"},{"$f":"Menu!$J$29","v":2020},{"$f":"IF(ISBLANK(INDIRECT(\"'\"&F8069&\"'!\"&G8069)),\"\",INDIRECT(\"'\"&F8069&\"'!\"&G8069))","v":""},{"$f":"IF(ISBLANK(INDIRECT(\"'\"&F8069&\"'!\"&H8069)),\"\",IFERROR(VLOOKUP(TEXT(INDIRECT(\"'\"&F8069&\"'!\"&H8069),\"0\"),Notes!$B$5:$C$100,2,FALSE),\"\"))","v":""},"2e","$Y$151","$Z$151"]
[27533,{"$f":"Menu!$F$29","v":"X"},{"$f":"Menu!$J$29","v":2020},{"$f":"IF(ISBLANK(INDIRECT(\"'\"&F8070&\"'!\"&G8070)),\"\",INDIRECT(\"'\"&F8070&\"'!\"&G8070))","v":""},{"$f":"IF(ISBLANK(INDIRECT(\"'\"&F8070&\"'!\"&H8070)),\"\",IFERROR(VLOOKUP(TEXT(INDIRECT(\"'\"&F8070&\"'!\"&H8070),\"0\"),Notes!$B$5:$C$100,2,FALSE),\"\"))","v":""},"2e","$AC$151","$AD$151"]
[27534,{"$f":"Menu!$F$29","v":"X"},{"$f":"Menu!$J$29","v":2020},{"$f":"IF(ISBLANK(INDIRECT(\"'\"&F8071&\"'!\"&G8071)),\"\",INDIRECT(\"'\"&F8071&\"'!\"&G8071))","v":""},{"$f":"IF(ISBLANK(INDIRECT(\"'\"&F8071&\"'!\"&H8071)),\"\",IFERROR(VLOOKUP(TEXT(INDIRECT(\"'\"&F8071&\"'!\"&H8071),\"0\"),Notes!$B$5:$C$100,2,FALSE),\"\"))","v":""},"2e","$AG$151","$AH$151"]
[27535,{"$f":"Menu!$F$29","v":"X"},{"$f":"Menu!$J$29","v":2020},{"$f":"IF(ISBLANK(INDIRECT(\"'\"&F8072&\"'!\"&G8072)),\"\",INDIRECT(\"'\"&F8072&\"'!\"&G8072))","v":""},{"$f":"IF(ISBLANK(INDIRECT(\"'\"&F8072&\"'!\"&H8072)),\"\",IFERROR(VLOOKUP(TEXT(INDIRECT(\"'\"&F8072&\"'!\"&H8072),\"0\"),Notes!$B$5:$C$100,2,FALSE),\"\"))","v":""},"2e","$AE$151","$AF$151"]
[27536,{"$f":"Menu!$F$29","v":"X"},{"$f":"Menu!$J$29","v":2020},{"$f":"IF(ISBLANK(INDIRECT(\"'\"&F8073&\"'!\"&G8073)),\"\",INDIRECT(\"'\"&F8073&\"'!\"&G8073))","v":""},{"$f":"IF(ISBLANK(INDIRECT(\"'\"&F8073&\"'!\"&H8073)),\"\",IFERROR(VLOOKUP(TEXT(INDIRECT(\"'\"&F8073&\"'!\"&H8073),\"0\"),Notes!$B$5:$C$100,2,FALSE),\"\"))","v":""},"2e","$AI$151","$AJ$151"]
[27537,{"$f":"Menu!$F$29","v":"X"},{"$f":"Menu!$J$29","v":2020},{"$f":"IF(ISBLANK(INDIRECT(\"'\"&F8074&\"'!\"&G8074)),\"\",INDIRECT(\"'\"&F8074&\"'!\"&G8074))","v":""},{"$f":"IF(ISBLANK(INDIRECT(\"'\"&F8074&\"'!\"&H8074)),\"\",IFERROR(VLOOKUP(TEXT(INDIRECT(\"'\"&F8074&\"'!\"&H8074),\"0\"),Notes!$B$5:$C$100,2,FALSE),\"\"))","v":""},"2e","$AM$151","$AN$151"]
[27538,{"$f":"Menu!$F$29","v":"X"},{"$f":"Menu!$J$29","v":2020},{"$f":"IF(ISBLANK(INDIRECT(\"'\"&F8075&\"'!\"&G8075)),\"\",INDIRECT(\"'\"&F8075&\"'!\"&G8075))","v":""},{"$f":"IF(ISBLANK(INDIRECT(\"'\"&F8075&\"'!\"&H8075)),\"\",IFERROR(VLOOKUP(TEXT(INDIRECT(\"'\"&F8075&\"'!\"&H8075),\"0\"),Notes!$B$5:$C$100,2,FALSE),\"\"))","v":""},"2e","$AK$151","$AL$151"]
[27539,{"$f":"Menu!$F$29","v":"X"},{"$f":"Menu!$J$29","v":2020},{"$f":"IF(ISBLANK(INDIRECT(\"'\"&F8076&\"'!\"&G8076)),\"\",INDIRECT(\"'\"&F8076&\"'!\"&G8076))","v":""},{"$f":"IF(ISBLANK(INDIRECT(\"'\"&F8076&\"'!\"&H8076)),\"\",IFERROR(VLOOKUP(TEXT(INDIRECT(\"'\"&F8076&\"'!\"&H8076),\"0\"),Notes!$B$5:$C$100,2,FALSE),\"\"))","v":""},"2e","$AO$151","$AP$151"]
[27540,{"$f":"Menu!$F$29","v":"X"},{"$f":"Menu!$J$29","v":2020},{"$f":"IF(ISBLANK(INDIRECT(\"'\"&F8077&\"'!\"&G8077)),\"\",INDIRECT(\"'\"&F8077&\"'!\"&G8077))","v":""},{"$f":"IF(ISBLANK(INDIRECT(\"'\"&F8077&\"'!\"&H8077)),\"\",IFERROR(VLOOKUP(TEXT(INDIRECT(\"'\"&F8077&\"'!\"&H8077),\"0\"),Notes!$B$5:$C$100,2,FALSE),\"\"))","v":""},"2e","$AS$151","$AT$151"]
[27541,{"$f":"Menu!$F$29","v":"X"},{"$f":"Menu!$J$29","v":2020},{"$f":"IF(ISBLANK(INDIRECT(\"'\"&F8078&\"'!\"&G8078)),\"\",INDIRECT(\"'\"&F8078&\"'!\"&G8078))","v":""},{"$f":"IF(ISBLANK(INDIRECT(\"'\"&F8078&\"'!\"&H8078)),\"\",IFERROR(VLOOKUP(TEXT(INDIRECT(\"'\"&F8078&\"'!\"&H8078),\"0\"),Notes!$B$5:$C$100,2,FALSE),\"\"))","v":""},"2e","$AQ$151","$AR$151"]
[27542,{"$f":"Menu!$F$29","v":"X"},{"$f":"Menu!$J$29","v":2020},{"$f":"IF(ISBLANK(INDIRECT(\"'\"&F8079&\"'!\"&G8079)),\"\",INDIRECT(\"'\"&F8079&\"'!\"&G8079))","v":""},{"$f":"IF(ISBLANK(INDIRECT(\"'\"&F8079&\"'!\"&H8079)),\"\",IFERROR(VLOOKUP(TEXT(INDIRECT(\"'\"&F8079&\"'!\"&H8079),\"0\"),Notes!$B$5:$C$100,2,FALSE),\"\"))","v":""},"2e","$AU$151","$AV$151"]
[27543,{"$f":"Menu!$F$29","v":"X"},{"$f":"Menu!$J$29","v":2020},{"$f":"IF(ISBLANK(INDIRECT(\"'\"&F8080&\"'!\"&G8080)),\"\",INDIRECT(\"'\"&F8080&\"'!\"&G8080))","v":""},{"$f":"IF(ISBLANK(INDIRECT(\"'\"&F8080&\"'!\"&H8080)),\"\",IFERROR(VLOOKUP(TEXT(INDIRECT(\"'\"&F8080&\"'!\"&H8080),\"0\"),Notes!$B$5:$C$100,2,FALSE),\"\"))","v":""},"2e","$AY$151","$AZ$151"]
[27544,{"$f":"Menu!$F$29","v":"X"},{"$f":"Menu!$J$29","v":2020},{"$f":"IF(ISBLANK(INDIRECT(\"'\"&F8081&\"'!\"&G8081)),\"\",INDIRECT(\"'\"&F8081&\"'!\"&G8081))","v":""},{"$f":"IF(ISBLANK(INDIRECT(\"'\"&F8081&\"'!\"&H8081)),\"\",IFERROR(VLOOKUP(TEXT(INDIRECT(\"'\"&F8081&\"'!\"&H8081),\"0\"),Notes!$B$5:$C$100,2,FALSE),\"\"))","v":""},"2e","$AW$151","$AX$151"]
[27545,{"$f":"Menu!$F$29","v":"X"},{"$f":"Menu!$J$29","v":2020},{"$f":"IF(ISBLANK(INDIRECT(\"'\"&F8082&\"'!\"&G8082)),\"\",INDIRECT(\"'\"&F8082&\"'!\"&G8082))","v":""},{"$f":"IF(ISBLANK(INDIRECT(\"'\"&F8082&\"'!\"&H8082)),\"\",IFERROR(VLOOKUP(TEXT(INDIRECT(\"'\"&F8082&\"'!\"&H8082),\"0\"),Notes!$B$5:$C$100,2,FALSE),\"\"))","v":""},"2e","$BA$151","$BB$151"]
[27546,{"$f":"Menu!$F$29","v":"X"},{"$f":"Menu!$J$29","v":2020},{"$f":"IF(ISBLANK(INDIRECT(\"'\"&F8083&\"'!\"&G8083)),\"\",INDIRECT(\"'\"&F8083&\"'!\"&G8083))","v":""},{"$f":"IF(ISBLANK(INDIRECT(\"'\"&F8083&\"'!\"&H8083)),\"\",IFERROR(VLOOKUP(TEXT(INDIRECT(\"'\"&F8083&\"'!\"&H8083),\"0\"),Notes!$B$5:$C$100,2,FALSE),\"\"))","v":""},"2e","$BE$151","$BF$151"]
[27547,{"$f":"Menu!$F$29","v":"X"},{"$f":"Menu!$J$29","v":2020},{"$f":"IF(ISBLANK(INDIRECT(\"'\"&F8084&\"'!\"&G8084)),\"\",INDIRECT(\"'\"&F8084&\"'!\"&G8084))","v":""},{"$f":"IF(ISBLANK(INDIRECT(\"'\"&F8084&\"'!\"&H8084)),\"\",IFERROR(VLOOKUP(TEXT(INDIRECT(\"'\"&F8084&\"'!\"&H8084),\"0\"),Notes!$B$5:$C$100,2,FALSE),\"\"))","v":""},"2e","$BC$151","$BD$151"]
[27548,{"$f":"Menu!$F$29","v":"X"},{"$f":"Menu!$J$29","v":2020},{"$f":"IF(ISBLANK(INDIRECT(\"'\"&F8085&\"'!\"&G8085)),\"\",INDIRECT(\"'\"&F8085&\"'!\"&G8085))","v":""},{"$f":"IF(ISBLANK(INDIRECT(\"'\"&F8085&\"'!\"&H8085)),\"\",IFERROR(VLOOKUP(TEXT(INDIRECT(\"'\"&F8085&\"'!\"&H8085),\"0\"),Notes!$B$5:$C$100,2,FALSE),\"\"))","v":""},"2b","$E$150","$F$150"]
[27549,{"$f":"Menu!$F$29","v":"X"},{"$f":"Menu!$J$29","v":2020},{"$f":"IF(ISBLANK(INDIRECT(\"'\"&F8086&\"'!\"&G8086)),\"\",INDIRECT(\"'\"&F8086&\"'!\"&G8086))","v":""},{"$f":"IF(ISBLANK(INDIRECT(\"'\"&F8086&\"'!\"&H8086)),\"\",IFERROR(VLOOKUP(TEXT(INDIRECT(\"'\"&F8086&\"'!\"&H8086),\"0\"),Notes!$B$5:$C$100,2,FALSE),\"\"))","v":""},"2b","$I$150","$J$150"]
[27550,{"$f":"Menu!$F$29","v":"X"},{"$f":"Menu!$J$29","v":2020},{"$f":"IF(ISBLANK(INDIRECT(\"'\"&F8087&\"'!\"&G8087)),\"\",INDIRECT(\"'\"&F8087&\"'!\"&G8087))","v":""},{"$f":"IF(ISBLANK(INDIRECT(\"'\"&F8087&\"'!\"&H8087)),\"\",IFERROR(VLOOKUP(TEXT(INDIRECT(\"'\"&F8087&\"'!\"&H8087),\"0\"),Notes!$B$5:$C$100,2,FALSE),\"\"))","v":""},"2b","$G$150","$H$150"]
[27551,{"$f":"Menu!$F$29","v":"X"},{"$f":"Menu!$J$29","v":2020},{"$f":"IF(ISBLANK(INDIRECT(\"'\"&F8088&\"'!\"&G8088)),\"\",INDIRECT(\"'\"&F8088&\"'!\"&G8088))","v":""},null,"2a","$G$150","$H$150"]
[27552,{"$f":"Menu!$F$29","v":"X"},{"$f":"Menu!$J$29","v":2020},{"$f":"IF(ISBLANK(INDIRECT(\"'\"&F8089&\"'!\"&G8089)),\"\",INDIRECT(\"'\"&F8089&\"'!\"&G8089))","v":""},{"$f":"IF(ISBLANK(INDIRECT(\"'\"&F8089&\"'!\"&H8089)),\"\",IFERROR(VLOOKUP(TEXT(INDIRECT(\"'\"&F8089&\"'!\"&H8089),\"0\"),Notes!$B$5:$C$100,2,FALSE),\"\"))","v":""},"2b","$W$150","$X$150"]
[27553,{"$f":"Menu!$F$29","v":"X"},{"$f":"Menu!$J$29","v":2020},{"$f":"IF(ISBLANK(INDIRECT(\"'\"&F8090&\"'!\"&G8090)),\"\",INDIRECT(\"'\"&F8090&\"'!\"&G8090))","v":""},{"$f":"IF(ISBLANK(INDIRECT(\"'\"&F8090&\"'!\"&H8090)),\"\",IFERROR(VLOOKUP(TEXT(INDIRECT(\"'\"&F8090&\"'!\"&H8090),\"0\"),Notes!$B$5:$C$100,2,FALSE),\"\"))","v":""},"2b","$AA$150","$AB$150"]
[27554,{"$f":"Menu!$F$29","v":"X"},{"$f":"Menu!$J$29","v":2020},{"$f":"IF(ISBLANK(INDIRECT(\"'\"&F8091&\"'!\"&G8091)),\"\",INDIRECT(\"'\"&F8091&\"'!\"&G8091))","v":""},{"$f":"IF(ISBLANK(INDIRECT(\"'\"&F8091&\"'!\"&H8091)),\"\",IFERROR(VLOOKUP(TEXT(INDIRECT(\"'\"&F8091&\"'!\"&H8091),\"0\"),Notes!$B$5:$C$100,2,FALSE),\"\"))","v":""},"2b","$Y$150","$Z$150"]
[27555,{"$f":"Menu!$F$29","v":"X"},{"$f":"Menu!$J$29","v":2020},{"$f":"IF(ISBLANK(INDIRECT(\"'\"&F8092&\"'!\"&G8092)),\"\",INDIRECT(\"'\"&F8092&\"'!\"&G8092))","v":""},{"$f":"IF(ISBLANK(INDIRECT(\"'\"&F8092&\"'!\"&H8092)),\"\",IFERROR(VLOOKUP(TEXT(INDIRECT(\"'\"&F8092&\"'!\"&H8092),\"0\"),Notes!$B$5:$C$100,2,FALSE),\"\"))","v":""},"2d","$AC$150","$AD$150"]
[27556,{"$f":"Menu!$F$29","v":"X"},{"$f":"Menu!$J$29","v":2020},{"$f":"IF(ISBLANK(INDIRECT(\"'\"&F8093&\"'!\"&G8093)),\"\",INDIRECT(\"'\"&F8093&\"'!\"&G8093))","v":""},{"$f":"IF(ISBLANK(INDIRECT(\"'\"&F8093&\"'!\"&H8093)),\"\",IFERROR(VLOOKUP(TEXT(INDIRECT(\"'\"&F8093&\"'!\"&H8093),\"0\"),Notes!$B$5:$C$100,2,FALSE),\"\"))","v":""},"2d","$AG$150","$AH$150"]
[27557,{"$f":"Menu!$F$29","v":"X"},{"$f":"Menu!$J$29","v":2020},{"$f":"IF(ISBLANK(INDIRECT(\"'\"&F8094&\"'!\"&G8094)),\"\",INDIRECT(\"'\"&F8094&\"'!\"&G8094))","v":""},{"$f":"IF(ISBLANK(INDIRECT(\"'\"&F8094&\"'!\"&H8094)),\"\",IFERROR(VLOOKUP(TEXT(INDIRECT(\"'\"&F8094&\"'!\"&H8094),\"0\"),Notes!$B$5:$C$100,2,FALSE),\"\"))","v":""},"2d","$AE$150","$AF$150"]
[27558,{"$f":"Menu!$F$29","v":"X"},{"$f":"Menu!$J$29","v":2020},{"$f":"IF(ISBLANK(INDIRECT(\"'\"&F8095&\"'!\"&G8095)),\"\",INDIRECT(\"'\"&F8095&\"'!\"&G8095))","v":""},{"$f":"IF(ISBLANK(INDIRECT(\"'\"&F8095&\"'!\"&H8095)),\"\",IFERROR(VLOOKUP(TEXT(INDIRECT(\"'\"&F8095&\"'!\"&H8095),\"0\"),Notes!$B$5:$C$100,2,FALSE),\"\"))","v":""},"2d","$W$150","$X$150"]
[27559,{"$f":"Menu!$F$29","v":"X"},{"$f":"Menu!$J$29","v":2020},{"$f":"IF(ISBLANK(INDIRECT(\"'\"&F8096&\"'!\"&G8096)),\"\",INDIRECT(\"'\"&F8096&\"'!\"&G8096))","v":""},{"$f":"IF(ISBLANK(INDIRECT(\"'\"&F8096&\"'!\"&H8096)),\"\",IFERROR(VLOOKUP(TEXT(INDIRECT(\"'\"&F8096&\"'!\"&H8096),\"0\"),Notes!$B$5:$C$100,2,FALSE),\"\"))","v":""},"2d","$AA$150","$AB$150"]
[27560,{"$f":"Menu!$F$29","v":"X"},{"$f":"Menu!$J$29","v":2020},{"$f":"IF(ISBLANK(INDIRECT(\"'\"&F8097&\"'!\"&G8097)),\"\",INDIRECT(\"'\"&F8097&\"'!\"&G8097))","v":""},{"$f":"IF(ISBLANK(INDIRECT(\"'\"&F8097&\"'!\"&H8097)),\"\",IFERROR(VLOOKUP(TEXT(INDIRECT(\"'\"&F8097&\"'!\"&H8097),\"0\"),Notes!$B$5:$C$100,2,FALSE),\"\"))","v":""},"2d","$Y$150","$Z$150"]
[27561,{"$f":"Menu!$F$29","v":"X"},{"$f":"Menu!$J$29","v":2020},{"$f":"IF(ISBLANK(INDIRECT(\"'\"&F8098&\"'!\"&G8098)),\"\",INDIRECT(\"'\"&F8098&\"'!\"&G8098))","v":""},{"$f":"IF(ISBLANK(INDIRECT(\"'\"&F8098&\"'!\"&H8098)),\"\",IFERROR(VLOOKUP(TEXT(INDIRECT(\"'\"&F8098&\"'!\"&H8098),\"0\"),Notes!$B$5:$C$100,2,FALSE),\"\"))","v":""},"2d","$E$150","$F$150"]
[27562,{"$f":"Menu!$F$29","v":"X"},{"$f":"Menu!$J$29","v":2020},{"$f":"IF(ISBLANK(INDIRECT(\"'\"&F8099&\"'!\"&G8099)),\"\",INDIRECT(\"'\"&F8099&\"'!\"&G8099))","v":""},{"$f":"IF(ISBLANK(INDIRECT(\"'\"&F8099&\"'!\"&H8099)),\"\",IFERROR(VLOOKUP(TEXT(INDIRECT(\"'\"&F8099&\"'!\"&H8099),\"0\"),Notes!$B$5:$C$100,2,FALSE),\"\"))","v":""},"2d","$I$150","$J$150"]
[27563,{"$f":"Menu!$F$29","v":"X"},{"$f":"Menu!$J$29","v":2020},{"$f":"IF(ISBLANK(INDIRECT(\"'\"&F8100&\"'!\"&G8100)),\"\",INDIRECT(\"'\"&F8100&\"'!\"&G8100))","v":""},{"$f":"IF(ISBLANK(INDIRECT(\"'\"&F8100&\"'!\"&H8100)),\"\",IFERROR(VLOOKUP(TEXT(INDIRECT(\"'\"&F8100&\"'!\"&H8100),\"0\"),Notes!$B$5:$C$100,2,FALSE),\"\"))","v":""},"2d","$G$150","$H$150"]
[27564,{"$f":"Menu!$F$29","v":"X"},{"$f":"Menu!$J$29","v":2020},{"$f":"IF(ISBLANK(INDIRECT(\"'\"&F8101&\"'!\"&G8101)),\"\",INDIRECT(\"'\"&F8101&\"'!\"&G8101))","v":""},{"$f":"IF(ISBLANK(INDIRECT(\"'\"&F8101&\"'!\"&H8101)),\"\",IFERROR(VLOOKUP(TEXT(INDIRECT(\"'\"&F8101&\"'!\"&H8101),\"0\"),Notes!$B$5:$C$100,2,FALSE),\"\"))","v":""},"2a","$Q$150","$R$150"]
[27565,{"$f":"Menu!$F$29","v":"X"},{"$f":"Menu!$J$29","v":2020},{"$f":"IF(ISBLANK(INDIRECT(\"'\"&F8102&\"'!\"&G8102)),\"\",INDIRECT(\"'\"&F8102&\"'!\"&G8102))","v":""},{"$f":"IF(ISBLANK(INDIRECT(\"'\"&F8102&\"'!\"&H8102)),\"\",IFERROR(VLOOKUP(TEXT(INDIRECT(\"'\"&F8102&\"'!\"&H8102),\"0\"),Notes!$B$5:$C$100,2,FALSE),\"\"))","v":""},"2a","$U$150","$V$150"]
[27566,{"$f":"Menu!$F$29","v":"X"},{"$f":"Menu!$J$29","v":2020},{"$f":"IF(ISBLANK(INDIRECT(\"'\"&F8103&\"'!\"&G8103)),\"\",INDIRECT(\"'\"&F8103&\"'!\"&G8103))","v":""},{"$f":"IF(ISBLANK(INDIRECT(\"'\"&F8103&\"'!\"&H8103)),\"\",IFERROR(VLOOKUP(TEXT(INDIRECT(\"'\"&F8103&\"'!\"&H8103),\"0\"),Notes!$B$5:$C$100,2,FALSE),\"\"))","v":""},"2a","$S$150","$T$150"]
[27567,{"$f":"Menu!$F$29","v":"X"},{"$f":"Menu!$J$29","v":2020},{"$f":"IF(ISBLANK(INDIRECT(\"'\"&F8104&\"'!\"&G8104)),\"\",INDIRECT(\"'\"&F8104&\"'!\"&G8104))","v":""},{"$f":"IF(ISBLANK(INDIRECT(\"'\"&F8104&\"'!\"&H8104)),\"\",IFERROR(VLOOKUP(TEXT(INDIRECT(\"'\"&F8104&\"'!\"&H8104),\"0\"),Notes!$B$5:$C$100,2,FALSE),\"\"))","v":""},"2d","$K$150","$L$150"]
[27568,{"$f":"Menu!$F$29","v":"X"},{"$f":"Menu!$J$29","v":2020},{"$f":"IF(ISBLANK(INDIRECT(\"'\"&F8105&\"'!\"&G8105)),\"\",INDIRECT(\"'\"&F8105&\"'!\"&G8105))","v":""},{"$f":"IF(ISBLANK(INDIRECT(\"'\"&F8105&\"'!\"&H8105)),\"\",IFERROR(VLOOKUP(TEXT(INDIRECT(\"'\"&F8105&\"'!\"&H8105),\"0\"),Notes!$B$5:$C$100,2,FALSE),\"\"))","v":""},"2d","$O$150","$P$150"]
[27569,{"$f":"Menu!$F$29","v":"X"},{"$f":"Menu!$J$29","v":2020},{"$f":"IF(ISBLANK(INDIRECT(\"'\"&F8106&\"'!\"&G8106)),\"\",INDIRECT(\"'\"&F8106&\"'!\"&G8106))","v":""},{"$f":"IF(ISBLANK(INDIRECT(\"'\"&F8106&\"'!\"&H8106)),\"\",IFERROR(VLOOKUP(TEXT(INDIRECT(\"'\"&F8106&\"'!\"&H8106),\"0\"),Notes!$B$5:$C$100,2,FALSE),\"\"))","v":""},"2d","$M$150","$N$150"]
[27570,{"$f":"Menu!$F$29","v":"X"},{"$f":"Menu!$J$29","v":2020},{"$f":"IF(ISBLANK(INDIRECT(\"'\"&F8107&\"'!\"&G8107)),\"\",INDIRECT(\"'\"&F8107&\"'!\"&G8107))","v":""},{"$f":"IF(ISBLANK(INDIRECT(\"'\"&F8107&\"'!\"&H8107)),\"\",IFERROR(VLOOKUP(TEXT(INDIRECT(\"'\"&F8107&\"'!\"&H8107),\"0\"),Notes!$B$5:$C$100,2,FALSE),\"\"))","v":""},"2d","$Q$150","$R$150"]
[27571,{"$f":"Menu!$F$29","v":"X"},{"$f":"Menu!$J$29","v":2020},{"$f":"IF(ISBLANK(INDIRECT(\"'\"&F8108&\"'!\"&G8108)),\"\",INDIRECT(\"'\"&F8108&\"'!\"&G8108))","v":""},{"$f":"IF(ISBLANK(INDIRECT(\"'\"&F8108&\"'!\"&H8108)),\"\",IFERROR(VLOOKUP(TEXT(INDIRECT(\"'\"&F8108&\"'!\"&H8108),\"0\"),Notes!$B$5:$C$100,2,FALSE),\"\"))","v":""},"2d","$U$150","$V$150"]
[27572,{"$f":"Menu!$F$29","v":"X"},{"$f":"Menu!$J$29","v":2020},{"$f":"IF(ISBLANK(INDIRECT(\"'\"&F8109&\"'!\"&G8109)),\"\",INDIRECT(\"'\"&F8109&\"'!\"&G8109))","v":""},{"$f":"IF(ISBLANK(INDIRECT(\"'\"&F8109&\"'!\"&H8109)),\"\",IFERROR(VLOOKUP(TEXT(INDIRECT(\"'\"&F8109&\"'!\"&H8109),\"0\"),Notes!$B$5:$C$100,2,FALSE),\"\"))","v":""},"2d","$S$150","$T$150"]
[27573,{"$f":"Menu!$F$29","v":"X"},{"$f":"Menu!$J$29","v":2020},{"$f":"IF(ISBLANK(INDIRECT(\"'\"&F8110&\"'!\"&G8110)),\"\",INDIRECT(\"'\"&F8110&\"'!\"&G8110))","v":""},{"$f":"IF(ISBLANK(INDIRECT(\"'\"&F8110&\"'!\"&H8110)),\"\",IFERROR(VLOOKUP(TEXT(INDIRECT(\"'\"&F8110&\"'!\"&H8110),\"0\"),Notes!$B$5:$C$100,2,FALSE),\"\"))","v":""},"2a","$K$150","$L$150"]
[27574,{"$f":"Menu!$F$29","v":"X"},{"$f":"Menu!$J$29","v":2020},{"$f":"IF(ISBLANK(INDIRECT(\"'\"&F8111&\"'!\"&G8111)),\"\",INDIRECT(\"'\"&F8111&\"'!\"&G8111))","v":""},{"$f":"IF(ISBLANK(INDIRECT(\"'\"&F8111&\"'!\"&H8111)),\"\",IFERROR(VLOOKUP(TEXT(INDIRECT(\"'\"&F8111&\"'!\"&H8111),\"0\"),Notes!$B$5:$C$100,2,FALSE),\"\"))","v":""},"2a","$O$150","$P$150"]
[27575,{"$f":"Menu!$F$29","v":"X"},{"$f":"Menu!$J$29","v":2020},{"$f":"IF(ISBLANK(INDIRECT(\"'\"&F8112&\"'!\"&G8112)),\"\",INDIRECT(\"'\"&F8112&\"'!\"&G8112))","v":""},{"$f":"IF(ISBLANK(INDIRECT(\"'\"&F8112&\"'!\"&H8112)),\"\",IFERROR(VLOOKUP(TEXT(INDIRECT(\"'\"&F8112&\"'!\"&H8112),\"0\"),Notes!$B$5:$C$100,2,FALSE),\"\"))","v":""},"2a","$M$150","$N$150"]
[27576,{"$f":"Menu!$F$29","v":"X"},{"$f":"Menu!$J$29","v":2020},{"$f":"IF(ISBLANK(INDIRECT(\"'\"&F8113&\"'!\"&G8113)),\"\",INDIRECT(\"'\"&F8113&\"'!\"&G8113))","v":""},{"$f":"IF(ISBLANK(INDIRECT(\"'\"&F8113&\"'!\"&H8113)),\"\",IFERROR(VLOOKUP(TEXT(INDIRECT(\"'\"&F8113&\"'!\"&H8113),\"0\"),Notes!$B$5:$C$100,2,FALSE),\"\"))","v":""},"2a","$E$150","$F$150"]
[27577,{"$f":"Menu!$F$29","v":"X"},{"$f":"Menu!$J$29","v":2020},{"$f":"IF(ISBLANK(INDIRECT(\"'\"&F8114&\"'!\"&G8114)),\"\",INDIRECT(\"'\"&F8114&\"'!\"&G8114))","v":""},{"$f":"IF(ISBLANK(INDIRECT(\"'\"&F8114&\"'!\"&H8114)),\"\",IFERROR(VLOOKUP(TEXT(INDIRECT(\"'\"&F8114&\"'!\"&H8114),\"0\"),Notes!$B$5:$C$100,2,FALSE),\"\"))","v":""},"2b","$K$151","$L$151"]
[27578,{"$f":"Menu!$F$29","v":"X"},{"$f":"Menu!$J$29","v":2020},{"$f":"IF(ISBLANK(INDIRECT(\"'\"&F8115&\"'!\"&G8115)),\"\",INDIRECT(\"'\"&F8115&\"'!\"&G8115))","v":""},{"$f":"IF(ISBLANK(INDIRECT(\"'\"&F8115&\"'!\"&H8115)),\"\",IFERROR(VLOOKUP(TEXT(INDIRECT(\"'\"&F8115&\"'!\"&H8115),\"0\"),Notes!$B$5:$C$100,2,FALSE),\"\"))","v":""},"2b","$O$151","$P$151"]
[27579,{"$f":"Menu!$F$29","v":"X"},{"$f":"Menu!$J$29","v":2020},{"$f":"IF(ISBLANK(INDIRECT(\"'\"&F8116&\"'!\"&G8116)),\"\",INDIRECT(\"'\"&F8116&\"'!\"&G8116))","v":""},{"$f":"IF(ISBLANK(INDIRECT(\"'\"&F8116&\"'!\"&H8116)),\"\",IFERROR(VLOOKUP(TEXT(INDIRECT(\"'\"&F8116&\"'!\"&H8116),\"0\"),Notes!$B$5:$C$100,2,FALSE),\"\"))","v":""},"2b","$M$151","$N$151"]
[27580,{"$f":"Menu!$F$29","v":"X"},{"$f":"Menu!$J$29","v":2020},{"$f":"IF(ISBLANK(INDIRECT(\"'\"&F8117&\"'!\"&G8117)),\"\",INDIRECT(\"'\"&F8117&\"'!\"&G8117))","v":""},{"$f":"IF(ISBLANK(INDIRECT(\"'\"&F8117&\"'!\"&H8117)),\"\",IFERROR(VLOOKUP(TEXT(INDIRECT(\"'\"&F8117&\"'!\"&H8117),\"0\"),Notes!$B$5:$C$100,2,FALSE),\"\"))","v":""},"2b","$Q$151","$R$151"]
[27581,{"$f":"Menu!$F$29","v":"X"},{"$f":"Menu!$J$29","v":2020},{"$f":"IF(ISBLANK(INDIRECT(\"'\"&F8118&\"'!\"&G8118)),\"\",INDIRECT(\"'\"&F8118&\"'!\"&G8118))","v":""},{"$f":"IF(ISBLANK(INDIRECT(\"'\"&F8118&\"'!\"&H8118)),\"\",IFERROR(VLOOKUP(TEXT(INDIRECT(\"'\"&F8118&\"'!\"&H8118),\"0\"),Notes!$B$5:$C$100,2,FALSE),\"\"))","v":""},"2b","$U$151","$V$151"]
[27582,{"$f":"Menu!$F$29","v":"X"},{"$f":"Menu!$J$29","v":2020},{"$f":"IF(ISBLANK(INDIRECT(\"'\"&F8119&\"'!\"&G8119)),\"\",INDIRECT(\"'\"&F8119&\"'!\"&G8119))","v":""},{"$f":"IF(ISBLANK(INDIRECT(\"'\"&F8119&\"'!\"&H8119)),\"\",IFERROR(VLOOKUP(TEXT(INDIRECT(\"'\"&F8119&\"'!\"&H8119),\"0\"),Notes!$B$5:$C$100,2,FALSE),\"\"))","v":""},"2b","$S$151","$T$151"]
[27586,{"$f":"Menu!$F$29","v":"X"},{"$f":"Menu!$J$29","v":2020},{"$f":"IF(ISBLANK(INDIRECT(\"'\"&F8120&\"'!\"&G8120)),\"\",INDIRECT(\"'\"&F8120&\"'!\"&G8120))","v":""},{"$f":"IF(ISBLANK(INDIRECT(\"'\"&F8120&\"'!\"&H8120)),\"\",IFERROR(VLOOKUP(TEXT(INDIRECT(\"'\"&F8120&\"'!\"&H8120),\"0\"),Notes!$B$5:$C$100,2,FALSE),\"\"))","v":""},"2a","$I$151","$J$151"]
[27587,{"$f":"Menu!$F$29","v":"X"},{"$f":"Menu!$J$29","v":2020},{"$f":"IF(ISBLANK(INDIRECT(\"'\"&F8121&\"'!\"&G8121)),\"\",INDIRECT(\"'\"&F8121&\"'!\"&G8121))","v":""},{"$f":"IF(ISBLANK(INDIRECT(\"'\"&F8121&\"'!\"&H8121)),\"\",IFERROR(VLOOKUP(TEXT(INDIRECT(\"'\"&F8121&\"'!\"&H8121),\"0\"),Notes!$B$5:$C$100,2,FALSE),\"\"))","v":""},"2c","$E$151","$F$151"]
[27588,{"$f":"Menu!$F$29","v":"X"},{"$f":"Menu!$J$29","v":2020},{"$f":"IF(ISBLANK(INDIRECT(\"'\"&F8122&\"'!\"&G8122)),\"\",INDIRECT(\"'\"&F8122&\"'!\"&G8122))","v":""},{"$f":"IF(ISBLANK(INDIRECT(\"'\"&F8122&\"'!\"&H8122)),\"\",IFERROR(VLOOKUP(TEXT(INDIRECT(\"'\"&F8122&\"'!\"&H8122),\"0\"),Notes!$B$5:$C$100,2,FALSE),\"\"))","v":""},"2c","$I$151","$J$151"]
[27589,{"$f":"Menu!$F$29","v":"X"},{"$f":"Menu!$J$29","v":2020},{"$f":"IF(ISBLANK(INDIRECT(\"'\"&F8123&\"'!\"&G8123)),\"\",INDIRECT(\"'\"&F8123&\"'!\"&G8123))","v":""},{"$f":"IF(ISBLANK(INDIRECT(\"'\"&F8123&\"'!\"&H8123)),\"\",IFERROR(VLOOKUP(TEXT(INDIRECT(\"'\"&F8123&\"'!\"&H8123),\"0\"),Notes!$B$5:$C$100,2,FALSE),\"\"))","v":""},"2c","$G$151","$H$151"]
[27593,{"$f":"Menu!$F$29","v":"X"},{"$f":"Menu!$J$29","v":2020},{"$f":"IF(ISBLANK(INDIRECT(\"'\"&F8124&\"'!\"&G8124)),\"\",INDIRECT(\"'\"&F8124&\"'!\"&G8124))","v":""},{"$f":"IF(ISBLANK(INDIRECT(\"'\"&F8124&\"'!\"&H8124)),\"\",IFERROR(VLOOKUP(TEXT(INDIRECT(\"'\"&F8124&\"'!\"&H8124),\"0\"),Notes!$B$5:$C$100,2,FALSE),\"\"))","v":""},"2c","$K$151","$L$151"]
[27594,{"$f":"Menu!$F$29","v":"X"},{"$f":"Menu!$J$29","v":2020},{"$f":"IF(ISBLANK(INDIRECT(\"'\"&F8125&\"'!\"&G8125)),\"\",INDIRECT(\"'\"&F8125&\"'!\"&G8125))","v":""},{"$f":"IF(ISBLANK(INDIRECT(\"'\"&F8125&\"'!\"&H8125)),\"\",IFERROR(VLOOKUP(TEXT(INDIRECT(\"'\"&F8125&\"'!\"&H8125),\"0\"),Notes!$B$5:$C$100,2,FALSE),\"\"))","v":""},"2c","$O$151","$P$151"]
[27595,{"$f":"Menu!$F$29","v":"X"},{"$f":"Menu!$J$29","v":2020},{"$f":"IF(ISBLANK(INDIRECT(\"'\"&F8126&\"'!\"&G8126)),\"\",INDIRECT(\"'\"&F8126&\"'!\"&G8126))","v":""},{"$f":"IF(ISBLANK(INDIRECT(\"'\"&F8126&\"'!\"&H8126)),\"\",IFERROR(VLOOKUP(TEXT(INDIRECT(\"'\"&F8126&\"'!\"&H8126),\"0\"),Notes!$B$5:$C$100,2,FALSE),\"\"))","v":""},"2c","$M$151","$N$151"]
[27596,{"$f":"Menu!$F$29","v":"X"},{"$f":"Menu!$J$29","v":2020},{"$f":"IF(ISBLANK(INDIRECT(\"'\"&F8127&\"'!\"&G8127)),\"\",INDIRECT(\"'\"&F8127&\"'!\"&G8127))","v":""},{"$f":"IF(ISBLANK(INDIRECT(\"'\"&F8127&\"'!\"&H8127)),\"\",IFERROR(VLOOKUP(TEXT(INDIRECT(\"'\"&F8127&\"'!\"&H8127),\"0\"),Notes!$B$5:$C$100,2,FALSE),\"\"))","v":""},"2c","$Q$151","$R$151"]
[27597,{"$f":"Menu!$F$29","v":"X"},{"$f":"Menu!$J$29","v":2020},{"$f":"IF(ISBLANK(INDIRECT(\"'\"&F8128&\"'!\"&G8128)),\"\",INDIRECT(\"'\"&F8128&\"'!\"&G8128))","v":""},{"$f":"IF(ISBLANK(INDIRECT(\"'\"&F8128&\"'!\"&H8128)),\"\",IFERROR(VLOOKUP(TEXT(INDIRECT(\"'\"&F8128&\"'!\"&H8128),\"0\"),Notes!$B$5:$C$100,2,FALSE),\"\"))","v":""},"2c","$U$151","$V$151"]
[27598,{"$f":"Menu!$F$29","v":"X"},{"$f":"Menu!$J$29","v":2020},{"$f":"IF(ISBLANK(INDIRECT(\"'\"&F8129&\"'!\"&G8129)),\"\",INDIRECT(\"'\"&F8129&\"'!\"&G8129))","v":""},{"$f":"IF(ISBLANK(INDIRECT(\"'\"&F8129&\"'!\"&H8129)),\"\",IFERROR(VLOOKUP(TEXT(INDIRECT(\"'\"&F8129&\"'!\"&H8129),\"0\"),Notes!$B$5:$C$100,2,FALSE),\"\"))","v":""},"2c","$S$151","$T$151"]
[27599,{"$f":"Menu!$F$29","v":"X"},{"$f":"Menu!$J$29","v":2020},{"$f":"IF(ISBLANK(INDIRECT(\"'\"&F8130&\"'!\"&G8130)),\"\",INDIRECT(\"'\"&F8130&\"'!\"&G8130))","v":""},{"$f":"IF(ISBLANK(INDIRECT(\"'\"&F8130&\"'!\"&H8130)),\"\",IFERROR(VLOOKUP(TEXT(INDIRECT(\"'\"&F8130&\"'!\"&H8130),\"0\"),Notes!$B$5:$C$100,2,FALSE),\"\"))","v":""},"2c","$W$151",{"$f":"IF(LEN(TRIM(MID(G8130,4,10)))-LEN(SUBSTITUTE(TRIM(MID(G8130,4,10)),\"$\",\"\"))=0,\"$\"&CHAR(CODE(MID(G8130,2,1))+1)&\"$\"&TRIM(MID(G8130,4,10)),\"$\"&MID(G8130,2,1)&CHAR(CODE(MID(G8130,3,1))+1)&\"$\"&TRIM(MID(G8130,5,11)))","v":"$X$151"}]
[27600,{"$f":"Menu!$F$29","v":"X"},{"$f":"Menu!$J$29","v":2020},{"$f":"IF(ISBLANK(INDIRECT(\"'\"&F8131&\"'!\"&G8131)),\"\",INDIRECT(\"'\"&F8131&\"'!\"&G8131))","v":""},{"$f":"IF(ISBLANK(INDIRECT(\"'\"&F8131&\"'!\"&H8131)),\"\",IFERROR(VLOOKUP(TEXT(INDIRECT(\"'\"&F8131&\"'!\"&H8131),\"0\"),Notes!$B$5:$C$100,2,FALSE),\"\"))","v":""},"2c","$AA$151","$AB$151"]
[27601,{"$f":"Menu!$F$29","v":"X"},{"$f":"Menu!$J$29","v":2020},{"$f":"IF(ISBLANK(INDIRECT(\"'\"&F8132&\"'!\"&G8132)),\"\",INDIRECT(\"'\"&F8132&\"'!\"&G8132))","v":""},{"$f":"IF(ISBLANK(INDIRECT(\"'\"&F8132&\"'!\"&H8132)),\"\",IFERROR(VLOOKUP(TEXT(INDIRECT(\"'\"&F8132&\"'!\"&H8132),\"0\"),Notes!$B$5:$C$100,2,FALSE),\"\"))","v":""},"2c","$Y$151","$Z$151"]
[27608,{"$f":"Menu!$F$29","v":"X"},{"$f":"Menu!$J$29","v":2020},{"$f":"IF(ISBLANK(INDIRECT(\"'\"&F8133&\"'!\"&G8133)),\"\",INDIRECT(\"'\"&F8133&\"'!\"&G8133))","v":""},{"$f":"IF(ISBLANK(INDIRECT(\"'\"&F8133&\"'!\"&H8133)),\"\",IFERROR(VLOOKUP(TEXT(INDIRECT(\"'\"&F8133&\"'!\"&H8133),\"0\"),Notes!$B$5:$C$100,2,FALSE),\"\"))","v":""},"2e","$BG$152","$BH$152"]
[27609,{"$f":"Menu!$F$29","v":"X"},{"$f":"Menu!$J$29","v":2020},{"$f":"IF(ISBLANK(INDIRECT(\"'\"&F8134&\"'!\"&G8134)),\"\",INDIRECT(\"'\"&F8134&\"'!\"&G8134))","v":""},{"$f":"IF(ISBLANK(INDIRECT(\"'\"&F8134&\"'!\"&H8134)),\"\",IFERROR(VLOOKUP(TEXT(INDIRECT(\"'\"&F8134&\"'!\"&H8134),\"0\"),Notes!$B$5:$C$100,2,FALSE),\"\"))","v":""},"2e","$BK$152","$BL$152"]
[27610,{"$f":"Menu!$F$29","v":"X"},{"$f":"Menu!$J$29","v":2020},{"$f":"IF(ISBLANK(INDIRECT(\"'\"&F8135&\"'!\"&G8135)),\"\",INDIRECT(\"'\"&F8135&\"'!\"&G8135))","v":""},{"$f":"IF(ISBLANK(INDIRECT(\"'\"&F8135&\"'!\"&H8135)),\"\",IFERROR(VLOOKUP(TEXT(INDIRECT(\"'\"&F8135&\"'!\"&H8135),\"0\"),Notes!$B$5:$C$100,2,FALSE),\"\"))","v":""},"2e","$BI$152","$BJ$152"]
[27611,{"$f":"Menu!$F$29","v":"X"},{"$f":"Menu!$J$29","v":2020},{"$f":"IF(ISBLANK(INDIRECT(\"'\"&F8136&\"'!\"&G8136)),\"\",INDIRECT(\"'\"&F8136&\"'!\"&G8136))","v":""},{"$f":"IF(ISBLANK(INDIRECT(\"'\"&F8136&\"'!\"&H8136)),\"\",IFERROR(VLOOKUP(TEXT(INDIRECT(\"'\"&F8136&\"'!\"&H8136),\"0\"),Notes!$B$5:$C$100,2,FALSE),\"\"))","v":""},"2e","$E$152","$F$152"]
[27612,{"$f":"Menu!$F$29","v":"X"},{"$f":"Menu!$J$29","v":2020},{"$f":"IF(ISBLANK(INDIRECT(\"'\"&F8137&\"'!\"&G8137)),\"\",INDIRECT(\"'\"&F8137&\"'!\"&G8137))","v":""},{"$f":"IF(ISBLANK(INDIRECT(\"'\"&F8137&\"'!\"&H8137)),\"\",IFERROR(VLOOKUP(TEXT(INDIRECT(\"'\"&F8137&\"'!\"&H8137),\"0\"),Notes!$B$5:$C$100,2,FALSE),\"\"))","v":""},"2e","$I$152","$J$152"]
[27613,{"$f":"Menu!$F$29","v":"X"},{"$f":"Menu!$J$29","v":2020},{"$f":"IF(ISBLANK(INDIRECT(\"'\"&F8138&\"'!\"&G8138)),\"\",INDIRECT(\"'\"&F8138&\"'!\"&G8138))","v":""},{"$f":"IF(ISBLANK(INDIRECT(\"'\"&F8138&\"'!\"&H8138)),\"\",IFERROR(VLOOKUP(TEXT(INDIRECT(\"'\"&F8138&\"'!\"&H8138),\"0\"),Notes!$B$5:$C$100,2,FALSE),\"\"))","v":""},"2e","$G$152","$H$152"]
[27614,{"$f":"Menu!$F$29","v":"X"},{"$f":"Menu!$J$29","v":2020},{"$f":"IF(ISBLANK(INDIRECT(\"'\"&F8139&\"'!\"&G8139)),\"\",INDIRECT(\"'\"&F8139&\"'!\"&G8139))","v":""},{"$f":"IF(ISBLANK(INDIRECT(\"'\"&F8139&\"'!\"&H8139)),\"\",IFERROR(VLOOKUP(TEXT(INDIRECT(\"'\"&F8139&\"'!\"&H8139),\"0\"),Notes!$B$5:$C$100,2,FALSE),\"\"))","v":""},"2e","$K$152","$L$152"]
[27615,{"$f":"Menu!$F$29","v":"X"},{"$f":"Menu!$J$29","v":2020},{"$f":"IF(ISBLANK(INDIRECT(\"'\"&F8140&\"'!\"&G8140)),\"\",INDIRECT(\"'\"&F8140&\"'!\"&G8140))","v":""},{"$f":"IF(ISBLANK(INDIRECT(\"'\"&F8140&\"'!\"&H8140)),\"\",IFERROR(VLOOKUP(TEXT(INDIRECT(\"'\"&F8140&\"'!\"&H8140),\"0\"),Notes!$B$5:$C$100,2,FALSE),\"\"))","v":""},"2e","$O$152","$P$152"]
[27616,{"$f":"Menu!$F$29","v":"X"},{"$f":"Menu!$J$29","v":2020},{"$f":"IF(ISBLANK(INDIRECT(\"'\"&F8141&\"'!\"&G8141)),\"\",INDIRECT(\"'\"&F8141&\"'!\"&G8141))","v":""},{"$f":"IF(ISBLANK(INDIRECT(\"'\"&F8141&\"'!\"&H8141)),\"\",IFERROR(VLOOKUP(TEXT(INDIRECT(\"'\"&F8141&\"'!\"&H8141),\"0\"),Notes!$B$5:$C$100,2,FALSE),\"\"))","v":""},"2e","$M$152","$N$152"]
[27617,{"$f":"Menu!$F$29","v":"X"},{"$f":"Menu!$J$29","v":2020},{"$f":"IF(ISBLANK(INDIRECT(\"'\"&F8142&\"'!\"&G8142)),\"\",INDIRECT(\"'\"&F8142&\"'!\"&G8142))","v":""},{"$f":"IF(ISBLANK(INDIRECT(\"'\"&F8142&\"'!\"&H8142)),\"\",IFERROR(VLOOKUP(TEXT(INDIRECT(\"'\"&F8142&\"'!\"&H8142),\"0\"),Notes!$B$5:$C$100,2,FALSE),\"\"))","v":""},"2e","$Q$152","$R$152"]
[27618,{"$f":"Menu!$F$29","v":"X"},{"$f":"Menu!$J$29","v":2020},{"$f":"IF(ISBLANK(INDIRECT(\"'\"&F8143&\"'!\"&G8143)),\"\",INDIRECT(\"'\"&F8143&\"'!\"&G8143))","v":""},{"$f":"IF(ISBLANK(INDIRECT(\"'\"&F8143&\"'!\"&H8143)),\"\",IFERROR(VLOOKUP(TEXT(INDIRECT(\"'\"&F8143&\"'!\"&H8143),\"0\"),Notes!$B$5:$C$100,2,FALSE),\"\"))","v":""},"2e","$U$152","$V$152"]
[27619,{"$f":"Menu!$F$29","v":"X"},{"$f":"Menu!$J$29","v":2020},{"$f":"IF(ISBLANK(INDIRECT(\"'\"&F8144&\"'!\"&G8144)),\"\",INDIRECT(\"'\"&F8144&\"'!\"&G8144))","v":""},{"$f":"IF(ISBLANK(INDIRECT(\"'\"&F8144&\"'!\"&H8144)),\"\",IFERROR(VLOOKUP(TEXT(INDIRECT(\"'\"&F8144&\"'!\"&H8144),\"0\"),Notes!$B$5:$C$100,2,FALSE),\"\"))","v":""},"2e","$S$152","$T$152"]
[27620,{"$f":"Menu!$F$29","v":"X"},{"$f":"Menu!$J$29","v":2020},{"$f":"IF(ISBLANK(INDIRECT(\"'\"&F8145&\"'!\"&G8145)),\"\",INDIRECT(\"'\"&F8145&\"'!\"&G8145))","v":""},{"$f":"IF(ISBLANK(INDIRECT(\"'\"&F8145&\"'!\"&H8145)),\"\",IFERROR(VLOOKUP(TEXT(INDIRECT(\"'\"&F8145&\"'!\"&H8145),\"0\"),Notes!$B$5:$C$100,2,FALSE),\"\"))","v":""},"2e","$W$152","$X$152"]
[27621,{"$f":"Menu!$F$29","v":"X"},{"$f":"Menu!$J$29","v":2020},{"$f":"IF(ISBLANK(INDIRECT(\"'\"&F8146&\"'!\"&G8146)),\"\",INDIRECT(\"'\"&F8146&\"'!\"&G8146))","v":""},{"$f":"IF(ISBLANK(INDIRECT(\"'\"&F8146&\"'!\"&H8146)),\"\",IFERROR(VLOOKUP(TEXT(INDIRECT(\"'\"&F8146&\"'!\"&H8146),\"0\"),Notes!$B$5:$C$100,2,FALSE),\"\"))","v":""},"2e","$AA$152","$AB$152"]
[27622,{"$f":"Menu!$F$29","v":"X"},{"$f":"Menu!$J$29","v":2020},{"$f":"IF(ISBLANK(INDIRECT(\"'\"&F8147&\"'!\"&G8147)),\"\",INDIRECT(\"'\"&F8147&\"'!\"&G8147))","v":""},{"$f":"IF(ISBLANK(INDIRECT(\"'\"&F8147&\"'!\"&H8147)),\"\",IFERROR(VLOOKUP(TEXT(INDIRECT(\"'\"&F8147&\"'!\"&H8147),\"0\"),Notes!$B$5:$C$100,2,FALSE),\"\"))","v":""},"2e","$Y$152","$Z$152"]
[27623,{"$f":"Menu!$F$29","v":"X"},{"$f":"Menu!$J$29","v":2020},{"$f":"IF(ISBLANK(INDIRECT(\"'\"&F8148&\"'!\"&G8148)),\"\",INDIRECT(\"'\"&F8148&\"'!\"&G8148))","v":""},{"$f":"IF(ISBLANK(INDIRECT(\"'\"&F8148&\"'!\"&H8148)),\"\",IFERROR(VLOOKUP(TEXT(INDIRECT(\"'\"&F8148&\"'!\"&H8148),\"0\"),Notes!$B$5:$C$100,2,FALSE),\"\"))","v":""},"2e","$AC$152","$AD$152"]
[27624,{"$f":"Menu!$F$29","v":"X"},{"$f":"Menu!$J$29","v":2020},{"$f":"IF(ISBLANK(INDIRECT(\"'\"&F8149&\"'!\"&G8149)),\"\",INDIRECT(\"'\"&F8149&\"'!\"&G8149))","v":""},{"$f":"IF(ISBLANK(INDIRECT(\"'\"&F8149&\"'!\"&H8149)),\"\",IFERROR(VLOOKUP(TEXT(INDIRECT(\"'\"&F8149&\"'!\"&H8149),\"0\"),Notes!$B$5:$C$100,2,FALSE),\"\"))","v":""},"2e","$AG$152","$AH$152"]
[27625,{"$f":"Menu!$F$29","v":"X"},{"$f":"Menu!$J$29","v":2020},{"$f":"IF(ISBLANK(INDIRECT(\"'\"&F8150&\"'!\"&G8150)),\"\",INDIRECT(\"'\"&F8150&\"'!\"&G8150))","v":""},{"$f":"IF(ISBLANK(INDIRECT(\"'\"&F8150&\"'!\"&H8150)),\"\",IFERROR(VLOOKUP(TEXT(INDIRECT(\"'\"&F8150&\"'!\"&H8150),\"0\"),Notes!$B$5:$C$100,2,FALSE),\"\"))","v":""},"2e","$AE$152","$AF$152"]
[27626,{"$f":"Menu!$F$29","v":"X"},{"$f":"Menu!$J$29","v":2020},{"$f":"IF(ISBLANK(INDIRECT(\"'\"&F8151&\"'!\"&G8151)),\"\",INDIRECT(\"'\"&F8151&\"'!\"&G8151))","v":""},{"$f":"IF(ISBLANK(INDIRECT(\"'\"&F8151&\"'!\"&H8151)),\"\",IFERROR(VLOOKUP(TEXT(INDIRECT(\"'\"&F8151&\"'!\"&H8151),\"0\"),Notes!$B$5:$C$100,2,FALSE),\"\"))","v":""},"2e","$AI$152","$AJ$152"]
[27627,{"$f":"Menu!$F$29","v":"X"},{"$f":"Menu!$J$29","v":2020},{"$f":"IF(ISBLANK(INDIRECT(\"'\"&F8152&\"'!\"&G8152)),\"\",INDIRECT(\"'\"&F8152&\"'!\"&G8152))","v":""},{"$f":"IF(ISBLANK(INDIRECT(\"'\"&F8152&\"'!\"&H8152)),\"\",IFERROR(VLOOKUP(TEXT(INDIRECT(\"'\"&F8152&\"'!\"&H8152),\"0\"),Notes!$B$5:$C$100,2,FALSE),\"\"))","v":""},"2e","$AM$152","$AN$152"]
[27628,{"$f":"Menu!$F$29","v":"X"},{"$f":"Menu!$J$29","v":2020},{"$f":"IF(ISBLANK(INDIRECT(\"'\"&F8153&\"'!\"&G8153)),\"\",INDIRECT(\"'\"&F8153&\"'!\"&G8153))","v":""},{"$f":"IF(ISBLANK(INDIRECT(\"'\"&F8153&\"'!\"&H8153)),\"\",IFERROR(VLOOKUP(TEXT(INDIRECT(\"'\"&F8153&\"'!\"&H8153),\"0\"),Notes!$B$5:$C$100,2,FALSE),\"\"))","v":""},"2e","$AK$152","$AL$152"]
[27629,{"$f":"Menu!$F$29","v":"X"},{"$f":"Menu!$J$29","v":2020},{"$f":"IF(ISBLANK(INDIRECT(\"'\"&F8154&\"'!\"&G8154)),\"\",INDIRECT(\"'\"&F8154&\"'!\"&G8154))","v":""},{"$f":"IF(ISBLANK(INDIRECT(\"'\"&F8154&\"'!\"&H8154)),\"\",IFERROR(VLOOKUP(TEXT(INDIRECT(\"'\"&F8154&\"'!\"&H8154),\"0\"),Notes!$B$5:$C$100,2,FALSE),\"\"))","v":""},"2e","$AO$152","$AP$152"]
[27630,{"$f":"Menu!$F$29","v":"X"},{"$f":"Menu!$J$29","v":2020},{"$f":"IF(ISBLANK(INDIRECT(\"'\"&F8155&\"'!\"&G8155)),\"\",INDIRECT(\"'\"&F8155&\"'!\"&G8155))","v":""},{"$f":"IF(ISBLANK(INDIRECT(\"'\"&F8155&\"'!\"&H8155)),\"\",IFERROR(VLOOKUP(TEXT(INDIRECT(\"'\"&F8155&\"'!\"&H8155),\"0\"),Notes!$B$5:$C$100,2,FALSE),\"\"))","v":""},"2e","$AS$152","$AT$152"]
[27631,{"$f":"Menu!$F$29","v":"X"},{"$f":"Menu!$J$29","v":2020},{"$f":"IF(ISBLANK(INDIRECT(\"'\"&F8156&\"'!\"&G8156)),\"\",INDIRECT(\"'\"&F8156&\"'!\"&G8156))","v":""},{"$f":"IF(ISBLANK(INDIRECT(\"'\"&F8156&\"'!\"&H8156)),\"\",IFERROR(VLOOKUP(TEXT(INDIRECT(\"'\"&F8156&\"'!\"&H8156),\"0\"),Notes!$B$5:$C$100,2,FALSE),\"\"))","v":""},"2e","$AQ$152","$AR$152"]
[27632,{"$f":"Menu!$F$29","v":"X"},{"$f":"Menu!$J$29","v":2020},{"$f":"IF(ISBLANK(INDIRECT(\"'\"&F8157&\"'!\"&G8157)),\"\",INDIRECT(\"'\"&F8157&\"'!\"&G8157))","v":""},{"$f":"IF(ISBLANK(INDIRECT(\"'\"&F8157&\"'!\"&H8157)),\"\",IFERROR(VLOOKUP(TEXT(INDIRECT(\"'\"&F8157&\"'!\"&H8157),\"0\"),Notes!$B$5:$C$100,2,FALSE),\"\"))","v":""},"2e","$AU$152","$AV$152"]
[27633,{"$f":"Menu!$F$29","v":"X"},{"$f":"Menu!$J$29","v":2020},{"$f":"IF(ISBLANK(INDIRECT(\"'\"&F8158&\"'!\"&G8158)),\"\",INDIRECT(\"'\"&F8158&\"'!\"&G8158))","v":""},{"$f":"IF(ISBLANK(INDIRECT(\"'\"&F8158&\"'!\"&H8158)),\"\",IFERROR(VLOOKUP(TEXT(INDIRECT(\"'\"&F8158&\"'!\"&H8158),\"0\"),Notes!$B$5:$C$100,2,FALSE),\"\"))","v":""},"2e","$AY$152","$AZ$152"]
[27634,{"$f":"Menu!$F$29","v":"X"},{"$f":"Menu!$J$29","v":2020},{"$f":"IF(ISBLANK(INDIRECT(\"'\"&F8159&\"'!\"&G8159)),\"\",INDIRECT(\"'\"&F8159&\"'!\"&G8159))","v":""},{"$f":"IF(ISBLANK(INDIRECT(\"'\"&F8159&\"'!\"&H8159)),\"\",IFERROR(VLOOKUP(TEXT(INDIRECT(\"'\"&F8159&\"'!\"&H8159),\"0\"),Notes!$B$5:$C$100,2,FALSE),\"\"))","v":""},"2e","$AW$152","$AX$152"]
[27635,{"$f":"Menu!$F$29","v":"X"},{"$f":"Menu!$J$29","v":2020},{"$f":"IF(ISBLANK(INDIRECT(\"'\"&F8160&\"'!\"&G8160)),\"\",INDIRECT(\"'\"&F8160&\"'!\"&G8160))","v":""},{"$f":"IF(ISBLANK(INDIRECT(\"'\"&F8160&\"'!\"&H8160)),\"\",IFERROR(VLOOKUP(TEXT(INDIRECT(\"'\"&F8160&\"'!\"&H8160),\"0\"),Notes!$B$5:$C$100,2,FALSE),\"\"))","v":""},"2e","$BA$152","$BB$152"]
[27636,{"$f":"Menu!$F$29","v":"X"},{"$f":"Menu!$J$29","v":2020},{"$f":"IF(ISBLANK(INDIRECT(\"'\"&F8161&\"'!\"&G8161)),\"\",INDIRECT(\"'\"&F8161&\"'!\"&G8161))","v":""},{"$f":"IF(ISBLANK(INDIRECT(\"'\"&F8161&\"'!\"&H8161)),\"\",IFERROR(VLOOKUP(TEXT(INDIRECT(\"'\"&F8161&\"'!\"&H8161),\"0\"),Notes!$B$5:$C$100,2,FALSE),\"\"))","v":""},"2e","$BE$152","$BF$152"]
[27637,{"$f":"Menu!$F$29","v":"X"},{"$f":"Menu!$J$29","v":2020},{"$f":"IF(ISBLANK(INDIRECT(\"'\"&F8162&\"'!\"&G8162)),\"\",INDIRECT(\"'\"&F8162&\"'!\"&G8162))","v":""},{"$f":"IF(ISBLANK(INDIRECT(\"'\"&F8162&\"'!\"&H8162)),\"\",IFERROR(VLOOKUP(TEXT(INDIRECT(\"'\"&F8162&\"'!\"&H8162),\"0\"),Notes!$B$5:$C$100,2,FALSE),\"\"))","v":""},"2e","$BC$152","$BD$152"]
[27638,{"$f":"Menu!$F$29","v":"X"},{"$f":"Menu!$J$29","v":2020},{"$f":"IF(ISBLANK(INDIRECT(\"'\"&F8163&\"'!\"&G8163)),\"\",INDIRECT(\"'\"&F8163&\"'!\"&G8163))","v":""},{"$f":"IF(ISBLANK(INDIRECT(\"'\"&F8163&\"'!\"&H8163)),\"\",IFERROR(VLOOKUP(TEXT(INDIRECT(\"'\"&F8163&\"'!\"&H8163),\"0\"),Notes!$B$5:$C$100,2,FALSE),\"\"))","v":""},"2b","$E$151","$F$151"]
[27639,{"$f":"Menu!$F$29","v":"X"},{"$f":"Menu!$J$29","v":2020},{"$f":"IF(ISBLANK(INDIRECT(\"'\"&F8164&\"'!\"&G8164)),\"\",INDIRECT(\"'\"&F8164&\"'!\"&G8164))","v":""},{"$f":"IF(ISBLANK(INDIRECT(\"'\"&F8164&\"'!\"&H8164)),\"\",IFERROR(VLOOKUP(TEXT(INDIRECT(\"'\"&F8164&\"'!\"&H8164),\"0\"),Notes!$B$5:$C$100,2,FALSE),\"\"))","v":""},"2b","$I$151","$J$151"]
[27640,{"$f":"Menu!$F$29","v":"X"},{"$f":"Menu!$J$29","v":2020},{"$f":"IF(ISBLANK(INDIRECT(\"'\"&F8165&\"'!\"&G8165)),\"\",INDIRECT(\"'\"&F8165&\"'!\"&G8165))","v":""},{"$f":"IF(ISBLANK(INDIRECT(\"'\"&F8165&\"'!\"&H8165)),\"\",IFERROR(VLOOKUP(TEXT(INDIRECT(\"'\"&F8165&\"'!\"&H8165),\"0\"),Notes!$B$5:$C$100,2,FALSE),\"\"))","v":""},"2b","$G$151","$H$151"]
[27641,{"$f":"Menu!$F$29","v":"X"},{"$f":"Menu!$J$29","v":2020},{"$f":"IF(ISBLANK(INDIRECT(\"'\"&F8166&\"'!\"&G8166)),\"\",INDIRECT(\"'\"&F8166&\"'!\"&G8166))","v":""},null,"2a","$G$151","$H$151"]
[27642,{"$f":"Menu!$F$29","v":"X"},{"$f":"Menu!$J$29","v":2020},{"$f":"IF(ISBLANK(INDIRECT(\"'\"&F8167&\"'!\"&G8167)),\"\",INDIRECT(\"'\"&F8167&\"'!\"&G8167))","v":""},{"$f":"IF(ISBLANK(INDIRECT(\"'\"&F8167&\"'!\"&H8167)),\"\",IFERROR(VLOOKUP(TEXT(INDIRECT(\"'\"&F8167&\"'!\"&H8167),\"0\"),Notes!$B$5:$C$100,2,FALSE),\"\"))","v":""},"2b","$W$151","$X$151"]
[27643,{"$f":"Menu!$F$29","v":"X"},{"$f":"Menu!$J$29","v":2020},{"$f":"IF(ISBLANK(INDIRECT(\"'\"&F8168&\"'!\"&G8168)),\"\",INDIRECT(\"'\"&F8168&\"'!\"&G8168))","v":""},{"$f":"IF(ISBLANK(INDIRECT(\"'\"&F8168&\"'!\"&H8168)),\"\",IFERROR(VLOOKUP(TEXT(INDIRECT(\"'\"&F8168&\"'!\"&H8168),\"0\"),Notes!$B$5:$C$100,2,FALSE),\"\"))","v":""},"2b","$AA$151","$AB$151"]
[27644,{"$f":"Menu!$F$29","v":"X"},{"$f":"Menu!$J$29","v":2020},{"$f":"IF(ISBLANK(INDIRECT(\"'\"&F8169&\"'!\"&G8169)),\"\",INDIRECT(\"'\"&F8169&\"'!\"&G8169))","v":""},{"$f":"IF(ISBLANK(INDIRECT(\"'\"&F8169&\"'!\"&H8169)),\"\",IFERROR(VLOOKUP(TEXT(INDIRECT(\"'\"&F8169&\"'!\"&H8169),\"0\"),Notes!$B$5:$C$100,2,FALSE),\"\"))","v":""},"2b","$Y$151","$Z$151"]
[27645,{"$f":"Menu!$F$29","v":"X"},{"$f":"Menu!$J$29","v":2020},{"$f":"IF(ISBLANK(INDIRECT(\"'\"&F8170&\"'!\"&G8170)),\"\",INDIRECT(\"'\"&F8170&\"'!\"&G8170))","v":""},{"$f":"IF(ISBLANK(INDIRECT(\"'\"&F8170&\"'!\"&H8170)),\"\",IFERROR(VLOOKUP(TEXT(INDIRECT(\"'\"&F8170&\"'!\"&H8170),\"0\"),Notes!$B$5:$C$100,2,FALSE),\"\"))","v":""},"2d","$AC$151","$AD$151"]
[27646,{"$f":"Menu!$F$29","v":"X"},{"$f":"Menu!$J$29","v":2020},{"$f":"IF(ISBLANK(INDIRECT(\"'\"&F8171&\"'!\"&G8171)),\"\",INDIRECT(\"'\"&F8171&\"'!\"&G8171))","v":""},{"$f":"IF(ISBLANK(INDIRECT(\"'\"&F8171&\"'!\"&H8171)),\"\",IFERROR(VLOOKUP(TEXT(INDIRECT(\"'\"&F8171&\"'!\"&H8171),\"0\"),Notes!$B$5:$C$100,2,FALSE),\"\"))","v":""},"2d","$AG$151","$AH$151"]
[27647,{"$f":"Menu!$F$29","v":"X"},{"$f":"Menu!$J$29","v":2020},{"$f":"IF(ISBLANK(INDIRECT(\"'\"&F8172&\"'!\"&G8172)),\"\",INDIRECT(\"'\"&F8172&\"'!\"&G8172))","v":""},{"$f":"IF(ISBLANK(INDIRECT(\"'\"&F8172&\"'!\"&H8172)),\"\",IFERROR(VLOOKUP(TEXT(INDIRECT(\"'\"&F8172&\"'!\"&H8172),\"0\"),Notes!$B$5:$C$100,2,FALSE),\"\"))","v":""},"2d","$AE$151","$AF$151"]
[27648,{"$f":"Menu!$F$29","v":"X"},{"$f":"Menu!$J$29","v":2020},{"$f":"IF(ISBLANK(INDIRECT(\"'\"&F8173&\"'!\"&G8173)),\"\",INDIRECT(\"'\"&F8173&\"'!\"&G8173))","v":""},{"$f":"IF(ISBLANK(INDIRECT(\"'\"&F8173&\"'!\"&H8173)),\"\",IFERROR(VLOOKUP(TEXT(INDIRECT(\"'\"&F8173&\"'!\"&H8173),\"0\"),Notes!$B$5:$C$100,2,FALSE),\"\"))","v":""},"2d","$W$151","$X$151"]
[27649,{"$f":"Menu!$F$29","v":"X"},{"$f":"Menu!$J$29","v":2020},{"$f":"IF(ISBLANK(INDIRECT(\"'\"&F8174&\"'!\"&G8174)),\"\",INDIRECT(\"'\"&F8174&\"'!\"&G8174))","v":""},{"$f":"IF(ISBLANK(INDIRECT(\"'\"&F8174&\"'!\"&H8174)),\"\",IFERROR(VLOOKUP(TEXT(INDIRECT(\"'\"&F8174&\"'!\"&H8174),\"0\"),Notes!$B$5:$C$100,2,FALSE),\"\"))","v":""},"2d","$AA$151","$AB$151"]
[27650,{"$f":"Menu!$F$29","v":"X"},{"$f":"Menu!$J$29","v":2020},{"$f":"IF(ISBLANK(INDIRECT(\"'\"&F8175&\"'!\"&G8175)),\"\",INDIRECT(\"'\"&F8175&\"'!\"&G8175))","v":""},{"$f":"IF(ISBLANK(INDIRECT(\"'\"&F8175&\"'!\"&H8175)),\"\",IFERROR(VLOOKUP(TEXT(INDIRECT(\"'\"&F8175&\"'!\"&H8175),\"0\"),Notes!$B$5:$C$100,2,FALSE),\"\"))","v":""},"2d","$Y$151","$Z$151"]
[27651,{"$f":"Menu!$F$29","v":"X"},{"$f":"Menu!$J$29","v":2020},{"$f":"IF(ISBLANK(INDIRECT(\"'\"&F8176&\"'!\"&G8176)),\"\",INDIRECT(\"'\"&F8176&\"'!\"&G8176))","v":""},{"$f":"IF(ISBLANK(INDIRECT(\"'\"&F8176&\"'!\"&H8176)),\"\",IFERROR(VLOOKUP(TEXT(INDIRECT(\"'\"&F8176&\"'!\"&H8176),\"0\"),Notes!$B$5:$C$100,2,FALSE),\"\"))","v":""},"2d","$E$151","$F$151"]
[27652,{"$f":"Menu!$F$29","v":"X"},{"$f":"Menu!$J$29","v":2020},{"$f":"IF(ISBLANK(INDIRECT(\"'\"&F8177&\"'!\"&G8177)),\"\",INDIRECT(\"'\"&F8177&\"'!\"&G8177))","v":""},{"$f":"IF(ISBLANK(INDIRECT(\"'\"&F8177&\"'!\"&H8177)),\"\",IFERROR(VLOOKUP(TEXT(INDIRECT(\"'\"&F8177&\"'!\"&H8177),\"0\"),Notes!$B$5:$C$100,2,FALSE),\"\"))","v":""},"2d","$I$151","$J$151"]
[27653,{"$f":"Menu!$F$29","v":"X"},{"$f":"Menu!$J$29","v":2020},{"$f":"IF(ISBLANK(INDIRECT(\"'\"&F8178&\"'!\"&G8178)),\"\",INDIRECT(\"'\"&F8178&\"'!\"&G8178))","v":""},{"$f":"IF(ISBLANK(INDIRECT(\"'\"&F8178&\"'!\"&H8178)),\"\",IFERROR(VLOOKUP(TEXT(INDIRECT(\"'\"&F8178&\"'!\"&H8178),\"0\"),Notes!$B$5:$C$100,2,FALSE),\"\"))","v":""},"2d","$G$151","$H$151"]
[27654,{"$f":"Menu!$F$29","v":"X"},{"$f":"Menu!$J$29","v":2020},{"$f":"IF(ISBLANK(INDIRECT(\"'\"&F8179&\"'!\"&G8179)),\"\",INDIRECT(\"'\"&F8179&\"'!\"&G8179))","v":""},{"$f":"IF(ISBLANK(INDIRECT(\"'\"&F8179&\"'!\"&H8179)),\"\",IFERROR(VLOOKUP(TEXT(INDIRECT(\"'\"&F8179&\"'!\"&H8179),\"0\"),Notes!$B$5:$C$100,2,FALSE),\"\"))","v":""},"2a","$Q$151","$R$151"]
[27655,{"$f":"Menu!$F$29","v":"X"},{"$f":"Menu!$J$29","v":2020},{"$f":"IF(ISBLANK(INDIRECT(\"'\"&F8180&\"'!\"&G8180)),\"\",INDIRECT(\"'\"&F8180&\"'!\"&G8180))","v":""},{"$f":"IF(ISBLANK(INDIRECT(\"'\"&F8180&\"'!\"&H8180)),\"\",IFERROR(VLOOKUP(TEXT(INDIRECT(\"'\"&F8180&\"'!\"&H8180),\"0\"),Notes!$B$5:$C$100,2,FALSE),\"\"))","v":""},"2a","$U$151","$V$151"]
[27656,{"$f":"Menu!$F$29","v":"X"},{"$f":"Menu!$J$29","v":2020},{"$f":"IF(ISBLANK(INDIRECT(\"'\"&F8181&\"'!\"&G8181)),\"\",INDIRECT(\"'\"&F8181&\"'!\"&G8181))","v":""},{"$f":"IF(ISBLANK(INDIRECT(\"'\"&F8181&\"'!\"&H8181)),\"\",IFERROR(VLOOKUP(TEXT(INDIRECT(\"'\"&F8181&\"'!\"&H8181),\"0\"),Notes!$B$5:$C$100,2,FALSE),\"\"))","v":""},"2a","$S$151","$T$151"]
[27657,{"$f":"Menu!$F$29","v":"X"},{"$f":"Menu!$J$29","v":2020},{"$f":"IF(ISBLANK(INDIRECT(\"'\"&F8182&\"'!\"&G8182)),\"\",INDIRECT(\"'\"&F8182&\"'!\"&G8182))","v":""},{"$f":"IF(ISBLANK(INDIRECT(\"'\"&F8182&\"'!\"&H8182)),\"\",IFERROR(VLOOKUP(TEXT(INDIRECT(\"'\"&F8182&\"'!\"&H8182),\"0\"),Notes!$B$5:$C$100,2,FALSE),\"\"))","v":""},"2d","$K$151","$L$151"]
[27658,{"$f":"Menu!$F$29","v":"X"},{"$f":"Menu!$J$29","v":2020},{"$f":"IF(ISBLANK(INDIRECT(\"'\"&F8183&\"'!\"&G8183)),\"\",INDIRECT(\"'\"&F8183&\"'!\"&G8183))","v":""},{"$f":"IF(ISBLANK(INDIRECT(\"'\"&F8183&\"'!\"&H8183)),\"\",IFERROR(VLOOKUP(TEXT(INDIRECT(\"'\"&F8183&\"'!\"&H8183),\"0\"),Notes!$B$5:$C$100,2,FALSE),\"\"))","v":""},"2d","$O$151","$P$151"]
[27659,{"$f":"Menu!$F$29","v":"X"},{"$f":"Menu!$J$29","v":2020},{"$f":"IF(ISBLANK(INDIRECT(\"'\"&F8184&\"'!\"&G8184)),\"\",INDIRECT(\"'\"&F8184&\"'!\"&G8184))","v":""},{"$f":"IF(ISBLANK(INDIRECT(\"'\"&F8184&\"'!\"&H8184)),\"\",IFERROR(VLOOKUP(TEXT(INDIRECT(\"'\"&F8184&\"'!\"&H8184),\"0\"),Notes!$B$5:$C$100,2,FALSE),\"\"))","v":""},"2d","$M$151","$N$151"]
[27660,{"$f":"Menu!$F$29","v":"X"},{"$f":"Menu!$J$29","v":2020},{"$f":"IF(ISBLANK(INDIRECT(\"'\"&F8185&\"'!\"&G8185)),\"\",INDIRECT(\"'\"&F8185&\"'!\"&G8185))","v":""},{"$f":"IF(ISBLANK(INDIRECT(\"'\"&F8185&\"'!\"&H8185)),\"\",IFERROR(VLOOKUP(TEXT(INDIRECT(\"'\"&F8185&\"'!\"&H8185),\"0\"),Notes!$B$5:$C$100,2,FALSE),\"\"))","v":""},"2d","$Q$151","$R$151"]
[27661,{"$f":"Menu!$F$29","v":"X"},{"$f":"Menu!$J$29","v":2020},{"$f":"IF(ISBLANK(INDIRECT(\"'\"&F8186&\"'!\"&G8186)),\"\",INDIRECT(\"'\"&F8186&\"'!\"&G8186))","v":""},{"$f":"IF(ISBLANK(INDIRECT(\"'\"&F8186&\"'!\"&H8186)),\"\",IFERROR(VLOOKUP(TEXT(INDIRECT(\"'\"&F8186&\"'!\"&H8186),\"0\"),Notes!$B$5:$C$100,2,FALSE),\"\"))","v":""},"2d","$U$151","$V$151"]
[27662,{"$f":"Menu!$F$29","v":"X"},{"$f":"Menu!$J$29","v":2020},{"$f":"IF(ISBLANK(INDIRECT(\"'\"&F8187&\"'!\"&G8187)),\"\",INDIRECT(\"'\"&F8187&\"'!\"&G8187))","v":""},{"$f":"IF(ISBLANK(INDIRECT(\"'\"&F8187&\"'!\"&H8187)),\"\",IFERROR(VLOOKUP(TEXT(INDIRECT(\"'\"&F8187&\"'!\"&H8187),\"0\"),Notes!$B$5:$C$100,2,FALSE),\"\"))","v":""},"2d","$S$151","$T$151"]
[27663,{"$f":"Menu!$F$29","v":"X"},{"$f":"Menu!$J$29","v":2020},{"$f":"IF(ISBLANK(INDIRECT(\"'\"&F8188&\"'!\"&G8188)),\"\",INDIRECT(\"'\"&F8188&\"'!\"&G8188))","v":""},{"$f":"IF(ISBLANK(INDIRECT(\"'\"&F8188&\"'!\"&H8188)),\"\",IFERROR(VLOOKUP(TEXT(INDIRECT(\"'\"&F8188&\"'!\"&H8188),\"0\"),Notes!$B$5:$C$100,2,FALSE),\"\"))","v":""},"2a","$K$151","$L$151"]
[27664,{"$f":"Menu!$F$29","v":"X"},{"$f":"Menu!$J$29","v":2020},{"$f":"IF(ISBLANK(INDIRECT(\"'\"&F8189&\"'!\"&G8189)),\"\",INDIRECT(\"'\"&F8189&\"'!\"&G8189))","v":""},{"$f":"IF(ISBLANK(INDIRECT(\"'\"&F8189&\"'!\"&H8189)),\"\",IFERROR(VLOOKUP(TEXT(INDIRECT(\"'\"&F8189&\"'!\"&H8189),\"0\"),Notes!$B$5:$C$100,2,FALSE),\"\"))","v":""},"2a","$O$151","$P$151"]
[27665,{"$f":"Menu!$F$29","v":"X"},{"$f":"Menu!$J$29","v":2020},{"$f":"IF(ISBLANK(INDIRECT(\"'\"&F8190&\"'!\"&G8190)),\"\",INDIRECT(\"'\"&F8190&\"'!\"&G8190))","v":""},{"$f":"IF(ISBLANK(INDIRECT(\"'\"&F8190&\"'!\"&H8190)),\"\",IFERROR(VLOOKUP(TEXT(INDIRECT(\"'\"&F8190&\"'!\"&H8190),\"0\"),Notes!$B$5:$C$100,2,FALSE),\"\"))","v":""},"2a","$M$151","$N$151"]
[27666,{"$f":"Menu!$F$29","v":"X"},{"$f":"Menu!$J$29","v":2020},{"$f":"IF(ISBLANK(INDIRECT(\"'\"&F8191&\"'!\"&G8191)),\"\",INDIRECT(\"'\"&F8191&\"'!\"&G8191))","v":""},{"$f":"IF(ISBLANK(INDIRECT(\"'\"&F8191&\"'!\"&H8191)),\"\",IFERROR(VLOOKUP(TEXT(INDIRECT(\"'\"&F8191&\"'!\"&H8191),\"0\"),Notes!$B$5:$C$100,2,FALSE),\"\"))","v":""},"2a","$E$151","$F$151"]
[27667,{"$f":"Menu!$F$29","v":"X"},{"$f":"Menu!$J$29","v":2020},{"$f":"IF(ISBLANK(INDIRECT(\"'\"&F8192&\"'!\"&G8192)),\"\",INDIRECT(\"'\"&F8192&\"'!\"&G8192))","v":""},{"$f":"IF(ISBLANK(INDIRECT(\"'\"&F8192&\"'!\"&H8192)),\"\",IFERROR(VLOOKUP(TEXT(INDIRECT(\"'\"&F8192&\"'!\"&H8192),\"0\"),Notes!$B$5:$C$100,2,FALSE),\"\"))","v":""},"2b","$K$152","$L$152"]
[27668,{"$f":"Menu!$F$29","v":"X"},{"$f":"Menu!$J$29","v":2020},{"$f":"IF(ISBLANK(INDIRECT(\"'\"&F8193&\"'!\"&G8193)),\"\",INDIRECT(\"'\"&F8193&\"'!\"&G8193))","v":""},{"$f":"IF(ISBLANK(INDIRECT(\"'\"&F8193&\"'!\"&H8193)),\"\",IFERROR(VLOOKUP(TEXT(INDIRECT(\"'\"&F8193&\"'!\"&H8193),\"0\"),Notes!$B$5:$C$100,2,FALSE),\"\"))","v":""},"2b","$O$152","$P$152"]
[27669,{"$f":"Menu!$F$29","v":"X"},{"$f":"Menu!$J$29","v":2020},{"$f":"IF(ISBLANK(INDIRECT(\"'\"&F8194&\"'!\"&G8194)),\"\",INDIRECT(\"'\"&F8194&\"'!\"&G8194))","v":""},{"$f":"IF(ISBLANK(INDIRECT(\"'\"&F8194&\"'!\"&H8194)),\"\",IFERROR(VLOOKUP(TEXT(INDIRECT(\"'\"&F8194&\"'!\"&H8194),\"0\"),Notes!$B$5:$C$100,2,FALSE),\"\"))","v":""},"2b","$M$152",{"$f":"IF(LEN(TRIM(MID(G8194,4,10)))-LEN(SUBSTITUTE(TRIM(MID(G8194,4,10)),\"$\",\"\"))=0,\"$\"&CHAR(CODE(MID(G8194,2,1))+1)&\"$\"&TRIM(MID(G8194,4,10)),\"$\"&MID(G8194,2,1)&CHAR(CODE(MID(G8194,3,1))+1)&\"$\"&TRIM(MID(G8194,5,11)))","v":"$N$152"}]
[27670,{"$f":"Menu!$F$29","v":"X"},{"$f":"Menu!$J$29","v":2020},{"$f":"IF(ISBLANK(INDIRECT(\"'\"&F8195&\"'!\"&G8195)),\"\",INDIRECT(\"'\"&F8195&\"'!\"&G8195))","v":""},{"$f":"IF(ISBLANK(INDIRECT(\"'\"&F8195&\"'!\"&H8195)),\"\",IFERROR(VLOOKUP(TEXT(INDIRECT(\"'\"&F8195&\"'!\"&H8195),\"0\"),Notes!$B$5:$C$100,2,FALSE),\"\"))","v":""},"2b","$Q$152","$R$152"]
[27671,{"$f":"Menu!$F$29","v":"X"},{"$f":"Menu!$J$29","v":2020},{"$f":"IF(ISBLANK(INDIRECT(\"'\"&F8196&\"'!\"&G8196)),\"\",INDIRECT(\"'\"&F8196&\"'!\"&G8196))","v":""},{"$f":"IF(ISBLANK(INDIRECT(\"'\"&F8196&\"'!\"&H8196)),\"\",IFERROR(VLOOKUP(TEXT(INDIRECT(\"'\"&F8196&\"'!\"&H8196),\"0\"),Notes!$B$5:$C$100,2,FALSE),\"\"))","v":""},"2b","$U$152","$V$152"]
[27672,{"$f":"Menu!$F$29","v":"X"},{"$f":"Menu!$J$29","v":2020},{"$f":"IF(ISBLANK(INDIRECT(\"'\"&F8197&\"'!\"&G8197)),\"\",INDIRECT(\"'\"&F8197&\"'!\"&G8197))","v":""},{"$f":"IF(ISBLANK(INDIRECT(\"'\"&F8197&\"'!\"&H8197)),\"\",IFERROR(VLOOKUP(TEXT(INDIRECT(\"'\"&F8197&\"'!\"&H8197),\"0\"),Notes!$B$5:$C$100,2,FALSE),\"\"))","v":""},"2b","$S$152","$T$152"]
[27676,{"$f":"Menu!$F$29","v":"X"},{"$f":"Menu!$J$29","v":2020},{"$f":"IF(ISBLANK(INDIRECT(\"'\"&F8198&\"'!\"&G8198)),\"\",INDIRECT(\"'\"&F8198&\"'!\"&G8198))","v":""},{"$f":"IF(ISBLANK(INDIRECT(\"'\"&F8198&\"'!\"&H8198)),\"\",IFERROR(VLOOKUP(TEXT(INDIRECT(\"'\"&F8198&\"'!\"&H8198),\"0\"),Notes!$B$5:$C$100,2,FALSE),\"\"))","v":""},"2a","$I$152","$J$152"]
[27677,{"$f":"Menu!$F$29","v":"X"},{"$f":"Menu!$J$29","v":2020},{"$f":"IF(ISBLANK(INDIRECT(\"'\"&F8199&\"'!\"&G8199)),\"\",INDIRECT(\"'\"&F8199&\"'!\"&G8199))","v":""},{"$f":"IF(ISBLANK(INDIRECT(\"'\"&F8199&\"'!\"&H8199)),\"\",IFERROR(VLOOKUP(TEXT(INDIRECT(\"'\"&F8199&\"'!\"&H8199),\"0\"),Notes!$B$5:$C$100,2,FALSE),\"\"))","v":""},"2c","$E$152","$F$152"]
[27678,{"$f":"Menu!$F$29","v":"X"},{"$f":"Menu!$J$29","v":2020},{"$f":"IF(ISBLANK(INDIRECT(\"'\"&F8200&\"'!\"&G8200)),\"\",INDIRECT(\"'\"&F8200&\"'!\"&G8200))","v":""},{"$f":"IF(ISBLANK(INDIRECT(\"'\"&F8200&\"'!\"&H8200)),\"\",IFERROR(VLOOKUP(TEXT(INDIRECT(\"'\"&F8200&\"'!\"&H8200),\"0\"),Notes!$B$5:$C$100,2,FALSE),\"\"))","v":""},"2c","$I$152","$J$152"]
[27679,{"$f":"Menu!$F$29","v":"X"},{"$f":"Menu!$J$29","v":2020},{"$f":"IF(ISBLANK(INDIRECT(\"'\"&F8201&\"'!\"&G8201)),\"\",INDIRECT(\"'\"&F8201&\"'!\"&G8201))","v":""},{"$f":"IF(ISBLANK(INDIRECT(\"'\"&F8201&\"'!\"&H8201)),\"\",IFERROR(VLOOKUP(TEXT(INDIRECT(\"'\"&F8201&\"'!\"&H8201),\"0\"),Notes!$B$5:$C$100,2,FALSE),\"\"))","v":""},"2c","$G$152","$H$152"]
[27683,{"$f":"Menu!$F$29","v":"X"},{"$f":"Menu!$J$29","v":2020},{"$f":"IF(ISBLANK(INDIRECT(\"'\"&F8202&\"'!\"&G8202)),\"\",INDIRECT(\"'\"&F8202&\"'!\"&G8202))","v":""},{"$f":"IF(ISBLANK(INDIRECT(\"'\"&F8202&\"'!\"&H8202)),\"\",IFERROR(VLOOKUP(TEXT(INDIRECT(\"'\"&F8202&\"'!\"&H8202),\"0\"),Notes!$B$5:$C$100,2,FALSE),\"\"))","v":""},"2c","$K$152","$L$152"]
[27684,{"$f":"Menu!$F$29","v":"X"},{"$f":"Menu!$J$29","v":2020},{"$f":"IF(ISBLANK(INDIRECT(\"'\"&F8203&\"'!\"&G8203)),\"\",INDIRECT(\"'\"&F8203&\"'!\"&G8203))","v":""},{"$f":"IF(ISBLANK(INDIRECT(\"'\"&F8203&\"'!\"&H8203)),\"\",IFERROR(VLOOKUP(TEXT(INDIRECT(\"'\"&F8203&\"'!\"&H8203),\"0\"),Notes!$B$5:$C$100,2,FALSE),\"\"))","v":""},"2c","$O$152","$P$152"]
[27685,{"$f":"Menu!$F$29","v":"X"},{"$f":"Menu!$J$29","v":2020},{"$f":"IF(ISBLANK(INDIRECT(\"'\"&F8204&\"'!\"&G8204)),\"\",INDIRECT(\"'\"&F8204&\"'!\"&G8204))","v":""},{"$f":"IF(ISBLANK(INDIRECT(\"'\"&F8204&\"'!\"&H8204)),\"\",IFERROR(VLOOKUP(TEXT(INDIRECT(\"'\"&F8204&\"'!\"&H8204),\"0\"),Notes!$B$5:$C$100,2,FALSE),\"\"))","v":""},"2c","$M$152","$N$152"]
[27686,{"$f":"Menu!$F$29","v":"X"},{"$f":"Menu!$J$29","v":2020},{"$f":"IF(ISBLANK(INDIRECT(\"'\"&F8205&\"'!\"&G8205)),\"\",INDIRECT(\"'\"&F8205&\"'!\"&G8205))","v":""},{"$f":"IF(ISBLANK(INDIRECT(\"'\"&F8205&\"'!\"&H8205)),\"\",IFERROR(VLOOKUP(TEXT(INDIRECT(\"'\"&F8205&\"'!\"&H8205),\"0\"),Notes!$B$5:$C$100,2,FALSE),\"\"))","v":""},"2c","$Q$152","$R$152"]
[27687,{"$f":"Menu!$F$29","v":"X"},{"$f":"Menu!$J$29","v":2020},{"$f":"IF(ISBLANK(INDIRECT(\"'\"&F8206&\"'!\"&G8206)),\"\",INDIRECT(\"'\"&F8206&\"'!\"&G8206))","v":""},{"$f":"IF(ISBLANK(INDIRECT(\"'\"&F8206&\"'!\"&H8206)),\"\",IFERROR(VLOOKUP(TEXT(INDIRECT(\"'\"&F8206&\"'!\"&H8206),\"0\"),Notes!$B$5:$C$100,2,FALSE),\"\"))","v":""},"2c","$U$152","$V$152"]
[27688,{"$f":"Menu!$F$29","v":"X"},{"$f":"Menu!$J$29","v":2020},{"$f":"IF(ISBLANK(INDIRECT(\"'\"&F8207&\"'!\"&G8207)),\"\",INDIRECT(\"'\"&F8207&\"'!\"&G8207))","v":""},{"$f":"IF(ISBLANK(INDIRECT(\"'\"&F8207&\"'!\"&H8207)),\"\",IFERROR(VLOOKUP(TEXT(INDIRECT(\"'\"&F8207&\"'!\"&H8207),\"0\"),Notes!$B$5:$C$100,2,FALSE),\"\"))","v":""},"2c","$S$152","$T$152"]
[27689,{"$f":"Menu!$F$29","v":"X"},{"$f":"Menu!$J$29","v":2020},{"$f":"IF(ISBLANK(INDIRECT(\"'\"&F8208&\"'!\"&G8208)),\"\",INDIRECT(\"'\"&F8208&\"'!\"&G8208))","v":""},{"$f":"IF(ISBLANK(INDIRECT(\"'\"&F8208&\"'!\"&H8208)),\"\",IFERROR(VLOOKUP(TEXT(INDIRECT(\"'\"&F8208&\"'!\"&H8208),\"0\"),Notes!$B$5:$C$100,2,FALSE),\"\"))","v":""},"2c","$W$152","$X$152"]
[27690,{"$f":"Menu!$F$29","v":"X"},{"$f":"Menu!$J$29","v":2020},{"$f":"IF(ISBLANK(INDIRECT(\"'\"&F8209&\"'!\"&G8209)),\"\",INDIRECT(\"'\"&F8209&\"'!\"&G8209))","v":""},{"$f":"IF(ISBLANK(INDIRECT(\"'\"&F8209&\"'!\"&H8209)),\"\",IFERROR(VLOOKUP(TEXT(INDIRECT(\"'\"&F8209&\"'!\"&H8209),\"0\"),Notes!$B$5:$C$100,2,FALSE),\"\"))","v":""},"2c","$AA$152","$AB$152"]
[27691,{"$f":"Menu!$F$29","v":"X"},{"$f":"Menu!$J$29","v":2020},{"$f":"IF(ISBLANK(INDIRECT(\"'\"&F8210&\"'!\"&G8210)),\"\",INDIRECT(\"'\"&F8210&\"'!\"&G8210))","v":""},{"$f":"IF(ISBLANK(INDIRECT(\"'\"&F8210&\"'!\"&H8210)),\"\",IFERROR(VLOOKUP(TEXT(INDIRECT(\"'\"&F8210&\"'!\"&H8210),\"0\"),Notes!$B$5:$C$100,2,FALSE),\"\"))","v":""},"2c","$Y$152","$Z$152"]
[27698,{"$f":"Menu!$F$29","v":"X"},{"$f":"Menu!$J$29","v":2020},{"$f":"IF(ISBLANK(INDIRECT(\"'\"&F8211&\"'!\"&G8211)),\"\",INDIRECT(\"'\"&F8211&\"'!\"&G8211))","v":""},{"$f":"IF(ISBLANK(INDIRECT(\"'\"&F8211&\"'!\"&H8211)),\"\",IFERROR(VLOOKUP(TEXT(INDIRECT(\"'\"&F8211&\"'!\"&H8211),\"0\"),Notes!$B$5:$C$100,2,FALSE),\"\"))","v":""},"2e","$BG$153","$BH$153"]
[27699,{"$f":"Menu!$F$29","v":"X"},{"$f":"Menu!$J$29","v":2020},{"$f":"IF(ISBLANK(INDIRECT(\"'\"&F8212&\"'!\"&G8212)),\"\",INDIRECT(\"'\"&F8212&\"'!\"&G8212))","v":""},{"$f":"IF(ISBLANK(INDIRECT(\"'\"&F8212&\"'!\"&H8212)),\"\",IFERROR(VLOOKUP(TEXT(INDIRECT(\"'\"&F8212&\"'!\"&H8212),\"0\"),Notes!$B$5:$C$100,2,FALSE),\"\"))","v":""},"2e","$BK$153","$BL$153"]
[27700,{"$f":"Menu!$F$29","v":"X"},{"$f":"Menu!$J$29","v":2020},{"$f":"IF(ISBLANK(INDIRECT(\"'\"&F8213&\"'!\"&G8213)),\"\",INDIRECT(\"'\"&F8213&\"'!\"&G8213))","v":""},{"$f":"IF(ISBLANK(INDIRECT(\"'\"&F8213&\"'!\"&H8213)),\"\",IFERROR(VLOOKUP(TEXT(INDIRECT(\"'\"&F8213&\"'!\"&H8213),\"0\"),Notes!$B$5:$C$100,2,FALSE),\"\"))","v":""},"2e","$BI$153","$BJ$153"]
[27701,{"$f":"Menu!$F$29","v":"X"},{"$f":"Menu!$J$29","v":2020},{"$f":"IF(ISBLANK(INDIRECT(\"'\"&F8214&\"'!\"&G8214)),\"\",INDIRECT(\"'\"&F8214&\"'!\"&G8214))","v":""},{"$f":"IF(ISBLANK(INDIRECT(\"'\"&F8214&\"'!\"&H8214)),\"\",IFERROR(VLOOKUP(TEXT(INDIRECT(\"'\"&F8214&\"'!\"&H8214),\"0\"),Notes!$B$5:$C$100,2,FALSE),\"\"))","v":""},"2e","$E$153","$F$153"]
[27702,{"$f":"Menu!$F$29","v":"X"},{"$f":"Menu!$J$29","v":2020},{"$f":"IF(ISBLANK(INDIRECT(\"'\"&F8215&\"'!\"&G8215)),\"\",INDIRECT(\"'\"&F8215&\"'!\"&G8215))","v":""},{"$f":"IF(ISBLANK(INDIRECT(\"'\"&F8215&\"'!\"&H8215)),\"\",IFERROR(VLOOKUP(TEXT(INDIRECT(\"'\"&F8215&\"'!\"&H8215),\"0\"),Notes!$B$5:$C$100,2,FALSE),\"\"))","v":""},"2e","$I$153","$J$153"]
[27703,{"$f":"Menu!$F$29","v":"X"},{"$f":"Menu!$J$29","v":2020},{"$f":"IF(ISBLANK(INDIRECT(\"'\"&F8216&\"'!\"&G8216)),\"\",INDIRECT(\"'\"&F8216&\"'!\"&G8216))","v":""},{"$f":"IF(ISBLANK(INDIRECT(\"'\"&F8216&\"'!\"&H8216)),\"\",IFERROR(VLOOKUP(TEXT(INDIRECT(\"'\"&F8216&\"'!\"&H8216),\"0\"),Notes!$B$5:$C$100,2,FALSE),\"\"))","v":""},"2e","$G$153","$H$153"]
[27704,{"$f":"Menu!$F$29","v":"X"},{"$f":"Menu!$J$29","v":2020},{"$f":"IF(ISBLANK(INDIRECT(\"'\"&F8217&\"'!\"&G8217)),\"\",INDIRECT(\"'\"&F8217&\"'!\"&G8217))","v":""},{"$f":"IF(ISBLANK(INDIRECT(\"'\"&F8217&\"'!\"&H8217)),\"\",IFERROR(VLOOKUP(TEXT(INDIRECT(\"'\"&F8217&\"'!\"&H8217),\"0\"),Notes!$B$5:$C$100,2,FALSE),\"\"))","v":""},"2e","$K$153","$L$153"]
[27705,{"$f":"Menu!$F$29","v":"X"},{"$f":"Menu!$J$29","v":2020},{"$f":"IF(ISBLANK(INDIRECT(\"'\"&F8218&\"'!\"&G8218)),\"\",INDIRECT(\"'\"&F8218&\"'!\"&G8218))","v":""},{"$f":"IF(ISBLANK(INDIRECT(\"'\"&F8218&\"'!\"&H8218)),\"\",IFERROR(VLOOKUP(TEXT(INDIRECT(\"'\"&F8218&\"'!\"&H8218),\"0\"),Notes!$B$5:$C$100,2,FALSE),\"\"))","v":""},"2e","$O$153","$P$153"]
[27706,{"$f":"Menu!$F$29","v":"X"},{"$f":"Menu!$J$29","v":2020},{"$f":"IF(ISBLANK(INDIRECT(\"'\"&F8219&\"'!\"&G8219)),\"\",INDIRECT(\"'\"&F8219&\"'!\"&G8219))","v":""},{"$f":"IF(ISBLANK(INDIRECT(\"'\"&F8219&\"'!\"&H8219)),\"\",IFERROR(VLOOKUP(TEXT(INDIRECT(\"'\"&F8219&\"'!\"&H8219),\"0\"),Notes!$B$5:$C$100,2,FALSE),\"\"))","v":""},"2e","$M$153","$N$153"]
[27707,{"$f":"Menu!$F$29","v":"X"},{"$f":"Menu!$J$29","v":2020},{"$f":"IF(ISBLANK(INDIRECT(\"'\"&F8220&\"'!\"&G8220)),\"\",INDIRECT(\"'\"&F8220&\"'!\"&G8220))","v":""},{"$f":"IF(ISBLANK(INDIRECT(\"'\"&F8220&\"'!\"&H8220)),\"\",IFERROR(VLOOKUP(TEXT(INDIRECT(\"'\"&F8220&\"'!\"&H8220),\"0\"),Notes!$B$5:$C$100,2,FALSE),\"\"))","v":""},"2e","$Q$153","$R$153"]
[27708,{"$f":"Menu!$F$29","v":"X"},{"$f":"Menu!$J$29","v":2020},{"$f":"IF(ISBLANK(INDIRECT(\"'\"&F8221&\"'!\"&G8221)),\"\",INDIRECT(\"'\"&F8221&\"'!\"&G8221))","v":""},{"$f":"IF(ISBLANK(INDIRECT(\"'\"&F8221&\"'!\"&H8221)),\"\",IFERROR(VLOOKUP(TEXT(INDIRECT(\"'\"&F8221&\"'!\"&H8221),\"0\"),Notes!$B$5:$C$100,2,FALSE),\"\"))","v":""},"2e","$U$153","$V$153"]
[27709,{"$f":"Menu!$F$29","v":"X"},{"$f":"Menu!$J$29","v":2020},{"$f":"IF(ISBLANK(INDIRECT(\"'\"&F8222&\"'!\"&G8222)),\"\",INDIRECT(\"'\"&F8222&\"'!\"&G8222))","v":""},{"$f":"IF(ISBLANK(INDIRECT(\"'\"&F8222&\"'!\"&H8222)),\"\",IFERROR(VLOOKUP(TEXT(INDIRECT(\"'\"&F8222&\"'!\"&H8222),\"0\"),Notes!$B$5:$C$100,2,FALSE),\"\"))","v":""},"2e","$S$153","$T$153"]
[27710,{"$f":"Menu!$F$29","v":"X"},{"$f":"Menu!$J$29","v":2020},{"$f":"IF(ISBLANK(INDIRECT(\"'\"&F8223&\"'!\"&G8223)),\"\",INDIRECT(\"'\"&F8223&\"'!\"&G8223))","v":""},{"$f":"IF(ISBLANK(INDIRECT(\"'\"&F8223&\"'!\"&H8223)),\"\",IFERROR(VLOOKUP(TEXT(INDIRECT(\"'\"&F8223&\"'!\"&H8223),\"0\"),Notes!$B$5:$C$100,2,FALSE),\"\"))","v":""},"2e","$W$153","$X$153"]
[27711,{"$f":"Menu!$F$29","v":"X"},{"$f":"Menu!$J$29","v":2020},{"$f":"IF(ISBLANK(INDIRECT(\"'\"&F8224&\"'!\"&G8224)),\"\",INDIRECT(\"'\"&F8224&\"'!\"&G8224))","v":""},{"$f":"IF(ISBLANK(INDIRECT(\"'\"&F8224&\"'!\"&H8224)),\"\",IFERROR(VLOOKUP(TEXT(INDIRECT(\"'\"&F8224&\"'!\"&H8224),\"0\"),Notes!$B$5:$C$100,2,FALSE),\"\"))","v":""},"2e","$AA$153","$AB$153"]
[27712,{"$f":"Menu!$F$29","v":"X"},{"$f":"Menu!$J$29","v":2020},{"$f":"IF(ISBLANK(INDIRECT(\"'\"&F8225&\"'!\"&G8225)),\"\",INDIRECT(\"'\"&F8225&\"'!\"&G8225))","v":""},{"$f":"IF(ISBLANK(INDIRECT(\"'\"&F8225&\"'!\"&H8225)),\"\",IFERROR(VLOOKUP(TEXT(INDIRECT(\"'\"&F8225&\"'!\"&H8225),\"0\"),Notes!$B$5:$C$100,2,FALSE),\"\"))","v":""},"2e","$Y$153","$Z$153"]
[27713,{"$f":"Menu!$F$29","v":"X"},{"$f":"Menu!$J$29","v":2020},{"$f":"IF(ISBLANK(INDIRECT(\"'\"&F8226&\"'!\"&G8226)),\"\",INDIRECT(\"'\"&F8226&\"'!\"&G8226))","v":""},{"$f":"IF(ISBLANK(INDIRECT(\"'\"&F8226&\"'!\"&H8226)),\"\",IFERROR(VLOOKUP(TEXT(INDIRECT(\"'\"&F8226&\"'!\"&H8226),\"0\"),Notes!$B$5:$C$100,2,FALSE),\"\"))","v":""},"2e","$AC$153","$AD$153"]
[27714,{"$f":"Menu!$F$29","v":"X"},{"$f":"Menu!$J$29","v":2020},{"$f":"IF(ISBLANK(INDIRECT(\"'\"&F8227&\"'!\"&G8227)),\"\",INDIRECT(\"'\"&F8227&\"'!\"&G8227))","v":""},{"$f":"IF(ISBLANK(INDIRECT(\"'\"&F8227&\"'!\"&H8227)),\"\",IFERROR(VLOOKUP(TEXT(INDIRECT(\"'\"&F8227&\"'!\"&H8227),\"0\"),Notes!$B$5:$C$100,2,FALSE),\"\"))","v":""},"2e","$AG$153","$AH$153"]
[27715,{"$f":"Menu!$F$29","v":"X"},{"$f":"Menu!$J$29","v":2020},{"$f":"IF(ISBLANK(INDIRECT(\"'\"&F8228&\"'!\"&G8228)),\"\",INDIRECT(\"'\"&F8228&\"'!\"&G8228))","v":""},{"$f":"IF(ISBLANK(INDIRECT(\"'\"&F8228&\"'!\"&H8228)),\"\",IFERROR(VLOOKUP(TEXT(INDIRECT(\"'\"&F8228&\"'!\"&H8228),\"0\"),Notes!$B$5:$C$100,2,FALSE),\"\"))","v":""},"2e","$AE$153","$AF$153"]
[27716,{"$f":"Menu!$F$29","v":"X"},{"$f":"Menu!$J$29","v":2020},{"$f":"IF(ISBLANK(INDIRECT(\"'\"&F8229&\"'!\"&G8229)),\"\",INDIRECT(\"'\"&F8229&\"'!\"&G8229))","v":""},{"$f":"IF(ISBLANK(INDIRECT(\"'\"&F8229&\"'!\"&H8229)),\"\",IFERROR(VLOOKUP(TEXT(INDIRECT(\"'\"&F8229&\"'!\"&H8229),\"0\"),Notes!$B$5:$C$100,2,FALSE),\"\"))","v":""},"2e","$AI$153","$AJ$153"]
[27717,{"$f":"Menu!$F$29","v":"X"},{"$f":"Menu!$J$29","v":2020},{"$f":"IF(ISBLANK(INDIRECT(\"'\"&F8230&\"'!\"&G8230)),\"\",INDIRECT(\"'\"&F8230&\"'!\"&G8230))","v":""},{"$f":"IF(ISBLANK(INDIRECT(\"'\"&F8230&\"'!\"&H8230)),\"\",IFERROR(VLOOKUP(TEXT(INDIRECT(\"'\"&F8230&\"'!\"&H8230),\"0\"),Notes!$B$5:$C$100,2,FALSE),\"\"))","v":""},"2e","$AM$153","$AN$153"]
[27718,{"$f":"Menu!$F$29","v":"X"},{"$f":"Menu!$J$29","v":2020},{"$f":"IF(ISBLANK(INDIRECT(\"'\"&F8231&\"'!\"&G8231)),\"\",INDIRECT(\"'\"&F8231&\"'!\"&G8231))","v":""},{"$f":"IF(ISBLANK(INDIRECT(\"'\"&F8231&\"'!\"&H8231)),\"\",IFERROR(VLOOKUP(TEXT(INDIRECT(\"'\"&F8231&\"'!\"&H8231),\"0\"),Notes!$B$5:$C$100,2,FALSE),\"\"))","v":""},"2e","$AK$153","$AL$153"]
[27719,{"$f":"Menu!$F$29","v":"X"},{"$f":"Menu!$J$29","v":2020},{"$f":"IF(ISBLANK(INDIRECT(\"'\"&F8232&\"'!\"&G8232)),\"\",INDIRECT(\"'\"&F8232&\"'!\"&G8232))","v":""},{"$f":"IF(ISBLANK(INDIRECT(\"'\"&F8232&\"'!\"&H8232)),\"\",IFERROR(VLOOKUP(TEXT(INDIRECT(\"'\"&F8232&\"'!\"&H8232),\"0\"),Notes!$B$5:$C$100,2,FALSE),\"\"))","v":""},"2e","$AO$153","$AP$153"]
[27720,{"$f":"Menu!$F$29","v":"X"},{"$f":"Menu!$J$29","v":2020},{"$f":"IF(ISBLANK(INDIRECT(\"'\"&F8233&\"'!\"&G8233)),\"\",INDIRECT(\"'\"&F8233&\"'!\"&G8233))","v":""},{"$f":"IF(ISBLANK(INDIRECT(\"'\"&F8233&\"'!\"&H8233)),\"\",IFERROR(VLOOKUP(TEXT(INDIRECT(\"'\"&F8233&\"'!\"&H8233),\"0\"),Notes!$B$5:$C$100,2,FALSE),\"\"))","v":""},"2e","$AS$153","$AT$153"]
[27721,{"$f":"Menu!$F$29","v":"X"},{"$f":"Menu!$J$29","v":2020},{"$f":"IF(ISBLANK(INDIRECT(\"'\"&F8234&\"'!\"&G8234)),\"\",INDIRECT(\"'\"&F8234&\"'!\"&G8234))","v":""},{"$f":"IF(ISBLANK(INDIRECT(\"'\"&F8234&\"'!\"&H8234)),\"\",IFERROR(VLOOKUP(TEXT(INDIRECT(\"'\"&F8234&\"'!\"&H8234),\"0\"),Notes!$B$5:$C$100,2,FALSE),\"\"))","v":""},"2e","$AQ$153","$AR$153"]
[27722,{"$f":"Menu!$F$29","v":"X"},{"$f":"Menu!$J$29","v":2020},{"$f":"IF(ISBLANK(INDIRECT(\"'\"&F8235&\"'!\"&G8235)),\"\",INDIRECT(\"'\"&F8235&\"'!\"&G8235))","v":""},{"$f":"IF(ISBLANK(INDIRECT(\"'\"&F8235&\"'!\"&H8235)),\"\",IFERROR(VLOOKUP(TEXT(INDIRECT(\"'\"&F8235&\"'!\"&H8235),\"0\"),Notes!$B$5:$C$100,2,FALSE),\"\"))","v":""},"2e","$AU$153","$AV$153"]
[27723,{"$f":"Menu!$F$29","v":"X"},{"$f":"Menu!$J$29","v":2020},{"$f":"IF(ISBLANK(INDIRECT(\"'\"&F8236&\"'!\"&G8236)),\"\",INDIRECT(\"'\"&F8236&\"'!\"&G8236))","v":""},{"$f":"IF(ISBLANK(INDIRECT(\"'\"&F8236&\"'!\"&H8236)),\"\",IFERROR(VLOOKUP(TEXT(INDIRECT(\"'\"&F8236&\"'!\"&H8236),\"0\"),Notes!$B$5:$C$100,2,FALSE),\"\"))","v":""},"2e","$AY$153","$AZ$153"]
[27724,{"$f":"Menu!$F$29","v":"X"},{"$f":"Menu!$J$29","v":2020},{"$f":"IF(ISBLANK(INDIRECT(\"'\"&F8237&\"'!\"&G8237)),\"\",INDIRECT(\"'\"&F8237&\"'!\"&G8237))","v":""},{"$f":"IF(ISBLANK(INDIRECT(\"'\"&F8237&\"'!\"&H8237)),\"\",IFERROR(VLOOKUP(TEXT(INDIRECT(\"'\"&F8237&\"'!\"&H8237),\"0\"),Notes!$B$5:$C$100,2,FALSE),\"\"))","v":""},"2e","$AW$153","$AX$153"]
[27725,{"$f":"Menu!$F$29","v":"X"},{"$f":"Menu!$J$29","v":2020},{"$f":"IF(ISBLANK(INDIRECT(\"'\"&F8238&\"'!\"&G8238)),\"\",INDIRECT(\"'\"&F8238&\"'!\"&G8238))","v":""},{"$f":"IF(ISBLANK(INDIRECT(\"'\"&F8238&\"'!\"&H8238)),\"\",IFERROR(VLOOKUP(TEXT(INDIRECT(\"'\"&F8238&\"'!\"&H8238),\"0\"),Notes!$B$5:$C$100,2,FALSE),\"\"))","v":""},"2e","$BA$153","$BB$153"]
[27726,{"$f":"Menu!$F$29","v":"X"},{"$f":"Menu!$J$29","v":2020},{"$f":"IF(ISBLANK(INDIRECT(\"'\"&F8239&\"'!\"&G8239)),\"\",INDIRECT(\"'\"&F8239&\"'!\"&G8239))","v":""},{"$f":"IF(ISBLANK(INDIRECT(\"'\"&F8239&\"'!\"&H8239)),\"\",IFERROR(VLOOKUP(TEXT(INDIRECT(\"'\"&F8239&\"'!\"&H8239),\"0\"),Notes!$B$5:$C$100,2,FALSE),\"\"))","v":""},"2e","$BE$153","$BF$153"]
[27727,{"$f":"Menu!$F$29","v":"X"},{"$f":"Menu!$J$29","v":2020},{"$f":"IF(ISBLANK(INDIRECT(\"'\"&F8240&\"'!\"&G8240)),\"\",INDIRECT(\"'\"&F8240&\"'!\"&G8240))","v":""},{"$f":"IF(ISBLANK(INDIRECT(\"'\"&F8240&\"'!\"&H8240)),\"\",IFERROR(VLOOKUP(TEXT(INDIRECT(\"'\"&F8240&\"'!\"&H8240),\"0\"),Notes!$B$5:$C$100,2,FALSE),\"\"))","v":""},"2e","$BC$153","$BD$153"]
[27728,{"$f":"Menu!$F$29","v":"X"},{"$f":"Menu!$J$29","v":2020},{"$f":"IF(ISBLANK(INDIRECT(\"'\"&F8241&\"'!\"&G8241)),\"\",INDIRECT(\"'\"&F8241&\"'!\"&G8241))","v":""},{"$f":"IF(ISBLANK(INDIRECT(\"'\"&F8241&\"'!\"&H8241)),\"\",IFERROR(VLOOKUP(TEXT(INDIRECT(\"'\"&F8241&\"'!\"&H8241),\"0\"),Notes!$B$5:$C$100,2,FALSE),\"\"))","v":""},"2b","$E$152","$F$152"]
[27729,{"$f":"Menu!$F$29","v":"X"},{"$f":"Menu!$J$29","v":2020},{"$f":"IF(ISBLANK(INDIRECT(\"'\"&F8242&\"'!\"&G8242)),\"\",INDIRECT(\"'\"&F8242&\"'!\"&G8242))","v":""},{"$f":"IF(ISBLANK(INDIRECT(\"'\"&F8242&\"'!\"&H8242)),\"\",IFERROR(VLOOKUP(TEXT(INDIRECT(\"'\"&F8242&\"'!\"&H8242),\"0\"),Notes!$B$5:$C$100,2,FALSE),\"\"))","v":""},"2b","$I$152","$J$152"]
[27730,{"$f":"Menu!$F$29","v":"X"},{"$f":"Menu!$J$29","v":2020},{"$f":"IF(ISBLANK(INDIRECT(\"'\"&F8243&\"'!\"&G8243)),\"\",INDIRECT(\"'\"&F8243&\"'!\"&G8243))","v":""},{"$f":"IF(ISBLANK(INDIRECT(\"'\"&F8243&\"'!\"&H8243)),\"\",IFERROR(VLOOKUP(TEXT(INDIRECT(\"'\"&F8243&\"'!\"&H8243),\"0\"),Notes!$B$5:$C$100,2,FALSE),\"\"))","v":""},"2b","$G$152","$H$152"]
[27731,{"$f":"Menu!$F$29","v":"X"},{"$f":"Menu!$J$29","v":2020},{"$f":"IF(ISBLANK(INDIRECT(\"'\"&F8244&\"'!\"&G8244)),\"\",INDIRECT(\"'\"&F8244&\"'!\"&G8244))","v":""},null,"2a","$G$152","$H$152"]
[27732,{"$f":"Menu!$F$29","v":"X"},{"$f":"Menu!$J$29","v":2020},{"$f":"IF(ISBLANK(INDIRECT(\"'\"&F8245&\"'!\"&G8245)),\"\",INDIRECT(\"'\"&F8245&\"'!\"&G8245))","v":""},{"$f":"IF(ISBLANK(INDIRECT(\"'\"&F8245&\"'!\"&H8245)),\"\",IFERROR(VLOOKUP(TEXT(INDIRECT(\"'\"&F8245&\"'!\"&H8245),\"0\"),Notes!$B$5:$C$100,2,FALSE),\"\"))","v":""},"2b","$W$152","$X$152"]
[27733,{"$f":"Menu!$F$29","v":"X"},{"$f":"Menu!$J$29","v":2020},{"$f":"IF(ISBLANK(INDIRECT(\"'\"&F8246&\"'!\"&G8246)),\"\",INDIRECT(\"'\"&F8246&\"'!\"&G8246))","v":""},{"$f":"IF(ISBLANK(INDIRECT(\"'\"&F8246&\"'!\"&H8246)),\"\",IFERROR(VLOOKUP(TEXT(INDIRECT(\"'\"&F8246&\"'!\"&H8246),\"0\"),Notes!$B$5:$C$100,2,FALSE),\"\"))","v":""},"2b","$AA$152","$AB$152"]
[27734,{"$f":"Menu!$F$29","v":"X"},{"$f":"Menu!$J$29","v":2020},{"$f":"IF(ISBLANK(INDIRECT(\"'\"&F8247&\"'!\"&G8247)),\"\",INDIRECT(\"'\"&F8247&\"'!\"&G8247))","v":""},{"$f":"IF(ISBLANK(INDIRECT(\"'\"&F8247&\"'!\"&H8247)),\"\",IFERROR(VLOOKUP(TEXT(INDIRECT(\"'\"&F8247&\"'!\"&H8247),\"0\"),Notes!$B$5:$C$100,2,FALSE),\"\"))","v":""},"2b","$Y$152","$Z$152"]
[27735,{"$f":"Menu!$F$29","v":"X"},{"$f":"Menu!$J$29","v":2020},{"$f":"IF(ISBLANK(INDIRECT(\"'\"&F8248&\"'!\"&G8248)),\"\",INDIRECT(\"'\"&F8248&\"'!\"&G8248))","v":""},{"$f":"IF(ISBLANK(INDIRECT(\"'\"&F8248&\"'!\"&H8248)),\"\",IFERROR(VLOOKUP(TEXT(INDIRECT(\"'\"&F8248&\"'!\"&H8248),\"0\"),Notes!$B$5:$C$100,2,FALSE),\"\"))","v":""},"2d","$AC$152","$AD$152"]
[27736,{"$f":"Menu!$F$29","v":"X"},{"$f":"Menu!$J$29","v":2020},{"$f":"IF(ISBLANK(INDIRECT(\"'\"&F8249&\"'!\"&G8249)),\"\",INDIRECT(\"'\"&F8249&\"'!\"&G8249))","v":""},{"$f":"IF(ISBLANK(INDIRECT(\"'\"&F8249&\"'!\"&H8249)),\"\",IFERROR(VLOOKUP(TEXT(INDIRECT(\"'\"&F8249&\"'!\"&H8249),\"0\"),Notes!$B$5:$C$100,2,FALSE),\"\"))","v":""},"2d","$AG$152","$AH$152"]
[27737,{"$f":"Menu!$F$29","v":"X"},{"$f":"Menu!$J$29","v":2020},{"$f":"IF(ISBLANK(INDIRECT(\"'\"&F8250&\"'!\"&G8250)),\"\",INDIRECT(\"'\"&F8250&\"'!\"&G8250))","v":""},{"$f":"IF(ISBLANK(INDIRECT(\"'\"&F8250&\"'!\"&H8250)),\"\",IFERROR(VLOOKUP(TEXT(INDIRECT(\"'\"&F8250&\"'!\"&H8250),\"0\"),Notes!$B$5:$C$100,2,FALSE),\"\"))","v":""},"2d","$AE$152","$AF$152"]
[27738,{"$f":"Menu!$F$29","v":"X"},{"$f":"Menu!$J$29","v":2020},{"$f":"IF(ISBLANK(INDIRECT(\"'\"&F8251&\"'!\"&G8251)),\"\",INDIRECT(\"'\"&F8251&\"'!\"&G8251))","v":""},{"$f":"IF(ISBLANK(INDIRECT(\"'\"&F8251&\"'!\"&H8251)),\"\",IFERROR(VLOOKUP(TEXT(INDIRECT(\"'\"&F8251&\"'!\"&H8251),\"0\"),Notes!$B$5:$C$100,2,FALSE),\"\"))","v":""},"2d","$W$152","$X$152"]
[27739,{"$f":"Menu!$F$29","v":"X"},{"$f":"Menu!$J$29","v":2020},{"$f":"IF(ISBLANK(INDIRECT(\"'\"&F8252&\"'!\"&G8252)),\"\",INDIRECT(\"'\"&F8252&\"'!\"&G8252))","v":""},{"$f":"IF(ISBLANK(INDIRECT(\"'\"&F8252&\"'!\"&H8252)),\"\",IFERROR(VLOOKUP(TEXT(INDIRECT(\"'\"&F8252&\"'!\"&H8252),\"0\"),Notes!$B$5:$C$100,2,FALSE),\"\"))","v":""},"2d","$AA$152","$AB$152"]
[27740,{"$f":"Menu!$F$29","v":"X"},{"$f":"Menu!$J$29","v":2020},{"$f":"IF(ISBLANK(INDIRECT(\"'\"&F8253&\"'!\"&G8253)),\"\",INDIRECT(\"'\"&F8253&\"'!\"&G8253))","v":""},{"$f":"IF(ISBLANK(INDIRECT(\"'\"&F8253&\"'!\"&H8253)),\"\",IFERROR(VLOOKUP(TEXT(INDIRECT(\"'\"&F8253&\"'!\"&H8253),\"0\"),Notes!$B$5:$C$100,2,FALSE),\"\"))","v":""},"2d","$Y$152","$Z$152"]
[27741,{"$f":"Menu!$F$29","v":"X"},{"$f":"Menu!$J$29","v":2020},{"$f":"IF(ISBLANK(INDIRECT(\"'\"&F8254&\"'!\"&G8254)),\"\",INDIRECT(\"'\"&F8254&\"'!\"&G8254))","v":""},{"$f":"IF(ISBLANK(INDIRECT(\"'\"&F8254&\"'!\"&H8254)),\"\",IFERROR(VLOOKUP(TEXT(INDIRECT(\"'\"&F8254&\"'!\"&H8254),\"0\"),Notes!$B$5:$C$100,2,FALSE),\"\"))","v":""},"2d","$E$152","$F$152"]
[27742,{"$f":"Menu!$F$29","v":"X"},{"$f":"Menu!$J$29","v":2020},{"$f":"IF(ISBLANK(INDIRECT(\"'\"&F8255&\"'!\"&G8255)),\"\",INDIRECT(\"'\"&F8255&\"'!\"&G8255))","v":""},{"$f":"IF(ISBLANK(INDIRECT(\"'\"&F8255&\"'!\"&H8255)),\"\",IFERROR(VLOOKUP(TEXT(INDIRECT(\"'\"&F8255&\"'!\"&H8255),\"0\"),Notes!$B$5:$C$100,2,FALSE),\"\"))","v":""},"2d","$I$152","$J$152"]
[27743,{"$f":"Menu!$F$29","v":"X"},{"$f":"Menu!$J$29","v":2020},{"$f":"IF(ISBLANK(INDIRECT(\"'\"&F8256&\"'!\"&G8256)),\"\",INDIRECT(\"'\"&F8256&\"'!\"&G8256))","v":""},{"$f":"IF(ISBLANK(INDIRECT(\"'\"&F8256&\"'!\"&H8256)),\"\",IFERROR(VLOOKUP(TEXT(INDIRECT(\"'\"&F8256&\"'!\"&H8256),\"0\"),Notes!$B$5:$C$100,2,FALSE),\"\"))","v":""},"2d","$G$152","$H$152"]
[27744,{"$f":"Menu!$F$29","v":"X"},{"$f":"Menu!$J$29","v":2020},{"$f":"IF(ISBLANK(INDIRECT(\"'\"&F8257&\"'!\"&G8257)),\"\",INDIRECT(\"'\"&F8257&\"'!\"&G8257))","v":""},{"$f":"IF(ISBLANK(INDIRECT(\"'\"&F8257&\"'!\"&H8257)),\"\",IFERROR(VLOOKUP(TEXT(INDIRECT(\"'\"&F8257&\"'!\"&H8257),\"0\"),Notes!$B$5:$C$100,2,FALSE),\"\"))","v":""},"2a","$Q$152","$R$152"]
[27745,{"$f":"Menu!$F$29","v":"X"},{"$f":"Menu!$J$29","v":2020},{"$f":"IF(ISBLANK(INDIRECT(\"'\"&F8258&\"'!\"&G8258)),\"\",INDIRECT(\"'\"&F8258&\"'!\"&G8258))","v":""},{"$f":"IF(ISBLANK(INDIRECT(\"'\"&F8258&\"'!\"&H8258)),\"\",IFERROR(VLOOKUP(TEXT(INDIRECT(\"'\"&F8258&\"'!\"&H8258),\"0\"),Notes!$B$5:$C$100,2,FALSE),\"\"))","v":""},"2a","$U$152",{"$f":"IF(LEN(TRIM(MID(G8258,4,10)))-LEN(SUBSTITUTE(TRIM(MID(G8258,4,10)),\"$\",\"\"))=0,\"$\"&CHAR(CODE(MID(G8258,2,1))+1)&\"$\"&TRIM(MID(G8258,4,10)),\"$\"&MID(G8258,2,1)&CHAR(CODE(MID(G8258,3,1))+1)&\"$\"&TRIM(MID(G8258,5,11)))","v":"$V$152"}]
[27746,{"$f":"Menu!$F$29","v":"X"},{"$f":"Menu!$J$29","v":2020},{"$f":"IF(ISBLANK(INDIRECT(\"'\"&F8259&\"'!\"&G8259)),\"\",INDIRECT(\"'\"&F8259&\"'!\"&G8259))","v":""},{"$f":"IF(ISBLANK(INDIRECT(\"'\"&F8259&\"'!\"&H8259)),\"\",IFERROR(VLOOKUP(TEXT(INDIRECT(\"'\"&F8259&\"'!\"&H8259),\"0\"),Notes!$B$5:$C$100,2,FALSE),\"\"))","v":""},"2a","$S$152","$T$152"]
[27747,{"$f":"Menu!$F$29","v":"X"},{"$f":"Menu!$J$29","v":2020},{"$f":"IF(ISBLANK(INDIRECT(\"'\"&F8260&\"'!\"&G8260)),\"\",INDIRECT(\"'\"&F8260&\"'!\"&G8260))","v":""},{"$f":"IF(ISBLANK(INDIRECT(\"'\"&F8260&\"'!\"&H8260)),\"\",IFERROR(VLOOKUP(TEXT(INDIRECT(\"'\"&F8260&\"'!\"&H8260),\"0\"),Notes!$B$5:$C$100,2,FALSE),\"\"))","v":""},"2d","$K$152","$L$152"]
[27748,{"$f":"Menu!$F$29","v":"X"},{"$f":"Menu!$J$29","v":2020},{"$f":"IF(ISBLANK(INDIRECT(\"'\"&F8261&\"'!\"&G8261)),\"\",INDIRECT(\"'\"&F8261&\"'!\"&G8261))","v":""},{"$f":"IF(ISBLANK(INDIRECT(\"'\"&F8261&\"'!\"&H8261)),\"\",IFERROR(VLOOKUP(TEXT(INDIRECT(\"'\"&F8261&\"'!\"&H8261),\"0\"),Notes!$B$5:$C$100,2,FALSE),\"\"))","v":""},"2d","$O$152","$P$152"]
[27749,{"$f":"Menu!$F$29","v":"X"},{"$f":"Menu!$J$29","v":2020},{"$f":"IF(ISBLANK(INDIRECT(\"'\"&F8262&\"'!\"&G8262)),\"\",INDIRECT(\"'\"&F8262&\"'!\"&G8262))","v":""},{"$f":"IF(ISBLANK(INDIRECT(\"'\"&F8262&\"'!\"&H8262)),\"\",IFERROR(VLOOKUP(TEXT(INDIRECT(\"'\"&F8262&\"'!\"&H8262),\"0\"),Notes!$B$5:$C$100,2,FALSE),\"\"))","v":""},"2d","$M$152","$N$152"]
[27750,{"$f":"Menu!$F$29","v":"X"},{"$f":"Menu!$J$29","v":2020},{"$f":"IF(ISBLANK(INDIRECT(\"'\"&F8263&\"'!\"&G8263)),\"\",INDIRECT(\"'\"&F8263&\"'!\"&G8263))","v":""},{"$f":"IF(ISBLANK(INDIRECT(\"'\"&F8263&\"'!\"&H8263)),\"\",IFERROR(VLOOKUP(TEXT(INDIRECT(\"'\"&F8263&\"'!\"&H8263),\"0\"),Notes!$B$5:$C$100,2,FALSE),\"\"))","v":""},"2d","$Q$152","$R$152"]
[27751,{"$f":"Menu!$F$29","v":"X"},{"$f":"Menu!$J$29","v":2020},{"$f":"IF(ISBLANK(INDIRECT(\"'\"&F8264&\"'!\"&G8264)),\"\",INDIRECT(\"'\"&F8264&\"'!\"&G8264))","v":""},{"$f":"IF(ISBLANK(INDIRECT(\"'\"&F8264&\"'!\"&H8264)),\"\",IFERROR(VLOOKUP(TEXT(INDIRECT(\"'\"&F8264&\"'!\"&H8264),\"0\"),Notes!$B$5:$C$100,2,FALSE),\"\"))","v":""},"2d","$U$152","$V$152"]
[27752,{"$f":"Menu!$F$29","v":"X"},{"$f":"Menu!$J$29","v":2020},{"$f":"IF(ISBLANK(INDIRECT(\"'\"&F8265&\"'!\"&G8265)),\"\",INDIRECT(\"'\"&F8265&\"'!\"&G8265))","v":""},{"$f":"IF(ISBLANK(INDIRECT(\"'\"&F8265&\"'!\"&H8265)),\"\",IFERROR(VLOOKUP(TEXT(INDIRECT(\"'\"&F8265&\"'!\"&H8265),\"0\"),Notes!$B$5:$C$100,2,FALSE),\"\"))","v":""},"2d","$S$152","$T$152"]
[27753,{"$f":"Menu!$F$29","v":"X"},{"$f":"Menu!$J$29","v":2020},{"$f":"IF(ISBLANK(INDIRECT(\"'\"&F8266&\"'!\"&G8266)),\"\",INDIRECT(\"'\"&F8266&\"'!\"&G8266))","v":""},{"$f":"IF(ISBLANK(INDIRECT(\"'\"&F8266&\"'!\"&H8266)),\"\",IFERROR(VLOOKUP(TEXT(INDIRECT(\"'\"&F8266&\"'!\"&H8266),\"0\"),Notes!$B$5:$C$100,2,FALSE),\"\"))","v":""},"2a","$K$152","$L$152"]
[27754,{"$f":"Menu!$F$29","v":"X"},{"$f":"Menu!$J$29","v":2020},{"$f":"IF(ISBLANK(INDIRECT(\"'\"&F8267&\"'!\"&G8267)),\"\",INDIRECT(\"'\"&F8267&\"'!\"&G8267))","v":""},{"$f":"IF(ISBLANK(INDIRECT(\"'\"&F8267&\"'!\"&H8267)),\"\",IFERROR(VLOOKUP(TEXT(INDIRECT(\"'\"&F8267&\"'!\"&H8267),\"0\"),Notes!$B$5:$C$100,2,FALSE),\"\"))","v":""},"2a","$O$152","$P$152"]
[27755,{"$f":"Menu!$F$29","v":"X"},{"$f":"Menu!$J$29","v":2020},{"$f":"IF(ISBLANK(INDIRECT(\"'\"&F8268&\"'!\"&G8268)),\"\",INDIRECT(\"'\"&F8268&\"'!\"&G8268))","v":""},{"$f":"IF(ISBLANK(INDIRECT(\"'\"&F8268&\"'!\"&H8268)),\"\",IFERROR(VLOOKUP(TEXT(INDIRECT(\"'\"&F8268&\"'!\"&H8268),\"0\"),Notes!$B$5:$C$100,2,FALSE),\"\"))","v":""},"2a","$M$152","$N$152"]
[27756,{"$f":"Menu!$F$29","v":"X"},{"$f":"Menu!$J$29","v":2020},{"$f":"IF(ISBLANK(INDIRECT(\"'\"&F8269&\"'!\"&G8269)),\"\",INDIRECT(\"'\"&F8269&\"'!\"&G8269))","v":""},null,"2a","$E$152","$F$152"]
[27757,{"$f":"Menu!$F$29","v":"X"},{"$f":"Menu!$J$29","v":2020},{"$f":"IF(ISBLANK(INDIRECT(\"'\"&F8270&\"'!\"&G8270)),\"\",INDIRECT(\"'\"&F8270&\"'!\"&G8270))","v":""},{"$f":"IF(ISBLANK(INDIRECT(\"'\"&F8270&\"'!\"&H8270)),\"\",IFERROR(VLOOKUP(TEXT(INDIRECT(\"'\"&F8270&\"'!\"&H8270),\"0\"),Notes!$B$5:$C$100,2,FALSE),\"\"))","v":""},"2b","$K$153","$L$153"]
[27758,{"$f":"Menu!$F$29","v":"X"},{"$f":"Menu!$J$29","v":2020},{"$f":"IF(ISBLANK(INDIRECT(\"'\"&F8271&\"'!\"&G8271)),\"\",INDIRECT(\"'\"&F8271&\"'!\"&G8271))","v":""},{"$f":"IF(ISBLANK(INDIRECT(\"'\"&F8271&\"'!\"&H8271)),\"\",IFERROR(VLOOKUP(TEXT(INDIRECT(\"'\"&F8271&\"'!\"&H8271),\"0\"),Notes!$B$5:$C$100,2,FALSE),\"\"))","v":""},"2b","$O$153","$P$153"]
[27759,{"$f":"Menu!$F$29","v":"X"},{"$f":"Menu!$J$29","v":2020},{"$f":"IF(ISBLANK(INDIRECT(\"'\"&F8272&\"'!\"&G8272)),\"\",INDIRECT(\"'\"&F8272&\"'!\"&G8272))","v":""},{"$f":"IF(ISBLANK(INDIRECT(\"'\"&F8272&\"'!\"&H8272)),\"\",IFERROR(VLOOKUP(TEXT(INDIRECT(\"'\"&F8272&\"'!\"&H8272),\"0\"),Notes!$B$5:$C$100,2,FALSE),\"\"))","v":""},"2b","$M$153","$N$153"]
[27760,{"$f":"Menu!$F$29","v":"X"},{"$f":"Menu!$J$29","v":2020},{"$f":"IF(ISBLANK(INDIRECT(\"'\"&F8273&\"'!\"&G8273)),\"\",INDIRECT(\"'\"&F8273&\"'!\"&G8273))","v":""},{"$f":"IF(ISBLANK(INDIRECT(\"'\"&F8273&\"'!\"&H8273)),\"\",IFERROR(VLOOKUP(TEXT(INDIRECT(\"'\"&F8273&\"'!\"&H8273),\"0\"),Notes!$B$5:$C$100,2,FALSE),\"\"))","v":""},"2b","$Q$153","$R$153"]
[27761,{"$f":"Menu!$F$29","v":"X"},{"$f":"Menu!$J$29","v":2020},{"$f":"IF(ISBLANK(INDIRECT(\"'\"&F8274&\"'!\"&G8274)),\"\",INDIRECT(\"'\"&F8274&\"'!\"&G8274))","v":""},{"$f":"IF(ISBLANK(INDIRECT(\"'\"&F8274&\"'!\"&H8274)),\"\",IFERROR(VLOOKUP(TEXT(INDIRECT(\"'\"&F8274&\"'!\"&H8274),\"0\"),Notes!$B$5:$C$100,2,FALSE),\"\"))","v":""},"2b","$U$153","$V$153"]
[27762,{"$f":"Menu!$F$29","v":"X"},{"$f":"Menu!$J$29","v":2020},{"$f":"IF(ISBLANK(INDIRECT(\"'\"&F8275&\"'!\"&G8275)),\"\",INDIRECT(\"'\"&F8275&\"'!\"&G8275))","v":""},{"$f":"IF(ISBLANK(INDIRECT(\"'\"&F8275&\"'!\"&H8275)),\"\",IFERROR(VLOOKUP(TEXT(INDIRECT(\"'\"&F8275&\"'!\"&H8275),\"0\"),Notes!$B$5:$C$100,2,FALSE),\"\"))","v":""},"2b","$S$153","$T$153"]
[27766,{"$f":"Menu!$F$29","v":"X"},{"$f":"Menu!$J$29","v":2020},{"$f":"IF(ISBLANK(INDIRECT(\"'\"&F8276&\"'!\"&G8276)),\"\",INDIRECT(\"'\"&F8276&\"'!\"&G8276))","v":""},{"$f":"IF(ISBLANK(INDIRECT(\"'\"&F8276&\"'!\"&H8276)),\"\",IFERROR(VLOOKUP(TEXT(INDIRECT(\"'\"&F8276&\"'!\"&H8276),\"0\"),Notes!$B$5:$C$100,2,FALSE),\"\"))","v":""},"2a","$I$153","$J$153"]
[27767,{"$f":"Menu!$F$29","v":"X"},{"$f":"Menu!$J$29","v":2020},{"$f":"IF(ISBLANK(INDIRECT(\"'\"&F8277&\"'!\"&G8277)),\"\",INDIRECT(\"'\"&F8277&\"'!\"&G8277))","v":""},{"$f":"IF(ISBLANK(INDIRECT(\"'\"&F8277&\"'!\"&H8277)),\"\",IFERROR(VLOOKUP(TEXT(INDIRECT(\"'\"&F8277&\"'!\"&H8277),\"0\"),Notes!$B$5:$C$100,2,FALSE),\"\"))","v":""},"2c","$E$153","$F$153"]
[27768,{"$f":"Menu!$F$29","v":"X"},{"$f":"Menu!$J$29","v":2020},{"$f":"IF(ISBLANK(INDIRECT(\"'\"&F8278&\"'!\"&G8278)),\"\",INDIRECT(\"'\"&F8278&\"'!\"&G8278))","v":""},{"$f":"IF(ISBLANK(INDIRECT(\"'\"&F8278&\"'!\"&H8278)),\"\",IFERROR(VLOOKUP(TEXT(INDIRECT(\"'\"&F8278&\"'!\"&H8278),\"0\"),Notes!$B$5:$C$100,2,FALSE),\"\"))","v":""},"2c","$I$153","$J$153"]
[27769,{"$f":"Menu!$F$29","v":"X"},{"$f":"Menu!$J$29","v":2020},{"$f":"IF(ISBLANK(INDIRECT(\"'\"&F8279&\"'!\"&G8279)),\"\",INDIRECT(\"'\"&F8279&\"'!\"&G8279))","v":""},{"$f":"IF(ISBLANK(INDIRECT(\"'\"&F8279&\"'!\"&H8279)),\"\",IFERROR(VLOOKUP(TEXT(INDIRECT(\"'\"&F8279&\"'!\"&H8279),\"0\"),Notes!$B$5:$C$100,2,FALSE),\"\"))","v":""},"2c","$G$153","$H$153"]
[27773,{"$f":"Menu!$F$29","v":"X"},{"$f":"Menu!$J$29","v":2020},{"$f":"IF(ISBLANK(INDIRECT(\"'\"&F8280&\"'!\"&G8280)),\"\",INDIRECT(\"'\"&F8280&\"'!\"&G8280))","v":""},{"$f":"IF(ISBLANK(INDIRECT(\"'\"&F8280&\"'!\"&H8280)),\"\",IFERROR(VLOOKUP(TEXT(INDIRECT(\"'\"&F8280&\"'!\"&H8280),\"0\"),Notes!$B$5:$C$100,2,FALSE),\"\"))","v":""},"2c","$K$153","$L$153"]
[27774,{"$f":"Menu!$F$29","v":"X"},{"$f":"Menu!$J$29","v":2020},{"$f":"IF(ISBLANK(INDIRECT(\"'\"&F8281&\"'!\"&G8281)),\"\",INDIRECT(\"'\"&F8281&\"'!\"&G8281))","v":""},{"$f":"IF(ISBLANK(INDIRECT(\"'\"&F8281&\"'!\"&H8281)),\"\",IFERROR(VLOOKUP(TEXT(INDIRECT(\"'\"&F8281&\"'!\"&H8281),\"0\"),Notes!$B$5:$C$100,2,FALSE),\"\"))","v":""},"2c","$O$153","$P$153"]
[27775,{"$f":"Menu!$F$29","v":"X"},{"$f":"Menu!$J$29","v":2020},{"$f":"IF(ISBLANK(INDIRECT(\"'\"&F8282&\"'!\"&G8282)),\"\",INDIRECT(\"'\"&F8282&\"'!\"&G8282))","v":""},{"$f":"IF(ISBLANK(INDIRECT(\"'\"&F8282&\"'!\"&H8282)),\"\",IFERROR(VLOOKUP(TEXT(INDIRECT(\"'\"&F8282&\"'!\"&H8282),\"0\"),Notes!$B$5:$C$100,2,FALSE),\"\"))","v":""},"2c","$M$153","$N$153"]
[27776,{"$f":"Menu!$F$29","v":"X"},{"$f":"Menu!$J$29","v":2020},{"$f":"IF(ISBLANK(INDIRECT(\"'\"&F8283&\"'!\"&G8283)),\"\",INDIRECT(\"'\"&F8283&\"'!\"&G8283))","v":""},{"$f":"IF(ISBLANK(INDIRECT(\"'\"&F8283&\"'!\"&H8283)),\"\",IFERROR(VLOOKUP(TEXT(INDIRECT(\"'\"&F8283&\"'!\"&H8283),\"0\"),Notes!$B$5:$C$100,2,FALSE),\"\"))","v":""},"2c","$Q$153","$R$153"]
[27777,{"$f":"Menu!$F$29","v":"X"},{"$f":"Menu!$J$29","v":2020},{"$f":"IF(ISBLANK(INDIRECT(\"'\"&F8284&\"'!\"&G8284)),\"\",INDIRECT(\"'\"&F8284&\"'!\"&G8284))","v":""},{"$f":"IF(ISBLANK(INDIRECT(\"'\"&F8284&\"'!\"&H8284)),\"\",IFERROR(VLOOKUP(TEXT(INDIRECT(\"'\"&F8284&\"'!\"&H8284),\"0\"),Notes!$B$5:$C$100,2,FALSE),\"\"))","v":""},"2c","$U$153","$V$153"]
[27778,{"$f":"Menu!$F$29","v":"X"},{"$f":"Menu!$J$29","v":2020},{"$f":"IF(ISBLANK(INDIRECT(\"'\"&F8285&\"'!\"&G8285)),\"\",INDIRECT(\"'\"&F8285&\"'!\"&G8285))","v":""},{"$f":"IF(ISBLANK(INDIRECT(\"'\"&F8285&\"'!\"&H8285)),\"\",IFERROR(VLOOKUP(TEXT(INDIRECT(\"'\"&F8285&\"'!\"&H8285),\"0\"),Notes!$B$5:$C$100,2,FALSE),\"\"))","v":""},"2c","$S$153","$T$153"]
[27779,{"$f":"Menu!$F$29","v":"X"},{"$f":"Menu!$J$29","v":2020},{"$f":"IF(ISBLANK(INDIRECT(\"'\"&F8286&\"'!\"&G8286)),\"\",INDIRECT(\"'\"&F8286&\"'!\"&G8286))","v":""},{"$f":"IF(ISBLANK(INDIRECT(\"'\"&F8286&\"'!\"&H8286)),\"\",IFERROR(VLOOKUP(TEXT(INDIRECT(\"'\"&F8286&\"'!\"&H8286),\"0\"),Notes!$B$5:$C$100,2,FALSE),\"\"))","v":""},"2c","$W$153","$X$153"]
[27780,{"$f":"Menu!$F$29","v":"X"},{"$f":"Menu!$J$29","v":2020},{"$f":"IF(ISBLANK(INDIRECT(\"'\"&F8287&\"'!\"&G8287)),\"\",INDIRECT(\"'\"&F8287&\"'!\"&G8287))","v":""},{"$f":"IF(ISBLANK(INDIRECT(\"'\"&F8287&\"'!\"&H8287)),\"\",IFERROR(VLOOKUP(TEXT(INDIRECT(\"'\"&F8287&\"'!\"&H8287),\"0\"),Notes!$B$5:$C$100,2,FALSE),\"\"))","v":""},"2c","$AA$153","$AB$153"]
[27781,{"$f":"Menu!$F$29","v":"X"},{"$f":"Menu!$J$29","v":2020},{"$f":"IF(ISBLANK(INDIRECT(\"'\"&F8288&\"'!\"&G8288)),\"\",INDIRECT(\"'\"&F8288&\"'!\"&G8288))","v":""},{"$f":"IF(ISBLANK(INDIRECT(\"'\"&F8288&\"'!\"&H8288)),\"\",IFERROR(VLOOKUP(TEXT(INDIRECT(\"'\"&F8288&\"'!\"&H8288),\"0\"),Notes!$B$5:$C$100,2,FALSE),\"\"))","v":""},"2c","$Y$153","$Z$153"]
[27788,{"$f":"Menu!$F$29","v":"X"},{"$f":"Menu!$J$29","v":2020},{"$f":"IF(ISBLANK(INDIRECT(\"'\"&F8289&\"'!\"&G8289)),\"\",INDIRECT(\"'\"&F8289&\"'!\"&G8289))","v":""},{"$f":"IF(ISBLANK(INDIRECT(\"'\"&F8289&\"'!\"&H8289)),\"\",IFERROR(VLOOKUP(TEXT(INDIRECT(\"'\"&F8289&\"'!\"&H8289),\"0\"),Notes!$B$5:$C$100,2,FALSE),\"\"))","v":""},"2e","$BG$154","$BH$154"]
[27789,{"$f":"Menu!$F$29","v":"X"},{"$f":"Menu!$J$29","v":2020},{"$f":"IF(ISBLANK(INDIRECT(\"'\"&F8290&\"'!\"&G8290)),\"\",INDIRECT(\"'\"&F8290&\"'!\"&G8290))","v":""},{"$f":"IF(ISBLANK(INDIRECT(\"'\"&F8290&\"'!\"&H8290)),\"\",IFERROR(VLOOKUP(TEXT(INDIRECT(\"'\"&F8290&\"'!\"&H8290),\"0\"),Notes!$B$5:$C$100,2,FALSE),\"\"))","v":""},"2e","$BK$154","$BL$154"]
[27790,{"$f":"Menu!$F$29","v":"X"},{"$f":"Menu!$J$29","v":2020},{"$f":"IF(ISBLANK(INDIRECT(\"'\"&F8291&\"'!\"&G8291)),\"\",INDIRECT(\"'\"&F8291&\"'!\"&G8291))","v":""},{"$f":"IF(ISBLANK(INDIRECT(\"'\"&F8291&\"'!\"&H8291)),\"\",IFERROR(VLOOKUP(TEXT(INDIRECT(\"'\"&F8291&\"'!\"&H8291),\"0\"),Notes!$B$5:$C$100,2,FALSE),\"\"))","v":""},"2e","$BI$154","$BJ$154"]
[27791,{"$f":"Menu!$F$29","v":"X"},{"$f":"Menu!$J$29","v":2020},{"$f":"IF(ISBLANK(INDIRECT(\"'\"&F8292&\"'!\"&G8292)),\"\",INDIRECT(\"'\"&F8292&\"'!\"&G8292))","v":""},{"$f":"IF(ISBLANK(INDIRECT(\"'\"&F8292&\"'!\"&H8292)),\"\",IFERROR(VLOOKUP(TEXT(INDIRECT(\"'\"&F8292&\"'!\"&H8292),\"0\"),Notes!$B$5:$C$100,2,FALSE),\"\"))","v":""},"2e","$E$154","$F$154"]
[27792,{"$f":"Menu!$F$29","v":"X"},{"$f":"Menu!$J$29","v":2020},{"$f":"IF(ISBLANK(INDIRECT(\"'\"&F8293&\"'!\"&G8293)),\"\",INDIRECT(\"'\"&F8293&\"'!\"&G8293))","v":""},{"$f":"IF(ISBLANK(INDIRECT(\"'\"&F8293&\"'!\"&H8293)),\"\",IFERROR(VLOOKUP(TEXT(INDIRECT(\"'\"&F8293&\"'!\"&H8293),\"0\"),Notes!$B$5:$C$100,2,FALSE),\"\"))","v":""},"2e","$I$154","$J$154"]
[27793,{"$f":"Menu!$F$29","v":"X"},{"$f":"Menu!$J$29","v":2020},{"$f":"IF(ISBLANK(INDIRECT(\"'\"&F8294&\"'!\"&G8294)),\"\",INDIRECT(\"'\"&F8294&\"'!\"&G8294))","v":""},{"$f":"IF(ISBLANK(INDIRECT(\"'\"&F8294&\"'!\"&H8294)),\"\",IFERROR(VLOOKUP(TEXT(INDIRECT(\"'\"&F8294&\"'!\"&H8294),\"0\"),Notes!$B$5:$C$100,2,FALSE),\"\"))","v":""},"2e","$G$154","$H$154"]
[27794,{"$f":"Menu!$F$29","v":"X"},{"$f":"Menu!$J$29","v":2020},{"$f":"IF(ISBLANK(INDIRECT(\"'\"&F8295&\"'!\"&G8295)),\"\",INDIRECT(\"'\"&F8295&\"'!\"&G8295))","v":""},{"$f":"IF(ISBLANK(INDIRECT(\"'\"&F8295&\"'!\"&H8295)),\"\",IFERROR(VLOOKUP(TEXT(INDIRECT(\"'\"&F8295&\"'!\"&H8295),\"0\"),Notes!$B$5:$C$100,2,FALSE),\"\"))","v":""},"2e","$K$154","$L$154"]
[27795,{"$f":"Menu!$F$29","v":"X"},{"$f":"Menu!$J$29","v":2020},{"$f":"IF(ISBLANK(INDIRECT(\"'\"&F8296&\"'!\"&G8296)),\"\",INDIRECT(\"'\"&F8296&\"'!\"&G8296))","v":""},{"$f":"IF(ISBLANK(INDIRECT(\"'\"&F8296&\"'!\"&H8296)),\"\",IFERROR(VLOOKUP(TEXT(INDIRECT(\"'\"&F8296&\"'!\"&H8296),\"0\"),Notes!$B$5:$C$100,2,FALSE),\"\"))","v":""},"2e","$O$154","$P$154"]
[27796,{"$f":"Menu!$F$29","v":"X"},{"$f":"Menu!$J$29","v":2020},{"$f":"IF(ISBLANK(INDIRECT(\"'\"&F8297&\"'!\"&G8297)),\"\",INDIRECT(\"'\"&F8297&\"'!\"&G8297))","v":""},{"$f":"IF(ISBLANK(INDIRECT(\"'\"&F8297&\"'!\"&H8297)),\"\",IFERROR(VLOOKUP(TEXT(INDIRECT(\"'\"&F8297&\"'!\"&H8297),\"0\"),Notes!$B$5:$C$100,2,FALSE),\"\"))","v":""},"2e","$M$154","$N$154"]
[27797,{"$f":"Menu!$F$29","v":"X"},{"$f":"Menu!$J$29","v":2020},{"$f":"IF(ISBLANK(INDIRECT(\"'\"&F8298&\"'!\"&G8298)),\"\",INDIRECT(\"'\"&F8298&\"'!\"&G8298))","v":""},{"$f":"IF(ISBLANK(INDIRECT(\"'\"&F8298&\"'!\"&H8298)),\"\",IFERROR(VLOOKUP(TEXT(INDIRECT(\"'\"&F8298&\"'!\"&H8298),\"0\"),Notes!$B$5:$C$100,2,FALSE),\"\"))","v":""},"2e","$Q$154","$R$154"]
[27798,{"$f":"Menu!$F$29","v":"X"},{"$f":"Menu!$J$29","v":2020},{"$f":"IF(ISBLANK(INDIRECT(\"'\"&F8299&\"'!\"&G8299)),\"\",INDIRECT(\"'\"&F8299&\"'!\"&G8299))","v":""},{"$f":"IF(ISBLANK(INDIRECT(\"'\"&F8299&\"'!\"&H8299)),\"\",IFERROR(VLOOKUP(TEXT(INDIRECT(\"'\"&F8299&\"'!\"&H8299),\"0\"),Notes!$B$5:$C$100,2,FALSE),\"\"))","v":""},"2e","$U$154","$V$154"]
[27799,{"$f":"Menu!$F$29","v":"X"},{"$f":"Menu!$J$29","v":2020},{"$f":"IF(ISBLANK(INDIRECT(\"'\"&F8300&\"'!\"&G8300)),\"\",INDIRECT(\"'\"&F8300&\"'!\"&G8300))","v":""},{"$f":"IF(ISBLANK(INDIRECT(\"'\"&F8300&\"'!\"&H8300)),\"\",IFERROR(VLOOKUP(TEXT(INDIRECT(\"'\"&F8300&\"'!\"&H8300),\"0\"),Notes!$B$5:$C$100,2,FALSE),\"\"))","v":""},"2e","$S$154","$T$154"]
[27800,{"$f":"Menu!$F$29","v":"X"},{"$f":"Menu!$J$29","v":2020},{"$f":"IF(ISBLANK(INDIRECT(\"'\"&F8301&\"'!\"&G8301)),\"\",INDIRECT(\"'\"&F8301&\"'!\"&G8301))","v":""},{"$f":"IF(ISBLANK(INDIRECT(\"'\"&F8301&\"'!\"&H8301)),\"\",IFERROR(VLOOKUP(TEXT(INDIRECT(\"'\"&F8301&\"'!\"&H8301),\"0\"),Notes!$B$5:$C$100,2,FALSE),\"\"))","v":""},"2e","$W$154","$X$154"]
[27801,{"$f":"Menu!$F$29","v":"X"},{"$f":"Menu!$J$29","v":2020},{"$f":"IF(ISBLANK(INDIRECT(\"'\"&F8302&\"'!\"&G8302)),\"\",INDIRECT(\"'\"&F8302&\"'!\"&G8302))","v":""},{"$f":"IF(ISBLANK(INDIRECT(\"'\"&F8302&\"'!\"&H8302)),\"\",IFERROR(VLOOKUP(TEXT(INDIRECT(\"'\"&F8302&\"'!\"&H8302),\"0\"),Notes!$B$5:$C$100,2,FALSE),\"\"))","v":""},"2e","$AA$154","$AB$154"]
[27802,{"$f":"Menu!$F$29","v":"X"},{"$f":"Menu!$J$29","v":2020},{"$f":"IF(ISBLANK(INDIRECT(\"'\"&F8303&\"'!\"&G8303)),\"\",INDIRECT(\"'\"&F8303&\"'!\"&G8303))","v":""},{"$f":"IF(ISBLANK(INDIRECT(\"'\"&F8303&\"'!\"&H8303)),\"\",IFERROR(VLOOKUP(TEXT(INDIRECT(\"'\"&F8303&\"'!\"&H8303),\"0\"),Notes!$B$5:$C$100,2,FALSE),\"\"))","v":""},"2e","$Y$154","$Z$154"]
[27803,{"$f":"Menu!$F$29","v":"X"},{"$f":"Menu!$J$29","v":2020},{"$f":"IF(ISBLANK(INDIRECT(\"'\"&F8304&\"'!\"&G8304)),\"\",INDIRECT(\"'\"&F8304&\"'!\"&G8304))","v":""},{"$f":"IF(ISBLANK(INDIRECT(\"'\"&F8304&\"'!\"&H8304)),\"\",IFERROR(VLOOKUP(TEXT(INDIRECT(\"'\"&F8304&\"'!\"&H8304),\"0\"),Notes!$B$5:$C$100,2,FALSE),\"\"))","v":""},"2e","$AC$154","$AD$154"]
[27804,{"$f":"Menu!$F$29","v":"X"},{"$f":"Menu!$J$29","v":2020},{"$f":"IF(ISBLANK(INDIRECT(\"'\"&F8305&\"'!\"&G8305)),\"\",INDIRECT(\"'\"&F8305&\"'!\"&G8305))","v":""},{"$f":"IF(ISBLANK(INDIRECT(\"'\"&F8305&\"'!\"&H8305)),\"\",IFERROR(VLOOKUP(TEXT(INDIRECT(\"'\"&F8305&\"'!\"&H8305),\"0\"),Notes!$B$5:$C$100,2,FALSE),\"\"))","v":""},"2e","$AG$154","$AH$154"]
[27805,{"$f":"Menu!$F$29","v":"X"},{"$f":"Menu!$J$29","v":2020},{"$f":"IF(ISBLANK(INDIRECT(\"'\"&F8306&\"'!\"&G8306)),\"\",INDIRECT(\"'\"&F8306&\"'!\"&G8306))","v":""},{"$f":"IF(ISBLANK(INDIRECT(\"'\"&F8306&\"'!\"&H8306)),\"\",IFERROR(VLOOKUP(TEXT(INDIRECT(\"'\"&F8306&\"'!\"&H8306),\"0\"),Notes!$B$5:$C$100,2,FALSE),\"\"))","v":""},"2e","$AE$154","$AF$154"]
[27806,{"$f":"Menu!$F$29","v":"X"},{"$f":"Menu!$J$29","v":2020},{"$f":"IF(ISBLANK(INDIRECT(\"'\"&F8307&\"'!\"&G8307)),\"\",INDIRECT(\"'\"&F8307&\"'!\"&G8307))","v":""},{"$f":"IF(ISBLANK(INDIRECT(\"'\"&F8307&\"'!\"&H8307)),\"\",IFERROR(VLOOKUP(TEXT(INDIRECT(\"'\"&F8307&\"'!\"&H8307),\"0\"),Notes!$B$5:$C$100,2,FALSE),\"\"))","v":""},"2e","$AI$154","$AJ$154"]
[27807,{"$f":"Menu!$F$29","v":"X"},{"$f":"Menu!$J$29","v":2020},{"$f":"IF(ISBLANK(INDIRECT(\"'\"&F8308&\"'!\"&G8308)),\"\",INDIRECT(\"'\"&F8308&\"'!\"&G8308))","v":""},{"$f":"IF(ISBLANK(INDIRECT(\"'\"&F8308&\"'!\"&H8308)),\"\",IFERROR(VLOOKUP(TEXT(INDIRECT(\"'\"&F8308&\"'!\"&H8308),\"0\"),Notes!$B$5:$C$100,2,FALSE),\"\"))","v":""},"2e","$AM$154","$AN$154"]
[27808,{"$f":"Menu!$F$29","v":"X"},{"$f":"Menu!$J$29","v":2020},{"$f":"IF(ISBLANK(INDIRECT(\"'\"&F8309&\"'!\"&G8309)),\"\",INDIRECT(\"'\"&F8309&\"'!\"&G8309))","v":""},{"$f":"IF(ISBLANK(INDIRECT(\"'\"&F8309&\"'!\"&H8309)),\"\",IFERROR(VLOOKUP(TEXT(INDIRECT(\"'\"&F8309&\"'!\"&H8309),\"0\"),Notes!$B$5:$C$100,2,FALSE),\"\"))","v":""},"2e","$AK$154","$AL$154"]
[27809,{"$f":"Menu!$F$29","v":"X"},{"$f":"Menu!$J$29","v":2020},{"$f":"IF(ISBLANK(INDIRECT(\"'\"&F8310&\"'!\"&G8310)),\"\",INDIRECT(\"'\"&F8310&\"'!\"&G8310))","v":""},{"$f":"IF(ISBLANK(INDIRECT(\"'\"&F8310&\"'!\"&H8310)),\"\",IFERROR(VLOOKUP(TEXT(INDIRECT(\"'\"&F8310&\"'!\"&H8310),\"0\"),Notes!$B$5:$C$100,2,FALSE),\"\"))","v":""},"2e","$AO$154","$AP$154"]
[27810,{"$f":"Menu!$F$29","v":"X"},{"$f":"Menu!$J$29","v":2020},{"$f":"IF(ISBLANK(INDIRECT(\"'\"&F8311&\"'!\"&G8311)),\"\",INDIRECT(\"'\"&F8311&\"'!\"&G8311))","v":""},{"$f":"IF(ISBLANK(INDIRECT(\"'\"&F8311&\"'!\"&H8311)),\"\",IFERROR(VLOOKUP(TEXT(INDIRECT(\"'\"&F8311&\"'!\"&H8311),\"0\"),Notes!$B$5:$C$100,2,FALSE),\"\"))","v":""},"2e","$AS$154","$AT$154"]
[27811,{"$f":"Menu!$F$29","v":"X"},{"$f":"Menu!$J$29","v":2020},{"$f":"IF(ISBLANK(INDIRECT(\"'\"&F8312&\"'!\"&G8312)),\"\",INDIRECT(\"'\"&F8312&\"'!\"&G8312))","v":""},{"$f":"IF(ISBLANK(INDIRECT(\"'\"&F8312&\"'!\"&H8312)),\"\",IFERROR(VLOOKUP(TEXT(INDIRECT(\"'\"&F8312&\"'!\"&H8312),\"0\"),Notes!$B$5:$C$100,2,FALSE),\"\"))","v":""},"2e","$AQ$154","$AR$154"]
[27812,{"$f":"Menu!$F$29","v":"X"},{"$f":"Menu!$J$29","v":2020},{"$f":"IF(ISBLANK(INDIRECT(\"'\"&F8313&\"'!\"&G8313)),\"\",INDIRECT(\"'\"&F8313&\"'!\"&G8313))","v":""},{"$f":"IF(ISBLANK(INDIRECT(\"'\"&F8313&\"'!\"&H8313)),\"\",IFERROR(VLOOKUP(TEXT(INDIRECT(\"'\"&F8313&\"'!\"&H8313),\"0\"),Notes!$B$5:$C$100,2,FALSE),\"\"))","v":""},"2e","$AU$154","$AV$154"]
[27813,{"$f":"Menu!$F$29","v":"X"},{"$f":"Menu!$J$29","v":2020},{"$f":"IF(ISBLANK(INDIRECT(\"'\"&F8314&\"'!\"&G8314)),\"\",INDIRECT(\"'\"&F8314&\"'!\"&G8314))","v":""},{"$f":"IF(ISBLANK(INDIRECT(\"'\"&F8314&\"'!\"&H8314)),\"\",IFERROR(VLOOKUP(TEXT(INDIRECT(\"'\"&F8314&\"'!\"&H8314),\"0\"),Notes!$B$5:$C$100,2,FALSE),\"\"))","v":""},"2e","$AY$154","$AZ$154"]
[27814,{"$f":"Menu!$F$29","v":"X"},{"$f":"Menu!$J$29","v":2020},{"$f":"IF(ISBLANK(INDIRECT(\"'\"&F8315&\"'!\"&G8315)),\"\",INDIRECT(\"'\"&F8315&\"'!\"&G8315))","v":""},{"$f":"IF(ISBLANK(INDIRECT(\"'\"&F8315&\"'!\"&H8315)),\"\",IFERROR(VLOOKUP(TEXT(INDIRECT(\"'\"&F8315&\"'!\"&H8315),\"0\"),Notes!$B$5:$C$100,2,FALSE),\"\"))","v":""},"2e","$AW$154","$AX$154"]
[27815,{"$f":"Menu!$F$29","v":"X"},{"$f":"Menu!$J$29","v":2020},{"$f":"IF(ISBLANK(INDIRECT(\"'\"&F8316&\"'!\"&G8316)),\"\",INDIRECT(\"'\"&F8316&\"'!\"&G8316))","v":""},{"$f":"IF(ISBLANK(INDIRECT(\"'\"&F8316&\"'!\"&H8316)),\"\",IFERROR(VLOOKUP(TEXT(INDIRECT(\"'\"&F8316&\"'!\"&H8316),\"0\"),Notes!$B$5:$C$100,2,FALSE),\"\"))","v":""},"2e","$BA$154","$BB$154"]
[27816,{"$f":"Menu!$F$29","v":"X"},{"$f":"Menu!$J$29","v":2020},{"$f":"IF(ISBLANK(INDIRECT(\"'\"&F8317&\"'!\"&G8317)),\"\",INDIRECT(\"'\"&F8317&\"'!\"&G8317))","v":""},{"$f":"IF(ISBLANK(INDIRECT(\"'\"&F8317&\"'!\"&H8317)),\"\",IFERROR(VLOOKUP(TEXT(INDIRECT(\"'\"&F8317&\"'!\"&H8317),\"0\"),Notes!$B$5:$C$100,2,FALSE),\"\"))","v":""},"2e","$BE$154","$BF$154"]
[27817,{"$f":"Menu!$F$29","v":"X"},{"$f":"Menu!$J$29","v":2020},{"$f":"IF(ISBLANK(INDIRECT(\"'\"&F8318&\"'!\"&G8318)),\"\",INDIRECT(\"'\"&F8318&\"'!\"&G8318))","v":""},{"$f":"IF(ISBLANK(INDIRECT(\"'\"&F8318&\"'!\"&H8318)),\"\",IFERROR(VLOOKUP(TEXT(INDIRECT(\"'\"&F8318&\"'!\"&H8318),\"0\"),Notes!$B$5:$C$100,2,FALSE),\"\"))","v":""},"2e","$BC$154","$BD$154"]
[27818,{"$f":"Menu!$F$29","v":"X"},{"$f":"Menu!$J$29","v":2020},{"$f":"IF(ISBLANK(INDIRECT(\"'\"&F8319&\"'!\"&G8319)),\"\",INDIRECT(\"'\"&F8319&\"'!\"&G8319))","v":""},{"$f":"IF(ISBLANK(INDIRECT(\"'\"&F8319&\"'!\"&H8319)),\"\",IFERROR(VLOOKUP(TEXT(INDIRECT(\"'\"&F8319&\"'!\"&H8319),\"0\"),Notes!$B$5:$C$100,2,FALSE),\"\"))","v":""},"2b","$E$153","$F$153"]
[27819,{"$f":"Menu!$F$29","v":"X"},{"$f":"Menu!$J$29","v":2020},{"$f":"IF(ISBLANK(INDIRECT(\"'\"&F8320&\"'!\"&G8320)),\"\",INDIRECT(\"'\"&F8320&\"'!\"&G8320))","v":""},{"$f":"IF(ISBLANK(INDIRECT(\"'\"&F8320&\"'!\"&H8320)),\"\",IFERROR(VLOOKUP(TEXT(INDIRECT(\"'\"&F8320&\"'!\"&H8320),\"0\"),Notes!$B$5:$C$100,2,FALSE),\"\"))","v":""},"2b","$I$153","$J$153"]
[27820,{"$f":"Menu!$F$29","v":"X"},{"$f":"Menu!$J$29","v":2020},{"$f":"IF(ISBLANK(INDIRECT(\"'\"&F8321&\"'!\"&G8321)),\"\",INDIRECT(\"'\"&F8321&\"'!\"&G8321))","v":""},{"$f":"IF(ISBLANK(INDIRECT(\"'\"&F8321&\"'!\"&H8321)),\"\",IFERROR(VLOOKUP(TEXT(INDIRECT(\"'\"&F8321&\"'!\"&H8321),\"0\"),Notes!$B$5:$C$100,2,FALSE),\"\"))","v":""},"2b","$G$153","$H$153"]
[27821,{"$f":"Menu!$F$29","v":"X"},{"$f":"Menu!$J$29","v":2020},{"$f":"IF(ISBLANK(INDIRECT(\"'\"&F8322&\"'!\"&G8322)),\"\",INDIRECT(\"'\"&F8322&\"'!\"&G8322))","v":""},null,"2a","$G$153",{"$f":"IF(LEN(TRIM(MID(G8322,4,10)))-LEN(SUBSTITUTE(TRIM(MID(G8322,4,10)),\"$\",\"\"))=0,\"$\"&CHAR(CODE(MID(G8322,2,1))+1)&\"$\"&TRIM(MID(G8322,4,10)),\"$\"&MID(G8322,2,1)&CHAR(CODE(MID(G8322,3,1))+1)&\"$\"&TRIM(MID(G8322,5,11)))","v":"$H$153"}]
[27822,{"$f":"Menu!$F$29","v":"X"},{"$f":"Menu!$J$29","v":2020},{"$f":"IF(ISBLANK(INDIRECT(\"'\"&F8323&\"'!\"&G8323)),\"\",INDIRECT(\"'\"&F8323&\"'!\"&G8323))","v":""},{"$f":"IF(ISBLANK(INDIRECT(\"'\"&F8323&\"'!\"&H8323)),\"\",IFERROR(VLOOKUP(TEXT(INDIRECT(\"'\"&F8323&\"'!\"&H8323),\"0\"),Notes!$B$5:$C$100,2,FALSE),\"\"))","v":""},"2b","$W$153","$X$153"]
[27823,{"$f":"Menu!$F$29","v":"X"},{"$f":"Menu!$J$29","v":2020},{"$f":"IF(ISBLANK(INDIRECT(\"'\"&F8324&\"'!\"&G8324)),\"\",INDIRECT(\"'\"&F8324&\"'!\"&G8324))","v":""},{"$f":"IF(ISBLANK(INDIRECT(\"'\"&F8324&\"'!\"&H8324)),\"\",IFERROR(VLOOKUP(TEXT(INDIRECT(\"'\"&F8324&\"'!\"&H8324),\"0\"),Notes!$B$5:$C$100,2,FALSE),\"\"))","v":""},"2b","$AA$153","$AB$153"]
[27824,{"$f":"Menu!$F$29","v":"X"},{"$f":"Menu!$J$29","v":2020},{"$f":"IF(ISBLANK(INDIRECT(\"'\"&F8325&\"'!\"&G8325)),\"\",INDIRECT(\"'\"&F8325&\"'!\"&G8325))","v":""},{"$f":"IF(ISBLANK(INDIRECT(\"'\"&F8325&\"'!\"&H8325)),\"\",IFERROR(VLOOKUP(TEXT(INDIRECT(\"'\"&F8325&\"'!\"&H8325),\"0\"),Notes!$B$5:$C$100,2,FALSE),\"\"))","v":""},"2b","$Y$153","$Z$153"]
[27825,{"$f":"Menu!$F$29","v":"X"},{"$f":"Menu!$J$29","v":2020},{"$f":"IF(ISBLANK(INDIRECT(\"'\"&F8326&\"'!\"&G8326)),\"\",INDIRECT(\"'\"&F8326&\"'!\"&G8326))","v":""},{"$f":"IF(ISBLANK(INDIRECT(\"'\"&F8326&\"'!\"&H8326)),\"\",IFERROR(VLOOKUP(TEXT(INDIRECT(\"'\"&F8326&\"'!\"&H8326),\"0\"),Notes!$B$5:$C$100,2,FALSE),\"\"))","v":""},"2d","$AC$153","$AD$153"]
[27826,{"$f":"Menu!$F$29","v":"X"},{"$f":"Menu!$J$29","v":2020},{"$f":"IF(ISBLANK(INDIRECT(\"'\"&F8327&\"'!\"&G8327)),\"\",INDIRECT(\"'\"&F8327&\"'!\"&G8327))","v":""},{"$f":"IF(ISBLANK(INDIRECT(\"'\"&F8327&\"'!\"&H8327)),\"\",IFERROR(VLOOKUP(TEXT(INDIRECT(\"'\"&F8327&\"'!\"&H8327),\"0\"),Notes!$B$5:$C$100,2,FALSE),\"\"))","v":""},"2d","$AG$153","$AH$153"]
[27827,{"$f":"Menu!$F$29","v":"X"},{"$f":"Menu!$J$29","v":2020},{"$f":"IF(ISBLANK(INDIRECT(\"'\"&F8328&\"'!\"&G8328)),\"\",INDIRECT(\"'\"&F8328&\"'!\"&G8328))","v":""},{"$f":"IF(ISBLANK(INDIRECT(\"'\"&F8328&\"'!\"&H8328)),\"\",IFERROR(VLOOKUP(TEXT(INDIRECT(\"'\"&F8328&\"'!\"&H8328),\"0\"),Notes!$B$5:$C$100,2,FALSE),\"\"))","v":""},"2d","$AE$153","$AF$153"]
[27828,{"$f":"Menu!$F$29","v":"X"},{"$f":"Menu!$J$29","v":2020},{"$f":"IF(ISBLANK(INDIRECT(\"'\"&F8329&\"'!\"&G8329)),\"\",INDIRECT(\"'\"&F8329&\"'!\"&G8329))","v":""},{"$f":"IF(ISBLANK(INDIRECT(\"'\"&F8329&\"'!\"&H8329)),\"\",IFERROR(VLOOKUP(TEXT(INDIRECT(\"'\"&F8329&\"'!\"&H8329),\"0\"),Notes!$B$5:$C$100,2,FALSE),\"\"))","v":""},"2d","$W$153","$X$153"]
[27829,{"$f":"Menu!$F$29","v":"X"},{"$f":"Menu!$J$29","v":2020},{"$f":"IF(ISBLANK(INDIRECT(\"'\"&F8330&\"'!\"&G8330)),\"\",INDIRECT(\"'\"&F8330&\"'!\"&G8330))","v":""},{"$f":"IF(ISBLANK(INDIRECT(\"'\"&F8330&\"'!\"&H8330)),\"\",IFERROR(VLOOKUP(TEXT(INDIRECT(\"'\"&F8330&\"'!\"&H8330),\"0\"),Notes!$B$5:$C$100,2,FALSE),\"\"))","v":""},"2d","$AA$153","$AB$153"]
[27830,{"$f":"Menu!$F$29","v":"X"},{"$f":"Menu!$J$29","v":2020},{"$f":"IF(ISBLANK(INDIRECT(\"'\"&F8331&\"'!\"&G8331)),\"\",INDIRECT(\"'\"&F8331&\"'!\"&G8331))","v":""},{"$f":"IF(ISBLANK(INDIRECT(\"'\"&F8331&\"'!\"&H8331)),\"\",IFERROR(VLOOKUP(TEXT(INDIRECT(\"'\"&F8331&\"'!\"&H8331),\"0\"),Notes!$B$5:$C$100,2,FALSE),\"\"))","v":""},"2d","$Y$153","$Z$153"]
[27831,{"$f":"Menu!$F$29","v":"X"},{"$f":"Menu!$J$29","v":2020},{"$f":"IF(ISBLANK(INDIRECT(\"'\"&F8332&\"'!\"&G8332)),\"\",INDIRECT(\"'\"&F8332&\"'!\"&G8332))","v":""},{"$f":"IF(ISBLANK(INDIRECT(\"'\"&F8332&\"'!\"&H8332)),\"\",IFERROR(VLOOKUP(TEXT(INDIRECT(\"'\"&F8332&\"'!\"&H8332),\"0\"),Notes!$B$5:$C$100,2,FALSE),\"\"))","v":""},"2d","$E$153","$F$153"]
[27832,{"$f":"Menu!$F$29","v":"X"},{"$f":"Menu!$J$29","v":2020},{"$f":"IF(ISBLANK(INDIRECT(\"'\"&F8333&\"'!\"&G8333)),\"\",INDIRECT(\"'\"&F8333&\"'!\"&G8333))","v":""},{"$f":"IF(ISBLANK(INDIRECT(\"'\"&F8333&\"'!\"&H8333)),\"\",IFERROR(VLOOKUP(TEXT(INDIRECT(\"'\"&F8333&\"'!\"&H8333),\"0\"),Notes!$B$5:$C$100,2,FALSE),\"\"))","v":""},"2d","$I$153","$J$153"]
[27833,{"$f":"Menu!$F$29","v":"X"},{"$f":"Menu!$J$29","v":2020},{"$f":"IF(ISBLANK(INDIRECT(\"'\"&F8334&\"'!\"&G8334)),\"\",INDIRECT(\"'\"&F8334&\"'!\"&G8334))","v":""},{"$f":"IF(ISBLANK(INDIRECT(\"'\"&F8334&\"'!\"&H8334)),\"\",IFERROR(VLOOKUP(TEXT(INDIRECT(\"'\"&F8334&\"'!\"&H8334),\"0\"),Notes!$B$5:$C$100,2,FALSE),\"\"))","v":""},"2d","$G$153","$H$153"]
[27834,{"$f":"Menu!$F$29","v":"X"},{"$f":"Menu!$J$29","v":2020},{"$f":"IF(ISBLANK(INDIRECT(\"'\"&F8335&\"'!\"&G8335)),\"\",INDIRECT(\"'\"&F8335&\"'!\"&G8335))","v":""},{"$f":"IF(ISBLANK(INDIRECT(\"'\"&F8335&\"'!\"&H8335)),\"\",IFERROR(VLOOKUP(TEXT(INDIRECT(\"'\"&F8335&\"'!\"&H8335),\"0\"),Notes!$B$5:$C$100,2,FALSE),\"\"))","v":""},"2a","$Q$153","$R$153"]
[27835,{"$f":"Menu!$F$29","v":"X"},{"$f":"Menu!$J$29","v":2020},{"$f":"IF(ISBLANK(INDIRECT(\"'\"&F8336&\"'!\"&G8336)),\"\",INDIRECT(\"'\"&F8336&\"'!\"&G8336))","v":""},{"$f":"IF(ISBLANK(INDIRECT(\"'\"&F8336&\"'!\"&H8336)),\"\",IFERROR(VLOOKUP(TEXT(INDIRECT(\"'\"&F8336&\"'!\"&H8336),\"0\"),Notes!$B$5:$C$100,2,FALSE),\"\"))","v":""},"2a","$U$153","$V$153"]
[27836,{"$f":"Menu!$F$29","v":"X"},{"$f":"Menu!$J$29","v":2020},{"$f":"IF(ISBLANK(INDIRECT(\"'\"&F8337&\"'!\"&G8337)),\"\",INDIRECT(\"'\"&F8337&\"'!\"&G8337))","v":""},{"$f":"IF(ISBLANK(INDIRECT(\"'\"&F8337&\"'!\"&H8337)),\"\",IFERROR(VLOOKUP(TEXT(INDIRECT(\"'\"&F8337&\"'!\"&H8337),\"0\"),Notes!$B$5:$C$100,2,FALSE),\"\"))","v":""},"2a","$S$153","$T$153"]
[27837,{"$f":"Menu!$F$29","v":"X"},{"$f":"Menu!$J$29","v":2020},{"$f":"IF(ISBLANK(INDIRECT(\"'\"&F8338&\"'!\"&G8338)),\"\",INDIRECT(\"'\"&F8338&\"'!\"&G8338))","v":""},{"$f":"IF(ISBLANK(INDIRECT(\"'\"&F8338&\"'!\"&H8338)),\"\",IFERROR(VLOOKUP(TEXT(INDIRECT(\"'\"&F8338&\"'!\"&H8338),\"0\"),Notes!$B$5:$C$100,2,FALSE),\"\"))","v":""},"2d","$K$153","$L$153"]
[27838,{"$f":"Menu!$F$29","v":"X"},{"$f":"Menu!$J$29","v":2020},{"$f":"IF(ISBLANK(INDIRECT(\"'\"&F8339&\"'!\"&G8339)),\"\",INDIRECT(\"'\"&F8339&\"'!\"&G8339))","v":""},{"$f":"IF(ISBLANK(INDIRECT(\"'\"&F8339&\"'!\"&H8339)),\"\",IFERROR(VLOOKUP(TEXT(INDIRECT(\"'\"&F8339&\"'!\"&H8339),\"0\"),Notes!$B$5:$C$100,2,FALSE),\"\"))","v":""},"2d","$O$153","$P$153"]
[27839,{"$f":"Menu!$F$29","v":"X"},{"$f":"Menu!$J$29","v":2020},{"$f":"IF(ISBLANK(INDIRECT(\"'\"&F8340&\"'!\"&G8340)),\"\",INDIRECT(\"'\"&F8340&\"'!\"&G8340))","v":""},{"$f":"IF(ISBLANK(INDIRECT(\"'\"&F8340&\"'!\"&H8340)),\"\",IFERROR(VLOOKUP(TEXT(INDIRECT(\"'\"&F8340&\"'!\"&H8340),\"0\"),Notes!$B$5:$C$100,2,FALSE),\"\"))","v":""},"2d","$M$153","$N$153"]
[27840,{"$f":"Menu!$F$29","v":"X"},{"$f":"Menu!$J$29","v":2020},{"$f":"IF(ISBLANK(INDIRECT(\"'\"&F8341&\"'!\"&G8341)),\"\",INDIRECT(\"'\"&F8341&\"'!\"&G8341))","v":""},{"$f":"IF(ISBLANK(INDIRECT(\"'\"&F8341&\"'!\"&H8341)),\"\",IFERROR(VLOOKUP(TEXT(INDIRECT(\"'\"&F8341&\"'!\"&H8341),\"0\"),Notes!$B$5:$C$100,2,FALSE),\"\"))","v":""},"2d","$Q$153","$R$153"]
[27841,{"$f":"Menu!$F$29","v":"X"},{"$f":"Menu!$J$29","v":2020},{"$f":"IF(ISBLANK(INDIRECT(\"'\"&F8342&\"'!\"&G8342)),\"\",INDIRECT(\"'\"&F8342&\"'!\"&G8342))","v":""},{"$f":"IF(ISBLANK(INDIRECT(\"'\"&F8342&\"'!\"&H8342)),\"\",IFERROR(VLOOKUP(TEXT(INDIRECT(\"'\"&F8342&\"'!\"&H8342),\"0\"),Notes!$B$5:$C$100,2,FALSE),\"\"))","v":""},"2d","$U$153","$V$153"]
[27842,{"$f":"Menu!$F$29","v":"X"},{"$f":"Menu!$J$29","v":2020},{"$f":"IF(ISBLANK(INDIRECT(\"'\"&F8343&\"'!\"&G8343)),\"\",INDIRECT(\"'\"&F8343&\"'!\"&G8343))","v":""},{"$f":"IF(ISBLANK(INDIRECT(\"'\"&F8343&\"'!\"&H8343)),\"\",IFERROR(VLOOKUP(TEXT(INDIRECT(\"'\"&F8343&\"'!\"&H8343),\"0\"),Notes!$B$5:$C$100,2,FALSE),\"\"))","v":""},"2d","$S$153","$T$153"]
[27843,{"$f":"Menu!$F$29","v":"X"},{"$f":"Menu!$J$29","v":2020},{"$f":"IF(ISBLANK(INDIRECT(\"'\"&F8344&\"'!\"&G8344)),\"\",INDIRECT(\"'\"&F8344&\"'!\"&G8344))","v":""},{"$f":"IF(ISBLANK(INDIRECT(\"'\"&F8344&\"'!\"&H8344)),\"\",IFERROR(VLOOKUP(TEXT(INDIRECT(\"'\"&F8344&\"'!\"&H8344),\"0\"),Notes!$B$5:$C$100,2,FALSE),\"\"))","v":""},"2a","$K$153","$L$153"]
[27844,{"$f":"Menu!$F$29","v":"X"},{"$f":"Menu!$J$29","v":2020},{"$f":"IF(ISBLANK(INDIRECT(\"'\"&F8345&\"'!\"&G8345)),\"\",INDIRECT(\"'\"&F8345&\"'!\"&G8345))","v":""},{"$f":"IF(ISBLANK(INDIRECT(\"'\"&F8345&\"'!\"&H8345)),\"\",IFERROR(VLOOKUP(TEXT(INDIRECT(\"'\"&F8345&\"'!\"&H8345),\"0\"),Notes!$B$5:$C$100,2,FALSE),\"\"))","v":""},"2a","$O$153","$P$153"]
[27845,{"$f":"Menu!$F$29","v":"X"},{"$f":"Menu!$J$29","v":2020},{"$f":"IF(ISBLANK(INDIRECT(\"'\"&F8346&\"'!\"&G8346)),\"\",INDIRECT(\"'\"&F8346&\"'!\"&G8346))","v":""},{"$f":"IF(ISBLANK(INDIRECT(\"'\"&F8346&\"'!\"&H8346)),\"\",IFERROR(VLOOKUP(TEXT(INDIRECT(\"'\"&F8346&\"'!\"&H8346),\"0\"),Notes!$B$5:$C$100,2,FALSE),\"\"))","v":""},"2a","$M$153","$N$153"]
[27846,{"$f":"Menu!$F$29","v":"X"},{"$f":"Menu!$J$29","v":2020},{"$f":"IF(ISBLANK(INDIRECT(\"'\"&F8347&\"'!\"&G8347)),\"\",INDIRECT(\"'\"&F8347&\"'!\"&G8347))","v":""},null,"2a","$E$153","$F$153"]
[27847,{"$f":"Menu!$F$29","v":"X"},{"$f":"Menu!$J$29","v":2020},{"$f":"IF(ISBLANK(INDIRECT(\"'\"&F8348&\"'!\"&G8348)),\"\",INDIRECT(\"'\"&F8348&\"'!\"&G8348))","v":""},{"$f":"IF(ISBLANK(INDIRECT(\"'\"&F8348&\"'!\"&H8348)),\"\",IFERROR(VLOOKUP(TEXT(INDIRECT(\"'\"&F8348&\"'!\"&H8348),\"0\"),Notes!$B$5:$C$100,2,FALSE),\"\"))","v":""},"2b","$K$154","$L$154"]
[27848,{"$f":"Menu!$F$29","v":"X"},{"$f":"Menu!$J$29","v":2020},{"$f":"IF(ISBLANK(INDIRECT(\"'\"&F8349&\"'!\"&G8349)),\"\",INDIRECT(\"'\"&F8349&\"'!\"&G8349))","v":""},{"$f":"IF(ISBLANK(INDIRECT(\"'\"&F8349&\"'!\"&H8349)),\"\",IFERROR(VLOOKUP(TEXT(INDIRECT(\"'\"&F8349&\"'!\"&H8349),\"0\"),Notes!$B$5:$C$100,2,FALSE),\"\"))","v":""},"2b","$O$154","$P$154"]
[27849,{"$f":"Menu!$F$29","v":"X"},{"$f":"Menu!$J$29","v":2020},{"$f":"IF(ISBLANK(INDIRECT(\"'\"&F8350&\"'!\"&G8350)),\"\",INDIRECT(\"'\"&F8350&\"'!\"&G8350))","v":""},{"$f":"IF(ISBLANK(INDIRECT(\"'\"&F8350&\"'!\"&H8350)),\"\",IFERROR(VLOOKUP(TEXT(INDIRECT(\"'\"&F8350&\"'!\"&H8350),\"0\"),Notes!$B$5:$C$100,2,FALSE),\"\"))","v":""},"2b","$M$154","$N$154"]
[27850,{"$f":"Menu!$F$29","v":"X"},{"$f":"Menu!$J$29","v":2020},{"$f":"IF(ISBLANK(INDIRECT(\"'\"&F8351&\"'!\"&G8351)),\"\",INDIRECT(\"'\"&F8351&\"'!\"&G8351))","v":""},{"$f":"IF(ISBLANK(INDIRECT(\"'\"&F8351&\"'!\"&H8351)),\"\",IFERROR(VLOOKUP(TEXT(INDIRECT(\"'\"&F8351&\"'!\"&H8351),\"0\"),Notes!$B$5:$C$100,2,FALSE),\"\"))","v":""},"2b","$Q$154","$R$154"]
[27851,{"$f":"Menu!$F$29","v":"X"},{"$f":"Menu!$J$29","v":2020},{"$f":"IF(ISBLANK(INDIRECT(\"'\"&F8352&\"'!\"&G8352)),\"\",INDIRECT(\"'\"&F8352&\"'!\"&G8352))","v":""},{"$f":"IF(ISBLANK(INDIRECT(\"'\"&F8352&\"'!\"&H8352)),\"\",IFERROR(VLOOKUP(TEXT(INDIRECT(\"'\"&F8352&\"'!\"&H8352),\"0\"),Notes!$B$5:$C$100,2,FALSE),\"\"))","v":""},"2b","$U$154","$V$154"]
[27852,{"$f":"Menu!$F$29","v":"X"},{"$f":"Menu!$J$29","v":2020},{"$f":"IF(ISBLANK(INDIRECT(\"'\"&F8353&\"'!\"&G8353)),\"\",INDIRECT(\"'\"&F8353&\"'!\"&G8353))","v":""},{"$f":"IF(ISBLANK(INDIRECT(\"'\"&F8353&\"'!\"&H8353)),\"\",IFERROR(VLOOKUP(TEXT(INDIRECT(\"'\"&F8353&\"'!\"&H8353),\"0\"),Notes!$B$5:$C$100,2,FALSE),\"\"))","v":""},"2b","$S$154","$T$154"]
[27856,{"$f":"Menu!$F$29","v":"X"},{"$f":"Menu!$J$29","v":2020},{"$f":"IF(ISBLANK(INDIRECT(\"'\"&F8354&\"'!\"&G8354)),\"\",INDIRECT(\"'\"&F8354&\"'!\"&G8354))","v":""},{"$f":"IF(ISBLANK(INDIRECT(\"'\"&F8354&\"'!\"&H8354)),\"\",IFERROR(VLOOKUP(TEXT(INDIRECT(\"'\"&F8354&\"'!\"&H8354),\"0\"),Notes!$B$5:$C$100,2,FALSE),\"\"))","v":""},"2a","$I$154","$J$154"]
[27857,{"$f":"Menu!$F$29","v":"X"},{"$f":"Menu!$J$29","v":2020},{"$f":"IF(ISBLANK(INDIRECT(\"'\"&F8355&\"'!\"&G8355)),\"\",INDIRECT(\"'\"&F8355&\"'!\"&G8355))","v":""},{"$f":"IF(ISBLANK(INDIRECT(\"'\"&F8355&\"'!\"&H8355)),\"\",IFERROR(VLOOKUP(TEXT(INDIRECT(\"'\"&F8355&\"'!\"&H8355),\"0\"),Notes!$B$5:$C$100,2,FALSE),\"\"))","v":""},"2c","$E$154","$F$154"]
[27858,{"$f":"Menu!$F$29","v":"X"},{"$f":"Menu!$J$29","v":2020},{"$f":"IF(ISBLANK(INDIRECT(\"'\"&F8356&\"'!\"&G8356)),\"\",INDIRECT(\"'\"&F8356&\"'!\"&G8356))","v":""},{"$f":"IF(ISBLANK(INDIRECT(\"'\"&F8356&\"'!\"&H8356)),\"\",IFERROR(VLOOKUP(TEXT(INDIRECT(\"'\"&F8356&\"'!\"&H8356),\"0\"),Notes!$B$5:$C$100,2,FALSE),\"\"))","v":""},"2c","$I$154","$J$154"]
[27859,{"$f":"Menu!$F$29","v":"X"},{"$f":"Menu!$J$29","v":2020},{"$f":"IF(ISBLANK(INDIRECT(\"'\"&F8357&\"'!\"&G8357)),\"\",INDIRECT(\"'\"&F8357&\"'!\"&G8357))","v":""},{"$f":"IF(ISBLANK(INDIRECT(\"'\"&F8357&\"'!\"&H8357)),\"\",IFERROR(VLOOKUP(TEXT(INDIRECT(\"'\"&F8357&\"'!\"&H8357),\"0\"),Notes!$B$5:$C$100,2,FALSE),\"\"))","v":""},"2c","$G$154","$H$154"]
[27863,{"$f":"Menu!$F$29","v":"X"},{"$f":"Menu!$J$29","v":2020},{"$f":"IF(ISBLANK(INDIRECT(\"'\"&F8358&\"'!\"&G8358)),\"\",INDIRECT(\"'\"&F8358&\"'!\"&G8358))","v":""},{"$f":"IF(ISBLANK(INDIRECT(\"'\"&F8358&\"'!\"&H8358)),\"\",IFERROR(VLOOKUP(TEXT(INDIRECT(\"'\"&F8358&\"'!\"&H8358),\"0\"),Notes!$B$5:$C$100,2,FALSE),\"\"))","v":""},"2c","$K$154","$L$154"]
[27864,{"$f":"Menu!$F$29","v":"X"},{"$f":"Menu!$J$29","v":2020},{"$f":"IF(ISBLANK(INDIRECT(\"'\"&F8359&\"'!\"&G8359)),\"\",INDIRECT(\"'\"&F8359&\"'!\"&G8359))","v":""},{"$f":"IF(ISBLANK(INDIRECT(\"'\"&F8359&\"'!\"&H8359)),\"\",IFERROR(VLOOKUP(TEXT(INDIRECT(\"'\"&F8359&\"'!\"&H8359),\"0\"),Notes!$B$5:$C$100,2,FALSE),\"\"))","v":""},"2c","$O$154","$P$154"]
[27865,{"$f":"Menu!$F$29","v":"X"},{"$f":"Menu!$J$29","v":2020},{"$f":"IF(ISBLANK(INDIRECT(\"'\"&F8360&\"'!\"&G8360)),\"\",INDIRECT(\"'\"&F8360&\"'!\"&G8360))","v":""},{"$f":"IF(ISBLANK(INDIRECT(\"'\"&F8360&\"'!\"&H8360)),\"\",IFERROR(VLOOKUP(TEXT(INDIRECT(\"'\"&F8360&\"'!\"&H8360),\"0\"),Notes!$B$5:$C$100,2,FALSE),\"\"))","v":""},"2c","$M$154","$N$154"]
[27866,{"$f":"Menu!$F$29","v":"X"},{"$f":"Menu!$J$29","v":2020},{"$f":"IF(ISBLANK(INDIRECT(\"'\"&F8361&\"'!\"&G8361)),\"\",INDIRECT(\"'\"&F8361&\"'!\"&G8361))","v":""},{"$f":"IF(ISBLANK(INDIRECT(\"'\"&F8361&\"'!\"&H8361)),\"\",IFERROR(VLOOKUP(TEXT(INDIRECT(\"'\"&F8361&\"'!\"&H8361),\"0\"),Notes!$B$5:$C$100,2,FALSE),\"\"))","v":""},"2c","$Q$154","$R$154"]
[27867,{"$f":"Menu!$F$29","v":"X"},{"$f":"Menu!$J$29","v":2020},{"$f":"IF(ISBLANK(INDIRECT(\"'\"&F8362&\"'!\"&G8362)),\"\",INDIRECT(\"'\"&F8362&\"'!\"&G8362))","v":""},{"$f":"IF(ISBLANK(INDIRECT(\"'\"&F8362&\"'!\"&H8362)),\"\",IFERROR(VLOOKUP(TEXT(INDIRECT(\"'\"&F8362&\"'!\"&H8362),\"0\"),Notes!$B$5:$C$100,2,FALSE),\"\"))","v":""},"2c","$U$154","$V$154"]
[27868,{"$f":"Menu!$F$29","v":"X"},{"$f":"Menu!$J$29","v":2020},{"$f":"IF(ISBLANK(INDIRECT(\"'\"&F8363&\"'!\"&G8363)),\"\",INDIRECT(\"'\"&F8363&\"'!\"&G8363))","v":""},{"$f":"IF(ISBLANK(INDIRECT(\"'\"&F8363&\"'!\"&H8363)),\"\",IFERROR(VLOOKUP(TEXT(INDIRECT(\"'\"&F8363&\"'!\"&H8363),\"0\"),Notes!$B$5:$C$100,2,FALSE),\"\"))","v":""},"2c","$S$154","$T$154"]
[27869,{"$f":"Menu!$F$29","v":"X"},{"$f":"Menu!$J$29","v":2020},{"$f":"IF(ISBLANK(INDIRECT(\"'\"&F8364&\"'!\"&G8364)),\"\",INDIRECT(\"'\"&F8364&\"'!\"&G8364))","v":""},{"$f":"IF(ISBLANK(INDIRECT(\"'\"&F8364&\"'!\"&H8364)),\"\",IFERROR(VLOOKUP(TEXT(INDIRECT(\"'\"&F8364&\"'!\"&H8364),\"0\"),Notes!$B$5:$C$100,2,FALSE),\"\"))","v":""},"2c","$W$154","$X$154"]
[27870,{"$f":"Menu!$F$29","v":"X"},{"$f":"Menu!$J$29","v":2020},{"$f":"IF(ISBLANK(INDIRECT(\"'\"&F8365&\"'!\"&G8365)),\"\",INDIRECT(\"'\"&F8365&\"'!\"&G8365))","v":""},{"$f":"IF(ISBLANK(INDIRECT(\"'\"&F8365&\"'!\"&H8365)),\"\",IFERROR(VLOOKUP(TEXT(INDIRECT(\"'\"&F8365&\"'!\"&H8365),\"0\"),Notes!$B$5:$C$100,2,FALSE),\"\"))","v":""},"2c","$AA$154","$AB$154"]
[27871,{"$f":"Menu!$F$29","v":"X"},{"$f":"Menu!$J$29","v":2020},{"$f":"IF(ISBLANK(INDIRECT(\"'\"&F8366&\"'!\"&G8366)),\"\",INDIRECT(\"'\"&F8366&\"'!\"&G8366))","v":""},{"$f":"IF(ISBLANK(INDIRECT(\"'\"&F8366&\"'!\"&H8366)),\"\",IFERROR(VLOOKUP(TEXT(INDIRECT(\"'\"&F8366&\"'!\"&H8366),\"0\"),Notes!$B$5:$C$100,2,FALSE),\"\"))","v":""},"2c","$Y$154","$Z$154"]
[27878,{"$f":"Menu!$F$29","v":"X"},{"$f":"Menu!$J$29","v":2020},{"$f":"IF(ISBLANK(INDIRECT(\"'\"&F8367&\"'!\"&G8367)),\"\",INDIRECT(\"'\"&F8367&\"'!\"&G8367))","v":""},{"$f":"IF(ISBLANK(INDIRECT(\"'\"&F8367&\"'!\"&H8367)),\"\",IFERROR(VLOOKUP(TEXT(INDIRECT(\"'\"&F8367&\"'!\"&H8367),\"0\"),Notes!$B$5:$C$100,2,FALSE),\"\"))","v":""},"2e","$BG$155","$BH$155"]
[27879,{"$f":"Menu!$F$29","v":"X"},{"$f":"Menu!$J$29","v":2020},{"$f":"IF(ISBLANK(INDIRECT(\"'\"&F8368&\"'!\"&G8368)),\"\",INDIRECT(\"'\"&F8368&\"'!\"&G8368))","v":""},{"$f":"IF(ISBLANK(INDIRECT(\"'\"&F8368&\"'!\"&H8368)),\"\",IFERROR(VLOOKUP(TEXT(INDIRECT(\"'\"&F8368&\"'!\"&H8368),\"0\"),Notes!$B$5:$C$100,2,FALSE),\"\"))","v":""},"2e","$BK$155","$BL$155"]
[27880,{"$f":"Menu!$F$29","v":"X"},{"$f":"Menu!$J$29","v":2020},{"$f":"IF(ISBLANK(INDIRECT(\"'\"&F8369&\"'!\"&G8369)),\"\",INDIRECT(\"'\"&F8369&\"'!\"&G8369))","v":""},{"$f":"IF(ISBLANK(INDIRECT(\"'\"&F8369&\"'!\"&H8369)),\"\",IFERROR(VLOOKUP(TEXT(INDIRECT(\"'\"&F8369&\"'!\"&H8369),\"0\"),Notes!$B$5:$C$100,2,FALSE),\"\"))","v":""},"2e","$BI$155","$BJ$155"]
[27881,{"$f":"Menu!$F$29","v":"X"},{"$f":"Menu!$J$29","v":2020},{"$f":"IF(ISBLANK(INDIRECT(\"'\"&F8370&\"'!\"&G8370)),\"\",INDIRECT(\"'\"&F8370&\"'!\"&G8370))","v":""},{"$f":"IF(ISBLANK(INDIRECT(\"'\"&F8370&\"'!\"&H8370)),\"\",IFERROR(VLOOKUP(TEXT(INDIRECT(\"'\"&F8370&\"'!\"&H8370),\"0\"),Notes!$B$5:$C$100,2,FALSE),\"\"))","v":""},"2e","$E$155","$F$155"]
[27882,{"$f":"Menu!$F$29","v":"X"},{"$f":"Menu!$J$29","v":2020},{"$f":"IF(ISBLANK(INDIRECT(\"'\"&F8371&\"'!\"&G8371)),\"\",INDIRECT(\"'\"&F8371&\"'!\"&G8371))","v":""},{"$f":"IF(ISBLANK(INDIRECT(\"'\"&F8371&\"'!\"&H8371)),\"\",IFERROR(VLOOKUP(TEXT(INDIRECT(\"'\"&F8371&\"'!\"&H8371),\"0\"),Notes!$B$5:$C$100,2,FALSE),\"\"))","v":""},"2e","$I$155","$J$155"]
[27883,{"$f":"Menu!$F$29","v":"X"},{"$f":"Menu!$J$29","v":2020},{"$f":"IF(ISBLANK(INDIRECT(\"'\"&F8372&\"'!\"&G8372)),\"\",INDIRECT(\"'\"&F8372&\"'!\"&G8372))","v":""},{"$f":"IF(ISBLANK(INDIRECT(\"'\"&F8372&\"'!\"&H8372)),\"\",IFERROR(VLOOKUP(TEXT(INDIRECT(\"'\"&F8372&\"'!\"&H8372),\"0\"),Notes!$B$5:$C$100,2,FALSE),\"\"))","v":""},"2e","$G$155","$H$155"]
[27884,{"$f":"Menu!$F$29","v":"X"},{"$f":"Menu!$J$29","v":2020},{"$f":"IF(ISBLANK(INDIRECT(\"'\"&F8373&\"'!\"&G8373)),\"\",INDIRECT(\"'\"&F8373&\"'!\"&G8373))","v":""},{"$f":"IF(ISBLANK(INDIRECT(\"'\"&F8373&\"'!\"&H8373)),\"\",IFERROR(VLOOKUP(TEXT(INDIRECT(\"'\"&F8373&\"'!\"&H8373),\"0\"),Notes!$B$5:$C$100,2,FALSE),\"\"))","v":""},"2e","$K$155","$L$155"]
[27885,{"$f":"Menu!$F$29","v":"X"},{"$f":"Menu!$J$29","v":2020},{"$f":"IF(ISBLANK(INDIRECT(\"'\"&F8374&\"'!\"&G8374)),\"\",INDIRECT(\"'\"&F8374&\"'!\"&G8374))","v":""},{"$f":"IF(ISBLANK(INDIRECT(\"'\"&F8374&\"'!\"&H8374)),\"\",IFERROR(VLOOKUP(TEXT(INDIRECT(\"'\"&F8374&\"'!\"&H8374),\"0\"),Notes!$B$5:$C$100,2,FALSE),\"\"))","v":""},"2e","$O$155","$P$155"]
[27886,{"$f":"Menu!$F$29","v":"X"},{"$f":"Menu!$J$29","v":2020},{"$f":"IF(ISBLANK(INDIRECT(\"'\"&F8375&\"'!\"&G8375)),\"\",INDIRECT(\"'\"&F8375&\"'!\"&G8375))","v":""},{"$f":"IF(ISBLANK(INDIRECT(\"'\"&F8375&\"'!\"&H8375)),\"\",IFERROR(VLOOKUP(TEXT(INDIRECT(\"'\"&F8375&\"'!\"&H8375),\"0\"),Notes!$B$5:$C$100,2,FALSE),\"\"))","v":""},"2e","$M$155","$N$155"]
[27887,{"$f":"Menu!$F$29","v":"X"},{"$f":"Menu!$J$29","v":2020},{"$f":"IF(ISBLANK(INDIRECT(\"'\"&F8376&\"'!\"&G8376)),\"\",INDIRECT(\"'\"&F8376&\"'!\"&G8376))","v":""},{"$f":"IF(ISBLANK(INDIRECT(\"'\"&F8376&\"'!\"&H8376)),\"\",IFERROR(VLOOKUP(TEXT(INDIRECT(\"'\"&F8376&\"'!\"&H8376),\"0\"),Notes!$B$5:$C$100,2,FALSE),\"\"))","v":""},"2e","$Q$155","$R$155"]
[27888,{"$f":"Menu!$F$29","v":"X"},{"$f":"Menu!$J$29","v":2020},{"$f":"IF(ISBLANK(INDIRECT(\"'\"&F8377&\"'!\"&G8377)),\"\",INDIRECT(\"'\"&F8377&\"'!\"&G8377))","v":""},{"$f":"IF(ISBLANK(INDIRECT(\"'\"&F8377&\"'!\"&H8377)),\"\",IFERROR(VLOOKUP(TEXT(INDIRECT(\"'\"&F8377&\"'!\"&H8377),\"0\"),Notes!$B$5:$C$100,2,FALSE),\"\"))","v":""},"2e","$U$155","$V$155"]
[27889,{"$f":"Menu!$F$29","v":"X"},{"$f":"Menu!$J$29","v":2020},{"$f":"IF(ISBLANK(INDIRECT(\"'\"&F8378&\"'!\"&G8378)),\"\",INDIRECT(\"'\"&F8378&\"'!\"&G8378))","v":""},{"$f":"IF(ISBLANK(INDIRECT(\"'\"&F8378&\"'!\"&H8378)),\"\",IFERROR(VLOOKUP(TEXT(INDIRECT(\"'\"&F8378&\"'!\"&H8378),\"0\"),Notes!$B$5:$C$100,2,FALSE),\"\"))","v":""},"2e","$S$155","$T$155"]
[27890,{"$f":"Menu!$F$29","v":"X"},{"$f":"Menu!$J$29","v":2020},{"$f":"IF(ISBLANK(INDIRECT(\"'\"&F8379&\"'!\"&G8379)),\"\",INDIRECT(\"'\"&F8379&\"'!\"&G8379))","v":""},{"$f":"IF(ISBLANK(INDIRECT(\"'\"&F8379&\"'!\"&H8379)),\"\",IFERROR(VLOOKUP(TEXT(INDIRECT(\"'\"&F8379&\"'!\"&H8379),\"0\"),Notes!$B$5:$C$100,2,FALSE),\"\"))","v":""},"2e","$W$155","$X$155"]
[27891,{"$f":"Menu!$F$29","v":"X"},{"$f":"Menu!$J$29","v":2020},{"$f":"IF(ISBLANK(INDIRECT(\"'\"&F8380&\"'!\"&G8380)),\"\",INDIRECT(\"'\"&F8380&\"'!\"&G8380))","v":""},{"$f":"IF(ISBLANK(INDIRECT(\"'\"&F8380&\"'!\"&H8380)),\"\",IFERROR(VLOOKUP(TEXT(INDIRECT(\"'\"&F8380&\"'!\"&H8380),\"0\"),Notes!$B$5:$C$100,2,FALSE),\"\"))","v":""},"2e","$AA$155","$AB$155"]
[27892,{"$f":"Menu!$F$29","v":"X"},{"$f":"Menu!$J$29","v":2020},{"$f":"IF(ISBLANK(INDIRECT(\"'\"&F8381&\"'!\"&G8381)),\"\",INDIRECT(\"'\"&F8381&\"'!\"&G8381))","v":""},{"$f":"IF(ISBLANK(INDIRECT(\"'\"&F8381&\"'!\"&H8381)),\"\",IFERROR(VLOOKUP(TEXT(INDIRECT(\"'\"&F8381&\"'!\"&H8381),\"0\"),Notes!$B$5:$C$100,2,FALSE),\"\"))","v":""},"2e","$Y$155","$Z$155"]
[27893,{"$f":"Menu!$F$29","v":"X"},{"$f":"Menu!$J$29","v":2020},{"$f":"IF(ISBLANK(INDIRECT(\"'\"&F8382&\"'!\"&G8382)),\"\",INDIRECT(\"'\"&F8382&\"'!\"&G8382))","v":""},{"$f":"IF(ISBLANK(INDIRECT(\"'\"&F8382&\"'!\"&H8382)),\"\",IFERROR(VLOOKUP(TEXT(INDIRECT(\"'\"&F8382&\"'!\"&H8382),\"0\"),Notes!$B$5:$C$100,2,FALSE),\"\"))","v":""},"2e","$AC$155","$AD$155"]
[27894,{"$f":"Menu!$F$29","v":"X"},{"$f":"Menu!$J$29","v":2020},{"$f":"IF(ISBLANK(INDIRECT(\"'\"&F8383&\"'!\"&G8383)),\"\",INDIRECT(\"'\"&F8383&\"'!\"&G8383))","v":""},{"$f":"IF(ISBLANK(INDIRECT(\"'\"&F8383&\"'!\"&H8383)),\"\",IFERROR(VLOOKUP(TEXT(INDIRECT(\"'\"&F8383&\"'!\"&H8383),\"0\"),Notes!$B$5:$C$100,2,FALSE),\"\"))","v":""},"2e","$AG$155","$AH$155"]
[27895,{"$f":"Menu!$F$29","v":"X"},{"$f":"Menu!$J$29","v":2020},{"$f":"IF(ISBLANK(INDIRECT(\"'\"&F8384&\"'!\"&G8384)),\"\",INDIRECT(\"'\"&F8384&\"'!\"&G8384))","v":""},{"$f":"IF(ISBLANK(INDIRECT(\"'\"&F8384&\"'!\"&H8384)),\"\",IFERROR(VLOOKUP(TEXT(INDIRECT(\"'\"&F8384&\"'!\"&H8384),\"0\"),Notes!$B$5:$C$100,2,FALSE),\"\"))","v":""},"2e","$AE$155","$AF$155"]
[27896,{"$f":"Menu!$F$29","v":"X"},{"$f":"Menu!$J$29","v":2020},{"$f":"IF(ISBLANK(INDIRECT(\"'\"&F8385&\"'!\"&G8385)),\"\",INDIRECT(\"'\"&F8385&\"'!\"&G8385))","v":""},{"$f":"IF(ISBLANK(INDIRECT(\"'\"&F8385&\"'!\"&H8385)),\"\",IFERROR(VLOOKUP(TEXT(INDIRECT(\"'\"&F8385&\"'!\"&H8385),\"0\"),Notes!$B$5:$C$100,2,FALSE),\"\"))","v":""},"2e","$AI$155","$AJ$155"]
[27897,{"$f":"Menu!$F$29","v":"X"},{"$f":"Menu!$J$29","v":2020},{"$f":"IF(ISBLANK(INDIRECT(\"'\"&F8386&\"'!\"&G8386)),\"\",INDIRECT(\"'\"&F8386&\"'!\"&G8386))","v":""},{"$f":"IF(ISBLANK(INDIRECT(\"'\"&F8386&\"'!\"&H8386)),\"\",IFERROR(VLOOKUP(TEXT(INDIRECT(\"'\"&F8386&\"'!\"&H8386),\"0\"),Notes!$B$5:$C$100,2,FALSE),\"\"))","v":""},"2e","$AM$155",{"$f":"IF(LEN(TRIM(MID(G8386,4,10)))-LEN(SUBSTITUTE(TRIM(MID(G8386,4,10)),\"$\",\"\"))=0,\"$\"&CHAR(CODE(MID(G8386,2,1))+1)&\"$\"&TRIM(MID(G8386,4,10)),\"$\"&MID(G8386,2,1)&CHAR(CODE(MID(G8386,3,1))+1)&\"$\"&TRIM(MID(G8386,5,11)))","v":"$AN$155"}]
[27898,{"$f":"Menu!$F$29","v":"X"},{"$f":"Menu!$J$29","v":2020},{"$f":"IF(ISBLANK(INDIRECT(\"'\"&F8387&\"'!\"&G8387)),\"\",INDIRECT(\"'\"&F8387&\"'!\"&G8387))","v":""},{"$f":"IF(ISBLANK(INDIRECT(\"'\"&F8387&\"'!\"&H8387)),\"\",IFERROR(VLOOKUP(TEXT(INDIRECT(\"'\"&F8387&\"'!\"&H8387),\"0\"),Notes!$B$5:$C$100,2,FALSE),\"\"))","v":""},"2e","$AK$155","$AL$155"]
[27899,{"$f":"Menu!$F$29","v":"X"},{"$f":"Menu!$J$29","v":2020},{"$f":"IF(ISBLANK(INDIRECT(\"'\"&F8388&\"'!\"&G8388)),\"\",INDIRECT(\"'\"&F8388&\"'!\"&G8388))","v":""},{"$f":"IF(ISBLANK(INDIRECT(\"'\"&F8388&\"'!\"&H8388)),\"\",IFERROR(VLOOKUP(TEXT(INDIRECT(\"'\"&F8388&\"'!\"&H8388),\"0\"),Notes!$B$5:$C$100,2,FALSE),\"\"))","v":""},"2e","$AO$155","$AP$155"]
[27900,{"$f":"Menu!$F$29","v":"X"},{"$f":"Menu!$J$29","v":2020},{"$f":"IF(ISBLANK(INDIRECT(\"'\"&F8389&\"'!\"&G8389)),\"\",INDIRECT(\"'\"&F8389&\"'!\"&G8389))","v":""},{"$f":"IF(ISBLANK(INDIRECT(\"'\"&F8389&\"'!\"&H8389)),\"\",IFERROR(VLOOKUP(TEXT(INDIRECT(\"'\"&F8389&\"'!\"&H8389),\"0\"),Notes!$B$5:$C$100,2,FALSE),\"\"))","v":""},"2e","$AS$155","$AT$155"]
[27901,{"$f":"Menu!$F$29","v":"X"},{"$f":"Menu!$J$29","v":2020},{"$f":"IF(ISBLANK(INDIRECT(\"'\"&F8390&\"'!\"&G8390)),\"\",INDIRECT(\"'\"&F8390&\"'!\"&G8390))","v":""},{"$f":"IF(ISBLANK(INDIRECT(\"'\"&F8390&\"'!\"&H8390)),\"\",IFERROR(VLOOKUP(TEXT(INDIRECT(\"'\"&F8390&\"'!\"&H8390),\"0\"),Notes!$B$5:$C$100,2,FALSE),\"\"))","v":""},"2e","$AQ$155","$AR$155"]
[27902,{"$f":"Menu!$F$29","v":"X"},{"$f":"Menu!$J$29","v":2020},{"$f":"IF(ISBLANK(INDIRECT(\"'\"&F8391&\"'!\"&G8391)),\"\",INDIRECT(\"'\"&F8391&\"'!\"&G8391))","v":""},{"$f":"IF(ISBLANK(INDIRECT(\"'\"&F8391&\"'!\"&H8391)),\"\",IFERROR(VLOOKUP(TEXT(INDIRECT(\"'\"&F8391&\"'!\"&H8391),\"0\"),Notes!$B$5:$C$100,2,FALSE),\"\"))","v":""},"2e","$AU$155","$AV$155"]
[27903,{"$f":"Menu!$F$29","v":"X"},{"$f":"Menu!$J$29","v":2020},{"$f":"IF(ISBLANK(INDIRECT(\"'\"&F8392&\"'!\"&G8392)),\"\",INDIRECT(\"'\"&F8392&\"'!\"&G8392))","v":""},{"$f":"IF(ISBLANK(INDIRECT(\"'\"&F8392&\"'!\"&H8392)),\"\",IFERROR(VLOOKUP(TEXT(INDIRECT(\"'\"&F8392&\"'!\"&H8392),\"0\"),Notes!$B$5:$C$100,2,FALSE),\"\"))","v":""},"2e","$AY$155","$AZ$155"]
[27904,{"$f":"Menu!$F$29","v":"X"},{"$f":"Menu!$J$29","v":2020},{"$f":"IF(ISBLANK(INDIRECT(\"'\"&F8393&\"'!\"&G8393)),\"\",INDIRECT(\"'\"&F8393&\"'!\"&G8393))","v":""},{"$f":"IF(ISBLANK(INDIRECT(\"'\"&F8393&\"'!\"&H8393)),\"\",IFERROR(VLOOKUP(TEXT(INDIRECT(\"'\"&F8393&\"'!\"&H8393),\"0\"),Notes!$B$5:$C$100,2,FALSE),\"\"))","v":""},"2e","$AW$155","$AX$155"]
[27905,{"$f":"Menu!$F$29","v":"X"},{"$f":"Menu!$J$29","v":2020},{"$f":"IF(ISBLANK(INDIRECT(\"'\"&F8394&\"'!\"&G8394)),\"\",INDIRECT(\"'\"&F8394&\"'!\"&G8394))","v":""},{"$f":"IF(ISBLANK(INDIRECT(\"'\"&F8394&\"'!\"&H8394)),\"\",IFERROR(VLOOKUP(TEXT(INDIRECT(\"'\"&F8394&\"'!\"&H8394),\"0\"),Notes!$B$5:$C$100,2,FALSE),\"\"))","v":""},"2e","$BA$155","$BB$155"]
[27906,{"$f":"Menu!$F$29","v":"X"},{"$f":"Menu!$J$29","v":2020},{"$f":"IF(ISBLANK(INDIRECT(\"'\"&F8395&\"'!\"&G8395)),\"\",INDIRECT(\"'\"&F8395&\"'!\"&G8395))","v":""},{"$f":"IF(ISBLANK(INDIRECT(\"'\"&F8395&\"'!\"&H8395)),\"\",IFERROR(VLOOKUP(TEXT(INDIRECT(\"'\"&F8395&\"'!\"&H8395),\"0\"),Notes!$B$5:$C$100,2,FALSE),\"\"))","v":""},"2e","$BE$155","$BF$155"]
[27907,{"$f":"Menu!$F$29","v":"X"},{"$f":"Menu!$J$29","v":2020},{"$f":"IF(ISBLANK(INDIRECT(\"'\"&F8396&\"'!\"&G8396)),\"\",INDIRECT(\"'\"&F8396&\"'!\"&G8396))","v":""},{"$f":"IF(ISBLANK(INDIRECT(\"'\"&F8396&\"'!\"&H8396)),\"\",IFERROR(VLOOKUP(TEXT(INDIRECT(\"'\"&F8396&\"'!\"&H8396),\"0\"),Notes!$B$5:$C$100,2,FALSE),\"\"))","v":""},"2e","$BC$155","$BD$155"]
[27908,{"$f":"Menu!$F$29","v":"X"},{"$f":"Menu!$J$29","v":2020},{"$f":"IF(ISBLANK(INDIRECT(\"'\"&F8397&\"'!\"&G8397)),\"\",INDIRECT(\"'\"&F8397&\"'!\"&G8397))","v":""},{"$f":"IF(ISBLANK(INDIRECT(\"'\"&F8397&\"'!\"&H8397)),\"\",IFERROR(VLOOKUP(TEXT(INDIRECT(\"'\"&F8397&\"'!\"&H8397),\"0\"),Notes!$B$5:$C$100,2,FALSE),\"\"))","v":""},"2b","$E$154","$F$154"]
[27909,{"$f":"Menu!$F$29","v":"X"},{"$f":"Menu!$J$29","v":2020},{"$f":"IF(ISBLANK(INDIRECT(\"'\"&F8398&\"'!\"&G8398)),\"\",INDIRECT(\"'\"&F8398&\"'!\"&G8398))","v":""},{"$f":"IF(ISBLANK(INDIRECT(\"'\"&F8398&\"'!\"&H8398)),\"\",IFERROR(VLOOKUP(TEXT(INDIRECT(\"'\"&F8398&\"'!\"&H8398),\"0\"),Notes!$B$5:$C$100,2,FALSE),\"\"))","v":""},"2b","$I$154","$J$154"]
[27910,{"$f":"Menu!$F$29","v":"X"},{"$f":"Menu!$J$29","v":2020},{"$f":"IF(ISBLANK(INDIRECT(\"'\"&F8399&\"'!\"&G8399)),\"\",INDIRECT(\"'\"&F8399&\"'!\"&G8399))","v":""},{"$f":"IF(ISBLANK(INDIRECT(\"'\"&F8399&\"'!\"&H8399)),\"\",IFERROR(VLOOKUP(TEXT(INDIRECT(\"'\"&F8399&\"'!\"&H8399),\"0\"),Notes!$B$5:$C$100,2,FALSE),\"\"))","v":""},"2b","$G$154","$H$154"]
[27911,{"$f":"Menu!$F$29","v":"X"},{"$f":"Menu!$J$29","v":2020},{"$f":"IF(ISBLANK(INDIRECT(\"'\"&F8400&\"'!\"&G8400)),\"\",INDIRECT(\"'\"&F8400&\"'!\"&G8400))","v":""},null,"2a","$G$154","$H$154"]
[27912,{"$f":"Menu!$F$29","v":"X"},{"$f":"Menu!$J$29","v":2020},{"$f":"IF(ISBLANK(INDIRECT(\"'\"&F8401&\"'!\"&G8401)),\"\",INDIRECT(\"'\"&F8401&\"'!\"&G8401))","v":""},{"$f":"IF(ISBLANK(INDIRECT(\"'\"&F8401&\"'!\"&H8401)),\"\",IFERROR(VLOOKUP(TEXT(INDIRECT(\"'\"&F8401&\"'!\"&H8401),\"0\"),Notes!$B$5:$C$100,2,FALSE),\"\"))","v":""},"2b","$W$154","$X$154"]
[27913,{"$f":"Menu!$F$29","v":"X"},{"$f":"Menu!$J$29","v":2020},{"$f":"IF(ISBLANK(INDIRECT(\"'\"&F8402&\"'!\"&G8402)),\"\",INDIRECT(\"'\"&F8402&\"'!\"&G8402))","v":""},{"$f":"IF(ISBLANK(INDIRECT(\"'\"&F8402&\"'!\"&H8402)),\"\",IFERROR(VLOOKUP(TEXT(INDIRECT(\"'\"&F8402&\"'!\"&H8402),\"0\"),Notes!$B$5:$C$100,2,FALSE),\"\"))","v":""},"2b","$AA$154","$AB$154"]
[27914,{"$f":"Menu!$F$29","v":"X"},{"$f":"Menu!$J$29","v":2020},{"$f":"IF(ISBLANK(INDIRECT(\"'\"&F8403&\"'!\"&G8403)),\"\",INDIRECT(\"'\"&F8403&\"'!\"&G8403))","v":""},{"$f":"IF(ISBLANK(INDIRECT(\"'\"&F8403&\"'!\"&H8403)),\"\",IFERROR(VLOOKUP(TEXT(INDIRECT(\"'\"&F8403&\"'!\"&H8403),\"0\"),Notes!$B$5:$C$100,2,FALSE),\"\"))","v":""},"2b","$Y$154","$Z$154"]
[27915,{"$f":"Menu!$F$29","v":"X"},{"$f":"Menu!$J$29","v":2020},{"$f":"IF(ISBLANK(INDIRECT(\"'\"&F8404&\"'!\"&G8404)),\"\",INDIRECT(\"'\"&F8404&\"'!\"&G8404))","v":""},{"$f":"IF(ISBLANK(INDIRECT(\"'\"&F8404&\"'!\"&H8404)),\"\",IFERROR(VLOOKUP(TEXT(INDIRECT(\"'\"&F8404&\"'!\"&H8404),\"0\"),Notes!$B$5:$C$100,2,FALSE),\"\"))","v":""},"2d","$AC$154","$AD$154"]
[27916,{"$f":"Menu!$F$29","v":"X"},{"$f":"Menu!$J$29","v":2020},{"$f":"IF(ISBLANK(INDIRECT(\"'\"&F8405&\"'!\"&G8405)),\"\",INDIRECT(\"'\"&F8405&\"'!\"&G8405))","v":""},{"$f":"IF(ISBLANK(INDIRECT(\"'\"&F8405&\"'!\"&H8405)),\"\",IFERROR(VLOOKUP(TEXT(INDIRECT(\"'\"&F8405&\"'!\"&H8405),\"0\"),Notes!$B$5:$C$100,2,FALSE),\"\"))","v":""},"2d","$AG$154","$AH$154"]
[27917,{"$f":"Menu!$F$29","v":"X"},{"$f":"Menu!$J$29","v":2020},{"$f":"IF(ISBLANK(INDIRECT(\"'\"&F8406&\"'!\"&G8406)),\"\",INDIRECT(\"'\"&F8406&\"'!\"&G8406))","v":""},{"$f":"IF(ISBLANK(INDIRECT(\"'\"&F8406&\"'!\"&H8406)),\"\",IFERROR(VLOOKUP(TEXT(INDIRECT(\"'\"&F8406&\"'!\"&H8406),\"0\"),Notes!$B$5:$C$100,2,FALSE),\"\"))","v":""},"2d","$AE$154","$AF$154"]
[27918,{"$f":"Menu!$F$29","v":"X"},{"$f":"Menu!$J$29","v":2020},{"$f":"IF(ISBLANK(INDIRECT(\"'\"&F8407&\"'!\"&G8407)),\"\",INDIRECT(\"'\"&F8407&\"'!\"&G8407))","v":""},{"$f":"IF(ISBLANK(INDIRECT(\"'\"&F8407&\"'!\"&H8407)),\"\",IFERROR(VLOOKUP(TEXT(INDIRECT(\"'\"&F8407&\"'!\"&H8407),\"0\"),Notes!$B$5:$C$100,2,FALSE),\"\"))","v":""},"2d","$W$154","$X$154"]
[27919,{"$f":"Menu!$F$29","v":"X"},{"$f":"Menu!$J$29","v":2020},{"$f":"IF(ISBLANK(INDIRECT(\"'\"&F8408&\"'!\"&G8408)),\"\",INDIRECT(\"'\"&F8408&\"'!\"&G8408))","v":""},{"$f":"IF(ISBLANK(INDIRECT(\"'\"&F8408&\"'!\"&H8408)),\"\",IFERROR(VLOOKUP(TEXT(INDIRECT(\"'\"&F8408&\"'!\"&H8408),\"0\"),Notes!$B$5:$C$100,2,FALSE),\"\"))","v":""},"2d","$AA$154","$AB$154"]
[27920,{"$f":"Menu!$F$29","v":"X"},{"$f":"Menu!$J$29","v":2020},{"$f":"IF(ISBLANK(INDIRECT(\"'\"&F8409&\"'!\"&G8409)),\"\",INDIRECT(\"'\"&F8409&\"'!\"&G8409))","v":""},{"$f":"IF(ISBLANK(INDIRECT(\"'\"&F8409&\"'!\"&H8409)),\"\",IFERROR(VLOOKUP(TEXT(INDIRECT(\"'\"&F8409&\"'!\"&H8409),\"0\"),Notes!$B$5:$C$100,2,FALSE),\"\"))","v":""},"2d","$Y$154","$Z$154"]
[27921,{"$f":"Menu!$F$29","v":"X"},{"$f":"Menu!$J$29","v":2020},{"$f":"IF(ISBLANK(INDIRECT(\"'\"&F8410&\"'!\"&G8410)),\"\",INDIRECT(\"'\"&F8410&\"'!\"&G8410))","v":""},{"$f":"IF(ISBLANK(INDIRECT(\"'\"&F8410&\"'!\"&H8410)),\"\",IFERROR(VLOOKUP(TEXT(INDIRECT(\"'\"&F8410&\"'!\"&H8410),\"0\"),Notes!$B$5:$C$100,2,FALSE),\"\"))","v":""},"2d","$E$154","$F$154"]
[27922,{"$f":"Menu!$F$29","v":"X"},{"$f":"Menu!$J$29","v":2020},{"$f":"IF(ISBLANK(INDIRECT(\"'\"&F8411&\"'!\"&G8411)),\"\",INDIRECT(\"'\"&F8411&\"'!\"&G8411))","v":""},{"$f":"IF(ISBLANK(INDIRECT(\"'\"&F8411&\"'!\"&H8411)),\"\",IFERROR(VLOOKUP(TEXT(INDIRECT(\"'\"&F8411&\"'!\"&H8411),\"0\"),Notes!$B$5:$C$100,2,FALSE),\"\"))","v":""},"2d","$I$154","$J$154"]
[27923,{"$f":"Menu!$F$29","v":"X"},{"$f":"Menu!$J$29","v":2020},{"$f":"IF(ISBLANK(INDIRECT(\"'\"&F8412&\"'!\"&G8412)),\"\",INDIRECT(\"'\"&F8412&\"'!\"&G8412))","v":""},{"$f":"IF(ISBLANK(INDIRECT(\"'\"&F8412&\"'!\"&H8412)),\"\",IFERROR(VLOOKUP(TEXT(INDIRECT(\"'\"&F8412&\"'!\"&H8412),\"0\"),Notes!$B$5:$C$100,2,FALSE),\"\"))","v":""},"2d","$G$154","$H$154"]
[27924,{"$f":"Menu!$F$29","v":"X"},{"$f":"Menu!$J$29","v":2020},{"$f":"IF(ISBLANK(INDIRECT(\"'\"&F8413&\"'!\"&G8413)),\"\",INDIRECT(\"'\"&F8413&\"'!\"&G8413))","v":""},{"$f":"IF(ISBLANK(INDIRECT(\"'\"&F8413&\"'!\"&H8413)),\"\",IFERROR(VLOOKUP(TEXT(INDIRECT(\"'\"&F8413&\"'!\"&H8413),\"0\"),Notes!$B$5:$C$100,2,FALSE),\"\"))","v":""},"2a","$Q$154","$R$154"]
[27925,{"$f":"Menu!$F$29","v":"X"},{"$f":"Menu!$J$29","v":2020},{"$f":"IF(ISBLANK(INDIRECT(\"'\"&F8414&\"'!\"&G8414)),\"\",INDIRECT(\"'\"&F8414&\"'!\"&G8414))","v":""},{"$f":"IF(ISBLANK(INDIRECT(\"'\"&F8414&\"'!\"&H8414)),\"\",IFERROR(VLOOKUP(TEXT(INDIRECT(\"'\"&F8414&\"'!\"&H8414),\"0\"),Notes!$B$5:$C$100,2,FALSE),\"\"))","v":""},"2a","$U$154","$V$154"]
[27926,{"$f":"Menu!$F$29","v":"X"},{"$f":"Menu!$J$29","v":2020},{"$f":"IF(ISBLANK(INDIRECT(\"'\"&F8415&\"'!\"&G8415)),\"\",INDIRECT(\"'\"&F8415&\"'!\"&G8415))","v":""},{"$f":"IF(ISBLANK(INDIRECT(\"'\"&F8415&\"'!\"&H8415)),\"\",IFERROR(VLOOKUP(TEXT(INDIRECT(\"'\"&F8415&\"'!\"&H8415),\"0\"),Notes!$B$5:$C$100,2,FALSE),\"\"))","v":""},"2a","$S$154","$T$154"]
[27927,{"$f":"Menu!$F$29","v":"X"},{"$f":"Menu!$J$29","v":2020},{"$f":"IF(ISBLANK(INDIRECT(\"'\"&F8416&\"'!\"&G8416)),\"\",INDIRECT(\"'\"&F8416&\"'!\"&G8416))","v":""},{"$f":"IF(ISBLANK(INDIRECT(\"'\"&F8416&\"'!\"&H8416)),\"\",IFERROR(VLOOKUP(TEXT(INDIRECT(\"'\"&F8416&\"'!\"&H8416),\"0\"),Notes!$B$5:$C$100,2,FALSE),\"\"))","v":""},"2d","$K$154","$L$154"]
[27928,{"$f":"Menu!$F$29","v":"X"},{"$f":"Menu!$J$29","v":2020},{"$f":"IF(ISBLANK(INDIRECT(\"'\"&F8417&\"'!\"&G8417)),\"\",INDIRECT(\"'\"&F8417&\"'!\"&G8417))","v":""},{"$f":"IF(ISBLANK(INDIRECT(\"'\"&F8417&\"'!\"&H8417)),\"\",IFERROR(VLOOKUP(TEXT(INDIRECT(\"'\"&F8417&\"'!\"&H8417),\"0\"),Notes!$B$5:$C$100,2,FALSE),\"\"))","v":""},"2d","$O$154","$P$154"]
[27929,{"$f":"Menu!$F$29","v":"X"},{"$f":"Menu!$J$29","v":2020},{"$f":"IF(ISBLANK(INDIRECT(\"'\"&F8418&\"'!\"&G8418)),\"\",INDIRECT(\"'\"&F8418&\"'!\"&G8418))","v":""},{"$f":"IF(ISBLANK(INDIRECT(\"'\"&F8418&\"'!\"&H8418)),\"\",IFERROR(VLOOKUP(TEXT(INDIRECT(\"'\"&F8418&\"'!\"&H8418),\"0\"),Notes!$B$5:$C$100,2,FALSE),\"\"))","v":""},"2d","$M$154","$N$154"]
[27930,{"$f":"Menu!$F$29","v":"X"},{"$f":"Menu!$J$29","v":2020},{"$f":"IF(ISBLANK(INDIRECT(\"'\"&F8419&\"'!\"&G8419)),\"\",INDIRECT(\"'\"&F8419&\"'!\"&G8419))","v":""},{"$f":"IF(ISBLANK(INDIRECT(\"'\"&F8419&\"'!\"&H8419)),\"\",IFERROR(VLOOKUP(TEXT(INDIRECT(\"'\"&F8419&\"'!\"&H8419),\"0\"),Notes!$B$5:$C$100,2,FALSE),\"\"))","v":""},"2d","$Q$154","$R$154"]
[27931,{"$f":"Menu!$F$29","v":"X"},{"$f":"Menu!$J$29","v":2020},{"$f":"IF(ISBLANK(INDIRECT(\"'\"&F8420&\"'!\"&G8420)),\"\",INDIRECT(\"'\"&F8420&\"'!\"&G8420))","v":""},{"$f":"IF(ISBLANK(INDIRECT(\"'\"&F8420&\"'!\"&H8420)),\"\",IFERROR(VLOOKUP(TEXT(INDIRECT(\"'\"&F8420&\"'!\"&H8420),\"0\"),Notes!$B$5:$C$100,2,FALSE),\"\"))","v":""},"2d","$U$154","$V$154"]
[27932,{"$f":"Menu!$F$29","v":"X"},{"$f":"Menu!$J$29","v":2020},{"$f":"IF(ISBLANK(INDIRECT(\"'\"&F8421&\"'!\"&G8421)),\"\",INDIRECT(\"'\"&F8421&\"'!\"&G8421))","v":""},{"$f":"IF(ISBLANK(INDIRECT(\"'\"&F8421&\"'!\"&H8421)),\"\",IFERROR(VLOOKUP(TEXT(INDIRECT(\"'\"&F8421&\"'!\"&H8421),\"0\"),Notes!$B$5:$C$100,2,FALSE),\"\"))","v":""},"2d","$S$154","$T$154"]
[27933,{"$f":"Menu!$F$29","v":"X"},{"$f":"Menu!$J$29","v":2020},{"$f":"IF(ISBLANK(INDIRECT(\"'\"&F8422&\"'!\"&G8422)),\"\",INDIRECT(\"'\"&F8422&\"'!\"&G8422))","v":""},{"$f":"IF(ISBLANK(INDIRECT(\"'\"&F8422&\"'!\"&H8422)),\"\",IFERROR(VLOOKUP(TEXT(INDIRECT(\"'\"&F8422&\"'!\"&H8422),\"0\"),Notes!$B$5:$C$100,2,FALSE),\"\"))","v":""},"2a","$K$154","$L$154"]
[27934,{"$f":"Menu!$F$29","v":"X"},{"$f":"Menu!$J$29","v":2020},{"$f":"IF(ISBLANK(INDIRECT(\"'\"&F8423&\"'!\"&G8423)),\"\",INDIRECT(\"'\"&F8423&\"'!\"&G8423))","v":""},{"$f":"IF(ISBLANK(INDIRECT(\"'\"&F8423&\"'!\"&H8423)),\"\",IFERROR(VLOOKUP(TEXT(INDIRECT(\"'\"&F8423&\"'!\"&H8423),\"0\"),Notes!$B$5:$C$100,2,FALSE),\"\"))","v":""},"2a","$O$154","$P$154"]
[27935,{"$f":"Menu!$F$29","v":"X"},{"$f":"Menu!$J$29","v":2020},{"$f":"IF(ISBLANK(INDIRECT(\"'\"&F8424&\"'!\"&G8424)),\"\",INDIRECT(\"'\"&F8424&\"'!\"&G8424))","v":""},{"$f":"IF(ISBLANK(INDIRECT(\"'\"&F8424&\"'!\"&H8424)),\"\",IFERROR(VLOOKUP(TEXT(INDIRECT(\"'\"&F8424&\"'!\"&H8424),\"0\"),Notes!$B$5:$C$100,2,FALSE),\"\"))","v":""},"2a","$M$154","$N$154"]
[27936,{"$f":"Menu!$F$29","v":"X"},{"$f":"Menu!$J$29","v":2020},{"$f":"IF(ISBLANK(INDIRECT(\"'\"&F8425&\"'!\"&G8425)),\"\",INDIRECT(\"'\"&F8425&\"'!\"&G8425))","v":""},null,"2a","$E$154","$F$154"]
[27937,{"$f":"Menu!$F$29","v":"X"},{"$f":"Menu!$J$29","v":2020},{"$f":"IF(ISBLANK(INDIRECT(\"'\"&F8426&\"'!\"&G8426)),\"\",INDIRECT(\"'\"&F8426&\"'!\"&G8426))","v":""},{"$f":"IF(ISBLANK(INDIRECT(\"'\"&F8426&\"'!\"&H8426)),\"\",IFERROR(VLOOKUP(TEXT(INDIRECT(\"'\"&F8426&\"'!\"&H8426),\"0\"),Notes!$B$5:$C$100,2,FALSE),\"\"))","v":""},"2b","$K$155","$L$155"]
[27938,{"$f":"Menu!$F$29","v":"X"},{"$f":"Menu!$J$29","v":2020},{"$f":"IF(ISBLANK(INDIRECT(\"'\"&F8427&\"'!\"&G8427)),\"\",INDIRECT(\"'\"&F8427&\"'!\"&G8427))","v":""},{"$f":"IF(ISBLANK(INDIRECT(\"'\"&F8427&\"'!\"&H8427)),\"\",IFERROR(VLOOKUP(TEXT(INDIRECT(\"'\"&F8427&\"'!\"&H8427),\"0\"),Notes!$B$5:$C$100,2,FALSE),\"\"))","v":""},"2b","$O$155","$P$155"]
[27939,{"$f":"Menu!$F$29","v":"X"},{"$f":"Menu!$J$29","v":2020},{"$f":"IF(ISBLANK(INDIRECT(\"'\"&F8428&\"'!\"&G8428)),\"\",INDIRECT(\"'\"&F8428&\"'!\"&G8428))","v":""},{"$f":"IF(ISBLANK(INDIRECT(\"'\"&F8428&\"'!\"&H8428)),\"\",IFERROR(VLOOKUP(TEXT(INDIRECT(\"'\"&F8428&\"'!\"&H8428),\"0\"),Notes!$B$5:$C$100,2,FALSE),\"\"))","v":""},"2b","$M$155","$N$155"]
[27940,{"$f":"Menu!$F$29","v":"X"},{"$f":"Menu!$J$29","v":2020},{"$f":"IF(ISBLANK(INDIRECT(\"'\"&F8429&\"'!\"&G8429)),\"\",INDIRECT(\"'\"&F8429&\"'!\"&G8429))","v":""},{"$f":"IF(ISBLANK(INDIRECT(\"'\"&F8429&\"'!\"&H8429)),\"\",IFERROR(VLOOKUP(TEXT(INDIRECT(\"'\"&F8429&\"'!\"&H8429),\"0\"),Notes!$B$5:$C$100,2,FALSE),\"\"))","v":""},"2b","$Q$155","$R$155"]
[27941,{"$f":"Menu!$F$29","v":"X"},{"$f":"Menu!$J$29","v":2020},{"$f":"IF(ISBLANK(INDIRECT(\"'\"&F8430&\"'!\"&G8430)),\"\",INDIRECT(\"'\"&F8430&\"'!\"&G8430))","v":""},{"$f":"IF(ISBLANK(INDIRECT(\"'\"&F8430&\"'!\"&H8430)),\"\",IFERROR(VLOOKUP(TEXT(INDIRECT(\"'\"&F8430&\"'!\"&H8430),\"0\"),Notes!$B$5:$C$100,2,FALSE),\"\"))","v":""},"2b","$U$155","$V$155"]
[27942,{"$f":"Menu!$F$29","v":"X"},{"$f":"Menu!$J$29","v":2020},{"$f":"IF(ISBLANK(INDIRECT(\"'\"&F8431&\"'!\"&G8431)),\"\",INDIRECT(\"'\"&F8431&\"'!\"&G8431))","v":""},{"$f":"IF(ISBLANK(INDIRECT(\"'\"&F8431&\"'!\"&H8431)),\"\",IFERROR(VLOOKUP(TEXT(INDIRECT(\"'\"&F8431&\"'!\"&H8431),\"0\"),Notes!$B$5:$C$100,2,FALSE),\"\"))","v":""},"2b","$S$155","$T$155"]
[27946,{"$f":"Menu!$F$29","v":"X"},{"$f":"Menu!$J$29","v":2020},{"$f":"IF(ISBLANK(INDIRECT(\"'\"&F8432&\"'!\"&G8432)),\"\",INDIRECT(\"'\"&F8432&\"'!\"&G8432))","v":""},{"$f":"IF(ISBLANK(INDIRECT(\"'\"&F8432&\"'!\"&H8432)),\"\",IFERROR(VLOOKUP(TEXT(INDIRECT(\"'\"&F8432&\"'!\"&H8432),\"0\"),Notes!$B$5:$C$100,2,FALSE),\"\"))","v":""},"2a","$I$155","$J$155"]
[27947,{"$f":"Menu!$F$29","v":"X"},{"$f":"Menu!$J$29","v":2020},{"$f":"IF(ISBLANK(INDIRECT(\"'\"&F8433&\"'!\"&G8433)),\"\",INDIRECT(\"'\"&F8433&\"'!\"&G8433))","v":""},{"$f":"IF(ISBLANK(INDIRECT(\"'\"&F8433&\"'!\"&H8433)),\"\",IFERROR(VLOOKUP(TEXT(INDIRECT(\"'\"&F8433&\"'!\"&H8433),\"0\"),Notes!$B$5:$C$100,2,FALSE),\"\"))","v":""},"2c","$E$155","$F$155"]
[27948,{"$f":"Menu!$F$29","v":"X"},{"$f":"Menu!$J$29","v":2020},{"$f":"IF(ISBLANK(INDIRECT(\"'\"&F8434&\"'!\"&G8434)),\"\",INDIRECT(\"'\"&F8434&\"'!\"&G8434))","v":""},{"$f":"IF(ISBLANK(INDIRECT(\"'\"&F8434&\"'!\"&H8434)),\"\",IFERROR(VLOOKUP(TEXT(INDIRECT(\"'\"&F8434&\"'!\"&H8434),\"0\"),Notes!$B$5:$C$100,2,FALSE),\"\"))","v":""},"2c","$I$155","$J$155"]
[27949,{"$f":"Menu!$F$29","v":"X"},{"$f":"Menu!$J$29","v":2020},{"$f":"IF(ISBLANK(INDIRECT(\"'\"&F8435&\"'!\"&G8435)),\"\",INDIRECT(\"'\"&F8435&\"'!\"&G8435))","v":""},{"$f":"IF(ISBLANK(INDIRECT(\"'\"&F8435&\"'!\"&H8435)),\"\",IFERROR(VLOOKUP(TEXT(INDIRECT(\"'\"&F8435&\"'!\"&H8435),\"0\"),Notes!$B$5:$C$100,2,FALSE),\"\"))","v":""},"2c","$G$155","$H$155"]
[27953,{"$f":"Menu!$F$29","v":"X"},{"$f":"Menu!$J$29","v":2020},{"$f":"IF(ISBLANK(INDIRECT(\"'\"&F8436&\"'!\"&G8436)),\"\",INDIRECT(\"'\"&F8436&\"'!\"&G8436))","v":""},{"$f":"IF(ISBLANK(INDIRECT(\"'\"&F8436&\"'!\"&H8436)),\"\",IFERROR(VLOOKUP(TEXT(INDIRECT(\"'\"&F8436&\"'!\"&H8436),\"0\"),Notes!$B$5:$C$100,2,FALSE),\"\"))","v":""},"2c","$K$155","$L$155"]
[27954,{"$f":"Menu!$F$29","v":"X"},{"$f":"Menu!$J$29","v":2020},{"$f":"IF(ISBLANK(INDIRECT(\"'\"&F8437&\"'!\"&G8437)),\"\",INDIRECT(\"'\"&F8437&\"'!\"&G8437))","v":""},{"$f":"IF(ISBLANK(INDIRECT(\"'\"&F8437&\"'!\"&H8437)),\"\",IFERROR(VLOOKUP(TEXT(INDIRECT(\"'\"&F8437&\"'!\"&H8437),\"0\"),Notes!$B$5:$C$100,2,FALSE),\"\"))","v":""},"2c","$O$155","$P$155"]
[27955,{"$f":"Menu!$F$29","v":"X"},{"$f":"Menu!$J$29","v":2020},{"$f":"IF(ISBLANK(INDIRECT(\"'\"&F8438&\"'!\"&G8438)),\"\",INDIRECT(\"'\"&F8438&\"'!\"&G8438))","v":""},{"$f":"IF(ISBLANK(INDIRECT(\"'\"&F8438&\"'!\"&H8438)),\"\",IFERROR(VLOOKUP(TEXT(INDIRECT(\"'\"&F8438&\"'!\"&H8438),\"0\"),Notes!$B$5:$C$100,2,FALSE),\"\"))","v":""},"2c","$M$155","$N$155"]
[27956,{"$f":"Menu!$F$29","v":"X"},{"$f":"Menu!$J$29","v":2020},{"$f":"IF(ISBLANK(INDIRECT(\"'\"&F8439&\"'!\"&G8439)),\"\",INDIRECT(\"'\"&F8439&\"'!\"&G8439))","v":""},{"$f":"IF(ISBLANK(INDIRECT(\"'\"&F8439&\"'!\"&H8439)),\"\",IFERROR(VLOOKUP(TEXT(INDIRECT(\"'\"&F8439&\"'!\"&H8439),\"0\"),Notes!$B$5:$C$100,2,FALSE),\"\"))","v":""},"2c","$Q$155","$R$155"]
[27957,{"$f":"Menu!$F$29","v":"X"},{"$f":"Menu!$J$29","v":2020},{"$f":"IF(ISBLANK(INDIRECT(\"'\"&F8440&\"'!\"&G8440)),\"\",INDIRECT(\"'\"&F8440&\"'!\"&G8440))","v":""},{"$f":"IF(ISBLANK(INDIRECT(\"'\"&F8440&\"'!\"&H8440)),\"\",IFERROR(VLOOKUP(TEXT(INDIRECT(\"'\"&F8440&\"'!\"&H8440),\"0\"),Notes!$B$5:$C$100,2,FALSE),\"\"))","v":""},"2c","$U$155","$V$155"]
[27958,{"$f":"Menu!$F$29","v":"X"},{"$f":"Menu!$J$29","v":2020},{"$f":"IF(ISBLANK(INDIRECT(\"'\"&F8441&\"'!\"&G8441)),\"\",INDIRECT(\"'\"&F8441&\"'!\"&G8441))","v":""},{"$f":"IF(ISBLANK(INDIRECT(\"'\"&F8441&\"'!\"&H8441)),\"\",IFERROR(VLOOKUP(TEXT(INDIRECT(\"'\"&F8441&\"'!\"&H8441),\"0\"),Notes!$B$5:$C$100,2,FALSE),\"\"))","v":""},"2c","$S$155","$T$155"]
[27959,{"$f":"Menu!$F$29","v":"X"},{"$f":"Menu!$J$29","v":2020},{"$f":"IF(ISBLANK(INDIRECT(\"'\"&F8442&\"'!\"&G8442)),\"\",INDIRECT(\"'\"&F8442&\"'!\"&G8442))","v":""},{"$f":"IF(ISBLANK(INDIRECT(\"'\"&F8442&\"'!\"&H8442)),\"\",IFERROR(VLOOKUP(TEXT(INDIRECT(\"'\"&F8442&\"'!\"&H8442),\"0\"),Notes!$B$5:$C$100,2,FALSE),\"\"))","v":""},"2c","$W$155","$X$155"]
[27960,{"$f":"Menu!$F$29","v":"X"},{"$f":"Menu!$J$29","v":2020},{"$f":"IF(ISBLANK(INDIRECT(\"'\"&F8443&\"'!\"&G8443)),\"\",INDIRECT(\"'\"&F8443&\"'!\"&G8443))","v":""},{"$f":"IF(ISBLANK(INDIRECT(\"'\"&F8443&\"'!\"&H8443)),\"\",IFERROR(VLOOKUP(TEXT(INDIRECT(\"'\"&F8443&\"'!\"&H8443),\"0\"),Notes!$B$5:$C$100,2,FALSE),\"\"))","v":""},"2c","$AA$155","$AB$155"]
[27961,{"$f":"Menu!$F$29","v":"X"},{"$f":"Menu!$J$29","v":2020},{"$f":"IF(ISBLANK(INDIRECT(\"'\"&F8444&\"'!\"&G8444)),\"\",INDIRECT(\"'\"&F8444&\"'!\"&G8444))","v":""},{"$f":"IF(ISBLANK(INDIRECT(\"'\"&F8444&\"'!\"&H8444)),\"\",IFERROR(VLOOKUP(TEXT(INDIRECT(\"'\"&F8444&\"'!\"&H8444),\"0\"),Notes!$B$5:$C$100,2,FALSE),\"\"))","v":""},"2c","$Y$155","$Z$155"]
[27968,{"$f":"Menu!$F$29","v":"X"},{"$f":"Menu!$J$29","v":2020},{"$f":"IF(ISBLANK(INDIRECT(\"'\"&F8445&\"'!\"&G8445)),\"\",INDIRECT(\"'\"&F8445&\"'!\"&G8445))","v":""},{"$f":"IF(ISBLANK(INDIRECT(\"'\"&F8445&\"'!\"&H8445)),\"\",IFERROR(VLOOKUP(TEXT(INDIRECT(\"'\"&F8445&\"'!\"&H8445),\"0\"),Notes!$B$5:$C$100,2,FALSE),\"\"))","v":""},"2e","$BG$156","$BH$156"]
[27969,{"$f":"Menu!$F$29","v":"X"},{"$f":"Menu!$J$29","v":2020},{"$f":"IF(ISBLANK(INDIRECT(\"'\"&F8446&\"'!\"&G8446)),\"\",INDIRECT(\"'\"&F8446&\"'!\"&G8446))","v":""},{"$f":"IF(ISBLANK(INDIRECT(\"'\"&F8446&\"'!\"&H8446)),\"\",IFERROR(VLOOKUP(TEXT(INDIRECT(\"'\"&F8446&\"'!\"&H8446),\"0\"),Notes!$B$5:$C$100,2,FALSE),\"\"))","v":""},"2e","$BK$156","$BL$156"]
[27970,{"$f":"Menu!$F$29","v":"X"},{"$f":"Menu!$J$29","v":2020},{"$f":"IF(ISBLANK(INDIRECT(\"'\"&F8447&\"'!\"&G8447)),\"\",INDIRECT(\"'\"&F8447&\"'!\"&G8447))","v":""},{"$f":"IF(ISBLANK(INDIRECT(\"'\"&F8447&\"'!\"&H8447)),\"\",IFERROR(VLOOKUP(TEXT(INDIRECT(\"'\"&F8447&\"'!\"&H8447),\"0\"),Notes!$B$5:$C$100,2,FALSE),\"\"))","v":""},"2e","$BI$156","$BJ$156"]
[27971,{"$f":"Menu!$F$29","v":"X"},{"$f":"Menu!$J$29","v":2020},{"$f":"IF(ISBLANK(INDIRECT(\"'\"&F8448&\"'!\"&G8448)),\"\",INDIRECT(\"'\"&F8448&\"'!\"&G8448))","v":""},{"$f":"IF(ISBLANK(INDIRECT(\"'\"&F8448&\"'!\"&H8448)),\"\",IFERROR(VLOOKUP(TEXT(INDIRECT(\"'\"&F8448&\"'!\"&H8448),\"0\"),Notes!$B$5:$C$100,2,FALSE),\"\"))","v":""},"2e","$E$156","$F$156"]
[27972,{"$f":"Menu!$F$29","v":"X"},{"$f":"Menu!$J$29","v":2020},{"$f":"IF(ISBLANK(INDIRECT(\"'\"&F8449&\"'!\"&G8449)),\"\",INDIRECT(\"'\"&F8449&\"'!\"&G8449))","v":""},{"$f":"IF(ISBLANK(INDIRECT(\"'\"&F8449&\"'!\"&H8449)),\"\",IFERROR(VLOOKUP(TEXT(INDIRECT(\"'\"&F8449&\"'!\"&H8449),\"0\"),Notes!$B$5:$C$100,2,FALSE),\"\"))","v":""},"2e","$I$156","$J$156"]
[27973,{"$f":"Menu!$F$29","v":"X"},{"$f":"Menu!$J$29","v":2020},{"$f":"IF(ISBLANK(INDIRECT(\"'\"&F8450&\"'!\"&G8450)),\"\",INDIRECT(\"'\"&F8450&\"'!\"&G8450))","v":""},{"$f":"IF(ISBLANK(INDIRECT(\"'\"&F8450&\"'!\"&H8450)),\"\",IFERROR(VLOOKUP(TEXT(INDIRECT(\"'\"&F8450&\"'!\"&H8450),\"0\"),Notes!$B$5:$C$100,2,FALSE),\"\"))","v":""},"2e","$G$156",{"$f":"IF(LEN(TRIM(MID(G8450,4,10)))-LEN(SUBSTITUTE(TRIM(MID(G8450,4,10)),\"$\",\"\"))=0,\"$\"&CHAR(CODE(MID(G8450,2,1))+1)&\"$\"&TRIM(MID(G8450,4,10)),\"$\"&MID(G8450,2,1)&CHAR(CODE(MID(G8450,3,1))+1)&\"$\"&TRIM(MID(G8450,5,11)))","v":"$H$156"}]
[27974,{"$f":"Menu!$F$29","v":"X"},{"$f":"Menu!$J$29","v":2020},{"$f":"IF(ISBLANK(INDIRECT(\"'\"&F8451&\"'!\"&G8451)),\"\",INDIRECT(\"'\"&F8451&\"'!\"&G8451))","v":""},{"$f":"IF(ISBLANK(INDIRECT(\"'\"&F8451&\"'!\"&H8451)),\"\",IFERROR(VLOOKUP(TEXT(INDIRECT(\"'\"&F8451&\"'!\"&H8451),\"0\"),Notes!$B$5:$C$100,2,FALSE),\"\"))","v":""},"2e","$K$156","$L$156"]
[27975,{"$f":"Menu!$F$29","v":"X"},{"$f":"Menu!$J$29","v":2020},{"$f":"IF(ISBLANK(INDIRECT(\"'\"&F8452&\"'!\"&G8452)),\"\",INDIRECT(\"'\"&F8452&\"'!\"&G8452))","v":""},{"$f":"IF(ISBLANK(INDIRECT(\"'\"&F8452&\"'!\"&H8452)),\"\",IFERROR(VLOOKUP(TEXT(INDIRECT(\"'\"&F8452&\"'!\"&H8452),\"0\"),Notes!$B$5:$C$100,2,FALSE),\"\"))","v":""},"2e","$O$156","$P$156"]
[27976,{"$f":"Menu!$F$29","v":"X"},{"$f":"Menu!$J$29","v":2020},{"$f":"IF(ISBLANK(INDIRECT(\"'\"&F8453&\"'!\"&G8453)),\"\",INDIRECT(\"'\"&F8453&\"'!\"&G8453))","v":""},{"$f":"IF(ISBLANK(INDIRECT(\"'\"&F8453&\"'!\"&H8453)),\"\",IFERROR(VLOOKUP(TEXT(INDIRECT(\"'\"&F8453&\"'!\"&H8453),\"0\"),Notes!$B$5:$C$100,2,FALSE),\"\"))","v":""},"2e","$M$156","$N$156"]
[27977,{"$f":"Menu!$F$29","v":"X"},{"$f":"Menu!$J$29","v":2020},{"$f":"IF(ISBLANK(INDIRECT(\"'\"&F8454&\"'!\"&G8454)),\"\",INDIRECT(\"'\"&F8454&\"'!\"&G8454))","v":""},{"$f":"IF(ISBLANK(INDIRECT(\"'\"&F8454&\"'!\"&H8454)),\"\",IFERROR(VLOOKUP(TEXT(INDIRECT(\"'\"&F8454&\"'!\"&H8454),\"0\"),Notes!$B$5:$C$100,2,FALSE),\"\"))","v":""},"2e","$Q$156","$R$156"]
[27978,{"$f":"Menu!$F$29","v":"X"},{"$f":"Menu!$J$29","v":2020},{"$f":"IF(ISBLANK(INDIRECT(\"'\"&F8455&\"'!\"&G8455)),\"\",INDIRECT(\"'\"&F8455&\"'!\"&G8455))","v":""},{"$f":"IF(ISBLANK(INDIRECT(\"'\"&F8455&\"'!\"&H8455)),\"\",IFERROR(VLOOKUP(TEXT(INDIRECT(\"'\"&F8455&\"'!\"&H8455),\"0\"),Notes!$B$5:$C$100,2,FALSE),\"\"))","v":""},"2e","$U$156","$V$156"]
[27979,{"$f":"Menu!$F$29","v":"X"},{"$f":"Menu!$J$29","v":2020},{"$f":"IF(ISBLANK(INDIRECT(\"'\"&F8456&\"'!\"&G8456)),\"\",INDIRECT(\"'\"&F8456&\"'!\"&G8456))","v":""},{"$f":"IF(ISBLANK(INDIRECT(\"'\"&F8456&\"'!\"&H8456)),\"\",IFERROR(VLOOKUP(TEXT(INDIRECT(\"'\"&F8456&\"'!\"&H8456),\"0\"),Notes!$B$5:$C$100,2,FALSE),\"\"))","v":""},"2e","$S$156","$T$156"]
[27980,{"$f":"Menu!$F$29","v":"X"},{"$f":"Menu!$J$29","v":2020},{"$f":"IF(ISBLANK(INDIRECT(\"'\"&F8457&\"'!\"&G8457)),\"\",INDIRECT(\"'\"&F8457&\"'!\"&G8457))","v":""},{"$f":"IF(ISBLANK(INDIRECT(\"'\"&F8457&\"'!\"&H8457)),\"\",IFERROR(VLOOKUP(TEXT(INDIRECT(\"'\"&F8457&\"'!\"&H8457),\"0\"),Notes!$B$5:$C$100,2,FALSE),\"\"))","v":""},"2e","$W$156","$X$156"]
[27981,{"$f":"Menu!$F$29","v":"X"},{"$f":"Menu!$J$29","v":2020},{"$f":"IF(ISBLANK(INDIRECT(\"'\"&F8458&\"'!\"&G8458)),\"\",INDIRECT(\"'\"&F8458&\"'!\"&G8458))","v":""},{"$f":"IF(ISBLANK(INDIRECT(\"'\"&F8458&\"'!\"&H8458)),\"\",IFERROR(VLOOKUP(TEXT(INDIRECT(\"'\"&F8458&\"'!\"&H8458),\"0\"),Notes!$B$5:$C$100,2,FALSE),\"\"))","v":""},"2e","$AA$156","$AB$156"]
[27982,{"$f":"Menu!$F$29","v":"X"},{"$f":"Menu!$J$29","v":2020},{"$f":"IF(ISBLANK(INDIRECT(\"'\"&F8459&\"'!\"&G8459)),\"\",INDIRECT(\"'\"&F8459&\"'!\"&G8459))","v":""},{"$f":"IF(ISBLANK(INDIRECT(\"'\"&F8459&\"'!\"&H8459)),\"\",IFERROR(VLOOKUP(TEXT(INDIRECT(\"'\"&F8459&\"'!\"&H8459),\"0\"),Notes!$B$5:$C$100,2,FALSE),\"\"))","v":""},"2e","$Y$156","$Z$156"]
[27983,{"$f":"Menu!$F$29","v":"X"},{"$f":"Menu!$J$29","v":2020},{"$f":"IF(ISBLANK(INDIRECT(\"'\"&F8460&\"'!\"&G8460)),\"\",INDIRECT(\"'\"&F8460&\"'!\"&G8460))","v":""},{"$f":"IF(ISBLANK(INDIRECT(\"'\"&F8460&\"'!\"&H8460)),\"\",IFERROR(VLOOKUP(TEXT(INDIRECT(\"'\"&F8460&\"'!\"&H8460),\"0\"),Notes!$B$5:$C$100,2,FALSE),\"\"))","v":""},"2e","$AC$156","$AD$156"]
[27984,{"$f":"Menu!$F$29","v":"X"},{"$f":"Menu!$J$29","v":2020},{"$f":"IF(ISBLANK(INDIRECT(\"'\"&F8461&\"'!\"&G8461)),\"\",INDIRECT(\"'\"&F8461&\"'!\"&G8461))","v":""},{"$f":"IF(ISBLANK(INDIRECT(\"'\"&F8461&\"'!\"&H8461)),\"\",IFERROR(VLOOKUP(TEXT(INDIRECT(\"'\"&F8461&\"'!\"&H8461),\"0\"),Notes!$B$5:$C$100,2,FALSE),\"\"))","v":""},"2e","$AG$156","$AH$156"]
[27985,{"$f":"Menu!$F$29","v":"X"},{"$f":"Menu!$J$29","v":2020},{"$f":"IF(ISBLANK(INDIRECT(\"'\"&F8462&\"'!\"&G8462)),\"\",INDIRECT(\"'\"&F8462&\"'!\"&G8462))","v":""},{"$f":"IF(ISBLANK(INDIRECT(\"'\"&F8462&\"'!\"&H8462)),\"\",IFERROR(VLOOKUP(TEXT(INDIRECT(\"'\"&F8462&\"'!\"&H8462),\"0\"),Notes!$B$5:$C$100,2,FALSE),\"\"))","v":""},"2e","$AE$156","$AF$156"]
[27986,{"$f":"Menu!$F$29","v":"X"},{"$f":"Menu!$J$29","v":2020},{"$f":"IF(ISBLANK(INDIRECT(\"'\"&F8463&\"'!\"&G8463)),\"\",INDIRECT(\"'\"&F8463&\"'!\"&G8463))","v":""},{"$f":"IF(ISBLANK(INDIRECT(\"'\"&F8463&\"'!\"&H8463)),\"\",IFERROR(VLOOKUP(TEXT(INDIRECT(\"'\"&F8463&\"'!\"&H8463),\"0\"),Notes!$B$5:$C$100,2,FALSE),\"\"))","v":""},"2e","$AI$156","$AJ$156"]
[27987,{"$f":"Menu!$F$29","v":"X"},{"$f":"Menu!$J$29","v":2020},{"$f":"IF(ISBLANK(INDIRECT(\"'\"&F8464&\"'!\"&G8464)),\"\",INDIRECT(\"'\"&F8464&\"'!\"&G8464))","v":""},{"$f":"IF(ISBLANK(INDIRECT(\"'\"&F8464&\"'!\"&H8464)),\"\",IFERROR(VLOOKUP(TEXT(INDIRECT(\"'\"&F8464&\"'!\"&H8464),\"0\"),Notes!$B$5:$C$100,2,FALSE),\"\"))","v":""},"2e","$AM$156","$AN$156"]
[27988,{"$f":"Menu!$F$29","v":"X"},{"$f":"Menu!$J$29","v":2020},{"$f":"IF(ISBLANK(INDIRECT(\"'\"&F8465&\"'!\"&G8465)),\"\",INDIRECT(\"'\"&F8465&\"'!\"&G8465))","v":""},{"$f":"IF(ISBLANK(INDIRECT(\"'\"&F8465&\"'!\"&H8465)),\"\",IFERROR(VLOOKUP(TEXT(INDIRECT(\"'\"&F8465&\"'!\"&H8465),\"0\"),Notes!$B$5:$C$100,2,FALSE),\"\"))","v":""},"2e","$AK$156","$AL$156"]
[27989,{"$f":"Menu!$F$29","v":"X"},{"$f":"Menu!$J$29","v":2020},{"$f":"IF(ISBLANK(INDIRECT(\"'\"&F8466&\"'!\"&G8466)),\"\",INDIRECT(\"'\"&F8466&\"'!\"&G8466))","v":""},{"$f":"IF(ISBLANK(INDIRECT(\"'\"&F8466&\"'!\"&H8466)),\"\",IFERROR(VLOOKUP(TEXT(INDIRECT(\"'\"&F8466&\"'!\"&H8466),\"0\"),Notes!$B$5:$C$100,2,FALSE),\"\"))","v":""},"2e","$AO$156","$AP$156"]
[27990,{"$f":"Menu!$F$29","v":"X"},{"$f":"Menu!$J$29","v":2020},{"$f":"IF(ISBLANK(INDIRECT(\"'\"&F8467&\"'!\"&G8467)),\"\",INDIRECT(\"'\"&F8467&\"'!\"&G8467))","v":""},{"$f":"IF(ISBLANK(INDIRECT(\"'\"&F8467&\"'!\"&H8467)),\"\",IFERROR(VLOOKUP(TEXT(INDIRECT(\"'\"&F8467&\"'!\"&H8467),\"0\"),Notes!$B$5:$C$100,2,FALSE),\"\"))","v":""},"2e","$AS$156","$AT$156"]
[27991,{"$f":"Menu!$F$29","v":"X"},{"$f":"Menu!$J$29","v":2020},{"$f":"IF(ISBLANK(INDIRECT(\"'\"&F8468&\"'!\"&G8468)),\"\",INDIRECT(\"'\"&F8468&\"'!\"&G8468))","v":""},{"$f":"IF(ISBLANK(INDIRECT(\"'\"&F8468&\"'!\"&H8468)),\"\",IFERROR(VLOOKUP(TEXT(INDIRECT(\"'\"&F8468&\"'!\"&H8468),\"0\"),Notes!$B$5:$C$100,2,FALSE),\"\"))","v":""},"2e","$AQ$156","$AR$156"]
[27992,{"$f":"Menu!$F$29","v":"X"},{"$f":"Menu!$J$29","v":2020},{"$f":"IF(ISBLANK(INDIRECT(\"'\"&F8469&\"'!\"&G8469)),\"\",INDIRECT(\"'\"&F8469&\"'!\"&G8469))","v":""},{"$f":"IF(ISBLANK(INDIRECT(\"'\"&F8469&\"'!\"&H8469)),\"\",IFERROR(VLOOKUP(TEXT(INDIRECT(\"'\"&F8469&\"'!\"&H8469),\"0\"),Notes!$B$5:$C$100,2,FALSE),\"\"))","v":""},"2e","$AU$156","$AV$156"]
[27993,{"$f":"Menu!$F$29","v":"X"},{"$f":"Menu!$J$29","v":2020},{"$f":"IF(ISBLANK(INDIRECT(\"'\"&F8470&\"'!\"&G8470)),\"\",INDIRECT(\"'\"&F8470&\"'!\"&G8470))","v":""},{"$f":"IF(ISBLANK(INDIRECT(\"'\"&F8470&\"'!\"&H8470)),\"\",IFERROR(VLOOKUP(TEXT(INDIRECT(\"'\"&F8470&\"'!\"&H8470),\"0\"),Notes!$B$5:$C$100,2,FALSE),\"\"))","v":""},"2e","$AY$156","$AZ$156"]
[27994,{"$f":"Menu!$F$29","v":"X"},{"$f":"Menu!$J$29","v":2020},{"$f":"IF(ISBLANK(INDIRECT(\"'\"&F8471&\"'!\"&G8471)),\"\",INDIRECT(\"'\"&F8471&\"'!\"&G8471))","v":""},{"$f":"IF(ISBLANK(INDIRECT(\"'\"&F8471&\"'!\"&H8471)),\"\",IFERROR(VLOOKUP(TEXT(INDIRECT(\"'\"&F8471&\"'!\"&H8471),\"0\"),Notes!$B$5:$C$100,2,FALSE),\"\"))","v":""},"2e","$AW$156","$AX$156"]
[27995,{"$f":"Menu!$F$29","v":"X"},{"$f":"Menu!$J$29","v":2020},{"$f":"IF(ISBLANK(INDIRECT(\"'\"&F8472&\"'!\"&G8472)),\"\",INDIRECT(\"'\"&F8472&\"'!\"&G8472))","v":""},{"$f":"IF(ISBLANK(INDIRECT(\"'\"&F8472&\"'!\"&H8472)),\"\",IFERROR(VLOOKUP(TEXT(INDIRECT(\"'\"&F8472&\"'!\"&H8472),\"0\"),Notes!$B$5:$C$100,2,FALSE),\"\"))","v":""},"2e","$BA$156","$BB$156"]
[27996,{"$f":"Menu!$F$29","v":"X"},{"$f":"Menu!$J$29","v":2020},{"$f":"IF(ISBLANK(INDIRECT(\"'\"&F8473&\"'!\"&G8473)),\"\",INDIRECT(\"'\"&F8473&\"'!\"&G8473))","v":""},{"$f":"IF(ISBLANK(INDIRECT(\"'\"&F8473&\"'!\"&H8473)),\"\",IFERROR(VLOOKUP(TEXT(INDIRECT(\"'\"&F8473&\"'!\"&H8473),\"0\"),Notes!$B$5:$C$100,2,FALSE),\"\"))","v":""},"2e","$BE$156","$BF$156"]
[27997,{"$f":"Menu!$F$29","v":"X"},{"$f":"Menu!$J$29","v":2020},{"$f":"IF(ISBLANK(INDIRECT(\"'\"&F8474&\"'!\"&G8474)),\"\",INDIRECT(\"'\"&F8474&\"'!\"&G8474))","v":""},{"$f":"IF(ISBLANK(INDIRECT(\"'\"&F8474&\"'!\"&H8474)),\"\",IFERROR(VLOOKUP(TEXT(INDIRECT(\"'\"&F8474&\"'!\"&H8474),\"0\"),Notes!$B$5:$C$100,2,FALSE),\"\"))","v":""},"2e","$BC$156","$BD$156"]
[27998,{"$f":"Menu!$F$29","v":"X"},{"$f":"Menu!$J$29","v":2020},{"$f":"IF(ISBLANK(INDIRECT(\"'\"&F8475&\"'!\"&G8475)),\"\",INDIRECT(\"'\"&F8475&\"'!\"&G8475))","v":""},{"$f":"IF(ISBLANK(INDIRECT(\"'\"&F8475&\"'!\"&H8475)),\"\",IFERROR(VLOOKUP(TEXT(INDIRECT(\"'\"&F8475&\"'!\"&H8475),\"0\"),Notes!$B$5:$C$100,2,FALSE),\"\"))","v":""},"2b","$E$155","$F$155"]
[27999,{"$f":"Menu!$F$29","v":"X"},{"$f":"Menu!$J$29","v":2020},{"$f":"IF(ISBLANK(INDIRECT(\"'\"&F8476&\"'!\"&G8476)),\"\",INDIRECT(\"'\"&F8476&\"'!\"&G8476))","v":""},{"$f":"IF(ISBLANK(INDIRECT(\"'\"&F8476&\"'!\"&H8476)),\"\",IFERROR(VLOOKUP(TEXT(INDIRECT(\"'\"&F8476&\"'!\"&H8476),\"0\"),Notes!$B$5:$C$100,2,FALSE),\"\"))","v":""},"2b","$I$155","$J$155"]
[28000,{"$f":"Menu!$F$29","v":"X"},{"$f":"Menu!$J$29","v":2020},{"$f":"IF(ISBLANK(INDIRECT(\"'\"&F8477&\"'!\"&G8477)),\"\",INDIRECT(\"'\"&F8477&\"'!\"&G8477))","v":""},{"$f":"IF(ISBLANK(INDIRECT(\"'\"&F8477&\"'!\"&H8477)),\"\",IFERROR(VLOOKUP(TEXT(INDIRECT(\"'\"&F8477&\"'!\"&H8477),\"0\"),Notes!$B$5:$C$100,2,FALSE),\"\"))","v":""},"2b","$G$155","$H$155"]
[28001,{"$f":"Menu!$F$29","v":"X"},{"$f":"Menu!$J$29","v":2020},{"$f":"IF(ISBLANK(INDIRECT(\"'\"&F8478&\"'!\"&G8478)),\"\",INDIRECT(\"'\"&F8478&\"'!\"&G8478))","v":""},null,"2a","$G$155","$H$155"]
[28002,{"$f":"Menu!$F$29","v":"X"},{"$f":"Menu!$J$29","v":2020},{"$f":"IF(ISBLANK(INDIRECT(\"'\"&F8479&\"'!\"&G8479)),\"\",INDIRECT(\"'\"&F8479&\"'!\"&G8479))","v":""},{"$f":"IF(ISBLANK(INDIRECT(\"'\"&F8479&\"'!\"&H8479)),\"\",IFERROR(VLOOKUP(TEXT(INDIRECT(\"'\"&F8479&\"'!\"&H8479),\"0\"),Notes!$B$5:$C$100,2,FALSE),\"\"))","v":""},"2b","$W$155","$X$155"]
[28003,{"$f":"Menu!$F$29","v":"X"},{"$f":"Menu!$J$29","v":2020},{"$f":"IF(ISBLANK(INDIRECT(\"'\"&F8480&\"'!\"&G8480)),\"\",INDIRECT(\"'\"&F8480&\"'!\"&G8480))","v":""},{"$f":"IF(ISBLANK(INDIRECT(\"'\"&F8480&\"'!\"&H8480)),\"\",IFERROR(VLOOKUP(TEXT(INDIRECT(\"'\"&F8480&\"'!\"&H8480),\"0\"),Notes!$B$5:$C$100,2,FALSE),\"\"))","v":""},"2b","$AA$155","$AB$155"]
[28004,{"$f":"Menu!$F$29","v":"X"},{"$f":"Menu!$J$29","v":2020},{"$f":"IF(ISBLANK(INDIRECT(\"'\"&F8481&\"'!\"&G8481)),\"\",INDIRECT(\"'\"&F8481&\"'!\"&G8481))","v":""},{"$f":"IF(ISBLANK(INDIRECT(\"'\"&F8481&\"'!\"&H8481)),\"\",IFERROR(VLOOKUP(TEXT(INDIRECT(\"'\"&F8481&\"'!\"&H8481),\"0\"),Notes!$B$5:$C$100,2,FALSE),\"\"))","v":""},"2b","$Y$155","$Z$155"]
[28005,{"$f":"Menu!$F$29","v":"X"},{"$f":"Menu!$J$29","v":2020},{"$f":"IF(ISBLANK(INDIRECT(\"'\"&F8482&\"'!\"&G8482)),\"\",INDIRECT(\"'\"&F8482&\"'!\"&G8482))","v":""},{"$f":"IF(ISBLANK(INDIRECT(\"'\"&F8482&\"'!\"&H8482)),\"\",IFERROR(VLOOKUP(TEXT(INDIRECT(\"'\"&F8482&\"'!\"&H8482),\"0\"),Notes!$B$5:$C$100,2,FALSE),\"\"))","v":""},"2d","$AC$155","$AD$155"]
[28006,{"$f":"Menu!$F$29","v":"X"},{"$f":"Menu!$J$29","v":2020},{"$f":"IF(ISBLANK(INDIRECT(\"'\"&F8483&\"'!\"&G8483)),\"\",INDIRECT(\"'\"&F8483&\"'!\"&G8483))","v":""},{"$f":"IF(ISBLANK(INDIRECT(\"'\"&F8483&\"'!\"&H8483)),\"\",IFERROR(VLOOKUP(TEXT(INDIRECT(\"'\"&F8483&\"'!\"&H8483),\"0\"),Notes!$B$5:$C$100,2,FALSE),\"\"))","v":""},"2d","$AG$155","$AH$155"]
[28007,{"$f":"Menu!$F$29","v":"X"},{"$f":"Menu!$J$29","v":2020},{"$f":"IF(ISBLANK(INDIRECT(\"'\"&F8484&\"'!\"&G8484)),\"\",INDIRECT(\"'\"&F8484&\"'!\"&G8484))","v":""},{"$f":"IF(ISBLANK(INDIRECT(\"'\"&F8484&\"'!\"&H8484)),\"\",IFERROR(VLOOKUP(TEXT(INDIRECT(\"'\"&F8484&\"'!\"&H8484),\"0\"),Notes!$B$5:$C$100,2,FALSE),\"\"))","v":""},"2d","$AE$155","$AF$155"]
[28008,{"$f":"Menu!$F$29","v":"X"},{"$f":"Menu!$J$29","v":2020},{"$f":"IF(ISBLANK(INDIRECT(\"'\"&F8485&\"'!\"&G8485)),\"\",INDIRECT(\"'\"&F8485&\"'!\"&G8485))","v":""},{"$f":"IF(ISBLANK(INDIRECT(\"'\"&F8485&\"'!\"&H8485)),\"\",IFERROR(VLOOKUP(TEXT(INDIRECT(\"'\"&F8485&\"'!\"&H8485),\"0\"),Notes!$B$5:$C$100,2,FALSE),\"\"))","v":""},"2d","$W$155","$X$155"]
[28009,{"$f":"Menu!$F$29","v":"X"},{"$f":"Menu!$J$29","v":2020},{"$f":"IF(ISBLANK(INDIRECT(\"'\"&F8486&\"'!\"&G8486)),\"\",INDIRECT(\"'\"&F8486&\"'!\"&G8486))","v":""},{"$f":"IF(ISBLANK(INDIRECT(\"'\"&F8486&\"'!\"&H8486)),\"\",IFERROR(VLOOKUP(TEXT(INDIRECT(\"'\"&F8486&\"'!\"&H8486),\"0\"),Notes!$B$5:$C$100,2,FALSE),\"\"))","v":""},"2d","$AA$155","$AB$155"]
[28010,{"$f":"Menu!$F$29","v":"X"},{"$f":"Menu!$J$29","v":2020},{"$f":"IF(ISBLANK(INDIRECT(\"'\"&F8487&\"'!\"&G8487)),\"\",INDIRECT(\"'\"&F8487&\"'!\"&G8487))","v":""},{"$f":"IF(ISBLANK(INDIRECT(\"'\"&F8487&\"'!\"&H8487)),\"\",IFERROR(VLOOKUP(TEXT(INDIRECT(\"'\"&F8487&\"'!\"&H8487),\"0\"),Notes!$B$5:$C$100,2,FALSE),\"\"))","v":""},"2d","$Y$155","$Z$155"]
[28011,{"$f":"Menu!$F$29","v":"X"},{"$f":"Menu!$J$29","v":2020},{"$f":"IF(ISBLANK(INDIRECT(\"'\"&F8488&\"'!\"&G8488)),\"\",INDIRECT(\"'\"&F8488&\"'!\"&G8488))","v":""},{"$f":"IF(ISBLANK(INDIRECT(\"'\"&F8488&\"'!\"&H8488)),\"\",IFERROR(VLOOKUP(TEXT(INDIRECT(\"'\"&F8488&\"'!\"&H8488),\"0\"),Notes!$B$5:$C$100,2,FALSE),\"\"))","v":""},"2d","$E$155","$F$155"]
[28012,{"$f":"Menu!$F$29","v":"X"},{"$f":"Menu!$J$29","v":2020},{"$f":"IF(ISBLANK(INDIRECT(\"'\"&F8489&\"'!\"&G8489)),\"\",INDIRECT(\"'\"&F8489&\"'!\"&G8489))","v":""},{"$f":"IF(ISBLANK(INDIRECT(\"'\"&F8489&\"'!\"&H8489)),\"\",IFERROR(VLOOKUP(TEXT(INDIRECT(\"'\"&F8489&\"'!\"&H8489),\"0\"),Notes!$B$5:$C$100,2,FALSE),\"\"))","v":""},"2d","$I$155","$J$155"]
[28013,{"$f":"Menu!$F$29","v":"X"},{"$f":"Menu!$J$29","v":2020},{"$f":"IF(ISBLANK(INDIRECT(\"'\"&F8490&\"'!\"&G8490)),\"\",INDIRECT(\"'\"&F8490&\"'!\"&G8490))","v":""},{"$f":"IF(ISBLANK(INDIRECT(\"'\"&F8490&\"'!\"&H8490)),\"\",IFERROR(VLOOKUP(TEXT(INDIRECT(\"'\"&F8490&\"'!\"&H8490),\"0\"),Notes!$B$5:$C$100,2,FALSE),\"\"))","v":""},"2d","$G$155","$H$155"]
[28014,{"$f":"Menu!$F$29","v":"X"},{"$f":"Menu!$J$29","v":2020},{"$f":"IF(ISBLANK(INDIRECT(\"'\"&F8491&\"'!\"&G8491)),\"\",INDIRECT(\"'\"&F8491&\"'!\"&G8491))","v":""},{"$f":"IF(ISBLANK(INDIRECT(\"'\"&F8491&\"'!\"&H8491)),\"\",IFERROR(VLOOKUP(TEXT(INDIRECT(\"'\"&F8491&\"'!\"&H8491),\"0\"),Notes!$B$5:$C$100,2,FALSE),\"\"))","v":""},"2a","$Q$155","$R$155"]
[28015,{"$f":"Menu!$F$29","v":"X"},{"$f":"Menu!$J$29","v":2020},{"$f":"IF(ISBLANK(INDIRECT(\"'\"&F8492&\"'!\"&G8492)),\"\",INDIRECT(\"'\"&F8492&\"'!\"&G8492))","v":""},{"$f":"IF(ISBLANK(INDIRECT(\"'\"&F8492&\"'!\"&H8492)),\"\",IFERROR(VLOOKUP(TEXT(INDIRECT(\"'\"&F8492&\"'!\"&H8492),\"0\"),Notes!$B$5:$C$100,2,FALSE),\"\"))","v":""},"2a","$U$155","$V$155"]
[28016,{"$f":"Menu!$F$29","v":"X"},{"$f":"Menu!$J$29","v":2020},{"$f":"IF(ISBLANK(INDIRECT(\"'\"&F8493&\"'!\"&G8493)),\"\",INDIRECT(\"'\"&F8493&\"'!\"&G8493))","v":""},{"$f":"IF(ISBLANK(INDIRECT(\"'\"&F8493&\"'!\"&H8493)),\"\",IFERROR(VLOOKUP(TEXT(INDIRECT(\"'\"&F8493&\"'!\"&H8493),\"0\"),Notes!$B$5:$C$100,2,FALSE),\"\"))","v":""},"2a","$S$155","$T$155"]
[28017,{"$f":"Menu!$F$29","v":"X"},{"$f":"Menu!$J$29","v":2020},{"$f":"IF(ISBLANK(INDIRECT(\"'\"&F8494&\"'!\"&G8494)),\"\",INDIRECT(\"'\"&F8494&\"'!\"&G8494))","v":""},{"$f":"IF(ISBLANK(INDIRECT(\"'\"&F8494&\"'!\"&H8494)),\"\",IFERROR(VLOOKUP(TEXT(INDIRECT(\"'\"&F8494&\"'!\"&H8494),\"0\"),Notes!$B$5:$C$100,2,FALSE),\"\"))","v":""},"2d","$K$155","$L$155"]
[28018,{"$f":"Menu!$F$29","v":"X"},{"$f":"Menu!$J$29","v":2020},{"$f":"IF(ISBLANK(INDIRECT(\"'\"&F8495&\"'!\"&G8495)),\"\",INDIRECT(\"'\"&F8495&\"'!\"&G8495))","v":""},{"$f":"IF(ISBLANK(INDIRECT(\"'\"&F8495&\"'!\"&H8495)),\"\",IFERROR(VLOOKUP(TEXT(INDIRECT(\"'\"&F8495&\"'!\"&H8495),\"0\"),Notes!$B$5:$C$100,2,FALSE),\"\"))","v":""},"2d","$O$155","$P$155"]
[28019,{"$f":"Menu!$F$29","v":"X"},{"$f":"Menu!$J$29","v":2020},{"$f":"IF(ISBLANK(INDIRECT(\"'\"&F8496&\"'!\"&G8496)),\"\",INDIRECT(\"'\"&F8496&\"'!\"&G8496))","v":""},{"$f":"IF(ISBLANK(INDIRECT(\"'\"&F8496&\"'!\"&H8496)),\"\",IFERROR(VLOOKUP(TEXT(INDIRECT(\"'\"&F8496&\"'!\"&H8496),\"0\"),Notes!$B$5:$C$100,2,FALSE),\"\"))","v":""},"2d","$M$155","$N$155"]
[28020,{"$f":"Menu!$F$29","v":"X"},{"$f":"Menu!$J$29","v":2020},{"$f":"IF(ISBLANK(INDIRECT(\"'\"&F8497&\"'!\"&G8497)),\"\",INDIRECT(\"'\"&F8497&\"'!\"&G8497))","v":""},{"$f":"IF(ISBLANK(INDIRECT(\"'\"&F8497&\"'!\"&H8497)),\"\",IFERROR(VLOOKUP(TEXT(INDIRECT(\"'\"&F8497&\"'!\"&H8497),\"0\"),Notes!$B$5:$C$100,2,FALSE),\"\"))","v":""},"2d","$Q$155","$R$155"]
[28021,{"$f":"Menu!$F$29","v":"X"},{"$f":"Menu!$J$29","v":2020},{"$f":"IF(ISBLANK(INDIRECT(\"'\"&F8498&\"'!\"&G8498)),\"\",INDIRECT(\"'\"&F8498&\"'!\"&G8498))","v":""},{"$f":"IF(ISBLANK(INDIRECT(\"'\"&F8498&\"'!\"&H8498)),\"\",IFERROR(VLOOKUP(TEXT(INDIRECT(\"'\"&F8498&\"'!\"&H8498),\"0\"),Notes!$B$5:$C$100,2,FALSE),\"\"))","v":""},"2d","$U$155","$V$155"]
[28022,{"$f":"Menu!$F$29","v":"X"},{"$f":"Menu!$J$29","v":2020},{"$f":"IF(ISBLANK(INDIRECT(\"'\"&F8499&\"'!\"&G8499)),\"\",INDIRECT(\"'\"&F8499&\"'!\"&G8499))","v":""},{"$f":"IF(ISBLANK(INDIRECT(\"'\"&F8499&\"'!\"&H8499)),\"\",IFERROR(VLOOKUP(TEXT(INDIRECT(\"'\"&F8499&\"'!\"&H8499),\"0\"),Notes!$B$5:$C$100,2,FALSE),\"\"))","v":""},"2d","$S$155","$T$155"]
[28023,{"$f":"Menu!$F$29","v":"X"},{"$f":"Menu!$J$29","v":2020},{"$f":"IF(ISBLANK(INDIRECT(\"'\"&F8500&\"'!\"&G8500)),\"\",INDIRECT(\"'\"&F8500&\"'!\"&G8500))","v":""},{"$f":"IF(ISBLANK(INDIRECT(\"'\"&F8500&\"'!\"&H8500)),\"\",IFERROR(VLOOKUP(TEXT(INDIRECT(\"'\"&F8500&\"'!\"&H8500),\"0\"),Notes!$B$5:$C$100,2,FALSE),\"\"))","v":""},"2a","$K$155","$L$155"]
[28024,{"$f":"Menu!$F$29","v":"X"},{"$f":"Menu!$J$29","v":2020},{"$f":"IF(ISBLANK(INDIRECT(\"'\"&F8501&\"'!\"&G8501)),\"\",INDIRECT(\"'\"&F8501&\"'!\"&G8501))","v":""},{"$f":"IF(ISBLANK(INDIRECT(\"'\"&F8501&\"'!\"&H8501)),\"\",IFERROR(VLOOKUP(TEXT(INDIRECT(\"'\"&F8501&\"'!\"&H8501),\"0\"),Notes!$B$5:$C$100,2,FALSE),\"\"))","v":""},"2a","$O$155","$P$155"]
[28025,{"$f":"Menu!$F$29","v":"X"},{"$f":"Menu!$J$29","v":2020},{"$f":"IF(ISBLANK(INDIRECT(\"'\"&F8502&\"'!\"&G8502)),\"\",INDIRECT(\"'\"&F8502&\"'!\"&G8502))","v":""},{"$f":"IF(ISBLANK(INDIRECT(\"'\"&F8502&\"'!\"&H8502)),\"\",IFERROR(VLOOKUP(TEXT(INDIRECT(\"'\"&F8502&\"'!\"&H8502),\"0\"),Notes!$B$5:$C$100,2,FALSE),\"\"))","v":""},"2a","$M$155","$N$155"]
[28026,{"$f":"Menu!$F$29","v":"X"},{"$f":"Menu!$J$29","v":2020},{"$f":"IF(ISBLANK(INDIRECT(\"'\"&F8503&\"'!\"&G8503)),\"\",INDIRECT(\"'\"&F8503&\"'!\"&G8503))","v":""},null,"2a","$E$155","$F$155"]
[31775,{"$f":"Menu!$F$29","v":"X"},{"$f":"Menu!$J$29","v":2020},{"$f":"IF(ISBLANK(INDIRECT(\"'\"&F8504&\"'!\"&G8504)),\"\",INDIRECT(\"'\"&F8504&\"'!\"&G8504))","v":""},{"$f":"IF(ISBLANK(INDIRECT(\"'\"&F8504&\"'!\"&H8504)),\"\",IFERROR(VLOOKUP(TEXT(INDIRECT(\"'\"&F8504&\"'!\"&H8504),\"0\"),Notes!$B$5:$C$100,2,FALSE),\"\"))","v":""},"2b","$K$68","$L$68"]
[31776,{"$f":"Menu!$F$29","v":"X"},{"$f":"Menu!$J$29","v":2020},{"$f":"IF(ISBLANK(INDIRECT(\"'\"&F8505&\"'!\"&G8505)),\"\",INDIRECT(\"'\"&F8505&\"'!\"&G8505))","v":""},{"$f":"IF(ISBLANK(INDIRECT(\"'\"&F8505&\"'!\"&H8505)),\"\",IFERROR(VLOOKUP(TEXT(INDIRECT(\"'\"&F8505&\"'!\"&H8505),\"0\"),Notes!$B$5:$C$100,2,FALSE),\"\"))","v":""},"2b","$O$68","$P$68"]
[31777,{"$f":"Menu!$F$29","v":"X"},{"$f":"Menu!$J$29","v":2020},{"$f":"IF(ISBLANK(INDIRECT(\"'\"&F8506&\"'!\"&G8506)),\"\",INDIRECT(\"'\"&F8506&\"'!\"&G8506))","v":""},{"$f":"IF(ISBLANK(INDIRECT(\"'\"&F8506&\"'!\"&H8506)),\"\",IFERROR(VLOOKUP(TEXT(INDIRECT(\"'\"&F8506&\"'!\"&H8506),\"0\"),Notes!$B$5:$C$100,2,FALSE),\"\"))","v":""},"2b","$M$68","$N$68"]
[31778,{"$f":"Menu!$F$29","v":"X"},{"$f":"Menu!$J$29","v":2020},{"$f":"IF(ISBLANK(INDIRECT(\"'\"&F8507&\"'!\"&G8507)),\"\",INDIRECT(\"'\"&F8507&\"'!\"&G8507))","v":""},{"$f":"IF(ISBLANK(INDIRECT(\"'\"&F8507&\"'!\"&H8507)),\"\",IFERROR(VLOOKUP(TEXT(INDIRECT(\"'\"&F8507&\"'!\"&H8507),\"0\"),Notes!$B$5:$C$100,2,FALSE),\"\"))","v":""},"2b","$Q$68","$R$68"]
[31779,{"$f":"Menu!$F$29","v":"X"},{"$f":"Menu!$J$29","v":2020},{"$f":"IF(ISBLANK(INDIRECT(\"'\"&F8508&\"'!\"&G8508)),\"\",INDIRECT(\"'\"&F8508&\"'!\"&G8508))","v":""},{"$f":"IF(ISBLANK(INDIRECT(\"'\"&F8508&\"'!\"&H8508)),\"\",IFERROR(VLOOKUP(TEXT(INDIRECT(\"'\"&F8508&\"'!\"&H8508),\"0\"),Notes!$B$5:$C$100,2,FALSE),\"\"))","v":""},"2b","$U$68","$V$68"]
[31780,{"$f":"Menu!$F$29","v":"X"},{"$f":"Menu!$J$29","v":2020},{"$f":"IF(ISBLANK(INDIRECT(\"'\"&F8509&\"'!\"&G8509)),\"\",INDIRECT(\"'\"&F8509&\"'!\"&G8509))","v":""},{"$f":"IF(ISBLANK(INDIRECT(\"'\"&F8509&\"'!\"&H8509)),\"\",IFERROR(VLOOKUP(TEXT(INDIRECT(\"'\"&F8509&\"'!\"&H8509),\"0\"),Notes!$B$5:$C$100,2,FALSE),\"\"))","v":""},"2b","$S$68","$T$68"]
[31781,{"$f":"Menu!$F$29","v":"X"},{"$f":"Menu!$J$29","v":2020},{"$f":"IF(ISBLANK(INDIRECT(\"'\"&F8510&\"'!\"&G8510)),\"\",INDIRECT(\"'\"&F8510&\"'!\"&G8510))","v":""},{"$f":"IF(ISBLANK(INDIRECT(\"'\"&F8510&\"'!\"&H8510)),\"\",IFERROR(VLOOKUP(TEXT(INDIRECT(\"'\"&F8510&\"'!\"&H8510),\"0\"),Notes!$B$5:$C$100,2,FALSE),\"\"))","v":""},"2a","$I$68","$J$68"]
[31782,{"$f":"Menu!$F$29","v":"X"},{"$f":"Menu!$J$29","v":2020},{"$f":"IF(ISBLANK(INDIRECT(\"'\"&F8511&\"'!\"&G8511)),\"\",INDIRECT(\"'\"&F8511&\"'!\"&G8511))","v":""},{"$f":"IF(ISBLANK(INDIRECT(\"'\"&F8511&\"'!\"&H8511)),\"\",IFERROR(VLOOKUP(TEXT(INDIRECT(\"'\"&F8511&\"'!\"&H8511),\"0\"),Notes!$B$5:$C$100,2,FALSE),\"\"))","v":""},"2c","$E$68","$F$68"]
[31783,{"$f":"Menu!$F$29","v":"X"},{"$f":"Menu!$J$29","v":2020},{"$f":"IF(ISBLANK(INDIRECT(\"'\"&F8512&\"'!\"&G8512)),\"\",INDIRECT(\"'\"&F8512&\"'!\"&G8512))","v":""},{"$f":"IF(ISBLANK(INDIRECT(\"'\"&F8512&\"'!\"&H8512)),\"\",IFERROR(VLOOKUP(TEXT(INDIRECT(\"'\"&F8512&\"'!\"&H8512),\"0\"),Notes!$B$5:$C$100,2,FALSE),\"\"))","v":""},"2c","$I$68","$J$68"]
[31784,{"$f":"Menu!$F$29","v":"X"},{"$f":"Menu!$J$29","v":2020},{"$f":"IF(ISBLANK(INDIRECT(\"'\"&F8513&\"'!\"&G8513)),\"\",INDIRECT(\"'\"&F8513&\"'!\"&G8513))","v":""},{"$f":"IF(ISBLANK(INDIRECT(\"'\"&F8513&\"'!\"&H8513)),\"\",IFERROR(VLOOKUP(TEXT(INDIRECT(\"'\"&F8513&\"'!\"&H8513),\"0\"),Notes!$B$5:$C$100,2,FALSE),\"\"))","v":""},"2c","$G$68","$H$68"]
[31785,{"$f":"Menu!$F$29","v":"X"},{"$f":"Menu!$J$29","v":2020},{"$f":"IF(ISBLANK(INDIRECT(\"'\"&F8514&\"'!\"&G8514)),\"\",INDIRECT(\"'\"&F8514&\"'!\"&G8514))","v":""},{"$f":"IF(ISBLANK(INDIRECT(\"'\"&F8514&\"'!\"&H8514)),\"\",IFERROR(VLOOKUP(TEXT(INDIRECT(\"'\"&F8514&\"'!\"&H8514),\"0\"),Notes!$B$5:$C$100,2,FALSE),\"\"))","v":""},"2c","$K$68",{"$f":"IF(LEN(TRIM(MID(G8514,4,10)))-LEN(SUBSTITUTE(TRIM(MID(G8514,4,10)),\"$\",\"\"))=0,\"$\"&CHAR(CODE(MID(G8514,2,1))+1)&\"$\"&TRIM(MID(G8514,4,10)),\"$\"&MID(G8514,2,1)&CHAR(CODE(MID(G8514,3,1))+1)&\"$\"&TRIM(MID(G8514,5,11)))","v":"$L$68"}]
[31786,{"$f":"Menu!$F$29","v":"X"},{"$f":"Menu!$J$29","v":2020},{"$f":"IF(ISBLANK(INDIRECT(\"'\"&F8515&\"'!\"&G8515)),\"\",INDIRECT(\"'\"&F8515&\"'!\"&G8515))","v":""},{"$f":"IF(ISBLANK(INDIRECT(\"'\"&F8515&\"'!\"&H8515)),\"\",IFERROR(VLOOKUP(TEXT(INDIRECT(\"'\"&F8515&\"'!\"&H8515),\"0\"),Notes!$B$5:$C$100,2,FALSE),\"\"))","v":""},"2c","$O$68","$P$68"]
[31787,{"$f":"Menu!$F$29","v":"X"},{"$f":"Menu!$J$29","v":2020},{"$f":"IF(ISBLANK(INDIRECT(\"'\"&F8516&\"'!\"&G8516)),\"\",INDIRECT(\"'\"&F8516&\"'!\"&G8516))","v":""},{"$f":"IF(ISBLANK(INDIRECT(\"'\"&F8516&\"'!\"&H8516)),\"\",IFERROR(VLOOKUP(TEXT(INDIRECT(\"'\"&F8516&\"'!\"&H8516),\"0\"),Notes!$B$5:$C$100,2,FALSE),\"\"))","v":""},"2c","$M$68","$N$68"]
[31788,{"$f":"Menu!$F$29","v":"X"},{"$f":"Menu!$J$29","v":2020},{"$f":"IF(ISBLANK(INDIRECT(\"'\"&F8517&\"'!\"&G8517)),\"\",INDIRECT(\"'\"&F8517&\"'!\"&G8517))","v":""},{"$f":"IF(ISBLANK(INDIRECT(\"'\"&F8517&\"'!\"&H8517)),\"\",IFERROR(VLOOKUP(TEXT(INDIRECT(\"'\"&F8517&\"'!\"&H8517),\"0\"),Notes!$B$5:$C$100,2,FALSE),\"\"))","v":""},"2c","$Q$68","$R$68"]
[31789,{"$f":"Menu!$F$29","v":"X"},{"$f":"Menu!$J$29","v":2020},{"$f":"IF(ISBLANK(INDIRECT(\"'\"&F8518&\"'!\"&G8518)),\"\",INDIRECT(\"'\"&F8518&\"'!\"&G8518))","v":""},{"$f":"IF(ISBLANK(INDIRECT(\"'\"&F8518&\"'!\"&H8518)),\"\",IFERROR(VLOOKUP(TEXT(INDIRECT(\"'\"&F8518&\"'!\"&H8518),\"0\"),Notes!$B$5:$C$100,2,FALSE),\"\"))","v":""},"2c","$U$68","$V$68"]
[31790,{"$f":"Menu!$F$29","v":"X"},{"$f":"Menu!$J$29","v":2020},{"$f":"IF(ISBLANK(INDIRECT(\"'\"&F8519&\"'!\"&G8519)),\"\",INDIRECT(\"'\"&F8519&\"'!\"&G8519))","v":""},{"$f":"IF(ISBLANK(INDIRECT(\"'\"&F8519&\"'!\"&H8519)),\"\",IFERROR(VLOOKUP(TEXT(INDIRECT(\"'\"&F8519&\"'!\"&H8519),\"0\"),Notes!$B$5:$C$100,2,FALSE),\"\"))","v":""},"2c","$S$68","$T$68"]
[31791,{"$f":"Menu!$F$29","v":"X"},{"$f":"Menu!$J$29","v":2020},{"$f":"IF(ISBLANK(INDIRECT(\"'\"&F8520&\"'!\"&G8520)),\"\",INDIRECT(\"'\"&F8520&\"'!\"&G8520))","v":""},{"$f":"IF(ISBLANK(INDIRECT(\"'\"&F8520&\"'!\"&H8520)),\"\",IFERROR(VLOOKUP(TEXT(INDIRECT(\"'\"&F8520&\"'!\"&H8520),\"0\"),Notes!$B$5:$C$100,2,FALSE),\"\"))","v":""},"2c","$W$68","$X$68"]
[31792,{"$f":"Menu!$F$29","v":"X"},{"$f":"Menu!$J$29","v":2020},{"$f":"IF(ISBLANK(INDIRECT(\"'\"&F8521&\"'!\"&G8521)),\"\",INDIRECT(\"'\"&F8521&\"'!\"&G8521))","v":""},{"$f":"IF(ISBLANK(INDIRECT(\"'\"&F8521&\"'!\"&H8521)),\"\",IFERROR(VLOOKUP(TEXT(INDIRECT(\"'\"&F8521&\"'!\"&H8521),\"0\"),Notes!$B$5:$C$100,2,FALSE),\"\"))","v":""},"2c","$AA$68","$AB$68"]
[31793,{"$f":"Menu!$F$29","v":"X"},{"$f":"Menu!$J$29","v":2020},{"$f":"IF(ISBLANK(INDIRECT(\"'\"&F8522&\"'!\"&G8522)),\"\",INDIRECT(\"'\"&F8522&\"'!\"&G8522))","v":""},{"$f":"IF(ISBLANK(INDIRECT(\"'\"&F8522&\"'!\"&H8522)),\"\",IFERROR(VLOOKUP(TEXT(INDIRECT(\"'\"&F8522&\"'!\"&H8522),\"0\"),Notes!$B$5:$C$100,2,FALSE),\"\"))","v":""},"2c","$Y$68","$Z$68"]
[31794,{"$f":"Menu!$F$29","v":"X"},{"$f":"Menu!$J$29","v":2020},{"$f":"IF(ISBLANK(INDIRECT(\"'\"&F8523&\"'!\"&G8523)),\"\",INDIRECT(\"'\"&F8523&\"'!\"&G8523))","v":""},{"$f":"IF(ISBLANK(INDIRECT(\"'\"&F8523&\"'!\"&H8523)),\"\",IFERROR(VLOOKUP(TEXT(INDIRECT(\"'\"&F8523&\"'!\"&H8523),\"0\"),Notes!$B$5:$C$100,2,FALSE),\"\"))","v":""},"2e","$BG$69","$BH$69"]
[31795,{"$f":"Menu!$F$29","v":"X"},{"$f":"Menu!$J$29","v":2020},{"$f":"IF(ISBLANK(INDIRECT(\"'\"&F8524&\"'!\"&G8524)),\"\",INDIRECT(\"'\"&F8524&\"'!\"&G8524))","v":""},{"$f":"IF(ISBLANK(INDIRECT(\"'\"&F8524&\"'!\"&H8524)),\"\",IFERROR(VLOOKUP(TEXT(INDIRECT(\"'\"&F8524&\"'!\"&H8524),\"0\"),Notes!$B$5:$C$100,2,FALSE),\"\"))","v":""},"2e","$BK$69","$BL$69"]
[31796,{"$f":"Menu!$F$29","v":"X"},{"$f":"Menu!$J$29","v":2020},{"$f":"IF(ISBLANK(INDIRECT(\"'\"&F8525&\"'!\"&G8525)),\"\",INDIRECT(\"'\"&F8525&\"'!\"&G8525))","v":""},{"$f":"IF(ISBLANK(INDIRECT(\"'\"&F8525&\"'!\"&H8525)),\"\",IFERROR(VLOOKUP(TEXT(INDIRECT(\"'\"&F8525&\"'!\"&H8525),\"0\"),Notes!$B$5:$C$100,2,FALSE),\"\"))","v":""},"2e","$BI$69","$BJ$69"]
[31797,{"$f":"Menu!$F$29","v":"X"},{"$f":"Menu!$J$29","v":2020},{"$f":"IF(ISBLANK(INDIRECT(\"'\"&F8526&\"'!\"&G8526)),\"\",INDIRECT(\"'\"&F8526&\"'!\"&G8526))","v":""},{"$f":"IF(ISBLANK(INDIRECT(\"'\"&F8526&\"'!\"&H8526)),\"\",IFERROR(VLOOKUP(TEXT(INDIRECT(\"'\"&F8526&\"'!\"&H8526),\"0\"),Notes!$B$5:$C$100,2,FALSE),\"\"))","v":""},"2e","$E$69","$F$69"]
[31798,{"$f":"Menu!$F$29","v":"X"},{"$f":"Menu!$J$29","v":2020},{"$f":"IF(ISBLANK(INDIRECT(\"'\"&F8527&\"'!\"&G8527)),\"\",INDIRECT(\"'\"&F8527&\"'!\"&G8527))","v":""},{"$f":"IF(ISBLANK(INDIRECT(\"'\"&F8527&\"'!\"&H8527)),\"\",IFERROR(VLOOKUP(TEXT(INDIRECT(\"'\"&F8527&\"'!\"&H8527),\"0\"),Notes!$B$5:$C$100,2,FALSE),\"\"))","v":""},"2e","$I$69","$J$69"]
[31799,{"$f":"Menu!$F$29","v":"X"},{"$f":"Menu!$J$29","v":2020},{"$f":"IF(ISBLANK(INDIRECT(\"'\"&F8528&\"'!\"&G8528)),\"\",INDIRECT(\"'\"&F8528&\"'!\"&G8528))","v":""},{"$f":"IF(ISBLANK(INDIRECT(\"'\"&F8528&\"'!\"&H8528)),\"\",IFERROR(VLOOKUP(TEXT(INDIRECT(\"'\"&F8528&\"'!\"&H8528),\"0\"),Notes!$B$5:$C$100,2,FALSE),\"\"))","v":""},"2e","$G$69","$H$69"]
[31800,{"$f":"Menu!$F$29","v":"X"},{"$f":"Menu!$J$29","v":2020},{"$f":"IF(ISBLANK(INDIRECT(\"'\"&F8529&\"'!\"&G8529)),\"\",INDIRECT(\"'\"&F8529&\"'!\"&G8529))","v":""},{"$f":"IF(ISBLANK(INDIRECT(\"'\"&F8529&\"'!\"&H8529)),\"\",IFERROR(VLOOKUP(TEXT(INDIRECT(\"'\"&F8529&\"'!\"&H8529),\"0\"),Notes!$B$5:$C$100,2,FALSE),\"\"))","v":""},"2e","$K$69","$L$69"]
[31801,{"$f":"Menu!$F$29","v":"X"},{"$f":"Menu!$J$29","v":2020},{"$f":"IF(ISBLANK(INDIRECT(\"'\"&F8530&\"'!\"&G8530)),\"\",INDIRECT(\"'\"&F8530&\"'!\"&G8530))","v":""},{"$f":"IF(ISBLANK(INDIRECT(\"'\"&F8530&\"'!\"&H8530)),\"\",IFERROR(VLOOKUP(TEXT(INDIRECT(\"'\"&F8530&\"'!\"&H8530),\"0\"),Notes!$B$5:$C$100,2,FALSE),\"\"))","v":""},"2e","$O$69","$P$69"]
[31802,{"$f":"Menu!$F$29","v":"X"},{"$f":"Menu!$J$29","v":2020},{"$f":"IF(ISBLANK(INDIRECT(\"'\"&F8531&\"'!\"&G8531)),\"\",INDIRECT(\"'\"&F8531&\"'!\"&G8531))","v":""},{"$f":"IF(ISBLANK(INDIRECT(\"'\"&F8531&\"'!\"&H8531)),\"\",IFERROR(VLOOKUP(TEXT(INDIRECT(\"'\"&F8531&\"'!\"&H8531),\"0\"),Notes!$B$5:$C$100,2,FALSE),\"\"))","v":""},"2e","$M$69","$N$69"]
[31803,{"$f":"Menu!$F$29","v":"X"},{"$f":"Menu!$J$29","v":2020},{"$f":"IF(ISBLANK(INDIRECT(\"'\"&F8532&\"'!\"&G8532)),\"\",INDIRECT(\"'\"&F8532&\"'!\"&G8532))","v":""},{"$f":"IF(ISBLANK(INDIRECT(\"'\"&F8532&\"'!\"&H8532)),\"\",IFERROR(VLOOKUP(TEXT(INDIRECT(\"'\"&F8532&\"'!\"&H8532),\"0\"),Notes!$B$5:$C$100,2,FALSE),\"\"))","v":""},"2e","$Q$69","$R$69"]
[31804,{"$f":"Menu!$F$29","v":"X"},{"$f":"Menu!$J$29","v":2020},{"$f":"IF(ISBLANK(INDIRECT(\"'\"&F8533&\"'!\"&G8533)),\"\",INDIRECT(\"'\"&F8533&\"'!\"&G8533))","v":""},{"$f":"IF(ISBLANK(INDIRECT(\"'\"&F8533&\"'!\"&H8533)),\"\",IFERROR(VLOOKUP(TEXT(INDIRECT(\"'\"&F8533&\"'!\"&H8533),\"0\"),Notes!$B$5:$C$100,2,FALSE),\"\"))","v":""},"2e","$U$69","$V$69"]
[31805,{"$f":"Menu!$F$29","v":"X"},{"$f":"Menu!$J$29","v":2020},{"$f":"IF(ISBLANK(INDIRECT(\"'\"&F8534&\"'!\"&G8534)),\"\",INDIRECT(\"'\"&F8534&\"'!\"&G8534))","v":""},{"$f":"IF(ISBLANK(INDIRECT(\"'\"&F8534&\"'!\"&H8534)),\"\",IFERROR(VLOOKUP(TEXT(INDIRECT(\"'\"&F8534&\"'!\"&H8534),\"0\"),Notes!$B$5:$C$100,2,FALSE),\"\"))","v":""},"2e","$S$69","$T$69"]
[31806,{"$f":"Menu!$F$29","v":"X"},{"$f":"Menu!$J$29","v":2020},{"$f":"IF(ISBLANK(INDIRECT(\"'\"&F8535&\"'!\"&G8535)),\"\",INDIRECT(\"'\"&F8535&\"'!\"&G8535))","v":""},{"$f":"IF(ISBLANK(INDIRECT(\"'\"&F8535&\"'!\"&H8535)),\"\",IFERROR(VLOOKUP(TEXT(INDIRECT(\"'\"&F8535&\"'!\"&H8535),\"0\"),Notes!$B$5:$C$100,2,FALSE),\"\"))","v":""},"2e","$W$69","$X$69"]
[31807,{"$f":"Menu!$F$29","v":"X"},{"$f":"Menu!$J$29","v":2020},{"$f":"IF(ISBLANK(INDIRECT(\"'\"&F8536&\"'!\"&G8536)),\"\",INDIRECT(\"'\"&F8536&\"'!\"&G8536))","v":""},{"$f":"IF(ISBLANK(INDIRECT(\"'\"&F8536&\"'!\"&H8536)),\"\",IFERROR(VLOOKUP(TEXT(INDIRECT(\"'\"&F8536&\"'!\"&H8536),\"0\"),Notes!$B$5:$C$100,2,FALSE),\"\"))","v":""},"2e","$AA$69","$AB$69"]
[31808,{"$f":"Menu!$F$29","v":"X"},{"$f":"Menu!$J$29","v":2020},{"$f":"IF(ISBLANK(INDIRECT(\"'\"&F8537&\"'!\"&G8537)),\"\",INDIRECT(\"'\"&F8537&\"'!\"&G8537))","v":""},{"$f":"IF(ISBLANK(INDIRECT(\"'\"&F8537&\"'!\"&H8537)),\"\",IFERROR(VLOOKUP(TEXT(INDIRECT(\"'\"&F8537&\"'!\"&H8537),\"0\"),Notes!$B$5:$C$100,2,FALSE),\"\"))","v":""},"2e","$Y$69","$Z$69"]
[31809,{"$f":"Menu!$F$29","v":"X"},{"$f":"Menu!$J$29","v":2020},{"$f":"IF(ISBLANK(INDIRECT(\"'\"&F8538&\"'!\"&G8538)),\"\",INDIRECT(\"'\"&F8538&\"'!\"&G8538))","v":""},{"$f":"IF(ISBLANK(INDIRECT(\"'\"&F8538&\"'!\"&H8538)),\"\",IFERROR(VLOOKUP(TEXT(INDIRECT(\"'\"&F8538&\"'!\"&H8538),\"0\"),Notes!$B$5:$C$100,2,FALSE),\"\"))","v":""},"2e","$AC$69","$AD$69"]
[31810,{"$f":"Menu!$F$29","v":"X"},{"$f":"Menu!$J$29","v":2020},{"$f":"IF(ISBLANK(INDIRECT(\"'\"&F8539&\"'!\"&G8539)),\"\",INDIRECT(\"'\"&F8539&\"'!\"&G8539))","v":""},{"$f":"IF(ISBLANK(INDIRECT(\"'\"&F8539&\"'!\"&H8539)),\"\",IFERROR(VLOOKUP(TEXT(INDIRECT(\"'\"&F8539&\"'!\"&H8539),\"0\"),Notes!$B$5:$C$100,2,FALSE),\"\"))","v":""},"2e","$AG$69","$AH$69"]
[31811,{"$f":"Menu!$F$29","v":"X"},{"$f":"Menu!$J$29","v":2020},{"$f":"IF(ISBLANK(INDIRECT(\"'\"&F8540&\"'!\"&G8540)),\"\",INDIRECT(\"'\"&F8540&\"'!\"&G8540))","v":""},{"$f":"IF(ISBLANK(INDIRECT(\"'\"&F8540&\"'!\"&H8540)),\"\",IFERROR(VLOOKUP(TEXT(INDIRECT(\"'\"&F8540&\"'!\"&H8540),\"0\"),Notes!$B$5:$C$100,2,FALSE),\"\"))","v":""},"2e","$AE$69","$AF$69"]
[31812,{"$f":"Menu!$F$29","v":"X"},{"$f":"Menu!$J$29","v":2020},{"$f":"IF(ISBLANK(INDIRECT(\"'\"&F8541&\"'!\"&G8541)),\"\",INDIRECT(\"'\"&F8541&\"'!\"&G8541))","v":""},{"$f":"IF(ISBLANK(INDIRECT(\"'\"&F8541&\"'!\"&H8541)),\"\",IFERROR(VLOOKUP(TEXT(INDIRECT(\"'\"&F8541&\"'!\"&H8541),\"0\"),Notes!$B$5:$C$100,2,FALSE),\"\"))","v":""},"2e","$AI$69","$AJ$69"]
[31813,{"$f":"Menu!$F$29","v":"X"},{"$f":"Menu!$J$29","v":2020},{"$f":"IF(ISBLANK(INDIRECT(\"'\"&F8542&\"'!\"&G8542)),\"\",INDIRECT(\"'\"&F8542&\"'!\"&G8542))","v":""},{"$f":"IF(ISBLANK(INDIRECT(\"'\"&F8542&\"'!\"&H8542)),\"\",IFERROR(VLOOKUP(TEXT(INDIRECT(\"'\"&F8542&\"'!\"&H8542),\"0\"),Notes!$B$5:$C$100,2,FALSE),\"\"))","v":""},"2e","$AM$69","$AN$69"]
[31814,{"$f":"Menu!$F$29","v":"X"},{"$f":"Menu!$J$29","v":2020},{"$f":"IF(ISBLANK(INDIRECT(\"'\"&F8543&\"'!\"&G8543)),\"\",INDIRECT(\"'\"&F8543&\"'!\"&G8543))","v":""},{"$f":"IF(ISBLANK(INDIRECT(\"'\"&F8543&\"'!\"&H8543)),\"\",IFERROR(VLOOKUP(TEXT(INDIRECT(\"'\"&F8543&\"'!\"&H8543),\"0\"),Notes!$B$5:$C$100,2,FALSE),\"\"))","v":""},"2e","$AK$69","$AL$69"]
[31815,{"$f":"Menu!$F$29","v":"X"},{"$f":"Menu!$J$29","v":2020},{"$f":"IF(ISBLANK(INDIRECT(\"'\"&F8544&\"'!\"&G8544)),\"\",INDIRECT(\"'\"&F8544&\"'!\"&G8544))","v":""},{"$f":"IF(ISBLANK(INDIRECT(\"'\"&F8544&\"'!\"&H8544)),\"\",IFERROR(VLOOKUP(TEXT(INDIRECT(\"'\"&F8544&\"'!\"&H8544),\"0\"),Notes!$B$5:$C$100,2,FALSE),\"\"))","v":""},"2e","$AO$69","$AP$69"]
[31816,{"$f":"Menu!$F$29","v":"X"},{"$f":"Menu!$J$29","v":2020},{"$f":"IF(ISBLANK(INDIRECT(\"'\"&F8545&\"'!\"&G8545)),\"\",INDIRECT(\"'\"&F8545&\"'!\"&G8545))","v":""},{"$f":"IF(ISBLANK(INDIRECT(\"'\"&F8545&\"'!\"&H8545)),\"\",IFERROR(VLOOKUP(TEXT(INDIRECT(\"'\"&F8545&\"'!\"&H8545),\"0\"),Notes!$B$5:$C$100,2,FALSE),\"\"))","v":""},"2e","$AS$69","$AT$69"]
[31817,{"$f":"Menu!$F$29","v":"X"},{"$f":"Menu!$J$29","v":2020},{"$f":"IF(ISBLANK(INDIRECT(\"'\"&F8546&\"'!\"&G8546)),\"\",INDIRECT(\"'\"&F8546&\"'!\"&G8546))","v":""},{"$f":"IF(ISBLANK(INDIRECT(\"'\"&F8546&\"'!\"&H8546)),\"\",IFERROR(VLOOKUP(TEXT(INDIRECT(\"'\"&F8546&\"'!\"&H8546),\"0\"),Notes!$B$5:$C$100,2,FALSE),\"\"))","v":""},"2e","$AQ$69","$AR$69"]
[31818,{"$f":"Menu!$F$29","v":"X"},{"$f":"Menu!$J$29","v":2020},{"$f":"IF(ISBLANK(INDIRECT(\"'\"&F8547&\"'!\"&G8547)),\"\",INDIRECT(\"'\"&F8547&\"'!\"&G8547))","v":""},{"$f":"IF(ISBLANK(INDIRECT(\"'\"&F8547&\"'!\"&H8547)),\"\",IFERROR(VLOOKUP(TEXT(INDIRECT(\"'\"&F8547&\"'!\"&H8547),\"0\"),Notes!$B$5:$C$100,2,FALSE),\"\"))","v":""},"2e","$AU$69","$AV$69"]
[31819,{"$f":"Menu!$F$29","v":"X"},{"$f":"Menu!$J$29","v":2020},{"$f":"IF(ISBLANK(INDIRECT(\"'\"&F8548&\"'!\"&G8548)),\"\",INDIRECT(\"'\"&F8548&\"'!\"&G8548))","v":""},{"$f":"IF(ISBLANK(INDIRECT(\"'\"&F8548&\"'!\"&H8548)),\"\",IFERROR(VLOOKUP(TEXT(INDIRECT(\"'\"&F8548&\"'!\"&H8548),\"0\"),Notes!$B$5:$C$100,2,FALSE),\"\"))","v":""},"2e","$AY$69","$AZ$69"]
[31820,{"$f":"Menu!$F$29","v":"X"},{"$f":"Menu!$J$29","v":2020},{"$f":"IF(ISBLANK(INDIRECT(\"'\"&F8549&\"'!\"&G8549)),\"\",INDIRECT(\"'\"&F8549&\"'!\"&G8549))","v":""},{"$f":"IF(ISBLANK(INDIRECT(\"'\"&F8549&\"'!\"&H8549)),\"\",IFERROR(VLOOKUP(TEXT(INDIRECT(\"'\"&F8549&\"'!\"&H8549),\"0\"),Notes!$B$5:$C$100,2,FALSE),\"\"))","v":""},"2e","$AW$69","$AX$69"]
[31821,{"$f":"Menu!$F$29","v":"X"},{"$f":"Menu!$J$29","v":2020},{"$f":"IF(ISBLANK(INDIRECT(\"'\"&F8550&\"'!\"&G8550)),\"\",INDIRECT(\"'\"&F8550&\"'!\"&G8550))","v":""},{"$f":"IF(ISBLANK(INDIRECT(\"'\"&F8550&\"'!\"&H8550)),\"\",IFERROR(VLOOKUP(TEXT(INDIRECT(\"'\"&F8550&\"'!\"&H8550),\"0\"),Notes!$B$5:$C$100,2,FALSE),\"\"))","v":""},"2e","$BA$69","$BB$69"]
[31822,{"$f":"Menu!$F$29","v":"X"},{"$f":"Menu!$J$29","v":2020},{"$f":"IF(ISBLANK(INDIRECT(\"'\"&F8551&\"'!\"&G8551)),\"\",INDIRECT(\"'\"&F8551&\"'!\"&G8551))","v":""},{"$f":"IF(ISBLANK(INDIRECT(\"'\"&F8551&\"'!\"&H8551)),\"\",IFERROR(VLOOKUP(TEXT(INDIRECT(\"'\"&F8551&\"'!\"&H8551),\"0\"),Notes!$B$5:$C$100,2,FALSE),\"\"))","v":""},"2e","$BE$69","$BF$69"]
[31823,{"$f":"Menu!$F$29","v":"X"},{"$f":"Menu!$J$29","v":2020},{"$f":"IF(ISBLANK(INDIRECT(\"'\"&F8552&\"'!\"&G8552)),\"\",INDIRECT(\"'\"&F8552&\"'!\"&G8552))","v":""},{"$f":"IF(ISBLANK(INDIRECT(\"'\"&F8552&\"'!\"&H8552)),\"\",IFERROR(VLOOKUP(TEXT(INDIRECT(\"'\"&F8552&\"'!\"&H8552),\"0\"),Notes!$B$5:$C$100,2,FALSE),\"\"))","v":""},"2e","$BC$69","$BD$69"]
[31824,{"$f":"Menu!$F$29","v":"X"},{"$f":"Menu!$J$29","v":2020},{"$f":"IF(ISBLANK(INDIRECT(\"'\"&F8553&\"'!\"&G8553)),\"\",INDIRECT(\"'\"&F8553&\"'!\"&G8553))","v":""},{"$f":"IF(ISBLANK(INDIRECT(\"'\"&F8553&\"'!\"&H8553)),\"\",IFERROR(VLOOKUP(TEXT(INDIRECT(\"'\"&F8553&\"'!\"&H8553),\"0\"),Notes!$B$5:$C$100,2,FALSE),\"\"))","v":""},"2b","$E$68","$F$68"]
[31825,{"$f":"Menu!$F$29","v":"X"},{"$f":"Menu!$J$29","v":2020},{"$f":"IF(ISBLANK(INDIRECT(\"'\"&F8554&\"'!\"&G8554)),\"\",INDIRECT(\"'\"&F8554&\"'!\"&G8554))","v":""},{"$f":"IF(ISBLANK(INDIRECT(\"'\"&F8554&\"'!\"&H8554)),\"\",IFERROR(VLOOKUP(TEXT(INDIRECT(\"'\"&F8554&\"'!\"&H8554),\"0\"),Notes!$B$5:$C$100,2,FALSE),\"\"))","v":""},"2b","$I$68","$J$68"]
[31826,{"$f":"Menu!$F$29","v":"X"},{"$f":"Menu!$J$29","v":2020},{"$f":"IF(ISBLANK(INDIRECT(\"'\"&F8555&\"'!\"&G8555)),\"\",INDIRECT(\"'\"&F8555&\"'!\"&G8555))","v":""},{"$f":"IF(ISBLANK(INDIRECT(\"'\"&F8555&\"'!\"&H8555)),\"\",IFERROR(VLOOKUP(TEXT(INDIRECT(\"'\"&F8555&\"'!\"&H8555),\"0\"),Notes!$B$5:$C$100,2,FALSE),\"\"))","v":""},"2b","$G$68","$H$68"]
[31827,{"$f":"Menu!$F$29","v":"X"},{"$f":"Menu!$J$29","v":2020},{"$f":"IF(ISBLANK(INDIRECT(\"'\"&F8556&\"'!\"&G8556)),\"\",INDIRECT(\"'\"&F8556&\"'!\"&G8556))","v":""},{"$f":"IF(ISBLANK(INDIRECT(\"'\"&F8556&\"'!\"&H8556)),\"\",IFERROR(VLOOKUP(TEXT(INDIRECT(\"'\"&F8556&\"'!\"&H8556),\"0\"),Notes!$B$5:$C$100,2,FALSE),\"\"))","v":""},"2a","$G$68","$H$68"]
[31828,{"$f":"Menu!$F$29","v":"X"},{"$f":"Menu!$J$29","v":2020},{"$f":"IF(ISBLANK(INDIRECT(\"'\"&F8557&\"'!\"&G8557)),\"\",INDIRECT(\"'\"&F8557&\"'!\"&G8557))","v":""},{"$f":"IF(ISBLANK(INDIRECT(\"'\"&F8557&\"'!\"&H8557)),\"\",IFERROR(VLOOKUP(TEXT(INDIRECT(\"'\"&F8557&\"'!\"&H8557),\"0\"),Notes!$B$5:$C$100,2,FALSE),\"\"))","v":""},"2b","$W$68","$X$68"]
[31829,{"$f":"Menu!$F$29","v":"X"},{"$f":"Menu!$J$29","v":2020},{"$f":"IF(ISBLANK(INDIRECT(\"'\"&F8558&\"'!\"&G8558)),\"\",INDIRECT(\"'\"&F8558&\"'!\"&G8558))","v":""},{"$f":"IF(ISBLANK(INDIRECT(\"'\"&F8558&\"'!\"&H8558)),\"\",IFERROR(VLOOKUP(TEXT(INDIRECT(\"'\"&F8558&\"'!\"&H8558),\"0\"),Notes!$B$5:$C$100,2,FALSE),\"\"))","v":""},"2b","$AA$68","$AB$68"]
[31830,{"$f":"Menu!$F$29","v":"X"},{"$f":"Menu!$J$29","v":2020},{"$f":"IF(ISBLANK(INDIRECT(\"'\"&F8559&\"'!\"&G8559)),\"\",INDIRECT(\"'\"&F8559&\"'!\"&G8559))","v":""},{"$f":"IF(ISBLANK(INDIRECT(\"'\"&F8559&\"'!\"&H8559)),\"\",IFERROR(VLOOKUP(TEXT(INDIRECT(\"'\"&F8559&\"'!\"&H8559),\"0\"),Notes!$B$5:$C$100,2,FALSE),\"\"))","v":""},"2b","$Y$68","$Z$68"]
[31831,{"$f":"Menu!$F$29","v":"X"},{"$f":"Menu!$J$29","v":2020},{"$f":"IF(ISBLANK(INDIRECT(\"'\"&F8560&\"'!\"&G8560)),\"\",INDIRECT(\"'\"&F8560&\"'!\"&G8560))","v":""},{"$f":"IF(ISBLANK(INDIRECT(\"'\"&F8560&\"'!\"&H8560)),\"\",IFERROR(VLOOKUP(TEXT(INDIRECT(\"'\"&F8560&\"'!\"&H8560),\"0\"),Notes!$B$5:$C$100,2,FALSE),\"\"))","v":""},"2d","$AC$68","$AD$68"]
[31832,{"$f":"Menu!$F$29","v":"X"},{"$f":"Menu!$J$29","v":2020},{"$f":"IF(ISBLANK(INDIRECT(\"'\"&F8561&\"'!\"&G8561)),\"\",INDIRECT(\"'\"&F8561&\"'!\"&G8561))","v":""},{"$f":"IF(ISBLANK(INDIRECT(\"'\"&F8561&\"'!\"&H8561)),\"\",IFERROR(VLOOKUP(TEXT(INDIRECT(\"'\"&F8561&\"'!\"&H8561),\"0\"),Notes!$B$5:$C$100,2,FALSE),\"\"))","v":""},"2d","$AG$68","$AH$68"]
[31833,{"$f":"Menu!$F$29","v":"X"},{"$f":"Menu!$J$29","v":2020},{"$f":"IF(ISBLANK(INDIRECT(\"'\"&F8562&\"'!\"&G8562)),\"\",INDIRECT(\"'\"&F8562&\"'!\"&G8562))","v":""},{"$f":"IF(ISBLANK(INDIRECT(\"'\"&F8562&\"'!\"&H8562)),\"\",IFERROR(VLOOKUP(TEXT(INDIRECT(\"'\"&F8562&\"'!\"&H8562),\"0\"),Notes!$B$5:$C$100,2,FALSE),\"\"))","v":""},"2d","$AE$68","$AF$68"]
[31834,{"$f":"Menu!$F$29","v":"X"},{"$f":"Menu!$J$29","v":2020},{"$f":"IF(ISBLANK(INDIRECT(\"'\"&F8563&\"'!\"&G8563)),\"\",INDIRECT(\"'\"&F8563&\"'!\"&G8563))","v":""},{"$f":"IF(ISBLANK(INDIRECT(\"'\"&F8563&\"'!\"&H8563)),\"\",IFERROR(VLOOKUP(TEXT(INDIRECT(\"'\"&F8563&\"'!\"&H8563),\"0\"),Notes!$B$5:$C$100,2,FALSE),\"\"))","v":""},"2d","$W$68","$X$68"]
[31835,{"$f":"Menu!$F$29","v":"X"},{"$f":"Menu!$J$29","v":2020},{"$f":"IF(ISBLANK(INDIRECT(\"'\"&F8564&\"'!\"&G8564)),\"\",INDIRECT(\"'\"&F8564&\"'!\"&G8564))","v":""},{"$f":"IF(ISBLANK(INDIRECT(\"'\"&F8564&\"'!\"&H8564)),\"\",IFERROR(VLOOKUP(TEXT(INDIRECT(\"'\"&F8564&\"'!\"&H8564),\"0\"),Notes!$B$5:$C$100,2,FALSE),\"\"))","v":""},"2d","$AA$68","$AB$68"]
[31836,{"$f":"Menu!$F$29","v":"X"},{"$f":"Menu!$J$29","v":2020},{"$f":"IF(ISBLANK(INDIRECT(\"'\"&F8565&\"'!\"&G8565)),\"\",INDIRECT(\"'\"&F8565&\"'!\"&G8565))","v":""},{"$f":"IF(ISBLANK(INDIRECT(\"'\"&F8565&\"'!\"&H8565)),\"\",IFERROR(VLOOKUP(TEXT(INDIRECT(\"'\"&F8565&\"'!\"&H8565),\"0\"),Notes!$B$5:$C$100,2,FALSE),\"\"))","v":""},"2d","$Y$68","$Z$68"]
[31837,{"$f":"Menu!$F$29","v":"X"},{"$f":"Menu!$J$29","v":2020},{"$f":"IF(ISBLANK(INDIRECT(\"'\"&F8566&\"'!\"&G8566)),\"\",INDIRECT(\"'\"&F8566&\"'!\"&G8566))","v":""},{"$f":"IF(ISBLANK(INDIRECT(\"'\"&F8566&\"'!\"&H8566)),\"\",IFERROR(VLOOKUP(TEXT(INDIRECT(\"'\"&F8566&\"'!\"&H8566),\"0\"),Notes!$B$5:$C$100,2,FALSE),\"\"))","v":""},"2d","$E$68","$F$68"]
[31838,{"$f":"Menu!$F$29","v":"X"},{"$f":"Menu!$J$29","v":2020},{"$f":"IF(ISBLANK(INDIRECT(\"'\"&F8567&\"'!\"&G8567)),\"\",INDIRECT(\"'\"&F8567&\"'!\"&G8567))","v":""},{"$f":"IF(ISBLANK(INDIRECT(\"'\"&F8567&\"'!\"&H8567)),\"\",IFERROR(VLOOKUP(TEXT(INDIRECT(\"'\"&F8567&\"'!\"&H8567),\"0\"),Notes!$B$5:$C$100,2,FALSE),\"\"))","v":""},"2d","$I$68","$J$68"]
[31839,{"$f":"Menu!$F$29","v":"X"},{"$f":"Menu!$J$29","v":2020},{"$f":"IF(ISBLANK(INDIRECT(\"'\"&F8568&\"'!\"&G8568)),\"\",INDIRECT(\"'\"&F8568&\"'!\"&G8568))","v":""},{"$f":"IF(ISBLANK(INDIRECT(\"'\"&F8568&\"'!\"&H8568)),\"\",IFERROR(VLOOKUP(TEXT(INDIRECT(\"'\"&F8568&\"'!\"&H8568),\"0\"),Notes!$B$5:$C$100,2,FALSE),\"\"))","v":""},"2d","$G$68","$H$68"]
[31840,{"$f":"Menu!$F$29","v":"X"},{"$f":"Menu!$J$29","v":2020},{"$f":"IF(ISBLANK(INDIRECT(\"'\"&F8569&\"'!\"&G8569)),\"\",INDIRECT(\"'\"&F8569&\"'!\"&G8569))","v":""},{"$f":"IF(ISBLANK(INDIRECT(\"'\"&F8569&\"'!\"&H8569)),\"\",IFERROR(VLOOKUP(TEXT(INDIRECT(\"'\"&F8569&\"'!\"&H8569),\"0\"),Notes!$B$5:$C$100,2,FALSE),\"\"))","v":""},"2a","$U$68","$V$68"]
[31841,{"$f":"Menu!$F$29","v":"X"},{"$f":"Menu!$J$29","v":2020},{"$f":"IF(ISBLANK(INDIRECT(\"'\"&F8570&\"'!\"&G8570)),\"\",INDIRECT(\"'\"&F8570&\"'!\"&G8570))","v":""},{"$f":"IF(ISBLANK(INDIRECT(\"'\"&F8570&\"'!\"&H8570)),\"\",IFERROR(VLOOKUP(TEXT(INDIRECT(\"'\"&F8570&\"'!\"&H8570),\"0\"),Notes!$B$5:$C$100,2,FALSE),\"\"))","v":""},"2a","$S$68","$T$68"]
[31842,{"$f":"Menu!$F$29","v":"X"},{"$f":"Menu!$J$29","v":2020},{"$f":"IF(ISBLANK(INDIRECT(\"'\"&F8571&\"'!\"&G8571)),\"\",INDIRECT(\"'\"&F8571&\"'!\"&G8571))","v":""},{"$f":"IF(ISBLANK(INDIRECT(\"'\"&F8571&\"'!\"&H8571)),\"\",IFERROR(VLOOKUP(TEXT(INDIRECT(\"'\"&F8571&\"'!\"&H8571),\"0\"),Notes!$B$5:$C$100,2,FALSE),\"\"))","v":""},"2a","$Q$68","$R$68"]
[31843,{"$f":"Menu!$F$29","v":"X"},{"$f":"Menu!$J$29","v":2020},{"$f":"IF(ISBLANK(INDIRECT(\"'\"&F8572&\"'!\"&G8572)),\"\",INDIRECT(\"'\"&F8572&\"'!\"&G8572))","v":""},{"$f":"IF(ISBLANK(INDIRECT(\"'\"&F8572&\"'!\"&H8572)),\"\",IFERROR(VLOOKUP(TEXT(INDIRECT(\"'\"&F8572&\"'!\"&H8572),\"0\"),Notes!$B$5:$C$100,2,FALSE),\"\"))","v":""},"2d","$K$68","$L$68"]
[31844,{"$f":"Menu!$F$29","v":"X"},{"$f":"Menu!$J$29","v":2020},{"$f":"IF(ISBLANK(INDIRECT(\"'\"&F8573&\"'!\"&G8573)),\"\",INDIRECT(\"'\"&F8573&\"'!\"&G8573))","v":""},{"$f":"IF(ISBLANK(INDIRECT(\"'\"&F8573&\"'!\"&H8573)),\"\",IFERROR(VLOOKUP(TEXT(INDIRECT(\"'\"&F8573&\"'!\"&H8573),\"0\"),Notes!$B$5:$C$100,2,FALSE),\"\"))","v":""},"2d","$O$68","$P$68"]
[31845,{"$f":"Menu!$F$29","v":"X"},{"$f":"Menu!$J$29","v":2020},{"$f":"IF(ISBLANK(INDIRECT(\"'\"&F8574&\"'!\"&G8574)),\"\",INDIRECT(\"'\"&F8574&\"'!\"&G8574))","v":""},{"$f":"IF(ISBLANK(INDIRECT(\"'\"&F8574&\"'!\"&H8574)),\"\",IFERROR(VLOOKUP(TEXT(INDIRECT(\"'\"&F8574&\"'!\"&H8574),\"0\"),Notes!$B$5:$C$100,2,FALSE),\"\"))","v":""},"2d","$M$68","$N$68"]
[31846,{"$f":"Menu!$F$29","v":"X"},{"$f":"Menu!$J$29","v":2020},{"$f":"IF(ISBLANK(INDIRECT(\"'\"&F8575&\"'!\"&G8575)),\"\",INDIRECT(\"'\"&F8575&\"'!\"&G8575))","v":""},{"$f":"IF(ISBLANK(INDIRECT(\"'\"&F8575&\"'!\"&H8575)),\"\",IFERROR(VLOOKUP(TEXT(INDIRECT(\"'\"&F8575&\"'!\"&H8575),\"0\"),Notes!$B$5:$C$100,2,FALSE),\"\"))","v":""},"2d","$Q$68","$R$68"]
[31847,{"$f":"Menu!$F$29","v":"X"},{"$f":"Menu!$J$29","v":2020},{"$f":"IF(ISBLANK(INDIRECT(\"'\"&F8576&\"'!\"&G8576)),\"\",INDIRECT(\"'\"&F8576&\"'!\"&G8576))","v":""},{"$f":"IF(ISBLANK(INDIRECT(\"'\"&F8576&\"'!\"&H8576)),\"\",IFERROR(VLOOKUP(TEXT(INDIRECT(\"'\"&F8576&\"'!\"&H8576),\"0\"),Notes!$B$5:$C$100,2,FALSE),\"\"))","v":""},"2d","$U$68","$V$68"]
[31848,{"$f":"Menu!$F$29","v":"X"},{"$f":"Menu!$J$29","v":2020},{"$f":"IF(ISBLANK(INDIRECT(\"'\"&F8577&\"'!\"&G8577)),\"\",INDIRECT(\"'\"&F8577&\"'!\"&G8577))","v":""},{"$f":"IF(ISBLANK(INDIRECT(\"'\"&F8577&\"'!\"&H8577)),\"\",IFERROR(VLOOKUP(TEXT(INDIRECT(\"'\"&F8577&\"'!\"&H8577),\"0\"),Notes!$B$5:$C$100,2,FALSE),\"\"))","v":""},"2d","$S$68","$T$68"]
[31849,{"$f":"Menu!$F$29","v":"X"},{"$f":"Menu!$J$29","v":2020},{"$f":"IF(ISBLANK(INDIRECT(\"'\"&F8578&\"'!\"&G8578)),\"\",INDIRECT(\"'\"&F8578&\"'!\"&G8578))","v":""},{"$f":"IF(ISBLANK(INDIRECT(\"'\"&F8578&\"'!\"&H8578)),\"\",IFERROR(VLOOKUP(TEXT(INDIRECT(\"'\"&F8578&\"'!\"&H8578),\"0\"),Notes!$B$5:$C$100,2,FALSE),\"\"))","v":""},"2a","$O$68",{"$f":"IF(LEN(TRIM(MID(G8578,4,10)))-LEN(SUBSTITUTE(TRIM(MID(G8578,4,10)),\"$\",\"\"))=0,\"$\"&CHAR(CODE(MID(G8578,2,1))+1)&\"$\"&TRIM(MID(G8578,4,10)),\"$\"&MID(G8578,2,1)&CHAR(CODE(MID(G8578,3,1))+1)&\"$\"&TRIM(MID(G8578,5,11)))","v":"$P$68"}]
[31850,{"$f":"Menu!$F$29","v":"X"},{"$f":"Menu!$J$29","v":2020},{"$f":"IF(ISBLANK(INDIRECT(\"'\"&F8579&\"'!\"&G8579)),\"\",INDIRECT(\"'\"&F8579&\"'!\"&G8579))","v":""},{"$f":"IF(ISBLANK(INDIRECT(\"'\"&F8579&\"'!\"&H8579)),\"\",IFERROR(VLOOKUP(TEXT(INDIRECT(\"'\"&F8579&\"'!\"&H8579),\"0\"),Notes!$B$5:$C$100,2,FALSE),\"\"))","v":""},"2a","$M$68","$N$68"]
[31851,{"$f":"Menu!$F$29","v":"X"},{"$f":"Menu!$J$29","v":2020},{"$f":"IF(ISBLANK(INDIRECT(\"'\"&F8580&\"'!\"&G8580)),\"\",INDIRECT(\"'\"&F8580&\"'!\"&G8580))","v":""},{"$f":"IF(ISBLANK(INDIRECT(\"'\"&F8580&\"'!\"&H8580)),\"\",IFERROR(VLOOKUP(TEXT(INDIRECT(\"'\"&F8580&\"'!\"&H8580),\"0\"),Notes!$B$5:$C$100,2,FALSE),\"\"))","v":""},"2a","$K$68","$L$68"]
[31852,{"$f":"Menu!$F$29","v":"X"},{"$f":"Menu!$J$29","v":2020},{"$f":"IF(ISBLANK(INDIRECT(\"'\"&F8581&\"'!\"&G8581)),\"\",INDIRECT(\"'\"&F8581&\"'!\"&G8581))","v":""},{"$f":"IF(ISBLANK(INDIRECT(\"'\"&F8581&\"'!\"&H8581)),\"\",IFERROR(VLOOKUP(TEXT(INDIRECT(\"'\"&F8581&\"'!\"&H8581),\"0\"),Notes!$B$5:$C$100,2,FALSE),\"\"))","v":""},"2a","$E$68","$F$68"]
[31853,{"$f":"Menu!$F$29","v":"X"},{"$f":"Menu!$J$29","v":2020},{"$f":"IF(ISBLANK(INDIRECT(\"'\"&F8582&\"'!\"&G8582)),\"\",INDIRECT(\"'\"&F8582&\"'!\"&G8582))","v":""},{"$f":"IF(ISBLANK(INDIRECT(\"'\"&F8582&\"'!\"&H8582)),\"\",IFERROR(VLOOKUP(TEXT(INDIRECT(\"'\"&F8582&\"'!\"&H8582),\"0\"),Notes!$B$5:$C$100,2,FALSE),\"\"))","v":""},"1a","$K$54","$L$54"]
[31854,{"$f":"Menu!$F$29","v":"X"},{"$f":"Menu!$J$29","v":2020},{"$f":"IF(ISBLANK(INDIRECT(\"'\"&F8583&\"'!\"&G8583)),\"\",INDIRECT(\"'\"&F8583&\"'!\"&G8583))","v":""},{"$f":"IF(ISBLANK(INDIRECT(\"'\"&F8583&\"'!\"&H8583)),\"\",IFERROR(VLOOKUP(TEXT(INDIRECT(\"'\"&F8583&\"'!\"&H8583),\"0\"),Notes!$B$5:$C$100,2,FALSE),\"\"))","v":""},"1a","$O$54","$P$54"]
[31855,{"$f":"Menu!$F$29","v":"X"},{"$f":"Menu!$J$29","v":2020},{"$f":"IF(ISBLANK(INDIRECT(\"'\"&F8584&\"'!\"&G8584)),\"\",INDIRECT(\"'\"&F8584&\"'!\"&G8584))","v":""},{"$f":"IF(ISBLANK(INDIRECT(\"'\"&F8584&\"'!\"&H8584)),\"\",IFERROR(VLOOKUP(TEXT(INDIRECT(\"'\"&F8584&\"'!\"&H8584),\"0\"),Notes!$B$5:$C$100,2,FALSE),\"\"))","v":""},"1a","$M$54","$N$54"]
[31856,{"$f":"Menu!$F$29","v":"X"},{"$f":"Menu!$J$29","v":2020},{"$f":"IF(ISBLANK(INDIRECT(\"'\"&F8585&\"'!\"&G8585)),\"\",INDIRECT(\"'\"&F8585&\"'!\"&G8585))","v":""},{"$f":"IF(ISBLANK(INDIRECT(\"'\"&F8585&\"'!\"&H8585)),\"\",IFERROR(VLOOKUP(TEXT(INDIRECT(\"'\"&F8585&\"'!\"&H8585),\"0\"),Notes!$B$5:$C$100,2,FALSE),\"\"))","v":""},"1a","$Q$54","$R$54"]
[31857,{"$f":"Menu!$F$29","v":"X"},{"$f":"Menu!$J$29","v":2020},{"$f":"IF(ISBLANK(INDIRECT(\"'\"&F8586&\"'!\"&G8586)),\"\",INDIRECT(\"'\"&F8586&\"'!\"&G8586))","v":""},{"$f":"IF(ISBLANK(INDIRECT(\"'\"&F8586&\"'!\"&H8586)),\"\",IFERROR(VLOOKUP(TEXT(INDIRECT(\"'\"&F8586&\"'!\"&H8586),\"0\"),Notes!$B$5:$C$100,2,FALSE),\"\"))","v":""},"1a","$U$54","$V$54"]
[31858,{"$f":"Menu!$F$29","v":"X"},{"$f":"Menu!$J$29","v":2020},{"$f":"IF(ISBLANK(INDIRECT(\"'\"&F8587&\"'!\"&G8587)),\"\",INDIRECT(\"'\"&F8587&\"'!\"&G8587))","v":""},{"$f":"IF(ISBLANK(INDIRECT(\"'\"&F8587&\"'!\"&H8587)),\"\",IFERROR(VLOOKUP(TEXT(INDIRECT(\"'\"&F8587&\"'!\"&H8587),\"0\"),Notes!$B$5:$C$100,2,FALSE),\"\"))","v":""},"1a","$S$54","$T$54"]
[31859,{"$f":"Menu!$F$29","v":"X"},{"$f":"Menu!$J$29","v":2020},{"$f":"IF(ISBLANK(INDIRECT(\"'\"&F8588&\"'!\"&G8588)),\"\",INDIRECT(\"'\"&F8588&\"'!\"&G8588))","v":""},{"$f":"IF(ISBLANK(INDIRECT(\"'\"&F8588&\"'!\"&H8588)),\"\",IFERROR(VLOOKUP(TEXT(INDIRECT(\"'\"&F8588&\"'!\"&H8588),\"0\"),Notes!$B$5:$C$100,2,FALSE),\"\"))","v":""},"1a","$I$54","$J$54"]
[31860,{"$f":"Menu!$F$29","v":"X"},{"$f":"Menu!$J$29","v":2020},{"$f":"IF(ISBLANK(INDIRECT(\"'\"&F8589&\"'!\"&G8589)),\"\",INDIRECT(\"'\"&F8589&\"'!\"&G8589))","v":""},{"$f":"IF(ISBLANK(INDIRECT(\"'\"&F8589&\"'!\"&H8589)),\"\",IFERROR(VLOOKUP(TEXT(INDIRECT(\"'\"&F8589&\"'!\"&H8589),\"0\"),Notes!$B$5:$C$100,2,FALSE),\"\"))","v":""},"1a","$G$54","$H$54"]
[31861,{"$f":"Menu!$F$29","v":"X"},{"$f":"Menu!$J$29","v":2020},{"$f":"IF(ISBLANK(INDIRECT(\"'\"&F8590&\"'!\"&G8590)),\"\",INDIRECT(\"'\"&F8590&\"'!\"&G8590))","v":""},{"$f":"IF(ISBLANK(INDIRECT(\"'\"&F8590&\"'!\"&H8590)),\"\",IFERROR(VLOOKUP(TEXT(INDIRECT(\"'\"&F8590&\"'!\"&H8590),\"0\"),Notes!$B$5:$C$100,2,FALSE),\"\"))","v":""},"1a","$E$54","$F$54"]
[31862,{"$f":"Menu!$F$29","v":"X"},{"$f":"Menu!$J$29","v":2020},{"$f":"IF(ISBLANK(INDIRECT(\"'\"&F8591&\"'!\"&G8591)),\"\",INDIRECT(\"'\"&F8591&\"'!\"&G8591))","v":""},{"$f":"IF(ISBLANK(INDIRECT(\"'\"&F8591&\"'!\"&H8591)),\"\",IFERROR(VLOOKUP(TEXT(INDIRECT(\"'\"&F8591&\"'!\"&H8591),\"0\"),Notes!$B$5:$C$100,2,FALSE),\"\"))","v":""},"1a","$K$55","$L$55"]
[31863,{"$f":"Menu!$F$29","v":"X"},{"$f":"Menu!$J$29","v":2020},{"$f":"IF(ISBLANK(INDIRECT(\"'\"&F8592&\"'!\"&G8592)),\"\",INDIRECT(\"'\"&F8592&\"'!\"&G8592))","v":""},{"$f":"IF(ISBLANK(INDIRECT(\"'\"&F8592&\"'!\"&H8592)),\"\",IFERROR(VLOOKUP(TEXT(INDIRECT(\"'\"&F8592&\"'!\"&H8592),\"0\"),Notes!$B$5:$C$100,2,FALSE),\"\"))","v":""},"1a","$O$55","$P$55"]
[31864,{"$f":"Menu!$F$29","v":"X"},{"$f":"Menu!$J$29","v":2020},{"$f":"IF(ISBLANK(INDIRECT(\"'\"&F8593&\"'!\"&G8593)),\"\",INDIRECT(\"'\"&F8593&\"'!\"&G8593))","v":""},{"$f":"IF(ISBLANK(INDIRECT(\"'\"&F8593&\"'!\"&H8593)),\"\",IFERROR(VLOOKUP(TEXT(INDIRECT(\"'\"&F8593&\"'!\"&H8593),\"0\"),Notes!$B$5:$C$100,2,FALSE),\"\"))","v":""},"1a","$M$55","$N$55"]
[31865,{"$f":"Menu!$F$29","v":"X"},{"$f":"Menu!$J$29","v":2020},{"$f":"IF(ISBLANK(INDIRECT(\"'\"&F8594&\"'!\"&G8594)),\"\",INDIRECT(\"'\"&F8594&\"'!\"&G8594))","v":""},{"$f":"IF(ISBLANK(INDIRECT(\"'\"&F8594&\"'!\"&H8594)),\"\",IFERROR(VLOOKUP(TEXT(INDIRECT(\"'\"&F8594&\"'!\"&H8594),\"0\"),Notes!$B$5:$C$100,2,FALSE),\"\"))","v":""},"1a","$Q$55","$R$55"]
[31866,{"$f":"Menu!$F$29","v":"X"},{"$f":"Menu!$J$29","v":2020},{"$f":"IF(ISBLANK(INDIRECT(\"'\"&F8595&\"'!\"&G8595)),\"\",INDIRECT(\"'\"&F8595&\"'!\"&G8595))","v":""},{"$f":"IF(ISBLANK(INDIRECT(\"'\"&F8595&\"'!\"&H8595)),\"\",IFERROR(VLOOKUP(TEXT(INDIRECT(\"'\"&F8595&\"'!\"&H8595),\"0\"),Notes!$B$5:$C$100,2,FALSE),\"\"))","v":""},"1a","$U$55","$V$55"]
[31867,{"$f":"Menu!$F$29","v":"X"},{"$f":"Menu!$J$29","v":2020},{"$f":"IF(ISBLANK(INDIRECT(\"'\"&F8596&\"'!\"&G8596)),\"\",INDIRECT(\"'\"&F8596&\"'!\"&G8596))","v":""},{"$f":"IF(ISBLANK(INDIRECT(\"'\"&F8596&\"'!\"&H8596)),\"\",IFERROR(VLOOKUP(TEXT(INDIRECT(\"'\"&F8596&\"'!\"&H8596),\"0\"),Notes!$B$5:$C$100,2,FALSE),\"\"))","v":""},"1a","$S$55","$T$55"]
[31868,{"$f":"Menu!$F$29","v":"X"},{"$f":"Menu!$J$29","v":2020},{"$f":"IF(ISBLANK(INDIRECT(\"'\"&F8597&\"'!\"&G8597)),\"\",INDIRECT(\"'\"&F8597&\"'!\"&G8597))","v":""},{"$f":"IF(ISBLANK(INDIRECT(\"'\"&F8597&\"'!\"&H8597)),\"\",IFERROR(VLOOKUP(TEXT(INDIRECT(\"'\"&F8597&\"'!\"&H8597),\"0\"),Notes!$B$5:$C$100,2,FALSE),\"\"))","v":""},"1a","$I$55","$J$55"]
[31869,{"$f":"Menu!$F$29","v":"X"},{"$f":"Menu!$J$29","v":2020},{"$f":"IF(ISBLANK(INDIRECT(\"'\"&F8598&\"'!\"&G8598)),\"\",INDIRECT(\"'\"&F8598&\"'!\"&G8598))","v":""},{"$f":"IF(ISBLANK(INDIRECT(\"'\"&F8598&\"'!\"&H8598)),\"\",IFERROR(VLOOKUP(TEXT(INDIRECT(\"'\"&F8598&\"'!\"&H8598),\"0\"),Notes!$B$5:$C$100,2,FALSE),\"\"))","v":""},"1a","$G$55","$H$55"]
[31870,{"$f":"Menu!$F$29","v":"X"},{"$f":"Menu!$J$29","v":2020},{"$f":"IF(ISBLANK(INDIRECT(\"'\"&F8599&\"'!\"&G8599)),\"\",INDIRECT(\"'\"&F8599&\"'!\"&G8599))","v":""},{"$f":"IF(ISBLANK(INDIRECT(\"'\"&F8599&\"'!\"&H8599)),\"\",IFERROR(VLOOKUP(TEXT(INDIRECT(\"'\"&F8599&\"'!\"&H8599),\"0\"),Notes!$B$5:$C$100,2,FALSE),\"\"))","v":""},"1a","$E$55","$F$55"]
[31871,{"$f":"Menu!$F$29","v":"X"},{"$f":"Menu!$J$29","v":2020},{"$f":"IF(ISBLANK(INDIRECT(\"'\"&F8600&\"'!\"&G8600)),\"\",INDIRECT(\"'\"&F8600&\"'!\"&G8600))","v":""},{"$f":"IF(ISBLANK(INDIRECT(\"'\"&F8600&\"'!\"&H8600)),\"\",IFERROR(VLOOKUP(TEXT(INDIRECT(\"'\"&F8600&\"'!\"&H8600),\"0\"),Notes!$B$5:$C$100,2,FALSE),\"\"))","v":""},"1a","$K$56","$L$56"]
[31872,{"$f":"Menu!$F$29","v":"X"},{"$f":"Menu!$J$29","v":2020},{"$f":"IF(ISBLANK(INDIRECT(\"'\"&F8601&\"'!\"&G8601)),\"\",INDIRECT(\"'\"&F8601&\"'!\"&G8601))","v":""},{"$f":"IF(ISBLANK(INDIRECT(\"'\"&F8601&\"'!\"&H8601)),\"\",IFERROR(VLOOKUP(TEXT(INDIRECT(\"'\"&F8601&\"'!\"&H8601),\"0\"),Notes!$B$5:$C$100,2,FALSE),\"\"))","v":""},"1a","$O$56","$P$56"]
[31873,{"$f":"Menu!$F$29","v":"X"},{"$f":"Menu!$J$29","v":2020},{"$f":"IF(ISBLANK(INDIRECT(\"'\"&F8602&\"'!\"&G8602)),\"\",INDIRECT(\"'\"&F8602&\"'!\"&G8602))","v":""},{"$f":"IF(ISBLANK(INDIRECT(\"'\"&F8602&\"'!\"&H8602)),\"\",IFERROR(VLOOKUP(TEXT(INDIRECT(\"'\"&F8602&\"'!\"&H8602),\"0\"),Notes!$B$5:$C$100,2,FALSE),\"\"))","v":""},"1a","$M$56","$N$56"]
[31874,{"$f":"Menu!$F$29","v":"X"},{"$f":"Menu!$J$29","v":2020},{"$f":"IF(ISBLANK(INDIRECT(\"'\"&F8603&\"'!\"&G8603)),\"\",INDIRECT(\"'\"&F8603&\"'!\"&G8603))","v":""},{"$f":"IF(ISBLANK(INDIRECT(\"'\"&F8603&\"'!\"&H8603)),\"\",IFERROR(VLOOKUP(TEXT(INDIRECT(\"'\"&F8603&\"'!\"&H8603),\"0\"),Notes!$B$5:$C$100,2,FALSE),\"\"))","v":""},"1a","$Q$56","$R$56"]
[31875,{"$f":"Menu!$F$29","v":"X"},{"$f":"Menu!$J$29","v":2020},{"$f":"IF(ISBLANK(INDIRECT(\"'\"&F8604&\"'!\"&G8604)),\"\",INDIRECT(\"'\"&F8604&\"'!\"&G8604))","v":""},{"$f":"IF(ISBLANK(INDIRECT(\"'\"&F8604&\"'!\"&H8604)),\"\",IFERROR(VLOOKUP(TEXT(INDIRECT(\"'\"&F8604&\"'!\"&H8604),\"0\"),Notes!$B$5:$C$100,2,FALSE),\"\"))","v":""},"1a","$U$56","$V$56"]
[31876,{"$f":"Menu!$F$29","v":"X"},{"$f":"Menu!$J$29","v":2020},{"$f":"IF(ISBLANK(INDIRECT(\"'\"&F8605&\"'!\"&G8605)),\"\",INDIRECT(\"'\"&F8605&\"'!\"&G8605))","v":""},{"$f":"IF(ISBLANK(INDIRECT(\"'\"&F8605&\"'!\"&H8605)),\"\",IFERROR(VLOOKUP(TEXT(INDIRECT(\"'\"&F8605&\"'!\"&H8605),\"0\"),Notes!$B$5:$C$100,2,FALSE),\"\"))","v":""},"1a","$S$56","$T$56"]
[31877,{"$f":"Menu!$F$29","v":"X"},{"$f":"Menu!$J$29","v":2020},{"$f":"IF(ISBLANK(INDIRECT(\"'\"&F8606&\"'!\"&G8606)),\"\",INDIRECT(\"'\"&F8606&\"'!\"&G8606))","v":""},{"$f":"IF(ISBLANK(INDIRECT(\"'\"&F8606&\"'!\"&H8606)),\"\",IFERROR(VLOOKUP(TEXT(INDIRECT(\"'\"&F8606&\"'!\"&H8606),\"0\"),Notes!$B$5:$C$100,2,FALSE),\"\"))","v":""},"1a","$I$56","$J$56"]
[31878,{"$f":"Menu!$F$29","v":"X"},{"$f":"Menu!$J$29","v":2020},{"$f":"IF(ISBLANK(INDIRECT(\"'\"&F8607&\"'!\"&G8607)),\"\",INDIRECT(\"'\"&F8607&\"'!\"&G8607))","v":""},{"$f":"IF(ISBLANK(INDIRECT(\"'\"&F8607&\"'!\"&H8607)),\"\",IFERROR(VLOOKUP(TEXT(INDIRECT(\"'\"&F8607&\"'!\"&H8607),\"0\"),Notes!$B$5:$C$100,2,FALSE),\"\"))","v":""},"1a","$G$56","$H$56"]
[31879,{"$f":"Menu!$F$29","v":"X"},{"$f":"Menu!$J$29","v":2020},{"$f":"IF(ISBLANK(INDIRECT(\"'\"&F8608&\"'!\"&G8608)),\"\",INDIRECT(\"'\"&F8608&\"'!\"&G8608))","v":""},{"$f":"IF(ISBLANK(INDIRECT(\"'\"&F8608&\"'!\"&H8608)),\"\",IFERROR(VLOOKUP(TEXT(INDIRECT(\"'\"&F8608&\"'!\"&H8608),\"0\"),Notes!$B$5:$C$100,2,FALSE),\"\"))","v":""},"1a","$E$56","$F$56"]
[31880,{"$f":"Menu!$F$29","v":"X"},{"$f":"Menu!$J$29","v":2020},{"$f":"IF(ISBLANK(INDIRECT(\"'\"&F8609&\"'!\"&G8609)),\"\",INDIRECT(\"'\"&F8609&\"'!\"&G8609))","v":""},{"$f":"IF(ISBLANK(INDIRECT(\"'\"&F8609&\"'!\"&H8609)),\"\",IFERROR(VLOOKUP(TEXT(INDIRECT(\"'\"&F8609&\"'!\"&H8609),\"0\"),Notes!$B$5:$C$100,2,FALSE),\"\"))","v":""},"1a","$K$57","$L$57"]
[31881,{"$f":"Menu!$F$29","v":"X"},{"$f":"Menu!$J$29","v":2020},{"$f":"IF(ISBLANK(INDIRECT(\"'\"&F8610&\"'!\"&G8610)),\"\",INDIRECT(\"'\"&F8610&\"'!\"&G8610))","v":""},{"$f":"IF(ISBLANK(INDIRECT(\"'\"&F8610&\"'!\"&H8610)),\"\",IFERROR(VLOOKUP(TEXT(INDIRECT(\"'\"&F8610&\"'!\"&H8610),\"0\"),Notes!$B$5:$C$100,2,FALSE),\"\"))","v":""},"1a","$O$57","$P$57"]
[31882,{"$f":"Menu!$F$29","v":"X"},{"$f":"Menu!$J$29","v":2020},{"$f":"IF(ISBLANK(INDIRECT(\"'\"&F8611&\"'!\"&G8611)),\"\",INDIRECT(\"'\"&F8611&\"'!\"&G8611))","v":""},{"$f":"IF(ISBLANK(INDIRECT(\"'\"&F8611&\"'!\"&H8611)),\"\",IFERROR(VLOOKUP(TEXT(INDIRECT(\"'\"&F8611&\"'!\"&H8611),\"0\"),Notes!$B$5:$C$100,2,FALSE),\"\"))","v":""},"1a","$M$57","$N$57"]
[31883,{"$f":"Menu!$F$29","v":"X"},{"$f":"Menu!$J$29","v":2020},{"$f":"IF(ISBLANK(INDIRECT(\"'\"&F8612&\"'!\"&G8612)),\"\",INDIRECT(\"'\"&F8612&\"'!\"&G8612))","v":""},{"$f":"IF(ISBLANK(INDIRECT(\"'\"&F8612&\"'!\"&H8612)),\"\",IFERROR(VLOOKUP(TEXT(INDIRECT(\"'\"&F8612&\"'!\"&H8612),\"0\"),Notes!$B$5:$C$100,2,FALSE),\"\"))","v":""},"1a","$Q$57","$R$57"]
[31884,{"$f":"Menu!$F$29","v":"X"},{"$f":"Menu!$J$29","v":2020},{"$f":"IF(ISBLANK(INDIRECT(\"'\"&F8613&\"'!\"&G8613)),\"\",INDIRECT(\"'\"&F8613&\"'!\"&G8613))","v":""},{"$f":"IF(ISBLANK(INDIRECT(\"'\"&F8613&\"'!\"&H8613)),\"\",IFERROR(VLOOKUP(TEXT(INDIRECT(\"'\"&F8613&\"'!\"&H8613),\"0\"),Notes!$B$5:$C$100,2,FALSE),\"\"))","v":""},"1a","$U$57","$V$57"]
[31885,{"$f":"Menu!$F$29","v":"X"},{"$f":"Menu!$J$29","v":2020},{"$f":"IF(ISBLANK(INDIRECT(\"'\"&F8614&\"'!\"&G8614)),\"\",INDIRECT(\"'\"&F8614&\"'!\"&G8614))","v":""},{"$f":"IF(ISBLANK(INDIRECT(\"'\"&F8614&\"'!\"&H8614)),\"\",IFERROR(VLOOKUP(TEXT(INDIRECT(\"'\"&F8614&\"'!\"&H8614),\"0\"),Notes!$B$5:$C$100,2,FALSE),\"\"))","v":""},"1a","$S$57","$T$57"]
[31886,{"$f":"Menu!$F$29","v":"X"},{"$f":"Menu!$J$29","v":2020},{"$f":"IF(ISBLANK(INDIRECT(\"'\"&F8615&\"'!\"&G8615)),\"\",INDIRECT(\"'\"&F8615&\"'!\"&G8615))","v":""},{"$f":"IF(ISBLANK(INDIRECT(\"'\"&F8615&\"'!\"&H8615)),\"\",IFERROR(VLOOKUP(TEXT(INDIRECT(\"'\"&F8615&\"'!\"&H8615),\"0\"),Notes!$B$5:$C$100,2,FALSE),\"\"))","v":""},"1a","$I$57","$J$57"]
[31887,{"$f":"Menu!$F$29","v":"X"},{"$f":"Menu!$J$29","v":2020},{"$f":"IF(ISBLANK(INDIRECT(\"'\"&F8616&\"'!\"&G8616)),\"\",INDIRECT(\"'\"&F8616&\"'!\"&G8616))","v":""},{"$f":"IF(ISBLANK(INDIRECT(\"'\"&F8616&\"'!\"&H8616)),\"\",IFERROR(VLOOKUP(TEXT(INDIRECT(\"'\"&F8616&\"'!\"&H8616),\"0\"),Notes!$B$5:$C$100,2,FALSE),\"\"))","v":""},"1a","$G$57","$H$57"]
[31888,{"$f":"Menu!$F$29","v":"X"},{"$f":"Menu!$J$29","v":2020},{"$f":"IF(ISBLANK(INDIRECT(\"'\"&F8617&\"'!\"&G8617)),\"\",INDIRECT(\"'\"&F8617&\"'!\"&G8617))","v":""},{"$f":"IF(ISBLANK(INDIRECT(\"'\"&F8617&\"'!\"&H8617)),\"\",IFERROR(VLOOKUP(TEXT(INDIRECT(\"'\"&F8617&\"'!\"&H8617),\"0\"),Notes!$B$5:$C$100,2,FALSE),\"\"))","v":""},"1a","$E$57","$F$57"]
[33441,{"$f":"Menu!$F$29","v":"X"},{"$f":"Menu!$J$29","v":2020},{"$f":"IF(ISBLANK(INDIRECT(\"'\"&F8618&\"'!\"&G8618)),\"\",INDIRECT(\"'\"&F8618&\"'!\"&G8618))","v":""},{"$f":"IF(ISBLANK(INDIRECT(\"'\"&F8618&\"'!\"&H8618)),\"\",IFERROR(VLOOKUP(TEXT(INDIRECT(\"'\"&F8618&\"'!\"&H8618),\"0\"),Notes!$B$5:$C$100,2,FALSE),\"\"))","v":""},"2a","$E$46","$F$46"]
[33442,{"$f":"Menu!$F$29","v":"X"},{"$f":"Menu!$J$29","v":2020},{"$f":"IF(ISBLANK(INDIRECT(\"'\"&F8619&\"'!\"&G8619)),\"\",INDIRECT(\"'\"&F8619&\"'!\"&G8619))","v":""},{"$f":"IF(ISBLANK(INDIRECT(\"'\"&F8619&\"'!\"&H8619)),\"\",IFERROR(VLOOKUP(TEXT(INDIRECT(\"'\"&F8619&\"'!\"&H8619),\"0\"),Notes!$B$5:$C$100,2,FALSE),\"\"))","v":""},"2a","$G$46","$H$46"]
[33443,{"$f":"Menu!$F$29","v":"X"},{"$f":"Menu!$J$29","v":2020},{"$f":"IF(ISBLANK(INDIRECT(\"'\"&F8620&\"'!\"&G8620)),\"\",INDIRECT(\"'\"&F8620&\"'!\"&G8620))","v":""},{"$f":"IF(ISBLANK(INDIRECT(\"'\"&F8620&\"'!\"&H8620)),\"\",IFERROR(VLOOKUP(TEXT(INDIRECT(\"'\"&F8620&\"'!\"&H8620),\"0\"),Notes!$B$5:$C$100,2,FALSE),\"\"))","v":""},"2a","$I$46","$J$46"]
[33444,{"$f":"Menu!$F$29","v":"X"},{"$f":"Menu!$J$29","v":2020},{"$f":"IF(ISBLANK(INDIRECT(\"'\"&F8621&\"'!\"&G8621)),\"\",INDIRECT(\"'\"&F8621&\"'!\"&G8621))","v":""},{"$f":"IF(ISBLANK(INDIRECT(\"'\"&F8621&\"'!\"&H8621)),\"\",IFERROR(VLOOKUP(TEXT(INDIRECT(\"'\"&F8621&\"'!\"&H8621),\"0\"),Notes!$B$5:$C$100,2,FALSE),\"\"))","v":""},"2a","$K$46","$L$46"]
[33445,{"$f":"Menu!$F$29","v":"X"},{"$f":"Menu!$J$29","v":2020},{"$f":"IF(ISBLANK(INDIRECT(\"'\"&F8622&\"'!\"&G8622)),\"\",INDIRECT(\"'\"&F8622&\"'!\"&G8622))","v":""},{"$f":"IF(ISBLANK(INDIRECT(\"'\"&F8622&\"'!\"&H8622)),\"\",IFERROR(VLOOKUP(TEXT(INDIRECT(\"'\"&F8622&\"'!\"&H8622),\"0\"),Notes!$B$5:$C$100,2,FALSE),\"\"))","v":""},"2a","$M$46","$N$46"]
[33446,{"$f":"Menu!$F$29","v":"X"},{"$f":"Menu!$J$29","v":2020},{"$f":"IF(ISBLANK(INDIRECT(\"'\"&F8623&\"'!\"&G8623)),\"\",INDIRECT(\"'\"&F8623&\"'!\"&G8623))","v":""},{"$f":"IF(ISBLANK(INDIRECT(\"'\"&F8623&\"'!\"&H8623)),\"\",IFERROR(VLOOKUP(TEXT(INDIRECT(\"'\"&F8623&\"'!\"&H8623),\"0\"),Notes!$B$5:$C$100,2,FALSE),\"\"))","v":""},"2a","$O$46","$P$46"]
[33447,{"$f":"Menu!$F$29","v":"X"},{"$f":"Menu!$J$29","v":2020},{"$f":"IF(ISBLANK(INDIRECT(\"'\"&F8624&\"'!\"&G8624)),\"\",INDIRECT(\"'\"&F8624&\"'!\"&G8624))","v":""},{"$f":"IF(ISBLANK(INDIRECT(\"'\"&F8624&\"'!\"&H8624)),\"\",IFERROR(VLOOKUP(TEXT(INDIRECT(\"'\"&F8624&\"'!\"&H8624),\"0\"),Notes!$B$5:$C$100,2,FALSE),\"\"))","v":""},"2a","$Q$46","$R$46"]
[33448,{"$f":"Menu!$F$29","v":"X"},{"$f":"Menu!$J$29","v":2020},{"$f":"IF(ISBLANK(INDIRECT(\"'\"&F8625&\"'!\"&G8625)),\"\",INDIRECT(\"'\"&F8625&\"'!\"&G8625))","v":""},{"$f":"IF(ISBLANK(INDIRECT(\"'\"&F8625&\"'!\"&H8625)),\"\",IFERROR(VLOOKUP(TEXT(INDIRECT(\"'\"&F8625&\"'!\"&H8625),\"0\"),Notes!$B$5:$C$100,2,FALSE),\"\"))","v":""},"2a","$S$46","$T$46"]
[33449,{"$f":"Menu!$F$29","v":"X"},{"$f":"Menu!$J$29","v":2020},{"$f":"IF(ISBLANK(INDIRECT(\"'\"&F8626&\"'!\"&G8626)),\"\",INDIRECT(\"'\"&F8626&\"'!\"&G8626))","v":""},{"$f":"IF(ISBLANK(INDIRECT(\"'\"&F8626&\"'!\"&H8626)),\"\",IFERROR(VLOOKUP(TEXT(INDIRECT(\"'\"&F8626&\"'!\"&H8626),\"0\"),Notes!$B$5:$C$100,2,FALSE),\"\"))","v":""},"2a","$U$46","$V$46"]
[33450,{"$f":"Menu!$F$29","v":"X"},{"$f":"Menu!$J$29","v":2020},{"$f":"IF(ISBLANK(INDIRECT(\"'\"&F8627&\"'!\"&G8627)),\"\",INDIRECT(\"'\"&F8627&\"'!\"&G8627))","v":""},{"$f":"IF(ISBLANK(INDIRECT(\"'\"&F8627&\"'!\"&H8627)),\"\",IFERROR(VLOOKUP(TEXT(INDIRECT(\"'\"&F8627&\"'!\"&H8627),\"0\"),Notes!$B$5:$C$100,2,FALSE),\"\"))","v":""},"2b","$E$46","$F$46"]
[33451,{"$f":"Menu!$F$29","v":"X"},{"$f":"Menu!$J$29","v":2020},{"$f":"IF(ISBLANK(INDIRECT(\"'\"&F8628&\"'!\"&G8628)),\"\",INDIRECT(\"'\"&F8628&\"'!\"&G8628))","v":""},{"$f":"IF(ISBLANK(INDIRECT(\"'\"&F8628&\"'!\"&H8628)),\"\",IFERROR(VLOOKUP(TEXT(INDIRECT(\"'\"&F8628&\"'!\"&H8628),\"0\"),Notes!$B$5:$C$100,2,FALSE),\"\"))","v":""},"2b","$G$46","$H$46"]
[33452,{"$f":"Menu!$F$29","v":"X"},{"$f":"Menu!$J$29","v":2020},{"$f":"IF(ISBLANK(INDIRECT(\"'\"&F8629&\"'!\"&G8629)),\"\",INDIRECT(\"'\"&F8629&\"'!\"&G8629))","v":""},{"$f":"IF(ISBLANK(INDIRECT(\"'\"&F8629&\"'!\"&H8629)),\"\",IFERROR(VLOOKUP(TEXT(INDIRECT(\"'\"&F8629&\"'!\"&H8629),\"0\"),Notes!$B$5:$C$100,2,FALSE),\"\"))","v":""},"2b","$I$46","$J$46"]
[33453,{"$f":"Menu!$F$29","v":"X"},{"$f":"Menu!$J$29","v":2020},{"$f":"IF(ISBLANK(INDIRECT(\"'\"&F8630&\"'!\"&G8630)),\"\",INDIRECT(\"'\"&F8630&\"'!\"&G8630))","v":""},{"$f":"IF(ISBLANK(INDIRECT(\"'\"&F8630&\"'!\"&H8630)),\"\",IFERROR(VLOOKUP(TEXT(INDIRECT(\"'\"&F8630&\"'!\"&H8630),\"0\"),Notes!$B$5:$C$100,2,FALSE),\"\"))","v":""},"2b","$K$46","$L$46"]
[33454,{"$f":"Menu!$F$29","v":"X"},{"$f":"Menu!$J$29","v":2020},{"$f":"IF(ISBLANK(INDIRECT(\"'\"&F8631&\"'!\"&G8631)),\"\",INDIRECT(\"'\"&F8631&\"'!\"&G8631))","v":""},{"$f":"IF(ISBLANK(INDIRECT(\"'\"&F8631&\"'!\"&H8631)),\"\",IFERROR(VLOOKUP(TEXT(INDIRECT(\"'\"&F8631&\"'!\"&H8631),\"0\"),Notes!$B$5:$C$100,2,FALSE),\"\"))","v":""},"2b","$M$46","$N$46"]
[33455,{"$f":"Menu!$F$29","v":"X"},{"$f":"Menu!$J$29","v":2020},{"$f":"IF(ISBLANK(INDIRECT(\"'\"&F8632&\"'!\"&G8632)),\"\",INDIRECT(\"'\"&F8632&\"'!\"&G8632))","v":""},{"$f":"IF(ISBLANK(INDIRECT(\"'\"&F8632&\"'!\"&H8632)),\"\",IFERROR(VLOOKUP(TEXT(INDIRECT(\"'\"&F8632&\"'!\"&H8632),\"0\"),Notes!$B$5:$C$100,2,FALSE),\"\"))","v":""},"2b","$O$46","$P$46"]
[33456,{"$f":"Menu!$F$29","v":"X"},{"$f":"Menu!$J$29","v":2020},{"$f":"IF(ISBLANK(INDIRECT(\"'\"&F8633&\"'!\"&G8633)),\"\",INDIRECT(\"'\"&F8633&\"'!\"&G8633))","v":""},{"$f":"IF(ISBLANK(INDIRECT(\"'\"&F8633&\"'!\"&H8633)),\"\",IFERROR(VLOOKUP(TEXT(INDIRECT(\"'\"&F8633&\"'!\"&H8633),\"0\"),Notes!$B$5:$C$100,2,FALSE),\"\"))","v":""},"2b","$Q$46","$R$46"]
[33457,{"$f":"Menu!$F$29","v":"X"},{"$f":"Menu!$J$29","v":2020},{"$f":"IF(ISBLANK(INDIRECT(\"'\"&F8634&\"'!\"&G8634)),\"\",INDIRECT(\"'\"&F8634&\"'!\"&G8634))","v":""},{"$f":"IF(ISBLANK(INDIRECT(\"'\"&F8634&\"'!\"&H8634)),\"\",IFERROR(VLOOKUP(TEXT(INDIRECT(\"'\"&F8634&\"'!\"&H8634),\"0\"),Notes!$B$5:$C$100,2,FALSE),\"\"))","v":""},"2b","$S$46","$T$46"]
[33458,{"$f":"Menu!$F$29","v":"X"},{"$f":"Menu!$J$29","v":2020},{"$f":"IF(ISBLANK(INDIRECT(\"'\"&F8635&\"'!\"&G8635)),\"\",INDIRECT(\"'\"&F8635&\"'!\"&G8635))","v":""},{"$f":"IF(ISBLANK(INDIRECT(\"'\"&F8635&\"'!\"&H8635)),\"\",IFERROR(VLOOKUP(TEXT(INDIRECT(\"'\"&F8635&\"'!\"&H8635),\"0\"),Notes!$B$5:$C$100,2,FALSE),\"\"))","v":""},"2b","$U$46","$V$46"]
[33459,{"$f":"Menu!$F$29","v":"X"},{"$f":"Menu!$J$29","v":2020},{"$f":"IF(ISBLANK(INDIRECT(\"'\"&F8636&\"'!\"&G8636)),\"\",INDIRECT(\"'\"&F8636&\"'!\"&G8636))","v":""},{"$f":"IF(ISBLANK(INDIRECT(\"'\"&F8636&\"'!\"&H8636)),\"\",IFERROR(VLOOKUP(TEXT(INDIRECT(\"'\"&F8636&\"'!\"&H8636),\"0\"),Notes!$B$5:$C$100,2,FALSE),\"\"))","v":""},"2b","$W$46","$X$46"]
[33460,{"$f":"Menu!$F$29","v":"X"},{"$f":"Menu!$J$29","v":2020},{"$f":"IF(ISBLANK(INDIRECT(\"'\"&F8637&\"'!\"&G8637)),\"\",INDIRECT(\"'\"&F8637&\"'!\"&G8637))","v":""},{"$f":"IF(ISBLANK(INDIRECT(\"'\"&F8637&\"'!\"&H8637)),\"\",IFERROR(VLOOKUP(TEXT(INDIRECT(\"'\"&F8637&\"'!\"&H8637),\"0\"),Notes!$B$5:$C$100,2,FALSE),\"\"))","v":""},"2b","$Y$46","$Z$46"]
[33461,{"$f":"Menu!$F$29","v":"X"},{"$f":"Menu!$J$29","v":2020},{"$f":"IF(ISBLANK(INDIRECT(\"'\"&F8638&\"'!\"&G8638)),\"\",INDIRECT(\"'\"&F8638&\"'!\"&G8638))","v":""},{"$f":"IF(ISBLANK(INDIRECT(\"'\"&F8638&\"'!\"&H8638)),\"\",IFERROR(VLOOKUP(TEXT(INDIRECT(\"'\"&F8638&\"'!\"&H8638),\"0\"),Notes!$B$5:$C$100,2,FALSE),\"\"))","v":""},"2b","$AA$46","$AB$46"]
[33462,{"$f":"Menu!$F$29","v":"X"},{"$f":"Menu!$J$29","v":2020},{"$f":"IF(ISBLANK(INDIRECT(\"'\"&F8639&\"'!\"&G8639)),\"\",INDIRECT(\"'\"&F8639&\"'!\"&G8639))","v":""},{"$f":"IF(ISBLANK(INDIRECT(\"'\"&F8639&\"'!\"&H8639)),\"\",IFERROR(VLOOKUP(TEXT(INDIRECT(\"'\"&F8639&\"'!\"&H8639),\"0\"),Notes!$B$5:$C$100,2,FALSE),\"\"))","v":""},"2c","$E$46","$F$46"]
[33463,{"$f":"Menu!$F$29","v":"X"},{"$f":"Menu!$J$29","v":2020},{"$f":"IF(ISBLANK(INDIRECT(\"'\"&F8640&\"'!\"&G8640)),\"\",INDIRECT(\"'\"&F8640&\"'!\"&G8640))","v":""},{"$f":"IF(ISBLANK(INDIRECT(\"'\"&F8640&\"'!\"&H8640)),\"\",IFERROR(VLOOKUP(TEXT(INDIRECT(\"'\"&F8640&\"'!\"&H8640),\"0\"),Notes!$B$5:$C$100,2,FALSE),\"\"))","v":""},"2c","$G$46","$H$46"]
[33464,{"$f":"Menu!$F$29","v":"X"},{"$f":"Menu!$J$29","v":2020},{"$f":"IF(ISBLANK(INDIRECT(\"'\"&F8641&\"'!\"&G8641)),\"\",INDIRECT(\"'\"&F8641&\"'!\"&G8641))","v":""},{"$f":"IF(ISBLANK(INDIRECT(\"'\"&F8641&\"'!\"&H8641)),\"\",IFERROR(VLOOKUP(TEXT(INDIRECT(\"'\"&F8641&\"'!\"&H8641),\"0\"),Notes!$B$5:$C$100,2,FALSE),\"\"))","v":""},"2c","$I$46","$J$46"]
[33465,{"$f":"Menu!$F$29","v":"X"},{"$f":"Menu!$J$29","v":2020},{"$f":"IF(ISBLANK(INDIRECT(\"'\"&F8642&\"'!\"&G8642)),\"\",INDIRECT(\"'\"&F8642&\"'!\"&G8642))","v":""},{"$f":"IF(ISBLANK(INDIRECT(\"'\"&F8642&\"'!\"&H8642)),\"\",IFERROR(VLOOKUP(TEXT(INDIRECT(\"'\"&F8642&\"'!\"&H8642),\"0\"),Notes!$B$5:$C$100,2,FALSE),\"\"))","v":""},"2c","$K$46",{"$f":"IF(LEN(TRIM(MID(G8642,4,10)))-LEN(SUBSTITUTE(TRIM(MID(G8642,4,10)),\"$\",\"\"))=0,\"$\"&CHAR(CODE(MID(G8642,2,1))+1)&\"$\"&TRIM(MID(G8642,4,10)),\"$\"&MID(G8642,2,1)&CHAR(CODE(MID(G8642,3,1))+1)&\"$\"&TRIM(MID(G8642,5,11)))","v":"$L$46"}]
[33466,{"$f":"Menu!$F$29","v":"X"},{"$f":"Menu!$J$29","v":2020},{"$f":"IF(ISBLANK(INDIRECT(\"'\"&F8643&\"'!\"&G8643)),\"\",INDIRECT(\"'\"&F8643&\"'!\"&G8643))","v":""},{"$f":"IF(ISBLANK(INDIRECT(\"'\"&F8643&\"'!\"&H8643)),\"\",IFERROR(VLOOKUP(TEXT(INDIRECT(\"'\"&F8643&\"'!\"&H8643),\"0\"),Notes!$B$5:$C$100,2,FALSE),\"\"))","v":""},"2c","$M$46","$N$46"]
[33467,{"$f":"Menu!$F$29","v":"X"},{"$f":"Menu!$J$29","v":2020},{"$f":"IF(ISBLANK(INDIRECT(\"'\"&F8644&\"'!\"&G8644)),\"\",INDIRECT(\"'\"&F8644&\"'!\"&G8644))","v":""},{"$f":"IF(ISBLANK(INDIRECT(\"'\"&F8644&\"'!\"&H8644)),\"\",IFERROR(VLOOKUP(TEXT(INDIRECT(\"'\"&F8644&\"'!\"&H8644),\"0\"),Notes!$B$5:$C$100,2,FALSE),\"\"))","v":""},"2c","$O$46","$P$46"]
[33468,{"$f":"Menu!$F$29","v":"X"},{"$f":"Menu!$J$29","v":2020},{"$f":"IF(ISBLANK(INDIRECT(\"'\"&F8645&\"'!\"&G8645)),\"\",INDIRECT(\"'\"&F8645&\"'!\"&G8645))","v":""},{"$f":"IF(ISBLANK(INDIRECT(\"'\"&F8645&\"'!\"&H8645)),\"\",IFERROR(VLOOKUP(TEXT(INDIRECT(\"'\"&F8645&\"'!\"&H8645),\"0\"),Notes!$B$5:$C$100,2,FALSE),\"\"))","v":""},"2c","$Q$46","$R$46"]
[33469,{"$f":"Menu!$F$29","v":"X"},{"$f":"Menu!$J$29","v":2020},{"$f":"IF(ISBLANK(INDIRECT(\"'\"&F8646&\"'!\"&G8646)),\"\",INDIRECT(\"'\"&F8646&\"'!\"&G8646))","v":""},{"$f":"IF(ISBLANK(INDIRECT(\"'\"&F8646&\"'!\"&H8646)),\"\",IFERROR(VLOOKUP(TEXT(INDIRECT(\"'\"&F8646&\"'!\"&H8646),\"0\"),Notes!$B$5:$C$100,2,FALSE),\"\"))","v":""},"2c","$S$46","$T$46"]
[33470,{"$f":"Menu!$F$29","v":"X"},{"$f":"Menu!$J$29","v":2020},{"$f":"IF(ISBLANK(INDIRECT(\"'\"&F8647&\"'!\"&G8647)),\"\",INDIRECT(\"'\"&F8647&\"'!\"&G8647))","v":""},{"$f":"IF(ISBLANK(INDIRECT(\"'\"&F8647&\"'!\"&H8647)),\"\",IFERROR(VLOOKUP(TEXT(INDIRECT(\"'\"&F8647&\"'!\"&H8647),\"0\"),Notes!$B$5:$C$100,2,FALSE),\"\"))","v":""},"2c","$U$46","$V$46"]
[33471,{"$f":"Menu!$F$29","v":"X"},{"$f":"Menu!$J$29","v":2020},{"$f":"IF(ISBLANK(INDIRECT(\"'\"&F8648&\"'!\"&G8648)),\"\",INDIRECT(\"'\"&F8648&\"'!\"&G8648))","v":""},{"$f":"IF(ISBLANK(INDIRECT(\"'\"&F8648&\"'!\"&H8648)),\"\",IFERROR(VLOOKUP(TEXT(INDIRECT(\"'\"&F8648&\"'!\"&H8648),\"0\"),Notes!$B$5:$C$100,2,FALSE),\"\"))","v":""},"2c","$W$46","$X$46"]
[33472,{"$f":"Menu!$F$29","v":"X"},{"$f":"Menu!$J$29","v":2020},{"$f":"IF(ISBLANK(INDIRECT(\"'\"&F8649&\"'!\"&G8649)),\"\",INDIRECT(\"'\"&F8649&\"'!\"&G8649))","v":""},{"$f":"IF(ISBLANK(INDIRECT(\"'\"&F8649&\"'!\"&H8649)),\"\",IFERROR(VLOOKUP(TEXT(INDIRECT(\"'\"&F8649&\"'!\"&H8649),\"0\"),Notes!$B$5:$C$100,2,FALSE),\"\"))","v":""},"2c","$Y$46","$Z$46"]
[33473,{"$f":"Menu!$F$29","v":"X"},{"$f":"Menu!$J$29","v":2020},{"$f":"IF(ISBLANK(INDIRECT(\"'\"&F8650&\"'!\"&G8650)),\"\",INDIRECT(\"'\"&F8650&\"'!\"&G8650))","v":""},{"$f":"IF(ISBLANK(INDIRECT(\"'\"&F8650&\"'!\"&H8650)),\"\",IFERROR(VLOOKUP(TEXT(INDIRECT(\"'\"&F8650&\"'!\"&H8650),\"0\"),Notes!$B$5:$C$100,2,FALSE),\"\"))","v":""},"2c","$AA$46","$AB$46"]
[33474,{"$f":"Menu!$F$29","v":"X"},{"$f":"Menu!$J$29","v":2020},{"$f":"IF(ISBLANK(INDIRECT(\"'\"&F8651&\"'!\"&G8651)),\"\",INDIRECT(\"'\"&F8651&\"'!\"&G8651))","v":""},{"$f":"IF(ISBLANK(INDIRECT(\"'\"&F8651&\"'!\"&H8651)),\"\",IFERROR(VLOOKUP(TEXT(INDIRECT(\"'\"&F8651&\"'!\"&H8651),\"0\"),Notes!$B$5:$C$100,2,FALSE),\"\"))","v":""},"2d","$E$46","$F$46"]
[33475,{"$f":"Menu!$F$29","v":"X"},{"$f":"Menu!$J$29","v":2020},{"$f":"IF(ISBLANK(INDIRECT(\"'\"&F8652&\"'!\"&G8652)),\"\",INDIRECT(\"'\"&F8652&\"'!\"&G8652))","v":""},{"$f":"IF(ISBLANK(INDIRECT(\"'\"&F8652&\"'!\"&H8652)),\"\",IFERROR(VLOOKUP(TEXT(INDIRECT(\"'\"&F8652&\"'!\"&H8652),\"0\"),Notes!$B$5:$C$100,2,FALSE),\"\"))","v":""},"2d","$G$46","$H$46"]
[33476,{"$f":"Menu!$F$29","v":"X"},{"$f":"Menu!$J$29","v":2020},{"$f":"IF(ISBLANK(INDIRECT(\"'\"&F8653&\"'!\"&G8653)),\"\",INDIRECT(\"'\"&F8653&\"'!\"&G8653))","v":""},{"$f":"IF(ISBLANK(INDIRECT(\"'\"&F8653&\"'!\"&H8653)),\"\",IFERROR(VLOOKUP(TEXT(INDIRECT(\"'\"&F8653&\"'!\"&H8653),\"0\"),Notes!$B$5:$C$100,2,FALSE),\"\"))","v":""},"2d","$I$46","$J$46"]
[33477,{"$f":"Menu!$F$29","v":"X"},{"$f":"Menu!$J$29","v":2020},{"$f":"IF(ISBLANK(INDIRECT(\"'\"&F8654&\"'!\"&G8654)),\"\",INDIRECT(\"'\"&F8654&\"'!\"&G8654))","v":""},{"$f":"IF(ISBLANK(INDIRECT(\"'\"&F8654&\"'!\"&H8654)),\"\",IFERROR(VLOOKUP(TEXT(INDIRECT(\"'\"&F8654&\"'!\"&H8654),\"0\"),Notes!$B$5:$C$100,2,FALSE),\"\"))","v":""},"2d","$K$46","$L$46"]
[33478,{"$f":"Menu!$F$29","v":"X"},{"$f":"Menu!$J$29","v":2020},{"$f":"IF(ISBLANK(INDIRECT(\"'\"&F8655&\"'!\"&G8655)),\"\",INDIRECT(\"'\"&F8655&\"'!\"&G8655))","v":""},{"$f":"IF(ISBLANK(INDIRECT(\"'\"&F8655&\"'!\"&H8655)),\"\",IFERROR(VLOOKUP(TEXT(INDIRECT(\"'\"&F8655&\"'!\"&H8655),\"0\"),Notes!$B$5:$C$100,2,FALSE),\"\"))","v":""},"2d","$M$46","$N$46"]
[33479,{"$f":"Menu!$F$29","v":"X"},{"$f":"Menu!$J$29","v":2020},{"$f":"IF(ISBLANK(INDIRECT(\"'\"&F8656&\"'!\"&G8656)),\"\",INDIRECT(\"'\"&F8656&\"'!\"&G8656))","v":""},{"$f":"IF(ISBLANK(INDIRECT(\"'\"&F8656&\"'!\"&H8656)),\"\",IFERROR(VLOOKUP(TEXT(INDIRECT(\"'\"&F8656&\"'!\"&H8656),\"0\"),Notes!$B$5:$C$100,2,FALSE),\"\"))","v":""},"2d","$O$46","$P$46"]
[33480,{"$f":"Menu!$F$29","v":"X"},{"$f":"Menu!$J$29","v":2020},{"$f":"IF(ISBLANK(INDIRECT(\"'\"&F8657&\"'!\"&G8657)),\"\",INDIRECT(\"'\"&F8657&\"'!\"&G8657))","v":""},{"$f":"IF(ISBLANK(INDIRECT(\"'\"&F8657&\"'!\"&H8657)),\"\",IFERROR(VLOOKUP(TEXT(INDIRECT(\"'\"&F8657&\"'!\"&H8657),\"0\"),Notes!$B$5:$C$100,2,FALSE),\"\"))","v":""},"2d","$Q$46","$R$46"]
[33481,{"$f":"Menu!$F$29","v":"X"},{"$f":"Menu!$J$29","v":2020},{"$f":"IF(ISBLANK(INDIRECT(\"'\"&F8658&\"'!\"&G8658)),\"\",INDIRECT(\"'\"&F8658&\"'!\"&G8658))","v":""},{"$f":"IF(ISBLANK(INDIRECT(\"'\"&F8658&\"'!\"&H8658)),\"\",IFERROR(VLOOKUP(TEXT(INDIRECT(\"'\"&F8658&\"'!\"&H8658),\"0\"),Notes!$B$5:$C$100,2,FALSE),\"\"))","v":""},"2d","$S$46","$T$46"]
[33482,{"$f":"Menu!$F$29","v":"X"},{"$f":"Menu!$J$29","v":2020},{"$f":"IF(ISBLANK(INDIRECT(\"'\"&F8659&\"'!\"&G8659)),\"\",INDIRECT(\"'\"&F8659&\"'!\"&G8659))","v":""},{"$f":"IF(ISBLANK(INDIRECT(\"'\"&F8659&\"'!\"&H8659)),\"\",IFERROR(VLOOKUP(TEXT(INDIRECT(\"'\"&F8659&\"'!\"&H8659),\"0\"),Notes!$B$5:$C$100,2,FALSE),\"\"))","v":""},"2d","$U$46","$V$46"]
[33483,{"$f":"Menu!$F$29","v":"X"},{"$f":"Menu!$J$29","v":2020},{"$f":"IF(ISBLANK(INDIRECT(\"'\"&F8660&\"'!\"&G8660)),\"\",INDIRECT(\"'\"&F8660&\"'!\"&G8660))","v":""},{"$f":"IF(ISBLANK(INDIRECT(\"'\"&F8660&\"'!\"&H8660)),\"\",IFERROR(VLOOKUP(TEXT(INDIRECT(\"'\"&F8660&\"'!\"&H8660),\"0\"),Notes!$B$5:$C$100,2,FALSE),\"\"))","v":""},"2d","$W$46","$X$46"]
[33484,{"$f":"Menu!$F$29","v":"X"},{"$f":"Menu!$J$29","v":2020},{"$f":"IF(ISBLANK(INDIRECT(\"'\"&F8661&\"'!\"&G8661)),\"\",INDIRECT(\"'\"&F8661&\"'!\"&G8661))","v":""},{"$f":"IF(ISBLANK(INDIRECT(\"'\"&F8661&\"'!\"&H8661)),\"\",IFERROR(VLOOKUP(TEXT(INDIRECT(\"'\"&F8661&\"'!\"&H8661),\"0\"),Notes!$B$5:$C$100,2,FALSE),\"\"))","v":""},"2d","$Y$46","$Z$46"]
[33485,{"$f":"Menu!$F$29","v":"X"},{"$f":"Menu!$J$29","v":2020},{"$f":"IF(ISBLANK(INDIRECT(\"'\"&F8662&\"'!\"&G8662)),\"\",INDIRECT(\"'\"&F8662&\"'!\"&G8662))","v":""},{"$f":"IF(ISBLANK(INDIRECT(\"'\"&F8662&\"'!\"&H8662)),\"\",IFERROR(VLOOKUP(TEXT(INDIRECT(\"'\"&F8662&\"'!\"&H8662),\"0\"),Notes!$B$5:$C$100,2,FALSE),\"\"))","v":""},"2d","$AA$46","$AB$46"]
[33486,{"$f":"Menu!$F$29","v":"X"},{"$f":"Menu!$J$29","v":2020},{"$f":"IF(ISBLANK(INDIRECT(\"'\"&F8663&\"'!\"&G8663)),\"\",INDIRECT(\"'\"&F8663&\"'!\"&G8663))","v":""},{"$f":"IF(ISBLANK(INDIRECT(\"'\"&F8663&\"'!\"&H8663)),\"\",IFERROR(VLOOKUP(TEXT(INDIRECT(\"'\"&F8663&\"'!\"&H8663),\"0\"),Notes!$B$5:$C$100,2,FALSE),\"\"))","v":""},"2d","$AC$46","$AD$46"]
[33487,{"$f":"Menu!$F$29","v":"X"},{"$f":"Menu!$J$29","v":2020},{"$f":"IF(ISBLANK(INDIRECT(\"'\"&F8664&\"'!\"&G8664)),\"\",INDIRECT(\"'\"&F8664&\"'!\"&G8664))","v":""},{"$f":"IF(ISBLANK(INDIRECT(\"'\"&F8664&\"'!\"&H8664)),\"\",IFERROR(VLOOKUP(TEXT(INDIRECT(\"'\"&F8664&\"'!\"&H8664),\"0\"),Notes!$B$5:$C$100,2,FALSE),\"\"))","v":""},"2d","$AE$46","$AF$46"]
[33488,{"$f":"Menu!$F$29","v":"X"},{"$f":"Menu!$J$29","v":2020},{"$f":"IF(ISBLANK(INDIRECT(\"'\"&F8665&\"'!\"&G8665)),\"\",INDIRECT(\"'\"&F8665&\"'!\"&G8665))","v":""},{"$f":"IF(ISBLANK(INDIRECT(\"'\"&F8665&\"'!\"&H8665)),\"\",IFERROR(VLOOKUP(TEXT(INDIRECT(\"'\"&F8665&\"'!\"&H8665),\"0\"),Notes!$B$5:$C$100,2,FALSE),\"\"))","v":""},"2d","$AG$46","$AH$46"]
[33489,{"$f":"Menu!$F$29","v":"X"},{"$f":"Menu!$J$29","v":2020},{"$f":"IF(ISBLANK(INDIRECT(\"'\"&F8666&\"'!\"&G8666)),\"\",INDIRECT(\"'\"&F8666&\"'!\"&G8666))","v":""},{"$f":"IF(ISBLANK(INDIRECT(\"'\"&F8666&\"'!\"&H8666)),\"\",IFERROR(VLOOKUP(TEXT(INDIRECT(\"'\"&F8666&\"'!\"&H8666),\"0\"),Notes!$B$5:$C$100,2,FALSE),\"\"))","v":""},"2e","$E$47","$F$47"]
[33490,{"$f":"Menu!$F$29","v":"X"},{"$f":"Menu!$J$29","v":2020},{"$f":"IF(ISBLANK(INDIRECT(\"'\"&F8667&\"'!\"&G8667)),\"\",INDIRECT(\"'\"&F8667&\"'!\"&G8667))","v":""},{"$f":"IF(ISBLANK(INDIRECT(\"'\"&F8667&\"'!\"&H8667)),\"\",IFERROR(VLOOKUP(TEXT(INDIRECT(\"'\"&F8667&\"'!\"&H8667),\"0\"),Notes!$B$5:$C$100,2,FALSE),\"\"))","v":""},"2e","$G$47","$H$47"]
[33491,{"$f":"Menu!$F$29","v":"X"},{"$f":"Menu!$J$29","v":2020},{"$f":"IF(ISBLANK(INDIRECT(\"'\"&F8668&\"'!\"&G8668)),\"\",INDIRECT(\"'\"&F8668&\"'!\"&G8668))","v":""},{"$f":"IF(ISBLANK(INDIRECT(\"'\"&F8668&\"'!\"&H8668)),\"\",IFERROR(VLOOKUP(TEXT(INDIRECT(\"'\"&F8668&\"'!\"&H8668),\"0\"),Notes!$B$5:$C$100,2,FALSE),\"\"))","v":""},"2e","$I$47","$J$47"]
[33492,{"$f":"Menu!$F$29","v":"X"},{"$f":"Menu!$J$29","v":2020},{"$f":"IF(ISBLANK(INDIRECT(\"'\"&F8669&\"'!\"&G8669)),\"\",INDIRECT(\"'\"&F8669&\"'!\"&G8669))","v":""},{"$f":"IF(ISBLANK(INDIRECT(\"'\"&F8669&\"'!\"&H8669)),\"\",IFERROR(VLOOKUP(TEXT(INDIRECT(\"'\"&F8669&\"'!\"&H8669),\"0\"),Notes!$B$5:$C$100,2,FALSE),\"\"))","v":""},"2e","$K$47","$L$47"]
[33493,{"$f":"Menu!$F$29","v":"X"},{"$f":"Menu!$J$29","v":2020},{"$f":"IF(ISBLANK(INDIRECT(\"'\"&F8670&\"'!\"&G8670)),\"\",INDIRECT(\"'\"&F8670&\"'!\"&G8670))","v":""},{"$f":"IF(ISBLANK(INDIRECT(\"'\"&F8670&\"'!\"&H8670)),\"\",IFERROR(VLOOKUP(TEXT(INDIRECT(\"'\"&F8670&\"'!\"&H8670),\"0\"),Notes!$B$5:$C$100,2,FALSE),\"\"))","v":""},"2e","$M$47","$N$47"]
[33494,{"$f":"Menu!$F$29","v":"X"},{"$f":"Menu!$J$29","v":2020},{"$f":"IF(ISBLANK(INDIRECT(\"'\"&F8671&\"'!\"&G8671)),\"\",INDIRECT(\"'\"&F8671&\"'!\"&G8671))","v":""},{"$f":"IF(ISBLANK(INDIRECT(\"'\"&F8671&\"'!\"&H8671)),\"\",IFERROR(VLOOKUP(TEXT(INDIRECT(\"'\"&F8671&\"'!\"&H8671),\"0\"),Notes!$B$5:$C$100,2,FALSE),\"\"))","v":""},"2e","$O$47","$P$47"]
[33495,{"$f":"Menu!$F$29","v":"X"},{"$f":"Menu!$J$29","v":2020},{"$f":"IF(ISBLANK(INDIRECT(\"'\"&F8672&\"'!\"&G8672)),\"\",INDIRECT(\"'\"&F8672&\"'!\"&G8672))","v":""},{"$f":"IF(ISBLANK(INDIRECT(\"'\"&F8672&\"'!\"&H8672)),\"\",IFERROR(VLOOKUP(TEXT(INDIRECT(\"'\"&F8672&\"'!\"&H8672),\"0\"),Notes!$B$5:$C$100,2,FALSE),\"\"))","v":""},"2e","$Q$47","$R$47"]
[33496,{"$f":"Menu!$F$29","v":"X"},{"$f":"Menu!$J$29","v":2020},{"$f":"IF(ISBLANK(INDIRECT(\"'\"&F8673&\"'!\"&G8673)),\"\",INDIRECT(\"'\"&F8673&\"'!\"&G8673))","v":""},{"$f":"IF(ISBLANK(INDIRECT(\"'\"&F8673&\"'!\"&H8673)),\"\",IFERROR(VLOOKUP(TEXT(INDIRECT(\"'\"&F8673&\"'!\"&H8673),\"0\"),Notes!$B$5:$C$100,2,FALSE),\"\"))","v":""},"2e","$S$47","$T$47"]
[33497,{"$f":"Menu!$F$29","v":"X"},{"$f":"Menu!$J$29","v":2020},{"$f":"IF(ISBLANK(INDIRECT(\"'\"&F8674&\"'!\"&G8674)),\"\",INDIRECT(\"'\"&F8674&\"'!\"&G8674))","v":""},{"$f":"IF(ISBLANK(INDIRECT(\"'\"&F8674&\"'!\"&H8674)),\"\",IFERROR(VLOOKUP(TEXT(INDIRECT(\"'\"&F8674&\"'!\"&H8674),\"0\"),Notes!$B$5:$C$100,2,FALSE),\"\"))","v":""},"2e","$U$47","$V$47"]
[33498,{"$f":"Menu!$F$29","v":"X"},{"$f":"Menu!$J$29","v":2020},{"$f":"IF(ISBLANK(INDIRECT(\"'\"&F8675&\"'!\"&G8675)),\"\",INDIRECT(\"'\"&F8675&\"'!\"&G8675))","v":""},{"$f":"IF(ISBLANK(INDIRECT(\"'\"&F8675&\"'!\"&H8675)),\"\",IFERROR(VLOOKUP(TEXT(INDIRECT(\"'\"&F8675&\"'!\"&H8675),\"0\"),Notes!$B$5:$C$100,2,FALSE),\"\"))","v":""},"2e","$W$47","$X$47"]
[33499,{"$f":"Menu!$F$29","v":"X"},{"$f":"Menu!$J$29","v":2020},{"$f":"IF(ISBLANK(INDIRECT(\"'\"&F8676&\"'!\"&G8676)),\"\",INDIRECT(\"'\"&F8676&\"'!\"&G8676))","v":""},{"$f":"IF(ISBLANK(INDIRECT(\"'\"&F8676&\"'!\"&H8676)),\"\",IFERROR(VLOOKUP(TEXT(INDIRECT(\"'\"&F8676&\"'!\"&H8676),\"0\"),Notes!$B$5:$C$100,2,FALSE),\"\"))","v":""},"2e","$Y$47","$Z$47"]
[33500,{"$f":"Menu!$F$29","v":"X"},{"$f":"Menu!$J$29","v":2020},{"$f":"IF(ISBLANK(INDIRECT(\"'\"&F8677&\"'!\"&G8677)),\"\",INDIRECT(\"'\"&F8677&\"'!\"&G8677))","v":""},{"$f":"IF(ISBLANK(INDIRECT(\"'\"&F8677&\"'!\"&H8677)),\"\",IFERROR(VLOOKUP(TEXT(INDIRECT(\"'\"&F8677&\"'!\"&H8677),\"0\"),Notes!$B$5:$C$100,2,FALSE),\"\"))","v":""},"2e","$AA$47","$AB$47"]
[33501,{"$f":"Menu!$F$29","v":"X"},{"$f":"Menu!$J$29","v":2020},{"$f":"IF(ISBLANK(INDIRECT(\"'\"&F8678&\"'!\"&G8678)),\"\",INDIRECT(\"'\"&F8678&\"'!\"&G8678))","v":""},{"$f":"IF(ISBLANK(INDIRECT(\"'\"&F8678&\"'!\"&H8678)),\"\",IFERROR(VLOOKUP(TEXT(INDIRECT(\"'\"&F8678&\"'!\"&H8678),\"0\"),Notes!$B$5:$C$100,2,FALSE),\"\"))","v":""},"2e","$AC$47","$AD$47"]
[33502,{"$f":"Menu!$F$29","v":"X"},{"$f":"Menu!$J$29","v":2020},{"$f":"IF(ISBLANK(INDIRECT(\"'\"&F8679&\"'!\"&G8679)),\"\",INDIRECT(\"'\"&F8679&\"'!\"&G8679))","v":""},{"$f":"IF(ISBLANK(INDIRECT(\"'\"&F8679&\"'!\"&H8679)),\"\",IFERROR(VLOOKUP(TEXT(INDIRECT(\"'\"&F8679&\"'!\"&H8679),\"0\"),Notes!$B$5:$C$100,2,FALSE),\"\"))","v":""},"2e","$AE$47","$AF$47"]
[33503,{"$f":"Menu!$F$29","v":"X"},{"$f":"Menu!$J$29","v":2020},{"$f":"IF(ISBLANK(INDIRECT(\"'\"&F8680&\"'!\"&G8680)),\"\",INDIRECT(\"'\"&F8680&\"'!\"&G8680))","v":""},{"$f":"IF(ISBLANK(INDIRECT(\"'\"&F8680&\"'!\"&H8680)),\"\",IFERROR(VLOOKUP(TEXT(INDIRECT(\"'\"&F8680&\"'!\"&H8680),\"0\"),Notes!$B$5:$C$100,2,FALSE),\"\"))","v":""},"2e","$AG$47","$AH$47"]
[33504,{"$f":"Menu!$F$29","v":"X"},{"$f":"Menu!$J$29","v":2020},{"$f":"IF(ISBLANK(INDIRECT(\"'\"&F8681&\"'!\"&G8681)),\"\",INDIRECT(\"'\"&F8681&\"'!\"&G8681))","v":""},{"$f":"IF(ISBLANK(INDIRECT(\"'\"&F8681&\"'!\"&H8681)),\"\",IFERROR(VLOOKUP(TEXT(INDIRECT(\"'\"&F8681&\"'!\"&H8681),\"0\"),Notes!$B$5:$C$100,2,FALSE),\"\"))","v":""},"2e","$AI$47","$AJ$47"]
[33505,{"$f":"Menu!$F$29","v":"X"},{"$f":"Menu!$J$29","v":2020},{"$f":"IF(ISBLANK(INDIRECT(\"'\"&F8682&\"'!\"&G8682)),\"\",INDIRECT(\"'\"&F8682&\"'!\"&G8682))","v":""},{"$f":"IF(ISBLANK(INDIRECT(\"'\"&F8682&\"'!\"&H8682)),\"\",IFERROR(VLOOKUP(TEXT(INDIRECT(\"'\"&F8682&\"'!\"&H8682),\"0\"),Notes!$B$5:$C$100,2,FALSE),\"\"))","v":""},"2e","$AK$47","$AL$47"]
[33506,{"$f":"Menu!$F$29","v":"X"},{"$f":"Menu!$J$29","v":2020},{"$f":"IF(ISBLANK(INDIRECT(\"'\"&F8683&\"'!\"&G8683)),\"\",INDIRECT(\"'\"&F8683&\"'!\"&G8683))","v":""},{"$f":"IF(ISBLANK(INDIRECT(\"'\"&F8683&\"'!\"&H8683)),\"\",IFERROR(VLOOKUP(TEXT(INDIRECT(\"'\"&F8683&\"'!\"&H8683),\"0\"),Notes!$B$5:$C$100,2,FALSE),\"\"))","v":""},"2e","$AM$47","$AN$47"]
[33507,{"$f":"Menu!$F$29","v":"X"},{"$f":"Menu!$J$29","v":2020},{"$f":"IF(ISBLANK(INDIRECT(\"'\"&F8684&\"'!\"&G8684)),\"\",INDIRECT(\"'\"&F8684&\"'!\"&G8684))","v":""},{"$f":"IF(ISBLANK(INDIRECT(\"'\"&F8684&\"'!\"&H8684)),\"\",IFERROR(VLOOKUP(TEXT(INDIRECT(\"'\"&F8684&\"'!\"&H8684),\"0\"),Notes!$B$5:$C$100,2,FALSE),\"\"))","v":""},"2e","$AO$47","$AP$47"]
[33508,{"$f":"Menu!$F$29","v":"X"},{"$f":"Menu!$J$29","v":2020},{"$f":"IF(ISBLANK(INDIRECT(\"'\"&F8685&\"'!\"&G8685)),\"\",INDIRECT(\"'\"&F8685&\"'!\"&G8685))","v":""},{"$f":"IF(ISBLANK(INDIRECT(\"'\"&F8685&\"'!\"&H8685)),\"\",IFERROR(VLOOKUP(TEXT(INDIRECT(\"'\"&F8685&\"'!\"&H8685),\"0\"),Notes!$B$5:$C$100,2,FALSE),\"\"))","v":""},"2e","$AQ$47","$AR$47"]
[33509,{"$f":"Menu!$F$29","v":"X"},{"$f":"Menu!$J$29","v":2020},{"$f":"IF(ISBLANK(INDIRECT(\"'\"&F8686&\"'!\"&G8686)),\"\",INDIRECT(\"'\"&F8686&\"'!\"&G8686))","v":""},{"$f":"IF(ISBLANK(INDIRECT(\"'\"&F8686&\"'!\"&H8686)),\"\",IFERROR(VLOOKUP(TEXT(INDIRECT(\"'\"&F8686&\"'!\"&H8686),\"0\"),Notes!$B$5:$C$100,2,FALSE),\"\"))","v":""},"2e","$AS$47","$AT$47"]
[33510,{"$f":"Menu!$F$29","v":"X"},{"$f":"Menu!$J$29","v":2020},{"$f":"IF(ISBLANK(INDIRECT(\"'\"&F8687&\"'!\"&G8687)),\"\",INDIRECT(\"'\"&F8687&\"'!\"&G8687))","v":""},{"$f":"IF(ISBLANK(INDIRECT(\"'\"&F8687&\"'!\"&H8687)),\"\",IFERROR(VLOOKUP(TEXT(INDIRECT(\"'\"&F8687&\"'!\"&H8687),\"0\"),Notes!$B$5:$C$100,2,FALSE),\"\"))","v":""},"2e","$AU$47","$AV$47"]
[33511,{"$f":"Menu!$F$29","v":"X"},{"$f":"Menu!$J$29","v":2020},{"$f":"IF(ISBLANK(INDIRECT(\"'\"&F8688&\"'!\"&G8688)),\"\",INDIRECT(\"'\"&F8688&\"'!\"&G8688))","v":""},{"$f":"IF(ISBLANK(INDIRECT(\"'\"&F8688&\"'!\"&H8688)),\"\",IFERROR(VLOOKUP(TEXT(INDIRECT(\"'\"&F8688&\"'!\"&H8688),\"0\"),Notes!$B$5:$C$100,2,FALSE),\"\"))","v":""},"2e","$AW$47","$AX$47"]
[33512,{"$f":"Menu!$F$29","v":"X"},{"$f":"Menu!$J$29","v":2020},{"$f":"IF(ISBLANK(INDIRECT(\"'\"&F8689&\"'!\"&G8689)),\"\",INDIRECT(\"'\"&F8689&\"'!\"&G8689))","v":""},{"$f":"IF(ISBLANK(INDIRECT(\"'\"&F8689&\"'!\"&H8689)),\"\",IFERROR(VLOOKUP(TEXT(INDIRECT(\"'\"&F8689&\"'!\"&H8689),\"0\"),Notes!$B$5:$C$100,2,FALSE),\"\"))","v":""},"2e","$AY$47","$AZ$47"]
[33513,{"$f":"Menu!$F$29","v":"X"},{"$f":"Menu!$J$29","v":2020},{"$f":"IF(ISBLANK(INDIRECT(\"'\"&F8690&\"'!\"&G8690)),\"\",INDIRECT(\"'\"&F8690&\"'!\"&G8690))","v":""},{"$f":"IF(ISBLANK(INDIRECT(\"'\"&F8690&\"'!\"&H8690)),\"\",IFERROR(VLOOKUP(TEXT(INDIRECT(\"'\"&F8690&\"'!\"&H8690),\"0\"),Notes!$B$5:$C$100,2,FALSE),\"\"))","v":""},"2e","$BA$47","$BB$47"]
[33514,{"$f":"Menu!$F$29","v":"X"},{"$f":"Menu!$J$29","v":2020},{"$f":"IF(ISBLANK(INDIRECT(\"'\"&F8691&\"'!\"&G8691)),\"\",INDIRECT(\"'\"&F8691&\"'!\"&G8691))","v":""},{"$f":"IF(ISBLANK(INDIRECT(\"'\"&F8691&\"'!\"&H8691)),\"\",IFERROR(VLOOKUP(TEXT(INDIRECT(\"'\"&F8691&\"'!\"&H8691),\"0\"),Notes!$B$5:$C$100,2,FALSE),\"\"))","v":""},"2e","$BC$47","$BD$47"]
[33515,{"$f":"Menu!$F$29","v":"X"},{"$f":"Menu!$J$29","v":2020},{"$f":"IF(ISBLANK(INDIRECT(\"'\"&F8692&\"'!\"&G8692)),\"\",INDIRECT(\"'\"&F8692&\"'!\"&G8692))","v":""},{"$f":"IF(ISBLANK(INDIRECT(\"'\"&F8692&\"'!\"&H8692)),\"\",IFERROR(VLOOKUP(TEXT(INDIRECT(\"'\"&F8692&\"'!\"&H8692),\"0\"),Notes!$B$5:$C$100,2,FALSE),\"\"))","v":""},"2e","$BE$47","$BF$47"]
[33516,{"$f":"Menu!$F$29","v":"X"},{"$f":"Menu!$J$29","v":2020},{"$f":"IF(ISBLANK(INDIRECT(\"'\"&F8693&\"'!\"&G8693)),\"\",INDIRECT(\"'\"&F8693&\"'!\"&G8693))","v":""},{"$f":"IF(ISBLANK(INDIRECT(\"'\"&F8693&\"'!\"&H8693)),\"\",IFERROR(VLOOKUP(TEXT(INDIRECT(\"'\"&F8693&\"'!\"&H8693),\"0\"),Notes!$B$5:$C$100,2,FALSE),\"\"))","v":""},"2e","$BG$47","$BH$47"]
[33517,{"$f":"Menu!$F$29","v":"X"},{"$f":"Menu!$J$29","v":2020},{"$f":"IF(ISBLANK(INDIRECT(\"'\"&F8694&\"'!\"&G8694)),\"\",INDIRECT(\"'\"&F8694&\"'!\"&G8694))","v":""},{"$f":"IF(ISBLANK(INDIRECT(\"'\"&F8694&\"'!\"&H8694)),\"\",IFERROR(VLOOKUP(TEXT(INDIRECT(\"'\"&F8694&\"'!\"&H8694),\"0\"),Notes!$B$5:$C$100,2,FALSE),\"\"))","v":""},"2e","$BI$47","$BJ$47"]
[33518,{"$f":"Menu!$F$29","v":"X"},{"$f":"Menu!$J$29","v":2020},{"$f":"IF(ISBLANK(INDIRECT(\"'\"&F8695&\"'!\"&G8695)),\"\",INDIRECT(\"'\"&F8695&\"'!\"&G8695))","v":""},{"$f":"IF(ISBLANK(INDIRECT(\"'\"&F8695&\"'!\"&H8695)),\"\",IFERROR(VLOOKUP(TEXT(INDIRECT(\"'\"&F8695&\"'!\"&H8695),\"0\"),Notes!$B$5:$C$100,2,FALSE),\"\"))","v":""},"2e","$BK$47","$BL$47"]
[33519,{"$f":"Menu!$F$29","v":"X"},{"$f":"Menu!$J$29","v":2020},{"$f":"IF(ISBLANK(INDIRECT(\"'\"&F8696&\"'!\"&G8696)),\"\",INDIRECT(\"'\"&F8696&\"'!\"&G8696))","v":""},{"$f":"IF(ISBLANK(INDIRECT(\"'\"&F8696&\"'!\"&H8696)),\"\",IFERROR(VLOOKUP(TEXT(INDIRECT(\"'\"&F8696&\"'!\"&H8696),\"0\"),Notes!$B$5:$C$100,2,FALSE),\"\"))","v":""},"2a","$E$47","$F$47"]
[33520,{"$f":"Menu!$F$29","v":"X"},{"$f":"Menu!$J$29","v":2020},{"$f":"IF(ISBLANK(INDIRECT(\"'\"&F8697&\"'!\"&G8697)),\"\",INDIRECT(\"'\"&F8697&\"'!\"&G8697))","v":""},{"$f":"IF(ISBLANK(INDIRECT(\"'\"&F8697&\"'!\"&H8697)),\"\",IFERROR(VLOOKUP(TEXT(INDIRECT(\"'\"&F8697&\"'!\"&H8697),\"0\"),Notes!$B$5:$C$100,2,FALSE),\"\"))","v":""},"2a","$G$47","$H$47"]
[33521,{"$f":"Menu!$F$29","v":"X"},{"$f":"Menu!$J$29","v":2020},{"$f":"IF(ISBLANK(INDIRECT(\"'\"&F8698&\"'!\"&G8698)),\"\",INDIRECT(\"'\"&F8698&\"'!\"&G8698))","v":""},{"$f":"IF(ISBLANK(INDIRECT(\"'\"&F8698&\"'!\"&H8698)),\"\",IFERROR(VLOOKUP(TEXT(INDIRECT(\"'\"&F8698&\"'!\"&H8698),\"0\"),Notes!$B$5:$C$100,2,FALSE),\"\"))","v":""},"2a","$I$47","$J$47"]
[33522,{"$f":"Menu!$F$29","v":"X"},{"$f":"Menu!$J$29","v":2020},{"$f":"IF(ISBLANK(INDIRECT(\"'\"&F8699&\"'!\"&G8699)),\"\",INDIRECT(\"'\"&F8699&\"'!\"&G8699))","v":""},{"$f":"IF(ISBLANK(INDIRECT(\"'\"&F8699&\"'!\"&H8699)),\"\",IFERROR(VLOOKUP(TEXT(INDIRECT(\"'\"&F8699&\"'!\"&H8699),\"0\"),Notes!$B$5:$C$100,2,FALSE),\"\"))","v":""},"2a","$K$47","$L$47"]
[33523,{"$f":"Menu!$F$29","v":"X"},{"$f":"Menu!$J$29","v":2020},{"$f":"IF(ISBLANK(INDIRECT(\"'\"&F8700&\"'!\"&G8700)),\"\",INDIRECT(\"'\"&F8700&\"'!\"&G8700))","v":""},{"$f":"IF(ISBLANK(INDIRECT(\"'\"&F8700&\"'!\"&H8700)),\"\",IFERROR(VLOOKUP(TEXT(INDIRECT(\"'\"&F8700&\"'!\"&H8700),\"0\"),Notes!$B$5:$C$100,2,FALSE),\"\"))","v":""},"2a","$M$47","$N$47"]
[33524,{"$f":"Menu!$F$29","v":"X"},{"$f":"Menu!$J$29","v":2020},{"$f":"IF(ISBLANK(INDIRECT(\"'\"&F8701&\"'!\"&G8701)),\"\",INDIRECT(\"'\"&F8701&\"'!\"&G8701))","v":""},{"$f":"IF(ISBLANK(INDIRECT(\"'\"&F8701&\"'!\"&H8701)),\"\",IFERROR(VLOOKUP(TEXT(INDIRECT(\"'\"&F8701&\"'!\"&H8701),\"0\"),Notes!$B$5:$C$100,2,FALSE),\"\"))","v":""},"2a","$O$47","$P$47"]
[33525,{"$f":"Menu!$F$29","v":"X"},{"$f":"Menu!$J$29","v":2020},{"$f":"IF(ISBLANK(INDIRECT(\"'\"&F8702&\"'!\"&G8702)),\"\",INDIRECT(\"'\"&F8702&\"'!\"&G8702))","v":""},{"$f":"IF(ISBLANK(INDIRECT(\"'\"&F8702&\"'!\"&H8702)),\"\",IFERROR(VLOOKUP(TEXT(INDIRECT(\"'\"&F8702&\"'!\"&H8702),\"0\"),Notes!$B$5:$C$100,2,FALSE),\"\"))","v":""},"2a","$Q$47","$R$47"]
[33526,{"$f":"Menu!$F$29","v":"X"},{"$f":"Menu!$J$29","v":2020},{"$f":"IF(ISBLANK(INDIRECT(\"'\"&F8703&\"'!\"&G8703)),\"\",INDIRECT(\"'\"&F8703&\"'!\"&G8703))","v":""},{"$f":"IF(ISBLANK(INDIRECT(\"'\"&F8703&\"'!\"&H8703)),\"\",IFERROR(VLOOKUP(TEXT(INDIRECT(\"'\"&F8703&\"'!\"&H8703),\"0\"),Notes!$B$5:$C$100,2,FALSE),\"\"))","v":""},"2a","$S$47","$T$47"]
[33527,{"$f":"Menu!$F$29","v":"X"},{"$f":"Menu!$J$29","v":2020},{"$f":"IF(ISBLANK(INDIRECT(\"'\"&F8704&\"'!\"&G8704)),\"\",INDIRECT(\"'\"&F8704&\"'!\"&G8704))","v":""},{"$f":"IF(ISBLANK(INDIRECT(\"'\"&F8704&\"'!\"&H8704)),\"\",IFERROR(VLOOKUP(TEXT(INDIRECT(\"'\"&F8704&\"'!\"&H8704),\"0\"),Notes!$B$5:$C$100,2,FALSE),\"\"))","v":""},"2a","$U$47","$V$47"]
[33528,{"$f":"Menu!$F$29","v":"X"},{"$f":"Menu!$J$29","v":2020},{"$f":"IF(ISBLANK(INDIRECT(\"'\"&F8705&\"'!\"&G8705)),\"\",INDIRECT(\"'\"&F8705&\"'!\"&G8705))","v":""},{"$f":"IF(ISBLANK(INDIRECT(\"'\"&F8705&\"'!\"&H8705)),\"\",IFERROR(VLOOKUP(TEXT(INDIRECT(\"'\"&F8705&\"'!\"&H8705),\"0\"),Notes!$B$5:$C$100,2,FALSE),\"\"))","v":""},"2b","$E$47","$F$47"]
[33529,{"$f":"Menu!$F$29","v":"X"},{"$f":"Menu!$J$29","v":2020},{"$f":"IF(ISBLANK(INDIRECT(\"'\"&F8706&\"'!\"&G8706)),\"\",INDIRECT(\"'\"&F8706&\"'!\"&G8706))","v":""},{"$f":"IF(ISBLANK(INDIRECT(\"'\"&F8706&\"'!\"&H8706)),\"\",IFERROR(VLOOKUP(TEXT(INDIRECT(\"'\"&F8706&\"'!\"&H8706),\"0\"),Notes!$B$5:$C$100,2,FALSE),\"\"))","v":""},"2b","$G$47",{"$f":"IF(LEN(TRIM(MID(G8706,4,10)))-LEN(SUBSTITUTE(TRIM(MID(G8706,4,10)),\"$\",\"\"))=0,\"$\"&CHAR(CODE(MID(G8706,2,1))+1)&\"$\"&TRIM(MID(G8706,4,10)),\"$\"&MID(G8706,2,1)&CHAR(CODE(MID(G8706,3,1))+1)&\"$\"&TRIM(MID(G8706,5,11)))","v":"$H$47"}]
[33530,{"$f":"Menu!$F$29","v":"X"},{"$f":"Menu!$J$29","v":2020},{"$f":"IF(ISBLANK(INDIRECT(\"'\"&F8707&\"'!\"&G8707)),\"\",INDIRECT(\"'\"&F8707&\"'!\"&G8707))","v":""},{"$f":"IF(ISBLANK(INDIRECT(\"'\"&F8707&\"'!\"&H8707)),\"\",IFERROR(VLOOKUP(TEXT(INDIRECT(\"'\"&F8707&\"'!\"&H8707),\"0\"),Notes!$B$5:$C$100,2,FALSE),\"\"))","v":""},"2b","$I$47","$J$47"]
[33531,{"$f":"Menu!$F$29","v":"X"},{"$f":"Menu!$J$29","v":2020},{"$f":"IF(ISBLANK(INDIRECT(\"'\"&F8708&\"'!\"&G8708)),\"\",INDIRECT(\"'\"&F8708&\"'!\"&G8708))","v":""},{"$f":"IF(ISBLANK(INDIRECT(\"'\"&F8708&\"'!\"&H8708)),\"\",IFERROR(VLOOKUP(TEXT(INDIRECT(\"'\"&F8708&\"'!\"&H8708),\"0\"),Notes!$B$5:$C$100,2,FALSE),\"\"))","v":""},"2b","$K$47","$L$47"]
[33532,{"$f":"Menu!$F$29","v":"X"},{"$f":"Menu!$J$29","v":2020},{"$f":"IF(ISBLANK(INDIRECT(\"'\"&F8709&\"'!\"&G8709)),\"\",INDIRECT(\"'\"&F8709&\"'!\"&G8709))","v":""},{"$f":"IF(ISBLANK(INDIRECT(\"'\"&F8709&\"'!\"&H8709)),\"\",IFERROR(VLOOKUP(TEXT(INDIRECT(\"'\"&F8709&\"'!\"&H8709),\"0\"),Notes!$B$5:$C$100,2,FALSE),\"\"))","v":""},"2b","$M$47","$N$47"]
[33533,{"$f":"Menu!$F$29","v":"X"},{"$f":"Menu!$J$29","v":2020},{"$f":"IF(ISBLANK(INDIRECT(\"'\"&F8710&\"'!\"&G8710)),\"\",INDIRECT(\"'\"&F8710&\"'!\"&G8710))","v":""},{"$f":"IF(ISBLANK(INDIRECT(\"'\"&F8710&\"'!\"&H8710)),\"\",IFERROR(VLOOKUP(TEXT(INDIRECT(\"'\"&F8710&\"'!\"&H8710),\"0\"),Notes!$B$5:$C$100,2,FALSE),\"\"))","v":""},"2b","$O$47","$P$47"]
[33534,{"$f":"Menu!$F$29","v":"X"},{"$f":"Menu!$J$29","v":2020},{"$f":"IF(ISBLANK(INDIRECT(\"'\"&F8711&\"'!\"&G8711)),\"\",INDIRECT(\"'\"&F8711&\"'!\"&G8711))","v":""},{"$f":"IF(ISBLANK(INDIRECT(\"'\"&F8711&\"'!\"&H8711)),\"\",IFERROR(VLOOKUP(TEXT(INDIRECT(\"'\"&F8711&\"'!\"&H8711),\"0\"),Notes!$B$5:$C$100,2,FALSE),\"\"))","v":""},"2b","$Q$47","$R$47"]
[33535,{"$f":"Menu!$F$29","v":"X"},{"$f":"Menu!$J$29","v":2020},{"$f":"IF(ISBLANK(INDIRECT(\"'\"&F8712&\"'!\"&G8712)),\"\",INDIRECT(\"'\"&F8712&\"'!\"&G8712))","v":""},{"$f":"IF(ISBLANK(INDIRECT(\"'\"&F8712&\"'!\"&H8712)),\"\",IFERROR(VLOOKUP(TEXT(INDIRECT(\"'\"&F8712&\"'!\"&H8712),\"0\"),Notes!$B$5:$C$100,2,FALSE),\"\"))","v":""},"2b","$S$47","$T$47"]
[33536,{"$f":"Menu!$F$29","v":"X"},{"$f":"Menu!$J$29","v":2020},{"$f":"IF(ISBLANK(INDIRECT(\"'\"&F8713&\"'!\"&G8713)),\"\",INDIRECT(\"'\"&F8713&\"'!\"&G8713))","v":""},{"$f":"IF(ISBLANK(INDIRECT(\"'\"&F8713&\"'!\"&H8713)),\"\",IFERROR(VLOOKUP(TEXT(INDIRECT(\"'\"&F8713&\"'!\"&H8713),\"0\"),Notes!$B$5:$C$100,2,FALSE),\"\"))","v":""},"2b","$U$47","$V$47"]
[33537,{"$f":"Menu!$F$29","v":"X"},{"$f":"Menu!$J$29","v":2020},{"$f":"IF(ISBLANK(INDIRECT(\"'\"&F8714&\"'!\"&G8714)),\"\",INDIRECT(\"'\"&F8714&\"'!\"&G8714))","v":""},{"$f":"IF(ISBLANK(INDIRECT(\"'\"&F8714&\"'!\"&H8714)),\"\",IFERROR(VLOOKUP(TEXT(INDIRECT(\"'\"&F8714&\"'!\"&H8714),\"0\"),Notes!$B$5:$C$100,2,FALSE),\"\"))","v":""},"2b","$W$47","$X$47"]
[33538,{"$f":"Menu!$F$29","v":"X"},{"$f":"Menu!$J$29","v":2020},{"$f":"IF(ISBLANK(INDIRECT(\"'\"&F8715&\"'!\"&G8715)),\"\",INDIRECT(\"'\"&F8715&\"'!\"&G8715))","v":""},{"$f":"IF(ISBLANK(INDIRECT(\"'\"&F8715&\"'!\"&H8715)),\"\",IFERROR(VLOOKUP(TEXT(INDIRECT(\"'\"&F8715&\"'!\"&H8715),\"0\"),Notes!$B$5:$C$100,2,FALSE),\"\"))","v":""},"2b","$Y$47","$Z$47"]
[33539,{"$f":"Menu!$F$29","v":"X"},{"$f":"Menu!$J$29","v":2020},{"$f":"IF(ISBLANK(INDIRECT(\"'\"&F8716&\"'!\"&G8716)),\"\",INDIRECT(\"'\"&F8716&\"'!\"&G8716))","v":""},{"$f":"IF(ISBLANK(INDIRECT(\"'\"&F8716&\"'!\"&H8716)),\"\",IFERROR(VLOOKUP(TEXT(INDIRECT(\"'\"&F8716&\"'!\"&H8716),\"0\"),Notes!$B$5:$C$100,2,FALSE),\"\"))","v":""},"2b","$AA$47","$AB$47"]
[33540,{"$f":"Menu!$F$29","v":"X"},{"$f":"Menu!$J$29","v":2020},{"$f":"IF(ISBLANK(INDIRECT(\"'\"&F8717&\"'!\"&G8717)),\"\",INDIRECT(\"'\"&F8717&\"'!\"&G8717))","v":""},{"$f":"IF(ISBLANK(INDIRECT(\"'\"&F8717&\"'!\"&H8717)),\"\",IFERROR(VLOOKUP(TEXT(INDIRECT(\"'\"&F8717&\"'!\"&H8717),\"0\"),Notes!$B$5:$C$100,2,FALSE),\"\"))","v":""},"2c","$E$47","$F$47"]
[33541,{"$f":"Menu!$F$29","v":"X"},{"$f":"Menu!$J$29","v":2020},{"$f":"IF(ISBLANK(INDIRECT(\"'\"&F8718&\"'!\"&G8718)),\"\",INDIRECT(\"'\"&F8718&\"'!\"&G8718))","v":""},{"$f":"IF(ISBLANK(INDIRECT(\"'\"&F8718&\"'!\"&H8718)),\"\",IFERROR(VLOOKUP(TEXT(INDIRECT(\"'\"&F8718&\"'!\"&H8718),\"0\"),Notes!$B$5:$C$100,2,FALSE),\"\"))","v":""},"2c","$G$47","$H$47"]
[33542,{"$f":"Menu!$F$29","v":"X"},{"$f":"Menu!$J$29","v":2020},{"$f":"IF(ISBLANK(INDIRECT(\"'\"&F8719&\"'!\"&G8719)),\"\",INDIRECT(\"'\"&F8719&\"'!\"&G8719))","v":""},{"$f":"IF(ISBLANK(INDIRECT(\"'\"&F8719&\"'!\"&H8719)),\"\",IFERROR(VLOOKUP(TEXT(INDIRECT(\"'\"&F8719&\"'!\"&H8719),\"0\"),Notes!$B$5:$C$100,2,FALSE),\"\"))","v":""},"2c","$I$47","$J$47"]
[33543,{"$f":"Menu!$F$29","v":"X"},{"$f":"Menu!$J$29","v":2020},{"$f":"IF(ISBLANK(INDIRECT(\"'\"&F8720&\"'!\"&G8720)),\"\",INDIRECT(\"'\"&F8720&\"'!\"&G8720))","v":""},{"$f":"IF(ISBLANK(INDIRECT(\"'\"&F8720&\"'!\"&H8720)),\"\",IFERROR(VLOOKUP(TEXT(INDIRECT(\"'\"&F8720&\"'!\"&H8720),\"0\"),Notes!$B$5:$C$100,2,FALSE),\"\"))","v":""},"2c","$K$47","$L$47"]
[33544,{"$f":"Menu!$F$29","v":"X"},{"$f":"Menu!$J$29","v":2020},{"$f":"IF(ISBLANK(INDIRECT(\"'\"&F8721&\"'!\"&G8721)),\"\",INDIRECT(\"'\"&F8721&\"'!\"&G8721))","v":""},{"$f":"IF(ISBLANK(INDIRECT(\"'\"&F8721&\"'!\"&H8721)),\"\",IFERROR(VLOOKUP(TEXT(INDIRECT(\"'\"&F8721&\"'!\"&H8721),\"0\"),Notes!$B$5:$C$100,2,FALSE),\"\"))","v":""},"2c","$M$47","$N$47"]
[33545,{"$f":"Menu!$F$29","v":"X"},{"$f":"Menu!$J$29","v":2020},{"$f":"IF(ISBLANK(INDIRECT(\"'\"&F8722&\"'!\"&G8722)),\"\",INDIRECT(\"'\"&F8722&\"'!\"&G8722))","v":""},{"$f":"IF(ISBLANK(INDIRECT(\"'\"&F8722&\"'!\"&H8722)),\"\",IFERROR(VLOOKUP(TEXT(INDIRECT(\"'\"&F8722&\"'!\"&H8722),\"0\"),Notes!$B$5:$C$100,2,FALSE),\"\"))","v":""},"2c","$O$47","$P$47"]
[33546,{"$f":"Menu!$F$29","v":"X"},{"$f":"Menu!$J$29","v":2020},{"$f":"IF(ISBLANK(INDIRECT(\"'\"&F8723&\"'!\"&G8723)),\"\",INDIRECT(\"'\"&F8723&\"'!\"&G8723))","v":""},{"$f":"IF(ISBLANK(INDIRECT(\"'\"&F8723&\"'!\"&H8723)),\"\",IFERROR(VLOOKUP(TEXT(INDIRECT(\"'\"&F8723&\"'!\"&H8723),\"0\"),Notes!$B$5:$C$100,2,FALSE),\"\"))","v":""},"2c","$Q$47","$R$47"]
[33547,{"$f":"Menu!$F$29","v":"X"},{"$f":"Menu!$J$29","v":2020},{"$f":"IF(ISBLANK(INDIRECT(\"'\"&F8724&\"'!\"&G8724)),\"\",INDIRECT(\"'\"&F8724&\"'!\"&G8724))","v":""},{"$f":"IF(ISBLANK(INDIRECT(\"'\"&F8724&\"'!\"&H8724)),\"\",IFERROR(VLOOKUP(TEXT(INDIRECT(\"'\"&F8724&\"'!\"&H8724),\"0\"),Notes!$B$5:$C$100,2,FALSE),\"\"))","v":""},"2c","$S$47","$T$47"]
[33548,{"$f":"Menu!$F$29","v":"X"},{"$f":"Menu!$J$29","v":2020},{"$f":"IF(ISBLANK(INDIRECT(\"'\"&F8725&\"'!\"&G8725)),\"\",INDIRECT(\"'\"&F8725&\"'!\"&G8725))","v":""},{"$f":"IF(ISBLANK(INDIRECT(\"'\"&F8725&\"'!\"&H8725)),\"\",IFERROR(VLOOKUP(TEXT(INDIRECT(\"'\"&F8725&\"'!\"&H8725),\"0\"),Notes!$B$5:$C$100,2,FALSE),\"\"))","v":""},"2c","$U$47","$V$47"]
[33549,{"$f":"Menu!$F$29","v":"X"},{"$f":"Menu!$J$29","v":2020},{"$f":"IF(ISBLANK(INDIRECT(\"'\"&F8726&\"'!\"&G8726)),\"\",INDIRECT(\"'\"&F8726&\"'!\"&G8726))","v":""},{"$f":"IF(ISBLANK(INDIRECT(\"'\"&F8726&\"'!\"&H8726)),\"\",IFERROR(VLOOKUP(TEXT(INDIRECT(\"'\"&F8726&\"'!\"&H8726),\"0\"),Notes!$B$5:$C$100,2,FALSE),\"\"))","v":""},"2c","$W$47","$X$47"]
[33550,{"$f":"Menu!$F$29","v":"X"},{"$f":"Menu!$J$29","v":2020},{"$f":"IF(ISBLANK(INDIRECT(\"'\"&F8727&\"'!\"&G8727)),\"\",INDIRECT(\"'\"&F8727&\"'!\"&G8727))","v":""},{"$f":"IF(ISBLANK(INDIRECT(\"'\"&F8727&\"'!\"&H8727)),\"\",IFERROR(VLOOKUP(TEXT(INDIRECT(\"'\"&F8727&\"'!\"&H8727),\"0\"),Notes!$B$5:$C$100,2,FALSE),\"\"))","v":""},"2c","$Y$47","$Z$47"]
[33551,{"$f":"Menu!$F$29","v":"X"},{"$f":"Menu!$J$29","v":2020},{"$f":"IF(ISBLANK(INDIRECT(\"'\"&F8728&\"'!\"&G8728)),\"\",INDIRECT(\"'\"&F8728&\"'!\"&G8728))","v":""},{"$f":"IF(ISBLANK(INDIRECT(\"'\"&F8728&\"'!\"&H8728)),\"\",IFERROR(VLOOKUP(TEXT(INDIRECT(\"'\"&F8728&\"'!\"&H8728),\"0\"),Notes!$B$5:$C$100,2,FALSE),\"\"))","v":""},"2c","$AA$47","$AB$47"]
[33552,{"$f":"Menu!$F$29","v":"X"},{"$f":"Menu!$J$29","v":2020},{"$f":"IF(ISBLANK(INDIRECT(\"'\"&F8729&\"'!\"&G8729)),\"\",INDIRECT(\"'\"&F8729&\"'!\"&G8729))","v":""},{"$f":"IF(ISBLANK(INDIRECT(\"'\"&F8729&\"'!\"&H8729)),\"\",IFERROR(VLOOKUP(TEXT(INDIRECT(\"'\"&F8729&\"'!\"&H8729),\"0\"),Notes!$B$5:$C$100,2,FALSE),\"\"))","v":""},"2d","$E$47","$F$47"]
[33553,{"$f":"Menu!$F$29","v":"X"},{"$f":"Menu!$J$29","v":2020},{"$f":"IF(ISBLANK(INDIRECT(\"'\"&F8730&\"'!\"&G8730)),\"\",INDIRECT(\"'\"&F8730&\"'!\"&G8730))","v":""},{"$f":"IF(ISBLANK(INDIRECT(\"'\"&F8730&\"'!\"&H8730)),\"\",IFERROR(VLOOKUP(TEXT(INDIRECT(\"'\"&F8730&\"'!\"&H8730),\"0\"),Notes!$B$5:$C$100,2,FALSE),\"\"))","v":""},"2d","$G$47","$H$47"]
[33554,{"$f":"Menu!$F$29","v":"X"},{"$f":"Menu!$J$29","v":2020},{"$f":"IF(ISBLANK(INDIRECT(\"'\"&F8731&\"'!\"&G8731)),\"\",INDIRECT(\"'\"&F8731&\"'!\"&G8731))","v":""},{"$f":"IF(ISBLANK(INDIRECT(\"'\"&F8731&\"'!\"&H8731)),\"\",IFERROR(VLOOKUP(TEXT(INDIRECT(\"'\"&F8731&\"'!\"&H8731),\"0\"),Notes!$B$5:$C$100,2,FALSE),\"\"))","v":""},"2d","$I$47","$J$47"]
[33555,{"$f":"Menu!$F$29","v":"X"},{"$f":"Menu!$J$29","v":2020},{"$f":"IF(ISBLANK(INDIRECT(\"'\"&F8732&\"'!\"&G8732)),\"\",INDIRECT(\"'\"&F8732&\"'!\"&G8732))","v":""},{"$f":"IF(ISBLANK(INDIRECT(\"'\"&F8732&\"'!\"&H8732)),\"\",IFERROR(VLOOKUP(TEXT(INDIRECT(\"'\"&F8732&\"'!\"&H8732),\"0\"),Notes!$B$5:$C$100,2,FALSE),\"\"))","v":""},"2d","$K$47","$L$47"]
[33556,{"$f":"Menu!$F$29","v":"X"},{"$f":"Menu!$J$29","v":2020},{"$f":"IF(ISBLANK(INDIRECT(\"'\"&F8733&\"'!\"&G8733)),\"\",INDIRECT(\"'\"&F8733&\"'!\"&G8733))","v":""},{"$f":"IF(ISBLANK(INDIRECT(\"'\"&F8733&\"'!\"&H8733)),\"\",IFERROR(VLOOKUP(TEXT(INDIRECT(\"'\"&F8733&\"'!\"&H8733),\"0\"),Notes!$B$5:$C$100,2,FALSE),\"\"))","v":""},"2d","$M$47","$N$47"]
[33557,{"$f":"Menu!$F$29","v":"X"},{"$f":"Menu!$J$29","v":2020},{"$f":"IF(ISBLANK(INDIRECT(\"'\"&F8734&\"'!\"&G8734)),\"\",INDIRECT(\"'\"&F8734&\"'!\"&G8734))","v":""},{"$f":"IF(ISBLANK(INDIRECT(\"'\"&F8734&\"'!\"&H8734)),\"\",IFERROR(VLOOKUP(TEXT(INDIRECT(\"'\"&F8734&\"'!\"&H8734),\"0\"),Notes!$B$5:$C$100,2,FALSE),\"\"))","v":""},"2d","$O$47","$P$47"]
[33558,{"$f":"Menu!$F$29","v":"X"},{"$f":"Menu!$J$29","v":2020},{"$f":"IF(ISBLANK(INDIRECT(\"'\"&F8735&\"'!\"&G8735)),\"\",INDIRECT(\"'\"&F8735&\"'!\"&G8735))","v":""},{"$f":"IF(ISBLANK(INDIRECT(\"'\"&F8735&\"'!\"&H8735)),\"\",IFERROR(VLOOKUP(TEXT(INDIRECT(\"'\"&F8735&\"'!\"&H8735),\"0\"),Notes!$B$5:$C$100,2,FALSE),\"\"))","v":""},"2d","$Q$47","$R$47"]
[33559,{"$f":"Menu!$F$29","v":"X"},{"$f":"Menu!$J$29","v":2020},{"$f":"IF(ISBLANK(INDIRECT(\"'\"&F8736&\"'!\"&G8736)),\"\",INDIRECT(\"'\"&F8736&\"'!\"&G8736))","v":""},{"$f":"IF(ISBLANK(INDIRECT(\"'\"&F8736&\"'!\"&H8736)),\"\",IFERROR(VLOOKUP(TEXT(INDIRECT(\"'\"&F8736&\"'!\"&H8736),\"0\"),Notes!$B$5:$C$100,2,FALSE),\"\"))","v":""},"2d","$S$47","$T$47"]
[33560,{"$f":"Menu!$F$29","v":"X"},{"$f":"Menu!$J$29","v":2020},{"$f":"IF(ISBLANK(INDIRECT(\"'\"&F8737&\"'!\"&G8737)),\"\",INDIRECT(\"'\"&F8737&\"'!\"&G8737))","v":""},{"$f":"IF(ISBLANK(INDIRECT(\"'\"&F8737&\"'!\"&H8737)),\"\",IFERROR(VLOOKUP(TEXT(INDIRECT(\"'\"&F8737&\"'!\"&H8737),\"0\"),Notes!$B$5:$C$100,2,FALSE),\"\"))","v":""},"2d","$U$47","$V$47"]
[33561,{"$f":"Menu!$F$29","v":"X"},{"$f":"Menu!$J$29","v":2020},{"$f":"IF(ISBLANK(INDIRECT(\"'\"&F8738&\"'!\"&G8738)),\"\",INDIRECT(\"'\"&F8738&\"'!\"&G8738))","v":""},{"$f":"IF(ISBLANK(INDIRECT(\"'\"&F8738&\"'!\"&H8738)),\"\",IFERROR(VLOOKUP(TEXT(INDIRECT(\"'\"&F8738&\"'!\"&H8738),\"0\"),Notes!$B$5:$C$100,2,FALSE),\"\"))","v":""},"2d","$W$47","$X$47"]
[33562,{"$f":"Menu!$F$29","v":"X"},{"$f":"Menu!$J$29","v":2020},{"$f":"IF(ISBLANK(INDIRECT(\"'\"&F8739&\"'!\"&G8739)),\"\",INDIRECT(\"'\"&F8739&\"'!\"&G8739))","v":""},{"$f":"IF(ISBLANK(INDIRECT(\"'\"&F8739&\"'!\"&H8739)),\"\",IFERROR(VLOOKUP(TEXT(INDIRECT(\"'\"&F8739&\"'!\"&H8739),\"0\"),Notes!$B$5:$C$100,2,FALSE),\"\"))","v":""},"2d","$Y$47","$Z$47"]
[33563,{"$f":"Menu!$F$29","v":"X"},{"$f":"Menu!$J$29","v":2020},{"$f":"IF(ISBLANK(INDIRECT(\"'\"&F8740&\"'!\"&G8740)),\"\",INDIRECT(\"'\"&F8740&\"'!\"&G8740))","v":""},{"$f":"IF(ISBLANK(INDIRECT(\"'\"&F8740&\"'!\"&H8740)),\"\",IFERROR(VLOOKUP(TEXT(INDIRECT(\"'\"&F8740&\"'!\"&H8740),\"0\"),Notes!$B$5:$C$100,2,FALSE),\"\"))","v":""},"2d","$AA$47","$AB$47"]
[33564,{"$f":"Menu!$F$29","v":"X"},{"$f":"Menu!$J$29","v":2020},{"$f":"IF(ISBLANK(INDIRECT(\"'\"&F8741&\"'!\"&G8741)),\"\",INDIRECT(\"'\"&F8741&\"'!\"&G8741))","v":""},{"$f":"IF(ISBLANK(INDIRECT(\"'\"&F8741&\"'!\"&H8741)),\"\",IFERROR(VLOOKUP(TEXT(INDIRECT(\"'\"&F8741&\"'!\"&H8741),\"0\"),Notes!$B$5:$C$100,2,FALSE),\"\"))","v":""},"2d","$AC$47","$AD$47"]
[33565,{"$f":"Menu!$F$29","v":"X"},{"$f":"Menu!$J$29","v":2020},{"$f":"IF(ISBLANK(INDIRECT(\"'\"&F8742&\"'!\"&G8742)),\"\",INDIRECT(\"'\"&F8742&\"'!\"&G8742))","v":""},{"$f":"IF(ISBLANK(INDIRECT(\"'\"&F8742&\"'!\"&H8742)),\"\",IFERROR(VLOOKUP(TEXT(INDIRECT(\"'\"&F8742&\"'!\"&H8742),\"0\"),Notes!$B$5:$C$100,2,FALSE),\"\"))","v":""},"2d","$AE$47","$AF$47"]
[33566,{"$f":"Menu!$F$29","v":"X"},{"$f":"Menu!$J$29","v":2020},{"$f":"IF(ISBLANK(INDIRECT(\"'\"&F8743&\"'!\"&G8743)),\"\",INDIRECT(\"'\"&F8743&\"'!\"&G8743))","v":""},{"$f":"IF(ISBLANK(INDIRECT(\"'\"&F8743&\"'!\"&H8743)),\"\",IFERROR(VLOOKUP(TEXT(INDIRECT(\"'\"&F8743&\"'!\"&H8743),\"0\"),Notes!$B$5:$C$100,2,FALSE),\"\"))","v":""},"2d","$AG$47","$AH$47"]
[33567,{"$f":"Menu!$F$29","v":"X"},{"$f":"Menu!$J$29","v":2020},{"$f":"IF(ISBLANK(INDIRECT(\"'\"&F8744&\"'!\"&G8744)),\"\",INDIRECT(\"'\"&F8744&\"'!\"&G8744))","v":""},{"$f":"IF(ISBLANK(INDIRECT(\"'\"&F8744&\"'!\"&H8744)),\"\",IFERROR(VLOOKUP(TEXT(INDIRECT(\"'\"&F8744&\"'!\"&H8744),\"0\"),Notes!$B$5:$C$100,2,FALSE),\"\"))","v":""},"2e","$E$48","$F$48"]
[33568,{"$f":"Menu!$F$29","v":"X"},{"$f":"Menu!$J$29","v":2020},{"$f":"IF(ISBLANK(INDIRECT(\"'\"&F8745&\"'!\"&G8745)),\"\",INDIRECT(\"'\"&F8745&\"'!\"&G8745))","v":""},{"$f":"IF(ISBLANK(INDIRECT(\"'\"&F8745&\"'!\"&H8745)),\"\",IFERROR(VLOOKUP(TEXT(INDIRECT(\"'\"&F8745&\"'!\"&H8745),\"0\"),Notes!$B$5:$C$100,2,FALSE),\"\"))","v":""},"2e","$G$48","$H$48"]
[33569,{"$f":"Menu!$F$29","v":"X"},{"$f":"Menu!$J$29","v":2020},{"$f":"IF(ISBLANK(INDIRECT(\"'\"&F8746&\"'!\"&G8746)),\"\",INDIRECT(\"'\"&F8746&\"'!\"&G8746))","v":""},{"$f":"IF(ISBLANK(INDIRECT(\"'\"&F8746&\"'!\"&H8746)),\"\",IFERROR(VLOOKUP(TEXT(INDIRECT(\"'\"&F8746&\"'!\"&H8746),\"0\"),Notes!$B$5:$C$100,2,FALSE),\"\"))","v":""},"2e","$I$48","$J$48"]
[33570,{"$f":"Menu!$F$29","v":"X"},{"$f":"Menu!$J$29","v":2020},{"$f":"IF(ISBLANK(INDIRECT(\"'\"&F8747&\"'!\"&G8747)),\"\",INDIRECT(\"'\"&F8747&\"'!\"&G8747))","v":""},{"$f":"IF(ISBLANK(INDIRECT(\"'\"&F8747&\"'!\"&H8747)),\"\",IFERROR(VLOOKUP(TEXT(INDIRECT(\"'\"&F8747&\"'!\"&H8747),\"0\"),Notes!$B$5:$C$100,2,FALSE),\"\"))","v":""},"2e","$K$48","$L$48"]
[33571,{"$f":"Menu!$F$29","v":"X"},{"$f":"Menu!$J$29","v":2020},{"$f":"IF(ISBLANK(INDIRECT(\"'\"&F8748&\"'!\"&G8748)),\"\",INDIRECT(\"'\"&F8748&\"'!\"&G8748))","v":""},{"$f":"IF(ISBLANK(INDIRECT(\"'\"&F8748&\"'!\"&H8748)),\"\",IFERROR(VLOOKUP(TEXT(INDIRECT(\"'\"&F8748&\"'!\"&H8748),\"0\"),Notes!$B$5:$C$100,2,FALSE),\"\"))","v":""},"2e","$M$48","$N$48"]
[33572,{"$f":"Menu!$F$29","v":"X"},{"$f":"Menu!$J$29","v":2020},{"$f":"IF(ISBLANK(INDIRECT(\"'\"&F8749&\"'!\"&G8749)),\"\",INDIRECT(\"'\"&F8749&\"'!\"&G8749))","v":""},{"$f":"IF(ISBLANK(INDIRECT(\"'\"&F8749&\"'!\"&H8749)),\"\",IFERROR(VLOOKUP(TEXT(INDIRECT(\"'\"&F8749&\"'!\"&H8749),\"0\"),Notes!$B$5:$C$100,2,FALSE),\"\"))","v":""},"2e","$O$48","$P$48"]
[33573,{"$f":"Menu!$F$29","v":"X"},{"$f":"Menu!$J$29","v":2020},{"$f":"IF(ISBLANK(INDIRECT(\"'\"&F8750&\"'!\"&G8750)),\"\",INDIRECT(\"'\"&F8750&\"'!\"&G8750))","v":""},{"$f":"IF(ISBLANK(INDIRECT(\"'\"&F8750&\"'!\"&H8750)),\"\",IFERROR(VLOOKUP(TEXT(INDIRECT(\"'\"&F8750&\"'!\"&H8750),\"0\"),Notes!$B$5:$C$100,2,FALSE),\"\"))","v":""},"2e","$Q$48","$R$48"]
[33574,{"$f":"Menu!$F$29","v":"X"},{"$f":"Menu!$J$29","v":2020},{"$f":"IF(ISBLANK(INDIRECT(\"'\"&F8751&\"'!\"&G8751)),\"\",INDIRECT(\"'\"&F8751&\"'!\"&G8751))","v":""},{"$f":"IF(ISBLANK(INDIRECT(\"'\"&F8751&\"'!\"&H8751)),\"\",IFERROR(VLOOKUP(TEXT(INDIRECT(\"'\"&F8751&\"'!\"&H8751),\"0\"),Notes!$B$5:$C$100,2,FALSE),\"\"))","v":""},"2e","$S$48","$T$48"]
[33575,{"$f":"Menu!$F$29","v":"X"},{"$f":"Menu!$J$29","v":2020},{"$f":"IF(ISBLANK(INDIRECT(\"'\"&F8752&\"'!\"&G8752)),\"\",INDIRECT(\"'\"&F8752&\"'!\"&G8752))","v":""},{"$f":"IF(ISBLANK(INDIRECT(\"'\"&F8752&\"'!\"&H8752)),\"\",IFERROR(VLOOKUP(TEXT(INDIRECT(\"'\"&F8752&\"'!\"&H8752),\"0\"),Notes!$B$5:$C$100,2,FALSE),\"\"))","v":""},"2e","$U$48","$V$48"]
[33576,{"$f":"Menu!$F$29","v":"X"},{"$f":"Menu!$J$29","v":2020},{"$f":"IF(ISBLANK(INDIRECT(\"'\"&F8753&\"'!\"&G8753)),\"\",INDIRECT(\"'\"&F8753&\"'!\"&G8753))","v":""},{"$f":"IF(ISBLANK(INDIRECT(\"'\"&F8753&\"'!\"&H8753)),\"\",IFERROR(VLOOKUP(TEXT(INDIRECT(\"'\"&F8753&\"'!\"&H8753),\"0\"),Notes!$B$5:$C$100,2,FALSE),\"\"))","v":""},"2e","$W$48","$X$48"]
[33577,{"$f":"Menu!$F$29","v":"X"},{"$f":"Menu!$J$29","v":2020},{"$f":"IF(ISBLANK(INDIRECT(\"'\"&F8754&\"'!\"&G8754)),\"\",INDIRECT(\"'\"&F8754&\"'!\"&G8754))","v":""},{"$f":"IF(ISBLANK(INDIRECT(\"'\"&F8754&\"'!\"&H8754)),\"\",IFERROR(VLOOKUP(TEXT(INDIRECT(\"'\"&F8754&\"'!\"&H8754),\"0\"),Notes!$B$5:$C$100,2,FALSE),\"\"))","v":""},"2e","$Y$48","$Z$48"]
[33578,{"$f":"Menu!$F$29","v":"X"},{"$f":"Menu!$J$29","v":2020},{"$f":"IF(ISBLANK(INDIRECT(\"'\"&F8755&\"'!\"&G8755)),\"\",INDIRECT(\"'\"&F8755&\"'!\"&G8755))","v":""},{"$f":"IF(ISBLANK(INDIRECT(\"'\"&F8755&\"'!\"&H8755)),\"\",IFERROR(VLOOKUP(TEXT(INDIRECT(\"'\"&F8755&\"'!\"&H8755),\"0\"),Notes!$B$5:$C$100,2,FALSE),\"\"))","v":""},"2e","$AA$48","$AB$48"]
[33579,{"$f":"Menu!$F$29","v":"X"},{"$f":"Menu!$J$29","v":2020},{"$f":"IF(ISBLANK(INDIRECT(\"'\"&F8756&\"'!\"&G8756)),\"\",INDIRECT(\"'\"&F8756&\"'!\"&G8756))","v":""},{"$f":"IF(ISBLANK(INDIRECT(\"'\"&F8756&\"'!\"&H8756)),\"\",IFERROR(VLOOKUP(TEXT(INDIRECT(\"'\"&F8756&\"'!\"&H8756),\"0\"),Notes!$B$5:$C$100,2,FALSE),\"\"))","v":""},"2e","$AC$48","$AD$48"]
[33580,{"$f":"Menu!$F$29","v":"X"},{"$f":"Menu!$J$29","v":2020},{"$f":"IF(ISBLANK(INDIRECT(\"'\"&F8757&\"'!\"&G8757)),\"\",INDIRECT(\"'\"&F8757&\"'!\"&G8757))","v":""},{"$f":"IF(ISBLANK(INDIRECT(\"'\"&F8757&\"'!\"&H8757)),\"\",IFERROR(VLOOKUP(TEXT(INDIRECT(\"'\"&F8757&\"'!\"&H8757),\"0\"),Notes!$B$5:$C$100,2,FALSE),\"\"))","v":""},"2e","$AE$48","$AF$48"]
[33581,{"$f":"Menu!$F$29","v":"X"},{"$f":"Menu!$J$29","v":2020},{"$f":"IF(ISBLANK(INDIRECT(\"'\"&F8758&\"'!\"&G8758)),\"\",INDIRECT(\"'\"&F8758&\"'!\"&G8758))","v":""},{"$f":"IF(ISBLANK(INDIRECT(\"'\"&F8758&\"'!\"&H8758)),\"\",IFERROR(VLOOKUP(TEXT(INDIRECT(\"'\"&F8758&\"'!\"&H8758),\"0\"),Notes!$B$5:$C$100,2,FALSE),\"\"))","v":""},"2e","$AG$48","$AH$48"]
[33582,{"$f":"Menu!$F$29","v":"X"},{"$f":"Menu!$J$29","v":2020},{"$f":"IF(ISBLANK(INDIRECT(\"'\"&F8759&\"'!\"&G8759)),\"\",INDIRECT(\"'\"&F8759&\"'!\"&G8759))","v":""},{"$f":"IF(ISBLANK(INDIRECT(\"'\"&F8759&\"'!\"&H8759)),\"\",IFERROR(VLOOKUP(TEXT(INDIRECT(\"'\"&F8759&\"'!\"&H8759),\"0\"),Notes!$B$5:$C$100,2,FALSE),\"\"))","v":""},"2e","$AI$48","$AJ$48"]
[33583,{"$f":"Menu!$F$29","v":"X"},{"$f":"Menu!$J$29","v":2020},{"$f":"IF(ISBLANK(INDIRECT(\"'\"&F8760&\"'!\"&G8760)),\"\",INDIRECT(\"'\"&F8760&\"'!\"&G8760))","v":""},{"$f":"IF(ISBLANK(INDIRECT(\"'\"&F8760&\"'!\"&H8760)),\"\",IFERROR(VLOOKUP(TEXT(INDIRECT(\"'\"&F8760&\"'!\"&H8760),\"0\"),Notes!$B$5:$C$100,2,FALSE),\"\"))","v":""},"2e","$AK$48","$AL$48"]
[33584,{"$f":"Menu!$F$29","v":"X"},{"$f":"Menu!$J$29","v":2020},{"$f":"IF(ISBLANK(INDIRECT(\"'\"&F8761&\"'!\"&G8761)),\"\",INDIRECT(\"'\"&F8761&\"'!\"&G8761))","v":""},{"$f":"IF(ISBLANK(INDIRECT(\"'\"&F8761&\"'!\"&H8761)),\"\",IFERROR(VLOOKUP(TEXT(INDIRECT(\"'\"&F8761&\"'!\"&H8761),\"0\"),Notes!$B$5:$C$100,2,FALSE),\"\"))","v":""},"2e","$AM$48","$AN$48"]
[33585,{"$f":"Menu!$F$29","v":"X"},{"$f":"Menu!$J$29","v":2020},{"$f":"IF(ISBLANK(INDIRECT(\"'\"&F8762&\"'!\"&G8762)),\"\",INDIRECT(\"'\"&F8762&\"'!\"&G8762))","v":""},{"$f":"IF(ISBLANK(INDIRECT(\"'\"&F8762&\"'!\"&H8762)),\"\",IFERROR(VLOOKUP(TEXT(INDIRECT(\"'\"&F8762&\"'!\"&H8762),\"0\"),Notes!$B$5:$C$100,2,FALSE),\"\"))","v":""},"2e","$AO$48","$AP$48"]
[33586,{"$f":"Menu!$F$29","v":"X"},{"$f":"Menu!$J$29","v":2020},{"$f":"IF(ISBLANK(INDIRECT(\"'\"&F8763&\"'!\"&G8763)),\"\",INDIRECT(\"'\"&F8763&\"'!\"&G8763))","v":""},{"$f":"IF(ISBLANK(INDIRECT(\"'\"&F8763&\"'!\"&H8763)),\"\",IFERROR(VLOOKUP(TEXT(INDIRECT(\"'\"&F8763&\"'!\"&H8763),\"0\"),Notes!$B$5:$C$100,2,FALSE),\"\"))","v":""},"2e","$AQ$48","$AR$48"]
[33587,{"$f":"Menu!$F$29","v":"X"},{"$f":"Menu!$J$29","v":2020},{"$f":"IF(ISBLANK(INDIRECT(\"'\"&F8764&\"'!\"&G8764)),\"\",INDIRECT(\"'\"&F8764&\"'!\"&G8764))","v":""},{"$f":"IF(ISBLANK(INDIRECT(\"'\"&F8764&\"'!\"&H8764)),\"\",IFERROR(VLOOKUP(TEXT(INDIRECT(\"'\"&F8764&\"'!\"&H8764),\"0\"),Notes!$B$5:$C$100,2,FALSE),\"\"))","v":""},"2e","$AS$48","$AT$48"]
[33588,{"$f":"Menu!$F$29","v":"X"},{"$f":"Menu!$J$29","v":2020},{"$f":"IF(ISBLANK(INDIRECT(\"'\"&F8765&\"'!\"&G8765)),\"\",INDIRECT(\"'\"&F8765&\"'!\"&G8765))","v":""},{"$f":"IF(ISBLANK(INDIRECT(\"'\"&F8765&\"'!\"&H8765)),\"\",IFERROR(VLOOKUP(TEXT(INDIRECT(\"'\"&F8765&\"'!\"&H8765),\"0\"),Notes!$B$5:$C$100,2,FALSE),\"\"))","v":""},"2e","$AU$48","$AV$48"]
[33589,{"$f":"Menu!$F$29","v":"X"},{"$f":"Menu!$J$29","v":2020},{"$f":"IF(ISBLANK(INDIRECT(\"'\"&F8766&\"'!\"&G8766)),\"\",INDIRECT(\"'\"&F8766&\"'!\"&G8766))","v":""},{"$f":"IF(ISBLANK(INDIRECT(\"'\"&F8766&\"'!\"&H8766)),\"\",IFERROR(VLOOKUP(TEXT(INDIRECT(\"'\"&F8766&\"'!\"&H8766),\"0\"),Notes!$B$5:$C$100,2,FALSE),\"\"))","v":""},"2e","$AW$48","$AX$48"]
[33590,{"$f":"Menu!$F$29","v":"X"},{"$f":"Menu!$J$29","v":2020},{"$f":"IF(ISBLANK(INDIRECT(\"'\"&F8767&\"'!\"&G8767)),\"\",INDIRECT(\"'\"&F8767&\"'!\"&G8767))","v":""},{"$f":"IF(ISBLANK(INDIRECT(\"'\"&F8767&\"'!\"&H8767)),\"\",IFERROR(VLOOKUP(TEXT(INDIRECT(\"'\"&F8767&\"'!\"&H8767),\"0\"),Notes!$B$5:$C$100,2,FALSE),\"\"))","v":""},"2e","$AY$48","$AZ$48"]
[33591,{"$f":"Menu!$F$29","v":"X"},{"$f":"Menu!$J$29","v":2020},{"$f":"IF(ISBLANK(INDIRECT(\"'\"&F8768&\"'!\"&G8768)),\"\",INDIRECT(\"'\"&F8768&\"'!\"&G8768))","v":""},{"$f":"IF(ISBLANK(INDIRECT(\"'\"&F8768&\"'!\"&H8768)),\"\",IFERROR(VLOOKUP(TEXT(INDIRECT(\"'\"&F8768&\"'!\"&H8768),\"0\"),Notes!$B$5:$C$100,2,FALSE),\"\"))","v":""},"2e","$BA$48","$BB$48"]
[33592,{"$f":"Menu!$F$29","v":"X"},{"$f":"Menu!$J$29","v":2020},{"$f":"IF(ISBLANK(INDIRECT(\"'\"&F8769&\"'!\"&G8769)),\"\",INDIRECT(\"'\"&F8769&\"'!\"&G8769))","v":""},{"$f":"IF(ISBLANK(INDIRECT(\"'\"&F8769&\"'!\"&H8769)),\"\",IFERROR(VLOOKUP(TEXT(INDIRECT(\"'\"&F8769&\"'!\"&H8769),\"0\"),Notes!$B$5:$C$100,2,FALSE),\"\"))","v":""},"2e","$BC$48","$BD$48"]
[33593,{"$f":"Menu!$F$29","v":"X"},{"$f":"Menu!$J$29","v":2020},{"$f":"IF(ISBLANK(INDIRECT(\"'\"&F8770&\"'!\"&G8770)),\"\",INDIRECT(\"'\"&F8770&\"'!\"&G8770))","v":""},{"$f":"IF(ISBLANK(INDIRECT(\"'\"&F8770&\"'!\"&H8770)),\"\",IFERROR(VLOOKUP(TEXT(INDIRECT(\"'\"&F8770&\"'!\"&H8770),\"0\"),Notes!$B$5:$C$100,2,FALSE),\"\"))","v":""},"2e","$BE$48",{"$f":"IF(LEN(TRIM(MID(G8770,4,10)))-LEN(SUBSTITUTE(TRIM(MID(G8770,4,10)),\"$\",\"\"))=0,\"$\"&CHAR(CODE(MID(G8770,2,1))+1)&\"$\"&TRIM(MID(G8770,4,10)),\"$\"&MID(G8770,2,1)&CHAR(CODE(MID(G8770,3,1))+1)&\"$\"&TRIM(MID(G8770,5,11)))","v":"$BF$48"}]
[33594,{"$f":"Menu!$F$29","v":"X"},{"$f":"Menu!$J$29","v":2020},{"$f":"IF(ISBLANK(INDIRECT(\"'\"&F8771&\"'!\"&G8771)),\"\",INDIRECT(\"'\"&F8771&\"'!\"&G8771))","v":""},{"$f":"IF(ISBLANK(INDIRECT(\"'\"&F8771&\"'!\"&H8771)),\"\",IFERROR(VLOOKUP(TEXT(INDIRECT(\"'\"&F8771&\"'!\"&H8771),\"0\"),Notes!$B$5:$C$100,2,FALSE),\"\"))","v":""},"2e","$BG$48","$BH$48"]
[33595,{"$f":"Menu!$F$29","v":"X"},{"$f":"Menu!$J$29","v":2020},{"$f":"IF(ISBLANK(INDIRECT(\"'\"&F8772&\"'!\"&G8772)),\"\",INDIRECT(\"'\"&F8772&\"'!\"&G8772))","v":""},{"$f":"IF(ISBLANK(INDIRECT(\"'\"&F8772&\"'!\"&H8772)),\"\",IFERROR(VLOOKUP(TEXT(INDIRECT(\"'\"&F8772&\"'!\"&H8772),\"0\"),Notes!$B$5:$C$100,2,FALSE),\"\"))","v":""},"2e","$BI$48","$BJ$48"]
[33596,{"$f":"Menu!$F$29","v":"X"},{"$f":"Menu!$J$29","v":2020},{"$f":"IF(ISBLANK(INDIRECT(\"'\"&F8773&\"'!\"&G8773)),\"\",INDIRECT(\"'\"&F8773&\"'!\"&G8773))","v":""},{"$f":"IF(ISBLANK(INDIRECT(\"'\"&F8773&\"'!\"&H8773)),\"\",IFERROR(VLOOKUP(TEXT(INDIRECT(\"'\"&F8773&\"'!\"&H8773),\"0\"),Notes!$B$5:$C$100,2,FALSE),\"\"))","v":""},"2e","$BK$48","$BL$48"]
[33597,{"$f":"Menu!$F$29","v":"X"},{"$f":"Menu!$J$29","v":2020},{"$f":"IF(ISBLANK(INDIRECT(\"'\"&F8774&\"'!\"&G8774)),\"\",INDIRECT(\"'\"&F8774&\"'!\"&G8774))","v":""},{"$f":"IF(ISBLANK(INDIRECT(\"'\"&F8774&\"'!\"&H8774)),\"\",IFERROR(VLOOKUP(TEXT(INDIRECT(\"'\"&F8774&\"'!\"&H8774),\"0\"),Notes!$B$5:$C$100,2,FALSE),\"\"))","v":""},"2a","$E$24","$F$24"]
[33598,{"$f":"Menu!$F$29","v":"X"},{"$f":"Menu!$J$29","v":2020},{"$f":"IF(ISBLANK(INDIRECT(\"'\"&F8775&\"'!\"&G8775)),\"\",INDIRECT(\"'\"&F8775&\"'!\"&G8775))","v":""},{"$f":"IF(ISBLANK(INDIRECT(\"'\"&F8775&\"'!\"&H8775)),\"\",IFERROR(VLOOKUP(TEXT(INDIRECT(\"'\"&F8775&\"'!\"&H8775),\"0\"),Notes!$B$5:$C$100,2,FALSE),\"\"))","v":""},"2a","$G$24","$H$24"]
[33599,{"$f":"Menu!$F$29","v":"X"},{"$f":"Menu!$J$29","v":2020},{"$f":"IF(ISBLANK(INDIRECT(\"'\"&F8776&\"'!\"&G8776)),\"\",INDIRECT(\"'\"&F8776&\"'!\"&G8776))","v":""},{"$f":"IF(ISBLANK(INDIRECT(\"'\"&F8776&\"'!\"&H8776)),\"\",IFERROR(VLOOKUP(TEXT(INDIRECT(\"'\"&F8776&\"'!\"&H8776),\"0\"),Notes!$B$5:$C$100,2,FALSE),\"\"))","v":""},"2a","$I$24","$J$24"]
[33600,{"$f":"Menu!$F$29","v":"X"},{"$f":"Menu!$J$29","v":2020},{"$f":"IF(ISBLANK(INDIRECT(\"'\"&F8777&\"'!\"&G8777)),\"\",INDIRECT(\"'\"&F8777&\"'!\"&G8777))","v":""},{"$f":"IF(ISBLANK(INDIRECT(\"'\"&F8777&\"'!\"&H8777)),\"\",IFERROR(VLOOKUP(TEXT(INDIRECT(\"'\"&F8777&\"'!\"&H8777),\"0\"),Notes!$B$5:$C$100,2,FALSE),\"\"))","v":""},"2a","$K$24","$L$24"]
[33601,{"$f":"Menu!$F$29","v":"X"},{"$f":"Menu!$J$29","v":2020},{"$f":"IF(ISBLANK(INDIRECT(\"'\"&F8778&\"'!\"&G8778)),\"\",INDIRECT(\"'\"&F8778&\"'!\"&G8778))","v":""},{"$f":"IF(ISBLANK(INDIRECT(\"'\"&F8778&\"'!\"&H8778)),\"\",IFERROR(VLOOKUP(TEXT(INDIRECT(\"'\"&F8778&\"'!\"&H8778),\"0\"),Notes!$B$5:$C$100,2,FALSE),\"\"))","v":""},"2a","$M$24","$N$24"]
[33602,{"$f":"Menu!$F$29","v":"X"},{"$f":"Menu!$J$29","v":2020},{"$f":"IF(ISBLANK(INDIRECT(\"'\"&F8779&\"'!\"&G8779)),\"\",INDIRECT(\"'\"&F8779&\"'!\"&G8779))","v":""},{"$f":"IF(ISBLANK(INDIRECT(\"'\"&F8779&\"'!\"&H8779)),\"\",IFERROR(VLOOKUP(TEXT(INDIRECT(\"'\"&F8779&\"'!\"&H8779),\"0\"),Notes!$B$5:$C$100,2,FALSE),\"\"))","v":""},"2a","$O$24","$P$24"]
[33603,{"$f":"Menu!$F$29","v":"X"},{"$f":"Menu!$J$29","v":2020},{"$f":"IF(ISBLANK(INDIRECT(\"'\"&F8780&\"'!\"&G8780)),\"\",INDIRECT(\"'\"&F8780&\"'!\"&G8780))","v":""},{"$f":"IF(ISBLANK(INDIRECT(\"'\"&F8780&\"'!\"&H8780)),\"\",IFERROR(VLOOKUP(TEXT(INDIRECT(\"'\"&F8780&\"'!\"&H8780),\"0\"),Notes!$B$5:$C$100,2,FALSE),\"\"))","v":""},"2a","$Q$24","$R$24"]
[33604,{"$f":"Menu!$F$29","v":"X"},{"$f":"Menu!$J$29","v":2020},{"$f":"IF(ISBLANK(INDIRECT(\"'\"&F8781&\"'!\"&G8781)),\"\",INDIRECT(\"'\"&F8781&\"'!\"&G8781))","v":""},{"$f":"IF(ISBLANK(INDIRECT(\"'\"&F8781&\"'!\"&H8781)),\"\",IFERROR(VLOOKUP(TEXT(INDIRECT(\"'\"&F8781&\"'!\"&H8781),\"0\"),Notes!$B$5:$C$100,2,FALSE),\"\"))","v":""},"2a","$S$24","$T$24"]
[33605,{"$f":"Menu!$F$29","v":"X"},{"$f":"Menu!$J$29","v":2020},{"$f":"IF(ISBLANK(INDIRECT(\"'\"&F8782&\"'!\"&G8782)),\"\",INDIRECT(\"'\"&F8782&\"'!\"&G8782))","v":""},{"$f":"IF(ISBLANK(INDIRECT(\"'\"&F8782&\"'!\"&H8782)),\"\",IFERROR(VLOOKUP(TEXT(INDIRECT(\"'\"&F8782&\"'!\"&H8782),\"0\"),Notes!$B$5:$C$100,2,FALSE),\"\"))","v":""},"2a","$U$24","$V$24"]
[33606,{"$f":"Menu!$F$29","v":"X"},{"$f":"Menu!$J$29","v":2020},{"$f":"IF(ISBLANK(INDIRECT(\"'\"&F8783&\"'!\"&G8783)),\"\",INDIRECT(\"'\"&F8783&\"'!\"&G8783))","v":""},{"$f":"IF(ISBLANK(INDIRECT(\"'\"&F8783&\"'!\"&H8783)),\"\",IFERROR(VLOOKUP(TEXT(INDIRECT(\"'\"&F8783&\"'!\"&H8783),\"0\"),Notes!$B$5:$C$100,2,FALSE),\"\"))","v":""},"2b","$E$24","$F$24"]
[33607,{"$f":"Menu!$F$29","v":"X"},{"$f":"Menu!$J$29","v":2020},{"$f":"IF(ISBLANK(INDIRECT(\"'\"&F8784&\"'!\"&G8784)),\"\",INDIRECT(\"'\"&F8784&\"'!\"&G8784))","v":""},{"$f":"IF(ISBLANK(INDIRECT(\"'\"&F8784&\"'!\"&H8784)),\"\",IFERROR(VLOOKUP(TEXT(INDIRECT(\"'\"&F8784&\"'!\"&H8784),\"0\"),Notes!$B$5:$C$100,2,FALSE),\"\"))","v":""},"2b","$G$24","$H$24"]
[33608,{"$f":"Menu!$F$29","v":"X"},{"$f":"Menu!$J$29","v":2020},{"$f":"IF(ISBLANK(INDIRECT(\"'\"&F8785&\"'!\"&G8785)),\"\",INDIRECT(\"'\"&F8785&\"'!\"&G8785))","v":""},{"$f":"IF(ISBLANK(INDIRECT(\"'\"&F8785&\"'!\"&H8785)),\"\",IFERROR(VLOOKUP(TEXT(INDIRECT(\"'\"&F8785&\"'!\"&H8785),\"0\"),Notes!$B$5:$C$100,2,FALSE),\"\"))","v":""},"2b","$I$24","$J$24"]
[33609,{"$f":"Menu!$F$29","v":"X"},{"$f":"Menu!$J$29","v":2020},{"$f":"IF(ISBLANK(INDIRECT(\"'\"&F8786&\"'!\"&G8786)),\"\",INDIRECT(\"'\"&F8786&\"'!\"&G8786))","v":""},{"$f":"IF(ISBLANK(INDIRECT(\"'\"&F8786&\"'!\"&H8786)),\"\",IFERROR(VLOOKUP(TEXT(INDIRECT(\"'\"&F8786&\"'!\"&H8786),\"0\"),Notes!$B$5:$C$100,2,FALSE),\"\"))","v":""},"2b","$K$24","$L$24"]
[33610,{"$f":"Menu!$F$29","v":"X"},{"$f":"Menu!$J$29","v":2020},{"$f":"IF(ISBLANK(INDIRECT(\"'\"&F8787&\"'!\"&G8787)),\"\",INDIRECT(\"'\"&F8787&\"'!\"&G8787))","v":""},{"$f":"IF(ISBLANK(INDIRECT(\"'\"&F8787&\"'!\"&H8787)),\"\",IFERROR(VLOOKUP(TEXT(INDIRECT(\"'\"&F8787&\"'!\"&H8787),\"0\"),Notes!$B$5:$C$100,2,FALSE),\"\"))","v":""},"2b","$M$24","$N$24"]
[33611,{"$f":"Menu!$F$29","v":"X"},{"$f":"Menu!$J$29","v":2020},{"$f":"IF(ISBLANK(INDIRECT(\"'\"&F8788&\"'!\"&G8788)),\"\",INDIRECT(\"'\"&F8788&\"'!\"&G8788))","v":""},{"$f":"IF(ISBLANK(INDIRECT(\"'\"&F8788&\"'!\"&H8788)),\"\",IFERROR(VLOOKUP(TEXT(INDIRECT(\"'\"&F8788&\"'!\"&H8788),\"0\"),Notes!$B$5:$C$100,2,FALSE),\"\"))","v":""},"2b","$O$24","$P$24"]
[33612,{"$f":"Menu!$F$29","v":"X"},{"$f":"Menu!$J$29","v":2020},{"$f":"IF(ISBLANK(INDIRECT(\"'\"&F8789&\"'!\"&G8789)),\"\",INDIRECT(\"'\"&F8789&\"'!\"&G8789))","v":""},{"$f":"IF(ISBLANK(INDIRECT(\"'\"&F8789&\"'!\"&H8789)),\"\",IFERROR(VLOOKUP(TEXT(INDIRECT(\"'\"&F8789&\"'!\"&H8789),\"0\"),Notes!$B$5:$C$100,2,FALSE),\"\"))","v":""},"2b","$Q$24","$R$24"]
[33613,{"$f":"Menu!$F$29","v":"X"},{"$f":"Menu!$J$29","v":2020},{"$f":"IF(ISBLANK(INDIRECT(\"'\"&F8790&\"'!\"&G8790)),\"\",INDIRECT(\"'\"&F8790&\"'!\"&G8790))","v":""},{"$f":"IF(ISBLANK(INDIRECT(\"'\"&F8790&\"'!\"&H8790)),\"\",IFERROR(VLOOKUP(TEXT(INDIRECT(\"'\"&F8790&\"'!\"&H8790),\"0\"),Notes!$B$5:$C$100,2,FALSE),\"\"))","v":""},"2b","$S$24","$T$24"]
[33614,{"$f":"Menu!$F$29","v":"X"},{"$f":"Menu!$J$29","v":2020},{"$f":"IF(ISBLANK(INDIRECT(\"'\"&F8791&\"'!\"&G8791)),\"\",INDIRECT(\"'\"&F8791&\"'!\"&G8791))","v":""},{"$f":"IF(ISBLANK(INDIRECT(\"'\"&F8791&\"'!\"&H8791)),\"\",IFERROR(VLOOKUP(TEXT(INDIRECT(\"'\"&F8791&\"'!\"&H8791),\"0\"),Notes!$B$5:$C$100,2,FALSE),\"\"))","v":""},"2b","$U$24","$V$24"]
[33615,{"$f":"Menu!$F$29","v":"X"},{"$f":"Menu!$J$29","v":2020},{"$f":"IF(ISBLANK(INDIRECT(\"'\"&F8792&\"'!\"&G8792)),\"\",INDIRECT(\"'\"&F8792&\"'!\"&G8792))","v":""},{"$f":"IF(ISBLANK(INDIRECT(\"'\"&F8792&\"'!\"&H8792)),\"\",IFERROR(VLOOKUP(TEXT(INDIRECT(\"'\"&F8792&\"'!\"&H8792),\"0\"),Notes!$B$5:$C$100,2,FALSE),\"\"))","v":""},"2b","$W$24","$X$24"]
[33616,{"$f":"Menu!$F$29","v":"X"},{"$f":"Menu!$J$29","v":2020},{"$f":"IF(ISBLANK(INDIRECT(\"'\"&F8793&\"'!\"&G8793)),\"\",INDIRECT(\"'\"&F8793&\"'!\"&G8793))","v":""},{"$f":"IF(ISBLANK(INDIRECT(\"'\"&F8793&\"'!\"&H8793)),\"\",IFERROR(VLOOKUP(TEXT(INDIRECT(\"'\"&F8793&\"'!\"&H8793),\"0\"),Notes!$B$5:$C$100,2,FALSE),\"\"))","v":""},"2b","$Y$24","$Z$24"]
[33617,{"$f":"Menu!$F$29","v":"X"},{"$f":"Menu!$J$29","v":2020},{"$f":"IF(ISBLANK(INDIRECT(\"'\"&F8794&\"'!\"&G8794)),\"\",INDIRECT(\"'\"&F8794&\"'!\"&G8794))","v":""},{"$f":"IF(ISBLANK(INDIRECT(\"'\"&F8794&\"'!\"&H8794)),\"\",IFERROR(VLOOKUP(TEXT(INDIRECT(\"'\"&F8794&\"'!\"&H8794),\"0\"),Notes!$B$5:$C$100,2,FALSE),\"\"))","v":""},"2b","$AA$24","$AB$24"]
[33618,{"$f":"Menu!$F$29","v":"X"},{"$f":"Menu!$J$29","v":2020},{"$f":"IF(ISBLANK(INDIRECT(\"'\"&F8795&\"'!\"&G8795)),\"\",INDIRECT(\"'\"&F8795&\"'!\"&G8795))","v":""},{"$f":"IF(ISBLANK(INDIRECT(\"'\"&F8795&\"'!\"&H8795)),\"\",IFERROR(VLOOKUP(TEXT(INDIRECT(\"'\"&F8795&\"'!\"&H8795),\"0\"),Notes!$B$5:$C$100,2,FALSE),\"\"))","v":""},"2c","$E$24","$F$24"]
[33619,{"$f":"Menu!$F$29","v":"X"},{"$f":"Menu!$J$29","v":2020},{"$f":"IF(ISBLANK(INDIRECT(\"'\"&F8796&\"'!\"&G8796)),\"\",INDIRECT(\"'\"&F8796&\"'!\"&G8796))","v":""},{"$f":"IF(ISBLANK(INDIRECT(\"'\"&F8796&\"'!\"&H8796)),\"\",IFERROR(VLOOKUP(TEXT(INDIRECT(\"'\"&F8796&\"'!\"&H8796),\"0\"),Notes!$B$5:$C$100,2,FALSE),\"\"))","v":""},"2c","$G$24","$H$24"]
[33620,{"$f":"Menu!$F$29","v":"X"},{"$f":"Menu!$J$29","v":2020},{"$f":"IF(ISBLANK(INDIRECT(\"'\"&F8797&\"'!\"&G8797)),\"\",INDIRECT(\"'\"&F8797&\"'!\"&G8797))","v":""},{"$f":"IF(ISBLANK(INDIRECT(\"'\"&F8797&\"'!\"&H8797)),\"\",IFERROR(VLOOKUP(TEXT(INDIRECT(\"'\"&F8797&\"'!\"&H8797),\"0\"),Notes!$B$5:$C$100,2,FALSE),\"\"))","v":""},"2c","$I$24","$J$24"]
[33621,{"$f":"Menu!$F$29","v":"X"},{"$f":"Menu!$J$29","v":2020},{"$f":"IF(ISBLANK(INDIRECT(\"'\"&F8798&\"'!\"&G8798)),\"\",INDIRECT(\"'\"&F8798&\"'!\"&G8798))","v":""},{"$f":"IF(ISBLANK(INDIRECT(\"'\"&F8798&\"'!\"&H8798)),\"\",IFERROR(VLOOKUP(TEXT(INDIRECT(\"'\"&F8798&\"'!\"&H8798),\"0\"),Notes!$B$5:$C$100,2,FALSE),\"\"))","v":""},"2c","$K$24","$L$24"]
[33622,{"$f":"Menu!$F$29","v":"X"},{"$f":"Menu!$J$29","v":2020},{"$f":"IF(ISBLANK(INDIRECT(\"'\"&F8799&\"'!\"&G8799)),\"\",INDIRECT(\"'\"&F8799&\"'!\"&G8799))","v":""},{"$f":"IF(ISBLANK(INDIRECT(\"'\"&F8799&\"'!\"&H8799)),\"\",IFERROR(VLOOKUP(TEXT(INDIRECT(\"'\"&F8799&\"'!\"&H8799),\"0\"),Notes!$B$5:$C$100,2,FALSE),\"\"))","v":""},"2c","$M$24","$N$24"]
[33623,{"$f":"Menu!$F$29","v":"X"},{"$f":"Menu!$J$29","v":2020},{"$f":"IF(ISBLANK(INDIRECT(\"'\"&F8800&\"'!\"&G8800)),\"\",INDIRECT(\"'\"&F8800&\"'!\"&G8800))","v":""},{"$f":"IF(ISBLANK(INDIRECT(\"'\"&F8800&\"'!\"&H8800)),\"\",IFERROR(VLOOKUP(TEXT(INDIRECT(\"'\"&F8800&\"'!\"&H8800),\"0\"),Notes!$B$5:$C$100,2,FALSE),\"\"))","v":""},"2c","$O$24","$P$24"]
[33624,{"$f":"Menu!$F$29","v":"X"},{"$f":"Menu!$J$29","v":2020},{"$f":"IF(ISBLANK(INDIRECT(\"'\"&F8801&\"'!\"&G8801)),\"\",INDIRECT(\"'\"&F8801&\"'!\"&G8801))","v":""},{"$f":"IF(ISBLANK(INDIRECT(\"'\"&F8801&\"'!\"&H8801)),\"\",IFERROR(VLOOKUP(TEXT(INDIRECT(\"'\"&F8801&\"'!\"&H8801),\"0\"),Notes!$B$5:$C$100,2,FALSE),\"\"))","v":""},"2c","$Q$24","$R$24"]
[33625,{"$f":"Menu!$F$29","v":"X"},{"$f":"Menu!$J$29","v":2020},{"$f":"IF(ISBLANK(INDIRECT(\"'\"&F8802&\"'!\"&G8802)),\"\",INDIRECT(\"'\"&F8802&\"'!\"&G8802))","v":""},{"$f":"IF(ISBLANK(INDIRECT(\"'\"&F8802&\"'!\"&H8802)),\"\",IFERROR(VLOOKUP(TEXT(INDIRECT(\"'\"&F8802&\"'!\"&H8802),\"0\"),Notes!$B$5:$C$100,2,FALSE),\"\"))","v":""},"2c","$S$24","$T$24"]
[33626,{"$f":"Menu!$F$29","v":"X"},{"$f":"Menu!$J$29","v":2020},{"$f":"IF(ISBLANK(INDIRECT(\"'\"&F8803&\"'!\"&G8803)),\"\",INDIRECT(\"'\"&F8803&\"'!\"&G8803))","v":""},{"$f":"IF(ISBLANK(INDIRECT(\"'\"&F8803&\"'!\"&H8803)),\"\",IFERROR(VLOOKUP(TEXT(INDIRECT(\"'\"&F8803&\"'!\"&H8803),\"0\"),Notes!$B$5:$C$100,2,FALSE),\"\"))","v":""},"2c","$U$24","$V$24"]
[33627,{"$f":"Menu!$F$29","v":"X"},{"$f":"Menu!$J$29","v":2020},{"$f":"IF(ISBLANK(INDIRECT(\"'\"&F8804&\"'!\"&G8804)),\"\",INDIRECT(\"'\"&F8804&\"'!\"&G8804))","v":""},{"$f":"IF(ISBLANK(INDIRECT(\"'\"&F8804&\"'!\"&H8804)),\"\",IFERROR(VLOOKUP(TEXT(INDIRECT(\"'\"&F8804&\"'!\"&H8804),\"0\"),Notes!$B$5:$C$100,2,FALSE),\"\"))","v":""},"2c","$W$24","$X$24"]
[33628,{"$f":"Menu!$F$29","v":"X"},{"$f":"Menu!$J$29","v":2020},{"$f":"IF(ISBLANK(INDIRECT(\"'\"&F8805&\"'!\"&G8805)),\"\",INDIRECT(\"'\"&F8805&\"'!\"&G8805))","v":""},{"$f":"IF(ISBLANK(INDIRECT(\"'\"&F8805&\"'!\"&H8805)),\"\",IFERROR(VLOOKUP(TEXT(INDIRECT(\"'\"&F8805&\"'!\"&H8805),\"0\"),Notes!$B$5:$C$100,2,FALSE),\"\"))","v":""},"2c","$Y$24","$Z$24"]
[33629,{"$f":"Menu!$F$29","v":"X"},{"$f":"Menu!$J$29","v":2020},{"$f":"IF(ISBLANK(INDIRECT(\"'\"&F8806&\"'!\"&G8806)),\"\",INDIRECT(\"'\"&F8806&\"'!\"&G8806))","v":""},{"$f":"IF(ISBLANK(INDIRECT(\"'\"&F8806&\"'!\"&H8806)),\"\",IFERROR(VLOOKUP(TEXT(INDIRECT(\"'\"&F8806&\"'!\"&H8806),\"0\"),Notes!$B$5:$C$100,2,FALSE),\"\"))","v":""},"2c","$AA$24","$AB$24"]
[33630,{"$f":"Menu!$F$29","v":"X"},{"$f":"Menu!$J$29","v":2020},{"$f":"IF(ISBLANK(INDIRECT(\"'\"&F8807&\"'!\"&G8807)),\"\",INDIRECT(\"'\"&F8807&\"'!\"&G8807))","v":""},{"$f":"IF(ISBLANK(INDIRECT(\"'\"&F8807&\"'!\"&H8807)),\"\",IFERROR(VLOOKUP(TEXT(INDIRECT(\"'\"&F8807&\"'!\"&H8807),\"0\"),Notes!$B$5:$C$100,2,FALSE),\"\"))","v":""},"2d","$E$24","$F$24"]
[33631,{"$f":"Menu!$F$29","v":"X"},{"$f":"Menu!$J$29","v":2020},{"$f":"IF(ISBLANK(INDIRECT(\"'\"&F8808&\"'!\"&G8808)),\"\",INDIRECT(\"'\"&F8808&\"'!\"&G8808))","v":""},{"$f":"IF(ISBLANK(INDIRECT(\"'\"&F8808&\"'!\"&H8808)),\"\",IFERROR(VLOOKUP(TEXT(INDIRECT(\"'\"&F8808&\"'!\"&H8808),\"0\"),Notes!$B$5:$C$100,2,FALSE),\"\"))","v":""},"2d","$G$24","$H$24"]
[33632,{"$f":"Menu!$F$29","v":"X"},{"$f":"Menu!$J$29","v":2020},{"$f":"IF(ISBLANK(INDIRECT(\"'\"&F8809&\"'!\"&G8809)),\"\",INDIRECT(\"'\"&F8809&\"'!\"&G8809))","v":""},{"$f":"IF(ISBLANK(INDIRECT(\"'\"&F8809&\"'!\"&H8809)),\"\",IFERROR(VLOOKUP(TEXT(INDIRECT(\"'\"&F8809&\"'!\"&H8809),\"0\"),Notes!$B$5:$C$100,2,FALSE),\"\"))","v":""},"2d","$I$24","$J$24"]
[33633,{"$f":"Menu!$F$29","v":"X"},{"$f":"Menu!$J$29","v":2020},{"$f":"IF(ISBLANK(INDIRECT(\"'\"&F8810&\"'!\"&G8810)),\"\",INDIRECT(\"'\"&F8810&\"'!\"&G8810))","v":""},{"$f":"IF(ISBLANK(INDIRECT(\"'\"&F8810&\"'!\"&H8810)),\"\",IFERROR(VLOOKUP(TEXT(INDIRECT(\"'\"&F8810&\"'!\"&H8810),\"0\"),Notes!$B$5:$C$100,2,FALSE),\"\"))","v":""},"2d","$K$24","$L$24"]
[33634,{"$f":"Menu!$F$29","v":"X"},{"$f":"Menu!$J$29","v":2020},{"$f":"IF(ISBLANK(INDIRECT(\"'\"&F8811&\"'!\"&G8811)),\"\",INDIRECT(\"'\"&F8811&\"'!\"&G8811))","v":""},{"$f":"IF(ISBLANK(INDIRECT(\"'\"&F8811&\"'!\"&H8811)),\"\",IFERROR(VLOOKUP(TEXT(INDIRECT(\"'\"&F8811&\"'!\"&H8811),\"0\"),Notes!$B$5:$C$100,2,FALSE),\"\"))","v":""},"2d","$M$24","$N$24"]
[33635,{"$f":"Menu!$F$29","v":"X"},{"$f":"Menu!$J$29","v":2020},{"$f":"IF(ISBLANK(INDIRECT(\"'\"&F8812&\"'!\"&G8812)),\"\",INDIRECT(\"'\"&F8812&\"'!\"&G8812))","v":""},{"$f":"IF(ISBLANK(INDIRECT(\"'\"&F8812&\"'!\"&H8812)),\"\",IFERROR(VLOOKUP(TEXT(INDIRECT(\"'\"&F8812&\"'!\"&H8812),\"0\"),Notes!$B$5:$C$100,2,FALSE),\"\"))","v":""},"2d","$O$24","$P$24"]
[33636,{"$f":"Menu!$F$29","v":"X"},{"$f":"Menu!$J$29","v":2020},{"$f":"IF(ISBLANK(INDIRECT(\"'\"&F8813&\"'!\"&G8813)),\"\",INDIRECT(\"'\"&F8813&\"'!\"&G8813))","v":""},{"$f":"IF(ISBLANK(INDIRECT(\"'\"&F8813&\"'!\"&H8813)),\"\",IFERROR(VLOOKUP(TEXT(INDIRECT(\"'\"&F8813&\"'!\"&H8813),\"0\"),Notes!$B$5:$C$100,2,FALSE),\"\"))","v":""},"2d","$Q$24","$R$24"]
[33637,{"$f":"Menu!$F$29","v":"X"},{"$f":"Menu!$J$29","v":2020},{"$f":"IF(ISBLANK(INDIRECT(\"'\"&F8814&\"'!\"&G8814)),\"\",INDIRECT(\"'\"&F8814&\"'!\"&G8814))","v":""},{"$f":"IF(ISBLANK(INDIRECT(\"'\"&F8814&\"'!\"&H8814)),\"\",IFERROR(VLOOKUP(TEXT(INDIRECT(\"'\"&F8814&\"'!\"&H8814),\"0\"),Notes!$B$5:$C$100,2,FALSE),\"\"))","v":""},"2d","$S$24","$T$24"]
[33638,{"$f":"Menu!$F$29","v":"X"},{"$f":"Menu!$J$29","v":2020},{"$f":"IF(ISBLANK(INDIRECT(\"'\"&F8815&\"'!\"&G8815)),\"\",INDIRECT(\"'\"&F8815&\"'!\"&G8815))","v":""},{"$f":"IF(ISBLANK(INDIRECT(\"'\"&F8815&\"'!\"&H8815)),\"\",IFERROR(VLOOKUP(TEXT(INDIRECT(\"'\"&F8815&\"'!\"&H8815),\"0\"),Notes!$B$5:$C$100,2,FALSE),\"\"))","v":""},"2d","$U$24","$V$24"]
[33639,{"$f":"Menu!$F$29","v":"X"},{"$f":"Menu!$J$29","v":2020},{"$f":"IF(ISBLANK(INDIRECT(\"'\"&F8816&\"'!\"&G8816)),\"\",INDIRECT(\"'\"&F8816&\"'!\"&G8816))","v":""},{"$f":"IF(ISBLANK(INDIRECT(\"'\"&F8816&\"'!\"&H8816)),\"\",IFERROR(VLOOKUP(TEXT(INDIRECT(\"'\"&F8816&\"'!\"&H8816),\"0\"),Notes!$B$5:$C$100,2,FALSE),\"\"))","v":""},"2d","$W$24","$X$24"]
[33640,{"$f":"Menu!$F$29","v":"X"},{"$f":"Menu!$J$29","v":2020},{"$f":"IF(ISBLANK(INDIRECT(\"'\"&F8817&\"'!\"&G8817)),\"\",INDIRECT(\"'\"&F8817&\"'!\"&G8817))","v":""},{"$f":"IF(ISBLANK(INDIRECT(\"'\"&F8817&\"'!\"&H8817)),\"\",IFERROR(VLOOKUP(TEXT(INDIRECT(\"'\"&F8817&\"'!\"&H8817),\"0\"),Notes!$B$5:$C$100,2,FALSE),\"\"))","v":""},"2d","$Y$24","$Z$24"]
[33641,{"$f":"Menu!$F$29","v":"X"},{"$f":"Menu!$J$29","v":2020},{"$f":"IF(ISBLANK(INDIRECT(\"'\"&F8818&\"'!\"&G8818)),\"\",INDIRECT(\"'\"&F8818&\"'!\"&G8818))","v":""},{"$f":"IF(ISBLANK(INDIRECT(\"'\"&F8818&\"'!\"&H8818)),\"\",IFERROR(VLOOKUP(TEXT(INDIRECT(\"'\"&F8818&\"'!\"&H8818),\"0\"),Notes!$B$5:$C$100,2,FALSE),\"\"))","v":""},"2d","$AA$24","$AB$24"]
[33642,{"$f":"Menu!$F$29","v":"X"},{"$f":"Menu!$J$29","v":2020},{"$f":"IF(ISBLANK(INDIRECT(\"'\"&F8819&\"'!\"&G8819)),\"\",INDIRECT(\"'\"&F8819&\"'!\"&G8819))","v":""},{"$f":"IF(ISBLANK(INDIRECT(\"'\"&F8819&\"'!\"&H8819)),\"\",IFERROR(VLOOKUP(TEXT(INDIRECT(\"'\"&F8819&\"'!\"&H8819),\"0\"),Notes!$B$5:$C$100,2,FALSE),\"\"))","v":""},"2d","$AC$24","$AD$24"]
[33643,{"$f":"Menu!$F$29","v":"X"},{"$f":"Menu!$J$29","v":2020},{"$f":"IF(ISBLANK(INDIRECT(\"'\"&F8820&\"'!\"&G8820)),\"\",INDIRECT(\"'\"&F8820&\"'!\"&G8820))","v":""},{"$f":"IF(ISBLANK(INDIRECT(\"'\"&F8820&\"'!\"&H8820)),\"\",IFERROR(VLOOKUP(TEXT(INDIRECT(\"'\"&F8820&\"'!\"&H8820),\"0\"),Notes!$B$5:$C$100,2,FALSE),\"\"))","v":""},"2d","$AE$24","$AF$24"]
[33644,{"$f":"Menu!$F$29","v":"X"},{"$f":"Menu!$J$29","v":2020},{"$f":"IF(ISBLANK(INDIRECT(\"'\"&F8821&\"'!\"&G8821)),\"\",INDIRECT(\"'\"&F8821&\"'!\"&G8821))","v":""},{"$f":"IF(ISBLANK(INDIRECT(\"'\"&F8821&\"'!\"&H8821)),\"\",IFERROR(VLOOKUP(TEXT(INDIRECT(\"'\"&F8821&\"'!\"&H8821),\"0\"),Notes!$B$5:$C$100,2,FALSE),\"\"))","v":""},"2d","$AG$24","$AH$24"]
[33645,{"$f":"Menu!$F$29","v":"X"},{"$f":"Menu!$J$29","v":2020},{"$f":"IF(ISBLANK(INDIRECT(\"'\"&F8822&\"'!\"&G8822)),\"\",INDIRECT(\"'\"&F8822&\"'!\"&G8822))","v":""},{"$f":"IF(ISBLANK(INDIRECT(\"'\"&F8822&\"'!\"&H8822)),\"\",IFERROR(VLOOKUP(TEXT(INDIRECT(\"'\"&F8822&\"'!\"&H8822),\"0\"),Notes!$B$5:$C$100,2,FALSE),\"\"))","v":""},"2e","$E$25","$F$25"]
[33646,{"$f":"Menu!$F$29","v":"X"},{"$f":"Menu!$J$29","v":2020},{"$f":"IF(ISBLANK(INDIRECT(\"'\"&F8823&\"'!\"&G8823)),\"\",INDIRECT(\"'\"&F8823&\"'!\"&G8823))","v":""},{"$f":"IF(ISBLANK(INDIRECT(\"'\"&F8823&\"'!\"&H8823)),\"\",IFERROR(VLOOKUP(TEXT(INDIRECT(\"'\"&F8823&\"'!\"&H8823),\"0\"),Notes!$B$5:$C$100,2,FALSE),\"\"))","v":""},"2e","$G$25","$H$25"]
[33647,{"$f":"Menu!$F$29","v":"X"},{"$f":"Menu!$J$29","v":2020},{"$f":"IF(ISBLANK(INDIRECT(\"'\"&F8824&\"'!\"&G8824)),\"\",INDIRECT(\"'\"&F8824&\"'!\"&G8824))","v":""},{"$f":"IF(ISBLANK(INDIRECT(\"'\"&F8824&\"'!\"&H8824)),\"\",IFERROR(VLOOKUP(TEXT(INDIRECT(\"'\"&F8824&\"'!\"&H8824),\"0\"),Notes!$B$5:$C$100,2,FALSE),\"\"))","v":""},"2e","$I$25","$J$25"]
[33648,{"$f":"Menu!$F$29","v":"X"},{"$f":"Menu!$J$29","v":2020},{"$f":"IF(ISBLANK(INDIRECT(\"'\"&F8825&\"'!\"&G8825)),\"\",INDIRECT(\"'\"&F8825&\"'!\"&G8825))","v":""},{"$f":"IF(ISBLANK(INDIRECT(\"'\"&F8825&\"'!\"&H8825)),\"\",IFERROR(VLOOKUP(TEXT(INDIRECT(\"'\"&F8825&\"'!\"&H8825),\"0\"),Notes!$B$5:$C$100,2,FALSE),\"\"))","v":""},"2e","$K$25","$L$25"]
[33649,{"$f":"Menu!$F$29","v":"X"},{"$f":"Menu!$J$29","v":2020},{"$f":"IF(ISBLANK(INDIRECT(\"'\"&F8826&\"'!\"&G8826)),\"\",INDIRECT(\"'\"&F8826&\"'!\"&G8826))","v":""},{"$f":"IF(ISBLANK(INDIRECT(\"'\"&F8826&\"'!\"&H8826)),\"\",IFERROR(VLOOKUP(TEXT(INDIRECT(\"'\"&F8826&\"'!\"&H8826),\"0\"),Notes!$B$5:$C$100,2,FALSE),\"\"))","v":""},"2e","$M$25","$N$25"]
[33650,{"$f":"Menu!$F$29","v":"X"},{"$f":"Menu!$J$29","v":2020},{"$f":"IF(ISBLANK(INDIRECT(\"'\"&F8827&\"'!\"&G8827)),\"\",INDIRECT(\"'\"&F8827&\"'!\"&G8827))","v":""},{"$f":"IF(ISBLANK(INDIRECT(\"'\"&F8827&\"'!\"&H8827)),\"\",IFERROR(VLOOKUP(TEXT(INDIRECT(\"'\"&F8827&\"'!\"&H8827),\"0\"),Notes!$B$5:$C$100,2,FALSE),\"\"))","v":""},"2e","$O$25","$P$25"]
[33651,{"$f":"Menu!$F$29","v":"X"},{"$f":"Menu!$J$29","v":2020},{"$f":"IF(ISBLANK(INDIRECT(\"'\"&F8828&\"'!\"&G8828)),\"\",INDIRECT(\"'\"&F8828&\"'!\"&G8828))","v":""},{"$f":"IF(ISBLANK(INDIRECT(\"'\"&F8828&\"'!\"&H8828)),\"\",IFERROR(VLOOKUP(TEXT(INDIRECT(\"'\"&F8828&\"'!\"&H8828),\"0\"),Notes!$B$5:$C$100,2,FALSE),\"\"))","v":""},"2e","$Q$25","$R$25"]
[33652,{"$f":"Menu!$F$29","v":"X"},{"$f":"Menu!$J$29","v":2020},{"$f":"IF(ISBLANK(INDIRECT(\"'\"&F8829&\"'!\"&G8829)),\"\",INDIRECT(\"'\"&F8829&\"'!\"&G8829))","v":""},{"$f":"IF(ISBLANK(INDIRECT(\"'\"&F8829&\"'!\"&H8829)),\"\",IFERROR(VLOOKUP(TEXT(INDIRECT(\"'\"&F8829&\"'!\"&H8829),\"0\"),Notes!$B$5:$C$100,2,FALSE),\"\"))","v":""},"2e","$S$25","$T$25"]
[33653,{"$f":"Menu!$F$29","v":"X"},{"$f":"Menu!$J$29","v":2020},{"$f":"IF(ISBLANK(INDIRECT(\"'\"&F8830&\"'!\"&G8830)),\"\",INDIRECT(\"'\"&F8830&\"'!\"&G8830))","v":""},{"$f":"IF(ISBLANK(INDIRECT(\"'\"&F8830&\"'!\"&H8830)),\"\",IFERROR(VLOOKUP(TEXT(INDIRECT(\"'\"&F8830&\"'!\"&H8830),\"0\"),Notes!$B$5:$C$100,2,FALSE),\"\"))","v":""},"2e","$U$25","$V$25"]
[33654,{"$f":"Menu!$F$29","v":"X"},{"$f":"Menu!$J$29","v":2020},{"$f":"IF(ISBLANK(INDIRECT(\"'\"&F8831&\"'!\"&G8831)),\"\",INDIRECT(\"'\"&F8831&\"'!\"&G8831))","v":""},{"$f":"IF(ISBLANK(INDIRECT(\"'\"&F8831&\"'!\"&H8831)),\"\",IFERROR(VLOOKUP(TEXT(INDIRECT(\"'\"&F8831&\"'!\"&H8831),\"0\"),Notes!$B$5:$C$100,2,FALSE),\"\"))","v":""},"2e","$W$25","$X$25"]
[33655,{"$f":"Menu!$F$29","v":"X"},{"$f":"Menu!$J$29","v":2020},{"$f":"IF(ISBLANK(INDIRECT(\"'\"&F8832&\"'!\"&G8832)),\"\",INDIRECT(\"'\"&F8832&\"'!\"&G8832))","v":""},{"$f":"IF(ISBLANK(INDIRECT(\"'\"&F8832&\"'!\"&H8832)),\"\",IFERROR(VLOOKUP(TEXT(INDIRECT(\"'\"&F8832&\"'!\"&H8832),\"0\"),Notes!$B$5:$C$100,2,FALSE),\"\"))","v":""},"2e","$Y$25","$Z$25"]
[33656,{"$f":"Menu!$F$29","v":"X"},{"$f":"Menu!$J$29","v":2020},{"$f":"IF(ISBLANK(INDIRECT(\"'\"&F8833&\"'!\"&G8833)),\"\",INDIRECT(\"'\"&F8833&\"'!\"&G8833))","v":""},{"$f":"IF(ISBLANK(INDIRECT(\"'\"&F8833&\"'!\"&H8833)),\"\",IFERROR(VLOOKUP(TEXT(INDIRECT(\"'\"&F8833&\"'!\"&H8833),\"0\"),Notes!$B$5:$C$100,2,FALSE),\"\"))","v":""},"2e","$AA$25","$AB$25"]
[33657,{"$f":"Menu!$F$29","v":"X"},{"$f":"Menu!$J$29","v":2020},{"$f":"IF(ISBLANK(INDIRECT(\"'\"&F8834&\"'!\"&G8834)),\"\",INDIRECT(\"'\"&F8834&\"'!\"&G8834))","v":""},{"$f":"IF(ISBLANK(INDIRECT(\"'\"&F8834&\"'!\"&H8834)),\"\",IFERROR(VLOOKUP(TEXT(INDIRECT(\"'\"&F8834&\"'!\"&H8834),\"0\"),Notes!$B$5:$C$100,2,FALSE),\"\"))","v":""},"2e","$AC$25",{"$f":"IF(LEN(TRIM(MID(G8834,4,10)))-LEN(SUBSTITUTE(TRIM(MID(G8834,4,10)),\"$\",\"\"))=0,\"$\"&CHAR(CODE(MID(G8834,2,1))+1)&\"$\"&TRIM(MID(G8834,4,10)),\"$\"&MID(G8834,2,1)&CHAR(CODE(MID(G8834,3,1))+1)&\"$\"&TRIM(MID(G8834,5,11)))","v":"$AD$25"}]
[33658,{"$f":"Menu!$F$29","v":"X"},{"$f":"Menu!$J$29","v":2020},{"$f":"IF(ISBLANK(INDIRECT(\"'\"&F8835&\"'!\"&G8835)),\"\",INDIRECT(\"'\"&F8835&\"'!\"&G8835))","v":""},{"$f":"IF(ISBLANK(INDIRECT(\"'\"&F8835&\"'!\"&H8835)),\"\",IFERROR(VLOOKUP(TEXT(INDIRECT(\"'\"&F8835&\"'!\"&H8835),\"0\"),Notes!$B$5:$C$100,2,FALSE),\"\"))","v":""},"2e","$AE$25","$AF$25"]
[33659,{"$f":"Menu!$F$29","v":"X"},{"$f":"Menu!$J$29","v":2020},{"$f":"IF(ISBLANK(INDIRECT(\"'\"&F8836&\"'!\"&G8836)),\"\",INDIRECT(\"'\"&F8836&\"'!\"&G8836))","v":""},{"$f":"IF(ISBLANK(INDIRECT(\"'\"&F8836&\"'!\"&H8836)),\"\",IFERROR(VLOOKUP(TEXT(INDIRECT(\"'\"&F8836&\"'!\"&H8836),\"0\"),Notes!$B$5:$C$100,2,FALSE),\"\"))","v":""},"2e","$AG$25","$AH$25"]
[33660,{"$f":"Menu!$F$29","v":"X"},{"$f":"Menu!$J$29","v":2020},{"$f":"IF(ISBLANK(INDIRECT(\"'\"&F8837&\"'!\"&G8837)),\"\",INDIRECT(\"'\"&F8837&\"'!\"&G8837))","v":""},{"$f":"IF(ISBLANK(INDIRECT(\"'\"&F8837&\"'!\"&H8837)),\"\",IFERROR(VLOOKUP(TEXT(INDIRECT(\"'\"&F8837&\"'!\"&H8837),\"0\"),Notes!$B$5:$C$100,2,FALSE),\"\"))","v":""},"2e","$AI$25","$AJ$25"]
[33661,{"$f":"Menu!$F$29","v":"X"},{"$f":"Menu!$J$29","v":2020},{"$f":"IF(ISBLANK(INDIRECT(\"'\"&F8838&\"'!\"&G8838)),\"\",INDIRECT(\"'\"&F8838&\"'!\"&G8838))","v":""},{"$f":"IF(ISBLANK(INDIRECT(\"'\"&F8838&\"'!\"&H8838)),\"\",IFERROR(VLOOKUP(TEXT(INDIRECT(\"'\"&F8838&\"'!\"&H8838),\"0\"),Notes!$B$5:$C$100,2,FALSE),\"\"))","v":""},"2e","$AK$25","$AL$25"]
[33662,{"$f":"Menu!$F$29","v":"X"},{"$f":"Menu!$J$29","v":2020},{"$f":"IF(ISBLANK(INDIRECT(\"'\"&F8839&\"'!\"&G8839)),\"\",INDIRECT(\"'\"&F8839&\"'!\"&G8839))","v":""},{"$f":"IF(ISBLANK(INDIRECT(\"'\"&F8839&\"'!\"&H8839)),\"\",IFERROR(VLOOKUP(TEXT(INDIRECT(\"'\"&F8839&\"'!\"&H8839),\"0\"),Notes!$B$5:$C$100,2,FALSE),\"\"))","v":""},"2e","$AM$25","$AN$25"]
[33663,{"$f":"Menu!$F$29","v":"X"},{"$f":"Menu!$J$29","v":2020},{"$f":"IF(ISBLANK(INDIRECT(\"'\"&F8840&\"'!\"&G8840)),\"\",INDIRECT(\"'\"&F8840&\"'!\"&G8840))","v":""},{"$f":"IF(ISBLANK(INDIRECT(\"'\"&F8840&\"'!\"&H8840)),\"\",IFERROR(VLOOKUP(TEXT(INDIRECT(\"'\"&F8840&\"'!\"&H8840),\"0\"),Notes!$B$5:$C$100,2,FALSE),\"\"))","v":""},"2e","$AO$25","$AP$25"]
[33664,{"$f":"Menu!$F$29","v":"X"},{"$f":"Menu!$J$29","v":2020},{"$f":"IF(ISBLANK(INDIRECT(\"'\"&F8841&\"'!\"&G8841)),\"\",INDIRECT(\"'\"&F8841&\"'!\"&G8841))","v":""},{"$f":"IF(ISBLANK(INDIRECT(\"'\"&F8841&\"'!\"&H8841)),\"\",IFERROR(VLOOKUP(TEXT(INDIRECT(\"'\"&F8841&\"'!\"&H8841),\"0\"),Notes!$B$5:$C$100,2,FALSE),\"\"))","v":""},"2e","$AQ$25","$AR$25"]
[33665,{"$f":"Menu!$F$29","v":"X"},{"$f":"Menu!$J$29","v":2020},{"$f":"IF(ISBLANK(INDIRECT(\"'\"&F8842&\"'!\"&G8842)),\"\",INDIRECT(\"'\"&F8842&\"'!\"&G8842))","v":""},{"$f":"IF(ISBLANK(INDIRECT(\"'\"&F8842&\"'!\"&H8842)),\"\",IFERROR(VLOOKUP(TEXT(INDIRECT(\"'\"&F8842&\"'!\"&H8842),\"0\"),Notes!$B$5:$C$100,2,FALSE),\"\"))","v":""},"2e","$AS$25","$AT$25"]
[33666,{"$f":"Menu!$F$29","v":"X"},{"$f":"Menu!$J$29","v":2020},{"$f":"IF(ISBLANK(INDIRECT(\"'\"&F8843&\"'!\"&G8843)),\"\",INDIRECT(\"'\"&F8843&\"'!\"&G8843))","v":""},{"$f":"IF(ISBLANK(INDIRECT(\"'\"&F8843&\"'!\"&H8843)),\"\",IFERROR(VLOOKUP(TEXT(INDIRECT(\"'\"&F8843&\"'!\"&H8843),\"0\"),Notes!$B$5:$C$100,2,FALSE),\"\"))","v":""},"2e","$AU$25","$AV$25"]
[33667,{"$f":"Menu!$F$29","v":"X"},{"$f":"Menu!$J$29","v":2020},{"$f":"IF(ISBLANK(INDIRECT(\"'\"&F8844&\"'!\"&G8844)),\"\",INDIRECT(\"'\"&F8844&\"'!\"&G8844))","v":""},{"$f":"IF(ISBLANK(INDIRECT(\"'\"&F8844&\"'!\"&H8844)),\"\",IFERROR(VLOOKUP(TEXT(INDIRECT(\"'\"&F8844&\"'!\"&H8844),\"0\"),Notes!$B$5:$C$100,2,FALSE),\"\"))","v":""},"2e","$AW$25","$AX$25"]
[33668,{"$f":"Menu!$F$29","v":"X"},{"$f":"Menu!$J$29","v":2020},{"$f":"IF(ISBLANK(INDIRECT(\"'\"&F8845&\"'!\"&G8845)),\"\",INDIRECT(\"'\"&F8845&\"'!\"&G8845))","v":""},{"$f":"IF(ISBLANK(INDIRECT(\"'\"&F8845&\"'!\"&H8845)),\"\",IFERROR(VLOOKUP(TEXT(INDIRECT(\"'\"&F8845&\"'!\"&H8845),\"0\"),Notes!$B$5:$C$100,2,FALSE),\"\"))","v":""},"2e","$AY$25","$AZ$25"]
[33669,{"$f":"Menu!$F$29","v":"X"},{"$f":"Menu!$J$29","v":2020},{"$f":"IF(ISBLANK(INDIRECT(\"'\"&F8846&\"'!\"&G8846)),\"\",INDIRECT(\"'\"&F8846&\"'!\"&G8846))","v":""},{"$f":"IF(ISBLANK(INDIRECT(\"'\"&F8846&\"'!\"&H8846)),\"\",IFERROR(VLOOKUP(TEXT(INDIRECT(\"'\"&F8846&\"'!\"&H8846),\"0\"),Notes!$B$5:$C$100,2,FALSE),\"\"))","v":""},"2e","$BA$25","$BB$25"]
[33670,{"$f":"Menu!$F$29","v":"X"},{"$f":"Menu!$J$29","v":2020},{"$f":"IF(ISBLANK(INDIRECT(\"'\"&F8847&\"'!\"&G8847)),\"\",INDIRECT(\"'\"&F8847&\"'!\"&G8847))","v":""},{"$f":"IF(ISBLANK(INDIRECT(\"'\"&F8847&\"'!\"&H8847)),\"\",IFERROR(VLOOKUP(TEXT(INDIRECT(\"'\"&F8847&\"'!\"&H8847),\"0\"),Notes!$B$5:$C$100,2,FALSE),\"\"))","v":""},"2e","$BC$25","$BD$25"]
[33671,{"$f":"Menu!$F$29","v":"X"},{"$f":"Menu!$J$29","v":2020},{"$f":"IF(ISBLANK(INDIRECT(\"'\"&F8848&\"'!\"&G8848)),\"\",INDIRECT(\"'\"&F8848&\"'!\"&G8848))","v":""},{"$f":"IF(ISBLANK(INDIRECT(\"'\"&F8848&\"'!\"&H8848)),\"\",IFERROR(VLOOKUP(TEXT(INDIRECT(\"'\"&F8848&\"'!\"&H8848),\"0\"),Notes!$B$5:$C$100,2,FALSE),\"\"))","v":""},"2e","$BE$25","$BF$25"]
[33672,{"$f":"Menu!$F$29","v":"X"},{"$f":"Menu!$J$29","v":2020},{"$f":"IF(ISBLANK(INDIRECT(\"'\"&F8849&\"'!\"&G8849)),\"\",INDIRECT(\"'\"&F8849&\"'!\"&G8849))","v":""},{"$f":"IF(ISBLANK(INDIRECT(\"'\"&F8849&\"'!\"&H8849)),\"\",IFERROR(VLOOKUP(TEXT(INDIRECT(\"'\"&F8849&\"'!\"&H8849),\"0\"),Notes!$B$5:$C$100,2,FALSE),\"\"))","v":""},"2e","$BG$25","$BH$25"]
[33673,{"$f":"Menu!$F$29","v":"X"},{"$f":"Menu!$J$29","v":2020},{"$f":"IF(ISBLANK(INDIRECT(\"'\"&F8850&\"'!\"&G8850)),\"\",INDIRECT(\"'\"&F8850&\"'!\"&G8850))","v":""},{"$f":"IF(ISBLANK(INDIRECT(\"'\"&F8850&\"'!\"&H8850)),\"\",IFERROR(VLOOKUP(TEXT(INDIRECT(\"'\"&F8850&\"'!\"&H8850),\"0\"),Notes!$B$5:$C$100,2,FALSE),\"\"))","v":""},"2e","$BI$25","$BJ$25"]
[33674,{"$f":"Menu!$F$29","v":"X"},{"$f":"Menu!$J$29","v":2020},{"$f":"IF(ISBLANK(INDIRECT(\"'\"&F8851&\"'!\"&G8851)),\"\",INDIRECT(\"'\"&F8851&\"'!\"&G8851))","v":""},{"$f":"IF(ISBLANK(INDIRECT(\"'\"&F8851&\"'!\"&H8851)),\"\",IFERROR(VLOOKUP(TEXT(INDIRECT(\"'\"&F8851&\"'!\"&H8851),\"0\"),Notes!$B$5:$C$100,2,FALSE),\"\"))","v":""},"2e","$BK$25","$BL$25"]
[34691,{"$f":"Menu!$F$29","v":"X"},{"$f":"Menu!$J$29","v":2020},{"$f":"IF(ISBLANK(INDIRECT(\"'\"&F8852&\"'!\"&G8852)),\"\",INDIRECT(\"'\"&F8852&\"'!\"&G8852))","v":""},{"$f":"IF(ISBLANK(INDIRECT(\"'\"&F8852&\"'!\"&H8852)),\"\",IFERROR(VLOOKUP(TEXT(INDIRECT(\"'\"&F8852&\"'!\"&H8852),\"0\"),Notes!$B$5:$C$100,2,FALSE),\"\"))","v":""},"2a","$K$22","$L$22"]
[34694,{"$f":"Menu!$F$29","v":"X"},{"$f":"Menu!$J$29","v":2020},{"$f":"IF(ISBLANK(INDIRECT(\"'\"&F8853&\"'!\"&G8853)),\"\",INDIRECT(\"'\"&F8853&\"'!\"&G8853))","v":""},{"$f":"IF(ISBLANK(INDIRECT(\"'\"&F8853&\"'!\"&H8853)),\"\",IFERROR(VLOOKUP(TEXT(INDIRECT(\"'\"&F8853&\"'!\"&H8853),\"0\"),Notes!$B$5:$C$100,2,FALSE),\"\"))","v":""},"2a","$K$29","$L$29"]
[34695,{"$f":"Menu!$F$29","v":"X"},{"$f":"Menu!$J$29","v":2020},{"$f":"IF(ISBLANK(INDIRECT(\"'\"&F8854&\"'!\"&G8854)),\"\",INDIRECT(\"'\"&F8854&\"'!\"&G8854))","v":""},{"$f":"IF(ISBLANK(INDIRECT(\"'\"&F8854&\"'!\"&H8854)),\"\",IFERROR(VLOOKUP(TEXT(INDIRECT(\"'\"&F8854&\"'!\"&H8854),\"0\"),Notes!$B$5:$C$100,2,FALSE),\"\"))","v":""},"2a","$K$30","$L$30"]
[34697,{"$f":"Menu!$F$29","v":"X"},{"$f":"Menu!$J$29","v":2020},{"$f":"IF(ISBLANK(INDIRECT(\"'\"&F8855&\"'!\"&G8855)),\"\",INDIRECT(\"'\"&F8855&\"'!\"&G8855))","v":""},{"$f":"IF(ISBLANK(INDIRECT(\"'\"&F8855&\"'!\"&H8855)),\"\",IFERROR(VLOOKUP(TEXT(INDIRECT(\"'\"&F8855&\"'!\"&H8855),\"0\"),Notes!$B$5:$C$100,2,FALSE),\"\"))","v":""},"2a","$K$36","$L$36"]
[34698,{"$f":"Menu!$F$29","v":"X"},{"$f":"Menu!$J$29","v":2020},{"$f":"IF(ISBLANK(INDIRECT(\"'\"&F8856&\"'!\"&G8856)),\"\",INDIRECT(\"'\"&F8856&\"'!\"&G8856))","v":""},{"$f":"IF(ISBLANK(INDIRECT(\"'\"&F8856&\"'!\"&H8856)),\"\",IFERROR(VLOOKUP(TEXT(INDIRECT(\"'\"&F8856&\"'!\"&H8856),\"0\"),Notes!$B$5:$C$100,2,FALSE),\"\"))","v":""},"2a","$K$37","$L$37"]
[34700,{"$f":"Menu!$F$29","v":"X"},{"$f":"Menu!$J$29","v":2020},{"$f":"IF(ISBLANK(INDIRECT(\"'\"&F8857&\"'!\"&G8857)),\"\",INDIRECT(\"'\"&F8857&\"'!\"&G8857))","v":""},{"$f":"IF(ISBLANK(INDIRECT(\"'\"&F8857&\"'!\"&H8857)),\"\",IFERROR(VLOOKUP(TEXT(INDIRECT(\"'\"&F8857&\"'!\"&H8857),\"0\"),Notes!$B$5:$C$100,2,FALSE),\"\"))","v":""},"2a","$K$49","$L$49"]
[34701,{"$f":"Menu!$F$29","v":"X"},{"$f":"Menu!$J$29","v":2020},{"$f":"IF(ISBLANK(INDIRECT(\"'\"&F8858&\"'!\"&G8858)),\"\",INDIRECT(\"'\"&F8858&\"'!\"&G8858))","v":""},{"$f":"IF(ISBLANK(INDIRECT(\"'\"&F8858&\"'!\"&H8858)),\"\",IFERROR(VLOOKUP(TEXT(INDIRECT(\"'\"&F8858&\"'!\"&H8858),\"0\"),Notes!$B$5:$C$100,2,FALSE),\"\"))","v":""},"2a","$K$50","$L$50"]
[34703,{"$f":"Menu!$F$29","v":"X"},{"$f":"Menu!$J$29","v":2020},{"$f":"IF(ISBLANK(INDIRECT(\"'\"&F8859&\"'!\"&G8859)),\"\",INDIRECT(\"'\"&F8859&\"'!\"&G8859))","v":""},{"$f":"IF(ISBLANK(INDIRECT(\"'\"&F8859&\"'!\"&H8859)),\"\",IFERROR(VLOOKUP(TEXT(INDIRECT(\"'\"&F8859&\"'!\"&H8859),\"0\"),Notes!$B$5:$C$100,2,FALSE),\"\"))","v":""},"2a","$K$44","$L$44"]
[34704,{"$f":"Menu!$F$29","v":"X"},{"$f":"Menu!$J$29","v":2020},{"$f":"IF(ISBLANK(INDIRECT(\"'\"&F8860&\"'!\"&G8860)),\"\",INDIRECT(\"'\"&F8860&\"'!\"&G8860))","v":""},{"$f":"IF(ISBLANK(INDIRECT(\"'\"&F8860&\"'!\"&H8860)),\"\",IFERROR(VLOOKUP(TEXT(INDIRECT(\"'\"&F8860&\"'!\"&H8860),\"0\"),Notes!$B$5:$C$100,2,FALSE),\"\"))","v":""},"2a","$K$45","$L$45"]
[34706,{"$f":"Menu!$F$29","v":"X"},{"$f":"Menu!$J$29","v":2020},{"$f":"IF(ISBLANK(INDIRECT(\"'\"&F8861&\"'!\"&G8861)),\"\",INDIRECT(\"'\"&F8861&\"'!\"&G8861))","v":""},{"$f":"IF(ISBLANK(INDIRECT(\"'\"&F8861&\"'!\"&H8861)),\"\",IFERROR(VLOOKUP(TEXT(INDIRECT(\"'\"&F8861&\"'!\"&H8861),\"0\"),Notes!$B$5:$C$100,2,FALSE),\"\"))","v":""},"2a","$Q$22","$R$22"]
[34709,{"$f":"Menu!$F$29","v":"X"},{"$f":"Menu!$J$29","v":2020},{"$f":"IF(ISBLANK(INDIRECT(\"'\"&F8862&\"'!\"&G8862)),\"\",INDIRECT(\"'\"&F8862&\"'!\"&G8862))","v":""},{"$f":"IF(ISBLANK(INDIRECT(\"'\"&F8862&\"'!\"&H8862)),\"\",IFERROR(VLOOKUP(TEXT(INDIRECT(\"'\"&F8862&\"'!\"&H8862),\"0\"),Notes!$B$5:$C$100,2,FALSE),\"\"))","v":""},"2a","$Q$29","$R$29"]
[34710,{"$f":"Menu!$F$29","v":"X"},{"$f":"Menu!$J$29","v":2020},{"$f":"IF(ISBLANK(INDIRECT(\"'\"&F8863&\"'!\"&G8863)),\"\",INDIRECT(\"'\"&F8863&\"'!\"&G8863))","v":""},{"$f":"IF(ISBLANK(INDIRECT(\"'\"&F8863&\"'!\"&H8863)),\"\",IFERROR(VLOOKUP(TEXT(INDIRECT(\"'\"&F8863&\"'!\"&H8863),\"0\"),Notes!$B$5:$C$100,2,FALSE),\"\"))","v":""},"2a","$Q$30","$R$30"]
[34712,{"$f":"Menu!$F$29","v":"X"},{"$f":"Menu!$J$29","v":2020},{"$f":"IF(ISBLANK(INDIRECT(\"'\"&F8864&\"'!\"&G8864)),\"\",INDIRECT(\"'\"&F8864&\"'!\"&G8864))","v":""},{"$f":"IF(ISBLANK(INDIRECT(\"'\"&F8864&\"'!\"&H8864)),\"\",IFERROR(VLOOKUP(TEXT(INDIRECT(\"'\"&F8864&\"'!\"&H8864),\"0\"),Notes!$B$5:$C$100,2,FALSE),\"\"))","v":""},"2a","$Q$36","$R$36"]
[34713,{"$f":"Menu!$F$29","v":"X"},{"$f":"Menu!$J$29","v":2020},{"$f":"IF(ISBLANK(INDIRECT(\"'\"&F8865&\"'!\"&G8865)),\"\",INDIRECT(\"'\"&F8865&\"'!\"&G8865))","v":""},{"$f":"IF(ISBLANK(INDIRECT(\"'\"&F8865&\"'!\"&H8865)),\"\",IFERROR(VLOOKUP(TEXT(INDIRECT(\"'\"&F8865&\"'!\"&H8865),\"0\"),Notes!$B$5:$C$100,2,FALSE),\"\"))","v":""},"2a","$Q$37","$R$37"]
[34715,{"$f":"Menu!$F$29","v":"X"},{"$f":"Menu!$J$29","v":2020},{"$f":"IF(ISBLANK(INDIRECT(\"'\"&F8866&\"'!\"&G8866)),\"\",INDIRECT(\"'\"&F8866&\"'!\"&G8866))","v":""},{"$f":"IF(ISBLANK(INDIRECT(\"'\"&F8866&\"'!\"&H8866)),\"\",IFERROR(VLOOKUP(TEXT(INDIRECT(\"'\"&F8866&\"'!\"&H8866),\"0\"),Notes!$B$5:$C$100,2,FALSE),\"\"))","v":""},"2a","$Q$49","$R$49"]
[34716,{"$f":"Menu!$F$29","v":"X"},{"$f":"Menu!$J$29","v":2020},{"$f":"IF(ISBLANK(INDIRECT(\"'\"&F8867&\"'!\"&G8867)),\"\",INDIRECT(\"'\"&F8867&\"'!\"&G8867))","v":""},{"$f":"IF(ISBLANK(INDIRECT(\"'\"&F8867&\"'!\"&H8867)),\"\",IFERROR(VLOOKUP(TEXT(INDIRECT(\"'\"&F8867&\"'!\"&H8867),\"0\"),Notes!$B$5:$C$100,2,FALSE),\"\"))","v":""},"2a","$Q$50","$R$50"]
[34718,{"$f":"Menu!$F$29","v":"X"},{"$f":"Menu!$J$29","v":2020},{"$f":"IF(ISBLANK(INDIRECT(\"'\"&F8868&\"'!\"&G8868)),\"\",INDIRECT(\"'\"&F8868&\"'!\"&G8868))","v":""},{"$f":"IF(ISBLANK(INDIRECT(\"'\"&F8868&\"'!\"&H8868)),\"\",IFERROR(VLOOKUP(TEXT(INDIRECT(\"'\"&F8868&\"'!\"&H8868),\"0\"),Notes!$B$5:$C$100,2,FALSE),\"\"))","v":""},"2a","$Q$44","$R$44"]
[34719,{"$f":"Menu!$F$29","v":"X"},{"$f":"Menu!$J$29","v":2020},{"$f":"IF(ISBLANK(INDIRECT(\"'\"&F8869&\"'!\"&G8869)),\"\",INDIRECT(\"'\"&F8869&\"'!\"&G8869))","v":""},{"$f":"IF(ISBLANK(INDIRECT(\"'\"&F8869&\"'!\"&H8869)),\"\",IFERROR(VLOOKUP(TEXT(INDIRECT(\"'\"&F8869&\"'!\"&H8869),\"0\"),Notes!$B$5:$C$100,2,FALSE),\"\"))","v":""},"2a","$Q$45","$R$45"]
[34721,{"$f":"Menu!$F$29","v":"X"},{"$f":"Menu!$J$29","v":2020},{"$f":"IF(ISBLANK(INDIRECT(\"'\"&F8870&\"'!\"&G8870)),\"\",INDIRECT(\"'\"&F8870&\"'!\"&G8870))","v":""},{"$f":"IF(ISBLANK(INDIRECT(\"'\"&F8870&\"'!\"&H8870)),\"\",IFERROR(VLOOKUP(TEXT(INDIRECT(\"'\"&F8870&\"'!\"&H8870),\"0\"),Notes!$B$5:$C$100,2,FALSE),\"\"))","v":""},"2c","$E$22","$F$22"]
[34724,{"$f":"Menu!$F$29","v":"X"},{"$f":"Menu!$J$29","v":2020},{"$f":"IF(ISBLANK(INDIRECT(\"'\"&F8871&\"'!\"&G8871)),\"\",INDIRECT(\"'\"&F8871&\"'!\"&G8871))","v":""},{"$f":"IF(ISBLANK(INDIRECT(\"'\"&F8871&\"'!\"&H8871)),\"\",IFERROR(VLOOKUP(TEXT(INDIRECT(\"'\"&F8871&\"'!\"&H8871),\"0\"),Notes!$B$5:$C$100,2,FALSE),\"\"))","v":""},"2c","$E$29","$F$29"]
[34725,{"$f":"Menu!$F$29","v":"X"},{"$f":"Menu!$J$29","v":2020},{"$f":"IF(ISBLANK(INDIRECT(\"'\"&F8872&\"'!\"&G8872)),\"\",INDIRECT(\"'\"&F8872&\"'!\"&G8872))","v":""},{"$f":"IF(ISBLANK(INDIRECT(\"'\"&F8872&\"'!\"&H8872)),\"\",IFERROR(VLOOKUP(TEXT(INDIRECT(\"'\"&F8872&\"'!\"&H8872),\"0\"),Notes!$B$5:$C$100,2,FALSE),\"\"))","v":""},"2c","$E$30","$F$30"]
[34727,{"$f":"Menu!$F$29","v":"X"},{"$f":"Menu!$J$29","v":2020},{"$f":"IF(ISBLANK(INDIRECT(\"'\"&F8873&\"'!\"&G8873)),\"\",INDIRECT(\"'\"&F8873&\"'!\"&G8873))","v":""},{"$f":"IF(ISBLANK(INDIRECT(\"'\"&F8873&\"'!\"&H8873)),\"\",IFERROR(VLOOKUP(TEXT(INDIRECT(\"'\"&F8873&\"'!\"&H8873),\"0\"),Notes!$B$5:$C$100,2,FALSE),\"\"))","v":""},"2c","$E$36","$F$36"]
[34728,{"$f":"Menu!$F$29","v":"X"},{"$f":"Menu!$J$29","v":2020},{"$f":"IF(ISBLANK(INDIRECT(\"'\"&F8874&\"'!\"&G8874)),\"\",INDIRECT(\"'\"&F8874&\"'!\"&G8874))","v":""},{"$f":"IF(ISBLANK(INDIRECT(\"'\"&F8874&\"'!\"&H8874)),\"\",IFERROR(VLOOKUP(TEXT(INDIRECT(\"'\"&F8874&\"'!\"&H8874),\"0\"),Notes!$B$5:$C$100,2,FALSE),\"\"))","v":""},"2c","$E$37","$F$37"]
[34730,{"$f":"Menu!$F$29","v":"X"},{"$f":"Menu!$J$29","v":2020},{"$f":"IF(ISBLANK(INDIRECT(\"'\"&F8875&\"'!\"&G8875)),\"\",INDIRECT(\"'\"&F8875&\"'!\"&G8875))","v":""},{"$f":"IF(ISBLANK(INDIRECT(\"'\"&F8875&\"'!\"&H8875)),\"\",IFERROR(VLOOKUP(TEXT(INDIRECT(\"'\"&F8875&\"'!\"&H8875),\"0\"),Notes!$B$5:$C$100,2,FALSE),\"\"))","v":""},"2c","$E$49","$F$49"]
[34731,{"$f":"Menu!$F$29","v":"X"},{"$f":"Menu!$J$29","v":2020},{"$f":"IF(ISBLANK(INDIRECT(\"'\"&F8876&\"'!\"&G8876)),\"\",INDIRECT(\"'\"&F8876&\"'!\"&G8876))","v":""},{"$f":"IF(ISBLANK(INDIRECT(\"'\"&F8876&\"'!\"&H8876)),\"\",IFERROR(VLOOKUP(TEXT(INDIRECT(\"'\"&F8876&\"'!\"&H8876),\"0\"),Notes!$B$5:$C$100,2,FALSE),\"\"))","v":""},"2c","$E$50","$F$50"]
[34733,{"$f":"Menu!$F$29","v":"X"},{"$f":"Menu!$J$29","v":2020},{"$f":"IF(ISBLANK(INDIRECT(\"'\"&F8877&\"'!\"&G8877)),\"\",INDIRECT(\"'\"&F8877&\"'!\"&G8877))","v":""},{"$f":"IF(ISBLANK(INDIRECT(\"'\"&F8877&\"'!\"&H8877)),\"\",IFERROR(VLOOKUP(TEXT(INDIRECT(\"'\"&F8877&\"'!\"&H8877),\"0\"),Notes!$B$5:$C$100,2,FALSE),\"\"))","v":""},"2c","$E$44","$F$44"]
[34734,{"$f":"Menu!$F$29","v":"X"},{"$f":"Menu!$J$29","v":2020},{"$f":"IF(ISBLANK(INDIRECT(\"'\"&F8878&\"'!\"&G8878)),\"\",INDIRECT(\"'\"&F8878&\"'!\"&G8878))","v":""},{"$f":"IF(ISBLANK(INDIRECT(\"'\"&F8878&\"'!\"&H8878)),\"\",IFERROR(VLOOKUP(TEXT(INDIRECT(\"'\"&F8878&\"'!\"&H8878),\"0\"),Notes!$B$5:$C$100,2,FALSE),\"\"))","v":""},"2c","$E$45","$F$45"]
[34736,{"$f":"Menu!$F$29","v":"X"},{"$f":"Menu!$J$29","v":2020},{"$f":"IF(ISBLANK(INDIRECT(\"'\"&F8879&\"'!\"&G8879)),\"\",INDIRECT(\"'\"&F8879&\"'!\"&G8879))","v":""},{"$f":"IF(ISBLANK(INDIRECT(\"'\"&F8879&\"'!\"&H8879)),\"\",IFERROR(VLOOKUP(TEXT(INDIRECT(\"'\"&F8879&\"'!\"&H8879),\"0\"),Notes!$B$5:$C$100,2,FALSE),\"\"))","v":""},"2c","$K$22","$L$22"]
[34739,{"$f":"Menu!$F$29","v":"X"},{"$f":"Menu!$J$29","v":2020},{"$f":"IF(ISBLANK(INDIRECT(\"'\"&F8880&\"'!\"&G8880)),\"\",INDIRECT(\"'\"&F8880&\"'!\"&G8880))","v":""},{"$f":"IF(ISBLANK(INDIRECT(\"'\"&F8880&\"'!\"&H8880)),\"\",IFERROR(VLOOKUP(TEXT(INDIRECT(\"'\"&F8880&\"'!\"&H8880),\"0\"),Notes!$B$5:$C$100,2,FALSE),\"\"))","v":""},"2c","$K$29","$L$29"]
[34740,{"$f":"Menu!$F$29","v":"X"},{"$f":"Menu!$J$29","v":2020},{"$f":"IF(ISBLANK(INDIRECT(\"'\"&F8881&\"'!\"&G8881)),\"\",INDIRECT(\"'\"&F8881&\"'!\"&G8881))","v":""},{"$f":"IF(ISBLANK(INDIRECT(\"'\"&F8881&\"'!\"&H8881)),\"\",IFERROR(VLOOKUP(TEXT(INDIRECT(\"'\"&F8881&\"'!\"&H8881),\"0\"),Notes!$B$5:$C$100,2,FALSE),\"\"))","v":""},"2c","$K$30","$L$30"]
[34742,{"$f":"Menu!$F$29","v":"X"},{"$f":"Menu!$J$29","v":2020},{"$f":"IF(ISBLANK(INDIRECT(\"'\"&F8882&\"'!\"&G8882)),\"\",INDIRECT(\"'\"&F8882&\"'!\"&G8882))","v":""},{"$f":"IF(ISBLANK(INDIRECT(\"'\"&F8882&\"'!\"&H8882)),\"\",IFERROR(VLOOKUP(TEXT(INDIRECT(\"'\"&F8882&\"'!\"&H8882),\"0\"),Notes!$B$5:$C$100,2,FALSE),\"\"))","v":""},"2c","$K$36","$L$36"]
[34743,{"$f":"Menu!$F$29","v":"X"},{"$f":"Menu!$J$29","v":2020},{"$f":"IF(ISBLANK(INDIRECT(\"'\"&F8883&\"'!\"&G8883)),\"\",INDIRECT(\"'\"&F8883&\"'!\"&G8883))","v":""},{"$f":"IF(ISBLANK(INDIRECT(\"'\"&F8883&\"'!\"&H8883)),\"\",IFERROR(VLOOKUP(TEXT(INDIRECT(\"'\"&F8883&\"'!\"&H8883),\"0\"),Notes!$B$5:$C$100,2,FALSE),\"\"))","v":""},"2c","$K$37","$L$37"]
[34745,{"$f":"Menu!$F$29","v":"X"},{"$f":"Menu!$J$29","v":2020},{"$f":"IF(ISBLANK(INDIRECT(\"'\"&F8884&\"'!\"&G8884)),\"\",INDIRECT(\"'\"&F8884&\"'!\"&G8884))","v":""},{"$f":"IF(ISBLANK(INDIRECT(\"'\"&F8884&\"'!\"&H8884)),\"\",IFERROR(VLOOKUP(TEXT(INDIRECT(\"'\"&F8884&\"'!\"&H8884),\"0\"),Notes!$B$5:$C$100,2,FALSE),\"\"))","v":""},"2c","$K$49","$L$49"]
[34746,{"$f":"Menu!$F$29","v":"X"},{"$f":"Menu!$J$29","v":2020},{"$f":"IF(ISBLANK(INDIRECT(\"'\"&F8885&\"'!\"&G8885)),\"\",INDIRECT(\"'\"&F8885&\"'!\"&G8885))","v":""},{"$f":"IF(ISBLANK(INDIRECT(\"'\"&F8885&\"'!\"&H8885)),\"\",IFERROR(VLOOKUP(TEXT(INDIRECT(\"'\"&F8885&\"'!\"&H8885),\"0\"),Notes!$B$5:$C$100,2,FALSE),\"\"))","v":""},"2c","$K$50","$L$50"]
[34748,{"$f":"Menu!$F$29","v":"X"},{"$f":"Menu!$J$29","v":2020},{"$f":"IF(ISBLANK(INDIRECT(\"'\"&F8886&\"'!\"&G8886)),\"\",INDIRECT(\"'\"&F8886&\"'!\"&G8886))","v":""},{"$f":"IF(ISBLANK(INDIRECT(\"'\"&F8886&\"'!\"&H8886)),\"\",IFERROR(VLOOKUP(TEXT(INDIRECT(\"'\"&F8886&\"'!\"&H8886),\"0\"),Notes!$B$5:$C$100,2,FALSE),\"\"))","v":""},"2c","$K$44","$L$44"]
[34749,{"$f":"Menu!$F$29","v":"X"},{"$f":"Menu!$J$29","v":2020},{"$f":"IF(ISBLANK(INDIRECT(\"'\"&F8887&\"'!\"&G8887)),\"\",INDIRECT(\"'\"&F8887&\"'!\"&G8887))","v":""},{"$f":"IF(ISBLANK(INDIRECT(\"'\"&F8887&\"'!\"&H8887)),\"\",IFERROR(VLOOKUP(TEXT(INDIRECT(\"'\"&F8887&\"'!\"&H8887),\"0\"),Notes!$B$5:$C$100,2,FALSE),\"\"))","v":""},"2c","$K$45","$L$45"]
[34766,{"$f":"Menu!$F$29","v":"X"},{"$f":"Menu!$J$29","v":2020},{"$f":"IF(ISBLANK(INDIRECT(\"'\"&F8888&\"'!\"&G8888)),\"\",INDIRECT(\"'\"&F8888&\"'!\"&G8888))","v":""},{"$f":"IF(ISBLANK(INDIRECT(\"'\"&F8888&\"'!\"&H8888)),\"\",IFERROR(VLOOKUP(TEXT(INDIRECT(\"'\"&F8888&\"'!\"&H8888),\"0\"),Notes!$B$5:$C$100,2,FALSE),\"\"))","v":""},"2c","$Q$22","$R$22"]
[34769,{"$f":"Menu!$F$29","v":"X"},{"$f":"Menu!$J$29","v":2020},{"$f":"IF(ISBLANK(INDIRECT(\"'\"&F8889&\"'!\"&G8889)),\"\",INDIRECT(\"'\"&F8889&\"'!\"&G8889))","v":""},{"$f":"IF(ISBLANK(INDIRECT(\"'\"&F8889&\"'!\"&H8889)),\"\",IFERROR(VLOOKUP(TEXT(INDIRECT(\"'\"&F8889&\"'!\"&H8889),\"0\"),Notes!$B$5:$C$100,2,FALSE),\"\"))","v":""},"2c","$Q$29","$R$29"]
[34770,{"$f":"Menu!$F$29","v":"X"},{"$f":"Menu!$J$29","v":2020},{"$f":"IF(ISBLANK(INDIRECT(\"'\"&F8890&\"'!\"&G8890)),\"\",INDIRECT(\"'\"&F8890&\"'!\"&G8890))","v":""},{"$f":"IF(ISBLANK(INDIRECT(\"'\"&F8890&\"'!\"&H8890)),\"\",IFERROR(VLOOKUP(TEXT(INDIRECT(\"'\"&F8890&\"'!\"&H8890),\"0\"),Notes!$B$5:$C$100,2,FALSE),\"\"))","v":""},"2c","$Q$30","$R$30"]
[34772,{"$f":"Menu!$F$29","v":"X"},{"$f":"Menu!$J$29","v":2020},{"$f":"IF(ISBLANK(INDIRECT(\"'\"&F8891&\"'!\"&G8891)),\"\",INDIRECT(\"'\"&F8891&\"'!\"&G8891))","v":""},{"$f":"IF(ISBLANK(INDIRECT(\"'\"&F8891&\"'!\"&H8891)),\"\",IFERROR(VLOOKUP(TEXT(INDIRECT(\"'\"&F8891&\"'!\"&H8891),\"0\"),Notes!$B$5:$C$100,2,FALSE),\"\"))","v":""},"2c","$Q$36","$R$36"]
[34773,{"$f":"Menu!$F$29","v":"X"},{"$f":"Menu!$J$29","v":2020},{"$f":"IF(ISBLANK(INDIRECT(\"'\"&F8892&\"'!\"&G8892)),\"\",INDIRECT(\"'\"&F8892&\"'!\"&G8892))","v":""},{"$f":"IF(ISBLANK(INDIRECT(\"'\"&F8892&\"'!\"&H8892)),\"\",IFERROR(VLOOKUP(TEXT(INDIRECT(\"'\"&F8892&\"'!\"&H8892),\"0\"),Notes!$B$5:$C$100,2,FALSE),\"\"))","v":""},"2c","$Q$37","$R$37"]
[34775,{"$f":"Menu!$F$29","v":"X"},{"$f":"Menu!$J$29","v":2020},{"$f":"IF(ISBLANK(INDIRECT(\"'\"&F8893&\"'!\"&G8893)),\"\",INDIRECT(\"'\"&F8893&\"'!\"&G8893))","v":""},{"$f":"IF(ISBLANK(INDIRECT(\"'\"&F8893&\"'!\"&H8893)),\"\",IFERROR(VLOOKUP(TEXT(INDIRECT(\"'\"&F8893&\"'!\"&H8893),\"0\"),Notes!$B$5:$C$100,2,FALSE),\"\"))","v":""},"2c","$Q$49","$R$49"]
[34776,{"$f":"Menu!$F$29","v":"X"},{"$f":"Menu!$J$29","v":2020},{"$f":"IF(ISBLANK(INDIRECT(\"'\"&F8894&\"'!\"&G8894)),\"\",INDIRECT(\"'\"&F8894&\"'!\"&G8894))","v":""},{"$f":"IF(ISBLANK(INDIRECT(\"'\"&F8894&\"'!\"&H8894)),\"\",IFERROR(VLOOKUP(TEXT(INDIRECT(\"'\"&F8894&\"'!\"&H8894),\"0\"),Notes!$B$5:$C$100,2,FALSE),\"\"))","v":""},"2c","$Q$50","$R$50"]
[34778,{"$f":"Menu!$F$29","v":"X"},{"$f":"Menu!$J$29","v":2020},{"$f":"IF(ISBLANK(INDIRECT(\"'\"&F8895&\"'!\"&G8895)),\"\",INDIRECT(\"'\"&F8895&\"'!\"&G8895))","v":""},{"$f":"IF(ISBLANK(INDIRECT(\"'\"&F8895&\"'!\"&H8895)),\"\",IFERROR(VLOOKUP(TEXT(INDIRECT(\"'\"&F8895&\"'!\"&H8895),\"0\"),Notes!$B$5:$C$100,2,FALSE),\"\"))","v":""},"2c","$Q$44","$R$44"]
[34779,{"$f":"Menu!$F$29","v":"X"},{"$f":"Menu!$J$29","v":2020},{"$f":"IF(ISBLANK(INDIRECT(\"'\"&F8896&\"'!\"&G8896)),\"\",INDIRECT(\"'\"&F8896&\"'!\"&G8896))","v":""},{"$f":"IF(ISBLANK(INDIRECT(\"'\"&F8896&\"'!\"&H8896)),\"\",IFERROR(VLOOKUP(TEXT(INDIRECT(\"'\"&F8896&\"'!\"&H8896),\"0\"),Notes!$B$5:$C$100,2,FALSE),\"\"))","v":""},"2c","$Q$45","$R$45"]
[34781,{"$f":"Menu!$F$29","v":"X"},{"$f":"Menu!$J$29","v":2020},{"$f":"IF(ISBLANK(INDIRECT(\"'\"&F8897&\"'!\"&G8897)),\"\",INDIRECT(\"'\"&F8897&\"'!\"&G8897))","v":""},{"$f":"IF(ISBLANK(INDIRECT(\"'\"&F8897&\"'!\"&H8897)),\"\",IFERROR(VLOOKUP(TEXT(INDIRECT(\"'\"&F8897&\"'!\"&H8897),\"0\"),Notes!$B$5:$C$100,2,FALSE),\"\"))","v":""},"2c","$W$22","$X$22"]
[34784,{"$f":"Menu!$F$29","v":"X"},{"$f":"Menu!$J$29","v":2020},{"$f":"IF(ISBLANK(INDIRECT(\"'\"&F8898&\"'!\"&G8898)),\"\",INDIRECT(\"'\"&F8898&\"'!\"&G8898))","v":""},{"$f":"IF(ISBLANK(INDIRECT(\"'\"&F8898&\"'!\"&H8898)),\"\",IFERROR(VLOOKUP(TEXT(INDIRECT(\"'\"&F8898&\"'!\"&H8898),\"0\"),Notes!$B$5:$C$100,2,FALSE),\"\"))","v":""},"2c","$W$29",{"$f":"IF(LEN(TRIM(MID(G8898,4,10)))-LEN(SUBSTITUTE(TRIM(MID(G8898,4,10)),\"$\",\"\"))=0,\"$\"&CHAR(CODE(MID(G8898,2,1))+1)&\"$\"&TRIM(MID(G8898,4,10)),\"$\"&MID(G8898,2,1)&CHAR(CODE(MID(G8898,3,1))+1)&\"$\"&TRIM(MID(G8898,5,11)))","v":"$X$29"}]
[34785,{"$f":"Menu!$F$29","v":"X"},{"$f":"Menu!$J$29","v":2020},{"$f":"IF(ISBLANK(INDIRECT(\"'\"&F8899&\"'!\"&G8899)),\"\",INDIRECT(\"'\"&F8899&\"'!\"&G8899))","v":""},{"$f":"IF(ISBLANK(INDIRECT(\"'\"&F8899&\"'!\"&H8899)),\"\",IFERROR(VLOOKUP(TEXT(INDIRECT(\"'\"&F8899&\"'!\"&H8899),\"0\"),Notes!$B$5:$C$100,2,FALSE),\"\"))","v":""},"2c","$W$30","$X$30"]
[34787,{"$f":"Menu!$F$29","v":"X"},{"$f":"Menu!$J$29","v":2020},{"$f":"IF(ISBLANK(INDIRECT(\"'\"&F8900&\"'!\"&G8900)),\"\",INDIRECT(\"'\"&F8900&\"'!\"&G8900))","v":""},{"$f":"IF(ISBLANK(INDIRECT(\"'\"&F8900&\"'!\"&H8900)),\"\",IFERROR(VLOOKUP(TEXT(INDIRECT(\"'\"&F8900&\"'!\"&H8900),\"0\"),Notes!$B$5:$C$100,2,FALSE),\"\"))","v":""},"2c","$W$36","$X$36"]
[34788,{"$f":"Menu!$F$29","v":"X"},{"$f":"Menu!$J$29","v":2020},{"$f":"IF(ISBLANK(INDIRECT(\"'\"&F8901&\"'!\"&G8901)),\"\",INDIRECT(\"'\"&F8901&\"'!\"&G8901))","v":""},{"$f":"IF(ISBLANK(INDIRECT(\"'\"&F8901&\"'!\"&H8901)),\"\",IFERROR(VLOOKUP(TEXT(INDIRECT(\"'\"&F8901&\"'!\"&H8901),\"0\"),Notes!$B$5:$C$100,2,FALSE),\"\"))","v":""},"2c","$W$37","$X$37"]
[34790,{"$f":"Menu!$F$29","v":"X"},{"$f":"Menu!$J$29","v":2020},{"$f":"IF(ISBLANK(INDIRECT(\"'\"&F8902&\"'!\"&G8902)),\"\",INDIRECT(\"'\"&F8902&\"'!\"&G8902))","v":""},{"$f":"IF(ISBLANK(INDIRECT(\"'\"&F8902&\"'!\"&H8902)),\"\",IFERROR(VLOOKUP(TEXT(INDIRECT(\"'\"&F8902&\"'!\"&H8902),\"0\"),Notes!$B$5:$C$100,2,FALSE),\"\"))","v":""},"2c","$W$49","$X$49"]
[34791,{"$f":"Menu!$F$29","v":"X"},{"$f":"Menu!$J$29","v":2020},{"$f":"IF(ISBLANK(INDIRECT(\"'\"&F8903&\"'!\"&G8903)),\"\",INDIRECT(\"'\"&F8903&\"'!\"&G8903))","v":""},{"$f":"IF(ISBLANK(INDIRECT(\"'\"&F8903&\"'!\"&H8903)),\"\",IFERROR(VLOOKUP(TEXT(INDIRECT(\"'\"&F8903&\"'!\"&H8903),\"0\"),Notes!$B$5:$C$100,2,FALSE),\"\"))","v":""},"2c","$W$50","$X$50"]
[34793,{"$f":"Menu!$F$29","v":"X"},{"$f":"Menu!$J$29","v":2020},{"$f":"IF(ISBLANK(INDIRECT(\"'\"&F8904&\"'!\"&G8904)),\"\",INDIRECT(\"'\"&F8904&\"'!\"&G8904))","v":""},{"$f":"IF(ISBLANK(INDIRECT(\"'\"&F8904&\"'!\"&H8904)),\"\",IFERROR(VLOOKUP(TEXT(INDIRECT(\"'\"&F8904&\"'!\"&H8904),\"0\"),Notes!$B$5:$C$100,2,FALSE),\"\"))","v":""},"2c","$W$44","$X$44"]
[34794,{"$f":"Menu!$F$29","v":"X"},{"$f":"Menu!$J$29","v":2020},{"$f":"IF(ISBLANK(INDIRECT(\"'\"&F8905&\"'!\"&G8905)),\"\",INDIRECT(\"'\"&F8905&\"'!\"&G8905))","v":""},{"$f":"IF(ISBLANK(INDIRECT(\"'\"&F8905&\"'!\"&H8905)),\"\",IFERROR(VLOOKUP(TEXT(INDIRECT(\"'\"&F8905&\"'!\"&H8905),\"0\"),Notes!$B$5:$C$100,2,FALSE),\"\"))","v":""},"2c","$W$45","$X$45"]
[34811,{"$f":"Menu!$F$29","v":"X"},{"$f":"Menu!$J$29","v":2020},{"$f":"IF(ISBLANK(INDIRECT(\"'\"&F8906&\"'!\"&G8906)),\"\",INDIRECT(\"'\"&F8906&\"'!\"&G8906))","v":""},{"$f":"IF(ISBLANK(INDIRECT(\"'\"&F8906&\"'!\"&H8906)),\"\",IFERROR(VLOOKUP(TEXT(INDIRECT(\"'\"&F8906&\"'!\"&H8906),\"0\"),Notes!$B$5:$C$100,2,FALSE),\"\"))","v":""},"2d","$AC$22","$AD$22"]
[34814,{"$f":"Menu!$F$29","v":"X"},{"$f":"Menu!$J$29","v":2020},{"$f":"IF(ISBLANK(INDIRECT(\"'\"&F8907&\"'!\"&G8907)),\"\",INDIRECT(\"'\"&F8907&\"'!\"&G8907))","v":""},{"$f":"IF(ISBLANK(INDIRECT(\"'\"&F8907&\"'!\"&H8907)),\"\",IFERROR(VLOOKUP(TEXT(INDIRECT(\"'\"&F8907&\"'!\"&H8907),\"0\"),Notes!$B$5:$C$100,2,FALSE),\"\"))","v":""},"2d","$AC$29","$AD$29"]
[34815,{"$f":"Menu!$F$29","v":"X"},{"$f":"Menu!$J$29","v":2020},{"$f":"IF(ISBLANK(INDIRECT(\"'\"&F8908&\"'!\"&G8908)),\"\",INDIRECT(\"'\"&F8908&\"'!\"&G8908))","v":""},{"$f":"IF(ISBLANK(INDIRECT(\"'\"&F8908&\"'!\"&H8908)),\"\",IFERROR(VLOOKUP(TEXT(INDIRECT(\"'\"&F8908&\"'!\"&H8908),\"0\"),Notes!$B$5:$C$100,2,FALSE),\"\"))","v":""},"2d","$AC$30","$AD$30"]
[34817,{"$f":"Menu!$F$29","v":"X"},{"$f":"Menu!$J$29","v":2020},{"$f":"IF(ISBLANK(INDIRECT(\"'\"&F8909&\"'!\"&G8909)),\"\",INDIRECT(\"'\"&F8909&\"'!\"&G8909))","v":""},{"$f":"IF(ISBLANK(INDIRECT(\"'\"&F8909&\"'!\"&H8909)),\"\",IFERROR(VLOOKUP(TEXT(INDIRECT(\"'\"&F8909&\"'!\"&H8909),\"0\"),Notes!$B$5:$C$100,2,FALSE),\"\"))","v":""},"2d","$AC$36","$AD$36"]
[34818,{"$f":"Menu!$F$29","v":"X"},{"$f":"Menu!$J$29","v":2020},{"$f":"IF(ISBLANK(INDIRECT(\"'\"&F8910&\"'!\"&G8910)),\"\",INDIRECT(\"'\"&F8910&\"'!\"&G8910))","v":""},{"$f":"IF(ISBLANK(INDIRECT(\"'\"&F8910&\"'!\"&H8910)),\"\",IFERROR(VLOOKUP(TEXT(INDIRECT(\"'\"&F8910&\"'!\"&H8910),\"0\"),Notes!$B$5:$C$100,2,FALSE),\"\"))","v":""},"2d","$AC$37","$AD$37"]
[34820,{"$f":"Menu!$F$29","v":"X"},{"$f":"Menu!$J$29","v":2020},{"$f":"IF(ISBLANK(INDIRECT(\"'\"&F8911&\"'!\"&G8911)),\"\",INDIRECT(\"'\"&F8911&\"'!\"&G8911))","v":""},{"$f":"IF(ISBLANK(INDIRECT(\"'\"&F8911&\"'!\"&H8911)),\"\",IFERROR(VLOOKUP(TEXT(INDIRECT(\"'\"&F8911&\"'!\"&H8911),\"0\"),Notes!$B$5:$C$100,2,FALSE),\"\"))","v":""},"2d","$AC$49","$AD$49"]
[34821,{"$f":"Menu!$F$29","v":"X"},{"$f":"Menu!$J$29","v":2020},{"$f":"IF(ISBLANK(INDIRECT(\"'\"&F8912&\"'!\"&G8912)),\"\",INDIRECT(\"'\"&F8912&\"'!\"&G8912))","v":""},{"$f":"IF(ISBLANK(INDIRECT(\"'\"&F8912&\"'!\"&H8912)),\"\",IFERROR(VLOOKUP(TEXT(INDIRECT(\"'\"&F8912&\"'!\"&H8912),\"0\"),Notes!$B$5:$C$100,2,FALSE),\"\"))","v":""},"2d","$AC$50","$AD$50"]
[34823,{"$f":"Menu!$F$29","v":"X"},{"$f":"Menu!$J$29","v":2020},{"$f":"IF(ISBLANK(INDIRECT(\"'\"&F8913&\"'!\"&G8913)),\"\",INDIRECT(\"'\"&F8913&\"'!\"&G8913))","v":""},{"$f":"IF(ISBLANK(INDIRECT(\"'\"&F8913&\"'!\"&H8913)),\"\",IFERROR(VLOOKUP(TEXT(INDIRECT(\"'\"&F8913&\"'!\"&H8913),\"0\"),Notes!$B$5:$C$100,2,FALSE),\"\"))","v":""},"2d","$AC$44","$AD$44"]
[34824,{"$f":"Menu!$F$29","v":"X"},{"$f":"Menu!$J$29","v":2020},{"$f":"IF(ISBLANK(INDIRECT(\"'\"&F8914&\"'!\"&G8914)),\"\",INDIRECT(\"'\"&F8914&\"'!\"&G8914))","v":""},{"$f":"IF(ISBLANK(INDIRECT(\"'\"&F8914&\"'!\"&H8914)),\"\",IFERROR(VLOOKUP(TEXT(INDIRECT(\"'\"&F8914&\"'!\"&H8914),\"0\"),Notes!$B$5:$C$100,2,FALSE),\"\"))","v":""},"2d","$AC$45","$AD$45"]
[34826,{"$f":"Menu!$F$29","v":"X"},{"$f":"Menu!$J$29","v":2020},{"$f":"IF(ISBLANK(INDIRECT(\"'\"&F8915&\"'!\"&G8915)),\"\",INDIRECT(\"'\"&F8915&\"'!\"&G8915))","v":""},{"$f":"IF(ISBLANK(INDIRECT(\"'\"&F8915&\"'!\"&H8915)),\"\",IFERROR(VLOOKUP(TEXT(INDIRECT(\"'\"&F8915&\"'!\"&H8915),\"0\"),Notes!$B$5:$C$100,2,FALSE),\"\"))","v":""},"2d","$E$22","$F$22"]
[34829,{"$f":"Menu!$F$29","v":"X"},{"$f":"Menu!$J$29","v":2020},{"$f":"IF(ISBLANK(INDIRECT(\"'\"&F8916&\"'!\"&G8916)),\"\",INDIRECT(\"'\"&F8916&\"'!\"&G8916))","v":""},{"$f":"IF(ISBLANK(INDIRECT(\"'\"&F8916&\"'!\"&H8916)),\"\",IFERROR(VLOOKUP(TEXT(INDIRECT(\"'\"&F8916&\"'!\"&H8916),\"0\"),Notes!$B$5:$C$100,2,FALSE),\"\"))","v":""},"2d","$E$29","$F$29"]
[34830,{"$f":"Menu!$F$29","v":"X"},{"$f":"Menu!$J$29","v":2020},{"$f":"IF(ISBLANK(INDIRECT(\"'\"&F8917&\"'!\"&G8917)),\"\",INDIRECT(\"'\"&F8917&\"'!\"&G8917))","v":""},{"$f":"IF(ISBLANK(INDIRECT(\"'\"&F8917&\"'!\"&H8917)),\"\",IFERROR(VLOOKUP(TEXT(INDIRECT(\"'\"&F8917&\"'!\"&H8917),\"0\"),Notes!$B$5:$C$100,2,FALSE),\"\"))","v":""},"2d","$E$30","$F$30"]
[34832,{"$f":"Menu!$F$29","v":"X"},{"$f":"Menu!$J$29","v":2020},{"$f":"IF(ISBLANK(INDIRECT(\"'\"&F8918&\"'!\"&G8918)),\"\",INDIRECT(\"'\"&F8918&\"'!\"&G8918))","v":""},{"$f":"IF(ISBLANK(INDIRECT(\"'\"&F8918&\"'!\"&H8918)),\"\",IFERROR(VLOOKUP(TEXT(INDIRECT(\"'\"&F8918&\"'!\"&H8918),\"0\"),Notes!$B$5:$C$100,2,FALSE),\"\"))","v":""},"2d","$E$36","$F$36"]
[34833,{"$f":"Menu!$F$29","v":"X"},{"$f":"Menu!$J$29","v":2020},{"$f":"IF(ISBLANK(INDIRECT(\"'\"&F8919&\"'!\"&G8919)),\"\",INDIRECT(\"'\"&F8919&\"'!\"&G8919))","v":""},{"$f":"IF(ISBLANK(INDIRECT(\"'\"&F8919&\"'!\"&H8919)),\"\",IFERROR(VLOOKUP(TEXT(INDIRECT(\"'\"&F8919&\"'!\"&H8919),\"0\"),Notes!$B$5:$C$100,2,FALSE),\"\"))","v":""},"2d","$E$37","$F$37"]
[34835,{"$f":"Menu!$F$29","v":"X"},{"$f":"Menu!$J$29","v":2020},{"$f":"IF(ISBLANK(INDIRECT(\"'\"&F8920&\"'!\"&G8920)),\"\",INDIRECT(\"'\"&F8920&\"'!\"&G8920))","v":""},{"$f":"IF(ISBLANK(INDIRECT(\"'\"&F8920&\"'!\"&H8920)),\"\",IFERROR(VLOOKUP(TEXT(INDIRECT(\"'\"&F8920&\"'!\"&H8920),\"0\"),Notes!$B$5:$C$100,2,FALSE),\"\"))","v":""},"2d","$E$49","$F$49"]
[34836,{"$f":"Menu!$F$29","v":"X"},{"$f":"Menu!$J$29","v":2020},{"$f":"IF(ISBLANK(INDIRECT(\"'\"&F8921&\"'!\"&G8921)),\"\",INDIRECT(\"'\"&F8921&\"'!\"&G8921))","v":""},{"$f":"IF(ISBLANK(INDIRECT(\"'\"&F8921&\"'!\"&H8921)),\"\",IFERROR(VLOOKUP(TEXT(INDIRECT(\"'\"&F8921&\"'!\"&H8921),\"0\"),Notes!$B$5:$C$100,2,FALSE),\"\"))","v":""},"2d","$E$50","$F$50"]
[34838,{"$f":"Menu!$F$29","v":"X"},{"$f":"Menu!$J$29","v":2020},{"$f":"IF(ISBLANK(INDIRECT(\"'\"&F8922&\"'!\"&G8922)),\"\",INDIRECT(\"'\"&F8922&\"'!\"&G8922))","v":""},{"$f":"IF(ISBLANK(INDIRECT(\"'\"&F8922&\"'!\"&H8922)),\"\",IFERROR(VLOOKUP(TEXT(INDIRECT(\"'\"&F8922&\"'!\"&H8922),\"0\"),Notes!$B$5:$C$100,2,FALSE),\"\"))","v":""},"2d","$E$44","$F$44"]
[34839,{"$f":"Menu!$F$29","v":"X"},{"$f":"Menu!$J$29","v":2020},{"$f":"IF(ISBLANK(INDIRECT(\"'\"&F8923&\"'!\"&G8923)),\"\",INDIRECT(\"'\"&F8923&\"'!\"&G8923))","v":""},{"$f":"IF(ISBLANK(INDIRECT(\"'\"&F8923&\"'!\"&H8923)),\"\",IFERROR(VLOOKUP(TEXT(INDIRECT(\"'\"&F8923&\"'!\"&H8923),\"0\"),Notes!$B$5:$C$100,2,FALSE),\"\"))","v":""},"2d","$E$45","$F$45"]
[34841,{"$f":"Menu!$F$29","v":"X"},{"$f":"Menu!$J$29","v":2020},{"$f":"IF(ISBLANK(INDIRECT(\"'\"&F8924&\"'!\"&G8924)),\"\",INDIRECT(\"'\"&F8924&\"'!\"&G8924))","v":""},{"$f":"IF(ISBLANK(INDIRECT(\"'\"&F8924&\"'!\"&H8924)),\"\",IFERROR(VLOOKUP(TEXT(INDIRECT(\"'\"&F8924&\"'!\"&H8924),\"0\"),Notes!$B$5:$C$100,2,FALSE),\"\"))","v":""},"2d","$Q$22","$R$22"]
[34844,{"$f":"Menu!$F$29","v":"X"},{"$f":"Menu!$J$29","v":2020},{"$f":"IF(ISBLANK(INDIRECT(\"'\"&F8925&\"'!\"&G8925)),\"\",INDIRECT(\"'\"&F8925&\"'!\"&G8925))","v":""},{"$f":"IF(ISBLANK(INDIRECT(\"'\"&F8925&\"'!\"&H8925)),\"\",IFERROR(VLOOKUP(TEXT(INDIRECT(\"'\"&F8925&\"'!\"&H8925),\"0\"),Notes!$B$5:$C$100,2,FALSE),\"\"))","v":""},"2d","$Q$29","$R$29"]
[34845,{"$f":"Menu!$F$29","v":"X"},{"$f":"Menu!$J$29","v":2020},{"$f":"IF(ISBLANK(INDIRECT(\"'\"&F8926&\"'!\"&G8926)),\"\",INDIRECT(\"'\"&F8926&\"'!\"&G8926))","v":""},{"$f":"IF(ISBLANK(INDIRECT(\"'\"&F8926&\"'!\"&H8926)),\"\",IFERROR(VLOOKUP(TEXT(INDIRECT(\"'\"&F8926&\"'!\"&H8926),\"0\"),Notes!$B$5:$C$100,2,FALSE),\"\"))","v":""},"2d","$Q$30","$R$30"]
[34847,{"$f":"Menu!$F$29","v":"X"},{"$f":"Menu!$J$29","v":2020},{"$f":"IF(ISBLANK(INDIRECT(\"'\"&F8927&\"'!\"&G8927)),\"\",INDIRECT(\"'\"&F8927&\"'!\"&G8927))","v":""},{"$f":"IF(ISBLANK(INDIRECT(\"'\"&F8927&\"'!\"&H8927)),\"\",IFERROR(VLOOKUP(TEXT(INDIRECT(\"'\"&F8927&\"'!\"&H8927),\"0\"),Notes!$B$5:$C$100,2,FALSE),\"\"))","v":""},"2d","$Q$36","$R$36"]
[34848,{"$f":"Menu!$F$29","v":"X"},{"$f":"Menu!$J$29","v":2020},{"$f":"IF(ISBLANK(INDIRECT(\"'\"&F8928&\"'!\"&G8928)),\"\",INDIRECT(\"'\"&F8928&\"'!\"&G8928))","v":""},{"$f":"IF(ISBLANK(INDIRECT(\"'\"&F8928&\"'!\"&H8928)),\"\",IFERROR(VLOOKUP(TEXT(INDIRECT(\"'\"&F8928&\"'!\"&H8928),\"0\"),Notes!$B$5:$C$100,2,FALSE),\"\"))","v":""},"2d","$Q$37","$R$37"]
[34850,{"$f":"Menu!$F$29","v":"X"},{"$f":"Menu!$J$29","v":2020},{"$f":"IF(ISBLANK(INDIRECT(\"'\"&F8929&\"'!\"&G8929)),\"\",INDIRECT(\"'\"&F8929&\"'!\"&G8929))","v":""},{"$f":"IF(ISBLANK(INDIRECT(\"'\"&F8929&\"'!\"&H8929)),\"\",IFERROR(VLOOKUP(TEXT(INDIRECT(\"'\"&F8929&\"'!\"&H8929),\"0\"),Notes!$B$5:$C$100,2,FALSE),\"\"))","v":""},"2d","$Q$49","$R$49"]
[34851,{"$f":"Menu!$F$29","v":"X"},{"$f":"Menu!$J$29","v":2020},{"$f":"IF(ISBLANK(INDIRECT(\"'\"&F8930&\"'!\"&G8930)),\"\",INDIRECT(\"'\"&F8930&\"'!\"&G8930))","v":""},{"$f":"IF(ISBLANK(INDIRECT(\"'\"&F8930&\"'!\"&H8930)),\"\",IFERROR(VLOOKUP(TEXT(INDIRECT(\"'\"&F8930&\"'!\"&H8930),\"0\"),Notes!$B$5:$C$100,2,FALSE),\"\"))","v":""},"2d","$Q$50","$R$50"]
[34853,{"$f":"Menu!$F$29","v":"X"},{"$f":"Menu!$J$29","v":2020},{"$f":"IF(ISBLANK(INDIRECT(\"'\"&F8931&\"'!\"&G8931)),\"\",INDIRECT(\"'\"&F8931&\"'!\"&G8931))","v":""},{"$f":"IF(ISBLANK(INDIRECT(\"'\"&F8931&\"'!\"&H8931)),\"\",IFERROR(VLOOKUP(TEXT(INDIRECT(\"'\"&F8931&\"'!\"&H8931),\"0\"),Notes!$B$5:$C$100,2,FALSE),\"\"))","v":""},"2d","$Q$44","$R$44"]
[34854,{"$f":"Menu!$F$29","v":"X"},{"$f":"Menu!$J$29","v":2020},{"$f":"IF(ISBLANK(INDIRECT(\"'\"&F8932&\"'!\"&G8932)),\"\",INDIRECT(\"'\"&F8932&\"'!\"&G8932))","v":""},{"$f":"IF(ISBLANK(INDIRECT(\"'\"&F8932&\"'!\"&H8932)),\"\",IFERROR(VLOOKUP(TEXT(INDIRECT(\"'\"&F8932&\"'!\"&H8932),\"0\"),Notes!$B$5:$C$100,2,FALSE),\"\"))","v":""},"2d","$Q$45","$R$45"]
[34856,{"$f":"Menu!$F$29","v":"X"},{"$f":"Menu!$J$29","v":2020},{"$f":"IF(ISBLANK(INDIRECT(\"'\"&F8933&\"'!\"&G8933)),\"\",INDIRECT(\"'\"&F8933&\"'!\"&G8933))","v":""},{"$f":"IF(ISBLANK(INDIRECT(\"'\"&F8933&\"'!\"&H8933)),\"\",IFERROR(VLOOKUP(TEXT(INDIRECT(\"'\"&F8933&\"'!\"&H8933),\"0\"),Notes!$B$5:$C$100,2,FALSE),\"\"))","v":""},"2d","$K$22","$L$22"]
[34859,{"$f":"Menu!$F$29","v":"X"},{"$f":"Menu!$J$29","v":2020},{"$f":"IF(ISBLANK(INDIRECT(\"'\"&F8934&\"'!\"&G8934)),\"\",INDIRECT(\"'\"&F8934&\"'!\"&G8934))","v":""},{"$f":"IF(ISBLANK(INDIRECT(\"'\"&F8934&\"'!\"&H8934)),\"\",IFERROR(VLOOKUP(TEXT(INDIRECT(\"'\"&F8934&\"'!\"&H8934),\"0\"),Notes!$B$5:$C$100,2,FALSE),\"\"))","v":""},"2d","$K$29","$L$29"]
[34860,{"$f":"Menu!$F$29","v":"X"},{"$f":"Menu!$J$29","v":2020},{"$f":"IF(ISBLANK(INDIRECT(\"'\"&F8935&\"'!\"&G8935)),\"\",INDIRECT(\"'\"&F8935&\"'!\"&G8935))","v":""},{"$f":"IF(ISBLANK(INDIRECT(\"'\"&F8935&\"'!\"&H8935)),\"\",IFERROR(VLOOKUP(TEXT(INDIRECT(\"'\"&F8935&\"'!\"&H8935),\"0\"),Notes!$B$5:$C$100,2,FALSE),\"\"))","v":""},"2d","$K$30","$L$30"]
[34862,{"$f":"Menu!$F$29","v":"X"},{"$f":"Menu!$J$29","v":2020},{"$f":"IF(ISBLANK(INDIRECT(\"'\"&F8936&\"'!\"&G8936)),\"\",INDIRECT(\"'\"&F8936&\"'!\"&G8936))","v":""},{"$f":"IF(ISBLANK(INDIRECT(\"'\"&F8936&\"'!\"&H8936)),\"\",IFERROR(VLOOKUP(TEXT(INDIRECT(\"'\"&F8936&\"'!\"&H8936),\"0\"),Notes!$B$5:$C$100,2,FALSE),\"\"))","v":""},"2d","$K$36","$L$36"]
[34863,{"$f":"Menu!$F$29","v":"X"},{"$f":"Menu!$J$29","v":2020},{"$f":"IF(ISBLANK(INDIRECT(\"'\"&F8937&\"'!\"&G8937)),\"\",INDIRECT(\"'\"&F8937&\"'!\"&G8937))","v":""},{"$f":"IF(ISBLANK(INDIRECT(\"'\"&F8937&\"'!\"&H8937)),\"\",IFERROR(VLOOKUP(TEXT(INDIRECT(\"'\"&F8937&\"'!\"&H8937),\"0\"),Notes!$B$5:$C$100,2,FALSE),\"\"))","v":""},"2d","$K$37","$L$37"]
[34865,{"$f":"Menu!$F$29","v":"X"},{"$f":"Menu!$J$29","v":2020},{"$f":"IF(ISBLANK(INDIRECT(\"'\"&F8938&\"'!\"&G8938)),\"\",INDIRECT(\"'\"&F8938&\"'!\"&G8938))","v":""},{"$f":"IF(ISBLANK(INDIRECT(\"'\"&F8938&\"'!\"&H8938)),\"\",IFERROR(VLOOKUP(TEXT(INDIRECT(\"'\"&F8938&\"'!\"&H8938),\"0\"),Notes!$B$5:$C$100,2,FALSE),\"\"))","v":""},"2d","$K$49","$L$49"]
[34866,{"$f":"Menu!$F$29","v":"X"},{"$f":"Menu!$J$29","v":2020},{"$f":"IF(ISBLANK(INDIRECT(\"'\"&F8939&\"'!\"&G8939)),\"\",INDIRECT(\"'\"&F8939&\"'!\"&G8939))","v":""},{"$f":"IF(ISBLANK(INDIRECT(\"'\"&F8939&\"'!\"&H8939)),\"\",IFERROR(VLOOKUP(TEXT(INDIRECT(\"'\"&F8939&\"'!\"&H8939),\"0\"),Notes!$B$5:$C$100,2,FALSE),\"\"))","v":""},"2d","$K$50","$L$50"]
[34868,{"$f":"Menu!$F$29","v":"X"},{"$f":"Menu!$J$29","v":2020},{"$f":"IF(ISBLANK(INDIRECT(\"'\"&F8940&\"'!\"&G8940)),\"\",INDIRECT(\"'\"&F8940&\"'!\"&G8940))","v":""},{"$f":"IF(ISBLANK(INDIRECT(\"'\"&F8940&\"'!\"&H8940)),\"\",IFERROR(VLOOKUP(TEXT(INDIRECT(\"'\"&F8940&\"'!\"&H8940),\"0\"),Notes!$B$5:$C$100,2,FALSE),\"\"))","v":""},"2d","$K$44","$L$44"]
[34869,{"$f":"Menu!$F$29","v":"X"},{"$f":"Menu!$J$29","v":2020},{"$f":"IF(ISBLANK(INDIRECT(\"'\"&F8941&\"'!\"&G8941)),\"\",INDIRECT(\"'\"&F8941&\"'!\"&G8941))","v":""},{"$f":"IF(ISBLANK(INDIRECT(\"'\"&F8941&\"'!\"&H8941)),\"\",IFERROR(VLOOKUP(TEXT(INDIRECT(\"'\"&F8941&\"'!\"&H8941),\"0\"),Notes!$B$5:$C$100,2,FALSE),\"\"))","v":""},"2d","$K$45","$L$45"]
[34871,{"$f":"Menu!$F$29","v":"X"},{"$f":"Menu!$J$29","v":2020},{"$f":"IF(ISBLANK(INDIRECT(\"'\"&F8942&\"'!\"&G8942)),\"\",INDIRECT(\"'\"&F8942&\"'!\"&G8942))","v":""},{"$f":"IF(ISBLANK(INDIRECT(\"'\"&F8942&\"'!\"&H8942)),\"\",IFERROR(VLOOKUP(TEXT(INDIRECT(\"'\"&F8942&\"'!\"&H8942),\"0\"),Notes!$B$5:$C$100,2,FALSE),\"\"))","v":""},"2d","$W$22","$X$22"]
[34874,{"$f":"Menu!$F$29","v":"X"},{"$f":"Menu!$J$29","v":2020},{"$f":"IF(ISBLANK(INDIRECT(\"'\"&F8943&\"'!\"&G8943)),\"\",INDIRECT(\"'\"&F8943&\"'!\"&G8943))","v":""},{"$f":"IF(ISBLANK(INDIRECT(\"'\"&F8943&\"'!\"&H8943)),\"\",IFERROR(VLOOKUP(TEXT(INDIRECT(\"'\"&F8943&\"'!\"&H8943),\"0\"),Notes!$B$5:$C$100,2,FALSE),\"\"))","v":""},"2d","$W$29","$X$29"]
[34875,{"$f":"Menu!$F$29","v":"X"},{"$f":"Menu!$J$29","v":2020},{"$f":"IF(ISBLANK(INDIRECT(\"'\"&F8944&\"'!\"&G8944)),\"\",INDIRECT(\"'\"&F8944&\"'!\"&G8944))","v":""},{"$f":"IF(ISBLANK(INDIRECT(\"'\"&F8944&\"'!\"&H8944)),\"\",IFERROR(VLOOKUP(TEXT(INDIRECT(\"'\"&F8944&\"'!\"&H8944),\"0\"),Notes!$B$5:$C$100,2,FALSE),\"\"))","v":""},"2d","$W$30","$X$30"]
[34877,{"$f":"Menu!$F$29","v":"X"},{"$f":"Menu!$J$29","v":2020},{"$f":"IF(ISBLANK(INDIRECT(\"'\"&F8945&\"'!\"&G8945)),\"\",INDIRECT(\"'\"&F8945&\"'!\"&G8945))","v":""},{"$f":"IF(ISBLANK(INDIRECT(\"'\"&F8945&\"'!\"&H8945)),\"\",IFERROR(VLOOKUP(TEXT(INDIRECT(\"'\"&F8945&\"'!\"&H8945),\"0\"),Notes!$B$5:$C$100,2,FALSE),\"\"))","v":""},"2d","$W$36","$X$36"]
[34878,{"$f":"Menu!$F$29","v":"X"},{"$f":"Menu!$J$29","v":2020},{"$f":"IF(ISBLANK(INDIRECT(\"'\"&F8946&\"'!\"&G8946)),\"\",INDIRECT(\"'\"&F8946&\"'!\"&G8946))","v":""},{"$f":"IF(ISBLANK(INDIRECT(\"'\"&F8946&\"'!\"&H8946)),\"\",IFERROR(VLOOKUP(TEXT(INDIRECT(\"'\"&F8946&\"'!\"&H8946),\"0\"),Notes!$B$5:$C$100,2,FALSE),\"\"))","v":""},"2d","$W$37","$X$37"]
[34880,{"$f":"Menu!$F$29","v":"X"},{"$f":"Menu!$J$29","v":2020},{"$f":"IF(ISBLANK(INDIRECT(\"'\"&F8947&\"'!\"&G8947)),\"\",INDIRECT(\"'\"&F8947&\"'!\"&G8947))","v":""},{"$f":"IF(ISBLANK(INDIRECT(\"'\"&F8947&\"'!\"&H8947)),\"\",IFERROR(VLOOKUP(TEXT(INDIRECT(\"'\"&F8947&\"'!\"&H8947),\"0\"),Notes!$B$5:$C$100,2,FALSE),\"\"))","v":""},"2d","$W$49","$X$49"]
[34881,{"$f":"Menu!$F$29","v":"X"},{"$f":"Menu!$J$29","v":2020},{"$f":"IF(ISBLANK(INDIRECT(\"'\"&F8948&\"'!\"&G8948)),\"\",INDIRECT(\"'\"&F8948&\"'!\"&G8948))","v":""},{"$f":"IF(ISBLANK(INDIRECT(\"'\"&F8948&\"'!\"&H8948)),\"\",IFERROR(VLOOKUP(TEXT(INDIRECT(\"'\"&F8948&\"'!\"&H8948),\"0\"),Notes!$B$5:$C$100,2,FALSE),\"\"))","v":""},"2d","$W$50","$X$50"]
[34883,{"$f":"Menu!$F$29","v":"X"},{"$f":"Menu!$J$29","v":2020},{"$f":"IF(ISBLANK(INDIRECT(\"'\"&F8949&\"'!\"&G8949)),\"\",INDIRECT(\"'\"&F8949&\"'!\"&G8949))","v":""},{"$f":"IF(ISBLANK(INDIRECT(\"'\"&F8949&\"'!\"&H8949)),\"\",IFERROR(VLOOKUP(TEXT(INDIRECT(\"'\"&F8949&\"'!\"&H8949),\"0\"),Notes!$B$5:$C$100,2,FALSE),\"\"))","v":""},"2d","$W$44","$X$44"]
[34884,{"$f":"Menu!$F$29","v":"X"},{"$f":"Menu!$J$29","v":2020},{"$f":"IF(ISBLANK(INDIRECT(\"'\"&F8950&\"'!\"&G8950)),\"\",INDIRECT(\"'\"&F8950&\"'!\"&G8950))","v":""},{"$f":"IF(ISBLANK(INDIRECT(\"'\"&F8950&\"'!\"&H8950)),\"\",IFERROR(VLOOKUP(TEXT(INDIRECT(\"'\"&F8950&\"'!\"&H8950),\"0\"),Notes!$B$5:$C$100,2,FALSE),\"\"))","v":""},"2d","$W$45","$X$45"]
[34886,{"$f":"Menu!$F$29","v":"X"},{"$f":"Menu!$J$29","v":2020},{"$f":"IF(ISBLANK(INDIRECT(\"'\"&F8951&\"'!\"&G8951)),\"\",INDIRECT(\"'\"&F8951&\"'!\"&G8951))","v":""},{"$f":"IF(ISBLANK(INDIRECT(\"'\"&F8951&\"'!\"&H8951)),\"\",IFERROR(VLOOKUP(TEXT(INDIRECT(\"'\"&F8951&\"'!\"&H8951),\"0\"),Notes!$B$5:$C$100,2,FALSE),\"\"))","v":""},"2b","$E$22","$F$22"]
[34889,{"$f":"Menu!$F$29","v":"X"},{"$f":"Menu!$J$29","v":2020},{"$f":"IF(ISBLANK(INDIRECT(\"'\"&F8952&\"'!\"&G8952)),\"\",INDIRECT(\"'\"&F8952&\"'!\"&G8952))","v":""},{"$f":"IF(ISBLANK(INDIRECT(\"'\"&F8952&\"'!\"&H8952)),\"\",IFERROR(VLOOKUP(TEXT(INDIRECT(\"'\"&F8952&\"'!\"&H8952),\"0\"),Notes!$B$5:$C$100,2,FALSE),\"\"))","v":""},"2b","$E$29","$F$29"]
[34890,{"$f":"Menu!$F$29","v":"X"},{"$f":"Menu!$J$29","v":2020},{"$f":"IF(ISBLANK(INDIRECT(\"'\"&F8953&\"'!\"&G8953)),\"\",INDIRECT(\"'\"&F8953&\"'!\"&G8953))","v":""},{"$f":"IF(ISBLANK(INDIRECT(\"'\"&F8953&\"'!\"&H8953)),\"\",IFERROR(VLOOKUP(TEXT(INDIRECT(\"'\"&F8953&\"'!\"&H8953),\"0\"),Notes!$B$5:$C$100,2,FALSE),\"\"))","v":""},"2b","$E$30","$F$30"]
[34892,{"$f":"Menu!$F$29","v":"X"},{"$f":"Menu!$J$29","v":2020},{"$f":"IF(ISBLANK(INDIRECT(\"'\"&F8954&\"'!\"&G8954)),\"\",INDIRECT(\"'\"&F8954&\"'!\"&G8954))","v":""},{"$f":"IF(ISBLANK(INDIRECT(\"'\"&F8954&\"'!\"&H8954)),\"\",IFERROR(VLOOKUP(TEXT(INDIRECT(\"'\"&F8954&\"'!\"&H8954),\"0\"),Notes!$B$5:$C$100,2,FALSE),\"\"))","v":""},"2b","$E$36","$F$36"]
[34893,{"$f":"Menu!$F$29","v":"X"},{"$f":"Menu!$J$29","v":2020},{"$f":"IF(ISBLANK(INDIRECT(\"'\"&F8955&\"'!\"&G8955)),\"\",INDIRECT(\"'\"&F8955&\"'!\"&G8955))","v":""},{"$f":"IF(ISBLANK(INDIRECT(\"'\"&F8955&\"'!\"&H8955)),\"\",IFERROR(VLOOKUP(TEXT(INDIRECT(\"'\"&F8955&\"'!\"&H8955),\"0\"),Notes!$B$5:$C$100,2,FALSE),\"\"))","v":""},"2b","$E$37","$F$37"]
[34895,{"$f":"Menu!$F$29","v":"X"},{"$f":"Menu!$J$29","v":2020},{"$f":"IF(ISBLANK(INDIRECT(\"'\"&F8956&\"'!\"&G8956)),\"\",INDIRECT(\"'\"&F8956&\"'!\"&G8956))","v":""},{"$f":"IF(ISBLANK(INDIRECT(\"'\"&F8956&\"'!\"&H8956)),\"\",IFERROR(VLOOKUP(TEXT(INDIRECT(\"'\"&F8956&\"'!\"&H8956),\"0\"),Notes!$B$5:$C$100,2,FALSE),\"\"))","v":""},"2b","$E$49","$F$49"]
[34896,{"$f":"Menu!$F$29","v":"X"},{"$f":"Menu!$J$29","v":2020},{"$f":"IF(ISBLANK(INDIRECT(\"'\"&F8957&\"'!\"&G8957)),\"\",INDIRECT(\"'\"&F8957&\"'!\"&G8957))","v":""},{"$f":"IF(ISBLANK(INDIRECT(\"'\"&F8957&\"'!\"&H8957)),\"\",IFERROR(VLOOKUP(TEXT(INDIRECT(\"'\"&F8957&\"'!\"&H8957),\"0\"),Notes!$B$5:$C$100,2,FALSE),\"\"))","v":""},"2b","$E$50","$F$50"]
[34898,{"$f":"Menu!$F$29","v":"X"},{"$f":"Menu!$J$29","v":2020},{"$f":"IF(ISBLANK(INDIRECT(\"'\"&F8958&\"'!\"&G8958)),\"\",INDIRECT(\"'\"&F8958&\"'!\"&G8958))","v":""},{"$f":"IF(ISBLANK(INDIRECT(\"'\"&F8958&\"'!\"&H8958)),\"\",IFERROR(VLOOKUP(TEXT(INDIRECT(\"'\"&F8958&\"'!\"&H8958),\"0\"),Notes!$B$5:$C$100,2,FALSE),\"\"))","v":""},"2b","$E$44","$F$44"]
[34899,{"$f":"Menu!$F$29","v":"X"},{"$f":"Menu!$J$29","v":2020},{"$f":"IF(ISBLANK(INDIRECT(\"'\"&F8959&\"'!\"&G8959)),\"\",INDIRECT(\"'\"&F8959&\"'!\"&G8959))","v":""},{"$f":"IF(ISBLANK(INDIRECT(\"'\"&F8959&\"'!\"&H8959)),\"\",IFERROR(VLOOKUP(TEXT(INDIRECT(\"'\"&F8959&\"'!\"&H8959),\"0\"),Notes!$B$5:$C$100,2,FALSE),\"\"))","v":""},"2b","$E$45","$F$45"]
[34901,{"$f":"Menu!$F$29","v":"X"},{"$f":"Menu!$J$29","v":2020},{"$f":"IF(ISBLANK(INDIRECT(\"'\"&F8960&\"'!\"&G8960)),\"\",INDIRECT(\"'\"&F8960&\"'!\"&G8960))","v":""},{"$f":"IF(ISBLANK(INDIRECT(\"'\"&F8960&\"'!\"&H8960)),\"\",IFERROR(VLOOKUP(TEXT(INDIRECT(\"'\"&F8960&\"'!\"&H8960),\"0\"),Notes!$B$5:$C$100,2,FALSE),\"\"))","v":""},"2b","$K$22","$L$22"]
[34904,{"$f":"Menu!$F$29","v":"X"},{"$f":"Menu!$J$29","v":2020},{"$f":"IF(ISBLANK(INDIRECT(\"'\"&F8961&\"'!\"&G8961)),\"\",INDIRECT(\"'\"&F8961&\"'!\"&G8961))","v":""},{"$f":"IF(ISBLANK(INDIRECT(\"'\"&F8961&\"'!\"&H8961)),\"\",IFERROR(VLOOKUP(TEXT(INDIRECT(\"'\"&F8961&\"'!\"&H8961),\"0\"),Notes!$B$5:$C$100,2,FALSE),\"\"))","v":""},"2b","$K$29","$L$29"]
[34905,{"$f":"Menu!$F$29","v":"X"},{"$f":"Menu!$J$29","v":2020},{"$f":"IF(ISBLANK(INDIRECT(\"'\"&F8962&\"'!\"&G8962)),\"\",INDIRECT(\"'\"&F8962&\"'!\"&G8962))","v":""},{"$f":"IF(ISBLANK(INDIRECT(\"'\"&F8962&\"'!\"&H8962)),\"\",IFERROR(VLOOKUP(TEXT(INDIRECT(\"'\"&F8962&\"'!\"&H8962),\"0\"),Notes!$B$5:$C$100,2,FALSE),\"\"))","v":""},"2b","$K$30",{"$f":"IF(LEN(TRIM(MID(G8962,4,10)))-LEN(SUBSTITUTE(TRIM(MID(G8962,4,10)),\"$\",\"\"))=0,\"$\"&CHAR(CODE(MID(G8962,2,1))+1)&\"$\"&TRIM(MID(G8962,4,10)),\"$\"&MID(G8962,2,1)&CHAR(CODE(MID(G8962,3,1))+1)&\"$\"&TRIM(MID(G8962,5,11)))","v":"$L$30"}]
[34907,{"$f":"Menu!$F$29","v":"X"},{"$f":"Menu!$J$29","v":2020},{"$f":"IF(ISBLANK(INDIRECT(\"'\"&F8963&\"'!\"&G8963)),\"\",INDIRECT(\"'\"&F8963&\"'!\"&G8963))","v":""},{"$f":"IF(ISBLANK(INDIRECT(\"'\"&F8963&\"'!\"&H8963)),\"\",IFERROR(VLOOKUP(TEXT(INDIRECT(\"'\"&F8963&\"'!\"&H8963),\"0\"),Notes!$B$5:$C$100,2,FALSE),\"\"))","v":""},"2b","$K$36","$L$36"]
[34908,{"$f":"Menu!$F$29","v":"X"},{"$f":"Menu!$J$29","v":2020},{"$f":"IF(ISBLANK(INDIRECT(\"'\"&F8964&\"'!\"&G8964)),\"\",INDIRECT(\"'\"&F8964&\"'!\"&G8964))","v":""},{"$f":"IF(ISBLANK(INDIRECT(\"'\"&F8964&\"'!\"&H8964)),\"\",IFERROR(VLOOKUP(TEXT(INDIRECT(\"'\"&F8964&\"'!\"&H8964),\"0\"),Notes!$B$5:$C$100,2,FALSE),\"\"))","v":""},"2b","$K$37","$L$37"]
[34910,{"$f":"Menu!$F$29","v":"X"},{"$f":"Menu!$J$29","v":2020},{"$f":"IF(ISBLANK(INDIRECT(\"'\"&F8965&\"'!\"&G8965)),\"\",INDIRECT(\"'\"&F8965&\"'!\"&G8965))","v":""},{"$f":"IF(ISBLANK(INDIRECT(\"'\"&F8965&\"'!\"&H8965)),\"\",IFERROR(VLOOKUP(TEXT(INDIRECT(\"'\"&F8965&\"'!\"&H8965),\"0\"),Notes!$B$5:$C$100,2,FALSE),\"\"))","v":""},"2b","$K$49","$L$49"]
[34911,{"$f":"Menu!$F$29","v":"X"},{"$f":"Menu!$J$29","v":2020},{"$f":"IF(ISBLANK(INDIRECT(\"'\"&F8966&\"'!\"&G8966)),\"\",INDIRECT(\"'\"&F8966&\"'!\"&G8966))","v":""},{"$f":"IF(ISBLANK(INDIRECT(\"'\"&F8966&\"'!\"&H8966)),\"\",IFERROR(VLOOKUP(TEXT(INDIRECT(\"'\"&F8966&\"'!\"&H8966),\"0\"),Notes!$B$5:$C$100,2,FALSE),\"\"))","v":""},"2b","$K$50","$L$50"]
[34913,{"$f":"Menu!$F$29","v":"X"},{"$f":"Menu!$J$29","v":2020},{"$f":"IF(ISBLANK(INDIRECT(\"'\"&F8967&\"'!\"&G8967)),\"\",INDIRECT(\"'\"&F8967&\"'!\"&G8967))","v":""},{"$f":"IF(ISBLANK(INDIRECT(\"'\"&F8967&\"'!\"&H8967)),\"\",IFERROR(VLOOKUP(TEXT(INDIRECT(\"'\"&F8967&\"'!\"&H8967),\"0\"),Notes!$B$5:$C$100,2,FALSE),\"\"))","v":""},"2b","$K$44","$L$44"]
[34914,{"$f":"Menu!$F$29","v":"X"},{"$f":"Menu!$J$29","v":2020},{"$f":"IF(ISBLANK(INDIRECT(\"'\"&F8968&\"'!\"&G8968)),\"\",INDIRECT(\"'\"&F8968&\"'!\"&G8968))","v":""},{"$f":"IF(ISBLANK(INDIRECT(\"'\"&F8968&\"'!\"&H8968)),\"\",IFERROR(VLOOKUP(TEXT(INDIRECT(\"'\"&F8968&\"'!\"&H8968),\"0\"),Notes!$B$5:$C$100,2,FALSE),\"\"))","v":""},"2b","$K$45","$L$45"]
[34916,{"$f":"Menu!$F$29","v":"X"},{"$f":"Menu!$J$29","v":2020},{"$f":"IF(ISBLANK(INDIRECT(\"'\"&F8969&\"'!\"&G8969)),\"\",INDIRECT(\"'\"&F8969&\"'!\"&G8969))","v":""},{"$f":"IF(ISBLANK(INDIRECT(\"'\"&F8969&\"'!\"&H8969)),\"\",IFERROR(VLOOKUP(TEXT(INDIRECT(\"'\"&F8969&\"'!\"&H8969),\"0\"),Notes!$B$5:$C$100,2,FALSE),\"\"))","v":""},"2b","$Q$22","$R$22"]
[34919,{"$f":"Menu!$F$29","v":"X"},{"$f":"Menu!$J$29","v":2020},{"$f":"IF(ISBLANK(INDIRECT(\"'\"&F8970&\"'!\"&G8970)),\"\",INDIRECT(\"'\"&F8970&\"'!\"&G8970))","v":""},{"$f":"IF(ISBLANK(INDIRECT(\"'\"&F8970&\"'!\"&H8970)),\"\",IFERROR(VLOOKUP(TEXT(INDIRECT(\"'\"&F8970&\"'!\"&H8970),\"0\"),Notes!$B$5:$C$100,2,FALSE),\"\"))","v":""},"2b","$Q$29","$R$29"]
[34920,{"$f":"Menu!$F$29","v":"X"},{"$f":"Menu!$J$29","v":2020},{"$f":"IF(ISBLANK(INDIRECT(\"'\"&F8971&\"'!\"&G8971)),\"\",INDIRECT(\"'\"&F8971&\"'!\"&G8971))","v":""},{"$f":"IF(ISBLANK(INDIRECT(\"'\"&F8971&\"'!\"&H8971)),\"\",IFERROR(VLOOKUP(TEXT(INDIRECT(\"'\"&F8971&\"'!\"&H8971),\"0\"),Notes!$B$5:$C$100,2,FALSE),\"\"))","v":""},"2b","$Q$30","$R$30"]
[34922,{"$f":"Menu!$F$29","v":"X"},{"$f":"Menu!$J$29","v":2020},{"$f":"IF(ISBLANK(INDIRECT(\"'\"&F8972&\"'!\"&G8972)),\"\",INDIRECT(\"'\"&F8972&\"'!\"&G8972))","v":""},{"$f":"IF(ISBLANK(INDIRECT(\"'\"&F8972&\"'!\"&H8972)),\"\",IFERROR(VLOOKUP(TEXT(INDIRECT(\"'\"&F8972&\"'!\"&H8972),\"0\"),Notes!$B$5:$C$100,2,FALSE),\"\"))","v":""},"2b","$Q$36","$R$36"]
[34923,{"$f":"Menu!$F$29","v":"X"},{"$f":"Menu!$J$29","v":2020},{"$f":"IF(ISBLANK(INDIRECT(\"'\"&F8973&\"'!\"&G8973)),\"\",INDIRECT(\"'\"&F8973&\"'!\"&G8973))","v":""},{"$f":"IF(ISBLANK(INDIRECT(\"'\"&F8973&\"'!\"&H8973)),\"\",IFERROR(VLOOKUP(TEXT(INDIRECT(\"'\"&F8973&\"'!\"&H8973),\"0\"),Notes!$B$5:$C$100,2,FALSE),\"\"))","v":""},"2b","$Q$37","$R$37"]
[34925,{"$f":"Menu!$F$29","v":"X"},{"$f":"Menu!$J$29","v":2020},{"$f":"IF(ISBLANK(INDIRECT(\"'\"&F8974&\"'!\"&G8974)),\"\",INDIRECT(\"'\"&F8974&\"'!\"&G8974))","v":""},{"$f":"IF(ISBLANK(INDIRECT(\"'\"&F8974&\"'!\"&H8974)),\"\",IFERROR(VLOOKUP(TEXT(INDIRECT(\"'\"&F8974&\"'!\"&H8974),\"0\"),Notes!$B$5:$C$100,2,FALSE),\"\"))","v":""},"2b","$Q$49","$R$49"]
[34926,{"$f":"Menu!$F$29","v":"X"},{"$f":"Menu!$J$29","v":2020},{"$f":"IF(ISBLANK(INDIRECT(\"'\"&F8975&\"'!\"&G8975)),\"\",INDIRECT(\"'\"&F8975&\"'!\"&G8975))","v":""},{"$f":"IF(ISBLANK(INDIRECT(\"'\"&F8975&\"'!\"&H8975)),\"\",IFERROR(VLOOKUP(TEXT(INDIRECT(\"'\"&F8975&\"'!\"&H8975),\"0\"),Notes!$B$5:$C$100,2,FALSE),\"\"))","v":""},"2b","$Q$50","$R$50"]
[34928,{"$f":"Menu!$F$29","v":"X"},{"$f":"Menu!$J$29","v":2020},{"$f":"IF(ISBLANK(INDIRECT(\"'\"&F8976&\"'!\"&G8976)),\"\",INDIRECT(\"'\"&F8976&\"'!\"&G8976))","v":""},{"$f":"IF(ISBLANK(INDIRECT(\"'\"&F8976&\"'!\"&H8976)),\"\",IFERROR(VLOOKUP(TEXT(INDIRECT(\"'\"&F8976&\"'!\"&H8976),\"0\"),Notes!$B$5:$C$100,2,FALSE),\"\"))","v":""},"2b","$Q$44","$R$44"]
[34929,{"$f":"Menu!$F$29","v":"X"},{"$f":"Menu!$J$29","v":2020},{"$f":"IF(ISBLANK(INDIRECT(\"'\"&F8977&\"'!\"&G8977)),\"\",INDIRECT(\"'\"&F8977&\"'!\"&G8977))","v":""},{"$f":"IF(ISBLANK(INDIRECT(\"'\"&F8977&\"'!\"&H8977)),\"\",IFERROR(VLOOKUP(TEXT(INDIRECT(\"'\"&F8977&\"'!\"&H8977),\"0\"),Notes!$B$5:$C$100,2,FALSE),\"\"))","v":""},"2b","$Q$45","$R$45"]
[34931,{"$f":"Menu!$F$29","v":"X"},{"$f":"Menu!$J$29","v":2020},{"$f":"IF(ISBLANK(INDIRECT(\"'\"&F8978&\"'!\"&G8978)),\"\",INDIRECT(\"'\"&F8978&\"'!\"&G8978))","v":""},{"$f":"IF(ISBLANK(INDIRECT(\"'\"&F8978&\"'!\"&H8978)),\"\",IFERROR(VLOOKUP(TEXT(INDIRECT(\"'\"&F8978&\"'!\"&H8978),\"0\"),Notes!$B$5:$C$100,2,FALSE),\"\"))","v":""},"2b","$W$22","$X$22"]
[34934,{"$f":"Menu!$F$29","v":"X"},{"$f":"Menu!$J$29","v":2020},{"$f":"IF(ISBLANK(INDIRECT(\"'\"&F8979&\"'!\"&G8979)),\"\",INDIRECT(\"'\"&F8979&\"'!\"&G8979))","v":""},{"$f":"IF(ISBLANK(INDIRECT(\"'\"&F8979&\"'!\"&H8979)),\"\",IFERROR(VLOOKUP(TEXT(INDIRECT(\"'\"&F8979&\"'!\"&H8979),\"0\"),Notes!$B$5:$C$100,2,FALSE),\"\"))","v":""},"2b","$W$29","$X$29"]
[34935,{"$f":"Menu!$F$29","v":"X"},{"$f":"Menu!$J$29","v":2020},{"$f":"IF(ISBLANK(INDIRECT(\"'\"&F8980&\"'!\"&G8980)),\"\",INDIRECT(\"'\"&F8980&\"'!\"&G8980))","v":""},{"$f":"IF(ISBLANK(INDIRECT(\"'\"&F8980&\"'!\"&H8980)),\"\",IFERROR(VLOOKUP(TEXT(INDIRECT(\"'\"&F8980&\"'!\"&H8980),\"0\"),Notes!$B$5:$C$100,2,FALSE),\"\"))","v":""},"2b","$W$30","$X$30"]
[34937,{"$f":"Menu!$F$29","v":"X"},{"$f":"Menu!$J$29","v":2020},{"$f":"IF(ISBLANK(INDIRECT(\"'\"&F8981&\"'!\"&G8981)),\"\",INDIRECT(\"'\"&F8981&\"'!\"&G8981))","v":""},{"$f":"IF(ISBLANK(INDIRECT(\"'\"&F8981&\"'!\"&H8981)),\"\",IFERROR(VLOOKUP(TEXT(INDIRECT(\"'\"&F8981&\"'!\"&H8981),\"0\"),Notes!$B$5:$C$100,2,FALSE),\"\"))","v":""},"2b","$W$36","$X$36"]
[34938,{"$f":"Menu!$F$29","v":"X"},{"$f":"Menu!$J$29","v":2020},{"$f":"IF(ISBLANK(INDIRECT(\"'\"&F8982&\"'!\"&G8982)),\"\",INDIRECT(\"'\"&F8982&\"'!\"&G8982))","v":""},{"$f":"IF(ISBLANK(INDIRECT(\"'\"&F8982&\"'!\"&H8982)),\"\",IFERROR(VLOOKUP(TEXT(INDIRECT(\"'\"&F8982&\"'!\"&H8982),\"0\"),Notes!$B$5:$C$100,2,FALSE),\"\"))","v":""},"2b","$W$37","$X$37"]
[34940,{"$f":"Menu!$F$29","v":"X"},{"$f":"Menu!$J$29","v":2020},{"$f":"IF(ISBLANK(INDIRECT(\"'\"&F8983&\"'!\"&G8983)),\"\",INDIRECT(\"'\"&F8983&\"'!\"&G8983))","v":""},{"$f":"IF(ISBLANK(INDIRECT(\"'\"&F8983&\"'!\"&H8983)),\"\",IFERROR(VLOOKUP(TEXT(INDIRECT(\"'\"&F8983&\"'!\"&H8983),\"0\"),Notes!$B$5:$C$100,2,FALSE),\"\"))","v":""},"2b","$W$49","$X$49"]
[34941,{"$f":"Menu!$F$29","v":"X"},{"$f":"Menu!$J$29","v":2020},{"$f":"IF(ISBLANK(INDIRECT(\"'\"&F8984&\"'!\"&G8984)),\"\",INDIRECT(\"'\"&F8984&\"'!\"&G8984))","v":""},{"$f":"IF(ISBLANK(INDIRECT(\"'\"&F8984&\"'!\"&H8984)),\"\",IFERROR(VLOOKUP(TEXT(INDIRECT(\"'\"&F8984&\"'!\"&H8984),\"0\"),Notes!$B$5:$C$100,2,FALSE),\"\"))","v":""},"2b","$W$50","$X$50"]
[34943,{"$f":"Menu!$F$29","v":"X"},{"$f":"Menu!$J$29","v":2020},{"$f":"IF(ISBLANK(INDIRECT(\"'\"&F8985&\"'!\"&G8985)),\"\",INDIRECT(\"'\"&F8985&\"'!\"&G8985))","v":""},{"$f":"IF(ISBLANK(INDIRECT(\"'\"&F8985&\"'!\"&H8985)),\"\",IFERROR(VLOOKUP(TEXT(INDIRECT(\"'\"&F8985&\"'!\"&H8985),\"0\"),Notes!$B$5:$C$100,2,FALSE),\"\"))","v":""},"2b","$W$44","$X$44"]
[34944,{"$f":"Menu!$F$29","v":"X"},{"$f":"Menu!$J$29","v":2020},{"$f":"IF(ISBLANK(INDIRECT(\"'\"&F8986&\"'!\"&G8986)),\"\",INDIRECT(\"'\"&F8986&\"'!\"&G8986))","v":""},{"$f":"IF(ISBLANK(INDIRECT(\"'\"&F8986&\"'!\"&H8986)),\"\",IFERROR(VLOOKUP(TEXT(INDIRECT(\"'\"&F8986&\"'!\"&H8986),\"0\"),Notes!$B$5:$C$100,2,FALSE),\"\"))","v":""},"2b","$W$45","$X$45"]
[34976,{"$f":"Menu!$F$29","v":"X"},{"$f":"Menu!$J$29","v":2020},{"$f":"IF(ISBLANK(INDIRECT(\"'\"&F8987&\"'!\"&G8987)),\"\",INDIRECT(\"'\"&F8987&\"'!\"&G8987))","v":""},{"$f":"IF(ISBLANK(INDIRECT(\"'\"&F8987&\"'!\"&H8987)),\"\",IFERROR(VLOOKUP(TEXT(INDIRECT(\"'\"&F8987&\"'!\"&H8987),\"0\"),Notes!$B$5:$C$100,2,FALSE),\"\"))","v":""},"2e","$BG$23","$BH$23"]
[34979,{"$f":"Menu!$F$29","v":"X"},{"$f":"Menu!$J$29","v":2020},{"$f":"IF(ISBLANK(INDIRECT(\"'\"&F8988&\"'!\"&G8988)),\"\",INDIRECT(\"'\"&F8988&\"'!\"&G8988))","v":""},{"$f":"IF(ISBLANK(INDIRECT(\"'\"&F8988&\"'!\"&H8988)),\"\",IFERROR(VLOOKUP(TEXT(INDIRECT(\"'\"&F8988&\"'!\"&H8988),\"0\"),Notes!$B$5:$C$100,2,FALSE),\"\"))","v":""},"2e","$BG$30","$BH$30"]
[34980,{"$f":"Menu!$F$29","v":"X"},{"$f":"Menu!$J$29","v":2020},{"$f":"IF(ISBLANK(INDIRECT(\"'\"&F8989&\"'!\"&G8989)),\"\",INDIRECT(\"'\"&F8989&\"'!\"&G8989))","v":""},{"$f":"IF(ISBLANK(INDIRECT(\"'\"&F8989&\"'!\"&H8989)),\"\",IFERROR(VLOOKUP(TEXT(INDIRECT(\"'\"&F8989&\"'!\"&H8989),\"0\"),Notes!$B$5:$C$100,2,FALSE),\"\"))","v":""},"2e","$BG$31","$BH$31"]
[34982,{"$f":"Menu!$F$29","v":"X"},{"$f":"Menu!$J$29","v":2020},{"$f":"IF(ISBLANK(INDIRECT(\"'\"&F8990&\"'!\"&G8990)),\"\",INDIRECT(\"'\"&F8990&\"'!\"&G8990))","v":""},{"$f":"IF(ISBLANK(INDIRECT(\"'\"&F8990&\"'!\"&H8990)),\"\",IFERROR(VLOOKUP(TEXT(INDIRECT(\"'\"&F8990&\"'!\"&H8990),\"0\"),Notes!$B$5:$C$100,2,FALSE),\"\"))","v":""},"2e","$BG$37","$BH$37"]
[34983,{"$f":"Menu!$F$29","v":"X"},{"$f":"Menu!$J$29","v":2020},{"$f":"IF(ISBLANK(INDIRECT(\"'\"&F8991&\"'!\"&G8991)),\"\",INDIRECT(\"'\"&F8991&\"'!\"&G8991))","v":""},{"$f":"IF(ISBLANK(INDIRECT(\"'\"&F8991&\"'!\"&H8991)),\"\",IFERROR(VLOOKUP(TEXT(INDIRECT(\"'\"&F8991&\"'!\"&H8991),\"0\"),Notes!$B$5:$C$100,2,FALSE),\"\"))","v":""},"2e","$BG$38","$BH$38"]
[34985,{"$f":"Menu!$F$29","v":"X"},{"$f":"Menu!$J$29","v":2020},{"$f":"IF(ISBLANK(INDIRECT(\"'\"&F8992&\"'!\"&G8992)),\"\",INDIRECT(\"'\"&F8992&\"'!\"&G8992))","v":""},{"$f":"IF(ISBLANK(INDIRECT(\"'\"&F8992&\"'!\"&H8992)),\"\",IFERROR(VLOOKUP(TEXT(INDIRECT(\"'\"&F8992&\"'!\"&H8992),\"0\"),Notes!$B$5:$C$100,2,FALSE),\"\"))","v":""},"2e","$BG$50","$BH$50"]
[34986,{"$f":"Menu!$F$29","v":"X"},{"$f":"Menu!$J$29","v":2020},{"$f":"IF(ISBLANK(INDIRECT(\"'\"&F8993&\"'!\"&G8993)),\"\",INDIRECT(\"'\"&F8993&\"'!\"&G8993))","v":""},{"$f":"IF(ISBLANK(INDIRECT(\"'\"&F8993&\"'!\"&H8993)),\"\",IFERROR(VLOOKUP(TEXT(INDIRECT(\"'\"&F8993&\"'!\"&H8993),\"0\"),Notes!$B$5:$C$100,2,FALSE),\"\"))","v":""},"2e","$BG$51","$BH$51"]
[34988,{"$f":"Menu!$F$29","v":"X"},{"$f":"Menu!$J$29","v":2020},{"$f":"IF(ISBLANK(INDIRECT(\"'\"&F8994&\"'!\"&G8994)),\"\",INDIRECT(\"'\"&F8994&\"'!\"&G8994))","v":""},{"$f":"IF(ISBLANK(INDIRECT(\"'\"&F8994&\"'!\"&H8994)),\"\",IFERROR(VLOOKUP(TEXT(INDIRECT(\"'\"&F8994&\"'!\"&H8994),\"0\"),Notes!$B$5:$C$100,2,FALSE),\"\"))","v":""},"2e","$BG$45","$BH$45"]
[34989,{"$f":"Menu!$F$29","v":"X"},{"$f":"Menu!$J$29","v":2020},{"$f":"IF(ISBLANK(INDIRECT(\"'\"&F8995&\"'!\"&G8995)),\"\",INDIRECT(\"'\"&F8995&\"'!\"&G8995))","v":""},{"$f":"IF(ISBLANK(INDIRECT(\"'\"&F8995&\"'!\"&H8995)),\"\",IFERROR(VLOOKUP(TEXT(INDIRECT(\"'\"&F8995&\"'!\"&H8995),\"0\"),Notes!$B$5:$C$100,2,FALSE),\"\"))","v":""},"2e","$BG$46","$BH$46"]
[34991,{"$f":"Menu!$F$29","v":"X"},{"$f":"Menu!$J$29","v":2020},{"$f":"IF(ISBLANK(INDIRECT(\"'\"&F8996&\"'!\"&G8996)),\"\",INDIRECT(\"'\"&F8996&\"'!\"&G8996))","v":""},{"$f":"IF(ISBLANK(INDIRECT(\"'\"&F8996&\"'!\"&H8996)),\"\",IFERROR(VLOOKUP(TEXT(INDIRECT(\"'\"&F8996&\"'!\"&H8996),\"0\"),Notes!$B$5:$C$100,2,FALSE),\"\"))","v":""},"2e","$E$23","$F$23"]
[34994,{"$f":"Menu!$F$29","v":"X"},{"$f":"Menu!$J$29","v":2020},{"$f":"IF(ISBLANK(INDIRECT(\"'\"&F8997&\"'!\"&G8997)),\"\",INDIRECT(\"'\"&F8997&\"'!\"&G8997))","v":""},{"$f":"IF(ISBLANK(INDIRECT(\"'\"&F8997&\"'!\"&H8997)),\"\",IFERROR(VLOOKUP(TEXT(INDIRECT(\"'\"&F8997&\"'!\"&H8997),\"0\"),Notes!$B$5:$C$100,2,FALSE),\"\"))","v":""},"2e","$E$30","$F$30"]
[34995,{"$f":"Menu!$F$29","v":"X"},{"$f":"Menu!$J$29","v":2020},{"$f":"IF(ISBLANK(INDIRECT(\"'\"&F8998&\"'!\"&G8998)),\"\",INDIRECT(\"'\"&F8998&\"'!\"&G8998))","v":""},{"$f":"IF(ISBLANK(INDIRECT(\"'\"&F8998&\"'!\"&H8998)),\"\",IFERROR(VLOOKUP(TEXT(INDIRECT(\"'\"&F8998&\"'!\"&H8998),\"0\"),Notes!$B$5:$C$100,2,FALSE),\"\"))","v":""},"2e","$E$31","$F$31"]
[34997,{"$f":"Menu!$F$29","v":"X"},{"$f":"Menu!$J$29","v":2020},{"$f":"IF(ISBLANK(INDIRECT(\"'\"&F8999&\"'!\"&G8999)),\"\",INDIRECT(\"'\"&F8999&\"'!\"&G8999))","v":""},{"$f":"IF(ISBLANK(INDIRECT(\"'\"&F8999&\"'!\"&H8999)),\"\",IFERROR(VLOOKUP(TEXT(INDIRECT(\"'\"&F8999&\"'!\"&H8999),\"0\"),Notes!$B$5:$C$100,2,FALSE),\"\"))","v":""},"2e","$E$37","$F$37"]
[34998,{"$f":"Menu!$F$29","v":"X"},{"$f":"Menu!$J$29","v":2020},{"$f":"IF(ISBLANK(INDIRECT(\"'\"&F9000&\"'!\"&G9000)),\"\",INDIRECT(\"'\"&F9000&\"'!\"&G9000))","v":""},{"$f":"IF(ISBLANK(INDIRECT(\"'\"&F9000&\"'!\"&H9000)),\"\",IFERROR(VLOOKUP(TEXT(INDIRECT(\"'\"&F9000&\"'!\"&H9000),\"0\"),Notes!$B$5:$C$100,2,FALSE),\"\"))","v":""},"2e","$E$38","$F$38"]
[35000,{"$f":"Menu!$F$29","v":"X"},{"$f":"Menu!$J$29","v":2020},{"$f":"IF(ISBLANK(INDIRECT(\"'\"&F9001&\"'!\"&G9001)),\"\",INDIRECT(\"'\"&F9001&\"'!\"&G9001))","v":""},{"$f":"IF(ISBLANK(INDIRECT(\"'\"&F9001&\"'!\"&H9001)),\"\",IFERROR(VLOOKUP(TEXT(INDIRECT(\"'\"&F9001&\"'!\"&H9001),\"0\"),Notes!$B$5:$C$100,2,FALSE),\"\"))","v":""},"2e","$E$50","$F$50"]
[35001,{"$f":"Menu!$F$29","v":"X"},{"$f":"Menu!$J$29","v":2020},{"$f":"IF(ISBLANK(INDIRECT(\"'\"&F9002&\"'!\"&G9002)),\"\",INDIRECT(\"'\"&F9002&\"'!\"&G9002))","v":""},{"$f":"IF(ISBLANK(INDIRECT(\"'\"&F9002&\"'!\"&H9002)),\"\",IFERROR(VLOOKUP(TEXT(INDIRECT(\"'\"&F9002&\"'!\"&H9002),\"0\"),Notes!$B$5:$C$100,2,FALSE),\"\"))","v":""},"2e","$E$51","$F$51"]
[35003,{"$f":"Menu!$F$29","v":"X"},{"$f":"Menu!$J$29","v":2020},{"$f":"IF(ISBLANK(INDIRECT(\"'\"&F9003&\"'!\"&G9003)),\"\",INDIRECT(\"'\"&F9003&\"'!\"&G9003))","v":""},{"$f":"IF(ISBLANK(INDIRECT(\"'\"&F9003&\"'!\"&H9003)),\"\",IFERROR(VLOOKUP(TEXT(INDIRECT(\"'\"&F9003&\"'!\"&H9003),\"0\"),Notes!$B$5:$C$100,2,FALSE),\"\"))","v":""},"2e","$E$45","$F$45"]
[35004,{"$f":"Menu!$F$29","v":"X"},{"$f":"Menu!$J$29","v":2020},{"$f":"IF(ISBLANK(INDIRECT(\"'\"&F9004&\"'!\"&G9004)),\"\",INDIRECT(\"'\"&F9004&\"'!\"&G9004))","v":""},{"$f":"IF(ISBLANK(INDIRECT(\"'\"&F9004&\"'!\"&H9004)),\"\",IFERROR(VLOOKUP(TEXT(INDIRECT(\"'\"&F9004&\"'!\"&H9004),\"0\"),Notes!$B$5:$C$100,2,FALSE),\"\"))","v":""},"2e","$E$46","$F$46"]
[35006,{"$f":"Menu!$F$29","v":"X"},{"$f":"Menu!$J$29","v":2020},{"$f":"IF(ISBLANK(INDIRECT(\"'\"&F9005&\"'!\"&G9005)),\"\",INDIRECT(\"'\"&F9005&\"'!\"&G9005))","v":""},{"$f":"IF(ISBLANK(INDIRECT(\"'\"&F9005&\"'!\"&H9005)),\"\",IFERROR(VLOOKUP(TEXT(INDIRECT(\"'\"&F9005&\"'!\"&H9005),\"0\"),Notes!$B$5:$C$100,2,FALSE),\"\"))","v":""},"2e","$K$23","$L$23"]
[35009,{"$f":"Menu!$F$29","v":"X"},{"$f":"Menu!$J$29","v":2020},{"$f":"IF(ISBLANK(INDIRECT(\"'\"&F9006&\"'!\"&G9006)),\"\",INDIRECT(\"'\"&F9006&\"'!\"&G9006))","v":""},{"$f":"IF(ISBLANK(INDIRECT(\"'\"&F9006&\"'!\"&H9006)),\"\",IFERROR(VLOOKUP(TEXT(INDIRECT(\"'\"&F9006&\"'!\"&H9006),\"0\"),Notes!$B$5:$C$100,2,FALSE),\"\"))","v":""},"2e","$K$30","$L$30"]
[35010,{"$f":"Menu!$F$29","v":"X"},{"$f":"Menu!$J$29","v":2020},{"$f":"IF(ISBLANK(INDIRECT(\"'\"&F9007&\"'!\"&G9007)),\"\",INDIRECT(\"'\"&F9007&\"'!\"&G9007))","v":""},{"$f":"IF(ISBLANK(INDIRECT(\"'\"&F9007&\"'!\"&H9007)),\"\",IFERROR(VLOOKUP(TEXT(INDIRECT(\"'\"&F9007&\"'!\"&H9007),\"0\"),Notes!$B$5:$C$100,2,FALSE),\"\"))","v":""},"2e","$K$31","$L$31"]
[35012,{"$f":"Menu!$F$29","v":"X"},{"$f":"Menu!$J$29","v":2020},{"$f":"IF(ISBLANK(INDIRECT(\"'\"&F9008&\"'!\"&G9008)),\"\",INDIRECT(\"'\"&F9008&\"'!\"&G9008))","v":""},{"$f":"IF(ISBLANK(INDIRECT(\"'\"&F9008&\"'!\"&H9008)),\"\",IFERROR(VLOOKUP(TEXT(INDIRECT(\"'\"&F9008&\"'!\"&H9008),\"0\"),Notes!$B$5:$C$100,2,FALSE),\"\"))","v":""},"2e","$K$37","$L$37"]
[35013,{"$f":"Menu!$F$29","v":"X"},{"$f":"Menu!$J$29","v":2020},{"$f":"IF(ISBLANK(INDIRECT(\"'\"&F9009&\"'!\"&G9009)),\"\",INDIRECT(\"'\"&F9009&\"'!\"&G9009))","v":""},{"$f":"IF(ISBLANK(INDIRECT(\"'\"&F9009&\"'!\"&H9009)),\"\",IFERROR(VLOOKUP(TEXT(INDIRECT(\"'\"&F9009&\"'!\"&H9009),\"0\"),Notes!$B$5:$C$100,2,FALSE),\"\"))","v":""},"2e","$K$38","$L$38"]
[35015,{"$f":"Menu!$F$29","v":"X"},{"$f":"Menu!$J$29","v":2020},{"$f":"IF(ISBLANK(INDIRECT(\"'\"&F9010&\"'!\"&G9010)),\"\",INDIRECT(\"'\"&F9010&\"'!\"&G9010))","v":""},{"$f":"IF(ISBLANK(INDIRECT(\"'\"&F9010&\"'!\"&H9010)),\"\",IFERROR(VLOOKUP(TEXT(INDIRECT(\"'\"&F9010&\"'!\"&H9010),\"0\"),Notes!$B$5:$C$100,2,FALSE),\"\"))","v":""},"2e","$K$50","$L$50"]
[35016,{"$f":"Menu!$F$29","v":"X"},{"$f":"Menu!$J$29","v":2020},{"$f":"IF(ISBLANK(INDIRECT(\"'\"&F9011&\"'!\"&G9011)),\"\",INDIRECT(\"'\"&F9011&\"'!\"&G9011))","v":""},{"$f":"IF(ISBLANK(INDIRECT(\"'\"&F9011&\"'!\"&H9011)),\"\",IFERROR(VLOOKUP(TEXT(INDIRECT(\"'\"&F9011&\"'!\"&H9011),\"0\"),Notes!$B$5:$C$100,2,FALSE),\"\"))","v":""},"2e","$K$51","$L$51"]
[35018,{"$f":"Menu!$F$29","v":"X"},{"$f":"Menu!$J$29","v":2020},{"$f":"IF(ISBLANK(INDIRECT(\"'\"&F9012&\"'!\"&G9012)),\"\",INDIRECT(\"'\"&F9012&\"'!\"&G9012))","v":""},{"$f":"IF(ISBLANK(INDIRECT(\"'\"&F9012&\"'!\"&H9012)),\"\",IFERROR(VLOOKUP(TEXT(INDIRECT(\"'\"&F9012&\"'!\"&H9012),\"0\"),Notes!$B$5:$C$100,2,FALSE),\"\"))","v":""},"2e","$K$45","$L$45"]
[35019,{"$f":"Menu!$F$29","v":"X"},{"$f":"Menu!$J$29","v":2020},{"$f":"IF(ISBLANK(INDIRECT(\"'\"&F9013&\"'!\"&G9013)),\"\",INDIRECT(\"'\"&F9013&\"'!\"&G9013))","v":""},{"$f":"IF(ISBLANK(INDIRECT(\"'\"&F9013&\"'!\"&H9013)),\"\",IFERROR(VLOOKUP(TEXT(INDIRECT(\"'\"&F9013&\"'!\"&H9013),\"0\"),Notes!$B$5:$C$100,2,FALSE),\"\"))","v":""},"2e","$K$46","$L$46"]
[35021,{"$f":"Menu!$F$29","v":"X"},{"$f":"Menu!$J$29","v":2020},{"$f":"IF(ISBLANK(INDIRECT(\"'\"&F9014&\"'!\"&G9014)),\"\",INDIRECT(\"'\"&F9014&\"'!\"&G9014))","v":""},{"$f":"IF(ISBLANK(INDIRECT(\"'\"&F9014&\"'!\"&H9014)),\"\",IFERROR(VLOOKUP(TEXT(INDIRECT(\"'\"&F9014&\"'!\"&H9014),\"0\"),Notes!$B$5:$C$100,2,FALSE),\"\"))","v":""},"2e","$Q$23","$R$23"]
[35024,{"$f":"Menu!$F$29","v":"X"},{"$f":"Menu!$J$29","v":2020},{"$f":"IF(ISBLANK(INDIRECT(\"'\"&F9015&\"'!\"&G9015)),\"\",INDIRECT(\"'\"&F9015&\"'!\"&G9015))","v":""},{"$f":"IF(ISBLANK(INDIRECT(\"'\"&F9015&\"'!\"&H9015)),\"\",IFERROR(VLOOKUP(TEXT(INDIRECT(\"'\"&F9015&\"'!\"&H9015),\"0\"),Notes!$B$5:$C$100,2,FALSE),\"\"))","v":""},"2e","$Q$30","$R$30"]
[35025,{"$f":"Menu!$F$29","v":"X"},{"$f":"Menu!$J$29","v":2020},{"$f":"IF(ISBLANK(INDIRECT(\"'\"&F9016&\"'!\"&G9016)),\"\",INDIRECT(\"'\"&F9016&\"'!\"&G9016))","v":""},{"$f":"IF(ISBLANK(INDIRECT(\"'\"&F9016&\"'!\"&H9016)),\"\",IFERROR(VLOOKUP(TEXT(INDIRECT(\"'\"&F9016&\"'!\"&H9016),\"0\"),Notes!$B$5:$C$100,2,FALSE),\"\"))","v":""},"2e","$Q$31","$R$31"]
[35027,{"$f":"Menu!$F$29","v":"X"},{"$f":"Menu!$J$29","v":2020},{"$f":"IF(ISBLANK(INDIRECT(\"'\"&F9017&\"'!\"&G9017)),\"\",INDIRECT(\"'\"&F9017&\"'!\"&G9017))","v":""},{"$f":"IF(ISBLANK(INDIRECT(\"'\"&F9017&\"'!\"&H9017)),\"\",IFERROR(VLOOKUP(TEXT(INDIRECT(\"'\"&F9017&\"'!\"&H9017),\"0\"),Notes!$B$5:$C$100,2,FALSE),\"\"))","v":""},"2e","$Q$37","$R$37"]
[35028,{"$f":"Menu!$F$29","v":"X"},{"$f":"Menu!$J$29","v":2020},{"$f":"IF(ISBLANK(INDIRECT(\"'\"&F9018&\"'!\"&G9018)),\"\",INDIRECT(\"'\"&F9018&\"'!\"&G9018))","v":""},{"$f":"IF(ISBLANK(INDIRECT(\"'\"&F9018&\"'!\"&H9018)),\"\",IFERROR(VLOOKUP(TEXT(INDIRECT(\"'\"&F9018&\"'!\"&H9018),\"0\"),Notes!$B$5:$C$100,2,FALSE),\"\"))","v":""},"2e","$Q$38","$R$38"]
[35030,{"$f":"Menu!$F$29","v":"X"},{"$f":"Menu!$J$29","v":2020},{"$f":"IF(ISBLANK(INDIRECT(\"'\"&F9019&\"'!\"&G9019)),\"\",INDIRECT(\"'\"&F9019&\"'!\"&G9019))","v":""},{"$f":"IF(ISBLANK(INDIRECT(\"'\"&F9019&\"'!\"&H9019)),\"\",IFERROR(VLOOKUP(TEXT(INDIRECT(\"'\"&F9019&\"'!\"&H9019),\"0\"),Notes!$B$5:$C$100,2,FALSE),\"\"))","v":""},"2e","$Q$50","$R$50"]
[35031,{"$f":"Menu!$F$29","v":"X"},{"$f":"Menu!$J$29","v":2020},{"$f":"IF(ISBLANK(INDIRECT(\"'\"&F9020&\"'!\"&G9020)),\"\",INDIRECT(\"'\"&F9020&\"'!\"&G9020))","v":""},{"$f":"IF(ISBLANK(INDIRECT(\"'\"&F9020&\"'!\"&H9020)),\"\",IFERROR(VLOOKUP(TEXT(INDIRECT(\"'\"&F9020&\"'!\"&H9020),\"0\"),Notes!$B$5:$C$100,2,FALSE),\"\"))","v":""},"2e","$Q$51","$R$51"]
[35033,{"$f":"Menu!$F$29","v":"X"},{"$f":"Menu!$J$29","v":2020},{"$f":"IF(ISBLANK(INDIRECT(\"'\"&F9021&\"'!\"&G9021)),\"\",INDIRECT(\"'\"&F9021&\"'!\"&G9021))","v":""},{"$f":"IF(ISBLANK(INDIRECT(\"'\"&F9021&\"'!\"&H9021)),\"\",IFERROR(VLOOKUP(TEXT(INDIRECT(\"'\"&F9021&\"'!\"&H9021),\"0\"),Notes!$B$5:$C$100,2,FALSE),\"\"))","v":""},"2e","$Q$45","$R$45"]
[35034,{"$f":"Menu!$F$29","v":"X"},{"$f":"Menu!$J$29","v":2020},{"$f":"IF(ISBLANK(INDIRECT(\"'\"&F9022&\"'!\"&G9022)),\"\",INDIRECT(\"'\"&F9022&\"'!\"&G9022))","v":""},{"$f":"IF(ISBLANK(INDIRECT(\"'\"&F9022&\"'!\"&H9022)),\"\",IFERROR(VLOOKUP(TEXT(INDIRECT(\"'\"&F9022&\"'!\"&H9022),\"0\"),Notes!$B$5:$C$100,2,FALSE),\"\"))","v":""},"2e","$Q$46","$R$46"]
[35036,{"$f":"Menu!$F$29","v":"X"},{"$f":"Menu!$J$29","v":2020},{"$f":"IF(ISBLANK(INDIRECT(\"'\"&F9023&\"'!\"&G9023)),\"\",INDIRECT(\"'\"&F9023&\"'!\"&G9023))","v":""},{"$f":"IF(ISBLANK(INDIRECT(\"'\"&F9023&\"'!\"&H9023)),\"\",IFERROR(VLOOKUP(TEXT(INDIRECT(\"'\"&F9023&\"'!\"&H9023),\"0\"),Notes!$B$5:$C$100,2,FALSE),\"\"))","v":""},"2e","$W$23","$X$23"]
[35039,{"$f":"Menu!$F$29","v":"X"},{"$f":"Menu!$J$29","v":2020},{"$f":"IF(ISBLANK(INDIRECT(\"'\"&F9024&\"'!\"&G9024)),\"\",INDIRECT(\"'\"&F9024&\"'!\"&G9024))","v":""},{"$f":"IF(ISBLANK(INDIRECT(\"'\"&F9024&\"'!\"&H9024)),\"\",IFERROR(VLOOKUP(TEXT(INDIRECT(\"'\"&F9024&\"'!\"&H9024),\"0\"),Notes!$B$5:$C$100,2,FALSE),\"\"))","v":""},"2e","$W$30","$X$30"]
[35040,{"$f":"Menu!$F$29","v":"X"},{"$f":"Menu!$J$29","v":2020},{"$f":"IF(ISBLANK(INDIRECT(\"'\"&F9025&\"'!\"&G9025)),\"\",INDIRECT(\"'\"&F9025&\"'!\"&G9025))","v":""},{"$f":"IF(ISBLANK(INDIRECT(\"'\"&F9025&\"'!\"&H9025)),\"\",IFERROR(VLOOKUP(TEXT(INDIRECT(\"'\"&F9025&\"'!\"&H9025),\"0\"),Notes!$B$5:$C$100,2,FALSE),\"\"))","v":""},"2e","$W$31","$X$31"]
[35042,{"$f":"Menu!$F$29","v":"X"},{"$f":"Menu!$J$29","v":2020},{"$f":"IF(ISBLANK(INDIRECT(\"'\"&F9026&\"'!\"&G9026)),\"\",INDIRECT(\"'\"&F9026&\"'!\"&G9026))","v":""},{"$f":"IF(ISBLANK(INDIRECT(\"'\"&F9026&\"'!\"&H9026)),\"\",IFERROR(VLOOKUP(TEXT(INDIRECT(\"'\"&F9026&\"'!\"&H9026),\"0\"),Notes!$B$5:$C$100,2,FALSE),\"\"))","v":""},"2e","$W$37",{"$f":"IF(LEN(TRIM(MID(G9026,4,10)))-LEN(SUBSTITUTE(TRIM(MID(G9026,4,10)),\"$\",\"\"))=0,\"$\"&CHAR(CODE(MID(G9026,2,1))+1)&\"$\"&TRIM(MID(G9026,4,10)),\"$\"&MID(G9026,2,1)&CHAR(CODE(MID(G9026,3,1))+1)&\"$\"&TRIM(MID(G9026,5,11)))","v":"$X$37"}]
[35043,{"$f":"Menu!$F$29","v":"X"},{"$f":"Menu!$J$29","v":2020},{"$f":"IF(ISBLANK(INDIRECT(\"'\"&F9027&\"'!\"&G9027)),\"\",INDIRECT(\"'\"&F9027&\"'!\"&G9027))","v":""},{"$f":"IF(ISBLANK(INDIRECT(\"'\"&F9027&\"'!\"&H9027)),\"\",IFERROR(VLOOKUP(TEXT(INDIRECT(\"'\"&F9027&\"'!\"&H9027),\"0\"),Notes!$B$5:$C$100,2,FALSE),\"\"))","v":""},"2e","$W$38","$X$38"]
[35045,{"$f":"Menu!$F$29","v":"X"},{"$f":"Menu!$J$29","v":2020},{"$f":"IF(ISBLANK(INDIRECT(\"'\"&F9028&\"'!\"&G9028)),\"\",INDIRECT(\"'\"&F9028&\"'!\"&G9028))","v":""},{"$f":"IF(ISBLANK(INDIRECT(\"'\"&F9028&\"'!\"&H9028)),\"\",IFERROR(VLOOKUP(TEXT(INDIRECT(\"'\"&F9028&\"'!\"&H9028),\"0\"),Notes!$B$5:$C$100,2,FALSE),\"\"))","v":""},"2e","$W$50","$X$50"]
[35046,{"$f":"Menu!$F$29","v":"X"},{"$f":"Menu!$J$29","v":2020},{"$f":"IF(ISBLANK(INDIRECT(\"'\"&F9029&\"'!\"&G9029)),\"\",INDIRECT(\"'\"&F9029&\"'!\"&G9029))","v":""},{"$f":"IF(ISBLANK(INDIRECT(\"'\"&F9029&\"'!\"&H9029)),\"\",IFERROR(VLOOKUP(TEXT(INDIRECT(\"'\"&F9029&\"'!\"&H9029),\"0\"),Notes!$B$5:$C$100,2,FALSE),\"\"))","v":""},"2e","$W$51","$X$51"]
[35048,{"$f":"Menu!$F$29","v":"X"},{"$f":"Menu!$J$29","v":2020},{"$f":"IF(ISBLANK(INDIRECT(\"'\"&F9030&\"'!\"&G9030)),\"\",INDIRECT(\"'\"&F9030&\"'!\"&G9030))","v":""},{"$f":"IF(ISBLANK(INDIRECT(\"'\"&F9030&\"'!\"&H9030)),\"\",IFERROR(VLOOKUP(TEXT(INDIRECT(\"'\"&F9030&\"'!\"&H9030),\"0\"),Notes!$B$5:$C$100,2,FALSE),\"\"))","v":""},"2e","$W$45","$X$45"]
[35049,{"$f":"Menu!$F$29","v":"X"},{"$f":"Menu!$J$29","v":2020},{"$f":"IF(ISBLANK(INDIRECT(\"'\"&F9031&\"'!\"&G9031)),\"\",INDIRECT(\"'\"&F9031&\"'!\"&G9031))","v":""},{"$f":"IF(ISBLANK(INDIRECT(\"'\"&F9031&\"'!\"&H9031)),\"\",IFERROR(VLOOKUP(TEXT(INDIRECT(\"'\"&F9031&\"'!\"&H9031),\"0\"),Notes!$B$5:$C$100,2,FALSE),\"\"))","v":""},"2e","$W$46","$X$46"]
[35051,{"$f":"Menu!$F$29","v":"X"},{"$f":"Menu!$J$29","v":2020},{"$f":"IF(ISBLANK(INDIRECT(\"'\"&F9032&\"'!\"&G9032)),\"\",INDIRECT(\"'\"&F9032&\"'!\"&G9032))","v":""},{"$f":"IF(ISBLANK(INDIRECT(\"'\"&F9032&\"'!\"&H9032)),\"\",IFERROR(VLOOKUP(TEXT(INDIRECT(\"'\"&F9032&\"'!\"&H9032),\"0\"),Notes!$B$5:$C$100,2,FALSE),\"\"))","v":""},"2e","$AC$23","$AD$23"]
[35054,{"$f":"Menu!$F$29","v":"X"},{"$f":"Menu!$J$29","v":2020},{"$f":"IF(ISBLANK(INDIRECT(\"'\"&F9033&\"'!\"&G9033)),\"\",INDIRECT(\"'\"&F9033&\"'!\"&G9033))","v":""},{"$f":"IF(ISBLANK(INDIRECT(\"'\"&F9033&\"'!\"&H9033)),\"\",IFERROR(VLOOKUP(TEXT(INDIRECT(\"'\"&F9033&\"'!\"&H9033),\"0\"),Notes!$B$5:$C$100,2,FALSE),\"\"))","v":""},"2e","$AC$30","$AD$30"]
[35055,{"$f":"Menu!$F$29","v":"X"},{"$f":"Menu!$J$29","v":2020},{"$f":"IF(ISBLANK(INDIRECT(\"'\"&F9034&\"'!\"&G9034)),\"\",INDIRECT(\"'\"&F9034&\"'!\"&G9034))","v":""},{"$f":"IF(ISBLANK(INDIRECT(\"'\"&F9034&\"'!\"&H9034)),\"\",IFERROR(VLOOKUP(TEXT(INDIRECT(\"'\"&F9034&\"'!\"&H9034),\"0\"),Notes!$B$5:$C$100,2,FALSE),\"\"))","v":""},"2e","$AC$31","$AD$31"]
[35057,{"$f":"Menu!$F$29","v":"X"},{"$f":"Menu!$J$29","v":2020},{"$f":"IF(ISBLANK(INDIRECT(\"'\"&F9035&\"'!\"&G9035)),\"\",INDIRECT(\"'\"&F9035&\"'!\"&G9035))","v":""},{"$f":"IF(ISBLANK(INDIRECT(\"'\"&F9035&\"'!\"&H9035)),\"\",IFERROR(VLOOKUP(TEXT(INDIRECT(\"'\"&F9035&\"'!\"&H9035),\"0\"),Notes!$B$5:$C$100,2,FALSE),\"\"))","v":""},"2e","$AC$37","$AD$37"]
[35058,{"$f":"Menu!$F$29","v":"X"},{"$f":"Menu!$J$29","v":2020},{"$f":"IF(ISBLANK(INDIRECT(\"'\"&F9036&\"'!\"&G9036)),\"\",INDIRECT(\"'\"&F9036&\"'!\"&G9036))","v":""},{"$f":"IF(ISBLANK(INDIRECT(\"'\"&F9036&\"'!\"&H9036)),\"\",IFERROR(VLOOKUP(TEXT(INDIRECT(\"'\"&F9036&\"'!\"&H9036),\"0\"),Notes!$B$5:$C$100,2,FALSE),\"\"))","v":""},"2e","$AC$38","$AD$38"]
[35060,{"$f":"Menu!$F$29","v":"X"},{"$f":"Menu!$J$29","v":2020},{"$f":"IF(ISBLANK(INDIRECT(\"'\"&F9037&\"'!\"&G9037)),\"\",INDIRECT(\"'\"&F9037&\"'!\"&G9037))","v":""},{"$f":"IF(ISBLANK(INDIRECT(\"'\"&F9037&\"'!\"&H9037)),\"\",IFERROR(VLOOKUP(TEXT(INDIRECT(\"'\"&F9037&\"'!\"&H9037),\"0\"),Notes!$B$5:$C$100,2,FALSE),\"\"))","v":""},"2e","$AC$50","$AD$50"]
[35061,{"$f":"Menu!$F$29","v":"X"},{"$f":"Menu!$J$29","v":2020},{"$f":"IF(ISBLANK(INDIRECT(\"'\"&F9038&\"'!\"&G9038)),\"\",INDIRECT(\"'\"&F9038&\"'!\"&G9038))","v":""},{"$f":"IF(ISBLANK(INDIRECT(\"'\"&F9038&\"'!\"&H9038)),\"\",IFERROR(VLOOKUP(TEXT(INDIRECT(\"'\"&F9038&\"'!\"&H9038),\"0\"),Notes!$B$5:$C$100,2,FALSE),\"\"))","v":""},"2e","$AC$51","$AD$51"]
[35063,{"$f":"Menu!$F$29","v":"X"},{"$f":"Menu!$J$29","v":2020},{"$f":"IF(ISBLANK(INDIRECT(\"'\"&F9039&\"'!\"&G9039)),\"\",INDIRECT(\"'\"&F9039&\"'!\"&G9039))","v":""},{"$f":"IF(ISBLANK(INDIRECT(\"'\"&F9039&\"'!\"&H9039)),\"\",IFERROR(VLOOKUP(TEXT(INDIRECT(\"'\"&F9039&\"'!\"&H9039),\"0\"),Notes!$B$5:$C$100,2,FALSE),\"\"))","v":""},"2e","$AC$45","$AD$45"]
[35064,{"$f":"Menu!$F$29","v":"X"},{"$f":"Menu!$J$29","v":2020},{"$f":"IF(ISBLANK(INDIRECT(\"'\"&F9040&\"'!\"&G9040)),\"\",INDIRECT(\"'\"&F9040&\"'!\"&G9040))","v":""},{"$f":"IF(ISBLANK(INDIRECT(\"'\"&F9040&\"'!\"&H9040)),\"\",IFERROR(VLOOKUP(TEXT(INDIRECT(\"'\"&F9040&\"'!\"&H9040),\"0\"),Notes!$B$5:$C$100,2,FALSE),\"\"))","v":""},"2e","$AC$46","$AD$46"]
[35066,{"$f":"Menu!$F$29","v":"X"},{"$f":"Menu!$J$29","v":2020},{"$f":"IF(ISBLANK(INDIRECT(\"'\"&F9041&\"'!\"&G9041)),\"\",INDIRECT(\"'\"&F9041&\"'!\"&G9041))","v":""},{"$f":"IF(ISBLANK(INDIRECT(\"'\"&F9041&\"'!\"&H9041)),\"\",IFERROR(VLOOKUP(TEXT(INDIRECT(\"'\"&F9041&\"'!\"&H9041),\"0\"),Notes!$B$5:$C$100,2,FALSE),\"\"))","v":""},"2e","$AI$23","$AJ$23"]
[35069,{"$f":"Menu!$F$29","v":"X"},{"$f":"Menu!$J$29","v":2020},{"$f":"IF(ISBLANK(INDIRECT(\"'\"&F9042&\"'!\"&G9042)),\"\",INDIRECT(\"'\"&F9042&\"'!\"&G9042))","v":""},{"$f":"IF(ISBLANK(INDIRECT(\"'\"&F9042&\"'!\"&H9042)),\"\",IFERROR(VLOOKUP(TEXT(INDIRECT(\"'\"&F9042&\"'!\"&H9042),\"0\"),Notes!$B$5:$C$100,2,FALSE),\"\"))","v":""},"2e","$AI$30","$AJ$30"]
[35070,{"$f":"Menu!$F$29","v":"X"},{"$f":"Menu!$J$29","v":2020},{"$f":"IF(ISBLANK(INDIRECT(\"'\"&F9043&\"'!\"&G9043)),\"\",INDIRECT(\"'\"&F9043&\"'!\"&G9043))","v":""},{"$f":"IF(ISBLANK(INDIRECT(\"'\"&F9043&\"'!\"&H9043)),\"\",IFERROR(VLOOKUP(TEXT(INDIRECT(\"'\"&F9043&\"'!\"&H9043),\"0\"),Notes!$B$5:$C$100,2,FALSE),\"\"))","v":""},"2e","$AI$31","$AJ$31"]
[35072,{"$f":"Menu!$F$29","v":"X"},{"$f":"Menu!$J$29","v":2020},{"$f":"IF(ISBLANK(INDIRECT(\"'\"&F9044&\"'!\"&G9044)),\"\",INDIRECT(\"'\"&F9044&\"'!\"&G9044))","v":""},{"$f":"IF(ISBLANK(INDIRECT(\"'\"&F9044&\"'!\"&H9044)),\"\",IFERROR(VLOOKUP(TEXT(INDIRECT(\"'\"&F9044&\"'!\"&H9044),\"0\"),Notes!$B$5:$C$100,2,FALSE),\"\"))","v":""},"2e","$AI$37","$AJ$37"]
[35073,{"$f":"Menu!$F$29","v":"X"},{"$f":"Menu!$J$29","v":2020},{"$f":"IF(ISBLANK(INDIRECT(\"'\"&F9045&\"'!\"&G9045)),\"\",INDIRECT(\"'\"&F9045&\"'!\"&G9045))","v":""},{"$f":"IF(ISBLANK(INDIRECT(\"'\"&F9045&\"'!\"&H9045)),\"\",IFERROR(VLOOKUP(TEXT(INDIRECT(\"'\"&F9045&\"'!\"&H9045),\"0\"),Notes!$B$5:$C$100,2,FALSE),\"\"))","v":""},"2e","$AI$38","$AJ$38"]
[35075,{"$f":"Menu!$F$29","v":"X"},{"$f":"Menu!$J$29","v":2020},{"$f":"IF(ISBLANK(INDIRECT(\"'\"&F9046&\"'!\"&G9046)),\"\",INDIRECT(\"'\"&F9046&\"'!\"&G9046))","v":""},{"$f":"IF(ISBLANK(INDIRECT(\"'\"&F9046&\"'!\"&H9046)),\"\",IFERROR(VLOOKUP(TEXT(INDIRECT(\"'\"&F9046&\"'!\"&H9046),\"0\"),Notes!$B$5:$C$100,2,FALSE),\"\"))","v":""},"2e","$AI$50","$AJ$50"]
[35076,{"$f":"Menu!$F$29","v":"X"},{"$f":"Menu!$J$29","v":2020},{"$f":"IF(ISBLANK(INDIRECT(\"'\"&F9047&\"'!\"&G9047)),\"\",INDIRECT(\"'\"&F9047&\"'!\"&G9047))","v":""},{"$f":"IF(ISBLANK(INDIRECT(\"'\"&F9047&\"'!\"&H9047)),\"\",IFERROR(VLOOKUP(TEXT(INDIRECT(\"'\"&F9047&\"'!\"&H9047),\"0\"),Notes!$B$5:$C$100,2,FALSE),\"\"))","v":""},"2e","$AI$51","$AJ$51"]
[35078,{"$f":"Menu!$F$29","v":"X"},{"$f":"Menu!$J$29","v":2020},{"$f":"IF(ISBLANK(INDIRECT(\"'\"&F9048&\"'!\"&G9048)),\"\",INDIRECT(\"'\"&F9048&\"'!\"&G9048))","v":""},{"$f":"IF(ISBLANK(INDIRECT(\"'\"&F9048&\"'!\"&H9048)),\"\",IFERROR(VLOOKUP(TEXT(INDIRECT(\"'\"&F9048&\"'!\"&H9048),\"0\"),Notes!$B$5:$C$100,2,FALSE),\"\"))","v":""},"2e","$AI$45","$AJ$45"]
[35079,{"$f":"Menu!$F$29","v":"X"},{"$f":"Menu!$J$29","v":2020},{"$f":"IF(ISBLANK(INDIRECT(\"'\"&F9049&\"'!\"&G9049)),\"\",INDIRECT(\"'\"&F9049&\"'!\"&G9049))","v":""},{"$f":"IF(ISBLANK(INDIRECT(\"'\"&F9049&\"'!\"&H9049)),\"\",IFERROR(VLOOKUP(TEXT(INDIRECT(\"'\"&F9049&\"'!\"&H9049),\"0\"),Notes!$B$5:$C$100,2,FALSE),\"\"))","v":""},"2e","$AI$46","$AJ$46"]
[35081,{"$f":"Menu!$F$29","v":"X"},{"$f":"Menu!$J$29","v":2020},{"$f":"IF(ISBLANK(INDIRECT(\"'\"&F9050&\"'!\"&G9050)),\"\",INDIRECT(\"'\"&F9050&\"'!\"&G9050))","v":""},{"$f":"IF(ISBLANK(INDIRECT(\"'\"&F9050&\"'!\"&H9050)),\"\",IFERROR(VLOOKUP(TEXT(INDIRECT(\"'\"&F9050&\"'!\"&H9050),\"0\"),Notes!$B$5:$C$100,2,FALSE),\"\"))","v":""},"2e","$AO$23","$AP$23"]
[35084,{"$f":"Menu!$F$29","v":"X"},{"$f":"Menu!$J$29","v":2020},{"$f":"IF(ISBLANK(INDIRECT(\"'\"&F9051&\"'!\"&G9051)),\"\",INDIRECT(\"'\"&F9051&\"'!\"&G9051))","v":""},{"$f":"IF(ISBLANK(INDIRECT(\"'\"&F9051&\"'!\"&H9051)),\"\",IFERROR(VLOOKUP(TEXT(INDIRECT(\"'\"&F9051&\"'!\"&H9051),\"0\"),Notes!$B$5:$C$100,2,FALSE),\"\"))","v":""},"2e","$AO$30","$AP$30"]
[35085,{"$f":"Menu!$F$29","v":"X"},{"$f":"Menu!$J$29","v":2020},{"$f":"IF(ISBLANK(INDIRECT(\"'\"&F9052&\"'!\"&G9052)),\"\",INDIRECT(\"'\"&F9052&\"'!\"&G9052))","v":""},{"$f":"IF(ISBLANK(INDIRECT(\"'\"&F9052&\"'!\"&H9052)),\"\",IFERROR(VLOOKUP(TEXT(INDIRECT(\"'\"&F9052&\"'!\"&H9052),\"0\"),Notes!$B$5:$C$100,2,FALSE),\"\"))","v":""},"2e","$AO$31","$AP$31"]
[35087,{"$f":"Menu!$F$29","v":"X"},{"$f":"Menu!$J$29","v":2020},{"$f":"IF(ISBLANK(INDIRECT(\"'\"&F9053&\"'!\"&G9053)),\"\",INDIRECT(\"'\"&F9053&\"'!\"&G9053))","v":""},{"$f":"IF(ISBLANK(INDIRECT(\"'\"&F9053&\"'!\"&H9053)),\"\",IFERROR(VLOOKUP(TEXT(INDIRECT(\"'\"&F9053&\"'!\"&H9053),\"0\"),Notes!$B$5:$C$100,2,FALSE),\"\"))","v":""},"2e","$AO$37","$AP$37"]
[35088,{"$f":"Menu!$F$29","v":"X"},{"$f":"Menu!$J$29","v":2020},{"$f":"IF(ISBLANK(INDIRECT(\"'\"&F9054&\"'!\"&G9054)),\"\",INDIRECT(\"'\"&F9054&\"'!\"&G9054))","v":""},{"$f":"IF(ISBLANK(INDIRECT(\"'\"&F9054&\"'!\"&H9054)),\"\",IFERROR(VLOOKUP(TEXT(INDIRECT(\"'\"&F9054&\"'!\"&H9054),\"0\"),Notes!$B$5:$C$100,2,FALSE),\"\"))","v":""},"2e","$AO$38","$AP$38"]
[35090,{"$f":"Menu!$F$29","v":"X"},{"$f":"Menu!$J$29","v":2020},{"$f":"IF(ISBLANK(INDIRECT(\"'\"&F9055&\"'!\"&G9055)),\"\",INDIRECT(\"'\"&F9055&\"'!\"&G9055))","v":""},{"$f":"IF(ISBLANK(INDIRECT(\"'\"&F9055&\"'!\"&H9055)),\"\",IFERROR(VLOOKUP(TEXT(INDIRECT(\"'\"&F9055&\"'!\"&H9055),\"0\"),Notes!$B$5:$C$100,2,FALSE),\"\"))","v":""},"2e","$AO$50","$AP$50"]
[35091,{"$f":"Menu!$F$29","v":"X"},{"$f":"Menu!$J$29","v":2020},{"$f":"IF(ISBLANK(INDIRECT(\"'\"&F9056&\"'!\"&G9056)),\"\",INDIRECT(\"'\"&F9056&\"'!\"&G9056))","v":""},{"$f":"IF(ISBLANK(INDIRECT(\"'\"&F9056&\"'!\"&H9056)),\"\",IFERROR(VLOOKUP(TEXT(INDIRECT(\"'\"&F9056&\"'!\"&H9056),\"0\"),Notes!$B$5:$C$100,2,FALSE),\"\"))","v":""},"2e","$AO$51","$AP$51"]
[35093,{"$f":"Menu!$F$29","v":"X"},{"$f":"Menu!$J$29","v":2020},{"$f":"IF(ISBLANK(INDIRECT(\"'\"&F9057&\"'!\"&G9057)),\"\",INDIRECT(\"'\"&F9057&\"'!\"&G9057))","v":""},{"$f":"IF(ISBLANK(INDIRECT(\"'\"&F9057&\"'!\"&H9057)),\"\",IFERROR(VLOOKUP(TEXT(INDIRECT(\"'\"&F9057&\"'!\"&H9057),\"0\"),Notes!$B$5:$C$100,2,FALSE),\"\"))","v":""},"2e","$AO$45","$AP$45"]
[35094,{"$f":"Menu!$F$29","v":"X"},{"$f":"Menu!$J$29","v":2020},{"$f":"IF(ISBLANK(INDIRECT(\"'\"&F9058&\"'!\"&G9058)),\"\",INDIRECT(\"'\"&F9058&\"'!\"&G9058))","v":""},{"$f":"IF(ISBLANK(INDIRECT(\"'\"&F9058&\"'!\"&H9058)),\"\",IFERROR(VLOOKUP(TEXT(INDIRECT(\"'\"&F9058&\"'!\"&H9058),\"0\"),Notes!$B$5:$C$100,2,FALSE),\"\"))","v":""},"2e","$AO$46","$AP$46"]
[35096,{"$f":"Menu!$F$29","v":"X"},{"$f":"Menu!$J$29","v":2020},{"$f":"IF(ISBLANK(INDIRECT(\"'\"&F9059&\"'!\"&G9059)),\"\",INDIRECT(\"'\"&F9059&\"'!\"&G9059))","v":""},{"$f":"IF(ISBLANK(INDIRECT(\"'\"&F9059&\"'!\"&H9059)),\"\",IFERROR(VLOOKUP(TEXT(INDIRECT(\"'\"&F9059&\"'!\"&H9059),\"0\"),Notes!$B$5:$C$100,2,FALSE),\"\"))","v":""},"2e","$AU$23","$AV$23"]
[35099,{"$f":"Menu!$F$29","v":"X"},{"$f":"Menu!$J$29","v":2020},{"$f":"IF(ISBLANK(INDIRECT(\"'\"&F9060&\"'!\"&G9060)),\"\",INDIRECT(\"'\"&F9060&\"'!\"&G9060))","v":""},{"$f":"IF(ISBLANK(INDIRECT(\"'\"&F9060&\"'!\"&H9060)),\"\",IFERROR(VLOOKUP(TEXT(INDIRECT(\"'\"&F9060&\"'!\"&H9060),\"0\"),Notes!$B$5:$C$100,2,FALSE),\"\"))","v":""},"2e","$AU$30","$AV$30"]
[35100,{"$f":"Menu!$F$29","v":"X"},{"$f":"Menu!$J$29","v":2020},{"$f":"IF(ISBLANK(INDIRECT(\"'\"&F9061&\"'!\"&G9061)),\"\",INDIRECT(\"'\"&F9061&\"'!\"&G9061))","v":""},{"$f":"IF(ISBLANK(INDIRECT(\"'\"&F9061&\"'!\"&H9061)),\"\",IFERROR(VLOOKUP(TEXT(INDIRECT(\"'\"&F9061&\"'!\"&H9061),\"0\"),Notes!$B$5:$C$100,2,FALSE),\"\"))","v":""},"2e","$AU$31","$AV$31"]
[35102,{"$f":"Menu!$F$29","v":"X"},{"$f":"Menu!$J$29","v":2020},{"$f":"IF(ISBLANK(INDIRECT(\"'\"&F9062&\"'!\"&G9062)),\"\",INDIRECT(\"'\"&F9062&\"'!\"&G9062))","v":""},{"$f":"IF(ISBLANK(INDIRECT(\"'\"&F9062&\"'!\"&H9062)),\"\",IFERROR(VLOOKUP(TEXT(INDIRECT(\"'\"&F9062&\"'!\"&H9062),\"0\"),Notes!$B$5:$C$100,2,FALSE),\"\"))","v":""},"2e","$AU$37","$AV$37"]
[35103,{"$f":"Menu!$F$29","v":"X"},{"$f":"Menu!$J$29","v":2020},{"$f":"IF(ISBLANK(INDIRECT(\"'\"&F9063&\"'!\"&G9063)),\"\",INDIRECT(\"'\"&F9063&\"'!\"&G9063))","v":""},{"$f":"IF(ISBLANK(INDIRECT(\"'\"&F9063&\"'!\"&H9063)),\"\",IFERROR(VLOOKUP(TEXT(INDIRECT(\"'\"&F9063&\"'!\"&H9063),\"0\"),Notes!$B$5:$C$100,2,FALSE),\"\"))","v":""},"2e","$AU$38","$AV$38"]
[35105,{"$f":"Menu!$F$29","v":"X"},{"$f":"Menu!$J$29","v":2020},{"$f":"IF(ISBLANK(INDIRECT(\"'\"&F9064&\"'!\"&G9064)),\"\",INDIRECT(\"'\"&F9064&\"'!\"&G9064))","v":""},{"$f":"IF(ISBLANK(INDIRECT(\"'\"&F9064&\"'!\"&H9064)),\"\",IFERROR(VLOOKUP(TEXT(INDIRECT(\"'\"&F9064&\"'!\"&H9064),\"0\"),Notes!$B$5:$C$100,2,FALSE),\"\"))","v":""},"2e","$AU$50","$AV$50"]
[35106,{"$f":"Menu!$F$29","v":"X"},{"$f":"Menu!$J$29","v":2020},{"$f":"IF(ISBLANK(INDIRECT(\"'\"&F9065&\"'!\"&G9065)),\"\",INDIRECT(\"'\"&F9065&\"'!\"&G9065))","v":""},{"$f":"IF(ISBLANK(INDIRECT(\"'\"&F9065&\"'!\"&H9065)),\"\",IFERROR(VLOOKUP(TEXT(INDIRECT(\"'\"&F9065&\"'!\"&H9065),\"0\"),Notes!$B$5:$C$100,2,FALSE),\"\"))","v":""},"2e","$AU$51","$AV$51"]
[35108,{"$f":"Menu!$F$29","v":"X"},{"$f":"Menu!$J$29","v":2020},{"$f":"IF(ISBLANK(INDIRECT(\"'\"&F9066&\"'!\"&G9066)),\"\",INDIRECT(\"'\"&F9066&\"'!\"&G9066))","v":""},{"$f":"IF(ISBLANK(INDIRECT(\"'\"&F9066&\"'!\"&H9066)),\"\",IFERROR(VLOOKUP(TEXT(INDIRECT(\"'\"&F9066&\"'!\"&H9066),\"0\"),Notes!$B$5:$C$100,2,FALSE),\"\"))","v":""},"2e","$AU$45","$AV$45"]
[35109,{"$f":"Menu!$F$29","v":"X"},{"$f":"Menu!$J$29","v":2020},{"$f":"IF(ISBLANK(INDIRECT(\"'\"&F9067&\"'!\"&G9067)),\"\",INDIRECT(\"'\"&F9067&\"'!\"&G9067))","v":""},{"$f":"IF(ISBLANK(INDIRECT(\"'\"&F9067&\"'!\"&H9067)),\"\",IFERROR(VLOOKUP(TEXT(INDIRECT(\"'\"&F9067&\"'!\"&H9067),\"0\"),Notes!$B$5:$C$100,2,FALSE),\"\"))","v":""},"2e","$AU$46","$AV$46"]
[35111,{"$f":"Menu!$F$29","v":"X"},{"$f":"Menu!$J$29","v":2020},{"$f":"IF(ISBLANK(INDIRECT(\"'\"&F9068&\"'!\"&G9068)),\"\",INDIRECT(\"'\"&F9068&\"'!\"&G9068))","v":""},{"$f":"IF(ISBLANK(INDIRECT(\"'\"&F9068&\"'!\"&H9068)),\"\",IFERROR(VLOOKUP(TEXT(INDIRECT(\"'\"&F9068&\"'!\"&H9068),\"0\"),Notes!$B$5:$C$100,2,FALSE),\"\"))","v":""},"2e","$BA$23","$BB$23"]
[35114,{"$f":"Menu!$F$29","v":"X"},{"$f":"Menu!$J$29","v":2020},{"$f":"IF(ISBLANK(INDIRECT(\"'\"&F9069&\"'!\"&G9069)),\"\",INDIRECT(\"'\"&F9069&\"'!\"&G9069))","v":""},{"$f":"IF(ISBLANK(INDIRECT(\"'\"&F9069&\"'!\"&H9069)),\"\",IFERROR(VLOOKUP(TEXT(INDIRECT(\"'\"&F9069&\"'!\"&H9069),\"0\"),Notes!$B$5:$C$100,2,FALSE),\"\"))","v":""},"2e","$BA$30","$BB$30"]
[35115,{"$f":"Menu!$F$29","v":"X"},{"$f":"Menu!$J$29","v":2020},{"$f":"IF(ISBLANK(INDIRECT(\"'\"&F9070&\"'!\"&G9070)),\"\",INDIRECT(\"'\"&F9070&\"'!\"&G9070))","v":""},{"$f":"IF(ISBLANK(INDIRECT(\"'\"&F9070&\"'!\"&H9070)),\"\",IFERROR(VLOOKUP(TEXT(INDIRECT(\"'\"&F9070&\"'!\"&H9070),\"0\"),Notes!$B$5:$C$100,2,FALSE),\"\"))","v":""},"2e","$BA$31","$BB$31"]
[35117,{"$f":"Menu!$F$29","v":"X"},{"$f":"Menu!$J$29","v":2020},{"$f":"IF(ISBLANK(INDIRECT(\"'\"&F9071&\"'!\"&G9071)),\"\",INDIRECT(\"'\"&F9071&\"'!\"&G9071))","v":""},{"$f":"IF(ISBLANK(INDIRECT(\"'\"&F9071&\"'!\"&H9071)),\"\",IFERROR(VLOOKUP(TEXT(INDIRECT(\"'\"&F9071&\"'!\"&H9071),\"0\"),Notes!$B$5:$C$100,2,FALSE),\"\"))","v":""},"2e","$BA$37","$BB$37"]
[35118,{"$f":"Menu!$F$29","v":"X"},{"$f":"Menu!$J$29","v":2020},{"$f":"IF(ISBLANK(INDIRECT(\"'\"&F9072&\"'!\"&G9072)),\"\",INDIRECT(\"'\"&F9072&\"'!\"&G9072))","v":""},{"$f":"IF(ISBLANK(INDIRECT(\"'\"&F9072&\"'!\"&H9072)),\"\",IFERROR(VLOOKUP(TEXT(INDIRECT(\"'\"&F9072&\"'!\"&H9072),\"0\"),Notes!$B$5:$C$100,2,FALSE),\"\"))","v":""},"2e","$BA$38","$BB$38"]
[35120,{"$f":"Menu!$F$29","v":"X"},{"$f":"Menu!$J$29","v":2020},{"$f":"IF(ISBLANK(INDIRECT(\"'\"&F9073&\"'!\"&G9073)),\"\",INDIRECT(\"'\"&F9073&\"'!\"&G9073))","v":""},{"$f":"IF(ISBLANK(INDIRECT(\"'\"&F9073&\"'!\"&H9073)),\"\",IFERROR(VLOOKUP(TEXT(INDIRECT(\"'\"&F9073&\"'!\"&H9073),\"0\"),Notes!$B$5:$C$100,2,FALSE),\"\"))","v":""},"2e","$BA$50","$BB$50"]
[35121,{"$f":"Menu!$F$29","v":"X"},{"$f":"Menu!$J$29","v":2020},{"$f":"IF(ISBLANK(INDIRECT(\"'\"&F9074&\"'!\"&G9074)),\"\",INDIRECT(\"'\"&F9074&\"'!\"&G9074))","v":""},{"$f":"IF(ISBLANK(INDIRECT(\"'\"&F9074&\"'!\"&H9074)),\"\",IFERROR(VLOOKUP(TEXT(INDIRECT(\"'\"&F9074&\"'!\"&H9074),\"0\"),Notes!$B$5:$C$100,2,FALSE),\"\"))","v":""},"2e","$BA$51","$BB$51"]
[35123,{"$f":"Menu!$F$29","v":"X"},{"$f":"Menu!$J$29","v":2020},{"$f":"IF(ISBLANK(INDIRECT(\"'\"&F9075&\"'!\"&G9075)),\"\",INDIRECT(\"'\"&F9075&\"'!\"&G9075))","v":""},{"$f":"IF(ISBLANK(INDIRECT(\"'\"&F9075&\"'!\"&H9075)),\"\",IFERROR(VLOOKUP(TEXT(INDIRECT(\"'\"&F9075&\"'!\"&H9075),\"0\"),Notes!$B$5:$C$100,2,FALSE),\"\"))","v":""},"2e","$BA$45","$BB$45"]
[35124,{"$f":"Menu!$F$29","v":"X"},{"$f":"Menu!$J$29","v":2020},{"$f":"IF(ISBLANK(INDIRECT(\"'\"&F9076&\"'!\"&G9076)),\"\",INDIRECT(\"'\"&F9076&\"'!\"&G9076))","v":""},{"$f":"IF(ISBLANK(INDIRECT(\"'\"&F9076&\"'!\"&H9076)),\"\",IFERROR(VLOOKUP(TEXT(INDIRECT(\"'\"&F9076&\"'!\"&H9076),\"0\"),Notes!$B$5:$C$100,2,FALSE),\"\"))","v":""},"2e","$BA$46","$BB$46"]
[35126,{"$f":"Menu!$F$29","v":"X"},{"$f":"Menu!$J$29","v":2020},{"$f":"IF(ISBLANK(INDIRECT(\"'\"&F9077&\"'!\"&G9077)),\"\",INDIRECT(\"'\"&F9077&\"'!\"&G9077))","v":""},{"$f":"IF(ISBLANK(INDIRECT(\"'\"&F9077&\"'!\"&H9077)),\"\",IFERROR(VLOOKUP(TEXT(INDIRECT(\"'\"&F9077&\"'!\"&H9077),\"0\"),Notes!$B$5:$C$100,2,FALSE),\"\"))","v":""},"2a","$M$22","$N$22"]
[35129,{"$f":"Menu!$F$29","v":"X"},{"$f":"Menu!$J$29","v":2020},{"$f":"IF(ISBLANK(INDIRECT(\"'\"&F9078&\"'!\"&G9078)),\"\",INDIRECT(\"'\"&F9078&\"'!\"&G9078))","v":""},{"$f":"IF(ISBLANK(INDIRECT(\"'\"&F9078&\"'!\"&H9078)),\"\",IFERROR(VLOOKUP(TEXT(INDIRECT(\"'\"&F9078&\"'!\"&H9078),\"0\"),Notes!$B$5:$C$100,2,FALSE),\"\"))","v":""},"2a","$M$29","$N$29"]
[35130,{"$f":"Menu!$F$29","v":"X"},{"$f":"Menu!$J$29","v":2020},{"$f":"IF(ISBLANK(INDIRECT(\"'\"&F9079&\"'!\"&G9079)),\"\",INDIRECT(\"'\"&F9079&\"'!\"&G9079))","v":""},{"$f":"IF(ISBLANK(INDIRECT(\"'\"&F9079&\"'!\"&H9079)),\"\",IFERROR(VLOOKUP(TEXT(INDIRECT(\"'\"&F9079&\"'!\"&H9079),\"0\"),Notes!$B$5:$C$100,2,FALSE),\"\"))","v":""},"2a","$M$30","$N$30"]
[35132,{"$f":"Menu!$F$29","v":"X"},{"$f":"Menu!$J$29","v":2020},{"$f":"IF(ISBLANK(INDIRECT(\"'\"&F9080&\"'!\"&G9080)),\"\",INDIRECT(\"'\"&F9080&\"'!\"&G9080))","v":""},{"$f":"IF(ISBLANK(INDIRECT(\"'\"&F9080&\"'!\"&H9080)),\"\",IFERROR(VLOOKUP(TEXT(INDIRECT(\"'\"&F9080&\"'!\"&H9080),\"0\"),Notes!$B$5:$C$100,2,FALSE),\"\"))","v":""},"2a","$M$36","$N$36"]
[35133,{"$f":"Menu!$F$29","v":"X"},{"$f":"Menu!$J$29","v":2020},{"$f":"IF(ISBLANK(INDIRECT(\"'\"&F9081&\"'!\"&G9081)),\"\",INDIRECT(\"'\"&F9081&\"'!\"&G9081))","v":""},{"$f":"IF(ISBLANK(INDIRECT(\"'\"&F9081&\"'!\"&H9081)),\"\",IFERROR(VLOOKUP(TEXT(INDIRECT(\"'\"&F9081&\"'!\"&H9081),\"0\"),Notes!$B$5:$C$100,2,FALSE),\"\"))","v":""},"2a","$M$37","$N$37"]
[35135,{"$f":"Menu!$F$29","v":"X"},{"$f":"Menu!$J$29","v":2020},{"$f":"IF(ISBLANK(INDIRECT(\"'\"&F9082&\"'!\"&G9082)),\"\",INDIRECT(\"'\"&F9082&\"'!\"&G9082))","v":""},{"$f":"IF(ISBLANK(INDIRECT(\"'\"&F9082&\"'!\"&H9082)),\"\",IFERROR(VLOOKUP(TEXT(INDIRECT(\"'\"&F9082&\"'!\"&H9082),\"0\"),Notes!$B$5:$C$100,2,FALSE),\"\"))","v":""},"2a","$M$49","$N$49"]
[35136,{"$f":"Menu!$F$29","v":"X"},{"$f":"Menu!$J$29","v":2020},{"$f":"IF(ISBLANK(INDIRECT(\"'\"&F9083&\"'!\"&G9083)),\"\",INDIRECT(\"'\"&F9083&\"'!\"&G9083))","v":""},{"$f":"IF(ISBLANK(INDIRECT(\"'\"&F9083&\"'!\"&H9083)),\"\",IFERROR(VLOOKUP(TEXT(INDIRECT(\"'\"&F9083&\"'!\"&H9083),\"0\"),Notes!$B$5:$C$100,2,FALSE),\"\"))","v":""},"2a","$M$50","$N$50"]
[35138,{"$f":"Menu!$F$29","v":"X"},{"$f":"Menu!$J$29","v":2020},{"$f":"IF(ISBLANK(INDIRECT(\"'\"&F9084&\"'!\"&G9084)),\"\",INDIRECT(\"'\"&F9084&\"'!\"&G9084))","v":""},{"$f":"IF(ISBLANK(INDIRECT(\"'\"&F9084&\"'!\"&H9084)),\"\",IFERROR(VLOOKUP(TEXT(INDIRECT(\"'\"&F9084&\"'!\"&H9084),\"0\"),Notes!$B$5:$C$100,2,FALSE),\"\"))","v":""},"2a","$M$44","$N$44"]
[35139,{"$f":"Menu!$F$29","v":"X"},{"$f":"Menu!$J$29","v":2020},{"$f":"IF(ISBLANK(INDIRECT(\"'\"&F9085&\"'!\"&G9085)),\"\",INDIRECT(\"'\"&F9085&\"'!\"&G9085))","v":""},{"$f":"IF(ISBLANK(INDIRECT(\"'\"&F9085&\"'!\"&H9085)),\"\",IFERROR(VLOOKUP(TEXT(INDIRECT(\"'\"&F9085&\"'!\"&H9085),\"0\"),Notes!$B$5:$C$100,2,FALSE),\"\"))","v":""},"2a","$M$45","$N$45"]
[35141,{"$f":"Menu!$F$29","v":"X"},{"$f":"Menu!$J$29","v":2020},{"$f":"IF(ISBLANK(INDIRECT(\"'\"&F9086&\"'!\"&G9086)),\"\",INDIRECT(\"'\"&F9086&\"'!\"&G9086))","v":""},{"$f":"IF(ISBLANK(INDIRECT(\"'\"&F9086&\"'!\"&H9086)),\"\",IFERROR(VLOOKUP(TEXT(INDIRECT(\"'\"&F9086&\"'!\"&H9086),\"0\"),Notes!$B$5:$C$100,2,FALSE),\"\"))","v":""},"2a","$S$22","$T$22"]
[35144,{"$f":"Menu!$F$29","v":"X"},{"$f":"Menu!$J$29","v":2020},{"$f":"IF(ISBLANK(INDIRECT(\"'\"&F9087&\"'!\"&G9087)),\"\",INDIRECT(\"'\"&F9087&\"'!\"&G9087))","v":""},{"$f":"IF(ISBLANK(INDIRECT(\"'\"&F9087&\"'!\"&H9087)),\"\",IFERROR(VLOOKUP(TEXT(INDIRECT(\"'\"&F9087&\"'!\"&H9087),\"0\"),Notes!$B$5:$C$100,2,FALSE),\"\"))","v":""},"2a","$S$29","$T$29"]
[35145,{"$f":"Menu!$F$29","v":"X"},{"$f":"Menu!$J$29","v":2020},{"$f":"IF(ISBLANK(INDIRECT(\"'\"&F9088&\"'!\"&G9088)),\"\",INDIRECT(\"'\"&F9088&\"'!\"&G9088))","v":""},{"$f":"IF(ISBLANK(INDIRECT(\"'\"&F9088&\"'!\"&H9088)),\"\",IFERROR(VLOOKUP(TEXT(INDIRECT(\"'\"&F9088&\"'!\"&H9088),\"0\"),Notes!$B$5:$C$100,2,FALSE),\"\"))","v":""},"2a","$S$30","$T$30"]
[35147,{"$f":"Menu!$F$29","v":"X"},{"$f":"Menu!$J$29","v":2020},{"$f":"IF(ISBLANK(INDIRECT(\"'\"&F9089&\"'!\"&G9089)),\"\",INDIRECT(\"'\"&F9089&\"'!\"&G9089))","v":""},{"$f":"IF(ISBLANK(INDIRECT(\"'\"&F9089&\"'!\"&H9089)),\"\",IFERROR(VLOOKUP(TEXT(INDIRECT(\"'\"&F9089&\"'!\"&H9089),\"0\"),Notes!$B$5:$C$100,2,FALSE),\"\"))","v":""},"2a","$S$36","$T$36"]
[35148,{"$f":"Menu!$F$29","v":"X"},{"$f":"Menu!$J$29","v":2020},{"$f":"IF(ISBLANK(INDIRECT(\"'\"&F9090&\"'!\"&G9090)),\"\",INDIRECT(\"'\"&F9090&\"'!\"&G9090))","v":""},{"$f":"IF(ISBLANK(INDIRECT(\"'\"&F9090&\"'!\"&H9090)),\"\",IFERROR(VLOOKUP(TEXT(INDIRECT(\"'\"&F9090&\"'!\"&H9090),\"0\"),Notes!$B$5:$C$100,2,FALSE),\"\"))","v":""},"2a","$S$37",{"$f":"IF(LEN(TRIM(MID(G9090,4,10)))-LEN(SUBSTITUTE(TRIM(MID(G9090,4,10)),\"$\",\"\"))=0,\"$\"&CHAR(CODE(MID(G9090,2,1))+1)&\"$\"&TRIM(MID(G9090,4,10)),\"$\"&MID(G9090,2,1)&CHAR(CODE(MID(G9090,3,1))+1)&\"$\"&TRIM(MID(G9090,5,11)))","v":"$T$37"}]
[35150,{"$f":"Menu!$F$29","v":"X"},{"$f":"Menu!$J$29","v":2020},{"$f":"IF(ISBLANK(INDIRECT(\"'\"&F9091&\"'!\"&G9091)),\"\",INDIRECT(\"'\"&F9091&\"'!\"&G9091))","v":""},{"$f":"IF(ISBLANK(INDIRECT(\"'\"&F9091&\"'!\"&H9091)),\"\",IFERROR(VLOOKUP(TEXT(INDIRECT(\"'\"&F9091&\"'!\"&H9091),\"0\"),Notes!$B$5:$C$100,2,FALSE),\"\"))","v":""},"2a","$S$49","$T$49"]
[35151,{"$f":"Menu!$F$29","v":"X"},{"$f":"Menu!$J$29","v":2020},{"$f":"IF(ISBLANK(INDIRECT(\"'\"&F9092&\"'!\"&G9092)),\"\",INDIRECT(\"'\"&F9092&\"'!\"&G9092))","v":""},{"$f":"IF(ISBLANK(INDIRECT(\"'\"&F9092&\"'!\"&H9092)),\"\",IFERROR(VLOOKUP(TEXT(INDIRECT(\"'\"&F9092&\"'!\"&H9092),\"0\"),Notes!$B$5:$C$100,2,FALSE),\"\"))","v":""},"2a","$S$50","$T$50"]
[35153,{"$f":"Menu!$F$29","v":"X"},{"$f":"Menu!$J$29","v":2020},{"$f":"IF(ISBLANK(INDIRECT(\"'\"&F9093&\"'!\"&G9093)),\"\",INDIRECT(\"'\"&F9093&\"'!\"&G9093))","v":""},{"$f":"IF(ISBLANK(INDIRECT(\"'\"&F9093&\"'!\"&H9093)),\"\",IFERROR(VLOOKUP(TEXT(INDIRECT(\"'\"&F9093&\"'!\"&H9093),\"0\"),Notes!$B$5:$C$100,2,FALSE),\"\"))","v":""},"2a","$S$44","$T$44"]
[35154,{"$f":"Menu!$F$29","v":"X"},{"$f":"Menu!$J$29","v":2020},{"$f":"IF(ISBLANK(INDIRECT(\"'\"&F9094&\"'!\"&G9094)),\"\",INDIRECT(\"'\"&F9094&\"'!\"&G9094))","v":""},{"$f":"IF(ISBLANK(INDIRECT(\"'\"&F9094&\"'!\"&H9094)),\"\",IFERROR(VLOOKUP(TEXT(INDIRECT(\"'\"&F9094&\"'!\"&H9094),\"0\"),Notes!$B$5:$C$100,2,FALSE),\"\"))","v":""},"2a","$S$45","$T$45"]
[35156,{"$f":"Menu!$F$29","v":"X"},{"$f":"Menu!$J$29","v":2020},{"$f":"IF(ISBLANK(INDIRECT(\"'\"&F9095&\"'!\"&G9095)),\"\",INDIRECT(\"'\"&F9095&\"'!\"&G9095))","v":""},{"$f":"IF(ISBLANK(INDIRECT(\"'\"&F9095&\"'!\"&H9095)),\"\",IFERROR(VLOOKUP(TEXT(INDIRECT(\"'\"&F9095&\"'!\"&H9095),\"0\"),Notes!$B$5:$C$100,2,FALSE),\"\"))","v":""},"2c","$G$22","$H$22"]
[35159,{"$f":"Menu!$F$29","v":"X"},{"$f":"Menu!$J$29","v":2020},{"$f":"IF(ISBLANK(INDIRECT(\"'\"&F9096&\"'!\"&G9096)),\"\",INDIRECT(\"'\"&F9096&\"'!\"&G9096))","v":""},{"$f":"IF(ISBLANK(INDIRECT(\"'\"&F9096&\"'!\"&H9096)),\"\",IFERROR(VLOOKUP(TEXT(INDIRECT(\"'\"&F9096&\"'!\"&H9096),\"0\"),Notes!$B$5:$C$100,2,FALSE),\"\"))","v":""},"2c","$G$29","$H$29"]
[35160,{"$f":"Menu!$F$29","v":"X"},{"$f":"Menu!$J$29","v":2020},{"$f":"IF(ISBLANK(INDIRECT(\"'\"&F9097&\"'!\"&G9097)),\"\",INDIRECT(\"'\"&F9097&\"'!\"&G9097))","v":""},{"$f":"IF(ISBLANK(INDIRECT(\"'\"&F9097&\"'!\"&H9097)),\"\",IFERROR(VLOOKUP(TEXT(INDIRECT(\"'\"&F9097&\"'!\"&H9097),\"0\"),Notes!$B$5:$C$100,2,FALSE),\"\"))","v":""},"2c","$G$30","$H$30"]
[35162,{"$f":"Menu!$F$29","v":"X"},{"$f":"Menu!$J$29","v":2020},{"$f":"IF(ISBLANK(INDIRECT(\"'\"&F9098&\"'!\"&G9098)),\"\",INDIRECT(\"'\"&F9098&\"'!\"&G9098))","v":""},{"$f":"IF(ISBLANK(INDIRECT(\"'\"&F9098&\"'!\"&H9098)),\"\",IFERROR(VLOOKUP(TEXT(INDIRECT(\"'\"&F9098&\"'!\"&H9098),\"0\"),Notes!$B$5:$C$100,2,FALSE),\"\"))","v":""},"2c","$G$36","$H$36"]
[35163,{"$f":"Menu!$F$29","v":"X"},{"$f":"Menu!$J$29","v":2020},{"$f":"IF(ISBLANK(INDIRECT(\"'\"&F9099&\"'!\"&G9099)),\"\",INDIRECT(\"'\"&F9099&\"'!\"&G9099))","v":""},{"$f":"IF(ISBLANK(INDIRECT(\"'\"&F9099&\"'!\"&H9099)),\"\",IFERROR(VLOOKUP(TEXT(INDIRECT(\"'\"&F9099&\"'!\"&H9099),\"0\"),Notes!$B$5:$C$100,2,FALSE),\"\"))","v":""},"2c","$G$37","$H$37"]
[35165,{"$f":"Menu!$F$29","v":"X"},{"$f":"Menu!$J$29","v":2020},{"$f":"IF(ISBLANK(INDIRECT(\"'\"&F9100&\"'!\"&G9100)),\"\",INDIRECT(\"'\"&F9100&\"'!\"&G9100))","v":""},{"$f":"IF(ISBLANK(INDIRECT(\"'\"&F9100&\"'!\"&H9100)),\"\",IFERROR(VLOOKUP(TEXT(INDIRECT(\"'\"&F9100&\"'!\"&H9100),\"0\"),Notes!$B$5:$C$100,2,FALSE),\"\"))","v":""},"2c","$G$49","$H$49"]
[35166,{"$f":"Menu!$F$29","v":"X"},{"$f":"Menu!$J$29","v":2020},{"$f":"IF(ISBLANK(INDIRECT(\"'\"&F9101&\"'!\"&G9101)),\"\",INDIRECT(\"'\"&F9101&\"'!\"&G9101))","v":""},{"$f":"IF(ISBLANK(INDIRECT(\"'\"&F9101&\"'!\"&H9101)),\"\",IFERROR(VLOOKUP(TEXT(INDIRECT(\"'\"&F9101&\"'!\"&H9101),\"0\"),Notes!$B$5:$C$100,2,FALSE),\"\"))","v":""},"2c","$G$50","$H$50"]
[35168,{"$f":"Menu!$F$29","v":"X"},{"$f":"Menu!$J$29","v":2020},{"$f":"IF(ISBLANK(INDIRECT(\"'\"&F9102&\"'!\"&G9102)),\"\",INDIRECT(\"'\"&F9102&\"'!\"&G9102))","v":""},{"$f":"IF(ISBLANK(INDIRECT(\"'\"&F9102&\"'!\"&H9102)),\"\",IFERROR(VLOOKUP(TEXT(INDIRECT(\"'\"&F9102&\"'!\"&H9102),\"0\"),Notes!$B$5:$C$100,2,FALSE),\"\"))","v":""},"2c","$G$44","$H$44"]
[35169,{"$f":"Menu!$F$29","v":"X"},{"$f":"Menu!$J$29","v":2020},{"$f":"IF(ISBLANK(INDIRECT(\"'\"&F9103&\"'!\"&G9103)),\"\",INDIRECT(\"'\"&F9103&\"'!\"&G9103))","v":""},{"$f":"IF(ISBLANK(INDIRECT(\"'\"&F9103&\"'!\"&H9103)),\"\",IFERROR(VLOOKUP(TEXT(INDIRECT(\"'\"&F9103&\"'!\"&H9103),\"0\"),Notes!$B$5:$C$100,2,FALSE),\"\"))","v":""},"2c","$G$45","$H$45"]
[35171,{"$f":"Menu!$F$29","v":"X"},{"$f":"Menu!$J$29","v":2020},{"$f":"IF(ISBLANK(INDIRECT(\"'\"&F9104&\"'!\"&G9104)),\"\",INDIRECT(\"'\"&F9104&\"'!\"&G9104))","v":""},{"$f":"IF(ISBLANK(INDIRECT(\"'\"&F9104&\"'!\"&H9104)),\"\",IFERROR(VLOOKUP(TEXT(INDIRECT(\"'\"&F9104&\"'!\"&H9104),\"0\"),Notes!$B$5:$C$100,2,FALSE),\"\"))","v":""},"2c","$M$22","$N$22"]
[35174,{"$f":"Menu!$F$29","v":"X"},{"$f":"Menu!$J$29","v":2020},{"$f":"IF(ISBLANK(INDIRECT(\"'\"&F9105&\"'!\"&G9105)),\"\",INDIRECT(\"'\"&F9105&\"'!\"&G9105))","v":""},{"$f":"IF(ISBLANK(INDIRECT(\"'\"&F9105&\"'!\"&H9105)),\"\",IFERROR(VLOOKUP(TEXT(INDIRECT(\"'\"&F9105&\"'!\"&H9105),\"0\"),Notes!$B$5:$C$100,2,FALSE),\"\"))","v":""},"2c","$M$29","$N$29"]
[35175,{"$f":"Menu!$F$29","v":"X"},{"$f":"Menu!$J$29","v":2020},{"$f":"IF(ISBLANK(INDIRECT(\"'\"&F9106&\"'!\"&G9106)),\"\",INDIRECT(\"'\"&F9106&\"'!\"&G9106))","v":""},{"$f":"IF(ISBLANK(INDIRECT(\"'\"&F9106&\"'!\"&H9106)),\"\",IFERROR(VLOOKUP(TEXT(INDIRECT(\"'\"&F9106&\"'!\"&H9106),\"0\"),Notes!$B$5:$C$100,2,FALSE),\"\"))","v":""},"2c","$M$30","$N$30"]
[35177,{"$f":"Menu!$F$29","v":"X"},{"$f":"Menu!$J$29","v":2020},{"$f":"IF(ISBLANK(INDIRECT(\"'\"&F9107&\"'!\"&G9107)),\"\",INDIRECT(\"'\"&F9107&\"'!\"&G9107))","v":""},{"$f":"IF(ISBLANK(INDIRECT(\"'\"&F9107&\"'!\"&H9107)),\"\",IFERROR(VLOOKUP(TEXT(INDIRECT(\"'\"&F9107&\"'!\"&H9107),\"0\"),Notes!$B$5:$C$100,2,FALSE),\"\"))","v":""},"2c","$M$36","$N$36"]
[35178,{"$f":"Menu!$F$29","v":"X"},{"$f":"Menu!$J$29","v":2020},{"$f":"IF(ISBLANK(INDIRECT(\"'\"&F9108&\"'!\"&G9108)),\"\",INDIRECT(\"'\"&F9108&\"'!\"&G9108))","v":""},{"$f":"IF(ISBLANK(INDIRECT(\"'\"&F9108&\"'!\"&H9108)),\"\",IFERROR(VLOOKUP(TEXT(INDIRECT(\"'\"&F9108&\"'!\"&H9108),\"0\"),Notes!$B$5:$C$100,2,FALSE),\"\"))","v":""},"2c","$M$37","$N$37"]
[35180,{"$f":"Menu!$F$29","v":"X"},{"$f":"Menu!$J$29","v":2020},{"$f":"IF(ISBLANK(INDIRECT(\"'\"&F9109&\"'!\"&G9109)),\"\",INDIRECT(\"'\"&F9109&\"'!\"&G9109))","v":""},{"$f":"IF(ISBLANK(INDIRECT(\"'\"&F9109&\"'!\"&H9109)),\"\",IFERROR(VLOOKUP(TEXT(INDIRECT(\"'\"&F9109&\"'!\"&H9109),\"0\"),Notes!$B$5:$C$100,2,FALSE),\"\"))","v":""},"2c","$M$49","$N$49"]
[35181,{"$f":"Menu!$F$29","v":"X"},{"$f":"Menu!$J$29","v":2020},{"$f":"IF(ISBLANK(INDIRECT(\"'\"&F9110&\"'!\"&G9110)),\"\",INDIRECT(\"'\"&F9110&\"'!\"&G9110))","v":""},{"$f":"IF(ISBLANK(INDIRECT(\"'\"&F9110&\"'!\"&H9110)),\"\",IFERROR(VLOOKUP(TEXT(INDIRECT(\"'\"&F9110&\"'!\"&H9110),\"0\"),Notes!$B$5:$C$100,2,FALSE),\"\"))","v":""},"2c","$M$50","$N$50"]
[35183,{"$f":"Menu!$F$29","v":"X"},{"$f":"Menu!$J$29","v":2020},{"$f":"IF(ISBLANK(INDIRECT(\"'\"&F9111&\"'!\"&G9111)),\"\",INDIRECT(\"'\"&F9111&\"'!\"&G9111))","v":""},{"$f":"IF(ISBLANK(INDIRECT(\"'\"&F9111&\"'!\"&H9111)),\"\",IFERROR(VLOOKUP(TEXT(INDIRECT(\"'\"&F9111&\"'!\"&H9111),\"0\"),Notes!$B$5:$C$100,2,FALSE),\"\"))","v":""},"2c","$M$44","$N$44"]
[35184,{"$f":"Menu!$F$29","v":"X"},{"$f":"Menu!$J$29","v":2020},{"$f":"IF(ISBLANK(INDIRECT(\"'\"&F9112&\"'!\"&G9112)),\"\",INDIRECT(\"'\"&F9112&\"'!\"&G9112))","v":""},{"$f":"IF(ISBLANK(INDIRECT(\"'\"&F9112&\"'!\"&H9112)),\"\",IFERROR(VLOOKUP(TEXT(INDIRECT(\"'\"&F9112&\"'!\"&H9112),\"0\"),Notes!$B$5:$C$100,2,FALSE),\"\"))","v":""},"2c","$M$45","$N$45"]
[35201,{"$f":"Menu!$F$29","v":"X"},{"$f":"Menu!$J$29","v":2020},{"$f":"IF(ISBLANK(INDIRECT(\"'\"&F9113&\"'!\"&G9113)),\"\",INDIRECT(\"'\"&F9113&\"'!\"&G9113))","v":""},{"$f":"IF(ISBLANK(INDIRECT(\"'\"&F9113&\"'!\"&H9113)),\"\",IFERROR(VLOOKUP(TEXT(INDIRECT(\"'\"&F9113&\"'!\"&H9113),\"0\"),Notes!$B$5:$C$100,2,FALSE),\"\"))","v":""},"2c","$S$22","$T$22"]
[35204,{"$f":"Menu!$F$29","v":"X"},{"$f":"Menu!$J$29","v":2020},{"$f":"IF(ISBLANK(INDIRECT(\"'\"&F9114&\"'!\"&G9114)),\"\",INDIRECT(\"'\"&F9114&\"'!\"&G9114))","v":""},{"$f":"IF(ISBLANK(INDIRECT(\"'\"&F9114&\"'!\"&H9114)),\"\",IFERROR(VLOOKUP(TEXT(INDIRECT(\"'\"&F9114&\"'!\"&H9114),\"0\"),Notes!$B$5:$C$100,2,FALSE),\"\"))","v":""},"2c","$S$29","$T$29"]
[35205,{"$f":"Menu!$F$29","v":"X"},{"$f":"Menu!$J$29","v":2020},{"$f":"IF(ISBLANK(INDIRECT(\"'\"&F9115&\"'!\"&G9115)),\"\",INDIRECT(\"'\"&F9115&\"'!\"&G9115))","v":""},{"$f":"IF(ISBLANK(INDIRECT(\"'\"&F9115&\"'!\"&H9115)),\"\",IFERROR(VLOOKUP(TEXT(INDIRECT(\"'\"&F9115&\"'!\"&H9115),\"0\"),Notes!$B$5:$C$100,2,FALSE),\"\"))","v":""},"2c","$S$30","$T$30"]
[35207,{"$f":"Menu!$F$29","v":"X"},{"$f":"Menu!$J$29","v":2020},{"$f":"IF(ISBLANK(INDIRECT(\"'\"&F9116&\"'!\"&G9116)),\"\",INDIRECT(\"'\"&F9116&\"'!\"&G9116))","v":""},{"$f":"IF(ISBLANK(INDIRECT(\"'\"&F9116&\"'!\"&H9116)),\"\",IFERROR(VLOOKUP(TEXT(INDIRECT(\"'\"&F9116&\"'!\"&H9116),\"0\"),Notes!$B$5:$C$100,2,FALSE),\"\"))","v":""},"2c","$S$36","$T$36"]
[35208,{"$f":"Menu!$F$29","v":"X"},{"$f":"Menu!$J$29","v":2020},{"$f":"IF(ISBLANK(INDIRECT(\"'\"&F9117&\"'!\"&G9117)),\"\",INDIRECT(\"'\"&F9117&\"'!\"&G9117))","v":""},{"$f":"IF(ISBLANK(INDIRECT(\"'\"&F9117&\"'!\"&H9117)),\"\",IFERROR(VLOOKUP(TEXT(INDIRECT(\"'\"&F9117&\"'!\"&H9117),\"0\"),Notes!$B$5:$C$100,2,FALSE),\"\"))","v":""},"2c","$S$37","$T$37"]
[35210,{"$f":"Menu!$F$29","v":"X"},{"$f":"Menu!$J$29","v":2020},{"$f":"IF(ISBLANK(INDIRECT(\"'\"&F9118&\"'!\"&G9118)),\"\",INDIRECT(\"'\"&F9118&\"'!\"&G9118))","v":""},{"$f":"IF(ISBLANK(INDIRECT(\"'\"&F9118&\"'!\"&H9118)),\"\",IFERROR(VLOOKUP(TEXT(INDIRECT(\"'\"&F9118&\"'!\"&H9118),\"0\"),Notes!$B$5:$C$100,2,FALSE),\"\"))","v":""},"2c","$S$49","$T$49"]
[35211,{"$f":"Menu!$F$29","v":"X"},{"$f":"Menu!$J$29","v":2020},{"$f":"IF(ISBLANK(INDIRECT(\"'\"&F9119&\"'!\"&G9119)),\"\",INDIRECT(\"'\"&F9119&\"'!\"&G9119))","v":""},{"$f":"IF(ISBLANK(INDIRECT(\"'\"&F9119&\"'!\"&H9119)),\"\",IFERROR(VLOOKUP(TEXT(INDIRECT(\"'\"&F9119&\"'!\"&H9119),\"0\"),Notes!$B$5:$C$100,2,FALSE),\"\"))","v":""},"2c","$S$50","$T$50"]
[35213,{"$f":"Menu!$F$29","v":"X"},{"$f":"Menu!$J$29","v":2020},{"$f":"IF(ISBLANK(INDIRECT(\"'\"&F9120&\"'!\"&G9120)),\"\",INDIRECT(\"'\"&F9120&\"'!\"&G9120))","v":""},{"$f":"IF(ISBLANK(INDIRECT(\"'\"&F9120&\"'!\"&H9120)),\"\",IFERROR(VLOOKUP(TEXT(INDIRECT(\"'\"&F9120&\"'!\"&H9120),\"0\"),Notes!$B$5:$C$100,2,FALSE),\"\"))","v":""},"2c","$S$44","$T$44"]
[35214,{"$f":"Menu!$F$29","v":"X"},{"$f":"Menu!$J$29","v":2020},{"$f":"IF(ISBLANK(INDIRECT(\"'\"&F9121&\"'!\"&G9121)),\"\",INDIRECT(\"'\"&F9121&\"'!\"&G9121))","v":""},{"$f":"IF(ISBLANK(INDIRECT(\"'\"&F9121&\"'!\"&H9121)),\"\",IFERROR(VLOOKUP(TEXT(INDIRECT(\"'\"&F9121&\"'!\"&H9121),\"0\"),Notes!$B$5:$C$100,2,FALSE),\"\"))","v":""},"2c","$S$45","$T$45"]
[35216,{"$f":"Menu!$F$29","v":"X"},{"$f":"Menu!$J$29","v":2020},{"$f":"IF(ISBLANK(INDIRECT(\"'\"&F9122&\"'!\"&G9122)),\"\",INDIRECT(\"'\"&F9122&\"'!\"&G9122))","v":""},{"$f":"IF(ISBLANK(INDIRECT(\"'\"&F9122&\"'!\"&H9122)),\"\",IFERROR(VLOOKUP(TEXT(INDIRECT(\"'\"&F9122&\"'!\"&H9122),\"0\"),Notes!$B$5:$C$100,2,FALSE),\"\"))","v":""},"2c","$Y$22","$Z$22"]
[35219,{"$f":"Menu!$F$29","v":"X"},{"$f":"Menu!$J$29","v":2020},{"$f":"IF(ISBLANK(INDIRECT(\"'\"&F9123&\"'!\"&G9123)),\"\",INDIRECT(\"'\"&F9123&\"'!\"&G9123))","v":""},{"$f":"IF(ISBLANK(INDIRECT(\"'\"&F9123&\"'!\"&H9123)),\"\",IFERROR(VLOOKUP(TEXT(INDIRECT(\"'\"&F9123&\"'!\"&H9123),\"0\"),Notes!$B$5:$C$100,2,FALSE),\"\"))","v":""},"2c","$Y$29","$Z$29"]
[35220,{"$f":"Menu!$F$29","v":"X"},{"$f":"Menu!$J$29","v":2020},{"$f":"IF(ISBLANK(INDIRECT(\"'\"&F9124&\"'!\"&G9124)),\"\",INDIRECT(\"'\"&F9124&\"'!\"&G9124))","v":""},{"$f":"IF(ISBLANK(INDIRECT(\"'\"&F9124&\"'!\"&H9124)),\"\",IFERROR(VLOOKUP(TEXT(INDIRECT(\"'\"&F9124&\"'!\"&H9124),\"0\"),Notes!$B$5:$C$100,2,FALSE),\"\"))","v":""},"2c","$Y$30","$Z$30"]
[35222,{"$f":"Menu!$F$29","v":"X"},{"$f":"Menu!$J$29","v":2020},{"$f":"IF(ISBLANK(INDIRECT(\"'\"&F9125&\"'!\"&G9125)),\"\",INDIRECT(\"'\"&F9125&\"'!\"&G9125))","v":""},{"$f":"IF(ISBLANK(INDIRECT(\"'\"&F9125&\"'!\"&H9125)),\"\",IFERROR(VLOOKUP(TEXT(INDIRECT(\"'\"&F9125&\"'!\"&H9125),\"0\"),Notes!$B$5:$C$100,2,FALSE),\"\"))","v":""},"2c","$Y$36","$Z$36"]
[35223,{"$f":"Menu!$F$29","v":"X"},{"$f":"Menu!$J$29","v":2020},{"$f":"IF(ISBLANK(INDIRECT(\"'\"&F9126&\"'!\"&G9126)),\"\",INDIRECT(\"'\"&F9126&\"'!\"&G9126))","v":""},{"$f":"IF(ISBLANK(INDIRECT(\"'\"&F9126&\"'!\"&H9126)),\"\",IFERROR(VLOOKUP(TEXT(INDIRECT(\"'\"&F9126&\"'!\"&H9126),\"0\"),Notes!$B$5:$C$100,2,FALSE),\"\"))","v":""},"2c","$Y$37","$Z$37"]
[35225,{"$f":"Menu!$F$29","v":"X"},{"$f":"Menu!$J$29","v":2020},{"$f":"IF(ISBLANK(INDIRECT(\"'\"&F9127&\"'!\"&G9127)),\"\",INDIRECT(\"'\"&F9127&\"'!\"&G9127))","v":""},{"$f":"IF(ISBLANK(INDIRECT(\"'\"&F9127&\"'!\"&H9127)),\"\",IFERROR(VLOOKUP(TEXT(INDIRECT(\"'\"&F9127&\"'!\"&H9127),\"0\"),Notes!$B$5:$C$100,2,FALSE),\"\"))","v":""},"2c","$Y$49","$Z$49"]
[35226,{"$f":"Menu!$F$29","v":"X"},{"$f":"Menu!$J$29","v":2020},{"$f":"IF(ISBLANK(INDIRECT(\"'\"&F9128&\"'!\"&G9128)),\"\",INDIRECT(\"'\"&F9128&\"'!\"&G9128))","v":""},{"$f":"IF(ISBLANK(INDIRECT(\"'\"&F9128&\"'!\"&H9128)),\"\",IFERROR(VLOOKUP(TEXT(INDIRECT(\"'\"&F9128&\"'!\"&H9128),\"0\"),Notes!$B$5:$C$100,2,FALSE),\"\"))","v":""},"2c","$Y$50","$Z$50"]
[35228,{"$f":"Menu!$F$29","v":"X"},{"$f":"Menu!$J$29","v":2020},{"$f":"IF(ISBLANK(INDIRECT(\"'\"&F9129&\"'!\"&G9129)),\"\",INDIRECT(\"'\"&F9129&\"'!\"&G9129))","v":""},{"$f":"IF(ISBLANK(INDIRECT(\"'\"&F9129&\"'!\"&H9129)),\"\",IFERROR(VLOOKUP(TEXT(INDIRECT(\"'\"&F9129&\"'!\"&H9129),\"0\"),Notes!$B$5:$C$100,2,FALSE),\"\"))","v":""},"2c","$Y$44","$Z$44"]
[35229,{"$f":"Menu!$F$29","v":"X"},{"$f":"Menu!$J$29","v":2020},{"$f":"IF(ISBLANK(INDIRECT(\"'\"&F9130&\"'!\"&G9130)),\"\",INDIRECT(\"'\"&F9130&\"'!\"&G9130))","v":""},{"$f":"IF(ISBLANK(INDIRECT(\"'\"&F9130&\"'!\"&H9130)),\"\",IFERROR(VLOOKUP(TEXT(INDIRECT(\"'\"&F9130&\"'!\"&H9130),\"0\"),Notes!$B$5:$C$100,2,FALSE),\"\"))","v":""},"2c","$Y$45","$Z$45"]
[35246,{"$f":"Menu!$F$29","v":"X"},{"$f":"Menu!$J$29","v":2020},{"$f":"IF(ISBLANK(INDIRECT(\"'\"&F9131&\"'!\"&G9131)),\"\",INDIRECT(\"'\"&F9131&\"'!\"&G9131))","v":""},{"$f":"IF(ISBLANK(INDIRECT(\"'\"&F9131&\"'!\"&H9131)),\"\",IFERROR(VLOOKUP(TEXT(INDIRECT(\"'\"&F9131&\"'!\"&H9131),\"0\"),Notes!$B$5:$C$100,2,FALSE),\"\"))","v":""},"2d","$AE$22","$AF$22"]
[35249,{"$f":"Menu!$F$29","v":"X"},{"$f":"Menu!$J$29","v":2020},{"$f":"IF(ISBLANK(INDIRECT(\"'\"&F9132&\"'!\"&G9132)),\"\",INDIRECT(\"'\"&F9132&\"'!\"&G9132))","v":""},{"$f":"IF(ISBLANK(INDIRECT(\"'\"&F9132&\"'!\"&H9132)),\"\",IFERROR(VLOOKUP(TEXT(INDIRECT(\"'\"&F9132&\"'!\"&H9132),\"0\"),Notes!$B$5:$C$100,2,FALSE),\"\"))","v":""},"2d","$AE$29","$AF$29"]
[35250,{"$f":"Menu!$F$29","v":"X"},{"$f":"Menu!$J$29","v":2020},{"$f":"IF(ISBLANK(INDIRECT(\"'\"&F9133&\"'!\"&G9133)),\"\",INDIRECT(\"'\"&F9133&\"'!\"&G9133))","v":""},{"$f":"IF(ISBLANK(INDIRECT(\"'\"&F9133&\"'!\"&H9133)),\"\",IFERROR(VLOOKUP(TEXT(INDIRECT(\"'\"&F9133&\"'!\"&H9133),\"0\"),Notes!$B$5:$C$100,2,FALSE),\"\"))","v":""},"2d","$AE$30","$AF$30"]
[35252,{"$f":"Menu!$F$29","v":"X"},{"$f":"Menu!$J$29","v":2020},{"$f":"IF(ISBLANK(INDIRECT(\"'\"&F9134&\"'!\"&G9134)),\"\",INDIRECT(\"'\"&F9134&\"'!\"&G9134))","v":""},{"$f":"IF(ISBLANK(INDIRECT(\"'\"&F9134&\"'!\"&H9134)),\"\",IFERROR(VLOOKUP(TEXT(INDIRECT(\"'\"&F9134&\"'!\"&H9134),\"0\"),Notes!$B$5:$C$100,2,FALSE),\"\"))","v":""},"2d","$AE$36","$AF$36"]
[35253,{"$f":"Menu!$F$29","v":"X"},{"$f":"Menu!$J$29","v":2020},{"$f":"IF(ISBLANK(INDIRECT(\"'\"&F9135&\"'!\"&G9135)),\"\",INDIRECT(\"'\"&F9135&\"'!\"&G9135))","v":""},{"$f":"IF(ISBLANK(INDIRECT(\"'\"&F9135&\"'!\"&H9135)),\"\",IFERROR(VLOOKUP(TEXT(INDIRECT(\"'\"&F9135&\"'!\"&H9135),\"0\"),Notes!$B$5:$C$100,2,FALSE),\"\"))","v":""},"2d","$AE$37","$AF$37"]
[35255,{"$f":"Menu!$F$29","v":"X"},{"$f":"Menu!$J$29","v":2020},{"$f":"IF(ISBLANK(INDIRECT(\"'\"&F9136&\"'!\"&G9136)),\"\",INDIRECT(\"'\"&F9136&\"'!\"&G9136))","v":""},{"$f":"IF(ISBLANK(INDIRECT(\"'\"&F9136&\"'!\"&H9136)),\"\",IFERROR(VLOOKUP(TEXT(INDIRECT(\"'\"&F9136&\"'!\"&H9136),\"0\"),Notes!$B$5:$C$100,2,FALSE),\"\"))","v":""},"2d","$AE$49","$AF$49"]
[35256,{"$f":"Menu!$F$29","v":"X"},{"$f":"Menu!$J$29","v":2020},{"$f":"IF(ISBLANK(INDIRECT(\"'\"&F9137&\"'!\"&G9137)),\"\",INDIRECT(\"'\"&F9137&\"'!\"&G9137))","v":""},{"$f":"IF(ISBLANK(INDIRECT(\"'\"&F9137&\"'!\"&H9137)),\"\",IFERROR(VLOOKUP(TEXT(INDIRECT(\"'\"&F9137&\"'!\"&H9137),\"0\"),Notes!$B$5:$C$100,2,FALSE),\"\"))","v":""},"2d","$AE$50","$AF$50"]
[35258,{"$f":"Menu!$F$29","v":"X"},{"$f":"Menu!$J$29","v":2020},{"$f":"IF(ISBLANK(INDIRECT(\"'\"&F9138&\"'!\"&G9138)),\"\",INDIRECT(\"'\"&F9138&\"'!\"&G9138))","v":""},{"$f":"IF(ISBLANK(INDIRECT(\"'\"&F9138&\"'!\"&H9138)),\"\",IFERROR(VLOOKUP(TEXT(INDIRECT(\"'\"&F9138&\"'!\"&H9138),\"0\"),Notes!$B$5:$C$100,2,FALSE),\"\"))","v":""},"2d","$AE$44","$AF$44"]
[35259,{"$f":"Menu!$F$29","v":"X"},{"$f":"Menu!$J$29","v":2020},{"$f":"IF(ISBLANK(INDIRECT(\"'\"&F9139&\"'!\"&G9139)),\"\",INDIRECT(\"'\"&F9139&\"'!\"&G9139))","v":""},{"$f":"IF(ISBLANK(INDIRECT(\"'\"&F9139&\"'!\"&H9139)),\"\",IFERROR(VLOOKUP(TEXT(INDIRECT(\"'\"&F9139&\"'!\"&H9139),\"0\"),Notes!$B$5:$C$100,2,FALSE),\"\"))","v":""},"2d","$AE$45","$AF$45"]
[35261,{"$f":"Menu!$F$29","v":"X"},{"$f":"Menu!$J$29","v":2020},{"$f":"IF(ISBLANK(INDIRECT(\"'\"&F9140&\"'!\"&G9140)),\"\",INDIRECT(\"'\"&F9140&\"'!\"&G9140))","v":""},{"$f":"IF(ISBLANK(INDIRECT(\"'\"&F9140&\"'!\"&H9140)),\"\",IFERROR(VLOOKUP(TEXT(INDIRECT(\"'\"&F9140&\"'!\"&H9140),\"0\"),Notes!$B$5:$C$100,2,FALSE),\"\"))","v":""},"2d","$G$22","$H$22"]
[35264,{"$f":"Menu!$F$29","v":"X"},{"$f":"Menu!$J$29","v":2020},{"$f":"IF(ISBLANK(INDIRECT(\"'\"&F9141&\"'!\"&G9141)),\"\",INDIRECT(\"'\"&F9141&\"'!\"&G9141))","v":""},{"$f":"IF(ISBLANK(INDIRECT(\"'\"&F9141&\"'!\"&H9141)),\"\",IFERROR(VLOOKUP(TEXT(INDIRECT(\"'\"&F9141&\"'!\"&H9141),\"0\"),Notes!$B$5:$C$100,2,FALSE),\"\"))","v":""},"2d","$G$29","$H$29"]
[35265,{"$f":"Menu!$F$29","v":"X"},{"$f":"Menu!$J$29","v":2020},{"$f":"IF(ISBLANK(INDIRECT(\"'\"&F9142&\"'!\"&G9142)),\"\",INDIRECT(\"'\"&F9142&\"'!\"&G9142))","v":""},{"$f":"IF(ISBLANK(INDIRECT(\"'\"&F9142&\"'!\"&H9142)),\"\",IFERROR(VLOOKUP(TEXT(INDIRECT(\"'\"&F9142&\"'!\"&H9142),\"0\"),Notes!$B$5:$C$100,2,FALSE),\"\"))","v":""},"2d","$G$30","$H$30"]
[35267,{"$f":"Menu!$F$29","v":"X"},{"$f":"Menu!$J$29","v":2020},{"$f":"IF(ISBLANK(INDIRECT(\"'\"&F9143&\"'!\"&G9143)),\"\",INDIRECT(\"'\"&F9143&\"'!\"&G9143))","v":""},{"$f":"IF(ISBLANK(INDIRECT(\"'\"&F9143&\"'!\"&H9143)),\"\",IFERROR(VLOOKUP(TEXT(INDIRECT(\"'\"&F9143&\"'!\"&H9143),\"0\"),Notes!$B$5:$C$100,2,FALSE),\"\"))","v":""},"2d","$G$36","$H$36"]
[35268,{"$f":"Menu!$F$29","v":"X"},{"$f":"Menu!$J$29","v":2020},{"$f":"IF(ISBLANK(INDIRECT(\"'\"&F9144&\"'!\"&G9144)),\"\",INDIRECT(\"'\"&F9144&\"'!\"&G9144))","v":""},{"$f":"IF(ISBLANK(INDIRECT(\"'\"&F9144&\"'!\"&H9144)),\"\",IFERROR(VLOOKUP(TEXT(INDIRECT(\"'\"&F9144&\"'!\"&H9144),\"0\"),Notes!$B$5:$C$100,2,FALSE),\"\"))","v":""},"2d","$G$37","$H$37"]
[35270,{"$f":"Menu!$F$29","v":"X"},{"$f":"Menu!$J$29","v":2020},{"$f":"IF(ISBLANK(INDIRECT(\"'\"&F9145&\"'!\"&G9145)),\"\",INDIRECT(\"'\"&F9145&\"'!\"&G9145))","v":""},{"$f":"IF(ISBLANK(INDIRECT(\"'\"&F9145&\"'!\"&H9145)),\"\",IFERROR(VLOOKUP(TEXT(INDIRECT(\"'\"&F9145&\"'!\"&H9145),\"0\"),Notes!$B$5:$C$100,2,FALSE),\"\"))","v":""},"2d","$G$49","$H$49"]
[35271,{"$f":"Menu!$F$29","v":"X"},{"$f":"Menu!$J$29","v":2020},{"$f":"IF(ISBLANK(INDIRECT(\"'\"&F9146&\"'!\"&G9146)),\"\",INDIRECT(\"'\"&F9146&\"'!\"&G9146))","v":""},{"$f":"IF(ISBLANK(INDIRECT(\"'\"&F9146&\"'!\"&H9146)),\"\",IFERROR(VLOOKUP(TEXT(INDIRECT(\"'\"&F9146&\"'!\"&H9146),\"0\"),Notes!$B$5:$C$100,2,FALSE),\"\"))","v":""},"2d","$G$50","$H$50"]
[35273,{"$f":"Menu!$F$29","v":"X"},{"$f":"Menu!$J$29","v":2020},{"$f":"IF(ISBLANK(INDIRECT(\"'\"&F9147&\"'!\"&G9147)),\"\",INDIRECT(\"'\"&F9147&\"'!\"&G9147))","v":""},{"$f":"IF(ISBLANK(INDIRECT(\"'\"&F9147&\"'!\"&H9147)),\"\",IFERROR(VLOOKUP(TEXT(INDIRECT(\"'\"&F9147&\"'!\"&H9147),\"0\"),Notes!$B$5:$C$100,2,FALSE),\"\"))","v":""},"2d","$G$44","$H$44"]
[35274,{"$f":"Menu!$F$29","v":"X"},{"$f":"Menu!$J$29","v":2020},{"$f":"IF(ISBLANK(INDIRECT(\"'\"&F9148&\"'!\"&G9148)),\"\",INDIRECT(\"'\"&F9148&\"'!\"&G9148))","v":""},{"$f":"IF(ISBLANK(INDIRECT(\"'\"&F9148&\"'!\"&H9148)),\"\",IFERROR(VLOOKUP(TEXT(INDIRECT(\"'\"&F9148&\"'!\"&H9148),\"0\"),Notes!$B$5:$C$100,2,FALSE),\"\"))","v":""},"2d","$G$45","$H$45"]
[35276,{"$f":"Menu!$F$29","v":"X"},{"$f":"Menu!$J$29","v":2020},{"$f":"IF(ISBLANK(INDIRECT(\"'\"&F9149&\"'!\"&G9149)),\"\",INDIRECT(\"'\"&F9149&\"'!\"&G9149))","v":""},{"$f":"IF(ISBLANK(INDIRECT(\"'\"&F9149&\"'!\"&H9149)),\"\",IFERROR(VLOOKUP(TEXT(INDIRECT(\"'\"&F9149&\"'!\"&H9149),\"0\"),Notes!$B$5:$C$100,2,FALSE),\"\"))","v":""},"2d","$S$22","$T$22"]
[35279,{"$f":"Menu!$F$29","v":"X"},{"$f":"Menu!$J$29","v":2020},{"$f":"IF(ISBLANK(INDIRECT(\"'\"&F9150&\"'!\"&G9150)),\"\",INDIRECT(\"'\"&F9150&\"'!\"&G9150))","v":""},{"$f":"IF(ISBLANK(INDIRECT(\"'\"&F9150&\"'!\"&H9150)),\"\",IFERROR(VLOOKUP(TEXT(INDIRECT(\"'\"&F9150&\"'!\"&H9150),\"0\"),Notes!$B$5:$C$100,2,FALSE),\"\"))","v":""},"2d","$S$29","$T$29"]
[35280,{"$f":"Menu!$F$29","v":"X"},{"$f":"Menu!$J$29","v":2020},{"$f":"IF(ISBLANK(INDIRECT(\"'\"&F9151&\"'!\"&G9151)),\"\",INDIRECT(\"'\"&F9151&\"'!\"&G9151))","v":""},{"$f":"IF(ISBLANK(INDIRECT(\"'\"&F9151&\"'!\"&H9151)),\"\",IFERROR(VLOOKUP(TEXT(INDIRECT(\"'\"&F9151&\"'!\"&H9151),\"0\"),Notes!$B$5:$C$100,2,FALSE),\"\"))","v":""},"2d","$S$30","$T$30"]
[35282,{"$f":"Menu!$F$29","v":"X"},{"$f":"Menu!$J$29","v":2020},{"$f":"IF(ISBLANK(INDIRECT(\"'\"&F9152&\"'!\"&G9152)),\"\",INDIRECT(\"'\"&F9152&\"'!\"&G9152))","v":""},{"$f":"IF(ISBLANK(INDIRECT(\"'\"&F9152&\"'!\"&H9152)),\"\",IFERROR(VLOOKUP(TEXT(INDIRECT(\"'\"&F9152&\"'!\"&H9152),\"0\"),Notes!$B$5:$C$100,2,FALSE),\"\"))","v":""},"2d","$S$36","$T$36"]
[35283,{"$f":"Menu!$F$29","v":"X"},{"$f":"Menu!$J$29","v":2020},{"$f":"IF(ISBLANK(INDIRECT(\"'\"&F9153&\"'!\"&G9153)),\"\",INDIRECT(\"'\"&F9153&\"'!\"&G9153))","v":""},{"$f":"IF(ISBLANK(INDIRECT(\"'\"&F9153&\"'!\"&H9153)),\"\",IFERROR(VLOOKUP(TEXT(INDIRECT(\"'\"&F9153&\"'!\"&H9153),\"0\"),Notes!$B$5:$C$100,2,FALSE),\"\"))","v":""},"2d","$S$37","$T$37"]
[35285,{"$f":"Menu!$F$29","v":"X"},{"$f":"Menu!$J$29","v":2020},{"$f":"IF(ISBLANK(INDIRECT(\"'\"&F9154&\"'!\"&G9154)),\"\",INDIRECT(\"'\"&F9154&\"'!\"&G9154))","v":""},{"$f":"IF(ISBLANK(INDIRECT(\"'\"&F9154&\"'!\"&H9154)),\"\",IFERROR(VLOOKUP(TEXT(INDIRECT(\"'\"&F9154&\"'!\"&H9154),\"0\"),Notes!$B$5:$C$100,2,FALSE),\"\"))","v":""},"2d","$S$49",{"$f":"IF(LEN(TRIM(MID(G9154,4,10)))-LEN(SUBSTITUTE(TRIM(MID(G9154,4,10)),\"$\",\"\"))=0,\"$\"&CHAR(CODE(MID(G9154,2,1))+1)&\"$\"&TRIM(MID(G9154,4,10)),\"$\"&MID(G9154,2,1)&CHAR(CODE(MID(G9154,3,1))+1)&\"$\"&TRIM(MID(G9154,5,11)))","v":"$T$49"}]
[35286,{"$f":"Menu!$F$29","v":"X"},{"$f":"Menu!$J$29","v":2020},{"$f":"IF(ISBLANK(INDIRECT(\"'\"&F9155&\"'!\"&G9155)),\"\",INDIRECT(\"'\"&F9155&\"'!\"&G9155))","v":""},{"$f":"IF(ISBLANK(INDIRECT(\"'\"&F9155&\"'!\"&H9155)),\"\",IFERROR(VLOOKUP(TEXT(INDIRECT(\"'\"&F9155&\"'!\"&H9155),\"0\"),Notes!$B$5:$C$100,2,FALSE),\"\"))","v":""},"2d","$S$50","$T$50"]
[35288,{"$f":"Menu!$F$29","v":"X"},{"$f":"Menu!$J$29","v":2020},{"$f":"IF(ISBLANK(INDIRECT(\"'\"&F9156&\"'!\"&G9156)),\"\",INDIRECT(\"'\"&F9156&\"'!\"&G9156))","v":""},{"$f":"IF(ISBLANK(INDIRECT(\"'\"&F9156&\"'!\"&H9156)),\"\",IFERROR(VLOOKUP(TEXT(INDIRECT(\"'\"&F9156&\"'!\"&H9156),\"0\"),Notes!$B$5:$C$100,2,FALSE),\"\"))","v":""},"2d","$S$44","$T$44"]
[35289,{"$f":"Menu!$F$29","v":"X"},{"$f":"Menu!$J$29","v":2020},{"$f":"IF(ISBLANK(INDIRECT(\"'\"&F9157&\"'!\"&G9157)),\"\",INDIRECT(\"'\"&F9157&\"'!\"&G9157))","v":""},{"$f":"IF(ISBLANK(INDIRECT(\"'\"&F9157&\"'!\"&H9157)),\"\",IFERROR(VLOOKUP(TEXT(INDIRECT(\"'\"&F9157&\"'!\"&H9157),\"0\"),Notes!$B$5:$C$100,2,FALSE),\"\"))","v":""},"2d","$S$45","$T$45"]
[35291,{"$f":"Menu!$F$29","v":"X"},{"$f":"Menu!$J$29","v":2020},{"$f":"IF(ISBLANK(INDIRECT(\"'\"&F9158&\"'!\"&G9158)),\"\",INDIRECT(\"'\"&F9158&\"'!\"&G9158))","v":""},{"$f":"IF(ISBLANK(INDIRECT(\"'\"&F9158&\"'!\"&H9158)),\"\",IFERROR(VLOOKUP(TEXT(INDIRECT(\"'\"&F9158&\"'!\"&H9158),\"0\"),Notes!$B$5:$C$100,2,FALSE),\"\"))","v":""},"2d","$M$22","$N$22"]
[35294,{"$f":"Menu!$F$29","v":"X"},{"$f":"Menu!$J$29","v":2020},{"$f":"IF(ISBLANK(INDIRECT(\"'\"&F9159&\"'!\"&G9159)),\"\",INDIRECT(\"'\"&F9159&\"'!\"&G9159))","v":""},{"$f":"IF(ISBLANK(INDIRECT(\"'\"&F9159&\"'!\"&H9159)),\"\",IFERROR(VLOOKUP(TEXT(INDIRECT(\"'\"&F9159&\"'!\"&H9159),\"0\"),Notes!$B$5:$C$100,2,FALSE),\"\"))","v":""},"2d","$M$29","$N$29"]
[35295,{"$f":"Menu!$F$29","v":"X"},{"$f":"Menu!$J$29","v":2020},{"$f":"IF(ISBLANK(INDIRECT(\"'\"&F9160&\"'!\"&G9160)),\"\",INDIRECT(\"'\"&F9160&\"'!\"&G9160))","v":""},{"$f":"IF(ISBLANK(INDIRECT(\"'\"&F9160&\"'!\"&H9160)),\"\",IFERROR(VLOOKUP(TEXT(INDIRECT(\"'\"&F9160&\"'!\"&H9160),\"0\"),Notes!$B$5:$C$100,2,FALSE),\"\"))","v":""},"2d","$M$30","$N$30"]
[35297,{"$f":"Menu!$F$29","v":"X"},{"$f":"Menu!$J$29","v":2020},{"$f":"IF(ISBLANK(INDIRECT(\"'\"&F9161&\"'!\"&G9161)),\"\",INDIRECT(\"'\"&F9161&\"'!\"&G9161))","v":""},{"$f":"IF(ISBLANK(INDIRECT(\"'\"&F9161&\"'!\"&H9161)),\"\",IFERROR(VLOOKUP(TEXT(INDIRECT(\"'\"&F9161&\"'!\"&H9161),\"0\"),Notes!$B$5:$C$100,2,FALSE),\"\"))","v":""},"2d","$M$36","$N$36"]
[35298,{"$f":"Menu!$F$29","v":"X"},{"$f":"Menu!$J$29","v":2020},{"$f":"IF(ISBLANK(INDIRECT(\"'\"&F9162&\"'!\"&G9162)),\"\",INDIRECT(\"'\"&F9162&\"'!\"&G9162))","v":""},{"$f":"IF(ISBLANK(INDIRECT(\"'\"&F9162&\"'!\"&H9162)),\"\",IFERROR(VLOOKUP(TEXT(INDIRECT(\"'\"&F9162&\"'!\"&H9162),\"0\"),Notes!$B$5:$C$100,2,FALSE),\"\"))","v":""},"2d","$M$37","$N$37"]
[35300,{"$f":"Menu!$F$29","v":"X"},{"$f":"Menu!$J$29","v":2020},{"$f":"IF(ISBLANK(INDIRECT(\"'\"&F9163&\"'!\"&G9163)),\"\",INDIRECT(\"'\"&F9163&\"'!\"&G9163))","v":""},{"$f":"IF(ISBLANK(INDIRECT(\"'\"&F9163&\"'!\"&H9163)),\"\",IFERROR(VLOOKUP(TEXT(INDIRECT(\"'\"&F9163&\"'!\"&H9163),\"0\"),Notes!$B$5:$C$100,2,FALSE),\"\"))","v":""},"2d","$M$49","$N$49"]
[35301,{"$f":"Menu!$F$29","v":"X"},{"$f":"Menu!$J$29","v":2020},{"$f":"IF(ISBLANK(INDIRECT(\"'\"&F9164&\"'!\"&G9164)),\"\",INDIRECT(\"'\"&F9164&\"'!\"&G9164))","v":""},{"$f":"IF(ISBLANK(INDIRECT(\"'\"&F9164&\"'!\"&H9164)),\"\",IFERROR(VLOOKUP(TEXT(INDIRECT(\"'\"&F9164&\"'!\"&H9164),\"0\"),Notes!$B$5:$C$100,2,FALSE),\"\"))","v":""},"2d","$M$50","$N$50"]
[35303,{"$f":"Menu!$F$29","v":"X"},{"$f":"Menu!$J$29","v":2020},{"$f":"IF(ISBLANK(INDIRECT(\"'\"&F9165&\"'!\"&G9165)),\"\",INDIRECT(\"'\"&F9165&\"'!\"&G9165))","v":""},{"$f":"IF(ISBLANK(INDIRECT(\"'\"&F9165&\"'!\"&H9165)),\"\",IFERROR(VLOOKUP(TEXT(INDIRECT(\"'\"&F9165&\"'!\"&H9165),\"0\"),Notes!$B$5:$C$100,2,FALSE),\"\"))","v":""},"2d","$M$44","$N$44"]
[35304,{"$f":"Menu!$F$29","v":"X"},{"$f":"Menu!$J$29","v":2020},{"$f":"IF(ISBLANK(INDIRECT(\"'\"&F9166&\"'!\"&G9166)),\"\",INDIRECT(\"'\"&F9166&\"'!\"&G9166))","v":""},{"$f":"IF(ISBLANK(INDIRECT(\"'\"&F9166&\"'!\"&H9166)),\"\",IFERROR(VLOOKUP(TEXT(INDIRECT(\"'\"&F9166&\"'!\"&H9166),\"0\"),Notes!$B$5:$C$100,2,FALSE),\"\"))","v":""},"2d","$M$45","$N$45"]
[35306,{"$f":"Menu!$F$29","v":"X"},{"$f":"Menu!$J$29","v":2020},{"$f":"IF(ISBLANK(INDIRECT(\"'\"&F9167&\"'!\"&G9167)),\"\",INDIRECT(\"'\"&F9167&\"'!\"&G9167))","v":""},{"$f":"IF(ISBLANK(INDIRECT(\"'\"&F9167&\"'!\"&H9167)),\"\",IFERROR(VLOOKUP(TEXT(INDIRECT(\"'\"&F9167&\"'!\"&H9167),\"0\"),Notes!$B$5:$C$100,2,FALSE),\"\"))","v":""},"2d","$Y$22","$Z$22"]
[35309,{"$f":"Menu!$F$29","v":"X"},{"$f":"Menu!$J$29","v":2020},{"$f":"IF(ISBLANK(INDIRECT(\"'\"&F9168&\"'!\"&G9168)),\"\",INDIRECT(\"'\"&F9168&\"'!\"&G9168))","v":""},{"$f":"IF(ISBLANK(INDIRECT(\"'\"&F9168&\"'!\"&H9168)),\"\",IFERROR(VLOOKUP(TEXT(INDIRECT(\"'\"&F9168&\"'!\"&H9168),\"0\"),Notes!$B$5:$C$100,2,FALSE),\"\"))","v":""},"2d","$Y$29","$Z$29"]
[35310,{"$f":"Menu!$F$29","v":"X"},{"$f":"Menu!$J$29","v":2020},{"$f":"IF(ISBLANK(INDIRECT(\"'\"&F9169&\"'!\"&G9169)),\"\",INDIRECT(\"'\"&F9169&\"'!\"&G9169))","v":""},{"$f":"IF(ISBLANK(INDIRECT(\"'\"&F9169&\"'!\"&H9169)),\"\",IFERROR(VLOOKUP(TEXT(INDIRECT(\"'\"&F9169&\"'!\"&H9169),\"0\"),Notes!$B$5:$C$100,2,FALSE),\"\"))","v":""},"2d","$Y$30","$Z$30"]
[35312,{"$f":"Menu!$F$29","v":"X"},{"$f":"Menu!$J$29","v":2020},{"$f":"IF(ISBLANK(INDIRECT(\"'\"&F9170&\"'!\"&G9170)),\"\",INDIRECT(\"'\"&F9170&\"'!\"&G9170))","v":""},{"$f":"IF(ISBLANK(INDIRECT(\"'\"&F9170&\"'!\"&H9170)),\"\",IFERROR(VLOOKUP(TEXT(INDIRECT(\"'\"&F9170&\"'!\"&H9170),\"0\"),Notes!$B$5:$C$100,2,FALSE),\"\"))","v":""},"2d","$Y$36","$Z$36"]
[35313,{"$f":"Menu!$F$29","v":"X"},{"$f":"Menu!$J$29","v":2020},{"$f":"IF(ISBLANK(INDIRECT(\"'\"&F9171&\"'!\"&G9171)),\"\",INDIRECT(\"'\"&F9171&\"'!\"&G9171))","v":""},{"$f":"IF(ISBLANK(INDIRECT(\"'\"&F9171&\"'!\"&H9171)),\"\",IFERROR(VLOOKUP(TEXT(INDIRECT(\"'\"&F9171&\"'!\"&H9171),\"0\"),Notes!$B$5:$C$100,2,FALSE),\"\"))","v":""},"2d","$Y$37","$Z$37"]
[35315,{"$f":"Menu!$F$29","v":"X"},{"$f":"Menu!$J$29","v":2020},{"$f":"IF(ISBLANK(INDIRECT(\"'\"&F9172&\"'!\"&G9172)),\"\",INDIRECT(\"'\"&F9172&\"'!\"&G9172))","v":""},{"$f":"IF(ISBLANK(INDIRECT(\"'\"&F9172&\"'!\"&H9172)),\"\",IFERROR(VLOOKUP(TEXT(INDIRECT(\"'\"&F9172&\"'!\"&H9172),\"0\"),Notes!$B$5:$C$100,2,FALSE),\"\"))","v":""},"2d","$Y$49","$Z$49"]
[35316,{"$f":"Menu!$F$29","v":"X"},{"$f":"Menu!$J$29","v":2020},{"$f":"IF(ISBLANK(INDIRECT(\"'\"&F9173&\"'!\"&G9173)),\"\",INDIRECT(\"'\"&F9173&\"'!\"&G9173))","v":""},{"$f":"IF(ISBLANK(INDIRECT(\"'\"&F9173&\"'!\"&H9173)),\"\",IFERROR(VLOOKUP(TEXT(INDIRECT(\"'\"&F9173&\"'!\"&H9173),\"0\"),Notes!$B$5:$C$100,2,FALSE),\"\"))","v":""},"2d","$Y$50","$Z$50"]
[35318,{"$f":"Menu!$F$29","v":"X"},{"$f":"Menu!$J$29","v":2020},{"$f":"IF(ISBLANK(INDIRECT(\"'\"&F9174&\"'!\"&G9174)),\"\",INDIRECT(\"'\"&F9174&\"'!\"&G9174))","v":""},{"$f":"IF(ISBLANK(INDIRECT(\"'\"&F9174&\"'!\"&H9174)),\"\",IFERROR(VLOOKUP(TEXT(INDIRECT(\"'\"&F9174&\"'!\"&H9174),\"0\"),Notes!$B$5:$C$100,2,FALSE),\"\"))","v":""},"2d","$Y$44","$Z$44"]
[35319,{"$f":"Menu!$F$29","v":"X"},{"$f":"Menu!$J$29","v":2020},{"$f":"IF(ISBLANK(INDIRECT(\"'\"&F9175&\"'!\"&G9175)),\"\",INDIRECT(\"'\"&F9175&\"'!\"&G9175))","v":""},{"$f":"IF(ISBLANK(INDIRECT(\"'\"&F9175&\"'!\"&H9175)),\"\",IFERROR(VLOOKUP(TEXT(INDIRECT(\"'\"&F9175&\"'!\"&H9175),\"0\"),Notes!$B$5:$C$100,2,FALSE),\"\"))","v":""},"2d","$Y$45","$Z$45"]
[35321,{"$f":"Menu!$F$29","v":"X"},{"$f":"Menu!$J$29","v":2020},{"$f":"IF(ISBLANK(INDIRECT(\"'\"&F9176&\"'!\"&G9176)),\"\",INDIRECT(\"'\"&F9176&\"'!\"&G9176))","v":""},{"$f":"IF(ISBLANK(INDIRECT(\"'\"&F9176&\"'!\"&H9176)),\"\",IFERROR(VLOOKUP(TEXT(INDIRECT(\"'\"&F9176&\"'!\"&H9176),\"0\"),Notes!$B$5:$C$100,2,FALSE),\"\"))","v":""},"2b","$G$22","$H$22"]
[35324,{"$f":"Menu!$F$29","v":"X"},{"$f":"Menu!$J$29","v":2020},{"$f":"IF(ISBLANK(INDIRECT(\"'\"&F9177&\"'!\"&G9177)),\"\",INDIRECT(\"'\"&F9177&\"'!\"&G9177))","v":""},{"$f":"IF(ISBLANK(INDIRECT(\"'\"&F9177&\"'!\"&H9177)),\"\",IFERROR(VLOOKUP(TEXT(INDIRECT(\"'\"&F9177&\"'!\"&H9177),\"0\"),Notes!$B$5:$C$100,2,FALSE),\"\"))","v":""},"2b","$G$29","$H$29"]
[35325,{"$f":"Menu!$F$29","v":"X"},{"$f":"Menu!$J$29","v":2020},{"$f":"IF(ISBLANK(INDIRECT(\"'\"&F9178&\"'!\"&G9178)),\"\",INDIRECT(\"'\"&F9178&\"'!\"&G9178))","v":""},{"$f":"IF(ISBLANK(INDIRECT(\"'\"&F9178&\"'!\"&H9178)),\"\",IFERROR(VLOOKUP(TEXT(INDIRECT(\"'\"&F9178&\"'!\"&H9178),\"0\"),Notes!$B$5:$C$100,2,FALSE),\"\"))","v":""},"2b","$G$30","$H$30"]
[35327,{"$f":"Menu!$F$29","v":"X"},{"$f":"Menu!$J$29","v":2020},{"$f":"IF(ISBLANK(INDIRECT(\"'\"&F9179&\"'!\"&G9179)),\"\",INDIRECT(\"'\"&F9179&\"'!\"&G9179))","v":""},{"$f":"IF(ISBLANK(INDIRECT(\"'\"&F9179&\"'!\"&H9179)),\"\",IFERROR(VLOOKUP(TEXT(INDIRECT(\"'\"&F9179&\"'!\"&H9179),\"0\"),Notes!$B$5:$C$100,2,FALSE),\"\"))","v":""},"2b","$G$36","$H$36"]
[35328,{"$f":"Menu!$F$29","v":"X"},{"$f":"Menu!$J$29","v":2020},{"$f":"IF(ISBLANK(INDIRECT(\"'\"&F9180&\"'!\"&G9180)),\"\",INDIRECT(\"'\"&F9180&\"'!\"&G9180))","v":""},{"$f":"IF(ISBLANK(INDIRECT(\"'\"&F9180&\"'!\"&H9180)),\"\",IFERROR(VLOOKUP(TEXT(INDIRECT(\"'\"&F9180&\"'!\"&H9180),\"0\"),Notes!$B$5:$C$100,2,FALSE),\"\"))","v":""},"2b","$G$37","$H$37"]
[35330,{"$f":"Menu!$F$29","v":"X"},{"$f":"Menu!$J$29","v":2020},{"$f":"IF(ISBLANK(INDIRECT(\"'\"&F9181&\"'!\"&G9181)),\"\",INDIRECT(\"'\"&F9181&\"'!\"&G9181))","v":""},{"$f":"IF(ISBLANK(INDIRECT(\"'\"&F9181&\"'!\"&H9181)),\"\",IFERROR(VLOOKUP(TEXT(INDIRECT(\"'\"&F9181&\"'!\"&H9181),\"0\"),Notes!$B$5:$C$100,2,FALSE),\"\"))","v":""},"2b","$G$49","$H$49"]
[35331,{"$f":"Menu!$F$29","v":"X"},{"$f":"Menu!$J$29","v":2020},{"$f":"IF(ISBLANK(INDIRECT(\"'\"&F9182&\"'!\"&G9182)),\"\",INDIRECT(\"'\"&F9182&\"'!\"&G9182))","v":""},{"$f":"IF(ISBLANK(INDIRECT(\"'\"&F9182&\"'!\"&H9182)),\"\",IFERROR(VLOOKUP(TEXT(INDIRECT(\"'\"&F9182&\"'!\"&H9182),\"0\"),Notes!$B$5:$C$100,2,FALSE),\"\"))","v":""},"2b","$G$50","$H$50"]
[35333,{"$f":"Menu!$F$29","v":"X"},{"$f":"Menu!$J$29","v":2020},{"$f":"IF(ISBLANK(INDIRECT(\"'\"&F9183&\"'!\"&G9183)),\"\",INDIRECT(\"'\"&F9183&\"'!\"&G9183))","v":""},{"$f":"IF(ISBLANK(INDIRECT(\"'\"&F9183&\"'!\"&H9183)),\"\",IFERROR(VLOOKUP(TEXT(INDIRECT(\"'\"&F9183&\"'!\"&H9183),\"0\"),Notes!$B$5:$C$100,2,FALSE),\"\"))","v":""},"2b","$G$44","$H$44"]
[35334,{"$f":"Menu!$F$29","v":"X"},{"$f":"Menu!$J$29","v":2020},{"$f":"IF(ISBLANK(INDIRECT(\"'\"&F9184&\"'!\"&G9184)),\"\",INDIRECT(\"'\"&F9184&\"'!\"&G9184))","v":""},{"$f":"IF(ISBLANK(INDIRECT(\"'\"&F9184&\"'!\"&H9184)),\"\",IFERROR(VLOOKUP(TEXT(INDIRECT(\"'\"&F9184&\"'!\"&H9184),\"0\"),Notes!$B$5:$C$100,2,FALSE),\"\"))","v":""},"2b","$G$45","$H$45"]
[35336,{"$f":"Menu!$F$29","v":"X"},{"$f":"Menu!$J$29","v":2020},{"$f":"IF(ISBLANK(INDIRECT(\"'\"&F9185&\"'!\"&G9185)),\"\",INDIRECT(\"'\"&F9185&\"'!\"&G9185))","v":""},{"$f":"IF(ISBLANK(INDIRECT(\"'\"&F9185&\"'!\"&H9185)),\"\",IFERROR(VLOOKUP(TEXT(INDIRECT(\"'\"&F9185&\"'!\"&H9185),\"0\"),Notes!$B$5:$C$100,2,FALSE),\"\"))","v":""},"2b","$M$22","$N$22"]
[35339,{"$f":"Menu!$F$29","v":"X"},{"$f":"Menu!$J$29","v":2020},{"$f":"IF(ISBLANK(INDIRECT(\"'\"&F9186&\"'!\"&G9186)),\"\",INDIRECT(\"'\"&F9186&\"'!\"&G9186))","v":""},{"$f":"IF(ISBLANK(INDIRECT(\"'\"&F9186&\"'!\"&H9186)),\"\",IFERROR(VLOOKUP(TEXT(INDIRECT(\"'\"&F9186&\"'!\"&H9186),\"0\"),Notes!$B$5:$C$100,2,FALSE),\"\"))","v":""},"2b","$M$29","$N$29"]
[35340,{"$f":"Menu!$F$29","v":"X"},{"$f":"Menu!$J$29","v":2020},{"$f":"IF(ISBLANK(INDIRECT(\"'\"&F9187&\"'!\"&G9187)),\"\",INDIRECT(\"'\"&F9187&\"'!\"&G9187))","v":""},{"$f":"IF(ISBLANK(INDIRECT(\"'\"&F9187&\"'!\"&H9187)),\"\",IFERROR(VLOOKUP(TEXT(INDIRECT(\"'\"&F9187&\"'!\"&H9187),\"0\"),Notes!$B$5:$C$100,2,FALSE),\"\"))","v":""},"2b","$M$30","$N$30"]
[35342,{"$f":"Menu!$F$29","v":"X"},{"$f":"Menu!$J$29","v":2020},{"$f":"IF(ISBLANK(INDIRECT(\"'\"&F9188&\"'!\"&G9188)),\"\",INDIRECT(\"'\"&F9188&\"'!\"&G9188))","v":""},{"$f":"IF(ISBLANK(INDIRECT(\"'\"&F9188&\"'!\"&H9188)),\"\",IFERROR(VLOOKUP(TEXT(INDIRECT(\"'\"&F9188&\"'!\"&H9188),\"0\"),Notes!$B$5:$C$100,2,FALSE),\"\"))","v":""},"2b","$M$36","$N$36"]
[35343,{"$f":"Menu!$F$29","v":"X"},{"$f":"Menu!$J$29","v":2020},{"$f":"IF(ISBLANK(INDIRECT(\"'\"&F9189&\"'!\"&G9189)),\"\",INDIRECT(\"'\"&F9189&\"'!\"&G9189))","v":""},{"$f":"IF(ISBLANK(INDIRECT(\"'\"&F9189&\"'!\"&H9189)),\"\",IFERROR(VLOOKUP(TEXT(INDIRECT(\"'\"&F9189&\"'!\"&H9189),\"0\"),Notes!$B$5:$C$100,2,FALSE),\"\"))","v":""},"2b","$M$37","$N$37"]
[35345,{"$f":"Menu!$F$29","v":"X"},{"$f":"Menu!$J$29","v":2020},{"$f":"IF(ISBLANK(INDIRECT(\"'\"&F9190&\"'!\"&G9190)),\"\",INDIRECT(\"'\"&F9190&\"'!\"&G9190))","v":""},{"$f":"IF(ISBLANK(INDIRECT(\"'\"&F9190&\"'!\"&H9190)),\"\",IFERROR(VLOOKUP(TEXT(INDIRECT(\"'\"&F9190&\"'!\"&H9190),\"0\"),Notes!$B$5:$C$100,2,FALSE),\"\"))","v":""},"2b","$M$49","$N$49"]
[35346,{"$f":"Menu!$F$29","v":"X"},{"$f":"Menu!$J$29","v":2020},{"$f":"IF(ISBLANK(INDIRECT(\"'\"&F9191&\"'!\"&G9191)),\"\",INDIRECT(\"'\"&F9191&\"'!\"&G9191))","v":""},{"$f":"IF(ISBLANK(INDIRECT(\"'\"&F9191&\"'!\"&H9191)),\"\",IFERROR(VLOOKUP(TEXT(INDIRECT(\"'\"&F9191&\"'!\"&H9191),\"0\"),Notes!$B$5:$C$100,2,FALSE),\"\"))","v":""},"2b","$M$50","$N$50"]
[35348,{"$f":"Menu!$F$29","v":"X"},{"$f":"Menu!$J$29","v":2020},{"$f":"IF(ISBLANK(INDIRECT(\"'\"&F9192&\"'!\"&G9192)),\"\",INDIRECT(\"'\"&F9192&\"'!\"&G9192))","v":""},{"$f":"IF(ISBLANK(INDIRECT(\"'\"&F9192&\"'!\"&H9192)),\"\",IFERROR(VLOOKUP(TEXT(INDIRECT(\"'\"&F9192&\"'!\"&H9192),\"0\"),Notes!$B$5:$C$100,2,FALSE),\"\"))","v":""},"2b","$M$44","$N$44"]
[35349,{"$f":"Menu!$F$29","v":"X"},{"$f":"Menu!$J$29","v":2020},{"$f":"IF(ISBLANK(INDIRECT(\"'\"&F9193&\"'!\"&G9193)),\"\",INDIRECT(\"'\"&F9193&\"'!\"&G9193))","v":""},{"$f":"IF(ISBLANK(INDIRECT(\"'\"&F9193&\"'!\"&H9193)),\"\",IFERROR(VLOOKUP(TEXT(INDIRECT(\"'\"&F9193&\"'!\"&H9193),\"0\"),Notes!$B$5:$C$100,2,FALSE),\"\"))","v":""},"2b","$M$45","$N$45"]
[35351,{"$f":"Menu!$F$29","v":"X"},{"$f":"Menu!$J$29","v":2020},{"$f":"IF(ISBLANK(INDIRECT(\"'\"&F9194&\"'!\"&G9194)),\"\",INDIRECT(\"'\"&F9194&\"'!\"&G9194))","v":""},{"$f":"IF(ISBLANK(INDIRECT(\"'\"&F9194&\"'!\"&H9194)),\"\",IFERROR(VLOOKUP(TEXT(INDIRECT(\"'\"&F9194&\"'!\"&H9194),\"0\"),Notes!$B$5:$C$100,2,FALSE),\"\"))","v":""},"2b","$S$22","$T$22"]
[35354,{"$f":"Menu!$F$29","v":"X"},{"$f":"Menu!$J$29","v":2020},{"$f":"IF(ISBLANK(INDIRECT(\"'\"&F9195&\"'!\"&G9195)),\"\",INDIRECT(\"'\"&F9195&\"'!\"&G9195))","v":""},{"$f":"IF(ISBLANK(INDIRECT(\"'\"&F9195&\"'!\"&H9195)),\"\",IFERROR(VLOOKUP(TEXT(INDIRECT(\"'\"&F9195&\"'!\"&H9195),\"0\"),Notes!$B$5:$C$100,2,FALSE),\"\"))","v":""},"2b","$S$29","$T$29"]
[35355,{"$f":"Menu!$F$29","v":"X"},{"$f":"Menu!$J$29","v":2020},{"$f":"IF(ISBLANK(INDIRECT(\"'\"&F9196&\"'!\"&G9196)),\"\",INDIRECT(\"'\"&F9196&\"'!\"&G9196))","v":""},{"$f":"IF(ISBLANK(INDIRECT(\"'\"&F9196&\"'!\"&H9196)),\"\",IFERROR(VLOOKUP(TEXT(INDIRECT(\"'\"&F9196&\"'!\"&H9196),\"0\"),Notes!$B$5:$C$100,2,FALSE),\"\"))","v":""},"2b","$S$30","$T$30"]
[35357,{"$f":"Menu!$F$29","v":"X"},{"$f":"Menu!$J$29","v":2020},{"$f":"IF(ISBLANK(INDIRECT(\"'\"&F9197&\"'!\"&G9197)),\"\",INDIRECT(\"'\"&F9197&\"'!\"&G9197))","v":""},{"$f":"IF(ISBLANK(INDIRECT(\"'\"&F9197&\"'!\"&H9197)),\"\",IFERROR(VLOOKUP(TEXT(INDIRECT(\"'\"&F9197&\"'!\"&H9197),\"0\"),Notes!$B$5:$C$100,2,FALSE),\"\"))","v":""},"2b","$S$36","$T$36"]
[35358,{"$f":"Menu!$F$29","v":"X"},{"$f":"Menu!$J$29","v":2020},{"$f":"IF(ISBLANK(INDIRECT(\"'\"&F9198&\"'!\"&G9198)),\"\",INDIRECT(\"'\"&F9198&\"'!\"&G9198))","v":""},{"$f":"IF(ISBLANK(INDIRECT(\"'\"&F9198&\"'!\"&H9198)),\"\",IFERROR(VLOOKUP(TEXT(INDIRECT(\"'\"&F9198&\"'!\"&H9198),\"0\"),Notes!$B$5:$C$100,2,FALSE),\"\"))","v":""},"2b","$S$37","$T$37"]
[35360,{"$f":"Menu!$F$29","v":"X"},{"$f":"Menu!$J$29","v":2020},{"$f":"IF(ISBLANK(INDIRECT(\"'\"&F9199&\"'!\"&G9199)),\"\",INDIRECT(\"'\"&F9199&\"'!\"&G9199))","v":""},{"$f":"IF(ISBLANK(INDIRECT(\"'\"&F9199&\"'!\"&H9199)),\"\",IFERROR(VLOOKUP(TEXT(INDIRECT(\"'\"&F9199&\"'!\"&H9199),\"0\"),Notes!$B$5:$C$100,2,FALSE),\"\"))","v":""},"2b","$S$49","$T$49"]
[35361,{"$f":"Menu!$F$29","v":"X"},{"$f":"Menu!$J$29","v":2020},{"$f":"IF(ISBLANK(INDIRECT(\"'\"&F9200&\"'!\"&G9200)),\"\",INDIRECT(\"'\"&F9200&\"'!\"&G9200))","v":""},{"$f":"IF(ISBLANK(INDIRECT(\"'\"&F9200&\"'!\"&H9200)),\"\",IFERROR(VLOOKUP(TEXT(INDIRECT(\"'\"&F9200&\"'!\"&H9200),\"0\"),Notes!$B$5:$C$100,2,FALSE),\"\"))","v":""},"2b","$S$50","$T$50"]
[35363,{"$f":"Menu!$F$29","v":"X"},{"$f":"Menu!$J$29","v":2020},{"$f":"IF(ISBLANK(INDIRECT(\"'\"&F9201&\"'!\"&G9201)),\"\",INDIRECT(\"'\"&F9201&\"'!\"&G9201))","v":""},{"$f":"IF(ISBLANK(INDIRECT(\"'\"&F9201&\"'!\"&H9201)),\"\",IFERROR(VLOOKUP(TEXT(INDIRECT(\"'\"&F9201&\"'!\"&H9201),\"0\"),Notes!$B$5:$C$100,2,FALSE),\"\"))","v":""},"2b","$S$44","$T$44"]
[35364,{"$f":"Menu!$F$29","v":"X"},{"$f":"Menu!$J$29","v":2020},{"$f":"IF(ISBLANK(INDIRECT(\"'\"&F9202&\"'!\"&G9202)),\"\",INDIRECT(\"'\"&F9202&\"'!\"&G9202))","v":""},{"$f":"IF(ISBLANK(INDIRECT(\"'\"&F9202&\"'!\"&H9202)),\"\",IFERROR(VLOOKUP(TEXT(INDIRECT(\"'\"&F9202&\"'!\"&H9202),\"0\"),Notes!$B$5:$C$100,2,FALSE),\"\"))","v":""},"2b","$S$45","$T$45"]
[35366,{"$f":"Menu!$F$29","v":"X"},{"$f":"Menu!$J$29","v":2020},{"$f":"IF(ISBLANK(INDIRECT(\"'\"&F9203&\"'!\"&G9203)),\"\",INDIRECT(\"'\"&F9203&\"'!\"&G9203))","v":""},{"$f":"IF(ISBLANK(INDIRECT(\"'\"&F9203&\"'!\"&H9203)),\"\",IFERROR(VLOOKUP(TEXT(INDIRECT(\"'\"&F9203&\"'!\"&H9203),\"0\"),Notes!$B$5:$C$100,2,FALSE),\"\"))","v":""},"2b","$Y$22","$Z$22"]
[35369,{"$f":"Menu!$F$29","v":"X"},{"$f":"Menu!$J$29","v":2020},{"$f":"IF(ISBLANK(INDIRECT(\"'\"&F9204&\"'!\"&G9204)),\"\",INDIRECT(\"'\"&F9204&\"'!\"&G9204))","v":""},{"$f":"IF(ISBLANK(INDIRECT(\"'\"&F9204&\"'!\"&H9204)),\"\",IFERROR(VLOOKUP(TEXT(INDIRECT(\"'\"&F9204&\"'!\"&H9204),\"0\"),Notes!$B$5:$C$100,2,FALSE),\"\"))","v":""},"2b","$Y$29","$Z$29"]
[35370,{"$f":"Menu!$F$29","v":"X"},{"$f":"Menu!$J$29","v":2020},{"$f":"IF(ISBLANK(INDIRECT(\"'\"&F9205&\"'!\"&G9205)),\"\",INDIRECT(\"'\"&F9205&\"'!\"&G9205))","v":""},{"$f":"IF(ISBLANK(INDIRECT(\"'\"&F9205&\"'!\"&H9205)),\"\",IFERROR(VLOOKUP(TEXT(INDIRECT(\"'\"&F9205&\"'!\"&H9205),\"0\"),Notes!$B$5:$C$100,2,FALSE),\"\"))","v":""},"2b","$Y$30","$Z$30"]
[35372,{"$f":"Menu!$F$29","v":"X"},{"$f":"Menu!$J$29","v":2020},{"$f":"IF(ISBLANK(INDIRECT(\"'\"&F9206&\"'!\"&G9206)),\"\",INDIRECT(\"'\"&F9206&\"'!\"&G9206))","v":""},{"$f":"IF(ISBLANK(INDIRECT(\"'\"&F9206&\"'!\"&H9206)),\"\",IFERROR(VLOOKUP(TEXT(INDIRECT(\"'\"&F9206&\"'!\"&H9206),\"0\"),Notes!$B$5:$C$100,2,FALSE),\"\"))","v":""},"2b","$Y$36","$Z$36"]
[35373,{"$f":"Menu!$F$29","v":"X"},{"$f":"Menu!$J$29","v":2020},{"$f":"IF(ISBLANK(INDIRECT(\"'\"&F9207&\"'!\"&G9207)),\"\",INDIRECT(\"'\"&F9207&\"'!\"&G9207))","v":""},{"$f":"IF(ISBLANK(INDIRECT(\"'\"&F9207&\"'!\"&H9207)),\"\",IFERROR(VLOOKUP(TEXT(INDIRECT(\"'\"&F9207&\"'!\"&H9207),\"0\"),Notes!$B$5:$C$100,2,FALSE),\"\"))","v":""},"2b","$Y$37","$Z$37"]
[35375,{"$f":"Menu!$F$29","v":"X"},{"$f":"Menu!$J$29","v":2020},{"$f":"IF(ISBLANK(INDIRECT(\"'\"&F9208&\"'!\"&G9208)),\"\",INDIRECT(\"'\"&F9208&\"'!\"&G9208))","v":""},{"$f":"IF(ISBLANK(INDIRECT(\"'\"&F9208&\"'!\"&H9208)),\"\",IFERROR(VLOOKUP(TEXT(INDIRECT(\"'\"&F9208&\"'!\"&H9208),\"0\"),Notes!$B$5:$C$100,2,FALSE),\"\"))","v":""},"2b","$Y$49","$Z$49"]
[35376,{"$f":"Menu!$F$29","v":"X"},{"$f":"Menu!$J$29","v":2020},{"$f":"IF(ISBLANK(INDIRECT(\"'\"&F9209&\"'!\"&G9209)),\"\",INDIRECT(\"'\"&F9209&\"'!\"&G9209))","v":""},{"$f":"IF(ISBLANK(INDIRECT(\"'\"&F9209&\"'!\"&H9209)),\"\",IFERROR(VLOOKUP(TEXT(INDIRECT(\"'\"&F9209&\"'!\"&H9209),\"0\"),Notes!$B$5:$C$100,2,FALSE),\"\"))","v":""},"2b","$Y$50","$Z$50"]
[35378,{"$f":"Menu!$F$29","v":"X"},{"$f":"Menu!$J$29","v":2020},{"$f":"IF(ISBLANK(INDIRECT(\"'\"&F9210&\"'!\"&G9210)),\"\",INDIRECT(\"'\"&F9210&\"'!\"&G9210))","v":""},{"$f":"IF(ISBLANK(INDIRECT(\"'\"&F9210&\"'!\"&H9210)),\"\",IFERROR(VLOOKUP(TEXT(INDIRECT(\"'\"&F9210&\"'!\"&H9210),\"0\"),Notes!$B$5:$C$100,2,FALSE),\"\"))","v":""},"2b","$Y$44","$Z$44"]
[35379,{"$f":"Menu!$F$29","v":"X"},{"$f":"Menu!$J$29","v":2020},{"$f":"IF(ISBLANK(INDIRECT(\"'\"&F9211&\"'!\"&G9211)),\"\",INDIRECT(\"'\"&F9211&\"'!\"&G9211))","v":""},{"$f":"IF(ISBLANK(INDIRECT(\"'\"&F9211&\"'!\"&H9211)),\"\",IFERROR(VLOOKUP(TEXT(INDIRECT(\"'\"&F9211&\"'!\"&H9211),\"0\"),Notes!$B$5:$C$100,2,FALSE),\"\"))","v":""},"2b","$Y$45","$Z$45"]
[35411,{"$f":"Menu!$F$29","v":"X"},{"$f":"Menu!$J$29","v":2020},{"$f":"IF(ISBLANK(INDIRECT(\"'\"&F9212&\"'!\"&G9212)),\"\",INDIRECT(\"'\"&F9212&\"'!\"&G9212))","v":""},{"$f":"IF(ISBLANK(INDIRECT(\"'\"&F9212&\"'!\"&H9212)),\"\",IFERROR(VLOOKUP(TEXT(INDIRECT(\"'\"&F9212&\"'!\"&H9212),\"0\"),Notes!$B$5:$C$100,2,FALSE),\"\"))","v":""},"2e","$BI$23","$BJ$23"]
[35414,{"$f":"Menu!$F$29","v":"X"},{"$f":"Menu!$J$29","v":2020},{"$f":"IF(ISBLANK(INDIRECT(\"'\"&F9213&\"'!\"&G9213)),\"\",INDIRECT(\"'\"&F9213&\"'!\"&G9213))","v":""},{"$f":"IF(ISBLANK(INDIRECT(\"'\"&F9213&\"'!\"&H9213)),\"\",IFERROR(VLOOKUP(TEXT(INDIRECT(\"'\"&F9213&\"'!\"&H9213),\"0\"),Notes!$B$5:$C$100,2,FALSE),\"\"))","v":""},"2e","$BI$30","$BJ$30"]
[35415,{"$f":"Menu!$F$29","v":"X"},{"$f":"Menu!$J$29","v":2020},{"$f":"IF(ISBLANK(INDIRECT(\"'\"&F9214&\"'!\"&G9214)),\"\",INDIRECT(\"'\"&F9214&\"'!\"&G9214))","v":""},{"$f":"IF(ISBLANK(INDIRECT(\"'\"&F9214&\"'!\"&H9214)),\"\",IFERROR(VLOOKUP(TEXT(INDIRECT(\"'\"&F9214&\"'!\"&H9214),\"0\"),Notes!$B$5:$C$100,2,FALSE),\"\"))","v":""},"2e","$BI$31","$BJ$31"]
[35417,{"$f":"Menu!$F$29","v":"X"},{"$f":"Menu!$J$29","v":2020},{"$f":"IF(ISBLANK(INDIRECT(\"'\"&F9215&\"'!\"&G9215)),\"\",INDIRECT(\"'\"&F9215&\"'!\"&G9215))","v":""},{"$f":"IF(ISBLANK(INDIRECT(\"'\"&F9215&\"'!\"&H9215)),\"\",IFERROR(VLOOKUP(TEXT(INDIRECT(\"'\"&F9215&\"'!\"&H9215),\"0\"),Notes!$B$5:$C$100,2,FALSE),\"\"))","v":""},"2e","$BI$37","$BJ$37"]
[35418,{"$f":"Menu!$F$29","v":"X"},{"$f":"Menu!$J$29","v":2020},{"$f":"IF(ISBLANK(INDIRECT(\"'\"&F9216&\"'!\"&G9216)),\"\",INDIRECT(\"'\"&F9216&\"'!\"&G9216))","v":""},{"$f":"IF(ISBLANK(INDIRECT(\"'\"&F9216&\"'!\"&H9216)),\"\",IFERROR(VLOOKUP(TEXT(INDIRECT(\"'\"&F9216&\"'!\"&H9216),\"0\"),Notes!$B$5:$C$100,2,FALSE),\"\"))","v":""},"2e","$BI$38","$BJ$38"]
[35420,{"$f":"Menu!$F$29","v":"X"},{"$f":"Menu!$J$29","v":2020},{"$f":"IF(ISBLANK(INDIRECT(\"'\"&F9217&\"'!\"&G9217)),\"\",INDIRECT(\"'\"&F9217&\"'!\"&G9217))","v":""},{"$f":"IF(ISBLANK(INDIRECT(\"'\"&F9217&\"'!\"&H9217)),\"\",IFERROR(VLOOKUP(TEXT(INDIRECT(\"'\"&F9217&\"'!\"&H9217),\"0\"),Notes!$B$5:$C$100,2,FALSE),\"\"))","v":""},"2e","$BI$50","$BJ$50"]
[35421,{"$f":"Menu!$F$29","v":"X"},{"$f":"Menu!$J$29","v":2020},{"$f":"IF(ISBLANK(INDIRECT(\"'\"&F9218&\"'!\"&G9218)),\"\",INDIRECT(\"'\"&F9218&\"'!\"&G9218))","v":""},{"$f":"IF(ISBLANK(INDIRECT(\"'\"&F9218&\"'!\"&H9218)),\"\",IFERROR(VLOOKUP(TEXT(INDIRECT(\"'\"&F9218&\"'!\"&H9218),\"0\"),Notes!$B$5:$C$100,2,FALSE),\"\"))","v":""},"2e","$BI$51",{"$f":"IF(LEN(TRIM(MID(G9218,4,10)))-LEN(SUBSTITUTE(TRIM(MID(G9218,4,10)),\"$\",\"\"))=0,\"$\"&CHAR(CODE(MID(G9218,2,1))+1)&\"$\"&TRIM(MID(G9218,4,10)),\"$\"&MID(G9218,2,1)&CHAR(CODE(MID(G9218,3,1))+1)&\"$\"&TRIM(MID(G9218,5,11)))","v":"$BJ$51"}]
[35423,{"$f":"Menu!$F$29","v":"X"},{"$f":"Menu!$J$29","v":2020},{"$f":"IF(ISBLANK(INDIRECT(\"'\"&F9219&\"'!\"&G9219)),\"\",INDIRECT(\"'\"&F9219&\"'!\"&G9219))","v":""},{"$f":"IF(ISBLANK(INDIRECT(\"'\"&F9219&\"'!\"&H9219)),\"\",IFERROR(VLOOKUP(TEXT(INDIRECT(\"'\"&F9219&\"'!\"&H9219),\"0\"),Notes!$B$5:$C$100,2,FALSE),\"\"))","v":""},"2e","$BI$45","$BJ$45"]
[35424,{"$f":"Menu!$F$29","v":"X"},{"$f":"Menu!$J$29","v":2020},{"$f":"IF(ISBLANK(INDIRECT(\"'\"&F9220&\"'!\"&G9220)),\"\",INDIRECT(\"'\"&F9220&\"'!\"&G9220))","v":""},{"$f":"IF(ISBLANK(INDIRECT(\"'\"&F9220&\"'!\"&H9220)),\"\",IFERROR(VLOOKUP(TEXT(INDIRECT(\"'\"&F9220&\"'!\"&H9220),\"0\"),Notes!$B$5:$C$100,2,FALSE),\"\"))","v":""},"2e","$BI$46","$BJ$46"]
[35426,{"$f":"Menu!$F$29","v":"X"},{"$f":"Menu!$J$29","v":2020},{"$f":"IF(ISBLANK(INDIRECT(\"'\"&F9221&\"'!\"&G9221)),\"\",INDIRECT(\"'\"&F9221&\"'!\"&G9221))","v":""},{"$f":"IF(ISBLANK(INDIRECT(\"'\"&F9221&\"'!\"&H9221)),\"\",IFERROR(VLOOKUP(TEXT(INDIRECT(\"'\"&F9221&\"'!\"&H9221),\"0\"),Notes!$B$5:$C$100,2,FALSE),\"\"))","v":""},"2e","$G$23","$H$23"]
[35429,{"$f":"Menu!$F$29","v":"X"},{"$f":"Menu!$J$29","v":2020},{"$f":"IF(ISBLANK(INDIRECT(\"'\"&F9222&\"'!\"&G9222)),\"\",INDIRECT(\"'\"&F9222&\"'!\"&G9222))","v":""},{"$f":"IF(ISBLANK(INDIRECT(\"'\"&F9222&\"'!\"&H9222)),\"\",IFERROR(VLOOKUP(TEXT(INDIRECT(\"'\"&F9222&\"'!\"&H9222),\"0\"),Notes!$B$5:$C$100,2,FALSE),\"\"))","v":""},"2e","$G$30","$H$30"]
[35430,{"$f":"Menu!$F$29","v":"X"},{"$f":"Menu!$J$29","v":2020},{"$f":"IF(ISBLANK(INDIRECT(\"'\"&F9223&\"'!\"&G9223)),\"\",INDIRECT(\"'\"&F9223&\"'!\"&G9223))","v":""},{"$f":"IF(ISBLANK(INDIRECT(\"'\"&F9223&\"'!\"&H9223)),\"\",IFERROR(VLOOKUP(TEXT(INDIRECT(\"'\"&F9223&\"'!\"&H9223),\"0\"),Notes!$B$5:$C$100,2,FALSE),\"\"))","v":""},"2e","$G$31","$H$31"]
[35432,{"$f":"Menu!$F$29","v":"X"},{"$f":"Menu!$J$29","v":2020},{"$f":"IF(ISBLANK(INDIRECT(\"'\"&F9224&\"'!\"&G9224)),\"\",INDIRECT(\"'\"&F9224&\"'!\"&G9224))","v":""},{"$f":"IF(ISBLANK(INDIRECT(\"'\"&F9224&\"'!\"&H9224)),\"\",IFERROR(VLOOKUP(TEXT(INDIRECT(\"'\"&F9224&\"'!\"&H9224),\"0\"),Notes!$B$5:$C$100,2,FALSE),\"\"))","v":""},"2e","$G$37","$H$37"]
[35433,{"$f":"Menu!$F$29","v":"X"},{"$f":"Menu!$J$29","v":2020},{"$f":"IF(ISBLANK(INDIRECT(\"'\"&F9225&\"'!\"&G9225)),\"\",INDIRECT(\"'\"&F9225&\"'!\"&G9225))","v":""},{"$f":"IF(ISBLANK(INDIRECT(\"'\"&F9225&\"'!\"&H9225)),\"\",IFERROR(VLOOKUP(TEXT(INDIRECT(\"'\"&F9225&\"'!\"&H9225),\"0\"),Notes!$B$5:$C$100,2,FALSE),\"\"))","v":""},"2e","$G$38","$H$38"]
[35435,{"$f":"Menu!$F$29","v":"X"},{"$f":"Menu!$J$29","v":2020},{"$f":"IF(ISBLANK(INDIRECT(\"'\"&F9226&\"'!\"&G9226)),\"\",INDIRECT(\"'\"&F9226&\"'!\"&G9226))","v":""},{"$f":"IF(ISBLANK(INDIRECT(\"'\"&F9226&\"'!\"&H9226)),\"\",IFERROR(VLOOKUP(TEXT(INDIRECT(\"'\"&F9226&\"'!\"&H9226),\"0\"),Notes!$B$5:$C$100,2,FALSE),\"\"))","v":""},"2e","$G$50","$H$50"]
[35436,{"$f":"Menu!$F$29","v":"X"},{"$f":"Menu!$J$29","v":2020},{"$f":"IF(ISBLANK(INDIRECT(\"'\"&F9227&\"'!\"&G9227)),\"\",INDIRECT(\"'\"&F9227&\"'!\"&G9227))","v":""},{"$f":"IF(ISBLANK(INDIRECT(\"'\"&F9227&\"'!\"&H9227)),\"\",IFERROR(VLOOKUP(TEXT(INDIRECT(\"'\"&F9227&\"'!\"&H9227),\"0\"),Notes!$B$5:$C$100,2,FALSE),\"\"))","v":""},"2e","$G$51","$H$51"]
[35438,{"$f":"Menu!$F$29","v":"X"},{"$f":"Menu!$J$29","v":2020},{"$f":"IF(ISBLANK(INDIRECT(\"'\"&F9228&\"'!\"&G9228)),\"\",INDIRECT(\"'\"&F9228&\"'!\"&G9228))","v":""},{"$f":"IF(ISBLANK(INDIRECT(\"'\"&F9228&\"'!\"&H9228)),\"\",IFERROR(VLOOKUP(TEXT(INDIRECT(\"'\"&F9228&\"'!\"&H9228),\"0\"),Notes!$B$5:$C$100,2,FALSE),\"\"))","v":""},"2e","$G$45","$H$45"]
[35439,{"$f":"Menu!$F$29","v":"X"},{"$f":"Menu!$J$29","v":2020},{"$f":"IF(ISBLANK(INDIRECT(\"'\"&F9229&\"'!\"&G9229)),\"\",INDIRECT(\"'\"&F9229&\"'!\"&G9229))","v":""},{"$f":"IF(ISBLANK(INDIRECT(\"'\"&F9229&\"'!\"&H9229)),\"\",IFERROR(VLOOKUP(TEXT(INDIRECT(\"'\"&F9229&\"'!\"&H9229),\"0\"),Notes!$B$5:$C$100,2,FALSE),\"\"))","v":""},"2e","$G$46","$H$46"]
[35441,{"$f":"Menu!$F$29","v":"X"},{"$f":"Menu!$J$29","v":2020},{"$f":"IF(ISBLANK(INDIRECT(\"'\"&F9230&\"'!\"&G9230)),\"\",INDIRECT(\"'\"&F9230&\"'!\"&G9230))","v":""},{"$f":"IF(ISBLANK(INDIRECT(\"'\"&F9230&\"'!\"&H9230)),\"\",IFERROR(VLOOKUP(TEXT(INDIRECT(\"'\"&F9230&\"'!\"&H9230),\"0\"),Notes!$B$5:$C$100,2,FALSE),\"\"))","v":""},"2e","$M$23","$N$23"]
[35444,{"$f":"Menu!$F$29","v":"X"},{"$f":"Menu!$J$29","v":2020},{"$f":"IF(ISBLANK(INDIRECT(\"'\"&F9231&\"'!\"&G9231)),\"\",INDIRECT(\"'\"&F9231&\"'!\"&G9231))","v":""},{"$f":"IF(ISBLANK(INDIRECT(\"'\"&F9231&\"'!\"&H9231)),\"\",IFERROR(VLOOKUP(TEXT(INDIRECT(\"'\"&F9231&\"'!\"&H9231),\"0\"),Notes!$B$5:$C$100,2,FALSE),\"\"))","v":""},"2e","$M$30","$N$30"]
[35445,{"$f":"Menu!$F$29","v":"X"},{"$f":"Menu!$J$29","v":2020},{"$f":"IF(ISBLANK(INDIRECT(\"'\"&F9232&\"'!\"&G9232)),\"\",INDIRECT(\"'\"&F9232&\"'!\"&G9232))","v":""},{"$f":"IF(ISBLANK(INDIRECT(\"'\"&F9232&\"'!\"&H9232)),\"\",IFERROR(VLOOKUP(TEXT(INDIRECT(\"'\"&F9232&\"'!\"&H9232),\"0\"),Notes!$B$5:$C$100,2,FALSE),\"\"))","v":""},"2e","$M$31","$N$31"]
[35447,{"$f":"Menu!$F$29","v":"X"},{"$f":"Menu!$J$29","v":2020},{"$f":"IF(ISBLANK(INDIRECT(\"'\"&F9233&\"'!\"&G9233)),\"\",INDIRECT(\"'\"&F9233&\"'!\"&G9233))","v":""},{"$f":"IF(ISBLANK(INDIRECT(\"'\"&F9233&\"'!\"&H9233)),\"\",IFERROR(VLOOKUP(TEXT(INDIRECT(\"'\"&F9233&\"'!\"&H9233),\"0\"),Notes!$B$5:$C$100,2,FALSE),\"\"))","v":""},"2e","$M$37","$N$37"]
[35448,{"$f":"Menu!$F$29","v":"X"},{"$f":"Menu!$J$29","v":2020},{"$f":"IF(ISBLANK(INDIRECT(\"'\"&F9234&\"'!\"&G9234)),\"\",INDIRECT(\"'\"&F9234&\"'!\"&G9234))","v":""},{"$f":"IF(ISBLANK(INDIRECT(\"'\"&F9234&\"'!\"&H9234)),\"\",IFERROR(VLOOKUP(TEXT(INDIRECT(\"'\"&F9234&\"'!\"&H9234),\"0\"),Notes!$B$5:$C$100,2,FALSE),\"\"))","v":""},"2e","$M$38","$N$38"]
[35450,{"$f":"Menu!$F$29","v":"X"},{"$f":"Menu!$J$29","v":2020},{"$f":"IF(ISBLANK(INDIRECT(\"'\"&F9235&\"'!\"&G9235)),\"\",INDIRECT(\"'\"&F9235&\"'!\"&G9235))","v":""},{"$f":"IF(ISBLANK(INDIRECT(\"'\"&F9235&\"'!\"&H9235)),\"\",IFERROR(VLOOKUP(TEXT(INDIRECT(\"'\"&F9235&\"'!\"&H9235),\"0\"),Notes!$B$5:$C$100,2,FALSE),\"\"))","v":""},"2e","$M$50","$N$50"]
[35451,{"$f":"Menu!$F$29","v":"X"},{"$f":"Menu!$J$29","v":2020},{"$f":"IF(ISBLANK(INDIRECT(\"'\"&F9236&\"'!\"&G9236)),\"\",INDIRECT(\"'\"&F9236&\"'!\"&G9236))","v":""},{"$f":"IF(ISBLANK(INDIRECT(\"'\"&F9236&\"'!\"&H9236)),\"\",IFERROR(VLOOKUP(TEXT(INDIRECT(\"'\"&F9236&\"'!\"&H9236),\"0\"),Notes!$B$5:$C$100,2,FALSE),\"\"))","v":""},"2e","$M$51","$N$51"]
[35453,{"$f":"Menu!$F$29","v":"X"},{"$f":"Menu!$J$29","v":2020},{"$f":"IF(ISBLANK(INDIRECT(\"'\"&F9237&\"'!\"&G9237)),\"\",INDIRECT(\"'\"&F9237&\"'!\"&G9237))","v":""},{"$f":"IF(ISBLANK(INDIRECT(\"'\"&F9237&\"'!\"&H9237)),\"\",IFERROR(VLOOKUP(TEXT(INDIRECT(\"'\"&F9237&\"'!\"&H9237),\"0\"),Notes!$B$5:$C$100,2,FALSE),\"\"))","v":""},"2e","$M$45","$N$45"]
[35454,{"$f":"Menu!$F$29","v":"X"},{"$f":"Menu!$J$29","v":2020},{"$f":"IF(ISBLANK(INDIRECT(\"'\"&F9238&\"'!\"&G9238)),\"\",INDIRECT(\"'\"&F9238&\"'!\"&G9238))","v":""},{"$f":"IF(ISBLANK(INDIRECT(\"'\"&F9238&\"'!\"&H9238)),\"\",IFERROR(VLOOKUP(TEXT(INDIRECT(\"'\"&F9238&\"'!\"&H9238),\"0\"),Notes!$B$5:$C$100,2,FALSE),\"\"))","v":""},"2e","$M$46","$N$46"]
[35456,{"$f":"Menu!$F$29","v":"X"},{"$f":"Menu!$J$29","v":2020},{"$f":"IF(ISBLANK(INDIRECT(\"'\"&F9239&\"'!\"&G9239)),\"\",INDIRECT(\"'\"&F9239&\"'!\"&G9239))","v":""},{"$f":"IF(ISBLANK(INDIRECT(\"'\"&F9239&\"'!\"&H9239)),\"\",IFERROR(VLOOKUP(TEXT(INDIRECT(\"'\"&F9239&\"'!\"&H9239),\"0\"),Notes!$B$5:$C$100,2,FALSE),\"\"))","v":""},"2e","$S$23","$T$23"]
[35459,{"$f":"Menu!$F$29","v":"X"},{"$f":"Menu!$J$29","v":2020},{"$f":"IF(ISBLANK(INDIRECT(\"'\"&F9240&\"'!\"&G9240)),\"\",INDIRECT(\"'\"&F9240&\"'!\"&G9240))","v":""},{"$f":"IF(ISBLANK(INDIRECT(\"'\"&F9240&\"'!\"&H9240)),\"\",IFERROR(VLOOKUP(TEXT(INDIRECT(\"'\"&F9240&\"'!\"&H9240),\"0\"),Notes!$B$5:$C$100,2,FALSE),\"\"))","v":""},"2e","$S$30","$T$30"]
[35460,{"$f":"Menu!$F$29","v":"X"},{"$f":"Menu!$J$29","v":2020},{"$f":"IF(ISBLANK(INDIRECT(\"'\"&F9241&\"'!\"&G9241)),\"\",INDIRECT(\"'\"&F9241&\"'!\"&G9241))","v":""},{"$f":"IF(ISBLANK(INDIRECT(\"'\"&F9241&\"'!\"&H9241)),\"\",IFERROR(VLOOKUP(TEXT(INDIRECT(\"'\"&F9241&\"'!\"&H9241),\"0\"),Notes!$B$5:$C$100,2,FALSE),\"\"))","v":""},"2e","$S$31","$T$31"]
[35462,{"$f":"Menu!$F$29","v":"X"},{"$f":"Menu!$J$29","v":2020},{"$f":"IF(ISBLANK(INDIRECT(\"'\"&F9242&\"'!\"&G9242)),\"\",INDIRECT(\"'\"&F9242&\"'!\"&G9242))","v":""},{"$f":"IF(ISBLANK(INDIRECT(\"'\"&F9242&\"'!\"&H9242)),\"\",IFERROR(VLOOKUP(TEXT(INDIRECT(\"'\"&F9242&\"'!\"&H9242),\"0\"),Notes!$B$5:$C$100,2,FALSE),\"\"))","v":""},"2e","$S$37","$T$37"]
[35463,{"$f":"Menu!$F$29","v":"X"},{"$f":"Menu!$J$29","v":2020},{"$f":"IF(ISBLANK(INDIRECT(\"'\"&F9243&\"'!\"&G9243)),\"\",INDIRECT(\"'\"&F9243&\"'!\"&G9243))","v":""},{"$f":"IF(ISBLANK(INDIRECT(\"'\"&F9243&\"'!\"&H9243)),\"\",IFERROR(VLOOKUP(TEXT(INDIRECT(\"'\"&F9243&\"'!\"&H9243),\"0\"),Notes!$B$5:$C$100,2,FALSE),\"\"))","v":""},"2e","$S$38","$T$38"]
[35465,{"$f":"Menu!$F$29","v":"X"},{"$f":"Menu!$J$29","v":2020},{"$f":"IF(ISBLANK(INDIRECT(\"'\"&F9244&\"'!\"&G9244)),\"\",INDIRECT(\"'\"&F9244&\"'!\"&G9244))","v":""},{"$f":"IF(ISBLANK(INDIRECT(\"'\"&F9244&\"'!\"&H9244)),\"\",IFERROR(VLOOKUP(TEXT(INDIRECT(\"'\"&F9244&\"'!\"&H9244),\"0\"),Notes!$B$5:$C$100,2,FALSE),\"\"))","v":""},"2e","$S$50","$T$50"]
[35466,{"$f":"Menu!$F$29","v":"X"},{"$f":"Menu!$J$29","v":2020},{"$f":"IF(ISBLANK(INDIRECT(\"'\"&F9245&\"'!\"&G9245)),\"\",INDIRECT(\"'\"&F9245&\"'!\"&G9245))","v":""},{"$f":"IF(ISBLANK(INDIRECT(\"'\"&F9245&\"'!\"&H9245)),\"\",IFERROR(VLOOKUP(TEXT(INDIRECT(\"'\"&F9245&\"'!\"&H9245),\"0\"),Notes!$B$5:$C$100,2,FALSE),\"\"))","v":""},"2e","$S$51","$T$51"]
[35468,{"$f":"Menu!$F$29","v":"X"},{"$f":"Menu!$J$29","v":2020},{"$f":"IF(ISBLANK(INDIRECT(\"'\"&F9246&\"'!\"&G9246)),\"\",INDIRECT(\"'\"&F9246&\"'!\"&G9246))","v":""},{"$f":"IF(ISBLANK(INDIRECT(\"'\"&F9246&\"'!\"&H9246)),\"\",IFERROR(VLOOKUP(TEXT(INDIRECT(\"'\"&F9246&\"'!\"&H9246),\"0\"),Notes!$B$5:$C$100,2,FALSE),\"\"))","v":""},"2e","$S$45","$T$45"]
[35469,{"$f":"Menu!$F$29","v":"X"},{"$f":"Menu!$J$29","v":2020},{"$f":"IF(ISBLANK(INDIRECT(\"'\"&F9247&\"'!\"&G9247)),\"\",INDIRECT(\"'\"&F9247&\"'!\"&G9247))","v":""},{"$f":"IF(ISBLANK(INDIRECT(\"'\"&F9247&\"'!\"&H9247)),\"\",IFERROR(VLOOKUP(TEXT(INDIRECT(\"'\"&F9247&\"'!\"&H9247),\"0\"),Notes!$B$5:$C$100,2,FALSE),\"\"))","v":""},"2e","$S$46","$T$46"]
[35471,{"$f":"Menu!$F$29","v":"X"},{"$f":"Menu!$J$29","v":2020},{"$f":"IF(ISBLANK(INDIRECT(\"'\"&F9248&\"'!\"&G9248)),\"\",INDIRECT(\"'\"&F9248&\"'!\"&G9248))","v":""},{"$f":"IF(ISBLANK(INDIRECT(\"'\"&F9248&\"'!\"&H9248)),\"\",IFERROR(VLOOKUP(TEXT(INDIRECT(\"'\"&F9248&\"'!\"&H9248),\"0\"),Notes!$B$5:$C$100,2,FALSE),\"\"))","v":""},"2e","$Y$23","$Z$23"]
[35474,{"$f":"Menu!$F$29","v":"X"},{"$f":"Menu!$J$29","v":2020},{"$f":"IF(ISBLANK(INDIRECT(\"'\"&F9249&\"'!\"&G9249)),\"\",INDIRECT(\"'\"&F9249&\"'!\"&G9249))","v":""},{"$f":"IF(ISBLANK(INDIRECT(\"'\"&F9249&\"'!\"&H9249)),\"\",IFERROR(VLOOKUP(TEXT(INDIRECT(\"'\"&F9249&\"'!\"&H9249),\"0\"),Notes!$B$5:$C$100,2,FALSE),\"\"))","v":""},"2e","$Y$30","$Z$30"]
[35475,{"$f":"Menu!$F$29","v":"X"},{"$f":"Menu!$J$29","v":2020},{"$f":"IF(ISBLANK(INDIRECT(\"'\"&F9250&\"'!\"&G9250)),\"\",INDIRECT(\"'\"&F9250&\"'!\"&G9250))","v":""},{"$f":"IF(ISBLANK(INDIRECT(\"'\"&F9250&\"'!\"&H9250)),\"\",IFERROR(VLOOKUP(TEXT(INDIRECT(\"'\"&F9250&\"'!\"&H9250),\"0\"),Notes!$B$5:$C$100,2,FALSE),\"\"))","v":""},"2e","$Y$31","$Z$31"]
[35477,{"$f":"Menu!$F$29","v":"X"},{"$f":"Menu!$J$29","v":2020},{"$f":"IF(ISBLANK(INDIRECT(\"'\"&F9251&\"'!\"&G9251)),\"\",INDIRECT(\"'\"&F9251&\"'!\"&G9251))","v":""},{"$f":"IF(ISBLANK(INDIRECT(\"'\"&F9251&\"'!\"&H9251)),\"\",IFERROR(VLOOKUP(TEXT(INDIRECT(\"'\"&F9251&\"'!\"&H9251),\"0\"),Notes!$B$5:$C$100,2,FALSE),\"\"))","v":""},"2e","$Y$37","$Z$37"]
[35478,{"$f":"Menu!$F$29","v":"X"},{"$f":"Menu!$J$29","v":2020},{"$f":"IF(ISBLANK(INDIRECT(\"'\"&F9252&\"'!\"&G9252)),\"\",INDIRECT(\"'\"&F9252&\"'!\"&G9252))","v":""},{"$f":"IF(ISBLANK(INDIRECT(\"'\"&F9252&\"'!\"&H9252)),\"\",IFERROR(VLOOKUP(TEXT(INDIRECT(\"'\"&F9252&\"'!\"&H9252),\"0\"),Notes!$B$5:$C$100,2,FALSE),\"\"))","v":""},"2e","$Y$38","$Z$38"]
[35480,{"$f":"Menu!$F$29","v":"X"},{"$f":"Menu!$J$29","v":2020},{"$f":"IF(ISBLANK(INDIRECT(\"'\"&F9253&\"'!\"&G9253)),\"\",INDIRECT(\"'\"&F9253&\"'!\"&G9253))","v":""},{"$f":"IF(ISBLANK(INDIRECT(\"'\"&F9253&\"'!\"&H9253)),\"\",IFERROR(VLOOKUP(TEXT(INDIRECT(\"'\"&F9253&\"'!\"&H9253),\"0\"),Notes!$B$5:$C$100,2,FALSE),\"\"))","v":""},"2e","$Y$50","$Z$50"]
[35481,{"$f":"Menu!$F$29","v":"X"},{"$f":"Menu!$J$29","v":2020},{"$f":"IF(ISBLANK(INDIRECT(\"'\"&F9254&\"'!\"&G9254)),\"\",INDIRECT(\"'\"&F9254&\"'!\"&G9254))","v":""},{"$f":"IF(ISBLANK(INDIRECT(\"'\"&F9254&\"'!\"&H9254)),\"\",IFERROR(VLOOKUP(TEXT(INDIRECT(\"'\"&F9254&\"'!\"&H9254),\"0\"),Notes!$B$5:$C$100,2,FALSE),\"\"))","v":""},"2e","$Y$51","$Z$51"]
[35483,{"$f":"Menu!$F$29","v":"X"},{"$f":"Menu!$J$29","v":2020},{"$f":"IF(ISBLANK(INDIRECT(\"'\"&F9255&\"'!\"&G9255)),\"\",INDIRECT(\"'\"&F9255&\"'!\"&G9255))","v":""},{"$f":"IF(ISBLANK(INDIRECT(\"'\"&F9255&\"'!\"&H9255)),\"\",IFERROR(VLOOKUP(TEXT(INDIRECT(\"'\"&F9255&\"'!\"&H9255),\"0\"),Notes!$B$5:$C$100,2,FALSE),\"\"))","v":""},"2e","$Y$45","$Z$45"]
[35484,{"$f":"Menu!$F$29","v":"X"},{"$f":"Menu!$J$29","v":2020},{"$f":"IF(ISBLANK(INDIRECT(\"'\"&F9256&\"'!\"&G9256)),\"\",INDIRECT(\"'\"&F9256&\"'!\"&G9256))","v":""},{"$f":"IF(ISBLANK(INDIRECT(\"'\"&F9256&\"'!\"&H9256)),\"\",IFERROR(VLOOKUP(TEXT(INDIRECT(\"'\"&F9256&\"'!\"&H9256),\"0\"),Notes!$B$5:$C$100,2,FALSE),\"\"))","v":""},"2e","$Y$46","$Z$46"]
[35486,{"$f":"Menu!$F$29","v":"X"},{"$f":"Menu!$J$29","v":2020},{"$f":"IF(ISBLANK(INDIRECT(\"'\"&F9257&\"'!\"&G9257)),\"\",INDIRECT(\"'\"&F9257&\"'!\"&G9257))","v":""},{"$f":"IF(ISBLANK(INDIRECT(\"'\"&F9257&\"'!\"&H9257)),\"\",IFERROR(VLOOKUP(TEXT(INDIRECT(\"'\"&F9257&\"'!\"&H9257),\"0\"),Notes!$B$5:$C$100,2,FALSE),\"\"))","v":""},"2e","$AE$23","$AF$23"]
[35489,{"$f":"Menu!$F$29","v":"X"},{"$f":"Menu!$J$29","v":2020},{"$f":"IF(ISBLANK(INDIRECT(\"'\"&F9258&\"'!\"&G9258)),\"\",INDIRECT(\"'\"&F9258&\"'!\"&G9258))","v":""},{"$f":"IF(ISBLANK(INDIRECT(\"'\"&F9258&\"'!\"&H9258)),\"\",IFERROR(VLOOKUP(TEXT(INDIRECT(\"'\"&F9258&\"'!\"&H9258),\"0\"),Notes!$B$5:$C$100,2,FALSE),\"\"))","v":""},"2e","$AE$30","$AF$30"]
[35490,{"$f":"Menu!$F$29","v":"X"},{"$f":"Menu!$J$29","v":2020},{"$f":"IF(ISBLANK(INDIRECT(\"'\"&F9259&\"'!\"&G9259)),\"\",INDIRECT(\"'\"&F9259&\"'!\"&G9259))","v":""},{"$f":"IF(ISBLANK(INDIRECT(\"'\"&F9259&\"'!\"&H9259)),\"\",IFERROR(VLOOKUP(TEXT(INDIRECT(\"'\"&F9259&\"'!\"&H9259),\"0\"),Notes!$B$5:$C$100,2,FALSE),\"\"))","v":""},"2e","$AE$31","$AF$31"]
[35492,{"$f":"Menu!$F$29","v":"X"},{"$f":"Menu!$J$29","v":2020},{"$f":"IF(ISBLANK(INDIRECT(\"'\"&F9260&\"'!\"&G9260)),\"\",INDIRECT(\"'\"&F9260&\"'!\"&G9260))","v":""},{"$f":"IF(ISBLANK(INDIRECT(\"'\"&F9260&\"'!\"&H9260)),\"\",IFERROR(VLOOKUP(TEXT(INDIRECT(\"'\"&F9260&\"'!\"&H9260),\"0\"),Notes!$B$5:$C$100,2,FALSE),\"\"))","v":""},"2e","$AE$37","$AF$37"]
[35493,{"$f":"Menu!$F$29","v":"X"},{"$f":"Menu!$J$29","v":2020},{"$f":"IF(ISBLANK(INDIRECT(\"'\"&F9261&\"'!\"&G9261)),\"\",INDIRECT(\"'\"&F9261&\"'!\"&G9261))","v":""},{"$f":"IF(ISBLANK(INDIRECT(\"'\"&F9261&\"'!\"&H9261)),\"\",IFERROR(VLOOKUP(TEXT(INDIRECT(\"'\"&F9261&\"'!\"&H9261),\"0\"),Notes!$B$5:$C$100,2,FALSE),\"\"))","v":""},"2e","$AE$38","$AF$38"]
[35495,{"$f":"Menu!$F$29","v":"X"},{"$f":"Menu!$J$29","v":2020},{"$f":"IF(ISBLANK(INDIRECT(\"'\"&F9262&\"'!\"&G9262)),\"\",INDIRECT(\"'\"&F9262&\"'!\"&G9262))","v":""},{"$f":"IF(ISBLANK(INDIRECT(\"'\"&F9262&\"'!\"&H9262)),\"\",IFERROR(VLOOKUP(TEXT(INDIRECT(\"'\"&F9262&\"'!\"&H9262),\"0\"),Notes!$B$5:$C$100,2,FALSE),\"\"))","v":""},"2e","$AE$50","$AF$50"]
[35496,{"$f":"Menu!$F$29","v":"X"},{"$f":"Menu!$J$29","v":2020},{"$f":"IF(ISBLANK(INDIRECT(\"'\"&F9263&\"'!\"&G9263)),\"\",INDIRECT(\"'\"&F9263&\"'!\"&G9263))","v":""},{"$f":"IF(ISBLANK(INDIRECT(\"'\"&F9263&\"'!\"&H9263)),\"\",IFERROR(VLOOKUP(TEXT(INDIRECT(\"'\"&F9263&\"'!\"&H9263),\"0\"),Notes!$B$5:$C$100,2,FALSE),\"\"))","v":""},"2e","$AE$51","$AF$51"]
[35498,{"$f":"Menu!$F$29","v":"X"},{"$f":"Menu!$J$29","v":2020},{"$f":"IF(ISBLANK(INDIRECT(\"'\"&F9264&\"'!\"&G9264)),\"\",INDIRECT(\"'\"&F9264&\"'!\"&G9264))","v":""},{"$f":"IF(ISBLANK(INDIRECT(\"'\"&F9264&\"'!\"&H9264)),\"\",IFERROR(VLOOKUP(TEXT(INDIRECT(\"'\"&F9264&\"'!\"&H9264),\"0\"),Notes!$B$5:$C$100,2,FALSE),\"\"))","v":""},"2e","$AE$45","$AF$45"]
[35499,{"$f":"Menu!$F$29","v":"X"},{"$f":"Menu!$J$29","v":2020},{"$f":"IF(ISBLANK(INDIRECT(\"'\"&F9265&\"'!\"&G9265)),\"\",INDIRECT(\"'\"&F9265&\"'!\"&G9265))","v":""},{"$f":"IF(ISBLANK(INDIRECT(\"'\"&F9265&\"'!\"&H9265)),\"\",IFERROR(VLOOKUP(TEXT(INDIRECT(\"'\"&F9265&\"'!\"&H9265),\"0\"),Notes!$B$5:$C$100,2,FALSE),\"\"))","v":""},"2e","$AE$46","$AF$46"]
[35501,{"$f":"Menu!$F$29","v":"X"},{"$f":"Menu!$J$29","v":2020},{"$f":"IF(ISBLANK(INDIRECT(\"'\"&F9266&\"'!\"&G9266)),\"\",INDIRECT(\"'\"&F9266&\"'!\"&G9266))","v":""},{"$f":"IF(ISBLANK(INDIRECT(\"'\"&F9266&\"'!\"&H9266)),\"\",IFERROR(VLOOKUP(TEXT(INDIRECT(\"'\"&F9266&\"'!\"&H9266),\"0\"),Notes!$B$5:$C$100,2,FALSE),\"\"))","v":""},"2e","$AK$23","$AL$23"]
[35504,{"$f":"Menu!$F$29","v":"X"},{"$f":"Menu!$J$29","v":2020},{"$f":"IF(ISBLANK(INDIRECT(\"'\"&F9267&\"'!\"&G9267)),\"\",INDIRECT(\"'\"&F9267&\"'!\"&G9267))","v":""},{"$f":"IF(ISBLANK(INDIRECT(\"'\"&F9267&\"'!\"&H9267)),\"\",IFERROR(VLOOKUP(TEXT(INDIRECT(\"'\"&F9267&\"'!\"&H9267),\"0\"),Notes!$B$5:$C$100,2,FALSE),\"\"))","v":""},"2e","$AK$30","$AL$30"]
[35505,{"$f":"Menu!$F$29","v":"X"},{"$f":"Menu!$J$29","v":2020},{"$f":"IF(ISBLANK(INDIRECT(\"'\"&F9268&\"'!\"&G9268)),\"\",INDIRECT(\"'\"&F9268&\"'!\"&G9268))","v":""},{"$f":"IF(ISBLANK(INDIRECT(\"'\"&F9268&\"'!\"&H9268)),\"\",IFERROR(VLOOKUP(TEXT(INDIRECT(\"'\"&F9268&\"'!\"&H9268),\"0\"),Notes!$B$5:$C$100,2,FALSE),\"\"))","v":""},"2e","$AK$31","$AL$31"]
[35507,{"$f":"Menu!$F$29","v":"X"},{"$f":"Menu!$J$29","v":2020},{"$f":"IF(ISBLANK(INDIRECT(\"'\"&F9269&\"'!\"&G9269)),\"\",INDIRECT(\"'\"&F9269&\"'!\"&G9269))","v":""},{"$f":"IF(ISBLANK(INDIRECT(\"'\"&F9269&\"'!\"&H9269)),\"\",IFERROR(VLOOKUP(TEXT(INDIRECT(\"'\"&F9269&\"'!\"&H9269),\"0\"),Notes!$B$5:$C$100,2,FALSE),\"\"))","v":""},"2e","$AK$37","$AL$37"]
[35508,{"$f":"Menu!$F$29","v":"X"},{"$f":"Menu!$J$29","v":2020},{"$f":"IF(ISBLANK(INDIRECT(\"'\"&F9270&\"'!\"&G9270)),\"\",INDIRECT(\"'\"&F9270&\"'!\"&G9270))","v":""},{"$f":"IF(ISBLANK(INDIRECT(\"'\"&F9270&\"'!\"&H9270)),\"\",IFERROR(VLOOKUP(TEXT(INDIRECT(\"'\"&F9270&\"'!\"&H9270),\"0\"),Notes!$B$5:$C$100,2,FALSE),\"\"))","v":""},"2e","$AK$38","$AL$38"]
[35510,{"$f":"Menu!$F$29","v":"X"},{"$f":"Menu!$J$29","v":2020},{"$f":"IF(ISBLANK(INDIRECT(\"'\"&F9271&\"'!\"&G9271)),\"\",INDIRECT(\"'\"&F9271&\"'!\"&G9271))","v":""},{"$f":"IF(ISBLANK(INDIRECT(\"'\"&F9271&\"'!\"&H9271)),\"\",IFERROR(VLOOKUP(TEXT(INDIRECT(\"'\"&F9271&\"'!\"&H9271),\"0\"),Notes!$B$5:$C$100,2,FALSE),\"\"))","v":""},"2e","$AK$50","$AL$50"]
[35511,{"$f":"Menu!$F$29","v":"X"},{"$f":"Menu!$J$29","v":2020},{"$f":"IF(ISBLANK(INDIRECT(\"'\"&F9272&\"'!\"&G9272)),\"\",INDIRECT(\"'\"&F9272&\"'!\"&G9272))","v":""},{"$f":"IF(ISBLANK(INDIRECT(\"'\"&F9272&\"'!\"&H9272)),\"\",IFERROR(VLOOKUP(TEXT(INDIRECT(\"'\"&F9272&\"'!\"&H9272),\"0\"),Notes!$B$5:$C$100,2,FALSE),\"\"))","v":""},"2e","$AK$51","$AL$51"]
[35513,{"$f":"Menu!$F$29","v":"X"},{"$f":"Menu!$J$29","v":2020},{"$f":"IF(ISBLANK(INDIRECT(\"'\"&F9273&\"'!\"&G9273)),\"\",INDIRECT(\"'\"&F9273&\"'!\"&G9273))","v":""},{"$f":"IF(ISBLANK(INDIRECT(\"'\"&F9273&\"'!\"&H9273)),\"\",IFERROR(VLOOKUP(TEXT(INDIRECT(\"'\"&F9273&\"'!\"&H9273),\"0\"),Notes!$B$5:$C$100,2,FALSE),\"\"))","v":""},"2e","$AK$45","$AL$45"]
[35514,{"$f":"Menu!$F$29","v":"X"},{"$f":"Menu!$J$29","v":2020},{"$f":"IF(ISBLANK(INDIRECT(\"'\"&F9274&\"'!\"&G9274)),\"\",INDIRECT(\"'\"&F9274&\"'!\"&G9274))","v":""},{"$f":"IF(ISBLANK(INDIRECT(\"'\"&F9274&\"'!\"&H9274)),\"\",IFERROR(VLOOKUP(TEXT(INDIRECT(\"'\"&F9274&\"'!\"&H9274),\"0\"),Notes!$B$5:$C$100,2,FALSE),\"\"))","v":""},"2e","$AK$46","$AL$46"]
[35516,{"$f":"Menu!$F$29","v":"X"},{"$f":"Menu!$J$29","v":2020},{"$f":"IF(ISBLANK(INDIRECT(\"'\"&F9275&\"'!\"&G9275)),\"\",INDIRECT(\"'\"&F9275&\"'!\"&G9275))","v":""},{"$f":"IF(ISBLANK(INDIRECT(\"'\"&F9275&\"'!\"&H9275)),\"\",IFERROR(VLOOKUP(TEXT(INDIRECT(\"'\"&F9275&\"'!\"&H9275),\"0\"),Notes!$B$5:$C$100,2,FALSE),\"\"))","v":""},"2e","$AQ$23","$AR$23"]
[35519,{"$f":"Menu!$F$29","v":"X"},{"$f":"Menu!$J$29","v":2020},{"$f":"IF(ISBLANK(INDIRECT(\"'\"&F9276&\"'!\"&G9276)),\"\",INDIRECT(\"'\"&F9276&\"'!\"&G9276))","v":""},{"$f":"IF(ISBLANK(INDIRECT(\"'\"&F9276&\"'!\"&H9276)),\"\",IFERROR(VLOOKUP(TEXT(INDIRECT(\"'\"&F9276&\"'!\"&H9276),\"0\"),Notes!$B$5:$C$100,2,FALSE),\"\"))","v":""},"2e","$AQ$30","$AR$30"]
[35520,{"$f":"Menu!$F$29","v":"X"},{"$f":"Menu!$J$29","v":2020},{"$f":"IF(ISBLANK(INDIRECT(\"'\"&F9277&\"'!\"&G9277)),\"\",INDIRECT(\"'\"&F9277&\"'!\"&G9277))","v":""},{"$f":"IF(ISBLANK(INDIRECT(\"'\"&F9277&\"'!\"&H9277)),\"\",IFERROR(VLOOKUP(TEXT(INDIRECT(\"'\"&F9277&\"'!\"&H9277),\"0\"),Notes!$B$5:$C$100,2,FALSE),\"\"))","v":""},"2e","$AQ$31","$AR$31"]
[35522,{"$f":"Menu!$F$29","v":"X"},{"$f":"Menu!$J$29","v":2020},{"$f":"IF(ISBLANK(INDIRECT(\"'\"&F9278&\"'!\"&G9278)),\"\",INDIRECT(\"'\"&F9278&\"'!\"&G9278))","v":""},{"$f":"IF(ISBLANK(INDIRECT(\"'\"&F9278&\"'!\"&H9278)),\"\",IFERROR(VLOOKUP(TEXT(INDIRECT(\"'\"&F9278&\"'!\"&H9278),\"0\"),Notes!$B$5:$C$100,2,FALSE),\"\"))","v":""},"2e","$AQ$37","$AR$37"]
[35523,{"$f":"Menu!$F$29","v":"X"},{"$f":"Menu!$J$29","v":2020},{"$f":"IF(ISBLANK(INDIRECT(\"'\"&F9279&\"'!\"&G9279)),\"\",INDIRECT(\"'\"&F9279&\"'!\"&G9279))","v":""},{"$f":"IF(ISBLANK(INDIRECT(\"'\"&F9279&\"'!\"&H9279)),\"\",IFERROR(VLOOKUP(TEXT(INDIRECT(\"'\"&F9279&\"'!\"&H9279),\"0\"),Notes!$B$5:$C$100,2,FALSE),\"\"))","v":""},"2e","$AQ$38","$AR$38"]
[35525,{"$f":"Menu!$F$29","v":"X"},{"$f":"Menu!$J$29","v":2020},{"$f":"IF(ISBLANK(INDIRECT(\"'\"&F9280&\"'!\"&G9280)),\"\",INDIRECT(\"'\"&F9280&\"'!\"&G9280))","v":""},{"$f":"IF(ISBLANK(INDIRECT(\"'\"&F9280&\"'!\"&H9280)),\"\",IFERROR(VLOOKUP(TEXT(INDIRECT(\"'\"&F9280&\"'!\"&H9280),\"0\"),Notes!$B$5:$C$100,2,FALSE),\"\"))","v":""},"2e","$AQ$50","$AR$50"]
[35526,{"$f":"Menu!$F$29","v":"X"},{"$f":"Menu!$J$29","v":2020},{"$f":"IF(ISBLANK(INDIRECT(\"'\"&F9281&\"'!\"&G9281)),\"\",INDIRECT(\"'\"&F9281&\"'!\"&G9281))","v":""},{"$f":"IF(ISBLANK(INDIRECT(\"'\"&F9281&\"'!\"&H9281)),\"\",IFERROR(VLOOKUP(TEXT(INDIRECT(\"'\"&F9281&\"'!\"&H9281),\"0\"),Notes!$B$5:$C$100,2,FALSE),\"\"))","v":""},"2e","$AQ$51","$AR$51"]
[35528,{"$f":"Menu!$F$29","v":"X"},{"$f":"Menu!$J$29","v":2020},{"$f":"IF(ISBLANK(INDIRECT(\"'\"&F9282&\"'!\"&G9282)),\"\",INDIRECT(\"'\"&F9282&\"'!\"&G9282))","v":""},{"$f":"IF(ISBLANK(INDIRECT(\"'\"&F9282&\"'!\"&H9282)),\"\",IFERROR(VLOOKUP(TEXT(INDIRECT(\"'\"&F9282&\"'!\"&H9282),\"0\"),Notes!$B$5:$C$100,2,FALSE),\"\"))","v":""},"2e","$AQ$45",{"$f":"IF(LEN(TRIM(MID(G9282,4,10)))-LEN(SUBSTITUTE(TRIM(MID(G9282,4,10)),\"$\",\"\"))=0,\"$\"&CHAR(CODE(MID(G9282,2,1))+1)&\"$\"&TRIM(MID(G9282,4,10)),\"$\"&MID(G9282,2,1)&CHAR(CODE(MID(G9282,3,1))+1)&\"$\"&TRIM(MID(G9282,5,11)))","v":"$AR$45"}]
[35529,{"$f":"Menu!$F$29","v":"X"},{"$f":"Menu!$J$29","v":2020},{"$f":"IF(ISBLANK(INDIRECT(\"'\"&F9283&\"'!\"&G9283)),\"\",INDIRECT(\"'\"&F9283&\"'!\"&G9283))","v":""},{"$f":"IF(ISBLANK(INDIRECT(\"'\"&F9283&\"'!\"&H9283)),\"\",IFERROR(VLOOKUP(TEXT(INDIRECT(\"'\"&F9283&\"'!\"&H9283),\"0\"),Notes!$B$5:$C$100,2,FALSE),\"\"))","v":""},"2e","$AQ$46","$AR$46"]
[35531,{"$f":"Menu!$F$29","v":"X"},{"$f":"Menu!$J$29","v":2020},{"$f":"IF(ISBLANK(INDIRECT(\"'\"&F9284&\"'!\"&G9284)),\"\",INDIRECT(\"'\"&F9284&\"'!\"&G9284))","v":""},{"$f":"IF(ISBLANK(INDIRECT(\"'\"&F9284&\"'!\"&H9284)),\"\",IFERROR(VLOOKUP(TEXT(INDIRECT(\"'\"&F9284&\"'!\"&H9284),\"0\"),Notes!$B$5:$C$100,2,FALSE),\"\"))","v":""},"2e","$AW$23","$AX$23"]
[35534,{"$f":"Menu!$F$29","v":"X"},{"$f":"Menu!$J$29","v":2020},{"$f":"IF(ISBLANK(INDIRECT(\"'\"&F9285&\"'!\"&G9285)),\"\",INDIRECT(\"'\"&F9285&\"'!\"&G9285))","v":""},{"$f":"IF(ISBLANK(INDIRECT(\"'\"&F9285&\"'!\"&H9285)),\"\",IFERROR(VLOOKUP(TEXT(INDIRECT(\"'\"&F9285&\"'!\"&H9285),\"0\"),Notes!$B$5:$C$100,2,FALSE),\"\"))","v":""},"2e","$AW$30","$AX$30"]
[35535,{"$f":"Menu!$F$29","v":"X"},{"$f":"Menu!$J$29","v":2020},{"$f":"IF(ISBLANK(INDIRECT(\"'\"&F9286&\"'!\"&G9286)),\"\",INDIRECT(\"'\"&F9286&\"'!\"&G9286))","v":""},{"$f":"IF(ISBLANK(INDIRECT(\"'\"&F9286&\"'!\"&H9286)),\"\",IFERROR(VLOOKUP(TEXT(INDIRECT(\"'\"&F9286&\"'!\"&H9286),\"0\"),Notes!$B$5:$C$100,2,FALSE),\"\"))","v":""},"2e","$AW$31","$AX$31"]
[35537,{"$f":"Menu!$F$29","v":"X"},{"$f":"Menu!$J$29","v":2020},{"$f":"IF(ISBLANK(INDIRECT(\"'\"&F9287&\"'!\"&G9287)),\"\",INDIRECT(\"'\"&F9287&\"'!\"&G9287))","v":""},{"$f":"IF(ISBLANK(INDIRECT(\"'\"&F9287&\"'!\"&H9287)),\"\",IFERROR(VLOOKUP(TEXT(INDIRECT(\"'\"&F9287&\"'!\"&H9287),\"0\"),Notes!$B$5:$C$100,2,FALSE),\"\"))","v":""},"2e","$AW$37","$AX$37"]
[35538,{"$f":"Menu!$F$29","v":"X"},{"$f":"Menu!$J$29","v":2020},{"$f":"IF(ISBLANK(INDIRECT(\"'\"&F9288&\"'!\"&G9288)),\"\",INDIRECT(\"'\"&F9288&\"'!\"&G9288))","v":""},{"$f":"IF(ISBLANK(INDIRECT(\"'\"&F9288&\"'!\"&H9288)),\"\",IFERROR(VLOOKUP(TEXT(INDIRECT(\"'\"&F9288&\"'!\"&H9288),\"0\"),Notes!$B$5:$C$100,2,FALSE),\"\"))","v":""},"2e","$AW$38","$AX$38"]
[35540,{"$f":"Menu!$F$29","v":"X"},{"$f":"Menu!$J$29","v":2020},{"$f":"IF(ISBLANK(INDIRECT(\"'\"&F9289&\"'!\"&G9289)),\"\",INDIRECT(\"'\"&F9289&\"'!\"&G9289))","v":""},{"$f":"IF(ISBLANK(INDIRECT(\"'\"&F9289&\"'!\"&H9289)),\"\",IFERROR(VLOOKUP(TEXT(INDIRECT(\"'\"&F9289&\"'!\"&H9289),\"0\"),Notes!$B$5:$C$100,2,FALSE),\"\"))","v":""},"2e","$AW$50","$AX$50"]
[35541,{"$f":"Menu!$F$29","v":"X"},{"$f":"Menu!$J$29","v":2020},{"$f":"IF(ISBLANK(INDIRECT(\"'\"&F9290&\"'!\"&G9290)),\"\",INDIRECT(\"'\"&F9290&\"'!\"&G9290))","v":""},{"$f":"IF(ISBLANK(INDIRECT(\"'\"&F9290&\"'!\"&H9290)),\"\",IFERROR(VLOOKUP(TEXT(INDIRECT(\"'\"&F9290&\"'!\"&H9290),\"0\"),Notes!$B$5:$C$100,2,FALSE),\"\"))","v":""},"2e","$AW$51","$AX$51"]
[35543,{"$f":"Menu!$F$29","v":"X"},{"$f":"Menu!$J$29","v":2020},{"$f":"IF(ISBLANK(INDIRECT(\"'\"&F9291&\"'!\"&G9291)),\"\",INDIRECT(\"'\"&F9291&\"'!\"&G9291))","v":""},{"$f":"IF(ISBLANK(INDIRECT(\"'\"&F9291&\"'!\"&H9291)),\"\",IFERROR(VLOOKUP(TEXT(INDIRECT(\"'\"&F9291&\"'!\"&H9291),\"0\"),Notes!$B$5:$C$100,2,FALSE),\"\"))","v":""},"2e","$AW$45","$AX$45"]
[35544,{"$f":"Menu!$F$29","v":"X"},{"$f":"Menu!$J$29","v":2020},{"$f":"IF(ISBLANK(INDIRECT(\"'\"&F9292&\"'!\"&G9292)),\"\",INDIRECT(\"'\"&F9292&\"'!\"&G9292))","v":""},{"$f":"IF(ISBLANK(INDIRECT(\"'\"&F9292&\"'!\"&H9292)),\"\",IFERROR(VLOOKUP(TEXT(INDIRECT(\"'\"&F9292&\"'!\"&H9292),\"0\"),Notes!$B$5:$C$100,2,FALSE),\"\"))","v":""},"2e","$AW$46","$AX$46"]
[35546,{"$f":"Menu!$F$29","v":"X"},{"$f":"Menu!$J$29","v":2020},{"$f":"IF(ISBLANK(INDIRECT(\"'\"&F9293&\"'!\"&G9293)),\"\",INDIRECT(\"'\"&F9293&\"'!\"&G9293))","v":""},{"$f":"IF(ISBLANK(INDIRECT(\"'\"&F9293&\"'!\"&H9293)),\"\",IFERROR(VLOOKUP(TEXT(INDIRECT(\"'\"&F9293&\"'!\"&H9293),\"0\"),Notes!$B$5:$C$100,2,FALSE),\"\"))","v":""},"2e","$BC$23","$BD$23"]
[35549,{"$f":"Menu!$F$29","v":"X"},{"$f":"Menu!$J$29","v":2020},{"$f":"IF(ISBLANK(INDIRECT(\"'\"&F9294&\"'!\"&G9294)),\"\",INDIRECT(\"'\"&F9294&\"'!\"&G9294))","v":""},{"$f":"IF(ISBLANK(INDIRECT(\"'\"&F9294&\"'!\"&H9294)),\"\",IFERROR(VLOOKUP(TEXT(INDIRECT(\"'\"&F9294&\"'!\"&H9294),\"0\"),Notes!$B$5:$C$100,2,FALSE),\"\"))","v":""},"2e","$BC$30","$BD$30"]
[35550,{"$f":"Menu!$F$29","v":"X"},{"$f":"Menu!$J$29","v":2020},{"$f":"IF(ISBLANK(INDIRECT(\"'\"&F9295&\"'!\"&G9295)),\"\",INDIRECT(\"'\"&F9295&\"'!\"&G9295))","v":""},{"$f":"IF(ISBLANK(INDIRECT(\"'\"&F9295&\"'!\"&H9295)),\"\",IFERROR(VLOOKUP(TEXT(INDIRECT(\"'\"&F9295&\"'!\"&H9295),\"0\"),Notes!$B$5:$C$100,2,FALSE),\"\"))","v":""},"2e","$BC$31","$BD$31"]
[35552,{"$f":"Menu!$F$29","v":"X"},{"$f":"Menu!$J$29","v":2020},{"$f":"IF(ISBLANK(INDIRECT(\"'\"&F9296&\"'!\"&G9296)),\"\",INDIRECT(\"'\"&F9296&\"'!\"&G9296))","v":""},{"$f":"IF(ISBLANK(INDIRECT(\"'\"&F9296&\"'!\"&H9296)),\"\",IFERROR(VLOOKUP(TEXT(INDIRECT(\"'\"&F9296&\"'!\"&H9296),\"0\"),Notes!$B$5:$C$100,2,FALSE),\"\"))","v":""},"2e","$BC$37","$BD$37"]
[35553,{"$f":"Menu!$F$29","v":"X"},{"$f":"Menu!$J$29","v":2020},{"$f":"IF(ISBLANK(INDIRECT(\"'\"&F9297&\"'!\"&G9297)),\"\",INDIRECT(\"'\"&F9297&\"'!\"&G9297))","v":""},{"$f":"IF(ISBLANK(INDIRECT(\"'\"&F9297&\"'!\"&H9297)),\"\",IFERROR(VLOOKUP(TEXT(INDIRECT(\"'\"&F9297&\"'!\"&H9297),\"0\"),Notes!$B$5:$C$100,2,FALSE),\"\"))","v":""},"2e","$BC$38","$BD$38"]
[35555,{"$f":"Menu!$F$29","v":"X"},{"$f":"Menu!$J$29","v":2020},{"$f":"IF(ISBLANK(INDIRECT(\"'\"&F9298&\"'!\"&G9298)),\"\",INDIRECT(\"'\"&F9298&\"'!\"&G9298))","v":""},{"$f":"IF(ISBLANK(INDIRECT(\"'\"&F9298&\"'!\"&H9298)),\"\",IFERROR(VLOOKUP(TEXT(INDIRECT(\"'\"&F9298&\"'!\"&H9298),\"0\"),Notes!$B$5:$C$100,2,FALSE),\"\"))","v":""},"2e","$BC$50","$BD$50"]
[35556,{"$f":"Menu!$F$29","v":"X"},{"$f":"Menu!$J$29","v":2020},{"$f":"IF(ISBLANK(INDIRECT(\"'\"&F9299&\"'!\"&G9299)),\"\",INDIRECT(\"'\"&F9299&\"'!\"&G9299))","v":""},{"$f":"IF(ISBLANK(INDIRECT(\"'\"&F9299&\"'!\"&H9299)),\"\",IFERROR(VLOOKUP(TEXT(INDIRECT(\"'\"&F9299&\"'!\"&H9299),\"0\"),Notes!$B$5:$C$100,2,FALSE),\"\"))","v":""},"2e","$BC$51","$BD$51"]
[35558,{"$f":"Menu!$F$29","v":"X"},{"$f":"Menu!$J$29","v":2020},{"$f":"IF(ISBLANK(INDIRECT(\"'\"&F9300&\"'!\"&G9300)),\"\",INDIRECT(\"'\"&F9300&\"'!\"&G9300))","v":""},{"$f":"IF(ISBLANK(INDIRECT(\"'\"&F9300&\"'!\"&H9300)),\"\",IFERROR(VLOOKUP(TEXT(INDIRECT(\"'\"&F9300&\"'!\"&H9300),\"0\"),Notes!$B$5:$C$100,2,FALSE),\"\"))","v":""},"2e","$BC$45","$BD$45"]
[35559,{"$f":"Menu!$F$29","v":"X"},{"$f":"Menu!$J$29","v":2020},{"$f":"IF(ISBLANK(INDIRECT(\"'\"&F9301&\"'!\"&G9301)),\"\",INDIRECT(\"'\"&F9301&\"'!\"&G9301))","v":""},{"$f":"IF(ISBLANK(INDIRECT(\"'\"&F9301&\"'!\"&H9301)),\"\",IFERROR(VLOOKUP(TEXT(INDIRECT(\"'\"&F9301&\"'!\"&H9301),\"0\"),Notes!$B$5:$C$100,2,FALSE),\"\"))","v":""},"2e","$BC$46","$BD$46"]
[35561,{"$f":"Menu!$F$29","v":"X"},{"$f":"Menu!$J$29","v":2020},{"$f":"IF(ISBLANK(INDIRECT(\"'\"&F9302&\"'!\"&G9302)),\"\",INDIRECT(\"'\"&F9302&\"'!\"&G9302))","v":""},{"$f":"IF(ISBLANK(INDIRECT(\"'\"&F9302&\"'!\"&H9302)),\"\",IFERROR(VLOOKUP(TEXT(INDIRECT(\"'\"&F9302&\"'!\"&H9302),\"0\"),Notes!$B$5:$C$100,2,FALSE),\"\"))","v":""},"2a","$O$22","$P$22"]
[35564,{"$f":"Menu!$F$29","v":"X"},{"$f":"Menu!$J$29","v":2020},{"$f":"IF(ISBLANK(INDIRECT(\"'\"&F9303&\"'!\"&G9303)),\"\",INDIRECT(\"'\"&F9303&\"'!\"&G9303))","v":""},{"$f":"IF(ISBLANK(INDIRECT(\"'\"&F9303&\"'!\"&H9303)),\"\",IFERROR(VLOOKUP(TEXT(INDIRECT(\"'\"&F9303&\"'!\"&H9303),\"0\"),Notes!$B$5:$C$100,2,FALSE),\"\"))","v":""},"2a","$O$29","$P$29"]
[35565,{"$f":"Menu!$F$29","v":"X"},{"$f":"Menu!$J$29","v":2020},{"$f":"IF(ISBLANK(INDIRECT(\"'\"&F9304&\"'!\"&G9304)),\"\",INDIRECT(\"'\"&F9304&\"'!\"&G9304))","v":""},{"$f":"IF(ISBLANK(INDIRECT(\"'\"&F9304&\"'!\"&H9304)),\"\",IFERROR(VLOOKUP(TEXT(INDIRECT(\"'\"&F9304&\"'!\"&H9304),\"0\"),Notes!$B$5:$C$100,2,FALSE),\"\"))","v":""},"2a","$O$30","$P$30"]
[35567,{"$f":"Menu!$F$29","v":"X"},{"$f":"Menu!$J$29","v":2020},{"$f":"IF(ISBLANK(INDIRECT(\"'\"&F9305&\"'!\"&G9305)),\"\",INDIRECT(\"'\"&F9305&\"'!\"&G9305))","v":""},{"$f":"IF(ISBLANK(INDIRECT(\"'\"&F9305&\"'!\"&H9305)),\"\",IFERROR(VLOOKUP(TEXT(INDIRECT(\"'\"&F9305&\"'!\"&H9305),\"0\"),Notes!$B$5:$C$100,2,FALSE),\"\"))","v":""},"2a","$O$36","$P$36"]
[35568,{"$f":"Menu!$F$29","v":"X"},{"$f":"Menu!$J$29","v":2020},{"$f":"IF(ISBLANK(INDIRECT(\"'\"&F9306&\"'!\"&G9306)),\"\",INDIRECT(\"'\"&F9306&\"'!\"&G9306))","v":""},{"$f":"IF(ISBLANK(INDIRECT(\"'\"&F9306&\"'!\"&H9306)),\"\",IFERROR(VLOOKUP(TEXT(INDIRECT(\"'\"&F9306&\"'!\"&H9306),\"0\"),Notes!$B$5:$C$100,2,FALSE),\"\"))","v":""},"2a","$O$37","$P$37"]
[35570,{"$f":"Menu!$F$29","v":"X"},{"$f":"Menu!$J$29","v":2020},{"$f":"IF(ISBLANK(INDIRECT(\"'\"&F9307&\"'!\"&G9307)),\"\",INDIRECT(\"'\"&F9307&\"'!\"&G9307))","v":""},{"$f":"IF(ISBLANK(INDIRECT(\"'\"&F9307&\"'!\"&H9307)),\"\",IFERROR(VLOOKUP(TEXT(INDIRECT(\"'\"&F9307&\"'!\"&H9307),\"0\"),Notes!$B$5:$C$100,2,FALSE),\"\"))","v":""},"2a","$O$49","$P$49"]
[35571,{"$f":"Menu!$F$29","v":"X"},{"$f":"Menu!$J$29","v":2020},{"$f":"IF(ISBLANK(INDIRECT(\"'\"&F9308&\"'!\"&G9308)),\"\",INDIRECT(\"'\"&F9308&\"'!\"&G9308))","v":""},{"$f":"IF(ISBLANK(INDIRECT(\"'\"&F9308&\"'!\"&H9308)),\"\",IFERROR(VLOOKUP(TEXT(INDIRECT(\"'\"&F9308&\"'!\"&H9308),\"0\"),Notes!$B$5:$C$100,2,FALSE),\"\"))","v":""},"2a","$O$50","$P$50"]
[35573,{"$f":"Menu!$F$29","v":"X"},{"$f":"Menu!$J$29","v":2020},{"$f":"IF(ISBLANK(INDIRECT(\"'\"&F9309&\"'!\"&G9309)),\"\",INDIRECT(\"'\"&F9309&\"'!\"&G9309))","v":""},{"$f":"IF(ISBLANK(INDIRECT(\"'\"&F9309&\"'!\"&H9309)),\"\",IFERROR(VLOOKUP(TEXT(INDIRECT(\"'\"&F9309&\"'!\"&H9309),\"0\"),Notes!$B$5:$C$100,2,FALSE),\"\"))","v":""},"2a","$O$44","$P$44"]
[35574,{"$f":"Menu!$F$29","v":"X"},{"$f":"Menu!$J$29","v":2020},{"$f":"IF(ISBLANK(INDIRECT(\"'\"&F9310&\"'!\"&G9310)),\"\",INDIRECT(\"'\"&F9310&\"'!\"&G9310))","v":""},{"$f":"IF(ISBLANK(INDIRECT(\"'\"&F9310&\"'!\"&H9310)),\"\",IFERROR(VLOOKUP(TEXT(INDIRECT(\"'\"&F9310&\"'!\"&H9310),\"0\"),Notes!$B$5:$C$100,2,FALSE),\"\"))","v":""},"2a","$O$45","$P$45"]
[35576,{"$f":"Menu!$F$29","v":"X"},{"$f":"Menu!$J$29","v":2020},{"$f":"IF(ISBLANK(INDIRECT(\"'\"&F9311&\"'!\"&G9311)),\"\",INDIRECT(\"'\"&F9311&\"'!\"&G9311))","v":""},{"$f":"IF(ISBLANK(INDIRECT(\"'\"&F9311&\"'!\"&H9311)),\"\",IFERROR(VLOOKUP(TEXT(INDIRECT(\"'\"&F9311&\"'!\"&H9311),\"0\"),Notes!$B$5:$C$100,2,FALSE),\"\"))","v":""},"2a","$U$22","$V$22"]
[35579,{"$f":"Menu!$F$29","v":"X"},{"$f":"Menu!$J$29","v":2020},{"$f":"IF(ISBLANK(INDIRECT(\"'\"&F9312&\"'!\"&G9312)),\"\",INDIRECT(\"'\"&F9312&\"'!\"&G9312))","v":""},{"$f":"IF(ISBLANK(INDIRECT(\"'\"&F9312&\"'!\"&H9312)),\"\",IFERROR(VLOOKUP(TEXT(INDIRECT(\"'\"&F9312&\"'!\"&H9312),\"0\"),Notes!$B$5:$C$100,2,FALSE),\"\"))","v":""},"2a","$U$29","$V$29"]
[35580,{"$f":"Menu!$F$29","v":"X"},{"$f":"Menu!$J$29","v":2020},{"$f":"IF(ISBLANK(INDIRECT(\"'\"&F9313&\"'!\"&G9313)),\"\",INDIRECT(\"'\"&F9313&\"'!\"&G9313))","v":""},{"$f":"IF(ISBLANK(INDIRECT(\"'\"&F9313&\"'!\"&H9313)),\"\",IFERROR(VLOOKUP(TEXT(INDIRECT(\"'\"&F9313&\"'!\"&H9313),\"0\"),Notes!$B$5:$C$100,2,FALSE),\"\"))","v":""},"2a","$U$30","$V$30"]
[35582,{"$f":"Menu!$F$29","v":"X"},{"$f":"Menu!$J$29","v":2020},{"$f":"IF(ISBLANK(INDIRECT(\"'\"&F9314&\"'!\"&G9314)),\"\",INDIRECT(\"'\"&F9314&\"'!\"&G9314))","v":""},{"$f":"IF(ISBLANK(INDIRECT(\"'\"&F9314&\"'!\"&H9314)),\"\",IFERROR(VLOOKUP(TEXT(INDIRECT(\"'\"&F9314&\"'!\"&H9314),\"0\"),Notes!$B$5:$C$100,2,FALSE),\"\"))","v":""},"2a","$U$36","$V$36"]
[35583,{"$f":"Menu!$F$29","v":"X"},{"$f":"Menu!$J$29","v":2020},{"$f":"IF(ISBLANK(INDIRECT(\"'\"&F9315&\"'!\"&G9315)),\"\",INDIRECT(\"'\"&F9315&\"'!\"&G9315))","v":""},{"$f":"IF(ISBLANK(INDIRECT(\"'\"&F9315&\"'!\"&H9315)),\"\",IFERROR(VLOOKUP(TEXT(INDIRECT(\"'\"&F9315&\"'!\"&H9315),\"0\"),Notes!$B$5:$C$100,2,FALSE),\"\"))","v":""},"2a","$U$37","$V$37"]
[35585,{"$f":"Menu!$F$29","v":"X"},{"$f":"Menu!$J$29","v":2020},{"$f":"IF(ISBLANK(INDIRECT(\"'\"&F9316&\"'!\"&G9316)),\"\",INDIRECT(\"'\"&F9316&\"'!\"&G9316))","v":""},{"$f":"IF(ISBLANK(INDIRECT(\"'\"&F9316&\"'!\"&H9316)),\"\",IFERROR(VLOOKUP(TEXT(INDIRECT(\"'\"&F9316&\"'!\"&H9316),\"0\"),Notes!$B$5:$C$100,2,FALSE),\"\"))","v":""},"2a","$U$49","$V$49"]
[35586,{"$f":"Menu!$F$29","v":"X"},{"$f":"Menu!$J$29","v":2020},{"$f":"IF(ISBLANK(INDIRECT(\"'\"&F9317&\"'!\"&G9317)),\"\",INDIRECT(\"'\"&F9317&\"'!\"&G9317))","v":""},{"$f":"IF(ISBLANK(INDIRECT(\"'\"&F9317&\"'!\"&H9317)),\"\",IFERROR(VLOOKUP(TEXT(INDIRECT(\"'\"&F9317&\"'!\"&H9317),\"0\"),Notes!$B$5:$C$100,2,FALSE),\"\"))","v":""},"2a","$U$50","$V$50"]
[35588,{"$f":"Menu!$F$29","v":"X"},{"$f":"Menu!$J$29","v":2020},{"$f":"IF(ISBLANK(INDIRECT(\"'\"&F9318&\"'!\"&G9318)),\"\",INDIRECT(\"'\"&F9318&\"'!\"&G9318))","v":""},{"$f":"IF(ISBLANK(INDIRECT(\"'\"&F9318&\"'!\"&H9318)),\"\",IFERROR(VLOOKUP(TEXT(INDIRECT(\"'\"&F9318&\"'!\"&H9318),\"0\"),Notes!$B$5:$C$100,2,FALSE),\"\"))","v":""},"2a","$U$44","$V$44"]
[35589,{"$f":"Menu!$F$29","v":"X"},{"$f":"Menu!$J$29","v":2020},{"$f":"IF(ISBLANK(INDIRECT(\"'\"&F9319&\"'!\"&G9319)),\"\",INDIRECT(\"'\"&F9319&\"'!\"&G9319))","v":""},{"$f":"IF(ISBLANK(INDIRECT(\"'\"&F9319&\"'!\"&H9319)),\"\",IFERROR(VLOOKUP(TEXT(INDIRECT(\"'\"&F9319&\"'!\"&H9319),\"0\"),Notes!$B$5:$C$100,2,FALSE),\"\"))","v":""},"2a","$U$45","$V$45"]
[35591,{"$f":"Menu!$F$29","v":"X"},{"$f":"Menu!$J$29","v":2020},{"$f":"IF(ISBLANK(INDIRECT(\"'\"&F9320&\"'!\"&G9320)),\"\",INDIRECT(\"'\"&F9320&\"'!\"&G9320))","v":""},{"$f":"IF(ISBLANK(INDIRECT(\"'\"&F9320&\"'!\"&H9320)),\"\",IFERROR(VLOOKUP(TEXT(INDIRECT(\"'\"&F9320&\"'!\"&H9320),\"0\"),Notes!$B$5:$C$100,2,FALSE),\"\"))","v":""},"2c","$I$22","$J$22"]
[35594,{"$f":"Menu!$F$29","v":"X"},{"$f":"Menu!$J$29","v":2020},{"$f":"IF(ISBLANK(INDIRECT(\"'\"&F9321&\"'!\"&G9321)),\"\",INDIRECT(\"'\"&F9321&\"'!\"&G9321))","v":""},{"$f":"IF(ISBLANK(INDIRECT(\"'\"&F9321&\"'!\"&H9321)),\"\",IFERROR(VLOOKUP(TEXT(INDIRECT(\"'\"&F9321&\"'!\"&H9321),\"0\"),Notes!$B$5:$C$100,2,FALSE),\"\"))","v":""},"2c","$I$29","$J$29"]
[35595,{"$f":"Menu!$F$29","v":"X"},{"$f":"Menu!$J$29","v":2020},{"$f":"IF(ISBLANK(INDIRECT(\"'\"&F9322&\"'!\"&G9322)),\"\",INDIRECT(\"'\"&F9322&\"'!\"&G9322))","v":""},{"$f":"IF(ISBLANK(INDIRECT(\"'\"&F9322&\"'!\"&H9322)),\"\",IFERROR(VLOOKUP(TEXT(INDIRECT(\"'\"&F9322&\"'!\"&H9322),\"0\"),Notes!$B$5:$C$100,2,FALSE),\"\"))","v":""},"2c","$I$30","$J$30"]
[35597,{"$f":"Menu!$F$29","v":"X"},{"$f":"Menu!$J$29","v":2020},{"$f":"IF(ISBLANK(INDIRECT(\"'\"&F9323&\"'!\"&G9323)),\"\",INDIRECT(\"'\"&F9323&\"'!\"&G9323))","v":""},{"$f":"IF(ISBLANK(INDIRECT(\"'\"&F9323&\"'!\"&H9323)),\"\",IFERROR(VLOOKUP(TEXT(INDIRECT(\"'\"&F9323&\"'!\"&H9323),\"0\"),Notes!$B$5:$C$100,2,FALSE),\"\"))","v":""},"2c","$I$36","$J$36"]
[35598,{"$f":"Menu!$F$29","v":"X"},{"$f":"Menu!$J$29","v":2020},{"$f":"IF(ISBLANK(INDIRECT(\"'\"&F9324&\"'!\"&G9324)),\"\",INDIRECT(\"'\"&F9324&\"'!\"&G9324))","v":""},{"$f":"IF(ISBLANK(INDIRECT(\"'\"&F9324&\"'!\"&H9324)),\"\",IFERROR(VLOOKUP(TEXT(INDIRECT(\"'\"&F9324&\"'!\"&H9324),\"0\"),Notes!$B$5:$C$100,2,FALSE),\"\"))","v":""},"2c","$I$37","$J$37"]
[35600,{"$f":"Menu!$F$29","v":"X"},{"$f":"Menu!$J$29","v":2020},{"$f":"IF(ISBLANK(INDIRECT(\"'\"&F9325&\"'!\"&G9325)),\"\",INDIRECT(\"'\"&F9325&\"'!\"&G9325))","v":""},{"$f":"IF(ISBLANK(INDIRECT(\"'\"&F9325&\"'!\"&H9325)),\"\",IFERROR(VLOOKUP(TEXT(INDIRECT(\"'\"&F9325&\"'!\"&H9325),\"0\"),Notes!$B$5:$C$100,2,FALSE),\"\"))","v":""},"2c","$I$49","$J$49"]
[35601,{"$f":"Menu!$F$29","v":"X"},{"$f":"Menu!$J$29","v":2020},{"$f":"IF(ISBLANK(INDIRECT(\"'\"&F9326&\"'!\"&G9326)),\"\",INDIRECT(\"'\"&F9326&\"'!\"&G9326))","v":""},{"$f":"IF(ISBLANK(INDIRECT(\"'\"&F9326&\"'!\"&H9326)),\"\",IFERROR(VLOOKUP(TEXT(INDIRECT(\"'\"&F9326&\"'!\"&H9326),\"0\"),Notes!$B$5:$C$100,2,FALSE),\"\"))","v":""},"2c","$I$50","$J$50"]
[35603,{"$f":"Menu!$F$29","v":"X"},{"$f":"Menu!$J$29","v":2020},{"$f":"IF(ISBLANK(INDIRECT(\"'\"&F9327&\"'!\"&G9327)),\"\",INDIRECT(\"'\"&F9327&\"'!\"&G9327))","v":""},{"$f":"IF(ISBLANK(INDIRECT(\"'\"&F9327&\"'!\"&H9327)),\"\",IFERROR(VLOOKUP(TEXT(INDIRECT(\"'\"&F9327&\"'!\"&H9327),\"0\"),Notes!$B$5:$C$100,2,FALSE),\"\"))","v":""},"2c","$I$44","$J$44"]
[35604,{"$f":"Menu!$F$29","v":"X"},{"$f":"Menu!$J$29","v":2020},{"$f":"IF(ISBLANK(INDIRECT(\"'\"&F9328&\"'!\"&G9328)),\"\",INDIRECT(\"'\"&F9328&\"'!\"&G9328))","v":""},{"$f":"IF(ISBLANK(INDIRECT(\"'\"&F9328&\"'!\"&H9328)),\"\",IFERROR(VLOOKUP(TEXT(INDIRECT(\"'\"&F9328&\"'!\"&H9328),\"0\"),Notes!$B$5:$C$100,2,FALSE),\"\"))","v":""},"2c","$I$45","$J$45"]
[35606,{"$f":"Menu!$F$29","v":"X"},{"$f":"Menu!$J$29","v":2020},{"$f":"IF(ISBLANK(INDIRECT(\"'\"&F9329&\"'!\"&G9329)),\"\",INDIRECT(\"'\"&F9329&\"'!\"&G9329))","v":""},{"$f":"IF(ISBLANK(INDIRECT(\"'\"&F9329&\"'!\"&H9329)),\"\",IFERROR(VLOOKUP(TEXT(INDIRECT(\"'\"&F9329&\"'!\"&H9329),\"0\"),Notes!$B$5:$C$100,2,FALSE),\"\"))","v":""},"2c","$O$22","$P$22"]
[35609,{"$f":"Menu!$F$29","v":"X"},{"$f":"Menu!$J$29","v":2020},{"$f":"IF(ISBLANK(INDIRECT(\"'\"&F9330&\"'!\"&G9330)),\"\",INDIRECT(\"'\"&F9330&\"'!\"&G9330))","v":""},{"$f":"IF(ISBLANK(INDIRECT(\"'\"&F9330&\"'!\"&H9330)),\"\",IFERROR(VLOOKUP(TEXT(INDIRECT(\"'\"&F9330&\"'!\"&H9330),\"0\"),Notes!$B$5:$C$100,2,FALSE),\"\"))","v":""},"2c","$O$29","$P$29"]
[35610,{"$f":"Menu!$F$29","v":"X"},{"$f":"Menu!$J$29","v":2020},{"$f":"IF(ISBLANK(INDIRECT(\"'\"&F9331&\"'!\"&G9331)),\"\",INDIRECT(\"'\"&F9331&\"'!\"&G9331))","v":""},{"$f":"IF(ISBLANK(INDIRECT(\"'\"&F9331&\"'!\"&H9331)),\"\",IFERROR(VLOOKUP(TEXT(INDIRECT(\"'\"&F9331&\"'!\"&H9331),\"0\"),Notes!$B$5:$C$100,2,FALSE),\"\"))","v":""},"2c","$O$30","$P$30"]
[35612,{"$f":"Menu!$F$29","v":"X"},{"$f":"Menu!$J$29","v":2020},{"$f":"IF(ISBLANK(INDIRECT(\"'\"&F9332&\"'!\"&G9332)),\"\",INDIRECT(\"'\"&F9332&\"'!\"&G9332))","v":""},{"$f":"IF(ISBLANK(INDIRECT(\"'\"&F9332&\"'!\"&H9332)),\"\",IFERROR(VLOOKUP(TEXT(INDIRECT(\"'\"&F9332&\"'!\"&H9332),\"0\"),Notes!$B$5:$C$100,2,FALSE),\"\"))","v":""},"2c","$O$36","$P$36"]
[35613,{"$f":"Menu!$F$29","v":"X"},{"$f":"Menu!$J$29","v":2020},{"$f":"IF(ISBLANK(INDIRECT(\"'\"&F9333&\"'!\"&G9333)),\"\",INDIRECT(\"'\"&F9333&\"'!\"&G9333))","v":""},{"$f":"IF(ISBLANK(INDIRECT(\"'\"&F9333&\"'!\"&H9333)),\"\",IFERROR(VLOOKUP(TEXT(INDIRECT(\"'\"&F9333&\"'!\"&H9333),\"0\"),Notes!$B$5:$C$100,2,FALSE),\"\"))","v":""},"2c","$O$37","$P$37"]
[35615,{"$f":"Menu!$F$29","v":"X"},{"$f":"Menu!$J$29","v":2020},{"$f":"IF(ISBLANK(INDIRECT(\"'\"&F9334&\"'!\"&G9334)),\"\",INDIRECT(\"'\"&F9334&\"'!\"&G9334))","v":""},{"$f":"IF(ISBLANK(INDIRECT(\"'\"&F9334&\"'!\"&H9334)),\"\",IFERROR(VLOOKUP(TEXT(INDIRECT(\"'\"&F9334&\"'!\"&H9334),\"0\"),Notes!$B$5:$C$100,2,FALSE),\"\"))","v":""},"2c","$O$49","$P$49"]
[35616,{"$f":"Menu!$F$29","v":"X"},{"$f":"Menu!$J$29","v":2020},{"$f":"IF(ISBLANK(INDIRECT(\"'\"&F9335&\"'!\"&G9335)),\"\",INDIRECT(\"'\"&F9335&\"'!\"&G9335))","v":""},{"$f":"IF(ISBLANK(INDIRECT(\"'\"&F9335&\"'!\"&H9335)),\"\",IFERROR(VLOOKUP(TEXT(INDIRECT(\"'\"&F9335&\"'!\"&H9335),\"0\"),Notes!$B$5:$C$100,2,FALSE),\"\"))","v":""},"2c","$O$50","$P$50"]
[35618,{"$f":"Menu!$F$29","v":"X"},{"$f":"Menu!$J$29","v":2020},{"$f":"IF(ISBLANK(INDIRECT(\"'\"&F9336&\"'!\"&G9336)),\"\",INDIRECT(\"'\"&F9336&\"'!\"&G9336))","v":""},{"$f":"IF(ISBLANK(INDIRECT(\"'\"&F9336&\"'!\"&H9336)),\"\",IFERROR(VLOOKUP(TEXT(INDIRECT(\"'\"&F9336&\"'!\"&H9336),\"0\"),Notes!$B$5:$C$100,2,FALSE),\"\"))","v":""},"2c","$O$44","$P$44"]
[35619,{"$f":"Menu!$F$29","v":"X"},{"$f":"Menu!$J$29","v":2020},{"$f":"IF(ISBLANK(INDIRECT(\"'\"&F9337&\"'!\"&G9337)),\"\",INDIRECT(\"'\"&F9337&\"'!\"&G9337))","v":""},{"$f":"IF(ISBLANK(INDIRECT(\"'\"&F9337&\"'!\"&H9337)),\"\",IFERROR(VLOOKUP(TEXT(INDIRECT(\"'\"&F9337&\"'!\"&H9337),\"0\"),Notes!$B$5:$C$100,2,FALSE),\"\"))","v":""},"2c","$O$45","$P$45"]
[35636,{"$f":"Menu!$F$29","v":"X"},{"$f":"Menu!$J$29","v":2020},{"$f":"IF(ISBLANK(INDIRECT(\"'\"&F9338&\"'!\"&G9338)),\"\",INDIRECT(\"'\"&F9338&\"'!\"&G9338))","v":""},{"$f":"IF(ISBLANK(INDIRECT(\"'\"&F9338&\"'!\"&H9338)),\"\",IFERROR(VLOOKUP(TEXT(INDIRECT(\"'\"&F9338&\"'!\"&H9338),\"0\"),Notes!$B$5:$C$100,2,FALSE),\"\"))","v":""},"2c","$U$22","$V$22"]
[35639,{"$f":"Menu!$F$29","v":"X"},{"$f":"Menu!$J$29","v":2020},{"$f":"IF(ISBLANK(INDIRECT(\"'\"&F9339&\"'!\"&G9339)),\"\",INDIRECT(\"'\"&F9339&\"'!\"&G9339))","v":""},{"$f":"IF(ISBLANK(INDIRECT(\"'\"&F9339&\"'!\"&H9339)),\"\",IFERROR(VLOOKUP(TEXT(INDIRECT(\"'\"&F9339&\"'!\"&H9339),\"0\"),Notes!$B$5:$C$100,2,FALSE),\"\"))","v":""},"2c","$U$29","$V$29"]
[35640,{"$f":"Menu!$F$29","v":"X"},{"$f":"Menu!$J$29","v":2020},{"$f":"IF(ISBLANK(INDIRECT(\"'\"&F9340&\"'!\"&G9340)),\"\",INDIRECT(\"'\"&F9340&\"'!\"&G9340))","v":""},{"$f":"IF(ISBLANK(INDIRECT(\"'\"&F9340&\"'!\"&H9340)),\"\",IFERROR(VLOOKUP(TEXT(INDIRECT(\"'\"&F9340&\"'!\"&H9340),\"0\"),Notes!$B$5:$C$100,2,FALSE),\"\"))","v":""},"2c","$U$30","$V$30"]
[35642,{"$f":"Menu!$F$29","v":"X"},{"$f":"Menu!$J$29","v":2020},{"$f":"IF(ISBLANK(INDIRECT(\"'\"&F9341&\"'!\"&G9341)),\"\",INDIRECT(\"'\"&F9341&\"'!\"&G9341))","v":""},{"$f":"IF(ISBLANK(INDIRECT(\"'\"&F9341&\"'!\"&H9341)),\"\",IFERROR(VLOOKUP(TEXT(INDIRECT(\"'\"&F9341&\"'!\"&H9341),\"0\"),Notes!$B$5:$C$100,2,FALSE),\"\"))","v":""},"2c","$U$36","$V$36"]
[35643,{"$f":"Menu!$F$29","v":"X"},{"$f":"Menu!$J$29","v":2020},{"$f":"IF(ISBLANK(INDIRECT(\"'\"&F9342&\"'!\"&G9342)),\"\",INDIRECT(\"'\"&F9342&\"'!\"&G9342))","v":""},{"$f":"IF(ISBLANK(INDIRECT(\"'\"&F9342&\"'!\"&H9342)),\"\",IFERROR(VLOOKUP(TEXT(INDIRECT(\"'\"&F9342&\"'!\"&H9342),\"0\"),Notes!$B$5:$C$100,2,FALSE),\"\"))","v":""},"2c","$U$37","$V$37"]
[35645,{"$f":"Menu!$F$29","v":"X"},{"$f":"Menu!$J$29","v":2020},{"$f":"IF(ISBLANK(INDIRECT(\"'\"&F9343&\"'!\"&G9343)),\"\",INDIRECT(\"'\"&F9343&\"'!\"&G9343))","v":""},{"$f":"IF(ISBLANK(INDIRECT(\"'\"&F9343&\"'!\"&H9343)),\"\",IFERROR(VLOOKUP(TEXT(INDIRECT(\"'\"&F9343&\"'!\"&H9343),\"0\"),Notes!$B$5:$C$100,2,FALSE),\"\"))","v":""},"2c","$U$49","$V$49"]
[35646,{"$f":"Menu!$F$29","v":"X"},{"$f":"Menu!$J$29","v":2020},{"$f":"IF(ISBLANK(INDIRECT(\"'\"&F9344&\"'!\"&G9344)),\"\",INDIRECT(\"'\"&F9344&\"'!\"&G9344))","v":""},{"$f":"IF(ISBLANK(INDIRECT(\"'\"&F9344&\"'!\"&H9344)),\"\",IFERROR(VLOOKUP(TEXT(INDIRECT(\"'\"&F9344&\"'!\"&H9344),\"0\"),Notes!$B$5:$C$100,2,FALSE),\"\"))","v":""},"2c","$U$50","$V$50"]
[35648,{"$f":"Menu!$F$29","v":"X"},{"$f":"Menu!$J$29","v":2020},{"$f":"IF(ISBLANK(INDIRECT(\"'\"&F9345&\"'!\"&G9345)),\"\",INDIRECT(\"'\"&F9345&\"'!\"&G9345))","v":""},{"$f":"IF(ISBLANK(INDIRECT(\"'\"&F9345&\"'!\"&H9345)),\"\",IFERROR(VLOOKUP(TEXT(INDIRECT(\"'\"&F9345&\"'!\"&H9345),\"0\"),Notes!$B$5:$C$100,2,FALSE),\"\"))","v":""},"2c","$U$44","$V$44"]
[35649,{"$f":"Menu!$F$29","v":"X"},{"$f":"Menu!$J$29","v":2020},{"$f":"IF(ISBLANK(INDIRECT(\"'\"&F9346&\"'!\"&G9346)),\"\",INDIRECT(\"'\"&F9346&\"'!\"&G9346))","v":""},{"$f":"IF(ISBLANK(INDIRECT(\"'\"&F9346&\"'!\"&H9346)),\"\",IFERROR(VLOOKUP(TEXT(INDIRECT(\"'\"&F9346&\"'!\"&H9346),\"0\"),Notes!$B$5:$C$100,2,FALSE),\"\"))","v":""},"2c","$U$45",{"$f":"IF(LEN(TRIM(MID(G9346,4,10)))-LEN(SUBSTITUTE(TRIM(MID(G9346,4,10)),\"$\",\"\"))=0,\"$\"&CHAR(CODE(MID(G9346,2,1))+1)&\"$\"&TRIM(MID(G9346,4,10)),\"$\"&MID(G9346,2,1)&CHAR(CODE(MID(G9346,3,1))+1)&\"$\"&TRIM(MID(G9346,5,11)))","v":"$V$45"}]
[35651,{"$f":"Menu!$F$29","v":"X"},{"$f":"Menu!$J$29","v":2020},{"$f":"IF(ISBLANK(INDIRECT(\"'\"&F9347&\"'!\"&G9347)),\"\",INDIRECT(\"'\"&F9347&\"'!\"&G9347))","v":""},{"$f":"IF(ISBLANK(INDIRECT(\"'\"&F9347&\"'!\"&H9347)),\"\",IFERROR(VLOOKUP(TEXT(INDIRECT(\"'\"&F9347&\"'!\"&H9347),\"0\"),Notes!$B$5:$C$100,2,FALSE),\"\"))","v":""},"2c","$AA$22","$AB$22"]
[35654,{"$f":"Menu!$F$29","v":"X"},{"$f":"Menu!$J$29","v":2020},{"$f":"IF(ISBLANK(INDIRECT(\"'\"&F9348&\"'!\"&G9348)),\"\",INDIRECT(\"'\"&F9348&\"'!\"&G9348))","v":""},{"$f":"IF(ISBLANK(INDIRECT(\"'\"&F9348&\"'!\"&H9348)),\"\",IFERROR(VLOOKUP(TEXT(INDIRECT(\"'\"&F9348&\"'!\"&H9348),\"0\"),Notes!$B$5:$C$100,2,FALSE),\"\"))","v":""},"2c","$AA$29","$AB$29"]
[35655,{"$f":"Menu!$F$29","v":"X"},{"$f":"Menu!$J$29","v":2020},{"$f":"IF(ISBLANK(INDIRECT(\"'\"&F9349&\"'!\"&G9349)),\"\",INDIRECT(\"'\"&F9349&\"'!\"&G9349))","v":""},{"$f":"IF(ISBLANK(INDIRECT(\"'\"&F9349&\"'!\"&H9349)),\"\",IFERROR(VLOOKUP(TEXT(INDIRECT(\"'\"&F9349&\"'!\"&H9349),\"0\"),Notes!$B$5:$C$100,2,FALSE),\"\"))","v":""},"2c","$AA$30","$AB$30"]
[35657,{"$f":"Menu!$F$29","v":"X"},{"$f":"Menu!$J$29","v":2020},{"$f":"IF(ISBLANK(INDIRECT(\"'\"&F9350&\"'!\"&G9350)),\"\",INDIRECT(\"'\"&F9350&\"'!\"&G9350))","v":""},{"$f":"IF(ISBLANK(INDIRECT(\"'\"&F9350&\"'!\"&H9350)),\"\",IFERROR(VLOOKUP(TEXT(INDIRECT(\"'\"&F9350&\"'!\"&H9350),\"0\"),Notes!$B$5:$C$100,2,FALSE),\"\"))","v":""},"2c","$AA$36","$AB$36"]
[35658,{"$f":"Menu!$F$29","v":"X"},{"$f":"Menu!$J$29","v":2020},{"$f":"IF(ISBLANK(INDIRECT(\"'\"&F9351&\"'!\"&G9351)),\"\",INDIRECT(\"'\"&F9351&\"'!\"&G9351))","v":""},{"$f":"IF(ISBLANK(INDIRECT(\"'\"&F9351&\"'!\"&H9351)),\"\",IFERROR(VLOOKUP(TEXT(INDIRECT(\"'\"&F9351&\"'!\"&H9351),\"0\"),Notes!$B$5:$C$100,2,FALSE),\"\"))","v":""},"2c","$AA$37","$AB$37"]
[35660,{"$f":"Menu!$F$29","v":"X"},{"$f":"Menu!$J$29","v":2020},{"$f":"IF(ISBLANK(INDIRECT(\"'\"&F9352&\"'!\"&G9352)),\"\",INDIRECT(\"'\"&F9352&\"'!\"&G9352))","v":""},{"$f":"IF(ISBLANK(INDIRECT(\"'\"&F9352&\"'!\"&H9352)),\"\",IFERROR(VLOOKUP(TEXT(INDIRECT(\"'\"&F9352&\"'!\"&H9352),\"0\"),Notes!$B$5:$C$100,2,FALSE),\"\"))","v":""},"2c","$AA$49","$AB$49"]
[35661,{"$f":"Menu!$F$29","v":"X"},{"$f":"Menu!$J$29","v":2020},{"$f":"IF(ISBLANK(INDIRECT(\"'\"&F9353&\"'!\"&G9353)),\"\",INDIRECT(\"'\"&F9353&\"'!\"&G9353))","v":""},{"$f":"IF(ISBLANK(INDIRECT(\"'\"&F9353&\"'!\"&H9353)),\"\",IFERROR(VLOOKUP(TEXT(INDIRECT(\"'\"&F9353&\"'!\"&H9353),\"0\"),Notes!$B$5:$C$100,2,FALSE),\"\"))","v":""},"2c","$AA$50","$AB$50"]
[35663,{"$f":"Menu!$F$29","v":"X"},{"$f":"Menu!$J$29","v":2020},{"$f":"IF(ISBLANK(INDIRECT(\"'\"&F9354&\"'!\"&G9354)),\"\",INDIRECT(\"'\"&F9354&\"'!\"&G9354))","v":""},{"$f":"IF(ISBLANK(INDIRECT(\"'\"&F9354&\"'!\"&H9354)),\"\",IFERROR(VLOOKUP(TEXT(INDIRECT(\"'\"&F9354&\"'!\"&H9354),\"0\"),Notes!$B$5:$C$100,2,FALSE),\"\"))","v":""},"2c","$AA$44","$AB$44"]
[35664,{"$f":"Menu!$F$29","v":"X"},{"$f":"Menu!$J$29","v":2020},{"$f":"IF(ISBLANK(INDIRECT(\"'\"&F9355&\"'!\"&G9355)),\"\",INDIRECT(\"'\"&F9355&\"'!\"&G9355))","v":""},{"$f":"IF(ISBLANK(INDIRECT(\"'\"&F9355&\"'!\"&H9355)),\"\",IFERROR(VLOOKUP(TEXT(INDIRECT(\"'\"&F9355&\"'!\"&H9355),\"0\"),Notes!$B$5:$C$100,2,FALSE),\"\"))","v":""},"2c","$AA$45","$AB$45"]
[35681,{"$f":"Menu!$F$29","v":"X"},{"$f":"Menu!$J$29","v":2020},{"$f":"IF(ISBLANK(INDIRECT(\"'\"&F9356&\"'!\"&G9356)),\"\",INDIRECT(\"'\"&F9356&\"'!\"&G9356))","v":""},{"$f":"IF(ISBLANK(INDIRECT(\"'\"&F9356&\"'!\"&H9356)),\"\",IFERROR(VLOOKUP(TEXT(INDIRECT(\"'\"&F9356&\"'!\"&H9356),\"0\"),Notes!$B$5:$C$100,2,FALSE),\"\"))","v":""},"2d","$AG$22","$AH$22"]
[35684,{"$f":"Menu!$F$29","v":"X"},{"$f":"Menu!$J$29","v":2020},{"$f":"IF(ISBLANK(INDIRECT(\"'\"&F9357&\"'!\"&G9357)),\"\",INDIRECT(\"'\"&F9357&\"'!\"&G9357))","v":""},{"$f":"IF(ISBLANK(INDIRECT(\"'\"&F9357&\"'!\"&H9357)),\"\",IFERROR(VLOOKUP(TEXT(INDIRECT(\"'\"&F9357&\"'!\"&H9357),\"0\"),Notes!$B$5:$C$100,2,FALSE),\"\"))","v":""},"2d","$AG$29","$AH$29"]
[35685,{"$f":"Menu!$F$29","v":"X"},{"$f":"Menu!$J$29","v":2020},{"$f":"IF(ISBLANK(INDIRECT(\"'\"&F9358&\"'!\"&G9358)),\"\",INDIRECT(\"'\"&F9358&\"'!\"&G9358))","v":""},{"$f":"IF(ISBLANK(INDIRECT(\"'\"&F9358&\"'!\"&H9358)),\"\",IFERROR(VLOOKUP(TEXT(INDIRECT(\"'\"&F9358&\"'!\"&H9358),\"0\"),Notes!$B$5:$C$100,2,FALSE),\"\"))","v":""},"2d","$AG$30","$AH$30"]
[35687,{"$f":"Menu!$F$29","v":"X"},{"$f":"Menu!$J$29","v":2020},{"$f":"IF(ISBLANK(INDIRECT(\"'\"&F9359&\"'!\"&G9359)),\"\",INDIRECT(\"'\"&F9359&\"'!\"&G9359))","v":""},{"$f":"IF(ISBLANK(INDIRECT(\"'\"&F9359&\"'!\"&H9359)),\"\",IFERROR(VLOOKUP(TEXT(INDIRECT(\"'\"&F9359&\"'!\"&H9359),\"0\"),Notes!$B$5:$C$100,2,FALSE),\"\"))","v":""},"2d","$AG$36","$AH$36"]
[35688,{"$f":"Menu!$F$29","v":"X"},{"$f":"Menu!$J$29","v":2020},{"$f":"IF(ISBLANK(INDIRECT(\"'\"&F9360&\"'!\"&G9360)),\"\",INDIRECT(\"'\"&F9360&\"'!\"&G9360))","v":""},{"$f":"IF(ISBLANK(INDIRECT(\"'\"&F9360&\"'!\"&H9360)),\"\",IFERROR(VLOOKUP(TEXT(INDIRECT(\"'\"&F9360&\"'!\"&H9360),\"0\"),Notes!$B$5:$C$100,2,FALSE),\"\"))","v":""},"2d","$AG$37","$AH$37"]
[35690,{"$f":"Menu!$F$29","v":"X"},{"$f":"Menu!$J$29","v":2020},{"$f":"IF(ISBLANK(INDIRECT(\"'\"&F9361&\"'!\"&G9361)),\"\",INDIRECT(\"'\"&F9361&\"'!\"&G9361))","v":""},{"$f":"IF(ISBLANK(INDIRECT(\"'\"&F9361&\"'!\"&H9361)),\"\",IFERROR(VLOOKUP(TEXT(INDIRECT(\"'\"&F9361&\"'!\"&H9361),\"0\"),Notes!$B$5:$C$100,2,FALSE),\"\"))","v":""},"2d","$AG$49","$AH$49"]
[35691,{"$f":"Menu!$F$29","v":"X"},{"$f":"Menu!$J$29","v":2020},{"$f":"IF(ISBLANK(INDIRECT(\"'\"&F9362&\"'!\"&G9362)),\"\",INDIRECT(\"'\"&F9362&\"'!\"&G9362))","v":""},{"$f":"IF(ISBLANK(INDIRECT(\"'\"&F9362&\"'!\"&H9362)),\"\",IFERROR(VLOOKUP(TEXT(INDIRECT(\"'\"&F9362&\"'!\"&H9362),\"0\"),Notes!$B$5:$C$100,2,FALSE),\"\"))","v":""},"2d","$AG$50","$AH$50"]
[35693,{"$f":"Menu!$F$29","v":"X"},{"$f":"Menu!$J$29","v":2020},{"$f":"IF(ISBLANK(INDIRECT(\"'\"&F9363&\"'!\"&G9363)),\"\",INDIRECT(\"'\"&F9363&\"'!\"&G9363))","v":""},{"$f":"IF(ISBLANK(INDIRECT(\"'\"&F9363&\"'!\"&H9363)),\"\",IFERROR(VLOOKUP(TEXT(INDIRECT(\"'\"&F9363&\"'!\"&H9363),\"0\"),Notes!$B$5:$C$100,2,FALSE),\"\"))","v":""},"2d","$AG$44","$AH$44"]
[35694,{"$f":"Menu!$F$29","v":"X"},{"$f":"Menu!$J$29","v":2020},{"$f":"IF(ISBLANK(INDIRECT(\"'\"&F9364&\"'!\"&G9364)),\"\",INDIRECT(\"'\"&F9364&\"'!\"&G9364))","v":""},{"$f":"IF(ISBLANK(INDIRECT(\"'\"&F9364&\"'!\"&H9364)),\"\",IFERROR(VLOOKUP(TEXT(INDIRECT(\"'\"&F9364&\"'!\"&H9364),\"0\"),Notes!$B$5:$C$100,2,FALSE),\"\"))","v":""},"2d","$AG$45","$AH$45"]
[35696,{"$f":"Menu!$F$29","v":"X"},{"$f":"Menu!$J$29","v":2020},{"$f":"IF(ISBLANK(INDIRECT(\"'\"&F9365&\"'!\"&G9365)),\"\",INDIRECT(\"'\"&F9365&\"'!\"&G9365))","v":""},{"$f":"IF(ISBLANK(INDIRECT(\"'\"&F9365&\"'!\"&H9365)),\"\",IFERROR(VLOOKUP(TEXT(INDIRECT(\"'\"&F9365&\"'!\"&H9365),\"0\"),Notes!$B$5:$C$100,2,FALSE),\"\"))","v":""},"2d","$I$22","$J$22"]
[35699,{"$f":"Menu!$F$29","v":"X"},{"$f":"Menu!$J$29","v":2020},{"$f":"IF(ISBLANK(INDIRECT(\"'\"&F9366&\"'!\"&G9366)),\"\",INDIRECT(\"'\"&F9366&\"'!\"&G9366))","v":""},{"$f":"IF(ISBLANK(INDIRECT(\"'\"&F9366&\"'!\"&H9366)),\"\",IFERROR(VLOOKUP(TEXT(INDIRECT(\"'\"&F9366&\"'!\"&H9366),\"0\"),Notes!$B$5:$C$100,2,FALSE),\"\"))","v":""},"2d","$I$29","$J$29"]
[35700,{"$f":"Menu!$F$29","v":"X"},{"$f":"Menu!$J$29","v":2020},{"$f":"IF(ISBLANK(INDIRECT(\"'\"&F9367&\"'!\"&G9367)),\"\",INDIRECT(\"'\"&F9367&\"'!\"&G9367))","v":""},{"$f":"IF(ISBLANK(INDIRECT(\"'\"&F9367&\"'!\"&H9367)),\"\",IFERROR(VLOOKUP(TEXT(INDIRECT(\"'\"&F9367&\"'!\"&H9367),\"0\"),Notes!$B$5:$C$100,2,FALSE),\"\"))","v":""},"2d","$I$30","$J$30"]
[35702,{"$f":"Menu!$F$29","v":"X"},{"$f":"Menu!$J$29","v":2020},{"$f":"IF(ISBLANK(INDIRECT(\"'\"&F9368&\"'!\"&G9368)),\"\",INDIRECT(\"'\"&F9368&\"'!\"&G9368))","v":""},{"$f":"IF(ISBLANK(INDIRECT(\"'\"&F9368&\"'!\"&H9368)),\"\",IFERROR(VLOOKUP(TEXT(INDIRECT(\"'\"&F9368&\"'!\"&H9368),\"0\"),Notes!$B$5:$C$100,2,FALSE),\"\"))","v":""},"2d","$I$36","$J$36"]
[35703,{"$f":"Menu!$F$29","v":"X"},{"$f":"Menu!$J$29","v":2020},{"$f":"IF(ISBLANK(INDIRECT(\"'\"&F9369&\"'!\"&G9369)),\"\",INDIRECT(\"'\"&F9369&\"'!\"&G9369))","v":""},{"$f":"IF(ISBLANK(INDIRECT(\"'\"&F9369&\"'!\"&H9369)),\"\",IFERROR(VLOOKUP(TEXT(INDIRECT(\"'\"&F9369&\"'!\"&H9369),\"0\"),Notes!$B$5:$C$100,2,FALSE),\"\"))","v":""},"2d","$I$37","$J$37"]
[35705,{"$f":"Menu!$F$29","v":"X"},{"$f":"Menu!$J$29","v":2020},{"$f":"IF(ISBLANK(INDIRECT(\"'\"&F9370&\"'!\"&G9370)),\"\",INDIRECT(\"'\"&F9370&\"'!\"&G9370))","v":""},{"$f":"IF(ISBLANK(INDIRECT(\"'\"&F9370&\"'!\"&H9370)),\"\",IFERROR(VLOOKUP(TEXT(INDIRECT(\"'\"&F9370&\"'!\"&H9370),\"0\"),Notes!$B$5:$C$100,2,FALSE),\"\"))","v":""},"2d","$I$49","$J$49"]
[35706,{"$f":"Menu!$F$29","v":"X"},{"$f":"Menu!$J$29","v":2020},{"$f":"IF(ISBLANK(INDIRECT(\"'\"&F9371&\"'!\"&G9371)),\"\",INDIRECT(\"'\"&F9371&\"'!\"&G9371))","v":""},{"$f":"IF(ISBLANK(INDIRECT(\"'\"&F9371&\"'!\"&H9371)),\"\",IFERROR(VLOOKUP(TEXT(INDIRECT(\"'\"&F9371&\"'!\"&H9371),\"0\"),Notes!$B$5:$C$100,2,FALSE),\"\"))","v":""},"2d","$I$50","$J$50"]
[35708,{"$f":"Menu!$F$29","v":"X"},{"$f":"Menu!$J$29","v":2020},{"$f":"IF(ISBLANK(INDIRECT(\"'\"&F9372&\"'!\"&G9372)),\"\",INDIRECT(\"'\"&F9372&\"'!\"&G9372))","v":""},{"$f":"IF(ISBLANK(INDIRECT(\"'\"&F9372&\"'!\"&H9372)),\"\",IFERROR(VLOOKUP(TEXT(INDIRECT(\"'\"&F9372&\"'!\"&H9372),\"0\"),Notes!$B$5:$C$100,2,FALSE),\"\"))","v":""},"2d","$I$44","$J$44"]
[35709,{"$f":"Menu!$F$29","v":"X"},{"$f":"Menu!$J$29","v":2020},{"$f":"IF(ISBLANK(INDIRECT(\"'\"&F9373&\"'!\"&G9373)),\"\",INDIRECT(\"'\"&F9373&\"'!\"&G9373))","v":""},{"$f":"IF(ISBLANK(INDIRECT(\"'\"&F9373&\"'!\"&H9373)),\"\",IFERROR(VLOOKUP(TEXT(INDIRECT(\"'\"&F9373&\"'!\"&H9373),\"0\"),Notes!$B$5:$C$100,2,FALSE),\"\"))","v":""},"2d","$I$45","$J$45"]
[35711,{"$f":"Menu!$F$29","v":"X"},{"$f":"Menu!$J$29","v":2020},{"$f":"IF(ISBLANK(INDIRECT(\"'\"&F9374&\"'!\"&G9374)),\"\",INDIRECT(\"'\"&F9374&\"'!\"&G9374))","v":""},{"$f":"IF(ISBLANK(INDIRECT(\"'\"&F9374&\"'!\"&H9374)),\"\",IFERROR(VLOOKUP(TEXT(INDIRECT(\"'\"&F9374&\"'!\"&H9374),\"0\"),Notes!$B$5:$C$100,2,FALSE),\"\"))","v":""},"2d","$U$22","$V$22"]
[35714,{"$f":"Menu!$F$29","v":"X"},{"$f":"Menu!$J$29","v":2020},{"$f":"IF(ISBLANK(INDIRECT(\"'\"&F9375&\"'!\"&G9375)),\"\",INDIRECT(\"'\"&F9375&\"'!\"&G9375))","v":""},{"$f":"IF(ISBLANK(INDIRECT(\"'\"&F9375&\"'!\"&H9375)),\"\",IFERROR(VLOOKUP(TEXT(INDIRECT(\"'\"&F9375&\"'!\"&H9375),\"0\"),Notes!$B$5:$C$100,2,FALSE),\"\"))","v":""},"2d","$U$29","$V$29"]
[35715,{"$f":"Menu!$F$29","v":"X"},{"$f":"Menu!$J$29","v":2020},{"$f":"IF(ISBLANK(INDIRECT(\"'\"&F9376&\"'!\"&G9376)),\"\",INDIRECT(\"'\"&F9376&\"'!\"&G9376))","v":""},{"$f":"IF(ISBLANK(INDIRECT(\"'\"&F9376&\"'!\"&H9376)),\"\",IFERROR(VLOOKUP(TEXT(INDIRECT(\"'\"&F9376&\"'!\"&H9376),\"0\"),Notes!$B$5:$C$100,2,FALSE),\"\"))","v":""},"2d","$U$30","$V$30"]
[35717,{"$f":"Menu!$F$29","v":"X"},{"$f":"Menu!$J$29","v":2020},{"$f":"IF(ISBLANK(INDIRECT(\"'\"&F9377&\"'!\"&G9377)),\"\",INDIRECT(\"'\"&F9377&\"'!\"&G9377))","v":""},{"$f":"IF(ISBLANK(INDIRECT(\"'\"&F9377&\"'!\"&H9377)),\"\",IFERROR(VLOOKUP(TEXT(INDIRECT(\"'\"&F9377&\"'!\"&H9377),\"0\"),Notes!$B$5:$C$100,2,FALSE),\"\"))","v":""},"2d","$U$36","$V$36"]
[35718,{"$f":"Menu!$F$29","v":"X"},{"$f":"Menu!$J$29","v":2020},{"$f":"IF(ISBLANK(INDIRECT(\"'\"&F9378&\"'!\"&G9378)),\"\",INDIRECT(\"'\"&F9378&\"'!\"&G9378))","v":""},{"$f":"IF(ISBLANK(INDIRECT(\"'\"&F9378&\"'!\"&H9378)),\"\",IFERROR(VLOOKUP(TEXT(INDIRECT(\"'\"&F9378&\"'!\"&H9378),\"0\"),Notes!$B$5:$C$100,2,FALSE),\"\"))","v":""},"2d","$U$37","$V$37"]
[35720,{"$f":"Menu!$F$29","v":"X"},{"$f":"Menu!$J$29","v":2020},{"$f":"IF(ISBLANK(INDIRECT(\"'\"&F9379&\"'!\"&G9379)),\"\",INDIRECT(\"'\"&F9379&\"'!\"&G9379))","v":""},{"$f":"IF(ISBLANK(INDIRECT(\"'\"&F9379&\"'!\"&H9379)),\"\",IFERROR(VLOOKUP(TEXT(INDIRECT(\"'\"&F9379&\"'!\"&H9379),\"0\"),Notes!$B$5:$C$100,2,FALSE),\"\"))","v":""},"2d","$U$49","$V$49"]
[35721,{"$f":"Menu!$F$29","v":"X"},{"$f":"Menu!$J$29","v":2020},{"$f":"IF(ISBLANK(INDIRECT(\"'\"&F9380&\"'!\"&G9380)),\"\",INDIRECT(\"'\"&F9380&\"'!\"&G9380))","v":""},{"$f":"IF(ISBLANK(INDIRECT(\"'\"&F9380&\"'!\"&H9380)),\"\",IFERROR(VLOOKUP(TEXT(INDIRECT(\"'\"&F9380&\"'!\"&H9380),\"0\"),Notes!$B$5:$C$100,2,FALSE),\"\"))","v":""},"2d","$U$50","$V$50"]
[35723,{"$f":"Menu!$F$29","v":"X"},{"$f":"Menu!$J$29","v":2020},{"$f":"IF(ISBLANK(INDIRECT(\"'\"&F9381&\"'!\"&G9381)),\"\",INDIRECT(\"'\"&F9381&\"'!\"&G9381))","v":""},{"$f":"IF(ISBLANK(INDIRECT(\"'\"&F9381&\"'!\"&H9381)),\"\",IFERROR(VLOOKUP(TEXT(INDIRECT(\"'\"&F9381&\"'!\"&H9381),\"0\"),Notes!$B$5:$C$100,2,FALSE),\"\"))","v":""},"2d","$U$44","$V$44"]
[35724,{"$f":"Menu!$F$29","v":"X"},{"$f":"Menu!$J$29","v":2020},{"$f":"IF(ISBLANK(INDIRECT(\"'\"&F9382&\"'!\"&G9382)),\"\",INDIRECT(\"'\"&F9382&\"'!\"&G9382))","v":""},{"$f":"IF(ISBLANK(INDIRECT(\"'\"&F9382&\"'!\"&H9382)),\"\",IFERROR(VLOOKUP(TEXT(INDIRECT(\"'\"&F9382&\"'!\"&H9382),\"0\"),Notes!$B$5:$C$100,2,FALSE),\"\"))","v":""},"2d","$U$45","$V$45"]
[35726,{"$f":"Menu!$F$29","v":"X"},{"$f":"Menu!$J$29","v":2020},{"$f":"IF(ISBLANK(INDIRECT(\"'\"&F9383&\"'!\"&G9383)),\"\",INDIRECT(\"'\"&F9383&\"'!\"&G9383))","v":""},{"$f":"IF(ISBLANK(INDIRECT(\"'\"&F9383&\"'!\"&H9383)),\"\",IFERROR(VLOOKUP(TEXT(INDIRECT(\"'\"&F9383&\"'!\"&H9383),\"0\"),Notes!$B$5:$C$100,2,FALSE),\"\"))","v":""},"2d","$O$22","$P$22"]
[35729,{"$f":"Menu!$F$29","v":"X"},{"$f":"Menu!$J$29","v":2020},{"$f":"IF(ISBLANK(INDIRECT(\"'\"&F9384&\"'!\"&G9384)),\"\",INDIRECT(\"'\"&F9384&\"'!\"&G9384))","v":""},{"$f":"IF(ISBLANK(INDIRECT(\"'\"&F9384&\"'!\"&H9384)),\"\",IFERROR(VLOOKUP(TEXT(INDIRECT(\"'\"&F9384&\"'!\"&H9384),\"0\"),Notes!$B$5:$C$100,2,FALSE),\"\"))","v":""},"2d","$O$29","$P$29"]
[35730,{"$f":"Menu!$F$29","v":"X"},{"$f":"Menu!$J$29","v":2020},{"$f":"IF(ISBLANK(INDIRECT(\"'\"&F9385&\"'!\"&G9385)),\"\",INDIRECT(\"'\"&F9385&\"'!\"&G9385))","v":""},{"$f":"IF(ISBLANK(INDIRECT(\"'\"&F9385&\"'!\"&H9385)),\"\",IFERROR(VLOOKUP(TEXT(INDIRECT(\"'\"&F9385&\"'!\"&H9385),\"0\"),Notes!$B$5:$C$100,2,FALSE),\"\"))","v":""},"2d","$O$30","$P$30"]
[35732,{"$f":"Menu!$F$29","v":"X"},{"$f":"Menu!$J$29","v":2020},{"$f":"IF(ISBLANK(INDIRECT(\"'\"&F9386&\"'!\"&G9386)),\"\",INDIRECT(\"'\"&F9386&\"'!\"&G9386))","v":""},{"$f":"IF(ISBLANK(INDIRECT(\"'\"&F9386&\"'!\"&H9386)),\"\",IFERROR(VLOOKUP(TEXT(INDIRECT(\"'\"&F9386&\"'!\"&H9386),\"0\"),Notes!$B$5:$C$100,2,FALSE),\"\"))","v":""},"2d","$O$36","$P$36"]
[35733,{"$f":"Menu!$F$29","v":"X"},{"$f":"Menu!$J$29","v":2020},{"$f":"IF(ISBLANK(INDIRECT(\"'\"&F9387&\"'!\"&G9387)),\"\",INDIRECT(\"'\"&F9387&\"'!\"&G9387))","v":""},{"$f":"IF(ISBLANK(INDIRECT(\"'\"&F9387&\"'!\"&H9387)),\"\",IFERROR(VLOOKUP(TEXT(INDIRECT(\"'\"&F9387&\"'!\"&H9387),\"0\"),Notes!$B$5:$C$100,2,FALSE),\"\"))","v":""},"2d","$O$37","$P$37"]
[35735,{"$f":"Menu!$F$29","v":"X"},{"$f":"Menu!$J$29","v":2020},{"$f":"IF(ISBLANK(INDIRECT(\"'\"&F9388&\"'!\"&G9388)),\"\",INDIRECT(\"'\"&F9388&\"'!\"&G9388))","v":""},{"$f":"IF(ISBLANK(INDIRECT(\"'\"&F9388&\"'!\"&H9388)),\"\",IFERROR(VLOOKUP(TEXT(INDIRECT(\"'\"&F9388&\"'!\"&H9388),\"0\"),Notes!$B$5:$C$100,2,FALSE),\"\"))","v":""},"2d","$O$49","$P$49"]
[35736,{"$f":"Menu!$F$29","v":"X"},{"$f":"Menu!$J$29","v":2020},{"$f":"IF(ISBLANK(INDIRECT(\"'\"&F9389&\"'!\"&G9389)),\"\",INDIRECT(\"'\"&F9389&\"'!\"&G9389))","v":""},{"$f":"IF(ISBLANK(INDIRECT(\"'\"&F9389&\"'!\"&H9389)),\"\",IFERROR(VLOOKUP(TEXT(INDIRECT(\"'\"&F9389&\"'!\"&H9389),\"0\"),Notes!$B$5:$C$100,2,FALSE),\"\"))","v":""},"2d","$O$50","$P$50"]
[35738,{"$f":"Menu!$F$29","v":"X"},{"$f":"Menu!$J$29","v":2020},{"$f":"IF(ISBLANK(INDIRECT(\"'\"&F9390&\"'!\"&G9390)),\"\",INDIRECT(\"'\"&F9390&\"'!\"&G9390))","v":""},{"$f":"IF(ISBLANK(INDIRECT(\"'\"&F9390&\"'!\"&H9390)),\"\",IFERROR(VLOOKUP(TEXT(INDIRECT(\"'\"&F9390&\"'!\"&H9390),\"0\"),Notes!$B$5:$C$100,2,FALSE),\"\"))","v":""},"2d","$O$44","$P$44"]
[35739,{"$f":"Menu!$F$29","v":"X"},{"$f":"Menu!$J$29","v":2020},{"$f":"IF(ISBLANK(INDIRECT(\"'\"&F9391&\"'!\"&G9391)),\"\",INDIRECT(\"'\"&F9391&\"'!\"&G9391))","v":""},{"$f":"IF(ISBLANK(INDIRECT(\"'\"&F9391&\"'!\"&H9391)),\"\",IFERROR(VLOOKUP(TEXT(INDIRECT(\"'\"&F9391&\"'!\"&H9391),\"0\"),Notes!$B$5:$C$100,2,FALSE),\"\"))","v":""},"2d","$O$45","$P$45"]
[35741,{"$f":"Menu!$F$29","v":"X"},{"$f":"Menu!$J$29","v":2020},{"$f":"IF(ISBLANK(INDIRECT(\"'\"&F9392&\"'!\"&G9392)),\"\",INDIRECT(\"'\"&F9392&\"'!\"&G9392))","v":""},{"$f":"IF(ISBLANK(INDIRECT(\"'\"&F9392&\"'!\"&H9392)),\"\",IFERROR(VLOOKUP(TEXT(INDIRECT(\"'\"&F9392&\"'!\"&H9392),\"0\"),Notes!$B$5:$C$100,2,FALSE),\"\"))","v":""},"2d","$AA$22","$AB$22"]
[35744,{"$f":"Menu!$F$29","v":"X"},{"$f":"Menu!$J$29","v":2020},{"$f":"IF(ISBLANK(INDIRECT(\"'\"&F9393&\"'!\"&G9393)),\"\",INDIRECT(\"'\"&F9393&\"'!\"&G9393))","v":""},{"$f":"IF(ISBLANK(INDIRECT(\"'\"&F9393&\"'!\"&H9393)),\"\",IFERROR(VLOOKUP(TEXT(INDIRECT(\"'\"&F9393&\"'!\"&H9393),\"0\"),Notes!$B$5:$C$100,2,FALSE),\"\"))","v":""},"2d","$AA$29","$AB$29"]
[35745,{"$f":"Menu!$F$29","v":"X"},{"$f":"Menu!$J$29","v":2020},{"$f":"IF(ISBLANK(INDIRECT(\"'\"&F9394&\"'!\"&G9394)),\"\",INDIRECT(\"'\"&F9394&\"'!\"&G9394))","v":""},{"$f":"IF(ISBLANK(INDIRECT(\"'\"&F9394&\"'!\"&H9394)),\"\",IFERROR(VLOOKUP(TEXT(INDIRECT(\"'\"&F9394&\"'!\"&H9394),\"0\"),Notes!$B$5:$C$100,2,FALSE),\"\"))","v":""},"2d","$AA$30","$AB$30"]
[35747,{"$f":"Menu!$F$29","v":"X"},{"$f":"Menu!$J$29","v":2020},{"$f":"IF(ISBLANK(INDIRECT(\"'\"&F9395&\"'!\"&G9395)),\"\",INDIRECT(\"'\"&F9395&\"'!\"&G9395))","v":""},{"$f":"IF(ISBLANK(INDIRECT(\"'\"&F9395&\"'!\"&H9395)),\"\",IFERROR(VLOOKUP(TEXT(INDIRECT(\"'\"&F9395&\"'!\"&H9395),\"0\"),Notes!$B$5:$C$100,2,FALSE),\"\"))","v":""},"2d","$AA$36","$AB$36"]
[35748,{"$f":"Menu!$F$29","v":"X"},{"$f":"Menu!$J$29","v":2020},{"$f":"IF(ISBLANK(INDIRECT(\"'\"&F9396&\"'!\"&G9396)),\"\",INDIRECT(\"'\"&F9396&\"'!\"&G9396))","v":""},{"$f":"IF(ISBLANK(INDIRECT(\"'\"&F9396&\"'!\"&H9396)),\"\",IFERROR(VLOOKUP(TEXT(INDIRECT(\"'\"&F9396&\"'!\"&H9396),\"0\"),Notes!$B$5:$C$100,2,FALSE),\"\"))","v":""},"2d","$AA$37","$AB$37"]
[35750,{"$f":"Menu!$F$29","v":"X"},{"$f":"Menu!$J$29","v":2020},{"$f":"IF(ISBLANK(INDIRECT(\"'\"&F9397&\"'!\"&G9397)),\"\",INDIRECT(\"'\"&F9397&\"'!\"&G9397))","v":""},{"$f":"IF(ISBLANK(INDIRECT(\"'\"&F9397&\"'!\"&H9397)),\"\",IFERROR(VLOOKUP(TEXT(INDIRECT(\"'\"&F9397&\"'!\"&H9397),\"0\"),Notes!$B$5:$C$100,2,FALSE),\"\"))","v":""},"2d","$AA$49","$AB$49"]
[35751,{"$f":"Menu!$F$29","v":"X"},{"$f":"Menu!$J$29","v":2020},{"$f":"IF(ISBLANK(INDIRECT(\"'\"&F9398&\"'!\"&G9398)),\"\",INDIRECT(\"'\"&F9398&\"'!\"&G9398))","v":""},{"$f":"IF(ISBLANK(INDIRECT(\"'\"&F9398&\"'!\"&H9398)),\"\",IFERROR(VLOOKUP(TEXT(INDIRECT(\"'\"&F9398&\"'!\"&H9398),\"0\"),Notes!$B$5:$C$100,2,FALSE),\"\"))","v":""},"2d","$AA$50","$AB$50"]
[35753,{"$f":"Menu!$F$29","v":"X"},{"$f":"Menu!$J$29","v":2020},{"$f":"IF(ISBLANK(INDIRECT(\"'\"&F9399&\"'!\"&G9399)),\"\",INDIRECT(\"'\"&F9399&\"'!\"&G9399))","v":""},{"$f":"IF(ISBLANK(INDIRECT(\"'\"&F9399&\"'!\"&H9399)),\"\",IFERROR(VLOOKUP(TEXT(INDIRECT(\"'\"&F9399&\"'!\"&H9399),\"0\"),Notes!$B$5:$C$100,2,FALSE),\"\"))","v":""},"2d","$AA$44","$AB$44"]
[35754,{"$f":"Menu!$F$29","v":"X"},{"$f":"Menu!$J$29","v":2020},{"$f":"IF(ISBLANK(INDIRECT(\"'\"&F9400&\"'!\"&G9400)),\"\",INDIRECT(\"'\"&F9400&\"'!\"&G9400))","v":""},{"$f":"IF(ISBLANK(INDIRECT(\"'\"&F9400&\"'!\"&H9400)),\"\",IFERROR(VLOOKUP(TEXT(INDIRECT(\"'\"&F9400&\"'!\"&H9400),\"0\"),Notes!$B$5:$C$100,2,FALSE),\"\"))","v":""},"2d","$AA$45","$AB$45"]
[35756,{"$f":"Menu!$F$29","v":"X"},{"$f":"Menu!$J$29","v":2020},{"$f":"IF(ISBLANK(INDIRECT(\"'\"&F9401&\"'!\"&G9401)),\"\",INDIRECT(\"'\"&F9401&\"'!\"&G9401))","v":""},{"$f":"IF(ISBLANK(INDIRECT(\"'\"&F9401&\"'!\"&H9401)),\"\",IFERROR(VLOOKUP(TEXT(INDIRECT(\"'\"&F9401&\"'!\"&H9401),\"0\"),Notes!$B$5:$C$100,2,FALSE),\"\"))","v":""},"2b","$I$22","$J$22"]
[35759,{"$f":"Menu!$F$29","v":"X"},{"$f":"Menu!$J$29","v":2020},{"$f":"IF(ISBLANK(INDIRECT(\"'\"&F9402&\"'!\"&G9402)),\"\",INDIRECT(\"'\"&F9402&\"'!\"&G9402))","v":""},{"$f":"IF(ISBLANK(INDIRECT(\"'\"&F9402&\"'!\"&H9402)),\"\",IFERROR(VLOOKUP(TEXT(INDIRECT(\"'\"&F9402&\"'!\"&H9402),\"0\"),Notes!$B$5:$C$100,2,FALSE),\"\"))","v":""},"2b","$I$29","$J$29"]
[35760,{"$f":"Menu!$F$29","v":"X"},{"$f":"Menu!$J$29","v":2020},{"$f":"IF(ISBLANK(INDIRECT(\"'\"&F9403&\"'!\"&G9403)),\"\",INDIRECT(\"'\"&F9403&\"'!\"&G9403))","v":""},{"$f":"IF(ISBLANK(INDIRECT(\"'\"&F9403&\"'!\"&H9403)),\"\",IFERROR(VLOOKUP(TEXT(INDIRECT(\"'\"&F9403&\"'!\"&H9403),\"0\"),Notes!$B$5:$C$100,2,FALSE),\"\"))","v":""},"2b","$I$30","$J$30"]
[35762,{"$f":"Menu!$F$29","v":"X"},{"$f":"Menu!$J$29","v":2020},{"$f":"IF(ISBLANK(INDIRECT(\"'\"&F9404&\"'!\"&G9404)),\"\",INDIRECT(\"'\"&F9404&\"'!\"&G9404))","v":""},{"$f":"IF(ISBLANK(INDIRECT(\"'\"&F9404&\"'!\"&H9404)),\"\",IFERROR(VLOOKUP(TEXT(INDIRECT(\"'\"&F9404&\"'!\"&H9404),\"0\"),Notes!$B$5:$C$100,2,FALSE),\"\"))","v":""},"2b","$I$36","$J$36"]
[35763,{"$f":"Menu!$F$29","v":"X"},{"$f":"Menu!$J$29","v":2020},{"$f":"IF(ISBLANK(INDIRECT(\"'\"&F9405&\"'!\"&G9405)),\"\",INDIRECT(\"'\"&F9405&\"'!\"&G9405))","v":""},{"$f":"IF(ISBLANK(INDIRECT(\"'\"&F9405&\"'!\"&H9405)),\"\",IFERROR(VLOOKUP(TEXT(INDIRECT(\"'\"&F9405&\"'!\"&H9405),\"0\"),Notes!$B$5:$C$100,2,FALSE),\"\"))","v":""},"2b","$I$37","$J$37"]
[35765,{"$f":"Menu!$F$29","v":"X"},{"$f":"Menu!$J$29","v":2020},{"$f":"IF(ISBLANK(INDIRECT(\"'\"&F9406&\"'!\"&G9406)),\"\",INDIRECT(\"'\"&F9406&\"'!\"&G9406))","v":""},{"$f":"IF(ISBLANK(INDIRECT(\"'\"&F9406&\"'!\"&H9406)),\"\",IFERROR(VLOOKUP(TEXT(INDIRECT(\"'\"&F9406&\"'!\"&H9406),\"0\"),Notes!$B$5:$C$100,2,FALSE),\"\"))","v":""},"2b","$I$49","$J$49"]
[35766,{"$f":"Menu!$F$29","v":"X"},{"$f":"Menu!$J$29","v":2020},{"$f":"IF(ISBLANK(INDIRECT(\"'\"&F9407&\"'!\"&G9407)),\"\",INDIRECT(\"'\"&F9407&\"'!\"&G9407))","v":""},{"$f":"IF(ISBLANK(INDIRECT(\"'\"&F9407&\"'!\"&H9407)),\"\",IFERROR(VLOOKUP(TEXT(INDIRECT(\"'\"&F9407&\"'!\"&H9407),\"0\"),Notes!$B$5:$C$100,2,FALSE),\"\"))","v":""},"2b","$I$50","$J$50"]
[35768,{"$f":"Menu!$F$29","v":"X"},{"$f":"Menu!$J$29","v":2020},{"$f":"IF(ISBLANK(INDIRECT(\"'\"&F9408&\"'!\"&G9408)),\"\",INDIRECT(\"'\"&F9408&\"'!\"&G9408))","v":""},{"$f":"IF(ISBLANK(INDIRECT(\"'\"&F9408&\"'!\"&H9408)),\"\",IFERROR(VLOOKUP(TEXT(INDIRECT(\"'\"&F9408&\"'!\"&H9408),\"0\"),Notes!$B$5:$C$100,2,FALSE),\"\"))","v":""},"2b","$I$44","$J$44"]
[35769,{"$f":"Menu!$F$29","v":"X"},{"$f":"Menu!$J$29","v":2020},{"$f":"IF(ISBLANK(INDIRECT(\"'\"&F9409&\"'!\"&G9409)),\"\",INDIRECT(\"'\"&F9409&\"'!\"&G9409))","v":""},{"$f":"IF(ISBLANK(INDIRECT(\"'\"&F9409&\"'!\"&H9409)),\"\",IFERROR(VLOOKUP(TEXT(INDIRECT(\"'\"&F9409&\"'!\"&H9409),\"0\"),Notes!$B$5:$C$100,2,FALSE),\"\"))","v":""},"2b","$I$45","$J$45"]
[35771,{"$f":"Menu!$F$29","v":"X"},{"$f":"Menu!$J$29","v":2020},{"$f":"IF(ISBLANK(INDIRECT(\"'\"&F9410&\"'!\"&G9410)),\"\",INDIRECT(\"'\"&F9410&\"'!\"&G9410))","v":""},{"$f":"IF(ISBLANK(INDIRECT(\"'\"&F9410&\"'!\"&H9410)),\"\",IFERROR(VLOOKUP(TEXT(INDIRECT(\"'\"&F9410&\"'!\"&H9410),\"0\"),Notes!$B$5:$C$100,2,FALSE),\"\"))","v":""},"2b","$O$22",{"$f":"IF(LEN(TRIM(MID(G9410,4,10)))-LEN(SUBSTITUTE(TRIM(MID(G9410,4,10)),\"$\",\"\"))=0,\"$\"&CHAR(CODE(MID(G9410,2,1))+1)&\"$\"&TRIM(MID(G9410,4,10)),\"$\"&MID(G9410,2,1)&CHAR(CODE(MID(G9410,3,1))+1)&\"$\"&TRIM(MID(G9410,5,11)))","v":"$P$22"}]
[35774,{"$f":"Menu!$F$29","v":"X"},{"$f":"Menu!$J$29","v":2020},{"$f":"IF(ISBLANK(INDIRECT(\"'\"&F9411&\"'!\"&G9411)),\"\",INDIRECT(\"'\"&F9411&\"'!\"&G9411))","v":""},{"$f":"IF(ISBLANK(INDIRECT(\"'\"&F9411&\"'!\"&H9411)),\"\",IFERROR(VLOOKUP(TEXT(INDIRECT(\"'\"&F9411&\"'!\"&H9411),\"0\"),Notes!$B$5:$C$100,2,FALSE),\"\"))","v":""},"2b","$O$29","$P$29"]
[35775,{"$f":"Menu!$F$29","v":"X"},{"$f":"Menu!$J$29","v":2020},{"$f":"IF(ISBLANK(INDIRECT(\"'\"&F9412&\"'!\"&G9412)),\"\",INDIRECT(\"'\"&F9412&\"'!\"&G9412))","v":""},{"$f":"IF(ISBLANK(INDIRECT(\"'\"&F9412&\"'!\"&H9412)),\"\",IFERROR(VLOOKUP(TEXT(INDIRECT(\"'\"&F9412&\"'!\"&H9412),\"0\"),Notes!$B$5:$C$100,2,FALSE),\"\"))","v":""},"2b","$O$30","$P$30"]
[35777,{"$f":"Menu!$F$29","v":"X"},{"$f":"Menu!$J$29","v":2020},{"$f":"IF(ISBLANK(INDIRECT(\"'\"&F9413&\"'!\"&G9413)),\"\",INDIRECT(\"'\"&F9413&\"'!\"&G9413))","v":""},{"$f":"IF(ISBLANK(INDIRECT(\"'\"&F9413&\"'!\"&H9413)),\"\",IFERROR(VLOOKUP(TEXT(INDIRECT(\"'\"&F9413&\"'!\"&H9413),\"0\"),Notes!$B$5:$C$100,2,FALSE),\"\"))","v":""},"2b","$O$36","$P$36"]
[35778,{"$f":"Menu!$F$29","v":"X"},{"$f":"Menu!$J$29","v":2020},{"$f":"IF(ISBLANK(INDIRECT(\"'\"&F9414&\"'!\"&G9414)),\"\",INDIRECT(\"'\"&F9414&\"'!\"&G9414))","v":""},{"$f":"IF(ISBLANK(INDIRECT(\"'\"&F9414&\"'!\"&H9414)),\"\",IFERROR(VLOOKUP(TEXT(INDIRECT(\"'\"&F9414&\"'!\"&H9414),\"0\"),Notes!$B$5:$C$100,2,FALSE),\"\"))","v":""},"2b","$O$37","$P$37"]
[35780,{"$f":"Menu!$F$29","v":"X"},{"$f":"Menu!$J$29","v":2020},{"$f":"IF(ISBLANK(INDIRECT(\"'\"&F9415&\"'!\"&G9415)),\"\",INDIRECT(\"'\"&F9415&\"'!\"&G9415))","v":""},{"$f":"IF(ISBLANK(INDIRECT(\"'\"&F9415&\"'!\"&H9415)),\"\",IFERROR(VLOOKUP(TEXT(INDIRECT(\"'\"&F9415&\"'!\"&H9415),\"0\"),Notes!$B$5:$C$100,2,FALSE),\"\"))","v":""},"2b","$O$49","$P$49"]
[35781,{"$f":"Menu!$F$29","v":"X"},{"$f":"Menu!$J$29","v":2020},{"$f":"IF(ISBLANK(INDIRECT(\"'\"&F9416&\"'!\"&G9416)),\"\",INDIRECT(\"'\"&F9416&\"'!\"&G9416))","v":""},{"$f":"IF(ISBLANK(INDIRECT(\"'\"&F9416&\"'!\"&H9416)),\"\",IFERROR(VLOOKUP(TEXT(INDIRECT(\"'\"&F9416&\"'!\"&H9416),\"0\"),Notes!$B$5:$C$100,2,FALSE),\"\"))","v":""},"2b","$O$50","$P$50"]
[35783,{"$f":"Menu!$F$29","v":"X"},{"$f":"Menu!$J$29","v":2020},{"$f":"IF(ISBLANK(INDIRECT(\"'\"&F9417&\"'!\"&G9417)),\"\",INDIRECT(\"'\"&F9417&\"'!\"&G9417))","v":""},{"$f":"IF(ISBLANK(INDIRECT(\"'\"&F9417&\"'!\"&H9417)),\"\",IFERROR(VLOOKUP(TEXT(INDIRECT(\"'\"&F9417&\"'!\"&H9417),\"0\"),Notes!$B$5:$C$100,2,FALSE),\"\"))","v":""},"2b","$O$44","$P$44"]
[35784,{"$f":"Menu!$F$29","v":"X"},{"$f":"Menu!$J$29","v":2020},{"$f":"IF(ISBLANK(INDIRECT(\"'\"&F9418&\"'!\"&G9418)),\"\",INDIRECT(\"'\"&F9418&\"'!\"&G9418))","v":""},{"$f":"IF(ISBLANK(INDIRECT(\"'\"&F9418&\"'!\"&H9418)),\"\",IFERROR(VLOOKUP(TEXT(INDIRECT(\"'\"&F9418&\"'!\"&H9418),\"0\"),Notes!$B$5:$C$100,2,FALSE),\"\"))","v":""},"2b","$O$45","$P$45"]
[35786,{"$f":"Menu!$F$29","v":"X"},{"$f":"Menu!$J$29","v":2020},{"$f":"IF(ISBLANK(INDIRECT(\"'\"&F9419&\"'!\"&G9419)),\"\",INDIRECT(\"'\"&F9419&\"'!\"&G9419))","v":""},{"$f":"IF(ISBLANK(INDIRECT(\"'\"&F9419&\"'!\"&H9419)),\"\",IFERROR(VLOOKUP(TEXT(INDIRECT(\"'\"&F9419&\"'!\"&H9419),\"0\"),Notes!$B$5:$C$100,2,FALSE),\"\"))","v":""},"2b","$U$22","$V$22"]
[35789,{"$f":"Menu!$F$29","v":"X"},{"$f":"Menu!$J$29","v":2020},{"$f":"IF(ISBLANK(INDIRECT(\"'\"&F9420&\"'!\"&G9420)),\"\",INDIRECT(\"'\"&F9420&\"'!\"&G9420))","v":""},{"$f":"IF(ISBLANK(INDIRECT(\"'\"&F9420&\"'!\"&H9420)),\"\",IFERROR(VLOOKUP(TEXT(INDIRECT(\"'\"&F9420&\"'!\"&H9420),\"0\"),Notes!$B$5:$C$100,2,FALSE),\"\"))","v":""},"2b","$U$29","$V$29"]
[35790,{"$f":"Menu!$F$29","v":"X"},{"$f":"Menu!$J$29","v":2020},{"$f":"IF(ISBLANK(INDIRECT(\"'\"&F9421&\"'!\"&G9421)),\"\",INDIRECT(\"'\"&F9421&\"'!\"&G9421))","v":""},{"$f":"IF(ISBLANK(INDIRECT(\"'\"&F9421&\"'!\"&H9421)),\"\",IFERROR(VLOOKUP(TEXT(INDIRECT(\"'\"&F9421&\"'!\"&H9421),\"0\"),Notes!$B$5:$C$100,2,FALSE),\"\"))","v":""},"2b","$U$30","$V$30"]
[35792,{"$f":"Menu!$F$29","v":"X"},{"$f":"Menu!$J$29","v":2020},{"$f":"IF(ISBLANK(INDIRECT(\"'\"&F9422&\"'!\"&G9422)),\"\",INDIRECT(\"'\"&F9422&\"'!\"&G9422))","v":""},{"$f":"IF(ISBLANK(INDIRECT(\"'\"&F9422&\"'!\"&H9422)),\"\",IFERROR(VLOOKUP(TEXT(INDIRECT(\"'\"&F9422&\"'!\"&H9422),\"0\"),Notes!$B$5:$C$100,2,FALSE),\"\"))","v":""},"2b","$U$36","$V$36"]
[35793,{"$f":"Menu!$F$29","v":"X"},{"$f":"Menu!$J$29","v":2020},{"$f":"IF(ISBLANK(INDIRECT(\"'\"&F9423&\"'!\"&G9423)),\"\",INDIRECT(\"'\"&F9423&\"'!\"&G9423))","v":""},{"$f":"IF(ISBLANK(INDIRECT(\"'\"&F9423&\"'!\"&H9423)),\"\",IFERROR(VLOOKUP(TEXT(INDIRECT(\"'\"&F9423&\"'!\"&H9423),\"0\"),Notes!$B$5:$C$100,2,FALSE),\"\"))","v":""},"2b","$U$37","$V$37"]
[35795,{"$f":"Menu!$F$29","v":"X"},{"$f":"Menu!$J$29","v":2020},{"$f":"IF(ISBLANK(INDIRECT(\"'\"&F9424&\"'!\"&G9424)),\"\",INDIRECT(\"'\"&F9424&\"'!\"&G9424))","v":""},{"$f":"IF(ISBLANK(INDIRECT(\"'\"&F9424&\"'!\"&H9424)),\"\",IFERROR(VLOOKUP(TEXT(INDIRECT(\"'\"&F9424&\"'!\"&H9424),\"0\"),Notes!$B$5:$C$100,2,FALSE),\"\"))","v":""},"2b","$U$49","$V$49"]
[35796,{"$f":"Menu!$F$29","v":"X"},{"$f":"Menu!$J$29","v":2020},{"$f":"IF(ISBLANK(INDIRECT(\"'\"&F9425&\"'!\"&G9425)),\"\",INDIRECT(\"'\"&F9425&\"'!\"&G9425))","v":""},{"$f":"IF(ISBLANK(INDIRECT(\"'\"&F9425&\"'!\"&H9425)),\"\",IFERROR(VLOOKUP(TEXT(INDIRECT(\"'\"&F9425&\"'!\"&H9425),\"0\"),Notes!$B$5:$C$100,2,FALSE),\"\"))","v":""},"2b","$U$50","$V$50"]
[35798,{"$f":"Menu!$F$29","v":"X"},{"$f":"Menu!$J$29","v":2020},{"$f":"IF(ISBLANK(INDIRECT(\"'\"&F9426&\"'!\"&G9426)),\"\",INDIRECT(\"'\"&F9426&\"'!\"&G9426))","v":""},{"$f":"IF(ISBLANK(INDIRECT(\"'\"&F9426&\"'!\"&H9426)),\"\",IFERROR(VLOOKUP(TEXT(INDIRECT(\"'\"&F9426&\"'!\"&H9426),\"0\"),Notes!$B$5:$C$100,2,FALSE),\"\"))","v":""},"2b","$U$44","$V$44"]
[35799,{"$f":"Menu!$F$29","v":"X"},{"$f":"Menu!$J$29","v":2020},{"$f":"IF(ISBLANK(INDIRECT(\"'\"&F9427&\"'!\"&G9427)),\"\",INDIRECT(\"'\"&F9427&\"'!\"&G9427))","v":""},{"$f":"IF(ISBLANK(INDIRECT(\"'\"&F9427&\"'!\"&H9427)),\"\",IFERROR(VLOOKUP(TEXT(INDIRECT(\"'\"&F9427&\"'!\"&H9427),\"0\"),Notes!$B$5:$C$100,2,FALSE),\"\"))","v":""},"2b","$U$45","$V$45"]
[35801,{"$f":"Menu!$F$29","v":"X"},{"$f":"Menu!$J$29","v":2020},{"$f":"IF(ISBLANK(INDIRECT(\"'\"&F9428&\"'!\"&G9428)),\"\",INDIRECT(\"'\"&F9428&\"'!\"&G9428))","v":""},{"$f":"IF(ISBLANK(INDIRECT(\"'\"&F9428&\"'!\"&H9428)),\"\",IFERROR(VLOOKUP(TEXT(INDIRECT(\"'\"&F9428&\"'!\"&H9428),\"0\"),Notes!$B$5:$C$100,2,FALSE),\"\"))","v":""},"2b","$AA$22","$AB$22"]
[35804,{"$f":"Menu!$F$29","v":"X"},{"$f":"Menu!$J$29","v":2020},{"$f":"IF(ISBLANK(INDIRECT(\"'\"&F9429&\"'!\"&G9429)),\"\",INDIRECT(\"'\"&F9429&\"'!\"&G9429))","v":""},{"$f":"IF(ISBLANK(INDIRECT(\"'\"&F9429&\"'!\"&H9429)),\"\",IFERROR(VLOOKUP(TEXT(INDIRECT(\"'\"&F9429&\"'!\"&H9429),\"0\"),Notes!$B$5:$C$100,2,FALSE),\"\"))","v":""},"2b","$AA$29","$AB$29"]
[35805,{"$f":"Menu!$F$29","v":"X"},{"$f":"Menu!$J$29","v":2020},{"$f":"IF(ISBLANK(INDIRECT(\"'\"&F9430&\"'!\"&G9430)),\"\",INDIRECT(\"'\"&F9430&\"'!\"&G9430))","v":""},{"$f":"IF(ISBLANK(INDIRECT(\"'\"&F9430&\"'!\"&H9430)),\"\",IFERROR(VLOOKUP(TEXT(INDIRECT(\"'\"&F9430&\"'!\"&H9430),\"0\"),Notes!$B$5:$C$100,2,FALSE),\"\"))","v":""},"2b","$AA$30","$AB$30"]
[35807,{"$f":"Menu!$F$29","v":"X"},{"$f":"Menu!$J$29","v":2020},{"$f":"IF(ISBLANK(INDIRECT(\"'\"&F9431&\"'!\"&G9431)),\"\",INDIRECT(\"'\"&F9431&\"'!\"&G9431))","v":""},{"$f":"IF(ISBLANK(INDIRECT(\"'\"&F9431&\"'!\"&H9431)),\"\",IFERROR(VLOOKUP(TEXT(INDIRECT(\"'\"&F9431&\"'!\"&H9431),\"0\"),Notes!$B$5:$C$100,2,FALSE),\"\"))","v":""},"2b","$AA$36","$AB$36"]
[35808,{"$f":"Menu!$F$29","v":"X"},{"$f":"Menu!$J$29","v":2020},{"$f":"IF(ISBLANK(INDIRECT(\"'\"&F9432&\"'!\"&G9432)),\"\",INDIRECT(\"'\"&F9432&\"'!\"&G9432))","v":""},{"$f":"IF(ISBLANK(INDIRECT(\"'\"&F9432&\"'!\"&H9432)),\"\",IFERROR(VLOOKUP(TEXT(INDIRECT(\"'\"&F9432&\"'!\"&H9432),\"0\"),Notes!$B$5:$C$100,2,FALSE),\"\"))","v":""},"2b","$AA$37","$AB$37"]
[35810,{"$f":"Menu!$F$29","v":"X"},{"$f":"Menu!$J$29","v":2020},{"$f":"IF(ISBLANK(INDIRECT(\"'\"&F9433&\"'!\"&G9433)),\"\",INDIRECT(\"'\"&F9433&\"'!\"&G9433))","v":""},{"$f":"IF(ISBLANK(INDIRECT(\"'\"&F9433&\"'!\"&H9433)),\"\",IFERROR(VLOOKUP(TEXT(INDIRECT(\"'\"&F9433&\"'!\"&H9433),\"0\"),Notes!$B$5:$C$100,2,FALSE),\"\"))","v":""},"2b","$AA$49","$AB$49"]
[35811,{"$f":"Menu!$F$29","v":"X"},{"$f":"Menu!$J$29","v":2020},{"$f":"IF(ISBLANK(INDIRECT(\"'\"&F9434&\"'!\"&G9434)),\"\",INDIRECT(\"'\"&F9434&\"'!\"&G9434))","v":""},{"$f":"IF(ISBLANK(INDIRECT(\"'\"&F9434&\"'!\"&H9434)),\"\",IFERROR(VLOOKUP(TEXT(INDIRECT(\"'\"&F9434&\"'!\"&H9434),\"0\"),Notes!$B$5:$C$100,2,FALSE),\"\"))","v":""},"2b","$AA$50","$AB$50"]
[35813,{"$f":"Menu!$F$29","v":"X"},{"$f":"Menu!$J$29","v":2020},{"$f":"IF(ISBLANK(INDIRECT(\"'\"&F9435&\"'!\"&G9435)),\"\",INDIRECT(\"'\"&F9435&\"'!\"&G9435))","v":""},{"$f":"IF(ISBLANK(INDIRECT(\"'\"&F9435&\"'!\"&H9435)),\"\",IFERROR(VLOOKUP(TEXT(INDIRECT(\"'\"&F9435&\"'!\"&H9435),\"0\"),Notes!$B$5:$C$100,2,FALSE),\"\"))","v":""},"2b","$AA$44","$AB$44"]
[35814,{"$f":"Menu!$F$29","v":"X"},{"$f":"Menu!$J$29","v":2020},{"$f":"IF(ISBLANK(INDIRECT(\"'\"&F9436&\"'!\"&G9436)),\"\",INDIRECT(\"'\"&F9436&\"'!\"&G9436))","v":""},{"$f":"IF(ISBLANK(INDIRECT(\"'\"&F9436&\"'!\"&H9436)),\"\",IFERROR(VLOOKUP(TEXT(INDIRECT(\"'\"&F9436&\"'!\"&H9436),\"0\"),Notes!$B$5:$C$100,2,FALSE),\"\"))","v":""},"2b","$AA$45","$AB$45"]
[35846,{"$f":"Menu!$F$29","v":"X"},{"$f":"Menu!$J$29","v":2020},{"$f":"IF(ISBLANK(INDIRECT(\"'\"&F9437&\"'!\"&G9437)),\"\",INDIRECT(\"'\"&F9437&\"'!\"&G9437))","v":""},{"$f":"IF(ISBLANK(INDIRECT(\"'\"&F9437&\"'!\"&H9437)),\"\",IFERROR(VLOOKUP(TEXT(INDIRECT(\"'\"&F9437&\"'!\"&H9437),\"0\"),Notes!$B$5:$C$100,2,FALSE),\"\"))","v":""},"2e","$BK$23","$BL$23"]
[35849,{"$f":"Menu!$F$29","v":"X"},{"$f":"Menu!$J$29","v":2020},{"$f":"IF(ISBLANK(INDIRECT(\"'\"&F9438&\"'!\"&G9438)),\"\",INDIRECT(\"'\"&F9438&\"'!\"&G9438))","v":""},{"$f":"IF(ISBLANK(INDIRECT(\"'\"&F9438&\"'!\"&H9438)),\"\",IFERROR(VLOOKUP(TEXT(INDIRECT(\"'\"&F9438&\"'!\"&H9438),\"0\"),Notes!$B$5:$C$100,2,FALSE),\"\"))","v":""},"2e","$BK$30","$BL$30"]
[35850,{"$f":"Menu!$F$29","v":"X"},{"$f":"Menu!$J$29","v":2020},{"$f":"IF(ISBLANK(INDIRECT(\"'\"&F9439&\"'!\"&G9439)),\"\",INDIRECT(\"'\"&F9439&\"'!\"&G9439))","v":""},{"$f":"IF(ISBLANK(INDIRECT(\"'\"&F9439&\"'!\"&H9439)),\"\",IFERROR(VLOOKUP(TEXT(INDIRECT(\"'\"&F9439&\"'!\"&H9439),\"0\"),Notes!$B$5:$C$100,2,FALSE),\"\"))","v":""},"2e","$BK$31","$BL$31"]
[35852,{"$f":"Menu!$F$29","v":"X"},{"$f":"Menu!$J$29","v":2020},{"$f":"IF(ISBLANK(INDIRECT(\"'\"&F9440&\"'!\"&G9440)),\"\",INDIRECT(\"'\"&F9440&\"'!\"&G9440))","v":""},{"$f":"IF(ISBLANK(INDIRECT(\"'\"&F9440&\"'!\"&H9440)),\"\",IFERROR(VLOOKUP(TEXT(INDIRECT(\"'\"&F9440&\"'!\"&H9440),\"0\"),Notes!$B$5:$C$100,2,FALSE),\"\"))","v":""},"2e","$BK$37","$BL$37"]
[35853,{"$f":"Menu!$F$29","v":"X"},{"$f":"Menu!$J$29","v":2020},{"$f":"IF(ISBLANK(INDIRECT(\"'\"&F9441&\"'!\"&G9441)),\"\",INDIRECT(\"'\"&F9441&\"'!\"&G9441))","v":""},{"$f":"IF(ISBLANK(INDIRECT(\"'\"&F9441&\"'!\"&H9441)),\"\",IFERROR(VLOOKUP(TEXT(INDIRECT(\"'\"&F9441&\"'!\"&H9441),\"0\"),Notes!$B$5:$C$100,2,FALSE),\"\"))","v":""},"2e","$BK$38","$BL$38"]
[35855,{"$f":"Menu!$F$29","v":"X"},{"$f":"Menu!$J$29","v":2020},{"$f":"IF(ISBLANK(INDIRECT(\"'\"&F9442&\"'!\"&G9442)),\"\",INDIRECT(\"'\"&F9442&\"'!\"&G9442))","v":""},{"$f":"IF(ISBLANK(INDIRECT(\"'\"&F9442&\"'!\"&H9442)),\"\",IFERROR(VLOOKUP(TEXT(INDIRECT(\"'\"&F9442&\"'!\"&H9442),\"0\"),Notes!$B$5:$C$100,2,FALSE),\"\"))","v":""},"2e","$BK$50","$BL$50"]
[35856,{"$f":"Menu!$F$29","v":"X"},{"$f":"Menu!$J$29","v":2020},{"$f":"IF(ISBLANK(INDIRECT(\"'\"&F9443&\"'!\"&G9443)),\"\",INDIRECT(\"'\"&F9443&\"'!\"&G9443))","v":""},{"$f":"IF(ISBLANK(INDIRECT(\"'\"&F9443&\"'!\"&H9443)),\"\",IFERROR(VLOOKUP(TEXT(INDIRECT(\"'\"&F9443&\"'!\"&H9443),\"0\"),Notes!$B$5:$C$100,2,FALSE),\"\"))","v":""},"2e","$BK$51","$BL$51"]
[35858,{"$f":"Menu!$F$29","v":"X"},{"$f":"Menu!$J$29","v":2020},{"$f":"IF(ISBLANK(INDIRECT(\"'\"&F9444&\"'!\"&G9444)),\"\",INDIRECT(\"'\"&F9444&\"'!\"&G9444))","v":""},{"$f":"IF(ISBLANK(INDIRECT(\"'\"&F9444&\"'!\"&H9444)),\"\",IFERROR(VLOOKUP(TEXT(INDIRECT(\"'\"&F9444&\"'!\"&H9444),\"0\"),Notes!$B$5:$C$100,2,FALSE),\"\"))","v":""},"2e","$BK$45","$BL$45"]
[35859,{"$f":"Menu!$F$29","v":"X"},{"$f":"Menu!$J$29","v":2020},{"$f":"IF(ISBLANK(INDIRECT(\"'\"&F9445&\"'!\"&G9445)),\"\",INDIRECT(\"'\"&F9445&\"'!\"&G9445))","v":""},{"$f":"IF(ISBLANK(INDIRECT(\"'\"&F9445&\"'!\"&H9445)),\"\",IFERROR(VLOOKUP(TEXT(INDIRECT(\"'\"&F9445&\"'!\"&H9445),\"0\"),Notes!$B$5:$C$100,2,FALSE),\"\"))","v":""},"2e","$BK$46","$BL$46"]
[35861,{"$f":"Menu!$F$29","v":"X"},{"$f":"Menu!$J$29","v":2020},{"$f":"IF(ISBLANK(INDIRECT(\"'\"&F9446&\"'!\"&G9446)),\"\",INDIRECT(\"'\"&F9446&\"'!\"&G9446))","v":""},{"$f":"IF(ISBLANK(INDIRECT(\"'\"&F9446&\"'!\"&H9446)),\"\",IFERROR(VLOOKUP(TEXT(INDIRECT(\"'\"&F9446&\"'!\"&H9446),\"0\"),Notes!$B$5:$C$100,2,FALSE),\"\"))","v":""},"2e","$I$23","$J$23"]
[35864,{"$f":"Menu!$F$29","v":"X"},{"$f":"Menu!$J$29","v":2020},{"$f":"IF(ISBLANK(INDIRECT(\"'\"&F9447&\"'!\"&G9447)),\"\",INDIRECT(\"'\"&F9447&\"'!\"&G9447))","v":""},{"$f":"IF(ISBLANK(INDIRECT(\"'\"&F9447&\"'!\"&H9447)),\"\",IFERROR(VLOOKUP(TEXT(INDIRECT(\"'\"&F9447&\"'!\"&H9447),\"0\"),Notes!$B$5:$C$100,2,FALSE),\"\"))","v":""},"2e","$I$30","$J$30"]
[35865,{"$f":"Menu!$F$29","v":"X"},{"$f":"Menu!$J$29","v":2020},{"$f":"IF(ISBLANK(INDIRECT(\"'\"&F9448&\"'!\"&G9448)),\"\",INDIRECT(\"'\"&F9448&\"'!\"&G9448))","v":""},{"$f":"IF(ISBLANK(INDIRECT(\"'\"&F9448&\"'!\"&H9448)),\"\",IFERROR(VLOOKUP(TEXT(INDIRECT(\"'\"&F9448&\"'!\"&H9448),\"0\"),Notes!$B$5:$C$100,2,FALSE),\"\"))","v":""},"2e","$I$31","$J$31"]
[35867,{"$f":"Menu!$F$29","v":"X"},{"$f":"Menu!$J$29","v":2020},{"$f":"IF(ISBLANK(INDIRECT(\"'\"&F9449&\"'!\"&G9449)),\"\",INDIRECT(\"'\"&F9449&\"'!\"&G9449))","v":""},{"$f":"IF(ISBLANK(INDIRECT(\"'\"&F9449&\"'!\"&H9449)),\"\",IFERROR(VLOOKUP(TEXT(INDIRECT(\"'\"&F9449&\"'!\"&H9449),\"0\"),Notes!$B$5:$C$100,2,FALSE),\"\"))","v":""},"2e","$I$37","$J$37"]
[35868,{"$f":"Menu!$F$29","v":"X"},{"$f":"Menu!$J$29","v":2020},{"$f":"IF(ISBLANK(INDIRECT(\"'\"&F9450&\"'!\"&G9450)),\"\",INDIRECT(\"'\"&F9450&\"'!\"&G9450))","v":""},{"$f":"IF(ISBLANK(INDIRECT(\"'\"&F9450&\"'!\"&H9450)),\"\",IFERROR(VLOOKUP(TEXT(INDIRECT(\"'\"&F9450&\"'!\"&H9450),\"0\"),Notes!$B$5:$C$100,2,FALSE),\"\"))","v":""},"2e","$I$38","$J$38"]
[35870,{"$f":"Menu!$F$29","v":"X"},{"$f":"Menu!$J$29","v":2020},{"$f":"IF(ISBLANK(INDIRECT(\"'\"&F9451&\"'!\"&G9451)),\"\",INDIRECT(\"'\"&F9451&\"'!\"&G9451))","v":""},{"$f":"IF(ISBLANK(INDIRECT(\"'\"&F9451&\"'!\"&H9451)),\"\",IFERROR(VLOOKUP(TEXT(INDIRECT(\"'\"&F9451&\"'!\"&H9451),\"0\"),Notes!$B$5:$C$100,2,FALSE),\"\"))","v":""},"2e","$I$50","$J$50"]
[35871,{"$f":"Menu!$F$29","v":"X"},{"$f":"Menu!$J$29","v":2020},{"$f":"IF(ISBLANK(INDIRECT(\"'\"&F9452&\"'!\"&G9452)),\"\",INDIRECT(\"'\"&F9452&\"'!\"&G9452))","v":""},{"$f":"IF(ISBLANK(INDIRECT(\"'\"&F9452&\"'!\"&H9452)),\"\",IFERROR(VLOOKUP(TEXT(INDIRECT(\"'\"&F9452&\"'!\"&H9452),\"0\"),Notes!$B$5:$C$100,2,FALSE),\"\"))","v":""},"2e","$I$51","$J$51"]
[35873,{"$f":"Menu!$F$29","v":"X"},{"$f":"Menu!$J$29","v":2020},{"$f":"IF(ISBLANK(INDIRECT(\"'\"&F9453&\"'!\"&G9453)),\"\",INDIRECT(\"'\"&F9453&\"'!\"&G9453))","v":""},{"$f":"IF(ISBLANK(INDIRECT(\"'\"&F9453&\"'!\"&H9453)),\"\",IFERROR(VLOOKUP(TEXT(INDIRECT(\"'\"&F9453&\"'!\"&H9453),\"0\"),Notes!$B$5:$C$100,2,FALSE),\"\"))","v":""},"2e","$I$45","$J$45"]
[35874,{"$f":"Menu!$F$29","v":"X"},{"$f":"Menu!$J$29","v":2020},{"$f":"IF(ISBLANK(INDIRECT(\"'\"&F9454&\"'!\"&G9454)),\"\",INDIRECT(\"'\"&F9454&\"'!\"&G9454))","v":""},{"$f":"IF(ISBLANK(INDIRECT(\"'\"&F9454&\"'!\"&H9454)),\"\",IFERROR(VLOOKUP(TEXT(INDIRECT(\"'\"&F9454&\"'!\"&H9454),\"0\"),Notes!$B$5:$C$100,2,FALSE),\"\"))","v":""},"2e","$I$46","$J$46"]
[35876,{"$f":"Menu!$F$29","v":"X"},{"$f":"Menu!$J$29","v":2020},{"$f":"IF(ISBLANK(INDIRECT(\"'\"&F9455&\"'!\"&G9455)),\"\",INDIRECT(\"'\"&F9455&\"'!\"&G9455))","v":""},{"$f":"IF(ISBLANK(INDIRECT(\"'\"&F9455&\"'!\"&H9455)),\"\",IFERROR(VLOOKUP(TEXT(INDIRECT(\"'\"&F9455&\"'!\"&H9455),\"0\"),Notes!$B$5:$C$100,2,FALSE),\"\"))","v":""},"2e","$O$23","$P$23"]
[35879,{"$f":"Menu!$F$29","v":"X"},{"$f":"Menu!$J$29","v":2020},{"$f":"IF(ISBLANK(INDIRECT(\"'\"&F9456&\"'!\"&G9456)),\"\",INDIRECT(\"'\"&F9456&\"'!\"&G9456))","v":""},{"$f":"IF(ISBLANK(INDIRECT(\"'\"&F9456&\"'!\"&H9456)),\"\",IFERROR(VLOOKUP(TEXT(INDIRECT(\"'\"&F9456&\"'!\"&H9456),\"0\"),Notes!$B$5:$C$100,2,FALSE),\"\"))","v":""},"2e","$O$30","$P$30"]
[35880,{"$f":"Menu!$F$29","v":"X"},{"$f":"Menu!$J$29","v":2020},{"$f":"IF(ISBLANK(INDIRECT(\"'\"&F9457&\"'!\"&G9457)),\"\",INDIRECT(\"'\"&F9457&\"'!\"&G9457))","v":""},{"$f":"IF(ISBLANK(INDIRECT(\"'\"&F9457&\"'!\"&H9457)),\"\",IFERROR(VLOOKUP(TEXT(INDIRECT(\"'\"&F9457&\"'!\"&H9457),\"0\"),Notes!$B$5:$C$100,2,FALSE),\"\"))","v":""},"2e","$O$31","$P$31"]
[35882,{"$f":"Menu!$F$29","v":"X"},{"$f":"Menu!$J$29","v":2020},{"$f":"IF(ISBLANK(INDIRECT(\"'\"&F9458&\"'!\"&G9458)),\"\",INDIRECT(\"'\"&F9458&\"'!\"&G9458))","v":""},{"$f":"IF(ISBLANK(INDIRECT(\"'\"&F9458&\"'!\"&H9458)),\"\",IFERROR(VLOOKUP(TEXT(INDIRECT(\"'\"&F9458&\"'!\"&H9458),\"0\"),Notes!$B$5:$C$100,2,FALSE),\"\"))","v":""},"2e","$O$37","$P$37"]
[35883,{"$f":"Menu!$F$29","v":"X"},{"$f":"Menu!$J$29","v":2020},{"$f":"IF(ISBLANK(INDIRECT(\"'\"&F9459&\"'!\"&G9459)),\"\",INDIRECT(\"'\"&F9459&\"'!\"&G9459))","v":""},{"$f":"IF(ISBLANK(INDIRECT(\"'\"&F9459&\"'!\"&H9459)),\"\",IFERROR(VLOOKUP(TEXT(INDIRECT(\"'\"&F9459&\"'!\"&H9459),\"0\"),Notes!$B$5:$C$100,2,FALSE),\"\"))","v":""},"2e","$O$38","$P$38"]
[35885,{"$f":"Menu!$F$29","v":"X"},{"$f":"Menu!$J$29","v":2020},{"$f":"IF(ISBLANK(INDIRECT(\"'\"&F9460&\"'!\"&G9460)),\"\",INDIRECT(\"'\"&F9460&\"'!\"&G9460))","v":""},{"$f":"IF(ISBLANK(INDIRECT(\"'\"&F9460&\"'!\"&H9460)),\"\",IFERROR(VLOOKUP(TEXT(INDIRECT(\"'\"&F9460&\"'!\"&H9460),\"0\"),Notes!$B$5:$C$100,2,FALSE),\"\"))","v":""},"2e","$O$50","$P$50"]
[35886,{"$f":"Menu!$F$29","v":"X"},{"$f":"Menu!$J$29","v":2020},{"$f":"IF(ISBLANK(INDIRECT(\"'\"&F9461&\"'!\"&G9461)),\"\",INDIRECT(\"'\"&F9461&\"'!\"&G9461))","v":""},{"$f":"IF(ISBLANK(INDIRECT(\"'\"&F9461&\"'!\"&H9461)),\"\",IFERROR(VLOOKUP(TEXT(INDIRECT(\"'\"&F9461&\"'!\"&H9461),\"0\"),Notes!$B$5:$C$100,2,FALSE),\"\"))","v":""},"2e","$O$51","$P$51"]
[35888,{"$f":"Menu!$F$29","v":"X"},{"$f":"Menu!$J$29","v":2020},{"$f":"IF(ISBLANK(INDIRECT(\"'\"&F9462&\"'!\"&G9462)),\"\",INDIRECT(\"'\"&F9462&\"'!\"&G9462))","v":""},{"$f":"IF(ISBLANK(INDIRECT(\"'\"&F9462&\"'!\"&H9462)),\"\",IFERROR(VLOOKUP(TEXT(INDIRECT(\"'\"&F9462&\"'!\"&H9462),\"0\"),Notes!$B$5:$C$100,2,FALSE),\"\"))","v":""},"2e","$O$45","$P$45"]
[35889,{"$f":"Menu!$F$29","v":"X"},{"$f":"Menu!$J$29","v":2020},{"$f":"IF(ISBLANK(INDIRECT(\"'\"&F9463&\"'!\"&G9463)),\"\",INDIRECT(\"'\"&F9463&\"'!\"&G9463))","v":""},{"$f":"IF(ISBLANK(INDIRECT(\"'\"&F9463&\"'!\"&H9463)),\"\",IFERROR(VLOOKUP(TEXT(INDIRECT(\"'\"&F9463&\"'!\"&H9463),\"0\"),Notes!$B$5:$C$100,2,FALSE),\"\"))","v":""},"2e","$O$46","$P$46"]
[35891,{"$f":"Menu!$F$29","v":"X"},{"$f":"Menu!$J$29","v":2020},{"$f":"IF(ISBLANK(INDIRECT(\"'\"&F9464&\"'!\"&G9464)),\"\",INDIRECT(\"'\"&F9464&\"'!\"&G9464))","v":""},{"$f":"IF(ISBLANK(INDIRECT(\"'\"&F9464&\"'!\"&H9464)),\"\",IFERROR(VLOOKUP(TEXT(INDIRECT(\"'\"&F9464&\"'!\"&H9464),\"0\"),Notes!$B$5:$C$100,2,FALSE),\"\"))","v":""},"2e","$U$23","$V$23"]
[35894,{"$f":"Menu!$F$29","v":"X"},{"$f":"Menu!$J$29","v":2020},{"$f":"IF(ISBLANK(INDIRECT(\"'\"&F9465&\"'!\"&G9465)),\"\",INDIRECT(\"'\"&F9465&\"'!\"&G9465))","v":""},{"$f":"IF(ISBLANK(INDIRECT(\"'\"&F9465&\"'!\"&H9465)),\"\",IFERROR(VLOOKUP(TEXT(INDIRECT(\"'\"&F9465&\"'!\"&H9465),\"0\"),Notes!$B$5:$C$100,2,FALSE),\"\"))","v":""},"2e","$U$30","$V$30"]
[35895,{"$f":"Menu!$F$29","v":"X"},{"$f":"Menu!$J$29","v":2020},{"$f":"IF(ISBLANK(INDIRECT(\"'\"&F9466&\"'!\"&G9466)),\"\",INDIRECT(\"'\"&F9466&\"'!\"&G9466))","v":""},{"$f":"IF(ISBLANK(INDIRECT(\"'\"&F9466&\"'!\"&H9466)),\"\",IFERROR(VLOOKUP(TEXT(INDIRECT(\"'\"&F9466&\"'!\"&H9466),\"0\"),Notes!$B$5:$C$100,2,FALSE),\"\"))","v":""},"2e","$U$31","$V$31"]
[35897,{"$f":"Menu!$F$29","v":"X"},{"$f":"Menu!$J$29","v":2020},{"$f":"IF(ISBLANK(INDIRECT(\"'\"&F9467&\"'!\"&G9467)),\"\",INDIRECT(\"'\"&F9467&\"'!\"&G9467))","v":""},{"$f":"IF(ISBLANK(INDIRECT(\"'\"&F9467&\"'!\"&H9467)),\"\",IFERROR(VLOOKUP(TEXT(INDIRECT(\"'\"&F9467&\"'!\"&H9467),\"0\"),Notes!$B$5:$C$100,2,FALSE),\"\"))","v":""},"2e","$U$37","$V$37"]
[35898,{"$f":"Menu!$F$29","v":"X"},{"$f":"Menu!$J$29","v":2020},{"$f":"IF(ISBLANK(INDIRECT(\"'\"&F9468&\"'!\"&G9468)),\"\",INDIRECT(\"'\"&F9468&\"'!\"&G9468))","v":""},{"$f":"IF(ISBLANK(INDIRECT(\"'\"&F9468&\"'!\"&H9468)),\"\",IFERROR(VLOOKUP(TEXT(INDIRECT(\"'\"&F9468&\"'!\"&H9468),\"0\"),Notes!$B$5:$C$100,2,FALSE),\"\"))","v":""},"2e","$U$38","$V$38"]
[35900,{"$f":"Menu!$F$29","v":"X"},{"$f":"Menu!$J$29","v":2020},{"$f":"IF(ISBLANK(INDIRECT(\"'\"&F9469&\"'!\"&G9469)),\"\",INDIRECT(\"'\"&F9469&\"'!\"&G9469))","v":""},{"$f":"IF(ISBLANK(INDIRECT(\"'\"&F9469&\"'!\"&H9469)),\"\",IFERROR(VLOOKUP(TEXT(INDIRECT(\"'\"&F9469&\"'!\"&H9469),\"0\"),Notes!$B$5:$C$100,2,FALSE),\"\"))","v":""},"2e","$U$50","$V$50"]
[35901,{"$f":"Menu!$F$29","v":"X"},{"$f":"Menu!$J$29","v":2020},{"$f":"IF(ISBLANK(INDIRECT(\"'\"&F9470&\"'!\"&G9470)),\"\",INDIRECT(\"'\"&F9470&\"'!\"&G9470))","v":""},{"$f":"IF(ISBLANK(INDIRECT(\"'\"&F9470&\"'!\"&H9470)),\"\",IFERROR(VLOOKUP(TEXT(INDIRECT(\"'\"&F9470&\"'!\"&H9470),\"0\"),Notes!$B$5:$C$100,2,FALSE),\"\"))","v":""},"2e","$U$51","$V$51"]
[35903,{"$f":"Menu!$F$29","v":"X"},{"$f":"Menu!$J$29","v":2020},{"$f":"IF(ISBLANK(INDIRECT(\"'\"&F9471&\"'!\"&G9471)),\"\",INDIRECT(\"'\"&F9471&\"'!\"&G9471))","v":""},{"$f":"IF(ISBLANK(INDIRECT(\"'\"&F9471&\"'!\"&H9471)),\"\",IFERROR(VLOOKUP(TEXT(INDIRECT(\"'\"&F9471&\"'!\"&H9471),\"0\"),Notes!$B$5:$C$100,2,FALSE),\"\"))","v":""},"2e","$U$45","$V$45"]
[35904,{"$f":"Menu!$F$29","v":"X"},{"$f":"Menu!$J$29","v":2020},{"$f":"IF(ISBLANK(INDIRECT(\"'\"&F9472&\"'!\"&G9472)),\"\",INDIRECT(\"'\"&F9472&\"'!\"&G9472))","v":""},{"$f":"IF(ISBLANK(INDIRECT(\"'\"&F9472&\"'!\"&H9472)),\"\",IFERROR(VLOOKUP(TEXT(INDIRECT(\"'\"&F9472&\"'!\"&H9472),\"0\"),Notes!$B$5:$C$100,2,FALSE),\"\"))","v":""},"2e","$U$46","$V$46"]
[35906,{"$f":"Menu!$F$29","v":"X"},{"$f":"Menu!$J$29","v":2020},{"$f":"IF(ISBLANK(INDIRECT(\"'\"&F9473&\"'!\"&G9473)),\"\",INDIRECT(\"'\"&F9473&\"'!\"&G9473))","v":""},{"$f":"IF(ISBLANK(INDIRECT(\"'\"&F9473&\"'!\"&H9473)),\"\",IFERROR(VLOOKUP(TEXT(INDIRECT(\"'\"&F9473&\"'!\"&H9473),\"0\"),Notes!$B$5:$C$100,2,FALSE),\"\"))","v":""},"2e","$AA$23","$AB$23"]
[35909,{"$f":"Menu!$F$29","v":"X"},{"$f":"Menu!$J$29","v":2020},{"$f":"IF(ISBLANK(INDIRECT(\"'\"&F9474&\"'!\"&G9474)),\"\",INDIRECT(\"'\"&F9474&\"'!\"&G9474))","v":""},{"$f":"IF(ISBLANK(INDIRECT(\"'\"&F9474&\"'!\"&H9474)),\"\",IFERROR(VLOOKUP(TEXT(INDIRECT(\"'\"&F9474&\"'!\"&H9474),\"0\"),Notes!$B$5:$C$100,2,FALSE),\"\"))","v":""},"2e","$AA$30",{"$f":"IF(LEN(TRIM(MID(G9474,4,10)))-LEN(SUBSTITUTE(TRIM(MID(G9474,4,10)),\"$\",\"\"))=0,\"$\"&CHAR(CODE(MID(G9474,2,1))+1)&\"$\"&TRIM(MID(G9474,4,10)),\"$\"&MID(G9474,2,1)&CHAR(CODE(MID(G9474,3,1))+1)&\"$\"&TRIM(MID(G9474,5,11)))","v":"$AB$30"}]
[35910,{"$f":"Menu!$F$29","v":"X"},{"$f":"Menu!$J$29","v":2020},{"$f":"IF(ISBLANK(INDIRECT(\"'\"&F9475&\"'!\"&G9475)),\"\",INDIRECT(\"'\"&F9475&\"'!\"&G9475))","v":""},{"$f":"IF(ISBLANK(INDIRECT(\"'\"&F9475&\"'!\"&H9475)),\"\",IFERROR(VLOOKUP(TEXT(INDIRECT(\"'\"&F9475&\"'!\"&H9475),\"0\"),Notes!$B$5:$C$100,2,FALSE),\"\"))","v":""},"2e","$AA$31","$AB$31"]
[35912,{"$f":"Menu!$F$29","v":"X"},{"$f":"Menu!$J$29","v":2020},{"$f":"IF(ISBLANK(INDIRECT(\"'\"&F9476&\"'!\"&G9476)),\"\",INDIRECT(\"'\"&F9476&\"'!\"&G9476))","v":""},{"$f":"IF(ISBLANK(INDIRECT(\"'\"&F9476&\"'!\"&H9476)),\"\",IFERROR(VLOOKUP(TEXT(INDIRECT(\"'\"&F9476&\"'!\"&H9476),\"0\"),Notes!$B$5:$C$100,2,FALSE),\"\"))","v":""},"2e","$AA$37","$AB$37"]
[35913,{"$f":"Menu!$F$29","v":"X"},{"$f":"Menu!$J$29","v":2020},{"$f":"IF(ISBLANK(INDIRECT(\"'\"&F9477&\"'!\"&G9477)),\"\",INDIRECT(\"'\"&F9477&\"'!\"&G9477))","v":""},{"$f":"IF(ISBLANK(INDIRECT(\"'\"&F9477&\"'!\"&H9477)),\"\",IFERROR(VLOOKUP(TEXT(INDIRECT(\"'\"&F9477&\"'!\"&H9477),\"0\"),Notes!$B$5:$C$100,2,FALSE),\"\"))","v":""},"2e","$AA$38","$AB$38"]
[35915,{"$f":"Menu!$F$29","v":"X"},{"$f":"Menu!$J$29","v":2020},{"$f":"IF(ISBLANK(INDIRECT(\"'\"&F9478&\"'!\"&G9478)),\"\",INDIRECT(\"'\"&F9478&\"'!\"&G9478))","v":""},{"$f":"IF(ISBLANK(INDIRECT(\"'\"&F9478&\"'!\"&H9478)),\"\",IFERROR(VLOOKUP(TEXT(INDIRECT(\"'\"&F9478&\"'!\"&H9478),\"0\"),Notes!$B$5:$C$100,2,FALSE),\"\"))","v":""},"2e","$AA$50","$AB$50"]
[35916,{"$f":"Menu!$F$29","v":"X"},{"$f":"Menu!$J$29","v":2020},{"$f":"IF(ISBLANK(INDIRECT(\"'\"&F9479&\"'!\"&G9479)),\"\",INDIRECT(\"'\"&F9479&\"'!\"&G9479))","v":""},{"$f":"IF(ISBLANK(INDIRECT(\"'\"&F9479&\"'!\"&H9479)),\"\",IFERROR(VLOOKUP(TEXT(INDIRECT(\"'\"&F9479&\"'!\"&H9479),\"0\"),Notes!$B$5:$C$100,2,FALSE),\"\"))","v":""},"2e","$AA$51","$AB$51"]
[35918,{"$f":"Menu!$F$29","v":"X"},{"$f":"Menu!$J$29","v":2020},{"$f":"IF(ISBLANK(INDIRECT(\"'\"&F9480&\"'!\"&G9480)),\"\",INDIRECT(\"'\"&F9480&\"'!\"&G9480))","v":""},{"$f":"IF(ISBLANK(INDIRECT(\"'\"&F9480&\"'!\"&H9480)),\"\",IFERROR(VLOOKUP(TEXT(INDIRECT(\"'\"&F9480&\"'!\"&H9480),\"0\"),Notes!$B$5:$C$100,2,FALSE),\"\"))","v":""},"2e","$AA$45","$AB$45"]
[35919,{"$f":"Menu!$F$29","v":"X"},{"$f":"Menu!$J$29","v":2020},{"$f":"IF(ISBLANK(INDIRECT(\"'\"&F9481&\"'!\"&G9481)),\"\",INDIRECT(\"'\"&F9481&\"'!\"&G9481))","v":""},{"$f":"IF(ISBLANK(INDIRECT(\"'\"&F9481&\"'!\"&H9481)),\"\",IFERROR(VLOOKUP(TEXT(INDIRECT(\"'\"&F9481&\"'!\"&H9481),\"0\"),Notes!$B$5:$C$100,2,FALSE),\"\"))","v":""},"2e","$AA$46","$AB$46"]
[35921,{"$f":"Menu!$F$29","v":"X"},{"$f":"Menu!$J$29","v":2020},{"$f":"IF(ISBLANK(INDIRECT(\"'\"&F9482&\"'!\"&G9482)),\"\",INDIRECT(\"'\"&F9482&\"'!\"&G9482))","v":""},{"$f":"IF(ISBLANK(INDIRECT(\"'\"&F9482&\"'!\"&H9482)),\"\",IFERROR(VLOOKUP(TEXT(INDIRECT(\"'\"&F9482&\"'!\"&H9482),\"0\"),Notes!$B$5:$C$100,2,FALSE),\"\"))","v":""},"2e","$AG$23","$AH$23"]
[35924,{"$f":"Menu!$F$29","v":"X"},{"$f":"Menu!$J$29","v":2020},{"$f":"IF(ISBLANK(INDIRECT(\"'\"&F9483&\"'!\"&G9483)),\"\",INDIRECT(\"'\"&F9483&\"'!\"&G9483))","v":""},{"$f":"IF(ISBLANK(INDIRECT(\"'\"&F9483&\"'!\"&H9483)),\"\",IFERROR(VLOOKUP(TEXT(INDIRECT(\"'\"&F9483&\"'!\"&H9483),\"0\"),Notes!$B$5:$C$100,2,FALSE),\"\"))","v":""},"2e","$AG$30","$AH$30"]
[35925,{"$f":"Menu!$F$29","v":"X"},{"$f":"Menu!$J$29","v":2020},{"$f":"IF(ISBLANK(INDIRECT(\"'\"&F9484&\"'!\"&G9484)),\"\",INDIRECT(\"'\"&F9484&\"'!\"&G9484))","v":""},{"$f":"IF(ISBLANK(INDIRECT(\"'\"&F9484&\"'!\"&H9484)),\"\",IFERROR(VLOOKUP(TEXT(INDIRECT(\"'\"&F9484&\"'!\"&H9484),\"0\"),Notes!$B$5:$C$100,2,FALSE),\"\"))","v":""},"2e","$AG$31","$AH$31"]
[35927,{"$f":"Menu!$F$29","v":"X"},{"$f":"Menu!$J$29","v":2020},{"$f":"IF(ISBLANK(INDIRECT(\"'\"&F9485&\"'!\"&G9485)),\"\",INDIRECT(\"'\"&F9485&\"'!\"&G9485))","v":""},{"$f":"IF(ISBLANK(INDIRECT(\"'\"&F9485&\"'!\"&H9485)),\"\",IFERROR(VLOOKUP(TEXT(INDIRECT(\"'\"&F9485&\"'!\"&H9485),\"0\"),Notes!$B$5:$C$100,2,FALSE),\"\"))","v":""},"2e","$AG$37","$AH$37"]
[35928,{"$f":"Menu!$F$29","v":"X"},{"$f":"Menu!$J$29","v":2020},{"$f":"IF(ISBLANK(INDIRECT(\"'\"&F9486&\"'!\"&G9486)),\"\",INDIRECT(\"'\"&F9486&\"'!\"&G9486))","v":""},{"$f":"IF(ISBLANK(INDIRECT(\"'\"&F9486&\"'!\"&H9486)),\"\",IFERROR(VLOOKUP(TEXT(INDIRECT(\"'\"&F9486&\"'!\"&H9486),\"0\"),Notes!$B$5:$C$100,2,FALSE),\"\"))","v":""},"2e","$AG$38","$AH$38"]
[35930,{"$f":"Menu!$F$29","v":"X"},{"$f":"Menu!$J$29","v":2020},{"$f":"IF(ISBLANK(INDIRECT(\"'\"&F9487&\"'!\"&G9487)),\"\",INDIRECT(\"'\"&F9487&\"'!\"&G9487))","v":""},{"$f":"IF(ISBLANK(INDIRECT(\"'\"&F9487&\"'!\"&H9487)),\"\",IFERROR(VLOOKUP(TEXT(INDIRECT(\"'\"&F9487&\"'!\"&H9487),\"0\"),Notes!$B$5:$C$100,2,FALSE),\"\"))","v":""},"2e","$AG$50","$AH$50"]
[35931,{"$f":"Menu!$F$29","v":"X"},{"$f":"Menu!$J$29","v":2020},{"$f":"IF(ISBLANK(INDIRECT(\"'\"&F9488&\"'!\"&G9488)),\"\",INDIRECT(\"'\"&F9488&\"'!\"&G9488))","v":""},{"$f":"IF(ISBLANK(INDIRECT(\"'\"&F9488&\"'!\"&H9488)),\"\",IFERROR(VLOOKUP(TEXT(INDIRECT(\"'\"&F9488&\"'!\"&H9488),\"0\"),Notes!$B$5:$C$100,2,FALSE),\"\"))","v":""},"2e","$AG$51","$AH$51"]
[35933,{"$f":"Menu!$F$29","v":"X"},{"$f":"Menu!$J$29","v":2020},{"$f":"IF(ISBLANK(INDIRECT(\"'\"&F9489&\"'!\"&G9489)),\"\",INDIRECT(\"'\"&F9489&\"'!\"&G9489))","v":""},{"$f":"IF(ISBLANK(INDIRECT(\"'\"&F9489&\"'!\"&H9489)),\"\",IFERROR(VLOOKUP(TEXT(INDIRECT(\"'\"&F9489&\"'!\"&H9489),\"0\"),Notes!$B$5:$C$100,2,FALSE),\"\"))","v":""},"2e","$AG$45","$AH$45"]
[35934,{"$f":"Menu!$F$29","v":"X"},{"$f":"Menu!$J$29","v":2020},{"$f":"IF(ISBLANK(INDIRECT(\"'\"&F9490&\"'!\"&G9490)),\"\",INDIRECT(\"'\"&F9490&\"'!\"&G9490))","v":""},{"$f":"IF(ISBLANK(INDIRECT(\"'\"&F9490&\"'!\"&H9490)),\"\",IFERROR(VLOOKUP(TEXT(INDIRECT(\"'\"&F9490&\"'!\"&H9490),\"0\"),Notes!$B$5:$C$100,2,FALSE),\"\"))","v":""},"2e","$AG$46","$AH$46"]
[35936,{"$f":"Menu!$F$29","v":"X"},{"$f":"Menu!$J$29","v":2020},{"$f":"IF(ISBLANK(INDIRECT(\"'\"&F9491&\"'!\"&G9491)),\"\",INDIRECT(\"'\"&F9491&\"'!\"&G9491))","v":""},{"$f":"IF(ISBLANK(INDIRECT(\"'\"&F9491&\"'!\"&H9491)),\"\",IFERROR(VLOOKUP(TEXT(INDIRECT(\"'\"&F9491&\"'!\"&H9491),\"0\"),Notes!$B$5:$C$100,2,FALSE),\"\"))","v":""},"2e","$AM$23","$AN$23"]
[35939,{"$f":"Menu!$F$29","v":"X"},{"$f":"Menu!$J$29","v":2020},{"$f":"IF(ISBLANK(INDIRECT(\"'\"&F9492&\"'!\"&G9492)),\"\",INDIRECT(\"'\"&F9492&\"'!\"&G9492))","v":""},{"$f":"IF(ISBLANK(INDIRECT(\"'\"&F9492&\"'!\"&H9492)),\"\",IFERROR(VLOOKUP(TEXT(INDIRECT(\"'\"&F9492&\"'!\"&H9492),\"0\"),Notes!$B$5:$C$100,2,FALSE),\"\"))","v":""},"2e","$AM$30","$AN$30"]
[35940,{"$f":"Menu!$F$29","v":"X"},{"$f":"Menu!$J$29","v":2020},{"$f":"IF(ISBLANK(INDIRECT(\"'\"&F9493&\"'!\"&G9493)),\"\",INDIRECT(\"'\"&F9493&\"'!\"&G9493))","v":""},{"$f":"IF(ISBLANK(INDIRECT(\"'\"&F9493&\"'!\"&H9493)),\"\",IFERROR(VLOOKUP(TEXT(INDIRECT(\"'\"&F9493&\"'!\"&H9493),\"0\"),Notes!$B$5:$C$100,2,FALSE),\"\"))","v":""},"2e","$AM$31","$AN$31"]
[35942,{"$f":"Menu!$F$29","v":"X"},{"$f":"Menu!$J$29","v":2020},{"$f":"IF(ISBLANK(INDIRECT(\"'\"&F9494&\"'!\"&G9494)),\"\",INDIRECT(\"'\"&F9494&\"'!\"&G9494))","v":""},{"$f":"IF(ISBLANK(INDIRECT(\"'\"&F9494&\"'!\"&H9494)),\"\",IFERROR(VLOOKUP(TEXT(INDIRECT(\"'\"&F9494&\"'!\"&H9494),\"0\"),Notes!$B$5:$C$100,2,FALSE),\"\"))","v":""},"2e","$AM$37","$AN$37"]
[35943,{"$f":"Menu!$F$29","v":"X"},{"$f":"Menu!$J$29","v":2020},{"$f":"IF(ISBLANK(INDIRECT(\"'\"&F9495&\"'!\"&G9495)),\"\",INDIRECT(\"'\"&F9495&\"'!\"&G9495))","v":""},{"$f":"IF(ISBLANK(INDIRECT(\"'\"&F9495&\"'!\"&H9495)),\"\",IFERROR(VLOOKUP(TEXT(INDIRECT(\"'\"&F9495&\"'!\"&H9495),\"0\"),Notes!$B$5:$C$100,2,FALSE),\"\"))","v":""},"2e","$AM$38","$AN$38"]
[35945,{"$f":"Menu!$F$29","v":"X"},{"$f":"Menu!$J$29","v":2020},{"$f":"IF(ISBLANK(INDIRECT(\"'\"&F9496&\"'!\"&G9496)),\"\",INDIRECT(\"'\"&F9496&\"'!\"&G9496))","v":""},{"$f":"IF(ISBLANK(INDIRECT(\"'\"&F9496&\"'!\"&H9496)),\"\",IFERROR(VLOOKUP(TEXT(INDIRECT(\"'\"&F9496&\"'!\"&H9496),\"0\"),Notes!$B$5:$C$100,2,FALSE),\"\"))","v":""},"2e","$AM$50","$AN$50"]
[35946,{"$f":"Menu!$F$29","v":"X"},{"$f":"Menu!$J$29","v":2020},{"$f":"IF(ISBLANK(INDIRECT(\"'\"&F9497&\"'!\"&G9497)),\"\",INDIRECT(\"'\"&F9497&\"'!\"&G9497))","v":""},{"$f":"IF(ISBLANK(INDIRECT(\"'\"&F9497&\"'!\"&H9497)),\"\",IFERROR(VLOOKUP(TEXT(INDIRECT(\"'\"&F9497&\"'!\"&H9497),\"0\"),Notes!$B$5:$C$100,2,FALSE),\"\"))","v":""},"2e","$AM$51","$AN$51"]
[35948,{"$f":"Menu!$F$29","v":"X"},{"$f":"Menu!$J$29","v":2020},{"$f":"IF(ISBLANK(INDIRECT(\"'\"&F9498&\"'!\"&G9498)),\"\",INDIRECT(\"'\"&F9498&\"'!\"&G9498))","v":""},{"$f":"IF(ISBLANK(INDIRECT(\"'\"&F9498&\"'!\"&H9498)),\"\",IFERROR(VLOOKUP(TEXT(INDIRECT(\"'\"&F9498&\"'!\"&H9498),\"0\"),Notes!$B$5:$C$100,2,FALSE),\"\"))","v":""},"2e","$AM$45","$AN$45"]
[35949,{"$f":"Menu!$F$29","v":"X"},{"$f":"Menu!$J$29","v":2020},{"$f":"IF(ISBLANK(INDIRECT(\"'\"&F9499&\"'!\"&G9499)),\"\",INDIRECT(\"'\"&F9499&\"'!\"&G9499))","v":""},{"$f":"IF(ISBLANK(INDIRECT(\"'\"&F9499&\"'!\"&H9499)),\"\",IFERROR(VLOOKUP(TEXT(INDIRECT(\"'\"&F9499&\"'!\"&H9499),\"0\"),Notes!$B$5:$C$100,2,FALSE),\"\"))","v":""},"2e","$AM$46","$AN$46"]
[35951,{"$f":"Menu!$F$29","v":"X"},{"$f":"Menu!$J$29","v":2020},{"$f":"IF(ISBLANK(INDIRECT(\"'\"&F9500&\"'!\"&G9500)),\"\",INDIRECT(\"'\"&F9500&\"'!\"&G9500))","v":""},{"$f":"IF(ISBLANK(INDIRECT(\"'\"&F9500&\"'!\"&H9500)),\"\",IFERROR(VLOOKUP(TEXT(INDIRECT(\"'\"&F9500&\"'!\"&H9500),\"0\"),Notes!$B$5:$C$100,2,FALSE),\"\"))","v":""},"2e","$AS$23","$AT$23"]
[35954,{"$f":"Menu!$F$29","v":"X"},{"$f":"Menu!$J$29","v":2020},{"$f":"IF(ISBLANK(INDIRECT(\"'\"&F9501&\"'!\"&G9501)),\"\",INDIRECT(\"'\"&F9501&\"'!\"&G9501))","v":""},{"$f":"IF(ISBLANK(INDIRECT(\"'\"&F9501&\"'!\"&H9501)),\"\",IFERROR(VLOOKUP(TEXT(INDIRECT(\"'\"&F9501&\"'!\"&H9501),\"0\"),Notes!$B$5:$C$100,2,FALSE),\"\"))","v":""},"2e","$AS$30","$AT$30"]
[35955,{"$f":"Menu!$F$29","v":"X"},{"$f":"Menu!$J$29","v":2020},{"$f":"IF(ISBLANK(INDIRECT(\"'\"&F9502&\"'!\"&G9502)),\"\",INDIRECT(\"'\"&F9502&\"'!\"&G9502))","v":""},{"$f":"IF(ISBLANK(INDIRECT(\"'\"&F9502&\"'!\"&H9502)),\"\",IFERROR(VLOOKUP(TEXT(INDIRECT(\"'\"&F9502&\"'!\"&H9502),\"0\"),Notes!$B$5:$C$100,2,FALSE),\"\"))","v":""},"2e","$AS$31","$AT$31"]
[35957,{"$f":"Menu!$F$29","v":"X"},{"$f":"Menu!$J$29","v":2020},{"$f":"IF(ISBLANK(INDIRECT(\"'\"&F9503&\"'!\"&G9503)),\"\",INDIRECT(\"'\"&F9503&\"'!\"&G9503))","v":""},{"$f":"IF(ISBLANK(INDIRECT(\"'\"&F9503&\"'!\"&H9503)),\"\",IFERROR(VLOOKUP(TEXT(INDIRECT(\"'\"&F9503&\"'!\"&H9503),\"0\"),Notes!$B$5:$C$100,2,FALSE),\"\"))","v":""},"2e","$AS$37","$AT$37"]
[35958,{"$f":"Menu!$F$29","v":"X"},{"$f":"Menu!$J$29","v":2020},{"$f":"IF(ISBLANK(INDIRECT(\"'\"&F9504&\"'!\"&G9504)),\"\",INDIRECT(\"'\"&F9504&\"'!\"&G9504))","v":""},{"$f":"IF(ISBLANK(INDIRECT(\"'\"&F9504&\"'!\"&H9504)),\"\",IFERROR(VLOOKUP(TEXT(INDIRECT(\"'\"&F9504&\"'!\"&H9504),\"0\"),Notes!$B$5:$C$100,2,FALSE),\"\"))","v":""},"2e","$AS$38","$AT$38"]
[35960,{"$f":"Menu!$F$29","v":"X"},{"$f":"Menu!$J$29","v":2020},{"$f":"IF(ISBLANK(INDIRECT(\"'\"&F9505&\"'!\"&G9505)),\"\",INDIRECT(\"'\"&F9505&\"'!\"&G9505))","v":""},{"$f":"IF(ISBLANK(INDIRECT(\"'\"&F9505&\"'!\"&H9505)),\"\",IFERROR(VLOOKUP(TEXT(INDIRECT(\"'\"&F9505&\"'!\"&H9505),\"0\"),Notes!$B$5:$C$100,2,FALSE),\"\"))","v":""},"2e","$AS$50","$AT$50"]
[35961,{"$f":"Menu!$F$29","v":"X"},{"$f":"Menu!$J$29","v":2020},{"$f":"IF(ISBLANK(INDIRECT(\"'\"&F9506&\"'!\"&G9506)),\"\",INDIRECT(\"'\"&F9506&\"'!\"&G9506))","v":""},{"$f":"IF(ISBLANK(INDIRECT(\"'\"&F9506&\"'!\"&H9506)),\"\",IFERROR(VLOOKUP(TEXT(INDIRECT(\"'\"&F9506&\"'!\"&H9506),\"0\"),Notes!$B$5:$C$100,2,FALSE),\"\"))","v":""},"2e","$AS$51","$AT$51"]
[35963,{"$f":"Menu!$F$29","v":"X"},{"$f":"Menu!$J$29","v":2020},{"$f":"IF(ISBLANK(INDIRECT(\"'\"&F9507&\"'!\"&G9507)),\"\",INDIRECT(\"'\"&F9507&\"'!\"&G9507))","v":""},{"$f":"IF(ISBLANK(INDIRECT(\"'\"&F9507&\"'!\"&H9507)),\"\",IFERROR(VLOOKUP(TEXT(INDIRECT(\"'\"&F9507&\"'!\"&H9507),\"0\"),Notes!$B$5:$C$100,2,FALSE),\"\"))","v":""},"2e","$AS$45","$AT$45"]
[35964,{"$f":"Menu!$F$29","v":"X"},{"$f":"Menu!$J$29","v":2020},{"$f":"IF(ISBLANK(INDIRECT(\"'\"&F9508&\"'!\"&G9508)),\"\",INDIRECT(\"'\"&F9508&\"'!\"&G9508))","v":""},{"$f":"IF(ISBLANK(INDIRECT(\"'\"&F9508&\"'!\"&H9508)),\"\",IFERROR(VLOOKUP(TEXT(INDIRECT(\"'\"&F9508&\"'!\"&H9508),\"0\"),Notes!$B$5:$C$100,2,FALSE),\"\"))","v":""},"2e","$AS$46","$AT$46"]
[35966,{"$f":"Menu!$F$29","v":"X"},{"$f":"Menu!$J$29","v":2020},{"$f":"IF(ISBLANK(INDIRECT(\"'\"&F9509&\"'!\"&G9509)),\"\",INDIRECT(\"'\"&F9509&\"'!\"&G9509))","v":""},{"$f":"IF(ISBLANK(INDIRECT(\"'\"&F9509&\"'!\"&H9509)),\"\",IFERROR(VLOOKUP(TEXT(INDIRECT(\"'\"&F9509&\"'!\"&H9509),\"0\"),Notes!$B$5:$C$100,2,FALSE),\"\"))","v":""},"2e","$AY$23","$AZ$23"]
[35969,{"$f":"Menu!$F$29","v":"X"},{"$f":"Menu!$J$29","v":2020},{"$f":"IF(ISBLANK(INDIRECT(\"'\"&F9510&\"'!\"&G9510)),\"\",INDIRECT(\"'\"&F9510&\"'!\"&G9510))","v":""},{"$f":"IF(ISBLANK(INDIRECT(\"'\"&F9510&\"'!\"&H9510)),\"\",IFERROR(VLOOKUP(TEXT(INDIRECT(\"'\"&F9510&\"'!\"&H9510),\"0\"),Notes!$B$5:$C$100,2,FALSE),\"\"))","v":""},"2e","$AY$30","$AZ$30"]
[35970,{"$f":"Menu!$F$29","v":"X"},{"$f":"Menu!$J$29","v":2020},{"$f":"IF(ISBLANK(INDIRECT(\"'\"&F9511&\"'!\"&G9511)),\"\",INDIRECT(\"'\"&F9511&\"'!\"&G9511))","v":""},{"$f":"IF(ISBLANK(INDIRECT(\"'\"&F9511&\"'!\"&H9511)),\"\",IFERROR(VLOOKUP(TEXT(INDIRECT(\"'\"&F9511&\"'!\"&H9511),\"0\"),Notes!$B$5:$C$100,2,FALSE),\"\"))","v":""},"2e","$AY$31","$AZ$31"]
[35972,{"$f":"Menu!$F$29","v":"X"},{"$f":"Menu!$J$29","v":2020},{"$f":"IF(ISBLANK(INDIRECT(\"'\"&F9512&\"'!\"&G9512)),\"\",INDIRECT(\"'\"&F9512&\"'!\"&G9512))","v":""},{"$f":"IF(ISBLANK(INDIRECT(\"'\"&F9512&\"'!\"&H9512)),\"\",IFERROR(VLOOKUP(TEXT(INDIRECT(\"'\"&F9512&\"'!\"&H9512),\"0\"),Notes!$B$5:$C$100,2,FALSE),\"\"))","v":""},"2e","$AY$37","$AZ$37"]
[35973,{"$f":"Menu!$F$29","v":"X"},{"$f":"Menu!$J$29","v":2020},{"$f":"IF(ISBLANK(INDIRECT(\"'\"&F9513&\"'!\"&G9513)),\"\",INDIRECT(\"'\"&F9513&\"'!\"&G9513))","v":""},{"$f":"IF(ISBLANK(INDIRECT(\"'\"&F9513&\"'!\"&H9513)),\"\",IFERROR(VLOOKUP(TEXT(INDIRECT(\"'\"&F9513&\"'!\"&H9513),\"0\"),Notes!$B$5:$C$100,2,FALSE),\"\"))","v":""},"2e","$AY$38","$AZ$38"]
[35975,{"$f":"Menu!$F$29","v":"X"},{"$f":"Menu!$J$29","v":2020},{"$f":"IF(ISBLANK(INDIRECT(\"'\"&F9514&\"'!\"&G9514)),\"\",INDIRECT(\"'\"&F9514&\"'!\"&G9514))","v":""},{"$f":"IF(ISBLANK(INDIRECT(\"'\"&F9514&\"'!\"&H9514)),\"\",IFERROR(VLOOKUP(TEXT(INDIRECT(\"'\"&F9514&\"'!\"&H9514),\"0\"),Notes!$B$5:$C$100,2,FALSE),\"\"))","v":""},"2e","$AY$50","$AZ$50"]
[35976,{"$f":"Menu!$F$29","v":"X"},{"$f":"Menu!$J$29","v":2020},{"$f":"IF(ISBLANK(INDIRECT(\"'\"&F9515&\"'!\"&G9515)),\"\",INDIRECT(\"'\"&F9515&\"'!\"&G9515))","v":""},{"$f":"IF(ISBLANK(INDIRECT(\"'\"&F9515&\"'!\"&H9515)),\"\",IFERROR(VLOOKUP(TEXT(INDIRECT(\"'\"&F9515&\"'!\"&H9515),\"0\"),Notes!$B$5:$C$100,2,FALSE),\"\"))","v":""},"2e","$AY$51","$AZ$51"]
[35978,{"$f":"Menu!$F$29","v":"X"},{"$f":"Menu!$J$29","v":2020},{"$f":"IF(ISBLANK(INDIRECT(\"'\"&F9516&\"'!\"&G9516)),\"\",INDIRECT(\"'\"&F9516&\"'!\"&G9516))","v":""},{"$f":"IF(ISBLANK(INDIRECT(\"'\"&F9516&\"'!\"&H9516)),\"\",IFERROR(VLOOKUP(TEXT(INDIRECT(\"'\"&F9516&\"'!\"&H9516),\"0\"),Notes!$B$5:$C$100,2,FALSE),\"\"))","v":""},"2e","$AY$45","$AZ$45"]
[35979,{"$f":"Menu!$F$29","v":"X"},{"$f":"Menu!$J$29","v":2020},{"$f":"IF(ISBLANK(INDIRECT(\"'\"&F9517&\"'!\"&G9517)),\"\",INDIRECT(\"'\"&F9517&\"'!\"&G9517))","v":""},{"$f":"IF(ISBLANK(INDIRECT(\"'\"&F9517&\"'!\"&H9517)),\"\",IFERROR(VLOOKUP(TEXT(INDIRECT(\"'\"&F9517&\"'!\"&H9517),\"0\"),Notes!$B$5:$C$100,2,FALSE),\"\"))","v":""},"2e","$AY$46","$AZ$46"]
[35981,{"$f":"Menu!$F$29","v":"X"},{"$f":"Menu!$J$29","v":2020},{"$f":"IF(ISBLANK(INDIRECT(\"'\"&F9518&\"'!\"&G9518)),\"\",INDIRECT(\"'\"&F9518&\"'!\"&G9518))","v":""},{"$f":"IF(ISBLANK(INDIRECT(\"'\"&F9518&\"'!\"&H9518)),\"\",IFERROR(VLOOKUP(TEXT(INDIRECT(\"'\"&F9518&\"'!\"&H9518),\"0\"),Notes!$B$5:$C$100,2,FALSE),\"\"))","v":""},"2e","$BE$23","$BF$23"]
[35984,{"$f":"Menu!$F$29","v":"X"},{"$f":"Menu!$J$29","v":2020},{"$f":"IF(ISBLANK(INDIRECT(\"'\"&F9519&\"'!\"&G9519)),\"\",INDIRECT(\"'\"&F9519&\"'!\"&G9519))","v":""},{"$f":"IF(ISBLANK(INDIRECT(\"'\"&F9519&\"'!\"&H9519)),\"\",IFERROR(VLOOKUP(TEXT(INDIRECT(\"'\"&F9519&\"'!\"&H9519),\"0\"),Notes!$B$5:$C$100,2,FALSE),\"\"))","v":""},"2e","$BE$30","$BF$30"]
[35985,{"$f":"Menu!$F$29","v":"X"},{"$f":"Menu!$J$29","v":2020},{"$f":"IF(ISBLANK(INDIRECT(\"'\"&F9520&\"'!\"&G9520)),\"\",INDIRECT(\"'\"&F9520&\"'!\"&G9520))","v":""},{"$f":"IF(ISBLANK(INDIRECT(\"'\"&F9520&\"'!\"&H9520)),\"\",IFERROR(VLOOKUP(TEXT(INDIRECT(\"'\"&F9520&\"'!\"&H9520),\"0\"),Notes!$B$5:$C$100,2,FALSE),\"\"))","v":""},"2e","$BE$31","$BF$31"]
[35987,{"$f":"Menu!$F$29","v":"X"},{"$f":"Menu!$J$29","v":2020},{"$f":"IF(ISBLANK(INDIRECT(\"'\"&F9521&\"'!\"&G9521)),\"\",INDIRECT(\"'\"&F9521&\"'!\"&G9521))","v":""},{"$f":"IF(ISBLANK(INDIRECT(\"'\"&F9521&\"'!\"&H9521)),\"\",IFERROR(VLOOKUP(TEXT(INDIRECT(\"'\"&F9521&\"'!\"&H9521),\"0\"),Notes!$B$5:$C$100,2,FALSE),\"\"))","v":""},"2e","$BE$37","$BF$37"]
[35988,{"$f":"Menu!$F$29","v":"X"},{"$f":"Menu!$J$29","v":2020},{"$f":"IF(ISBLANK(INDIRECT(\"'\"&F9522&\"'!\"&G9522)),\"\",INDIRECT(\"'\"&F9522&\"'!\"&G9522))","v":""},{"$f":"IF(ISBLANK(INDIRECT(\"'\"&F9522&\"'!\"&H9522)),\"\",IFERROR(VLOOKUP(TEXT(INDIRECT(\"'\"&F9522&\"'!\"&H9522),\"0\"),Notes!$B$5:$C$100,2,FALSE),\"\"))","v":""},"2e","$BE$38","$BF$38"]
[35990,{"$f":"Menu!$F$29","v":"X"},{"$f":"Menu!$J$29","v":2020},{"$f":"IF(ISBLANK(INDIRECT(\"'\"&F9523&\"'!\"&G9523)),\"\",INDIRECT(\"'\"&F9523&\"'!\"&G9523))","v":""},{"$f":"IF(ISBLANK(INDIRECT(\"'\"&F9523&\"'!\"&H9523)),\"\",IFERROR(VLOOKUP(TEXT(INDIRECT(\"'\"&F9523&\"'!\"&H9523),\"0\"),Notes!$B$5:$C$100,2,FALSE),\"\"))","v":""},"2e","$BE$50","$BF$50"]
[35991,{"$f":"Menu!$F$29","v":"X"},{"$f":"Menu!$J$29","v":2020},{"$f":"IF(ISBLANK(INDIRECT(\"'\"&F9524&\"'!\"&G9524)),\"\",INDIRECT(\"'\"&F9524&\"'!\"&G9524))","v":""},{"$f":"IF(ISBLANK(INDIRECT(\"'\"&F9524&\"'!\"&H9524)),\"\",IFERROR(VLOOKUP(TEXT(INDIRECT(\"'\"&F9524&\"'!\"&H9524),\"0\"),Notes!$B$5:$C$100,2,FALSE),\"\"))","v":""},"2e","$BE$51","$BF$51"]
[35993,{"$f":"Menu!$F$29","v":"X"},{"$f":"Menu!$J$29","v":2020},{"$f":"IF(ISBLANK(INDIRECT(\"'\"&F9525&\"'!\"&G9525)),\"\",INDIRECT(\"'\"&F9525&\"'!\"&G9525))","v":""},{"$f":"IF(ISBLANK(INDIRECT(\"'\"&F9525&\"'!\"&H9525)),\"\",IFERROR(VLOOKUP(TEXT(INDIRECT(\"'\"&F9525&\"'!\"&H9525),\"0\"),Notes!$B$5:$C$100,2,FALSE),\"\"))","v":""},"2e","$BE$45","$BF$45"]
[35994,{"$f":"Menu!$F$29","v":"X"},{"$f":"Menu!$J$29","v":2020},{"$f":"IF(ISBLANK(INDIRECT(\"'\"&F9526&\"'!\"&G9526)),\"\",INDIRECT(\"'\"&F9526&\"'!\"&G9526))","v":""},{"$f":"IF(ISBLANK(INDIRECT(\"'\"&F9526&\"'!\"&H9526)),\"\",IFERROR(VLOOKUP(TEXT(INDIRECT(\"'\"&F9526&\"'!\"&H9526),\"0\"),Notes!$B$5:$C$100,2,FALSE),\"\"))","v":""},"2e","$BE$46","$BF$46"]
[35996,{"$f":"Menu!$F$29","v":"X"},{"$f":"Menu!$J$29","v":2020},{"$f":"IF(ISBLANK(INDIRECT(\"'\"&F9527&\"'!\"&G9527)),\"\",INDIRECT(\"'\"&F9527&\"'!\"&G9527))","v":""},{"$f":"IF(ISBLANK(INDIRECT(\"'\"&F9527&\"'!\"&H9527)),\"\",IFERROR(VLOOKUP(TEXT(INDIRECT(\"'\"&F9527&\"'!\"&H9527),\"0\"),Notes!$B$5:$C$100,2,FALSE),\"\"))","v":""},"2a","$E$44","$F$44"]
[35997,{"$f":"Menu!$F$29","v":"X"},{"$f":"Menu!$J$29","v":2020},{"$f":"IF(ISBLANK(INDIRECT(\"'\"&F9528&\"'!\"&G9528)),\"\",INDIRECT(\"'\"&F9528&\"'!\"&G9528))","v":""},{"$f":"IF(ISBLANK(INDIRECT(\"'\"&F9528&\"'!\"&H9528)),\"\",IFERROR(VLOOKUP(TEXT(INDIRECT(\"'\"&F9528&\"'!\"&H9528),\"0\"),Notes!$B$5:$C$100,2,FALSE),\"\"))","v":""},"2a","$E$45","$F$45"]
[35999,{"$f":"Menu!$F$29","v":"X"},{"$f":"Menu!$J$29","v":2020},{"$f":"IF(ISBLANK(INDIRECT(\"'\"&F9529&\"'!\"&G9529)),\"\",INDIRECT(\"'\"&F9529&\"'!\"&G9529))","v":""},{"$f":"IF(ISBLANK(INDIRECT(\"'\"&F9529&\"'!\"&H9529)),\"\",IFERROR(VLOOKUP(TEXT(INDIRECT(\"'\"&F9529&\"'!\"&H9529),\"0\"),Notes!$B$5:$C$100,2,FALSE),\"\"))","v":""},"2a","$E$22","$F$22"]
[36000,{"$f":"Menu!$F$29","v":"X"},{"$f":"Menu!$J$29","v":2020},{"$f":"IF(ISBLANK(INDIRECT(\"'\"&F9530&\"'!\"&G9530)),\"\",INDIRECT(\"'\"&F9530&\"'!\"&G9530))","v":""},{"$f":"IF(ISBLANK(INDIRECT(\"'\"&F9530&\"'!\"&H9530)),\"\",IFERROR(VLOOKUP(TEXT(INDIRECT(\"'\"&F9530&\"'!\"&H9530),\"0\"),Notes!$B$5:$C$100,2,FALSE),\"\"))","v":""},"2a","$E$23","$F$23"]
[36002,{"$f":"Menu!$F$29","v":"X"},{"$f":"Menu!$J$29","v":2020},{"$f":"IF(ISBLANK(INDIRECT(\"'\"&F9531&\"'!\"&G9531)),\"\",INDIRECT(\"'\"&F9531&\"'!\"&G9531))","v":""},{"$f":"IF(ISBLANK(INDIRECT(\"'\"&F9531&\"'!\"&H9531)),\"\",IFERROR(VLOOKUP(TEXT(INDIRECT(\"'\"&F9531&\"'!\"&H9531),\"0\"),Notes!$B$5:$C$100,2,FALSE),\"\"))","v":""},"2a","$E$36","$F$36"]
[36003,{"$f":"Menu!$F$29","v":"X"},{"$f":"Menu!$J$29","v":2020},{"$f":"IF(ISBLANK(INDIRECT(\"'\"&F9532&\"'!\"&G9532)),\"\",INDIRECT(\"'\"&F9532&\"'!\"&G9532))","v":""},{"$f":"IF(ISBLANK(INDIRECT(\"'\"&F9532&\"'!\"&H9532)),\"\",IFERROR(VLOOKUP(TEXT(INDIRECT(\"'\"&F9532&\"'!\"&H9532),\"0\"),Notes!$B$5:$C$100,2,FALSE),\"\"))","v":""},"2a","$E$37","$F$37"]
[36005,{"$f":"Menu!$F$29","v":"X"},{"$f":"Menu!$J$29","v":2020},{"$f":"IF(ISBLANK(INDIRECT(\"'\"&F9533&\"'!\"&G9533)),\"\",INDIRECT(\"'\"&F9533&\"'!\"&G9533))","v":""},{"$f":"IF(ISBLANK(INDIRECT(\"'\"&F9533&\"'!\"&H9533)),\"\",IFERROR(VLOOKUP(TEXT(INDIRECT(\"'\"&F9533&\"'!\"&H9533),\"0\"),Notes!$B$5:$C$100,2,FALSE),\"\"))","v":""},"2a","$E$29","$F$29"]
[36006,{"$f":"Menu!$F$29","v":"X"},{"$f":"Menu!$J$29","v":2020},{"$f":"IF(ISBLANK(INDIRECT(\"'\"&F9534&\"'!\"&G9534)),\"\",INDIRECT(\"'\"&F9534&\"'!\"&G9534))","v":""},{"$f":"IF(ISBLANK(INDIRECT(\"'\"&F9534&\"'!\"&H9534)),\"\",IFERROR(VLOOKUP(TEXT(INDIRECT(\"'\"&F9534&\"'!\"&H9534),\"0\"),Notes!$B$5:$C$100,2,FALSE),\"\"))","v":""},"2a","$E$30","$F$30"]
[36008,{"$f":"Menu!$F$29","v":"X"},{"$f":"Menu!$J$29","v":2020},{"$f":"IF(ISBLANK(INDIRECT(\"'\"&F9535&\"'!\"&G9535)),\"\",INDIRECT(\"'\"&F9535&\"'!\"&G9535))","v":""},{"$f":"IF(ISBLANK(INDIRECT(\"'\"&F9535&\"'!\"&H9535)),\"\",IFERROR(VLOOKUP(TEXT(INDIRECT(\"'\"&F9535&\"'!\"&H9535),\"0\"),Notes!$B$5:$C$100,2,FALSE),\"\"))","v":""},"2a","$E$49","$F$49"]
[36009,{"$f":"Menu!$F$29","v":"X"},{"$f":"Menu!$J$29","v":2020},{"$f":"IF(ISBLANK(INDIRECT(\"'\"&F9536&\"'!\"&G9536)),\"\",INDIRECT(\"'\"&F9536&\"'!\"&G9536))","v":""},{"$f":"IF(ISBLANK(INDIRECT(\"'\"&F9536&\"'!\"&H9536)),\"\",IFERROR(VLOOKUP(TEXT(INDIRECT(\"'\"&F9536&\"'!\"&H9536),\"0\"),Notes!$B$5:$C$100,2,FALSE),\"\"))","v":""},"2a","$E$50","$F$50"]
[36011,{"$f":"Menu!$F$29","v":"X"},{"$f":"Menu!$J$29","v":2020},{"$f":"IF(ISBLANK(INDIRECT(\"'\"&F9537&\"'!\"&G9537)),\"\",INDIRECT(\"'\"&F9537&\"'!\"&G9537))","v":""},{"$f":"IF(ISBLANK(INDIRECT(\"'\"&F9537&\"'!\"&H9537)),\"\",IFERROR(VLOOKUP(TEXT(INDIRECT(\"'\"&F9537&\"'!\"&H9537),\"0\"),Notes!$B$5:$C$100,2,FALSE),\"\"))","v":""},"2a","$G$44","$H$44"]
[36012,{"$f":"Menu!$F$29","v":"X"},{"$f":"Menu!$J$29","v":2020},{"$f":"IF(ISBLANK(INDIRECT(\"'\"&F9538&\"'!\"&G9538)),\"\",INDIRECT(\"'\"&F9538&\"'!\"&G9538))","v":""},{"$f":"IF(ISBLANK(INDIRECT(\"'\"&F9538&\"'!\"&H9538)),\"\",IFERROR(VLOOKUP(TEXT(INDIRECT(\"'\"&F9538&\"'!\"&H9538),\"0\"),Notes!$B$5:$C$100,2,FALSE),\"\"))","v":""},"2a","$G$45",{"$f":"IF(LEN(TRIM(MID(G9538,4,10)))-LEN(SUBSTITUTE(TRIM(MID(G9538,4,10)),\"$\",\"\"))=0,\"$\"&CHAR(CODE(MID(G9538,2,1))+1)&\"$\"&TRIM(MID(G9538,4,10)),\"$\"&MID(G9538,2,1)&CHAR(CODE(MID(G9538,3,1))+1)&\"$\"&TRIM(MID(G9538,5,11)))","v":"$H$45"}]
[36014,{"$f":"Menu!$F$29","v":"X"},{"$f":"Menu!$J$29","v":2020},{"$f":"IF(ISBLANK(INDIRECT(\"'\"&F9539&\"'!\"&G9539)),\"\",INDIRECT(\"'\"&F9539&\"'!\"&G9539))","v":""},{"$f":"IF(ISBLANK(INDIRECT(\"'\"&F9539&\"'!\"&H9539)),\"\",IFERROR(VLOOKUP(TEXT(INDIRECT(\"'\"&F9539&\"'!\"&H9539),\"0\"),Notes!$B$5:$C$100,2,FALSE),\"\"))","v":""},"2a","$G$22","$H$22"]
[36015,{"$f":"Menu!$F$29","v":"X"},{"$f":"Menu!$J$29","v":2020},{"$f":"IF(ISBLANK(INDIRECT(\"'\"&F9540&\"'!\"&G9540)),\"\",INDIRECT(\"'\"&F9540&\"'!\"&G9540))","v":""},{"$f":"IF(ISBLANK(INDIRECT(\"'\"&F9540&\"'!\"&H9540)),\"\",IFERROR(VLOOKUP(TEXT(INDIRECT(\"'\"&F9540&\"'!\"&H9540),\"0\"),Notes!$B$5:$C$100,2,FALSE),\"\"))","v":""},"2a","$G$23","$H$23"]
[36017,{"$f":"Menu!$F$29","v":"X"},{"$f":"Menu!$J$29","v":2020},{"$f":"IF(ISBLANK(INDIRECT(\"'\"&F9541&\"'!\"&G9541)),\"\",INDIRECT(\"'\"&F9541&\"'!\"&G9541))","v":""},{"$f":"IF(ISBLANK(INDIRECT(\"'\"&F9541&\"'!\"&H9541)),\"\",IFERROR(VLOOKUP(TEXT(INDIRECT(\"'\"&F9541&\"'!\"&H9541),\"0\"),Notes!$B$5:$C$100,2,FALSE),\"\"))","v":""},"2a","$G$36","$H$36"]
[36018,{"$f":"Menu!$F$29","v":"X"},{"$f":"Menu!$J$29","v":2020},{"$f":"IF(ISBLANK(INDIRECT(\"'\"&F9542&\"'!\"&G9542)),\"\",INDIRECT(\"'\"&F9542&\"'!\"&G9542))","v":""},{"$f":"IF(ISBLANK(INDIRECT(\"'\"&F9542&\"'!\"&H9542)),\"\",IFERROR(VLOOKUP(TEXT(INDIRECT(\"'\"&F9542&\"'!\"&H9542),\"0\"),Notes!$B$5:$C$100,2,FALSE),\"\"))","v":""},"2a","$G$37","$H$37"]
[36020,{"$f":"Menu!$F$29","v":"X"},{"$f":"Menu!$J$29","v":2020},{"$f":"IF(ISBLANK(INDIRECT(\"'\"&F9543&\"'!\"&G9543)),\"\",INDIRECT(\"'\"&F9543&\"'!\"&G9543))","v":""},{"$f":"IF(ISBLANK(INDIRECT(\"'\"&F9543&\"'!\"&H9543)),\"\",IFERROR(VLOOKUP(TEXT(INDIRECT(\"'\"&F9543&\"'!\"&H9543),\"0\"),Notes!$B$5:$C$100,2,FALSE),\"\"))","v":""},"2a","$G$29","$H$29"]
[36021,{"$f":"Menu!$F$29","v":"X"},{"$f":"Menu!$J$29","v":2020},{"$f":"IF(ISBLANK(INDIRECT(\"'\"&F9544&\"'!\"&G9544)),\"\",INDIRECT(\"'\"&F9544&\"'!\"&G9544))","v":""},{"$f":"IF(ISBLANK(INDIRECT(\"'\"&F9544&\"'!\"&H9544)),\"\",IFERROR(VLOOKUP(TEXT(INDIRECT(\"'\"&F9544&\"'!\"&H9544),\"0\"),Notes!$B$5:$C$100,2,FALSE),\"\"))","v":""},"2a","$G$30","$H$30"]
[36023,{"$f":"Menu!$F$29","v":"X"},{"$f":"Menu!$J$29","v":2020},{"$f":"IF(ISBLANK(INDIRECT(\"'\"&F9545&\"'!\"&G9545)),\"\",INDIRECT(\"'\"&F9545&\"'!\"&G9545))","v":""},{"$f":"IF(ISBLANK(INDIRECT(\"'\"&F9545&\"'!\"&H9545)),\"\",IFERROR(VLOOKUP(TEXT(INDIRECT(\"'\"&F9545&\"'!\"&H9545),\"0\"),Notes!$B$5:$C$100,2,FALSE),\"\"))","v":""},"2a","$G$49","$H$49"]
[36024,{"$f":"Menu!$F$29","v":"X"},{"$f":"Menu!$J$29","v":2020},{"$f":"IF(ISBLANK(INDIRECT(\"'\"&F9546&\"'!\"&G9546)),\"\",INDIRECT(\"'\"&F9546&\"'!\"&G9546))","v":""},{"$f":"IF(ISBLANK(INDIRECT(\"'\"&F9546&\"'!\"&H9546)),\"\",IFERROR(VLOOKUP(TEXT(INDIRECT(\"'\"&F9546&\"'!\"&H9546),\"0\"),Notes!$B$5:$C$100,2,FALSE),\"\"))","v":""},"2a","$G$50","$H$50"]
[36026,{"$f":"Menu!$F$29","v":"X"},{"$f":"Menu!$J$29","v":2020},{"$f":"IF(ISBLANK(INDIRECT(\"'\"&F9547&\"'!\"&G9547)),\"\",INDIRECT(\"'\"&F9547&\"'!\"&G9547))","v":""},{"$f":"IF(ISBLANK(INDIRECT(\"'\"&F9547&\"'!\"&H9547)),\"\",IFERROR(VLOOKUP(TEXT(INDIRECT(\"'\"&F9547&\"'!\"&H9547),\"0\"),Notes!$B$5:$C$100,2,FALSE),\"\"))","v":""},"2a","$I$44","$J$44"]
[36027,{"$f":"Menu!$F$29","v":"X"},{"$f":"Menu!$J$29","v":2020},{"$f":"IF(ISBLANK(INDIRECT(\"'\"&F9548&\"'!\"&G9548)),\"\",INDIRECT(\"'\"&F9548&\"'!\"&G9548))","v":""},{"$f":"IF(ISBLANK(INDIRECT(\"'\"&F9548&\"'!\"&H9548)),\"\",IFERROR(VLOOKUP(TEXT(INDIRECT(\"'\"&F9548&\"'!\"&H9548),\"0\"),Notes!$B$5:$C$100,2,FALSE),\"\"))","v":""},"2a","$I$45","$J$45"]
[36029,{"$f":"Menu!$F$29","v":"X"},{"$f":"Menu!$J$29","v":2020},{"$f":"IF(ISBLANK(INDIRECT(\"'\"&F9549&\"'!\"&G9549)),\"\",INDIRECT(\"'\"&F9549&\"'!\"&G9549))","v":""},{"$f":"IF(ISBLANK(INDIRECT(\"'\"&F9549&\"'!\"&H9549)),\"\",IFERROR(VLOOKUP(TEXT(INDIRECT(\"'\"&F9549&\"'!\"&H9549),\"0\"),Notes!$B$5:$C$100,2,FALSE),\"\"))","v":""},"2a","$I$22","$J$22"]
[36030,{"$f":"Menu!$F$29","v":"X"},{"$f":"Menu!$J$29","v":2020},{"$f":"IF(ISBLANK(INDIRECT(\"'\"&F9550&\"'!\"&G9550)),\"\",INDIRECT(\"'\"&F9550&\"'!\"&G9550))","v":""},{"$f":"IF(ISBLANK(INDIRECT(\"'\"&F9550&\"'!\"&H9550)),\"\",IFERROR(VLOOKUP(TEXT(INDIRECT(\"'\"&F9550&\"'!\"&H9550),\"0\"),Notes!$B$5:$C$100,2,FALSE),\"\"))","v":""},"2a","$I$23","$J$23"]
[36032,{"$f":"Menu!$F$29","v":"X"},{"$f":"Menu!$J$29","v":2020},{"$f":"IF(ISBLANK(INDIRECT(\"'\"&F9551&\"'!\"&G9551)),\"\",INDIRECT(\"'\"&F9551&\"'!\"&G9551))","v":""},{"$f":"IF(ISBLANK(INDIRECT(\"'\"&F9551&\"'!\"&H9551)),\"\",IFERROR(VLOOKUP(TEXT(INDIRECT(\"'\"&F9551&\"'!\"&H9551),\"0\"),Notes!$B$5:$C$100,2,FALSE),\"\"))","v":""},"2a","$I$36","$J$36"]
[36033,{"$f":"Menu!$F$29","v":"X"},{"$f":"Menu!$J$29","v":2020},{"$f":"IF(ISBLANK(INDIRECT(\"'\"&F9552&\"'!\"&G9552)),\"\",INDIRECT(\"'\"&F9552&\"'!\"&G9552))","v":""},{"$f":"IF(ISBLANK(INDIRECT(\"'\"&F9552&\"'!\"&H9552)),\"\",IFERROR(VLOOKUP(TEXT(INDIRECT(\"'\"&F9552&\"'!\"&H9552),\"0\"),Notes!$B$5:$C$100,2,FALSE),\"\"))","v":""},"2a","$I$37","$J$37"]
[36035,{"$f":"Menu!$F$29","v":"X"},{"$f":"Menu!$J$29","v":2020},{"$f":"IF(ISBLANK(INDIRECT(\"'\"&F9553&\"'!\"&G9553)),\"\",INDIRECT(\"'\"&F9553&\"'!\"&G9553))","v":""},{"$f":"IF(ISBLANK(INDIRECT(\"'\"&F9553&\"'!\"&H9553)),\"\",IFERROR(VLOOKUP(TEXT(INDIRECT(\"'\"&F9553&\"'!\"&H9553),\"0\"),Notes!$B$5:$C$100,2,FALSE),\"\"))","v":""},"2a","$I$29","$J$29"]
[36036,{"$f":"Menu!$F$29","v":"X"},{"$f":"Menu!$J$29","v":2020},{"$f":"IF(ISBLANK(INDIRECT(\"'\"&F9554&\"'!\"&G9554)),\"\",INDIRECT(\"'\"&F9554&\"'!\"&G9554))","v":""},{"$f":"IF(ISBLANK(INDIRECT(\"'\"&F9554&\"'!\"&H9554)),\"\",IFERROR(VLOOKUP(TEXT(INDIRECT(\"'\"&F9554&\"'!\"&H9554),\"0\"),Notes!$B$5:$C$100,2,FALSE),\"\"))","v":""},"2a","$I$30","$J$30"]
[36038,{"$f":"Menu!$F$29","v":"X"},{"$f":"Menu!$J$29","v":2020},{"$f":"IF(ISBLANK(INDIRECT(\"'\"&F9555&\"'!\"&G9555)),\"\",INDIRECT(\"'\"&F9555&\"'!\"&G9555))","v":""},{"$f":"IF(ISBLANK(INDIRECT(\"'\"&F9555&\"'!\"&H9555)),\"\",IFERROR(VLOOKUP(TEXT(INDIRECT(\"'\"&F9555&\"'!\"&H9555),\"0\"),Notes!$B$5:$C$100,2,FALSE),\"\"))","v":""},"2a","$I$49","$J$49"]
[36039,{"$f":"Menu!$F$29","v":"X"},{"$f":"Menu!$J$29","v":2020},{"$f":"IF(ISBLANK(INDIRECT(\"'\"&F9556&\"'!\"&G9556)),\"\",INDIRECT(\"'\"&F9556&\"'!\"&G9556))","v":""},{"$f":"IF(ISBLANK(INDIRECT(\"'\"&F9556&\"'!\"&H9556)),\"\",IFERROR(VLOOKUP(TEXT(INDIRECT(\"'\"&F9556&\"'!\"&H9556),\"0\"),Notes!$B$5:$C$100,2,FALSE),\"\"))","v":""},"2a","$I$50","$J$50"]
[38422,{"$f":"Menu!$F$29","v":"X"},{"$f":"Menu!$J$29","v":2020},{"$f":"IF(ISBLANK(INDIRECT(\"'\"&F9557&\"'!\"&G9557)),\"\",INDIRECT(\"'\"&F9557&\"'!\"&G9557))","v":""},{"$f":"IF(ISBLANK(INDIRECT(\"'\"&F9557&\"'!\"&H9557)),\"\",IFERROR(VLOOKUP(TEXT(INDIRECT(\"'\"&F9557&\"'!\"&H9557),\"0\"),Notes!$B$5:$C$100,2,FALSE),\"\"))","v":""},"2b","$K$57","$L$57"]
[38423,{"$f":"Menu!$F$29","v":"X"},{"$f":"Menu!$J$29","v":2020},{"$f":"IF(ISBLANK(INDIRECT(\"'\"&F9558&\"'!\"&G9558)),\"\",INDIRECT(\"'\"&F9558&\"'!\"&G9558))","v":""},{"$f":"IF(ISBLANK(INDIRECT(\"'\"&F9558&\"'!\"&H9558)),\"\",IFERROR(VLOOKUP(TEXT(INDIRECT(\"'\"&F9558&\"'!\"&H9558),\"0\"),Notes!$B$5:$C$100,2,FALSE),\"\"))","v":""},"2b","$O$57","$P$57"]
[38424,{"$f":"Menu!$F$29","v":"X"},{"$f":"Menu!$J$29","v":2020},{"$f":"IF(ISBLANK(INDIRECT(\"'\"&F9559&\"'!\"&G9559)),\"\",INDIRECT(\"'\"&F9559&\"'!\"&G9559))","v":""},{"$f":"IF(ISBLANK(INDIRECT(\"'\"&F9559&\"'!\"&H9559)),\"\",IFERROR(VLOOKUP(TEXT(INDIRECT(\"'\"&F9559&\"'!\"&H9559),\"0\"),Notes!$B$5:$C$100,2,FALSE),\"\"))","v":""},"2b","$M$57","$N$57"]
[38425,{"$f":"Menu!$F$29","v":"X"},{"$f":"Menu!$J$29","v":2020},{"$f":"IF(ISBLANK(INDIRECT(\"'\"&F9560&\"'!\"&G9560)),\"\",INDIRECT(\"'\"&F9560&\"'!\"&G9560))","v":""},{"$f":"IF(ISBLANK(INDIRECT(\"'\"&F9560&\"'!\"&H9560)),\"\",IFERROR(VLOOKUP(TEXT(INDIRECT(\"'\"&F9560&\"'!\"&H9560),\"0\"),Notes!$B$5:$C$100,2,FALSE),\"\"))","v":""},"2b","$Q$57","$R$57"]
[38426,{"$f":"Menu!$F$29","v":"X"},{"$f":"Menu!$J$29","v":2020},{"$f":"IF(ISBLANK(INDIRECT(\"'\"&F9561&\"'!\"&G9561)),\"\",INDIRECT(\"'\"&F9561&\"'!\"&G9561))","v":""},{"$f":"IF(ISBLANK(INDIRECT(\"'\"&F9561&\"'!\"&H9561)),\"\",IFERROR(VLOOKUP(TEXT(INDIRECT(\"'\"&F9561&\"'!\"&H9561),\"0\"),Notes!$B$5:$C$100,2,FALSE),\"\"))","v":""},"2b","$U$57","$V$57"]
[38427,{"$f":"Menu!$F$29","v":"X"},{"$f":"Menu!$J$29","v":2020},{"$f":"IF(ISBLANK(INDIRECT(\"'\"&F9562&\"'!\"&G9562)),\"\",INDIRECT(\"'\"&F9562&\"'!\"&G9562))","v":""},{"$f":"IF(ISBLANK(INDIRECT(\"'\"&F9562&\"'!\"&H9562)),\"\",IFERROR(VLOOKUP(TEXT(INDIRECT(\"'\"&F9562&\"'!\"&H9562),\"0\"),Notes!$B$5:$C$100,2,FALSE),\"\"))","v":""},"2b","$S$57","$T$57"]
[38431,{"$f":"Menu!$F$29","v":"X"},{"$f":"Menu!$J$29","v":2020},{"$f":"IF(ISBLANK(INDIRECT(\"'\"&F9563&\"'!\"&G9563)),\"\",INDIRECT(\"'\"&F9563&\"'!\"&G9563))","v":""},{"$f":"IF(ISBLANK(INDIRECT(\"'\"&F9563&\"'!\"&H9563)),\"\",IFERROR(VLOOKUP(TEXT(INDIRECT(\"'\"&F9563&\"'!\"&H9563),\"0\"),Notes!$B$5:$C$100,2,FALSE),\"\"))","v":""},"2a","$I$57","$J$57"]
[38432,{"$f":"Menu!$F$29","v":"X"},{"$f":"Menu!$J$29","v":2020},{"$f":"IF(ISBLANK(INDIRECT(\"'\"&F9564&\"'!\"&G9564)),\"\",INDIRECT(\"'\"&F9564&\"'!\"&G9564))","v":""},{"$f":"IF(ISBLANK(INDIRECT(\"'\"&F9564&\"'!\"&H9564)),\"\",IFERROR(VLOOKUP(TEXT(INDIRECT(\"'\"&F9564&\"'!\"&H9564),\"0\"),Notes!$B$5:$C$100,2,FALSE),\"\"))","v":""},"2c","$E$57","$F$57"]
[38433,{"$f":"Menu!$F$29","v":"X"},{"$f":"Menu!$J$29","v":2020},{"$f":"IF(ISBLANK(INDIRECT(\"'\"&F9565&\"'!\"&G9565)),\"\",INDIRECT(\"'\"&F9565&\"'!\"&G9565))","v":""},{"$f":"IF(ISBLANK(INDIRECT(\"'\"&F9565&\"'!\"&H9565)),\"\",IFERROR(VLOOKUP(TEXT(INDIRECT(\"'\"&F9565&\"'!\"&H9565),\"0\"),Notes!$B$5:$C$100,2,FALSE),\"\"))","v":""},"2c","$I$57","$J$57"]
[38434,{"$f":"Menu!$F$29","v":"X"},{"$f":"Menu!$J$29","v":2020},{"$f":"IF(ISBLANK(INDIRECT(\"'\"&F9566&\"'!\"&G9566)),\"\",INDIRECT(\"'\"&F9566&\"'!\"&G9566))","v":""},{"$f":"IF(ISBLANK(INDIRECT(\"'\"&F9566&\"'!\"&H9566)),\"\",IFERROR(VLOOKUP(TEXT(INDIRECT(\"'\"&F9566&\"'!\"&H9566),\"0\"),Notes!$B$5:$C$100,2,FALSE),\"\"))","v":""},"2c","$G$57","$H$57"]
[38438,{"$f":"Menu!$F$29","v":"X"},{"$f":"Menu!$J$29","v":2020},{"$f":"IF(ISBLANK(INDIRECT(\"'\"&F9567&\"'!\"&G9567)),\"\",INDIRECT(\"'\"&F9567&\"'!\"&G9567))","v":""},{"$f":"IF(ISBLANK(INDIRECT(\"'\"&F9567&\"'!\"&H9567)),\"\",IFERROR(VLOOKUP(TEXT(INDIRECT(\"'\"&F9567&\"'!\"&H9567),\"0\"),Notes!$B$5:$C$100,2,FALSE),\"\"))","v":""},"2c","$K$57","$L$57"]
[38439,{"$f":"Menu!$F$29","v":"X"},{"$f":"Menu!$J$29","v":2020},{"$f":"IF(ISBLANK(INDIRECT(\"'\"&F9568&\"'!\"&G9568)),\"\",INDIRECT(\"'\"&F9568&\"'!\"&G9568))","v":""},{"$f":"IF(ISBLANK(INDIRECT(\"'\"&F9568&\"'!\"&H9568)),\"\",IFERROR(VLOOKUP(TEXT(INDIRECT(\"'\"&F9568&\"'!\"&H9568),\"0\"),Notes!$B$5:$C$100,2,FALSE),\"\"))","v":""},"2c","$O$57","$P$57"]
[38440,{"$f":"Menu!$F$29","v":"X"},{"$f":"Menu!$J$29","v":2020},{"$f":"IF(ISBLANK(INDIRECT(\"'\"&F9569&\"'!\"&G9569)),\"\",INDIRECT(\"'\"&F9569&\"'!\"&G9569))","v":""},{"$f":"IF(ISBLANK(INDIRECT(\"'\"&F9569&\"'!\"&H9569)),\"\",IFERROR(VLOOKUP(TEXT(INDIRECT(\"'\"&F9569&\"'!\"&H9569),\"0\"),Notes!$B$5:$C$100,2,FALSE),\"\"))","v":""},"2c","$M$57","$N$57"]
[38441,{"$f":"Menu!$F$29","v":"X"},{"$f":"Menu!$J$29","v":2020},{"$f":"IF(ISBLANK(INDIRECT(\"'\"&F9570&\"'!\"&G9570)),\"\",INDIRECT(\"'\"&F9570&\"'!\"&G9570))","v":""},{"$f":"IF(ISBLANK(INDIRECT(\"'\"&F9570&\"'!\"&H9570)),\"\",IFERROR(VLOOKUP(TEXT(INDIRECT(\"'\"&F9570&\"'!\"&H9570),\"0\"),Notes!$B$5:$C$100,2,FALSE),\"\"))","v":""},"2c","$Q$57","$R$57"]
[38442,{"$f":"Menu!$F$29","v":"X"},{"$f":"Menu!$J$29","v":2020},{"$f":"IF(ISBLANK(INDIRECT(\"'\"&F9571&\"'!\"&G9571)),\"\",INDIRECT(\"'\"&F9571&\"'!\"&G9571))","v":""},{"$f":"IF(ISBLANK(INDIRECT(\"'\"&F9571&\"'!\"&H9571)),\"\",IFERROR(VLOOKUP(TEXT(INDIRECT(\"'\"&F9571&\"'!\"&H9571),\"0\"),Notes!$B$5:$C$100,2,FALSE),\"\"))","v":""},"2c","$U$57","$V$57"]
[38443,{"$f":"Menu!$F$29","v":"X"},{"$f":"Menu!$J$29","v":2020},{"$f":"IF(ISBLANK(INDIRECT(\"'\"&F9572&\"'!\"&G9572)),\"\",INDIRECT(\"'\"&F9572&\"'!\"&G9572))","v":""},{"$f":"IF(ISBLANK(INDIRECT(\"'\"&F9572&\"'!\"&H9572)),\"\",IFERROR(VLOOKUP(TEXT(INDIRECT(\"'\"&F9572&\"'!\"&H9572),\"0\"),Notes!$B$5:$C$100,2,FALSE),\"\"))","v":""},"2c","$S$57","$T$57"]
[38444,{"$f":"Menu!$F$29","v":"X"},{"$f":"Menu!$J$29","v":2020},{"$f":"IF(ISBLANK(INDIRECT(\"'\"&F9573&\"'!\"&G9573)),\"\",INDIRECT(\"'\"&F9573&\"'!\"&G9573))","v":""},{"$f":"IF(ISBLANK(INDIRECT(\"'\"&F9573&\"'!\"&H9573)),\"\",IFERROR(VLOOKUP(TEXT(INDIRECT(\"'\"&F9573&\"'!\"&H9573),\"0\"),Notes!$B$5:$C$100,2,FALSE),\"\"))","v":""},"2c","$W$57","$X$57"]
[38445,{"$f":"Menu!$F$29","v":"X"},{"$f":"Menu!$J$29","v":2020},{"$f":"IF(ISBLANK(INDIRECT(\"'\"&F9574&\"'!\"&G9574)),\"\",INDIRECT(\"'\"&F9574&\"'!\"&G9574))","v":""},{"$f":"IF(ISBLANK(INDIRECT(\"'\"&F9574&\"'!\"&H9574)),\"\",IFERROR(VLOOKUP(TEXT(INDIRECT(\"'\"&F9574&\"'!\"&H9574),\"0\"),Notes!$B$5:$C$100,2,FALSE),\"\"))","v":""},"2c","$AA$57","$AB$57"]
[38446,{"$f":"Menu!$F$29","v":"X"},{"$f":"Menu!$J$29","v":2020},{"$f":"IF(ISBLANK(INDIRECT(\"'\"&F9575&\"'!\"&G9575)),\"\",INDIRECT(\"'\"&F9575&\"'!\"&G9575))","v":""},{"$f":"IF(ISBLANK(INDIRECT(\"'\"&F9575&\"'!\"&H9575)),\"\",IFERROR(VLOOKUP(TEXT(INDIRECT(\"'\"&F9575&\"'!\"&H9575),\"0\"),Notes!$B$5:$C$100,2,FALSE),\"\"))","v":""},"2c","$Y$57","$Z$57"]
[38453,{"$f":"Menu!$F$29","v":"X"},{"$f":"Menu!$J$29","v":2020},{"$f":"IF(ISBLANK(INDIRECT(\"'\"&F9576&\"'!\"&G9576)),\"\",INDIRECT(\"'\"&F9576&\"'!\"&G9576))","v":""},{"$f":"IF(ISBLANK(INDIRECT(\"'\"&F9576&\"'!\"&H9576)),\"\",IFERROR(VLOOKUP(TEXT(INDIRECT(\"'\"&F9576&\"'!\"&H9576),\"0\"),Notes!$B$5:$C$100,2,FALSE),\"\"))","v":""},"2e","$BG$58","$BH$58"]
[38454,{"$f":"Menu!$F$29","v":"X"},{"$f":"Menu!$J$29","v":2020},{"$f":"IF(ISBLANK(INDIRECT(\"'\"&F9577&\"'!\"&G9577)),\"\",INDIRECT(\"'\"&F9577&\"'!\"&G9577))","v":""},{"$f":"IF(ISBLANK(INDIRECT(\"'\"&F9577&\"'!\"&H9577)),\"\",IFERROR(VLOOKUP(TEXT(INDIRECT(\"'\"&F9577&\"'!\"&H9577),\"0\"),Notes!$B$5:$C$100,2,FALSE),\"\"))","v":""},"2e","$BK$58","$BL$58"]
[38455,{"$f":"Menu!$F$29","v":"X"},{"$f":"Menu!$J$29","v":2020},{"$f":"IF(ISBLANK(INDIRECT(\"'\"&F9578&\"'!\"&G9578)),\"\",INDIRECT(\"'\"&F9578&\"'!\"&G9578))","v":""},{"$f":"IF(ISBLANK(INDIRECT(\"'\"&F9578&\"'!\"&H9578)),\"\",IFERROR(VLOOKUP(TEXT(INDIRECT(\"'\"&F9578&\"'!\"&H9578),\"0\"),Notes!$B$5:$C$100,2,FALSE),\"\"))","v":""},"2e","$BI$58","$BJ$58"]
[38456,{"$f":"Menu!$F$29","v":"X"},{"$f":"Menu!$J$29","v":2020},{"$f":"IF(ISBLANK(INDIRECT(\"'\"&F9579&\"'!\"&G9579)),\"\",INDIRECT(\"'\"&F9579&\"'!\"&G9579))","v":""},{"$f":"IF(ISBLANK(INDIRECT(\"'\"&F9579&\"'!\"&H9579)),\"\",IFERROR(VLOOKUP(TEXT(INDIRECT(\"'\"&F9579&\"'!\"&H9579),\"0\"),Notes!$B$5:$C$100,2,FALSE),\"\"))","v":""},"2e","$E$58","$F$58"]
[38457,{"$f":"Menu!$F$29","v":"X"},{"$f":"Menu!$J$29","v":2020},{"$f":"IF(ISBLANK(INDIRECT(\"'\"&F9580&\"'!\"&G9580)),\"\",INDIRECT(\"'\"&F9580&\"'!\"&G9580))","v":""},{"$f":"IF(ISBLANK(INDIRECT(\"'\"&F9580&\"'!\"&H9580)),\"\",IFERROR(VLOOKUP(TEXT(INDIRECT(\"'\"&F9580&\"'!\"&H9580),\"0\"),Notes!$B$5:$C$100,2,FALSE),\"\"))","v":""},"2e","$I$58","$J$58"]
[38458,{"$f":"Menu!$F$29","v":"X"},{"$f":"Menu!$J$29","v":2020},{"$f":"IF(ISBLANK(INDIRECT(\"'\"&F9581&\"'!\"&G9581)),\"\",INDIRECT(\"'\"&F9581&\"'!\"&G9581))","v":""},{"$f":"IF(ISBLANK(INDIRECT(\"'\"&F9581&\"'!\"&H9581)),\"\",IFERROR(VLOOKUP(TEXT(INDIRECT(\"'\"&F9581&\"'!\"&H9581),\"0\"),Notes!$B$5:$C$100,2,FALSE),\"\"))","v":""},"2e","$G$58","$H$58"]
[38459,{"$f":"Menu!$F$29","v":"X"},{"$f":"Menu!$J$29","v":2020},{"$f":"IF(ISBLANK(INDIRECT(\"'\"&F9582&\"'!\"&G9582)),\"\",INDIRECT(\"'\"&F9582&\"'!\"&G9582))","v":""},{"$f":"IF(ISBLANK(INDIRECT(\"'\"&F9582&\"'!\"&H9582)),\"\",IFERROR(VLOOKUP(TEXT(INDIRECT(\"'\"&F9582&\"'!\"&H9582),\"0\"),Notes!$B$5:$C$100,2,FALSE),\"\"))","v":""},"2e","$K$58","$L$58"]
[38460,{"$f":"Menu!$F$29","v":"X"},{"$f":"Menu!$J$29","v":2020},{"$f":"IF(ISBLANK(INDIRECT(\"'\"&F9583&\"'!\"&G9583)),\"\",INDIRECT(\"'\"&F9583&\"'!\"&G9583))","v":""},{"$f":"IF(ISBLANK(INDIRECT(\"'\"&F9583&\"'!\"&H9583)),\"\",IFERROR(VLOOKUP(TEXT(INDIRECT(\"'\"&F9583&\"'!\"&H9583),\"0\"),Notes!$B$5:$C$100,2,FALSE),\"\"))","v":""},"2e","$O$58","$P$58"]
[38461,{"$f":"Menu!$F$29","v":"X"},{"$f":"Menu!$J$29","v":2020},{"$f":"IF(ISBLANK(INDIRECT(\"'\"&F9584&\"'!\"&G9584)),\"\",INDIRECT(\"'\"&F9584&\"'!\"&G9584))","v":""},{"$f":"IF(ISBLANK(INDIRECT(\"'\"&F9584&\"'!\"&H9584)),\"\",IFERROR(VLOOKUP(TEXT(INDIRECT(\"'\"&F9584&\"'!\"&H9584),\"0\"),Notes!$B$5:$C$100,2,FALSE),\"\"))","v":""},"2e","$M$58","$N$58"]
[38462,{"$f":"Menu!$F$29","v":"X"},{"$f":"Menu!$J$29","v":2020},{"$f":"IF(ISBLANK(INDIRECT(\"'\"&F9585&\"'!\"&G9585)),\"\",INDIRECT(\"'\"&F9585&\"'!\"&G9585))","v":""},{"$f":"IF(ISBLANK(INDIRECT(\"'\"&F9585&\"'!\"&H9585)),\"\",IFERROR(VLOOKUP(TEXT(INDIRECT(\"'\"&F9585&\"'!\"&H9585),\"0\"),Notes!$B$5:$C$100,2,FALSE),\"\"))","v":""},"2e","$Q$58","$R$58"]
[38463,{"$f":"Menu!$F$29","v":"X"},{"$f":"Menu!$J$29","v":2020},{"$f":"IF(ISBLANK(INDIRECT(\"'\"&F9586&\"'!\"&G9586)),\"\",INDIRECT(\"'\"&F9586&\"'!\"&G9586))","v":""},{"$f":"IF(ISBLANK(INDIRECT(\"'\"&F9586&\"'!\"&H9586)),\"\",IFERROR(VLOOKUP(TEXT(INDIRECT(\"'\"&F9586&\"'!\"&H9586),\"0\"),Notes!$B$5:$C$100,2,FALSE),\"\"))","v":""},"2e","$U$58","$V$58"]
[38464,{"$f":"Menu!$F$29","v":"X"},{"$f":"Menu!$J$29","v":2020},{"$f":"IF(ISBLANK(INDIRECT(\"'\"&F9587&\"'!\"&G9587)),\"\",INDIRECT(\"'\"&F9587&\"'!\"&G9587))","v":""},{"$f":"IF(ISBLANK(INDIRECT(\"'\"&F9587&\"'!\"&H9587)),\"\",IFERROR(VLOOKUP(TEXT(INDIRECT(\"'\"&F9587&\"'!\"&H9587),\"0\"),Notes!$B$5:$C$100,2,FALSE),\"\"))","v":""},"2e","$S$58","$T$58"]
[38465,{"$f":"Menu!$F$29","v":"X"},{"$f":"Menu!$J$29","v":2020},{"$f":"IF(ISBLANK(INDIRECT(\"'\"&F9588&\"'!\"&G9588)),\"\",INDIRECT(\"'\"&F9588&\"'!\"&G9588))","v":""},{"$f":"IF(ISBLANK(INDIRECT(\"'\"&F9588&\"'!\"&H9588)),\"\",IFERROR(VLOOKUP(TEXT(INDIRECT(\"'\"&F9588&\"'!\"&H9588),\"0\"),Notes!$B$5:$C$100,2,FALSE),\"\"))","v":""},"2e","$W$58","$X$58"]
[38466,{"$f":"Menu!$F$29","v":"X"},{"$f":"Menu!$J$29","v":2020},{"$f":"IF(ISBLANK(INDIRECT(\"'\"&F9589&\"'!\"&G9589)),\"\",INDIRECT(\"'\"&F9589&\"'!\"&G9589))","v":""},{"$f":"IF(ISBLANK(INDIRECT(\"'\"&F9589&\"'!\"&H9589)),\"\",IFERROR(VLOOKUP(TEXT(INDIRECT(\"'\"&F9589&\"'!\"&H9589),\"0\"),Notes!$B$5:$C$100,2,FALSE),\"\"))","v":""},"2e","$AA$58","$AB$58"]
[38467,{"$f":"Menu!$F$29","v":"X"},{"$f":"Menu!$J$29","v":2020},{"$f":"IF(ISBLANK(INDIRECT(\"'\"&F9590&\"'!\"&G9590)),\"\",INDIRECT(\"'\"&F9590&\"'!\"&G9590))","v":""},{"$f":"IF(ISBLANK(INDIRECT(\"'\"&F9590&\"'!\"&H9590)),\"\",IFERROR(VLOOKUP(TEXT(INDIRECT(\"'\"&F9590&\"'!\"&H9590),\"0\"),Notes!$B$5:$C$100,2,FALSE),\"\"))","v":""},"2e","$Y$58","$Z$58"]
[38468,{"$f":"Menu!$F$29","v":"X"},{"$f":"Menu!$J$29","v":2020},{"$f":"IF(ISBLANK(INDIRECT(\"'\"&F9591&\"'!\"&G9591)),\"\",INDIRECT(\"'\"&F9591&\"'!\"&G9591))","v":""},{"$f":"IF(ISBLANK(INDIRECT(\"'\"&F9591&\"'!\"&H9591)),\"\",IFERROR(VLOOKUP(TEXT(INDIRECT(\"'\"&F9591&\"'!\"&H9591),\"0\"),Notes!$B$5:$C$100,2,FALSE),\"\"))","v":""},"2e","$AC$58","$AD$58"]
[38469,{"$f":"Menu!$F$29","v":"X"},{"$f":"Menu!$J$29","v":2020},{"$f":"IF(ISBLANK(INDIRECT(\"'\"&F9592&\"'!\"&G9592)),\"\",INDIRECT(\"'\"&F9592&\"'!\"&G9592))","v":""},{"$f":"IF(ISBLANK(INDIRECT(\"'\"&F9592&\"'!\"&H9592)),\"\",IFERROR(VLOOKUP(TEXT(INDIRECT(\"'\"&F9592&\"'!\"&H9592),\"0\"),Notes!$B$5:$C$100,2,FALSE),\"\"))","v":""},"2e","$AG$58","$AH$58"]
[38470,{"$f":"Menu!$F$29","v":"X"},{"$f":"Menu!$J$29","v":2020},{"$f":"IF(ISBLANK(INDIRECT(\"'\"&F9593&\"'!\"&G9593)),\"\",INDIRECT(\"'\"&F9593&\"'!\"&G9593))","v":""},{"$f":"IF(ISBLANK(INDIRECT(\"'\"&F9593&\"'!\"&H9593)),\"\",IFERROR(VLOOKUP(TEXT(INDIRECT(\"'\"&F9593&\"'!\"&H9593),\"0\"),Notes!$B$5:$C$100,2,FALSE),\"\"))","v":""},"2e","$AE$58","$AF$58"]
[38471,{"$f":"Menu!$F$29","v":"X"},{"$f":"Menu!$J$29","v":2020},{"$f":"IF(ISBLANK(INDIRECT(\"'\"&F9594&\"'!\"&G9594)),\"\",INDIRECT(\"'\"&F9594&\"'!\"&G9594))","v":""},{"$f":"IF(ISBLANK(INDIRECT(\"'\"&F9594&\"'!\"&H9594)),\"\",IFERROR(VLOOKUP(TEXT(INDIRECT(\"'\"&F9594&\"'!\"&H9594),\"0\"),Notes!$B$5:$C$100,2,FALSE),\"\"))","v":""},"2e","$AI$58","$AJ$58"]
[38472,{"$f":"Menu!$F$29","v":"X"},{"$f":"Menu!$J$29","v":2020},{"$f":"IF(ISBLANK(INDIRECT(\"'\"&F9595&\"'!\"&G9595)),\"\",INDIRECT(\"'\"&F9595&\"'!\"&G9595))","v":""},{"$f":"IF(ISBLANK(INDIRECT(\"'\"&F9595&\"'!\"&H9595)),\"\",IFERROR(VLOOKUP(TEXT(INDIRECT(\"'\"&F9595&\"'!\"&H9595),\"0\"),Notes!$B$5:$C$100,2,FALSE),\"\"))","v":""},"2e","$AM$58","$AN$58"]
[38473,{"$f":"Menu!$F$29","v":"X"},{"$f":"Menu!$J$29","v":2020},{"$f":"IF(ISBLANK(INDIRECT(\"'\"&F9596&\"'!\"&G9596)),\"\",INDIRECT(\"'\"&F9596&\"'!\"&G9596))","v":""},{"$f":"IF(ISBLANK(INDIRECT(\"'\"&F9596&\"'!\"&H9596)),\"\",IFERROR(VLOOKUP(TEXT(INDIRECT(\"'\"&F9596&\"'!\"&H9596),\"0\"),Notes!$B$5:$C$100,2,FALSE),\"\"))","v":""},"2e","$AK$58","$AL$58"]
[38474,{"$f":"Menu!$F$29","v":"X"},{"$f":"Menu!$J$29","v":2020},{"$f":"IF(ISBLANK(INDIRECT(\"'\"&F9597&\"'!\"&G9597)),\"\",INDIRECT(\"'\"&F9597&\"'!\"&G9597))","v":""},{"$f":"IF(ISBLANK(INDIRECT(\"'\"&F9597&\"'!\"&H9597)),\"\",IFERROR(VLOOKUP(TEXT(INDIRECT(\"'\"&F9597&\"'!\"&H9597),\"0\"),Notes!$B$5:$C$100,2,FALSE),\"\"))","v":""},"2e","$AO$58","$AP$58"]
[38475,{"$f":"Menu!$F$29","v":"X"},{"$f":"Menu!$J$29","v":2020},{"$f":"IF(ISBLANK(INDIRECT(\"'\"&F9598&\"'!\"&G9598)),\"\",INDIRECT(\"'\"&F9598&\"'!\"&G9598))","v":""},{"$f":"IF(ISBLANK(INDIRECT(\"'\"&F9598&\"'!\"&H9598)),\"\",IFERROR(VLOOKUP(TEXT(INDIRECT(\"'\"&F9598&\"'!\"&H9598),\"0\"),Notes!$B$5:$C$100,2,FALSE),\"\"))","v":""},"2e","$AS$58","$AT$58"]
[38476,{"$f":"Menu!$F$29","v":"X"},{"$f":"Menu!$J$29","v":2020},{"$f":"IF(ISBLANK(INDIRECT(\"'\"&F9599&\"'!\"&G9599)),\"\",INDIRECT(\"'\"&F9599&\"'!\"&G9599))","v":""},{"$f":"IF(ISBLANK(INDIRECT(\"'\"&F9599&\"'!\"&H9599)),\"\",IFERROR(VLOOKUP(TEXT(INDIRECT(\"'\"&F9599&\"'!\"&H9599),\"0\"),Notes!$B$5:$C$100,2,FALSE),\"\"))","v":""},"2e","$AQ$58","$AR$58"]
[38477,{"$f":"Menu!$F$29","v":"X"},{"$f":"Menu!$J$29","v":2020},{"$f":"IF(ISBLANK(INDIRECT(\"'\"&F9600&\"'!\"&G9600)),\"\",INDIRECT(\"'\"&F9600&\"'!\"&G9600))","v":""},{"$f":"IF(ISBLANK(INDIRECT(\"'\"&F9600&\"'!\"&H9600)),\"\",IFERROR(VLOOKUP(TEXT(INDIRECT(\"'\"&F9600&\"'!\"&H9600),\"0\"),Notes!$B$5:$C$100,2,FALSE),\"\"))","v":""},"2e","$AU$58","$AV$58"]
[38478,{"$f":"Menu!$F$29","v":"X"},{"$f":"Menu!$J$29","v":2020},{"$f":"IF(ISBLANK(INDIRECT(\"'\"&F9601&\"'!\"&G9601)),\"\",INDIRECT(\"'\"&F9601&\"'!\"&G9601))","v":""},{"$f":"IF(ISBLANK(INDIRECT(\"'\"&F9601&\"'!\"&H9601)),\"\",IFERROR(VLOOKUP(TEXT(INDIRECT(\"'\"&F9601&\"'!\"&H9601),\"0\"),Notes!$B$5:$C$100,2,FALSE),\"\"))","v":""},"2e","$AY$58","$AZ$58"]
[38479,{"$f":"Menu!$F$29","v":"X"},{"$f":"Menu!$J$29","v":2020},{"$f":"IF(ISBLANK(INDIRECT(\"'\"&F9602&\"'!\"&G9602)),\"\",INDIRECT(\"'\"&F9602&\"'!\"&G9602))","v":""},{"$f":"IF(ISBLANK(INDIRECT(\"'\"&F9602&\"'!\"&H9602)),\"\",IFERROR(VLOOKUP(TEXT(INDIRECT(\"'\"&F9602&\"'!\"&H9602),\"0\"),Notes!$B$5:$C$100,2,FALSE),\"\"))","v":""},"2e","$AW$58",{"$f":"IF(LEN(TRIM(MID(G9602,4,10)))-LEN(SUBSTITUTE(TRIM(MID(G9602,4,10)),\"$\",\"\"))=0,\"$\"&CHAR(CODE(MID(G9602,2,1))+1)&\"$\"&TRIM(MID(G9602,4,10)),\"$\"&MID(G9602,2,1)&CHAR(CODE(MID(G9602,3,1))+1)&\"$\"&TRIM(MID(G9602,5,11)))","v":"$AX$58"}]
[38480,{"$f":"Menu!$F$29","v":"X"},{"$f":"Menu!$J$29","v":2020},{"$f":"IF(ISBLANK(INDIRECT(\"'\"&F9603&\"'!\"&G9603)),\"\",INDIRECT(\"'\"&F9603&\"'!\"&G9603))","v":""},{"$f":"IF(ISBLANK(INDIRECT(\"'\"&F9603&\"'!\"&H9603)),\"\",IFERROR(VLOOKUP(TEXT(INDIRECT(\"'\"&F9603&\"'!\"&H9603),\"0\"),Notes!$B$5:$C$100,2,FALSE),\"\"))","v":""},"2e","$BA$58","$BB$58"]
[38481,{"$f":"Menu!$F$29","v":"X"},{"$f":"Menu!$J$29","v":2020},{"$f":"IF(ISBLANK(INDIRECT(\"'\"&F9604&\"'!\"&G9604)),\"\",INDIRECT(\"'\"&F9604&\"'!\"&G9604))","v":""},{"$f":"IF(ISBLANK(INDIRECT(\"'\"&F9604&\"'!\"&H9604)),\"\",IFERROR(VLOOKUP(TEXT(INDIRECT(\"'\"&F9604&\"'!\"&H9604),\"0\"),Notes!$B$5:$C$100,2,FALSE),\"\"))","v":""},"2e","$BE$58","$BF$58"]
[38482,{"$f":"Menu!$F$29","v":"X"},{"$f":"Menu!$J$29","v":2020},{"$f":"IF(ISBLANK(INDIRECT(\"'\"&F9605&\"'!\"&G9605)),\"\",INDIRECT(\"'\"&F9605&\"'!\"&G9605))","v":""},{"$f":"IF(ISBLANK(INDIRECT(\"'\"&F9605&\"'!\"&H9605)),\"\",IFERROR(VLOOKUP(TEXT(INDIRECT(\"'\"&F9605&\"'!\"&H9605),\"0\"),Notes!$B$5:$C$100,2,FALSE),\"\"))","v":""},"2e","$BC$58","$BD$58"]
[38483,{"$f":"Menu!$F$29","v":"X"},{"$f":"Menu!$J$29","v":2020},{"$f":"IF(ISBLANK(INDIRECT(\"'\"&F9606&\"'!\"&G9606)),\"\",INDIRECT(\"'\"&F9606&\"'!\"&G9606))","v":""},{"$f":"IF(ISBLANK(INDIRECT(\"'\"&F9606&\"'!\"&H9606)),\"\",IFERROR(VLOOKUP(TEXT(INDIRECT(\"'\"&F9606&\"'!\"&H9606),\"0\"),Notes!$B$5:$C$100,2,FALSE),\"\"))","v":""},"2b","$E$57","$F$57"]
[38484,{"$f":"Menu!$F$29","v":"X"},{"$f":"Menu!$J$29","v":2020},{"$f":"IF(ISBLANK(INDIRECT(\"'\"&F9607&\"'!\"&G9607)),\"\",INDIRECT(\"'\"&F9607&\"'!\"&G9607))","v":""},{"$f":"IF(ISBLANK(INDIRECT(\"'\"&F9607&\"'!\"&H9607)),\"\",IFERROR(VLOOKUP(TEXT(INDIRECT(\"'\"&F9607&\"'!\"&H9607),\"0\"),Notes!$B$5:$C$100,2,FALSE),\"\"))","v":""},"2b","$I$57","$J$57"]
[38485,{"$f":"Menu!$F$29","v":"X"},{"$f":"Menu!$J$29","v":2020},{"$f":"IF(ISBLANK(INDIRECT(\"'\"&F9608&\"'!\"&G9608)),\"\",INDIRECT(\"'\"&F9608&\"'!\"&G9608))","v":""},{"$f":"IF(ISBLANK(INDIRECT(\"'\"&F9608&\"'!\"&H9608)),\"\",IFERROR(VLOOKUP(TEXT(INDIRECT(\"'\"&F9608&\"'!\"&H9608),\"0\"),Notes!$B$5:$C$100,2,FALSE),\"\"))","v":""},"2b","$G$57","$H$57"]
[38486,{"$f":"Menu!$F$29","v":"X"},{"$f":"Menu!$J$29","v":2020},{"$f":"IF(ISBLANK(INDIRECT(\"'\"&F9609&\"'!\"&G9609)),\"\",INDIRECT(\"'\"&F9609&\"'!\"&G9609))","v":""},{"$f":"IF(ISBLANK(INDIRECT(\"'\"&F9609&\"'!\"&H9609)),\"\",IFERROR(VLOOKUP(TEXT(INDIRECT(\"'\"&F9609&\"'!\"&H9609),\"0\"),Notes!$B$5:$C$100,2,FALSE),\"\"))","v":""},"2a","$G$57","$H$57"]
[38487,{"$f":"Menu!$F$29","v":"X"},{"$f":"Menu!$J$29","v":2020},{"$f":"IF(ISBLANK(INDIRECT(\"'\"&F9610&\"'!\"&G9610)),\"\",INDIRECT(\"'\"&F9610&\"'!\"&G9610))","v":""},{"$f":"IF(ISBLANK(INDIRECT(\"'\"&F9610&\"'!\"&H9610)),\"\",IFERROR(VLOOKUP(TEXT(INDIRECT(\"'\"&F9610&\"'!\"&H9610),\"0\"),Notes!$B$5:$C$100,2,FALSE),\"\"))","v":""},"2b","$W$57","$X$57"]
[38488,{"$f":"Menu!$F$29","v":"X"},{"$f":"Menu!$J$29","v":2020},{"$f":"IF(ISBLANK(INDIRECT(\"'\"&F9611&\"'!\"&G9611)),\"\",INDIRECT(\"'\"&F9611&\"'!\"&G9611))","v":""},{"$f":"IF(ISBLANK(INDIRECT(\"'\"&F9611&\"'!\"&H9611)),\"\",IFERROR(VLOOKUP(TEXT(INDIRECT(\"'\"&F9611&\"'!\"&H9611),\"0\"),Notes!$B$5:$C$100,2,FALSE),\"\"))","v":""},"2b","$AA$57","$AB$57"]
[38489,{"$f":"Menu!$F$29","v":"X"},{"$f":"Menu!$J$29","v":2020},{"$f":"IF(ISBLANK(INDIRECT(\"'\"&F9612&\"'!\"&G9612)),\"\",INDIRECT(\"'\"&F9612&\"'!\"&G9612))","v":""},{"$f":"IF(ISBLANK(INDIRECT(\"'\"&F9612&\"'!\"&H9612)),\"\",IFERROR(VLOOKUP(TEXT(INDIRECT(\"'\"&F9612&\"'!\"&H9612),\"0\"),Notes!$B$5:$C$100,2,FALSE),\"\"))","v":""},"2b","$Y$57","$Z$57"]
[38490,{"$f":"Menu!$F$29","v":"X"},{"$f":"Menu!$J$29","v":2020},{"$f":"IF(ISBLANK(INDIRECT(\"'\"&F9613&\"'!\"&G9613)),\"\",INDIRECT(\"'\"&F9613&\"'!\"&G9613))","v":""},{"$f":"IF(ISBLANK(INDIRECT(\"'\"&F9613&\"'!\"&H9613)),\"\",IFERROR(VLOOKUP(TEXT(INDIRECT(\"'\"&F9613&\"'!\"&H9613),\"0\"),Notes!$B$5:$C$100,2,FALSE),\"\"))","v":""},"2d","$AC$57","$AD$57"]
[38491,{"$f":"Menu!$F$29","v":"X"},{"$f":"Menu!$J$29","v":2020},{"$f":"IF(ISBLANK(INDIRECT(\"'\"&F9614&\"'!\"&G9614)),\"\",INDIRECT(\"'\"&F9614&\"'!\"&G9614))","v":""},{"$f":"IF(ISBLANK(INDIRECT(\"'\"&F9614&\"'!\"&H9614)),\"\",IFERROR(VLOOKUP(TEXT(INDIRECT(\"'\"&F9614&\"'!\"&H9614),\"0\"),Notes!$B$5:$C$100,2,FALSE),\"\"))","v":""},"2d","$AG$57","$AH$57"]
[38492,{"$f":"Menu!$F$29","v":"X"},{"$f":"Menu!$J$29","v":2020},{"$f":"IF(ISBLANK(INDIRECT(\"'\"&F9615&\"'!\"&G9615)),\"\",INDIRECT(\"'\"&F9615&\"'!\"&G9615))","v":""},{"$f":"IF(ISBLANK(INDIRECT(\"'\"&F9615&\"'!\"&H9615)),\"\",IFERROR(VLOOKUP(TEXT(INDIRECT(\"'\"&F9615&\"'!\"&H9615),\"0\"),Notes!$B$5:$C$100,2,FALSE),\"\"))","v":""},"2d","$AE$57","$AF$57"]
[38493,{"$f":"Menu!$F$29","v":"X"},{"$f":"Menu!$J$29","v":2020},{"$f":"IF(ISBLANK(INDIRECT(\"'\"&F9616&\"'!\"&G9616)),\"\",INDIRECT(\"'\"&F9616&\"'!\"&G9616))","v":""},{"$f":"IF(ISBLANK(INDIRECT(\"'\"&F9616&\"'!\"&H9616)),\"\",IFERROR(VLOOKUP(TEXT(INDIRECT(\"'\"&F9616&\"'!\"&H9616),\"0\"),Notes!$B$5:$C$100,2,FALSE),\"\"))","v":""},"2d","$W$57","$X$57"]
[38494,{"$f":"Menu!$F$29","v":"X"},{"$f":"Menu!$J$29","v":2020},{"$f":"IF(ISBLANK(INDIRECT(\"'\"&F9617&\"'!\"&G9617)),\"\",INDIRECT(\"'\"&F9617&\"'!\"&G9617))","v":""},{"$f":"IF(ISBLANK(INDIRECT(\"'\"&F9617&\"'!\"&H9617)),\"\",IFERROR(VLOOKUP(TEXT(INDIRECT(\"'\"&F9617&\"'!\"&H9617),\"0\"),Notes!$B$5:$C$100,2,FALSE),\"\"))","v":""},"2d","$AA$57","$AB$57"]
[38495,{"$f":"Menu!$F$29","v":"X"},{"$f":"Menu!$J$29","v":2020},{"$f":"IF(ISBLANK(INDIRECT(\"'\"&F9618&\"'!\"&G9618)),\"\",INDIRECT(\"'\"&F9618&\"'!\"&G9618))","v":""},{"$f":"IF(ISBLANK(INDIRECT(\"'\"&F9618&\"'!\"&H9618)),\"\",IFERROR(VLOOKUP(TEXT(INDIRECT(\"'\"&F9618&\"'!\"&H9618),\"0\"),Notes!$B$5:$C$100,2,FALSE),\"\"))","v":""},"2d","$Y$57","$Z$57"]
[38496,{"$f":"Menu!$F$29","v":"X"},{"$f":"Menu!$J$29","v":2020},{"$f":"IF(ISBLANK(INDIRECT(\"'\"&F9619&\"'!\"&G9619)),\"\",INDIRECT(\"'\"&F9619&\"'!\"&G9619))","v":""},{"$f":"IF(ISBLANK(INDIRECT(\"'\"&F9619&\"'!\"&H9619)),\"\",IFERROR(VLOOKUP(TEXT(INDIRECT(\"'\"&F9619&\"'!\"&H9619),\"0\"),Notes!$B$5:$C$100,2,FALSE),\"\"))","v":""},"2d","$E$57","$F$57"]
[38497,{"$f":"Menu!$F$29","v":"X"},{"$f":"Menu!$J$29","v":2020},{"$f":"IF(ISBLANK(INDIRECT(\"'\"&F9620&\"'!\"&G9620)),\"\",INDIRECT(\"'\"&F9620&\"'!\"&G9620))","v":""},{"$f":"IF(ISBLANK(INDIRECT(\"'\"&F9620&\"'!\"&H9620)),\"\",IFERROR(VLOOKUP(TEXT(INDIRECT(\"'\"&F9620&\"'!\"&H9620),\"0\"),Notes!$B$5:$C$100,2,FALSE),\"\"))","v":""},"2d","$I$57","$J$57"]
[38498,{"$f":"Menu!$F$29","v":"X"},{"$f":"Menu!$J$29","v":2020},{"$f":"IF(ISBLANK(INDIRECT(\"'\"&F9621&\"'!\"&G9621)),\"\",INDIRECT(\"'\"&F9621&\"'!\"&G9621))","v":""},{"$f":"IF(ISBLANK(INDIRECT(\"'\"&F9621&\"'!\"&H9621)),\"\",IFERROR(VLOOKUP(TEXT(INDIRECT(\"'\"&F9621&\"'!\"&H9621),\"0\"),Notes!$B$5:$C$100,2,FALSE),\"\"))","v":""},"2d","$G$57","$H$57"]
[38499,{"$f":"Menu!$F$29","v":"X"},{"$f":"Menu!$J$29","v":2020},{"$f":"IF(ISBLANK(INDIRECT(\"'\"&F9622&\"'!\"&G9622)),\"\",INDIRECT(\"'\"&F9622&\"'!\"&G9622))","v":""},{"$f":"IF(ISBLANK(INDIRECT(\"'\"&F9622&\"'!\"&H9622)),\"\",IFERROR(VLOOKUP(TEXT(INDIRECT(\"'\"&F9622&\"'!\"&H9622),\"0\"),Notes!$B$5:$C$100,2,FALSE),\"\"))","v":""},"2a","$Q$57","$R$57"]
[38500,{"$f":"Menu!$F$29","v":"X"},{"$f":"Menu!$J$29","v":2020},{"$f":"IF(ISBLANK(INDIRECT(\"'\"&F9623&\"'!\"&G9623)),\"\",INDIRECT(\"'\"&F9623&\"'!\"&G9623))","v":""},{"$f":"IF(ISBLANK(INDIRECT(\"'\"&F9623&\"'!\"&H9623)),\"\",IFERROR(VLOOKUP(TEXT(INDIRECT(\"'\"&F9623&\"'!\"&H9623),\"0\"),Notes!$B$5:$C$100,2,FALSE),\"\"))","v":""},"2a","$U$57","$V$57"]
[38501,{"$f":"Menu!$F$29","v":"X"},{"$f":"Menu!$J$29","v":2020},{"$f":"IF(ISBLANK(INDIRECT(\"'\"&F9624&\"'!\"&G9624)),\"\",INDIRECT(\"'\"&F9624&\"'!\"&G9624))","v":""},{"$f":"IF(ISBLANK(INDIRECT(\"'\"&F9624&\"'!\"&H9624)),\"\",IFERROR(VLOOKUP(TEXT(INDIRECT(\"'\"&F9624&\"'!\"&H9624),\"0\"),Notes!$B$5:$C$100,2,FALSE),\"\"))","v":""},"2a","$S$57","$T$57"]
[38502,{"$f":"Menu!$F$29","v":"X"},{"$f":"Menu!$J$29","v":2020},{"$f":"IF(ISBLANK(INDIRECT(\"'\"&F9625&\"'!\"&G9625)),\"\",INDIRECT(\"'\"&F9625&\"'!\"&G9625))","v":""},{"$f":"IF(ISBLANK(INDIRECT(\"'\"&F9625&\"'!\"&H9625)),\"\",IFERROR(VLOOKUP(TEXT(INDIRECT(\"'\"&F9625&\"'!\"&H9625),\"0\"),Notes!$B$5:$C$100,2,FALSE),\"\"))","v":""},"2d","$K$57","$L$57"]
[38503,{"$f":"Menu!$F$29","v":"X"},{"$f":"Menu!$J$29","v":2020},{"$f":"IF(ISBLANK(INDIRECT(\"'\"&F9626&\"'!\"&G9626)),\"\",INDIRECT(\"'\"&F9626&\"'!\"&G9626))","v":""},{"$f":"IF(ISBLANK(INDIRECT(\"'\"&F9626&\"'!\"&H9626)),\"\",IFERROR(VLOOKUP(TEXT(INDIRECT(\"'\"&F9626&\"'!\"&H9626),\"0\"),Notes!$B$5:$C$100,2,FALSE),\"\"))","v":""},"2d","$O$57","$P$57"]
[38504,{"$f":"Menu!$F$29","v":"X"},{"$f":"Menu!$J$29","v":2020},{"$f":"IF(ISBLANK(INDIRECT(\"'\"&F9627&\"'!\"&G9627)),\"\",INDIRECT(\"'\"&F9627&\"'!\"&G9627))","v":""},{"$f":"IF(ISBLANK(INDIRECT(\"'\"&F9627&\"'!\"&H9627)),\"\",IFERROR(VLOOKUP(TEXT(INDIRECT(\"'\"&F9627&\"'!\"&H9627),\"0\"),Notes!$B$5:$C$100,2,FALSE),\"\"))","v":""},"2d","$M$57","$N$57"]
[38505,{"$f":"Menu!$F$29","v":"X"},{"$f":"Menu!$J$29","v":2020},{"$f":"IF(ISBLANK(INDIRECT(\"'\"&F9628&\"'!\"&G9628)),\"\",INDIRECT(\"'\"&F9628&\"'!\"&G9628))","v":""},{"$f":"IF(ISBLANK(INDIRECT(\"'\"&F9628&\"'!\"&H9628)),\"\",IFERROR(VLOOKUP(TEXT(INDIRECT(\"'\"&F9628&\"'!\"&H9628),\"0\"),Notes!$B$5:$C$100,2,FALSE),\"\"))","v":""},"2d","$Q$57","$R$57"]
[38506,{"$f":"Menu!$F$29","v":"X"},{"$f":"Menu!$J$29","v":2020},{"$f":"IF(ISBLANK(INDIRECT(\"'\"&F9629&\"'!\"&G9629)),\"\",INDIRECT(\"'\"&F9629&\"'!\"&G9629))","v":""},{"$f":"IF(ISBLANK(INDIRECT(\"'\"&F9629&\"'!\"&H9629)),\"\",IFERROR(VLOOKUP(TEXT(INDIRECT(\"'\"&F9629&\"'!\"&H9629),\"0\"),Notes!$B$5:$C$100,2,FALSE),\"\"))","v":""},"2d","$U$57","$V$57"]
[38507,{"$f":"Menu!$F$29","v":"X"},{"$f":"Menu!$J$29","v":2020},{"$f":"IF(ISBLANK(INDIRECT(\"'\"&F9630&\"'!\"&G9630)),\"\",INDIRECT(\"'\"&F9630&\"'!\"&G9630))","v":""},{"$f":"IF(ISBLANK(INDIRECT(\"'\"&F9630&\"'!\"&H9630)),\"\",IFERROR(VLOOKUP(TEXT(INDIRECT(\"'\"&F9630&\"'!\"&H9630),\"0\"),Notes!$B$5:$C$100,2,FALSE),\"\"))","v":""},"2d","$S$57","$T$57"]
[38508,{"$f":"Menu!$F$29","v":"X"},{"$f":"Menu!$J$29","v":2020},{"$f":"IF(ISBLANK(INDIRECT(\"'\"&F9631&\"'!\"&G9631)),\"\",INDIRECT(\"'\"&F9631&\"'!\"&G9631))","v":""},{"$f":"IF(ISBLANK(INDIRECT(\"'\"&F9631&\"'!\"&H9631)),\"\",IFERROR(VLOOKUP(TEXT(INDIRECT(\"'\"&F9631&\"'!\"&H9631),\"0\"),Notes!$B$5:$C$100,2,FALSE),\"\"))","v":""},"2a","$K$57","$L$57"]
[38509,{"$f":"Menu!$F$29","v":"X"},{"$f":"Menu!$J$29","v":2020},{"$f":"IF(ISBLANK(INDIRECT(\"'\"&F9632&\"'!\"&G9632)),\"\",INDIRECT(\"'\"&F9632&\"'!\"&G9632))","v":""},{"$f":"IF(ISBLANK(INDIRECT(\"'\"&F9632&\"'!\"&H9632)),\"\",IFERROR(VLOOKUP(TEXT(INDIRECT(\"'\"&F9632&\"'!\"&H9632),\"0\"),Notes!$B$5:$C$100,2,FALSE),\"\"))","v":""},"2a","$O$57","$P$57"]
[38510,{"$f":"Menu!$F$29","v":"X"},{"$f":"Menu!$J$29","v":2020},{"$f":"IF(ISBLANK(INDIRECT(\"'\"&F9633&\"'!\"&G9633)),\"\",INDIRECT(\"'\"&F9633&\"'!\"&G9633))","v":""},{"$f":"IF(ISBLANK(INDIRECT(\"'\"&F9633&\"'!\"&H9633)),\"\",IFERROR(VLOOKUP(TEXT(INDIRECT(\"'\"&F9633&\"'!\"&H9633),\"0\"),Notes!$B$5:$C$100,2,FALSE),\"\"))","v":""},"2a","$M$57","$N$57"]
[38511,{"$f":"Menu!$F$29","v":"X"},{"$f":"Menu!$J$29","v":2020},{"$f":"IF(ISBLANK(INDIRECT(\"'\"&F9634&\"'!\"&G9634)),\"\",INDIRECT(\"'\"&F9634&\"'!\"&G9634))","v":""},{"$f":"IF(ISBLANK(INDIRECT(\"'\"&F9634&\"'!\"&H9634)),\"\",IFERROR(VLOOKUP(TEXT(INDIRECT(\"'\"&F9634&\"'!\"&H9634),\"0\"),Notes!$B$5:$C$100,2,FALSE),\"\"))","v":""},"2a","$E$57","$F$57"]
[38512,{"$f":"Menu!$F$29","v":"X"},{"$f":"Menu!$J$29","v":2020},{"$f":"IF(ISBLANK(INDIRECT(\"'\"&F9635&\"'!\"&G9635)),\"\",INDIRECT(\"'\"&F9635&\"'!\"&G9635))","v":""},{"$f":"IF(ISBLANK(INDIRECT(\"'\"&F9635&\"'!\"&H9635)),\"\",IFERROR(VLOOKUP(TEXT(INDIRECT(\"'\"&F9635&\"'!\"&H9635),\"0\"),Notes!$B$5:$C$100,2,FALSE),\"\"))","v":""},"2b","$K$58","$L$58"]
[38513,{"$f":"Menu!$F$29","v":"X"},{"$f":"Menu!$J$29","v":2020},{"$f":"IF(ISBLANK(INDIRECT(\"'\"&F9636&\"'!\"&G9636)),\"\",INDIRECT(\"'\"&F9636&\"'!\"&G9636))","v":""},{"$f":"IF(ISBLANK(INDIRECT(\"'\"&F9636&\"'!\"&H9636)),\"\",IFERROR(VLOOKUP(TEXT(INDIRECT(\"'\"&F9636&\"'!\"&H9636),\"0\"),Notes!$B$5:$C$100,2,FALSE),\"\"))","v":""},"2b","$O$58","$P$58"]
[38514,{"$f":"Menu!$F$29","v":"X"},{"$f":"Menu!$J$29","v":2020},{"$f":"IF(ISBLANK(INDIRECT(\"'\"&F9637&\"'!\"&G9637)),\"\",INDIRECT(\"'\"&F9637&\"'!\"&G9637))","v":""},{"$f":"IF(ISBLANK(INDIRECT(\"'\"&F9637&\"'!\"&H9637)),\"\",IFERROR(VLOOKUP(TEXT(INDIRECT(\"'\"&F9637&\"'!\"&H9637),\"0\"),Notes!$B$5:$C$100,2,FALSE),\"\"))","v":""},"2b","$M$58","$N$58"]
[38515,{"$f":"Menu!$F$29","v":"X"},{"$f":"Menu!$J$29","v":2020},{"$f":"IF(ISBLANK(INDIRECT(\"'\"&F9638&\"'!\"&G9638)),\"\",INDIRECT(\"'\"&F9638&\"'!\"&G9638))","v":""},{"$f":"IF(ISBLANK(INDIRECT(\"'\"&F9638&\"'!\"&H9638)),\"\",IFERROR(VLOOKUP(TEXT(INDIRECT(\"'\"&F9638&\"'!\"&H9638),\"0\"),Notes!$B$5:$C$100,2,FALSE),\"\"))","v":""},"2b","$Q$58","$R$58"]
[38516,{"$f":"Menu!$F$29","v":"X"},{"$f":"Menu!$J$29","v":2020},{"$f":"IF(ISBLANK(INDIRECT(\"'\"&F9639&\"'!\"&G9639)),\"\",INDIRECT(\"'\"&F9639&\"'!\"&G9639))","v":""},{"$f":"IF(ISBLANK(INDIRECT(\"'\"&F9639&\"'!\"&H9639)),\"\",IFERROR(VLOOKUP(TEXT(INDIRECT(\"'\"&F9639&\"'!\"&H9639),\"0\"),Notes!$B$5:$C$100,2,FALSE),\"\"))","v":""},"2b","$U$58","$V$58"]
[38517,{"$f":"Menu!$F$29","v":"X"},{"$f":"Menu!$J$29","v":2020},{"$f":"IF(ISBLANK(INDIRECT(\"'\"&F9640&\"'!\"&G9640)),\"\",INDIRECT(\"'\"&F9640&\"'!\"&G9640))","v":""},{"$f":"IF(ISBLANK(INDIRECT(\"'\"&F9640&\"'!\"&H9640)),\"\",IFERROR(VLOOKUP(TEXT(INDIRECT(\"'\"&F9640&\"'!\"&H9640),\"0\"),Notes!$B$5:$C$100,2,FALSE),\"\"))","v":""},"2b","$S$58","$T$58"]
[38521,{"$f":"Menu!$F$29","v":"X"},{"$f":"Menu!$J$29","v":2020},{"$f":"IF(ISBLANK(INDIRECT(\"'\"&F9641&\"'!\"&G9641)),\"\",INDIRECT(\"'\"&F9641&\"'!\"&G9641))","v":""},{"$f":"IF(ISBLANK(INDIRECT(\"'\"&F9641&\"'!\"&H9641)),\"\",IFERROR(VLOOKUP(TEXT(INDIRECT(\"'\"&F9641&\"'!\"&H9641),\"0\"),Notes!$B$5:$C$100,2,FALSE),\"\"))","v":""},"2a","$I$58","$J$58"]
[38522,{"$f":"Menu!$F$29","v":"X"},{"$f":"Menu!$J$29","v":2020},{"$f":"IF(ISBLANK(INDIRECT(\"'\"&F9642&\"'!\"&G9642)),\"\",INDIRECT(\"'\"&F9642&\"'!\"&G9642))","v":""},{"$f":"IF(ISBLANK(INDIRECT(\"'\"&F9642&\"'!\"&H9642)),\"\",IFERROR(VLOOKUP(TEXT(INDIRECT(\"'\"&F9642&\"'!\"&H9642),\"0\"),Notes!$B$5:$C$100,2,FALSE),\"\"))","v":""},"2c","$E$58","$F$58"]
[38523,{"$f":"Menu!$F$29","v":"X"},{"$f":"Menu!$J$29","v":2020},{"$f":"IF(ISBLANK(INDIRECT(\"'\"&F9643&\"'!\"&G9643)),\"\",INDIRECT(\"'\"&F9643&\"'!\"&G9643))","v":""},{"$f":"IF(ISBLANK(INDIRECT(\"'\"&F9643&\"'!\"&H9643)),\"\",IFERROR(VLOOKUP(TEXT(INDIRECT(\"'\"&F9643&\"'!\"&H9643),\"0\"),Notes!$B$5:$C$100,2,FALSE),\"\"))","v":""},"2c","$I$58","$J$58"]
[38524,{"$f":"Menu!$F$29","v":"X"},{"$f":"Menu!$J$29","v":2020},{"$f":"IF(ISBLANK(INDIRECT(\"'\"&F9644&\"'!\"&G9644)),\"\",INDIRECT(\"'\"&F9644&\"'!\"&G9644))","v":""},{"$f":"IF(ISBLANK(INDIRECT(\"'\"&F9644&\"'!\"&H9644)),\"\",IFERROR(VLOOKUP(TEXT(INDIRECT(\"'\"&F9644&\"'!\"&H9644),\"0\"),Notes!$B$5:$C$100,2,FALSE),\"\"))","v":""},"2c","$G$58","$H$58"]
[38528,{"$f":"Menu!$F$29","v":"X"},{"$f":"Menu!$J$29","v":2020},{"$f":"IF(ISBLANK(INDIRECT(\"'\"&F9645&\"'!\"&G9645)),\"\",INDIRECT(\"'\"&F9645&\"'!\"&G9645))","v":""},{"$f":"IF(ISBLANK(INDIRECT(\"'\"&F9645&\"'!\"&H9645)),\"\",IFERROR(VLOOKUP(TEXT(INDIRECT(\"'\"&F9645&\"'!\"&H9645),\"0\"),Notes!$B$5:$C$100,2,FALSE),\"\"))","v":""},"2c","$K$58","$L$58"]
[38529,{"$f":"Menu!$F$29","v":"X"},{"$f":"Menu!$J$29","v":2020},{"$f":"IF(ISBLANK(INDIRECT(\"'\"&F9646&\"'!\"&G9646)),\"\",INDIRECT(\"'\"&F9646&\"'!\"&G9646))","v":""},{"$f":"IF(ISBLANK(INDIRECT(\"'\"&F9646&\"'!\"&H9646)),\"\",IFERROR(VLOOKUP(TEXT(INDIRECT(\"'\"&F9646&\"'!\"&H9646),\"0\"),Notes!$B$5:$C$100,2,FALSE),\"\"))","v":""},"2c","$O$58","$P$58"]
[38530,{"$f":"Menu!$F$29","v":"X"},{"$f":"Menu!$J$29","v":2020},{"$f":"IF(ISBLANK(INDIRECT(\"'\"&F9647&\"'!\"&G9647)),\"\",INDIRECT(\"'\"&F9647&\"'!\"&G9647))","v":""},{"$f":"IF(ISBLANK(INDIRECT(\"'\"&F9647&\"'!\"&H9647)),\"\",IFERROR(VLOOKUP(TEXT(INDIRECT(\"'\"&F9647&\"'!\"&H9647),\"0\"),Notes!$B$5:$C$100,2,FALSE),\"\"))","v":""},"2c","$M$58","$N$58"]
[38531,{"$f":"Menu!$F$29","v":"X"},{"$f":"Menu!$J$29","v":2020},{"$f":"IF(ISBLANK(INDIRECT(\"'\"&F9648&\"'!\"&G9648)),\"\",INDIRECT(\"'\"&F9648&\"'!\"&G9648))","v":""},{"$f":"IF(ISBLANK(INDIRECT(\"'\"&F9648&\"'!\"&H9648)),\"\",IFERROR(VLOOKUP(TEXT(INDIRECT(\"'\"&F9648&\"'!\"&H9648),\"0\"),Notes!$B$5:$C$100,2,FALSE),\"\"))","v":""},"2c","$Q$58","$R$58"]
[38532,{"$f":"Menu!$F$29","v":"X"},{"$f":"Menu!$J$29","v":2020},{"$f":"IF(ISBLANK(INDIRECT(\"'\"&F9649&\"'!\"&G9649)),\"\",INDIRECT(\"'\"&F9649&\"'!\"&G9649))","v":""},{"$f":"IF(ISBLANK(INDIRECT(\"'\"&F9649&\"'!\"&H9649)),\"\",IFERROR(VLOOKUP(TEXT(INDIRECT(\"'\"&F9649&\"'!\"&H9649),\"0\"),Notes!$B$5:$C$100,2,FALSE),\"\"))","v":""},"2c","$U$58","$V$58"]
[38533,{"$f":"Menu!$F$29","v":"X"},{"$f":"Menu!$J$29","v":2020},{"$f":"IF(ISBLANK(INDIRECT(\"'\"&F9650&\"'!\"&G9650)),\"\",INDIRECT(\"'\"&F9650&\"'!\"&G9650))","v":""},{"$f":"IF(ISBLANK(INDIRECT(\"'\"&F9650&\"'!\"&H9650)),\"\",IFERROR(VLOOKUP(TEXT(INDIRECT(\"'\"&F9650&\"'!\"&H9650),\"0\"),Notes!$B$5:$C$100,2,FALSE),\"\"))","v":""},"2c","$S$58","$T$58"]
[38534,{"$f":"Menu!$F$29","v":"X"},{"$f":"Menu!$J$29","v":2020},{"$f":"IF(ISBLANK(INDIRECT(\"'\"&F9651&\"'!\"&G9651)),\"\",INDIRECT(\"'\"&F9651&\"'!\"&G9651))","v":""},{"$f":"IF(ISBLANK(INDIRECT(\"'\"&F9651&\"'!\"&H9651)),\"\",IFERROR(VLOOKUP(TEXT(INDIRECT(\"'\"&F9651&\"'!\"&H9651),\"0\"),Notes!$B$5:$C$100,2,FALSE),\"\"))","v":""},"2c","$W$58","$X$58"]
[38535,{"$f":"Menu!$F$29","v":"X"},{"$f":"Menu!$J$29","v":2020},{"$f":"IF(ISBLANK(INDIRECT(\"'\"&F9652&\"'!\"&G9652)),\"\",INDIRECT(\"'\"&F9652&\"'!\"&G9652))","v":""},{"$f":"IF(ISBLANK(INDIRECT(\"'\"&F9652&\"'!\"&H9652)),\"\",IFERROR(VLOOKUP(TEXT(INDIRECT(\"'\"&F9652&\"'!\"&H9652),\"0\"),Notes!$B$5:$C$100,2,FALSE),\"\"))","v":""},"2c","$AA$58","$AB$58"]
[38536,{"$f":"Menu!$F$29","v":"X"},{"$f":"Menu!$J$29","v":2020},{"$f":"IF(ISBLANK(INDIRECT(\"'\"&F9653&\"'!\"&G9653)),\"\",INDIRECT(\"'\"&F9653&\"'!\"&G9653))","v":""},{"$f":"IF(ISBLANK(INDIRECT(\"'\"&F9653&\"'!\"&H9653)),\"\",IFERROR(VLOOKUP(TEXT(INDIRECT(\"'\"&F9653&\"'!\"&H9653),\"0\"),Notes!$B$5:$C$100,2,FALSE),\"\"))","v":""},"2c","$Y$58","$Z$58"]
[38543,{"$f":"Menu!$F$29","v":"X"},{"$f":"Menu!$J$29","v":2020},{"$f":"IF(ISBLANK(INDIRECT(\"'\"&F9654&\"'!\"&G9654)),\"\",INDIRECT(\"'\"&F9654&\"'!\"&G9654))","v":""},{"$f":"IF(ISBLANK(INDIRECT(\"'\"&F9654&\"'!\"&H9654)),\"\",IFERROR(VLOOKUP(TEXT(INDIRECT(\"'\"&F9654&\"'!\"&H9654),\"0\"),Notes!$B$5:$C$100,2,FALSE),\"\"))","v":""},"2e","$BG$59","$BH$59"]
[38544,{"$f":"Menu!$F$29","v":"X"},{"$f":"Menu!$J$29","v":2020},{"$f":"IF(ISBLANK(INDIRECT(\"'\"&F9655&\"'!\"&G9655)),\"\",INDIRECT(\"'\"&F9655&\"'!\"&G9655))","v":""},{"$f":"IF(ISBLANK(INDIRECT(\"'\"&F9655&\"'!\"&H9655)),\"\",IFERROR(VLOOKUP(TEXT(INDIRECT(\"'\"&F9655&\"'!\"&H9655),\"0\"),Notes!$B$5:$C$100,2,FALSE),\"\"))","v":""},"2e","$BK$59","$BL$59"]
[38545,{"$f":"Menu!$F$29","v":"X"},{"$f":"Menu!$J$29","v":2020},{"$f":"IF(ISBLANK(INDIRECT(\"'\"&F9656&\"'!\"&G9656)),\"\",INDIRECT(\"'\"&F9656&\"'!\"&G9656))","v":""},{"$f":"IF(ISBLANK(INDIRECT(\"'\"&F9656&\"'!\"&H9656)),\"\",IFERROR(VLOOKUP(TEXT(INDIRECT(\"'\"&F9656&\"'!\"&H9656),\"0\"),Notes!$B$5:$C$100,2,FALSE),\"\"))","v":""},"2e","$BI$59","$BJ$59"]
[38546,{"$f":"Menu!$F$29","v":"X"},{"$f":"Menu!$J$29","v":2020},{"$f":"IF(ISBLANK(INDIRECT(\"'\"&F9657&\"'!\"&G9657)),\"\",INDIRECT(\"'\"&F9657&\"'!\"&G9657))","v":""},{"$f":"IF(ISBLANK(INDIRECT(\"'\"&F9657&\"'!\"&H9657)),\"\",IFERROR(VLOOKUP(TEXT(INDIRECT(\"'\"&F9657&\"'!\"&H9657),\"0\"),Notes!$B$5:$C$100,2,FALSE),\"\"))","v":""},"2e","$E$59","$F$59"]
[38547,{"$f":"Menu!$F$29","v":"X"},{"$f":"Menu!$J$29","v":2020},{"$f":"IF(ISBLANK(INDIRECT(\"'\"&F9658&\"'!\"&G9658)),\"\",INDIRECT(\"'\"&F9658&\"'!\"&G9658))","v":""},{"$f":"IF(ISBLANK(INDIRECT(\"'\"&F9658&\"'!\"&H9658)),\"\",IFERROR(VLOOKUP(TEXT(INDIRECT(\"'\"&F9658&\"'!\"&H9658),\"0\"),Notes!$B$5:$C$100,2,FALSE),\"\"))","v":""},"2e","$I$59","$J$59"]
[38548,{"$f":"Menu!$F$29","v":"X"},{"$f":"Menu!$J$29","v":2020},{"$f":"IF(ISBLANK(INDIRECT(\"'\"&F9659&\"'!\"&G9659)),\"\",INDIRECT(\"'\"&F9659&\"'!\"&G9659))","v":""},{"$f":"IF(ISBLANK(INDIRECT(\"'\"&F9659&\"'!\"&H9659)),\"\",IFERROR(VLOOKUP(TEXT(INDIRECT(\"'\"&F9659&\"'!\"&H9659),\"0\"),Notes!$B$5:$C$100,2,FALSE),\"\"))","v":""},"2e","$G$59","$H$59"]
[38549,{"$f":"Menu!$F$29","v":"X"},{"$f":"Menu!$J$29","v":2020},{"$f":"IF(ISBLANK(INDIRECT(\"'\"&F9660&\"'!\"&G9660)),\"\",INDIRECT(\"'\"&F9660&\"'!\"&G9660))","v":""},{"$f":"IF(ISBLANK(INDIRECT(\"'\"&F9660&\"'!\"&H9660)),\"\",IFERROR(VLOOKUP(TEXT(INDIRECT(\"'\"&F9660&\"'!\"&H9660),\"0\"),Notes!$B$5:$C$100,2,FALSE),\"\"))","v":""},"2e","$K$59","$L$59"]
[38550,{"$f":"Menu!$F$29","v":"X"},{"$f":"Menu!$J$29","v":2020},{"$f":"IF(ISBLANK(INDIRECT(\"'\"&F9661&\"'!\"&G9661)),\"\",INDIRECT(\"'\"&F9661&\"'!\"&G9661))","v":""},{"$f":"IF(ISBLANK(INDIRECT(\"'\"&F9661&\"'!\"&H9661)),\"\",IFERROR(VLOOKUP(TEXT(INDIRECT(\"'\"&F9661&\"'!\"&H9661),\"0\"),Notes!$B$5:$C$100,2,FALSE),\"\"))","v":""},"2e","$O$59","$P$59"]
[38551,{"$f":"Menu!$F$29","v":"X"},{"$f":"Menu!$J$29","v":2020},{"$f":"IF(ISBLANK(INDIRECT(\"'\"&F9662&\"'!\"&G9662)),\"\",INDIRECT(\"'\"&F9662&\"'!\"&G9662))","v":""},{"$f":"IF(ISBLANK(INDIRECT(\"'\"&F9662&\"'!\"&H9662)),\"\",IFERROR(VLOOKUP(TEXT(INDIRECT(\"'\"&F9662&\"'!\"&H9662),\"0\"),Notes!$B$5:$C$100,2,FALSE),\"\"))","v":""},"2e","$M$59","$N$59"]
[38552,{"$f":"Menu!$F$29","v":"X"},{"$f":"Menu!$J$29","v":2020},{"$f":"IF(ISBLANK(INDIRECT(\"'\"&F9663&\"'!\"&G9663)),\"\",INDIRECT(\"'\"&F9663&\"'!\"&G9663))","v":""},{"$f":"IF(ISBLANK(INDIRECT(\"'\"&F9663&\"'!\"&H9663)),\"\",IFERROR(VLOOKUP(TEXT(INDIRECT(\"'\"&F9663&\"'!\"&H9663),\"0\"),Notes!$B$5:$C$100,2,FALSE),\"\"))","v":""},"2e","$Q$59","$R$59"]
[38553,{"$f":"Menu!$F$29","v":"X"},{"$f":"Menu!$J$29","v":2020},{"$f":"IF(ISBLANK(INDIRECT(\"'\"&F9664&\"'!\"&G9664)),\"\",INDIRECT(\"'\"&F9664&\"'!\"&G9664))","v":""},{"$f":"IF(ISBLANK(INDIRECT(\"'\"&F9664&\"'!\"&H9664)),\"\",IFERROR(VLOOKUP(TEXT(INDIRECT(\"'\"&F9664&\"'!\"&H9664),\"0\"),Notes!$B$5:$C$100,2,FALSE),\"\"))","v":""},"2e","$U$59","$V$59"]
[38554,{"$f":"Menu!$F$29","v":"X"},{"$f":"Menu!$J$29","v":2020},{"$f":"IF(ISBLANK(INDIRECT(\"'\"&F9665&\"'!\"&G9665)),\"\",INDIRECT(\"'\"&F9665&\"'!\"&G9665))","v":""},{"$f":"IF(ISBLANK(INDIRECT(\"'\"&F9665&\"'!\"&H9665)),\"\",IFERROR(VLOOKUP(TEXT(INDIRECT(\"'\"&F9665&\"'!\"&H9665),\"0\"),Notes!$B$5:$C$100,2,FALSE),\"\"))","v":""},"2e","$S$59","$T$59"]
[38555,{"$f":"Menu!$F$29","v":"X"},{"$f":"Menu!$J$29","v":2020},{"$f":"IF(ISBLANK(INDIRECT(\"'\"&F9666&\"'!\"&G9666)),\"\",INDIRECT(\"'\"&F9666&\"'!\"&G9666))","v":""},{"$f":"IF(ISBLANK(INDIRECT(\"'\"&F9666&\"'!\"&H9666)),\"\",IFERROR(VLOOKUP(TEXT(INDIRECT(\"'\"&F9666&\"'!\"&H9666),\"0\"),Notes!$B$5:$C$100,2,FALSE),\"\"))","v":""},"2e","$W$59",{"$f":"IF(LEN(TRIM(MID(G9666,4,10)))-LEN(SUBSTITUTE(TRIM(MID(G9666,4,10)),\"$\",\"\"))=0,\"$\"&CHAR(CODE(MID(G9666,2,1))+1)&\"$\"&TRIM(MID(G9666,4,10)),\"$\"&MID(G9666,2,1)&CHAR(CODE(MID(G9666,3,1))+1)&\"$\"&TRIM(MID(G9666,5,11)))","v":"$X$59"}]
[38556,{"$f":"Menu!$F$29","v":"X"},{"$f":"Menu!$J$29","v":2020},{"$f":"IF(ISBLANK(INDIRECT(\"'\"&F9667&\"'!\"&G9667)),\"\",INDIRECT(\"'\"&F9667&\"'!\"&G9667))","v":""},{"$f":"IF(ISBLANK(INDIRECT(\"'\"&F9667&\"'!\"&H9667)),\"\",IFERROR(VLOOKUP(TEXT(INDIRECT(\"'\"&F9667&\"'!\"&H9667),\"0\"),Notes!$B$5:$C$100,2,FALSE),\"\"))","v":""},"2e","$AA$59","$AB$59"]
[38557,{"$f":"Menu!$F$29","v":"X"},{"$f":"Menu!$J$29","v":2020},{"$f":"IF(ISBLANK(INDIRECT(\"'\"&F9668&\"'!\"&G9668)),\"\",INDIRECT(\"'\"&F9668&\"'!\"&G9668))","v":""},{"$f":"IF(ISBLANK(INDIRECT(\"'\"&F9668&\"'!\"&H9668)),\"\",IFERROR(VLOOKUP(TEXT(INDIRECT(\"'\"&F9668&\"'!\"&H9668),\"0\"),Notes!$B$5:$C$100,2,FALSE),\"\"))","v":""},"2e","$Y$59","$Z$59"]
[38558,{"$f":"Menu!$F$29","v":"X"},{"$f":"Menu!$J$29","v":2020},{"$f":"IF(ISBLANK(INDIRECT(\"'\"&F9669&\"'!\"&G9669)),\"\",INDIRECT(\"'\"&F9669&\"'!\"&G9669))","v":""},{"$f":"IF(ISBLANK(INDIRECT(\"'\"&F9669&\"'!\"&H9669)),\"\",IFERROR(VLOOKUP(TEXT(INDIRECT(\"'\"&F9669&\"'!\"&H9669),\"0\"),Notes!$B$5:$C$100,2,FALSE),\"\"))","v":""},"2e","$AC$59","$AD$59"]
[38559,{"$f":"Menu!$F$29","v":"X"},{"$f":"Menu!$J$29","v":2020},{"$f":"IF(ISBLANK(INDIRECT(\"'\"&F9670&\"'!\"&G9670)),\"\",INDIRECT(\"'\"&F9670&\"'!\"&G9670))","v":""},{"$f":"IF(ISBLANK(INDIRECT(\"'\"&F9670&\"'!\"&H9670)),\"\",IFERROR(VLOOKUP(TEXT(INDIRECT(\"'\"&F9670&\"'!\"&H9670),\"0\"),Notes!$B$5:$C$100,2,FALSE),\"\"))","v":""},"2e","$AG$59","$AH$59"]
[38560,{"$f":"Menu!$F$29","v":"X"},{"$f":"Menu!$J$29","v":2020},{"$f":"IF(ISBLANK(INDIRECT(\"'\"&F9671&\"'!\"&G9671)),\"\",INDIRECT(\"'\"&F9671&\"'!\"&G9671))","v":""},{"$f":"IF(ISBLANK(INDIRECT(\"'\"&F9671&\"'!\"&H9671)),\"\",IFERROR(VLOOKUP(TEXT(INDIRECT(\"'\"&F9671&\"'!\"&H9671),\"0\"),Notes!$B$5:$C$100,2,FALSE),\"\"))","v":""},"2e","$AE$59","$AF$59"]
[38561,{"$f":"Menu!$F$29","v":"X"},{"$f":"Menu!$J$29","v":2020},{"$f":"IF(ISBLANK(INDIRECT(\"'\"&F9672&\"'!\"&G9672)),\"\",INDIRECT(\"'\"&F9672&\"'!\"&G9672))","v":""},{"$f":"IF(ISBLANK(INDIRECT(\"'\"&F9672&\"'!\"&H9672)),\"\",IFERROR(VLOOKUP(TEXT(INDIRECT(\"'\"&F9672&\"'!\"&H9672),\"0\"),Notes!$B$5:$C$100,2,FALSE),\"\"))","v":""},"2e","$AI$59","$AJ$59"]
[38562,{"$f":"Menu!$F$29","v":"X"},{"$f":"Menu!$J$29","v":2020},{"$f":"IF(ISBLANK(INDIRECT(\"'\"&F9673&\"'!\"&G9673)),\"\",INDIRECT(\"'\"&F9673&\"'!\"&G9673))","v":""},{"$f":"IF(ISBLANK(INDIRECT(\"'\"&F9673&\"'!\"&H9673)),\"\",IFERROR(VLOOKUP(TEXT(INDIRECT(\"'\"&F9673&\"'!\"&H9673),\"0\"),Notes!$B$5:$C$100,2,FALSE),\"\"))","v":""},"2e","$AM$59","$AN$59"]
[38563,{"$f":"Menu!$F$29","v":"X"},{"$f":"Menu!$J$29","v":2020},{"$f":"IF(ISBLANK(INDIRECT(\"'\"&F9674&\"'!\"&G9674)),\"\",INDIRECT(\"'\"&F9674&\"'!\"&G9674))","v":""},{"$f":"IF(ISBLANK(INDIRECT(\"'\"&F9674&\"'!\"&H9674)),\"\",IFERROR(VLOOKUP(TEXT(INDIRECT(\"'\"&F9674&\"'!\"&H9674),\"0\"),Notes!$B$5:$C$100,2,FALSE),\"\"))","v":""},"2e","$AK$59","$AL$59"]
[38564,{"$f":"Menu!$F$29","v":"X"},{"$f":"Menu!$J$29","v":2020},{"$f":"IF(ISBLANK(INDIRECT(\"'\"&F9675&\"'!\"&G9675)),\"\",INDIRECT(\"'\"&F9675&\"'!\"&G9675))","v":""},{"$f":"IF(ISBLANK(INDIRECT(\"'\"&F9675&\"'!\"&H9675)),\"\",IFERROR(VLOOKUP(TEXT(INDIRECT(\"'\"&F9675&\"'!\"&H9675),\"0\"),Notes!$B$5:$C$100,2,FALSE),\"\"))","v":""},"2e","$AO$59","$AP$59"]
[38565,{"$f":"Menu!$F$29","v":"X"},{"$f":"Menu!$J$29","v":2020},{"$f":"IF(ISBLANK(INDIRECT(\"'\"&F9676&\"'!\"&G9676)),\"\",INDIRECT(\"'\"&F9676&\"'!\"&G9676))","v":""},{"$f":"IF(ISBLANK(INDIRECT(\"'\"&F9676&\"'!\"&H9676)),\"\",IFERROR(VLOOKUP(TEXT(INDIRECT(\"'\"&F9676&\"'!\"&H9676),\"0\"),Notes!$B$5:$C$100,2,FALSE),\"\"))","v":""},"2e","$AS$59","$AT$59"]
[38566,{"$f":"Menu!$F$29","v":"X"},{"$f":"Menu!$J$29","v":2020},{"$f":"IF(ISBLANK(INDIRECT(\"'\"&F9677&\"'!\"&G9677)),\"\",INDIRECT(\"'\"&F9677&\"'!\"&G9677))","v":""},{"$f":"IF(ISBLANK(INDIRECT(\"'\"&F9677&\"'!\"&H9677)),\"\",IFERROR(VLOOKUP(TEXT(INDIRECT(\"'\"&F9677&\"'!\"&H9677),\"0\"),Notes!$B$5:$C$100,2,FALSE),\"\"))","v":""},"2e","$AQ$59","$AR$59"]
[38567,{"$f":"Menu!$F$29","v":"X"},{"$f":"Menu!$J$29","v":2020},{"$f":"IF(ISBLANK(INDIRECT(\"'\"&F9678&\"'!\"&G9678)),\"\",INDIRECT(\"'\"&F9678&\"'!\"&G9678))","v":""},{"$f":"IF(ISBLANK(INDIRECT(\"'\"&F9678&\"'!\"&H9678)),\"\",IFERROR(VLOOKUP(TEXT(INDIRECT(\"'\"&F9678&\"'!\"&H9678),\"0\"),Notes!$B$5:$C$100,2,FALSE),\"\"))","v":""},"2e","$AU$59","$AV$59"]
[38568,{"$f":"Menu!$F$29","v":"X"},{"$f":"Menu!$J$29","v":2020},{"$f":"IF(ISBLANK(INDIRECT(\"'\"&F9679&\"'!\"&G9679)),\"\",INDIRECT(\"'\"&F9679&\"'!\"&G9679))","v":""},{"$f":"IF(ISBLANK(INDIRECT(\"'\"&F9679&\"'!\"&H9679)),\"\",IFERROR(VLOOKUP(TEXT(INDIRECT(\"'\"&F9679&\"'!\"&H9679),\"0\"),Notes!$B$5:$C$100,2,FALSE),\"\"))","v":""},"2e","$AY$59","$AZ$59"]
[38569,{"$f":"Menu!$F$29","v":"X"},{"$f":"Menu!$J$29","v":2020},{"$f":"IF(ISBLANK(INDIRECT(\"'\"&F9680&\"'!\"&G9680)),\"\",INDIRECT(\"'\"&F9680&\"'!\"&G9680))","v":""},{"$f":"IF(ISBLANK(INDIRECT(\"'\"&F9680&\"'!\"&H9680)),\"\",IFERROR(VLOOKUP(TEXT(INDIRECT(\"'\"&F9680&\"'!\"&H9680),\"0\"),Notes!$B$5:$C$100,2,FALSE),\"\"))","v":""},"2e","$AW$59","$AX$59"]
[38570,{"$f":"Menu!$F$29","v":"X"},{"$f":"Menu!$J$29","v":2020},{"$f":"IF(ISBLANK(INDIRECT(\"'\"&F9681&\"'!\"&G9681)),\"\",INDIRECT(\"'\"&F9681&\"'!\"&G9681))","v":""},{"$f":"IF(ISBLANK(INDIRECT(\"'\"&F9681&\"'!\"&H9681)),\"\",IFERROR(VLOOKUP(TEXT(INDIRECT(\"'\"&F9681&\"'!\"&H9681),\"0\"),Notes!$B$5:$C$100,2,FALSE),\"\"))","v":""},"2e","$BA$59","$BB$59"]
[38571,{"$f":"Menu!$F$29","v":"X"},{"$f":"Menu!$J$29","v":2020},{"$f":"IF(ISBLANK(INDIRECT(\"'\"&F9682&\"'!\"&G9682)),\"\",INDIRECT(\"'\"&F9682&\"'!\"&G9682))","v":""},{"$f":"IF(ISBLANK(INDIRECT(\"'\"&F9682&\"'!\"&H9682)),\"\",IFERROR(VLOOKUP(TEXT(INDIRECT(\"'\"&F9682&\"'!\"&H9682),\"0\"),Notes!$B$5:$C$100,2,FALSE),\"\"))","v":""},"2e","$BE$59","$BF$59"]
[38572,{"$f":"Menu!$F$29","v":"X"},{"$f":"Menu!$J$29","v":2020},{"$f":"IF(ISBLANK(INDIRECT(\"'\"&F9683&\"'!\"&G9683)),\"\",INDIRECT(\"'\"&F9683&\"'!\"&G9683))","v":""},{"$f":"IF(ISBLANK(INDIRECT(\"'\"&F9683&\"'!\"&H9683)),\"\",IFERROR(VLOOKUP(TEXT(INDIRECT(\"'\"&F9683&\"'!\"&H9683),\"0\"),Notes!$B$5:$C$100,2,FALSE),\"\"))","v":""},"2e","$BC$59","$BD$59"]
[38573,{"$f":"Menu!$F$29","v":"X"},{"$f":"Menu!$J$29","v":2020},{"$f":"IF(ISBLANK(INDIRECT(\"'\"&F9684&\"'!\"&G9684)),\"\",INDIRECT(\"'\"&F9684&\"'!\"&G9684))","v":""},{"$f":"IF(ISBLANK(INDIRECT(\"'\"&F9684&\"'!\"&H9684)),\"\",IFERROR(VLOOKUP(TEXT(INDIRECT(\"'\"&F9684&\"'!\"&H9684),\"0\"),Notes!$B$5:$C$100,2,FALSE),\"\"))","v":""},"2b","$E$58","$F$58"]
[38574,{"$f":"Menu!$F$29","v":"X"},{"$f":"Menu!$J$29","v":2020},{"$f":"IF(ISBLANK(INDIRECT(\"'\"&F9685&\"'!\"&G9685)),\"\",INDIRECT(\"'\"&F9685&\"'!\"&G9685))","v":""},{"$f":"IF(ISBLANK(INDIRECT(\"'\"&F9685&\"'!\"&H9685)),\"\",IFERROR(VLOOKUP(TEXT(INDIRECT(\"'\"&F9685&\"'!\"&H9685),\"0\"),Notes!$B$5:$C$100,2,FALSE),\"\"))","v":""},"2b","$I$58","$J$58"]
[38575,{"$f":"Menu!$F$29","v":"X"},{"$f":"Menu!$J$29","v":2020},{"$f":"IF(ISBLANK(INDIRECT(\"'\"&F9686&\"'!\"&G9686)),\"\",INDIRECT(\"'\"&F9686&\"'!\"&G9686))","v":""},{"$f":"IF(ISBLANK(INDIRECT(\"'\"&F9686&\"'!\"&H9686)),\"\",IFERROR(VLOOKUP(TEXT(INDIRECT(\"'\"&F9686&\"'!\"&H9686),\"0\"),Notes!$B$5:$C$100,2,FALSE),\"\"))","v":""},"2b","$G$58","$H$58"]
[38576,{"$f":"Menu!$F$29","v":"X"},{"$f":"Menu!$J$29","v":2020},{"$f":"IF(ISBLANK(INDIRECT(\"'\"&F9687&\"'!\"&G9687)),\"\",INDIRECT(\"'\"&F9687&\"'!\"&G9687))","v":""},{"$f":"IF(ISBLANK(INDIRECT(\"'\"&F9687&\"'!\"&H9687)),\"\",IFERROR(VLOOKUP(TEXT(INDIRECT(\"'\"&F9687&\"'!\"&H9687),\"0\"),Notes!$B$5:$C$100,2,FALSE),\"\"))","v":""},"2a","$G$58","$H$58"]
[38577,{"$f":"Menu!$F$29","v":"X"},{"$f":"Menu!$J$29","v":2020},{"$f":"IF(ISBLANK(INDIRECT(\"'\"&F9688&\"'!\"&G9688)),\"\",INDIRECT(\"'\"&F9688&\"'!\"&G9688))","v":""},{"$f":"IF(ISBLANK(INDIRECT(\"'\"&F9688&\"'!\"&H9688)),\"\",IFERROR(VLOOKUP(TEXT(INDIRECT(\"'\"&F9688&\"'!\"&H9688),\"0\"),Notes!$B$5:$C$100,2,FALSE),\"\"))","v":""},"2b","$W$58","$X$58"]
[38578,{"$f":"Menu!$F$29","v":"X"},{"$f":"Menu!$J$29","v":2020},{"$f":"IF(ISBLANK(INDIRECT(\"'\"&F9689&\"'!\"&G9689)),\"\",INDIRECT(\"'\"&F9689&\"'!\"&G9689))","v":""},{"$f":"IF(ISBLANK(INDIRECT(\"'\"&F9689&\"'!\"&H9689)),\"\",IFERROR(VLOOKUP(TEXT(INDIRECT(\"'\"&F9689&\"'!\"&H9689),\"0\"),Notes!$B$5:$C$100,2,FALSE),\"\"))","v":""},"2b","$AA$58","$AB$58"]
[38579,{"$f":"Menu!$F$29","v":"X"},{"$f":"Menu!$J$29","v":2020},{"$f":"IF(ISBLANK(INDIRECT(\"'\"&F9690&\"'!\"&G9690)),\"\",INDIRECT(\"'\"&F9690&\"'!\"&G9690))","v":""},{"$f":"IF(ISBLANK(INDIRECT(\"'\"&F9690&\"'!\"&H9690)),\"\",IFERROR(VLOOKUP(TEXT(INDIRECT(\"'\"&F9690&\"'!\"&H9690),\"0\"),Notes!$B$5:$C$100,2,FALSE),\"\"))","v":""},"2b","$Y$58","$Z$58"]
[38580,{"$f":"Menu!$F$29","v":"X"},{"$f":"Menu!$J$29","v":2020},{"$f":"IF(ISBLANK(INDIRECT(\"'\"&F9691&\"'!\"&G9691)),\"\",INDIRECT(\"'\"&F9691&\"'!\"&G9691))","v":""},{"$f":"IF(ISBLANK(INDIRECT(\"'\"&F9691&\"'!\"&H9691)),\"\",IFERROR(VLOOKUP(TEXT(INDIRECT(\"'\"&F9691&\"'!\"&H9691),\"0\"),Notes!$B$5:$C$100,2,FALSE),\"\"))","v":""},"2d","$AC$58","$AD$58"]
[38581,{"$f":"Menu!$F$29","v":"X"},{"$f":"Menu!$J$29","v":2020},{"$f":"IF(ISBLANK(INDIRECT(\"'\"&F9692&\"'!\"&G9692)),\"\",INDIRECT(\"'\"&F9692&\"'!\"&G9692))","v":""},{"$f":"IF(ISBLANK(INDIRECT(\"'\"&F9692&\"'!\"&H9692)),\"\",IFERROR(VLOOKUP(TEXT(INDIRECT(\"'\"&F9692&\"'!\"&H9692),\"0\"),Notes!$B$5:$C$100,2,FALSE),\"\"))","v":""},"2d","$AG$58","$AH$58"]
[38582,{"$f":"Menu!$F$29","v":"X"},{"$f":"Menu!$J$29","v":2020},{"$f":"IF(ISBLANK(INDIRECT(\"'\"&F9693&\"'!\"&G9693)),\"\",INDIRECT(\"'\"&F9693&\"'!\"&G9693))","v":""},{"$f":"IF(ISBLANK(INDIRECT(\"'\"&F9693&\"'!\"&H9693)),\"\",IFERROR(VLOOKUP(TEXT(INDIRECT(\"'\"&F9693&\"'!\"&H9693),\"0\"),Notes!$B$5:$C$100,2,FALSE),\"\"))","v":""},"2d","$AE$58","$AF$58"]
[38583,{"$f":"Menu!$F$29","v":"X"},{"$f":"Menu!$J$29","v":2020},{"$f":"IF(ISBLANK(INDIRECT(\"'\"&F9694&\"'!\"&G9694)),\"\",INDIRECT(\"'\"&F9694&\"'!\"&G9694))","v":""},{"$f":"IF(ISBLANK(INDIRECT(\"'\"&F9694&\"'!\"&H9694)),\"\",IFERROR(VLOOKUP(TEXT(INDIRECT(\"'\"&F9694&\"'!\"&H9694),\"0\"),Notes!$B$5:$C$100,2,FALSE),\"\"))","v":""},"2d","$W$58","$X$58"]
[38584,{"$f":"Menu!$F$29","v":"X"},{"$f":"Menu!$J$29","v":2020},{"$f":"IF(ISBLANK(INDIRECT(\"'\"&F9695&\"'!\"&G9695)),\"\",INDIRECT(\"'\"&F9695&\"'!\"&G9695))","v":""},{"$f":"IF(ISBLANK(INDIRECT(\"'\"&F9695&\"'!\"&H9695)),\"\",IFERROR(VLOOKUP(TEXT(INDIRECT(\"'\"&F9695&\"'!\"&H9695),\"0\"),Notes!$B$5:$C$100,2,FALSE),\"\"))","v":""},"2d","$AA$58","$AB$58"]
[38585,{"$f":"Menu!$F$29","v":"X"},{"$f":"Menu!$J$29","v":2020},{"$f":"IF(ISBLANK(INDIRECT(\"'\"&F9696&\"'!\"&G9696)),\"\",INDIRECT(\"'\"&F9696&\"'!\"&G9696))","v":""},{"$f":"IF(ISBLANK(INDIRECT(\"'\"&F9696&\"'!\"&H9696)),\"\",IFERROR(VLOOKUP(TEXT(INDIRECT(\"'\"&F9696&\"'!\"&H9696),\"0\"),Notes!$B$5:$C$100,2,FALSE),\"\"))","v":""},"2d","$Y$58","$Z$58"]
[38586,{"$f":"Menu!$F$29","v":"X"},{"$f":"Menu!$J$29","v":2020},{"$f":"IF(ISBLANK(INDIRECT(\"'\"&F9697&\"'!\"&G9697)),\"\",INDIRECT(\"'\"&F9697&\"'!\"&G9697))","v":""},{"$f":"IF(ISBLANK(INDIRECT(\"'\"&F9697&\"'!\"&H9697)),\"\",IFERROR(VLOOKUP(TEXT(INDIRECT(\"'\"&F9697&\"'!\"&H9697),\"0\"),Notes!$B$5:$C$100,2,FALSE),\"\"))","v":""},"2d","$E$58","$F$58"]
[38587,{"$f":"Menu!$F$29","v":"X"},{"$f":"Menu!$J$29","v":2020},{"$f":"IF(ISBLANK(INDIRECT(\"'\"&F9698&\"'!\"&G9698)),\"\",INDIRECT(\"'\"&F9698&\"'!\"&G9698))","v":""},{"$f":"IF(ISBLANK(INDIRECT(\"'\"&F9698&\"'!\"&H9698)),\"\",IFERROR(VLOOKUP(TEXT(INDIRECT(\"'\"&F9698&\"'!\"&H9698),\"0\"),Notes!$B$5:$C$100,2,FALSE),\"\"))","v":""},"2d","$I$58","$J$58"]
[38588,{"$f":"Menu!$F$29","v":"X"},{"$f":"Menu!$J$29","v":2020},{"$f":"IF(ISBLANK(INDIRECT(\"'\"&F9699&\"'!\"&G9699)),\"\",INDIRECT(\"'\"&F9699&\"'!\"&G9699))","v":""},{"$f":"IF(ISBLANK(INDIRECT(\"'\"&F9699&\"'!\"&H9699)),\"\",IFERROR(VLOOKUP(TEXT(INDIRECT(\"'\"&F9699&\"'!\"&H9699),\"0\"),Notes!$B$5:$C$100,2,FALSE),\"\"))","v":""},"2d","$G$58","$H$58"]
[38589,{"$f":"Menu!$F$29","v":"X"},{"$f":"Menu!$J$29","v":2020},{"$f":"IF(ISBLANK(INDIRECT(\"'\"&F9700&\"'!\"&G9700)),\"\",INDIRECT(\"'\"&F9700&\"'!\"&G9700))","v":""},{"$f":"IF(ISBLANK(INDIRECT(\"'\"&F9700&\"'!\"&H9700)),\"\",IFERROR(VLOOKUP(TEXT(INDIRECT(\"'\"&F9700&\"'!\"&H9700),\"0\"),Notes!$B$5:$C$100,2,FALSE),\"\"))","v":""},"2a","$Q$58","$R$58"]
[38590,{"$f":"Menu!$F$29","v":"X"},{"$f":"Menu!$J$29","v":2020},{"$f":"IF(ISBLANK(INDIRECT(\"'\"&F9701&\"'!\"&G9701)),\"\",INDIRECT(\"'\"&F9701&\"'!\"&G9701))","v":""},{"$f":"IF(ISBLANK(INDIRECT(\"'\"&F9701&\"'!\"&H9701)),\"\",IFERROR(VLOOKUP(TEXT(INDIRECT(\"'\"&F9701&\"'!\"&H9701),\"0\"),Notes!$B$5:$C$100,2,FALSE),\"\"))","v":""},"2a","$U$58","$V$58"]
[38591,{"$f":"Menu!$F$29","v":"X"},{"$f":"Menu!$J$29","v":2020},{"$f":"IF(ISBLANK(INDIRECT(\"'\"&F9702&\"'!\"&G9702)),\"\",INDIRECT(\"'\"&F9702&\"'!\"&G9702))","v":""},{"$f":"IF(ISBLANK(INDIRECT(\"'\"&F9702&\"'!\"&H9702)),\"\",IFERROR(VLOOKUP(TEXT(INDIRECT(\"'\"&F9702&\"'!\"&H9702),\"0\"),Notes!$B$5:$C$100,2,FALSE),\"\"))","v":""},"2a","$S$58","$T$58"]
[38592,{"$f":"Menu!$F$29","v":"X"},{"$f":"Menu!$J$29","v":2020},{"$f":"IF(ISBLANK(INDIRECT(\"'\"&F9703&\"'!\"&G9703)),\"\",INDIRECT(\"'\"&F9703&\"'!\"&G9703))","v":""},{"$f":"IF(ISBLANK(INDIRECT(\"'\"&F9703&\"'!\"&H9703)),\"\",IFERROR(VLOOKUP(TEXT(INDIRECT(\"'\"&F9703&\"'!\"&H9703),\"0\"),Notes!$B$5:$C$100,2,FALSE),\"\"))","v":""},"2d","$K$58","$L$58"]
[38593,{"$f":"Menu!$F$29","v":"X"},{"$f":"Menu!$J$29","v":2020},{"$f":"IF(ISBLANK(INDIRECT(\"'\"&F9704&\"'!\"&G9704)),\"\",INDIRECT(\"'\"&F9704&\"'!\"&G9704))","v":""},{"$f":"IF(ISBLANK(INDIRECT(\"'\"&F9704&\"'!\"&H9704)),\"\",IFERROR(VLOOKUP(TEXT(INDIRECT(\"'\"&F9704&\"'!\"&H9704),\"0\"),Notes!$B$5:$C$100,2,FALSE),\"\"))","v":""},"2d","$O$58","$P$58"]
[38594,{"$f":"Menu!$F$29","v":"X"},{"$f":"Menu!$J$29","v":2020},{"$f":"IF(ISBLANK(INDIRECT(\"'\"&F9705&\"'!\"&G9705)),\"\",INDIRECT(\"'\"&F9705&\"'!\"&G9705))","v":""},{"$f":"IF(ISBLANK(INDIRECT(\"'\"&F9705&\"'!\"&H9705)),\"\",IFERROR(VLOOKUP(TEXT(INDIRECT(\"'\"&F9705&\"'!\"&H9705),\"0\"),Notes!$B$5:$C$100,2,FALSE),\"\"))","v":""},"2d","$M$58","$N$58"]
[38595,{"$f":"Menu!$F$29","v":"X"},{"$f":"Menu!$J$29","v":2020},{"$f":"IF(ISBLANK(INDIRECT(\"'\"&F9706&\"'!\"&G9706)),\"\",INDIRECT(\"'\"&F9706&\"'!\"&G9706))","v":""},{"$f":"IF(ISBLANK(INDIRECT(\"'\"&F9706&\"'!\"&H9706)),\"\",IFERROR(VLOOKUP(TEXT(INDIRECT(\"'\"&F9706&\"'!\"&H9706),\"0\"),Notes!$B$5:$C$100,2,FALSE),\"\"))","v":""},"2d","$Q$58","$R$58"]
[38596,{"$f":"Menu!$F$29","v":"X"},{"$f":"Menu!$J$29","v":2020},{"$f":"IF(ISBLANK(INDIRECT(\"'\"&F9707&\"'!\"&G9707)),\"\",INDIRECT(\"'\"&F9707&\"'!\"&G9707))","v":""},{"$f":"IF(ISBLANK(INDIRECT(\"'\"&F9707&\"'!\"&H9707)),\"\",IFERROR(VLOOKUP(TEXT(INDIRECT(\"'\"&F9707&\"'!\"&H9707),\"0\"),Notes!$B$5:$C$100,2,FALSE),\"\"))","v":""},"2d","$U$58","$V$58"]
[38597,{"$f":"Menu!$F$29","v":"X"},{"$f":"Menu!$J$29","v":2020},{"$f":"IF(ISBLANK(INDIRECT(\"'\"&F9708&\"'!\"&G9708)),\"\",INDIRECT(\"'\"&F9708&\"'!\"&G9708))","v":""},{"$f":"IF(ISBLANK(INDIRECT(\"'\"&F9708&\"'!\"&H9708)),\"\",IFERROR(VLOOKUP(TEXT(INDIRECT(\"'\"&F9708&\"'!\"&H9708),\"0\"),Notes!$B$5:$C$100,2,FALSE),\"\"))","v":""},"2d","$S$58","$T$58"]
[38598,{"$f":"Menu!$F$29","v":"X"},{"$f":"Menu!$J$29","v":2020},{"$f":"IF(ISBLANK(INDIRECT(\"'\"&F9709&\"'!\"&G9709)),\"\",INDIRECT(\"'\"&F9709&\"'!\"&G9709))","v":""},{"$f":"IF(ISBLANK(INDIRECT(\"'\"&F9709&\"'!\"&H9709)),\"\",IFERROR(VLOOKUP(TEXT(INDIRECT(\"'\"&F9709&\"'!\"&H9709),\"0\"),Notes!$B$5:$C$100,2,FALSE),\"\"))","v":""},"2a","$K$58","$L$58"]
[38599,{"$f":"Menu!$F$29","v":"X"},{"$f":"Menu!$J$29","v":2020},{"$f":"IF(ISBLANK(INDIRECT(\"'\"&F9710&\"'!\"&G9710)),\"\",INDIRECT(\"'\"&F9710&\"'!\"&G9710))","v":""},{"$f":"IF(ISBLANK(INDIRECT(\"'\"&F9710&\"'!\"&H9710)),\"\",IFERROR(VLOOKUP(TEXT(INDIRECT(\"'\"&F9710&\"'!\"&H9710),\"0\"),Notes!$B$5:$C$100,2,FALSE),\"\"))","v":""},"2a","$O$58","$P$58"]
[38600,{"$f":"Menu!$F$29","v":"X"},{"$f":"Menu!$J$29","v":2020},{"$f":"IF(ISBLANK(INDIRECT(\"'\"&F9711&\"'!\"&G9711)),\"\",INDIRECT(\"'\"&F9711&\"'!\"&G9711))","v":""},{"$f":"IF(ISBLANK(INDIRECT(\"'\"&F9711&\"'!\"&H9711)),\"\",IFERROR(VLOOKUP(TEXT(INDIRECT(\"'\"&F9711&\"'!\"&H9711),\"0\"),Notes!$B$5:$C$100,2,FALSE),\"\"))","v":""},"2a","$M$58","$N$58"]
[38601,{"$f":"Menu!$F$29","v":"X"},{"$f":"Menu!$J$29","v":2020},{"$f":"IF(ISBLANK(INDIRECT(\"'\"&F9712&\"'!\"&G9712)),\"\",INDIRECT(\"'\"&F9712&\"'!\"&G9712))","v":""},{"$f":"IF(ISBLANK(INDIRECT(\"'\"&F9712&\"'!\"&H9712)),\"\",IFERROR(VLOOKUP(TEXT(INDIRECT(\"'\"&F9712&\"'!\"&H9712),\"0\"),Notes!$B$5:$C$100,2,FALSE),\"\"))","v":""},"2a","$E$58","$F$58"]
[38602,{"$f":"Menu!$F$29","v":"X"},{"$f":"Menu!$J$29","v":2020},{"$f":"IF(ISBLANK(INDIRECT(\"'\"&F9713&\"'!\"&G9713)),\"\",INDIRECT(\"'\"&F9713&\"'!\"&G9713))","v":""},{"$f":"IF(ISBLANK(INDIRECT(\"'\"&F9713&\"'!\"&H9713)),\"\",IFERROR(VLOOKUP(TEXT(INDIRECT(\"'\"&F9713&\"'!\"&H9713),\"0\"),Notes!$B$5:$C$100,2,FALSE),\"\"))","v":""},"2b","$K$59","$L$59"]
[38603,{"$f":"Menu!$F$29","v":"X"},{"$f":"Menu!$J$29","v":2020},{"$f":"IF(ISBLANK(INDIRECT(\"'\"&F9714&\"'!\"&G9714)),\"\",INDIRECT(\"'\"&F9714&\"'!\"&G9714))","v":""},{"$f":"IF(ISBLANK(INDIRECT(\"'\"&F9714&\"'!\"&H9714)),\"\",IFERROR(VLOOKUP(TEXT(INDIRECT(\"'\"&F9714&\"'!\"&H9714),\"0\"),Notes!$B$5:$C$100,2,FALSE),\"\"))","v":""},"2b","$O$59","$P$59"]
[38604,{"$f":"Menu!$F$29","v":"X"},{"$f":"Menu!$J$29","v":2020},{"$f":"IF(ISBLANK(INDIRECT(\"'\"&F9715&\"'!\"&G9715)),\"\",INDIRECT(\"'\"&F9715&\"'!\"&G9715))","v":""},{"$f":"IF(ISBLANK(INDIRECT(\"'\"&F9715&\"'!\"&H9715)),\"\",IFERROR(VLOOKUP(TEXT(INDIRECT(\"'\"&F9715&\"'!\"&H9715),\"0\"),Notes!$B$5:$C$100,2,FALSE),\"\"))","v":""},"2b","$M$59","$N$59"]
[38605,{"$f":"Menu!$F$29","v":"X"},{"$f":"Menu!$J$29","v":2020},{"$f":"IF(ISBLANK(INDIRECT(\"'\"&F9716&\"'!\"&G9716)),\"\",INDIRECT(\"'\"&F9716&\"'!\"&G9716))","v":""},{"$f":"IF(ISBLANK(INDIRECT(\"'\"&F9716&\"'!\"&H9716)),\"\",IFERROR(VLOOKUP(TEXT(INDIRECT(\"'\"&F9716&\"'!\"&H9716),\"0\"),Notes!$B$5:$C$100,2,FALSE),\"\"))","v":""},"2b","$Q$59","$R$59"]
[38606,{"$f":"Menu!$F$29","v":"X"},{"$f":"Menu!$J$29","v":2020},{"$f":"IF(ISBLANK(INDIRECT(\"'\"&F9717&\"'!\"&G9717)),\"\",INDIRECT(\"'\"&F9717&\"'!\"&G9717))","v":""},{"$f":"IF(ISBLANK(INDIRECT(\"'\"&F9717&\"'!\"&H9717)),\"\",IFERROR(VLOOKUP(TEXT(INDIRECT(\"'\"&F9717&\"'!\"&H9717),\"0\"),Notes!$B$5:$C$100,2,FALSE),\"\"))","v":""},"2b","$U$59","$V$59"]
[38607,{"$f":"Menu!$F$29","v":"X"},{"$f":"Menu!$J$29","v":2020},{"$f":"IF(ISBLANK(INDIRECT(\"'\"&F9718&\"'!\"&G9718)),\"\",INDIRECT(\"'\"&F9718&\"'!\"&G9718))","v":""},{"$f":"IF(ISBLANK(INDIRECT(\"'\"&F9718&\"'!\"&H9718)),\"\",IFERROR(VLOOKUP(TEXT(INDIRECT(\"'\"&F9718&\"'!\"&H9718),\"0\"),Notes!$B$5:$C$100,2,FALSE),\"\"))","v":""},"2b","$S$59","$T$59"]
[38611,{"$f":"Menu!$F$29","v":"X"},{"$f":"Menu!$J$29","v":2020},{"$f":"IF(ISBLANK(INDIRECT(\"'\"&F9719&\"'!\"&G9719)),\"\",INDIRECT(\"'\"&F9719&\"'!\"&G9719))","v":""},{"$f":"IF(ISBLANK(INDIRECT(\"'\"&F9719&\"'!\"&H9719)),\"\",IFERROR(VLOOKUP(TEXT(INDIRECT(\"'\"&F9719&\"'!\"&H9719),\"0\"),Notes!$B$5:$C$100,2,FALSE),\"\"))","v":""},"2a","$I$59","$J$59"]
[38612,{"$f":"Menu!$F$29","v":"X"},{"$f":"Menu!$J$29","v":2020},{"$f":"IF(ISBLANK(INDIRECT(\"'\"&F9720&\"'!\"&G9720)),\"\",INDIRECT(\"'\"&F9720&\"'!\"&G9720))","v":""},{"$f":"IF(ISBLANK(INDIRECT(\"'\"&F9720&\"'!\"&H9720)),\"\",IFERROR(VLOOKUP(TEXT(INDIRECT(\"'\"&F9720&\"'!\"&H9720),\"0\"),Notes!$B$5:$C$100,2,FALSE),\"\"))","v":""},"2c","$E$59","$F$59"]
[38613,{"$f":"Menu!$F$29","v":"X"},{"$f":"Menu!$J$29","v":2020},{"$f":"IF(ISBLANK(INDIRECT(\"'\"&F9721&\"'!\"&G9721)),\"\",INDIRECT(\"'\"&F9721&\"'!\"&G9721))","v":""},{"$f":"IF(ISBLANK(INDIRECT(\"'\"&F9721&\"'!\"&H9721)),\"\",IFERROR(VLOOKUP(TEXT(INDIRECT(\"'\"&F9721&\"'!\"&H9721),\"0\"),Notes!$B$5:$C$100,2,FALSE),\"\"))","v":""},"2c","$I$59","$J$59"]
[38614,{"$f":"Menu!$F$29","v":"X"},{"$f":"Menu!$J$29","v":2020},{"$f":"IF(ISBLANK(INDIRECT(\"'\"&F9722&\"'!\"&G9722)),\"\",INDIRECT(\"'\"&F9722&\"'!\"&G9722))","v":""},{"$f":"IF(ISBLANK(INDIRECT(\"'\"&F9722&\"'!\"&H9722)),\"\",IFERROR(VLOOKUP(TEXT(INDIRECT(\"'\"&F9722&\"'!\"&H9722),\"0\"),Notes!$B$5:$C$100,2,FALSE),\"\"))","v":""},"2c","$G$59","$H$59"]
[38618,{"$f":"Menu!$F$29","v":"X"},{"$f":"Menu!$J$29","v":2020},{"$f":"IF(ISBLANK(INDIRECT(\"'\"&F9723&\"'!\"&G9723)),\"\",INDIRECT(\"'\"&F9723&\"'!\"&G9723))","v":""},{"$f":"IF(ISBLANK(INDIRECT(\"'\"&F9723&\"'!\"&H9723)),\"\",IFERROR(VLOOKUP(TEXT(INDIRECT(\"'\"&F9723&\"'!\"&H9723),\"0\"),Notes!$B$5:$C$100,2,FALSE),\"\"))","v":""},"2c","$K$59","$L$59"]
[38619,{"$f":"Menu!$F$29","v":"X"},{"$f":"Menu!$J$29","v":2020},{"$f":"IF(ISBLANK(INDIRECT(\"'\"&F9724&\"'!\"&G9724)),\"\",INDIRECT(\"'\"&F9724&\"'!\"&G9724))","v":""},{"$f":"IF(ISBLANK(INDIRECT(\"'\"&F9724&\"'!\"&H9724)),\"\",IFERROR(VLOOKUP(TEXT(INDIRECT(\"'\"&F9724&\"'!\"&H9724),\"0\"),Notes!$B$5:$C$100,2,FALSE),\"\"))","v":""},"2c","$O$59","$P$59"]
[38620,{"$f":"Menu!$F$29","v":"X"},{"$f":"Menu!$J$29","v":2020},{"$f":"IF(ISBLANK(INDIRECT(\"'\"&F9725&\"'!\"&G9725)),\"\",INDIRECT(\"'\"&F9725&\"'!\"&G9725))","v":""},{"$f":"IF(ISBLANK(INDIRECT(\"'\"&F9725&\"'!\"&H9725)),\"\",IFERROR(VLOOKUP(TEXT(INDIRECT(\"'\"&F9725&\"'!\"&H9725),\"0\"),Notes!$B$5:$C$100,2,FALSE),\"\"))","v":""},"2c","$M$59","$N$59"]
[38621,{"$f":"Menu!$F$29","v":"X"},{"$f":"Menu!$J$29","v":2020},{"$f":"IF(ISBLANK(INDIRECT(\"'\"&F9726&\"'!\"&G9726)),\"\",INDIRECT(\"'\"&F9726&\"'!\"&G9726))","v":""},{"$f":"IF(ISBLANK(INDIRECT(\"'\"&F9726&\"'!\"&H9726)),\"\",IFERROR(VLOOKUP(TEXT(INDIRECT(\"'\"&F9726&\"'!\"&H9726),\"0\"),Notes!$B$5:$C$100,2,FALSE),\"\"))","v":""},"2c","$Q$59","$R$59"]
[38622,{"$f":"Menu!$F$29","v":"X"},{"$f":"Menu!$J$29","v":2020},{"$f":"IF(ISBLANK(INDIRECT(\"'\"&F9727&\"'!\"&G9727)),\"\",INDIRECT(\"'\"&F9727&\"'!\"&G9727))","v":""},{"$f":"IF(ISBLANK(INDIRECT(\"'\"&F9727&\"'!\"&H9727)),\"\",IFERROR(VLOOKUP(TEXT(INDIRECT(\"'\"&F9727&\"'!\"&H9727),\"0\"),Notes!$B$5:$C$100,2,FALSE),\"\"))","v":""},"2c","$U$59","$V$59"]
[38623,{"$f":"Menu!$F$29","v":"X"},{"$f":"Menu!$J$29","v":2020},{"$f":"IF(ISBLANK(INDIRECT(\"'\"&F9728&\"'!\"&G9728)),\"\",INDIRECT(\"'\"&F9728&\"'!\"&G9728))","v":""},{"$f":"IF(ISBLANK(INDIRECT(\"'\"&F9728&\"'!\"&H9728)),\"\",IFERROR(VLOOKUP(TEXT(INDIRECT(\"'\"&F9728&\"'!\"&H9728),\"0\"),Notes!$B$5:$C$100,2,FALSE),\"\"))","v":""},"2c","$S$59","$T$59"]
[38624,{"$f":"Menu!$F$29","v":"X"},{"$f":"Menu!$J$29","v":2020},{"$f":"IF(ISBLANK(INDIRECT(\"'\"&F9729&\"'!\"&G9729)),\"\",INDIRECT(\"'\"&F9729&\"'!\"&G9729))","v":""},{"$f":"IF(ISBLANK(INDIRECT(\"'\"&F9729&\"'!\"&H9729)),\"\",IFERROR(VLOOKUP(TEXT(INDIRECT(\"'\"&F9729&\"'!\"&H9729),\"0\"),Notes!$B$5:$C$100,2,FALSE),\"\"))","v":""},"2c","$W$59","$X$59"]
[38625,{"$f":"Menu!$F$29","v":"X"},{"$f":"Menu!$J$29","v":2020},{"$f":"IF(ISBLANK(INDIRECT(\"'\"&F9730&\"'!\"&G9730)),\"\",INDIRECT(\"'\"&F9730&\"'!\"&G9730))","v":""},{"$f":"IF(ISBLANK(INDIRECT(\"'\"&F9730&\"'!\"&H9730)),\"\",IFERROR(VLOOKUP(TEXT(INDIRECT(\"'\"&F9730&\"'!\"&H9730),\"0\"),Notes!$B$5:$C$100,2,FALSE),\"\"))","v":""},"2c","$AA$59",{"$f":"IF(LEN(TRIM(MID(G9730,4,10)))-LEN(SUBSTITUTE(TRIM(MID(G9730,4,10)),\"$\",\"\"))=0,\"$\"&CHAR(CODE(MID(G9730,2,1))+1)&\"$\"&TRIM(MID(G9730,4,10)),\"$\"&MID(G9730,2,1)&CHAR(CODE(MID(G9730,3,1))+1)&\"$\"&TRIM(MID(G9730,5,11)))","v":"$AB$59"}]
[38626,{"$f":"Menu!$F$29","v":"X"},{"$f":"Menu!$J$29","v":2020},{"$f":"IF(ISBLANK(INDIRECT(\"'\"&F9731&\"'!\"&G9731)),\"\",INDIRECT(\"'\"&F9731&\"'!\"&G9731))","v":""},{"$f":"IF(ISBLANK(INDIRECT(\"'\"&F9731&\"'!\"&H9731)),\"\",IFERROR(VLOOKUP(TEXT(INDIRECT(\"'\"&F9731&\"'!\"&H9731),\"0\"),Notes!$B$5:$C$100,2,FALSE),\"\"))","v":""},"2c","$Y$59","$Z$59"]
[38633,{"$f":"Menu!$F$29","v":"X"},{"$f":"Menu!$J$29","v":2020},{"$f":"IF(ISBLANK(INDIRECT(\"'\"&F9732&\"'!\"&G9732)),\"\",INDIRECT(\"'\"&F9732&\"'!\"&G9732))","v":""},{"$f":"IF(ISBLANK(INDIRECT(\"'\"&F9732&\"'!\"&H9732)),\"\",IFERROR(VLOOKUP(TEXT(INDIRECT(\"'\"&F9732&\"'!\"&H9732),\"0\"),Notes!$B$5:$C$100,2,FALSE),\"\"))","v":""},"2e","$BG$60","$BH$60"]
[38634,{"$f":"Menu!$F$29","v":"X"},{"$f":"Menu!$J$29","v":2020},{"$f":"IF(ISBLANK(INDIRECT(\"'\"&F9733&\"'!\"&G9733)),\"\",INDIRECT(\"'\"&F9733&\"'!\"&G9733))","v":""},{"$f":"IF(ISBLANK(INDIRECT(\"'\"&F9733&\"'!\"&H9733)),\"\",IFERROR(VLOOKUP(TEXT(INDIRECT(\"'\"&F9733&\"'!\"&H9733),\"0\"),Notes!$B$5:$C$100,2,FALSE),\"\"))","v":""},"2e","$BK$60","$BL$60"]
[38635,{"$f":"Menu!$F$29","v":"X"},{"$f":"Menu!$J$29","v":2020},{"$f":"IF(ISBLANK(INDIRECT(\"'\"&F9734&\"'!\"&G9734)),\"\",INDIRECT(\"'\"&F9734&\"'!\"&G9734))","v":""},{"$f":"IF(ISBLANK(INDIRECT(\"'\"&F9734&\"'!\"&H9734)),\"\",IFERROR(VLOOKUP(TEXT(INDIRECT(\"'\"&F9734&\"'!\"&H9734),\"0\"),Notes!$B$5:$C$100,2,FALSE),\"\"))","v":""},"2e","$BI$60","$BJ$60"]
[38636,{"$f":"Menu!$F$29","v":"X"},{"$f":"Menu!$J$29","v":2020},{"$f":"IF(ISBLANK(INDIRECT(\"'\"&F9735&\"'!\"&G9735)),\"\",INDIRECT(\"'\"&F9735&\"'!\"&G9735))","v":""},{"$f":"IF(ISBLANK(INDIRECT(\"'\"&F9735&\"'!\"&H9735)),\"\",IFERROR(VLOOKUP(TEXT(INDIRECT(\"'\"&F9735&\"'!\"&H9735),\"0\"),Notes!$B$5:$C$100,2,FALSE),\"\"))","v":""},"2e","$E$60","$F$60"]
[38637,{"$f":"Menu!$F$29","v":"X"},{"$f":"Menu!$J$29","v":2020},{"$f":"IF(ISBLANK(INDIRECT(\"'\"&F9736&\"'!\"&G9736)),\"\",INDIRECT(\"'\"&F9736&\"'!\"&G9736))","v":""},{"$f":"IF(ISBLANK(INDIRECT(\"'\"&F9736&\"'!\"&H9736)),\"\",IFERROR(VLOOKUP(TEXT(INDIRECT(\"'\"&F9736&\"'!\"&H9736),\"0\"),Notes!$B$5:$C$100,2,FALSE),\"\"))","v":""},"2e","$I$60","$J$60"]
[38638,{"$f":"Menu!$F$29","v":"X"},{"$f":"Menu!$J$29","v":2020},{"$f":"IF(ISBLANK(INDIRECT(\"'\"&F9737&\"'!\"&G9737)),\"\",INDIRECT(\"'\"&F9737&\"'!\"&G9737))","v":""},{"$f":"IF(ISBLANK(INDIRECT(\"'\"&F9737&\"'!\"&H9737)),\"\",IFERROR(VLOOKUP(TEXT(INDIRECT(\"'\"&F9737&\"'!\"&H9737),\"0\"),Notes!$B$5:$C$100,2,FALSE),\"\"))","v":""},"2e","$G$60","$H$60"]
[38639,{"$f":"Menu!$F$29","v":"X"},{"$f":"Menu!$J$29","v":2020},{"$f":"IF(ISBLANK(INDIRECT(\"'\"&F9738&\"'!\"&G9738)),\"\",INDIRECT(\"'\"&F9738&\"'!\"&G9738))","v":""},{"$f":"IF(ISBLANK(INDIRECT(\"'\"&F9738&\"'!\"&H9738)),\"\",IFERROR(VLOOKUP(TEXT(INDIRECT(\"'\"&F9738&\"'!\"&H9738),\"0\"),Notes!$B$5:$C$100,2,FALSE),\"\"))","v":""},"2e","$K$60","$L$60"]
[38640,{"$f":"Menu!$F$29","v":"X"},{"$f":"Menu!$J$29","v":2020},{"$f":"IF(ISBLANK(INDIRECT(\"'\"&F9739&\"'!\"&G9739)),\"\",INDIRECT(\"'\"&F9739&\"'!\"&G9739))","v":""},{"$f":"IF(ISBLANK(INDIRECT(\"'\"&F9739&\"'!\"&H9739)),\"\",IFERROR(VLOOKUP(TEXT(INDIRECT(\"'\"&F9739&\"'!\"&H9739),\"0\"),Notes!$B$5:$C$100,2,FALSE),\"\"))","v":""},"2e","$O$60","$P$60"]
[38641,{"$f":"Menu!$F$29","v":"X"},{"$f":"Menu!$J$29","v":2020},{"$f":"IF(ISBLANK(INDIRECT(\"'\"&F9740&\"'!\"&G9740)),\"\",INDIRECT(\"'\"&F9740&\"'!\"&G9740))","v":""},{"$f":"IF(ISBLANK(INDIRECT(\"'\"&F9740&\"'!\"&H9740)),\"\",IFERROR(VLOOKUP(TEXT(INDIRECT(\"'\"&F9740&\"'!\"&H9740),\"0\"),Notes!$B$5:$C$100,2,FALSE),\"\"))","v":""},"2e","$M$60","$N$60"]
[38642,{"$f":"Menu!$F$29","v":"X"},{"$f":"Menu!$J$29","v":2020},{"$f":"IF(ISBLANK(INDIRECT(\"'\"&F9741&\"'!\"&G9741)),\"\",INDIRECT(\"'\"&F9741&\"'!\"&G9741))","v":""},{"$f":"IF(ISBLANK(INDIRECT(\"'\"&F9741&\"'!\"&H9741)),\"\",IFERROR(VLOOKUP(TEXT(INDIRECT(\"'\"&F9741&\"'!\"&H9741),\"0\"),Notes!$B$5:$C$100,2,FALSE),\"\"))","v":""},"2e","$Q$60","$R$60"]
[38643,{"$f":"Menu!$F$29","v":"X"},{"$f":"Menu!$J$29","v":2020},{"$f":"IF(ISBLANK(INDIRECT(\"'\"&F9742&\"'!\"&G9742)),\"\",INDIRECT(\"'\"&F9742&\"'!\"&G9742))","v":""},{"$f":"IF(ISBLANK(INDIRECT(\"'\"&F9742&\"'!\"&H9742)),\"\",IFERROR(VLOOKUP(TEXT(INDIRECT(\"'\"&F9742&\"'!\"&H9742),\"0\"),Notes!$B$5:$C$100,2,FALSE),\"\"))","v":""},"2e","$U$60","$V$60"]
[38644,{"$f":"Menu!$F$29","v":"X"},{"$f":"Menu!$J$29","v":2020},{"$f":"IF(ISBLANK(INDIRECT(\"'\"&F9743&\"'!\"&G9743)),\"\",INDIRECT(\"'\"&F9743&\"'!\"&G9743))","v":""},{"$f":"IF(ISBLANK(INDIRECT(\"'\"&F9743&\"'!\"&H9743)),\"\",IFERROR(VLOOKUP(TEXT(INDIRECT(\"'\"&F9743&\"'!\"&H9743),\"0\"),Notes!$B$5:$C$100,2,FALSE),\"\"))","v":""},"2e","$S$60","$T$60"]
[38645,{"$f":"Menu!$F$29","v":"X"},{"$f":"Menu!$J$29","v":2020},{"$f":"IF(ISBLANK(INDIRECT(\"'\"&F9744&\"'!\"&G9744)),\"\",INDIRECT(\"'\"&F9744&\"'!\"&G9744))","v":""},{"$f":"IF(ISBLANK(INDIRECT(\"'\"&F9744&\"'!\"&H9744)),\"\",IFERROR(VLOOKUP(TEXT(INDIRECT(\"'\"&F9744&\"'!\"&H9744),\"0\"),Notes!$B$5:$C$100,2,FALSE),\"\"))","v":""},"2e","$W$60","$X$60"]
[38646,{"$f":"Menu!$F$29","v":"X"},{"$f":"Menu!$J$29","v":2020},{"$f":"IF(ISBLANK(INDIRECT(\"'\"&F9745&\"'!\"&G9745)),\"\",INDIRECT(\"'\"&F9745&\"'!\"&G9745))","v":""},{"$f":"IF(ISBLANK(INDIRECT(\"'\"&F9745&\"'!\"&H9745)),\"\",IFERROR(VLOOKUP(TEXT(INDIRECT(\"'\"&F9745&\"'!\"&H9745),\"0\"),Notes!$B$5:$C$100,2,FALSE),\"\"))","v":""},"2e","$AA$60","$AB$60"]
[38647,{"$f":"Menu!$F$29","v":"X"},{"$f":"Menu!$J$29","v":2020},{"$f":"IF(ISBLANK(INDIRECT(\"'\"&F9746&\"'!\"&G9746)),\"\",INDIRECT(\"'\"&F9746&\"'!\"&G9746))","v":""},{"$f":"IF(ISBLANK(INDIRECT(\"'\"&F9746&\"'!\"&H9746)),\"\",IFERROR(VLOOKUP(TEXT(INDIRECT(\"'\"&F9746&\"'!\"&H9746),\"0\"),Notes!$B$5:$C$100,2,FALSE),\"\"))","v":""},"2e","$Y$60","$Z$60"]
[38648,{"$f":"Menu!$F$29","v":"X"},{"$f":"Menu!$J$29","v":2020},{"$f":"IF(ISBLANK(INDIRECT(\"'\"&F9747&\"'!\"&G9747)),\"\",INDIRECT(\"'\"&F9747&\"'!\"&G9747))","v":""},{"$f":"IF(ISBLANK(INDIRECT(\"'\"&F9747&\"'!\"&H9747)),\"\",IFERROR(VLOOKUP(TEXT(INDIRECT(\"'\"&F9747&\"'!\"&H9747),\"0\"),Notes!$B$5:$C$100,2,FALSE),\"\"))","v":""},"2e","$AC$60","$AD$60"]
[38649,{"$f":"Menu!$F$29","v":"X"},{"$f":"Menu!$J$29","v":2020},{"$f":"IF(ISBLANK(INDIRECT(\"'\"&F9748&\"'!\"&G9748)),\"\",INDIRECT(\"'\"&F9748&\"'!\"&G9748))","v":""},{"$f":"IF(ISBLANK(INDIRECT(\"'\"&F9748&\"'!\"&H9748)),\"\",IFERROR(VLOOKUP(TEXT(INDIRECT(\"'\"&F9748&\"'!\"&H9748),\"0\"),Notes!$B$5:$C$100,2,FALSE),\"\"))","v":""},"2e","$AG$60","$AH$60"]
[38650,{"$f":"Menu!$F$29","v":"X"},{"$f":"Menu!$J$29","v":2020},{"$f":"IF(ISBLANK(INDIRECT(\"'\"&F9749&\"'!\"&G9749)),\"\",INDIRECT(\"'\"&F9749&\"'!\"&G9749))","v":""},{"$f":"IF(ISBLANK(INDIRECT(\"'\"&F9749&\"'!\"&H9749)),\"\",IFERROR(VLOOKUP(TEXT(INDIRECT(\"'\"&F9749&\"'!\"&H9749),\"0\"),Notes!$B$5:$C$100,2,FALSE),\"\"))","v":""},"2e","$AE$60","$AF$60"]
[38651,{"$f":"Menu!$F$29","v":"X"},{"$f":"Menu!$J$29","v":2020},{"$f":"IF(ISBLANK(INDIRECT(\"'\"&F9750&\"'!\"&G9750)),\"\",INDIRECT(\"'\"&F9750&\"'!\"&G9750))","v":""},{"$f":"IF(ISBLANK(INDIRECT(\"'\"&F9750&\"'!\"&H9750)),\"\",IFERROR(VLOOKUP(TEXT(INDIRECT(\"'\"&F9750&\"'!\"&H9750),\"0\"),Notes!$B$5:$C$100,2,FALSE),\"\"))","v":""},"2e","$AI$60","$AJ$60"]
[38652,{"$f":"Menu!$F$29","v":"X"},{"$f":"Menu!$J$29","v":2020},{"$f":"IF(ISBLANK(INDIRECT(\"'\"&F9751&\"'!\"&G9751)),\"\",INDIRECT(\"'\"&F9751&\"'!\"&G9751))","v":""},{"$f":"IF(ISBLANK(INDIRECT(\"'\"&F9751&\"'!\"&H9751)),\"\",IFERROR(VLOOKUP(TEXT(INDIRECT(\"'\"&F9751&\"'!\"&H9751),\"0\"),Notes!$B$5:$C$100,2,FALSE),\"\"))","v":""},"2e","$AM$60","$AN$60"]
[38653,{"$f":"Menu!$F$29","v":"X"},{"$f":"Menu!$J$29","v":2020},{"$f":"IF(ISBLANK(INDIRECT(\"'\"&F9752&\"'!\"&G9752)),\"\",INDIRECT(\"'\"&F9752&\"'!\"&G9752))","v":""},{"$f":"IF(ISBLANK(INDIRECT(\"'\"&F9752&\"'!\"&H9752)),\"\",IFERROR(VLOOKUP(TEXT(INDIRECT(\"'\"&F9752&\"'!\"&H9752),\"0\"),Notes!$B$5:$C$100,2,FALSE),\"\"))","v":""},"2e","$AK$60","$AL$60"]
[38654,{"$f":"Menu!$F$29","v":"X"},{"$f":"Menu!$J$29","v":2020},{"$f":"IF(ISBLANK(INDIRECT(\"'\"&F9753&\"'!\"&G9753)),\"\",INDIRECT(\"'\"&F9753&\"'!\"&G9753))","v":""},{"$f":"IF(ISBLANK(INDIRECT(\"'\"&F9753&\"'!\"&H9753)),\"\",IFERROR(VLOOKUP(TEXT(INDIRECT(\"'\"&F9753&\"'!\"&H9753),\"0\"),Notes!$B$5:$C$100,2,FALSE),\"\"))","v":""},"2e","$AO$60","$AP$60"]
[38655,{"$f":"Menu!$F$29","v":"X"},{"$f":"Menu!$J$29","v":2020},{"$f":"IF(ISBLANK(INDIRECT(\"'\"&F9754&\"'!\"&G9754)),\"\",INDIRECT(\"'\"&F9754&\"'!\"&G9754))","v":""},{"$f":"IF(ISBLANK(INDIRECT(\"'\"&F9754&\"'!\"&H9754)),\"\",IFERROR(VLOOKUP(TEXT(INDIRECT(\"'\"&F9754&\"'!\"&H9754),\"0\"),Notes!$B$5:$C$100,2,FALSE),\"\"))","v":""},"2e","$AS$60","$AT$60"]
[38656,{"$f":"Menu!$F$29","v":"X"},{"$f":"Menu!$J$29","v":2020},{"$f":"IF(ISBLANK(INDIRECT(\"'\"&F9755&\"'!\"&G9755)),\"\",INDIRECT(\"'\"&F9755&\"'!\"&G9755))","v":""},{"$f":"IF(ISBLANK(INDIRECT(\"'\"&F9755&\"'!\"&H9755)),\"\",IFERROR(VLOOKUP(TEXT(INDIRECT(\"'\"&F9755&\"'!\"&H9755),\"0\"),Notes!$B$5:$C$100,2,FALSE),\"\"))","v":""},"2e","$AQ$60","$AR$60"]
[38657,{"$f":"Menu!$F$29","v":"X"},{"$f":"Menu!$J$29","v":2020},{"$f":"IF(ISBLANK(INDIRECT(\"'\"&F9756&\"'!\"&G9756)),\"\",INDIRECT(\"'\"&F9756&\"'!\"&G9756))","v":""},{"$f":"IF(ISBLANK(INDIRECT(\"'\"&F9756&\"'!\"&H9756)),\"\",IFERROR(VLOOKUP(TEXT(INDIRECT(\"'\"&F9756&\"'!\"&H9756),\"0\"),Notes!$B$5:$C$100,2,FALSE),\"\"))","v":""},"2e","$AU$60","$AV$60"]
[38658,{"$f":"Menu!$F$29","v":"X"},{"$f":"Menu!$J$29","v":2020},{"$f":"IF(ISBLANK(INDIRECT(\"'\"&F9757&\"'!\"&G9757)),\"\",INDIRECT(\"'\"&F9757&\"'!\"&G9757))","v":""},{"$f":"IF(ISBLANK(INDIRECT(\"'\"&F9757&\"'!\"&H9757)),\"\",IFERROR(VLOOKUP(TEXT(INDIRECT(\"'\"&F9757&\"'!\"&H9757),\"0\"),Notes!$B$5:$C$100,2,FALSE),\"\"))","v":""},"2e","$AY$60","$AZ$60"]
[38659,{"$f":"Menu!$F$29","v":"X"},{"$f":"Menu!$J$29","v":2020},{"$f":"IF(ISBLANK(INDIRECT(\"'\"&F9758&\"'!\"&G9758)),\"\",INDIRECT(\"'\"&F9758&\"'!\"&G9758))","v":""},{"$f":"IF(ISBLANK(INDIRECT(\"'\"&F9758&\"'!\"&H9758)),\"\",IFERROR(VLOOKUP(TEXT(INDIRECT(\"'\"&F9758&\"'!\"&H9758),\"0\"),Notes!$B$5:$C$100,2,FALSE),\"\"))","v":""},"2e","$AW$60","$AX$60"]
[38660,{"$f":"Menu!$F$29","v":"X"},{"$f":"Menu!$J$29","v":2020},{"$f":"IF(ISBLANK(INDIRECT(\"'\"&F9759&\"'!\"&G9759)),\"\",INDIRECT(\"'\"&F9759&\"'!\"&G9759))","v":""},{"$f":"IF(ISBLANK(INDIRECT(\"'\"&F9759&\"'!\"&H9759)),\"\",IFERROR(VLOOKUP(TEXT(INDIRECT(\"'\"&F9759&\"'!\"&H9759),\"0\"),Notes!$B$5:$C$100,2,FALSE),\"\"))","v":""},"2e","$BA$60","$BB$60"]
[38661,{"$f":"Menu!$F$29","v":"X"},{"$f":"Menu!$J$29","v":2020},{"$f":"IF(ISBLANK(INDIRECT(\"'\"&F9760&\"'!\"&G9760)),\"\",INDIRECT(\"'\"&F9760&\"'!\"&G9760))","v":""},{"$f":"IF(ISBLANK(INDIRECT(\"'\"&F9760&\"'!\"&H9760)),\"\",IFERROR(VLOOKUP(TEXT(INDIRECT(\"'\"&F9760&\"'!\"&H9760),\"0\"),Notes!$B$5:$C$100,2,FALSE),\"\"))","v":""},"2e","$BE$60","$BF$60"]
[38662,{"$f":"Menu!$F$29","v":"X"},{"$f":"Menu!$J$29","v":2020},{"$f":"IF(ISBLANK(INDIRECT(\"'\"&F9761&\"'!\"&G9761)),\"\",INDIRECT(\"'\"&F9761&\"'!\"&G9761))","v":""},{"$f":"IF(ISBLANK(INDIRECT(\"'\"&F9761&\"'!\"&H9761)),\"\",IFERROR(VLOOKUP(TEXT(INDIRECT(\"'\"&F9761&\"'!\"&H9761),\"0\"),Notes!$B$5:$C$100,2,FALSE),\"\"))","v":""},"2e","$BC$60","$BD$60"]
[38663,{"$f":"Menu!$F$29","v":"X"},{"$f":"Menu!$J$29","v":2020},{"$f":"IF(ISBLANK(INDIRECT(\"'\"&F9762&\"'!\"&G9762)),\"\",INDIRECT(\"'\"&F9762&\"'!\"&G9762))","v":""},{"$f":"IF(ISBLANK(INDIRECT(\"'\"&F9762&\"'!\"&H9762)),\"\",IFERROR(VLOOKUP(TEXT(INDIRECT(\"'\"&F9762&\"'!\"&H9762),\"0\"),Notes!$B$5:$C$100,2,FALSE),\"\"))","v":""},"2b","$E$59","$F$59"]
[38664,{"$f":"Menu!$F$29","v":"X"},{"$f":"Menu!$J$29","v":2020},{"$f":"IF(ISBLANK(INDIRECT(\"'\"&F9763&\"'!\"&G9763)),\"\",INDIRECT(\"'\"&F9763&\"'!\"&G9763))","v":""},{"$f":"IF(ISBLANK(INDIRECT(\"'\"&F9763&\"'!\"&H9763)),\"\",IFERROR(VLOOKUP(TEXT(INDIRECT(\"'\"&F9763&\"'!\"&H9763),\"0\"),Notes!$B$5:$C$100,2,FALSE),\"\"))","v":""},"2b","$I$59","$J$59"]
[38665,{"$f":"Menu!$F$29","v":"X"},{"$f":"Menu!$J$29","v":2020},{"$f":"IF(ISBLANK(INDIRECT(\"'\"&F9764&\"'!\"&G9764)),\"\",INDIRECT(\"'\"&F9764&\"'!\"&G9764))","v":""},{"$f":"IF(ISBLANK(INDIRECT(\"'\"&F9764&\"'!\"&H9764)),\"\",IFERROR(VLOOKUP(TEXT(INDIRECT(\"'\"&F9764&\"'!\"&H9764),\"0\"),Notes!$B$5:$C$100,2,FALSE),\"\"))","v":""},"2b","$G$59","$H$59"]
[38666,{"$f":"Menu!$F$29","v":"X"},{"$f":"Menu!$J$29","v":2020},{"$f":"IF(ISBLANK(INDIRECT(\"'\"&F9765&\"'!\"&G9765)),\"\",INDIRECT(\"'\"&F9765&\"'!\"&G9765))","v":""},{"$f":"IF(ISBLANK(INDIRECT(\"'\"&F9765&\"'!\"&H9765)),\"\",IFERROR(VLOOKUP(TEXT(INDIRECT(\"'\"&F9765&\"'!\"&H9765),\"0\"),Notes!$B$5:$C$100,2,FALSE),\"\"))","v":""},"2a","$G$59","$H$59"]
[38667,{"$f":"Menu!$F$29","v":"X"},{"$f":"Menu!$J$29","v":2020},{"$f":"IF(ISBLANK(INDIRECT(\"'\"&F9766&\"'!\"&G9766)),\"\",INDIRECT(\"'\"&F9766&\"'!\"&G9766))","v":""},{"$f":"IF(ISBLANK(INDIRECT(\"'\"&F9766&\"'!\"&H9766)),\"\",IFERROR(VLOOKUP(TEXT(INDIRECT(\"'\"&F9766&\"'!\"&H9766),\"0\"),Notes!$B$5:$C$100,2,FALSE),\"\"))","v":""},"2b","$W$59","$X$59"]
[38668,{"$f":"Menu!$F$29","v":"X"},{"$f":"Menu!$J$29","v":2020},{"$f":"IF(ISBLANK(INDIRECT(\"'\"&F9767&\"'!\"&G9767)),\"\",INDIRECT(\"'\"&F9767&\"'!\"&G9767))","v":""},{"$f":"IF(ISBLANK(INDIRECT(\"'\"&F9767&\"'!\"&H9767)),\"\",IFERROR(VLOOKUP(TEXT(INDIRECT(\"'\"&F9767&\"'!\"&H9767),\"0\"),Notes!$B$5:$C$100,2,FALSE),\"\"))","v":""},"2b","$AA$59","$AB$59"]
[38669,{"$f":"Menu!$F$29","v":"X"},{"$f":"Menu!$J$29","v":2020},{"$f":"IF(ISBLANK(INDIRECT(\"'\"&F9768&\"'!\"&G9768)),\"\",INDIRECT(\"'\"&F9768&\"'!\"&G9768))","v":""},{"$f":"IF(ISBLANK(INDIRECT(\"'\"&F9768&\"'!\"&H9768)),\"\",IFERROR(VLOOKUP(TEXT(INDIRECT(\"'\"&F9768&\"'!\"&H9768),\"0\"),Notes!$B$5:$C$100,2,FALSE),\"\"))","v":""},"2b","$Y$59","$Z$59"]
[38670,{"$f":"Menu!$F$29","v":"X"},{"$f":"Menu!$J$29","v":2020},{"$f":"IF(ISBLANK(INDIRECT(\"'\"&F9769&\"'!\"&G9769)),\"\",INDIRECT(\"'\"&F9769&\"'!\"&G9769))","v":""},{"$f":"IF(ISBLANK(INDIRECT(\"'\"&F9769&\"'!\"&H9769)),\"\",IFERROR(VLOOKUP(TEXT(INDIRECT(\"'\"&F9769&\"'!\"&H9769),\"0\"),Notes!$B$5:$C$100,2,FALSE),\"\"))","v":""},"2d","$AC$59","$AD$59"]
[38671,{"$f":"Menu!$F$29","v":"X"},{"$f":"Menu!$J$29","v":2020},{"$f":"IF(ISBLANK(INDIRECT(\"'\"&F9770&\"'!\"&G9770)),\"\",INDIRECT(\"'\"&F9770&\"'!\"&G9770))","v":""},{"$f":"IF(ISBLANK(INDIRECT(\"'\"&F9770&\"'!\"&H9770)),\"\",IFERROR(VLOOKUP(TEXT(INDIRECT(\"'\"&F9770&\"'!\"&H9770),\"0\"),Notes!$B$5:$C$100,2,FALSE),\"\"))","v":""},"2d","$AG$59","$AH$59"]
[38672,{"$f":"Menu!$F$29","v":"X"},{"$f":"Menu!$J$29","v":2020},{"$f":"IF(ISBLANK(INDIRECT(\"'\"&F9771&\"'!\"&G9771)),\"\",INDIRECT(\"'\"&F9771&\"'!\"&G9771))","v":""},{"$f":"IF(ISBLANK(INDIRECT(\"'\"&F9771&\"'!\"&H9771)),\"\",IFERROR(VLOOKUP(TEXT(INDIRECT(\"'\"&F9771&\"'!\"&H9771),\"0\"),Notes!$B$5:$C$100,2,FALSE),\"\"))","v":""},"2d","$AE$59","$AF$59"]
[38673,{"$f":"Menu!$F$29","v":"X"},{"$f":"Menu!$J$29","v":2020},{"$f":"IF(ISBLANK(INDIRECT(\"'\"&F9772&\"'!\"&G9772)),\"\",INDIRECT(\"'\"&F9772&\"'!\"&G9772))","v":""},{"$f":"IF(ISBLANK(INDIRECT(\"'\"&F9772&\"'!\"&H9772)),\"\",IFERROR(VLOOKUP(TEXT(INDIRECT(\"'\"&F9772&\"'!\"&H9772),\"0\"),Notes!$B$5:$C$100,2,FALSE),\"\"))","v":""},"2d","$W$59","$X$59"]
[38674,{"$f":"Menu!$F$29","v":"X"},{"$f":"Menu!$J$29","v":2020},{"$f":"IF(ISBLANK(INDIRECT(\"'\"&F9773&\"'!\"&G9773)),\"\",INDIRECT(\"'\"&F9773&\"'!\"&G9773))","v":""},{"$f":"IF(ISBLANK(INDIRECT(\"'\"&F9773&\"'!\"&H9773)),\"\",IFERROR(VLOOKUP(TEXT(INDIRECT(\"'\"&F9773&\"'!\"&H9773),\"0\"),Notes!$B$5:$C$100,2,FALSE),\"\"))","v":""},"2d","$AA$59","$AB$59"]
[38675,{"$f":"Menu!$F$29","v":"X"},{"$f":"Menu!$J$29","v":2020},{"$f":"IF(ISBLANK(INDIRECT(\"'\"&F9774&\"'!\"&G9774)),\"\",INDIRECT(\"'\"&F9774&\"'!\"&G9774))","v":""},{"$f":"IF(ISBLANK(INDIRECT(\"'\"&F9774&\"'!\"&H9774)),\"\",IFERROR(VLOOKUP(TEXT(INDIRECT(\"'\"&F9774&\"'!\"&H9774),\"0\"),Notes!$B$5:$C$100,2,FALSE),\"\"))","v":""},"2d","$Y$59","$Z$59"]
[38676,{"$f":"Menu!$F$29","v":"X"},{"$f":"Menu!$J$29","v":2020},{"$f":"IF(ISBLANK(INDIRECT(\"'\"&F9775&\"'!\"&G9775)),\"\",INDIRECT(\"'\"&F9775&\"'!\"&G9775))","v":""},{"$f":"IF(ISBLANK(INDIRECT(\"'\"&F9775&\"'!\"&H9775)),\"\",IFERROR(VLOOKUP(TEXT(INDIRECT(\"'\"&F9775&\"'!\"&H9775),\"0\"),Notes!$B$5:$C$100,2,FALSE),\"\"))","v":""},"2d","$E$59","$F$59"]
[38677,{"$f":"Menu!$F$29","v":"X"},{"$f":"Menu!$J$29","v":2020},{"$f":"IF(ISBLANK(INDIRECT(\"'\"&F9776&\"'!\"&G9776)),\"\",INDIRECT(\"'\"&F9776&\"'!\"&G9776))","v":""},{"$f":"IF(ISBLANK(INDIRECT(\"'\"&F9776&\"'!\"&H9776)),\"\",IFERROR(VLOOKUP(TEXT(INDIRECT(\"'\"&F9776&\"'!\"&H9776),\"0\"),Notes!$B$5:$C$100,2,FALSE),\"\"))","v":""},"2d","$I$59","$J$59"]
[38678,{"$f":"Menu!$F$29","v":"X"},{"$f":"Menu!$J$29","v":2020},{"$f":"IF(ISBLANK(INDIRECT(\"'\"&F9777&\"'!\"&G9777)),\"\",INDIRECT(\"'\"&F9777&\"'!\"&G9777))","v":""},{"$f":"IF(ISBLANK(INDIRECT(\"'\"&F9777&\"'!\"&H9777)),\"\",IFERROR(VLOOKUP(TEXT(INDIRECT(\"'\"&F9777&\"'!\"&H9777),\"0\"),Notes!$B$5:$C$100,2,FALSE),\"\"))","v":""},"2d","$G$59","$H$59"]
[38679,{"$f":"Menu!$F$29","v":"X"},{"$f":"Menu!$J$29","v":2020},{"$f":"IF(ISBLANK(INDIRECT(\"'\"&F9778&\"'!\"&G9778)),\"\",INDIRECT(\"'\"&F9778&\"'!\"&G9778))","v":""},{"$f":"IF(ISBLANK(INDIRECT(\"'\"&F9778&\"'!\"&H9778)),\"\",IFERROR(VLOOKUP(TEXT(INDIRECT(\"'\"&F9778&\"'!\"&H9778),\"0\"),Notes!$B$5:$C$100,2,FALSE),\"\"))","v":""},"2a","$Q$59","$R$59"]
[38680,{"$f":"Menu!$F$29","v":"X"},{"$f":"Menu!$J$29","v":2020},{"$f":"IF(ISBLANK(INDIRECT(\"'\"&F9779&\"'!\"&G9779)),\"\",INDIRECT(\"'\"&F9779&\"'!\"&G9779))","v":""},{"$f":"IF(ISBLANK(INDIRECT(\"'\"&F9779&\"'!\"&H9779)),\"\",IFERROR(VLOOKUP(TEXT(INDIRECT(\"'\"&F9779&\"'!\"&H9779),\"0\"),Notes!$B$5:$C$100,2,FALSE),\"\"))","v":""},"2a","$U$59","$V$59"]
[38681,{"$f":"Menu!$F$29","v":"X"},{"$f":"Menu!$J$29","v":2020},{"$f":"IF(ISBLANK(INDIRECT(\"'\"&F9780&\"'!\"&G9780)),\"\",INDIRECT(\"'\"&F9780&\"'!\"&G9780))","v":""},{"$f":"IF(ISBLANK(INDIRECT(\"'\"&F9780&\"'!\"&H9780)),\"\",IFERROR(VLOOKUP(TEXT(INDIRECT(\"'\"&F9780&\"'!\"&H9780),\"0\"),Notes!$B$5:$C$100,2,FALSE),\"\"))","v":""},"2a","$S$59","$T$59"]
[38682,{"$f":"Menu!$F$29","v":"X"},{"$f":"Menu!$J$29","v":2020},{"$f":"IF(ISBLANK(INDIRECT(\"'\"&F9781&\"'!\"&G9781)),\"\",INDIRECT(\"'\"&F9781&\"'!\"&G9781))","v":""},{"$f":"IF(ISBLANK(INDIRECT(\"'\"&F9781&\"'!\"&H9781)),\"\",IFERROR(VLOOKUP(TEXT(INDIRECT(\"'\"&F9781&\"'!\"&H9781),\"0\"),Notes!$B$5:$C$100,2,FALSE),\"\"))","v":""},"2d","$K$59","$L$59"]
[38683,{"$f":"Menu!$F$29","v":"X"},{"$f":"Menu!$J$29","v":2020},{"$f":"IF(ISBLANK(INDIRECT(\"'\"&F9782&\"'!\"&G9782)),\"\",INDIRECT(\"'\"&F9782&\"'!\"&G9782))","v":""},{"$f":"IF(ISBLANK(INDIRECT(\"'\"&F9782&\"'!\"&H9782)),\"\",IFERROR(VLOOKUP(TEXT(INDIRECT(\"'\"&F9782&\"'!\"&H9782),\"0\"),Notes!$B$5:$C$100,2,FALSE),\"\"))","v":""},"2d","$O$59","$P$59"]
[38684,{"$f":"Menu!$F$29","v":"X"},{"$f":"Menu!$J$29","v":2020},{"$f":"IF(ISBLANK(INDIRECT(\"'\"&F9783&\"'!\"&G9783)),\"\",INDIRECT(\"'\"&F9783&\"'!\"&G9783))","v":""},{"$f":"IF(ISBLANK(INDIRECT(\"'\"&F9783&\"'!\"&H9783)),\"\",IFERROR(VLOOKUP(TEXT(INDIRECT(\"'\"&F9783&\"'!\"&H9783),\"0\"),Notes!$B$5:$C$100,2,FALSE),\"\"))","v":""},"2d","$M$59","$N$59"]
[38685,{"$f":"Menu!$F$29","v":"X"},{"$f":"Menu!$J$29","v":2020},{"$f":"IF(ISBLANK(INDIRECT(\"'\"&F9784&\"'!\"&G9784)),\"\",INDIRECT(\"'\"&F9784&\"'!\"&G9784))","v":""},{"$f":"IF(ISBLANK(INDIRECT(\"'\"&F9784&\"'!\"&H9784)),\"\",IFERROR(VLOOKUP(TEXT(INDIRECT(\"'\"&F9784&\"'!\"&H9784),\"0\"),Notes!$B$5:$C$100,2,FALSE),\"\"))","v":""},"2d","$Q$59","$R$59"]
[38686,{"$f":"Menu!$F$29","v":"X"},{"$f":"Menu!$J$29","v":2020},{"$f":"IF(ISBLANK(INDIRECT(\"'\"&F9785&\"'!\"&G9785)),\"\",INDIRECT(\"'\"&F9785&\"'!\"&G9785))","v":""},{"$f":"IF(ISBLANK(INDIRECT(\"'\"&F9785&\"'!\"&H9785)),\"\",IFERROR(VLOOKUP(TEXT(INDIRECT(\"'\"&F9785&\"'!\"&H9785),\"0\"),Notes!$B$5:$C$100,2,FALSE),\"\"))","v":""},"2d","$U$59","$V$59"]
[38687,{"$f":"Menu!$F$29","v":"X"},{"$f":"Menu!$J$29","v":2020},{"$f":"IF(ISBLANK(INDIRECT(\"'\"&F9786&\"'!\"&G9786)),\"\",INDIRECT(\"'\"&F9786&\"'!\"&G9786))","v":""},{"$f":"IF(ISBLANK(INDIRECT(\"'\"&F9786&\"'!\"&H9786)),\"\",IFERROR(VLOOKUP(TEXT(INDIRECT(\"'\"&F9786&\"'!\"&H9786),\"0\"),Notes!$B$5:$C$100,2,FALSE),\"\"))","v":""},"2d","$S$59","$T$59"]
[38688,{"$f":"Menu!$F$29","v":"X"},{"$f":"Menu!$J$29","v":2020},{"$f":"IF(ISBLANK(INDIRECT(\"'\"&F9787&\"'!\"&G9787)),\"\",INDIRECT(\"'\"&F9787&\"'!\"&G9787))","v":""},{"$f":"IF(ISBLANK(INDIRECT(\"'\"&F9787&\"'!\"&H9787)),\"\",IFERROR(VLOOKUP(TEXT(INDIRECT(\"'\"&F9787&\"'!\"&H9787),\"0\"),Notes!$B$5:$C$100,2,FALSE),\"\"))","v":""},"2a","$K$59","$L$59"]
[38689,{"$f":"Menu!$F$29","v":"X"},{"$f":"Menu!$J$29","v":2020},{"$f":"IF(ISBLANK(INDIRECT(\"'\"&F9788&\"'!\"&G9788)),\"\",INDIRECT(\"'\"&F9788&\"'!\"&G9788))","v":""},{"$f":"IF(ISBLANK(INDIRECT(\"'\"&F9788&\"'!\"&H9788)),\"\",IFERROR(VLOOKUP(TEXT(INDIRECT(\"'\"&F9788&\"'!\"&H9788),\"0\"),Notes!$B$5:$C$100,2,FALSE),\"\"))","v":""},"2a","$O$59","$P$59"]
[38690,{"$f":"Menu!$F$29","v":"X"},{"$f":"Menu!$J$29","v":2020},{"$f":"IF(ISBLANK(INDIRECT(\"'\"&F9789&\"'!\"&G9789)),\"\",INDIRECT(\"'\"&F9789&\"'!\"&G9789))","v":""},{"$f":"IF(ISBLANK(INDIRECT(\"'\"&F9789&\"'!\"&H9789)),\"\",IFERROR(VLOOKUP(TEXT(INDIRECT(\"'\"&F9789&\"'!\"&H9789),\"0\"),Notes!$B$5:$C$100,2,FALSE),\"\"))","v":""},"2a","$M$59","$N$59"]
[38691,{"$f":"Menu!$F$29","v":"X"},{"$f":"Menu!$J$29","v":2020},{"$f":"IF(ISBLANK(INDIRECT(\"'\"&F9790&\"'!\"&G9790)),\"\",INDIRECT(\"'\"&F9790&\"'!\"&G9790))","v":""},{"$f":"IF(ISBLANK(INDIRECT(\"'\"&F9790&\"'!\"&H9790)),\"\",IFERROR(VLOOKUP(TEXT(INDIRECT(\"'\"&F9790&\"'!\"&H9790),\"0\"),Notes!$B$5:$C$100,2,FALSE),\"\"))","v":""},"2a","$E$59","$F$59"]
[38692,{"$f":"Menu!$F$29","v":"X"},{"$f":"Menu!$J$29","v":2020},{"$f":"IF(ISBLANK(INDIRECT(\"'\"&F9791&\"'!\"&G9791)),\"\",INDIRECT(\"'\"&F9791&\"'!\"&G9791))","v":""},{"$f":"IF(ISBLANK(INDIRECT(\"'\"&F9791&\"'!\"&H9791)),\"\",IFERROR(VLOOKUP(TEXT(INDIRECT(\"'\"&F9791&\"'!\"&H9791),\"0\"),Notes!$B$5:$C$100,2,FALSE),\"\"))","v":""},"2b","$K$60","$L$60"]
[38693,{"$f":"Menu!$F$29","v":"X"},{"$f":"Menu!$J$29","v":2020},{"$f":"IF(ISBLANK(INDIRECT(\"'\"&F9792&\"'!\"&G9792)),\"\",INDIRECT(\"'\"&F9792&\"'!\"&G9792))","v":""},{"$f":"IF(ISBLANK(INDIRECT(\"'\"&F9792&\"'!\"&H9792)),\"\",IFERROR(VLOOKUP(TEXT(INDIRECT(\"'\"&F9792&\"'!\"&H9792),\"0\"),Notes!$B$5:$C$100,2,FALSE),\"\"))","v":""},"2b","$O$60","$P$60"]
[38694,{"$f":"Menu!$F$29","v":"X"},{"$f":"Menu!$J$29","v":2020},{"$f":"IF(ISBLANK(INDIRECT(\"'\"&F9793&\"'!\"&G9793)),\"\",INDIRECT(\"'\"&F9793&\"'!\"&G9793))","v":""},{"$f":"IF(ISBLANK(INDIRECT(\"'\"&F9793&\"'!\"&H9793)),\"\",IFERROR(VLOOKUP(TEXT(INDIRECT(\"'\"&F9793&\"'!\"&H9793),\"0\"),Notes!$B$5:$C$100,2,FALSE),\"\"))","v":""},"2b","$M$60","$N$60"]
[38695,{"$f":"Menu!$F$29","v":"X"},{"$f":"Menu!$J$29","v":2020},{"$f":"IF(ISBLANK(INDIRECT(\"'\"&F9794&\"'!\"&G9794)),\"\",INDIRECT(\"'\"&F9794&\"'!\"&G9794))","v":""},{"$f":"IF(ISBLANK(INDIRECT(\"'\"&F9794&\"'!\"&H9794)),\"\",IFERROR(VLOOKUP(TEXT(INDIRECT(\"'\"&F9794&\"'!\"&H9794),\"0\"),Notes!$B$5:$C$100,2,FALSE),\"\"))","v":""},"2b","$Q$60",{"$f":"IF(LEN(TRIM(MID(G9794,4,10)))-LEN(SUBSTITUTE(TRIM(MID(G9794,4,10)),\"$\",\"\"))=0,\"$\"&CHAR(CODE(MID(G9794,2,1))+1)&\"$\"&TRIM(MID(G9794,4,10)),\"$\"&MID(G9794,2,1)&CHAR(CODE(MID(G9794,3,1))+1)&\"$\"&TRIM(MID(G9794,5,11)))","v":"$R$60"}]
[38696,{"$f":"Menu!$F$29","v":"X"},{"$f":"Menu!$J$29","v":2020},{"$f":"IF(ISBLANK(INDIRECT(\"'\"&F9795&\"'!\"&G9795)),\"\",INDIRECT(\"'\"&F9795&\"'!\"&G9795))","v":""},{"$f":"IF(ISBLANK(INDIRECT(\"'\"&F9795&\"'!\"&H9795)),\"\",IFERROR(VLOOKUP(TEXT(INDIRECT(\"'\"&F9795&\"'!\"&H9795),\"0\"),Notes!$B$5:$C$100,2,FALSE),\"\"))","v":""},"2b","$U$60","$V$60"]
[38697,{"$f":"Menu!$F$29","v":"X"},{"$f":"Menu!$J$29","v":2020},{"$f":"IF(ISBLANK(INDIRECT(\"'\"&F9796&\"'!\"&G9796)),\"\",INDIRECT(\"'\"&F9796&\"'!\"&G9796))","v":""},{"$f":"IF(ISBLANK(INDIRECT(\"'\"&F9796&\"'!\"&H9796)),\"\",IFERROR(VLOOKUP(TEXT(INDIRECT(\"'\"&F9796&\"'!\"&H9796),\"0\"),Notes!$B$5:$C$100,2,FALSE),\"\"))","v":""},"2b","$S$60","$T$60"]
[38701,{"$f":"Menu!$F$29","v":"X"},{"$f":"Menu!$J$29","v":2020},{"$f":"IF(ISBLANK(INDIRECT(\"'\"&F9797&\"'!\"&G9797)),\"\",INDIRECT(\"'\"&F9797&\"'!\"&G9797))","v":""},{"$f":"IF(ISBLANK(INDIRECT(\"'\"&F9797&\"'!\"&H9797)),\"\",IFERROR(VLOOKUP(TEXT(INDIRECT(\"'\"&F9797&\"'!\"&H9797),\"0\"),Notes!$B$5:$C$100,2,FALSE),\"\"))","v":""},"2a","$I$60","$J$60"]
[38702,{"$f":"Menu!$F$29","v":"X"},{"$f":"Menu!$J$29","v":2020},{"$f":"IF(ISBLANK(INDIRECT(\"'\"&F9798&\"'!\"&G9798)),\"\",INDIRECT(\"'\"&F9798&\"'!\"&G9798))","v":""},{"$f":"IF(ISBLANK(INDIRECT(\"'\"&F9798&\"'!\"&H9798)),\"\",IFERROR(VLOOKUP(TEXT(INDIRECT(\"'\"&F9798&\"'!\"&H9798),\"0\"),Notes!$B$5:$C$100,2,FALSE),\"\"))","v":""},"2c","$E$60","$F$60"]
[38703,{"$f":"Menu!$F$29","v":"X"},{"$f":"Menu!$J$29","v":2020},{"$f":"IF(ISBLANK(INDIRECT(\"'\"&F9799&\"'!\"&G9799)),\"\",INDIRECT(\"'\"&F9799&\"'!\"&G9799))","v":""},{"$f":"IF(ISBLANK(INDIRECT(\"'\"&F9799&\"'!\"&H9799)),\"\",IFERROR(VLOOKUP(TEXT(INDIRECT(\"'\"&F9799&\"'!\"&H9799),\"0\"),Notes!$B$5:$C$100,2,FALSE),\"\"))","v":""},"2c","$I$60","$J$60"]
[38704,{"$f":"Menu!$F$29","v":"X"},{"$f":"Menu!$J$29","v":2020},{"$f":"IF(ISBLANK(INDIRECT(\"'\"&F9800&\"'!\"&G9800)),\"\",INDIRECT(\"'\"&F9800&\"'!\"&G9800))","v":""},{"$f":"IF(ISBLANK(INDIRECT(\"'\"&F9800&\"'!\"&H9800)),\"\",IFERROR(VLOOKUP(TEXT(INDIRECT(\"'\"&F9800&\"'!\"&H9800),\"0\"),Notes!$B$5:$C$100,2,FALSE),\"\"))","v":""},"2c","$G$60","$H$60"]
[38708,{"$f":"Menu!$F$29","v":"X"},{"$f":"Menu!$J$29","v":2020},{"$f":"IF(ISBLANK(INDIRECT(\"'\"&F9801&\"'!\"&G9801)),\"\",INDIRECT(\"'\"&F9801&\"'!\"&G9801))","v":""},{"$f":"IF(ISBLANK(INDIRECT(\"'\"&F9801&\"'!\"&H9801)),\"\",IFERROR(VLOOKUP(TEXT(INDIRECT(\"'\"&F9801&\"'!\"&H9801),\"0\"),Notes!$B$5:$C$100,2,FALSE),\"\"))","v":""},"2c","$K$60","$L$60"]
[38709,{"$f":"Menu!$F$29","v":"X"},{"$f":"Menu!$J$29","v":2020},{"$f":"IF(ISBLANK(INDIRECT(\"'\"&F9802&\"'!\"&G9802)),\"\",INDIRECT(\"'\"&F9802&\"'!\"&G9802))","v":""},{"$f":"IF(ISBLANK(INDIRECT(\"'\"&F9802&\"'!\"&H9802)),\"\",IFERROR(VLOOKUP(TEXT(INDIRECT(\"'\"&F9802&\"'!\"&H9802),\"0\"),Notes!$B$5:$C$100,2,FALSE),\"\"))","v":""},"2c","$O$60","$P$60"]
[38710,{"$f":"Menu!$F$29","v":"X"},{"$f":"Menu!$J$29","v":2020},{"$f":"IF(ISBLANK(INDIRECT(\"'\"&F9803&\"'!\"&G9803)),\"\",INDIRECT(\"'\"&F9803&\"'!\"&G9803))","v":""},{"$f":"IF(ISBLANK(INDIRECT(\"'\"&F9803&\"'!\"&H9803)),\"\",IFERROR(VLOOKUP(TEXT(INDIRECT(\"'\"&F9803&\"'!\"&H9803),\"0\"),Notes!$B$5:$C$100,2,FALSE),\"\"))","v":""},"2c","$M$60","$N$60"]
[38711,{"$f":"Menu!$F$29","v":"X"},{"$f":"Menu!$J$29","v":2020},{"$f":"IF(ISBLANK(INDIRECT(\"'\"&F9804&\"'!\"&G9804)),\"\",INDIRECT(\"'\"&F9804&\"'!\"&G9804))","v":""},{"$f":"IF(ISBLANK(INDIRECT(\"'\"&F9804&\"'!\"&H9804)),\"\",IFERROR(VLOOKUP(TEXT(INDIRECT(\"'\"&F9804&\"'!\"&H9804),\"0\"),Notes!$B$5:$C$100,2,FALSE),\"\"))","v":""},"2c","$Q$60","$R$60"]
[38712,{"$f":"Menu!$F$29","v":"X"},{"$f":"Menu!$J$29","v":2020},{"$f":"IF(ISBLANK(INDIRECT(\"'\"&F9805&\"'!\"&G9805)),\"\",INDIRECT(\"'\"&F9805&\"'!\"&G9805))","v":""},{"$f":"IF(ISBLANK(INDIRECT(\"'\"&F9805&\"'!\"&H9805)),\"\",IFERROR(VLOOKUP(TEXT(INDIRECT(\"'\"&F9805&\"'!\"&H9805),\"0\"),Notes!$B$5:$C$100,2,FALSE),\"\"))","v":""},"2c","$U$60","$V$60"]
[38713,{"$f":"Menu!$F$29","v":"X"},{"$f":"Menu!$J$29","v":2020},{"$f":"IF(ISBLANK(INDIRECT(\"'\"&F9806&\"'!\"&G9806)),\"\",INDIRECT(\"'\"&F9806&\"'!\"&G9806))","v":""},{"$f":"IF(ISBLANK(INDIRECT(\"'\"&F9806&\"'!\"&H9806)),\"\",IFERROR(VLOOKUP(TEXT(INDIRECT(\"'\"&F9806&\"'!\"&H9806),\"0\"),Notes!$B$5:$C$100,2,FALSE),\"\"))","v":""},"2c","$S$60","$T$60"]
[38714,{"$f":"Menu!$F$29","v":"X"},{"$f":"Menu!$J$29","v":2020},{"$f":"IF(ISBLANK(INDIRECT(\"'\"&F9807&\"'!\"&G9807)),\"\",INDIRECT(\"'\"&F9807&\"'!\"&G9807))","v":""},{"$f":"IF(ISBLANK(INDIRECT(\"'\"&F9807&\"'!\"&H9807)),\"\",IFERROR(VLOOKUP(TEXT(INDIRECT(\"'\"&F9807&\"'!\"&H9807),\"0\"),Notes!$B$5:$C$100,2,FALSE),\"\"))","v":""},"2c","$W$60","$X$60"]
[38715,{"$f":"Menu!$F$29","v":"X"},{"$f":"Menu!$J$29","v":2020},{"$f":"IF(ISBLANK(INDIRECT(\"'\"&F9808&\"'!\"&G9808)),\"\",INDIRECT(\"'\"&F9808&\"'!\"&G9808))","v":""},{"$f":"IF(ISBLANK(INDIRECT(\"'\"&F9808&\"'!\"&H9808)),\"\",IFERROR(VLOOKUP(TEXT(INDIRECT(\"'\"&F9808&\"'!\"&H9808),\"0\"),Notes!$B$5:$C$100,2,FALSE),\"\"))","v":""},"2c","$AA$60","$AB$60"]
[38716,{"$f":"Menu!$F$29","v":"X"},{"$f":"Menu!$J$29","v":2020},{"$f":"IF(ISBLANK(INDIRECT(\"'\"&F9809&\"'!\"&G9809)),\"\",INDIRECT(\"'\"&F9809&\"'!\"&G9809))","v":""},{"$f":"IF(ISBLANK(INDIRECT(\"'\"&F9809&\"'!\"&H9809)),\"\",IFERROR(VLOOKUP(TEXT(INDIRECT(\"'\"&F9809&\"'!\"&H9809),\"0\"),Notes!$B$5:$C$100,2,FALSE),\"\"))","v":""},"2c","$Y$60","$Z$60"]
[38723,{"$f":"Menu!$F$29","v":"X"},{"$f":"Menu!$J$29","v":2020},{"$f":"IF(ISBLANK(INDIRECT(\"'\"&F9810&\"'!\"&G9810)),\"\",INDIRECT(\"'\"&F9810&\"'!\"&G9810))","v":""},{"$f":"IF(ISBLANK(INDIRECT(\"'\"&F9810&\"'!\"&H9810)),\"\",IFERROR(VLOOKUP(TEXT(INDIRECT(\"'\"&F9810&\"'!\"&H9810),\"0\"),Notes!$B$5:$C$100,2,FALSE),\"\"))","v":""},"2e","$BG$61","$BH$61"]
[38724,{"$f":"Menu!$F$29","v":"X"},{"$f":"Menu!$J$29","v":2020},{"$f":"IF(ISBLANK(INDIRECT(\"'\"&F9811&\"'!\"&G9811)),\"\",INDIRECT(\"'\"&F9811&\"'!\"&G9811))","v":""},{"$f":"IF(ISBLANK(INDIRECT(\"'\"&F9811&\"'!\"&H9811)),\"\",IFERROR(VLOOKUP(TEXT(INDIRECT(\"'\"&F9811&\"'!\"&H9811),\"0\"),Notes!$B$5:$C$100,2,FALSE),\"\"))","v":""},"2e","$BK$61","$BL$61"]
[38725,{"$f":"Menu!$F$29","v":"X"},{"$f":"Menu!$J$29","v":2020},{"$f":"IF(ISBLANK(INDIRECT(\"'\"&F9812&\"'!\"&G9812)),\"\",INDIRECT(\"'\"&F9812&\"'!\"&G9812))","v":""},{"$f":"IF(ISBLANK(INDIRECT(\"'\"&F9812&\"'!\"&H9812)),\"\",IFERROR(VLOOKUP(TEXT(INDIRECT(\"'\"&F9812&\"'!\"&H9812),\"0\"),Notes!$B$5:$C$100,2,FALSE),\"\"))","v":""},"2e","$BI$61","$BJ$61"]
[38726,{"$f":"Menu!$F$29","v":"X"},{"$f":"Menu!$J$29","v":2020},{"$f":"IF(ISBLANK(INDIRECT(\"'\"&F9813&\"'!\"&G9813)),\"\",INDIRECT(\"'\"&F9813&\"'!\"&G9813))","v":""},{"$f":"IF(ISBLANK(INDIRECT(\"'\"&F9813&\"'!\"&H9813)),\"\",IFERROR(VLOOKUP(TEXT(INDIRECT(\"'\"&F9813&\"'!\"&H9813),\"0\"),Notes!$B$5:$C$100,2,FALSE),\"\"))","v":""},"2e","$E$61","$F$61"]
[38727,{"$f":"Menu!$F$29","v":"X"},{"$f":"Menu!$J$29","v":2020},{"$f":"IF(ISBLANK(INDIRECT(\"'\"&F9814&\"'!\"&G9814)),\"\",INDIRECT(\"'\"&F9814&\"'!\"&G9814))","v":""},{"$f":"IF(ISBLANK(INDIRECT(\"'\"&F9814&\"'!\"&H9814)),\"\",IFERROR(VLOOKUP(TEXT(INDIRECT(\"'\"&F9814&\"'!\"&H9814),\"0\"),Notes!$B$5:$C$100,2,FALSE),\"\"))","v":""},"2e","$I$61","$J$61"]
[38728,{"$f":"Menu!$F$29","v":"X"},{"$f":"Menu!$J$29","v":2020},{"$f":"IF(ISBLANK(INDIRECT(\"'\"&F9815&\"'!\"&G9815)),\"\",INDIRECT(\"'\"&F9815&\"'!\"&G9815))","v":""},{"$f":"IF(ISBLANK(INDIRECT(\"'\"&F9815&\"'!\"&H9815)),\"\",IFERROR(VLOOKUP(TEXT(INDIRECT(\"'\"&F9815&\"'!\"&H9815),\"0\"),Notes!$B$5:$C$100,2,FALSE),\"\"))","v":""},"2e","$G$61","$H$61"]
[38729,{"$f":"Menu!$F$29","v":"X"},{"$f":"Menu!$J$29","v":2020},{"$f":"IF(ISBLANK(INDIRECT(\"'\"&F9816&\"'!\"&G9816)),\"\",INDIRECT(\"'\"&F9816&\"'!\"&G9816))","v":""},{"$f":"IF(ISBLANK(INDIRECT(\"'\"&F9816&\"'!\"&H9816)),\"\",IFERROR(VLOOKUP(TEXT(INDIRECT(\"'\"&F9816&\"'!\"&H9816),\"0\"),Notes!$B$5:$C$100,2,FALSE),\"\"))","v":""},"2e","$K$61","$L$61"]
[38730,{"$f":"Menu!$F$29","v":"X"},{"$f":"Menu!$J$29","v":2020},{"$f":"IF(ISBLANK(INDIRECT(\"'\"&F9817&\"'!\"&G9817)),\"\",INDIRECT(\"'\"&F9817&\"'!\"&G9817))","v":""},{"$f":"IF(ISBLANK(INDIRECT(\"'\"&F9817&\"'!\"&H9817)),\"\",IFERROR(VLOOKUP(TEXT(INDIRECT(\"'\"&F9817&\"'!\"&H9817),\"0\"),Notes!$B$5:$C$100,2,FALSE),\"\"))","v":""},"2e","$O$61","$P$61"]
[38731,{"$f":"Menu!$F$29","v":"X"},{"$f":"Menu!$J$29","v":2020},{"$f":"IF(ISBLANK(INDIRECT(\"'\"&F9818&\"'!\"&G9818)),\"\",INDIRECT(\"'\"&F9818&\"'!\"&G9818))","v":""},{"$f":"IF(ISBLANK(INDIRECT(\"'\"&F9818&\"'!\"&H9818)),\"\",IFERROR(VLOOKUP(TEXT(INDIRECT(\"'\"&F9818&\"'!\"&H9818),\"0\"),Notes!$B$5:$C$100,2,FALSE),\"\"))","v":""},"2e","$M$61","$N$61"]
[38732,{"$f":"Menu!$F$29","v":"X"},{"$f":"Menu!$J$29","v":2020},{"$f":"IF(ISBLANK(INDIRECT(\"'\"&F9819&\"'!\"&G9819)),\"\",INDIRECT(\"'\"&F9819&\"'!\"&G9819))","v":""},{"$f":"IF(ISBLANK(INDIRECT(\"'\"&F9819&\"'!\"&H9819)),\"\",IFERROR(VLOOKUP(TEXT(INDIRECT(\"'\"&F9819&\"'!\"&H9819),\"0\"),Notes!$B$5:$C$100,2,FALSE),\"\"))","v":""},"2e","$Q$61","$R$61"]
[38733,{"$f":"Menu!$F$29","v":"X"},{"$f":"Menu!$J$29","v":2020},{"$f":"IF(ISBLANK(INDIRECT(\"'\"&F9820&\"'!\"&G9820)),\"\",INDIRECT(\"'\"&F9820&\"'!\"&G9820))","v":""},{"$f":"IF(ISBLANK(INDIRECT(\"'\"&F9820&\"'!\"&H9820)),\"\",IFERROR(VLOOKUP(TEXT(INDIRECT(\"'\"&F9820&\"'!\"&H9820),\"0\"),Notes!$B$5:$C$100,2,FALSE),\"\"))","v":""},"2e","$U$61","$V$61"]
[38734,{"$f":"Menu!$F$29","v":"X"},{"$f":"Menu!$J$29","v":2020},{"$f":"IF(ISBLANK(INDIRECT(\"'\"&F9821&\"'!\"&G9821)),\"\",INDIRECT(\"'\"&F9821&\"'!\"&G9821))","v":""},{"$f":"IF(ISBLANK(INDIRECT(\"'\"&F9821&\"'!\"&H9821)),\"\",IFERROR(VLOOKUP(TEXT(INDIRECT(\"'\"&F9821&\"'!\"&H9821),\"0\"),Notes!$B$5:$C$100,2,FALSE),\"\"))","v":""},"2e","$S$61","$T$61"]
[38735,{"$f":"Menu!$F$29","v":"X"},{"$f":"Menu!$J$29","v":2020},{"$f":"IF(ISBLANK(INDIRECT(\"'\"&F9822&\"'!\"&G9822)),\"\",INDIRECT(\"'\"&F9822&\"'!\"&G9822))","v":""},{"$f":"IF(ISBLANK(INDIRECT(\"'\"&F9822&\"'!\"&H9822)),\"\",IFERROR(VLOOKUP(TEXT(INDIRECT(\"'\"&F9822&\"'!\"&H9822),\"0\"),Notes!$B$5:$C$100,2,FALSE),\"\"))","v":""},"2e","$W$61","$X$61"]
[38736,{"$f":"Menu!$F$29","v":"X"},{"$f":"Menu!$J$29","v":2020},{"$f":"IF(ISBLANK(INDIRECT(\"'\"&F9823&\"'!\"&G9823)),\"\",INDIRECT(\"'\"&F9823&\"'!\"&G9823))","v":""},{"$f":"IF(ISBLANK(INDIRECT(\"'\"&F9823&\"'!\"&H9823)),\"\",IFERROR(VLOOKUP(TEXT(INDIRECT(\"'\"&F9823&\"'!\"&H9823),\"0\"),Notes!$B$5:$C$100,2,FALSE),\"\"))","v":""},"2e","$AA$61","$AB$61"]
[38737,{"$f":"Menu!$F$29","v":"X"},{"$f":"Menu!$J$29","v":2020},{"$f":"IF(ISBLANK(INDIRECT(\"'\"&F9824&\"'!\"&G9824)),\"\",INDIRECT(\"'\"&F9824&\"'!\"&G9824))","v":""},{"$f":"IF(ISBLANK(INDIRECT(\"'\"&F9824&\"'!\"&H9824)),\"\",IFERROR(VLOOKUP(TEXT(INDIRECT(\"'\"&F9824&\"'!\"&H9824),\"0\"),Notes!$B$5:$C$100,2,FALSE),\"\"))","v":""},"2e","$Y$61","$Z$61"]
[38738,{"$f":"Menu!$F$29","v":"X"},{"$f":"Menu!$J$29","v":2020},{"$f":"IF(ISBLANK(INDIRECT(\"'\"&F9825&\"'!\"&G9825)),\"\",INDIRECT(\"'\"&F9825&\"'!\"&G9825))","v":""},{"$f":"IF(ISBLANK(INDIRECT(\"'\"&F9825&\"'!\"&H9825)),\"\",IFERROR(VLOOKUP(TEXT(INDIRECT(\"'\"&F9825&\"'!\"&H9825),\"0\"),Notes!$B$5:$C$100,2,FALSE),\"\"))","v":""},"2e","$AC$61","$AD$61"]
[38739,{"$f":"Menu!$F$29","v":"X"},{"$f":"Menu!$J$29","v":2020},{"$f":"IF(ISBLANK(INDIRECT(\"'\"&F9826&\"'!\"&G9826)),\"\",INDIRECT(\"'\"&F9826&\"'!\"&G9826))","v":""},{"$f":"IF(ISBLANK(INDIRECT(\"'\"&F9826&\"'!\"&H9826)),\"\",IFERROR(VLOOKUP(TEXT(INDIRECT(\"'\"&F9826&\"'!\"&H9826),\"0\"),Notes!$B$5:$C$100,2,FALSE),\"\"))","v":""},"2e","$AG$61","$AH$61"]
[38740,{"$f":"Menu!$F$29","v":"X"},{"$f":"Menu!$J$29","v":2020},{"$f":"IF(ISBLANK(INDIRECT(\"'\"&F9827&\"'!\"&G9827)),\"\",INDIRECT(\"'\"&F9827&\"'!\"&G9827))","v":""},{"$f":"IF(ISBLANK(INDIRECT(\"'\"&F9827&\"'!\"&H9827)),\"\",IFERROR(VLOOKUP(TEXT(INDIRECT(\"'\"&F9827&\"'!\"&H9827),\"0\"),Notes!$B$5:$C$100,2,FALSE),\"\"))","v":""},"2e","$AE$61","$AF$61"]
[38741,{"$f":"Menu!$F$29","v":"X"},{"$f":"Menu!$J$29","v":2020},{"$f":"IF(ISBLANK(INDIRECT(\"'\"&F9828&\"'!\"&G9828)),\"\",INDIRECT(\"'\"&F9828&\"'!\"&G9828))","v":""},{"$f":"IF(ISBLANK(INDIRECT(\"'\"&F9828&\"'!\"&H9828)),\"\",IFERROR(VLOOKUP(TEXT(INDIRECT(\"'\"&F9828&\"'!\"&H9828),\"0\"),Notes!$B$5:$C$100,2,FALSE),\"\"))","v":""},"2e","$AI$61","$AJ$61"]
[38742,{"$f":"Menu!$F$29","v":"X"},{"$f":"Menu!$J$29","v":2020},{"$f":"IF(ISBLANK(INDIRECT(\"'\"&F9829&\"'!\"&G9829)),\"\",INDIRECT(\"'\"&F9829&\"'!\"&G9829))","v":""},{"$f":"IF(ISBLANK(INDIRECT(\"'\"&F9829&\"'!\"&H9829)),\"\",IFERROR(VLOOKUP(TEXT(INDIRECT(\"'\"&F9829&\"'!\"&H9829),\"0\"),Notes!$B$5:$C$100,2,FALSE),\"\"))","v":""},"2e","$AM$61","$AN$61"]
[38743,{"$f":"Menu!$F$29","v":"X"},{"$f":"Menu!$J$29","v":2020},{"$f":"IF(ISBLANK(INDIRECT(\"'\"&F9830&\"'!\"&G9830)),\"\",INDIRECT(\"'\"&F9830&\"'!\"&G9830))","v":""},{"$f":"IF(ISBLANK(INDIRECT(\"'\"&F9830&\"'!\"&H9830)),\"\",IFERROR(VLOOKUP(TEXT(INDIRECT(\"'\"&F9830&\"'!\"&H9830),\"0\"),Notes!$B$5:$C$100,2,FALSE),\"\"))","v":""},"2e","$AK$61","$AL$61"]
[38744,{"$f":"Menu!$F$29","v":"X"},{"$f":"Menu!$J$29","v":2020},{"$f":"IF(ISBLANK(INDIRECT(\"'\"&F9831&\"'!\"&G9831)),\"\",INDIRECT(\"'\"&F9831&\"'!\"&G9831))","v":""},{"$f":"IF(ISBLANK(INDIRECT(\"'\"&F9831&\"'!\"&H9831)),\"\",IFERROR(VLOOKUP(TEXT(INDIRECT(\"'\"&F9831&\"'!\"&H9831),\"0\"),Notes!$B$5:$C$100,2,FALSE),\"\"))","v":""},"2e","$AO$61","$AP$61"]
[38745,{"$f":"Menu!$F$29","v":"X"},{"$f":"Menu!$J$29","v":2020},{"$f":"IF(ISBLANK(INDIRECT(\"'\"&F9832&\"'!\"&G9832)),\"\",INDIRECT(\"'\"&F9832&\"'!\"&G9832))","v":""},{"$f":"IF(ISBLANK(INDIRECT(\"'\"&F9832&\"'!\"&H9832)),\"\",IFERROR(VLOOKUP(TEXT(INDIRECT(\"'\"&F9832&\"'!\"&H9832),\"0\"),Notes!$B$5:$C$100,2,FALSE),\"\"))","v":""},"2e","$AS$61","$AT$61"]
[38746,{"$f":"Menu!$F$29","v":"X"},{"$f":"Menu!$J$29","v":2020},{"$f":"IF(ISBLANK(INDIRECT(\"'\"&F9833&\"'!\"&G9833)),\"\",INDIRECT(\"'\"&F9833&\"'!\"&G9833))","v":""},{"$f":"IF(ISBLANK(INDIRECT(\"'\"&F9833&\"'!\"&H9833)),\"\",IFERROR(VLOOKUP(TEXT(INDIRECT(\"'\"&F9833&\"'!\"&H9833),\"0\"),Notes!$B$5:$C$100,2,FALSE),\"\"))","v":""},"2e","$AQ$61","$AR$61"]
[38747,{"$f":"Menu!$F$29","v":"X"},{"$f":"Menu!$J$29","v":2020},{"$f":"IF(ISBLANK(INDIRECT(\"'\"&F9834&\"'!\"&G9834)),\"\",INDIRECT(\"'\"&F9834&\"'!\"&G9834))","v":""},{"$f":"IF(ISBLANK(INDIRECT(\"'\"&F9834&\"'!\"&H9834)),\"\",IFERROR(VLOOKUP(TEXT(INDIRECT(\"'\"&F9834&\"'!\"&H9834),\"0\"),Notes!$B$5:$C$100,2,FALSE),\"\"))","v":""},"2e","$AU$61","$AV$61"]
[38748,{"$f":"Menu!$F$29","v":"X"},{"$f":"Menu!$J$29","v":2020},{"$f":"IF(ISBLANK(INDIRECT(\"'\"&F9835&\"'!\"&G9835)),\"\",INDIRECT(\"'\"&F9835&\"'!\"&G9835))","v":""},{"$f":"IF(ISBLANK(INDIRECT(\"'\"&F9835&\"'!\"&H9835)),\"\",IFERROR(VLOOKUP(TEXT(INDIRECT(\"'\"&F9835&\"'!\"&H9835),\"0\"),Notes!$B$5:$C$100,2,FALSE),\"\"))","v":""},"2e","$AY$61","$AZ$61"]
[38749,{"$f":"Menu!$F$29","v":"X"},{"$f":"Menu!$J$29","v":2020},{"$f":"IF(ISBLANK(INDIRECT(\"'\"&F9836&\"'!\"&G9836)),\"\",INDIRECT(\"'\"&F9836&\"'!\"&G9836))","v":""},{"$f":"IF(ISBLANK(INDIRECT(\"'\"&F9836&\"'!\"&H9836)),\"\",IFERROR(VLOOKUP(TEXT(INDIRECT(\"'\"&F9836&\"'!\"&H9836),\"0\"),Notes!$B$5:$C$100,2,FALSE),\"\"))","v":""},"2e","$AW$61","$AX$61"]
[38750,{"$f":"Menu!$F$29","v":"X"},{"$f":"Menu!$J$29","v":2020},{"$f":"IF(ISBLANK(INDIRECT(\"'\"&F9837&\"'!\"&G9837)),\"\",INDIRECT(\"'\"&F9837&\"'!\"&G9837))","v":""},{"$f":"IF(ISBLANK(INDIRECT(\"'\"&F9837&\"'!\"&H9837)),\"\",IFERROR(VLOOKUP(TEXT(INDIRECT(\"'\"&F9837&\"'!\"&H9837),\"0\"),Notes!$B$5:$C$100,2,FALSE),\"\"))","v":""},"2e","$BA$61","$BB$61"]
[38751,{"$f":"Menu!$F$29","v":"X"},{"$f":"Menu!$J$29","v":2020},{"$f":"IF(ISBLANK(INDIRECT(\"'\"&F9838&\"'!\"&G9838)),\"\",INDIRECT(\"'\"&F9838&\"'!\"&G9838))","v":""},{"$f":"IF(ISBLANK(INDIRECT(\"'\"&F9838&\"'!\"&H9838)),\"\",IFERROR(VLOOKUP(TEXT(INDIRECT(\"'\"&F9838&\"'!\"&H9838),\"0\"),Notes!$B$5:$C$100,2,FALSE),\"\"))","v":""},"2e","$BE$61","$BF$61"]
[38752,{"$f":"Menu!$F$29","v":"X"},{"$f":"Menu!$J$29","v":2020},{"$f":"IF(ISBLANK(INDIRECT(\"'\"&F9839&\"'!\"&G9839)),\"\",INDIRECT(\"'\"&F9839&\"'!\"&G9839))","v":""},{"$f":"IF(ISBLANK(INDIRECT(\"'\"&F9839&\"'!\"&H9839)),\"\",IFERROR(VLOOKUP(TEXT(INDIRECT(\"'\"&F9839&\"'!\"&H9839),\"0\"),Notes!$B$5:$C$100,2,FALSE),\"\"))","v":""},"2e","$BC$61","$BD$61"]
[38753,{"$f":"Menu!$F$29","v":"X"},{"$f":"Menu!$J$29","v":2020},{"$f":"IF(ISBLANK(INDIRECT(\"'\"&F9840&\"'!\"&G9840)),\"\",INDIRECT(\"'\"&F9840&\"'!\"&G9840))","v":""},{"$f":"IF(ISBLANK(INDIRECT(\"'\"&F9840&\"'!\"&H9840)),\"\",IFERROR(VLOOKUP(TEXT(INDIRECT(\"'\"&F9840&\"'!\"&H9840),\"0\"),Notes!$B$5:$C$100,2,FALSE),\"\"))","v":""},"2b","$E$60","$F$60"]
[38754,{"$f":"Menu!$F$29","v":"X"},{"$f":"Menu!$J$29","v":2020},{"$f":"IF(ISBLANK(INDIRECT(\"'\"&F9841&\"'!\"&G9841)),\"\",INDIRECT(\"'\"&F9841&\"'!\"&G9841))","v":""},{"$f":"IF(ISBLANK(INDIRECT(\"'\"&F9841&\"'!\"&H9841)),\"\",IFERROR(VLOOKUP(TEXT(INDIRECT(\"'\"&F9841&\"'!\"&H9841),\"0\"),Notes!$B$5:$C$100,2,FALSE),\"\"))","v":""},"2b","$I$60","$J$60"]
[38755,{"$f":"Menu!$F$29","v":"X"},{"$f":"Menu!$J$29","v":2020},{"$f":"IF(ISBLANK(INDIRECT(\"'\"&F9842&\"'!\"&G9842)),\"\",INDIRECT(\"'\"&F9842&\"'!\"&G9842))","v":""},{"$f":"IF(ISBLANK(INDIRECT(\"'\"&F9842&\"'!\"&H9842)),\"\",IFERROR(VLOOKUP(TEXT(INDIRECT(\"'\"&F9842&\"'!\"&H9842),\"0\"),Notes!$B$5:$C$100,2,FALSE),\"\"))","v":""},"2b","$G$60","$H$60"]
[38756,{"$f":"Menu!$F$29","v":"X"},{"$f":"Menu!$J$29","v":2020},{"$f":"IF(ISBLANK(INDIRECT(\"'\"&F9843&\"'!\"&G9843)),\"\",INDIRECT(\"'\"&F9843&\"'!\"&G9843))","v":""},{"$f":"IF(ISBLANK(INDIRECT(\"'\"&F9843&\"'!\"&H9843)),\"\",IFERROR(VLOOKUP(TEXT(INDIRECT(\"'\"&F9843&\"'!\"&H9843),\"0\"),Notes!$B$5:$C$100,2,FALSE),\"\"))","v":""},"2a","$G$60","$H$60"]
[38757,{"$f":"Menu!$F$29","v":"X"},{"$f":"Menu!$J$29","v":2020},{"$f":"IF(ISBLANK(INDIRECT(\"'\"&F9844&\"'!\"&G9844)),\"\",INDIRECT(\"'\"&F9844&\"'!\"&G9844))","v":""},{"$f":"IF(ISBLANK(INDIRECT(\"'\"&F9844&\"'!\"&H9844)),\"\",IFERROR(VLOOKUP(TEXT(INDIRECT(\"'\"&F9844&\"'!\"&H9844),\"0\"),Notes!$B$5:$C$100,2,FALSE),\"\"))","v":""},"2b","$W$60","$X$60"]
[38758,{"$f":"Menu!$F$29","v":"X"},{"$f":"Menu!$J$29","v":2020},{"$f":"IF(ISBLANK(INDIRECT(\"'\"&F9845&\"'!\"&G9845)),\"\",INDIRECT(\"'\"&F9845&\"'!\"&G9845))","v":""},{"$f":"IF(ISBLANK(INDIRECT(\"'\"&F9845&\"'!\"&H9845)),\"\",IFERROR(VLOOKUP(TEXT(INDIRECT(\"'\"&F9845&\"'!\"&H9845),\"0\"),Notes!$B$5:$C$100,2,FALSE),\"\"))","v":""},"2b","$AA$60","$AB$60"]
[38759,{"$f":"Menu!$F$29","v":"X"},{"$f":"Menu!$J$29","v":2020},{"$f":"IF(ISBLANK(INDIRECT(\"'\"&F9846&\"'!\"&G9846)),\"\",INDIRECT(\"'\"&F9846&\"'!\"&G9846))","v":""},{"$f":"IF(ISBLANK(INDIRECT(\"'\"&F9846&\"'!\"&H9846)),\"\",IFERROR(VLOOKUP(TEXT(INDIRECT(\"'\"&F9846&\"'!\"&H9846),\"0\"),Notes!$B$5:$C$100,2,FALSE),\"\"))","v":""},"2b","$Y$60","$Z$60"]
[38760,{"$f":"Menu!$F$29","v":"X"},{"$f":"Menu!$J$29","v":2020},{"$f":"IF(ISBLANK(INDIRECT(\"'\"&F9847&\"'!\"&G9847)),\"\",INDIRECT(\"'\"&F9847&\"'!\"&G9847))","v":""},{"$f":"IF(ISBLANK(INDIRECT(\"'\"&F9847&\"'!\"&H9847)),\"\",IFERROR(VLOOKUP(TEXT(INDIRECT(\"'\"&F9847&\"'!\"&H9847),\"0\"),Notes!$B$5:$C$100,2,FALSE),\"\"))","v":""},"2d","$AC$60","$AD$60"]
[38761,{"$f":"Menu!$F$29","v":"X"},{"$f":"Menu!$J$29","v":2020},{"$f":"IF(ISBLANK(INDIRECT(\"'\"&F9848&\"'!\"&G9848)),\"\",INDIRECT(\"'\"&F9848&\"'!\"&G9848))","v":""},{"$f":"IF(ISBLANK(INDIRECT(\"'\"&F9848&\"'!\"&H9848)),\"\",IFERROR(VLOOKUP(TEXT(INDIRECT(\"'\"&F9848&\"'!\"&H9848),\"0\"),Notes!$B$5:$C$100,2,FALSE),\"\"))","v":""},"2d","$AG$60","$AH$60"]
[38762,{"$f":"Menu!$F$29","v":"X"},{"$f":"Menu!$J$29","v":2020},{"$f":"IF(ISBLANK(INDIRECT(\"'\"&F9849&\"'!\"&G9849)),\"\",INDIRECT(\"'\"&F9849&\"'!\"&G9849))","v":""},{"$f":"IF(ISBLANK(INDIRECT(\"'\"&F9849&\"'!\"&H9849)),\"\",IFERROR(VLOOKUP(TEXT(INDIRECT(\"'\"&F9849&\"'!\"&H9849),\"0\"),Notes!$B$5:$C$100,2,FALSE),\"\"))","v":""},"2d","$AE$60","$AF$60"]
[38763,{"$f":"Menu!$F$29","v":"X"},{"$f":"Menu!$J$29","v":2020},{"$f":"IF(ISBLANK(INDIRECT(\"'\"&F9850&\"'!\"&G9850)),\"\",INDIRECT(\"'\"&F9850&\"'!\"&G9850))","v":""},{"$f":"IF(ISBLANK(INDIRECT(\"'\"&F9850&\"'!\"&H9850)),\"\",IFERROR(VLOOKUP(TEXT(INDIRECT(\"'\"&F9850&\"'!\"&H9850),\"0\"),Notes!$B$5:$C$100,2,FALSE),\"\"))","v":""},"2d","$W$60","$X$60"]
[38764,{"$f":"Menu!$F$29","v":"X"},{"$f":"Menu!$J$29","v":2020},{"$f":"IF(ISBLANK(INDIRECT(\"'\"&F9851&\"'!\"&G9851)),\"\",INDIRECT(\"'\"&F9851&\"'!\"&G9851))","v":""},{"$f":"IF(ISBLANK(INDIRECT(\"'\"&F9851&\"'!\"&H9851)),\"\",IFERROR(VLOOKUP(TEXT(INDIRECT(\"'\"&F9851&\"'!\"&H9851),\"0\"),Notes!$B$5:$C$100,2,FALSE),\"\"))","v":""},"2d","$AA$60","$AB$60"]
[38765,{"$f":"Menu!$F$29","v":"X"},{"$f":"Menu!$J$29","v":2020},{"$f":"IF(ISBLANK(INDIRECT(\"'\"&F9852&\"'!\"&G9852)),\"\",INDIRECT(\"'\"&F9852&\"'!\"&G9852))","v":""},{"$f":"IF(ISBLANK(INDIRECT(\"'\"&F9852&\"'!\"&H9852)),\"\",IFERROR(VLOOKUP(TEXT(INDIRECT(\"'\"&F9852&\"'!\"&H9852),\"0\"),Notes!$B$5:$C$100,2,FALSE),\"\"))","v":""},"2d","$Y$60","$Z$60"]
[38766,{"$f":"Menu!$F$29","v":"X"},{"$f":"Menu!$J$29","v":2020},{"$f":"IF(ISBLANK(INDIRECT(\"'\"&F9853&\"'!\"&G9853)),\"\",INDIRECT(\"'\"&F9853&\"'!\"&G9853))","v":""},{"$f":"IF(ISBLANK(INDIRECT(\"'\"&F9853&\"'!\"&H9853)),\"\",IFERROR(VLOOKUP(TEXT(INDIRECT(\"'\"&F9853&\"'!\"&H9853),\"0\"),Notes!$B$5:$C$100,2,FALSE),\"\"))","v":""},"2d","$E$60","$F$60"]
[38767,{"$f":"Menu!$F$29","v":"X"},{"$f":"Menu!$J$29","v":2020},{"$f":"IF(ISBLANK(INDIRECT(\"'\"&F9854&\"'!\"&G9854)),\"\",INDIRECT(\"'\"&F9854&\"'!\"&G9854))","v":""},{"$f":"IF(ISBLANK(INDIRECT(\"'\"&F9854&\"'!\"&H9854)),\"\",IFERROR(VLOOKUP(TEXT(INDIRECT(\"'\"&F9854&\"'!\"&H9854),\"0\"),Notes!$B$5:$C$100,2,FALSE),\"\"))","v":""},"2d","$I$60","$J$60"]
[38768,{"$f":"Menu!$F$29","v":"X"},{"$f":"Menu!$J$29","v":2020},{"$f":"IF(ISBLANK(INDIRECT(\"'\"&F9855&\"'!\"&G9855)),\"\",INDIRECT(\"'\"&F9855&\"'!\"&G9855))","v":""},{"$f":"IF(ISBLANK(INDIRECT(\"'\"&F9855&\"'!\"&H9855)),\"\",IFERROR(VLOOKUP(TEXT(INDIRECT(\"'\"&F9855&\"'!\"&H9855),\"0\"),Notes!$B$5:$C$100,2,FALSE),\"\"))","v":""},"2d","$G$60","$H$60"]
[38769,{"$f":"Menu!$F$29","v":"X"},{"$f":"Menu!$J$29","v":2020},{"$f":"IF(ISBLANK(INDIRECT(\"'\"&F9856&\"'!\"&G9856)),\"\",INDIRECT(\"'\"&F9856&\"'!\"&G9856))","v":""},{"$f":"IF(ISBLANK(INDIRECT(\"'\"&F9856&\"'!\"&H9856)),\"\",IFERROR(VLOOKUP(TEXT(INDIRECT(\"'\"&F9856&\"'!\"&H9856),\"0\"),Notes!$B$5:$C$100,2,FALSE),\"\"))","v":""},"2a","$Q$60","$R$60"]
[38770,{"$f":"Menu!$F$29","v":"X"},{"$f":"Menu!$J$29","v":2020},{"$f":"IF(ISBLANK(INDIRECT(\"'\"&F9857&\"'!\"&G9857)),\"\",INDIRECT(\"'\"&F9857&\"'!\"&G9857))","v":""},{"$f":"IF(ISBLANK(INDIRECT(\"'\"&F9857&\"'!\"&H9857)),\"\",IFERROR(VLOOKUP(TEXT(INDIRECT(\"'\"&F9857&\"'!\"&H9857),\"0\"),Notes!$B$5:$C$100,2,FALSE),\"\"))","v":""},"2a","$U$60","$V$60"]
[38771,{"$f":"Menu!$F$29","v":"X"},{"$f":"Menu!$J$29","v":2020},{"$f":"IF(ISBLANK(INDIRECT(\"'\"&F9858&\"'!\"&G9858)),\"\",INDIRECT(\"'\"&F9858&\"'!\"&G9858))","v":""},{"$f":"IF(ISBLANK(INDIRECT(\"'\"&F9858&\"'!\"&H9858)),\"\",IFERROR(VLOOKUP(TEXT(INDIRECT(\"'\"&F9858&\"'!\"&H9858),\"0\"),Notes!$B$5:$C$100,2,FALSE),\"\"))","v":""},"2a","$S$60",{"$f":"IF(LEN(TRIM(MID(G9858,4,10)))-LEN(SUBSTITUTE(TRIM(MID(G9858,4,10)),\"$\",\"\"))=0,\"$\"&CHAR(CODE(MID(G9858,2,1))+1)&\"$\"&TRIM(MID(G9858,4,10)),\"$\"&MID(G9858,2,1)&CHAR(CODE(MID(G9858,3,1))+1)&\"$\"&TRIM(MID(G9858,5,11)))","v":"$T$60"}]
[38772,{"$f":"Menu!$F$29","v":"X"},{"$f":"Menu!$J$29","v":2020},{"$f":"IF(ISBLANK(INDIRECT(\"'\"&F9859&\"'!\"&G9859)),\"\",INDIRECT(\"'\"&F9859&\"'!\"&G9859))","v":""},{"$f":"IF(ISBLANK(INDIRECT(\"'\"&F9859&\"'!\"&H9859)),\"\",IFERROR(VLOOKUP(TEXT(INDIRECT(\"'\"&F9859&\"'!\"&H9859),\"0\"),Notes!$B$5:$C$100,2,FALSE),\"\"))","v":""},"2d","$K$60","$L$60"]
[38773,{"$f":"Menu!$F$29","v":"X"},{"$f":"Menu!$J$29","v":2020},{"$f":"IF(ISBLANK(INDIRECT(\"'\"&F9860&\"'!\"&G9860)),\"\",INDIRECT(\"'\"&F9860&\"'!\"&G9860))","v":""},{"$f":"IF(ISBLANK(INDIRECT(\"'\"&F9860&\"'!\"&H9860)),\"\",IFERROR(VLOOKUP(TEXT(INDIRECT(\"'\"&F9860&\"'!\"&H9860),\"0\"),Notes!$B$5:$C$100,2,FALSE),\"\"))","v":""},"2d","$O$60","$P$60"]
[38774,{"$f":"Menu!$F$29","v":"X"},{"$f":"Menu!$J$29","v":2020},{"$f":"IF(ISBLANK(INDIRECT(\"'\"&F9861&\"'!\"&G9861)),\"\",INDIRECT(\"'\"&F9861&\"'!\"&G9861))","v":""},{"$f":"IF(ISBLANK(INDIRECT(\"'\"&F9861&\"'!\"&H9861)),\"\",IFERROR(VLOOKUP(TEXT(INDIRECT(\"'\"&F9861&\"'!\"&H9861),\"0\"),Notes!$B$5:$C$100,2,FALSE),\"\"))","v":""},"2d","$M$60","$N$60"]
[38775,{"$f":"Menu!$F$29","v":"X"},{"$f":"Menu!$J$29","v":2020},{"$f":"IF(ISBLANK(INDIRECT(\"'\"&F9862&\"'!\"&G9862)),\"\",INDIRECT(\"'\"&F9862&\"'!\"&G9862))","v":""},{"$f":"IF(ISBLANK(INDIRECT(\"'\"&F9862&\"'!\"&H9862)),\"\",IFERROR(VLOOKUP(TEXT(INDIRECT(\"'\"&F9862&\"'!\"&H9862),\"0\"),Notes!$B$5:$C$100,2,FALSE),\"\"))","v":""},"2d","$Q$60","$R$60"]
[38776,{"$f":"Menu!$F$29","v":"X"},{"$f":"Menu!$J$29","v":2020},{"$f":"IF(ISBLANK(INDIRECT(\"'\"&F9863&\"'!\"&G9863)),\"\",INDIRECT(\"'\"&F9863&\"'!\"&G9863))","v":""},{"$f":"IF(ISBLANK(INDIRECT(\"'\"&F9863&\"'!\"&H9863)),\"\",IFERROR(VLOOKUP(TEXT(INDIRECT(\"'\"&F9863&\"'!\"&H9863),\"0\"),Notes!$B$5:$C$100,2,FALSE),\"\"))","v":""},"2d","$U$60","$V$60"]
[38777,{"$f":"Menu!$F$29","v":"X"},{"$f":"Menu!$J$29","v":2020},{"$f":"IF(ISBLANK(INDIRECT(\"'\"&F9864&\"'!\"&G9864)),\"\",INDIRECT(\"'\"&F9864&\"'!\"&G9864))","v":""},{"$f":"IF(ISBLANK(INDIRECT(\"'\"&F9864&\"'!\"&H9864)),\"\",IFERROR(VLOOKUP(TEXT(INDIRECT(\"'\"&F9864&\"'!\"&H9864),\"0\"),Notes!$B$5:$C$100,2,FALSE),\"\"))","v":""},"2d","$S$60","$T$60"]
[38778,{"$f":"Menu!$F$29","v":"X"},{"$f":"Menu!$J$29","v":2020},{"$f":"IF(ISBLANK(INDIRECT(\"'\"&F9865&\"'!\"&G9865)),\"\",INDIRECT(\"'\"&F9865&\"'!\"&G9865))","v":""},{"$f":"IF(ISBLANK(INDIRECT(\"'\"&F9865&\"'!\"&H9865)),\"\",IFERROR(VLOOKUP(TEXT(INDIRECT(\"'\"&F9865&\"'!\"&H9865),\"0\"),Notes!$B$5:$C$100,2,FALSE),\"\"))","v":""},"2a","$K$60","$L$60"]
[38779,{"$f":"Menu!$F$29","v":"X"},{"$f":"Menu!$J$29","v":2020},{"$f":"IF(ISBLANK(INDIRECT(\"'\"&F9866&\"'!\"&G9866)),\"\",INDIRECT(\"'\"&F9866&\"'!\"&G9866))","v":""},{"$f":"IF(ISBLANK(INDIRECT(\"'\"&F9866&\"'!\"&H9866)),\"\",IFERROR(VLOOKUP(TEXT(INDIRECT(\"'\"&F9866&\"'!\"&H9866),\"0\"),Notes!$B$5:$C$100,2,FALSE),\"\"))","v":""},"2a","$O$60","$P$60"]
[38780,{"$f":"Menu!$F$29","v":"X"},{"$f":"Menu!$J$29","v":2020},{"$f":"IF(ISBLANK(INDIRECT(\"'\"&F9867&\"'!\"&G9867)),\"\",INDIRECT(\"'\"&F9867&\"'!\"&G9867))","v":""},{"$f":"IF(ISBLANK(INDIRECT(\"'\"&F9867&\"'!\"&H9867)),\"\",IFERROR(VLOOKUP(TEXT(INDIRECT(\"'\"&F9867&\"'!\"&H9867),\"0\"),Notes!$B$5:$C$100,2,FALSE),\"\"))","v":""},"2a","$M$60","$N$60"]
[38781,{"$f":"Menu!$F$29","v":"X"},{"$f":"Menu!$J$29","v":2020},{"$f":"IF(ISBLANK(INDIRECT(\"'\"&F9868&\"'!\"&G9868)),\"\",INDIRECT(\"'\"&F9868&\"'!\"&G9868))","v":""},{"$f":"IF(ISBLANK(INDIRECT(\"'\"&F9868&\"'!\"&H9868)),\"\",IFERROR(VLOOKUP(TEXT(INDIRECT(\"'\"&F9868&\"'!\"&H9868),\"0\"),Notes!$B$5:$C$100,2,FALSE),\"\"))","v":""},"2a","$E$60","$F$60"]
[38782,{"$f":"Menu!$F$29","v":"X"},{"$f":"Menu!$J$29","v":2020},{"$f":"IF(ISBLANK(INDIRECT(\"'\"&F9869&\"'!\"&G9869)),\"\",INDIRECT(\"'\"&F9869&\"'!\"&G9869))","v":""},{"$f":"IF(ISBLANK(INDIRECT(\"'\"&F9869&\"'!\"&H9869)),\"\",IFERROR(VLOOKUP(TEXT(INDIRECT(\"'\"&F9869&\"'!\"&H9869),\"0\"),Notes!$B$5:$C$100,2,FALSE),\"\"))","v":""},"2b","$K$62","$L$62"]
[38783,{"$f":"Menu!$F$29","v":"X"},{"$f":"Menu!$J$29","v":2020},{"$f":"IF(ISBLANK(INDIRECT(\"'\"&F9870&\"'!\"&G9870)),\"\",INDIRECT(\"'\"&F9870&\"'!\"&G9870))","v":""},{"$f":"IF(ISBLANK(INDIRECT(\"'\"&F9870&\"'!\"&H9870)),\"\",IFERROR(VLOOKUP(TEXT(INDIRECT(\"'\"&F9870&\"'!\"&H9870),\"0\"),Notes!$B$5:$C$100,2,FALSE),\"\"))","v":""},"2b","$O$62","$P$62"]
[38784,{"$f":"Menu!$F$29","v":"X"},{"$f":"Menu!$J$29","v":2020},{"$f":"IF(ISBLANK(INDIRECT(\"'\"&F9871&\"'!\"&G9871)),\"\",INDIRECT(\"'\"&F9871&\"'!\"&G9871))","v":""},{"$f":"IF(ISBLANK(INDIRECT(\"'\"&F9871&\"'!\"&H9871)),\"\",IFERROR(VLOOKUP(TEXT(INDIRECT(\"'\"&F9871&\"'!\"&H9871),\"0\"),Notes!$B$5:$C$100,2,FALSE),\"\"))","v":""},"2b","$M$62","$N$62"]
[38785,{"$f":"Menu!$F$29","v":"X"},{"$f":"Menu!$J$29","v":2020},{"$f":"IF(ISBLANK(INDIRECT(\"'\"&F9872&\"'!\"&G9872)),\"\",INDIRECT(\"'\"&F9872&\"'!\"&G9872))","v":""},{"$f":"IF(ISBLANK(INDIRECT(\"'\"&F9872&\"'!\"&H9872)),\"\",IFERROR(VLOOKUP(TEXT(INDIRECT(\"'\"&F9872&\"'!\"&H9872),\"0\"),Notes!$B$5:$C$100,2,FALSE),\"\"))","v":""},"2b","$Q$62","$R$62"]
[38786,{"$f":"Menu!$F$29","v":"X"},{"$f":"Menu!$J$29","v":2020},{"$f":"IF(ISBLANK(INDIRECT(\"'\"&F9873&\"'!\"&G9873)),\"\",INDIRECT(\"'\"&F9873&\"'!\"&G9873))","v":""},{"$f":"IF(ISBLANK(INDIRECT(\"'\"&F9873&\"'!\"&H9873)),\"\",IFERROR(VLOOKUP(TEXT(INDIRECT(\"'\"&F9873&\"'!\"&H9873),\"0\"),Notes!$B$5:$C$100,2,FALSE),\"\"))","v":""},"2b","$U$62","$V$62"]
[38787,{"$f":"Menu!$F$29","v":"X"},{"$f":"Menu!$J$29","v":2020},{"$f":"IF(ISBLANK(INDIRECT(\"'\"&F9874&\"'!\"&G9874)),\"\",INDIRECT(\"'\"&F9874&\"'!\"&G9874))","v":""},{"$f":"IF(ISBLANK(INDIRECT(\"'\"&F9874&\"'!\"&H9874)),\"\",IFERROR(VLOOKUP(TEXT(INDIRECT(\"'\"&F9874&\"'!\"&H9874),\"0\"),Notes!$B$5:$C$100,2,FALSE),\"\"))","v":""},"2b","$S$62","$T$62"]
[38791,{"$f":"Menu!$F$29","v":"X"},{"$f":"Menu!$J$29","v":2020},{"$f":"IF(ISBLANK(INDIRECT(\"'\"&F9875&\"'!\"&G9875)),\"\",INDIRECT(\"'\"&F9875&\"'!\"&G9875))","v":""},{"$f":"IF(ISBLANK(INDIRECT(\"'\"&F9875&\"'!\"&H9875)),\"\",IFERROR(VLOOKUP(TEXT(INDIRECT(\"'\"&F9875&\"'!\"&H9875),\"0\"),Notes!$B$5:$C$100,2,FALSE),\"\"))","v":""},"2a","$I$62","$J$62"]
[38792,{"$f":"Menu!$F$29","v":"X"},{"$f":"Menu!$J$29","v":2020},{"$f":"IF(ISBLANK(INDIRECT(\"'\"&F9876&\"'!\"&G9876)),\"\",INDIRECT(\"'\"&F9876&\"'!\"&G9876))","v":""},{"$f":"IF(ISBLANK(INDIRECT(\"'\"&F9876&\"'!\"&H9876)),\"\",IFERROR(VLOOKUP(TEXT(INDIRECT(\"'\"&F9876&\"'!\"&H9876),\"0\"),Notes!$B$5:$C$100,2,FALSE),\"\"))","v":""},"2c","$E$62","$F$62"]
[38793,{"$f":"Menu!$F$29","v":"X"},{"$f":"Menu!$J$29","v":2020},{"$f":"IF(ISBLANK(INDIRECT(\"'\"&F9877&\"'!\"&G9877)),\"\",INDIRECT(\"'\"&F9877&\"'!\"&G9877))","v":""},{"$f":"IF(ISBLANK(INDIRECT(\"'\"&F9877&\"'!\"&H9877)),\"\",IFERROR(VLOOKUP(TEXT(INDIRECT(\"'\"&F9877&\"'!\"&H9877),\"0\"),Notes!$B$5:$C$100,2,FALSE),\"\"))","v":""},"2c","$I$62","$J$62"]
[38794,{"$f":"Menu!$F$29","v":"X"},{"$f":"Menu!$J$29","v":2020},{"$f":"IF(ISBLANK(INDIRECT(\"'\"&F9878&\"'!\"&G9878)),\"\",INDIRECT(\"'\"&F9878&\"'!\"&G9878))","v":""},{"$f":"IF(ISBLANK(INDIRECT(\"'\"&F9878&\"'!\"&H9878)),\"\",IFERROR(VLOOKUP(TEXT(INDIRECT(\"'\"&F9878&\"'!\"&H9878),\"0\"),Notes!$B$5:$C$100,2,FALSE),\"\"))","v":""},"2c","$G$62","$H$62"]
[38798,{"$f":"Menu!$F$29","v":"X"},{"$f":"Menu!$J$29","v":2020},{"$f":"IF(ISBLANK(INDIRECT(\"'\"&F9879&\"'!\"&G9879)),\"\",INDIRECT(\"'\"&F9879&\"'!\"&G9879))","v":""},{"$f":"IF(ISBLANK(INDIRECT(\"'\"&F9879&\"'!\"&H9879)),\"\",IFERROR(VLOOKUP(TEXT(INDIRECT(\"'\"&F9879&\"'!\"&H9879),\"0\"),Notes!$B$5:$C$100,2,FALSE),\"\"))","v":""},"2c","$K$62","$L$62"]
[38799,{"$f":"Menu!$F$29","v":"X"},{"$f":"Menu!$J$29","v":2020},{"$f":"IF(ISBLANK(INDIRECT(\"'\"&F9880&\"'!\"&G9880)),\"\",INDIRECT(\"'\"&F9880&\"'!\"&G9880))","v":""},{"$f":"IF(ISBLANK(INDIRECT(\"'\"&F9880&\"'!\"&H9880)),\"\",IFERROR(VLOOKUP(TEXT(INDIRECT(\"'\"&F9880&\"'!\"&H9880),\"0\"),Notes!$B$5:$C$100,2,FALSE),\"\"))","v":""},"2c","$O$62","$P$62"]
[38800,{"$f":"Menu!$F$29","v":"X"},{"$f":"Menu!$J$29","v":2020},{"$f":"IF(ISBLANK(INDIRECT(\"'\"&F9881&\"'!\"&G9881)),\"\",INDIRECT(\"'\"&F9881&\"'!\"&G9881))","v":""},{"$f":"IF(ISBLANK(INDIRECT(\"'\"&F9881&\"'!\"&H9881)),\"\",IFERROR(VLOOKUP(TEXT(INDIRECT(\"'\"&F9881&\"'!\"&H9881),\"0\"),Notes!$B$5:$C$100,2,FALSE),\"\"))","v":""},"2c","$M$62","$N$62"]
[38801,{"$f":"Menu!$F$29","v":"X"},{"$f":"Menu!$J$29","v":2020},{"$f":"IF(ISBLANK(INDIRECT(\"'\"&F9882&\"'!\"&G9882)),\"\",INDIRECT(\"'\"&F9882&\"'!\"&G9882))","v":""},{"$f":"IF(ISBLANK(INDIRECT(\"'\"&F9882&\"'!\"&H9882)),\"\",IFERROR(VLOOKUP(TEXT(INDIRECT(\"'\"&F9882&\"'!\"&H9882),\"0\"),Notes!$B$5:$C$100,2,FALSE),\"\"))","v":""},"2c","$Q$62","$R$62"]
[38802,{"$f":"Menu!$F$29","v":"X"},{"$f":"Menu!$J$29","v":2020},{"$f":"IF(ISBLANK(INDIRECT(\"'\"&F9883&\"'!\"&G9883)),\"\",INDIRECT(\"'\"&F9883&\"'!\"&G9883))","v":""},{"$f":"IF(ISBLANK(INDIRECT(\"'\"&F9883&\"'!\"&H9883)),\"\",IFERROR(VLOOKUP(TEXT(INDIRECT(\"'\"&F9883&\"'!\"&H9883),\"0\"),Notes!$B$5:$C$100,2,FALSE),\"\"))","v":""},"2c","$U$62","$V$62"]
[38803,{"$f":"Menu!$F$29","v":"X"},{"$f":"Menu!$J$29","v":2020},{"$f":"IF(ISBLANK(INDIRECT(\"'\"&F9884&\"'!\"&G9884)),\"\",INDIRECT(\"'\"&F9884&\"'!\"&G9884))","v":""},{"$f":"IF(ISBLANK(INDIRECT(\"'\"&F9884&\"'!\"&H9884)),\"\",IFERROR(VLOOKUP(TEXT(INDIRECT(\"'\"&F9884&\"'!\"&H9884),\"0\"),Notes!$B$5:$C$100,2,FALSE),\"\"))","v":""},"2c","$S$62","$T$62"]
[38804,{"$f":"Menu!$F$29","v":"X"},{"$f":"Menu!$J$29","v":2020},{"$f":"IF(ISBLANK(INDIRECT(\"'\"&F9885&\"'!\"&G9885)),\"\",INDIRECT(\"'\"&F9885&\"'!\"&G9885))","v":""},{"$f":"IF(ISBLANK(INDIRECT(\"'\"&F9885&\"'!\"&H9885)),\"\",IFERROR(VLOOKUP(TEXT(INDIRECT(\"'\"&F9885&\"'!\"&H9885),\"0\"),Notes!$B$5:$C$100,2,FALSE),\"\"))","v":""},"2c","$W$62","$X$62"]
[38805,{"$f":"Menu!$F$29","v":"X"},{"$f":"Menu!$J$29","v":2020},{"$f":"IF(ISBLANK(INDIRECT(\"'\"&F9886&\"'!\"&G9886)),\"\",INDIRECT(\"'\"&F9886&\"'!\"&G9886))","v":""},{"$f":"IF(ISBLANK(INDIRECT(\"'\"&F9886&\"'!\"&H9886)),\"\",IFERROR(VLOOKUP(TEXT(INDIRECT(\"'\"&F9886&\"'!\"&H9886),\"0\"),Notes!$B$5:$C$100,2,FALSE),\"\"))","v":""},"2c","$AA$62","$AB$62"]
[38806,{"$f":"Menu!$F$29","v":"X"},{"$f":"Menu!$J$29","v":2020},{"$f":"IF(ISBLANK(INDIRECT(\"'\"&F9887&\"'!\"&G9887)),\"\",INDIRECT(\"'\"&F9887&\"'!\"&G9887))","v":""},{"$f":"IF(ISBLANK(INDIRECT(\"'\"&F9887&\"'!\"&H9887)),\"\",IFERROR(VLOOKUP(TEXT(INDIRECT(\"'\"&F9887&\"'!\"&H9887),\"0\"),Notes!$B$5:$C$100,2,FALSE),\"\"))","v":""},"2c","$Y$62","$Z$62"]
[38813,{"$f":"Menu!$F$29","v":"X"},{"$f":"Menu!$J$29","v":2020},{"$f":"IF(ISBLANK(INDIRECT(\"'\"&F9888&\"'!\"&G9888)),\"\",INDIRECT(\"'\"&F9888&\"'!\"&G9888))","v":""},{"$f":"IF(ISBLANK(INDIRECT(\"'\"&F9888&\"'!\"&H9888)),\"\",IFERROR(VLOOKUP(TEXT(INDIRECT(\"'\"&F9888&\"'!\"&H9888),\"0\"),Notes!$B$5:$C$100,2,FALSE),\"\"))","v":""},"2e","$BG$63","$BH$63"]
[38814,{"$f":"Menu!$F$29","v":"X"},{"$f":"Menu!$J$29","v":2020},{"$f":"IF(ISBLANK(INDIRECT(\"'\"&F9889&\"'!\"&G9889)),\"\",INDIRECT(\"'\"&F9889&\"'!\"&G9889))","v":""},{"$f":"IF(ISBLANK(INDIRECT(\"'\"&F9889&\"'!\"&H9889)),\"\",IFERROR(VLOOKUP(TEXT(INDIRECT(\"'\"&F9889&\"'!\"&H9889),\"0\"),Notes!$B$5:$C$100,2,FALSE),\"\"))","v":""},"2e","$BK$63","$BL$63"]
[38815,{"$f":"Menu!$F$29","v":"X"},{"$f":"Menu!$J$29","v":2020},{"$f":"IF(ISBLANK(INDIRECT(\"'\"&F9890&\"'!\"&G9890)),\"\",INDIRECT(\"'\"&F9890&\"'!\"&G9890))","v":""},{"$f":"IF(ISBLANK(INDIRECT(\"'\"&F9890&\"'!\"&H9890)),\"\",IFERROR(VLOOKUP(TEXT(INDIRECT(\"'\"&F9890&\"'!\"&H9890),\"0\"),Notes!$B$5:$C$100,2,FALSE),\"\"))","v":""},"2e","$BI$63","$BJ$63"]
[38816,{"$f":"Menu!$F$29","v":"X"},{"$f":"Menu!$J$29","v":2020},{"$f":"IF(ISBLANK(INDIRECT(\"'\"&F9891&\"'!\"&G9891)),\"\",INDIRECT(\"'\"&F9891&\"'!\"&G9891))","v":""},{"$f":"IF(ISBLANK(INDIRECT(\"'\"&F9891&\"'!\"&H9891)),\"\",IFERROR(VLOOKUP(TEXT(INDIRECT(\"'\"&F9891&\"'!\"&H9891),\"0\"),Notes!$B$5:$C$100,2,FALSE),\"\"))","v":""},"2e","$E$63","$F$63"]
[38817,{"$f":"Menu!$F$29","v":"X"},{"$f":"Menu!$J$29","v":2020},{"$f":"IF(ISBLANK(INDIRECT(\"'\"&F9892&\"'!\"&G9892)),\"\",INDIRECT(\"'\"&F9892&\"'!\"&G9892))","v":""},{"$f":"IF(ISBLANK(INDIRECT(\"'\"&F9892&\"'!\"&H9892)),\"\",IFERROR(VLOOKUP(TEXT(INDIRECT(\"'\"&F9892&\"'!\"&H9892),\"0\"),Notes!$B$5:$C$100,2,FALSE),\"\"))","v":""},"2e","$I$63","$J$63"]
[38818,{"$f":"Menu!$F$29","v":"X"},{"$f":"Menu!$J$29","v":2020},{"$f":"IF(ISBLANK(INDIRECT(\"'\"&F9893&\"'!\"&G9893)),\"\",INDIRECT(\"'\"&F9893&\"'!\"&G9893))","v":""},{"$f":"IF(ISBLANK(INDIRECT(\"'\"&F9893&\"'!\"&H9893)),\"\",IFERROR(VLOOKUP(TEXT(INDIRECT(\"'\"&F9893&\"'!\"&H9893),\"0\"),Notes!$B$5:$C$100,2,FALSE),\"\"))","v":""},"2e","$G$63","$H$63"]
[38819,{"$f":"Menu!$F$29","v":"X"},{"$f":"Menu!$J$29","v":2020},{"$f":"IF(ISBLANK(INDIRECT(\"'\"&F9894&\"'!\"&G9894)),\"\",INDIRECT(\"'\"&F9894&\"'!\"&G9894))","v":""},{"$f":"IF(ISBLANK(INDIRECT(\"'\"&F9894&\"'!\"&H9894)),\"\",IFERROR(VLOOKUP(TEXT(INDIRECT(\"'\"&F9894&\"'!\"&H9894),\"0\"),Notes!$B$5:$C$100,2,FALSE),\"\"))","v":""},"2e","$K$63","$L$63"]
[38820,{"$f":"Menu!$F$29","v":"X"},{"$f":"Menu!$J$29","v":2020},{"$f":"IF(ISBLANK(INDIRECT(\"'\"&F9895&\"'!\"&G9895)),\"\",INDIRECT(\"'\"&F9895&\"'!\"&G9895))","v":""},{"$f":"IF(ISBLANK(INDIRECT(\"'\"&F9895&\"'!\"&H9895)),\"\",IFERROR(VLOOKUP(TEXT(INDIRECT(\"'\"&F9895&\"'!\"&H9895),\"0\"),Notes!$B$5:$C$100,2,FALSE),\"\"))","v":""},"2e","$O$63","$P$63"]
[38821,{"$f":"Menu!$F$29","v":"X"},{"$f":"Menu!$J$29","v":2020},{"$f":"IF(ISBLANK(INDIRECT(\"'\"&F9896&\"'!\"&G9896)),\"\",INDIRECT(\"'\"&F9896&\"'!\"&G9896))","v":""},{"$f":"IF(ISBLANK(INDIRECT(\"'\"&F9896&\"'!\"&H9896)),\"\",IFERROR(VLOOKUP(TEXT(INDIRECT(\"'\"&F9896&\"'!\"&H9896),\"0\"),Notes!$B$5:$C$100,2,FALSE),\"\"))","v":""},"2e","$M$63","$N$63"]
[38822,{"$f":"Menu!$F$29","v":"X"},{"$f":"Menu!$J$29","v":2020},{"$f":"IF(ISBLANK(INDIRECT(\"'\"&F9897&\"'!\"&G9897)),\"\",INDIRECT(\"'\"&F9897&\"'!\"&G9897))","v":""},{"$f":"IF(ISBLANK(INDIRECT(\"'\"&F9897&\"'!\"&H9897)),\"\",IFERROR(VLOOKUP(TEXT(INDIRECT(\"'\"&F9897&\"'!\"&H9897),\"0\"),Notes!$B$5:$C$100,2,FALSE),\"\"))","v":""},"2e","$Q$63","$R$63"]
[38823,{"$f":"Menu!$F$29","v":"X"},{"$f":"Menu!$J$29","v":2020},{"$f":"IF(ISBLANK(INDIRECT(\"'\"&F9898&\"'!\"&G9898)),\"\",INDIRECT(\"'\"&F9898&\"'!\"&G9898))","v":""},{"$f":"IF(ISBLANK(INDIRECT(\"'\"&F9898&\"'!\"&H9898)),\"\",IFERROR(VLOOKUP(TEXT(INDIRECT(\"'\"&F9898&\"'!\"&H9898),\"0\"),Notes!$B$5:$C$100,2,FALSE),\"\"))","v":""},"2e","$U$63","$V$63"]
[38824,{"$f":"Menu!$F$29","v":"X"},{"$f":"Menu!$J$29","v":2020},{"$f":"IF(ISBLANK(INDIRECT(\"'\"&F9899&\"'!\"&G9899)),\"\",INDIRECT(\"'\"&F9899&\"'!\"&G9899))","v":""},{"$f":"IF(ISBLANK(INDIRECT(\"'\"&F9899&\"'!\"&H9899)),\"\",IFERROR(VLOOKUP(TEXT(INDIRECT(\"'\"&F9899&\"'!\"&H9899),\"0\"),Notes!$B$5:$C$100,2,FALSE),\"\"))","v":""},"2e","$S$63","$T$63"]
[38825,{"$f":"Menu!$F$29","v":"X"},{"$f":"Menu!$J$29","v":2020},{"$f":"IF(ISBLANK(INDIRECT(\"'\"&F9900&\"'!\"&G9900)),\"\",INDIRECT(\"'\"&F9900&\"'!\"&G9900))","v":""},{"$f":"IF(ISBLANK(INDIRECT(\"'\"&F9900&\"'!\"&H9900)),\"\",IFERROR(VLOOKUP(TEXT(INDIRECT(\"'\"&F9900&\"'!\"&H9900),\"0\"),Notes!$B$5:$C$100,2,FALSE),\"\"))","v":""},"2e","$W$63","$X$63"]
[38826,{"$f":"Menu!$F$29","v":"X"},{"$f":"Menu!$J$29","v":2020},{"$f":"IF(ISBLANK(INDIRECT(\"'\"&F9901&\"'!\"&G9901)),\"\",INDIRECT(\"'\"&F9901&\"'!\"&G9901))","v":""},{"$f":"IF(ISBLANK(INDIRECT(\"'\"&F9901&\"'!\"&H9901)),\"\",IFERROR(VLOOKUP(TEXT(INDIRECT(\"'\"&F9901&\"'!\"&H9901),\"0\"),Notes!$B$5:$C$100,2,FALSE),\"\"))","v":""},"2e","$AA$63","$AB$63"]
[38827,{"$f":"Menu!$F$29","v":"X"},{"$f":"Menu!$J$29","v":2020},{"$f":"IF(ISBLANK(INDIRECT(\"'\"&F9902&\"'!\"&G9902)),\"\",INDIRECT(\"'\"&F9902&\"'!\"&G9902))","v":""},{"$f":"IF(ISBLANK(INDIRECT(\"'\"&F9902&\"'!\"&H9902)),\"\",IFERROR(VLOOKUP(TEXT(INDIRECT(\"'\"&F9902&\"'!\"&H9902),\"0\"),Notes!$B$5:$C$100,2,FALSE),\"\"))","v":""},"2e","$Y$63","$Z$63"]
[38828,{"$f":"Menu!$F$29","v":"X"},{"$f":"Menu!$J$29","v":2020},{"$f":"IF(ISBLANK(INDIRECT(\"'\"&F9903&\"'!\"&G9903)),\"\",INDIRECT(\"'\"&F9903&\"'!\"&G9903))","v":""},{"$f":"IF(ISBLANK(INDIRECT(\"'\"&F9903&\"'!\"&H9903)),\"\",IFERROR(VLOOKUP(TEXT(INDIRECT(\"'\"&F9903&\"'!\"&H9903),\"0\"),Notes!$B$5:$C$100,2,FALSE),\"\"))","v":""},"2e","$AC$63","$AD$63"]
[38829,{"$f":"Menu!$F$29","v":"X"},{"$f":"Menu!$J$29","v":2020},{"$f":"IF(ISBLANK(INDIRECT(\"'\"&F9904&\"'!\"&G9904)),\"\",INDIRECT(\"'\"&F9904&\"'!\"&G9904))","v":""},{"$f":"IF(ISBLANK(INDIRECT(\"'\"&F9904&\"'!\"&H9904)),\"\",IFERROR(VLOOKUP(TEXT(INDIRECT(\"'\"&F9904&\"'!\"&H9904),\"0\"),Notes!$B$5:$C$100,2,FALSE),\"\"))","v":""},"2e","$AG$63","$AH$63"]
[38830,{"$f":"Menu!$F$29","v":"X"},{"$f":"Menu!$J$29","v":2020},{"$f":"IF(ISBLANK(INDIRECT(\"'\"&F9905&\"'!\"&G9905)),\"\",INDIRECT(\"'\"&F9905&\"'!\"&G9905))","v":""},{"$f":"IF(ISBLANK(INDIRECT(\"'\"&F9905&\"'!\"&H9905)),\"\",IFERROR(VLOOKUP(TEXT(INDIRECT(\"'\"&F9905&\"'!\"&H9905),\"0\"),Notes!$B$5:$C$100,2,FALSE),\"\"))","v":""},"2e","$AE$63","$AF$63"]
[38831,{"$f":"Menu!$F$29","v":"X"},{"$f":"Menu!$J$29","v":2020},{"$f":"IF(ISBLANK(INDIRECT(\"'\"&F9906&\"'!\"&G9906)),\"\",INDIRECT(\"'\"&F9906&\"'!\"&G9906))","v":""},{"$f":"IF(ISBLANK(INDIRECT(\"'\"&F9906&\"'!\"&H9906)),\"\",IFERROR(VLOOKUP(TEXT(INDIRECT(\"'\"&F9906&\"'!\"&H9906),\"0\"),Notes!$B$5:$C$100,2,FALSE),\"\"))","v":""},"2e","$AI$63","$AJ$63"]
[38832,{"$f":"Menu!$F$29","v":"X"},{"$f":"Menu!$J$29","v":2020},{"$f":"IF(ISBLANK(INDIRECT(\"'\"&F9907&\"'!\"&G9907)),\"\",INDIRECT(\"'\"&F9907&\"'!\"&G9907))","v":""},{"$f":"IF(ISBLANK(INDIRECT(\"'\"&F9907&\"'!\"&H9907)),\"\",IFERROR(VLOOKUP(TEXT(INDIRECT(\"'\"&F9907&\"'!\"&H9907),\"0\"),Notes!$B$5:$C$100,2,FALSE),\"\"))","v":""},"2e","$AM$63","$AN$63"]
[38833,{"$f":"Menu!$F$29","v":"X"},{"$f":"Menu!$J$29","v":2020},{"$f":"IF(ISBLANK(INDIRECT(\"'\"&F9908&\"'!\"&G9908)),\"\",INDIRECT(\"'\"&F9908&\"'!\"&G9908))","v":""},{"$f":"IF(ISBLANK(INDIRECT(\"'\"&F9908&\"'!\"&H9908)),\"\",IFERROR(VLOOKUP(TEXT(INDIRECT(\"'\"&F9908&\"'!\"&H9908),\"0\"),Notes!$B$5:$C$100,2,FALSE),\"\"))","v":""},"2e","$AK$63","$AL$63"]
[38834,{"$f":"Menu!$F$29","v":"X"},{"$f":"Menu!$J$29","v":2020},{"$f":"IF(ISBLANK(INDIRECT(\"'\"&F9909&\"'!\"&G9909)),\"\",INDIRECT(\"'\"&F9909&\"'!\"&G9909))","v":""},{"$f":"IF(ISBLANK(INDIRECT(\"'\"&F9909&\"'!\"&H9909)),\"\",IFERROR(VLOOKUP(TEXT(INDIRECT(\"'\"&F9909&\"'!\"&H9909),\"0\"),Notes!$B$5:$C$100,2,FALSE),\"\"))","v":""},"2e","$AO$63","$AP$63"]
[38835,{"$f":"Menu!$F$29","v":"X"},{"$f":"Menu!$J$29","v":2020},{"$f":"IF(ISBLANK(INDIRECT(\"'\"&F9910&\"'!\"&G9910)),\"\",INDIRECT(\"'\"&F9910&\"'!\"&G9910))","v":""},{"$f":"IF(ISBLANK(INDIRECT(\"'\"&F9910&\"'!\"&H9910)),\"\",IFERROR(VLOOKUP(TEXT(INDIRECT(\"'\"&F9910&\"'!\"&H9910),\"0\"),Notes!$B$5:$C$100,2,FALSE),\"\"))","v":""},"2e","$AS$63","$AT$63"]
[38836,{"$f":"Menu!$F$29","v":"X"},{"$f":"Menu!$J$29","v":2020},{"$f":"IF(ISBLANK(INDIRECT(\"'\"&F9911&\"'!\"&G9911)),\"\",INDIRECT(\"'\"&F9911&\"'!\"&G9911))","v":""},{"$f":"IF(ISBLANK(INDIRECT(\"'\"&F9911&\"'!\"&H9911)),\"\",IFERROR(VLOOKUP(TEXT(INDIRECT(\"'\"&F9911&\"'!\"&H9911),\"0\"),Notes!$B$5:$C$100,2,FALSE),\"\"))","v":""},"2e","$AQ$63","$AR$63"]
[38837,{"$f":"Menu!$F$29","v":"X"},{"$f":"Menu!$J$29","v":2020},{"$f":"IF(ISBLANK(INDIRECT(\"'\"&F9912&\"'!\"&G9912)),\"\",INDIRECT(\"'\"&F9912&\"'!\"&G9912))","v":""},{"$f":"IF(ISBLANK(INDIRECT(\"'\"&F9912&\"'!\"&H9912)),\"\",IFERROR(VLOOKUP(TEXT(INDIRECT(\"'\"&F9912&\"'!\"&H9912),\"0\"),Notes!$B$5:$C$100,2,FALSE),\"\"))","v":""},"2e","$AU$63","$AV$63"]
[38838,{"$f":"Menu!$F$29","v":"X"},{"$f":"Menu!$J$29","v":2020},{"$f":"IF(ISBLANK(INDIRECT(\"'\"&F9913&\"'!\"&G9913)),\"\",INDIRECT(\"'\"&F9913&\"'!\"&G9913))","v":""},{"$f":"IF(ISBLANK(INDIRECT(\"'\"&F9913&\"'!\"&H9913)),\"\",IFERROR(VLOOKUP(TEXT(INDIRECT(\"'\"&F9913&\"'!\"&H9913),\"0\"),Notes!$B$5:$C$100,2,FALSE),\"\"))","v":""},"2e","$AY$63","$AZ$63"]
[38839,{"$f":"Menu!$F$29","v":"X"},{"$f":"Menu!$J$29","v":2020},{"$f":"IF(ISBLANK(INDIRECT(\"'\"&F9914&\"'!\"&G9914)),\"\",INDIRECT(\"'\"&F9914&\"'!\"&G9914))","v":""},{"$f":"IF(ISBLANK(INDIRECT(\"'\"&F9914&\"'!\"&H9914)),\"\",IFERROR(VLOOKUP(TEXT(INDIRECT(\"'\"&F9914&\"'!\"&H9914),\"0\"),Notes!$B$5:$C$100,2,FALSE),\"\"))","v":""},"2e","$AW$63","$AX$63"]
[38840,{"$f":"Menu!$F$29","v":"X"},{"$f":"Menu!$J$29","v":2020},{"$f":"IF(ISBLANK(INDIRECT(\"'\"&F9915&\"'!\"&G9915)),\"\",INDIRECT(\"'\"&F9915&\"'!\"&G9915))","v":""},{"$f":"IF(ISBLANK(INDIRECT(\"'\"&F9915&\"'!\"&H9915)),\"\",IFERROR(VLOOKUP(TEXT(INDIRECT(\"'\"&F9915&\"'!\"&H9915),\"0\"),Notes!$B$5:$C$100,2,FALSE),\"\"))","v":""},"2e","$BA$63","$BB$63"]
[38841,{"$f":"Menu!$F$29","v":"X"},{"$f":"Menu!$J$29","v":2020},{"$f":"IF(ISBLANK(INDIRECT(\"'\"&F9916&\"'!\"&G9916)),\"\",INDIRECT(\"'\"&F9916&\"'!\"&G9916))","v":""},{"$f":"IF(ISBLANK(INDIRECT(\"'\"&F9916&\"'!\"&H9916)),\"\",IFERROR(VLOOKUP(TEXT(INDIRECT(\"'\"&F9916&\"'!\"&H9916),\"0\"),Notes!$B$5:$C$100,2,FALSE),\"\"))","v":""},"2e","$BE$63","$BF$63"]
[38842,{"$f":"Menu!$F$29","v":"X"},{"$f":"Menu!$J$29","v":2020},{"$f":"IF(ISBLANK(INDIRECT(\"'\"&F9917&\"'!\"&G9917)),\"\",INDIRECT(\"'\"&F9917&\"'!\"&G9917))","v":""},{"$f":"IF(ISBLANK(INDIRECT(\"'\"&F9917&\"'!\"&H9917)),\"\",IFERROR(VLOOKUP(TEXT(INDIRECT(\"'\"&F9917&\"'!\"&H9917),\"0\"),Notes!$B$5:$C$100,2,FALSE),\"\"))","v":""},"2e","$BC$63","$BD$63"]
[38843,{"$f":"Menu!$F$29","v":"X"},{"$f":"Menu!$J$29","v":2020},{"$f":"IF(ISBLANK(INDIRECT(\"'\"&F9918&\"'!\"&G9918)),\"\",INDIRECT(\"'\"&F9918&\"'!\"&G9918))","v":""},{"$f":"IF(ISBLANK(INDIRECT(\"'\"&F9918&\"'!\"&H9918)),\"\",IFERROR(VLOOKUP(TEXT(INDIRECT(\"'\"&F9918&\"'!\"&H9918),\"0\"),Notes!$B$5:$C$100,2,FALSE),\"\"))","v":""},"2b","$E$62","$F$62"]
[38844,{"$f":"Menu!$F$29","v":"X"},{"$f":"Menu!$J$29","v":2020},{"$f":"IF(ISBLANK(INDIRECT(\"'\"&F9919&\"'!\"&G9919)),\"\",INDIRECT(\"'\"&F9919&\"'!\"&G9919))","v":""},{"$f":"IF(ISBLANK(INDIRECT(\"'\"&F9919&\"'!\"&H9919)),\"\",IFERROR(VLOOKUP(TEXT(INDIRECT(\"'\"&F9919&\"'!\"&H9919),\"0\"),Notes!$B$5:$C$100,2,FALSE),\"\"))","v":""},"2b","$I$62","$J$62"]
[38845,{"$f":"Menu!$F$29","v":"X"},{"$f":"Menu!$J$29","v":2020},{"$f":"IF(ISBLANK(INDIRECT(\"'\"&F9920&\"'!\"&G9920)),\"\",INDIRECT(\"'\"&F9920&\"'!\"&G9920))","v":""},{"$f":"IF(ISBLANK(INDIRECT(\"'\"&F9920&\"'!\"&H9920)),\"\",IFERROR(VLOOKUP(TEXT(INDIRECT(\"'\"&F9920&\"'!\"&H9920),\"0\"),Notes!$B$5:$C$100,2,FALSE),\"\"))","v":""},"2b","$G$62","$H$62"]
[38846,{"$f":"Menu!$F$29","v":"X"},{"$f":"Menu!$J$29","v":2020},{"$f":"IF(ISBLANK(INDIRECT(\"'\"&F9921&\"'!\"&G9921)),\"\",INDIRECT(\"'\"&F9921&\"'!\"&G9921))","v":""},{"$f":"IF(ISBLANK(INDIRECT(\"'\"&F9921&\"'!\"&H9921)),\"\",IFERROR(VLOOKUP(TEXT(INDIRECT(\"'\"&F9921&\"'!\"&H9921),\"0\"),Notes!$B$5:$C$100,2,FALSE),\"\"))","v":""},"2a","$G$62","$H$62"]
[38847,{"$f":"Menu!$F$29","v":"X"},{"$f":"Menu!$J$29","v":2020},{"$f":"IF(ISBLANK(INDIRECT(\"'\"&F9922&\"'!\"&G9922)),\"\",INDIRECT(\"'\"&F9922&\"'!\"&G9922))","v":""},{"$f":"IF(ISBLANK(INDIRECT(\"'\"&F9922&\"'!\"&H9922)),\"\",IFERROR(VLOOKUP(TEXT(INDIRECT(\"'\"&F9922&\"'!\"&H9922),\"0\"),Notes!$B$5:$C$100,2,FALSE),\"\"))","v":""},"2b","$W$62",{"$f":"IF(LEN(TRIM(MID(G9922,4,10)))-LEN(SUBSTITUTE(TRIM(MID(G9922,4,10)),\"$\",\"\"))=0,\"$\"&CHAR(CODE(MID(G9922,2,1))+1)&\"$\"&TRIM(MID(G9922,4,10)),\"$\"&MID(G9922,2,1)&CHAR(CODE(MID(G9922,3,1))+1)&\"$\"&TRIM(MID(G9922,5,11)))","v":"$X$62"}]
[38848,{"$f":"Menu!$F$29","v":"X"},{"$f":"Menu!$J$29","v":2020},{"$f":"IF(ISBLANK(INDIRECT(\"'\"&F9923&\"'!\"&G9923)),\"\",INDIRECT(\"'\"&F9923&\"'!\"&G9923))","v":""},{"$f":"IF(ISBLANK(INDIRECT(\"'\"&F9923&\"'!\"&H9923)),\"\",IFERROR(VLOOKUP(TEXT(INDIRECT(\"'\"&F9923&\"'!\"&H9923),\"0\"),Notes!$B$5:$C$100,2,FALSE),\"\"))","v":""},"2b","$AA$62","$AB$62"]
[38849,{"$f":"Menu!$F$29","v":"X"},{"$f":"Menu!$J$29","v":2020},{"$f":"IF(ISBLANK(INDIRECT(\"'\"&F9924&\"'!\"&G9924)),\"\",INDIRECT(\"'\"&F9924&\"'!\"&G9924))","v":""},{"$f":"IF(ISBLANK(INDIRECT(\"'\"&F9924&\"'!\"&H9924)),\"\",IFERROR(VLOOKUP(TEXT(INDIRECT(\"'\"&F9924&\"'!\"&H9924),\"0\"),Notes!$B$5:$C$100,2,FALSE),\"\"))","v":""},"2b","$Y$62","$Z$62"]
[38850,{"$f":"Menu!$F$29","v":"X"},{"$f":"Menu!$J$29","v":2020},{"$f":"IF(ISBLANK(INDIRECT(\"'\"&F9925&\"'!\"&G9925)),\"\",INDIRECT(\"'\"&F9925&\"'!\"&G9925))","v":""},{"$f":"IF(ISBLANK(INDIRECT(\"'\"&F9925&\"'!\"&H9925)),\"\",IFERROR(VLOOKUP(TEXT(INDIRECT(\"'\"&F9925&\"'!\"&H9925),\"0\"),Notes!$B$5:$C$100,2,FALSE),\"\"))","v":""},"2d","$AC$62","$AD$62"]
[38851,{"$f":"Menu!$F$29","v":"X"},{"$f":"Menu!$J$29","v":2020},{"$f":"IF(ISBLANK(INDIRECT(\"'\"&F9926&\"'!\"&G9926)),\"\",INDIRECT(\"'\"&F9926&\"'!\"&G9926))","v":""},{"$f":"IF(ISBLANK(INDIRECT(\"'\"&F9926&\"'!\"&H9926)),\"\",IFERROR(VLOOKUP(TEXT(INDIRECT(\"'\"&F9926&\"'!\"&H9926),\"0\"),Notes!$B$5:$C$100,2,FALSE),\"\"))","v":""},"2d","$AG$62","$AH$62"]
[38852,{"$f":"Menu!$F$29","v":"X"},{"$f":"Menu!$J$29","v":2020},{"$f":"IF(ISBLANK(INDIRECT(\"'\"&F9927&\"'!\"&G9927)),\"\",INDIRECT(\"'\"&F9927&\"'!\"&G9927))","v":""},{"$f":"IF(ISBLANK(INDIRECT(\"'\"&F9927&\"'!\"&H9927)),\"\",IFERROR(VLOOKUP(TEXT(INDIRECT(\"'\"&F9927&\"'!\"&H9927),\"0\"),Notes!$B$5:$C$100,2,FALSE),\"\"))","v":""},"2d","$AE$62","$AF$62"]
[38853,{"$f":"Menu!$F$29","v":"X"},{"$f":"Menu!$J$29","v":2020},{"$f":"IF(ISBLANK(INDIRECT(\"'\"&F9928&\"'!\"&G9928)),\"\",INDIRECT(\"'\"&F9928&\"'!\"&G9928))","v":""},{"$f":"IF(ISBLANK(INDIRECT(\"'\"&F9928&\"'!\"&H9928)),\"\",IFERROR(VLOOKUP(TEXT(INDIRECT(\"'\"&F9928&\"'!\"&H9928),\"0\"),Notes!$B$5:$C$100,2,FALSE),\"\"))","v":""},"2d","$W$62","$X$62"]
[38854,{"$f":"Menu!$F$29","v":"X"},{"$f":"Menu!$J$29","v":2020},{"$f":"IF(ISBLANK(INDIRECT(\"'\"&F9929&\"'!\"&G9929)),\"\",INDIRECT(\"'\"&F9929&\"'!\"&G9929))","v":""},{"$f":"IF(ISBLANK(INDIRECT(\"'\"&F9929&\"'!\"&H9929)),\"\",IFERROR(VLOOKUP(TEXT(INDIRECT(\"'\"&F9929&\"'!\"&H9929),\"0\"),Notes!$B$5:$C$100,2,FALSE),\"\"))","v":""},"2d","$AA$62","$AB$62"]
[38855,{"$f":"Menu!$F$29","v":"X"},{"$f":"Menu!$J$29","v":2020},{"$f":"IF(ISBLANK(INDIRECT(\"'\"&F9930&\"'!\"&G9930)),\"\",INDIRECT(\"'\"&F9930&\"'!\"&G9930))","v":""},{"$f":"IF(ISBLANK(INDIRECT(\"'\"&F9930&\"'!\"&H9930)),\"\",IFERROR(VLOOKUP(TEXT(INDIRECT(\"'\"&F9930&\"'!\"&H9930),\"0\"),Notes!$B$5:$C$100,2,FALSE),\"\"))","v":""},"2d","$Y$62","$Z$62"]
[38856,{"$f":"Menu!$F$29","v":"X"},{"$f":"Menu!$J$29","v":2020},{"$f":"IF(ISBLANK(INDIRECT(\"'\"&F9931&\"'!\"&G9931)),\"\",INDIRECT(\"'\"&F9931&\"'!\"&G9931))","v":""},{"$f":"IF(ISBLANK(INDIRECT(\"'\"&F9931&\"'!\"&H9931)),\"\",IFERROR(VLOOKUP(TEXT(INDIRECT(\"'\"&F9931&\"'!\"&H9931),\"0\"),Notes!$B$5:$C$100,2,FALSE),\"\"))","v":""},"2d","$E$62","$F$62"]
[38857,{"$f":"Menu!$F$29","v":"X"},{"$f":"Menu!$J$29","v":2020},{"$f":"IF(ISBLANK(INDIRECT(\"'\"&F9932&\"'!\"&G9932)),\"\",INDIRECT(\"'\"&F9932&\"'!\"&G9932))","v":""},{"$f":"IF(ISBLANK(INDIRECT(\"'\"&F9932&\"'!\"&H9932)),\"\",IFERROR(VLOOKUP(TEXT(INDIRECT(\"'\"&F9932&\"'!\"&H9932),\"0\"),Notes!$B$5:$C$100,2,FALSE),\"\"))","v":""},"2d","$I$62","$J$62"]
[38858,{"$f":"Menu!$F$29","v":"X"},{"$f":"Menu!$J$29","v":2020},{"$f":"IF(ISBLANK(INDIRECT(\"'\"&F9933&\"'!\"&G9933)),\"\",INDIRECT(\"'\"&F9933&\"'!\"&G9933))","v":""},{"$f":"IF(ISBLANK(INDIRECT(\"'\"&F9933&\"'!\"&H9933)),\"\",IFERROR(VLOOKUP(TEXT(INDIRECT(\"'\"&F9933&\"'!\"&H9933),\"0\"),Notes!$B$5:$C$100,2,FALSE),\"\"))","v":""},"2d","$G$62","$H$62"]
[38859,{"$f":"Menu!$F$29","v":"X"},{"$f":"Menu!$J$29","v":2020},{"$f":"IF(ISBLANK(INDIRECT(\"'\"&F9934&\"'!\"&G9934)),\"\",INDIRECT(\"'\"&F9934&\"'!\"&G9934))","v":""},{"$f":"IF(ISBLANK(INDIRECT(\"'\"&F9934&\"'!\"&H9934)),\"\",IFERROR(VLOOKUP(TEXT(INDIRECT(\"'\"&F9934&\"'!\"&H9934),\"0\"),Notes!$B$5:$C$100,2,FALSE),\"\"))","v":""},"2a","$Q$62","$R$62"]
[38860,{"$f":"Menu!$F$29","v":"X"},{"$f":"Menu!$J$29","v":2020},{"$f":"IF(ISBLANK(INDIRECT(\"'\"&F9935&\"'!\"&G9935)),\"\",INDIRECT(\"'\"&F9935&\"'!\"&G9935))","v":""},{"$f":"IF(ISBLANK(INDIRECT(\"'\"&F9935&\"'!\"&H9935)),\"\",IFERROR(VLOOKUP(TEXT(INDIRECT(\"'\"&F9935&\"'!\"&H9935),\"0\"),Notes!$B$5:$C$100,2,FALSE),\"\"))","v":""},"2a","$U$62","$V$62"]
[38861,{"$f":"Menu!$F$29","v":"X"},{"$f":"Menu!$J$29","v":2020},{"$f":"IF(ISBLANK(INDIRECT(\"'\"&F9936&\"'!\"&G9936)),\"\",INDIRECT(\"'\"&F9936&\"'!\"&G9936))","v":""},{"$f":"IF(ISBLANK(INDIRECT(\"'\"&F9936&\"'!\"&H9936)),\"\",IFERROR(VLOOKUP(TEXT(INDIRECT(\"'\"&F9936&\"'!\"&H9936),\"0\"),Notes!$B$5:$C$100,2,FALSE),\"\"))","v":""},"2a","$S$62","$T$62"]
[38862,{"$f":"Menu!$F$29","v":"X"},{"$f":"Menu!$J$29","v":2020},{"$f":"IF(ISBLANK(INDIRECT(\"'\"&F9937&\"'!\"&G9937)),\"\",INDIRECT(\"'\"&F9937&\"'!\"&G9937))","v":""},{"$f":"IF(ISBLANK(INDIRECT(\"'\"&F9937&\"'!\"&H9937)),\"\",IFERROR(VLOOKUP(TEXT(INDIRECT(\"'\"&F9937&\"'!\"&H9937),\"0\"),Notes!$B$5:$C$100,2,FALSE),\"\"))","v":""},"2d","$K$62","$L$62"]
[38863,{"$f":"Menu!$F$29","v":"X"},{"$f":"Menu!$J$29","v":2020},{"$f":"IF(ISBLANK(INDIRECT(\"'\"&F9938&\"'!\"&G9938)),\"\",INDIRECT(\"'\"&F9938&\"'!\"&G9938))","v":""},{"$f":"IF(ISBLANK(INDIRECT(\"'\"&F9938&\"'!\"&H9938)),\"\",IFERROR(VLOOKUP(TEXT(INDIRECT(\"'\"&F9938&\"'!\"&H9938),\"0\"),Notes!$B$5:$C$100,2,FALSE),\"\"))","v":""},"2d","$O$62","$P$62"]
[38864,{"$f":"Menu!$F$29","v":"X"},{"$f":"Menu!$J$29","v":2020},{"$f":"IF(ISBLANK(INDIRECT(\"'\"&F9939&\"'!\"&G9939)),\"\",INDIRECT(\"'\"&F9939&\"'!\"&G9939))","v":""},{"$f":"IF(ISBLANK(INDIRECT(\"'\"&F9939&\"'!\"&H9939)),\"\",IFERROR(VLOOKUP(TEXT(INDIRECT(\"'\"&F9939&\"'!\"&H9939),\"0\"),Notes!$B$5:$C$100,2,FALSE),\"\"))","v":""},"2d","$M$62","$N$62"]
[38865,{"$f":"Menu!$F$29","v":"X"},{"$f":"Menu!$J$29","v":2020},{"$f":"IF(ISBLANK(INDIRECT(\"'\"&F9940&\"'!\"&G9940)),\"\",INDIRECT(\"'\"&F9940&\"'!\"&G9940))","v":""},{"$f":"IF(ISBLANK(INDIRECT(\"'\"&F9940&\"'!\"&H9940)),\"\",IFERROR(VLOOKUP(TEXT(INDIRECT(\"'\"&F9940&\"'!\"&H9940),\"0\"),Notes!$B$5:$C$100,2,FALSE),\"\"))","v":""},"2d","$Q$62","$R$62"]
[38866,{"$f":"Menu!$F$29","v":"X"},{"$f":"Menu!$J$29","v":2020},{"$f":"IF(ISBLANK(INDIRECT(\"'\"&F9941&\"'!\"&G9941)),\"\",INDIRECT(\"'\"&F9941&\"'!\"&G9941))","v":""},{"$f":"IF(ISBLANK(INDIRECT(\"'\"&F9941&\"'!\"&H9941)),\"\",IFERROR(VLOOKUP(TEXT(INDIRECT(\"'\"&F9941&\"'!\"&H9941),\"0\"),Notes!$B$5:$C$100,2,FALSE),\"\"))","v":""},"2d","$U$62","$V$62"]
[38867,{"$f":"Menu!$F$29","v":"X"},{"$f":"Menu!$J$29","v":2020},{"$f":"IF(ISBLANK(INDIRECT(\"'\"&F9942&\"'!\"&G9942)),\"\",INDIRECT(\"'\"&F9942&\"'!\"&G9942))","v":""},{"$f":"IF(ISBLANK(INDIRECT(\"'\"&F9942&\"'!\"&H9942)),\"\",IFERROR(VLOOKUP(TEXT(INDIRECT(\"'\"&F9942&\"'!\"&H9942),\"0\"),Notes!$B$5:$C$100,2,FALSE),\"\"))","v":""},"2d","$S$62","$T$62"]
[38868,{"$f":"Menu!$F$29","v":"X"},{"$f":"Menu!$J$29","v":2020},{"$f":"IF(ISBLANK(INDIRECT(\"'\"&F9943&\"'!\"&G9943)),\"\",INDIRECT(\"'\"&F9943&\"'!\"&G9943))","v":""},{"$f":"IF(ISBLANK(INDIRECT(\"'\"&F9943&\"'!\"&H9943)),\"\",IFERROR(VLOOKUP(TEXT(INDIRECT(\"'\"&F9943&\"'!\"&H9943),\"0\"),Notes!$B$5:$C$100,2,FALSE),\"\"))","v":""},"2a","$K$62","$L$62"]
[38869,{"$f":"Menu!$F$29","v":"X"},{"$f":"Menu!$J$29","v":2020},{"$f":"IF(ISBLANK(INDIRECT(\"'\"&F9944&\"'!\"&G9944)),\"\",INDIRECT(\"'\"&F9944&\"'!\"&G9944))","v":""},{"$f":"IF(ISBLANK(INDIRECT(\"'\"&F9944&\"'!\"&H9944)),\"\",IFERROR(VLOOKUP(TEXT(INDIRECT(\"'\"&F9944&\"'!\"&H9944),\"0\"),Notes!$B$5:$C$100,2,FALSE),\"\"))","v":""},"2a","$O$62","$P$62"]
[38870,{"$f":"Menu!$F$29","v":"X"},{"$f":"Menu!$J$29","v":2020},{"$f":"IF(ISBLANK(INDIRECT(\"'\"&F9945&\"'!\"&G9945)),\"\",INDIRECT(\"'\"&F9945&\"'!\"&G9945))","v":""},{"$f":"IF(ISBLANK(INDIRECT(\"'\"&F9945&\"'!\"&H9945)),\"\",IFERROR(VLOOKUP(TEXT(INDIRECT(\"'\"&F9945&\"'!\"&H9945),\"0\"),Notes!$B$5:$C$100,2,FALSE),\"\"))","v":""},"2a","$M$62","$N$62"]
[38871,{"$f":"Menu!$F$29","v":"X"},{"$f":"Menu!$J$29","v":2020},{"$f":"IF(ISBLANK(INDIRECT(\"'\"&F9946&\"'!\"&G9946)),\"\",INDIRECT(\"'\"&F9946&\"'!\"&G9946))","v":""},{"$f":"IF(ISBLANK(INDIRECT(\"'\"&F9946&\"'!\"&H9946)),\"\",IFERROR(VLOOKUP(TEXT(INDIRECT(\"'\"&F9946&\"'!\"&H9946),\"0\"),Notes!$B$5:$C$100,2,FALSE),\"\"))","v":""},"2a","$E$62","$F$62"]
[38872,{"$f":"Menu!$F$29","v":"X"},{"$f":"Menu!$J$29","v":2020},{"$f":"IF(ISBLANK(INDIRECT(\"'\"&F9947&\"'!\"&G9947)),\"\",INDIRECT(\"'\"&F9947&\"'!\"&G9947))","v":""},{"$f":"IF(ISBLANK(INDIRECT(\"'\"&F9947&\"'!\"&H9947)),\"\",IFERROR(VLOOKUP(TEXT(INDIRECT(\"'\"&F9947&\"'!\"&H9947),\"0\"),Notes!$B$5:$C$100,2,FALSE),\"\"))","v":""},"2b","$K$61","$L$61"]
[38873,{"$f":"Menu!$F$29","v":"X"},{"$f":"Menu!$J$29","v":2020},{"$f":"IF(ISBLANK(INDIRECT(\"'\"&F9948&\"'!\"&G9948)),\"\",INDIRECT(\"'\"&F9948&\"'!\"&G9948))","v":""},{"$f":"IF(ISBLANK(INDIRECT(\"'\"&F9948&\"'!\"&H9948)),\"\",IFERROR(VLOOKUP(TEXT(INDIRECT(\"'\"&F9948&\"'!\"&H9948),\"0\"),Notes!$B$5:$C$100,2,FALSE),\"\"))","v":""},"2b","$O$61","$P$61"]
[38874,{"$f":"Menu!$F$29","v":"X"},{"$f":"Menu!$J$29","v":2020},{"$f":"IF(ISBLANK(INDIRECT(\"'\"&F9949&\"'!\"&G9949)),\"\",INDIRECT(\"'\"&F9949&\"'!\"&G9949))","v":""},{"$f":"IF(ISBLANK(INDIRECT(\"'\"&F9949&\"'!\"&H9949)),\"\",IFERROR(VLOOKUP(TEXT(INDIRECT(\"'\"&F9949&\"'!\"&H9949),\"0\"),Notes!$B$5:$C$100,2,FALSE),\"\"))","v":""},"2b","$M$61","$N$61"]
[38875,{"$f":"Menu!$F$29","v":"X"},{"$f":"Menu!$J$29","v":2020},{"$f":"IF(ISBLANK(INDIRECT(\"'\"&F9950&\"'!\"&G9950)),\"\",INDIRECT(\"'\"&F9950&\"'!\"&G9950))","v":""},{"$f":"IF(ISBLANK(INDIRECT(\"'\"&F9950&\"'!\"&H9950)),\"\",IFERROR(VLOOKUP(TEXT(INDIRECT(\"'\"&F9950&\"'!\"&H9950),\"0\"),Notes!$B$5:$C$100,2,FALSE),\"\"))","v":""},"2b","$Q$61","$R$61"]
[38876,{"$f":"Menu!$F$29","v":"X"},{"$f":"Menu!$J$29","v":2020},{"$f":"IF(ISBLANK(INDIRECT(\"'\"&F9951&\"'!\"&G9951)),\"\",INDIRECT(\"'\"&F9951&\"'!\"&G9951))","v":""},{"$f":"IF(ISBLANK(INDIRECT(\"'\"&F9951&\"'!\"&H9951)),\"\",IFERROR(VLOOKUP(TEXT(INDIRECT(\"'\"&F9951&\"'!\"&H9951),\"0\"),Notes!$B$5:$C$100,2,FALSE),\"\"))","v":""},"2b","$U$61","$V$61"]
[38877,{"$f":"Menu!$F$29","v":"X"},{"$f":"Menu!$J$29","v":2020},{"$f":"IF(ISBLANK(INDIRECT(\"'\"&F9952&\"'!\"&G9952)),\"\",INDIRECT(\"'\"&F9952&\"'!\"&G9952))","v":""},{"$f":"IF(ISBLANK(INDIRECT(\"'\"&F9952&\"'!\"&H9952)),\"\",IFERROR(VLOOKUP(TEXT(INDIRECT(\"'\"&F9952&\"'!\"&H9952),\"0\"),Notes!$B$5:$C$100,2,FALSE),\"\"))","v":""},"2b","$S$61","$T$61"]
[38881,{"$f":"Menu!$F$29","v":"X"},{"$f":"Menu!$J$29","v":2020},{"$f":"IF(ISBLANK(INDIRECT(\"'\"&F9953&\"'!\"&G9953)),\"\",INDIRECT(\"'\"&F9953&\"'!\"&G9953))","v":""},{"$f":"IF(ISBLANK(INDIRECT(\"'\"&F9953&\"'!\"&H9953)),\"\",IFERROR(VLOOKUP(TEXT(INDIRECT(\"'\"&F9953&\"'!\"&H9953),\"0\"),Notes!$B$5:$C$100,2,FALSE),\"\"))","v":""},"2a","$I$61","$J$61"]
[38882,{"$f":"Menu!$F$29","v":"X"},{"$f":"Menu!$J$29","v":2020},{"$f":"IF(ISBLANK(INDIRECT(\"'\"&F9954&\"'!\"&G9954)),\"\",INDIRECT(\"'\"&F9954&\"'!\"&G9954))","v":""},{"$f":"IF(ISBLANK(INDIRECT(\"'\"&F9954&\"'!\"&H9954)),\"\",IFERROR(VLOOKUP(TEXT(INDIRECT(\"'\"&F9954&\"'!\"&H9954),\"0\"),Notes!$B$5:$C$100,2,FALSE),\"\"))","v":""},"2c","$E$61","$F$61"]
[38883,{"$f":"Menu!$F$29","v":"X"},{"$f":"Menu!$J$29","v":2020},{"$f":"IF(ISBLANK(INDIRECT(\"'\"&F9955&\"'!\"&G9955)),\"\",INDIRECT(\"'\"&F9955&\"'!\"&G9955))","v":""},{"$f":"IF(ISBLANK(INDIRECT(\"'\"&F9955&\"'!\"&H9955)),\"\",IFERROR(VLOOKUP(TEXT(INDIRECT(\"'\"&F9955&\"'!\"&H9955),\"0\"),Notes!$B$5:$C$100,2,FALSE),\"\"))","v":""},"2c","$I$61","$J$61"]
[38884,{"$f":"Menu!$F$29","v":"X"},{"$f":"Menu!$J$29","v":2020},{"$f":"IF(ISBLANK(INDIRECT(\"'\"&F9956&\"'!\"&G9956)),\"\",INDIRECT(\"'\"&F9956&\"'!\"&G9956))","v":""},{"$f":"IF(ISBLANK(INDIRECT(\"'\"&F9956&\"'!\"&H9956)),\"\",IFERROR(VLOOKUP(TEXT(INDIRECT(\"'\"&F9956&\"'!\"&H9956),\"0\"),Notes!$B$5:$C$100,2,FALSE),\"\"))","v":""},"2c","$G$61","$H$61"]
[38888,{"$f":"Menu!$F$29","v":"X"},{"$f":"Menu!$J$29","v":2020},{"$f":"IF(ISBLANK(INDIRECT(\"'\"&F9957&\"'!\"&G9957)),\"\",INDIRECT(\"'\"&F9957&\"'!\"&G9957))","v":""},{"$f":"IF(ISBLANK(INDIRECT(\"'\"&F9957&\"'!\"&H9957)),\"\",IFERROR(VLOOKUP(TEXT(INDIRECT(\"'\"&F9957&\"'!\"&H9957),\"0\"),Notes!$B$5:$C$100,2,FALSE),\"\"))","v":""},"2c","$K$61","$L$61"]
[38889,{"$f":"Menu!$F$29","v":"X"},{"$f":"Menu!$J$29","v":2020},{"$f":"IF(ISBLANK(INDIRECT(\"'\"&F9958&\"'!\"&G9958)),\"\",INDIRECT(\"'\"&F9958&\"'!\"&G9958))","v":""},{"$f":"IF(ISBLANK(INDIRECT(\"'\"&F9958&\"'!\"&H9958)),\"\",IFERROR(VLOOKUP(TEXT(INDIRECT(\"'\"&F9958&\"'!\"&H9958),\"0\"),Notes!$B$5:$C$100,2,FALSE),\"\"))","v":""},"2c","$O$61","$P$61"]
[38890,{"$f":"Menu!$F$29","v":"X"},{"$f":"Menu!$J$29","v":2020},{"$f":"IF(ISBLANK(INDIRECT(\"'\"&F9959&\"'!\"&G9959)),\"\",INDIRECT(\"'\"&F9959&\"'!\"&G9959))","v":""},{"$f":"IF(ISBLANK(INDIRECT(\"'\"&F9959&\"'!\"&H9959)),\"\",IFERROR(VLOOKUP(TEXT(INDIRECT(\"'\"&F9959&\"'!\"&H9959),\"0\"),Notes!$B$5:$C$100,2,FALSE),\"\"))","v":""},"2c","$M$61","$N$61"]
[38891,{"$f":"Menu!$F$29","v":"X"},{"$f":"Menu!$J$29","v":2020},{"$f":"IF(ISBLANK(INDIRECT(\"'\"&F9960&\"'!\"&G9960)),\"\",INDIRECT(\"'\"&F9960&\"'!\"&G9960))","v":""},{"$f":"IF(ISBLANK(INDIRECT(\"'\"&F9960&\"'!\"&H9960)),\"\",IFERROR(VLOOKUP(TEXT(INDIRECT(\"'\"&F9960&\"'!\"&H9960),\"0\"),Notes!$B$5:$C$100,2,FALSE),\"\"))","v":""},"2c","$Q$61","$R$61"]
[38892,{"$f":"Menu!$F$29","v":"X"},{"$f":"Menu!$J$29","v":2020},{"$f":"IF(ISBLANK(INDIRECT(\"'\"&F9961&\"'!\"&G9961)),\"\",INDIRECT(\"'\"&F9961&\"'!\"&G9961))","v":""},{"$f":"IF(ISBLANK(INDIRECT(\"'\"&F9961&\"'!\"&H9961)),\"\",IFERROR(VLOOKUP(TEXT(INDIRECT(\"'\"&F9961&\"'!\"&H9961),\"0\"),Notes!$B$5:$C$100,2,FALSE),\"\"))","v":""},"2c","$U$61","$V$61"]
[38893,{"$f":"Menu!$F$29","v":"X"},{"$f":"Menu!$J$29","v":2020},{"$f":"IF(ISBLANK(INDIRECT(\"'\"&F9962&\"'!\"&G9962)),\"\",INDIRECT(\"'\"&F9962&\"'!\"&G9962))","v":""},{"$f":"IF(ISBLANK(INDIRECT(\"'\"&F9962&\"'!\"&H9962)),\"\",IFERROR(VLOOKUP(TEXT(INDIRECT(\"'\"&F9962&\"'!\"&H9962),\"0\"),Notes!$B$5:$C$100,2,FALSE),\"\"))","v":""},"2c","$S$61","$T$61"]
[38894,{"$f":"Menu!$F$29","v":"X"},{"$f":"Menu!$J$29","v":2020},{"$f":"IF(ISBLANK(INDIRECT(\"'\"&F9963&\"'!\"&G9963)),\"\",INDIRECT(\"'\"&F9963&\"'!\"&G9963))","v":""},{"$f":"IF(ISBLANK(INDIRECT(\"'\"&F9963&\"'!\"&H9963)),\"\",IFERROR(VLOOKUP(TEXT(INDIRECT(\"'\"&F9963&\"'!\"&H9963),\"0\"),Notes!$B$5:$C$100,2,FALSE),\"\"))","v":""},"2c","$W$61","$X$61"]
[38895,{"$f":"Menu!$F$29","v":"X"},{"$f":"Menu!$J$29","v":2020},{"$f":"IF(ISBLANK(INDIRECT(\"'\"&F9964&\"'!\"&G9964)),\"\",INDIRECT(\"'\"&F9964&\"'!\"&G9964))","v":""},{"$f":"IF(ISBLANK(INDIRECT(\"'\"&F9964&\"'!\"&H9964)),\"\",IFERROR(VLOOKUP(TEXT(INDIRECT(\"'\"&F9964&\"'!\"&H9964),\"0\"),Notes!$B$5:$C$100,2,FALSE),\"\"))","v":""},"2c","$AA$61","$AB$61"]
[38896,{"$f":"Menu!$F$29","v":"X"},{"$f":"Menu!$J$29","v":2020},{"$f":"IF(ISBLANK(INDIRECT(\"'\"&F9965&\"'!\"&G9965)),\"\",INDIRECT(\"'\"&F9965&\"'!\"&G9965))","v":""},{"$f":"IF(ISBLANK(INDIRECT(\"'\"&F9965&\"'!\"&H9965)),\"\",IFERROR(VLOOKUP(TEXT(INDIRECT(\"'\"&F9965&\"'!\"&H9965),\"0\"),Notes!$B$5:$C$100,2,FALSE),\"\"))","v":""},"2c","$Y$61","$Z$61"]
[38903,{"$f":"Menu!$F$29","v":"X"},{"$f":"Menu!$J$29","v":2020},{"$f":"IF(ISBLANK(INDIRECT(\"'\"&F9966&\"'!\"&G9966)),\"\",INDIRECT(\"'\"&F9966&\"'!\"&G9966))","v":""},{"$f":"IF(ISBLANK(INDIRECT(\"'\"&F9966&\"'!\"&H9966)),\"\",IFERROR(VLOOKUP(TEXT(INDIRECT(\"'\"&F9966&\"'!\"&H9966),\"0\"),Notes!$B$5:$C$100,2,FALSE),\"\"))","v":""},"2e","$BG$62","$BH$62"]
[38904,{"$f":"Menu!$F$29","v":"X"},{"$f":"Menu!$J$29","v":2020},{"$f":"IF(ISBLANK(INDIRECT(\"'\"&F9967&\"'!\"&G9967)),\"\",INDIRECT(\"'\"&F9967&\"'!\"&G9967))","v":""},{"$f":"IF(ISBLANK(INDIRECT(\"'\"&F9967&\"'!\"&H9967)),\"\",IFERROR(VLOOKUP(TEXT(INDIRECT(\"'\"&F9967&\"'!\"&H9967),\"0\"),Notes!$B$5:$C$100,2,FALSE),\"\"))","v":""},"2e","$BK$62","$BL$62"]
[38905,{"$f":"Menu!$F$29","v":"X"},{"$f":"Menu!$J$29","v":2020},{"$f":"IF(ISBLANK(INDIRECT(\"'\"&F9968&\"'!\"&G9968)),\"\",INDIRECT(\"'\"&F9968&\"'!\"&G9968))","v":""},{"$f":"IF(ISBLANK(INDIRECT(\"'\"&F9968&\"'!\"&H9968)),\"\",IFERROR(VLOOKUP(TEXT(INDIRECT(\"'\"&F9968&\"'!\"&H9968),\"0\"),Notes!$B$5:$C$100,2,FALSE),\"\"))","v":""},"2e","$BI$62","$BJ$62"]
[38906,{"$f":"Menu!$F$29","v":"X"},{"$f":"Menu!$J$29","v":2020},{"$f":"IF(ISBLANK(INDIRECT(\"'\"&F9969&\"'!\"&G9969)),\"\",INDIRECT(\"'\"&F9969&\"'!\"&G9969))","v":""},{"$f":"IF(ISBLANK(INDIRECT(\"'\"&F9969&\"'!\"&H9969)),\"\",IFERROR(VLOOKUP(TEXT(INDIRECT(\"'\"&F9969&\"'!\"&H9969),\"0\"),Notes!$B$5:$C$100,2,FALSE),\"\"))","v":""},"2e","$E$62","$F$62"]
[38907,{"$f":"Menu!$F$29","v":"X"},{"$f":"Menu!$J$29","v":2020},{"$f":"IF(ISBLANK(INDIRECT(\"'\"&F9970&\"'!\"&G9970)),\"\",INDIRECT(\"'\"&F9970&\"'!\"&G9970))","v":""},{"$f":"IF(ISBLANK(INDIRECT(\"'\"&F9970&\"'!\"&H9970)),\"\",IFERROR(VLOOKUP(TEXT(INDIRECT(\"'\"&F9970&\"'!\"&H9970),\"0\"),Notes!$B$5:$C$100,2,FALSE),\"\"))","v":""},"2e","$I$62","$J$62"]
[38908,{"$f":"Menu!$F$29","v":"X"},{"$f":"Menu!$J$29","v":2020},{"$f":"IF(ISBLANK(INDIRECT(\"'\"&F9971&\"'!\"&G9971)),\"\",INDIRECT(\"'\"&F9971&\"'!\"&G9971))","v":""},{"$f":"IF(ISBLANK(INDIRECT(\"'\"&F9971&\"'!\"&H9971)),\"\",IFERROR(VLOOKUP(TEXT(INDIRECT(\"'\"&F9971&\"'!\"&H9971),\"0\"),Notes!$B$5:$C$100,2,FALSE),\"\"))","v":""},"2e","$G$62","$H$62"]
[38909,{"$f":"Menu!$F$29","v":"X"},{"$f":"Menu!$J$29","v":2020},{"$f":"IF(ISBLANK(INDIRECT(\"'\"&F9972&\"'!\"&G9972)),\"\",INDIRECT(\"'\"&F9972&\"'!\"&G9972))","v":""},{"$f":"IF(ISBLANK(INDIRECT(\"'\"&F9972&\"'!\"&H9972)),\"\",IFERROR(VLOOKUP(TEXT(INDIRECT(\"'\"&F9972&\"'!\"&H9972),\"0\"),Notes!$B$5:$C$100,2,FALSE),\"\"))","v":""},"2e","$K$62","$L$62"]
[38910,{"$f":"Menu!$F$29","v":"X"},{"$f":"Menu!$J$29","v":2020},{"$f":"IF(ISBLANK(INDIRECT(\"'\"&F9973&\"'!\"&G9973)),\"\",INDIRECT(\"'\"&F9973&\"'!\"&G9973))","v":""},{"$f":"IF(ISBLANK(INDIRECT(\"'\"&F9973&\"'!\"&H9973)),\"\",IFERROR(VLOOKUP(TEXT(INDIRECT(\"'\"&F9973&\"'!\"&H9973),\"0\"),Notes!$B$5:$C$100,2,FALSE),\"\"))","v":""},"2e","$O$62","$P$62"]
[38911,{"$f":"Menu!$F$29","v":"X"},{"$f":"Menu!$J$29","v":2020},{"$f":"IF(ISBLANK(INDIRECT(\"'\"&F9974&\"'!\"&G9974)),\"\",INDIRECT(\"'\"&F9974&\"'!\"&G9974))","v":""},{"$f":"IF(ISBLANK(INDIRECT(\"'\"&F9974&\"'!\"&H9974)),\"\",IFERROR(VLOOKUP(TEXT(INDIRECT(\"'\"&F9974&\"'!\"&H9974),\"0\"),Notes!$B$5:$C$100,2,FALSE),\"\"))","v":""},"2e","$M$62","$N$62"]
[38912,{"$f":"Menu!$F$29","v":"X"},{"$f":"Menu!$J$29","v":2020},{"$f":"IF(ISBLANK(INDIRECT(\"'\"&F9975&\"'!\"&G9975)),\"\",INDIRECT(\"'\"&F9975&\"'!\"&G9975))","v":""},{"$f":"IF(ISBLANK(INDIRECT(\"'\"&F9975&\"'!\"&H9975)),\"\",IFERROR(VLOOKUP(TEXT(INDIRECT(\"'\"&F9975&\"'!\"&H9975),\"0\"),Notes!$B$5:$C$100,2,FALSE),\"\"))","v":""},"2e","$Q$62","$R$62"]
[38913,{"$f":"Menu!$F$29","v":"X"},{"$f":"Menu!$J$29","v":2020},{"$f":"IF(ISBLANK(INDIRECT(\"'\"&F9976&\"'!\"&G9976)),\"\",INDIRECT(\"'\"&F9976&\"'!\"&G9976))","v":""},{"$f":"IF(ISBLANK(INDIRECT(\"'\"&F9976&\"'!\"&H9976)),\"\",IFERROR(VLOOKUP(TEXT(INDIRECT(\"'\"&F9976&\"'!\"&H9976),\"0\"),Notes!$B$5:$C$100,2,FALSE),\"\"))","v":""},"2e","$U$62","$V$62"]
[38914,{"$f":"Menu!$F$29","v":"X"},{"$f":"Menu!$J$29","v":2020},{"$f":"IF(ISBLANK(INDIRECT(\"'\"&F9977&\"'!\"&G9977)),\"\",INDIRECT(\"'\"&F9977&\"'!\"&G9977))","v":""},{"$f":"IF(ISBLANK(INDIRECT(\"'\"&F9977&\"'!\"&H9977)),\"\",IFERROR(VLOOKUP(TEXT(INDIRECT(\"'\"&F9977&\"'!\"&H9977),\"0\"),Notes!$B$5:$C$100,2,FALSE),\"\"))","v":""},"2e","$S$62","$T$62"]
[38915,{"$f":"Menu!$F$29","v":"X"},{"$f":"Menu!$J$29","v":2020},{"$f":"IF(ISBLANK(INDIRECT(\"'\"&F9978&\"'!\"&G9978)),\"\",INDIRECT(\"'\"&F9978&\"'!\"&G9978))","v":""},{"$f":"IF(ISBLANK(INDIRECT(\"'\"&F9978&\"'!\"&H9978)),\"\",IFERROR(VLOOKUP(TEXT(INDIRECT(\"'\"&F9978&\"'!\"&H9978),\"0\"),Notes!$B$5:$C$100,2,FALSE),\"\"))","v":""},"2e","$W$62","$X$62"]
[38916,{"$f":"Menu!$F$29","v":"X"},{"$f":"Menu!$J$29","v":2020},{"$f":"IF(ISBLANK(INDIRECT(\"'\"&F9979&\"'!\"&G9979)),\"\",INDIRECT(\"'\"&F9979&\"'!\"&G9979))","v":""},{"$f":"IF(ISBLANK(INDIRECT(\"'\"&F9979&\"'!\"&H9979)),\"\",IFERROR(VLOOKUP(TEXT(INDIRECT(\"'\"&F9979&\"'!\"&H9979),\"0\"),Notes!$B$5:$C$100,2,FALSE),\"\"))","v":""},"2e","$AA$62","$AB$62"]
[38917,{"$f":"Menu!$F$29","v":"X"},{"$f":"Menu!$J$29","v":2020},{"$f":"IF(ISBLANK(INDIRECT(\"'\"&F9980&\"'!\"&G9980)),\"\",INDIRECT(\"'\"&F9980&\"'!\"&G9980))","v":""},{"$f":"IF(ISBLANK(INDIRECT(\"'\"&F9980&\"'!\"&H9980)),\"\",IFERROR(VLOOKUP(TEXT(INDIRECT(\"'\"&F9980&\"'!\"&H9980),\"0\"),Notes!$B$5:$C$100,2,FALSE),\"\"))","v":""},"2e","$Y$62","$Z$62"]
[38918,{"$f":"Menu!$F$29","v":"X"},{"$f":"Menu!$J$29","v":2020},{"$f":"IF(ISBLANK(INDIRECT(\"'\"&F9981&\"'!\"&G9981)),\"\",INDIRECT(\"'\"&F9981&\"'!\"&G9981))","v":""},{"$f":"IF(ISBLANK(INDIRECT(\"'\"&F9981&\"'!\"&H9981)),\"\",IFERROR(VLOOKUP(TEXT(INDIRECT(\"'\"&F9981&\"'!\"&H9981),\"0\"),Notes!$B$5:$C$100,2,FALSE),\"\"))","v":""},"2e","$AC$62","$AD$62"]
[38919,{"$f":"Menu!$F$29","v":"X"},{"$f":"Menu!$J$29","v":2020},{"$f":"IF(ISBLANK(INDIRECT(\"'\"&F9982&\"'!\"&G9982)),\"\",INDIRECT(\"'\"&F9982&\"'!\"&G9982))","v":""},{"$f":"IF(ISBLANK(INDIRECT(\"'\"&F9982&\"'!\"&H9982)),\"\",IFERROR(VLOOKUP(TEXT(INDIRECT(\"'\"&F9982&\"'!\"&H9982),\"0\"),Notes!$B$5:$C$100,2,FALSE),\"\"))","v":""},"2e","$AG$62","$AH$62"]
[38920,{"$f":"Menu!$F$29","v":"X"},{"$f":"Menu!$J$29","v":2020},{"$f":"IF(ISBLANK(INDIRECT(\"'\"&F9983&\"'!\"&G9983)),\"\",INDIRECT(\"'\"&F9983&\"'!\"&G9983))","v":""},{"$f":"IF(ISBLANK(INDIRECT(\"'\"&F9983&\"'!\"&H9983)),\"\",IFERROR(VLOOKUP(TEXT(INDIRECT(\"'\"&F9983&\"'!\"&H9983),\"0\"),Notes!$B$5:$C$100,2,FALSE),\"\"))","v":""},"2e","$AE$62","$AF$62"]
[38921,{"$f":"Menu!$F$29","v":"X"},{"$f":"Menu!$J$29","v":2020},{"$f":"IF(ISBLANK(INDIRECT(\"'\"&F9984&\"'!\"&G9984)),\"\",INDIRECT(\"'\"&F9984&\"'!\"&G9984))","v":""},{"$f":"IF(ISBLANK(INDIRECT(\"'\"&F9984&\"'!\"&H9984)),\"\",IFERROR(VLOOKUP(TEXT(INDIRECT(\"'\"&F9984&\"'!\"&H9984),\"0\"),Notes!$B$5:$C$100,2,FALSE),\"\"))","v":""},"2e","$AI$62","$AJ$62"]
[38922,{"$f":"Menu!$F$29","v":"X"},{"$f":"Menu!$J$29","v":2020},{"$f":"IF(ISBLANK(INDIRECT(\"'\"&F9985&\"'!\"&G9985)),\"\",INDIRECT(\"'\"&F9985&\"'!\"&G9985))","v":""},{"$f":"IF(ISBLANK(INDIRECT(\"'\"&F9985&\"'!\"&H9985)),\"\",IFERROR(VLOOKUP(TEXT(INDIRECT(\"'\"&F9985&\"'!\"&H9985),\"0\"),Notes!$B$5:$C$100,2,FALSE),\"\"))","v":""},"2e","$AM$62","$AN$62"]
[38923,{"$f":"Menu!$F$29","v":"X"},{"$f":"Menu!$J$29","v":2020},{"$f":"IF(ISBLANK(INDIRECT(\"'\"&F9986&\"'!\"&G9986)),\"\",INDIRECT(\"'\"&F9986&\"'!\"&G9986))","v":""},{"$f":"IF(ISBLANK(INDIRECT(\"'\"&F9986&\"'!\"&H9986)),\"\",IFERROR(VLOOKUP(TEXT(INDIRECT(\"'\"&F9986&\"'!\"&H9986),\"0\"),Notes!$B$5:$C$100,2,FALSE),\"\"))","v":""},"2e","$AK$62",{"$f":"IF(LEN(TRIM(MID(G9986,4,10)))-LEN(SUBSTITUTE(TRIM(MID(G9986,4,10)),\"$\",\"\"))=0,\"$\"&CHAR(CODE(MID(G9986,2,1))+1)&\"$\"&TRIM(MID(G9986,4,10)),\"$\"&MID(G9986,2,1)&CHAR(CODE(MID(G9986,3,1))+1)&\"$\"&TRIM(MID(G9986,5,11)))","v":"$AL$62"}]
[38924,{"$f":"Menu!$F$29","v":"X"},{"$f":"Menu!$J$29","v":2020},{"$f":"IF(ISBLANK(INDIRECT(\"'\"&F9987&\"'!\"&G9987)),\"\",INDIRECT(\"'\"&F9987&\"'!\"&G9987))","v":""},{"$f":"IF(ISBLANK(INDIRECT(\"'\"&F9987&\"'!\"&H9987)),\"\",IFERROR(VLOOKUP(TEXT(INDIRECT(\"'\"&F9987&\"'!\"&H9987),\"0\"),Notes!$B$5:$C$100,2,FALSE),\"\"))","v":""},"2e","$AO$62","$AP$62"]
[38925,{"$f":"Menu!$F$29","v":"X"},{"$f":"Menu!$J$29","v":2020},{"$f":"IF(ISBLANK(INDIRECT(\"'\"&F9988&\"'!\"&G9988)),\"\",INDIRECT(\"'\"&F9988&\"'!\"&G9988))","v":""},{"$f":"IF(ISBLANK(INDIRECT(\"'\"&F9988&\"'!\"&H9988)),\"\",IFERROR(VLOOKUP(TEXT(INDIRECT(\"'\"&F9988&\"'!\"&H9988),\"0\"),Notes!$B$5:$C$100,2,FALSE),\"\"))","v":""},"2e","$AS$62","$AT$62"]
[38926,{"$f":"Menu!$F$29","v":"X"},{"$f":"Menu!$J$29","v":2020},{"$f":"IF(ISBLANK(INDIRECT(\"'\"&F9989&\"'!\"&G9989)),\"\",INDIRECT(\"'\"&F9989&\"'!\"&G9989))","v":""},{"$f":"IF(ISBLANK(INDIRECT(\"'\"&F9989&\"'!\"&H9989)),\"\",IFERROR(VLOOKUP(TEXT(INDIRECT(\"'\"&F9989&\"'!\"&H9989),\"0\"),Notes!$B$5:$C$100,2,FALSE),\"\"))","v":""},"2e","$AQ$62","$AR$62"]
[38927,{"$f":"Menu!$F$29","v":"X"},{"$f":"Menu!$J$29","v":2020},{"$f":"IF(ISBLANK(INDIRECT(\"'\"&F9990&\"'!\"&G9990)),\"\",INDIRECT(\"'\"&F9990&\"'!\"&G9990))","v":""},{"$f":"IF(ISBLANK(INDIRECT(\"'\"&F9990&\"'!\"&H9990)),\"\",IFERROR(VLOOKUP(TEXT(INDIRECT(\"'\"&F9990&\"'!\"&H9990),\"0\"),Notes!$B$5:$C$100,2,FALSE),\"\"))","v":""},"2e","$AU$62","$AV$62"]
[38928,{"$f":"Menu!$F$29","v":"X"},{"$f":"Menu!$J$29","v":2020},{"$f":"IF(ISBLANK(INDIRECT(\"'\"&F9991&\"'!\"&G9991)),\"\",INDIRECT(\"'\"&F9991&\"'!\"&G9991))","v":""},{"$f":"IF(ISBLANK(INDIRECT(\"'\"&F9991&\"'!\"&H9991)),\"\",IFERROR(VLOOKUP(TEXT(INDIRECT(\"'\"&F9991&\"'!\"&H9991),\"0\"),Notes!$B$5:$C$100,2,FALSE),\"\"))","v":""},"2e","$AY$62","$AZ$62"]
[38929,{"$f":"Menu!$F$29","v":"X"},{"$f":"Menu!$J$29","v":2020},{"$f":"IF(ISBLANK(INDIRECT(\"'\"&F9992&\"'!\"&G9992)),\"\",INDIRECT(\"'\"&F9992&\"'!\"&G9992))","v":""},{"$f":"IF(ISBLANK(INDIRECT(\"'\"&F9992&\"'!\"&H9992)),\"\",IFERROR(VLOOKUP(TEXT(INDIRECT(\"'\"&F9992&\"'!\"&H9992),\"0\"),Notes!$B$5:$C$100,2,FALSE),\"\"))","v":""},"2e","$AW$62","$AX$62"]
[38930,{"$f":"Menu!$F$29","v":"X"},{"$f":"Menu!$J$29","v":2020},{"$f":"IF(ISBLANK(INDIRECT(\"'\"&F9993&\"'!\"&G9993)),\"\",INDIRECT(\"'\"&F9993&\"'!\"&G9993))","v":""},{"$f":"IF(ISBLANK(INDIRECT(\"'\"&F9993&\"'!\"&H9993)),\"\",IFERROR(VLOOKUP(TEXT(INDIRECT(\"'\"&F9993&\"'!\"&H9993),\"0\"),Notes!$B$5:$C$100,2,FALSE),\"\"))","v":""},"2e","$BA$62","$BB$62"]
[38931,{"$f":"Menu!$F$29","v":"X"},{"$f":"Menu!$J$29","v":2020},{"$f":"IF(ISBLANK(INDIRECT(\"'\"&F9994&\"'!\"&G9994)),\"\",INDIRECT(\"'\"&F9994&\"'!\"&G9994))","v":""},{"$f":"IF(ISBLANK(INDIRECT(\"'\"&F9994&\"'!\"&H9994)),\"\",IFERROR(VLOOKUP(TEXT(INDIRECT(\"'\"&F9994&\"'!\"&H9994),\"0\"),Notes!$B$5:$C$100,2,FALSE),\"\"))","v":""},"2e","$BE$62","$BF$62"]
[38932,{"$f":"Menu!$F$29","v":"X"},{"$f":"Menu!$J$29","v":2020},{"$f":"IF(ISBLANK(INDIRECT(\"'\"&F9995&\"'!\"&G9995)),\"\",INDIRECT(\"'\"&F9995&\"'!\"&G9995))","v":""},{"$f":"IF(ISBLANK(INDIRECT(\"'\"&F9995&\"'!\"&H9995)),\"\",IFERROR(VLOOKUP(TEXT(INDIRECT(\"'\"&F9995&\"'!\"&H9995),\"0\"),Notes!$B$5:$C$100,2,FALSE),\"\"))","v":""},"2e","$BC$62","$BD$62"]
[38933,{"$f":"Menu!$F$29","v":"X"},{"$f":"Menu!$J$29","v":2020},{"$f":"IF(ISBLANK(INDIRECT(\"'\"&F9996&\"'!\"&G9996)),\"\",INDIRECT(\"'\"&F9996&\"'!\"&G9996))","v":""},{"$f":"IF(ISBLANK(INDIRECT(\"'\"&F9996&\"'!\"&H9996)),\"\",IFERROR(VLOOKUP(TEXT(INDIRECT(\"'\"&F9996&\"'!\"&H9996),\"0\"),Notes!$B$5:$C$100,2,FALSE),\"\"))","v":""},"2b","$E$61","$F$61"]
[38934,{"$f":"Menu!$F$29","v":"X"},{"$f":"Menu!$J$29","v":2020},{"$f":"IF(ISBLANK(INDIRECT(\"'\"&F9997&\"'!\"&G9997)),\"\",INDIRECT(\"'\"&F9997&\"'!\"&G9997))","v":""},{"$f":"IF(ISBLANK(INDIRECT(\"'\"&F9997&\"'!\"&H9997)),\"\",IFERROR(VLOOKUP(TEXT(INDIRECT(\"'\"&F9997&\"'!\"&H9997),\"0\"),Notes!$B$5:$C$100,2,FALSE),\"\"))","v":""},"2b","$I$61","$J$61"]
[38935,{"$f":"Menu!$F$29","v":"X"},{"$f":"Menu!$J$29","v":2020},{"$f":"IF(ISBLANK(INDIRECT(\"'\"&F9998&\"'!\"&G9998)),\"\",INDIRECT(\"'\"&F9998&\"'!\"&G9998))","v":""},{"$f":"IF(ISBLANK(INDIRECT(\"'\"&F9998&\"'!\"&H9998)),\"\",IFERROR(VLOOKUP(TEXT(INDIRECT(\"'\"&F9998&\"'!\"&H9998),\"0\"),Notes!$B$5:$C$100,2,FALSE),\"\"))","v":""},"2b","$G$61","$H$61"]
[38936,{"$f":"Menu!$F$29","v":"X"},{"$f":"Menu!$J$29","v":2020},{"$f":"IF(ISBLANK(INDIRECT(\"'\"&F9999&\"'!\"&G9999)),\"\",INDIRECT(\"'\"&F9999&\"'!\"&G9999))","v":""},{"$f":"IF(ISBLANK(INDIRECT(\"'\"&F9999&\"'!\"&H9999)),\"\",IFERROR(VLOOKUP(TEXT(INDIRECT(\"'\"&F9999&\"'!\"&H9999),\"0\"),Notes!$B$5:$C$100,2,FALSE),\"\"))","v":""},"2a","$G$61","$H$61"]
[38937,{"$f":"Menu!$F$29","v":"X"},{"$f":"Menu!$J$29","v":2020},{"$f":"IF(ISBLANK(INDIRECT(\"'\"&F10000&\"'!\"&G10000)),\"\",INDIRECT(\"'\"&F10000&\"'!\"&G10000))","v":""},{"$f":"IF(ISBLANK(INDIRECT(\"'\"&F10000&\"'!\"&H10000)),\"\",IFERROR(VLOOKUP(TEXT(INDIRECT(\"'\"&F10000&\"'!\"&H10000),\"0\"),Notes!$B$5:$C$100,2,FALSE),\"\"))","v":""},"2b","$W$61","$X$61"]
[38938,{"$f":"Menu!$F$29","v":"X"},{"$f":"Menu!$J$29","v":2020},{"$f":"IF(ISBLANK(INDIRECT(\"'\"&F10001&\"'!\"&G10001)),\"\",INDIRECT(\"'\"&F10001&\"'!\"&G10001))","v":""},{"$f":"IF(ISBLANK(INDIRECT(\"'\"&F10001&\"'!\"&H10001)),\"\",IFERROR(VLOOKUP(TEXT(INDIRECT(\"'\"&F10001&\"'!\"&H10001),\"0\"),Notes!$B$5:$C$100,2,FALSE),\"\"))","v":""},"2b","$AA$61","$AB$61"]
[38939,{"$f":"Menu!$F$29","v":"X"},{"$f":"Menu!$J$29","v":2020},{"$f":"IF(ISBLANK(INDIRECT(\"'\"&F10002&\"'!\"&G10002)),\"\",INDIRECT(\"'\"&F10002&\"'!\"&G10002))","v":""},{"$f":"IF(ISBLANK(INDIRECT(\"'\"&F10002&\"'!\"&H10002)),\"\",IFERROR(VLOOKUP(TEXT(INDIRECT(\"'\"&F10002&\"'!\"&H10002),\"0\"),Notes!$B$5:$C$100,2,FALSE),\"\"))","v":""},"2b","$Y$61","$Z$61"]
[38940,{"$f":"Menu!$F$29","v":"X"},{"$f":"Menu!$J$29","v":2020},{"$f":"IF(ISBLANK(INDIRECT(\"'\"&F10003&\"'!\"&G10003)),\"\",INDIRECT(\"'\"&F10003&\"'!\"&G10003))","v":""},{"$f":"IF(ISBLANK(INDIRECT(\"'\"&F10003&\"'!\"&H10003)),\"\",IFERROR(VLOOKUP(TEXT(INDIRECT(\"'\"&F10003&\"'!\"&H10003),\"0\"),Notes!$B$5:$C$100,2,FALSE),\"\"))","v":""},"2d","$AC$61","$AD$61"]
[38941,{"$f":"Menu!$F$29","v":"X"},{"$f":"Menu!$J$29","v":2020},{"$f":"IF(ISBLANK(INDIRECT(\"'\"&F10004&\"'!\"&G10004)),\"\",INDIRECT(\"'\"&F10004&\"'!\"&G10004))","v":""},{"$f":"IF(ISBLANK(INDIRECT(\"'\"&F10004&\"'!\"&H10004)),\"\",IFERROR(VLOOKUP(TEXT(INDIRECT(\"'\"&F10004&\"'!\"&H10004),\"0\"),Notes!$B$5:$C$100,2,FALSE),\"\"))","v":""},"2d","$AG$61","$AH$61"]
[38942,{"$f":"Menu!$F$29","v":"X"},{"$f":"Menu!$J$29","v":2020},{"$f":"IF(ISBLANK(INDIRECT(\"'\"&F10005&\"'!\"&G10005)),\"\",INDIRECT(\"'\"&F10005&\"'!\"&G10005))","v":""},{"$f":"IF(ISBLANK(INDIRECT(\"'\"&F10005&\"'!\"&H10005)),\"\",IFERROR(VLOOKUP(TEXT(INDIRECT(\"'\"&F10005&\"'!\"&H10005),\"0\"),Notes!$B$5:$C$100,2,FALSE),\"\"))","v":""},"2d","$AE$61","$AF$61"]
[38943,{"$f":"Menu!$F$29","v":"X"},{"$f":"Menu!$J$29","v":2020},{"$f":"IF(ISBLANK(INDIRECT(\"'\"&F10006&\"'!\"&G10006)),\"\",INDIRECT(\"'\"&F10006&\"'!\"&G10006))","v":""},{"$f":"IF(ISBLANK(INDIRECT(\"'\"&F10006&\"'!\"&H10006)),\"\",IFERROR(VLOOKUP(TEXT(INDIRECT(\"'\"&F10006&\"'!\"&H10006),\"0\"),Notes!$B$5:$C$100,2,FALSE),\"\"))","v":""},"2d","$W$61","$X$61"]
[38944,{"$f":"Menu!$F$29","v":"X"},{"$f":"Menu!$J$29","v":2020},{"$f":"IF(ISBLANK(INDIRECT(\"'\"&F10007&\"'!\"&G10007)),\"\",INDIRECT(\"'\"&F10007&\"'!\"&G10007))","v":""},{"$f":"IF(ISBLANK(INDIRECT(\"'\"&F10007&\"'!\"&H10007)),\"\",IFERROR(VLOOKUP(TEXT(INDIRECT(\"'\"&F10007&\"'!\"&H10007),\"0\"),Notes!$B$5:$C$100,2,FALSE),\"\"))","v":""},"2d","$AA$61","$AB$61"]
[38945,{"$f":"Menu!$F$29","v":"X"},{"$f":"Menu!$J$29","v":2020},{"$f":"IF(ISBLANK(INDIRECT(\"'\"&F10008&\"'!\"&G10008)),\"\",INDIRECT(\"'\"&F10008&\"'!\"&G10008))","v":""},{"$f":"IF(ISBLANK(INDIRECT(\"'\"&F10008&\"'!\"&H10008)),\"\",IFERROR(VLOOKUP(TEXT(INDIRECT(\"'\"&F10008&\"'!\"&H10008),\"0\"),Notes!$B$5:$C$100,2,FALSE),\"\"))","v":""},"2d","$Y$61","$Z$61"]
[38946,{"$f":"Menu!$F$29","v":"X"},{"$f":"Menu!$J$29","v":2020},{"$f":"IF(ISBLANK(INDIRECT(\"'\"&F10009&\"'!\"&G10009)),\"\",INDIRECT(\"'\"&F10009&\"'!\"&G10009))","v":""},{"$f":"IF(ISBLANK(INDIRECT(\"'\"&F10009&\"'!\"&H10009)),\"\",IFERROR(VLOOKUP(TEXT(INDIRECT(\"'\"&F10009&\"'!\"&H10009),\"0\"),Notes!$B$5:$C$100,2,FALSE),\"\"))","v":""},"2d","$E$61","$F$61"]
[38947,{"$f":"Menu!$F$29","v":"X"},{"$f":"Menu!$J$29","v":2020},{"$f":"IF(ISBLANK(INDIRECT(\"'\"&F10010&\"'!\"&G10010)),\"\",INDIRECT(\"'\"&F10010&\"'!\"&G10010))","v":""},{"$f":"IF(ISBLANK(INDIRECT(\"'\"&F10010&\"'!\"&H10010)),\"\",IFERROR(VLOOKUP(TEXT(INDIRECT(\"'\"&F10010&\"'!\"&H10010),\"0\"),Notes!$B$5:$C$100,2,FALSE),\"\"))","v":""},"2d","$I$61","$J$61"]
[38948,{"$f":"Menu!$F$29","v":"X"},{"$f":"Menu!$J$29","v":2020},{"$f":"IF(ISBLANK(INDIRECT(\"'\"&F10011&\"'!\"&G10011)),\"\",INDIRECT(\"'\"&F10011&\"'!\"&G10011))","v":""},{"$f":"IF(ISBLANK(INDIRECT(\"'\"&F10011&\"'!\"&H10011)),\"\",IFERROR(VLOOKUP(TEXT(INDIRECT(\"'\"&F10011&\"'!\"&H10011),\"0\"),Notes!$B$5:$C$100,2,FALSE),\"\"))","v":""},"2d","$G$61","$H$61"]
[38949,{"$f":"Menu!$F$29","v":"X"},{"$f":"Menu!$J$29","v":2020},{"$f":"IF(ISBLANK(INDIRECT(\"'\"&F10012&\"'!\"&G10012)),\"\",INDIRECT(\"'\"&F10012&\"'!\"&G10012))","v":""},{"$f":"IF(ISBLANK(INDIRECT(\"'\"&F10012&\"'!\"&H10012)),\"\",IFERROR(VLOOKUP(TEXT(INDIRECT(\"'\"&F10012&\"'!\"&H10012),\"0\"),Notes!$B$5:$C$100,2,FALSE),\"\"))","v":""},"2a","$Q$61","$R$61"]
[38950,{"$f":"Menu!$F$29","v":"X"},{"$f":"Menu!$J$29","v":2020},{"$f":"IF(ISBLANK(INDIRECT(\"'\"&F10013&\"'!\"&G10013)),\"\",INDIRECT(\"'\"&F10013&\"'!\"&G10013))","v":""},{"$f":"IF(ISBLANK(INDIRECT(\"'\"&F10013&\"'!\"&H10013)),\"\",IFERROR(VLOOKUP(TEXT(INDIRECT(\"'\"&F10013&\"'!\"&H10013),\"0\"),Notes!$B$5:$C$100,2,FALSE),\"\"))","v":""},"2a","$U$61","$V$61"]
[38951,{"$f":"Menu!$F$29","v":"X"},{"$f":"Menu!$J$29","v":2020},{"$f":"IF(ISBLANK(INDIRECT(\"'\"&F10014&\"'!\"&G10014)),\"\",INDIRECT(\"'\"&F10014&\"'!\"&G10014))","v":""},{"$f":"IF(ISBLANK(INDIRECT(\"'\"&F10014&\"'!\"&H10014)),\"\",IFERROR(VLOOKUP(TEXT(INDIRECT(\"'\"&F10014&\"'!\"&H10014),\"0\"),Notes!$B$5:$C$100,2,FALSE),\"\"))","v":""},"2a","$S$61","$T$61"]
[38952,{"$f":"Menu!$F$29","v":"X"},{"$f":"Menu!$J$29","v":2020},{"$f":"IF(ISBLANK(INDIRECT(\"'\"&F10015&\"'!\"&G10015)),\"\",INDIRECT(\"'\"&F10015&\"'!\"&G10015))","v":""},{"$f":"IF(ISBLANK(INDIRECT(\"'\"&F10015&\"'!\"&H10015)),\"\",IFERROR(VLOOKUP(TEXT(INDIRECT(\"'\"&F10015&\"'!\"&H10015),\"0\"),Notes!$B$5:$C$100,2,FALSE),\"\"))","v":""},"2d","$K$61","$L$61"]
[38953,{"$f":"Menu!$F$29","v":"X"},{"$f":"Menu!$J$29","v":2020},{"$f":"IF(ISBLANK(INDIRECT(\"'\"&F10016&\"'!\"&G10016)),\"\",INDIRECT(\"'\"&F10016&\"'!\"&G10016))","v":""},{"$f":"IF(ISBLANK(INDIRECT(\"'\"&F10016&\"'!\"&H10016)),\"\",IFERROR(VLOOKUP(TEXT(INDIRECT(\"'\"&F10016&\"'!\"&H10016),\"0\"),Notes!$B$5:$C$100,2,FALSE),\"\"))","v":""},"2d","$O$61","$P$61"]
[38954,{"$f":"Menu!$F$29","v":"X"},{"$f":"Menu!$J$29","v":2020},{"$f":"IF(ISBLANK(INDIRECT(\"'\"&F10017&\"'!\"&G10017)),\"\",INDIRECT(\"'\"&F10017&\"'!\"&G10017))","v":""},{"$f":"IF(ISBLANK(INDIRECT(\"'\"&F10017&\"'!\"&H10017)),\"\",IFERROR(VLOOKUP(TEXT(INDIRECT(\"'\"&F10017&\"'!\"&H10017),\"0\"),Notes!$B$5:$C$100,2,FALSE),\"\"))","v":""},"2d","$M$61","$N$61"]
[38955,{"$f":"Menu!$F$29","v":"X"},{"$f":"Menu!$J$29","v":2020},{"$f":"IF(ISBLANK(INDIRECT(\"'\"&F10018&\"'!\"&G10018)),\"\",INDIRECT(\"'\"&F10018&\"'!\"&G10018))","v":""},{"$f":"IF(ISBLANK(INDIRECT(\"'\"&F10018&\"'!\"&H10018)),\"\",IFERROR(VLOOKUP(TEXT(INDIRECT(\"'\"&F10018&\"'!\"&H10018),\"0\"),Notes!$B$5:$C$100,2,FALSE),\"\"))","v":""},"2d","$Q$61","$R$61"]
[38956,{"$f":"Menu!$F$29","v":"X"},{"$f":"Menu!$J$29","v":2020},{"$f":"IF(ISBLANK(INDIRECT(\"'\"&F10019&\"'!\"&G10019)),\"\",INDIRECT(\"'\"&F10019&\"'!\"&G10019))","v":""},{"$f":"IF(ISBLANK(INDIRECT(\"'\"&F10019&\"'!\"&H10019)),\"\",IFERROR(VLOOKUP(TEXT(INDIRECT(\"'\"&F10019&\"'!\"&H10019),\"0\"),Notes!$B$5:$C$100,2,FALSE),\"\"))","v":""},"2d","$U$61","$V$61"]
[38957,{"$f":"Menu!$F$29","v":"X"},{"$f":"Menu!$J$29","v":2020},{"$f":"IF(ISBLANK(INDIRECT(\"'\"&F10020&\"'!\"&G10020)),\"\",INDIRECT(\"'\"&F10020&\"'!\"&G10020))","v":""},{"$f":"IF(ISBLANK(INDIRECT(\"'\"&F10020&\"'!\"&H10020)),\"\",IFERROR(VLOOKUP(TEXT(INDIRECT(\"'\"&F10020&\"'!\"&H10020),\"0\"),Notes!$B$5:$C$100,2,FALSE),\"\"))","v":""},"2d","$S$61","$T$61"]
[38958,{"$f":"Menu!$F$29","v":"X"},{"$f":"Menu!$J$29","v":2020},{"$f":"IF(ISBLANK(INDIRECT(\"'\"&F10021&\"'!\"&G10021)),\"\",INDIRECT(\"'\"&F10021&\"'!\"&G10021))","v":""},{"$f":"IF(ISBLANK(INDIRECT(\"'\"&F10021&\"'!\"&H10021)),\"\",IFERROR(VLOOKUP(TEXT(INDIRECT(\"'\"&F10021&\"'!\"&H10021),\"0\"),Notes!$B$5:$C$100,2,FALSE),\"\"))","v":""},"2a","$K$61","$L$61"]
[38959,{"$f":"Menu!$F$29","v":"X"},{"$f":"Menu!$J$29","v":2020},{"$f":"IF(ISBLANK(INDIRECT(\"'\"&F10022&\"'!\"&G10022)),\"\",INDIRECT(\"'\"&F10022&\"'!\"&G10022))","v":""},{"$f":"IF(ISBLANK(INDIRECT(\"'\"&F10022&\"'!\"&H10022)),\"\",IFERROR(VLOOKUP(TEXT(INDIRECT(\"'\"&F10022&\"'!\"&H10022),\"0\"),Notes!$B$5:$C$100,2,FALSE),\"\"))","v":""},"2a","$O$61","$P$61"]
[38960,{"$f":"Menu!$F$29","v":"X"},{"$f":"Menu!$J$29","v":2020},{"$f":"IF(ISBLANK(INDIRECT(\"'\"&F10023&\"'!\"&G10023)),\"\",INDIRECT(\"'\"&F10023&\"'!\"&G10023))","v":""},{"$f":"IF(ISBLANK(INDIRECT(\"'\"&F10023&\"'!\"&H10023)),\"\",IFERROR(VLOOKUP(TEXT(INDIRECT(\"'\"&F10023&\"'!\"&H10023),\"0\"),Notes!$B$5:$C$100,2,FALSE),\"\"))","v":""},"2a","$M$61","$N$61"]
[38961,{"$f":"Menu!$F$29","v":"X"},{"$f":"Menu!$J$29","v":2020},{"$f":"IF(ISBLANK(INDIRECT(\"'\"&F10024&\"'!\"&G10024)),\"\",INDIRECT(\"'\"&F10024&\"'!\"&G10024))","v":""},{"$f":"IF(ISBLANK(INDIRECT(\"'\"&F10024&\"'!\"&H10024)),\"\",IFERROR(VLOOKUP(TEXT(INDIRECT(\"'\"&F10024&\"'!\"&H10024),\"0\"),Notes!$B$5:$C$100,2,FALSE),\"\"))","v":""},"2a","$E$61","$F$61"]
[34902,{"$f":"Menu!$F$29","v":"X"},{"$f":"Menu!$J$29","v":2020},{"$f":"IF(ISBLANK(INDIRECT(\"'\"&F10025&\"'!\"&G10025)),\"\",INDIRECT(\"'\"&F10025&\"'!\"&G10025))","v":""},{"$f":"IF(ISBLANK(INDIRECT(\"'\"&F10025&\"'!\"&H10025)),\"\",IFERROR(VLOOKUP(TEXT(INDIRECT(\"'\"&F10025&\"'!\"&H10025),\"0\"),Notes!$B$5:$C$100,2,FALSE),\"\"))","v":""},"2b","$K$23","$L$23"]
[35772,{"$f":"Menu!$F$29","v":"X"},{"$f":"Menu!$J$29","v":2020},{"$f":"IF(ISBLANK(INDIRECT(\"'\"&F10026&\"'!\"&G10026)),\"\",INDIRECT(\"'\"&F10026&\"'!\"&G10026))","v":""},{"$f":"IF(ISBLANK(INDIRECT(\"'\"&F10026&\"'!\"&H10026)),\"\",IFERROR(VLOOKUP(TEXT(INDIRECT(\"'\"&F10026&\"'!\"&H10026),\"0\"),Notes!$B$5:$C$100,2,FALSE),\"\"))","v":""},"2b","$O$23","$P$23"]
[35337,{"$f":"Menu!$F$29","v":"X"},{"$f":"Menu!$J$29","v":2020},{"$f":"IF(ISBLANK(INDIRECT(\"'\"&F10027&\"'!\"&G10027)),\"\",INDIRECT(\"'\"&F10027&\"'!\"&G10027))","v":""},{"$f":"IF(ISBLANK(INDIRECT(\"'\"&F10027&\"'!\"&H10027)),\"\",IFERROR(VLOOKUP(TEXT(INDIRECT(\"'\"&F10027&\"'!\"&H10027),\"0\"),Notes!$B$5:$C$100,2,FALSE),\"\"))","v":""},"2b","$M$23","$N$23"]
[34917,{"$f":"Menu!$F$29","v":"X"},{"$f":"Menu!$J$29","v":2020},{"$f":"IF(ISBLANK(INDIRECT(\"'\"&F10028&\"'!\"&G10028)),\"\",INDIRECT(\"'\"&F10028&\"'!\"&G10028))","v":""},{"$f":"IF(ISBLANK(INDIRECT(\"'\"&F10028&\"'!\"&H10028)),\"\",IFERROR(VLOOKUP(TEXT(INDIRECT(\"'\"&F10028&\"'!\"&H10028),\"0\"),Notes!$B$5:$C$100,2,FALSE),\"\"))","v":""},"2b","$Q$23","$R$23"]
[35787,{"$f":"Menu!$F$29","v":"X"},{"$f":"Menu!$J$29","v":2020},{"$f":"IF(ISBLANK(INDIRECT(\"'\"&F10029&\"'!\"&G10029)),\"\",INDIRECT(\"'\"&F10029&\"'!\"&G10029))","v":""},{"$f":"IF(ISBLANK(INDIRECT(\"'\"&F10029&\"'!\"&H10029)),\"\",IFERROR(VLOOKUP(TEXT(INDIRECT(\"'\"&F10029&\"'!\"&H10029),\"0\"),Notes!$B$5:$C$100,2,FALSE),\"\"))","v":""},"2b","$U$23","$V$23"]
[35352,{"$f":"Menu!$F$29","v":"X"},{"$f":"Menu!$J$29","v":2020},{"$f":"IF(ISBLANK(INDIRECT(\"'\"&F10030&\"'!\"&G10030)),\"\",INDIRECT(\"'\"&F10030&\"'!\"&G10030))","v":""},{"$f":"IF(ISBLANK(INDIRECT(\"'\"&F10030&\"'!\"&H10030)),\"\",IFERROR(VLOOKUP(TEXT(INDIRECT(\"'\"&F10030&\"'!\"&H10030),\"0\"),Notes!$B$5:$C$100,2,FALSE),\"\"))","v":""},"2b","$S$23","$T$23"]
[34722,{"$f":"Menu!$F$29","v":"X"},{"$f":"Menu!$J$29","v":2020},{"$f":"IF(ISBLANK(INDIRECT(\"'\"&F10031&\"'!\"&G10031)),\"\",INDIRECT(\"'\"&F10031&\"'!\"&G10031))","v":""},{"$f":"IF(ISBLANK(INDIRECT(\"'\"&F10031&\"'!\"&H10031)),\"\",IFERROR(VLOOKUP(TEXT(INDIRECT(\"'\"&F10031&\"'!\"&H10031),\"0\"),Notes!$B$5:$C$100,2,FALSE),\"\"))","v":""},"2c","$E$23","$F$23"]
[35592,{"$f":"Menu!$F$29","v":"X"},{"$f":"Menu!$J$29","v":2020},{"$f":"IF(ISBLANK(INDIRECT(\"'\"&F10032&\"'!\"&G10032)),\"\",INDIRECT(\"'\"&F10032&\"'!\"&G10032))","v":""},{"$f":"IF(ISBLANK(INDIRECT(\"'\"&F10032&\"'!\"&H10032)),\"\",IFERROR(VLOOKUP(TEXT(INDIRECT(\"'\"&F10032&\"'!\"&H10032),\"0\"),Notes!$B$5:$C$100,2,FALSE),\"\"))","v":""},"2c","$I$23","$J$23"]
[35157,{"$f":"Menu!$F$29","v":"X"},{"$f":"Menu!$J$29","v":2020},{"$f":"IF(ISBLANK(INDIRECT(\"'\"&F10033&\"'!\"&G10033)),\"\",INDIRECT(\"'\"&F10033&\"'!\"&G10033))","v":""},{"$f":"IF(ISBLANK(INDIRECT(\"'\"&F10033&\"'!\"&H10033)),\"\",IFERROR(VLOOKUP(TEXT(INDIRECT(\"'\"&F10033&\"'!\"&H10033),\"0\"),Notes!$B$5:$C$100,2,FALSE),\"\"))","v":""},"2c","$G$23","$H$23"]
[34737,{"$f":"Menu!$F$29","v":"X"},{"$f":"Menu!$J$29","v":2020},{"$f":"IF(ISBLANK(INDIRECT(\"'\"&F10034&\"'!\"&G10034)),\"\",INDIRECT(\"'\"&F10034&\"'!\"&G10034))","v":""},{"$f":"IF(ISBLANK(INDIRECT(\"'\"&F10034&\"'!\"&H10034)),\"\",IFERROR(VLOOKUP(TEXT(INDIRECT(\"'\"&F10034&\"'!\"&H10034),\"0\"),Notes!$B$5:$C$100,2,FALSE),\"\"))","v":""},"2c","$K$23","$L$23"]
[35607,{"$f":"Menu!$F$29","v":"X"},{"$f":"Menu!$J$29","v":2020},{"$f":"IF(ISBLANK(INDIRECT(\"'\"&F10035&\"'!\"&G10035)),\"\",INDIRECT(\"'\"&F10035&\"'!\"&G10035))","v":""},{"$f":"IF(ISBLANK(INDIRECT(\"'\"&F10035&\"'!\"&H10035)),\"\",IFERROR(VLOOKUP(TEXT(INDIRECT(\"'\"&F10035&\"'!\"&H10035),\"0\"),Notes!$B$5:$C$100,2,FALSE),\"\"))","v":""},"2c","$O$23","$P$23"]
[35172,{"$f":"Menu!$F$29","v":"X"},{"$f":"Menu!$J$29","v":2020},{"$f":"IF(ISBLANK(INDIRECT(\"'\"&F10036&\"'!\"&G10036)),\"\",INDIRECT(\"'\"&F10036&\"'!\"&G10036))","v":""},{"$f":"IF(ISBLANK(INDIRECT(\"'\"&F10036&\"'!\"&H10036)),\"\",IFERROR(VLOOKUP(TEXT(INDIRECT(\"'\"&F10036&\"'!\"&H10036),\"0\"),Notes!$B$5:$C$100,2,FALSE),\"\"))","v":""},"2c","$M$23","$N$23"]
[34767,{"$f":"Menu!$F$29","v":"X"},{"$f":"Menu!$J$29","v":2020},{"$f":"IF(ISBLANK(INDIRECT(\"'\"&F10037&\"'!\"&G10037)),\"\",INDIRECT(\"'\"&F10037&\"'!\"&G10037))","v":""},{"$f":"IF(ISBLANK(INDIRECT(\"'\"&F10037&\"'!\"&H10037)),\"\",IFERROR(VLOOKUP(TEXT(INDIRECT(\"'\"&F10037&\"'!\"&H10037),\"0\"),Notes!$B$5:$C$100,2,FALSE),\"\"))","v":""},"2c","$Q$23","$R$23"]
[35637,{"$f":"Menu!$F$29","v":"X"},{"$f":"Menu!$J$29","v":2020},{"$f":"IF(ISBLANK(INDIRECT(\"'\"&F10038&\"'!\"&G10038)),\"\",INDIRECT(\"'\"&F10038&\"'!\"&G10038))","v":""},{"$f":"IF(ISBLANK(INDIRECT(\"'\"&F10038&\"'!\"&H10038)),\"\",IFERROR(VLOOKUP(TEXT(INDIRECT(\"'\"&F10038&\"'!\"&H10038),\"0\"),Notes!$B$5:$C$100,2,FALSE),\"\"))","v":""},"2c","$U$23","$V$23"]
[35202,{"$f":"Menu!$F$29","v":"X"},{"$f":"Menu!$J$29","v":2020},{"$f":"IF(ISBLANK(INDIRECT(\"'\"&F10039&\"'!\"&G10039)),\"\",INDIRECT(\"'\"&F10039&\"'!\"&G10039))","v":""},{"$f":"IF(ISBLANK(INDIRECT(\"'\"&F10039&\"'!\"&H10039)),\"\",IFERROR(VLOOKUP(TEXT(INDIRECT(\"'\"&F10039&\"'!\"&H10039),\"0\"),Notes!$B$5:$C$100,2,FALSE),\"\"))","v":""},"2c","$S$23","$T$23"]
[34782,{"$f":"Menu!$F$29","v":"X"},{"$f":"Menu!$J$29","v":2020},{"$f":"IF(ISBLANK(INDIRECT(\"'\"&F10040&\"'!\"&G10040)),\"\",INDIRECT(\"'\"&F10040&\"'!\"&G10040))","v":""},{"$f":"IF(ISBLANK(INDIRECT(\"'\"&F10040&\"'!\"&H10040)),\"\",IFERROR(VLOOKUP(TEXT(INDIRECT(\"'\"&F10040&\"'!\"&H10040),\"0\"),Notes!$B$5:$C$100,2,FALSE),\"\"))","v":""},"2c","$W$23","$X$23"]
[35652,{"$f":"Menu!$F$29","v":"X"},{"$f":"Menu!$J$29","v":2020},{"$f":"IF(ISBLANK(INDIRECT(\"'\"&F10041&\"'!\"&G10041)),\"\",INDIRECT(\"'\"&F10041&\"'!\"&G10041))","v":""},{"$f":"IF(ISBLANK(INDIRECT(\"'\"&F10041&\"'!\"&H10041)),\"\",IFERROR(VLOOKUP(TEXT(INDIRECT(\"'\"&F10041&\"'!\"&H10041),\"0\"),Notes!$B$5:$C$100,2,FALSE),\"\"))","v":""},"2c","$AA$23","$AB$23"]
[35217,{"$f":"Menu!$F$29","v":"X"},{"$f":"Menu!$J$29","v":2020},{"$f":"IF(ISBLANK(INDIRECT(\"'\"&F10042&\"'!\"&G10042)),\"\",INDIRECT(\"'\"&F10042&\"'!\"&G10042))","v":""},{"$f":"IF(ISBLANK(INDIRECT(\"'\"&F10042&\"'!\"&H10042)),\"\",IFERROR(VLOOKUP(TEXT(INDIRECT(\"'\"&F10042&\"'!\"&H10042),\"0\"),Notes!$B$5:$C$100,2,FALSE),\"\"))","v":""},"2c","$Y$23","$Z$23"]
[34977,{"$f":"Menu!$F$29","v":"X"},{"$f":"Menu!$J$29","v":2020},{"$f":"IF(ISBLANK(INDIRECT(\"'\"&F10043&\"'!\"&G10043)),\"\",INDIRECT(\"'\"&F10043&\"'!\"&G10043))","v":""},{"$f":"IF(ISBLANK(INDIRECT(\"'\"&F10043&\"'!\"&H10043)),\"\",IFERROR(VLOOKUP(TEXT(INDIRECT(\"'\"&F10043&\"'!\"&H10043),\"0\"),Notes!$B$5:$C$100,2,FALSE),\"\"))","v":""},"2e","$BG$24","$BH$24"]
[35847,{"$f":"Menu!$F$29","v":"X"},{"$f":"Menu!$J$29","v":2020},{"$f":"IF(ISBLANK(INDIRECT(\"'\"&F10044&\"'!\"&G10044)),\"\",INDIRECT(\"'\"&F10044&\"'!\"&G10044))","v":""},{"$f":"IF(ISBLANK(INDIRECT(\"'\"&F10044&\"'!\"&H10044)),\"\",IFERROR(VLOOKUP(TEXT(INDIRECT(\"'\"&F10044&\"'!\"&H10044),\"0\"),Notes!$B$5:$C$100,2,FALSE),\"\"))","v":""},"2e","$BK$24","$BL$24"]
[35412,{"$f":"Menu!$F$29","v":"X"},{"$f":"Menu!$J$29","v":2020},{"$f":"IF(ISBLANK(INDIRECT(\"'\"&F10045&\"'!\"&G10045)),\"\",INDIRECT(\"'\"&F10045&\"'!\"&G10045))","v":""},{"$f":"IF(ISBLANK(INDIRECT(\"'\"&F10045&\"'!\"&H10045)),\"\",IFERROR(VLOOKUP(TEXT(INDIRECT(\"'\"&F10045&\"'!\"&H10045),\"0\"),Notes!$B$5:$C$100,2,FALSE),\"\"))","v":""},"2e","$BI$24","$BJ$24"]
[34992,{"$f":"Menu!$F$29","v":"X"},{"$f":"Menu!$J$29","v":2020},{"$f":"IF(ISBLANK(INDIRECT(\"'\"&F10046&\"'!\"&G10046)),\"\",INDIRECT(\"'\"&F10046&\"'!\"&G10046))","v":""},{"$f":"IF(ISBLANK(INDIRECT(\"'\"&F10046&\"'!\"&H10046)),\"\",IFERROR(VLOOKUP(TEXT(INDIRECT(\"'\"&F10046&\"'!\"&H10046),\"0\"),Notes!$B$5:$C$100,2,FALSE),\"\"))","v":""},"2e","$E$24","$F$24"]
[35862,{"$f":"Menu!$F$29","v":"X"},{"$f":"Menu!$J$29","v":2020},{"$f":"IF(ISBLANK(INDIRECT(\"'\"&F10047&\"'!\"&G10047)),\"\",INDIRECT(\"'\"&F10047&\"'!\"&G10047))","v":""},{"$f":"IF(ISBLANK(INDIRECT(\"'\"&F10047&\"'!\"&H10047)),\"\",IFERROR(VLOOKUP(TEXT(INDIRECT(\"'\"&F10047&\"'!\"&H10047),\"0\"),Notes!$B$5:$C$100,2,FALSE),\"\"))","v":""},"2e","$I$24","$J$24"]
[35427,{"$f":"Menu!$F$29","v":"X"},{"$f":"Menu!$J$29","v":2020},{"$f":"IF(ISBLANK(INDIRECT(\"'\"&F10048&\"'!\"&G10048)),\"\",INDIRECT(\"'\"&F10048&\"'!\"&G10048))","v":""},{"$f":"IF(ISBLANK(INDIRECT(\"'\"&F10048&\"'!\"&H10048)),\"\",IFERROR(VLOOKUP(TEXT(INDIRECT(\"'\"&F10048&\"'!\"&H10048),\"0\"),Notes!$B$5:$C$100,2,FALSE),\"\"))","v":""},"2e","$G$24","$H$24"]
[35007,{"$f":"Menu!$F$29","v":"X"},{"$f":"Menu!$J$29","v":2020},{"$f":"IF(ISBLANK(INDIRECT(\"'\"&F10049&\"'!\"&G10049)),\"\",INDIRECT(\"'\"&F10049&\"'!\"&G10049))","v":""},{"$f":"IF(ISBLANK(INDIRECT(\"'\"&F10049&\"'!\"&H10049)),\"\",IFERROR(VLOOKUP(TEXT(INDIRECT(\"'\"&F10049&\"'!\"&H10049),\"0\"),Notes!$B$5:$C$100,2,FALSE),\"\"))","v":""},"2e","$K$24","$L$24"]
[35877,{"$f":"Menu!$F$29","v":"X"},{"$f":"Menu!$J$29","v":2020},{"$f":"IF(ISBLANK(INDIRECT(\"'\"&F10050&\"'!\"&G10050)),\"\",INDIRECT(\"'\"&F10050&\"'!\"&G10050))","v":""},{"$f":"IF(ISBLANK(INDIRECT(\"'\"&F10050&\"'!\"&H10050)),\"\",IFERROR(VLOOKUP(TEXT(INDIRECT(\"'\"&F10050&\"'!\"&H10050),\"0\"),Notes!$B$5:$C$100,2,FALSE),\"\"))","v":""},"2e","$O$24",{"$f":"IF(LEN(TRIM(MID(G10050,4,10)))-LEN(SUBSTITUTE(TRIM(MID(G10050,4,10)),\"$\",\"\"))=0,\"$\"&CHAR(CODE(MID(G10050,2,1))+1)&\"$\"&TRIM(MID(G10050,4,10)),\"$\"&MID(G10050,2,1)&CHAR(CODE(MID(G10050,3,1))+1)&\"$\"&TRIM(MID(G10050,5,11)))","v":"$P$24"}]
[35442,{"$f":"Menu!$F$29","v":"X"},{"$f":"Menu!$J$29","v":2020},{"$f":"IF(ISBLANK(INDIRECT(\"'\"&F10051&\"'!\"&G10051)),\"\",INDIRECT(\"'\"&F10051&\"'!\"&G10051))","v":""},{"$f":"IF(ISBLANK(INDIRECT(\"'\"&F10051&\"'!\"&H10051)),\"\",IFERROR(VLOOKUP(TEXT(INDIRECT(\"'\"&F10051&\"'!\"&H10051),\"0\"),Notes!$B$5:$C$100,2,FALSE),\"\"))","v":""},"2e","$M$24","$N$24"]
[35022,{"$f":"Menu!$F$29","v":"X"},{"$f":"Menu!$J$29","v":2020},{"$f":"IF(ISBLANK(INDIRECT(\"'\"&F10052&\"'!\"&G10052)),\"\",INDIRECT(\"'\"&F10052&\"'!\"&G10052))","v":""},{"$f":"IF(ISBLANK(INDIRECT(\"'\"&F10052&\"'!\"&H10052)),\"\",IFERROR(VLOOKUP(TEXT(INDIRECT(\"'\"&F10052&\"'!\"&H10052),\"0\"),Notes!$B$5:$C$100,2,FALSE),\"\"))","v":""},"2e","$Q$24","$R$24"]
[35892,{"$f":"Menu!$F$29","v":"X"},{"$f":"Menu!$J$29","v":2020},{"$f":"IF(ISBLANK(INDIRECT(\"'\"&F10053&\"'!\"&G10053)),\"\",INDIRECT(\"'\"&F10053&\"'!\"&G10053))","v":""},{"$f":"IF(ISBLANK(INDIRECT(\"'\"&F10053&\"'!\"&H10053)),\"\",IFERROR(VLOOKUP(TEXT(INDIRECT(\"'\"&F10053&\"'!\"&H10053),\"0\"),Notes!$B$5:$C$100,2,FALSE),\"\"))","v":""},"2e","$U$24","$V$24"]
[35457,{"$f":"Menu!$F$29","v":"X"},{"$f":"Menu!$J$29","v":2020},{"$f":"IF(ISBLANK(INDIRECT(\"'\"&F10054&\"'!\"&G10054)),\"\",INDIRECT(\"'\"&F10054&\"'!\"&G10054))","v":""},{"$f":"IF(ISBLANK(INDIRECT(\"'\"&F10054&\"'!\"&H10054)),\"\",IFERROR(VLOOKUP(TEXT(INDIRECT(\"'\"&F10054&\"'!\"&H10054),\"0\"),Notes!$B$5:$C$100,2,FALSE),\"\"))","v":""},"2e","$S$24","$T$24"]
[35037,{"$f":"Menu!$F$29","v":"X"},{"$f":"Menu!$J$29","v":2020},{"$f":"IF(ISBLANK(INDIRECT(\"'\"&F10055&\"'!\"&G10055)),\"\",INDIRECT(\"'\"&F10055&\"'!\"&G10055))","v":""},{"$f":"IF(ISBLANK(INDIRECT(\"'\"&F10055&\"'!\"&H10055)),\"\",IFERROR(VLOOKUP(TEXT(INDIRECT(\"'\"&F10055&\"'!\"&H10055),\"0\"),Notes!$B$5:$C$100,2,FALSE),\"\"))","v":""},"2e","$W$24","$X$24"]
[35907,{"$f":"Menu!$F$29","v":"X"},{"$f":"Menu!$J$29","v":2020},{"$f":"IF(ISBLANK(INDIRECT(\"'\"&F10056&\"'!\"&G10056)),\"\",INDIRECT(\"'\"&F10056&\"'!\"&G10056))","v":""},{"$f":"IF(ISBLANK(INDIRECT(\"'\"&F10056&\"'!\"&H10056)),\"\",IFERROR(VLOOKUP(TEXT(INDIRECT(\"'\"&F10056&\"'!\"&H10056),\"0\"),Notes!$B$5:$C$100,2,FALSE),\"\"))","v":""},"2e","$AA$24","$AB$24"]
[35472,{"$f":"Menu!$F$29","v":"X"},{"$f":"Menu!$J$29","v":2020},{"$f":"IF(ISBLANK(INDIRECT(\"'\"&F10057&\"'!\"&G10057)),\"\",INDIRECT(\"'\"&F10057&\"'!\"&G10057))","v":""},{"$f":"IF(ISBLANK(INDIRECT(\"'\"&F10057&\"'!\"&H10057)),\"\",IFERROR(VLOOKUP(TEXT(INDIRECT(\"'\"&F10057&\"'!\"&H10057),\"0\"),Notes!$B$5:$C$100,2,FALSE),\"\"))","v":""},"2e","$Y$24","$Z$24"]
[35052,{"$f":"Menu!$F$29","v":"X"},{"$f":"Menu!$J$29","v":2020},{"$f":"IF(ISBLANK(INDIRECT(\"'\"&F10058&\"'!\"&G10058)),\"\",INDIRECT(\"'\"&F10058&\"'!\"&G10058))","v":""},{"$f":"IF(ISBLANK(INDIRECT(\"'\"&F10058&\"'!\"&H10058)),\"\",IFERROR(VLOOKUP(TEXT(INDIRECT(\"'\"&F10058&\"'!\"&H10058),\"0\"),Notes!$B$5:$C$100,2,FALSE),\"\"))","v":""},"2e","$AC$24","$AD$24"]
[35922,{"$f":"Menu!$F$29","v":"X"},{"$f":"Menu!$J$29","v":2020},{"$f":"IF(ISBLANK(INDIRECT(\"'\"&F10059&\"'!\"&G10059)),\"\",INDIRECT(\"'\"&F10059&\"'!\"&G10059))","v":""},{"$f":"IF(ISBLANK(INDIRECT(\"'\"&F10059&\"'!\"&H10059)),\"\",IFERROR(VLOOKUP(TEXT(INDIRECT(\"'\"&F10059&\"'!\"&H10059),\"0\"),Notes!$B$5:$C$100,2,FALSE),\"\"))","v":""},"2e","$AG$24","$AH$24"]
[35487,{"$f":"Menu!$F$29","v":"X"},{"$f":"Menu!$J$29","v":2020},{"$f":"IF(ISBLANK(INDIRECT(\"'\"&F10060&\"'!\"&G10060)),\"\",INDIRECT(\"'\"&F10060&\"'!\"&G10060))","v":""},{"$f":"IF(ISBLANK(INDIRECT(\"'\"&F10060&\"'!\"&H10060)),\"\",IFERROR(VLOOKUP(TEXT(INDIRECT(\"'\"&F10060&\"'!\"&H10060),\"0\"),Notes!$B$5:$C$100,2,FALSE),\"\"))","v":""},"2e","$AE$24","$AF$24"]
[35067,{"$f":"Menu!$F$29","v":"X"},{"$f":"Menu!$J$29","v":2020},{"$f":"IF(ISBLANK(INDIRECT(\"'\"&F10061&\"'!\"&G10061)),\"\",INDIRECT(\"'\"&F10061&\"'!\"&G10061))","v":""},{"$f":"IF(ISBLANK(INDIRECT(\"'\"&F10061&\"'!\"&H10061)),\"\",IFERROR(VLOOKUP(TEXT(INDIRECT(\"'\"&F10061&\"'!\"&H10061),\"0\"),Notes!$B$5:$C$100,2,FALSE),\"\"))","v":""},"2e","$AI$24","$AJ$24"]
[35937,{"$f":"Menu!$F$29","v":"X"},{"$f":"Menu!$J$29","v":2020},{"$f":"IF(ISBLANK(INDIRECT(\"'\"&F10062&\"'!\"&G10062)),\"\",INDIRECT(\"'\"&F10062&\"'!\"&G10062))","v":""},{"$f":"IF(ISBLANK(INDIRECT(\"'\"&F10062&\"'!\"&H10062)),\"\",IFERROR(VLOOKUP(TEXT(INDIRECT(\"'\"&F10062&\"'!\"&H10062),\"0\"),Notes!$B$5:$C$100,2,FALSE),\"\"))","v":""},"2e","$AM$24","$AN$24"]
[35502,{"$f":"Menu!$F$29","v":"X"},{"$f":"Menu!$J$29","v":2020},{"$f":"IF(ISBLANK(INDIRECT(\"'\"&F10063&\"'!\"&G10063)),\"\",INDIRECT(\"'\"&F10063&\"'!\"&G10063))","v":""},{"$f":"IF(ISBLANK(INDIRECT(\"'\"&F10063&\"'!\"&H10063)),\"\",IFERROR(VLOOKUP(TEXT(INDIRECT(\"'\"&F10063&\"'!\"&H10063),\"0\"),Notes!$B$5:$C$100,2,FALSE),\"\"))","v":""},"2e","$AK$24","$AL$24"]
[35082,{"$f":"Menu!$F$29","v":"X"},{"$f":"Menu!$J$29","v":2020},{"$f":"IF(ISBLANK(INDIRECT(\"'\"&F10064&\"'!\"&G10064)),\"\",INDIRECT(\"'\"&F10064&\"'!\"&G10064))","v":""},{"$f":"IF(ISBLANK(INDIRECT(\"'\"&F10064&\"'!\"&H10064)),\"\",IFERROR(VLOOKUP(TEXT(INDIRECT(\"'\"&F10064&\"'!\"&H10064),\"0\"),Notes!$B$5:$C$100,2,FALSE),\"\"))","v":""},"2e","$AO$24","$AP$24"]
[35952,{"$f":"Menu!$F$29","v":"X"},{"$f":"Menu!$J$29","v":2020},{"$f":"IF(ISBLANK(INDIRECT(\"'\"&F10065&\"'!\"&G10065)),\"\",INDIRECT(\"'\"&F10065&\"'!\"&G10065))","v":""},{"$f":"IF(ISBLANK(INDIRECT(\"'\"&F10065&\"'!\"&H10065)),\"\",IFERROR(VLOOKUP(TEXT(INDIRECT(\"'\"&F10065&\"'!\"&H10065),\"0\"),Notes!$B$5:$C$100,2,FALSE),\"\"))","v":""},"2e","$AS$24","$AT$24"]
[35517,{"$f":"Menu!$F$29","v":"X"},{"$f":"Menu!$J$29","v":2020},{"$f":"IF(ISBLANK(INDIRECT(\"'\"&F10066&\"'!\"&G10066)),\"\",INDIRECT(\"'\"&F10066&\"'!\"&G10066))","v":""},{"$f":"IF(ISBLANK(INDIRECT(\"'\"&F10066&\"'!\"&H10066)),\"\",IFERROR(VLOOKUP(TEXT(INDIRECT(\"'\"&F10066&\"'!\"&H10066),\"0\"),Notes!$B$5:$C$100,2,FALSE),\"\"))","v":""},"2e","$AQ$24","$AR$24"]
[35097,{"$f":"Menu!$F$29","v":"X"},{"$f":"Menu!$J$29","v":2020},{"$f":"IF(ISBLANK(INDIRECT(\"'\"&F10067&\"'!\"&G10067)),\"\",INDIRECT(\"'\"&F10067&\"'!\"&G10067))","v":""},{"$f":"IF(ISBLANK(INDIRECT(\"'\"&F10067&\"'!\"&H10067)),\"\",IFERROR(VLOOKUP(TEXT(INDIRECT(\"'\"&F10067&\"'!\"&H10067),\"0\"),Notes!$B$5:$C$100,2,FALSE),\"\"))","v":""},"2e","$AU$24","$AV$24"]
[35967,{"$f":"Menu!$F$29","v":"X"},{"$f":"Menu!$J$29","v":2020},{"$f":"IF(ISBLANK(INDIRECT(\"'\"&F10068&\"'!\"&G10068)),\"\",INDIRECT(\"'\"&F10068&\"'!\"&G10068))","v":""},{"$f":"IF(ISBLANK(INDIRECT(\"'\"&F10068&\"'!\"&H10068)),\"\",IFERROR(VLOOKUP(TEXT(INDIRECT(\"'\"&F10068&\"'!\"&H10068),\"0\"),Notes!$B$5:$C$100,2,FALSE),\"\"))","v":""},"2e","$AY$24","$AZ$24"]
[35532,{"$f":"Menu!$F$29","v":"X"},{"$f":"Menu!$J$29","v":2020},{"$f":"IF(ISBLANK(INDIRECT(\"'\"&F10069&\"'!\"&G10069)),\"\",INDIRECT(\"'\"&F10069&\"'!\"&G10069))","v":""},{"$f":"IF(ISBLANK(INDIRECT(\"'\"&F10069&\"'!\"&H10069)),\"\",IFERROR(VLOOKUP(TEXT(INDIRECT(\"'\"&F10069&\"'!\"&H10069),\"0\"),Notes!$B$5:$C$100,2,FALSE),\"\"))","v":""},"2e","$AW$24","$AX$24"]
[35112,{"$f":"Menu!$F$29","v":"X"},{"$f":"Menu!$J$29","v":2020},{"$f":"IF(ISBLANK(INDIRECT(\"'\"&F10070&\"'!\"&G10070)),\"\",INDIRECT(\"'\"&F10070&\"'!\"&G10070))","v":""},{"$f":"IF(ISBLANK(INDIRECT(\"'\"&F10070&\"'!\"&H10070)),\"\",IFERROR(VLOOKUP(TEXT(INDIRECT(\"'\"&F10070&\"'!\"&H10070),\"0\"),Notes!$B$5:$C$100,2,FALSE),\"\"))","v":""},"2e","$BA$24","$BB$24"]
[35982,{"$f":"Menu!$F$29","v":"X"},{"$f":"Menu!$J$29","v":2020},{"$f":"IF(ISBLANK(INDIRECT(\"'\"&F10071&\"'!\"&G10071)),\"\",INDIRECT(\"'\"&F10071&\"'!\"&G10071))","v":""},{"$f":"IF(ISBLANK(INDIRECT(\"'\"&F10071&\"'!\"&H10071)),\"\",IFERROR(VLOOKUP(TEXT(INDIRECT(\"'\"&F10071&\"'!\"&H10071),\"0\"),Notes!$B$5:$C$100,2,FALSE),\"\"))","v":""},"2e","$BE$24","$BF$24"]
[35547,{"$f":"Menu!$F$29","v":"X"},{"$f":"Menu!$J$29","v":2020},{"$f":"IF(ISBLANK(INDIRECT(\"'\"&F10072&\"'!\"&G10072)),\"\",INDIRECT(\"'\"&F10072&\"'!\"&G10072))","v":""},{"$f":"IF(ISBLANK(INDIRECT(\"'\"&F10072&\"'!\"&H10072)),\"\",IFERROR(VLOOKUP(TEXT(INDIRECT(\"'\"&F10072&\"'!\"&H10072),\"0\"),Notes!$B$5:$C$100,2,FALSE),\"\"))","v":""},"2e","$BC$24","$BD$24"]
[34887,{"$f":"Menu!$F$29","v":"X"},{"$f":"Menu!$J$29","v":2020},{"$f":"IF(ISBLANK(INDIRECT(\"'\"&F10073&\"'!\"&G10073)),\"\",INDIRECT(\"'\"&F10073&\"'!\"&G10073))","v":""},{"$f":"IF(ISBLANK(INDIRECT(\"'\"&F10073&\"'!\"&H10073)),\"\",IFERROR(VLOOKUP(TEXT(INDIRECT(\"'\"&F10073&\"'!\"&H10073),\"0\"),Notes!$B$5:$C$100,2,FALSE),\"\"))","v":""},"2b","$E$23","$F$23"]
[35757,{"$f":"Menu!$F$29","v":"X"},{"$f":"Menu!$J$29","v":2020},{"$f":"IF(ISBLANK(INDIRECT(\"'\"&F10074&\"'!\"&G10074)),\"\",INDIRECT(\"'\"&F10074&\"'!\"&G10074))","v":""},{"$f":"IF(ISBLANK(INDIRECT(\"'\"&F10074&\"'!\"&H10074)),\"\",IFERROR(VLOOKUP(TEXT(INDIRECT(\"'\"&F10074&\"'!\"&H10074),\"0\"),Notes!$B$5:$C$100,2,FALSE),\"\"))","v":""},"2b","$I$23","$J$23"]
[35322,{"$f":"Menu!$F$29","v":"X"},{"$f":"Menu!$J$29","v":2020},{"$f":"IF(ISBLANK(INDIRECT(\"'\"&F10075&\"'!\"&G10075)),\"\",INDIRECT(\"'\"&F10075&\"'!\"&G10075))","v":""},{"$f":"IF(ISBLANK(INDIRECT(\"'\"&F10075&\"'!\"&H10075)),\"\",IFERROR(VLOOKUP(TEXT(INDIRECT(\"'\"&F10075&\"'!\"&H10075),\"0\"),Notes!$B$5:$C$100,2,FALSE),\"\"))","v":""},"2b","$G$23","$H$23"]
[34932,{"$f":"Menu!$F$29","v":"X"},{"$f":"Menu!$J$29","v":2020},{"$f":"IF(ISBLANK(INDIRECT(\"'\"&F10076&\"'!\"&G10076)),\"\",INDIRECT(\"'\"&F10076&\"'!\"&G10076))","v":""},{"$f":"IF(ISBLANK(INDIRECT(\"'\"&F10076&\"'!\"&H10076)),\"\",IFERROR(VLOOKUP(TEXT(INDIRECT(\"'\"&F10076&\"'!\"&H10076),\"0\"),Notes!$B$5:$C$100,2,FALSE),\"\"))","v":""},"2b","$W$23","$X$23"]
[35802,{"$f":"Menu!$F$29","v":"X"},{"$f":"Menu!$J$29","v":2020},{"$f":"IF(ISBLANK(INDIRECT(\"'\"&F10077&\"'!\"&G10077)),\"\",INDIRECT(\"'\"&F10077&\"'!\"&G10077))","v":""},{"$f":"IF(ISBLANK(INDIRECT(\"'\"&F10077&\"'!\"&H10077)),\"\",IFERROR(VLOOKUP(TEXT(INDIRECT(\"'\"&F10077&\"'!\"&H10077),\"0\"),Notes!$B$5:$C$100,2,FALSE),\"\"))","v":""},"2b","$AA$23","$AB$23"]
[35367,{"$f":"Menu!$F$29","v":"X"},{"$f":"Menu!$J$29","v":2020},{"$f":"IF(ISBLANK(INDIRECT(\"'\"&F10078&\"'!\"&G10078)),\"\",INDIRECT(\"'\"&F10078&\"'!\"&G10078))","v":""},{"$f":"IF(ISBLANK(INDIRECT(\"'\"&F10078&\"'!\"&H10078)),\"\",IFERROR(VLOOKUP(TEXT(INDIRECT(\"'\"&F10078&\"'!\"&H10078),\"0\"),Notes!$B$5:$C$100,2,FALSE),\"\"))","v":""},"2b","$Y$23","$Z$23"]
[34812,{"$f":"Menu!$F$29","v":"X"},{"$f":"Menu!$J$29","v":2020},{"$f":"IF(ISBLANK(INDIRECT(\"'\"&F10079&\"'!\"&G10079)),\"\",INDIRECT(\"'\"&F10079&\"'!\"&G10079))","v":""},{"$f":"IF(ISBLANK(INDIRECT(\"'\"&F10079&\"'!\"&H10079)),\"\",IFERROR(VLOOKUP(TEXT(INDIRECT(\"'\"&F10079&\"'!\"&H10079),\"0\"),Notes!$B$5:$C$100,2,FALSE),\"\"))","v":""},"2d","$AC$23","$AD$23"]
[35682,{"$f":"Menu!$F$29","v":"X"},{"$f":"Menu!$J$29","v":2020},{"$f":"IF(ISBLANK(INDIRECT(\"'\"&F10080&\"'!\"&G10080)),\"\",INDIRECT(\"'\"&F10080&\"'!\"&G10080))","v":""},{"$f":"IF(ISBLANK(INDIRECT(\"'\"&F10080&\"'!\"&H10080)),\"\",IFERROR(VLOOKUP(TEXT(INDIRECT(\"'\"&F10080&\"'!\"&H10080),\"0\"),Notes!$B$5:$C$100,2,FALSE),\"\"))","v":""},"2d","$AG$23","$AH$23"]
[35247,{"$f":"Menu!$F$29","v":"X"},{"$f":"Menu!$J$29","v":2020},{"$f":"IF(ISBLANK(INDIRECT(\"'\"&F10081&\"'!\"&G10081)),\"\",INDIRECT(\"'\"&F10081&\"'!\"&G10081))","v":""},{"$f":"IF(ISBLANK(INDIRECT(\"'\"&F10081&\"'!\"&H10081)),\"\",IFERROR(VLOOKUP(TEXT(INDIRECT(\"'\"&F10081&\"'!\"&H10081),\"0\"),Notes!$B$5:$C$100,2,FALSE),\"\"))","v":""},"2d","$AE$23","$AF$23"]
[34872,{"$f":"Menu!$F$29","v":"X"},{"$f":"Menu!$J$29","v":2020},{"$f":"IF(ISBLANK(INDIRECT(\"'\"&F10082&\"'!\"&G10082)),\"\",INDIRECT(\"'\"&F10082&\"'!\"&G10082))","v":""},{"$f":"IF(ISBLANK(INDIRECT(\"'\"&F10082&\"'!\"&H10082)),\"\",IFERROR(VLOOKUP(TEXT(INDIRECT(\"'\"&F10082&\"'!\"&H10082),\"0\"),Notes!$B$5:$C$100,2,FALSE),\"\"))","v":""},"2d","$W$23","$X$23"]
[35742,{"$f":"Menu!$F$29","v":"X"},{"$f":"Menu!$J$29","v":2020},{"$f":"IF(ISBLANK(INDIRECT(\"'\"&F10083&\"'!\"&G10083)),\"\",INDIRECT(\"'\"&F10083&\"'!\"&G10083))","v":""},{"$f":"IF(ISBLANK(INDIRECT(\"'\"&F10083&\"'!\"&H10083)),\"\",IFERROR(VLOOKUP(TEXT(INDIRECT(\"'\"&F10083&\"'!\"&H10083),\"0\"),Notes!$B$5:$C$100,2,FALSE),\"\"))","v":""},"2d","$AA$23","$AB$23"]
[35307,{"$f":"Menu!$F$29","v":"X"},{"$f":"Menu!$J$29","v":2020},{"$f":"IF(ISBLANK(INDIRECT(\"'\"&F10084&\"'!\"&G10084)),\"\",INDIRECT(\"'\"&F10084&\"'!\"&G10084))","v":""},{"$f":"IF(ISBLANK(INDIRECT(\"'\"&F10084&\"'!\"&H10084)),\"\",IFERROR(VLOOKUP(TEXT(INDIRECT(\"'\"&F10084&\"'!\"&H10084),\"0\"),Notes!$B$5:$C$100,2,FALSE),\"\"))","v":""},"2d","$Y$23","$Z$23"]
[34827,{"$f":"Menu!$F$29","v":"X"},{"$f":"Menu!$J$29","v":2020},{"$f":"IF(ISBLANK(INDIRECT(\"'\"&F10085&\"'!\"&G10085)),\"\",INDIRECT(\"'\"&F10085&\"'!\"&G10085))","v":""},{"$f":"IF(ISBLANK(INDIRECT(\"'\"&F10085&\"'!\"&H10085)),\"\",IFERROR(VLOOKUP(TEXT(INDIRECT(\"'\"&F10085&\"'!\"&H10085),\"0\"),Notes!$B$5:$C$100,2,FALSE),\"\"))","v":""},"2d","$E$23","$F$23"]
[35697,{"$f":"Menu!$F$29","v":"X"},{"$f":"Menu!$J$29","v":2020},{"$f":"IF(ISBLANK(INDIRECT(\"'\"&F10086&\"'!\"&G10086)),\"\",INDIRECT(\"'\"&F10086&\"'!\"&G10086))","v":""},{"$f":"IF(ISBLANK(INDIRECT(\"'\"&F10086&\"'!\"&H10086)),\"\",IFERROR(VLOOKUP(TEXT(INDIRECT(\"'\"&F10086&\"'!\"&H10086),\"0\"),Notes!$B$5:$C$100,2,FALSE),\"\"))","v":""},"2d","$I$23","$J$23"]
[35262,{"$f":"Menu!$F$29","v":"X"},{"$f":"Menu!$J$29","v":2020},{"$f":"IF(ISBLANK(INDIRECT(\"'\"&F10087&\"'!\"&G10087)),\"\",INDIRECT(\"'\"&F10087&\"'!\"&G10087))","v":""},{"$f":"IF(ISBLANK(INDIRECT(\"'\"&F10087&\"'!\"&H10087)),\"\",IFERROR(VLOOKUP(TEXT(INDIRECT(\"'\"&F10087&\"'!\"&H10087),\"0\"),Notes!$B$5:$C$100,2,FALSE),\"\"))","v":""},"2d","$G$23","$H$23"]
[35577,{"$f":"Menu!$F$29","v":"X"},{"$f":"Menu!$J$29","v":2020},{"$f":"IF(ISBLANK(INDIRECT(\"'\"&F10088&\"'!\"&G10088)),\"\",INDIRECT(\"'\"&F10088&\"'!\"&G10088))","v":""},{"$f":"IF(ISBLANK(INDIRECT(\"'\"&F10088&\"'!\"&H10088)),\"\",IFERROR(VLOOKUP(TEXT(INDIRECT(\"'\"&F10088&\"'!\"&H10088),\"0\"),Notes!$B$5:$C$100,2,FALSE),\"\"))","v":""},"2a","$U$23","$V$23"]
[35142,{"$f":"Menu!$F$29","v":"X"},{"$f":"Menu!$J$29","v":2020},{"$f":"IF(ISBLANK(INDIRECT(\"'\"&F10089&\"'!\"&G10089)),\"\",INDIRECT(\"'\"&F10089&\"'!\"&G10089))","v":""},{"$f":"IF(ISBLANK(INDIRECT(\"'\"&F10089&\"'!\"&H10089)),\"\",IFERROR(VLOOKUP(TEXT(INDIRECT(\"'\"&F10089&\"'!\"&H10089),\"0\"),Notes!$B$5:$C$100,2,FALSE),\"\"))","v":""},"2a","$S$23","$T$23"]
[34707,{"$f":"Menu!$F$29","v":"X"},{"$f":"Menu!$J$29","v":2020},{"$f":"IF(ISBLANK(INDIRECT(\"'\"&F10090&\"'!\"&G10090)),\"\",INDIRECT(\"'\"&F10090&\"'!\"&G10090))","v":""},{"$f":"IF(ISBLANK(INDIRECT(\"'\"&F10090&\"'!\"&H10090)),\"\",IFERROR(VLOOKUP(TEXT(INDIRECT(\"'\"&F10090&\"'!\"&H10090),\"0\"),Notes!$B$5:$C$100,2,FALSE),\"\"))","v":""},"2a","$Q$23","$R$23"]
[34857,{"$f":"Menu!$F$29","v":"X"},{"$f":"Menu!$J$29","v":2020},{"$f":"IF(ISBLANK(INDIRECT(\"'\"&F10091&\"'!\"&G10091)),\"\",INDIRECT(\"'\"&F10091&\"'!\"&G10091))","v":""},{"$f":"IF(ISBLANK(INDIRECT(\"'\"&F10091&\"'!\"&H10091)),\"\",IFERROR(VLOOKUP(TEXT(INDIRECT(\"'\"&F10091&\"'!\"&H10091),\"0\"),Notes!$B$5:$C$100,2,FALSE),\"\"))","v":""},"2d","$K$23","$L$23"]
[35727,{"$f":"Menu!$F$29","v":"X"},{"$f":"Menu!$J$29","v":2020},{"$f":"IF(ISBLANK(INDIRECT(\"'\"&F10092&\"'!\"&G10092)),\"\",INDIRECT(\"'\"&F10092&\"'!\"&G10092))","v":""},{"$f":"IF(ISBLANK(INDIRECT(\"'\"&F10092&\"'!\"&H10092)),\"\",IFERROR(VLOOKUP(TEXT(INDIRECT(\"'\"&F10092&\"'!\"&H10092),\"0\"),Notes!$B$5:$C$100,2,FALSE),\"\"))","v":""},"2d","$O$23","$P$23"]
[35292,{"$f":"Menu!$F$29","v":"X"},{"$f":"Menu!$J$29","v":2020},{"$f":"IF(ISBLANK(INDIRECT(\"'\"&F10093&\"'!\"&G10093)),\"\",INDIRECT(\"'\"&F10093&\"'!\"&G10093))","v":""},{"$f":"IF(ISBLANK(INDIRECT(\"'\"&F10093&\"'!\"&H10093)),\"\",IFERROR(VLOOKUP(TEXT(INDIRECT(\"'\"&F10093&\"'!\"&H10093),\"0\"),Notes!$B$5:$C$100,2,FALSE),\"\"))","v":""},"2d","$M$23","$N$23"]
[34842,{"$f":"Menu!$F$29","v":"X"},{"$f":"Menu!$J$29","v":2020},{"$f":"IF(ISBLANK(INDIRECT(\"'\"&F10094&\"'!\"&G10094)),\"\",INDIRECT(\"'\"&F10094&\"'!\"&G10094))","v":""},{"$f":"IF(ISBLANK(INDIRECT(\"'\"&F10094&\"'!\"&H10094)),\"\",IFERROR(VLOOKUP(TEXT(INDIRECT(\"'\"&F10094&\"'!\"&H10094),\"0\"),Notes!$B$5:$C$100,2,FALSE),\"\"))","v":""},"2d","$Q$23","$R$23"]
[35712,{"$f":"Menu!$F$29","v":"X"},{"$f":"Menu!$J$29","v":2020},{"$f":"IF(ISBLANK(INDIRECT(\"'\"&F10095&\"'!\"&G10095)),\"\",INDIRECT(\"'\"&F10095&\"'!\"&G10095))","v":""},{"$f":"IF(ISBLANK(INDIRECT(\"'\"&F10095&\"'!\"&H10095)),\"\",IFERROR(VLOOKUP(TEXT(INDIRECT(\"'\"&F10095&\"'!\"&H10095),\"0\"),Notes!$B$5:$C$100,2,FALSE),\"\"))","v":""},"2d","$U$23","$V$23"]
[35277,{"$f":"Menu!$F$29","v":"X"},{"$f":"Menu!$J$29","v":2020},{"$f":"IF(ISBLANK(INDIRECT(\"'\"&F10096&\"'!\"&G10096)),\"\",INDIRECT(\"'\"&F10096&\"'!\"&G10096))","v":""},{"$f":"IF(ISBLANK(INDIRECT(\"'\"&F10096&\"'!\"&H10096)),\"\",IFERROR(VLOOKUP(TEXT(INDIRECT(\"'\"&F10096&\"'!\"&H10096),\"0\"),Notes!$B$5:$C$100,2,FALSE),\"\"))","v":""},"2d","$S$23","$T$23"]
[35562,{"$f":"Menu!$F$29","v":"X"},{"$f":"Menu!$J$29","v":2020},{"$f":"IF(ISBLANK(INDIRECT(\"'\"&F10097&\"'!\"&G10097)),\"\",INDIRECT(\"'\"&F10097&\"'!\"&G10097))","v":""},{"$f":"IF(ISBLANK(INDIRECT(\"'\"&F10097&\"'!\"&H10097)),\"\",IFERROR(VLOOKUP(TEXT(INDIRECT(\"'\"&F10097&\"'!\"&H10097),\"0\"),Notes!$B$5:$C$100,2,FALSE),\"\"))","v":""},"2a","$O$23","$P$23"]
[35127,{"$f":"Menu!$F$29","v":"X"},{"$f":"Menu!$J$29","v":2020},{"$f":"IF(ISBLANK(INDIRECT(\"'\"&F10098&\"'!\"&G10098)),\"\",INDIRECT(\"'\"&F10098&\"'!\"&G10098))","v":""},{"$f":"IF(ISBLANK(INDIRECT(\"'\"&F10098&\"'!\"&H10098)),\"\",IFERROR(VLOOKUP(TEXT(INDIRECT(\"'\"&F10098&\"'!\"&H10098),\"0\"),Notes!$B$5:$C$100,2,FALSE),\"\"))","v":""},"2a","$M$23","$N$23"]
[34692,{"$f":"Menu!$F$29","v":"X"},{"$f":"Menu!$J$29","v":2020},{"$f":"IF(ISBLANK(INDIRECT(\"'\"&F10099&\"'!\"&G10099)),\"\",INDIRECT(\"'\"&F10099&\"'!\"&G10099))","v":""},{"$f":"IF(ISBLANK(INDIRECT(\"'\"&F10099&\"'!\"&H10099)),\"\",IFERROR(VLOOKUP(TEXT(INDIRECT(\"'\"&F10099&\"'!\"&H10099),\"0\"),Notes!$B$5:$C$100,2,FALSE),\"\"))","v":""},"2a","$K$23","$L$23"]

{"sheet":"Options","index":14,"n_rows":43,"n_cols":1,"rows_kept":43,"cut":false,"hidden":true,"merged":[]}
["TypeOfSurvey"]
["ICT survey (stand-alone ICT survey) "]
["Budget or expenditure household survey"]
["Living condition survey"]
["Labour force survey"]
["Other household survey (multi-purpose survey)"]
["Census"]
["Other source, no survey"]
[]
["CollectionTechnique:"]
["Personal and telephone interview (face-to-face and telephone; multiple techniques; with or without computer-assisted software)"]
["Personal interview (face-to-face; using paper only)"]
["Personal interview (face-to-face; using PDA/tablet only)"]
["Personal interview (face-to-face; other technique)"]
["Telephone personal interview (telephone interview only; with or without computer-assisted software)"]
["Self-enumeration by traditional mail"]
["Self-enumeration online or by e-mail"]
["Other collection technique(s)"]
[]
["SamplingUnit:"]
["Households/dwelling and individuals"]
["Households/dwelling only"]
["Individuals only"]
[]
[]
["Frequency:"]
["More than once a year"]
["Annual / Once a year"]
["Every 2 years"]
["Every 3-4 years"]
["Every 5-9 years"]
["Every 10 years or less frequent"]
["No established frequency"]
[]
[]
[]
["PersonSelection"]
["Every individual above a certain age replied for themselves"]
["Most informed person replied for all (e.g. head of household/responsible household member)"]
["One person randomly selected replied for all"]
["One person randomly selected replied for him/herself only"]
["Other selection"]
["No individual level questions were asked"]